{"text_format":"2","workbook":"xlsx","n_sheets":11,"sheets":["Revision","Instructions","Definitions","Declaration","Smelter List","Checker","Product List","Smelter Look-up","L","C","SorP"],"not_rendered":{"charts":0,"images":1,"macros":0,"external_links":0,"defined_names":36,"comments":4,"pivot_tables":0},"unopened":[],"bounds":{"document_bytes":16777216,"sheet_cells":100000,"run_cost":"one","rows_first":2000,"rows_last":500,"rows_between":2000,"halvings":0,"cell_chars":16384,"cell_head_chars":4096},"cells_cut":1,"cells_raw":0,"read":"whole","date_system":"1900"}

{"sheet":"Revision","index":0,"n_rows":49,"n_cols":6,"rows_kept":49,"cut":false,"hidden":false,"merged":[[21,3,23,3],[21,4,23,4],[1,0,48,0],[48,1,48,5],[8,1,8,5],[9,1,10,5],[14,1,16,1],[14,2,16,2],[14,3,16,3],[17,1,20,1],[17,2,20,2],[17,3,20,3],[25,4,35,4],[25,3,35,3],[25,2,35,2],[25,1,35,1],[21,1,23,1],[21,2,23,2]]}
[]
[null,"DOCUMENT TITLE"]
[null,"Conflict Minerals Reporting Template"]
[null,"SHEET"]
[null,"1 of 8"]
[]
[]
[]
[null,"REVISION HISTORY"]
[null,"A change in the first digit of the revision number (e.g., 1.0 to 2.0) signifies a set of major improvements have occurred which will likely include different data reporting requirements. Changes to the first or second decimal place (e.g., “2.01” to “2.02”) indicate only minor changes have been made to the template which are not expected to result in substantial changes to the data being reported.  The addition of a letter (e.g., “a”, or “b”, or “c”) following the revision number indicate that only the standard smelter list has been updated from the prior version."]
[]
[null,"REVISION","ORIGINATOR","RELEASE DATE","DESCRIPTION OF FUNCTIONAL CHANGE","UPDATES TO SMELTER LIST"]
[null,1,"Jared Connors, Intel","July 19th, 2011","New Release"]
[null,2,"Jared Connors, Intel","Aug 29th, 2012","Major update to functionality including: addition of the known smelter list, addition of declaration scope including product tab, and added and modified multiple questions and / or their responses.","New."]
[null,2.0099999999999998,"Jared Connors, Intel","Dec 21st, 2012","List of changes to the template functionality:\n1. Modified Smelter List tab to prevent smelter rows from wrapping text. This was being caused by the hidden formula in column A which allows for a software vendor to easily grab the smelter IDs.\n2. Changed protection settings on the Smelter List tab to allow users to delete rows. This allows users to delete rows with incorrect entries within the smelter tab. Ensured that columns could not be mistakenly deleted in the process.","1. Added “CV DS Jaya Abadi” an alias to “PT Stanindo Inti Perkasa”\n2. Added “Mentok” as an alias to “PT Tambang Timah”\n3. Corrected spelling of \"Duoluoshan\" id # 3CHN001\n4. Corrected spelling of \"Mitsubishi Materials Corporation\" id # 1JPN039\n5. Changed “Gejiu Non-ferrous” to its proper name “Geiju Non-Ferrous Metal Processing Co. Ltd.”\n6. Changed “Mitsubishi Material” to its proper name “Mitsubishi Materials Corporation”\n7. Changed “Niotan” to “Kemet Blue Powder”\n8. Added “Nihon Material Co. LTD” as a gold refiner\n9. Added “Aida Chemical Industries Co. Ltd.” as a gold refiner\n10. Added “Asaka Riken Co Ltd” as a gold refiner"]
[{"$nulls":5},"11. Added “Kojima Chemical” as a gold refiner\n12. Added “Sabin” as a gold refiner\n13. Added “United Precious Metal Refining Inc.” as a gold refiner\n14. Added “Yokohama Metal Co Ltd” as a gold refiner\n15. Added “CNMC (Guangxi) PGMA Co., Ltd.” as a tin refiner\n16. Added “Conghua Tantalum and Niobium Smeltry” as a tantalum refiner\n17. Removed “Tantalite Resources” as a refinery\n18. Added “Minmetals Ganzhou Tin Co. Ltd.” as a tin refinery\n19. Updated “ATI Metalworking Products” to its proper full name “ATI Tungsten Materials”\n20. Updated “China Minmetals Corp.” to its proper full name “China Minmetals Nonferrous Metals Co Ltd”"]
[{"$nulls":5},"21. Removed “Ganzhou Huaxing Tungsten” as a smelter\n22. Removed “Ganzhou Nonferrous Metals Smelting Co Ltd.” as a smelter\n23. Removed “Sichuan Metals & Materials Imp & Exp Co as a tungsten smelter\n24. Added “Ganzhou Grand Sea W & Mo Group Co., Ltd.” as a tungsten smelter\n25. Added “Hunan Chenzhou Mining Group Co” as a tungsten smelter\n26. Added “Japan New Metals Co Ltd” as a tungsten smelter\n27. Added “Zhuzhou Cemented Carbide Group Co Ltd” as a tungsten smelter"]
[null,2.02,"Jared Connors, Intel","March 29th, 2013","1. Added new selection to the metals dropdown lists of smelter list tab “Smelter not yet identified”\n2. Moved “smelter not listed” to the bottom of each metals dropdown list\n3. Fixed error in Checker sheet to eliminate display of text “one or more smelters have been added to smelter list” when rows are deleted\n4. Rewrite of T&Cs\n5. Adding Italian translation\n6. Allow for deletion of rows in Smelter List tab\n7. Removed hover over text in column C of Smelter List tab\n8. Inserted additional rows for data entry on the Smelter List tab up to 2,500 rows\n9. Made smelter ID numbers visible in Smelter List tab\n10. Made template revision history tab visible","1. Added the following aliases to Ohio Precious Metals “OPM Metals”, “USPM”, “United States Precious Metals”\n2. Added “ALMT” as tungsten smelter\n3. Added “Suzhou Xingrui Noble” as gold smelter\n4. Added “Shangdong Zhaojin Group” as an alias of “Shandong Zhaojin Gold & Silver Refinery Co.,  Ltd”\n5. Added “Shandong Zhaoyuan Gold Argentine refining company limited” as an alias of “Zhongyuan Gold Smelter of Zhongjin Gold Corporation”\n6. Added “SEMPSA” as an alias for “SEMPSA Joyeria Plateria SA”\n7. Added “Umicore Brazil Ltd” as an alias for “Umicore Brasil Ltda”\n8. Added “Pan Pacific Copper Co., LTD.” as a gold smelter\n9. Added “White Solder Metalurgia” as a tin smelter\n10. Added “JiuJiang JinXin Nonferrous Metals Co. Ltd.” as a tantalum smelter"]
[{"$nulls":4},"11. Removed language selection from individual tabs, all controlled on Declaration tab\n12. Updated template to prevent users from adding tabs to the worksheet\n13. Added statement at the top of the revision history tab clarifying purpose of .0x revision updates","11. Corrected spelling of “jiujiang Tanbre” to “JiuJiang Tambre Co. Ltd.”\n12. Added Torecom as a gold smelter\n15. Added “PT Tinindo Internusa” as alias of “PT Tinindo Inter Nusa”\n16. Added “CV Jus Tindo” as alias of “CV JusTindo”\n17. Added “PT Bellitin Makmur Lestari” and “BML” as alias of “PT BilliTin Makmur Lestari”\n18. Added “Liuzhou China Tin Group Co., Ltd.” as alias of “Liuzhou China Tin”\n19. Added “PT Timah (Persero) TBK” and “Banka Tin” as alias of “PT Tambang Timah”\n20. Added “Yun Nan Tin Co.,LTD” as alias of “Yunnan Tin Company Limited”"]
[{"$nulls":5},"21. Added “GEJIU ZILI MINING&SMELTING CO.,LTD.” as alias of “Gejiu Zi-Li”\n22. Added “Jiangxi Tungsten Co Ltd” as alias of “Jiangxi Tungsten Industry Group Co Ltd”\n23. Added “Linwu Xianggui” as a tin smelter\n24. Added \"IMLI\" and “Indra Eramulti Logam” as aliases of “PT Bukit Timah”\n25. Added “CV Gita Pesona” as tin smelter\n26. Added “PT Tommy Utama” as tin smelter\n27. Added “PT Bangka Tin Industry” as tin smelter\n28. Added “PT DS Jaya Abadi” as tin smelter\n29. Added “PT Panca Mega” as tin smelter\n30. Added “PT Seirama Tin investment” as tin smelter"]
[{"$nulls":5},"31. Added “PT Karimun Mining” as tin smelter\n32. Added “Cooper Santa” as tin smelter\n33. Added “Daejin Indus Co. Ltd” as gold smelter\n34. Added “DaeryongENC” as gold smelter\n35. Added “Do Sung Corporation” as gold smelter\n36. Added “Hwasung CJ Co. Ltd” as gold smelter\n37. Added “Korea Metal” as gold smelter\n38. Added “SAMWON METALS Corp.” as gold smelter"]
[null,2.0299999999999998,"Akimasa Yamakawa, JEITA / John Plyler, BlackBerry","July 12th, 2013","1. Resolved Excel 2003 incompatibility with programming for multiple languages.\n2. Minor corrections to row number references in the instructions.\n3. Added translation on checker sheet for the Column Name “Hyperlink to Source”\n4. Corrected Japanese translation of \"authorized representative\" and \"representative\" on Declaration worksheet.\n5. Adjusted row spacing of misc cells to allow for different lengths of translated text and comments.\n6. Removed the symbols for the metals on the standard smelter list (e.g., \"Sn\").\n7. Deleted text \"If no for all metals, you are done with this survey.\" from question 1 on the Declaration worksheet.","1. Added “Fujian Jinxin Tungsten Co., Ltd.” as tungsten refiner\n2. Added “Dayu Weiliang Tungsten Co., Ltd.” as tungsten refiner\n3. Added “Xinhai Rendan Shaoguan Tungsten Co., Ltd.” as tungsten refiner\n4. Added “Hunan Chun-Chang Nonferrous Smelting & Concentrating Co., Ltd.” as tungsten refiner\n5. Added “Jiangxi Minmetals Gao'an Non-ferrous Metals Co., Ltd.” as tungsten refiner\n6. Corrected the spelling of \"Allydne\" to \"Alldyne\"\n7. Corrected the spelling of \"Allydne Powder Technologies\" to \"Alldyne Powder Technologies\"\n8. Corrected the spelling of \"Korea Metal\" to \"Korea Metal Co. Ltd\"\n9. Added \"LMS Brasil S.A.\"  as tantalum smelter\n10. Added \"QuantumClean\"  as tantalum smelter"]
[{"$nulls":5},"11. Added \"Taki Chemicals\" as tantalum smelter\n12. Added \"Tantalite Resources\" as tantalum smelter\n13. Corrected naming inconsistency of “Ohio Precious Metals LLC.” on standard smelter list and alias table.\n14. Corrected naming inconsistency of “The Refinery of Shandong Gold Mining Co., Ltd” on standard smelter list and alias table.\n15. Added \"Molycorp Silmet\" as tantalum smelter\n16. Added \"King-Tan Tantalum Industry Ltd\" as tantalum smelter\n17. Added \"CooperMetal\" as an alias of \"Coopersanta\"\n18. Corrected the spelling of \"Malaysia Smelting Corp\" to \"Malaysia Smelting Corporation (MSC)\"\n19. Corrected the spelling of \"Asahi Pretec Corp\" to \"Asahi Pretec Corporation\"\n20. Corrected the spelling of \"United Precious Metal Refining Inc.\" to “United Precious Metal Refining, Inc.”"]
[{"$nulls":5},"21. Added \"Fenix Metals\" as tin smelter\n22. Changed alias “Bangka Tin” from  “PT Tambang Timah” to “PT Timah”\n23. Added “Ketapang” as an alias of “PT Bangka Putra Karya”\n24. Corrected the Smelter ID of Cooper Santa from “2IDN063” to “2BRA063”\n25. Added \"Kundur\" as an alias of “PT Tambang Timah”\n26. Added “TT” as an alias of “PT Tambang Timah”\n27. Added \"CooperMetal\" as an alias of \"Coopersanta\"\n28. Corrected spelling of “CV Prima Timah Utama” to “PT Prima Timah Utama”."]
[null,"2.03a","John Plyler, BlackBerry","July 25th, 2013","No functional change.","1. Corrected the spelling of \"ALMT\" to \"A.L.M.T. Corp.\"\n2. Added \"A.L.M.T. Tungsten Corp\", \"Allied Material Corp\", and \"ALMT\" as aliases of \"A.L.M.T. Corp.\"\n3. Corrected country of \"A.L.M.T. Corp.\" to \"Japan\" and smelter ID to \"4JPN020\"\n4. Changed alias \"Wolfram\" for \"Wolfram Company CJSC\" to \"Wolfram [Russia]\"\n5. Added \"Wolfram [Austria]\" as an alias of \"Wolfram Bergbau und Hütten AG\"\n6. Added \"Kennametal Inc.\" as a tungsten refiner\n7. Added \"Kennametal\" as an alias of \"Kennametal Inc.\""]
[null,3,"Akimasa Yamakawa, JEITA, and John Plyler, BlackBerry, under the direction of the CFSI Due Diligence Workgroup","April 9th, 2014","Major update to synchronize the CFSI CMRT with the data fields in the newly published IPC-1755 Standard. Changes include:\n1. Addition of new company information fields.\n2. Two additional due diligence questions and removal of one.  \n3. Minor changes to question text throughout.\n4. Expansion of instructions and definitions.\n5. Updated translations of all modified text.","Added the following gold refiners:  \n1. Bauer Walser AG\n2. C. Hafner GmbH + Co. KG\n3. China National Gold Group Corporation\n4. Colt Refining\n5. Daye Non-Ferrous Metals Mining Ltd.\n6. Doduco\n7. Eco-System Recycling Co., Ltd.\n8. Gansu Seemine Material Hi-Tech Co Ltd\n9. Guangdong Jinding Gold Limited\n10. Hangzhou Fuchunjiang Smelting Co., Ltd."]
[{"$nulls":5},"11. Hunan Chenzhou Mining Industry Group\n12. Kennecott Utah Copper LLC\n13. Lingbao Jinyuan Tonghui Refinery Co. Ltd.\n14. Luoyang Zijin Yinhui Metal Smelt Co Ltd\n15. Metalor Technologies (Singapore) Pte. Ltd.\n16. Ohura Precious Metal Industry Co., Ltd\n17. Penglai Penggang Gold Industry Co Ltd\n18. So Accurate Group, Inc.\n19. Tongling nonferrous Metals Group Co.,Ltd \n20. Umicore Precious Metals Thailand"]
[{"$nulls":5},"21. YAMAMOTO PRECIOUS METAL CO., LTD.\n22. Yunnan Copper Industry Co Ltd\n\n"]
[{"$nulls":5},"Added the following tantalum smelters: \n1. Changsha South Tantalum Niobium Co Ltd\n2. Guangdong Zhiyuan New Material Co., Ltd.\n3. Hengyang King Xing Lifeng New Materials Co., LTD\n4. Metallurgical Products India (Pvt.) Ltd.\n5. Mineração Taboca S.A.\n6. Shanghai Jiangxi Metals Co. Ltd\n7. Yichun Jin Yang Rare Metal Co., Ltd"]
[{"$nulls":5},"Added the following tin smelters: \n1. China Rare Metal Materials Company\n2. Estanho de Rondônia S.A.\n3. Magnu's Minerais Metais e Ligas LTDA\n4. O.M. Manufacturing (Thailand) Co., Ltd.\n5. Rui Da Hung\n6. Soft Metais Ltda."]
[{"$nulls":5},"Added the following tungsten refiners: \n1. Ganzhou Jiangwu Ferrotungsten Co., Ltd.\n2. Jiangxi Gan Bei Tungsten Co., Ltd.\n3. Jiangxi Richsea New Materials Co., Ltd.\n4. Jiangxi Tonggu Non-ferrous Metallurgical & Chemical Co., Ltd.\n5. Jiangxi Xinsheng Tungsten Industry Co., Ltd.\n6. Jiangxi Yaosheng Tungsten Co., Ltd.\n7. Malipo Haiyu Tungsten Co., Ltd.\n8. Xiamen Tungsten (H.C.) Co., Ltd."]
[{"$nulls":5},"Removed the following as gold refiners:\n1. Central Bank of the DPR of Korea\n2.Codelco\n3. Suzhou Xingrui Noble\nRemoved \"Gannon & Scott\" as a tantalum smelter"]
[{"$nulls":5},"Removed the following as tin smelters:\n1. CV Duta Putra Bangka\n2. CV Gita Pesona\n3. CV JusTindo\n4. CV Makmur Jaya\n5. CV Nurjanah\n6. Gold Bell Group\n7. PT Alam Lestari Kencana\n8. PT Babel Surya Alam Lestari\n9. PT Bangka Kudai Tin\n10. PT Bangka Timah Utama Sejahtera"]
[{"$nulls":5},"11. PT BilliTin Makmur Lestari\n12. PT Fang Di MulTindo\n13. PT HP Metals Indonesia\n14. PT Koba Tin\n15. PT Panca Mega\n16. PT Seirama Tin investment\n17. PT Sumber Jaya Indah\n18. PT Timah Nusantara\n19. PT Tommy Utama\n20. PT Yinchendo Mining Industry"]
[{"$nulls":5},"Removed the following as tungsten refiners:\n1. China Minmetals Nonferrous Metals Co Ltd\n2. Ganzhou Grand Sea W & Mo Group Co Ltd"]
[{"$nulls":5},"Changed numerous Standard Smelter Names, including:\n1. \"Pan Pacific Copper Co. LTD\" to \"JX Nippon Mining & Metals Co., Ltd\"\n2. \"Xstrata Canada Corporation\" to \"CCR Refinery – Glencore Canada Corporation\"\n3. \"PT Refined Banka Tin\" to \"PT Refined Bangka Tin\"\n4. \"ATI Tungsten Materials\" to \"Kennametal Huntsville\"\n5. \"Jiangxi Rare Earth & Rare Metals Tungsten Group Corp\" to \"Ganzhou Non-ferrous Metals Smelting Co., Ltd.\"\n6. \"Kennametal Inc.\" to \"Kennametal Fallon\"\n7. \"Chaozhou Xianglu Tungsten Industry Co Ltd\" to \"Guangdong Xianglu Tungsten Industry Co., Ltd.\"\nChanged numerous \"Alias\" names of smelters and refiners."]
[null,3.01,"Akimasa Yamakawa, JEITA, and John Plyler, BlackBerry, under the direction of the CFSI Due Diligence Workgroup","May 30th, 2014","1. Removed the ability to overwrite the “Declaration Scope or Class” field. Users are restricted to only use the drop-down options.\n2. Addressed issue with Checker incorrectly showing “Description of Scope” as missing data when a user selects “B. Product (or List of Products)” as the Declaration Scope.\n3. Programmed Checker to show missing data when response to question B is \"Yes\", unless a url is entered the corresponding \"Comments\" field.","1. Added the tin smelter \"Melt Metais e Ligas S/A\"\n2. Added the tungsten refiner \"Vietnam Youngsun Tungsten Industry Co., Ltd\"\n3. Corrected the name of tin smelter \"Liuzhou China Tin\" to \"China Tin Group Co., Ltd.\"\n4. Corrected the name of tin smelter \"PT Timah\" to \"PT Timah (Persero), Tbk\""]
[null,3.02,"John Plyler, BlackBerry, under the direction of the CFSI Due Diligence Data Collection Workgroup","Nov 7th, 2014","1. Revisions to the German language translation throughout.\n2. Correction of the Japanese language translation for Question 4 on the Declaration worksheet.","This version incorporates numerous changes to the smelter list as reflected in the Standard Smelter List as of November 7, 2014.  The latest version of the Standard Smelter List is available at: http://www.conflictfreesourcing.org."]
[null,4,"CFSI Due Diligence Data Collection Workgroup","Apr 30th, 2015","Replaced the Standard Smelter Names tab with the Smelter Reference List tab, displaying common alternate names for smelters as well as location information. Major update to synchronize the CFSI CMRT with the data fields in the newly revised IPC-1755 Standard. Changes include:\n1. Changes to question text throughout.\n2.Expansion of instructions and definitions.\n3. Updated translations of all modified text.\n","This version incorporates numerous changes to the smelter list as reflected in the Standard Smelter List as of April 17, 2015.  The latest version of the Standard Smelter List is available at: http://www.conflictfreesourcing.org."]
[null,4.01,"CFSI Due Diligence Data Collection Workgroup","June 12th, 2015","Minor revisions to correct reported issues including those related to error checking on the \"Checker\" and “Smelter List” tabs.","This version incorporates a few changes to the smelter list as reflected in the Standard Smelter List as of June 12, 2015.  The latest version of the Standard Smelter List is available at: http://www.conflictfreesourcing.org."]
[null,"4.01a","CFSI Due Diligence Data Collection Workgroup","August 6th, 2015","No functional change. Elemetal CID corrected to read CID001322.","This version incorporates a few changes to the smelter list as reflected in the Standard Smelter List as of August 5, 2015.  The latest version of the Standard Smelter List is available at: http://www.conflictfreesourcing.org."]
[null,"4.01b","CFSI Due Diligence Data Collection Workgroup","November 16th, 2015","No functional change.","This version incorporates a few changes to the smelter list as reflected in the Standard Smelter List as of November 6, 2015.  The latest version of the Standard Smelter List is available at: http://www.conflictfreesourcing.org."]
[null,4.0999999999999996,"CFSI CMRT Team","2017-05-12","1. Corrections to all bugs and errors\n2. Enhancements which do not conflict with IPC-1755\na. Additions and clarifications in the instructions and definitions\nb. Smelter List Tab: Re-introduction of “smelter not yet identified” \nc. Smelter List Tab: Inclusion of drop down menu for smelter ID that triggers auto-population of columns B to J \n3. Translation improvements and addition of Turkish language \n4. Updates to the Smelter Reference List and Standard Smelter List\na. Updated lists and corrections \nb. ASCII character set alignment\n","This version incorporates a few changes to the smelter list as reflected in the Standard Smelter List as of March 23, 2016.  The latest version of the Standard Smelter List is available at: http://www.conflictfreesourcing.org."]
[null,4.2,"CFSI CMRT Team","2016-11-30","1. Corrections to all bugs and errors\n2. Enhancements which do not conflict with IPC-1755\na. Additions and clarifications in the instructions and definitions\nb. Update to ISO short names for countries\n3. Translation improvements\n4. Updates to the Smelter Reference List and Standard Smelter List\n","This version incorporates a few changes to the smelter list as reflected in the Standard Smelter List as of October 6, 2016.  The latest version of the Standard Smelter List is available at: http://www.conflictfreesourcing.org/conflict-free-smelter-program/exports/cmrt-export/. "]
[null,5,"CFSI CMRT Team","2017-05-12","1. Corrections to all bugs and errors\n2. Conformance to IPC-1755 in the wording of the following questions: Q. 1, Q. 2, Q. 5, A, F, I (formerly J); removal of former question G\na. Additions and clarifications in the instructions and definitions\nb. Update to ISO short names for countries\n3. Conformance to IPC-1755 use of ASCII character set for Standard Smelter Name in hidden column R on the smelter list\n4. Addition of ISO Country Codes and State/Province Codes in hidden columns S and T on the smelter list\n5. Renaming of \"Smelter Reference List\" to \"Smelter Look-up\"\n6. Updates to translations for all modified text\n7. Updates to the Smelter Look-up List and Standard Smelter List\n","This version incorporates a few changes to the smelter list as reflected in the Standard Smelter List as of March 17, 2017.  The latest version of the Standard Smelter List is available at: http://www.conflictfreesourcing.org/conflict-free-smelter-program/exports/cmrt-export/. "]
[null,5.01,"CFSI CMRT Team","2017-06-21","Corrections to checker tab errors","This version incorporates a few changes to the smelter list as reflected in the Standard Smelter List as of March 17, 2017.  The latest version of the Standard Smelter List is available at: http://www.conflictfreesourcing.org/conflict-free-smelter-program/exports/cmrt-export/. "]
[null,5.0999999999999996,"CFSI CMRT Team","2017-12-01","1. Corrections to all bugs and errors\n2. Enhancements which do not conflict with IPC-1755\na. Update to ISO short names for countries, states / provinces\n3. Updates to the Smelter Reference List and Standard Smelter List\n4. Change to .xlsx format\n","This version incorporates a few changes to the smelter list as reflected in the Standard Smelter List as of September 29, 2017.  The latest version of the Standard Smelter List is available at: http://www.conflictfreesourcing.org/conflict-free-smelter-program/exports/cmrt-export/. "]
[null,5.1100000000000003,"RMI MRT Team","2018-04-27","1. Corrections to all bugs and errors\n2. Enhancements which do not conflict with IPC-1755\na. Update to ISO short names for countries, states / provinces\n3. Updates to the Smelter Reference List and Standard Smelter List\n","This version incorporates a few changes to the smelter list as reflected in the Standard Smelter List as of March 6, 2018.  The latest version of the Standard Smelter List is available at: http://www.responsiblemineralsinitiative.org/responsible-minerals-assurance-process/exports/cmrt-export/. "]
[null,{"$f":"OFFSET(L!$C$1,MATCH(\"General\"&\"Cpy\",L!$A:$A,0)-1,SL,,)","v":"© 2018 Responsible Minerals Initiative. All rights reserved."}]

{"sheet":"Instructions","index":1,"n_rows":77,"n_cols":2,"rows_kept":77,"cut":false,"hidden":false,"merged":[]}
[{"$f":"OFFSET(L!$C$1,MATCH(\"Instructions\"&ADDRESS(ROW(),COLUMN(),4),L!$A:$A,0)-1,SL,,)","v":"RMI website: (www.responsiblemineralsinitiative.org)\nTraining and guidance, template, Responsible Minerals Assurance Process conformant smelter list."},"\n\n\n"]
[{"$f":"OFFSET(L!$C$1,MATCH(\"Instructions\"&ADDRESS(ROW(),COLUMN(),4),L!$A:$A,0)-1,SL,,)","v":"Introduction"},"\n"]
[{"$f":"OFFSET(L!$C$1,MATCH(\"Instructions\"&ADDRESS(ROW(),COLUMN(),4),L!$A:$A,0)-1,SL,,)","v":"This Conflict Minerals Reporting Template (Template) is a free, standardized reporting template created by the Responsible Minerals Initiative (RMI). The Template facilitates the transfer of information through the supply chain regarding mineral country of origin and smelters and refiners being utilized and supports compliance to legislation*. The template also facilitates the identification of new smelters and refiners to potentially undergo an audit via the Responsible Minerals Assurance Process**.\n\nThe CMRT was designed for downstream companies to disclose information about their supply chains up to but not including the smelter.  If you are a 3TG smelter or refiner, in accordance with the RMAP protocols, we recommend you enter your own name in the smelter list tab.\n\nWhen filling out the form, none of the cell entries should start will \"=\" or \"#.\""},"\n\n\n\n\n\n\n"]
[{"$f":"OFFSET(L!$C$1,MATCH(\"Instructions\"&ADDRESS(ROW(),COLUMN(),4),L!$A:$A,0)-1,SL,,)","v":"* In 2010, the U.S. Dodd-Frank Wall Street Reform and Consumer Protection Act was passed concerning “conflict minerals” originating from the Democratic Republic of the Congo (DRC) or adjoining countries. The SEC published final rules associated with the disclosure of the source of conflict minerals by U.S. publicly traded companies (see the rules at http://www.sec.gov/rules/final/2012/34-67716.pdf). The rules reference the OECD Due Diligence Guidance for Responsible Supply Chains of Minerals from Conflict-Affected and High-Risk Areas, (http://www.oecd.org/daf/inv/mne/GuidanceEdition2.pdf), which guides suppliers to establish policies, due diligence frameworks and management systems.\n** See information on the Responsible Minerals Initiative (www.responsiblemineralsinitiative.org)."},"\n\n\n\n\n\n\n\n\n"]
[]
[{"$f":"OFFSET(L!$C$1,MATCH(\"Instructions\"&ADDRESS(ROW(),COLUMN(),4),L!$A:$A,0)-1,SL,,)","v":"Instructions for completing Company Information questions (rows 8 - 22).\nProvide comments in ENGLISH only"},"\n"]
[{"$f":"OFFSET(L!$C$1,MATCH(\"Instructions\"&ADDRESS(ROW(),COLUMN(),4),L!$A:$A,0)-1,SL,,)","v":"Note:  Entries with (*) are mandatory fields. "}]
[{"$f":"OFFSET(L!$C$1,MATCH(\"Instructions\"&ADDRESS(ROW(),COLUMN(),4),L!$A:$A,0)-1,SL,,)","v":"1. Insert your company's Legal Name.  Please do not use abbreviations. In this field you have the option to add other commercial names, DBAs, etc."}]
[{"$f":"OFFSET(L!$C$1,MATCH(\"Instructions\"&ADDRESS(ROW(),COLUMN(),4),L!$A:$A,0)-1,SL,,)","v":"2. Select your company's Declaration Scope.  The options for scope are:\n\nA.  Company-wide\nB.  Product (or List of Products)\nC.  User-Defined \n\nFor \"Company-wide\", the declaration encompasses the entirety of a company's products or product substances produced by the parent company. Therefore if the user is reporting 3TG data at the company level, they will be reporting conflict minerals data on all products they manufacture. \n\nFor Scope selection of Product (or List of Products), a link to the worksheet tab for Product List will be displayed.  If this scope is chosen, it is mandatory to list the Manufacturer's Product Number of the products covered under the Scope of this Declaration in Column B of the Product List worksheet. It is optional to list the Manufacturer's Product Name in Column C of the Product List worksheet.\n\nFor Scope selection of \"User Defined\", it is mandatory that the user describes the scope to which the 3TG disclosure is applicable. The scope of this class shall be defined in a text field by the supplier and should be easily understood by customers or the receivers of the document. As an example, companies may provide a link to clarifying information.\n\nThis field is mandatory."},"\n\n\n"]
[{"$f":"OFFSET(L!$C$1,MATCH(\"Instructions\"&ADDRESS(ROW(),COLUMN(),4),L!$A:$A,0)-1,SL,,)","v":"3. Insert your company’s unique identifier number or code (DUNS number, VAT number, customer-specific identifier, etc.)"}]
[{"$f":"OFFSET(L!$C$1,MATCH(\"Instructions\"&ADDRESS(ROW(),COLUMN(),4),L!$A:$A,0)-1,SL,,)","v":"4. Insert the source for the unique identifier number or code (\"DUNS\", \"VAT\", \"Customer\", etc).  "}]
[{"$f":"OFFSET(L!$C$1,MATCH(\"Instructions\"&ADDRESS(ROW(),COLUMN(),4),L!$A:$A,0)-1,SL,,)","v":"5. Insert your full company address (street, city, state, country, postal code).  This field is optional."},"\n"]
[{"$f":"OFFSET(L!$C$1,MATCH(\"Instructions\"&ADDRESS(ROW(),COLUMN(),4),L!$A:$A,0)-1,SL,,)","v":"6. Insert the name of the person to contact regarding the contents of the declaration information. This field is mandatory."}]
[{"$f":"OFFSET(L!$C$1,MATCH(\"Instructions\"&ADDRESS(ROW(),COLUMN(),4),L!$A:$A,0)-1,SL,,)","v":"7. Insert the email address of the contact person.  If an email address is not available, state ‘‘not available’’ or ‘‘n/a.’’ A blank field may cause an error in form implementation.  This field is mandatory."}]
[{"$f":"OFFSET(L!$C$1,MATCH(\"Instructions\"&ADDRESS(ROW(),COLUMN(),4),L!$A:$A,0)-1,SL,,)","v":"8. Insert the telephone number for the contact. This field is mandatory."}]
[{"$f":"OFFSET(L!$C$1,MATCH(\"Instructions\"&ADDRESS(ROW(),COLUMN(),4),L!$A:$A,0)-1,SL,,)","v":"9. Insert the name of the person who  is responsible for the contents of the declaration information. The authorizer may be a different individual than the contact person. It is not correct to use the words ‘‘same’’ or similar identification to provide the name of the authorizer.  This field is mandatory."}]
[{"$f":"OFFSET(L!$C$1,MATCH(\"Instructions\"&ADDRESS(ROW(),COLUMN(),4),L!$A:$A,0)-1,SL,,)","v":"10. Insert the title for the Authorizing person. This field is optional."}]
[{"$f":"OFFSET(L!$C$1,MATCH(\"Instructions\"&ADDRESS(ROW(),COLUMN(),4),L!$A:$A,0)-1,SL,,)","v":"11. Insert the email address of the Authorizing person.  If an email address is not available, state ‘‘not available’’ or ‘‘n/a.’’ A blank field may cause an error in form implementation.  This field is mandatory."}]
[{"$f":"OFFSET(L!$C$1,MATCH(\"Instructions\"&ADDRESS(ROW(),COLUMN(),4),L!$A:$A,0)-1,SL,,)","v":"12. Insert the telephone number for the Authorizing person. This field is mandatory."}]
[{"$f":"OFFSET(L!$C$1,MATCH(\"Instructions\"&ADDRESS(ROW(),COLUMN(),4),L!$A:$A,0)-1,SL,,)","v":"13. Please enter the Date of Completion for this form using the format DD-MMM-YYYY.  This field is mandatory."}]
[{"$f":"OFFSET(L!$C$1,MATCH(\"Instructions\"&ADDRESS(ROW(),COLUMN(),4),L!$A:$A,0)-1,SL,,)","v":"14. As an example, the user may save the file name as:  companyname-date.xls (date as YYYY-MM-DD).  "},"\n"]
[]
[{"$f":"OFFSET(L!$C$1,MATCH(\"Instructions\"&ADDRESS(ROW(),COLUMN(),4),L!$A:$A,0)-1,SL,,)","v":"Instructions for completing the seven Due Diligence Questions (rows 24 - 65).\nProvide answers in ENGLISH only"},"\n"]
[{"$f":"OFFSET(L!$C$1,MATCH(\"Instructions\"&ADDRESS(ROW(),COLUMN(),4),L!$A:$A,0)-1,SL,,)","v":"These seven questions define the usage, origination and sourcing identification for each of the metals. The questions are designed to collect information about the use of 3TG in the company’s product(s) to allow for the determination of regulatory applicability. Responses to these questions shall represent the ‘Declaration Scope’ selected in the company information section.The responses to the questions in this section can be used to determine applicability and completeness of 3TG reporting."},"\n\n"]
[{"$f":"OFFSET(L!$C$1,MATCH(\"Instructions\"&ADDRESS(ROW(),COLUMN(),4),L!$A:$A,0)-1,SL,,)","v":"For each of the seven required questions, provide an answer for each metal using the pull down menu selections.The questions in this section must be completed for all 3TG. If the response for a given metal to questions 1 is positive, then  the subsequent questions shall be completed for that metal and the following due diligence questions (A to I) shall be completed about the company’s overall due diligence program."},"\n"]
[{"$f":"OFFSET(L!$C$1,MATCH(\"Instructions\"&ADDRESS(ROW(),COLUMN(),4),L!$A:$A,0)-1,SL,,)","v":"1. This is the first of two questions for which the response is used to determine whether the 3TG is within the scope of conflict minerals reporting requirements.  This question relies upon the guidance provided by the SEC in the final rules regarding the determination if a 3TG is “necessary to the functionality or production” of a product.   The SEC guidance is based upon the presumption that a company in the supply chain for a product would not intentionally add a 3TG to that product or any of a product’s sub-components if that 3TG was not necessary to the product’s generally expected function, use, or purpose.  Similarly, the guidance presumes that a 3TG would not be necessary to the production of a product unless it was intentionally included in the production process of that product. The response to this question serves to exclude any trace-level contaminants or naturally-occurring by-products such as tin in steel.  This question shall  be answered for each 3TG.\n\nThis question asks if any conflict minerals are used as raw material, component or additive in a product that you manufacture or contract to manufacture (including raw material and components). Impurities from raw materials, components, additives, abrasives, and cutting tools are outside the scope of the survey.\n\nThis question shall be answered for each 3TG. Valid responses to this question are either \"yes\" or \"no\". This question is mandatory."},"\n"]
[{"$f":"OFFSET(L!$C$1,MATCH(\"Instructions\"&ADDRESS(ROW(),COLUMN(),4),L!$A:$A,0)-1,SL,,)","v":"Some companies may require substantiation for a \"No\" answer that should be entered into the Comment Field."},"\n"]
[{"$f":"OFFSET(L!$C$1,MATCH(\"Instructions\"&ADDRESS(ROW(),COLUMN(),4),L!$A:$A,0)-1,SL,,)","v":"2. This question shall be answered for each 3TG for each the answer to question 1 is \"yes.\" This is the second of two questions for which the response is used to determine whether the 3TG is within the scope of conflict minerals reporting requirements as described in the SECs final rules regarding the determination if a 3TG is necessary to the functionality or production of a product.  This question is dependent upon the question and response to Question 1.  This question is intended to identify 3TGs which are intentionally added or included in the manufacturing process of a product where some amount of the 3TG remains in the finished product.  This includes 3TGs which may not have been intended to become part of the final product and may not be necessary to the functionality of the product but are only present as residuals of the manufacturing process.  In many cases, the manufacturer may have attempted to remove or facilitate consumption of the 3TG during the manufacturing process, however, some amount of the 3TG remains.  Should the 3TG, which is added or included during the manufacturing process, be completely removed such that none of the 3TG remains upon the completion of that process, the response to this question would be no.\n\nThis question shall be answered for each 3TG. Valid answers to this question are either \"yes\" or \"no\". This question is mandatory. "}]
[{"$f":"OFFSET(L!$C$1,MATCH(\"Instructions\"&ADDRESS(ROW(),COLUMN(),4),L!$A:$A,0)-1,SL,,)","v":"3. This is a declaration that any portion of the 3TGs contained in a product or multiple products originates from the DRC or an adjoining country (covered countries). The answer to this question should be \"yes\" if any smelter in the supply chain sources from the covered countries, even if those smelters are on the RMI compliant smelter and refiner list.  For more information, see RMI's due diligence guidance on conflict minerals here: http://www.responsiblemineralsinitiative.org/training-and-resources/publications-and-guidance/.\n\nThe answer to this question shall be \"yes\", \"no\", or \"unknown\". Substantiate a \"Yes\" answer in the comments section.\n\nThis question is mandatory for a specific metal if the response to Question 1 and 2 is “Yes” for that metal. "},"\n"]
[{"$f":"OFFSET(L!$C$1,MATCH(\"Instructions\"&ADDRESS(ROW(),COLUMN(),4),L!$A:$A,0)-1,SL,,)","v":"4. This is a declaration that identifies whether 3TGs contained in the product(s) necessary to the functionality of that product(s) originate from recycled or scrap sources. \n\nThe answer to this question shall be \"yes\", \"no\", or \"unknown\". This question is mandatory for a specific metal if the response to Question 1 and 2 is “Yes” for that metal. \n\nA \"Yes\" answer means that 100% of the 3TG comes from recycled or scrap sources.  A \"No\" answer means that some of the 3TG does not come from recycled or scrap sources. An \"Unknown\" answer means that the user does not know whether or not 100% of the 3TG comes from recycled or scrap sources.  "},"\n"]
[{"$f":"OFFSET(L!$C$1,MATCH(\"Instructions\"&ADDRESS(ROW(),COLUMN(),4),L!$A:$A,0)-1,SL,,)","v":"5. This is a question to determine whether a company has received conflict minerals disclosures from all direct suppliers reasonably believed to be providing 3TGs contained in the products covered by the scope of this declaration. Permissible responses to this question are:\n\n­ 100%\n­ Greater than 90%\n­ Greater than 75%\n- Greater than 50%\n- 50% or less\n- None\n\nThis question is mandatory for a specific metal if the response to Question 1 and 2 is “Yes” for that metal. "},"\n\n"]
[{"$f":"OFFSET(L!$C$1,MATCH(\"Instructions\"&ADDRESS(ROW(),COLUMN(),4),L!$A:$A,0)-1,SL,,)","v":"6. This question verifies if the supplier has reason to believe they have identified all of the smelters providing 3TGs in the products covered by this declaration. The answer to this question shall be \"Yes\" or \"No\", along with a comment in certain cases, e.g. list of smelters. \n\nThis question is mandatory for a specific metal if the response to Question 1 and 2 is “Yes” for that metal. "}]
[{"$f":"OFFSET(L!$C$1,MATCH(\"Instructions\"&ADDRESS(ROW(),COLUMN(),4),L!$A:$A,0)-1,SL,,)","v":"7. This question verifies that all of the smelters identified to be providing any of the 3TGs contained in the products covered by the scope of this declaration have been reported in this declaration. The answer to this question shall be \"yes\" or \"no\" along with a comment in certain cases, e.g. list of smelters. This question is mandatory for a specific metal if the response to Question 1 and 2 is “Yes” for that metal. "},"\n"]
[{"$f":"OFFSET(L!$C$1,MATCH(\"Instructions\"&ADDRESS(ROW(),COLUMN(),4),L!$A:$A,0)-1,SL,,)","v":"Provide comments in the Comment sections as required to clarify your responses."}]
[]
[{"$f":"OFFSET(L!$C$1,MATCH(\"Instructions\"&ADDRESS(ROW(),COLUMN(),4),L!$A:$A,0)-1,SL,,)","v":"Instructions for completing Questions A. – I. (rows 69 - 85).  Questions A. through I. are mandatory if the both of responses to Question 1 and 2 are “Yes” for any metal.\nProvide answers in ENGLISH only"},"\n"]
[{"$f":"OFFSET(L!$C$1,MATCH(\"Instructions\"&ADDRESS(ROW(),COLUMN(),4),L!$A:$A,0)-1,SL,,)","v":"The OECD Due Diligence Guidance for Responsible Supply Chains of Minerals from Conflict-affected and High-risk Areas (OECD Guidance) defines “Due Diligence” as “an on-going, proactive and reactive process through which companies can ensure that they respect human rights and do not contribute to conflict”.   Due diligence should be an integral part of your company’s overall conflict free sourcing strategy.   Questions A. thru I. are designed to assess your company’s conflict-free minerals sourcing due diligence activities. Responses to these questions shall represent the full scope of your company’s activities and shall not be limited to the ‘Declaration Scope’ selected in the company information section."},"\n\n\n\n\n\n\n\n"]
[{"$f":"OFFSET(L!$C$1,MATCH(\"Instructions\"&ADDRESS(ROW(),COLUMN(),4),L!$A:$A,0)-1,SL,,)","v":"A. This is a declaration to disclose whether a company has a conflict minerals sourcing policy. The answer to this question shall be \"yes\" or \"no.\" Comments shall be captured in a question comment field. \n\nThis question is mandatory."}]
[{"$f":"OFFSET(L!$C$1,MATCH(\"Instructions\"&ADDRESS(ROW(),COLUMN(),4),L!$A:$A,0)-1,SL,,)","v":"B. This is a declaration to disclose whether a company’s conflict minerals sourcing policy is available on the company website. The answer to this question shall be \"yes\" or \"no.\" If \"Yes\" the user shall specify the URL in a question comment field. \n\nThis question is mandatory."}]
[{"$f":"OFFSET(L!$C$1,MATCH(\"Instructions\"&ADDRESS(ROW(),COLUMN(),4),L!$A:$A,0)-1,SL,,)","v":"C. This is a question to determine whether a company requires their direct suppliers to be DRC conflict free. The answer to this question shall be \"yes\" or \"no.\"  See Definitions worksheet for definition of \"DRC conflict-free\".  Comments shall be captured in a question comment field. \n\nThis question is mandatory."},"\n\n\n\n"]
[{"$f":"OFFSET(L!$C$1,MATCH(\"Instructions\"&ADDRESS(ROW(),COLUMN(),4),L!$A:$A,0)-1,SL,,)","v":"D. This is a declaration to determine whether a company requires their direct suppliers to source 3TG from validated, conflict free smelters. The answer to this question shall be \"yes\" or \"no.\" Comments should be captured in a question comment field.\n\nThis question is mandatory."},"\n\n"]
[{"$f":"OFFSET(L!$C$1,MATCH(\"Instructions\"&ADDRESS(ROW(),COLUMN(),4),L!$A:$A,0)-1,SL,,)","v":"E. Please answer  \"yes\" or \"no\" to disclose whether your company has implemented conflict minerals sourcing due diligence measures. This declaration is not intended to provide the details of a company’s due diligence measures - just that a company has implemented due diligence measures. The aspects of acceptable due diligence measures shall be determined by the requestor and supplier.\n\nExamples of due diligence measures may include: communicating and incorporating into contracts (where possible) your expectations to suppliers on conflict-free mineral supply chain; identifying and assessing risks in the supply chain; designing and implementing a strategy to respond to identified risks; verifying your direct supplier’s compliance to its DRC conflict-free policy, etc.  These due diligence measure examples are consistent with the guidelines included in the internationally recognized OECD Guidance.\n\nThis question is mandatory."},"\n\n\n\n\n"]
[{"$f":"OFFSET(L!$C$1,MATCH(\"Instructions\"&ADDRESS(ROW(),COLUMN(),4),L!$A:$A,0)-1,SL,,)","v":"F. This is a question to disclose whether a company requests their supplier to fill out a conflict minerals declaration. Acceptable answers are listed below, in certain cases further explanation may be required, i.e., to provide the format used for collecting information. If the answer is \"Yes,\" using other format the user shall provide a comment in a question comment field.  Permissible responses to this question are:\n\n- Yes, in conformance with IPC-1755 [e.g., CMRT]\n- Yes, using other format (describe)\n- No\n\nThis question is mandatory."},"\n"]
[{"$f":"OFFSET(L!$C$1,MATCH(\"Instructions\"&ADDRESS(ROW(),COLUMN(),4),L!$A:$A,0)-1,SL,,)","v":"G. Please answer “Yes” or “No”.  In the comments section, you can provide additional information on your approach. Examples could be:\n\n “3rd party audit” - on-site audits of your suppliers conducted by independent third parties.  \n “Documentation review only” - a reviewof supplier submitted records and documentation conducted by independent third parties and, or your company personnel.   \n “Internal audit” - on-site audits of your suppliers conducted by your company personnel.\n\nThis question is mandatory."},"\n\n\n\n\n\n\n"]
[{"$f":"OFFSET(L!$C$1,MATCH(\"Instructions\"&ADDRESS(ROW(),COLUMN(),4),L!$A:$A,0)-1,SL,,)","v":"H. This is a question to disclose whether a company’s review process includes corrective action management. The answer to this question shall be \"yes\" or \"no.\" Comments shall be captured in a question comment field. \n\nThis question is mandatory."},"\n"]
[{"$f":"OFFSET(L!$C$1,MATCH(\"Instructions\"&ADDRESS(ROW(),COLUMN(),4),L!$A:$A,0)-1,SL,,)","v":"I. This is a question to disclose whether a company is subject to the SEC rule. The answer to this question shall be \"yes\" or \"no.\" Comments shall be captured in a question comment field. This question is mandatory. For more information please refer to www.sec.gov."},"\n\n"]
[]
[{"$f":"OFFSET(L!$C$1,MATCH(\"Instructions\"&ADDRESS(ROW(),COLUMN(),4),L!$A:$A,0)-1,SL,,)","v":"Note:  Columns with (*) are mandatory fields"},"\n"]
[{"$f":"OFFSET(L!$C$1,MATCH(\"Instructions\"&ADDRESS(ROW(),COLUMN(),4),L!$A:$A,0)-1,SL,,)","v":"This template allows for smelter identification using the Smelter Look-up.  Columns B, and C must be completed in order from left to right to utilize the Smelter Look-up feature.\nUse a separate line for each metal/smelter/country combination."}]
[{"$f":"OFFSET(L!$C$1,MATCH(\"Instructions\"&ADDRESS(ROW(),COLUMN(),4),L!$A:$A,0)-1,SL,,)","v":"1. Smelter Identification Input Column - If you know the Smelter Identification Number, input the number in Column A (columns B, C, E, F, G, I, and J will auto-populate).  Column A does not autopopulate."},"\n\n\n"]
[{"$f":"OFFSET(L!$C$1,MATCH(\"Instructions\"&ADDRESS(ROW(),COLUMN(),4),L!$A:$A,0)-1,SL,,)","v":"2. Metal (*)   -   Use the pull down menu to select the metal for which you are entering smelter information.  This field is mandatory."},"\n"]
[{"$f":"OFFSET(L!$C$1,MATCH(\"Instructions\"&ADDRESS(ROW(),COLUMN(),4),L!$A:$A,0)-1,SL,,)","v":"3. Smelter Look-up (*) - Select from dropdown.  This is the list of known smelters as of template release date.  If smelter is not listed select 'Smelter Not Listed'.  This will allow you to enter the name of the smelter in Column D.  If you do not know the name or location of the smelter, select 'Smelter Not Yet Identified.'  For this option,  columns D and E will autopopulate to say, 'unknown.'  This field is mandatory."}]
[{"$f":"OFFSET(L!$C$1,MATCH(\"Instructions\"&ADDRESS(ROW(),COLUMN(),4),L!$A:$A,0)-1,SL,,)","v":"4. Smelter Name (1)- Fill in smelter name if you selected \"Smelter Not Listed\" in column C.  This field will auto-populate when a smelter name in selected in Column C.  This field is mandatory."},"\n"]
[{"$f":"OFFSET(L!$C$1,MATCH(\"Instructions\"&ADDRESS(ROW(),COLUMN(),4),L!$A:$A,0)-1,SL,,)","v":"5. Smelter Country (*) – This field will auto-populate when a smelter name is selected in column C. If you selected \"Smelter Not Listed\" in column C, use the pull down menu to select the country location of the smelter.  This field is mandatory."},"\n\n\n"]
[{"$f":"OFFSET(L!$C$1,MATCH(\"Instructions\"&ADDRESS(ROW(),COLUMN(),4),L!$A:$A,0)-1,SL,,)","v":"6. Smelter Identification - This is a unique identifier assigned to a smelter or refiner according to an established smelter and refinery identification system. It is expected that multiple names or aliases could be used to describe a single smelter or refiner and therefore multiple names or aliases could be associated to a single ‘Smelter ID’."},"\n\n\n\n"]
[{"$f":"OFFSET(L!$C$1,MATCH(\"Instructions\"&ADDRESS(ROW(),COLUMN(),4),L!$A:$A,0)-1,SL,,)","v":"7. Source of Smelter Identification Number - This is the source of the Smelter Identification Number entered in Column F.  If a smelter name was selected in Column C using the dropdown box, this field will auto-populate. "},"\n\n\n"]
[{"$f":"OFFSET(L!$C$1,MATCH(\"Instructions\"&ADDRESS(ROW(),COLUMN(),4),L!$A:$A,0)-1,SL,,)","v":"8. Smelter Street -  Provide the street name on which the smelter is located. This field is optional."},"\n\n\n"]
[{"$f":"OFFSET(L!$C$1,MATCH(\"Instructions\"&ADDRESS(ROW(),COLUMN(),4),L!$A:$A,0)-1,SL,,)","v":"9. Smelter City – Provide the city name of where the smelter is located. This field is optional."},"\n\n\n"]
[{"$f":"OFFSET(L!$C$1,MATCH(\"Instructions\"&ADDRESS(ROW(),COLUMN(),4),L!$A:$A,0)-1,SL,,)","v":"10.. Smelter Location: State/Province, if applicable – Provide the state or province where the smelter is located. This field is optional."},"\n"]
[{"$f":"OFFSET(L!$C$1,MATCH(\"Instructions\"&ADDRESS(ROW(),COLUMN(),4),L!$A:$A,0)-1,SL,,)","v":"11. Smelter Contact Name – The Conflict Minerals Reporting Template (CMRT) is circulated among companies in the requesting company's supply chain to ensure compliance with the OECD Due Diligence Guidance for Responsible Supply Chains of Minerals from Conflict-Affected and High-Risk Areas and the U.S. Securities and Exchange Commission Final Rule on conflict minerals.\n\nIf the template is circulated in a country where laws protecting personal information exist, sharing personal contact information in the CMRT may violate related regulations. Therefore, it is recommended that the requesting company take precautions such as obtaining the contact person's permission to share the information with other companies in the supply chain when completing \"Smelter Contact Name\" and the \"Smelter Contact Email\" columns.\n\nIf you have permission to share this information, please fill in the name of the Smelter Facility Contact person who you worked with."},"\n\n"]
[{"$f":"OFFSET(L!$C$1,MATCH(\"Instructions\"&ADDRESS(ROW(),COLUMN(),4),L!$A:$A,0)-1,SL,,)","v":"12. Smelter Contact Email – Fill in the email address of the Smelter Facility contact person who was identified as the Smelter Contact Name.  Example: John.Smith@SmelterXXX.com.  Please review the instructions for Smelter Contact Name before completing this field."},"\n\n"]
[{"$f":"OFFSET(L!$C$1,MATCH(\"Instructions\"&ADDRESS(ROW(),COLUMN(),4),L!$A:$A,0)-1,SL,,)","v":"13. Name of Mine(s) - This field allows a company to define the actual mines being used by the smelter.  Please enter the actual mine names if known.  If 100% of the smelter’s feedstock originates from recycled or scrap sources, enter \"Recycled\" or \"Scrap\" in place of the name of the mine and answer \"Yes\" in Column P.\n\n\"RCOI confirmed as per RMI\" may be an acceptable answer to this question."},"\n\n\n"]
[{"$f":"OFFSET(L!$C$1,MATCH(\"Instructions\"&ADDRESS(ROW(),COLUMN(),4),L!$A:$A,0)-1,SL,,)","v":"14. Location (Country) of Mine(s) - This is a free form text field that allows a company to define the location of the mines being used by the smelter.   Please enter the country of the mine(s).  If the country of origin is not known, enter \"Unknown\".   If 100% of the smelter’s feedstock originates from recycled or scrap sources, enter \"Recycled\" or \"Scrap\" in place of the country of origin.  This field is optional.\n\n\"RCOI confirmed as per RMI\" may be an acceptable answer to this question."},"\n\n\n"]
[{"$f":"OFFSET(L!$C$1,MATCH(\"Instructions\"&ADDRESS(ROW(),COLUMN(),4),L!$A:$A,0)-1,SL,,)","v":"15. Indicates whether the smelter solely obtains inputs for its smelting process(es) from recycled or scrap sources. This question is optional.  Permissible responses to this question are:\n\n- Yes\n- No\n- Unknown"}]
[{"$f":"OFFSET(L!$C$1,MATCH(\"Instructions\"&ADDRESS(ROW(),COLUMN(),4),L!$A:$A,0)-1,SL,,)","v":"16. Comments – free form text field to enter any comments concerning the smelter.  Example: smelter is being acquired by Company YYY"}]
[{"$f":"OFFSET(L!$C$1,MATCH(\"Instructions\"&ADDRESS(ROW(),COLUMN(),4),L!$A:$A,0)-1,SL,,)","v":"The Checker worksheet is used to verify if all the required information in the Template has been completed. It is updated real-time and can be reviewed at any time while using the Template. It is used to verify completion.\n\nTo use this sheet, verify if all required fields have been completed (completed fields will be highlighted in green). If not, look for the red field(s) and review the \"Notes\" in Column C for required actions. You may use the URL in Column D to directly access the field for completion."}]
[]
[{"$f":"OFFSET(L!$C$1,MATCH(\"Instructions\"&ADDRESS(ROW(),COLUMN(),4),L!$A:$A,0)-1,SL,,)","v":"The Responsible Minerals Assurance Process (“Process”) Conformant Smelter List (the \"List\") and Process templates and tools, including, without limitation, the Conflict Minerals Reporting Template  (collectively “Tools”), including, without limitation, all information provided therein, are provided for informational purposes only and are current as of the date set forth therein. Any inaccuracy or omission in the List or any Tool is not the responsibility of the Responsible Business Alliance, a Delaware non-stock corporation (\"RBA\"). Determination of whether and/or how to use all or any portion of the List or any Tool is to be made in the User’s sole and absolute discretion. Prior to using the List or any Tool, you should review it with your own legal counsel.  No part of the List or any Tool constitutes legal advice. Use of the List or any Tool is voluntary."}]
[]
[{"$f":"OFFSET(L!$C$1,MATCH(\"Instructions\"&ADDRESS(ROW(),COLUMN(),4),L!$A:$A,0)-1,SL,,)","v":"To the fullest extent permitted by applicable laws, RBA renounces any liability for any losses, expenses or damages of any nature, including, without limitation, special, incidental, punitive, direct, indirect or consequential damages or lost income or profits, resulting from or arising out of the User’s use of the List or any Tool, whether arising in tort, contract, statute, or otherwise, even if shown that they were advised of the possibility of such damages. "},"\n"]
[{"$f":"OFFSET(L!$C$1,MATCH(\"Instructions\"&ADDRESS(ROW(),COLUMN(),4),L!$A:$A,0)-1,SL,,)","v":"In consideration for access and use of the List and/or any Tool, THE USER hereby agrees to and does (a) release and forever discharge RBA, as well as their respective officers, directors, agents, employees, volunteers, representatives, contractors, successors, and assigns, from any and all claims, actions, losses, suits, damages, judgments, levies, and executions, which the User has ever had, has, or ever can, shall, or may have or claim to have against RBA, as well as their respective officers, directors, agents, employees, volunteers, representatives, contractors, successors, and assigns, resulting from or arising out of the List or any Tool or use thereof, and agrees to (b) indemnify, defend and hold harmless RBA, as well as their respective officers, directors, agents, employees, volunteers, representatives, contractors, successors, and assigns, from any and all claims,  actions, losses, suits, damages, judgments, levies, and executions resulting from or arising out of the USER'S use of the List or any Tool."},"\n\n\n\n\n\n\n\n\n\n"]
[{"$f":"OFFSET(L!$C$1,MATCH(\"Instructions\"&ADDRESS(ROW(),COLUMN(),4),L!$A:$A,0)-1,SL,,)","v":"If any part of any provision of these Terms and Conditions shall be invalid or unenforceable under applicable law, said part shall be deemed ineffective to the extent of such invalidity or unenforceability only, without in any way affecting the remaining parts of said provision or the remaining provisions of these Terms and Conditions."},"\n\n\n\n\n"]
[{"$f":"OFFSET(L!$C$1,MATCH(\"Instructions\"&ADDRESS(ROW(),COLUMN(),4),L!$A:$A,0)-1,SL,,)","v":"By accessing and using the List or any Tool, and in consideration thereof, the User agrees to the foregoing. "},"\n\n\n\n"]
[null,"\n"]
[{"$f":"OFFSET(L!$C$1,MATCH(\"General\"&\"Cpy\",L!$A:$A,0)-1,SL,,)","v":"© 2018 Responsible Minerals Initiative. All rights reserved."}]
["Return to declaration tab"]
["Revision 5.11 April 27, 2018"]

{"sheet":"Definitions","index":2,"n_rows":31,"n_cols":5,"rows_kept":31,"cut":false,"hidden":false,"merged":[[0,0,0,3],[30,1,30,2],[1,3,31,3]]}
[]
[null,{"$f":"OFFSET(L!$C$1,MATCH(\"Definitions\"&ADDRESS(ROW(),COLUMN(),4),L!$A:$A,0)-1,SL,,)","v":"ITEM"},{"$f":"OFFSET(L!$C$1,MATCH(\"Definitions\"&ADDRESS(ROW(),COLUMN(),4),L!$A:$A,0)-1,SL,,)","v":"DEFINITION"}]
[null,{"$f":"OFFSET(L!$C$1,MATCH(\"Definitions\"&ADDRESS(ROW(),COLUMN(),4),L!$A:$A,0)-1,SL,,)","v":"3TG"},{"$f":"OFFSET(L!$C$1,MATCH(\"Definitions\"&ADDRESS(ROW(),COLUMN(),4),L!$A:$A,0)-1,SL,,)","v":"Tantalum, tin, tungsten, gold"},null,"\n\n"]
[null,{"$f":"OFFSET(L!$C$1,MATCH(\"Definitions\"&ADDRESS(ROW(),COLUMN(),4),L!$A:$A,0)-1,SL,,)","v":"Authorizer"},{"$f":"OFFSET(L!$C$1,MATCH(\"Definitions\"&ADDRESS(ROW(),COLUMN(),4),L!$A:$A,0)-1,SL,,)","v":"This field identifies the person responsible for the content of the declaration. The authorizer may be a different individual from the contact person. It is not correct to use the words ‘‘same’’ or similar identification to provide the name of the authorizer. "}]
[null,{"$f":"OFFSET(L!$C$1,MATCH(\"Definitions\"&ADDRESS(ROW(),COLUMN(),4),L!$A:$A,0)-1,SL,,)","v":"Conflict Mineral"},{"$f":"OFFSET(L!$C$1,MATCH(\"Definitions\"&ADDRESS(ROW(),COLUMN(),4),L!$A:$A,0)-1,SL,,)","v":"As defined in  2010 United States legislation, Dodd-Frank Wall Street Reform and Consumer Protection Act, Section 1502(e)(4):\nCONFLICT MINERAL.—The term ‘‘conflict mineral’’ means—\n(A) columbite-tantalite (coltan), cassiterite, gold, wolframite, or their derivatives; or\n(B) any other mineral or its derivatives determined by the Secretary of State to be financing conflict in the Democratic Republic of the Congo or an adjoining country.  (available at http://www.sec.gov/about/laws/wallstreetreform-cpa.pdf)"},null,"\n\n\n"]
[null,{"$f":"OFFSET(L!$C$1,MATCH(\"Definitions\"&ADDRESS(ROW(),COLUMN(),4),L!$A:$A,0)-1,SL,,)","v":"Covered Country(ies)"},{"$f":"OFFSET(L!$C$1,MATCH(\"Definitions\"&ADDRESS(ROW(),COLUMN(),4),L!$A:$A,0)-1,SL,,)","v":"Covered Country(ies) as defined by the United States Dodd-Frank Wall Street Reform and Consumer Protection Act of 2010. These countries include the Democratic Republic of the Congo and the nine countries with which it shares an internationally recognized border: Angola, Burundi, Central African Republic, Republic of the Congo, Rwanda, South Sudan, Tanzania, Uganda, Zambia.  "},null,"\n\n\n"]
[null,{"$f":"OFFSET(L!$C$1,MATCH(\"Definitions\"&ADDRESS(ROW(),COLUMN(),4),L!$A:$A,0)-1,SL,,)","v":"Declaration Scope or Class"},{"$f":"OFFSET(L!$C$1,MATCH(\"Definitions\"&ADDRESS(ROW(),COLUMN(),4),L!$A:$A,0)-1,SL,,)","v":"For the purposes of this template, “scope” describes the applicability of the information provided by the reporting company.  The scope may encompass the entirety of a company’s services and/or products, or at a company’s discretion, the template may be used to report on a specific product (or products), or, be ‘User defined’.  The ‘User defined’ scope selection or class may be used to describe any subset of a company’s operation or product portfolio."},null,"\n\n\n\n\n\n\n\n"]
[null,{"$f":"OFFSET(L!$C$1,MATCH(\"Definitions\"&ADDRESS(ROW(),COLUMN(),4),L!$A:$A,0)-1,SL,,)","v":"Dodd-Frank"},{"$f":"OFFSET(L!$C$1,MATCH(\"Definitions\"&ADDRESS(ROW(),COLUMN(),4),L!$A:$A,0)-1,SL,,)","v":"2010 United States legislation, Dodd-Frank Wall Street Reform and Consumer Protection Act, Section 1502 (“Dodd-Frank”) (http://www.sec.gov/about/laws/wallstreetreform-cpa.pdf)"},null,"\n\n\n"]
[null,{"$f":"OFFSET(L!$C$1,MATCH(\"Definitions\"&ADDRESS(ROW(),COLUMN(),4),L!$A:$A,0)-1,SL,,)","v":"DRC"},{"$f":"OFFSET(L!$C$1,MATCH(\"Definitions\"&ADDRESS(ROW(),COLUMN(),4),L!$A:$A,0)-1,SL,,)","v":"Democratic Republic of Congo"},null,"\n\n"]
[null,{"$f":"OFFSET(L!$C$1,MATCH(\"Definitions\"&ADDRESS(ROW(),COLUMN(),4),L!$A:$A,0)-1,SL,,)","v":"DRC conflict-free"},{"$f":"OFFSET(L!$C$1,MATCH(\"Definitions\"&ADDRESS(ROW(),COLUMN(),4),L!$A:$A,0)-1,SL,,)","v":"Products that do not contain minerals that directly or indirectly finance or benefit armed groups in the Democratic Republic of the Congo or an adjoining country.  Source: 2010 United States legislation, Dodd-Frank Wall Street Reform and Consumer Protection Act, Section 1502 (http://www.sec.gov/about/laws/wallstreetreform-cpa.pdf)"},null,"\n\n"]
[null,{"$f":"OFFSET(L!$C$1,MATCH(\"Definitions\"&ADDRESS(ROW(),COLUMN(),4),L!$A:$A,0)-1,SL,,)","v":"Gold (Au) refiner (smelter)"},{"$f":"OFFSET(L!$C$1,MATCH(\"Definitions\"&ADDRESS(ROW(),COLUMN(),4),L!$A:$A,0)-1,SL,,)","v":"A gold refiner is a metallurgical operation that produces fine gold with a concentration of 99.5% or higher from gold and gold-bearing materials with lower concentrations.  Refer to the RMAP audit protocol for this metal for a complete description: http://www.responsiblemineralsinitiative.org/smelter-introduction/."},null,"\n\n"]
[null,{"$f":"OFFSET(L!$C$1,MATCH(\"Definitions\"&ADDRESS(ROW(),COLUMN(),4),L!$A:$A,0)-1,SL,,)","v":"Independent Third-Party Audit Firm"},{"$f":"OFFSET(L!$C$1,MATCH(\"Definitions\"&ADDRESS(ROW(),COLUMN(),4),L!$A:$A,0)-1,SL,,)","v":"With respect to smelter audits, an “Independent Third-Party Audit Firm” is a private sector organization competent in evaluating the smelter or refiner’s materials traceability against the standards of the RMAP or equivalent audit protocols.  To maintain neutrality and impartiality, such organization and its audit team members must have no conflicts of interest with the auditee."},null,"\n\n\n\n"]
[null,{"$f":"OFFSET(L!$C$1,MATCH(\"Definitions\"&ADDRESS(ROW(),COLUMN(),4),L!$A:$A,0)-1,SL,,)","v":"Intentionally added"},{"$f":"OFFSET(L!$C$1,MATCH(\"Definitions\"&ADDRESS(ROW(),COLUMN(),4),L!$A:$A,0)-1,SL,,)","v":"Intentionally added is commonly known as the deliberate use of a substance, or in this case metal, in the formulation of a product where continued presence is desired to provide a specific characteristic, appearance or quality.\n\nWhile the SEC does not define the phrase “intentionally added” in the final rule*, the rule’s preamble states:\n“[W]e agree that being intentionally added, rather than being a naturally-occurring by-product, is a significant factor in determining whether a conflict mineral is ‘‘necessary to the functionality or production’’ of a product. This is true regardless of who intentionally added the conflict mineral to the product so long as it is contained in the product. [D]etermining whether a conflict mineral is considered ‘‘necessary’’ to a product should not depend on whether the conflict mineral is added directly to the product by the issuer or whether it is added to a component of the product that the issuer receives from a third party. Instead, the issuer should ‘report on the totality of the product and work with suppliers to comply with the requirements.’ Therefore, in determining whether a conflict mineral is ‘‘necessary’’ to a product, an issuer must consider any conflict mineral contained in its product, even if that conflict mineral is only in the product because it was included as part of a component of the product that was manufactured originally by a third party.”\n*(56296 Federal Register / Vol. 77, No. 177 / Wednesday, September 12, 2012 / Rules and Regulations)"},null,"\n\n"]
[null,{"$f":"OFFSET(L!$C$1,MATCH(\"Definitions\"&ADDRESS(ROW(),COLUMN(),4),L!$A:$A,0)-1,SL,,)","v":"IPC"},{"$f":"OFFSET(L!$C$1,MATCH(\"Definitions\"&ADDRESS(ROW(),COLUMN(),4),L!$A:$A,0)-1,SL,,)","v":"IPC (www.IPC.org) is a global industry association based in Bannockburn, Ill., dedicated to the competitive excellence and financial success of its 3,400 member companies which represent all facets of the electronics industry, including design, printed board manufacturing, electronics assembly and test. As a member-driven organization and leading source for industry standards, training, market research and public policy advocacy, IPC supports programs to meet the needs of an estimated $2.0 trillion global electronics industry. IPC maintains additional offices in Taos, N.M.; Washington, D.C.; Stockholm, Sweden; Moscow, Russia; Bangalore, India; Bangkok, Thailand; and Shanghai, Shenzhen, Chengdu, Suzhou and Beijing, China."},null,"\n\n"]
[null,{"$f":"OFFSET(L!$C$1,MATCH(\"Definitions\"&ADDRESS(ROW(),COLUMN(),4),L!$A:$A,0)-1,SL,,)","v":"IPC-1755 Conflict Minerals Data Exchange Standard"},{"$f":"OFFSET(L!$C$1,MATCH(\"Definitions\"&ADDRESS(ROW(),COLUMN(),4),L!$A:$A,0)-1,SL,,)","v":"This IPC standard establishes the requirements for exchanging conflict minerals data between suppliers and their customers. To meet the needs of a broad range of users, this standard provides flexibility in the scope of the products covered within a single declaration. This standard is not a compliance guide. "},null,"\n\n"]
[null,{"$f":"OFFSET(L!$C$1,MATCH(\"Definitions\"&ADDRESS(ROW(),COLUMN(),4),L!$A:$A,0)-1,SL,,)","v":"Necessary for the Functionality of a Product"},{"$f":"OFFSET(L!$C$1,MATCH(\"Definitions\"&ADDRESS(ROW(),COLUMN(),4),L!$A:$A,0)-1,SL,,)","v":"The SEC does not provide a formal definition of this phrase in the final rule*, however it provides some guidance: A conflict mineral will be considered to be necessary to its functionality of a product if it meets the following: 1) is intentionally added to the product or any component of the product and is not a naturally-occurring byproduct; 2) is necessary to the product’s generally expected function, use or purpose; and 3) is incorporated for the purpose of ornamentation, decoration, or embellishment, whether the primary purpose of the product is ornamentation or decoration.\n\nNOTE: The conflict mineral must be contained in the product to be applicable.\n\n*(56296 Federal Register / Vol. 77, No. 177 / Wednesday, September 12, 2012 / Rules and Regulations)"},null,"\n\n"]
[null,{"$f":"OFFSET(L!$C$1,MATCH(\"Definitions\"&ADDRESS(ROW(),COLUMN(),4),L!$A:$A,0)-1,SL,,)","v":"Necessary for the Production of a Product"},{"$f":"OFFSET(L!$C$1,MATCH(\"Definitions\"&ADDRESS(ROW(),COLUMN(),4),L!$A:$A,0)-1,SL,,)","v":"The SEC does not provide a formal definition of this phrase in the final rule*; however, it provides some guidance: A conflict mineral will be considered to be necessary to the production of a product when: 1) it is intentionally included in the product’s production process, other than if it is included in a tool, machine, or equipment used to produce the product (such as computers or power lines); 2) it is included in the product (MUST be contained in the product to be applicable); and 3) it is necessary to the product.\n\n*(56296 Federal Register / Vol. 77, No. 177 / Wednesday, September 12, 2012 / Rules and Regulations)\n"},null,"\n\n"]
[null,{"$f":"OFFSET(L!$C$1,MATCH(\"Definitions\"&ADDRESS(ROW(),COLUMN(),4),L!$A:$A,0)-1,SL,,)","v":"OECD"},{"$f":"OFFSET(L!$C$1,MATCH(\"Definitions\"&ADDRESS(ROW(),COLUMN(),4),L!$A:$A,0)-1,SL,,)","v":"Organisation for Economic Co-operation and Development"}]
[null,{"$f":"OFFSET(L!$C$1,MATCH(\"Definitions\"&ADDRESS(ROW(),COLUMN(),4),L!$A:$A,0)-1,SL,,)","v":"Product"},{"$f":"OFFSET(L!$C$1,MATCH(\"Definitions\"&ADDRESS(ROW(),COLUMN(),4),L!$A:$A,0)-1,SL,,)","v":"A company’s Product or Finished good is a material or item which has completed the final stage of manufacturing and/or processing and is available for distribution or sale to customers."}]
[null,{"$f":"OFFSET(L!$C$1,MATCH(\"Definitions\"&ADDRESS(ROW(),COLUMN(),4),L!$A:$A,0)-1,SL,,)","v":"RBA"},{"$f":"OFFSET(L!$C$1,MATCH(\"Definitions\"&ADDRESS(ROW(),COLUMN(),4),L!$A:$A,0)-1,SL,,)","v":"Responsible Business Alliance (www.responsiblebusiness.org)"}]
[null,{"$f":"OFFSET(L!$C$1,MATCH(\"Definitions\"&ADDRESS(ROW(),COLUMN(),4),L!$A:$A,0)-1,SL,,)","v":"Recycled or Scrap Sources"},{"$f":"OFFSET(L!$C$1,MATCH(\"Definitions\"&ADDRESS(ROW(),COLUMN(),4),L!$A:$A,0)-1,SL,,)","v":"Recycled or scrap sources are recycled metals, that are reclaimed end-user or post-consumer products, or scrap processed metals created during product manufacturing. Recycled metal includes excess, obsolete, defective, and scrap metal materials that contain refined or processed metals that are appropriate to recycle in the production of tin, tantalum, tungsten and/or gold. Minerals partially processed, unprocessed or byproducts from other ores are not included in the definition of recycled metal."}]
[null,{"$f":"OFFSET(L!$C$1,MATCH(\"Definitions\"&ADDRESS(ROW(),COLUMN(),4),L!$A:$A,0)-1,SL,,)","v":"Responsible Minerals Assurance Process (RMAP)"},{"$f":"OFFSET(L!$C$1,MATCH(\"Definitions\"&ADDRESS(ROW(),COLUMN(),4),L!$A:$A,0)-1,SL,,)","v":"The Responsible Minerals Assurance Process (RMAP) is a process developed by the RBA to enhance company capability to verify the responsible sourcing of metals. Further details of the RMAP can be found here: http://www.responsiblemineralsinitiative.org/responsible-minerals-assurance-process/."}]
[null,{"$f":"OFFSET(L!$C$1,MATCH(\"Definitions\"&ADDRESS(ROW(),COLUMN(),4),L!$A:$A,0)-1,SL,,)","v":"Responsible Minerals Initiative"},{"$f":"OFFSET(L!$C$1,MATCH(\"Definitions\"&ADDRESS(ROW(),COLUMN(),4),L!$A:$A,0)-1,SL,,)","v":"Founded in 2008 by members of the Responsible Business Alliance, the Responsible Minerals Initiative has grown into one of the most utilized and respected resources for companies addressing conflict minerals issues in their supply chains. Over 360 companies from ten different industries participate in the CFSI today, contributing to a range of tools and resources including the Responsible Minerals Assurance Process, the Conflict Minerals Reporting Template, Reasonable Country of Origin Inquiry data and a range of guidance documents on conflict minerals sourcing. The RMI also runs regular workshops on conflict minerals issues and contributes to policy development and debates with leading civil society organizations and governments. Additional information is available at http://www.responsiblemineralsinitiative.org."}]
[null,{"$f":"OFFSET(L!$C$1,MATCH(\"Definitions\"&ADDRESS(ROW(),COLUMN(),4),L!$A:$A,0)-1,SL,,)","v":"RMAP Conformant Smelter List"},{"$f":"OFFSET(L!$C$1,MATCH(\"Definitions\"&ADDRESS(ROW(),COLUMN(),4),L!$A:$A,0)-1,SL,,)","v":"The Responsible Minerals Assurance Process (RMAP) Conformant Smelter List is a published list of smelters and refiners that have undergone assessment through the RMAP, a program of the Responsible Minerals Initiative (RMI) or industry equivalent program (such as Responsible Jewellery Council or London Bullion Market Association) and have been validated to be in conformance with the protocols. If a smelter or refiner is not on the list, it has either not completed a RMAP assessment or is not in conformance with the RMAP protocol. \n\nA list of smelters and refiners which have been validated to be conformant to the RMAP can be found at www.responsiblemineralsinitiative.org. "},null,"\n\n"]
[null,{"$f":"OFFSET(L!$C$1,MATCH(\"Definitions\"&ADDRESS(ROW(),COLUMN(),4),L!$A:$A,0)-1,SL,,)","v":"SEC"},{"$f":"OFFSET(L!$C$1,MATCH(\"Definitions\"&ADDRESS(ROW(),COLUMN(),4),L!$A:$A,0)-1,SL,,)","v":"U.S. Securities and Exchange Commission (www.sec.gov)"},null,"\n\n\n\n"]
[null,{"$f":"OFFSET(L!$C$1,MATCH(\"Definitions\"&ADDRESS(ROW(),COLUMN(),4),L!$A:$A,0)-1,SL,,)","v":"Smelter"},{"$f":"OFFSET(L!$C$1,MATCH(\"Definitions\"&ADDRESS(ROW(),COLUMN(),4),L!$A:$A,0)-1,SL,,)","v":"A smelter or refiner is a company that procures and processes mineral ore, slag and/or materials from recycled or scrap sources into refined metal or metal containing intermediate products.  The output can be pure (99.5% or greater) metals, powders, ingots, bars, grains, oxides or salts. The terms “smelter” and “refiner” are used interchangeably throughout various publications. "},null,"\n\n"]
[null,{"$f":"OFFSET(L!$C$1,MATCH(\"Definitions\"&ADDRESS(ROW(),COLUMN(),4),L!$A:$A,0)-1,SL,,)","v":"Smelter Identification Number"},{"$f":"OFFSET(L!$C$1,MATCH(\"Definitions\"&ADDRESS(ROW(),COLUMN(),4),L!$A:$A,0)-1,SL,,)","v":"A unique identification number the RMI assigns to companies that have been reported by members of the supply chain as smelters or refiners, whether or not they have been verified to meet the characteristics of smelters or refiners as defined in the RMAP audit protocols."},null,"\n\n\n"]
[null,{"$f":"OFFSET(L!$C$1,MATCH(\"Definitions\"&ADDRESS(ROW(),COLUMN(),4),L!$A:$A,0)-1,SL,,)","v":"Tantalum (Ta) smelter"},{"$f":"OFFSET(L!$C$1,MATCH(\"Definitions\"&ADDRESS(ROW(),COLUMN(),4),L!$A:$A,0)-1,SL,,)","v":"A tantalum smelter (also known as a processor) is defined as a company that converts Ta-containing ores, concentrates, slags or secondary materials into tantalum intermediate products or other tantalum containing products for direct sales or further processing into Ta-containing products, such as Ta powders, Ta components, Ta oxides, alloys, wires, sintered bars, etc.  Refer to the RMAP audit protocol for this metal for a complete description at: http://www.responsiblemineralsinitiative.org/smelter-introduction/."},null,"\n\n\n\n"]
[null,{"$f":"OFFSET(L!$C$1,MATCH(\"Definitions\"&ADDRESS(ROW(),COLUMN(),4),L!$A:$A,0)-1,SL,,)","v":"Tin (Sn) smelter"},{"$f":"OFFSET(L!$C$1,MATCH(\"Definitions\"&ADDRESS(ROW(),COLUMN(),4),L!$A:$A,0)-1,SL,,)","v":"Primary [tin] smelters are companies with one or more facilities treating tin containing ore concentrates in order to produce tin metal.  Secondary [tin] smelters are companies with one or more facilities that treat secondary materials by reduction for the production of crude or higher grade tin or tin product such as solder.  A smelter as referred to within this audit protocol may operate as either one or both types of business operation. Refer to the RMAP audit protocol for this metal for a complete description: http://www.responsiblemineralsinitiative.org/smelter-introduction/."},null,"\n\n\n\n\n\n"]
[null,{"$f":"OFFSET(L!$C$1,MATCH(\"Definitions\"&ADDRESS(ROW(),COLUMN(),4),L!$A:$A,0)-1,SL,,)","v":"Tungsten (W) smelter"},{"$f":"OFFSET(L!$C$1,MATCH(\"Definitions\"&ADDRESS(ROW(),COLUMN(),4),L!$A:$A,0)-1,SL,,)","v":"A company with one or more facilities that converts W-containing ores (such as wolframite and scheelite), W concentrates, or W-bearing scrap (secondary material) into tungsten containing intermediates such as Ammonium Para-Tungstate (APT), Ammonium Meta-Tungstate (AMT), ferrotungsten, and tungsten oxides for direct sales or further processed into W-containing products (such as W powder or W-carbide powder). Refer to the RMAP audit protocol for this metal for a complete description: http://www.responsiblemineralsinitiative.org/smelter-introduction/."}]
[null,{"$f":"OFFSET(L!$C$1,MATCH(\"General\"&\"Cpy\",L!$A:$A,0)-1,SL,,)","v":"© 2018 Responsible Minerals Initiative. All rights reserved."}]

{"sheet":"Declaration","index":3,"n_rows":103,"n_cols":18,"rows_kept":103,"cut":false,"hidden":false,"merged":[[64,3,64,4],[68,6,68,9],[63,3,63,4],[68,3,68,4],[66,1,66,9],[76,3,76,4],[82,6,82,9],[72,3,72,4],[76,6,76,9],[72,6,72,9],[86,0,86,9],[78,6,78,9],[85,1,85,9],[84,6,84,9],[74,3,74,4],[80,3,80,4],[78,3,78,4],[82,3,82,4],[79,6,79,9],[80,6,80,9],[84,3,84,4],[81,6,81,9],[60,7,60,9],[70,3,70,4],[67,6,67,8],[67,3,67,4],[69,6,69,9],[10,3,10,9],[33,3,33,4],[32,3,32,4],[33,6,33,9],[45,6,45,9],[58,3,58,4],[57,3,57,4],[56,3,56,4],[56,6,56,9],[57,6,57,9],[55,3,55,4],[60,3,60,4],[58,6,58,9],[46,6,46,9],[52,3,52,4],[49,3,49,4],[49,6,49,9],[54,3,54,4],[63,6,63,9],[54,7,54,9],[61,6,61,9],[74,6,74,9],[36,7,36,9],[11,3,11,9],[18,3,18,9],[22,3,22,4],[64,6,64,9],[62,6,62,9],[32,6,32,9],[28,3,28,4],[25,6,25,9],[27,6,27,9],[27,3,27,4],[24,3,24,4],[40,6,40,9],[39,3,39,4],[40,3,40,4],[43,6,43,9],[44,3,44,4],[44,6,44,9],[39,6,39,9],[62,3,62,4],[61,3,61,4],[55,6,55,9],[70,6,70,9],[0,0,0,10],[1,3,1,9],[7,3,7,9],[17,3,17,9],[3,1,3,7],[9,3,9,9],[13,3,13,9],[12,3,12,9],[2,5,2,7],[3,8,3,9],[8,3,8,6],[6,1,6,9],[9,1,10,1],[14,3,14,9],[5,1,5,9],[15,3,15,9],[19,3,19,9],[37,3,37,4],[38,6,38,9],[31,6,31,9],[28,6,28,9],[50,3,50,4],[26,6,26,9],[20,3,20,9],[25,3,25,4],[26,3,26,4],[21,3,21,4],[23,1,23,9],[16,3,16,9],[30,3,30,4],[43,3,43,4],[36,3,36,4],[31,3,31,4],[45,3,45,4],[34,3,34,4],[50,6,50,9],[51,6,51,9],[52,6,52,9],[51,3,51,4],[37,6,37,9],[38,3,38,4],[42,3,42,4],[48,3,48,4],[34,6,34,9],[46,3,46,4]]}
[]
[null,null,null,{"$f":"OFFSET(L!$C$1,MATCH(\"Declaration\"&ADDRESS(ROW(),COLUMN(),4),L!$A:$A,0)-1,SL,,)","v":"Conflict Minerals Reporting Template (CMRT)"}]
[null,"Select Language Preference Here:\n请选择你的语言:\n사용할 언어를 선택하시오 :\n表示言語をここから選択してください:\nSélectionner la langue préférée ici:\nSelecione Preferência de idioma Aqui:\nWählen sie hier die Sprache:\nSeleccione el lenguaje de preferencia aqui:\nSelezionare la lingua di preferenza qui:\nBurada Dil Tercihini Belirleyin:",null,"English",{"$nulls":5},"Revision 5.11\nApril 27, 2018",{"$nulls":5},{"$f":"MATCH($D$3,LN,0)","v":1}]
[null,{"$f":"OFFSET(L!$C$1,MATCH(\"Declaration\"&ADDRESS(ROW(),COLUMN(),4),L!$A:$A,0)-1,SL,,)","v":"The purpose of this document is to collect sourcing information on tin, tantalum, tungsten and gold used in products"},{"$nulls":6},{"$f":"OFFSET(L!$C$1,MATCH(\"Declaration\"&ADDRESS(ROW(),COLUMN(),4),L!$A:$A,0)-1,SL,,)","v":"Link to Terms & Conditions"}]
[{"$f":"LEFT(D9,1)","v":"A"}]
[null,{"$f":"OFFSET(L!$C$1,MATCH(\"Declaration\"&ADDRESS(ROW(),COLUMN(),4),L!$A:$A,0)-1,SL,,)","v":"Mandatory fields are noted with an asterisk (*).  Consult the instructions tab for guidance on how to answer each question."},{"$nulls":9},"\n"]
[null,{"$f":"OFFSET(L!$C$1,MATCH(\"Declaration\"&ADDRESS(ROW(),COLUMN(),4),L!$A:$A,0)-1,SL,,)","v":"Company Information"}]
[null,{"$f":"OFFSET(L!$C$1,MATCH(\"Declaration\"&ADDRESS(ROW(),COLUMN(),4),L!$A:$A,0)-1,SL,,)","v":"Company Name (*):"},null,"Samtec Incorporated"]
[null,{"$f":"OFFSET(L!$C$1,MATCH(\"Declaration\"&ADDRESS(ROW(),COLUMN(),4),L!$A:$A,0)-1,SL,,)","v":"Declaration Scope or Class (*):"},null,"A. Company",{"$nulls":11},"A. Company","B. Product (or List of Products)","C. User defined [Specify in 'Description of scope']"]
[null,{"$f":"OFFSET(L!$C$1,MATCH(\"Declaration\"&ADDRESS(ROW(),COLUMN(),4)&LEFT($D$9,1),L!$A:$A,0)-1,SL,,)","v":"Description of Scope:"}]
[null,null,null,{"$f":"IF(D9=Q9,OFFSET(L!$C$1,MATCH(\"Declaration\"&ADDRESS(ROW(),COLUMN(),4),L!$A:$A,0)-1,SL,,),\"\")","v":""}]
[null,{"$f":"OFFSET(L!$C$1,MATCH(\"Declaration\"&ADDRESS(ROW(),COLUMN(),4),L!$A:$A,0)-1,SL,,)","v":"Company Unique ID:"}]
[null,{"$f":"OFFSET(L!$C$1,MATCH(\"Declaration\"&ADDRESS(ROW(),COLUMN(),4),L!$A:$A,0)-1,SL,,)","v":"Company Unique ID Authority:"}]
[null,{"$f":"OFFSET(L!$C$1,MATCH(\"Declaration\"&ADDRESS(ROW(),COLUMN(),4),L!$A:$A,0)-1,SL,,)","v":"Address:"}]
[null,{"$f":"OFFSET(L!$C$1,MATCH(\"Declaration\"&ADDRESS(ROW(),COLUMN(),4),L!$A:$A,0)-1,SL,,)","v":"Contact Name (*):"},null,"Mark Bobo"]
[null,{"$f":"OFFSET(L!$C$1,MATCH(\"Declaration\"&ADDRESS(ROW(),COLUMN(),4),L!$A:$A,0)-1,SL,,)","v":"Email – Contact (*):"},null,"mark.bobo@samtec.com"]
[null,{"$f":"OFFSET(L!$C$1,MATCH(\"Declaration\"&ADDRESS(ROW(),COLUMN(),4),L!$A:$A,0)-1,SL,,)","v":"Phone – Contact (*):"},null,"812-944-6733"]
[null,{"$f":"OFFSET(L!$C$1,MATCH(\"Declaration\"&ADDRESS(ROW(),COLUMN(),4),L!$A:$A,0)-1,SL,,)","v":"Authorizer (*):"},null,"Mark Bobo"]
[null,{"$f":"OFFSET(L!$C$1,MATCH(\"Declaration\"&ADDRESS(ROW(),COLUMN(),4),L!$A:$A,0)-1,SL,,)","v":"Title - Authorizer:"},null,"Coporate director, Environment compliance"]
[null,{"$f":"OFFSET(L!$C$1,MATCH(\"Declaration\"&ADDRESS(ROW(),COLUMN(),4),L!$A:$A,0)-1,SL,,)","v":"Email - Authorizer (*):"},null,"mark.bobo@samtec.com"]
[null,{"$f":"OFFSET(L!$C$1,MATCH(\"Declaration\"&ADDRESS(ROW(),COLUMN(),4),L!$A:$A,0)-1,SL,,)","v":"Phone - Authorizer (*):"},null,"812-944-6733"]
[null,{"$f":"OFFSET(L!$C$1,MATCH(\"Declaration\"&ADDRESS(ROW(),COLUMN(),4),L!$A:$A,0)-1,SL,,)","v":"Effective Date (*):"},null,"2018-05-09"]
[]
[null,{"$f":"OFFSET(L!$C$1,MATCH(\"Declaration\"&ADDRESS(ROW(),COLUMN(),4),L!$A:$A,0)-1,SL,,)","v":"Answer the following questions 1 - 7 based on the declaration scope indicated above"}]
[null,{"$f":"OFFSET(L!$C$1,MATCH(\"Declaration\"&ADDRESS(ROW(),COLUMN(),4),L!$A:$A,0)-1,SL,,)","v":"1) Is any 3TG intentionally added or used in the product(s) or in the production process? (*)"},null,{"$f":"OFFSET(L!$C$1,MATCH(\"Declaration\"&ADDRESS(ROW(),COLUMN(),4),L!$A:$A,0)-1,SL,,)","v":"Answer"},null,null,{"$f":"OFFSET(L!$C$1,MATCH(\"Declaration\"&ADDRESS(ROW(),COLUMN(),4),L!$A:$A,0)-1,SL,,)","v":"Comments"},{"$nulls":4},"\n\n"]
[null,{"$f":"OFFSET(L!$C$1,MATCH(\"Declaration\"&ADDRESS(ROW(),COLUMN(),4),L!$A:$A,0)-1,SL,,)&P26","v":"Tantalum  "},null,"No",{"$nulls":11},{"$f":"IF(D$26=\"No\",\"\",\"(*)\")","v":""}]
[null,{"$f":"OFFSET(L!$C$1,MATCH(\"Declaration\"&ADDRESS(ROW(),COLUMN(),4),L!$A:$A,0)-1,SL,,)&P27","v":"Tin  (*)"},null,"Yes",{"$nulls":11},{"$f":"IF(D$27=\"No\",\"\",\"(*)\")","v":"(*)"}]
[null,{"$f":"OFFSET(L!$C$1,MATCH(\"Declaration\"&ADDRESS(ROW(),COLUMN(),4),L!$A:$A,0)-1,SL,,)&P28","v":"Gold  (*)"},null,"Yes",{"$nulls":11},{"$f":"IF(D$28=\"No\",\"\",\"(*)\")","v":"(*)"}]
[null,{"$f":"OFFSET(L!$C$1,MATCH(\"Declaration\"&ADDRESS(ROW(),COLUMN(),4),L!$A:$A,0)-1,SL,,)&P29","v":"Tungsten  "},null,"No",{"$nulls":11},{"$f":"IF(D$29=\"No\",\"\",\"(*)\")","v":""}]
[]
[null,{"$f":"OFFSET(L!$C$1,MATCH(\"Declaration\"&ADDRESS(ROW(),COLUMN(),4),L!$A:$A,0)-1,SL,,)&Q$37","v":"2) Does any 3TG remain in the product(s)? (*)"},null,{"$f":"D25","v":"Answer"},null,null,{"$f":"G25","v":"Comments"},{"$nulls":4},"\n",null,null,null,{"$f":"COUNTIF(D$26:D$29,\"No\")","v":2},{"$f":"IF(P31=4,\"\",\" (*)\")","v":" (*)"}]
[null,{"$f":"B26","v":"Tantalum  "},{"$nulls":13},{"$f":"IF(D$32=\"No\",\"\",\"(*)\")","v":"(*)"}]
[null,{"$f":"B27","v":"Tin  (*)"},null,"Yes",{"$nulls":11},{"$f":"IF(D$33=\"No\",\"\",\"(*)\")","v":"(*)"}]
[null,{"$f":"B28","v":"Gold  (*)"},null,"Yes",{"$nulls":11},{"$f":"IF(D$34=\"No\",\"\",\"(*)\")","v":"(*)"}]
[null,{"$f":"B29","v":"Tungsten  "},{"$nulls":13},{"$f":"IF(D$35=\"No\",\"\",\"(*)\")","v":"(*)"}]
[]
[null,{"$f":"OFFSET(L!$C$1,MATCH(\"Declaration\"&ADDRESS(ROW(),COLUMN(),4),L!$A:$A,0)-1,SL,,)&Q$37","v":"3) Do any of the smelters in your supply chain source the 3TG from the covered countries? (SEC term, see definitions tab) (*)"},null,{"$f":"D25","v":"Answer"},null,null,{"$f":"G25","v":"Comments"},{"$nulls":4},"\n",null,null,null,{"$f":"COUNTIF(D$26:D$29,\"No\")+COUNTIF(D$32:D$35,\"No\")","v":2},{"$f":"IF(P37>3,\"\",\" (*)\")","v":" (*)"}]
[null,{"$f":"OFFSET(L!$C$1,MATCH(\"Declaration\"&ADDRESS(ROW(),COLUMN(),4),L!$A:$A,0)-1,SL,,)&P38","v":"Tantalum  "},{"$nulls":13},{"$f":"IF((OR(D$26=\"No\",D$32=\"No\")),\"\",\"(*)\")","v":""}]
[null,{"$f":"OFFSET(L!$C$1,MATCH(\"Declaration\"&ADDRESS(ROW(),COLUMN(),4),L!$A:$A,0)-1,SL,,)&P39","v":"Tin  (*)"},null,"No",{"$nulls":11},{"$f":"IF((OR(D$27=\"No\",D$33=\"No\")),\"\",\"(*)\")","v":"(*)"}]
[null,{"$f":"OFFSET(L!$C$1,MATCH(\"Declaration\"&ADDRESS(ROW(),COLUMN(),4),L!$A:$A,0)-1,SL,,)&P40","v":"Gold  (*)"},null,"No",{"$nulls":11},{"$f":"IF((OR(D$28=\"No\",D$34=\"No\")),\"\",\"(*)\")","v":"(*)"}]
[null,{"$f":"OFFSET(L!$C$1,MATCH(\"Declaration\"&ADDRESS(ROW(),COLUMN(),4),L!$A:$A,0)-1,SL,,)&P41","v":"Tungsten  "},{"$nulls":13},{"$f":"IF((OR(D$29=\"No\",D$35=\"No\")),\"\",\"(*)\")","v":""}]
[]
[null,{"$f":"OFFSET(L!$C$1,MATCH(\"Declaration\"&ADDRESS(ROW(),COLUMN(),4),L!$A:$A,0)-1,SL,,)&Q$37","v":"4) Does 100 percent of the 3TG (necessary to the functionality or production of your products) originate from recycled or scrap sources?  (*)"},null,{"$f":"D25","v":"Answer"},null,null,{"$f":"G25","v":"Comments"},{"$nulls":4},"\n"]
[null,{"$f":"B38","v":"Tantalum  "}]
[null,{"$f":"B39","v":"Tin  (*)"},null,"No"]
[null,{"$f":"B40","v":"Gold  (*)"},null,"Yes"]
[null,{"$f":"B41","v":"Tungsten  "}]
[]
[null,{"$f":"OFFSET(L!$C$1,MATCH(\"Declaration\"&ADDRESS(ROW(),COLUMN(),4),L!$A:$A,0)-1,SL,,)&Q$37","v":"5) What percentage of relevant suppliers have provided a response to your supply chain survey?  (*)"},null,{"$f":"D25","v":"Answer"},null,null,{"$f":"G25","v":"Comments"},{"$nulls":4},"\n"]
[null,{"$f":"B38","v":"Tantalum  "}]
[null,{"$f":"B39","v":"Tin  (*)"},null,1]
[null,{"$f":"B40","v":"Gold  (*)"},null,1]
[null,{"$f":"B41","v":"Tungsten  "}]
[]
[null,{"$f":"OFFSET(L!$C$1,MATCH(\"Declaration\"&ADDRESS(ROW(),COLUMN(),4),L!$A:$A,0)-1,SL,,)&Q$37","v":"6) Have you identified all of the smelters supplying the 3TG to your supply chain?  (*)"},null,{"$f":"D25","v":"Answer"},null,null,{"$f":"G25","v":"Comments"},{"$nulls":4},"\n\n"]
[null,{"$f":"B38","v":"Tantalum  "}]
[null,{"$f":"B39","v":"Tin  (*)"},null,"Yes"]
[null,{"$f":"B40","v":"Gold  (*)"},null,"Yes"]
[null,{"$f":"B41","v":"Tungsten  "}]
[]
[null,{"$f":"OFFSET(L!$C$1,MATCH(\"Declaration\"&ADDRESS(ROW(),COLUMN(),4),L!$A:$A,0)-1,SL,,)&Q$37","v":"7) Has all applicable smelter information received by your company been reported in this declaration?  (*)"},null,{"$f":"D25","v":"Answer"},null,null,{"$f":"G25","v":"Comments"},{"$f":"IF(Q69=\"(*)\",\"Click here to enter smelter names\",\"\")","v":""},null,null,null,"\n\n"]
[null,{"$f":"B38","v":"Tantalum  "}]
[null,{"$f":"B39","v":"Tin  (*)"},null,"Yes"]
[null,{"$f":"B40","v":"Gold  (*)"},null,"Yes"]
[null,{"$f":"B41","v":"Tungsten  "}]
[]
[null,{"$f":"OFFSET(L!$C$1,MATCH(\"Declaration\"&ADDRESS(ROW(),COLUMN(),4),L!$A:$A,0)-1,SL,,)","v":"Answer the Following Questions at a Company Level"}]
[null,{"$f":"OFFSET(L!$C$1,MATCH(\"Declaration\"&ADDRESS(ROW(),COLUMN(),4),L!$A:$A,0)-1,SL,,)","v":"Question"},null,{"$f":"D25","v":"Answer"},null,null,{"$f":"G25","v":"Comments"},{"$f":"HLOOKUP(SL,LT,$O68,0)","v":{"$error":"#NAME?"}},{"$f":"HLOOKUP(SL,LT,$O68,0)","v":{"$error":"#NAME?"}}]
[null,{"$f":"OFFSET(L!$C$1,MATCH(\"Declaration\"&ADDRESS(ROW(),COLUMN(),4),L!$A:$A,0)-1,SL,,)&$Q$37","v":"A. Have you established a conflict minerals sourcing policy? (*)"},null,"Yes",{"$nulls":7},"\n"]
[]
[null,{"$f":"OFFSET(L!$C$1,MATCH(\"Declaration\"&ADDRESS(ROW(),COLUMN(),4),L!$A:$A,0)-1,SL,,)&$Q$37","v":"B. Is your conflict minerals sourcing policy publicly available on your website? (Note – If yes, the user shall specify the URL in the comment field.) (*)"},null,"Yes",null,null,"http://suddendocs.samtec.com/environmental_compliance/certifications/drc_coc_certification.pdf",{"$nulls":4},"\n"]
[]
[null,{"$f":"OFFSET(L!$C$1,MATCH(\"Declaration\"&ADDRESS(ROW(),COLUMN(),4),L!$A:$A,0)-1,SL,,)&$Q$37","v":"C. Do you require your direct suppliers to be DRC conflict-free? (*)"},null,"Yes",{"$nulls":7},"\n"]
[]
[null,{"$f":"OFFSET(L!$C$1,MATCH(\"Declaration\"&ADDRESS(ROW(),COLUMN(),4),L!$A:$A,0)-1,SL,,)&$Q$37","v":"D. Do you require your direct suppliers to source the 3TG from smelters whose due diligence practices have been validated by an independent third party audit program? (*)"},null,"Yes",{"$nulls":7},"\n\n"]
[]
[null,{"$f":"OFFSET(L!$C$1,MATCH(\"Declaration\"&ADDRESS(ROW(),COLUMN(),4),L!$A:$A,0)-1,SL,,)&$Q$37","v":"E. Have you implemented due diligence measures for conflict-free sourcing? (*)"},null,"Yes",{"$nulls":7},"\n"]
[]
[null,{"$f":"OFFSET(L!$C$1,MATCH(\"Declaration\"&ADDRESS(ROW(),COLUMN(),4),L!$A:$A,0)-1,SL,,)&$Q$37","v":"F. Does your company conduct Conflict Minerals survey(s) of your relevant supplier(s)? (*)"},null,"Yes, in conformance with IPC1755 (e.g., CMRT)",{"$nulls":7},"\n"]
[]
[null,{"$f":"OFFSET(L!$C$1,MATCH(\"Declaration\"&ADDRESS(ROW(),COLUMN(),4),L!$A:$A,0)-1,SL,,)&$Q$37","v":"G. Do you review due diligence information received from your suppliers against your company’s expectations? (*)"},null,"Yes",{"$nulls":7},"\n\n"]
[]
[null,{"$f":"OFFSET(L!$C$1,MATCH(\"Declaration\"&ADDRESS(ROW(),COLUMN(),4),L!$A:$A,0)-1,SL,,)&$Q$37","v":"H. Does your review process include corrective action management? (*)"},null,"Yes",{"$nulls":7},"\n"]
[]
[null,{"$f":"OFFSET(L!$C$1,MATCH(\"Declaration\"&ADDRESS(ROW(),COLUMN(),4),L!$A:$A,0)-1,SL,,)&$Q$37","v":"I. Is your company required to file an annual conflict minerals disclosure with the SEC? (*)"},null,"No",{"$nulls":7},"\n"]
[null,{"$f":"IF(OR($D$8=\"\",$I$3=\"\"),\"\",\"Click here to check required fields completion\")","v":""}]
[{"$f":"OFFSET(L!$C$1,MATCH(\"General\"&\"Cpy\",L!$A:$A,0)-1,SL,,)","v":"© 2018 Responsible Minerals Initiative. All rights reserved."}]
[]
[]
[]
[]
[null,"Yes"]
[null,"No"]
[null,"Unknown"]
[null,1]
[null,"Greater than 90%"]
[null,"Greater than 75%"]
[null,"Greater than 50%"]
[null,"50% or less"]
[null,"None"]
[null,"Yes, in conformance with IPC1755 (e.g., CMRT)"]
[null,"Yes, using other format (describe)"]
[null,"No"]

{"sheet":"Smelter List","index":4,"n_rows":2494,"n_cols":34,"rows_kept":2494,"cut":false,"hidden":false,"merged":[[1,9,1,14],[2,1,2,4],[2,6,2,8]]}
[{"$nulls":20},"z"]
[null,{"$f":"OFFSET(L!$C$1,MATCH(\"Smelter List\"&ADDRESS(ROW(),COLUMN(),4),L!$A:$A,0)-1,SL,,)","v":"TO BEGIN:"},{"$nulls":7},{"$f":"OFFSET(L!$C$1,MATCH(\"Smelter List\"&ADDRESS(ROW(),COLUMN(),4),L!$A:$A,0)-1,SL,,)","v":"Link to \"RMAP Conformant Smelter List\""},{"$nulls":23},"Yes"]
[null,{"$f":"OFFSET(L!$C$1,MATCH(\"Smelter List\"&ADDRESS(ROW(),COLUMN(),4),L!$A:$A,0)-1,SL,,)","v":"\nOption A: If you know the Smelter Identification Number, input the number in Column A (columns B, C, E, F, G, I and J will auto-populate); D will grey out.\n\nOption B:  If you have a Metal and Smelter Look-up name combination, complete the following steps:\nStep 1. Select Metal in column B\nStep 2. Select from dropdown in column C (wrong combination will trigger RED color)\n\nOption C: If you have a Metal and Smelter Name combination, complete the following steps:\nStep 1. Select Metal in column B\nStep 2: Select \"Smelter Not Listed\" in the Smelter Look-up drop down and complete columns D & E\nStep 3. Enter all available smelter information in columns H through Q\n\n(*) Mandatory fields are noted with an asterisk.\n(1) Entry required when Smelter Look-up = \"Smelter not listed\"\n\nNOTE: A combination of Options A, B and C may be used to complete the Smelter List.  Do not alter autopopulated cells.  All errors in the Smelter Look-up should be reported to RMI by contacting RMI@responsiblebusiness.org."},{"$nulls":4},{"$f":"OFFSET(L!$C$1,MATCH(\"General\"&\"Cpy\",L!$A:$A,0)-1,SL,,)","v":"© 2018 Responsible Minerals Initiative. All rights reserved."},{"$nulls":9},"Revision 5.11\nApril 27, 2018",{"$nulls":5},"Tantalum","Tin","Tungsten","Gold",{"$nulls":7},"No"]
[{"$f":"OFFSET(L!$C$1,MATCH(\"Smelter List\"&ADDRESS(ROW(),COLUMN(),4),L!$A:$A,0)-1,SL,,)","v":"Smelter Identification Number Input Column"},{"$f":"OFFSET(L!$C$1,MATCH(\"Smelter List\"&ADDRESS(ROW(),COLUMN(),4),L!$A:$A,0)-1,SL,,)","v":"Metal (*)"},{"$f":"OFFSET(L!$C$1,MATCH(\"Smelter List\"&ADDRESS(ROW(),COLUMN(),4),L!$A:$A,0)-1,SL,,)","v":"Smelter Look-up (*)"},{"$f":"OFFSET(L!$C$1,MATCH(\"Smelter List\"&ADDRESS(ROW(),COLUMN(),4),L!$A:$A,0)-1,SL,,)","v":"Smelter Name (1)"},{"$f":"OFFSET(L!$C$1,MATCH(\"Smelter List\"&ADDRESS(ROW(),COLUMN(),4),L!$A:$A,0)-1,SL,,)","v":"Smelter Country (*)"},{"$f":"OFFSET(L!$C$1,MATCH(\"Smelter List\"&ADDRESS(ROW(),COLUMN(),4),L!$A:$A,0)-1,SL,,)","v":"Smelter Identification"},{"$f":"OFFSET(L!$C$1,MATCH(\"Smelter List\"&ADDRESS(ROW(),COLUMN(),4),L!$A:$A,0)-1,SL,,)","v":"Source of Smelter Identification Number"},{"$f":"OFFSET(L!$C$1,MATCH(\"Smelter List\"&ADDRESS(ROW(),COLUMN(),4),L!$A:$A,0)-1,SL,,)","v":"Smelter Street "},{"$f":"OFFSET(L!$C$1,MATCH(\"Smelter List\"&ADDRESS(ROW(),COLUMN(),4),L!$A:$A,0)-1,SL,,)","v":"Smelter City"},{"$f":"OFFSET(L!$C$1,MATCH(\"Smelter List\"&ADDRESS(ROW(),COLUMN(),4),L!$A:$A,0)-1,SL,,)","v":"Smelter Facility Location: State / Province"},{"$f":"OFFSET(L!$C$1,MATCH(\"Smelter List\"&ADDRESS(ROW(),COLUMN(),4),L!$A:$A,0)-1,SL,,)","v":"Smelter Contact Name"},{"$f":"OFFSET(L!$C$1,MATCH(\"Smelter List\"&ADDRESS(ROW(),COLUMN(),4),L!$A:$A,0)-1,SL,,)","v":"Smelter Contact Email"},{"$f":"OFFSET(L!$C$1,MATCH(\"Smelter List\"&ADDRESS(ROW(),COLUMN(),4),L!$A:$A,0)-1,SL,,)","v":"Proposed next steps"},{"$f":"OFFSET(L!$C$1,MATCH(\"Smelter List\"&ADDRESS(ROW(),COLUMN(),4),L!$A:$A,0)-1,SL,,)","v":"Name of Mine(s) or if recycled or scrap sourced, enter \"recycled\" or \"scrap\""},{"$f":"OFFSET(L!$C$1,MATCH(\"Smelter List\"&ADDRESS(ROW(),COLUMN(),4),L!$A:$A,0)-1,SL,,)","v":"Location (Country) of Mine(s) or if recycled or scrap sourced, enter \"recycled\" or \"scrap\""},{"$f":"OFFSET(L!$C$1,MATCH(\"Smelter List\"&ADDRESS(ROW(),COLUMN(),4),L!$A:$A,0)-1,SL,,)","v":"Does 100% of the smelter’s feedstock originate from recycled or scrap sources?"},{"$f":"OFFSET(L!$C$1,MATCH(\"Smelter List\"&ADDRESS(ROW(),COLUMN(),4),L!$A:$A,0)-1,SL,,)","v":"Comments"},"Standard Smelter Name","Country Code","State / Province Code",null,null,"Smelter not yet identified","Smelter Not Listed",{"$nulls":9},"Unknown"]
[null,"Tin","Minsur","Minsur",{"$f":"IF(ISERROR($V5),\"\",OFFSET('Smelter Look-up'!$D$4,$V5-4,0)&\"\")","v":"PERU"},{"$f":"IF(ISERROR($V5),\"\",OFFSET('Smelter Look-up'!$E$4,$V5-4,0))","v":"CID001182"},{"$f":"IF(C5=$X$4,\"Enter smelter details\", IF(ISERROR($V5),\"\",OFFSET('Smelter Look-up'!$F$4,$V5-4,0)))","v":"RMI"},{"$f":"IF(ISERROR($V5),\"\",OFFSET('Smelter Look-up'!$G$4,$V5-4,0))","v":0},{"$f":"IF(ISERROR($V5),\"\",OFFSET('Smelter Look-up'!$H$4,$V5-4,0))","v":"Paracas"},{"$f":"IF(ISERROR($V5),\"\",OFFSET('Smelter Look-up'!$I$4,$V5-4,0))","v":"Ika"},null,null,null,"Minsur SA","Peru","No",null,{"$f":"IF(ISERROR($V5),\"\",OFFSET('Smelter Look-up'!$C$4,$V5-4,0)&\"\")","v":"Minsur"},{"$f":"IF(B5=\"\",\"\",IF(ISERROR(MATCH($E5,CL,0)),\"Unknown\",INDIRECT(\"'C'!$A$\"&MATCH($E5,CL,0)+1)))","v":"PE"},{"$f":"IF(B5=\"\",\"\",IF(ISERROR(MATCH($J5,SorP!$B$1:$B$6230,0)),\"\",INDIRECT(\"'SorP'!$A$\"&MATCH($J5,SorP!$B$1:$B$6230,0))))","v":"PE-ICA"},null,{"$f":"IF(C5=\"\",NA(),MATCH($B5&$C5,'Smelter Look-up'!$J:$J,0))","v":428},null,{"$f":"IF(AND(C5=\"Smelter not listed\",OR(LEN(D5)=0,LEN(E5)=0)),1,0)","v":0},null,null,null,{"$f":"B5&C5","v":"TinMinsur"}]
[null,"Gold","Metalor USA Refining Corporation","Metalor USA Refining Corporation",{"$f":"IF(ISERROR($V6),\"\",OFFSET('Smelter Look-up'!$D$4,$V6-4,0)&\"\")","v":"UNITED STATES OF AMERICA"},{"$f":"IF(ISERROR($V6),\"\",OFFSET('Smelter Look-up'!$E$4,$V6-4,0))","v":"CID001157"},{"$f":"IF(C6=$X$4,\"Enter smelter details\", IF(ISERROR($V6),\"\",OFFSET('Smelter Look-up'!$F$4,$V6-4,0)))","v":"RMI"},{"$f":"IF(ISERROR($V6),\"\",OFFSET('Smelter Look-up'!$G$4,$V6-4,0))","v":0},{"$f":"IF(ISERROR($V6),\"\",OFFSET('Smelter Look-up'!$H$4,$V6-4,0))","v":"North Attleboro"},{"$f":"IF(ISERROR($V6),\"\",OFFSET('Smelter Look-up'!$I$4,$V6-4,0))","v":"Massachusetts"},null,null,null,"Scrap",null,"Yes",null,{"$f":"IF(ISERROR($V6),\"\",OFFSET('Smelter Look-up'!$C$4,$V6-4,0)&\"\")","v":"Metalor USA Refining Corporation"},"US",{"$f":"IF(B6=\"\",\"\",IF(ISERROR(MATCH($J6,SorP!$B$1:$B$6230,0)),\"\",INDIRECT(\"'SorP'!$A$\"&MATCH($J6,SorP!$B$1:$B$6230,0))))","v":"US-MA"},null,{"$f":"IF(C6=\"\",NA(),MATCH($B6&$C6,'Smelter Look-up'!$J:$J,0))","v":145},null,0,null,null,null,"GoldMetalor USA Refining Corporation"]
[null,{"$f":"IF(LEN(A7)=0,\"\",INDEX('Smelter Look-up'!$A:$A,MATCH($A7,'Smelter Look-up'!$E:$E,0)))","v":""},{"$f":"IF(LEN(A7)=0,\"\",INDEX('Smelter Look-up'!$C:$C,MATCH($A7,'Smelter Look-up'!$E:$E,0)))","v":""},null,{"$f":"IF(ISERROR($V7),\"\",OFFSET('Smelter Look-up'!$D$4,$V7-4,0)&\"\")","v":""},{"$f":"IF(ISERROR($V7),\"\",OFFSET('Smelter Look-up'!$E$4,$V7-4,0))","v":""},{"$f":"IF(C7=$X$4,\"Enter smelter details\", IF(ISERROR($V7),\"\",OFFSET('Smelter Look-up'!$F$4,$V7-4,0)))","v":""},{"$f":"IF(ISERROR($V7),\"\",OFFSET('Smelter Look-up'!$G$4,$V7-4,0))","v":""},{"$f":"IF(ISERROR($V7),\"\",OFFSET('Smelter Look-up'!$H$4,$V7-4,0))","v":""},{"$f":"IF(ISERROR($V7),\"\",OFFSET('Smelter Look-up'!$I$4,$V7-4,0))","v":""},{"$nulls":7},{"$f":"IF(ISERROR($V7),\"\",OFFSET('Smelter Look-up'!$C$4,$V7-4,0)&\"\")","v":""},"",{"$f":"IF(B7=\"\",\"\",IF(ISERROR(MATCH($J7,SorP!$B$1:$B$6230,0)),\"\",INDIRECT(\"'SorP'!$A$\"&MATCH($J7,SorP!$B$1:$B$6230,0))))","v":""},null,{"$f":"IF(C7=\"\",NA(),MATCH($B7&$C7,'Smelter Look-up'!$J:$J,0))","v":{"$error":"#N/A"}},null,0,null,null,null,""]
[null,{"$f":"IF(LEN(A8)=0,\"\",INDEX('Smelter Look-up'!$A:$A,MATCH($A8,'Smelter Look-up'!$E:$E,0)))","v":""},{"$f":"IF(LEN(A8)=0,\"\",INDEX('Smelter Look-up'!$C:$C,MATCH($A8,'Smelter Look-up'!$E:$E,0)))","v":""},null,{"$f":"IF(ISERROR($V8),\"\",OFFSET('Smelter Look-up'!$D$4,$V8-4,0)&\"\")","v":""},{"$f":"IF(ISERROR($V8),\"\",OFFSET('Smelter Look-up'!$E$4,$V8-4,0))","v":""},{"$f":"IF(C8=$X$4,\"Enter smelter details\", IF(ISERROR($V8),\"\",OFFSET('Smelter Look-up'!$F$4,$V8-4,0)))","v":""},{"$f":"IF(ISERROR($V8),\"\",OFFSET('Smelter Look-up'!$G$4,$V8-4,0))","v":""},{"$f":"IF(ISERROR($V8),\"\",OFFSET('Smelter Look-up'!$H$4,$V8-4,0))","v":""},{"$f":"IF(ISERROR($V8),\"\",OFFSET('Smelter Look-up'!$I$4,$V8-4,0))","v":""},{"$nulls":7},{"$f":"IF(ISERROR($V8),\"\",OFFSET('Smelter Look-up'!$C$4,$V8-4,0)&\"\")","v":""},"",{"$f":"IF(B8=\"\",\"\",IF(ISERROR(MATCH($J8,SorP!$B$1:$B$6230,0)),\"\",INDIRECT(\"'SorP'!$A$\"&MATCH($J8,SorP!$B$1:$B$6230,0))))","v":""},null,{"$f":"IF(C8=\"\",NA(),MATCH($B8&$C8,'Smelter Look-up'!$J:$J,0))","v":{"$error":"#N/A"}},null,0,null,null,null,""]
[null,{"$f":"IF(LEN(A9)=0,\"\",INDEX('Smelter Look-up'!$A:$A,MATCH($A9,'Smelter Look-up'!$E:$E,0)))","v":""},{"$f":"IF(LEN(A9)=0,\"\",INDEX('Smelter Look-up'!$C:$C,MATCH($A9,'Smelter Look-up'!$E:$E,0)))","v":""},null,{"$f":"IF(ISERROR($V9),\"\",OFFSET('Smelter Look-up'!$D$4,$V9-4,0)&\"\")","v":""},{"$f":"IF(ISERROR($V9),\"\",OFFSET('Smelter Look-up'!$E$4,$V9-4,0))","v":""},{"$f":"IF(C9=$X$4,\"Enter smelter details\", IF(ISERROR($V9),\"\",OFFSET('Smelter Look-up'!$F$4,$V9-4,0)))","v":""},{"$f":"IF(ISERROR($V9),\"\",OFFSET('Smelter Look-up'!$G$4,$V9-4,0))","v":""},{"$f":"IF(ISERROR($V9),\"\",OFFSET('Smelter Look-up'!$H$4,$V9-4,0))","v":""},{"$f":"IF(ISERROR($V9),\"\",OFFSET('Smelter Look-up'!$I$4,$V9-4,0))","v":""},{"$nulls":7},{"$f":"IF(ISERROR($V9),\"\",OFFSET('Smelter Look-up'!$C$4,$V9-4,0)&\"\")","v":""},"",{"$f":"IF(B9=\"\",\"\",IF(ISERROR(MATCH($J9,SorP!$B$1:$B$6230,0)),\"\",INDIRECT(\"'SorP'!$A$\"&MATCH($J9,SorP!$B$1:$B$6230,0))))","v":""},null,{"$f":"IF(C9=\"\",NA(),MATCH($B9&$C9,'Smelter Look-up'!$J:$J,0))","v":{"$error":"#N/A"}},null,0,null,null,null,""]
[null,{"$f":"IF(LEN(A10)=0,\"\",INDEX('Smelter Look-up'!$A:$A,MATCH($A10,'Smelter Look-up'!$E:$E,0)))","v":""},{"$f":"IF(LEN(A10)=0,\"\",INDEX('Smelter Look-up'!$C:$C,MATCH($A10,'Smelter Look-up'!$E:$E,0)))","v":""},null,{"$f":"IF(ISERROR($V10),\"\",OFFSET('Smelter Look-up'!$D$4,$V10-4,0)&\"\")","v":""},{"$f":"IF(ISERROR($V10),\"\",OFFSET('Smelter Look-up'!$E$4,$V10-4,0))","v":""},{"$f":"IF(C10=$X$4,\"Enter smelter details\", IF(ISERROR($V10),\"\",OFFSET('Smelter Look-up'!$F$4,$V10-4,0)))","v":""},{"$f":"IF(ISERROR($V10),\"\",OFFSET('Smelter Look-up'!$G$4,$V10-4,0))","v":""},{"$f":"IF(ISERROR($V10),\"\",OFFSET('Smelter Look-up'!$H$4,$V10-4,0))","v":""},{"$f":"IF(ISERROR($V10),\"\",OFFSET('Smelter Look-up'!$I$4,$V10-4,0))","v":""},{"$nulls":7},{"$f":"IF(ISERROR($V10),\"\",OFFSET('Smelter Look-up'!$C$4,$V10-4,0)&\"\")","v":""},"",{"$f":"IF(B10=\"\",\"\",IF(ISERROR(MATCH($J10,SorP!$B$1:$B$6230,0)),\"\",INDIRECT(\"'SorP'!$A$\"&MATCH($J10,SorP!$B$1:$B$6230,0))))","v":""},null,{"$f":"IF(C10=\"\",NA(),MATCH($B10&$C10,'Smelter Look-up'!$J:$J,0))","v":{"$error":"#N/A"}},null,0,null,null,null,""]
[null,{"$f":"IF(LEN(A11)=0,\"\",INDEX('Smelter Look-up'!$A:$A,MATCH($A11,'Smelter Look-up'!$E:$E,0)))","v":""},{"$f":"IF(LEN(A11)=0,\"\",INDEX('Smelter Look-up'!$C:$C,MATCH($A11,'Smelter Look-up'!$E:$E,0)))","v":""},null,{"$f":"IF(ISERROR($V11),\"\",OFFSET('Smelter Look-up'!$D$4,$V11-4,0)&\"\")","v":""},{"$f":"IF(ISERROR($V11),\"\",OFFSET('Smelter Look-up'!$E$4,$V11-4,0))","v":""},{"$f":"IF(C11=$X$4,\"Enter smelter details\", IF(ISERROR($V11),\"\",OFFSET('Smelter Look-up'!$F$4,$V11-4,0)))","v":""},{"$f":"IF(ISERROR($V11),\"\",OFFSET('Smelter Look-up'!$G$4,$V11-4,0))","v":""},{"$f":"IF(ISERROR($V11),\"\",OFFSET('Smelter Look-up'!$H$4,$V11-4,0))","v":""},{"$f":"IF(ISERROR($V11),\"\",OFFSET('Smelter Look-up'!$I$4,$V11-4,0))","v":""},{"$nulls":7},{"$f":"IF(ISERROR($V11),\"\",OFFSET('Smelter Look-up'!$C$4,$V11-4,0)&\"\")","v":""},"",{"$f":"IF(B11=\"\",\"\",IF(ISERROR(MATCH($J11,SorP!$B$1:$B$6230,0)),\"\",INDIRECT(\"'SorP'!$A$\"&MATCH($J11,SorP!$B$1:$B$6230,0))))","v":""},null,{"$f":"IF(C11=\"\",NA(),MATCH($B11&$C11,'Smelter Look-up'!$J:$J,0))","v":{"$error":"#N/A"}},null,0,null,null,null,""]
[null,{"$f":"IF(LEN(A12)=0,\"\",INDEX('Smelter Look-up'!$A:$A,MATCH($A12,'Smelter Look-up'!$E:$E,0)))","v":""},{"$f":"IF(LEN(A12)=0,\"\",INDEX('Smelter Look-up'!$C:$C,MATCH($A12,'Smelter Look-up'!$E:$E,0)))","v":""},null,{"$f":"IF(ISERROR($V12),\"\",OFFSET('Smelter Look-up'!$D$4,$V12-4,0)&\"\")","v":""},{"$f":"IF(ISERROR($V12),\"\",OFFSET('Smelter Look-up'!$E$4,$V12-4,0))","v":""},{"$f":"IF(C12=$X$4,\"Enter smelter details\", IF(ISERROR($V12),\"\",OFFSET('Smelter Look-up'!$F$4,$V12-4,0)))","v":""},{"$f":"IF(ISERROR($V12),\"\",OFFSET('Smelter Look-up'!$G$4,$V12-4,0))","v":""},{"$f":"IF(ISERROR($V12),\"\",OFFSET('Smelter Look-up'!$H$4,$V12-4,0))","v":""},{"$f":"IF(ISERROR($V12),\"\",OFFSET('Smelter Look-up'!$I$4,$V12-4,0))","v":""},{"$nulls":7},{"$f":"IF(ISERROR($V12),\"\",OFFSET('Smelter Look-up'!$C$4,$V12-4,0)&\"\")","v":""},"",{"$f":"IF(B12=\"\",\"\",IF(ISERROR(MATCH($J12,SorP!$B$1:$B$6230,0)),\"\",INDIRECT(\"'SorP'!$A$\"&MATCH($J12,SorP!$B$1:$B$6230,0))))","v":""},null,{"$f":"IF(C12=\"\",NA(),MATCH($B12&$C12,'Smelter Look-up'!$J:$J,0))","v":{"$error":"#N/A"}},null,0,null,null,null,""]
[null,{"$f":"IF(LEN(A13)=0,\"\",INDEX('Smelter Look-up'!$A:$A,MATCH($A13,'Smelter Look-up'!$E:$E,0)))","v":""},{"$f":"IF(LEN(A13)=0,\"\",INDEX('Smelter Look-up'!$C:$C,MATCH($A13,'Smelter Look-up'!$E:$E,0)))","v":""},null,{"$f":"IF(ISERROR($V13),\"\",OFFSET('Smelter Look-up'!$D$4,$V13-4,0)&\"\")","v":""},{"$f":"IF(ISERROR($V13),\"\",OFFSET('Smelter Look-up'!$E$4,$V13-4,0))","v":""},{"$f":"IF(C13=$X$4,\"Enter smelter details\", IF(ISERROR($V13),\"\",OFFSET('Smelter Look-up'!$F$4,$V13-4,0)))","v":""},{"$f":"IF(ISERROR($V13),\"\",OFFSET('Smelter Look-up'!$G$4,$V13-4,0))","v":""},{"$f":"IF(ISERROR($V13),\"\",OFFSET('Smelter Look-up'!$H$4,$V13-4,0))","v":""},{"$f":"IF(ISERROR($V13),\"\",OFFSET('Smelter Look-up'!$I$4,$V13-4,0))","v":""},{"$nulls":7},{"$f":"IF(ISERROR($V13),\"\",OFFSET('Smelter Look-up'!$C$4,$V13-4,0)&\"\")","v":""},"",{"$f":"IF(B13=\"\",\"\",IF(ISERROR(MATCH($J13,SorP!$B$1:$B$6230,0)),\"\",INDIRECT(\"'SorP'!$A$\"&MATCH($J13,SorP!$B$1:$B$6230,0))))","v":""},null,{"$f":"IF(C13=\"\",NA(),MATCH($B13&$C13,'Smelter Look-up'!$J:$J,0))","v":{"$error":"#N/A"}},null,0,null,null,null,""]
[null,{"$f":"IF(LEN(A14)=0,\"\",INDEX('Smelter Look-up'!$A:$A,MATCH($A14,'Smelter Look-up'!$E:$E,0)))","v":""},{"$f":"IF(LEN(A14)=0,\"\",INDEX('Smelter Look-up'!$C:$C,MATCH($A14,'Smelter Look-up'!$E:$E,0)))","v":""},null,{"$f":"IF(ISERROR($V14),\"\",OFFSET('Smelter Look-up'!$D$4,$V14-4,0)&\"\")","v":""},{"$f":"IF(ISERROR($V14),\"\",OFFSET('Smelter Look-up'!$E$4,$V14-4,0))","v":""},{"$f":"IF(C14=$X$4,\"Enter smelter details\", IF(ISERROR($V14),\"\",OFFSET('Smelter Look-up'!$F$4,$V14-4,0)))","v":""},{"$f":"IF(ISERROR($V14),\"\",OFFSET('Smelter Look-up'!$G$4,$V14-4,0))","v":""},{"$f":"IF(ISERROR($V14),\"\",OFFSET('Smelter Look-up'!$H$4,$V14-4,0))","v":""},{"$f":"IF(ISERROR($V14),\"\",OFFSET('Smelter Look-up'!$I$4,$V14-4,0))","v":""},{"$nulls":7},{"$f":"IF(ISERROR($V14),\"\",OFFSET('Smelter Look-up'!$C$4,$V14-4,0)&\"\")","v":""},"",{"$f":"IF(B14=\"\",\"\",IF(ISERROR(MATCH($J14,SorP!$B$1:$B$6230,0)),\"\",INDIRECT(\"'SorP'!$A$\"&MATCH($J14,SorP!$B$1:$B$6230,0))))","v":""},null,{"$f":"IF(C14=\"\",NA(),MATCH($B14&$C14,'Smelter Look-up'!$J:$J,0))","v":{"$error":"#N/A"}},null,0,null,null,null,""]
[null,{"$f":"IF(LEN(A15)=0,\"\",INDEX('Smelter Look-up'!$A:$A,MATCH($A15,'Smelter Look-up'!$E:$E,0)))","v":""},{"$f":"IF(LEN(A15)=0,\"\",INDEX('Smelter Look-up'!$C:$C,MATCH($A15,'Smelter Look-up'!$E:$E,0)))","v":""},null,{"$f":"IF(ISERROR($V15),\"\",OFFSET('Smelter Look-up'!$D$4,$V15-4,0)&\"\")","v":""},{"$f":"IF(ISERROR($V15),\"\",OFFSET('Smelter Look-up'!$E$4,$V15-4,0))","v":""},{"$f":"IF(C15=$X$4,\"Enter smelter details\", IF(ISERROR($V15),\"\",OFFSET('Smelter Look-up'!$F$4,$V15-4,0)))","v":""},{"$f":"IF(ISERROR($V15),\"\",OFFSET('Smelter Look-up'!$G$4,$V15-4,0))","v":""},{"$f":"IF(ISERROR($V15),\"\",OFFSET('Smelter Look-up'!$H$4,$V15-4,0))","v":""},{"$f":"IF(ISERROR($V15),\"\",OFFSET('Smelter Look-up'!$I$4,$V15-4,0))","v":""},{"$nulls":7},{"$f":"IF(ISERROR($V15),\"\",OFFSET('Smelter Look-up'!$C$4,$V15-4,0)&\"\")","v":""},"",{"$f":"IF(B15=\"\",\"\",IF(ISERROR(MATCH($J15,SorP!$B$1:$B$6230,0)),\"\",INDIRECT(\"'SorP'!$A$\"&MATCH($J15,SorP!$B$1:$B$6230,0))))","v":""},null,{"$f":"IF(C15=\"\",NA(),MATCH($B15&$C15,'Smelter Look-up'!$J:$J,0))","v":{"$error":"#N/A"}},null,0,null,null,null,""]
[null,{"$f":"IF(LEN(A16)=0,\"\",INDEX('Smelter Look-up'!$A:$A,MATCH($A16,'Smelter Look-up'!$E:$E,0)))","v":""},{"$f":"IF(LEN(A16)=0,\"\",INDEX('Smelter Look-up'!$C:$C,MATCH($A16,'Smelter Look-up'!$E:$E,0)))","v":""},null,{"$f":"IF(ISERROR($V16),\"\",OFFSET('Smelter Look-up'!$D$4,$V16-4,0)&\"\")","v":""},{"$f":"IF(ISERROR($V16),\"\",OFFSET('Smelter Look-up'!$E$4,$V16-4,0))","v":""},{"$f":"IF(C16=$X$4,\"Enter smelter details\", IF(ISERROR($V16),\"\",OFFSET('Smelter Look-up'!$F$4,$V16-4,0)))","v":""},{"$f":"IF(ISERROR($V16),\"\",OFFSET('Smelter Look-up'!$G$4,$V16-4,0))","v":""},{"$f":"IF(ISERROR($V16),\"\",OFFSET('Smelter Look-up'!$H$4,$V16-4,0))","v":""},{"$f":"IF(ISERROR($V16),\"\",OFFSET('Smelter Look-up'!$I$4,$V16-4,0))","v":""},{"$nulls":7},{"$f":"IF(ISERROR($V16),\"\",OFFSET('Smelter Look-up'!$C$4,$V16-4,0)&\"\")","v":""},"",{"$f":"IF(B16=\"\",\"\",IF(ISERROR(MATCH($J16,SorP!$B$1:$B$6230,0)),\"\",INDIRECT(\"'SorP'!$A$\"&MATCH($J16,SorP!$B$1:$B$6230,0))))","v":""},null,{"$f":"IF(C16=\"\",NA(),MATCH($B16&$C16,'Smelter Look-up'!$J:$J,0))","v":{"$error":"#N/A"}},null,0,null,null,null,""]
[null,{"$f":"IF(LEN(A17)=0,\"\",INDEX('Smelter Look-up'!$A:$A,MATCH($A17,'Smelter Look-up'!$E:$E,0)))","v":""},{"$f":"IF(LEN(A17)=0,\"\",INDEX('Smelter Look-up'!$C:$C,MATCH($A17,'Smelter Look-up'!$E:$E,0)))","v":""},null,{"$f":"IF(ISERROR($V17),\"\",OFFSET('Smelter Look-up'!$D$4,$V17-4,0)&\"\")","v":""},{"$f":"IF(ISERROR($V17),\"\",OFFSET('Smelter Look-up'!$E$4,$V17-4,0))","v":""},{"$f":"IF(C17=$X$4,\"Enter smelter details\", IF(ISERROR($V17),\"\",OFFSET('Smelter Look-up'!$F$4,$V17-4,0)))","v":""},{"$f":"IF(ISERROR($V17),\"\",OFFSET('Smelter Look-up'!$G$4,$V17-4,0))","v":""},{"$f":"IF(ISERROR($V17),\"\",OFFSET('Smelter Look-up'!$H$4,$V17-4,0))","v":""},{"$f":"IF(ISERROR($V17),\"\",OFFSET('Smelter Look-up'!$I$4,$V17-4,0))","v":""},{"$nulls":7},{"$f":"IF(ISERROR($V17),\"\",OFFSET('Smelter Look-up'!$C$4,$V17-4,0)&\"\")","v":""},"",{"$f":"IF(B17=\"\",\"\",IF(ISERROR(MATCH($J17,SorP!$B$1:$B$6230,0)),\"\",INDIRECT(\"'SorP'!$A$\"&MATCH($J17,SorP!$B$1:$B$6230,0))))","v":""},null,{"$f":"IF(C17=\"\",NA(),MATCH($B17&$C17,'Smelter Look-up'!$J:$J,0))","v":{"$error":"#N/A"}},null,0,null,null,null,""]
[null,{"$f":"IF(LEN(A18)=0,\"\",INDEX('Smelter Look-up'!$A:$A,MATCH($A18,'Smelter Look-up'!$E:$E,0)))","v":""},{"$f":"IF(LEN(A18)=0,\"\",INDEX('Smelter Look-up'!$C:$C,MATCH($A18,'Smelter Look-up'!$E:$E,0)))","v":""},null,{"$f":"IF(ISERROR($V18),\"\",OFFSET('Smelter Look-up'!$D$4,$V18-4,0)&\"\")","v":""},{"$f":"IF(ISERROR($V18),\"\",OFFSET('Smelter Look-up'!$E$4,$V18-4,0))","v":""},{"$f":"IF(C18=$X$4,\"Enter smelter details\", IF(ISERROR($V18),\"\",OFFSET('Smelter Look-up'!$F$4,$V18-4,0)))","v":""},{"$f":"IF(ISERROR($V18),\"\",OFFSET('Smelter Look-up'!$G$4,$V18-4,0))","v":""},{"$f":"IF(ISERROR($V18),\"\",OFFSET('Smelter Look-up'!$H$4,$V18-4,0))","v":""},{"$f":"IF(ISERROR($V18),\"\",OFFSET('Smelter Look-up'!$I$4,$V18-4,0))","v":""},{"$nulls":7},{"$f":"IF(ISERROR($V18),\"\",OFFSET('Smelter Look-up'!$C$4,$V18-4,0)&\"\")","v":""},"",{"$f":"IF(B18=\"\",\"\",IF(ISERROR(MATCH($J18,SorP!$B$1:$B$6230,0)),\"\",INDIRECT(\"'SorP'!$A$\"&MATCH($J18,SorP!$B$1:$B$6230,0))))","v":""},null,{"$f":"IF(C18=\"\",NA(),MATCH($B18&$C18,'Smelter Look-up'!$J:$J,0))","v":{"$error":"#N/A"}},null,0,null,null,null,""]
[null,{"$f":"IF(LEN(A19)=0,\"\",INDEX('Smelter Look-up'!$A:$A,MATCH($A19,'Smelter Look-up'!$E:$E,0)))","v":""},{"$f":"IF(LEN(A19)=0,\"\",INDEX('Smelter Look-up'!$C:$C,MATCH($A19,'Smelter Look-up'!$E:$E,0)))","v":""},null,{"$f":"IF(ISERROR($V19),\"\",OFFSET('Smelter Look-up'!$D$4,$V19-4,0)&\"\")","v":""},{"$f":"IF(ISERROR($V19),\"\",OFFSET('Smelter Look-up'!$E$4,$V19-4,0))","v":""},{"$f":"IF(C19=$X$4,\"Enter smelter details\", IF(ISERROR($V19),\"\",OFFSET('Smelter Look-up'!$F$4,$V19-4,0)))","v":""},{"$f":"IF(ISERROR($V19),\"\",OFFSET('Smelter Look-up'!$G$4,$V19-4,0))","v":""},{"$f":"IF(ISERROR($V19),\"\",OFFSET('Smelter Look-up'!$H$4,$V19-4,0))","v":""},{"$f":"IF(ISERROR($V19),\"\",OFFSET('Smelter Look-up'!$I$4,$V19-4,0))","v":""},{"$nulls":7},{"$f":"IF(ISERROR($V19),\"\",OFFSET('Smelter Look-up'!$C$4,$V19-4,0)&\"\")","v":""},"",{"$f":"IF(B19=\"\",\"\",IF(ISERROR(MATCH($J19,SorP!$B$1:$B$6230,0)),\"\",INDIRECT(\"'SorP'!$A$\"&MATCH($J19,SorP!$B$1:$B$6230,0))))","v":""},null,{"$f":"IF(C19=\"\",NA(),MATCH($B19&$C19,'Smelter Look-up'!$J:$J,0))","v":{"$error":"#N/A"}},null,0,null,null,null,""]
[null,{"$f":"IF(LEN(A20)=0,\"\",INDEX('Smelter Look-up'!$A:$A,MATCH($A20,'Smelter Look-up'!$E:$E,0)))","v":""},{"$f":"IF(LEN(A20)=0,\"\",INDEX('Smelter Look-up'!$C:$C,MATCH($A20,'Smelter Look-up'!$E:$E,0)))","v":""},null,{"$f":"IF(ISERROR($V20),\"\",OFFSET('Smelter Look-up'!$D$4,$V20-4,0)&\"\")","v":""},{"$f":"IF(ISERROR($V20),\"\",OFFSET('Smelter Look-up'!$E$4,$V20-4,0))","v":""},{"$f":"IF(C20=$X$4,\"Enter smelter details\", IF(ISERROR($V20),\"\",OFFSET('Smelter Look-up'!$F$4,$V20-4,0)))","v":""},{"$f":"IF(ISERROR($V20),\"\",OFFSET('Smelter Look-up'!$G$4,$V20-4,0))","v":""},{"$f":"IF(ISERROR($V20),\"\",OFFSET('Smelter Look-up'!$H$4,$V20-4,0))","v":""},{"$f":"IF(ISERROR($V20),\"\",OFFSET('Smelter Look-up'!$I$4,$V20-4,0))","v":""},{"$nulls":7},{"$f":"IF(ISERROR($V20),\"\",OFFSET('Smelter Look-up'!$C$4,$V20-4,0)&\"\")","v":""},"",{"$f":"IF(B20=\"\",\"\",IF(ISERROR(MATCH($J20,SorP!$B$1:$B$6230,0)),\"\",INDIRECT(\"'SorP'!$A$\"&MATCH($J20,SorP!$B$1:$B$6230,0))))","v":""},null,{"$f":"IF(C20=\"\",NA(),MATCH($B20&$C20,'Smelter Look-up'!$J:$J,0))","v":{"$error":"#N/A"}},null,0,null,null,null,""]
[null,{"$f":"IF(LEN(A21)=0,\"\",INDEX('Smelter Look-up'!$A:$A,MATCH($A21,'Smelter Look-up'!$E:$E,0)))","v":""},{"$f":"IF(LEN(A21)=0,\"\",INDEX('Smelter Look-up'!$C:$C,MATCH($A21,'Smelter Look-up'!$E:$E,0)))","v":""},null,{"$f":"IF(ISERROR($V21),\"\",OFFSET('Smelter Look-up'!$D$4,$V21-4,0)&\"\")","v":""},{"$f":"IF(ISERROR($V21),\"\",OFFSET('Smelter Look-up'!$E$4,$V21-4,0))","v":""},{"$f":"IF(C21=$X$4,\"Enter smelter details\", IF(ISERROR($V21),\"\",OFFSET('Smelter Look-up'!$F$4,$V21-4,0)))","v":""},{"$f":"IF(ISERROR($V21),\"\",OFFSET('Smelter Look-up'!$G$4,$V21-4,0))","v":""},{"$f":"IF(ISERROR($V21),\"\",OFFSET('Smelter Look-up'!$H$4,$V21-4,0))","v":""},{"$f":"IF(ISERROR($V21),\"\",OFFSET('Smelter Look-up'!$I$4,$V21-4,0))","v":""},{"$nulls":7},{"$f":"IF(ISERROR($V21),\"\",OFFSET('Smelter Look-up'!$C$4,$V21-4,0)&\"\")","v":""},"",{"$f":"IF(B21=\"\",\"\",IF(ISERROR(MATCH($J21,SorP!$B$1:$B$6230,0)),\"\",INDIRECT(\"'SorP'!$A$\"&MATCH($J21,SorP!$B$1:$B$6230,0))))","v":""},null,{"$f":"IF(C21=\"\",NA(),MATCH($B21&$C21,'Smelter Look-up'!$J:$J,0))","v":{"$error":"#N/A"}},null,0,null,null,null,""]
[null,{"$f":"IF(LEN(A22)=0,\"\",INDEX('Smelter Look-up'!$A:$A,MATCH($A22,'Smelter Look-up'!$E:$E,0)))","v":""},{"$f":"IF(LEN(A22)=0,\"\",INDEX('Smelter Look-up'!$C:$C,MATCH($A22,'Smelter Look-up'!$E:$E,0)))","v":""},null,{"$f":"IF(ISERROR($V22),\"\",OFFSET('Smelter Look-up'!$D$4,$V22-4,0)&\"\")","v":""},{"$f":"IF(ISERROR($V22),\"\",OFFSET('Smelter Look-up'!$E$4,$V22-4,0))","v":""},{"$f":"IF(C22=$X$4,\"Enter smelter details\", IF(ISERROR($V22),\"\",OFFSET('Smelter Look-up'!$F$4,$V22-4,0)))","v":""},{"$f":"IF(ISERROR($V22),\"\",OFFSET('Smelter Look-up'!$G$4,$V22-4,0))","v":""},{"$f":"IF(ISERROR($V22),\"\",OFFSET('Smelter Look-up'!$H$4,$V22-4,0))","v":""},{"$f":"IF(ISERROR($V22),\"\",OFFSET('Smelter Look-up'!$I$4,$V22-4,0))","v":""},{"$nulls":7},{"$f":"IF(ISERROR($V22),\"\",OFFSET('Smelter Look-up'!$C$4,$V22-4,0)&\"\")","v":""},"",{"$f":"IF(B22=\"\",\"\",IF(ISERROR(MATCH($J22,SorP!$B$1:$B$6230,0)),\"\",INDIRECT(\"'SorP'!$A$\"&MATCH($J22,SorP!$B$1:$B$6230,0))))","v":""},null,{"$f":"IF(C22=\"\",NA(),MATCH($B22&$C22,'Smelter Look-up'!$J:$J,0))","v":{"$error":"#N/A"}},null,0,null,null,null,""]
[null,{"$f":"IF(LEN(A23)=0,\"\",INDEX('Smelter Look-up'!$A:$A,MATCH($A23,'Smelter Look-up'!$E:$E,0)))","v":""},{"$f":"IF(LEN(A23)=0,\"\",INDEX('Smelter Look-up'!$C:$C,MATCH($A23,'Smelter Look-up'!$E:$E,0)))","v":""},null,{"$f":"IF(ISERROR($V23),\"\",OFFSET('Smelter Look-up'!$D$4,$V23-4,0)&\"\")","v":""},{"$f":"IF(ISERROR($V23),\"\",OFFSET('Smelter Look-up'!$E$4,$V23-4,0))","v":""},{"$f":"IF(C23=$X$4,\"Enter smelter details\", IF(ISERROR($V23),\"\",OFFSET('Smelter Look-up'!$F$4,$V23-4,0)))","v":""},{"$f":"IF(ISERROR($V23),\"\",OFFSET('Smelter Look-up'!$G$4,$V23-4,0))","v":""},{"$f":"IF(ISERROR($V23),\"\",OFFSET('Smelter Look-up'!$H$4,$V23-4,0))","v":""},{"$f":"IF(ISERROR($V23),\"\",OFFSET('Smelter Look-up'!$I$4,$V23-4,0))","v":""},{"$nulls":7},{"$f":"IF(ISERROR($V23),\"\",OFFSET('Smelter Look-up'!$C$4,$V23-4,0)&\"\")","v":""},"",{"$f":"IF(B23=\"\",\"\",IF(ISERROR(MATCH($J23,SorP!$B$1:$B$6230,0)),\"\",INDIRECT(\"'SorP'!$A$\"&MATCH($J23,SorP!$B$1:$B$6230,0))))","v":""},null,{"$f":"IF(C23=\"\",NA(),MATCH($B23&$C23,'Smelter Look-up'!$J:$J,0))","v":{"$error":"#N/A"}},null,0,null,null,null,""]
[null,{"$f":"IF(LEN(A24)=0,\"\",INDEX('Smelter Look-up'!$A:$A,MATCH($A24,'Smelter Look-up'!$E:$E,0)))","v":""},{"$f":"IF(LEN(A24)=0,\"\",INDEX('Smelter Look-up'!$C:$C,MATCH($A24,'Smelter Look-up'!$E:$E,0)))","v":""},null,{"$f":"IF(ISERROR($V24),\"\",OFFSET('Smelter Look-up'!$D$4,$V24-4,0)&\"\")","v":""},{"$f":"IF(ISERROR($V24),\"\",OFFSET('Smelter Look-up'!$E$4,$V24-4,0))","v":""},{"$f":"IF(C24=$X$4,\"Enter smelter details\", IF(ISERROR($V24),\"\",OFFSET('Smelter Look-up'!$F$4,$V24-4,0)))","v":""},{"$f":"IF(ISERROR($V24),\"\",OFFSET('Smelter Look-up'!$G$4,$V24-4,0))","v":""},{"$f":"IF(ISERROR($V24),\"\",OFFSET('Smelter Look-up'!$H$4,$V24-4,0))","v":""},{"$f":"IF(ISERROR($V24),\"\",OFFSET('Smelter Look-up'!$I$4,$V24-4,0))","v":""},{"$nulls":7},{"$f":"IF(ISERROR($V24),\"\",OFFSET('Smelter Look-up'!$C$4,$V24-4,0)&\"\")","v":""},"",{"$f":"IF(B24=\"\",\"\",IF(ISERROR(MATCH($J24,SorP!$B$1:$B$6230,0)),\"\",INDIRECT(\"'SorP'!$A$\"&MATCH($J24,SorP!$B$1:$B$6230,0))))","v":""},null,{"$f":"IF(C24=\"\",NA(),MATCH($B24&$C24,'Smelter Look-up'!$J:$J,0))","v":{"$error":"#N/A"}},null,0,null,null,null,""]
[null,{"$f":"IF(LEN(A25)=0,\"\",INDEX('Smelter Look-up'!$A:$A,MATCH($A25,'Smelter Look-up'!$E:$E,0)))","v":""},{"$f":"IF(LEN(A25)=0,\"\",INDEX('Smelter Look-up'!$C:$C,MATCH($A25,'Smelter Look-up'!$E:$E,0)))","v":""},null,{"$f":"IF(ISERROR($V25),\"\",OFFSET('Smelter Look-up'!$D$4,$V25-4,0)&\"\")","v":""},{"$f":"IF(ISERROR($V25),\"\",OFFSET('Smelter Look-up'!$E$4,$V25-4,0))","v":""},{"$f":"IF(C25=$X$4,\"Enter smelter details\", IF(ISERROR($V25),\"\",OFFSET('Smelter Look-up'!$F$4,$V25-4,0)))","v":""},{"$f":"IF(ISERROR($V25),\"\",OFFSET('Smelter Look-up'!$G$4,$V25-4,0))","v":""},{"$f":"IF(ISERROR($V25),\"\",OFFSET('Smelter Look-up'!$H$4,$V25-4,0))","v":""},{"$f":"IF(ISERROR($V25),\"\",OFFSET('Smelter Look-up'!$I$4,$V25-4,0))","v":""},{"$nulls":7},{"$f":"IF(ISERROR($V25),\"\",OFFSET('Smelter Look-up'!$C$4,$V25-4,0)&\"\")","v":""},"",{"$f":"IF(B25=\"\",\"\",IF(ISERROR(MATCH($J25,SorP!$B$1:$B$6230,0)),\"\",INDIRECT(\"'SorP'!$A$\"&MATCH($J25,SorP!$B$1:$B$6230,0))))","v":""},null,{"$f":"IF(C25=\"\",NA(),MATCH($B25&$C25,'Smelter Look-up'!$J:$J,0))","v":{"$error":"#N/A"}},null,0,null,null,null,""]
[null,{"$f":"IF(LEN(A26)=0,\"\",INDEX('Smelter Look-up'!$A:$A,MATCH($A26,'Smelter Look-up'!$E:$E,0)))","v":""},{"$f":"IF(LEN(A26)=0,\"\",INDEX('Smelter Look-up'!$C:$C,MATCH($A26,'Smelter Look-up'!$E:$E,0)))","v":""},null,{"$f":"IF(ISERROR($V26),\"\",OFFSET('Smelter Look-up'!$D$4,$V26-4,0)&\"\")","v":""},{"$f":"IF(ISERROR($V26),\"\",OFFSET('Smelter Look-up'!$E$4,$V26-4,0))","v":""},{"$f":"IF(C26=$X$4,\"Enter smelter details\", IF(ISERROR($V26),\"\",OFFSET('Smelter Look-up'!$F$4,$V26-4,0)))","v":""},{"$f":"IF(ISERROR($V26),\"\",OFFSET('Smelter Look-up'!$G$4,$V26-4,0))","v":""},{"$f":"IF(ISERROR($V26),\"\",OFFSET('Smelter Look-up'!$H$4,$V26-4,0))","v":""},{"$f":"IF(ISERROR($V26),\"\",OFFSET('Smelter Look-up'!$I$4,$V26-4,0))","v":""},{"$nulls":7},{"$f":"IF(ISERROR($V26),\"\",OFFSET('Smelter Look-up'!$C$4,$V26-4,0)&\"\")","v":""},"",{"$f":"IF(B26=\"\",\"\",IF(ISERROR(MATCH($J26,SorP!$B$1:$B$6230,0)),\"\",INDIRECT(\"'SorP'!$A$\"&MATCH($J26,SorP!$B$1:$B$6230,0))))","v":""},null,{"$f":"IF(C26=\"\",NA(),MATCH($B26&$C26,'Smelter Look-up'!$J:$J,0))","v":{"$error":"#N/A"}},null,0,null,null,null,""]
[null,{"$f":"IF(LEN(A27)=0,\"\",INDEX('Smelter Look-up'!$A:$A,MATCH($A27,'Smelter Look-up'!$E:$E,0)))","v":""},{"$f":"IF(LEN(A27)=0,\"\",INDEX('Smelter Look-up'!$C:$C,MATCH($A27,'Smelter Look-up'!$E:$E,0)))","v":""},null,{"$f":"IF(ISERROR($V27),\"\",OFFSET('Smelter Look-up'!$D$4,$V27-4,0)&\"\")","v":""},{"$f":"IF(ISERROR($V27),\"\",OFFSET('Smelter Look-up'!$E$4,$V27-4,0))","v":""},{"$f":"IF(C27=$X$4,\"Enter smelter details\", IF(ISERROR($V27),\"\",OFFSET('Smelter Look-up'!$F$4,$V27-4,0)))","v":""},{"$f":"IF(ISERROR($V27),\"\",OFFSET('Smelter Look-up'!$G$4,$V27-4,0))","v":""},{"$f":"IF(ISERROR($V27),\"\",OFFSET('Smelter Look-up'!$H$4,$V27-4,0))","v":""},{"$f":"IF(ISERROR($V27),\"\",OFFSET('Smelter Look-up'!$I$4,$V27-4,0))","v":""},{"$nulls":7},{"$f":"IF(ISERROR($V27),\"\",OFFSET('Smelter Look-up'!$C$4,$V27-4,0)&\"\")","v":""},"",{"$f":"IF(B27=\"\",\"\",IF(ISERROR(MATCH($J27,SorP!$B$1:$B$6230,0)),\"\",INDIRECT(\"'SorP'!$A$\"&MATCH($J27,SorP!$B$1:$B$6230,0))))","v":""},null,{"$f":"IF(C27=\"\",NA(),MATCH($B27&$C27,'Smelter Look-up'!$J:$J,0))","v":{"$error":"#N/A"}},null,0,null,null,null,""]
[null,{"$f":"IF(LEN(A28)=0,\"\",INDEX('Smelter Look-up'!$A:$A,MATCH($A28,'Smelter Look-up'!$E:$E,0)))","v":""},{"$f":"IF(LEN(A28)=0,\"\",INDEX('Smelter Look-up'!$C:$C,MATCH($A28,'Smelter Look-up'!$E:$E,0)))","v":""},null,{"$f":"IF(ISERROR($V28),\"\",OFFSET('Smelter Look-up'!$D$4,$V28-4,0)&\"\")","v":""},{"$f":"IF(ISERROR($V28),\"\",OFFSET('Smelter Look-up'!$E$4,$V28-4,0))","v":""},{"$f":"IF(C28=$X$4,\"Enter smelter details\", IF(ISERROR($V28),\"\",OFFSET('Smelter Look-up'!$F$4,$V28-4,0)))","v":""},{"$f":"IF(ISERROR($V28),\"\",OFFSET('Smelter Look-up'!$G$4,$V28-4,0))","v":""},{"$f":"IF(ISERROR($V28),\"\",OFFSET('Smelter Look-up'!$H$4,$V28-4,0))","v":""},{"$f":"IF(ISERROR($V28),\"\",OFFSET('Smelter Look-up'!$I$4,$V28-4,0))","v":""},{"$nulls":7},{"$f":"IF(ISERROR($V28),\"\",OFFSET('Smelter Look-up'!$C$4,$V28-4,0)&\"\")","v":""},"",{"$f":"IF(B28=\"\",\"\",IF(ISERROR(MATCH($J28,SorP!$B$1:$B$6230,0)),\"\",INDIRECT(\"'SorP'!$A$\"&MATCH($J28,SorP!$B$1:$B$6230,0))))","v":""},null,{"$f":"IF(C28=\"\",NA(),MATCH($B28&$C28,'Smelter Look-up'!$J:$J,0))","v":{"$error":"#N/A"}},null,0,null,null,null,""]
[null,{"$f":"IF(LEN(A29)=0,\"\",INDEX('Smelter Look-up'!$A:$A,MATCH($A29,'Smelter Look-up'!$E:$E,0)))","v":""},{"$f":"IF(LEN(A29)=0,\"\",INDEX('Smelter Look-up'!$C:$C,MATCH($A29,'Smelter Look-up'!$E:$E,0)))","v":""},null,{"$f":"IF(ISERROR($V29),\"\",OFFSET('Smelter Look-up'!$D$4,$V29-4,0)&\"\")","v":""},{"$f":"IF(ISERROR($V29),\"\",OFFSET('Smelter Look-up'!$E$4,$V29-4,0))","v":""},{"$f":"IF(C29=$X$4,\"Enter smelter details\", IF(ISERROR($V29),\"\",OFFSET('Smelter Look-up'!$F$4,$V29-4,0)))","v":""},{"$f":"IF(ISERROR($V29),\"\",OFFSET('Smelter Look-up'!$G$4,$V29-4,0))","v":""},{"$f":"IF(ISERROR($V29),\"\",OFFSET('Smelter Look-up'!$H$4,$V29-4,0))","v":""},{"$f":"IF(ISERROR($V29),\"\",OFFSET('Smelter Look-up'!$I$4,$V29-4,0))","v":""},{"$nulls":7},{"$f":"IF(ISERROR($V29),\"\",OFFSET('Smelter Look-up'!$C$4,$V29-4,0)&\"\")","v":""},"",{"$f":"IF(B29=\"\",\"\",IF(ISERROR(MATCH($J29,SorP!$B$1:$B$6230,0)),\"\",INDIRECT(\"'SorP'!$A$\"&MATCH($J29,SorP!$B$1:$B$6230,0))))","v":""},null,{"$f":"IF(C29=\"\",NA(),MATCH($B29&$C29,'Smelter Look-up'!$J:$J,0))","v":{"$error":"#N/A"}},null,0,null,null,null,""]
[null,{"$f":"IF(LEN(A30)=0,\"\",INDEX('Smelter Look-up'!$A:$A,MATCH($A30,'Smelter Look-up'!$E:$E,0)))","v":""},{"$f":"IF(LEN(A30)=0,\"\",INDEX('Smelter Look-up'!$C:$C,MATCH($A30,'Smelter Look-up'!$E:$E,0)))","v":""},null,{"$f":"IF(ISERROR($V30),\"\",OFFSET('Smelter Look-up'!$D$4,$V30-4,0)&\"\")","v":""},{"$f":"IF(ISERROR($V30),\"\",OFFSET('Smelter Look-up'!$E$4,$V30-4,0))","v":""},{"$f":"IF(C30=$X$4,\"Enter smelter details\", IF(ISERROR($V30),\"\",OFFSET('Smelter Look-up'!$F$4,$V30-4,0)))","v":""},{"$f":"IF(ISERROR($V30),\"\",OFFSET('Smelter Look-up'!$G$4,$V30-4,0))","v":""},{"$f":"IF(ISERROR($V30),\"\",OFFSET('Smelter Look-up'!$H$4,$V30-4,0))","v":""},{"$f":"IF(ISERROR($V30),\"\",OFFSET('Smelter Look-up'!$I$4,$V30-4,0))","v":""},{"$nulls":7},{"$f":"IF(ISERROR($V30),\"\",OFFSET('Smelter Look-up'!$C$4,$V30-4,0)&\"\")","v":""},"",{"$f":"IF(B30=\"\",\"\",IF(ISERROR(MATCH($J30,SorP!$B$1:$B$6230,0)),\"\",INDIRECT(\"'SorP'!$A$\"&MATCH($J30,SorP!$B$1:$B$6230,0))))","v":""},null,{"$f":"IF(C30=\"\",NA(),MATCH($B30&$C30,'Smelter Look-up'!$J:$J,0))","v":{"$error":"#N/A"}},null,0,null,null,null,""]
[null,{"$f":"IF(LEN(A31)=0,\"\",INDEX('Smelter Look-up'!$A:$A,MATCH($A31,'Smelter Look-up'!$E:$E,0)))","v":""},{"$f":"IF(LEN(A31)=0,\"\",INDEX('Smelter Look-up'!$C:$C,MATCH($A31,'Smelter Look-up'!$E:$E,0)))","v":""},null,{"$f":"IF(ISERROR($V31),\"\",OFFSET('Smelter Look-up'!$D$4,$V31-4,0)&\"\")","v":""},{"$f":"IF(ISERROR($V31),\"\",OFFSET('Smelter Look-up'!$E$4,$V31-4,0))","v":""},{"$f":"IF(C31=$X$4,\"Enter smelter details\", IF(ISERROR($V31),\"\",OFFSET('Smelter Look-up'!$F$4,$V31-4,0)))","v":""},{"$f":"IF(ISERROR($V31),\"\",OFFSET('Smelter Look-up'!$G$4,$V31-4,0))","v":""},{"$f":"IF(ISERROR($V31),\"\",OFFSET('Smelter Look-up'!$H$4,$V31-4,0))","v":""},{"$f":"IF(ISERROR($V31),\"\",OFFSET('Smelter Look-up'!$I$4,$V31-4,0))","v":""},{"$nulls":7},{"$f":"IF(ISERROR($V31),\"\",OFFSET('Smelter Look-up'!$C$4,$V31-4,0)&\"\")","v":""},"",{"$f":"IF(B31=\"\",\"\",IF(ISERROR(MATCH($J31,SorP!$B$1:$B$6230,0)),\"\",INDIRECT(\"'SorP'!$A$\"&MATCH($J31,SorP!$B$1:$B$6230,0))))","v":""},null,{"$f":"IF(C31=\"\",NA(),MATCH($B31&$C31,'Smelter Look-up'!$J:$J,0))","v":{"$error":"#N/A"}},null,0,null,null,null,""]
[null,{"$f":"IF(LEN(A32)=0,\"\",INDEX('Smelter Look-up'!$A:$A,MATCH($A32,'Smelter Look-up'!$E:$E,0)))","v":""},{"$f":"IF(LEN(A32)=0,\"\",INDEX('Smelter Look-up'!$C:$C,MATCH($A32,'Smelter Look-up'!$E:$E,0)))","v":""},null,{"$f":"IF(ISERROR($V32),\"\",OFFSET('Smelter Look-up'!$D$4,$V32-4,0)&\"\")","v":""},{"$f":"IF(ISERROR($V32),\"\",OFFSET('Smelter Look-up'!$E$4,$V32-4,0))","v":""},{"$f":"IF(C32=$X$4,\"Enter smelter details\", IF(ISERROR($V32),\"\",OFFSET('Smelter Look-up'!$F$4,$V32-4,0)))","v":""},{"$f":"IF(ISERROR($V32),\"\",OFFSET('Smelter Look-up'!$G$4,$V32-4,0))","v":""},{"$f":"IF(ISERROR($V32),\"\",OFFSET('Smelter Look-up'!$H$4,$V32-4,0))","v":""},{"$f":"IF(ISERROR($V32),\"\",OFFSET('Smelter Look-up'!$I$4,$V32-4,0))","v":""},{"$nulls":7},{"$f":"IF(ISERROR($V32),\"\",OFFSET('Smelter Look-up'!$C$4,$V32-4,0)&\"\")","v":""},"",{"$f":"IF(B32=\"\",\"\",IF(ISERROR(MATCH($J32,SorP!$B$1:$B$6230,0)),\"\",INDIRECT(\"'SorP'!$A$\"&MATCH($J32,SorP!$B$1:$B$6230,0))))","v":""},null,{"$f":"IF(C32=\"\",NA(),MATCH($B32&$C32,'Smelter Look-up'!$J:$J,0))","v":{"$error":"#N/A"}},null,0,null,null,null,""]
[null,{"$f":"IF(LEN(A33)=0,\"\",INDEX('Smelter Look-up'!$A:$A,MATCH($A33,'Smelter Look-up'!$E:$E,0)))","v":""},{"$f":"IF(LEN(A33)=0,\"\",INDEX('Smelter Look-up'!$C:$C,MATCH($A33,'Smelter Look-up'!$E:$E,0)))","v":""},null,{"$f":"IF(ISERROR($V33),\"\",OFFSET('Smelter Look-up'!$D$4,$V33-4,0)&\"\")","v":""},{"$f":"IF(ISERROR($V33),\"\",OFFSET('Smelter Look-up'!$E$4,$V33-4,0))","v":""},{"$f":"IF(C33=$X$4,\"Enter smelter details\", IF(ISERROR($V33),\"\",OFFSET('Smelter Look-up'!$F$4,$V33-4,0)))","v":""},{"$f":"IF(ISERROR($V33),\"\",OFFSET('Smelter Look-up'!$G$4,$V33-4,0))","v":""},{"$f":"IF(ISERROR($V33),\"\",OFFSET('Smelter Look-up'!$H$4,$V33-4,0))","v":""},{"$f":"IF(ISERROR($V33),\"\",OFFSET('Smelter Look-up'!$I$4,$V33-4,0))","v":""},{"$nulls":7},{"$f":"IF(ISERROR($V33),\"\",OFFSET('Smelter Look-up'!$C$4,$V33-4,0)&\"\")","v":""},"",{"$f":"IF(B33=\"\",\"\",IF(ISERROR(MATCH($J33,SorP!$B$1:$B$6230,0)),\"\",INDIRECT(\"'SorP'!$A$\"&MATCH($J33,SorP!$B$1:$B$6230,0))))","v":""},null,{"$f":"IF(C33=\"\",NA(),MATCH($B33&$C33,'Smelter Look-up'!$J:$J,0))","v":{"$error":"#N/A"}},null,0,null,null,null,""]
[null,{"$f":"IF(LEN(A34)=0,\"\",INDEX('Smelter Look-up'!$A:$A,MATCH($A34,'Smelter Look-up'!$E:$E,0)))","v":""},{"$f":"IF(LEN(A34)=0,\"\",INDEX('Smelter Look-up'!$C:$C,MATCH($A34,'Smelter Look-up'!$E:$E,0)))","v":""},null,{"$f":"IF(ISERROR($V34),\"\",OFFSET('Smelter Look-up'!$D$4,$V34-4,0)&\"\")","v":""},{"$f":"IF(ISERROR($V34),\"\",OFFSET('Smelter Look-up'!$E$4,$V34-4,0))","v":""},{"$f":"IF(C34=$X$4,\"Enter smelter details\", IF(ISERROR($V34),\"\",OFFSET('Smelter Look-up'!$F$4,$V34-4,0)))","v":""},{"$f":"IF(ISERROR($V34),\"\",OFFSET('Smelter Look-up'!$G$4,$V34-4,0))","v":""},{"$f":"IF(ISERROR($V34),\"\",OFFSET('Smelter Look-up'!$H$4,$V34-4,0))","v":""},{"$f":"IF(ISERROR($V34),\"\",OFFSET('Smelter Look-up'!$I$4,$V34-4,0))","v":""},{"$nulls":7},{"$f":"IF(ISERROR($V34),\"\",OFFSET('Smelter Look-up'!$C$4,$V34-4,0)&\"\")","v":""},"",{"$f":"IF(B34=\"\",\"\",IF(ISERROR(MATCH($J34,SorP!$B$1:$B$6230,0)),\"\",INDIRECT(\"'SorP'!$A$\"&MATCH($J34,SorP!$B$1:$B$6230,0))))","v":""},null,{"$f":"IF(C34=\"\",NA(),MATCH($B34&$C34,'Smelter Look-up'!$J:$J,0))","v":{"$error":"#N/A"}},null,0,null,null,null,""]
[null,{"$f":"IF(LEN(A35)=0,\"\",INDEX('Smelter Look-up'!$A:$A,MATCH($A35,'Smelter Look-up'!$E:$E,0)))","v":""},{"$f":"IF(LEN(A35)=0,\"\",INDEX('Smelter Look-up'!$C:$C,MATCH($A35,'Smelter Look-up'!$E:$E,0)))","v":""},null,{"$f":"IF(ISERROR($V35),\"\",OFFSET('Smelter Look-up'!$D$4,$V35-4,0)&\"\")","v":""},{"$f":"IF(ISERROR($V35),\"\",OFFSET('Smelter Look-up'!$E$4,$V35-4,0))","v":""},{"$f":"IF(C35=$X$4,\"Enter smelter details\", IF(ISERROR($V35),\"\",OFFSET('Smelter Look-up'!$F$4,$V35-4,0)))","v":""},{"$f":"IF(ISERROR($V35),\"\",OFFSET('Smelter Look-up'!$G$4,$V35-4,0))","v":""},{"$f":"IF(ISERROR($V35),\"\",OFFSET('Smelter Look-up'!$H$4,$V35-4,0))","v":""},{"$f":"IF(ISERROR($V35),\"\",OFFSET('Smelter Look-up'!$I$4,$V35-4,0))","v":""},{"$nulls":7},{"$f":"IF(ISERROR($V35),\"\",OFFSET('Smelter Look-up'!$C$4,$V35-4,0)&\"\")","v":""},"",{"$f":"IF(B35=\"\",\"\",IF(ISERROR(MATCH($J35,SorP!$B$1:$B$6230,0)),\"\",INDIRECT(\"'SorP'!$A$\"&MATCH($J35,SorP!$B$1:$B$6230,0))))","v":""},null,{"$f":"IF(C35=\"\",NA(),MATCH($B35&$C35,'Smelter Look-up'!$J:$J,0))","v":{"$error":"#N/A"}},null,0,null,null,null,""]
[null,{"$f":"IF(LEN(A36)=0,\"\",INDEX('Smelter Look-up'!$A:$A,MATCH($A36,'Smelter Look-up'!$E:$E,0)))","v":""},{"$f":"IF(LEN(A36)=0,\"\",INDEX('Smelter Look-up'!$C:$C,MATCH($A36,'Smelter Look-up'!$E:$E,0)))","v":""},null,{"$f":"IF(ISERROR($V36),\"\",OFFSET('Smelter Look-up'!$D$4,$V36-4,0)&\"\")","v":""},{"$f":"IF(ISERROR($V36),\"\",OFFSET('Smelter Look-up'!$E$4,$V36-4,0))","v":""},{"$f":"IF(C36=$X$4,\"Enter smelter details\", IF(ISERROR($V36),\"\",OFFSET('Smelter Look-up'!$F$4,$V36-4,0)))","v":""},{"$f":"IF(ISERROR($V36),\"\",OFFSET('Smelter Look-up'!$G$4,$V36-4,0))","v":""},{"$f":"IF(ISERROR($V36),\"\",OFFSET('Smelter Look-up'!$H$4,$V36-4,0))","v":""},{"$f":"IF(ISERROR($V36),\"\",OFFSET('Smelter Look-up'!$I$4,$V36-4,0))","v":""},{"$nulls":7},{"$f":"IF(ISERROR($V36),\"\",OFFSET('Smelter Look-up'!$C$4,$V36-4,0)&\"\")","v":""},"",{"$f":"IF(B36=\"\",\"\",IF(ISERROR(MATCH($J36,SorP!$B$1:$B$6230,0)),\"\",INDIRECT(\"'SorP'!$A$\"&MATCH($J36,SorP!$B$1:$B$6230,0))))","v":""},null,{"$f":"IF(C36=\"\",NA(),MATCH($B36&$C36,'Smelter Look-up'!$J:$J,0))","v":{"$error":"#N/A"}},null,0,null,null,null,""]
[null,{"$f":"IF(LEN(A37)=0,\"\",INDEX('Smelter Look-up'!$A:$A,MATCH($A37,'Smelter Look-up'!$E:$E,0)))","v":""},{"$f":"IF(LEN(A37)=0,\"\",INDEX('Smelter Look-up'!$C:$C,MATCH($A37,'Smelter Look-up'!$E:$E,0)))","v":""},null,{"$f":"IF(ISERROR($V37),\"\",OFFSET('Smelter Look-up'!$D$4,$V37-4,0)&\"\")","v":""},{"$f":"IF(ISERROR($V37),\"\",OFFSET('Smelter Look-up'!$E$4,$V37-4,0))","v":""},{"$f":"IF(C37=$X$4,\"Enter smelter details\", IF(ISERROR($V37),\"\",OFFSET('Smelter Look-up'!$F$4,$V37-4,0)))","v":""},{"$f":"IF(ISERROR($V37),\"\",OFFSET('Smelter Look-up'!$G$4,$V37-4,0))","v":""},{"$f":"IF(ISERROR($V37),\"\",OFFSET('Smelter Look-up'!$H$4,$V37-4,0))","v":""},{"$f":"IF(ISERROR($V37),\"\",OFFSET('Smelter Look-up'!$I$4,$V37-4,0))","v":""},{"$nulls":7},{"$f":"IF(ISERROR($V37),\"\",OFFSET('Smelter Look-up'!$C$4,$V37-4,0)&\"\")","v":""},"",{"$f":"IF(B37=\"\",\"\",IF(ISERROR(MATCH($J37,SorP!$B$1:$B$6230,0)),\"\",INDIRECT(\"'SorP'!$A$\"&MATCH($J37,SorP!$B$1:$B$6230,0))))","v":""},null,{"$f":"IF(C37=\"\",NA(),MATCH($B37&$C37,'Smelter Look-up'!$J:$J,0))","v":{"$error":"#N/A"}},null,0,null,null,null,""]
[null,{"$f":"IF(LEN(A38)=0,\"\",INDEX('Smelter Look-up'!$A:$A,MATCH($A38,'Smelter Look-up'!$E:$E,0)))","v":""},{"$f":"IF(LEN(A38)=0,\"\",INDEX('Smelter Look-up'!$C:$C,MATCH($A38,'Smelter Look-up'!$E:$E,0)))","v":""},null,{"$f":"IF(ISERROR($V38),\"\",OFFSET('Smelter Look-up'!$D$4,$V38-4,0)&\"\")","v":""},{"$f":"IF(ISERROR($V38),\"\",OFFSET('Smelter Look-up'!$E$4,$V38-4,0))","v":""},{"$f":"IF(C38=$X$4,\"Enter smelter details\", IF(ISERROR($V38),\"\",OFFSET('Smelter Look-up'!$F$4,$V38-4,0)))","v":""},{"$f":"IF(ISERROR($V38),\"\",OFFSET('Smelter Look-up'!$G$4,$V38-4,0))","v":""},{"$f":"IF(ISERROR($V38),\"\",OFFSET('Smelter Look-up'!$H$4,$V38-4,0))","v":""},{"$f":"IF(ISERROR($V38),\"\",OFFSET('Smelter Look-up'!$I$4,$V38-4,0))","v":""},{"$nulls":7},{"$f":"IF(ISERROR($V38),\"\",OFFSET('Smelter Look-up'!$C$4,$V38-4,0)&\"\")","v":""},"",{"$f":"IF(B38=\"\",\"\",IF(ISERROR(MATCH($J38,SorP!$B$1:$B$6230,0)),\"\",INDIRECT(\"'SorP'!$A$\"&MATCH($J38,SorP!$B$1:$B$6230,0))))","v":""},null,{"$f":"IF(C38=\"\",NA(),MATCH($B38&$C38,'Smelter Look-up'!$J:$J,0))","v":{"$error":"#N/A"}},null,0,null,null,null,""]
[null,{"$f":"IF(LEN(A39)=0,\"\",INDEX('Smelter Look-up'!$A:$A,MATCH($A39,'Smelter Look-up'!$E:$E,0)))","v":""},{"$f":"IF(LEN(A39)=0,\"\",INDEX('Smelter Look-up'!$C:$C,MATCH($A39,'Smelter Look-up'!$E:$E,0)))","v":""},null,{"$f":"IF(ISERROR($V39),\"\",OFFSET('Smelter Look-up'!$D$4,$V39-4,0)&\"\")","v":""},{"$f":"IF(ISERROR($V39),\"\",OFFSET('Smelter Look-up'!$E$4,$V39-4,0))","v":""},{"$f":"IF(C39=$X$4,\"Enter smelter details\", IF(ISERROR($V39),\"\",OFFSET('Smelter Look-up'!$F$4,$V39-4,0)))","v":""},{"$f":"IF(ISERROR($V39),\"\",OFFSET('Smelter Look-up'!$G$4,$V39-4,0))","v":""},{"$f":"IF(ISERROR($V39),\"\",OFFSET('Smelter Look-up'!$H$4,$V39-4,0))","v":""},{"$f":"IF(ISERROR($V39),\"\",OFFSET('Smelter Look-up'!$I$4,$V39-4,0))","v":""},{"$nulls":7},{"$f":"IF(ISERROR($V39),\"\",OFFSET('Smelter Look-up'!$C$4,$V39-4,0)&\"\")","v":""},"",{"$f":"IF(B39=\"\",\"\",IF(ISERROR(MATCH($J39,SorP!$B$1:$B$6230,0)),\"\",INDIRECT(\"'SorP'!$A$\"&MATCH($J39,SorP!$B$1:$B$6230,0))))","v":""},null,{"$f":"IF(C39=\"\",NA(),MATCH($B39&$C39,'Smelter Look-up'!$J:$J,0))","v":{"$error":"#N/A"}},null,0,null,null,null,""]
[null,{"$f":"IF(LEN(A40)=0,\"\",INDEX('Smelter Look-up'!$A:$A,MATCH($A40,'Smelter Look-up'!$E:$E,0)))","v":""},{"$f":"IF(LEN(A40)=0,\"\",INDEX('Smelter Look-up'!$C:$C,MATCH($A40,'Smelter Look-up'!$E:$E,0)))","v":""},null,{"$f":"IF(ISERROR($V40),\"\",OFFSET('Smelter Look-up'!$D$4,$V40-4,0)&\"\")","v":""},{"$f":"IF(ISERROR($V40),\"\",OFFSET('Smelter Look-up'!$E$4,$V40-4,0))","v":""},{"$f":"IF(C40=$X$4,\"Enter smelter details\", IF(ISERROR($V40),\"\",OFFSET('Smelter Look-up'!$F$4,$V40-4,0)))","v":""},{"$f":"IF(ISERROR($V40),\"\",OFFSET('Smelter Look-up'!$G$4,$V40-4,0))","v":""},{"$f":"IF(ISERROR($V40),\"\",OFFSET('Smelter Look-up'!$H$4,$V40-4,0))","v":""},{"$f":"IF(ISERROR($V40),\"\",OFFSET('Smelter Look-up'!$I$4,$V40-4,0))","v":""},{"$nulls":7},{"$f":"IF(ISERROR($V40),\"\",OFFSET('Smelter Look-up'!$C$4,$V40-4,0)&\"\")","v":""},"",{"$f":"IF(B40=\"\",\"\",IF(ISERROR(MATCH($J40,SorP!$B$1:$B$6230,0)),\"\",INDIRECT(\"'SorP'!$A$\"&MATCH($J40,SorP!$B$1:$B$6230,0))))","v":""},null,{"$f":"IF(C40=\"\",NA(),MATCH($B40&$C40,'Smelter Look-up'!$J:$J,0))","v":{"$error":"#N/A"}},null,0,null,null,null,""]
[null,{"$f":"IF(LEN(A41)=0,\"\",INDEX('Smelter Look-up'!$A:$A,MATCH($A41,'Smelter Look-up'!$E:$E,0)))","v":""},{"$f":"IF(LEN(A41)=0,\"\",INDEX('Smelter Look-up'!$C:$C,MATCH($A41,'Smelter Look-up'!$E:$E,0)))","v":""},null,{"$f":"IF(ISERROR($V41),\"\",OFFSET('Smelter Look-up'!$D$4,$V41-4,0)&\"\")","v":""},{"$f":"IF(ISERROR($V41),\"\",OFFSET('Smelter Look-up'!$E$4,$V41-4,0))","v":""},{"$f":"IF(C41=$X$4,\"Enter smelter details\", IF(ISERROR($V41),\"\",OFFSET('Smelter Look-up'!$F$4,$V41-4,0)))","v":""},{"$f":"IF(ISERROR($V41),\"\",OFFSET('Smelter Look-up'!$G$4,$V41-4,0))","v":""},{"$f":"IF(ISERROR($V41),\"\",OFFSET('Smelter Look-up'!$H$4,$V41-4,0))","v":""},{"$f":"IF(ISERROR($V41),\"\",OFFSET('Smelter Look-up'!$I$4,$V41-4,0))","v":""},{"$nulls":7},{"$f":"IF(ISERROR($V41),\"\",OFFSET('Smelter Look-up'!$C$4,$V41-4,0)&\"\")","v":""},"",{"$f":"IF(B41=\"\",\"\",IF(ISERROR(MATCH($J41,SorP!$B$1:$B$6230,0)),\"\",INDIRECT(\"'SorP'!$A$\"&MATCH($J41,SorP!$B$1:$B$6230,0))))","v":""},null,{"$f":"IF(C41=\"\",NA(),MATCH($B41&$C41,'Smelter Look-up'!$J:$J,0))","v":{"$error":"#N/A"}},null,0,null,null,null,""]
[null,{"$f":"IF(LEN(A42)=0,\"\",INDEX('Smelter Look-up'!$A:$A,MATCH($A42,'Smelter Look-up'!$E:$E,0)))","v":""},{"$f":"IF(LEN(A42)=0,\"\",INDEX('Smelter Look-up'!$C:$C,MATCH($A42,'Smelter Look-up'!$E:$E,0)))","v":""},null,{"$f":"IF(ISERROR($V42),\"\",OFFSET('Smelter Look-up'!$D$4,$V42-4,0)&\"\")","v":""},{"$f":"IF(ISERROR($V42),\"\",OFFSET('Smelter Look-up'!$E$4,$V42-4,0))","v":""},{"$f":"IF(C42=$X$4,\"Enter smelter details\", IF(ISERROR($V42),\"\",OFFSET('Smelter Look-up'!$F$4,$V42-4,0)))","v":""},{"$f":"IF(ISERROR($V42),\"\",OFFSET('Smelter Look-up'!$G$4,$V42-4,0))","v":""},{"$f":"IF(ISERROR($V42),\"\",OFFSET('Smelter Look-up'!$H$4,$V42-4,0))","v":""},{"$f":"IF(ISERROR($V42),\"\",OFFSET('Smelter Look-up'!$I$4,$V42-4,0))","v":""},{"$nulls":7},{"$f":"IF(ISERROR($V42),\"\",OFFSET('Smelter Look-up'!$C$4,$V42-4,0)&\"\")","v":""},"",{"$f":"IF(B42=\"\",\"\",IF(ISERROR(MATCH($J42,SorP!$B$1:$B$6230,0)),\"\",INDIRECT(\"'SorP'!$A$\"&MATCH($J42,SorP!$B$1:$B$6230,0))))","v":""},null,{"$f":"IF(C42=\"\",NA(),MATCH($B42&$C42,'Smelter Look-up'!$J:$J,0))","v":{"$error":"#N/A"}},null,0,null,null,null,""]
[null,{"$f":"IF(LEN(A43)=0,\"\",INDEX('Smelter Look-up'!$A:$A,MATCH($A43,'Smelter Look-up'!$E:$E,0)))","v":""},{"$f":"IF(LEN(A43)=0,\"\",INDEX('Smelter Look-up'!$C:$C,MATCH($A43,'Smelter Look-up'!$E:$E,0)))","v":""},null,{"$f":"IF(ISERROR($V43),\"\",OFFSET('Smelter Look-up'!$D$4,$V43-4,0)&\"\")","v":""},{"$f":"IF(ISERROR($V43),\"\",OFFSET('Smelter Look-up'!$E$4,$V43-4,0))","v":""},{"$f":"IF(C43=$X$4,\"Enter smelter details\", IF(ISERROR($V43),\"\",OFFSET('Smelter Look-up'!$F$4,$V43-4,0)))","v":""},{"$f":"IF(ISERROR($V43),\"\",OFFSET('Smelter Look-up'!$G$4,$V43-4,0))","v":""},{"$f":"IF(ISERROR($V43),\"\",OFFSET('Smelter Look-up'!$H$4,$V43-4,0))","v":""},{"$f":"IF(ISERROR($V43),\"\",OFFSET('Smelter Look-up'!$I$4,$V43-4,0))","v":""},{"$nulls":7},{"$f":"IF(ISERROR($V43),\"\",OFFSET('Smelter Look-up'!$C$4,$V43-4,0)&\"\")","v":""},"",{"$f":"IF(B43=\"\",\"\",IF(ISERROR(MATCH($J43,SorP!$B$1:$B$6230,0)),\"\",INDIRECT(\"'SorP'!$A$\"&MATCH($J43,SorP!$B$1:$B$6230,0))))","v":""},null,{"$f":"IF(C43=\"\",NA(),MATCH($B43&$C43,'Smelter Look-up'!$J:$J,0))","v":{"$error":"#N/A"}},null,0,null,null,null,""]
[null,{"$f":"IF(LEN(A44)=0,\"\",INDEX('Smelter Look-up'!$A:$A,MATCH($A44,'Smelter Look-up'!$E:$E,0)))","v":""},{"$f":"IF(LEN(A44)=0,\"\",INDEX('Smelter Look-up'!$C:$C,MATCH($A44,'Smelter Look-up'!$E:$E,0)))","v":""},null,{"$f":"IF(ISERROR($V44),\"\",OFFSET('Smelter Look-up'!$D$4,$V44-4,0)&\"\")","v":""},{"$f":"IF(ISERROR($V44),\"\",OFFSET('Smelter Look-up'!$E$4,$V44-4,0))","v":""},{"$f":"IF(C44=$X$4,\"Enter smelter details\", IF(ISERROR($V44),\"\",OFFSET('Smelter Look-up'!$F$4,$V44-4,0)))","v":""},{"$f":"IF(ISERROR($V44),\"\",OFFSET('Smelter Look-up'!$G$4,$V44-4,0))","v":""},{"$f":"IF(ISERROR($V44),\"\",OFFSET('Smelter Look-up'!$H$4,$V44-4,0))","v":""},{"$f":"IF(ISERROR($V44),\"\",OFFSET('Smelter Look-up'!$I$4,$V44-4,0))","v":""},{"$nulls":7},{"$f":"IF(ISERROR($V44),\"\",OFFSET('Smelter Look-up'!$C$4,$V44-4,0)&\"\")","v":""},"",{"$f":"IF(B44=\"\",\"\",IF(ISERROR(MATCH($J44,SorP!$B$1:$B$6230,0)),\"\",INDIRECT(\"'SorP'!$A$\"&MATCH($J44,SorP!$B$1:$B$6230,0))))","v":""},null,{"$f":"IF(C44=\"\",NA(),MATCH($B44&$C44,'Smelter Look-up'!$J:$J,0))","v":{"$error":"#N/A"}},null,0,null,null,null,""]
[null,{"$f":"IF(LEN(A45)=0,\"\",INDEX('Smelter Look-up'!$A:$A,MATCH($A45,'Smelter Look-up'!$E:$E,0)))","v":""},{"$f":"IF(LEN(A45)=0,\"\",INDEX('Smelter Look-up'!$C:$C,MATCH($A45,'Smelter Look-up'!$E:$E,0)))","v":""},null,{"$f":"IF(ISERROR($V45),\"\",OFFSET('Smelter Look-up'!$D$4,$V45-4,0)&\"\")","v":""},{"$f":"IF(ISERROR($V45),\"\",OFFSET('Smelter Look-up'!$E$4,$V45-4,0))","v":""},{"$f":"IF(C45=$X$4,\"Enter smelter details\", IF(ISERROR($V45),\"\",OFFSET('Smelter Look-up'!$F$4,$V45-4,0)))","v":""},{"$f":"IF(ISERROR($V45),\"\",OFFSET('Smelter Look-up'!$G$4,$V45-4,0))","v":""},{"$f":"IF(ISERROR($V45),\"\",OFFSET('Smelter Look-up'!$H$4,$V45-4,0))","v":""},{"$f":"IF(ISERROR($V45),\"\",OFFSET('Smelter Look-up'!$I$4,$V45-4,0))","v":""},{"$nulls":7},{"$f":"IF(ISERROR($V45),\"\",OFFSET('Smelter Look-up'!$C$4,$V45-4,0)&\"\")","v":""},"",{"$f":"IF(B45=\"\",\"\",IF(ISERROR(MATCH($J45,SorP!$B$1:$B$6230,0)),\"\",INDIRECT(\"'SorP'!$A$\"&MATCH($J45,SorP!$B$1:$B$6230,0))))","v":""},null,{"$f":"IF(C45=\"\",NA(),MATCH($B45&$C45,'Smelter Look-up'!$J:$J,0))","v":{"$error":"#N/A"}},null,0,null,null,null,""]
[null,{"$f":"IF(LEN(A46)=0,\"\",INDEX('Smelter Look-up'!$A:$A,MATCH($A46,'Smelter Look-up'!$E:$E,0)))","v":""},{"$f":"IF(LEN(A46)=0,\"\",INDEX('Smelter Look-up'!$C:$C,MATCH($A46,'Smelter Look-up'!$E:$E,0)))","v":""},null,{"$f":"IF(ISERROR($V46),\"\",OFFSET('Smelter Look-up'!$D$4,$V46-4,0)&\"\")","v":""},{"$f":"IF(ISERROR($V46),\"\",OFFSET('Smelter Look-up'!$E$4,$V46-4,0))","v":""},{"$f":"IF(C46=$X$4,\"Enter smelter details\", IF(ISERROR($V46),\"\",OFFSET('Smelter Look-up'!$F$4,$V46-4,0)))","v":""},{"$f":"IF(ISERROR($V46),\"\",OFFSET('Smelter Look-up'!$G$4,$V46-4,0))","v":""},{"$f":"IF(ISERROR($V46),\"\",OFFSET('Smelter Look-up'!$H$4,$V46-4,0))","v":""},{"$f":"IF(ISERROR($V46),\"\",OFFSET('Smelter Look-up'!$I$4,$V46-4,0))","v":""},{"$nulls":7},{"$f":"IF(ISERROR($V46),\"\",OFFSET('Smelter Look-up'!$C$4,$V46-4,0)&\"\")","v":""},"",{"$f":"IF(B46=\"\",\"\",IF(ISERROR(MATCH($J46,SorP!$B$1:$B$6230,0)),\"\",INDIRECT(\"'SorP'!$A$\"&MATCH($J46,SorP!$B$1:$B$6230,0))))","v":""},null,{"$f":"IF(C46=\"\",NA(),MATCH($B46&$C46,'Smelter Look-up'!$J:$J,0))","v":{"$error":"#N/A"}},null,0,null,null,null,""]
[null,{"$f":"IF(LEN(A47)=0,\"\",INDEX('Smelter Look-up'!$A:$A,MATCH($A47,'Smelter Look-up'!$E:$E,0)))","v":""},{"$f":"IF(LEN(A47)=0,\"\",INDEX('Smelter Look-up'!$C:$C,MATCH($A47,'Smelter Look-up'!$E:$E,0)))","v":""},null,{"$f":"IF(ISERROR($V47),\"\",OFFSET('Smelter Look-up'!$D$4,$V47-4,0)&\"\")","v":""},{"$f":"IF(ISERROR($V47),\"\",OFFSET('Smelter Look-up'!$E$4,$V47-4,0))","v":""},{"$f":"IF(C47=$X$4,\"Enter smelter details\", IF(ISERROR($V47),\"\",OFFSET('Smelter Look-up'!$F$4,$V47-4,0)))","v":""},{"$f":"IF(ISERROR($V47),\"\",OFFSET('Smelter Look-up'!$G$4,$V47-4,0))","v":""},{"$f":"IF(ISERROR($V47),\"\",OFFSET('Smelter Look-up'!$H$4,$V47-4,0))","v":""},{"$f":"IF(ISERROR($V47),\"\",OFFSET('Smelter Look-up'!$I$4,$V47-4,0))","v":""},{"$nulls":7},{"$f":"IF(ISERROR($V47),\"\",OFFSET('Smelter Look-up'!$C$4,$V47-4,0)&\"\")","v":""},"",{"$f":"IF(B47=\"\",\"\",IF(ISERROR(MATCH($J47,SorP!$B$1:$B$6230,0)),\"\",INDIRECT(\"'SorP'!$A$\"&MATCH($J47,SorP!$B$1:$B$6230,0))))","v":""},null,{"$f":"IF(C47=\"\",NA(),MATCH($B47&$C47,'Smelter Look-up'!$J:$J,0))","v":{"$error":"#N/A"}},null,0,null,null,null,""]
[null,{"$f":"IF(LEN(A48)=0,\"\",INDEX('Smelter Look-up'!$A:$A,MATCH($A48,'Smelter Look-up'!$E:$E,0)))","v":""},{"$f":"IF(LEN(A48)=0,\"\",INDEX('Smelter Look-up'!$C:$C,MATCH($A48,'Smelter Look-up'!$E:$E,0)))","v":""},null,{"$f":"IF(ISERROR($V48),\"\",OFFSET('Smelter Look-up'!$D$4,$V48-4,0)&\"\")","v":""},{"$f":"IF(ISERROR($V48),\"\",OFFSET('Smelter Look-up'!$E$4,$V48-4,0))","v":""},{"$f":"IF(C48=$X$4,\"Enter smelter details\", IF(ISERROR($V48),\"\",OFFSET('Smelter Look-up'!$F$4,$V48-4,0)))","v":""},{"$f":"IF(ISERROR($V48),\"\",OFFSET('Smelter Look-up'!$G$4,$V48-4,0))","v":""},{"$f":"IF(ISERROR($V48),\"\",OFFSET('Smelter Look-up'!$H$4,$V48-4,0))","v":""},{"$f":"IF(ISERROR($V48),\"\",OFFSET('Smelter Look-up'!$I$4,$V48-4,0))","v":""},{"$nulls":7},{"$f":"IF(ISERROR($V48),\"\",OFFSET('Smelter Look-up'!$C$4,$V48-4,0)&\"\")","v":""},"",{"$f":"IF(B48=\"\",\"\",IF(ISERROR(MATCH($J48,SorP!$B$1:$B$6230,0)),\"\",INDIRECT(\"'SorP'!$A$\"&MATCH($J48,SorP!$B$1:$B$6230,0))))","v":""},null,{"$f":"IF(C48=\"\",NA(),MATCH($B48&$C48,'Smelter Look-up'!$J:$J,0))","v":{"$error":"#N/A"}},null,0,null,null,null,""]
[null,{"$f":"IF(LEN(A49)=0,\"\",INDEX('Smelter Look-up'!$A:$A,MATCH($A49,'Smelter Look-up'!$E:$E,0)))","v":""},{"$f":"IF(LEN(A49)=0,\"\",INDEX('Smelter Look-up'!$C:$C,MATCH($A49,'Smelter Look-up'!$E:$E,0)))","v":""},null,{"$f":"IF(ISERROR($V49),\"\",OFFSET('Smelter Look-up'!$D$4,$V49-4,0)&\"\")","v":""},{"$f":"IF(ISERROR($V49),\"\",OFFSET('Smelter Look-up'!$E$4,$V49-4,0))","v":""},{"$f":"IF(C49=$X$4,\"Enter smelter details\", IF(ISERROR($V49),\"\",OFFSET('Smelter Look-up'!$F$4,$V49-4,0)))","v":""},{"$f":"IF(ISERROR($V49),\"\",OFFSET('Smelter Look-up'!$G$4,$V49-4,0))","v":""},{"$f":"IF(ISERROR($V49),\"\",OFFSET('Smelter Look-up'!$H$4,$V49-4,0))","v":""},{"$f":"IF(ISERROR($V49),\"\",OFFSET('Smelter Look-up'!$I$4,$V49-4,0))","v":""},{"$nulls":7},{"$f":"IF(ISERROR($V49),\"\",OFFSET('Smelter Look-up'!$C$4,$V49-4,0)&\"\")","v":""},"",{"$f":"IF(B49=\"\",\"\",IF(ISERROR(MATCH($J49,SorP!$B$1:$B$6230,0)),\"\",INDIRECT(\"'SorP'!$A$\"&MATCH($J49,SorP!$B$1:$B$6230,0))))","v":""},null,{"$f":"IF(C49=\"\",NA(),MATCH($B49&$C49,'Smelter Look-up'!$J:$J,0))","v":{"$error":"#N/A"}},null,0,null,null,null,""]
[null,{"$f":"IF(LEN(A50)=0,\"\",INDEX('Smelter Look-up'!$A:$A,MATCH($A50,'Smelter Look-up'!$E:$E,0)))","v":""},{"$f":"IF(LEN(A50)=0,\"\",INDEX('Smelter Look-up'!$C:$C,MATCH($A50,'Smelter Look-up'!$E:$E,0)))","v":""},null,{"$f":"IF(ISERROR($V50),\"\",OFFSET('Smelter Look-up'!$D$4,$V50-4,0)&\"\")","v":""},{"$f":"IF(ISERROR($V50),\"\",OFFSET('Smelter Look-up'!$E$4,$V50-4,0))","v":""},{"$f":"IF(C50=$X$4,\"Enter smelter details\", IF(ISERROR($V50),\"\",OFFSET('Smelter Look-up'!$F$4,$V50-4,0)))","v":""},{"$f":"IF(ISERROR($V50),\"\",OFFSET('Smelter Look-up'!$G$4,$V50-4,0))","v":""},{"$f":"IF(ISERROR($V50),\"\",OFFSET('Smelter Look-up'!$H$4,$V50-4,0))","v":""},{"$f":"IF(ISERROR($V50),\"\",OFFSET('Smelter Look-up'!$I$4,$V50-4,0))","v":""},{"$nulls":7},{"$f":"IF(ISERROR($V50),\"\",OFFSET('Smelter Look-up'!$C$4,$V50-4,0)&\"\")","v":""},"",{"$f":"IF(B50=\"\",\"\",IF(ISERROR(MATCH($J50,SorP!$B$1:$B$6230,0)),\"\",INDIRECT(\"'SorP'!$A$\"&MATCH($J50,SorP!$B$1:$B$6230,0))))","v":""},null,{"$f":"IF(C50=\"\",NA(),MATCH($B50&$C50,'Smelter Look-up'!$J:$J,0))","v":{"$error":"#N/A"}},null,0,null,null,null,""]
[null,{"$f":"IF(LEN(A51)=0,\"\",INDEX('Smelter Look-up'!$A:$A,MATCH($A51,'Smelter Look-up'!$E:$E,0)))","v":""},{"$f":"IF(LEN(A51)=0,\"\",INDEX('Smelter Look-up'!$C:$C,MATCH($A51,'Smelter Look-up'!$E:$E,0)))","v":""},null,{"$f":"IF(ISERROR($V51),\"\",OFFSET('Smelter Look-up'!$D$4,$V51-4,0)&\"\")","v":""},{"$f":"IF(ISERROR($V51),\"\",OFFSET('Smelter Look-up'!$E$4,$V51-4,0))","v":""},{"$f":"IF(C51=$X$4,\"Enter smelter details\", IF(ISERROR($V51),\"\",OFFSET('Smelter Look-up'!$F$4,$V51-4,0)))","v":""},{"$f":"IF(ISERROR($V51),\"\",OFFSET('Smelter Look-up'!$G$4,$V51-4,0))","v":""},{"$f":"IF(ISERROR($V51),\"\",OFFSET('Smelter Look-up'!$H$4,$V51-4,0))","v":""},{"$f":"IF(ISERROR($V51),\"\",OFFSET('Smelter Look-up'!$I$4,$V51-4,0))","v":""},{"$nulls":7},{"$f":"IF(ISERROR($V51),\"\",OFFSET('Smelter Look-up'!$C$4,$V51-4,0)&\"\")","v":""},"",{"$f":"IF(B51=\"\",\"\",IF(ISERROR(MATCH($J51,SorP!$B$1:$B$6230,0)),\"\",INDIRECT(\"'SorP'!$A$\"&MATCH($J51,SorP!$B$1:$B$6230,0))))","v":""},null,{"$f":"IF(C51=\"\",NA(),MATCH($B51&$C51,'Smelter Look-up'!$J:$J,0))","v":{"$error":"#N/A"}},null,0,null,null,null,""]
[null,{"$f":"IF(LEN(A52)=0,\"\",INDEX('Smelter Look-up'!$A:$A,MATCH($A52,'Smelter Look-up'!$E:$E,0)))","v":""},{"$f":"IF(LEN(A52)=0,\"\",INDEX('Smelter Look-up'!$C:$C,MATCH($A52,'Smelter Look-up'!$E:$E,0)))","v":""},null,{"$f":"IF(ISERROR($V52),\"\",OFFSET('Smelter Look-up'!$D$4,$V52-4,0)&\"\")","v":""},{"$f":"IF(ISERROR($V52),\"\",OFFSET('Smelter Look-up'!$E$4,$V52-4,0))","v":""},{"$f":"IF(C52=$X$4,\"Enter smelter details\", IF(ISERROR($V52),\"\",OFFSET('Smelter Look-up'!$F$4,$V52-4,0)))","v":""},{"$f":"IF(ISERROR($V52),\"\",OFFSET('Smelter Look-up'!$G$4,$V52-4,0))","v":""},{"$f":"IF(ISERROR($V52),\"\",OFFSET('Smelter Look-up'!$H$4,$V52-4,0))","v":""},{"$f":"IF(ISERROR($V52),\"\",OFFSET('Smelter Look-up'!$I$4,$V52-4,0))","v":""},{"$nulls":7},{"$f":"IF(ISERROR($V52),\"\",OFFSET('Smelter Look-up'!$C$4,$V52-4,0)&\"\")","v":""},"",{"$f":"IF(B52=\"\",\"\",IF(ISERROR(MATCH($J52,SorP!$B$1:$B$6230,0)),\"\",INDIRECT(\"'SorP'!$A$\"&MATCH($J52,SorP!$B$1:$B$6230,0))))","v":""},null,{"$f":"IF(C52=\"\",NA(),MATCH($B52&$C52,'Smelter Look-up'!$J:$J,0))","v":{"$error":"#N/A"}},null,0,null,null,null,""]
[null,{"$f":"IF(LEN(A53)=0,\"\",INDEX('Smelter Look-up'!$A:$A,MATCH($A53,'Smelter Look-up'!$E:$E,0)))","v":""},{"$f":"IF(LEN(A53)=0,\"\",INDEX('Smelter Look-up'!$C:$C,MATCH($A53,'Smelter Look-up'!$E:$E,0)))","v":""},null,{"$f":"IF(ISERROR($V53),\"\",OFFSET('Smelter Look-up'!$D$4,$V53-4,0)&\"\")","v":""},{"$f":"IF(ISERROR($V53),\"\",OFFSET('Smelter Look-up'!$E$4,$V53-4,0))","v":""},{"$f":"IF(C53=$X$4,\"Enter smelter details\", IF(ISERROR($V53),\"\",OFFSET('Smelter Look-up'!$F$4,$V53-4,0)))","v":""},{"$f":"IF(ISERROR($V53),\"\",OFFSET('Smelter Look-up'!$G$4,$V53-4,0))","v":""},{"$f":"IF(ISERROR($V53),\"\",OFFSET('Smelter Look-up'!$H$4,$V53-4,0))","v":""},{"$f":"IF(ISERROR($V53),\"\",OFFSET('Smelter Look-up'!$I$4,$V53-4,0))","v":""},{"$nulls":7},{"$f":"IF(ISERROR($V53),\"\",OFFSET('Smelter Look-up'!$C$4,$V53-4,0)&\"\")","v":""},"",{"$f":"IF(B53=\"\",\"\",IF(ISERROR(MATCH($J53,SorP!$B$1:$B$6230,0)),\"\",INDIRECT(\"'SorP'!$A$\"&MATCH($J53,SorP!$B$1:$B$6230,0))))","v":""},null,{"$f":"IF(C53=\"\",NA(),MATCH($B53&$C53,'Smelter Look-up'!$J:$J,0))","v":{"$error":"#N/A"}},null,0,null,null,null,""]
[null,{"$f":"IF(LEN(A54)=0,\"\",INDEX('Smelter Look-up'!$A:$A,MATCH($A54,'Smelter Look-up'!$E:$E,0)))","v":""},{"$f":"IF(LEN(A54)=0,\"\",INDEX('Smelter Look-up'!$C:$C,MATCH($A54,'Smelter Look-up'!$E:$E,0)))","v":""},null,{"$f":"IF(ISERROR($V54),\"\",OFFSET('Smelter Look-up'!$D$4,$V54-4,0)&\"\")","v":""},{"$f":"IF(ISERROR($V54),\"\",OFFSET('Smelter Look-up'!$E$4,$V54-4,0))","v":""},{"$f":"IF(C54=$X$4,\"Enter smelter details\", IF(ISERROR($V54),\"\",OFFSET('Smelter Look-up'!$F$4,$V54-4,0)))","v":""},{"$f":"IF(ISERROR($V54),\"\",OFFSET('Smelter Look-up'!$G$4,$V54-4,0))","v":""},{"$f":"IF(ISERROR($V54),\"\",OFFSET('Smelter Look-up'!$H$4,$V54-4,0))","v":""},{"$f":"IF(ISERROR($V54),\"\",OFFSET('Smelter Look-up'!$I$4,$V54-4,0))","v":""},{"$nulls":7},{"$f":"IF(ISERROR($V54),\"\",OFFSET('Smelter Look-up'!$C$4,$V54-4,0)&\"\")","v":""},"",{"$f":"IF(B54=\"\",\"\",IF(ISERROR(MATCH($J54,SorP!$B$1:$B$6230,0)),\"\",INDIRECT(\"'SorP'!$A$\"&MATCH($J54,SorP!$B$1:$B$6230,0))))","v":""},null,{"$f":"IF(C54=\"\",NA(),MATCH($B54&$C54,'Smelter Look-up'!$J:$J,0))","v":{"$error":"#N/A"}},null,0,null,null,null,""]
[null,{"$f":"IF(LEN(A55)=0,\"\",INDEX('Smelter Look-up'!$A:$A,MATCH($A55,'Smelter Look-up'!$E:$E,0)))","v":""},{"$f":"IF(LEN(A55)=0,\"\",INDEX('Smelter Look-up'!$C:$C,MATCH($A55,'Smelter Look-up'!$E:$E,0)))","v":""},null,{"$f":"IF(ISERROR($V55),\"\",OFFSET('Smelter Look-up'!$D$4,$V55-4,0)&\"\")","v":""},{"$f":"IF(ISERROR($V55),\"\",OFFSET('Smelter Look-up'!$E$4,$V55-4,0))","v":""},{"$f":"IF(C55=$X$4,\"Enter smelter details\", IF(ISERROR($V55),\"\",OFFSET('Smelter Look-up'!$F$4,$V55-4,0)))","v":""},{"$f":"IF(ISERROR($V55),\"\",OFFSET('Smelter Look-up'!$G$4,$V55-4,0))","v":""},{"$f":"IF(ISERROR($V55),\"\",OFFSET('Smelter Look-up'!$H$4,$V55-4,0))","v":""},{"$f":"IF(ISERROR($V55),\"\",OFFSET('Smelter Look-up'!$I$4,$V55-4,0))","v":""},{"$nulls":7},{"$f":"IF(ISERROR($V55),\"\",OFFSET('Smelter Look-up'!$C$4,$V55-4,0)&\"\")","v":""},"",{"$f":"IF(B55=\"\",\"\",IF(ISERROR(MATCH($J55,SorP!$B$1:$B$6230,0)),\"\",INDIRECT(\"'SorP'!$A$\"&MATCH($J55,SorP!$B$1:$B$6230,0))))","v":""},null,{"$f":"IF(C55=\"\",NA(),MATCH($B55&$C55,'Smelter Look-up'!$J:$J,0))","v":{"$error":"#N/A"}},null,0,null,null,null,""]
[null,{"$f":"IF(LEN(A56)=0,\"\",INDEX('Smelter Look-up'!$A:$A,MATCH($A56,'Smelter Look-up'!$E:$E,0)))","v":""},{"$f":"IF(LEN(A56)=0,\"\",INDEX('Smelter Look-up'!$C:$C,MATCH($A56,'Smelter Look-up'!$E:$E,0)))","v":""},null,{"$f":"IF(ISERROR($V56),\"\",OFFSET('Smelter Look-up'!$D$4,$V56-4,0)&\"\")","v":""},{"$f":"IF(ISERROR($V56),\"\",OFFSET('Smelter Look-up'!$E$4,$V56-4,0))","v":""},{"$f":"IF(C56=$X$4,\"Enter smelter details\", IF(ISERROR($V56),\"\",OFFSET('Smelter Look-up'!$F$4,$V56-4,0)))","v":""},{"$f":"IF(ISERROR($V56),\"\",OFFSET('Smelter Look-up'!$G$4,$V56-4,0))","v":""},{"$f":"IF(ISERROR($V56),\"\",OFFSET('Smelter Look-up'!$H$4,$V56-4,0))","v":""},{"$f":"IF(ISERROR($V56),\"\",OFFSET('Smelter Look-up'!$I$4,$V56-4,0))","v":""},{"$nulls":7},{"$f":"IF(ISERROR($V56),\"\",OFFSET('Smelter Look-up'!$C$4,$V56-4,0)&\"\")","v":""},"",{"$f":"IF(B56=\"\",\"\",IF(ISERROR(MATCH($J56,SorP!$B$1:$B$6230,0)),\"\",INDIRECT(\"'SorP'!$A$\"&MATCH($J56,SorP!$B$1:$B$6230,0))))","v":""},null,{"$f":"IF(C56=\"\",NA(),MATCH($B56&$C56,'Smelter Look-up'!$J:$J,0))","v":{"$error":"#N/A"}},null,0,null,null,null,""]
[null,{"$f":"IF(LEN(A57)=0,\"\",INDEX('Smelter Look-up'!$A:$A,MATCH($A57,'Smelter Look-up'!$E:$E,0)))","v":""},{"$f":"IF(LEN(A57)=0,\"\",INDEX('Smelter Look-up'!$C:$C,MATCH($A57,'Smelter Look-up'!$E:$E,0)))","v":""},null,{"$f":"IF(ISERROR($V57),\"\",OFFSET('Smelter Look-up'!$D$4,$V57-4,0)&\"\")","v":""},{"$f":"IF(ISERROR($V57),\"\",OFFSET('Smelter Look-up'!$E$4,$V57-4,0))","v":""},{"$f":"IF(C57=$X$4,\"Enter smelter details\", IF(ISERROR($V57),\"\",OFFSET('Smelter Look-up'!$F$4,$V57-4,0)))","v":""},{"$f":"IF(ISERROR($V57),\"\",OFFSET('Smelter Look-up'!$G$4,$V57-4,0))","v":""},{"$f":"IF(ISERROR($V57),\"\",OFFSET('Smelter Look-up'!$H$4,$V57-4,0))","v":""},{"$f":"IF(ISERROR($V57),\"\",OFFSET('Smelter Look-up'!$I$4,$V57-4,0))","v":""},{"$nulls":7},{"$f":"IF(ISERROR($V57),\"\",OFFSET('Smelter Look-up'!$C$4,$V57-4,0)&\"\")","v":""},"",{"$f":"IF(B57=\"\",\"\",IF(ISERROR(MATCH($J57,SorP!$B$1:$B$6230,0)),\"\",INDIRECT(\"'SorP'!$A$\"&MATCH($J57,SorP!$B$1:$B$6230,0))))","v":""},null,{"$f":"IF(C57=\"\",NA(),MATCH($B57&$C57,'Smelter Look-up'!$J:$J,0))","v":{"$error":"#N/A"}},null,0,null,null,null,""]
[null,{"$f":"IF(LEN(A58)=0,\"\",INDEX('Smelter Look-up'!$A:$A,MATCH($A58,'Smelter Look-up'!$E:$E,0)))","v":""},{"$f":"IF(LEN(A58)=0,\"\",INDEX('Smelter Look-up'!$C:$C,MATCH($A58,'Smelter Look-up'!$E:$E,0)))","v":""},null,{"$f":"IF(ISERROR($V58),\"\",OFFSET('Smelter Look-up'!$D$4,$V58-4,0)&\"\")","v":""},{"$f":"IF(ISERROR($V58),\"\",OFFSET('Smelter Look-up'!$E$4,$V58-4,0))","v":""},{"$f":"IF(C58=$X$4,\"Enter smelter details\", IF(ISERROR($V58),\"\",OFFSET('Smelter Look-up'!$F$4,$V58-4,0)))","v":""},{"$f":"IF(ISERROR($V58),\"\",OFFSET('Smelter Look-up'!$G$4,$V58-4,0))","v":""},{"$f":"IF(ISERROR($V58),\"\",OFFSET('Smelter Look-up'!$H$4,$V58-4,0))","v":""},{"$f":"IF(ISERROR($V58),\"\",OFFSET('Smelter Look-up'!$I$4,$V58-4,0))","v":""},{"$nulls":7},{"$f":"IF(ISERROR($V58),\"\",OFFSET('Smelter Look-up'!$C$4,$V58-4,0)&\"\")","v":""},"",{"$f":"IF(B58=\"\",\"\",IF(ISERROR(MATCH($J58,SorP!$B$1:$B$6230,0)),\"\",INDIRECT(\"'SorP'!$A$\"&MATCH($J58,SorP!$B$1:$B$6230,0))))","v":""},null,{"$f":"IF(C58=\"\",NA(),MATCH($B58&$C58,'Smelter Look-up'!$J:$J,0))","v":{"$error":"#N/A"}},null,0,null,null,null,""]
[null,{"$f":"IF(LEN(A59)=0,\"\",INDEX('Smelter Look-up'!$A:$A,MATCH($A59,'Smelter Look-up'!$E:$E,0)))","v":""},{"$f":"IF(LEN(A59)=0,\"\",INDEX('Smelter Look-up'!$C:$C,MATCH($A59,'Smelter Look-up'!$E:$E,0)))","v":""},null,{"$f":"IF(ISERROR($V59),\"\",OFFSET('Smelter Look-up'!$D$4,$V59-4,0)&\"\")","v":""},{"$f":"IF(ISERROR($V59),\"\",OFFSET('Smelter Look-up'!$E$4,$V59-4,0))","v":""},{"$f":"IF(C59=$X$4,\"Enter smelter details\", IF(ISERROR($V59),\"\",OFFSET('Smelter Look-up'!$F$4,$V59-4,0)))","v":""},{"$f":"IF(ISERROR($V59),\"\",OFFSET('Smelter Look-up'!$G$4,$V59-4,0))","v":""},{"$f":"IF(ISERROR($V59),\"\",OFFSET('Smelter Look-up'!$H$4,$V59-4,0))","v":""},{"$f":"IF(ISERROR($V59),\"\",OFFSET('Smelter Look-up'!$I$4,$V59-4,0))","v":""},{"$nulls":7},{"$f":"IF(ISERROR($V59),\"\",OFFSET('Smelter Look-up'!$C$4,$V59-4,0)&\"\")","v":""},{"$f":"IF(B59=\"\",\"\",IF(ISERROR(MATCH($E59,CL,0)),\"Unknown\",INDIRECT(\"'C'!$A$\"&MATCH($E59,CL,0)+1)))","v":""},{"$f":"IF(B59=\"\",\"\",IF(ISERROR(MATCH($J59,SorP!$B$1:$B$6230,0)),\"\",INDIRECT(\"'SorP'!$A$\"&MATCH($J59,SorP!$B$1:$B$6230,0))))","v":""},null,{"$f":"IF(C59=\"\",NA(),MATCH($B59&$C59,'Smelter Look-up'!$J:$J,0))","v":{"$error":"#N/A"}},null,{"$f":"IF(AND(C59=\"Smelter not listed\",OR(LEN(D59)=0,LEN(E59)=0)),1,0)","v":0},null,null,null,{"$f":"B59&C59","v":""}]
[null,{"$f":"IF(LEN(A60)=0,\"\",INDEX('Smelter Look-up'!$A:$A,MATCH($A60,'Smelter Look-up'!$E:$E,0)))","v":""},{"$f":"IF(LEN(A60)=0,\"\",INDEX('Smelter Look-up'!$C:$C,MATCH($A60,'Smelter Look-up'!$E:$E,0)))","v":""},null,{"$f":"IF(ISERROR($V60),\"\",OFFSET('Smelter Look-up'!$D$4,$V60-4,0)&\"\")","v":""},{"$f":"IF(ISERROR($V60),\"\",OFFSET('Smelter Look-up'!$E$4,$V60-4,0))","v":""},{"$f":"IF(C60=$X$4,\"Enter smelter details\", IF(ISERROR($V60),\"\",OFFSET('Smelter Look-up'!$F$4,$V60-4,0)))","v":""},{"$f":"IF(ISERROR($V60),\"\",OFFSET('Smelter Look-up'!$G$4,$V60-4,0))","v":""},{"$f":"IF(ISERROR($V60),\"\",OFFSET('Smelter Look-up'!$H$4,$V60-4,0))","v":""},{"$f":"IF(ISERROR($V60),\"\",OFFSET('Smelter Look-up'!$I$4,$V60-4,0))","v":""},{"$nulls":7},{"$f":"IF(ISERROR($V60),\"\",OFFSET('Smelter Look-up'!$C$4,$V60-4,0)&\"\")","v":""},"",{"$f":"IF(B60=\"\",\"\",IF(ISERROR(MATCH($J60,SorP!$B$1:$B$6230,0)),\"\",INDIRECT(\"'SorP'!$A$\"&MATCH($J60,SorP!$B$1:$B$6230,0))))","v":""},null,{"$f":"IF(C60=\"\",NA(),MATCH($B60&$C60,'Smelter Look-up'!$J:$J,0))","v":{"$error":"#N/A"}},null,0,null,null,null,""]
[null,{"$f":"IF(LEN(A61)=0,\"\",INDEX('Smelter Look-up'!$A:$A,MATCH($A61,'Smelter Look-up'!$E:$E,0)))","v":""},{"$f":"IF(LEN(A61)=0,\"\",INDEX('Smelter Look-up'!$C:$C,MATCH($A61,'Smelter Look-up'!$E:$E,0)))","v":""},null,{"$f":"IF(ISERROR($V61),\"\",OFFSET('Smelter Look-up'!$D$4,$V61-4,0)&\"\")","v":""},{"$f":"IF(ISERROR($V61),\"\",OFFSET('Smelter Look-up'!$E$4,$V61-4,0))","v":""},{"$f":"IF(C61=$X$4,\"Enter smelter details\", IF(ISERROR($V61),\"\",OFFSET('Smelter Look-up'!$F$4,$V61-4,0)))","v":""},{"$f":"IF(ISERROR($V61),\"\",OFFSET('Smelter Look-up'!$G$4,$V61-4,0))","v":""},{"$f":"IF(ISERROR($V61),\"\",OFFSET('Smelter Look-up'!$H$4,$V61-4,0))","v":""},{"$f":"IF(ISERROR($V61),\"\",OFFSET('Smelter Look-up'!$I$4,$V61-4,0))","v":""},{"$nulls":7},{"$f":"IF(ISERROR($V61),\"\",OFFSET('Smelter Look-up'!$C$4,$V61-4,0)&\"\")","v":""},"",{"$f":"IF(B61=\"\",\"\",IF(ISERROR(MATCH($J61,SorP!$B$1:$B$6230,0)),\"\",INDIRECT(\"'SorP'!$A$\"&MATCH($J61,SorP!$B$1:$B$6230,0))))","v":""},null,{"$f":"IF(C61=\"\",NA(),MATCH($B61&$C61,'Smelter Look-up'!$J:$J,0))","v":{"$error":"#N/A"}},null,0,null,null,null,""]
[null,{"$f":"IF(LEN(A62)=0,\"\",INDEX('Smelter Look-up'!$A:$A,MATCH($A62,'Smelter Look-up'!$E:$E,0)))","v":""},{"$f":"IF(LEN(A62)=0,\"\",INDEX('Smelter Look-up'!$C:$C,MATCH($A62,'Smelter Look-up'!$E:$E,0)))","v":""},null,{"$f":"IF(ISERROR($V62),\"\",OFFSET('Smelter Look-up'!$D$4,$V62-4,0)&\"\")","v":""},{"$f":"IF(ISERROR($V62),\"\",OFFSET('Smelter Look-up'!$E$4,$V62-4,0))","v":""},{"$f":"IF(C62=$X$4,\"Enter smelter details\", IF(ISERROR($V62),\"\",OFFSET('Smelter Look-up'!$F$4,$V62-4,0)))","v":""},{"$f":"IF(ISERROR($V62),\"\",OFFSET('Smelter Look-up'!$G$4,$V62-4,0))","v":""},{"$f":"IF(ISERROR($V62),\"\",OFFSET('Smelter Look-up'!$H$4,$V62-4,0))","v":""},{"$f":"IF(ISERROR($V62),\"\",OFFSET('Smelter Look-up'!$I$4,$V62-4,0))","v":""},{"$nulls":7},{"$f":"IF(ISERROR($V62),\"\",OFFSET('Smelter Look-up'!$C$4,$V62-4,0)&\"\")","v":""},"",{"$f":"IF(B62=\"\",\"\",IF(ISERROR(MATCH($J62,SorP!$B$1:$B$6230,0)),\"\",INDIRECT(\"'SorP'!$A$\"&MATCH($J62,SorP!$B$1:$B$6230,0))))","v":""},null,{"$f":"IF(C62=\"\",NA(),MATCH($B62&$C62,'Smelter Look-up'!$J:$J,0))","v":{"$error":"#N/A"}},null,0,null,null,null,""]
[null,{"$f":"IF(LEN(A63)=0,\"\",INDEX('Smelter Look-up'!$A:$A,MATCH($A63,'Smelter Look-up'!$E:$E,0)))","v":""},{"$f":"IF(LEN(A63)=0,\"\",INDEX('Smelter Look-up'!$C:$C,MATCH($A63,'Smelter Look-up'!$E:$E,0)))","v":""},null,{"$f":"IF(ISERROR($V63),\"\",OFFSET('Smelter Look-up'!$D$4,$V63-4,0)&\"\")","v":""},{"$f":"IF(ISERROR($V63),\"\",OFFSET('Smelter Look-up'!$E$4,$V63-4,0))","v":""},{"$f":"IF(C63=$X$4,\"Enter smelter details\", IF(ISERROR($V63),\"\",OFFSET('Smelter Look-up'!$F$4,$V63-4,0)))","v":""},{"$f":"IF(ISERROR($V63),\"\",OFFSET('Smelter Look-up'!$G$4,$V63-4,0))","v":""},{"$f":"IF(ISERROR($V63),\"\",OFFSET('Smelter Look-up'!$H$4,$V63-4,0))","v":""},{"$f":"IF(ISERROR($V63),\"\",OFFSET('Smelter Look-up'!$I$4,$V63-4,0))","v":""},{"$nulls":7},{"$f":"IF(ISERROR($V63),\"\",OFFSET('Smelter Look-up'!$C$4,$V63-4,0)&\"\")","v":""},"",{"$f":"IF(B63=\"\",\"\",IF(ISERROR(MATCH($J63,SorP!$B$1:$B$6230,0)),\"\",INDIRECT(\"'SorP'!$A$\"&MATCH($J63,SorP!$B$1:$B$6230,0))))","v":""},null,{"$f":"IF(C63=\"\",NA(),MATCH($B63&$C63,'Smelter Look-up'!$J:$J,0))","v":{"$error":"#N/A"}},null,0,null,null,null,""]
[null,{"$f":"IF(LEN(A64)=0,\"\",INDEX('Smelter Look-up'!$A:$A,MATCH($A64,'Smelter Look-up'!$E:$E,0)))","v":""},{"$f":"IF(LEN(A64)=0,\"\",INDEX('Smelter Look-up'!$C:$C,MATCH($A64,'Smelter Look-up'!$E:$E,0)))","v":""},null,{"$f":"IF(ISERROR($V64),\"\",OFFSET('Smelter Look-up'!$D$4,$V64-4,0)&\"\")","v":""},{"$f":"IF(ISERROR($V64),\"\",OFFSET('Smelter Look-up'!$E$4,$V64-4,0))","v":""},{"$f":"IF(C64=$X$4,\"Enter smelter details\", IF(ISERROR($V64),\"\",OFFSET('Smelter Look-up'!$F$4,$V64-4,0)))","v":""},{"$f":"IF(ISERROR($V64),\"\",OFFSET('Smelter Look-up'!$G$4,$V64-4,0))","v":""},{"$f":"IF(ISERROR($V64),\"\",OFFSET('Smelter Look-up'!$H$4,$V64-4,0))","v":""},{"$f":"IF(ISERROR($V64),\"\",OFFSET('Smelter Look-up'!$I$4,$V64-4,0))","v":""},{"$nulls":7},{"$f":"IF(ISERROR($V64),\"\",OFFSET('Smelter Look-up'!$C$4,$V64-4,0)&\"\")","v":""},"",{"$f":"IF(B64=\"\",\"\",IF(ISERROR(MATCH($J64,SorP!$B$1:$B$6230,0)),\"\",INDIRECT(\"'SorP'!$A$\"&MATCH($J64,SorP!$B$1:$B$6230,0))))","v":""},null,{"$f":"IF(C64=\"\",NA(),MATCH($B64&$C64,'Smelter Look-up'!$J:$J,0))","v":{"$error":"#N/A"}},null,0,null,null,null,""]
[null,{"$f":"IF(LEN(A65)=0,\"\",INDEX('Smelter Look-up'!$A:$A,MATCH($A65,'Smelter Look-up'!$E:$E,0)))","v":""},{"$f":"IF(LEN(A65)=0,\"\",INDEX('Smelter Look-up'!$C:$C,MATCH($A65,'Smelter Look-up'!$E:$E,0)))","v":""},null,{"$f":"IF(ISERROR($V65),\"\",OFFSET('Smelter Look-up'!$D$4,$V65-4,0)&\"\")","v":""},{"$f":"IF(ISERROR($V65),\"\",OFFSET('Smelter Look-up'!$E$4,$V65-4,0))","v":""},{"$f":"IF(C65=$X$4,\"Enter smelter details\", IF(ISERROR($V65),\"\",OFFSET('Smelter Look-up'!$F$4,$V65-4,0)))","v":""},{"$f":"IF(ISERROR($V65),\"\",OFFSET('Smelter Look-up'!$G$4,$V65-4,0))","v":""},{"$f":"IF(ISERROR($V65),\"\",OFFSET('Smelter Look-up'!$H$4,$V65-4,0))","v":""},{"$f":"IF(ISERROR($V65),\"\",OFFSET('Smelter Look-up'!$I$4,$V65-4,0))","v":""},{"$nulls":7},{"$f":"IF(ISERROR($V65),\"\",OFFSET('Smelter Look-up'!$C$4,$V65-4,0)&\"\")","v":""},"",{"$f":"IF(B65=\"\",\"\",IF(ISERROR(MATCH($J65,SorP!$B$1:$B$6230,0)),\"\",INDIRECT(\"'SorP'!$A$\"&MATCH($J65,SorP!$B$1:$B$6230,0))))","v":""},null,{"$f":"IF(C65=\"\",NA(),MATCH($B65&$C65,'Smelter Look-up'!$J:$J,0))","v":{"$error":"#N/A"}},null,0,null,null,null,""]
[null,{"$f":"IF(LEN(A66)=0,\"\",INDEX('Smelter Look-up'!$A:$A,MATCH($A66,'Smelter Look-up'!$E:$E,0)))","v":""},{"$f":"IF(LEN(A66)=0,\"\",INDEX('Smelter Look-up'!$C:$C,MATCH($A66,'Smelter Look-up'!$E:$E,0)))","v":""},null,{"$f":"IF(ISERROR($V66),\"\",OFFSET('Smelter Look-up'!$D$4,$V66-4,0)&\"\")","v":""},{"$f":"IF(ISERROR($V66),\"\",OFFSET('Smelter Look-up'!$E$4,$V66-4,0))","v":""},{"$f":"IF(C66=$X$4,\"Enter smelter details\", IF(ISERROR($V66),\"\",OFFSET('Smelter Look-up'!$F$4,$V66-4,0)))","v":""},{"$f":"IF(ISERROR($V66),\"\",OFFSET('Smelter Look-up'!$G$4,$V66-4,0))","v":""},{"$f":"IF(ISERROR($V66),\"\",OFFSET('Smelter Look-up'!$H$4,$V66-4,0))","v":""},{"$f":"IF(ISERROR($V66),\"\",OFFSET('Smelter Look-up'!$I$4,$V66-4,0))","v":""},{"$nulls":7},{"$f":"IF(ISERROR($V66),\"\",OFFSET('Smelter Look-up'!$C$4,$V66-4,0)&\"\")","v":""},"",{"$f":"IF(B66=\"\",\"\",IF(ISERROR(MATCH($J66,SorP!$B$1:$B$6230,0)),\"\",INDIRECT(\"'SorP'!$A$\"&MATCH($J66,SorP!$B$1:$B$6230,0))))","v":""},null,{"$f":"IF(C66=\"\",NA(),MATCH($B66&$C66,'Smelter Look-up'!$J:$J,0))","v":{"$error":"#N/A"}},null,0,null,null,null,""]
[null,{"$f":"IF(LEN(A67)=0,\"\",INDEX('Smelter Look-up'!$A:$A,MATCH($A67,'Smelter Look-up'!$E:$E,0)))","v":""},{"$f":"IF(LEN(A67)=0,\"\",INDEX('Smelter Look-up'!$C:$C,MATCH($A67,'Smelter Look-up'!$E:$E,0)))","v":""},null,{"$f":"IF(ISERROR($V67),\"\",OFFSET('Smelter Look-up'!$D$4,$V67-4,0)&\"\")","v":""},{"$f":"IF(ISERROR($V67),\"\",OFFSET('Smelter Look-up'!$E$4,$V67-4,0))","v":""},{"$f":"IF(C67=$X$4,\"Enter smelter details\", IF(ISERROR($V67),\"\",OFFSET('Smelter Look-up'!$F$4,$V67-4,0)))","v":""},{"$f":"IF(ISERROR($V67),\"\",OFFSET('Smelter Look-up'!$G$4,$V67-4,0))","v":""},{"$f":"IF(ISERROR($V67),\"\",OFFSET('Smelter Look-up'!$H$4,$V67-4,0))","v":""},{"$f":"IF(ISERROR($V67),\"\",OFFSET('Smelter Look-up'!$I$4,$V67-4,0))","v":""},{"$nulls":7},{"$f":"IF(ISERROR($V67),\"\",OFFSET('Smelter Look-up'!$C$4,$V67-4,0)&\"\")","v":""},"",{"$f":"IF(B67=\"\",\"\",IF(ISERROR(MATCH($J67,SorP!$B$1:$B$6230,0)),\"\",INDIRECT(\"'SorP'!$A$\"&MATCH($J67,SorP!$B$1:$B$6230,0))))","v":""},null,{"$f":"IF(C67=\"\",NA(),MATCH($B67&$C67,'Smelter Look-up'!$J:$J,0))","v":{"$error":"#N/A"}},null,0,null,null,null,""]
[null,{"$f":"IF(LEN(A68)=0,\"\",INDEX('Smelter Look-up'!$A:$A,MATCH($A68,'Smelter Look-up'!$E:$E,0)))","v":""},{"$f":"IF(LEN(A68)=0,\"\",INDEX('Smelter Look-up'!$C:$C,MATCH($A68,'Smelter Look-up'!$E:$E,0)))","v":""},null,{"$f":"IF(ISERROR($V68),\"\",OFFSET('Smelter Look-up'!$D$4,$V68-4,0)&\"\")","v":""},{"$f":"IF(ISERROR($V68),\"\",OFFSET('Smelter Look-up'!$E$4,$V68-4,0))","v":""},{"$f":"IF(C68=$X$4,\"Enter smelter details\", IF(ISERROR($V68),\"\",OFFSET('Smelter Look-up'!$F$4,$V68-4,0)))","v":""},{"$f":"IF(ISERROR($V68),\"\",OFFSET('Smelter Look-up'!$G$4,$V68-4,0))","v":""},{"$f":"IF(ISERROR($V68),\"\",OFFSET('Smelter Look-up'!$H$4,$V68-4,0))","v":""},{"$f":"IF(ISERROR($V68),\"\",OFFSET('Smelter Look-up'!$I$4,$V68-4,0))","v":""},{"$nulls":7},{"$f":"IF(ISERROR($V68),\"\",OFFSET('Smelter Look-up'!$C$4,$V68-4,0)&\"\")","v":""},"",{"$f":"IF(B68=\"\",\"\",IF(ISERROR(MATCH($J68,SorP!$B$1:$B$6230,0)),\"\",INDIRECT(\"'SorP'!$A$\"&MATCH($J68,SorP!$B$1:$B$6230,0))))","v":""},null,{"$f":"IF(C68=\"\",NA(),MATCH($B68&$C68,'Smelter Look-up'!$J:$J,0))","v":{"$error":"#N/A"}},null,0,null,null,null,""]
[null,{"$f":"IF(LEN(A69)=0,\"\",INDEX('Smelter Look-up'!$A:$A,MATCH($A69,'Smelter Look-up'!$E:$E,0)))","v":""},{"$f":"IF(LEN(A69)=0,\"\",INDEX('Smelter Look-up'!$C:$C,MATCH($A69,'Smelter Look-up'!$E:$E,0)))","v":""},null,{"$f":"IF(ISERROR($V69),\"\",OFFSET('Smelter Look-up'!$D$4,$V69-4,0)&\"\")","v":""},{"$f":"IF(ISERROR($V69),\"\",OFFSET('Smelter Look-up'!$E$4,$V69-4,0))","v":""},{"$f":"IF(C69=$X$4,\"Enter smelter details\", IF(ISERROR($V69),\"\",OFFSET('Smelter Look-up'!$F$4,$V69-4,0)))","v":""},{"$f":"IF(ISERROR($V69),\"\",OFFSET('Smelter Look-up'!$G$4,$V69-4,0))","v":""},{"$f":"IF(ISERROR($V69),\"\",OFFSET('Smelter Look-up'!$H$4,$V69-4,0))","v":""},{"$f":"IF(ISERROR($V69),\"\",OFFSET('Smelter Look-up'!$I$4,$V69-4,0))","v":""},{"$nulls":7},{"$f":"IF(ISERROR($V69),\"\",OFFSET('Smelter Look-up'!$C$4,$V69-4,0)&\"\")","v":""},"",{"$f":"IF(B69=\"\",\"\",IF(ISERROR(MATCH($J69,SorP!$B$1:$B$6230,0)),\"\",INDIRECT(\"'SorP'!$A$\"&MATCH($J69,SorP!$B$1:$B$6230,0))))","v":""},null,{"$f":"IF(C69=\"\",NA(),MATCH($B69&$C69,'Smelter Look-up'!$J:$J,0))","v":{"$error":"#N/A"}},null,0,null,null,null,""]
[null,{"$f":"IF(LEN(A70)=0,\"\",INDEX('Smelter Look-up'!$A:$A,MATCH($A70,'Smelter Look-up'!$E:$E,0)))","v":""},{"$f":"IF(LEN(A70)=0,\"\",INDEX('Smelter Look-up'!$C:$C,MATCH($A70,'Smelter Look-up'!$E:$E,0)))","v":""},null,{"$f":"IF(ISERROR($V70),\"\",OFFSET('Smelter Look-up'!$D$4,$V70-4,0)&\"\")","v":""},{"$f":"IF(ISERROR($V70),\"\",OFFSET('Smelter Look-up'!$E$4,$V70-4,0))","v":""},{"$f":"IF(C70=$X$4,\"Enter smelter details\", IF(ISERROR($V70),\"\",OFFSET('Smelter Look-up'!$F$4,$V70-4,0)))","v":""},{"$f":"IF(ISERROR($V70),\"\",OFFSET('Smelter Look-up'!$G$4,$V70-4,0))","v":""},{"$f":"IF(ISERROR($V70),\"\",OFFSET('Smelter Look-up'!$H$4,$V70-4,0))","v":""},{"$f":"IF(ISERROR($V70),\"\",OFFSET('Smelter Look-up'!$I$4,$V70-4,0))","v":""},{"$nulls":7},{"$f":"IF(ISERROR($V70),\"\",OFFSET('Smelter Look-up'!$C$4,$V70-4,0)&\"\")","v":""},"",{"$f":"IF(B70=\"\",\"\",IF(ISERROR(MATCH($J70,SorP!$B$1:$B$6230,0)),\"\",INDIRECT(\"'SorP'!$A$\"&MATCH($J70,SorP!$B$1:$B$6230,0))))","v":""},null,{"$f":"IF(C70=\"\",NA(),MATCH($B70&$C70,'Smelter Look-up'!$J:$J,0))","v":{"$error":"#N/A"}},null,0,null,null,null,""]
[null,{"$f":"IF(LEN(A71)=0,\"\",INDEX('Smelter Look-up'!$A:$A,MATCH($A71,'Smelter Look-up'!$E:$E,0)))","v":""},{"$f":"IF(LEN(A71)=0,\"\",INDEX('Smelter Look-up'!$C:$C,MATCH($A71,'Smelter Look-up'!$E:$E,0)))","v":""},null,{"$f":"IF(ISERROR($V71),\"\",OFFSET('Smelter Look-up'!$D$4,$V71-4,0)&\"\")","v":""},{"$f":"IF(ISERROR($V71),\"\",OFFSET('Smelter Look-up'!$E$4,$V71-4,0))","v":""},{"$f":"IF(C71=$X$4,\"Enter smelter details\", IF(ISERROR($V71),\"\",OFFSET('Smelter Look-up'!$F$4,$V71-4,0)))","v":""},{"$f":"IF(ISERROR($V71),\"\",OFFSET('Smelter Look-up'!$G$4,$V71-4,0))","v":""},{"$f":"IF(ISERROR($V71),\"\",OFFSET('Smelter Look-up'!$H$4,$V71-4,0))","v":""},{"$f":"IF(ISERROR($V71),\"\",OFFSET('Smelter Look-up'!$I$4,$V71-4,0))","v":""},{"$nulls":7},{"$f":"IF(ISERROR($V71),\"\",OFFSET('Smelter Look-up'!$C$4,$V71-4,0)&\"\")","v":""},"",{"$f":"IF(B71=\"\",\"\",IF(ISERROR(MATCH($J71,SorP!$B$1:$B$6230,0)),\"\",INDIRECT(\"'SorP'!$A$\"&MATCH($J71,SorP!$B$1:$B$6230,0))))","v":""},null,{"$f":"IF(C71=\"\",NA(),MATCH($B71&$C71,'Smelter Look-up'!$J:$J,0))","v":{"$error":"#N/A"}},null,0,null,null,null,""]
[null,{"$f":"IF(LEN(A72)=0,\"\",INDEX('Smelter Look-up'!$A:$A,MATCH($A72,'Smelter Look-up'!$E:$E,0)))","v":""},{"$f":"IF(LEN(A72)=0,\"\",INDEX('Smelter Look-up'!$C:$C,MATCH($A72,'Smelter Look-up'!$E:$E,0)))","v":""},null,{"$f":"IF(ISERROR($V72),\"\",OFFSET('Smelter Look-up'!$D$4,$V72-4,0)&\"\")","v":""},{"$f":"IF(ISERROR($V72),\"\",OFFSET('Smelter Look-up'!$E$4,$V72-4,0))","v":""},{"$f":"IF(C72=$X$4,\"Enter smelter details\", IF(ISERROR($V72),\"\",OFFSET('Smelter Look-up'!$F$4,$V72-4,0)))","v":""},{"$f":"IF(ISERROR($V72),\"\",OFFSET('Smelter Look-up'!$G$4,$V72-4,0))","v":""},{"$f":"IF(ISERROR($V72),\"\",OFFSET('Smelter Look-up'!$H$4,$V72-4,0))","v":""},{"$f":"IF(ISERROR($V72),\"\",OFFSET('Smelter Look-up'!$I$4,$V72-4,0))","v":""},{"$nulls":7},{"$f":"IF(ISERROR($V72),\"\",OFFSET('Smelter Look-up'!$C$4,$V72-4,0)&\"\")","v":""},"",{"$f":"IF(B72=\"\",\"\",IF(ISERROR(MATCH($J72,SorP!$B$1:$B$6230,0)),\"\",INDIRECT(\"'SorP'!$A$\"&MATCH($J72,SorP!$B$1:$B$6230,0))))","v":""},null,{"$f":"IF(C72=\"\",NA(),MATCH($B72&$C72,'Smelter Look-up'!$J:$J,0))","v":{"$error":"#N/A"}},null,0,null,null,null,""]
[null,{"$f":"IF(LEN(A73)=0,\"\",INDEX('Smelter Look-up'!$A:$A,MATCH($A73,'Smelter Look-up'!$E:$E,0)))","v":""},{"$f":"IF(LEN(A73)=0,\"\",INDEX('Smelter Look-up'!$C:$C,MATCH($A73,'Smelter Look-up'!$E:$E,0)))","v":""},null,{"$f":"IF(ISERROR($V73),\"\",OFFSET('Smelter Look-up'!$D$4,$V73-4,0)&\"\")","v":""},{"$f":"IF(ISERROR($V73),\"\",OFFSET('Smelter Look-up'!$E$4,$V73-4,0))","v":""},{"$f":"IF(C73=$X$4,\"Enter smelter details\", IF(ISERROR($V73),\"\",OFFSET('Smelter Look-up'!$F$4,$V73-4,0)))","v":""},{"$f":"IF(ISERROR($V73),\"\",OFFSET('Smelter Look-up'!$G$4,$V73-4,0))","v":""},{"$f":"IF(ISERROR($V73),\"\",OFFSET('Smelter Look-up'!$H$4,$V73-4,0))","v":""},{"$f":"IF(ISERROR($V73),\"\",OFFSET('Smelter Look-up'!$I$4,$V73-4,0))","v":""},{"$nulls":7},{"$f":"IF(ISERROR($V73),\"\",OFFSET('Smelter Look-up'!$C$4,$V73-4,0)&\"\")","v":""},"",{"$f":"IF(B73=\"\",\"\",IF(ISERROR(MATCH($J73,SorP!$B$1:$B$6230,0)),\"\",INDIRECT(\"'SorP'!$A$\"&MATCH($J73,SorP!$B$1:$B$6230,0))))","v":""},null,{"$f":"IF(C73=\"\",NA(),MATCH($B73&$C73,'Smelter Look-up'!$J:$J,0))","v":{"$error":"#N/A"}},null,0,null,null,null,""]
[null,{"$f":"IF(LEN(A74)=0,\"\",INDEX('Smelter Look-up'!$A:$A,MATCH($A74,'Smelter Look-up'!$E:$E,0)))","v":""},{"$f":"IF(LEN(A74)=0,\"\",INDEX('Smelter Look-up'!$C:$C,MATCH($A74,'Smelter Look-up'!$E:$E,0)))","v":""},null,{"$f":"IF(ISERROR($V74),\"\",OFFSET('Smelter Look-up'!$D$4,$V74-4,0)&\"\")","v":""},{"$f":"IF(ISERROR($V74),\"\",OFFSET('Smelter Look-up'!$E$4,$V74-4,0))","v":""},{"$f":"IF(C74=$X$4,\"Enter smelter details\", IF(ISERROR($V74),\"\",OFFSET('Smelter Look-up'!$F$4,$V74-4,0)))","v":""},{"$f":"IF(ISERROR($V74),\"\",OFFSET('Smelter Look-up'!$G$4,$V74-4,0))","v":""},{"$f":"IF(ISERROR($V74),\"\",OFFSET('Smelter Look-up'!$H$4,$V74-4,0))","v":""},{"$f":"IF(ISERROR($V74),\"\",OFFSET('Smelter Look-up'!$I$4,$V74-4,0))","v":""},{"$nulls":7},{"$f":"IF(ISERROR($V74),\"\",OFFSET('Smelter Look-up'!$C$4,$V74-4,0)&\"\")","v":""},"",{"$f":"IF(B74=\"\",\"\",IF(ISERROR(MATCH($J74,SorP!$B$1:$B$6230,0)),\"\",INDIRECT(\"'SorP'!$A$\"&MATCH($J74,SorP!$B$1:$B$6230,0))))","v":""},null,{"$f":"IF(C74=\"\",NA(),MATCH($B74&$C74,'Smelter Look-up'!$J:$J,0))","v":{"$error":"#N/A"}},null,0,null,null,null,""]
[null,{"$f":"IF(LEN(A75)=0,\"\",INDEX('Smelter Look-up'!$A:$A,MATCH($A75,'Smelter Look-up'!$E:$E,0)))","v":""},{"$f":"IF(LEN(A75)=0,\"\",INDEX('Smelter Look-up'!$C:$C,MATCH($A75,'Smelter Look-up'!$E:$E,0)))","v":""},null,{"$f":"IF(ISERROR($V75),\"\",OFFSET('Smelter Look-up'!$D$4,$V75-4,0)&\"\")","v":""},{"$f":"IF(ISERROR($V75),\"\",OFFSET('Smelter Look-up'!$E$4,$V75-4,0))","v":""},{"$f":"IF(C75=$X$4,\"Enter smelter details\", IF(ISERROR($V75),\"\",OFFSET('Smelter Look-up'!$F$4,$V75-4,0)))","v":""},{"$f":"IF(ISERROR($V75),\"\",OFFSET('Smelter Look-up'!$G$4,$V75-4,0))","v":""},{"$f":"IF(ISERROR($V75),\"\",OFFSET('Smelter Look-up'!$H$4,$V75-4,0))","v":""},{"$f":"IF(ISERROR($V75),\"\",OFFSET('Smelter Look-up'!$I$4,$V75-4,0))","v":""},{"$nulls":7},{"$f":"IF(ISERROR($V75),\"\",OFFSET('Smelter Look-up'!$C$4,$V75-4,0)&\"\")","v":""},"",{"$f":"IF(B75=\"\",\"\",IF(ISERROR(MATCH($J75,SorP!$B$1:$B$6230,0)),\"\",INDIRECT(\"'SorP'!$A$\"&MATCH($J75,SorP!$B$1:$B$6230,0))))","v":""},null,{"$f":"IF(C75=\"\",NA(),MATCH($B75&$C75,'Smelter Look-up'!$J:$J,0))","v":{"$error":"#N/A"}},null,0,null,null,null,""]
[null,{"$f":"IF(LEN(A76)=0,\"\",INDEX('Smelter Look-up'!$A:$A,MATCH($A76,'Smelter Look-up'!$E:$E,0)))","v":""},{"$f":"IF(LEN(A76)=0,\"\",INDEX('Smelter Look-up'!$C:$C,MATCH($A76,'Smelter Look-up'!$E:$E,0)))","v":""},null,{"$f":"IF(ISERROR($V76),\"\",OFFSET('Smelter Look-up'!$D$4,$V76-4,0)&\"\")","v":""},{"$f":"IF(ISERROR($V76),\"\",OFFSET('Smelter Look-up'!$E$4,$V76-4,0))","v":""},{"$f":"IF(C76=$X$4,\"Enter smelter details\", IF(ISERROR($V76),\"\",OFFSET('Smelter Look-up'!$F$4,$V76-4,0)))","v":""},{"$f":"IF(ISERROR($V76),\"\",OFFSET('Smelter Look-up'!$G$4,$V76-4,0))","v":""},{"$f":"IF(ISERROR($V76),\"\",OFFSET('Smelter Look-up'!$H$4,$V76-4,0))","v":""},{"$f":"IF(ISERROR($V76),\"\",OFFSET('Smelter Look-up'!$I$4,$V76-4,0))","v":""},{"$nulls":7},{"$f":"IF(ISERROR($V76),\"\",OFFSET('Smelter Look-up'!$C$4,$V76-4,0)&\"\")","v":""},"",{"$f":"IF(B76=\"\",\"\",IF(ISERROR(MATCH($J76,SorP!$B$1:$B$6230,0)),\"\",INDIRECT(\"'SorP'!$A$\"&MATCH($J76,SorP!$B$1:$B$6230,0))))","v":""},null,{"$f":"IF(C76=\"\",NA(),MATCH($B76&$C76,'Smelter Look-up'!$J:$J,0))","v":{"$error":"#N/A"}},null,0,null,null,null,""]
[null,{"$f":"IF(LEN(A77)=0,\"\",INDEX('Smelter Look-up'!$A:$A,MATCH($A77,'Smelter Look-up'!$E:$E,0)))","v":""},{"$f":"IF(LEN(A77)=0,\"\",INDEX('Smelter Look-up'!$C:$C,MATCH($A77,'Smelter Look-up'!$E:$E,0)))","v":""},null,{"$f":"IF(ISERROR($V77),\"\",OFFSET('Smelter Look-up'!$D$4,$V77-4,0)&\"\")","v":""},{"$f":"IF(ISERROR($V77),\"\",OFFSET('Smelter Look-up'!$E$4,$V77-4,0))","v":""},{"$f":"IF(C77=$X$4,\"Enter smelter details\", IF(ISERROR($V77),\"\",OFFSET('Smelter Look-up'!$F$4,$V77-4,0)))","v":""},{"$f":"IF(ISERROR($V77),\"\",OFFSET('Smelter Look-up'!$G$4,$V77-4,0))","v":""},{"$f":"IF(ISERROR($V77),\"\",OFFSET('Smelter Look-up'!$H$4,$V77-4,0))","v":""},{"$f":"IF(ISERROR($V77),\"\",OFFSET('Smelter Look-up'!$I$4,$V77-4,0))","v":""},{"$nulls":7},{"$f":"IF(ISERROR($V77),\"\",OFFSET('Smelter Look-up'!$C$4,$V77-4,0)&\"\")","v":""},"",{"$f":"IF(B77=\"\",\"\",IF(ISERROR(MATCH($J77,SorP!$B$1:$B$6230,0)),\"\",INDIRECT(\"'SorP'!$A$\"&MATCH($J77,SorP!$B$1:$B$6230,0))))","v":""},null,{"$f":"IF(C77=\"\",NA(),MATCH($B77&$C77,'Smelter Look-up'!$J:$J,0))","v":{"$error":"#N/A"}},null,0,null,null,null,""]
[null,{"$f":"IF(LEN(A78)=0,\"\",INDEX('Smelter Look-up'!$A:$A,MATCH($A78,'Smelter Look-up'!$E:$E,0)))","v":""},{"$f":"IF(LEN(A78)=0,\"\",INDEX('Smelter Look-up'!$C:$C,MATCH($A78,'Smelter Look-up'!$E:$E,0)))","v":""},null,{"$f":"IF(ISERROR($V78),\"\",OFFSET('Smelter Look-up'!$D$4,$V78-4,0)&\"\")","v":""},{"$f":"IF(ISERROR($V78),\"\",OFFSET('Smelter Look-up'!$E$4,$V78-4,0))","v":""},{"$f":"IF(C78=$X$4,\"Enter smelter details\", IF(ISERROR($V78),\"\",OFFSET('Smelter Look-up'!$F$4,$V78-4,0)))","v":""},{"$f":"IF(ISERROR($V78),\"\",OFFSET('Smelter Look-up'!$G$4,$V78-4,0))","v":""},{"$f":"IF(ISERROR($V78),\"\",OFFSET('Smelter Look-up'!$H$4,$V78-4,0))","v":""},{"$f":"IF(ISERROR($V78),\"\",OFFSET('Smelter Look-up'!$I$4,$V78-4,0))","v":""},{"$nulls":7},{"$f":"IF(ISERROR($V78),\"\",OFFSET('Smelter Look-up'!$C$4,$V78-4,0)&\"\")","v":""},"",{"$f":"IF(B78=\"\",\"\",IF(ISERROR(MATCH($J78,SorP!$B$1:$B$6230,0)),\"\",INDIRECT(\"'SorP'!$A$\"&MATCH($J78,SorP!$B$1:$B$6230,0))))","v":""},null,{"$f":"IF(C78=\"\",NA(),MATCH($B78&$C78,'Smelter Look-up'!$J:$J,0))","v":{"$error":"#N/A"}},null,0,null,null,null,""]
[null,{"$f":"IF(LEN(A79)=0,\"\",INDEX('Smelter Look-up'!$A:$A,MATCH($A79,'Smelter Look-up'!$E:$E,0)))","v":""},{"$f":"IF(LEN(A79)=0,\"\",INDEX('Smelter Look-up'!$C:$C,MATCH($A79,'Smelter Look-up'!$E:$E,0)))","v":""},null,{"$f":"IF(ISERROR($V79),\"\",OFFSET('Smelter Look-up'!$D$4,$V79-4,0)&\"\")","v":""},{"$f":"IF(ISERROR($V79),\"\",OFFSET('Smelter Look-up'!$E$4,$V79-4,0))","v":""},{"$f":"IF(C79=$X$4,\"Enter smelter details\", IF(ISERROR($V79),\"\",OFFSET('Smelter Look-up'!$F$4,$V79-4,0)))","v":""},{"$f":"IF(ISERROR($V79),\"\",OFFSET('Smelter Look-up'!$G$4,$V79-4,0))","v":""},{"$f":"IF(ISERROR($V79),\"\",OFFSET('Smelter Look-up'!$H$4,$V79-4,0))","v":""},{"$f":"IF(ISERROR($V79),\"\",OFFSET('Smelter Look-up'!$I$4,$V79-4,0))","v":""},{"$nulls":7},{"$f":"IF(ISERROR($V79),\"\",OFFSET('Smelter Look-up'!$C$4,$V79-4,0)&\"\")","v":""},"",{"$f":"IF(B79=\"\",\"\",IF(ISERROR(MATCH($J79,SorP!$B$1:$B$6230,0)),\"\",INDIRECT(\"'SorP'!$A$\"&MATCH($J79,SorP!$B$1:$B$6230,0))))","v":""},null,{"$f":"IF(C79=\"\",NA(),MATCH($B79&$C79,'Smelter Look-up'!$J:$J,0))","v":{"$error":"#N/A"}},null,0,null,null,null,""]
[null,{"$f":"IF(LEN(A80)=0,\"\",INDEX('Smelter Look-up'!$A:$A,MATCH($A80,'Smelter Look-up'!$E:$E,0)))","v":""},{"$f":"IF(LEN(A80)=0,\"\",INDEX('Smelter Look-up'!$C:$C,MATCH($A80,'Smelter Look-up'!$E:$E,0)))","v":""},null,{"$f":"IF(ISERROR($V80),\"\",OFFSET('Smelter Look-up'!$D$4,$V80-4,0)&\"\")","v":""},{"$f":"IF(ISERROR($V80),\"\",OFFSET('Smelter Look-up'!$E$4,$V80-4,0))","v":""},{"$f":"IF(C80=$X$4,\"Enter smelter details\", IF(ISERROR($V80),\"\",OFFSET('Smelter Look-up'!$F$4,$V80-4,0)))","v":""},{"$f":"IF(ISERROR($V80),\"\",OFFSET('Smelter Look-up'!$G$4,$V80-4,0))","v":""},{"$f":"IF(ISERROR($V80),\"\",OFFSET('Smelter Look-up'!$H$4,$V80-4,0))","v":""},{"$f":"IF(ISERROR($V80),\"\",OFFSET('Smelter Look-up'!$I$4,$V80-4,0))","v":""},{"$nulls":7},{"$f":"IF(ISERROR($V80),\"\",OFFSET('Smelter Look-up'!$C$4,$V80-4,0)&\"\")","v":""},"",{"$f":"IF(B80=\"\",\"\",IF(ISERROR(MATCH($J80,SorP!$B$1:$B$6230,0)),\"\",INDIRECT(\"'SorP'!$A$\"&MATCH($J80,SorP!$B$1:$B$6230,0))))","v":""},null,{"$f":"IF(C80=\"\",NA(),MATCH($B80&$C80,'Smelter Look-up'!$J:$J,0))","v":{"$error":"#N/A"}},null,0,null,null,null,""]
[null,{"$f":"IF(LEN(A81)=0,\"\",INDEX('Smelter Look-up'!$A:$A,MATCH($A81,'Smelter Look-up'!$E:$E,0)))","v":""},{"$f":"IF(LEN(A81)=0,\"\",INDEX('Smelter Look-up'!$C:$C,MATCH($A81,'Smelter Look-up'!$E:$E,0)))","v":""},null,{"$f":"IF(ISERROR($V81),\"\",OFFSET('Smelter Look-up'!$D$4,$V81-4,0)&\"\")","v":""},{"$f":"IF(ISERROR($V81),\"\",OFFSET('Smelter Look-up'!$E$4,$V81-4,0))","v":""},{"$f":"IF(C81=$X$4,\"Enter smelter details\", IF(ISERROR($V81),\"\",OFFSET('Smelter Look-up'!$F$4,$V81-4,0)))","v":""},{"$f":"IF(ISERROR($V81),\"\",OFFSET('Smelter Look-up'!$G$4,$V81-4,0))","v":""},{"$f":"IF(ISERROR($V81),\"\",OFFSET('Smelter Look-up'!$H$4,$V81-4,0))","v":""},{"$f":"IF(ISERROR($V81),\"\",OFFSET('Smelter Look-up'!$I$4,$V81-4,0))","v":""},{"$nulls":7},{"$f":"IF(ISERROR($V81),\"\",OFFSET('Smelter Look-up'!$C$4,$V81-4,0)&\"\")","v":""},"",{"$f":"IF(B81=\"\",\"\",IF(ISERROR(MATCH($J81,SorP!$B$1:$B$6230,0)),\"\",INDIRECT(\"'SorP'!$A$\"&MATCH($J81,SorP!$B$1:$B$6230,0))))","v":""},null,{"$f":"IF(C81=\"\",NA(),MATCH($B81&$C81,'Smelter Look-up'!$J:$J,0))","v":{"$error":"#N/A"}},null,0,null,null,null,""]
[null,{"$f":"IF(LEN(A82)=0,\"\",INDEX('Smelter Look-up'!$A:$A,MATCH($A82,'Smelter Look-up'!$E:$E,0)))","v":""},{"$f":"IF(LEN(A82)=0,\"\",INDEX('Smelter Look-up'!$C:$C,MATCH($A82,'Smelter Look-up'!$E:$E,0)))","v":""},null,{"$f":"IF(ISERROR($V82),\"\",OFFSET('Smelter Look-up'!$D$4,$V82-4,0)&\"\")","v":""},{"$f":"IF(ISERROR($V82),\"\",OFFSET('Smelter Look-up'!$E$4,$V82-4,0))","v":""},{"$f":"IF(C82=$X$4,\"Enter smelter details\", IF(ISERROR($V82),\"\",OFFSET('Smelter Look-up'!$F$4,$V82-4,0)))","v":""},{"$f":"IF(ISERROR($V82),\"\",OFFSET('Smelter Look-up'!$G$4,$V82-4,0))","v":""},{"$f":"IF(ISERROR($V82),\"\",OFFSET('Smelter Look-up'!$H$4,$V82-4,0))","v":""},{"$f":"IF(ISERROR($V82),\"\",OFFSET('Smelter Look-up'!$I$4,$V82-4,0))","v":""},{"$nulls":7},{"$f":"IF(ISERROR($V82),\"\",OFFSET('Smelter Look-up'!$C$4,$V82-4,0)&\"\")","v":""},"",{"$f":"IF(B82=\"\",\"\",IF(ISERROR(MATCH($J82,SorP!$B$1:$B$6230,0)),\"\",INDIRECT(\"'SorP'!$A$\"&MATCH($J82,SorP!$B$1:$B$6230,0))))","v":""},null,{"$f":"IF(C82=\"\",NA(),MATCH($B82&$C82,'Smelter Look-up'!$J:$J,0))","v":{"$error":"#N/A"}},null,0,null,null,null,""]
[null,{"$f":"IF(LEN(A83)=0,\"\",INDEX('Smelter Look-up'!$A:$A,MATCH($A83,'Smelter Look-up'!$E:$E,0)))","v":""},{"$f":"IF(LEN(A83)=0,\"\",INDEX('Smelter Look-up'!$C:$C,MATCH($A83,'Smelter Look-up'!$E:$E,0)))","v":""},null,{"$f":"IF(ISERROR($V83),\"\",OFFSET('Smelter Look-up'!$D$4,$V83-4,0)&\"\")","v":""},{"$f":"IF(ISERROR($V83),\"\",OFFSET('Smelter Look-up'!$E$4,$V83-4,0))","v":""},{"$f":"IF(C83=$X$4,\"Enter smelter details\", IF(ISERROR($V83),\"\",OFFSET('Smelter Look-up'!$F$4,$V83-4,0)))","v":""},{"$f":"IF(ISERROR($V83),\"\",OFFSET('Smelter Look-up'!$G$4,$V83-4,0))","v":""},{"$f":"IF(ISERROR($V83),\"\",OFFSET('Smelter Look-up'!$H$4,$V83-4,0))","v":""},{"$f":"IF(ISERROR($V83),\"\",OFFSET('Smelter Look-up'!$I$4,$V83-4,0))","v":""},{"$nulls":7},{"$f":"IF(ISERROR($V83),\"\",OFFSET('Smelter Look-up'!$C$4,$V83-4,0)&\"\")","v":""},"",{"$f":"IF(B83=\"\",\"\",IF(ISERROR(MATCH($J83,SorP!$B$1:$B$6230,0)),\"\",INDIRECT(\"'SorP'!$A$\"&MATCH($J83,SorP!$B$1:$B$6230,0))))","v":""},null,{"$f":"IF(C83=\"\",NA(),MATCH($B83&$C83,'Smelter Look-up'!$J:$J,0))","v":{"$error":"#N/A"}},null,0,null,null,null,""]
[null,{"$f":"IF(LEN(A84)=0,\"\",INDEX('Smelter Look-up'!$A:$A,MATCH($A84,'Smelter Look-up'!$E:$E,0)))","v":""},{"$f":"IF(LEN(A84)=0,\"\",INDEX('Smelter Look-up'!$C:$C,MATCH($A84,'Smelter Look-up'!$E:$E,0)))","v":""},null,{"$f":"IF(ISERROR($V84),\"\",OFFSET('Smelter Look-up'!$D$4,$V84-4,0)&\"\")","v":""},{"$f":"IF(ISERROR($V84),\"\",OFFSET('Smelter Look-up'!$E$4,$V84-4,0))","v":""},{"$f":"IF(C84=$X$4,\"Enter smelter details\", IF(ISERROR($V84),\"\",OFFSET('Smelter Look-up'!$F$4,$V84-4,0)))","v":""},{"$f":"IF(ISERROR($V84),\"\",OFFSET('Smelter Look-up'!$G$4,$V84-4,0))","v":""},{"$f":"IF(ISERROR($V84),\"\",OFFSET('Smelter Look-up'!$H$4,$V84-4,0))","v":""},{"$f":"IF(ISERROR($V84),\"\",OFFSET('Smelter Look-up'!$I$4,$V84-4,0))","v":""},{"$nulls":7},{"$f":"IF(ISERROR($V84),\"\",OFFSET('Smelter Look-up'!$C$4,$V84-4,0)&\"\")","v":""},"",{"$f":"IF(B84=\"\",\"\",IF(ISERROR(MATCH($J84,SorP!$B$1:$B$6230,0)),\"\",INDIRECT(\"'SorP'!$A$\"&MATCH($J84,SorP!$B$1:$B$6230,0))))","v":""},null,{"$f":"IF(C84=\"\",NA(),MATCH($B84&$C84,'Smelter Look-up'!$J:$J,0))","v":{"$error":"#N/A"}},null,0,null,null,null,""]
[null,{"$f":"IF(LEN(A85)=0,\"\",INDEX('Smelter Look-up'!$A:$A,MATCH($A85,'Smelter Look-up'!$E:$E,0)))","v":""},{"$f":"IF(LEN(A85)=0,\"\",INDEX('Smelter Look-up'!$C:$C,MATCH($A85,'Smelter Look-up'!$E:$E,0)))","v":""},null,{"$f":"IF(ISERROR($V85),\"\",OFFSET('Smelter Look-up'!$D$4,$V85-4,0)&\"\")","v":""},{"$f":"IF(ISERROR($V85),\"\",OFFSET('Smelter Look-up'!$E$4,$V85-4,0))","v":""},{"$f":"IF(C85=$X$4,\"Enter smelter details\", IF(ISERROR($V85),\"\",OFFSET('Smelter Look-up'!$F$4,$V85-4,0)))","v":""},{"$f":"IF(ISERROR($V85),\"\",OFFSET('Smelter Look-up'!$G$4,$V85-4,0))","v":""},{"$f":"IF(ISERROR($V85),\"\",OFFSET('Smelter Look-up'!$H$4,$V85-4,0))","v":""},{"$f":"IF(ISERROR($V85),\"\",OFFSET('Smelter Look-up'!$I$4,$V85-4,0))","v":""},{"$nulls":7},{"$f":"IF(ISERROR($V85),\"\",OFFSET('Smelter Look-up'!$C$4,$V85-4,0)&\"\")","v":""},"",{"$f":"IF(B85=\"\",\"\",IF(ISERROR(MATCH($J85,SorP!$B$1:$B$6230,0)),\"\",INDIRECT(\"'SorP'!$A$\"&MATCH($J85,SorP!$B$1:$B$6230,0))))","v":""},null,{"$f":"IF(C85=\"\",NA(),MATCH($B85&$C85,'Smelter Look-up'!$J:$J,0))","v":{"$error":"#N/A"}},null,0,null,null,null,""]
[null,{"$f":"IF(LEN(A86)=0,\"\",INDEX('Smelter Look-up'!$A:$A,MATCH($A86,'Smelter Look-up'!$E:$E,0)))","v":""},{"$f":"IF(LEN(A86)=0,\"\",INDEX('Smelter Look-up'!$C:$C,MATCH($A86,'Smelter Look-up'!$E:$E,0)))","v":""},null,{"$f":"IF(ISERROR($V86),\"\",OFFSET('Smelter Look-up'!$D$4,$V86-4,0)&\"\")","v":""},{"$f":"IF(ISERROR($V86),\"\",OFFSET('Smelter Look-up'!$E$4,$V86-4,0))","v":""},{"$f":"IF(C86=$X$4,\"Enter smelter details\", IF(ISERROR($V86),\"\",OFFSET('Smelter Look-up'!$F$4,$V86-4,0)))","v":""},{"$f":"IF(ISERROR($V86),\"\",OFFSET('Smelter Look-up'!$G$4,$V86-4,0))","v":""},{"$f":"IF(ISERROR($V86),\"\",OFFSET('Smelter Look-up'!$H$4,$V86-4,0))","v":""},{"$f":"IF(ISERROR($V86),\"\",OFFSET('Smelter Look-up'!$I$4,$V86-4,0))","v":""},{"$nulls":7},{"$f":"IF(ISERROR($V86),\"\",OFFSET('Smelter Look-up'!$C$4,$V86-4,0)&\"\")","v":""},"",{"$f":"IF(B86=\"\",\"\",IF(ISERROR(MATCH($J86,SorP!$B$1:$B$6230,0)),\"\",INDIRECT(\"'SorP'!$A$\"&MATCH($J86,SorP!$B$1:$B$6230,0))))","v":""},null,{"$f":"IF(C86=\"\",NA(),MATCH($B86&$C86,'Smelter Look-up'!$J:$J,0))","v":{"$error":"#N/A"}},null,0,null,null,null,""]
[null,{"$f":"IF(LEN(A87)=0,\"\",INDEX('Smelter Look-up'!$A:$A,MATCH($A87,'Smelter Look-up'!$E:$E,0)))","v":""},{"$f":"IF(LEN(A87)=0,\"\",INDEX('Smelter Look-up'!$C:$C,MATCH($A87,'Smelter Look-up'!$E:$E,0)))","v":""},null,{"$f":"IF(ISERROR($V87),\"\",OFFSET('Smelter Look-up'!$D$4,$V87-4,0)&\"\")","v":""},{"$f":"IF(ISERROR($V87),\"\",OFFSET('Smelter Look-up'!$E$4,$V87-4,0))","v":""},{"$f":"IF(C87=$X$4,\"Enter smelter details\", IF(ISERROR($V87),\"\",OFFSET('Smelter Look-up'!$F$4,$V87-4,0)))","v":""},{"$f":"IF(ISERROR($V87),\"\",OFFSET('Smelter Look-up'!$G$4,$V87-4,0))","v":""},{"$f":"IF(ISERROR($V87),\"\",OFFSET('Smelter Look-up'!$H$4,$V87-4,0))","v":""},{"$f":"IF(ISERROR($V87),\"\",OFFSET('Smelter Look-up'!$I$4,$V87-4,0))","v":""},{"$nulls":7},{"$f":"IF(ISERROR($V87),\"\",OFFSET('Smelter Look-up'!$C$4,$V87-4,0)&\"\")","v":""},"",{"$f":"IF(B87=\"\",\"\",IF(ISERROR(MATCH($J87,SorP!$B$1:$B$6230,0)),\"\",INDIRECT(\"'SorP'!$A$\"&MATCH($J87,SorP!$B$1:$B$6230,0))))","v":""},null,{"$f":"IF(C87=\"\",NA(),MATCH($B87&$C87,'Smelter Look-up'!$J:$J,0))","v":{"$error":"#N/A"}},null,0,null,null,null,""]
[null,{"$f":"IF(LEN(A88)=0,\"\",INDEX('Smelter Look-up'!$A:$A,MATCH($A88,'Smelter Look-up'!$E:$E,0)))","v":""},{"$f":"IF(LEN(A88)=0,\"\",INDEX('Smelter Look-up'!$C:$C,MATCH($A88,'Smelter Look-up'!$E:$E,0)))","v":""},null,{"$f":"IF(ISERROR($V88),\"\",OFFSET('Smelter Look-up'!$D$4,$V88-4,0)&\"\")","v":""},{"$f":"IF(ISERROR($V88),\"\",OFFSET('Smelter Look-up'!$E$4,$V88-4,0))","v":""},{"$f":"IF(C88=$X$4,\"Enter smelter details\", IF(ISERROR($V88),\"\",OFFSET('Smelter Look-up'!$F$4,$V88-4,0)))","v":""},{"$f":"IF(ISERROR($V88),\"\",OFFSET('Smelter Look-up'!$G$4,$V88-4,0))","v":""},{"$f":"IF(ISERROR($V88),\"\",OFFSET('Smelter Look-up'!$H$4,$V88-4,0))","v":""},{"$f":"IF(ISERROR($V88),\"\",OFFSET('Smelter Look-up'!$I$4,$V88-4,0))","v":""},{"$nulls":7},{"$f":"IF(ISERROR($V88),\"\",OFFSET('Smelter Look-up'!$C$4,$V88-4,0)&\"\")","v":""},"",{"$f":"IF(B88=\"\",\"\",IF(ISERROR(MATCH($J88,SorP!$B$1:$B$6230,0)),\"\",INDIRECT(\"'SorP'!$A$\"&MATCH($J88,SorP!$B$1:$B$6230,0))))","v":""},null,{"$f":"IF(C88=\"\",NA(),MATCH($B88&$C88,'Smelter Look-up'!$J:$J,0))","v":{"$error":"#N/A"}},null,0,null,null,null,""]
[null,{"$f":"IF(LEN(A89)=0,\"\",INDEX('Smelter Look-up'!$A:$A,MATCH($A89,'Smelter Look-up'!$E:$E,0)))","v":""},{"$f":"IF(LEN(A89)=0,\"\",INDEX('Smelter Look-up'!$C:$C,MATCH($A89,'Smelter Look-up'!$E:$E,0)))","v":""},null,{"$f":"IF(ISERROR($V89),\"\",OFFSET('Smelter Look-up'!$D$4,$V89-4,0)&\"\")","v":""},{"$f":"IF(ISERROR($V89),\"\",OFFSET('Smelter Look-up'!$E$4,$V89-4,0))","v":""},{"$f":"IF(C89=$X$4,\"Enter smelter details\", IF(ISERROR($V89),\"\",OFFSET('Smelter Look-up'!$F$4,$V89-4,0)))","v":""},{"$f":"IF(ISERROR($V89),\"\",OFFSET('Smelter Look-up'!$G$4,$V89-4,0))","v":""},{"$f":"IF(ISERROR($V89),\"\",OFFSET('Smelter Look-up'!$H$4,$V89-4,0))","v":""},{"$f":"IF(ISERROR($V89),\"\",OFFSET('Smelter Look-up'!$I$4,$V89-4,0))","v":""},{"$nulls":7},{"$f":"IF(ISERROR($V89),\"\",OFFSET('Smelter Look-up'!$C$4,$V89-4,0)&\"\")","v":""},"",{"$f":"IF(B89=\"\",\"\",IF(ISERROR(MATCH($J89,SorP!$B$1:$B$6230,0)),\"\",INDIRECT(\"'SorP'!$A$\"&MATCH($J89,SorP!$B$1:$B$6230,0))))","v":""},null,{"$f":"IF(C89=\"\",NA(),MATCH($B89&$C89,'Smelter Look-up'!$J:$J,0))","v":{"$error":"#N/A"}},null,0,null,null,null,""]
[null,{"$f":"IF(LEN(A90)=0,\"\",INDEX('Smelter Look-up'!$A:$A,MATCH($A90,'Smelter Look-up'!$E:$E,0)))","v":""},{"$f":"IF(LEN(A90)=0,\"\",INDEX('Smelter Look-up'!$C:$C,MATCH($A90,'Smelter Look-up'!$E:$E,0)))","v":""},null,{"$f":"IF(ISERROR($V90),\"\",OFFSET('Smelter Look-up'!$D$4,$V90-4,0)&\"\")","v":""},{"$f":"IF(ISERROR($V90),\"\",OFFSET('Smelter Look-up'!$E$4,$V90-4,0))","v":""},{"$f":"IF(C90=$X$4,\"Enter smelter details\", IF(ISERROR($V90),\"\",OFFSET('Smelter Look-up'!$F$4,$V90-4,0)))","v":""},{"$f":"IF(ISERROR($V90),\"\",OFFSET('Smelter Look-up'!$G$4,$V90-4,0))","v":""},{"$f":"IF(ISERROR($V90),\"\",OFFSET('Smelter Look-up'!$H$4,$V90-4,0))","v":""},{"$f":"IF(ISERROR($V90),\"\",OFFSET('Smelter Look-up'!$I$4,$V90-4,0))","v":""},{"$nulls":7},{"$f":"IF(ISERROR($V90),\"\",OFFSET('Smelter Look-up'!$C$4,$V90-4,0)&\"\")","v":""},"",{"$f":"IF(B90=\"\",\"\",IF(ISERROR(MATCH($J90,SorP!$B$1:$B$6230,0)),\"\",INDIRECT(\"'SorP'!$A$\"&MATCH($J90,SorP!$B$1:$B$6230,0))))","v":""},null,{"$f":"IF(C90=\"\",NA(),MATCH($B90&$C90,'Smelter Look-up'!$J:$J,0))","v":{"$error":"#N/A"}},null,0,null,null,null,""]
[null,{"$f":"IF(LEN(A91)=0,\"\",INDEX('Smelter Look-up'!$A:$A,MATCH($A91,'Smelter Look-up'!$E:$E,0)))","v":""},{"$f":"IF(LEN(A91)=0,\"\",INDEX('Smelter Look-up'!$C:$C,MATCH($A91,'Smelter Look-up'!$E:$E,0)))","v":""},null,{"$f":"IF(ISERROR($V91),\"\",OFFSET('Smelter Look-up'!$D$4,$V91-4,0)&\"\")","v":""},{"$f":"IF(ISERROR($V91),\"\",OFFSET('Smelter Look-up'!$E$4,$V91-4,0))","v":""},{"$f":"IF(C91=$X$4,\"Enter smelter details\", IF(ISERROR($V91),\"\",OFFSET('Smelter Look-up'!$F$4,$V91-4,0)))","v":""},{"$f":"IF(ISERROR($V91),\"\",OFFSET('Smelter Look-up'!$G$4,$V91-4,0))","v":""},{"$f":"IF(ISERROR($V91),\"\",OFFSET('Smelter Look-up'!$H$4,$V91-4,0))","v":""},{"$f":"IF(ISERROR($V91),\"\",OFFSET('Smelter Look-up'!$I$4,$V91-4,0))","v":""},{"$nulls":7},{"$f":"IF(ISERROR($V91),\"\",OFFSET('Smelter Look-up'!$C$4,$V91-4,0)&\"\")","v":""},"",{"$f":"IF(B91=\"\",\"\",IF(ISERROR(MATCH($J91,SorP!$B$1:$B$6230,0)),\"\",INDIRECT(\"'SorP'!$A$\"&MATCH($J91,SorP!$B$1:$B$6230,0))))","v":""},null,{"$f":"IF(C91=\"\",NA(),MATCH($B91&$C91,'Smelter Look-up'!$J:$J,0))","v":{"$error":"#N/A"}},null,0,null,null,null,""]
[null,{"$f":"IF(LEN(A92)=0,\"\",INDEX('Smelter Look-up'!$A:$A,MATCH($A92,'Smelter Look-up'!$E:$E,0)))","v":""},{"$f":"IF(LEN(A92)=0,\"\",INDEX('Smelter Look-up'!$C:$C,MATCH($A92,'Smelter Look-up'!$E:$E,0)))","v":""},null,{"$f":"IF(ISERROR($V92),\"\",OFFSET('Smelter Look-up'!$D$4,$V92-4,0)&\"\")","v":""},{"$f":"IF(ISERROR($V92),\"\",OFFSET('Smelter Look-up'!$E$4,$V92-4,0))","v":""},{"$f":"IF(C92=$X$4,\"Enter smelter details\", IF(ISERROR($V92),\"\",OFFSET('Smelter Look-up'!$F$4,$V92-4,0)))","v":""},{"$f":"IF(ISERROR($V92),\"\",OFFSET('Smelter Look-up'!$G$4,$V92-4,0))","v":""},{"$f":"IF(ISERROR($V92),\"\",OFFSET('Smelter Look-up'!$H$4,$V92-4,0))","v":""},{"$f":"IF(ISERROR($V92),\"\",OFFSET('Smelter Look-up'!$I$4,$V92-4,0))","v":""},{"$nulls":7},{"$f":"IF(ISERROR($V92),\"\",OFFSET('Smelter Look-up'!$C$4,$V92-4,0)&\"\")","v":""},"",{"$f":"IF(B92=\"\",\"\",IF(ISERROR(MATCH($J92,SorP!$B$1:$B$6230,0)),\"\",INDIRECT(\"'SorP'!$A$\"&MATCH($J92,SorP!$B$1:$B$6230,0))))","v":""},null,{"$f":"IF(C92=\"\",NA(),MATCH($B92&$C92,'Smelter Look-up'!$J:$J,0))","v":{"$error":"#N/A"}},null,0,null,null,null,""]
[null,{"$f":"IF(LEN(A93)=0,\"\",INDEX('Smelter Look-up'!$A:$A,MATCH($A93,'Smelter Look-up'!$E:$E,0)))","v":""},{"$f":"IF(LEN(A93)=0,\"\",INDEX('Smelter Look-up'!$C:$C,MATCH($A93,'Smelter Look-up'!$E:$E,0)))","v":""},null,{"$f":"IF(ISERROR($V93),\"\",OFFSET('Smelter Look-up'!$D$4,$V93-4,0)&\"\")","v":""},{"$f":"IF(ISERROR($V93),\"\",OFFSET('Smelter Look-up'!$E$4,$V93-4,0))","v":""},{"$f":"IF(C93=$X$4,\"Enter smelter details\", IF(ISERROR($V93),\"\",OFFSET('Smelter Look-up'!$F$4,$V93-4,0)))","v":""},{"$f":"IF(ISERROR($V93),\"\",OFFSET('Smelter Look-up'!$G$4,$V93-4,0))","v":""},{"$f":"IF(ISERROR($V93),\"\",OFFSET('Smelter Look-up'!$H$4,$V93-4,0))","v":""},{"$f":"IF(ISERROR($V93),\"\",OFFSET('Smelter Look-up'!$I$4,$V93-4,0))","v":""},{"$nulls":7},{"$f":"IF(ISERROR($V93),\"\",OFFSET('Smelter Look-up'!$C$4,$V93-4,0)&\"\")","v":""},"",{"$f":"IF(B93=\"\",\"\",IF(ISERROR(MATCH($J93,SorP!$B$1:$B$6230,0)),\"\",INDIRECT(\"'SorP'!$A$\"&MATCH($J93,SorP!$B$1:$B$6230,0))))","v":""},null,{"$f":"IF(C93=\"\",NA(),MATCH($B93&$C93,'Smelter Look-up'!$J:$J,0))","v":{"$error":"#N/A"}},null,0,null,null,null,""]
[null,{"$f":"IF(LEN(A94)=0,\"\",INDEX('Smelter Look-up'!$A:$A,MATCH($A94,'Smelter Look-up'!$E:$E,0)))","v":""},{"$f":"IF(LEN(A94)=0,\"\",INDEX('Smelter Look-up'!$C:$C,MATCH($A94,'Smelter Look-up'!$E:$E,0)))","v":""},null,{"$f":"IF(ISERROR($V94),\"\",OFFSET('Smelter Look-up'!$D$4,$V94-4,0)&\"\")","v":""},{"$f":"IF(ISERROR($V94),\"\",OFFSET('Smelter Look-up'!$E$4,$V94-4,0))","v":""},{"$f":"IF(C94=$X$4,\"Enter smelter details\", IF(ISERROR($V94),\"\",OFFSET('Smelter Look-up'!$F$4,$V94-4,0)))","v":""},{"$f":"IF(ISERROR($V94),\"\",OFFSET('Smelter Look-up'!$G$4,$V94-4,0))","v":""},{"$f":"IF(ISERROR($V94),\"\",OFFSET('Smelter Look-up'!$H$4,$V94-4,0))","v":""},{"$f":"IF(ISERROR($V94),\"\",OFFSET('Smelter Look-up'!$I$4,$V94-4,0))","v":""},{"$nulls":7},{"$f":"IF(ISERROR($V94),\"\",OFFSET('Smelter Look-up'!$C$4,$V94-4,0)&\"\")","v":""},"",{"$f":"IF(B94=\"\",\"\",IF(ISERROR(MATCH($J94,SorP!$B$1:$B$6230,0)),\"\",INDIRECT(\"'SorP'!$A$\"&MATCH($J94,SorP!$B$1:$B$6230,0))))","v":""},null,{"$f":"IF(C94=\"\",NA(),MATCH($B94&$C94,'Smelter Look-up'!$J:$J,0))","v":{"$error":"#N/A"}},null,0,null,null,null,""]
[null,{"$f":"IF(LEN(A95)=0,\"\",INDEX('Smelter Look-up'!$A:$A,MATCH($A95,'Smelter Look-up'!$E:$E,0)))","v":""},{"$f":"IF(LEN(A95)=0,\"\",INDEX('Smelter Look-up'!$C:$C,MATCH($A95,'Smelter Look-up'!$E:$E,0)))","v":""},null,{"$f":"IF(ISERROR($V95),\"\",OFFSET('Smelter Look-up'!$D$4,$V95-4,0)&\"\")","v":""},{"$f":"IF(ISERROR($V95),\"\",OFFSET('Smelter Look-up'!$E$4,$V95-4,0))","v":""},{"$f":"IF(C95=$X$4,\"Enter smelter details\", IF(ISERROR($V95),\"\",OFFSET('Smelter Look-up'!$F$4,$V95-4,0)))","v":""},{"$f":"IF(ISERROR($V95),\"\",OFFSET('Smelter Look-up'!$G$4,$V95-4,0))","v":""},{"$f":"IF(ISERROR($V95),\"\",OFFSET('Smelter Look-up'!$H$4,$V95-4,0))","v":""},{"$f":"IF(ISERROR($V95),\"\",OFFSET('Smelter Look-up'!$I$4,$V95-4,0))","v":""},{"$nulls":7},{"$f":"IF(ISERROR($V95),\"\",OFFSET('Smelter Look-up'!$C$4,$V95-4,0)&\"\")","v":""},"",{"$f":"IF(B95=\"\",\"\",IF(ISERROR(MATCH($J95,SorP!$B$1:$B$6230,0)),\"\",INDIRECT(\"'SorP'!$A$\"&MATCH($J95,SorP!$B$1:$B$6230,0))))","v":""},null,{"$f":"IF(C95=\"\",NA(),MATCH($B95&$C95,'Smelter Look-up'!$J:$J,0))","v":{"$error":"#N/A"}},null,0,null,null,null,""]
[null,{"$f":"IF(LEN(A96)=0,\"\",INDEX('Smelter Look-up'!$A:$A,MATCH($A96,'Smelter Look-up'!$E:$E,0)))","v":""},{"$f":"IF(LEN(A96)=0,\"\",INDEX('Smelter Look-up'!$C:$C,MATCH($A96,'Smelter Look-up'!$E:$E,0)))","v":""},null,{"$f":"IF(ISERROR($V96),\"\",OFFSET('Smelter Look-up'!$D$4,$V96-4,0)&\"\")","v":""},{"$f":"IF(ISERROR($V96),\"\",OFFSET('Smelter Look-up'!$E$4,$V96-4,0))","v":""},{"$f":"IF(C96=$X$4,\"Enter smelter details\", IF(ISERROR($V96),\"\",OFFSET('Smelter Look-up'!$F$4,$V96-4,0)))","v":""},{"$f":"IF(ISERROR($V96),\"\",OFFSET('Smelter Look-up'!$G$4,$V96-4,0))","v":""},{"$f":"IF(ISERROR($V96),\"\",OFFSET('Smelter Look-up'!$H$4,$V96-4,0))","v":""},{"$f":"IF(ISERROR($V96),\"\",OFFSET('Smelter Look-up'!$I$4,$V96-4,0))","v":""},{"$nulls":7},{"$f":"IF(ISERROR($V96),\"\",OFFSET('Smelter Look-up'!$C$4,$V96-4,0)&\"\")","v":""},"",{"$f":"IF(B96=\"\",\"\",IF(ISERROR(MATCH($J96,SorP!$B$1:$B$6230,0)),\"\",INDIRECT(\"'SorP'!$A$\"&MATCH($J96,SorP!$B$1:$B$6230,0))))","v":""},null,{"$f":"IF(C96=\"\",NA(),MATCH($B96&$C96,'Smelter Look-up'!$J:$J,0))","v":{"$error":"#N/A"}},null,0,null,null,null,""]
[null,{"$f":"IF(LEN(A97)=0,\"\",INDEX('Smelter Look-up'!$A:$A,MATCH($A97,'Smelter Look-up'!$E:$E,0)))","v":""},{"$f":"IF(LEN(A97)=0,\"\",INDEX('Smelter Look-up'!$C:$C,MATCH($A97,'Smelter Look-up'!$E:$E,0)))","v":""},null,{"$f":"IF(ISERROR($V97),\"\",OFFSET('Smelter Look-up'!$D$4,$V97-4,0)&\"\")","v":""},{"$f":"IF(ISERROR($V97),\"\",OFFSET('Smelter Look-up'!$E$4,$V97-4,0))","v":""},{"$f":"IF(C97=$X$4,\"Enter smelter details\", IF(ISERROR($V97),\"\",OFFSET('Smelter Look-up'!$F$4,$V97-4,0)))","v":""},{"$f":"IF(ISERROR($V97),\"\",OFFSET('Smelter Look-up'!$G$4,$V97-4,0))","v":""},{"$f":"IF(ISERROR($V97),\"\",OFFSET('Smelter Look-up'!$H$4,$V97-4,0))","v":""},{"$f":"IF(ISERROR($V97),\"\",OFFSET('Smelter Look-up'!$I$4,$V97-4,0))","v":""},{"$nulls":7},{"$f":"IF(ISERROR($V97),\"\",OFFSET('Smelter Look-up'!$C$4,$V97-4,0)&\"\")","v":""},"",{"$f":"IF(B97=\"\",\"\",IF(ISERROR(MATCH($J97,SorP!$B$1:$B$6230,0)),\"\",INDIRECT(\"'SorP'!$A$\"&MATCH($J97,SorP!$B$1:$B$6230,0))))","v":""},null,{"$f":"IF(C97=\"\",NA(),MATCH($B97&$C97,'Smelter Look-up'!$J:$J,0))","v":{"$error":"#N/A"}},null,0,null,null,null,""]
[null,{"$f":"IF(LEN(A98)=0,\"\",INDEX('Smelter Look-up'!$A:$A,MATCH($A98,'Smelter Look-up'!$E:$E,0)))","v":""},{"$f":"IF(LEN(A98)=0,\"\",INDEX('Smelter Look-up'!$C:$C,MATCH($A98,'Smelter Look-up'!$E:$E,0)))","v":""},null,{"$f":"IF(ISERROR($V98),\"\",OFFSET('Smelter Look-up'!$D$4,$V98-4,0)&\"\")","v":""},{"$f":"IF(ISERROR($V98),\"\",OFFSET('Smelter Look-up'!$E$4,$V98-4,0))","v":""},{"$f":"IF(C98=$X$4,\"Enter smelter details\", IF(ISERROR($V98),\"\",OFFSET('Smelter Look-up'!$F$4,$V98-4,0)))","v":""},{"$f":"IF(ISERROR($V98),\"\",OFFSET('Smelter Look-up'!$G$4,$V98-4,0))","v":""},{"$f":"IF(ISERROR($V98),\"\",OFFSET('Smelter Look-up'!$H$4,$V98-4,0))","v":""},{"$f":"IF(ISERROR($V98),\"\",OFFSET('Smelter Look-up'!$I$4,$V98-4,0))","v":""},{"$nulls":7},{"$f":"IF(ISERROR($V98),\"\",OFFSET('Smelter Look-up'!$C$4,$V98-4,0)&\"\")","v":""},"",{"$f":"IF(B98=\"\",\"\",IF(ISERROR(MATCH($J98,SorP!$B$1:$B$6230,0)),\"\",INDIRECT(\"'SorP'!$A$\"&MATCH($J98,SorP!$B$1:$B$6230,0))))","v":""},null,{"$f":"IF(C98=\"\",NA(),MATCH($B98&$C98,'Smelter Look-up'!$J:$J,0))","v":{"$error":"#N/A"}},null,0,null,null,null,""]
[null,{"$f":"IF(LEN(A99)=0,\"\",INDEX('Smelter Look-up'!$A:$A,MATCH($A99,'Smelter Look-up'!$E:$E,0)))","v":""},{"$f":"IF(LEN(A99)=0,\"\",INDEX('Smelter Look-up'!$C:$C,MATCH($A99,'Smelter Look-up'!$E:$E,0)))","v":""},null,{"$f":"IF(ISERROR($V99),\"\",OFFSET('Smelter Look-up'!$D$4,$V99-4,0)&\"\")","v":""},{"$f":"IF(ISERROR($V99),\"\",OFFSET('Smelter Look-up'!$E$4,$V99-4,0))","v":""},{"$f":"IF(C99=$X$4,\"Enter smelter details\", IF(ISERROR($V99),\"\",OFFSET('Smelter Look-up'!$F$4,$V99-4,0)))","v":""},{"$f":"IF(ISERROR($V99),\"\",OFFSET('Smelter Look-up'!$G$4,$V99-4,0))","v":""},{"$f":"IF(ISERROR($V99),\"\",OFFSET('Smelter Look-up'!$H$4,$V99-4,0))","v":""},{"$f":"IF(ISERROR($V99),\"\",OFFSET('Smelter Look-up'!$I$4,$V99-4,0))","v":""},{"$nulls":7},{"$f":"IF(ISERROR($V99),\"\",OFFSET('Smelter Look-up'!$C$4,$V99-4,0)&\"\")","v":""},"",{"$f":"IF(B99=\"\",\"\",IF(ISERROR(MATCH($J99,SorP!$B$1:$B$6230,0)),\"\",INDIRECT(\"'SorP'!$A$\"&MATCH($J99,SorP!$B$1:$B$6230,0))))","v":""},null,{"$f":"IF(C99=\"\",NA(),MATCH($B99&$C99,'Smelter Look-up'!$J:$J,0))","v":{"$error":"#N/A"}},null,0,null,null,null,""]
[null,{"$f":"IF(LEN(A100)=0,\"\",INDEX('Smelter Look-up'!$A:$A,MATCH($A100,'Smelter Look-up'!$E:$E,0)))","v":""},{"$f":"IF(LEN(A100)=0,\"\",INDEX('Smelter Look-up'!$C:$C,MATCH($A100,'Smelter Look-up'!$E:$E,0)))","v":""},null,{"$f":"IF(ISERROR($V100),\"\",OFFSET('Smelter Look-up'!$D$4,$V100-4,0)&\"\")","v":""},{"$f":"IF(ISERROR($V100),\"\",OFFSET('Smelter Look-up'!$E$4,$V100-4,0))","v":""},{"$f":"IF(C100=$X$4,\"Enter smelter details\", IF(ISERROR($V100),\"\",OFFSET('Smelter Look-up'!$F$4,$V100-4,0)))","v":""},{"$f":"IF(ISERROR($V100),\"\",OFFSET('Smelter Look-up'!$G$4,$V100-4,0))","v":""},{"$f":"IF(ISERROR($V100),\"\",OFFSET('Smelter Look-up'!$H$4,$V100-4,0))","v":""},{"$f":"IF(ISERROR($V100),\"\",OFFSET('Smelter Look-up'!$I$4,$V100-4,0))","v":""},{"$nulls":7},{"$f":"IF(ISERROR($V100),\"\",OFFSET('Smelter Look-up'!$C$4,$V100-4,0)&\"\")","v":""},"",{"$f":"IF(B100=\"\",\"\",IF(ISERROR(MATCH($J100,SorP!$B$1:$B$6230,0)),\"\",INDIRECT(\"'SorP'!$A$\"&MATCH($J100,SorP!$B$1:$B$6230,0))))","v":""},null,{"$f":"IF(C100=\"\",NA(),MATCH($B100&$C100,'Smelter Look-up'!$J:$J,0))","v":{"$error":"#N/A"}},null,0,null,null,null,""]
[null,{"$f":"IF(LEN(A101)=0,\"\",INDEX('Smelter Look-up'!$A:$A,MATCH($A101,'Smelter Look-up'!$E:$E,0)))","v":""},{"$f":"IF(LEN(A101)=0,\"\",INDEX('Smelter Look-up'!$C:$C,MATCH($A101,'Smelter Look-up'!$E:$E,0)))","v":""},null,{"$f":"IF(ISERROR($V101),\"\",OFFSET('Smelter Look-up'!$D$4,$V101-4,0)&\"\")","v":""},{"$f":"IF(ISERROR($V101),\"\",OFFSET('Smelter Look-up'!$E$4,$V101-4,0))","v":""},{"$f":"IF(C101=$X$4,\"Enter smelter details\", IF(ISERROR($V101),\"\",OFFSET('Smelter Look-up'!$F$4,$V101-4,0)))","v":""},{"$f":"IF(ISERROR($V101),\"\",OFFSET('Smelter Look-up'!$G$4,$V101-4,0))","v":""},{"$f":"IF(ISERROR($V101),\"\",OFFSET('Smelter Look-up'!$H$4,$V101-4,0))","v":""},{"$f":"IF(ISERROR($V101),\"\",OFFSET('Smelter Look-up'!$I$4,$V101-4,0))","v":""},{"$nulls":7},{"$f":"IF(ISERROR($V101),\"\",OFFSET('Smelter Look-up'!$C$4,$V101-4,0)&\"\")","v":""},"",{"$f":"IF(B101=\"\",\"\",IF(ISERROR(MATCH($J101,SorP!$B$1:$B$6230,0)),\"\",INDIRECT(\"'SorP'!$A$\"&MATCH($J101,SorP!$B$1:$B$6230,0))))","v":""},null,{"$f":"IF(C101=\"\",NA(),MATCH($B101&$C101,'Smelter Look-up'!$J:$J,0))","v":{"$error":"#N/A"}},null,0,null,null,null,""]
[null,{"$f":"IF(LEN(A102)=0,\"\",INDEX('Smelter Look-up'!$A:$A,MATCH($A102,'Smelter Look-up'!$E:$E,0)))","v":""},{"$f":"IF(LEN(A102)=0,\"\",INDEX('Smelter Look-up'!$C:$C,MATCH($A102,'Smelter Look-up'!$E:$E,0)))","v":""},null,{"$f":"IF(ISERROR($V102),\"\",OFFSET('Smelter Look-up'!$D$4,$V102-4,0)&\"\")","v":""},{"$f":"IF(ISERROR($V102),\"\",OFFSET('Smelter Look-up'!$E$4,$V102-4,0))","v":""},{"$f":"IF(C102=$X$4,\"Enter smelter details\", IF(ISERROR($V102),\"\",OFFSET('Smelter Look-up'!$F$4,$V102-4,0)))","v":""},{"$f":"IF(ISERROR($V102),\"\",OFFSET('Smelter Look-up'!$G$4,$V102-4,0))","v":""},{"$f":"IF(ISERROR($V102),\"\",OFFSET('Smelter Look-up'!$H$4,$V102-4,0))","v":""},{"$f":"IF(ISERROR($V102),\"\",OFFSET('Smelter Look-up'!$I$4,$V102-4,0))","v":""},{"$nulls":7},{"$f":"IF(ISERROR($V102),\"\",OFFSET('Smelter Look-up'!$C$4,$V102-4,0)&\"\")","v":""},"",{"$f":"IF(B102=\"\",\"\",IF(ISERROR(MATCH($J102,SorP!$B$1:$B$6230,0)),\"\",INDIRECT(\"'SorP'!$A$\"&MATCH($J102,SorP!$B$1:$B$6230,0))))","v":""},null,{"$f":"IF(C102=\"\",NA(),MATCH($B102&$C102,'Smelter Look-up'!$J:$J,0))","v":{"$error":"#N/A"}},null,0,null,null,null,""]
[null,{"$f":"IF(LEN(A103)=0,\"\",INDEX('Smelter Look-up'!$A:$A,MATCH($A103,'Smelter Look-up'!$E:$E,0)))","v":""},{"$f":"IF(LEN(A103)=0,\"\",INDEX('Smelter Look-up'!$C:$C,MATCH($A103,'Smelter Look-up'!$E:$E,0)))","v":""},null,{"$f":"IF(ISERROR($V103),\"\",OFFSET('Smelter Look-up'!$D$4,$V103-4,0)&\"\")","v":""},{"$f":"IF(ISERROR($V103),\"\",OFFSET('Smelter Look-up'!$E$4,$V103-4,0))","v":""},{"$f":"IF(C103=$X$4,\"Enter smelter details\", IF(ISERROR($V103),\"\",OFFSET('Smelter Look-up'!$F$4,$V103-4,0)))","v":""},{"$f":"IF(ISERROR($V103),\"\",OFFSET('Smelter Look-up'!$G$4,$V103-4,0))","v":""},{"$f":"IF(ISERROR($V103),\"\",OFFSET('Smelter Look-up'!$H$4,$V103-4,0))","v":""},{"$f":"IF(ISERROR($V103),\"\",OFFSET('Smelter Look-up'!$I$4,$V103-4,0))","v":""},{"$nulls":7},{"$f":"IF(ISERROR($V103),\"\",OFFSET('Smelter Look-up'!$C$4,$V103-4,0)&\"\")","v":""},"",{"$f":"IF(B103=\"\",\"\",IF(ISERROR(MATCH($J103,SorP!$B$1:$B$6230,0)),\"\",INDIRECT(\"'SorP'!$A$\"&MATCH($J103,SorP!$B$1:$B$6230,0))))","v":""},null,{"$f":"IF(C103=\"\",NA(),MATCH($B103&$C103,'Smelter Look-up'!$J:$J,0))","v":{"$error":"#N/A"}},null,0,null,null,null,""]
[null,{"$f":"IF(LEN(A104)=0,\"\",INDEX('Smelter Look-up'!$A:$A,MATCH($A104,'Smelter Look-up'!$E:$E,0)))","v":""},{"$f":"IF(LEN(A104)=0,\"\",INDEX('Smelter Look-up'!$C:$C,MATCH($A104,'Smelter Look-up'!$E:$E,0)))","v":""},null,{"$f":"IF(ISERROR($V104),\"\",OFFSET('Smelter Look-up'!$D$4,$V104-4,0)&\"\")","v":""},{"$f":"IF(ISERROR($V104),\"\",OFFSET('Smelter Look-up'!$E$4,$V104-4,0))","v":""},{"$f":"IF(C104=$X$4,\"Enter smelter details\", IF(ISERROR($V104),\"\",OFFSET('Smelter Look-up'!$F$4,$V104-4,0)))","v":""},{"$f":"IF(ISERROR($V104),\"\",OFFSET('Smelter Look-up'!$G$4,$V104-4,0))","v":""},{"$f":"IF(ISERROR($V104),\"\",OFFSET('Smelter Look-up'!$H$4,$V104-4,0))","v":""},{"$f":"IF(ISERROR($V104),\"\",OFFSET('Smelter Look-up'!$I$4,$V104-4,0))","v":""},{"$nulls":7},{"$f":"IF(ISERROR($V104),\"\",OFFSET('Smelter Look-up'!$C$4,$V104-4,0)&\"\")","v":""},"",{"$f":"IF(B104=\"\",\"\",IF(ISERROR(MATCH($J104,SorP!$B$1:$B$6230,0)),\"\",INDIRECT(\"'SorP'!$A$\"&MATCH($J104,SorP!$B$1:$B$6230,0))))","v":""},null,{"$f":"IF(C104=\"\",NA(),MATCH($B104&$C104,'Smelter Look-up'!$J:$J,0))","v":{"$error":"#N/A"}},null,0,null,null,null,""]
[null,{"$f":"IF(LEN(A105)=0,\"\",INDEX('Smelter Look-up'!$A:$A,MATCH($A105,'Smelter Look-up'!$E:$E,0)))","v":""},{"$f":"IF(LEN(A105)=0,\"\",INDEX('Smelter Look-up'!$C:$C,MATCH($A105,'Smelter Look-up'!$E:$E,0)))","v":""},null,{"$f":"IF(ISERROR($V105),\"\",OFFSET('Smelter Look-up'!$D$4,$V105-4,0)&\"\")","v":""},{"$f":"IF(ISERROR($V105),\"\",OFFSET('Smelter Look-up'!$E$4,$V105-4,0))","v":""},{"$f":"IF(C105=$X$4,\"Enter smelter details\", IF(ISERROR($V105),\"\",OFFSET('Smelter Look-up'!$F$4,$V105-4,0)))","v":""},{"$f":"IF(ISERROR($V105),\"\",OFFSET('Smelter Look-up'!$G$4,$V105-4,0))","v":""},{"$f":"IF(ISERROR($V105),\"\",OFFSET('Smelter Look-up'!$H$4,$V105-4,0))","v":""},{"$f":"IF(ISERROR($V105),\"\",OFFSET('Smelter Look-up'!$I$4,$V105-4,0))","v":""},{"$nulls":7},{"$f":"IF(ISERROR($V105),\"\",OFFSET('Smelter Look-up'!$C$4,$V105-4,0)&\"\")","v":""},"",{"$f":"IF(B105=\"\",\"\",IF(ISERROR(MATCH($J105,SorP!$B$1:$B$6230,0)),\"\",INDIRECT(\"'SorP'!$A$\"&MATCH($J105,SorP!$B$1:$B$6230,0))))","v":""},null,{"$f":"IF(C105=\"\",NA(),MATCH($B105&$C105,'Smelter Look-up'!$J:$J,0))","v":{"$error":"#N/A"}},null,0,null,null,null,""]
[null,{"$f":"IF(LEN(A106)=0,\"\",INDEX('Smelter Look-up'!$A:$A,MATCH($A106,'Smelter Look-up'!$E:$E,0)))","v":""},{"$f":"IF(LEN(A106)=0,\"\",INDEX('Smelter Look-up'!$C:$C,MATCH($A106,'Smelter Look-up'!$E:$E,0)))","v":""},null,{"$f":"IF(ISERROR($V106),\"\",OFFSET('Smelter Look-up'!$D$4,$V106-4,0)&\"\")","v":""},{"$f":"IF(ISERROR($V106),\"\",OFFSET('Smelter Look-up'!$E$4,$V106-4,0))","v":""},{"$f":"IF(C106=$X$4,\"Enter smelter details\", IF(ISERROR($V106),\"\",OFFSET('Smelter Look-up'!$F$4,$V106-4,0)))","v":""},{"$f":"IF(ISERROR($V106),\"\",OFFSET('Smelter Look-up'!$G$4,$V106-4,0))","v":""},{"$f":"IF(ISERROR($V106),\"\",OFFSET('Smelter Look-up'!$H$4,$V106-4,0))","v":""},{"$f":"IF(ISERROR($V106),\"\",OFFSET('Smelter Look-up'!$I$4,$V106-4,0))","v":""},{"$nulls":7},{"$f":"IF(ISERROR($V106),\"\",OFFSET('Smelter Look-up'!$C$4,$V106-4,0)&\"\")","v":""},"",{"$f":"IF(B106=\"\",\"\",IF(ISERROR(MATCH($J106,SorP!$B$1:$B$6230,0)),\"\",INDIRECT(\"'SorP'!$A$\"&MATCH($J106,SorP!$B$1:$B$6230,0))))","v":""},null,{"$f":"IF(C106=\"\",NA(),MATCH($B106&$C106,'Smelter Look-up'!$J:$J,0))","v":{"$error":"#N/A"}},null,0,null,null,null,""]
[null,{"$f":"IF(LEN(A107)=0,\"\",INDEX('Smelter Look-up'!$A:$A,MATCH($A107,'Smelter Look-up'!$E:$E,0)))","v":""},{"$f":"IF(LEN(A107)=0,\"\",INDEX('Smelter Look-up'!$C:$C,MATCH($A107,'Smelter Look-up'!$E:$E,0)))","v":""},null,{"$f":"IF(ISERROR($V107),\"\",OFFSET('Smelter Look-up'!$D$4,$V107-4,0)&\"\")","v":""},{"$f":"IF(ISERROR($V107),\"\",OFFSET('Smelter Look-up'!$E$4,$V107-4,0))","v":""},{"$f":"IF(C107=$X$4,\"Enter smelter details\", IF(ISERROR($V107),\"\",OFFSET('Smelter Look-up'!$F$4,$V107-4,0)))","v":""},{"$f":"IF(ISERROR($V107),\"\",OFFSET('Smelter Look-up'!$G$4,$V107-4,0))","v":""},{"$f":"IF(ISERROR($V107),\"\",OFFSET('Smelter Look-up'!$H$4,$V107-4,0))","v":""},{"$f":"IF(ISERROR($V107),\"\",OFFSET('Smelter Look-up'!$I$4,$V107-4,0))","v":""},{"$nulls":7},{"$f":"IF(ISERROR($V107),\"\",OFFSET('Smelter Look-up'!$C$4,$V107-4,0)&\"\")","v":""},"",{"$f":"IF(B107=\"\",\"\",IF(ISERROR(MATCH($J107,SorP!$B$1:$B$6230,0)),\"\",INDIRECT(\"'SorP'!$A$\"&MATCH($J107,SorP!$B$1:$B$6230,0))))","v":""},null,{"$f":"IF(C107=\"\",NA(),MATCH($B107&$C107,'Smelter Look-up'!$J:$J,0))","v":{"$error":"#N/A"}},null,0,null,null,null,""]
[null,{"$f":"IF(LEN(A108)=0,\"\",INDEX('Smelter Look-up'!$A:$A,MATCH($A108,'Smelter Look-up'!$E:$E,0)))","v":""},{"$f":"IF(LEN(A108)=0,\"\",INDEX('Smelter Look-up'!$C:$C,MATCH($A108,'Smelter Look-up'!$E:$E,0)))","v":""},null,{"$f":"IF(ISERROR($V108),\"\",OFFSET('Smelter Look-up'!$D$4,$V108-4,0)&\"\")","v":""},{"$f":"IF(ISERROR($V108),\"\",OFFSET('Smelter Look-up'!$E$4,$V108-4,0))","v":""},{"$f":"IF(C108=$X$4,\"Enter smelter details\", IF(ISERROR($V108),\"\",OFFSET('Smelter Look-up'!$F$4,$V108-4,0)))","v":""},{"$f":"IF(ISERROR($V108),\"\",OFFSET('Smelter Look-up'!$G$4,$V108-4,0))","v":""},{"$f":"IF(ISERROR($V108),\"\",OFFSET('Smelter Look-up'!$H$4,$V108-4,0))","v":""},{"$f":"IF(ISERROR($V108),\"\",OFFSET('Smelter Look-up'!$I$4,$V108-4,0))","v":""},{"$nulls":7},{"$f":"IF(ISERROR($V108),\"\",OFFSET('Smelter Look-up'!$C$4,$V108-4,0)&\"\")","v":""},"",{"$f":"IF(B108=\"\",\"\",IF(ISERROR(MATCH($J108,SorP!$B$1:$B$6230,0)),\"\",INDIRECT(\"'SorP'!$A$\"&MATCH($J108,SorP!$B$1:$B$6230,0))))","v":""},null,{"$f":"IF(C108=\"\",NA(),MATCH($B108&$C108,'Smelter Look-up'!$J:$J,0))","v":{"$error":"#N/A"}},null,0,null,null,null,""]
[null,{"$f":"IF(LEN(A109)=0,\"\",INDEX('Smelter Look-up'!$A:$A,MATCH($A109,'Smelter Look-up'!$E:$E,0)))","v":""},{"$f":"IF(LEN(A109)=0,\"\",INDEX('Smelter Look-up'!$C:$C,MATCH($A109,'Smelter Look-up'!$E:$E,0)))","v":""},null,{"$f":"IF(ISERROR($V109),\"\",OFFSET('Smelter Look-up'!$D$4,$V109-4,0)&\"\")","v":""},{"$f":"IF(ISERROR($V109),\"\",OFFSET('Smelter Look-up'!$E$4,$V109-4,0))","v":""},{"$f":"IF(C109=$X$4,\"Enter smelter details\", IF(ISERROR($V109),\"\",OFFSET('Smelter Look-up'!$F$4,$V109-4,0)))","v":""},{"$f":"IF(ISERROR($V109),\"\",OFFSET('Smelter Look-up'!$G$4,$V109-4,0))","v":""},{"$f":"IF(ISERROR($V109),\"\",OFFSET('Smelter Look-up'!$H$4,$V109-4,0))","v":""},{"$f":"IF(ISERROR($V109),\"\",OFFSET('Smelter Look-up'!$I$4,$V109-4,0))","v":""},{"$nulls":7},{"$f":"IF(ISERROR($V109),\"\",OFFSET('Smelter Look-up'!$C$4,$V109-4,0)&\"\")","v":""},"",{"$f":"IF(B109=\"\",\"\",IF(ISERROR(MATCH($J109,SorP!$B$1:$B$6230,0)),\"\",INDIRECT(\"'SorP'!$A$\"&MATCH($J109,SorP!$B$1:$B$6230,0))))","v":""},null,{"$f":"IF(C109=\"\",NA(),MATCH($B109&$C109,'Smelter Look-up'!$J:$J,0))","v":{"$error":"#N/A"}},null,0,null,null,null,""]
[null,{"$f":"IF(LEN(A110)=0,\"\",INDEX('Smelter Look-up'!$A:$A,MATCH($A110,'Smelter Look-up'!$E:$E,0)))","v":""},{"$f":"IF(LEN(A110)=0,\"\",INDEX('Smelter Look-up'!$C:$C,MATCH($A110,'Smelter Look-up'!$E:$E,0)))","v":""},null,{"$f":"IF(ISERROR($V110),\"\",OFFSET('Smelter Look-up'!$D$4,$V110-4,0)&\"\")","v":""},{"$f":"IF(ISERROR($V110),\"\",OFFSET('Smelter Look-up'!$E$4,$V110-4,0))","v":""},{"$f":"IF(C110=$X$4,\"Enter smelter details\", IF(ISERROR($V110),\"\",OFFSET('Smelter Look-up'!$F$4,$V110-4,0)))","v":""},{"$f":"IF(ISERROR($V110),\"\",OFFSET('Smelter Look-up'!$G$4,$V110-4,0))","v":""},{"$f":"IF(ISERROR($V110),\"\",OFFSET('Smelter Look-up'!$H$4,$V110-4,0))","v":""},{"$f":"IF(ISERROR($V110),\"\",OFFSET('Smelter Look-up'!$I$4,$V110-4,0))","v":""},{"$nulls":7},{"$f":"IF(ISERROR($V110),\"\",OFFSET('Smelter Look-up'!$C$4,$V110-4,0)&\"\")","v":""},"",{"$f":"IF(B110=\"\",\"\",IF(ISERROR(MATCH($J110,SorP!$B$1:$B$6230,0)),\"\",INDIRECT(\"'SorP'!$A$\"&MATCH($J110,SorP!$B$1:$B$6230,0))))","v":""},null,{"$f":"IF(C110=\"\",NA(),MATCH($B110&$C110,'Smelter Look-up'!$J:$J,0))","v":{"$error":"#N/A"}},null,0,null,null,null,""]
[null,{"$f":"IF(LEN(A111)=0,\"\",INDEX('Smelter Look-up'!$A:$A,MATCH($A111,'Smelter Look-up'!$E:$E,0)))","v":""},{"$f":"IF(LEN(A111)=0,\"\",INDEX('Smelter Look-up'!$C:$C,MATCH($A111,'Smelter Look-up'!$E:$E,0)))","v":""},null,{"$f":"IF(ISERROR($V111),\"\",OFFSET('Smelter Look-up'!$D$4,$V111-4,0)&\"\")","v":""},{"$f":"IF(ISERROR($V111),\"\",OFFSET('Smelter Look-up'!$E$4,$V111-4,0))","v":""},{"$f":"IF(C111=$X$4,\"Enter smelter details\", IF(ISERROR($V111),\"\",OFFSET('Smelter Look-up'!$F$4,$V111-4,0)))","v":""},{"$f":"IF(ISERROR($V111),\"\",OFFSET('Smelter Look-up'!$G$4,$V111-4,0))","v":""},{"$f":"IF(ISERROR($V111),\"\",OFFSET('Smelter Look-up'!$H$4,$V111-4,0))","v":""},{"$f":"IF(ISERROR($V111),\"\",OFFSET('Smelter Look-up'!$I$4,$V111-4,0))","v":""},{"$nulls":7},{"$f":"IF(ISERROR($V111),\"\",OFFSET('Smelter Look-up'!$C$4,$V111-4,0)&\"\")","v":""},"",{"$f":"IF(B111=\"\",\"\",IF(ISERROR(MATCH($J111,SorP!$B$1:$B$6230,0)),\"\",INDIRECT(\"'SorP'!$A$\"&MATCH($J111,SorP!$B$1:$B$6230,0))))","v":""},null,{"$f":"IF(C111=\"\",NA(),MATCH($B111&$C111,'Smelter Look-up'!$J:$J,0))","v":{"$error":"#N/A"}},null,0,null,null,null,""]
[null,{"$f":"IF(LEN(A112)=0,\"\",INDEX('Smelter Look-up'!$A:$A,MATCH($A112,'Smelter Look-up'!$E:$E,0)))","v":""},{"$f":"IF(LEN(A112)=0,\"\",INDEX('Smelter Look-up'!$C:$C,MATCH($A112,'Smelter Look-up'!$E:$E,0)))","v":""},null,{"$f":"IF(ISERROR($V112),\"\",OFFSET('Smelter Look-up'!$D$4,$V112-4,0)&\"\")","v":""},{"$f":"IF(ISERROR($V112),\"\",OFFSET('Smelter Look-up'!$E$4,$V112-4,0))","v":""},{"$f":"IF(C112=$X$4,\"Enter smelter details\", IF(ISERROR($V112),\"\",OFFSET('Smelter Look-up'!$F$4,$V112-4,0)))","v":""},{"$f":"IF(ISERROR($V112),\"\",OFFSET('Smelter Look-up'!$G$4,$V112-4,0))","v":""},{"$f":"IF(ISERROR($V112),\"\",OFFSET('Smelter Look-up'!$H$4,$V112-4,0))","v":""},{"$f":"IF(ISERROR($V112),\"\",OFFSET('Smelter Look-up'!$I$4,$V112-4,0))","v":""},{"$nulls":7},{"$f":"IF(ISERROR($V112),\"\",OFFSET('Smelter Look-up'!$C$4,$V112-4,0)&\"\")","v":""},"",{"$f":"IF(B112=\"\",\"\",IF(ISERROR(MATCH($J112,SorP!$B$1:$B$6230,0)),\"\",INDIRECT(\"'SorP'!$A$\"&MATCH($J112,SorP!$B$1:$B$6230,0))))","v":""},null,{"$f":"IF(C112=\"\",NA(),MATCH($B112&$C112,'Smelter Look-up'!$J:$J,0))","v":{"$error":"#N/A"}},null,0,null,null,null,""]
[null,{"$f":"IF(LEN(A113)=0,\"\",INDEX('Smelter Look-up'!$A:$A,MATCH($A113,'Smelter Look-up'!$E:$E,0)))","v":""},{"$f":"IF(LEN(A113)=0,\"\",INDEX('Smelter Look-up'!$C:$C,MATCH($A113,'Smelter Look-up'!$E:$E,0)))","v":""},null,{"$f":"IF(ISERROR($V113),\"\",OFFSET('Smelter Look-up'!$D$4,$V113-4,0)&\"\")","v":""},{"$f":"IF(ISERROR($V113),\"\",OFFSET('Smelter Look-up'!$E$4,$V113-4,0))","v":""},{"$f":"IF(C113=$X$4,\"Enter smelter details\", IF(ISERROR($V113),\"\",OFFSET('Smelter Look-up'!$F$4,$V113-4,0)))","v":""},{"$f":"IF(ISERROR($V113),\"\",OFFSET('Smelter Look-up'!$G$4,$V113-4,0))","v":""},{"$f":"IF(ISERROR($V113),\"\",OFFSET('Smelter Look-up'!$H$4,$V113-4,0))","v":""},{"$f":"IF(ISERROR($V113),\"\",OFFSET('Smelter Look-up'!$I$4,$V113-4,0))","v":""},{"$nulls":7},{"$f":"IF(ISERROR($V113),\"\",OFFSET('Smelter Look-up'!$C$4,$V113-4,0)&\"\")","v":""},"",{"$f":"IF(B113=\"\",\"\",IF(ISERROR(MATCH($J113,SorP!$B$1:$B$6230,0)),\"\",INDIRECT(\"'SorP'!$A$\"&MATCH($J113,SorP!$B$1:$B$6230,0))))","v":""},null,{"$f":"IF(C113=\"\",NA(),MATCH($B113&$C113,'Smelter Look-up'!$J:$J,0))","v":{"$error":"#N/A"}},null,0,null,null,null,""]
[null,{"$f":"IF(LEN(A114)=0,\"\",INDEX('Smelter Look-up'!$A:$A,MATCH($A114,'Smelter Look-up'!$E:$E,0)))","v":""},{"$f":"IF(LEN(A114)=0,\"\",INDEX('Smelter Look-up'!$C:$C,MATCH($A114,'Smelter Look-up'!$E:$E,0)))","v":""},null,{"$f":"IF(ISERROR($V114),\"\",OFFSET('Smelter Look-up'!$D$4,$V114-4,0)&\"\")","v":""},{"$f":"IF(ISERROR($V114),\"\",OFFSET('Smelter Look-up'!$E$4,$V114-4,0))","v":""},{"$f":"IF(C114=$X$4,\"Enter smelter details\", IF(ISERROR($V114),\"\",OFFSET('Smelter Look-up'!$F$4,$V114-4,0)))","v":""},{"$f":"IF(ISERROR($V114),\"\",OFFSET('Smelter Look-up'!$G$4,$V114-4,0))","v":""},{"$f":"IF(ISERROR($V114),\"\",OFFSET('Smelter Look-up'!$H$4,$V114-4,0))","v":""},{"$f":"IF(ISERROR($V114),\"\",OFFSET('Smelter Look-up'!$I$4,$V114-4,0))","v":""},{"$nulls":7},{"$f":"IF(ISERROR($V114),\"\",OFFSET('Smelter Look-up'!$C$4,$V114-4,0)&\"\")","v":""},"",{"$f":"IF(B114=\"\",\"\",IF(ISERROR(MATCH($J114,SorP!$B$1:$B$6230,0)),\"\",INDIRECT(\"'SorP'!$A$\"&MATCH($J114,SorP!$B$1:$B$6230,0))))","v":""},null,{"$f":"IF(C114=\"\",NA(),MATCH($B114&$C114,'Smelter Look-up'!$J:$J,0))","v":{"$error":"#N/A"}},null,0,null,null,null,""]
[null,{"$f":"IF(LEN(A115)=0,\"\",INDEX('Smelter Look-up'!$A:$A,MATCH($A115,'Smelter Look-up'!$E:$E,0)))","v":""},{"$f":"IF(LEN(A115)=0,\"\",INDEX('Smelter Look-up'!$C:$C,MATCH($A115,'Smelter Look-up'!$E:$E,0)))","v":""},null,{"$f":"IF(ISERROR($V115),\"\",OFFSET('Smelter Look-up'!$D$4,$V115-4,0)&\"\")","v":""},{"$f":"IF(ISERROR($V115),\"\",OFFSET('Smelter Look-up'!$E$4,$V115-4,0))","v":""},{"$f":"IF(C115=$X$4,\"Enter smelter details\", IF(ISERROR($V115),\"\",OFFSET('Smelter Look-up'!$F$4,$V115-4,0)))","v":""},{"$f":"IF(ISERROR($V115),\"\",OFFSET('Smelter Look-up'!$G$4,$V115-4,0))","v":""},{"$f":"IF(ISERROR($V115),\"\",OFFSET('Smelter Look-up'!$H$4,$V115-4,0))","v":""},{"$f":"IF(ISERROR($V115),\"\",OFFSET('Smelter Look-up'!$I$4,$V115-4,0))","v":""},{"$nulls":7},{"$f":"IF(ISERROR($V115),\"\",OFFSET('Smelter Look-up'!$C$4,$V115-4,0)&\"\")","v":""},"",{"$f":"IF(B115=\"\",\"\",IF(ISERROR(MATCH($J115,SorP!$B$1:$B$6230,0)),\"\",INDIRECT(\"'SorP'!$A$\"&MATCH($J115,SorP!$B$1:$B$6230,0))))","v":""},null,{"$f":"IF(C115=\"\",NA(),MATCH($B115&$C115,'Smelter Look-up'!$J:$J,0))","v":{"$error":"#N/A"}},null,0,null,null,null,""]
[null,{"$f":"IF(LEN(A116)=0,\"\",INDEX('Smelter Look-up'!$A:$A,MATCH($A116,'Smelter Look-up'!$E:$E,0)))","v":""},{"$f":"IF(LEN(A116)=0,\"\",INDEX('Smelter Look-up'!$C:$C,MATCH($A116,'Smelter Look-up'!$E:$E,0)))","v":""},null,{"$f":"IF(ISERROR($V116),\"\",OFFSET('Smelter Look-up'!$D$4,$V116-4,0)&\"\")","v":""},{"$f":"IF(ISERROR($V116),\"\",OFFSET('Smelter Look-up'!$E$4,$V116-4,0))","v":""},{"$f":"IF(C116=$X$4,\"Enter smelter details\", IF(ISERROR($V116),\"\",OFFSET('Smelter Look-up'!$F$4,$V116-4,0)))","v":""},{"$f":"IF(ISERROR($V116),\"\",OFFSET('Smelter Look-up'!$G$4,$V116-4,0))","v":""},{"$f":"IF(ISERROR($V116),\"\",OFFSET('Smelter Look-up'!$H$4,$V116-4,0))","v":""},{"$f":"IF(ISERROR($V116),\"\",OFFSET('Smelter Look-up'!$I$4,$V116-4,0))","v":""},{"$nulls":7},{"$f":"IF(ISERROR($V116),\"\",OFFSET('Smelter Look-up'!$C$4,$V116-4,0)&\"\")","v":""},"",{"$f":"IF(B116=\"\",\"\",IF(ISERROR(MATCH($J116,SorP!$B$1:$B$6230,0)),\"\",INDIRECT(\"'SorP'!$A$\"&MATCH($J116,SorP!$B$1:$B$6230,0))))","v":""},null,{"$f":"IF(C116=\"\",NA(),MATCH($B116&$C116,'Smelter Look-up'!$J:$J,0))","v":{"$error":"#N/A"}},null,0,null,null,null,""]
[null,{"$f":"IF(LEN(A117)=0,\"\",INDEX('Smelter Look-up'!$A:$A,MATCH($A117,'Smelter Look-up'!$E:$E,0)))","v":""},{"$f":"IF(LEN(A117)=0,\"\",INDEX('Smelter Look-up'!$C:$C,MATCH($A117,'Smelter Look-up'!$E:$E,0)))","v":""},null,{"$f":"IF(ISERROR($V117),\"\",OFFSET('Smelter Look-up'!$D$4,$V117-4,0)&\"\")","v":""},{"$f":"IF(ISERROR($V117),\"\",OFFSET('Smelter Look-up'!$E$4,$V117-4,0))","v":""},{"$f":"IF(C117=$X$4,\"Enter smelter details\", IF(ISERROR($V117),\"\",OFFSET('Smelter Look-up'!$F$4,$V117-4,0)))","v":""},{"$f":"IF(ISERROR($V117),\"\",OFFSET('Smelter Look-up'!$G$4,$V117-4,0))","v":""},{"$f":"IF(ISERROR($V117),\"\",OFFSET('Smelter Look-up'!$H$4,$V117-4,0))","v":""},{"$f":"IF(ISERROR($V117),\"\",OFFSET('Smelter Look-up'!$I$4,$V117-4,0))","v":""},{"$nulls":7},{"$f":"IF(ISERROR($V117),\"\",OFFSET('Smelter Look-up'!$C$4,$V117-4,0)&\"\")","v":""},"",{"$f":"IF(B117=\"\",\"\",IF(ISERROR(MATCH($J117,SorP!$B$1:$B$6230,0)),\"\",INDIRECT(\"'SorP'!$A$\"&MATCH($J117,SorP!$B$1:$B$6230,0))))","v":""},null,{"$f":"IF(C117=\"\",NA(),MATCH($B117&$C117,'Smelter Look-up'!$J:$J,0))","v":{"$error":"#N/A"}},null,0,null,null,null,""]
[null,{"$f":"IF(LEN(A118)=0,\"\",INDEX('Smelter Look-up'!$A:$A,MATCH($A118,'Smelter Look-up'!$E:$E,0)))","v":""},{"$f":"IF(LEN(A118)=0,\"\",INDEX('Smelter Look-up'!$C:$C,MATCH($A118,'Smelter Look-up'!$E:$E,0)))","v":""},null,{"$f":"IF(ISERROR($V118),\"\",OFFSET('Smelter Look-up'!$D$4,$V118-4,0)&\"\")","v":""},{"$f":"IF(ISERROR($V118),\"\",OFFSET('Smelter Look-up'!$E$4,$V118-4,0))","v":""},{"$f":"IF(C118=$X$4,\"Enter smelter details\", IF(ISERROR($V118),\"\",OFFSET('Smelter Look-up'!$F$4,$V118-4,0)))","v":""},{"$f":"IF(ISERROR($V118),\"\",OFFSET('Smelter Look-up'!$G$4,$V118-4,0))","v":""},{"$f":"IF(ISERROR($V118),\"\",OFFSET('Smelter Look-up'!$H$4,$V118-4,0))","v":""},{"$f":"IF(ISERROR($V118),\"\",OFFSET('Smelter Look-up'!$I$4,$V118-4,0))","v":""},{"$nulls":7},{"$f":"IF(ISERROR($V118),\"\",OFFSET('Smelter Look-up'!$C$4,$V118-4,0)&\"\")","v":""},"",{"$f":"IF(B118=\"\",\"\",IF(ISERROR(MATCH($J118,SorP!$B$1:$B$6230,0)),\"\",INDIRECT(\"'SorP'!$A$\"&MATCH($J118,SorP!$B$1:$B$6230,0))))","v":""},null,{"$f":"IF(C118=\"\",NA(),MATCH($B118&$C118,'Smelter Look-up'!$J:$J,0))","v":{"$error":"#N/A"}},null,0,null,null,null,""]
[null,{"$f":"IF(LEN(A119)=0,\"\",INDEX('Smelter Look-up'!$A:$A,MATCH($A119,'Smelter Look-up'!$E:$E,0)))","v":""},{"$f":"IF(LEN(A119)=0,\"\",INDEX('Smelter Look-up'!$C:$C,MATCH($A119,'Smelter Look-up'!$E:$E,0)))","v":""},null,{"$f":"IF(ISERROR($V119),\"\",OFFSET('Smelter Look-up'!$D$4,$V119-4,0)&\"\")","v":""},{"$f":"IF(ISERROR($V119),\"\",OFFSET('Smelter Look-up'!$E$4,$V119-4,0))","v":""},{"$f":"IF(C119=$X$4,\"Enter smelter details\", IF(ISERROR($V119),\"\",OFFSET('Smelter Look-up'!$F$4,$V119-4,0)))","v":""},{"$f":"IF(ISERROR($V119),\"\",OFFSET('Smelter Look-up'!$G$4,$V119-4,0))","v":""},{"$f":"IF(ISERROR($V119),\"\",OFFSET('Smelter Look-up'!$H$4,$V119-4,0))","v":""},{"$f":"IF(ISERROR($V119),\"\",OFFSET('Smelter Look-up'!$I$4,$V119-4,0))","v":""},{"$nulls":7},{"$f":"IF(ISERROR($V119),\"\",OFFSET('Smelter Look-up'!$C$4,$V119-4,0)&\"\")","v":""},"",{"$f":"IF(B119=\"\",\"\",IF(ISERROR(MATCH($J119,SorP!$B$1:$B$6230,0)),\"\",INDIRECT(\"'SorP'!$A$\"&MATCH($J119,SorP!$B$1:$B$6230,0))))","v":""},null,{"$f":"IF(C119=\"\",NA(),MATCH($B119&$C119,'Smelter Look-up'!$J:$J,0))","v":{"$error":"#N/A"}},null,0,null,null,null,""]
[null,{"$f":"IF(LEN(A120)=0,\"\",INDEX('Smelter Look-up'!$A:$A,MATCH($A120,'Smelter Look-up'!$E:$E,0)))","v":""},{"$f":"IF(LEN(A120)=0,\"\",INDEX('Smelter Look-up'!$C:$C,MATCH($A120,'Smelter Look-up'!$E:$E,0)))","v":""},null,{"$f":"IF(ISERROR($V120),\"\",OFFSET('Smelter Look-up'!$D$4,$V120-4,0)&\"\")","v":""},{"$f":"IF(ISERROR($V120),\"\",OFFSET('Smelter Look-up'!$E$4,$V120-4,0))","v":""},{"$f":"IF(C120=$X$4,\"Enter smelter details\", IF(ISERROR($V120),\"\",OFFSET('Smelter Look-up'!$F$4,$V120-4,0)))","v":""},{"$f":"IF(ISERROR($V120),\"\",OFFSET('Smelter Look-up'!$G$4,$V120-4,0))","v":""},{"$f":"IF(ISERROR($V120),\"\",OFFSET('Smelter Look-up'!$H$4,$V120-4,0))","v":""},{"$f":"IF(ISERROR($V120),\"\",OFFSET('Smelter Look-up'!$I$4,$V120-4,0))","v":""},{"$nulls":7},{"$f":"IF(ISERROR($V120),\"\",OFFSET('Smelter Look-up'!$C$4,$V120-4,0)&\"\")","v":""},"",{"$f":"IF(B120=\"\",\"\",IF(ISERROR(MATCH($J120,SorP!$B$1:$B$6230,0)),\"\",INDIRECT(\"'SorP'!$A$\"&MATCH($J120,SorP!$B$1:$B$6230,0))))","v":""},null,{"$f":"IF(C120=\"\",NA(),MATCH($B120&$C120,'Smelter Look-up'!$J:$J,0))","v":{"$error":"#N/A"}},null,0,null,null,null,""]
[null,{"$f":"IF(LEN(A121)=0,\"\",INDEX('Smelter Look-up'!$A:$A,MATCH($A121,'Smelter Look-up'!$E:$E,0)))","v":""},{"$f":"IF(LEN(A121)=0,\"\",INDEX('Smelter Look-up'!$C:$C,MATCH($A121,'Smelter Look-up'!$E:$E,0)))","v":""},null,{"$f":"IF(ISERROR($V121),\"\",OFFSET('Smelter Look-up'!$D$4,$V121-4,0)&\"\")","v":""},{"$f":"IF(ISERROR($V121),\"\",OFFSET('Smelter Look-up'!$E$4,$V121-4,0))","v":""},{"$f":"IF(C121=$X$4,\"Enter smelter details\", IF(ISERROR($V121),\"\",OFFSET('Smelter Look-up'!$F$4,$V121-4,0)))","v":""},{"$f":"IF(ISERROR($V121),\"\",OFFSET('Smelter Look-up'!$G$4,$V121-4,0))","v":""},{"$f":"IF(ISERROR($V121),\"\",OFFSET('Smelter Look-up'!$H$4,$V121-4,0))","v":""},{"$f":"IF(ISERROR($V121),\"\",OFFSET('Smelter Look-up'!$I$4,$V121-4,0))","v":""},{"$nulls":7},{"$f":"IF(ISERROR($V121),\"\",OFFSET('Smelter Look-up'!$C$4,$V121-4,0)&\"\")","v":""},"",{"$f":"IF(B121=\"\",\"\",IF(ISERROR(MATCH($J121,SorP!$B$1:$B$6230,0)),\"\",INDIRECT(\"'SorP'!$A$\"&MATCH($J121,SorP!$B$1:$B$6230,0))))","v":""},null,{"$f":"IF(C121=\"\",NA(),MATCH($B121&$C121,'Smelter Look-up'!$J:$J,0))","v":{"$error":"#N/A"}},null,0,null,null,null,""]
[null,{"$f":"IF(LEN(A122)=0,\"\",INDEX('Smelter Look-up'!$A:$A,MATCH($A122,'Smelter Look-up'!$E:$E,0)))","v":""},{"$f":"IF(LEN(A122)=0,\"\",INDEX('Smelter Look-up'!$C:$C,MATCH($A122,'Smelter Look-up'!$E:$E,0)))","v":""},null,{"$f":"IF(ISERROR($V122),\"\",OFFSET('Smelter Look-up'!$D$4,$V122-4,0)&\"\")","v":""},{"$f":"IF(ISERROR($V122),\"\",OFFSET('Smelter Look-up'!$E$4,$V122-4,0))","v":""},{"$f":"IF(C122=$X$4,\"Enter smelter details\", IF(ISERROR($V122),\"\",OFFSET('Smelter Look-up'!$F$4,$V122-4,0)))","v":""},{"$f":"IF(ISERROR($V122),\"\",OFFSET('Smelter Look-up'!$G$4,$V122-4,0))","v":""},{"$f":"IF(ISERROR($V122),\"\",OFFSET('Smelter Look-up'!$H$4,$V122-4,0))","v":""},{"$f":"IF(ISERROR($V122),\"\",OFFSET('Smelter Look-up'!$I$4,$V122-4,0))","v":""},{"$nulls":7},{"$f":"IF(ISERROR($V122),\"\",OFFSET('Smelter Look-up'!$C$4,$V122-4,0)&\"\")","v":""},"",{"$f":"IF(B122=\"\",\"\",IF(ISERROR(MATCH($J122,SorP!$B$1:$B$6230,0)),\"\",INDIRECT(\"'SorP'!$A$\"&MATCH($J122,SorP!$B$1:$B$6230,0))))","v":""},null,{"$f":"IF(C122=\"\",NA(),MATCH($B122&$C122,'Smelter Look-up'!$J:$J,0))","v":{"$error":"#N/A"}},null,0,null,null,null,""]
[null,{"$f":"IF(LEN(A123)=0,\"\",INDEX('Smelter Look-up'!$A:$A,MATCH($A123,'Smelter Look-up'!$E:$E,0)))","v":""},{"$f":"IF(LEN(A123)=0,\"\",INDEX('Smelter Look-up'!$C:$C,MATCH($A123,'Smelter Look-up'!$E:$E,0)))","v":""},null,{"$f":"IF(ISERROR($V123),\"\",OFFSET('Smelter Look-up'!$D$4,$V123-4,0)&\"\")","v":""},{"$f":"IF(ISERROR($V123),\"\",OFFSET('Smelter Look-up'!$E$4,$V123-4,0))","v":""},{"$f":"IF(C123=$X$4,\"Enter smelter details\", IF(ISERROR($V123),\"\",OFFSET('Smelter Look-up'!$F$4,$V123-4,0)))","v":""},{"$f":"IF(ISERROR($V123),\"\",OFFSET('Smelter Look-up'!$G$4,$V123-4,0))","v":""},{"$f":"IF(ISERROR($V123),\"\",OFFSET('Smelter Look-up'!$H$4,$V123-4,0))","v":""},{"$f":"IF(ISERROR($V123),\"\",OFFSET('Smelter Look-up'!$I$4,$V123-4,0))","v":""},{"$nulls":7},{"$f":"IF(ISERROR($V123),\"\",OFFSET('Smelter Look-up'!$C$4,$V123-4,0)&\"\")","v":""},{"$f":"IF(B123=\"\",\"\",IF(ISERROR(MATCH($E123,CL,0)),\"Unknown\",INDIRECT(\"'C'!$A$\"&MATCH($E123,CL,0)+1)))","v":""},{"$f":"IF(B123=\"\",\"\",IF(ISERROR(MATCH($J123,SorP!$B$1:$B$6230,0)),\"\",INDIRECT(\"'SorP'!$A$\"&MATCH($J123,SorP!$B$1:$B$6230,0))))","v":""},null,{"$f":"IF(C123=\"\",NA(),MATCH($B123&$C123,'Smelter Look-up'!$J:$J,0))","v":{"$error":"#N/A"}},null,{"$f":"IF(AND(C123=\"Smelter not listed\",OR(LEN(D123)=0,LEN(E123)=0)),1,0)","v":0},null,null,null,{"$f":"B123&C123","v":""}]
[null,{"$f":"IF(LEN(A124)=0,\"\",INDEX('Smelter Look-up'!$A:$A,MATCH($A124,'Smelter Look-up'!$E:$E,0)))","v":""},{"$f":"IF(LEN(A124)=0,\"\",INDEX('Smelter Look-up'!$C:$C,MATCH($A124,'Smelter Look-up'!$E:$E,0)))","v":""},null,{"$f":"IF(ISERROR($V124),\"\",OFFSET('Smelter Look-up'!$D$4,$V124-4,0)&\"\")","v":""},{"$f":"IF(ISERROR($V124),\"\",OFFSET('Smelter Look-up'!$E$4,$V124-4,0))","v":""},{"$f":"IF(C124=$X$4,\"Enter smelter details\", IF(ISERROR($V124),\"\",OFFSET('Smelter Look-up'!$F$4,$V124-4,0)))","v":""},{"$f":"IF(ISERROR($V124),\"\",OFFSET('Smelter Look-up'!$G$4,$V124-4,0))","v":""},{"$f":"IF(ISERROR($V124),\"\",OFFSET('Smelter Look-up'!$H$4,$V124-4,0))","v":""},{"$f":"IF(ISERROR($V124),\"\",OFFSET('Smelter Look-up'!$I$4,$V124-4,0))","v":""},{"$nulls":7},{"$f":"IF(ISERROR($V124),\"\",OFFSET('Smelter Look-up'!$C$4,$V124-4,0)&\"\")","v":""},"",{"$f":"IF(B124=\"\",\"\",IF(ISERROR(MATCH($J124,SorP!$B$1:$B$6230,0)),\"\",INDIRECT(\"'SorP'!$A$\"&MATCH($J124,SorP!$B$1:$B$6230,0))))","v":""},null,{"$f":"IF(C124=\"\",NA(),MATCH($B124&$C124,'Smelter Look-up'!$J:$J,0))","v":{"$error":"#N/A"}},null,0,null,null,null,""]
[null,{"$f":"IF(LEN(A125)=0,\"\",INDEX('Smelter Look-up'!$A:$A,MATCH($A125,'Smelter Look-up'!$E:$E,0)))","v":""},{"$f":"IF(LEN(A125)=0,\"\",INDEX('Smelter Look-up'!$C:$C,MATCH($A125,'Smelter Look-up'!$E:$E,0)))","v":""},null,{"$f":"IF(ISERROR($V125),\"\",OFFSET('Smelter Look-up'!$D$4,$V125-4,0)&\"\")","v":""},{"$f":"IF(ISERROR($V125),\"\",OFFSET('Smelter Look-up'!$E$4,$V125-4,0))","v":""},{"$f":"IF(C125=$X$4,\"Enter smelter details\", IF(ISERROR($V125),\"\",OFFSET('Smelter Look-up'!$F$4,$V125-4,0)))","v":""},{"$f":"IF(ISERROR($V125),\"\",OFFSET('Smelter Look-up'!$G$4,$V125-4,0))","v":""},{"$f":"IF(ISERROR($V125),\"\",OFFSET('Smelter Look-up'!$H$4,$V125-4,0))","v":""},{"$f":"IF(ISERROR($V125),\"\",OFFSET('Smelter Look-up'!$I$4,$V125-4,0))","v":""},{"$nulls":7},{"$f":"IF(ISERROR($V125),\"\",OFFSET('Smelter Look-up'!$C$4,$V125-4,0)&\"\")","v":""},"",{"$f":"IF(B125=\"\",\"\",IF(ISERROR(MATCH($J125,SorP!$B$1:$B$6230,0)),\"\",INDIRECT(\"'SorP'!$A$\"&MATCH($J125,SorP!$B$1:$B$6230,0))))","v":""},null,{"$f":"IF(C125=\"\",NA(),MATCH($B125&$C125,'Smelter Look-up'!$J:$J,0))","v":{"$error":"#N/A"}},null,0,null,null,null,""]
[null,{"$f":"IF(LEN(A126)=0,\"\",INDEX('Smelter Look-up'!$A:$A,MATCH($A126,'Smelter Look-up'!$E:$E,0)))","v":""},{"$f":"IF(LEN(A126)=0,\"\",INDEX('Smelter Look-up'!$C:$C,MATCH($A126,'Smelter Look-up'!$E:$E,0)))","v":""},null,{"$f":"IF(ISERROR($V126),\"\",OFFSET('Smelter Look-up'!$D$4,$V126-4,0)&\"\")","v":""},{"$f":"IF(ISERROR($V126),\"\",OFFSET('Smelter Look-up'!$E$4,$V126-4,0))","v":""},{"$f":"IF(C126=$X$4,\"Enter smelter details\", IF(ISERROR($V126),\"\",OFFSET('Smelter Look-up'!$F$4,$V126-4,0)))","v":""},{"$f":"IF(ISERROR($V126),\"\",OFFSET('Smelter Look-up'!$G$4,$V126-4,0))","v":""},{"$f":"IF(ISERROR($V126),\"\",OFFSET('Smelter Look-up'!$H$4,$V126-4,0))","v":""},{"$f":"IF(ISERROR($V126),\"\",OFFSET('Smelter Look-up'!$I$4,$V126-4,0))","v":""},{"$nulls":7},{"$f":"IF(ISERROR($V126),\"\",OFFSET('Smelter Look-up'!$C$4,$V126-4,0)&\"\")","v":""},"",{"$f":"IF(B126=\"\",\"\",IF(ISERROR(MATCH($J126,SorP!$B$1:$B$6230,0)),\"\",INDIRECT(\"'SorP'!$A$\"&MATCH($J126,SorP!$B$1:$B$6230,0))))","v":""},null,{"$f":"IF(C126=\"\",NA(),MATCH($B126&$C126,'Smelter Look-up'!$J:$J,0))","v":{"$error":"#N/A"}},null,0,null,null,null,""]
[null,{"$f":"IF(LEN(A127)=0,\"\",INDEX('Smelter Look-up'!$A:$A,MATCH($A127,'Smelter Look-up'!$E:$E,0)))","v":""},{"$f":"IF(LEN(A127)=0,\"\",INDEX('Smelter Look-up'!$C:$C,MATCH($A127,'Smelter Look-up'!$E:$E,0)))","v":""},null,{"$f":"IF(ISERROR($V127),\"\",OFFSET('Smelter Look-up'!$D$4,$V127-4,0)&\"\")","v":""},{"$f":"IF(ISERROR($V127),\"\",OFFSET('Smelter Look-up'!$E$4,$V127-4,0))","v":""},{"$f":"IF(C127=$X$4,\"Enter smelter details\", IF(ISERROR($V127),\"\",OFFSET('Smelter Look-up'!$F$4,$V127-4,0)))","v":""},{"$f":"IF(ISERROR($V127),\"\",OFFSET('Smelter Look-up'!$G$4,$V127-4,0))","v":""},{"$f":"IF(ISERROR($V127),\"\",OFFSET('Smelter Look-up'!$H$4,$V127-4,0))","v":""},{"$f":"IF(ISERROR($V127),\"\",OFFSET('Smelter Look-up'!$I$4,$V127-4,0))","v":""},{"$nulls":7},{"$f":"IF(ISERROR($V127),\"\",OFFSET('Smelter Look-up'!$C$4,$V127-4,0)&\"\")","v":""},"",{"$f":"IF(B127=\"\",\"\",IF(ISERROR(MATCH($J127,SorP!$B$1:$B$6230,0)),\"\",INDIRECT(\"'SorP'!$A$\"&MATCH($J127,SorP!$B$1:$B$6230,0))))","v":""},null,{"$f":"IF(C127=\"\",NA(),MATCH($B127&$C127,'Smelter Look-up'!$J:$J,0))","v":{"$error":"#N/A"}},null,0,null,null,null,""]
[null,{"$f":"IF(LEN(A128)=0,\"\",INDEX('Smelter Look-up'!$A:$A,MATCH($A128,'Smelter Look-up'!$E:$E,0)))","v":""},{"$f":"IF(LEN(A128)=0,\"\",INDEX('Smelter Look-up'!$C:$C,MATCH($A128,'Smelter Look-up'!$E:$E,0)))","v":""},null,{"$f":"IF(ISERROR($V128),\"\",OFFSET('Smelter Look-up'!$D$4,$V128-4,0)&\"\")","v":""},{"$f":"IF(ISERROR($V128),\"\",OFFSET('Smelter Look-up'!$E$4,$V128-4,0))","v":""},{"$f":"IF(C128=$X$4,\"Enter smelter details\", IF(ISERROR($V128),\"\",OFFSET('Smelter Look-up'!$F$4,$V128-4,0)))","v":""},{"$f":"IF(ISERROR($V128),\"\",OFFSET('Smelter Look-up'!$G$4,$V128-4,0))","v":""},{"$f":"IF(ISERROR($V128),\"\",OFFSET('Smelter Look-up'!$H$4,$V128-4,0))","v":""},{"$f":"IF(ISERROR($V128),\"\",OFFSET('Smelter Look-up'!$I$4,$V128-4,0))","v":""},{"$nulls":7},{"$f":"IF(ISERROR($V128),\"\",OFFSET('Smelter Look-up'!$C$4,$V128-4,0)&\"\")","v":""},"",{"$f":"IF(B128=\"\",\"\",IF(ISERROR(MATCH($J128,SorP!$B$1:$B$6230,0)),\"\",INDIRECT(\"'SorP'!$A$\"&MATCH($J128,SorP!$B$1:$B$6230,0))))","v":""},null,{"$f":"IF(C128=\"\",NA(),MATCH($B128&$C128,'Smelter Look-up'!$J:$J,0))","v":{"$error":"#N/A"}},null,0,null,null,null,""]
[null,{"$f":"IF(LEN(A129)=0,\"\",INDEX('Smelter Look-up'!$A:$A,MATCH($A129,'Smelter Look-up'!$E:$E,0)))","v":""},{"$f":"IF(LEN(A129)=0,\"\",INDEX('Smelter Look-up'!$C:$C,MATCH($A129,'Smelter Look-up'!$E:$E,0)))","v":""},null,{"$f":"IF(ISERROR($V129),\"\",OFFSET('Smelter Look-up'!$D$4,$V129-4,0)&\"\")","v":""},{"$f":"IF(ISERROR($V129),\"\",OFFSET('Smelter Look-up'!$E$4,$V129-4,0))","v":""},{"$f":"IF(C129=$X$4,\"Enter smelter details\", IF(ISERROR($V129),\"\",OFFSET('Smelter Look-up'!$F$4,$V129-4,0)))","v":""},{"$f":"IF(ISERROR($V129),\"\",OFFSET('Smelter Look-up'!$G$4,$V129-4,0))","v":""},{"$f":"IF(ISERROR($V129),\"\",OFFSET('Smelter Look-up'!$H$4,$V129-4,0))","v":""},{"$f":"IF(ISERROR($V129),\"\",OFFSET('Smelter Look-up'!$I$4,$V129-4,0))","v":""},{"$nulls":7},{"$f":"IF(ISERROR($V129),\"\",OFFSET('Smelter Look-up'!$C$4,$V129-4,0)&\"\")","v":""},"",{"$f":"IF(B129=\"\",\"\",IF(ISERROR(MATCH($J129,SorP!$B$1:$B$6230,0)),\"\",INDIRECT(\"'SorP'!$A$\"&MATCH($J129,SorP!$B$1:$B$6230,0))))","v":""},null,{"$f":"IF(C129=\"\",NA(),MATCH($B129&$C129,'Smelter Look-up'!$J:$J,0))","v":{"$error":"#N/A"}},null,0,null,null,null,""]
[null,{"$f":"IF(LEN(A130)=0,\"\",INDEX('Smelter Look-up'!$A:$A,MATCH($A130,'Smelter Look-up'!$E:$E,0)))","v":""},{"$f":"IF(LEN(A130)=0,\"\",INDEX('Smelter Look-up'!$C:$C,MATCH($A130,'Smelter Look-up'!$E:$E,0)))","v":""},null,{"$f":"IF(ISERROR($V130),\"\",OFFSET('Smelter Look-up'!$D$4,$V130-4,0)&\"\")","v":""},{"$f":"IF(ISERROR($V130),\"\",OFFSET('Smelter Look-up'!$E$4,$V130-4,0))","v":""},{"$f":"IF(C130=$X$4,\"Enter smelter details\", IF(ISERROR($V130),\"\",OFFSET('Smelter Look-up'!$F$4,$V130-4,0)))","v":""},{"$f":"IF(ISERROR($V130),\"\",OFFSET('Smelter Look-up'!$G$4,$V130-4,0))","v":""},{"$f":"IF(ISERROR($V130),\"\",OFFSET('Smelter Look-up'!$H$4,$V130-4,0))","v":""},{"$f":"IF(ISERROR($V130),\"\",OFFSET('Smelter Look-up'!$I$4,$V130-4,0))","v":""},{"$nulls":7},{"$f":"IF(ISERROR($V130),\"\",OFFSET('Smelter Look-up'!$C$4,$V130-4,0)&\"\")","v":""},"",{"$f":"IF(B130=\"\",\"\",IF(ISERROR(MATCH($J130,SorP!$B$1:$B$6230,0)),\"\",INDIRECT(\"'SorP'!$A$\"&MATCH($J130,SorP!$B$1:$B$6230,0))))","v":""},null,{"$f":"IF(C130=\"\",NA(),MATCH($B130&$C130,'Smelter Look-up'!$J:$J,0))","v":{"$error":"#N/A"}},null,0,null,null,null,""]
[null,{"$f":"IF(LEN(A131)=0,\"\",INDEX('Smelter Look-up'!$A:$A,MATCH($A131,'Smelter Look-up'!$E:$E,0)))","v":""},{"$f":"IF(LEN(A131)=0,\"\",INDEX('Smelter Look-up'!$C:$C,MATCH($A131,'Smelter Look-up'!$E:$E,0)))","v":""},null,{"$f":"IF(ISERROR($V131),\"\",OFFSET('Smelter Look-up'!$D$4,$V131-4,0)&\"\")","v":""},{"$f":"IF(ISERROR($V131),\"\",OFFSET('Smelter Look-up'!$E$4,$V131-4,0))","v":""},{"$f":"IF(C131=$X$4,\"Enter smelter details\", IF(ISERROR($V131),\"\",OFFSET('Smelter Look-up'!$F$4,$V131-4,0)))","v":""},{"$f":"IF(ISERROR($V131),\"\",OFFSET('Smelter Look-up'!$G$4,$V131-4,0))","v":""},{"$f":"IF(ISERROR($V131),\"\",OFFSET('Smelter Look-up'!$H$4,$V131-4,0))","v":""},{"$f":"IF(ISERROR($V131),\"\",OFFSET('Smelter Look-up'!$I$4,$V131-4,0))","v":""},{"$nulls":7},{"$f":"IF(ISERROR($V131),\"\",OFFSET('Smelter Look-up'!$C$4,$V131-4,0)&\"\")","v":""},"",{"$f":"IF(B131=\"\",\"\",IF(ISERROR(MATCH($J131,SorP!$B$1:$B$6230,0)),\"\",INDIRECT(\"'SorP'!$A$\"&MATCH($J131,SorP!$B$1:$B$6230,0))))","v":""},null,{"$f":"IF(C131=\"\",NA(),MATCH($B131&$C131,'Smelter Look-up'!$J:$J,0))","v":{"$error":"#N/A"}},null,0,null,null,null,""]
[null,{"$f":"IF(LEN(A132)=0,\"\",INDEX('Smelter Look-up'!$A:$A,MATCH($A132,'Smelter Look-up'!$E:$E,0)))","v":""},{"$f":"IF(LEN(A132)=0,\"\",INDEX('Smelter Look-up'!$C:$C,MATCH($A132,'Smelter Look-up'!$E:$E,0)))","v":""},null,{"$f":"IF(ISERROR($V132),\"\",OFFSET('Smelter Look-up'!$D$4,$V132-4,0)&\"\")","v":""},{"$f":"IF(ISERROR($V132),\"\",OFFSET('Smelter Look-up'!$E$4,$V132-4,0))","v":""},{"$f":"IF(C132=$X$4,\"Enter smelter details\", IF(ISERROR($V132),\"\",OFFSET('Smelter Look-up'!$F$4,$V132-4,0)))","v":""},{"$f":"IF(ISERROR($V132),\"\",OFFSET('Smelter Look-up'!$G$4,$V132-4,0))","v":""},{"$f":"IF(ISERROR($V132),\"\",OFFSET('Smelter Look-up'!$H$4,$V132-4,0))","v":""},{"$f":"IF(ISERROR($V132),\"\",OFFSET('Smelter Look-up'!$I$4,$V132-4,0))","v":""},{"$nulls":7},{"$f":"IF(ISERROR($V132),\"\",OFFSET('Smelter Look-up'!$C$4,$V132-4,0)&\"\")","v":""},"",{"$f":"IF(B132=\"\",\"\",IF(ISERROR(MATCH($J132,SorP!$B$1:$B$6230,0)),\"\",INDIRECT(\"'SorP'!$A$\"&MATCH($J132,SorP!$B$1:$B$6230,0))))","v":""},null,{"$f":"IF(C132=\"\",NA(),MATCH($B132&$C132,'Smelter Look-up'!$J:$J,0))","v":{"$error":"#N/A"}},null,0,null,null,null,""]
[null,{"$f":"IF(LEN(A133)=0,\"\",INDEX('Smelter Look-up'!$A:$A,MATCH($A133,'Smelter Look-up'!$E:$E,0)))","v":""},{"$f":"IF(LEN(A133)=0,\"\",INDEX('Smelter Look-up'!$C:$C,MATCH($A133,'Smelter Look-up'!$E:$E,0)))","v":""},null,{"$f":"IF(ISERROR($V133),\"\",OFFSET('Smelter Look-up'!$D$4,$V133-4,0)&\"\")","v":""},{"$f":"IF(ISERROR($V133),\"\",OFFSET('Smelter Look-up'!$E$4,$V133-4,0))","v":""},{"$f":"IF(C133=$X$4,\"Enter smelter details\", IF(ISERROR($V133),\"\",OFFSET('Smelter Look-up'!$F$4,$V133-4,0)))","v":""},{"$f":"IF(ISERROR($V133),\"\",OFFSET('Smelter Look-up'!$G$4,$V133-4,0))","v":""},{"$f":"IF(ISERROR($V133),\"\",OFFSET('Smelter Look-up'!$H$4,$V133-4,0))","v":""},{"$f":"IF(ISERROR($V133),\"\",OFFSET('Smelter Look-up'!$I$4,$V133-4,0))","v":""},{"$nulls":7},{"$f":"IF(ISERROR($V133),\"\",OFFSET('Smelter Look-up'!$C$4,$V133-4,0)&\"\")","v":""},"",{"$f":"IF(B133=\"\",\"\",IF(ISERROR(MATCH($J133,SorP!$B$1:$B$6230,0)),\"\",INDIRECT(\"'SorP'!$A$\"&MATCH($J133,SorP!$B$1:$B$6230,0))))","v":""},null,{"$f":"IF(C133=\"\",NA(),MATCH($B133&$C133,'Smelter Look-up'!$J:$J,0))","v":{"$error":"#N/A"}},null,0,null,null,null,""]
[null,{"$f":"IF(LEN(A134)=0,\"\",INDEX('Smelter Look-up'!$A:$A,MATCH($A134,'Smelter Look-up'!$E:$E,0)))","v":""},{"$f":"IF(LEN(A134)=0,\"\",INDEX('Smelter Look-up'!$C:$C,MATCH($A134,'Smelter Look-up'!$E:$E,0)))","v":""},null,{"$f":"IF(ISERROR($V134),\"\",OFFSET('Smelter Look-up'!$D$4,$V134-4,0)&\"\")","v":""},{"$f":"IF(ISERROR($V134),\"\",OFFSET('Smelter Look-up'!$E$4,$V134-4,0))","v":""},{"$f":"IF(C134=$X$4,\"Enter smelter details\", IF(ISERROR($V134),\"\",OFFSET('Smelter Look-up'!$F$4,$V134-4,0)))","v":""},{"$f":"IF(ISERROR($V134),\"\",OFFSET('Smelter Look-up'!$G$4,$V134-4,0))","v":""},{"$f":"IF(ISERROR($V134),\"\",OFFSET('Smelter Look-up'!$H$4,$V134-4,0))","v":""},{"$f":"IF(ISERROR($V134),\"\",OFFSET('Smelter Look-up'!$I$4,$V134-4,0))","v":""},{"$nulls":7},{"$f":"IF(ISERROR($V134),\"\",OFFSET('Smelter Look-up'!$C$4,$V134-4,0)&\"\")","v":""},"",{"$f":"IF(B134=\"\",\"\",IF(ISERROR(MATCH($J134,SorP!$B$1:$B$6230,0)),\"\",INDIRECT(\"'SorP'!$A$\"&MATCH($J134,SorP!$B$1:$B$6230,0))))","v":""},null,{"$f":"IF(C134=\"\",NA(),MATCH($B134&$C134,'Smelter Look-up'!$J:$J,0))","v":{"$error":"#N/A"}},null,0,null,null,null,""]
[null,{"$f":"IF(LEN(A135)=0,\"\",INDEX('Smelter Look-up'!$A:$A,MATCH($A135,'Smelter Look-up'!$E:$E,0)))","v":""},{"$f":"IF(LEN(A135)=0,\"\",INDEX('Smelter Look-up'!$C:$C,MATCH($A135,'Smelter Look-up'!$E:$E,0)))","v":""},null,{"$f":"IF(ISERROR($V135),\"\",OFFSET('Smelter Look-up'!$D$4,$V135-4,0)&\"\")","v":""},{"$f":"IF(ISERROR($V135),\"\",OFFSET('Smelter Look-up'!$E$4,$V135-4,0))","v":""},{"$f":"IF(C135=$X$4,\"Enter smelter details\", IF(ISERROR($V135),\"\",OFFSET('Smelter Look-up'!$F$4,$V135-4,0)))","v":""},{"$f":"IF(ISERROR($V135),\"\",OFFSET('Smelter Look-up'!$G$4,$V135-4,0))","v":""},{"$f":"IF(ISERROR($V135),\"\",OFFSET('Smelter Look-up'!$H$4,$V135-4,0))","v":""},{"$f":"IF(ISERROR($V135),\"\",OFFSET('Smelter Look-up'!$I$4,$V135-4,0))","v":""},{"$nulls":7},{"$f":"IF(ISERROR($V135),\"\",OFFSET('Smelter Look-up'!$C$4,$V135-4,0)&\"\")","v":""},"",{"$f":"IF(B135=\"\",\"\",IF(ISERROR(MATCH($J135,SorP!$B$1:$B$6230,0)),\"\",INDIRECT(\"'SorP'!$A$\"&MATCH($J135,SorP!$B$1:$B$6230,0))))","v":""},null,{"$f":"IF(C135=\"\",NA(),MATCH($B135&$C135,'Smelter Look-up'!$J:$J,0))","v":{"$error":"#N/A"}},null,0,null,null,null,""]
[null,{"$f":"IF(LEN(A136)=0,\"\",INDEX('Smelter Look-up'!$A:$A,MATCH($A136,'Smelter Look-up'!$E:$E,0)))","v":""},{"$f":"IF(LEN(A136)=0,\"\",INDEX('Smelter Look-up'!$C:$C,MATCH($A136,'Smelter Look-up'!$E:$E,0)))","v":""},null,{"$f":"IF(ISERROR($V136),\"\",OFFSET('Smelter Look-up'!$D$4,$V136-4,0)&\"\")","v":""},{"$f":"IF(ISERROR($V136),\"\",OFFSET('Smelter Look-up'!$E$4,$V136-4,0))","v":""},{"$f":"IF(C136=$X$4,\"Enter smelter details\", IF(ISERROR($V136),\"\",OFFSET('Smelter Look-up'!$F$4,$V136-4,0)))","v":""},{"$f":"IF(ISERROR($V136),\"\",OFFSET('Smelter Look-up'!$G$4,$V136-4,0))","v":""},{"$f":"IF(ISERROR($V136),\"\",OFFSET('Smelter Look-up'!$H$4,$V136-4,0))","v":""},{"$f":"IF(ISERROR($V136),\"\",OFFSET('Smelter Look-up'!$I$4,$V136-4,0))","v":""},{"$nulls":7},{"$f":"IF(ISERROR($V136),\"\",OFFSET('Smelter Look-up'!$C$4,$V136-4,0)&\"\")","v":""},"",{"$f":"IF(B136=\"\",\"\",IF(ISERROR(MATCH($J136,SorP!$B$1:$B$6230,0)),\"\",INDIRECT(\"'SorP'!$A$\"&MATCH($J136,SorP!$B$1:$B$6230,0))))","v":""},null,{"$f":"IF(C136=\"\",NA(),MATCH($B136&$C136,'Smelter Look-up'!$J:$J,0))","v":{"$error":"#N/A"}},null,0,null,null,null,""]
[null,{"$f":"IF(LEN(A137)=0,\"\",INDEX('Smelter Look-up'!$A:$A,MATCH($A137,'Smelter Look-up'!$E:$E,0)))","v":""},{"$f":"IF(LEN(A137)=0,\"\",INDEX('Smelter Look-up'!$C:$C,MATCH($A137,'Smelter Look-up'!$E:$E,0)))","v":""},null,{"$f":"IF(ISERROR($V137),\"\",OFFSET('Smelter Look-up'!$D$4,$V137-4,0)&\"\")","v":""},{"$f":"IF(ISERROR($V137),\"\",OFFSET('Smelter Look-up'!$E$4,$V137-4,0))","v":""},{"$f":"IF(C137=$X$4,\"Enter smelter details\", IF(ISERROR($V137),\"\",OFFSET('Smelter Look-up'!$F$4,$V137-4,0)))","v":""},{"$f":"IF(ISERROR($V137),\"\",OFFSET('Smelter Look-up'!$G$4,$V137-4,0))","v":""},{"$f":"IF(ISERROR($V137),\"\",OFFSET('Smelter Look-up'!$H$4,$V137-4,0))","v":""},{"$f":"IF(ISERROR($V137),\"\",OFFSET('Smelter Look-up'!$I$4,$V137-4,0))","v":""},{"$nulls":7},{"$f":"IF(ISERROR($V137),\"\",OFFSET('Smelter Look-up'!$C$4,$V137-4,0)&\"\")","v":""},"",{"$f":"IF(B137=\"\",\"\",IF(ISERROR(MATCH($J137,SorP!$B$1:$B$6230,0)),\"\",INDIRECT(\"'SorP'!$A$\"&MATCH($J137,SorP!$B$1:$B$6230,0))))","v":""},null,{"$f":"IF(C137=\"\",NA(),MATCH($B137&$C137,'Smelter Look-up'!$J:$J,0))","v":{"$error":"#N/A"}},null,0,null,null,null,""]
[null,{"$f":"IF(LEN(A138)=0,\"\",INDEX('Smelter Look-up'!$A:$A,MATCH($A138,'Smelter Look-up'!$E:$E,0)))","v":""},{"$f":"IF(LEN(A138)=0,\"\",INDEX('Smelter Look-up'!$C:$C,MATCH($A138,'Smelter Look-up'!$E:$E,0)))","v":""},null,{"$f":"IF(ISERROR($V138),\"\",OFFSET('Smelter Look-up'!$D$4,$V138-4,0)&\"\")","v":""},{"$f":"IF(ISERROR($V138),\"\",OFFSET('Smelter Look-up'!$E$4,$V138-4,0))","v":""},{"$f":"IF(C138=$X$4,\"Enter smelter details\", IF(ISERROR($V138),\"\",OFFSET('Smelter Look-up'!$F$4,$V138-4,0)))","v":""},{"$f":"IF(ISERROR($V138),\"\",OFFSET('Smelter Look-up'!$G$4,$V138-4,0))","v":""},{"$f":"IF(ISERROR($V138),\"\",OFFSET('Smelter Look-up'!$H$4,$V138-4,0))","v":""},{"$f":"IF(ISERROR($V138),\"\",OFFSET('Smelter Look-up'!$I$4,$V138-4,0))","v":""},{"$nulls":7},{"$f":"IF(ISERROR($V138),\"\",OFFSET('Smelter Look-up'!$C$4,$V138-4,0)&\"\")","v":""},"",{"$f":"IF(B138=\"\",\"\",IF(ISERROR(MATCH($J138,SorP!$B$1:$B$6230,0)),\"\",INDIRECT(\"'SorP'!$A$\"&MATCH($J138,SorP!$B$1:$B$6230,0))))","v":""},null,{"$f":"IF(C138=\"\",NA(),MATCH($B138&$C138,'Smelter Look-up'!$J:$J,0))","v":{"$error":"#N/A"}},null,0,null,null,null,""]
[null,{"$f":"IF(LEN(A139)=0,\"\",INDEX('Smelter Look-up'!$A:$A,MATCH($A139,'Smelter Look-up'!$E:$E,0)))","v":""},{"$f":"IF(LEN(A139)=0,\"\",INDEX('Smelter Look-up'!$C:$C,MATCH($A139,'Smelter Look-up'!$E:$E,0)))","v":""},null,{"$f":"IF(ISERROR($V139),\"\",OFFSET('Smelter Look-up'!$D$4,$V139-4,0)&\"\")","v":""},{"$f":"IF(ISERROR($V139),\"\",OFFSET('Smelter Look-up'!$E$4,$V139-4,0))","v":""},{"$f":"IF(C139=$X$4,\"Enter smelter details\", IF(ISERROR($V139),\"\",OFFSET('Smelter Look-up'!$F$4,$V139-4,0)))","v":""},{"$f":"IF(ISERROR($V139),\"\",OFFSET('Smelter Look-up'!$G$4,$V139-4,0))","v":""},{"$f":"IF(ISERROR($V139),\"\",OFFSET('Smelter Look-up'!$H$4,$V139-4,0))","v":""},{"$f":"IF(ISERROR($V139),\"\",OFFSET('Smelter Look-up'!$I$4,$V139-4,0))","v":""},{"$nulls":7},{"$f":"IF(ISERROR($V139),\"\",OFFSET('Smelter Look-up'!$C$4,$V139-4,0)&\"\")","v":""},"",{"$f":"IF(B139=\"\",\"\",IF(ISERROR(MATCH($J139,SorP!$B$1:$B$6230,0)),\"\",INDIRECT(\"'SorP'!$A$\"&MATCH($J139,SorP!$B$1:$B$6230,0))))","v":""},null,{"$f":"IF(C139=\"\",NA(),MATCH($B139&$C139,'Smelter Look-up'!$J:$J,0))","v":{"$error":"#N/A"}},null,0,null,null,null,""]
[null,{"$f":"IF(LEN(A140)=0,\"\",INDEX('Smelter Look-up'!$A:$A,MATCH($A140,'Smelter Look-up'!$E:$E,0)))","v":""},{"$f":"IF(LEN(A140)=0,\"\",INDEX('Smelter Look-up'!$C:$C,MATCH($A140,'Smelter Look-up'!$E:$E,0)))","v":""},null,{"$f":"IF(ISERROR($V140),\"\",OFFSET('Smelter Look-up'!$D$4,$V140-4,0)&\"\")","v":""},{"$f":"IF(ISERROR($V140),\"\",OFFSET('Smelter Look-up'!$E$4,$V140-4,0))","v":""},{"$f":"IF(C140=$X$4,\"Enter smelter details\", IF(ISERROR($V140),\"\",OFFSET('Smelter Look-up'!$F$4,$V140-4,0)))","v":""},{"$f":"IF(ISERROR($V140),\"\",OFFSET('Smelter Look-up'!$G$4,$V140-4,0))","v":""},{"$f":"IF(ISERROR($V140),\"\",OFFSET('Smelter Look-up'!$H$4,$V140-4,0))","v":""},{"$f":"IF(ISERROR($V140),\"\",OFFSET('Smelter Look-up'!$I$4,$V140-4,0))","v":""},{"$nulls":7},{"$f":"IF(ISERROR($V140),\"\",OFFSET('Smelter Look-up'!$C$4,$V140-4,0)&\"\")","v":""},"",{"$f":"IF(B140=\"\",\"\",IF(ISERROR(MATCH($J140,SorP!$B$1:$B$6230,0)),\"\",INDIRECT(\"'SorP'!$A$\"&MATCH($J140,SorP!$B$1:$B$6230,0))))","v":""},null,{"$f":"IF(C140=\"\",NA(),MATCH($B140&$C140,'Smelter Look-up'!$J:$J,0))","v":{"$error":"#N/A"}},null,0,null,null,null,""]
[null,{"$f":"IF(LEN(A141)=0,\"\",INDEX('Smelter Look-up'!$A:$A,MATCH($A141,'Smelter Look-up'!$E:$E,0)))","v":""},{"$f":"IF(LEN(A141)=0,\"\",INDEX('Smelter Look-up'!$C:$C,MATCH($A141,'Smelter Look-up'!$E:$E,0)))","v":""},null,{"$f":"IF(ISERROR($V141),\"\",OFFSET('Smelter Look-up'!$D$4,$V141-4,0)&\"\")","v":""},{"$f":"IF(ISERROR($V141),\"\",OFFSET('Smelter Look-up'!$E$4,$V141-4,0))","v":""},{"$f":"IF(C141=$X$4,\"Enter smelter details\", IF(ISERROR($V141),\"\",OFFSET('Smelter Look-up'!$F$4,$V141-4,0)))","v":""},{"$f":"IF(ISERROR($V141),\"\",OFFSET('Smelter Look-up'!$G$4,$V141-4,0))","v":""},{"$f":"IF(ISERROR($V141),\"\",OFFSET('Smelter Look-up'!$H$4,$V141-4,0))","v":""},{"$f":"IF(ISERROR($V141),\"\",OFFSET('Smelter Look-up'!$I$4,$V141-4,0))","v":""},{"$nulls":7},{"$f":"IF(ISERROR($V141),\"\",OFFSET('Smelter Look-up'!$C$4,$V141-4,0)&\"\")","v":""},"",{"$f":"IF(B141=\"\",\"\",IF(ISERROR(MATCH($J141,SorP!$B$1:$B$6230,0)),\"\",INDIRECT(\"'SorP'!$A$\"&MATCH($J141,SorP!$B$1:$B$6230,0))))","v":""},null,{"$f":"IF(C141=\"\",NA(),MATCH($B141&$C141,'Smelter Look-up'!$J:$J,0))","v":{"$error":"#N/A"}},null,0,null,null,null,""]
[null,{"$f":"IF(LEN(A142)=0,\"\",INDEX('Smelter Look-up'!$A:$A,MATCH($A142,'Smelter Look-up'!$E:$E,0)))","v":""},{"$f":"IF(LEN(A142)=0,\"\",INDEX('Smelter Look-up'!$C:$C,MATCH($A142,'Smelter Look-up'!$E:$E,0)))","v":""},null,{"$f":"IF(ISERROR($V142),\"\",OFFSET('Smelter Look-up'!$D$4,$V142-4,0)&\"\")","v":""},{"$f":"IF(ISERROR($V142),\"\",OFFSET('Smelter Look-up'!$E$4,$V142-4,0))","v":""},{"$f":"IF(C142=$X$4,\"Enter smelter details\", IF(ISERROR($V142),\"\",OFFSET('Smelter Look-up'!$F$4,$V142-4,0)))","v":""},{"$f":"IF(ISERROR($V142),\"\",OFFSET('Smelter Look-up'!$G$4,$V142-4,0))","v":""},{"$f":"IF(ISERROR($V142),\"\",OFFSET('Smelter Look-up'!$H$4,$V142-4,0))","v":""},{"$f":"IF(ISERROR($V142),\"\",OFFSET('Smelter Look-up'!$I$4,$V142-4,0))","v":""},{"$nulls":7},{"$f":"IF(ISERROR($V142),\"\",OFFSET('Smelter Look-up'!$C$4,$V142-4,0)&\"\")","v":""},"",{"$f":"IF(B142=\"\",\"\",IF(ISERROR(MATCH($J142,SorP!$B$1:$B$6230,0)),\"\",INDIRECT(\"'SorP'!$A$\"&MATCH($J142,SorP!$B$1:$B$6230,0))))","v":""},null,{"$f":"IF(C142=\"\",NA(),MATCH($B142&$C142,'Smelter Look-up'!$J:$J,0))","v":{"$error":"#N/A"}},null,0,null,null,null,""]
[null,{"$f":"IF(LEN(A143)=0,\"\",INDEX('Smelter Look-up'!$A:$A,MATCH($A143,'Smelter Look-up'!$E:$E,0)))","v":""},{"$f":"IF(LEN(A143)=0,\"\",INDEX('Smelter Look-up'!$C:$C,MATCH($A143,'Smelter Look-up'!$E:$E,0)))","v":""},null,{"$f":"IF(ISERROR($V143),\"\",OFFSET('Smelter Look-up'!$D$4,$V143-4,0)&\"\")","v":""},{"$f":"IF(ISERROR($V143),\"\",OFFSET('Smelter Look-up'!$E$4,$V143-4,0))","v":""},{"$f":"IF(C143=$X$4,\"Enter smelter details\", IF(ISERROR($V143),\"\",OFFSET('Smelter Look-up'!$F$4,$V143-4,0)))","v":""},{"$f":"IF(ISERROR($V143),\"\",OFFSET('Smelter Look-up'!$G$4,$V143-4,0))","v":""},{"$f":"IF(ISERROR($V143),\"\",OFFSET('Smelter Look-up'!$H$4,$V143-4,0))","v":""},{"$f":"IF(ISERROR($V143),\"\",OFFSET('Smelter Look-up'!$I$4,$V143-4,0))","v":""},{"$nulls":7},{"$f":"IF(ISERROR($V143),\"\",OFFSET('Smelter Look-up'!$C$4,$V143-4,0)&\"\")","v":""},"",{"$f":"IF(B143=\"\",\"\",IF(ISERROR(MATCH($J143,SorP!$B$1:$B$6230,0)),\"\",INDIRECT(\"'SorP'!$A$\"&MATCH($J143,SorP!$B$1:$B$6230,0))))","v":""},null,{"$f":"IF(C143=\"\",NA(),MATCH($B143&$C143,'Smelter Look-up'!$J:$J,0))","v":{"$error":"#N/A"}},null,0,null,null,null,""]
[null,{"$f":"IF(LEN(A144)=0,\"\",INDEX('Smelter Look-up'!$A:$A,MATCH($A144,'Smelter Look-up'!$E:$E,0)))","v":""},{"$f":"IF(LEN(A144)=0,\"\",INDEX('Smelter Look-up'!$C:$C,MATCH($A144,'Smelter Look-up'!$E:$E,0)))","v":""},null,{"$f":"IF(ISERROR($V144),\"\",OFFSET('Smelter Look-up'!$D$4,$V144-4,0)&\"\")","v":""},{"$f":"IF(ISERROR($V144),\"\",OFFSET('Smelter Look-up'!$E$4,$V144-4,0))","v":""},{"$f":"IF(C144=$X$4,\"Enter smelter details\", IF(ISERROR($V144),\"\",OFFSET('Smelter Look-up'!$F$4,$V144-4,0)))","v":""},{"$f":"IF(ISERROR($V144),\"\",OFFSET('Smelter Look-up'!$G$4,$V144-4,0))","v":""},{"$f":"IF(ISERROR($V144),\"\",OFFSET('Smelter Look-up'!$H$4,$V144-4,0))","v":""},{"$f":"IF(ISERROR($V144),\"\",OFFSET('Smelter Look-up'!$I$4,$V144-4,0))","v":""},{"$nulls":7},{"$f":"IF(ISERROR($V144),\"\",OFFSET('Smelter Look-up'!$C$4,$V144-4,0)&\"\")","v":""},"",{"$f":"IF(B144=\"\",\"\",IF(ISERROR(MATCH($J144,SorP!$B$1:$B$6230,0)),\"\",INDIRECT(\"'SorP'!$A$\"&MATCH($J144,SorP!$B$1:$B$6230,0))))","v":""},null,{"$f":"IF(C144=\"\",NA(),MATCH($B144&$C144,'Smelter Look-up'!$J:$J,0))","v":{"$error":"#N/A"}},null,0,null,null,null,""]
[null,{"$f":"IF(LEN(A145)=0,\"\",INDEX('Smelter Look-up'!$A:$A,MATCH($A145,'Smelter Look-up'!$E:$E,0)))","v":""},{"$f":"IF(LEN(A145)=0,\"\",INDEX('Smelter Look-up'!$C:$C,MATCH($A145,'Smelter Look-up'!$E:$E,0)))","v":""},null,{"$f":"IF(ISERROR($V145),\"\",OFFSET('Smelter Look-up'!$D$4,$V145-4,0)&\"\")","v":""},{"$f":"IF(ISERROR($V145),\"\",OFFSET('Smelter Look-up'!$E$4,$V145-4,0))","v":""},{"$f":"IF(C145=$X$4,\"Enter smelter details\", IF(ISERROR($V145),\"\",OFFSET('Smelter Look-up'!$F$4,$V145-4,0)))","v":""},{"$f":"IF(ISERROR($V145),\"\",OFFSET('Smelter Look-up'!$G$4,$V145-4,0))","v":""},{"$f":"IF(ISERROR($V145),\"\",OFFSET('Smelter Look-up'!$H$4,$V145-4,0))","v":""},{"$f":"IF(ISERROR($V145),\"\",OFFSET('Smelter Look-up'!$I$4,$V145-4,0))","v":""},{"$nulls":7},{"$f":"IF(ISERROR($V145),\"\",OFFSET('Smelter Look-up'!$C$4,$V145-4,0)&\"\")","v":""},"",{"$f":"IF(B145=\"\",\"\",IF(ISERROR(MATCH($J145,SorP!$B$1:$B$6230,0)),\"\",INDIRECT(\"'SorP'!$A$\"&MATCH($J145,SorP!$B$1:$B$6230,0))))","v":""},null,{"$f":"IF(C145=\"\",NA(),MATCH($B145&$C145,'Smelter Look-up'!$J:$J,0))","v":{"$error":"#N/A"}},null,0,null,null,null,""]
[null,{"$f":"IF(LEN(A146)=0,\"\",INDEX('Smelter Look-up'!$A:$A,MATCH($A146,'Smelter Look-up'!$E:$E,0)))","v":""},{"$f":"IF(LEN(A146)=0,\"\",INDEX('Smelter Look-up'!$C:$C,MATCH($A146,'Smelter Look-up'!$E:$E,0)))","v":""},null,{"$f":"IF(ISERROR($V146),\"\",OFFSET('Smelter Look-up'!$D$4,$V146-4,0)&\"\")","v":""},{"$f":"IF(ISERROR($V146),\"\",OFFSET('Smelter Look-up'!$E$4,$V146-4,0))","v":""},{"$f":"IF(C146=$X$4,\"Enter smelter details\", IF(ISERROR($V146),\"\",OFFSET('Smelter Look-up'!$F$4,$V146-4,0)))","v":""},{"$f":"IF(ISERROR($V146),\"\",OFFSET('Smelter Look-up'!$G$4,$V146-4,0))","v":""},{"$f":"IF(ISERROR($V146),\"\",OFFSET('Smelter Look-up'!$H$4,$V146-4,0))","v":""},{"$f":"IF(ISERROR($V146),\"\",OFFSET('Smelter Look-up'!$I$4,$V146-4,0))","v":""},{"$nulls":7},{"$f":"IF(ISERROR($V146),\"\",OFFSET('Smelter Look-up'!$C$4,$V146-4,0)&\"\")","v":""},"",{"$f":"IF(B146=\"\",\"\",IF(ISERROR(MATCH($J146,SorP!$B$1:$B$6230,0)),\"\",INDIRECT(\"'SorP'!$A$\"&MATCH($J146,SorP!$B$1:$B$6230,0))))","v":""},null,{"$f":"IF(C146=\"\",NA(),MATCH($B146&$C146,'Smelter Look-up'!$J:$J,0))","v":{"$error":"#N/A"}},null,0,null,null,null,""]
[null,{"$f":"IF(LEN(A147)=0,\"\",INDEX('Smelter Look-up'!$A:$A,MATCH($A147,'Smelter Look-up'!$E:$E,0)))","v":""},{"$f":"IF(LEN(A147)=0,\"\",INDEX('Smelter Look-up'!$C:$C,MATCH($A147,'Smelter Look-up'!$E:$E,0)))","v":""},null,{"$f":"IF(ISERROR($V147),\"\",OFFSET('Smelter Look-up'!$D$4,$V147-4,0)&\"\")","v":""},{"$f":"IF(ISERROR($V147),\"\",OFFSET('Smelter Look-up'!$E$4,$V147-4,0))","v":""},{"$f":"IF(C147=$X$4,\"Enter smelter details\", IF(ISERROR($V147),\"\",OFFSET('Smelter Look-up'!$F$4,$V147-4,0)))","v":""},{"$f":"IF(ISERROR($V147),\"\",OFFSET('Smelter Look-up'!$G$4,$V147-4,0))","v":""},{"$f":"IF(ISERROR($V147),\"\",OFFSET('Smelter Look-up'!$H$4,$V147-4,0))","v":""},{"$f":"IF(ISERROR($V147),\"\",OFFSET('Smelter Look-up'!$I$4,$V147-4,0))","v":""},{"$nulls":7},{"$f":"IF(ISERROR($V147),\"\",OFFSET('Smelter Look-up'!$C$4,$V147-4,0)&\"\")","v":""},"",{"$f":"IF(B147=\"\",\"\",IF(ISERROR(MATCH($J147,SorP!$B$1:$B$6230,0)),\"\",INDIRECT(\"'SorP'!$A$\"&MATCH($J147,SorP!$B$1:$B$6230,0))))","v":""},null,{"$f":"IF(C147=\"\",NA(),MATCH($B147&$C147,'Smelter Look-up'!$J:$J,0))","v":{"$error":"#N/A"}},null,0,null,null,null,""]
[null,{"$f":"IF(LEN(A148)=0,\"\",INDEX('Smelter Look-up'!$A:$A,MATCH($A148,'Smelter Look-up'!$E:$E,0)))","v":""},{"$f":"IF(LEN(A148)=0,\"\",INDEX('Smelter Look-up'!$C:$C,MATCH($A148,'Smelter Look-up'!$E:$E,0)))","v":""},null,{"$f":"IF(ISERROR($V148),\"\",OFFSET('Smelter Look-up'!$D$4,$V148-4,0)&\"\")","v":""},{"$f":"IF(ISERROR($V148),\"\",OFFSET('Smelter Look-up'!$E$4,$V148-4,0))","v":""},{"$f":"IF(C148=$X$4,\"Enter smelter details\", IF(ISERROR($V148),\"\",OFFSET('Smelter Look-up'!$F$4,$V148-4,0)))","v":""},{"$f":"IF(ISERROR($V148),\"\",OFFSET('Smelter Look-up'!$G$4,$V148-4,0))","v":""},{"$f":"IF(ISERROR($V148),\"\",OFFSET('Smelter Look-up'!$H$4,$V148-4,0))","v":""},{"$f":"IF(ISERROR($V148),\"\",OFFSET('Smelter Look-up'!$I$4,$V148-4,0))","v":""},{"$nulls":7},{"$f":"IF(ISERROR($V148),\"\",OFFSET('Smelter Look-up'!$C$4,$V148-4,0)&\"\")","v":""},"",{"$f":"IF(B148=\"\",\"\",IF(ISERROR(MATCH($J148,SorP!$B$1:$B$6230,0)),\"\",INDIRECT(\"'SorP'!$A$\"&MATCH($J148,SorP!$B$1:$B$6230,0))))","v":""},null,{"$f":"IF(C148=\"\",NA(),MATCH($B148&$C148,'Smelter Look-up'!$J:$J,0))","v":{"$error":"#N/A"}},null,0,null,null,null,""]
[null,{"$f":"IF(LEN(A149)=0,\"\",INDEX('Smelter Look-up'!$A:$A,MATCH($A149,'Smelter Look-up'!$E:$E,0)))","v":""},{"$f":"IF(LEN(A149)=0,\"\",INDEX('Smelter Look-up'!$C:$C,MATCH($A149,'Smelter Look-up'!$E:$E,0)))","v":""},null,{"$f":"IF(ISERROR($V149),\"\",OFFSET('Smelter Look-up'!$D$4,$V149-4,0)&\"\")","v":""},{"$f":"IF(ISERROR($V149),\"\",OFFSET('Smelter Look-up'!$E$4,$V149-4,0))","v":""},{"$f":"IF(C149=$X$4,\"Enter smelter details\", IF(ISERROR($V149),\"\",OFFSET('Smelter Look-up'!$F$4,$V149-4,0)))","v":""},{"$f":"IF(ISERROR($V149),\"\",OFFSET('Smelter Look-up'!$G$4,$V149-4,0))","v":""},{"$f":"IF(ISERROR($V149),\"\",OFFSET('Smelter Look-up'!$H$4,$V149-4,0))","v":""},{"$f":"IF(ISERROR($V149),\"\",OFFSET('Smelter Look-up'!$I$4,$V149-4,0))","v":""},{"$nulls":7},{"$f":"IF(ISERROR($V149),\"\",OFFSET('Smelter Look-up'!$C$4,$V149-4,0)&\"\")","v":""},"",{"$f":"IF(B149=\"\",\"\",IF(ISERROR(MATCH($J149,SorP!$B$1:$B$6230,0)),\"\",INDIRECT(\"'SorP'!$A$\"&MATCH($J149,SorP!$B$1:$B$6230,0))))","v":""},null,{"$f":"IF(C149=\"\",NA(),MATCH($B149&$C149,'Smelter Look-up'!$J:$J,0))","v":{"$error":"#N/A"}},null,0,null,null,null,""]
[null,{"$f":"IF(LEN(A150)=0,\"\",INDEX('Smelter Look-up'!$A:$A,MATCH($A150,'Smelter Look-up'!$E:$E,0)))","v":""},{"$f":"IF(LEN(A150)=0,\"\",INDEX('Smelter Look-up'!$C:$C,MATCH($A150,'Smelter Look-up'!$E:$E,0)))","v":""},null,{"$f":"IF(ISERROR($V150),\"\",OFFSET('Smelter Look-up'!$D$4,$V150-4,0)&\"\")","v":""},{"$f":"IF(ISERROR($V150),\"\",OFFSET('Smelter Look-up'!$E$4,$V150-4,0))","v":""},{"$f":"IF(C150=$X$4,\"Enter smelter details\", IF(ISERROR($V150),\"\",OFFSET('Smelter Look-up'!$F$4,$V150-4,0)))","v":""},{"$f":"IF(ISERROR($V150),\"\",OFFSET('Smelter Look-up'!$G$4,$V150-4,0))","v":""},{"$f":"IF(ISERROR($V150),\"\",OFFSET('Smelter Look-up'!$H$4,$V150-4,0))","v":""},{"$f":"IF(ISERROR($V150),\"\",OFFSET('Smelter Look-up'!$I$4,$V150-4,0))","v":""},{"$nulls":7},{"$f":"IF(ISERROR($V150),\"\",OFFSET('Smelter Look-up'!$C$4,$V150-4,0)&\"\")","v":""},"",{"$f":"IF(B150=\"\",\"\",IF(ISERROR(MATCH($J150,SorP!$B$1:$B$6230,0)),\"\",INDIRECT(\"'SorP'!$A$\"&MATCH($J150,SorP!$B$1:$B$6230,0))))","v":""},null,{"$f":"IF(C150=\"\",NA(),MATCH($B150&$C150,'Smelter Look-up'!$J:$J,0))","v":{"$error":"#N/A"}},null,0,null,null,null,""]
[null,{"$f":"IF(LEN(A151)=0,\"\",INDEX('Smelter Look-up'!$A:$A,MATCH($A151,'Smelter Look-up'!$E:$E,0)))","v":""},{"$f":"IF(LEN(A151)=0,\"\",INDEX('Smelter Look-up'!$C:$C,MATCH($A151,'Smelter Look-up'!$E:$E,0)))","v":""},null,{"$f":"IF(ISERROR($V151),\"\",OFFSET('Smelter Look-up'!$D$4,$V151-4,0)&\"\")","v":""},{"$f":"IF(ISERROR($V151),\"\",OFFSET('Smelter Look-up'!$E$4,$V151-4,0))","v":""},{"$f":"IF(C151=$X$4,\"Enter smelter details\", IF(ISERROR($V151),\"\",OFFSET('Smelter Look-up'!$F$4,$V151-4,0)))","v":""},{"$f":"IF(ISERROR($V151),\"\",OFFSET('Smelter Look-up'!$G$4,$V151-4,0))","v":""},{"$f":"IF(ISERROR($V151),\"\",OFFSET('Smelter Look-up'!$H$4,$V151-4,0))","v":""},{"$f":"IF(ISERROR($V151),\"\",OFFSET('Smelter Look-up'!$I$4,$V151-4,0))","v":""},{"$nulls":7},{"$f":"IF(ISERROR($V151),\"\",OFFSET('Smelter Look-up'!$C$4,$V151-4,0)&\"\")","v":""},"",{"$f":"IF(B151=\"\",\"\",IF(ISERROR(MATCH($J151,SorP!$B$1:$B$6230,0)),\"\",INDIRECT(\"'SorP'!$A$\"&MATCH($J151,SorP!$B$1:$B$6230,0))))","v":""},null,{"$f":"IF(C151=\"\",NA(),MATCH($B151&$C151,'Smelter Look-up'!$J:$J,0))","v":{"$error":"#N/A"}},null,0,null,null,null,""]
[null,{"$f":"IF(LEN(A152)=0,\"\",INDEX('Smelter Look-up'!$A:$A,MATCH($A152,'Smelter Look-up'!$E:$E,0)))","v":""},{"$f":"IF(LEN(A152)=0,\"\",INDEX('Smelter Look-up'!$C:$C,MATCH($A152,'Smelter Look-up'!$E:$E,0)))","v":""},null,{"$f":"IF(ISERROR($V152),\"\",OFFSET('Smelter Look-up'!$D$4,$V152-4,0)&\"\")","v":""},{"$f":"IF(ISERROR($V152),\"\",OFFSET('Smelter Look-up'!$E$4,$V152-4,0))","v":""},{"$f":"IF(C152=$X$4,\"Enter smelter details\", IF(ISERROR($V152),\"\",OFFSET('Smelter Look-up'!$F$4,$V152-4,0)))","v":""},{"$f":"IF(ISERROR($V152),\"\",OFFSET('Smelter Look-up'!$G$4,$V152-4,0))","v":""},{"$f":"IF(ISERROR($V152),\"\",OFFSET('Smelter Look-up'!$H$4,$V152-4,0))","v":""},{"$f":"IF(ISERROR($V152),\"\",OFFSET('Smelter Look-up'!$I$4,$V152-4,0))","v":""},{"$nulls":7},{"$f":"IF(ISERROR($V152),\"\",OFFSET('Smelter Look-up'!$C$4,$V152-4,0)&\"\")","v":""},"",{"$f":"IF(B152=\"\",\"\",IF(ISERROR(MATCH($J152,SorP!$B$1:$B$6230,0)),\"\",INDIRECT(\"'SorP'!$A$\"&MATCH($J152,SorP!$B$1:$B$6230,0))))","v":""},null,{"$f":"IF(C152=\"\",NA(),MATCH($B152&$C152,'Smelter Look-up'!$J:$J,0))","v":{"$error":"#N/A"}},null,0,null,null,null,""]
[null,{"$f":"IF(LEN(A153)=0,\"\",INDEX('Smelter Look-up'!$A:$A,MATCH($A153,'Smelter Look-up'!$E:$E,0)))","v":""},{"$f":"IF(LEN(A153)=0,\"\",INDEX('Smelter Look-up'!$C:$C,MATCH($A153,'Smelter Look-up'!$E:$E,0)))","v":""},null,{"$f":"IF(ISERROR($V153),\"\",OFFSET('Smelter Look-up'!$D$4,$V153-4,0)&\"\")","v":""},{"$f":"IF(ISERROR($V153),\"\",OFFSET('Smelter Look-up'!$E$4,$V153-4,0))","v":""},{"$f":"IF(C153=$X$4,\"Enter smelter details\", IF(ISERROR($V153),\"\",OFFSET('Smelter Look-up'!$F$4,$V153-4,0)))","v":""},{"$f":"IF(ISERROR($V153),\"\",OFFSET('Smelter Look-up'!$G$4,$V153-4,0))","v":""},{"$f":"IF(ISERROR($V153),\"\",OFFSET('Smelter Look-up'!$H$4,$V153-4,0))","v":""},{"$f":"IF(ISERROR($V153),\"\",OFFSET('Smelter Look-up'!$I$4,$V153-4,0))","v":""},{"$nulls":7},{"$f":"IF(ISERROR($V153),\"\",OFFSET('Smelter Look-up'!$C$4,$V153-4,0)&\"\")","v":""},"",{"$f":"IF(B153=\"\",\"\",IF(ISERROR(MATCH($J153,SorP!$B$1:$B$6230,0)),\"\",INDIRECT(\"'SorP'!$A$\"&MATCH($J153,SorP!$B$1:$B$6230,0))))","v":""},null,{"$f":"IF(C153=\"\",NA(),MATCH($B153&$C153,'Smelter Look-up'!$J:$J,0))","v":{"$error":"#N/A"}},null,0,null,null,null,""]
[null,{"$f":"IF(LEN(A154)=0,\"\",INDEX('Smelter Look-up'!$A:$A,MATCH($A154,'Smelter Look-up'!$E:$E,0)))","v":""},{"$f":"IF(LEN(A154)=0,\"\",INDEX('Smelter Look-up'!$C:$C,MATCH($A154,'Smelter Look-up'!$E:$E,0)))","v":""},null,{"$f":"IF(ISERROR($V154),\"\",OFFSET('Smelter Look-up'!$D$4,$V154-4,0)&\"\")","v":""},{"$f":"IF(ISERROR($V154),\"\",OFFSET('Smelter Look-up'!$E$4,$V154-4,0))","v":""},{"$f":"IF(C154=$X$4,\"Enter smelter details\", IF(ISERROR($V154),\"\",OFFSET('Smelter Look-up'!$F$4,$V154-4,0)))","v":""},{"$f":"IF(ISERROR($V154),\"\",OFFSET('Smelter Look-up'!$G$4,$V154-4,0))","v":""},{"$f":"IF(ISERROR($V154),\"\",OFFSET('Smelter Look-up'!$H$4,$V154-4,0))","v":""},{"$f":"IF(ISERROR($V154),\"\",OFFSET('Smelter Look-up'!$I$4,$V154-4,0))","v":""},{"$nulls":7},{"$f":"IF(ISERROR($V154),\"\",OFFSET('Smelter Look-up'!$C$4,$V154-4,0)&\"\")","v":""},"",{"$f":"IF(B154=\"\",\"\",IF(ISERROR(MATCH($J154,SorP!$B$1:$B$6230,0)),\"\",INDIRECT(\"'SorP'!$A$\"&MATCH($J154,SorP!$B$1:$B$6230,0))))","v":""},null,{"$f":"IF(C154=\"\",NA(),MATCH($B154&$C154,'Smelter Look-up'!$J:$J,0))","v":{"$error":"#N/A"}},null,0,null,null,null,""]
[null,{"$f":"IF(LEN(A155)=0,\"\",INDEX('Smelter Look-up'!$A:$A,MATCH($A155,'Smelter Look-up'!$E:$E,0)))","v":""},{"$f":"IF(LEN(A155)=0,\"\",INDEX('Smelter Look-up'!$C:$C,MATCH($A155,'Smelter Look-up'!$E:$E,0)))","v":""},null,{"$f":"IF(ISERROR($V155),\"\",OFFSET('Smelter Look-up'!$D$4,$V155-4,0)&\"\")","v":""},{"$f":"IF(ISERROR($V155),\"\",OFFSET('Smelter Look-up'!$E$4,$V155-4,0))","v":""},{"$f":"IF(C155=$X$4,\"Enter smelter details\", IF(ISERROR($V155),\"\",OFFSET('Smelter Look-up'!$F$4,$V155-4,0)))","v":""},{"$f":"IF(ISERROR($V155),\"\",OFFSET('Smelter Look-up'!$G$4,$V155-4,0))","v":""},{"$f":"IF(ISERROR($V155),\"\",OFFSET('Smelter Look-up'!$H$4,$V155-4,0))","v":""},{"$f":"IF(ISERROR($V155),\"\",OFFSET('Smelter Look-up'!$I$4,$V155-4,0))","v":""},{"$nulls":7},{"$f":"IF(ISERROR($V155),\"\",OFFSET('Smelter Look-up'!$C$4,$V155-4,0)&\"\")","v":""},"",{"$f":"IF(B155=\"\",\"\",IF(ISERROR(MATCH($J155,SorP!$B$1:$B$6230,0)),\"\",INDIRECT(\"'SorP'!$A$\"&MATCH($J155,SorP!$B$1:$B$6230,0))))","v":""},null,{"$f":"IF(C155=\"\",NA(),MATCH($B155&$C155,'Smelter Look-up'!$J:$J,0))","v":{"$error":"#N/A"}},null,0,null,null,null,""]
[null,{"$f":"IF(LEN(A156)=0,\"\",INDEX('Smelter Look-up'!$A:$A,MATCH($A156,'Smelter Look-up'!$E:$E,0)))","v":""},{"$f":"IF(LEN(A156)=0,\"\",INDEX('Smelter Look-up'!$C:$C,MATCH($A156,'Smelter Look-up'!$E:$E,0)))","v":""},null,{"$f":"IF(ISERROR($V156),\"\",OFFSET('Smelter Look-up'!$D$4,$V156-4,0)&\"\")","v":""},{"$f":"IF(ISERROR($V156),\"\",OFFSET('Smelter Look-up'!$E$4,$V156-4,0))","v":""},{"$f":"IF(C156=$X$4,\"Enter smelter details\", IF(ISERROR($V156),\"\",OFFSET('Smelter Look-up'!$F$4,$V156-4,0)))","v":""},{"$f":"IF(ISERROR($V156),\"\",OFFSET('Smelter Look-up'!$G$4,$V156-4,0))","v":""},{"$f":"IF(ISERROR($V156),\"\",OFFSET('Smelter Look-up'!$H$4,$V156-4,0))","v":""},{"$f":"IF(ISERROR($V156),\"\",OFFSET('Smelter Look-up'!$I$4,$V156-4,0))","v":""},{"$nulls":7},{"$f":"IF(ISERROR($V156),\"\",OFFSET('Smelter Look-up'!$C$4,$V156-4,0)&\"\")","v":""},"",{"$f":"IF(B156=\"\",\"\",IF(ISERROR(MATCH($J156,SorP!$B$1:$B$6230,0)),\"\",INDIRECT(\"'SorP'!$A$\"&MATCH($J156,SorP!$B$1:$B$6230,0))))","v":""},null,{"$f":"IF(C156=\"\",NA(),MATCH($B156&$C156,'Smelter Look-up'!$J:$J,0))","v":{"$error":"#N/A"}},null,0,null,null,null,""]
[null,{"$f":"IF(LEN(A157)=0,\"\",INDEX('Smelter Look-up'!$A:$A,MATCH($A157,'Smelter Look-up'!$E:$E,0)))","v":""},{"$f":"IF(LEN(A157)=0,\"\",INDEX('Smelter Look-up'!$C:$C,MATCH($A157,'Smelter Look-up'!$E:$E,0)))","v":""},null,{"$f":"IF(ISERROR($V157),\"\",OFFSET('Smelter Look-up'!$D$4,$V157-4,0)&\"\")","v":""},{"$f":"IF(ISERROR($V157),\"\",OFFSET('Smelter Look-up'!$E$4,$V157-4,0))","v":""},{"$f":"IF(C157=$X$4,\"Enter smelter details\", IF(ISERROR($V157),\"\",OFFSET('Smelter Look-up'!$F$4,$V157-4,0)))","v":""},{"$f":"IF(ISERROR($V157),\"\",OFFSET('Smelter Look-up'!$G$4,$V157-4,0))","v":""},{"$f":"IF(ISERROR($V157),\"\",OFFSET('Smelter Look-up'!$H$4,$V157-4,0))","v":""},{"$f":"IF(ISERROR($V157),\"\",OFFSET('Smelter Look-up'!$I$4,$V157-4,0))","v":""},{"$nulls":7},{"$f":"IF(ISERROR($V157),\"\",OFFSET('Smelter Look-up'!$C$4,$V157-4,0)&\"\")","v":""},"",{"$f":"IF(B157=\"\",\"\",IF(ISERROR(MATCH($J157,SorP!$B$1:$B$6230,0)),\"\",INDIRECT(\"'SorP'!$A$\"&MATCH($J157,SorP!$B$1:$B$6230,0))))","v":""},null,{"$f":"IF(C157=\"\",NA(),MATCH($B157&$C157,'Smelter Look-up'!$J:$J,0))","v":{"$error":"#N/A"}},null,0,null,null,null,""]
[null,{"$f":"IF(LEN(A158)=0,\"\",INDEX('Smelter Look-up'!$A:$A,MATCH($A158,'Smelter Look-up'!$E:$E,0)))","v":""},{"$f":"IF(LEN(A158)=0,\"\",INDEX('Smelter Look-up'!$C:$C,MATCH($A158,'Smelter Look-up'!$E:$E,0)))","v":""},null,{"$f":"IF(ISERROR($V158),\"\",OFFSET('Smelter Look-up'!$D$4,$V158-4,0)&\"\")","v":""},{"$f":"IF(ISERROR($V158),\"\",OFFSET('Smelter Look-up'!$E$4,$V158-4,0))","v":""},{"$f":"IF(C158=$X$4,\"Enter smelter details\", IF(ISERROR($V158),\"\",OFFSET('Smelter Look-up'!$F$4,$V158-4,0)))","v":""},{"$f":"IF(ISERROR($V158),\"\",OFFSET('Smelter Look-up'!$G$4,$V158-4,0))","v":""},{"$f":"IF(ISERROR($V158),\"\",OFFSET('Smelter Look-up'!$H$4,$V158-4,0))","v":""},{"$f":"IF(ISERROR($V158),\"\",OFFSET('Smelter Look-up'!$I$4,$V158-4,0))","v":""},{"$nulls":7},{"$f":"IF(ISERROR($V158),\"\",OFFSET('Smelter Look-up'!$C$4,$V158-4,0)&\"\")","v":""},"",{"$f":"IF(B158=\"\",\"\",IF(ISERROR(MATCH($J158,SorP!$B$1:$B$6230,0)),\"\",INDIRECT(\"'SorP'!$A$\"&MATCH($J158,SorP!$B$1:$B$6230,0))))","v":""},null,{"$f":"IF(C158=\"\",NA(),MATCH($B158&$C158,'Smelter Look-up'!$J:$J,0))","v":{"$error":"#N/A"}},null,0,null,null,null,""]
[null,{"$f":"IF(LEN(A159)=0,\"\",INDEX('Smelter Look-up'!$A:$A,MATCH($A159,'Smelter Look-up'!$E:$E,0)))","v":""},{"$f":"IF(LEN(A159)=0,\"\",INDEX('Smelter Look-up'!$C:$C,MATCH($A159,'Smelter Look-up'!$E:$E,0)))","v":""},null,{"$f":"IF(ISERROR($V159),\"\",OFFSET('Smelter Look-up'!$D$4,$V159-4,0)&\"\")","v":""},{"$f":"IF(ISERROR($V159),\"\",OFFSET('Smelter Look-up'!$E$4,$V159-4,0))","v":""},{"$f":"IF(C159=$X$4,\"Enter smelter details\", IF(ISERROR($V159),\"\",OFFSET('Smelter Look-up'!$F$4,$V159-4,0)))","v":""},{"$f":"IF(ISERROR($V159),\"\",OFFSET('Smelter Look-up'!$G$4,$V159-4,0))","v":""},{"$f":"IF(ISERROR($V159),\"\",OFFSET('Smelter Look-up'!$H$4,$V159-4,0))","v":""},{"$f":"IF(ISERROR($V159),\"\",OFFSET('Smelter Look-up'!$I$4,$V159-4,0))","v":""},{"$nulls":7},{"$f":"IF(ISERROR($V159),\"\",OFFSET('Smelter Look-up'!$C$4,$V159-4,0)&\"\")","v":""},"",{"$f":"IF(B159=\"\",\"\",IF(ISERROR(MATCH($J159,SorP!$B$1:$B$6230,0)),\"\",INDIRECT(\"'SorP'!$A$\"&MATCH($J159,SorP!$B$1:$B$6230,0))))","v":""},null,{"$f":"IF(C159=\"\",NA(),MATCH($B159&$C159,'Smelter Look-up'!$J:$J,0))","v":{"$error":"#N/A"}},null,0,null,null,null,""]
[null,{"$f":"IF(LEN(A160)=0,\"\",INDEX('Smelter Look-up'!$A:$A,MATCH($A160,'Smelter Look-up'!$E:$E,0)))","v":""},{"$f":"IF(LEN(A160)=0,\"\",INDEX('Smelter Look-up'!$C:$C,MATCH($A160,'Smelter Look-up'!$E:$E,0)))","v":""},null,{"$f":"IF(ISERROR($V160),\"\",OFFSET('Smelter Look-up'!$D$4,$V160-4,0)&\"\")","v":""},{"$f":"IF(ISERROR($V160),\"\",OFFSET('Smelter Look-up'!$E$4,$V160-4,0))","v":""},{"$f":"IF(C160=$X$4,\"Enter smelter details\", IF(ISERROR($V160),\"\",OFFSET('Smelter Look-up'!$F$4,$V160-4,0)))","v":""},{"$f":"IF(ISERROR($V160),\"\",OFFSET('Smelter Look-up'!$G$4,$V160-4,0))","v":""},{"$f":"IF(ISERROR($V160),\"\",OFFSET('Smelter Look-up'!$H$4,$V160-4,0))","v":""},{"$f":"IF(ISERROR($V160),\"\",OFFSET('Smelter Look-up'!$I$4,$V160-4,0))","v":""},{"$nulls":7},{"$f":"IF(ISERROR($V160),\"\",OFFSET('Smelter Look-up'!$C$4,$V160-4,0)&\"\")","v":""},"",{"$f":"IF(B160=\"\",\"\",IF(ISERROR(MATCH($J160,SorP!$B$1:$B$6230,0)),\"\",INDIRECT(\"'SorP'!$A$\"&MATCH($J160,SorP!$B$1:$B$6230,0))))","v":""},null,{"$f":"IF(C160=\"\",NA(),MATCH($B160&$C160,'Smelter Look-up'!$J:$J,0))","v":{"$error":"#N/A"}},null,0,null,null,null,""]
[null,{"$f":"IF(LEN(A161)=0,\"\",INDEX('Smelter Look-up'!$A:$A,MATCH($A161,'Smelter Look-up'!$E:$E,0)))","v":""},{"$f":"IF(LEN(A161)=0,\"\",INDEX('Smelter Look-up'!$C:$C,MATCH($A161,'Smelter Look-up'!$E:$E,0)))","v":""},null,{"$f":"IF(ISERROR($V161),\"\",OFFSET('Smelter Look-up'!$D$4,$V161-4,0)&\"\")","v":""},{"$f":"IF(ISERROR($V161),\"\",OFFSET('Smelter Look-up'!$E$4,$V161-4,0))","v":""},{"$f":"IF(C161=$X$4,\"Enter smelter details\", IF(ISERROR($V161),\"\",OFFSET('Smelter Look-up'!$F$4,$V161-4,0)))","v":""},{"$f":"IF(ISERROR($V161),\"\",OFFSET('Smelter Look-up'!$G$4,$V161-4,0))","v":""},{"$f":"IF(ISERROR($V161),\"\",OFFSET('Smelter Look-up'!$H$4,$V161-4,0))","v":""},{"$f":"IF(ISERROR($V161),\"\",OFFSET('Smelter Look-up'!$I$4,$V161-4,0))","v":""},{"$nulls":7},{"$f":"IF(ISERROR($V161),\"\",OFFSET('Smelter Look-up'!$C$4,$V161-4,0)&\"\")","v":""},"",{"$f":"IF(B161=\"\",\"\",IF(ISERROR(MATCH($J161,SorP!$B$1:$B$6230,0)),\"\",INDIRECT(\"'SorP'!$A$\"&MATCH($J161,SorP!$B$1:$B$6230,0))))","v":""},null,{"$f":"IF(C161=\"\",NA(),MATCH($B161&$C161,'Smelter Look-up'!$J:$J,0))","v":{"$error":"#N/A"}},null,0,null,null,null,""]
[null,{"$f":"IF(LEN(A162)=0,\"\",INDEX('Smelter Look-up'!$A:$A,MATCH($A162,'Smelter Look-up'!$E:$E,0)))","v":""},{"$f":"IF(LEN(A162)=0,\"\",INDEX('Smelter Look-up'!$C:$C,MATCH($A162,'Smelter Look-up'!$E:$E,0)))","v":""},null,{"$f":"IF(ISERROR($V162),\"\",OFFSET('Smelter Look-up'!$D$4,$V162-4,0)&\"\")","v":""},{"$f":"IF(ISERROR($V162),\"\",OFFSET('Smelter Look-up'!$E$4,$V162-4,0))","v":""},{"$f":"IF(C162=$X$4,\"Enter smelter details\", IF(ISERROR($V162),\"\",OFFSET('Smelter Look-up'!$F$4,$V162-4,0)))","v":""},{"$f":"IF(ISERROR($V162),\"\",OFFSET('Smelter Look-up'!$G$4,$V162-4,0))","v":""},{"$f":"IF(ISERROR($V162),\"\",OFFSET('Smelter Look-up'!$H$4,$V162-4,0))","v":""},{"$f":"IF(ISERROR($V162),\"\",OFFSET('Smelter Look-up'!$I$4,$V162-4,0))","v":""},{"$nulls":7},{"$f":"IF(ISERROR($V162),\"\",OFFSET('Smelter Look-up'!$C$4,$V162-4,0)&\"\")","v":""},"",{"$f":"IF(B162=\"\",\"\",IF(ISERROR(MATCH($J162,SorP!$B$1:$B$6230,0)),\"\",INDIRECT(\"'SorP'!$A$\"&MATCH($J162,SorP!$B$1:$B$6230,0))))","v":""},null,{"$f":"IF(C162=\"\",NA(),MATCH($B162&$C162,'Smelter Look-up'!$J:$J,0))","v":{"$error":"#N/A"}},null,0,null,null,null,""]
[null,{"$f":"IF(LEN(A163)=0,\"\",INDEX('Smelter Look-up'!$A:$A,MATCH($A163,'Smelter Look-up'!$E:$E,0)))","v":""},{"$f":"IF(LEN(A163)=0,\"\",INDEX('Smelter Look-up'!$C:$C,MATCH($A163,'Smelter Look-up'!$E:$E,0)))","v":""},null,{"$f":"IF(ISERROR($V163),\"\",OFFSET('Smelter Look-up'!$D$4,$V163-4,0)&\"\")","v":""},{"$f":"IF(ISERROR($V163),\"\",OFFSET('Smelter Look-up'!$E$4,$V163-4,0))","v":""},{"$f":"IF(C163=$X$4,\"Enter smelter details\", IF(ISERROR($V163),\"\",OFFSET('Smelter Look-up'!$F$4,$V163-4,0)))","v":""},{"$f":"IF(ISERROR($V163),\"\",OFFSET('Smelter Look-up'!$G$4,$V163-4,0))","v":""},{"$f":"IF(ISERROR($V163),\"\",OFFSET('Smelter Look-up'!$H$4,$V163-4,0))","v":""},{"$f":"IF(ISERROR($V163),\"\",OFFSET('Smelter Look-up'!$I$4,$V163-4,0))","v":""},{"$nulls":7},{"$f":"IF(ISERROR($V163),\"\",OFFSET('Smelter Look-up'!$C$4,$V163-4,0)&\"\")","v":""},"",{"$f":"IF(B163=\"\",\"\",IF(ISERROR(MATCH($J163,SorP!$B$1:$B$6230,0)),\"\",INDIRECT(\"'SorP'!$A$\"&MATCH($J163,SorP!$B$1:$B$6230,0))))","v":""},null,{"$f":"IF(C163=\"\",NA(),MATCH($B163&$C163,'Smelter Look-up'!$J:$J,0))","v":{"$error":"#N/A"}},null,0,null,null,null,""]
[null,{"$f":"IF(LEN(A164)=0,\"\",INDEX('Smelter Look-up'!$A:$A,MATCH($A164,'Smelter Look-up'!$E:$E,0)))","v":""},{"$f":"IF(LEN(A164)=0,\"\",INDEX('Smelter Look-up'!$C:$C,MATCH($A164,'Smelter Look-up'!$E:$E,0)))","v":""},null,{"$f":"IF(ISERROR($V164),\"\",OFFSET('Smelter Look-up'!$D$4,$V164-4,0)&\"\")","v":""},{"$f":"IF(ISERROR($V164),\"\",OFFSET('Smelter Look-up'!$E$4,$V164-4,0))","v":""},{"$f":"IF(C164=$X$4,\"Enter smelter details\", IF(ISERROR($V164),\"\",OFFSET('Smelter Look-up'!$F$4,$V164-4,0)))","v":""},{"$f":"IF(ISERROR($V164),\"\",OFFSET('Smelter Look-up'!$G$4,$V164-4,0))","v":""},{"$f":"IF(ISERROR($V164),\"\",OFFSET('Smelter Look-up'!$H$4,$V164-4,0))","v":""},{"$f":"IF(ISERROR($V164),\"\",OFFSET('Smelter Look-up'!$I$4,$V164-4,0))","v":""},{"$nulls":7},{"$f":"IF(ISERROR($V164),\"\",OFFSET('Smelter Look-up'!$C$4,$V164-4,0)&\"\")","v":""},"",{"$f":"IF(B164=\"\",\"\",IF(ISERROR(MATCH($J164,SorP!$B$1:$B$6230,0)),\"\",INDIRECT(\"'SorP'!$A$\"&MATCH($J164,SorP!$B$1:$B$6230,0))))","v":""},null,{"$f":"IF(C164=\"\",NA(),MATCH($B164&$C164,'Smelter Look-up'!$J:$J,0))","v":{"$error":"#N/A"}},null,0,null,null,null,""]
[null,{"$f":"IF(LEN(A165)=0,\"\",INDEX('Smelter Look-up'!$A:$A,MATCH($A165,'Smelter Look-up'!$E:$E,0)))","v":""},{"$f":"IF(LEN(A165)=0,\"\",INDEX('Smelter Look-up'!$C:$C,MATCH($A165,'Smelter Look-up'!$E:$E,0)))","v":""},null,{"$f":"IF(ISERROR($V165),\"\",OFFSET('Smelter Look-up'!$D$4,$V165-4,0)&\"\")","v":""},{"$f":"IF(ISERROR($V165),\"\",OFFSET('Smelter Look-up'!$E$4,$V165-4,0))","v":""},{"$f":"IF(C165=$X$4,\"Enter smelter details\", IF(ISERROR($V165),\"\",OFFSET('Smelter Look-up'!$F$4,$V165-4,0)))","v":""},{"$f":"IF(ISERROR($V165),\"\",OFFSET('Smelter Look-up'!$G$4,$V165-4,0))","v":""},{"$f":"IF(ISERROR($V165),\"\",OFFSET('Smelter Look-up'!$H$4,$V165-4,0))","v":""},{"$f":"IF(ISERROR($V165),\"\",OFFSET('Smelter Look-up'!$I$4,$V165-4,0))","v":""},{"$nulls":7},{"$f":"IF(ISERROR($V165),\"\",OFFSET('Smelter Look-up'!$C$4,$V165-4,0)&\"\")","v":""},"",{"$f":"IF(B165=\"\",\"\",IF(ISERROR(MATCH($J165,SorP!$B$1:$B$6230,0)),\"\",INDIRECT(\"'SorP'!$A$\"&MATCH($J165,SorP!$B$1:$B$6230,0))))","v":""},null,{"$f":"IF(C165=\"\",NA(),MATCH($B165&$C165,'Smelter Look-up'!$J:$J,0))","v":{"$error":"#N/A"}},null,0,null,null,null,""]
[null,{"$f":"IF(LEN(A166)=0,\"\",INDEX('Smelter Look-up'!$A:$A,MATCH($A166,'Smelter Look-up'!$E:$E,0)))","v":""},{"$f":"IF(LEN(A166)=0,\"\",INDEX('Smelter Look-up'!$C:$C,MATCH($A166,'Smelter Look-up'!$E:$E,0)))","v":""},null,{"$f":"IF(ISERROR($V166),\"\",OFFSET('Smelter Look-up'!$D$4,$V166-4,0)&\"\")","v":""},{"$f":"IF(ISERROR($V166),\"\",OFFSET('Smelter Look-up'!$E$4,$V166-4,0))","v":""},{"$f":"IF(C166=$X$4,\"Enter smelter details\", IF(ISERROR($V166),\"\",OFFSET('Smelter Look-up'!$F$4,$V166-4,0)))","v":""},{"$f":"IF(ISERROR($V166),\"\",OFFSET('Smelter Look-up'!$G$4,$V166-4,0))","v":""},{"$f":"IF(ISERROR($V166),\"\",OFFSET('Smelter Look-up'!$H$4,$V166-4,0))","v":""},{"$f":"IF(ISERROR($V166),\"\",OFFSET('Smelter Look-up'!$I$4,$V166-4,0))","v":""},{"$nulls":7},{"$f":"IF(ISERROR($V166),\"\",OFFSET('Smelter Look-up'!$C$4,$V166-4,0)&\"\")","v":""},"",{"$f":"IF(B166=\"\",\"\",IF(ISERROR(MATCH($J166,SorP!$B$1:$B$6230,0)),\"\",INDIRECT(\"'SorP'!$A$\"&MATCH($J166,SorP!$B$1:$B$6230,0))))","v":""},null,{"$f":"IF(C166=\"\",NA(),MATCH($B166&$C166,'Smelter Look-up'!$J:$J,0))","v":{"$error":"#N/A"}},null,0,null,null,null,""]
[null,{"$f":"IF(LEN(A167)=0,\"\",INDEX('Smelter Look-up'!$A:$A,MATCH($A167,'Smelter Look-up'!$E:$E,0)))","v":""},{"$f":"IF(LEN(A167)=0,\"\",INDEX('Smelter Look-up'!$C:$C,MATCH($A167,'Smelter Look-up'!$E:$E,0)))","v":""},null,{"$f":"IF(ISERROR($V167),\"\",OFFSET('Smelter Look-up'!$D$4,$V167-4,0)&\"\")","v":""},{"$f":"IF(ISERROR($V167),\"\",OFFSET('Smelter Look-up'!$E$4,$V167-4,0))","v":""},{"$f":"IF(C167=$X$4,\"Enter smelter details\", IF(ISERROR($V167),\"\",OFFSET('Smelter Look-up'!$F$4,$V167-4,0)))","v":""},{"$f":"IF(ISERROR($V167),\"\",OFFSET('Smelter Look-up'!$G$4,$V167-4,0))","v":""},{"$f":"IF(ISERROR($V167),\"\",OFFSET('Smelter Look-up'!$H$4,$V167-4,0))","v":""},{"$f":"IF(ISERROR($V167),\"\",OFFSET('Smelter Look-up'!$I$4,$V167-4,0))","v":""},{"$nulls":7},{"$f":"IF(ISERROR($V167),\"\",OFFSET('Smelter Look-up'!$C$4,$V167-4,0)&\"\")","v":""},"",{"$f":"IF(B167=\"\",\"\",IF(ISERROR(MATCH($J167,SorP!$B$1:$B$6230,0)),\"\",INDIRECT(\"'SorP'!$A$\"&MATCH($J167,SorP!$B$1:$B$6230,0))))","v":""},null,{"$f":"IF(C167=\"\",NA(),MATCH($B167&$C167,'Smelter Look-up'!$J:$J,0))","v":{"$error":"#N/A"}},null,0,null,null,null,""]
[null,{"$f":"IF(LEN(A168)=0,\"\",INDEX('Smelter Look-up'!$A:$A,MATCH($A168,'Smelter Look-up'!$E:$E,0)))","v":""},{"$f":"IF(LEN(A168)=0,\"\",INDEX('Smelter Look-up'!$C:$C,MATCH($A168,'Smelter Look-up'!$E:$E,0)))","v":""},null,{"$f":"IF(ISERROR($V168),\"\",OFFSET('Smelter Look-up'!$D$4,$V168-4,0)&\"\")","v":""},{"$f":"IF(ISERROR($V168),\"\",OFFSET('Smelter Look-up'!$E$4,$V168-4,0))","v":""},{"$f":"IF(C168=$X$4,\"Enter smelter details\", IF(ISERROR($V168),\"\",OFFSET('Smelter Look-up'!$F$4,$V168-4,0)))","v":""},{"$f":"IF(ISERROR($V168),\"\",OFFSET('Smelter Look-up'!$G$4,$V168-4,0))","v":""},{"$f":"IF(ISERROR($V168),\"\",OFFSET('Smelter Look-up'!$H$4,$V168-4,0))","v":""},{"$f":"IF(ISERROR($V168),\"\",OFFSET('Smelter Look-up'!$I$4,$V168-4,0))","v":""},{"$nulls":7},{"$f":"IF(ISERROR($V168),\"\",OFFSET('Smelter Look-up'!$C$4,$V168-4,0)&\"\")","v":""},"",{"$f":"IF(B168=\"\",\"\",IF(ISERROR(MATCH($J168,SorP!$B$1:$B$6230,0)),\"\",INDIRECT(\"'SorP'!$A$\"&MATCH($J168,SorP!$B$1:$B$6230,0))))","v":""},null,{"$f":"IF(C168=\"\",NA(),MATCH($B168&$C168,'Smelter Look-up'!$J:$J,0))","v":{"$error":"#N/A"}},null,0,null,null,null,""]
[null,{"$f":"IF(LEN(A169)=0,\"\",INDEX('Smelter Look-up'!$A:$A,MATCH($A169,'Smelter Look-up'!$E:$E,0)))","v":""},{"$f":"IF(LEN(A169)=0,\"\",INDEX('Smelter Look-up'!$C:$C,MATCH($A169,'Smelter Look-up'!$E:$E,0)))","v":""},null,{"$f":"IF(ISERROR($V169),\"\",OFFSET('Smelter Look-up'!$D$4,$V169-4,0)&\"\")","v":""},{"$f":"IF(ISERROR($V169),\"\",OFFSET('Smelter Look-up'!$E$4,$V169-4,0))","v":""},{"$f":"IF(C169=$X$4,\"Enter smelter details\", IF(ISERROR($V169),\"\",OFFSET('Smelter Look-up'!$F$4,$V169-4,0)))","v":""},{"$f":"IF(ISERROR($V169),\"\",OFFSET('Smelter Look-up'!$G$4,$V169-4,0))","v":""},{"$f":"IF(ISERROR($V169),\"\",OFFSET('Smelter Look-up'!$H$4,$V169-4,0))","v":""},{"$f":"IF(ISERROR($V169),\"\",OFFSET('Smelter Look-up'!$I$4,$V169-4,0))","v":""},{"$nulls":7},{"$f":"IF(ISERROR($V169),\"\",OFFSET('Smelter Look-up'!$C$4,$V169-4,0)&\"\")","v":""},"",{"$f":"IF(B169=\"\",\"\",IF(ISERROR(MATCH($J169,SorP!$B$1:$B$6230,0)),\"\",INDIRECT(\"'SorP'!$A$\"&MATCH($J169,SorP!$B$1:$B$6230,0))))","v":""},null,{"$f":"IF(C169=\"\",NA(),MATCH($B169&$C169,'Smelter Look-up'!$J:$J,0))","v":{"$error":"#N/A"}},null,0,null,null,null,""]
[null,{"$f":"IF(LEN(A170)=0,\"\",INDEX('Smelter Look-up'!$A:$A,MATCH($A170,'Smelter Look-up'!$E:$E,0)))","v":""},{"$f":"IF(LEN(A170)=0,\"\",INDEX('Smelter Look-up'!$C:$C,MATCH($A170,'Smelter Look-up'!$E:$E,0)))","v":""},null,{"$f":"IF(ISERROR($V170),\"\",OFFSET('Smelter Look-up'!$D$4,$V170-4,0)&\"\")","v":""},{"$f":"IF(ISERROR($V170),\"\",OFFSET('Smelter Look-up'!$E$4,$V170-4,0))","v":""},{"$f":"IF(C170=$X$4,\"Enter smelter details\", IF(ISERROR($V170),\"\",OFFSET('Smelter Look-up'!$F$4,$V170-4,0)))","v":""},{"$f":"IF(ISERROR($V170),\"\",OFFSET('Smelter Look-up'!$G$4,$V170-4,0))","v":""},{"$f":"IF(ISERROR($V170),\"\",OFFSET('Smelter Look-up'!$H$4,$V170-4,0))","v":""},{"$f":"IF(ISERROR($V170),\"\",OFFSET('Smelter Look-up'!$I$4,$V170-4,0))","v":""},{"$nulls":7},{"$f":"IF(ISERROR($V170),\"\",OFFSET('Smelter Look-up'!$C$4,$V170-4,0)&\"\")","v":""},"",{"$f":"IF(B170=\"\",\"\",IF(ISERROR(MATCH($J170,SorP!$B$1:$B$6230,0)),\"\",INDIRECT(\"'SorP'!$A$\"&MATCH($J170,SorP!$B$1:$B$6230,0))))","v":""},null,{"$f":"IF(C170=\"\",NA(),MATCH($B170&$C170,'Smelter Look-up'!$J:$J,0))","v":{"$error":"#N/A"}},null,0,null,null,null,""]
[null,{"$f":"IF(LEN(A171)=0,\"\",INDEX('Smelter Look-up'!$A:$A,MATCH($A171,'Smelter Look-up'!$E:$E,0)))","v":""},{"$f":"IF(LEN(A171)=0,\"\",INDEX('Smelter Look-up'!$C:$C,MATCH($A171,'Smelter Look-up'!$E:$E,0)))","v":""},null,{"$f":"IF(ISERROR($V171),\"\",OFFSET('Smelter Look-up'!$D$4,$V171-4,0)&\"\")","v":""},{"$f":"IF(ISERROR($V171),\"\",OFFSET('Smelter Look-up'!$E$4,$V171-4,0))","v":""},{"$f":"IF(C171=$X$4,\"Enter smelter details\", IF(ISERROR($V171),\"\",OFFSET('Smelter Look-up'!$F$4,$V171-4,0)))","v":""},{"$f":"IF(ISERROR($V171),\"\",OFFSET('Smelter Look-up'!$G$4,$V171-4,0))","v":""},{"$f":"IF(ISERROR($V171),\"\",OFFSET('Smelter Look-up'!$H$4,$V171-4,0))","v":""},{"$f":"IF(ISERROR($V171),\"\",OFFSET('Smelter Look-up'!$I$4,$V171-4,0))","v":""},{"$nulls":7},{"$f":"IF(ISERROR($V171),\"\",OFFSET('Smelter Look-up'!$C$4,$V171-4,0)&\"\")","v":""},"",{"$f":"IF(B171=\"\",\"\",IF(ISERROR(MATCH($J171,SorP!$B$1:$B$6230,0)),\"\",INDIRECT(\"'SorP'!$A$\"&MATCH($J171,SorP!$B$1:$B$6230,0))))","v":""},null,{"$f":"IF(C171=\"\",NA(),MATCH($B171&$C171,'Smelter Look-up'!$J:$J,0))","v":{"$error":"#N/A"}},null,0,null,null,null,""]
[null,{"$f":"IF(LEN(A172)=0,\"\",INDEX('Smelter Look-up'!$A:$A,MATCH($A172,'Smelter Look-up'!$E:$E,0)))","v":""},{"$f":"IF(LEN(A172)=0,\"\",INDEX('Smelter Look-up'!$C:$C,MATCH($A172,'Smelter Look-up'!$E:$E,0)))","v":""},null,{"$f":"IF(ISERROR($V172),\"\",OFFSET('Smelter Look-up'!$D$4,$V172-4,0)&\"\")","v":""},{"$f":"IF(ISERROR($V172),\"\",OFFSET('Smelter Look-up'!$E$4,$V172-4,0))","v":""},{"$f":"IF(C172=$X$4,\"Enter smelter details\", IF(ISERROR($V172),\"\",OFFSET('Smelter Look-up'!$F$4,$V172-4,0)))","v":""},{"$f":"IF(ISERROR($V172),\"\",OFFSET('Smelter Look-up'!$G$4,$V172-4,0))","v":""},{"$f":"IF(ISERROR($V172),\"\",OFFSET('Smelter Look-up'!$H$4,$V172-4,0))","v":""},{"$f":"IF(ISERROR($V172),\"\",OFFSET('Smelter Look-up'!$I$4,$V172-4,0))","v":""},{"$nulls":7},{"$f":"IF(ISERROR($V172),\"\",OFFSET('Smelter Look-up'!$C$4,$V172-4,0)&\"\")","v":""},"",{"$f":"IF(B172=\"\",\"\",IF(ISERROR(MATCH($J172,SorP!$B$1:$B$6230,0)),\"\",INDIRECT(\"'SorP'!$A$\"&MATCH($J172,SorP!$B$1:$B$6230,0))))","v":""},null,{"$f":"IF(C172=\"\",NA(),MATCH($B172&$C172,'Smelter Look-up'!$J:$J,0))","v":{"$error":"#N/A"}},null,0,null,null,null,""]
[null,{"$f":"IF(LEN(A173)=0,\"\",INDEX('Smelter Look-up'!$A:$A,MATCH($A173,'Smelter Look-up'!$E:$E,0)))","v":""},{"$f":"IF(LEN(A173)=0,\"\",INDEX('Smelter Look-up'!$C:$C,MATCH($A173,'Smelter Look-up'!$E:$E,0)))","v":""},null,{"$f":"IF(ISERROR($V173),\"\",OFFSET('Smelter Look-up'!$D$4,$V173-4,0)&\"\")","v":""},{"$f":"IF(ISERROR($V173),\"\",OFFSET('Smelter Look-up'!$E$4,$V173-4,0))","v":""},{"$f":"IF(C173=$X$4,\"Enter smelter details\", IF(ISERROR($V173),\"\",OFFSET('Smelter Look-up'!$F$4,$V173-4,0)))","v":""},{"$f":"IF(ISERROR($V173),\"\",OFFSET('Smelter Look-up'!$G$4,$V173-4,0))","v":""},{"$f":"IF(ISERROR($V173),\"\",OFFSET('Smelter Look-up'!$H$4,$V173-4,0))","v":""},{"$f":"IF(ISERROR($V173),\"\",OFFSET('Smelter Look-up'!$I$4,$V173-4,0))","v":""},{"$nulls":7},{"$f":"IF(ISERROR($V173),\"\",OFFSET('Smelter Look-up'!$C$4,$V173-4,0)&\"\")","v":""},"",{"$f":"IF(B173=\"\",\"\",IF(ISERROR(MATCH($J173,SorP!$B$1:$B$6230,0)),\"\",INDIRECT(\"'SorP'!$A$\"&MATCH($J173,SorP!$B$1:$B$6230,0))))","v":""},null,{"$f":"IF(C173=\"\",NA(),MATCH($B173&$C173,'Smelter Look-up'!$J:$J,0))","v":{"$error":"#N/A"}},null,0,null,null,null,""]
[null,{"$f":"IF(LEN(A174)=0,\"\",INDEX('Smelter Look-up'!$A:$A,MATCH($A174,'Smelter Look-up'!$E:$E,0)))","v":""},{"$f":"IF(LEN(A174)=0,\"\",INDEX('Smelter Look-up'!$C:$C,MATCH($A174,'Smelter Look-up'!$E:$E,0)))","v":""},null,{"$f":"IF(ISERROR($V174),\"\",OFFSET('Smelter Look-up'!$D$4,$V174-4,0)&\"\")","v":""},{"$f":"IF(ISERROR($V174),\"\",OFFSET('Smelter Look-up'!$E$4,$V174-4,0))","v":""},{"$f":"IF(C174=$X$4,\"Enter smelter details\", IF(ISERROR($V174),\"\",OFFSET('Smelter Look-up'!$F$4,$V174-4,0)))","v":""},{"$f":"IF(ISERROR($V174),\"\",OFFSET('Smelter Look-up'!$G$4,$V174-4,0))","v":""},{"$f":"IF(ISERROR($V174),\"\",OFFSET('Smelter Look-up'!$H$4,$V174-4,0))","v":""},{"$f":"IF(ISERROR($V174),\"\",OFFSET('Smelter Look-up'!$I$4,$V174-4,0))","v":""},{"$nulls":7},{"$f":"IF(ISERROR($V174),\"\",OFFSET('Smelter Look-up'!$C$4,$V174-4,0)&\"\")","v":""},"",{"$f":"IF(B174=\"\",\"\",IF(ISERROR(MATCH($J174,SorP!$B$1:$B$6230,0)),\"\",INDIRECT(\"'SorP'!$A$\"&MATCH($J174,SorP!$B$1:$B$6230,0))))","v":""},null,{"$f":"IF(C174=\"\",NA(),MATCH($B174&$C174,'Smelter Look-up'!$J:$J,0))","v":{"$error":"#N/A"}},null,0,null,null,null,""]
[null,{"$f":"IF(LEN(A175)=0,\"\",INDEX('Smelter Look-up'!$A:$A,MATCH($A175,'Smelter Look-up'!$E:$E,0)))","v":""},{"$f":"IF(LEN(A175)=0,\"\",INDEX('Smelter Look-up'!$C:$C,MATCH($A175,'Smelter Look-up'!$E:$E,0)))","v":""},null,{"$f":"IF(ISERROR($V175),\"\",OFFSET('Smelter Look-up'!$D$4,$V175-4,0)&\"\")","v":""},{"$f":"IF(ISERROR($V175),\"\",OFFSET('Smelter Look-up'!$E$4,$V175-4,0))","v":""},{"$f":"IF(C175=$X$4,\"Enter smelter details\", IF(ISERROR($V175),\"\",OFFSET('Smelter Look-up'!$F$4,$V175-4,0)))","v":""},{"$f":"IF(ISERROR($V175),\"\",OFFSET('Smelter Look-up'!$G$4,$V175-4,0))","v":""},{"$f":"IF(ISERROR($V175),\"\",OFFSET('Smelter Look-up'!$H$4,$V175-4,0))","v":""},{"$f":"IF(ISERROR($V175),\"\",OFFSET('Smelter Look-up'!$I$4,$V175-4,0))","v":""},{"$nulls":7},{"$f":"IF(ISERROR($V175),\"\",OFFSET('Smelter Look-up'!$C$4,$V175-4,0)&\"\")","v":""},"",{"$f":"IF(B175=\"\",\"\",IF(ISERROR(MATCH($J175,SorP!$B$1:$B$6230,0)),\"\",INDIRECT(\"'SorP'!$A$\"&MATCH($J175,SorP!$B$1:$B$6230,0))))","v":""},null,{"$f":"IF(C175=\"\",NA(),MATCH($B175&$C175,'Smelter Look-up'!$J:$J,0))","v":{"$error":"#N/A"}},null,0,null,null,null,""]
[null,{"$f":"IF(LEN(A176)=0,\"\",INDEX('Smelter Look-up'!$A:$A,MATCH($A176,'Smelter Look-up'!$E:$E,0)))","v":""},{"$f":"IF(LEN(A176)=0,\"\",INDEX('Smelter Look-up'!$C:$C,MATCH($A176,'Smelter Look-up'!$E:$E,0)))","v":""},null,{"$f":"IF(ISERROR($V176),\"\",OFFSET('Smelter Look-up'!$D$4,$V176-4,0)&\"\")","v":""},{"$f":"IF(ISERROR($V176),\"\",OFFSET('Smelter Look-up'!$E$4,$V176-4,0))","v":""},{"$f":"IF(C176=$X$4,\"Enter smelter details\", IF(ISERROR($V176),\"\",OFFSET('Smelter Look-up'!$F$4,$V176-4,0)))","v":""},{"$f":"IF(ISERROR($V176),\"\",OFFSET('Smelter Look-up'!$G$4,$V176-4,0))","v":""},{"$f":"IF(ISERROR($V176),\"\",OFFSET('Smelter Look-up'!$H$4,$V176-4,0))","v":""},{"$f":"IF(ISERROR($V176),\"\",OFFSET('Smelter Look-up'!$I$4,$V176-4,0))","v":""},{"$nulls":7},{"$f":"IF(ISERROR($V176),\"\",OFFSET('Smelter Look-up'!$C$4,$V176-4,0)&\"\")","v":""},"",{"$f":"IF(B176=\"\",\"\",IF(ISERROR(MATCH($J176,SorP!$B$1:$B$6230,0)),\"\",INDIRECT(\"'SorP'!$A$\"&MATCH($J176,SorP!$B$1:$B$6230,0))))","v":""},null,{"$f":"IF(C176=\"\",NA(),MATCH($B176&$C176,'Smelter Look-up'!$J:$J,0))","v":{"$error":"#N/A"}},null,0,null,null,null,""]
[null,{"$f":"IF(LEN(A177)=0,\"\",INDEX('Smelter Look-up'!$A:$A,MATCH($A177,'Smelter Look-up'!$E:$E,0)))","v":""},{"$f":"IF(LEN(A177)=0,\"\",INDEX('Smelter Look-up'!$C:$C,MATCH($A177,'Smelter Look-up'!$E:$E,0)))","v":""},null,{"$f":"IF(ISERROR($V177),\"\",OFFSET('Smelter Look-up'!$D$4,$V177-4,0)&\"\")","v":""},{"$f":"IF(ISERROR($V177),\"\",OFFSET('Smelter Look-up'!$E$4,$V177-4,0))","v":""},{"$f":"IF(C177=$X$4,\"Enter smelter details\", IF(ISERROR($V177),\"\",OFFSET('Smelter Look-up'!$F$4,$V177-4,0)))","v":""},{"$f":"IF(ISERROR($V177),\"\",OFFSET('Smelter Look-up'!$G$4,$V177-4,0))","v":""},{"$f":"IF(ISERROR($V177),\"\",OFFSET('Smelter Look-up'!$H$4,$V177-4,0))","v":""},{"$f":"IF(ISERROR($V177),\"\",OFFSET('Smelter Look-up'!$I$4,$V177-4,0))","v":""},{"$nulls":7},{"$f":"IF(ISERROR($V177),\"\",OFFSET('Smelter Look-up'!$C$4,$V177-4,0)&\"\")","v":""},"",{"$f":"IF(B177=\"\",\"\",IF(ISERROR(MATCH($J177,SorP!$B$1:$B$6230,0)),\"\",INDIRECT(\"'SorP'!$A$\"&MATCH($J177,SorP!$B$1:$B$6230,0))))","v":""},null,{"$f":"IF(C177=\"\",NA(),MATCH($B177&$C177,'Smelter Look-up'!$J:$J,0))","v":{"$error":"#N/A"}},null,0,null,null,null,""]
[null,{"$f":"IF(LEN(A178)=0,\"\",INDEX('Smelter Look-up'!$A:$A,MATCH($A178,'Smelter Look-up'!$E:$E,0)))","v":""},{"$f":"IF(LEN(A178)=0,\"\",INDEX('Smelter Look-up'!$C:$C,MATCH($A178,'Smelter Look-up'!$E:$E,0)))","v":""},null,{"$f":"IF(ISERROR($V178),\"\",OFFSET('Smelter Look-up'!$D$4,$V178-4,0)&\"\")","v":""},{"$f":"IF(ISERROR($V178),\"\",OFFSET('Smelter Look-up'!$E$4,$V178-4,0))","v":""},{"$f":"IF(C178=$X$4,\"Enter smelter details\", IF(ISERROR($V178),\"\",OFFSET('Smelter Look-up'!$F$4,$V178-4,0)))","v":""},{"$f":"IF(ISERROR($V178),\"\",OFFSET('Smelter Look-up'!$G$4,$V178-4,0))","v":""},{"$f":"IF(ISERROR($V178),\"\",OFFSET('Smelter Look-up'!$H$4,$V178-4,0))","v":""},{"$f":"IF(ISERROR($V178),\"\",OFFSET('Smelter Look-up'!$I$4,$V178-4,0))","v":""},{"$nulls":7},{"$f":"IF(ISERROR($V178),\"\",OFFSET('Smelter Look-up'!$C$4,$V178-4,0)&\"\")","v":""},"",{"$f":"IF(B178=\"\",\"\",IF(ISERROR(MATCH($J178,SorP!$B$1:$B$6230,0)),\"\",INDIRECT(\"'SorP'!$A$\"&MATCH($J178,SorP!$B$1:$B$6230,0))))","v":""},null,{"$f":"IF(C178=\"\",NA(),MATCH($B178&$C178,'Smelter Look-up'!$J:$J,0))","v":{"$error":"#N/A"}},null,0,null,null,null,""]
[null,{"$f":"IF(LEN(A179)=0,\"\",INDEX('Smelter Look-up'!$A:$A,MATCH($A179,'Smelter Look-up'!$E:$E,0)))","v":""},{"$f":"IF(LEN(A179)=0,\"\",INDEX('Smelter Look-up'!$C:$C,MATCH($A179,'Smelter Look-up'!$E:$E,0)))","v":""},null,{"$f":"IF(ISERROR($V179),\"\",OFFSET('Smelter Look-up'!$D$4,$V179-4,0)&\"\")","v":""},{"$f":"IF(ISERROR($V179),\"\",OFFSET('Smelter Look-up'!$E$4,$V179-4,0))","v":""},{"$f":"IF(C179=$X$4,\"Enter smelter details\", IF(ISERROR($V179),\"\",OFFSET('Smelter Look-up'!$F$4,$V179-4,0)))","v":""},{"$f":"IF(ISERROR($V179),\"\",OFFSET('Smelter Look-up'!$G$4,$V179-4,0))","v":""},{"$f":"IF(ISERROR($V179),\"\",OFFSET('Smelter Look-up'!$H$4,$V179-4,0))","v":""},{"$f":"IF(ISERROR($V179),\"\",OFFSET('Smelter Look-up'!$I$4,$V179-4,0))","v":""},{"$nulls":7},{"$f":"IF(ISERROR($V179),\"\",OFFSET('Smelter Look-up'!$C$4,$V179-4,0)&\"\")","v":""},"",{"$f":"IF(B179=\"\",\"\",IF(ISERROR(MATCH($J179,SorP!$B$1:$B$6230,0)),\"\",INDIRECT(\"'SorP'!$A$\"&MATCH($J179,SorP!$B$1:$B$6230,0))))","v":""},null,{"$f":"IF(C179=\"\",NA(),MATCH($B179&$C179,'Smelter Look-up'!$J:$J,0))","v":{"$error":"#N/A"}},null,0,null,null,null,""]
[null,{"$f":"IF(LEN(A180)=0,\"\",INDEX('Smelter Look-up'!$A:$A,MATCH($A180,'Smelter Look-up'!$E:$E,0)))","v":""},{"$f":"IF(LEN(A180)=0,\"\",INDEX('Smelter Look-up'!$C:$C,MATCH($A180,'Smelter Look-up'!$E:$E,0)))","v":""},null,{"$f":"IF(ISERROR($V180),\"\",OFFSET('Smelter Look-up'!$D$4,$V180-4,0)&\"\")","v":""},{"$f":"IF(ISERROR($V180),\"\",OFFSET('Smelter Look-up'!$E$4,$V180-4,0))","v":""},{"$f":"IF(C180=$X$4,\"Enter smelter details\", IF(ISERROR($V180),\"\",OFFSET('Smelter Look-up'!$F$4,$V180-4,0)))","v":""},{"$f":"IF(ISERROR($V180),\"\",OFFSET('Smelter Look-up'!$G$4,$V180-4,0))","v":""},{"$f":"IF(ISERROR($V180),\"\",OFFSET('Smelter Look-up'!$H$4,$V180-4,0))","v":""},{"$f":"IF(ISERROR($V180),\"\",OFFSET('Smelter Look-up'!$I$4,$V180-4,0))","v":""},{"$nulls":7},{"$f":"IF(ISERROR($V180),\"\",OFFSET('Smelter Look-up'!$C$4,$V180-4,0)&\"\")","v":""},"",{"$f":"IF(B180=\"\",\"\",IF(ISERROR(MATCH($J180,SorP!$B$1:$B$6230,0)),\"\",INDIRECT(\"'SorP'!$A$\"&MATCH($J180,SorP!$B$1:$B$6230,0))))","v":""},null,{"$f":"IF(C180=\"\",NA(),MATCH($B180&$C180,'Smelter Look-up'!$J:$J,0))","v":{"$error":"#N/A"}},null,0,null,null,null,""]
[null,{"$f":"IF(LEN(A181)=0,\"\",INDEX('Smelter Look-up'!$A:$A,MATCH($A181,'Smelter Look-up'!$E:$E,0)))","v":""},{"$f":"IF(LEN(A181)=0,\"\",INDEX('Smelter Look-up'!$C:$C,MATCH($A181,'Smelter Look-up'!$E:$E,0)))","v":""},null,{"$f":"IF(ISERROR($V181),\"\",OFFSET('Smelter Look-up'!$D$4,$V181-4,0)&\"\")","v":""},{"$f":"IF(ISERROR($V181),\"\",OFFSET('Smelter Look-up'!$E$4,$V181-4,0))","v":""},{"$f":"IF(C181=$X$4,\"Enter smelter details\", IF(ISERROR($V181),\"\",OFFSET('Smelter Look-up'!$F$4,$V181-4,0)))","v":""},{"$f":"IF(ISERROR($V181),\"\",OFFSET('Smelter Look-up'!$G$4,$V181-4,0))","v":""},{"$f":"IF(ISERROR($V181),\"\",OFFSET('Smelter Look-up'!$H$4,$V181-4,0))","v":""},{"$f":"IF(ISERROR($V181),\"\",OFFSET('Smelter Look-up'!$I$4,$V181-4,0))","v":""},{"$nulls":7},{"$f":"IF(ISERROR($V181),\"\",OFFSET('Smelter Look-up'!$C$4,$V181-4,0)&\"\")","v":""},"",{"$f":"IF(B181=\"\",\"\",IF(ISERROR(MATCH($J181,SorP!$B$1:$B$6230,0)),\"\",INDIRECT(\"'SorP'!$A$\"&MATCH($J181,SorP!$B$1:$B$6230,0))))","v":""},null,{"$f":"IF(C181=\"\",NA(),MATCH($B181&$C181,'Smelter Look-up'!$J:$J,0))","v":{"$error":"#N/A"}},null,0,null,null,null,""]
[null,{"$f":"IF(LEN(A182)=0,\"\",INDEX('Smelter Look-up'!$A:$A,MATCH($A182,'Smelter Look-up'!$E:$E,0)))","v":""},{"$f":"IF(LEN(A182)=0,\"\",INDEX('Smelter Look-up'!$C:$C,MATCH($A182,'Smelter Look-up'!$E:$E,0)))","v":""},null,{"$f":"IF(ISERROR($V182),\"\",OFFSET('Smelter Look-up'!$D$4,$V182-4,0)&\"\")","v":""},{"$f":"IF(ISERROR($V182),\"\",OFFSET('Smelter Look-up'!$E$4,$V182-4,0))","v":""},{"$f":"IF(C182=$X$4,\"Enter smelter details\", IF(ISERROR($V182),\"\",OFFSET('Smelter Look-up'!$F$4,$V182-4,0)))","v":""},{"$f":"IF(ISERROR($V182),\"\",OFFSET('Smelter Look-up'!$G$4,$V182-4,0))","v":""},{"$f":"IF(ISERROR($V182),\"\",OFFSET('Smelter Look-up'!$H$4,$V182-4,0))","v":""},{"$f":"IF(ISERROR($V182),\"\",OFFSET('Smelter Look-up'!$I$4,$V182-4,0))","v":""},{"$nulls":7},{"$f":"IF(ISERROR($V182),\"\",OFFSET('Smelter Look-up'!$C$4,$V182-4,0)&\"\")","v":""},"",{"$f":"IF(B182=\"\",\"\",IF(ISERROR(MATCH($J182,SorP!$B$1:$B$6230,0)),\"\",INDIRECT(\"'SorP'!$A$\"&MATCH($J182,SorP!$B$1:$B$6230,0))))","v":""},null,{"$f":"IF(C182=\"\",NA(),MATCH($B182&$C182,'Smelter Look-up'!$J:$J,0))","v":{"$error":"#N/A"}},null,0,null,null,null,""]
[null,{"$f":"IF(LEN(A183)=0,\"\",INDEX('Smelter Look-up'!$A:$A,MATCH($A183,'Smelter Look-up'!$E:$E,0)))","v":""},{"$f":"IF(LEN(A183)=0,\"\",INDEX('Smelter Look-up'!$C:$C,MATCH($A183,'Smelter Look-up'!$E:$E,0)))","v":""},null,{"$f":"IF(ISERROR($V183),\"\",OFFSET('Smelter Look-up'!$D$4,$V183-4,0)&\"\")","v":""},{"$f":"IF(ISERROR($V183),\"\",OFFSET('Smelter Look-up'!$E$4,$V183-4,0))","v":""},{"$f":"IF(C183=$X$4,\"Enter smelter details\", IF(ISERROR($V183),\"\",OFFSET('Smelter Look-up'!$F$4,$V183-4,0)))","v":""},{"$f":"IF(ISERROR($V183),\"\",OFFSET('Smelter Look-up'!$G$4,$V183-4,0))","v":""},{"$f":"IF(ISERROR($V183),\"\",OFFSET('Smelter Look-up'!$H$4,$V183-4,0))","v":""},{"$f":"IF(ISERROR($V183),\"\",OFFSET('Smelter Look-up'!$I$4,$V183-4,0))","v":""},{"$nulls":7},{"$f":"IF(ISERROR($V183),\"\",OFFSET('Smelter Look-up'!$C$4,$V183-4,0)&\"\")","v":""},"",{"$f":"IF(B183=\"\",\"\",IF(ISERROR(MATCH($J183,SorP!$B$1:$B$6230,0)),\"\",INDIRECT(\"'SorP'!$A$\"&MATCH($J183,SorP!$B$1:$B$6230,0))))","v":""},null,{"$f":"IF(C183=\"\",NA(),MATCH($B183&$C183,'Smelter Look-up'!$J:$J,0))","v":{"$error":"#N/A"}},null,0,null,null,null,""]
[null,{"$f":"IF(LEN(A184)=0,\"\",INDEX('Smelter Look-up'!$A:$A,MATCH($A184,'Smelter Look-up'!$E:$E,0)))","v":""},{"$f":"IF(LEN(A184)=0,\"\",INDEX('Smelter Look-up'!$C:$C,MATCH($A184,'Smelter Look-up'!$E:$E,0)))","v":""},null,{"$f":"IF(ISERROR($V184),\"\",OFFSET('Smelter Look-up'!$D$4,$V184-4,0)&\"\")","v":""},{"$f":"IF(ISERROR($V184),\"\",OFFSET('Smelter Look-up'!$E$4,$V184-4,0))","v":""},{"$f":"IF(C184=$X$4,\"Enter smelter details\", IF(ISERROR($V184),\"\",OFFSET('Smelter Look-up'!$F$4,$V184-4,0)))","v":""},{"$f":"IF(ISERROR($V184),\"\",OFFSET('Smelter Look-up'!$G$4,$V184-4,0))","v":""},{"$f":"IF(ISERROR($V184),\"\",OFFSET('Smelter Look-up'!$H$4,$V184-4,0))","v":""},{"$f":"IF(ISERROR($V184),\"\",OFFSET('Smelter Look-up'!$I$4,$V184-4,0))","v":""},{"$nulls":7},{"$f":"IF(ISERROR($V184),\"\",OFFSET('Smelter Look-up'!$C$4,$V184-4,0)&\"\")","v":""},"",{"$f":"IF(B184=\"\",\"\",IF(ISERROR(MATCH($J184,SorP!$B$1:$B$6230,0)),\"\",INDIRECT(\"'SorP'!$A$\"&MATCH($J184,SorP!$B$1:$B$6230,0))))","v":""},null,{"$f":"IF(C184=\"\",NA(),MATCH($B184&$C184,'Smelter Look-up'!$J:$J,0))","v":{"$error":"#N/A"}},null,0,null,null,null,""]
[null,{"$f":"IF(LEN(A185)=0,\"\",INDEX('Smelter Look-up'!$A:$A,MATCH($A185,'Smelter Look-up'!$E:$E,0)))","v":""},{"$f":"IF(LEN(A185)=0,\"\",INDEX('Smelter Look-up'!$C:$C,MATCH($A185,'Smelter Look-up'!$E:$E,0)))","v":""},null,{"$f":"IF(ISERROR($V185),\"\",OFFSET('Smelter Look-up'!$D$4,$V185-4,0)&\"\")","v":""},{"$f":"IF(ISERROR($V185),\"\",OFFSET('Smelter Look-up'!$E$4,$V185-4,0))","v":""},{"$f":"IF(C185=$X$4,\"Enter smelter details\", IF(ISERROR($V185),\"\",OFFSET('Smelter Look-up'!$F$4,$V185-4,0)))","v":""},{"$f":"IF(ISERROR($V185),\"\",OFFSET('Smelter Look-up'!$G$4,$V185-4,0))","v":""},{"$f":"IF(ISERROR($V185),\"\",OFFSET('Smelter Look-up'!$H$4,$V185-4,0))","v":""},{"$f":"IF(ISERROR($V185),\"\",OFFSET('Smelter Look-up'!$I$4,$V185-4,0))","v":""},{"$nulls":7},{"$f":"IF(ISERROR($V185),\"\",OFFSET('Smelter Look-up'!$C$4,$V185-4,0)&\"\")","v":""},"",{"$f":"IF(B185=\"\",\"\",IF(ISERROR(MATCH($J185,SorP!$B$1:$B$6230,0)),\"\",INDIRECT(\"'SorP'!$A$\"&MATCH($J185,SorP!$B$1:$B$6230,0))))","v":""},null,{"$f":"IF(C185=\"\",NA(),MATCH($B185&$C185,'Smelter Look-up'!$J:$J,0))","v":{"$error":"#N/A"}},null,0,null,null,null,""]
[null,{"$f":"IF(LEN(A186)=0,\"\",INDEX('Smelter Look-up'!$A:$A,MATCH($A186,'Smelter Look-up'!$E:$E,0)))","v":""},{"$f":"IF(LEN(A186)=0,\"\",INDEX('Smelter Look-up'!$C:$C,MATCH($A186,'Smelter Look-up'!$E:$E,0)))","v":""},null,{"$f":"IF(ISERROR($V186),\"\",OFFSET('Smelter Look-up'!$D$4,$V186-4,0)&\"\")","v":""},{"$f":"IF(ISERROR($V186),\"\",OFFSET('Smelter Look-up'!$E$4,$V186-4,0))","v":""},{"$f":"IF(C186=$X$4,\"Enter smelter details\", IF(ISERROR($V186),\"\",OFFSET('Smelter Look-up'!$F$4,$V186-4,0)))","v":""},{"$f":"IF(ISERROR($V186),\"\",OFFSET('Smelter Look-up'!$G$4,$V186-4,0))","v":""},{"$f":"IF(ISERROR($V186),\"\",OFFSET('Smelter Look-up'!$H$4,$V186-4,0))","v":""},{"$f":"IF(ISERROR($V186),\"\",OFFSET('Smelter Look-up'!$I$4,$V186-4,0))","v":""},{"$nulls":7},{"$f":"IF(ISERROR($V186),\"\",OFFSET('Smelter Look-up'!$C$4,$V186-4,0)&\"\")","v":""},"",{"$f":"IF(B186=\"\",\"\",IF(ISERROR(MATCH($J186,SorP!$B$1:$B$6230,0)),\"\",INDIRECT(\"'SorP'!$A$\"&MATCH($J186,SorP!$B$1:$B$6230,0))))","v":""},null,{"$f":"IF(C186=\"\",NA(),MATCH($B186&$C186,'Smelter Look-up'!$J:$J,0))","v":{"$error":"#N/A"}},null,0,null,null,null,""]
[null,{"$f":"IF(LEN(A187)=0,\"\",INDEX('Smelter Look-up'!$A:$A,MATCH($A187,'Smelter Look-up'!$E:$E,0)))","v":""},{"$f":"IF(LEN(A187)=0,\"\",INDEX('Smelter Look-up'!$C:$C,MATCH($A187,'Smelter Look-up'!$E:$E,0)))","v":""},null,{"$f":"IF(ISERROR($V187),\"\",OFFSET('Smelter Look-up'!$D$4,$V187-4,0)&\"\")","v":""},{"$f":"IF(ISERROR($V187),\"\",OFFSET('Smelter Look-up'!$E$4,$V187-4,0))","v":""},{"$f":"IF(C187=$X$4,\"Enter smelter details\", IF(ISERROR($V187),\"\",OFFSET('Smelter Look-up'!$F$4,$V187-4,0)))","v":""},{"$f":"IF(ISERROR($V187),\"\",OFFSET('Smelter Look-up'!$G$4,$V187-4,0))","v":""},{"$f":"IF(ISERROR($V187),\"\",OFFSET('Smelter Look-up'!$H$4,$V187-4,0))","v":""},{"$f":"IF(ISERROR($V187),\"\",OFFSET('Smelter Look-up'!$I$4,$V187-4,0))","v":""},{"$nulls":7},{"$f":"IF(ISERROR($V187),\"\",OFFSET('Smelter Look-up'!$C$4,$V187-4,0)&\"\")","v":""},{"$f":"IF(B187=\"\",\"\",IF(ISERROR(MATCH($E187,CL,0)),\"Unknown\",INDIRECT(\"'C'!$A$\"&MATCH($E187,CL,0)+1)))","v":""},{"$f":"IF(B187=\"\",\"\",IF(ISERROR(MATCH($J187,SorP!$B$1:$B$6230,0)),\"\",INDIRECT(\"'SorP'!$A$\"&MATCH($J187,SorP!$B$1:$B$6230,0))))","v":""},null,{"$f":"IF(C187=\"\",NA(),MATCH($B187&$C187,'Smelter Look-up'!$J:$J,0))","v":{"$error":"#N/A"}},null,{"$f":"IF(AND(C187=\"Smelter not listed\",OR(LEN(D187)=0,LEN(E187)=0)),1,0)","v":0},null,null,null,{"$f":"B187&C187","v":""}]
[null,{"$f":"IF(LEN(A188)=0,\"\",INDEX('Smelter Look-up'!$A:$A,MATCH($A188,'Smelter Look-up'!$E:$E,0)))","v":""},{"$f":"IF(LEN(A188)=0,\"\",INDEX('Smelter Look-up'!$C:$C,MATCH($A188,'Smelter Look-up'!$E:$E,0)))","v":""},null,{"$f":"IF(ISERROR($V188),\"\",OFFSET('Smelter Look-up'!$D$4,$V188-4,0)&\"\")","v":""},{"$f":"IF(ISERROR($V188),\"\",OFFSET('Smelter Look-up'!$E$4,$V188-4,0))","v":""},{"$f":"IF(C188=$X$4,\"Enter smelter details\", IF(ISERROR($V188),\"\",OFFSET('Smelter Look-up'!$F$4,$V188-4,0)))","v":""},{"$f":"IF(ISERROR($V188),\"\",OFFSET('Smelter Look-up'!$G$4,$V188-4,0))","v":""},{"$f":"IF(ISERROR($V188),\"\",OFFSET('Smelter Look-up'!$H$4,$V188-4,0))","v":""},{"$f":"IF(ISERROR($V188),\"\",OFFSET('Smelter Look-up'!$I$4,$V188-4,0))","v":""},{"$nulls":7},{"$f":"IF(ISERROR($V188),\"\",OFFSET('Smelter Look-up'!$C$4,$V188-4,0)&\"\")","v":""},"",{"$f":"IF(B188=\"\",\"\",IF(ISERROR(MATCH($J188,SorP!$B$1:$B$6230,0)),\"\",INDIRECT(\"'SorP'!$A$\"&MATCH($J188,SorP!$B$1:$B$6230,0))))","v":""},null,{"$f":"IF(C188=\"\",NA(),MATCH($B188&$C188,'Smelter Look-up'!$J:$J,0))","v":{"$error":"#N/A"}},null,0,null,null,null,""]
[null,{"$f":"IF(LEN(A189)=0,\"\",INDEX('Smelter Look-up'!$A:$A,MATCH($A189,'Smelter Look-up'!$E:$E,0)))","v":""},{"$f":"IF(LEN(A189)=0,\"\",INDEX('Smelter Look-up'!$C:$C,MATCH($A189,'Smelter Look-up'!$E:$E,0)))","v":""},null,{"$f":"IF(ISERROR($V189),\"\",OFFSET('Smelter Look-up'!$D$4,$V189-4,0)&\"\")","v":""},{"$f":"IF(ISERROR($V189),\"\",OFFSET('Smelter Look-up'!$E$4,$V189-4,0))","v":""},{"$f":"IF(C189=$X$4,\"Enter smelter details\", IF(ISERROR($V189),\"\",OFFSET('Smelter Look-up'!$F$4,$V189-4,0)))","v":""},{"$f":"IF(ISERROR($V189),\"\",OFFSET('Smelter Look-up'!$G$4,$V189-4,0))","v":""},{"$f":"IF(ISERROR($V189),\"\",OFFSET('Smelter Look-up'!$H$4,$V189-4,0))","v":""},{"$f":"IF(ISERROR($V189),\"\",OFFSET('Smelter Look-up'!$I$4,$V189-4,0))","v":""},{"$nulls":7},{"$f":"IF(ISERROR($V189),\"\",OFFSET('Smelter Look-up'!$C$4,$V189-4,0)&\"\")","v":""},"",{"$f":"IF(B189=\"\",\"\",IF(ISERROR(MATCH($J189,SorP!$B$1:$B$6230,0)),\"\",INDIRECT(\"'SorP'!$A$\"&MATCH($J189,SorP!$B$1:$B$6230,0))))","v":""},null,{"$f":"IF(C189=\"\",NA(),MATCH($B189&$C189,'Smelter Look-up'!$J:$J,0))","v":{"$error":"#N/A"}},null,0,null,null,null,""]
[null,{"$f":"IF(LEN(A190)=0,\"\",INDEX('Smelter Look-up'!$A:$A,MATCH($A190,'Smelter Look-up'!$E:$E,0)))","v":""},{"$f":"IF(LEN(A190)=0,\"\",INDEX('Smelter Look-up'!$C:$C,MATCH($A190,'Smelter Look-up'!$E:$E,0)))","v":""},null,{"$f":"IF(ISERROR($V190),\"\",OFFSET('Smelter Look-up'!$D$4,$V190-4,0)&\"\")","v":""},{"$f":"IF(ISERROR($V190),\"\",OFFSET('Smelter Look-up'!$E$4,$V190-4,0))","v":""},{"$f":"IF(C190=$X$4,\"Enter smelter details\", IF(ISERROR($V190),\"\",OFFSET('Smelter Look-up'!$F$4,$V190-4,0)))","v":""},{"$f":"IF(ISERROR($V190),\"\",OFFSET('Smelter Look-up'!$G$4,$V190-4,0))","v":""},{"$f":"IF(ISERROR($V190),\"\",OFFSET('Smelter Look-up'!$H$4,$V190-4,0))","v":""},{"$f":"IF(ISERROR($V190),\"\",OFFSET('Smelter Look-up'!$I$4,$V190-4,0))","v":""},{"$nulls":7},{"$f":"IF(ISERROR($V190),\"\",OFFSET('Smelter Look-up'!$C$4,$V190-4,0)&\"\")","v":""},"",{"$f":"IF(B190=\"\",\"\",IF(ISERROR(MATCH($J190,SorP!$B$1:$B$6230,0)),\"\",INDIRECT(\"'SorP'!$A$\"&MATCH($J190,SorP!$B$1:$B$6230,0))))","v":""},null,{"$f":"IF(C190=\"\",NA(),MATCH($B190&$C190,'Smelter Look-up'!$J:$J,0))","v":{"$error":"#N/A"}},null,0,null,null,null,""]
[null,{"$f":"IF(LEN(A191)=0,\"\",INDEX('Smelter Look-up'!$A:$A,MATCH($A191,'Smelter Look-up'!$E:$E,0)))","v":""},{"$f":"IF(LEN(A191)=0,\"\",INDEX('Smelter Look-up'!$C:$C,MATCH($A191,'Smelter Look-up'!$E:$E,0)))","v":""},null,{"$f":"IF(ISERROR($V191),\"\",OFFSET('Smelter Look-up'!$D$4,$V191-4,0)&\"\")","v":""},{"$f":"IF(ISERROR($V191),\"\",OFFSET('Smelter Look-up'!$E$4,$V191-4,0))","v":""},{"$f":"IF(C191=$X$4,\"Enter smelter details\", IF(ISERROR($V191),\"\",OFFSET('Smelter Look-up'!$F$4,$V191-4,0)))","v":""},{"$f":"IF(ISERROR($V191),\"\",OFFSET('Smelter Look-up'!$G$4,$V191-4,0))","v":""},{"$f":"IF(ISERROR($V191),\"\",OFFSET('Smelter Look-up'!$H$4,$V191-4,0))","v":""},{"$f":"IF(ISERROR($V191),\"\",OFFSET('Smelter Look-up'!$I$4,$V191-4,0))","v":""},{"$nulls":7},{"$f":"IF(ISERROR($V191),\"\",OFFSET('Smelter Look-up'!$C$4,$V191-4,0)&\"\")","v":""},"",{"$f":"IF(B191=\"\",\"\",IF(ISERROR(MATCH($J191,SorP!$B$1:$B$6230,0)),\"\",INDIRECT(\"'SorP'!$A$\"&MATCH($J191,SorP!$B$1:$B$6230,0))))","v":""},null,{"$f":"IF(C191=\"\",NA(),MATCH($B191&$C191,'Smelter Look-up'!$J:$J,0))","v":{"$error":"#N/A"}},null,0,null,null,null,""]
[null,{"$f":"IF(LEN(A192)=0,\"\",INDEX('Smelter Look-up'!$A:$A,MATCH($A192,'Smelter Look-up'!$E:$E,0)))","v":""},{"$f":"IF(LEN(A192)=0,\"\",INDEX('Smelter Look-up'!$C:$C,MATCH($A192,'Smelter Look-up'!$E:$E,0)))","v":""},null,{"$f":"IF(ISERROR($V192),\"\",OFFSET('Smelter Look-up'!$D$4,$V192-4,0)&\"\")","v":""},{"$f":"IF(ISERROR($V192),\"\",OFFSET('Smelter Look-up'!$E$4,$V192-4,0))","v":""},{"$f":"IF(C192=$X$4,\"Enter smelter details\", IF(ISERROR($V192),\"\",OFFSET('Smelter Look-up'!$F$4,$V192-4,0)))","v":""},{"$f":"IF(ISERROR($V192),\"\",OFFSET('Smelter Look-up'!$G$4,$V192-4,0))","v":""},{"$f":"IF(ISERROR($V192),\"\",OFFSET('Smelter Look-up'!$H$4,$V192-4,0))","v":""},{"$f":"IF(ISERROR($V192),\"\",OFFSET('Smelter Look-up'!$I$4,$V192-4,0))","v":""},{"$nulls":7},{"$f":"IF(ISERROR($V192),\"\",OFFSET('Smelter Look-up'!$C$4,$V192-4,0)&\"\")","v":""},"",{"$f":"IF(B192=\"\",\"\",IF(ISERROR(MATCH($J192,SorP!$B$1:$B$6230,0)),\"\",INDIRECT(\"'SorP'!$A$\"&MATCH($J192,SorP!$B$1:$B$6230,0))))","v":""},null,{"$f":"IF(C192=\"\",NA(),MATCH($B192&$C192,'Smelter Look-up'!$J:$J,0))","v":{"$error":"#N/A"}},null,0,null,null,null,""]
[null,{"$f":"IF(LEN(A193)=0,\"\",INDEX('Smelter Look-up'!$A:$A,MATCH($A193,'Smelter Look-up'!$E:$E,0)))","v":""},{"$f":"IF(LEN(A193)=0,\"\",INDEX('Smelter Look-up'!$C:$C,MATCH($A193,'Smelter Look-up'!$E:$E,0)))","v":""},null,{"$f":"IF(ISERROR($V193),\"\",OFFSET('Smelter Look-up'!$D$4,$V193-4,0)&\"\")","v":""},{"$f":"IF(ISERROR($V193),\"\",OFFSET('Smelter Look-up'!$E$4,$V193-4,0))","v":""},{"$f":"IF(C193=$X$4,\"Enter smelter details\", IF(ISERROR($V193),\"\",OFFSET('Smelter Look-up'!$F$4,$V193-4,0)))","v":""},{"$f":"IF(ISERROR($V193),\"\",OFFSET('Smelter Look-up'!$G$4,$V193-4,0))","v":""},{"$f":"IF(ISERROR($V193),\"\",OFFSET('Smelter Look-up'!$H$4,$V193-4,0))","v":""},{"$f":"IF(ISERROR($V193),\"\",OFFSET('Smelter Look-up'!$I$4,$V193-4,0))","v":""},{"$nulls":7},{"$f":"IF(ISERROR($V193),\"\",OFFSET('Smelter Look-up'!$C$4,$V193-4,0)&\"\")","v":""},"",{"$f":"IF(B193=\"\",\"\",IF(ISERROR(MATCH($J193,SorP!$B$1:$B$6230,0)),\"\",INDIRECT(\"'SorP'!$A$\"&MATCH($J193,SorP!$B$1:$B$6230,0))))","v":""},null,{"$f":"IF(C193=\"\",NA(),MATCH($B193&$C193,'Smelter Look-up'!$J:$J,0))","v":{"$error":"#N/A"}},null,0,null,null,null,""]
[null,{"$f":"IF(LEN(A194)=0,\"\",INDEX('Smelter Look-up'!$A:$A,MATCH($A194,'Smelter Look-up'!$E:$E,0)))","v":""},{"$f":"IF(LEN(A194)=0,\"\",INDEX('Smelter Look-up'!$C:$C,MATCH($A194,'Smelter Look-up'!$E:$E,0)))","v":""},null,{"$f":"IF(ISERROR($V194),\"\",OFFSET('Smelter Look-up'!$D$4,$V194-4,0)&\"\")","v":""},{"$f":"IF(ISERROR($V194),\"\",OFFSET('Smelter Look-up'!$E$4,$V194-4,0))","v":""},{"$f":"IF(C194=$X$4,\"Enter smelter details\", IF(ISERROR($V194),\"\",OFFSET('Smelter Look-up'!$F$4,$V194-4,0)))","v":""},{"$f":"IF(ISERROR($V194),\"\",OFFSET('Smelter Look-up'!$G$4,$V194-4,0))","v":""},{"$f":"IF(ISERROR($V194),\"\",OFFSET('Smelter Look-up'!$H$4,$V194-4,0))","v":""},{"$f":"IF(ISERROR($V194),\"\",OFFSET('Smelter Look-up'!$I$4,$V194-4,0))","v":""},{"$nulls":7},{"$f":"IF(ISERROR($V194),\"\",OFFSET('Smelter Look-up'!$C$4,$V194-4,0)&\"\")","v":""},"",{"$f":"IF(B194=\"\",\"\",IF(ISERROR(MATCH($J194,SorP!$B$1:$B$6230,0)),\"\",INDIRECT(\"'SorP'!$A$\"&MATCH($J194,SorP!$B$1:$B$6230,0))))","v":""},null,{"$f":"IF(C194=\"\",NA(),MATCH($B194&$C194,'Smelter Look-up'!$J:$J,0))","v":{"$error":"#N/A"}},null,0,null,null,null,""]
[null,{"$f":"IF(LEN(A195)=0,\"\",INDEX('Smelter Look-up'!$A:$A,MATCH($A195,'Smelter Look-up'!$E:$E,0)))","v":""},{"$f":"IF(LEN(A195)=0,\"\",INDEX('Smelter Look-up'!$C:$C,MATCH($A195,'Smelter Look-up'!$E:$E,0)))","v":""},null,{"$f":"IF(ISERROR($V195),\"\",OFFSET('Smelter Look-up'!$D$4,$V195-4,0)&\"\")","v":""},{"$f":"IF(ISERROR($V195),\"\",OFFSET('Smelter Look-up'!$E$4,$V195-4,0))","v":""},{"$f":"IF(C195=$X$4,\"Enter smelter details\", IF(ISERROR($V195),\"\",OFFSET('Smelter Look-up'!$F$4,$V195-4,0)))","v":""},{"$f":"IF(ISERROR($V195),\"\",OFFSET('Smelter Look-up'!$G$4,$V195-4,0))","v":""},{"$f":"IF(ISERROR($V195),\"\",OFFSET('Smelter Look-up'!$H$4,$V195-4,0))","v":""},{"$f":"IF(ISERROR($V195),\"\",OFFSET('Smelter Look-up'!$I$4,$V195-4,0))","v":""},{"$nulls":7},{"$f":"IF(ISERROR($V195),\"\",OFFSET('Smelter Look-up'!$C$4,$V195-4,0)&\"\")","v":""},"",{"$f":"IF(B195=\"\",\"\",IF(ISERROR(MATCH($J195,SorP!$B$1:$B$6230,0)),\"\",INDIRECT(\"'SorP'!$A$\"&MATCH($J195,SorP!$B$1:$B$6230,0))))","v":""},null,{"$f":"IF(C195=\"\",NA(),MATCH($B195&$C195,'Smelter Look-up'!$J:$J,0))","v":{"$error":"#N/A"}},null,0,null,null,null,""]
[null,{"$f":"IF(LEN(A196)=0,\"\",INDEX('Smelter Look-up'!$A:$A,MATCH($A196,'Smelter Look-up'!$E:$E,0)))","v":""},{"$f":"IF(LEN(A196)=0,\"\",INDEX('Smelter Look-up'!$C:$C,MATCH($A196,'Smelter Look-up'!$E:$E,0)))","v":""},null,{"$f":"IF(ISERROR($V196),\"\",OFFSET('Smelter Look-up'!$D$4,$V196-4,0)&\"\")","v":""},{"$f":"IF(ISERROR($V196),\"\",OFFSET('Smelter Look-up'!$E$4,$V196-4,0))","v":""},{"$f":"IF(C196=$X$4,\"Enter smelter details\", IF(ISERROR($V196),\"\",OFFSET('Smelter Look-up'!$F$4,$V196-4,0)))","v":""},{"$f":"IF(ISERROR($V196),\"\",OFFSET('Smelter Look-up'!$G$4,$V196-4,0))","v":""},{"$f":"IF(ISERROR($V196),\"\",OFFSET('Smelter Look-up'!$H$4,$V196-4,0))","v":""},{"$f":"IF(ISERROR($V196),\"\",OFFSET('Smelter Look-up'!$I$4,$V196-4,0))","v":""},{"$nulls":7},{"$f":"IF(ISERROR($V196),\"\",OFFSET('Smelter Look-up'!$C$4,$V196-4,0)&\"\")","v":""},"",{"$f":"IF(B196=\"\",\"\",IF(ISERROR(MATCH($J196,SorP!$B$1:$B$6230,0)),\"\",INDIRECT(\"'SorP'!$A$\"&MATCH($J196,SorP!$B$1:$B$6230,0))))","v":""},null,{"$f":"IF(C196=\"\",NA(),MATCH($B196&$C196,'Smelter Look-up'!$J:$J,0))","v":{"$error":"#N/A"}},null,0,null,null,null,""]
[null,{"$f":"IF(LEN(A197)=0,\"\",INDEX('Smelter Look-up'!$A:$A,MATCH($A197,'Smelter Look-up'!$E:$E,0)))","v":""},{"$f":"IF(LEN(A197)=0,\"\",INDEX('Smelter Look-up'!$C:$C,MATCH($A197,'Smelter Look-up'!$E:$E,0)))","v":""},null,{"$f":"IF(ISERROR($V197),\"\",OFFSET('Smelter Look-up'!$D$4,$V197-4,0)&\"\")","v":""},{"$f":"IF(ISERROR($V197),\"\",OFFSET('Smelter Look-up'!$E$4,$V197-4,0))","v":""},{"$f":"IF(C197=$X$4,\"Enter smelter details\", IF(ISERROR($V197),\"\",OFFSET('Smelter Look-up'!$F$4,$V197-4,0)))","v":""},{"$f":"IF(ISERROR($V197),\"\",OFFSET('Smelter Look-up'!$G$4,$V197-4,0))","v":""},{"$f":"IF(ISERROR($V197),\"\",OFFSET('Smelter Look-up'!$H$4,$V197-4,0))","v":""},{"$f":"IF(ISERROR($V197),\"\",OFFSET('Smelter Look-up'!$I$4,$V197-4,0))","v":""},{"$nulls":7},{"$f":"IF(ISERROR($V197),\"\",OFFSET('Smelter Look-up'!$C$4,$V197-4,0)&\"\")","v":""},"",{"$f":"IF(B197=\"\",\"\",IF(ISERROR(MATCH($J197,SorP!$B$1:$B$6230,0)),\"\",INDIRECT(\"'SorP'!$A$\"&MATCH($J197,SorP!$B$1:$B$6230,0))))","v":""},null,{"$f":"IF(C197=\"\",NA(),MATCH($B197&$C197,'Smelter Look-up'!$J:$J,0))","v":{"$error":"#N/A"}},null,0,null,null,null,""]
[null,{"$f":"IF(LEN(A198)=0,\"\",INDEX('Smelter Look-up'!$A:$A,MATCH($A198,'Smelter Look-up'!$E:$E,0)))","v":""},{"$f":"IF(LEN(A198)=0,\"\",INDEX('Smelter Look-up'!$C:$C,MATCH($A198,'Smelter Look-up'!$E:$E,0)))","v":""},null,{"$f":"IF(ISERROR($V198),\"\",OFFSET('Smelter Look-up'!$D$4,$V198-4,0)&\"\")","v":""},{"$f":"IF(ISERROR($V198),\"\",OFFSET('Smelter Look-up'!$E$4,$V198-4,0))","v":""},{"$f":"IF(C198=$X$4,\"Enter smelter details\", IF(ISERROR($V198),\"\",OFFSET('Smelter Look-up'!$F$4,$V198-4,0)))","v":""},{"$f":"IF(ISERROR($V198),\"\",OFFSET('Smelter Look-up'!$G$4,$V198-4,0))","v":""},{"$f":"IF(ISERROR($V198),\"\",OFFSET('Smelter Look-up'!$H$4,$V198-4,0))","v":""},{"$f":"IF(ISERROR($V198),\"\",OFFSET('Smelter Look-up'!$I$4,$V198-4,0))","v":""},{"$nulls":7},{"$f":"IF(ISERROR($V198),\"\",OFFSET('Smelter Look-up'!$C$4,$V198-4,0)&\"\")","v":""},"",{"$f":"IF(B198=\"\",\"\",IF(ISERROR(MATCH($J198,SorP!$B$1:$B$6230,0)),\"\",INDIRECT(\"'SorP'!$A$\"&MATCH($J198,SorP!$B$1:$B$6230,0))))","v":""},null,{"$f":"IF(C198=\"\",NA(),MATCH($B198&$C198,'Smelter Look-up'!$J:$J,0))","v":{"$error":"#N/A"}},null,0,null,null,null,""]
[null,{"$f":"IF(LEN(A199)=0,\"\",INDEX('Smelter Look-up'!$A:$A,MATCH($A199,'Smelter Look-up'!$E:$E,0)))","v":""},{"$f":"IF(LEN(A199)=0,\"\",INDEX('Smelter Look-up'!$C:$C,MATCH($A199,'Smelter Look-up'!$E:$E,0)))","v":""},null,{"$f":"IF(ISERROR($V199),\"\",OFFSET('Smelter Look-up'!$D$4,$V199-4,0)&\"\")","v":""},{"$f":"IF(ISERROR($V199),\"\",OFFSET('Smelter Look-up'!$E$4,$V199-4,0))","v":""},{"$f":"IF(C199=$X$4,\"Enter smelter details\", IF(ISERROR($V199),\"\",OFFSET('Smelter Look-up'!$F$4,$V199-4,0)))","v":""},{"$f":"IF(ISERROR($V199),\"\",OFFSET('Smelter Look-up'!$G$4,$V199-4,0))","v":""},{"$f":"IF(ISERROR($V199),\"\",OFFSET('Smelter Look-up'!$H$4,$V199-4,0))","v":""},{"$f":"IF(ISERROR($V199),\"\",OFFSET('Smelter Look-up'!$I$4,$V199-4,0))","v":""},{"$nulls":7},{"$f":"IF(ISERROR($V199),\"\",OFFSET('Smelter Look-up'!$C$4,$V199-4,0)&\"\")","v":""},"",{"$f":"IF(B199=\"\",\"\",IF(ISERROR(MATCH($J199,SorP!$B$1:$B$6230,0)),\"\",INDIRECT(\"'SorP'!$A$\"&MATCH($J199,SorP!$B$1:$B$6230,0))))","v":""},null,{"$f":"IF(C199=\"\",NA(),MATCH($B199&$C199,'Smelter Look-up'!$J:$J,0))","v":{"$error":"#N/A"}},null,0,null,null,null,""]
[null,{"$f":"IF(LEN(A200)=0,\"\",INDEX('Smelter Look-up'!$A:$A,MATCH($A200,'Smelter Look-up'!$E:$E,0)))","v":""},{"$f":"IF(LEN(A200)=0,\"\",INDEX('Smelter Look-up'!$C:$C,MATCH($A200,'Smelter Look-up'!$E:$E,0)))","v":""},null,{"$f":"IF(ISERROR($V200),\"\",OFFSET('Smelter Look-up'!$D$4,$V200-4,0)&\"\")","v":""},{"$f":"IF(ISERROR($V200),\"\",OFFSET('Smelter Look-up'!$E$4,$V200-4,0))","v":""},{"$f":"IF(C200=$X$4,\"Enter smelter details\", IF(ISERROR($V200),\"\",OFFSET('Smelter Look-up'!$F$4,$V200-4,0)))","v":""},{"$f":"IF(ISERROR($V200),\"\",OFFSET('Smelter Look-up'!$G$4,$V200-4,0))","v":""},{"$f":"IF(ISERROR($V200),\"\",OFFSET('Smelter Look-up'!$H$4,$V200-4,0))","v":""},{"$f":"IF(ISERROR($V200),\"\",OFFSET('Smelter Look-up'!$I$4,$V200-4,0))","v":""},{"$nulls":7},{"$f":"IF(ISERROR($V200),\"\",OFFSET('Smelter Look-up'!$C$4,$V200-4,0)&\"\")","v":""},"",{"$f":"IF(B200=\"\",\"\",IF(ISERROR(MATCH($J200,SorP!$B$1:$B$6230,0)),\"\",INDIRECT(\"'SorP'!$A$\"&MATCH($J200,SorP!$B$1:$B$6230,0))))","v":""},null,{"$f":"IF(C200=\"\",NA(),MATCH($B200&$C200,'Smelter Look-up'!$J:$J,0))","v":{"$error":"#N/A"}},null,0,null,null,null,""]
[null,{"$f":"IF(LEN(A201)=0,\"\",INDEX('Smelter Look-up'!$A:$A,MATCH($A201,'Smelter Look-up'!$E:$E,0)))","v":""},{"$f":"IF(LEN(A201)=0,\"\",INDEX('Smelter Look-up'!$C:$C,MATCH($A201,'Smelter Look-up'!$E:$E,0)))","v":""},null,{"$f":"IF(ISERROR($V201),\"\",OFFSET('Smelter Look-up'!$D$4,$V201-4,0)&\"\")","v":""},{"$f":"IF(ISERROR($V201),\"\",OFFSET('Smelter Look-up'!$E$4,$V201-4,0))","v":""},{"$f":"IF(C201=$X$4,\"Enter smelter details\", IF(ISERROR($V201),\"\",OFFSET('Smelter Look-up'!$F$4,$V201-4,0)))","v":""},{"$f":"IF(ISERROR($V201),\"\",OFFSET('Smelter Look-up'!$G$4,$V201-4,0))","v":""},{"$f":"IF(ISERROR($V201),\"\",OFFSET('Smelter Look-up'!$H$4,$V201-4,0))","v":""},{"$f":"IF(ISERROR($V201),\"\",OFFSET('Smelter Look-up'!$I$4,$V201-4,0))","v":""},{"$nulls":7},{"$f":"IF(ISERROR($V201),\"\",OFFSET('Smelter Look-up'!$C$4,$V201-4,0)&\"\")","v":""},"",{"$f":"IF(B201=\"\",\"\",IF(ISERROR(MATCH($J201,SorP!$B$1:$B$6230,0)),\"\",INDIRECT(\"'SorP'!$A$\"&MATCH($J201,SorP!$B$1:$B$6230,0))))","v":""},null,{"$f":"IF(C201=\"\",NA(),MATCH($B201&$C201,'Smelter Look-up'!$J:$J,0))","v":{"$error":"#N/A"}},null,0,null,null,null,""]
[null,{"$f":"IF(LEN(A202)=0,\"\",INDEX('Smelter Look-up'!$A:$A,MATCH($A202,'Smelter Look-up'!$E:$E,0)))","v":""},{"$f":"IF(LEN(A202)=0,\"\",INDEX('Smelter Look-up'!$C:$C,MATCH($A202,'Smelter Look-up'!$E:$E,0)))","v":""},null,{"$f":"IF(ISERROR($V202),\"\",OFFSET('Smelter Look-up'!$D$4,$V202-4,0)&\"\")","v":""},{"$f":"IF(ISERROR($V202),\"\",OFFSET('Smelter Look-up'!$E$4,$V202-4,0))","v":""},{"$f":"IF(C202=$X$4,\"Enter smelter details\", IF(ISERROR($V202),\"\",OFFSET('Smelter Look-up'!$F$4,$V202-4,0)))","v":""},{"$f":"IF(ISERROR($V202),\"\",OFFSET('Smelter Look-up'!$G$4,$V202-4,0))","v":""},{"$f":"IF(ISERROR($V202),\"\",OFFSET('Smelter Look-up'!$H$4,$V202-4,0))","v":""},{"$f":"IF(ISERROR($V202),\"\",OFFSET('Smelter Look-up'!$I$4,$V202-4,0))","v":""},{"$nulls":7},{"$f":"IF(ISERROR($V202),\"\",OFFSET('Smelter Look-up'!$C$4,$V202-4,0)&\"\")","v":""},"",{"$f":"IF(B202=\"\",\"\",IF(ISERROR(MATCH($J202,SorP!$B$1:$B$6230,0)),\"\",INDIRECT(\"'SorP'!$A$\"&MATCH($J202,SorP!$B$1:$B$6230,0))))","v":""},null,{"$f":"IF(C202=\"\",NA(),MATCH($B202&$C202,'Smelter Look-up'!$J:$J,0))","v":{"$error":"#N/A"}},null,0,null,null,null,""]
[null,{"$f":"IF(LEN(A203)=0,\"\",INDEX('Smelter Look-up'!$A:$A,MATCH($A203,'Smelter Look-up'!$E:$E,0)))","v":""},{"$f":"IF(LEN(A203)=0,\"\",INDEX('Smelter Look-up'!$C:$C,MATCH($A203,'Smelter Look-up'!$E:$E,0)))","v":""},null,{"$f":"IF(ISERROR($V203),\"\",OFFSET('Smelter Look-up'!$D$4,$V203-4,0)&\"\")","v":""},{"$f":"IF(ISERROR($V203),\"\",OFFSET('Smelter Look-up'!$E$4,$V203-4,0))","v":""},{"$f":"IF(C203=$X$4,\"Enter smelter details\", IF(ISERROR($V203),\"\",OFFSET('Smelter Look-up'!$F$4,$V203-4,0)))","v":""},{"$f":"IF(ISERROR($V203),\"\",OFFSET('Smelter Look-up'!$G$4,$V203-4,0))","v":""},{"$f":"IF(ISERROR($V203),\"\",OFFSET('Smelter Look-up'!$H$4,$V203-4,0))","v":""},{"$f":"IF(ISERROR($V203),\"\",OFFSET('Smelter Look-up'!$I$4,$V203-4,0))","v":""},{"$nulls":7},{"$f":"IF(ISERROR($V203),\"\",OFFSET('Smelter Look-up'!$C$4,$V203-4,0)&\"\")","v":""},"",{"$f":"IF(B203=\"\",\"\",IF(ISERROR(MATCH($J203,SorP!$B$1:$B$6230,0)),\"\",INDIRECT(\"'SorP'!$A$\"&MATCH($J203,SorP!$B$1:$B$6230,0))))","v":""},null,{"$f":"IF(C203=\"\",NA(),MATCH($B203&$C203,'Smelter Look-up'!$J:$J,0))","v":{"$error":"#N/A"}},null,0,null,null,null,""]
[null,{"$f":"IF(LEN(A204)=0,\"\",INDEX('Smelter Look-up'!$A:$A,MATCH($A204,'Smelter Look-up'!$E:$E,0)))","v":""},{"$f":"IF(LEN(A204)=0,\"\",INDEX('Smelter Look-up'!$C:$C,MATCH($A204,'Smelter Look-up'!$E:$E,0)))","v":""},null,{"$f":"IF(ISERROR($V204),\"\",OFFSET('Smelter Look-up'!$D$4,$V204-4,0)&\"\")","v":""},{"$f":"IF(ISERROR($V204),\"\",OFFSET('Smelter Look-up'!$E$4,$V204-4,0))","v":""},{"$f":"IF(C204=$X$4,\"Enter smelter details\", IF(ISERROR($V204),\"\",OFFSET('Smelter Look-up'!$F$4,$V204-4,0)))","v":""},{"$f":"IF(ISERROR($V204),\"\",OFFSET('Smelter Look-up'!$G$4,$V204-4,0))","v":""},{"$f":"IF(ISERROR($V204),\"\",OFFSET('Smelter Look-up'!$H$4,$V204-4,0))","v":""},{"$f":"IF(ISERROR($V204),\"\",OFFSET('Smelter Look-up'!$I$4,$V204-4,0))","v":""},{"$nulls":7},{"$f":"IF(ISERROR($V204),\"\",OFFSET('Smelter Look-up'!$C$4,$V204-4,0)&\"\")","v":""},"",{"$f":"IF(B204=\"\",\"\",IF(ISERROR(MATCH($J204,SorP!$B$1:$B$6230,0)),\"\",INDIRECT(\"'SorP'!$A$\"&MATCH($J204,SorP!$B$1:$B$6230,0))))","v":""},null,{"$f":"IF(C204=\"\",NA(),MATCH($B204&$C204,'Smelter Look-up'!$J:$J,0))","v":{"$error":"#N/A"}},null,0,null,null,null,""]
[null,{"$f":"IF(LEN(A205)=0,\"\",INDEX('Smelter Look-up'!$A:$A,MATCH($A205,'Smelter Look-up'!$E:$E,0)))","v":""},{"$f":"IF(LEN(A205)=0,\"\",INDEX('Smelter Look-up'!$C:$C,MATCH($A205,'Smelter Look-up'!$E:$E,0)))","v":""},null,{"$f":"IF(ISERROR($V205),\"\",OFFSET('Smelter Look-up'!$D$4,$V205-4,0)&\"\")","v":""},{"$f":"IF(ISERROR($V205),\"\",OFFSET('Smelter Look-up'!$E$4,$V205-4,0))","v":""},{"$f":"IF(C205=$X$4,\"Enter smelter details\", IF(ISERROR($V205),\"\",OFFSET('Smelter Look-up'!$F$4,$V205-4,0)))","v":""},{"$f":"IF(ISERROR($V205),\"\",OFFSET('Smelter Look-up'!$G$4,$V205-4,0))","v":""},{"$f":"IF(ISERROR($V205),\"\",OFFSET('Smelter Look-up'!$H$4,$V205-4,0))","v":""},{"$f":"IF(ISERROR($V205),\"\",OFFSET('Smelter Look-up'!$I$4,$V205-4,0))","v":""},{"$nulls":7},{"$f":"IF(ISERROR($V205),\"\",OFFSET('Smelter Look-up'!$C$4,$V205-4,0)&\"\")","v":""},"",{"$f":"IF(B205=\"\",\"\",IF(ISERROR(MATCH($J205,SorP!$B$1:$B$6230,0)),\"\",INDIRECT(\"'SorP'!$A$\"&MATCH($J205,SorP!$B$1:$B$6230,0))))","v":""},null,{"$f":"IF(C205=\"\",NA(),MATCH($B205&$C205,'Smelter Look-up'!$J:$J,0))","v":{"$error":"#N/A"}},null,0,null,null,null,""]
[null,{"$f":"IF(LEN(A206)=0,\"\",INDEX('Smelter Look-up'!$A:$A,MATCH($A206,'Smelter Look-up'!$E:$E,0)))","v":""},{"$f":"IF(LEN(A206)=0,\"\",INDEX('Smelter Look-up'!$C:$C,MATCH($A206,'Smelter Look-up'!$E:$E,0)))","v":""},null,{"$f":"IF(ISERROR($V206),\"\",OFFSET('Smelter Look-up'!$D$4,$V206-4,0)&\"\")","v":""},{"$f":"IF(ISERROR($V206),\"\",OFFSET('Smelter Look-up'!$E$4,$V206-4,0))","v":""},{"$f":"IF(C206=$X$4,\"Enter smelter details\", IF(ISERROR($V206),\"\",OFFSET('Smelter Look-up'!$F$4,$V206-4,0)))","v":""},{"$f":"IF(ISERROR($V206),\"\",OFFSET('Smelter Look-up'!$G$4,$V206-4,0))","v":""},{"$f":"IF(ISERROR($V206),\"\",OFFSET('Smelter Look-up'!$H$4,$V206-4,0))","v":""},{"$f":"IF(ISERROR($V206),\"\",OFFSET('Smelter Look-up'!$I$4,$V206-4,0))","v":""},{"$nulls":7},{"$f":"IF(ISERROR($V206),\"\",OFFSET('Smelter Look-up'!$C$4,$V206-4,0)&\"\")","v":""},"",{"$f":"IF(B206=\"\",\"\",IF(ISERROR(MATCH($J206,SorP!$B$1:$B$6230,0)),\"\",INDIRECT(\"'SorP'!$A$\"&MATCH($J206,SorP!$B$1:$B$6230,0))))","v":""},null,{"$f":"IF(C206=\"\",NA(),MATCH($B206&$C206,'Smelter Look-up'!$J:$J,0))","v":{"$error":"#N/A"}},null,0,null,null,null,""]
[null,{"$f":"IF(LEN(A207)=0,\"\",INDEX('Smelter Look-up'!$A:$A,MATCH($A207,'Smelter Look-up'!$E:$E,0)))","v":""},{"$f":"IF(LEN(A207)=0,\"\",INDEX('Smelter Look-up'!$C:$C,MATCH($A207,'Smelter Look-up'!$E:$E,0)))","v":""},null,{"$f":"IF(ISERROR($V207),\"\",OFFSET('Smelter Look-up'!$D$4,$V207-4,0)&\"\")","v":""},{"$f":"IF(ISERROR($V207),\"\",OFFSET('Smelter Look-up'!$E$4,$V207-4,0))","v":""},{"$f":"IF(C207=$X$4,\"Enter smelter details\", IF(ISERROR($V207),\"\",OFFSET('Smelter Look-up'!$F$4,$V207-4,0)))","v":""},{"$f":"IF(ISERROR($V207),\"\",OFFSET('Smelter Look-up'!$G$4,$V207-4,0))","v":""},{"$f":"IF(ISERROR($V207),\"\",OFFSET('Smelter Look-up'!$H$4,$V207-4,0))","v":""},{"$f":"IF(ISERROR($V207),\"\",OFFSET('Smelter Look-up'!$I$4,$V207-4,0))","v":""},{"$nulls":7},{"$f":"IF(ISERROR($V207),\"\",OFFSET('Smelter Look-up'!$C$4,$V207-4,0)&\"\")","v":""},"",{"$f":"IF(B207=\"\",\"\",IF(ISERROR(MATCH($J207,SorP!$B$1:$B$6230,0)),\"\",INDIRECT(\"'SorP'!$A$\"&MATCH($J207,SorP!$B$1:$B$6230,0))))","v":""},null,{"$f":"IF(C207=\"\",NA(),MATCH($B207&$C207,'Smelter Look-up'!$J:$J,0))","v":{"$error":"#N/A"}},null,0,null,null,null,""]
[null,{"$f":"IF(LEN(A208)=0,\"\",INDEX('Smelter Look-up'!$A:$A,MATCH($A208,'Smelter Look-up'!$E:$E,0)))","v":""},{"$f":"IF(LEN(A208)=0,\"\",INDEX('Smelter Look-up'!$C:$C,MATCH($A208,'Smelter Look-up'!$E:$E,0)))","v":""},null,{"$f":"IF(ISERROR($V208),\"\",OFFSET('Smelter Look-up'!$D$4,$V208-4,0)&\"\")","v":""},{"$f":"IF(ISERROR($V208),\"\",OFFSET('Smelter Look-up'!$E$4,$V208-4,0))","v":""},{"$f":"IF(C208=$X$4,\"Enter smelter details\", IF(ISERROR($V208),\"\",OFFSET('Smelter Look-up'!$F$4,$V208-4,0)))","v":""},{"$f":"IF(ISERROR($V208),\"\",OFFSET('Smelter Look-up'!$G$4,$V208-4,0))","v":""},{"$f":"IF(ISERROR($V208),\"\",OFFSET('Smelter Look-up'!$H$4,$V208-4,0))","v":""},{"$f":"IF(ISERROR($V208),\"\",OFFSET('Smelter Look-up'!$I$4,$V208-4,0))","v":""},{"$nulls":7},{"$f":"IF(ISERROR($V208),\"\",OFFSET('Smelter Look-up'!$C$4,$V208-4,0)&\"\")","v":""},"",{"$f":"IF(B208=\"\",\"\",IF(ISERROR(MATCH($J208,SorP!$B$1:$B$6230,0)),\"\",INDIRECT(\"'SorP'!$A$\"&MATCH($J208,SorP!$B$1:$B$6230,0))))","v":""},null,{"$f":"IF(C208=\"\",NA(),MATCH($B208&$C208,'Smelter Look-up'!$J:$J,0))","v":{"$error":"#N/A"}},null,0,null,null,null,""]
[null,{"$f":"IF(LEN(A209)=0,\"\",INDEX('Smelter Look-up'!$A:$A,MATCH($A209,'Smelter Look-up'!$E:$E,0)))","v":""},{"$f":"IF(LEN(A209)=0,\"\",INDEX('Smelter Look-up'!$C:$C,MATCH($A209,'Smelter Look-up'!$E:$E,0)))","v":""},null,{"$f":"IF(ISERROR($V209),\"\",OFFSET('Smelter Look-up'!$D$4,$V209-4,0)&\"\")","v":""},{"$f":"IF(ISERROR($V209),\"\",OFFSET('Smelter Look-up'!$E$4,$V209-4,0))","v":""},{"$f":"IF(C209=$X$4,\"Enter smelter details\", IF(ISERROR($V209),\"\",OFFSET('Smelter Look-up'!$F$4,$V209-4,0)))","v":""},{"$f":"IF(ISERROR($V209),\"\",OFFSET('Smelter Look-up'!$G$4,$V209-4,0))","v":""},{"$f":"IF(ISERROR($V209),\"\",OFFSET('Smelter Look-up'!$H$4,$V209-4,0))","v":""},{"$f":"IF(ISERROR($V209),\"\",OFFSET('Smelter Look-up'!$I$4,$V209-4,0))","v":""},{"$nulls":7},{"$f":"IF(ISERROR($V209),\"\",OFFSET('Smelter Look-up'!$C$4,$V209-4,0)&\"\")","v":""},"",{"$f":"IF(B209=\"\",\"\",IF(ISERROR(MATCH($J209,SorP!$B$1:$B$6230,0)),\"\",INDIRECT(\"'SorP'!$A$\"&MATCH($J209,SorP!$B$1:$B$6230,0))))","v":""},null,{"$f":"IF(C209=\"\",NA(),MATCH($B209&$C209,'Smelter Look-up'!$J:$J,0))","v":{"$error":"#N/A"}},null,0,null,null,null,""]
[null,{"$f":"IF(LEN(A210)=0,\"\",INDEX('Smelter Look-up'!$A:$A,MATCH($A210,'Smelter Look-up'!$E:$E,0)))","v":""},{"$f":"IF(LEN(A210)=0,\"\",INDEX('Smelter Look-up'!$C:$C,MATCH($A210,'Smelter Look-up'!$E:$E,0)))","v":""},null,{"$f":"IF(ISERROR($V210),\"\",OFFSET('Smelter Look-up'!$D$4,$V210-4,0)&\"\")","v":""},{"$f":"IF(ISERROR($V210),\"\",OFFSET('Smelter Look-up'!$E$4,$V210-4,0))","v":""},{"$f":"IF(C210=$X$4,\"Enter smelter details\", IF(ISERROR($V210),\"\",OFFSET('Smelter Look-up'!$F$4,$V210-4,0)))","v":""},{"$f":"IF(ISERROR($V210),\"\",OFFSET('Smelter Look-up'!$G$4,$V210-4,0))","v":""},{"$f":"IF(ISERROR($V210),\"\",OFFSET('Smelter Look-up'!$H$4,$V210-4,0))","v":""},{"$f":"IF(ISERROR($V210),\"\",OFFSET('Smelter Look-up'!$I$4,$V210-4,0))","v":""},{"$nulls":7},{"$f":"IF(ISERROR($V210),\"\",OFFSET('Smelter Look-up'!$C$4,$V210-4,0)&\"\")","v":""},"",{"$f":"IF(B210=\"\",\"\",IF(ISERROR(MATCH($J210,SorP!$B$1:$B$6230,0)),\"\",INDIRECT(\"'SorP'!$A$\"&MATCH($J210,SorP!$B$1:$B$6230,0))))","v":""},null,{"$f":"IF(C210=\"\",NA(),MATCH($B210&$C210,'Smelter Look-up'!$J:$J,0))","v":{"$error":"#N/A"}},null,0,null,null,null,""]
[null,{"$f":"IF(LEN(A211)=0,\"\",INDEX('Smelter Look-up'!$A:$A,MATCH($A211,'Smelter Look-up'!$E:$E,0)))","v":""},{"$f":"IF(LEN(A211)=0,\"\",INDEX('Smelter Look-up'!$C:$C,MATCH($A211,'Smelter Look-up'!$E:$E,0)))","v":""},null,{"$f":"IF(ISERROR($V211),\"\",OFFSET('Smelter Look-up'!$D$4,$V211-4,0)&\"\")","v":""},{"$f":"IF(ISERROR($V211),\"\",OFFSET('Smelter Look-up'!$E$4,$V211-4,0))","v":""},{"$f":"IF(C211=$X$4,\"Enter smelter details\", IF(ISERROR($V211),\"\",OFFSET('Smelter Look-up'!$F$4,$V211-4,0)))","v":""},{"$f":"IF(ISERROR($V211),\"\",OFFSET('Smelter Look-up'!$G$4,$V211-4,0))","v":""},{"$f":"IF(ISERROR($V211),\"\",OFFSET('Smelter Look-up'!$H$4,$V211-4,0))","v":""},{"$f":"IF(ISERROR($V211),\"\",OFFSET('Smelter Look-up'!$I$4,$V211-4,0))","v":""},{"$nulls":7},{"$f":"IF(ISERROR($V211),\"\",OFFSET('Smelter Look-up'!$C$4,$V211-4,0)&\"\")","v":""},"",{"$f":"IF(B211=\"\",\"\",IF(ISERROR(MATCH($J211,SorP!$B$1:$B$6230,0)),\"\",INDIRECT(\"'SorP'!$A$\"&MATCH($J211,SorP!$B$1:$B$6230,0))))","v":""},null,{"$f":"IF(C211=\"\",NA(),MATCH($B211&$C211,'Smelter Look-up'!$J:$J,0))","v":{"$error":"#N/A"}},null,0,null,null,null,""]
[null,{"$f":"IF(LEN(A212)=0,\"\",INDEX('Smelter Look-up'!$A:$A,MATCH($A212,'Smelter Look-up'!$E:$E,0)))","v":""},{"$f":"IF(LEN(A212)=0,\"\",INDEX('Smelter Look-up'!$C:$C,MATCH($A212,'Smelter Look-up'!$E:$E,0)))","v":""},null,{"$f":"IF(ISERROR($V212),\"\",OFFSET('Smelter Look-up'!$D$4,$V212-4,0)&\"\")","v":""},{"$f":"IF(ISERROR($V212),\"\",OFFSET('Smelter Look-up'!$E$4,$V212-4,0))","v":""},{"$f":"IF(C212=$X$4,\"Enter smelter details\", IF(ISERROR($V212),\"\",OFFSET('Smelter Look-up'!$F$4,$V212-4,0)))","v":""},{"$f":"IF(ISERROR($V212),\"\",OFFSET('Smelter Look-up'!$G$4,$V212-4,0))","v":""},{"$f":"IF(ISERROR($V212),\"\",OFFSET('Smelter Look-up'!$H$4,$V212-4,0))","v":""},{"$f":"IF(ISERROR($V212),\"\",OFFSET('Smelter Look-up'!$I$4,$V212-4,0))","v":""},{"$nulls":7},{"$f":"IF(ISERROR($V212),\"\",OFFSET('Smelter Look-up'!$C$4,$V212-4,0)&\"\")","v":""},"",{"$f":"IF(B212=\"\",\"\",IF(ISERROR(MATCH($J212,SorP!$B$1:$B$6230,0)),\"\",INDIRECT(\"'SorP'!$A$\"&MATCH($J212,SorP!$B$1:$B$6230,0))))","v":""},null,{"$f":"IF(C212=\"\",NA(),MATCH($B212&$C212,'Smelter Look-up'!$J:$J,0))","v":{"$error":"#N/A"}},null,0,null,null,null,""]
[null,{"$f":"IF(LEN(A213)=0,\"\",INDEX('Smelter Look-up'!$A:$A,MATCH($A213,'Smelter Look-up'!$E:$E,0)))","v":""},{"$f":"IF(LEN(A213)=0,\"\",INDEX('Smelter Look-up'!$C:$C,MATCH($A213,'Smelter Look-up'!$E:$E,0)))","v":""},null,{"$f":"IF(ISERROR($V213),\"\",OFFSET('Smelter Look-up'!$D$4,$V213-4,0)&\"\")","v":""},{"$f":"IF(ISERROR($V213),\"\",OFFSET('Smelter Look-up'!$E$4,$V213-4,0))","v":""},{"$f":"IF(C213=$X$4,\"Enter smelter details\", IF(ISERROR($V213),\"\",OFFSET('Smelter Look-up'!$F$4,$V213-4,0)))","v":""},{"$f":"IF(ISERROR($V213),\"\",OFFSET('Smelter Look-up'!$G$4,$V213-4,0))","v":""},{"$f":"IF(ISERROR($V213),\"\",OFFSET('Smelter Look-up'!$H$4,$V213-4,0))","v":""},{"$f":"IF(ISERROR($V213),\"\",OFFSET('Smelter Look-up'!$I$4,$V213-4,0))","v":""},{"$nulls":7},{"$f":"IF(ISERROR($V213),\"\",OFFSET('Smelter Look-up'!$C$4,$V213-4,0)&\"\")","v":""},"",{"$f":"IF(B213=\"\",\"\",IF(ISERROR(MATCH($J213,SorP!$B$1:$B$6230,0)),\"\",INDIRECT(\"'SorP'!$A$\"&MATCH($J213,SorP!$B$1:$B$6230,0))))","v":""},null,{"$f":"IF(C213=\"\",NA(),MATCH($B213&$C213,'Smelter Look-up'!$J:$J,0))","v":{"$error":"#N/A"}},null,0,null,null,null,""]
[null,{"$f":"IF(LEN(A214)=0,\"\",INDEX('Smelter Look-up'!$A:$A,MATCH($A214,'Smelter Look-up'!$E:$E,0)))","v":""},{"$f":"IF(LEN(A214)=0,\"\",INDEX('Smelter Look-up'!$C:$C,MATCH($A214,'Smelter Look-up'!$E:$E,0)))","v":""},null,{"$f":"IF(ISERROR($V214),\"\",OFFSET('Smelter Look-up'!$D$4,$V214-4,0)&\"\")","v":""},{"$f":"IF(ISERROR($V214),\"\",OFFSET('Smelter Look-up'!$E$4,$V214-4,0))","v":""},{"$f":"IF(C214=$X$4,\"Enter smelter details\", IF(ISERROR($V214),\"\",OFFSET('Smelter Look-up'!$F$4,$V214-4,0)))","v":""},{"$f":"IF(ISERROR($V214),\"\",OFFSET('Smelter Look-up'!$G$4,$V214-4,0))","v":""},{"$f":"IF(ISERROR($V214),\"\",OFFSET('Smelter Look-up'!$H$4,$V214-4,0))","v":""},{"$f":"IF(ISERROR($V214),\"\",OFFSET('Smelter Look-up'!$I$4,$V214-4,0))","v":""},{"$nulls":7},{"$f":"IF(ISERROR($V214),\"\",OFFSET('Smelter Look-up'!$C$4,$V214-4,0)&\"\")","v":""},"",{"$f":"IF(B214=\"\",\"\",IF(ISERROR(MATCH($J214,SorP!$B$1:$B$6230,0)),\"\",INDIRECT(\"'SorP'!$A$\"&MATCH($J214,SorP!$B$1:$B$6230,0))))","v":""},null,{"$f":"IF(C214=\"\",NA(),MATCH($B214&$C214,'Smelter Look-up'!$J:$J,0))","v":{"$error":"#N/A"}},null,0,null,null,null,""]
[null,{"$f":"IF(LEN(A215)=0,\"\",INDEX('Smelter Look-up'!$A:$A,MATCH($A215,'Smelter Look-up'!$E:$E,0)))","v":""},{"$f":"IF(LEN(A215)=0,\"\",INDEX('Smelter Look-up'!$C:$C,MATCH($A215,'Smelter Look-up'!$E:$E,0)))","v":""},null,{"$f":"IF(ISERROR($V215),\"\",OFFSET('Smelter Look-up'!$D$4,$V215-4,0)&\"\")","v":""},{"$f":"IF(ISERROR($V215),\"\",OFFSET('Smelter Look-up'!$E$4,$V215-4,0))","v":""},{"$f":"IF(C215=$X$4,\"Enter smelter details\", IF(ISERROR($V215),\"\",OFFSET('Smelter Look-up'!$F$4,$V215-4,0)))","v":""},{"$f":"IF(ISERROR($V215),\"\",OFFSET('Smelter Look-up'!$G$4,$V215-4,0))","v":""},{"$f":"IF(ISERROR($V215),\"\",OFFSET('Smelter Look-up'!$H$4,$V215-4,0))","v":""},{"$f":"IF(ISERROR($V215),\"\",OFFSET('Smelter Look-up'!$I$4,$V215-4,0))","v":""},{"$nulls":7},{"$f":"IF(ISERROR($V215),\"\",OFFSET('Smelter Look-up'!$C$4,$V215-4,0)&\"\")","v":""},"",{"$f":"IF(B215=\"\",\"\",IF(ISERROR(MATCH($J215,SorP!$B$1:$B$6230,0)),\"\",INDIRECT(\"'SorP'!$A$\"&MATCH($J215,SorP!$B$1:$B$6230,0))))","v":""},null,{"$f":"IF(C215=\"\",NA(),MATCH($B215&$C215,'Smelter Look-up'!$J:$J,0))","v":{"$error":"#N/A"}},null,0,null,null,null,""]
[null,{"$f":"IF(LEN(A216)=0,\"\",INDEX('Smelter Look-up'!$A:$A,MATCH($A216,'Smelter Look-up'!$E:$E,0)))","v":""},{"$f":"IF(LEN(A216)=0,\"\",INDEX('Smelter Look-up'!$C:$C,MATCH($A216,'Smelter Look-up'!$E:$E,0)))","v":""},null,{"$f":"IF(ISERROR($V216),\"\",OFFSET('Smelter Look-up'!$D$4,$V216-4,0)&\"\")","v":""},{"$f":"IF(ISERROR($V216),\"\",OFFSET('Smelter Look-up'!$E$4,$V216-4,0))","v":""},{"$f":"IF(C216=$X$4,\"Enter smelter details\", IF(ISERROR($V216),\"\",OFFSET('Smelter Look-up'!$F$4,$V216-4,0)))","v":""},{"$f":"IF(ISERROR($V216),\"\",OFFSET('Smelter Look-up'!$G$4,$V216-4,0))","v":""},{"$f":"IF(ISERROR($V216),\"\",OFFSET('Smelter Look-up'!$H$4,$V216-4,0))","v":""},{"$f":"IF(ISERROR($V216),\"\",OFFSET('Smelter Look-up'!$I$4,$V216-4,0))","v":""},{"$nulls":7},{"$f":"IF(ISERROR($V216),\"\",OFFSET('Smelter Look-up'!$C$4,$V216-4,0)&\"\")","v":""},"",{"$f":"IF(B216=\"\",\"\",IF(ISERROR(MATCH($J216,SorP!$B$1:$B$6230,0)),\"\",INDIRECT(\"'SorP'!$A$\"&MATCH($J216,SorP!$B$1:$B$6230,0))))","v":""},null,{"$f":"IF(C216=\"\",NA(),MATCH($B216&$C216,'Smelter Look-up'!$J:$J,0))","v":{"$error":"#N/A"}},null,0,null,null,null,""]
[null,{"$f":"IF(LEN(A217)=0,\"\",INDEX('Smelter Look-up'!$A:$A,MATCH($A217,'Smelter Look-up'!$E:$E,0)))","v":""},{"$f":"IF(LEN(A217)=0,\"\",INDEX('Smelter Look-up'!$C:$C,MATCH($A217,'Smelter Look-up'!$E:$E,0)))","v":""},null,{"$f":"IF(ISERROR($V217),\"\",OFFSET('Smelter Look-up'!$D$4,$V217-4,0)&\"\")","v":""},{"$f":"IF(ISERROR($V217),\"\",OFFSET('Smelter Look-up'!$E$4,$V217-4,0))","v":""},{"$f":"IF(C217=$X$4,\"Enter smelter details\", IF(ISERROR($V217),\"\",OFFSET('Smelter Look-up'!$F$4,$V217-4,0)))","v":""},{"$f":"IF(ISERROR($V217),\"\",OFFSET('Smelter Look-up'!$G$4,$V217-4,0))","v":""},{"$f":"IF(ISERROR($V217),\"\",OFFSET('Smelter Look-up'!$H$4,$V217-4,0))","v":""},{"$f":"IF(ISERROR($V217),\"\",OFFSET('Smelter Look-up'!$I$4,$V217-4,0))","v":""},{"$nulls":7},{"$f":"IF(ISERROR($V217),\"\",OFFSET('Smelter Look-up'!$C$4,$V217-4,0)&\"\")","v":""},"",{"$f":"IF(B217=\"\",\"\",IF(ISERROR(MATCH($J217,SorP!$B$1:$B$6230,0)),\"\",INDIRECT(\"'SorP'!$A$\"&MATCH($J217,SorP!$B$1:$B$6230,0))))","v":""},null,{"$f":"IF(C217=\"\",NA(),MATCH($B217&$C217,'Smelter Look-up'!$J:$J,0))","v":{"$error":"#N/A"}},null,0,null,null,null,""]
[null,{"$f":"IF(LEN(A218)=0,\"\",INDEX('Smelter Look-up'!$A:$A,MATCH($A218,'Smelter Look-up'!$E:$E,0)))","v":""},{"$f":"IF(LEN(A218)=0,\"\",INDEX('Smelter Look-up'!$C:$C,MATCH($A218,'Smelter Look-up'!$E:$E,0)))","v":""},null,{"$f":"IF(ISERROR($V218),\"\",OFFSET('Smelter Look-up'!$D$4,$V218-4,0)&\"\")","v":""},{"$f":"IF(ISERROR($V218),\"\",OFFSET('Smelter Look-up'!$E$4,$V218-4,0))","v":""},{"$f":"IF(C218=$X$4,\"Enter smelter details\", IF(ISERROR($V218),\"\",OFFSET('Smelter Look-up'!$F$4,$V218-4,0)))","v":""},{"$f":"IF(ISERROR($V218),\"\",OFFSET('Smelter Look-up'!$G$4,$V218-4,0))","v":""},{"$f":"IF(ISERROR($V218),\"\",OFFSET('Smelter Look-up'!$H$4,$V218-4,0))","v":""},{"$f":"IF(ISERROR($V218),\"\",OFFSET('Smelter Look-up'!$I$4,$V218-4,0))","v":""},{"$nulls":7},{"$f":"IF(ISERROR($V218),\"\",OFFSET('Smelter Look-up'!$C$4,$V218-4,0)&\"\")","v":""},"",{"$f":"IF(B218=\"\",\"\",IF(ISERROR(MATCH($J218,SorP!$B$1:$B$6230,0)),\"\",INDIRECT(\"'SorP'!$A$\"&MATCH($J218,SorP!$B$1:$B$6230,0))))","v":""},null,{"$f":"IF(C218=\"\",NA(),MATCH($B218&$C218,'Smelter Look-up'!$J:$J,0))","v":{"$error":"#N/A"}},null,0,null,null,null,""]
[null,{"$f":"IF(LEN(A219)=0,\"\",INDEX('Smelter Look-up'!$A:$A,MATCH($A219,'Smelter Look-up'!$E:$E,0)))","v":""},{"$f":"IF(LEN(A219)=0,\"\",INDEX('Smelter Look-up'!$C:$C,MATCH($A219,'Smelter Look-up'!$E:$E,0)))","v":""},null,{"$f":"IF(ISERROR($V219),\"\",OFFSET('Smelter Look-up'!$D$4,$V219-4,0)&\"\")","v":""},{"$f":"IF(ISERROR($V219),\"\",OFFSET('Smelter Look-up'!$E$4,$V219-4,0))","v":""},{"$f":"IF(C219=$X$4,\"Enter smelter details\", IF(ISERROR($V219),\"\",OFFSET('Smelter Look-up'!$F$4,$V219-4,0)))","v":""},{"$f":"IF(ISERROR($V219),\"\",OFFSET('Smelter Look-up'!$G$4,$V219-4,0))","v":""},{"$f":"IF(ISERROR($V219),\"\",OFFSET('Smelter Look-up'!$H$4,$V219-4,0))","v":""},{"$f":"IF(ISERROR($V219),\"\",OFFSET('Smelter Look-up'!$I$4,$V219-4,0))","v":""},{"$nulls":7},{"$f":"IF(ISERROR($V219),\"\",OFFSET('Smelter Look-up'!$C$4,$V219-4,0)&\"\")","v":""},"",{"$f":"IF(B219=\"\",\"\",IF(ISERROR(MATCH($J219,SorP!$B$1:$B$6230,0)),\"\",INDIRECT(\"'SorP'!$A$\"&MATCH($J219,SorP!$B$1:$B$6230,0))))","v":""},null,{"$f":"IF(C219=\"\",NA(),MATCH($B219&$C219,'Smelter Look-up'!$J:$J,0))","v":{"$error":"#N/A"}},null,0,null,null,null,""]
[null,{"$f":"IF(LEN(A220)=0,\"\",INDEX('Smelter Look-up'!$A:$A,MATCH($A220,'Smelter Look-up'!$E:$E,0)))","v":""},{"$f":"IF(LEN(A220)=0,\"\",INDEX('Smelter Look-up'!$C:$C,MATCH($A220,'Smelter Look-up'!$E:$E,0)))","v":""},null,{"$f":"IF(ISERROR($V220),\"\",OFFSET('Smelter Look-up'!$D$4,$V220-4,0)&\"\")","v":""},{"$f":"IF(ISERROR($V220),\"\",OFFSET('Smelter Look-up'!$E$4,$V220-4,0))","v":""},{"$f":"IF(C220=$X$4,\"Enter smelter details\", IF(ISERROR($V220),\"\",OFFSET('Smelter Look-up'!$F$4,$V220-4,0)))","v":""},{"$f":"IF(ISERROR($V220),\"\",OFFSET('Smelter Look-up'!$G$4,$V220-4,0))","v":""},{"$f":"IF(ISERROR($V220),\"\",OFFSET('Smelter Look-up'!$H$4,$V220-4,0))","v":""},{"$f":"IF(ISERROR($V220),\"\",OFFSET('Smelter Look-up'!$I$4,$V220-4,0))","v":""},{"$nulls":7},{"$f":"IF(ISERROR($V220),\"\",OFFSET('Smelter Look-up'!$C$4,$V220-4,0)&\"\")","v":""},"",{"$f":"IF(B220=\"\",\"\",IF(ISERROR(MATCH($J220,SorP!$B$1:$B$6230,0)),\"\",INDIRECT(\"'SorP'!$A$\"&MATCH($J220,SorP!$B$1:$B$6230,0))))","v":""},null,{"$f":"IF(C220=\"\",NA(),MATCH($B220&$C220,'Smelter Look-up'!$J:$J,0))","v":{"$error":"#N/A"}},null,0,null,null,null,""]
[null,{"$f":"IF(LEN(A221)=0,\"\",INDEX('Smelter Look-up'!$A:$A,MATCH($A221,'Smelter Look-up'!$E:$E,0)))","v":""},{"$f":"IF(LEN(A221)=0,\"\",INDEX('Smelter Look-up'!$C:$C,MATCH($A221,'Smelter Look-up'!$E:$E,0)))","v":""},null,{"$f":"IF(ISERROR($V221),\"\",OFFSET('Smelter Look-up'!$D$4,$V221-4,0)&\"\")","v":""},{"$f":"IF(ISERROR($V221),\"\",OFFSET('Smelter Look-up'!$E$4,$V221-4,0))","v":""},{"$f":"IF(C221=$X$4,\"Enter smelter details\", IF(ISERROR($V221),\"\",OFFSET('Smelter Look-up'!$F$4,$V221-4,0)))","v":""},{"$f":"IF(ISERROR($V221),\"\",OFFSET('Smelter Look-up'!$G$4,$V221-4,0))","v":""},{"$f":"IF(ISERROR($V221),\"\",OFFSET('Smelter Look-up'!$H$4,$V221-4,0))","v":""},{"$f":"IF(ISERROR($V221),\"\",OFFSET('Smelter Look-up'!$I$4,$V221-4,0))","v":""},{"$nulls":7},{"$f":"IF(ISERROR($V221),\"\",OFFSET('Smelter Look-up'!$C$4,$V221-4,0)&\"\")","v":""},"",{"$f":"IF(B221=\"\",\"\",IF(ISERROR(MATCH($J221,SorP!$B$1:$B$6230,0)),\"\",INDIRECT(\"'SorP'!$A$\"&MATCH($J221,SorP!$B$1:$B$6230,0))))","v":""},null,{"$f":"IF(C221=\"\",NA(),MATCH($B221&$C221,'Smelter Look-up'!$J:$J,0))","v":{"$error":"#N/A"}},null,0,null,null,null,""]
[null,{"$f":"IF(LEN(A222)=0,\"\",INDEX('Smelter Look-up'!$A:$A,MATCH($A222,'Smelter Look-up'!$E:$E,0)))","v":""},{"$f":"IF(LEN(A222)=0,\"\",INDEX('Smelter Look-up'!$C:$C,MATCH($A222,'Smelter Look-up'!$E:$E,0)))","v":""},null,{"$f":"IF(ISERROR($V222),\"\",OFFSET('Smelter Look-up'!$D$4,$V222-4,0)&\"\")","v":""},{"$f":"IF(ISERROR($V222),\"\",OFFSET('Smelter Look-up'!$E$4,$V222-4,0))","v":""},{"$f":"IF(C222=$X$4,\"Enter smelter details\", IF(ISERROR($V222),\"\",OFFSET('Smelter Look-up'!$F$4,$V222-4,0)))","v":""},{"$f":"IF(ISERROR($V222),\"\",OFFSET('Smelter Look-up'!$G$4,$V222-4,0))","v":""},{"$f":"IF(ISERROR($V222),\"\",OFFSET('Smelter Look-up'!$H$4,$V222-4,0))","v":""},{"$f":"IF(ISERROR($V222),\"\",OFFSET('Smelter Look-up'!$I$4,$V222-4,0))","v":""},{"$nulls":7},{"$f":"IF(ISERROR($V222),\"\",OFFSET('Smelter Look-up'!$C$4,$V222-4,0)&\"\")","v":""},"",{"$f":"IF(B222=\"\",\"\",IF(ISERROR(MATCH($J222,SorP!$B$1:$B$6230,0)),\"\",INDIRECT(\"'SorP'!$A$\"&MATCH($J222,SorP!$B$1:$B$6230,0))))","v":""},null,{"$f":"IF(C222=\"\",NA(),MATCH($B222&$C222,'Smelter Look-up'!$J:$J,0))","v":{"$error":"#N/A"}},null,0,null,null,null,""]
[null,{"$f":"IF(LEN(A223)=0,\"\",INDEX('Smelter Look-up'!$A:$A,MATCH($A223,'Smelter Look-up'!$E:$E,0)))","v":""},{"$f":"IF(LEN(A223)=0,\"\",INDEX('Smelter Look-up'!$C:$C,MATCH($A223,'Smelter Look-up'!$E:$E,0)))","v":""},null,{"$f":"IF(ISERROR($V223),\"\",OFFSET('Smelter Look-up'!$D$4,$V223-4,0)&\"\")","v":""},{"$f":"IF(ISERROR($V223),\"\",OFFSET('Smelter Look-up'!$E$4,$V223-4,0))","v":""},{"$f":"IF(C223=$X$4,\"Enter smelter details\", IF(ISERROR($V223),\"\",OFFSET('Smelter Look-up'!$F$4,$V223-4,0)))","v":""},{"$f":"IF(ISERROR($V223),\"\",OFFSET('Smelter Look-up'!$G$4,$V223-4,0))","v":""},{"$f":"IF(ISERROR($V223),\"\",OFFSET('Smelter Look-up'!$H$4,$V223-4,0))","v":""},{"$f":"IF(ISERROR($V223),\"\",OFFSET('Smelter Look-up'!$I$4,$V223-4,0))","v":""},{"$nulls":7},{"$f":"IF(ISERROR($V223),\"\",OFFSET('Smelter Look-up'!$C$4,$V223-4,0)&\"\")","v":""},"",{"$f":"IF(B223=\"\",\"\",IF(ISERROR(MATCH($J223,SorP!$B$1:$B$6230,0)),\"\",INDIRECT(\"'SorP'!$A$\"&MATCH($J223,SorP!$B$1:$B$6230,0))))","v":""},null,{"$f":"IF(C223=\"\",NA(),MATCH($B223&$C223,'Smelter Look-up'!$J:$J,0))","v":{"$error":"#N/A"}},null,0,null,null,null,""]
[null,{"$f":"IF(LEN(A224)=0,\"\",INDEX('Smelter Look-up'!$A:$A,MATCH($A224,'Smelter Look-up'!$E:$E,0)))","v":""},{"$f":"IF(LEN(A224)=0,\"\",INDEX('Smelter Look-up'!$C:$C,MATCH($A224,'Smelter Look-up'!$E:$E,0)))","v":""},null,{"$f":"IF(ISERROR($V224),\"\",OFFSET('Smelter Look-up'!$D$4,$V224-4,0)&\"\")","v":""},{"$f":"IF(ISERROR($V224),\"\",OFFSET('Smelter Look-up'!$E$4,$V224-4,0))","v":""},{"$f":"IF(C224=$X$4,\"Enter smelter details\", IF(ISERROR($V224),\"\",OFFSET('Smelter Look-up'!$F$4,$V224-4,0)))","v":""},{"$f":"IF(ISERROR($V224),\"\",OFFSET('Smelter Look-up'!$G$4,$V224-4,0))","v":""},{"$f":"IF(ISERROR($V224),\"\",OFFSET('Smelter Look-up'!$H$4,$V224-4,0))","v":""},{"$f":"IF(ISERROR($V224),\"\",OFFSET('Smelter Look-up'!$I$4,$V224-4,0))","v":""},{"$nulls":7},{"$f":"IF(ISERROR($V224),\"\",OFFSET('Smelter Look-up'!$C$4,$V224-4,0)&\"\")","v":""},"",{"$f":"IF(B224=\"\",\"\",IF(ISERROR(MATCH($J224,SorP!$B$1:$B$6230,0)),\"\",INDIRECT(\"'SorP'!$A$\"&MATCH($J224,SorP!$B$1:$B$6230,0))))","v":""},null,{"$f":"IF(C224=\"\",NA(),MATCH($B224&$C224,'Smelter Look-up'!$J:$J,0))","v":{"$error":"#N/A"}},null,0,null,null,null,""]
[null,{"$f":"IF(LEN(A225)=0,\"\",INDEX('Smelter Look-up'!$A:$A,MATCH($A225,'Smelter Look-up'!$E:$E,0)))","v":""},{"$f":"IF(LEN(A225)=0,\"\",INDEX('Smelter Look-up'!$C:$C,MATCH($A225,'Smelter Look-up'!$E:$E,0)))","v":""},null,{"$f":"IF(ISERROR($V225),\"\",OFFSET('Smelter Look-up'!$D$4,$V225-4,0)&\"\")","v":""},{"$f":"IF(ISERROR($V225),\"\",OFFSET('Smelter Look-up'!$E$4,$V225-4,0))","v":""},{"$f":"IF(C225=$X$4,\"Enter smelter details\", IF(ISERROR($V225),\"\",OFFSET('Smelter Look-up'!$F$4,$V225-4,0)))","v":""},{"$f":"IF(ISERROR($V225),\"\",OFFSET('Smelter Look-up'!$G$4,$V225-4,0))","v":""},{"$f":"IF(ISERROR($V225),\"\",OFFSET('Smelter Look-up'!$H$4,$V225-4,0))","v":""},{"$f":"IF(ISERROR($V225),\"\",OFFSET('Smelter Look-up'!$I$4,$V225-4,0))","v":""},{"$nulls":7},{"$f":"IF(ISERROR($V225),\"\",OFFSET('Smelter Look-up'!$C$4,$V225-4,0)&\"\")","v":""},"",{"$f":"IF(B225=\"\",\"\",IF(ISERROR(MATCH($J225,SorP!$B$1:$B$6230,0)),\"\",INDIRECT(\"'SorP'!$A$\"&MATCH($J225,SorP!$B$1:$B$6230,0))))","v":""},null,{"$f":"IF(C225=\"\",NA(),MATCH($B225&$C225,'Smelter Look-up'!$J:$J,0))","v":{"$error":"#N/A"}},null,0,null,null,null,""]
[null,{"$f":"IF(LEN(A226)=0,\"\",INDEX('Smelter Look-up'!$A:$A,MATCH($A226,'Smelter Look-up'!$E:$E,0)))","v":""},{"$f":"IF(LEN(A226)=0,\"\",INDEX('Smelter Look-up'!$C:$C,MATCH($A226,'Smelter Look-up'!$E:$E,0)))","v":""},null,{"$f":"IF(ISERROR($V226),\"\",OFFSET('Smelter Look-up'!$D$4,$V226-4,0)&\"\")","v":""},{"$f":"IF(ISERROR($V226),\"\",OFFSET('Smelter Look-up'!$E$4,$V226-4,0))","v":""},{"$f":"IF(C226=$X$4,\"Enter smelter details\", IF(ISERROR($V226),\"\",OFFSET('Smelter Look-up'!$F$4,$V226-4,0)))","v":""},{"$f":"IF(ISERROR($V226),\"\",OFFSET('Smelter Look-up'!$G$4,$V226-4,0))","v":""},{"$f":"IF(ISERROR($V226),\"\",OFFSET('Smelter Look-up'!$H$4,$V226-4,0))","v":""},{"$f":"IF(ISERROR($V226),\"\",OFFSET('Smelter Look-up'!$I$4,$V226-4,0))","v":""},{"$nulls":7},{"$f":"IF(ISERROR($V226),\"\",OFFSET('Smelter Look-up'!$C$4,$V226-4,0)&\"\")","v":""},"",{"$f":"IF(B226=\"\",\"\",IF(ISERROR(MATCH($J226,SorP!$B$1:$B$6230,0)),\"\",INDIRECT(\"'SorP'!$A$\"&MATCH($J226,SorP!$B$1:$B$6230,0))))","v":""},null,{"$f":"IF(C226=\"\",NA(),MATCH($B226&$C226,'Smelter Look-up'!$J:$J,0))","v":{"$error":"#N/A"}},null,0,null,null,null,""]
[null,{"$f":"IF(LEN(A227)=0,\"\",INDEX('Smelter Look-up'!$A:$A,MATCH($A227,'Smelter Look-up'!$E:$E,0)))","v":""},{"$f":"IF(LEN(A227)=0,\"\",INDEX('Smelter Look-up'!$C:$C,MATCH($A227,'Smelter Look-up'!$E:$E,0)))","v":""},null,{"$f":"IF(ISERROR($V227),\"\",OFFSET('Smelter Look-up'!$D$4,$V227-4,0)&\"\")","v":""},{"$f":"IF(ISERROR($V227),\"\",OFFSET('Smelter Look-up'!$E$4,$V227-4,0))","v":""},{"$f":"IF(C227=$X$4,\"Enter smelter details\", IF(ISERROR($V227),\"\",OFFSET('Smelter Look-up'!$F$4,$V227-4,0)))","v":""},{"$f":"IF(ISERROR($V227),\"\",OFFSET('Smelter Look-up'!$G$4,$V227-4,0))","v":""},{"$f":"IF(ISERROR($V227),\"\",OFFSET('Smelter Look-up'!$H$4,$V227-4,0))","v":""},{"$f":"IF(ISERROR($V227),\"\",OFFSET('Smelter Look-up'!$I$4,$V227-4,0))","v":""},{"$nulls":7},{"$f":"IF(ISERROR($V227),\"\",OFFSET('Smelter Look-up'!$C$4,$V227-4,0)&\"\")","v":""},"",{"$f":"IF(B227=\"\",\"\",IF(ISERROR(MATCH($J227,SorP!$B$1:$B$6230,0)),\"\",INDIRECT(\"'SorP'!$A$\"&MATCH($J227,SorP!$B$1:$B$6230,0))))","v":""},null,{"$f":"IF(C227=\"\",NA(),MATCH($B227&$C227,'Smelter Look-up'!$J:$J,0))","v":{"$error":"#N/A"}},null,0,null,null,null,""]
[null,{"$f":"IF(LEN(A228)=0,\"\",INDEX('Smelter Look-up'!$A:$A,MATCH($A228,'Smelter Look-up'!$E:$E,0)))","v":""},{"$f":"IF(LEN(A228)=0,\"\",INDEX('Smelter Look-up'!$C:$C,MATCH($A228,'Smelter Look-up'!$E:$E,0)))","v":""},null,{"$f":"IF(ISERROR($V228),\"\",OFFSET('Smelter Look-up'!$D$4,$V228-4,0)&\"\")","v":""},{"$f":"IF(ISERROR($V228),\"\",OFFSET('Smelter Look-up'!$E$4,$V228-4,0))","v":""},{"$f":"IF(C228=$X$4,\"Enter smelter details\", IF(ISERROR($V228),\"\",OFFSET('Smelter Look-up'!$F$4,$V228-4,0)))","v":""},{"$f":"IF(ISERROR($V228),\"\",OFFSET('Smelter Look-up'!$G$4,$V228-4,0))","v":""},{"$f":"IF(ISERROR($V228),\"\",OFFSET('Smelter Look-up'!$H$4,$V228-4,0))","v":""},{"$f":"IF(ISERROR($V228),\"\",OFFSET('Smelter Look-up'!$I$4,$V228-4,0))","v":""},{"$nulls":7},{"$f":"IF(ISERROR($V228),\"\",OFFSET('Smelter Look-up'!$C$4,$V228-4,0)&\"\")","v":""},"",{"$f":"IF(B228=\"\",\"\",IF(ISERROR(MATCH($J228,SorP!$B$1:$B$6230,0)),\"\",INDIRECT(\"'SorP'!$A$\"&MATCH($J228,SorP!$B$1:$B$6230,0))))","v":""},null,{"$f":"IF(C228=\"\",NA(),MATCH($B228&$C228,'Smelter Look-up'!$J:$J,0))","v":{"$error":"#N/A"}},null,0,null,null,null,""]
[null,{"$f":"IF(LEN(A229)=0,\"\",INDEX('Smelter Look-up'!$A:$A,MATCH($A229,'Smelter Look-up'!$E:$E,0)))","v":""},{"$f":"IF(LEN(A229)=0,\"\",INDEX('Smelter Look-up'!$C:$C,MATCH($A229,'Smelter Look-up'!$E:$E,0)))","v":""},null,{"$f":"IF(ISERROR($V229),\"\",OFFSET('Smelter Look-up'!$D$4,$V229-4,0)&\"\")","v":""},{"$f":"IF(ISERROR($V229),\"\",OFFSET('Smelter Look-up'!$E$4,$V229-4,0))","v":""},{"$f":"IF(C229=$X$4,\"Enter smelter details\", IF(ISERROR($V229),\"\",OFFSET('Smelter Look-up'!$F$4,$V229-4,0)))","v":""},{"$f":"IF(ISERROR($V229),\"\",OFFSET('Smelter Look-up'!$G$4,$V229-4,0))","v":""},{"$f":"IF(ISERROR($V229),\"\",OFFSET('Smelter Look-up'!$H$4,$V229-4,0))","v":""},{"$f":"IF(ISERROR($V229),\"\",OFFSET('Smelter Look-up'!$I$4,$V229-4,0))","v":""},{"$nulls":7},{"$f":"IF(ISERROR($V229),\"\",OFFSET('Smelter Look-up'!$C$4,$V229-4,0)&\"\")","v":""},"",{"$f":"IF(B229=\"\",\"\",IF(ISERROR(MATCH($J229,SorP!$B$1:$B$6230,0)),\"\",INDIRECT(\"'SorP'!$A$\"&MATCH($J229,SorP!$B$1:$B$6230,0))))","v":""},null,{"$f":"IF(C229=\"\",NA(),MATCH($B229&$C229,'Smelter Look-up'!$J:$J,0))","v":{"$error":"#N/A"}},null,0,null,null,null,""]
[null,{"$f":"IF(LEN(A230)=0,\"\",INDEX('Smelter Look-up'!$A:$A,MATCH($A230,'Smelter Look-up'!$E:$E,0)))","v":""},{"$f":"IF(LEN(A230)=0,\"\",INDEX('Smelter Look-up'!$C:$C,MATCH($A230,'Smelter Look-up'!$E:$E,0)))","v":""},null,{"$f":"IF(ISERROR($V230),\"\",OFFSET('Smelter Look-up'!$D$4,$V230-4,0)&\"\")","v":""},{"$f":"IF(ISERROR($V230),\"\",OFFSET('Smelter Look-up'!$E$4,$V230-4,0))","v":""},{"$f":"IF(C230=$X$4,\"Enter smelter details\", IF(ISERROR($V230),\"\",OFFSET('Smelter Look-up'!$F$4,$V230-4,0)))","v":""},{"$f":"IF(ISERROR($V230),\"\",OFFSET('Smelter Look-up'!$G$4,$V230-4,0))","v":""},{"$f":"IF(ISERROR($V230),\"\",OFFSET('Smelter Look-up'!$H$4,$V230-4,0))","v":""},{"$f":"IF(ISERROR($V230),\"\",OFFSET('Smelter Look-up'!$I$4,$V230-4,0))","v":""},{"$nulls":7},{"$f":"IF(ISERROR($V230),\"\",OFFSET('Smelter Look-up'!$C$4,$V230-4,0)&\"\")","v":""},"",{"$f":"IF(B230=\"\",\"\",IF(ISERROR(MATCH($J230,SorP!$B$1:$B$6230,0)),\"\",INDIRECT(\"'SorP'!$A$\"&MATCH($J230,SorP!$B$1:$B$6230,0))))","v":""},null,{"$f":"IF(C230=\"\",NA(),MATCH($B230&$C230,'Smelter Look-up'!$J:$J,0))","v":{"$error":"#N/A"}},null,0,null,null,null,""]
[null,{"$f":"IF(LEN(A231)=0,\"\",INDEX('Smelter Look-up'!$A:$A,MATCH($A231,'Smelter Look-up'!$E:$E,0)))","v":""},{"$f":"IF(LEN(A231)=0,\"\",INDEX('Smelter Look-up'!$C:$C,MATCH($A231,'Smelter Look-up'!$E:$E,0)))","v":""},null,{"$f":"IF(ISERROR($V231),\"\",OFFSET('Smelter Look-up'!$D$4,$V231-4,0)&\"\")","v":""},{"$f":"IF(ISERROR($V231),\"\",OFFSET('Smelter Look-up'!$E$4,$V231-4,0))","v":""},{"$f":"IF(C231=$X$4,\"Enter smelter details\", IF(ISERROR($V231),\"\",OFFSET('Smelter Look-up'!$F$4,$V231-4,0)))","v":""},{"$f":"IF(ISERROR($V231),\"\",OFFSET('Smelter Look-up'!$G$4,$V231-4,0))","v":""},{"$f":"IF(ISERROR($V231),\"\",OFFSET('Smelter Look-up'!$H$4,$V231-4,0))","v":""},{"$f":"IF(ISERROR($V231),\"\",OFFSET('Smelter Look-up'!$I$4,$V231-4,0))","v":""},{"$nulls":7},{"$f":"IF(ISERROR($V231),\"\",OFFSET('Smelter Look-up'!$C$4,$V231-4,0)&\"\")","v":""},"",{"$f":"IF(B231=\"\",\"\",IF(ISERROR(MATCH($J231,SorP!$B$1:$B$6230,0)),\"\",INDIRECT(\"'SorP'!$A$\"&MATCH($J231,SorP!$B$1:$B$6230,0))))","v":""},null,{"$f":"IF(C231=\"\",NA(),MATCH($B231&$C231,'Smelter Look-up'!$J:$J,0))","v":{"$error":"#N/A"}},null,0,null,null,null,""]
[null,{"$f":"IF(LEN(A232)=0,\"\",INDEX('Smelter Look-up'!$A:$A,MATCH($A232,'Smelter Look-up'!$E:$E,0)))","v":""},{"$f":"IF(LEN(A232)=0,\"\",INDEX('Smelter Look-up'!$C:$C,MATCH($A232,'Smelter Look-up'!$E:$E,0)))","v":""},null,{"$f":"IF(ISERROR($V232),\"\",OFFSET('Smelter Look-up'!$D$4,$V232-4,0)&\"\")","v":""},{"$f":"IF(ISERROR($V232),\"\",OFFSET('Smelter Look-up'!$E$4,$V232-4,0))","v":""},{"$f":"IF(C232=$X$4,\"Enter smelter details\", IF(ISERROR($V232),\"\",OFFSET('Smelter Look-up'!$F$4,$V232-4,0)))","v":""},{"$f":"IF(ISERROR($V232),\"\",OFFSET('Smelter Look-up'!$G$4,$V232-4,0))","v":""},{"$f":"IF(ISERROR($V232),\"\",OFFSET('Smelter Look-up'!$H$4,$V232-4,0))","v":""},{"$f":"IF(ISERROR($V232),\"\",OFFSET('Smelter Look-up'!$I$4,$V232-4,0))","v":""},{"$nulls":7},{"$f":"IF(ISERROR($V232),\"\",OFFSET('Smelter Look-up'!$C$4,$V232-4,0)&\"\")","v":""},"",{"$f":"IF(B232=\"\",\"\",IF(ISERROR(MATCH($J232,SorP!$B$1:$B$6230,0)),\"\",INDIRECT(\"'SorP'!$A$\"&MATCH($J232,SorP!$B$1:$B$6230,0))))","v":""},null,{"$f":"IF(C232=\"\",NA(),MATCH($B232&$C232,'Smelter Look-up'!$J:$J,0))","v":{"$error":"#N/A"}},null,0,null,null,null,""]
[null,{"$f":"IF(LEN(A233)=0,\"\",INDEX('Smelter Look-up'!$A:$A,MATCH($A233,'Smelter Look-up'!$E:$E,0)))","v":""},{"$f":"IF(LEN(A233)=0,\"\",INDEX('Smelter Look-up'!$C:$C,MATCH($A233,'Smelter Look-up'!$E:$E,0)))","v":""},null,{"$f":"IF(ISERROR($V233),\"\",OFFSET('Smelter Look-up'!$D$4,$V233-4,0)&\"\")","v":""},{"$f":"IF(ISERROR($V233),\"\",OFFSET('Smelter Look-up'!$E$4,$V233-4,0))","v":""},{"$f":"IF(C233=$X$4,\"Enter smelter details\", IF(ISERROR($V233),\"\",OFFSET('Smelter Look-up'!$F$4,$V233-4,0)))","v":""},{"$f":"IF(ISERROR($V233),\"\",OFFSET('Smelter Look-up'!$G$4,$V233-4,0))","v":""},{"$f":"IF(ISERROR($V233),\"\",OFFSET('Smelter Look-up'!$H$4,$V233-4,0))","v":""},{"$f":"IF(ISERROR($V233),\"\",OFFSET('Smelter Look-up'!$I$4,$V233-4,0))","v":""},{"$nulls":7},{"$f":"IF(ISERROR($V233),\"\",OFFSET('Smelter Look-up'!$C$4,$V233-4,0)&\"\")","v":""},"",{"$f":"IF(B233=\"\",\"\",IF(ISERROR(MATCH($J233,SorP!$B$1:$B$6230,0)),\"\",INDIRECT(\"'SorP'!$A$\"&MATCH($J233,SorP!$B$1:$B$6230,0))))","v":""},null,{"$f":"IF(C233=\"\",NA(),MATCH($B233&$C233,'Smelter Look-up'!$J:$J,0))","v":{"$error":"#N/A"}},null,0,null,null,null,""]
[null,{"$f":"IF(LEN(A234)=0,\"\",INDEX('Smelter Look-up'!$A:$A,MATCH($A234,'Smelter Look-up'!$E:$E,0)))","v":""},{"$f":"IF(LEN(A234)=0,\"\",INDEX('Smelter Look-up'!$C:$C,MATCH($A234,'Smelter Look-up'!$E:$E,0)))","v":""},null,{"$f":"IF(ISERROR($V234),\"\",OFFSET('Smelter Look-up'!$D$4,$V234-4,0)&\"\")","v":""},{"$f":"IF(ISERROR($V234),\"\",OFFSET('Smelter Look-up'!$E$4,$V234-4,0))","v":""},{"$f":"IF(C234=$X$4,\"Enter smelter details\", IF(ISERROR($V234),\"\",OFFSET('Smelter Look-up'!$F$4,$V234-4,0)))","v":""},{"$f":"IF(ISERROR($V234),\"\",OFFSET('Smelter Look-up'!$G$4,$V234-4,0))","v":""},{"$f":"IF(ISERROR($V234),\"\",OFFSET('Smelter Look-up'!$H$4,$V234-4,0))","v":""},{"$f":"IF(ISERROR($V234),\"\",OFFSET('Smelter Look-up'!$I$4,$V234-4,0))","v":""},{"$nulls":7},{"$f":"IF(ISERROR($V234),\"\",OFFSET('Smelter Look-up'!$C$4,$V234-4,0)&\"\")","v":""},"",{"$f":"IF(B234=\"\",\"\",IF(ISERROR(MATCH($J234,SorP!$B$1:$B$6230,0)),\"\",INDIRECT(\"'SorP'!$A$\"&MATCH($J234,SorP!$B$1:$B$6230,0))))","v":""},null,{"$f":"IF(C234=\"\",NA(),MATCH($B234&$C234,'Smelter Look-up'!$J:$J,0))","v":{"$error":"#N/A"}},null,0,null,null,null,""]
[null,{"$f":"IF(LEN(A235)=0,\"\",INDEX('Smelter Look-up'!$A:$A,MATCH($A235,'Smelter Look-up'!$E:$E,0)))","v":""},{"$f":"IF(LEN(A235)=0,\"\",INDEX('Smelter Look-up'!$C:$C,MATCH($A235,'Smelter Look-up'!$E:$E,0)))","v":""},null,{"$f":"IF(ISERROR($V235),\"\",OFFSET('Smelter Look-up'!$D$4,$V235-4,0)&\"\")","v":""},{"$f":"IF(ISERROR($V235),\"\",OFFSET('Smelter Look-up'!$E$4,$V235-4,0))","v":""},{"$f":"IF(C235=$X$4,\"Enter smelter details\", IF(ISERROR($V235),\"\",OFFSET('Smelter Look-up'!$F$4,$V235-4,0)))","v":""},{"$f":"IF(ISERROR($V235),\"\",OFFSET('Smelter Look-up'!$G$4,$V235-4,0))","v":""},{"$f":"IF(ISERROR($V235),\"\",OFFSET('Smelter Look-up'!$H$4,$V235-4,0))","v":""},{"$f":"IF(ISERROR($V235),\"\",OFFSET('Smelter Look-up'!$I$4,$V235-4,0))","v":""},{"$nulls":7},{"$f":"IF(ISERROR($V235),\"\",OFFSET('Smelter Look-up'!$C$4,$V235-4,0)&\"\")","v":""},"",{"$f":"IF(B235=\"\",\"\",IF(ISERROR(MATCH($J235,SorP!$B$1:$B$6230,0)),\"\",INDIRECT(\"'SorP'!$A$\"&MATCH($J235,SorP!$B$1:$B$6230,0))))","v":""},null,{"$f":"IF(C235=\"\",NA(),MATCH($B235&$C235,'Smelter Look-up'!$J:$J,0))","v":{"$error":"#N/A"}},null,0,null,null,null,""]
[null,{"$f":"IF(LEN(A236)=0,\"\",INDEX('Smelter Look-up'!$A:$A,MATCH($A236,'Smelter Look-up'!$E:$E,0)))","v":""},{"$f":"IF(LEN(A236)=0,\"\",INDEX('Smelter Look-up'!$C:$C,MATCH($A236,'Smelter Look-up'!$E:$E,0)))","v":""},null,{"$f":"IF(ISERROR($V236),\"\",OFFSET('Smelter Look-up'!$D$4,$V236-4,0)&\"\")","v":""},{"$f":"IF(ISERROR($V236),\"\",OFFSET('Smelter Look-up'!$E$4,$V236-4,0))","v":""},{"$f":"IF(C236=$X$4,\"Enter smelter details\", IF(ISERROR($V236),\"\",OFFSET('Smelter Look-up'!$F$4,$V236-4,0)))","v":""},{"$f":"IF(ISERROR($V236),\"\",OFFSET('Smelter Look-up'!$G$4,$V236-4,0))","v":""},{"$f":"IF(ISERROR($V236),\"\",OFFSET('Smelter Look-up'!$H$4,$V236-4,0))","v":""},{"$f":"IF(ISERROR($V236),\"\",OFFSET('Smelter Look-up'!$I$4,$V236-4,0))","v":""},{"$nulls":7},{"$f":"IF(ISERROR($V236),\"\",OFFSET('Smelter Look-up'!$C$4,$V236-4,0)&\"\")","v":""},"",{"$f":"IF(B236=\"\",\"\",IF(ISERROR(MATCH($J236,SorP!$B$1:$B$6230,0)),\"\",INDIRECT(\"'SorP'!$A$\"&MATCH($J236,SorP!$B$1:$B$6230,0))))","v":""},null,{"$f":"IF(C236=\"\",NA(),MATCH($B236&$C236,'Smelter Look-up'!$J:$J,0))","v":{"$error":"#N/A"}},null,0,null,null,null,""]
[null,{"$f":"IF(LEN(A237)=0,\"\",INDEX('Smelter Look-up'!$A:$A,MATCH($A237,'Smelter Look-up'!$E:$E,0)))","v":""},{"$f":"IF(LEN(A237)=0,\"\",INDEX('Smelter Look-up'!$C:$C,MATCH($A237,'Smelter Look-up'!$E:$E,0)))","v":""},null,{"$f":"IF(ISERROR($V237),\"\",OFFSET('Smelter Look-up'!$D$4,$V237-4,0)&\"\")","v":""},{"$f":"IF(ISERROR($V237),\"\",OFFSET('Smelter Look-up'!$E$4,$V237-4,0))","v":""},{"$f":"IF(C237=$X$4,\"Enter smelter details\", IF(ISERROR($V237),\"\",OFFSET('Smelter Look-up'!$F$4,$V237-4,0)))","v":""},{"$f":"IF(ISERROR($V237),\"\",OFFSET('Smelter Look-up'!$G$4,$V237-4,0))","v":""},{"$f":"IF(ISERROR($V237),\"\",OFFSET('Smelter Look-up'!$H$4,$V237-4,0))","v":""},{"$f":"IF(ISERROR($V237),\"\",OFFSET('Smelter Look-up'!$I$4,$V237-4,0))","v":""},{"$nulls":7},{"$f":"IF(ISERROR($V237),\"\",OFFSET('Smelter Look-up'!$C$4,$V237-4,0)&\"\")","v":""},"",{"$f":"IF(B237=\"\",\"\",IF(ISERROR(MATCH($J237,SorP!$B$1:$B$6230,0)),\"\",INDIRECT(\"'SorP'!$A$\"&MATCH($J237,SorP!$B$1:$B$6230,0))))","v":""},null,{"$f":"IF(C237=\"\",NA(),MATCH($B237&$C237,'Smelter Look-up'!$J:$J,0))","v":{"$error":"#N/A"}},null,0,null,null,null,""]
[null,{"$f":"IF(LEN(A238)=0,\"\",INDEX('Smelter Look-up'!$A:$A,MATCH($A238,'Smelter Look-up'!$E:$E,0)))","v":""},{"$f":"IF(LEN(A238)=0,\"\",INDEX('Smelter Look-up'!$C:$C,MATCH($A238,'Smelter Look-up'!$E:$E,0)))","v":""},null,{"$f":"IF(ISERROR($V238),\"\",OFFSET('Smelter Look-up'!$D$4,$V238-4,0)&\"\")","v":""},{"$f":"IF(ISERROR($V238),\"\",OFFSET('Smelter Look-up'!$E$4,$V238-4,0))","v":""},{"$f":"IF(C238=$X$4,\"Enter smelter details\", IF(ISERROR($V238),\"\",OFFSET('Smelter Look-up'!$F$4,$V238-4,0)))","v":""},{"$f":"IF(ISERROR($V238),\"\",OFFSET('Smelter Look-up'!$G$4,$V238-4,0))","v":""},{"$f":"IF(ISERROR($V238),\"\",OFFSET('Smelter Look-up'!$H$4,$V238-4,0))","v":""},{"$f":"IF(ISERROR($V238),\"\",OFFSET('Smelter Look-up'!$I$4,$V238-4,0))","v":""},{"$nulls":7},{"$f":"IF(ISERROR($V238),\"\",OFFSET('Smelter Look-up'!$C$4,$V238-4,0)&\"\")","v":""},"",{"$f":"IF(B238=\"\",\"\",IF(ISERROR(MATCH($J238,SorP!$B$1:$B$6230,0)),\"\",INDIRECT(\"'SorP'!$A$\"&MATCH($J238,SorP!$B$1:$B$6230,0))))","v":""},null,{"$f":"IF(C238=\"\",NA(),MATCH($B238&$C238,'Smelter Look-up'!$J:$J,0))","v":{"$error":"#N/A"}},null,0,null,null,null,""]
[null,{"$f":"IF(LEN(A239)=0,\"\",INDEX('Smelter Look-up'!$A:$A,MATCH($A239,'Smelter Look-up'!$E:$E,0)))","v":""},{"$f":"IF(LEN(A239)=0,\"\",INDEX('Smelter Look-up'!$C:$C,MATCH($A239,'Smelter Look-up'!$E:$E,0)))","v":""},null,{"$f":"IF(ISERROR($V239),\"\",OFFSET('Smelter Look-up'!$D$4,$V239-4,0)&\"\")","v":""},{"$f":"IF(ISERROR($V239),\"\",OFFSET('Smelter Look-up'!$E$4,$V239-4,0))","v":""},{"$f":"IF(C239=$X$4,\"Enter smelter details\", IF(ISERROR($V239),\"\",OFFSET('Smelter Look-up'!$F$4,$V239-4,0)))","v":""},{"$f":"IF(ISERROR($V239),\"\",OFFSET('Smelter Look-up'!$G$4,$V239-4,0))","v":""},{"$f":"IF(ISERROR($V239),\"\",OFFSET('Smelter Look-up'!$H$4,$V239-4,0))","v":""},{"$f":"IF(ISERROR($V239),\"\",OFFSET('Smelter Look-up'!$I$4,$V239-4,0))","v":""},{"$nulls":7},{"$f":"IF(ISERROR($V239),\"\",OFFSET('Smelter Look-up'!$C$4,$V239-4,0)&\"\")","v":""},"",{"$f":"IF(B239=\"\",\"\",IF(ISERROR(MATCH($J239,SorP!$B$1:$B$6230,0)),\"\",INDIRECT(\"'SorP'!$A$\"&MATCH($J239,SorP!$B$1:$B$6230,0))))","v":""},null,{"$f":"IF(C239=\"\",NA(),MATCH($B239&$C239,'Smelter Look-up'!$J:$J,0))","v":{"$error":"#N/A"}},null,0,null,null,null,""]
[null,{"$f":"IF(LEN(A240)=0,\"\",INDEX('Smelter Look-up'!$A:$A,MATCH($A240,'Smelter Look-up'!$E:$E,0)))","v":""},{"$f":"IF(LEN(A240)=0,\"\",INDEX('Smelter Look-up'!$C:$C,MATCH($A240,'Smelter Look-up'!$E:$E,0)))","v":""},null,{"$f":"IF(ISERROR($V240),\"\",OFFSET('Smelter Look-up'!$D$4,$V240-4,0)&\"\")","v":""},{"$f":"IF(ISERROR($V240),\"\",OFFSET('Smelter Look-up'!$E$4,$V240-4,0))","v":""},{"$f":"IF(C240=$X$4,\"Enter smelter details\", IF(ISERROR($V240),\"\",OFFSET('Smelter Look-up'!$F$4,$V240-4,0)))","v":""},{"$f":"IF(ISERROR($V240),\"\",OFFSET('Smelter Look-up'!$G$4,$V240-4,0))","v":""},{"$f":"IF(ISERROR($V240),\"\",OFFSET('Smelter Look-up'!$H$4,$V240-4,0))","v":""},{"$f":"IF(ISERROR($V240),\"\",OFFSET('Smelter Look-up'!$I$4,$V240-4,0))","v":""},{"$nulls":7},{"$f":"IF(ISERROR($V240),\"\",OFFSET('Smelter Look-up'!$C$4,$V240-4,0)&\"\")","v":""},"",{"$f":"IF(B240=\"\",\"\",IF(ISERROR(MATCH($J240,SorP!$B$1:$B$6230,0)),\"\",INDIRECT(\"'SorP'!$A$\"&MATCH($J240,SorP!$B$1:$B$6230,0))))","v":""},null,{"$f":"IF(C240=\"\",NA(),MATCH($B240&$C240,'Smelter Look-up'!$J:$J,0))","v":{"$error":"#N/A"}},null,0,null,null,null,""]
[null,{"$f":"IF(LEN(A241)=0,\"\",INDEX('Smelter Look-up'!$A:$A,MATCH($A241,'Smelter Look-up'!$E:$E,0)))","v":""},{"$f":"IF(LEN(A241)=0,\"\",INDEX('Smelter Look-up'!$C:$C,MATCH($A241,'Smelter Look-up'!$E:$E,0)))","v":""},null,{"$f":"IF(ISERROR($V241),\"\",OFFSET('Smelter Look-up'!$D$4,$V241-4,0)&\"\")","v":""},{"$f":"IF(ISERROR($V241),\"\",OFFSET('Smelter Look-up'!$E$4,$V241-4,0))","v":""},{"$f":"IF(C241=$X$4,\"Enter smelter details\", IF(ISERROR($V241),\"\",OFFSET('Smelter Look-up'!$F$4,$V241-4,0)))","v":""},{"$f":"IF(ISERROR($V241),\"\",OFFSET('Smelter Look-up'!$G$4,$V241-4,0))","v":""},{"$f":"IF(ISERROR($V241),\"\",OFFSET('Smelter Look-up'!$H$4,$V241-4,0))","v":""},{"$f":"IF(ISERROR($V241),\"\",OFFSET('Smelter Look-up'!$I$4,$V241-4,0))","v":""},{"$nulls":7},{"$f":"IF(ISERROR($V241),\"\",OFFSET('Smelter Look-up'!$C$4,$V241-4,0)&\"\")","v":""},"",{"$f":"IF(B241=\"\",\"\",IF(ISERROR(MATCH($J241,SorP!$B$1:$B$6230,0)),\"\",INDIRECT(\"'SorP'!$A$\"&MATCH($J241,SorP!$B$1:$B$6230,0))))","v":""},null,{"$f":"IF(C241=\"\",NA(),MATCH($B241&$C241,'Smelter Look-up'!$J:$J,0))","v":{"$error":"#N/A"}},null,0,null,null,null,""]
[null,{"$f":"IF(LEN(A242)=0,\"\",INDEX('Smelter Look-up'!$A:$A,MATCH($A242,'Smelter Look-up'!$E:$E,0)))","v":""},{"$f":"IF(LEN(A242)=0,\"\",INDEX('Smelter Look-up'!$C:$C,MATCH($A242,'Smelter Look-up'!$E:$E,0)))","v":""},null,{"$f":"IF(ISERROR($V242),\"\",OFFSET('Smelter Look-up'!$D$4,$V242-4,0)&\"\")","v":""},{"$f":"IF(ISERROR($V242),\"\",OFFSET('Smelter Look-up'!$E$4,$V242-4,0))","v":""},{"$f":"IF(C242=$X$4,\"Enter smelter details\", IF(ISERROR($V242),\"\",OFFSET('Smelter Look-up'!$F$4,$V242-4,0)))","v":""},{"$f":"IF(ISERROR($V242),\"\",OFFSET('Smelter Look-up'!$G$4,$V242-4,0))","v":""},{"$f":"IF(ISERROR($V242),\"\",OFFSET('Smelter Look-up'!$H$4,$V242-4,0))","v":""},{"$f":"IF(ISERROR($V242),\"\",OFFSET('Smelter Look-up'!$I$4,$V242-4,0))","v":""},{"$nulls":7},{"$f":"IF(ISERROR($V242),\"\",OFFSET('Smelter Look-up'!$C$4,$V242-4,0)&\"\")","v":""},"",{"$f":"IF(B242=\"\",\"\",IF(ISERROR(MATCH($J242,SorP!$B$1:$B$6230,0)),\"\",INDIRECT(\"'SorP'!$A$\"&MATCH($J242,SorP!$B$1:$B$6230,0))))","v":""},null,{"$f":"IF(C242=\"\",NA(),MATCH($B242&$C242,'Smelter Look-up'!$J:$J,0))","v":{"$error":"#N/A"}},null,0,null,null,null,""]
[null,{"$f":"IF(LEN(A243)=0,\"\",INDEX('Smelter Look-up'!$A:$A,MATCH($A243,'Smelter Look-up'!$E:$E,0)))","v":""},{"$f":"IF(LEN(A243)=0,\"\",INDEX('Smelter Look-up'!$C:$C,MATCH($A243,'Smelter Look-up'!$E:$E,0)))","v":""},null,{"$f":"IF(ISERROR($V243),\"\",OFFSET('Smelter Look-up'!$D$4,$V243-4,0)&\"\")","v":""},{"$f":"IF(ISERROR($V243),\"\",OFFSET('Smelter Look-up'!$E$4,$V243-4,0))","v":""},{"$f":"IF(C243=$X$4,\"Enter smelter details\", IF(ISERROR($V243),\"\",OFFSET('Smelter Look-up'!$F$4,$V243-4,0)))","v":""},{"$f":"IF(ISERROR($V243),\"\",OFFSET('Smelter Look-up'!$G$4,$V243-4,0))","v":""},{"$f":"IF(ISERROR($V243),\"\",OFFSET('Smelter Look-up'!$H$4,$V243-4,0))","v":""},{"$f":"IF(ISERROR($V243),\"\",OFFSET('Smelter Look-up'!$I$4,$V243-4,0))","v":""},{"$nulls":7},{"$f":"IF(ISERROR($V243),\"\",OFFSET('Smelter Look-up'!$C$4,$V243-4,0)&\"\")","v":""},"",{"$f":"IF(B243=\"\",\"\",IF(ISERROR(MATCH($J243,SorP!$B$1:$B$6230,0)),\"\",INDIRECT(\"'SorP'!$A$\"&MATCH($J243,SorP!$B$1:$B$6230,0))))","v":""},null,{"$f":"IF(C243=\"\",NA(),MATCH($B243&$C243,'Smelter Look-up'!$J:$J,0))","v":{"$error":"#N/A"}},null,0,null,null,null,""]
[null,{"$f":"IF(LEN(A244)=0,\"\",INDEX('Smelter Look-up'!$A:$A,MATCH($A244,'Smelter Look-up'!$E:$E,0)))","v":""},{"$f":"IF(LEN(A244)=0,\"\",INDEX('Smelter Look-up'!$C:$C,MATCH($A244,'Smelter Look-up'!$E:$E,0)))","v":""},null,{"$f":"IF(ISERROR($V244),\"\",OFFSET('Smelter Look-up'!$D$4,$V244-4,0)&\"\")","v":""},{"$f":"IF(ISERROR($V244),\"\",OFFSET('Smelter Look-up'!$E$4,$V244-4,0))","v":""},{"$f":"IF(C244=$X$4,\"Enter smelter details\", IF(ISERROR($V244),\"\",OFFSET('Smelter Look-up'!$F$4,$V244-4,0)))","v":""},{"$f":"IF(ISERROR($V244),\"\",OFFSET('Smelter Look-up'!$G$4,$V244-4,0))","v":""},{"$f":"IF(ISERROR($V244),\"\",OFFSET('Smelter Look-up'!$H$4,$V244-4,0))","v":""},{"$f":"IF(ISERROR($V244),\"\",OFFSET('Smelter Look-up'!$I$4,$V244-4,0))","v":""},{"$nulls":7},{"$f":"IF(ISERROR($V244),\"\",OFFSET('Smelter Look-up'!$C$4,$V244-4,0)&\"\")","v":""},"",{"$f":"IF(B244=\"\",\"\",IF(ISERROR(MATCH($J244,SorP!$B$1:$B$6230,0)),\"\",INDIRECT(\"'SorP'!$A$\"&MATCH($J244,SorP!$B$1:$B$6230,0))))","v":""},null,{"$f":"IF(C244=\"\",NA(),MATCH($B244&$C244,'Smelter Look-up'!$J:$J,0))","v":{"$error":"#N/A"}},null,0,null,null,null,""]
[null,{"$f":"IF(LEN(A245)=0,\"\",INDEX('Smelter Look-up'!$A:$A,MATCH($A245,'Smelter Look-up'!$E:$E,0)))","v":""},{"$f":"IF(LEN(A245)=0,\"\",INDEX('Smelter Look-up'!$C:$C,MATCH($A245,'Smelter Look-up'!$E:$E,0)))","v":""},null,{"$f":"IF(ISERROR($V245),\"\",OFFSET('Smelter Look-up'!$D$4,$V245-4,0)&\"\")","v":""},{"$f":"IF(ISERROR($V245),\"\",OFFSET('Smelter Look-up'!$E$4,$V245-4,0))","v":""},{"$f":"IF(C245=$X$4,\"Enter smelter details\", IF(ISERROR($V245),\"\",OFFSET('Smelter Look-up'!$F$4,$V245-4,0)))","v":""},{"$f":"IF(ISERROR($V245),\"\",OFFSET('Smelter Look-up'!$G$4,$V245-4,0))","v":""},{"$f":"IF(ISERROR($V245),\"\",OFFSET('Smelter Look-up'!$H$4,$V245-4,0))","v":""},{"$f":"IF(ISERROR($V245),\"\",OFFSET('Smelter Look-up'!$I$4,$V245-4,0))","v":""},{"$nulls":7},{"$f":"IF(ISERROR($V245),\"\",OFFSET('Smelter Look-up'!$C$4,$V245-4,0)&\"\")","v":""},"",{"$f":"IF(B245=\"\",\"\",IF(ISERROR(MATCH($J245,SorP!$B$1:$B$6230,0)),\"\",INDIRECT(\"'SorP'!$A$\"&MATCH($J245,SorP!$B$1:$B$6230,0))))","v":""},null,{"$f":"IF(C245=\"\",NA(),MATCH($B245&$C245,'Smelter Look-up'!$J:$J,0))","v":{"$error":"#N/A"}},null,0,null,null,null,""]
[null,{"$f":"IF(LEN(A246)=0,\"\",INDEX('Smelter Look-up'!$A:$A,MATCH($A246,'Smelter Look-up'!$E:$E,0)))","v":""},{"$f":"IF(LEN(A246)=0,\"\",INDEX('Smelter Look-up'!$C:$C,MATCH($A246,'Smelter Look-up'!$E:$E,0)))","v":""},null,{"$f":"IF(ISERROR($V246),\"\",OFFSET('Smelter Look-up'!$D$4,$V246-4,0)&\"\")","v":""},{"$f":"IF(ISERROR($V246),\"\",OFFSET('Smelter Look-up'!$E$4,$V246-4,0))","v":""},{"$f":"IF(C246=$X$4,\"Enter smelter details\", IF(ISERROR($V246),\"\",OFFSET('Smelter Look-up'!$F$4,$V246-4,0)))","v":""},{"$f":"IF(ISERROR($V246),\"\",OFFSET('Smelter Look-up'!$G$4,$V246-4,0))","v":""},{"$f":"IF(ISERROR($V246),\"\",OFFSET('Smelter Look-up'!$H$4,$V246-4,0))","v":""},{"$f":"IF(ISERROR($V246),\"\",OFFSET('Smelter Look-up'!$I$4,$V246-4,0))","v":""},{"$nulls":7},{"$f":"IF(ISERROR($V246),\"\",OFFSET('Smelter Look-up'!$C$4,$V246-4,0)&\"\")","v":""},"",{"$f":"IF(B246=\"\",\"\",IF(ISERROR(MATCH($J246,SorP!$B$1:$B$6230,0)),\"\",INDIRECT(\"'SorP'!$A$\"&MATCH($J246,SorP!$B$1:$B$6230,0))))","v":""},null,{"$f":"IF(C246=\"\",NA(),MATCH($B246&$C246,'Smelter Look-up'!$J:$J,0))","v":{"$error":"#N/A"}},null,0,null,null,null,""]
[null,{"$f":"IF(LEN(A247)=0,\"\",INDEX('Smelter Look-up'!$A:$A,MATCH($A247,'Smelter Look-up'!$E:$E,0)))","v":""},{"$f":"IF(LEN(A247)=0,\"\",INDEX('Smelter Look-up'!$C:$C,MATCH($A247,'Smelter Look-up'!$E:$E,0)))","v":""},null,{"$f":"IF(ISERROR($V247),\"\",OFFSET('Smelter Look-up'!$D$4,$V247-4,0)&\"\")","v":""},{"$f":"IF(ISERROR($V247),\"\",OFFSET('Smelter Look-up'!$E$4,$V247-4,0))","v":""},{"$f":"IF(C247=$X$4,\"Enter smelter details\", IF(ISERROR($V247),\"\",OFFSET('Smelter Look-up'!$F$4,$V247-4,0)))","v":""},{"$f":"IF(ISERROR($V247),\"\",OFFSET('Smelter Look-up'!$G$4,$V247-4,0))","v":""},{"$f":"IF(ISERROR($V247),\"\",OFFSET('Smelter Look-up'!$H$4,$V247-4,0))","v":""},{"$f":"IF(ISERROR($V247),\"\",OFFSET('Smelter Look-up'!$I$4,$V247-4,0))","v":""},{"$nulls":7},{"$f":"IF(ISERROR($V247),\"\",OFFSET('Smelter Look-up'!$C$4,$V247-4,0)&\"\")","v":""},"",{"$f":"IF(B247=\"\",\"\",IF(ISERROR(MATCH($J247,SorP!$B$1:$B$6230,0)),\"\",INDIRECT(\"'SorP'!$A$\"&MATCH($J247,SorP!$B$1:$B$6230,0))))","v":""},null,{"$f":"IF(C247=\"\",NA(),MATCH($B247&$C247,'Smelter Look-up'!$J:$J,0))","v":{"$error":"#N/A"}},null,0,null,null,null,""]
[null,{"$f":"IF(LEN(A248)=0,\"\",INDEX('Smelter Look-up'!$A:$A,MATCH($A248,'Smelter Look-up'!$E:$E,0)))","v":""},{"$f":"IF(LEN(A248)=0,\"\",INDEX('Smelter Look-up'!$C:$C,MATCH($A248,'Smelter Look-up'!$E:$E,0)))","v":""},null,{"$f":"IF(ISERROR($V248),\"\",OFFSET('Smelter Look-up'!$D$4,$V248-4,0)&\"\")","v":""},{"$f":"IF(ISERROR($V248),\"\",OFFSET('Smelter Look-up'!$E$4,$V248-4,0))","v":""},{"$f":"IF(C248=$X$4,\"Enter smelter details\", IF(ISERROR($V248),\"\",OFFSET('Smelter Look-up'!$F$4,$V248-4,0)))","v":""},{"$f":"IF(ISERROR($V248),\"\",OFFSET('Smelter Look-up'!$G$4,$V248-4,0))","v":""},{"$f":"IF(ISERROR($V248),\"\",OFFSET('Smelter Look-up'!$H$4,$V248-4,0))","v":""},{"$f":"IF(ISERROR($V248),\"\",OFFSET('Smelter Look-up'!$I$4,$V248-4,0))","v":""},{"$nulls":7},{"$f":"IF(ISERROR($V248),\"\",OFFSET('Smelter Look-up'!$C$4,$V248-4,0)&\"\")","v":""},"",{"$f":"IF(B248=\"\",\"\",IF(ISERROR(MATCH($J248,SorP!$B$1:$B$6230,0)),\"\",INDIRECT(\"'SorP'!$A$\"&MATCH($J248,SorP!$B$1:$B$6230,0))))","v":""},null,{"$f":"IF(C248=\"\",NA(),MATCH($B248&$C248,'Smelter Look-up'!$J:$J,0))","v":{"$error":"#N/A"}},null,0,null,null,null,""]
[null,{"$f":"IF(LEN(A249)=0,\"\",INDEX('Smelter Look-up'!$A:$A,MATCH($A249,'Smelter Look-up'!$E:$E,0)))","v":""},{"$f":"IF(LEN(A249)=0,\"\",INDEX('Smelter Look-up'!$C:$C,MATCH($A249,'Smelter Look-up'!$E:$E,0)))","v":""},null,{"$f":"IF(ISERROR($V249),\"\",OFFSET('Smelter Look-up'!$D$4,$V249-4,0)&\"\")","v":""},{"$f":"IF(ISERROR($V249),\"\",OFFSET('Smelter Look-up'!$E$4,$V249-4,0))","v":""},{"$f":"IF(C249=$X$4,\"Enter smelter details\", IF(ISERROR($V249),\"\",OFFSET('Smelter Look-up'!$F$4,$V249-4,0)))","v":""},{"$f":"IF(ISERROR($V249),\"\",OFFSET('Smelter Look-up'!$G$4,$V249-4,0))","v":""},{"$f":"IF(ISERROR($V249),\"\",OFFSET('Smelter Look-up'!$H$4,$V249-4,0))","v":""},{"$f":"IF(ISERROR($V249),\"\",OFFSET('Smelter Look-up'!$I$4,$V249-4,0))","v":""},{"$nulls":7},{"$f":"IF(ISERROR($V249),\"\",OFFSET('Smelter Look-up'!$C$4,$V249-4,0)&\"\")","v":""},"",{"$f":"IF(B249=\"\",\"\",IF(ISERROR(MATCH($J249,SorP!$B$1:$B$6230,0)),\"\",INDIRECT(\"'SorP'!$A$\"&MATCH($J249,SorP!$B$1:$B$6230,0))))","v":""},null,{"$f":"IF(C249=\"\",NA(),MATCH($B249&$C249,'Smelter Look-up'!$J:$J,0))","v":{"$error":"#N/A"}},null,0,null,null,null,""]
[null,{"$f":"IF(LEN(A250)=0,\"\",INDEX('Smelter Look-up'!$A:$A,MATCH($A250,'Smelter Look-up'!$E:$E,0)))","v":""},{"$f":"IF(LEN(A250)=0,\"\",INDEX('Smelter Look-up'!$C:$C,MATCH($A250,'Smelter Look-up'!$E:$E,0)))","v":""},null,{"$f":"IF(ISERROR($V250),\"\",OFFSET('Smelter Look-up'!$D$4,$V250-4,0)&\"\")","v":""},{"$f":"IF(ISERROR($V250),\"\",OFFSET('Smelter Look-up'!$E$4,$V250-4,0))","v":""},{"$f":"IF(C250=$X$4,\"Enter smelter details\", IF(ISERROR($V250),\"\",OFFSET('Smelter Look-up'!$F$4,$V250-4,0)))","v":""},{"$f":"IF(ISERROR($V250),\"\",OFFSET('Smelter Look-up'!$G$4,$V250-4,0))","v":""},{"$f":"IF(ISERROR($V250),\"\",OFFSET('Smelter Look-up'!$H$4,$V250-4,0))","v":""},{"$f":"IF(ISERROR($V250),\"\",OFFSET('Smelter Look-up'!$I$4,$V250-4,0))","v":""},{"$nulls":7},{"$f":"IF(ISERROR($V250),\"\",OFFSET('Smelter Look-up'!$C$4,$V250-4,0)&\"\")","v":""},"",{"$f":"IF(B250=\"\",\"\",IF(ISERROR(MATCH($J250,SorP!$B$1:$B$6230,0)),\"\",INDIRECT(\"'SorP'!$A$\"&MATCH($J250,SorP!$B$1:$B$6230,0))))","v":""},null,{"$f":"IF(C250=\"\",NA(),MATCH($B250&$C250,'Smelter Look-up'!$J:$J,0))","v":{"$error":"#N/A"}},null,0,null,null,null,""]
[null,{"$f":"IF(LEN(A251)=0,\"\",INDEX('Smelter Look-up'!$A:$A,MATCH($A251,'Smelter Look-up'!$E:$E,0)))","v":""},{"$f":"IF(LEN(A251)=0,\"\",INDEX('Smelter Look-up'!$C:$C,MATCH($A251,'Smelter Look-up'!$E:$E,0)))","v":""},null,{"$f":"IF(ISERROR($V251),\"\",OFFSET('Smelter Look-up'!$D$4,$V251-4,0)&\"\")","v":""},{"$f":"IF(ISERROR($V251),\"\",OFFSET('Smelter Look-up'!$E$4,$V251-4,0))","v":""},{"$f":"IF(C251=$X$4,\"Enter smelter details\", IF(ISERROR($V251),\"\",OFFSET('Smelter Look-up'!$F$4,$V251-4,0)))","v":""},{"$f":"IF(ISERROR($V251),\"\",OFFSET('Smelter Look-up'!$G$4,$V251-4,0))","v":""},{"$f":"IF(ISERROR($V251),\"\",OFFSET('Smelter Look-up'!$H$4,$V251-4,0))","v":""},{"$f":"IF(ISERROR($V251),\"\",OFFSET('Smelter Look-up'!$I$4,$V251-4,0))","v":""},{"$nulls":7},{"$f":"IF(ISERROR($V251),\"\",OFFSET('Smelter Look-up'!$C$4,$V251-4,0)&\"\")","v":""},{"$f":"IF(B251=\"\",\"\",IF(ISERROR(MATCH($E251,CL,0)),\"Unknown\",INDIRECT(\"'C'!$A$\"&MATCH($E251,CL,0)+1)))","v":""},{"$f":"IF(B251=\"\",\"\",IF(ISERROR(MATCH($J251,SorP!$B$1:$B$6230,0)),\"\",INDIRECT(\"'SorP'!$A$\"&MATCH($J251,SorP!$B$1:$B$6230,0))))","v":""},null,{"$f":"IF(C251=\"\",NA(),MATCH($B251&$C251,'Smelter Look-up'!$J:$J,0))","v":{"$error":"#N/A"}},null,{"$f":"IF(AND(C251=\"Smelter not listed\",OR(LEN(D251)=0,LEN(E251)=0)),1,0)","v":0},null,null,null,{"$f":"B251&C251","v":""}]
[null,{"$f":"IF(LEN(A252)=0,\"\",INDEX('Smelter Look-up'!$A:$A,MATCH($A252,'Smelter Look-up'!$E:$E,0)))","v":""},{"$f":"IF(LEN(A252)=0,\"\",INDEX('Smelter Look-up'!$C:$C,MATCH($A252,'Smelter Look-up'!$E:$E,0)))","v":""},null,{"$f":"IF(ISERROR($V252),\"\",OFFSET('Smelter Look-up'!$D$4,$V252-4,0)&\"\")","v":""},{"$f":"IF(ISERROR($V252),\"\",OFFSET('Smelter Look-up'!$E$4,$V252-4,0))","v":""},{"$f":"IF(C252=$X$4,\"Enter smelter details\", IF(ISERROR($V252),\"\",OFFSET('Smelter Look-up'!$F$4,$V252-4,0)))","v":""},{"$f":"IF(ISERROR($V252),\"\",OFFSET('Smelter Look-up'!$G$4,$V252-4,0))","v":""},{"$f":"IF(ISERROR($V252),\"\",OFFSET('Smelter Look-up'!$H$4,$V252-4,0))","v":""},{"$f":"IF(ISERROR($V252),\"\",OFFSET('Smelter Look-up'!$I$4,$V252-4,0))","v":""},{"$nulls":7},{"$f":"IF(ISERROR($V252),\"\",OFFSET('Smelter Look-up'!$C$4,$V252-4,0)&\"\")","v":""},"",{"$f":"IF(B252=\"\",\"\",IF(ISERROR(MATCH($J252,SorP!$B$1:$B$6230,0)),\"\",INDIRECT(\"'SorP'!$A$\"&MATCH($J252,SorP!$B$1:$B$6230,0))))","v":""},null,{"$f":"IF(C252=\"\",NA(),MATCH($B252&$C252,'Smelter Look-up'!$J:$J,0))","v":{"$error":"#N/A"}},null,0,null,null,null,""]
[null,{"$f":"IF(LEN(A253)=0,\"\",INDEX('Smelter Look-up'!$A:$A,MATCH($A253,'Smelter Look-up'!$E:$E,0)))","v":""},{"$f":"IF(LEN(A253)=0,\"\",INDEX('Smelter Look-up'!$C:$C,MATCH($A253,'Smelter Look-up'!$E:$E,0)))","v":""},null,{"$f":"IF(ISERROR($V253),\"\",OFFSET('Smelter Look-up'!$D$4,$V253-4,0)&\"\")","v":""},{"$f":"IF(ISERROR($V253),\"\",OFFSET('Smelter Look-up'!$E$4,$V253-4,0))","v":""},{"$f":"IF(C253=$X$4,\"Enter smelter details\", IF(ISERROR($V253),\"\",OFFSET('Smelter Look-up'!$F$4,$V253-4,0)))","v":""},{"$f":"IF(ISERROR($V253),\"\",OFFSET('Smelter Look-up'!$G$4,$V253-4,0))","v":""},{"$f":"IF(ISERROR($V253),\"\",OFFSET('Smelter Look-up'!$H$4,$V253-4,0))","v":""},{"$f":"IF(ISERROR($V253),\"\",OFFSET('Smelter Look-up'!$I$4,$V253-4,0))","v":""},{"$nulls":7},{"$f":"IF(ISERROR($V253),\"\",OFFSET('Smelter Look-up'!$C$4,$V253-4,0)&\"\")","v":""},"",{"$f":"IF(B253=\"\",\"\",IF(ISERROR(MATCH($J253,SorP!$B$1:$B$6230,0)),\"\",INDIRECT(\"'SorP'!$A$\"&MATCH($J253,SorP!$B$1:$B$6230,0))))","v":""},null,{"$f":"IF(C253=\"\",NA(),MATCH($B253&$C253,'Smelter Look-up'!$J:$J,0))","v":{"$error":"#N/A"}},null,0,null,null,null,""]
[null,{"$f":"IF(LEN(A254)=0,\"\",INDEX('Smelter Look-up'!$A:$A,MATCH($A254,'Smelter Look-up'!$E:$E,0)))","v":""},{"$f":"IF(LEN(A254)=0,\"\",INDEX('Smelter Look-up'!$C:$C,MATCH($A254,'Smelter Look-up'!$E:$E,0)))","v":""},null,{"$f":"IF(ISERROR($V254),\"\",OFFSET('Smelter Look-up'!$D$4,$V254-4,0)&\"\")","v":""},{"$f":"IF(ISERROR($V254),\"\",OFFSET('Smelter Look-up'!$E$4,$V254-4,0))","v":""},{"$f":"IF(C254=$X$4,\"Enter smelter details\", IF(ISERROR($V254),\"\",OFFSET('Smelter Look-up'!$F$4,$V254-4,0)))","v":""},{"$f":"IF(ISERROR($V254),\"\",OFFSET('Smelter Look-up'!$G$4,$V254-4,0))","v":""},{"$f":"IF(ISERROR($V254),\"\",OFFSET('Smelter Look-up'!$H$4,$V254-4,0))","v":""},{"$f":"IF(ISERROR($V254),\"\",OFFSET('Smelter Look-up'!$I$4,$V254-4,0))","v":""},{"$nulls":7},{"$f":"IF(ISERROR($V254),\"\",OFFSET('Smelter Look-up'!$C$4,$V254-4,0)&\"\")","v":""},"",{"$f":"IF(B254=\"\",\"\",IF(ISERROR(MATCH($J254,SorP!$B$1:$B$6230,0)),\"\",INDIRECT(\"'SorP'!$A$\"&MATCH($J254,SorP!$B$1:$B$6230,0))))","v":""},null,{"$f":"IF(C254=\"\",NA(),MATCH($B254&$C254,'Smelter Look-up'!$J:$J,0))","v":{"$error":"#N/A"}},null,0,null,null,null,""]
[null,{"$f":"IF(LEN(A255)=0,\"\",INDEX('Smelter Look-up'!$A:$A,MATCH($A255,'Smelter Look-up'!$E:$E,0)))","v":""},{"$f":"IF(LEN(A255)=0,\"\",INDEX('Smelter Look-up'!$C:$C,MATCH($A255,'Smelter Look-up'!$E:$E,0)))","v":""},null,{"$f":"IF(ISERROR($V255),\"\",OFFSET('Smelter Look-up'!$D$4,$V255-4,0)&\"\")","v":""},{"$f":"IF(ISERROR($V255),\"\",OFFSET('Smelter Look-up'!$E$4,$V255-4,0))","v":""},{"$f":"IF(C255=$X$4,\"Enter smelter details\", IF(ISERROR($V255),\"\",OFFSET('Smelter Look-up'!$F$4,$V255-4,0)))","v":""},{"$f":"IF(ISERROR($V255),\"\",OFFSET('Smelter Look-up'!$G$4,$V255-4,0))","v":""},{"$f":"IF(ISERROR($V255),\"\",OFFSET('Smelter Look-up'!$H$4,$V255-4,0))","v":""},{"$f":"IF(ISERROR($V255),\"\",OFFSET('Smelter Look-up'!$I$4,$V255-4,0))","v":""},{"$nulls":7},{"$f":"IF(ISERROR($V255),\"\",OFFSET('Smelter Look-up'!$C$4,$V255-4,0)&\"\")","v":""},"",{"$f":"IF(B255=\"\",\"\",IF(ISERROR(MATCH($J255,SorP!$B$1:$B$6230,0)),\"\",INDIRECT(\"'SorP'!$A$\"&MATCH($J255,SorP!$B$1:$B$6230,0))))","v":""},null,{"$f":"IF(C255=\"\",NA(),MATCH($B255&$C255,'Smelter Look-up'!$J:$J,0))","v":{"$error":"#N/A"}},null,0,null,null,null,""]
[null,{"$f":"IF(LEN(A256)=0,\"\",INDEX('Smelter Look-up'!$A:$A,MATCH($A256,'Smelter Look-up'!$E:$E,0)))","v":""},{"$f":"IF(LEN(A256)=0,\"\",INDEX('Smelter Look-up'!$C:$C,MATCH($A256,'Smelter Look-up'!$E:$E,0)))","v":""},null,{"$f":"IF(ISERROR($V256),\"\",OFFSET('Smelter Look-up'!$D$4,$V256-4,0)&\"\")","v":""},{"$f":"IF(ISERROR($V256),\"\",OFFSET('Smelter Look-up'!$E$4,$V256-4,0))","v":""},{"$f":"IF(C256=$X$4,\"Enter smelter details\", IF(ISERROR($V256),\"\",OFFSET('Smelter Look-up'!$F$4,$V256-4,0)))","v":""},{"$f":"IF(ISERROR($V256),\"\",OFFSET('Smelter Look-up'!$G$4,$V256-4,0))","v":""},{"$f":"IF(ISERROR($V256),\"\",OFFSET('Smelter Look-up'!$H$4,$V256-4,0))","v":""},{"$f":"IF(ISERROR($V256),\"\",OFFSET('Smelter Look-up'!$I$4,$V256-4,0))","v":""},{"$nulls":7},{"$f":"IF(ISERROR($V256),\"\",OFFSET('Smelter Look-up'!$C$4,$V256-4,0)&\"\")","v":""},"",{"$f":"IF(B256=\"\",\"\",IF(ISERROR(MATCH($J256,SorP!$B$1:$B$6230,0)),\"\",INDIRECT(\"'SorP'!$A$\"&MATCH($J256,SorP!$B$1:$B$6230,0))))","v":""},null,{"$f":"IF(C256=\"\",NA(),MATCH($B256&$C256,'Smelter Look-up'!$J:$J,0))","v":{"$error":"#N/A"}},null,0,null,null,null,""]
[null,{"$f":"IF(LEN(A257)=0,\"\",INDEX('Smelter Look-up'!$A:$A,MATCH($A257,'Smelter Look-up'!$E:$E,0)))","v":""},{"$f":"IF(LEN(A257)=0,\"\",INDEX('Smelter Look-up'!$C:$C,MATCH($A257,'Smelter Look-up'!$E:$E,0)))","v":""},null,{"$f":"IF(ISERROR($V257),\"\",OFFSET('Smelter Look-up'!$D$4,$V257-4,0)&\"\")","v":""},{"$f":"IF(ISERROR($V257),\"\",OFFSET('Smelter Look-up'!$E$4,$V257-4,0))","v":""},{"$f":"IF(C257=$X$4,\"Enter smelter details\", IF(ISERROR($V257),\"\",OFFSET('Smelter Look-up'!$F$4,$V257-4,0)))","v":""},{"$f":"IF(ISERROR($V257),\"\",OFFSET('Smelter Look-up'!$G$4,$V257-4,0))","v":""},{"$f":"IF(ISERROR($V257),\"\",OFFSET('Smelter Look-up'!$H$4,$V257-4,0))","v":""},{"$f":"IF(ISERROR($V257),\"\",OFFSET('Smelter Look-up'!$I$4,$V257-4,0))","v":""},{"$nulls":7},{"$f":"IF(ISERROR($V257),\"\",OFFSET('Smelter Look-up'!$C$4,$V257-4,0)&\"\")","v":""},"",{"$f":"IF(B257=\"\",\"\",IF(ISERROR(MATCH($J257,SorP!$B$1:$B$6230,0)),\"\",INDIRECT(\"'SorP'!$A$\"&MATCH($J257,SorP!$B$1:$B$6230,0))))","v":""},null,{"$f":"IF(C257=\"\",NA(),MATCH($B257&$C257,'Smelter Look-up'!$J:$J,0))","v":{"$error":"#N/A"}},null,0,null,null,null,""]
[null,{"$f":"IF(LEN(A258)=0,\"\",INDEX('Smelter Look-up'!$A:$A,MATCH($A258,'Smelter Look-up'!$E:$E,0)))","v":""},{"$f":"IF(LEN(A258)=0,\"\",INDEX('Smelter Look-up'!$C:$C,MATCH($A258,'Smelter Look-up'!$E:$E,0)))","v":""},null,{"$f":"IF(ISERROR($V258),\"\",OFFSET('Smelter Look-up'!$D$4,$V258-4,0)&\"\")","v":""},{"$f":"IF(ISERROR($V258),\"\",OFFSET('Smelter Look-up'!$E$4,$V258-4,0))","v":""},{"$f":"IF(C258=$X$4,\"Enter smelter details\", IF(ISERROR($V258),\"\",OFFSET('Smelter Look-up'!$F$4,$V258-4,0)))","v":""},{"$f":"IF(ISERROR($V258),\"\",OFFSET('Smelter Look-up'!$G$4,$V258-4,0))","v":""},{"$f":"IF(ISERROR($V258),\"\",OFFSET('Smelter Look-up'!$H$4,$V258-4,0))","v":""},{"$f":"IF(ISERROR($V258),\"\",OFFSET('Smelter Look-up'!$I$4,$V258-4,0))","v":""},{"$nulls":7},{"$f":"IF(ISERROR($V258),\"\",OFFSET('Smelter Look-up'!$C$4,$V258-4,0)&\"\")","v":""},"",{"$f":"IF(B258=\"\",\"\",IF(ISERROR(MATCH($J258,SorP!$B$1:$B$6230,0)),\"\",INDIRECT(\"'SorP'!$A$\"&MATCH($J258,SorP!$B$1:$B$6230,0))))","v":""},null,{"$f":"IF(C258=\"\",NA(),MATCH($B258&$C258,'Smelter Look-up'!$J:$J,0))","v":{"$error":"#N/A"}},null,0,null,null,null,""]
[null,{"$f":"IF(LEN(A259)=0,\"\",INDEX('Smelter Look-up'!$A:$A,MATCH($A259,'Smelter Look-up'!$E:$E,0)))","v":""},{"$f":"IF(LEN(A259)=0,\"\",INDEX('Smelter Look-up'!$C:$C,MATCH($A259,'Smelter Look-up'!$E:$E,0)))","v":""},null,{"$f":"IF(ISERROR($V259),\"\",OFFSET('Smelter Look-up'!$D$4,$V259-4,0)&\"\")","v":""},{"$f":"IF(ISERROR($V259),\"\",OFFSET('Smelter Look-up'!$E$4,$V259-4,0))","v":""},{"$f":"IF(C259=$X$4,\"Enter smelter details\", IF(ISERROR($V259),\"\",OFFSET('Smelter Look-up'!$F$4,$V259-4,0)))","v":""},{"$f":"IF(ISERROR($V259),\"\",OFFSET('Smelter Look-up'!$G$4,$V259-4,0))","v":""},{"$f":"IF(ISERROR($V259),\"\",OFFSET('Smelter Look-up'!$H$4,$V259-4,0))","v":""},{"$f":"IF(ISERROR($V259),\"\",OFFSET('Smelter Look-up'!$I$4,$V259-4,0))","v":""},{"$nulls":7},{"$f":"IF(ISERROR($V259),\"\",OFFSET('Smelter Look-up'!$C$4,$V259-4,0)&\"\")","v":""},"",{"$f":"IF(B259=\"\",\"\",IF(ISERROR(MATCH($J259,SorP!$B$1:$B$6230,0)),\"\",INDIRECT(\"'SorP'!$A$\"&MATCH($J259,SorP!$B$1:$B$6230,0))))","v":""},null,{"$f":"IF(C259=\"\",NA(),MATCH($B259&$C259,'Smelter Look-up'!$J:$J,0))","v":{"$error":"#N/A"}},null,0,null,null,null,""]
[null,{"$f":"IF(LEN(A260)=0,\"\",INDEX('Smelter Look-up'!$A:$A,MATCH($A260,'Smelter Look-up'!$E:$E,0)))","v":""},{"$f":"IF(LEN(A260)=0,\"\",INDEX('Smelter Look-up'!$C:$C,MATCH($A260,'Smelter Look-up'!$E:$E,0)))","v":""},null,{"$f":"IF(ISERROR($V260),\"\",OFFSET('Smelter Look-up'!$D$4,$V260-4,0)&\"\")","v":""},{"$f":"IF(ISERROR($V260),\"\",OFFSET('Smelter Look-up'!$E$4,$V260-4,0))","v":""},{"$f":"IF(C260=$X$4,\"Enter smelter details\", IF(ISERROR($V260),\"\",OFFSET('Smelter Look-up'!$F$4,$V260-4,0)))","v":""},{"$f":"IF(ISERROR($V260),\"\",OFFSET('Smelter Look-up'!$G$4,$V260-4,0))","v":""},{"$f":"IF(ISERROR($V260),\"\",OFFSET('Smelter Look-up'!$H$4,$V260-4,0))","v":""},{"$f":"IF(ISERROR($V260),\"\",OFFSET('Smelter Look-up'!$I$4,$V260-4,0))","v":""},{"$nulls":7},{"$f":"IF(ISERROR($V260),\"\",OFFSET('Smelter Look-up'!$C$4,$V260-4,0)&\"\")","v":""},"",{"$f":"IF(B260=\"\",\"\",IF(ISERROR(MATCH($J260,SorP!$B$1:$B$6230,0)),\"\",INDIRECT(\"'SorP'!$A$\"&MATCH($J260,SorP!$B$1:$B$6230,0))))","v":""},null,{"$f":"IF(C260=\"\",NA(),MATCH($B260&$C260,'Smelter Look-up'!$J:$J,0))","v":{"$error":"#N/A"}},null,0,null,null,null,""]
[null,{"$f":"IF(LEN(A261)=0,\"\",INDEX('Smelter Look-up'!$A:$A,MATCH($A261,'Smelter Look-up'!$E:$E,0)))","v":""},{"$f":"IF(LEN(A261)=0,\"\",INDEX('Smelter Look-up'!$C:$C,MATCH($A261,'Smelter Look-up'!$E:$E,0)))","v":""},null,{"$f":"IF(ISERROR($V261),\"\",OFFSET('Smelter Look-up'!$D$4,$V261-4,0)&\"\")","v":""},{"$f":"IF(ISERROR($V261),\"\",OFFSET('Smelter Look-up'!$E$4,$V261-4,0))","v":""},{"$f":"IF(C261=$X$4,\"Enter smelter details\", IF(ISERROR($V261),\"\",OFFSET('Smelter Look-up'!$F$4,$V261-4,0)))","v":""},{"$f":"IF(ISERROR($V261),\"\",OFFSET('Smelter Look-up'!$G$4,$V261-4,0))","v":""},{"$f":"IF(ISERROR($V261),\"\",OFFSET('Smelter Look-up'!$H$4,$V261-4,0))","v":""},{"$f":"IF(ISERROR($V261),\"\",OFFSET('Smelter Look-up'!$I$4,$V261-4,0))","v":""},{"$nulls":7},{"$f":"IF(ISERROR($V261),\"\",OFFSET('Smelter Look-up'!$C$4,$V261-4,0)&\"\")","v":""},"",{"$f":"IF(B261=\"\",\"\",IF(ISERROR(MATCH($J261,SorP!$B$1:$B$6230,0)),\"\",INDIRECT(\"'SorP'!$A$\"&MATCH($J261,SorP!$B$1:$B$6230,0))))","v":""},null,{"$f":"IF(C261=\"\",NA(),MATCH($B261&$C261,'Smelter Look-up'!$J:$J,0))","v":{"$error":"#N/A"}},null,0,null,null,null,""]
[null,{"$f":"IF(LEN(A262)=0,\"\",INDEX('Smelter Look-up'!$A:$A,MATCH($A262,'Smelter Look-up'!$E:$E,0)))","v":""},{"$f":"IF(LEN(A262)=0,\"\",INDEX('Smelter Look-up'!$C:$C,MATCH($A262,'Smelter Look-up'!$E:$E,0)))","v":""},null,{"$f":"IF(ISERROR($V262),\"\",OFFSET('Smelter Look-up'!$D$4,$V262-4,0)&\"\")","v":""},{"$f":"IF(ISERROR($V262),\"\",OFFSET('Smelter Look-up'!$E$4,$V262-4,0))","v":""},{"$f":"IF(C262=$X$4,\"Enter smelter details\", IF(ISERROR($V262),\"\",OFFSET('Smelter Look-up'!$F$4,$V262-4,0)))","v":""},{"$f":"IF(ISERROR($V262),\"\",OFFSET('Smelter Look-up'!$G$4,$V262-4,0))","v":""},{"$f":"IF(ISERROR($V262),\"\",OFFSET('Smelter Look-up'!$H$4,$V262-4,0))","v":""},{"$f":"IF(ISERROR($V262),\"\",OFFSET('Smelter Look-up'!$I$4,$V262-4,0))","v":""},{"$nulls":7},{"$f":"IF(ISERROR($V262),\"\",OFFSET('Smelter Look-up'!$C$4,$V262-4,0)&\"\")","v":""},"",{"$f":"IF(B262=\"\",\"\",IF(ISERROR(MATCH($J262,SorP!$B$1:$B$6230,0)),\"\",INDIRECT(\"'SorP'!$A$\"&MATCH($J262,SorP!$B$1:$B$6230,0))))","v":""},null,{"$f":"IF(C262=\"\",NA(),MATCH($B262&$C262,'Smelter Look-up'!$J:$J,0))","v":{"$error":"#N/A"}},null,0,null,null,null,""]
[null,{"$f":"IF(LEN(A263)=0,\"\",INDEX('Smelter Look-up'!$A:$A,MATCH($A263,'Smelter Look-up'!$E:$E,0)))","v":""},{"$f":"IF(LEN(A263)=0,\"\",INDEX('Smelter Look-up'!$C:$C,MATCH($A263,'Smelter Look-up'!$E:$E,0)))","v":""},null,{"$f":"IF(ISERROR($V263),\"\",OFFSET('Smelter Look-up'!$D$4,$V263-4,0)&\"\")","v":""},{"$f":"IF(ISERROR($V263),\"\",OFFSET('Smelter Look-up'!$E$4,$V263-4,0))","v":""},{"$f":"IF(C263=$X$4,\"Enter smelter details\", IF(ISERROR($V263),\"\",OFFSET('Smelter Look-up'!$F$4,$V263-4,0)))","v":""},{"$f":"IF(ISERROR($V263),\"\",OFFSET('Smelter Look-up'!$G$4,$V263-4,0))","v":""},{"$f":"IF(ISERROR($V263),\"\",OFFSET('Smelter Look-up'!$H$4,$V263-4,0))","v":""},{"$f":"IF(ISERROR($V263),\"\",OFFSET('Smelter Look-up'!$I$4,$V263-4,0))","v":""},{"$nulls":7},{"$f":"IF(ISERROR($V263),\"\",OFFSET('Smelter Look-up'!$C$4,$V263-4,0)&\"\")","v":""},"",{"$f":"IF(B263=\"\",\"\",IF(ISERROR(MATCH($J263,SorP!$B$1:$B$6230,0)),\"\",INDIRECT(\"'SorP'!$A$\"&MATCH($J263,SorP!$B$1:$B$6230,0))))","v":""},null,{"$f":"IF(C263=\"\",NA(),MATCH($B263&$C263,'Smelter Look-up'!$J:$J,0))","v":{"$error":"#N/A"}},null,0,null,null,null,""]
[null,{"$f":"IF(LEN(A264)=0,\"\",INDEX('Smelter Look-up'!$A:$A,MATCH($A264,'Smelter Look-up'!$E:$E,0)))","v":""},{"$f":"IF(LEN(A264)=0,\"\",INDEX('Smelter Look-up'!$C:$C,MATCH($A264,'Smelter Look-up'!$E:$E,0)))","v":""},null,{"$f":"IF(ISERROR($V264),\"\",OFFSET('Smelter Look-up'!$D$4,$V264-4,0)&\"\")","v":""},{"$f":"IF(ISERROR($V264),\"\",OFFSET('Smelter Look-up'!$E$4,$V264-4,0))","v":""},{"$f":"IF(C264=$X$4,\"Enter smelter details\", IF(ISERROR($V264),\"\",OFFSET('Smelter Look-up'!$F$4,$V264-4,0)))","v":""},{"$f":"IF(ISERROR($V264),\"\",OFFSET('Smelter Look-up'!$G$4,$V264-4,0))","v":""},{"$f":"IF(ISERROR($V264),\"\",OFFSET('Smelter Look-up'!$H$4,$V264-4,0))","v":""},{"$f":"IF(ISERROR($V264),\"\",OFFSET('Smelter Look-up'!$I$4,$V264-4,0))","v":""},{"$nulls":7},{"$f":"IF(ISERROR($V264),\"\",OFFSET('Smelter Look-up'!$C$4,$V264-4,0)&\"\")","v":""},"",{"$f":"IF(B264=\"\",\"\",IF(ISERROR(MATCH($J264,SorP!$B$1:$B$6230,0)),\"\",INDIRECT(\"'SorP'!$A$\"&MATCH($J264,SorP!$B$1:$B$6230,0))))","v":""},null,{"$f":"IF(C264=\"\",NA(),MATCH($B264&$C264,'Smelter Look-up'!$J:$J,0))","v":{"$error":"#N/A"}},null,0,null,null,null,""]
[null,{"$f":"IF(LEN(A265)=0,\"\",INDEX('Smelter Look-up'!$A:$A,MATCH($A265,'Smelter Look-up'!$E:$E,0)))","v":""},{"$f":"IF(LEN(A265)=0,\"\",INDEX('Smelter Look-up'!$C:$C,MATCH($A265,'Smelter Look-up'!$E:$E,0)))","v":""},null,{"$f":"IF(ISERROR($V265),\"\",OFFSET('Smelter Look-up'!$D$4,$V265-4,0)&\"\")","v":""},{"$f":"IF(ISERROR($V265),\"\",OFFSET('Smelter Look-up'!$E$4,$V265-4,0))","v":""},{"$f":"IF(C265=$X$4,\"Enter smelter details\", IF(ISERROR($V265),\"\",OFFSET('Smelter Look-up'!$F$4,$V265-4,0)))","v":""},{"$f":"IF(ISERROR($V265),\"\",OFFSET('Smelter Look-up'!$G$4,$V265-4,0))","v":""},{"$f":"IF(ISERROR($V265),\"\",OFFSET('Smelter Look-up'!$H$4,$V265-4,0))","v":""},{"$f":"IF(ISERROR($V265),\"\",OFFSET('Smelter Look-up'!$I$4,$V265-4,0))","v":""},{"$nulls":7},{"$f":"IF(ISERROR($V265),\"\",OFFSET('Smelter Look-up'!$C$4,$V265-4,0)&\"\")","v":""},"",{"$f":"IF(B265=\"\",\"\",IF(ISERROR(MATCH($J265,SorP!$B$1:$B$6230,0)),\"\",INDIRECT(\"'SorP'!$A$\"&MATCH($J265,SorP!$B$1:$B$6230,0))))","v":""},null,{"$f":"IF(C265=\"\",NA(),MATCH($B265&$C265,'Smelter Look-up'!$J:$J,0))","v":{"$error":"#N/A"}},null,0,null,null,null,""]
[null,{"$f":"IF(LEN(A266)=0,\"\",INDEX('Smelter Look-up'!$A:$A,MATCH($A266,'Smelter Look-up'!$E:$E,0)))","v":""},{"$f":"IF(LEN(A266)=0,\"\",INDEX('Smelter Look-up'!$C:$C,MATCH($A266,'Smelter Look-up'!$E:$E,0)))","v":""},null,{"$f":"IF(ISERROR($V266),\"\",OFFSET('Smelter Look-up'!$D$4,$V266-4,0)&\"\")","v":""},{"$f":"IF(ISERROR($V266),\"\",OFFSET('Smelter Look-up'!$E$4,$V266-4,0))","v":""},{"$f":"IF(C266=$X$4,\"Enter smelter details\", IF(ISERROR($V266),\"\",OFFSET('Smelter Look-up'!$F$4,$V266-4,0)))","v":""},{"$f":"IF(ISERROR($V266),\"\",OFFSET('Smelter Look-up'!$G$4,$V266-4,0))","v":""},{"$f":"IF(ISERROR($V266),\"\",OFFSET('Smelter Look-up'!$H$4,$V266-4,0))","v":""},{"$f":"IF(ISERROR($V266),\"\",OFFSET('Smelter Look-up'!$I$4,$V266-4,0))","v":""},{"$nulls":7},{"$f":"IF(ISERROR($V266),\"\",OFFSET('Smelter Look-up'!$C$4,$V266-4,0)&\"\")","v":""},"",{"$f":"IF(B266=\"\",\"\",IF(ISERROR(MATCH($J266,SorP!$B$1:$B$6230,0)),\"\",INDIRECT(\"'SorP'!$A$\"&MATCH($J266,SorP!$B$1:$B$6230,0))))","v":""},null,{"$f":"IF(C266=\"\",NA(),MATCH($B266&$C266,'Smelter Look-up'!$J:$J,0))","v":{"$error":"#N/A"}},null,0,null,null,null,""]
[null,{"$f":"IF(LEN(A267)=0,\"\",INDEX('Smelter Look-up'!$A:$A,MATCH($A267,'Smelter Look-up'!$E:$E,0)))","v":""},{"$f":"IF(LEN(A267)=0,\"\",INDEX('Smelter Look-up'!$C:$C,MATCH($A267,'Smelter Look-up'!$E:$E,0)))","v":""},null,{"$f":"IF(ISERROR($V267),\"\",OFFSET('Smelter Look-up'!$D$4,$V267-4,0)&\"\")","v":""},{"$f":"IF(ISERROR($V267),\"\",OFFSET('Smelter Look-up'!$E$4,$V267-4,0))","v":""},{"$f":"IF(C267=$X$4,\"Enter smelter details\", IF(ISERROR($V267),\"\",OFFSET('Smelter Look-up'!$F$4,$V267-4,0)))","v":""},{"$f":"IF(ISERROR($V267),\"\",OFFSET('Smelter Look-up'!$G$4,$V267-4,0))","v":""},{"$f":"IF(ISERROR($V267),\"\",OFFSET('Smelter Look-up'!$H$4,$V267-4,0))","v":""},{"$f":"IF(ISERROR($V267),\"\",OFFSET('Smelter Look-up'!$I$4,$V267-4,0))","v":""},{"$nulls":7},{"$f":"IF(ISERROR($V267),\"\",OFFSET('Smelter Look-up'!$C$4,$V267-4,0)&\"\")","v":""},"",{"$f":"IF(B267=\"\",\"\",IF(ISERROR(MATCH($J267,SorP!$B$1:$B$6230,0)),\"\",INDIRECT(\"'SorP'!$A$\"&MATCH($J267,SorP!$B$1:$B$6230,0))))","v":""},null,{"$f":"IF(C267=\"\",NA(),MATCH($B267&$C267,'Smelter Look-up'!$J:$J,0))","v":{"$error":"#N/A"}},null,0,null,null,null,""]
[null,{"$f":"IF(LEN(A268)=0,\"\",INDEX('Smelter Look-up'!$A:$A,MATCH($A268,'Smelter Look-up'!$E:$E,0)))","v":""},{"$f":"IF(LEN(A268)=0,\"\",INDEX('Smelter Look-up'!$C:$C,MATCH($A268,'Smelter Look-up'!$E:$E,0)))","v":""},null,{"$f":"IF(ISERROR($V268),\"\",OFFSET('Smelter Look-up'!$D$4,$V268-4,0)&\"\")","v":""},{"$f":"IF(ISERROR($V268),\"\",OFFSET('Smelter Look-up'!$E$4,$V268-4,0))","v":""},{"$f":"IF(C268=$X$4,\"Enter smelter details\", IF(ISERROR($V268),\"\",OFFSET('Smelter Look-up'!$F$4,$V268-4,0)))","v":""},{"$f":"IF(ISERROR($V268),\"\",OFFSET('Smelter Look-up'!$G$4,$V268-4,0))","v":""},{"$f":"IF(ISERROR($V268),\"\",OFFSET('Smelter Look-up'!$H$4,$V268-4,0))","v":""},{"$f":"IF(ISERROR($V268),\"\",OFFSET('Smelter Look-up'!$I$4,$V268-4,0))","v":""},{"$nulls":7},{"$f":"IF(ISERROR($V268),\"\",OFFSET('Smelter Look-up'!$C$4,$V268-4,0)&\"\")","v":""},"",{"$f":"IF(B268=\"\",\"\",IF(ISERROR(MATCH($J268,SorP!$B$1:$B$6230,0)),\"\",INDIRECT(\"'SorP'!$A$\"&MATCH($J268,SorP!$B$1:$B$6230,0))))","v":""},null,{"$f":"IF(C268=\"\",NA(),MATCH($B268&$C268,'Smelter Look-up'!$J:$J,0))","v":{"$error":"#N/A"}},null,0,null,null,null,""]
[null,{"$f":"IF(LEN(A269)=0,\"\",INDEX('Smelter Look-up'!$A:$A,MATCH($A269,'Smelter Look-up'!$E:$E,0)))","v":""},{"$f":"IF(LEN(A269)=0,\"\",INDEX('Smelter Look-up'!$C:$C,MATCH($A269,'Smelter Look-up'!$E:$E,0)))","v":""},null,{"$f":"IF(ISERROR($V269),\"\",OFFSET('Smelter Look-up'!$D$4,$V269-4,0)&\"\")","v":""},{"$f":"IF(ISERROR($V269),\"\",OFFSET('Smelter Look-up'!$E$4,$V269-4,0))","v":""},{"$f":"IF(C269=$X$4,\"Enter smelter details\", IF(ISERROR($V269),\"\",OFFSET('Smelter Look-up'!$F$4,$V269-4,0)))","v":""},{"$f":"IF(ISERROR($V269),\"\",OFFSET('Smelter Look-up'!$G$4,$V269-4,0))","v":""},{"$f":"IF(ISERROR($V269),\"\",OFFSET('Smelter Look-up'!$H$4,$V269-4,0))","v":""},{"$f":"IF(ISERROR($V269),\"\",OFFSET('Smelter Look-up'!$I$4,$V269-4,0))","v":""},{"$nulls":7},{"$f":"IF(ISERROR($V269),\"\",OFFSET('Smelter Look-up'!$C$4,$V269-4,0)&\"\")","v":""},"",{"$f":"IF(B269=\"\",\"\",IF(ISERROR(MATCH($J269,SorP!$B$1:$B$6230,0)),\"\",INDIRECT(\"'SorP'!$A$\"&MATCH($J269,SorP!$B$1:$B$6230,0))))","v":""},null,{"$f":"IF(C269=\"\",NA(),MATCH($B269&$C269,'Smelter Look-up'!$J:$J,0))","v":{"$error":"#N/A"}},null,0,null,null,null,""]
[null,{"$f":"IF(LEN(A270)=0,\"\",INDEX('Smelter Look-up'!$A:$A,MATCH($A270,'Smelter Look-up'!$E:$E,0)))","v":""},{"$f":"IF(LEN(A270)=0,\"\",INDEX('Smelter Look-up'!$C:$C,MATCH($A270,'Smelter Look-up'!$E:$E,0)))","v":""},null,{"$f":"IF(ISERROR($V270),\"\",OFFSET('Smelter Look-up'!$D$4,$V270-4,0)&\"\")","v":""},{"$f":"IF(ISERROR($V270),\"\",OFFSET('Smelter Look-up'!$E$4,$V270-4,0))","v":""},{"$f":"IF(C270=$X$4,\"Enter smelter details\", IF(ISERROR($V270),\"\",OFFSET('Smelter Look-up'!$F$4,$V270-4,0)))","v":""},{"$f":"IF(ISERROR($V270),\"\",OFFSET('Smelter Look-up'!$G$4,$V270-4,0))","v":""},{"$f":"IF(ISERROR($V270),\"\",OFFSET('Smelter Look-up'!$H$4,$V270-4,0))","v":""},{"$f":"IF(ISERROR($V270),\"\",OFFSET('Smelter Look-up'!$I$4,$V270-4,0))","v":""},{"$nulls":7},{"$f":"IF(ISERROR($V270),\"\",OFFSET('Smelter Look-up'!$C$4,$V270-4,0)&\"\")","v":""},"",{"$f":"IF(B270=\"\",\"\",IF(ISERROR(MATCH($J270,SorP!$B$1:$B$6230,0)),\"\",INDIRECT(\"'SorP'!$A$\"&MATCH($J270,SorP!$B$1:$B$6230,0))))","v":""},null,{"$f":"IF(C270=\"\",NA(),MATCH($B270&$C270,'Smelter Look-up'!$J:$J,0))","v":{"$error":"#N/A"}},null,0,null,null,null,""]
[null,{"$f":"IF(LEN(A271)=0,\"\",INDEX('Smelter Look-up'!$A:$A,MATCH($A271,'Smelter Look-up'!$E:$E,0)))","v":""},{"$f":"IF(LEN(A271)=0,\"\",INDEX('Smelter Look-up'!$C:$C,MATCH($A271,'Smelter Look-up'!$E:$E,0)))","v":""},null,{"$f":"IF(ISERROR($V271),\"\",OFFSET('Smelter Look-up'!$D$4,$V271-4,0)&\"\")","v":""},{"$f":"IF(ISERROR($V271),\"\",OFFSET('Smelter Look-up'!$E$4,$V271-4,0))","v":""},{"$f":"IF(C271=$X$4,\"Enter smelter details\", IF(ISERROR($V271),\"\",OFFSET('Smelter Look-up'!$F$4,$V271-4,0)))","v":""},{"$f":"IF(ISERROR($V271),\"\",OFFSET('Smelter Look-up'!$G$4,$V271-4,0))","v":""},{"$f":"IF(ISERROR($V271),\"\",OFFSET('Smelter Look-up'!$H$4,$V271-4,0))","v":""},{"$f":"IF(ISERROR($V271),\"\",OFFSET('Smelter Look-up'!$I$4,$V271-4,0))","v":""},{"$nulls":7},{"$f":"IF(ISERROR($V271),\"\",OFFSET('Smelter Look-up'!$C$4,$V271-4,0)&\"\")","v":""},"",{"$f":"IF(B271=\"\",\"\",IF(ISERROR(MATCH($J271,SorP!$B$1:$B$6230,0)),\"\",INDIRECT(\"'SorP'!$A$\"&MATCH($J271,SorP!$B$1:$B$6230,0))))","v":""},null,{"$f":"IF(C271=\"\",NA(),MATCH($B271&$C271,'Smelter Look-up'!$J:$J,0))","v":{"$error":"#N/A"}},null,0,null,null,null,""]
[null,{"$f":"IF(LEN(A272)=0,\"\",INDEX('Smelter Look-up'!$A:$A,MATCH($A272,'Smelter Look-up'!$E:$E,0)))","v":""},{"$f":"IF(LEN(A272)=0,\"\",INDEX('Smelter Look-up'!$C:$C,MATCH($A272,'Smelter Look-up'!$E:$E,0)))","v":""},null,{"$f":"IF(ISERROR($V272),\"\",OFFSET('Smelter Look-up'!$D$4,$V272-4,0)&\"\")","v":""},{"$f":"IF(ISERROR($V272),\"\",OFFSET('Smelter Look-up'!$E$4,$V272-4,0))","v":""},{"$f":"IF(C272=$X$4,\"Enter smelter details\", IF(ISERROR($V272),\"\",OFFSET('Smelter Look-up'!$F$4,$V272-4,0)))","v":""},{"$f":"IF(ISERROR($V272),\"\",OFFSET('Smelter Look-up'!$G$4,$V272-4,0))","v":""},{"$f":"IF(ISERROR($V272),\"\",OFFSET('Smelter Look-up'!$H$4,$V272-4,0))","v":""},{"$f":"IF(ISERROR($V272),\"\",OFFSET('Smelter Look-up'!$I$4,$V272-4,0))","v":""},{"$nulls":7},{"$f":"IF(ISERROR($V272),\"\",OFFSET('Smelter Look-up'!$C$4,$V272-4,0)&\"\")","v":""},"",{"$f":"IF(B272=\"\",\"\",IF(ISERROR(MATCH($J272,SorP!$B$1:$B$6230,0)),\"\",INDIRECT(\"'SorP'!$A$\"&MATCH($J272,SorP!$B$1:$B$6230,0))))","v":""},null,{"$f":"IF(C272=\"\",NA(),MATCH($B272&$C272,'Smelter Look-up'!$J:$J,0))","v":{"$error":"#N/A"}},null,0,null,null,null,""]
[null,{"$f":"IF(LEN(A273)=0,\"\",INDEX('Smelter Look-up'!$A:$A,MATCH($A273,'Smelter Look-up'!$E:$E,0)))","v":""},{"$f":"IF(LEN(A273)=0,\"\",INDEX('Smelter Look-up'!$C:$C,MATCH($A273,'Smelter Look-up'!$E:$E,0)))","v":""},null,{"$f":"IF(ISERROR($V273),\"\",OFFSET('Smelter Look-up'!$D$4,$V273-4,0)&\"\")","v":""},{"$f":"IF(ISERROR($V273),\"\",OFFSET('Smelter Look-up'!$E$4,$V273-4,0))","v":""},{"$f":"IF(C273=$X$4,\"Enter smelter details\", IF(ISERROR($V273),\"\",OFFSET('Smelter Look-up'!$F$4,$V273-4,0)))","v":""},{"$f":"IF(ISERROR($V273),\"\",OFFSET('Smelter Look-up'!$G$4,$V273-4,0))","v":""},{"$f":"IF(ISERROR($V273),\"\",OFFSET('Smelter Look-up'!$H$4,$V273-4,0))","v":""},{"$f":"IF(ISERROR($V273),\"\",OFFSET('Smelter Look-up'!$I$4,$V273-4,0))","v":""},{"$nulls":7},{"$f":"IF(ISERROR($V273),\"\",OFFSET('Smelter Look-up'!$C$4,$V273-4,0)&\"\")","v":""},"",{"$f":"IF(B273=\"\",\"\",IF(ISERROR(MATCH($J273,SorP!$B$1:$B$6230,0)),\"\",INDIRECT(\"'SorP'!$A$\"&MATCH($J273,SorP!$B$1:$B$6230,0))))","v":""},null,{"$f":"IF(C273=\"\",NA(),MATCH($B273&$C273,'Smelter Look-up'!$J:$J,0))","v":{"$error":"#N/A"}},null,0,null,null,null,""]
[null,{"$f":"IF(LEN(A274)=0,\"\",INDEX('Smelter Look-up'!$A:$A,MATCH($A274,'Smelter Look-up'!$E:$E,0)))","v":""},{"$f":"IF(LEN(A274)=0,\"\",INDEX('Smelter Look-up'!$C:$C,MATCH($A274,'Smelter Look-up'!$E:$E,0)))","v":""},null,{"$f":"IF(ISERROR($V274),\"\",OFFSET('Smelter Look-up'!$D$4,$V274-4,0)&\"\")","v":""},{"$f":"IF(ISERROR($V274),\"\",OFFSET('Smelter Look-up'!$E$4,$V274-4,0))","v":""},{"$f":"IF(C274=$X$4,\"Enter smelter details\", IF(ISERROR($V274),\"\",OFFSET('Smelter Look-up'!$F$4,$V274-4,0)))","v":""},{"$f":"IF(ISERROR($V274),\"\",OFFSET('Smelter Look-up'!$G$4,$V274-4,0))","v":""},{"$f":"IF(ISERROR($V274),\"\",OFFSET('Smelter Look-up'!$H$4,$V274-4,0))","v":""},{"$f":"IF(ISERROR($V274),\"\",OFFSET('Smelter Look-up'!$I$4,$V274-4,0))","v":""},{"$nulls":7},{"$f":"IF(ISERROR($V274),\"\",OFFSET('Smelter Look-up'!$C$4,$V274-4,0)&\"\")","v":""},"",{"$f":"IF(B274=\"\",\"\",IF(ISERROR(MATCH($J274,SorP!$B$1:$B$6230,0)),\"\",INDIRECT(\"'SorP'!$A$\"&MATCH($J274,SorP!$B$1:$B$6230,0))))","v":""},null,{"$f":"IF(C274=\"\",NA(),MATCH($B274&$C274,'Smelter Look-up'!$J:$J,0))","v":{"$error":"#N/A"}},null,0,null,null,null,""]
[null,{"$f":"IF(LEN(A275)=0,\"\",INDEX('Smelter Look-up'!$A:$A,MATCH($A275,'Smelter Look-up'!$E:$E,0)))","v":""},{"$f":"IF(LEN(A275)=0,\"\",INDEX('Smelter Look-up'!$C:$C,MATCH($A275,'Smelter Look-up'!$E:$E,0)))","v":""},null,{"$f":"IF(ISERROR($V275),\"\",OFFSET('Smelter Look-up'!$D$4,$V275-4,0)&\"\")","v":""},{"$f":"IF(ISERROR($V275),\"\",OFFSET('Smelter Look-up'!$E$4,$V275-4,0))","v":""},{"$f":"IF(C275=$X$4,\"Enter smelter details\", IF(ISERROR($V275),\"\",OFFSET('Smelter Look-up'!$F$4,$V275-4,0)))","v":""},{"$f":"IF(ISERROR($V275),\"\",OFFSET('Smelter Look-up'!$G$4,$V275-4,0))","v":""},{"$f":"IF(ISERROR($V275),\"\",OFFSET('Smelter Look-up'!$H$4,$V275-4,0))","v":""},{"$f":"IF(ISERROR($V275),\"\",OFFSET('Smelter Look-up'!$I$4,$V275-4,0))","v":""},{"$nulls":7},{"$f":"IF(ISERROR($V275),\"\",OFFSET('Smelter Look-up'!$C$4,$V275-4,0)&\"\")","v":""},"",{"$f":"IF(B275=\"\",\"\",IF(ISERROR(MATCH($J275,SorP!$B$1:$B$6230,0)),\"\",INDIRECT(\"'SorP'!$A$\"&MATCH($J275,SorP!$B$1:$B$6230,0))))","v":""},null,{"$f":"IF(C275=\"\",NA(),MATCH($B275&$C275,'Smelter Look-up'!$J:$J,0))","v":{"$error":"#N/A"}},null,0,null,null,null,""]
[null,{"$f":"IF(LEN(A276)=0,\"\",INDEX('Smelter Look-up'!$A:$A,MATCH($A276,'Smelter Look-up'!$E:$E,0)))","v":""},{"$f":"IF(LEN(A276)=0,\"\",INDEX('Smelter Look-up'!$C:$C,MATCH($A276,'Smelter Look-up'!$E:$E,0)))","v":""},null,{"$f":"IF(ISERROR($V276),\"\",OFFSET('Smelter Look-up'!$D$4,$V276-4,0)&\"\")","v":""},{"$f":"IF(ISERROR($V276),\"\",OFFSET('Smelter Look-up'!$E$4,$V276-4,0))","v":""},{"$f":"IF(C276=$X$4,\"Enter smelter details\", IF(ISERROR($V276),\"\",OFFSET('Smelter Look-up'!$F$4,$V276-4,0)))","v":""},{"$f":"IF(ISERROR($V276),\"\",OFFSET('Smelter Look-up'!$G$4,$V276-4,0))","v":""},{"$f":"IF(ISERROR($V276),\"\",OFFSET('Smelter Look-up'!$H$4,$V276-4,0))","v":""},{"$f":"IF(ISERROR($V276),\"\",OFFSET('Smelter Look-up'!$I$4,$V276-4,0))","v":""},{"$nulls":7},{"$f":"IF(ISERROR($V276),\"\",OFFSET('Smelter Look-up'!$C$4,$V276-4,0)&\"\")","v":""},"",{"$f":"IF(B276=\"\",\"\",IF(ISERROR(MATCH($J276,SorP!$B$1:$B$6230,0)),\"\",INDIRECT(\"'SorP'!$A$\"&MATCH($J276,SorP!$B$1:$B$6230,0))))","v":""},null,{"$f":"IF(C276=\"\",NA(),MATCH($B276&$C276,'Smelter Look-up'!$J:$J,0))","v":{"$error":"#N/A"}},null,0,null,null,null,""]
[null,{"$f":"IF(LEN(A277)=0,\"\",INDEX('Smelter Look-up'!$A:$A,MATCH($A277,'Smelter Look-up'!$E:$E,0)))","v":""},{"$f":"IF(LEN(A277)=0,\"\",INDEX('Smelter Look-up'!$C:$C,MATCH($A277,'Smelter Look-up'!$E:$E,0)))","v":""},null,{"$f":"IF(ISERROR($V277),\"\",OFFSET('Smelter Look-up'!$D$4,$V277-4,0)&\"\")","v":""},{"$f":"IF(ISERROR($V277),\"\",OFFSET('Smelter Look-up'!$E$4,$V277-4,0))","v":""},{"$f":"IF(C277=$X$4,\"Enter smelter details\", IF(ISERROR($V277),\"\",OFFSET('Smelter Look-up'!$F$4,$V277-4,0)))","v":""},{"$f":"IF(ISERROR($V277),\"\",OFFSET('Smelter Look-up'!$G$4,$V277-4,0))","v":""},{"$f":"IF(ISERROR($V277),\"\",OFFSET('Smelter Look-up'!$H$4,$V277-4,0))","v":""},{"$f":"IF(ISERROR($V277),\"\",OFFSET('Smelter Look-up'!$I$4,$V277-4,0))","v":""},{"$nulls":7},{"$f":"IF(ISERROR($V277),\"\",OFFSET('Smelter Look-up'!$C$4,$V277-4,0)&\"\")","v":""},"",{"$f":"IF(B277=\"\",\"\",IF(ISERROR(MATCH($J277,SorP!$B$1:$B$6230,0)),\"\",INDIRECT(\"'SorP'!$A$\"&MATCH($J277,SorP!$B$1:$B$6230,0))))","v":""},null,{"$f":"IF(C277=\"\",NA(),MATCH($B277&$C277,'Smelter Look-up'!$J:$J,0))","v":{"$error":"#N/A"}},null,0,null,null,null,""]
[null,{"$f":"IF(LEN(A278)=0,\"\",INDEX('Smelter Look-up'!$A:$A,MATCH($A278,'Smelter Look-up'!$E:$E,0)))","v":""},{"$f":"IF(LEN(A278)=0,\"\",INDEX('Smelter Look-up'!$C:$C,MATCH($A278,'Smelter Look-up'!$E:$E,0)))","v":""},null,{"$f":"IF(ISERROR($V278),\"\",OFFSET('Smelter Look-up'!$D$4,$V278-4,0)&\"\")","v":""},{"$f":"IF(ISERROR($V278),\"\",OFFSET('Smelter Look-up'!$E$4,$V278-4,0))","v":""},{"$f":"IF(C278=$X$4,\"Enter smelter details\", IF(ISERROR($V278),\"\",OFFSET('Smelter Look-up'!$F$4,$V278-4,0)))","v":""},{"$f":"IF(ISERROR($V278),\"\",OFFSET('Smelter Look-up'!$G$4,$V278-4,0))","v":""},{"$f":"IF(ISERROR($V278),\"\",OFFSET('Smelter Look-up'!$H$4,$V278-4,0))","v":""},{"$f":"IF(ISERROR($V278),\"\",OFFSET('Smelter Look-up'!$I$4,$V278-4,0))","v":""},{"$nulls":7},{"$f":"IF(ISERROR($V278),\"\",OFFSET('Smelter Look-up'!$C$4,$V278-4,0)&\"\")","v":""},"",{"$f":"IF(B278=\"\",\"\",IF(ISERROR(MATCH($J278,SorP!$B$1:$B$6230,0)),\"\",INDIRECT(\"'SorP'!$A$\"&MATCH($J278,SorP!$B$1:$B$6230,0))))","v":""},null,{"$f":"IF(C278=\"\",NA(),MATCH($B278&$C278,'Smelter Look-up'!$J:$J,0))","v":{"$error":"#N/A"}},null,0,null,null,null,""]
[null,{"$f":"IF(LEN(A279)=0,\"\",INDEX('Smelter Look-up'!$A:$A,MATCH($A279,'Smelter Look-up'!$E:$E,0)))","v":""},{"$f":"IF(LEN(A279)=0,\"\",INDEX('Smelter Look-up'!$C:$C,MATCH($A279,'Smelter Look-up'!$E:$E,0)))","v":""},null,{"$f":"IF(ISERROR($V279),\"\",OFFSET('Smelter Look-up'!$D$4,$V279-4,0)&\"\")","v":""},{"$f":"IF(ISERROR($V279),\"\",OFFSET('Smelter Look-up'!$E$4,$V279-4,0))","v":""},{"$f":"IF(C279=$X$4,\"Enter smelter details\", IF(ISERROR($V279),\"\",OFFSET('Smelter Look-up'!$F$4,$V279-4,0)))","v":""},{"$f":"IF(ISERROR($V279),\"\",OFFSET('Smelter Look-up'!$G$4,$V279-4,0))","v":""},{"$f":"IF(ISERROR($V279),\"\",OFFSET('Smelter Look-up'!$H$4,$V279-4,0))","v":""},{"$f":"IF(ISERROR($V279),\"\",OFFSET('Smelter Look-up'!$I$4,$V279-4,0))","v":""},{"$nulls":7},{"$f":"IF(ISERROR($V279),\"\",OFFSET('Smelter Look-up'!$C$4,$V279-4,0)&\"\")","v":""},"",{"$f":"IF(B279=\"\",\"\",IF(ISERROR(MATCH($J279,SorP!$B$1:$B$6230,0)),\"\",INDIRECT(\"'SorP'!$A$\"&MATCH($J279,SorP!$B$1:$B$6230,0))))","v":""},null,{"$f":"IF(C279=\"\",NA(),MATCH($B279&$C279,'Smelter Look-up'!$J:$J,0))","v":{"$error":"#N/A"}},null,0,null,null,null,""]
[null,{"$f":"IF(LEN(A280)=0,\"\",INDEX('Smelter Look-up'!$A:$A,MATCH($A280,'Smelter Look-up'!$E:$E,0)))","v":""},{"$f":"IF(LEN(A280)=0,\"\",INDEX('Smelter Look-up'!$C:$C,MATCH($A280,'Smelter Look-up'!$E:$E,0)))","v":""},null,{"$f":"IF(ISERROR($V280),\"\",OFFSET('Smelter Look-up'!$D$4,$V280-4,0)&\"\")","v":""},{"$f":"IF(ISERROR($V280),\"\",OFFSET('Smelter Look-up'!$E$4,$V280-4,0))","v":""},{"$f":"IF(C280=$X$4,\"Enter smelter details\", IF(ISERROR($V280),\"\",OFFSET('Smelter Look-up'!$F$4,$V280-4,0)))","v":""},{"$f":"IF(ISERROR($V280),\"\",OFFSET('Smelter Look-up'!$G$4,$V280-4,0))","v":""},{"$f":"IF(ISERROR($V280),\"\",OFFSET('Smelter Look-up'!$H$4,$V280-4,0))","v":""},{"$f":"IF(ISERROR($V280),\"\",OFFSET('Smelter Look-up'!$I$4,$V280-4,0))","v":""},{"$nulls":7},{"$f":"IF(ISERROR($V280),\"\",OFFSET('Smelter Look-up'!$C$4,$V280-4,0)&\"\")","v":""},"",{"$f":"IF(B280=\"\",\"\",IF(ISERROR(MATCH($J280,SorP!$B$1:$B$6230,0)),\"\",INDIRECT(\"'SorP'!$A$\"&MATCH($J280,SorP!$B$1:$B$6230,0))))","v":""},null,{"$f":"IF(C280=\"\",NA(),MATCH($B280&$C280,'Smelter Look-up'!$J:$J,0))","v":{"$error":"#N/A"}},null,0,null,null,null,""]
[null,{"$f":"IF(LEN(A281)=0,\"\",INDEX('Smelter Look-up'!$A:$A,MATCH($A281,'Smelter Look-up'!$E:$E,0)))","v":""},{"$f":"IF(LEN(A281)=0,\"\",INDEX('Smelter Look-up'!$C:$C,MATCH($A281,'Smelter Look-up'!$E:$E,0)))","v":""},null,{"$f":"IF(ISERROR($V281),\"\",OFFSET('Smelter Look-up'!$D$4,$V281-4,0)&\"\")","v":""},{"$f":"IF(ISERROR($V281),\"\",OFFSET('Smelter Look-up'!$E$4,$V281-4,0))","v":""},{"$f":"IF(C281=$X$4,\"Enter smelter details\", IF(ISERROR($V281),\"\",OFFSET('Smelter Look-up'!$F$4,$V281-4,0)))","v":""},{"$f":"IF(ISERROR($V281),\"\",OFFSET('Smelter Look-up'!$G$4,$V281-4,0))","v":""},{"$f":"IF(ISERROR($V281),\"\",OFFSET('Smelter Look-up'!$H$4,$V281-4,0))","v":""},{"$f":"IF(ISERROR($V281),\"\",OFFSET('Smelter Look-up'!$I$4,$V281-4,0))","v":""},{"$nulls":7},{"$f":"IF(ISERROR($V281),\"\",OFFSET('Smelter Look-up'!$C$4,$V281-4,0)&\"\")","v":""},"",{"$f":"IF(B281=\"\",\"\",IF(ISERROR(MATCH($J281,SorP!$B$1:$B$6230,0)),\"\",INDIRECT(\"'SorP'!$A$\"&MATCH($J281,SorP!$B$1:$B$6230,0))))","v":""},null,{"$f":"IF(C281=\"\",NA(),MATCH($B281&$C281,'Smelter Look-up'!$J:$J,0))","v":{"$error":"#N/A"}},null,0,null,null,null,""]
[null,{"$f":"IF(LEN(A282)=0,\"\",INDEX('Smelter Look-up'!$A:$A,MATCH($A282,'Smelter Look-up'!$E:$E,0)))","v":""},{"$f":"IF(LEN(A282)=0,\"\",INDEX('Smelter Look-up'!$C:$C,MATCH($A282,'Smelter Look-up'!$E:$E,0)))","v":""},null,{"$f":"IF(ISERROR($V282),\"\",OFFSET('Smelter Look-up'!$D$4,$V282-4,0)&\"\")","v":""},{"$f":"IF(ISERROR($V282),\"\",OFFSET('Smelter Look-up'!$E$4,$V282-4,0))","v":""},{"$f":"IF(C282=$X$4,\"Enter smelter details\", IF(ISERROR($V282),\"\",OFFSET('Smelter Look-up'!$F$4,$V282-4,0)))","v":""},{"$f":"IF(ISERROR($V282),\"\",OFFSET('Smelter Look-up'!$G$4,$V282-4,0))","v":""},{"$f":"IF(ISERROR($V282),\"\",OFFSET('Smelter Look-up'!$H$4,$V282-4,0))","v":""},{"$f":"IF(ISERROR($V282),\"\",OFFSET('Smelter Look-up'!$I$4,$V282-4,0))","v":""},{"$nulls":7},{"$f":"IF(ISERROR($V282),\"\",OFFSET('Smelter Look-up'!$C$4,$V282-4,0)&\"\")","v":""},"",{"$f":"IF(B282=\"\",\"\",IF(ISERROR(MATCH($J282,SorP!$B$1:$B$6230,0)),\"\",INDIRECT(\"'SorP'!$A$\"&MATCH($J282,SorP!$B$1:$B$6230,0))))","v":""},null,{"$f":"IF(C282=\"\",NA(),MATCH($B282&$C282,'Smelter Look-up'!$J:$J,0))","v":{"$error":"#N/A"}},null,0,null,null,null,""]
[null,{"$f":"IF(LEN(A283)=0,\"\",INDEX('Smelter Look-up'!$A:$A,MATCH($A283,'Smelter Look-up'!$E:$E,0)))","v":""},{"$f":"IF(LEN(A283)=0,\"\",INDEX('Smelter Look-up'!$C:$C,MATCH($A283,'Smelter Look-up'!$E:$E,0)))","v":""},null,{"$f":"IF(ISERROR($V283),\"\",OFFSET('Smelter Look-up'!$D$4,$V283-4,0)&\"\")","v":""},{"$f":"IF(ISERROR($V283),\"\",OFFSET('Smelter Look-up'!$E$4,$V283-4,0))","v":""},{"$f":"IF(C283=$X$4,\"Enter smelter details\", IF(ISERROR($V283),\"\",OFFSET('Smelter Look-up'!$F$4,$V283-4,0)))","v":""},{"$f":"IF(ISERROR($V283),\"\",OFFSET('Smelter Look-up'!$G$4,$V283-4,0))","v":""},{"$f":"IF(ISERROR($V283),\"\",OFFSET('Smelter Look-up'!$H$4,$V283-4,0))","v":""},{"$f":"IF(ISERROR($V283),\"\",OFFSET('Smelter Look-up'!$I$4,$V283-4,0))","v":""},{"$nulls":7},{"$f":"IF(ISERROR($V283),\"\",OFFSET('Smelter Look-up'!$C$4,$V283-4,0)&\"\")","v":""},"",{"$f":"IF(B283=\"\",\"\",IF(ISERROR(MATCH($J283,SorP!$B$1:$B$6230,0)),\"\",INDIRECT(\"'SorP'!$A$\"&MATCH($J283,SorP!$B$1:$B$6230,0))))","v":""},null,{"$f":"IF(C283=\"\",NA(),MATCH($B283&$C283,'Smelter Look-up'!$J:$J,0))","v":{"$error":"#N/A"}},null,0,null,null,null,""]
[null,{"$f":"IF(LEN(A284)=0,\"\",INDEX('Smelter Look-up'!$A:$A,MATCH($A284,'Smelter Look-up'!$E:$E,0)))","v":""},{"$f":"IF(LEN(A284)=0,\"\",INDEX('Smelter Look-up'!$C:$C,MATCH($A284,'Smelter Look-up'!$E:$E,0)))","v":""},null,{"$f":"IF(ISERROR($V284),\"\",OFFSET('Smelter Look-up'!$D$4,$V284-4,0)&\"\")","v":""},{"$f":"IF(ISERROR($V284),\"\",OFFSET('Smelter Look-up'!$E$4,$V284-4,0))","v":""},{"$f":"IF(C284=$X$4,\"Enter smelter details\", IF(ISERROR($V284),\"\",OFFSET('Smelter Look-up'!$F$4,$V284-4,0)))","v":""},{"$f":"IF(ISERROR($V284),\"\",OFFSET('Smelter Look-up'!$G$4,$V284-4,0))","v":""},{"$f":"IF(ISERROR($V284),\"\",OFFSET('Smelter Look-up'!$H$4,$V284-4,0))","v":""},{"$f":"IF(ISERROR($V284),\"\",OFFSET('Smelter Look-up'!$I$4,$V284-4,0))","v":""},{"$nulls":7},{"$f":"IF(ISERROR($V284),\"\",OFFSET('Smelter Look-up'!$C$4,$V284-4,0)&\"\")","v":""},"",{"$f":"IF(B284=\"\",\"\",IF(ISERROR(MATCH($J284,SorP!$B$1:$B$6230,0)),\"\",INDIRECT(\"'SorP'!$A$\"&MATCH($J284,SorP!$B$1:$B$6230,0))))","v":""},null,{"$f":"IF(C284=\"\",NA(),MATCH($B284&$C284,'Smelter Look-up'!$J:$J,0))","v":{"$error":"#N/A"}},null,0,null,null,null,""]
[null,{"$f":"IF(LEN(A285)=0,\"\",INDEX('Smelter Look-up'!$A:$A,MATCH($A285,'Smelter Look-up'!$E:$E,0)))","v":""},{"$f":"IF(LEN(A285)=0,\"\",INDEX('Smelter Look-up'!$C:$C,MATCH($A285,'Smelter Look-up'!$E:$E,0)))","v":""},null,{"$f":"IF(ISERROR($V285),\"\",OFFSET('Smelter Look-up'!$D$4,$V285-4,0)&\"\")","v":""},{"$f":"IF(ISERROR($V285),\"\",OFFSET('Smelter Look-up'!$E$4,$V285-4,0))","v":""},{"$f":"IF(C285=$X$4,\"Enter smelter details\", IF(ISERROR($V285),\"\",OFFSET('Smelter Look-up'!$F$4,$V285-4,0)))","v":""},{"$f":"IF(ISERROR($V285),\"\",OFFSET('Smelter Look-up'!$G$4,$V285-4,0))","v":""},{"$f":"IF(ISERROR($V285),\"\",OFFSET('Smelter Look-up'!$H$4,$V285-4,0))","v":""},{"$f":"IF(ISERROR($V285),\"\",OFFSET('Smelter Look-up'!$I$4,$V285-4,0))","v":""},{"$nulls":7},{"$f":"IF(ISERROR($V285),\"\",OFFSET('Smelter Look-up'!$C$4,$V285-4,0)&\"\")","v":""},"",{"$f":"IF(B285=\"\",\"\",IF(ISERROR(MATCH($J285,SorP!$B$1:$B$6230,0)),\"\",INDIRECT(\"'SorP'!$A$\"&MATCH($J285,SorP!$B$1:$B$6230,0))))","v":""},null,{"$f":"IF(C285=\"\",NA(),MATCH($B285&$C285,'Smelter Look-up'!$J:$J,0))","v":{"$error":"#N/A"}},null,0,null,null,null,""]
[null,{"$f":"IF(LEN(A286)=0,\"\",INDEX('Smelter Look-up'!$A:$A,MATCH($A286,'Smelter Look-up'!$E:$E,0)))","v":""},{"$f":"IF(LEN(A286)=0,\"\",INDEX('Smelter Look-up'!$C:$C,MATCH($A286,'Smelter Look-up'!$E:$E,0)))","v":""},null,{"$f":"IF(ISERROR($V286),\"\",OFFSET('Smelter Look-up'!$D$4,$V286-4,0)&\"\")","v":""},{"$f":"IF(ISERROR($V286),\"\",OFFSET('Smelter Look-up'!$E$4,$V286-4,0))","v":""},{"$f":"IF(C286=$X$4,\"Enter smelter details\", IF(ISERROR($V286),\"\",OFFSET('Smelter Look-up'!$F$4,$V286-4,0)))","v":""},{"$f":"IF(ISERROR($V286),\"\",OFFSET('Smelter Look-up'!$G$4,$V286-4,0))","v":""},{"$f":"IF(ISERROR($V286),\"\",OFFSET('Smelter Look-up'!$H$4,$V286-4,0))","v":""},{"$f":"IF(ISERROR($V286),\"\",OFFSET('Smelter Look-up'!$I$4,$V286-4,0))","v":""},{"$nulls":7},{"$f":"IF(ISERROR($V286),\"\",OFFSET('Smelter Look-up'!$C$4,$V286-4,0)&\"\")","v":""},"",{"$f":"IF(B286=\"\",\"\",IF(ISERROR(MATCH($J286,SorP!$B$1:$B$6230,0)),\"\",INDIRECT(\"'SorP'!$A$\"&MATCH($J286,SorP!$B$1:$B$6230,0))))","v":""},null,{"$f":"IF(C286=\"\",NA(),MATCH($B286&$C286,'Smelter Look-up'!$J:$J,0))","v":{"$error":"#N/A"}},null,0,null,null,null,""]
[null,{"$f":"IF(LEN(A287)=0,\"\",INDEX('Smelter Look-up'!$A:$A,MATCH($A287,'Smelter Look-up'!$E:$E,0)))","v":""},{"$f":"IF(LEN(A287)=0,\"\",INDEX('Smelter Look-up'!$C:$C,MATCH($A287,'Smelter Look-up'!$E:$E,0)))","v":""},null,{"$f":"IF(ISERROR($V287),\"\",OFFSET('Smelter Look-up'!$D$4,$V287-4,0)&\"\")","v":""},{"$f":"IF(ISERROR($V287),\"\",OFFSET('Smelter Look-up'!$E$4,$V287-4,0))","v":""},{"$f":"IF(C287=$X$4,\"Enter smelter details\", IF(ISERROR($V287),\"\",OFFSET('Smelter Look-up'!$F$4,$V287-4,0)))","v":""},{"$f":"IF(ISERROR($V287),\"\",OFFSET('Smelter Look-up'!$G$4,$V287-4,0))","v":""},{"$f":"IF(ISERROR($V287),\"\",OFFSET('Smelter Look-up'!$H$4,$V287-4,0))","v":""},{"$f":"IF(ISERROR($V287),\"\",OFFSET('Smelter Look-up'!$I$4,$V287-4,0))","v":""},{"$nulls":7},{"$f":"IF(ISERROR($V287),\"\",OFFSET('Smelter Look-up'!$C$4,$V287-4,0)&\"\")","v":""},"",{"$f":"IF(B287=\"\",\"\",IF(ISERROR(MATCH($J287,SorP!$B$1:$B$6230,0)),\"\",INDIRECT(\"'SorP'!$A$\"&MATCH($J287,SorP!$B$1:$B$6230,0))))","v":""},null,{"$f":"IF(C287=\"\",NA(),MATCH($B287&$C287,'Smelter Look-up'!$J:$J,0))","v":{"$error":"#N/A"}},null,0,null,null,null,""]
[null,{"$f":"IF(LEN(A288)=0,\"\",INDEX('Smelter Look-up'!$A:$A,MATCH($A288,'Smelter Look-up'!$E:$E,0)))","v":""},{"$f":"IF(LEN(A288)=0,\"\",INDEX('Smelter Look-up'!$C:$C,MATCH($A288,'Smelter Look-up'!$E:$E,0)))","v":""},null,{"$f":"IF(ISERROR($V288),\"\",OFFSET('Smelter Look-up'!$D$4,$V288-4,0)&\"\")","v":""},{"$f":"IF(ISERROR($V288),\"\",OFFSET('Smelter Look-up'!$E$4,$V288-4,0))","v":""},{"$f":"IF(C288=$X$4,\"Enter smelter details\", IF(ISERROR($V288),\"\",OFFSET('Smelter Look-up'!$F$4,$V288-4,0)))","v":""},{"$f":"IF(ISERROR($V288),\"\",OFFSET('Smelter Look-up'!$G$4,$V288-4,0))","v":""},{"$f":"IF(ISERROR($V288),\"\",OFFSET('Smelter Look-up'!$H$4,$V288-4,0))","v":""},{"$f":"IF(ISERROR($V288),\"\",OFFSET('Smelter Look-up'!$I$4,$V288-4,0))","v":""},{"$nulls":7},{"$f":"IF(ISERROR($V288),\"\",OFFSET('Smelter Look-up'!$C$4,$V288-4,0)&\"\")","v":""},"",{"$f":"IF(B288=\"\",\"\",IF(ISERROR(MATCH($J288,SorP!$B$1:$B$6230,0)),\"\",INDIRECT(\"'SorP'!$A$\"&MATCH($J288,SorP!$B$1:$B$6230,0))))","v":""},null,{"$f":"IF(C288=\"\",NA(),MATCH($B288&$C288,'Smelter Look-up'!$J:$J,0))","v":{"$error":"#N/A"}},null,0,null,null,null,""]
[null,{"$f":"IF(LEN(A289)=0,\"\",INDEX('Smelter Look-up'!$A:$A,MATCH($A289,'Smelter Look-up'!$E:$E,0)))","v":""},{"$f":"IF(LEN(A289)=0,\"\",INDEX('Smelter Look-up'!$C:$C,MATCH($A289,'Smelter Look-up'!$E:$E,0)))","v":""},null,{"$f":"IF(ISERROR($V289),\"\",OFFSET('Smelter Look-up'!$D$4,$V289-4,0)&\"\")","v":""},{"$f":"IF(ISERROR($V289),\"\",OFFSET('Smelter Look-up'!$E$4,$V289-4,0))","v":""},{"$f":"IF(C289=$X$4,\"Enter smelter details\", IF(ISERROR($V289),\"\",OFFSET('Smelter Look-up'!$F$4,$V289-4,0)))","v":""},{"$f":"IF(ISERROR($V289),\"\",OFFSET('Smelter Look-up'!$G$4,$V289-4,0))","v":""},{"$f":"IF(ISERROR($V289),\"\",OFFSET('Smelter Look-up'!$H$4,$V289-4,0))","v":""},{"$f":"IF(ISERROR($V289),\"\",OFFSET('Smelter Look-up'!$I$4,$V289-4,0))","v":""},{"$nulls":7},{"$f":"IF(ISERROR($V289),\"\",OFFSET('Smelter Look-up'!$C$4,$V289-4,0)&\"\")","v":""},"",{"$f":"IF(B289=\"\",\"\",IF(ISERROR(MATCH($J289,SorP!$B$1:$B$6230,0)),\"\",INDIRECT(\"'SorP'!$A$\"&MATCH($J289,SorP!$B$1:$B$6230,0))))","v":""},null,{"$f":"IF(C289=\"\",NA(),MATCH($B289&$C289,'Smelter Look-up'!$J:$J,0))","v":{"$error":"#N/A"}},null,0,null,null,null,""]
[null,{"$f":"IF(LEN(A290)=0,\"\",INDEX('Smelter Look-up'!$A:$A,MATCH($A290,'Smelter Look-up'!$E:$E,0)))","v":""},{"$f":"IF(LEN(A290)=0,\"\",INDEX('Smelter Look-up'!$C:$C,MATCH($A290,'Smelter Look-up'!$E:$E,0)))","v":""},null,{"$f":"IF(ISERROR($V290),\"\",OFFSET('Smelter Look-up'!$D$4,$V290-4,0)&\"\")","v":""},{"$f":"IF(ISERROR($V290),\"\",OFFSET('Smelter Look-up'!$E$4,$V290-4,0))","v":""},{"$f":"IF(C290=$X$4,\"Enter smelter details\", IF(ISERROR($V290),\"\",OFFSET('Smelter Look-up'!$F$4,$V290-4,0)))","v":""},{"$f":"IF(ISERROR($V290),\"\",OFFSET('Smelter Look-up'!$G$4,$V290-4,0))","v":""},{"$f":"IF(ISERROR($V290),\"\",OFFSET('Smelter Look-up'!$H$4,$V290-4,0))","v":""},{"$f":"IF(ISERROR($V290),\"\",OFFSET('Smelter Look-up'!$I$4,$V290-4,0))","v":""},{"$nulls":7},{"$f":"IF(ISERROR($V290),\"\",OFFSET('Smelter Look-up'!$C$4,$V290-4,0)&\"\")","v":""},"",{"$f":"IF(B290=\"\",\"\",IF(ISERROR(MATCH($J290,SorP!$B$1:$B$6230,0)),\"\",INDIRECT(\"'SorP'!$A$\"&MATCH($J290,SorP!$B$1:$B$6230,0))))","v":""},null,{"$f":"IF(C290=\"\",NA(),MATCH($B290&$C290,'Smelter Look-up'!$J:$J,0))","v":{"$error":"#N/A"}},null,0,null,null,null,""]
[null,{"$f":"IF(LEN(A291)=0,\"\",INDEX('Smelter Look-up'!$A:$A,MATCH($A291,'Smelter Look-up'!$E:$E,0)))","v":""},{"$f":"IF(LEN(A291)=0,\"\",INDEX('Smelter Look-up'!$C:$C,MATCH($A291,'Smelter Look-up'!$E:$E,0)))","v":""},null,{"$f":"IF(ISERROR($V291),\"\",OFFSET('Smelter Look-up'!$D$4,$V291-4,0)&\"\")","v":""},{"$f":"IF(ISERROR($V291),\"\",OFFSET('Smelter Look-up'!$E$4,$V291-4,0))","v":""},{"$f":"IF(C291=$X$4,\"Enter smelter details\", IF(ISERROR($V291),\"\",OFFSET('Smelter Look-up'!$F$4,$V291-4,0)))","v":""},{"$f":"IF(ISERROR($V291),\"\",OFFSET('Smelter Look-up'!$G$4,$V291-4,0))","v":""},{"$f":"IF(ISERROR($V291),\"\",OFFSET('Smelter Look-up'!$H$4,$V291-4,0))","v":""},{"$f":"IF(ISERROR($V291),\"\",OFFSET('Smelter Look-up'!$I$4,$V291-4,0))","v":""},{"$nulls":7},{"$f":"IF(ISERROR($V291),\"\",OFFSET('Smelter Look-up'!$C$4,$V291-4,0)&\"\")","v":""},"",{"$f":"IF(B291=\"\",\"\",IF(ISERROR(MATCH($J291,SorP!$B$1:$B$6230,0)),\"\",INDIRECT(\"'SorP'!$A$\"&MATCH($J291,SorP!$B$1:$B$6230,0))))","v":""},null,{"$f":"IF(C291=\"\",NA(),MATCH($B291&$C291,'Smelter Look-up'!$J:$J,0))","v":{"$error":"#N/A"}},null,0,null,null,null,""]
[null,{"$f":"IF(LEN(A292)=0,\"\",INDEX('Smelter Look-up'!$A:$A,MATCH($A292,'Smelter Look-up'!$E:$E,0)))","v":""},{"$f":"IF(LEN(A292)=0,\"\",INDEX('Smelter Look-up'!$C:$C,MATCH($A292,'Smelter Look-up'!$E:$E,0)))","v":""},null,{"$f":"IF(ISERROR($V292),\"\",OFFSET('Smelter Look-up'!$D$4,$V292-4,0)&\"\")","v":""},{"$f":"IF(ISERROR($V292),\"\",OFFSET('Smelter Look-up'!$E$4,$V292-4,0))","v":""},{"$f":"IF(C292=$X$4,\"Enter smelter details\", IF(ISERROR($V292),\"\",OFFSET('Smelter Look-up'!$F$4,$V292-4,0)))","v":""},{"$f":"IF(ISERROR($V292),\"\",OFFSET('Smelter Look-up'!$G$4,$V292-4,0))","v":""},{"$f":"IF(ISERROR($V292),\"\",OFFSET('Smelter Look-up'!$H$4,$V292-4,0))","v":""},{"$f":"IF(ISERROR($V292),\"\",OFFSET('Smelter Look-up'!$I$4,$V292-4,0))","v":""},{"$nulls":7},{"$f":"IF(ISERROR($V292),\"\",OFFSET('Smelter Look-up'!$C$4,$V292-4,0)&\"\")","v":""},"",{"$f":"IF(B292=\"\",\"\",IF(ISERROR(MATCH($J292,SorP!$B$1:$B$6230,0)),\"\",INDIRECT(\"'SorP'!$A$\"&MATCH($J292,SorP!$B$1:$B$6230,0))))","v":""},null,{"$f":"IF(C292=\"\",NA(),MATCH($B292&$C292,'Smelter Look-up'!$J:$J,0))","v":{"$error":"#N/A"}},null,0,null,null,null,""]
[null,{"$f":"IF(LEN(A293)=0,\"\",INDEX('Smelter Look-up'!$A:$A,MATCH($A293,'Smelter Look-up'!$E:$E,0)))","v":""},{"$f":"IF(LEN(A293)=0,\"\",INDEX('Smelter Look-up'!$C:$C,MATCH($A293,'Smelter Look-up'!$E:$E,0)))","v":""},null,{"$f":"IF(ISERROR($V293),\"\",OFFSET('Smelter Look-up'!$D$4,$V293-4,0)&\"\")","v":""},{"$f":"IF(ISERROR($V293),\"\",OFFSET('Smelter Look-up'!$E$4,$V293-4,0))","v":""},{"$f":"IF(C293=$X$4,\"Enter smelter details\", IF(ISERROR($V293),\"\",OFFSET('Smelter Look-up'!$F$4,$V293-4,0)))","v":""},{"$f":"IF(ISERROR($V293),\"\",OFFSET('Smelter Look-up'!$G$4,$V293-4,0))","v":""},{"$f":"IF(ISERROR($V293),\"\",OFFSET('Smelter Look-up'!$H$4,$V293-4,0))","v":""},{"$f":"IF(ISERROR($V293),\"\",OFFSET('Smelter Look-up'!$I$4,$V293-4,0))","v":""},{"$nulls":7},{"$f":"IF(ISERROR($V293),\"\",OFFSET('Smelter Look-up'!$C$4,$V293-4,0)&\"\")","v":""},"",{"$f":"IF(B293=\"\",\"\",IF(ISERROR(MATCH($J293,SorP!$B$1:$B$6230,0)),\"\",INDIRECT(\"'SorP'!$A$\"&MATCH($J293,SorP!$B$1:$B$6230,0))))","v":""},null,{"$f":"IF(C293=\"\",NA(),MATCH($B293&$C293,'Smelter Look-up'!$J:$J,0))","v":{"$error":"#N/A"}},null,0,null,null,null,""]
[null,{"$f":"IF(LEN(A294)=0,\"\",INDEX('Smelter Look-up'!$A:$A,MATCH($A294,'Smelter Look-up'!$E:$E,0)))","v":""},{"$f":"IF(LEN(A294)=0,\"\",INDEX('Smelter Look-up'!$C:$C,MATCH($A294,'Smelter Look-up'!$E:$E,0)))","v":""},null,{"$f":"IF(ISERROR($V294),\"\",OFFSET('Smelter Look-up'!$D$4,$V294-4,0)&\"\")","v":""},{"$f":"IF(ISERROR($V294),\"\",OFFSET('Smelter Look-up'!$E$4,$V294-4,0))","v":""},{"$f":"IF(C294=$X$4,\"Enter smelter details\", IF(ISERROR($V294),\"\",OFFSET('Smelter Look-up'!$F$4,$V294-4,0)))","v":""},{"$f":"IF(ISERROR($V294),\"\",OFFSET('Smelter Look-up'!$G$4,$V294-4,0))","v":""},{"$f":"IF(ISERROR($V294),\"\",OFFSET('Smelter Look-up'!$H$4,$V294-4,0))","v":""},{"$f":"IF(ISERROR($V294),\"\",OFFSET('Smelter Look-up'!$I$4,$V294-4,0))","v":""},{"$nulls":7},{"$f":"IF(ISERROR($V294),\"\",OFFSET('Smelter Look-up'!$C$4,$V294-4,0)&\"\")","v":""},"",{"$f":"IF(B294=\"\",\"\",IF(ISERROR(MATCH($J294,SorP!$B$1:$B$6230,0)),\"\",INDIRECT(\"'SorP'!$A$\"&MATCH($J294,SorP!$B$1:$B$6230,0))))","v":""},null,{"$f":"IF(C294=\"\",NA(),MATCH($B294&$C294,'Smelter Look-up'!$J:$J,0))","v":{"$error":"#N/A"}},null,0,null,null,null,""]
[null,{"$f":"IF(LEN(A295)=0,\"\",INDEX('Smelter Look-up'!$A:$A,MATCH($A295,'Smelter Look-up'!$E:$E,0)))","v":""},{"$f":"IF(LEN(A295)=0,\"\",INDEX('Smelter Look-up'!$C:$C,MATCH($A295,'Smelter Look-up'!$E:$E,0)))","v":""},null,{"$f":"IF(ISERROR($V295),\"\",OFFSET('Smelter Look-up'!$D$4,$V295-4,0)&\"\")","v":""},{"$f":"IF(ISERROR($V295),\"\",OFFSET('Smelter Look-up'!$E$4,$V295-4,0))","v":""},{"$f":"IF(C295=$X$4,\"Enter smelter details\", IF(ISERROR($V295),\"\",OFFSET('Smelter Look-up'!$F$4,$V295-4,0)))","v":""},{"$f":"IF(ISERROR($V295),\"\",OFFSET('Smelter Look-up'!$G$4,$V295-4,0))","v":""},{"$f":"IF(ISERROR($V295),\"\",OFFSET('Smelter Look-up'!$H$4,$V295-4,0))","v":""},{"$f":"IF(ISERROR($V295),\"\",OFFSET('Smelter Look-up'!$I$4,$V295-4,0))","v":""},{"$nulls":7},{"$f":"IF(ISERROR($V295),\"\",OFFSET('Smelter Look-up'!$C$4,$V295-4,0)&\"\")","v":""},"",{"$f":"IF(B295=\"\",\"\",IF(ISERROR(MATCH($J295,SorP!$B$1:$B$6230,0)),\"\",INDIRECT(\"'SorP'!$A$\"&MATCH($J295,SorP!$B$1:$B$6230,0))))","v":""},null,{"$f":"IF(C295=\"\",NA(),MATCH($B295&$C295,'Smelter Look-up'!$J:$J,0))","v":{"$error":"#N/A"}},null,0,null,null,null,""]
[null,{"$f":"IF(LEN(A296)=0,\"\",INDEX('Smelter Look-up'!$A:$A,MATCH($A296,'Smelter Look-up'!$E:$E,0)))","v":""},{"$f":"IF(LEN(A296)=0,\"\",INDEX('Smelter Look-up'!$C:$C,MATCH($A296,'Smelter Look-up'!$E:$E,0)))","v":""},null,{"$f":"IF(ISERROR($V296),\"\",OFFSET('Smelter Look-up'!$D$4,$V296-4,0)&\"\")","v":""},{"$f":"IF(ISERROR($V296),\"\",OFFSET('Smelter Look-up'!$E$4,$V296-4,0))","v":""},{"$f":"IF(C296=$X$4,\"Enter smelter details\", IF(ISERROR($V296),\"\",OFFSET('Smelter Look-up'!$F$4,$V296-4,0)))","v":""},{"$f":"IF(ISERROR($V296),\"\",OFFSET('Smelter Look-up'!$G$4,$V296-4,0))","v":""},{"$f":"IF(ISERROR($V296),\"\",OFFSET('Smelter Look-up'!$H$4,$V296-4,0))","v":""},{"$f":"IF(ISERROR($V296),\"\",OFFSET('Smelter Look-up'!$I$4,$V296-4,0))","v":""},{"$nulls":7},{"$f":"IF(ISERROR($V296),\"\",OFFSET('Smelter Look-up'!$C$4,$V296-4,0)&\"\")","v":""},"",{"$f":"IF(B296=\"\",\"\",IF(ISERROR(MATCH($J296,SorP!$B$1:$B$6230,0)),\"\",INDIRECT(\"'SorP'!$A$\"&MATCH($J296,SorP!$B$1:$B$6230,0))))","v":""},null,{"$f":"IF(C296=\"\",NA(),MATCH($B296&$C296,'Smelter Look-up'!$J:$J,0))","v":{"$error":"#N/A"}},null,0,null,null,null,""]
[null,{"$f":"IF(LEN(A297)=0,\"\",INDEX('Smelter Look-up'!$A:$A,MATCH($A297,'Smelter Look-up'!$E:$E,0)))","v":""},{"$f":"IF(LEN(A297)=0,\"\",INDEX('Smelter Look-up'!$C:$C,MATCH($A297,'Smelter Look-up'!$E:$E,0)))","v":""},null,{"$f":"IF(ISERROR($V297),\"\",OFFSET('Smelter Look-up'!$D$4,$V297-4,0)&\"\")","v":""},{"$f":"IF(ISERROR($V297),\"\",OFFSET('Smelter Look-up'!$E$4,$V297-4,0))","v":""},{"$f":"IF(C297=$X$4,\"Enter smelter details\", IF(ISERROR($V297),\"\",OFFSET('Smelter Look-up'!$F$4,$V297-4,0)))","v":""},{"$f":"IF(ISERROR($V297),\"\",OFFSET('Smelter Look-up'!$G$4,$V297-4,0))","v":""},{"$f":"IF(ISERROR($V297),\"\",OFFSET('Smelter Look-up'!$H$4,$V297-4,0))","v":""},{"$f":"IF(ISERROR($V297),\"\",OFFSET('Smelter Look-up'!$I$4,$V297-4,0))","v":""},{"$nulls":7},{"$f":"IF(ISERROR($V297),\"\",OFFSET('Smelter Look-up'!$C$4,$V297-4,0)&\"\")","v":""},"",{"$f":"IF(B297=\"\",\"\",IF(ISERROR(MATCH($J297,SorP!$B$1:$B$6230,0)),\"\",INDIRECT(\"'SorP'!$A$\"&MATCH($J297,SorP!$B$1:$B$6230,0))))","v":""},null,{"$f":"IF(C297=\"\",NA(),MATCH($B297&$C297,'Smelter Look-up'!$J:$J,0))","v":{"$error":"#N/A"}},null,0,null,null,null,""]
[null,{"$f":"IF(LEN(A298)=0,\"\",INDEX('Smelter Look-up'!$A:$A,MATCH($A298,'Smelter Look-up'!$E:$E,0)))","v":""},{"$f":"IF(LEN(A298)=0,\"\",INDEX('Smelter Look-up'!$C:$C,MATCH($A298,'Smelter Look-up'!$E:$E,0)))","v":""},null,{"$f":"IF(ISERROR($V298),\"\",OFFSET('Smelter Look-up'!$D$4,$V298-4,0)&\"\")","v":""},{"$f":"IF(ISERROR($V298),\"\",OFFSET('Smelter Look-up'!$E$4,$V298-4,0))","v":""},{"$f":"IF(C298=$X$4,\"Enter smelter details\", IF(ISERROR($V298),\"\",OFFSET('Smelter Look-up'!$F$4,$V298-4,0)))","v":""},{"$f":"IF(ISERROR($V298),\"\",OFFSET('Smelter Look-up'!$G$4,$V298-4,0))","v":""},{"$f":"IF(ISERROR($V298),\"\",OFFSET('Smelter Look-up'!$H$4,$V298-4,0))","v":""},{"$f":"IF(ISERROR($V298),\"\",OFFSET('Smelter Look-up'!$I$4,$V298-4,0))","v":""},{"$nulls":7},{"$f":"IF(ISERROR($V298),\"\",OFFSET('Smelter Look-up'!$C$4,$V298-4,0)&\"\")","v":""},"",{"$f":"IF(B298=\"\",\"\",IF(ISERROR(MATCH($J298,SorP!$B$1:$B$6230,0)),\"\",INDIRECT(\"'SorP'!$A$\"&MATCH($J298,SorP!$B$1:$B$6230,0))))","v":""},null,{"$f":"IF(C298=\"\",NA(),MATCH($B298&$C298,'Smelter Look-up'!$J:$J,0))","v":{"$error":"#N/A"}},null,0,null,null,null,""]
[null,{"$f":"IF(LEN(A299)=0,\"\",INDEX('Smelter Look-up'!$A:$A,MATCH($A299,'Smelter Look-up'!$E:$E,0)))","v":""},{"$f":"IF(LEN(A299)=0,\"\",INDEX('Smelter Look-up'!$C:$C,MATCH($A299,'Smelter Look-up'!$E:$E,0)))","v":""},null,{"$f":"IF(ISERROR($V299),\"\",OFFSET('Smelter Look-up'!$D$4,$V299-4,0)&\"\")","v":""},{"$f":"IF(ISERROR($V299),\"\",OFFSET('Smelter Look-up'!$E$4,$V299-4,0))","v":""},{"$f":"IF(C299=$X$4,\"Enter smelter details\", IF(ISERROR($V299),\"\",OFFSET('Smelter Look-up'!$F$4,$V299-4,0)))","v":""},{"$f":"IF(ISERROR($V299),\"\",OFFSET('Smelter Look-up'!$G$4,$V299-4,0))","v":""},{"$f":"IF(ISERROR($V299),\"\",OFFSET('Smelter Look-up'!$H$4,$V299-4,0))","v":""},{"$f":"IF(ISERROR($V299),\"\",OFFSET('Smelter Look-up'!$I$4,$V299-4,0))","v":""},{"$nulls":7},{"$f":"IF(ISERROR($V299),\"\",OFFSET('Smelter Look-up'!$C$4,$V299-4,0)&\"\")","v":""},"",{"$f":"IF(B299=\"\",\"\",IF(ISERROR(MATCH($J299,SorP!$B$1:$B$6230,0)),\"\",INDIRECT(\"'SorP'!$A$\"&MATCH($J299,SorP!$B$1:$B$6230,0))))","v":""},null,{"$f":"IF(C299=\"\",NA(),MATCH($B299&$C299,'Smelter Look-up'!$J:$J,0))","v":{"$error":"#N/A"}},null,0,null,null,null,""]
[null,{"$f":"IF(LEN(A300)=0,\"\",INDEX('Smelter Look-up'!$A:$A,MATCH($A300,'Smelter Look-up'!$E:$E,0)))","v":""},{"$f":"IF(LEN(A300)=0,\"\",INDEX('Smelter Look-up'!$C:$C,MATCH($A300,'Smelter Look-up'!$E:$E,0)))","v":""},null,{"$f":"IF(ISERROR($V300),\"\",OFFSET('Smelter Look-up'!$D$4,$V300-4,0)&\"\")","v":""},{"$f":"IF(ISERROR($V300),\"\",OFFSET('Smelter Look-up'!$E$4,$V300-4,0))","v":""},{"$f":"IF(C300=$X$4,\"Enter smelter details\", IF(ISERROR($V300),\"\",OFFSET('Smelter Look-up'!$F$4,$V300-4,0)))","v":""},{"$f":"IF(ISERROR($V300),\"\",OFFSET('Smelter Look-up'!$G$4,$V300-4,0))","v":""},{"$f":"IF(ISERROR($V300),\"\",OFFSET('Smelter Look-up'!$H$4,$V300-4,0))","v":""},{"$f":"IF(ISERROR($V300),\"\",OFFSET('Smelter Look-up'!$I$4,$V300-4,0))","v":""},{"$nulls":7},{"$f":"IF(ISERROR($V300),\"\",OFFSET('Smelter Look-up'!$C$4,$V300-4,0)&\"\")","v":""},"",{"$f":"IF(B300=\"\",\"\",IF(ISERROR(MATCH($J300,SorP!$B$1:$B$6230,0)),\"\",INDIRECT(\"'SorP'!$A$\"&MATCH($J300,SorP!$B$1:$B$6230,0))))","v":""},null,{"$f":"IF(C300=\"\",NA(),MATCH($B300&$C300,'Smelter Look-up'!$J:$J,0))","v":{"$error":"#N/A"}},null,0,null,null,null,""]
[null,{"$f":"IF(LEN(A301)=0,\"\",INDEX('Smelter Look-up'!$A:$A,MATCH($A301,'Smelter Look-up'!$E:$E,0)))","v":""},{"$f":"IF(LEN(A301)=0,\"\",INDEX('Smelter Look-up'!$C:$C,MATCH($A301,'Smelter Look-up'!$E:$E,0)))","v":""},null,{"$f":"IF(ISERROR($V301),\"\",OFFSET('Smelter Look-up'!$D$4,$V301-4,0)&\"\")","v":""},{"$f":"IF(ISERROR($V301),\"\",OFFSET('Smelter Look-up'!$E$4,$V301-4,0))","v":""},{"$f":"IF(C301=$X$4,\"Enter smelter details\", IF(ISERROR($V301),\"\",OFFSET('Smelter Look-up'!$F$4,$V301-4,0)))","v":""},{"$f":"IF(ISERROR($V301),\"\",OFFSET('Smelter Look-up'!$G$4,$V301-4,0))","v":""},{"$f":"IF(ISERROR($V301),\"\",OFFSET('Smelter Look-up'!$H$4,$V301-4,0))","v":""},{"$f":"IF(ISERROR($V301),\"\",OFFSET('Smelter Look-up'!$I$4,$V301-4,0))","v":""},{"$nulls":7},{"$f":"IF(ISERROR($V301),\"\",OFFSET('Smelter Look-up'!$C$4,$V301-4,0)&\"\")","v":""},"",{"$f":"IF(B301=\"\",\"\",IF(ISERROR(MATCH($J301,SorP!$B$1:$B$6230,0)),\"\",INDIRECT(\"'SorP'!$A$\"&MATCH($J301,SorP!$B$1:$B$6230,0))))","v":""},null,{"$f":"IF(C301=\"\",NA(),MATCH($B301&$C301,'Smelter Look-up'!$J:$J,0))","v":{"$error":"#N/A"}},null,0,null,null,null,""]
[null,{"$f":"IF(LEN(A302)=0,\"\",INDEX('Smelter Look-up'!$A:$A,MATCH($A302,'Smelter Look-up'!$E:$E,0)))","v":""},{"$f":"IF(LEN(A302)=0,\"\",INDEX('Smelter Look-up'!$C:$C,MATCH($A302,'Smelter Look-up'!$E:$E,0)))","v":""},null,{"$f":"IF(ISERROR($V302),\"\",OFFSET('Smelter Look-up'!$D$4,$V302-4,0)&\"\")","v":""},{"$f":"IF(ISERROR($V302),\"\",OFFSET('Smelter Look-up'!$E$4,$V302-4,0))","v":""},{"$f":"IF(C302=$X$4,\"Enter smelter details\", IF(ISERROR($V302),\"\",OFFSET('Smelter Look-up'!$F$4,$V302-4,0)))","v":""},{"$f":"IF(ISERROR($V302),\"\",OFFSET('Smelter Look-up'!$G$4,$V302-4,0))","v":""},{"$f":"IF(ISERROR($V302),\"\",OFFSET('Smelter Look-up'!$H$4,$V302-4,0))","v":""},{"$f":"IF(ISERROR($V302),\"\",OFFSET('Smelter Look-up'!$I$4,$V302-4,0))","v":""},{"$nulls":7},{"$f":"IF(ISERROR($V302),\"\",OFFSET('Smelter Look-up'!$C$4,$V302-4,0)&\"\")","v":""},"",{"$f":"IF(B302=\"\",\"\",IF(ISERROR(MATCH($J302,SorP!$B$1:$B$6230,0)),\"\",INDIRECT(\"'SorP'!$A$\"&MATCH($J302,SorP!$B$1:$B$6230,0))))","v":""},null,{"$f":"IF(C302=\"\",NA(),MATCH($B302&$C302,'Smelter Look-up'!$J:$J,0))","v":{"$error":"#N/A"}},null,0,null,null,null,""]
[null,{"$f":"IF(LEN(A303)=0,\"\",INDEX('Smelter Look-up'!$A:$A,MATCH($A303,'Smelter Look-up'!$E:$E,0)))","v":""},{"$f":"IF(LEN(A303)=0,\"\",INDEX('Smelter Look-up'!$C:$C,MATCH($A303,'Smelter Look-up'!$E:$E,0)))","v":""},null,{"$f":"IF(ISERROR($V303),\"\",OFFSET('Smelter Look-up'!$D$4,$V303-4,0)&\"\")","v":""},{"$f":"IF(ISERROR($V303),\"\",OFFSET('Smelter Look-up'!$E$4,$V303-4,0))","v":""},{"$f":"IF(C303=$X$4,\"Enter smelter details\", IF(ISERROR($V303),\"\",OFFSET('Smelter Look-up'!$F$4,$V303-4,0)))","v":""},{"$f":"IF(ISERROR($V303),\"\",OFFSET('Smelter Look-up'!$G$4,$V303-4,0))","v":""},{"$f":"IF(ISERROR($V303),\"\",OFFSET('Smelter Look-up'!$H$4,$V303-4,0))","v":""},{"$f":"IF(ISERROR($V303),\"\",OFFSET('Smelter Look-up'!$I$4,$V303-4,0))","v":""},{"$nulls":7},{"$f":"IF(ISERROR($V303),\"\",OFFSET('Smelter Look-up'!$C$4,$V303-4,0)&\"\")","v":""},"",{"$f":"IF(B303=\"\",\"\",IF(ISERROR(MATCH($J303,SorP!$B$1:$B$6230,0)),\"\",INDIRECT(\"'SorP'!$A$\"&MATCH($J303,SorP!$B$1:$B$6230,0))))","v":""},null,{"$f":"IF(C303=\"\",NA(),MATCH($B303&$C303,'Smelter Look-up'!$J:$J,0))","v":{"$error":"#N/A"}},null,0,null,null,null,""]
[null,{"$f":"IF(LEN(A304)=0,\"\",INDEX('Smelter Look-up'!$A:$A,MATCH($A304,'Smelter Look-up'!$E:$E,0)))","v":""},{"$f":"IF(LEN(A304)=0,\"\",INDEX('Smelter Look-up'!$C:$C,MATCH($A304,'Smelter Look-up'!$E:$E,0)))","v":""},null,{"$f":"IF(ISERROR($V304),\"\",OFFSET('Smelter Look-up'!$D$4,$V304-4,0)&\"\")","v":""},{"$f":"IF(ISERROR($V304),\"\",OFFSET('Smelter Look-up'!$E$4,$V304-4,0))","v":""},{"$f":"IF(C304=$X$4,\"Enter smelter details\", IF(ISERROR($V304),\"\",OFFSET('Smelter Look-up'!$F$4,$V304-4,0)))","v":""},{"$f":"IF(ISERROR($V304),\"\",OFFSET('Smelter Look-up'!$G$4,$V304-4,0))","v":""},{"$f":"IF(ISERROR($V304),\"\",OFFSET('Smelter Look-up'!$H$4,$V304-4,0))","v":""},{"$f":"IF(ISERROR($V304),\"\",OFFSET('Smelter Look-up'!$I$4,$V304-4,0))","v":""},{"$nulls":7},{"$f":"IF(ISERROR($V304),\"\",OFFSET('Smelter Look-up'!$C$4,$V304-4,0)&\"\")","v":""},"",{"$f":"IF(B304=\"\",\"\",IF(ISERROR(MATCH($J304,SorP!$B$1:$B$6230,0)),\"\",INDIRECT(\"'SorP'!$A$\"&MATCH($J304,SorP!$B$1:$B$6230,0))))","v":""},null,{"$f":"IF(C304=\"\",NA(),MATCH($B304&$C304,'Smelter Look-up'!$J:$J,0))","v":{"$error":"#N/A"}},null,0,null,null,null,""]
[null,{"$f":"IF(LEN(A305)=0,\"\",INDEX('Smelter Look-up'!$A:$A,MATCH($A305,'Smelter Look-up'!$E:$E,0)))","v":""},{"$f":"IF(LEN(A305)=0,\"\",INDEX('Smelter Look-up'!$C:$C,MATCH($A305,'Smelter Look-up'!$E:$E,0)))","v":""},null,{"$f":"IF(ISERROR($V305),\"\",OFFSET('Smelter Look-up'!$D$4,$V305-4,0)&\"\")","v":""},{"$f":"IF(ISERROR($V305),\"\",OFFSET('Smelter Look-up'!$E$4,$V305-4,0))","v":""},{"$f":"IF(C305=$X$4,\"Enter smelter details\", IF(ISERROR($V305),\"\",OFFSET('Smelter Look-up'!$F$4,$V305-4,0)))","v":""},{"$f":"IF(ISERROR($V305),\"\",OFFSET('Smelter Look-up'!$G$4,$V305-4,0))","v":""},{"$f":"IF(ISERROR($V305),\"\",OFFSET('Smelter Look-up'!$H$4,$V305-4,0))","v":""},{"$f":"IF(ISERROR($V305),\"\",OFFSET('Smelter Look-up'!$I$4,$V305-4,0))","v":""},{"$nulls":7},{"$f":"IF(ISERROR($V305),\"\",OFFSET('Smelter Look-up'!$C$4,$V305-4,0)&\"\")","v":""},"",{"$f":"IF(B305=\"\",\"\",IF(ISERROR(MATCH($J305,SorP!$B$1:$B$6230,0)),\"\",INDIRECT(\"'SorP'!$A$\"&MATCH($J305,SorP!$B$1:$B$6230,0))))","v":""},null,{"$f":"IF(C305=\"\",NA(),MATCH($B305&$C305,'Smelter Look-up'!$J:$J,0))","v":{"$error":"#N/A"}},null,0,null,null,null,""]
[null,{"$f":"IF(LEN(A306)=0,\"\",INDEX('Smelter Look-up'!$A:$A,MATCH($A306,'Smelter Look-up'!$E:$E,0)))","v":""},{"$f":"IF(LEN(A306)=0,\"\",INDEX('Smelter Look-up'!$C:$C,MATCH($A306,'Smelter Look-up'!$E:$E,0)))","v":""},null,{"$f":"IF(ISERROR($V306),\"\",OFFSET('Smelter Look-up'!$D$4,$V306-4,0)&\"\")","v":""},{"$f":"IF(ISERROR($V306),\"\",OFFSET('Smelter Look-up'!$E$4,$V306-4,0))","v":""},{"$f":"IF(C306=$X$4,\"Enter smelter details\", IF(ISERROR($V306),\"\",OFFSET('Smelter Look-up'!$F$4,$V306-4,0)))","v":""},{"$f":"IF(ISERROR($V306),\"\",OFFSET('Smelter Look-up'!$G$4,$V306-4,0))","v":""},{"$f":"IF(ISERROR($V306),\"\",OFFSET('Smelter Look-up'!$H$4,$V306-4,0))","v":""},{"$f":"IF(ISERROR($V306),\"\",OFFSET('Smelter Look-up'!$I$4,$V306-4,0))","v":""},{"$nulls":7},{"$f":"IF(ISERROR($V306),\"\",OFFSET('Smelter Look-up'!$C$4,$V306-4,0)&\"\")","v":""},"",{"$f":"IF(B306=\"\",\"\",IF(ISERROR(MATCH($J306,SorP!$B$1:$B$6230,0)),\"\",INDIRECT(\"'SorP'!$A$\"&MATCH($J306,SorP!$B$1:$B$6230,0))))","v":""},null,{"$f":"IF(C306=\"\",NA(),MATCH($B306&$C306,'Smelter Look-up'!$J:$J,0))","v":{"$error":"#N/A"}},null,0,null,null,null,""]
[null,{"$f":"IF(LEN(A307)=0,\"\",INDEX('Smelter Look-up'!$A:$A,MATCH($A307,'Smelter Look-up'!$E:$E,0)))","v":""},{"$f":"IF(LEN(A307)=0,\"\",INDEX('Smelter Look-up'!$C:$C,MATCH($A307,'Smelter Look-up'!$E:$E,0)))","v":""},null,{"$f":"IF(ISERROR($V307),\"\",OFFSET('Smelter Look-up'!$D$4,$V307-4,0)&\"\")","v":""},{"$f":"IF(ISERROR($V307),\"\",OFFSET('Smelter Look-up'!$E$4,$V307-4,0))","v":""},{"$f":"IF(C307=$X$4,\"Enter smelter details\", IF(ISERROR($V307),\"\",OFFSET('Smelter Look-up'!$F$4,$V307-4,0)))","v":""},{"$f":"IF(ISERROR($V307),\"\",OFFSET('Smelter Look-up'!$G$4,$V307-4,0))","v":""},{"$f":"IF(ISERROR($V307),\"\",OFFSET('Smelter Look-up'!$H$4,$V307-4,0))","v":""},{"$f":"IF(ISERROR($V307),\"\",OFFSET('Smelter Look-up'!$I$4,$V307-4,0))","v":""},{"$nulls":7},{"$f":"IF(ISERROR($V307),\"\",OFFSET('Smelter Look-up'!$C$4,$V307-4,0)&\"\")","v":""},"",{"$f":"IF(B307=\"\",\"\",IF(ISERROR(MATCH($J307,SorP!$B$1:$B$6230,0)),\"\",INDIRECT(\"'SorP'!$A$\"&MATCH($J307,SorP!$B$1:$B$6230,0))))","v":""},null,{"$f":"IF(C307=\"\",NA(),MATCH($B307&$C307,'Smelter Look-up'!$J:$J,0))","v":{"$error":"#N/A"}},null,0,null,null,null,""]
[null,{"$f":"IF(LEN(A308)=0,\"\",INDEX('Smelter Look-up'!$A:$A,MATCH($A308,'Smelter Look-up'!$E:$E,0)))","v":""},{"$f":"IF(LEN(A308)=0,\"\",INDEX('Smelter Look-up'!$C:$C,MATCH($A308,'Smelter Look-up'!$E:$E,0)))","v":""},null,{"$f":"IF(ISERROR($V308),\"\",OFFSET('Smelter Look-up'!$D$4,$V308-4,0)&\"\")","v":""},{"$f":"IF(ISERROR($V308),\"\",OFFSET('Smelter Look-up'!$E$4,$V308-4,0))","v":""},{"$f":"IF(C308=$X$4,\"Enter smelter details\", IF(ISERROR($V308),\"\",OFFSET('Smelter Look-up'!$F$4,$V308-4,0)))","v":""},{"$f":"IF(ISERROR($V308),\"\",OFFSET('Smelter Look-up'!$G$4,$V308-4,0))","v":""},{"$f":"IF(ISERROR($V308),\"\",OFFSET('Smelter Look-up'!$H$4,$V308-4,0))","v":""},{"$f":"IF(ISERROR($V308),\"\",OFFSET('Smelter Look-up'!$I$4,$V308-4,0))","v":""},{"$nulls":7},{"$f":"IF(ISERROR($V308),\"\",OFFSET('Smelter Look-up'!$C$4,$V308-4,0)&\"\")","v":""},"",{"$f":"IF(B308=\"\",\"\",IF(ISERROR(MATCH($J308,SorP!$B$1:$B$6230,0)),\"\",INDIRECT(\"'SorP'!$A$\"&MATCH($J308,SorP!$B$1:$B$6230,0))))","v":""},null,{"$f":"IF(C308=\"\",NA(),MATCH($B308&$C308,'Smelter Look-up'!$J:$J,0))","v":{"$error":"#N/A"}},null,0,null,null,null,""]
[null,{"$f":"IF(LEN(A309)=0,\"\",INDEX('Smelter Look-up'!$A:$A,MATCH($A309,'Smelter Look-up'!$E:$E,0)))","v":""},{"$f":"IF(LEN(A309)=0,\"\",INDEX('Smelter Look-up'!$C:$C,MATCH($A309,'Smelter Look-up'!$E:$E,0)))","v":""},null,{"$f":"IF(ISERROR($V309),\"\",OFFSET('Smelter Look-up'!$D$4,$V309-4,0)&\"\")","v":""},{"$f":"IF(ISERROR($V309),\"\",OFFSET('Smelter Look-up'!$E$4,$V309-4,0))","v":""},{"$f":"IF(C309=$X$4,\"Enter smelter details\", IF(ISERROR($V309),\"\",OFFSET('Smelter Look-up'!$F$4,$V309-4,0)))","v":""},{"$f":"IF(ISERROR($V309),\"\",OFFSET('Smelter Look-up'!$G$4,$V309-4,0))","v":""},{"$f":"IF(ISERROR($V309),\"\",OFFSET('Smelter Look-up'!$H$4,$V309-4,0))","v":""},{"$f":"IF(ISERROR($V309),\"\",OFFSET('Smelter Look-up'!$I$4,$V309-4,0))","v":""},{"$nulls":7},{"$f":"IF(ISERROR($V309),\"\",OFFSET('Smelter Look-up'!$C$4,$V309-4,0)&\"\")","v":""},"",{"$f":"IF(B309=\"\",\"\",IF(ISERROR(MATCH($J309,SorP!$B$1:$B$6230,0)),\"\",INDIRECT(\"'SorP'!$A$\"&MATCH($J309,SorP!$B$1:$B$6230,0))))","v":""},null,{"$f":"IF(C309=\"\",NA(),MATCH($B309&$C309,'Smelter Look-up'!$J:$J,0))","v":{"$error":"#N/A"}},null,0,null,null,null,""]
[null,{"$f":"IF(LEN(A310)=0,\"\",INDEX('Smelter Look-up'!$A:$A,MATCH($A310,'Smelter Look-up'!$E:$E,0)))","v":""},{"$f":"IF(LEN(A310)=0,\"\",INDEX('Smelter Look-up'!$C:$C,MATCH($A310,'Smelter Look-up'!$E:$E,0)))","v":""},null,{"$f":"IF(ISERROR($V310),\"\",OFFSET('Smelter Look-up'!$D$4,$V310-4,0)&\"\")","v":""},{"$f":"IF(ISERROR($V310),\"\",OFFSET('Smelter Look-up'!$E$4,$V310-4,0))","v":""},{"$f":"IF(C310=$X$4,\"Enter smelter details\", IF(ISERROR($V310),\"\",OFFSET('Smelter Look-up'!$F$4,$V310-4,0)))","v":""},{"$f":"IF(ISERROR($V310),\"\",OFFSET('Smelter Look-up'!$G$4,$V310-4,0))","v":""},{"$f":"IF(ISERROR($V310),\"\",OFFSET('Smelter Look-up'!$H$4,$V310-4,0))","v":""},{"$f":"IF(ISERROR($V310),\"\",OFFSET('Smelter Look-up'!$I$4,$V310-4,0))","v":""},{"$nulls":7},{"$f":"IF(ISERROR($V310),\"\",OFFSET('Smelter Look-up'!$C$4,$V310-4,0)&\"\")","v":""},"",{"$f":"IF(B310=\"\",\"\",IF(ISERROR(MATCH($J310,SorP!$B$1:$B$6230,0)),\"\",INDIRECT(\"'SorP'!$A$\"&MATCH($J310,SorP!$B$1:$B$6230,0))))","v":""},null,{"$f":"IF(C310=\"\",NA(),MATCH($B310&$C310,'Smelter Look-up'!$J:$J,0))","v":{"$error":"#N/A"}},null,0,null,null,null,""]
[null,{"$f":"IF(LEN(A311)=0,\"\",INDEX('Smelter Look-up'!$A:$A,MATCH($A311,'Smelter Look-up'!$E:$E,0)))","v":""},{"$f":"IF(LEN(A311)=0,\"\",INDEX('Smelter Look-up'!$C:$C,MATCH($A311,'Smelter Look-up'!$E:$E,0)))","v":""},null,{"$f":"IF(ISERROR($V311),\"\",OFFSET('Smelter Look-up'!$D$4,$V311-4,0)&\"\")","v":""},{"$f":"IF(ISERROR($V311),\"\",OFFSET('Smelter Look-up'!$E$4,$V311-4,0))","v":""},{"$f":"IF(C311=$X$4,\"Enter smelter details\", IF(ISERROR($V311),\"\",OFFSET('Smelter Look-up'!$F$4,$V311-4,0)))","v":""},{"$f":"IF(ISERROR($V311),\"\",OFFSET('Smelter Look-up'!$G$4,$V311-4,0))","v":""},{"$f":"IF(ISERROR($V311),\"\",OFFSET('Smelter Look-up'!$H$4,$V311-4,0))","v":""},{"$f":"IF(ISERROR($V311),\"\",OFFSET('Smelter Look-up'!$I$4,$V311-4,0))","v":""},{"$nulls":7},{"$f":"IF(ISERROR($V311),\"\",OFFSET('Smelter Look-up'!$C$4,$V311-4,0)&\"\")","v":""},"",{"$f":"IF(B311=\"\",\"\",IF(ISERROR(MATCH($J311,SorP!$B$1:$B$6230,0)),\"\",INDIRECT(\"'SorP'!$A$\"&MATCH($J311,SorP!$B$1:$B$6230,0))))","v":""},null,{"$f":"IF(C311=\"\",NA(),MATCH($B311&$C311,'Smelter Look-up'!$J:$J,0))","v":{"$error":"#N/A"}},null,0,null,null,null,""]
[null,{"$f":"IF(LEN(A312)=0,\"\",INDEX('Smelter Look-up'!$A:$A,MATCH($A312,'Smelter Look-up'!$E:$E,0)))","v":""},{"$f":"IF(LEN(A312)=0,\"\",INDEX('Smelter Look-up'!$C:$C,MATCH($A312,'Smelter Look-up'!$E:$E,0)))","v":""},null,{"$f":"IF(ISERROR($V312),\"\",OFFSET('Smelter Look-up'!$D$4,$V312-4,0)&\"\")","v":""},{"$f":"IF(ISERROR($V312),\"\",OFFSET('Smelter Look-up'!$E$4,$V312-4,0))","v":""},{"$f":"IF(C312=$X$4,\"Enter smelter details\", IF(ISERROR($V312),\"\",OFFSET('Smelter Look-up'!$F$4,$V312-4,0)))","v":""},{"$f":"IF(ISERROR($V312),\"\",OFFSET('Smelter Look-up'!$G$4,$V312-4,0))","v":""},{"$f":"IF(ISERROR($V312),\"\",OFFSET('Smelter Look-up'!$H$4,$V312-4,0))","v":""},{"$f":"IF(ISERROR($V312),\"\",OFFSET('Smelter Look-up'!$I$4,$V312-4,0))","v":""},{"$nulls":7},{"$f":"IF(ISERROR($V312),\"\",OFFSET('Smelter Look-up'!$C$4,$V312-4,0)&\"\")","v":""},"",{"$f":"IF(B312=\"\",\"\",IF(ISERROR(MATCH($J312,SorP!$B$1:$B$6230,0)),\"\",INDIRECT(\"'SorP'!$A$\"&MATCH($J312,SorP!$B$1:$B$6230,0))))","v":""},null,{"$f":"IF(C312=\"\",NA(),MATCH($B312&$C312,'Smelter Look-up'!$J:$J,0))","v":{"$error":"#N/A"}},null,0,null,null,null,""]
[null,{"$f":"IF(LEN(A313)=0,\"\",INDEX('Smelter Look-up'!$A:$A,MATCH($A313,'Smelter Look-up'!$E:$E,0)))","v":""},{"$f":"IF(LEN(A313)=0,\"\",INDEX('Smelter Look-up'!$C:$C,MATCH($A313,'Smelter Look-up'!$E:$E,0)))","v":""},null,{"$f":"IF(ISERROR($V313),\"\",OFFSET('Smelter Look-up'!$D$4,$V313-4,0)&\"\")","v":""},{"$f":"IF(ISERROR($V313),\"\",OFFSET('Smelter Look-up'!$E$4,$V313-4,0))","v":""},{"$f":"IF(C313=$X$4,\"Enter smelter details\", IF(ISERROR($V313),\"\",OFFSET('Smelter Look-up'!$F$4,$V313-4,0)))","v":""},{"$f":"IF(ISERROR($V313),\"\",OFFSET('Smelter Look-up'!$G$4,$V313-4,0))","v":""},{"$f":"IF(ISERROR($V313),\"\",OFFSET('Smelter Look-up'!$H$4,$V313-4,0))","v":""},{"$f":"IF(ISERROR($V313),\"\",OFFSET('Smelter Look-up'!$I$4,$V313-4,0))","v":""},{"$nulls":7},{"$f":"IF(ISERROR($V313),\"\",OFFSET('Smelter Look-up'!$C$4,$V313-4,0)&\"\")","v":""},"",{"$f":"IF(B313=\"\",\"\",IF(ISERROR(MATCH($J313,SorP!$B$1:$B$6230,0)),\"\",INDIRECT(\"'SorP'!$A$\"&MATCH($J313,SorP!$B$1:$B$6230,0))))","v":""},null,{"$f":"IF(C313=\"\",NA(),MATCH($B313&$C313,'Smelter Look-up'!$J:$J,0))","v":{"$error":"#N/A"}},null,0,null,null,null,""]
[null,{"$f":"IF(LEN(A314)=0,\"\",INDEX('Smelter Look-up'!$A:$A,MATCH($A314,'Smelter Look-up'!$E:$E,0)))","v":""},{"$f":"IF(LEN(A314)=0,\"\",INDEX('Smelter Look-up'!$C:$C,MATCH($A314,'Smelter Look-up'!$E:$E,0)))","v":""},null,{"$f":"IF(ISERROR($V314),\"\",OFFSET('Smelter Look-up'!$D$4,$V314-4,0)&\"\")","v":""},{"$f":"IF(ISERROR($V314),\"\",OFFSET('Smelter Look-up'!$E$4,$V314-4,0))","v":""},{"$f":"IF(C314=$X$4,\"Enter smelter details\", IF(ISERROR($V314),\"\",OFFSET('Smelter Look-up'!$F$4,$V314-4,0)))","v":""},{"$f":"IF(ISERROR($V314),\"\",OFFSET('Smelter Look-up'!$G$4,$V314-4,0))","v":""},{"$f":"IF(ISERROR($V314),\"\",OFFSET('Smelter Look-up'!$H$4,$V314-4,0))","v":""},{"$f":"IF(ISERROR($V314),\"\",OFFSET('Smelter Look-up'!$I$4,$V314-4,0))","v":""},{"$nulls":7},{"$f":"IF(ISERROR($V314),\"\",OFFSET('Smelter Look-up'!$C$4,$V314-4,0)&\"\")","v":""},"",{"$f":"IF(B314=\"\",\"\",IF(ISERROR(MATCH($J314,SorP!$B$1:$B$6230,0)),\"\",INDIRECT(\"'SorP'!$A$\"&MATCH($J314,SorP!$B$1:$B$6230,0))))","v":""},null,{"$f":"IF(C314=\"\",NA(),MATCH($B314&$C314,'Smelter Look-up'!$J:$J,0))","v":{"$error":"#N/A"}},null,0,null,null,null,""]
[null,{"$f":"IF(LEN(A315)=0,\"\",INDEX('Smelter Look-up'!$A:$A,MATCH($A315,'Smelter Look-up'!$E:$E,0)))","v":""},{"$f":"IF(LEN(A315)=0,\"\",INDEX('Smelter Look-up'!$C:$C,MATCH($A315,'Smelter Look-up'!$E:$E,0)))","v":""},null,{"$f":"IF(ISERROR($V315),\"\",OFFSET('Smelter Look-up'!$D$4,$V315-4,0)&\"\")","v":""},{"$f":"IF(ISERROR($V315),\"\",OFFSET('Smelter Look-up'!$E$4,$V315-4,0))","v":""},{"$f":"IF(C315=$X$4,\"Enter smelter details\", IF(ISERROR($V315),\"\",OFFSET('Smelter Look-up'!$F$4,$V315-4,0)))","v":""},{"$f":"IF(ISERROR($V315),\"\",OFFSET('Smelter Look-up'!$G$4,$V315-4,0))","v":""},{"$f":"IF(ISERROR($V315),\"\",OFFSET('Smelter Look-up'!$H$4,$V315-4,0))","v":""},{"$f":"IF(ISERROR($V315),\"\",OFFSET('Smelter Look-up'!$I$4,$V315-4,0))","v":""},{"$nulls":7},{"$f":"IF(ISERROR($V315),\"\",OFFSET('Smelter Look-up'!$C$4,$V315-4,0)&\"\")","v":""},{"$f":"IF(B315=\"\",\"\",IF(ISERROR(MATCH($E315,CL,0)),\"Unknown\",INDIRECT(\"'C'!$A$\"&MATCH($E315,CL,0)+1)))","v":""},{"$f":"IF(B315=\"\",\"\",IF(ISERROR(MATCH($J315,SorP!$B$1:$B$6230,0)),\"\",INDIRECT(\"'SorP'!$A$\"&MATCH($J315,SorP!$B$1:$B$6230,0))))","v":""},null,{"$f":"IF(C315=\"\",NA(),MATCH($B315&$C315,'Smelter Look-up'!$J:$J,0))","v":{"$error":"#N/A"}},null,{"$f":"IF(AND(C315=\"Smelter not listed\",OR(LEN(D315)=0,LEN(E315)=0)),1,0)","v":0},null,null,null,{"$f":"B315&C315","v":""}]
[null,{"$f":"IF(LEN(A316)=0,\"\",INDEX('Smelter Look-up'!$A:$A,MATCH($A316,'Smelter Look-up'!$E:$E,0)))","v":""},{"$f":"IF(LEN(A316)=0,\"\",INDEX('Smelter Look-up'!$C:$C,MATCH($A316,'Smelter Look-up'!$E:$E,0)))","v":""},null,{"$f":"IF(ISERROR($V316),\"\",OFFSET('Smelter Look-up'!$D$4,$V316-4,0)&\"\")","v":""},{"$f":"IF(ISERROR($V316),\"\",OFFSET('Smelter Look-up'!$E$4,$V316-4,0))","v":""},{"$f":"IF(C316=$X$4,\"Enter smelter details\", IF(ISERROR($V316),\"\",OFFSET('Smelter Look-up'!$F$4,$V316-4,0)))","v":""},{"$f":"IF(ISERROR($V316),\"\",OFFSET('Smelter Look-up'!$G$4,$V316-4,0))","v":""},{"$f":"IF(ISERROR($V316),\"\",OFFSET('Smelter Look-up'!$H$4,$V316-4,0))","v":""},{"$f":"IF(ISERROR($V316),\"\",OFFSET('Smelter Look-up'!$I$4,$V316-4,0))","v":""},{"$nulls":7},{"$f":"IF(ISERROR($V316),\"\",OFFSET('Smelter Look-up'!$C$4,$V316-4,0)&\"\")","v":""},"",{"$f":"IF(B316=\"\",\"\",IF(ISERROR(MATCH($J316,SorP!$B$1:$B$6230,0)),\"\",INDIRECT(\"'SorP'!$A$\"&MATCH($J316,SorP!$B$1:$B$6230,0))))","v":""},null,{"$f":"IF(C316=\"\",NA(),MATCH($B316&$C316,'Smelter Look-up'!$J:$J,0))","v":{"$error":"#N/A"}},null,0,null,null,null,""]
[null,{"$f":"IF(LEN(A317)=0,\"\",INDEX('Smelter Look-up'!$A:$A,MATCH($A317,'Smelter Look-up'!$E:$E,0)))","v":""},{"$f":"IF(LEN(A317)=0,\"\",INDEX('Smelter Look-up'!$C:$C,MATCH($A317,'Smelter Look-up'!$E:$E,0)))","v":""},null,{"$f":"IF(ISERROR($V317),\"\",OFFSET('Smelter Look-up'!$D$4,$V317-4,0)&\"\")","v":""},{"$f":"IF(ISERROR($V317),\"\",OFFSET('Smelter Look-up'!$E$4,$V317-4,0))","v":""},{"$f":"IF(C317=$X$4,\"Enter smelter details\", IF(ISERROR($V317),\"\",OFFSET('Smelter Look-up'!$F$4,$V317-4,0)))","v":""},{"$f":"IF(ISERROR($V317),\"\",OFFSET('Smelter Look-up'!$G$4,$V317-4,0))","v":""},{"$f":"IF(ISERROR($V317),\"\",OFFSET('Smelter Look-up'!$H$4,$V317-4,0))","v":""},{"$f":"IF(ISERROR($V317),\"\",OFFSET('Smelter Look-up'!$I$4,$V317-4,0))","v":""},{"$nulls":7},{"$f":"IF(ISERROR($V317),\"\",OFFSET('Smelter Look-up'!$C$4,$V317-4,0)&\"\")","v":""},"",{"$f":"IF(B317=\"\",\"\",IF(ISERROR(MATCH($J317,SorP!$B$1:$B$6230,0)),\"\",INDIRECT(\"'SorP'!$A$\"&MATCH($J317,SorP!$B$1:$B$6230,0))))","v":""},null,{"$f":"IF(C317=\"\",NA(),MATCH($B317&$C317,'Smelter Look-up'!$J:$J,0))","v":{"$error":"#N/A"}},null,0,null,null,null,""]
[null,{"$f":"IF(LEN(A318)=0,\"\",INDEX('Smelter Look-up'!$A:$A,MATCH($A318,'Smelter Look-up'!$E:$E,0)))","v":""},{"$f":"IF(LEN(A318)=0,\"\",INDEX('Smelter Look-up'!$C:$C,MATCH($A318,'Smelter Look-up'!$E:$E,0)))","v":""},null,{"$f":"IF(ISERROR($V318),\"\",OFFSET('Smelter Look-up'!$D$4,$V318-4,0)&\"\")","v":""},{"$f":"IF(ISERROR($V318),\"\",OFFSET('Smelter Look-up'!$E$4,$V318-4,0))","v":""},{"$f":"IF(C318=$X$4,\"Enter smelter details\", IF(ISERROR($V318),\"\",OFFSET('Smelter Look-up'!$F$4,$V318-4,0)))","v":""},{"$f":"IF(ISERROR($V318),\"\",OFFSET('Smelter Look-up'!$G$4,$V318-4,0))","v":""},{"$f":"IF(ISERROR($V318),\"\",OFFSET('Smelter Look-up'!$H$4,$V318-4,0))","v":""},{"$f":"IF(ISERROR($V318),\"\",OFFSET('Smelter Look-up'!$I$4,$V318-4,0))","v":""},{"$nulls":7},{"$f":"IF(ISERROR($V318),\"\",OFFSET('Smelter Look-up'!$C$4,$V318-4,0)&\"\")","v":""},"",{"$f":"IF(B318=\"\",\"\",IF(ISERROR(MATCH($J318,SorP!$B$1:$B$6230,0)),\"\",INDIRECT(\"'SorP'!$A$\"&MATCH($J318,SorP!$B$1:$B$6230,0))))","v":""},null,{"$f":"IF(C318=\"\",NA(),MATCH($B318&$C318,'Smelter Look-up'!$J:$J,0))","v":{"$error":"#N/A"}},null,0,null,null,null,""]
[null,{"$f":"IF(LEN(A319)=0,\"\",INDEX('Smelter Look-up'!$A:$A,MATCH($A319,'Smelter Look-up'!$E:$E,0)))","v":""},{"$f":"IF(LEN(A319)=0,\"\",INDEX('Smelter Look-up'!$C:$C,MATCH($A319,'Smelter Look-up'!$E:$E,0)))","v":""},null,{"$f":"IF(ISERROR($V319),\"\",OFFSET('Smelter Look-up'!$D$4,$V319-4,0)&\"\")","v":""},{"$f":"IF(ISERROR($V319),\"\",OFFSET('Smelter Look-up'!$E$4,$V319-4,0))","v":""},{"$f":"IF(C319=$X$4,\"Enter smelter details\", IF(ISERROR($V319),\"\",OFFSET('Smelter Look-up'!$F$4,$V319-4,0)))","v":""},{"$f":"IF(ISERROR($V319),\"\",OFFSET('Smelter Look-up'!$G$4,$V319-4,0))","v":""},{"$f":"IF(ISERROR($V319),\"\",OFFSET('Smelter Look-up'!$H$4,$V319-4,0))","v":""},{"$f":"IF(ISERROR($V319),\"\",OFFSET('Smelter Look-up'!$I$4,$V319-4,0))","v":""},{"$nulls":7},{"$f":"IF(ISERROR($V319),\"\",OFFSET('Smelter Look-up'!$C$4,$V319-4,0)&\"\")","v":""},"",{"$f":"IF(B319=\"\",\"\",IF(ISERROR(MATCH($J319,SorP!$B$1:$B$6230,0)),\"\",INDIRECT(\"'SorP'!$A$\"&MATCH($J319,SorP!$B$1:$B$6230,0))))","v":""},null,{"$f":"IF(C319=\"\",NA(),MATCH($B319&$C319,'Smelter Look-up'!$J:$J,0))","v":{"$error":"#N/A"}},null,0,null,null,null,""]
[null,{"$f":"IF(LEN(A320)=0,\"\",INDEX('Smelter Look-up'!$A:$A,MATCH($A320,'Smelter Look-up'!$E:$E,0)))","v":""},{"$f":"IF(LEN(A320)=0,\"\",INDEX('Smelter Look-up'!$C:$C,MATCH($A320,'Smelter Look-up'!$E:$E,0)))","v":""},null,{"$f":"IF(ISERROR($V320),\"\",OFFSET('Smelter Look-up'!$D$4,$V320-4,0)&\"\")","v":""},{"$f":"IF(ISERROR($V320),\"\",OFFSET('Smelter Look-up'!$E$4,$V320-4,0))","v":""},{"$f":"IF(C320=$X$4,\"Enter smelter details\", IF(ISERROR($V320),\"\",OFFSET('Smelter Look-up'!$F$4,$V320-4,0)))","v":""},{"$f":"IF(ISERROR($V320),\"\",OFFSET('Smelter Look-up'!$G$4,$V320-4,0))","v":""},{"$f":"IF(ISERROR($V320),\"\",OFFSET('Smelter Look-up'!$H$4,$V320-4,0))","v":""},{"$f":"IF(ISERROR($V320),\"\",OFFSET('Smelter Look-up'!$I$4,$V320-4,0))","v":""},{"$nulls":7},{"$f":"IF(ISERROR($V320),\"\",OFFSET('Smelter Look-up'!$C$4,$V320-4,0)&\"\")","v":""},"",{"$f":"IF(B320=\"\",\"\",IF(ISERROR(MATCH($J320,SorP!$B$1:$B$6230,0)),\"\",INDIRECT(\"'SorP'!$A$\"&MATCH($J320,SorP!$B$1:$B$6230,0))))","v":""},null,{"$f":"IF(C320=\"\",NA(),MATCH($B320&$C320,'Smelter Look-up'!$J:$J,0))","v":{"$error":"#N/A"}},null,0,null,null,null,""]
[null,{"$f":"IF(LEN(A321)=0,\"\",INDEX('Smelter Look-up'!$A:$A,MATCH($A321,'Smelter Look-up'!$E:$E,0)))","v":""},{"$f":"IF(LEN(A321)=0,\"\",INDEX('Smelter Look-up'!$C:$C,MATCH($A321,'Smelter Look-up'!$E:$E,0)))","v":""},null,{"$f":"IF(ISERROR($V321),\"\",OFFSET('Smelter Look-up'!$D$4,$V321-4,0)&\"\")","v":""},{"$f":"IF(ISERROR($V321),\"\",OFFSET('Smelter Look-up'!$E$4,$V321-4,0))","v":""},{"$f":"IF(C321=$X$4,\"Enter smelter details\", IF(ISERROR($V321),\"\",OFFSET('Smelter Look-up'!$F$4,$V321-4,0)))","v":""},{"$f":"IF(ISERROR($V321),\"\",OFFSET('Smelter Look-up'!$G$4,$V321-4,0))","v":""},{"$f":"IF(ISERROR($V321),\"\",OFFSET('Smelter Look-up'!$H$4,$V321-4,0))","v":""},{"$f":"IF(ISERROR($V321),\"\",OFFSET('Smelter Look-up'!$I$4,$V321-4,0))","v":""},{"$nulls":7},{"$f":"IF(ISERROR($V321),\"\",OFFSET('Smelter Look-up'!$C$4,$V321-4,0)&\"\")","v":""},"",{"$f":"IF(B321=\"\",\"\",IF(ISERROR(MATCH($J321,SorP!$B$1:$B$6230,0)),\"\",INDIRECT(\"'SorP'!$A$\"&MATCH($J321,SorP!$B$1:$B$6230,0))))","v":""},null,{"$f":"IF(C321=\"\",NA(),MATCH($B321&$C321,'Smelter Look-up'!$J:$J,0))","v":{"$error":"#N/A"}},null,0,null,null,null,""]
[null,{"$f":"IF(LEN(A322)=0,\"\",INDEX('Smelter Look-up'!$A:$A,MATCH($A322,'Smelter Look-up'!$E:$E,0)))","v":""},{"$f":"IF(LEN(A322)=0,\"\",INDEX('Smelter Look-up'!$C:$C,MATCH($A322,'Smelter Look-up'!$E:$E,0)))","v":""},null,{"$f":"IF(ISERROR($V322),\"\",OFFSET('Smelter Look-up'!$D$4,$V322-4,0)&\"\")","v":""},{"$f":"IF(ISERROR($V322),\"\",OFFSET('Smelter Look-up'!$E$4,$V322-4,0))","v":""},{"$f":"IF(C322=$X$4,\"Enter smelter details\", IF(ISERROR($V322),\"\",OFFSET('Smelter Look-up'!$F$4,$V322-4,0)))","v":""},{"$f":"IF(ISERROR($V322),\"\",OFFSET('Smelter Look-up'!$G$4,$V322-4,0))","v":""},{"$f":"IF(ISERROR($V322),\"\",OFFSET('Smelter Look-up'!$H$4,$V322-4,0))","v":""},{"$f":"IF(ISERROR($V322),\"\",OFFSET('Smelter Look-up'!$I$4,$V322-4,0))","v":""},{"$nulls":7},{"$f":"IF(ISERROR($V322),\"\",OFFSET('Smelter Look-up'!$C$4,$V322-4,0)&\"\")","v":""},"",{"$f":"IF(B322=\"\",\"\",IF(ISERROR(MATCH($J322,SorP!$B$1:$B$6230,0)),\"\",INDIRECT(\"'SorP'!$A$\"&MATCH($J322,SorP!$B$1:$B$6230,0))))","v":""},null,{"$f":"IF(C322=\"\",NA(),MATCH($B322&$C322,'Smelter Look-up'!$J:$J,0))","v":{"$error":"#N/A"}},null,0,null,null,null,""]
[null,{"$f":"IF(LEN(A323)=0,\"\",INDEX('Smelter Look-up'!$A:$A,MATCH($A323,'Smelter Look-up'!$E:$E,0)))","v":""},{"$f":"IF(LEN(A323)=0,\"\",INDEX('Smelter Look-up'!$C:$C,MATCH($A323,'Smelter Look-up'!$E:$E,0)))","v":""},null,{"$f":"IF(ISERROR($V323),\"\",OFFSET('Smelter Look-up'!$D$4,$V323-4,0)&\"\")","v":""},{"$f":"IF(ISERROR($V323),\"\",OFFSET('Smelter Look-up'!$E$4,$V323-4,0))","v":""},{"$f":"IF(C323=$X$4,\"Enter smelter details\", IF(ISERROR($V323),\"\",OFFSET('Smelter Look-up'!$F$4,$V323-4,0)))","v":""},{"$f":"IF(ISERROR($V323),\"\",OFFSET('Smelter Look-up'!$G$4,$V323-4,0))","v":""},{"$f":"IF(ISERROR($V323),\"\",OFFSET('Smelter Look-up'!$H$4,$V323-4,0))","v":""},{"$f":"IF(ISERROR($V323),\"\",OFFSET('Smelter Look-up'!$I$4,$V323-4,0))","v":""},{"$nulls":7},{"$f":"IF(ISERROR($V323),\"\",OFFSET('Smelter Look-up'!$C$4,$V323-4,0)&\"\")","v":""},"",{"$f":"IF(B323=\"\",\"\",IF(ISERROR(MATCH($J323,SorP!$B$1:$B$6230,0)),\"\",INDIRECT(\"'SorP'!$A$\"&MATCH($J323,SorP!$B$1:$B$6230,0))))","v":""},null,{"$f":"IF(C323=\"\",NA(),MATCH($B323&$C323,'Smelter Look-up'!$J:$J,0))","v":{"$error":"#N/A"}},null,0,null,null,null,""]
[null,{"$f":"IF(LEN(A324)=0,\"\",INDEX('Smelter Look-up'!$A:$A,MATCH($A324,'Smelter Look-up'!$E:$E,0)))","v":""},{"$f":"IF(LEN(A324)=0,\"\",INDEX('Smelter Look-up'!$C:$C,MATCH($A324,'Smelter Look-up'!$E:$E,0)))","v":""},null,{"$f":"IF(ISERROR($V324),\"\",OFFSET('Smelter Look-up'!$D$4,$V324-4,0)&\"\")","v":""},{"$f":"IF(ISERROR($V324),\"\",OFFSET('Smelter Look-up'!$E$4,$V324-4,0))","v":""},{"$f":"IF(C324=$X$4,\"Enter smelter details\", IF(ISERROR($V324),\"\",OFFSET('Smelter Look-up'!$F$4,$V324-4,0)))","v":""},{"$f":"IF(ISERROR($V324),\"\",OFFSET('Smelter Look-up'!$G$4,$V324-4,0))","v":""},{"$f":"IF(ISERROR($V324),\"\",OFFSET('Smelter Look-up'!$H$4,$V324-4,0))","v":""},{"$f":"IF(ISERROR($V324),\"\",OFFSET('Smelter Look-up'!$I$4,$V324-4,0))","v":""},{"$nulls":7},{"$f":"IF(ISERROR($V324),\"\",OFFSET('Smelter Look-up'!$C$4,$V324-4,0)&\"\")","v":""},"",{"$f":"IF(B324=\"\",\"\",IF(ISERROR(MATCH($J324,SorP!$B$1:$B$6230,0)),\"\",INDIRECT(\"'SorP'!$A$\"&MATCH($J324,SorP!$B$1:$B$6230,0))))","v":""},null,{"$f":"IF(C324=\"\",NA(),MATCH($B324&$C324,'Smelter Look-up'!$J:$J,0))","v":{"$error":"#N/A"}},null,0,null,null,null,""]
[null,{"$f":"IF(LEN(A325)=0,\"\",INDEX('Smelter Look-up'!$A:$A,MATCH($A325,'Smelter Look-up'!$E:$E,0)))","v":""},{"$f":"IF(LEN(A325)=0,\"\",INDEX('Smelter Look-up'!$C:$C,MATCH($A325,'Smelter Look-up'!$E:$E,0)))","v":""},null,{"$f":"IF(ISERROR($V325),\"\",OFFSET('Smelter Look-up'!$D$4,$V325-4,0)&\"\")","v":""},{"$f":"IF(ISERROR($V325),\"\",OFFSET('Smelter Look-up'!$E$4,$V325-4,0))","v":""},{"$f":"IF(C325=$X$4,\"Enter smelter details\", IF(ISERROR($V325),\"\",OFFSET('Smelter Look-up'!$F$4,$V325-4,0)))","v":""},{"$f":"IF(ISERROR($V325),\"\",OFFSET('Smelter Look-up'!$G$4,$V325-4,0))","v":""},{"$f":"IF(ISERROR($V325),\"\",OFFSET('Smelter Look-up'!$H$4,$V325-4,0))","v":""},{"$f":"IF(ISERROR($V325),\"\",OFFSET('Smelter Look-up'!$I$4,$V325-4,0))","v":""},{"$nulls":7},{"$f":"IF(ISERROR($V325),\"\",OFFSET('Smelter Look-up'!$C$4,$V325-4,0)&\"\")","v":""},"",{"$f":"IF(B325=\"\",\"\",IF(ISERROR(MATCH($J325,SorP!$B$1:$B$6230,0)),\"\",INDIRECT(\"'SorP'!$A$\"&MATCH($J325,SorP!$B$1:$B$6230,0))))","v":""},null,{"$f":"IF(C325=\"\",NA(),MATCH($B325&$C325,'Smelter Look-up'!$J:$J,0))","v":{"$error":"#N/A"}},null,0,null,null,null,""]
[null,{"$f":"IF(LEN(A326)=0,\"\",INDEX('Smelter Look-up'!$A:$A,MATCH($A326,'Smelter Look-up'!$E:$E,0)))","v":""},{"$f":"IF(LEN(A326)=0,\"\",INDEX('Smelter Look-up'!$C:$C,MATCH($A326,'Smelter Look-up'!$E:$E,0)))","v":""},null,{"$f":"IF(ISERROR($V326),\"\",OFFSET('Smelter Look-up'!$D$4,$V326-4,0)&\"\")","v":""},{"$f":"IF(ISERROR($V326),\"\",OFFSET('Smelter Look-up'!$E$4,$V326-4,0))","v":""},{"$f":"IF(C326=$X$4,\"Enter smelter details\", IF(ISERROR($V326),\"\",OFFSET('Smelter Look-up'!$F$4,$V326-4,0)))","v":""},{"$f":"IF(ISERROR($V326),\"\",OFFSET('Smelter Look-up'!$G$4,$V326-4,0))","v":""},{"$f":"IF(ISERROR($V326),\"\",OFFSET('Smelter Look-up'!$H$4,$V326-4,0))","v":""},{"$f":"IF(ISERROR($V326),\"\",OFFSET('Smelter Look-up'!$I$4,$V326-4,0))","v":""},{"$nulls":7},{"$f":"IF(ISERROR($V326),\"\",OFFSET('Smelter Look-up'!$C$4,$V326-4,0)&\"\")","v":""},"",{"$f":"IF(B326=\"\",\"\",IF(ISERROR(MATCH($J326,SorP!$B$1:$B$6230,0)),\"\",INDIRECT(\"'SorP'!$A$\"&MATCH($J326,SorP!$B$1:$B$6230,0))))","v":""},null,{"$f":"IF(C326=\"\",NA(),MATCH($B326&$C326,'Smelter Look-up'!$J:$J,0))","v":{"$error":"#N/A"}},null,0,null,null,null,""]
[null,{"$f":"IF(LEN(A327)=0,\"\",INDEX('Smelter Look-up'!$A:$A,MATCH($A327,'Smelter Look-up'!$E:$E,0)))","v":""},{"$f":"IF(LEN(A327)=0,\"\",INDEX('Smelter Look-up'!$C:$C,MATCH($A327,'Smelter Look-up'!$E:$E,0)))","v":""},null,{"$f":"IF(ISERROR($V327),\"\",OFFSET('Smelter Look-up'!$D$4,$V327-4,0)&\"\")","v":""},{"$f":"IF(ISERROR($V327),\"\",OFFSET('Smelter Look-up'!$E$4,$V327-4,0))","v":""},{"$f":"IF(C327=$X$4,\"Enter smelter details\", IF(ISERROR($V327),\"\",OFFSET('Smelter Look-up'!$F$4,$V327-4,0)))","v":""},{"$f":"IF(ISERROR($V327),\"\",OFFSET('Smelter Look-up'!$G$4,$V327-4,0))","v":""},{"$f":"IF(ISERROR($V327),\"\",OFFSET('Smelter Look-up'!$H$4,$V327-4,0))","v":""},{"$f":"IF(ISERROR($V327),\"\",OFFSET('Smelter Look-up'!$I$4,$V327-4,0))","v":""},{"$nulls":7},{"$f":"IF(ISERROR($V327),\"\",OFFSET('Smelter Look-up'!$C$4,$V327-4,0)&\"\")","v":""},"",{"$f":"IF(B327=\"\",\"\",IF(ISERROR(MATCH($J327,SorP!$B$1:$B$6230,0)),\"\",INDIRECT(\"'SorP'!$A$\"&MATCH($J327,SorP!$B$1:$B$6230,0))))","v":""},null,{"$f":"IF(C327=\"\",NA(),MATCH($B327&$C327,'Smelter Look-up'!$J:$J,0))","v":{"$error":"#N/A"}},null,0,null,null,null,""]
[null,{"$f":"IF(LEN(A328)=0,\"\",INDEX('Smelter Look-up'!$A:$A,MATCH($A328,'Smelter Look-up'!$E:$E,0)))","v":""},{"$f":"IF(LEN(A328)=0,\"\",INDEX('Smelter Look-up'!$C:$C,MATCH($A328,'Smelter Look-up'!$E:$E,0)))","v":""},null,{"$f":"IF(ISERROR($V328),\"\",OFFSET('Smelter Look-up'!$D$4,$V328-4,0)&\"\")","v":""},{"$f":"IF(ISERROR($V328),\"\",OFFSET('Smelter Look-up'!$E$4,$V328-4,0))","v":""},{"$f":"IF(C328=$X$4,\"Enter smelter details\", IF(ISERROR($V328),\"\",OFFSET('Smelter Look-up'!$F$4,$V328-4,0)))","v":""},{"$f":"IF(ISERROR($V328),\"\",OFFSET('Smelter Look-up'!$G$4,$V328-4,0))","v":""},{"$f":"IF(ISERROR($V328),\"\",OFFSET('Smelter Look-up'!$H$4,$V328-4,0))","v":""},{"$f":"IF(ISERROR($V328),\"\",OFFSET('Smelter Look-up'!$I$4,$V328-4,0))","v":""},{"$nulls":7},{"$f":"IF(ISERROR($V328),\"\",OFFSET('Smelter Look-up'!$C$4,$V328-4,0)&\"\")","v":""},"",{"$f":"IF(B328=\"\",\"\",IF(ISERROR(MATCH($J328,SorP!$B$1:$B$6230,0)),\"\",INDIRECT(\"'SorP'!$A$\"&MATCH($J328,SorP!$B$1:$B$6230,0))))","v":""},null,{"$f":"IF(C328=\"\",NA(),MATCH($B328&$C328,'Smelter Look-up'!$J:$J,0))","v":{"$error":"#N/A"}},null,0,null,null,null,""]
[null,{"$f":"IF(LEN(A329)=0,\"\",INDEX('Smelter Look-up'!$A:$A,MATCH($A329,'Smelter Look-up'!$E:$E,0)))","v":""},{"$f":"IF(LEN(A329)=0,\"\",INDEX('Smelter Look-up'!$C:$C,MATCH($A329,'Smelter Look-up'!$E:$E,0)))","v":""},null,{"$f":"IF(ISERROR($V329),\"\",OFFSET('Smelter Look-up'!$D$4,$V329-4,0)&\"\")","v":""},{"$f":"IF(ISERROR($V329),\"\",OFFSET('Smelter Look-up'!$E$4,$V329-4,0))","v":""},{"$f":"IF(C329=$X$4,\"Enter smelter details\", IF(ISERROR($V329),\"\",OFFSET('Smelter Look-up'!$F$4,$V329-4,0)))","v":""},{"$f":"IF(ISERROR($V329),\"\",OFFSET('Smelter Look-up'!$G$4,$V329-4,0))","v":""},{"$f":"IF(ISERROR($V329),\"\",OFFSET('Smelter Look-up'!$H$4,$V329-4,0))","v":""},{"$f":"IF(ISERROR($V329),\"\",OFFSET('Smelter Look-up'!$I$4,$V329-4,0))","v":""},{"$nulls":7},{"$f":"IF(ISERROR($V329),\"\",OFFSET('Smelter Look-up'!$C$4,$V329-4,0)&\"\")","v":""},"",{"$f":"IF(B329=\"\",\"\",IF(ISERROR(MATCH($J329,SorP!$B$1:$B$6230,0)),\"\",INDIRECT(\"'SorP'!$A$\"&MATCH($J329,SorP!$B$1:$B$6230,0))))","v":""},null,{"$f":"IF(C329=\"\",NA(),MATCH($B329&$C329,'Smelter Look-up'!$J:$J,0))","v":{"$error":"#N/A"}},null,0,null,null,null,""]
[null,{"$f":"IF(LEN(A330)=0,\"\",INDEX('Smelter Look-up'!$A:$A,MATCH($A330,'Smelter Look-up'!$E:$E,0)))","v":""},{"$f":"IF(LEN(A330)=0,\"\",INDEX('Smelter Look-up'!$C:$C,MATCH($A330,'Smelter Look-up'!$E:$E,0)))","v":""},null,{"$f":"IF(ISERROR($V330),\"\",OFFSET('Smelter Look-up'!$D$4,$V330-4,0)&\"\")","v":""},{"$f":"IF(ISERROR($V330),\"\",OFFSET('Smelter Look-up'!$E$4,$V330-4,0))","v":""},{"$f":"IF(C330=$X$4,\"Enter smelter details\", IF(ISERROR($V330),\"\",OFFSET('Smelter Look-up'!$F$4,$V330-4,0)))","v":""},{"$f":"IF(ISERROR($V330),\"\",OFFSET('Smelter Look-up'!$G$4,$V330-4,0))","v":""},{"$f":"IF(ISERROR($V330),\"\",OFFSET('Smelter Look-up'!$H$4,$V330-4,0))","v":""},{"$f":"IF(ISERROR($V330),\"\",OFFSET('Smelter Look-up'!$I$4,$V330-4,0))","v":""},{"$nulls":7},{"$f":"IF(ISERROR($V330),\"\",OFFSET('Smelter Look-up'!$C$4,$V330-4,0)&\"\")","v":""},"",{"$f":"IF(B330=\"\",\"\",IF(ISERROR(MATCH($J330,SorP!$B$1:$B$6230,0)),\"\",INDIRECT(\"'SorP'!$A$\"&MATCH($J330,SorP!$B$1:$B$6230,0))))","v":""},null,{"$f":"IF(C330=\"\",NA(),MATCH($B330&$C330,'Smelter Look-up'!$J:$J,0))","v":{"$error":"#N/A"}},null,0,null,null,null,""]
[null,{"$f":"IF(LEN(A331)=0,\"\",INDEX('Smelter Look-up'!$A:$A,MATCH($A331,'Smelter Look-up'!$E:$E,0)))","v":""},{"$f":"IF(LEN(A331)=0,\"\",INDEX('Smelter Look-up'!$C:$C,MATCH($A331,'Smelter Look-up'!$E:$E,0)))","v":""},null,{"$f":"IF(ISERROR($V331),\"\",OFFSET('Smelter Look-up'!$D$4,$V331-4,0)&\"\")","v":""},{"$f":"IF(ISERROR($V331),\"\",OFFSET('Smelter Look-up'!$E$4,$V331-4,0))","v":""},{"$f":"IF(C331=$X$4,\"Enter smelter details\", IF(ISERROR($V331),\"\",OFFSET('Smelter Look-up'!$F$4,$V331-4,0)))","v":""},{"$f":"IF(ISERROR($V331),\"\",OFFSET('Smelter Look-up'!$G$4,$V331-4,0))","v":""},{"$f":"IF(ISERROR($V331),\"\",OFFSET('Smelter Look-up'!$H$4,$V331-4,0))","v":""},{"$f":"IF(ISERROR($V331),\"\",OFFSET('Smelter Look-up'!$I$4,$V331-4,0))","v":""},{"$nulls":7},{"$f":"IF(ISERROR($V331),\"\",OFFSET('Smelter Look-up'!$C$4,$V331-4,0)&\"\")","v":""},"",{"$f":"IF(B331=\"\",\"\",IF(ISERROR(MATCH($J331,SorP!$B$1:$B$6230,0)),\"\",INDIRECT(\"'SorP'!$A$\"&MATCH($J331,SorP!$B$1:$B$6230,0))))","v":""},null,{"$f":"IF(C331=\"\",NA(),MATCH($B331&$C331,'Smelter Look-up'!$J:$J,0))","v":{"$error":"#N/A"}},null,0,null,null,null,""]
[null,{"$f":"IF(LEN(A332)=0,\"\",INDEX('Smelter Look-up'!$A:$A,MATCH($A332,'Smelter Look-up'!$E:$E,0)))","v":""},{"$f":"IF(LEN(A332)=0,\"\",INDEX('Smelter Look-up'!$C:$C,MATCH($A332,'Smelter Look-up'!$E:$E,0)))","v":""},null,{"$f":"IF(ISERROR($V332),\"\",OFFSET('Smelter Look-up'!$D$4,$V332-4,0)&\"\")","v":""},{"$f":"IF(ISERROR($V332),\"\",OFFSET('Smelter Look-up'!$E$4,$V332-4,0))","v":""},{"$f":"IF(C332=$X$4,\"Enter smelter details\", IF(ISERROR($V332),\"\",OFFSET('Smelter Look-up'!$F$4,$V332-4,0)))","v":""},{"$f":"IF(ISERROR($V332),\"\",OFFSET('Smelter Look-up'!$G$4,$V332-4,0))","v":""},{"$f":"IF(ISERROR($V332),\"\",OFFSET('Smelter Look-up'!$H$4,$V332-4,0))","v":""},{"$f":"IF(ISERROR($V332),\"\",OFFSET('Smelter Look-up'!$I$4,$V332-4,0))","v":""},{"$nulls":7},{"$f":"IF(ISERROR($V332),\"\",OFFSET('Smelter Look-up'!$C$4,$V332-4,0)&\"\")","v":""},"",{"$f":"IF(B332=\"\",\"\",IF(ISERROR(MATCH($J332,SorP!$B$1:$B$6230,0)),\"\",INDIRECT(\"'SorP'!$A$\"&MATCH($J332,SorP!$B$1:$B$6230,0))))","v":""},null,{"$f":"IF(C332=\"\",NA(),MATCH($B332&$C332,'Smelter Look-up'!$J:$J,0))","v":{"$error":"#N/A"}},null,0,null,null,null,""]
[null,{"$f":"IF(LEN(A333)=0,\"\",INDEX('Smelter Look-up'!$A:$A,MATCH($A333,'Smelter Look-up'!$E:$E,0)))","v":""},{"$f":"IF(LEN(A333)=0,\"\",INDEX('Smelter Look-up'!$C:$C,MATCH($A333,'Smelter Look-up'!$E:$E,0)))","v":""},null,{"$f":"IF(ISERROR($V333),\"\",OFFSET('Smelter Look-up'!$D$4,$V333-4,0)&\"\")","v":""},{"$f":"IF(ISERROR($V333),\"\",OFFSET('Smelter Look-up'!$E$4,$V333-4,0))","v":""},{"$f":"IF(C333=$X$4,\"Enter smelter details\", IF(ISERROR($V333),\"\",OFFSET('Smelter Look-up'!$F$4,$V333-4,0)))","v":""},{"$f":"IF(ISERROR($V333),\"\",OFFSET('Smelter Look-up'!$G$4,$V333-4,0))","v":""},{"$f":"IF(ISERROR($V333),\"\",OFFSET('Smelter Look-up'!$H$4,$V333-4,0))","v":""},{"$f":"IF(ISERROR($V333),\"\",OFFSET('Smelter Look-up'!$I$4,$V333-4,0))","v":""},{"$nulls":7},{"$f":"IF(ISERROR($V333),\"\",OFFSET('Smelter Look-up'!$C$4,$V333-4,0)&\"\")","v":""},"",{"$f":"IF(B333=\"\",\"\",IF(ISERROR(MATCH($J333,SorP!$B$1:$B$6230,0)),\"\",INDIRECT(\"'SorP'!$A$\"&MATCH($J333,SorP!$B$1:$B$6230,0))))","v":""},null,{"$f":"IF(C333=\"\",NA(),MATCH($B333&$C333,'Smelter Look-up'!$J:$J,0))","v":{"$error":"#N/A"}},null,0,null,null,null,""]
[null,{"$f":"IF(LEN(A334)=0,\"\",INDEX('Smelter Look-up'!$A:$A,MATCH($A334,'Smelter Look-up'!$E:$E,0)))","v":""},{"$f":"IF(LEN(A334)=0,\"\",INDEX('Smelter Look-up'!$C:$C,MATCH($A334,'Smelter Look-up'!$E:$E,0)))","v":""},null,{"$f":"IF(ISERROR($V334),\"\",OFFSET('Smelter Look-up'!$D$4,$V334-4,0)&\"\")","v":""},{"$f":"IF(ISERROR($V334),\"\",OFFSET('Smelter Look-up'!$E$4,$V334-4,0))","v":""},{"$f":"IF(C334=$X$4,\"Enter smelter details\", IF(ISERROR($V334),\"\",OFFSET('Smelter Look-up'!$F$4,$V334-4,0)))","v":""},{"$f":"IF(ISERROR($V334),\"\",OFFSET('Smelter Look-up'!$G$4,$V334-4,0))","v":""},{"$f":"IF(ISERROR($V334),\"\",OFFSET('Smelter Look-up'!$H$4,$V334-4,0))","v":""},{"$f":"IF(ISERROR($V334),\"\",OFFSET('Smelter Look-up'!$I$4,$V334-4,0))","v":""},{"$nulls":7},{"$f":"IF(ISERROR($V334),\"\",OFFSET('Smelter Look-up'!$C$4,$V334-4,0)&\"\")","v":""},"",{"$f":"IF(B334=\"\",\"\",IF(ISERROR(MATCH($J334,SorP!$B$1:$B$6230,0)),\"\",INDIRECT(\"'SorP'!$A$\"&MATCH($J334,SorP!$B$1:$B$6230,0))))","v":""},null,{"$f":"IF(C334=\"\",NA(),MATCH($B334&$C334,'Smelter Look-up'!$J:$J,0))","v":{"$error":"#N/A"}},null,0,null,null,null,""]
[null,{"$f":"IF(LEN(A335)=0,\"\",INDEX('Smelter Look-up'!$A:$A,MATCH($A335,'Smelter Look-up'!$E:$E,0)))","v":""},{"$f":"IF(LEN(A335)=0,\"\",INDEX('Smelter Look-up'!$C:$C,MATCH($A335,'Smelter Look-up'!$E:$E,0)))","v":""},null,{"$f":"IF(ISERROR($V335),\"\",OFFSET('Smelter Look-up'!$D$4,$V335-4,0)&\"\")","v":""},{"$f":"IF(ISERROR($V335),\"\",OFFSET('Smelter Look-up'!$E$4,$V335-4,0))","v":""},{"$f":"IF(C335=$X$4,\"Enter smelter details\", IF(ISERROR($V335),\"\",OFFSET('Smelter Look-up'!$F$4,$V335-4,0)))","v":""},{"$f":"IF(ISERROR($V335),\"\",OFFSET('Smelter Look-up'!$G$4,$V335-4,0))","v":""},{"$f":"IF(ISERROR($V335),\"\",OFFSET('Smelter Look-up'!$H$4,$V335-4,0))","v":""},{"$f":"IF(ISERROR($V335),\"\",OFFSET('Smelter Look-up'!$I$4,$V335-4,0))","v":""},{"$nulls":7},{"$f":"IF(ISERROR($V335),\"\",OFFSET('Smelter Look-up'!$C$4,$V335-4,0)&\"\")","v":""},"",{"$f":"IF(B335=\"\",\"\",IF(ISERROR(MATCH($J335,SorP!$B$1:$B$6230,0)),\"\",INDIRECT(\"'SorP'!$A$\"&MATCH($J335,SorP!$B$1:$B$6230,0))))","v":""},null,{"$f":"IF(C335=\"\",NA(),MATCH($B335&$C335,'Smelter Look-up'!$J:$J,0))","v":{"$error":"#N/A"}},null,0,null,null,null,""]
[null,{"$f":"IF(LEN(A336)=0,\"\",INDEX('Smelter Look-up'!$A:$A,MATCH($A336,'Smelter Look-up'!$E:$E,0)))","v":""},{"$f":"IF(LEN(A336)=0,\"\",INDEX('Smelter Look-up'!$C:$C,MATCH($A336,'Smelter Look-up'!$E:$E,0)))","v":""},null,{"$f":"IF(ISERROR($V336),\"\",OFFSET('Smelter Look-up'!$D$4,$V336-4,0)&\"\")","v":""},{"$f":"IF(ISERROR($V336),\"\",OFFSET('Smelter Look-up'!$E$4,$V336-4,0))","v":""},{"$f":"IF(C336=$X$4,\"Enter smelter details\", IF(ISERROR($V336),\"\",OFFSET('Smelter Look-up'!$F$4,$V336-4,0)))","v":""},{"$f":"IF(ISERROR($V336),\"\",OFFSET('Smelter Look-up'!$G$4,$V336-4,0))","v":""},{"$f":"IF(ISERROR($V336),\"\",OFFSET('Smelter Look-up'!$H$4,$V336-4,0))","v":""},{"$f":"IF(ISERROR($V336),\"\",OFFSET('Smelter Look-up'!$I$4,$V336-4,0))","v":""},{"$nulls":7},{"$f":"IF(ISERROR($V336),\"\",OFFSET('Smelter Look-up'!$C$4,$V336-4,0)&\"\")","v":""},"",{"$f":"IF(B336=\"\",\"\",IF(ISERROR(MATCH($J336,SorP!$B$1:$B$6230,0)),\"\",INDIRECT(\"'SorP'!$A$\"&MATCH($J336,SorP!$B$1:$B$6230,0))))","v":""},null,{"$f":"IF(C336=\"\",NA(),MATCH($B336&$C336,'Smelter Look-up'!$J:$J,0))","v":{"$error":"#N/A"}},null,0,null,null,null,""]
[null,{"$f":"IF(LEN(A337)=0,\"\",INDEX('Smelter Look-up'!$A:$A,MATCH($A337,'Smelter Look-up'!$E:$E,0)))","v":""},{"$f":"IF(LEN(A337)=0,\"\",INDEX('Smelter Look-up'!$C:$C,MATCH($A337,'Smelter Look-up'!$E:$E,0)))","v":""},null,{"$f":"IF(ISERROR($V337),\"\",OFFSET('Smelter Look-up'!$D$4,$V337-4,0)&\"\")","v":""},{"$f":"IF(ISERROR($V337),\"\",OFFSET('Smelter Look-up'!$E$4,$V337-4,0))","v":""},{"$f":"IF(C337=$X$4,\"Enter smelter details\", IF(ISERROR($V337),\"\",OFFSET('Smelter Look-up'!$F$4,$V337-4,0)))","v":""},{"$f":"IF(ISERROR($V337),\"\",OFFSET('Smelter Look-up'!$G$4,$V337-4,0))","v":""},{"$f":"IF(ISERROR($V337),\"\",OFFSET('Smelter Look-up'!$H$4,$V337-4,0))","v":""},{"$f":"IF(ISERROR($V337),\"\",OFFSET('Smelter Look-up'!$I$4,$V337-4,0))","v":""},{"$nulls":7},{"$f":"IF(ISERROR($V337),\"\",OFFSET('Smelter Look-up'!$C$4,$V337-4,0)&\"\")","v":""},"",{"$f":"IF(B337=\"\",\"\",IF(ISERROR(MATCH($J337,SorP!$B$1:$B$6230,0)),\"\",INDIRECT(\"'SorP'!$A$\"&MATCH($J337,SorP!$B$1:$B$6230,0))))","v":""},null,{"$f":"IF(C337=\"\",NA(),MATCH($B337&$C337,'Smelter Look-up'!$J:$J,0))","v":{"$error":"#N/A"}},null,0,null,null,null,""]
[null,{"$f":"IF(LEN(A338)=0,\"\",INDEX('Smelter Look-up'!$A:$A,MATCH($A338,'Smelter Look-up'!$E:$E,0)))","v":""},{"$f":"IF(LEN(A338)=0,\"\",INDEX('Smelter Look-up'!$C:$C,MATCH($A338,'Smelter Look-up'!$E:$E,0)))","v":""},null,{"$f":"IF(ISERROR($V338),\"\",OFFSET('Smelter Look-up'!$D$4,$V338-4,0)&\"\")","v":""},{"$f":"IF(ISERROR($V338),\"\",OFFSET('Smelter Look-up'!$E$4,$V338-4,0))","v":""},{"$f":"IF(C338=$X$4,\"Enter smelter details\", IF(ISERROR($V338),\"\",OFFSET('Smelter Look-up'!$F$4,$V338-4,0)))","v":""},{"$f":"IF(ISERROR($V338),\"\",OFFSET('Smelter Look-up'!$G$4,$V338-4,0))","v":""},{"$f":"IF(ISERROR($V338),\"\",OFFSET('Smelter Look-up'!$H$4,$V338-4,0))","v":""},{"$f":"IF(ISERROR($V338),\"\",OFFSET('Smelter Look-up'!$I$4,$V338-4,0))","v":""},{"$nulls":7},{"$f":"IF(ISERROR($V338),\"\",OFFSET('Smelter Look-up'!$C$4,$V338-4,0)&\"\")","v":""},"",{"$f":"IF(B338=\"\",\"\",IF(ISERROR(MATCH($J338,SorP!$B$1:$B$6230,0)),\"\",INDIRECT(\"'SorP'!$A$\"&MATCH($J338,SorP!$B$1:$B$6230,0))))","v":""},null,{"$f":"IF(C338=\"\",NA(),MATCH($B338&$C338,'Smelter Look-up'!$J:$J,0))","v":{"$error":"#N/A"}},null,0,null,null,null,""]
[null,{"$f":"IF(LEN(A339)=0,\"\",INDEX('Smelter Look-up'!$A:$A,MATCH($A339,'Smelter Look-up'!$E:$E,0)))","v":""},{"$f":"IF(LEN(A339)=0,\"\",INDEX('Smelter Look-up'!$C:$C,MATCH($A339,'Smelter Look-up'!$E:$E,0)))","v":""},null,{"$f":"IF(ISERROR($V339),\"\",OFFSET('Smelter Look-up'!$D$4,$V339-4,0)&\"\")","v":""},{"$f":"IF(ISERROR($V339),\"\",OFFSET('Smelter Look-up'!$E$4,$V339-4,0))","v":""},{"$f":"IF(C339=$X$4,\"Enter smelter details\", IF(ISERROR($V339),\"\",OFFSET('Smelter Look-up'!$F$4,$V339-4,0)))","v":""},{"$f":"IF(ISERROR($V339),\"\",OFFSET('Smelter Look-up'!$G$4,$V339-4,0))","v":""},{"$f":"IF(ISERROR($V339),\"\",OFFSET('Smelter Look-up'!$H$4,$V339-4,0))","v":""},{"$f":"IF(ISERROR($V339),\"\",OFFSET('Smelter Look-up'!$I$4,$V339-4,0))","v":""},{"$nulls":7},{"$f":"IF(ISERROR($V339),\"\",OFFSET('Smelter Look-up'!$C$4,$V339-4,0)&\"\")","v":""},"",{"$f":"IF(B339=\"\",\"\",IF(ISERROR(MATCH($J339,SorP!$B$1:$B$6230,0)),\"\",INDIRECT(\"'SorP'!$A$\"&MATCH($J339,SorP!$B$1:$B$6230,0))))","v":""},null,{"$f":"IF(C339=\"\",NA(),MATCH($B339&$C339,'Smelter Look-up'!$J:$J,0))","v":{"$error":"#N/A"}},null,0,null,null,null,""]
[null,{"$f":"IF(LEN(A340)=0,\"\",INDEX('Smelter Look-up'!$A:$A,MATCH($A340,'Smelter Look-up'!$E:$E,0)))","v":""},{"$f":"IF(LEN(A340)=0,\"\",INDEX('Smelter Look-up'!$C:$C,MATCH($A340,'Smelter Look-up'!$E:$E,0)))","v":""},null,{"$f":"IF(ISERROR($V340),\"\",OFFSET('Smelter Look-up'!$D$4,$V340-4,0)&\"\")","v":""},{"$f":"IF(ISERROR($V340),\"\",OFFSET('Smelter Look-up'!$E$4,$V340-4,0))","v":""},{"$f":"IF(C340=$X$4,\"Enter smelter details\", IF(ISERROR($V340),\"\",OFFSET('Smelter Look-up'!$F$4,$V340-4,0)))","v":""},{"$f":"IF(ISERROR($V340),\"\",OFFSET('Smelter Look-up'!$G$4,$V340-4,0))","v":""},{"$f":"IF(ISERROR($V340),\"\",OFFSET('Smelter Look-up'!$H$4,$V340-4,0))","v":""},{"$f":"IF(ISERROR($V340),\"\",OFFSET('Smelter Look-up'!$I$4,$V340-4,0))","v":""},{"$nulls":7},{"$f":"IF(ISERROR($V340),\"\",OFFSET('Smelter Look-up'!$C$4,$V340-4,0)&\"\")","v":""},"",{"$f":"IF(B340=\"\",\"\",IF(ISERROR(MATCH($J340,SorP!$B$1:$B$6230,0)),\"\",INDIRECT(\"'SorP'!$A$\"&MATCH($J340,SorP!$B$1:$B$6230,0))))","v":""},null,{"$f":"IF(C340=\"\",NA(),MATCH($B340&$C340,'Smelter Look-up'!$J:$J,0))","v":{"$error":"#N/A"}},null,0,null,null,null,""]
[null,{"$f":"IF(LEN(A341)=0,\"\",INDEX('Smelter Look-up'!$A:$A,MATCH($A341,'Smelter Look-up'!$E:$E,0)))","v":""},{"$f":"IF(LEN(A341)=0,\"\",INDEX('Smelter Look-up'!$C:$C,MATCH($A341,'Smelter Look-up'!$E:$E,0)))","v":""},null,{"$f":"IF(ISERROR($V341),\"\",OFFSET('Smelter Look-up'!$D$4,$V341-4,0)&\"\")","v":""},{"$f":"IF(ISERROR($V341),\"\",OFFSET('Smelter Look-up'!$E$4,$V341-4,0))","v":""},{"$f":"IF(C341=$X$4,\"Enter smelter details\", IF(ISERROR($V341),\"\",OFFSET('Smelter Look-up'!$F$4,$V341-4,0)))","v":""},{"$f":"IF(ISERROR($V341),\"\",OFFSET('Smelter Look-up'!$G$4,$V341-4,0))","v":""},{"$f":"IF(ISERROR($V341),\"\",OFFSET('Smelter Look-up'!$H$4,$V341-4,0))","v":""},{"$f":"IF(ISERROR($V341),\"\",OFFSET('Smelter Look-up'!$I$4,$V341-4,0))","v":""},{"$nulls":7},{"$f":"IF(ISERROR($V341),\"\",OFFSET('Smelter Look-up'!$C$4,$V341-4,0)&\"\")","v":""},"",{"$f":"IF(B341=\"\",\"\",IF(ISERROR(MATCH($J341,SorP!$B$1:$B$6230,0)),\"\",INDIRECT(\"'SorP'!$A$\"&MATCH($J341,SorP!$B$1:$B$6230,0))))","v":""},null,{"$f":"IF(C341=\"\",NA(),MATCH($B341&$C341,'Smelter Look-up'!$J:$J,0))","v":{"$error":"#N/A"}},null,0,null,null,null,""]
[null,{"$f":"IF(LEN(A342)=0,\"\",INDEX('Smelter Look-up'!$A:$A,MATCH($A342,'Smelter Look-up'!$E:$E,0)))","v":""},{"$f":"IF(LEN(A342)=0,\"\",INDEX('Smelter Look-up'!$C:$C,MATCH($A342,'Smelter Look-up'!$E:$E,0)))","v":""},null,{"$f":"IF(ISERROR($V342),\"\",OFFSET('Smelter Look-up'!$D$4,$V342-4,0)&\"\")","v":""},{"$f":"IF(ISERROR($V342),\"\",OFFSET('Smelter Look-up'!$E$4,$V342-4,0))","v":""},{"$f":"IF(C342=$X$4,\"Enter smelter details\", IF(ISERROR($V342),\"\",OFFSET('Smelter Look-up'!$F$4,$V342-4,0)))","v":""},{"$f":"IF(ISERROR($V342),\"\",OFFSET('Smelter Look-up'!$G$4,$V342-4,0))","v":""},{"$f":"IF(ISERROR($V342),\"\",OFFSET('Smelter Look-up'!$H$4,$V342-4,0))","v":""},{"$f":"IF(ISERROR($V342),\"\",OFFSET('Smelter Look-up'!$I$4,$V342-4,0))","v":""},{"$nulls":7},{"$f":"IF(ISERROR($V342),\"\",OFFSET('Smelter Look-up'!$C$4,$V342-4,0)&\"\")","v":""},"",{"$f":"IF(B342=\"\",\"\",IF(ISERROR(MATCH($J342,SorP!$B$1:$B$6230,0)),\"\",INDIRECT(\"'SorP'!$A$\"&MATCH($J342,SorP!$B$1:$B$6230,0))))","v":""},null,{"$f":"IF(C342=\"\",NA(),MATCH($B342&$C342,'Smelter Look-up'!$J:$J,0))","v":{"$error":"#N/A"}},null,0,null,null,null,""]
[null,{"$f":"IF(LEN(A343)=0,\"\",INDEX('Smelter Look-up'!$A:$A,MATCH($A343,'Smelter Look-up'!$E:$E,0)))","v":""},{"$f":"IF(LEN(A343)=0,\"\",INDEX('Smelter Look-up'!$C:$C,MATCH($A343,'Smelter Look-up'!$E:$E,0)))","v":""},null,{"$f":"IF(ISERROR($V343),\"\",OFFSET('Smelter Look-up'!$D$4,$V343-4,0)&\"\")","v":""},{"$f":"IF(ISERROR($V343),\"\",OFFSET('Smelter Look-up'!$E$4,$V343-4,0))","v":""},{"$f":"IF(C343=$X$4,\"Enter smelter details\", IF(ISERROR($V343),\"\",OFFSET('Smelter Look-up'!$F$4,$V343-4,0)))","v":""},{"$f":"IF(ISERROR($V343),\"\",OFFSET('Smelter Look-up'!$G$4,$V343-4,0))","v":""},{"$f":"IF(ISERROR($V343),\"\",OFFSET('Smelter Look-up'!$H$4,$V343-4,0))","v":""},{"$f":"IF(ISERROR($V343),\"\",OFFSET('Smelter Look-up'!$I$4,$V343-4,0))","v":""},{"$nulls":7},{"$f":"IF(ISERROR($V343),\"\",OFFSET('Smelter Look-up'!$C$4,$V343-4,0)&\"\")","v":""},"",{"$f":"IF(B343=\"\",\"\",IF(ISERROR(MATCH($J343,SorP!$B$1:$B$6230,0)),\"\",INDIRECT(\"'SorP'!$A$\"&MATCH($J343,SorP!$B$1:$B$6230,0))))","v":""},null,{"$f":"IF(C343=\"\",NA(),MATCH($B343&$C343,'Smelter Look-up'!$J:$J,0))","v":{"$error":"#N/A"}},null,0,null,null,null,""]
[null,{"$f":"IF(LEN(A344)=0,\"\",INDEX('Smelter Look-up'!$A:$A,MATCH($A344,'Smelter Look-up'!$E:$E,0)))","v":""},{"$f":"IF(LEN(A344)=0,\"\",INDEX('Smelter Look-up'!$C:$C,MATCH($A344,'Smelter Look-up'!$E:$E,0)))","v":""},null,{"$f":"IF(ISERROR($V344),\"\",OFFSET('Smelter Look-up'!$D$4,$V344-4,0)&\"\")","v":""},{"$f":"IF(ISERROR($V344),\"\",OFFSET('Smelter Look-up'!$E$4,$V344-4,0))","v":""},{"$f":"IF(C344=$X$4,\"Enter smelter details\", IF(ISERROR($V344),\"\",OFFSET('Smelter Look-up'!$F$4,$V344-4,0)))","v":""},{"$f":"IF(ISERROR($V344),\"\",OFFSET('Smelter Look-up'!$G$4,$V344-4,0))","v":""},{"$f":"IF(ISERROR($V344),\"\",OFFSET('Smelter Look-up'!$H$4,$V344-4,0))","v":""},{"$f":"IF(ISERROR($V344),\"\",OFFSET('Smelter Look-up'!$I$4,$V344-4,0))","v":""},{"$nulls":7},{"$f":"IF(ISERROR($V344),\"\",OFFSET('Smelter Look-up'!$C$4,$V344-4,0)&\"\")","v":""},"",{"$f":"IF(B344=\"\",\"\",IF(ISERROR(MATCH($J344,SorP!$B$1:$B$6230,0)),\"\",INDIRECT(\"'SorP'!$A$\"&MATCH($J344,SorP!$B$1:$B$6230,0))))","v":""},null,{"$f":"IF(C344=\"\",NA(),MATCH($B344&$C344,'Smelter Look-up'!$J:$J,0))","v":{"$error":"#N/A"}},null,0,null,null,null,""]
[null,{"$f":"IF(LEN(A345)=0,\"\",INDEX('Smelter Look-up'!$A:$A,MATCH($A345,'Smelter Look-up'!$E:$E,0)))","v":""},{"$f":"IF(LEN(A345)=0,\"\",INDEX('Smelter Look-up'!$C:$C,MATCH($A345,'Smelter Look-up'!$E:$E,0)))","v":""},null,{"$f":"IF(ISERROR($V345),\"\",OFFSET('Smelter Look-up'!$D$4,$V345-4,0)&\"\")","v":""},{"$f":"IF(ISERROR($V345),\"\",OFFSET('Smelter Look-up'!$E$4,$V345-4,0))","v":""},{"$f":"IF(C345=$X$4,\"Enter smelter details\", IF(ISERROR($V345),\"\",OFFSET('Smelter Look-up'!$F$4,$V345-4,0)))","v":""},{"$f":"IF(ISERROR($V345),\"\",OFFSET('Smelter Look-up'!$G$4,$V345-4,0))","v":""},{"$f":"IF(ISERROR($V345),\"\",OFFSET('Smelter Look-up'!$H$4,$V345-4,0))","v":""},{"$f":"IF(ISERROR($V345),\"\",OFFSET('Smelter Look-up'!$I$4,$V345-4,0))","v":""},{"$nulls":7},{"$f":"IF(ISERROR($V345),\"\",OFFSET('Smelter Look-up'!$C$4,$V345-4,0)&\"\")","v":""},"",{"$f":"IF(B345=\"\",\"\",IF(ISERROR(MATCH($J345,SorP!$B$1:$B$6230,0)),\"\",INDIRECT(\"'SorP'!$A$\"&MATCH($J345,SorP!$B$1:$B$6230,0))))","v":""},null,{"$f":"IF(C345=\"\",NA(),MATCH($B345&$C345,'Smelter Look-up'!$J:$J,0))","v":{"$error":"#N/A"}},null,0,null,null,null,""]
[null,{"$f":"IF(LEN(A346)=0,\"\",INDEX('Smelter Look-up'!$A:$A,MATCH($A346,'Smelter Look-up'!$E:$E,0)))","v":""},{"$f":"IF(LEN(A346)=0,\"\",INDEX('Smelter Look-up'!$C:$C,MATCH($A346,'Smelter Look-up'!$E:$E,0)))","v":""},null,{"$f":"IF(ISERROR($V346),\"\",OFFSET('Smelter Look-up'!$D$4,$V346-4,0)&\"\")","v":""},{"$f":"IF(ISERROR($V346),\"\",OFFSET('Smelter Look-up'!$E$4,$V346-4,0))","v":""},{"$f":"IF(C346=$X$4,\"Enter smelter details\", IF(ISERROR($V346),\"\",OFFSET('Smelter Look-up'!$F$4,$V346-4,0)))","v":""},{"$f":"IF(ISERROR($V346),\"\",OFFSET('Smelter Look-up'!$G$4,$V346-4,0))","v":""},{"$f":"IF(ISERROR($V346),\"\",OFFSET('Smelter Look-up'!$H$4,$V346-4,0))","v":""},{"$f":"IF(ISERROR($V346),\"\",OFFSET('Smelter Look-up'!$I$4,$V346-4,0))","v":""},{"$nulls":7},{"$f":"IF(ISERROR($V346),\"\",OFFSET('Smelter Look-up'!$C$4,$V346-4,0)&\"\")","v":""},"",{"$f":"IF(B346=\"\",\"\",IF(ISERROR(MATCH($J346,SorP!$B$1:$B$6230,0)),\"\",INDIRECT(\"'SorP'!$A$\"&MATCH($J346,SorP!$B$1:$B$6230,0))))","v":""},null,{"$f":"IF(C346=\"\",NA(),MATCH($B346&$C346,'Smelter Look-up'!$J:$J,0))","v":{"$error":"#N/A"}},null,0,null,null,null,""]
[null,{"$f":"IF(LEN(A347)=0,\"\",INDEX('Smelter Look-up'!$A:$A,MATCH($A347,'Smelter Look-up'!$E:$E,0)))","v":""},{"$f":"IF(LEN(A347)=0,\"\",INDEX('Smelter Look-up'!$C:$C,MATCH($A347,'Smelter Look-up'!$E:$E,0)))","v":""},null,{"$f":"IF(ISERROR($V347),\"\",OFFSET('Smelter Look-up'!$D$4,$V347-4,0)&\"\")","v":""},{"$f":"IF(ISERROR($V347),\"\",OFFSET('Smelter Look-up'!$E$4,$V347-4,0))","v":""},{"$f":"IF(C347=$X$4,\"Enter smelter details\", IF(ISERROR($V347),\"\",OFFSET('Smelter Look-up'!$F$4,$V347-4,0)))","v":""},{"$f":"IF(ISERROR($V347),\"\",OFFSET('Smelter Look-up'!$G$4,$V347-4,0))","v":""},{"$f":"IF(ISERROR($V347),\"\",OFFSET('Smelter Look-up'!$H$4,$V347-4,0))","v":""},{"$f":"IF(ISERROR($V347),\"\",OFFSET('Smelter Look-up'!$I$4,$V347-4,0))","v":""},{"$nulls":7},{"$f":"IF(ISERROR($V347),\"\",OFFSET('Smelter Look-up'!$C$4,$V347-4,0)&\"\")","v":""},"",{"$f":"IF(B347=\"\",\"\",IF(ISERROR(MATCH($J347,SorP!$B$1:$B$6230,0)),\"\",INDIRECT(\"'SorP'!$A$\"&MATCH($J347,SorP!$B$1:$B$6230,0))))","v":""},null,{"$f":"IF(C347=\"\",NA(),MATCH($B347&$C347,'Smelter Look-up'!$J:$J,0))","v":{"$error":"#N/A"}},null,0,null,null,null,""]
[null,{"$f":"IF(LEN(A348)=0,\"\",INDEX('Smelter Look-up'!$A:$A,MATCH($A348,'Smelter Look-up'!$E:$E,0)))","v":""},{"$f":"IF(LEN(A348)=0,\"\",INDEX('Smelter Look-up'!$C:$C,MATCH($A348,'Smelter Look-up'!$E:$E,0)))","v":""},null,{"$f":"IF(ISERROR($V348),\"\",OFFSET('Smelter Look-up'!$D$4,$V348-4,0)&\"\")","v":""},{"$f":"IF(ISERROR($V348),\"\",OFFSET('Smelter Look-up'!$E$4,$V348-4,0))","v":""},{"$f":"IF(C348=$X$4,\"Enter smelter details\", IF(ISERROR($V348),\"\",OFFSET('Smelter Look-up'!$F$4,$V348-4,0)))","v":""},{"$f":"IF(ISERROR($V348),\"\",OFFSET('Smelter Look-up'!$G$4,$V348-4,0))","v":""},{"$f":"IF(ISERROR($V348),\"\",OFFSET('Smelter Look-up'!$H$4,$V348-4,0))","v":""},{"$f":"IF(ISERROR($V348),\"\",OFFSET('Smelter Look-up'!$I$4,$V348-4,0))","v":""},{"$nulls":7},{"$f":"IF(ISERROR($V348),\"\",OFFSET('Smelter Look-up'!$C$4,$V348-4,0)&\"\")","v":""},"",{"$f":"IF(B348=\"\",\"\",IF(ISERROR(MATCH($J348,SorP!$B$1:$B$6230,0)),\"\",INDIRECT(\"'SorP'!$A$\"&MATCH($J348,SorP!$B$1:$B$6230,0))))","v":""},null,{"$f":"IF(C348=\"\",NA(),MATCH($B348&$C348,'Smelter Look-up'!$J:$J,0))","v":{"$error":"#N/A"}},null,0,null,null,null,""]
[null,{"$f":"IF(LEN(A349)=0,\"\",INDEX('Smelter Look-up'!$A:$A,MATCH($A349,'Smelter Look-up'!$E:$E,0)))","v":""},{"$f":"IF(LEN(A349)=0,\"\",INDEX('Smelter Look-up'!$C:$C,MATCH($A349,'Smelter Look-up'!$E:$E,0)))","v":""},null,{"$f":"IF(ISERROR($V349),\"\",OFFSET('Smelter Look-up'!$D$4,$V349-4,0)&\"\")","v":""},{"$f":"IF(ISERROR($V349),\"\",OFFSET('Smelter Look-up'!$E$4,$V349-4,0))","v":""},{"$f":"IF(C349=$X$4,\"Enter smelter details\", IF(ISERROR($V349),\"\",OFFSET('Smelter Look-up'!$F$4,$V349-4,0)))","v":""},{"$f":"IF(ISERROR($V349),\"\",OFFSET('Smelter Look-up'!$G$4,$V349-4,0))","v":""},{"$f":"IF(ISERROR($V349),\"\",OFFSET('Smelter Look-up'!$H$4,$V349-4,0))","v":""},{"$f":"IF(ISERROR($V349),\"\",OFFSET('Smelter Look-up'!$I$4,$V349-4,0))","v":""},{"$nulls":7},{"$f":"IF(ISERROR($V349),\"\",OFFSET('Smelter Look-up'!$C$4,$V349-4,0)&\"\")","v":""},"",{"$f":"IF(B349=\"\",\"\",IF(ISERROR(MATCH($J349,SorP!$B$1:$B$6230,0)),\"\",INDIRECT(\"'SorP'!$A$\"&MATCH($J349,SorP!$B$1:$B$6230,0))))","v":""},null,{"$f":"IF(C349=\"\",NA(),MATCH($B349&$C349,'Smelter Look-up'!$J:$J,0))","v":{"$error":"#N/A"}},null,0,null,null,null,""]
[null,{"$f":"IF(LEN(A350)=0,\"\",INDEX('Smelter Look-up'!$A:$A,MATCH($A350,'Smelter Look-up'!$E:$E,0)))","v":""},{"$f":"IF(LEN(A350)=0,\"\",INDEX('Smelter Look-up'!$C:$C,MATCH($A350,'Smelter Look-up'!$E:$E,0)))","v":""},null,{"$f":"IF(ISERROR($V350),\"\",OFFSET('Smelter Look-up'!$D$4,$V350-4,0)&\"\")","v":""},{"$f":"IF(ISERROR($V350),\"\",OFFSET('Smelter Look-up'!$E$4,$V350-4,0))","v":""},{"$f":"IF(C350=$X$4,\"Enter smelter details\", IF(ISERROR($V350),\"\",OFFSET('Smelter Look-up'!$F$4,$V350-4,0)))","v":""},{"$f":"IF(ISERROR($V350),\"\",OFFSET('Smelter Look-up'!$G$4,$V350-4,0))","v":""},{"$f":"IF(ISERROR($V350),\"\",OFFSET('Smelter Look-up'!$H$4,$V350-4,0))","v":""},{"$f":"IF(ISERROR($V350),\"\",OFFSET('Smelter Look-up'!$I$4,$V350-4,0))","v":""},{"$nulls":7},{"$f":"IF(ISERROR($V350),\"\",OFFSET('Smelter Look-up'!$C$4,$V350-4,0)&\"\")","v":""},"",{"$f":"IF(B350=\"\",\"\",IF(ISERROR(MATCH($J350,SorP!$B$1:$B$6230,0)),\"\",INDIRECT(\"'SorP'!$A$\"&MATCH($J350,SorP!$B$1:$B$6230,0))))","v":""},null,{"$f":"IF(C350=\"\",NA(),MATCH($B350&$C350,'Smelter Look-up'!$J:$J,0))","v":{"$error":"#N/A"}},null,0,null,null,null,""]
[null,{"$f":"IF(LEN(A351)=0,\"\",INDEX('Smelter Look-up'!$A:$A,MATCH($A351,'Smelter Look-up'!$E:$E,0)))","v":""},{"$f":"IF(LEN(A351)=0,\"\",INDEX('Smelter Look-up'!$C:$C,MATCH($A351,'Smelter Look-up'!$E:$E,0)))","v":""},null,{"$f":"IF(ISERROR($V351),\"\",OFFSET('Smelter Look-up'!$D$4,$V351-4,0)&\"\")","v":""},{"$f":"IF(ISERROR($V351),\"\",OFFSET('Smelter Look-up'!$E$4,$V351-4,0))","v":""},{"$f":"IF(C351=$X$4,\"Enter smelter details\", IF(ISERROR($V351),\"\",OFFSET('Smelter Look-up'!$F$4,$V351-4,0)))","v":""},{"$f":"IF(ISERROR($V351),\"\",OFFSET('Smelter Look-up'!$G$4,$V351-4,0))","v":""},{"$f":"IF(ISERROR($V351),\"\",OFFSET('Smelter Look-up'!$H$4,$V351-4,0))","v":""},{"$f":"IF(ISERROR($V351),\"\",OFFSET('Smelter Look-up'!$I$4,$V351-4,0))","v":""},{"$nulls":7},{"$f":"IF(ISERROR($V351),\"\",OFFSET('Smelter Look-up'!$C$4,$V351-4,0)&\"\")","v":""},"",{"$f":"IF(B351=\"\",\"\",IF(ISERROR(MATCH($J351,SorP!$B$1:$B$6230,0)),\"\",INDIRECT(\"'SorP'!$A$\"&MATCH($J351,SorP!$B$1:$B$6230,0))))","v":""},null,{"$f":"IF(C351=\"\",NA(),MATCH($B351&$C351,'Smelter Look-up'!$J:$J,0))","v":{"$error":"#N/A"}},null,0,null,null,null,""]
[null,{"$f":"IF(LEN(A352)=0,\"\",INDEX('Smelter Look-up'!$A:$A,MATCH($A352,'Smelter Look-up'!$E:$E,0)))","v":""},{"$f":"IF(LEN(A352)=0,\"\",INDEX('Smelter Look-up'!$C:$C,MATCH($A352,'Smelter Look-up'!$E:$E,0)))","v":""},null,{"$f":"IF(ISERROR($V352),\"\",OFFSET('Smelter Look-up'!$D$4,$V352-4,0)&\"\")","v":""},{"$f":"IF(ISERROR($V352),\"\",OFFSET('Smelter Look-up'!$E$4,$V352-4,0))","v":""},{"$f":"IF(C352=$X$4,\"Enter smelter details\", IF(ISERROR($V352),\"\",OFFSET('Smelter Look-up'!$F$4,$V352-4,0)))","v":""},{"$f":"IF(ISERROR($V352),\"\",OFFSET('Smelter Look-up'!$G$4,$V352-4,0))","v":""},{"$f":"IF(ISERROR($V352),\"\",OFFSET('Smelter Look-up'!$H$4,$V352-4,0))","v":""},{"$f":"IF(ISERROR($V352),\"\",OFFSET('Smelter Look-up'!$I$4,$V352-4,0))","v":""},{"$nulls":7},{"$f":"IF(ISERROR($V352),\"\",OFFSET('Smelter Look-up'!$C$4,$V352-4,0)&\"\")","v":""},"",{"$f":"IF(B352=\"\",\"\",IF(ISERROR(MATCH($J352,SorP!$B$1:$B$6230,0)),\"\",INDIRECT(\"'SorP'!$A$\"&MATCH($J352,SorP!$B$1:$B$6230,0))))","v":""},null,{"$f":"IF(C352=\"\",NA(),MATCH($B352&$C352,'Smelter Look-up'!$J:$J,0))","v":{"$error":"#N/A"}},null,0,null,null,null,""]
[null,{"$f":"IF(LEN(A353)=0,\"\",INDEX('Smelter Look-up'!$A:$A,MATCH($A353,'Smelter Look-up'!$E:$E,0)))","v":""},{"$f":"IF(LEN(A353)=0,\"\",INDEX('Smelter Look-up'!$C:$C,MATCH($A353,'Smelter Look-up'!$E:$E,0)))","v":""},null,{"$f":"IF(ISERROR($V353),\"\",OFFSET('Smelter Look-up'!$D$4,$V353-4,0)&\"\")","v":""},{"$f":"IF(ISERROR($V353),\"\",OFFSET('Smelter Look-up'!$E$4,$V353-4,0))","v":""},{"$f":"IF(C353=$X$4,\"Enter smelter details\", IF(ISERROR($V353),\"\",OFFSET('Smelter Look-up'!$F$4,$V353-4,0)))","v":""},{"$f":"IF(ISERROR($V353),\"\",OFFSET('Smelter Look-up'!$G$4,$V353-4,0))","v":""},{"$f":"IF(ISERROR($V353),\"\",OFFSET('Smelter Look-up'!$H$4,$V353-4,0))","v":""},{"$f":"IF(ISERROR($V353),\"\",OFFSET('Smelter Look-up'!$I$4,$V353-4,0))","v":""},{"$nulls":7},{"$f":"IF(ISERROR($V353),\"\",OFFSET('Smelter Look-up'!$C$4,$V353-4,0)&\"\")","v":""},"",{"$f":"IF(B353=\"\",\"\",IF(ISERROR(MATCH($J353,SorP!$B$1:$B$6230,0)),\"\",INDIRECT(\"'SorP'!$A$\"&MATCH($J353,SorP!$B$1:$B$6230,0))))","v":""},null,{"$f":"IF(C353=\"\",NA(),MATCH($B353&$C353,'Smelter Look-up'!$J:$J,0))","v":{"$error":"#N/A"}},null,0,null,null,null,""]
[null,{"$f":"IF(LEN(A354)=0,\"\",INDEX('Smelter Look-up'!$A:$A,MATCH($A354,'Smelter Look-up'!$E:$E,0)))","v":""},{"$f":"IF(LEN(A354)=0,\"\",INDEX('Smelter Look-up'!$C:$C,MATCH($A354,'Smelter Look-up'!$E:$E,0)))","v":""},null,{"$f":"IF(ISERROR($V354),\"\",OFFSET('Smelter Look-up'!$D$4,$V354-4,0)&\"\")","v":""},{"$f":"IF(ISERROR($V354),\"\",OFFSET('Smelter Look-up'!$E$4,$V354-4,0))","v":""},{"$f":"IF(C354=$X$4,\"Enter smelter details\", IF(ISERROR($V354),\"\",OFFSET('Smelter Look-up'!$F$4,$V354-4,0)))","v":""},{"$f":"IF(ISERROR($V354),\"\",OFFSET('Smelter Look-up'!$G$4,$V354-4,0))","v":""},{"$f":"IF(ISERROR($V354),\"\",OFFSET('Smelter Look-up'!$H$4,$V354-4,0))","v":""},{"$f":"IF(ISERROR($V354),\"\",OFFSET('Smelter Look-up'!$I$4,$V354-4,0))","v":""},{"$nulls":7},{"$f":"IF(ISERROR($V354),\"\",OFFSET('Smelter Look-up'!$C$4,$V354-4,0)&\"\")","v":""},"",{"$f":"IF(B354=\"\",\"\",IF(ISERROR(MATCH($J354,SorP!$B$1:$B$6230,0)),\"\",INDIRECT(\"'SorP'!$A$\"&MATCH($J354,SorP!$B$1:$B$6230,0))))","v":""},null,{"$f":"IF(C354=\"\",NA(),MATCH($B354&$C354,'Smelter Look-up'!$J:$J,0))","v":{"$error":"#N/A"}},null,0,null,null,null,""]
[null,{"$f":"IF(LEN(A355)=0,\"\",INDEX('Smelter Look-up'!$A:$A,MATCH($A355,'Smelter Look-up'!$E:$E,0)))","v":""},{"$f":"IF(LEN(A355)=0,\"\",INDEX('Smelter Look-up'!$C:$C,MATCH($A355,'Smelter Look-up'!$E:$E,0)))","v":""},null,{"$f":"IF(ISERROR($V355),\"\",OFFSET('Smelter Look-up'!$D$4,$V355-4,0)&\"\")","v":""},{"$f":"IF(ISERROR($V355),\"\",OFFSET('Smelter Look-up'!$E$4,$V355-4,0))","v":""},{"$f":"IF(C355=$X$4,\"Enter smelter details\", IF(ISERROR($V355),\"\",OFFSET('Smelter Look-up'!$F$4,$V355-4,0)))","v":""},{"$f":"IF(ISERROR($V355),\"\",OFFSET('Smelter Look-up'!$G$4,$V355-4,0))","v":""},{"$f":"IF(ISERROR($V355),\"\",OFFSET('Smelter Look-up'!$H$4,$V355-4,0))","v":""},{"$f":"IF(ISERROR($V355),\"\",OFFSET('Smelter Look-up'!$I$4,$V355-4,0))","v":""},{"$nulls":7},{"$f":"IF(ISERROR($V355),\"\",OFFSET('Smelter Look-up'!$C$4,$V355-4,0)&\"\")","v":""},"",{"$f":"IF(B355=\"\",\"\",IF(ISERROR(MATCH($J355,SorP!$B$1:$B$6230,0)),\"\",INDIRECT(\"'SorP'!$A$\"&MATCH($J355,SorP!$B$1:$B$6230,0))))","v":""},null,{"$f":"IF(C355=\"\",NA(),MATCH($B355&$C355,'Smelter Look-up'!$J:$J,0))","v":{"$error":"#N/A"}},null,0,null,null,null,""]
[null,{"$f":"IF(LEN(A356)=0,\"\",INDEX('Smelter Look-up'!$A:$A,MATCH($A356,'Smelter Look-up'!$E:$E,0)))","v":""},{"$f":"IF(LEN(A356)=0,\"\",INDEX('Smelter Look-up'!$C:$C,MATCH($A356,'Smelter Look-up'!$E:$E,0)))","v":""},null,{"$f":"IF(ISERROR($V356),\"\",OFFSET('Smelter Look-up'!$D$4,$V356-4,0)&\"\")","v":""},{"$f":"IF(ISERROR($V356),\"\",OFFSET('Smelter Look-up'!$E$4,$V356-4,0))","v":""},{"$f":"IF(C356=$X$4,\"Enter smelter details\", IF(ISERROR($V356),\"\",OFFSET('Smelter Look-up'!$F$4,$V356-4,0)))","v":""},{"$f":"IF(ISERROR($V356),\"\",OFFSET('Smelter Look-up'!$G$4,$V356-4,0))","v":""},{"$f":"IF(ISERROR($V356),\"\",OFFSET('Smelter Look-up'!$H$4,$V356-4,0))","v":""},{"$f":"IF(ISERROR($V356),\"\",OFFSET('Smelter Look-up'!$I$4,$V356-4,0))","v":""},{"$nulls":7},{"$f":"IF(ISERROR($V356),\"\",OFFSET('Smelter Look-up'!$C$4,$V356-4,0)&\"\")","v":""},"",{"$f":"IF(B356=\"\",\"\",IF(ISERROR(MATCH($J356,SorP!$B$1:$B$6230,0)),\"\",INDIRECT(\"'SorP'!$A$\"&MATCH($J356,SorP!$B$1:$B$6230,0))))","v":""},null,{"$f":"IF(C356=\"\",NA(),MATCH($B356&$C356,'Smelter Look-up'!$J:$J,0))","v":{"$error":"#N/A"}},null,0,null,null,null,""]
[null,{"$f":"IF(LEN(A357)=0,\"\",INDEX('Smelter Look-up'!$A:$A,MATCH($A357,'Smelter Look-up'!$E:$E,0)))","v":""},{"$f":"IF(LEN(A357)=0,\"\",INDEX('Smelter Look-up'!$C:$C,MATCH($A357,'Smelter Look-up'!$E:$E,0)))","v":""},null,{"$f":"IF(ISERROR($V357),\"\",OFFSET('Smelter Look-up'!$D$4,$V357-4,0)&\"\")","v":""},{"$f":"IF(ISERROR($V357),\"\",OFFSET('Smelter Look-up'!$E$4,$V357-4,0))","v":""},{"$f":"IF(C357=$X$4,\"Enter smelter details\", IF(ISERROR($V357),\"\",OFFSET('Smelter Look-up'!$F$4,$V357-4,0)))","v":""},{"$f":"IF(ISERROR($V357),\"\",OFFSET('Smelter Look-up'!$G$4,$V357-4,0))","v":""},{"$f":"IF(ISERROR($V357),\"\",OFFSET('Smelter Look-up'!$H$4,$V357-4,0))","v":""},{"$f":"IF(ISERROR($V357),\"\",OFFSET('Smelter Look-up'!$I$4,$V357-4,0))","v":""},{"$nulls":7},{"$f":"IF(ISERROR($V357),\"\",OFFSET('Smelter Look-up'!$C$4,$V357-4,0)&\"\")","v":""},"",{"$f":"IF(B357=\"\",\"\",IF(ISERROR(MATCH($J357,SorP!$B$1:$B$6230,0)),\"\",INDIRECT(\"'SorP'!$A$\"&MATCH($J357,SorP!$B$1:$B$6230,0))))","v":""},null,{"$f":"IF(C357=\"\",NA(),MATCH($B357&$C357,'Smelter Look-up'!$J:$J,0))","v":{"$error":"#N/A"}},null,0,null,null,null,""]
[null,{"$f":"IF(LEN(A358)=0,\"\",INDEX('Smelter Look-up'!$A:$A,MATCH($A358,'Smelter Look-up'!$E:$E,0)))","v":""},{"$f":"IF(LEN(A358)=0,\"\",INDEX('Smelter Look-up'!$C:$C,MATCH($A358,'Smelter Look-up'!$E:$E,0)))","v":""},null,{"$f":"IF(ISERROR($V358),\"\",OFFSET('Smelter Look-up'!$D$4,$V358-4,0)&\"\")","v":""},{"$f":"IF(ISERROR($V358),\"\",OFFSET('Smelter Look-up'!$E$4,$V358-4,0))","v":""},{"$f":"IF(C358=$X$4,\"Enter smelter details\", IF(ISERROR($V358),\"\",OFFSET('Smelter Look-up'!$F$4,$V358-4,0)))","v":""},{"$f":"IF(ISERROR($V358),\"\",OFFSET('Smelter Look-up'!$G$4,$V358-4,0))","v":""},{"$f":"IF(ISERROR($V358),\"\",OFFSET('Smelter Look-up'!$H$4,$V358-4,0))","v":""},{"$f":"IF(ISERROR($V358),\"\",OFFSET('Smelter Look-up'!$I$4,$V358-4,0))","v":""},{"$nulls":7},{"$f":"IF(ISERROR($V358),\"\",OFFSET('Smelter Look-up'!$C$4,$V358-4,0)&\"\")","v":""},"",{"$f":"IF(B358=\"\",\"\",IF(ISERROR(MATCH($J358,SorP!$B$1:$B$6230,0)),\"\",INDIRECT(\"'SorP'!$A$\"&MATCH($J358,SorP!$B$1:$B$6230,0))))","v":""},null,{"$f":"IF(C358=\"\",NA(),MATCH($B358&$C358,'Smelter Look-up'!$J:$J,0))","v":{"$error":"#N/A"}},null,0,null,null,null,""]
[null,{"$f":"IF(LEN(A359)=0,\"\",INDEX('Smelter Look-up'!$A:$A,MATCH($A359,'Smelter Look-up'!$E:$E,0)))","v":""},{"$f":"IF(LEN(A359)=0,\"\",INDEX('Smelter Look-up'!$C:$C,MATCH($A359,'Smelter Look-up'!$E:$E,0)))","v":""},null,{"$f":"IF(ISERROR($V359),\"\",OFFSET('Smelter Look-up'!$D$4,$V359-4,0)&\"\")","v":""},{"$f":"IF(ISERROR($V359),\"\",OFFSET('Smelter Look-up'!$E$4,$V359-4,0))","v":""},{"$f":"IF(C359=$X$4,\"Enter smelter details\", IF(ISERROR($V359),\"\",OFFSET('Smelter Look-up'!$F$4,$V359-4,0)))","v":""},{"$f":"IF(ISERROR($V359),\"\",OFFSET('Smelter Look-up'!$G$4,$V359-4,0))","v":""},{"$f":"IF(ISERROR($V359),\"\",OFFSET('Smelter Look-up'!$H$4,$V359-4,0))","v":""},{"$f":"IF(ISERROR($V359),\"\",OFFSET('Smelter Look-up'!$I$4,$V359-4,0))","v":""},{"$nulls":7},{"$f":"IF(ISERROR($V359),\"\",OFFSET('Smelter Look-up'!$C$4,$V359-4,0)&\"\")","v":""},"",{"$f":"IF(B359=\"\",\"\",IF(ISERROR(MATCH($J359,SorP!$B$1:$B$6230,0)),\"\",INDIRECT(\"'SorP'!$A$\"&MATCH($J359,SorP!$B$1:$B$6230,0))))","v":""},null,{"$f":"IF(C359=\"\",NA(),MATCH($B359&$C359,'Smelter Look-up'!$J:$J,0))","v":{"$error":"#N/A"}},null,0,null,null,null,""]
[null,{"$f":"IF(LEN(A360)=0,\"\",INDEX('Smelter Look-up'!$A:$A,MATCH($A360,'Smelter Look-up'!$E:$E,0)))","v":""},{"$f":"IF(LEN(A360)=0,\"\",INDEX('Smelter Look-up'!$C:$C,MATCH($A360,'Smelter Look-up'!$E:$E,0)))","v":""},null,{"$f":"IF(ISERROR($V360),\"\",OFFSET('Smelter Look-up'!$D$4,$V360-4,0)&\"\")","v":""},{"$f":"IF(ISERROR($V360),\"\",OFFSET('Smelter Look-up'!$E$4,$V360-4,0))","v":""},{"$f":"IF(C360=$X$4,\"Enter smelter details\", IF(ISERROR($V360),\"\",OFFSET('Smelter Look-up'!$F$4,$V360-4,0)))","v":""},{"$f":"IF(ISERROR($V360),\"\",OFFSET('Smelter Look-up'!$G$4,$V360-4,0))","v":""},{"$f":"IF(ISERROR($V360),\"\",OFFSET('Smelter Look-up'!$H$4,$V360-4,0))","v":""},{"$f":"IF(ISERROR($V360),\"\",OFFSET('Smelter Look-up'!$I$4,$V360-4,0))","v":""},{"$nulls":7},{"$f":"IF(ISERROR($V360),\"\",OFFSET('Smelter Look-up'!$C$4,$V360-4,0)&\"\")","v":""},"",{"$f":"IF(B360=\"\",\"\",IF(ISERROR(MATCH($J360,SorP!$B$1:$B$6230,0)),\"\",INDIRECT(\"'SorP'!$A$\"&MATCH($J360,SorP!$B$1:$B$6230,0))))","v":""},null,{"$f":"IF(C360=\"\",NA(),MATCH($B360&$C360,'Smelter Look-up'!$J:$J,0))","v":{"$error":"#N/A"}},null,0,null,null,null,""]
[null,{"$f":"IF(LEN(A361)=0,\"\",INDEX('Smelter Look-up'!$A:$A,MATCH($A361,'Smelter Look-up'!$E:$E,0)))","v":""},{"$f":"IF(LEN(A361)=0,\"\",INDEX('Smelter Look-up'!$C:$C,MATCH($A361,'Smelter Look-up'!$E:$E,0)))","v":""},null,{"$f":"IF(ISERROR($V361),\"\",OFFSET('Smelter Look-up'!$D$4,$V361-4,0)&\"\")","v":""},{"$f":"IF(ISERROR($V361),\"\",OFFSET('Smelter Look-up'!$E$4,$V361-4,0))","v":""},{"$f":"IF(C361=$X$4,\"Enter smelter details\", IF(ISERROR($V361),\"\",OFFSET('Smelter Look-up'!$F$4,$V361-4,0)))","v":""},{"$f":"IF(ISERROR($V361),\"\",OFFSET('Smelter Look-up'!$G$4,$V361-4,0))","v":""},{"$f":"IF(ISERROR($V361),\"\",OFFSET('Smelter Look-up'!$H$4,$V361-4,0))","v":""},{"$f":"IF(ISERROR($V361),\"\",OFFSET('Smelter Look-up'!$I$4,$V361-4,0))","v":""},{"$nulls":7},{"$f":"IF(ISERROR($V361),\"\",OFFSET('Smelter Look-up'!$C$4,$V361-4,0)&\"\")","v":""},"",{"$f":"IF(B361=\"\",\"\",IF(ISERROR(MATCH($J361,SorP!$B$1:$B$6230,0)),\"\",INDIRECT(\"'SorP'!$A$\"&MATCH($J361,SorP!$B$1:$B$6230,0))))","v":""},null,{"$f":"IF(C361=\"\",NA(),MATCH($B361&$C361,'Smelter Look-up'!$J:$J,0))","v":{"$error":"#N/A"}},null,0,null,null,null,""]
[null,{"$f":"IF(LEN(A362)=0,\"\",INDEX('Smelter Look-up'!$A:$A,MATCH($A362,'Smelter Look-up'!$E:$E,0)))","v":""},{"$f":"IF(LEN(A362)=0,\"\",INDEX('Smelter Look-up'!$C:$C,MATCH($A362,'Smelter Look-up'!$E:$E,0)))","v":""},null,{"$f":"IF(ISERROR($V362),\"\",OFFSET('Smelter Look-up'!$D$4,$V362-4,0)&\"\")","v":""},{"$f":"IF(ISERROR($V362),\"\",OFFSET('Smelter Look-up'!$E$4,$V362-4,0))","v":""},{"$f":"IF(C362=$X$4,\"Enter smelter details\", IF(ISERROR($V362),\"\",OFFSET('Smelter Look-up'!$F$4,$V362-4,0)))","v":""},{"$f":"IF(ISERROR($V362),\"\",OFFSET('Smelter Look-up'!$G$4,$V362-4,0))","v":""},{"$f":"IF(ISERROR($V362),\"\",OFFSET('Smelter Look-up'!$H$4,$V362-4,0))","v":""},{"$f":"IF(ISERROR($V362),\"\",OFFSET('Smelter Look-up'!$I$4,$V362-4,0))","v":""},{"$nulls":7},{"$f":"IF(ISERROR($V362),\"\",OFFSET('Smelter Look-up'!$C$4,$V362-4,0)&\"\")","v":""},"",{"$f":"IF(B362=\"\",\"\",IF(ISERROR(MATCH($J362,SorP!$B$1:$B$6230,0)),\"\",INDIRECT(\"'SorP'!$A$\"&MATCH($J362,SorP!$B$1:$B$6230,0))))","v":""},null,{"$f":"IF(C362=\"\",NA(),MATCH($B362&$C362,'Smelter Look-up'!$J:$J,0))","v":{"$error":"#N/A"}},null,0,null,null,null,""]
[null,{"$f":"IF(LEN(A363)=0,\"\",INDEX('Smelter Look-up'!$A:$A,MATCH($A363,'Smelter Look-up'!$E:$E,0)))","v":""},{"$f":"IF(LEN(A363)=0,\"\",INDEX('Smelter Look-up'!$C:$C,MATCH($A363,'Smelter Look-up'!$E:$E,0)))","v":""},null,{"$f":"IF(ISERROR($V363),\"\",OFFSET('Smelter Look-up'!$D$4,$V363-4,0)&\"\")","v":""},{"$f":"IF(ISERROR($V363),\"\",OFFSET('Smelter Look-up'!$E$4,$V363-4,0))","v":""},{"$f":"IF(C363=$X$4,\"Enter smelter details\", IF(ISERROR($V363),\"\",OFFSET('Smelter Look-up'!$F$4,$V363-4,0)))","v":""},{"$f":"IF(ISERROR($V363),\"\",OFFSET('Smelter Look-up'!$G$4,$V363-4,0))","v":""},{"$f":"IF(ISERROR($V363),\"\",OFFSET('Smelter Look-up'!$H$4,$V363-4,0))","v":""},{"$f":"IF(ISERROR($V363),\"\",OFFSET('Smelter Look-up'!$I$4,$V363-4,0))","v":""},{"$nulls":7},{"$f":"IF(ISERROR($V363),\"\",OFFSET('Smelter Look-up'!$C$4,$V363-4,0)&\"\")","v":""},"",{"$f":"IF(B363=\"\",\"\",IF(ISERROR(MATCH($J363,SorP!$B$1:$B$6230,0)),\"\",INDIRECT(\"'SorP'!$A$\"&MATCH($J363,SorP!$B$1:$B$6230,0))))","v":""},null,{"$f":"IF(C363=\"\",NA(),MATCH($B363&$C363,'Smelter Look-up'!$J:$J,0))","v":{"$error":"#N/A"}},null,0,null,null,null,""]
[null,{"$f":"IF(LEN(A364)=0,\"\",INDEX('Smelter Look-up'!$A:$A,MATCH($A364,'Smelter Look-up'!$E:$E,0)))","v":""},{"$f":"IF(LEN(A364)=0,\"\",INDEX('Smelter Look-up'!$C:$C,MATCH($A364,'Smelter Look-up'!$E:$E,0)))","v":""},null,{"$f":"IF(ISERROR($V364),\"\",OFFSET('Smelter Look-up'!$D$4,$V364-4,0)&\"\")","v":""},{"$f":"IF(ISERROR($V364),\"\",OFFSET('Smelter Look-up'!$E$4,$V364-4,0))","v":""},{"$f":"IF(C364=$X$4,\"Enter smelter details\", IF(ISERROR($V364),\"\",OFFSET('Smelter Look-up'!$F$4,$V364-4,0)))","v":""},{"$f":"IF(ISERROR($V364),\"\",OFFSET('Smelter Look-up'!$G$4,$V364-4,0))","v":""},{"$f":"IF(ISERROR($V364),\"\",OFFSET('Smelter Look-up'!$H$4,$V364-4,0))","v":""},{"$f":"IF(ISERROR($V364),\"\",OFFSET('Smelter Look-up'!$I$4,$V364-4,0))","v":""},{"$nulls":7},{"$f":"IF(ISERROR($V364),\"\",OFFSET('Smelter Look-up'!$C$4,$V364-4,0)&\"\")","v":""},"",{"$f":"IF(B364=\"\",\"\",IF(ISERROR(MATCH($J364,SorP!$B$1:$B$6230,0)),\"\",INDIRECT(\"'SorP'!$A$\"&MATCH($J364,SorP!$B$1:$B$6230,0))))","v":""},null,{"$f":"IF(C364=\"\",NA(),MATCH($B364&$C364,'Smelter Look-up'!$J:$J,0))","v":{"$error":"#N/A"}},null,0,null,null,null,""]
[null,{"$f":"IF(LEN(A365)=0,\"\",INDEX('Smelter Look-up'!$A:$A,MATCH($A365,'Smelter Look-up'!$E:$E,0)))","v":""},{"$f":"IF(LEN(A365)=0,\"\",INDEX('Smelter Look-up'!$C:$C,MATCH($A365,'Smelter Look-up'!$E:$E,0)))","v":""},null,{"$f":"IF(ISERROR($V365),\"\",OFFSET('Smelter Look-up'!$D$4,$V365-4,0)&\"\")","v":""},{"$f":"IF(ISERROR($V365),\"\",OFFSET('Smelter Look-up'!$E$4,$V365-4,0))","v":""},{"$f":"IF(C365=$X$4,\"Enter smelter details\", IF(ISERROR($V365),\"\",OFFSET('Smelter Look-up'!$F$4,$V365-4,0)))","v":""},{"$f":"IF(ISERROR($V365),\"\",OFFSET('Smelter Look-up'!$G$4,$V365-4,0))","v":""},{"$f":"IF(ISERROR($V365),\"\",OFFSET('Smelter Look-up'!$H$4,$V365-4,0))","v":""},{"$f":"IF(ISERROR($V365),\"\",OFFSET('Smelter Look-up'!$I$4,$V365-4,0))","v":""},{"$nulls":7},{"$f":"IF(ISERROR($V365),\"\",OFFSET('Smelter Look-up'!$C$4,$V365-4,0)&\"\")","v":""},"",{"$f":"IF(B365=\"\",\"\",IF(ISERROR(MATCH($J365,SorP!$B$1:$B$6230,0)),\"\",INDIRECT(\"'SorP'!$A$\"&MATCH($J365,SorP!$B$1:$B$6230,0))))","v":""},null,{"$f":"IF(C365=\"\",NA(),MATCH($B365&$C365,'Smelter Look-up'!$J:$J,0))","v":{"$error":"#N/A"}},null,0,null,null,null,""]
[null,{"$f":"IF(LEN(A366)=0,\"\",INDEX('Smelter Look-up'!$A:$A,MATCH($A366,'Smelter Look-up'!$E:$E,0)))","v":""},{"$f":"IF(LEN(A366)=0,\"\",INDEX('Smelter Look-up'!$C:$C,MATCH($A366,'Smelter Look-up'!$E:$E,0)))","v":""},null,{"$f":"IF(ISERROR($V366),\"\",OFFSET('Smelter Look-up'!$D$4,$V366-4,0)&\"\")","v":""},{"$f":"IF(ISERROR($V366),\"\",OFFSET('Smelter Look-up'!$E$4,$V366-4,0))","v":""},{"$f":"IF(C366=$X$4,\"Enter smelter details\", IF(ISERROR($V366),\"\",OFFSET('Smelter Look-up'!$F$4,$V366-4,0)))","v":""},{"$f":"IF(ISERROR($V366),\"\",OFFSET('Smelter Look-up'!$G$4,$V366-4,0))","v":""},{"$f":"IF(ISERROR($V366),\"\",OFFSET('Smelter Look-up'!$H$4,$V366-4,0))","v":""},{"$f":"IF(ISERROR($V366),\"\",OFFSET('Smelter Look-up'!$I$4,$V366-4,0))","v":""},{"$nulls":7},{"$f":"IF(ISERROR($V366),\"\",OFFSET('Smelter Look-up'!$C$4,$V366-4,0)&\"\")","v":""},"",{"$f":"IF(B366=\"\",\"\",IF(ISERROR(MATCH($J366,SorP!$B$1:$B$6230,0)),\"\",INDIRECT(\"'SorP'!$A$\"&MATCH($J366,SorP!$B$1:$B$6230,0))))","v":""},null,{"$f":"IF(C366=\"\",NA(),MATCH($B366&$C366,'Smelter Look-up'!$J:$J,0))","v":{"$error":"#N/A"}},null,0,null,null,null,""]
[null,{"$f":"IF(LEN(A367)=0,\"\",INDEX('Smelter Look-up'!$A:$A,MATCH($A367,'Smelter Look-up'!$E:$E,0)))","v":""},{"$f":"IF(LEN(A367)=0,\"\",INDEX('Smelter Look-up'!$C:$C,MATCH($A367,'Smelter Look-up'!$E:$E,0)))","v":""},null,{"$f":"IF(ISERROR($V367),\"\",OFFSET('Smelter Look-up'!$D$4,$V367-4,0)&\"\")","v":""},{"$f":"IF(ISERROR($V367),\"\",OFFSET('Smelter Look-up'!$E$4,$V367-4,0))","v":""},{"$f":"IF(C367=$X$4,\"Enter smelter details\", IF(ISERROR($V367),\"\",OFFSET('Smelter Look-up'!$F$4,$V367-4,0)))","v":""},{"$f":"IF(ISERROR($V367),\"\",OFFSET('Smelter Look-up'!$G$4,$V367-4,0))","v":""},{"$f":"IF(ISERROR($V367),\"\",OFFSET('Smelter Look-up'!$H$4,$V367-4,0))","v":""},{"$f":"IF(ISERROR($V367),\"\",OFFSET('Smelter Look-up'!$I$4,$V367-4,0))","v":""},{"$nulls":7},{"$f":"IF(ISERROR($V367),\"\",OFFSET('Smelter Look-up'!$C$4,$V367-4,0)&\"\")","v":""},"",{"$f":"IF(B367=\"\",\"\",IF(ISERROR(MATCH($J367,SorP!$B$1:$B$6230,0)),\"\",INDIRECT(\"'SorP'!$A$\"&MATCH($J367,SorP!$B$1:$B$6230,0))))","v":""},null,{"$f":"IF(C367=\"\",NA(),MATCH($B367&$C367,'Smelter Look-up'!$J:$J,0))","v":{"$error":"#N/A"}},null,0,null,null,null,""]
[null,{"$f":"IF(LEN(A368)=0,\"\",INDEX('Smelter Look-up'!$A:$A,MATCH($A368,'Smelter Look-up'!$E:$E,0)))","v":""},{"$f":"IF(LEN(A368)=0,\"\",INDEX('Smelter Look-up'!$C:$C,MATCH($A368,'Smelter Look-up'!$E:$E,0)))","v":""},null,{"$f":"IF(ISERROR($V368),\"\",OFFSET('Smelter Look-up'!$D$4,$V368-4,0)&\"\")","v":""},{"$f":"IF(ISERROR($V368),\"\",OFFSET('Smelter Look-up'!$E$4,$V368-4,0))","v":""},{"$f":"IF(C368=$X$4,\"Enter smelter details\", IF(ISERROR($V368),\"\",OFFSET('Smelter Look-up'!$F$4,$V368-4,0)))","v":""},{"$f":"IF(ISERROR($V368),\"\",OFFSET('Smelter Look-up'!$G$4,$V368-4,0))","v":""},{"$f":"IF(ISERROR($V368),\"\",OFFSET('Smelter Look-up'!$H$4,$V368-4,0))","v":""},{"$f":"IF(ISERROR($V368),\"\",OFFSET('Smelter Look-up'!$I$4,$V368-4,0))","v":""},{"$nulls":7},{"$f":"IF(ISERROR($V368),\"\",OFFSET('Smelter Look-up'!$C$4,$V368-4,0)&\"\")","v":""},"",{"$f":"IF(B368=\"\",\"\",IF(ISERROR(MATCH($J368,SorP!$B$1:$B$6230,0)),\"\",INDIRECT(\"'SorP'!$A$\"&MATCH($J368,SorP!$B$1:$B$6230,0))))","v":""},null,{"$f":"IF(C368=\"\",NA(),MATCH($B368&$C368,'Smelter Look-up'!$J:$J,0))","v":{"$error":"#N/A"}},null,0,null,null,null,""]
[null,{"$f":"IF(LEN(A369)=0,\"\",INDEX('Smelter Look-up'!$A:$A,MATCH($A369,'Smelter Look-up'!$E:$E,0)))","v":""},{"$f":"IF(LEN(A369)=0,\"\",INDEX('Smelter Look-up'!$C:$C,MATCH($A369,'Smelter Look-up'!$E:$E,0)))","v":""},null,{"$f":"IF(ISERROR($V369),\"\",OFFSET('Smelter Look-up'!$D$4,$V369-4,0)&\"\")","v":""},{"$f":"IF(ISERROR($V369),\"\",OFFSET('Smelter Look-up'!$E$4,$V369-4,0))","v":""},{"$f":"IF(C369=$X$4,\"Enter smelter details\", IF(ISERROR($V369),\"\",OFFSET('Smelter Look-up'!$F$4,$V369-4,0)))","v":""},{"$f":"IF(ISERROR($V369),\"\",OFFSET('Smelter Look-up'!$G$4,$V369-4,0))","v":""},{"$f":"IF(ISERROR($V369),\"\",OFFSET('Smelter Look-up'!$H$4,$V369-4,0))","v":""},{"$f":"IF(ISERROR($V369),\"\",OFFSET('Smelter Look-up'!$I$4,$V369-4,0))","v":""},{"$nulls":7},{"$f":"IF(ISERROR($V369),\"\",OFFSET('Smelter Look-up'!$C$4,$V369-4,0)&\"\")","v":""},"",{"$f":"IF(B369=\"\",\"\",IF(ISERROR(MATCH($J369,SorP!$B$1:$B$6230,0)),\"\",INDIRECT(\"'SorP'!$A$\"&MATCH($J369,SorP!$B$1:$B$6230,0))))","v":""},null,{"$f":"IF(C369=\"\",NA(),MATCH($B369&$C369,'Smelter Look-up'!$J:$J,0))","v":{"$error":"#N/A"}},null,0,null,null,null,""]
[null,{"$f":"IF(LEN(A370)=0,\"\",INDEX('Smelter Look-up'!$A:$A,MATCH($A370,'Smelter Look-up'!$E:$E,0)))","v":""},{"$f":"IF(LEN(A370)=0,\"\",INDEX('Smelter Look-up'!$C:$C,MATCH($A370,'Smelter Look-up'!$E:$E,0)))","v":""},null,{"$f":"IF(ISERROR($V370),\"\",OFFSET('Smelter Look-up'!$D$4,$V370-4,0)&\"\")","v":""},{"$f":"IF(ISERROR($V370),\"\",OFFSET('Smelter Look-up'!$E$4,$V370-4,0))","v":""},{"$f":"IF(C370=$X$4,\"Enter smelter details\", IF(ISERROR($V370),\"\",OFFSET('Smelter Look-up'!$F$4,$V370-4,0)))","v":""},{"$f":"IF(ISERROR($V370),\"\",OFFSET('Smelter Look-up'!$G$4,$V370-4,0))","v":""},{"$f":"IF(ISERROR($V370),\"\",OFFSET('Smelter Look-up'!$H$4,$V370-4,0))","v":""},{"$f":"IF(ISERROR($V370),\"\",OFFSET('Smelter Look-up'!$I$4,$V370-4,0))","v":""},{"$nulls":7},{"$f":"IF(ISERROR($V370),\"\",OFFSET('Smelter Look-up'!$C$4,$V370-4,0)&\"\")","v":""},"",{"$f":"IF(B370=\"\",\"\",IF(ISERROR(MATCH($J370,SorP!$B$1:$B$6230,0)),\"\",INDIRECT(\"'SorP'!$A$\"&MATCH($J370,SorP!$B$1:$B$6230,0))))","v":""},null,{"$f":"IF(C370=\"\",NA(),MATCH($B370&$C370,'Smelter Look-up'!$J:$J,0))","v":{"$error":"#N/A"}},null,0,null,null,null,""]
[null,{"$f":"IF(LEN(A371)=0,\"\",INDEX('Smelter Look-up'!$A:$A,MATCH($A371,'Smelter Look-up'!$E:$E,0)))","v":""},{"$f":"IF(LEN(A371)=0,\"\",INDEX('Smelter Look-up'!$C:$C,MATCH($A371,'Smelter Look-up'!$E:$E,0)))","v":""},null,{"$f":"IF(ISERROR($V371),\"\",OFFSET('Smelter Look-up'!$D$4,$V371-4,0)&\"\")","v":""},{"$f":"IF(ISERROR($V371),\"\",OFFSET('Smelter Look-up'!$E$4,$V371-4,0))","v":""},{"$f":"IF(C371=$X$4,\"Enter smelter details\", IF(ISERROR($V371),\"\",OFFSET('Smelter Look-up'!$F$4,$V371-4,0)))","v":""},{"$f":"IF(ISERROR($V371),\"\",OFFSET('Smelter Look-up'!$G$4,$V371-4,0))","v":""},{"$f":"IF(ISERROR($V371),\"\",OFFSET('Smelter Look-up'!$H$4,$V371-4,0))","v":""},{"$f":"IF(ISERROR($V371),\"\",OFFSET('Smelter Look-up'!$I$4,$V371-4,0))","v":""},{"$nulls":7},{"$f":"IF(ISERROR($V371),\"\",OFFSET('Smelter Look-up'!$C$4,$V371-4,0)&\"\")","v":""},"",{"$f":"IF(B371=\"\",\"\",IF(ISERROR(MATCH($J371,SorP!$B$1:$B$6230,0)),\"\",INDIRECT(\"'SorP'!$A$\"&MATCH($J371,SorP!$B$1:$B$6230,0))))","v":""},null,{"$f":"IF(C371=\"\",NA(),MATCH($B371&$C371,'Smelter Look-up'!$J:$J,0))","v":{"$error":"#N/A"}},null,0,null,null,null,""]
[null,{"$f":"IF(LEN(A372)=0,\"\",INDEX('Smelter Look-up'!$A:$A,MATCH($A372,'Smelter Look-up'!$E:$E,0)))","v":""},{"$f":"IF(LEN(A372)=0,\"\",INDEX('Smelter Look-up'!$C:$C,MATCH($A372,'Smelter Look-up'!$E:$E,0)))","v":""},null,{"$f":"IF(ISERROR($V372),\"\",OFFSET('Smelter Look-up'!$D$4,$V372-4,0)&\"\")","v":""},{"$f":"IF(ISERROR($V372),\"\",OFFSET('Smelter Look-up'!$E$4,$V372-4,0))","v":""},{"$f":"IF(C372=$X$4,\"Enter smelter details\", IF(ISERROR($V372),\"\",OFFSET('Smelter Look-up'!$F$4,$V372-4,0)))","v":""},{"$f":"IF(ISERROR($V372),\"\",OFFSET('Smelter Look-up'!$G$4,$V372-4,0))","v":""},{"$f":"IF(ISERROR($V372),\"\",OFFSET('Smelter Look-up'!$H$4,$V372-4,0))","v":""},{"$f":"IF(ISERROR($V372),\"\",OFFSET('Smelter Look-up'!$I$4,$V372-4,0))","v":""},{"$nulls":7},{"$f":"IF(ISERROR($V372),\"\",OFFSET('Smelter Look-up'!$C$4,$V372-4,0)&\"\")","v":""},"",{"$f":"IF(B372=\"\",\"\",IF(ISERROR(MATCH($J372,SorP!$B$1:$B$6230,0)),\"\",INDIRECT(\"'SorP'!$A$\"&MATCH($J372,SorP!$B$1:$B$6230,0))))","v":""},null,{"$f":"IF(C372=\"\",NA(),MATCH($B372&$C372,'Smelter Look-up'!$J:$J,0))","v":{"$error":"#N/A"}},null,0,null,null,null,""]
[null,{"$f":"IF(LEN(A373)=0,\"\",INDEX('Smelter Look-up'!$A:$A,MATCH($A373,'Smelter Look-up'!$E:$E,0)))","v":""},{"$f":"IF(LEN(A373)=0,\"\",INDEX('Smelter Look-up'!$C:$C,MATCH($A373,'Smelter Look-up'!$E:$E,0)))","v":""},null,{"$f":"IF(ISERROR($V373),\"\",OFFSET('Smelter Look-up'!$D$4,$V373-4,0)&\"\")","v":""},{"$f":"IF(ISERROR($V373),\"\",OFFSET('Smelter Look-up'!$E$4,$V373-4,0))","v":""},{"$f":"IF(C373=$X$4,\"Enter smelter details\", IF(ISERROR($V373),\"\",OFFSET('Smelter Look-up'!$F$4,$V373-4,0)))","v":""},{"$f":"IF(ISERROR($V373),\"\",OFFSET('Smelter Look-up'!$G$4,$V373-4,0))","v":""},{"$f":"IF(ISERROR($V373),\"\",OFFSET('Smelter Look-up'!$H$4,$V373-4,0))","v":""},{"$f":"IF(ISERROR($V373),\"\",OFFSET('Smelter Look-up'!$I$4,$V373-4,0))","v":""},{"$nulls":7},{"$f":"IF(ISERROR($V373),\"\",OFFSET('Smelter Look-up'!$C$4,$V373-4,0)&\"\")","v":""},"",{"$f":"IF(B373=\"\",\"\",IF(ISERROR(MATCH($J373,SorP!$B$1:$B$6230,0)),\"\",INDIRECT(\"'SorP'!$A$\"&MATCH($J373,SorP!$B$1:$B$6230,0))))","v":""},null,{"$f":"IF(C373=\"\",NA(),MATCH($B373&$C373,'Smelter Look-up'!$J:$J,0))","v":{"$error":"#N/A"}},null,0,null,null,null,""]
[null,{"$f":"IF(LEN(A374)=0,\"\",INDEX('Smelter Look-up'!$A:$A,MATCH($A374,'Smelter Look-up'!$E:$E,0)))","v":""},{"$f":"IF(LEN(A374)=0,\"\",INDEX('Smelter Look-up'!$C:$C,MATCH($A374,'Smelter Look-up'!$E:$E,0)))","v":""},null,{"$f":"IF(ISERROR($V374),\"\",OFFSET('Smelter Look-up'!$D$4,$V374-4,0)&\"\")","v":""},{"$f":"IF(ISERROR($V374),\"\",OFFSET('Smelter Look-up'!$E$4,$V374-4,0))","v":""},{"$f":"IF(C374=$X$4,\"Enter smelter details\", IF(ISERROR($V374),\"\",OFFSET('Smelter Look-up'!$F$4,$V374-4,0)))","v":""},{"$f":"IF(ISERROR($V374),\"\",OFFSET('Smelter Look-up'!$G$4,$V374-4,0))","v":""},{"$f":"IF(ISERROR($V374),\"\",OFFSET('Smelter Look-up'!$H$4,$V374-4,0))","v":""},{"$f":"IF(ISERROR($V374),\"\",OFFSET('Smelter Look-up'!$I$4,$V374-4,0))","v":""},{"$nulls":7},{"$f":"IF(ISERROR($V374),\"\",OFFSET('Smelter Look-up'!$C$4,$V374-4,0)&\"\")","v":""},"",{"$f":"IF(B374=\"\",\"\",IF(ISERROR(MATCH($J374,SorP!$B$1:$B$6230,0)),\"\",INDIRECT(\"'SorP'!$A$\"&MATCH($J374,SorP!$B$1:$B$6230,0))))","v":""},null,{"$f":"IF(C374=\"\",NA(),MATCH($B374&$C374,'Smelter Look-up'!$J:$J,0))","v":{"$error":"#N/A"}},null,0,null,null,null,""]
[null,{"$f":"IF(LEN(A375)=0,\"\",INDEX('Smelter Look-up'!$A:$A,MATCH($A375,'Smelter Look-up'!$E:$E,0)))","v":""},{"$f":"IF(LEN(A375)=0,\"\",INDEX('Smelter Look-up'!$C:$C,MATCH($A375,'Smelter Look-up'!$E:$E,0)))","v":""},null,{"$f":"IF(ISERROR($V375),\"\",OFFSET('Smelter Look-up'!$D$4,$V375-4,0)&\"\")","v":""},{"$f":"IF(ISERROR($V375),\"\",OFFSET('Smelter Look-up'!$E$4,$V375-4,0))","v":""},{"$f":"IF(C375=$X$4,\"Enter smelter details\", IF(ISERROR($V375),\"\",OFFSET('Smelter Look-up'!$F$4,$V375-4,0)))","v":""},{"$f":"IF(ISERROR($V375),\"\",OFFSET('Smelter Look-up'!$G$4,$V375-4,0))","v":""},{"$f":"IF(ISERROR($V375),\"\",OFFSET('Smelter Look-up'!$H$4,$V375-4,0))","v":""},{"$f":"IF(ISERROR($V375),\"\",OFFSET('Smelter Look-up'!$I$4,$V375-4,0))","v":""},{"$nulls":7},{"$f":"IF(ISERROR($V375),\"\",OFFSET('Smelter Look-up'!$C$4,$V375-4,0)&\"\")","v":""},"",{"$f":"IF(B375=\"\",\"\",IF(ISERROR(MATCH($J375,SorP!$B$1:$B$6230,0)),\"\",INDIRECT(\"'SorP'!$A$\"&MATCH($J375,SorP!$B$1:$B$6230,0))))","v":""},null,{"$f":"IF(C375=\"\",NA(),MATCH($B375&$C375,'Smelter Look-up'!$J:$J,0))","v":{"$error":"#N/A"}},null,0,null,null,null,""]
[null,{"$f":"IF(LEN(A376)=0,\"\",INDEX('Smelter Look-up'!$A:$A,MATCH($A376,'Smelter Look-up'!$E:$E,0)))","v":""},{"$f":"IF(LEN(A376)=0,\"\",INDEX('Smelter Look-up'!$C:$C,MATCH($A376,'Smelter Look-up'!$E:$E,0)))","v":""},null,{"$f":"IF(ISERROR($V376),\"\",OFFSET('Smelter Look-up'!$D$4,$V376-4,0)&\"\")","v":""},{"$f":"IF(ISERROR($V376),\"\",OFFSET('Smelter Look-up'!$E$4,$V376-4,0))","v":""},{"$f":"IF(C376=$X$4,\"Enter smelter details\", IF(ISERROR($V376),\"\",OFFSET('Smelter Look-up'!$F$4,$V376-4,0)))","v":""},{"$f":"IF(ISERROR($V376),\"\",OFFSET('Smelter Look-up'!$G$4,$V376-4,0))","v":""},{"$f":"IF(ISERROR($V376),\"\",OFFSET('Smelter Look-up'!$H$4,$V376-4,0))","v":""},{"$f":"IF(ISERROR($V376),\"\",OFFSET('Smelter Look-up'!$I$4,$V376-4,0))","v":""},{"$nulls":7},{"$f":"IF(ISERROR($V376),\"\",OFFSET('Smelter Look-up'!$C$4,$V376-4,0)&\"\")","v":""},"",{"$f":"IF(B376=\"\",\"\",IF(ISERROR(MATCH($J376,SorP!$B$1:$B$6230,0)),\"\",INDIRECT(\"'SorP'!$A$\"&MATCH($J376,SorP!$B$1:$B$6230,0))))","v":""},null,{"$f":"IF(C376=\"\",NA(),MATCH($B376&$C376,'Smelter Look-up'!$J:$J,0))","v":{"$error":"#N/A"}},null,0,null,null,null,""]
[null,{"$f":"IF(LEN(A377)=0,\"\",INDEX('Smelter Look-up'!$A:$A,MATCH($A377,'Smelter Look-up'!$E:$E,0)))","v":""},{"$f":"IF(LEN(A377)=0,\"\",INDEX('Smelter Look-up'!$C:$C,MATCH($A377,'Smelter Look-up'!$E:$E,0)))","v":""},null,{"$f":"IF(ISERROR($V377),\"\",OFFSET('Smelter Look-up'!$D$4,$V377-4,0)&\"\")","v":""},{"$f":"IF(ISERROR($V377),\"\",OFFSET('Smelter Look-up'!$E$4,$V377-4,0))","v":""},{"$f":"IF(C377=$X$4,\"Enter smelter details\", IF(ISERROR($V377),\"\",OFFSET('Smelter Look-up'!$F$4,$V377-4,0)))","v":""},{"$f":"IF(ISERROR($V377),\"\",OFFSET('Smelter Look-up'!$G$4,$V377-4,0))","v":""},{"$f":"IF(ISERROR($V377),\"\",OFFSET('Smelter Look-up'!$H$4,$V377-4,0))","v":""},{"$f":"IF(ISERROR($V377),\"\",OFFSET('Smelter Look-up'!$I$4,$V377-4,0))","v":""},{"$nulls":7},{"$f":"IF(ISERROR($V377),\"\",OFFSET('Smelter Look-up'!$C$4,$V377-4,0)&\"\")","v":""},"",{"$f":"IF(B377=\"\",\"\",IF(ISERROR(MATCH($J377,SorP!$B$1:$B$6230,0)),\"\",INDIRECT(\"'SorP'!$A$\"&MATCH($J377,SorP!$B$1:$B$6230,0))))","v":""},null,{"$f":"IF(C377=\"\",NA(),MATCH($B377&$C377,'Smelter Look-up'!$J:$J,0))","v":{"$error":"#N/A"}},null,0,null,null,null,""]
[null,{"$f":"IF(LEN(A378)=0,\"\",INDEX('Smelter Look-up'!$A:$A,MATCH($A378,'Smelter Look-up'!$E:$E,0)))","v":""},{"$f":"IF(LEN(A378)=0,\"\",INDEX('Smelter Look-up'!$C:$C,MATCH($A378,'Smelter Look-up'!$E:$E,0)))","v":""},null,{"$f":"IF(ISERROR($V378),\"\",OFFSET('Smelter Look-up'!$D$4,$V378-4,0)&\"\")","v":""},{"$f":"IF(ISERROR($V378),\"\",OFFSET('Smelter Look-up'!$E$4,$V378-4,0))","v":""},{"$f":"IF(C378=$X$4,\"Enter smelter details\", IF(ISERROR($V378),\"\",OFFSET('Smelter Look-up'!$F$4,$V378-4,0)))","v":""},{"$f":"IF(ISERROR($V378),\"\",OFFSET('Smelter Look-up'!$G$4,$V378-4,0))","v":""},{"$f":"IF(ISERROR($V378),\"\",OFFSET('Smelter Look-up'!$H$4,$V378-4,0))","v":""},{"$f":"IF(ISERROR($V378),\"\",OFFSET('Smelter Look-up'!$I$4,$V378-4,0))","v":""},{"$nulls":7},{"$f":"IF(ISERROR($V378),\"\",OFFSET('Smelter Look-up'!$C$4,$V378-4,0)&\"\")","v":""},"",{"$f":"IF(B378=\"\",\"\",IF(ISERROR(MATCH($J378,SorP!$B$1:$B$6230,0)),\"\",INDIRECT(\"'SorP'!$A$\"&MATCH($J378,SorP!$B$1:$B$6230,0))))","v":""},null,{"$f":"IF(C378=\"\",NA(),MATCH($B378&$C378,'Smelter Look-up'!$J:$J,0))","v":{"$error":"#N/A"}},null,0,null,null,null,""]
[null,{"$f":"IF(LEN(A379)=0,\"\",INDEX('Smelter Look-up'!$A:$A,MATCH($A379,'Smelter Look-up'!$E:$E,0)))","v":""},{"$f":"IF(LEN(A379)=0,\"\",INDEX('Smelter Look-up'!$C:$C,MATCH($A379,'Smelter Look-up'!$E:$E,0)))","v":""},null,{"$f":"IF(ISERROR($V379),\"\",OFFSET('Smelter Look-up'!$D$4,$V379-4,0)&\"\")","v":""},{"$f":"IF(ISERROR($V379),\"\",OFFSET('Smelter Look-up'!$E$4,$V379-4,0))","v":""},{"$f":"IF(C379=$X$4,\"Enter smelter details\", IF(ISERROR($V379),\"\",OFFSET('Smelter Look-up'!$F$4,$V379-4,0)))","v":""},{"$f":"IF(ISERROR($V379),\"\",OFFSET('Smelter Look-up'!$G$4,$V379-4,0))","v":""},{"$f":"IF(ISERROR($V379),\"\",OFFSET('Smelter Look-up'!$H$4,$V379-4,0))","v":""},{"$f":"IF(ISERROR($V379),\"\",OFFSET('Smelter Look-up'!$I$4,$V379-4,0))","v":""},{"$nulls":7},{"$f":"IF(ISERROR($V379),\"\",OFFSET('Smelter Look-up'!$C$4,$V379-4,0)&\"\")","v":""},{"$f":"IF(B379=\"\",\"\",IF(ISERROR(MATCH($E379,CL,0)),\"Unknown\",INDIRECT(\"'C'!$A$\"&MATCH($E379,CL,0)+1)))","v":""},{"$f":"IF(B379=\"\",\"\",IF(ISERROR(MATCH($J379,SorP!$B$1:$B$6230,0)),\"\",INDIRECT(\"'SorP'!$A$\"&MATCH($J379,SorP!$B$1:$B$6230,0))))","v":""},null,{"$f":"IF(C379=\"\",NA(),MATCH($B379&$C379,'Smelter Look-up'!$J:$J,0))","v":{"$error":"#N/A"}},null,{"$f":"IF(AND(C379=\"Smelter not listed\",OR(LEN(D379)=0,LEN(E379)=0)),1,0)","v":0},null,null,null,{"$f":"B379&C379","v":""}]
[null,{"$f":"IF(LEN(A380)=0,\"\",INDEX('Smelter Look-up'!$A:$A,MATCH($A380,'Smelter Look-up'!$E:$E,0)))","v":""},{"$f":"IF(LEN(A380)=0,\"\",INDEX('Smelter Look-up'!$C:$C,MATCH($A380,'Smelter Look-up'!$E:$E,0)))","v":""},null,{"$f":"IF(ISERROR($V380),\"\",OFFSET('Smelter Look-up'!$D$4,$V380-4,0)&\"\")","v":""},{"$f":"IF(ISERROR($V380),\"\",OFFSET('Smelter Look-up'!$E$4,$V380-4,0))","v":""},{"$f":"IF(C380=$X$4,\"Enter smelter details\", IF(ISERROR($V380),\"\",OFFSET('Smelter Look-up'!$F$4,$V380-4,0)))","v":""},{"$f":"IF(ISERROR($V380),\"\",OFFSET('Smelter Look-up'!$G$4,$V380-4,0))","v":""},{"$f":"IF(ISERROR($V380),\"\",OFFSET('Smelter Look-up'!$H$4,$V380-4,0))","v":""},{"$f":"IF(ISERROR($V380),\"\",OFFSET('Smelter Look-up'!$I$4,$V380-4,0))","v":""},{"$nulls":7},{"$f":"IF(ISERROR($V380),\"\",OFFSET('Smelter Look-up'!$C$4,$V380-4,0)&\"\")","v":""},"",{"$f":"IF(B380=\"\",\"\",IF(ISERROR(MATCH($J380,SorP!$B$1:$B$6230,0)),\"\",INDIRECT(\"'SorP'!$A$\"&MATCH($J380,SorP!$B$1:$B$6230,0))))","v":""},null,{"$f":"IF(C380=\"\",NA(),MATCH($B380&$C380,'Smelter Look-up'!$J:$J,0))","v":{"$error":"#N/A"}},null,0,null,null,null,""]
[null,{"$f":"IF(LEN(A381)=0,\"\",INDEX('Smelter Look-up'!$A:$A,MATCH($A381,'Smelter Look-up'!$E:$E,0)))","v":""},{"$f":"IF(LEN(A381)=0,\"\",INDEX('Smelter Look-up'!$C:$C,MATCH($A381,'Smelter Look-up'!$E:$E,0)))","v":""},null,{"$f":"IF(ISERROR($V381),\"\",OFFSET('Smelter Look-up'!$D$4,$V381-4,0)&\"\")","v":""},{"$f":"IF(ISERROR($V381),\"\",OFFSET('Smelter Look-up'!$E$4,$V381-4,0))","v":""},{"$f":"IF(C381=$X$4,\"Enter smelter details\", IF(ISERROR($V381),\"\",OFFSET('Smelter Look-up'!$F$4,$V381-4,0)))","v":""},{"$f":"IF(ISERROR($V381),\"\",OFFSET('Smelter Look-up'!$G$4,$V381-4,0))","v":""},{"$f":"IF(ISERROR($V381),\"\",OFFSET('Smelter Look-up'!$H$4,$V381-4,0))","v":""},{"$f":"IF(ISERROR($V381),\"\",OFFSET('Smelter Look-up'!$I$4,$V381-4,0))","v":""},{"$nulls":7},{"$f":"IF(ISERROR($V381),\"\",OFFSET('Smelter Look-up'!$C$4,$V381-4,0)&\"\")","v":""},"",{"$f":"IF(B381=\"\",\"\",IF(ISERROR(MATCH($J381,SorP!$B$1:$B$6230,0)),\"\",INDIRECT(\"'SorP'!$A$\"&MATCH($J381,SorP!$B$1:$B$6230,0))))","v":""},null,{"$f":"IF(C381=\"\",NA(),MATCH($B381&$C381,'Smelter Look-up'!$J:$J,0))","v":{"$error":"#N/A"}},null,0,null,null,null,""]
[null,{"$f":"IF(LEN(A382)=0,\"\",INDEX('Smelter Look-up'!$A:$A,MATCH($A382,'Smelter Look-up'!$E:$E,0)))","v":""},{"$f":"IF(LEN(A382)=0,\"\",INDEX('Smelter Look-up'!$C:$C,MATCH($A382,'Smelter Look-up'!$E:$E,0)))","v":""},null,{"$f":"IF(ISERROR($V382),\"\",OFFSET('Smelter Look-up'!$D$4,$V382-4,0)&\"\")","v":""},{"$f":"IF(ISERROR($V382),\"\",OFFSET('Smelter Look-up'!$E$4,$V382-4,0))","v":""},{"$f":"IF(C382=$X$4,\"Enter smelter details\", IF(ISERROR($V382),\"\",OFFSET('Smelter Look-up'!$F$4,$V382-4,0)))","v":""},{"$f":"IF(ISERROR($V382),\"\",OFFSET('Smelter Look-up'!$G$4,$V382-4,0))","v":""},{"$f":"IF(ISERROR($V382),\"\",OFFSET('Smelter Look-up'!$H$4,$V382-4,0))","v":""},{"$f":"IF(ISERROR($V382),\"\",OFFSET('Smelter Look-up'!$I$4,$V382-4,0))","v":""},{"$nulls":7},{"$f":"IF(ISERROR($V382),\"\",OFFSET('Smelter Look-up'!$C$4,$V382-4,0)&\"\")","v":""},"",{"$f":"IF(B382=\"\",\"\",IF(ISERROR(MATCH($J382,SorP!$B$1:$B$6230,0)),\"\",INDIRECT(\"'SorP'!$A$\"&MATCH($J382,SorP!$B$1:$B$6230,0))))","v":""},null,{"$f":"IF(C382=\"\",NA(),MATCH($B382&$C382,'Smelter Look-up'!$J:$J,0))","v":{"$error":"#N/A"}},null,0,null,null,null,""]
[null,{"$f":"IF(LEN(A383)=0,\"\",INDEX('Smelter Look-up'!$A:$A,MATCH($A383,'Smelter Look-up'!$E:$E,0)))","v":""},{"$f":"IF(LEN(A383)=0,\"\",INDEX('Smelter Look-up'!$C:$C,MATCH($A383,'Smelter Look-up'!$E:$E,0)))","v":""},null,{"$f":"IF(ISERROR($V383),\"\",OFFSET('Smelter Look-up'!$D$4,$V383-4,0)&\"\")","v":""},{"$f":"IF(ISERROR($V383),\"\",OFFSET('Smelter Look-up'!$E$4,$V383-4,0))","v":""},{"$f":"IF(C383=$X$4,\"Enter smelter details\", IF(ISERROR($V383),\"\",OFFSET('Smelter Look-up'!$F$4,$V383-4,0)))","v":""},{"$f":"IF(ISERROR($V383),\"\",OFFSET('Smelter Look-up'!$G$4,$V383-4,0))","v":""},{"$f":"IF(ISERROR($V383),\"\",OFFSET('Smelter Look-up'!$H$4,$V383-4,0))","v":""},{"$f":"IF(ISERROR($V383),\"\",OFFSET('Smelter Look-up'!$I$4,$V383-4,0))","v":""},{"$nulls":7},{"$f":"IF(ISERROR($V383),\"\",OFFSET('Smelter Look-up'!$C$4,$V383-4,0)&\"\")","v":""},"",{"$f":"IF(B383=\"\",\"\",IF(ISERROR(MATCH($J383,SorP!$B$1:$B$6230,0)),\"\",INDIRECT(\"'SorP'!$A$\"&MATCH($J383,SorP!$B$1:$B$6230,0))))","v":""},null,{"$f":"IF(C383=\"\",NA(),MATCH($B383&$C383,'Smelter Look-up'!$J:$J,0))","v":{"$error":"#N/A"}},null,0,null,null,null,""]
[null,{"$f":"IF(LEN(A384)=0,\"\",INDEX('Smelter Look-up'!$A:$A,MATCH($A384,'Smelter Look-up'!$E:$E,0)))","v":""},{"$f":"IF(LEN(A384)=0,\"\",INDEX('Smelter Look-up'!$C:$C,MATCH($A384,'Smelter Look-up'!$E:$E,0)))","v":""},null,{"$f":"IF(ISERROR($V384),\"\",OFFSET('Smelter Look-up'!$D$4,$V384-4,0)&\"\")","v":""},{"$f":"IF(ISERROR($V384),\"\",OFFSET('Smelter Look-up'!$E$4,$V384-4,0))","v":""},{"$f":"IF(C384=$X$4,\"Enter smelter details\", IF(ISERROR($V384),\"\",OFFSET('Smelter Look-up'!$F$4,$V384-4,0)))","v":""},{"$f":"IF(ISERROR($V384),\"\",OFFSET('Smelter Look-up'!$G$4,$V384-4,0))","v":""},{"$f":"IF(ISERROR($V384),\"\",OFFSET('Smelter Look-up'!$H$4,$V384-4,0))","v":""},{"$f":"IF(ISERROR($V384),\"\",OFFSET('Smelter Look-up'!$I$4,$V384-4,0))","v":""},{"$nulls":7},{"$f":"IF(ISERROR($V384),\"\",OFFSET('Smelter Look-up'!$C$4,$V384-4,0)&\"\")","v":""},"",{"$f":"IF(B384=\"\",\"\",IF(ISERROR(MATCH($J384,SorP!$B$1:$B$6230,0)),\"\",INDIRECT(\"'SorP'!$A$\"&MATCH($J384,SorP!$B$1:$B$6230,0))))","v":""},null,{"$f":"IF(C384=\"\",NA(),MATCH($B384&$C384,'Smelter Look-up'!$J:$J,0))","v":{"$error":"#N/A"}},null,0,null,null,null,""]
[null,{"$f":"IF(LEN(A385)=0,\"\",INDEX('Smelter Look-up'!$A:$A,MATCH($A385,'Smelter Look-up'!$E:$E,0)))","v":""},{"$f":"IF(LEN(A385)=0,\"\",INDEX('Smelter Look-up'!$C:$C,MATCH($A385,'Smelter Look-up'!$E:$E,0)))","v":""},null,{"$f":"IF(ISERROR($V385),\"\",OFFSET('Smelter Look-up'!$D$4,$V385-4,0)&\"\")","v":""},{"$f":"IF(ISERROR($V385),\"\",OFFSET('Smelter Look-up'!$E$4,$V385-4,0))","v":""},{"$f":"IF(C385=$X$4,\"Enter smelter details\", IF(ISERROR($V385),\"\",OFFSET('Smelter Look-up'!$F$4,$V385-4,0)))","v":""},{"$f":"IF(ISERROR($V385),\"\",OFFSET('Smelter Look-up'!$G$4,$V385-4,0))","v":""},{"$f":"IF(ISERROR($V385),\"\",OFFSET('Smelter Look-up'!$H$4,$V385-4,0))","v":""},{"$f":"IF(ISERROR($V385),\"\",OFFSET('Smelter Look-up'!$I$4,$V385-4,0))","v":""},{"$nulls":7},{"$f":"IF(ISERROR($V385),\"\",OFFSET('Smelter Look-up'!$C$4,$V385-4,0)&\"\")","v":""},"",{"$f":"IF(B385=\"\",\"\",IF(ISERROR(MATCH($J385,SorP!$B$1:$B$6230,0)),\"\",INDIRECT(\"'SorP'!$A$\"&MATCH($J385,SorP!$B$1:$B$6230,0))))","v":""},null,{"$f":"IF(C385=\"\",NA(),MATCH($B385&$C385,'Smelter Look-up'!$J:$J,0))","v":{"$error":"#N/A"}},null,0,null,null,null,""]
[null,{"$f":"IF(LEN(A386)=0,\"\",INDEX('Smelter Look-up'!$A:$A,MATCH($A386,'Smelter Look-up'!$E:$E,0)))","v":""},{"$f":"IF(LEN(A386)=0,\"\",INDEX('Smelter Look-up'!$C:$C,MATCH($A386,'Smelter Look-up'!$E:$E,0)))","v":""},null,{"$f":"IF(ISERROR($V386),\"\",OFFSET('Smelter Look-up'!$D$4,$V386-4,0)&\"\")","v":""},{"$f":"IF(ISERROR($V386),\"\",OFFSET('Smelter Look-up'!$E$4,$V386-4,0))","v":""},{"$f":"IF(C386=$X$4,\"Enter smelter details\", IF(ISERROR($V386),\"\",OFFSET('Smelter Look-up'!$F$4,$V386-4,0)))","v":""},{"$f":"IF(ISERROR($V386),\"\",OFFSET('Smelter Look-up'!$G$4,$V386-4,0))","v":""},{"$f":"IF(ISERROR($V386),\"\",OFFSET('Smelter Look-up'!$H$4,$V386-4,0))","v":""},{"$f":"IF(ISERROR($V386),\"\",OFFSET('Smelter Look-up'!$I$4,$V386-4,0))","v":""},{"$nulls":7},{"$f":"IF(ISERROR($V386),\"\",OFFSET('Smelter Look-up'!$C$4,$V386-4,0)&\"\")","v":""},"",{"$f":"IF(B386=\"\",\"\",IF(ISERROR(MATCH($J386,SorP!$B$1:$B$6230,0)),\"\",INDIRECT(\"'SorP'!$A$\"&MATCH($J386,SorP!$B$1:$B$6230,0))))","v":""},null,{"$f":"IF(C386=\"\",NA(),MATCH($B386&$C386,'Smelter Look-up'!$J:$J,0))","v":{"$error":"#N/A"}},null,0,null,null,null,""]
[null,{"$f":"IF(LEN(A387)=0,\"\",INDEX('Smelter Look-up'!$A:$A,MATCH($A387,'Smelter Look-up'!$E:$E,0)))","v":""},{"$f":"IF(LEN(A387)=0,\"\",INDEX('Smelter Look-up'!$C:$C,MATCH($A387,'Smelter Look-up'!$E:$E,0)))","v":""},null,{"$f":"IF(ISERROR($V387),\"\",OFFSET('Smelter Look-up'!$D$4,$V387-4,0)&\"\")","v":""},{"$f":"IF(ISERROR($V387),\"\",OFFSET('Smelter Look-up'!$E$4,$V387-4,0))","v":""},{"$f":"IF(C387=$X$4,\"Enter smelter details\", IF(ISERROR($V387),\"\",OFFSET('Smelter Look-up'!$F$4,$V387-4,0)))","v":""},{"$f":"IF(ISERROR($V387),\"\",OFFSET('Smelter Look-up'!$G$4,$V387-4,0))","v":""},{"$f":"IF(ISERROR($V387),\"\",OFFSET('Smelter Look-up'!$H$4,$V387-4,0))","v":""},{"$f":"IF(ISERROR($V387),\"\",OFFSET('Smelter Look-up'!$I$4,$V387-4,0))","v":""},{"$nulls":7},{"$f":"IF(ISERROR($V387),\"\",OFFSET('Smelter Look-up'!$C$4,$V387-4,0)&\"\")","v":""},"",{"$f":"IF(B387=\"\",\"\",IF(ISERROR(MATCH($J387,SorP!$B$1:$B$6230,0)),\"\",INDIRECT(\"'SorP'!$A$\"&MATCH($J387,SorP!$B$1:$B$6230,0))))","v":""},null,{"$f":"IF(C387=\"\",NA(),MATCH($B387&$C387,'Smelter Look-up'!$J:$J,0))","v":{"$error":"#N/A"}},null,0,null,null,null,""]
[null,{"$f":"IF(LEN(A388)=0,\"\",INDEX('Smelter Look-up'!$A:$A,MATCH($A388,'Smelter Look-up'!$E:$E,0)))","v":""},{"$f":"IF(LEN(A388)=0,\"\",INDEX('Smelter Look-up'!$C:$C,MATCH($A388,'Smelter Look-up'!$E:$E,0)))","v":""},null,{"$f":"IF(ISERROR($V388),\"\",OFFSET('Smelter Look-up'!$D$4,$V388-4,0)&\"\")","v":""},{"$f":"IF(ISERROR($V388),\"\",OFFSET('Smelter Look-up'!$E$4,$V388-4,0))","v":""},{"$f":"IF(C388=$X$4,\"Enter smelter details\", IF(ISERROR($V388),\"\",OFFSET('Smelter Look-up'!$F$4,$V388-4,0)))","v":""},{"$f":"IF(ISERROR($V388),\"\",OFFSET('Smelter Look-up'!$G$4,$V388-4,0))","v":""},{"$f":"IF(ISERROR($V388),\"\",OFFSET('Smelter Look-up'!$H$4,$V388-4,0))","v":""},{"$f":"IF(ISERROR($V388),\"\",OFFSET('Smelter Look-up'!$I$4,$V388-4,0))","v":""},{"$nulls":7},{"$f":"IF(ISERROR($V388),\"\",OFFSET('Smelter Look-up'!$C$4,$V388-4,0)&\"\")","v":""},"",{"$f":"IF(B388=\"\",\"\",IF(ISERROR(MATCH($J388,SorP!$B$1:$B$6230,0)),\"\",INDIRECT(\"'SorP'!$A$\"&MATCH($J388,SorP!$B$1:$B$6230,0))))","v":""},null,{"$f":"IF(C388=\"\",NA(),MATCH($B388&$C388,'Smelter Look-up'!$J:$J,0))","v":{"$error":"#N/A"}},null,0,null,null,null,""]
[null,{"$f":"IF(LEN(A389)=0,\"\",INDEX('Smelter Look-up'!$A:$A,MATCH($A389,'Smelter Look-up'!$E:$E,0)))","v":""},{"$f":"IF(LEN(A389)=0,\"\",INDEX('Smelter Look-up'!$C:$C,MATCH($A389,'Smelter Look-up'!$E:$E,0)))","v":""},null,{"$f":"IF(ISERROR($V389),\"\",OFFSET('Smelter Look-up'!$D$4,$V389-4,0)&\"\")","v":""},{"$f":"IF(ISERROR($V389),\"\",OFFSET('Smelter Look-up'!$E$4,$V389-4,0))","v":""},{"$f":"IF(C389=$X$4,\"Enter smelter details\", IF(ISERROR($V389),\"\",OFFSET('Smelter Look-up'!$F$4,$V389-4,0)))","v":""},{"$f":"IF(ISERROR($V389),\"\",OFFSET('Smelter Look-up'!$G$4,$V389-4,0))","v":""},{"$f":"IF(ISERROR($V389),\"\",OFFSET('Smelter Look-up'!$H$4,$V389-4,0))","v":""},{"$f":"IF(ISERROR($V389),\"\",OFFSET('Smelter Look-up'!$I$4,$V389-4,0))","v":""},{"$nulls":7},{"$f":"IF(ISERROR($V389),\"\",OFFSET('Smelter Look-up'!$C$4,$V389-4,0)&\"\")","v":""},"",{"$f":"IF(B389=\"\",\"\",IF(ISERROR(MATCH($J389,SorP!$B$1:$B$6230,0)),\"\",INDIRECT(\"'SorP'!$A$\"&MATCH($J389,SorP!$B$1:$B$6230,0))))","v":""},null,{"$f":"IF(C389=\"\",NA(),MATCH($B389&$C389,'Smelter Look-up'!$J:$J,0))","v":{"$error":"#N/A"}},null,0,null,null,null,""]
[null,{"$f":"IF(LEN(A390)=0,\"\",INDEX('Smelter Look-up'!$A:$A,MATCH($A390,'Smelter Look-up'!$E:$E,0)))","v":""},{"$f":"IF(LEN(A390)=0,\"\",INDEX('Smelter Look-up'!$C:$C,MATCH($A390,'Smelter Look-up'!$E:$E,0)))","v":""},null,{"$f":"IF(ISERROR($V390),\"\",OFFSET('Smelter Look-up'!$D$4,$V390-4,0)&\"\")","v":""},{"$f":"IF(ISERROR($V390),\"\",OFFSET('Smelter Look-up'!$E$4,$V390-4,0))","v":""},{"$f":"IF(C390=$X$4,\"Enter smelter details\", IF(ISERROR($V390),\"\",OFFSET('Smelter Look-up'!$F$4,$V390-4,0)))","v":""},{"$f":"IF(ISERROR($V390),\"\",OFFSET('Smelter Look-up'!$G$4,$V390-4,0))","v":""},{"$f":"IF(ISERROR($V390),\"\",OFFSET('Smelter Look-up'!$H$4,$V390-4,0))","v":""},{"$f":"IF(ISERROR($V390),\"\",OFFSET('Smelter Look-up'!$I$4,$V390-4,0))","v":""},{"$nulls":7},{"$f":"IF(ISERROR($V390),\"\",OFFSET('Smelter Look-up'!$C$4,$V390-4,0)&\"\")","v":""},"",{"$f":"IF(B390=\"\",\"\",IF(ISERROR(MATCH($J390,SorP!$B$1:$B$6230,0)),\"\",INDIRECT(\"'SorP'!$A$\"&MATCH($J390,SorP!$B$1:$B$6230,0))))","v":""},null,{"$f":"IF(C390=\"\",NA(),MATCH($B390&$C390,'Smelter Look-up'!$J:$J,0))","v":{"$error":"#N/A"}},null,0,null,null,null,""]
[null,{"$f":"IF(LEN(A391)=0,\"\",INDEX('Smelter Look-up'!$A:$A,MATCH($A391,'Smelter Look-up'!$E:$E,0)))","v":""},{"$f":"IF(LEN(A391)=0,\"\",INDEX('Smelter Look-up'!$C:$C,MATCH($A391,'Smelter Look-up'!$E:$E,0)))","v":""},null,{"$f":"IF(ISERROR($V391),\"\",OFFSET('Smelter Look-up'!$D$4,$V391-4,0)&\"\")","v":""},{"$f":"IF(ISERROR($V391),\"\",OFFSET('Smelter Look-up'!$E$4,$V391-4,0))","v":""},{"$f":"IF(C391=$X$4,\"Enter smelter details\", IF(ISERROR($V391),\"\",OFFSET('Smelter Look-up'!$F$4,$V391-4,0)))","v":""},{"$f":"IF(ISERROR($V391),\"\",OFFSET('Smelter Look-up'!$G$4,$V391-4,0))","v":""},{"$f":"IF(ISERROR($V391),\"\",OFFSET('Smelter Look-up'!$H$4,$V391-4,0))","v":""},{"$f":"IF(ISERROR($V391),\"\",OFFSET('Smelter Look-up'!$I$4,$V391-4,0))","v":""},{"$nulls":7},{"$f":"IF(ISERROR($V391),\"\",OFFSET('Smelter Look-up'!$C$4,$V391-4,0)&\"\")","v":""},"",{"$f":"IF(B391=\"\",\"\",IF(ISERROR(MATCH($J391,SorP!$B$1:$B$6230,0)),\"\",INDIRECT(\"'SorP'!$A$\"&MATCH($J391,SorP!$B$1:$B$6230,0))))","v":""},null,{"$f":"IF(C391=\"\",NA(),MATCH($B391&$C391,'Smelter Look-up'!$J:$J,0))","v":{"$error":"#N/A"}},null,0,null,null,null,""]
[null,{"$f":"IF(LEN(A392)=0,\"\",INDEX('Smelter Look-up'!$A:$A,MATCH($A392,'Smelter Look-up'!$E:$E,0)))","v":""},{"$f":"IF(LEN(A392)=0,\"\",INDEX('Smelter Look-up'!$C:$C,MATCH($A392,'Smelter Look-up'!$E:$E,0)))","v":""},null,{"$f":"IF(ISERROR($V392),\"\",OFFSET('Smelter Look-up'!$D$4,$V392-4,0)&\"\")","v":""},{"$f":"IF(ISERROR($V392),\"\",OFFSET('Smelter Look-up'!$E$4,$V392-4,0))","v":""},{"$f":"IF(C392=$X$4,\"Enter smelter details\", IF(ISERROR($V392),\"\",OFFSET('Smelter Look-up'!$F$4,$V392-4,0)))","v":""},{"$f":"IF(ISERROR($V392),\"\",OFFSET('Smelter Look-up'!$G$4,$V392-4,0))","v":""},{"$f":"IF(ISERROR($V392),\"\",OFFSET('Smelter Look-up'!$H$4,$V392-4,0))","v":""},{"$f":"IF(ISERROR($V392),\"\",OFFSET('Smelter Look-up'!$I$4,$V392-4,0))","v":""},{"$nulls":7},{"$f":"IF(ISERROR($V392),\"\",OFFSET('Smelter Look-up'!$C$4,$V392-4,0)&\"\")","v":""},"",{"$f":"IF(B392=\"\",\"\",IF(ISERROR(MATCH($J392,SorP!$B$1:$B$6230,0)),\"\",INDIRECT(\"'SorP'!$A$\"&MATCH($J392,SorP!$B$1:$B$6230,0))))","v":""},null,{"$f":"IF(C392=\"\",NA(),MATCH($B392&$C392,'Smelter Look-up'!$J:$J,0))","v":{"$error":"#N/A"}},null,0,null,null,null,""]
[null,{"$f":"IF(LEN(A393)=0,\"\",INDEX('Smelter Look-up'!$A:$A,MATCH($A393,'Smelter Look-up'!$E:$E,0)))","v":""},{"$f":"IF(LEN(A393)=0,\"\",INDEX('Smelter Look-up'!$C:$C,MATCH($A393,'Smelter Look-up'!$E:$E,0)))","v":""},null,{"$f":"IF(ISERROR($V393),\"\",OFFSET('Smelter Look-up'!$D$4,$V393-4,0)&\"\")","v":""},{"$f":"IF(ISERROR($V393),\"\",OFFSET('Smelter Look-up'!$E$4,$V393-4,0))","v":""},{"$f":"IF(C393=$X$4,\"Enter smelter details\", IF(ISERROR($V393),\"\",OFFSET('Smelter Look-up'!$F$4,$V393-4,0)))","v":""},{"$f":"IF(ISERROR($V393),\"\",OFFSET('Smelter Look-up'!$G$4,$V393-4,0))","v":""},{"$f":"IF(ISERROR($V393),\"\",OFFSET('Smelter Look-up'!$H$4,$V393-4,0))","v":""},{"$f":"IF(ISERROR($V393),\"\",OFFSET('Smelter Look-up'!$I$4,$V393-4,0))","v":""},{"$nulls":7},{"$f":"IF(ISERROR($V393),\"\",OFFSET('Smelter Look-up'!$C$4,$V393-4,0)&\"\")","v":""},"",{"$f":"IF(B393=\"\",\"\",IF(ISERROR(MATCH($J393,SorP!$B$1:$B$6230,0)),\"\",INDIRECT(\"'SorP'!$A$\"&MATCH($J393,SorP!$B$1:$B$6230,0))))","v":""},null,{"$f":"IF(C393=\"\",NA(),MATCH($B393&$C393,'Smelter Look-up'!$J:$J,0))","v":{"$error":"#N/A"}},null,0,null,null,null,""]
[null,{"$f":"IF(LEN(A394)=0,\"\",INDEX('Smelter Look-up'!$A:$A,MATCH($A394,'Smelter Look-up'!$E:$E,0)))","v":""},{"$f":"IF(LEN(A394)=0,\"\",INDEX('Smelter Look-up'!$C:$C,MATCH($A394,'Smelter Look-up'!$E:$E,0)))","v":""},null,{"$f":"IF(ISERROR($V394),\"\",OFFSET('Smelter Look-up'!$D$4,$V394-4,0)&\"\")","v":""},{"$f":"IF(ISERROR($V394),\"\",OFFSET('Smelter Look-up'!$E$4,$V394-4,0))","v":""},{"$f":"IF(C394=$X$4,\"Enter smelter details\", IF(ISERROR($V394),\"\",OFFSET('Smelter Look-up'!$F$4,$V394-4,0)))","v":""},{"$f":"IF(ISERROR($V394),\"\",OFFSET('Smelter Look-up'!$G$4,$V394-4,0))","v":""},{"$f":"IF(ISERROR($V394),\"\",OFFSET('Smelter Look-up'!$H$4,$V394-4,0))","v":""},{"$f":"IF(ISERROR($V394),\"\",OFFSET('Smelter Look-up'!$I$4,$V394-4,0))","v":""},{"$nulls":7},{"$f":"IF(ISERROR($V394),\"\",OFFSET('Smelter Look-up'!$C$4,$V394-4,0)&\"\")","v":""},"",{"$f":"IF(B394=\"\",\"\",IF(ISERROR(MATCH($J394,SorP!$B$1:$B$6230,0)),\"\",INDIRECT(\"'SorP'!$A$\"&MATCH($J394,SorP!$B$1:$B$6230,0))))","v":""},null,{"$f":"IF(C394=\"\",NA(),MATCH($B394&$C394,'Smelter Look-up'!$J:$J,0))","v":{"$error":"#N/A"}},null,0,null,null,null,""]
[null,{"$f":"IF(LEN(A395)=0,\"\",INDEX('Smelter Look-up'!$A:$A,MATCH($A395,'Smelter Look-up'!$E:$E,0)))","v":""},{"$f":"IF(LEN(A395)=0,\"\",INDEX('Smelter Look-up'!$C:$C,MATCH($A395,'Smelter Look-up'!$E:$E,0)))","v":""},null,{"$f":"IF(ISERROR($V395),\"\",OFFSET('Smelter Look-up'!$D$4,$V395-4,0)&\"\")","v":""},{"$f":"IF(ISERROR($V395),\"\",OFFSET('Smelter Look-up'!$E$4,$V395-4,0))","v":""},{"$f":"IF(C395=$X$4,\"Enter smelter details\", IF(ISERROR($V395),\"\",OFFSET('Smelter Look-up'!$F$4,$V395-4,0)))","v":""},{"$f":"IF(ISERROR($V395),\"\",OFFSET('Smelter Look-up'!$G$4,$V395-4,0))","v":""},{"$f":"IF(ISERROR($V395),\"\",OFFSET('Smelter Look-up'!$H$4,$V395-4,0))","v":""},{"$f":"IF(ISERROR($V395),\"\",OFFSET('Smelter Look-up'!$I$4,$V395-4,0))","v":""},{"$nulls":7},{"$f":"IF(ISERROR($V395),\"\",OFFSET('Smelter Look-up'!$C$4,$V395-4,0)&\"\")","v":""},"",{"$f":"IF(B395=\"\",\"\",IF(ISERROR(MATCH($J395,SorP!$B$1:$B$6230,0)),\"\",INDIRECT(\"'SorP'!$A$\"&MATCH($J395,SorP!$B$1:$B$6230,0))))","v":""},null,{"$f":"IF(C395=\"\",NA(),MATCH($B395&$C395,'Smelter Look-up'!$J:$J,0))","v":{"$error":"#N/A"}},null,0,null,null,null,""]
[null,{"$f":"IF(LEN(A396)=0,\"\",INDEX('Smelter Look-up'!$A:$A,MATCH($A396,'Smelter Look-up'!$E:$E,0)))","v":""},{"$f":"IF(LEN(A396)=0,\"\",INDEX('Smelter Look-up'!$C:$C,MATCH($A396,'Smelter Look-up'!$E:$E,0)))","v":""},null,{"$f":"IF(ISERROR($V396),\"\",OFFSET('Smelter Look-up'!$D$4,$V396-4,0)&\"\")","v":""},{"$f":"IF(ISERROR($V396),\"\",OFFSET('Smelter Look-up'!$E$4,$V396-4,0))","v":""},{"$f":"IF(C396=$X$4,\"Enter smelter details\", IF(ISERROR($V396),\"\",OFFSET('Smelter Look-up'!$F$4,$V396-4,0)))","v":""},{"$f":"IF(ISERROR($V396),\"\",OFFSET('Smelter Look-up'!$G$4,$V396-4,0))","v":""},{"$f":"IF(ISERROR($V396),\"\",OFFSET('Smelter Look-up'!$H$4,$V396-4,0))","v":""},{"$f":"IF(ISERROR($V396),\"\",OFFSET('Smelter Look-up'!$I$4,$V396-4,0))","v":""},{"$nulls":7},{"$f":"IF(ISERROR($V396),\"\",OFFSET('Smelter Look-up'!$C$4,$V396-4,0)&\"\")","v":""},"",{"$f":"IF(B396=\"\",\"\",IF(ISERROR(MATCH($J396,SorP!$B$1:$B$6230,0)),\"\",INDIRECT(\"'SorP'!$A$\"&MATCH($J396,SorP!$B$1:$B$6230,0))))","v":""},null,{"$f":"IF(C396=\"\",NA(),MATCH($B396&$C396,'Smelter Look-up'!$J:$J,0))","v":{"$error":"#N/A"}},null,0,null,null,null,""]
[null,{"$f":"IF(LEN(A397)=0,\"\",INDEX('Smelter Look-up'!$A:$A,MATCH($A397,'Smelter Look-up'!$E:$E,0)))","v":""},{"$f":"IF(LEN(A397)=0,\"\",INDEX('Smelter Look-up'!$C:$C,MATCH($A397,'Smelter Look-up'!$E:$E,0)))","v":""},null,{"$f":"IF(ISERROR($V397),\"\",OFFSET('Smelter Look-up'!$D$4,$V397-4,0)&\"\")","v":""},{"$f":"IF(ISERROR($V397),\"\",OFFSET('Smelter Look-up'!$E$4,$V397-4,0))","v":""},{"$f":"IF(C397=$X$4,\"Enter smelter details\", IF(ISERROR($V397),\"\",OFFSET('Smelter Look-up'!$F$4,$V397-4,0)))","v":""},{"$f":"IF(ISERROR($V397),\"\",OFFSET('Smelter Look-up'!$G$4,$V397-4,0))","v":""},{"$f":"IF(ISERROR($V397),\"\",OFFSET('Smelter Look-up'!$H$4,$V397-4,0))","v":""},{"$f":"IF(ISERROR($V397),\"\",OFFSET('Smelter Look-up'!$I$4,$V397-4,0))","v":""},{"$nulls":7},{"$f":"IF(ISERROR($V397),\"\",OFFSET('Smelter Look-up'!$C$4,$V397-4,0)&\"\")","v":""},"",{"$f":"IF(B397=\"\",\"\",IF(ISERROR(MATCH($J397,SorP!$B$1:$B$6230,0)),\"\",INDIRECT(\"'SorP'!$A$\"&MATCH($J397,SorP!$B$1:$B$6230,0))))","v":""},null,{"$f":"IF(C397=\"\",NA(),MATCH($B397&$C397,'Smelter Look-up'!$J:$J,0))","v":{"$error":"#N/A"}},null,0,null,null,null,""]
[null,{"$f":"IF(LEN(A398)=0,\"\",INDEX('Smelter Look-up'!$A:$A,MATCH($A398,'Smelter Look-up'!$E:$E,0)))","v":""},{"$f":"IF(LEN(A398)=0,\"\",INDEX('Smelter Look-up'!$C:$C,MATCH($A398,'Smelter Look-up'!$E:$E,0)))","v":""},null,{"$f":"IF(ISERROR($V398),\"\",OFFSET('Smelter Look-up'!$D$4,$V398-4,0)&\"\")","v":""},{"$f":"IF(ISERROR($V398),\"\",OFFSET('Smelter Look-up'!$E$4,$V398-4,0))","v":""},{"$f":"IF(C398=$X$4,\"Enter smelter details\", IF(ISERROR($V398),\"\",OFFSET('Smelter Look-up'!$F$4,$V398-4,0)))","v":""},{"$f":"IF(ISERROR($V398),\"\",OFFSET('Smelter Look-up'!$G$4,$V398-4,0))","v":""},{"$f":"IF(ISERROR($V398),\"\",OFFSET('Smelter Look-up'!$H$4,$V398-4,0))","v":""},{"$f":"IF(ISERROR($V398),\"\",OFFSET('Smelter Look-up'!$I$4,$V398-4,0))","v":""},{"$nulls":7},{"$f":"IF(ISERROR($V398),\"\",OFFSET('Smelter Look-up'!$C$4,$V398-4,0)&\"\")","v":""},"",{"$f":"IF(B398=\"\",\"\",IF(ISERROR(MATCH($J398,SorP!$B$1:$B$6230,0)),\"\",INDIRECT(\"'SorP'!$A$\"&MATCH($J398,SorP!$B$1:$B$6230,0))))","v":""},null,{"$f":"IF(C398=\"\",NA(),MATCH($B398&$C398,'Smelter Look-up'!$J:$J,0))","v":{"$error":"#N/A"}},null,0,null,null,null,""]
[null,{"$f":"IF(LEN(A399)=0,\"\",INDEX('Smelter Look-up'!$A:$A,MATCH($A399,'Smelter Look-up'!$E:$E,0)))","v":""},{"$f":"IF(LEN(A399)=0,\"\",INDEX('Smelter Look-up'!$C:$C,MATCH($A399,'Smelter Look-up'!$E:$E,0)))","v":""},null,{"$f":"IF(ISERROR($V399),\"\",OFFSET('Smelter Look-up'!$D$4,$V399-4,0)&\"\")","v":""},{"$f":"IF(ISERROR($V399),\"\",OFFSET('Smelter Look-up'!$E$4,$V399-4,0))","v":""},{"$f":"IF(C399=$X$4,\"Enter smelter details\", IF(ISERROR($V399),\"\",OFFSET('Smelter Look-up'!$F$4,$V399-4,0)))","v":""},{"$f":"IF(ISERROR($V399),\"\",OFFSET('Smelter Look-up'!$G$4,$V399-4,0))","v":""},{"$f":"IF(ISERROR($V399),\"\",OFFSET('Smelter Look-up'!$H$4,$V399-4,0))","v":""},{"$f":"IF(ISERROR($V399),\"\",OFFSET('Smelter Look-up'!$I$4,$V399-4,0))","v":""},{"$nulls":7},{"$f":"IF(ISERROR($V399),\"\",OFFSET('Smelter Look-up'!$C$4,$V399-4,0)&\"\")","v":""},"",{"$f":"IF(B399=\"\",\"\",IF(ISERROR(MATCH($J399,SorP!$B$1:$B$6230,0)),\"\",INDIRECT(\"'SorP'!$A$\"&MATCH($J399,SorP!$B$1:$B$6230,0))))","v":""},null,{"$f":"IF(C399=\"\",NA(),MATCH($B399&$C399,'Smelter Look-up'!$J:$J,0))","v":{"$error":"#N/A"}},null,0,null,null,null,""]
[null,{"$f":"IF(LEN(A400)=0,\"\",INDEX('Smelter Look-up'!$A:$A,MATCH($A400,'Smelter Look-up'!$E:$E,0)))","v":""},{"$f":"IF(LEN(A400)=0,\"\",INDEX('Smelter Look-up'!$C:$C,MATCH($A400,'Smelter Look-up'!$E:$E,0)))","v":""},null,{"$f":"IF(ISERROR($V400),\"\",OFFSET('Smelter Look-up'!$D$4,$V400-4,0)&\"\")","v":""},{"$f":"IF(ISERROR($V400),\"\",OFFSET('Smelter Look-up'!$E$4,$V400-4,0))","v":""},{"$f":"IF(C400=$X$4,\"Enter smelter details\", IF(ISERROR($V400),\"\",OFFSET('Smelter Look-up'!$F$4,$V400-4,0)))","v":""},{"$f":"IF(ISERROR($V400),\"\",OFFSET('Smelter Look-up'!$G$4,$V400-4,0))","v":""},{"$f":"IF(ISERROR($V400),\"\",OFFSET('Smelter Look-up'!$H$4,$V400-4,0))","v":""},{"$f":"IF(ISERROR($V400),\"\",OFFSET('Smelter Look-up'!$I$4,$V400-4,0))","v":""},{"$nulls":7},{"$f":"IF(ISERROR($V400),\"\",OFFSET('Smelter Look-up'!$C$4,$V400-4,0)&\"\")","v":""},"",{"$f":"IF(B400=\"\",\"\",IF(ISERROR(MATCH($J400,SorP!$B$1:$B$6230,0)),\"\",INDIRECT(\"'SorP'!$A$\"&MATCH($J400,SorP!$B$1:$B$6230,0))))","v":""},null,{"$f":"IF(C400=\"\",NA(),MATCH($B400&$C400,'Smelter Look-up'!$J:$J,0))","v":{"$error":"#N/A"}},null,0,null,null,null,""]
[null,{"$f":"IF(LEN(A401)=0,\"\",INDEX('Smelter Look-up'!$A:$A,MATCH($A401,'Smelter Look-up'!$E:$E,0)))","v":""},{"$f":"IF(LEN(A401)=0,\"\",INDEX('Smelter Look-up'!$C:$C,MATCH($A401,'Smelter Look-up'!$E:$E,0)))","v":""},null,{"$f":"IF(ISERROR($V401),\"\",OFFSET('Smelter Look-up'!$D$4,$V401-4,0)&\"\")","v":""},{"$f":"IF(ISERROR($V401),\"\",OFFSET('Smelter Look-up'!$E$4,$V401-4,0))","v":""},{"$f":"IF(C401=$X$4,\"Enter smelter details\", IF(ISERROR($V401),\"\",OFFSET('Smelter Look-up'!$F$4,$V401-4,0)))","v":""},{"$f":"IF(ISERROR($V401),\"\",OFFSET('Smelter Look-up'!$G$4,$V401-4,0))","v":""},{"$f":"IF(ISERROR($V401),\"\",OFFSET('Smelter Look-up'!$H$4,$V401-4,0))","v":""},{"$f":"IF(ISERROR($V401),\"\",OFFSET('Smelter Look-up'!$I$4,$V401-4,0))","v":""},{"$nulls":7},{"$f":"IF(ISERROR($V401),\"\",OFFSET('Smelter Look-up'!$C$4,$V401-4,0)&\"\")","v":""},"",{"$f":"IF(B401=\"\",\"\",IF(ISERROR(MATCH($J401,SorP!$B$1:$B$6230,0)),\"\",INDIRECT(\"'SorP'!$A$\"&MATCH($J401,SorP!$B$1:$B$6230,0))))","v":""},null,{"$f":"IF(C401=\"\",NA(),MATCH($B401&$C401,'Smelter Look-up'!$J:$J,0))","v":{"$error":"#N/A"}},null,0,null,null,null,""]
[null,{"$f":"IF(LEN(A402)=0,\"\",INDEX('Smelter Look-up'!$A:$A,MATCH($A402,'Smelter Look-up'!$E:$E,0)))","v":""},{"$f":"IF(LEN(A402)=0,\"\",INDEX('Smelter Look-up'!$C:$C,MATCH($A402,'Smelter Look-up'!$E:$E,0)))","v":""},null,{"$f":"IF(ISERROR($V402),\"\",OFFSET('Smelter Look-up'!$D$4,$V402-4,0)&\"\")","v":""},{"$f":"IF(ISERROR($V402),\"\",OFFSET('Smelter Look-up'!$E$4,$V402-4,0))","v":""},{"$f":"IF(C402=$X$4,\"Enter smelter details\", IF(ISERROR($V402),\"\",OFFSET('Smelter Look-up'!$F$4,$V402-4,0)))","v":""},{"$f":"IF(ISERROR($V402),\"\",OFFSET('Smelter Look-up'!$G$4,$V402-4,0))","v":""},{"$f":"IF(ISERROR($V402),\"\",OFFSET('Smelter Look-up'!$H$4,$V402-4,0))","v":""},{"$f":"IF(ISERROR($V402),\"\",OFFSET('Smelter Look-up'!$I$4,$V402-4,0))","v":""},{"$nulls":7},{"$f":"IF(ISERROR($V402),\"\",OFFSET('Smelter Look-up'!$C$4,$V402-4,0)&\"\")","v":""},"",{"$f":"IF(B402=\"\",\"\",IF(ISERROR(MATCH($J402,SorP!$B$1:$B$6230,0)),\"\",INDIRECT(\"'SorP'!$A$\"&MATCH($J402,SorP!$B$1:$B$6230,0))))","v":""},null,{"$f":"IF(C402=\"\",NA(),MATCH($B402&$C402,'Smelter Look-up'!$J:$J,0))","v":{"$error":"#N/A"}},null,0,null,null,null,""]
[null,{"$f":"IF(LEN(A403)=0,\"\",INDEX('Smelter Look-up'!$A:$A,MATCH($A403,'Smelter Look-up'!$E:$E,0)))","v":""},{"$f":"IF(LEN(A403)=0,\"\",INDEX('Smelter Look-up'!$C:$C,MATCH($A403,'Smelter Look-up'!$E:$E,0)))","v":""},null,{"$f":"IF(ISERROR($V403),\"\",OFFSET('Smelter Look-up'!$D$4,$V403-4,0)&\"\")","v":""},{"$f":"IF(ISERROR($V403),\"\",OFFSET('Smelter Look-up'!$E$4,$V403-4,0))","v":""},{"$f":"IF(C403=$X$4,\"Enter smelter details\", IF(ISERROR($V403),\"\",OFFSET('Smelter Look-up'!$F$4,$V403-4,0)))","v":""},{"$f":"IF(ISERROR($V403),\"\",OFFSET('Smelter Look-up'!$G$4,$V403-4,0))","v":""},{"$f":"IF(ISERROR($V403),\"\",OFFSET('Smelter Look-up'!$H$4,$V403-4,0))","v":""},{"$f":"IF(ISERROR($V403),\"\",OFFSET('Smelter Look-up'!$I$4,$V403-4,0))","v":""},{"$nulls":7},{"$f":"IF(ISERROR($V403),\"\",OFFSET('Smelter Look-up'!$C$4,$V403-4,0)&\"\")","v":""},"",{"$f":"IF(B403=\"\",\"\",IF(ISERROR(MATCH($J403,SorP!$B$1:$B$6230,0)),\"\",INDIRECT(\"'SorP'!$A$\"&MATCH($J403,SorP!$B$1:$B$6230,0))))","v":""},null,{"$f":"IF(C403=\"\",NA(),MATCH($B403&$C403,'Smelter Look-up'!$J:$J,0))","v":{"$error":"#N/A"}},null,0,null,null,null,""]
[null,{"$f":"IF(LEN(A404)=0,\"\",INDEX('Smelter Look-up'!$A:$A,MATCH($A404,'Smelter Look-up'!$E:$E,0)))","v":""},{"$f":"IF(LEN(A404)=0,\"\",INDEX('Smelter Look-up'!$C:$C,MATCH($A404,'Smelter Look-up'!$E:$E,0)))","v":""},null,{"$f":"IF(ISERROR($V404),\"\",OFFSET('Smelter Look-up'!$D$4,$V404-4,0)&\"\")","v":""},{"$f":"IF(ISERROR($V404),\"\",OFFSET('Smelter Look-up'!$E$4,$V404-4,0))","v":""},{"$f":"IF(C404=$X$4,\"Enter smelter details\", IF(ISERROR($V404),\"\",OFFSET('Smelter Look-up'!$F$4,$V404-4,0)))","v":""},{"$f":"IF(ISERROR($V404),\"\",OFFSET('Smelter Look-up'!$G$4,$V404-4,0))","v":""},{"$f":"IF(ISERROR($V404),\"\",OFFSET('Smelter Look-up'!$H$4,$V404-4,0))","v":""},{"$f":"IF(ISERROR($V404),\"\",OFFSET('Smelter Look-up'!$I$4,$V404-4,0))","v":""},{"$nulls":7},{"$f":"IF(ISERROR($V404),\"\",OFFSET('Smelter Look-up'!$C$4,$V404-4,0)&\"\")","v":""},"",{"$f":"IF(B404=\"\",\"\",IF(ISERROR(MATCH($J404,SorP!$B$1:$B$6230,0)),\"\",INDIRECT(\"'SorP'!$A$\"&MATCH($J404,SorP!$B$1:$B$6230,0))))","v":""},null,{"$f":"IF(C404=\"\",NA(),MATCH($B404&$C404,'Smelter Look-up'!$J:$J,0))","v":{"$error":"#N/A"}},null,0,null,null,null,""]
[null,{"$f":"IF(LEN(A405)=0,\"\",INDEX('Smelter Look-up'!$A:$A,MATCH($A405,'Smelter Look-up'!$E:$E,0)))","v":""},{"$f":"IF(LEN(A405)=0,\"\",INDEX('Smelter Look-up'!$C:$C,MATCH($A405,'Smelter Look-up'!$E:$E,0)))","v":""},null,{"$f":"IF(ISERROR($V405),\"\",OFFSET('Smelter Look-up'!$D$4,$V405-4,0)&\"\")","v":""},{"$f":"IF(ISERROR($V405),\"\",OFFSET('Smelter Look-up'!$E$4,$V405-4,0))","v":""},{"$f":"IF(C405=$X$4,\"Enter smelter details\", IF(ISERROR($V405),\"\",OFFSET('Smelter Look-up'!$F$4,$V405-4,0)))","v":""},{"$f":"IF(ISERROR($V405),\"\",OFFSET('Smelter Look-up'!$G$4,$V405-4,0))","v":""},{"$f":"IF(ISERROR($V405),\"\",OFFSET('Smelter Look-up'!$H$4,$V405-4,0))","v":""},{"$f":"IF(ISERROR($V405),\"\",OFFSET('Smelter Look-up'!$I$4,$V405-4,0))","v":""},{"$nulls":7},{"$f":"IF(ISERROR($V405),\"\",OFFSET('Smelter Look-up'!$C$4,$V405-4,0)&\"\")","v":""},"",{"$f":"IF(B405=\"\",\"\",IF(ISERROR(MATCH($J405,SorP!$B$1:$B$6230,0)),\"\",INDIRECT(\"'SorP'!$A$\"&MATCH($J405,SorP!$B$1:$B$6230,0))))","v":""},null,{"$f":"IF(C405=\"\",NA(),MATCH($B405&$C405,'Smelter Look-up'!$J:$J,0))","v":{"$error":"#N/A"}},null,0,null,null,null,""]
[null,{"$f":"IF(LEN(A406)=0,\"\",INDEX('Smelter Look-up'!$A:$A,MATCH($A406,'Smelter Look-up'!$E:$E,0)))","v":""},{"$f":"IF(LEN(A406)=0,\"\",INDEX('Smelter Look-up'!$C:$C,MATCH($A406,'Smelter Look-up'!$E:$E,0)))","v":""},null,{"$f":"IF(ISERROR($V406),\"\",OFFSET('Smelter Look-up'!$D$4,$V406-4,0)&\"\")","v":""},{"$f":"IF(ISERROR($V406),\"\",OFFSET('Smelter Look-up'!$E$4,$V406-4,0))","v":""},{"$f":"IF(C406=$X$4,\"Enter smelter details\", IF(ISERROR($V406),\"\",OFFSET('Smelter Look-up'!$F$4,$V406-4,0)))","v":""},{"$f":"IF(ISERROR($V406),\"\",OFFSET('Smelter Look-up'!$G$4,$V406-4,0))","v":""},{"$f":"IF(ISERROR($V406),\"\",OFFSET('Smelter Look-up'!$H$4,$V406-4,0))","v":""},{"$f":"IF(ISERROR($V406),\"\",OFFSET('Smelter Look-up'!$I$4,$V406-4,0))","v":""},{"$nulls":7},{"$f":"IF(ISERROR($V406),\"\",OFFSET('Smelter Look-up'!$C$4,$V406-4,0)&\"\")","v":""},"",{"$f":"IF(B406=\"\",\"\",IF(ISERROR(MATCH($J406,SorP!$B$1:$B$6230,0)),\"\",INDIRECT(\"'SorP'!$A$\"&MATCH($J406,SorP!$B$1:$B$6230,0))))","v":""},null,{"$f":"IF(C406=\"\",NA(),MATCH($B406&$C406,'Smelter Look-up'!$J:$J,0))","v":{"$error":"#N/A"}},null,0,null,null,null,""]
[null,{"$f":"IF(LEN(A407)=0,\"\",INDEX('Smelter Look-up'!$A:$A,MATCH($A407,'Smelter Look-up'!$E:$E,0)))","v":""},{"$f":"IF(LEN(A407)=0,\"\",INDEX('Smelter Look-up'!$C:$C,MATCH($A407,'Smelter Look-up'!$E:$E,0)))","v":""},null,{"$f":"IF(ISERROR($V407),\"\",OFFSET('Smelter Look-up'!$D$4,$V407-4,0)&\"\")","v":""},{"$f":"IF(ISERROR($V407),\"\",OFFSET('Smelter Look-up'!$E$4,$V407-4,0))","v":""},{"$f":"IF(C407=$X$4,\"Enter smelter details\", IF(ISERROR($V407),\"\",OFFSET('Smelter Look-up'!$F$4,$V407-4,0)))","v":""},{"$f":"IF(ISERROR($V407),\"\",OFFSET('Smelter Look-up'!$G$4,$V407-4,0))","v":""},{"$f":"IF(ISERROR($V407),\"\",OFFSET('Smelter Look-up'!$H$4,$V407-4,0))","v":""},{"$f":"IF(ISERROR($V407),\"\",OFFSET('Smelter Look-up'!$I$4,$V407-4,0))","v":""},{"$nulls":7},{"$f":"IF(ISERROR($V407),\"\",OFFSET('Smelter Look-up'!$C$4,$V407-4,0)&\"\")","v":""},"",{"$f":"IF(B407=\"\",\"\",IF(ISERROR(MATCH($J407,SorP!$B$1:$B$6230,0)),\"\",INDIRECT(\"'SorP'!$A$\"&MATCH($J407,SorP!$B$1:$B$6230,0))))","v":""},null,{"$f":"IF(C407=\"\",NA(),MATCH($B407&$C407,'Smelter Look-up'!$J:$J,0))","v":{"$error":"#N/A"}},null,0,null,null,null,""]
[null,{"$f":"IF(LEN(A408)=0,\"\",INDEX('Smelter Look-up'!$A:$A,MATCH($A408,'Smelter Look-up'!$E:$E,0)))","v":""},{"$f":"IF(LEN(A408)=0,\"\",INDEX('Smelter Look-up'!$C:$C,MATCH($A408,'Smelter Look-up'!$E:$E,0)))","v":""},null,{"$f":"IF(ISERROR($V408),\"\",OFFSET('Smelter Look-up'!$D$4,$V408-4,0)&\"\")","v":""},{"$f":"IF(ISERROR($V408),\"\",OFFSET('Smelter Look-up'!$E$4,$V408-4,0))","v":""},{"$f":"IF(C408=$X$4,\"Enter smelter details\", IF(ISERROR($V408),\"\",OFFSET('Smelter Look-up'!$F$4,$V408-4,0)))","v":""},{"$f":"IF(ISERROR($V408),\"\",OFFSET('Smelter Look-up'!$G$4,$V408-4,0))","v":""},{"$f":"IF(ISERROR($V408),\"\",OFFSET('Smelter Look-up'!$H$4,$V408-4,0))","v":""},{"$f":"IF(ISERROR($V408),\"\",OFFSET('Smelter Look-up'!$I$4,$V408-4,0))","v":""},{"$nulls":7},{"$f":"IF(ISERROR($V408),\"\",OFFSET('Smelter Look-up'!$C$4,$V408-4,0)&\"\")","v":""},"",{"$f":"IF(B408=\"\",\"\",IF(ISERROR(MATCH($J408,SorP!$B$1:$B$6230,0)),\"\",INDIRECT(\"'SorP'!$A$\"&MATCH($J408,SorP!$B$1:$B$6230,0))))","v":""},null,{"$f":"IF(C408=\"\",NA(),MATCH($B408&$C408,'Smelter Look-up'!$J:$J,0))","v":{"$error":"#N/A"}},null,0,null,null,null,""]
[null,{"$f":"IF(LEN(A409)=0,\"\",INDEX('Smelter Look-up'!$A:$A,MATCH($A409,'Smelter Look-up'!$E:$E,0)))","v":""},{"$f":"IF(LEN(A409)=0,\"\",INDEX('Smelter Look-up'!$C:$C,MATCH($A409,'Smelter Look-up'!$E:$E,0)))","v":""},null,{"$f":"IF(ISERROR($V409),\"\",OFFSET('Smelter Look-up'!$D$4,$V409-4,0)&\"\")","v":""},{"$f":"IF(ISERROR($V409),\"\",OFFSET('Smelter Look-up'!$E$4,$V409-4,0))","v":""},{"$f":"IF(C409=$X$4,\"Enter smelter details\", IF(ISERROR($V409),\"\",OFFSET('Smelter Look-up'!$F$4,$V409-4,0)))","v":""},{"$f":"IF(ISERROR($V409),\"\",OFFSET('Smelter Look-up'!$G$4,$V409-4,0))","v":""},{"$f":"IF(ISERROR($V409),\"\",OFFSET('Smelter Look-up'!$H$4,$V409-4,0))","v":""},{"$f":"IF(ISERROR($V409),\"\",OFFSET('Smelter Look-up'!$I$4,$V409-4,0))","v":""},{"$nulls":7},{"$f":"IF(ISERROR($V409),\"\",OFFSET('Smelter Look-up'!$C$4,$V409-4,0)&\"\")","v":""},"",{"$f":"IF(B409=\"\",\"\",IF(ISERROR(MATCH($J409,SorP!$B$1:$B$6230,0)),\"\",INDIRECT(\"'SorP'!$A$\"&MATCH($J409,SorP!$B$1:$B$6230,0))))","v":""},null,{"$f":"IF(C409=\"\",NA(),MATCH($B409&$C409,'Smelter Look-up'!$J:$J,0))","v":{"$error":"#N/A"}},null,0,null,null,null,""]
[null,{"$f":"IF(LEN(A410)=0,\"\",INDEX('Smelter Look-up'!$A:$A,MATCH($A410,'Smelter Look-up'!$E:$E,0)))","v":""},{"$f":"IF(LEN(A410)=0,\"\",INDEX('Smelter Look-up'!$C:$C,MATCH($A410,'Smelter Look-up'!$E:$E,0)))","v":""},null,{"$f":"IF(ISERROR($V410),\"\",OFFSET('Smelter Look-up'!$D$4,$V410-4,0)&\"\")","v":""},{"$f":"IF(ISERROR($V410),\"\",OFFSET('Smelter Look-up'!$E$4,$V410-4,0))","v":""},{"$f":"IF(C410=$X$4,\"Enter smelter details\", IF(ISERROR($V410),\"\",OFFSET('Smelter Look-up'!$F$4,$V410-4,0)))","v":""},{"$f":"IF(ISERROR($V410),\"\",OFFSET('Smelter Look-up'!$G$4,$V410-4,0))","v":""},{"$f":"IF(ISERROR($V410),\"\",OFFSET('Smelter Look-up'!$H$4,$V410-4,0))","v":""},{"$f":"IF(ISERROR($V410),\"\",OFFSET('Smelter Look-up'!$I$4,$V410-4,0))","v":""},{"$nulls":7},{"$f":"IF(ISERROR($V410),\"\",OFFSET('Smelter Look-up'!$C$4,$V410-4,0)&\"\")","v":""},"",{"$f":"IF(B410=\"\",\"\",IF(ISERROR(MATCH($J410,SorP!$B$1:$B$6230,0)),\"\",INDIRECT(\"'SorP'!$A$\"&MATCH($J410,SorP!$B$1:$B$6230,0))))","v":""},null,{"$f":"IF(C410=\"\",NA(),MATCH($B410&$C410,'Smelter Look-up'!$J:$J,0))","v":{"$error":"#N/A"}},null,0,null,null,null,""]
[null,{"$f":"IF(LEN(A411)=0,\"\",INDEX('Smelter Look-up'!$A:$A,MATCH($A411,'Smelter Look-up'!$E:$E,0)))","v":""},{"$f":"IF(LEN(A411)=0,\"\",INDEX('Smelter Look-up'!$C:$C,MATCH($A411,'Smelter Look-up'!$E:$E,0)))","v":""},null,{"$f":"IF(ISERROR($V411),\"\",OFFSET('Smelter Look-up'!$D$4,$V411-4,0)&\"\")","v":""},{"$f":"IF(ISERROR($V411),\"\",OFFSET('Smelter Look-up'!$E$4,$V411-4,0))","v":""},{"$f":"IF(C411=$X$4,\"Enter smelter details\", IF(ISERROR($V411),\"\",OFFSET('Smelter Look-up'!$F$4,$V411-4,0)))","v":""},{"$f":"IF(ISERROR($V411),\"\",OFFSET('Smelter Look-up'!$G$4,$V411-4,0))","v":""},{"$f":"IF(ISERROR($V411),\"\",OFFSET('Smelter Look-up'!$H$4,$V411-4,0))","v":""},{"$f":"IF(ISERROR($V411),\"\",OFFSET('Smelter Look-up'!$I$4,$V411-4,0))","v":""},{"$nulls":7},{"$f":"IF(ISERROR($V411),\"\",OFFSET('Smelter Look-up'!$C$4,$V411-4,0)&\"\")","v":""},"",{"$f":"IF(B411=\"\",\"\",IF(ISERROR(MATCH($J411,SorP!$B$1:$B$6230,0)),\"\",INDIRECT(\"'SorP'!$A$\"&MATCH($J411,SorP!$B$1:$B$6230,0))))","v":""},null,{"$f":"IF(C411=\"\",NA(),MATCH($B411&$C411,'Smelter Look-up'!$J:$J,0))","v":{"$error":"#N/A"}},null,0,null,null,null,""]
[null,{"$f":"IF(LEN(A412)=0,\"\",INDEX('Smelter Look-up'!$A:$A,MATCH($A412,'Smelter Look-up'!$E:$E,0)))","v":""},{"$f":"IF(LEN(A412)=0,\"\",INDEX('Smelter Look-up'!$C:$C,MATCH($A412,'Smelter Look-up'!$E:$E,0)))","v":""},null,{"$f":"IF(ISERROR($V412),\"\",OFFSET('Smelter Look-up'!$D$4,$V412-4,0)&\"\")","v":""},{"$f":"IF(ISERROR($V412),\"\",OFFSET('Smelter Look-up'!$E$4,$V412-4,0))","v":""},{"$f":"IF(C412=$X$4,\"Enter smelter details\", IF(ISERROR($V412),\"\",OFFSET('Smelter Look-up'!$F$4,$V412-4,0)))","v":""},{"$f":"IF(ISERROR($V412),\"\",OFFSET('Smelter Look-up'!$G$4,$V412-4,0))","v":""},{"$f":"IF(ISERROR($V412),\"\",OFFSET('Smelter Look-up'!$H$4,$V412-4,0))","v":""},{"$f":"IF(ISERROR($V412),\"\",OFFSET('Smelter Look-up'!$I$4,$V412-4,0))","v":""},{"$nulls":7},{"$f":"IF(ISERROR($V412),\"\",OFFSET('Smelter Look-up'!$C$4,$V412-4,0)&\"\")","v":""},"",{"$f":"IF(B412=\"\",\"\",IF(ISERROR(MATCH($J412,SorP!$B$1:$B$6230,0)),\"\",INDIRECT(\"'SorP'!$A$\"&MATCH($J412,SorP!$B$1:$B$6230,0))))","v":""},null,{"$f":"IF(C412=\"\",NA(),MATCH($B412&$C412,'Smelter Look-up'!$J:$J,0))","v":{"$error":"#N/A"}},null,0,null,null,null,""]
[null,{"$f":"IF(LEN(A413)=0,\"\",INDEX('Smelter Look-up'!$A:$A,MATCH($A413,'Smelter Look-up'!$E:$E,0)))","v":""},{"$f":"IF(LEN(A413)=0,\"\",INDEX('Smelter Look-up'!$C:$C,MATCH($A413,'Smelter Look-up'!$E:$E,0)))","v":""},null,{"$f":"IF(ISERROR($V413),\"\",OFFSET('Smelter Look-up'!$D$4,$V413-4,0)&\"\")","v":""},{"$f":"IF(ISERROR($V413),\"\",OFFSET('Smelter Look-up'!$E$4,$V413-4,0))","v":""},{"$f":"IF(C413=$X$4,\"Enter smelter details\", IF(ISERROR($V413),\"\",OFFSET('Smelter Look-up'!$F$4,$V413-4,0)))","v":""},{"$f":"IF(ISERROR($V413),\"\",OFFSET('Smelter Look-up'!$G$4,$V413-4,0))","v":""},{"$f":"IF(ISERROR($V413),\"\",OFFSET('Smelter Look-up'!$H$4,$V413-4,0))","v":""},{"$f":"IF(ISERROR($V413),\"\",OFFSET('Smelter Look-up'!$I$4,$V413-4,0))","v":""},{"$nulls":7},{"$f":"IF(ISERROR($V413),\"\",OFFSET('Smelter Look-up'!$C$4,$V413-4,0)&\"\")","v":""},"",{"$f":"IF(B413=\"\",\"\",IF(ISERROR(MATCH($J413,SorP!$B$1:$B$6230,0)),\"\",INDIRECT(\"'SorP'!$A$\"&MATCH($J413,SorP!$B$1:$B$6230,0))))","v":""},null,{"$f":"IF(C413=\"\",NA(),MATCH($B413&$C413,'Smelter Look-up'!$J:$J,0))","v":{"$error":"#N/A"}},null,0,null,null,null,""]
[null,{"$f":"IF(LEN(A414)=0,\"\",INDEX('Smelter Look-up'!$A:$A,MATCH($A414,'Smelter Look-up'!$E:$E,0)))","v":""},{"$f":"IF(LEN(A414)=0,\"\",INDEX('Smelter Look-up'!$C:$C,MATCH($A414,'Smelter Look-up'!$E:$E,0)))","v":""},null,{"$f":"IF(ISERROR($V414),\"\",OFFSET('Smelter Look-up'!$D$4,$V414-4,0)&\"\")","v":""},{"$f":"IF(ISERROR($V414),\"\",OFFSET('Smelter Look-up'!$E$4,$V414-4,0))","v":""},{"$f":"IF(C414=$X$4,\"Enter smelter details\", IF(ISERROR($V414),\"\",OFFSET('Smelter Look-up'!$F$4,$V414-4,0)))","v":""},{"$f":"IF(ISERROR($V414),\"\",OFFSET('Smelter Look-up'!$G$4,$V414-4,0))","v":""},{"$f":"IF(ISERROR($V414),\"\",OFFSET('Smelter Look-up'!$H$4,$V414-4,0))","v":""},{"$f":"IF(ISERROR($V414),\"\",OFFSET('Smelter Look-up'!$I$4,$V414-4,0))","v":""},{"$nulls":7},{"$f":"IF(ISERROR($V414),\"\",OFFSET('Smelter Look-up'!$C$4,$V414-4,0)&\"\")","v":""},"",{"$f":"IF(B414=\"\",\"\",IF(ISERROR(MATCH($J414,SorP!$B$1:$B$6230,0)),\"\",INDIRECT(\"'SorP'!$A$\"&MATCH($J414,SorP!$B$1:$B$6230,0))))","v":""},null,{"$f":"IF(C414=\"\",NA(),MATCH($B414&$C414,'Smelter Look-up'!$J:$J,0))","v":{"$error":"#N/A"}},null,0,null,null,null,""]
[null,{"$f":"IF(LEN(A415)=0,\"\",INDEX('Smelter Look-up'!$A:$A,MATCH($A415,'Smelter Look-up'!$E:$E,0)))","v":""},{"$f":"IF(LEN(A415)=0,\"\",INDEX('Smelter Look-up'!$C:$C,MATCH($A415,'Smelter Look-up'!$E:$E,0)))","v":""},null,{"$f":"IF(ISERROR($V415),\"\",OFFSET('Smelter Look-up'!$D$4,$V415-4,0)&\"\")","v":""},{"$f":"IF(ISERROR($V415),\"\",OFFSET('Smelter Look-up'!$E$4,$V415-4,0))","v":""},{"$f":"IF(C415=$X$4,\"Enter smelter details\", IF(ISERROR($V415),\"\",OFFSET('Smelter Look-up'!$F$4,$V415-4,0)))","v":""},{"$f":"IF(ISERROR($V415),\"\",OFFSET('Smelter Look-up'!$G$4,$V415-4,0))","v":""},{"$f":"IF(ISERROR($V415),\"\",OFFSET('Smelter Look-up'!$H$4,$V415-4,0))","v":""},{"$f":"IF(ISERROR($V415),\"\",OFFSET('Smelter Look-up'!$I$4,$V415-4,0))","v":""},{"$nulls":7},{"$f":"IF(ISERROR($V415),\"\",OFFSET('Smelter Look-up'!$C$4,$V415-4,0)&\"\")","v":""},"",{"$f":"IF(B415=\"\",\"\",IF(ISERROR(MATCH($J415,SorP!$B$1:$B$6230,0)),\"\",INDIRECT(\"'SorP'!$A$\"&MATCH($J415,SorP!$B$1:$B$6230,0))))","v":""},null,{"$f":"IF(C415=\"\",NA(),MATCH($B415&$C415,'Smelter Look-up'!$J:$J,0))","v":{"$error":"#N/A"}},null,0,null,null,null,""]
[null,{"$f":"IF(LEN(A416)=0,\"\",INDEX('Smelter Look-up'!$A:$A,MATCH($A416,'Smelter Look-up'!$E:$E,0)))","v":""},{"$f":"IF(LEN(A416)=0,\"\",INDEX('Smelter Look-up'!$C:$C,MATCH($A416,'Smelter Look-up'!$E:$E,0)))","v":""},null,{"$f":"IF(ISERROR($V416),\"\",OFFSET('Smelter Look-up'!$D$4,$V416-4,0)&\"\")","v":""},{"$f":"IF(ISERROR($V416),\"\",OFFSET('Smelter Look-up'!$E$4,$V416-4,0))","v":""},{"$f":"IF(C416=$X$4,\"Enter smelter details\", IF(ISERROR($V416),\"\",OFFSET('Smelter Look-up'!$F$4,$V416-4,0)))","v":""},{"$f":"IF(ISERROR($V416),\"\",OFFSET('Smelter Look-up'!$G$4,$V416-4,0))","v":""},{"$f":"IF(ISERROR($V416),\"\",OFFSET('Smelter Look-up'!$H$4,$V416-4,0))","v":""},{"$f":"IF(ISERROR($V416),\"\",OFFSET('Smelter Look-up'!$I$4,$V416-4,0))","v":""},{"$nulls":7},{"$f":"IF(ISERROR($V416),\"\",OFFSET('Smelter Look-up'!$C$4,$V416-4,0)&\"\")","v":""},"",{"$f":"IF(B416=\"\",\"\",IF(ISERROR(MATCH($J416,SorP!$B$1:$B$6230,0)),\"\",INDIRECT(\"'SorP'!$A$\"&MATCH($J416,SorP!$B$1:$B$6230,0))))","v":""},null,{"$f":"IF(C416=\"\",NA(),MATCH($B416&$C416,'Smelter Look-up'!$J:$J,0))","v":{"$error":"#N/A"}},null,0,null,null,null,""]
[null,{"$f":"IF(LEN(A417)=0,\"\",INDEX('Smelter Look-up'!$A:$A,MATCH($A417,'Smelter Look-up'!$E:$E,0)))","v":""},{"$f":"IF(LEN(A417)=0,\"\",INDEX('Smelter Look-up'!$C:$C,MATCH($A417,'Smelter Look-up'!$E:$E,0)))","v":""},null,{"$f":"IF(ISERROR($V417),\"\",OFFSET('Smelter Look-up'!$D$4,$V417-4,0)&\"\")","v":""},{"$f":"IF(ISERROR($V417),\"\",OFFSET('Smelter Look-up'!$E$4,$V417-4,0))","v":""},{"$f":"IF(C417=$X$4,\"Enter smelter details\", IF(ISERROR($V417),\"\",OFFSET('Smelter Look-up'!$F$4,$V417-4,0)))","v":""},{"$f":"IF(ISERROR($V417),\"\",OFFSET('Smelter Look-up'!$G$4,$V417-4,0))","v":""},{"$f":"IF(ISERROR($V417),\"\",OFFSET('Smelter Look-up'!$H$4,$V417-4,0))","v":""},{"$f":"IF(ISERROR($V417),\"\",OFFSET('Smelter Look-up'!$I$4,$V417-4,0))","v":""},{"$nulls":7},{"$f":"IF(ISERROR($V417),\"\",OFFSET('Smelter Look-up'!$C$4,$V417-4,0)&\"\")","v":""},"",{"$f":"IF(B417=\"\",\"\",IF(ISERROR(MATCH($J417,SorP!$B$1:$B$6230,0)),\"\",INDIRECT(\"'SorP'!$A$\"&MATCH($J417,SorP!$B$1:$B$6230,0))))","v":""},null,{"$f":"IF(C417=\"\",NA(),MATCH($B417&$C417,'Smelter Look-up'!$J:$J,0))","v":{"$error":"#N/A"}},null,0,null,null,null,""]
[null,{"$f":"IF(LEN(A418)=0,\"\",INDEX('Smelter Look-up'!$A:$A,MATCH($A418,'Smelter Look-up'!$E:$E,0)))","v":""},{"$f":"IF(LEN(A418)=0,\"\",INDEX('Smelter Look-up'!$C:$C,MATCH($A418,'Smelter Look-up'!$E:$E,0)))","v":""},null,{"$f":"IF(ISERROR($V418),\"\",OFFSET('Smelter Look-up'!$D$4,$V418-4,0)&\"\")","v":""},{"$f":"IF(ISERROR($V418),\"\",OFFSET('Smelter Look-up'!$E$4,$V418-4,0))","v":""},{"$f":"IF(C418=$X$4,\"Enter smelter details\", IF(ISERROR($V418),\"\",OFFSET('Smelter Look-up'!$F$4,$V418-4,0)))","v":""},{"$f":"IF(ISERROR($V418),\"\",OFFSET('Smelter Look-up'!$G$4,$V418-4,0))","v":""},{"$f":"IF(ISERROR($V418),\"\",OFFSET('Smelter Look-up'!$H$4,$V418-4,0))","v":""},{"$f":"IF(ISERROR($V418),\"\",OFFSET('Smelter Look-up'!$I$4,$V418-4,0))","v":""},{"$nulls":7},{"$f":"IF(ISERROR($V418),\"\",OFFSET('Smelter Look-up'!$C$4,$V418-4,0)&\"\")","v":""},"",{"$f":"IF(B418=\"\",\"\",IF(ISERROR(MATCH($J418,SorP!$B$1:$B$6230,0)),\"\",INDIRECT(\"'SorP'!$A$\"&MATCH($J418,SorP!$B$1:$B$6230,0))))","v":""},null,{"$f":"IF(C418=\"\",NA(),MATCH($B418&$C418,'Smelter Look-up'!$J:$J,0))","v":{"$error":"#N/A"}},null,0,null,null,null,""]
[null,{"$f":"IF(LEN(A419)=0,\"\",INDEX('Smelter Look-up'!$A:$A,MATCH($A419,'Smelter Look-up'!$E:$E,0)))","v":""},{"$f":"IF(LEN(A419)=0,\"\",INDEX('Smelter Look-up'!$C:$C,MATCH($A419,'Smelter Look-up'!$E:$E,0)))","v":""},null,{"$f":"IF(ISERROR($V419),\"\",OFFSET('Smelter Look-up'!$D$4,$V419-4,0)&\"\")","v":""},{"$f":"IF(ISERROR($V419),\"\",OFFSET('Smelter Look-up'!$E$4,$V419-4,0))","v":""},{"$f":"IF(C419=$X$4,\"Enter smelter details\", IF(ISERROR($V419),\"\",OFFSET('Smelter Look-up'!$F$4,$V419-4,0)))","v":""},{"$f":"IF(ISERROR($V419),\"\",OFFSET('Smelter Look-up'!$G$4,$V419-4,0))","v":""},{"$f":"IF(ISERROR($V419),\"\",OFFSET('Smelter Look-up'!$H$4,$V419-4,0))","v":""},{"$f":"IF(ISERROR($V419),\"\",OFFSET('Smelter Look-up'!$I$4,$V419-4,0))","v":""},{"$nulls":7},{"$f":"IF(ISERROR($V419),\"\",OFFSET('Smelter Look-up'!$C$4,$V419-4,0)&\"\")","v":""},"",{"$f":"IF(B419=\"\",\"\",IF(ISERROR(MATCH($J419,SorP!$B$1:$B$6230,0)),\"\",INDIRECT(\"'SorP'!$A$\"&MATCH($J419,SorP!$B$1:$B$6230,0))))","v":""},null,{"$f":"IF(C419=\"\",NA(),MATCH($B419&$C419,'Smelter Look-up'!$J:$J,0))","v":{"$error":"#N/A"}},null,0,null,null,null,""]
[null,{"$f":"IF(LEN(A420)=0,\"\",INDEX('Smelter Look-up'!$A:$A,MATCH($A420,'Smelter Look-up'!$E:$E,0)))","v":""},{"$f":"IF(LEN(A420)=0,\"\",INDEX('Smelter Look-up'!$C:$C,MATCH($A420,'Smelter Look-up'!$E:$E,0)))","v":""},null,{"$f":"IF(ISERROR($V420),\"\",OFFSET('Smelter Look-up'!$D$4,$V420-4,0)&\"\")","v":""},{"$f":"IF(ISERROR($V420),\"\",OFFSET('Smelter Look-up'!$E$4,$V420-4,0))","v":""},{"$f":"IF(C420=$X$4,\"Enter smelter details\", IF(ISERROR($V420),\"\",OFFSET('Smelter Look-up'!$F$4,$V420-4,0)))","v":""},{"$f":"IF(ISERROR($V420),\"\",OFFSET('Smelter Look-up'!$G$4,$V420-4,0))","v":""},{"$f":"IF(ISERROR($V420),\"\",OFFSET('Smelter Look-up'!$H$4,$V420-4,0))","v":""},{"$f":"IF(ISERROR($V420),\"\",OFFSET('Smelter Look-up'!$I$4,$V420-4,0))","v":""},{"$nulls":7},{"$f":"IF(ISERROR($V420),\"\",OFFSET('Smelter Look-up'!$C$4,$V420-4,0)&\"\")","v":""},"",{"$f":"IF(B420=\"\",\"\",IF(ISERROR(MATCH($J420,SorP!$B$1:$B$6230,0)),\"\",INDIRECT(\"'SorP'!$A$\"&MATCH($J420,SorP!$B$1:$B$6230,0))))","v":""},null,{"$f":"IF(C420=\"\",NA(),MATCH($B420&$C420,'Smelter Look-up'!$J:$J,0))","v":{"$error":"#N/A"}},null,0,null,null,null,""]
[null,{"$f":"IF(LEN(A421)=0,\"\",INDEX('Smelter Look-up'!$A:$A,MATCH($A421,'Smelter Look-up'!$E:$E,0)))","v":""},{"$f":"IF(LEN(A421)=0,\"\",INDEX('Smelter Look-up'!$C:$C,MATCH($A421,'Smelter Look-up'!$E:$E,0)))","v":""},null,{"$f":"IF(ISERROR($V421),\"\",OFFSET('Smelter Look-up'!$D$4,$V421-4,0)&\"\")","v":""},{"$f":"IF(ISERROR($V421),\"\",OFFSET('Smelter Look-up'!$E$4,$V421-4,0))","v":""},{"$f":"IF(C421=$X$4,\"Enter smelter details\", IF(ISERROR($V421),\"\",OFFSET('Smelter Look-up'!$F$4,$V421-4,0)))","v":""},{"$f":"IF(ISERROR($V421),\"\",OFFSET('Smelter Look-up'!$G$4,$V421-4,0))","v":""},{"$f":"IF(ISERROR($V421),\"\",OFFSET('Smelter Look-up'!$H$4,$V421-4,0))","v":""},{"$f":"IF(ISERROR($V421),\"\",OFFSET('Smelter Look-up'!$I$4,$V421-4,0))","v":""},{"$nulls":7},{"$f":"IF(ISERROR($V421),\"\",OFFSET('Smelter Look-up'!$C$4,$V421-4,0)&\"\")","v":""},"",{"$f":"IF(B421=\"\",\"\",IF(ISERROR(MATCH($J421,SorP!$B$1:$B$6230,0)),\"\",INDIRECT(\"'SorP'!$A$\"&MATCH($J421,SorP!$B$1:$B$6230,0))))","v":""},null,{"$f":"IF(C421=\"\",NA(),MATCH($B421&$C421,'Smelter Look-up'!$J:$J,0))","v":{"$error":"#N/A"}},null,0,null,null,null,""]
[null,{"$f":"IF(LEN(A422)=0,\"\",INDEX('Smelter Look-up'!$A:$A,MATCH($A422,'Smelter Look-up'!$E:$E,0)))","v":""},{"$f":"IF(LEN(A422)=0,\"\",INDEX('Smelter Look-up'!$C:$C,MATCH($A422,'Smelter Look-up'!$E:$E,0)))","v":""},null,{"$f":"IF(ISERROR($V422),\"\",OFFSET('Smelter Look-up'!$D$4,$V422-4,0)&\"\")","v":""},{"$f":"IF(ISERROR($V422),\"\",OFFSET('Smelter Look-up'!$E$4,$V422-4,0))","v":""},{"$f":"IF(C422=$X$4,\"Enter smelter details\", IF(ISERROR($V422),\"\",OFFSET('Smelter Look-up'!$F$4,$V422-4,0)))","v":""},{"$f":"IF(ISERROR($V422),\"\",OFFSET('Smelter Look-up'!$G$4,$V422-4,0))","v":""},{"$f":"IF(ISERROR($V422),\"\",OFFSET('Smelter Look-up'!$H$4,$V422-4,0))","v":""},{"$f":"IF(ISERROR($V422),\"\",OFFSET('Smelter Look-up'!$I$4,$V422-4,0))","v":""},{"$nulls":7},{"$f":"IF(ISERROR($V422),\"\",OFFSET('Smelter Look-up'!$C$4,$V422-4,0)&\"\")","v":""},"",{"$f":"IF(B422=\"\",\"\",IF(ISERROR(MATCH($J422,SorP!$B$1:$B$6230,0)),\"\",INDIRECT(\"'SorP'!$A$\"&MATCH($J422,SorP!$B$1:$B$6230,0))))","v":""},null,{"$f":"IF(C422=\"\",NA(),MATCH($B422&$C422,'Smelter Look-up'!$J:$J,0))","v":{"$error":"#N/A"}},null,0,null,null,null,""]
[null,{"$f":"IF(LEN(A423)=0,\"\",INDEX('Smelter Look-up'!$A:$A,MATCH($A423,'Smelter Look-up'!$E:$E,0)))","v":""},{"$f":"IF(LEN(A423)=0,\"\",INDEX('Smelter Look-up'!$C:$C,MATCH($A423,'Smelter Look-up'!$E:$E,0)))","v":""},null,{"$f":"IF(ISERROR($V423),\"\",OFFSET('Smelter Look-up'!$D$4,$V423-4,0)&\"\")","v":""},{"$f":"IF(ISERROR($V423),\"\",OFFSET('Smelter Look-up'!$E$4,$V423-4,0))","v":""},{"$f":"IF(C423=$X$4,\"Enter smelter details\", IF(ISERROR($V423),\"\",OFFSET('Smelter Look-up'!$F$4,$V423-4,0)))","v":""},{"$f":"IF(ISERROR($V423),\"\",OFFSET('Smelter Look-up'!$G$4,$V423-4,0))","v":""},{"$f":"IF(ISERROR($V423),\"\",OFFSET('Smelter Look-up'!$H$4,$V423-4,0))","v":""},{"$f":"IF(ISERROR($V423),\"\",OFFSET('Smelter Look-up'!$I$4,$V423-4,0))","v":""},{"$nulls":7},{"$f":"IF(ISERROR($V423),\"\",OFFSET('Smelter Look-up'!$C$4,$V423-4,0)&\"\")","v":""},"",{"$f":"IF(B423=\"\",\"\",IF(ISERROR(MATCH($J423,SorP!$B$1:$B$6230,0)),\"\",INDIRECT(\"'SorP'!$A$\"&MATCH($J423,SorP!$B$1:$B$6230,0))))","v":""},null,{"$f":"IF(C423=\"\",NA(),MATCH($B423&$C423,'Smelter Look-up'!$J:$J,0))","v":{"$error":"#N/A"}},null,0,null,null,null,""]
[null,{"$f":"IF(LEN(A424)=0,\"\",INDEX('Smelter Look-up'!$A:$A,MATCH($A424,'Smelter Look-up'!$E:$E,0)))","v":""},{"$f":"IF(LEN(A424)=0,\"\",INDEX('Smelter Look-up'!$C:$C,MATCH($A424,'Smelter Look-up'!$E:$E,0)))","v":""},null,{"$f":"IF(ISERROR($V424),\"\",OFFSET('Smelter Look-up'!$D$4,$V424-4,0)&\"\")","v":""},{"$f":"IF(ISERROR($V424),\"\",OFFSET('Smelter Look-up'!$E$4,$V424-4,0))","v":""},{"$f":"IF(C424=$X$4,\"Enter smelter details\", IF(ISERROR($V424),\"\",OFFSET('Smelter Look-up'!$F$4,$V424-4,0)))","v":""},{"$f":"IF(ISERROR($V424),\"\",OFFSET('Smelter Look-up'!$G$4,$V424-4,0))","v":""},{"$f":"IF(ISERROR($V424),\"\",OFFSET('Smelter Look-up'!$H$4,$V424-4,0))","v":""},{"$f":"IF(ISERROR($V424),\"\",OFFSET('Smelter Look-up'!$I$4,$V424-4,0))","v":""},{"$nulls":7},{"$f":"IF(ISERROR($V424),\"\",OFFSET('Smelter Look-up'!$C$4,$V424-4,0)&\"\")","v":""},"",{"$f":"IF(B424=\"\",\"\",IF(ISERROR(MATCH($J424,SorP!$B$1:$B$6230,0)),\"\",INDIRECT(\"'SorP'!$A$\"&MATCH($J424,SorP!$B$1:$B$6230,0))))","v":""},null,{"$f":"IF(C424=\"\",NA(),MATCH($B424&$C424,'Smelter Look-up'!$J:$J,0))","v":{"$error":"#N/A"}},null,0,null,null,null,""]
[null,{"$f":"IF(LEN(A425)=0,\"\",INDEX('Smelter Look-up'!$A:$A,MATCH($A425,'Smelter Look-up'!$E:$E,0)))","v":""},{"$f":"IF(LEN(A425)=0,\"\",INDEX('Smelter Look-up'!$C:$C,MATCH($A425,'Smelter Look-up'!$E:$E,0)))","v":""},null,{"$f":"IF(ISERROR($V425),\"\",OFFSET('Smelter Look-up'!$D$4,$V425-4,0)&\"\")","v":""},{"$f":"IF(ISERROR($V425),\"\",OFFSET('Smelter Look-up'!$E$4,$V425-4,0))","v":""},{"$f":"IF(C425=$X$4,\"Enter smelter details\", IF(ISERROR($V425),\"\",OFFSET('Smelter Look-up'!$F$4,$V425-4,0)))","v":""},{"$f":"IF(ISERROR($V425),\"\",OFFSET('Smelter Look-up'!$G$4,$V425-4,0))","v":""},{"$f":"IF(ISERROR($V425),\"\",OFFSET('Smelter Look-up'!$H$4,$V425-4,0))","v":""},{"$f":"IF(ISERROR($V425),\"\",OFFSET('Smelter Look-up'!$I$4,$V425-4,0))","v":""},{"$nulls":7},{"$f":"IF(ISERROR($V425),\"\",OFFSET('Smelter Look-up'!$C$4,$V425-4,0)&\"\")","v":""},"",{"$f":"IF(B425=\"\",\"\",IF(ISERROR(MATCH($J425,SorP!$B$1:$B$6230,0)),\"\",INDIRECT(\"'SorP'!$A$\"&MATCH($J425,SorP!$B$1:$B$6230,0))))","v":""},null,{"$f":"IF(C425=\"\",NA(),MATCH($B425&$C425,'Smelter Look-up'!$J:$J,0))","v":{"$error":"#N/A"}},null,0,null,null,null,""]
[null,{"$f":"IF(LEN(A426)=0,\"\",INDEX('Smelter Look-up'!$A:$A,MATCH($A426,'Smelter Look-up'!$E:$E,0)))","v":""},{"$f":"IF(LEN(A426)=0,\"\",INDEX('Smelter Look-up'!$C:$C,MATCH($A426,'Smelter Look-up'!$E:$E,0)))","v":""},null,{"$f":"IF(ISERROR($V426),\"\",OFFSET('Smelter Look-up'!$D$4,$V426-4,0)&\"\")","v":""},{"$f":"IF(ISERROR($V426),\"\",OFFSET('Smelter Look-up'!$E$4,$V426-4,0))","v":""},{"$f":"IF(C426=$X$4,\"Enter smelter details\", IF(ISERROR($V426),\"\",OFFSET('Smelter Look-up'!$F$4,$V426-4,0)))","v":""},{"$f":"IF(ISERROR($V426),\"\",OFFSET('Smelter Look-up'!$G$4,$V426-4,0))","v":""},{"$f":"IF(ISERROR($V426),\"\",OFFSET('Smelter Look-up'!$H$4,$V426-4,0))","v":""},{"$f":"IF(ISERROR($V426),\"\",OFFSET('Smelter Look-up'!$I$4,$V426-4,0))","v":""},{"$nulls":7},{"$f":"IF(ISERROR($V426),\"\",OFFSET('Smelter Look-up'!$C$4,$V426-4,0)&\"\")","v":""},"",{"$f":"IF(B426=\"\",\"\",IF(ISERROR(MATCH($J426,SorP!$B$1:$B$6230,0)),\"\",INDIRECT(\"'SorP'!$A$\"&MATCH($J426,SorP!$B$1:$B$6230,0))))","v":""},null,{"$f":"IF(C426=\"\",NA(),MATCH($B426&$C426,'Smelter Look-up'!$J:$J,0))","v":{"$error":"#N/A"}},null,0,null,null,null,""]
[null,{"$f":"IF(LEN(A427)=0,\"\",INDEX('Smelter Look-up'!$A:$A,MATCH($A427,'Smelter Look-up'!$E:$E,0)))","v":""},{"$f":"IF(LEN(A427)=0,\"\",INDEX('Smelter Look-up'!$C:$C,MATCH($A427,'Smelter Look-up'!$E:$E,0)))","v":""},null,{"$f":"IF(ISERROR($V427),\"\",OFFSET('Smelter Look-up'!$D$4,$V427-4,0)&\"\")","v":""},{"$f":"IF(ISERROR($V427),\"\",OFFSET('Smelter Look-up'!$E$4,$V427-4,0))","v":""},{"$f":"IF(C427=$X$4,\"Enter smelter details\", IF(ISERROR($V427),\"\",OFFSET('Smelter Look-up'!$F$4,$V427-4,0)))","v":""},{"$f":"IF(ISERROR($V427),\"\",OFFSET('Smelter Look-up'!$G$4,$V427-4,0))","v":""},{"$f":"IF(ISERROR($V427),\"\",OFFSET('Smelter Look-up'!$H$4,$V427-4,0))","v":""},{"$f":"IF(ISERROR($V427),\"\",OFFSET('Smelter Look-up'!$I$4,$V427-4,0))","v":""},{"$nulls":7},{"$f":"IF(ISERROR($V427),\"\",OFFSET('Smelter Look-up'!$C$4,$V427-4,0)&\"\")","v":""},"",{"$f":"IF(B427=\"\",\"\",IF(ISERROR(MATCH($J427,SorP!$B$1:$B$6230,0)),\"\",INDIRECT(\"'SorP'!$A$\"&MATCH($J427,SorP!$B$1:$B$6230,0))))","v":""},null,{"$f":"IF(C427=\"\",NA(),MATCH($B427&$C427,'Smelter Look-up'!$J:$J,0))","v":{"$error":"#N/A"}},null,0,null,null,null,""]
[null,{"$f":"IF(LEN(A428)=0,\"\",INDEX('Smelter Look-up'!$A:$A,MATCH($A428,'Smelter Look-up'!$E:$E,0)))","v":""},{"$f":"IF(LEN(A428)=0,\"\",INDEX('Smelter Look-up'!$C:$C,MATCH($A428,'Smelter Look-up'!$E:$E,0)))","v":""},null,{"$f":"IF(ISERROR($V428),\"\",OFFSET('Smelter Look-up'!$D$4,$V428-4,0)&\"\")","v":""},{"$f":"IF(ISERROR($V428),\"\",OFFSET('Smelter Look-up'!$E$4,$V428-4,0))","v":""},{"$f":"IF(C428=$X$4,\"Enter smelter details\", IF(ISERROR($V428),\"\",OFFSET('Smelter Look-up'!$F$4,$V428-4,0)))","v":""},{"$f":"IF(ISERROR($V428),\"\",OFFSET('Smelter Look-up'!$G$4,$V428-4,0))","v":""},{"$f":"IF(ISERROR($V428),\"\",OFFSET('Smelter Look-up'!$H$4,$V428-4,0))","v":""},{"$f":"IF(ISERROR($V428),\"\",OFFSET('Smelter Look-up'!$I$4,$V428-4,0))","v":""},{"$nulls":7},{"$f":"IF(ISERROR($V428),\"\",OFFSET('Smelter Look-up'!$C$4,$V428-4,0)&\"\")","v":""},"",{"$f":"IF(B428=\"\",\"\",IF(ISERROR(MATCH($J428,SorP!$B$1:$B$6230,0)),\"\",INDIRECT(\"'SorP'!$A$\"&MATCH($J428,SorP!$B$1:$B$6230,0))))","v":""},null,{"$f":"IF(C428=\"\",NA(),MATCH($B428&$C428,'Smelter Look-up'!$J:$J,0))","v":{"$error":"#N/A"}},null,0,null,null,null,""]
[null,{"$f":"IF(LEN(A429)=0,\"\",INDEX('Smelter Look-up'!$A:$A,MATCH($A429,'Smelter Look-up'!$E:$E,0)))","v":""},{"$f":"IF(LEN(A429)=0,\"\",INDEX('Smelter Look-up'!$C:$C,MATCH($A429,'Smelter Look-up'!$E:$E,0)))","v":""},null,{"$f":"IF(ISERROR($V429),\"\",OFFSET('Smelter Look-up'!$D$4,$V429-4,0)&\"\")","v":""},{"$f":"IF(ISERROR($V429),\"\",OFFSET('Smelter Look-up'!$E$4,$V429-4,0))","v":""},{"$f":"IF(C429=$X$4,\"Enter smelter details\", IF(ISERROR($V429),\"\",OFFSET('Smelter Look-up'!$F$4,$V429-4,0)))","v":""},{"$f":"IF(ISERROR($V429),\"\",OFFSET('Smelter Look-up'!$G$4,$V429-4,0))","v":""},{"$f":"IF(ISERROR($V429),\"\",OFFSET('Smelter Look-up'!$H$4,$V429-4,0))","v":""},{"$f":"IF(ISERROR($V429),\"\",OFFSET('Smelter Look-up'!$I$4,$V429-4,0))","v":""},{"$nulls":7},{"$f":"IF(ISERROR($V429),\"\",OFFSET('Smelter Look-up'!$C$4,$V429-4,0)&\"\")","v":""},"",{"$f":"IF(B429=\"\",\"\",IF(ISERROR(MATCH($J429,SorP!$B$1:$B$6230,0)),\"\",INDIRECT(\"'SorP'!$A$\"&MATCH($J429,SorP!$B$1:$B$6230,0))))","v":""},null,{"$f":"IF(C429=\"\",NA(),MATCH($B429&$C429,'Smelter Look-up'!$J:$J,0))","v":{"$error":"#N/A"}},null,0,null,null,null,""]
[null,{"$f":"IF(LEN(A430)=0,\"\",INDEX('Smelter Look-up'!$A:$A,MATCH($A430,'Smelter Look-up'!$E:$E,0)))","v":""},{"$f":"IF(LEN(A430)=0,\"\",INDEX('Smelter Look-up'!$C:$C,MATCH($A430,'Smelter Look-up'!$E:$E,0)))","v":""},null,{"$f":"IF(ISERROR($V430),\"\",OFFSET('Smelter Look-up'!$D$4,$V430-4,0)&\"\")","v":""},{"$f":"IF(ISERROR($V430),\"\",OFFSET('Smelter Look-up'!$E$4,$V430-4,0))","v":""},{"$f":"IF(C430=$X$4,\"Enter smelter details\", IF(ISERROR($V430),\"\",OFFSET('Smelter Look-up'!$F$4,$V430-4,0)))","v":""},{"$f":"IF(ISERROR($V430),\"\",OFFSET('Smelter Look-up'!$G$4,$V430-4,0))","v":""},{"$f":"IF(ISERROR($V430),\"\",OFFSET('Smelter Look-up'!$H$4,$V430-4,0))","v":""},{"$f":"IF(ISERROR($V430),\"\",OFFSET('Smelter Look-up'!$I$4,$V430-4,0))","v":""},{"$nulls":7},{"$f":"IF(ISERROR($V430),\"\",OFFSET('Smelter Look-up'!$C$4,$V430-4,0)&\"\")","v":""},"",{"$f":"IF(B430=\"\",\"\",IF(ISERROR(MATCH($J430,SorP!$B$1:$B$6230,0)),\"\",INDIRECT(\"'SorP'!$A$\"&MATCH($J430,SorP!$B$1:$B$6230,0))))","v":""},null,{"$f":"IF(C430=\"\",NA(),MATCH($B430&$C430,'Smelter Look-up'!$J:$J,0))","v":{"$error":"#N/A"}},null,0,null,null,null,""]
[null,{"$f":"IF(LEN(A431)=0,\"\",INDEX('Smelter Look-up'!$A:$A,MATCH($A431,'Smelter Look-up'!$E:$E,0)))","v":""},{"$f":"IF(LEN(A431)=0,\"\",INDEX('Smelter Look-up'!$C:$C,MATCH($A431,'Smelter Look-up'!$E:$E,0)))","v":""},null,{"$f":"IF(ISERROR($V431),\"\",OFFSET('Smelter Look-up'!$D$4,$V431-4,0)&\"\")","v":""},{"$f":"IF(ISERROR($V431),\"\",OFFSET('Smelter Look-up'!$E$4,$V431-4,0))","v":""},{"$f":"IF(C431=$X$4,\"Enter smelter details\", IF(ISERROR($V431),\"\",OFFSET('Smelter Look-up'!$F$4,$V431-4,0)))","v":""},{"$f":"IF(ISERROR($V431),\"\",OFFSET('Smelter Look-up'!$G$4,$V431-4,0))","v":""},{"$f":"IF(ISERROR($V431),\"\",OFFSET('Smelter Look-up'!$H$4,$V431-4,0))","v":""},{"$f":"IF(ISERROR($V431),\"\",OFFSET('Smelter Look-up'!$I$4,$V431-4,0))","v":""},{"$nulls":7},{"$f":"IF(ISERROR($V431),\"\",OFFSET('Smelter Look-up'!$C$4,$V431-4,0)&\"\")","v":""},"",{"$f":"IF(B431=\"\",\"\",IF(ISERROR(MATCH($J431,SorP!$B$1:$B$6230,0)),\"\",INDIRECT(\"'SorP'!$A$\"&MATCH($J431,SorP!$B$1:$B$6230,0))))","v":""},null,{"$f":"IF(C431=\"\",NA(),MATCH($B431&$C431,'Smelter Look-up'!$J:$J,0))","v":{"$error":"#N/A"}},null,0,null,null,null,""]
[null,{"$f":"IF(LEN(A432)=0,\"\",INDEX('Smelter Look-up'!$A:$A,MATCH($A432,'Smelter Look-up'!$E:$E,0)))","v":""},{"$f":"IF(LEN(A432)=0,\"\",INDEX('Smelter Look-up'!$C:$C,MATCH($A432,'Smelter Look-up'!$E:$E,0)))","v":""},null,{"$f":"IF(ISERROR($V432),\"\",OFFSET('Smelter Look-up'!$D$4,$V432-4,0)&\"\")","v":""},{"$f":"IF(ISERROR($V432),\"\",OFFSET('Smelter Look-up'!$E$4,$V432-4,0))","v":""},{"$f":"IF(C432=$X$4,\"Enter smelter details\", IF(ISERROR($V432),\"\",OFFSET('Smelter Look-up'!$F$4,$V432-4,0)))","v":""},{"$f":"IF(ISERROR($V432),\"\",OFFSET('Smelter Look-up'!$G$4,$V432-4,0))","v":""},{"$f":"IF(ISERROR($V432),\"\",OFFSET('Smelter Look-up'!$H$4,$V432-4,0))","v":""},{"$f":"IF(ISERROR($V432),\"\",OFFSET('Smelter Look-up'!$I$4,$V432-4,0))","v":""},{"$nulls":7},{"$f":"IF(ISERROR($V432),\"\",OFFSET('Smelter Look-up'!$C$4,$V432-4,0)&\"\")","v":""},"",{"$f":"IF(B432=\"\",\"\",IF(ISERROR(MATCH($J432,SorP!$B$1:$B$6230,0)),\"\",INDIRECT(\"'SorP'!$A$\"&MATCH($J432,SorP!$B$1:$B$6230,0))))","v":""},null,{"$f":"IF(C432=\"\",NA(),MATCH($B432&$C432,'Smelter Look-up'!$J:$J,0))","v":{"$error":"#N/A"}},null,0,null,null,null,""]
[null,{"$f":"IF(LEN(A433)=0,\"\",INDEX('Smelter Look-up'!$A:$A,MATCH($A433,'Smelter Look-up'!$E:$E,0)))","v":""},{"$f":"IF(LEN(A433)=0,\"\",INDEX('Smelter Look-up'!$C:$C,MATCH($A433,'Smelter Look-up'!$E:$E,0)))","v":""},null,{"$f":"IF(ISERROR($V433),\"\",OFFSET('Smelter Look-up'!$D$4,$V433-4,0)&\"\")","v":""},{"$f":"IF(ISERROR($V433),\"\",OFFSET('Smelter Look-up'!$E$4,$V433-4,0))","v":""},{"$f":"IF(C433=$X$4,\"Enter smelter details\", IF(ISERROR($V433),\"\",OFFSET('Smelter Look-up'!$F$4,$V433-4,0)))","v":""},{"$f":"IF(ISERROR($V433),\"\",OFFSET('Smelter Look-up'!$G$4,$V433-4,0))","v":""},{"$f":"IF(ISERROR($V433),\"\",OFFSET('Smelter Look-up'!$H$4,$V433-4,0))","v":""},{"$f":"IF(ISERROR($V433),\"\",OFFSET('Smelter Look-up'!$I$4,$V433-4,0))","v":""},{"$nulls":7},{"$f":"IF(ISERROR($V433),\"\",OFFSET('Smelter Look-up'!$C$4,$V433-4,0)&\"\")","v":""},"",{"$f":"IF(B433=\"\",\"\",IF(ISERROR(MATCH($J433,SorP!$B$1:$B$6230,0)),\"\",INDIRECT(\"'SorP'!$A$\"&MATCH($J433,SorP!$B$1:$B$6230,0))))","v":""},null,{"$f":"IF(C433=\"\",NA(),MATCH($B433&$C433,'Smelter Look-up'!$J:$J,0))","v":{"$error":"#N/A"}},null,0,null,null,null,""]
[null,{"$f":"IF(LEN(A434)=0,\"\",INDEX('Smelter Look-up'!$A:$A,MATCH($A434,'Smelter Look-up'!$E:$E,0)))","v":""},{"$f":"IF(LEN(A434)=0,\"\",INDEX('Smelter Look-up'!$C:$C,MATCH($A434,'Smelter Look-up'!$E:$E,0)))","v":""},null,{"$f":"IF(ISERROR($V434),\"\",OFFSET('Smelter Look-up'!$D$4,$V434-4,0)&\"\")","v":""},{"$f":"IF(ISERROR($V434),\"\",OFFSET('Smelter Look-up'!$E$4,$V434-4,0))","v":""},{"$f":"IF(C434=$X$4,\"Enter smelter details\", IF(ISERROR($V434),\"\",OFFSET('Smelter Look-up'!$F$4,$V434-4,0)))","v":""},{"$f":"IF(ISERROR($V434),\"\",OFFSET('Smelter Look-up'!$G$4,$V434-4,0))","v":""},{"$f":"IF(ISERROR($V434),\"\",OFFSET('Smelter Look-up'!$H$4,$V434-4,0))","v":""},{"$f":"IF(ISERROR($V434),\"\",OFFSET('Smelter Look-up'!$I$4,$V434-4,0))","v":""},{"$nulls":7},{"$f":"IF(ISERROR($V434),\"\",OFFSET('Smelter Look-up'!$C$4,$V434-4,0)&\"\")","v":""},"",{"$f":"IF(B434=\"\",\"\",IF(ISERROR(MATCH($J434,SorP!$B$1:$B$6230,0)),\"\",INDIRECT(\"'SorP'!$A$\"&MATCH($J434,SorP!$B$1:$B$6230,0))))","v":""},null,{"$f":"IF(C434=\"\",NA(),MATCH($B434&$C434,'Smelter Look-up'!$J:$J,0))","v":{"$error":"#N/A"}},null,0,null,null,null,""]
[null,{"$f":"IF(LEN(A435)=0,\"\",INDEX('Smelter Look-up'!$A:$A,MATCH($A435,'Smelter Look-up'!$E:$E,0)))","v":""},{"$f":"IF(LEN(A435)=0,\"\",INDEX('Smelter Look-up'!$C:$C,MATCH($A435,'Smelter Look-up'!$E:$E,0)))","v":""},null,{"$f":"IF(ISERROR($V435),\"\",OFFSET('Smelter Look-up'!$D$4,$V435-4,0)&\"\")","v":""},{"$f":"IF(ISERROR($V435),\"\",OFFSET('Smelter Look-up'!$E$4,$V435-4,0))","v":""},{"$f":"IF(C435=$X$4,\"Enter smelter details\", IF(ISERROR($V435),\"\",OFFSET('Smelter Look-up'!$F$4,$V435-4,0)))","v":""},{"$f":"IF(ISERROR($V435),\"\",OFFSET('Smelter Look-up'!$G$4,$V435-4,0))","v":""},{"$f":"IF(ISERROR($V435),\"\",OFFSET('Smelter Look-up'!$H$4,$V435-4,0))","v":""},{"$f":"IF(ISERROR($V435),\"\",OFFSET('Smelter Look-up'!$I$4,$V435-4,0))","v":""},{"$nulls":7},{"$f":"IF(ISERROR($V435),\"\",OFFSET('Smelter Look-up'!$C$4,$V435-4,0)&\"\")","v":""},"",{"$f":"IF(B435=\"\",\"\",IF(ISERROR(MATCH($J435,SorP!$B$1:$B$6230,0)),\"\",INDIRECT(\"'SorP'!$A$\"&MATCH($J435,SorP!$B$1:$B$6230,0))))","v":""},null,{"$f":"IF(C435=\"\",NA(),MATCH($B435&$C435,'Smelter Look-up'!$J:$J,0))","v":{"$error":"#N/A"}},null,0,null,null,null,""]
[null,{"$f":"IF(LEN(A436)=0,\"\",INDEX('Smelter Look-up'!$A:$A,MATCH($A436,'Smelter Look-up'!$E:$E,0)))","v":""},{"$f":"IF(LEN(A436)=0,\"\",INDEX('Smelter Look-up'!$C:$C,MATCH($A436,'Smelter Look-up'!$E:$E,0)))","v":""},null,{"$f":"IF(ISERROR($V436),\"\",OFFSET('Smelter Look-up'!$D$4,$V436-4,0)&\"\")","v":""},{"$f":"IF(ISERROR($V436),\"\",OFFSET('Smelter Look-up'!$E$4,$V436-4,0))","v":""},{"$f":"IF(C436=$X$4,\"Enter smelter details\", IF(ISERROR($V436),\"\",OFFSET('Smelter Look-up'!$F$4,$V436-4,0)))","v":""},{"$f":"IF(ISERROR($V436),\"\",OFFSET('Smelter Look-up'!$G$4,$V436-4,0))","v":""},{"$f":"IF(ISERROR($V436),\"\",OFFSET('Smelter Look-up'!$H$4,$V436-4,0))","v":""},{"$f":"IF(ISERROR($V436),\"\",OFFSET('Smelter Look-up'!$I$4,$V436-4,0))","v":""},{"$nulls":7},{"$f":"IF(ISERROR($V436),\"\",OFFSET('Smelter Look-up'!$C$4,$V436-4,0)&\"\")","v":""},"",{"$f":"IF(B436=\"\",\"\",IF(ISERROR(MATCH($J436,SorP!$B$1:$B$6230,0)),\"\",INDIRECT(\"'SorP'!$A$\"&MATCH($J436,SorP!$B$1:$B$6230,0))))","v":""},null,{"$f":"IF(C436=\"\",NA(),MATCH($B436&$C436,'Smelter Look-up'!$J:$J,0))","v":{"$error":"#N/A"}},null,0,null,null,null,""]
[null,{"$f":"IF(LEN(A437)=0,\"\",INDEX('Smelter Look-up'!$A:$A,MATCH($A437,'Smelter Look-up'!$E:$E,0)))","v":""},{"$f":"IF(LEN(A437)=0,\"\",INDEX('Smelter Look-up'!$C:$C,MATCH($A437,'Smelter Look-up'!$E:$E,0)))","v":""},null,{"$f":"IF(ISERROR($V437),\"\",OFFSET('Smelter Look-up'!$D$4,$V437-4,0)&\"\")","v":""},{"$f":"IF(ISERROR($V437),\"\",OFFSET('Smelter Look-up'!$E$4,$V437-4,0))","v":""},{"$f":"IF(C437=$X$4,\"Enter smelter details\", IF(ISERROR($V437),\"\",OFFSET('Smelter Look-up'!$F$4,$V437-4,0)))","v":""},{"$f":"IF(ISERROR($V437),\"\",OFFSET('Smelter Look-up'!$G$4,$V437-4,0))","v":""},{"$f":"IF(ISERROR($V437),\"\",OFFSET('Smelter Look-up'!$H$4,$V437-4,0))","v":""},{"$f":"IF(ISERROR($V437),\"\",OFFSET('Smelter Look-up'!$I$4,$V437-4,0))","v":""},{"$nulls":7},{"$f":"IF(ISERROR($V437),\"\",OFFSET('Smelter Look-up'!$C$4,$V437-4,0)&\"\")","v":""},"",{"$f":"IF(B437=\"\",\"\",IF(ISERROR(MATCH($J437,SorP!$B$1:$B$6230,0)),\"\",INDIRECT(\"'SorP'!$A$\"&MATCH($J437,SorP!$B$1:$B$6230,0))))","v":""},null,{"$f":"IF(C437=\"\",NA(),MATCH($B437&$C437,'Smelter Look-up'!$J:$J,0))","v":{"$error":"#N/A"}},null,0,null,null,null,""]
[null,{"$f":"IF(LEN(A438)=0,\"\",INDEX('Smelter Look-up'!$A:$A,MATCH($A438,'Smelter Look-up'!$E:$E,0)))","v":""},{"$f":"IF(LEN(A438)=0,\"\",INDEX('Smelter Look-up'!$C:$C,MATCH($A438,'Smelter Look-up'!$E:$E,0)))","v":""},null,{"$f":"IF(ISERROR($V438),\"\",OFFSET('Smelter Look-up'!$D$4,$V438-4,0)&\"\")","v":""},{"$f":"IF(ISERROR($V438),\"\",OFFSET('Smelter Look-up'!$E$4,$V438-4,0))","v":""},{"$f":"IF(C438=$X$4,\"Enter smelter details\", IF(ISERROR($V438),\"\",OFFSET('Smelter Look-up'!$F$4,$V438-4,0)))","v":""},{"$f":"IF(ISERROR($V438),\"\",OFFSET('Smelter Look-up'!$G$4,$V438-4,0))","v":""},{"$f":"IF(ISERROR($V438),\"\",OFFSET('Smelter Look-up'!$H$4,$V438-4,0))","v":""},{"$f":"IF(ISERROR($V438),\"\",OFFSET('Smelter Look-up'!$I$4,$V438-4,0))","v":""},{"$nulls":7},{"$f":"IF(ISERROR($V438),\"\",OFFSET('Smelter Look-up'!$C$4,$V438-4,0)&\"\")","v":""},"",{"$f":"IF(B438=\"\",\"\",IF(ISERROR(MATCH($J438,SorP!$B$1:$B$6230,0)),\"\",INDIRECT(\"'SorP'!$A$\"&MATCH($J438,SorP!$B$1:$B$6230,0))))","v":""},null,{"$f":"IF(C438=\"\",NA(),MATCH($B438&$C438,'Smelter Look-up'!$J:$J,0))","v":{"$error":"#N/A"}},null,0,null,null,null,""]
[null,{"$f":"IF(LEN(A439)=0,\"\",INDEX('Smelter Look-up'!$A:$A,MATCH($A439,'Smelter Look-up'!$E:$E,0)))","v":""},{"$f":"IF(LEN(A439)=0,\"\",INDEX('Smelter Look-up'!$C:$C,MATCH($A439,'Smelter Look-up'!$E:$E,0)))","v":""},null,{"$f":"IF(ISERROR($V439),\"\",OFFSET('Smelter Look-up'!$D$4,$V439-4,0)&\"\")","v":""},{"$f":"IF(ISERROR($V439),\"\",OFFSET('Smelter Look-up'!$E$4,$V439-4,0))","v":""},{"$f":"IF(C439=$X$4,\"Enter smelter details\", IF(ISERROR($V439),\"\",OFFSET('Smelter Look-up'!$F$4,$V439-4,0)))","v":""},{"$f":"IF(ISERROR($V439),\"\",OFFSET('Smelter Look-up'!$G$4,$V439-4,0))","v":""},{"$f":"IF(ISERROR($V439),\"\",OFFSET('Smelter Look-up'!$H$4,$V439-4,0))","v":""},{"$f":"IF(ISERROR($V439),\"\",OFFSET('Smelter Look-up'!$I$4,$V439-4,0))","v":""},{"$nulls":7},{"$f":"IF(ISERROR($V439),\"\",OFFSET('Smelter Look-up'!$C$4,$V439-4,0)&\"\")","v":""},"",{"$f":"IF(B439=\"\",\"\",IF(ISERROR(MATCH($J439,SorP!$B$1:$B$6230,0)),\"\",INDIRECT(\"'SorP'!$A$\"&MATCH($J439,SorP!$B$1:$B$6230,0))))","v":""},null,{"$f":"IF(C439=\"\",NA(),MATCH($B439&$C439,'Smelter Look-up'!$J:$J,0))","v":{"$error":"#N/A"}},null,0,null,null,null,""]
[null,{"$f":"IF(LEN(A440)=0,\"\",INDEX('Smelter Look-up'!$A:$A,MATCH($A440,'Smelter Look-up'!$E:$E,0)))","v":""},{"$f":"IF(LEN(A440)=0,\"\",INDEX('Smelter Look-up'!$C:$C,MATCH($A440,'Smelter Look-up'!$E:$E,0)))","v":""},null,{"$f":"IF(ISERROR($V440),\"\",OFFSET('Smelter Look-up'!$D$4,$V440-4,0)&\"\")","v":""},{"$f":"IF(ISERROR($V440),\"\",OFFSET('Smelter Look-up'!$E$4,$V440-4,0))","v":""},{"$f":"IF(C440=$X$4,\"Enter smelter details\", IF(ISERROR($V440),\"\",OFFSET('Smelter Look-up'!$F$4,$V440-4,0)))","v":""},{"$f":"IF(ISERROR($V440),\"\",OFFSET('Smelter Look-up'!$G$4,$V440-4,0))","v":""},{"$f":"IF(ISERROR($V440),\"\",OFFSET('Smelter Look-up'!$H$4,$V440-4,0))","v":""},{"$f":"IF(ISERROR($V440),\"\",OFFSET('Smelter Look-up'!$I$4,$V440-4,0))","v":""},{"$nulls":7},{"$f":"IF(ISERROR($V440),\"\",OFFSET('Smelter Look-up'!$C$4,$V440-4,0)&\"\")","v":""},"",{"$f":"IF(B440=\"\",\"\",IF(ISERROR(MATCH($J440,SorP!$B$1:$B$6230,0)),\"\",INDIRECT(\"'SorP'!$A$\"&MATCH($J440,SorP!$B$1:$B$6230,0))))","v":""},null,{"$f":"IF(C440=\"\",NA(),MATCH($B440&$C440,'Smelter Look-up'!$J:$J,0))","v":{"$error":"#N/A"}},null,0,null,null,null,""]
[null,{"$f":"IF(LEN(A441)=0,\"\",INDEX('Smelter Look-up'!$A:$A,MATCH($A441,'Smelter Look-up'!$E:$E,0)))","v":""},{"$f":"IF(LEN(A441)=0,\"\",INDEX('Smelter Look-up'!$C:$C,MATCH($A441,'Smelter Look-up'!$E:$E,0)))","v":""},null,{"$f":"IF(ISERROR($V441),\"\",OFFSET('Smelter Look-up'!$D$4,$V441-4,0)&\"\")","v":""},{"$f":"IF(ISERROR($V441),\"\",OFFSET('Smelter Look-up'!$E$4,$V441-4,0))","v":""},{"$f":"IF(C441=$X$4,\"Enter smelter details\", IF(ISERROR($V441),\"\",OFFSET('Smelter Look-up'!$F$4,$V441-4,0)))","v":""},{"$f":"IF(ISERROR($V441),\"\",OFFSET('Smelter Look-up'!$G$4,$V441-4,0))","v":""},{"$f":"IF(ISERROR($V441),\"\",OFFSET('Smelter Look-up'!$H$4,$V441-4,0))","v":""},{"$f":"IF(ISERROR($V441),\"\",OFFSET('Smelter Look-up'!$I$4,$V441-4,0))","v":""},{"$nulls":7},{"$f":"IF(ISERROR($V441),\"\",OFFSET('Smelter Look-up'!$C$4,$V441-4,0)&\"\")","v":""},"",{"$f":"IF(B441=\"\",\"\",IF(ISERROR(MATCH($J441,SorP!$B$1:$B$6230,0)),\"\",INDIRECT(\"'SorP'!$A$\"&MATCH($J441,SorP!$B$1:$B$6230,0))))","v":""},null,{"$f":"IF(C441=\"\",NA(),MATCH($B441&$C441,'Smelter Look-up'!$J:$J,0))","v":{"$error":"#N/A"}},null,0,null,null,null,""]
[null,{"$f":"IF(LEN(A442)=0,\"\",INDEX('Smelter Look-up'!$A:$A,MATCH($A442,'Smelter Look-up'!$E:$E,0)))","v":""},{"$f":"IF(LEN(A442)=0,\"\",INDEX('Smelter Look-up'!$C:$C,MATCH($A442,'Smelter Look-up'!$E:$E,0)))","v":""},null,{"$f":"IF(ISERROR($V442),\"\",OFFSET('Smelter Look-up'!$D$4,$V442-4,0)&\"\")","v":""},{"$f":"IF(ISERROR($V442),\"\",OFFSET('Smelter Look-up'!$E$4,$V442-4,0))","v":""},{"$f":"IF(C442=$X$4,\"Enter smelter details\", IF(ISERROR($V442),\"\",OFFSET('Smelter Look-up'!$F$4,$V442-4,0)))","v":""},{"$f":"IF(ISERROR($V442),\"\",OFFSET('Smelter Look-up'!$G$4,$V442-4,0))","v":""},{"$f":"IF(ISERROR($V442),\"\",OFFSET('Smelter Look-up'!$H$4,$V442-4,0))","v":""},{"$f":"IF(ISERROR($V442),\"\",OFFSET('Smelter Look-up'!$I$4,$V442-4,0))","v":""},{"$nulls":7},{"$f":"IF(ISERROR($V442),\"\",OFFSET('Smelter Look-up'!$C$4,$V442-4,0)&\"\")","v":""},"",{"$f":"IF(B442=\"\",\"\",IF(ISERROR(MATCH($J442,SorP!$B$1:$B$6230,0)),\"\",INDIRECT(\"'SorP'!$A$\"&MATCH($J442,SorP!$B$1:$B$6230,0))))","v":""},null,{"$f":"IF(C442=\"\",NA(),MATCH($B442&$C442,'Smelter Look-up'!$J:$J,0))","v":{"$error":"#N/A"}},null,0,null,null,null,""]
[null,{"$f":"IF(LEN(A443)=0,\"\",INDEX('Smelter Look-up'!$A:$A,MATCH($A443,'Smelter Look-up'!$E:$E,0)))","v":""},{"$f":"IF(LEN(A443)=0,\"\",INDEX('Smelter Look-up'!$C:$C,MATCH($A443,'Smelter Look-up'!$E:$E,0)))","v":""},null,{"$f":"IF(ISERROR($V443),\"\",OFFSET('Smelter Look-up'!$D$4,$V443-4,0)&\"\")","v":""},{"$f":"IF(ISERROR($V443),\"\",OFFSET('Smelter Look-up'!$E$4,$V443-4,0))","v":""},{"$f":"IF(C443=$X$4,\"Enter smelter details\", IF(ISERROR($V443),\"\",OFFSET('Smelter Look-up'!$F$4,$V443-4,0)))","v":""},{"$f":"IF(ISERROR($V443),\"\",OFFSET('Smelter Look-up'!$G$4,$V443-4,0))","v":""},{"$f":"IF(ISERROR($V443),\"\",OFFSET('Smelter Look-up'!$H$4,$V443-4,0))","v":""},{"$f":"IF(ISERROR($V443),\"\",OFFSET('Smelter Look-up'!$I$4,$V443-4,0))","v":""},{"$nulls":7},{"$f":"IF(ISERROR($V443),\"\",OFFSET('Smelter Look-up'!$C$4,$V443-4,0)&\"\")","v":""},{"$f":"IF(B443=\"\",\"\",IF(ISERROR(MATCH($E443,CL,0)),\"Unknown\",INDIRECT(\"'C'!$A$\"&MATCH($E443,CL,0)+1)))","v":""},{"$f":"IF(B443=\"\",\"\",IF(ISERROR(MATCH($J443,SorP!$B$1:$B$6230,0)),\"\",INDIRECT(\"'SorP'!$A$\"&MATCH($J443,SorP!$B$1:$B$6230,0))))","v":""},null,{"$f":"IF(C443=\"\",NA(),MATCH($B443&$C443,'Smelter Look-up'!$J:$J,0))","v":{"$error":"#N/A"}},null,{"$f":"IF(AND(C443=\"Smelter not listed\",OR(LEN(D443)=0,LEN(E443)=0)),1,0)","v":0},null,null,null,{"$f":"B443&C443","v":""}]
[null,{"$f":"IF(LEN(A444)=0,\"\",INDEX('Smelter Look-up'!$A:$A,MATCH($A444,'Smelter Look-up'!$E:$E,0)))","v":""},{"$f":"IF(LEN(A444)=0,\"\",INDEX('Smelter Look-up'!$C:$C,MATCH($A444,'Smelter Look-up'!$E:$E,0)))","v":""},null,{"$f":"IF(ISERROR($V444),\"\",OFFSET('Smelter Look-up'!$D$4,$V444-4,0)&\"\")","v":""},{"$f":"IF(ISERROR($V444),\"\",OFFSET('Smelter Look-up'!$E$4,$V444-4,0))","v":""},{"$f":"IF(C444=$X$4,\"Enter smelter details\", IF(ISERROR($V444),\"\",OFFSET('Smelter Look-up'!$F$4,$V444-4,0)))","v":""},{"$f":"IF(ISERROR($V444),\"\",OFFSET('Smelter Look-up'!$G$4,$V444-4,0))","v":""},{"$f":"IF(ISERROR($V444),\"\",OFFSET('Smelter Look-up'!$H$4,$V444-4,0))","v":""},{"$f":"IF(ISERROR($V444),\"\",OFFSET('Smelter Look-up'!$I$4,$V444-4,0))","v":""},{"$nulls":7},{"$f":"IF(ISERROR($V444),\"\",OFFSET('Smelter Look-up'!$C$4,$V444-4,0)&\"\")","v":""},"",{"$f":"IF(B444=\"\",\"\",IF(ISERROR(MATCH($J444,SorP!$B$1:$B$6230,0)),\"\",INDIRECT(\"'SorP'!$A$\"&MATCH($J444,SorP!$B$1:$B$6230,0))))","v":""},null,{"$f":"IF(C444=\"\",NA(),MATCH($B444&$C444,'Smelter Look-up'!$J:$J,0))","v":{"$error":"#N/A"}},null,0,null,null,null,""]
[null,{"$f":"IF(LEN(A445)=0,\"\",INDEX('Smelter Look-up'!$A:$A,MATCH($A445,'Smelter Look-up'!$E:$E,0)))","v":""},{"$f":"IF(LEN(A445)=0,\"\",INDEX('Smelter Look-up'!$C:$C,MATCH($A445,'Smelter Look-up'!$E:$E,0)))","v":""},null,{"$f":"IF(ISERROR($V445),\"\",OFFSET('Smelter Look-up'!$D$4,$V445-4,0)&\"\")","v":""},{"$f":"IF(ISERROR($V445),\"\",OFFSET('Smelter Look-up'!$E$4,$V445-4,0))","v":""},{"$f":"IF(C445=$X$4,\"Enter smelter details\", IF(ISERROR($V445),\"\",OFFSET('Smelter Look-up'!$F$4,$V445-4,0)))","v":""},{"$f":"IF(ISERROR($V445),\"\",OFFSET('Smelter Look-up'!$G$4,$V445-4,0))","v":""},{"$f":"IF(ISERROR($V445),\"\",OFFSET('Smelter Look-up'!$H$4,$V445-4,0))","v":""},{"$f":"IF(ISERROR($V445),\"\",OFFSET('Smelter Look-up'!$I$4,$V445-4,0))","v":""},{"$nulls":7},{"$f":"IF(ISERROR($V445),\"\",OFFSET('Smelter Look-up'!$C$4,$V445-4,0)&\"\")","v":""},"",{"$f":"IF(B445=\"\",\"\",IF(ISERROR(MATCH($J445,SorP!$B$1:$B$6230,0)),\"\",INDIRECT(\"'SorP'!$A$\"&MATCH($J445,SorP!$B$1:$B$6230,0))))","v":""},null,{"$f":"IF(C445=\"\",NA(),MATCH($B445&$C445,'Smelter Look-up'!$J:$J,0))","v":{"$error":"#N/A"}},null,0,null,null,null,""]
[null,{"$f":"IF(LEN(A446)=0,\"\",INDEX('Smelter Look-up'!$A:$A,MATCH($A446,'Smelter Look-up'!$E:$E,0)))","v":""},{"$f":"IF(LEN(A446)=0,\"\",INDEX('Smelter Look-up'!$C:$C,MATCH($A446,'Smelter Look-up'!$E:$E,0)))","v":""},null,{"$f":"IF(ISERROR($V446),\"\",OFFSET('Smelter Look-up'!$D$4,$V446-4,0)&\"\")","v":""},{"$f":"IF(ISERROR($V446),\"\",OFFSET('Smelter Look-up'!$E$4,$V446-4,0))","v":""},{"$f":"IF(C446=$X$4,\"Enter smelter details\", IF(ISERROR($V446),\"\",OFFSET('Smelter Look-up'!$F$4,$V446-4,0)))","v":""},{"$f":"IF(ISERROR($V446),\"\",OFFSET('Smelter Look-up'!$G$4,$V446-4,0))","v":""},{"$f":"IF(ISERROR($V446),\"\",OFFSET('Smelter Look-up'!$H$4,$V446-4,0))","v":""},{"$f":"IF(ISERROR($V446),\"\",OFFSET('Smelter Look-up'!$I$4,$V446-4,0))","v":""},{"$nulls":7},{"$f":"IF(ISERROR($V446),\"\",OFFSET('Smelter Look-up'!$C$4,$V446-4,0)&\"\")","v":""},"",{"$f":"IF(B446=\"\",\"\",IF(ISERROR(MATCH($J446,SorP!$B$1:$B$6230,0)),\"\",INDIRECT(\"'SorP'!$A$\"&MATCH($J446,SorP!$B$1:$B$6230,0))))","v":""},null,{"$f":"IF(C446=\"\",NA(),MATCH($B446&$C446,'Smelter Look-up'!$J:$J,0))","v":{"$error":"#N/A"}},null,0,null,null,null,""]
[null,{"$f":"IF(LEN(A447)=0,\"\",INDEX('Smelter Look-up'!$A:$A,MATCH($A447,'Smelter Look-up'!$E:$E,0)))","v":""},{"$f":"IF(LEN(A447)=0,\"\",INDEX('Smelter Look-up'!$C:$C,MATCH($A447,'Smelter Look-up'!$E:$E,0)))","v":""},null,{"$f":"IF(ISERROR($V447),\"\",OFFSET('Smelter Look-up'!$D$4,$V447-4,0)&\"\")","v":""},{"$f":"IF(ISERROR($V447),\"\",OFFSET('Smelter Look-up'!$E$4,$V447-4,0))","v":""},{"$f":"IF(C447=$X$4,\"Enter smelter details\", IF(ISERROR($V447),\"\",OFFSET('Smelter Look-up'!$F$4,$V447-4,0)))","v":""},{"$f":"IF(ISERROR($V447),\"\",OFFSET('Smelter Look-up'!$G$4,$V447-4,0))","v":""},{"$f":"IF(ISERROR($V447),\"\",OFFSET('Smelter Look-up'!$H$4,$V447-4,0))","v":""},{"$f":"IF(ISERROR($V447),\"\",OFFSET('Smelter Look-up'!$I$4,$V447-4,0))","v":""},{"$nulls":7},{"$f":"IF(ISERROR($V447),\"\",OFFSET('Smelter Look-up'!$C$4,$V447-4,0)&\"\")","v":""},"",{"$f":"IF(B447=\"\",\"\",IF(ISERROR(MATCH($J447,SorP!$B$1:$B$6230,0)),\"\",INDIRECT(\"'SorP'!$A$\"&MATCH($J447,SorP!$B$1:$B$6230,0))))","v":""},null,{"$f":"IF(C447=\"\",NA(),MATCH($B447&$C447,'Smelter Look-up'!$J:$J,0))","v":{"$error":"#N/A"}},null,0,null,null,null,""]
[null,{"$f":"IF(LEN(A448)=0,\"\",INDEX('Smelter Look-up'!$A:$A,MATCH($A448,'Smelter Look-up'!$E:$E,0)))","v":""},{"$f":"IF(LEN(A448)=0,\"\",INDEX('Smelter Look-up'!$C:$C,MATCH($A448,'Smelter Look-up'!$E:$E,0)))","v":""},null,{"$f":"IF(ISERROR($V448),\"\",OFFSET('Smelter Look-up'!$D$4,$V448-4,0)&\"\")","v":""},{"$f":"IF(ISERROR($V448),\"\",OFFSET('Smelter Look-up'!$E$4,$V448-4,0))","v":""},{"$f":"IF(C448=$X$4,\"Enter smelter details\", IF(ISERROR($V448),\"\",OFFSET('Smelter Look-up'!$F$4,$V448-4,0)))","v":""},{"$f":"IF(ISERROR($V448),\"\",OFFSET('Smelter Look-up'!$G$4,$V448-4,0))","v":""},{"$f":"IF(ISERROR($V448),\"\",OFFSET('Smelter Look-up'!$H$4,$V448-4,0))","v":""},{"$f":"IF(ISERROR($V448),\"\",OFFSET('Smelter Look-up'!$I$4,$V448-4,0))","v":""},{"$nulls":7},{"$f":"IF(ISERROR($V448),\"\",OFFSET('Smelter Look-up'!$C$4,$V448-4,0)&\"\")","v":""},"",{"$f":"IF(B448=\"\",\"\",IF(ISERROR(MATCH($J448,SorP!$B$1:$B$6230,0)),\"\",INDIRECT(\"'SorP'!$A$\"&MATCH($J448,SorP!$B$1:$B$6230,0))))","v":""},null,{"$f":"IF(C448=\"\",NA(),MATCH($B448&$C448,'Smelter Look-up'!$J:$J,0))","v":{"$error":"#N/A"}},null,0,null,null,null,""]
[null,{"$f":"IF(LEN(A449)=0,\"\",INDEX('Smelter Look-up'!$A:$A,MATCH($A449,'Smelter Look-up'!$E:$E,0)))","v":""},{"$f":"IF(LEN(A449)=0,\"\",INDEX('Smelter Look-up'!$C:$C,MATCH($A449,'Smelter Look-up'!$E:$E,0)))","v":""},null,{"$f":"IF(ISERROR($V449),\"\",OFFSET('Smelter Look-up'!$D$4,$V449-4,0)&\"\")","v":""},{"$f":"IF(ISERROR($V449),\"\",OFFSET('Smelter Look-up'!$E$4,$V449-4,0))","v":""},{"$f":"IF(C449=$X$4,\"Enter smelter details\", IF(ISERROR($V449),\"\",OFFSET('Smelter Look-up'!$F$4,$V449-4,0)))","v":""},{"$f":"IF(ISERROR($V449),\"\",OFFSET('Smelter Look-up'!$G$4,$V449-4,0))","v":""},{"$f":"IF(ISERROR($V449),\"\",OFFSET('Smelter Look-up'!$H$4,$V449-4,0))","v":""},{"$f":"IF(ISERROR($V449),\"\",OFFSET('Smelter Look-up'!$I$4,$V449-4,0))","v":""},{"$nulls":7},{"$f":"IF(ISERROR($V449),\"\",OFFSET('Smelter Look-up'!$C$4,$V449-4,0)&\"\")","v":""},"",{"$f":"IF(B449=\"\",\"\",IF(ISERROR(MATCH($J449,SorP!$B$1:$B$6230,0)),\"\",INDIRECT(\"'SorP'!$A$\"&MATCH($J449,SorP!$B$1:$B$6230,0))))","v":""},null,{"$f":"IF(C449=\"\",NA(),MATCH($B449&$C449,'Smelter Look-up'!$J:$J,0))","v":{"$error":"#N/A"}},null,0,null,null,null,""]
[null,{"$f":"IF(LEN(A450)=0,\"\",INDEX('Smelter Look-up'!$A:$A,MATCH($A450,'Smelter Look-up'!$E:$E,0)))","v":""},{"$f":"IF(LEN(A450)=0,\"\",INDEX('Smelter Look-up'!$C:$C,MATCH($A450,'Smelter Look-up'!$E:$E,0)))","v":""},null,{"$f":"IF(ISERROR($V450),\"\",OFFSET('Smelter Look-up'!$D$4,$V450-4,0)&\"\")","v":""},{"$f":"IF(ISERROR($V450),\"\",OFFSET('Smelter Look-up'!$E$4,$V450-4,0))","v":""},{"$f":"IF(C450=$X$4,\"Enter smelter details\", IF(ISERROR($V450),\"\",OFFSET('Smelter Look-up'!$F$4,$V450-4,0)))","v":""},{"$f":"IF(ISERROR($V450),\"\",OFFSET('Smelter Look-up'!$G$4,$V450-4,0))","v":""},{"$f":"IF(ISERROR($V450),\"\",OFFSET('Smelter Look-up'!$H$4,$V450-4,0))","v":""},{"$f":"IF(ISERROR($V450),\"\",OFFSET('Smelter Look-up'!$I$4,$V450-4,0))","v":""},{"$nulls":7},{"$f":"IF(ISERROR($V450),\"\",OFFSET('Smelter Look-up'!$C$4,$V450-4,0)&\"\")","v":""},"",{"$f":"IF(B450=\"\",\"\",IF(ISERROR(MATCH($J450,SorP!$B$1:$B$6230,0)),\"\",INDIRECT(\"'SorP'!$A$\"&MATCH($J450,SorP!$B$1:$B$6230,0))))","v":""},null,{"$f":"IF(C450=\"\",NA(),MATCH($B450&$C450,'Smelter Look-up'!$J:$J,0))","v":{"$error":"#N/A"}},null,0,null,null,null,""]
[null,{"$f":"IF(LEN(A451)=0,\"\",INDEX('Smelter Look-up'!$A:$A,MATCH($A451,'Smelter Look-up'!$E:$E,0)))","v":""},{"$f":"IF(LEN(A451)=0,\"\",INDEX('Smelter Look-up'!$C:$C,MATCH($A451,'Smelter Look-up'!$E:$E,0)))","v":""},null,{"$f":"IF(ISERROR($V451),\"\",OFFSET('Smelter Look-up'!$D$4,$V451-4,0)&\"\")","v":""},{"$f":"IF(ISERROR($V451),\"\",OFFSET('Smelter Look-up'!$E$4,$V451-4,0))","v":""},{"$f":"IF(C451=$X$4,\"Enter smelter details\", IF(ISERROR($V451),\"\",OFFSET('Smelter Look-up'!$F$4,$V451-4,0)))","v":""},{"$f":"IF(ISERROR($V451),\"\",OFFSET('Smelter Look-up'!$G$4,$V451-4,0))","v":""},{"$f":"IF(ISERROR($V451),\"\",OFFSET('Smelter Look-up'!$H$4,$V451-4,0))","v":""},{"$f":"IF(ISERROR($V451),\"\",OFFSET('Smelter Look-up'!$I$4,$V451-4,0))","v":""},{"$nulls":7},{"$f":"IF(ISERROR($V451),\"\",OFFSET('Smelter Look-up'!$C$4,$V451-4,0)&\"\")","v":""},"",{"$f":"IF(B451=\"\",\"\",IF(ISERROR(MATCH($J451,SorP!$B$1:$B$6230,0)),\"\",INDIRECT(\"'SorP'!$A$\"&MATCH($J451,SorP!$B$1:$B$6230,0))))","v":""},null,{"$f":"IF(C451=\"\",NA(),MATCH($B451&$C451,'Smelter Look-up'!$J:$J,0))","v":{"$error":"#N/A"}},null,0,null,null,null,""]
[null,{"$f":"IF(LEN(A452)=0,\"\",INDEX('Smelter Look-up'!$A:$A,MATCH($A452,'Smelter Look-up'!$E:$E,0)))","v":""},{"$f":"IF(LEN(A452)=0,\"\",INDEX('Smelter Look-up'!$C:$C,MATCH($A452,'Smelter Look-up'!$E:$E,0)))","v":""},null,{"$f":"IF(ISERROR($V452),\"\",OFFSET('Smelter Look-up'!$D$4,$V452-4,0)&\"\")","v":""},{"$f":"IF(ISERROR($V452),\"\",OFFSET('Smelter Look-up'!$E$4,$V452-4,0))","v":""},{"$f":"IF(C452=$X$4,\"Enter smelter details\", IF(ISERROR($V452),\"\",OFFSET('Smelter Look-up'!$F$4,$V452-4,0)))","v":""},{"$f":"IF(ISERROR($V452),\"\",OFFSET('Smelter Look-up'!$G$4,$V452-4,0))","v":""},{"$f":"IF(ISERROR($V452),\"\",OFFSET('Smelter Look-up'!$H$4,$V452-4,0))","v":""},{"$f":"IF(ISERROR($V452),\"\",OFFSET('Smelter Look-up'!$I$4,$V452-4,0))","v":""},{"$nulls":7},{"$f":"IF(ISERROR($V452),\"\",OFFSET('Smelter Look-up'!$C$4,$V452-4,0)&\"\")","v":""},"",{"$f":"IF(B452=\"\",\"\",IF(ISERROR(MATCH($J452,SorP!$B$1:$B$6230,0)),\"\",INDIRECT(\"'SorP'!$A$\"&MATCH($J452,SorP!$B$1:$B$6230,0))))","v":""},null,{"$f":"IF(C452=\"\",NA(),MATCH($B452&$C452,'Smelter Look-up'!$J:$J,0))","v":{"$error":"#N/A"}},null,0,null,null,null,""]
[null,{"$f":"IF(LEN(A453)=0,\"\",INDEX('Smelter Look-up'!$A:$A,MATCH($A453,'Smelter Look-up'!$E:$E,0)))","v":""},{"$f":"IF(LEN(A453)=0,\"\",INDEX('Smelter Look-up'!$C:$C,MATCH($A453,'Smelter Look-up'!$E:$E,0)))","v":""},null,{"$f":"IF(ISERROR($V453),\"\",OFFSET('Smelter Look-up'!$D$4,$V453-4,0)&\"\")","v":""},{"$f":"IF(ISERROR($V453),\"\",OFFSET('Smelter Look-up'!$E$4,$V453-4,0))","v":""},{"$f":"IF(C453=$X$4,\"Enter smelter details\", IF(ISERROR($V453),\"\",OFFSET('Smelter Look-up'!$F$4,$V453-4,0)))","v":""},{"$f":"IF(ISERROR($V453),\"\",OFFSET('Smelter Look-up'!$G$4,$V453-4,0))","v":""},{"$f":"IF(ISERROR($V453),\"\",OFFSET('Smelter Look-up'!$H$4,$V453-4,0))","v":""},{"$f":"IF(ISERROR($V453),\"\",OFFSET('Smelter Look-up'!$I$4,$V453-4,0))","v":""},{"$nulls":7},{"$f":"IF(ISERROR($V453),\"\",OFFSET('Smelter Look-up'!$C$4,$V453-4,0)&\"\")","v":""},"",{"$f":"IF(B453=\"\",\"\",IF(ISERROR(MATCH($J453,SorP!$B$1:$B$6230,0)),\"\",INDIRECT(\"'SorP'!$A$\"&MATCH($J453,SorP!$B$1:$B$6230,0))))","v":""},null,{"$f":"IF(C453=\"\",NA(),MATCH($B453&$C453,'Smelter Look-up'!$J:$J,0))","v":{"$error":"#N/A"}},null,0,null,null,null,""]
[null,{"$f":"IF(LEN(A454)=0,\"\",INDEX('Smelter Look-up'!$A:$A,MATCH($A454,'Smelter Look-up'!$E:$E,0)))","v":""},{"$f":"IF(LEN(A454)=0,\"\",INDEX('Smelter Look-up'!$C:$C,MATCH($A454,'Smelter Look-up'!$E:$E,0)))","v":""},null,{"$f":"IF(ISERROR($V454),\"\",OFFSET('Smelter Look-up'!$D$4,$V454-4,0)&\"\")","v":""},{"$f":"IF(ISERROR($V454),\"\",OFFSET('Smelter Look-up'!$E$4,$V454-4,0))","v":""},{"$f":"IF(C454=$X$4,\"Enter smelter details\", IF(ISERROR($V454),\"\",OFFSET('Smelter Look-up'!$F$4,$V454-4,0)))","v":""},{"$f":"IF(ISERROR($V454),\"\",OFFSET('Smelter Look-up'!$G$4,$V454-4,0))","v":""},{"$f":"IF(ISERROR($V454),\"\",OFFSET('Smelter Look-up'!$H$4,$V454-4,0))","v":""},{"$f":"IF(ISERROR($V454),\"\",OFFSET('Smelter Look-up'!$I$4,$V454-4,0))","v":""},{"$nulls":7},{"$f":"IF(ISERROR($V454),\"\",OFFSET('Smelter Look-up'!$C$4,$V454-4,0)&\"\")","v":""},"",{"$f":"IF(B454=\"\",\"\",IF(ISERROR(MATCH($J454,SorP!$B$1:$B$6230,0)),\"\",INDIRECT(\"'SorP'!$A$\"&MATCH($J454,SorP!$B$1:$B$6230,0))))","v":""},null,{"$f":"IF(C454=\"\",NA(),MATCH($B454&$C454,'Smelter Look-up'!$J:$J,0))","v":{"$error":"#N/A"}},null,0,null,null,null,""]
[null,{"$f":"IF(LEN(A455)=0,\"\",INDEX('Smelter Look-up'!$A:$A,MATCH($A455,'Smelter Look-up'!$E:$E,0)))","v":""},{"$f":"IF(LEN(A455)=0,\"\",INDEX('Smelter Look-up'!$C:$C,MATCH($A455,'Smelter Look-up'!$E:$E,0)))","v":""},null,{"$f":"IF(ISERROR($V455),\"\",OFFSET('Smelter Look-up'!$D$4,$V455-4,0)&\"\")","v":""},{"$f":"IF(ISERROR($V455),\"\",OFFSET('Smelter Look-up'!$E$4,$V455-4,0))","v":""},{"$f":"IF(C455=$X$4,\"Enter smelter details\", IF(ISERROR($V455),\"\",OFFSET('Smelter Look-up'!$F$4,$V455-4,0)))","v":""},{"$f":"IF(ISERROR($V455),\"\",OFFSET('Smelter Look-up'!$G$4,$V455-4,0))","v":""},{"$f":"IF(ISERROR($V455),\"\",OFFSET('Smelter Look-up'!$H$4,$V455-4,0))","v":""},{"$f":"IF(ISERROR($V455),\"\",OFFSET('Smelter Look-up'!$I$4,$V455-4,0))","v":""},{"$nulls":7},{"$f":"IF(ISERROR($V455),\"\",OFFSET('Smelter Look-up'!$C$4,$V455-4,0)&\"\")","v":""},"",{"$f":"IF(B455=\"\",\"\",IF(ISERROR(MATCH($J455,SorP!$B$1:$B$6230,0)),\"\",INDIRECT(\"'SorP'!$A$\"&MATCH($J455,SorP!$B$1:$B$6230,0))))","v":""},null,{"$f":"IF(C455=\"\",NA(),MATCH($B455&$C455,'Smelter Look-up'!$J:$J,0))","v":{"$error":"#N/A"}},null,0,null,null,null,""]
[null,{"$f":"IF(LEN(A456)=0,\"\",INDEX('Smelter Look-up'!$A:$A,MATCH($A456,'Smelter Look-up'!$E:$E,0)))","v":""},{"$f":"IF(LEN(A456)=0,\"\",INDEX('Smelter Look-up'!$C:$C,MATCH($A456,'Smelter Look-up'!$E:$E,0)))","v":""},null,{"$f":"IF(ISERROR($V456),\"\",OFFSET('Smelter Look-up'!$D$4,$V456-4,0)&\"\")","v":""},{"$f":"IF(ISERROR($V456),\"\",OFFSET('Smelter Look-up'!$E$4,$V456-4,0))","v":""},{"$f":"IF(C456=$X$4,\"Enter smelter details\", IF(ISERROR($V456),\"\",OFFSET('Smelter Look-up'!$F$4,$V456-4,0)))","v":""},{"$f":"IF(ISERROR($V456),\"\",OFFSET('Smelter Look-up'!$G$4,$V456-4,0))","v":""},{"$f":"IF(ISERROR($V456),\"\",OFFSET('Smelter Look-up'!$H$4,$V456-4,0))","v":""},{"$f":"IF(ISERROR($V456),\"\",OFFSET('Smelter Look-up'!$I$4,$V456-4,0))","v":""},{"$nulls":7},{"$f":"IF(ISERROR($V456),\"\",OFFSET('Smelter Look-up'!$C$4,$V456-4,0)&\"\")","v":""},"",{"$f":"IF(B456=\"\",\"\",IF(ISERROR(MATCH($J456,SorP!$B$1:$B$6230,0)),\"\",INDIRECT(\"'SorP'!$A$\"&MATCH($J456,SorP!$B$1:$B$6230,0))))","v":""},null,{"$f":"IF(C456=\"\",NA(),MATCH($B456&$C456,'Smelter Look-up'!$J:$J,0))","v":{"$error":"#N/A"}},null,0,null,null,null,""]
[null,{"$f":"IF(LEN(A457)=0,\"\",INDEX('Smelter Look-up'!$A:$A,MATCH($A457,'Smelter Look-up'!$E:$E,0)))","v":""},{"$f":"IF(LEN(A457)=0,\"\",INDEX('Smelter Look-up'!$C:$C,MATCH($A457,'Smelter Look-up'!$E:$E,0)))","v":""},null,{"$f":"IF(ISERROR($V457),\"\",OFFSET('Smelter Look-up'!$D$4,$V457-4,0)&\"\")","v":""},{"$f":"IF(ISERROR($V457),\"\",OFFSET('Smelter Look-up'!$E$4,$V457-4,0))","v":""},{"$f":"IF(C457=$X$4,\"Enter smelter details\", IF(ISERROR($V457),\"\",OFFSET('Smelter Look-up'!$F$4,$V457-4,0)))","v":""},{"$f":"IF(ISERROR($V457),\"\",OFFSET('Smelter Look-up'!$G$4,$V457-4,0))","v":""},{"$f":"IF(ISERROR($V457),\"\",OFFSET('Smelter Look-up'!$H$4,$V457-4,0))","v":""},{"$f":"IF(ISERROR($V457),\"\",OFFSET('Smelter Look-up'!$I$4,$V457-4,0))","v":""},{"$nulls":7},{"$f":"IF(ISERROR($V457),\"\",OFFSET('Smelter Look-up'!$C$4,$V457-4,0)&\"\")","v":""},"",{"$f":"IF(B457=\"\",\"\",IF(ISERROR(MATCH($J457,SorP!$B$1:$B$6230,0)),\"\",INDIRECT(\"'SorP'!$A$\"&MATCH($J457,SorP!$B$1:$B$6230,0))))","v":""},null,{"$f":"IF(C457=\"\",NA(),MATCH($B457&$C457,'Smelter Look-up'!$J:$J,0))","v":{"$error":"#N/A"}},null,0,null,null,null,""]
[null,{"$f":"IF(LEN(A458)=0,\"\",INDEX('Smelter Look-up'!$A:$A,MATCH($A458,'Smelter Look-up'!$E:$E,0)))","v":""},{"$f":"IF(LEN(A458)=0,\"\",INDEX('Smelter Look-up'!$C:$C,MATCH($A458,'Smelter Look-up'!$E:$E,0)))","v":""},null,{"$f":"IF(ISERROR($V458),\"\",OFFSET('Smelter Look-up'!$D$4,$V458-4,0)&\"\")","v":""},{"$f":"IF(ISERROR($V458),\"\",OFFSET('Smelter Look-up'!$E$4,$V458-4,0))","v":""},{"$f":"IF(C458=$X$4,\"Enter smelter details\", IF(ISERROR($V458),\"\",OFFSET('Smelter Look-up'!$F$4,$V458-4,0)))","v":""},{"$f":"IF(ISERROR($V458),\"\",OFFSET('Smelter Look-up'!$G$4,$V458-4,0))","v":""},{"$f":"IF(ISERROR($V458),\"\",OFFSET('Smelter Look-up'!$H$4,$V458-4,0))","v":""},{"$f":"IF(ISERROR($V458),\"\",OFFSET('Smelter Look-up'!$I$4,$V458-4,0))","v":""},{"$nulls":7},{"$f":"IF(ISERROR($V458),\"\",OFFSET('Smelter Look-up'!$C$4,$V458-4,0)&\"\")","v":""},"",{"$f":"IF(B458=\"\",\"\",IF(ISERROR(MATCH($J458,SorP!$B$1:$B$6230,0)),\"\",INDIRECT(\"'SorP'!$A$\"&MATCH($J458,SorP!$B$1:$B$6230,0))))","v":""},null,{"$f":"IF(C458=\"\",NA(),MATCH($B458&$C458,'Smelter Look-up'!$J:$J,0))","v":{"$error":"#N/A"}},null,0,null,null,null,""]
[null,{"$f":"IF(LEN(A459)=0,\"\",INDEX('Smelter Look-up'!$A:$A,MATCH($A459,'Smelter Look-up'!$E:$E,0)))","v":""},{"$f":"IF(LEN(A459)=0,\"\",INDEX('Smelter Look-up'!$C:$C,MATCH($A459,'Smelter Look-up'!$E:$E,0)))","v":""},null,{"$f":"IF(ISERROR($V459),\"\",OFFSET('Smelter Look-up'!$D$4,$V459-4,0)&\"\")","v":""},{"$f":"IF(ISERROR($V459),\"\",OFFSET('Smelter Look-up'!$E$4,$V459-4,0))","v":""},{"$f":"IF(C459=$X$4,\"Enter smelter details\", IF(ISERROR($V459),\"\",OFFSET('Smelter Look-up'!$F$4,$V459-4,0)))","v":""},{"$f":"IF(ISERROR($V459),\"\",OFFSET('Smelter Look-up'!$G$4,$V459-4,0))","v":""},{"$f":"IF(ISERROR($V459),\"\",OFFSET('Smelter Look-up'!$H$4,$V459-4,0))","v":""},{"$f":"IF(ISERROR($V459),\"\",OFFSET('Smelter Look-up'!$I$4,$V459-4,0))","v":""},{"$nulls":7},{"$f":"IF(ISERROR($V459),\"\",OFFSET('Smelter Look-up'!$C$4,$V459-4,0)&\"\")","v":""},"",{"$f":"IF(B459=\"\",\"\",IF(ISERROR(MATCH($J459,SorP!$B$1:$B$6230,0)),\"\",INDIRECT(\"'SorP'!$A$\"&MATCH($J459,SorP!$B$1:$B$6230,0))))","v":""},null,{"$f":"IF(C459=\"\",NA(),MATCH($B459&$C459,'Smelter Look-up'!$J:$J,0))","v":{"$error":"#N/A"}},null,0,null,null,null,""]
[null,{"$f":"IF(LEN(A460)=0,\"\",INDEX('Smelter Look-up'!$A:$A,MATCH($A460,'Smelter Look-up'!$E:$E,0)))","v":""},{"$f":"IF(LEN(A460)=0,\"\",INDEX('Smelter Look-up'!$C:$C,MATCH($A460,'Smelter Look-up'!$E:$E,0)))","v":""},null,{"$f":"IF(ISERROR($V460),\"\",OFFSET('Smelter Look-up'!$D$4,$V460-4,0)&\"\")","v":""},{"$f":"IF(ISERROR($V460),\"\",OFFSET('Smelter Look-up'!$E$4,$V460-4,0))","v":""},{"$f":"IF(C460=$X$4,\"Enter smelter details\", IF(ISERROR($V460),\"\",OFFSET('Smelter Look-up'!$F$4,$V460-4,0)))","v":""},{"$f":"IF(ISERROR($V460),\"\",OFFSET('Smelter Look-up'!$G$4,$V460-4,0))","v":""},{"$f":"IF(ISERROR($V460),\"\",OFFSET('Smelter Look-up'!$H$4,$V460-4,0))","v":""},{"$f":"IF(ISERROR($V460),\"\",OFFSET('Smelter Look-up'!$I$4,$V460-4,0))","v":""},{"$nulls":7},{"$f":"IF(ISERROR($V460),\"\",OFFSET('Smelter Look-up'!$C$4,$V460-4,0)&\"\")","v":""},"",{"$f":"IF(B460=\"\",\"\",IF(ISERROR(MATCH($J460,SorP!$B$1:$B$6230,0)),\"\",INDIRECT(\"'SorP'!$A$\"&MATCH($J460,SorP!$B$1:$B$6230,0))))","v":""},null,{"$f":"IF(C460=\"\",NA(),MATCH($B460&$C460,'Smelter Look-up'!$J:$J,0))","v":{"$error":"#N/A"}},null,0,null,null,null,""]
[null,{"$f":"IF(LEN(A461)=0,\"\",INDEX('Smelter Look-up'!$A:$A,MATCH($A461,'Smelter Look-up'!$E:$E,0)))","v":""},{"$f":"IF(LEN(A461)=0,\"\",INDEX('Smelter Look-up'!$C:$C,MATCH($A461,'Smelter Look-up'!$E:$E,0)))","v":""},null,{"$f":"IF(ISERROR($V461),\"\",OFFSET('Smelter Look-up'!$D$4,$V461-4,0)&\"\")","v":""},{"$f":"IF(ISERROR($V461),\"\",OFFSET('Smelter Look-up'!$E$4,$V461-4,0))","v":""},{"$f":"IF(C461=$X$4,\"Enter smelter details\", IF(ISERROR($V461),\"\",OFFSET('Smelter Look-up'!$F$4,$V461-4,0)))","v":""},{"$f":"IF(ISERROR($V461),\"\",OFFSET('Smelter Look-up'!$G$4,$V461-4,0))","v":""},{"$f":"IF(ISERROR($V461),\"\",OFFSET('Smelter Look-up'!$H$4,$V461-4,0))","v":""},{"$f":"IF(ISERROR($V461),\"\",OFFSET('Smelter Look-up'!$I$4,$V461-4,0))","v":""},{"$nulls":7},{"$f":"IF(ISERROR($V461),\"\",OFFSET('Smelter Look-up'!$C$4,$V461-4,0)&\"\")","v":""},"",{"$f":"IF(B461=\"\",\"\",IF(ISERROR(MATCH($J461,SorP!$B$1:$B$6230,0)),\"\",INDIRECT(\"'SorP'!$A$\"&MATCH($J461,SorP!$B$1:$B$6230,0))))","v":""},null,{"$f":"IF(C461=\"\",NA(),MATCH($B461&$C461,'Smelter Look-up'!$J:$J,0))","v":{"$error":"#N/A"}},null,0,null,null,null,""]
[null,{"$f":"IF(LEN(A462)=0,\"\",INDEX('Smelter Look-up'!$A:$A,MATCH($A462,'Smelter Look-up'!$E:$E,0)))","v":""},{"$f":"IF(LEN(A462)=0,\"\",INDEX('Smelter Look-up'!$C:$C,MATCH($A462,'Smelter Look-up'!$E:$E,0)))","v":""},null,{"$f":"IF(ISERROR($V462),\"\",OFFSET('Smelter Look-up'!$D$4,$V462-4,0)&\"\")","v":""},{"$f":"IF(ISERROR($V462),\"\",OFFSET('Smelter Look-up'!$E$4,$V462-4,0))","v":""},{"$f":"IF(C462=$X$4,\"Enter smelter details\", IF(ISERROR($V462),\"\",OFFSET('Smelter Look-up'!$F$4,$V462-4,0)))","v":""},{"$f":"IF(ISERROR($V462),\"\",OFFSET('Smelter Look-up'!$G$4,$V462-4,0))","v":""},{"$f":"IF(ISERROR($V462),\"\",OFFSET('Smelter Look-up'!$H$4,$V462-4,0))","v":""},{"$f":"IF(ISERROR($V462),\"\",OFFSET('Smelter Look-up'!$I$4,$V462-4,0))","v":""},{"$nulls":7},{"$f":"IF(ISERROR($V462),\"\",OFFSET('Smelter Look-up'!$C$4,$V462-4,0)&\"\")","v":""},"",{"$f":"IF(B462=\"\",\"\",IF(ISERROR(MATCH($J462,SorP!$B$1:$B$6230,0)),\"\",INDIRECT(\"'SorP'!$A$\"&MATCH($J462,SorP!$B$1:$B$6230,0))))","v":""},null,{"$f":"IF(C462=\"\",NA(),MATCH($B462&$C462,'Smelter Look-up'!$J:$J,0))","v":{"$error":"#N/A"}},null,0,null,null,null,""]
[null,{"$f":"IF(LEN(A463)=0,\"\",INDEX('Smelter Look-up'!$A:$A,MATCH($A463,'Smelter Look-up'!$E:$E,0)))","v":""},{"$f":"IF(LEN(A463)=0,\"\",INDEX('Smelter Look-up'!$C:$C,MATCH($A463,'Smelter Look-up'!$E:$E,0)))","v":""},null,{"$f":"IF(ISERROR($V463),\"\",OFFSET('Smelter Look-up'!$D$4,$V463-4,0)&\"\")","v":""},{"$f":"IF(ISERROR($V463),\"\",OFFSET('Smelter Look-up'!$E$4,$V463-4,0))","v":""},{"$f":"IF(C463=$X$4,\"Enter smelter details\", IF(ISERROR($V463),\"\",OFFSET('Smelter Look-up'!$F$4,$V463-4,0)))","v":""},{"$f":"IF(ISERROR($V463),\"\",OFFSET('Smelter Look-up'!$G$4,$V463-4,0))","v":""},{"$f":"IF(ISERROR($V463),\"\",OFFSET('Smelter Look-up'!$H$4,$V463-4,0))","v":""},{"$f":"IF(ISERROR($V463),\"\",OFFSET('Smelter Look-up'!$I$4,$V463-4,0))","v":""},{"$nulls":7},{"$f":"IF(ISERROR($V463),\"\",OFFSET('Smelter Look-up'!$C$4,$V463-4,0)&\"\")","v":""},"",{"$f":"IF(B463=\"\",\"\",IF(ISERROR(MATCH($J463,SorP!$B$1:$B$6230,0)),\"\",INDIRECT(\"'SorP'!$A$\"&MATCH($J463,SorP!$B$1:$B$6230,0))))","v":""},null,{"$f":"IF(C463=\"\",NA(),MATCH($B463&$C463,'Smelter Look-up'!$J:$J,0))","v":{"$error":"#N/A"}},null,0,null,null,null,""]
[null,{"$f":"IF(LEN(A464)=0,\"\",INDEX('Smelter Look-up'!$A:$A,MATCH($A464,'Smelter Look-up'!$E:$E,0)))","v":""},{"$f":"IF(LEN(A464)=0,\"\",INDEX('Smelter Look-up'!$C:$C,MATCH($A464,'Smelter Look-up'!$E:$E,0)))","v":""},null,{"$f":"IF(ISERROR($V464),\"\",OFFSET('Smelter Look-up'!$D$4,$V464-4,0)&\"\")","v":""},{"$f":"IF(ISERROR($V464),\"\",OFFSET('Smelter Look-up'!$E$4,$V464-4,0))","v":""},{"$f":"IF(C464=$X$4,\"Enter smelter details\", IF(ISERROR($V464),\"\",OFFSET('Smelter Look-up'!$F$4,$V464-4,0)))","v":""},{"$f":"IF(ISERROR($V464),\"\",OFFSET('Smelter Look-up'!$G$4,$V464-4,0))","v":""},{"$f":"IF(ISERROR($V464),\"\",OFFSET('Smelter Look-up'!$H$4,$V464-4,0))","v":""},{"$f":"IF(ISERROR($V464),\"\",OFFSET('Smelter Look-up'!$I$4,$V464-4,0))","v":""},{"$nulls":7},{"$f":"IF(ISERROR($V464),\"\",OFFSET('Smelter Look-up'!$C$4,$V464-4,0)&\"\")","v":""},"",{"$f":"IF(B464=\"\",\"\",IF(ISERROR(MATCH($J464,SorP!$B$1:$B$6230,0)),\"\",INDIRECT(\"'SorP'!$A$\"&MATCH($J464,SorP!$B$1:$B$6230,0))))","v":""},null,{"$f":"IF(C464=\"\",NA(),MATCH($B464&$C464,'Smelter Look-up'!$J:$J,0))","v":{"$error":"#N/A"}},null,0,null,null,null,""]
[null,{"$f":"IF(LEN(A465)=0,\"\",INDEX('Smelter Look-up'!$A:$A,MATCH($A465,'Smelter Look-up'!$E:$E,0)))","v":""},{"$f":"IF(LEN(A465)=0,\"\",INDEX('Smelter Look-up'!$C:$C,MATCH($A465,'Smelter Look-up'!$E:$E,0)))","v":""},null,{"$f":"IF(ISERROR($V465),\"\",OFFSET('Smelter Look-up'!$D$4,$V465-4,0)&\"\")","v":""},{"$f":"IF(ISERROR($V465),\"\",OFFSET('Smelter Look-up'!$E$4,$V465-4,0))","v":""},{"$f":"IF(C465=$X$4,\"Enter smelter details\", IF(ISERROR($V465),\"\",OFFSET('Smelter Look-up'!$F$4,$V465-4,0)))","v":""},{"$f":"IF(ISERROR($V465),\"\",OFFSET('Smelter Look-up'!$G$4,$V465-4,0))","v":""},{"$f":"IF(ISERROR($V465),\"\",OFFSET('Smelter Look-up'!$H$4,$V465-4,0))","v":""},{"$f":"IF(ISERROR($V465),\"\",OFFSET('Smelter Look-up'!$I$4,$V465-4,0))","v":""},{"$nulls":7},{"$f":"IF(ISERROR($V465),\"\",OFFSET('Smelter Look-up'!$C$4,$V465-4,0)&\"\")","v":""},"",{"$f":"IF(B465=\"\",\"\",IF(ISERROR(MATCH($J465,SorP!$B$1:$B$6230,0)),\"\",INDIRECT(\"'SorP'!$A$\"&MATCH($J465,SorP!$B$1:$B$6230,0))))","v":""},null,{"$f":"IF(C465=\"\",NA(),MATCH($B465&$C465,'Smelter Look-up'!$J:$J,0))","v":{"$error":"#N/A"}},null,0,null,null,null,""]
[null,{"$f":"IF(LEN(A466)=0,\"\",INDEX('Smelter Look-up'!$A:$A,MATCH($A466,'Smelter Look-up'!$E:$E,0)))","v":""},{"$f":"IF(LEN(A466)=0,\"\",INDEX('Smelter Look-up'!$C:$C,MATCH($A466,'Smelter Look-up'!$E:$E,0)))","v":""},null,{"$f":"IF(ISERROR($V466),\"\",OFFSET('Smelter Look-up'!$D$4,$V466-4,0)&\"\")","v":""},{"$f":"IF(ISERROR($V466),\"\",OFFSET('Smelter Look-up'!$E$4,$V466-4,0))","v":""},{"$f":"IF(C466=$X$4,\"Enter smelter details\", IF(ISERROR($V466),\"\",OFFSET('Smelter Look-up'!$F$4,$V466-4,0)))","v":""},{"$f":"IF(ISERROR($V466),\"\",OFFSET('Smelter Look-up'!$G$4,$V466-4,0))","v":""},{"$f":"IF(ISERROR($V466),\"\",OFFSET('Smelter Look-up'!$H$4,$V466-4,0))","v":""},{"$f":"IF(ISERROR($V466),\"\",OFFSET('Smelter Look-up'!$I$4,$V466-4,0))","v":""},{"$nulls":7},{"$f":"IF(ISERROR($V466),\"\",OFFSET('Smelter Look-up'!$C$4,$V466-4,0)&\"\")","v":""},"",{"$f":"IF(B466=\"\",\"\",IF(ISERROR(MATCH($J466,SorP!$B$1:$B$6230,0)),\"\",INDIRECT(\"'SorP'!$A$\"&MATCH($J466,SorP!$B$1:$B$6230,0))))","v":""},null,{"$f":"IF(C466=\"\",NA(),MATCH($B466&$C466,'Smelter Look-up'!$J:$J,0))","v":{"$error":"#N/A"}},null,0,null,null,null,""]
[null,{"$f":"IF(LEN(A467)=0,\"\",INDEX('Smelter Look-up'!$A:$A,MATCH($A467,'Smelter Look-up'!$E:$E,0)))","v":""},{"$f":"IF(LEN(A467)=0,\"\",INDEX('Smelter Look-up'!$C:$C,MATCH($A467,'Smelter Look-up'!$E:$E,0)))","v":""},null,{"$f":"IF(ISERROR($V467),\"\",OFFSET('Smelter Look-up'!$D$4,$V467-4,0)&\"\")","v":""},{"$f":"IF(ISERROR($V467),\"\",OFFSET('Smelter Look-up'!$E$4,$V467-4,0))","v":""},{"$f":"IF(C467=$X$4,\"Enter smelter details\", IF(ISERROR($V467),\"\",OFFSET('Smelter Look-up'!$F$4,$V467-4,0)))","v":""},{"$f":"IF(ISERROR($V467),\"\",OFFSET('Smelter Look-up'!$G$4,$V467-4,0))","v":""},{"$f":"IF(ISERROR($V467),\"\",OFFSET('Smelter Look-up'!$H$4,$V467-4,0))","v":""},{"$f":"IF(ISERROR($V467),\"\",OFFSET('Smelter Look-up'!$I$4,$V467-4,0))","v":""},{"$nulls":7},{"$f":"IF(ISERROR($V467),\"\",OFFSET('Smelter Look-up'!$C$4,$V467-4,0)&\"\")","v":""},"",{"$f":"IF(B467=\"\",\"\",IF(ISERROR(MATCH($J467,SorP!$B$1:$B$6230,0)),\"\",INDIRECT(\"'SorP'!$A$\"&MATCH($J467,SorP!$B$1:$B$6230,0))))","v":""},null,{"$f":"IF(C467=\"\",NA(),MATCH($B467&$C467,'Smelter Look-up'!$J:$J,0))","v":{"$error":"#N/A"}},null,0,null,null,null,""]
[null,{"$f":"IF(LEN(A468)=0,\"\",INDEX('Smelter Look-up'!$A:$A,MATCH($A468,'Smelter Look-up'!$E:$E,0)))","v":""},{"$f":"IF(LEN(A468)=0,\"\",INDEX('Smelter Look-up'!$C:$C,MATCH($A468,'Smelter Look-up'!$E:$E,0)))","v":""},null,{"$f":"IF(ISERROR($V468),\"\",OFFSET('Smelter Look-up'!$D$4,$V468-4,0)&\"\")","v":""},{"$f":"IF(ISERROR($V468),\"\",OFFSET('Smelter Look-up'!$E$4,$V468-4,0))","v":""},{"$f":"IF(C468=$X$4,\"Enter smelter details\", IF(ISERROR($V468),\"\",OFFSET('Smelter Look-up'!$F$4,$V468-4,0)))","v":""},{"$f":"IF(ISERROR($V468),\"\",OFFSET('Smelter Look-up'!$G$4,$V468-4,0))","v":""},{"$f":"IF(ISERROR($V468),\"\",OFFSET('Smelter Look-up'!$H$4,$V468-4,0))","v":""},{"$f":"IF(ISERROR($V468),\"\",OFFSET('Smelter Look-up'!$I$4,$V468-4,0))","v":""},{"$nulls":7},{"$f":"IF(ISERROR($V468),\"\",OFFSET('Smelter Look-up'!$C$4,$V468-4,0)&\"\")","v":""},"",{"$f":"IF(B468=\"\",\"\",IF(ISERROR(MATCH($J468,SorP!$B$1:$B$6230,0)),\"\",INDIRECT(\"'SorP'!$A$\"&MATCH($J468,SorP!$B$1:$B$6230,0))))","v":""},null,{"$f":"IF(C468=\"\",NA(),MATCH($B468&$C468,'Smelter Look-up'!$J:$J,0))","v":{"$error":"#N/A"}},null,0,null,null,null,""]
[null,{"$f":"IF(LEN(A469)=0,\"\",INDEX('Smelter Look-up'!$A:$A,MATCH($A469,'Smelter Look-up'!$E:$E,0)))","v":""},{"$f":"IF(LEN(A469)=0,\"\",INDEX('Smelter Look-up'!$C:$C,MATCH($A469,'Smelter Look-up'!$E:$E,0)))","v":""},null,{"$f":"IF(ISERROR($V469),\"\",OFFSET('Smelter Look-up'!$D$4,$V469-4,0)&\"\")","v":""},{"$f":"IF(ISERROR($V469),\"\",OFFSET('Smelter Look-up'!$E$4,$V469-4,0))","v":""},{"$f":"IF(C469=$X$4,\"Enter smelter details\", IF(ISERROR($V469),\"\",OFFSET('Smelter Look-up'!$F$4,$V469-4,0)))","v":""},{"$f":"IF(ISERROR($V469),\"\",OFFSET('Smelter Look-up'!$G$4,$V469-4,0))","v":""},{"$f":"IF(ISERROR($V469),\"\",OFFSET('Smelter Look-up'!$H$4,$V469-4,0))","v":""},{"$f":"IF(ISERROR($V469),\"\",OFFSET('Smelter Look-up'!$I$4,$V469-4,0))","v":""},{"$nulls":7},{"$f":"IF(ISERROR($V469),\"\",OFFSET('Smelter Look-up'!$C$4,$V469-4,0)&\"\")","v":""},"",{"$f":"IF(B469=\"\",\"\",IF(ISERROR(MATCH($J469,SorP!$B$1:$B$6230,0)),\"\",INDIRECT(\"'SorP'!$A$\"&MATCH($J469,SorP!$B$1:$B$6230,0))))","v":""},null,{"$f":"IF(C469=\"\",NA(),MATCH($B469&$C469,'Smelter Look-up'!$J:$J,0))","v":{"$error":"#N/A"}},null,0,null,null,null,""]
[null,{"$f":"IF(LEN(A470)=0,\"\",INDEX('Smelter Look-up'!$A:$A,MATCH($A470,'Smelter Look-up'!$E:$E,0)))","v":""},{"$f":"IF(LEN(A470)=0,\"\",INDEX('Smelter Look-up'!$C:$C,MATCH($A470,'Smelter Look-up'!$E:$E,0)))","v":""},null,{"$f":"IF(ISERROR($V470),\"\",OFFSET('Smelter Look-up'!$D$4,$V470-4,0)&\"\")","v":""},{"$f":"IF(ISERROR($V470),\"\",OFFSET('Smelter Look-up'!$E$4,$V470-4,0))","v":""},{"$f":"IF(C470=$X$4,\"Enter smelter details\", IF(ISERROR($V470),\"\",OFFSET('Smelter Look-up'!$F$4,$V470-4,0)))","v":""},{"$f":"IF(ISERROR($V470),\"\",OFFSET('Smelter Look-up'!$G$4,$V470-4,0))","v":""},{"$f":"IF(ISERROR($V470),\"\",OFFSET('Smelter Look-up'!$H$4,$V470-4,0))","v":""},{"$f":"IF(ISERROR($V470),\"\",OFFSET('Smelter Look-up'!$I$4,$V470-4,0))","v":""},{"$nulls":7},{"$f":"IF(ISERROR($V470),\"\",OFFSET('Smelter Look-up'!$C$4,$V470-4,0)&\"\")","v":""},"",{"$f":"IF(B470=\"\",\"\",IF(ISERROR(MATCH($J470,SorP!$B$1:$B$6230,0)),\"\",INDIRECT(\"'SorP'!$A$\"&MATCH($J470,SorP!$B$1:$B$6230,0))))","v":""},null,{"$f":"IF(C470=\"\",NA(),MATCH($B470&$C470,'Smelter Look-up'!$J:$J,0))","v":{"$error":"#N/A"}},null,0,null,null,null,""]
[null,{"$f":"IF(LEN(A471)=0,\"\",INDEX('Smelter Look-up'!$A:$A,MATCH($A471,'Smelter Look-up'!$E:$E,0)))","v":""},{"$f":"IF(LEN(A471)=0,\"\",INDEX('Smelter Look-up'!$C:$C,MATCH($A471,'Smelter Look-up'!$E:$E,0)))","v":""},null,{"$f":"IF(ISERROR($V471),\"\",OFFSET('Smelter Look-up'!$D$4,$V471-4,0)&\"\")","v":""},{"$f":"IF(ISERROR($V471),\"\",OFFSET('Smelter Look-up'!$E$4,$V471-4,0))","v":""},{"$f":"IF(C471=$X$4,\"Enter smelter details\", IF(ISERROR($V471),\"\",OFFSET('Smelter Look-up'!$F$4,$V471-4,0)))","v":""},{"$f":"IF(ISERROR($V471),\"\",OFFSET('Smelter Look-up'!$G$4,$V471-4,0))","v":""},{"$f":"IF(ISERROR($V471),\"\",OFFSET('Smelter Look-up'!$H$4,$V471-4,0))","v":""},{"$f":"IF(ISERROR($V471),\"\",OFFSET('Smelter Look-up'!$I$4,$V471-4,0))","v":""},{"$nulls":7},{"$f":"IF(ISERROR($V471),\"\",OFFSET('Smelter Look-up'!$C$4,$V471-4,0)&\"\")","v":""},"",{"$f":"IF(B471=\"\",\"\",IF(ISERROR(MATCH($J471,SorP!$B$1:$B$6230,0)),\"\",INDIRECT(\"'SorP'!$A$\"&MATCH($J471,SorP!$B$1:$B$6230,0))))","v":""},null,{"$f":"IF(C471=\"\",NA(),MATCH($B471&$C471,'Smelter Look-up'!$J:$J,0))","v":{"$error":"#N/A"}},null,0,null,null,null,""]
[null,{"$f":"IF(LEN(A472)=0,\"\",INDEX('Smelter Look-up'!$A:$A,MATCH($A472,'Smelter Look-up'!$E:$E,0)))","v":""},{"$f":"IF(LEN(A472)=0,\"\",INDEX('Smelter Look-up'!$C:$C,MATCH($A472,'Smelter Look-up'!$E:$E,0)))","v":""},null,{"$f":"IF(ISERROR($V472),\"\",OFFSET('Smelter Look-up'!$D$4,$V472-4,0)&\"\")","v":""},{"$f":"IF(ISERROR($V472),\"\",OFFSET('Smelter Look-up'!$E$4,$V472-4,0))","v":""},{"$f":"IF(C472=$X$4,\"Enter smelter details\", IF(ISERROR($V472),\"\",OFFSET('Smelter Look-up'!$F$4,$V472-4,0)))","v":""},{"$f":"IF(ISERROR($V472),\"\",OFFSET('Smelter Look-up'!$G$4,$V472-4,0))","v":""},{"$f":"IF(ISERROR($V472),\"\",OFFSET('Smelter Look-up'!$H$4,$V472-4,0))","v":""},{"$f":"IF(ISERROR($V472),\"\",OFFSET('Smelter Look-up'!$I$4,$V472-4,0))","v":""},{"$nulls":7},{"$f":"IF(ISERROR($V472),\"\",OFFSET('Smelter Look-up'!$C$4,$V472-4,0)&\"\")","v":""},"",{"$f":"IF(B472=\"\",\"\",IF(ISERROR(MATCH($J472,SorP!$B$1:$B$6230,0)),\"\",INDIRECT(\"'SorP'!$A$\"&MATCH($J472,SorP!$B$1:$B$6230,0))))","v":""},null,{"$f":"IF(C472=\"\",NA(),MATCH($B472&$C472,'Smelter Look-up'!$J:$J,0))","v":{"$error":"#N/A"}},null,0,null,null,null,""]
[null,{"$f":"IF(LEN(A473)=0,\"\",INDEX('Smelter Look-up'!$A:$A,MATCH($A473,'Smelter Look-up'!$E:$E,0)))","v":""},{"$f":"IF(LEN(A473)=0,\"\",INDEX('Smelter Look-up'!$C:$C,MATCH($A473,'Smelter Look-up'!$E:$E,0)))","v":""},null,{"$f":"IF(ISERROR($V473),\"\",OFFSET('Smelter Look-up'!$D$4,$V473-4,0)&\"\")","v":""},{"$f":"IF(ISERROR($V473),\"\",OFFSET('Smelter Look-up'!$E$4,$V473-4,0))","v":""},{"$f":"IF(C473=$X$4,\"Enter smelter details\", IF(ISERROR($V473),\"\",OFFSET('Smelter Look-up'!$F$4,$V473-4,0)))","v":""},{"$f":"IF(ISERROR($V473),\"\",OFFSET('Smelter Look-up'!$G$4,$V473-4,0))","v":""},{"$f":"IF(ISERROR($V473),\"\",OFFSET('Smelter Look-up'!$H$4,$V473-4,0))","v":""},{"$f":"IF(ISERROR($V473),\"\",OFFSET('Smelter Look-up'!$I$4,$V473-4,0))","v":""},{"$nulls":7},{"$f":"IF(ISERROR($V473),\"\",OFFSET('Smelter Look-up'!$C$4,$V473-4,0)&\"\")","v":""},"",{"$f":"IF(B473=\"\",\"\",IF(ISERROR(MATCH($J473,SorP!$B$1:$B$6230,0)),\"\",INDIRECT(\"'SorP'!$A$\"&MATCH($J473,SorP!$B$1:$B$6230,0))))","v":""},null,{"$f":"IF(C473=\"\",NA(),MATCH($B473&$C473,'Smelter Look-up'!$J:$J,0))","v":{"$error":"#N/A"}},null,0,null,null,null,""]
[null,{"$f":"IF(LEN(A474)=0,\"\",INDEX('Smelter Look-up'!$A:$A,MATCH($A474,'Smelter Look-up'!$E:$E,0)))","v":""},{"$f":"IF(LEN(A474)=0,\"\",INDEX('Smelter Look-up'!$C:$C,MATCH($A474,'Smelter Look-up'!$E:$E,0)))","v":""},null,{"$f":"IF(ISERROR($V474),\"\",OFFSET('Smelter Look-up'!$D$4,$V474-4,0)&\"\")","v":""},{"$f":"IF(ISERROR($V474),\"\",OFFSET('Smelter Look-up'!$E$4,$V474-4,0))","v":""},{"$f":"IF(C474=$X$4,\"Enter smelter details\", IF(ISERROR($V474),\"\",OFFSET('Smelter Look-up'!$F$4,$V474-4,0)))","v":""},{"$f":"IF(ISERROR($V474),\"\",OFFSET('Smelter Look-up'!$G$4,$V474-4,0))","v":""},{"$f":"IF(ISERROR($V474),\"\",OFFSET('Smelter Look-up'!$H$4,$V474-4,0))","v":""},{"$f":"IF(ISERROR($V474),\"\",OFFSET('Smelter Look-up'!$I$4,$V474-4,0))","v":""},{"$nulls":7},{"$f":"IF(ISERROR($V474),\"\",OFFSET('Smelter Look-up'!$C$4,$V474-4,0)&\"\")","v":""},"",{"$f":"IF(B474=\"\",\"\",IF(ISERROR(MATCH($J474,SorP!$B$1:$B$6230,0)),\"\",INDIRECT(\"'SorP'!$A$\"&MATCH($J474,SorP!$B$1:$B$6230,0))))","v":""},null,{"$f":"IF(C474=\"\",NA(),MATCH($B474&$C474,'Smelter Look-up'!$J:$J,0))","v":{"$error":"#N/A"}},null,0,null,null,null,""]
[null,{"$f":"IF(LEN(A475)=0,\"\",INDEX('Smelter Look-up'!$A:$A,MATCH($A475,'Smelter Look-up'!$E:$E,0)))","v":""},{"$f":"IF(LEN(A475)=0,\"\",INDEX('Smelter Look-up'!$C:$C,MATCH($A475,'Smelter Look-up'!$E:$E,0)))","v":""},null,{"$f":"IF(ISERROR($V475),\"\",OFFSET('Smelter Look-up'!$D$4,$V475-4,0)&\"\")","v":""},{"$f":"IF(ISERROR($V475),\"\",OFFSET('Smelter Look-up'!$E$4,$V475-4,0))","v":""},{"$f":"IF(C475=$X$4,\"Enter smelter details\", IF(ISERROR($V475),\"\",OFFSET('Smelter Look-up'!$F$4,$V475-4,0)))","v":""},{"$f":"IF(ISERROR($V475),\"\",OFFSET('Smelter Look-up'!$G$4,$V475-4,0))","v":""},{"$f":"IF(ISERROR($V475),\"\",OFFSET('Smelter Look-up'!$H$4,$V475-4,0))","v":""},{"$f":"IF(ISERROR($V475),\"\",OFFSET('Smelter Look-up'!$I$4,$V475-4,0))","v":""},{"$nulls":7},{"$f":"IF(ISERROR($V475),\"\",OFFSET('Smelter Look-up'!$C$4,$V475-4,0)&\"\")","v":""},"",{"$f":"IF(B475=\"\",\"\",IF(ISERROR(MATCH($J475,SorP!$B$1:$B$6230,0)),\"\",INDIRECT(\"'SorP'!$A$\"&MATCH($J475,SorP!$B$1:$B$6230,0))))","v":""},null,{"$f":"IF(C475=\"\",NA(),MATCH($B475&$C475,'Smelter Look-up'!$J:$J,0))","v":{"$error":"#N/A"}},null,0,null,null,null,""]
[null,{"$f":"IF(LEN(A476)=0,\"\",INDEX('Smelter Look-up'!$A:$A,MATCH($A476,'Smelter Look-up'!$E:$E,0)))","v":""},{"$f":"IF(LEN(A476)=0,\"\",INDEX('Smelter Look-up'!$C:$C,MATCH($A476,'Smelter Look-up'!$E:$E,0)))","v":""},null,{"$f":"IF(ISERROR($V476),\"\",OFFSET('Smelter Look-up'!$D$4,$V476-4,0)&\"\")","v":""},{"$f":"IF(ISERROR($V476),\"\",OFFSET('Smelter Look-up'!$E$4,$V476-4,0))","v":""},{"$f":"IF(C476=$X$4,\"Enter smelter details\", IF(ISERROR($V476),\"\",OFFSET('Smelter Look-up'!$F$4,$V476-4,0)))","v":""},{"$f":"IF(ISERROR($V476),\"\",OFFSET('Smelter Look-up'!$G$4,$V476-4,0))","v":""},{"$f":"IF(ISERROR($V476),\"\",OFFSET('Smelter Look-up'!$H$4,$V476-4,0))","v":""},{"$f":"IF(ISERROR($V476),\"\",OFFSET('Smelter Look-up'!$I$4,$V476-4,0))","v":""},{"$nulls":7},{"$f":"IF(ISERROR($V476),\"\",OFFSET('Smelter Look-up'!$C$4,$V476-4,0)&\"\")","v":""},"",{"$f":"IF(B476=\"\",\"\",IF(ISERROR(MATCH($J476,SorP!$B$1:$B$6230,0)),\"\",INDIRECT(\"'SorP'!$A$\"&MATCH($J476,SorP!$B$1:$B$6230,0))))","v":""},null,{"$f":"IF(C476=\"\",NA(),MATCH($B476&$C476,'Smelter Look-up'!$J:$J,0))","v":{"$error":"#N/A"}},null,0,null,null,null,""]
[null,{"$f":"IF(LEN(A477)=0,\"\",INDEX('Smelter Look-up'!$A:$A,MATCH($A477,'Smelter Look-up'!$E:$E,0)))","v":""},{"$f":"IF(LEN(A477)=0,\"\",INDEX('Smelter Look-up'!$C:$C,MATCH($A477,'Smelter Look-up'!$E:$E,0)))","v":""},null,{"$f":"IF(ISERROR($V477),\"\",OFFSET('Smelter Look-up'!$D$4,$V477-4,0)&\"\")","v":""},{"$f":"IF(ISERROR($V477),\"\",OFFSET('Smelter Look-up'!$E$4,$V477-4,0))","v":""},{"$f":"IF(C477=$X$4,\"Enter smelter details\", IF(ISERROR($V477),\"\",OFFSET('Smelter Look-up'!$F$4,$V477-4,0)))","v":""},{"$f":"IF(ISERROR($V477),\"\",OFFSET('Smelter Look-up'!$G$4,$V477-4,0))","v":""},{"$f":"IF(ISERROR($V477),\"\",OFFSET('Smelter Look-up'!$H$4,$V477-4,0))","v":""},{"$f":"IF(ISERROR($V477),\"\",OFFSET('Smelter Look-up'!$I$4,$V477-4,0))","v":""},{"$nulls":7},{"$f":"IF(ISERROR($V477),\"\",OFFSET('Smelter Look-up'!$C$4,$V477-4,0)&\"\")","v":""},"",{"$f":"IF(B477=\"\",\"\",IF(ISERROR(MATCH($J477,SorP!$B$1:$B$6230,0)),\"\",INDIRECT(\"'SorP'!$A$\"&MATCH($J477,SorP!$B$1:$B$6230,0))))","v":""},null,{"$f":"IF(C477=\"\",NA(),MATCH($B477&$C477,'Smelter Look-up'!$J:$J,0))","v":{"$error":"#N/A"}},null,0,null,null,null,""]
[null,{"$f":"IF(LEN(A478)=0,\"\",INDEX('Smelter Look-up'!$A:$A,MATCH($A478,'Smelter Look-up'!$E:$E,0)))","v":""},{"$f":"IF(LEN(A478)=0,\"\",INDEX('Smelter Look-up'!$C:$C,MATCH($A478,'Smelter Look-up'!$E:$E,0)))","v":""},null,{"$f":"IF(ISERROR($V478),\"\",OFFSET('Smelter Look-up'!$D$4,$V478-4,0)&\"\")","v":""},{"$f":"IF(ISERROR($V478),\"\",OFFSET('Smelter Look-up'!$E$4,$V478-4,0))","v":""},{"$f":"IF(C478=$X$4,\"Enter smelter details\", IF(ISERROR($V478),\"\",OFFSET('Smelter Look-up'!$F$4,$V478-4,0)))","v":""},{"$f":"IF(ISERROR($V478),\"\",OFFSET('Smelter Look-up'!$G$4,$V478-4,0))","v":""},{"$f":"IF(ISERROR($V478),\"\",OFFSET('Smelter Look-up'!$H$4,$V478-4,0))","v":""},{"$f":"IF(ISERROR($V478),\"\",OFFSET('Smelter Look-up'!$I$4,$V478-4,0))","v":""},{"$nulls":7},{"$f":"IF(ISERROR($V478),\"\",OFFSET('Smelter Look-up'!$C$4,$V478-4,0)&\"\")","v":""},"",{"$f":"IF(B478=\"\",\"\",IF(ISERROR(MATCH($J478,SorP!$B$1:$B$6230,0)),\"\",INDIRECT(\"'SorP'!$A$\"&MATCH($J478,SorP!$B$1:$B$6230,0))))","v":""},null,{"$f":"IF(C478=\"\",NA(),MATCH($B478&$C478,'Smelter Look-up'!$J:$J,0))","v":{"$error":"#N/A"}},null,0,null,null,null,""]
[null,{"$f":"IF(LEN(A479)=0,\"\",INDEX('Smelter Look-up'!$A:$A,MATCH($A479,'Smelter Look-up'!$E:$E,0)))","v":""},{"$f":"IF(LEN(A479)=0,\"\",INDEX('Smelter Look-up'!$C:$C,MATCH($A479,'Smelter Look-up'!$E:$E,0)))","v":""},null,{"$f":"IF(ISERROR($V479),\"\",OFFSET('Smelter Look-up'!$D$4,$V479-4,0)&\"\")","v":""},{"$f":"IF(ISERROR($V479),\"\",OFFSET('Smelter Look-up'!$E$4,$V479-4,0))","v":""},{"$f":"IF(C479=$X$4,\"Enter smelter details\", IF(ISERROR($V479),\"\",OFFSET('Smelter Look-up'!$F$4,$V479-4,0)))","v":""},{"$f":"IF(ISERROR($V479),\"\",OFFSET('Smelter Look-up'!$G$4,$V479-4,0))","v":""},{"$f":"IF(ISERROR($V479),\"\",OFFSET('Smelter Look-up'!$H$4,$V479-4,0))","v":""},{"$f":"IF(ISERROR($V479),\"\",OFFSET('Smelter Look-up'!$I$4,$V479-4,0))","v":""},{"$nulls":7},{"$f":"IF(ISERROR($V479),\"\",OFFSET('Smelter Look-up'!$C$4,$V479-4,0)&\"\")","v":""},"",{"$f":"IF(B479=\"\",\"\",IF(ISERROR(MATCH($J479,SorP!$B$1:$B$6230,0)),\"\",INDIRECT(\"'SorP'!$A$\"&MATCH($J479,SorP!$B$1:$B$6230,0))))","v":""},null,{"$f":"IF(C479=\"\",NA(),MATCH($B479&$C479,'Smelter Look-up'!$J:$J,0))","v":{"$error":"#N/A"}},null,0,null,null,null,""]
[null,{"$f":"IF(LEN(A480)=0,\"\",INDEX('Smelter Look-up'!$A:$A,MATCH($A480,'Smelter Look-up'!$E:$E,0)))","v":""},{"$f":"IF(LEN(A480)=0,\"\",INDEX('Smelter Look-up'!$C:$C,MATCH($A480,'Smelter Look-up'!$E:$E,0)))","v":""},null,{"$f":"IF(ISERROR($V480),\"\",OFFSET('Smelter Look-up'!$D$4,$V480-4,0)&\"\")","v":""},{"$f":"IF(ISERROR($V480),\"\",OFFSET('Smelter Look-up'!$E$4,$V480-4,0))","v":""},{"$f":"IF(C480=$X$4,\"Enter smelter details\", IF(ISERROR($V480),\"\",OFFSET('Smelter Look-up'!$F$4,$V480-4,0)))","v":""},{"$f":"IF(ISERROR($V480),\"\",OFFSET('Smelter Look-up'!$G$4,$V480-4,0))","v":""},{"$f":"IF(ISERROR($V480),\"\",OFFSET('Smelter Look-up'!$H$4,$V480-4,0))","v":""},{"$f":"IF(ISERROR($V480),\"\",OFFSET('Smelter Look-up'!$I$4,$V480-4,0))","v":""},{"$nulls":7},{"$f":"IF(ISERROR($V480),\"\",OFFSET('Smelter Look-up'!$C$4,$V480-4,0)&\"\")","v":""},"",{"$f":"IF(B480=\"\",\"\",IF(ISERROR(MATCH($J480,SorP!$B$1:$B$6230,0)),\"\",INDIRECT(\"'SorP'!$A$\"&MATCH($J480,SorP!$B$1:$B$6230,0))))","v":""},null,{"$f":"IF(C480=\"\",NA(),MATCH($B480&$C480,'Smelter Look-up'!$J:$J,0))","v":{"$error":"#N/A"}},null,0,null,null,null,""]
[null,{"$f":"IF(LEN(A481)=0,\"\",INDEX('Smelter Look-up'!$A:$A,MATCH($A481,'Smelter Look-up'!$E:$E,0)))","v":""},{"$f":"IF(LEN(A481)=0,\"\",INDEX('Smelter Look-up'!$C:$C,MATCH($A481,'Smelter Look-up'!$E:$E,0)))","v":""},null,{"$f":"IF(ISERROR($V481),\"\",OFFSET('Smelter Look-up'!$D$4,$V481-4,0)&\"\")","v":""},{"$f":"IF(ISERROR($V481),\"\",OFFSET('Smelter Look-up'!$E$4,$V481-4,0))","v":""},{"$f":"IF(C481=$X$4,\"Enter smelter details\", IF(ISERROR($V481),\"\",OFFSET('Smelter Look-up'!$F$4,$V481-4,0)))","v":""},{"$f":"IF(ISERROR($V481),\"\",OFFSET('Smelter Look-up'!$G$4,$V481-4,0))","v":""},{"$f":"IF(ISERROR($V481),\"\",OFFSET('Smelter Look-up'!$H$4,$V481-4,0))","v":""},{"$f":"IF(ISERROR($V481),\"\",OFFSET('Smelter Look-up'!$I$4,$V481-4,0))","v":""},{"$nulls":7},{"$f":"IF(ISERROR($V481),\"\",OFFSET('Smelter Look-up'!$C$4,$V481-4,0)&\"\")","v":""},"",{"$f":"IF(B481=\"\",\"\",IF(ISERROR(MATCH($J481,SorP!$B$1:$B$6230,0)),\"\",INDIRECT(\"'SorP'!$A$\"&MATCH($J481,SorP!$B$1:$B$6230,0))))","v":""},null,{"$f":"IF(C481=\"\",NA(),MATCH($B481&$C481,'Smelter Look-up'!$J:$J,0))","v":{"$error":"#N/A"}},null,0,null,null,null,""]
[null,{"$f":"IF(LEN(A482)=0,\"\",INDEX('Smelter Look-up'!$A:$A,MATCH($A482,'Smelter Look-up'!$E:$E,0)))","v":""},{"$f":"IF(LEN(A482)=0,\"\",INDEX('Smelter Look-up'!$C:$C,MATCH($A482,'Smelter Look-up'!$E:$E,0)))","v":""},null,{"$f":"IF(ISERROR($V482),\"\",OFFSET('Smelter Look-up'!$D$4,$V482-4,0)&\"\")","v":""},{"$f":"IF(ISERROR($V482),\"\",OFFSET('Smelter Look-up'!$E$4,$V482-4,0))","v":""},{"$f":"IF(C482=$X$4,\"Enter smelter details\", IF(ISERROR($V482),\"\",OFFSET('Smelter Look-up'!$F$4,$V482-4,0)))","v":""},{"$f":"IF(ISERROR($V482),\"\",OFFSET('Smelter Look-up'!$G$4,$V482-4,0))","v":""},{"$f":"IF(ISERROR($V482),\"\",OFFSET('Smelter Look-up'!$H$4,$V482-4,0))","v":""},{"$f":"IF(ISERROR($V482),\"\",OFFSET('Smelter Look-up'!$I$4,$V482-4,0))","v":""},{"$nulls":7},{"$f":"IF(ISERROR($V482),\"\",OFFSET('Smelter Look-up'!$C$4,$V482-4,0)&\"\")","v":""},"",{"$f":"IF(B482=\"\",\"\",IF(ISERROR(MATCH($J482,SorP!$B$1:$B$6230,0)),\"\",INDIRECT(\"'SorP'!$A$\"&MATCH($J482,SorP!$B$1:$B$6230,0))))","v":""},null,{"$f":"IF(C482=\"\",NA(),MATCH($B482&$C482,'Smelter Look-up'!$J:$J,0))","v":{"$error":"#N/A"}},null,0,null,null,null,""]
[null,{"$f":"IF(LEN(A483)=0,\"\",INDEX('Smelter Look-up'!$A:$A,MATCH($A483,'Smelter Look-up'!$E:$E,0)))","v":""},{"$f":"IF(LEN(A483)=0,\"\",INDEX('Smelter Look-up'!$C:$C,MATCH($A483,'Smelter Look-up'!$E:$E,0)))","v":""},null,{"$f":"IF(ISERROR($V483),\"\",OFFSET('Smelter Look-up'!$D$4,$V483-4,0)&\"\")","v":""},{"$f":"IF(ISERROR($V483),\"\",OFFSET('Smelter Look-up'!$E$4,$V483-4,0))","v":""},{"$f":"IF(C483=$X$4,\"Enter smelter details\", IF(ISERROR($V483),\"\",OFFSET('Smelter Look-up'!$F$4,$V483-4,0)))","v":""},{"$f":"IF(ISERROR($V483),\"\",OFFSET('Smelter Look-up'!$G$4,$V483-4,0))","v":""},{"$f":"IF(ISERROR($V483),\"\",OFFSET('Smelter Look-up'!$H$4,$V483-4,0))","v":""},{"$f":"IF(ISERROR($V483),\"\",OFFSET('Smelter Look-up'!$I$4,$V483-4,0))","v":""},{"$nulls":7},{"$f":"IF(ISERROR($V483),\"\",OFFSET('Smelter Look-up'!$C$4,$V483-4,0)&\"\")","v":""},"",{"$f":"IF(B483=\"\",\"\",IF(ISERROR(MATCH($J483,SorP!$B$1:$B$6230,0)),\"\",INDIRECT(\"'SorP'!$A$\"&MATCH($J483,SorP!$B$1:$B$6230,0))))","v":""},null,{"$f":"IF(C483=\"\",NA(),MATCH($B483&$C483,'Smelter Look-up'!$J:$J,0))","v":{"$error":"#N/A"}},null,0,null,null,null,""]
[null,{"$f":"IF(LEN(A484)=0,\"\",INDEX('Smelter Look-up'!$A:$A,MATCH($A484,'Smelter Look-up'!$E:$E,0)))","v":""},{"$f":"IF(LEN(A484)=0,\"\",INDEX('Smelter Look-up'!$C:$C,MATCH($A484,'Smelter Look-up'!$E:$E,0)))","v":""},null,{"$f":"IF(ISERROR($V484),\"\",OFFSET('Smelter Look-up'!$D$4,$V484-4,0)&\"\")","v":""},{"$f":"IF(ISERROR($V484),\"\",OFFSET('Smelter Look-up'!$E$4,$V484-4,0))","v":""},{"$f":"IF(C484=$X$4,\"Enter smelter details\", IF(ISERROR($V484),\"\",OFFSET('Smelter Look-up'!$F$4,$V484-4,0)))","v":""},{"$f":"IF(ISERROR($V484),\"\",OFFSET('Smelter Look-up'!$G$4,$V484-4,0))","v":""},{"$f":"IF(ISERROR($V484),\"\",OFFSET('Smelter Look-up'!$H$4,$V484-4,0))","v":""},{"$f":"IF(ISERROR($V484),\"\",OFFSET('Smelter Look-up'!$I$4,$V484-4,0))","v":""},{"$nulls":7},{"$f":"IF(ISERROR($V484),\"\",OFFSET('Smelter Look-up'!$C$4,$V484-4,0)&\"\")","v":""},"",{"$f":"IF(B484=\"\",\"\",IF(ISERROR(MATCH($J484,SorP!$B$1:$B$6230,0)),\"\",INDIRECT(\"'SorP'!$A$\"&MATCH($J484,SorP!$B$1:$B$6230,0))))","v":""},null,{"$f":"IF(C484=\"\",NA(),MATCH($B484&$C484,'Smelter Look-up'!$J:$J,0))","v":{"$error":"#N/A"}},null,0,null,null,null,""]
[null,{"$f":"IF(LEN(A485)=0,\"\",INDEX('Smelter Look-up'!$A:$A,MATCH($A485,'Smelter Look-up'!$E:$E,0)))","v":""},{"$f":"IF(LEN(A485)=0,\"\",INDEX('Smelter Look-up'!$C:$C,MATCH($A485,'Smelter Look-up'!$E:$E,0)))","v":""},null,{"$f":"IF(ISERROR($V485),\"\",OFFSET('Smelter Look-up'!$D$4,$V485-4,0)&\"\")","v":""},{"$f":"IF(ISERROR($V485),\"\",OFFSET('Smelter Look-up'!$E$4,$V485-4,0))","v":""},{"$f":"IF(C485=$X$4,\"Enter smelter details\", IF(ISERROR($V485),\"\",OFFSET('Smelter Look-up'!$F$4,$V485-4,0)))","v":""},{"$f":"IF(ISERROR($V485),\"\",OFFSET('Smelter Look-up'!$G$4,$V485-4,0))","v":""},{"$f":"IF(ISERROR($V485),\"\",OFFSET('Smelter Look-up'!$H$4,$V485-4,0))","v":""},{"$f":"IF(ISERROR($V485),\"\",OFFSET('Smelter Look-up'!$I$4,$V485-4,0))","v":""},{"$nulls":7},{"$f":"IF(ISERROR($V485),\"\",OFFSET('Smelter Look-up'!$C$4,$V485-4,0)&\"\")","v":""},"",{"$f":"IF(B485=\"\",\"\",IF(ISERROR(MATCH($J485,SorP!$B$1:$B$6230,0)),\"\",INDIRECT(\"'SorP'!$A$\"&MATCH($J485,SorP!$B$1:$B$6230,0))))","v":""},null,{"$f":"IF(C485=\"\",NA(),MATCH($B485&$C485,'Smelter Look-up'!$J:$J,0))","v":{"$error":"#N/A"}},null,0,null,null,null,""]
[null,{"$f":"IF(LEN(A486)=0,\"\",INDEX('Smelter Look-up'!$A:$A,MATCH($A486,'Smelter Look-up'!$E:$E,0)))","v":""},{"$f":"IF(LEN(A486)=0,\"\",INDEX('Smelter Look-up'!$C:$C,MATCH($A486,'Smelter Look-up'!$E:$E,0)))","v":""},null,{"$f":"IF(ISERROR($V486),\"\",OFFSET('Smelter Look-up'!$D$4,$V486-4,0)&\"\")","v":""},{"$f":"IF(ISERROR($V486),\"\",OFFSET('Smelter Look-up'!$E$4,$V486-4,0))","v":""},{"$f":"IF(C486=$X$4,\"Enter smelter details\", IF(ISERROR($V486),\"\",OFFSET('Smelter Look-up'!$F$4,$V486-4,0)))","v":""},{"$f":"IF(ISERROR($V486),\"\",OFFSET('Smelter Look-up'!$G$4,$V486-4,0))","v":""},{"$f":"IF(ISERROR($V486),\"\",OFFSET('Smelter Look-up'!$H$4,$V486-4,0))","v":""},{"$f":"IF(ISERROR($V486),\"\",OFFSET('Smelter Look-up'!$I$4,$V486-4,0))","v":""},{"$nulls":7},{"$f":"IF(ISERROR($V486),\"\",OFFSET('Smelter Look-up'!$C$4,$V486-4,0)&\"\")","v":""},"",{"$f":"IF(B486=\"\",\"\",IF(ISERROR(MATCH($J486,SorP!$B$1:$B$6230,0)),\"\",INDIRECT(\"'SorP'!$A$\"&MATCH($J486,SorP!$B$1:$B$6230,0))))","v":""},null,{"$f":"IF(C486=\"\",NA(),MATCH($B486&$C486,'Smelter Look-up'!$J:$J,0))","v":{"$error":"#N/A"}},null,0,null,null,null,""]
[null,{"$f":"IF(LEN(A487)=0,\"\",INDEX('Smelter Look-up'!$A:$A,MATCH($A487,'Smelter Look-up'!$E:$E,0)))","v":""},{"$f":"IF(LEN(A487)=0,\"\",INDEX('Smelter Look-up'!$C:$C,MATCH($A487,'Smelter Look-up'!$E:$E,0)))","v":""},null,{"$f":"IF(ISERROR($V487),\"\",OFFSET('Smelter Look-up'!$D$4,$V487-4,0)&\"\")","v":""},{"$f":"IF(ISERROR($V487),\"\",OFFSET('Smelter Look-up'!$E$4,$V487-4,0))","v":""},{"$f":"IF(C487=$X$4,\"Enter smelter details\", IF(ISERROR($V487),\"\",OFFSET('Smelter Look-up'!$F$4,$V487-4,0)))","v":""},{"$f":"IF(ISERROR($V487),\"\",OFFSET('Smelter Look-up'!$G$4,$V487-4,0))","v":""},{"$f":"IF(ISERROR($V487),\"\",OFFSET('Smelter Look-up'!$H$4,$V487-4,0))","v":""},{"$f":"IF(ISERROR($V487),\"\",OFFSET('Smelter Look-up'!$I$4,$V487-4,0))","v":""},{"$nulls":7},{"$f":"IF(ISERROR($V487),\"\",OFFSET('Smelter Look-up'!$C$4,$V487-4,0)&\"\")","v":""},"",{"$f":"IF(B487=\"\",\"\",IF(ISERROR(MATCH($J487,SorP!$B$1:$B$6230,0)),\"\",INDIRECT(\"'SorP'!$A$\"&MATCH($J487,SorP!$B$1:$B$6230,0))))","v":""},null,{"$f":"IF(C487=\"\",NA(),MATCH($B487&$C487,'Smelter Look-up'!$J:$J,0))","v":{"$error":"#N/A"}},null,0,null,null,null,""]
[null,{"$f":"IF(LEN(A488)=0,\"\",INDEX('Smelter Look-up'!$A:$A,MATCH($A488,'Smelter Look-up'!$E:$E,0)))","v":""},{"$f":"IF(LEN(A488)=0,\"\",INDEX('Smelter Look-up'!$C:$C,MATCH($A488,'Smelter Look-up'!$E:$E,0)))","v":""},null,{"$f":"IF(ISERROR($V488),\"\",OFFSET('Smelter Look-up'!$D$4,$V488-4,0)&\"\")","v":""},{"$f":"IF(ISERROR($V488),\"\",OFFSET('Smelter Look-up'!$E$4,$V488-4,0))","v":""},{"$f":"IF(C488=$X$4,\"Enter smelter details\", IF(ISERROR($V488),\"\",OFFSET('Smelter Look-up'!$F$4,$V488-4,0)))","v":""},{"$f":"IF(ISERROR($V488),\"\",OFFSET('Smelter Look-up'!$G$4,$V488-4,0))","v":""},{"$f":"IF(ISERROR($V488),\"\",OFFSET('Smelter Look-up'!$H$4,$V488-4,0))","v":""},{"$f":"IF(ISERROR($V488),\"\",OFFSET('Smelter Look-up'!$I$4,$V488-4,0))","v":""},{"$nulls":7},{"$f":"IF(ISERROR($V488),\"\",OFFSET('Smelter Look-up'!$C$4,$V488-4,0)&\"\")","v":""},"",{"$f":"IF(B488=\"\",\"\",IF(ISERROR(MATCH($J488,SorP!$B$1:$B$6230,0)),\"\",INDIRECT(\"'SorP'!$A$\"&MATCH($J488,SorP!$B$1:$B$6230,0))))","v":""},null,{"$f":"IF(C488=\"\",NA(),MATCH($B488&$C488,'Smelter Look-up'!$J:$J,0))","v":{"$error":"#N/A"}},null,0,null,null,null,""]
[null,{"$f":"IF(LEN(A489)=0,\"\",INDEX('Smelter Look-up'!$A:$A,MATCH($A489,'Smelter Look-up'!$E:$E,0)))","v":""},{"$f":"IF(LEN(A489)=0,\"\",INDEX('Smelter Look-up'!$C:$C,MATCH($A489,'Smelter Look-up'!$E:$E,0)))","v":""},null,{"$f":"IF(ISERROR($V489),\"\",OFFSET('Smelter Look-up'!$D$4,$V489-4,0)&\"\")","v":""},{"$f":"IF(ISERROR($V489),\"\",OFFSET('Smelter Look-up'!$E$4,$V489-4,0))","v":""},{"$f":"IF(C489=$X$4,\"Enter smelter details\", IF(ISERROR($V489),\"\",OFFSET('Smelter Look-up'!$F$4,$V489-4,0)))","v":""},{"$f":"IF(ISERROR($V489),\"\",OFFSET('Smelter Look-up'!$G$4,$V489-4,0))","v":""},{"$f":"IF(ISERROR($V489),\"\",OFFSET('Smelter Look-up'!$H$4,$V489-4,0))","v":""},{"$f":"IF(ISERROR($V489),\"\",OFFSET('Smelter Look-up'!$I$4,$V489-4,0))","v":""},{"$nulls":7},{"$f":"IF(ISERROR($V489),\"\",OFFSET('Smelter Look-up'!$C$4,$V489-4,0)&\"\")","v":""},"",{"$f":"IF(B489=\"\",\"\",IF(ISERROR(MATCH($J489,SorP!$B$1:$B$6230,0)),\"\",INDIRECT(\"'SorP'!$A$\"&MATCH($J489,SorP!$B$1:$B$6230,0))))","v":""},null,{"$f":"IF(C489=\"\",NA(),MATCH($B489&$C489,'Smelter Look-up'!$J:$J,0))","v":{"$error":"#N/A"}},null,0,null,null,null,""]
[null,{"$f":"IF(LEN(A490)=0,\"\",INDEX('Smelter Look-up'!$A:$A,MATCH($A490,'Smelter Look-up'!$E:$E,0)))","v":""},{"$f":"IF(LEN(A490)=0,\"\",INDEX('Smelter Look-up'!$C:$C,MATCH($A490,'Smelter Look-up'!$E:$E,0)))","v":""},null,{"$f":"IF(ISERROR($V490),\"\",OFFSET('Smelter Look-up'!$D$4,$V490-4,0)&\"\")","v":""},{"$f":"IF(ISERROR($V490),\"\",OFFSET('Smelter Look-up'!$E$4,$V490-4,0))","v":""},{"$f":"IF(C490=$X$4,\"Enter smelter details\", IF(ISERROR($V490),\"\",OFFSET('Smelter Look-up'!$F$4,$V490-4,0)))","v":""},{"$f":"IF(ISERROR($V490),\"\",OFFSET('Smelter Look-up'!$G$4,$V490-4,0))","v":""},{"$f":"IF(ISERROR($V490),\"\",OFFSET('Smelter Look-up'!$H$4,$V490-4,0))","v":""},{"$f":"IF(ISERROR($V490),\"\",OFFSET('Smelter Look-up'!$I$4,$V490-4,0))","v":""},{"$nulls":7},{"$f":"IF(ISERROR($V490),\"\",OFFSET('Smelter Look-up'!$C$4,$V490-4,0)&\"\")","v":""},"",{"$f":"IF(B490=\"\",\"\",IF(ISERROR(MATCH($J490,SorP!$B$1:$B$6230,0)),\"\",INDIRECT(\"'SorP'!$A$\"&MATCH($J490,SorP!$B$1:$B$6230,0))))","v":""},null,{"$f":"IF(C490=\"\",NA(),MATCH($B490&$C490,'Smelter Look-up'!$J:$J,0))","v":{"$error":"#N/A"}},null,0,null,null,null,""]
[null,{"$f":"IF(LEN(A491)=0,\"\",INDEX('Smelter Look-up'!$A:$A,MATCH($A491,'Smelter Look-up'!$E:$E,0)))","v":""},{"$f":"IF(LEN(A491)=0,\"\",INDEX('Smelter Look-up'!$C:$C,MATCH($A491,'Smelter Look-up'!$E:$E,0)))","v":""},null,{"$f":"IF(ISERROR($V491),\"\",OFFSET('Smelter Look-up'!$D$4,$V491-4,0)&\"\")","v":""},{"$f":"IF(ISERROR($V491),\"\",OFFSET('Smelter Look-up'!$E$4,$V491-4,0))","v":""},{"$f":"IF(C491=$X$4,\"Enter smelter details\", IF(ISERROR($V491),\"\",OFFSET('Smelter Look-up'!$F$4,$V491-4,0)))","v":""},{"$f":"IF(ISERROR($V491),\"\",OFFSET('Smelter Look-up'!$G$4,$V491-4,0))","v":""},{"$f":"IF(ISERROR($V491),\"\",OFFSET('Smelter Look-up'!$H$4,$V491-4,0))","v":""},{"$f":"IF(ISERROR($V491),\"\",OFFSET('Smelter Look-up'!$I$4,$V491-4,0))","v":""},{"$nulls":7},{"$f":"IF(ISERROR($V491),\"\",OFFSET('Smelter Look-up'!$C$4,$V491-4,0)&\"\")","v":""},"",{"$f":"IF(B491=\"\",\"\",IF(ISERROR(MATCH($J491,SorP!$B$1:$B$6230,0)),\"\",INDIRECT(\"'SorP'!$A$\"&MATCH($J491,SorP!$B$1:$B$6230,0))))","v":""},null,{"$f":"IF(C491=\"\",NA(),MATCH($B491&$C491,'Smelter Look-up'!$J:$J,0))","v":{"$error":"#N/A"}},null,0,null,null,null,""]
[null,{"$f":"IF(LEN(A492)=0,\"\",INDEX('Smelter Look-up'!$A:$A,MATCH($A492,'Smelter Look-up'!$E:$E,0)))","v":""},{"$f":"IF(LEN(A492)=0,\"\",INDEX('Smelter Look-up'!$C:$C,MATCH($A492,'Smelter Look-up'!$E:$E,0)))","v":""},null,{"$f":"IF(ISERROR($V492),\"\",OFFSET('Smelter Look-up'!$D$4,$V492-4,0)&\"\")","v":""},{"$f":"IF(ISERROR($V492),\"\",OFFSET('Smelter Look-up'!$E$4,$V492-4,0))","v":""},{"$f":"IF(C492=$X$4,\"Enter smelter details\", IF(ISERROR($V492),\"\",OFFSET('Smelter Look-up'!$F$4,$V492-4,0)))","v":""},{"$f":"IF(ISERROR($V492),\"\",OFFSET('Smelter Look-up'!$G$4,$V492-4,0))","v":""},{"$f":"IF(ISERROR($V492),\"\",OFFSET('Smelter Look-up'!$H$4,$V492-4,0))","v":""},{"$f":"IF(ISERROR($V492),\"\",OFFSET('Smelter Look-up'!$I$4,$V492-4,0))","v":""},{"$nulls":7},{"$f":"IF(ISERROR($V492),\"\",OFFSET('Smelter Look-up'!$C$4,$V492-4,0)&\"\")","v":""},"",{"$f":"IF(B492=\"\",\"\",IF(ISERROR(MATCH($J492,SorP!$B$1:$B$6230,0)),\"\",INDIRECT(\"'SorP'!$A$\"&MATCH($J492,SorP!$B$1:$B$6230,0))))","v":""},null,{"$f":"IF(C492=\"\",NA(),MATCH($B492&$C492,'Smelter Look-up'!$J:$J,0))","v":{"$error":"#N/A"}},null,0,null,null,null,""]
[null,{"$f":"IF(LEN(A493)=0,\"\",INDEX('Smelter Look-up'!$A:$A,MATCH($A493,'Smelter Look-up'!$E:$E,0)))","v":""},{"$f":"IF(LEN(A493)=0,\"\",INDEX('Smelter Look-up'!$C:$C,MATCH($A493,'Smelter Look-up'!$E:$E,0)))","v":""},null,{"$f":"IF(ISERROR($V493),\"\",OFFSET('Smelter Look-up'!$D$4,$V493-4,0)&\"\")","v":""},{"$f":"IF(ISERROR($V493),\"\",OFFSET('Smelter Look-up'!$E$4,$V493-4,0))","v":""},{"$f":"IF(C493=$X$4,\"Enter smelter details\", IF(ISERROR($V493),\"\",OFFSET('Smelter Look-up'!$F$4,$V493-4,0)))","v":""},{"$f":"IF(ISERROR($V493),\"\",OFFSET('Smelter Look-up'!$G$4,$V493-4,0))","v":""},{"$f":"IF(ISERROR($V493),\"\",OFFSET('Smelter Look-up'!$H$4,$V493-4,0))","v":""},{"$f":"IF(ISERROR($V493),\"\",OFFSET('Smelter Look-up'!$I$4,$V493-4,0))","v":""},{"$nulls":7},{"$f":"IF(ISERROR($V493),\"\",OFFSET('Smelter Look-up'!$C$4,$V493-4,0)&\"\")","v":""},"",{"$f":"IF(B493=\"\",\"\",IF(ISERROR(MATCH($J493,SorP!$B$1:$B$6230,0)),\"\",INDIRECT(\"'SorP'!$A$\"&MATCH($J493,SorP!$B$1:$B$6230,0))))","v":""},null,{"$f":"IF(C493=\"\",NA(),MATCH($B493&$C493,'Smelter Look-up'!$J:$J,0))","v":{"$error":"#N/A"}},null,0,null,null,null,""]
[null,{"$f":"IF(LEN(A494)=0,\"\",INDEX('Smelter Look-up'!$A:$A,MATCH($A494,'Smelter Look-up'!$E:$E,0)))","v":""},{"$f":"IF(LEN(A494)=0,\"\",INDEX('Smelter Look-up'!$C:$C,MATCH($A494,'Smelter Look-up'!$E:$E,0)))","v":""},null,{"$f":"IF(ISERROR($V494),\"\",OFFSET('Smelter Look-up'!$D$4,$V494-4,0)&\"\")","v":""},{"$f":"IF(ISERROR($V494),\"\",OFFSET('Smelter Look-up'!$E$4,$V494-4,0))","v":""},{"$f":"IF(C494=$X$4,\"Enter smelter details\", IF(ISERROR($V494),\"\",OFFSET('Smelter Look-up'!$F$4,$V494-4,0)))","v":""},{"$f":"IF(ISERROR($V494),\"\",OFFSET('Smelter Look-up'!$G$4,$V494-4,0))","v":""},{"$f":"IF(ISERROR($V494),\"\",OFFSET('Smelter Look-up'!$H$4,$V494-4,0))","v":""},{"$f":"IF(ISERROR($V494),\"\",OFFSET('Smelter Look-up'!$I$4,$V494-4,0))","v":""},{"$nulls":7},{"$f":"IF(ISERROR($V494),\"\",OFFSET('Smelter Look-up'!$C$4,$V494-4,0)&\"\")","v":""},"",{"$f":"IF(B494=\"\",\"\",IF(ISERROR(MATCH($J494,SorP!$B$1:$B$6230,0)),\"\",INDIRECT(\"'SorP'!$A$\"&MATCH($J494,SorP!$B$1:$B$6230,0))))","v":""},null,{"$f":"IF(C494=\"\",NA(),MATCH($B494&$C494,'Smelter Look-up'!$J:$J,0))","v":{"$error":"#N/A"}},null,0,null,null,null,""]
[null,{"$f":"IF(LEN(A495)=0,\"\",INDEX('Smelter Look-up'!$A:$A,MATCH($A495,'Smelter Look-up'!$E:$E,0)))","v":""},{"$f":"IF(LEN(A495)=0,\"\",INDEX('Smelter Look-up'!$C:$C,MATCH($A495,'Smelter Look-up'!$E:$E,0)))","v":""},null,{"$f":"IF(ISERROR($V495),\"\",OFFSET('Smelter Look-up'!$D$4,$V495-4,0)&\"\")","v":""},{"$f":"IF(ISERROR($V495),\"\",OFFSET('Smelter Look-up'!$E$4,$V495-4,0))","v":""},{"$f":"IF(C495=$X$4,\"Enter smelter details\", IF(ISERROR($V495),\"\",OFFSET('Smelter Look-up'!$F$4,$V495-4,0)))","v":""},{"$f":"IF(ISERROR($V495),\"\",OFFSET('Smelter Look-up'!$G$4,$V495-4,0))","v":""},{"$f":"IF(ISERROR($V495),\"\",OFFSET('Smelter Look-up'!$H$4,$V495-4,0))","v":""},{"$f":"IF(ISERROR($V495),\"\",OFFSET('Smelter Look-up'!$I$4,$V495-4,0))","v":""},{"$nulls":7},{"$f":"IF(ISERROR($V495),\"\",OFFSET('Smelter Look-up'!$C$4,$V495-4,0)&\"\")","v":""},"",{"$f":"IF(B495=\"\",\"\",IF(ISERROR(MATCH($J495,SorP!$B$1:$B$6230,0)),\"\",INDIRECT(\"'SorP'!$A$\"&MATCH($J495,SorP!$B$1:$B$6230,0))))","v":""},null,{"$f":"IF(C495=\"\",NA(),MATCH($B495&$C495,'Smelter Look-up'!$J:$J,0))","v":{"$error":"#N/A"}},null,0,null,null,null,""]
[null,{"$f":"IF(LEN(A496)=0,\"\",INDEX('Smelter Look-up'!$A:$A,MATCH($A496,'Smelter Look-up'!$E:$E,0)))","v":""},{"$f":"IF(LEN(A496)=0,\"\",INDEX('Smelter Look-up'!$C:$C,MATCH($A496,'Smelter Look-up'!$E:$E,0)))","v":""},null,{"$f":"IF(ISERROR($V496),\"\",OFFSET('Smelter Look-up'!$D$4,$V496-4,0)&\"\")","v":""},{"$f":"IF(ISERROR($V496),\"\",OFFSET('Smelter Look-up'!$E$4,$V496-4,0))","v":""},{"$f":"IF(C496=$X$4,\"Enter smelter details\", IF(ISERROR($V496),\"\",OFFSET('Smelter Look-up'!$F$4,$V496-4,0)))","v":""},{"$f":"IF(ISERROR($V496),\"\",OFFSET('Smelter Look-up'!$G$4,$V496-4,0))","v":""},{"$f":"IF(ISERROR($V496),\"\",OFFSET('Smelter Look-up'!$H$4,$V496-4,0))","v":""},{"$f":"IF(ISERROR($V496),\"\",OFFSET('Smelter Look-up'!$I$4,$V496-4,0))","v":""},{"$nulls":7},{"$f":"IF(ISERROR($V496),\"\",OFFSET('Smelter Look-up'!$C$4,$V496-4,0)&\"\")","v":""},"",{"$f":"IF(B496=\"\",\"\",IF(ISERROR(MATCH($J496,SorP!$B$1:$B$6230,0)),\"\",INDIRECT(\"'SorP'!$A$\"&MATCH($J496,SorP!$B$1:$B$6230,0))))","v":""},null,{"$f":"IF(C496=\"\",NA(),MATCH($B496&$C496,'Smelter Look-up'!$J:$J,0))","v":{"$error":"#N/A"}},null,0,null,null,null,""]
[null,{"$f":"IF(LEN(A497)=0,\"\",INDEX('Smelter Look-up'!$A:$A,MATCH($A497,'Smelter Look-up'!$E:$E,0)))","v":""},{"$f":"IF(LEN(A497)=0,\"\",INDEX('Smelter Look-up'!$C:$C,MATCH($A497,'Smelter Look-up'!$E:$E,0)))","v":""},null,{"$f":"IF(ISERROR($V497),\"\",OFFSET('Smelter Look-up'!$D$4,$V497-4,0)&\"\")","v":""},{"$f":"IF(ISERROR($V497),\"\",OFFSET('Smelter Look-up'!$E$4,$V497-4,0))","v":""},{"$f":"IF(C497=$X$4,\"Enter smelter details\", IF(ISERROR($V497),\"\",OFFSET('Smelter Look-up'!$F$4,$V497-4,0)))","v":""},{"$f":"IF(ISERROR($V497),\"\",OFFSET('Smelter Look-up'!$G$4,$V497-4,0))","v":""},{"$f":"IF(ISERROR($V497),\"\",OFFSET('Smelter Look-up'!$H$4,$V497-4,0))","v":""},{"$f":"IF(ISERROR($V497),\"\",OFFSET('Smelter Look-up'!$I$4,$V497-4,0))","v":""},{"$nulls":7},{"$f":"IF(ISERROR($V497),\"\",OFFSET('Smelter Look-up'!$C$4,$V497-4,0)&\"\")","v":""},"",{"$f":"IF(B497=\"\",\"\",IF(ISERROR(MATCH($J497,SorP!$B$1:$B$6230,0)),\"\",INDIRECT(\"'SorP'!$A$\"&MATCH($J497,SorP!$B$1:$B$6230,0))))","v":""},null,{"$f":"IF(C497=\"\",NA(),MATCH($B497&$C497,'Smelter Look-up'!$J:$J,0))","v":{"$error":"#N/A"}},null,0,null,null,null,""]
[null,{"$f":"IF(LEN(A498)=0,\"\",INDEX('Smelter Look-up'!$A:$A,MATCH($A498,'Smelter Look-up'!$E:$E,0)))","v":""},{"$f":"IF(LEN(A498)=0,\"\",INDEX('Smelter Look-up'!$C:$C,MATCH($A498,'Smelter Look-up'!$E:$E,0)))","v":""},null,{"$f":"IF(ISERROR($V498),\"\",OFFSET('Smelter Look-up'!$D$4,$V498-4,0)&\"\")","v":""},{"$f":"IF(ISERROR($V498),\"\",OFFSET('Smelter Look-up'!$E$4,$V498-4,0))","v":""},{"$f":"IF(C498=$X$4,\"Enter smelter details\", IF(ISERROR($V498),\"\",OFFSET('Smelter Look-up'!$F$4,$V498-4,0)))","v":""},{"$f":"IF(ISERROR($V498),\"\",OFFSET('Smelter Look-up'!$G$4,$V498-4,0))","v":""},{"$f":"IF(ISERROR($V498),\"\",OFFSET('Smelter Look-up'!$H$4,$V498-4,0))","v":""},{"$f":"IF(ISERROR($V498),\"\",OFFSET('Smelter Look-up'!$I$4,$V498-4,0))","v":""},{"$nulls":7},{"$f":"IF(ISERROR($V498),\"\",OFFSET('Smelter Look-up'!$C$4,$V498-4,0)&\"\")","v":""},"",{"$f":"IF(B498=\"\",\"\",IF(ISERROR(MATCH($J498,SorP!$B$1:$B$6230,0)),\"\",INDIRECT(\"'SorP'!$A$\"&MATCH($J498,SorP!$B$1:$B$6230,0))))","v":""},null,{"$f":"IF(C498=\"\",NA(),MATCH($B498&$C498,'Smelter Look-up'!$J:$J,0))","v":{"$error":"#N/A"}},null,0,null,null,null,""]
[null,{"$f":"IF(LEN(A499)=0,\"\",INDEX('Smelter Look-up'!$A:$A,MATCH($A499,'Smelter Look-up'!$E:$E,0)))","v":""},{"$f":"IF(LEN(A499)=0,\"\",INDEX('Smelter Look-up'!$C:$C,MATCH($A499,'Smelter Look-up'!$E:$E,0)))","v":""},null,{"$f":"IF(ISERROR($V499),\"\",OFFSET('Smelter Look-up'!$D$4,$V499-4,0)&\"\")","v":""},{"$f":"IF(ISERROR($V499),\"\",OFFSET('Smelter Look-up'!$E$4,$V499-4,0))","v":""},{"$f":"IF(C499=$X$4,\"Enter smelter details\", IF(ISERROR($V499),\"\",OFFSET('Smelter Look-up'!$F$4,$V499-4,0)))","v":""},{"$f":"IF(ISERROR($V499),\"\",OFFSET('Smelter Look-up'!$G$4,$V499-4,0))","v":""},{"$f":"IF(ISERROR($V499),\"\",OFFSET('Smelter Look-up'!$H$4,$V499-4,0))","v":""},{"$f":"IF(ISERROR($V499),\"\",OFFSET('Smelter Look-up'!$I$4,$V499-4,0))","v":""},{"$nulls":7},{"$f":"IF(ISERROR($V499),\"\",OFFSET('Smelter Look-up'!$C$4,$V499-4,0)&\"\")","v":""},"",{"$f":"IF(B499=\"\",\"\",IF(ISERROR(MATCH($J499,SorP!$B$1:$B$6230,0)),\"\",INDIRECT(\"'SorP'!$A$\"&MATCH($J499,SorP!$B$1:$B$6230,0))))","v":""},null,{"$f":"IF(C499=\"\",NA(),MATCH($B499&$C499,'Smelter Look-up'!$J:$J,0))","v":{"$error":"#N/A"}},null,0,null,null,null,""]
[null,{"$f":"IF(LEN(A500)=0,\"\",INDEX('Smelter Look-up'!$A:$A,MATCH($A500,'Smelter Look-up'!$E:$E,0)))","v":""},{"$f":"IF(LEN(A500)=0,\"\",INDEX('Smelter Look-up'!$C:$C,MATCH($A500,'Smelter Look-up'!$E:$E,0)))","v":""},null,{"$f":"IF(ISERROR($V500),\"\",OFFSET('Smelter Look-up'!$D$4,$V500-4,0)&\"\")","v":""},{"$f":"IF(ISERROR($V500),\"\",OFFSET('Smelter Look-up'!$E$4,$V500-4,0))","v":""},{"$f":"IF(C500=$X$4,\"Enter smelter details\", IF(ISERROR($V500),\"\",OFFSET('Smelter Look-up'!$F$4,$V500-4,0)))","v":""},{"$f":"IF(ISERROR($V500),\"\",OFFSET('Smelter Look-up'!$G$4,$V500-4,0))","v":""},{"$f":"IF(ISERROR($V500),\"\",OFFSET('Smelter Look-up'!$H$4,$V500-4,0))","v":""},{"$f":"IF(ISERROR($V500),\"\",OFFSET('Smelter Look-up'!$I$4,$V500-4,0))","v":""},{"$nulls":7},{"$f":"IF(ISERROR($V500),\"\",OFFSET('Smelter Look-up'!$C$4,$V500-4,0)&\"\")","v":""},"",{"$f":"IF(B500=\"\",\"\",IF(ISERROR(MATCH($J500,SorP!$B$1:$B$6230,0)),\"\",INDIRECT(\"'SorP'!$A$\"&MATCH($J500,SorP!$B$1:$B$6230,0))))","v":""},null,{"$f":"IF(C500=\"\",NA(),MATCH($B500&$C500,'Smelter Look-up'!$J:$J,0))","v":{"$error":"#N/A"}},null,0,null,null,null,""]
[null,{"$f":"IF(LEN(A501)=0,\"\",INDEX('Smelter Look-up'!$A:$A,MATCH($A501,'Smelter Look-up'!$E:$E,0)))","v":""},{"$f":"IF(LEN(A501)=0,\"\",INDEX('Smelter Look-up'!$C:$C,MATCH($A501,'Smelter Look-up'!$E:$E,0)))","v":""},null,{"$f":"IF(ISERROR($V501),\"\",OFFSET('Smelter Look-up'!$D$4,$V501-4,0)&\"\")","v":""},{"$f":"IF(ISERROR($V501),\"\",OFFSET('Smelter Look-up'!$E$4,$V501-4,0))","v":""},{"$f":"IF(C501=$X$4,\"Enter smelter details\", IF(ISERROR($V501),\"\",OFFSET('Smelter Look-up'!$F$4,$V501-4,0)))","v":""},{"$f":"IF(ISERROR($V501),\"\",OFFSET('Smelter Look-up'!$G$4,$V501-4,0))","v":""},{"$f":"IF(ISERROR($V501),\"\",OFFSET('Smelter Look-up'!$H$4,$V501-4,0))","v":""},{"$f":"IF(ISERROR($V501),\"\",OFFSET('Smelter Look-up'!$I$4,$V501-4,0))","v":""},{"$nulls":7},{"$f":"IF(ISERROR($V501),\"\",OFFSET('Smelter Look-up'!$C$4,$V501-4,0)&\"\")","v":""},"",{"$f":"IF(B501=\"\",\"\",IF(ISERROR(MATCH($J501,SorP!$B$1:$B$6230,0)),\"\",INDIRECT(\"'SorP'!$A$\"&MATCH($J501,SorP!$B$1:$B$6230,0))))","v":""},null,{"$f":"IF(C501=\"\",NA(),MATCH($B501&$C501,'Smelter Look-up'!$J:$J,0))","v":{"$error":"#N/A"}},null,0,null,null,null,""]
[null,{"$f":"IF(LEN(A502)=0,\"\",INDEX('Smelter Look-up'!$A:$A,MATCH($A502,'Smelter Look-up'!$E:$E,0)))","v":""},{"$f":"IF(LEN(A502)=0,\"\",INDEX('Smelter Look-up'!$C:$C,MATCH($A502,'Smelter Look-up'!$E:$E,0)))","v":""},null,{"$f":"IF(ISERROR($V502),\"\",OFFSET('Smelter Look-up'!$D$4,$V502-4,0)&\"\")","v":""},{"$f":"IF(ISERROR($V502),\"\",OFFSET('Smelter Look-up'!$E$4,$V502-4,0))","v":""},{"$f":"IF(C502=$X$4,\"Enter smelter details\", IF(ISERROR($V502),\"\",OFFSET('Smelter Look-up'!$F$4,$V502-4,0)))","v":""},{"$f":"IF(ISERROR($V502),\"\",OFFSET('Smelter Look-up'!$G$4,$V502-4,0))","v":""},{"$f":"IF(ISERROR($V502),\"\",OFFSET('Smelter Look-up'!$H$4,$V502-4,0))","v":""},{"$f":"IF(ISERROR($V502),\"\",OFFSET('Smelter Look-up'!$I$4,$V502-4,0))","v":""},{"$nulls":7},{"$f":"IF(ISERROR($V502),\"\",OFFSET('Smelter Look-up'!$C$4,$V502-4,0)&\"\")","v":""},"",{"$f":"IF(B502=\"\",\"\",IF(ISERROR(MATCH($J502,SorP!$B$1:$B$6230,0)),\"\",INDIRECT(\"'SorP'!$A$\"&MATCH($J502,SorP!$B$1:$B$6230,0))))","v":""},null,{"$f":"IF(C502=\"\",NA(),MATCH($B502&$C502,'Smelter Look-up'!$J:$J,0))","v":{"$error":"#N/A"}},null,0,null,null,null,""]
[null,{"$f":"IF(LEN(A503)=0,\"\",INDEX('Smelter Look-up'!$A:$A,MATCH($A503,'Smelter Look-up'!$E:$E,0)))","v":""},{"$f":"IF(LEN(A503)=0,\"\",INDEX('Smelter Look-up'!$C:$C,MATCH($A503,'Smelter Look-up'!$E:$E,0)))","v":""},null,{"$f":"IF(ISERROR($V503),\"\",OFFSET('Smelter Look-up'!$D$4,$V503-4,0)&\"\")","v":""},{"$f":"IF(ISERROR($V503),\"\",OFFSET('Smelter Look-up'!$E$4,$V503-4,0))","v":""},{"$f":"IF(C503=$X$4,\"Enter smelter details\", IF(ISERROR($V503),\"\",OFFSET('Smelter Look-up'!$F$4,$V503-4,0)))","v":""},{"$f":"IF(ISERROR($V503),\"\",OFFSET('Smelter Look-up'!$G$4,$V503-4,0))","v":""},{"$f":"IF(ISERROR($V503),\"\",OFFSET('Smelter Look-up'!$H$4,$V503-4,0))","v":""},{"$f":"IF(ISERROR($V503),\"\",OFFSET('Smelter Look-up'!$I$4,$V503-4,0))","v":""},{"$nulls":7},{"$f":"IF(ISERROR($V503),\"\",OFFSET('Smelter Look-up'!$C$4,$V503-4,0)&\"\")","v":""},"",{"$f":"IF(B503=\"\",\"\",IF(ISERROR(MATCH($J503,SorP!$B$1:$B$6230,0)),\"\",INDIRECT(\"'SorP'!$A$\"&MATCH($J503,SorP!$B$1:$B$6230,0))))","v":""},null,{"$f":"IF(C503=\"\",NA(),MATCH($B503&$C503,'Smelter Look-up'!$J:$J,0))","v":{"$error":"#N/A"}},null,0,null,null,null,""]
[null,{"$f":"IF(LEN(A504)=0,\"\",INDEX('Smelter Look-up'!$A:$A,MATCH($A504,'Smelter Look-up'!$E:$E,0)))","v":""},{"$f":"IF(LEN(A504)=0,\"\",INDEX('Smelter Look-up'!$C:$C,MATCH($A504,'Smelter Look-up'!$E:$E,0)))","v":""},null,{"$f":"IF(ISERROR($V504),\"\",OFFSET('Smelter Look-up'!$D$4,$V504-4,0)&\"\")","v":""},{"$f":"IF(ISERROR($V504),\"\",OFFSET('Smelter Look-up'!$E$4,$V504-4,0))","v":""},{"$f":"IF(C504=$X$4,\"Enter smelter details\", IF(ISERROR($V504),\"\",OFFSET('Smelter Look-up'!$F$4,$V504-4,0)))","v":""},{"$f":"IF(ISERROR($V504),\"\",OFFSET('Smelter Look-up'!$G$4,$V504-4,0))","v":""},{"$f":"IF(ISERROR($V504),\"\",OFFSET('Smelter Look-up'!$H$4,$V504-4,0))","v":""},{"$f":"IF(ISERROR($V504),\"\",OFFSET('Smelter Look-up'!$I$4,$V504-4,0))","v":""},{"$nulls":7},{"$f":"IF(ISERROR($V504),\"\",OFFSET('Smelter Look-up'!$C$4,$V504-4,0)&\"\")","v":""},"",{"$f":"IF(B504=\"\",\"\",IF(ISERROR(MATCH($J504,SorP!$B$1:$B$6230,0)),\"\",INDIRECT(\"'SorP'!$A$\"&MATCH($J504,SorP!$B$1:$B$6230,0))))","v":""},null,{"$f":"IF(C504=\"\",NA(),MATCH($B504&$C504,'Smelter Look-up'!$J:$J,0))","v":{"$error":"#N/A"}},null,0,null,null,null,""]
[null,{"$f":"IF(LEN(A505)=0,\"\",INDEX('Smelter Look-up'!$A:$A,MATCH($A505,'Smelter Look-up'!$E:$E,0)))","v":""},{"$f":"IF(LEN(A505)=0,\"\",INDEX('Smelter Look-up'!$C:$C,MATCH($A505,'Smelter Look-up'!$E:$E,0)))","v":""},null,{"$f":"IF(ISERROR($V505),\"\",OFFSET('Smelter Look-up'!$D$4,$V505-4,0)&\"\")","v":""},{"$f":"IF(ISERROR($V505),\"\",OFFSET('Smelter Look-up'!$E$4,$V505-4,0))","v":""},{"$f":"IF(C505=$X$4,\"Enter smelter details\", IF(ISERROR($V505),\"\",OFFSET('Smelter Look-up'!$F$4,$V505-4,0)))","v":""},{"$f":"IF(ISERROR($V505),\"\",OFFSET('Smelter Look-up'!$G$4,$V505-4,0))","v":""},{"$f":"IF(ISERROR($V505),\"\",OFFSET('Smelter Look-up'!$H$4,$V505-4,0))","v":""},{"$f":"IF(ISERROR($V505),\"\",OFFSET('Smelter Look-up'!$I$4,$V505-4,0))","v":""},{"$nulls":7},{"$f":"IF(ISERROR($V505),\"\",OFFSET('Smelter Look-up'!$C$4,$V505-4,0)&\"\")","v":""},"",{"$f":"IF(B505=\"\",\"\",IF(ISERROR(MATCH($J505,SorP!$B$1:$B$6230,0)),\"\",INDIRECT(\"'SorP'!$A$\"&MATCH($J505,SorP!$B$1:$B$6230,0))))","v":""},null,{"$f":"IF(C505=\"\",NA(),MATCH($B505&$C505,'Smelter Look-up'!$J:$J,0))","v":{"$error":"#N/A"}},null,0,null,null,null,""]
[null,{"$f":"IF(LEN(A506)=0,\"\",INDEX('Smelter Look-up'!$A:$A,MATCH($A506,'Smelter Look-up'!$E:$E,0)))","v":""},{"$f":"IF(LEN(A506)=0,\"\",INDEX('Smelter Look-up'!$C:$C,MATCH($A506,'Smelter Look-up'!$E:$E,0)))","v":""},null,{"$f":"IF(ISERROR($V506),\"\",OFFSET('Smelter Look-up'!$D$4,$V506-4,0)&\"\")","v":""},{"$f":"IF(ISERROR($V506),\"\",OFFSET('Smelter Look-up'!$E$4,$V506-4,0))","v":""},{"$f":"IF(C506=$X$4,\"Enter smelter details\", IF(ISERROR($V506),\"\",OFFSET('Smelter Look-up'!$F$4,$V506-4,0)))","v":""},{"$f":"IF(ISERROR($V506),\"\",OFFSET('Smelter Look-up'!$G$4,$V506-4,0))","v":""},{"$f":"IF(ISERROR($V506),\"\",OFFSET('Smelter Look-up'!$H$4,$V506-4,0))","v":""},{"$f":"IF(ISERROR($V506),\"\",OFFSET('Smelter Look-up'!$I$4,$V506-4,0))","v":""},{"$nulls":7},{"$f":"IF(ISERROR($V506),\"\",OFFSET('Smelter Look-up'!$C$4,$V506-4,0)&\"\")","v":""},"",{"$f":"IF(B506=\"\",\"\",IF(ISERROR(MATCH($J506,SorP!$B$1:$B$6230,0)),\"\",INDIRECT(\"'SorP'!$A$\"&MATCH($J506,SorP!$B$1:$B$6230,0))))","v":""},null,{"$f":"IF(C506=\"\",NA(),MATCH($B506&$C506,'Smelter Look-up'!$J:$J,0))","v":{"$error":"#N/A"}},null,0,null,null,null,""]
[null,{"$f":"IF(LEN(A507)=0,\"\",INDEX('Smelter Look-up'!$A:$A,MATCH($A507,'Smelter Look-up'!$E:$E,0)))","v":""},{"$f":"IF(LEN(A507)=0,\"\",INDEX('Smelter Look-up'!$C:$C,MATCH($A507,'Smelter Look-up'!$E:$E,0)))","v":""},null,{"$f":"IF(ISERROR($V507),\"\",OFFSET('Smelter Look-up'!$D$4,$V507-4,0)&\"\")","v":""},{"$f":"IF(ISERROR($V507),\"\",OFFSET('Smelter Look-up'!$E$4,$V507-4,0))","v":""},{"$f":"IF(C507=$X$4,\"Enter smelter details\", IF(ISERROR($V507),\"\",OFFSET('Smelter Look-up'!$F$4,$V507-4,0)))","v":""},{"$f":"IF(ISERROR($V507),\"\",OFFSET('Smelter Look-up'!$G$4,$V507-4,0))","v":""},{"$f":"IF(ISERROR($V507),\"\",OFFSET('Smelter Look-up'!$H$4,$V507-4,0))","v":""},{"$f":"IF(ISERROR($V507),\"\",OFFSET('Smelter Look-up'!$I$4,$V507-4,0))","v":""},{"$nulls":7},{"$f":"IF(ISERROR($V507),\"\",OFFSET('Smelter Look-up'!$C$4,$V507-4,0)&\"\")","v":""},{"$f":"IF(B507=\"\",\"\",IF(ISERROR(MATCH($E507,CL,0)),\"Unknown\",INDIRECT(\"'C'!$A$\"&MATCH($E507,CL,0)+1)))","v":""},{"$f":"IF(B507=\"\",\"\",IF(ISERROR(MATCH($J507,SorP!$B$1:$B$6230,0)),\"\",INDIRECT(\"'SorP'!$A$\"&MATCH($J507,SorP!$B$1:$B$6230,0))))","v":""},null,{"$f":"IF(C507=\"\",NA(),MATCH($B507&$C507,'Smelter Look-up'!$J:$J,0))","v":{"$error":"#N/A"}},null,{"$f":"IF(AND(C507=\"Smelter not listed\",OR(LEN(D507)=0,LEN(E507)=0)),1,0)","v":0},null,null,null,{"$f":"B507&C507","v":""}]
[null,{"$f":"IF(LEN(A508)=0,\"\",INDEX('Smelter Look-up'!$A:$A,MATCH($A508,'Smelter Look-up'!$E:$E,0)))","v":""},{"$f":"IF(LEN(A508)=0,\"\",INDEX('Smelter Look-up'!$C:$C,MATCH($A508,'Smelter Look-up'!$E:$E,0)))","v":""},null,{"$f":"IF(ISERROR($V508),\"\",OFFSET('Smelter Look-up'!$D$4,$V508-4,0)&\"\")","v":""},{"$f":"IF(ISERROR($V508),\"\",OFFSET('Smelter Look-up'!$E$4,$V508-4,0))","v":""},{"$f":"IF(C508=$X$4,\"Enter smelter details\", IF(ISERROR($V508),\"\",OFFSET('Smelter Look-up'!$F$4,$V508-4,0)))","v":""},{"$f":"IF(ISERROR($V508),\"\",OFFSET('Smelter Look-up'!$G$4,$V508-4,0))","v":""},{"$f":"IF(ISERROR($V508),\"\",OFFSET('Smelter Look-up'!$H$4,$V508-4,0))","v":""},{"$f":"IF(ISERROR($V508),\"\",OFFSET('Smelter Look-up'!$I$4,$V508-4,0))","v":""},{"$nulls":7},{"$f":"IF(ISERROR($V508),\"\",OFFSET('Smelter Look-up'!$C$4,$V508-4,0)&\"\")","v":""},"",{"$f":"IF(B508=\"\",\"\",IF(ISERROR(MATCH($J508,SorP!$B$1:$B$6230,0)),\"\",INDIRECT(\"'SorP'!$A$\"&MATCH($J508,SorP!$B$1:$B$6230,0))))","v":""},null,{"$f":"IF(C508=\"\",NA(),MATCH($B508&$C508,'Smelter Look-up'!$J:$J,0))","v":{"$error":"#N/A"}},null,0,null,null,null,""]
[null,{"$f":"IF(LEN(A509)=0,\"\",INDEX('Smelter Look-up'!$A:$A,MATCH($A509,'Smelter Look-up'!$E:$E,0)))","v":""},{"$f":"IF(LEN(A509)=0,\"\",INDEX('Smelter Look-up'!$C:$C,MATCH($A509,'Smelter Look-up'!$E:$E,0)))","v":""},null,{"$f":"IF(ISERROR($V509),\"\",OFFSET('Smelter Look-up'!$D$4,$V509-4,0)&\"\")","v":""},{"$f":"IF(ISERROR($V509),\"\",OFFSET('Smelter Look-up'!$E$4,$V509-4,0))","v":""},{"$f":"IF(C509=$X$4,\"Enter smelter details\", IF(ISERROR($V509),\"\",OFFSET('Smelter Look-up'!$F$4,$V509-4,0)))","v":""},{"$f":"IF(ISERROR($V509),\"\",OFFSET('Smelter Look-up'!$G$4,$V509-4,0))","v":""},{"$f":"IF(ISERROR($V509),\"\",OFFSET('Smelter Look-up'!$H$4,$V509-4,0))","v":""},{"$f":"IF(ISERROR($V509),\"\",OFFSET('Smelter Look-up'!$I$4,$V509-4,0))","v":""},{"$nulls":7},{"$f":"IF(ISERROR($V509),\"\",OFFSET('Smelter Look-up'!$C$4,$V509-4,0)&\"\")","v":""},"",{"$f":"IF(B509=\"\",\"\",IF(ISERROR(MATCH($J509,SorP!$B$1:$B$6230,0)),\"\",INDIRECT(\"'SorP'!$A$\"&MATCH($J509,SorP!$B$1:$B$6230,0))))","v":""},null,{"$f":"IF(C509=\"\",NA(),MATCH($B509&$C509,'Smelter Look-up'!$J:$J,0))","v":{"$error":"#N/A"}},null,0,null,null,null,""]
[null,{"$f":"IF(LEN(A510)=0,\"\",INDEX('Smelter Look-up'!$A:$A,MATCH($A510,'Smelter Look-up'!$E:$E,0)))","v":""},{"$f":"IF(LEN(A510)=0,\"\",INDEX('Smelter Look-up'!$C:$C,MATCH($A510,'Smelter Look-up'!$E:$E,0)))","v":""},null,{"$f":"IF(ISERROR($V510),\"\",OFFSET('Smelter Look-up'!$D$4,$V510-4,0)&\"\")","v":""},{"$f":"IF(ISERROR($V510),\"\",OFFSET('Smelter Look-up'!$E$4,$V510-4,0))","v":""},{"$f":"IF(C510=$X$4,\"Enter smelter details\", IF(ISERROR($V510),\"\",OFFSET('Smelter Look-up'!$F$4,$V510-4,0)))","v":""},{"$f":"IF(ISERROR($V510),\"\",OFFSET('Smelter Look-up'!$G$4,$V510-4,0))","v":""},{"$f":"IF(ISERROR($V510),\"\",OFFSET('Smelter Look-up'!$H$4,$V510-4,0))","v":""},{"$f":"IF(ISERROR($V510),\"\",OFFSET('Smelter Look-up'!$I$4,$V510-4,0))","v":""},{"$nulls":7},{"$f":"IF(ISERROR($V510),\"\",OFFSET('Smelter Look-up'!$C$4,$V510-4,0)&\"\")","v":""},"",{"$f":"IF(B510=\"\",\"\",IF(ISERROR(MATCH($J510,SorP!$B$1:$B$6230,0)),\"\",INDIRECT(\"'SorP'!$A$\"&MATCH($J510,SorP!$B$1:$B$6230,0))))","v":""},null,{"$f":"IF(C510=\"\",NA(),MATCH($B510&$C510,'Smelter Look-up'!$J:$J,0))","v":{"$error":"#N/A"}},null,0,null,null,null,""]
[null,{"$f":"IF(LEN(A511)=0,\"\",INDEX('Smelter Look-up'!$A:$A,MATCH($A511,'Smelter Look-up'!$E:$E,0)))","v":""},{"$f":"IF(LEN(A511)=0,\"\",INDEX('Smelter Look-up'!$C:$C,MATCH($A511,'Smelter Look-up'!$E:$E,0)))","v":""},null,{"$f":"IF(ISERROR($V511),\"\",OFFSET('Smelter Look-up'!$D$4,$V511-4,0)&\"\")","v":""},{"$f":"IF(ISERROR($V511),\"\",OFFSET('Smelter Look-up'!$E$4,$V511-4,0))","v":""},{"$f":"IF(C511=$X$4,\"Enter smelter details\", IF(ISERROR($V511),\"\",OFFSET('Smelter Look-up'!$F$4,$V511-4,0)))","v":""},{"$f":"IF(ISERROR($V511),\"\",OFFSET('Smelter Look-up'!$G$4,$V511-4,0))","v":""},{"$f":"IF(ISERROR($V511),\"\",OFFSET('Smelter Look-up'!$H$4,$V511-4,0))","v":""},{"$f":"IF(ISERROR($V511),\"\",OFFSET('Smelter Look-up'!$I$4,$V511-4,0))","v":""},{"$nulls":7},{"$f":"IF(ISERROR($V511),\"\",OFFSET('Smelter Look-up'!$C$4,$V511-4,0)&\"\")","v":""},"",{"$f":"IF(B511=\"\",\"\",IF(ISERROR(MATCH($J511,SorP!$B$1:$B$6230,0)),\"\",INDIRECT(\"'SorP'!$A$\"&MATCH($J511,SorP!$B$1:$B$6230,0))))","v":""},null,{"$f":"IF(C511=\"\",NA(),MATCH($B511&$C511,'Smelter Look-up'!$J:$J,0))","v":{"$error":"#N/A"}},null,0,null,null,null,""]
[null,{"$f":"IF(LEN(A512)=0,\"\",INDEX('Smelter Look-up'!$A:$A,MATCH($A512,'Smelter Look-up'!$E:$E,0)))","v":""},{"$f":"IF(LEN(A512)=0,\"\",INDEX('Smelter Look-up'!$C:$C,MATCH($A512,'Smelter Look-up'!$E:$E,0)))","v":""},null,{"$f":"IF(ISERROR($V512),\"\",OFFSET('Smelter Look-up'!$D$4,$V512-4,0)&\"\")","v":""},{"$f":"IF(ISERROR($V512),\"\",OFFSET('Smelter Look-up'!$E$4,$V512-4,0))","v":""},{"$f":"IF(C512=$X$4,\"Enter smelter details\", IF(ISERROR($V512),\"\",OFFSET('Smelter Look-up'!$F$4,$V512-4,0)))","v":""},{"$f":"IF(ISERROR($V512),\"\",OFFSET('Smelter Look-up'!$G$4,$V512-4,0))","v":""},{"$f":"IF(ISERROR($V512),\"\",OFFSET('Smelter Look-up'!$H$4,$V512-4,0))","v":""},{"$f":"IF(ISERROR($V512),\"\",OFFSET('Smelter Look-up'!$I$4,$V512-4,0))","v":""},{"$nulls":7},{"$f":"IF(ISERROR($V512),\"\",OFFSET('Smelter Look-up'!$C$4,$V512-4,0)&\"\")","v":""},"",{"$f":"IF(B512=\"\",\"\",IF(ISERROR(MATCH($J512,SorP!$B$1:$B$6230,0)),\"\",INDIRECT(\"'SorP'!$A$\"&MATCH($J512,SorP!$B$1:$B$6230,0))))","v":""},null,{"$f":"IF(C512=\"\",NA(),MATCH($B512&$C512,'Smelter Look-up'!$J:$J,0))","v":{"$error":"#N/A"}},null,0,null,null,null,""]
[null,{"$f":"IF(LEN(A513)=0,\"\",INDEX('Smelter Look-up'!$A:$A,MATCH($A513,'Smelter Look-up'!$E:$E,0)))","v":""},{"$f":"IF(LEN(A513)=0,\"\",INDEX('Smelter Look-up'!$C:$C,MATCH($A513,'Smelter Look-up'!$E:$E,0)))","v":""},null,{"$f":"IF(ISERROR($V513),\"\",OFFSET('Smelter Look-up'!$D$4,$V513-4,0)&\"\")","v":""},{"$f":"IF(ISERROR($V513),\"\",OFFSET('Smelter Look-up'!$E$4,$V513-4,0))","v":""},{"$f":"IF(C513=$X$4,\"Enter smelter details\", IF(ISERROR($V513),\"\",OFFSET('Smelter Look-up'!$F$4,$V513-4,0)))","v":""},{"$f":"IF(ISERROR($V513),\"\",OFFSET('Smelter Look-up'!$G$4,$V513-4,0))","v":""},{"$f":"IF(ISERROR($V513),\"\",OFFSET('Smelter Look-up'!$H$4,$V513-4,0))","v":""},{"$f":"IF(ISERROR($V513),\"\",OFFSET('Smelter Look-up'!$I$4,$V513-4,0))","v":""},{"$nulls":7},{"$f":"IF(ISERROR($V513),\"\",OFFSET('Smelter Look-up'!$C$4,$V513-4,0)&\"\")","v":""},"",{"$f":"IF(B513=\"\",\"\",IF(ISERROR(MATCH($J513,SorP!$B$1:$B$6230,0)),\"\",INDIRECT(\"'SorP'!$A$\"&MATCH($J513,SorP!$B$1:$B$6230,0))))","v":""},null,{"$f":"IF(C513=\"\",NA(),MATCH($B513&$C513,'Smelter Look-up'!$J:$J,0))","v":{"$error":"#N/A"}},null,0,null,null,null,""]
[null,{"$f":"IF(LEN(A514)=0,\"\",INDEX('Smelter Look-up'!$A:$A,MATCH($A514,'Smelter Look-up'!$E:$E,0)))","v":""},{"$f":"IF(LEN(A514)=0,\"\",INDEX('Smelter Look-up'!$C:$C,MATCH($A514,'Smelter Look-up'!$E:$E,0)))","v":""},null,{"$f":"IF(ISERROR($V514),\"\",OFFSET('Smelter Look-up'!$D$4,$V514-4,0)&\"\")","v":""},{"$f":"IF(ISERROR($V514),\"\",OFFSET('Smelter Look-up'!$E$4,$V514-4,0))","v":""},{"$f":"IF(C514=$X$4,\"Enter smelter details\", IF(ISERROR($V514),\"\",OFFSET('Smelter Look-up'!$F$4,$V514-4,0)))","v":""},{"$f":"IF(ISERROR($V514),\"\",OFFSET('Smelter Look-up'!$G$4,$V514-4,0))","v":""},{"$f":"IF(ISERROR($V514),\"\",OFFSET('Smelter Look-up'!$H$4,$V514-4,0))","v":""},{"$f":"IF(ISERROR($V514),\"\",OFFSET('Smelter Look-up'!$I$4,$V514-4,0))","v":""},{"$nulls":7},{"$f":"IF(ISERROR($V514),\"\",OFFSET('Smelter Look-up'!$C$4,$V514-4,0)&\"\")","v":""},"",{"$f":"IF(B514=\"\",\"\",IF(ISERROR(MATCH($J514,SorP!$B$1:$B$6230,0)),\"\",INDIRECT(\"'SorP'!$A$\"&MATCH($J514,SorP!$B$1:$B$6230,0))))","v":""},null,{"$f":"IF(C514=\"\",NA(),MATCH($B514&$C514,'Smelter Look-up'!$J:$J,0))","v":{"$error":"#N/A"}},null,0,null,null,null,""]
[null,{"$f":"IF(LEN(A515)=0,\"\",INDEX('Smelter Look-up'!$A:$A,MATCH($A515,'Smelter Look-up'!$E:$E,0)))","v":""},{"$f":"IF(LEN(A515)=0,\"\",INDEX('Smelter Look-up'!$C:$C,MATCH($A515,'Smelter Look-up'!$E:$E,0)))","v":""},null,{"$f":"IF(ISERROR($V515),\"\",OFFSET('Smelter Look-up'!$D$4,$V515-4,0)&\"\")","v":""},{"$f":"IF(ISERROR($V515),\"\",OFFSET('Smelter Look-up'!$E$4,$V515-4,0))","v":""},{"$f":"IF(C515=$X$4,\"Enter smelter details\", IF(ISERROR($V515),\"\",OFFSET('Smelter Look-up'!$F$4,$V515-4,0)))","v":""},{"$f":"IF(ISERROR($V515),\"\",OFFSET('Smelter Look-up'!$G$4,$V515-4,0))","v":""},{"$f":"IF(ISERROR($V515),\"\",OFFSET('Smelter Look-up'!$H$4,$V515-4,0))","v":""},{"$f":"IF(ISERROR($V515),\"\",OFFSET('Smelter Look-up'!$I$4,$V515-4,0))","v":""},{"$nulls":7},{"$f":"IF(ISERROR($V515),\"\",OFFSET('Smelter Look-up'!$C$4,$V515-4,0)&\"\")","v":""},"",{"$f":"IF(B515=\"\",\"\",IF(ISERROR(MATCH($J515,SorP!$B$1:$B$6230,0)),\"\",INDIRECT(\"'SorP'!$A$\"&MATCH($J515,SorP!$B$1:$B$6230,0))))","v":""},null,{"$f":"IF(C515=\"\",NA(),MATCH($B515&$C515,'Smelter Look-up'!$J:$J,0))","v":{"$error":"#N/A"}},null,0,null,null,null,""]
[null,{"$f":"IF(LEN(A516)=0,\"\",INDEX('Smelter Look-up'!$A:$A,MATCH($A516,'Smelter Look-up'!$E:$E,0)))","v":""},{"$f":"IF(LEN(A516)=0,\"\",INDEX('Smelter Look-up'!$C:$C,MATCH($A516,'Smelter Look-up'!$E:$E,0)))","v":""},null,{"$f":"IF(ISERROR($V516),\"\",OFFSET('Smelter Look-up'!$D$4,$V516-4,0)&\"\")","v":""},{"$f":"IF(ISERROR($V516),\"\",OFFSET('Smelter Look-up'!$E$4,$V516-4,0))","v":""},{"$f":"IF(C516=$X$4,\"Enter smelter details\", IF(ISERROR($V516),\"\",OFFSET('Smelter Look-up'!$F$4,$V516-4,0)))","v":""},{"$f":"IF(ISERROR($V516),\"\",OFFSET('Smelter Look-up'!$G$4,$V516-4,0))","v":""},{"$f":"IF(ISERROR($V516),\"\",OFFSET('Smelter Look-up'!$H$4,$V516-4,0))","v":""},{"$f":"IF(ISERROR($V516),\"\",OFFSET('Smelter Look-up'!$I$4,$V516-4,0))","v":""},{"$nulls":7},{"$f":"IF(ISERROR($V516),\"\",OFFSET('Smelter Look-up'!$C$4,$V516-4,0)&\"\")","v":""},"",{"$f":"IF(B516=\"\",\"\",IF(ISERROR(MATCH($J516,SorP!$B$1:$B$6230,0)),\"\",INDIRECT(\"'SorP'!$A$\"&MATCH($J516,SorP!$B$1:$B$6230,0))))","v":""},null,{"$f":"IF(C516=\"\",NA(),MATCH($B516&$C516,'Smelter Look-up'!$J:$J,0))","v":{"$error":"#N/A"}},null,0,null,null,null,""]
[null,{"$f":"IF(LEN(A517)=0,\"\",INDEX('Smelter Look-up'!$A:$A,MATCH($A517,'Smelter Look-up'!$E:$E,0)))","v":""},{"$f":"IF(LEN(A517)=0,\"\",INDEX('Smelter Look-up'!$C:$C,MATCH($A517,'Smelter Look-up'!$E:$E,0)))","v":""},null,{"$f":"IF(ISERROR($V517),\"\",OFFSET('Smelter Look-up'!$D$4,$V517-4,0)&\"\")","v":""},{"$f":"IF(ISERROR($V517),\"\",OFFSET('Smelter Look-up'!$E$4,$V517-4,0))","v":""},{"$f":"IF(C517=$X$4,\"Enter smelter details\", IF(ISERROR($V517),\"\",OFFSET('Smelter Look-up'!$F$4,$V517-4,0)))","v":""},{"$f":"IF(ISERROR($V517),\"\",OFFSET('Smelter Look-up'!$G$4,$V517-4,0))","v":""},{"$f":"IF(ISERROR($V517),\"\",OFFSET('Smelter Look-up'!$H$4,$V517-4,0))","v":""},{"$f":"IF(ISERROR($V517),\"\",OFFSET('Smelter Look-up'!$I$4,$V517-4,0))","v":""},{"$nulls":7},{"$f":"IF(ISERROR($V517),\"\",OFFSET('Smelter Look-up'!$C$4,$V517-4,0)&\"\")","v":""},"",{"$f":"IF(B517=\"\",\"\",IF(ISERROR(MATCH($J517,SorP!$B$1:$B$6230,0)),\"\",INDIRECT(\"'SorP'!$A$\"&MATCH($J517,SorP!$B$1:$B$6230,0))))","v":""},null,{"$f":"IF(C517=\"\",NA(),MATCH($B517&$C517,'Smelter Look-up'!$J:$J,0))","v":{"$error":"#N/A"}},null,0,null,null,null,""]
[null,{"$f":"IF(LEN(A518)=0,\"\",INDEX('Smelter Look-up'!$A:$A,MATCH($A518,'Smelter Look-up'!$E:$E,0)))","v":""},{"$f":"IF(LEN(A518)=0,\"\",INDEX('Smelter Look-up'!$C:$C,MATCH($A518,'Smelter Look-up'!$E:$E,0)))","v":""},null,{"$f":"IF(ISERROR($V518),\"\",OFFSET('Smelter Look-up'!$D$4,$V518-4,0)&\"\")","v":""},{"$f":"IF(ISERROR($V518),\"\",OFFSET('Smelter Look-up'!$E$4,$V518-4,0))","v":""},{"$f":"IF(C518=$X$4,\"Enter smelter details\", IF(ISERROR($V518),\"\",OFFSET('Smelter Look-up'!$F$4,$V518-4,0)))","v":""},{"$f":"IF(ISERROR($V518),\"\",OFFSET('Smelter Look-up'!$G$4,$V518-4,0))","v":""},{"$f":"IF(ISERROR($V518),\"\",OFFSET('Smelter Look-up'!$H$4,$V518-4,0))","v":""},{"$f":"IF(ISERROR($V518),\"\",OFFSET('Smelter Look-up'!$I$4,$V518-4,0))","v":""},{"$nulls":7},{"$f":"IF(ISERROR($V518),\"\",OFFSET('Smelter Look-up'!$C$4,$V518-4,0)&\"\")","v":""},"",{"$f":"IF(B518=\"\",\"\",IF(ISERROR(MATCH($J518,SorP!$B$1:$B$6230,0)),\"\",INDIRECT(\"'SorP'!$A$\"&MATCH($J518,SorP!$B$1:$B$6230,0))))","v":""},null,{"$f":"IF(C518=\"\",NA(),MATCH($B518&$C518,'Smelter Look-up'!$J:$J,0))","v":{"$error":"#N/A"}},null,0,null,null,null,""]
[null,{"$f":"IF(LEN(A519)=0,\"\",INDEX('Smelter Look-up'!$A:$A,MATCH($A519,'Smelter Look-up'!$E:$E,0)))","v":""},{"$f":"IF(LEN(A519)=0,\"\",INDEX('Smelter Look-up'!$C:$C,MATCH($A519,'Smelter Look-up'!$E:$E,0)))","v":""},null,{"$f":"IF(ISERROR($V519),\"\",OFFSET('Smelter Look-up'!$D$4,$V519-4,0)&\"\")","v":""},{"$f":"IF(ISERROR($V519),\"\",OFFSET('Smelter Look-up'!$E$4,$V519-4,0))","v":""},{"$f":"IF(C519=$X$4,\"Enter smelter details\", IF(ISERROR($V519),\"\",OFFSET('Smelter Look-up'!$F$4,$V519-4,0)))","v":""},{"$f":"IF(ISERROR($V519),\"\",OFFSET('Smelter Look-up'!$G$4,$V519-4,0))","v":""},{"$f":"IF(ISERROR($V519),\"\",OFFSET('Smelter Look-up'!$H$4,$V519-4,0))","v":""},{"$f":"IF(ISERROR($V519),\"\",OFFSET('Smelter Look-up'!$I$4,$V519-4,0))","v":""},{"$nulls":7},{"$f":"IF(ISERROR($V519),\"\",OFFSET('Smelter Look-up'!$C$4,$V519-4,0)&\"\")","v":""},"",{"$f":"IF(B519=\"\",\"\",IF(ISERROR(MATCH($J519,SorP!$B$1:$B$6230,0)),\"\",INDIRECT(\"'SorP'!$A$\"&MATCH($J519,SorP!$B$1:$B$6230,0))))","v":""},null,{"$f":"IF(C519=\"\",NA(),MATCH($B519&$C519,'Smelter Look-up'!$J:$J,0))","v":{"$error":"#N/A"}},null,0,null,null,null,""]
[null,{"$f":"IF(LEN(A520)=0,\"\",INDEX('Smelter Look-up'!$A:$A,MATCH($A520,'Smelter Look-up'!$E:$E,0)))","v":""},{"$f":"IF(LEN(A520)=0,\"\",INDEX('Smelter Look-up'!$C:$C,MATCH($A520,'Smelter Look-up'!$E:$E,0)))","v":""},null,{"$f":"IF(ISERROR($V520),\"\",OFFSET('Smelter Look-up'!$D$4,$V520-4,0)&\"\")","v":""},{"$f":"IF(ISERROR($V520),\"\",OFFSET('Smelter Look-up'!$E$4,$V520-4,0))","v":""},{"$f":"IF(C520=$X$4,\"Enter smelter details\", IF(ISERROR($V520),\"\",OFFSET('Smelter Look-up'!$F$4,$V520-4,0)))","v":""},{"$f":"IF(ISERROR($V520),\"\",OFFSET('Smelter Look-up'!$G$4,$V520-4,0))","v":""},{"$f":"IF(ISERROR($V520),\"\",OFFSET('Smelter Look-up'!$H$4,$V520-4,0))","v":""},{"$f":"IF(ISERROR($V520),\"\",OFFSET('Smelter Look-up'!$I$4,$V520-4,0))","v":""},{"$nulls":7},{"$f":"IF(ISERROR($V520),\"\",OFFSET('Smelter Look-up'!$C$4,$V520-4,0)&\"\")","v":""},"",{"$f":"IF(B520=\"\",\"\",IF(ISERROR(MATCH($J520,SorP!$B$1:$B$6230,0)),\"\",INDIRECT(\"'SorP'!$A$\"&MATCH($J520,SorP!$B$1:$B$6230,0))))","v":""},null,{"$f":"IF(C520=\"\",NA(),MATCH($B520&$C520,'Smelter Look-up'!$J:$J,0))","v":{"$error":"#N/A"}},null,0,null,null,null,""]
[null,{"$f":"IF(LEN(A521)=0,\"\",INDEX('Smelter Look-up'!$A:$A,MATCH($A521,'Smelter Look-up'!$E:$E,0)))","v":""},{"$f":"IF(LEN(A521)=0,\"\",INDEX('Smelter Look-up'!$C:$C,MATCH($A521,'Smelter Look-up'!$E:$E,0)))","v":""},null,{"$f":"IF(ISERROR($V521),\"\",OFFSET('Smelter Look-up'!$D$4,$V521-4,0)&\"\")","v":""},{"$f":"IF(ISERROR($V521),\"\",OFFSET('Smelter Look-up'!$E$4,$V521-4,0))","v":""},{"$f":"IF(C521=$X$4,\"Enter smelter details\", IF(ISERROR($V521),\"\",OFFSET('Smelter Look-up'!$F$4,$V521-4,0)))","v":""},{"$f":"IF(ISERROR($V521),\"\",OFFSET('Smelter Look-up'!$G$4,$V521-4,0))","v":""},{"$f":"IF(ISERROR($V521),\"\",OFFSET('Smelter Look-up'!$H$4,$V521-4,0))","v":""},{"$f":"IF(ISERROR($V521),\"\",OFFSET('Smelter Look-up'!$I$4,$V521-4,0))","v":""},{"$nulls":7},{"$f":"IF(ISERROR($V521),\"\",OFFSET('Smelter Look-up'!$C$4,$V521-4,0)&\"\")","v":""},"",{"$f":"IF(B521=\"\",\"\",IF(ISERROR(MATCH($J521,SorP!$B$1:$B$6230,0)),\"\",INDIRECT(\"'SorP'!$A$\"&MATCH($J521,SorP!$B$1:$B$6230,0))))","v":""},null,{"$f":"IF(C521=\"\",NA(),MATCH($B521&$C521,'Smelter Look-up'!$J:$J,0))","v":{"$error":"#N/A"}},null,0,null,null,null,""]
[null,{"$f":"IF(LEN(A522)=0,\"\",INDEX('Smelter Look-up'!$A:$A,MATCH($A522,'Smelter Look-up'!$E:$E,0)))","v":""},{"$f":"IF(LEN(A522)=0,\"\",INDEX('Smelter Look-up'!$C:$C,MATCH($A522,'Smelter Look-up'!$E:$E,0)))","v":""},null,{"$f":"IF(ISERROR($V522),\"\",OFFSET('Smelter Look-up'!$D$4,$V522-4,0)&\"\")","v":""},{"$f":"IF(ISERROR($V522),\"\",OFFSET('Smelter Look-up'!$E$4,$V522-4,0))","v":""},{"$f":"IF(C522=$X$4,\"Enter smelter details\", IF(ISERROR($V522),\"\",OFFSET('Smelter Look-up'!$F$4,$V522-4,0)))","v":""},{"$f":"IF(ISERROR($V522),\"\",OFFSET('Smelter Look-up'!$G$4,$V522-4,0))","v":""},{"$f":"IF(ISERROR($V522),\"\",OFFSET('Smelter Look-up'!$H$4,$V522-4,0))","v":""},{"$f":"IF(ISERROR($V522),\"\",OFFSET('Smelter Look-up'!$I$4,$V522-4,0))","v":""},{"$nulls":7},{"$f":"IF(ISERROR($V522),\"\",OFFSET('Smelter Look-up'!$C$4,$V522-4,0)&\"\")","v":""},"",{"$f":"IF(B522=\"\",\"\",IF(ISERROR(MATCH($J522,SorP!$B$1:$B$6230,0)),\"\",INDIRECT(\"'SorP'!$A$\"&MATCH($J522,SorP!$B$1:$B$6230,0))))","v":""},null,{"$f":"IF(C522=\"\",NA(),MATCH($B522&$C522,'Smelter Look-up'!$J:$J,0))","v":{"$error":"#N/A"}},null,0,null,null,null,""]
[null,{"$f":"IF(LEN(A523)=0,\"\",INDEX('Smelter Look-up'!$A:$A,MATCH($A523,'Smelter Look-up'!$E:$E,0)))","v":""},{"$f":"IF(LEN(A523)=0,\"\",INDEX('Smelter Look-up'!$C:$C,MATCH($A523,'Smelter Look-up'!$E:$E,0)))","v":""},null,{"$f":"IF(ISERROR($V523),\"\",OFFSET('Smelter Look-up'!$D$4,$V523-4,0)&\"\")","v":""},{"$f":"IF(ISERROR($V523),\"\",OFFSET('Smelter Look-up'!$E$4,$V523-4,0))","v":""},{"$f":"IF(C523=$X$4,\"Enter smelter details\", IF(ISERROR($V523),\"\",OFFSET('Smelter Look-up'!$F$4,$V523-4,0)))","v":""},{"$f":"IF(ISERROR($V523),\"\",OFFSET('Smelter Look-up'!$G$4,$V523-4,0))","v":""},{"$f":"IF(ISERROR($V523),\"\",OFFSET('Smelter Look-up'!$H$4,$V523-4,0))","v":""},{"$f":"IF(ISERROR($V523),\"\",OFFSET('Smelter Look-up'!$I$4,$V523-4,0))","v":""},{"$nulls":7},{"$f":"IF(ISERROR($V523),\"\",OFFSET('Smelter Look-up'!$C$4,$V523-4,0)&\"\")","v":""},"",{"$f":"IF(B523=\"\",\"\",IF(ISERROR(MATCH($J523,SorP!$B$1:$B$6230,0)),\"\",INDIRECT(\"'SorP'!$A$\"&MATCH($J523,SorP!$B$1:$B$6230,0))))","v":""},null,{"$f":"IF(C523=\"\",NA(),MATCH($B523&$C523,'Smelter Look-up'!$J:$J,0))","v":{"$error":"#N/A"}},null,0,null,null,null,""]
[null,{"$f":"IF(LEN(A524)=0,\"\",INDEX('Smelter Look-up'!$A:$A,MATCH($A524,'Smelter Look-up'!$E:$E,0)))","v":""},{"$f":"IF(LEN(A524)=0,\"\",INDEX('Smelter Look-up'!$C:$C,MATCH($A524,'Smelter Look-up'!$E:$E,0)))","v":""},null,{"$f":"IF(ISERROR($V524),\"\",OFFSET('Smelter Look-up'!$D$4,$V524-4,0)&\"\")","v":""},{"$f":"IF(ISERROR($V524),\"\",OFFSET('Smelter Look-up'!$E$4,$V524-4,0))","v":""},{"$f":"IF(C524=$X$4,\"Enter smelter details\", IF(ISERROR($V524),\"\",OFFSET('Smelter Look-up'!$F$4,$V524-4,0)))","v":""},{"$f":"IF(ISERROR($V524),\"\",OFFSET('Smelter Look-up'!$G$4,$V524-4,0))","v":""},{"$f":"IF(ISERROR($V524),\"\",OFFSET('Smelter Look-up'!$H$4,$V524-4,0))","v":""},{"$f":"IF(ISERROR($V524),\"\",OFFSET('Smelter Look-up'!$I$4,$V524-4,0))","v":""},{"$nulls":7},{"$f":"IF(ISERROR($V524),\"\",OFFSET('Smelter Look-up'!$C$4,$V524-4,0)&\"\")","v":""},"",{"$f":"IF(B524=\"\",\"\",IF(ISERROR(MATCH($J524,SorP!$B$1:$B$6230,0)),\"\",INDIRECT(\"'SorP'!$A$\"&MATCH($J524,SorP!$B$1:$B$6230,0))))","v":""},null,{"$f":"IF(C524=\"\",NA(),MATCH($B524&$C524,'Smelter Look-up'!$J:$J,0))","v":{"$error":"#N/A"}},null,0,null,null,null,""]
[null,{"$f":"IF(LEN(A525)=0,\"\",INDEX('Smelter Look-up'!$A:$A,MATCH($A525,'Smelter Look-up'!$E:$E,0)))","v":""},{"$f":"IF(LEN(A525)=0,\"\",INDEX('Smelter Look-up'!$C:$C,MATCH($A525,'Smelter Look-up'!$E:$E,0)))","v":""},null,{"$f":"IF(ISERROR($V525),\"\",OFFSET('Smelter Look-up'!$D$4,$V525-4,0)&\"\")","v":""},{"$f":"IF(ISERROR($V525),\"\",OFFSET('Smelter Look-up'!$E$4,$V525-4,0))","v":""},{"$f":"IF(C525=$X$4,\"Enter smelter details\", IF(ISERROR($V525),\"\",OFFSET('Smelter Look-up'!$F$4,$V525-4,0)))","v":""},{"$f":"IF(ISERROR($V525),\"\",OFFSET('Smelter Look-up'!$G$4,$V525-4,0))","v":""},{"$f":"IF(ISERROR($V525),\"\",OFFSET('Smelter Look-up'!$H$4,$V525-4,0))","v":""},{"$f":"IF(ISERROR($V525),\"\",OFFSET('Smelter Look-up'!$I$4,$V525-4,0))","v":""},{"$nulls":7},{"$f":"IF(ISERROR($V525),\"\",OFFSET('Smelter Look-up'!$C$4,$V525-4,0)&\"\")","v":""},"",{"$f":"IF(B525=\"\",\"\",IF(ISERROR(MATCH($J525,SorP!$B$1:$B$6230,0)),\"\",INDIRECT(\"'SorP'!$A$\"&MATCH($J525,SorP!$B$1:$B$6230,0))))","v":""},null,{"$f":"IF(C525=\"\",NA(),MATCH($B525&$C525,'Smelter Look-up'!$J:$J,0))","v":{"$error":"#N/A"}},null,0,null,null,null,""]
[null,{"$f":"IF(LEN(A526)=0,\"\",INDEX('Smelter Look-up'!$A:$A,MATCH($A526,'Smelter Look-up'!$E:$E,0)))","v":""},{"$f":"IF(LEN(A526)=0,\"\",INDEX('Smelter Look-up'!$C:$C,MATCH($A526,'Smelter Look-up'!$E:$E,0)))","v":""},null,{"$f":"IF(ISERROR($V526),\"\",OFFSET('Smelter Look-up'!$D$4,$V526-4,0)&\"\")","v":""},{"$f":"IF(ISERROR($V526),\"\",OFFSET('Smelter Look-up'!$E$4,$V526-4,0))","v":""},{"$f":"IF(C526=$X$4,\"Enter smelter details\", IF(ISERROR($V526),\"\",OFFSET('Smelter Look-up'!$F$4,$V526-4,0)))","v":""},{"$f":"IF(ISERROR($V526),\"\",OFFSET('Smelter Look-up'!$G$4,$V526-4,0))","v":""},{"$f":"IF(ISERROR($V526),\"\",OFFSET('Smelter Look-up'!$H$4,$V526-4,0))","v":""},{"$f":"IF(ISERROR($V526),\"\",OFFSET('Smelter Look-up'!$I$4,$V526-4,0))","v":""},{"$nulls":7},{"$f":"IF(ISERROR($V526),\"\",OFFSET('Smelter Look-up'!$C$4,$V526-4,0)&\"\")","v":""},"",{"$f":"IF(B526=\"\",\"\",IF(ISERROR(MATCH($J526,SorP!$B$1:$B$6230,0)),\"\",INDIRECT(\"'SorP'!$A$\"&MATCH($J526,SorP!$B$1:$B$6230,0))))","v":""},null,{"$f":"IF(C526=\"\",NA(),MATCH($B526&$C526,'Smelter Look-up'!$J:$J,0))","v":{"$error":"#N/A"}},null,0,null,null,null,""]
[null,{"$f":"IF(LEN(A527)=0,\"\",INDEX('Smelter Look-up'!$A:$A,MATCH($A527,'Smelter Look-up'!$E:$E,0)))","v":""},{"$f":"IF(LEN(A527)=0,\"\",INDEX('Smelter Look-up'!$C:$C,MATCH($A527,'Smelter Look-up'!$E:$E,0)))","v":""},null,{"$f":"IF(ISERROR($V527),\"\",OFFSET('Smelter Look-up'!$D$4,$V527-4,0)&\"\")","v":""},{"$f":"IF(ISERROR($V527),\"\",OFFSET('Smelter Look-up'!$E$4,$V527-4,0))","v":""},{"$f":"IF(C527=$X$4,\"Enter smelter details\", IF(ISERROR($V527),\"\",OFFSET('Smelter Look-up'!$F$4,$V527-4,0)))","v":""},{"$f":"IF(ISERROR($V527),\"\",OFFSET('Smelter Look-up'!$G$4,$V527-4,0))","v":""},{"$f":"IF(ISERROR($V527),\"\",OFFSET('Smelter Look-up'!$H$4,$V527-4,0))","v":""},{"$f":"IF(ISERROR($V527),\"\",OFFSET('Smelter Look-up'!$I$4,$V527-4,0))","v":""},{"$nulls":7},{"$f":"IF(ISERROR($V527),\"\",OFFSET('Smelter Look-up'!$C$4,$V527-4,0)&\"\")","v":""},"",{"$f":"IF(B527=\"\",\"\",IF(ISERROR(MATCH($J527,SorP!$B$1:$B$6230,0)),\"\",INDIRECT(\"'SorP'!$A$\"&MATCH($J527,SorP!$B$1:$B$6230,0))))","v":""},null,{"$f":"IF(C527=\"\",NA(),MATCH($B527&$C527,'Smelter Look-up'!$J:$J,0))","v":{"$error":"#N/A"}},null,0,null,null,null,""]
[null,{"$f":"IF(LEN(A528)=0,\"\",INDEX('Smelter Look-up'!$A:$A,MATCH($A528,'Smelter Look-up'!$E:$E,0)))","v":""},{"$f":"IF(LEN(A528)=0,\"\",INDEX('Smelter Look-up'!$C:$C,MATCH($A528,'Smelter Look-up'!$E:$E,0)))","v":""},null,{"$f":"IF(ISERROR($V528),\"\",OFFSET('Smelter Look-up'!$D$4,$V528-4,0)&\"\")","v":""},{"$f":"IF(ISERROR($V528),\"\",OFFSET('Smelter Look-up'!$E$4,$V528-4,0))","v":""},{"$f":"IF(C528=$X$4,\"Enter smelter details\", IF(ISERROR($V528),\"\",OFFSET('Smelter Look-up'!$F$4,$V528-4,0)))","v":""},{"$f":"IF(ISERROR($V528),\"\",OFFSET('Smelter Look-up'!$G$4,$V528-4,0))","v":""},{"$f":"IF(ISERROR($V528),\"\",OFFSET('Smelter Look-up'!$H$4,$V528-4,0))","v":""},{"$f":"IF(ISERROR($V528),\"\",OFFSET('Smelter Look-up'!$I$4,$V528-4,0))","v":""},{"$nulls":7},{"$f":"IF(ISERROR($V528),\"\",OFFSET('Smelter Look-up'!$C$4,$V528-4,0)&\"\")","v":""},"",{"$f":"IF(B528=\"\",\"\",IF(ISERROR(MATCH($J528,SorP!$B$1:$B$6230,0)),\"\",INDIRECT(\"'SorP'!$A$\"&MATCH($J528,SorP!$B$1:$B$6230,0))))","v":""},null,{"$f":"IF(C528=\"\",NA(),MATCH($B528&$C528,'Smelter Look-up'!$J:$J,0))","v":{"$error":"#N/A"}},null,0,null,null,null,""]
[null,{"$f":"IF(LEN(A529)=0,\"\",INDEX('Smelter Look-up'!$A:$A,MATCH($A529,'Smelter Look-up'!$E:$E,0)))","v":""},{"$f":"IF(LEN(A529)=0,\"\",INDEX('Smelter Look-up'!$C:$C,MATCH($A529,'Smelter Look-up'!$E:$E,0)))","v":""},null,{"$f":"IF(ISERROR($V529),\"\",OFFSET('Smelter Look-up'!$D$4,$V529-4,0)&\"\")","v":""},{"$f":"IF(ISERROR($V529),\"\",OFFSET('Smelter Look-up'!$E$4,$V529-4,0))","v":""},{"$f":"IF(C529=$X$4,\"Enter smelter details\", IF(ISERROR($V529),\"\",OFFSET('Smelter Look-up'!$F$4,$V529-4,0)))","v":""},{"$f":"IF(ISERROR($V529),\"\",OFFSET('Smelter Look-up'!$G$4,$V529-4,0))","v":""},{"$f":"IF(ISERROR($V529),\"\",OFFSET('Smelter Look-up'!$H$4,$V529-4,0))","v":""},{"$f":"IF(ISERROR($V529),\"\",OFFSET('Smelter Look-up'!$I$4,$V529-4,0))","v":""},{"$nulls":7},{"$f":"IF(ISERROR($V529),\"\",OFFSET('Smelter Look-up'!$C$4,$V529-4,0)&\"\")","v":""},"",{"$f":"IF(B529=\"\",\"\",IF(ISERROR(MATCH($J529,SorP!$B$1:$B$6230,0)),\"\",INDIRECT(\"'SorP'!$A$\"&MATCH($J529,SorP!$B$1:$B$6230,0))))","v":""},null,{"$f":"IF(C529=\"\",NA(),MATCH($B529&$C529,'Smelter Look-up'!$J:$J,0))","v":{"$error":"#N/A"}},null,0,null,null,null,""]
[null,{"$f":"IF(LEN(A530)=0,\"\",INDEX('Smelter Look-up'!$A:$A,MATCH($A530,'Smelter Look-up'!$E:$E,0)))","v":""},{"$f":"IF(LEN(A530)=0,\"\",INDEX('Smelter Look-up'!$C:$C,MATCH($A530,'Smelter Look-up'!$E:$E,0)))","v":""},null,{"$f":"IF(ISERROR($V530),\"\",OFFSET('Smelter Look-up'!$D$4,$V530-4,0)&\"\")","v":""},{"$f":"IF(ISERROR($V530),\"\",OFFSET('Smelter Look-up'!$E$4,$V530-4,0))","v":""},{"$f":"IF(C530=$X$4,\"Enter smelter details\", IF(ISERROR($V530),\"\",OFFSET('Smelter Look-up'!$F$4,$V530-4,0)))","v":""},{"$f":"IF(ISERROR($V530),\"\",OFFSET('Smelter Look-up'!$G$4,$V530-4,0))","v":""},{"$f":"IF(ISERROR($V530),\"\",OFFSET('Smelter Look-up'!$H$4,$V530-4,0))","v":""},{"$f":"IF(ISERROR($V530),\"\",OFFSET('Smelter Look-up'!$I$4,$V530-4,0))","v":""},{"$nulls":7},{"$f":"IF(ISERROR($V530),\"\",OFFSET('Smelter Look-up'!$C$4,$V530-4,0)&\"\")","v":""},"",{"$f":"IF(B530=\"\",\"\",IF(ISERROR(MATCH($J530,SorP!$B$1:$B$6230,0)),\"\",INDIRECT(\"'SorP'!$A$\"&MATCH($J530,SorP!$B$1:$B$6230,0))))","v":""},null,{"$f":"IF(C530=\"\",NA(),MATCH($B530&$C530,'Smelter Look-up'!$J:$J,0))","v":{"$error":"#N/A"}},null,0,null,null,null,""]
[null,{"$f":"IF(LEN(A531)=0,\"\",INDEX('Smelter Look-up'!$A:$A,MATCH($A531,'Smelter Look-up'!$E:$E,0)))","v":""},{"$f":"IF(LEN(A531)=0,\"\",INDEX('Smelter Look-up'!$C:$C,MATCH($A531,'Smelter Look-up'!$E:$E,0)))","v":""},null,{"$f":"IF(ISERROR($V531),\"\",OFFSET('Smelter Look-up'!$D$4,$V531-4,0)&\"\")","v":""},{"$f":"IF(ISERROR($V531),\"\",OFFSET('Smelter Look-up'!$E$4,$V531-4,0))","v":""},{"$f":"IF(C531=$X$4,\"Enter smelter details\", IF(ISERROR($V531),\"\",OFFSET('Smelter Look-up'!$F$4,$V531-4,0)))","v":""},{"$f":"IF(ISERROR($V531),\"\",OFFSET('Smelter Look-up'!$G$4,$V531-4,0))","v":""},{"$f":"IF(ISERROR($V531),\"\",OFFSET('Smelter Look-up'!$H$4,$V531-4,0))","v":""},{"$f":"IF(ISERROR($V531),\"\",OFFSET('Smelter Look-up'!$I$4,$V531-4,0))","v":""},{"$nulls":7},{"$f":"IF(ISERROR($V531),\"\",OFFSET('Smelter Look-up'!$C$4,$V531-4,0)&\"\")","v":""},"",{"$f":"IF(B531=\"\",\"\",IF(ISERROR(MATCH($J531,SorP!$B$1:$B$6230,0)),\"\",INDIRECT(\"'SorP'!$A$\"&MATCH($J531,SorP!$B$1:$B$6230,0))))","v":""},null,{"$f":"IF(C531=\"\",NA(),MATCH($B531&$C531,'Smelter Look-up'!$J:$J,0))","v":{"$error":"#N/A"}},null,0,null,null,null,""]
[null,{"$f":"IF(LEN(A532)=0,\"\",INDEX('Smelter Look-up'!$A:$A,MATCH($A532,'Smelter Look-up'!$E:$E,0)))","v":""},{"$f":"IF(LEN(A532)=0,\"\",INDEX('Smelter Look-up'!$C:$C,MATCH($A532,'Smelter Look-up'!$E:$E,0)))","v":""},null,{"$f":"IF(ISERROR($V532),\"\",OFFSET('Smelter Look-up'!$D$4,$V532-4,0)&\"\")","v":""},{"$f":"IF(ISERROR($V532),\"\",OFFSET('Smelter Look-up'!$E$4,$V532-4,0))","v":""},{"$f":"IF(C532=$X$4,\"Enter smelter details\", IF(ISERROR($V532),\"\",OFFSET('Smelter Look-up'!$F$4,$V532-4,0)))","v":""},{"$f":"IF(ISERROR($V532),\"\",OFFSET('Smelter Look-up'!$G$4,$V532-4,0))","v":""},{"$f":"IF(ISERROR($V532),\"\",OFFSET('Smelter Look-up'!$H$4,$V532-4,0))","v":""},{"$f":"IF(ISERROR($V532),\"\",OFFSET('Smelter Look-up'!$I$4,$V532-4,0))","v":""},{"$nulls":7},{"$f":"IF(ISERROR($V532),\"\",OFFSET('Smelter Look-up'!$C$4,$V532-4,0)&\"\")","v":""},"",{"$f":"IF(B532=\"\",\"\",IF(ISERROR(MATCH($J532,SorP!$B$1:$B$6230,0)),\"\",INDIRECT(\"'SorP'!$A$\"&MATCH($J532,SorP!$B$1:$B$6230,0))))","v":""},null,{"$f":"IF(C532=\"\",NA(),MATCH($B532&$C532,'Smelter Look-up'!$J:$J,0))","v":{"$error":"#N/A"}},null,0,null,null,null,""]
[null,{"$f":"IF(LEN(A533)=0,\"\",INDEX('Smelter Look-up'!$A:$A,MATCH($A533,'Smelter Look-up'!$E:$E,0)))","v":""},{"$f":"IF(LEN(A533)=0,\"\",INDEX('Smelter Look-up'!$C:$C,MATCH($A533,'Smelter Look-up'!$E:$E,0)))","v":""},null,{"$f":"IF(ISERROR($V533),\"\",OFFSET('Smelter Look-up'!$D$4,$V533-4,0)&\"\")","v":""},{"$f":"IF(ISERROR($V533),\"\",OFFSET('Smelter Look-up'!$E$4,$V533-4,0))","v":""},{"$f":"IF(C533=$X$4,\"Enter smelter details\", IF(ISERROR($V533),\"\",OFFSET('Smelter Look-up'!$F$4,$V533-4,0)))","v":""},{"$f":"IF(ISERROR($V533),\"\",OFFSET('Smelter Look-up'!$G$4,$V533-4,0))","v":""},{"$f":"IF(ISERROR($V533),\"\",OFFSET('Smelter Look-up'!$H$4,$V533-4,0))","v":""},{"$f":"IF(ISERROR($V533),\"\",OFFSET('Smelter Look-up'!$I$4,$V533-4,0))","v":""},{"$nulls":7},{"$f":"IF(ISERROR($V533),\"\",OFFSET('Smelter Look-up'!$C$4,$V533-4,0)&\"\")","v":""},"",{"$f":"IF(B533=\"\",\"\",IF(ISERROR(MATCH($J533,SorP!$B$1:$B$6230,0)),\"\",INDIRECT(\"'SorP'!$A$\"&MATCH($J533,SorP!$B$1:$B$6230,0))))","v":""},null,{"$f":"IF(C533=\"\",NA(),MATCH($B533&$C533,'Smelter Look-up'!$J:$J,0))","v":{"$error":"#N/A"}},null,0,null,null,null,""]
[null,{"$f":"IF(LEN(A534)=0,\"\",INDEX('Smelter Look-up'!$A:$A,MATCH($A534,'Smelter Look-up'!$E:$E,0)))","v":""},{"$f":"IF(LEN(A534)=0,\"\",INDEX('Smelter Look-up'!$C:$C,MATCH($A534,'Smelter Look-up'!$E:$E,0)))","v":""},null,{"$f":"IF(ISERROR($V534),\"\",OFFSET('Smelter Look-up'!$D$4,$V534-4,0)&\"\")","v":""},{"$f":"IF(ISERROR($V534),\"\",OFFSET('Smelter Look-up'!$E$4,$V534-4,0))","v":""},{"$f":"IF(C534=$X$4,\"Enter smelter details\", IF(ISERROR($V534),\"\",OFFSET('Smelter Look-up'!$F$4,$V534-4,0)))","v":""},{"$f":"IF(ISERROR($V534),\"\",OFFSET('Smelter Look-up'!$G$4,$V534-4,0))","v":""},{"$f":"IF(ISERROR($V534),\"\",OFFSET('Smelter Look-up'!$H$4,$V534-4,0))","v":""},{"$f":"IF(ISERROR($V534),\"\",OFFSET('Smelter Look-up'!$I$4,$V534-4,0))","v":""},{"$nulls":7},{"$f":"IF(ISERROR($V534),\"\",OFFSET('Smelter Look-up'!$C$4,$V534-4,0)&\"\")","v":""},"",{"$f":"IF(B534=\"\",\"\",IF(ISERROR(MATCH($J534,SorP!$B$1:$B$6230,0)),\"\",INDIRECT(\"'SorP'!$A$\"&MATCH($J534,SorP!$B$1:$B$6230,0))))","v":""},null,{"$f":"IF(C534=\"\",NA(),MATCH($B534&$C534,'Smelter Look-up'!$J:$J,0))","v":{"$error":"#N/A"}},null,0,null,null,null,""]
[null,{"$f":"IF(LEN(A535)=0,\"\",INDEX('Smelter Look-up'!$A:$A,MATCH($A535,'Smelter Look-up'!$E:$E,0)))","v":""},{"$f":"IF(LEN(A535)=0,\"\",INDEX('Smelter Look-up'!$C:$C,MATCH($A535,'Smelter Look-up'!$E:$E,0)))","v":""},null,{"$f":"IF(ISERROR($V535),\"\",OFFSET('Smelter Look-up'!$D$4,$V535-4,0)&\"\")","v":""},{"$f":"IF(ISERROR($V535),\"\",OFFSET('Smelter Look-up'!$E$4,$V535-4,0))","v":""},{"$f":"IF(C535=$X$4,\"Enter smelter details\", IF(ISERROR($V535),\"\",OFFSET('Smelter Look-up'!$F$4,$V535-4,0)))","v":""},{"$f":"IF(ISERROR($V535),\"\",OFFSET('Smelter Look-up'!$G$4,$V535-4,0))","v":""},{"$f":"IF(ISERROR($V535),\"\",OFFSET('Smelter Look-up'!$H$4,$V535-4,0))","v":""},{"$f":"IF(ISERROR($V535),\"\",OFFSET('Smelter Look-up'!$I$4,$V535-4,0))","v":""},{"$nulls":7},{"$f":"IF(ISERROR($V535),\"\",OFFSET('Smelter Look-up'!$C$4,$V535-4,0)&\"\")","v":""},"",{"$f":"IF(B535=\"\",\"\",IF(ISERROR(MATCH($J535,SorP!$B$1:$B$6230,0)),\"\",INDIRECT(\"'SorP'!$A$\"&MATCH($J535,SorP!$B$1:$B$6230,0))))","v":""},null,{"$f":"IF(C535=\"\",NA(),MATCH($B535&$C535,'Smelter Look-up'!$J:$J,0))","v":{"$error":"#N/A"}},null,0,null,null,null,""]
[null,{"$f":"IF(LEN(A536)=0,\"\",INDEX('Smelter Look-up'!$A:$A,MATCH($A536,'Smelter Look-up'!$E:$E,0)))","v":""},{"$f":"IF(LEN(A536)=0,\"\",INDEX('Smelter Look-up'!$C:$C,MATCH($A536,'Smelter Look-up'!$E:$E,0)))","v":""},null,{"$f":"IF(ISERROR($V536),\"\",OFFSET('Smelter Look-up'!$D$4,$V536-4,0)&\"\")","v":""},{"$f":"IF(ISERROR($V536),\"\",OFFSET('Smelter Look-up'!$E$4,$V536-4,0))","v":""},{"$f":"IF(C536=$X$4,\"Enter smelter details\", IF(ISERROR($V536),\"\",OFFSET('Smelter Look-up'!$F$4,$V536-4,0)))","v":""},{"$f":"IF(ISERROR($V536),\"\",OFFSET('Smelter Look-up'!$G$4,$V536-4,0))","v":""},{"$f":"IF(ISERROR($V536),\"\",OFFSET('Smelter Look-up'!$H$4,$V536-4,0))","v":""},{"$f":"IF(ISERROR($V536),\"\",OFFSET('Smelter Look-up'!$I$4,$V536-4,0))","v":""},{"$nulls":7},{"$f":"IF(ISERROR($V536),\"\",OFFSET('Smelter Look-up'!$C$4,$V536-4,0)&\"\")","v":""},"",{"$f":"IF(B536=\"\",\"\",IF(ISERROR(MATCH($J536,SorP!$B$1:$B$6230,0)),\"\",INDIRECT(\"'SorP'!$A$\"&MATCH($J536,SorP!$B$1:$B$6230,0))))","v":""},null,{"$f":"IF(C536=\"\",NA(),MATCH($B536&$C536,'Smelter Look-up'!$J:$J,0))","v":{"$error":"#N/A"}},null,0,null,null,null,""]
[null,{"$f":"IF(LEN(A537)=0,\"\",INDEX('Smelter Look-up'!$A:$A,MATCH($A537,'Smelter Look-up'!$E:$E,0)))","v":""},{"$f":"IF(LEN(A537)=0,\"\",INDEX('Smelter Look-up'!$C:$C,MATCH($A537,'Smelter Look-up'!$E:$E,0)))","v":""},null,{"$f":"IF(ISERROR($V537),\"\",OFFSET('Smelter Look-up'!$D$4,$V537-4,0)&\"\")","v":""},{"$f":"IF(ISERROR($V537),\"\",OFFSET('Smelter Look-up'!$E$4,$V537-4,0))","v":""},{"$f":"IF(C537=$X$4,\"Enter smelter details\", IF(ISERROR($V537),\"\",OFFSET('Smelter Look-up'!$F$4,$V537-4,0)))","v":""},{"$f":"IF(ISERROR($V537),\"\",OFFSET('Smelter Look-up'!$G$4,$V537-4,0))","v":""},{"$f":"IF(ISERROR($V537),\"\",OFFSET('Smelter Look-up'!$H$4,$V537-4,0))","v":""},{"$f":"IF(ISERROR($V537),\"\",OFFSET('Smelter Look-up'!$I$4,$V537-4,0))","v":""},{"$nulls":7},{"$f":"IF(ISERROR($V537),\"\",OFFSET('Smelter Look-up'!$C$4,$V537-4,0)&\"\")","v":""},"",{"$f":"IF(B537=\"\",\"\",IF(ISERROR(MATCH($J537,SorP!$B$1:$B$6230,0)),\"\",INDIRECT(\"'SorP'!$A$\"&MATCH($J537,SorP!$B$1:$B$6230,0))))","v":""},null,{"$f":"IF(C537=\"\",NA(),MATCH($B537&$C537,'Smelter Look-up'!$J:$J,0))","v":{"$error":"#N/A"}},null,0,null,null,null,""]
[null,{"$f":"IF(LEN(A538)=0,\"\",INDEX('Smelter Look-up'!$A:$A,MATCH($A538,'Smelter Look-up'!$E:$E,0)))","v":""},{"$f":"IF(LEN(A538)=0,\"\",INDEX('Smelter Look-up'!$C:$C,MATCH($A538,'Smelter Look-up'!$E:$E,0)))","v":""},null,{"$f":"IF(ISERROR($V538),\"\",OFFSET('Smelter Look-up'!$D$4,$V538-4,0)&\"\")","v":""},{"$f":"IF(ISERROR($V538),\"\",OFFSET('Smelter Look-up'!$E$4,$V538-4,0))","v":""},{"$f":"IF(C538=$X$4,\"Enter smelter details\", IF(ISERROR($V538),\"\",OFFSET('Smelter Look-up'!$F$4,$V538-4,0)))","v":""},{"$f":"IF(ISERROR($V538),\"\",OFFSET('Smelter Look-up'!$G$4,$V538-4,0))","v":""},{"$f":"IF(ISERROR($V538),\"\",OFFSET('Smelter Look-up'!$H$4,$V538-4,0))","v":""},{"$f":"IF(ISERROR($V538),\"\",OFFSET('Smelter Look-up'!$I$4,$V538-4,0))","v":""},{"$nulls":7},{"$f":"IF(ISERROR($V538),\"\",OFFSET('Smelter Look-up'!$C$4,$V538-4,0)&\"\")","v":""},"",{"$f":"IF(B538=\"\",\"\",IF(ISERROR(MATCH($J538,SorP!$B$1:$B$6230,0)),\"\",INDIRECT(\"'SorP'!$A$\"&MATCH($J538,SorP!$B$1:$B$6230,0))))","v":""},null,{"$f":"IF(C538=\"\",NA(),MATCH($B538&$C538,'Smelter Look-up'!$J:$J,0))","v":{"$error":"#N/A"}},null,0,null,null,null,""]
[null,{"$f":"IF(LEN(A539)=0,\"\",INDEX('Smelter Look-up'!$A:$A,MATCH($A539,'Smelter Look-up'!$E:$E,0)))","v":""},{"$f":"IF(LEN(A539)=0,\"\",INDEX('Smelter Look-up'!$C:$C,MATCH($A539,'Smelter Look-up'!$E:$E,0)))","v":""},null,{"$f":"IF(ISERROR($V539),\"\",OFFSET('Smelter Look-up'!$D$4,$V539-4,0)&\"\")","v":""},{"$f":"IF(ISERROR($V539),\"\",OFFSET('Smelter Look-up'!$E$4,$V539-4,0))","v":""},{"$f":"IF(C539=$X$4,\"Enter smelter details\", IF(ISERROR($V539),\"\",OFFSET('Smelter Look-up'!$F$4,$V539-4,0)))","v":""},{"$f":"IF(ISERROR($V539),\"\",OFFSET('Smelter Look-up'!$G$4,$V539-4,0))","v":""},{"$f":"IF(ISERROR($V539),\"\",OFFSET('Smelter Look-up'!$H$4,$V539-4,0))","v":""},{"$f":"IF(ISERROR($V539),\"\",OFFSET('Smelter Look-up'!$I$4,$V539-4,0))","v":""},{"$nulls":7},{"$f":"IF(ISERROR($V539),\"\",OFFSET('Smelter Look-up'!$C$4,$V539-4,0)&\"\")","v":""},"",{"$f":"IF(B539=\"\",\"\",IF(ISERROR(MATCH($J539,SorP!$B$1:$B$6230,0)),\"\",INDIRECT(\"'SorP'!$A$\"&MATCH($J539,SorP!$B$1:$B$6230,0))))","v":""},null,{"$f":"IF(C539=\"\",NA(),MATCH($B539&$C539,'Smelter Look-up'!$J:$J,0))","v":{"$error":"#N/A"}},null,0,null,null,null,""]
[null,{"$f":"IF(LEN(A540)=0,\"\",INDEX('Smelter Look-up'!$A:$A,MATCH($A540,'Smelter Look-up'!$E:$E,0)))","v":""},{"$f":"IF(LEN(A540)=0,\"\",INDEX('Smelter Look-up'!$C:$C,MATCH($A540,'Smelter Look-up'!$E:$E,0)))","v":""},null,{"$f":"IF(ISERROR($V540),\"\",OFFSET('Smelter Look-up'!$D$4,$V540-4,0)&\"\")","v":""},{"$f":"IF(ISERROR($V540),\"\",OFFSET('Smelter Look-up'!$E$4,$V540-4,0))","v":""},{"$f":"IF(C540=$X$4,\"Enter smelter details\", IF(ISERROR($V540),\"\",OFFSET('Smelter Look-up'!$F$4,$V540-4,0)))","v":""},{"$f":"IF(ISERROR($V540),\"\",OFFSET('Smelter Look-up'!$G$4,$V540-4,0))","v":""},{"$f":"IF(ISERROR($V540),\"\",OFFSET('Smelter Look-up'!$H$4,$V540-4,0))","v":""},{"$f":"IF(ISERROR($V540),\"\",OFFSET('Smelter Look-up'!$I$4,$V540-4,0))","v":""},{"$nulls":7},{"$f":"IF(ISERROR($V540),\"\",OFFSET('Smelter Look-up'!$C$4,$V540-4,0)&\"\")","v":""},"",{"$f":"IF(B540=\"\",\"\",IF(ISERROR(MATCH($J540,SorP!$B$1:$B$6230,0)),\"\",INDIRECT(\"'SorP'!$A$\"&MATCH($J540,SorP!$B$1:$B$6230,0))))","v":""},null,{"$f":"IF(C540=\"\",NA(),MATCH($B540&$C540,'Smelter Look-up'!$J:$J,0))","v":{"$error":"#N/A"}},null,0,null,null,null,""]
[null,{"$f":"IF(LEN(A541)=0,\"\",INDEX('Smelter Look-up'!$A:$A,MATCH($A541,'Smelter Look-up'!$E:$E,0)))","v":""},{"$f":"IF(LEN(A541)=0,\"\",INDEX('Smelter Look-up'!$C:$C,MATCH($A541,'Smelter Look-up'!$E:$E,0)))","v":""},null,{"$f":"IF(ISERROR($V541),\"\",OFFSET('Smelter Look-up'!$D$4,$V541-4,0)&\"\")","v":""},{"$f":"IF(ISERROR($V541),\"\",OFFSET('Smelter Look-up'!$E$4,$V541-4,0))","v":""},{"$f":"IF(C541=$X$4,\"Enter smelter details\", IF(ISERROR($V541),\"\",OFFSET('Smelter Look-up'!$F$4,$V541-4,0)))","v":""},{"$f":"IF(ISERROR($V541),\"\",OFFSET('Smelter Look-up'!$G$4,$V541-4,0))","v":""},{"$f":"IF(ISERROR($V541),\"\",OFFSET('Smelter Look-up'!$H$4,$V541-4,0))","v":""},{"$f":"IF(ISERROR($V541),\"\",OFFSET('Smelter Look-up'!$I$4,$V541-4,0))","v":""},{"$nulls":7},{"$f":"IF(ISERROR($V541),\"\",OFFSET('Smelter Look-up'!$C$4,$V541-4,0)&\"\")","v":""},"",{"$f":"IF(B541=\"\",\"\",IF(ISERROR(MATCH($J541,SorP!$B$1:$B$6230,0)),\"\",INDIRECT(\"'SorP'!$A$\"&MATCH($J541,SorP!$B$1:$B$6230,0))))","v":""},null,{"$f":"IF(C541=\"\",NA(),MATCH($B541&$C541,'Smelter Look-up'!$J:$J,0))","v":{"$error":"#N/A"}},null,0,null,null,null,""]
[null,{"$f":"IF(LEN(A542)=0,\"\",INDEX('Smelter Look-up'!$A:$A,MATCH($A542,'Smelter Look-up'!$E:$E,0)))","v":""},{"$f":"IF(LEN(A542)=0,\"\",INDEX('Smelter Look-up'!$C:$C,MATCH($A542,'Smelter Look-up'!$E:$E,0)))","v":""},null,{"$f":"IF(ISERROR($V542),\"\",OFFSET('Smelter Look-up'!$D$4,$V542-4,0)&\"\")","v":""},{"$f":"IF(ISERROR($V542),\"\",OFFSET('Smelter Look-up'!$E$4,$V542-4,0))","v":""},{"$f":"IF(C542=$X$4,\"Enter smelter details\", IF(ISERROR($V542),\"\",OFFSET('Smelter Look-up'!$F$4,$V542-4,0)))","v":""},{"$f":"IF(ISERROR($V542),\"\",OFFSET('Smelter Look-up'!$G$4,$V542-4,0))","v":""},{"$f":"IF(ISERROR($V542),\"\",OFFSET('Smelter Look-up'!$H$4,$V542-4,0))","v":""},{"$f":"IF(ISERROR($V542),\"\",OFFSET('Smelter Look-up'!$I$4,$V542-4,0))","v":""},{"$nulls":7},{"$f":"IF(ISERROR($V542),\"\",OFFSET('Smelter Look-up'!$C$4,$V542-4,0)&\"\")","v":""},"",{"$f":"IF(B542=\"\",\"\",IF(ISERROR(MATCH($J542,SorP!$B$1:$B$6230,0)),\"\",INDIRECT(\"'SorP'!$A$\"&MATCH($J542,SorP!$B$1:$B$6230,0))))","v":""},null,{"$f":"IF(C542=\"\",NA(),MATCH($B542&$C542,'Smelter Look-up'!$J:$J,0))","v":{"$error":"#N/A"}},null,0,null,null,null,""]
[null,{"$f":"IF(LEN(A543)=0,\"\",INDEX('Smelter Look-up'!$A:$A,MATCH($A543,'Smelter Look-up'!$E:$E,0)))","v":""},{"$f":"IF(LEN(A543)=0,\"\",INDEX('Smelter Look-up'!$C:$C,MATCH($A543,'Smelter Look-up'!$E:$E,0)))","v":""},null,{"$f":"IF(ISERROR($V543),\"\",OFFSET('Smelter Look-up'!$D$4,$V543-4,0)&\"\")","v":""},{"$f":"IF(ISERROR($V543),\"\",OFFSET('Smelter Look-up'!$E$4,$V543-4,0))","v":""},{"$f":"IF(C543=$X$4,\"Enter smelter details\", IF(ISERROR($V543),\"\",OFFSET('Smelter Look-up'!$F$4,$V543-4,0)))","v":""},{"$f":"IF(ISERROR($V543),\"\",OFFSET('Smelter Look-up'!$G$4,$V543-4,0))","v":""},{"$f":"IF(ISERROR($V543),\"\",OFFSET('Smelter Look-up'!$H$4,$V543-4,0))","v":""},{"$f":"IF(ISERROR($V543),\"\",OFFSET('Smelter Look-up'!$I$4,$V543-4,0))","v":""},{"$nulls":7},{"$f":"IF(ISERROR($V543),\"\",OFFSET('Smelter Look-up'!$C$4,$V543-4,0)&\"\")","v":""},"",{"$f":"IF(B543=\"\",\"\",IF(ISERROR(MATCH($J543,SorP!$B$1:$B$6230,0)),\"\",INDIRECT(\"'SorP'!$A$\"&MATCH($J543,SorP!$B$1:$B$6230,0))))","v":""},null,{"$f":"IF(C543=\"\",NA(),MATCH($B543&$C543,'Smelter Look-up'!$J:$J,0))","v":{"$error":"#N/A"}},null,0,null,null,null,""]
[null,{"$f":"IF(LEN(A544)=0,\"\",INDEX('Smelter Look-up'!$A:$A,MATCH($A544,'Smelter Look-up'!$E:$E,0)))","v":""},{"$f":"IF(LEN(A544)=0,\"\",INDEX('Smelter Look-up'!$C:$C,MATCH($A544,'Smelter Look-up'!$E:$E,0)))","v":""},null,{"$f":"IF(ISERROR($V544),\"\",OFFSET('Smelter Look-up'!$D$4,$V544-4,0)&\"\")","v":""},{"$f":"IF(ISERROR($V544),\"\",OFFSET('Smelter Look-up'!$E$4,$V544-4,0))","v":""},{"$f":"IF(C544=$X$4,\"Enter smelter details\", IF(ISERROR($V544),\"\",OFFSET('Smelter Look-up'!$F$4,$V544-4,0)))","v":""},{"$f":"IF(ISERROR($V544),\"\",OFFSET('Smelter Look-up'!$G$4,$V544-4,0))","v":""},{"$f":"IF(ISERROR($V544),\"\",OFFSET('Smelter Look-up'!$H$4,$V544-4,0))","v":""},{"$f":"IF(ISERROR($V544),\"\",OFFSET('Smelter Look-up'!$I$4,$V544-4,0))","v":""},{"$nulls":7},{"$f":"IF(ISERROR($V544),\"\",OFFSET('Smelter Look-up'!$C$4,$V544-4,0)&\"\")","v":""},"",{"$f":"IF(B544=\"\",\"\",IF(ISERROR(MATCH($J544,SorP!$B$1:$B$6230,0)),\"\",INDIRECT(\"'SorP'!$A$\"&MATCH($J544,SorP!$B$1:$B$6230,0))))","v":""},null,{"$f":"IF(C544=\"\",NA(),MATCH($B544&$C544,'Smelter Look-up'!$J:$J,0))","v":{"$error":"#N/A"}},null,0,null,null,null,""]
[null,{"$f":"IF(LEN(A545)=0,\"\",INDEX('Smelter Look-up'!$A:$A,MATCH($A545,'Smelter Look-up'!$E:$E,0)))","v":""},{"$f":"IF(LEN(A545)=0,\"\",INDEX('Smelter Look-up'!$C:$C,MATCH($A545,'Smelter Look-up'!$E:$E,0)))","v":""},null,{"$f":"IF(ISERROR($V545),\"\",OFFSET('Smelter Look-up'!$D$4,$V545-4,0)&\"\")","v":""},{"$f":"IF(ISERROR($V545),\"\",OFFSET('Smelter Look-up'!$E$4,$V545-4,0))","v":""},{"$f":"IF(C545=$X$4,\"Enter smelter details\", IF(ISERROR($V545),\"\",OFFSET('Smelter Look-up'!$F$4,$V545-4,0)))","v":""},{"$f":"IF(ISERROR($V545),\"\",OFFSET('Smelter Look-up'!$G$4,$V545-4,0))","v":""},{"$f":"IF(ISERROR($V545),\"\",OFFSET('Smelter Look-up'!$H$4,$V545-4,0))","v":""},{"$f":"IF(ISERROR($V545),\"\",OFFSET('Smelter Look-up'!$I$4,$V545-4,0))","v":""},{"$nulls":7},{"$f":"IF(ISERROR($V545),\"\",OFFSET('Smelter Look-up'!$C$4,$V545-4,0)&\"\")","v":""},"",{"$f":"IF(B545=\"\",\"\",IF(ISERROR(MATCH($J545,SorP!$B$1:$B$6230,0)),\"\",INDIRECT(\"'SorP'!$A$\"&MATCH($J545,SorP!$B$1:$B$6230,0))))","v":""},null,{"$f":"IF(C545=\"\",NA(),MATCH($B545&$C545,'Smelter Look-up'!$J:$J,0))","v":{"$error":"#N/A"}},null,0,null,null,null,""]
[null,{"$f":"IF(LEN(A546)=0,\"\",INDEX('Smelter Look-up'!$A:$A,MATCH($A546,'Smelter Look-up'!$E:$E,0)))","v":""},{"$f":"IF(LEN(A546)=0,\"\",INDEX('Smelter Look-up'!$C:$C,MATCH($A546,'Smelter Look-up'!$E:$E,0)))","v":""},null,{"$f":"IF(ISERROR($V546),\"\",OFFSET('Smelter Look-up'!$D$4,$V546-4,0)&\"\")","v":""},{"$f":"IF(ISERROR($V546),\"\",OFFSET('Smelter Look-up'!$E$4,$V546-4,0))","v":""},{"$f":"IF(C546=$X$4,\"Enter smelter details\", IF(ISERROR($V546),\"\",OFFSET('Smelter Look-up'!$F$4,$V546-4,0)))","v":""},{"$f":"IF(ISERROR($V546),\"\",OFFSET('Smelter Look-up'!$G$4,$V546-4,0))","v":""},{"$f":"IF(ISERROR($V546),\"\",OFFSET('Smelter Look-up'!$H$4,$V546-4,0))","v":""},{"$f":"IF(ISERROR($V546),\"\",OFFSET('Smelter Look-up'!$I$4,$V546-4,0))","v":""},{"$nulls":7},{"$f":"IF(ISERROR($V546),\"\",OFFSET('Smelter Look-up'!$C$4,$V546-4,0)&\"\")","v":""},"",{"$f":"IF(B546=\"\",\"\",IF(ISERROR(MATCH($J546,SorP!$B$1:$B$6230,0)),\"\",INDIRECT(\"'SorP'!$A$\"&MATCH($J546,SorP!$B$1:$B$6230,0))))","v":""},null,{"$f":"IF(C546=\"\",NA(),MATCH($B546&$C546,'Smelter Look-up'!$J:$J,0))","v":{"$error":"#N/A"}},null,0,null,null,null,""]
[null,{"$f":"IF(LEN(A547)=0,\"\",INDEX('Smelter Look-up'!$A:$A,MATCH($A547,'Smelter Look-up'!$E:$E,0)))","v":""},{"$f":"IF(LEN(A547)=0,\"\",INDEX('Smelter Look-up'!$C:$C,MATCH($A547,'Smelter Look-up'!$E:$E,0)))","v":""},null,{"$f":"IF(ISERROR($V547),\"\",OFFSET('Smelter Look-up'!$D$4,$V547-4,0)&\"\")","v":""},{"$f":"IF(ISERROR($V547),\"\",OFFSET('Smelter Look-up'!$E$4,$V547-4,0))","v":""},{"$f":"IF(C547=$X$4,\"Enter smelter details\", IF(ISERROR($V547),\"\",OFFSET('Smelter Look-up'!$F$4,$V547-4,0)))","v":""},{"$f":"IF(ISERROR($V547),\"\",OFFSET('Smelter Look-up'!$G$4,$V547-4,0))","v":""},{"$f":"IF(ISERROR($V547),\"\",OFFSET('Smelter Look-up'!$H$4,$V547-4,0))","v":""},{"$f":"IF(ISERROR($V547),\"\",OFFSET('Smelter Look-up'!$I$4,$V547-4,0))","v":""},{"$nulls":7},{"$f":"IF(ISERROR($V547),\"\",OFFSET('Smelter Look-up'!$C$4,$V547-4,0)&\"\")","v":""},"",{"$f":"IF(B547=\"\",\"\",IF(ISERROR(MATCH($J547,SorP!$B$1:$B$6230,0)),\"\",INDIRECT(\"'SorP'!$A$\"&MATCH($J547,SorP!$B$1:$B$6230,0))))","v":""},null,{"$f":"IF(C547=\"\",NA(),MATCH($B547&$C547,'Smelter Look-up'!$J:$J,0))","v":{"$error":"#N/A"}},null,0,null,null,null,""]
[null,{"$f":"IF(LEN(A548)=0,\"\",INDEX('Smelter Look-up'!$A:$A,MATCH($A548,'Smelter Look-up'!$E:$E,0)))","v":""},{"$f":"IF(LEN(A548)=0,\"\",INDEX('Smelter Look-up'!$C:$C,MATCH($A548,'Smelter Look-up'!$E:$E,0)))","v":""},null,{"$f":"IF(ISERROR($V548),\"\",OFFSET('Smelter Look-up'!$D$4,$V548-4,0)&\"\")","v":""},{"$f":"IF(ISERROR($V548),\"\",OFFSET('Smelter Look-up'!$E$4,$V548-4,0))","v":""},{"$f":"IF(C548=$X$4,\"Enter smelter details\", IF(ISERROR($V548),\"\",OFFSET('Smelter Look-up'!$F$4,$V548-4,0)))","v":""},{"$f":"IF(ISERROR($V548),\"\",OFFSET('Smelter Look-up'!$G$4,$V548-4,0))","v":""},{"$f":"IF(ISERROR($V548),\"\",OFFSET('Smelter Look-up'!$H$4,$V548-4,0))","v":""},{"$f":"IF(ISERROR($V548),\"\",OFFSET('Smelter Look-up'!$I$4,$V548-4,0))","v":""},{"$nulls":7},{"$f":"IF(ISERROR($V548),\"\",OFFSET('Smelter Look-up'!$C$4,$V548-4,0)&\"\")","v":""},"",{"$f":"IF(B548=\"\",\"\",IF(ISERROR(MATCH($J548,SorP!$B$1:$B$6230,0)),\"\",INDIRECT(\"'SorP'!$A$\"&MATCH($J548,SorP!$B$1:$B$6230,0))))","v":""},null,{"$f":"IF(C548=\"\",NA(),MATCH($B548&$C548,'Smelter Look-up'!$J:$J,0))","v":{"$error":"#N/A"}},null,0,null,null,null,""]
[null,{"$f":"IF(LEN(A549)=0,\"\",INDEX('Smelter Look-up'!$A:$A,MATCH($A549,'Smelter Look-up'!$E:$E,0)))","v":""},{"$f":"IF(LEN(A549)=0,\"\",INDEX('Smelter Look-up'!$C:$C,MATCH($A549,'Smelter Look-up'!$E:$E,0)))","v":""},null,{"$f":"IF(ISERROR($V549),\"\",OFFSET('Smelter Look-up'!$D$4,$V549-4,0)&\"\")","v":""},{"$f":"IF(ISERROR($V549),\"\",OFFSET('Smelter Look-up'!$E$4,$V549-4,0))","v":""},{"$f":"IF(C549=$X$4,\"Enter smelter details\", IF(ISERROR($V549),\"\",OFFSET('Smelter Look-up'!$F$4,$V549-4,0)))","v":""},{"$f":"IF(ISERROR($V549),\"\",OFFSET('Smelter Look-up'!$G$4,$V549-4,0))","v":""},{"$f":"IF(ISERROR($V549),\"\",OFFSET('Smelter Look-up'!$H$4,$V549-4,0))","v":""},{"$f":"IF(ISERROR($V549),\"\",OFFSET('Smelter Look-up'!$I$4,$V549-4,0))","v":""},{"$nulls":7},{"$f":"IF(ISERROR($V549),\"\",OFFSET('Smelter Look-up'!$C$4,$V549-4,0)&\"\")","v":""},"",{"$f":"IF(B549=\"\",\"\",IF(ISERROR(MATCH($J549,SorP!$B$1:$B$6230,0)),\"\",INDIRECT(\"'SorP'!$A$\"&MATCH($J549,SorP!$B$1:$B$6230,0))))","v":""},null,{"$f":"IF(C549=\"\",NA(),MATCH($B549&$C549,'Smelter Look-up'!$J:$J,0))","v":{"$error":"#N/A"}},null,0,null,null,null,""]
[null,{"$f":"IF(LEN(A550)=0,\"\",INDEX('Smelter Look-up'!$A:$A,MATCH($A550,'Smelter Look-up'!$E:$E,0)))","v":""},{"$f":"IF(LEN(A550)=0,\"\",INDEX('Smelter Look-up'!$C:$C,MATCH($A550,'Smelter Look-up'!$E:$E,0)))","v":""},null,{"$f":"IF(ISERROR($V550),\"\",OFFSET('Smelter Look-up'!$D$4,$V550-4,0)&\"\")","v":""},{"$f":"IF(ISERROR($V550),\"\",OFFSET('Smelter Look-up'!$E$4,$V550-4,0))","v":""},{"$f":"IF(C550=$X$4,\"Enter smelter details\", IF(ISERROR($V550),\"\",OFFSET('Smelter Look-up'!$F$4,$V550-4,0)))","v":""},{"$f":"IF(ISERROR($V550),\"\",OFFSET('Smelter Look-up'!$G$4,$V550-4,0))","v":""},{"$f":"IF(ISERROR($V550),\"\",OFFSET('Smelter Look-up'!$H$4,$V550-4,0))","v":""},{"$f":"IF(ISERROR($V550),\"\",OFFSET('Smelter Look-up'!$I$4,$V550-4,0))","v":""},{"$nulls":7},{"$f":"IF(ISERROR($V550),\"\",OFFSET('Smelter Look-up'!$C$4,$V550-4,0)&\"\")","v":""},"",{"$f":"IF(B550=\"\",\"\",IF(ISERROR(MATCH($J550,SorP!$B$1:$B$6230,0)),\"\",INDIRECT(\"'SorP'!$A$\"&MATCH($J550,SorP!$B$1:$B$6230,0))))","v":""},null,{"$f":"IF(C550=\"\",NA(),MATCH($B550&$C550,'Smelter Look-up'!$J:$J,0))","v":{"$error":"#N/A"}},null,0,null,null,null,""]
[null,{"$f":"IF(LEN(A551)=0,\"\",INDEX('Smelter Look-up'!$A:$A,MATCH($A551,'Smelter Look-up'!$E:$E,0)))","v":""},{"$f":"IF(LEN(A551)=0,\"\",INDEX('Smelter Look-up'!$C:$C,MATCH($A551,'Smelter Look-up'!$E:$E,0)))","v":""},null,{"$f":"IF(ISERROR($V551),\"\",OFFSET('Smelter Look-up'!$D$4,$V551-4,0)&\"\")","v":""},{"$f":"IF(ISERROR($V551),\"\",OFFSET('Smelter Look-up'!$E$4,$V551-4,0))","v":""},{"$f":"IF(C551=$X$4,\"Enter smelter details\", IF(ISERROR($V551),\"\",OFFSET('Smelter Look-up'!$F$4,$V551-4,0)))","v":""},{"$f":"IF(ISERROR($V551),\"\",OFFSET('Smelter Look-up'!$G$4,$V551-4,0))","v":""},{"$f":"IF(ISERROR($V551),\"\",OFFSET('Smelter Look-up'!$H$4,$V551-4,0))","v":""},{"$f":"IF(ISERROR($V551),\"\",OFFSET('Smelter Look-up'!$I$4,$V551-4,0))","v":""},{"$nulls":7},{"$f":"IF(ISERROR($V551),\"\",OFFSET('Smelter Look-up'!$C$4,$V551-4,0)&\"\")","v":""},"",{"$f":"IF(B551=\"\",\"\",IF(ISERROR(MATCH($J551,SorP!$B$1:$B$6230,0)),\"\",INDIRECT(\"'SorP'!$A$\"&MATCH($J551,SorP!$B$1:$B$6230,0))))","v":""},null,{"$f":"IF(C551=\"\",NA(),MATCH($B551&$C551,'Smelter Look-up'!$J:$J,0))","v":{"$error":"#N/A"}},null,0,null,null,null,""]
[null,{"$f":"IF(LEN(A552)=0,\"\",INDEX('Smelter Look-up'!$A:$A,MATCH($A552,'Smelter Look-up'!$E:$E,0)))","v":""},{"$f":"IF(LEN(A552)=0,\"\",INDEX('Smelter Look-up'!$C:$C,MATCH($A552,'Smelter Look-up'!$E:$E,0)))","v":""},null,{"$f":"IF(ISERROR($V552),\"\",OFFSET('Smelter Look-up'!$D$4,$V552-4,0)&\"\")","v":""},{"$f":"IF(ISERROR($V552),\"\",OFFSET('Smelter Look-up'!$E$4,$V552-4,0))","v":""},{"$f":"IF(C552=$X$4,\"Enter smelter details\", IF(ISERROR($V552),\"\",OFFSET('Smelter Look-up'!$F$4,$V552-4,0)))","v":""},{"$f":"IF(ISERROR($V552),\"\",OFFSET('Smelter Look-up'!$G$4,$V552-4,0))","v":""},{"$f":"IF(ISERROR($V552),\"\",OFFSET('Smelter Look-up'!$H$4,$V552-4,0))","v":""},{"$f":"IF(ISERROR($V552),\"\",OFFSET('Smelter Look-up'!$I$4,$V552-4,0))","v":""},{"$nulls":7},{"$f":"IF(ISERROR($V552),\"\",OFFSET('Smelter Look-up'!$C$4,$V552-4,0)&\"\")","v":""},"",{"$f":"IF(B552=\"\",\"\",IF(ISERROR(MATCH($J552,SorP!$B$1:$B$6230,0)),\"\",INDIRECT(\"'SorP'!$A$\"&MATCH($J552,SorP!$B$1:$B$6230,0))))","v":""},null,{"$f":"IF(C552=\"\",NA(),MATCH($B552&$C552,'Smelter Look-up'!$J:$J,0))","v":{"$error":"#N/A"}},null,0,null,null,null,""]
[null,{"$f":"IF(LEN(A553)=0,\"\",INDEX('Smelter Look-up'!$A:$A,MATCH($A553,'Smelter Look-up'!$E:$E,0)))","v":""},{"$f":"IF(LEN(A553)=0,\"\",INDEX('Smelter Look-up'!$C:$C,MATCH($A553,'Smelter Look-up'!$E:$E,0)))","v":""},null,{"$f":"IF(ISERROR($V553),\"\",OFFSET('Smelter Look-up'!$D$4,$V553-4,0)&\"\")","v":""},{"$f":"IF(ISERROR($V553),\"\",OFFSET('Smelter Look-up'!$E$4,$V553-4,0))","v":""},{"$f":"IF(C553=$X$4,\"Enter smelter details\", IF(ISERROR($V553),\"\",OFFSET('Smelter Look-up'!$F$4,$V553-4,0)))","v":""},{"$f":"IF(ISERROR($V553),\"\",OFFSET('Smelter Look-up'!$G$4,$V553-4,0))","v":""},{"$f":"IF(ISERROR($V553),\"\",OFFSET('Smelter Look-up'!$H$4,$V553-4,0))","v":""},{"$f":"IF(ISERROR($V553),\"\",OFFSET('Smelter Look-up'!$I$4,$V553-4,0))","v":""},{"$nulls":7},{"$f":"IF(ISERROR($V553),\"\",OFFSET('Smelter Look-up'!$C$4,$V553-4,0)&\"\")","v":""},"",{"$f":"IF(B553=\"\",\"\",IF(ISERROR(MATCH($J553,SorP!$B$1:$B$6230,0)),\"\",INDIRECT(\"'SorP'!$A$\"&MATCH($J553,SorP!$B$1:$B$6230,0))))","v":""},null,{"$f":"IF(C553=\"\",NA(),MATCH($B553&$C553,'Smelter Look-up'!$J:$J,0))","v":{"$error":"#N/A"}},null,0,null,null,null,""]
[null,{"$f":"IF(LEN(A554)=0,\"\",INDEX('Smelter Look-up'!$A:$A,MATCH($A554,'Smelter Look-up'!$E:$E,0)))","v":""},{"$f":"IF(LEN(A554)=0,\"\",INDEX('Smelter Look-up'!$C:$C,MATCH($A554,'Smelter Look-up'!$E:$E,0)))","v":""},null,{"$f":"IF(ISERROR($V554),\"\",OFFSET('Smelter Look-up'!$D$4,$V554-4,0)&\"\")","v":""},{"$f":"IF(ISERROR($V554),\"\",OFFSET('Smelter Look-up'!$E$4,$V554-4,0))","v":""},{"$f":"IF(C554=$X$4,\"Enter smelter details\", IF(ISERROR($V554),\"\",OFFSET('Smelter Look-up'!$F$4,$V554-4,0)))","v":""},{"$f":"IF(ISERROR($V554),\"\",OFFSET('Smelter Look-up'!$G$4,$V554-4,0))","v":""},{"$f":"IF(ISERROR($V554),\"\",OFFSET('Smelter Look-up'!$H$4,$V554-4,0))","v":""},{"$f":"IF(ISERROR($V554),\"\",OFFSET('Smelter Look-up'!$I$4,$V554-4,0))","v":""},{"$nulls":7},{"$f":"IF(ISERROR($V554),\"\",OFFSET('Smelter Look-up'!$C$4,$V554-4,0)&\"\")","v":""},"",{"$f":"IF(B554=\"\",\"\",IF(ISERROR(MATCH($J554,SorP!$B$1:$B$6230,0)),\"\",INDIRECT(\"'SorP'!$A$\"&MATCH($J554,SorP!$B$1:$B$6230,0))))","v":""},null,{"$f":"IF(C554=\"\",NA(),MATCH($B554&$C554,'Smelter Look-up'!$J:$J,0))","v":{"$error":"#N/A"}},null,0,null,null,null,""]
[null,{"$f":"IF(LEN(A555)=0,\"\",INDEX('Smelter Look-up'!$A:$A,MATCH($A555,'Smelter Look-up'!$E:$E,0)))","v":""},{"$f":"IF(LEN(A555)=0,\"\",INDEX('Smelter Look-up'!$C:$C,MATCH($A555,'Smelter Look-up'!$E:$E,0)))","v":""},null,{"$f":"IF(ISERROR($V555),\"\",OFFSET('Smelter Look-up'!$D$4,$V555-4,0)&\"\")","v":""},{"$f":"IF(ISERROR($V555),\"\",OFFSET('Smelter Look-up'!$E$4,$V555-4,0))","v":""},{"$f":"IF(C555=$X$4,\"Enter smelter details\", IF(ISERROR($V555),\"\",OFFSET('Smelter Look-up'!$F$4,$V555-4,0)))","v":""},{"$f":"IF(ISERROR($V555),\"\",OFFSET('Smelter Look-up'!$G$4,$V555-4,0))","v":""},{"$f":"IF(ISERROR($V555),\"\",OFFSET('Smelter Look-up'!$H$4,$V555-4,0))","v":""},{"$f":"IF(ISERROR($V555),\"\",OFFSET('Smelter Look-up'!$I$4,$V555-4,0))","v":""},{"$nulls":7},{"$f":"IF(ISERROR($V555),\"\",OFFSET('Smelter Look-up'!$C$4,$V555-4,0)&\"\")","v":""},"",{"$f":"IF(B555=\"\",\"\",IF(ISERROR(MATCH($J555,SorP!$B$1:$B$6230,0)),\"\",INDIRECT(\"'SorP'!$A$\"&MATCH($J555,SorP!$B$1:$B$6230,0))))","v":""},null,{"$f":"IF(C555=\"\",NA(),MATCH($B555&$C555,'Smelter Look-up'!$J:$J,0))","v":{"$error":"#N/A"}},null,0,null,null,null,""]
[null,{"$f":"IF(LEN(A556)=0,\"\",INDEX('Smelter Look-up'!$A:$A,MATCH($A556,'Smelter Look-up'!$E:$E,0)))","v":""},{"$f":"IF(LEN(A556)=0,\"\",INDEX('Smelter Look-up'!$C:$C,MATCH($A556,'Smelter Look-up'!$E:$E,0)))","v":""},null,{"$f":"IF(ISERROR($V556),\"\",OFFSET('Smelter Look-up'!$D$4,$V556-4,0)&\"\")","v":""},{"$f":"IF(ISERROR($V556),\"\",OFFSET('Smelter Look-up'!$E$4,$V556-4,0))","v":""},{"$f":"IF(C556=$X$4,\"Enter smelter details\", IF(ISERROR($V556),\"\",OFFSET('Smelter Look-up'!$F$4,$V556-4,0)))","v":""},{"$f":"IF(ISERROR($V556),\"\",OFFSET('Smelter Look-up'!$G$4,$V556-4,0))","v":""},{"$f":"IF(ISERROR($V556),\"\",OFFSET('Smelter Look-up'!$H$4,$V556-4,0))","v":""},{"$f":"IF(ISERROR($V556),\"\",OFFSET('Smelter Look-up'!$I$4,$V556-4,0))","v":""},{"$nulls":7},{"$f":"IF(ISERROR($V556),\"\",OFFSET('Smelter Look-up'!$C$4,$V556-4,0)&\"\")","v":""},"",{"$f":"IF(B556=\"\",\"\",IF(ISERROR(MATCH($J556,SorP!$B$1:$B$6230,0)),\"\",INDIRECT(\"'SorP'!$A$\"&MATCH($J556,SorP!$B$1:$B$6230,0))))","v":""},null,{"$f":"IF(C556=\"\",NA(),MATCH($B556&$C556,'Smelter Look-up'!$J:$J,0))","v":{"$error":"#N/A"}},null,0,null,null,null,""]
[null,{"$f":"IF(LEN(A557)=0,\"\",INDEX('Smelter Look-up'!$A:$A,MATCH($A557,'Smelter Look-up'!$E:$E,0)))","v":""},{"$f":"IF(LEN(A557)=0,\"\",INDEX('Smelter Look-up'!$C:$C,MATCH($A557,'Smelter Look-up'!$E:$E,0)))","v":""},null,{"$f":"IF(ISERROR($V557),\"\",OFFSET('Smelter Look-up'!$D$4,$V557-4,0)&\"\")","v":""},{"$f":"IF(ISERROR($V557),\"\",OFFSET('Smelter Look-up'!$E$4,$V557-4,0))","v":""},{"$f":"IF(C557=$X$4,\"Enter smelter details\", IF(ISERROR($V557),\"\",OFFSET('Smelter Look-up'!$F$4,$V557-4,0)))","v":""},{"$f":"IF(ISERROR($V557),\"\",OFFSET('Smelter Look-up'!$G$4,$V557-4,0))","v":""},{"$f":"IF(ISERROR($V557),\"\",OFFSET('Smelter Look-up'!$H$4,$V557-4,0))","v":""},{"$f":"IF(ISERROR($V557),\"\",OFFSET('Smelter Look-up'!$I$4,$V557-4,0))","v":""},{"$nulls":7},{"$f":"IF(ISERROR($V557),\"\",OFFSET('Smelter Look-up'!$C$4,$V557-4,0)&\"\")","v":""},"",{"$f":"IF(B557=\"\",\"\",IF(ISERROR(MATCH($J557,SorP!$B$1:$B$6230,0)),\"\",INDIRECT(\"'SorP'!$A$\"&MATCH($J557,SorP!$B$1:$B$6230,0))))","v":""},null,{"$f":"IF(C557=\"\",NA(),MATCH($B557&$C557,'Smelter Look-up'!$J:$J,0))","v":{"$error":"#N/A"}},null,0,null,null,null,""]
[null,{"$f":"IF(LEN(A558)=0,\"\",INDEX('Smelter Look-up'!$A:$A,MATCH($A558,'Smelter Look-up'!$E:$E,0)))","v":""},{"$f":"IF(LEN(A558)=0,\"\",INDEX('Smelter Look-up'!$C:$C,MATCH($A558,'Smelter Look-up'!$E:$E,0)))","v":""},null,{"$f":"IF(ISERROR($V558),\"\",OFFSET('Smelter Look-up'!$D$4,$V558-4,0)&\"\")","v":""},{"$f":"IF(ISERROR($V558),\"\",OFFSET('Smelter Look-up'!$E$4,$V558-4,0))","v":""},{"$f":"IF(C558=$X$4,\"Enter smelter details\", IF(ISERROR($V558),\"\",OFFSET('Smelter Look-up'!$F$4,$V558-4,0)))","v":""},{"$f":"IF(ISERROR($V558),\"\",OFFSET('Smelter Look-up'!$G$4,$V558-4,0))","v":""},{"$f":"IF(ISERROR($V558),\"\",OFFSET('Smelter Look-up'!$H$4,$V558-4,0))","v":""},{"$f":"IF(ISERROR($V558),\"\",OFFSET('Smelter Look-up'!$I$4,$V558-4,0))","v":""},{"$nulls":7},{"$f":"IF(ISERROR($V558),\"\",OFFSET('Smelter Look-up'!$C$4,$V558-4,0)&\"\")","v":""},"",{"$f":"IF(B558=\"\",\"\",IF(ISERROR(MATCH($J558,SorP!$B$1:$B$6230,0)),\"\",INDIRECT(\"'SorP'!$A$\"&MATCH($J558,SorP!$B$1:$B$6230,0))))","v":""},null,{"$f":"IF(C558=\"\",NA(),MATCH($B558&$C558,'Smelter Look-up'!$J:$J,0))","v":{"$error":"#N/A"}},null,0,null,null,null,""]
[null,{"$f":"IF(LEN(A559)=0,\"\",INDEX('Smelter Look-up'!$A:$A,MATCH($A559,'Smelter Look-up'!$E:$E,0)))","v":""},{"$f":"IF(LEN(A559)=0,\"\",INDEX('Smelter Look-up'!$C:$C,MATCH($A559,'Smelter Look-up'!$E:$E,0)))","v":""},null,{"$f":"IF(ISERROR($V559),\"\",OFFSET('Smelter Look-up'!$D$4,$V559-4,0)&\"\")","v":""},{"$f":"IF(ISERROR($V559),\"\",OFFSET('Smelter Look-up'!$E$4,$V559-4,0))","v":""},{"$f":"IF(C559=$X$4,\"Enter smelter details\", IF(ISERROR($V559),\"\",OFFSET('Smelter Look-up'!$F$4,$V559-4,0)))","v":""},{"$f":"IF(ISERROR($V559),\"\",OFFSET('Smelter Look-up'!$G$4,$V559-4,0))","v":""},{"$f":"IF(ISERROR($V559),\"\",OFFSET('Smelter Look-up'!$H$4,$V559-4,0))","v":""},{"$f":"IF(ISERROR($V559),\"\",OFFSET('Smelter Look-up'!$I$4,$V559-4,0))","v":""},{"$nulls":7},{"$f":"IF(ISERROR($V559),\"\",OFFSET('Smelter Look-up'!$C$4,$V559-4,0)&\"\")","v":""},"",{"$f":"IF(B559=\"\",\"\",IF(ISERROR(MATCH($J559,SorP!$B$1:$B$6230,0)),\"\",INDIRECT(\"'SorP'!$A$\"&MATCH($J559,SorP!$B$1:$B$6230,0))))","v":""},null,{"$f":"IF(C559=\"\",NA(),MATCH($B559&$C559,'Smelter Look-up'!$J:$J,0))","v":{"$error":"#N/A"}},null,0,null,null,null,""]
[null,{"$f":"IF(LEN(A560)=0,\"\",INDEX('Smelter Look-up'!$A:$A,MATCH($A560,'Smelter Look-up'!$E:$E,0)))","v":""},{"$f":"IF(LEN(A560)=0,\"\",INDEX('Smelter Look-up'!$C:$C,MATCH($A560,'Smelter Look-up'!$E:$E,0)))","v":""},null,{"$f":"IF(ISERROR($V560),\"\",OFFSET('Smelter Look-up'!$D$4,$V560-4,0)&\"\")","v":""},{"$f":"IF(ISERROR($V560),\"\",OFFSET('Smelter Look-up'!$E$4,$V560-4,0))","v":""},{"$f":"IF(C560=$X$4,\"Enter smelter details\", IF(ISERROR($V560),\"\",OFFSET('Smelter Look-up'!$F$4,$V560-4,0)))","v":""},{"$f":"IF(ISERROR($V560),\"\",OFFSET('Smelter Look-up'!$G$4,$V560-4,0))","v":""},{"$f":"IF(ISERROR($V560),\"\",OFFSET('Smelter Look-up'!$H$4,$V560-4,0))","v":""},{"$f":"IF(ISERROR($V560),\"\",OFFSET('Smelter Look-up'!$I$4,$V560-4,0))","v":""},{"$nulls":7},{"$f":"IF(ISERROR($V560),\"\",OFFSET('Smelter Look-up'!$C$4,$V560-4,0)&\"\")","v":""},"",{"$f":"IF(B560=\"\",\"\",IF(ISERROR(MATCH($J560,SorP!$B$1:$B$6230,0)),\"\",INDIRECT(\"'SorP'!$A$\"&MATCH($J560,SorP!$B$1:$B$6230,0))))","v":""},null,{"$f":"IF(C560=\"\",NA(),MATCH($B560&$C560,'Smelter Look-up'!$J:$J,0))","v":{"$error":"#N/A"}},null,0,null,null,null,""]
[null,{"$f":"IF(LEN(A561)=0,\"\",INDEX('Smelter Look-up'!$A:$A,MATCH($A561,'Smelter Look-up'!$E:$E,0)))","v":""},{"$f":"IF(LEN(A561)=0,\"\",INDEX('Smelter Look-up'!$C:$C,MATCH($A561,'Smelter Look-up'!$E:$E,0)))","v":""},null,{"$f":"IF(ISERROR($V561),\"\",OFFSET('Smelter Look-up'!$D$4,$V561-4,0)&\"\")","v":""},{"$f":"IF(ISERROR($V561),\"\",OFFSET('Smelter Look-up'!$E$4,$V561-4,0))","v":""},{"$f":"IF(C561=$X$4,\"Enter smelter details\", IF(ISERROR($V561),\"\",OFFSET('Smelter Look-up'!$F$4,$V561-4,0)))","v":""},{"$f":"IF(ISERROR($V561),\"\",OFFSET('Smelter Look-up'!$G$4,$V561-4,0))","v":""},{"$f":"IF(ISERROR($V561),\"\",OFFSET('Smelter Look-up'!$H$4,$V561-4,0))","v":""},{"$f":"IF(ISERROR($V561),\"\",OFFSET('Smelter Look-up'!$I$4,$V561-4,0))","v":""},{"$nulls":7},{"$f":"IF(ISERROR($V561),\"\",OFFSET('Smelter Look-up'!$C$4,$V561-4,0)&\"\")","v":""},"",{"$f":"IF(B561=\"\",\"\",IF(ISERROR(MATCH($J561,SorP!$B$1:$B$6230,0)),\"\",INDIRECT(\"'SorP'!$A$\"&MATCH($J561,SorP!$B$1:$B$6230,0))))","v":""},null,{"$f":"IF(C561=\"\",NA(),MATCH($B561&$C561,'Smelter Look-up'!$J:$J,0))","v":{"$error":"#N/A"}},null,0,null,null,null,""]
[null,{"$f":"IF(LEN(A562)=0,\"\",INDEX('Smelter Look-up'!$A:$A,MATCH($A562,'Smelter Look-up'!$E:$E,0)))","v":""},{"$f":"IF(LEN(A562)=0,\"\",INDEX('Smelter Look-up'!$C:$C,MATCH($A562,'Smelter Look-up'!$E:$E,0)))","v":""},null,{"$f":"IF(ISERROR($V562),\"\",OFFSET('Smelter Look-up'!$D$4,$V562-4,0)&\"\")","v":""},{"$f":"IF(ISERROR($V562),\"\",OFFSET('Smelter Look-up'!$E$4,$V562-4,0))","v":""},{"$f":"IF(C562=$X$4,\"Enter smelter details\", IF(ISERROR($V562),\"\",OFFSET('Smelter Look-up'!$F$4,$V562-4,0)))","v":""},{"$f":"IF(ISERROR($V562),\"\",OFFSET('Smelter Look-up'!$G$4,$V562-4,0))","v":""},{"$f":"IF(ISERROR($V562),\"\",OFFSET('Smelter Look-up'!$H$4,$V562-4,0))","v":""},{"$f":"IF(ISERROR($V562),\"\",OFFSET('Smelter Look-up'!$I$4,$V562-4,0))","v":""},{"$nulls":7},{"$f":"IF(ISERROR($V562),\"\",OFFSET('Smelter Look-up'!$C$4,$V562-4,0)&\"\")","v":""},"",{"$f":"IF(B562=\"\",\"\",IF(ISERROR(MATCH($J562,SorP!$B$1:$B$6230,0)),\"\",INDIRECT(\"'SorP'!$A$\"&MATCH($J562,SorP!$B$1:$B$6230,0))))","v":""},null,{"$f":"IF(C562=\"\",NA(),MATCH($B562&$C562,'Smelter Look-up'!$J:$J,0))","v":{"$error":"#N/A"}},null,0,null,null,null,""]
[null,{"$f":"IF(LEN(A563)=0,\"\",INDEX('Smelter Look-up'!$A:$A,MATCH($A563,'Smelter Look-up'!$E:$E,0)))","v":""},{"$f":"IF(LEN(A563)=0,\"\",INDEX('Smelter Look-up'!$C:$C,MATCH($A563,'Smelter Look-up'!$E:$E,0)))","v":""},null,{"$f":"IF(ISERROR($V563),\"\",OFFSET('Smelter Look-up'!$D$4,$V563-4,0)&\"\")","v":""},{"$f":"IF(ISERROR($V563),\"\",OFFSET('Smelter Look-up'!$E$4,$V563-4,0))","v":""},{"$f":"IF(C563=$X$4,\"Enter smelter details\", IF(ISERROR($V563),\"\",OFFSET('Smelter Look-up'!$F$4,$V563-4,0)))","v":""},{"$f":"IF(ISERROR($V563),\"\",OFFSET('Smelter Look-up'!$G$4,$V563-4,0))","v":""},{"$f":"IF(ISERROR($V563),\"\",OFFSET('Smelter Look-up'!$H$4,$V563-4,0))","v":""},{"$f":"IF(ISERROR($V563),\"\",OFFSET('Smelter Look-up'!$I$4,$V563-4,0))","v":""},{"$nulls":7},{"$f":"IF(ISERROR($V563),\"\",OFFSET('Smelter Look-up'!$C$4,$V563-4,0)&\"\")","v":""},"",{"$f":"IF(B563=\"\",\"\",IF(ISERROR(MATCH($J563,SorP!$B$1:$B$6230,0)),\"\",INDIRECT(\"'SorP'!$A$\"&MATCH($J563,SorP!$B$1:$B$6230,0))))","v":""},null,{"$f":"IF(C563=\"\",NA(),MATCH($B563&$C563,'Smelter Look-up'!$J:$J,0))","v":{"$error":"#N/A"}},null,0,null,null,null,""]
[null,{"$f":"IF(LEN(A564)=0,\"\",INDEX('Smelter Look-up'!$A:$A,MATCH($A564,'Smelter Look-up'!$E:$E,0)))","v":""},{"$f":"IF(LEN(A564)=0,\"\",INDEX('Smelter Look-up'!$C:$C,MATCH($A564,'Smelter Look-up'!$E:$E,0)))","v":""},null,{"$f":"IF(ISERROR($V564),\"\",OFFSET('Smelter Look-up'!$D$4,$V564-4,0)&\"\")","v":""},{"$f":"IF(ISERROR($V564),\"\",OFFSET('Smelter Look-up'!$E$4,$V564-4,0))","v":""},{"$f":"IF(C564=$X$4,\"Enter smelter details\", IF(ISERROR($V564),\"\",OFFSET('Smelter Look-up'!$F$4,$V564-4,0)))","v":""},{"$f":"IF(ISERROR($V564),\"\",OFFSET('Smelter Look-up'!$G$4,$V564-4,0))","v":""},{"$f":"IF(ISERROR($V564),\"\",OFFSET('Smelter Look-up'!$H$4,$V564-4,0))","v":""},{"$f":"IF(ISERROR($V564),\"\",OFFSET('Smelter Look-up'!$I$4,$V564-4,0))","v":""},{"$nulls":7},{"$f":"IF(ISERROR($V564),\"\",OFFSET('Smelter Look-up'!$C$4,$V564-4,0)&\"\")","v":""},"",{"$f":"IF(B564=\"\",\"\",IF(ISERROR(MATCH($J564,SorP!$B$1:$B$6230,0)),\"\",INDIRECT(\"'SorP'!$A$\"&MATCH($J564,SorP!$B$1:$B$6230,0))))","v":""},null,{"$f":"IF(C564=\"\",NA(),MATCH($B564&$C564,'Smelter Look-up'!$J:$J,0))","v":{"$error":"#N/A"}},null,0,null,null,null,""]
[null,{"$f":"IF(LEN(A565)=0,\"\",INDEX('Smelter Look-up'!$A:$A,MATCH($A565,'Smelter Look-up'!$E:$E,0)))","v":""},{"$f":"IF(LEN(A565)=0,\"\",INDEX('Smelter Look-up'!$C:$C,MATCH($A565,'Smelter Look-up'!$E:$E,0)))","v":""},null,{"$f":"IF(ISERROR($V565),\"\",OFFSET('Smelter Look-up'!$D$4,$V565-4,0)&\"\")","v":""},{"$f":"IF(ISERROR($V565),\"\",OFFSET('Smelter Look-up'!$E$4,$V565-4,0))","v":""},{"$f":"IF(C565=$X$4,\"Enter smelter details\", IF(ISERROR($V565),\"\",OFFSET('Smelter Look-up'!$F$4,$V565-4,0)))","v":""},{"$f":"IF(ISERROR($V565),\"\",OFFSET('Smelter Look-up'!$G$4,$V565-4,0))","v":""},{"$f":"IF(ISERROR($V565),\"\",OFFSET('Smelter Look-up'!$H$4,$V565-4,0))","v":""},{"$f":"IF(ISERROR($V565),\"\",OFFSET('Smelter Look-up'!$I$4,$V565-4,0))","v":""},{"$nulls":7},{"$f":"IF(ISERROR($V565),\"\",OFFSET('Smelter Look-up'!$C$4,$V565-4,0)&\"\")","v":""},"",{"$f":"IF(B565=\"\",\"\",IF(ISERROR(MATCH($J565,SorP!$B$1:$B$6230,0)),\"\",INDIRECT(\"'SorP'!$A$\"&MATCH($J565,SorP!$B$1:$B$6230,0))))","v":""},null,{"$f":"IF(C565=\"\",NA(),MATCH($B565&$C565,'Smelter Look-up'!$J:$J,0))","v":{"$error":"#N/A"}},null,0,null,null,null,""]
[null,{"$f":"IF(LEN(A566)=0,\"\",INDEX('Smelter Look-up'!$A:$A,MATCH($A566,'Smelter Look-up'!$E:$E,0)))","v":""},{"$f":"IF(LEN(A566)=0,\"\",INDEX('Smelter Look-up'!$C:$C,MATCH($A566,'Smelter Look-up'!$E:$E,0)))","v":""},null,{"$f":"IF(ISERROR($V566),\"\",OFFSET('Smelter Look-up'!$D$4,$V566-4,0)&\"\")","v":""},{"$f":"IF(ISERROR($V566),\"\",OFFSET('Smelter Look-up'!$E$4,$V566-4,0))","v":""},{"$f":"IF(C566=$X$4,\"Enter smelter details\", IF(ISERROR($V566),\"\",OFFSET('Smelter Look-up'!$F$4,$V566-4,0)))","v":""},{"$f":"IF(ISERROR($V566),\"\",OFFSET('Smelter Look-up'!$G$4,$V566-4,0))","v":""},{"$f":"IF(ISERROR($V566),\"\",OFFSET('Smelter Look-up'!$H$4,$V566-4,0))","v":""},{"$f":"IF(ISERROR($V566),\"\",OFFSET('Smelter Look-up'!$I$4,$V566-4,0))","v":""},{"$nulls":7},{"$f":"IF(ISERROR($V566),\"\",OFFSET('Smelter Look-up'!$C$4,$V566-4,0)&\"\")","v":""},"",{"$f":"IF(B566=\"\",\"\",IF(ISERROR(MATCH($J566,SorP!$B$1:$B$6230,0)),\"\",INDIRECT(\"'SorP'!$A$\"&MATCH($J566,SorP!$B$1:$B$6230,0))))","v":""},null,{"$f":"IF(C566=\"\",NA(),MATCH($B566&$C566,'Smelter Look-up'!$J:$J,0))","v":{"$error":"#N/A"}},null,0,null,null,null,""]
[null,{"$f":"IF(LEN(A567)=0,\"\",INDEX('Smelter Look-up'!$A:$A,MATCH($A567,'Smelter Look-up'!$E:$E,0)))","v":""},{"$f":"IF(LEN(A567)=0,\"\",INDEX('Smelter Look-up'!$C:$C,MATCH($A567,'Smelter Look-up'!$E:$E,0)))","v":""},null,{"$f":"IF(ISERROR($V567),\"\",OFFSET('Smelter Look-up'!$D$4,$V567-4,0)&\"\")","v":""},{"$f":"IF(ISERROR($V567),\"\",OFFSET('Smelter Look-up'!$E$4,$V567-4,0))","v":""},{"$f":"IF(C567=$X$4,\"Enter smelter details\", IF(ISERROR($V567),\"\",OFFSET('Smelter Look-up'!$F$4,$V567-4,0)))","v":""},{"$f":"IF(ISERROR($V567),\"\",OFFSET('Smelter Look-up'!$G$4,$V567-4,0))","v":""},{"$f":"IF(ISERROR($V567),\"\",OFFSET('Smelter Look-up'!$H$4,$V567-4,0))","v":""},{"$f":"IF(ISERROR($V567),\"\",OFFSET('Smelter Look-up'!$I$4,$V567-4,0))","v":""},{"$nulls":7},{"$f":"IF(ISERROR($V567),\"\",OFFSET('Smelter Look-up'!$C$4,$V567-4,0)&\"\")","v":""},"",{"$f":"IF(B567=\"\",\"\",IF(ISERROR(MATCH($J567,SorP!$B$1:$B$6230,0)),\"\",INDIRECT(\"'SorP'!$A$\"&MATCH($J567,SorP!$B$1:$B$6230,0))))","v":""},null,{"$f":"IF(C567=\"\",NA(),MATCH($B567&$C567,'Smelter Look-up'!$J:$J,0))","v":{"$error":"#N/A"}},null,0,null,null,null,""]
[null,{"$f":"IF(LEN(A568)=0,\"\",INDEX('Smelter Look-up'!$A:$A,MATCH($A568,'Smelter Look-up'!$E:$E,0)))","v":""},{"$f":"IF(LEN(A568)=0,\"\",INDEX('Smelter Look-up'!$C:$C,MATCH($A568,'Smelter Look-up'!$E:$E,0)))","v":""},null,{"$f":"IF(ISERROR($V568),\"\",OFFSET('Smelter Look-up'!$D$4,$V568-4,0)&\"\")","v":""},{"$f":"IF(ISERROR($V568),\"\",OFFSET('Smelter Look-up'!$E$4,$V568-4,0))","v":""},{"$f":"IF(C568=$X$4,\"Enter smelter details\", IF(ISERROR($V568),\"\",OFFSET('Smelter Look-up'!$F$4,$V568-4,0)))","v":""},{"$f":"IF(ISERROR($V568),\"\",OFFSET('Smelter Look-up'!$G$4,$V568-4,0))","v":""},{"$f":"IF(ISERROR($V568),\"\",OFFSET('Smelter Look-up'!$H$4,$V568-4,0))","v":""},{"$f":"IF(ISERROR($V568),\"\",OFFSET('Smelter Look-up'!$I$4,$V568-4,0))","v":""},{"$nulls":7},{"$f":"IF(ISERROR($V568),\"\",OFFSET('Smelter Look-up'!$C$4,$V568-4,0)&\"\")","v":""},"",{"$f":"IF(B568=\"\",\"\",IF(ISERROR(MATCH($J568,SorP!$B$1:$B$6230,0)),\"\",INDIRECT(\"'SorP'!$A$\"&MATCH($J568,SorP!$B$1:$B$6230,0))))","v":""},null,{"$f":"IF(C568=\"\",NA(),MATCH($B568&$C568,'Smelter Look-up'!$J:$J,0))","v":{"$error":"#N/A"}},null,0,null,null,null,""]
[null,{"$f":"IF(LEN(A569)=0,\"\",INDEX('Smelter Look-up'!$A:$A,MATCH($A569,'Smelter Look-up'!$E:$E,0)))","v":""},{"$f":"IF(LEN(A569)=0,\"\",INDEX('Smelter Look-up'!$C:$C,MATCH($A569,'Smelter Look-up'!$E:$E,0)))","v":""},null,{"$f":"IF(ISERROR($V569),\"\",OFFSET('Smelter Look-up'!$D$4,$V569-4,0)&\"\")","v":""},{"$f":"IF(ISERROR($V569),\"\",OFFSET('Smelter Look-up'!$E$4,$V569-4,0))","v":""},{"$f":"IF(C569=$X$4,\"Enter smelter details\", IF(ISERROR($V569),\"\",OFFSET('Smelter Look-up'!$F$4,$V569-4,0)))","v":""},{"$f":"IF(ISERROR($V569),\"\",OFFSET('Smelter Look-up'!$G$4,$V569-4,0))","v":""},{"$f":"IF(ISERROR($V569),\"\",OFFSET('Smelter Look-up'!$H$4,$V569-4,0))","v":""},{"$f":"IF(ISERROR($V569),\"\",OFFSET('Smelter Look-up'!$I$4,$V569-4,0))","v":""},{"$nulls":7},{"$f":"IF(ISERROR($V569),\"\",OFFSET('Smelter Look-up'!$C$4,$V569-4,0)&\"\")","v":""},"",{"$f":"IF(B569=\"\",\"\",IF(ISERROR(MATCH($J569,SorP!$B$1:$B$6230,0)),\"\",INDIRECT(\"'SorP'!$A$\"&MATCH($J569,SorP!$B$1:$B$6230,0))))","v":""},null,{"$f":"IF(C569=\"\",NA(),MATCH($B569&$C569,'Smelter Look-up'!$J:$J,0))","v":{"$error":"#N/A"}},null,0,null,null,null,""]
[null,{"$f":"IF(LEN(A570)=0,\"\",INDEX('Smelter Look-up'!$A:$A,MATCH($A570,'Smelter Look-up'!$E:$E,0)))","v":""},{"$f":"IF(LEN(A570)=0,\"\",INDEX('Smelter Look-up'!$C:$C,MATCH($A570,'Smelter Look-up'!$E:$E,0)))","v":""},null,{"$f":"IF(ISERROR($V570),\"\",OFFSET('Smelter Look-up'!$D$4,$V570-4,0)&\"\")","v":""},{"$f":"IF(ISERROR($V570),\"\",OFFSET('Smelter Look-up'!$E$4,$V570-4,0))","v":""},{"$f":"IF(C570=$X$4,\"Enter smelter details\", IF(ISERROR($V570),\"\",OFFSET('Smelter Look-up'!$F$4,$V570-4,0)))","v":""},{"$f":"IF(ISERROR($V570),\"\",OFFSET('Smelter Look-up'!$G$4,$V570-4,0))","v":""},{"$f":"IF(ISERROR($V570),\"\",OFFSET('Smelter Look-up'!$H$4,$V570-4,0))","v":""},{"$f":"IF(ISERROR($V570),\"\",OFFSET('Smelter Look-up'!$I$4,$V570-4,0))","v":""},{"$nulls":7},{"$f":"IF(ISERROR($V570),\"\",OFFSET('Smelter Look-up'!$C$4,$V570-4,0)&\"\")","v":""},"",{"$f":"IF(B570=\"\",\"\",IF(ISERROR(MATCH($J570,SorP!$B$1:$B$6230,0)),\"\",INDIRECT(\"'SorP'!$A$\"&MATCH($J570,SorP!$B$1:$B$6230,0))))","v":""},null,{"$f":"IF(C570=\"\",NA(),MATCH($B570&$C570,'Smelter Look-up'!$J:$J,0))","v":{"$error":"#N/A"}},null,0,null,null,null,""]
[null,{"$f":"IF(LEN(A571)=0,\"\",INDEX('Smelter Look-up'!$A:$A,MATCH($A571,'Smelter Look-up'!$E:$E,0)))","v":""},{"$f":"IF(LEN(A571)=0,\"\",INDEX('Smelter Look-up'!$C:$C,MATCH($A571,'Smelter Look-up'!$E:$E,0)))","v":""},null,{"$f":"IF(ISERROR($V571),\"\",OFFSET('Smelter Look-up'!$D$4,$V571-4,0)&\"\")","v":""},{"$f":"IF(ISERROR($V571),\"\",OFFSET('Smelter Look-up'!$E$4,$V571-4,0))","v":""},{"$f":"IF(C571=$X$4,\"Enter smelter details\", IF(ISERROR($V571),\"\",OFFSET('Smelter Look-up'!$F$4,$V571-4,0)))","v":""},{"$f":"IF(ISERROR($V571),\"\",OFFSET('Smelter Look-up'!$G$4,$V571-4,0))","v":""},{"$f":"IF(ISERROR($V571),\"\",OFFSET('Smelter Look-up'!$H$4,$V571-4,0))","v":""},{"$f":"IF(ISERROR($V571),\"\",OFFSET('Smelter Look-up'!$I$4,$V571-4,0))","v":""},{"$nulls":7},{"$f":"IF(ISERROR($V571),\"\",OFFSET('Smelter Look-up'!$C$4,$V571-4,0)&\"\")","v":""},{"$f":"IF(B571=\"\",\"\",IF(ISERROR(MATCH($E571,CL,0)),\"Unknown\",INDIRECT(\"'C'!$A$\"&MATCH($E571,CL,0)+1)))","v":""},{"$f":"IF(B571=\"\",\"\",IF(ISERROR(MATCH($J571,SorP!$B$1:$B$6230,0)),\"\",INDIRECT(\"'SorP'!$A$\"&MATCH($J571,SorP!$B$1:$B$6230,0))))","v":""},null,{"$f":"IF(C571=\"\",NA(),MATCH($B571&$C571,'Smelter Look-up'!$J:$J,0))","v":{"$error":"#N/A"}},null,{"$f":"IF(AND(C571=\"Smelter not listed\",OR(LEN(D571)=0,LEN(E571)=0)),1,0)","v":0},null,null,null,{"$f":"B571&C571","v":""}]
[null,{"$f":"IF(LEN(A572)=0,\"\",INDEX('Smelter Look-up'!$A:$A,MATCH($A572,'Smelter Look-up'!$E:$E,0)))","v":""},{"$f":"IF(LEN(A572)=0,\"\",INDEX('Smelter Look-up'!$C:$C,MATCH($A572,'Smelter Look-up'!$E:$E,0)))","v":""},null,{"$f":"IF(ISERROR($V572),\"\",OFFSET('Smelter Look-up'!$D$4,$V572-4,0)&\"\")","v":""},{"$f":"IF(ISERROR($V572),\"\",OFFSET('Smelter Look-up'!$E$4,$V572-4,0))","v":""},{"$f":"IF(C572=$X$4,\"Enter smelter details\", IF(ISERROR($V572),\"\",OFFSET('Smelter Look-up'!$F$4,$V572-4,0)))","v":""},{"$f":"IF(ISERROR($V572),\"\",OFFSET('Smelter Look-up'!$G$4,$V572-4,0))","v":""},{"$f":"IF(ISERROR($V572),\"\",OFFSET('Smelter Look-up'!$H$4,$V572-4,0))","v":""},{"$f":"IF(ISERROR($V572),\"\",OFFSET('Smelter Look-up'!$I$4,$V572-4,0))","v":""},{"$nulls":7},{"$f":"IF(ISERROR($V572),\"\",OFFSET('Smelter Look-up'!$C$4,$V572-4,0)&\"\")","v":""},"",{"$f":"IF(B572=\"\",\"\",IF(ISERROR(MATCH($J572,SorP!$B$1:$B$6230,0)),\"\",INDIRECT(\"'SorP'!$A$\"&MATCH($J572,SorP!$B$1:$B$6230,0))))","v":""},null,{"$f":"IF(C572=\"\",NA(),MATCH($B572&$C572,'Smelter Look-up'!$J:$J,0))","v":{"$error":"#N/A"}},null,0,null,null,null,""]
[null,{"$f":"IF(LEN(A573)=0,\"\",INDEX('Smelter Look-up'!$A:$A,MATCH($A573,'Smelter Look-up'!$E:$E,0)))","v":""},{"$f":"IF(LEN(A573)=0,\"\",INDEX('Smelter Look-up'!$C:$C,MATCH($A573,'Smelter Look-up'!$E:$E,0)))","v":""},null,{"$f":"IF(ISERROR($V573),\"\",OFFSET('Smelter Look-up'!$D$4,$V573-4,0)&\"\")","v":""},{"$f":"IF(ISERROR($V573),\"\",OFFSET('Smelter Look-up'!$E$4,$V573-4,0))","v":""},{"$f":"IF(C573=$X$4,\"Enter smelter details\", IF(ISERROR($V573),\"\",OFFSET('Smelter Look-up'!$F$4,$V573-4,0)))","v":""},{"$f":"IF(ISERROR($V573),\"\",OFFSET('Smelter Look-up'!$G$4,$V573-4,0))","v":""},{"$f":"IF(ISERROR($V573),\"\",OFFSET('Smelter Look-up'!$H$4,$V573-4,0))","v":""},{"$f":"IF(ISERROR($V573),\"\",OFFSET('Smelter Look-up'!$I$4,$V573-4,0))","v":""},{"$nulls":7},{"$f":"IF(ISERROR($V573),\"\",OFFSET('Smelter Look-up'!$C$4,$V573-4,0)&\"\")","v":""},"",{"$f":"IF(B573=\"\",\"\",IF(ISERROR(MATCH($J573,SorP!$B$1:$B$6230,0)),\"\",INDIRECT(\"'SorP'!$A$\"&MATCH($J573,SorP!$B$1:$B$6230,0))))","v":""},null,{"$f":"IF(C573=\"\",NA(),MATCH($B573&$C573,'Smelter Look-up'!$J:$J,0))","v":{"$error":"#N/A"}},null,0,null,null,null,""]
[null,{"$f":"IF(LEN(A574)=0,\"\",INDEX('Smelter Look-up'!$A:$A,MATCH($A574,'Smelter Look-up'!$E:$E,0)))","v":""},{"$f":"IF(LEN(A574)=0,\"\",INDEX('Smelter Look-up'!$C:$C,MATCH($A574,'Smelter Look-up'!$E:$E,0)))","v":""},null,{"$f":"IF(ISERROR($V574),\"\",OFFSET('Smelter Look-up'!$D$4,$V574-4,0)&\"\")","v":""},{"$f":"IF(ISERROR($V574),\"\",OFFSET('Smelter Look-up'!$E$4,$V574-4,0))","v":""},{"$f":"IF(C574=$X$4,\"Enter smelter details\", IF(ISERROR($V574),\"\",OFFSET('Smelter Look-up'!$F$4,$V574-4,0)))","v":""},{"$f":"IF(ISERROR($V574),\"\",OFFSET('Smelter Look-up'!$G$4,$V574-4,0))","v":""},{"$f":"IF(ISERROR($V574),\"\",OFFSET('Smelter Look-up'!$H$4,$V574-4,0))","v":""},{"$f":"IF(ISERROR($V574),\"\",OFFSET('Smelter Look-up'!$I$4,$V574-4,0))","v":""},{"$nulls":7},{"$f":"IF(ISERROR($V574),\"\",OFFSET('Smelter Look-up'!$C$4,$V574-4,0)&\"\")","v":""},"",{"$f":"IF(B574=\"\",\"\",IF(ISERROR(MATCH($J574,SorP!$B$1:$B$6230,0)),\"\",INDIRECT(\"'SorP'!$A$\"&MATCH($J574,SorP!$B$1:$B$6230,0))))","v":""},null,{"$f":"IF(C574=\"\",NA(),MATCH($B574&$C574,'Smelter Look-up'!$J:$J,0))","v":{"$error":"#N/A"}},null,0,null,null,null,""]
[null,{"$f":"IF(LEN(A575)=0,\"\",INDEX('Smelter Look-up'!$A:$A,MATCH($A575,'Smelter Look-up'!$E:$E,0)))","v":""},{"$f":"IF(LEN(A575)=0,\"\",INDEX('Smelter Look-up'!$C:$C,MATCH($A575,'Smelter Look-up'!$E:$E,0)))","v":""},null,{"$f":"IF(ISERROR($V575),\"\",OFFSET('Smelter Look-up'!$D$4,$V575-4,0)&\"\")","v":""},{"$f":"IF(ISERROR($V575),\"\",OFFSET('Smelter Look-up'!$E$4,$V575-4,0))","v":""},{"$f":"IF(C575=$X$4,\"Enter smelter details\", IF(ISERROR($V575),\"\",OFFSET('Smelter Look-up'!$F$4,$V575-4,0)))","v":""},{"$f":"IF(ISERROR($V575),\"\",OFFSET('Smelter Look-up'!$G$4,$V575-4,0))","v":""},{"$f":"IF(ISERROR($V575),\"\",OFFSET('Smelter Look-up'!$H$4,$V575-4,0))","v":""},{"$f":"IF(ISERROR($V575),\"\",OFFSET('Smelter Look-up'!$I$4,$V575-4,0))","v":""},{"$nulls":7},{"$f":"IF(ISERROR($V575),\"\",OFFSET('Smelter Look-up'!$C$4,$V575-4,0)&\"\")","v":""},"",{"$f":"IF(B575=\"\",\"\",IF(ISERROR(MATCH($J575,SorP!$B$1:$B$6230,0)),\"\",INDIRECT(\"'SorP'!$A$\"&MATCH($J575,SorP!$B$1:$B$6230,0))))","v":""},null,{"$f":"IF(C575=\"\",NA(),MATCH($B575&$C575,'Smelter Look-up'!$J:$J,0))","v":{"$error":"#N/A"}},null,0,null,null,null,""]
[null,{"$f":"IF(LEN(A576)=0,\"\",INDEX('Smelter Look-up'!$A:$A,MATCH($A576,'Smelter Look-up'!$E:$E,0)))","v":""},{"$f":"IF(LEN(A576)=0,\"\",INDEX('Smelter Look-up'!$C:$C,MATCH($A576,'Smelter Look-up'!$E:$E,0)))","v":""},null,{"$f":"IF(ISERROR($V576),\"\",OFFSET('Smelter Look-up'!$D$4,$V576-4,0)&\"\")","v":""},{"$f":"IF(ISERROR($V576),\"\",OFFSET('Smelter Look-up'!$E$4,$V576-4,0))","v":""},{"$f":"IF(C576=$X$4,\"Enter smelter details\", IF(ISERROR($V576),\"\",OFFSET('Smelter Look-up'!$F$4,$V576-4,0)))","v":""},{"$f":"IF(ISERROR($V576),\"\",OFFSET('Smelter Look-up'!$G$4,$V576-4,0))","v":""},{"$f":"IF(ISERROR($V576),\"\",OFFSET('Smelter Look-up'!$H$4,$V576-4,0))","v":""},{"$f":"IF(ISERROR($V576),\"\",OFFSET('Smelter Look-up'!$I$4,$V576-4,0))","v":""},{"$nulls":7},{"$f":"IF(ISERROR($V576),\"\",OFFSET('Smelter Look-up'!$C$4,$V576-4,0)&\"\")","v":""},"",{"$f":"IF(B576=\"\",\"\",IF(ISERROR(MATCH($J576,SorP!$B$1:$B$6230,0)),\"\",INDIRECT(\"'SorP'!$A$\"&MATCH($J576,SorP!$B$1:$B$6230,0))))","v":""},null,{"$f":"IF(C576=\"\",NA(),MATCH($B576&$C576,'Smelter Look-up'!$J:$J,0))","v":{"$error":"#N/A"}},null,0,null,null,null,""]
[null,{"$f":"IF(LEN(A577)=0,\"\",INDEX('Smelter Look-up'!$A:$A,MATCH($A577,'Smelter Look-up'!$E:$E,0)))","v":""},{"$f":"IF(LEN(A577)=0,\"\",INDEX('Smelter Look-up'!$C:$C,MATCH($A577,'Smelter Look-up'!$E:$E,0)))","v":""},null,{"$f":"IF(ISERROR($V577),\"\",OFFSET('Smelter Look-up'!$D$4,$V577-4,0)&\"\")","v":""},{"$f":"IF(ISERROR($V577),\"\",OFFSET('Smelter Look-up'!$E$4,$V577-4,0))","v":""},{"$f":"IF(C577=$X$4,\"Enter smelter details\", IF(ISERROR($V577),\"\",OFFSET('Smelter Look-up'!$F$4,$V577-4,0)))","v":""},{"$f":"IF(ISERROR($V577),\"\",OFFSET('Smelter Look-up'!$G$4,$V577-4,0))","v":""},{"$f":"IF(ISERROR($V577),\"\",OFFSET('Smelter Look-up'!$H$4,$V577-4,0))","v":""},{"$f":"IF(ISERROR($V577),\"\",OFFSET('Smelter Look-up'!$I$4,$V577-4,0))","v":""},{"$nulls":7},{"$f":"IF(ISERROR($V577),\"\",OFFSET('Smelter Look-up'!$C$4,$V577-4,0)&\"\")","v":""},"",{"$f":"IF(B577=\"\",\"\",IF(ISERROR(MATCH($J577,SorP!$B$1:$B$6230,0)),\"\",INDIRECT(\"'SorP'!$A$\"&MATCH($J577,SorP!$B$1:$B$6230,0))))","v":""},null,{"$f":"IF(C577=\"\",NA(),MATCH($B577&$C577,'Smelter Look-up'!$J:$J,0))","v":{"$error":"#N/A"}},null,0,null,null,null,""]
[null,{"$f":"IF(LEN(A578)=0,\"\",INDEX('Smelter Look-up'!$A:$A,MATCH($A578,'Smelter Look-up'!$E:$E,0)))","v":""},{"$f":"IF(LEN(A578)=0,\"\",INDEX('Smelter Look-up'!$C:$C,MATCH($A578,'Smelter Look-up'!$E:$E,0)))","v":""},null,{"$f":"IF(ISERROR($V578),\"\",OFFSET('Smelter Look-up'!$D$4,$V578-4,0)&\"\")","v":""},{"$f":"IF(ISERROR($V578),\"\",OFFSET('Smelter Look-up'!$E$4,$V578-4,0))","v":""},{"$f":"IF(C578=$X$4,\"Enter smelter details\", IF(ISERROR($V578),\"\",OFFSET('Smelter Look-up'!$F$4,$V578-4,0)))","v":""},{"$f":"IF(ISERROR($V578),\"\",OFFSET('Smelter Look-up'!$G$4,$V578-4,0))","v":""},{"$f":"IF(ISERROR($V578),\"\",OFFSET('Smelter Look-up'!$H$4,$V578-4,0))","v":""},{"$f":"IF(ISERROR($V578),\"\",OFFSET('Smelter Look-up'!$I$4,$V578-4,0))","v":""},{"$nulls":7},{"$f":"IF(ISERROR($V578),\"\",OFFSET('Smelter Look-up'!$C$4,$V578-4,0)&\"\")","v":""},"",{"$f":"IF(B578=\"\",\"\",IF(ISERROR(MATCH($J578,SorP!$B$1:$B$6230,0)),\"\",INDIRECT(\"'SorP'!$A$\"&MATCH($J578,SorP!$B$1:$B$6230,0))))","v":""},null,{"$f":"IF(C578=\"\",NA(),MATCH($B578&$C578,'Smelter Look-up'!$J:$J,0))","v":{"$error":"#N/A"}},null,0,null,null,null,""]
[null,{"$f":"IF(LEN(A579)=0,\"\",INDEX('Smelter Look-up'!$A:$A,MATCH($A579,'Smelter Look-up'!$E:$E,0)))","v":""},{"$f":"IF(LEN(A579)=0,\"\",INDEX('Smelter Look-up'!$C:$C,MATCH($A579,'Smelter Look-up'!$E:$E,0)))","v":""},null,{"$f":"IF(ISERROR($V579),\"\",OFFSET('Smelter Look-up'!$D$4,$V579-4,0)&\"\")","v":""},{"$f":"IF(ISERROR($V579),\"\",OFFSET('Smelter Look-up'!$E$4,$V579-4,0))","v":""},{"$f":"IF(C579=$X$4,\"Enter smelter details\", IF(ISERROR($V579),\"\",OFFSET('Smelter Look-up'!$F$4,$V579-4,0)))","v":""},{"$f":"IF(ISERROR($V579),\"\",OFFSET('Smelter Look-up'!$G$4,$V579-4,0))","v":""},{"$f":"IF(ISERROR($V579),\"\",OFFSET('Smelter Look-up'!$H$4,$V579-4,0))","v":""},{"$f":"IF(ISERROR($V579),\"\",OFFSET('Smelter Look-up'!$I$4,$V579-4,0))","v":""},{"$nulls":7},{"$f":"IF(ISERROR($V579),\"\",OFFSET('Smelter Look-up'!$C$4,$V579-4,0)&\"\")","v":""},"",{"$f":"IF(B579=\"\",\"\",IF(ISERROR(MATCH($J579,SorP!$B$1:$B$6230,0)),\"\",INDIRECT(\"'SorP'!$A$\"&MATCH($J579,SorP!$B$1:$B$6230,0))))","v":""},null,{"$f":"IF(C579=\"\",NA(),MATCH($B579&$C579,'Smelter Look-up'!$J:$J,0))","v":{"$error":"#N/A"}},null,0,null,null,null,""]
[null,{"$f":"IF(LEN(A580)=0,\"\",INDEX('Smelter Look-up'!$A:$A,MATCH($A580,'Smelter Look-up'!$E:$E,0)))","v":""},{"$f":"IF(LEN(A580)=0,\"\",INDEX('Smelter Look-up'!$C:$C,MATCH($A580,'Smelter Look-up'!$E:$E,0)))","v":""},null,{"$f":"IF(ISERROR($V580),\"\",OFFSET('Smelter Look-up'!$D$4,$V580-4,0)&\"\")","v":""},{"$f":"IF(ISERROR($V580),\"\",OFFSET('Smelter Look-up'!$E$4,$V580-4,0))","v":""},{"$f":"IF(C580=$X$4,\"Enter smelter details\", IF(ISERROR($V580),\"\",OFFSET('Smelter Look-up'!$F$4,$V580-4,0)))","v":""},{"$f":"IF(ISERROR($V580),\"\",OFFSET('Smelter Look-up'!$G$4,$V580-4,0))","v":""},{"$f":"IF(ISERROR($V580),\"\",OFFSET('Smelter Look-up'!$H$4,$V580-4,0))","v":""},{"$f":"IF(ISERROR($V580),\"\",OFFSET('Smelter Look-up'!$I$4,$V580-4,0))","v":""},{"$nulls":7},{"$f":"IF(ISERROR($V580),\"\",OFFSET('Smelter Look-up'!$C$4,$V580-4,0)&\"\")","v":""},"",{"$f":"IF(B580=\"\",\"\",IF(ISERROR(MATCH($J580,SorP!$B$1:$B$6230,0)),\"\",INDIRECT(\"'SorP'!$A$\"&MATCH($J580,SorP!$B$1:$B$6230,0))))","v":""},null,{"$f":"IF(C580=\"\",NA(),MATCH($B580&$C580,'Smelter Look-up'!$J:$J,0))","v":{"$error":"#N/A"}},null,0,null,null,null,""]
[null,{"$f":"IF(LEN(A581)=0,\"\",INDEX('Smelter Look-up'!$A:$A,MATCH($A581,'Smelter Look-up'!$E:$E,0)))","v":""},{"$f":"IF(LEN(A581)=0,\"\",INDEX('Smelter Look-up'!$C:$C,MATCH($A581,'Smelter Look-up'!$E:$E,0)))","v":""},null,{"$f":"IF(ISERROR($V581),\"\",OFFSET('Smelter Look-up'!$D$4,$V581-4,0)&\"\")","v":""},{"$f":"IF(ISERROR($V581),\"\",OFFSET('Smelter Look-up'!$E$4,$V581-4,0))","v":""},{"$f":"IF(C581=$X$4,\"Enter smelter details\", IF(ISERROR($V581),\"\",OFFSET('Smelter Look-up'!$F$4,$V581-4,0)))","v":""},{"$f":"IF(ISERROR($V581),\"\",OFFSET('Smelter Look-up'!$G$4,$V581-4,0))","v":""},{"$f":"IF(ISERROR($V581),\"\",OFFSET('Smelter Look-up'!$H$4,$V581-4,0))","v":""},{"$f":"IF(ISERROR($V581),\"\",OFFSET('Smelter Look-up'!$I$4,$V581-4,0))","v":""},{"$nulls":7},{"$f":"IF(ISERROR($V581),\"\",OFFSET('Smelter Look-up'!$C$4,$V581-4,0)&\"\")","v":""},"",{"$f":"IF(B581=\"\",\"\",IF(ISERROR(MATCH($J581,SorP!$B$1:$B$6230,0)),\"\",INDIRECT(\"'SorP'!$A$\"&MATCH($J581,SorP!$B$1:$B$6230,0))))","v":""},null,{"$f":"IF(C581=\"\",NA(),MATCH($B581&$C581,'Smelter Look-up'!$J:$J,0))","v":{"$error":"#N/A"}},null,0,null,null,null,""]
[null,{"$f":"IF(LEN(A582)=0,\"\",INDEX('Smelter Look-up'!$A:$A,MATCH($A582,'Smelter Look-up'!$E:$E,0)))","v":""},{"$f":"IF(LEN(A582)=0,\"\",INDEX('Smelter Look-up'!$C:$C,MATCH($A582,'Smelter Look-up'!$E:$E,0)))","v":""},null,{"$f":"IF(ISERROR($V582),\"\",OFFSET('Smelter Look-up'!$D$4,$V582-4,0)&\"\")","v":""},{"$f":"IF(ISERROR($V582),\"\",OFFSET('Smelter Look-up'!$E$4,$V582-4,0))","v":""},{"$f":"IF(C582=$X$4,\"Enter smelter details\", IF(ISERROR($V582),\"\",OFFSET('Smelter Look-up'!$F$4,$V582-4,0)))","v":""},{"$f":"IF(ISERROR($V582),\"\",OFFSET('Smelter Look-up'!$G$4,$V582-4,0))","v":""},{"$f":"IF(ISERROR($V582),\"\",OFFSET('Smelter Look-up'!$H$4,$V582-4,0))","v":""},{"$f":"IF(ISERROR($V582),\"\",OFFSET('Smelter Look-up'!$I$4,$V582-4,0))","v":""},{"$nulls":7},{"$f":"IF(ISERROR($V582),\"\",OFFSET('Smelter Look-up'!$C$4,$V582-4,0)&\"\")","v":""},"",{"$f":"IF(B582=\"\",\"\",IF(ISERROR(MATCH($J582,SorP!$B$1:$B$6230,0)),\"\",INDIRECT(\"'SorP'!$A$\"&MATCH($J582,SorP!$B$1:$B$6230,0))))","v":""},null,{"$f":"IF(C582=\"\",NA(),MATCH($B582&$C582,'Smelter Look-up'!$J:$J,0))","v":{"$error":"#N/A"}},null,0,null,null,null,""]
[null,{"$f":"IF(LEN(A583)=0,\"\",INDEX('Smelter Look-up'!$A:$A,MATCH($A583,'Smelter Look-up'!$E:$E,0)))","v":""},{"$f":"IF(LEN(A583)=0,\"\",INDEX('Smelter Look-up'!$C:$C,MATCH($A583,'Smelter Look-up'!$E:$E,0)))","v":""},null,{"$f":"IF(ISERROR($V583),\"\",OFFSET('Smelter Look-up'!$D$4,$V583-4,0)&\"\")","v":""},{"$f":"IF(ISERROR($V583),\"\",OFFSET('Smelter Look-up'!$E$4,$V583-4,0))","v":""},{"$f":"IF(C583=$X$4,\"Enter smelter details\", IF(ISERROR($V583),\"\",OFFSET('Smelter Look-up'!$F$4,$V583-4,0)))","v":""},{"$f":"IF(ISERROR($V583),\"\",OFFSET('Smelter Look-up'!$G$4,$V583-4,0))","v":""},{"$f":"IF(ISERROR($V583),\"\",OFFSET('Smelter Look-up'!$H$4,$V583-4,0))","v":""},{"$f":"IF(ISERROR($V583),\"\",OFFSET('Smelter Look-up'!$I$4,$V583-4,0))","v":""},{"$nulls":7},{"$f":"IF(ISERROR($V583),\"\",OFFSET('Smelter Look-up'!$C$4,$V583-4,0)&\"\")","v":""},"",{"$f":"IF(B583=\"\",\"\",IF(ISERROR(MATCH($J583,SorP!$B$1:$B$6230,0)),\"\",INDIRECT(\"'SorP'!$A$\"&MATCH($J583,SorP!$B$1:$B$6230,0))))","v":""},null,{"$f":"IF(C583=\"\",NA(),MATCH($B583&$C583,'Smelter Look-up'!$J:$J,0))","v":{"$error":"#N/A"}},null,0,null,null,null,""]
[null,{"$f":"IF(LEN(A584)=0,\"\",INDEX('Smelter Look-up'!$A:$A,MATCH($A584,'Smelter Look-up'!$E:$E,0)))","v":""},{"$f":"IF(LEN(A584)=0,\"\",INDEX('Smelter Look-up'!$C:$C,MATCH($A584,'Smelter Look-up'!$E:$E,0)))","v":""},null,{"$f":"IF(ISERROR($V584),\"\",OFFSET('Smelter Look-up'!$D$4,$V584-4,0)&\"\")","v":""},{"$f":"IF(ISERROR($V584),\"\",OFFSET('Smelter Look-up'!$E$4,$V584-4,0))","v":""},{"$f":"IF(C584=$X$4,\"Enter smelter details\", IF(ISERROR($V584),\"\",OFFSET('Smelter Look-up'!$F$4,$V584-4,0)))","v":""},{"$f":"IF(ISERROR($V584),\"\",OFFSET('Smelter Look-up'!$G$4,$V584-4,0))","v":""},{"$f":"IF(ISERROR($V584),\"\",OFFSET('Smelter Look-up'!$H$4,$V584-4,0))","v":""},{"$f":"IF(ISERROR($V584),\"\",OFFSET('Smelter Look-up'!$I$4,$V584-4,0))","v":""},{"$nulls":7},{"$f":"IF(ISERROR($V584),\"\",OFFSET('Smelter Look-up'!$C$4,$V584-4,0)&\"\")","v":""},"",{"$f":"IF(B584=\"\",\"\",IF(ISERROR(MATCH($J584,SorP!$B$1:$B$6230,0)),\"\",INDIRECT(\"'SorP'!$A$\"&MATCH($J584,SorP!$B$1:$B$6230,0))))","v":""},null,{"$f":"IF(C584=\"\",NA(),MATCH($B584&$C584,'Smelter Look-up'!$J:$J,0))","v":{"$error":"#N/A"}},null,0,null,null,null,""]
[null,{"$f":"IF(LEN(A585)=0,\"\",INDEX('Smelter Look-up'!$A:$A,MATCH($A585,'Smelter Look-up'!$E:$E,0)))","v":""},{"$f":"IF(LEN(A585)=0,\"\",INDEX('Smelter Look-up'!$C:$C,MATCH($A585,'Smelter Look-up'!$E:$E,0)))","v":""},null,{"$f":"IF(ISERROR($V585),\"\",OFFSET('Smelter Look-up'!$D$4,$V585-4,0)&\"\")","v":""},{"$f":"IF(ISERROR($V585),\"\",OFFSET('Smelter Look-up'!$E$4,$V585-4,0))","v":""},{"$f":"IF(C585=$X$4,\"Enter smelter details\", IF(ISERROR($V585),\"\",OFFSET('Smelter Look-up'!$F$4,$V585-4,0)))","v":""},{"$f":"IF(ISERROR($V585),\"\",OFFSET('Smelter Look-up'!$G$4,$V585-4,0))","v":""},{"$f":"IF(ISERROR($V585),\"\",OFFSET('Smelter Look-up'!$H$4,$V585-4,0))","v":""},{"$f":"IF(ISERROR($V585),\"\",OFFSET('Smelter Look-up'!$I$4,$V585-4,0))","v":""},{"$nulls":7},{"$f":"IF(ISERROR($V585),\"\",OFFSET('Smelter Look-up'!$C$4,$V585-4,0)&\"\")","v":""},"",{"$f":"IF(B585=\"\",\"\",IF(ISERROR(MATCH($J585,SorP!$B$1:$B$6230,0)),\"\",INDIRECT(\"'SorP'!$A$\"&MATCH($J585,SorP!$B$1:$B$6230,0))))","v":""},null,{"$f":"IF(C585=\"\",NA(),MATCH($B585&$C585,'Smelter Look-up'!$J:$J,0))","v":{"$error":"#N/A"}},null,0,null,null,null,""]
[null,{"$f":"IF(LEN(A586)=0,\"\",INDEX('Smelter Look-up'!$A:$A,MATCH($A586,'Smelter Look-up'!$E:$E,0)))","v":""},{"$f":"IF(LEN(A586)=0,\"\",INDEX('Smelter Look-up'!$C:$C,MATCH($A586,'Smelter Look-up'!$E:$E,0)))","v":""},null,{"$f":"IF(ISERROR($V586),\"\",OFFSET('Smelter Look-up'!$D$4,$V586-4,0)&\"\")","v":""},{"$f":"IF(ISERROR($V586),\"\",OFFSET('Smelter Look-up'!$E$4,$V586-4,0))","v":""},{"$f":"IF(C586=$X$4,\"Enter smelter details\", IF(ISERROR($V586),\"\",OFFSET('Smelter Look-up'!$F$4,$V586-4,0)))","v":""},{"$f":"IF(ISERROR($V586),\"\",OFFSET('Smelter Look-up'!$G$4,$V586-4,0))","v":""},{"$f":"IF(ISERROR($V586),\"\",OFFSET('Smelter Look-up'!$H$4,$V586-4,0))","v":""},{"$f":"IF(ISERROR($V586),\"\",OFFSET('Smelter Look-up'!$I$4,$V586-4,0))","v":""},{"$nulls":7},{"$f":"IF(ISERROR($V586),\"\",OFFSET('Smelter Look-up'!$C$4,$V586-4,0)&\"\")","v":""},"",{"$f":"IF(B586=\"\",\"\",IF(ISERROR(MATCH($J586,SorP!$B$1:$B$6230,0)),\"\",INDIRECT(\"'SorP'!$A$\"&MATCH($J586,SorP!$B$1:$B$6230,0))))","v":""},null,{"$f":"IF(C586=\"\",NA(),MATCH($B586&$C586,'Smelter Look-up'!$J:$J,0))","v":{"$error":"#N/A"}},null,0,null,null,null,""]
[null,{"$f":"IF(LEN(A587)=0,\"\",INDEX('Smelter Look-up'!$A:$A,MATCH($A587,'Smelter Look-up'!$E:$E,0)))","v":""},{"$f":"IF(LEN(A587)=0,\"\",INDEX('Smelter Look-up'!$C:$C,MATCH($A587,'Smelter Look-up'!$E:$E,0)))","v":""},null,{"$f":"IF(ISERROR($V587),\"\",OFFSET('Smelter Look-up'!$D$4,$V587-4,0)&\"\")","v":""},{"$f":"IF(ISERROR($V587),\"\",OFFSET('Smelter Look-up'!$E$4,$V587-4,0))","v":""},{"$f":"IF(C587=$X$4,\"Enter smelter details\", IF(ISERROR($V587),\"\",OFFSET('Smelter Look-up'!$F$4,$V587-4,0)))","v":""},{"$f":"IF(ISERROR($V587),\"\",OFFSET('Smelter Look-up'!$G$4,$V587-4,0))","v":""},{"$f":"IF(ISERROR($V587),\"\",OFFSET('Smelter Look-up'!$H$4,$V587-4,0))","v":""},{"$f":"IF(ISERROR($V587),\"\",OFFSET('Smelter Look-up'!$I$4,$V587-4,0))","v":""},{"$nulls":7},{"$f":"IF(ISERROR($V587),\"\",OFFSET('Smelter Look-up'!$C$4,$V587-4,0)&\"\")","v":""},"",{"$f":"IF(B587=\"\",\"\",IF(ISERROR(MATCH($J587,SorP!$B$1:$B$6230,0)),\"\",INDIRECT(\"'SorP'!$A$\"&MATCH($J587,SorP!$B$1:$B$6230,0))))","v":""},null,{"$f":"IF(C587=\"\",NA(),MATCH($B587&$C587,'Smelter Look-up'!$J:$J,0))","v":{"$error":"#N/A"}},null,0,null,null,null,""]
[null,{"$f":"IF(LEN(A588)=0,\"\",INDEX('Smelter Look-up'!$A:$A,MATCH($A588,'Smelter Look-up'!$E:$E,0)))","v":""},{"$f":"IF(LEN(A588)=0,\"\",INDEX('Smelter Look-up'!$C:$C,MATCH($A588,'Smelter Look-up'!$E:$E,0)))","v":""},null,{"$f":"IF(ISERROR($V588),\"\",OFFSET('Smelter Look-up'!$D$4,$V588-4,0)&\"\")","v":""},{"$f":"IF(ISERROR($V588),\"\",OFFSET('Smelter Look-up'!$E$4,$V588-4,0))","v":""},{"$f":"IF(C588=$X$4,\"Enter smelter details\", IF(ISERROR($V588),\"\",OFFSET('Smelter Look-up'!$F$4,$V588-4,0)))","v":""},{"$f":"IF(ISERROR($V588),\"\",OFFSET('Smelter Look-up'!$G$4,$V588-4,0))","v":""},{"$f":"IF(ISERROR($V588),\"\",OFFSET('Smelter Look-up'!$H$4,$V588-4,0))","v":""},{"$f":"IF(ISERROR($V588),\"\",OFFSET('Smelter Look-up'!$I$4,$V588-4,0))","v":""},{"$nulls":7},{"$f":"IF(ISERROR($V588),\"\",OFFSET('Smelter Look-up'!$C$4,$V588-4,0)&\"\")","v":""},"",{"$f":"IF(B588=\"\",\"\",IF(ISERROR(MATCH($J588,SorP!$B$1:$B$6230,0)),\"\",INDIRECT(\"'SorP'!$A$\"&MATCH($J588,SorP!$B$1:$B$6230,0))))","v":""},null,{"$f":"IF(C588=\"\",NA(),MATCH($B588&$C588,'Smelter Look-up'!$J:$J,0))","v":{"$error":"#N/A"}},null,0,null,null,null,""]
[null,{"$f":"IF(LEN(A589)=0,\"\",INDEX('Smelter Look-up'!$A:$A,MATCH($A589,'Smelter Look-up'!$E:$E,0)))","v":""},{"$f":"IF(LEN(A589)=0,\"\",INDEX('Smelter Look-up'!$C:$C,MATCH($A589,'Smelter Look-up'!$E:$E,0)))","v":""},null,{"$f":"IF(ISERROR($V589),\"\",OFFSET('Smelter Look-up'!$D$4,$V589-4,0)&\"\")","v":""},{"$f":"IF(ISERROR($V589),\"\",OFFSET('Smelter Look-up'!$E$4,$V589-4,0))","v":""},{"$f":"IF(C589=$X$4,\"Enter smelter details\", IF(ISERROR($V589),\"\",OFFSET('Smelter Look-up'!$F$4,$V589-4,0)))","v":""},{"$f":"IF(ISERROR($V589),\"\",OFFSET('Smelter Look-up'!$G$4,$V589-4,0))","v":""},{"$f":"IF(ISERROR($V589),\"\",OFFSET('Smelter Look-up'!$H$4,$V589-4,0))","v":""},{"$f":"IF(ISERROR($V589),\"\",OFFSET('Smelter Look-up'!$I$4,$V589-4,0))","v":""},{"$nulls":7},{"$f":"IF(ISERROR($V589),\"\",OFFSET('Smelter Look-up'!$C$4,$V589-4,0)&\"\")","v":""},"",{"$f":"IF(B589=\"\",\"\",IF(ISERROR(MATCH($J589,SorP!$B$1:$B$6230,0)),\"\",INDIRECT(\"'SorP'!$A$\"&MATCH($J589,SorP!$B$1:$B$6230,0))))","v":""},null,{"$f":"IF(C589=\"\",NA(),MATCH($B589&$C589,'Smelter Look-up'!$J:$J,0))","v":{"$error":"#N/A"}},null,0,null,null,null,""]
[null,{"$f":"IF(LEN(A590)=0,\"\",INDEX('Smelter Look-up'!$A:$A,MATCH($A590,'Smelter Look-up'!$E:$E,0)))","v":""},{"$f":"IF(LEN(A590)=0,\"\",INDEX('Smelter Look-up'!$C:$C,MATCH($A590,'Smelter Look-up'!$E:$E,0)))","v":""},null,{"$f":"IF(ISERROR($V590),\"\",OFFSET('Smelter Look-up'!$D$4,$V590-4,0)&\"\")","v":""},{"$f":"IF(ISERROR($V590),\"\",OFFSET('Smelter Look-up'!$E$4,$V590-4,0))","v":""},{"$f":"IF(C590=$X$4,\"Enter smelter details\", IF(ISERROR($V590),\"\",OFFSET('Smelter Look-up'!$F$4,$V590-4,0)))","v":""},{"$f":"IF(ISERROR($V590),\"\",OFFSET('Smelter Look-up'!$G$4,$V590-4,0))","v":""},{"$f":"IF(ISERROR($V590),\"\",OFFSET('Smelter Look-up'!$H$4,$V590-4,0))","v":""},{"$f":"IF(ISERROR($V590),\"\",OFFSET('Smelter Look-up'!$I$4,$V590-4,0))","v":""},{"$nulls":7},{"$f":"IF(ISERROR($V590),\"\",OFFSET('Smelter Look-up'!$C$4,$V590-4,0)&\"\")","v":""},"",{"$f":"IF(B590=\"\",\"\",IF(ISERROR(MATCH($J590,SorP!$B$1:$B$6230,0)),\"\",INDIRECT(\"'SorP'!$A$\"&MATCH($J590,SorP!$B$1:$B$6230,0))))","v":""},null,{"$f":"IF(C590=\"\",NA(),MATCH($B590&$C590,'Smelter Look-up'!$J:$J,0))","v":{"$error":"#N/A"}},null,0,null,null,null,""]
[null,{"$f":"IF(LEN(A591)=0,\"\",INDEX('Smelter Look-up'!$A:$A,MATCH($A591,'Smelter Look-up'!$E:$E,0)))","v":""},{"$f":"IF(LEN(A591)=0,\"\",INDEX('Smelter Look-up'!$C:$C,MATCH($A591,'Smelter Look-up'!$E:$E,0)))","v":""},null,{"$f":"IF(ISERROR($V591),\"\",OFFSET('Smelter Look-up'!$D$4,$V591-4,0)&\"\")","v":""},{"$f":"IF(ISERROR($V591),\"\",OFFSET('Smelter Look-up'!$E$4,$V591-4,0))","v":""},{"$f":"IF(C591=$X$4,\"Enter smelter details\", IF(ISERROR($V591),\"\",OFFSET('Smelter Look-up'!$F$4,$V591-4,0)))","v":""},{"$f":"IF(ISERROR($V591),\"\",OFFSET('Smelter Look-up'!$G$4,$V591-4,0))","v":""},{"$f":"IF(ISERROR($V591),\"\",OFFSET('Smelter Look-up'!$H$4,$V591-4,0))","v":""},{"$f":"IF(ISERROR($V591),\"\",OFFSET('Smelter Look-up'!$I$4,$V591-4,0))","v":""},{"$nulls":7},{"$f":"IF(ISERROR($V591),\"\",OFFSET('Smelter Look-up'!$C$4,$V591-4,0)&\"\")","v":""},"",{"$f":"IF(B591=\"\",\"\",IF(ISERROR(MATCH($J591,SorP!$B$1:$B$6230,0)),\"\",INDIRECT(\"'SorP'!$A$\"&MATCH($J591,SorP!$B$1:$B$6230,0))))","v":""},null,{"$f":"IF(C591=\"\",NA(),MATCH($B591&$C591,'Smelter Look-up'!$J:$J,0))","v":{"$error":"#N/A"}},null,0,null,null,null,""]
[null,{"$f":"IF(LEN(A592)=0,\"\",INDEX('Smelter Look-up'!$A:$A,MATCH($A592,'Smelter Look-up'!$E:$E,0)))","v":""},{"$f":"IF(LEN(A592)=0,\"\",INDEX('Smelter Look-up'!$C:$C,MATCH($A592,'Smelter Look-up'!$E:$E,0)))","v":""},null,{"$f":"IF(ISERROR($V592),\"\",OFFSET('Smelter Look-up'!$D$4,$V592-4,0)&\"\")","v":""},{"$f":"IF(ISERROR($V592),\"\",OFFSET('Smelter Look-up'!$E$4,$V592-4,0))","v":""},{"$f":"IF(C592=$X$4,\"Enter smelter details\", IF(ISERROR($V592),\"\",OFFSET('Smelter Look-up'!$F$4,$V592-4,0)))","v":""},{"$f":"IF(ISERROR($V592),\"\",OFFSET('Smelter Look-up'!$G$4,$V592-4,0))","v":""},{"$f":"IF(ISERROR($V592),\"\",OFFSET('Smelter Look-up'!$H$4,$V592-4,0))","v":""},{"$f":"IF(ISERROR($V592),\"\",OFFSET('Smelter Look-up'!$I$4,$V592-4,0))","v":""},{"$nulls":7},{"$f":"IF(ISERROR($V592),\"\",OFFSET('Smelter Look-up'!$C$4,$V592-4,0)&\"\")","v":""},"",{"$f":"IF(B592=\"\",\"\",IF(ISERROR(MATCH($J592,SorP!$B$1:$B$6230,0)),\"\",INDIRECT(\"'SorP'!$A$\"&MATCH($J592,SorP!$B$1:$B$6230,0))))","v":""},null,{"$f":"IF(C592=\"\",NA(),MATCH($B592&$C592,'Smelter Look-up'!$J:$J,0))","v":{"$error":"#N/A"}},null,0,null,null,null,""]
[null,{"$f":"IF(LEN(A593)=0,\"\",INDEX('Smelter Look-up'!$A:$A,MATCH($A593,'Smelter Look-up'!$E:$E,0)))","v":""},{"$f":"IF(LEN(A593)=0,\"\",INDEX('Smelter Look-up'!$C:$C,MATCH($A593,'Smelter Look-up'!$E:$E,0)))","v":""},null,{"$f":"IF(ISERROR($V593),\"\",OFFSET('Smelter Look-up'!$D$4,$V593-4,0)&\"\")","v":""},{"$f":"IF(ISERROR($V593),\"\",OFFSET('Smelter Look-up'!$E$4,$V593-4,0))","v":""},{"$f":"IF(C593=$X$4,\"Enter smelter details\", IF(ISERROR($V593),\"\",OFFSET('Smelter Look-up'!$F$4,$V593-4,0)))","v":""},{"$f":"IF(ISERROR($V593),\"\",OFFSET('Smelter Look-up'!$G$4,$V593-4,0))","v":""},{"$f":"IF(ISERROR($V593),\"\",OFFSET('Smelter Look-up'!$H$4,$V593-4,0))","v":""},{"$f":"IF(ISERROR($V593),\"\",OFFSET('Smelter Look-up'!$I$4,$V593-4,0))","v":""},{"$nulls":7},{"$f":"IF(ISERROR($V593),\"\",OFFSET('Smelter Look-up'!$C$4,$V593-4,0)&\"\")","v":""},"",{"$f":"IF(B593=\"\",\"\",IF(ISERROR(MATCH($J593,SorP!$B$1:$B$6230,0)),\"\",INDIRECT(\"'SorP'!$A$\"&MATCH($J593,SorP!$B$1:$B$6230,0))))","v":""},null,{"$f":"IF(C593=\"\",NA(),MATCH($B593&$C593,'Smelter Look-up'!$J:$J,0))","v":{"$error":"#N/A"}},null,0,null,null,null,""]
[null,{"$f":"IF(LEN(A594)=0,\"\",INDEX('Smelter Look-up'!$A:$A,MATCH($A594,'Smelter Look-up'!$E:$E,0)))","v":""},{"$f":"IF(LEN(A594)=0,\"\",INDEX('Smelter Look-up'!$C:$C,MATCH($A594,'Smelter Look-up'!$E:$E,0)))","v":""},null,{"$f":"IF(ISERROR($V594),\"\",OFFSET('Smelter Look-up'!$D$4,$V594-4,0)&\"\")","v":""},{"$f":"IF(ISERROR($V594),\"\",OFFSET('Smelter Look-up'!$E$4,$V594-4,0))","v":""},{"$f":"IF(C594=$X$4,\"Enter smelter details\", IF(ISERROR($V594),\"\",OFFSET('Smelter Look-up'!$F$4,$V594-4,0)))","v":""},{"$f":"IF(ISERROR($V594),\"\",OFFSET('Smelter Look-up'!$G$4,$V594-4,0))","v":""},{"$f":"IF(ISERROR($V594),\"\",OFFSET('Smelter Look-up'!$H$4,$V594-4,0))","v":""},{"$f":"IF(ISERROR($V594),\"\",OFFSET('Smelter Look-up'!$I$4,$V594-4,0))","v":""},{"$nulls":7},{"$f":"IF(ISERROR($V594),\"\",OFFSET('Smelter Look-up'!$C$4,$V594-4,0)&\"\")","v":""},"",{"$f":"IF(B594=\"\",\"\",IF(ISERROR(MATCH($J594,SorP!$B$1:$B$6230,0)),\"\",INDIRECT(\"'SorP'!$A$\"&MATCH($J594,SorP!$B$1:$B$6230,0))))","v":""},null,{"$f":"IF(C594=\"\",NA(),MATCH($B594&$C594,'Smelter Look-up'!$J:$J,0))","v":{"$error":"#N/A"}},null,0,null,null,null,""]
[null,{"$f":"IF(LEN(A595)=0,\"\",INDEX('Smelter Look-up'!$A:$A,MATCH($A595,'Smelter Look-up'!$E:$E,0)))","v":""},{"$f":"IF(LEN(A595)=0,\"\",INDEX('Smelter Look-up'!$C:$C,MATCH($A595,'Smelter Look-up'!$E:$E,0)))","v":""},null,{"$f":"IF(ISERROR($V595),\"\",OFFSET('Smelter Look-up'!$D$4,$V595-4,0)&\"\")","v":""},{"$f":"IF(ISERROR($V595),\"\",OFFSET('Smelter Look-up'!$E$4,$V595-4,0))","v":""},{"$f":"IF(C595=$X$4,\"Enter smelter details\", IF(ISERROR($V595),\"\",OFFSET('Smelter Look-up'!$F$4,$V595-4,0)))","v":""},{"$f":"IF(ISERROR($V595),\"\",OFFSET('Smelter Look-up'!$G$4,$V595-4,0))","v":""},{"$f":"IF(ISERROR($V595),\"\",OFFSET('Smelter Look-up'!$H$4,$V595-4,0))","v":""},{"$f":"IF(ISERROR($V595),\"\",OFFSET('Smelter Look-up'!$I$4,$V595-4,0))","v":""},{"$nulls":7},{"$f":"IF(ISERROR($V595),\"\",OFFSET('Smelter Look-up'!$C$4,$V595-4,0)&\"\")","v":""},"",{"$f":"IF(B595=\"\",\"\",IF(ISERROR(MATCH($J595,SorP!$B$1:$B$6230,0)),\"\",INDIRECT(\"'SorP'!$A$\"&MATCH($J595,SorP!$B$1:$B$6230,0))))","v":""},null,{"$f":"IF(C595=\"\",NA(),MATCH($B595&$C595,'Smelter Look-up'!$J:$J,0))","v":{"$error":"#N/A"}},null,0,null,null,null,""]
[null,{"$f":"IF(LEN(A596)=0,\"\",INDEX('Smelter Look-up'!$A:$A,MATCH($A596,'Smelter Look-up'!$E:$E,0)))","v":""},{"$f":"IF(LEN(A596)=0,\"\",INDEX('Smelter Look-up'!$C:$C,MATCH($A596,'Smelter Look-up'!$E:$E,0)))","v":""},null,{"$f":"IF(ISERROR($V596),\"\",OFFSET('Smelter Look-up'!$D$4,$V596-4,0)&\"\")","v":""},{"$f":"IF(ISERROR($V596),\"\",OFFSET('Smelter Look-up'!$E$4,$V596-4,0))","v":""},{"$f":"IF(C596=$X$4,\"Enter smelter details\", IF(ISERROR($V596),\"\",OFFSET('Smelter Look-up'!$F$4,$V596-4,0)))","v":""},{"$f":"IF(ISERROR($V596),\"\",OFFSET('Smelter Look-up'!$G$4,$V596-4,0))","v":""},{"$f":"IF(ISERROR($V596),\"\",OFFSET('Smelter Look-up'!$H$4,$V596-4,0))","v":""},{"$f":"IF(ISERROR($V596),\"\",OFFSET('Smelter Look-up'!$I$4,$V596-4,0))","v":""},{"$nulls":7},{"$f":"IF(ISERROR($V596),\"\",OFFSET('Smelter Look-up'!$C$4,$V596-4,0)&\"\")","v":""},"",{"$f":"IF(B596=\"\",\"\",IF(ISERROR(MATCH($J596,SorP!$B$1:$B$6230,0)),\"\",INDIRECT(\"'SorP'!$A$\"&MATCH($J596,SorP!$B$1:$B$6230,0))))","v":""},null,{"$f":"IF(C596=\"\",NA(),MATCH($B596&$C596,'Smelter Look-up'!$J:$J,0))","v":{"$error":"#N/A"}},null,0,null,null,null,""]
[null,{"$f":"IF(LEN(A597)=0,\"\",INDEX('Smelter Look-up'!$A:$A,MATCH($A597,'Smelter Look-up'!$E:$E,0)))","v":""},{"$f":"IF(LEN(A597)=0,\"\",INDEX('Smelter Look-up'!$C:$C,MATCH($A597,'Smelter Look-up'!$E:$E,0)))","v":""},null,{"$f":"IF(ISERROR($V597),\"\",OFFSET('Smelter Look-up'!$D$4,$V597-4,0)&\"\")","v":""},{"$f":"IF(ISERROR($V597),\"\",OFFSET('Smelter Look-up'!$E$4,$V597-4,0))","v":""},{"$f":"IF(C597=$X$4,\"Enter smelter details\", IF(ISERROR($V597),\"\",OFFSET('Smelter Look-up'!$F$4,$V597-4,0)))","v":""},{"$f":"IF(ISERROR($V597),\"\",OFFSET('Smelter Look-up'!$G$4,$V597-4,0))","v":""},{"$f":"IF(ISERROR($V597),\"\",OFFSET('Smelter Look-up'!$H$4,$V597-4,0))","v":""},{"$f":"IF(ISERROR($V597),\"\",OFFSET('Smelter Look-up'!$I$4,$V597-4,0))","v":""},{"$nulls":7},{"$f":"IF(ISERROR($V597),\"\",OFFSET('Smelter Look-up'!$C$4,$V597-4,0)&\"\")","v":""},"",{"$f":"IF(B597=\"\",\"\",IF(ISERROR(MATCH($J597,SorP!$B$1:$B$6230,0)),\"\",INDIRECT(\"'SorP'!$A$\"&MATCH($J597,SorP!$B$1:$B$6230,0))))","v":""},null,{"$f":"IF(C597=\"\",NA(),MATCH($B597&$C597,'Smelter Look-up'!$J:$J,0))","v":{"$error":"#N/A"}},null,0,null,null,null,""]
[null,{"$f":"IF(LEN(A598)=0,\"\",INDEX('Smelter Look-up'!$A:$A,MATCH($A598,'Smelter Look-up'!$E:$E,0)))","v":""},{"$f":"IF(LEN(A598)=0,\"\",INDEX('Smelter Look-up'!$C:$C,MATCH($A598,'Smelter Look-up'!$E:$E,0)))","v":""},null,{"$f":"IF(ISERROR($V598),\"\",OFFSET('Smelter Look-up'!$D$4,$V598-4,0)&\"\")","v":""},{"$f":"IF(ISERROR($V598),\"\",OFFSET('Smelter Look-up'!$E$4,$V598-4,0))","v":""},{"$f":"IF(C598=$X$4,\"Enter smelter details\", IF(ISERROR($V598),\"\",OFFSET('Smelter Look-up'!$F$4,$V598-4,0)))","v":""},{"$f":"IF(ISERROR($V598),\"\",OFFSET('Smelter Look-up'!$G$4,$V598-4,0))","v":""},{"$f":"IF(ISERROR($V598),\"\",OFFSET('Smelter Look-up'!$H$4,$V598-4,0))","v":""},{"$f":"IF(ISERROR($V598),\"\",OFFSET('Smelter Look-up'!$I$4,$V598-4,0))","v":""},{"$nulls":7},{"$f":"IF(ISERROR($V598),\"\",OFFSET('Smelter Look-up'!$C$4,$V598-4,0)&\"\")","v":""},"",{"$f":"IF(B598=\"\",\"\",IF(ISERROR(MATCH($J598,SorP!$B$1:$B$6230,0)),\"\",INDIRECT(\"'SorP'!$A$\"&MATCH($J598,SorP!$B$1:$B$6230,0))))","v":""},null,{"$f":"IF(C598=\"\",NA(),MATCH($B598&$C598,'Smelter Look-up'!$J:$J,0))","v":{"$error":"#N/A"}},null,0,null,null,null,""]
[null,{"$f":"IF(LEN(A599)=0,\"\",INDEX('Smelter Look-up'!$A:$A,MATCH($A599,'Smelter Look-up'!$E:$E,0)))","v":""},{"$f":"IF(LEN(A599)=0,\"\",INDEX('Smelter Look-up'!$C:$C,MATCH($A599,'Smelter Look-up'!$E:$E,0)))","v":""},null,{"$f":"IF(ISERROR($V599),\"\",OFFSET('Smelter Look-up'!$D$4,$V599-4,0)&\"\")","v":""},{"$f":"IF(ISERROR($V599),\"\",OFFSET('Smelter Look-up'!$E$4,$V599-4,0))","v":""},{"$f":"IF(C599=$X$4,\"Enter smelter details\", IF(ISERROR($V599),\"\",OFFSET('Smelter Look-up'!$F$4,$V599-4,0)))","v":""},{"$f":"IF(ISERROR($V599),\"\",OFFSET('Smelter Look-up'!$G$4,$V599-4,0))","v":""},{"$f":"IF(ISERROR($V599),\"\",OFFSET('Smelter Look-up'!$H$4,$V599-4,0))","v":""},{"$f":"IF(ISERROR($V599),\"\",OFFSET('Smelter Look-up'!$I$4,$V599-4,0))","v":""},{"$nulls":7},{"$f":"IF(ISERROR($V599),\"\",OFFSET('Smelter Look-up'!$C$4,$V599-4,0)&\"\")","v":""},"",{"$f":"IF(B599=\"\",\"\",IF(ISERROR(MATCH($J599,SorP!$B$1:$B$6230,0)),\"\",INDIRECT(\"'SorP'!$A$\"&MATCH($J599,SorP!$B$1:$B$6230,0))))","v":""},null,{"$f":"IF(C599=\"\",NA(),MATCH($B599&$C599,'Smelter Look-up'!$J:$J,0))","v":{"$error":"#N/A"}},null,0,null,null,null,""]
[null,{"$f":"IF(LEN(A600)=0,\"\",INDEX('Smelter Look-up'!$A:$A,MATCH($A600,'Smelter Look-up'!$E:$E,0)))","v":""},{"$f":"IF(LEN(A600)=0,\"\",INDEX('Smelter Look-up'!$C:$C,MATCH($A600,'Smelter Look-up'!$E:$E,0)))","v":""},null,{"$f":"IF(ISERROR($V600),\"\",OFFSET('Smelter Look-up'!$D$4,$V600-4,0)&\"\")","v":""},{"$f":"IF(ISERROR($V600),\"\",OFFSET('Smelter Look-up'!$E$4,$V600-4,0))","v":""},{"$f":"IF(C600=$X$4,\"Enter smelter details\", IF(ISERROR($V600),\"\",OFFSET('Smelter Look-up'!$F$4,$V600-4,0)))","v":""},{"$f":"IF(ISERROR($V600),\"\",OFFSET('Smelter Look-up'!$G$4,$V600-4,0))","v":""},{"$f":"IF(ISERROR($V600),\"\",OFFSET('Smelter Look-up'!$H$4,$V600-4,0))","v":""},{"$f":"IF(ISERROR($V600),\"\",OFFSET('Smelter Look-up'!$I$4,$V600-4,0))","v":""},{"$nulls":7},{"$f":"IF(ISERROR($V600),\"\",OFFSET('Smelter Look-up'!$C$4,$V600-4,0)&\"\")","v":""},"",{"$f":"IF(B600=\"\",\"\",IF(ISERROR(MATCH($J600,SorP!$B$1:$B$6230,0)),\"\",INDIRECT(\"'SorP'!$A$\"&MATCH($J600,SorP!$B$1:$B$6230,0))))","v":""},null,{"$f":"IF(C600=\"\",NA(),MATCH($B600&$C600,'Smelter Look-up'!$J:$J,0))","v":{"$error":"#N/A"}},null,0,null,null,null,""]
[null,{"$f":"IF(LEN(A601)=0,\"\",INDEX('Smelter Look-up'!$A:$A,MATCH($A601,'Smelter Look-up'!$E:$E,0)))","v":""},{"$f":"IF(LEN(A601)=0,\"\",INDEX('Smelter Look-up'!$C:$C,MATCH($A601,'Smelter Look-up'!$E:$E,0)))","v":""},null,{"$f":"IF(ISERROR($V601),\"\",OFFSET('Smelter Look-up'!$D$4,$V601-4,0)&\"\")","v":""},{"$f":"IF(ISERROR($V601),\"\",OFFSET('Smelter Look-up'!$E$4,$V601-4,0))","v":""},{"$f":"IF(C601=$X$4,\"Enter smelter details\", IF(ISERROR($V601),\"\",OFFSET('Smelter Look-up'!$F$4,$V601-4,0)))","v":""},{"$f":"IF(ISERROR($V601),\"\",OFFSET('Smelter Look-up'!$G$4,$V601-4,0))","v":""},{"$f":"IF(ISERROR($V601),\"\",OFFSET('Smelter Look-up'!$H$4,$V601-4,0))","v":""},{"$f":"IF(ISERROR($V601),\"\",OFFSET('Smelter Look-up'!$I$4,$V601-4,0))","v":""},{"$nulls":7},{"$f":"IF(ISERROR($V601),\"\",OFFSET('Smelter Look-up'!$C$4,$V601-4,0)&\"\")","v":""},"",{"$f":"IF(B601=\"\",\"\",IF(ISERROR(MATCH($J601,SorP!$B$1:$B$6230,0)),\"\",INDIRECT(\"'SorP'!$A$\"&MATCH($J601,SorP!$B$1:$B$6230,0))))","v":""},null,{"$f":"IF(C601=\"\",NA(),MATCH($B601&$C601,'Smelter Look-up'!$J:$J,0))","v":{"$error":"#N/A"}},null,0,null,null,null,""]
[null,{"$f":"IF(LEN(A602)=0,\"\",INDEX('Smelter Look-up'!$A:$A,MATCH($A602,'Smelter Look-up'!$E:$E,0)))","v":""},{"$f":"IF(LEN(A602)=0,\"\",INDEX('Smelter Look-up'!$C:$C,MATCH($A602,'Smelter Look-up'!$E:$E,0)))","v":""},null,{"$f":"IF(ISERROR($V602),\"\",OFFSET('Smelter Look-up'!$D$4,$V602-4,0)&\"\")","v":""},{"$f":"IF(ISERROR($V602),\"\",OFFSET('Smelter Look-up'!$E$4,$V602-4,0))","v":""},{"$f":"IF(C602=$X$4,\"Enter smelter details\", IF(ISERROR($V602),\"\",OFFSET('Smelter Look-up'!$F$4,$V602-4,0)))","v":""},{"$f":"IF(ISERROR($V602),\"\",OFFSET('Smelter Look-up'!$G$4,$V602-4,0))","v":""},{"$f":"IF(ISERROR($V602),\"\",OFFSET('Smelter Look-up'!$H$4,$V602-4,0))","v":""},{"$f":"IF(ISERROR($V602),\"\",OFFSET('Smelter Look-up'!$I$4,$V602-4,0))","v":""},{"$nulls":7},{"$f":"IF(ISERROR($V602),\"\",OFFSET('Smelter Look-up'!$C$4,$V602-4,0)&\"\")","v":""},"",{"$f":"IF(B602=\"\",\"\",IF(ISERROR(MATCH($J602,SorP!$B$1:$B$6230,0)),\"\",INDIRECT(\"'SorP'!$A$\"&MATCH($J602,SorP!$B$1:$B$6230,0))))","v":""},null,{"$f":"IF(C602=\"\",NA(),MATCH($B602&$C602,'Smelter Look-up'!$J:$J,0))","v":{"$error":"#N/A"}},null,0,null,null,null,""]
[null,{"$f":"IF(LEN(A603)=0,\"\",INDEX('Smelter Look-up'!$A:$A,MATCH($A603,'Smelter Look-up'!$E:$E,0)))","v":""},{"$f":"IF(LEN(A603)=0,\"\",INDEX('Smelter Look-up'!$C:$C,MATCH($A603,'Smelter Look-up'!$E:$E,0)))","v":""},null,{"$f":"IF(ISERROR($V603),\"\",OFFSET('Smelter Look-up'!$D$4,$V603-4,0)&\"\")","v":""},{"$f":"IF(ISERROR($V603),\"\",OFFSET('Smelter Look-up'!$E$4,$V603-4,0))","v":""},{"$f":"IF(C603=$X$4,\"Enter smelter details\", IF(ISERROR($V603),\"\",OFFSET('Smelter Look-up'!$F$4,$V603-4,0)))","v":""},{"$f":"IF(ISERROR($V603),\"\",OFFSET('Smelter Look-up'!$G$4,$V603-4,0))","v":""},{"$f":"IF(ISERROR($V603),\"\",OFFSET('Smelter Look-up'!$H$4,$V603-4,0))","v":""},{"$f":"IF(ISERROR($V603),\"\",OFFSET('Smelter Look-up'!$I$4,$V603-4,0))","v":""},{"$nulls":7},{"$f":"IF(ISERROR($V603),\"\",OFFSET('Smelter Look-up'!$C$4,$V603-4,0)&\"\")","v":""},"",{"$f":"IF(B603=\"\",\"\",IF(ISERROR(MATCH($J603,SorP!$B$1:$B$6230,0)),\"\",INDIRECT(\"'SorP'!$A$\"&MATCH($J603,SorP!$B$1:$B$6230,0))))","v":""},null,{"$f":"IF(C603=\"\",NA(),MATCH($B603&$C603,'Smelter Look-up'!$J:$J,0))","v":{"$error":"#N/A"}},null,0,null,null,null,""]
[null,{"$f":"IF(LEN(A604)=0,\"\",INDEX('Smelter Look-up'!$A:$A,MATCH($A604,'Smelter Look-up'!$E:$E,0)))","v":""},{"$f":"IF(LEN(A604)=0,\"\",INDEX('Smelter Look-up'!$C:$C,MATCH($A604,'Smelter Look-up'!$E:$E,0)))","v":""},null,{"$f":"IF(ISERROR($V604),\"\",OFFSET('Smelter Look-up'!$D$4,$V604-4,0)&\"\")","v":""},{"$f":"IF(ISERROR($V604),\"\",OFFSET('Smelter Look-up'!$E$4,$V604-4,0))","v":""},{"$f":"IF(C604=$X$4,\"Enter smelter details\", IF(ISERROR($V604),\"\",OFFSET('Smelter Look-up'!$F$4,$V604-4,0)))","v":""},{"$f":"IF(ISERROR($V604),\"\",OFFSET('Smelter Look-up'!$G$4,$V604-4,0))","v":""},{"$f":"IF(ISERROR($V604),\"\",OFFSET('Smelter Look-up'!$H$4,$V604-4,0))","v":""},{"$f":"IF(ISERROR($V604),\"\",OFFSET('Smelter Look-up'!$I$4,$V604-4,0))","v":""},{"$nulls":7},{"$f":"IF(ISERROR($V604),\"\",OFFSET('Smelter Look-up'!$C$4,$V604-4,0)&\"\")","v":""},"",{"$f":"IF(B604=\"\",\"\",IF(ISERROR(MATCH($J604,SorP!$B$1:$B$6230,0)),\"\",INDIRECT(\"'SorP'!$A$\"&MATCH($J604,SorP!$B$1:$B$6230,0))))","v":""},null,{"$f":"IF(C604=\"\",NA(),MATCH($B604&$C604,'Smelter Look-up'!$J:$J,0))","v":{"$error":"#N/A"}},null,0,null,null,null,""]
[null,{"$f":"IF(LEN(A605)=0,\"\",INDEX('Smelter Look-up'!$A:$A,MATCH($A605,'Smelter Look-up'!$E:$E,0)))","v":""},{"$f":"IF(LEN(A605)=0,\"\",INDEX('Smelter Look-up'!$C:$C,MATCH($A605,'Smelter Look-up'!$E:$E,0)))","v":""},null,{"$f":"IF(ISERROR($V605),\"\",OFFSET('Smelter Look-up'!$D$4,$V605-4,0)&\"\")","v":""},{"$f":"IF(ISERROR($V605),\"\",OFFSET('Smelter Look-up'!$E$4,$V605-4,0))","v":""},{"$f":"IF(C605=$X$4,\"Enter smelter details\", IF(ISERROR($V605),\"\",OFFSET('Smelter Look-up'!$F$4,$V605-4,0)))","v":""},{"$f":"IF(ISERROR($V605),\"\",OFFSET('Smelter Look-up'!$G$4,$V605-4,0))","v":""},{"$f":"IF(ISERROR($V605),\"\",OFFSET('Smelter Look-up'!$H$4,$V605-4,0))","v":""},{"$f":"IF(ISERROR($V605),\"\",OFFSET('Smelter Look-up'!$I$4,$V605-4,0))","v":""},{"$nulls":7},{"$f":"IF(ISERROR($V605),\"\",OFFSET('Smelter Look-up'!$C$4,$V605-4,0)&\"\")","v":""},"",{"$f":"IF(B605=\"\",\"\",IF(ISERROR(MATCH($J605,SorP!$B$1:$B$6230,0)),\"\",INDIRECT(\"'SorP'!$A$\"&MATCH($J605,SorP!$B$1:$B$6230,0))))","v":""},null,{"$f":"IF(C605=\"\",NA(),MATCH($B605&$C605,'Smelter Look-up'!$J:$J,0))","v":{"$error":"#N/A"}},null,0,null,null,null,""]
[null,{"$f":"IF(LEN(A606)=0,\"\",INDEX('Smelter Look-up'!$A:$A,MATCH($A606,'Smelter Look-up'!$E:$E,0)))","v":""},{"$f":"IF(LEN(A606)=0,\"\",INDEX('Smelter Look-up'!$C:$C,MATCH($A606,'Smelter Look-up'!$E:$E,0)))","v":""},null,{"$f":"IF(ISERROR($V606),\"\",OFFSET('Smelter Look-up'!$D$4,$V606-4,0)&\"\")","v":""},{"$f":"IF(ISERROR($V606),\"\",OFFSET('Smelter Look-up'!$E$4,$V606-4,0))","v":""},{"$f":"IF(C606=$X$4,\"Enter smelter details\", IF(ISERROR($V606),\"\",OFFSET('Smelter Look-up'!$F$4,$V606-4,0)))","v":""},{"$f":"IF(ISERROR($V606),\"\",OFFSET('Smelter Look-up'!$G$4,$V606-4,0))","v":""},{"$f":"IF(ISERROR($V606),\"\",OFFSET('Smelter Look-up'!$H$4,$V606-4,0))","v":""},{"$f":"IF(ISERROR($V606),\"\",OFFSET('Smelter Look-up'!$I$4,$V606-4,0))","v":""},{"$nulls":7},{"$f":"IF(ISERROR($V606),\"\",OFFSET('Smelter Look-up'!$C$4,$V606-4,0)&\"\")","v":""},"",{"$f":"IF(B606=\"\",\"\",IF(ISERROR(MATCH($J606,SorP!$B$1:$B$6230,0)),\"\",INDIRECT(\"'SorP'!$A$\"&MATCH($J606,SorP!$B$1:$B$6230,0))))","v":""},null,{"$f":"IF(C606=\"\",NA(),MATCH($B606&$C606,'Smelter Look-up'!$J:$J,0))","v":{"$error":"#N/A"}},null,0,null,null,null,""]
[null,{"$f":"IF(LEN(A607)=0,\"\",INDEX('Smelter Look-up'!$A:$A,MATCH($A607,'Smelter Look-up'!$E:$E,0)))","v":""},{"$f":"IF(LEN(A607)=0,\"\",INDEX('Smelter Look-up'!$C:$C,MATCH($A607,'Smelter Look-up'!$E:$E,0)))","v":""},null,{"$f":"IF(ISERROR($V607),\"\",OFFSET('Smelter Look-up'!$D$4,$V607-4,0)&\"\")","v":""},{"$f":"IF(ISERROR($V607),\"\",OFFSET('Smelter Look-up'!$E$4,$V607-4,0))","v":""},{"$f":"IF(C607=$X$4,\"Enter smelter details\", IF(ISERROR($V607),\"\",OFFSET('Smelter Look-up'!$F$4,$V607-4,0)))","v":""},{"$f":"IF(ISERROR($V607),\"\",OFFSET('Smelter Look-up'!$G$4,$V607-4,0))","v":""},{"$f":"IF(ISERROR($V607),\"\",OFFSET('Smelter Look-up'!$H$4,$V607-4,0))","v":""},{"$f":"IF(ISERROR($V607),\"\",OFFSET('Smelter Look-up'!$I$4,$V607-4,0))","v":""},{"$nulls":7},{"$f":"IF(ISERROR($V607),\"\",OFFSET('Smelter Look-up'!$C$4,$V607-4,0)&\"\")","v":""},"",{"$f":"IF(B607=\"\",\"\",IF(ISERROR(MATCH($J607,SorP!$B$1:$B$6230,0)),\"\",INDIRECT(\"'SorP'!$A$\"&MATCH($J607,SorP!$B$1:$B$6230,0))))","v":""},null,{"$f":"IF(C607=\"\",NA(),MATCH($B607&$C607,'Smelter Look-up'!$J:$J,0))","v":{"$error":"#N/A"}},null,0,null,null,null,""]
[null,{"$f":"IF(LEN(A608)=0,\"\",INDEX('Smelter Look-up'!$A:$A,MATCH($A608,'Smelter Look-up'!$E:$E,0)))","v":""},{"$f":"IF(LEN(A608)=0,\"\",INDEX('Smelter Look-up'!$C:$C,MATCH($A608,'Smelter Look-up'!$E:$E,0)))","v":""},null,{"$f":"IF(ISERROR($V608),\"\",OFFSET('Smelter Look-up'!$D$4,$V608-4,0)&\"\")","v":""},{"$f":"IF(ISERROR($V608),\"\",OFFSET('Smelter Look-up'!$E$4,$V608-4,0))","v":""},{"$f":"IF(C608=$X$4,\"Enter smelter details\", IF(ISERROR($V608),\"\",OFFSET('Smelter Look-up'!$F$4,$V608-4,0)))","v":""},{"$f":"IF(ISERROR($V608),\"\",OFFSET('Smelter Look-up'!$G$4,$V608-4,0))","v":""},{"$f":"IF(ISERROR($V608),\"\",OFFSET('Smelter Look-up'!$H$4,$V608-4,0))","v":""},{"$f":"IF(ISERROR($V608),\"\",OFFSET('Smelter Look-up'!$I$4,$V608-4,0))","v":""},{"$nulls":7},{"$f":"IF(ISERROR($V608),\"\",OFFSET('Smelter Look-up'!$C$4,$V608-4,0)&\"\")","v":""},"",{"$f":"IF(B608=\"\",\"\",IF(ISERROR(MATCH($J608,SorP!$B$1:$B$6230,0)),\"\",INDIRECT(\"'SorP'!$A$\"&MATCH($J608,SorP!$B$1:$B$6230,0))))","v":""},null,{"$f":"IF(C608=\"\",NA(),MATCH($B608&$C608,'Smelter Look-up'!$J:$J,0))","v":{"$error":"#N/A"}},null,0,null,null,null,""]
[null,{"$f":"IF(LEN(A609)=0,\"\",INDEX('Smelter Look-up'!$A:$A,MATCH($A609,'Smelter Look-up'!$E:$E,0)))","v":""},{"$f":"IF(LEN(A609)=0,\"\",INDEX('Smelter Look-up'!$C:$C,MATCH($A609,'Smelter Look-up'!$E:$E,0)))","v":""},null,{"$f":"IF(ISERROR($V609),\"\",OFFSET('Smelter Look-up'!$D$4,$V609-4,0)&\"\")","v":""},{"$f":"IF(ISERROR($V609),\"\",OFFSET('Smelter Look-up'!$E$4,$V609-4,0))","v":""},{"$f":"IF(C609=$X$4,\"Enter smelter details\", IF(ISERROR($V609),\"\",OFFSET('Smelter Look-up'!$F$4,$V609-4,0)))","v":""},{"$f":"IF(ISERROR($V609),\"\",OFFSET('Smelter Look-up'!$G$4,$V609-4,0))","v":""},{"$f":"IF(ISERROR($V609),\"\",OFFSET('Smelter Look-up'!$H$4,$V609-4,0))","v":""},{"$f":"IF(ISERROR($V609),\"\",OFFSET('Smelter Look-up'!$I$4,$V609-4,0))","v":""},{"$nulls":7},{"$f":"IF(ISERROR($V609),\"\",OFFSET('Smelter Look-up'!$C$4,$V609-4,0)&\"\")","v":""},"",{"$f":"IF(B609=\"\",\"\",IF(ISERROR(MATCH($J609,SorP!$B$1:$B$6230,0)),\"\",INDIRECT(\"'SorP'!$A$\"&MATCH($J609,SorP!$B$1:$B$6230,0))))","v":""},null,{"$f":"IF(C609=\"\",NA(),MATCH($B609&$C609,'Smelter Look-up'!$J:$J,0))","v":{"$error":"#N/A"}},null,0,null,null,null,""]
[null,{"$f":"IF(LEN(A610)=0,\"\",INDEX('Smelter Look-up'!$A:$A,MATCH($A610,'Smelter Look-up'!$E:$E,0)))","v":""},{"$f":"IF(LEN(A610)=0,\"\",INDEX('Smelter Look-up'!$C:$C,MATCH($A610,'Smelter Look-up'!$E:$E,0)))","v":""},null,{"$f":"IF(ISERROR($V610),\"\",OFFSET('Smelter Look-up'!$D$4,$V610-4,0)&\"\")","v":""},{"$f":"IF(ISERROR($V610),\"\",OFFSET('Smelter Look-up'!$E$4,$V610-4,0))","v":""},{"$f":"IF(C610=$X$4,\"Enter smelter details\", IF(ISERROR($V610),\"\",OFFSET('Smelter Look-up'!$F$4,$V610-4,0)))","v":""},{"$f":"IF(ISERROR($V610),\"\",OFFSET('Smelter Look-up'!$G$4,$V610-4,0))","v":""},{"$f":"IF(ISERROR($V610),\"\",OFFSET('Smelter Look-up'!$H$4,$V610-4,0))","v":""},{"$f":"IF(ISERROR($V610),\"\",OFFSET('Smelter Look-up'!$I$4,$V610-4,0))","v":""},{"$nulls":7},{"$f":"IF(ISERROR($V610),\"\",OFFSET('Smelter Look-up'!$C$4,$V610-4,0)&\"\")","v":""},"",{"$f":"IF(B610=\"\",\"\",IF(ISERROR(MATCH($J610,SorP!$B$1:$B$6230,0)),\"\",INDIRECT(\"'SorP'!$A$\"&MATCH($J610,SorP!$B$1:$B$6230,0))))","v":""},null,{"$f":"IF(C610=\"\",NA(),MATCH($B610&$C610,'Smelter Look-up'!$J:$J,0))","v":{"$error":"#N/A"}},null,0,null,null,null,""]
[null,{"$f":"IF(LEN(A611)=0,\"\",INDEX('Smelter Look-up'!$A:$A,MATCH($A611,'Smelter Look-up'!$E:$E,0)))","v":""},{"$f":"IF(LEN(A611)=0,\"\",INDEX('Smelter Look-up'!$C:$C,MATCH($A611,'Smelter Look-up'!$E:$E,0)))","v":""},null,{"$f":"IF(ISERROR($V611),\"\",OFFSET('Smelter Look-up'!$D$4,$V611-4,0)&\"\")","v":""},{"$f":"IF(ISERROR($V611),\"\",OFFSET('Smelter Look-up'!$E$4,$V611-4,0))","v":""},{"$f":"IF(C611=$X$4,\"Enter smelter details\", IF(ISERROR($V611),\"\",OFFSET('Smelter Look-up'!$F$4,$V611-4,0)))","v":""},{"$f":"IF(ISERROR($V611),\"\",OFFSET('Smelter Look-up'!$G$4,$V611-4,0))","v":""},{"$f":"IF(ISERROR($V611),\"\",OFFSET('Smelter Look-up'!$H$4,$V611-4,0))","v":""},{"$f":"IF(ISERROR($V611),\"\",OFFSET('Smelter Look-up'!$I$4,$V611-4,0))","v":""},{"$nulls":7},{"$f":"IF(ISERROR($V611),\"\",OFFSET('Smelter Look-up'!$C$4,$V611-4,0)&\"\")","v":""},"",{"$f":"IF(B611=\"\",\"\",IF(ISERROR(MATCH($J611,SorP!$B$1:$B$6230,0)),\"\",INDIRECT(\"'SorP'!$A$\"&MATCH($J611,SorP!$B$1:$B$6230,0))))","v":""},null,{"$f":"IF(C611=\"\",NA(),MATCH($B611&$C611,'Smelter Look-up'!$J:$J,0))","v":{"$error":"#N/A"}},null,0,null,null,null,""]
[null,{"$f":"IF(LEN(A612)=0,\"\",INDEX('Smelter Look-up'!$A:$A,MATCH($A612,'Smelter Look-up'!$E:$E,0)))","v":""},{"$f":"IF(LEN(A612)=0,\"\",INDEX('Smelter Look-up'!$C:$C,MATCH($A612,'Smelter Look-up'!$E:$E,0)))","v":""},null,{"$f":"IF(ISERROR($V612),\"\",OFFSET('Smelter Look-up'!$D$4,$V612-4,0)&\"\")","v":""},{"$f":"IF(ISERROR($V612),\"\",OFFSET('Smelter Look-up'!$E$4,$V612-4,0))","v":""},{"$f":"IF(C612=$X$4,\"Enter smelter details\", IF(ISERROR($V612),\"\",OFFSET('Smelter Look-up'!$F$4,$V612-4,0)))","v":""},{"$f":"IF(ISERROR($V612),\"\",OFFSET('Smelter Look-up'!$G$4,$V612-4,0))","v":""},{"$f":"IF(ISERROR($V612),\"\",OFFSET('Smelter Look-up'!$H$4,$V612-4,0))","v":""},{"$f":"IF(ISERROR($V612),\"\",OFFSET('Smelter Look-up'!$I$4,$V612-4,0))","v":""},{"$nulls":7},{"$f":"IF(ISERROR($V612),\"\",OFFSET('Smelter Look-up'!$C$4,$V612-4,0)&\"\")","v":""},"",{"$f":"IF(B612=\"\",\"\",IF(ISERROR(MATCH($J612,SorP!$B$1:$B$6230,0)),\"\",INDIRECT(\"'SorP'!$A$\"&MATCH($J612,SorP!$B$1:$B$6230,0))))","v":""},null,{"$f":"IF(C612=\"\",NA(),MATCH($B612&$C612,'Smelter Look-up'!$J:$J,0))","v":{"$error":"#N/A"}},null,0,null,null,null,""]
[null,{"$f":"IF(LEN(A613)=0,\"\",INDEX('Smelter Look-up'!$A:$A,MATCH($A613,'Smelter Look-up'!$E:$E,0)))","v":""},{"$f":"IF(LEN(A613)=0,\"\",INDEX('Smelter Look-up'!$C:$C,MATCH($A613,'Smelter Look-up'!$E:$E,0)))","v":""},null,{"$f":"IF(ISERROR($V613),\"\",OFFSET('Smelter Look-up'!$D$4,$V613-4,0)&\"\")","v":""},{"$f":"IF(ISERROR($V613),\"\",OFFSET('Smelter Look-up'!$E$4,$V613-4,0))","v":""},{"$f":"IF(C613=$X$4,\"Enter smelter details\", IF(ISERROR($V613),\"\",OFFSET('Smelter Look-up'!$F$4,$V613-4,0)))","v":""},{"$f":"IF(ISERROR($V613),\"\",OFFSET('Smelter Look-up'!$G$4,$V613-4,0))","v":""},{"$f":"IF(ISERROR($V613),\"\",OFFSET('Smelter Look-up'!$H$4,$V613-4,0))","v":""},{"$f":"IF(ISERROR($V613),\"\",OFFSET('Smelter Look-up'!$I$4,$V613-4,0))","v":""},{"$nulls":7},{"$f":"IF(ISERROR($V613),\"\",OFFSET('Smelter Look-up'!$C$4,$V613-4,0)&\"\")","v":""},"",{"$f":"IF(B613=\"\",\"\",IF(ISERROR(MATCH($J613,SorP!$B$1:$B$6230,0)),\"\",INDIRECT(\"'SorP'!$A$\"&MATCH($J613,SorP!$B$1:$B$6230,0))))","v":""},null,{"$f":"IF(C613=\"\",NA(),MATCH($B613&$C613,'Smelter Look-up'!$J:$J,0))","v":{"$error":"#N/A"}},null,0,null,null,null,""]
[null,{"$f":"IF(LEN(A614)=0,\"\",INDEX('Smelter Look-up'!$A:$A,MATCH($A614,'Smelter Look-up'!$E:$E,0)))","v":""},{"$f":"IF(LEN(A614)=0,\"\",INDEX('Smelter Look-up'!$C:$C,MATCH($A614,'Smelter Look-up'!$E:$E,0)))","v":""},null,{"$f":"IF(ISERROR($V614),\"\",OFFSET('Smelter Look-up'!$D$4,$V614-4,0)&\"\")","v":""},{"$f":"IF(ISERROR($V614),\"\",OFFSET('Smelter Look-up'!$E$4,$V614-4,0))","v":""},{"$f":"IF(C614=$X$4,\"Enter smelter details\", IF(ISERROR($V614),\"\",OFFSET('Smelter Look-up'!$F$4,$V614-4,0)))","v":""},{"$f":"IF(ISERROR($V614),\"\",OFFSET('Smelter Look-up'!$G$4,$V614-4,0))","v":""},{"$f":"IF(ISERROR($V614),\"\",OFFSET('Smelter Look-up'!$H$4,$V614-4,0))","v":""},{"$f":"IF(ISERROR($V614),\"\",OFFSET('Smelter Look-up'!$I$4,$V614-4,0))","v":""},{"$nulls":7},{"$f":"IF(ISERROR($V614),\"\",OFFSET('Smelter Look-up'!$C$4,$V614-4,0)&\"\")","v":""},"",{"$f":"IF(B614=\"\",\"\",IF(ISERROR(MATCH($J614,SorP!$B$1:$B$6230,0)),\"\",INDIRECT(\"'SorP'!$A$\"&MATCH($J614,SorP!$B$1:$B$6230,0))))","v":""},null,{"$f":"IF(C614=\"\",NA(),MATCH($B614&$C614,'Smelter Look-up'!$J:$J,0))","v":{"$error":"#N/A"}},null,0,null,null,null,""]
[null,{"$f":"IF(LEN(A615)=0,\"\",INDEX('Smelter Look-up'!$A:$A,MATCH($A615,'Smelter Look-up'!$E:$E,0)))","v":""},{"$f":"IF(LEN(A615)=0,\"\",INDEX('Smelter Look-up'!$C:$C,MATCH($A615,'Smelter Look-up'!$E:$E,0)))","v":""},null,{"$f":"IF(ISERROR($V615),\"\",OFFSET('Smelter Look-up'!$D$4,$V615-4,0)&\"\")","v":""},{"$f":"IF(ISERROR($V615),\"\",OFFSET('Smelter Look-up'!$E$4,$V615-4,0))","v":""},{"$f":"IF(C615=$X$4,\"Enter smelter details\", IF(ISERROR($V615),\"\",OFFSET('Smelter Look-up'!$F$4,$V615-4,0)))","v":""},{"$f":"IF(ISERROR($V615),\"\",OFFSET('Smelter Look-up'!$G$4,$V615-4,0))","v":""},{"$f":"IF(ISERROR($V615),\"\",OFFSET('Smelter Look-up'!$H$4,$V615-4,0))","v":""},{"$f":"IF(ISERROR($V615),\"\",OFFSET('Smelter Look-up'!$I$4,$V615-4,0))","v":""},{"$nulls":7},{"$f":"IF(ISERROR($V615),\"\",OFFSET('Smelter Look-up'!$C$4,$V615-4,0)&\"\")","v":""},"",{"$f":"IF(B615=\"\",\"\",IF(ISERROR(MATCH($J615,SorP!$B$1:$B$6230,0)),\"\",INDIRECT(\"'SorP'!$A$\"&MATCH($J615,SorP!$B$1:$B$6230,0))))","v":""},null,{"$f":"IF(C615=\"\",NA(),MATCH($B615&$C615,'Smelter Look-up'!$J:$J,0))","v":{"$error":"#N/A"}},null,0,null,null,null,""]
[null,{"$f":"IF(LEN(A616)=0,\"\",INDEX('Smelter Look-up'!$A:$A,MATCH($A616,'Smelter Look-up'!$E:$E,0)))","v":""},{"$f":"IF(LEN(A616)=0,\"\",INDEX('Smelter Look-up'!$C:$C,MATCH($A616,'Smelter Look-up'!$E:$E,0)))","v":""},null,{"$f":"IF(ISERROR($V616),\"\",OFFSET('Smelter Look-up'!$D$4,$V616-4,0)&\"\")","v":""},{"$f":"IF(ISERROR($V616),\"\",OFFSET('Smelter Look-up'!$E$4,$V616-4,0))","v":""},{"$f":"IF(C616=$X$4,\"Enter smelter details\", IF(ISERROR($V616),\"\",OFFSET('Smelter Look-up'!$F$4,$V616-4,0)))","v":""},{"$f":"IF(ISERROR($V616),\"\",OFFSET('Smelter Look-up'!$G$4,$V616-4,0))","v":""},{"$f":"IF(ISERROR($V616),\"\",OFFSET('Smelter Look-up'!$H$4,$V616-4,0))","v":""},{"$f":"IF(ISERROR($V616),\"\",OFFSET('Smelter Look-up'!$I$4,$V616-4,0))","v":""},{"$nulls":7},{"$f":"IF(ISERROR($V616),\"\",OFFSET('Smelter Look-up'!$C$4,$V616-4,0)&\"\")","v":""},"",{"$f":"IF(B616=\"\",\"\",IF(ISERROR(MATCH($J616,SorP!$B$1:$B$6230,0)),\"\",INDIRECT(\"'SorP'!$A$\"&MATCH($J616,SorP!$B$1:$B$6230,0))))","v":""},null,{"$f":"IF(C616=\"\",NA(),MATCH($B616&$C616,'Smelter Look-up'!$J:$J,0))","v":{"$error":"#N/A"}},null,0,null,null,null,""]
[null,{"$f":"IF(LEN(A617)=0,\"\",INDEX('Smelter Look-up'!$A:$A,MATCH($A617,'Smelter Look-up'!$E:$E,0)))","v":""},{"$f":"IF(LEN(A617)=0,\"\",INDEX('Smelter Look-up'!$C:$C,MATCH($A617,'Smelter Look-up'!$E:$E,0)))","v":""},null,{"$f":"IF(ISERROR($V617),\"\",OFFSET('Smelter Look-up'!$D$4,$V617-4,0)&\"\")","v":""},{"$f":"IF(ISERROR($V617),\"\",OFFSET('Smelter Look-up'!$E$4,$V617-4,0))","v":""},{"$f":"IF(C617=$X$4,\"Enter smelter details\", IF(ISERROR($V617),\"\",OFFSET('Smelter Look-up'!$F$4,$V617-4,0)))","v":""},{"$f":"IF(ISERROR($V617),\"\",OFFSET('Smelter Look-up'!$G$4,$V617-4,0))","v":""},{"$f":"IF(ISERROR($V617),\"\",OFFSET('Smelter Look-up'!$H$4,$V617-4,0))","v":""},{"$f":"IF(ISERROR($V617),\"\",OFFSET('Smelter Look-up'!$I$4,$V617-4,0))","v":""},{"$nulls":7},{"$f":"IF(ISERROR($V617),\"\",OFFSET('Smelter Look-up'!$C$4,$V617-4,0)&\"\")","v":""},"",{"$f":"IF(B617=\"\",\"\",IF(ISERROR(MATCH($J617,SorP!$B$1:$B$6230,0)),\"\",INDIRECT(\"'SorP'!$A$\"&MATCH($J617,SorP!$B$1:$B$6230,0))))","v":""},null,{"$f":"IF(C617=\"\",NA(),MATCH($B617&$C617,'Smelter Look-up'!$J:$J,0))","v":{"$error":"#N/A"}},null,0,null,null,null,""]
[null,{"$f":"IF(LEN(A618)=0,\"\",INDEX('Smelter Look-up'!$A:$A,MATCH($A618,'Smelter Look-up'!$E:$E,0)))","v":""},{"$f":"IF(LEN(A618)=0,\"\",INDEX('Smelter Look-up'!$C:$C,MATCH($A618,'Smelter Look-up'!$E:$E,0)))","v":""},null,{"$f":"IF(ISERROR($V618),\"\",OFFSET('Smelter Look-up'!$D$4,$V618-4,0)&\"\")","v":""},{"$f":"IF(ISERROR($V618),\"\",OFFSET('Smelter Look-up'!$E$4,$V618-4,0))","v":""},{"$f":"IF(C618=$X$4,\"Enter smelter details\", IF(ISERROR($V618),\"\",OFFSET('Smelter Look-up'!$F$4,$V618-4,0)))","v":""},{"$f":"IF(ISERROR($V618),\"\",OFFSET('Smelter Look-up'!$G$4,$V618-4,0))","v":""},{"$f":"IF(ISERROR($V618),\"\",OFFSET('Smelter Look-up'!$H$4,$V618-4,0))","v":""},{"$f":"IF(ISERROR($V618),\"\",OFFSET('Smelter Look-up'!$I$4,$V618-4,0))","v":""},{"$nulls":7},{"$f":"IF(ISERROR($V618),\"\",OFFSET('Smelter Look-up'!$C$4,$V618-4,0)&\"\")","v":""},"",{"$f":"IF(B618=\"\",\"\",IF(ISERROR(MATCH($J618,SorP!$B$1:$B$6230,0)),\"\",INDIRECT(\"'SorP'!$A$\"&MATCH($J618,SorP!$B$1:$B$6230,0))))","v":""},null,{"$f":"IF(C618=\"\",NA(),MATCH($B618&$C618,'Smelter Look-up'!$J:$J,0))","v":{"$error":"#N/A"}},null,0,null,null,null,""]
[null,{"$f":"IF(LEN(A619)=0,\"\",INDEX('Smelter Look-up'!$A:$A,MATCH($A619,'Smelter Look-up'!$E:$E,0)))","v":""},{"$f":"IF(LEN(A619)=0,\"\",INDEX('Smelter Look-up'!$C:$C,MATCH($A619,'Smelter Look-up'!$E:$E,0)))","v":""},null,{"$f":"IF(ISERROR($V619),\"\",OFFSET('Smelter Look-up'!$D$4,$V619-4,0)&\"\")","v":""},{"$f":"IF(ISERROR($V619),\"\",OFFSET('Smelter Look-up'!$E$4,$V619-4,0))","v":""},{"$f":"IF(C619=$X$4,\"Enter smelter details\", IF(ISERROR($V619),\"\",OFFSET('Smelter Look-up'!$F$4,$V619-4,0)))","v":""},{"$f":"IF(ISERROR($V619),\"\",OFFSET('Smelter Look-up'!$G$4,$V619-4,0))","v":""},{"$f":"IF(ISERROR($V619),\"\",OFFSET('Smelter Look-up'!$H$4,$V619-4,0))","v":""},{"$f":"IF(ISERROR($V619),\"\",OFFSET('Smelter Look-up'!$I$4,$V619-4,0))","v":""},{"$nulls":7},{"$f":"IF(ISERROR($V619),\"\",OFFSET('Smelter Look-up'!$C$4,$V619-4,0)&\"\")","v":""},"",{"$f":"IF(B619=\"\",\"\",IF(ISERROR(MATCH($J619,SorP!$B$1:$B$6230,0)),\"\",INDIRECT(\"'SorP'!$A$\"&MATCH($J619,SorP!$B$1:$B$6230,0))))","v":""},null,{"$f":"IF(C619=\"\",NA(),MATCH($B619&$C619,'Smelter Look-up'!$J:$J,0))","v":{"$error":"#N/A"}},null,0,null,null,null,""]
[null,{"$f":"IF(LEN(A620)=0,\"\",INDEX('Smelter Look-up'!$A:$A,MATCH($A620,'Smelter Look-up'!$E:$E,0)))","v":""},{"$f":"IF(LEN(A620)=0,\"\",INDEX('Smelter Look-up'!$C:$C,MATCH($A620,'Smelter Look-up'!$E:$E,0)))","v":""},null,{"$f":"IF(ISERROR($V620),\"\",OFFSET('Smelter Look-up'!$D$4,$V620-4,0)&\"\")","v":""},{"$f":"IF(ISERROR($V620),\"\",OFFSET('Smelter Look-up'!$E$4,$V620-4,0))","v":""},{"$f":"IF(C620=$X$4,\"Enter smelter details\", IF(ISERROR($V620),\"\",OFFSET('Smelter Look-up'!$F$4,$V620-4,0)))","v":""},{"$f":"IF(ISERROR($V620),\"\",OFFSET('Smelter Look-up'!$G$4,$V620-4,0))","v":""},{"$f":"IF(ISERROR($V620),\"\",OFFSET('Smelter Look-up'!$H$4,$V620-4,0))","v":""},{"$f":"IF(ISERROR($V620),\"\",OFFSET('Smelter Look-up'!$I$4,$V620-4,0))","v":""},{"$nulls":7},{"$f":"IF(ISERROR($V620),\"\",OFFSET('Smelter Look-up'!$C$4,$V620-4,0)&\"\")","v":""},"",{"$f":"IF(B620=\"\",\"\",IF(ISERROR(MATCH($J620,SorP!$B$1:$B$6230,0)),\"\",INDIRECT(\"'SorP'!$A$\"&MATCH($J620,SorP!$B$1:$B$6230,0))))","v":""},null,{"$f":"IF(C620=\"\",NA(),MATCH($B620&$C620,'Smelter Look-up'!$J:$J,0))","v":{"$error":"#N/A"}},null,0,null,null,null,""]
[null,{"$f":"IF(LEN(A621)=0,\"\",INDEX('Smelter Look-up'!$A:$A,MATCH($A621,'Smelter Look-up'!$E:$E,0)))","v":""},{"$f":"IF(LEN(A621)=0,\"\",INDEX('Smelter Look-up'!$C:$C,MATCH($A621,'Smelter Look-up'!$E:$E,0)))","v":""},null,{"$f":"IF(ISERROR($V621),\"\",OFFSET('Smelter Look-up'!$D$4,$V621-4,0)&\"\")","v":""},{"$f":"IF(ISERROR($V621),\"\",OFFSET('Smelter Look-up'!$E$4,$V621-4,0))","v":""},{"$f":"IF(C621=$X$4,\"Enter smelter details\", IF(ISERROR($V621),\"\",OFFSET('Smelter Look-up'!$F$4,$V621-4,0)))","v":""},{"$f":"IF(ISERROR($V621),\"\",OFFSET('Smelter Look-up'!$G$4,$V621-4,0))","v":""},{"$f":"IF(ISERROR($V621),\"\",OFFSET('Smelter Look-up'!$H$4,$V621-4,0))","v":""},{"$f":"IF(ISERROR($V621),\"\",OFFSET('Smelter Look-up'!$I$4,$V621-4,0))","v":""},{"$nulls":7},{"$f":"IF(ISERROR($V621),\"\",OFFSET('Smelter Look-up'!$C$4,$V621-4,0)&\"\")","v":""},"",{"$f":"IF(B621=\"\",\"\",IF(ISERROR(MATCH($J621,SorP!$B$1:$B$6230,0)),\"\",INDIRECT(\"'SorP'!$A$\"&MATCH($J621,SorP!$B$1:$B$6230,0))))","v":""},null,{"$f":"IF(C621=\"\",NA(),MATCH($B621&$C621,'Smelter Look-up'!$J:$J,0))","v":{"$error":"#N/A"}},null,0,null,null,null,""]
[null,{"$f":"IF(LEN(A622)=0,\"\",INDEX('Smelter Look-up'!$A:$A,MATCH($A622,'Smelter Look-up'!$E:$E,0)))","v":""},{"$f":"IF(LEN(A622)=0,\"\",INDEX('Smelter Look-up'!$C:$C,MATCH($A622,'Smelter Look-up'!$E:$E,0)))","v":""},null,{"$f":"IF(ISERROR($V622),\"\",OFFSET('Smelter Look-up'!$D$4,$V622-4,0)&\"\")","v":""},{"$f":"IF(ISERROR($V622),\"\",OFFSET('Smelter Look-up'!$E$4,$V622-4,0))","v":""},{"$f":"IF(C622=$X$4,\"Enter smelter details\", IF(ISERROR($V622),\"\",OFFSET('Smelter Look-up'!$F$4,$V622-4,0)))","v":""},{"$f":"IF(ISERROR($V622),\"\",OFFSET('Smelter Look-up'!$G$4,$V622-4,0))","v":""},{"$f":"IF(ISERROR($V622),\"\",OFFSET('Smelter Look-up'!$H$4,$V622-4,0))","v":""},{"$f":"IF(ISERROR($V622),\"\",OFFSET('Smelter Look-up'!$I$4,$V622-4,0))","v":""},{"$nulls":7},{"$f":"IF(ISERROR($V622),\"\",OFFSET('Smelter Look-up'!$C$4,$V622-4,0)&\"\")","v":""},"",{"$f":"IF(B622=\"\",\"\",IF(ISERROR(MATCH($J622,SorP!$B$1:$B$6230,0)),\"\",INDIRECT(\"'SorP'!$A$\"&MATCH($J622,SorP!$B$1:$B$6230,0))))","v":""},null,{"$f":"IF(C622=\"\",NA(),MATCH($B622&$C622,'Smelter Look-up'!$J:$J,0))","v":{"$error":"#N/A"}},null,0,null,null,null,""]
[null,{"$f":"IF(LEN(A623)=0,\"\",INDEX('Smelter Look-up'!$A:$A,MATCH($A623,'Smelter Look-up'!$E:$E,0)))","v":""},{"$f":"IF(LEN(A623)=0,\"\",INDEX('Smelter Look-up'!$C:$C,MATCH($A623,'Smelter Look-up'!$E:$E,0)))","v":""},null,{"$f":"IF(ISERROR($V623),\"\",OFFSET('Smelter Look-up'!$D$4,$V623-4,0)&\"\")","v":""},{"$f":"IF(ISERROR($V623),\"\",OFFSET('Smelter Look-up'!$E$4,$V623-4,0))","v":""},{"$f":"IF(C623=$X$4,\"Enter smelter details\", IF(ISERROR($V623),\"\",OFFSET('Smelter Look-up'!$F$4,$V623-4,0)))","v":""},{"$f":"IF(ISERROR($V623),\"\",OFFSET('Smelter Look-up'!$G$4,$V623-4,0))","v":""},{"$f":"IF(ISERROR($V623),\"\",OFFSET('Smelter Look-up'!$H$4,$V623-4,0))","v":""},{"$f":"IF(ISERROR($V623),\"\",OFFSET('Smelter Look-up'!$I$4,$V623-4,0))","v":""},{"$nulls":7},{"$f":"IF(ISERROR($V623),\"\",OFFSET('Smelter Look-up'!$C$4,$V623-4,0)&\"\")","v":""},"",{"$f":"IF(B623=\"\",\"\",IF(ISERROR(MATCH($J623,SorP!$B$1:$B$6230,0)),\"\",INDIRECT(\"'SorP'!$A$\"&MATCH($J623,SorP!$B$1:$B$6230,0))))","v":""},null,{"$f":"IF(C623=\"\",NA(),MATCH($B623&$C623,'Smelter Look-up'!$J:$J,0))","v":{"$error":"#N/A"}},null,0,null,null,null,""]
[null,{"$f":"IF(LEN(A624)=0,\"\",INDEX('Smelter Look-up'!$A:$A,MATCH($A624,'Smelter Look-up'!$E:$E,0)))","v":""},{"$f":"IF(LEN(A624)=0,\"\",INDEX('Smelter Look-up'!$C:$C,MATCH($A624,'Smelter Look-up'!$E:$E,0)))","v":""},null,{"$f":"IF(ISERROR($V624),\"\",OFFSET('Smelter Look-up'!$D$4,$V624-4,0)&\"\")","v":""},{"$f":"IF(ISERROR($V624),\"\",OFFSET('Smelter Look-up'!$E$4,$V624-4,0))","v":""},{"$f":"IF(C624=$X$4,\"Enter smelter details\", IF(ISERROR($V624),\"\",OFFSET('Smelter Look-up'!$F$4,$V624-4,0)))","v":""},{"$f":"IF(ISERROR($V624),\"\",OFFSET('Smelter Look-up'!$G$4,$V624-4,0))","v":""},{"$f":"IF(ISERROR($V624),\"\",OFFSET('Smelter Look-up'!$H$4,$V624-4,0))","v":""},{"$f":"IF(ISERROR($V624),\"\",OFFSET('Smelter Look-up'!$I$4,$V624-4,0))","v":""},{"$nulls":7},{"$f":"IF(ISERROR($V624),\"\",OFFSET('Smelter Look-up'!$C$4,$V624-4,0)&\"\")","v":""},"",{"$f":"IF(B624=\"\",\"\",IF(ISERROR(MATCH($J624,SorP!$B$1:$B$6230,0)),\"\",INDIRECT(\"'SorP'!$A$\"&MATCH($J624,SorP!$B$1:$B$6230,0))))","v":""},null,{"$f":"IF(C624=\"\",NA(),MATCH($B624&$C624,'Smelter Look-up'!$J:$J,0))","v":{"$error":"#N/A"}},null,0,null,null,null,""]
[null,{"$f":"IF(LEN(A625)=0,\"\",INDEX('Smelter Look-up'!$A:$A,MATCH($A625,'Smelter Look-up'!$E:$E,0)))","v":""},{"$f":"IF(LEN(A625)=0,\"\",INDEX('Smelter Look-up'!$C:$C,MATCH($A625,'Smelter Look-up'!$E:$E,0)))","v":""},null,{"$f":"IF(ISERROR($V625),\"\",OFFSET('Smelter Look-up'!$D$4,$V625-4,0)&\"\")","v":""},{"$f":"IF(ISERROR($V625),\"\",OFFSET('Smelter Look-up'!$E$4,$V625-4,0))","v":""},{"$f":"IF(C625=$X$4,\"Enter smelter details\", IF(ISERROR($V625),\"\",OFFSET('Smelter Look-up'!$F$4,$V625-4,0)))","v":""},{"$f":"IF(ISERROR($V625),\"\",OFFSET('Smelter Look-up'!$G$4,$V625-4,0))","v":""},{"$f":"IF(ISERROR($V625),\"\",OFFSET('Smelter Look-up'!$H$4,$V625-4,0))","v":""},{"$f":"IF(ISERROR($V625),\"\",OFFSET('Smelter Look-up'!$I$4,$V625-4,0))","v":""},{"$nulls":7},{"$f":"IF(ISERROR($V625),\"\",OFFSET('Smelter Look-up'!$C$4,$V625-4,0)&\"\")","v":""},"",{"$f":"IF(B625=\"\",\"\",IF(ISERROR(MATCH($J625,SorP!$B$1:$B$6230,0)),\"\",INDIRECT(\"'SorP'!$A$\"&MATCH($J625,SorP!$B$1:$B$6230,0))))","v":""},null,{"$f":"IF(C625=\"\",NA(),MATCH($B625&$C625,'Smelter Look-up'!$J:$J,0))","v":{"$error":"#N/A"}},null,0,null,null,null,""]
[null,{"$f":"IF(LEN(A626)=0,\"\",INDEX('Smelter Look-up'!$A:$A,MATCH($A626,'Smelter Look-up'!$E:$E,0)))","v":""},{"$f":"IF(LEN(A626)=0,\"\",INDEX('Smelter Look-up'!$C:$C,MATCH($A626,'Smelter Look-up'!$E:$E,0)))","v":""},null,{"$f":"IF(ISERROR($V626),\"\",OFFSET('Smelter Look-up'!$D$4,$V626-4,0)&\"\")","v":""},{"$f":"IF(ISERROR($V626),\"\",OFFSET('Smelter Look-up'!$E$4,$V626-4,0))","v":""},{"$f":"IF(C626=$X$4,\"Enter smelter details\", IF(ISERROR($V626),\"\",OFFSET('Smelter Look-up'!$F$4,$V626-4,0)))","v":""},{"$f":"IF(ISERROR($V626),\"\",OFFSET('Smelter Look-up'!$G$4,$V626-4,0))","v":""},{"$f":"IF(ISERROR($V626),\"\",OFFSET('Smelter Look-up'!$H$4,$V626-4,0))","v":""},{"$f":"IF(ISERROR($V626),\"\",OFFSET('Smelter Look-up'!$I$4,$V626-4,0))","v":""},{"$nulls":7},{"$f":"IF(ISERROR($V626),\"\",OFFSET('Smelter Look-up'!$C$4,$V626-4,0)&\"\")","v":""},"",{"$f":"IF(B626=\"\",\"\",IF(ISERROR(MATCH($J626,SorP!$B$1:$B$6230,0)),\"\",INDIRECT(\"'SorP'!$A$\"&MATCH($J626,SorP!$B$1:$B$6230,0))))","v":""},null,{"$f":"IF(C626=\"\",NA(),MATCH($B626&$C626,'Smelter Look-up'!$J:$J,0))","v":{"$error":"#N/A"}},null,0,null,null,null,""]
[null,{"$f":"IF(LEN(A627)=0,\"\",INDEX('Smelter Look-up'!$A:$A,MATCH($A627,'Smelter Look-up'!$E:$E,0)))","v":""},{"$f":"IF(LEN(A627)=0,\"\",INDEX('Smelter Look-up'!$C:$C,MATCH($A627,'Smelter Look-up'!$E:$E,0)))","v":""},null,{"$f":"IF(ISERROR($V627),\"\",OFFSET('Smelter Look-up'!$D$4,$V627-4,0)&\"\")","v":""},{"$f":"IF(ISERROR($V627),\"\",OFFSET('Smelter Look-up'!$E$4,$V627-4,0))","v":""},{"$f":"IF(C627=$X$4,\"Enter smelter details\", IF(ISERROR($V627),\"\",OFFSET('Smelter Look-up'!$F$4,$V627-4,0)))","v":""},{"$f":"IF(ISERROR($V627),\"\",OFFSET('Smelter Look-up'!$G$4,$V627-4,0))","v":""},{"$f":"IF(ISERROR($V627),\"\",OFFSET('Smelter Look-up'!$H$4,$V627-4,0))","v":""},{"$f":"IF(ISERROR($V627),\"\",OFFSET('Smelter Look-up'!$I$4,$V627-4,0))","v":""},{"$nulls":7},{"$f":"IF(ISERROR($V627),\"\",OFFSET('Smelter Look-up'!$C$4,$V627-4,0)&\"\")","v":""},"",{"$f":"IF(B627=\"\",\"\",IF(ISERROR(MATCH($J627,SorP!$B$1:$B$6230,0)),\"\",INDIRECT(\"'SorP'!$A$\"&MATCH($J627,SorP!$B$1:$B$6230,0))))","v":""},null,{"$f":"IF(C627=\"\",NA(),MATCH($B627&$C627,'Smelter Look-up'!$J:$J,0))","v":{"$error":"#N/A"}},null,0,null,null,null,""]
[null,{"$f":"IF(LEN(A628)=0,\"\",INDEX('Smelter Look-up'!$A:$A,MATCH($A628,'Smelter Look-up'!$E:$E,0)))","v":""},{"$f":"IF(LEN(A628)=0,\"\",INDEX('Smelter Look-up'!$C:$C,MATCH($A628,'Smelter Look-up'!$E:$E,0)))","v":""},null,{"$f":"IF(ISERROR($V628),\"\",OFFSET('Smelter Look-up'!$D$4,$V628-4,0)&\"\")","v":""},{"$f":"IF(ISERROR($V628),\"\",OFFSET('Smelter Look-up'!$E$4,$V628-4,0))","v":""},{"$f":"IF(C628=$X$4,\"Enter smelter details\", IF(ISERROR($V628),\"\",OFFSET('Smelter Look-up'!$F$4,$V628-4,0)))","v":""},{"$f":"IF(ISERROR($V628),\"\",OFFSET('Smelter Look-up'!$G$4,$V628-4,0))","v":""},{"$f":"IF(ISERROR($V628),\"\",OFFSET('Smelter Look-up'!$H$4,$V628-4,0))","v":""},{"$f":"IF(ISERROR($V628),\"\",OFFSET('Smelter Look-up'!$I$4,$V628-4,0))","v":""},{"$nulls":7},{"$f":"IF(ISERROR($V628),\"\",OFFSET('Smelter Look-up'!$C$4,$V628-4,0)&\"\")","v":""},"",{"$f":"IF(B628=\"\",\"\",IF(ISERROR(MATCH($J628,SorP!$B$1:$B$6230,0)),\"\",INDIRECT(\"'SorP'!$A$\"&MATCH($J628,SorP!$B$1:$B$6230,0))))","v":""},null,{"$f":"IF(C628=\"\",NA(),MATCH($B628&$C628,'Smelter Look-up'!$J:$J,0))","v":{"$error":"#N/A"}},null,0,null,null,null,""]
[null,{"$f":"IF(LEN(A629)=0,\"\",INDEX('Smelter Look-up'!$A:$A,MATCH($A629,'Smelter Look-up'!$E:$E,0)))","v":""},{"$f":"IF(LEN(A629)=0,\"\",INDEX('Smelter Look-up'!$C:$C,MATCH($A629,'Smelter Look-up'!$E:$E,0)))","v":""},null,{"$f":"IF(ISERROR($V629),\"\",OFFSET('Smelter Look-up'!$D$4,$V629-4,0)&\"\")","v":""},{"$f":"IF(ISERROR($V629),\"\",OFFSET('Smelter Look-up'!$E$4,$V629-4,0))","v":""},{"$f":"IF(C629=$X$4,\"Enter smelter details\", IF(ISERROR($V629),\"\",OFFSET('Smelter Look-up'!$F$4,$V629-4,0)))","v":""},{"$f":"IF(ISERROR($V629),\"\",OFFSET('Smelter Look-up'!$G$4,$V629-4,0))","v":""},{"$f":"IF(ISERROR($V629),\"\",OFFSET('Smelter Look-up'!$H$4,$V629-4,0))","v":""},{"$f":"IF(ISERROR($V629),\"\",OFFSET('Smelter Look-up'!$I$4,$V629-4,0))","v":""},{"$nulls":7},{"$f":"IF(ISERROR($V629),\"\",OFFSET('Smelter Look-up'!$C$4,$V629-4,0)&\"\")","v":""},"",{"$f":"IF(B629=\"\",\"\",IF(ISERROR(MATCH($J629,SorP!$B$1:$B$6230,0)),\"\",INDIRECT(\"'SorP'!$A$\"&MATCH($J629,SorP!$B$1:$B$6230,0))))","v":""},null,{"$f":"IF(C629=\"\",NA(),MATCH($B629&$C629,'Smelter Look-up'!$J:$J,0))","v":{"$error":"#N/A"}},null,0,null,null,null,""]
[null,{"$f":"IF(LEN(A630)=0,\"\",INDEX('Smelter Look-up'!$A:$A,MATCH($A630,'Smelter Look-up'!$E:$E,0)))","v":""},{"$f":"IF(LEN(A630)=0,\"\",INDEX('Smelter Look-up'!$C:$C,MATCH($A630,'Smelter Look-up'!$E:$E,0)))","v":""},null,{"$f":"IF(ISERROR($V630),\"\",OFFSET('Smelter Look-up'!$D$4,$V630-4,0)&\"\")","v":""},{"$f":"IF(ISERROR($V630),\"\",OFFSET('Smelter Look-up'!$E$4,$V630-4,0))","v":""},{"$f":"IF(C630=$X$4,\"Enter smelter details\", IF(ISERROR($V630),\"\",OFFSET('Smelter Look-up'!$F$4,$V630-4,0)))","v":""},{"$f":"IF(ISERROR($V630),\"\",OFFSET('Smelter Look-up'!$G$4,$V630-4,0))","v":""},{"$f":"IF(ISERROR($V630),\"\",OFFSET('Smelter Look-up'!$H$4,$V630-4,0))","v":""},{"$f":"IF(ISERROR($V630),\"\",OFFSET('Smelter Look-up'!$I$4,$V630-4,0))","v":""},{"$nulls":7},{"$f":"IF(ISERROR($V630),\"\",OFFSET('Smelter Look-up'!$C$4,$V630-4,0)&\"\")","v":""},"",{"$f":"IF(B630=\"\",\"\",IF(ISERROR(MATCH($J630,SorP!$B$1:$B$6230,0)),\"\",INDIRECT(\"'SorP'!$A$\"&MATCH($J630,SorP!$B$1:$B$6230,0))))","v":""},null,{"$f":"IF(C630=\"\",NA(),MATCH($B630&$C630,'Smelter Look-up'!$J:$J,0))","v":{"$error":"#N/A"}},null,0,null,null,null,""]
[null,{"$f":"IF(LEN(A631)=0,\"\",INDEX('Smelter Look-up'!$A:$A,MATCH($A631,'Smelter Look-up'!$E:$E,0)))","v":""},{"$f":"IF(LEN(A631)=0,\"\",INDEX('Smelter Look-up'!$C:$C,MATCH($A631,'Smelter Look-up'!$E:$E,0)))","v":""},null,{"$f":"IF(ISERROR($V631),\"\",OFFSET('Smelter Look-up'!$D$4,$V631-4,0)&\"\")","v":""},{"$f":"IF(ISERROR($V631),\"\",OFFSET('Smelter Look-up'!$E$4,$V631-4,0))","v":""},{"$f":"IF(C631=$X$4,\"Enter smelter details\", IF(ISERROR($V631),\"\",OFFSET('Smelter Look-up'!$F$4,$V631-4,0)))","v":""},{"$f":"IF(ISERROR($V631),\"\",OFFSET('Smelter Look-up'!$G$4,$V631-4,0))","v":""},{"$f":"IF(ISERROR($V631),\"\",OFFSET('Smelter Look-up'!$H$4,$V631-4,0))","v":""},{"$f":"IF(ISERROR($V631),\"\",OFFSET('Smelter Look-up'!$I$4,$V631-4,0))","v":""},{"$nulls":7},{"$f":"IF(ISERROR($V631),\"\",OFFSET('Smelter Look-up'!$C$4,$V631-4,0)&\"\")","v":""},"",{"$f":"IF(B631=\"\",\"\",IF(ISERROR(MATCH($J631,SorP!$B$1:$B$6230,0)),\"\",INDIRECT(\"'SorP'!$A$\"&MATCH($J631,SorP!$B$1:$B$6230,0))))","v":""},null,{"$f":"IF(C631=\"\",NA(),MATCH($B631&$C631,'Smelter Look-up'!$J:$J,0))","v":{"$error":"#N/A"}},null,0,null,null,null,""]
[null,{"$f":"IF(LEN(A632)=0,\"\",INDEX('Smelter Look-up'!$A:$A,MATCH($A632,'Smelter Look-up'!$E:$E,0)))","v":""},{"$f":"IF(LEN(A632)=0,\"\",INDEX('Smelter Look-up'!$C:$C,MATCH($A632,'Smelter Look-up'!$E:$E,0)))","v":""},null,{"$f":"IF(ISERROR($V632),\"\",OFFSET('Smelter Look-up'!$D$4,$V632-4,0)&\"\")","v":""},{"$f":"IF(ISERROR($V632),\"\",OFFSET('Smelter Look-up'!$E$4,$V632-4,0))","v":""},{"$f":"IF(C632=$X$4,\"Enter smelter details\", IF(ISERROR($V632),\"\",OFFSET('Smelter Look-up'!$F$4,$V632-4,0)))","v":""},{"$f":"IF(ISERROR($V632),\"\",OFFSET('Smelter Look-up'!$G$4,$V632-4,0))","v":""},{"$f":"IF(ISERROR($V632),\"\",OFFSET('Smelter Look-up'!$H$4,$V632-4,0))","v":""},{"$f":"IF(ISERROR($V632),\"\",OFFSET('Smelter Look-up'!$I$4,$V632-4,0))","v":""},{"$nulls":7},{"$f":"IF(ISERROR($V632),\"\",OFFSET('Smelter Look-up'!$C$4,$V632-4,0)&\"\")","v":""},"",{"$f":"IF(B632=\"\",\"\",IF(ISERROR(MATCH($J632,SorP!$B$1:$B$6230,0)),\"\",INDIRECT(\"'SorP'!$A$\"&MATCH($J632,SorP!$B$1:$B$6230,0))))","v":""},null,{"$f":"IF(C632=\"\",NA(),MATCH($B632&$C632,'Smelter Look-up'!$J:$J,0))","v":{"$error":"#N/A"}},null,0,null,null,null,""]
[null,{"$f":"IF(LEN(A633)=0,\"\",INDEX('Smelter Look-up'!$A:$A,MATCH($A633,'Smelter Look-up'!$E:$E,0)))","v":""},{"$f":"IF(LEN(A633)=0,\"\",INDEX('Smelter Look-up'!$C:$C,MATCH($A633,'Smelter Look-up'!$E:$E,0)))","v":""},null,{"$f":"IF(ISERROR($V633),\"\",OFFSET('Smelter Look-up'!$D$4,$V633-4,0)&\"\")","v":""},{"$f":"IF(ISERROR($V633),\"\",OFFSET('Smelter Look-up'!$E$4,$V633-4,0))","v":""},{"$f":"IF(C633=$X$4,\"Enter smelter details\", IF(ISERROR($V633),\"\",OFFSET('Smelter Look-up'!$F$4,$V633-4,0)))","v":""},{"$f":"IF(ISERROR($V633),\"\",OFFSET('Smelter Look-up'!$G$4,$V633-4,0))","v":""},{"$f":"IF(ISERROR($V633),\"\",OFFSET('Smelter Look-up'!$H$4,$V633-4,0))","v":""},{"$f":"IF(ISERROR($V633),\"\",OFFSET('Smelter Look-up'!$I$4,$V633-4,0))","v":""},{"$nulls":7},{"$f":"IF(ISERROR($V633),\"\",OFFSET('Smelter Look-up'!$C$4,$V633-4,0)&\"\")","v":""},"",{"$f":"IF(B633=\"\",\"\",IF(ISERROR(MATCH($J633,SorP!$B$1:$B$6230,0)),\"\",INDIRECT(\"'SorP'!$A$\"&MATCH($J633,SorP!$B$1:$B$6230,0))))","v":""},null,{"$f":"IF(C633=\"\",NA(),MATCH($B633&$C633,'Smelter Look-up'!$J:$J,0))","v":{"$error":"#N/A"}},null,0,null,null,null,""]
[null,{"$f":"IF(LEN(A634)=0,\"\",INDEX('Smelter Look-up'!$A:$A,MATCH($A634,'Smelter Look-up'!$E:$E,0)))","v":""},{"$f":"IF(LEN(A634)=0,\"\",INDEX('Smelter Look-up'!$C:$C,MATCH($A634,'Smelter Look-up'!$E:$E,0)))","v":""},null,{"$f":"IF(ISERROR($V634),\"\",OFFSET('Smelter Look-up'!$D$4,$V634-4,0)&\"\")","v":""},{"$f":"IF(ISERROR($V634),\"\",OFFSET('Smelter Look-up'!$E$4,$V634-4,0))","v":""},{"$f":"IF(C634=$X$4,\"Enter smelter details\", IF(ISERROR($V634),\"\",OFFSET('Smelter Look-up'!$F$4,$V634-4,0)))","v":""},{"$f":"IF(ISERROR($V634),\"\",OFFSET('Smelter Look-up'!$G$4,$V634-4,0))","v":""},{"$f":"IF(ISERROR($V634),\"\",OFFSET('Smelter Look-up'!$H$4,$V634-4,0))","v":""},{"$f":"IF(ISERROR($V634),\"\",OFFSET('Smelter Look-up'!$I$4,$V634-4,0))","v":""},{"$nulls":7},{"$f":"IF(ISERROR($V634),\"\",OFFSET('Smelter Look-up'!$C$4,$V634-4,0)&\"\")","v":""},"",{"$f":"IF(B634=\"\",\"\",IF(ISERROR(MATCH($J634,SorP!$B$1:$B$6230,0)),\"\",INDIRECT(\"'SorP'!$A$\"&MATCH($J634,SorP!$B$1:$B$6230,0))))","v":""},null,{"$f":"IF(C634=\"\",NA(),MATCH($B634&$C634,'Smelter Look-up'!$J:$J,0))","v":{"$error":"#N/A"}},null,0,null,null,null,""]
[null,{"$f":"IF(LEN(A635)=0,\"\",INDEX('Smelter Look-up'!$A:$A,MATCH($A635,'Smelter Look-up'!$E:$E,0)))","v":""},{"$f":"IF(LEN(A635)=0,\"\",INDEX('Smelter Look-up'!$C:$C,MATCH($A635,'Smelter Look-up'!$E:$E,0)))","v":""},null,{"$f":"IF(ISERROR($V635),\"\",OFFSET('Smelter Look-up'!$D$4,$V635-4,0)&\"\")","v":""},{"$f":"IF(ISERROR($V635),\"\",OFFSET('Smelter Look-up'!$E$4,$V635-4,0))","v":""},{"$f":"IF(C635=$X$4,\"Enter smelter details\", IF(ISERROR($V635),\"\",OFFSET('Smelter Look-up'!$F$4,$V635-4,0)))","v":""},{"$f":"IF(ISERROR($V635),\"\",OFFSET('Smelter Look-up'!$G$4,$V635-4,0))","v":""},{"$f":"IF(ISERROR($V635),\"\",OFFSET('Smelter Look-up'!$H$4,$V635-4,0))","v":""},{"$f":"IF(ISERROR($V635),\"\",OFFSET('Smelter Look-up'!$I$4,$V635-4,0))","v":""},{"$nulls":7},{"$f":"IF(ISERROR($V635),\"\",OFFSET('Smelter Look-up'!$C$4,$V635-4,0)&\"\")","v":""},{"$f":"IF(B635=\"\",\"\",IF(ISERROR(MATCH($E635,CL,0)),\"Unknown\",INDIRECT(\"'C'!$A$\"&MATCH($E635,CL,0)+1)))","v":""},{"$f":"IF(B635=\"\",\"\",IF(ISERROR(MATCH($J635,SorP!$B$1:$B$6230,0)),\"\",INDIRECT(\"'SorP'!$A$\"&MATCH($J635,SorP!$B$1:$B$6230,0))))","v":""},null,{"$f":"IF(C635=\"\",NA(),MATCH($B635&$C635,'Smelter Look-up'!$J:$J,0))","v":{"$error":"#N/A"}},null,{"$f":"IF(AND(C635=\"Smelter not listed\",OR(LEN(D635)=0,LEN(E635)=0)),1,0)","v":0},null,null,null,{"$f":"B635&C635","v":""}]
[null,{"$f":"IF(LEN(A636)=0,\"\",INDEX('Smelter Look-up'!$A:$A,MATCH($A636,'Smelter Look-up'!$E:$E,0)))","v":""},{"$f":"IF(LEN(A636)=0,\"\",INDEX('Smelter Look-up'!$C:$C,MATCH($A636,'Smelter Look-up'!$E:$E,0)))","v":""},null,{"$f":"IF(ISERROR($V636),\"\",OFFSET('Smelter Look-up'!$D$4,$V636-4,0)&\"\")","v":""},{"$f":"IF(ISERROR($V636),\"\",OFFSET('Smelter Look-up'!$E$4,$V636-4,0))","v":""},{"$f":"IF(C636=$X$4,\"Enter smelter details\", IF(ISERROR($V636),\"\",OFFSET('Smelter Look-up'!$F$4,$V636-4,0)))","v":""},{"$f":"IF(ISERROR($V636),\"\",OFFSET('Smelter Look-up'!$G$4,$V636-4,0))","v":""},{"$f":"IF(ISERROR($V636),\"\",OFFSET('Smelter Look-up'!$H$4,$V636-4,0))","v":""},{"$f":"IF(ISERROR($V636),\"\",OFFSET('Smelter Look-up'!$I$4,$V636-4,0))","v":""},{"$nulls":7},{"$f":"IF(ISERROR($V636),\"\",OFFSET('Smelter Look-up'!$C$4,$V636-4,0)&\"\")","v":""},"",{"$f":"IF(B636=\"\",\"\",IF(ISERROR(MATCH($J636,SorP!$B$1:$B$6230,0)),\"\",INDIRECT(\"'SorP'!$A$\"&MATCH($J636,SorP!$B$1:$B$6230,0))))","v":""},null,{"$f":"IF(C636=\"\",NA(),MATCH($B636&$C636,'Smelter Look-up'!$J:$J,0))","v":{"$error":"#N/A"}},null,0,null,null,null,""]
[null,{"$f":"IF(LEN(A637)=0,\"\",INDEX('Smelter Look-up'!$A:$A,MATCH($A637,'Smelter Look-up'!$E:$E,0)))","v":""},{"$f":"IF(LEN(A637)=0,\"\",INDEX('Smelter Look-up'!$C:$C,MATCH($A637,'Smelter Look-up'!$E:$E,0)))","v":""},null,{"$f":"IF(ISERROR($V637),\"\",OFFSET('Smelter Look-up'!$D$4,$V637-4,0)&\"\")","v":""},{"$f":"IF(ISERROR($V637),\"\",OFFSET('Smelter Look-up'!$E$4,$V637-4,0))","v":""},{"$f":"IF(C637=$X$4,\"Enter smelter details\", IF(ISERROR($V637),\"\",OFFSET('Smelter Look-up'!$F$4,$V637-4,0)))","v":""},{"$f":"IF(ISERROR($V637),\"\",OFFSET('Smelter Look-up'!$G$4,$V637-4,0))","v":""},{"$f":"IF(ISERROR($V637),\"\",OFFSET('Smelter Look-up'!$H$4,$V637-4,0))","v":""},{"$f":"IF(ISERROR($V637),\"\",OFFSET('Smelter Look-up'!$I$4,$V637-4,0))","v":""},{"$nulls":7},{"$f":"IF(ISERROR($V637),\"\",OFFSET('Smelter Look-up'!$C$4,$V637-4,0)&\"\")","v":""},"",{"$f":"IF(B637=\"\",\"\",IF(ISERROR(MATCH($J637,SorP!$B$1:$B$6230,0)),\"\",INDIRECT(\"'SorP'!$A$\"&MATCH($J637,SorP!$B$1:$B$6230,0))))","v":""},null,{"$f":"IF(C637=\"\",NA(),MATCH($B637&$C637,'Smelter Look-up'!$J:$J,0))","v":{"$error":"#N/A"}},null,0,null,null,null,""]
[null,{"$f":"IF(LEN(A638)=0,\"\",INDEX('Smelter Look-up'!$A:$A,MATCH($A638,'Smelter Look-up'!$E:$E,0)))","v":""},{"$f":"IF(LEN(A638)=0,\"\",INDEX('Smelter Look-up'!$C:$C,MATCH($A638,'Smelter Look-up'!$E:$E,0)))","v":""},null,{"$f":"IF(ISERROR($V638),\"\",OFFSET('Smelter Look-up'!$D$4,$V638-4,0)&\"\")","v":""},{"$f":"IF(ISERROR($V638),\"\",OFFSET('Smelter Look-up'!$E$4,$V638-4,0))","v":""},{"$f":"IF(C638=$X$4,\"Enter smelter details\", IF(ISERROR($V638),\"\",OFFSET('Smelter Look-up'!$F$4,$V638-4,0)))","v":""},{"$f":"IF(ISERROR($V638),\"\",OFFSET('Smelter Look-up'!$G$4,$V638-4,0))","v":""},{"$f":"IF(ISERROR($V638),\"\",OFFSET('Smelter Look-up'!$H$4,$V638-4,0))","v":""},{"$f":"IF(ISERROR($V638),\"\",OFFSET('Smelter Look-up'!$I$4,$V638-4,0))","v":""},{"$nulls":7},{"$f":"IF(ISERROR($V638),\"\",OFFSET('Smelter Look-up'!$C$4,$V638-4,0)&\"\")","v":""},"",{"$f":"IF(B638=\"\",\"\",IF(ISERROR(MATCH($J638,SorP!$B$1:$B$6230,0)),\"\",INDIRECT(\"'SorP'!$A$\"&MATCH($J638,SorP!$B$1:$B$6230,0))))","v":""},null,{"$f":"IF(C638=\"\",NA(),MATCH($B638&$C638,'Smelter Look-up'!$J:$J,0))","v":{"$error":"#N/A"}},null,0,null,null,null,""]
[null,{"$f":"IF(LEN(A639)=0,\"\",INDEX('Smelter Look-up'!$A:$A,MATCH($A639,'Smelter Look-up'!$E:$E,0)))","v":""},{"$f":"IF(LEN(A639)=0,\"\",INDEX('Smelter Look-up'!$C:$C,MATCH($A639,'Smelter Look-up'!$E:$E,0)))","v":""},null,{"$f":"IF(ISERROR($V639),\"\",OFFSET('Smelter Look-up'!$D$4,$V639-4,0)&\"\")","v":""},{"$f":"IF(ISERROR($V639),\"\",OFFSET('Smelter Look-up'!$E$4,$V639-4,0))","v":""},{"$f":"IF(C639=$X$4,\"Enter smelter details\", IF(ISERROR($V639),\"\",OFFSET('Smelter Look-up'!$F$4,$V639-4,0)))","v":""},{"$f":"IF(ISERROR($V639),\"\",OFFSET('Smelter Look-up'!$G$4,$V639-4,0))","v":""},{"$f":"IF(ISERROR($V639),\"\",OFFSET('Smelter Look-up'!$H$4,$V639-4,0))","v":""},{"$f":"IF(ISERROR($V639),\"\",OFFSET('Smelter Look-up'!$I$4,$V639-4,0))","v":""},{"$nulls":7},{"$f":"IF(ISERROR($V639),\"\",OFFSET('Smelter Look-up'!$C$4,$V639-4,0)&\"\")","v":""},"",{"$f":"IF(B639=\"\",\"\",IF(ISERROR(MATCH($J639,SorP!$B$1:$B$6230,0)),\"\",INDIRECT(\"'SorP'!$A$\"&MATCH($J639,SorP!$B$1:$B$6230,0))))","v":""},null,{"$f":"IF(C639=\"\",NA(),MATCH($B639&$C639,'Smelter Look-up'!$J:$J,0))","v":{"$error":"#N/A"}},null,0,null,null,null,""]
[null,{"$f":"IF(LEN(A640)=0,\"\",INDEX('Smelter Look-up'!$A:$A,MATCH($A640,'Smelter Look-up'!$E:$E,0)))","v":""},{"$f":"IF(LEN(A640)=0,\"\",INDEX('Smelter Look-up'!$C:$C,MATCH($A640,'Smelter Look-up'!$E:$E,0)))","v":""},null,{"$f":"IF(ISERROR($V640),\"\",OFFSET('Smelter Look-up'!$D$4,$V640-4,0)&\"\")","v":""},{"$f":"IF(ISERROR($V640),\"\",OFFSET('Smelter Look-up'!$E$4,$V640-4,0))","v":""},{"$f":"IF(C640=$X$4,\"Enter smelter details\", IF(ISERROR($V640),\"\",OFFSET('Smelter Look-up'!$F$4,$V640-4,0)))","v":""},{"$f":"IF(ISERROR($V640),\"\",OFFSET('Smelter Look-up'!$G$4,$V640-4,0))","v":""},{"$f":"IF(ISERROR($V640),\"\",OFFSET('Smelter Look-up'!$H$4,$V640-4,0))","v":""},{"$f":"IF(ISERROR($V640),\"\",OFFSET('Smelter Look-up'!$I$4,$V640-4,0))","v":""},{"$nulls":7},{"$f":"IF(ISERROR($V640),\"\",OFFSET('Smelter Look-up'!$C$4,$V640-4,0)&\"\")","v":""},"",{"$f":"IF(B640=\"\",\"\",IF(ISERROR(MATCH($J640,SorP!$B$1:$B$6230,0)),\"\",INDIRECT(\"'SorP'!$A$\"&MATCH($J640,SorP!$B$1:$B$6230,0))))","v":""},null,{"$f":"IF(C640=\"\",NA(),MATCH($B640&$C640,'Smelter Look-up'!$J:$J,0))","v":{"$error":"#N/A"}},null,0,null,null,null,""]
[null,{"$f":"IF(LEN(A641)=0,\"\",INDEX('Smelter Look-up'!$A:$A,MATCH($A641,'Smelter Look-up'!$E:$E,0)))","v":""},{"$f":"IF(LEN(A641)=0,\"\",INDEX('Smelter Look-up'!$C:$C,MATCH($A641,'Smelter Look-up'!$E:$E,0)))","v":""},null,{"$f":"IF(ISERROR($V641),\"\",OFFSET('Smelter Look-up'!$D$4,$V641-4,0)&\"\")","v":""},{"$f":"IF(ISERROR($V641),\"\",OFFSET('Smelter Look-up'!$E$4,$V641-4,0))","v":""},{"$f":"IF(C641=$X$4,\"Enter smelter details\", IF(ISERROR($V641),\"\",OFFSET('Smelter Look-up'!$F$4,$V641-4,0)))","v":""},{"$f":"IF(ISERROR($V641),\"\",OFFSET('Smelter Look-up'!$G$4,$V641-4,0))","v":""},{"$f":"IF(ISERROR($V641),\"\",OFFSET('Smelter Look-up'!$H$4,$V641-4,0))","v":""},{"$f":"IF(ISERROR($V641),\"\",OFFSET('Smelter Look-up'!$I$4,$V641-4,0))","v":""},{"$nulls":7},{"$f":"IF(ISERROR($V641),\"\",OFFSET('Smelter Look-up'!$C$4,$V641-4,0)&\"\")","v":""},"",{"$f":"IF(B641=\"\",\"\",IF(ISERROR(MATCH($J641,SorP!$B$1:$B$6230,0)),\"\",INDIRECT(\"'SorP'!$A$\"&MATCH($J641,SorP!$B$1:$B$6230,0))))","v":""},null,{"$f":"IF(C641=\"\",NA(),MATCH($B641&$C641,'Smelter Look-up'!$J:$J,0))","v":{"$error":"#N/A"}},null,0,null,null,null,""]
[null,{"$f":"IF(LEN(A642)=0,\"\",INDEX('Smelter Look-up'!$A:$A,MATCH($A642,'Smelter Look-up'!$E:$E,0)))","v":""},{"$f":"IF(LEN(A642)=0,\"\",INDEX('Smelter Look-up'!$C:$C,MATCH($A642,'Smelter Look-up'!$E:$E,0)))","v":""},null,{"$f":"IF(ISERROR($V642),\"\",OFFSET('Smelter Look-up'!$D$4,$V642-4,0)&\"\")","v":""},{"$f":"IF(ISERROR($V642),\"\",OFFSET('Smelter Look-up'!$E$4,$V642-4,0))","v":""},{"$f":"IF(C642=$X$4,\"Enter smelter details\", IF(ISERROR($V642),\"\",OFFSET('Smelter Look-up'!$F$4,$V642-4,0)))","v":""},{"$f":"IF(ISERROR($V642),\"\",OFFSET('Smelter Look-up'!$G$4,$V642-4,0))","v":""},{"$f":"IF(ISERROR($V642),\"\",OFFSET('Smelter Look-up'!$H$4,$V642-4,0))","v":""},{"$f":"IF(ISERROR($V642),\"\",OFFSET('Smelter Look-up'!$I$4,$V642-4,0))","v":""},{"$nulls":7},{"$f":"IF(ISERROR($V642),\"\",OFFSET('Smelter Look-up'!$C$4,$V642-4,0)&\"\")","v":""},"",{"$f":"IF(B642=\"\",\"\",IF(ISERROR(MATCH($J642,SorP!$B$1:$B$6230,0)),\"\",INDIRECT(\"'SorP'!$A$\"&MATCH($J642,SorP!$B$1:$B$6230,0))))","v":""},null,{"$f":"IF(C642=\"\",NA(),MATCH($B642&$C642,'Smelter Look-up'!$J:$J,0))","v":{"$error":"#N/A"}},null,0,null,null,null,""]
[null,{"$f":"IF(LEN(A643)=0,\"\",INDEX('Smelter Look-up'!$A:$A,MATCH($A643,'Smelter Look-up'!$E:$E,0)))","v":""},{"$f":"IF(LEN(A643)=0,\"\",INDEX('Smelter Look-up'!$C:$C,MATCH($A643,'Smelter Look-up'!$E:$E,0)))","v":""},null,{"$f":"IF(ISERROR($V643),\"\",OFFSET('Smelter Look-up'!$D$4,$V643-4,0)&\"\")","v":""},{"$f":"IF(ISERROR($V643),\"\",OFFSET('Smelter Look-up'!$E$4,$V643-4,0))","v":""},{"$f":"IF(C643=$X$4,\"Enter smelter details\", IF(ISERROR($V643),\"\",OFFSET('Smelter Look-up'!$F$4,$V643-4,0)))","v":""},{"$f":"IF(ISERROR($V643),\"\",OFFSET('Smelter Look-up'!$G$4,$V643-4,0))","v":""},{"$f":"IF(ISERROR($V643),\"\",OFFSET('Smelter Look-up'!$H$4,$V643-4,0))","v":""},{"$f":"IF(ISERROR($V643),\"\",OFFSET('Smelter Look-up'!$I$4,$V643-4,0))","v":""},{"$nulls":7},{"$f":"IF(ISERROR($V643),\"\",OFFSET('Smelter Look-up'!$C$4,$V643-4,0)&\"\")","v":""},"",{"$f":"IF(B643=\"\",\"\",IF(ISERROR(MATCH($J643,SorP!$B$1:$B$6230,0)),\"\",INDIRECT(\"'SorP'!$A$\"&MATCH($J643,SorP!$B$1:$B$6230,0))))","v":""},null,{"$f":"IF(C643=\"\",NA(),MATCH($B643&$C643,'Smelter Look-up'!$J:$J,0))","v":{"$error":"#N/A"}},null,0,null,null,null,""]
[null,{"$f":"IF(LEN(A644)=0,\"\",INDEX('Smelter Look-up'!$A:$A,MATCH($A644,'Smelter Look-up'!$E:$E,0)))","v":""},{"$f":"IF(LEN(A644)=0,\"\",INDEX('Smelter Look-up'!$C:$C,MATCH($A644,'Smelter Look-up'!$E:$E,0)))","v":""},null,{"$f":"IF(ISERROR($V644),\"\",OFFSET('Smelter Look-up'!$D$4,$V644-4,0)&\"\")","v":""},{"$f":"IF(ISERROR($V644),\"\",OFFSET('Smelter Look-up'!$E$4,$V644-4,0))","v":""},{"$f":"IF(C644=$X$4,\"Enter smelter details\", IF(ISERROR($V644),\"\",OFFSET('Smelter Look-up'!$F$4,$V644-4,0)))","v":""},{"$f":"IF(ISERROR($V644),\"\",OFFSET('Smelter Look-up'!$G$4,$V644-4,0))","v":""},{"$f":"IF(ISERROR($V644),\"\",OFFSET('Smelter Look-up'!$H$4,$V644-4,0))","v":""},{"$f":"IF(ISERROR($V644),\"\",OFFSET('Smelter Look-up'!$I$4,$V644-4,0))","v":""},{"$nulls":7},{"$f":"IF(ISERROR($V644),\"\",OFFSET('Smelter Look-up'!$C$4,$V644-4,0)&\"\")","v":""},"",{"$f":"IF(B644=\"\",\"\",IF(ISERROR(MATCH($J644,SorP!$B$1:$B$6230,0)),\"\",INDIRECT(\"'SorP'!$A$\"&MATCH($J644,SorP!$B$1:$B$6230,0))))","v":""},null,{"$f":"IF(C644=\"\",NA(),MATCH($B644&$C644,'Smelter Look-up'!$J:$J,0))","v":{"$error":"#N/A"}},null,0,null,null,null,""]
[null,{"$f":"IF(LEN(A645)=0,\"\",INDEX('Smelter Look-up'!$A:$A,MATCH($A645,'Smelter Look-up'!$E:$E,0)))","v":""},{"$f":"IF(LEN(A645)=0,\"\",INDEX('Smelter Look-up'!$C:$C,MATCH($A645,'Smelter Look-up'!$E:$E,0)))","v":""},null,{"$f":"IF(ISERROR($V645),\"\",OFFSET('Smelter Look-up'!$D$4,$V645-4,0)&\"\")","v":""},{"$f":"IF(ISERROR($V645),\"\",OFFSET('Smelter Look-up'!$E$4,$V645-4,0))","v":""},{"$f":"IF(C645=$X$4,\"Enter smelter details\", IF(ISERROR($V645),\"\",OFFSET('Smelter Look-up'!$F$4,$V645-4,0)))","v":""},{"$f":"IF(ISERROR($V645),\"\",OFFSET('Smelter Look-up'!$G$4,$V645-4,0))","v":""},{"$f":"IF(ISERROR($V645),\"\",OFFSET('Smelter Look-up'!$H$4,$V645-4,0))","v":""},{"$f":"IF(ISERROR($V645),\"\",OFFSET('Smelter Look-up'!$I$4,$V645-4,0))","v":""},{"$nulls":7},{"$f":"IF(ISERROR($V645),\"\",OFFSET('Smelter Look-up'!$C$4,$V645-4,0)&\"\")","v":""},"",{"$f":"IF(B645=\"\",\"\",IF(ISERROR(MATCH($J645,SorP!$B$1:$B$6230,0)),\"\",INDIRECT(\"'SorP'!$A$\"&MATCH($J645,SorP!$B$1:$B$6230,0))))","v":""},null,{"$f":"IF(C645=\"\",NA(),MATCH($B645&$C645,'Smelter Look-up'!$J:$J,0))","v":{"$error":"#N/A"}},null,0,null,null,null,""]
[null,{"$f":"IF(LEN(A646)=0,\"\",INDEX('Smelter Look-up'!$A:$A,MATCH($A646,'Smelter Look-up'!$E:$E,0)))","v":""},{"$f":"IF(LEN(A646)=0,\"\",INDEX('Smelter Look-up'!$C:$C,MATCH($A646,'Smelter Look-up'!$E:$E,0)))","v":""},null,{"$f":"IF(ISERROR($V646),\"\",OFFSET('Smelter Look-up'!$D$4,$V646-4,0)&\"\")","v":""},{"$f":"IF(ISERROR($V646),\"\",OFFSET('Smelter Look-up'!$E$4,$V646-4,0))","v":""},{"$f":"IF(C646=$X$4,\"Enter smelter details\", IF(ISERROR($V646),\"\",OFFSET('Smelter Look-up'!$F$4,$V646-4,0)))","v":""},{"$f":"IF(ISERROR($V646),\"\",OFFSET('Smelter Look-up'!$G$4,$V646-4,0))","v":""},{"$f":"IF(ISERROR($V646),\"\",OFFSET('Smelter Look-up'!$H$4,$V646-4,0))","v":""},{"$f":"IF(ISERROR($V646),\"\",OFFSET('Smelter Look-up'!$I$4,$V646-4,0))","v":""},{"$nulls":7},{"$f":"IF(ISERROR($V646),\"\",OFFSET('Smelter Look-up'!$C$4,$V646-4,0)&\"\")","v":""},"",{"$f":"IF(B646=\"\",\"\",IF(ISERROR(MATCH($J646,SorP!$B$1:$B$6230,0)),\"\",INDIRECT(\"'SorP'!$A$\"&MATCH($J646,SorP!$B$1:$B$6230,0))))","v":""},null,{"$f":"IF(C646=\"\",NA(),MATCH($B646&$C646,'Smelter Look-up'!$J:$J,0))","v":{"$error":"#N/A"}},null,0,null,null,null,""]
[null,{"$f":"IF(LEN(A647)=0,\"\",INDEX('Smelter Look-up'!$A:$A,MATCH($A647,'Smelter Look-up'!$E:$E,0)))","v":""},{"$f":"IF(LEN(A647)=0,\"\",INDEX('Smelter Look-up'!$C:$C,MATCH($A647,'Smelter Look-up'!$E:$E,0)))","v":""},null,{"$f":"IF(ISERROR($V647),\"\",OFFSET('Smelter Look-up'!$D$4,$V647-4,0)&\"\")","v":""},{"$f":"IF(ISERROR($V647),\"\",OFFSET('Smelter Look-up'!$E$4,$V647-4,0))","v":""},{"$f":"IF(C647=$X$4,\"Enter smelter details\", IF(ISERROR($V647),\"\",OFFSET('Smelter Look-up'!$F$4,$V647-4,0)))","v":""},{"$f":"IF(ISERROR($V647),\"\",OFFSET('Smelter Look-up'!$G$4,$V647-4,0))","v":""},{"$f":"IF(ISERROR($V647),\"\",OFFSET('Smelter Look-up'!$H$4,$V647-4,0))","v":""},{"$f":"IF(ISERROR($V647),\"\",OFFSET('Smelter Look-up'!$I$4,$V647-4,0))","v":""},{"$nulls":7},{"$f":"IF(ISERROR($V647),\"\",OFFSET('Smelter Look-up'!$C$4,$V647-4,0)&\"\")","v":""},"",{"$f":"IF(B647=\"\",\"\",IF(ISERROR(MATCH($J647,SorP!$B$1:$B$6230,0)),\"\",INDIRECT(\"'SorP'!$A$\"&MATCH($J647,SorP!$B$1:$B$6230,0))))","v":""},null,{"$f":"IF(C647=\"\",NA(),MATCH($B647&$C647,'Smelter Look-up'!$J:$J,0))","v":{"$error":"#N/A"}},null,0,null,null,null,""]
[null,{"$f":"IF(LEN(A648)=0,\"\",INDEX('Smelter Look-up'!$A:$A,MATCH($A648,'Smelter Look-up'!$E:$E,0)))","v":""},{"$f":"IF(LEN(A648)=0,\"\",INDEX('Smelter Look-up'!$C:$C,MATCH($A648,'Smelter Look-up'!$E:$E,0)))","v":""},null,{"$f":"IF(ISERROR($V648),\"\",OFFSET('Smelter Look-up'!$D$4,$V648-4,0)&\"\")","v":""},{"$f":"IF(ISERROR($V648),\"\",OFFSET('Smelter Look-up'!$E$4,$V648-4,0))","v":""},{"$f":"IF(C648=$X$4,\"Enter smelter details\", IF(ISERROR($V648),\"\",OFFSET('Smelter Look-up'!$F$4,$V648-4,0)))","v":""},{"$f":"IF(ISERROR($V648),\"\",OFFSET('Smelter Look-up'!$G$4,$V648-4,0))","v":""},{"$f":"IF(ISERROR($V648),\"\",OFFSET('Smelter Look-up'!$H$4,$V648-4,0))","v":""},{"$f":"IF(ISERROR($V648),\"\",OFFSET('Smelter Look-up'!$I$4,$V648-4,0))","v":""},{"$nulls":7},{"$f":"IF(ISERROR($V648),\"\",OFFSET('Smelter Look-up'!$C$4,$V648-4,0)&\"\")","v":""},"",{"$f":"IF(B648=\"\",\"\",IF(ISERROR(MATCH($J648,SorP!$B$1:$B$6230,0)),\"\",INDIRECT(\"'SorP'!$A$\"&MATCH($J648,SorP!$B$1:$B$6230,0))))","v":""},null,{"$f":"IF(C648=\"\",NA(),MATCH($B648&$C648,'Smelter Look-up'!$J:$J,0))","v":{"$error":"#N/A"}},null,0,null,null,null,""]
[null,{"$f":"IF(LEN(A649)=0,\"\",INDEX('Smelter Look-up'!$A:$A,MATCH($A649,'Smelter Look-up'!$E:$E,0)))","v":""},{"$f":"IF(LEN(A649)=0,\"\",INDEX('Smelter Look-up'!$C:$C,MATCH($A649,'Smelter Look-up'!$E:$E,0)))","v":""},null,{"$f":"IF(ISERROR($V649),\"\",OFFSET('Smelter Look-up'!$D$4,$V649-4,0)&\"\")","v":""},{"$f":"IF(ISERROR($V649),\"\",OFFSET('Smelter Look-up'!$E$4,$V649-4,0))","v":""},{"$f":"IF(C649=$X$4,\"Enter smelter details\", IF(ISERROR($V649),\"\",OFFSET('Smelter Look-up'!$F$4,$V649-4,0)))","v":""},{"$f":"IF(ISERROR($V649),\"\",OFFSET('Smelter Look-up'!$G$4,$V649-4,0))","v":""},{"$f":"IF(ISERROR($V649),\"\",OFFSET('Smelter Look-up'!$H$4,$V649-4,0))","v":""},{"$f":"IF(ISERROR($V649),\"\",OFFSET('Smelter Look-up'!$I$4,$V649-4,0))","v":""},{"$nulls":7},{"$f":"IF(ISERROR($V649),\"\",OFFSET('Smelter Look-up'!$C$4,$V649-4,0)&\"\")","v":""},"",{"$f":"IF(B649=\"\",\"\",IF(ISERROR(MATCH($J649,SorP!$B$1:$B$6230,0)),\"\",INDIRECT(\"'SorP'!$A$\"&MATCH($J649,SorP!$B$1:$B$6230,0))))","v":""},null,{"$f":"IF(C649=\"\",NA(),MATCH($B649&$C649,'Smelter Look-up'!$J:$J,0))","v":{"$error":"#N/A"}},null,0,null,null,null,""]
[null,{"$f":"IF(LEN(A650)=0,\"\",INDEX('Smelter Look-up'!$A:$A,MATCH($A650,'Smelter Look-up'!$E:$E,0)))","v":""},{"$f":"IF(LEN(A650)=0,\"\",INDEX('Smelter Look-up'!$C:$C,MATCH($A650,'Smelter Look-up'!$E:$E,0)))","v":""},null,{"$f":"IF(ISERROR($V650),\"\",OFFSET('Smelter Look-up'!$D$4,$V650-4,0)&\"\")","v":""},{"$f":"IF(ISERROR($V650),\"\",OFFSET('Smelter Look-up'!$E$4,$V650-4,0))","v":""},{"$f":"IF(C650=$X$4,\"Enter smelter details\", IF(ISERROR($V650),\"\",OFFSET('Smelter Look-up'!$F$4,$V650-4,0)))","v":""},{"$f":"IF(ISERROR($V650),\"\",OFFSET('Smelter Look-up'!$G$4,$V650-4,0))","v":""},{"$f":"IF(ISERROR($V650),\"\",OFFSET('Smelter Look-up'!$H$4,$V650-4,0))","v":""},{"$f":"IF(ISERROR($V650),\"\",OFFSET('Smelter Look-up'!$I$4,$V650-4,0))","v":""},{"$nulls":7},{"$f":"IF(ISERROR($V650),\"\",OFFSET('Smelter Look-up'!$C$4,$V650-4,0)&\"\")","v":""},"",{"$f":"IF(B650=\"\",\"\",IF(ISERROR(MATCH($J650,SorP!$B$1:$B$6230,0)),\"\",INDIRECT(\"'SorP'!$A$\"&MATCH($J650,SorP!$B$1:$B$6230,0))))","v":""},null,{"$f":"IF(C650=\"\",NA(),MATCH($B650&$C650,'Smelter Look-up'!$J:$J,0))","v":{"$error":"#N/A"}},null,0,null,null,null,""]
[null,{"$f":"IF(LEN(A651)=0,\"\",INDEX('Smelter Look-up'!$A:$A,MATCH($A651,'Smelter Look-up'!$E:$E,0)))","v":""},{"$f":"IF(LEN(A651)=0,\"\",INDEX('Smelter Look-up'!$C:$C,MATCH($A651,'Smelter Look-up'!$E:$E,0)))","v":""},null,{"$f":"IF(ISERROR($V651),\"\",OFFSET('Smelter Look-up'!$D$4,$V651-4,0)&\"\")","v":""},{"$f":"IF(ISERROR($V651),\"\",OFFSET('Smelter Look-up'!$E$4,$V651-4,0))","v":""},{"$f":"IF(C651=$X$4,\"Enter smelter details\", IF(ISERROR($V651),\"\",OFFSET('Smelter Look-up'!$F$4,$V651-4,0)))","v":""},{"$f":"IF(ISERROR($V651),\"\",OFFSET('Smelter Look-up'!$G$4,$V651-4,0))","v":""},{"$f":"IF(ISERROR($V651),\"\",OFFSET('Smelter Look-up'!$H$4,$V651-4,0))","v":""},{"$f":"IF(ISERROR($V651),\"\",OFFSET('Smelter Look-up'!$I$4,$V651-4,0))","v":""},{"$nulls":7},{"$f":"IF(ISERROR($V651),\"\",OFFSET('Smelter Look-up'!$C$4,$V651-4,0)&\"\")","v":""},"",{"$f":"IF(B651=\"\",\"\",IF(ISERROR(MATCH($J651,SorP!$B$1:$B$6230,0)),\"\",INDIRECT(\"'SorP'!$A$\"&MATCH($J651,SorP!$B$1:$B$6230,0))))","v":""},null,{"$f":"IF(C651=\"\",NA(),MATCH($B651&$C651,'Smelter Look-up'!$J:$J,0))","v":{"$error":"#N/A"}},null,0,null,null,null,""]
[null,{"$f":"IF(LEN(A652)=0,\"\",INDEX('Smelter Look-up'!$A:$A,MATCH($A652,'Smelter Look-up'!$E:$E,0)))","v":""},{"$f":"IF(LEN(A652)=0,\"\",INDEX('Smelter Look-up'!$C:$C,MATCH($A652,'Smelter Look-up'!$E:$E,0)))","v":""},null,{"$f":"IF(ISERROR($V652),\"\",OFFSET('Smelter Look-up'!$D$4,$V652-4,0)&\"\")","v":""},{"$f":"IF(ISERROR($V652),\"\",OFFSET('Smelter Look-up'!$E$4,$V652-4,0))","v":""},{"$f":"IF(C652=$X$4,\"Enter smelter details\", IF(ISERROR($V652),\"\",OFFSET('Smelter Look-up'!$F$4,$V652-4,0)))","v":""},{"$f":"IF(ISERROR($V652),\"\",OFFSET('Smelter Look-up'!$G$4,$V652-4,0))","v":""},{"$f":"IF(ISERROR($V652),\"\",OFFSET('Smelter Look-up'!$H$4,$V652-4,0))","v":""},{"$f":"IF(ISERROR($V652),\"\",OFFSET('Smelter Look-up'!$I$4,$V652-4,0))","v":""},{"$nulls":7},{"$f":"IF(ISERROR($V652),\"\",OFFSET('Smelter Look-up'!$C$4,$V652-4,0)&\"\")","v":""},"",{"$f":"IF(B652=\"\",\"\",IF(ISERROR(MATCH($J652,SorP!$B$1:$B$6230,0)),\"\",INDIRECT(\"'SorP'!$A$\"&MATCH($J652,SorP!$B$1:$B$6230,0))))","v":""},null,{"$f":"IF(C652=\"\",NA(),MATCH($B652&$C652,'Smelter Look-up'!$J:$J,0))","v":{"$error":"#N/A"}},null,0,null,null,null,""]
[null,{"$f":"IF(LEN(A653)=0,\"\",INDEX('Smelter Look-up'!$A:$A,MATCH($A653,'Smelter Look-up'!$E:$E,0)))","v":""},{"$f":"IF(LEN(A653)=0,\"\",INDEX('Smelter Look-up'!$C:$C,MATCH($A653,'Smelter Look-up'!$E:$E,0)))","v":""},null,{"$f":"IF(ISERROR($V653),\"\",OFFSET('Smelter Look-up'!$D$4,$V653-4,0)&\"\")","v":""},{"$f":"IF(ISERROR($V653),\"\",OFFSET('Smelter Look-up'!$E$4,$V653-4,0))","v":""},{"$f":"IF(C653=$X$4,\"Enter smelter details\", IF(ISERROR($V653),\"\",OFFSET('Smelter Look-up'!$F$4,$V653-4,0)))","v":""},{"$f":"IF(ISERROR($V653),\"\",OFFSET('Smelter Look-up'!$G$4,$V653-4,0))","v":""},{"$f":"IF(ISERROR($V653),\"\",OFFSET('Smelter Look-up'!$H$4,$V653-4,0))","v":""},{"$f":"IF(ISERROR($V653),\"\",OFFSET('Smelter Look-up'!$I$4,$V653-4,0))","v":""},{"$nulls":7},{"$f":"IF(ISERROR($V653),\"\",OFFSET('Smelter Look-up'!$C$4,$V653-4,0)&\"\")","v":""},"",{"$f":"IF(B653=\"\",\"\",IF(ISERROR(MATCH($J653,SorP!$B$1:$B$6230,0)),\"\",INDIRECT(\"'SorP'!$A$\"&MATCH($J653,SorP!$B$1:$B$6230,0))))","v":""},null,{"$f":"IF(C653=\"\",NA(),MATCH($B653&$C653,'Smelter Look-up'!$J:$J,0))","v":{"$error":"#N/A"}},null,0,null,null,null,""]
[null,{"$f":"IF(LEN(A654)=0,\"\",INDEX('Smelter Look-up'!$A:$A,MATCH($A654,'Smelter Look-up'!$E:$E,0)))","v":""},{"$f":"IF(LEN(A654)=0,\"\",INDEX('Smelter Look-up'!$C:$C,MATCH($A654,'Smelter Look-up'!$E:$E,0)))","v":""},null,{"$f":"IF(ISERROR($V654),\"\",OFFSET('Smelter Look-up'!$D$4,$V654-4,0)&\"\")","v":""},{"$f":"IF(ISERROR($V654),\"\",OFFSET('Smelter Look-up'!$E$4,$V654-4,0))","v":""},{"$f":"IF(C654=$X$4,\"Enter smelter details\", IF(ISERROR($V654),\"\",OFFSET('Smelter Look-up'!$F$4,$V654-4,0)))","v":""},{"$f":"IF(ISERROR($V654),\"\",OFFSET('Smelter Look-up'!$G$4,$V654-4,0))","v":""},{"$f":"IF(ISERROR($V654),\"\",OFFSET('Smelter Look-up'!$H$4,$V654-4,0))","v":""},{"$f":"IF(ISERROR($V654),\"\",OFFSET('Smelter Look-up'!$I$4,$V654-4,0))","v":""},{"$nulls":7},{"$f":"IF(ISERROR($V654),\"\",OFFSET('Smelter Look-up'!$C$4,$V654-4,0)&\"\")","v":""},"",{"$f":"IF(B654=\"\",\"\",IF(ISERROR(MATCH($J654,SorP!$B$1:$B$6230,0)),\"\",INDIRECT(\"'SorP'!$A$\"&MATCH($J654,SorP!$B$1:$B$6230,0))))","v":""},null,{"$f":"IF(C654=\"\",NA(),MATCH($B654&$C654,'Smelter Look-up'!$J:$J,0))","v":{"$error":"#N/A"}},null,0,null,null,null,""]
[null,{"$f":"IF(LEN(A655)=0,\"\",INDEX('Smelter Look-up'!$A:$A,MATCH($A655,'Smelter Look-up'!$E:$E,0)))","v":""},{"$f":"IF(LEN(A655)=0,\"\",INDEX('Smelter Look-up'!$C:$C,MATCH($A655,'Smelter Look-up'!$E:$E,0)))","v":""},null,{"$f":"IF(ISERROR($V655),\"\",OFFSET('Smelter Look-up'!$D$4,$V655-4,0)&\"\")","v":""},{"$f":"IF(ISERROR($V655),\"\",OFFSET('Smelter Look-up'!$E$4,$V655-4,0))","v":""},{"$f":"IF(C655=$X$4,\"Enter smelter details\", IF(ISERROR($V655),\"\",OFFSET('Smelter Look-up'!$F$4,$V655-4,0)))","v":""},{"$f":"IF(ISERROR($V655),\"\",OFFSET('Smelter Look-up'!$G$4,$V655-4,0))","v":""},{"$f":"IF(ISERROR($V655),\"\",OFFSET('Smelter Look-up'!$H$4,$V655-4,0))","v":""},{"$f":"IF(ISERROR($V655),\"\",OFFSET('Smelter Look-up'!$I$4,$V655-4,0))","v":""},{"$nulls":7},{"$f":"IF(ISERROR($V655),\"\",OFFSET('Smelter Look-up'!$C$4,$V655-4,0)&\"\")","v":""},"",{"$f":"IF(B655=\"\",\"\",IF(ISERROR(MATCH($J655,SorP!$B$1:$B$6230,0)),\"\",INDIRECT(\"'SorP'!$A$\"&MATCH($J655,SorP!$B$1:$B$6230,0))))","v":""},null,{"$f":"IF(C655=\"\",NA(),MATCH($B655&$C655,'Smelter Look-up'!$J:$J,0))","v":{"$error":"#N/A"}},null,0,null,null,null,""]
[null,{"$f":"IF(LEN(A656)=0,\"\",INDEX('Smelter Look-up'!$A:$A,MATCH($A656,'Smelter Look-up'!$E:$E,0)))","v":""},{"$f":"IF(LEN(A656)=0,\"\",INDEX('Smelter Look-up'!$C:$C,MATCH($A656,'Smelter Look-up'!$E:$E,0)))","v":""},null,{"$f":"IF(ISERROR($V656),\"\",OFFSET('Smelter Look-up'!$D$4,$V656-4,0)&\"\")","v":""},{"$f":"IF(ISERROR($V656),\"\",OFFSET('Smelter Look-up'!$E$4,$V656-4,0))","v":""},{"$f":"IF(C656=$X$4,\"Enter smelter details\", IF(ISERROR($V656),\"\",OFFSET('Smelter Look-up'!$F$4,$V656-4,0)))","v":""},{"$f":"IF(ISERROR($V656),\"\",OFFSET('Smelter Look-up'!$G$4,$V656-4,0))","v":""},{"$f":"IF(ISERROR($V656),\"\",OFFSET('Smelter Look-up'!$H$4,$V656-4,0))","v":""},{"$f":"IF(ISERROR($V656),\"\",OFFSET('Smelter Look-up'!$I$4,$V656-4,0))","v":""},{"$nulls":7},{"$f":"IF(ISERROR($V656),\"\",OFFSET('Smelter Look-up'!$C$4,$V656-4,0)&\"\")","v":""},"",{"$f":"IF(B656=\"\",\"\",IF(ISERROR(MATCH($J656,SorP!$B$1:$B$6230,0)),\"\",INDIRECT(\"'SorP'!$A$\"&MATCH($J656,SorP!$B$1:$B$6230,0))))","v":""},null,{"$f":"IF(C656=\"\",NA(),MATCH($B656&$C656,'Smelter Look-up'!$J:$J,0))","v":{"$error":"#N/A"}},null,0,null,null,null,""]
[null,{"$f":"IF(LEN(A657)=0,\"\",INDEX('Smelter Look-up'!$A:$A,MATCH($A657,'Smelter Look-up'!$E:$E,0)))","v":""},{"$f":"IF(LEN(A657)=0,\"\",INDEX('Smelter Look-up'!$C:$C,MATCH($A657,'Smelter Look-up'!$E:$E,0)))","v":""},null,{"$f":"IF(ISERROR($V657),\"\",OFFSET('Smelter Look-up'!$D$4,$V657-4,0)&\"\")","v":""},{"$f":"IF(ISERROR($V657),\"\",OFFSET('Smelter Look-up'!$E$4,$V657-4,0))","v":""},{"$f":"IF(C657=$X$4,\"Enter smelter details\", IF(ISERROR($V657),\"\",OFFSET('Smelter Look-up'!$F$4,$V657-4,0)))","v":""},{"$f":"IF(ISERROR($V657),\"\",OFFSET('Smelter Look-up'!$G$4,$V657-4,0))","v":""},{"$f":"IF(ISERROR($V657),\"\",OFFSET('Smelter Look-up'!$H$4,$V657-4,0))","v":""},{"$f":"IF(ISERROR($V657),\"\",OFFSET('Smelter Look-up'!$I$4,$V657-4,0))","v":""},{"$nulls":7},{"$f":"IF(ISERROR($V657),\"\",OFFSET('Smelter Look-up'!$C$4,$V657-4,0)&\"\")","v":""},"",{"$f":"IF(B657=\"\",\"\",IF(ISERROR(MATCH($J657,SorP!$B$1:$B$6230,0)),\"\",INDIRECT(\"'SorP'!$A$\"&MATCH($J657,SorP!$B$1:$B$6230,0))))","v":""},null,{"$f":"IF(C657=\"\",NA(),MATCH($B657&$C657,'Smelter Look-up'!$J:$J,0))","v":{"$error":"#N/A"}},null,0,null,null,null,""]
[null,{"$f":"IF(LEN(A658)=0,\"\",INDEX('Smelter Look-up'!$A:$A,MATCH($A658,'Smelter Look-up'!$E:$E,0)))","v":""},{"$f":"IF(LEN(A658)=0,\"\",INDEX('Smelter Look-up'!$C:$C,MATCH($A658,'Smelter Look-up'!$E:$E,0)))","v":""},null,{"$f":"IF(ISERROR($V658),\"\",OFFSET('Smelter Look-up'!$D$4,$V658-4,0)&\"\")","v":""},{"$f":"IF(ISERROR($V658),\"\",OFFSET('Smelter Look-up'!$E$4,$V658-4,0))","v":""},{"$f":"IF(C658=$X$4,\"Enter smelter details\", IF(ISERROR($V658),\"\",OFFSET('Smelter Look-up'!$F$4,$V658-4,0)))","v":""},{"$f":"IF(ISERROR($V658),\"\",OFFSET('Smelter Look-up'!$G$4,$V658-4,0))","v":""},{"$f":"IF(ISERROR($V658),\"\",OFFSET('Smelter Look-up'!$H$4,$V658-4,0))","v":""},{"$f":"IF(ISERROR($V658),\"\",OFFSET('Smelter Look-up'!$I$4,$V658-4,0))","v":""},{"$nulls":7},{"$f":"IF(ISERROR($V658),\"\",OFFSET('Smelter Look-up'!$C$4,$V658-4,0)&\"\")","v":""},"",{"$f":"IF(B658=\"\",\"\",IF(ISERROR(MATCH($J658,SorP!$B$1:$B$6230,0)),\"\",INDIRECT(\"'SorP'!$A$\"&MATCH($J658,SorP!$B$1:$B$6230,0))))","v":""},null,{"$f":"IF(C658=\"\",NA(),MATCH($B658&$C658,'Smelter Look-up'!$J:$J,0))","v":{"$error":"#N/A"}},null,0,null,null,null,""]
[null,{"$f":"IF(LEN(A659)=0,\"\",INDEX('Smelter Look-up'!$A:$A,MATCH($A659,'Smelter Look-up'!$E:$E,0)))","v":""},{"$f":"IF(LEN(A659)=0,\"\",INDEX('Smelter Look-up'!$C:$C,MATCH($A659,'Smelter Look-up'!$E:$E,0)))","v":""},null,{"$f":"IF(ISERROR($V659),\"\",OFFSET('Smelter Look-up'!$D$4,$V659-4,0)&\"\")","v":""},{"$f":"IF(ISERROR($V659),\"\",OFFSET('Smelter Look-up'!$E$4,$V659-4,0))","v":""},{"$f":"IF(C659=$X$4,\"Enter smelter details\", IF(ISERROR($V659),\"\",OFFSET('Smelter Look-up'!$F$4,$V659-4,0)))","v":""},{"$f":"IF(ISERROR($V659),\"\",OFFSET('Smelter Look-up'!$G$4,$V659-4,0))","v":""},{"$f":"IF(ISERROR($V659),\"\",OFFSET('Smelter Look-up'!$H$4,$V659-4,0))","v":""},{"$f":"IF(ISERROR($V659),\"\",OFFSET('Smelter Look-up'!$I$4,$V659-4,0))","v":""},{"$nulls":7},{"$f":"IF(ISERROR($V659),\"\",OFFSET('Smelter Look-up'!$C$4,$V659-4,0)&\"\")","v":""},"",{"$f":"IF(B659=\"\",\"\",IF(ISERROR(MATCH($J659,SorP!$B$1:$B$6230,0)),\"\",INDIRECT(\"'SorP'!$A$\"&MATCH($J659,SorP!$B$1:$B$6230,0))))","v":""},null,{"$f":"IF(C659=\"\",NA(),MATCH($B659&$C659,'Smelter Look-up'!$J:$J,0))","v":{"$error":"#N/A"}},null,0,null,null,null,""]
[null,{"$f":"IF(LEN(A660)=0,\"\",INDEX('Smelter Look-up'!$A:$A,MATCH($A660,'Smelter Look-up'!$E:$E,0)))","v":""},{"$f":"IF(LEN(A660)=0,\"\",INDEX('Smelter Look-up'!$C:$C,MATCH($A660,'Smelter Look-up'!$E:$E,0)))","v":""},null,{"$f":"IF(ISERROR($V660),\"\",OFFSET('Smelter Look-up'!$D$4,$V660-4,0)&\"\")","v":""},{"$f":"IF(ISERROR($V660),\"\",OFFSET('Smelter Look-up'!$E$4,$V660-4,0))","v":""},{"$f":"IF(C660=$X$4,\"Enter smelter details\", IF(ISERROR($V660),\"\",OFFSET('Smelter Look-up'!$F$4,$V660-4,0)))","v":""},{"$f":"IF(ISERROR($V660),\"\",OFFSET('Smelter Look-up'!$G$4,$V660-4,0))","v":""},{"$f":"IF(ISERROR($V660),\"\",OFFSET('Smelter Look-up'!$H$4,$V660-4,0))","v":""},{"$f":"IF(ISERROR($V660),\"\",OFFSET('Smelter Look-up'!$I$4,$V660-4,0))","v":""},{"$nulls":7},{"$f":"IF(ISERROR($V660),\"\",OFFSET('Smelter Look-up'!$C$4,$V660-4,0)&\"\")","v":""},"",{"$f":"IF(B660=\"\",\"\",IF(ISERROR(MATCH($J660,SorP!$B$1:$B$6230,0)),\"\",INDIRECT(\"'SorP'!$A$\"&MATCH($J660,SorP!$B$1:$B$6230,0))))","v":""},null,{"$f":"IF(C660=\"\",NA(),MATCH($B660&$C660,'Smelter Look-up'!$J:$J,0))","v":{"$error":"#N/A"}},null,0,null,null,null,""]
[null,{"$f":"IF(LEN(A661)=0,\"\",INDEX('Smelter Look-up'!$A:$A,MATCH($A661,'Smelter Look-up'!$E:$E,0)))","v":""},{"$f":"IF(LEN(A661)=0,\"\",INDEX('Smelter Look-up'!$C:$C,MATCH($A661,'Smelter Look-up'!$E:$E,0)))","v":""},null,{"$f":"IF(ISERROR($V661),\"\",OFFSET('Smelter Look-up'!$D$4,$V661-4,0)&\"\")","v":""},{"$f":"IF(ISERROR($V661),\"\",OFFSET('Smelter Look-up'!$E$4,$V661-4,0))","v":""},{"$f":"IF(C661=$X$4,\"Enter smelter details\", IF(ISERROR($V661),\"\",OFFSET('Smelter Look-up'!$F$4,$V661-4,0)))","v":""},{"$f":"IF(ISERROR($V661),\"\",OFFSET('Smelter Look-up'!$G$4,$V661-4,0))","v":""},{"$f":"IF(ISERROR($V661),\"\",OFFSET('Smelter Look-up'!$H$4,$V661-4,0))","v":""},{"$f":"IF(ISERROR($V661),\"\",OFFSET('Smelter Look-up'!$I$4,$V661-4,0))","v":""},{"$nulls":7},{"$f":"IF(ISERROR($V661),\"\",OFFSET('Smelter Look-up'!$C$4,$V661-4,0)&\"\")","v":""},"",{"$f":"IF(B661=\"\",\"\",IF(ISERROR(MATCH($J661,SorP!$B$1:$B$6230,0)),\"\",INDIRECT(\"'SorP'!$A$\"&MATCH($J661,SorP!$B$1:$B$6230,0))))","v":""},null,{"$f":"IF(C661=\"\",NA(),MATCH($B661&$C661,'Smelter Look-up'!$J:$J,0))","v":{"$error":"#N/A"}},null,0,null,null,null,""]
[null,{"$f":"IF(LEN(A662)=0,\"\",INDEX('Smelter Look-up'!$A:$A,MATCH($A662,'Smelter Look-up'!$E:$E,0)))","v":""},{"$f":"IF(LEN(A662)=0,\"\",INDEX('Smelter Look-up'!$C:$C,MATCH($A662,'Smelter Look-up'!$E:$E,0)))","v":""},null,{"$f":"IF(ISERROR($V662),\"\",OFFSET('Smelter Look-up'!$D$4,$V662-4,0)&\"\")","v":""},{"$f":"IF(ISERROR($V662),\"\",OFFSET('Smelter Look-up'!$E$4,$V662-4,0))","v":""},{"$f":"IF(C662=$X$4,\"Enter smelter details\", IF(ISERROR($V662),\"\",OFFSET('Smelter Look-up'!$F$4,$V662-4,0)))","v":""},{"$f":"IF(ISERROR($V662),\"\",OFFSET('Smelter Look-up'!$G$4,$V662-4,0))","v":""},{"$f":"IF(ISERROR($V662),\"\",OFFSET('Smelter Look-up'!$H$4,$V662-4,0))","v":""},{"$f":"IF(ISERROR($V662),\"\",OFFSET('Smelter Look-up'!$I$4,$V662-4,0))","v":""},{"$nulls":7},{"$f":"IF(ISERROR($V662),\"\",OFFSET('Smelter Look-up'!$C$4,$V662-4,0)&\"\")","v":""},"",{"$f":"IF(B662=\"\",\"\",IF(ISERROR(MATCH($J662,SorP!$B$1:$B$6230,0)),\"\",INDIRECT(\"'SorP'!$A$\"&MATCH($J662,SorP!$B$1:$B$6230,0))))","v":""},null,{"$f":"IF(C662=\"\",NA(),MATCH($B662&$C662,'Smelter Look-up'!$J:$J,0))","v":{"$error":"#N/A"}},null,0,null,null,null,""]
[null,{"$f":"IF(LEN(A663)=0,\"\",INDEX('Smelter Look-up'!$A:$A,MATCH($A663,'Smelter Look-up'!$E:$E,0)))","v":""},{"$f":"IF(LEN(A663)=0,\"\",INDEX('Smelter Look-up'!$C:$C,MATCH($A663,'Smelter Look-up'!$E:$E,0)))","v":""},null,{"$f":"IF(ISERROR($V663),\"\",OFFSET('Smelter Look-up'!$D$4,$V663-4,0)&\"\")","v":""},{"$f":"IF(ISERROR($V663),\"\",OFFSET('Smelter Look-up'!$E$4,$V663-4,0))","v":""},{"$f":"IF(C663=$X$4,\"Enter smelter details\", IF(ISERROR($V663),\"\",OFFSET('Smelter Look-up'!$F$4,$V663-4,0)))","v":""},{"$f":"IF(ISERROR($V663),\"\",OFFSET('Smelter Look-up'!$G$4,$V663-4,0))","v":""},{"$f":"IF(ISERROR($V663),\"\",OFFSET('Smelter Look-up'!$H$4,$V663-4,0))","v":""},{"$f":"IF(ISERROR($V663),\"\",OFFSET('Smelter Look-up'!$I$4,$V663-4,0))","v":""},{"$nulls":7},{"$f":"IF(ISERROR($V663),\"\",OFFSET('Smelter Look-up'!$C$4,$V663-4,0)&\"\")","v":""},"",{"$f":"IF(B663=\"\",\"\",IF(ISERROR(MATCH($J663,SorP!$B$1:$B$6230,0)),\"\",INDIRECT(\"'SorP'!$A$\"&MATCH($J663,SorP!$B$1:$B$6230,0))))","v":""},null,{"$f":"IF(C663=\"\",NA(),MATCH($B663&$C663,'Smelter Look-up'!$J:$J,0))","v":{"$error":"#N/A"}},null,0,null,null,null,""]
[null,{"$f":"IF(LEN(A664)=0,\"\",INDEX('Smelter Look-up'!$A:$A,MATCH($A664,'Smelter Look-up'!$E:$E,0)))","v":""},{"$f":"IF(LEN(A664)=0,\"\",INDEX('Smelter Look-up'!$C:$C,MATCH($A664,'Smelter Look-up'!$E:$E,0)))","v":""},null,{"$f":"IF(ISERROR($V664),\"\",OFFSET('Smelter Look-up'!$D$4,$V664-4,0)&\"\")","v":""},{"$f":"IF(ISERROR($V664),\"\",OFFSET('Smelter Look-up'!$E$4,$V664-4,0))","v":""},{"$f":"IF(C664=$X$4,\"Enter smelter details\", IF(ISERROR($V664),\"\",OFFSET('Smelter Look-up'!$F$4,$V664-4,0)))","v":""},{"$f":"IF(ISERROR($V664),\"\",OFFSET('Smelter Look-up'!$G$4,$V664-4,0))","v":""},{"$f":"IF(ISERROR($V664),\"\",OFFSET('Smelter Look-up'!$H$4,$V664-4,0))","v":""},{"$f":"IF(ISERROR($V664),\"\",OFFSET('Smelter Look-up'!$I$4,$V664-4,0))","v":""},{"$nulls":7},{"$f":"IF(ISERROR($V664),\"\",OFFSET('Smelter Look-up'!$C$4,$V664-4,0)&\"\")","v":""},"",{"$f":"IF(B664=\"\",\"\",IF(ISERROR(MATCH($J664,SorP!$B$1:$B$6230,0)),\"\",INDIRECT(\"'SorP'!$A$\"&MATCH($J664,SorP!$B$1:$B$6230,0))))","v":""},null,{"$f":"IF(C664=\"\",NA(),MATCH($B664&$C664,'Smelter Look-up'!$J:$J,0))","v":{"$error":"#N/A"}},null,0,null,null,null,""]
[null,{"$f":"IF(LEN(A665)=0,\"\",INDEX('Smelter Look-up'!$A:$A,MATCH($A665,'Smelter Look-up'!$E:$E,0)))","v":""},{"$f":"IF(LEN(A665)=0,\"\",INDEX('Smelter Look-up'!$C:$C,MATCH($A665,'Smelter Look-up'!$E:$E,0)))","v":""},null,{"$f":"IF(ISERROR($V665),\"\",OFFSET('Smelter Look-up'!$D$4,$V665-4,0)&\"\")","v":""},{"$f":"IF(ISERROR($V665),\"\",OFFSET('Smelter Look-up'!$E$4,$V665-4,0))","v":""},{"$f":"IF(C665=$X$4,\"Enter smelter details\", IF(ISERROR($V665),\"\",OFFSET('Smelter Look-up'!$F$4,$V665-4,0)))","v":""},{"$f":"IF(ISERROR($V665),\"\",OFFSET('Smelter Look-up'!$G$4,$V665-4,0))","v":""},{"$f":"IF(ISERROR($V665),\"\",OFFSET('Smelter Look-up'!$H$4,$V665-4,0))","v":""},{"$f":"IF(ISERROR($V665),\"\",OFFSET('Smelter Look-up'!$I$4,$V665-4,0))","v":""},{"$nulls":7},{"$f":"IF(ISERROR($V665),\"\",OFFSET('Smelter Look-up'!$C$4,$V665-4,0)&\"\")","v":""},"",{"$f":"IF(B665=\"\",\"\",IF(ISERROR(MATCH($J665,SorP!$B$1:$B$6230,0)),\"\",INDIRECT(\"'SorP'!$A$\"&MATCH($J665,SorP!$B$1:$B$6230,0))))","v":""},null,{"$f":"IF(C665=\"\",NA(),MATCH($B665&$C665,'Smelter Look-up'!$J:$J,0))","v":{"$error":"#N/A"}},null,0,null,null,null,""]
[null,{"$f":"IF(LEN(A666)=0,\"\",INDEX('Smelter Look-up'!$A:$A,MATCH($A666,'Smelter Look-up'!$E:$E,0)))","v":""},{"$f":"IF(LEN(A666)=0,\"\",INDEX('Smelter Look-up'!$C:$C,MATCH($A666,'Smelter Look-up'!$E:$E,0)))","v":""},null,{"$f":"IF(ISERROR($V666),\"\",OFFSET('Smelter Look-up'!$D$4,$V666-4,0)&\"\")","v":""},{"$f":"IF(ISERROR($V666),\"\",OFFSET('Smelter Look-up'!$E$4,$V666-4,0))","v":""},{"$f":"IF(C666=$X$4,\"Enter smelter details\", IF(ISERROR($V666),\"\",OFFSET('Smelter Look-up'!$F$4,$V666-4,0)))","v":""},{"$f":"IF(ISERROR($V666),\"\",OFFSET('Smelter Look-up'!$G$4,$V666-4,0))","v":""},{"$f":"IF(ISERROR($V666),\"\",OFFSET('Smelter Look-up'!$H$4,$V666-4,0))","v":""},{"$f":"IF(ISERROR($V666),\"\",OFFSET('Smelter Look-up'!$I$4,$V666-4,0))","v":""},{"$nulls":7},{"$f":"IF(ISERROR($V666),\"\",OFFSET('Smelter Look-up'!$C$4,$V666-4,0)&\"\")","v":""},"",{"$f":"IF(B666=\"\",\"\",IF(ISERROR(MATCH($J666,SorP!$B$1:$B$6230,0)),\"\",INDIRECT(\"'SorP'!$A$\"&MATCH($J666,SorP!$B$1:$B$6230,0))))","v":""},null,{"$f":"IF(C666=\"\",NA(),MATCH($B666&$C666,'Smelter Look-up'!$J:$J,0))","v":{"$error":"#N/A"}},null,0,null,null,null,""]
[null,{"$f":"IF(LEN(A667)=0,\"\",INDEX('Smelter Look-up'!$A:$A,MATCH($A667,'Smelter Look-up'!$E:$E,0)))","v":""},{"$f":"IF(LEN(A667)=0,\"\",INDEX('Smelter Look-up'!$C:$C,MATCH($A667,'Smelter Look-up'!$E:$E,0)))","v":""},null,{"$f":"IF(ISERROR($V667),\"\",OFFSET('Smelter Look-up'!$D$4,$V667-4,0)&\"\")","v":""},{"$f":"IF(ISERROR($V667),\"\",OFFSET('Smelter Look-up'!$E$4,$V667-4,0))","v":""},{"$f":"IF(C667=$X$4,\"Enter smelter details\", IF(ISERROR($V667),\"\",OFFSET('Smelter Look-up'!$F$4,$V667-4,0)))","v":""},{"$f":"IF(ISERROR($V667),\"\",OFFSET('Smelter Look-up'!$G$4,$V667-4,0))","v":""},{"$f":"IF(ISERROR($V667),\"\",OFFSET('Smelter Look-up'!$H$4,$V667-4,0))","v":""},{"$f":"IF(ISERROR($V667),\"\",OFFSET('Smelter Look-up'!$I$4,$V667-4,0))","v":""},{"$nulls":7},{"$f":"IF(ISERROR($V667),\"\",OFFSET('Smelter Look-up'!$C$4,$V667-4,0)&\"\")","v":""},"",{"$f":"IF(B667=\"\",\"\",IF(ISERROR(MATCH($J667,SorP!$B$1:$B$6230,0)),\"\",INDIRECT(\"'SorP'!$A$\"&MATCH($J667,SorP!$B$1:$B$6230,0))))","v":""},null,{"$f":"IF(C667=\"\",NA(),MATCH($B667&$C667,'Smelter Look-up'!$J:$J,0))","v":{"$error":"#N/A"}},null,0,null,null,null,""]
[null,{"$f":"IF(LEN(A668)=0,\"\",INDEX('Smelter Look-up'!$A:$A,MATCH($A668,'Smelter Look-up'!$E:$E,0)))","v":""},{"$f":"IF(LEN(A668)=0,\"\",INDEX('Smelter Look-up'!$C:$C,MATCH($A668,'Smelter Look-up'!$E:$E,0)))","v":""},null,{"$f":"IF(ISERROR($V668),\"\",OFFSET('Smelter Look-up'!$D$4,$V668-4,0)&\"\")","v":""},{"$f":"IF(ISERROR($V668),\"\",OFFSET('Smelter Look-up'!$E$4,$V668-4,0))","v":""},{"$f":"IF(C668=$X$4,\"Enter smelter details\", IF(ISERROR($V668),\"\",OFFSET('Smelter Look-up'!$F$4,$V668-4,0)))","v":""},{"$f":"IF(ISERROR($V668),\"\",OFFSET('Smelter Look-up'!$G$4,$V668-4,0))","v":""},{"$f":"IF(ISERROR($V668),\"\",OFFSET('Smelter Look-up'!$H$4,$V668-4,0))","v":""},{"$f":"IF(ISERROR($V668),\"\",OFFSET('Smelter Look-up'!$I$4,$V668-4,0))","v":""},{"$nulls":7},{"$f":"IF(ISERROR($V668),\"\",OFFSET('Smelter Look-up'!$C$4,$V668-4,0)&\"\")","v":""},"",{"$f":"IF(B668=\"\",\"\",IF(ISERROR(MATCH($J668,SorP!$B$1:$B$6230,0)),\"\",INDIRECT(\"'SorP'!$A$\"&MATCH($J668,SorP!$B$1:$B$6230,0))))","v":""},null,{"$f":"IF(C668=\"\",NA(),MATCH($B668&$C668,'Smelter Look-up'!$J:$J,0))","v":{"$error":"#N/A"}},null,0,null,null,null,""]
[null,{"$f":"IF(LEN(A669)=0,\"\",INDEX('Smelter Look-up'!$A:$A,MATCH($A669,'Smelter Look-up'!$E:$E,0)))","v":""},{"$f":"IF(LEN(A669)=0,\"\",INDEX('Smelter Look-up'!$C:$C,MATCH($A669,'Smelter Look-up'!$E:$E,0)))","v":""},null,{"$f":"IF(ISERROR($V669),\"\",OFFSET('Smelter Look-up'!$D$4,$V669-4,0)&\"\")","v":""},{"$f":"IF(ISERROR($V669),\"\",OFFSET('Smelter Look-up'!$E$4,$V669-4,0))","v":""},{"$f":"IF(C669=$X$4,\"Enter smelter details\", IF(ISERROR($V669),\"\",OFFSET('Smelter Look-up'!$F$4,$V669-4,0)))","v":""},{"$f":"IF(ISERROR($V669),\"\",OFFSET('Smelter Look-up'!$G$4,$V669-4,0))","v":""},{"$f":"IF(ISERROR($V669),\"\",OFFSET('Smelter Look-up'!$H$4,$V669-4,0))","v":""},{"$f":"IF(ISERROR($V669),\"\",OFFSET('Smelter Look-up'!$I$4,$V669-4,0))","v":""},{"$nulls":7},{"$f":"IF(ISERROR($V669),\"\",OFFSET('Smelter Look-up'!$C$4,$V669-4,0)&\"\")","v":""},"",{"$f":"IF(B669=\"\",\"\",IF(ISERROR(MATCH($J669,SorP!$B$1:$B$6230,0)),\"\",INDIRECT(\"'SorP'!$A$\"&MATCH($J669,SorP!$B$1:$B$6230,0))))","v":""},null,{"$f":"IF(C669=\"\",NA(),MATCH($B669&$C669,'Smelter Look-up'!$J:$J,0))","v":{"$error":"#N/A"}},null,0,null,null,null,""]
[null,{"$f":"IF(LEN(A670)=0,\"\",INDEX('Smelter Look-up'!$A:$A,MATCH($A670,'Smelter Look-up'!$E:$E,0)))","v":""},{"$f":"IF(LEN(A670)=0,\"\",INDEX('Smelter Look-up'!$C:$C,MATCH($A670,'Smelter Look-up'!$E:$E,0)))","v":""},null,{"$f":"IF(ISERROR($V670),\"\",OFFSET('Smelter Look-up'!$D$4,$V670-4,0)&\"\")","v":""},{"$f":"IF(ISERROR($V670),\"\",OFFSET('Smelter Look-up'!$E$4,$V670-4,0))","v":""},{"$f":"IF(C670=$X$4,\"Enter smelter details\", IF(ISERROR($V670),\"\",OFFSET('Smelter Look-up'!$F$4,$V670-4,0)))","v":""},{"$f":"IF(ISERROR($V670),\"\",OFFSET('Smelter Look-up'!$G$4,$V670-4,0))","v":""},{"$f":"IF(ISERROR($V670),\"\",OFFSET('Smelter Look-up'!$H$4,$V670-4,0))","v":""},{"$f":"IF(ISERROR($V670),\"\",OFFSET('Smelter Look-up'!$I$4,$V670-4,0))","v":""},{"$nulls":7},{"$f":"IF(ISERROR($V670),\"\",OFFSET('Smelter Look-up'!$C$4,$V670-4,0)&\"\")","v":""},"",{"$f":"IF(B670=\"\",\"\",IF(ISERROR(MATCH($J670,SorP!$B$1:$B$6230,0)),\"\",INDIRECT(\"'SorP'!$A$\"&MATCH($J670,SorP!$B$1:$B$6230,0))))","v":""},null,{"$f":"IF(C670=\"\",NA(),MATCH($B670&$C670,'Smelter Look-up'!$J:$J,0))","v":{"$error":"#N/A"}},null,0,null,null,null,""]
[null,{"$f":"IF(LEN(A671)=0,\"\",INDEX('Smelter Look-up'!$A:$A,MATCH($A671,'Smelter Look-up'!$E:$E,0)))","v":""},{"$f":"IF(LEN(A671)=0,\"\",INDEX('Smelter Look-up'!$C:$C,MATCH($A671,'Smelter Look-up'!$E:$E,0)))","v":""},null,{"$f":"IF(ISERROR($V671),\"\",OFFSET('Smelter Look-up'!$D$4,$V671-4,0)&\"\")","v":""},{"$f":"IF(ISERROR($V671),\"\",OFFSET('Smelter Look-up'!$E$4,$V671-4,0))","v":""},{"$f":"IF(C671=$X$4,\"Enter smelter details\", IF(ISERROR($V671),\"\",OFFSET('Smelter Look-up'!$F$4,$V671-4,0)))","v":""},{"$f":"IF(ISERROR($V671),\"\",OFFSET('Smelter Look-up'!$G$4,$V671-4,0))","v":""},{"$f":"IF(ISERROR($V671),\"\",OFFSET('Smelter Look-up'!$H$4,$V671-4,0))","v":""},{"$f":"IF(ISERROR($V671),\"\",OFFSET('Smelter Look-up'!$I$4,$V671-4,0))","v":""},{"$nulls":7},{"$f":"IF(ISERROR($V671),\"\",OFFSET('Smelter Look-up'!$C$4,$V671-4,0)&\"\")","v":""},"",{"$f":"IF(B671=\"\",\"\",IF(ISERROR(MATCH($J671,SorP!$B$1:$B$6230,0)),\"\",INDIRECT(\"'SorP'!$A$\"&MATCH($J671,SorP!$B$1:$B$6230,0))))","v":""},null,{"$f":"IF(C671=\"\",NA(),MATCH($B671&$C671,'Smelter Look-up'!$J:$J,0))","v":{"$error":"#N/A"}},null,0,null,null,null,""]
[null,{"$f":"IF(LEN(A672)=0,\"\",INDEX('Smelter Look-up'!$A:$A,MATCH($A672,'Smelter Look-up'!$E:$E,0)))","v":""},{"$f":"IF(LEN(A672)=0,\"\",INDEX('Smelter Look-up'!$C:$C,MATCH($A672,'Smelter Look-up'!$E:$E,0)))","v":""},null,{"$f":"IF(ISERROR($V672),\"\",OFFSET('Smelter Look-up'!$D$4,$V672-4,0)&\"\")","v":""},{"$f":"IF(ISERROR($V672),\"\",OFFSET('Smelter Look-up'!$E$4,$V672-4,0))","v":""},{"$f":"IF(C672=$X$4,\"Enter smelter details\", IF(ISERROR($V672),\"\",OFFSET('Smelter Look-up'!$F$4,$V672-4,0)))","v":""},{"$f":"IF(ISERROR($V672),\"\",OFFSET('Smelter Look-up'!$G$4,$V672-4,0))","v":""},{"$f":"IF(ISERROR($V672),\"\",OFFSET('Smelter Look-up'!$H$4,$V672-4,0))","v":""},{"$f":"IF(ISERROR($V672),\"\",OFFSET('Smelter Look-up'!$I$4,$V672-4,0))","v":""},{"$nulls":7},{"$f":"IF(ISERROR($V672),\"\",OFFSET('Smelter Look-up'!$C$4,$V672-4,0)&\"\")","v":""},"",{"$f":"IF(B672=\"\",\"\",IF(ISERROR(MATCH($J672,SorP!$B$1:$B$6230,0)),\"\",INDIRECT(\"'SorP'!$A$\"&MATCH($J672,SorP!$B$1:$B$6230,0))))","v":""},null,{"$f":"IF(C672=\"\",NA(),MATCH($B672&$C672,'Smelter Look-up'!$J:$J,0))","v":{"$error":"#N/A"}},null,0,null,null,null,""]
[null,{"$f":"IF(LEN(A673)=0,\"\",INDEX('Smelter Look-up'!$A:$A,MATCH($A673,'Smelter Look-up'!$E:$E,0)))","v":""},{"$f":"IF(LEN(A673)=0,\"\",INDEX('Smelter Look-up'!$C:$C,MATCH($A673,'Smelter Look-up'!$E:$E,0)))","v":""},null,{"$f":"IF(ISERROR($V673),\"\",OFFSET('Smelter Look-up'!$D$4,$V673-4,0)&\"\")","v":""},{"$f":"IF(ISERROR($V673),\"\",OFFSET('Smelter Look-up'!$E$4,$V673-4,0))","v":""},{"$f":"IF(C673=$X$4,\"Enter smelter details\", IF(ISERROR($V673),\"\",OFFSET('Smelter Look-up'!$F$4,$V673-4,0)))","v":""},{"$f":"IF(ISERROR($V673),\"\",OFFSET('Smelter Look-up'!$G$4,$V673-4,0))","v":""},{"$f":"IF(ISERROR($V673),\"\",OFFSET('Smelter Look-up'!$H$4,$V673-4,0))","v":""},{"$f":"IF(ISERROR($V673),\"\",OFFSET('Smelter Look-up'!$I$4,$V673-4,0))","v":""},{"$nulls":7},{"$f":"IF(ISERROR($V673),\"\",OFFSET('Smelter Look-up'!$C$4,$V673-4,0)&\"\")","v":""},"",{"$f":"IF(B673=\"\",\"\",IF(ISERROR(MATCH($J673,SorP!$B$1:$B$6230,0)),\"\",INDIRECT(\"'SorP'!$A$\"&MATCH($J673,SorP!$B$1:$B$6230,0))))","v":""},null,{"$f":"IF(C673=\"\",NA(),MATCH($B673&$C673,'Smelter Look-up'!$J:$J,0))","v":{"$error":"#N/A"}},null,0,null,null,null,""]
[null,{"$f":"IF(LEN(A674)=0,\"\",INDEX('Smelter Look-up'!$A:$A,MATCH($A674,'Smelter Look-up'!$E:$E,0)))","v":""},{"$f":"IF(LEN(A674)=0,\"\",INDEX('Smelter Look-up'!$C:$C,MATCH($A674,'Smelter Look-up'!$E:$E,0)))","v":""},null,{"$f":"IF(ISERROR($V674),\"\",OFFSET('Smelter Look-up'!$D$4,$V674-4,0)&\"\")","v":""},{"$f":"IF(ISERROR($V674),\"\",OFFSET('Smelter Look-up'!$E$4,$V674-4,0))","v":""},{"$f":"IF(C674=$X$4,\"Enter smelter details\", IF(ISERROR($V674),\"\",OFFSET('Smelter Look-up'!$F$4,$V674-4,0)))","v":""},{"$f":"IF(ISERROR($V674),\"\",OFFSET('Smelter Look-up'!$G$4,$V674-4,0))","v":""},{"$f":"IF(ISERROR($V674),\"\",OFFSET('Smelter Look-up'!$H$4,$V674-4,0))","v":""},{"$f":"IF(ISERROR($V674),\"\",OFFSET('Smelter Look-up'!$I$4,$V674-4,0))","v":""},{"$nulls":7},{"$f":"IF(ISERROR($V674),\"\",OFFSET('Smelter Look-up'!$C$4,$V674-4,0)&\"\")","v":""},"",{"$f":"IF(B674=\"\",\"\",IF(ISERROR(MATCH($J674,SorP!$B$1:$B$6230,0)),\"\",INDIRECT(\"'SorP'!$A$\"&MATCH($J674,SorP!$B$1:$B$6230,0))))","v":""},null,{"$f":"IF(C674=\"\",NA(),MATCH($B674&$C674,'Smelter Look-up'!$J:$J,0))","v":{"$error":"#N/A"}},null,0,null,null,null,""]
[null,{"$f":"IF(LEN(A675)=0,\"\",INDEX('Smelter Look-up'!$A:$A,MATCH($A675,'Smelter Look-up'!$E:$E,0)))","v":""},{"$f":"IF(LEN(A675)=0,\"\",INDEX('Smelter Look-up'!$C:$C,MATCH($A675,'Smelter Look-up'!$E:$E,0)))","v":""},null,{"$f":"IF(ISERROR($V675),\"\",OFFSET('Smelter Look-up'!$D$4,$V675-4,0)&\"\")","v":""},{"$f":"IF(ISERROR($V675),\"\",OFFSET('Smelter Look-up'!$E$4,$V675-4,0))","v":""},{"$f":"IF(C675=$X$4,\"Enter smelter details\", IF(ISERROR($V675),\"\",OFFSET('Smelter Look-up'!$F$4,$V675-4,0)))","v":""},{"$f":"IF(ISERROR($V675),\"\",OFFSET('Smelter Look-up'!$G$4,$V675-4,0))","v":""},{"$f":"IF(ISERROR($V675),\"\",OFFSET('Smelter Look-up'!$H$4,$V675-4,0))","v":""},{"$f":"IF(ISERROR($V675),\"\",OFFSET('Smelter Look-up'!$I$4,$V675-4,0))","v":""},{"$nulls":7},{"$f":"IF(ISERROR($V675),\"\",OFFSET('Smelter Look-up'!$C$4,$V675-4,0)&\"\")","v":""},"",{"$f":"IF(B675=\"\",\"\",IF(ISERROR(MATCH($J675,SorP!$B$1:$B$6230,0)),\"\",INDIRECT(\"'SorP'!$A$\"&MATCH($J675,SorP!$B$1:$B$6230,0))))","v":""},null,{"$f":"IF(C675=\"\",NA(),MATCH($B675&$C675,'Smelter Look-up'!$J:$J,0))","v":{"$error":"#N/A"}},null,0,null,null,null,""]
[null,{"$f":"IF(LEN(A676)=0,\"\",INDEX('Smelter Look-up'!$A:$A,MATCH($A676,'Smelter Look-up'!$E:$E,0)))","v":""},{"$f":"IF(LEN(A676)=0,\"\",INDEX('Smelter Look-up'!$C:$C,MATCH($A676,'Smelter Look-up'!$E:$E,0)))","v":""},null,{"$f":"IF(ISERROR($V676),\"\",OFFSET('Smelter Look-up'!$D$4,$V676-4,0)&\"\")","v":""},{"$f":"IF(ISERROR($V676),\"\",OFFSET('Smelter Look-up'!$E$4,$V676-4,0))","v":""},{"$f":"IF(C676=$X$4,\"Enter smelter details\", IF(ISERROR($V676),\"\",OFFSET('Smelter Look-up'!$F$4,$V676-4,0)))","v":""},{"$f":"IF(ISERROR($V676),\"\",OFFSET('Smelter Look-up'!$G$4,$V676-4,0))","v":""},{"$f":"IF(ISERROR($V676),\"\",OFFSET('Smelter Look-up'!$H$4,$V676-4,0))","v":""},{"$f":"IF(ISERROR($V676),\"\",OFFSET('Smelter Look-up'!$I$4,$V676-4,0))","v":""},{"$nulls":7},{"$f":"IF(ISERROR($V676),\"\",OFFSET('Smelter Look-up'!$C$4,$V676-4,0)&\"\")","v":""},"",{"$f":"IF(B676=\"\",\"\",IF(ISERROR(MATCH($J676,SorP!$B$1:$B$6230,0)),\"\",INDIRECT(\"'SorP'!$A$\"&MATCH($J676,SorP!$B$1:$B$6230,0))))","v":""},null,{"$f":"IF(C676=\"\",NA(),MATCH($B676&$C676,'Smelter Look-up'!$J:$J,0))","v":{"$error":"#N/A"}},null,0,null,null,null,""]
[null,{"$f":"IF(LEN(A677)=0,\"\",INDEX('Smelter Look-up'!$A:$A,MATCH($A677,'Smelter Look-up'!$E:$E,0)))","v":""},{"$f":"IF(LEN(A677)=0,\"\",INDEX('Smelter Look-up'!$C:$C,MATCH($A677,'Smelter Look-up'!$E:$E,0)))","v":""},null,{"$f":"IF(ISERROR($V677),\"\",OFFSET('Smelter Look-up'!$D$4,$V677-4,0)&\"\")","v":""},{"$f":"IF(ISERROR($V677),\"\",OFFSET('Smelter Look-up'!$E$4,$V677-4,0))","v":""},{"$f":"IF(C677=$X$4,\"Enter smelter details\", IF(ISERROR($V677),\"\",OFFSET('Smelter Look-up'!$F$4,$V677-4,0)))","v":""},{"$f":"IF(ISERROR($V677),\"\",OFFSET('Smelter Look-up'!$G$4,$V677-4,0))","v":""},{"$f":"IF(ISERROR($V677),\"\",OFFSET('Smelter Look-up'!$H$4,$V677-4,0))","v":""},{"$f":"IF(ISERROR($V677),\"\",OFFSET('Smelter Look-up'!$I$4,$V677-4,0))","v":""},{"$nulls":7},{"$f":"IF(ISERROR($V677),\"\",OFFSET('Smelter Look-up'!$C$4,$V677-4,0)&\"\")","v":""},"",{"$f":"IF(B677=\"\",\"\",IF(ISERROR(MATCH($J677,SorP!$B$1:$B$6230,0)),\"\",INDIRECT(\"'SorP'!$A$\"&MATCH($J677,SorP!$B$1:$B$6230,0))))","v":""},null,{"$f":"IF(C677=\"\",NA(),MATCH($B677&$C677,'Smelter Look-up'!$J:$J,0))","v":{"$error":"#N/A"}},null,0,null,null,null,""]
[null,{"$f":"IF(LEN(A678)=0,\"\",INDEX('Smelter Look-up'!$A:$A,MATCH($A678,'Smelter Look-up'!$E:$E,0)))","v":""},{"$f":"IF(LEN(A678)=0,\"\",INDEX('Smelter Look-up'!$C:$C,MATCH($A678,'Smelter Look-up'!$E:$E,0)))","v":""},null,{"$f":"IF(ISERROR($V678),\"\",OFFSET('Smelter Look-up'!$D$4,$V678-4,0)&\"\")","v":""},{"$f":"IF(ISERROR($V678),\"\",OFFSET('Smelter Look-up'!$E$4,$V678-4,0))","v":""},{"$f":"IF(C678=$X$4,\"Enter smelter details\", IF(ISERROR($V678),\"\",OFFSET('Smelter Look-up'!$F$4,$V678-4,0)))","v":""},{"$f":"IF(ISERROR($V678),\"\",OFFSET('Smelter Look-up'!$G$4,$V678-4,0))","v":""},{"$f":"IF(ISERROR($V678),\"\",OFFSET('Smelter Look-up'!$H$4,$V678-4,0))","v":""},{"$f":"IF(ISERROR($V678),\"\",OFFSET('Smelter Look-up'!$I$4,$V678-4,0))","v":""},{"$nulls":7},{"$f":"IF(ISERROR($V678),\"\",OFFSET('Smelter Look-up'!$C$4,$V678-4,0)&\"\")","v":""},"",{"$f":"IF(B678=\"\",\"\",IF(ISERROR(MATCH($J678,SorP!$B$1:$B$6230,0)),\"\",INDIRECT(\"'SorP'!$A$\"&MATCH($J678,SorP!$B$1:$B$6230,0))))","v":""},null,{"$f":"IF(C678=\"\",NA(),MATCH($B678&$C678,'Smelter Look-up'!$J:$J,0))","v":{"$error":"#N/A"}},null,0,null,null,null,""]
[null,{"$f":"IF(LEN(A679)=0,\"\",INDEX('Smelter Look-up'!$A:$A,MATCH($A679,'Smelter Look-up'!$E:$E,0)))","v":""},{"$f":"IF(LEN(A679)=0,\"\",INDEX('Smelter Look-up'!$C:$C,MATCH($A679,'Smelter Look-up'!$E:$E,0)))","v":""},null,{"$f":"IF(ISERROR($V679),\"\",OFFSET('Smelter Look-up'!$D$4,$V679-4,0)&\"\")","v":""},{"$f":"IF(ISERROR($V679),\"\",OFFSET('Smelter Look-up'!$E$4,$V679-4,0))","v":""},{"$f":"IF(C679=$X$4,\"Enter smelter details\", IF(ISERROR($V679),\"\",OFFSET('Smelter Look-up'!$F$4,$V679-4,0)))","v":""},{"$f":"IF(ISERROR($V679),\"\",OFFSET('Smelter Look-up'!$G$4,$V679-4,0))","v":""},{"$f":"IF(ISERROR($V679),\"\",OFFSET('Smelter Look-up'!$H$4,$V679-4,0))","v":""},{"$f":"IF(ISERROR($V679),\"\",OFFSET('Smelter Look-up'!$I$4,$V679-4,0))","v":""},{"$nulls":7},{"$f":"IF(ISERROR($V679),\"\",OFFSET('Smelter Look-up'!$C$4,$V679-4,0)&\"\")","v":""},"",{"$f":"IF(B679=\"\",\"\",IF(ISERROR(MATCH($J679,SorP!$B$1:$B$6230,0)),\"\",INDIRECT(\"'SorP'!$A$\"&MATCH($J679,SorP!$B$1:$B$6230,0))))","v":""},null,{"$f":"IF(C679=\"\",NA(),MATCH($B679&$C679,'Smelter Look-up'!$J:$J,0))","v":{"$error":"#N/A"}},null,0,null,null,null,""]
[null,{"$f":"IF(LEN(A680)=0,\"\",INDEX('Smelter Look-up'!$A:$A,MATCH($A680,'Smelter Look-up'!$E:$E,0)))","v":""},{"$f":"IF(LEN(A680)=0,\"\",INDEX('Smelter Look-up'!$C:$C,MATCH($A680,'Smelter Look-up'!$E:$E,0)))","v":""},null,{"$f":"IF(ISERROR($V680),\"\",OFFSET('Smelter Look-up'!$D$4,$V680-4,0)&\"\")","v":""},{"$f":"IF(ISERROR($V680),\"\",OFFSET('Smelter Look-up'!$E$4,$V680-4,0))","v":""},{"$f":"IF(C680=$X$4,\"Enter smelter details\", IF(ISERROR($V680),\"\",OFFSET('Smelter Look-up'!$F$4,$V680-4,0)))","v":""},{"$f":"IF(ISERROR($V680),\"\",OFFSET('Smelter Look-up'!$G$4,$V680-4,0))","v":""},{"$f":"IF(ISERROR($V680),\"\",OFFSET('Smelter Look-up'!$H$4,$V680-4,0))","v":""},{"$f":"IF(ISERROR($V680),\"\",OFFSET('Smelter Look-up'!$I$4,$V680-4,0))","v":""},{"$nulls":7},{"$f":"IF(ISERROR($V680),\"\",OFFSET('Smelter Look-up'!$C$4,$V680-4,0)&\"\")","v":""},"",{"$f":"IF(B680=\"\",\"\",IF(ISERROR(MATCH($J680,SorP!$B$1:$B$6230,0)),\"\",INDIRECT(\"'SorP'!$A$\"&MATCH($J680,SorP!$B$1:$B$6230,0))))","v":""},null,{"$f":"IF(C680=\"\",NA(),MATCH($B680&$C680,'Smelter Look-up'!$J:$J,0))","v":{"$error":"#N/A"}},null,0,null,null,null,""]
[null,{"$f":"IF(LEN(A681)=0,\"\",INDEX('Smelter Look-up'!$A:$A,MATCH($A681,'Smelter Look-up'!$E:$E,0)))","v":""},{"$f":"IF(LEN(A681)=0,\"\",INDEX('Smelter Look-up'!$C:$C,MATCH($A681,'Smelter Look-up'!$E:$E,0)))","v":""},null,{"$f":"IF(ISERROR($V681),\"\",OFFSET('Smelter Look-up'!$D$4,$V681-4,0)&\"\")","v":""},{"$f":"IF(ISERROR($V681),\"\",OFFSET('Smelter Look-up'!$E$4,$V681-4,0))","v":""},{"$f":"IF(C681=$X$4,\"Enter smelter details\", IF(ISERROR($V681),\"\",OFFSET('Smelter Look-up'!$F$4,$V681-4,0)))","v":""},{"$f":"IF(ISERROR($V681),\"\",OFFSET('Smelter Look-up'!$G$4,$V681-4,0))","v":""},{"$f":"IF(ISERROR($V681),\"\",OFFSET('Smelter Look-up'!$H$4,$V681-4,0))","v":""},{"$f":"IF(ISERROR($V681),\"\",OFFSET('Smelter Look-up'!$I$4,$V681-4,0))","v":""},{"$nulls":7},{"$f":"IF(ISERROR($V681),\"\",OFFSET('Smelter Look-up'!$C$4,$V681-4,0)&\"\")","v":""},"",{"$f":"IF(B681=\"\",\"\",IF(ISERROR(MATCH($J681,SorP!$B$1:$B$6230,0)),\"\",INDIRECT(\"'SorP'!$A$\"&MATCH($J681,SorP!$B$1:$B$6230,0))))","v":""},null,{"$f":"IF(C681=\"\",NA(),MATCH($B681&$C681,'Smelter Look-up'!$J:$J,0))","v":{"$error":"#N/A"}},null,0,null,null,null,""]
[null,{"$f":"IF(LEN(A682)=0,\"\",INDEX('Smelter Look-up'!$A:$A,MATCH($A682,'Smelter Look-up'!$E:$E,0)))","v":""},{"$f":"IF(LEN(A682)=0,\"\",INDEX('Smelter Look-up'!$C:$C,MATCH($A682,'Smelter Look-up'!$E:$E,0)))","v":""},null,{"$f":"IF(ISERROR($V682),\"\",OFFSET('Smelter Look-up'!$D$4,$V682-4,0)&\"\")","v":""},{"$f":"IF(ISERROR($V682),\"\",OFFSET('Smelter Look-up'!$E$4,$V682-4,0))","v":""},{"$f":"IF(C682=$X$4,\"Enter smelter details\", IF(ISERROR($V682),\"\",OFFSET('Smelter Look-up'!$F$4,$V682-4,0)))","v":""},{"$f":"IF(ISERROR($V682),\"\",OFFSET('Smelter Look-up'!$G$4,$V682-4,0))","v":""},{"$f":"IF(ISERROR($V682),\"\",OFFSET('Smelter Look-up'!$H$4,$V682-4,0))","v":""},{"$f":"IF(ISERROR($V682),\"\",OFFSET('Smelter Look-up'!$I$4,$V682-4,0))","v":""},{"$nulls":7},{"$f":"IF(ISERROR($V682),\"\",OFFSET('Smelter Look-up'!$C$4,$V682-4,0)&\"\")","v":""},"",{"$f":"IF(B682=\"\",\"\",IF(ISERROR(MATCH($J682,SorP!$B$1:$B$6230,0)),\"\",INDIRECT(\"'SorP'!$A$\"&MATCH($J682,SorP!$B$1:$B$6230,0))))","v":""},null,{"$f":"IF(C682=\"\",NA(),MATCH($B682&$C682,'Smelter Look-up'!$J:$J,0))","v":{"$error":"#N/A"}},null,0,null,null,null,""]
[null,{"$f":"IF(LEN(A683)=0,\"\",INDEX('Smelter Look-up'!$A:$A,MATCH($A683,'Smelter Look-up'!$E:$E,0)))","v":""},{"$f":"IF(LEN(A683)=0,\"\",INDEX('Smelter Look-up'!$C:$C,MATCH($A683,'Smelter Look-up'!$E:$E,0)))","v":""},null,{"$f":"IF(ISERROR($V683),\"\",OFFSET('Smelter Look-up'!$D$4,$V683-4,0)&\"\")","v":""},{"$f":"IF(ISERROR($V683),\"\",OFFSET('Smelter Look-up'!$E$4,$V683-4,0))","v":""},{"$f":"IF(C683=$X$4,\"Enter smelter details\", IF(ISERROR($V683),\"\",OFFSET('Smelter Look-up'!$F$4,$V683-4,0)))","v":""},{"$f":"IF(ISERROR($V683),\"\",OFFSET('Smelter Look-up'!$G$4,$V683-4,0))","v":""},{"$f":"IF(ISERROR($V683),\"\",OFFSET('Smelter Look-up'!$H$4,$V683-4,0))","v":""},{"$f":"IF(ISERROR($V683),\"\",OFFSET('Smelter Look-up'!$I$4,$V683-4,0))","v":""},{"$nulls":7},{"$f":"IF(ISERROR($V683),\"\",OFFSET('Smelter Look-up'!$C$4,$V683-4,0)&\"\")","v":""},"",{"$f":"IF(B683=\"\",\"\",IF(ISERROR(MATCH($J683,SorP!$B$1:$B$6230,0)),\"\",INDIRECT(\"'SorP'!$A$\"&MATCH($J683,SorP!$B$1:$B$6230,0))))","v":""},null,{"$f":"IF(C683=\"\",NA(),MATCH($B683&$C683,'Smelter Look-up'!$J:$J,0))","v":{"$error":"#N/A"}},null,0,null,null,null,""]
[null,{"$f":"IF(LEN(A684)=0,\"\",INDEX('Smelter Look-up'!$A:$A,MATCH($A684,'Smelter Look-up'!$E:$E,0)))","v":""},{"$f":"IF(LEN(A684)=0,\"\",INDEX('Smelter Look-up'!$C:$C,MATCH($A684,'Smelter Look-up'!$E:$E,0)))","v":""},null,{"$f":"IF(ISERROR($V684),\"\",OFFSET('Smelter Look-up'!$D$4,$V684-4,0)&\"\")","v":""},{"$f":"IF(ISERROR($V684),\"\",OFFSET('Smelter Look-up'!$E$4,$V684-4,0))","v":""},{"$f":"IF(C684=$X$4,\"Enter smelter details\", IF(ISERROR($V684),\"\",OFFSET('Smelter Look-up'!$F$4,$V684-4,0)))","v":""},{"$f":"IF(ISERROR($V684),\"\",OFFSET('Smelter Look-up'!$G$4,$V684-4,0))","v":""},{"$f":"IF(ISERROR($V684),\"\",OFFSET('Smelter Look-up'!$H$4,$V684-4,0))","v":""},{"$f":"IF(ISERROR($V684),\"\",OFFSET('Smelter Look-up'!$I$4,$V684-4,0))","v":""},{"$nulls":7},{"$f":"IF(ISERROR($V684),\"\",OFFSET('Smelter Look-up'!$C$4,$V684-4,0)&\"\")","v":""},"",{"$f":"IF(B684=\"\",\"\",IF(ISERROR(MATCH($J684,SorP!$B$1:$B$6230,0)),\"\",INDIRECT(\"'SorP'!$A$\"&MATCH($J684,SorP!$B$1:$B$6230,0))))","v":""},null,{"$f":"IF(C684=\"\",NA(),MATCH($B684&$C684,'Smelter Look-up'!$J:$J,0))","v":{"$error":"#N/A"}},null,0,null,null,null,""]
[null,{"$f":"IF(LEN(A685)=0,\"\",INDEX('Smelter Look-up'!$A:$A,MATCH($A685,'Smelter Look-up'!$E:$E,0)))","v":""},{"$f":"IF(LEN(A685)=0,\"\",INDEX('Smelter Look-up'!$C:$C,MATCH($A685,'Smelter Look-up'!$E:$E,0)))","v":""},null,{"$f":"IF(ISERROR($V685),\"\",OFFSET('Smelter Look-up'!$D$4,$V685-4,0)&\"\")","v":""},{"$f":"IF(ISERROR($V685),\"\",OFFSET('Smelter Look-up'!$E$4,$V685-4,0))","v":""},{"$f":"IF(C685=$X$4,\"Enter smelter details\", IF(ISERROR($V685),\"\",OFFSET('Smelter Look-up'!$F$4,$V685-4,0)))","v":""},{"$f":"IF(ISERROR($V685),\"\",OFFSET('Smelter Look-up'!$G$4,$V685-4,0))","v":""},{"$f":"IF(ISERROR($V685),\"\",OFFSET('Smelter Look-up'!$H$4,$V685-4,0))","v":""},{"$f":"IF(ISERROR($V685),\"\",OFFSET('Smelter Look-up'!$I$4,$V685-4,0))","v":""},{"$nulls":7},{"$f":"IF(ISERROR($V685),\"\",OFFSET('Smelter Look-up'!$C$4,$V685-4,0)&\"\")","v":""},"",{"$f":"IF(B685=\"\",\"\",IF(ISERROR(MATCH($J685,SorP!$B$1:$B$6230,0)),\"\",INDIRECT(\"'SorP'!$A$\"&MATCH($J685,SorP!$B$1:$B$6230,0))))","v":""},null,{"$f":"IF(C685=\"\",NA(),MATCH($B685&$C685,'Smelter Look-up'!$J:$J,0))","v":{"$error":"#N/A"}},null,0,null,null,null,""]
[null,{"$f":"IF(LEN(A686)=0,\"\",INDEX('Smelter Look-up'!$A:$A,MATCH($A686,'Smelter Look-up'!$E:$E,0)))","v":""},{"$f":"IF(LEN(A686)=0,\"\",INDEX('Smelter Look-up'!$C:$C,MATCH($A686,'Smelter Look-up'!$E:$E,0)))","v":""},null,{"$f":"IF(ISERROR($V686),\"\",OFFSET('Smelter Look-up'!$D$4,$V686-4,0)&\"\")","v":""},{"$f":"IF(ISERROR($V686),\"\",OFFSET('Smelter Look-up'!$E$4,$V686-4,0))","v":""},{"$f":"IF(C686=$X$4,\"Enter smelter details\", IF(ISERROR($V686),\"\",OFFSET('Smelter Look-up'!$F$4,$V686-4,0)))","v":""},{"$f":"IF(ISERROR($V686),\"\",OFFSET('Smelter Look-up'!$G$4,$V686-4,0))","v":""},{"$f":"IF(ISERROR($V686),\"\",OFFSET('Smelter Look-up'!$H$4,$V686-4,0))","v":""},{"$f":"IF(ISERROR($V686),\"\",OFFSET('Smelter Look-up'!$I$4,$V686-4,0))","v":""},{"$nulls":7},{"$f":"IF(ISERROR($V686),\"\",OFFSET('Smelter Look-up'!$C$4,$V686-4,0)&\"\")","v":""},"",{"$f":"IF(B686=\"\",\"\",IF(ISERROR(MATCH($J686,SorP!$B$1:$B$6230,0)),\"\",INDIRECT(\"'SorP'!$A$\"&MATCH($J686,SorP!$B$1:$B$6230,0))))","v":""},null,{"$f":"IF(C686=\"\",NA(),MATCH($B686&$C686,'Smelter Look-up'!$J:$J,0))","v":{"$error":"#N/A"}},null,0,null,null,null,""]
[null,{"$f":"IF(LEN(A687)=0,\"\",INDEX('Smelter Look-up'!$A:$A,MATCH($A687,'Smelter Look-up'!$E:$E,0)))","v":""},{"$f":"IF(LEN(A687)=0,\"\",INDEX('Smelter Look-up'!$C:$C,MATCH($A687,'Smelter Look-up'!$E:$E,0)))","v":""},null,{"$f":"IF(ISERROR($V687),\"\",OFFSET('Smelter Look-up'!$D$4,$V687-4,0)&\"\")","v":""},{"$f":"IF(ISERROR($V687),\"\",OFFSET('Smelter Look-up'!$E$4,$V687-4,0))","v":""},{"$f":"IF(C687=$X$4,\"Enter smelter details\", IF(ISERROR($V687),\"\",OFFSET('Smelter Look-up'!$F$4,$V687-4,0)))","v":""},{"$f":"IF(ISERROR($V687),\"\",OFFSET('Smelter Look-up'!$G$4,$V687-4,0))","v":""},{"$f":"IF(ISERROR($V687),\"\",OFFSET('Smelter Look-up'!$H$4,$V687-4,0))","v":""},{"$f":"IF(ISERROR($V687),\"\",OFFSET('Smelter Look-up'!$I$4,$V687-4,0))","v":""},{"$nulls":7},{"$f":"IF(ISERROR($V687),\"\",OFFSET('Smelter Look-up'!$C$4,$V687-4,0)&\"\")","v":""},"",{"$f":"IF(B687=\"\",\"\",IF(ISERROR(MATCH($J687,SorP!$B$1:$B$6230,0)),\"\",INDIRECT(\"'SorP'!$A$\"&MATCH($J687,SorP!$B$1:$B$6230,0))))","v":""},null,{"$f":"IF(C687=\"\",NA(),MATCH($B687&$C687,'Smelter Look-up'!$J:$J,0))","v":{"$error":"#N/A"}},null,0,null,null,null,""]
[null,{"$f":"IF(LEN(A688)=0,\"\",INDEX('Smelter Look-up'!$A:$A,MATCH($A688,'Smelter Look-up'!$E:$E,0)))","v":""},{"$f":"IF(LEN(A688)=0,\"\",INDEX('Smelter Look-up'!$C:$C,MATCH($A688,'Smelter Look-up'!$E:$E,0)))","v":""},null,{"$f":"IF(ISERROR($V688),\"\",OFFSET('Smelter Look-up'!$D$4,$V688-4,0)&\"\")","v":""},{"$f":"IF(ISERROR($V688),\"\",OFFSET('Smelter Look-up'!$E$4,$V688-4,0))","v":""},{"$f":"IF(C688=$X$4,\"Enter smelter details\", IF(ISERROR($V688),\"\",OFFSET('Smelter Look-up'!$F$4,$V688-4,0)))","v":""},{"$f":"IF(ISERROR($V688),\"\",OFFSET('Smelter Look-up'!$G$4,$V688-4,0))","v":""},{"$f":"IF(ISERROR($V688),\"\",OFFSET('Smelter Look-up'!$H$4,$V688-4,0))","v":""},{"$f":"IF(ISERROR($V688),\"\",OFFSET('Smelter Look-up'!$I$4,$V688-4,0))","v":""},{"$nulls":7},{"$f":"IF(ISERROR($V688),\"\",OFFSET('Smelter Look-up'!$C$4,$V688-4,0)&\"\")","v":""},"",{"$f":"IF(B688=\"\",\"\",IF(ISERROR(MATCH($J688,SorP!$B$1:$B$6230,0)),\"\",INDIRECT(\"'SorP'!$A$\"&MATCH($J688,SorP!$B$1:$B$6230,0))))","v":""},null,{"$f":"IF(C688=\"\",NA(),MATCH($B688&$C688,'Smelter Look-up'!$J:$J,0))","v":{"$error":"#N/A"}},null,0,null,null,null,""]
[null,{"$f":"IF(LEN(A689)=0,\"\",INDEX('Smelter Look-up'!$A:$A,MATCH($A689,'Smelter Look-up'!$E:$E,0)))","v":""},{"$f":"IF(LEN(A689)=0,\"\",INDEX('Smelter Look-up'!$C:$C,MATCH($A689,'Smelter Look-up'!$E:$E,0)))","v":""},null,{"$f":"IF(ISERROR($V689),\"\",OFFSET('Smelter Look-up'!$D$4,$V689-4,0)&\"\")","v":""},{"$f":"IF(ISERROR($V689),\"\",OFFSET('Smelter Look-up'!$E$4,$V689-4,0))","v":""},{"$f":"IF(C689=$X$4,\"Enter smelter details\", IF(ISERROR($V689),\"\",OFFSET('Smelter Look-up'!$F$4,$V689-4,0)))","v":""},{"$f":"IF(ISERROR($V689),\"\",OFFSET('Smelter Look-up'!$G$4,$V689-4,0))","v":""},{"$f":"IF(ISERROR($V689),\"\",OFFSET('Smelter Look-up'!$H$4,$V689-4,0))","v":""},{"$f":"IF(ISERROR($V689),\"\",OFFSET('Smelter Look-up'!$I$4,$V689-4,0))","v":""},{"$nulls":7},{"$f":"IF(ISERROR($V689),\"\",OFFSET('Smelter Look-up'!$C$4,$V689-4,0)&\"\")","v":""},"",{"$f":"IF(B689=\"\",\"\",IF(ISERROR(MATCH($J689,SorP!$B$1:$B$6230,0)),\"\",INDIRECT(\"'SorP'!$A$\"&MATCH($J689,SorP!$B$1:$B$6230,0))))","v":""},null,{"$f":"IF(C689=\"\",NA(),MATCH($B689&$C689,'Smelter Look-up'!$J:$J,0))","v":{"$error":"#N/A"}},null,0,null,null,null,""]
[null,{"$f":"IF(LEN(A690)=0,\"\",INDEX('Smelter Look-up'!$A:$A,MATCH($A690,'Smelter Look-up'!$E:$E,0)))","v":""},{"$f":"IF(LEN(A690)=0,\"\",INDEX('Smelter Look-up'!$C:$C,MATCH($A690,'Smelter Look-up'!$E:$E,0)))","v":""},null,{"$f":"IF(ISERROR($V690),\"\",OFFSET('Smelter Look-up'!$D$4,$V690-4,0)&\"\")","v":""},{"$f":"IF(ISERROR($V690),\"\",OFFSET('Smelter Look-up'!$E$4,$V690-4,0))","v":""},{"$f":"IF(C690=$X$4,\"Enter smelter details\", IF(ISERROR($V690),\"\",OFFSET('Smelter Look-up'!$F$4,$V690-4,0)))","v":""},{"$f":"IF(ISERROR($V690),\"\",OFFSET('Smelter Look-up'!$G$4,$V690-4,0))","v":""},{"$f":"IF(ISERROR($V690),\"\",OFFSET('Smelter Look-up'!$H$4,$V690-4,0))","v":""},{"$f":"IF(ISERROR($V690),\"\",OFFSET('Smelter Look-up'!$I$4,$V690-4,0))","v":""},{"$nulls":7},{"$f":"IF(ISERROR($V690),\"\",OFFSET('Smelter Look-up'!$C$4,$V690-4,0)&\"\")","v":""},"",{"$f":"IF(B690=\"\",\"\",IF(ISERROR(MATCH($J690,SorP!$B$1:$B$6230,0)),\"\",INDIRECT(\"'SorP'!$A$\"&MATCH($J690,SorP!$B$1:$B$6230,0))))","v":""},null,{"$f":"IF(C690=\"\",NA(),MATCH($B690&$C690,'Smelter Look-up'!$J:$J,0))","v":{"$error":"#N/A"}},null,0,null,null,null,""]
[null,{"$f":"IF(LEN(A691)=0,\"\",INDEX('Smelter Look-up'!$A:$A,MATCH($A691,'Smelter Look-up'!$E:$E,0)))","v":""},{"$f":"IF(LEN(A691)=0,\"\",INDEX('Smelter Look-up'!$C:$C,MATCH($A691,'Smelter Look-up'!$E:$E,0)))","v":""},null,{"$f":"IF(ISERROR($V691),\"\",OFFSET('Smelter Look-up'!$D$4,$V691-4,0)&\"\")","v":""},{"$f":"IF(ISERROR($V691),\"\",OFFSET('Smelter Look-up'!$E$4,$V691-4,0))","v":""},{"$f":"IF(C691=$X$4,\"Enter smelter details\", IF(ISERROR($V691),\"\",OFFSET('Smelter Look-up'!$F$4,$V691-4,0)))","v":""},{"$f":"IF(ISERROR($V691),\"\",OFFSET('Smelter Look-up'!$G$4,$V691-4,0))","v":""},{"$f":"IF(ISERROR($V691),\"\",OFFSET('Smelter Look-up'!$H$4,$V691-4,0))","v":""},{"$f":"IF(ISERROR($V691),\"\",OFFSET('Smelter Look-up'!$I$4,$V691-4,0))","v":""},{"$nulls":7},{"$f":"IF(ISERROR($V691),\"\",OFFSET('Smelter Look-up'!$C$4,$V691-4,0)&\"\")","v":""},"",{"$f":"IF(B691=\"\",\"\",IF(ISERROR(MATCH($J691,SorP!$B$1:$B$6230,0)),\"\",INDIRECT(\"'SorP'!$A$\"&MATCH($J691,SorP!$B$1:$B$6230,0))))","v":""},null,{"$f":"IF(C691=\"\",NA(),MATCH($B691&$C691,'Smelter Look-up'!$J:$J,0))","v":{"$error":"#N/A"}},null,0,null,null,null,""]
[null,{"$f":"IF(LEN(A692)=0,\"\",INDEX('Smelter Look-up'!$A:$A,MATCH($A692,'Smelter Look-up'!$E:$E,0)))","v":""},{"$f":"IF(LEN(A692)=0,\"\",INDEX('Smelter Look-up'!$C:$C,MATCH($A692,'Smelter Look-up'!$E:$E,0)))","v":""},null,{"$f":"IF(ISERROR($V692),\"\",OFFSET('Smelter Look-up'!$D$4,$V692-4,0)&\"\")","v":""},{"$f":"IF(ISERROR($V692),\"\",OFFSET('Smelter Look-up'!$E$4,$V692-4,0))","v":""},{"$f":"IF(C692=$X$4,\"Enter smelter details\", IF(ISERROR($V692),\"\",OFFSET('Smelter Look-up'!$F$4,$V692-4,0)))","v":""},{"$f":"IF(ISERROR($V692),\"\",OFFSET('Smelter Look-up'!$G$4,$V692-4,0))","v":""},{"$f":"IF(ISERROR($V692),\"\",OFFSET('Smelter Look-up'!$H$4,$V692-4,0))","v":""},{"$f":"IF(ISERROR($V692),\"\",OFFSET('Smelter Look-up'!$I$4,$V692-4,0))","v":""},{"$nulls":7},{"$f":"IF(ISERROR($V692),\"\",OFFSET('Smelter Look-up'!$C$4,$V692-4,0)&\"\")","v":""},"",{"$f":"IF(B692=\"\",\"\",IF(ISERROR(MATCH($J692,SorP!$B$1:$B$6230,0)),\"\",INDIRECT(\"'SorP'!$A$\"&MATCH($J692,SorP!$B$1:$B$6230,0))))","v":""},null,{"$f":"IF(C692=\"\",NA(),MATCH($B692&$C692,'Smelter Look-up'!$J:$J,0))","v":{"$error":"#N/A"}},null,0,null,null,null,""]
[null,{"$f":"IF(LEN(A693)=0,\"\",INDEX('Smelter Look-up'!$A:$A,MATCH($A693,'Smelter Look-up'!$E:$E,0)))","v":""},{"$f":"IF(LEN(A693)=0,\"\",INDEX('Smelter Look-up'!$C:$C,MATCH($A693,'Smelter Look-up'!$E:$E,0)))","v":""},null,{"$f":"IF(ISERROR($V693),\"\",OFFSET('Smelter Look-up'!$D$4,$V693-4,0)&\"\")","v":""},{"$f":"IF(ISERROR($V693),\"\",OFFSET('Smelter Look-up'!$E$4,$V693-4,0))","v":""},{"$f":"IF(C693=$X$4,\"Enter smelter details\", IF(ISERROR($V693),\"\",OFFSET('Smelter Look-up'!$F$4,$V693-4,0)))","v":""},{"$f":"IF(ISERROR($V693),\"\",OFFSET('Smelter Look-up'!$G$4,$V693-4,0))","v":""},{"$f":"IF(ISERROR($V693),\"\",OFFSET('Smelter Look-up'!$H$4,$V693-4,0))","v":""},{"$f":"IF(ISERROR($V693),\"\",OFFSET('Smelter Look-up'!$I$4,$V693-4,0))","v":""},{"$nulls":7},{"$f":"IF(ISERROR($V693),\"\",OFFSET('Smelter Look-up'!$C$4,$V693-4,0)&\"\")","v":""},"",{"$f":"IF(B693=\"\",\"\",IF(ISERROR(MATCH($J693,SorP!$B$1:$B$6230,0)),\"\",INDIRECT(\"'SorP'!$A$\"&MATCH($J693,SorP!$B$1:$B$6230,0))))","v":""},null,{"$f":"IF(C693=\"\",NA(),MATCH($B693&$C693,'Smelter Look-up'!$J:$J,0))","v":{"$error":"#N/A"}},null,0,null,null,null,""]
[null,{"$f":"IF(LEN(A694)=0,\"\",INDEX('Smelter Look-up'!$A:$A,MATCH($A694,'Smelter Look-up'!$E:$E,0)))","v":""},{"$f":"IF(LEN(A694)=0,\"\",INDEX('Smelter Look-up'!$C:$C,MATCH($A694,'Smelter Look-up'!$E:$E,0)))","v":""},null,{"$f":"IF(ISERROR($V694),\"\",OFFSET('Smelter Look-up'!$D$4,$V694-4,0)&\"\")","v":""},{"$f":"IF(ISERROR($V694),\"\",OFFSET('Smelter Look-up'!$E$4,$V694-4,0))","v":""},{"$f":"IF(C694=$X$4,\"Enter smelter details\", IF(ISERROR($V694),\"\",OFFSET('Smelter Look-up'!$F$4,$V694-4,0)))","v":""},{"$f":"IF(ISERROR($V694),\"\",OFFSET('Smelter Look-up'!$G$4,$V694-4,0))","v":""},{"$f":"IF(ISERROR($V694),\"\",OFFSET('Smelter Look-up'!$H$4,$V694-4,0))","v":""},{"$f":"IF(ISERROR($V694),\"\",OFFSET('Smelter Look-up'!$I$4,$V694-4,0))","v":""},{"$nulls":7},{"$f":"IF(ISERROR($V694),\"\",OFFSET('Smelter Look-up'!$C$4,$V694-4,0)&\"\")","v":""},"",{"$f":"IF(B694=\"\",\"\",IF(ISERROR(MATCH($J694,SorP!$B$1:$B$6230,0)),\"\",INDIRECT(\"'SorP'!$A$\"&MATCH($J694,SorP!$B$1:$B$6230,0))))","v":""},null,{"$f":"IF(C694=\"\",NA(),MATCH($B694&$C694,'Smelter Look-up'!$J:$J,0))","v":{"$error":"#N/A"}},null,0,null,null,null,""]
[null,{"$f":"IF(LEN(A695)=0,\"\",INDEX('Smelter Look-up'!$A:$A,MATCH($A695,'Smelter Look-up'!$E:$E,0)))","v":""},{"$f":"IF(LEN(A695)=0,\"\",INDEX('Smelter Look-up'!$C:$C,MATCH($A695,'Smelter Look-up'!$E:$E,0)))","v":""},null,{"$f":"IF(ISERROR($V695),\"\",OFFSET('Smelter Look-up'!$D$4,$V695-4,0)&\"\")","v":""},{"$f":"IF(ISERROR($V695),\"\",OFFSET('Smelter Look-up'!$E$4,$V695-4,0))","v":""},{"$f":"IF(C695=$X$4,\"Enter smelter details\", IF(ISERROR($V695),\"\",OFFSET('Smelter Look-up'!$F$4,$V695-4,0)))","v":""},{"$f":"IF(ISERROR($V695),\"\",OFFSET('Smelter Look-up'!$G$4,$V695-4,0))","v":""},{"$f":"IF(ISERROR($V695),\"\",OFFSET('Smelter Look-up'!$H$4,$V695-4,0))","v":""},{"$f":"IF(ISERROR($V695),\"\",OFFSET('Smelter Look-up'!$I$4,$V695-4,0))","v":""},{"$nulls":7},{"$f":"IF(ISERROR($V695),\"\",OFFSET('Smelter Look-up'!$C$4,$V695-4,0)&\"\")","v":""},"",{"$f":"IF(B695=\"\",\"\",IF(ISERROR(MATCH($J695,SorP!$B$1:$B$6230,0)),\"\",INDIRECT(\"'SorP'!$A$\"&MATCH($J695,SorP!$B$1:$B$6230,0))))","v":""},null,{"$f":"IF(C695=\"\",NA(),MATCH($B695&$C695,'Smelter Look-up'!$J:$J,0))","v":{"$error":"#N/A"}},null,0,null,null,null,""]
[null,{"$f":"IF(LEN(A696)=0,\"\",INDEX('Smelter Look-up'!$A:$A,MATCH($A696,'Smelter Look-up'!$E:$E,0)))","v":""},{"$f":"IF(LEN(A696)=0,\"\",INDEX('Smelter Look-up'!$C:$C,MATCH($A696,'Smelter Look-up'!$E:$E,0)))","v":""},null,{"$f":"IF(ISERROR($V696),\"\",OFFSET('Smelter Look-up'!$D$4,$V696-4,0)&\"\")","v":""},{"$f":"IF(ISERROR($V696),\"\",OFFSET('Smelter Look-up'!$E$4,$V696-4,0))","v":""},{"$f":"IF(C696=$X$4,\"Enter smelter details\", IF(ISERROR($V696),\"\",OFFSET('Smelter Look-up'!$F$4,$V696-4,0)))","v":""},{"$f":"IF(ISERROR($V696),\"\",OFFSET('Smelter Look-up'!$G$4,$V696-4,0))","v":""},{"$f":"IF(ISERROR($V696),\"\",OFFSET('Smelter Look-up'!$H$4,$V696-4,0))","v":""},{"$f":"IF(ISERROR($V696),\"\",OFFSET('Smelter Look-up'!$I$4,$V696-4,0))","v":""},{"$nulls":7},{"$f":"IF(ISERROR($V696),\"\",OFFSET('Smelter Look-up'!$C$4,$V696-4,0)&\"\")","v":""},"",{"$f":"IF(B696=\"\",\"\",IF(ISERROR(MATCH($J696,SorP!$B$1:$B$6230,0)),\"\",INDIRECT(\"'SorP'!$A$\"&MATCH($J696,SorP!$B$1:$B$6230,0))))","v":""},null,{"$f":"IF(C696=\"\",NA(),MATCH($B696&$C696,'Smelter Look-up'!$J:$J,0))","v":{"$error":"#N/A"}},null,0,null,null,null,""]
[null,{"$f":"IF(LEN(A697)=0,\"\",INDEX('Smelter Look-up'!$A:$A,MATCH($A697,'Smelter Look-up'!$E:$E,0)))","v":""},{"$f":"IF(LEN(A697)=0,\"\",INDEX('Smelter Look-up'!$C:$C,MATCH($A697,'Smelter Look-up'!$E:$E,0)))","v":""},null,{"$f":"IF(ISERROR($V697),\"\",OFFSET('Smelter Look-up'!$D$4,$V697-4,0)&\"\")","v":""},{"$f":"IF(ISERROR($V697),\"\",OFFSET('Smelter Look-up'!$E$4,$V697-4,0))","v":""},{"$f":"IF(C697=$X$4,\"Enter smelter details\", IF(ISERROR($V697),\"\",OFFSET('Smelter Look-up'!$F$4,$V697-4,0)))","v":""},{"$f":"IF(ISERROR($V697),\"\",OFFSET('Smelter Look-up'!$G$4,$V697-4,0))","v":""},{"$f":"IF(ISERROR($V697),\"\",OFFSET('Smelter Look-up'!$H$4,$V697-4,0))","v":""},{"$f":"IF(ISERROR($V697),\"\",OFFSET('Smelter Look-up'!$I$4,$V697-4,0))","v":""},{"$nulls":7},{"$f":"IF(ISERROR($V697),\"\",OFFSET('Smelter Look-up'!$C$4,$V697-4,0)&\"\")","v":""},"",{"$f":"IF(B697=\"\",\"\",IF(ISERROR(MATCH($J697,SorP!$B$1:$B$6230,0)),\"\",INDIRECT(\"'SorP'!$A$\"&MATCH($J697,SorP!$B$1:$B$6230,0))))","v":""},null,{"$f":"IF(C697=\"\",NA(),MATCH($B697&$C697,'Smelter Look-up'!$J:$J,0))","v":{"$error":"#N/A"}},null,0,null,null,null,""]
[null,{"$f":"IF(LEN(A698)=0,\"\",INDEX('Smelter Look-up'!$A:$A,MATCH($A698,'Smelter Look-up'!$E:$E,0)))","v":""},{"$f":"IF(LEN(A698)=0,\"\",INDEX('Smelter Look-up'!$C:$C,MATCH($A698,'Smelter Look-up'!$E:$E,0)))","v":""},null,{"$f":"IF(ISERROR($V698),\"\",OFFSET('Smelter Look-up'!$D$4,$V698-4,0)&\"\")","v":""},{"$f":"IF(ISERROR($V698),\"\",OFFSET('Smelter Look-up'!$E$4,$V698-4,0))","v":""},{"$f":"IF(C698=$X$4,\"Enter smelter details\", IF(ISERROR($V698),\"\",OFFSET('Smelter Look-up'!$F$4,$V698-4,0)))","v":""},{"$f":"IF(ISERROR($V698),\"\",OFFSET('Smelter Look-up'!$G$4,$V698-4,0))","v":""},{"$f":"IF(ISERROR($V698),\"\",OFFSET('Smelter Look-up'!$H$4,$V698-4,0))","v":""},{"$f":"IF(ISERROR($V698),\"\",OFFSET('Smelter Look-up'!$I$4,$V698-4,0))","v":""},{"$nulls":7},{"$f":"IF(ISERROR($V698),\"\",OFFSET('Smelter Look-up'!$C$4,$V698-4,0)&\"\")","v":""},"",{"$f":"IF(B698=\"\",\"\",IF(ISERROR(MATCH($J698,SorP!$B$1:$B$6230,0)),\"\",INDIRECT(\"'SorP'!$A$\"&MATCH($J698,SorP!$B$1:$B$6230,0))))","v":""},null,{"$f":"IF(C698=\"\",NA(),MATCH($B698&$C698,'Smelter Look-up'!$J:$J,0))","v":{"$error":"#N/A"}},null,0,null,null,null,""]
[null,{"$f":"IF(LEN(A699)=0,\"\",INDEX('Smelter Look-up'!$A:$A,MATCH($A699,'Smelter Look-up'!$E:$E,0)))","v":""},{"$f":"IF(LEN(A699)=0,\"\",INDEX('Smelter Look-up'!$C:$C,MATCH($A699,'Smelter Look-up'!$E:$E,0)))","v":""},null,{"$f":"IF(ISERROR($V699),\"\",OFFSET('Smelter Look-up'!$D$4,$V699-4,0)&\"\")","v":""},{"$f":"IF(ISERROR($V699),\"\",OFFSET('Smelter Look-up'!$E$4,$V699-4,0))","v":""},{"$f":"IF(C699=$X$4,\"Enter smelter details\", IF(ISERROR($V699),\"\",OFFSET('Smelter Look-up'!$F$4,$V699-4,0)))","v":""},{"$f":"IF(ISERROR($V699),\"\",OFFSET('Smelter Look-up'!$G$4,$V699-4,0))","v":""},{"$f":"IF(ISERROR($V699),\"\",OFFSET('Smelter Look-up'!$H$4,$V699-4,0))","v":""},{"$f":"IF(ISERROR($V699),\"\",OFFSET('Smelter Look-up'!$I$4,$V699-4,0))","v":""},{"$nulls":7},{"$f":"IF(ISERROR($V699),\"\",OFFSET('Smelter Look-up'!$C$4,$V699-4,0)&\"\")","v":""},{"$f":"IF(B699=\"\",\"\",IF(ISERROR(MATCH($E699,CL,0)),\"Unknown\",INDIRECT(\"'C'!$A$\"&MATCH($E699,CL,0)+1)))","v":""},{"$f":"IF(B699=\"\",\"\",IF(ISERROR(MATCH($J699,SorP!$B$1:$B$6230,0)),\"\",INDIRECT(\"'SorP'!$A$\"&MATCH($J699,SorP!$B$1:$B$6230,0))))","v":""},null,{"$f":"IF(C699=\"\",NA(),MATCH($B699&$C699,'Smelter Look-up'!$J:$J,0))","v":{"$error":"#N/A"}},null,{"$f":"IF(AND(C699=\"Smelter not listed\",OR(LEN(D699)=0,LEN(E699)=0)),1,0)","v":0},null,null,null,{"$f":"B699&C699","v":""}]
[null,{"$f":"IF(LEN(A700)=0,\"\",INDEX('Smelter Look-up'!$A:$A,MATCH($A700,'Smelter Look-up'!$E:$E,0)))","v":""},{"$f":"IF(LEN(A700)=0,\"\",INDEX('Smelter Look-up'!$C:$C,MATCH($A700,'Smelter Look-up'!$E:$E,0)))","v":""},null,{"$f":"IF(ISERROR($V700),\"\",OFFSET('Smelter Look-up'!$D$4,$V700-4,0)&\"\")","v":""},{"$f":"IF(ISERROR($V700),\"\",OFFSET('Smelter Look-up'!$E$4,$V700-4,0))","v":""},{"$f":"IF(C700=$X$4,\"Enter smelter details\", IF(ISERROR($V700),\"\",OFFSET('Smelter Look-up'!$F$4,$V700-4,0)))","v":""},{"$f":"IF(ISERROR($V700),\"\",OFFSET('Smelter Look-up'!$G$4,$V700-4,0))","v":""},{"$f":"IF(ISERROR($V700),\"\",OFFSET('Smelter Look-up'!$H$4,$V700-4,0))","v":""},{"$f":"IF(ISERROR($V700),\"\",OFFSET('Smelter Look-up'!$I$4,$V700-4,0))","v":""},{"$nulls":7},{"$f":"IF(ISERROR($V700),\"\",OFFSET('Smelter Look-up'!$C$4,$V700-4,0)&\"\")","v":""},"",{"$f":"IF(B700=\"\",\"\",IF(ISERROR(MATCH($J700,SorP!$B$1:$B$6230,0)),\"\",INDIRECT(\"'SorP'!$A$\"&MATCH($J700,SorP!$B$1:$B$6230,0))))","v":""},null,{"$f":"IF(C700=\"\",NA(),MATCH($B700&$C700,'Smelter Look-up'!$J:$J,0))","v":{"$error":"#N/A"}},null,0,null,null,null,""]
[null,{"$f":"IF(LEN(A701)=0,\"\",INDEX('Smelter Look-up'!$A:$A,MATCH($A701,'Smelter Look-up'!$E:$E,0)))","v":""},{"$f":"IF(LEN(A701)=0,\"\",INDEX('Smelter Look-up'!$C:$C,MATCH($A701,'Smelter Look-up'!$E:$E,0)))","v":""},null,{"$f":"IF(ISERROR($V701),\"\",OFFSET('Smelter Look-up'!$D$4,$V701-4,0)&\"\")","v":""},{"$f":"IF(ISERROR($V701),\"\",OFFSET('Smelter Look-up'!$E$4,$V701-4,0))","v":""},{"$f":"IF(C701=$X$4,\"Enter smelter details\", IF(ISERROR($V701),\"\",OFFSET('Smelter Look-up'!$F$4,$V701-4,0)))","v":""},{"$f":"IF(ISERROR($V701),\"\",OFFSET('Smelter Look-up'!$G$4,$V701-4,0))","v":""},{"$f":"IF(ISERROR($V701),\"\",OFFSET('Smelter Look-up'!$H$4,$V701-4,0))","v":""},{"$f":"IF(ISERROR($V701),\"\",OFFSET('Smelter Look-up'!$I$4,$V701-4,0))","v":""},{"$nulls":7},{"$f":"IF(ISERROR($V701),\"\",OFFSET('Smelter Look-up'!$C$4,$V701-4,0)&\"\")","v":""},"",{"$f":"IF(B701=\"\",\"\",IF(ISERROR(MATCH($J701,SorP!$B$1:$B$6230,0)),\"\",INDIRECT(\"'SorP'!$A$\"&MATCH($J701,SorP!$B$1:$B$6230,0))))","v":""},null,{"$f":"IF(C701=\"\",NA(),MATCH($B701&$C701,'Smelter Look-up'!$J:$J,0))","v":{"$error":"#N/A"}},null,0,null,null,null,""]
[null,{"$f":"IF(LEN(A702)=0,\"\",INDEX('Smelter Look-up'!$A:$A,MATCH($A702,'Smelter Look-up'!$E:$E,0)))","v":""},{"$f":"IF(LEN(A702)=0,\"\",INDEX('Smelter Look-up'!$C:$C,MATCH($A702,'Smelter Look-up'!$E:$E,0)))","v":""},null,{"$f":"IF(ISERROR($V702),\"\",OFFSET('Smelter Look-up'!$D$4,$V702-4,0)&\"\")","v":""},{"$f":"IF(ISERROR($V702),\"\",OFFSET('Smelter Look-up'!$E$4,$V702-4,0))","v":""},{"$f":"IF(C702=$X$4,\"Enter smelter details\", IF(ISERROR($V702),\"\",OFFSET('Smelter Look-up'!$F$4,$V702-4,0)))","v":""},{"$f":"IF(ISERROR($V702),\"\",OFFSET('Smelter Look-up'!$G$4,$V702-4,0))","v":""},{"$f":"IF(ISERROR($V702),\"\",OFFSET('Smelter Look-up'!$H$4,$V702-4,0))","v":""},{"$f":"IF(ISERROR($V702),\"\",OFFSET('Smelter Look-up'!$I$4,$V702-4,0))","v":""},{"$nulls":7},{"$f":"IF(ISERROR($V702),\"\",OFFSET('Smelter Look-up'!$C$4,$V702-4,0)&\"\")","v":""},"",{"$f":"IF(B702=\"\",\"\",IF(ISERROR(MATCH($J702,SorP!$B$1:$B$6230,0)),\"\",INDIRECT(\"'SorP'!$A$\"&MATCH($J702,SorP!$B$1:$B$6230,0))))","v":""},null,{"$f":"IF(C702=\"\",NA(),MATCH($B702&$C702,'Smelter Look-up'!$J:$J,0))","v":{"$error":"#N/A"}},null,0,null,null,null,""]
[null,{"$f":"IF(LEN(A703)=0,\"\",INDEX('Smelter Look-up'!$A:$A,MATCH($A703,'Smelter Look-up'!$E:$E,0)))","v":""},{"$f":"IF(LEN(A703)=0,\"\",INDEX('Smelter Look-up'!$C:$C,MATCH($A703,'Smelter Look-up'!$E:$E,0)))","v":""},null,{"$f":"IF(ISERROR($V703),\"\",OFFSET('Smelter Look-up'!$D$4,$V703-4,0)&\"\")","v":""},{"$f":"IF(ISERROR($V703),\"\",OFFSET('Smelter Look-up'!$E$4,$V703-4,0))","v":""},{"$f":"IF(C703=$X$4,\"Enter smelter details\", IF(ISERROR($V703),\"\",OFFSET('Smelter Look-up'!$F$4,$V703-4,0)))","v":""},{"$f":"IF(ISERROR($V703),\"\",OFFSET('Smelter Look-up'!$G$4,$V703-4,0))","v":""},{"$f":"IF(ISERROR($V703),\"\",OFFSET('Smelter Look-up'!$H$4,$V703-4,0))","v":""},{"$f":"IF(ISERROR($V703),\"\",OFFSET('Smelter Look-up'!$I$4,$V703-4,0))","v":""},{"$nulls":7},{"$f":"IF(ISERROR($V703),\"\",OFFSET('Smelter Look-up'!$C$4,$V703-4,0)&\"\")","v":""},"",{"$f":"IF(B703=\"\",\"\",IF(ISERROR(MATCH($J703,SorP!$B$1:$B$6230,0)),\"\",INDIRECT(\"'SorP'!$A$\"&MATCH($J703,SorP!$B$1:$B$6230,0))))","v":""},null,{"$f":"IF(C703=\"\",NA(),MATCH($B703&$C703,'Smelter Look-up'!$J:$J,0))","v":{"$error":"#N/A"}},null,0,null,null,null,""]
[null,{"$f":"IF(LEN(A704)=0,\"\",INDEX('Smelter Look-up'!$A:$A,MATCH($A704,'Smelter Look-up'!$E:$E,0)))","v":""},{"$f":"IF(LEN(A704)=0,\"\",INDEX('Smelter Look-up'!$C:$C,MATCH($A704,'Smelter Look-up'!$E:$E,0)))","v":""},null,{"$f":"IF(ISERROR($V704),\"\",OFFSET('Smelter Look-up'!$D$4,$V704-4,0)&\"\")","v":""},{"$f":"IF(ISERROR($V704),\"\",OFFSET('Smelter Look-up'!$E$4,$V704-4,0))","v":""},{"$f":"IF(C704=$X$4,\"Enter smelter details\", IF(ISERROR($V704),\"\",OFFSET('Smelter Look-up'!$F$4,$V704-4,0)))","v":""},{"$f":"IF(ISERROR($V704),\"\",OFFSET('Smelter Look-up'!$G$4,$V704-4,0))","v":""},{"$f":"IF(ISERROR($V704),\"\",OFFSET('Smelter Look-up'!$H$4,$V704-4,0))","v":""},{"$f":"IF(ISERROR($V704),\"\",OFFSET('Smelter Look-up'!$I$4,$V704-4,0))","v":""},{"$nulls":7},{"$f":"IF(ISERROR($V704),\"\",OFFSET('Smelter Look-up'!$C$4,$V704-4,0)&\"\")","v":""},"",{"$f":"IF(B704=\"\",\"\",IF(ISERROR(MATCH($J704,SorP!$B$1:$B$6230,0)),\"\",INDIRECT(\"'SorP'!$A$\"&MATCH($J704,SorP!$B$1:$B$6230,0))))","v":""},null,{"$f":"IF(C704=\"\",NA(),MATCH($B704&$C704,'Smelter Look-up'!$J:$J,0))","v":{"$error":"#N/A"}},null,0,null,null,null,""]
[null,{"$f":"IF(LEN(A705)=0,\"\",INDEX('Smelter Look-up'!$A:$A,MATCH($A705,'Smelter Look-up'!$E:$E,0)))","v":""},{"$f":"IF(LEN(A705)=0,\"\",INDEX('Smelter Look-up'!$C:$C,MATCH($A705,'Smelter Look-up'!$E:$E,0)))","v":""},null,{"$f":"IF(ISERROR($V705),\"\",OFFSET('Smelter Look-up'!$D$4,$V705-4,0)&\"\")","v":""},{"$f":"IF(ISERROR($V705),\"\",OFFSET('Smelter Look-up'!$E$4,$V705-4,0))","v":""},{"$f":"IF(C705=$X$4,\"Enter smelter details\", IF(ISERROR($V705),\"\",OFFSET('Smelter Look-up'!$F$4,$V705-4,0)))","v":""},{"$f":"IF(ISERROR($V705),\"\",OFFSET('Smelter Look-up'!$G$4,$V705-4,0))","v":""},{"$f":"IF(ISERROR($V705),\"\",OFFSET('Smelter Look-up'!$H$4,$V705-4,0))","v":""},{"$f":"IF(ISERROR($V705),\"\",OFFSET('Smelter Look-up'!$I$4,$V705-4,0))","v":""},{"$nulls":7},{"$f":"IF(ISERROR($V705),\"\",OFFSET('Smelter Look-up'!$C$4,$V705-4,0)&\"\")","v":""},"",{"$f":"IF(B705=\"\",\"\",IF(ISERROR(MATCH($J705,SorP!$B$1:$B$6230,0)),\"\",INDIRECT(\"'SorP'!$A$\"&MATCH($J705,SorP!$B$1:$B$6230,0))))","v":""},null,{"$f":"IF(C705=\"\",NA(),MATCH($B705&$C705,'Smelter Look-up'!$J:$J,0))","v":{"$error":"#N/A"}},null,0,null,null,null,""]
[null,{"$f":"IF(LEN(A706)=0,\"\",INDEX('Smelter Look-up'!$A:$A,MATCH($A706,'Smelter Look-up'!$E:$E,0)))","v":""},{"$f":"IF(LEN(A706)=0,\"\",INDEX('Smelter Look-up'!$C:$C,MATCH($A706,'Smelter Look-up'!$E:$E,0)))","v":""},null,{"$f":"IF(ISERROR($V706),\"\",OFFSET('Smelter Look-up'!$D$4,$V706-4,0)&\"\")","v":""},{"$f":"IF(ISERROR($V706),\"\",OFFSET('Smelter Look-up'!$E$4,$V706-4,0))","v":""},{"$f":"IF(C706=$X$4,\"Enter smelter details\", IF(ISERROR($V706),\"\",OFFSET('Smelter Look-up'!$F$4,$V706-4,0)))","v":""},{"$f":"IF(ISERROR($V706),\"\",OFFSET('Smelter Look-up'!$G$4,$V706-4,0))","v":""},{"$f":"IF(ISERROR($V706),\"\",OFFSET('Smelter Look-up'!$H$4,$V706-4,0))","v":""},{"$f":"IF(ISERROR($V706),\"\",OFFSET('Smelter Look-up'!$I$4,$V706-4,0))","v":""},{"$nulls":7},{"$f":"IF(ISERROR($V706),\"\",OFFSET('Smelter Look-up'!$C$4,$V706-4,0)&\"\")","v":""},"",{"$f":"IF(B706=\"\",\"\",IF(ISERROR(MATCH($J706,SorP!$B$1:$B$6230,0)),\"\",INDIRECT(\"'SorP'!$A$\"&MATCH($J706,SorP!$B$1:$B$6230,0))))","v":""},null,{"$f":"IF(C706=\"\",NA(),MATCH($B706&$C706,'Smelter Look-up'!$J:$J,0))","v":{"$error":"#N/A"}},null,0,null,null,null,""]
[null,{"$f":"IF(LEN(A707)=0,\"\",INDEX('Smelter Look-up'!$A:$A,MATCH($A707,'Smelter Look-up'!$E:$E,0)))","v":""},{"$f":"IF(LEN(A707)=0,\"\",INDEX('Smelter Look-up'!$C:$C,MATCH($A707,'Smelter Look-up'!$E:$E,0)))","v":""},null,{"$f":"IF(ISERROR($V707),\"\",OFFSET('Smelter Look-up'!$D$4,$V707-4,0)&\"\")","v":""},{"$f":"IF(ISERROR($V707),\"\",OFFSET('Smelter Look-up'!$E$4,$V707-4,0))","v":""},{"$f":"IF(C707=$X$4,\"Enter smelter details\", IF(ISERROR($V707),\"\",OFFSET('Smelter Look-up'!$F$4,$V707-4,0)))","v":""},{"$f":"IF(ISERROR($V707),\"\",OFFSET('Smelter Look-up'!$G$4,$V707-4,0))","v":""},{"$f":"IF(ISERROR($V707),\"\",OFFSET('Smelter Look-up'!$H$4,$V707-4,0))","v":""},{"$f":"IF(ISERROR($V707),\"\",OFFSET('Smelter Look-up'!$I$4,$V707-4,0))","v":""},{"$nulls":7},{"$f":"IF(ISERROR($V707),\"\",OFFSET('Smelter Look-up'!$C$4,$V707-4,0)&\"\")","v":""},"",{"$f":"IF(B707=\"\",\"\",IF(ISERROR(MATCH($J707,SorP!$B$1:$B$6230,0)),\"\",INDIRECT(\"'SorP'!$A$\"&MATCH($J707,SorP!$B$1:$B$6230,0))))","v":""},null,{"$f":"IF(C707=\"\",NA(),MATCH($B707&$C707,'Smelter Look-up'!$J:$J,0))","v":{"$error":"#N/A"}},null,0,null,null,null,""]
[null,{"$f":"IF(LEN(A708)=0,\"\",INDEX('Smelter Look-up'!$A:$A,MATCH($A708,'Smelter Look-up'!$E:$E,0)))","v":""},{"$f":"IF(LEN(A708)=0,\"\",INDEX('Smelter Look-up'!$C:$C,MATCH($A708,'Smelter Look-up'!$E:$E,0)))","v":""},null,{"$f":"IF(ISERROR($V708),\"\",OFFSET('Smelter Look-up'!$D$4,$V708-4,0)&\"\")","v":""},{"$f":"IF(ISERROR($V708),\"\",OFFSET('Smelter Look-up'!$E$4,$V708-4,0))","v":""},{"$f":"IF(C708=$X$4,\"Enter smelter details\", IF(ISERROR($V708),\"\",OFFSET('Smelter Look-up'!$F$4,$V708-4,0)))","v":""},{"$f":"IF(ISERROR($V708),\"\",OFFSET('Smelter Look-up'!$G$4,$V708-4,0))","v":""},{"$f":"IF(ISERROR($V708),\"\",OFFSET('Smelter Look-up'!$H$4,$V708-4,0))","v":""},{"$f":"IF(ISERROR($V708),\"\",OFFSET('Smelter Look-up'!$I$4,$V708-4,0))","v":""},{"$nulls":7},{"$f":"IF(ISERROR($V708),\"\",OFFSET('Smelter Look-up'!$C$4,$V708-4,0)&\"\")","v":""},"",{"$f":"IF(B708=\"\",\"\",IF(ISERROR(MATCH($J708,SorP!$B$1:$B$6230,0)),\"\",INDIRECT(\"'SorP'!$A$\"&MATCH($J708,SorP!$B$1:$B$6230,0))))","v":""},null,{"$f":"IF(C708=\"\",NA(),MATCH($B708&$C708,'Smelter Look-up'!$J:$J,0))","v":{"$error":"#N/A"}},null,0,null,null,null,""]
[null,{"$f":"IF(LEN(A709)=0,\"\",INDEX('Smelter Look-up'!$A:$A,MATCH($A709,'Smelter Look-up'!$E:$E,0)))","v":""},{"$f":"IF(LEN(A709)=0,\"\",INDEX('Smelter Look-up'!$C:$C,MATCH($A709,'Smelter Look-up'!$E:$E,0)))","v":""},null,{"$f":"IF(ISERROR($V709),\"\",OFFSET('Smelter Look-up'!$D$4,$V709-4,0)&\"\")","v":""},{"$f":"IF(ISERROR($V709),\"\",OFFSET('Smelter Look-up'!$E$4,$V709-4,0))","v":""},{"$f":"IF(C709=$X$4,\"Enter smelter details\", IF(ISERROR($V709),\"\",OFFSET('Smelter Look-up'!$F$4,$V709-4,0)))","v":""},{"$f":"IF(ISERROR($V709),\"\",OFFSET('Smelter Look-up'!$G$4,$V709-4,0))","v":""},{"$f":"IF(ISERROR($V709),\"\",OFFSET('Smelter Look-up'!$H$4,$V709-4,0))","v":""},{"$f":"IF(ISERROR($V709),\"\",OFFSET('Smelter Look-up'!$I$4,$V709-4,0))","v":""},{"$nulls":7},{"$f":"IF(ISERROR($V709),\"\",OFFSET('Smelter Look-up'!$C$4,$V709-4,0)&\"\")","v":""},"",{"$f":"IF(B709=\"\",\"\",IF(ISERROR(MATCH($J709,SorP!$B$1:$B$6230,0)),\"\",INDIRECT(\"'SorP'!$A$\"&MATCH($J709,SorP!$B$1:$B$6230,0))))","v":""},null,{"$f":"IF(C709=\"\",NA(),MATCH($B709&$C709,'Smelter Look-up'!$J:$J,0))","v":{"$error":"#N/A"}},null,0,null,null,null,""]
[null,{"$f":"IF(LEN(A710)=0,\"\",INDEX('Smelter Look-up'!$A:$A,MATCH($A710,'Smelter Look-up'!$E:$E,0)))","v":""},{"$f":"IF(LEN(A710)=0,\"\",INDEX('Smelter Look-up'!$C:$C,MATCH($A710,'Smelter Look-up'!$E:$E,0)))","v":""},null,{"$f":"IF(ISERROR($V710),\"\",OFFSET('Smelter Look-up'!$D$4,$V710-4,0)&\"\")","v":""},{"$f":"IF(ISERROR($V710),\"\",OFFSET('Smelter Look-up'!$E$4,$V710-4,0))","v":""},{"$f":"IF(C710=$X$4,\"Enter smelter details\", IF(ISERROR($V710),\"\",OFFSET('Smelter Look-up'!$F$4,$V710-4,0)))","v":""},{"$f":"IF(ISERROR($V710),\"\",OFFSET('Smelter Look-up'!$G$4,$V710-4,0))","v":""},{"$f":"IF(ISERROR($V710),\"\",OFFSET('Smelter Look-up'!$H$4,$V710-4,0))","v":""},{"$f":"IF(ISERROR($V710),\"\",OFFSET('Smelter Look-up'!$I$4,$V710-4,0))","v":""},{"$nulls":7},{"$f":"IF(ISERROR($V710),\"\",OFFSET('Smelter Look-up'!$C$4,$V710-4,0)&\"\")","v":""},"",{"$f":"IF(B710=\"\",\"\",IF(ISERROR(MATCH($J710,SorP!$B$1:$B$6230,0)),\"\",INDIRECT(\"'SorP'!$A$\"&MATCH($J710,SorP!$B$1:$B$6230,0))))","v":""},null,{"$f":"IF(C710=\"\",NA(),MATCH($B710&$C710,'Smelter Look-up'!$J:$J,0))","v":{"$error":"#N/A"}},null,0,null,null,null,""]
[null,{"$f":"IF(LEN(A711)=0,\"\",INDEX('Smelter Look-up'!$A:$A,MATCH($A711,'Smelter Look-up'!$E:$E,0)))","v":""},{"$f":"IF(LEN(A711)=0,\"\",INDEX('Smelter Look-up'!$C:$C,MATCH($A711,'Smelter Look-up'!$E:$E,0)))","v":""},null,{"$f":"IF(ISERROR($V711),\"\",OFFSET('Smelter Look-up'!$D$4,$V711-4,0)&\"\")","v":""},{"$f":"IF(ISERROR($V711),\"\",OFFSET('Smelter Look-up'!$E$4,$V711-4,0))","v":""},{"$f":"IF(C711=$X$4,\"Enter smelter details\", IF(ISERROR($V711),\"\",OFFSET('Smelter Look-up'!$F$4,$V711-4,0)))","v":""},{"$f":"IF(ISERROR($V711),\"\",OFFSET('Smelter Look-up'!$G$4,$V711-4,0))","v":""},{"$f":"IF(ISERROR($V711),\"\",OFFSET('Smelter Look-up'!$H$4,$V711-4,0))","v":""},{"$f":"IF(ISERROR($V711),\"\",OFFSET('Smelter Look-up'!$I$4,$V711-4,0))","v":""},{"$nulls":7},{"$f":"IF(ISERROR($V711),\"\",OFFSET('Smelter Look-up'!$C$4,$V711-4,0)&\"\")","v":""},"",{"$f":"IF(B711=\"\",\"\",IF(ISERROR(MATCH($J711,SorP!$B$1:$B$6230,0)),\"\",INDIRECT(\"'SorP'!$A$\"&MATCH($J711,SorP!$B$1:$B$6230,0))))","v":""},null,{"$f":"IF(C711=\"\",NA(),MATCH($B711&$C711,'Smelter Look-up'!$J:$J,0))","v":{"$error":"#N/A"}},null,0,null,null,null,""]
[null,{"$f":"IF(LEN(A712)=0,\"\",INDEX('Smelter Look-up'!$A:$A,MATCH($A712,'Smelter Look-up'!$E:$E,0)))","v":""},{"$f":"IF(LEN(A712)=0,\"\",INDEX('Smelter Look-up'!$C:$C,MATCH($A712,'Smelter Look-up'!$E:$E,0)))","v":""},null,{"$f":"IF(ISERROR($V712),\"\",OFFSET('Smelter Look-up'!$D$4,$V712-4,0)&\"\")","v":""},{"$f":"IF(ISERROR($V712),\"\",OFFSET('Smelter Look-up'!$E$4,$V712-4,0))","v":""},{"$f":"IF(C712=$X$4,\"Enter smelter details\", IF(ISERROR($V712),\"\",OFFSET('Smelter Look-up'!$F$4,$V712-4,0)))","v":""},{"$f":"IF(ISERROR($V712),\"\",OFFSET('Smelter Look-up'!$G$4,$V712-4,0))","v":""},{"$f":"IF(ISERROR($V712),\"\",OFFSET('Smelter Look-up'!$H$4,$V712-4,0))","v":""},{"$f":"IF(ISERROR($V712),\"\",OFFSET('Smelter Look-up'!$I$4,$V712-4,0))","v":""},{"$nulls":7},{"$f":"IF(ISERROR($V712),\"\",OFFSET('Smelter Look-up'!$C$4,$V712-4,0)&\"\")","v":""},"",{"$f":"IF(B712=\"\",\"\",IF(ISERROR(MATCH($J712,SorP!$B$1:$B$6230,0)),\"\",INDIRECT(\"'SorP'!$A$\"&MATCH($J712,SorP!$B$1:$B$6230,0))))","v":""},null,{"$f":"IF(C712=\"\",NA(),MATCH($B712&$C712,'Smelter Look-up'!$J:$J,0))","v":{"$error":"#N/A"}},null,0,null,null,null,""]
[null,{"$f":"IF(LEN(A713)=0,\"\",INDEX('Smelter Look-up'!$A:$A,MATCH($A713,'Smelter Look-up'!$E:$E,0)))","v":""},{"$f":"IF(LEN(A713)=0,\"\",INDEX('Smelter Look-up'!$C:$C,MATCH($A713,'Smelter Look-up'!$E:$E,0)))","v":""},null,{"$f":"IF(ISERROR($V713),\"\",OFFSET('Smelter Look-up'!$D$4,$V713-4,0)&\"\")","v":""},{"$f":"IF(ISERROR($V713),\"\",OFFSET('Smelter Look-up'!$E$4,$V713-4,0))","v":""},{"$f":"IF(C713=$X$4,\"Enter smelter details\", IF(ISERROR($V713),\"\",OFFSET('Smelter Look-up'!$F$4,$V713-4,0)))","v":""},{"$f":"IF(ISERROR($V713),\"\",OFFSET('Smelter Look-up'!$G$4,$V713-4,0))","v":""},{"$f":"IF(ISERROR($V713),\"\",OFFSET('Smelter Look-up'!$H$4,$V713-4,0))","v":""},{"$f":"IF(ISERROR($V713),\"\",OFFSET('Smelter Look-up'!$I$4,$V713-4,0))","v":""},{"$nulls":7},{"$f":"IF(ISERROR($V713),\"\",OFFSET('Smelter Look-up'!$C$4,$V713-4,0)&\"\")","v":""},"",{"$f":"IF(B713=\"\",\"\",IF(ISERROR(MATCH($J713,SorP!$B$1:$B$6230,0)),\"\",INDIRECT(\"'SorP'!$A$\"&MATCH($J713,SorP!$B$1:$B$6230,0))))","v":""},null,{"$f":"IF(C713=\"\",NA(),MATCH($B713&$C713,'Smelter Look-up'!$J:$J,0))","v":{"$error":"#N/A"}},null,0,null,null,null,""]
[null,{"$f":"IF(LEN(A714)=0,\"\",INDEX('Smelter Look-up'!$A:$A,MATCH($A714,'Smelter Look-up'!$E:$E,0)))","v":""},{"$f":"IF(LEN(A714)=0,\"\",INDEX('Smelter Look-up'!$C:$C,MATCH($A714,'Smelter Look-up'!$E:$E,0)))","v":""},null,{"$f":"IF(ISERROR($V714),\"\",OFFSET('Smelter Look-up'!$D$4,$V714-4,0)&\"\")","v":""},{"$f":"IF(ISERROR($V714),\"\",OFFSET('Smelter Look-up'!$E$4,$V714-4,0))","v":""},{"$f":"IF(C714=$X$4,\"Enter smelter details\", IF(ISERROR($V714),\"\",OFFSET('Smelter Look-up'!$F$4,$V714-4,0)))","v":""},{"$f":"IF(ISERROR($V714),\"\",OFFSET('Smelter Look-up'!$G$4,$V714-4,0))","v":""},{"$f":"IF(ISERROR($V714),\"\",OFFSET('Smelter Look-up'!$H$4,$V714-4,0))","v":""},{"$f":"IF(ISERROR($V714),\"\",OFFSET('Smelter Look-up'!$I$4,$V714-4,0))","v":""},{"$nulls":7},{"$f":"IF(ISERROR($V714),\"\",OFFSET('Smelter Look-up'!$C$4,$V714-4,0)&\"\")","v":""},"",{"$f":"IF(B714=\"\",\"\",IF(ISERROR(MATCH($J714,SorP!$B$1:$B$6230,0)),\"\",INDIRECT(\"'SorP'!$A$\"&MATCH($J714,SorP!$B$1:$B$6230,0))))","v":""},null,{"$f":"IF(C714=\"\",NA(),MATCH($B714&$C714,'Smelter Look-up'!$J:$J,0))","v":{"$error":"#N/A"}},null,0,null,null,null,""]
[null,{"$f":"IF(LEN(A715)=0,\"\",INDEX('Smelter Look-up'!$A:$A,MATCH($A715,'Smelter Look-up'!$E:$E,0)))","v":""},{"$f":"IF(LEN(A715)=0,\"\",INDEX('Smelter Look-up'!$C:$C,MATCH($A715,'Smelter Look-up'!$E:$E,0)))","v":""},null,{"$f":"IF(ISERROR($V715),\"\",OFFSET('Smelter Look-up'!$D$4,$V715-4,0)&\"\")","v":""},{"$f":"IF(ISERROR($V715),\"\",OFFSET('Smelter Look-up'!$E$4,$V715-4,0))","v":""},{"$f":"IF(C715=$X$4,\"Enter smelter details\", IF(ISERROR($V715),\"\",OFFSET('Smelter Look-up'!$F$4,$V715-4,0)))","v":""},{"$f":"IF(ISERROR($V715),\"\",OFFSET('Smelter Look-up'!$G$4,$V715-4,0))","v":""},{"$f":"IF(ISERROR($V715),\"\",OFFSET('Smelter Look-up'!$H$4,$V715-4,0))","v":""},{"$f":"IF(ISERROR($V715),\"\",OFFSET('Smelter Look-up'!$I$4,$V715-4,0))","v":""},{"$nulls":7},{"$f":"IF(ISERROR($V715),\"\",OFFSET('Smelter Look-up'!$C$4,$V715-4,0)&\"\")","v":""},"",{"$f":"IF(B715=\"\",\"\",IF(ISERROR(MATCH($J715,SorP!$B$1:$B$6230,0)),\"\",INDIRECT(\"'SorP'!$A$\"&MATCH($J715,SorP!$B$1:$B$6230,0))))","v":""},null,{"$f":"IF(C715=\"\",NA(),MATCH($B715&$C715,'Smelter Look-up'!$J:$J,0))","v":{"$error":"#N/A"}},null,0,null,null,null,""]
[null,{"$f":"IF(LEN(A716)=0,\"\",INDEX('Smelter Look-up'!$A:$A,MATCH($A716,'Smelter Look-up'!$E:$E,0)))","v":""},{"$f":"IF(LEN(A716)=0,\"\",INDEX('Smelter Look-up'!$C:$C,MATCH($A716,'Smelter Look-up'!$E:$E,0)))","v":""},null,{"$f":"IF(ISERROR($V716),\"\",OFFSET('Smelter Look-up'!$D$4,$V716-4,0)&\"\")","v":""},{"$f":"IF(ISERROR($V716),\"\",OFFSET('Smelter Look-up'!$E$4,$V716-4,0))","v":""},{"$f":"IF(C716=$X$4,\"Enter smelter details\", IF(ISERROR($V716),\"\",OFFSET('Smelter Look-up'!$F$4,$V716-4,0)))","v":""},{"$f":"IF(ISERROR($V716),\"\",OFFSET('Smelter Look-up'!$G$4,$V716-4,0))","v":""},{"$f":"IF(ISERROR($V716),\"\",OFFSET('Smelter Look-up'!$H$4,$V716-4,0))","v":""},{"$f":"IF(ISERROR($V716),\"\",OFFSET('Smelter Look-up'!$I$4,$V716-4,0))","v":""},{"$nulls":7},{"$f":"IF(ISERROR($V716),\"\",OFFSET('Smelter Look-up'!$C$4,$V716-4,0)&\"\")","v":""},"",{"$f":"IF(B716=\"\",\"\",IF(ISERROR(MATCH($J716,SorP!$B$1:$B$6230,0)),\"\",INDIRECT(\"'SorP'!$A$\"&MATCH($J716,SorP!$B$1:$B$6230,0))))","v":""},null,{"$f":"IF(C716=\"\",NA(),MATCH($B716&$C716,'Smelter Look-up'!$J:$J,0))","v":{"$error":"#N/A"}},null,0,null,null,null,""]
[null,{"$f":"IF(LEN(A717)=0,\"\",INDEX('Smelter Look-up'!$A:$A,MATCH($A717,'Smelter Look-up'!$E:$E,0)))","v":""},{"$f":"IF(LEN(A717)=0,\"\",INDEX('Smelter Look-up'!$C:$C,MATCH($A717,'Smelter Look-up'!$E:$E,0)))","v":""},null,{"$f":"IF(ISERROR($V717),\"\",OFFSET('Smelter Look-up'!$D$4,$V717-4,0)&\"\")","v":""},{"$f":"IF(ISERROR($V717),\"\",OFFSET('Smelter Look-up'!$E$4,$V717-4,0))","v":""},{"$f":"IF(C717=$X$4,\"Enter smelter details\", IF(ISERROR($V717),\"\",OFFSET('Smelter Look-up'!$F$4,$V717-4,0)))","v":""},{"$f":"IF(ISERROR($V717),\"\",OFFSET('Smelter Look-up'!$G$4,$V717-4,0))","v":""},{"$f":"IF(ISERROR($V717),\"\",OFFSET('Smelter Look-up'!$H$4,$V717-4,0))","v":""},{"$f":"IF(ISERROR($V717),\"\",OFFSET('Smelter Look-up'!$I$4,$V717-4,0))","v":""},{"$nulls":7},{"$f":"IF(ISERROR($V717),\"\",OFFSET('Smelter Look-up'!$C$4,$V717-4,0)&\"\")","v":""},"",{"$f":"IF(B717=\"\",\"\",IF(ISERROR(MATCH($J717,SorP!$B$1:$B$6230,0)),\"\",INDIRECT(\"'SorP'!$A$\"&MATCH($J717,SorP!$B$1:$B$6230,0))))","v":""},null,{"$f":"IF(C717=\"\",NA(),MATCH($B717&$C717,'Smelter Look-up'!$J:$J,0))","v":{"$error":"#N/A"}},null,0,null,null,null,""]
[null,{"$f":"IF(LEN(A718)=0,\"\",INDEX('Smelter Look-up'!$A:$A,MATCH($A718,'Smelter Look-up'!$E:$E,0)))","v":""},{"$f":"IF(LEN(A718)=0,\"\",INDEX('Smelter Look-up'!$C:$C,MATCH($A718,'Smelter Look-up'!$E:$E,0)))","v":""},null,{"$f":"IF(ISERROR($V718),\"\",OFFSET('Smelter Look-up'!$D$4,$V718-4,0)&\"\")","v":""},{"$f":"IF(ISERROR($V718),\"\",OFFSET('Smelter Look-up'!$E$4,$V718-4,0))","v":""},{"$f":"IF(C718=$X$4,\"Enter smelter details\", IF(ISERROR($V718),\"\",OFFSET('Smelter Look-up'!$F$4,$V718-4,0)))","v":""},{"$f":"IF(ISERROR($V718),\"\",OFFSET('Smelter Look-up'!$G$4,$V718-4,0))","v":""},{"$f":"IF(ISERROR($V718),\"\",OFFSET('Smelter Look-up'!$H$4,$V718-4,0))","v":""},{"$f":"IF(ISERROR($V718),\"\",OFFSET('Smelter Look-up'!$I$4,$V718-4,0))","v":""},{"$nulls":7},{"$f":"IF(ISERROR($V718),\"\",OFFSET('Smelter Look-up'!$C$4,$V718-4,0)&\"\")","v":""},"",{"$f":"IF(B718=\"\",\"\",IF(ISERROR(MATCH($J718,SorP!$B$1:$B$6230,0)),\"\",INDIRECT(\"'SorP'!$A$\"&MATCH($J718,SorP!$B$1:$B$6230,0))))","v":""},null,{"$f":"IF(C718=\"\",NA(),MATCH($B718&$C718,'Smelter Look-up'!$J:$J,0))","v":{"$error":"#N/A"}},null,0,null,null,null,""]
[null,{"$f":"IF(LEN(A719)=0,\"\",INDEX('Smelter Look-up'!$A:$A,MATCH($A719,'Smelter Look-up'!$E:$E,0)))","v":""},{"$f":"IF(LEN(A719)=0,\"\",INDEX('Smelter Look-up'!$C:$C,MATCH($A719,'Smelter Look-up'!$E:$E,0)))","v":""},null,{"$f":"IF(ISERROR($V719),\"\",OFFSET('Smelter Look-up'!$D$4,$V719-4,0)&\"\")","v":""},{"$f":"IF(ISERROR($V719),\"\",OFFSET('Smelter Look-up'!$E$4,$V719-4,0))","v":""},{"$f":"IF(C719=$X$4,\"Enter smelter details\", IF(ISERROR($V719),\"\",OFFSET('Smelter Look-up'!$F$4,$V719-4,0)))","v":""},{"$f":"IF(ISERROR($V719),\"\",OFFSET('Smelter Look-up'!$G$4,$V719-4,0))","v":""},{"$f":"IF(ISERROR($V719),\"\",OFFSET('Smelter Look-up'!$H$4,$V719-4,0))","v":""},{"$f":"IF(ISERROR($V719),\"\",OFFSET('Smelter Look-up'!$I$4,$V719-4,0))","v":""},{"$nulls":7},{"$f":"IF(ISERROR($V719),\"\",OFFSET('Smelter Look-up'!$C$4,$V719-4,0)&\"\")","v":""},"",{"$f":"IF(B719=\"\",\"\",IF(ISERROR(MATCH($J719,SorP!$B$1:$B$6230,0)),\"\",INDIRECT(\"'SorP'!$A$\"&MATCH($J719,SorP!$B$1:$B$6230,0))))","v":""},null,{"$f":"IF(C719=\"\",NA(),MATCH($B719&$C719,'Smelter Look-up'!$J:$J,0))","v":{"$error":"#N/A"}},null,0,null,null,null,""]
[null,{"$f":"IF(LEN(A720)=0,\"\",INDEX('Smelter Look-up'!$A:$A,MATCH($A720,'Smelter Look-up'!$E:$E,0)))","v":""},{"$f":"IF(LEN(A720)=0,\"\",INDEX('Smelter Look-up'!$C:$C,MATCH($A720,'Smelter Look-up'!$E:$E,0)))","v":""},null,{"$f":"IF(ISERROR($V720),\"\",OFFSET('Smelter Look-up'!$D$4,$V720-4,0)&\"\")","v":""},{"$f":"IF(ISERROR($V720),\"\",OFFSET('Smelter Look-up'!$E$4,$V720-4,0))","v":""},{"$f":"IF(C720=$X$4,\"Enter smelter details\", IF(ISERROR($V720),\"\",OFFSET('Smelter Look-up'!$F$4,$V720-4,0)))","v":""},{"$f":"IF(ISERROR($V720),\"\",OFFSET('Smelter Look-up'!$G$4,$V720-4,0))","v":""},{"$f":"IF(ISERROR($V720),\"\",OFFSET('Smelter Look-up'!$H$4,$V720-4,0))","v":""},{"$f":"IF(ISERROR($V720),\"\",OFFSET('Smelter Look-up'!$I$4,$V720-4,0))","v":""},{"$nulls":7},{"$f":"IF(ISERROR($V720),\"\",OFFSET('Smelter Look-up'!$C$4,$V720-4,0)&\"\")","v":""},"",{"$f":"IF(B720=\"\",\"\",IF(ISERROR(MATCH($J720,SorP!$B$1:$B$6230,0)),\"\",INDIRECT(\"'SorP'!$A$\"&MATCH($J720,SorP!$B$1:$B$6230,0))))","v":""},null,{"$f":"IF(C720=\"\",NA(),MATCH($B720&$C720,'Smelter Look-up'!$J:$J,0))","v":{"$error":"#N/A"}},null,0,null,null,null,""]
[null,{"$f":"IF(LEN(A721)=0,\"\",INDEX('Smelter Look-up'!$A:$A,MATCH($A721,'Smelter Look-up'!$E:$E,0)))","v":""},{"$f":"IF(LEN(A721)=0,\"\",INDEX('Smelter Look-up'!$C:$C,MATCH($A721,'Smelter Look-up'!$E:$E,0)))","v":""},null,{"$f":"IF(ISERROR($V721),\"\",OFFSET('Smelter Look-up'!$D$4,$V721-4,0)&\"\")","v":""},{"$f":"IF(ISERROR($V721),\"\",OFFSET('Smelter Look-up'!$E$4,$V721-4,0))","v":""},{"$f":"IF(C721=$X$4,\"Enter smelter details\", IF(ISERROR($V721),\"\",OFFSET('Smelter Look-up'!$F$4,$V721-4,0)))","v":""},{"$f":"IF(ISERROR($V721),\"\",OFFSET('Smelter Look-up'!$G$4,$V721-4,0))","v":""},{"$f":"IF(ISERROR($V721),\"\",OFFSET('Smelter Look-up'!$H$4,$V721-4,0))","v":""},{"$f":"IF(ISERROR($V721),\"\",OFFSET('Smelter Look-up'!$I$4,$V721-4,0))","v":""},{"$nulls":7},{"$f":"IF(ISERROR($V721),\"\",OFFSET('Smelter Look-up'!$C$4,$V721-4,0)&\"\")","v":""},"",{"$f":"IF(B721=\"\",\"\",IF(ISERROR(MATCH($J721,SorP!$B$1:$B$6230,0)),\"\",INDIRECT(\"'SorP'!$A$\"&MATCH($J721,SorP!$B$1:$B$6230,0))))","v":""},null,{"$f":"IF(C721=\"\",NA(),MATCH($B721&$C721,'Smelter Look-up'!$J:$J,0))","v":{"$error":"#N/A"}},null,0,null,null,null,""]
[null,{"$f":"IF(LEN(A722)=0,\"\",INDEX('Smelter Look-up'!$A:$A,MATCH($A722,'Smelter Look-up'!$E:$E,0)))","v":""},{"$f":"IF(LEN(A722)=0,\"\",INDEX('Smelter Look-up'!$C:$C,MATCH($A722,'Smelter Look-up'!$E:$E,0)))","v":""},null,{"$f":"IF(ISERROR($V722),\"\",OFFSET('Smelter Look-up'!$D$4,$V722-4,0)&\"\")","v":""},{"$f":"IF(ISERROR($V722),\"\",OFFSET('Smelter Look-up'!$E$4,$V722-4,0))","v":""},{"$f":"IF(C722=$X$4,\"Enter smelter details\", IF(ISERROR($V722),\"\",OFFSET('Smelter Look-up'!$F$4,$V722-4,0)))","v":""},{"$f":"IF(ISERROR($V722),\"\",OFFSET('Smelter Look-up'!$G$4,$V722-4,0))","v":""},{"$f":"IF(ISERROR($V722),\"\",OFFSET('Smelter Look-up'!$H$4,$V722-4,0))","v":""},{"$f":"IF(ISERROR($V722),\"\",OFFSET('Smelter Look-up'!$I$4,$V722-4,0))","v":""},{"$nulls":7},{"$f":"IF(ISERROR($V722),\"\",OFFSET('Smelter Look-up'!$C$4,$V722-4,0)&\"\")","v":""},"",{"$f":"IF(B722=\"\",\"\",IF(ISERROR(MATCH($J722,SorP!$B$1:$B$6230,0)),\"\",INDIRECT(\"'SorP'!$A$\"&MATCH($J722,SorP!$B$1:$B$6230,0))))","v":""},null,{"$f":"IF(C722=\"\",NA(),MATCH($B722&$C722,'Smelter Look-up'!$J:$J,0))","v":{"$error":"#N/A"}},null,0,null,null,null,""]
[null,{"$f":"IF(LEN(A723)=0,\"\",INDEX('Smelter Look-up'!$A:$A,MATCH($A723,'Smelter Look-up'!$E:$E,0)))","v":""},{"$f":"IF(LEN(A723)=0,\"\",INDEX('Smelter Look-up'!$C:$C,MATCH($A723,'Smelter Look-up'!$E:$E,0)))","v":""},null,{"$f":"IF(ISERROR($V723),\"\",OFFSET('Smelter Look-up'!$D$4,$V723-4,0)&\"\")","v":""},{"$f":"IF(ISERROR($V723),\"\",OFFSET('Smelter Look-up'!$E$4,$V723-4,0))","v":""},{"$f":"IF(C723=$X$4,\"Enter smelter details\", IF(ISERROR($V723),\"\",OFFSET('Smelter Look-up'!$F$4,$V723-4,0)))","v":""},{"$f":"IF(ISERROR($V723),\"\",OFFSET('Smelter Look-up'!$G$4,$V723-4,0))","v":""},{"$f":"IF(ISERROR($V723),\"\",OFFSET('Smelter Look-up'!$H$4,$V723-4,0))","v":""},{"$f":"IF(ISERROR($V723),\"\",OFFSET('Smelter Look-up'!$I$4,$V723-4,0))","v":""},{"$nulls":7},{"$f":"IF(ISERROR($V723),\"\",OFFSET('Smelter Look-up'!$C$4,$V723-4,0)&\"\")","v":""},"",{"$f":"IF(B723=\"\",\"\",IF(ISERROR(MATCH($J723,SorP!$B$1:$B$6230,0)),\"\",INDIRECT(\"'SorP'!$A$\"&MATCH($J723,SorP!$B$1:$B$6230,0))))","v":""},null,{"$f":"IF(C723=\"\",NA(),MATCH($B723&$C723,'Smelter Look-up'!$J:$J,0))","v":{"$error":"#N/A"}},null,0,null,null,null,""]
[null,{"$f":"IF(LEN(A724)=0,\"\",INDEX('Smelter Look-up'!$A:$A,MATCH($A724,'Smelter Look-up'!$E:$E,0)))","v":""},{"$f":"IF(LEN(A724)=0,\"\",INDEX('Smelter Look-up'!$C:$C,MATCH($A724,'Smelter Look-up'!$E:$E,0)))","v":""},null,{"$f":"IF(ISERROR($V724),\"\",OFFSET('Smelter Look-up'!$D$4,$V724-4,0)&\"\")","v":""},{"$f":"IF(ISERROR($V724),\"\",OFFSET('Smelter Look-up'!$E$4,$V724-4,0))","v":""},{"$f":"IF(C724=$X$4,\"Enter smelter details\", IF(ISERROR($V724),\"\",OFFSET('Smelter Look-up'!$F$4,$V724-4,0)))","v":""},{"$f":"IF(ISERROR($V724),\"\",OFFSET('Smelter Look-up'!$G$4,$V724-4,0))","v":""},{"$f":"IF(ISERROR($V724),\"\",OFFSET('Smelter Look-up'!$H$4,$V724-4,0))","v":""},{"$f":"IF(ISERROR($V724),\"\",OFFSET('Smelter Look-up'!$I$4,$V724-4,0))","v":""},{"$nulls":7},{"$f":"IF(ISERROR($V724),\"\",OFFSET('Smelter Look-up'!$C$4,$V724-4,0)&\"\")","v":""},"",{"$f":"IF(B724=\"\",\"\",IF(ISERROR(MATCH($J724,SorP!$B$1:$B$6230,0)),\"\",INDIRECT(\"'SorP'!$A$\"&MATCH($J724,SorP!$B$1:$B$6230,0))))","v":""},null,{"$f":"IF(C724=\"\",NA(),MATCH($B724&$C724,'Smelter Look-up'!$J:$J,0))","v":{"$error":"#N/A"}},null,0,null,null,null,""]
[null,{"$f":"IF(LEN(A725)=0,\"\",INDEX('Smelter Look-up'!$A:$A,MATCH($A725,'Smelter Look-up'!$E:$E,0)))","v":""},{"$f":"IF(LEN(A725)=0,\"\",INDEX('Smelter Look-up'!$C:$C,MATCH($A725,'Smelter Look-up'!$E:$E,0)))","v":""},null,{"$f":"IF(ISERROR($V725),\"\",OFFSET('Smelter Look-up'!$D$4,$V725-4,0)&\"\")","v":""},{"$f":"IF(ISERROR($V725),\"\",OFFSET('Smelter Look-up'!$E$4,$V725-4,0))","v":""},{"$f":"IF(C725=$X$4,\"Enter smelter details\", IF(ISERROR($V725),\"\",OFFSET('Smelter Look-up'!$F$4,$V725-4,0)))","v":""},{"$f":"IF(ISERROR($V725),\"\",OFFSET('Smelter Look-up'!$G$4,$V725-4,0))","v":""},{"$f":"IF(ISERROR($V725),\"\",OFFSET('Smelter Look-up'!$H$4,$V725-4,0))","v":""},{"$f":"IF(ISERROR($V725),\"\",OFFSET('Smelter Look-up'!$I$4,$V725-4,0))","v":""},{"$nulls":7},{"$f":"IF(ISERROR($V725),\"\",OFFSET('Smelter Look-up'!$C$4,$V725-4,0)&\"\")","v":""},"",{"$f":"IF(B725=\"\",\"\",IF(ISERROR(MATCH($J725,SorP!$B$1:$B$6230,0)),\"\",INDIRECT(\"'SorP'!$A$\"&MATCH($J725,SorP!$B$1:$B$6230,0))))","v":""},null,{"$f":"IF(C725=\"\",NA(),MATCH($B725&$C725,'Smelter Look-up'!$J:$J,0))","v":{"$error":"#N/A"}},null,0,null,null,null,""]
[null,{"$f":"IF(LEN(A726)=0,\"\",INDEX('Smelter Look-up'!$A:$A,MATCH($A726,'Smelter Look-up'!$E:$E,0)))","v":""},{"$f":"IF(LEN(A726)=0,\"\",INDEX('Smelter Look-up'!$C:$C,MATCH($A726,'Smelter Look-up'!$E:$E,0)))","v":""},null,{"$f":"IF(ISERROR($V726),\"\",OFFSET('Smelter Look-up'!$D$4,$V726-4,0)&\"\")","v":""},{"$f":"IF(ISERROR($V726),\"\",OFFSET('Smelter Look-up'!$E$4,$V726-4,0))","v":""},{"$f":"IF(C726=$X$4,\"Enter smelter details\", IF(ISERROR($V726),\"\",OFFSET('Smelter Look-up'!$F$4,$V726-4,0)))","v":""},{"$f":"IF(ISERROR($V726),\"\",OFFSET('Smelter Look-up'!$G$4,$V726-4,0))","v":""},{"$f":"IF(ISERROR($V726),\"\",OFFSET('Smelter Look-up'!$H$4,$V726-4,0))","v":""},{"$f":"IF(ISERROR($V726),\"\",OFFSET('Smelter Look-up'!$I$4,$V726-4,0))","v":""},{"$nulls":7},{"$f":"IF(ISERROR($V726),\"\",OFFSET('Smelter Look-up'!$C$4,$V726-4,0)&\"\")","v":""},"",{"$f":"IF(B726=\"\",\"\",IF(ISERROR(MATCH($J726,SorP!$B$1:$B$6230,0)),\"\",INDIRECT(\"'SorP'!$A$\"&MATCH($J726,SorP!$B$1:$B$6230,0))))","v":""},null,{"$f":"IF(C726=\"\",NA(),MATCH($B726&$C726,'Smelter Look-up'!$J:$J,0))","v":{"$error":"#N/A"}},null,0,null,null,null,""]
[null,{"$f":"IF(LEN(A727)=0,\"\",INDEX('Smelter Look-up'!$A:$A,MATCH($A727,'Smelter Look-up'!$E:$E,0)))","v":""},{"$f":"IF(LEN(A727)=0,\"\",INDEX('Smelter Look-up'!$C:$C,MATCH($A727,'Smelter Look-up'!$E:$E,0)))","v":""},null,{"$f":"IF(ISERROR($V727),\"\",OFFSET('Smelter Look-up'!$D$4,$V727-4,0)&\"\")","v":""},{"$f":"IF(ISERROR($V727),\"\",OFFSET('Smelter Look-up'!$E$4,$V727-4,0))","v":""},{"$f":"IF(C727=$X$4,\"Enter smelter details\", IF(ISERROR($V727),\"\",OFFSET('Smelter Look-up'!$F$4,$V727-4,0)))","v":""},{"$f":"IF(ISERROR($V727),\"\",OFFSET('Smelter Look-up'!$G$4,$V727-4,0))","v":""},{"$f":"IF(ISERROR($V727),\"\",OFFSET('Smelter Look-up'!$H$4,$V727-4,0))","v":""},{"$f":"IF(ISERROR($V727),\"\",OFFSET('Smelter Look-up'!$I$4,$V727-4,0))","v":""},{"$nulls":7},{"$f":"IF(ISERROR($V727),\"\",OFFSET('Smelter Look-up'!$C$4,$V727-4,0)&\"\")","v":""},"",{"$f":"IF(B727=\"\",\"\",IF(ISERROR(MATCH($J727,SorP!$B$1:$B$6230,0)),\"\",INDIRECT(\"'SorP'!$A$\"&MATCH($J727,SorP!$B$1:$B$6230,0))))","v":""},null,{"$f":"IF(C727=\"\",NA(),MATCH($B727&$C727,'Smelter Look-up'!$J:$J,0))","v":{"$error":"#N/A"}},null,0,null,null,null,""]
[null,{"$f":"IF(LEN(A728)=0,\"\",INDEX('Smelter Look-up'!$A:$A,MATCH($A728,'Smelter Look-up'!$E:$E,0)))","v":""},{"$f":"IF(LEN(A728)=0,\"\",INDEX('Smelter Look-up'!$C:$C,MATCH($A728,'Smelter Look-up'!$E:$E,0)))","v":""},null,{"$f":"IF(ISERROR($V728),\"\",OFFSET('Smelter Look-up'!$D$4,$V728-4,0)&\"\")","v":""},{"$f":"IF(ISERROR($V728),\"\",OFFSET('Smelter Look-up'!$E$4,$V728-4,0))","v":""},{"$f":"IF(C728=$X$4,\"Enter smelter details\", IF(ISERROR($V728),\"\",OFFSET('Smelter Look-up'!$F$4,$V728-4,0)))","v":""},{"$f":"IF(ISERROR($V728),\"\",OFFSET('Smelter Look-up'!$G$4,$V728-4,0))","v":""},{"$f":"IF(ISERROR($V728),\"\",OFFSET('Smelter Look-up'!$H$4,$V728-4,0))","v":""},{"$f":"IF(ISERROR($V728),\"\",OFFSET('Smelter Look-up'!$I$4,$V728-4,0))","v":""},{"$nulls":7},{"$f":"IF(ISERROR($V728),\"\",OFFSET('Smelter Look-up'!$C$4,$V728-4,0)&\"\")","v":""},"",{"$f":"IF(B728=\"\",\"\",IF(ISERROR(MATCH($J728,SorP!$B$1:$B$6230,0)),\"\",INDIRECT(\"'SorP'!$A$\"&MATCH($J728,SorP!$B$1:$B$6230,0))))","v":""},null,{"$f":"IF(C728=\"\",NA(),MATCH($B728&$C728,'Smelter Look-up'!$J:$J,0))","v":{"$error":"#N/A"}},null,0,null,null,null,""]
[null,{"$f":"IF(LEN(A729)=0,\"\",INDEX('Smelter Look-up'!$A:$A,MATCH($A729,'Smelter Look-up'!$E:$E,0)))","v":""},{"$f":"IF(LEN(A729)=0,\"\",INDEX('Smelter Look-up'!$C:$C,MATCH($A729,'Smelter Look-up'!$E:$E,0)))","v":""},null,{"$f":"IF(ISERROR($V729),\"\",OFFSET('Smelter Look-up'!$D$4,$V729-4,0)&\"\")","v":""},{"$f":"IF(ISERROR($V729),\"\",OFFSET('Smelter Look-up'!$E$4,$V729-4,0))","v":""},{"$f":"IF(C729=$X$4,\"Enter smelter details\", IF(ISERROR($V729),\"\",OFFSET('Smelter Look-up'!$F$4,$V729-4,0)))","v":""},{"$f":"IF(ISERROR($V729),\"\",OFFSET('Smelter Look-up'!$G$4,$V729-4,0))","v":""},{"$f":"IF(ISERROR($V729),\"\",OFFSET('Smelter Look-up'!$H$4,$V729-4,0))","v":""},{"$f":"IF(ISERROR($V729),\"\",OFFSET('Smelter Look-up'!$I$4,$V729-4,0))","v":""},{"$nulls":7},{"$f":"IF(ISERROR($V729),\"\",OFFSET('Smelter Look-up'!$C$4,$V729-4,0)&\"\")","v":""},"",{"$f":"IF(B729=\"\",\"\",IF(ISERROR(MATCH($J729,SorP!$B$1:$B$6230,0)),\"\",INDIRECT(\"'SorP'!$A$\"&MATCH($J729,SorP!$B$1:$B$6230,0))))","v":""},null,{"$f":"IF(C729=\"\",NA(),MATCH($B729&$C729,'Smelter Look-up'!$J:$J,0))","v":{"$error":"#N/A"}},null,0,null,null,null,""]
[null,{"$f":"IF(LEN(A730)=0,\"\",INDEX('Smelter Look-up'!$A:$A,MATCH($A730,'Smelter Look-up'!$E:$E,0)))","v":""},{"$f":"IF(LEN(A730)=0,\"\",INDEX('Smelter Look-up'!$C:$C,MATCH($A730,'Smelter Look-up'!$E:$E,0)))","v":""},null,{"$f":"IF(ISERROR($V730),\"\",OFFSET('Smelter Look-up'!$D$4,$V730-4,0)&\"\")","v":""},{"$f":"IF(ISERROR($V730),\"\",OFFSET('Smelter Look-up'!$E$4,$V730-4,0))","v":""},{"$f":"IF(C730=$X$4,\"Enter smelter details\", IF(ISERROR($V730),\"\",OFFSET('Smelter Look-up'!$F$4,$V730-4,0)))","v":""},{"$f":"IF(ISERROR($V730),\"\",OFFSET('Smelter Look-up'!$G$4,$V730-4,0))","v":""},{"$f":"IF(ISERROR($V730),\"\",OFFSET('Smelter Look-up'!$H$4,$V730-4,0))","v":""},{"$f":"IF(ISERROR($V730),\"\",OFFSET('Smelter Look-up'!$I$4,$V730-4,0))","v":""},{"$nulls":7},{"$f":"IF(ISERROR($V730),\"\",OFFSET('Smelter Look-up'!$C$4,$V730-4,0)&\"\")","v":""},"",{"$f":"IF(B730=\"\",\"\",IF(ISERROR(MATCH($J730,SorP!$B$1:$B$6230,0)),\"\",INDIRECT(\"'SorP'!$A$\"&MATCH($J730,SorP!$B$1:$B$6230,0))))","v":""},null,{"$f":"IF(C730=\"\",NA(),MATCH($B730&$C730,'Smelter Look-up'!$J:$J,0))","v":{"$error":"#N/A"}},null,0,null,null,null,""]
[null,{"$f":"IF(LEN(A731)=0,\"\",INDEX('Smelter Look-up'!$A:$A,MATCH($A731,'Smelter Look-up'!$E:$E,0)))","v":""},{"$f":"IF(LEN(A731)=0,\"\",INDEX('Smelter Look-up'!$C:$C,MATCH($A731,'Smelter Look-up'!$E:$E,0)))","v":""},null,{"$f":"IF(ISERROR($V731),\"\",OFFSET('Smelter Look-up'!$D$4,$V731-4,0)&\"\")","v":""},{"$f":"IF(ISERROR($V731),\"\",OFFSET('Smelter Look-up'!$E$4,$V731-4,0))","v":""},{"$f":"IF(C731=$X$4,\"Enter smelter details\", IF(ISERROR($V731),\"\",OFFSET('Smelter Look-up'!$F$4,$V731-4,0)))","v":""},{"$f":"IF(ISERROR($V731),\"\",OFFSET('Smelter Look-up'!$G$4,$V731-4,0))","v":""},{"$f":"IF(ISERROR($V731),\"\",OFFSET('Smelter Look-up'!$H$4,$V731-4,0))","v":""},{"$f":"IF(ISERROR($V731),\"\",OFFSET('Smelter Look-up'!$I$4,$V731-4,0))","v":""},{"$nulls":7},{"$f":"IF(ISERROR($V731),\"\",OFFSET('Smelter Look-up'!$C$4,$V731-4,0)&\"\")","v":""},"",{"$f":"IF(B731=\"\",\"\",IF(ISERROR(MATCH($J731,SorP!$B$1:$B$6230,0)),\"\",INDIRECT(\"'SorP'!$A$\"&MATCH($J731,SorP!$B$1:$B$6230,0))))","v":""},null,{"$f":"IF(C731=\"\",NA(),MATCH($B731&$C731,'Smelter Look-up'!$J:$J,0))","v":{"$error":"#N/A"}},null,0,null,null,null,""]
[null,{"$f":"IF(LEN(A732)=0,\"\",INDEX('Smelter Look-up'!$A:$A,MATCH($A732,'Smelter Look-up'!$E:$E,0)))","v":""},{"$f":"IF(LEN(A732)=0,\"\",INDEX('Smelter Look-up'!$C:$C,MATCH($A732,'Smelter Look-up'!$E:$E,0)))","v":""},null,{"$f":"IF(ISERROR($V732),\"\",OFFSET('Smelter Look-up'!$D$4,$V732-4,0)&\"\")","v":""},{"$f":"IF(ISERROR($V732),\"\",OFFSET('Smelter Look-up'!$E$4,$V732-4,0))","v":""},{"$f":"IF(C732=$X$4,\"Enter smelter details\", IF(ISERROR($V732),\"\",OFFSET('Smelter Look-up'!$F$4,$V732-4,0)))","v":""},{"$f":"IF(ISERROR($V732),\"\",OFFSET('Smelter Look-up'!$G$4,$V732-4,0))","v":""},{"$f":"IF(ISERROR($V732),\"\",OFFSET('Smelter Look-up'!$H$4,$V732-4,0))","v":""},{"$f":"IF(ISERROR($V732),\"\",OFFSET('Smelter Look-up'!$I$4,$V732-4,0))","v":""},{"$nulls":7},{"$f":"IF(ISERROR($V732),\"\",OFFSET('Smelter Look-up'!$C$4,$V732-4,0)&\"\")","v":""},"",{"$f":"IF(B732=\"\",\"\",IF(ISERROR(MATCH($J732,SorP!$B$1:$B$6230,0)),\"\",INDIRECT(\"'SorP'!$A$\"&MATCH($J732,SorP!$B$1:$B$6230,0))))","v":""},null,{"$f":"IF(C732=\"\",NA(),MATCH($B732&$C732,'Smelter Look-up'!$J:$J,0))","v":{"$error":"#N/A"}},null,0,null,null,null,""]
[null,{"$f":"IF(LEN(A733)=0,\"\",INDEX('Smelter Look-up'!$A:$A,MATCH($A733,'Smelter Look-up'!$E:$E,0)))","v":""},{"$f":"IF(LEN(A733)=0,\"\",INDEX('Smelter Look-up'!$C:$C,MATCH($A733,'Smelter Look-up'!$E:$E,0)))","v":""},null,{"$f":"IF(ISERROR($V733),\"\",OFFSET('Smelter Look-up'!$D$4,$V733-4,0)&\"\")","v":""},{"$f":"IF(ISERROR($V733),\"\",OFFSET('Smelter Look-up'!$E$4,$V733-4,0))","v":""},{"$f":"IF(C733=$X$4,\"Enter smelter details\", IF(ISERROR($V733),\"\",OFFSET('Smelter Look-up'!$F$4,$V733-4,0)))","v":""},{"$f":"IF(ISERROR($V733),\"\",OFFSET('Smelter Look-up'!$G$4,$V733-4,0))","v":""},{"$f":"IF(ISERROR($V733),\"\",OFFSET('Smelter Look-up'!$H$4,$V733-4,0))","v":""},{"$f":"IF(ISERROR($V733),\"\",OFFSET('Smelter Look-up'!$I$4,$V733-4,0))","v":""},{"$nulls":7},{"$f":"IF(ISERROR($V733),\"\",OFFSET('Smelter Look-up'!$C$4,$V733-4,0)&\"\")","v":""},"",{"$f":"IF(B733=\"\",\"\",IF(ISERROR(MATCH($J733,SorP!$B$1:$B$6230,0)),\"\",INDIRECT(\"'SorP'!$A$\"&MATCH($J733,SorP!$B$1:$B$6230,0))))","v":""},null,{"$f":"IF(C733=\"\",NA(),MATCH($B733&$C733,'Smelter Look-up'!$J:$J,0))","v":{"$error":"#N/A"}},null,0,null,null,null,""]
[null,{"$f":"IF(LEN(A734)=0,\"\",INDEX('Smelter Look-up'!$A:$A,MATCH($A734,'Smelter Look-up'!$E:$E,0)))","v":""},{"$f":"IF(LEN(A734)=0,\"\",INDEX('Smelter Look-up'!$C:$C,MATCH($A734,'Smelter Look-up'!$E:$E,0)))","v":""},null,{"$f":"IF(ISERROR($V734),\"\",OFFSET('Smelter Look-up'!$D$4,$V734-4,0)&\"\")","v":""},{"$f":"IF(ISERROR($V734),\"\",OFFSET('Smelter Look-up'!$E$4,$V734-4,0))","v":""},{"$f":"IF(C734=$X$4,\"Enter smelter details\", IF(ISERROR($V734),\"\",OFFSET('Smelter Look-up'!$F$4,$V734-4,0)))","v":""},{"$f":"IF(ISERROR($V734),\"\",OFFSET('Smelter Look-up'!$G$4,$V734-4,0))","v":""},{"$f":"IF(ISERROR($V734),\"\",OFFSET('Smelter Look-up'!$H$4,$V734-4,0))","v":""},{"$f":"IF(ISERROR($V734),\"\",OFFSET('Smelter Look-up'!$I$4,$V734-4,0))","v":""},{"$nulls":7},{"$f":"IF(ISERROR($V734),\"\",OFFSET('Smelter Look-up'!$C$4,$V734-4,0)&\"\")","v":""},"",{"$f":"IF(B734=\"\",\"\",IF(ISERROR(MATCH($J734,SorP!$B$1:$B$6230,0)),\"\",INDIRECT(\"'SorP'!$A$\"&MATCH($J734,SorP!$B$1:$B$6230,0))))","v":""},null,{"$f":"IF(C734=\"\",NA(),MATCH($B734&$C734,'Smelter Look-up'!$J:$J,0))","v":{"$error":"#N/A"}},null,0,null,null,null,""]
[null,{"$f":"IF(LEN(A735)=0,\"\",INDEX('Smelter Look-up'!$A:$A,MATCH($A735,'Smelter Look-up'!$E:$E,0)))","v":""},{"$f":"IF(LEN(A735)=0,\"\",INDEX('Smelter Look-up'!$C:$C,MATCH($A735,'Smelter Look-up'!$E:$E,0)))","v":""},null,{"$f":"IF(ISERROR($V735),\"\",OFFSET('Smelter Look-up'!$D$4,$V735-4,0)&\"\")","v":""},{"$f":"IF(ISERROR($V735),\"\",OFFSET('Smelter Look-up'!$E$4,$V735-4,0))","v":""},{"$f":"IF(C735=$X$4,\"Enter smelter details\", IF(ISERROR($V735),\"\",OFFSET('Smelter Look-up'!$F$4,$V735-4,0)))","v":""},{"$f":"IF(ISERROR($V735),\"\",OFFSET('Smelter Look-up'!$G$4,$V735-4,0))","v":""},{"$f":"IF(ISERROR($V735),\"\",OFFSET('Smelter Look-up'!$H$4,$V735-4,0))","v":""},{"$f":"IF(ISERROR($V735),\"\",OFFSET('Smelter Look-up'!$I$4,$V735-4,0))","v":""},{"$nulls":7},{"$f":"IF(ISERROR($V735),\"\",OFFSET('Smelter Look-up'!$C$4,$V735-4,0)&\"\")","v":""},"",{"$f":"IF(B735=\"\",\"\",IF(ISERROR(MATCH($J735,SorP!$B$1:$B$6230,0)),\"\",INDIRECT(\"'SorP'!$A$\"&MATCH($J735,SorP!$B$1:$B$6230,0))))","v":""},null,{"$f":"IF(C735=\"\",NA(),MATCH($B735&$C735,'Smelter Look-up'!$J:$J,0))","v":{"$error":"#N/A"}},null,0,null,null,null,""]
[null,{"$f":"IF(LEN(A736)=0,\"\",INDEX('Smelter Look-up'!$A:$A,MATCH($A736,'Smelter Look-up'!$E:$E,0)))","v":""},{"$f":"IF(LEN(A736)=0,\"\",INDEX('Smelter Look-up'!$C:$C,MATCH($A736,'Smelter Look-up'!$E:$E,0)))","v":""},null,{"$f":"IF(ISERROR($V736),\"\",OFFSET('Smelter Look-up'!$D$4,$V736-4,0)&\"\")","v":""},{"$f":"IF(ISERROR($V736),\"\",OFFSET('Smelter Look-up'!$E$4,$V736-4,0))","v":""},{"$f":"IF(C736=$X$4,\"Enter smelter details\", IF(ISERROR($V736),\"\",OFFSET('Smelter Look-up'!$F$4,$V736-4,0)))","v":""},{"$f":"IF(ISERROR($V736),\"\",OFFSET('Smelter Look-up'!$G$4,$V736-4,0))","v":""},{"$f":"IF(ISERROR($V736),\"\",OFFSET('Smelter Look-up'!$H$4,$V736-4,0))","v":""},{"$f":"IF(ISERROR($V736),\"\",OFFSET('Smelter Look-up'!$I$4,$V736-4,0))","v":""},{"$nulls":7},{"$f":"IF(ISERROR($V736),\"\",OFFSET('Smelter Look-up'!$C$4,$V736-4,0)&\"\")","v":""},"",{"$f":"IF(B736=\"\",\"\",IF(ISERROR(MATCH($J736,SorP!$B$1:$B$6230,0)),\"\",INDIRECT(\"'SorP'!$A$\"&MATCH($J736,SorP!$B$1:$B$6230,0))))","v":""},null,{"$f":"IF(C736=\"\",NA(),MATCH($B736&$C736,'Smelter Look-up'!$J:$J,0))","v":{"$error":"#N/A"}},null,0,null,null,null,""]
[null,{"$f":"IF(LEN(A737)=0,\"\",INDEX('Smelter Look-up'!$A:$A,MATCH($A737,'Smelter Look-up'!$E:$E,0)))","v":""},{"$f":"IF(LEN(A737)=0,\"\",INDEX('Smelter Look-up'!$C:$C,MATCH($A737,'Smelter Look-up'!$E:$E,0)))","v":""},null,{"$f":"IF(ISERROR($V737),\"\",OFFSET('Smelter Look-up'!$D$4,$V737-4,0)&\"\")","v":""},{"$f":"IF(ISERROR($V737),\"\",OFFSET('Smelter Look-up'!$E$4,$V737-4,0))","v":""},{"$f":"IF(C737=$X$4,\"Enter smelter details\", IF(ISERROR($V737),\"\",OFFSET('Smelter Look-up'!$F$4,$V737-4,0)))","v":""},{"$f":"IF(ISERROR($V737),\"\",OFFSET('Smelter Look-up'!$G$4,$V737-4,0))","v":""},{"$f":"IF(ISERROR($V737),\"\",OFFSET('Smelter Look-up'!$H$4,$V737-4,0))","v":""},{"$f":"IF(ISERROR($V737),\"\",OFFSET('Smelter Look-up'!$I$4,$V737-4,0))","v":""},{"$nulls":7},{"$f":"IF(ISERROR($V737),\"\",OFFSET('Smelter Look-up'!$C$4,$V737-4,0)&\"\")","v":""},"",{"$f":"IF(B737=\"\",\"\",IF(ISERROR(MATCH($J737,SorP!$B$1:$B$6230,0)),\"\",INDIRECT(\"'SorP'!$A$\"&MATCH($J737,SorP!$B$1:$B$6230,0))))","v":""},null,{"$f":"IF(C737=\"\",NA(),MATCH($B737&$C737,'Smelter Look-up'!$J:$J,0))","v":{"$error":"#N/A"}},null,0,null,null,null,""]
[null,{"$f":"IF(LEN(A738)=0,\"\",INDEX('Smelter Look-up'!$A:$A,MATCH($A738,'Smelter Look-up'!$E:$E,0)))","v":""},{"$f":"IF(LEN(A738)=0,\"\",INDEX('Smelter Look-up'!$C:$C,MATCH($A738,'Smelter Look-up'!$E:$E,0)))","v":""},null,{"$f":"IF(ISERROR($V738),\"\",OFFSET('Smelter Look-up'!$D$4,$V738-4,0)&\"\")","v":""},{"$f":"IF(ISERROR($V738),\"\",OFFSET('Smelter Look-up'!$E$4,$V738-4,0))","v":""},{"$f":"IF(C738=$X$4,\"Enter smelter details\", IF(ISERROR($V738),\"\",OFFSET('Smelter Look-up'!$F$4,$V738-4,0)))","v":""},{"$f":"IF(ISERROR($V738),\"\",OFFSET('Smelter Look-up'!$G$4,$V738-4,0))","v":""},{"$f":"IF(ISERROR($V738),\"\",OFFSET('Smelter Look-up'!$H$4,$V738-4,0))","v":""},{"$f":"IF(ISERROR($V738),\"\",OFFSET('Smelter Look-up'!$I$4,$V738-4,0))","v":""},{"$nulls":7},{"$f":"IF(ISERROR($V738),\"\",OFFSET('Smelter Look-up'!$C$4,$V738-4,0)&\"\")","v":""},"",{"$f":"IF(B738=\"\",\"\",IF(ISERROR(MATCH($J738,SorP!$B$1:$B$6230,0)),\"\",INDIRECT(\"'SorP'!$A$\"&MATCH($J738,SorP!$B$1:$B$6230,0))))","v":""},null,{"$f":"IF(C738=\"\",NA(),MATCH($B738&$C738,'Smelter Look-up'!$J:$J,0))","v":{"$error":"#N/A"}},null,0,null,null,null,""]
[null,{"$f":"IF(LEN(A739)=0,\"\",INDEX('Smelter Look-up'!$A:$A,MATCH($A739,'Smelter Look-up'!$E:$E,0)))","v":""},{"$f":"IF(LEN(A739)=0,\"\",INDEX('Smelter Look-up'!$C:$C,MATCH($A739,'Smelter Look-up'!$E:$E,0)))","v":""},null,{"$f":"IF(ISERROR($V739),\"\",OFFSET('Smelter Look-up'!$D$4,$V739-4,0)&\"\")","v":""},{"$f":"IF(ISERROR($V739),\"\",OFFSET('Smelter Look-up'!$E$4,$V739-4,0))","v":""},{"$f":"IF(C739=$X$4,\"Enter smelter details\", IF(ISERROR($V739),\"\",OFFSET('Smelter Look-up'!$F$4,$V739-4,0)))","v":""},{"$f":"IF(ISERROR($V739),\"\",OFFSET('Smelter Look-up'!$G$4,$V739-4,0))","v":""},{"$f":"IF(ISERROR($V739),\"\",OFFSET('Smelter Look-up'!$H$4,$V739-4,0))","v":""},{"$f":"IF(ISERROR($V739),\"\",OFFSET('Smelter Look-up'!$I$4,$V739-4,0))","v":""},{"$nulls":7},{"$f":"IF(ISERROR($V739),\"\",OFFSET('Smelter Look-up'!$C$4,$V739-4,0)&\"\")","v":""},"",{"$f":"IF(B739=\"\",\"\",IF(ISERROR(MATCH($J739,SorP!$B$1:$B$6230,0)),\"\",INDIRECT(\"'SorP'!$A$\"&MATCH($J739,SorP!$B$1:$B$6230,0))))","v":""},null,{"$f":"IF(C739=\"\",NA(),MATCH($B739&$C739,'Smelter Look-up'!$J:$J,0))","v":{"$error":"#N/A"}},null,0,null,null,null,""]
[null,{"$f":"IF(LEN(A740)=0,\"\",INDEX('Smelter Look-up'!$A:$A,MATCH($A740,'Smelter Look-up'!$E:$E,0)))","v":""},{"$f":"IF(LEN(A740)=0,\"\",INDEX('Smelter Look-up'!$C:$C,MATCH($A740,'Smelter Look-up'!$E:$E,0)))","v":""},null,{"$f":"IF(ISERROR($V740),\"\",OFFSET('Smelter Look-up'!$D$4,$V740-4,0)&\"\")","v":""},{"$f":"IF(ISERROR($V740),\"\",OFFSET('Smelter Look-up'!$E$4,$V740-4,0))","v":""},{"$f":"IF(C740=$X$4,\"Enter smelter details\", IF(ISERROR($V740),\"\",OFFSET('Smelter Look-up'!$F$4,$V740-4,0)))","v":""},{"$f":"IF(ISERROR($V740),\"\",OFFSET('Smelter Look-up'!$G$4,$V740-4,0))","v":""},{"$f":"IF(ISERROR($V740),\"\",OFFSET('Smelter Look-up'!$H$4,$V740-4,0))","v":""},{"$f":"IF(ISERROR($V740),\"\",OFFSET('Smelter Look-up'!$I$4,$V740-4,0))","v":""},{"$nulls":7},{"$f":"IF(ISERROR($V740),\"\",OFFSET('Smelter Look-up'!$C$4,$V740-4,0)&\"\")","v":""},"",{"$f":"IF(B740=\"\",\"\",IF(ISERROR(MATCH($J740,SorP!$B$1:$B$6230,0)),\"\",INDIRECT(\"'SorP'!$A$\"&MATCH($J740,SorP!$B$1:$B$6230,0))))","v":""},null,{"$f":"IF(C740=\"\",NA(),MATCH($B740&$C740,'Smelter Look-up'!$J:$J,0))","v":{"$error":"#N/A"}},null,0,null,null,null,""]
[null,{"$f":"IF(LEN(A741)=0,\"\",INDEX('Smelter Look-up'!$A:$A,MATCH($A741,'Smelter Look-up'!$E:$E,0)))","v":""},{"$f":"IF(LEN(A741)=0,\"\",INDEX('Smelter Look-up'!$C:$C,MATCH($A741,'Smelter Look-up'!$E:$E,0)))","v":""},null,{"$f":"IF(ISERROR($V741),\"\",OFFSET('Smelter Look-up'!$D$4,$V741-4,0)&\"\")","v":""},{"$f":"IF(ISERROR($V741),\"\",OFFSET('Smelter Look-up'!$E$4,$V741-4,0))","v":""},{"$f":"IF(C741=$X$4,\"Enter smelter details\", IF(ISERROR($V741),\"\",OFFSET('Smelter Look-up'!$F$4,$V741-4,0)))","v":""},{"$f":"IF(ISERROR($V741),\"\",OFFSET('Smelter Look-up'!$G$4,$V741-4,0))","v":""},{"$f":"IF(ISERROR($V741),\"\",OFFSET('Smelter Look-up'!$H$4,$V741-4,0))","v":""},{"$f":"IF(ISERROR($V741),\"\",OFFSET('Smelter Look-up'!$I$4,$V741-4,0))","v":""},{"$nulls":7},{"$f":"IF(ISERROR($V741),\"\",OFFSET('Smelter Look-up'!$C$4,$V741-4,0)&\"\")","v":""},"",{"$f":"IF(B741=\"\",\"\",IF(ISERROR(MATCH($J741,SorP!$B$1:$B$6230,0)),\"\",INDIRECT(\"'SorP'!$A$\"&MATCH($J741,SorP!$B$1:$B$6230,0))))","v":""},null,{"$f":"IF(C741=\"\",NA(),MATCH($B741&$C741,'Smelter Look-up'!$J:$J,0))","v":{"$error":"#N/A"}},null,0,null,null,null,""]
[null,{"$f":"IF(LEN(A742)=0,\"\",INDEX('Smelter Look-up'!$A:$A,MATCH($A742,'Smelter Look-up'!$E:$E,0)))","v":""},{"$f":"IF(LEN(A742)=0,\"\",INDEX('Smelter Look-up'!$C:$C,MATCH($A742,'Smelter Look-up'!$E:$E,0)))","v":""},null,{"$f":"IF(ISERROR($V742),\"\",OFFSET('Smelter Look-up'!$D$4,$V742-4,0)&\"\")","v":""},{"$f":"IF(ISERROR($V742),\"\",OFFSET('Smelter Look-up'!$E$4,$V742-4,0))","v":""},{"$f":"IF(C742=$X$4,\"Enter smelter details\", IF(ISERROR($V742),\"\",OFFSET('Smelter Look-up'!$F$4,$V742-4,0)))","v":""},{"$f":"IF(ISERROR($V742),\"\",OFFSET('Smelter Look-up'!$G$4,$V742-4,0))","v":""},{"$f":"IF(ISERROR($V742),\"\",OFFSET('Smelter Look-up'!$H$4,$V742-4,0))","v":""},{"$f":"IF(ISERROR($V742),\"\",OFFSET('Smelter Look-up'!$I$4,$V742-4,0))","v":""},{"$nulls":7},{"$f":"IF(ISERROR($V742),\"\",OFFSET('Smelter Look-up'!$C$4,$V742-4,0)&\"\")","v":""},"",{"$f":"IF(B742=\"\",\"\",IF(ISERROR(MATCH($J742,SorP!$B$1:$B$6230,0)),\"\",INDIRECT(\"'SorP'!$A$\"&MATCH($J742,SorP!$B$1:$B$6230,0))))","v":""},null,{"$f":"IF(C742=\"\",NA(),MATCH($B742&$C742,'Smelter Look-up'!$J:$J,0))","v":{"$error":"#N/A"}},null,0,null,null,null,""]
[null,{"$f":"IF(LEN(A743)=0,\"\",INDEX('Smelter Look-up'!$A:$A,MATCH($A743,'Smelter Look-up'!$E:$E,0)))","v":""},{"$f":"IF(LEN(A743)=0,\"\",INDEX('Smelter Look-up'!$C:$C,MATCH($A743,'Smelter Look-up'!$E:$E,0)))","v":""},null,{"$f":"IF(ISERROR($V743),\"\",OFFSET('Smelter Look-up'!$D$4,$V743-4,0)&\"\")","v":""},{"$f":"IF(ISERROR($V743),\"\",OFFSET('Smelter Look-up'!$E$4,$V743-4,0))","v":""},{"$f":"IF(C743=$X$4,\"Enter smelter details\", IF(ISERROR($V743),\"\",OFFSET('Smelter Look-up'!$F$4,$V743-4,0)))","v":""},{"$f":"IF(ISERROR($V743),\"\",OFFSET('Smelter Look-up'!$G$4,$V743-4,0))","v":""},{"$f":"IF(ISERROR($V743),\"\",OFFSET('Smelter Look-up'!$H$4,$V743-4,0))","v":""},{"$f":"IF(ISERROR($V743),\"\",OFFSET('Smelter Look-up'!$I$4,$V743-4,0))","v":""},{"$nulls":7},{"$f":"IF(ISERROR($V743),\"\",OFFSET('Smelter Look-up'!$C$4,$V743-4,0)&\"\")","v":""},"",{"$f":"IF(B743=\"\",\"\",IF(ISERROR(MATCH($J743,SorP!$B$1:$B$6230,0)),\"\",INDIRECT(\"'SorP'!$A$\"&MATCH($J743,SorP!$B$1:$B$6230,0))))","v":""},null,{"$f":"IF(C743=\"\",NA(),MATCH($B743&$C743,'Smelter Look-up'!$J:$J,0))","v":{"$error":"#N/A"}},null,0,null,null,null,""]
[null,{"$f":"IF(LEN(A744)=0,\"\",INDEX('Smelter Look-up'!$A:$A,MATCH($A744,'Smelter Look-up'!$E:$E,0)))","v":""},{"$f":"IF(LEN(A744)=0,\"\",INDEX('Smelter Look-up'!$C:$C,MATCH($A744,'Smelter Look-up'!$E:$E,0)))","v":""},null,{"$f":"IF(ISERROR($V744),\"\",OFFSET('Smelter Look-up'!$D$4,$V744-4,0)&\"\")","v":""},{"$f":"IF(ISERROR($V744),\"\",OFFSET('Smelter Look-up'!$E$4,$V744-4,0))","v":""},{"$f":"IF(C744=$X$4,\"Enter smelter details\", IF(ISERROR($V744),\"\",OFFSET('Smelter Look-up'!$F$4,$V744-4,0)))","v":""},{"$f":"IF(ISERROR($V744),\"\",OFFSET('Smelter Look-up'!$G$4,$V744-4,0))","v":""},{"$f":"IF(ISERROR($V744),\"\",OFFSET('Smelter Look-up'!$H$4,$V744-4,0))","v":""},{"$f":"IF(ISERROR($V744),\"\",OFFSET('Smelter Look-up'!$I$4,$V744-4,0))","v":""},{"$nulls":7},{"$f":"IF(ISERROR($V744),\"\",OFFSET('Smelter Look-up'!$C$4,$V744-4,0)&\"\")","v":""},"",{"$f":"IF(B744=\"\",\"\",IF(ISERROR(MATCH($J744,SorP!$B$1:$B$6230,0)),\"\",INDIRECT(\"'SorP'!$A$\"&MATCH($J744,SorP!$B$1:$B$6230,0))))","v":""},null,{"$f":"IF(C744=\"\",NA(),MATCH($B744&$C744,'Smelter Look-up'!$J:$J,0))","v":{"$error":"#N/A"}},null,0,null,null,null,""]
[null,{"$f":"IF(LEN(A745)=0,\"\",INDEX('Smelter Look-up'!$A:$A,MATCH($A745,'Smelter Look-up'!$E:$E,0)))","v":""},{"$f":"IF(LEN(A745)=0,\"\",INDEX('Smelter Look-up'!$C:$C,MATCH($A745,'Smelter Look-up'!$E:$E,0)))","v":""},null,{"$f":"IF(ISERROR($V745),\"\",OFFSET('Smelter Look-up'!$D$4,$V745-4,0)&\"\")","v":""},{"$f":"IF(ISERROR($V745),\"\",OFFSET('Smelter Look-up'!$E$4,$V745-4,0))","v":""},{"$f":"IF(C745=$X$4,\"Enter smelter details\", IF(ISERROR($V745),\"\",OFFSET('Smelter Look-up'!$F$4,$V745-4,0)))","v":""},{"$f":"IF(ISERROR($V745),\"\",OFFSET('Smelter Look-up'!$G$4,$V745-4,0))","v":""},{"$f":"IF(ISERROR($V745),\"\",OFFSET('Smelter Look-up'!$H$4,$V745-4,0))","v":""},{"$f":"IF(ISERROR($V745),\"\",OFFSET('Smelter Look-up'!$I$4,$V745-4,0))","v":""},{"$nulls":7},{"$f":"IF(ISERROR($V745),\"\",OFFSET('Smelter Look-up'!$C$4,$V745-4,0)&\"\")","v":""},"",{"$f":"IF(B745=\"\",\"\",IF(ISERROR(MATCH($J745,SorP!$B$1:$B$6230,0)),\"\",INDIRECT(\"'SorP'!$A$\"&MATCH($J745,SorP!$B$1:$B$6230,0))))","v":""},null,{"$f":"IF(C745=\"\",NA(),MATCH($B745&$C745,'Smelter Look-up'!$J:$J,0))","v":{"$error":"#N/A"}},null,0,null,null,null,""]
[null,{"$f":"IF(LEN(A746)=0,\"\",INDEX('Smelter Look-up'!$A:$A,MATCH($A746,'Smelter Look-up'!$E:$E,0)))","v":""},{"$f":"IF(LEN(A746)=0,\"\",INDEX('Smelter Look-up'!$C:$C,MATCH($A746,'Smelter Look-up'!$E:$E,0)))","v":""},null,{"$f":"IF(ISERROR($V746),\"\",OFFSET('Smelter Look-up'!$D$4,$V746-4,0)&\"\")","v":""},{"$f":"IF(ISERROR($V746),\"\",OFFSET('Smelter Look-up'!$E$4,$V746-4,0))","v":""},{"$f":"IF(C746=$X$4,\"Enter smelter details\", IF(ISERROR($V746),\"\",OFFSET('Smelter Look-up'!$F$4,$V746-4,0)))","v":""},{"$f":"IF(ISERROR($V746),\"\",OFFSET('Smelter Look-up'!$G$4,$V746-4,0))","v":""},{"$f":"IF(ISERROR($V746),\"\",OFFSET('Smelter Look-up'!$H$4,$V746-4,0))","v":""},{"$f":"IF(ISERROR($V746),\"\",OFFSET('Smelter Look-up'!$I$4,$V746-4,0))","v":""},{"$nulls":7},{"$f":"IF(ISERROR($V746),\"\",OFFSET('Smelter Look-up'!$C$4,$V746-4,0)&\"\")","v":""},"",{"$f":"IF(B746=\"\",\"\",IF(ISERROR(MATCH($J746,SorP!$B$1:$B$6230,0)),\"\",INDIRECT(\"'SorP'!$A$\"&MATCH($J746,SorP!$B$1:$B$6230,0))))","v":""},null,{"$f":"IF(C746=\"\",NA(),MATCH($B746&$C746,'Smelter Look-up'!$J:$J,0))","v":{"$error":"#N/A"}},null,0,null,null,null,""]
[null,{"$f":"IF(LEN(A747)=0,\"\",INDEX('Smelter Look-up'!$A:$A,MATCH($A747,'Smelter Look-up'!$E:$E,0)))","v":""},{"$f":"IF(LEN(A747)=0,\"\",INDEX('Smelter Look-up'!$C:$C,MATCH($A747,'Smelter Look-up'!$E:$E,0)))","v":""},null,{"$f":"IF(ISERROR($V747),\"\",OFFSET('Smelter Look-up'!$D$4,$V747-4,0)&\"\")","v":""},{"$f":"IF(ISERROR($V747),\"\",OFFSET('Smelter Look-up'!$E$4,$V747-4,0))","v":""},{"$f":"IF(C747=$X$4,\"Enter smelter details\", IF(ISERROR($V747),\"\",OFFSET('Smelter Look-up'!$F$4,$V747-4,0)))","v":""},{"$f":"IF(ISERROR($V747),\"\",OFFSET('Smelter Look-up'!$G$4,$V747-4,0))","v":""},{"$f":"IF(ISERROR($V747),\"\",OFFSET('Smelter Look-up'!$H$4,$V747-4,0))","v":""},{"$f":"IF(ISERROR($V747),\"\",OFFSET('Smelter Look-up'!$I$4,$V747-4,0))","v":""},{"$nulls":7},{"$f":"IF(ISERROR($V747),\"\",OFFSET('Smelter Look-up'!$C$4,$V747-4,0)&\"\")","v":""},"",{"$f":"IF(B747=\"\",\"\",IF(ISERROR(MATCH($J747,SorP!$B$1:$B$6230,0)),\"\",INDIRECT(\"'SorP'!$A$\"&MATCH($J747,SorP!$B$1:$B$6230,0))))","v":""},null,{"$f":"IF(C747=\"\",NA(),MATCH($B747&$C747,'Smelter Look-up'!$J:$J,0))","v":{"$error":"#N/A"}},null,0,null,null,null,""]
[null,{"$f":"IF(LEN(A748)=0,\"\",INDEX('Smelter Look-up'!$A:$A,MATCH($A748,'Smelter Look-up'!$E:$E,0)))","v":""},{"$f":"IF(LEN(A748)=0,\"\",INDEX('Smelter Look-up'!$C:$C,MATCH($A748,'Smelter Look-up'!$E:$E,0)))","v":""},null,{"$f":"IF(ISERROR($V748),\"\",OFFSET('Smelter Look-up'!$D$4,$V748-4,0)&\"\")","v":""},{"$f":"IF(ISERROR($V748),\"\",OFFSET('Smelter Look-up'!$E$4,$V748-4,0))","v":""},{"$f":"IF(C748=$X$4,\"Enter smelter details\", IF(ISERROR($V748),\"\",OFFSET('Smelter Look-up'!$F$4,$V748-4,0)))","v":""},{"$f":"IF(ISERROR($V748),\"\",OFFSET('Smelter Look-up'!$G$4,$V748-4,0))","v":""},{"$f":"IF(ISERROR($V748),\"\",OFFSET('Smelter Look-up'!$H$4,$V748-4,0))","v":""},{"$f":"IF(ISERROR($V748),\"\",OFFSET('Smelter Look-up'!$I$4,$V748-4,0))","v":""},{"$nulls":7},{"$f":"IF(ISERROR($V748),\"\",OFFSET('Smelter Look-up'!$C$4,$V748-4,0)&\"\")","v":""},"",{"$f":"IF(B748=\"\",\"\",IF(ISERROR(MATCH($J748,SorP!$B$1:$B$6230,0)),\"\",INDIRECT(\"'SorP'!$A$\"&MATCH($J748,SorP!$B$1:$B$6230,0))))","v":""},null,{"$f":"IF(C748=\"\",NA(),MATCH($B748&$C748,'Smelter Look-up'!$J:$J,0))","v":{"$error":"#N/A"}},null,0,null,null,null,""]
[null,{"$f":"IF(LEN(A749)=0,\"\",INDEX('Smelter Look-up'!$A:$A,MATCH($A749,'Smelter Look-up'!$E:$E,0)))","v":""},{"$f":"IF(LEN(A749)=0,\"\",INDEX('Smelter Look-up'!$C:$C,MATCH($A749,'Smelter Look-up'!$E:$E,0)))","v":""},null,{"$f":"IF(ISERROR($V749),\"\",OFFSET('Smelter Look-up'!$D$4,$V749-4,0)&\"\")","v":""},{"$f":"IF(ISERROR($V749),\"\",OFFSET('Smelter Look-up'!$E$4,$V749-4,0))","v":""},{"$f":"IF(C749=$X$4,\"Enter smelter details\", IF(ISERROR($V749),\"\",OFFSET('Smelter Look-up'!$F$4,$V749-4,0)))","v":""},{"$f":"IF(ISERROR($V749),\"\",OFFSET('Smelter Look-up'!$G$4,$V749-4,0))","v":""},{"$f":"IF(ISERROR($V749),\"\",OFFSET('Smelter Look-up'!$H$4,$V749-4,0))","v":""},{"$f":"IF(ISERROR($V749),\"\",OFFSET('Smelter Look-up'!$I$4,$V749-4,0))","v":""},{"$nulls":7},{"$f":"IF(ISERROR($V749),\"\",OFFSET('Smelter Look-up'!$C$4,$V749-4,0)&\"\")","v":""},"",{"$f":"IF(B749=\"\",\"\",IF(ISERROR(MATCH($J749,SorP!$B$1:$B$6230,0)),\"\",INDIRECT(\"'SorP'!$A$\"&MATCH($J749,SorP!$B$1:$B$6230,0))))","v":""},null,{"$f":"IF(C749=\"\",NA(),MATCH($B749&$C749,'Smelter Look-up'!$J:$J,0))","v":{"$error":"#N/A"}},null,0,null,null,null,""]
[null,{"$f":"IF(LEN(A750)=0,\"\",INDEX('Smelter Look-up'!$A:$A,MATCH($A750,'Smelter Look-up'!$E:$E,0)))","v":""},{"$f":"IF(LEN(A750)=0,\"\",INDEX('Smelter Look-up'!$C:$C,MATCH($A750,'Smelter Look-up'!$E:$E,0)))","v":""},null,{"$f":"IF(ISERROR($V750),\"\",OFFSET('Smelter Look-up'!$D$4,$V750-4,0)&\"\")","v":""},{"$f":"IF(ISERROR($V750),\"\",OFFSET('Smelter Look-up'!$E$4,$V750-4,0))","v":""},{"$f":"IF(C750=$X$4,\"Enter smelter details\", IF(ISERROR($V750),\"\",OFFSET('Smelter Look-up'!$F$4,$V750-4,0)))","v":""},{"$f":"IF(ISERROR($V750),\"\",OFFSET('Smelter Look-up'!$G$4,$V750-4,0))","v":""},{"$f":"IF(ISERROR($V750),\"\",OFFSET('Smelter Look-up'!$H$4,$V750-4,0))","v":""},{"$f":"IF(ISERROR($V750),\"\",OFFSET('Smelter Look-up'!$I$4,$V750-4,0))","v":""},{"$nulls":7},{"$f":"IF(ISERROR($V750),\"\",OFFSET('Smelter Look-up'!$C$4,$V750-4,0)&\"\")","v":""},"",{"$f":"IF(B750=\"\",\"\",IF(ISERROR(MATCH($J750,SorP!$B$1:$B$6230,0)),\"\",INDIRECT(\"'SorP'!$A$\"&MATCH($J750,SorP!$B$1:$B$6230,0))))","v":""},null,{"$f":"IF(C750=\"\",NA(),MATCH($B750&$C750,'Smelter Look-up'!$J:$J,0))","v":{"$error":"#N/A"}},null,0,null,null,null,""]
[null,{"$f":"IF(LEN(A751)=0,\"\",INDEX('Smelter Look-up'!$A:$A,MATCH($A751,'Smelter Look-up'!$E:$E,0)))","v":""},{"$f":"IF(LEN(A751)=0,\"\",INDEX('Smelter Look-up'!$C:$C,MATCH($A751,'Smelter Look-up'!$E:$E,0)))","v":""},null,{"$f":"IF(ISERROR($V751),\"\",OFFSET('Smelter Look-up'!$D$4,$V751-4,0)&\"\")","v":""},{"$f":"IF(ISERROR($V751),\"\",OFFSET('Smelter Look-up'!$E$4,$V751-4,0))","v":""},{"$f":"IF(C751=$X$4,\"Enter smelter details\", IF(ISERROR($V751),\"\",OFFSET('Smelter Look-up'!$F$4,$V751-4,0)))","v":""},{"$f":"IF(ISERROR($V751),\"\",OFFSET('Smelter Look-up'!$G$4,$V751-4,0))","v":""},{"$f":"IF(ISERROR($V751),\"\",OFFSET('Smelter Look-up'!$H$4,$V751-4,0))","v":""},{"$f":"IF(ISERROR($V751),\"\",OFFSET('Smelter Look-up'!$I$4,$V751-4,0))","v":""},{"$nulls":7},{"$f":"IF(ISERROR($V751),\"\",OFFSET('Smelter Look-up'!$C$4,$V751-4,0)&\"\")","v":""},"",{"$f":"IF(B751=\"\",\"\",IF(ISERROR(MATCH($J751,SorP!$B$1:$B$6230,0)),\"\",INDIRECT(\"'SorP'!$A$\"&MATCH($J751,SorP!$B$1:$B$6230,0))))","v":""},null,{"$f":"IF(C751=\"\",NA(),MATCH($B751&$C751,'Smelter Look-up'!$J:$J,0))","v":{"$error":"#N/A"}},null,0,null,null,null,""]
[null,{"$f":"IF(LEN(A752)=0,\"\",INDEX('Smelter Look-up'!$A:$A,MATCH($A752,'Smelter Look-up'!$E:$E,0)))","v":""},{"$f":"IF(LEN(A752)=0,\"\",INDEX('Smelter Look-up'!$C:$C,MATCH($A752,'Smelter Look-up'!$E:$E,0)))","v":""},null,{"$f":"IF(ISERROR($V752),\"\",OFFSET('Smelter Look-up'!$D$4,$V752-4,0)&\"\")","v":""},{"$f":"IF(ISERROR($V752),\"\",OFFSET('Smelter Look-up'!$E$4,$V752-4,0))","v":""},{"$f":"IF(C752=$X$4,\"Enter smelter details\", IF(ISERROR($V752),\"\",OFFSET('Smelter Look-up'!$F$4,$V752-4,0)))","v":""},{"$f":"IF(ISERROR($V752),\"\",OFFSET('Smelter Look-up'!$G$4,$V752-4,0))","v":""},{"$f":"IF(ISERROR($V752),\"\",OFFSET('Smelter Look-up'!$H$4,$V752-4,0))","v":""},{"$f":"IF(ISERROR($V752),\"\",OFFSET('Smelter Look-up'!$I$4,$V752-4,0))","v":""},{"$nulls":7},{"$f":"IF(ISERROR($V752),\"\",OFFSET('Smelter Look-up'!$C$4,$V752-4,0)&\"\")","v":""},"",{"$f":"IF(B752=\"\",\"\",IF(ISERROR(MATCH($J752,SorP!$B$1:$B$6230,0)),\"\",INDIRECT(\"'SorP'!$A$\"&MATCH($J752,SorP!$B$1:$B$6230,0))))","v":""},null,{"$f":"IF(C752=\"\",NA(),MATCH($B752&$C752,'Smelter Look-up'!$J:$J,0))","v":{"$error":"#N/A"}},null,0,null,null,null,""]
[null,{"$f":"IF(LEN(A753)=0,\"\",INDEX('Smelter Look-up'!$A:$A,MATCH($A753,'Smelter Look-up'!$E:$E,0)))","v":""},{"$f":"IF(LEN(A753)=0,\"\",INDEX('Smelter Look-up'!$C:$C,MATCH($A753,'Smelter Look-up'!$E:$E,0)))","v":""},null,{"$f":"IF(ISERROR($V753),\"\",OFFSET('Smelter Look-up'!$D$4,$V753-4,0)&\"\")","v":""},{"$f":"IF(ISERROR($V753),\"\",OFFSET('Smelter Look-up'!$E$4,$V753-4,0))","v":""},{"$f":"IF(C753=$X$4,\"Enter smelter details\", IF(ISERROR($V753),\"\",OFFSET('Smelter Look-up'!$F$4,$V753-4,0)))","v":""},{"$f":"IF(ISERROR($V753),\"\",OFFSET('Smelter Look-up'!$G$4,$V753-4,0))","v":""},{"$f":"IF(ISERROR($V753),\"\",OFFSET('Smelter Look-up'!$H$4,$V753-4,0))","v":""},{"$f":"IF(ISERROR($V753),\"\",OFFSET('Smelter Look-up'!$I$4,$V753-4,0))","v":""},{"$nulls":7},{"$f":"IF(ISERROR($V753),\"\",OFFSET('Smelter Look-up'!$C$4,$V753-4,0)&\"\")","v":""},"",{"$f":"IF(B753=\"\",\"\",IF(ISERROR(MATCH($J753,SorP!$B$1:$B$6230,0)),\"\",INDIRECT(\"'SorP'!$A$\"&MATCH($J753,SorP!$B$1:$B$6230,0))))","v":""},null,{"$f":"IF(C753=\"\",NA(),MATCH($B753&$C753,'Smelter Look-up'!$J:$J,0))","v":{"$error":"#N/A"}},null,0,null,null,null,""]
[null,{"$f":"IF(LEN(A754)=0,\"\",INDEX('Smelter Look-up'!$A:$A,MATCH($A754,'Smelter Look-up'!$E:$E,0)))","v":""},{"$f":"IF(LEN(A754)=0,\"\",INDEX('Smelter Look-up'!$C:$C,MATCH($A754,'Smelter Look-up'!$E:$E,0)))","v":""},null,{"$f":"IF(ISERROR($V754),\"\",OFFSET('Smelter Look-up'!$D$4,$V754-4,0)&\"\")","v":""},{"$f":"IF(ISERROR($V754),\"\",OFFSET('Smelter Look-up'!$E$4,$V754-4,0))","v":""},{"$f":"IF(C754=$X$4,\"Enter smelter details\", IF(ISERROR($V754),\"\",OFFSET('Smelter Look-up'!$F$4,$V754-4,0)))","v":""},{"$f":"IF(ISERROR($V754),\"\",OFFSET('Smelter Look-up'!$G$4,$V754-4,0))","v":""},{"$f":"IF(ISERROR($V754),\"\",OFFSET('Smelter Look-up'!$H$4,$V754-4,0))","v":""},{"$f":"IF(ISERROR($V754),\"\",OFFSET('Smelter Look-up'!$I$4,$V754-4,0))","v":""},{"$nulls":7},{"$f":"IF(ISERROR($V754),\"\",OFFSET('Smelter Look-up'!$C$4,$V754-4,0)&\"\")","v":""},"",{"$f":"IF(B754=\"\",\"\",IF(ISERROR(MATCH($J754,SorP!$B$1:$B$6230,0)),\"\",INDIRECT(\"'SorP'!$A$\"&MATCH($J754,SorP!$B$1:$B$6230,0))))","v":""},null,{"$f":"IF(C754=\"\",NA(),MATCH($B754&$C754,'Smelter Look-up'!$J:$J,0))","v":{"$error":"#N/A"}},null,0,null,null,null,""]
[null,{"$f":"IF(LEN(A755)=0,\"\",INDEX('Smelter Look-up'!$A:$A,MATCH($A755,'Smelter Look-up'!$E:$E,0)))","v":""},{"$f":"IF(LEN(A755)=0,\"\",INDEX('Smelter Look-up'!$C:$C,MATCH($A755,'Smelter Look-up'!$E:$E,0)))","v":""},null,{"$f":"IF(ISERROR($V755),\"\",OFFSET('Smelter Look-up'!$D$4,$V755-4,0)&\"\")","v":""},{"$f":"IF(ISERROR($V755),\"\",OFFSET('Smelter Look-up'!$E$4,$V755-4,0))","v":""},{"$f":"IF(C755=$X$4,\"Enter smelter details\", IF(ISERROR($V755),\"\",OFFSET('Smelter Look-up'!$F$4,$V755-4,0)))","v":""},{"$f":"IF(ISERROR($V755),\"\",OFFSET('Smelter Look-up'!$G$4,$V755-4,0))","v":""},{"$f":"IF(ISERROR($V755),\"\",OFFSET('Smelter Look-up'!$H$4,$V755-4,0))","v":""},{"$f":"IF(ISERROR($V755),\"\",OFFSET('Smelter Look-up'!$I$4,$V755-4,0))","v":""},{"$nulls":7},{"$f":"IF(ISERROR($V755),\"\",OFFSET('Smelter Look-up'!$C$4,$V755-4,0)&\"\")","v":""},"",{"$f":"IF(B755=\"\",\"\",IF(ISERROR(MATCH($J755,SorP!$B$1:$B$6230,0)),\"\",INDIRECT(\"'SorP'!$A$\"&MATCH($J755,SorP!$B$1:$B$6230,0))))","v":""},null,{"$f":"IF(C755=\"\",NA(),MATCH($B755&$C755,'Smelter Look-up'!$J:$J,0))","v":{"$error":"#N/A"}},null,0,null,null,null,""]
[null,{"$f":"IF(LEN(A756)=0,\"\",INDEX('Smelter Look-up'!$A:$A,MATCH($A756,'Smelter Look-up'!$E:$E,0)))","v":""},{"$f":"IF(LEN(A756)=0,\"\",INDEX('Smelter Look-up'!$C:$C,MATCH($A756,'Smelter Look-up'!$E:$E,0)))","v":""},null,{"$f":"IF(ISERROR($V756),\"\",OFFSET('Smelter Look-up'!$D$4,$V756-4,0)&\"\")","v":""},{"$f":"IF(ISERROR($V756),\"\",OFFSET('Smelter Look-up'!$E$4,$V756-4,0))","v":""},{"$f":"IF(C756=$X$4,\"Enter smelter details\", IF(ISERROR($V756),\"\",OFFSET('Smelter Look-up'!$F$4,$V756-4,0)))","v":""},{"$f":"IF(ISERROR($V756),\"\",OFFSET('Smelter Look-up'!$G$4,$V756-4,0))","v":""},{"$f":"IF(ISERROR($V756),\"\",OFFSET('Smelter Look-up'!$H$4,$V756-4,0))","v":""},{"$f":"IF(ISERROR($V756),\"\",OFFSET('Smelter Look-up'!$I$4,$V756-4,0))","v":""},{"$nulls":7},{"$f":"IF(ISERROR($V756),\"\",OFFSET('Smelter Look-up'!$C$4,$V756-4,0)&\"\")","v":""},"",{"$f":"IF(B756=\"\",\"\",IF(ISERROR(MATCH($J756,SorP!$B$1:$B$6230,0)),\"\",INDIRECT(\"'SorP'!$A$\"&MATCH($J756,SorP!$B$1:$B$6230,0))))","v":""},null,{"$f":"IF(C756=\"\",NA(),MATCH($B756&$C756,'Smelter Look-up'!$J:$J,0))","v":{"$error":"#N/A"}},null,0,null,null,null,""]
[null,{"$f":"IF(LEN(A757)=0,\"\",INDEX('Smelter Look-up'!$A:$A,MATCH($A757,'Smelter Look-up'!$E:$E,0)))","v":""},{"$f":"IF(LEN(A757)=0,\"\",INDEX('Smelter Look-up'!$C:$C,MATCH($A757,'Smelter Look-up'!$E:$E,0)))","v":""},null,{"$f":"IF(ISERROR($V757),\"\",OFFSET('Smelter Look-up'!$D$4,$V757-4,0)&\"\")","v":""},{"$f":"IF(ISERROR($V757),\"\",OFFSET('Smelter Look-up'!$E$4,$V757-4,0))","v":""},{"$f":"IF(C757=$X$4,\"Enter smelter details\", IF(ISERROR($V757),\"\",OFFSET('Smelter Look-up'!$F$4,$V757-4,0)))","v":""},{"$f":"IF(ISERROR($V757),\"\",OFFSET('Smelter Look-up'!$G$4,$V757-4,0))","v":""},{"$f":"IF(ISERROR($V757),\"\",OFFSET('Smelter Look-up'!$H$4,$V757-4,0))","v":""},{"$f":"IF(ISERROR($V757),\"\",OFFSET('Smelter Look-up'!$I$4,$V757-4,0))","v":""},{"$nulls":7},{"$f":"IF(ISERROR($V757),\"\",OFFSET('Smelter Look-up'!$C$4,$V757-4,0)&\"\")","v":""},"",{"$f":"IF(B757=\"\",\"\",IF(ISERROR(MATCH($J757,SorP!$B$1:$B$6230,0)),\"\",INDIRECT(\"'SorP'!$A$\"&MATCH($J757,SorP!$B$1:$B$6230,0))))","v":""},null,{"$f":"IF(C757=\"\",NA(),MATCH($B757&$C757,'Smelter Look-up'!$J:$J,0))","v":{"$error":"#N/A"}},null,0,null,null,null,""]
[null,{"$f":"IF(LEN(A758)=0,\"\",INDEX('Smelter Look-up'!$A:$A,MATCH($A758,'Smelter Look-up'!$E:$E,0)))","v":""},{"$f":"IF(LEN(A758)=0,\"\",INDEX('Smelter Look-up'!$C:$C,MATCH($A758,'Smelter Look-up'!$E:$E,0)))","v":""},null,{"$f":"IF(ISERROR($V758),\"\",OFFSET('Smelter Look-up'!$D$4,$V758-4,0)&\"\")","v":""},{"$f":"IF(ISERROR($V758),\"\",OFFSET('Smelter Look-up'!$E$4,$V758-4,0))","v":""},{"$f":"IF(C758=$X$4,\"Enter smelter details\", IF(ISERROR($V758),\"\",OFFSET('Smelter Look-up'!$F$4,$V758-4,0)))","v":""},{"$f":"IF(ISERROR($V758),\"\",OFFSET('Smelter Look-up'!$G$4,$V758-4,0))","v":""},{"$f":"IF(ISERROR($V758),\"\",OFFSET('Smelter Look-up'!$H$4,$V758-4,0))","v":""},{"$f":"IF(ISERROR($V758),\"\",OFFSET('Smelter Look-up'!$I$4,$V758-4,0))","v":""},{"$nulls":7},{"$f":"IF(ISERROR($V758),\"\",OFFSET('Smelter Look-up'!$C$4,$V758-4,0)&\"\")","v":""},"",{"$f":"IF(B758=\"\",\"\",IF(ISERROR(MATCH($J758,SorP!$B$1:$B$6230,0)),\"\",INDIRECT(\"'SorP'!$A$\"&MATCH($J758,SorP!$B$1:$B$6230,0))))","v":""},null,{"$f":"IF(C758=\"\",NA(),MATCH($B758&$C758,'Smelter Look-up'!$J:$J,0))","v":{"$error":"#N/A"}},null,0,null,null,null,""]
[null,{"$f":"IF(LEN(A759)=0,\"\",INDEX('Smelter Look-up'!$A:$A,MATCH($A759,'Smelter Look-up'!$E:$E,0)))","v":""},{"$f":"IF(LEN(A759)=0,\"\",INDEX('Smelter Look-up'!$C:$C,MATCH($A759,'Smelter Look-up'!$E:$E,0)))","v":""},null,{"$f":"IF(ISERROR($V759),\"\",OFFSET('Smelter Look-up'!$D$4,$V759-4,0)&\"\")","v":""},{"$f":"IF(ISERROR($V759),\"\",OFFSET('Smelter Look-up'!$E$4,$V759-4,0))","v":""},{"$f":"IF(C759=$X$4,\"Enter smelter details\", IF(ISERROR($V759),\"\",OFFSET('Smelter Look-up'!$F$4,$V759-4,0)))","v":""},{"$f":"IF(ISERROR($V759),\"\",OFFSET('Smelter Look-up'!$G$4,$V759-4,0))","v":""},{"$f":"IF(ISERROR($V759),\"\",OFFSET('Smelter Look-up'!$H$4,$V759-4,0))","v":""},{"$f":"IF(ISERROR($V759),\"\",OFFSET('Smelter Look-up'!$I$4,$V759-4,0))","v":""},{"$nulls":7},{"$f":"IF(ISERROR($V759),\"\",OFFSET('Smelter Look-up'!$C$4,$V759-4,0)&\"\")","v":""},"",{"$f":"IF(B759=\"\",\"\",IF(ISERROR(MATCH($J759,SorP!$B$1:$B$6230,0)),\"\",INDIRECT(\"'SorP'!$A$\"&MATCH($J759,SorP!$B$1:$B$6230,0))))","v":""},null,{"$f":"IF(C759=\"\",NA(),MATCH($B759&$C759,'Smelter Look-up'!$J:$J,0))","v":{"$error":"#N/A"}},null,0,null,null,null,""]
[null,{"$f":"IF(LEN(A760)=0,\"\",INDEX('Smelter Look-up'!$A:$A,MATCH($A760,'Smelter Look-up'!$E:$E,0)))","v":""},{"$f":"IF(LEN(A760)=0,\"\",INDEX('Smelter Look-up'!$C:$C,MATCH($A760,'Smelter Look-up'!$E:$E,0)))","v":""},null,{"$f":"IF(ISERROR($V760),\"\",OFFSET('Smelter Look-up'!$D$4,$V760-4,0)&\"\")","v":""},{"$f":"IF(ISERROR($V760),\"\",OFFSET('Smelter Look-up'!$E$4,$V760-4,0))","v":""},{"$f":"IF(C760=$X$4,\"Enter smelter details\", IF(ISERROR($V760),\"\",OFFSET('Smelter Look-up'!$F$4,$V760-4,0)))","v":""},{"$f":"IF(ISERROR($V760),\"\",OFFSET('Smelter Look-up'!$G$4,$V760-4,0))","v":""},{"$f":"IF(ISERROR($V760),\"\",OFFSET('Smelter Look-up'!$H$4,$V760-4,0))","v":""},{"$f":"IF(ISERROR($V760),\"\",OFFSET('Smelter Look-up'!$I$4,$V760-4,0))","v":""},{"$nulls":7},{"$f":"IF(ISERROR($V760),\"\",OFFSET('Smelter Look-up'!$C$4,$V760-4,0)&\"\")","v":""},"",{"$f":"IF(B760=\"\",\"\",IF(ISERROR(MATCH($J760,SorP!$B$1:$B$6230,0)),\"\",INDIRECT(\"'SorP'!$A$\"&MATCH($J760,SorP!$B$1:$B$6230,0))))","v":""},null,{"$f":"IF(C760=\"\",NA(),MATCH($B760&$C760,'Smelter Look-up'!$J:$J,0))","v":{"$error":"#N/A"}},null,0,null,null,null,""]
[null,{"$f":"IF(LEN(A761)=0,\"\",INDEX('Smelter Look-up'!$A:$A,MATCH($A761,'Smelter Look-up'!$E:$E,0)))","v":""},{"$f":"IF(LEN(A761)=0,\"\",INDEX('Smelter Look-up'!$C:$C,MATCH($A761,'Smelter Look-up'!$E:$E,0)))","v":""},null,{"$f":"IF(ISERROR($V761),\"\",OFFSET('Smelter Look-up'!$D$4,$V761-4,0)&\"\")","v":""},{"$f":"IF(ISERROR($V761),\"\",OFFSET('Smelter Look-up'!$E$4,$V761-4,0))","v":""},{"$f":"IF(C761=$X$4,\"Enter smelter details\", IF(ISERROR($V761),\"\",OFFSET('Smelter Look-up'!$F$4,$V761-4,0)))","v":""},{"$f":"IF(ISERROR($V761),\"\",OFFSET('Smelter Look-up'!$G$4,$V761-4,0))","v":""},{"$f":"IF(ISERROR($V761),\"\",OFFSET('Smelter Look-up'!$H$4,$V761-4,0))","v":""},{"$f":"IF(ISERROR($V761),\"\",OFFSET('Smelter Look-up'!$I$4,$V761-4,0))","v":""},{"$nulls":7},{"$f":"IF(ISERROR($V761),\"\",OFFSET('Smelter Look-up'!$C$4,$V761-4,0)&\"\")","v":""},"",{"$f":"IF(B761=\"\",\"\",IF(ISERROR(MATCH($J761,SorP!$B$1:$B$6230,0)),\"\",INDIRECT(\"'SorP'!$A$\"&MATCH($J761,SorP!$B$1:$B$6230,0))))","v":""},null,{"$f":"IF(C761=\"\",NA(),MATCH($B761&$C761,'Smelter Look-up'!$J:$J,0))","v":{"$error":"#N/A"}},null,0,null,null,null,""]
[null,{"$f":"IF(LEN(A762)=0,\"\",INDEX('Smelter Look-up'!$A:$A,MATCH($A762,'Smelter Look-up'!$E:$E,0)))","v":""},{"$f":"IF(LEN(A762)=0,\"\",INDEX('Smelter Look-up'!$C:$C,MATCH($A762,'Smelter Look-up'!$E:$E,0)))","v":""},null,{"$f":"IF(ISERROR($V762),\"\",OFFSET('Smelter Look-up'!$D$4,$V762-4,0)&\"\")","v":""},{"$f":"IF(ISERROR($V762),\"\",OFFSET('Smelter Look-up'!$E$4,$V762-4,0))","v":""},{"$f":"IF(C762=$X$4,\"Enter smelter details\", IF(ISERROR($V762),\"\",OFFSET('Smelter Look-up'!$F$4,$V762-4,0)))","v":""},{"$f":"IF(ISERROR($V762),\"\",OFFSET('Smelter Look-up'!$G$4,$V762-4,0))","v":""},{"$f":"IF(ISERROR($V762),\"\",OFFSET('Smelter Look-up'!$H$4,$V762-4,0))","v":""},{"$f":"IF(ISERROR($V762),\"\",OFFSET('Smelter Look-up'!$I$4,$V762-4,0))","v":""},{"$nulls":7},{"$f":"IF(ISERROR($V762),\"\",OFFSET('Smelter Look-up'!$C$4,$V762-4,0)&\"\")","v":""},"",{"$f":"IF(B762=\"\",\"\",IF(ISERROR(MATCH($J762,SorP!$B$1:$B$6230,0)),\"\",INDIRECT(\"'SorP'!$A$\"&MATCH($J762,SorP!$B$1:$B$6230,0))))","v":""},null,{"$f":"IF(C762=\"\",NA(),MATCH($B762&$C762,'Smelter Look-up'!$J:$J,0))","v":{"$error":"#N/A"}},null,0,null,null,null,""]
[null,{"$f":"IF(LEN(A763)=0,\"\",INDEX('Smelter Look-up'!$A:$A,MATCH($A763,'Smelter Look-up'!$E:$E,0)))","v":""},{"$f":"IF(LEN(A763)=0,\"\",INDEX('Smelter Look-up'!$C:$C,MATCH($A763,'Smelter Look-up'!$E:$E,0)))","v":""},null,{"$f":"IF(ISERROR($V763),\"\",OFFSET('Smelter Look-up'!$D$4,$V763-4,0)&\"\")","v":""},{"$f":"IF(ISERROR($V763),\"\",OFFSET('Smelter Look-up'!$E$4,$V763-4,0))","v":""},{"$f":"IF(C763=$X$4,\"Enter smelter details\", IF(ISERROR($V763),\"\",OFFSET('Smelter Look-up'!$F$4,$V763-4,0)))","v":""},{"$f":"IF(ISERROR($V763),\"\",OFFSET('Smelter Look-up'!$G$4,$V763-4,0))","v":""},{"$f":"IF(ISERROR($V763),\"\",OFFSET('Smelter Look-up'!$H$4,$V763-4,0))","v":""},{"$f":"IF(ISERROR($V763),\"\",OFFSET('Smelter Look-up'!$I$4,$V763-4,0))","v":""},{"$nulls":7},{"$f":"IF(ISERROR($V763),\"\",OFFSET('Smelter Look-up'!$C$4,$V763-4,0)&\"\")","v":""},{"$f":"IF(B763=\"\",\"\",IF(ISERROR(MATCH($E763,CL,0)),\"Unknown\",INDIRECT(\"'C'!$A$\"&MATCH($E763,CL,0)+1)))","v":""},{"$f":"IF(B763=\"\",\"\",IF(ISERROR(MATCH($J763,SorP!$B$1:$B$6230,0)),\"\",INDIRECT(\"'SorP'!$A$\"&MATCH($J763,SorP!$B$1:$B$6230,0))))","v":""},null,{"$f":"IF(C763=\"\",NA(),MATCH($B763&$C763,'Smelter Look-up'!$J:$J,0))","v":{"$error":"#N/A"}},null,{"$f":"IF(AND(C763=\"Smelter not listed\",OR(LEN(D763)=0,LEN(E763)=0)),1,0)","v":0},null,null,null,{"$f":"B763&C763","v":""}]
[null,{"$f":"IF(LEN(A764)=0,\"\",INDEX('Smelter Look-up'!$A:$A,MATCH($A764,'Smelter Look-up'!$E:$E,0)))","v":""},{"$f":"IF(LEN(A764)=0,\"\",INDEX('Smelter Look-up'!$C:$C,MATCH($A764,'Smelter Look-up'!$E:$E,0)))","v":""},null,{"$f":"IF(ISERROR($V764),\"\",OFFSET('Smelter Look-up'!$D$4,$V764-4,0)&\"\")","v":""},{"$f":"IF(ISERROR($V764),\"\",OFFSET('Smelter Look-up'!$E$4,$V764-4,0))","v":""},{"$f":"IF(C764=$X$4,\"Enter smelter details\", IF(ISERROR($V764),\"\",OFFSET('Smelter Look-up'!$F$4,$V764-4,0)))","v":""},{"$f":"IF(ISERROR($V764),\"\",OFFSET('Smelter Look-up'!$G$4,$V764-4,0))","v":""},{"$f":"IF(ISERROR($V764),\"\",OFFSET('Smelter Look-up'!$H$4,$V764-4,0))","v":""},{"$f":"IF(ISERROR($V764),\"\",OFFSET('Smelter Look-up'!$I$4,$V764-4,0))","v":""},{"$nulls":7},{"$f":"IF(ISERROR($V764),\"\",OFFSET('Smelter Look-up'!$C$4,$V764-4,0)&\"\")","v":""},"",{"$f":"IF(B764=\"\",\"\",IF(ISERROR(MATCH($J764,SorP!$B$1:$B$6230,0)),\"\",INDIRECT(\"'SorP'!$A$\"&MATCH($J764,SorP!$B$1:$B$6230,0))))","v":""},null,{"$f":"IF(C764=\"\",NA(),MATCH($B764&$C764,'Smelter Look-up'!$J:$J,0))","v":{"$error":"#N/A"}},null,0,null,null,null,""]
[null,{"$f":"IF(LEN(A765)=0,\"\",INDEX('Smelter Look-up'!$A:$A,MATCH($A765,'Smelter Look-up'!$E:$E,0)))","v":""},{"$f":"IF(LEN(A765)=0,\"\",INDEX('Smelter Look-up'!$C:$C,MATCH($A765,'Smelter Look-up'!$E:$E,0)))","v":""},null,{"$f":"IF(ISERROR($V765),\"\",OFFSET('Smelter Look-up'!$D$4,$V765-4,0)&\"\")","v":""},{"$f":"IF(ISERROR($V765),\"\",OFFSET('Smelter Look-up'!$E$4,$V765-4,0))","v":""},{"$f":"IF(C765=$X$4,\"Enter smelter details\", IF(ISERROR($V765),\"\",OFFSET('Smelter Look-up'!$F$4,$V765-4,0)))","v":""},{"$f":"IF(ISERROR($V765),\"\",OFFSET('Smelter Look-up'!$G$4,$V765-4,0))","v":""},{"$f":"IF(ISERROR($V765),\"\",OFFSET('Smelter Look-up'!$H$4,$V765-4,0))","v":""},{"$f":"IF(ISERROR($V765),\"\",OFFSET('Smelter Look-up'!$I$4,$V765-4,0))","v":""},{"$nulls":7},{"$f":"IF(ISERROR($V765),\"\",OFFSET('Smelter Look-up'!$C$4,$V765-4,0)&\"\")","v":""},"",{"$f":"IF(B765=\"\",\"\",IF(ISERROR(MATCH($J765,SorP!$B$1:$B$6230,0)),\"\",INDIRECT(\"'SorP'!$A$\"&MATCH($J765,SorP!$B$1:$B$6230,0))))","v":""},null,{"$f":"IF(C765=\"\",NA(),MATCH($B765&$C765,'Smelter Look-up'!$J:$J,0))","v":{"$error":"#N/A"}},null,0,null,null,null,""]
[null,{"$f":"IF(LEN(A766)=0,\"\",INDEX('Smelter Look-up'!$A:$A,MATCH($A766,'Smelter Look-up'!$E:$E,0)))","v":""},{"$f":"IF(LEN(A766)=0,\"\",INDEX('Smelter Look-up'!$C:$C,MATCH($A766,'Smelter Look-up'!$E:$E,0)))","v":""},null,{"$f":"IF(ISERROR($V766),\"\",OFFSET('Smelter Look-up'!$D$4,$V766-4,0)&\"\")","v":""},{"$f":"IF(ISERROR($V766),\"\",OFFSET('Smelter Look-up'!$E$4,$V766-4,0))","v":""},{"$f":"IF(C766=$X$4,\"Enter smelter details\", IF(ISERROR($V766),\"\",OFFSET('Smelter Look-up'!$F$4,$V766-4,0)))","v":""},{"$f":"IF(ISERROR($V766),\"\",OFFSET('Smelter Look-up'!$G$4,$V766-4,0))","v":""},{"$f":"IF(ISERROR($V766),\"\",OFFSET('Smelter Look-up'!$H$4,$V766-4,0))","v":""},{"$f":"IF(ISERROR($V766),\"\",OFFSET('Smelter Look-up'!$I$4,$V766-4,0))","v":""},{"$nulls":7},{"$f":"IF(ISERROR($V766),\"\",OFFSET('Smelter Look-up'!$C$4,$V766-4,0)&\"\")","v":""},"",{"$f":"IF(B766=\"\",\"\",IF(ISERROR(MATCH($J766,SorP!$B$1:$B$6230,0)),\"\",INDIRECT(\"'SorP'!$A$\"&MATCH($J766,SorP!$B$1:$B$6230,0))))","v":""},null,{"$f":"IF(C766=\"\",NA(),MATCH($B766&$C766,'Smelter Look-up'!$J:$J,0))","v":{"$error":"#N/A"}},null,0,null,null,null,""]
[null,{"$f":"IF(LEN(A767)=0,\"\",INDEX('Smelter Look-up'!$A:$A,MATCH($A767,'Smelter Look-up'!$E:$E,0)))","v":""},{"$f":"IF(LEN(A767)=0,\"\",INDEX('Smelter Look-up'!$C:$C,MATCH($A767,'Smelter Look-up'!$E:$E,0)))","v":""},null,{"$f":"IF(ISERROR($V767),\"\",OFFSET('Smelter Look-up'!$D$4,$V767-4,0)&\"\")","v":""},{"$f":"IF(ISERROR($V767),\"\",OFFSET('Smelter Look-up'!$E$4,$V767-4,0))","v":""},{"$f":"IF(C767=$X$4,\"Enter smelter details\", IF(ISERROR($V767),\"\",OFFSET('Smelter Look-up'!$F$4,$V767-4,0)))","v":""},{"$f":"IF(ISERROR($V767),\"\",OFFSET('Smelter Look-up'!$G$4,$V767-4,0))","v":""},{"$f":"IF(ISERROR($V767),\"\",OFFSET('Smelter Look-up'!$H$4,$V767-4,0))","v":""},{"$f":"IF(ISERROR($V767),\"\",OFFSET('Smelter Look-up'!$I$4,$V767-4,0))","v":""},{"$nulls":7},{"$f":"IF(ISERROR($V767),\"\",OFFSET('Smelter Look-up'!$C$4,$V767-4,0)&\"\")","v":""},"",{"$f":"IF(B767=\"\",\"\",IF(ISERROR(MATCH($J767,SorP!$B$1:$B$6230,0)),\"\",INDIRECT(\"'SorP'!$A$\"&MATCH($J767,SorP!$B$1:$B$6230,0))))","v":""},null,{"$f":"IF(C767=\"\",NA(),MATCH($B767&$C767,'Smelter Look-up'!$J:$J,0))","v":{"$error":"#N/A"}},null,0,null,null,null,""]
[null,{"$f":"IF(LEN(A768)=0,\"\",INDEX('Smelter Look-up'!$A:$A,MATCH($A768,'Smelter Look-up'!$E:$E,0)))","v":""},{"$f":"IF(LEN(A768)=0,\"\",INDEX('Smelter Look-up'!$C:$C,MATCH($A768,'Smelter Look-up'!$E:$E,0)))","v":""},null,{"$f":"IF(ISERROR($V768),\"\",OFFSET('Smelter Look-up'!$D$4,$V768-4,0)&\"\")","v":""},{"$f":"IF(ISERROR($V768),\"\",OFFSET('Smelter Look-up'!$E$4,$V768-4,0))","v":""},{"$f":"IF(C768=$X$4,\"Enter smelter details\", IF(ISERROR($V768),\"\",OFFSET('Smelter Look-up'!$F$4,$V768-4,0)))","v":""},{"$f":"IF(ISERROR($V768),\"\",OFFSET('Smelter Look-up'!$G$4,$V768-4,0))","v":""},{"$f":"IF(ISERROR($V768),\"\",OFFSET('Smelter Look-up'!$H$4,$V768-4,0))","v":""},{"$f":"IF(ISERROR($V768),\"\",OFFSET('Smelter Look-up'!$I$4,$V768-4,0))","v":""},{"$nulls":7},{"$f":"IF(ISERROR($V768),\"\",OFFSET('Smelter Look-up'!$C$4,$V768-4,0)&\"\")","v":""},"",{"$f":"IF(B768=\"\",\"\",IF(ISERROR(MATCH($J768,SorP!$B$1:$B$6230,0)),\"\",INDIRECT(\"'SorP'!$A$\"&MATCH($J768,SorP!$B$1:$B$6230,0))))","v":""},null,{"$f":"IF(C768=\"\",NA(),MATCH($B768&$C768,'Smelter Look-up'!$J:$J,0))","v":{"$error":"#N/A"}},null,0,null,null,null,""]
[null,{"$f":"IF(LEN(A769)=0,\"\",INDEX('Smelter Look-up'!$A:$A,MATCH($A769,'Smelter Look-up'!$E:$E,0)))","v":""},{"$f":"IF(LEN(A769)=0,\"\",INDEX('Smelter Look-up'!$C:$C,MATCH($A769,'Smelter Look-up'!$E:$E,0)))","v":""},null,{"$f":"IF(ISERROR($V769),\"\",OFFSET('Smelter Look-up'!$D$4,$V769-4,0)&\"\")","v":""},{"$f":"IF(ISERROR($V769),\"\",OFFSET('Smelter Look-up'!$E$4,$V769-4,0))","v":""},{"$f":"IF(C769=$X$4,\"Enter smelter details\", IF(ISERROR($V769),\"\",OFFSET('Smelter Look-up'!$F$4,$V769-4,0)))","v":""},{"$f":"IF(ISERROR($V769),\"\",OFFSET('Smelter Look-up'!$G$4,$V769-4,0))","v":""},{"$f":"IF(ISERROR($V769),\"\",OFFSET('Smelter Look-up'!$H$4,$V769-4,0))","v":""},{"$f":"IF(ISERROR($V769),\"\",OFFSET('Smelter Look-up'!$I$4,$V769-4,0))","v":""},{"$nulls":7},{"$f":"IF(ISERROR($V769),\"\",OFFSET('Smelter Look-up'!$C$4,$V769-4,0)&\"\")","v":""},"",{"$f":"IF(B769=\"\",\"\",IF(ISERROR(MATCH($J769,SorP!$B$1:$B$6230,0)),\"\",INDIRECT(\"'SorP'!$A$\"&MATCH($J769,SorP!$B$1:$B$6230,0))))","v":""},null,{"$f":"IF(C769=\"\",NA(),MATCH($B769&$C769,'Smelter Look-up'!$J:$J,0))","v":{"$error":"#N/A"}},null,0,null,null,null,""]
[null,{"$f":"IF(LEN(A770)=0,\"\",INDEX('Smelter Look-up'!$A:$A,MATCH($A770,'Smelter Look-up'!$E:$E,0)))","v":""},{"$f":"IF(LEN(A770)=0,\"\",INDEX('Smelter Look-up'!$C:$C,MATCH($A770,'Smelter Look-up'!$E:$E,0)))","v":""},null,{"$f":"IF(ISERROR($V770),\"\",OFFSET('Smelter Look-up'!$D$4,$V770-4,0)&\"\")","v":""},{"$f":"IF(ISERROR($V770),\"\",OFFSET('Smelter Look-up'!$E$4,$V770-4,0))","v":""},{"$f":"IF(C770=$X$4,\"Enter smelter details\", IF(ISERROR($V770),\"\",OFFSET('Smelter Look-up'!$F$4,$V770-4,0)))","v":""},{"$f":"IF(ISERROR($V770),\"\",OFFSET('Smelter Look-up'!$G$4,$V770-4,0))","v":""},{"$f":"IF(ISERROR($V770),\"\",OFFSET('Smelter Look-up'!$H$4,$V770-4,0))","v":""},{"$f":"IF(ISERROR($V770),\"\",OFFSET('Smelter Look-up'!$I$4,$V770-4,0))","v":""},{"$nulls":7},{"$f":"IF(ISERROR($V770),\"\",OFFSET('Smelter Look-up'!$C$4,$V770-4,0)&\"\")","v":""},"",{"$f":"IF(B770=\"\",\"\",IF(ISERROR(MATCH($J770,SorP!$B$1:$B$6230,0)),\"\",INDIRECT(\"'SorP'!$A$\"&MATCH($J770,SorP!$B$1:$B$6230,0))))","v":""},null,{"$f":"IF(C770=\"\",NA(),MATCH($B770&$C770,'Smelter Look-up'!$J:$J,0))","v":{"$error":"#N/A"}},null,0,null,null,null,""]
[null,{"$f":"IF(LEN(A771)=0,\"\",INDEX('Smelter Look-up'!$A:$A,MATCH($A771,'Smelter Look-up'!$E:$E,0)))","v":""},{"$f":"IF(LEN(A771)=0,\"\",INDEX('Smelter Look-up'!$C:$C,MATCH($A771,'Smelter Look-up'!$E:$E,0)))","v":""},null,{"$f":"IF(ISERROR($V771),\"\",OFFSET('Smelter Look-up'!$D$4,$V771-4,0)&\"\")","v":""},{"$f":"IF(ISERROR($V771),\"\",OFFSET('Smelter Look-up'!$E$4,$V771-4,0))","v":""},{"$f":"IF(C771=$X$4,\"Enter smelter details\", IF(ISERROR($V771),\"\",OFFSET('Smelter Look-up'!$F$4,$V771-4,0)))","v":""},{"$f":"IF(ISERROR($V771),\"\",OFFSET('Smelter Look-up'!$G$4,$V771-4,0))","v":""},{"$f":"IF(ISERROR($V771),\"\",OFFSET('Smelter Look-up'!$H$4,$V771-4,0))","v":""},{"$f":"IF(ISERROR($V771),\"\",OFFSET('Smelter Look-up'!$I$4,$V771-4,0))","v":""},{"$nulls":7},{"$f":"IF(ISERROR($V771),\"\",OFFSET('Smelter Look-up'!$C$4,$V771-4,0)&\"\")","v":""},"",{"$f":"IF(B771=\"\",\"\",IF(ISERROR(MATCH($J771,SorP!$B$1:$B$6230,0)),\"\",INDIRECT(\"'SorP'!$A$\"&MATCH($J771,SorP!$B$1:$B$6230,0))))","v":""},null,{"$f":"IF(C771=\"\",NA(),MATCH($B771&$C771,'Smelter Look-up'!$J:$J,0))","v":{"$error":"#N/A"}},null,0,null,null,null,""]
[null,{"$f":"IF(LEN(A772)=0,\"\",INDEX('Smelter Look-up'!$A:$A,MATCH($A772,'Smelter Look-up'!$E:$E,0)))","v":""},{"$f":"IF(LEN(A772)=0,\"\",INDEX('Smelter Look-up'!$C:$C,MATCH($A772,'Smelter Look-up'!$E:$E,0)))","v":""},null,{"$f":"IF(ISERROR($V772),\"\",OFFSET('Smelter Look-up'!$D$4,$V772-4,0)&\"\")","v":""},{"$f":"IF(ISERROR($V772),\"\",OFFSET('Smelter Look-up'!$E$4,$V772-4,0))","v":""},{"$f":"IF(C772=$X$4,\"Enter smelter details\", IF(ISERROR($V772),\"\",OFFSET('Smelter Look-up'!$F$4,$V772-4,0)))","v":""},{"$f":"IF(ISERROR($V772),\"\",OFFSET('Smelter Look-up'!$G$4,$V772-4,0))","v":""},{"$f":"IF(ISERROR($V772),\"\",OFFSET('Smelter Look-up'!$H$4,$V772-4,0))","v":""},{"$f":"IF(ISERROR($V772),\"\",OFFSET('Smelter Look-up'!$I$4,$V772-4,0))","v":""},{"$nulls":7},{"$f":"IF(ISERROR($V772),\"\",OFFSET('Smelter Look-up'!$C$4,$V772-4,0)&\"\")","v":""},"",{"$f":"IF(B772=\"\",\"\",IF(ISERROR(MATCH($J772,SorP!$B$1:$B$6230,0)),\"\",INDIRECT(\"'SorP'!$A$\"&MATCH($J772,SorP!$B$1:$B$6230,0))))","v":""},null,{"$f":"IF(C772=\"\",NA(),MATCH($B772&$C772,'Smelter Look-up'!$J:$J,0))","v":{"$error":"#N/A"}},null,0,null,null,null,""]
[null,{"$f":"IF(LEN(A773)=0,\"\",INDEX('Smelter Look-up'!$A:$A,MATCH($A773,'Smelter Look-up'!$E:$E,0)))","v":""},{"$f":"IF(LEN(A773)=0,\"\",INDEX('Smelter Look-up'!$C:$C,MATCH($A773,'Smelter Look-up'!$E:$E,0)))","v":""},null,{"$f":"IF(ISERROR($V773),\"\",OFFSET('Smelter Look-up'!$D$4,$V773-4,0)&\"\")","v":""},{"$f":"IF(ISERROR($V773),\"\",OFFSET('Smelter Look-up'!$E$4,$V773-4,0))","v":""},{"$f":"IF(C773=$X$4,\"Enter smelter details\", IF(ISERROR($V773),\"\",OFFSET('Smelter Look-up'!$F$4,$V773-4,0)))","v":""},{"$f":"IF(ISERROR($V773),\"\",OFFSET('Smelter Look-up'!$G$4,$V773-4,0))","v":""},{"$f":"IF(ISERROR($V773),\"\",OFFSET('Smelter Look-up'!$H$4,$V773-4,0))","v":""},{"$f":"IF(ISERROR($V773),\"\",OFFSET('Smelter Look-up'!$I$4,$V773-4,0))","v":""},{"$nulls":7},{"$f":"IF(ISERROR($V773),\"\",OFFSET('Smelter Look-up'!$C$4,$V773-4,0)&\"\")","v":""},"",{"$f":"IF(B773=\"\",\"\",IF(ISERROR(MATCH($J773,SorP!$B$1:$B$6230,0)),\"\",INDIRECT(\"'SorP'!$A$\"&MATCH($J773,SorP!$B$1:$B$6230,0))))","v":""},null,{"$f":"IF(C773=\"\",NA(),MATCH($B773&$C773,'Smelter Look-up'!$J:$J,0))","v":{"$error":"#N/A"}},null,0,null,null,null,""]
[null,{"$f":"IF(LEN(A774)=0,\"\",INDEX('Smelter Look-up'!$A:$A,MATCH($A774,'Smelter Look-up'!$E:$E,0)))","v":""},{"$f":"IF(LEN(A774)=0,\"\",INDEX('Smelter Look-up'!$C:$C,MATCH($A774,'Smelter Look-up'!$E:$E,0)))","v":""},null,{"$f":"IF(ISERROR($V774),\"\",OFFSET('Smelter Look-up'!$D$4,$V774-4,0)&\"\")","v":""},{"$f":"IF(ISERROR($V774),\"\",OFFSET('Smelter Look-up'!$E$4,$V774-4,0))","v":""},{"$f":"IF(C774=$X$4,\"Enter smelter details\", IF(ISERROR($V774),\"\",OFFSET('Smelter Look-up'!$F$4,$V774-4,0)))","v":""},{"$f":"IF(ISERROR($V774),\"\",OFFSET('Smelter Look-up'!$G$4,$V774-4,0))","v":""},{"$f":"IF(ISERROR($V774),\"\",OFFSET('Smelter Look-up'!$H$4,$V774-4,0))","v":""},{"$f":"IF(ISERROR($V774),\"\",OFFSET('Smelter Look-up'!$I$4,$V774-4,0))","v":""},{"$nulls":7},{"$f":"IF(ISERROR($V774),\"\",OFFSET('Smelter Look-up'!$C$4,$V774-4,0)&\"\")","v":""},"",{"$f":"IF(B774=\"\",\"\",IF(ISERROR(MATCH($J774,SorP!$B$1:$B$6230,0)),\"\",INDIRECT(\"'SorP'!$A$\"&MATCH($J774,SorP!$B$1:$B$6230,0))))","v":""},null,{"$f":"IF(C774=\"\",NA(),MATCH($B774&$C774,'Smelter Look-up'!$J:$J,0))","v":{"$error":"#N/A"}},null,0,null,null,null,""]
[null,{"$f":"IF(LEN(A775)=0,\"\",INDEX('Smelter Look-up'!$A:$A,MATCH($A775,'Smelter Look-up'!$E:$E,0)))","v":""},{"$f":"IF(LEN(A775)=0,\"\",INDEX('Smelter Look-up'!$C:$C,MATCH($A775,'Smelter Look-up'!$E:$E,0)))","v":""},null,{"$f":"IF(ISERROR($V775),\"\",OFFSET('Smelter Look-up'!$D$4,$V775-4,0)&\"\")","v":""},{"$f":"IF(ISERROR($V775),\"\",OFFSET('Smelter Look-up'!$E$4,$V775-4,0))","v":""},{"$f":"IF(C775=$X$4,\"Enter smelter details\", IF(ISERROR($V775),\"\",OFFSET('Smelter Look-up'!$F$4,$V775-4,0)))","v":""},{"$f":"IF(ISERROR($V775),\"\",OFFSET('Smelter Look-up'!$G$4,$V775-4,0))","v":""},{"$f":"IF(ISERROR($V775),\"\",OFFSET('Smelter Look-up'!$H$4,$V775-4,0))","v":""},{"$f":"IF(ISERROR($V775),\"\",OFFSET('Smelter Look-up'!$I$4,$V775-4,0))","v":""},{"$nulls":7},{"$f":"IF(ISERROR($V775),\"\",OFFSET('Smelter Look-up'!$C$4,$V775-4,0)&\"\")","v":""},"",{"$f":"IF(B775=\"\",\"\",IF(ISERROR(MATCH($J775,SorP!$B$1:$B$6230,0)),\"\",INDIRECT(\"'SorP'!$A$\"&MATCH($J775,SorP!$B$1:$B$6230,0))))","v":""},null,{"$f":"IF(C775=\"\",NA(),MATCH($B775&$C775,'Smelter Look-up'!$J:$J,0))","v":{"$error":"#N/A"}},null,0,null,null,null,""]
[null,{"$f":"IF(LEN(A776)=0,\"\",INDEX('Smelter Look-up'!$A:$A,MATCH($A776,'Smelter Look-up'!$E:$E,0)))","v":""},{"$f":"IF(LEN(A776)=0,\"\",INDEX('Smelter Look-up'!$C:$C,MATCH($A776,'Smelter Look-up'!$E:$E,0)))","v":""},null,{"$f":"IF(ISERROR($V776),\"\",OFFSET('Smelter Look-up'!$D$4,$V776-4,0)&\"\")","v":""},{"$f":"IF(ISERROR($V776),\"\",OFFSET('Smelter Look-up'!$E$4,$V776-4,0))","v":""},{"$f":"IF(C776=$X$4,\"Enter smelter details\", IF(ISERROR($V776),\"\",OFFSET('Smelter Look-up'!$F$4,$V776-4,0)))","v":""},{"$f":"IF(ISERROR($V776),\"\",OFFSET('Smelter Look-up'!$G$4,$V776-4,0))","v":""},{"$f":"IF(ISERROR($V776),\"\",OFFSET('Smelter Look-up'!$H$4,$V776-4,0))","v":""},{"$f":"IF(ISERROR($V776),\"\",OFFSET('Smelter Look-up'!$I$4,$V776-4,0))","v":""},{"$nulls":7},{"$f":"IF(ISERROR($V776),\"\",OFFSET('Smelter Look-up'!$C$4,$V776-4,0)&\"\")","v":""},"",{"$f":"IF(B776=\"\",\"\",IF(ISERROR(MATCH($J776,SorP!$B$1:$B$6230,0)),\"\",INDIRECT(\"'SorP'!$A$\"&MATCH($J776,SorP!$B$1:$B$6230,0))))","v":""},null,{"$f":"IF(C776=\"\",NA(),MATCH($B776&$C776,'Smelter Look-up'!$J:$J,0))","v":{"$error":"#N/A"}},null,0,null,null,null,""]
[null,{"$f":"IF(LEN(A777)=0,\"\",INDEX('Smelter Look-up'!$A:$A,MATCH($A777,'Smelter Look-up'!$E:$E,0)))","v":""},{"$f":"IF(LEN(A777)=0,\"\",INDEX('Smelter Look-up'!$C:$C,MATCH($A777,'Smelter Look-up'!$E:$E,0)))","v":""},null,{"$f":"IF(ISERROR($V777),\"\",OFFSET('Smelter Look-up'!$D$4,$V777-4,0)&\"\")","v":""},{"$f":"IF(ISERROR($V777),\"\",OFFSET('Smelter Look-up'!$E$4,$V777-4,0))","v":""},{"$f":"IF(C777=$X$4,\"Enter smelter details\", IF(ISERROR($V777),\"\",OFFSET('Smelter Look-up'!$F$4,$V777-4,0)))","v":""},{"$f":"IF(ISERROR($V777),\"\",OFFSET('Smelter Look-up'!$G$4,$V777-4,0))","v":""},{"$f":"IF(ISERROR($V777),\"\",OFFSET('Smelter Look-up'!$H$4,$V777-4,0))","v":""},{"$f":"IF(ISERROR($V777),\"\",OFFSET('Smelter Look-up'!$I$4,$V777-4,0))","v":""},{"$nulls":7},{"$f":"IF(ISERROR($V777),\"\",OFFSET('Smelter Look-up'!$C$4,$V777-4,0)&\"\")","v":""},"",{"$f":"IF(B777=\"\",\"\",IF(ISERROR(MATCH($J777,SorP!$B$1:$B$6230,0)),\"\",INDIRECT(\"'SorP'!$A$\"&MATCH($J777,SorP!$B$1:$B$6230,0))))","v":""},null,{"$f":"IF(C777=\"\",NA(),MATCH($B777&$C777,'Smelter Look-up'!$J:$J,0))","v":{"$error":"#N/A"}},null,0,null,null,null,""]
[null,{"$f":"IF(LEN(A778)=0,\"\",INDEX('Smelter Look-up'!$A:$A,MATCH($A778,'Smelter Look-up'!$E:$E,0)))","v":""},{"$f":"IF(LEN(A778)=0,\"\",INDEX('Smelter Look-up'!$C:$C,MATCH($A778,'Smelter Look-up'!$E:$E,0)))","v":""},null,{"$f":"IF(ISERROR($V778),\"\",OFFSET('Smelter Look-up'!$D$4,$V778-4,0)&\"\")","v":""},{"$f":"IF(ISERROR($V778),\"\",OFFSET('Smelter Look-up'!$E$4,$V778-4,0))","v":""},{"$f":"IF(C778=$X$4,\"Enter smelter details\", IF(ISERROR($V778),\"\",OFFSET('Smelter Look-up'!$F$4,$V778-4,0)))","v":""},{"$f":"IF(ISERROR($V778),\"\",OFFSET('Smelter Look-up'!$G$4,$V778-4,0))","v":""},{"$f":"IF(ISERROR($V778),\"\",OFFSET('Smelter Look-up'!$H$4,$V778-4,0))","v":""},{"$f":"IF(ISERROR($V778),\"\",OFFSET('Smelter Look-up'!$I$4,$V778-4,0))","v":""},{"$nulls":7},{"$f":"IF(ISERROR($V778),\"\",OFFSET('Smelter Look-up'!$C$4,$V778-4,0)&\"\")","v":""},"",{"$f":"IF(B778=\"\",\"\",IF(ISERROR(MATCH($J778,SorP!$B$1:$B$6230,0)),\"\",INDIRECT(\"'SorP'!$A$\"&MATCH($J778,SorP!$B$1:$B$6230,0))))","v":""},null,{"$f":"IF(C778=\"\",NA(),MATCH($B778&$C778,'Smelter Look-up'!$J:$J,0))","v":{"$error":"#N/A"}},null,0,null,null,null,""]
[null,{"$f":"IF(LEN(A779)=0,\"\",INDEX('Smelter Look-up'!$A:$A,MATCH($A779,'Smelter Look-up'!$E:$E,0)))","v":""},{"$f":"IF(LEN(A779)=0,\"\",INDEX('Smelter Look-up'!$C:$C,MATCH($A779,'Smelter Look-up'!$E:$E,0)))","v":""},null,{"$f":"IF(ISERROR($V779),\"\",OFFSET('Smelter Look-up'!$D$4,$V779-4,0)&\"\")","v":""},{"$f":"IF(ISERROR($V779),\"\",OFFSET('Smelter Look-up'!$E$4,$V779-4,0))","v":""},{"$f":"IF(C779=$X$4,\"Enter smelter details\", IF(ISERROR($V779),\"\",OFFSET('Smelter Look-up'!$F$4,$V779-4,0)))","v":""},{"$f":"IF(ISERROR($V779),\"\",OFFSET('Smelter Look-up'!$G$4,$V779-4,0))","v":""},{"$f":"IF(ISERROR($V779),\"\",OFFSET('Smelter Look-up'!$H$4,$V779-4,0))","v":""},{"$f":"IF(ISERROR($V779),\"\",OFFSET('Smelter Look-up'!$I$4,$V779-4,0))","v":""},{"$nulls":7},{"$f":"IF(ISERROR($V779),\"\",OFFSET('Smelter Look-up'!$C$4,$V779-4,0)&\"\")","v":""},"",{"$f":"IF(B779=\"\",\"\",IF(ISERROR(MATCH($J779,SorP!$B$1:$B$6230,0)),\"\",INDIRECT(\"'SorP'!$A$\"&MATCH($J779,SorP!$B$1:$B$6230,0))))","v":""},null,{"$f":"IF(C779=\"\",NA(),MATCH($B779&$C779,'Smelter Look-up'!$J:$J,0))","v":{"$error":"#N/A"}},null,0,null,null,null,""]
[null,{"$f":"IF(LEN(A780)=0,\"\",INDEX('Smelter Look-up'!$A:$A,MATCH($A780,'Smelter Look-up'!$E:$E,0)))","v":""},{"$f":"IF(LEN(A780)=0,\"\",INDEX('Smelter Look-up'!$C:$C,MATCH($A780,'Smelter Look-up'!$E:$E,0)))","v":""},null,{"$f":"IF(ISERROR($V780),\"\",OFFSET('Smelter Look-up'!$D$4,$V780-4,0)&\"\")","v":""},{"$f":"IF(ISERROR($V780),\"\",OFFSET('Smelter Look-up'!$E$4,$V780-4,0))","v":""},{"$f":"IF(C780=$X$4,\"Enter smelter details\", IF(ISERROR($V780),\"\",OFFSET('Smelter Look-up'!$F$4,$V780-4,0)))","v":""},{"$f":"IF(ISERROR($V780),\"\",OFFSET('Smelter Look-up'!$G$4,$V780-4,0))","v":""},{"$f":"IF(ISERROR($V780),\"\",OFFSET('Smelter Look-up'!$H$4,$V780-4,0))","v":""},{"$f":"IF(ISERROR($V780),\"\",OFFSET('Smelter Look-up'!$I$4,$V780-4,0))","v":""},{"$nulls":7},{"$f":"IF(ISERROR($V780),\"\",OFFSET('Smelter Look-up'!$C$4,$V780-4,0)&\"\")","v":""},"",{"$f":"IF(B780=\"\",\"\",IF(ISERROR(MATCH($J780,SorP!$B$1:$B$6230,0)),\"\",INDIRECT(\"'SorP'!$A$\"&MATCH($J780,SorP!$B$1:$B$6230,0))))","v":""},null,{"$f":"IF(C780=\"\",NA(),MATCH($B780&$C780,'Smelter Look-up'!$J:$J,0))","v":{"$error":"#N/A"}},null,0,null,null,null,""]
[null,{"$f":"IF(LEN(A781)=0,\"\",INDEX('Smelter Look-up'!$A:$A,MATCH($A781,'Smelter Look-up'!$E:$E,0)))","v":""},{"$f":"IF(LEN(A781)=0,\"\",INDEX('Smelter Look-up'!$C:$C,MATCH($A781,'Smelter Look-up'!$E:$E,0)))","v":""},null,{"$f":"IF(ISERROR($V781),\"\",OFFSET('Smelter Look-up'!$D$4,$V781-4,0)&\"\")","v":""},{"$f":"IF(ISERROR($V781),\"\",OFFSET('Smelter Look-up'!$E$4,$V781-4,0))","v":""},{"$f":"IF(C781=$X$4,\"Enter smelter details\", IF(ISERROR($V781),\"\",OFFSET('Smelter Look-up'!$F$4,$V781-4,0)))","v":""},{"$f":"IF(ISERROR($V781),\"\",OFFSET('Smelter Look-up'!$G$4,$V781-4,0))","v":""},{"$f":"IF(ISERROR($V781),\"\",OFFSET('Smelter Look-up'!$H$4,$V781-4,0))","v":""},{"$f":"IF(ISERROR($V781),\"\",OFFSET('Smelter Look-up'!$I$4,$V781-4,0))","v":""},{"$nulls":7},{"$f":"IF(ISERROR($V781),\"\",OFFSET('Smelter Look-up'!$C$4,$V781-4,0)&\"\")","v":""},"",{"$f":"IF(B781=\"\",\"\",IF(ISERROR(MATCH($J781,SorP!$B$1:$B$6230,0)),\"\",INDIRECT(\"'SorP'!$A$\"&MATCH($J781,SorP!$B$1:$B$6230,0))))","v":""},null,{"$f":"IF(C781=\"\",NA(),MATCH($B781&$C781,'Smelter Look-up'!$J:$J,0))","v":{"$error":"#N/A"}},null,0,null,null,null,""]
[null,{"$f":"IF(LEN(A782)=0,\"\",INDEX('Smelter Look-up'!$A:$A,MATCH($A782,'Smelter Look-up'!$E:$E,0)))","v":""},{"$f":"IF(LEN(A782)=0,\"\",INDEX('Smelter Look-up'!$C:$C,MATCH($A782,'Smelter Look-up'!$E:$E,0)))","v":""},null,{"$f":"IF(ISERROR($V782),\"\",OFFSET('Smelter Look-up'!$D$4,$V782-4,0)&\"\")","v":""},{"$f":"IF(ISERROR($V782),\"\",OFFSET('Smelter Look-up'!$E$4,$V782-4,0))","v":""},{"$f":"IF(C782=$X$4,\"Enter smelter details\", IF(ISERROR($V782),\"\",OFFSET('Smelter Look-up'!$F$4,$V782-4,0)))","v":""},{"$f":"IF(ISERROR($V782),\"\",OFFSET('Smelter Look-up'!$G$4,$V782-4,0))","v":""},{"$f":"IF(ISERROR($V782),\"\",OFFSET('Smelter Look-up'!$H$4,$V782-4,0))","v":""},{"$f":"IF(ISERROR($V782),\"\",OFFSET('Smelter Look-up'!$I$4,$V782-4,0))","v":""},{"$nulls":7},{"$f":"IF(ISERROR($V782),\"\",OFFSET('Smelter Look-up'!$C$4,$V782-4,0)&\"\")","v":""},"",{"$f":"IF(B782=\"\",\"\",IF(ISERROR(MATCH($J782,SorP!$B$1:$B$6230,0)),\"\",INDIRECT(\"'SorP'!$A$\"&MATCH($J782,SorP!$B$1:$B$6230,0))))","v":""},null,{"$f":"IF(C782=\"\",NA(),MATCH($B782&$C782,'Smelter Look-up'!$J:$J,0))","v":{"$error":"#N/A"}},null,0,null,null,null,""]
[null,{"$f":"IF(LEN(A783)=0,\"\",INDEX('Smelter Look-up'!$A:$A,MATCH($A783,'Smelter Look-up'!$E:$E,0)))","v":""},{"$f":"IF(LEN(A783)=0,\"\",INDEX('Smelter Look-up'!$C:$C,MATCH($A783,'Smelter Look-up'!$E:$E,0)))","v":""},null,{"$f":"IF(ISERROR($V783),\"\",OFFSET('Smelter Look-up'!$D$4,$V783-4,0)&\"\")","v":""},{"$f":"IF(ISERROR($V783),\"\",OFFSET('Smelter Look-up'!$E$4,$V783-4,0))","v":""},{"$f":"IF(C783=$X$4,\"Enter smelter details\", IF(ISERROR($V783),\"\",OFFSET('Smelter Look-up'!$F$4,$V783-4,0)))","v":""},{"$f":"IF(ISERROR($V783),\"\",OFFSET('Smelter Look-up'!$G$4,$V783-4,0))","v":""},{"$f":"IF(ISERROR($V783),\"\",OFFSET('Smelter Look-up'!$H$4,$V783-4,0))","v":""},{"$f":"IF(ISERROR($V783),\"\",OFFSET('Smelter Look-up'!$I$4,$V783-4,0))","v":""},{"$nulls":7},{"$f":"IF(ISERROR($V783),\"\",OFFSET('Smelter Look-up'!$C$4,$V783-4,0)&\"\")","v":""},"",{"$f":"IF(B783=\"\",\"\",IF(ISERROR(MATCH($J783,SorP!$B$1:$B$6230,0)),\"\",INDIRECT(\"'SorP'!$A$\"&MATCH($J783,SorP!$B$1:$B$6230,0))))","v":""},null,{"$f":"IF(C783=\"\",NA(),MATCH($B783&$C783,'Smelter Look-up'!$J:$J,0))","v":{"$error":"#N/A"}},null,0,null,null,null,""]
[null,{"$f":"IF(LEN(A784)=0,\"\",INDEX('Smelter Look-up'!$A:$A,MATCH($A784,'Smelter Look-up'!$E:$E,0)))","v":""},{"$f":"IF(LEN(A784)=0,\"\",INDEX('Smelter Look-up'!$C:$C,MATCH($A784,'Smelter Look-up'!$E:$E,0)))","v":""},null,{"$f":"IF(ISERROR($V784),\"\",OFFSET('Smelter Look-up'!$D$4,$V784-4,0)&\"\")","v":""},{"$f":"IF(ISERROR($V784),\"\",OFFSET('Smelter Look-up'!$E$4,$V784-4,0))","v":""},{"$f":"IF(C784=$X$4,\"Enter smelter details\", IF(ISERROR($V784),\"\",OFFSET('Smelter Look-up'!$F$4,$V784-4,0)))","v":""},{"$f":"IF(ISERROR($V784),\"\",OFFSET('Smelter Look-up'!$G$4,$V784-4,0))","v":""},{"$f":"IF(ISERROR($V784),\"\",OFFSET('Smelter Look-up'!$H$4,$V784-4,0))","v":""},{"$f":"IF(ISERROR($V784),\"\",OFFSET('Smelter Look-up'!$I$4,$V784-4,0))","v":""},{"$nulls":7},{"$f":"IF(ISERROR($V784),\"\",OFFSET('Smelter Look-up'!$C$4,$V784-4,0)&\"\")","v":""},"",{"$f":"IF(B784=\"\",\"\",IF(ISERROR(MATCH($J784,SorP!$B$1:$B$6230,0)),\"\",INDIRECT(\"'SorP'!$A$\"&MATCH($J784,SorP!$B$1:$B$6230,0))))","v":""},null,{"$f":"IF(C784=\"\",NA(),MATCH($B784&$C784,'Smelter Look-up'!$J:$J,0))","v":{"$error":"#N/A"}},null,0,null,null,null,""]
[null,{"$f":"IF(LEN(A785)=0,\"\",INDEX('Smelter Look-up'!$A:$A,MATCH($A785,'Smelter Look-up'!$E:$E,0)))","v":""},{"$f":"IF(LEN(A785)=0,\"\",INDEX('Smelter Look-up'!$C:$C,MATCH($A785,'Smelter Look-up'!$E:$E,0)))","v":""},null,{"$f":"IF(ISERROR($V785),\"\",OFFSET('Smelter Look-up'!$D$4,$V785-4,0)&\"\")","v":""},{"$f":"IF(ISERROR($V785),\"\",OFFSET('Smelter Look-up'!$E$4,$V785-4,0))","v":""},{"$f":"IF(C785=$X$4,\"Enter smelter details\", IF(ISERROR($V785),\"\",OFFSET('Smelter Look-up'!$F$4,$V785-4,0)))","v":""},{"$f":"IF(ISERROR($V785),\"\",OFFSET('Smelter Look-up'!$G$4,$V785-4,0))","v":""},{"$f":"IF(ISERROR($V785),\"\",OFFSET('Smelter Look-up'!$H$4,$V785-4,0))","v":""},{"$f":"IF(ISERROR($V785),\"\",OFFSET('Smelter Look-up'!$I$4,$V785-4,0))","v":""},{"$nulls":7},{"$f":"IF(ISERROR($V785),\"\",OFFSET('Smelter Look-up'!$C$4,$V785-4,0)&\"\")","v":""},"",{"$f":"IF(B785=\"\",\"\",IF(ISERROR(MATCH($J785,SorP!$B$1:$B$6230,0)),\"\",INDIRECT(\"'SorP'!$A$\"&MATCH($J785,SorP!$B$1:$B$6230,0))))","v":""},null,{"$f":"IF(C785=\"\",NA(),MATCH($B785&$C785,'Smelter Look-up'!$J:$J,0))","v":{"$error":"#N/A"}},null,0,null,null,null,""]
[null,{"$f":"IF(LEN(A786)=0,\"\",INDEX('Smelter Look-up'!$A:$A,MATCH($A786,'Smelter Look-up'!$E:$E,0)))","v":""},{"$f":"IF(LEN(A786)=0,\"\",INDEX('Smelter Look-up'!$C:$C,MATCH($A786,'Smelter Look-up'!$E:$E,0)))","v":""},null,{"$f":"IF(ISERROR($V786),\"\",OFFSET('Smelter Look-up'!$D$4,$V786-4,0)&\"\")","v":""},{"$f":"IF(ISERROR($V786),\"\",OFFSET('Smelter Look-up'!$E$4,$V786-4,0))","v":""},{"$f":"IF(C786=$X$4,\"Enter smelter details\", IF(ISERROR($V786),\"\",OFFSET('Smelter Look-up'!$F$4,$V786-4,0)))","v":""},{"$f":"IF(ISERROR($V786),\"\",OFFSET('Smelter Look-up'!$G$4,$V786-4,0))","v":""},{"$f":"IF(ISERROR($V786),\"\",OFFSET('Smelter Look-up'!$H$4,$V786-4,0))","v":""},{"$f":"IF(ISERROR($V786),\"\",OFFSET('Smelter Look-up'!$I$4,$V786-4,0))","v":""},{"$nulls":7},{"$f":"IF(ISERROR($V786),\"\",OFFSET('Smelter Look-up'!$C$4,$V786-4,0)&\"\")","v":""},"",{"$f":"IF(B786=\"\",\"\",IF(ISERROR(MATCH($J786,SorP!$B$1:$B$6230,0)),\"\",INDIRECT(\"'SorP'!$A$\"&MATCH($J786,SorP!$B$1:$B$6230,0))))","v":""},null,{"$f":"IF(C786=\"\",NA(),MATCH($B786&$C786,'Smelter Look-up'!$J:$J,0))","v":{"$error":"#N/A"}},null,0,null,null,null,""]
[null,{"$f":"IF(LEN(A787)=0,\"\",INDEX('Smelter Look-up'!$A:$A,MATCH($A787,'Smelter Look-up'!$E:$E,0)))","v":""},{"$f":"IF(LEN(A787)=0,\"\",INDEX('Smelter Look-up'!$C:$C,MATCH($A787,'Smelter Look-up'!$E:$E,0)))","v":""},null,{"$f":"IF(ISERROR($V787),\"\",OFFSET('Smelter Look-up'!$D$4,$V787-4,0)&\"\")","v":""},{"$f":"IF(ISERROR($V787),\"\",OFFSET('Smelter Look-up'!$E$4,$V787-4,0))","v":""},{"$f":"IF(C787=$X$4,\"Enter smelter details\", IF(ISERROR($V787),\"\",OFFSET('Smelter Look-up'!$F$4,$V787-4,0)))","v":""},{"$f":"IF(ISERROR($V787),\"\",OFFSET('Smelter Look-up'!$G$4,$V787-4,0))","v":""},{"$f":"IF(ISERROR($V787),\"\",OFFSET('Smelter Look-up'!$H$4,$V787-4,0))","v":""},{"$f":"IF(ISERROR($V787),\"\",OFFSET('Smelter Look-up'!$I$4,$V787-4,0))","v":""},{"$nulls":7},{"$f":"IF(ISERROR($V787),\"\",OFFSET('Smelter Look-up'!$C$4,$V787-4,0)&\"\")","v":""},"",{"$f":"IF(B787=\"\",\"\",IF(ISERROR(MATCH($J787,SorP!$B$1:$B$6230,0)),\"\",INDIRECT(\"'SorP'!$A$\"&MATCH($J787,SorP!$B$1:$B$6230,0))))","v":""},null,{"$f":"IF(C787=\"\",NA(),MATCH($B787&$C787,'Smelter Look-up'!$J:$J,0))","v":{"$error":"#N/A"}},null,0,null,null,null,""]
[null,{"$f":"IF(LEN(A788)=0,\"\",INDEX('Smelter Look-up'!$A:$A,MATCH($A788,'Smelter Look-up'!$E:$E,0)))","v":""},{"$f":"IF(LEN(A788)=0,\"\",INDEX('Smelter Look-up'!$C:$C,MATCH($A788,'Smelter Look-up'!$E:$E,0)))","v":""},null,{"$f":"IF(ISERROR($V788),\"\",OFFSET('Smelter Look-up'!$D$4,$V788-4,0)&\"\")","v":""},{"$f":"IF(ISERROR($V788),\"\",OFFSET('Smelter Look-up'!$E$4,$V788-4,0))","v":""},{"$f":"IF(C788=$X$4,\"Enter smelter details\", IF(ISERROR($V788),\"\",OFFSET('Smelter Look-up'!$F$4,$V788-4,0)))","v":""},{"$f":"IF(ISERROR($V788),\"\",OFFSET('Smelter Look-up'!$G$4,$V788-4,0))","v":""},{"$f":"IF(ISERROR($V788),\"\",OFFSET('Smelter Look-up'!$H$4,$V788-4,0))","v":""},{"$f":"IF(ISERROR($V788),\"\",OFFSET('Smelter Look-up'!$I$4,$V788-4,0))","v":""},{"$nulls":7},{"$f":"IF(ISERROR($V788),\"\",OFFSET('Smelter Look-up'!$C$4,$V788-4,0)&\"\")","v":""},"",{"$f":"IF(B788=\"\",\"\",IF(ISERROR(MATCH($J788,SorP!$B$1:$B$6230,0)),\"\",INDIRECT(\"'SorP'!$A$\"&MATCH($J788,SorP!$B$1:$B$6230,0))))","v":""},null,{"$f":"IF(C788=\"\",NA(),MATCH($B788&$C788,'Smelter Look-up'!$J:$J,0))","v":{"$error":"#N/A"}},null,0,null,null,null,""]
[null,{"$f":"IF(LEN(A789)=0,\"\",INDEX('Smelter Look-up'!$A:$A,MATCH($A789,'Smelter Look-up'!$E:$E,0)))","v":""},{"$f":"IF(LEN(A789)=0,\"\",INDEX('Smelter Look-up'!$C:$C,MATCH($A789,'Smelter Look-up'!$E:$E,0)))","v":""},null,{"$f":"IF(ISERROR($V789),\"\",OFFSET('Smelter Look-up'!$D$4,$V789-4,0)&\"\")","v":""},{"$f":"IF(ISERROR($V789),\"\",OFFSET('Smelter Look-up'!$E$4,$V789-4,0))","v":""},{"$f":"IF(C789=$X$4,\"Enter smelter details\", IF(ISERROR($V789),\"\",OFFSET('Smelter Look-up'!$F$4,$V789-4,0)))","v":""},{"$f":"IF(ISERROR($V789),\"\",OFFSET('Smelter Look-up'!$G$4,$V789-4,0))","v":""},{"$f":"IF(ISERROR($V789),\"\",OFFSET('Smelter Look-up'!$H$4,$V789-4,0))","v":""},{"$f":"IF(ISERROR($V789),\"\",OFFSET('Smelter Look-up'!$I$4,$V789-4,0))","v":""},{"$nulls":7},{"$f":"IF(ISERROR($V789),\"\",OFFSET('Smelter Look-up'!$C$4,$V789-4,0)&\"\")","v":""},"",{"$f":"IF(B789=\"\",\"\",IF(ISERROR(MATCH($J789,SorP!$B$1:$B$6230,0)),\"\",INDIRECT(\"'SorP'!$A$\"&MATCH($J789,SorP!$B$1:$B$6230,0))))","v":""},null,{"$f":"IF(C789=\"\",NA(),MATCH($B789&$C789,'Smelter Look-up'!$J:$J,0))","v":{"$error":"#N/A"}},null,0,null,null,null,""]
[null,{"$f":"IF(LEN(A790)=0,\"\",INDEX('Smelter Look-up'!$A:$A,MATCH($A790,'Smelter Look-up'!$E:$E,0)))","v":""},{"$f":"IF(LEN(A790)=0,\"\",INDEX('Smelter Look-up'!$C:$C,MATCH($A790,'Smelter Look-up'!$E:$E,0)))","v":""},null,{"$f":"IF(ISERROR($V790),\"\",OFFSET('Smelter Look-up'!$D$4,$V790-4,0)&\"\")","v":""},{"$f":"IF(ISERROR($V790),\"\",OFFSET('Smelter Look-up'!$E$4,$V790-4,0))","v":""},{"$f":"IF(C790=$X$4,\"Enter smelter details\", IF(ISERROR($V790),\"\",OFFSET('Smelter Look-up'!$F$4,$V790-4,0)))","v":""},{"$f":"IF(ISERROR($V790),\"\",OFFSET('Smelter Look-up'!$G$4,$V790-4,0))","v":""},{"$f":"IF(ISERROR($V790),\"\",OFFSET('Smelter Look-up'!$H$4,$V790-4,0))","v":""},{"$f":"IF(ISERROR($V790),\"\",OFFSET('Smelter Look-up'!$I$4,$V790-4,0))","v":""},{"$nulls":7},{"$f":"IF(ISERROR($V790),\"\",OFFSET('Smelter Look-up'!$C$4,$V790-4,0)&\"\")","v":""},"",{"$f":"IF(B790=\"\",\"\",IF(ISERROR(MATCH($J790,SorP!$B$1:$B$6230,0)),\"\",INDIRECT(\"'SorP'!$A$\"&MATCH($J790,SorP!$B$1:$B$6230,0))))","v":""},null,{"$f":"IF(C790=\"\",NA(),MATCH($B790&$C790,'Smelter Look-up'!$J:$J,0))","v":{"$error":"#N/A"}},null,0,null,null,null,""]
[null,{"$f":"IF(LEN(A791)=0,\"\",INDEX('Smelter Look-up'!$A:$A,MATCH($A791,'Smelter Look-up'!$E:$E,0)))","v":""},{"$f":"IF(LEN(A791)=0,\"\",INDEX('Smelter Look-up'!$C:$C,MATCH($A791,'Smelter Look-up'!$E:$E,0)))","v":""},null,{"$f":"IF(ISERROR($V791),\"\",OFFSET('Smelter Look-up'!$D$4,$V791-4,0)&\"\")","v":""},{"$f":"IF(ISERROR($V791),\"\",OFFSET('Smelter Look-up'!$E$4,$V791-4,0))","v":""},{"$f":"IF(C791=$X$4,\"Enter smelter details\", IF(ISERROR($V791),\"\",OFFSET('Smelter Look-up'!$F$4,$V791-4,0)))","v":""},{"$f":"IF(ISERROR($V791),\"\",OFFSET('Smelter Look-up'!$G$4,$V791-4,0))","v":""},{"$f":"IF(ISERROR($V791),\"\",OFFSET('Smelter Look-up'!$H$4,$V791-4,0))","v":""},{"$f":"IF(ISERROR($V791),\"\",OFFSET('Smelter Look-up'!$I$4,$V791-4,0))","v":""},{"$nulls":7},{"$f":"IF(ISERROR($V791),\"\",OFFSET('Smelter Look-up'!$C$4,$V791-4,0)&\"\")","v":""},"",{"$f":"IF(B791=\"\",\"\",IF(ISERROR(MATCH($J791,SorP!$B$1:$B$6230,0)),\"\",INDIRECT(\"'SorP'!$A$\"&MATCH($J791,SorP!$B$1:$B$6230,0))))","v":""},null,{"$f":"IF(C791=\"\",NA(),MATCH($B791&$C791,'Smelter Look-up'!$J:$J,0))","v":{"$error":"#N/A"}},null,0,null,null,null,""]
[null,{"$f":"IF(LEN(A792)=0,\"\",INDEX('Smelter Look-up'!$A:$A,MATCH($A792,'Smelter Look-up'!$E:$E,0)))","v":""},{"$f":"IF(LEN(A792)=0,\"\",INDEX('Smelter Look-up'!$C:$C,MATCH($A792,'Smelter Look-up'!$E:$E,0)))","v":""},null,{"$f":"IF(ISERROR($V792),\"\",OFFSET('Smelter Look-up'!$D$4,$V792-4,0)&\"\")","v":""},{"$f":"IF(ISERROR($V792),\"\",OFFSET('Smelter Look-up'!$E$4,$V792-4,0))","v":""},{"$f":"IF(C792=$X$4,\"Enter smelter details\", IF(ISERROR($V792),\"\",OFFSET('Smelter Look-up'!$F$4,$V792-4,0)))","v":""},{"$f":"IF(ISERROR($V792),\"\",OFFSET('Smelter Look-up'!$G$4,$V792-4,0))","v":""},{"$f":"IF(ISERROR($V792),\"\",OFFSET('Smelter Look-up'!$H$4,$V792-4,0))","v":""},{"$f":"IF(ISERROR($V792),\"\",OFFSET('Smelter Look-up'!$I$4,$V792-4,0))","v":""},{"$nulls":7},{"$f":"IF(ISERROR($V792),\"\",OFFSET('Smelter Look-up'!$C$4,$V792-4,0)&\"\")","v":""},"",{"$f":"IF(B792=\"\",\"\",IF(ISERROR(MATCH($J792,SorP!$B$1:$B$6230,0)),\"\",INDIRECT(\"'SorP'!$A$\"&MATCH($J792,SorP!$B$1:$B$6230,0))))","v":""},null,{"$f":"IF(C792=\"\",NA(),MATCH($B792&$C792,'Smelter Look-up'!$J:$J,0))","v":{"$error":"#N/A"}},null,0,null,null,null,""]
[null,{"$f":"IF(LEN(A793)=0,\"\",INDEX('Smelter Look-up'!$A:$A,MATCH($A793,'Smelter Look-up'!$E:$E,0)))","v":""},{"$f":"IF(LEN(A793)=0,\"\",INDEX('Smelter Look-up'!$C:$C,MATCH($A793,'Smelter Look-up'!$E:$E,0)))","v":""},null,{"$f":"IF(ISERROR($V793),\"\",OFFSET('Smelter Look-up'!$D$4,$V793-4,0)&\"\")","v":""},{"$f":"IF(ISERROR($V793),\"\",OFFSET('Smelter Look-up'!$E$4,$V793-4,0))","v":""},{"$f":"IF(C793=$X$4,\"Enter smelter details\", IF(ISERROR($V793),\"\",OFFSET('Smelter Look-up'!$F$4,$V793-4,0)))","v":""},{"$f":"IF(ISERROR($V793),\"\",OFFSET('Smelter Look-up'!$G$4,$V793-4,0))","v":""},{"$f":"IF(ISERROR($V793),\"\",OFFSET('Smelter Look-up'!$H$4,$V793-4,0))","v":""},{"$f":"IF(ISERROR($V793),\"\",OFFSET('Smelter Look-up'!$I$4,$V793-4,0))","v":""},{"$nulls":7},{"$f":"IF(ISERROR($V793),\"\",OFFSET('Smelter Look-up'!$C$4,$V793-4,0)&\"\")","v":""},"",{"$f":"IF(B793=\"\",\"\",IF(ISERROR(MATCH($J793,SorP!$B$1:$B$6230,0)),\"\",INDIRECT(\"'SorP'!$A$\"&MATCH($J793,SorP!$B$1:$B$6230,0))))","v":""},null,{"$f":"IF(C793=\"\",NA(),MATCH($B793&$C793,'Smelter Look-up'!$J:$J,0))","v":{"$error":"#N/A"}},null,0,null,null,null,""]
[null,{"$f":"IF(LEN(A794)=0,\"\",INDEX('Smelter Look-up'!$A:$A,MATCH($A794,'Smelter Look-up'!$E:$E,0)))","v":""},{"$f":"IF(LEN(A794)=0,\"\",INDEX('Smelter Look-up'!$C:$C,MATCH($A794,'Smelter Look-up'!$E:$E,0)))","v":""},null,{"$f":"IF(ISERROR($V794),\"\",OFFSET('Smelter Look-up'!$D$4,$V794-4,0)&\"\")","v":""},{"$f":"IF(ISERROR($V794),\"\",OFFSET('Smelter Look-up'!$E$4,$V794-4,0))","v":""},{"$f":"IF(C794=$X$4,\"Enter smelter details\", IF(ISERROR($V794),\"\",OFFSET('Smelter Look-up'!$F$4,$V794-4,0)))","v":""},{"$f":"IF(ISERROR($V794),\"\",OFFSET('Smelter Look-up'!$G$4,$V794-4,0))","v":""},{"$f":"IF(ISERROR($V794),\"\",OFFSET('Smelter Look-up'!$H$4,$V794-4,0))","v":""},{"$f":"IF(ISERROR($V794),\"\",OFFSET('Smelter Look-up'!$I$4,$V794-4,0))","v":""},{"$nulls":7},{"$f":"IF(ISERROR($V794),\"\",OFFSET('Smelter Look-up'!$C$4,$V794-4,0)&\"\")","v":""},"",{"$f":"IF(B794=\"\",\"\",IF(ISERROR(MATCH($J794,SorP!$B$1:$B$6230,0)),\"\",INDIRECT(\"'SorP'!$A$\"&MATCH($J794,SorP!$B$1:$B$6230,0))))","v":""},null,{"$f":"IF(C794=\"\",NA(),MATCH($B794&$C794,'Smelter Look-up'!$J:$J,0))","v":{"$error":"#N/A"}},null,0,null,null,null,""]
[null,{"$f":"IF(LEN(A795)=0,\"\",INDEX('Smelter Look-up'!$A:$A,MATCH($A795,'Smelter Look-up'!$E:$E,0)))","v":""},{"$f":"IF(LEN(A795)=0,\"\",INDEX('Smelter Look-up'!$C:$C,MATCH($A795,'Smelter Look-up'!$E:$E,0)))","v":""},null,{"$f":"IF(ISERROR($V795),\"\",OFFSET('Smelter Look-up'!$D$4,$V795-4,0)&\"\")","v":""},{"$f":"IF(ISERROR($V795),\"\",OFFSET('Smelter Look-up'!$E$4,$V795-4,0))","v":""},{"$f":"IF(C795=$X$4,\"Enter smelter details\", IF(ISERROR($V795),\"\",OFFSET('Smelter Look-up'!$F$4,$V795-4,0)))","v":""},{"$f":"IF(ISERROR($V795),\"\",OFFSET('Smelter Look-up'!$G$4,$V795-4,0))","v":""},{"$f":"IF(ISERROR($V795),\"\",OFFSET('Smelter Look-up'!$H$4,$V795-4,0))","v":""},{"$f":"IF(ISERROR($V795),\"\",OFFSET('Smelter Look-up'!$I$4,$V795-4,0))","v":""},{"$nulls":7},{"$f":"IF(ISERROR($V795),\"\",OFFSET('Smelter Look-up'!$C$4,$V795-4,0)&\"\")","v":""},"",{"$f":"IF(B795=\"\",\"\",IF(ISERROR(MATCH($J795,SorP!$B$1:$B$6230,0)),\"\",INDIRECT(\"'SorP'!$A$\"&MATCH($J795,SorP!$B$1:$B$6230,0))))","v":""},null,{"$f":"IF(C795=\"\",NA(),MATCH($B795&$C795,'Smelter Look-up'!$J:$J,0))","v":{"$error":"#N/A"}},null,0,null,null,null,""]
[null,{"$f":"IF(LEN(A796)=0,\"\",INDEX('Smelter Look-up'!$A:$A,MATCH($A796,'Smelter Look-up'!$E:$E,0)))","v":""},{"$f":"IF(LEN(A796)=0,\"\",INDEX('Smelter Look-up'!$C:$C,MATCH($A796,'Smelter Look-up'!$E:$E,0)))","v":""},null,{"$f":"IF(ISERROR($V796),\"\",OFFSET('Smelter Look-up'!$D$4,$V796-4,0)&\"\")","v":""},{"$f":"IF(ISERROR($V796),\"\",OFFSET('Smelter Look-up'!$E$4,$V796-4,0))","v":""},{"$f":"IF(C796=$X$4,\"Enter smelter details\", IF(ISERROR($V796),\"\",OFFSET('Smelter Look-up'!$F$4,$V796-4,0)))","v":""},{"$f":"IF(ISERROR($V796),\"\",OFFSET('Smelter Look-up'!$G$4,$V796-4,0))","v":""},{"$f":"IF(ISERROR($V796),\"\",OFFSET('Smelter Look-up'!$H$4,$V796-4,0))","v":""},{"$f":"IF(ISERROR($V796),\"\",OFFSET('Smelter Look-up'!$I$4,$V796-4,0))","v":""},{"$nulls":7},{"$f":"IF(ISERROR($V796),\"\",OFFSET('Smelter Look-up'!$C$4,$V796-4,0)&\"\")","v":""},"",{"$f":"IF(B796=\"\",\"\",IF(ISERROR(MATCH($J796,SorP!$B$1:$B$6230,0)),\"\",INDIRECT(\"'SorP'!$A$\"&MATCH($J796,SorP!$B$1:$B$6230,0))))","v":""},null,{"$f":"IF(C796=\"\",NA(),MATCH($B796&$C796,'Smelter Look-up'!$J:$J,0))","v":{"$error":"#N/A"}},null,0,null,null,null,""]
[null,{"$f":"IF(LEN(A797)=0,\"\",INDEX('Smelter Look-up'!$A:$A,MATCH($A797,'Smelter Look-up'!$E:$E,0)))","v":""},{"$f":"IF(LEN(A797)=0,\"\",INDEX('Smelter Look-up'!$C:$C,MATCH($A797,'Smelter Look-up'!$E:$E,0)))","v":""},null,{"$f":"IF(ISERROR($V797),\"\",OFFSET('Smelter Look-up'!$D$4,$V797-4,0)&\"\")","v":""},{"$f":"IF(ISERROR($V797),\"\",OFFSET('Smelter Look-up'!$E$4,$V797-4,0))","v":""},{"$f":"IF(C797=$X$4,\"Enter smelter details\", IF(ISERROR($V797),\"\",OFFSET('Smelter Look-up'!$F$4,$V797-4,0)))","v":""},{"$f":"IF(ISERROR($V797),\"\",OFFSET('Smelter Look-up'!$G$4,$V797-4,0))","v":""},{"$f":"IF(ISERROR($V797),\"\",OFFSET('Smelter Look-up'!$H$4,$V797-4,0))","v":""},{"$f":"IF(ISERROR($V797),\"\",OFFSET('Smelter Look-up'!$I$4,$V797-4,0))","v":""},{"$nulls":7},{"$f":"IF(ISERROR($V797),\"\",OFFSET('Smelter Look-up'!$C$4,$V797-4,0)&\"\")","v":""},"",{"$f":"IF(B797=\"\",\"\",IF(ISERROR(MATCH($J797,SorP!$B$1:$B$6230,0)),\"\",INDIRECT(\"'SorP'!$A$\"&MATCH($J797,SorP!$B$1:$B$6230,0))))","v":""},null,{"$f":"IF(C797=\"\",NA(),MATCH($B797&$C797,'Smelter Look-up'!$J:$J,0))","v":{"$error":"#N/A"}},null,0,null,null,null,""]
[null,{"$f":"IF(LEN(A798)=0,\"\",INDEX('Smelter Look-up'!$A:$A,MATCH($A798,'Smelter Look-up'!$E:$E,0)))","v":""},{"$f":"IF(LEN(A798)=0,\"\",INDEX('Smelter Look-up'!$C:$C,MATCH($A798,'Smelter Look-up'!$E:$E,0)))","v":""},null,{"$f":"IF(ISERROR($V798),\"\",OFFSET('Smelter Look-up'!$D$4,$V798-4,0)&\"\")","v":""},{"$f":"IF(ISERROR($V798),\"\",OFFSET('Smelter Look-up'!$E$4,$V798-4,0))","v":""},{"$f":"IF(C798=$X$4,\"Enter smelter details\", IF(ISERROR($V798),\"\",OFFSET('Smelter Look-up'!$F$4,$V798-4,0)))","v":""},{"$f":"IF(ISERROR($V798),\"\",OFFSET('Smelter Look-up'!$G$4,$V798-4,0))","v":""},{"$f":"IF(ISERROR($V798),\"\",OFFSET('Smelter Look-up'!$H$4,$V798-4,0))","v":""},{"$f":"IF(ISERROR($V798),\"\",OFFSET('Smelter Look-up'!$I$4,$V798-4,0))","v":""},{"$nulls":7},{"$f":"IF(ISERROR($V798),\"\",OFFSET('Smelter Look-up'!$C$4,$V798-4,0)&\"\")","v":""},"",{"$f":"IF(B798=\"\",\"\",IF(ISERROR(MATCH($J798,SorP!$B$1:$B$6230,0)),\"\",INDIRECT(\"'SorP'!$A$\"&MATCH($J798,SorP!$B$1:$B$6230,0))))","v":""},null,{"$f":"IF(C798=\"\",NA(),MATCH($B798&$C798,'Smelter Look-up'!$J:$J,0))","v":{"$error":"#N/A"}},null,0,null,null,null,""]
[null,{"$f":"IF(LEN(A799)=0,\"\",INDEX('Smelter Look-up'!$A:$A,MATCH($A799,'Smelter Look-up'!$E:$E,0)))","v":""},{"$f":"IF(LEN(A799)=0,\"\",INDEX('Smelter Look-up'!$C:$C,MATCH($A799,'Smelter Look-up'!$E:$E,0)))","v":""},null,{"$f":"IF(ISERROR($V799),\"\",OFFSET('Smelter Look-up'!$D$4,$V799-4,0)&\"\")","v":""},{"$f":"IF(ISERROR($V799),\"\",OFFSET('Smelter Look-up'!$E$4,$V799-4,0))","v":""},{"$f":"IF(C799=$X$4,\"Enter smelter details\", IF(ISERROR($V799),\"\",OFFSET('Smelter Look-up'!$F$4,$V799-4,0)))","v":""},{"$f":"IF(ISERROR($V799),\"\",OFFSET('Smelter Look-up'!$G$4,$V799-4,0))","v":""},{"$f":"IF(ISERROR($V799),\"\",OFFSET('Smelter Look-up'!$H$4,$V799-4,0))","v":""},{"$f":"IF(ISERROR($V799),\"\",OFFSET('Smelter Look-up'!$I$4,$V799-4,0))","v":""},{"$nulls":7},{"$f":"IF(ISERROR($V799),\"\",OFFSET('Smelter Look-up'!$C$4,$V799-4,0)&\"\")","v":""},"",{"$f":"IF(B799=\"\",\"\",IF(ISERROR(MATCH($J799,SorP!$B$1:$B$6230,0)),\"\",INDIRECT(\"'SorP'!$A$\"&MATCH($J799,SorP!$B$1:$B$6230,0))))","v":""},null,{"$f":"IF(C799=\"\",NA(),MATCH($B799&$C799,'Smelter Look-up'!$J:$J,0))","v":{"$error":"#N/A"}},null,0,null,null,null,""]
[null,{"$f":"IF(LEN(A800)=0,\"\",INDEX('Smelter Look-up'!$A:$A,MATCH($A800,'Smelter Look-up'!$E:$E,0)))","v":""},{"$f":"IF(LEN(A800)=0,\"\",INDEX('Smelter Look-up'!$C:$C,MATCH($A800,'Smelter Look-up'!$E:$E,0)))","v":""},null,{"$f":"IF(ISERROR($V800),\"\",OFFSET('Smelter Look-up'!$D$4,$V800-4,0)&\"\")","v":""},{"$f":"IF(ISERROR($V800),\"\",OFFSET('Smelter Look-up'!$E$4,$V800-4,0))","v":""},{"$f":"IF(C800=$X$4,\"Enter smelter details\", IF(ISERROR($V800),\"\",OFFSET('Smelter Look-up'!$F$4,$V800-4,0)))","v":""},{"$f":"IF(ISERROR($V800),\"\",OFFSET('Smelter Look-up'!$G$4,$V800-4,0))","v":""},{"$f":"IF(ISERROR($V800),\"\",OFFSET('Smelter Look-up'!$H$4,$V800-4,0))","v":""},{"$f":"IF(ISERROR($V800),\"\",OFFSET('Smelter Look-up'!$I$4,$V800-4,0))","v":""},{"$nulls":7},{"$f":"IF(ISERROR($V800),\"\",OFFSET('Smelter Look-up'!$C$4,$V800-4,0)&\"\")","v":""},"",{"$f":"IF(B800=\"\",\"\",IF(ISERROR(MATCH($J800,SorP!$B$1:$B$6230,0)),\"\",INDIRECT(\"'SorP'!$A$\"&MATCH($J800,SorP!$B$1:$B$6230,0))))","v":""},null,{"$f":"IF(C800=\"\",NA(),MATCH($B800&$C800,'Smelter Look-up'!$J:$J,0))","v":{"$error":"#N/A"}},null,0,null,null,null,""]
[null,{"$f":"IF(LEN(A801)=0,\"\",INDEX('Smelter Look-up'!$A:$A,MATCH($A801,'Smelter Look-up'!$E:$E,0)))","v":""},{"$f":"IF(LEN(A801)=0,\"\",INDEX('Smelter Look-up'!$C:$C,MATCH($A801,'Smelter Look-up'!$E:$E,0)))","v":""},null,{"$f":"IF(ISERROR($V801),\"\",OFFSET('Smelter Look-up'!$D$4,$V801-4,0)&\"\")","v":""},{"$f":"IF(ISERROR($V801),\"\",OFFSET('Smelter Look-up'!$E$4,$V801-4,0))","v":""},{"$f":"IF(C801=$X$4,\"Enter smelter details\", IF(ISERROR($V801),\"\",OFFSET('Smelter Look-up'!$F$4,$V801-4,0)))","v":""},{"$f":"IF(ISERROR($V801),\"\",OFFSET('Smelter Look-up'!$G$4,$V801-4,0))","v":""},{"$f":"IF(ISERROR($V801),\"\",OFFSET('Smelter Look-up'!$H$4,$V801-4,0))","v":""},{"$f":"IF(ISERROR($V801),\"\",OFFSET('Smelter Look-up'!$I$4,$V801-4,0))","v":""},{"$nulls":7},{"$f":"IF(ISERROR($V801),\"\",OFFSET('Smelter Look-up'!$C$4,$V801-4,0)&\"\")","v":""},"",{"$f":"IF(B801=\"\",\"\",IF(ISERROR(MATCH($J801,SorP!$B$1:$B$6230,0)),\"\",INDIRECT(\"'SorP'!$A$\"&MATCH($J801,SorP!$B$1:$B$6230,0))))","v":""},null,{"$f":"IF(C801=\"\",NA(),MATCH($B801&$C801,'Smelter Look-up'!$J:$J,0))","v":{"$error":"#N/A"}},null,0,null,null,null,""]
[null,{"$f":"IF(LEN(A802)=0,\"\",INDEX('Smelter Look-up'!$A:$A,MATCH($A802,'Smelter Look-up'!$E:$E,0)))","v":""},{"$f":"IF(LEN(A802)=0,\"\",INDEX('Smelter Look-up'!$C:$C,MATCH($A802,'Smelter Look-up'!$E:$E,0)))","v":""},null,{"$f":"IF(ISERROR($V802),\"\",OFFSET('Smelter Look-up'!$D$4,$V802-4,0)&\"\")","v":""},{"$f":"IF(ISERROR($V802),\"\",OFFSET('Smelter Look-up'!$E$4,$V802-4,0))","v":""},{"$f":"IF(C802=$X$4,\"Enter smelter details\", IF(ISERROR($V802),\"\",OFFSET('Smelter Look-up'!$F$4,$V802-4,0)))","v":""},{"$f":"IF(ISERROR($V802),\"\",OFFSET('Smelter Look-up'!$G$4,$V802-4,0))","v":""},{"$f":"IF(ISERROR($V802),\"\",OFFSET('Smelter Look-up'!$H$4,$V802-4,0))","v":""},{"$f":"IF(ISERROR($V802),\"\",OFFSET('Smelter Look-up'!$I$4,$V802-4,0))","v":""},{"$nulls":7},{"$f":"IF(ISERROR($V802),\"\",OFFSET('Smelter Look-up'!$C$4,$V802-4,0)&\"\")","v":""},"",{"$f":"IF(B802=\"\",\"\",IF(ISERROR(MATCH($J802,SorP!$B$1:$B$6230,0)),\"\",INDIRECT(\"'SorP'!$A$\"&MATCH($J802,SorP!$B$1:$B$6230,0))))","v":""},null,{"$f":"IF(C802=\"\",NA(),MATCH($B802&$C802,'Smelter Look-up'!$J:$J,0))","v":{"$error":"#N/A"}},null,0,null,null,null,""]
[null,{"$f":"IF(LEN(A803)=0,\"\",INDEX('Smelter Look-up'!$A:$A,MATCH($A803,'Smelter Look-up'!$E:$E,0)))","v":""},{"$f":"IF(LEN(A803)=0,\"\",INDEX('Smelter Look-up'!$C:$C,MATCH($A803,'Smelter Look-up'!$E:$E,0)))","v":""},null,{"$f":"IF(ISERROR($V803),\"\",OFFSET('Smelter Look-up'!$D$4,$V803-4,0)&\"\")","v":""},{"$f":"IF(ISERROR($V803),\"\",OFFSET('Smelter Look-up'!$E$4,$V803-4,0))","v":""},{"$f":"IF(C803=$X$4,\"Enter smelter details\", IF(ISERROR($V803),\"\",OFFSET('Smelter Look-up'!$F$4,$V803-4,0)))","v":""},{"$f":"IF(ISERROR($V803),\"\",OFFSET('Smelter Look-up'!$G$4,$V803-4,0))","v":""},{"$f":"IF(ISERROR($V803),\"\",OFFSET('Smelter Look-up'!$H$4,$V803-4,0))","v":""},{"$f":"IF(ISERROR($V803),\"\",OFFSET('Smelter Look-up'!$I$4,$V803-4,0))","v":""},{"$nulls":7},{"$f":"IF(ISERROR($V803),\"\",OFFSET('Smelter Look-up'!$C$4,$V803-4,0)&\"\")","v":""},"",{"$f":"IF(B803=\"\",\"\",IF(ISERROR(MATCH($J803,SorP!$B$1:$B$6230,0)),\"\",INDIRECT(\"'SorP'!$A$\"&MATCH($J803,SorP!$B$1:$B$6230,0))))","v":""},null,{"$f":"IF(C803=\"\",NA(),MATCH($B803&$C803,'Smelter Look-up'!$J:$J,0))","v":{"$error":"#N/A"}},null,0,null,null,null,""]
[null,{"$f":"IF(LEN(A804)=0,\"\",INDEX('Smelter Look-up'!$A:$A,MATCH($A804,'Smelter Look-up'!$E:$E,0)))","v":""},{"$f":"IF(LEN(A804)=0,\"\",INDEX('Smelter Look-up'!$C:$C,MATCH($A804,'Smelter Look-up'!$E:$E,0)))","v":""},null,{"$f":"IF(ISERROR($V804),\"\",OFFSET('Smelter Look-up'!$D$4,$V804-4,0)&\"\")","v":""},{"$f":"IF(ISERROR($V804),\"\",OFFSET('Smelter Look-up'!$E$4,$V804-4,0))","v":""},{"$f":"IF(C804=$X$4,\"Enter smelter details\", IF(ISERROR($V804),\"\",OFFSET('Smelter Look-up'!$F$4,$V804-4,0)))","v":""},{"$f":"IF(ISERROR($V804),\"\",OFFSET('Smelter Look-up'!$G$4,$V804-4,0))","v":""},{"$f":"IF(ISERROR($V804),\"\",OFFSET('Smelter Look-up'!$H$4,$V804-4,0))","v":""},{"$f":"IF(ISERROR($V804),\"\",OFFSET('Smelter Look-up'!$I$4,$V804-4,0))","v":""},{"$nulls":7},{"$f":"IF(ISERROR($V804),\"\",OFFSET('Smelter Look-up'!$C$4,$V804-4,0)&\"\")","v":""},"",{"$f":"IF(B804=\"\",\"\",IF(ISERROR(MATCH($J804,SorP!$B$1:$B$6230,0)),\"\",INDIRECT(\"'SorP'!$A$\"&MATCH($J804,SorP!$B$1:$B$6230,0))))","v":""},null,{"$f":"IF(C804=\"\",NA(),MATCH($B804&$C804,'Smelter Look-up'!$J:$J,0))","v":{"$error":"#N/A"}},null,0,null,null,null,""]
[null,{"$f":"IF(LEN(A805)=0,\"\",INDEX('Smelter Look-up'!$A:$A,MATCH($A805,'Smelter Look-up'!$E:$E,0)))","v":""},{"$f":"IF(LEN(A805)=0,\"\",INDEX('Smelter Look-up'!$C:$C,MATCH($A805,'Smelter Look-up'!$E:$E,0)))","v":""},null,{"$f":"IF(ISERROR($V805),\"\",OFFSET('Smelter Look-up'!$D$4,$V805-4,0)&\"\")","v":""},{"$f":"IF(ISERROR($V805),\"\",OFFSET('Smelter Look-up'!$E$4,$V805-4,0))","v":""},{"$f":"IF(C805=$X$4,\"Enter smelter details\", IF(ISERROR($V805),\"\",OFFSET('Smelter Look-up'!$F$4,$V805-4,0)))","v":""},{"$f":"IF(ISERROR($V805),\"\",OFFSET('Smelter Look-up'!$G$4,$V805-4,0))","v":""},{"$f":"IF(ISERROR($V805),\"\",OFFSET('Smelter Look-up'!$H$4,$V805-4,0))","v":""},{"$f":"IF(ISERROR($V805),\"\",OFFSET('Smelter Look-up'!$I$4,$V805-4,0))","v":""},{"$nulls":7},{"$f":"IF(ISERROR($V805),\"\",OFFSET('Smelter Look-up'!$C$4,$V805-4,0)&\"\")","v":""},"",{"$f":"IF(B805=\"\",\"\",IF(ISERROR(MATCH($J805,SorP!$B$1:$B$6230,0)),\"\",INDIRECT(\"'SorP'!$A$\"&MATCH($J805,SorP!$B$1:$B$6230,0))))","v":""},null,{"$f":"IF(C805=\"\",NA(),MATCH($B805&$C805,'Smelter Look-up'!$J:$J,0))","v":{"$error":"#N/A"}},null,0,null,null,null,""]
[null,{"$f":"IF(LEN(A806)=0,\"\",INDEX('Smelter Look-up'!$A:$A,MATCH($A806,'Smelter Look-up'!$E:$E,0)))","v":""},{"$f":"IF(LEN(A806)=0,\"\",INDEX('Smelter Look-up'!$C:$C,MATCH($A806,'Smelter Look-up'!$E:$E,0)))","v":""},null,{"$f":"IF(ISERROR($V806),\"\",OFFSET('Smelter Look-up'!$D$4,$V806-4,0)&\"\")","v":""},{"$f":"IF(ISERROR($V806),\"\",OFFSET('Smelter Look-up'!$E$4,$V806-4,0))","v":""},{"$f":"IF(C806=$X$4,\"Enter smelter details\", IF(ISERROR($V806),\"\",OFFSET('Smelter Look-up'!$F$4,$V806-4,0)))","v":""},{"$f":"IF(ISERROR($V806),\"\",OFFSET('Smelter Look-up'!$G$4,$V806-4,0))","v":""},{"$f":"IF(ISERROR($V806),\"\",OFFSET('Smelter Look-up'!$H$4,$V806-4,0))","v":""},{"$f":"IF(ISERROR($V806),\"\",OFFSET('Smelter Look-up'!$I$4,$V806-4,0))","v":""},{"$nulls":7},{"$f":"IF(ISERROR($V806),\"\",OFFSET('Smelter Look-up'!$C$4,$V806-4,0)&\"\")","v":""},"",{"$f":"IF(B806=\"\",\"\",IF(ISERROR(MATCH($J806,SorP!$B$1:$B$6230,0)),\"\",INDIRECT(\"'SorP'!$A$\"&MATCH($J806,SorP!$B$1:$B$6230,0))))","v":""},null,{"$f":"IF(C806=\"\",NA(),MATCH($B806&$C806,'Smelter Look-up'!$J:$J,0))","v":{"$error":"#N/A"}},null,0,null,null,null,""]
[null,{"$f":"IF(LEN(A807)=0,\"\",INDEX('Smelter Look-up'!$A:$A,MATCH($A807,'Smelter Look-up'!$E:$E,0)))","v":""},{"$f":"IF(LEN(A807)=0,\"\",INDEX('Smelter Look-up'!$C:$C,MATCH($A807,'Smelter Look-up'!$E:$E,0)))","v":""},null,{"$f":"IF(ISERROR($V807),\"\",OFFSET('Smelter Look-up'!$D$4,$V807-4,0)&\"\")","v":""},{"$f":"IF(ISERROR($V807),\"\",OFFSET('Smelter Look-up'!$E$4,$V807-4,0))","v":""},{"$f":"IF(C807=$X$4,\"Enter smelter details\", IF(ISERROR($V807),\"\",OFFSET('Smelter Look-up'!$F$4,$V807-4,0)))","v":""},{"$f":"IF(ISERROR($V807),\"\",OFFSET('Smelter Look-up'!$G$4,$V807-4,0))","v":""},{"$f":"IF(ISERROR($V807),\"\",OFFSET('Smelter Look-up'!$H$4,$V807-4,0))","v":""},{"$f":"IF(ISERROR($V807),\"\",OFFSET('Smelter Look-up'!$I$4,$V807-4,0))","v":""},{"$nulls":7},{"$f":"IF(ISERROR($V807),\"\",OFFSET('Smelter Look-up'!$C$4,$V807-4,0)&\"\")","v":""},"",{"$f":"IF(B807=\"\",\"\",IF(ISERROR(MATCH($J807,SorP!$B$1:$B$6230,0)),\"\",INDIRECT(\"'SorP'!$A$\"&MATCH($J807,SorP!$B$1:$B$6230,0))))","v":""},null,{"$f":"IF(C807=\"\",NA(),MATCH($B807&$C807,'Smelter Look-up'!$J:$J,0))","v":{"$error":"#N/A"}},null,0,null,null,null,""]
[null,{"$f":"IF(LEN(A808)=0,\"\",INDEX('Smelter Look-up'!$A:$A,MATCH($A808,'Smelter Look-up'!$E:$E,0)))","v":""},{"$f":"IF(LEN(A808)=0,\"\",INDEX('Smelter Look-up'!$C:$C,MATCH($A808,'Smelter Look-up'!$E:$E,0)))","v":""},null,{"$f":"IF(ISERROR($V808),\"\",OFFSET('Smelter Look-up'!$D$4,$V808-4,0)&\"\")","v":""},{"$f":"IF(ISERROR($V808),\"\",OFFSET('Smelter Look-up'!$E$4,$V808-4,0))","v":""},{"$f":"IF(C808=$X$4,\"Enter smelter details\", IF(ISERROR($V808),\"\",OFFSET('Smelter Look-up'!$F$4,$V808-4,0)))","v":""},{"$f":"IF(ISERROR($V808),\"\",OFFSET('Smelter Look-up'!$G$4,$V808-4,0))","v":""},{"$f":"IF(ISERROR($V808),\"\",OFFSET('Smelter Look-up'!$H$4,$V808-4,0))","v":""},{"$f":"IF(ISERROR($V808),\"\",OFFSET('Smelter Look-up'!$I$4,$V808-4,0))","v":""},{"$nulls":7},{"$f":"IF(ISERROR($V808),\"\",OFFSET('Smelter Look-up'!$C$4,$V808-4,0)&\"\")","v":""},"",{"$f":"IF(B808=\"\",\"\",IF(ISERROR(MATCH($J808,SorP!$B$1:$B$6230,0)),\"\",INDIRECT(\"'SorP'!$A$\"&MATCH($J808,SorP!$B$1:$B$6230,0))))","v":""},null,{"$f":"IF(C808=\"\",NA(),MATCH($B808&$C808,'Smelter Look-up'!$J:$J,0))","v":{"$error":"#N/A"}},null,0,null,null,null,""]
[null,{"$f":"IF(LEN(A809)=0,\"\",INDEX('Smelter Look-up'!$A:$A,MATCH($A809,'Smelter Look-up'!$E:$E,0)))","v":""},{"$f":"IF(LEN(A809)=0,\"\",INDEX('Smelter Look-up'!$C:$C,MATCH($A809,'Smelter Look-up'!$E:$E,0)))","v":""},null,{"$f":"IF(ISERROR($V809),\"\",OFFSET('Smelter Look-up'!$D$4,$V809-4,0)&\"\")","v":""},{"$f":"IF(ISERROR($V809),\"\",OFFSET('Smelter Look-up'!$E$4,$V809-4,0))","v":""},{"$f":"IF(C809=$X$4,\"Enter smelter details\", IF(ISERROR($V809),\"\",OFFSET('Smelter Look-up'!$F$4,$V809-4,0)))","v":""},{"$f":"IF(ISERROR($V809),\"\",OFFSET('Smelter Look-up'!$G$4,$V809-4,0))","v":""},{"$f":"IF(ISERROR($V809),\"\",OFFSET('Smelter Look-up'!$H$4,$V809-4,0))","v":""},{"$f":"IF(ISERROR($V809),\"\",OFFSET('Smelter Look-up'!$I$4,$V809-4,0))","v":""},{"$nulls":7},{"$f":"IF(ISERROR($V809),\"\",OFFSET('Smelter Look-up'!$C$4,$V809-4,0)&\"\")","v":""},"",{"$f":"IF(B809=\"\",\"\",IF(ISERROR(MATCH($J809,SorP!$B$1:$B$6230,0)),\"\",INDIRECT(\"'SorP'!$A$\"&MATCH($J809,SorP!$B$1:$B$6230,0))))","v":""},null,{"$f":"IF(C809=\"\",NA(),MATCH($B809&$C809,'Smelter Look-up'!$J:$J,0))","v":{"$error":"#N/A"}},null,0,null,null,null,""]
[null,{"$f":"IF(LEN(A810)=0,\"\",INDEX('Smelter Look-up'!$A:$A,MATCH($A810,'Smelter Look-up'!$E:$E,0)))","v":""},{"$f":"IF(LEN(A810)=0,\"\",INDEX('Smelter Look-up'!$C:$C,MATCH($A810,'Smelter Look-up'!$E:$E,0)))","v":""},null,{"$f":"IF(ISERROR($V810),\"\",OFFSET('Smelter Look-up'!$D$4,$V810-4,0)&\"\")","v":""},{"$f":"IF(ISERROR($V810),\"\",OFFSET('Smelter Look-up'!$E$4,$V810-4,0))","v":""},{"$f":"IF(C810=$X$4,\"Enter smelter details\", IF(ISERROR($V810),\"\",OFFSET('Smelter Look-up'!$F$4,$V810-4,0)))","v":""},{"$f":"IF(ISERROR($V810),\"\",OFFSET('Smelter Look-up'!$G$4,$V810-4,0))","v":""},{"$f":"IF(ISERROR($V810),\"\",OFFSET('Smelter Look-up'!$H$4,$V810-4,0))","v":""},{"$f":"IF(ISERROR($V810),\"\",OFFSET('Smelter Look-up'!$I$4,$V810-4,0))","v":""},{"$nulls":7},{"$f":"IF(ISERROR($V810),\"\",OFFSET('Smelter Look-up'!$C$4,$V810-4,0)&\"\")","v":""},"",{"$f":"IF(B810=\"\",\"\",IF(ISERROR(MATCH($J810,SorP!$B$1:$B$6230,0)),\"\",INDIRECT(\"'SorP'!$A$\"&MATCH($J810,SorP!$B$1:$B$6230,0))))","v":""},null,{"$f":"IF(C810=\"\",NA(),MATCH($B810&$C810,'Smelter Look-up'!$J:$J,0))","v":{"$error":"#N/A"}},null,0,null,null,null,""]
[null,{"$f":"IF(LEN(A811)=0,\"\",INDEX('Smelter Look-up'!$A:$A,MATCH($A811,'Smelter Look-up'!$E:$E,0)))","v":""},{"$f":"IF(LEN(A811)=0,\"\",INDEX('Smelter Look-up'!$C:$C,MATCH($A811,'Smelter Look-up'!$E:$E,0)))","v":""},null,{"$f":"IF(ISERROR($V811),\"\",OFFSET('Smelter Look-up'!$D$4,$V811-4,0)&\"\")","v":""},{"$f":"IF(ISERROR($V811),\"\",OFFSET('Smelter Look-up'!$E$4,$V811-4,0))","v":""},{"$f":"IF(C811=$X$4,\"Enter smelter details\", IF(ISERROR($V811),\"\",OFFSET('Smelter Look-up'!$F$4,$V811-4,0)))","v":""},{"$f":"IF(ISERROR($V811),\"\",OFFSET('Smelter Look-up'!$G$4,$V811-4,0))","v":""},{"$f":"IF(ISERROR($V811),\"\",OFFSET('Smelter Look-up'!$H$4,$V811-4,0))","v":""},{"$f":"IF(ISERROR($V811),\"\",OFFSET('Smelter Look-up'!$I$4,$V811-4,0))","v":""},{"$nulls":7},{"$f":"IF(ISERROR($V811),\"\",OFFSET('Smelter Look-up'!$C$4,$V811-4,0)&\"\")","v":""},"",{"$f":"IF(B811=\"\",\"\",IF(ISERROR(MATCH($J811,SorP!$B$1:$B$6230,0)),\"\",INDIRECT(\"'SorP'!$A$\"&MATCH($J811,SorP!$B$1:$B$6230,0))))","v":""},null,{"$f":"IF(C811=\"\",NA(),MATCH($B811&$C811,'Smelter Look-up'!$J:$J,0))","v":{"$error":"#N/A"}},null,0,null,null,null,""]
[null,{"$f":"IF(LEN(A812)=0,\"\",INDEX('Smelter Look-up'!$A:$A,MATCH($A812,'Smelter Look-up'!$E:$E,0)))","v":""},{"$f":"IF(LEN(A812)=0,\"\",INDEX('Smelter Look-up'!$C:$C,MATCH($A812,'Smelter Look-up'!$E:$E,0)))","v":""},null,{"$f":"IF(ISERROR($V812),\"\",OFFSET('Smelter Look-up'!$D$4,$V812-4,0)&\"\")","v":""},{"$f":"IF(ISERROR($V812),\"\",OFFSET('Smelter Look-up'!$E$4,$V812-4,0))","v":""},{"$f":"IF(C812=$X$4,\"Enter smelter details\", IF(ISERROR($V812),\"\",OFFSET('Smelter Look-up'!$F$4,$V812-4,0)))","v":""},{"$f":"IF(ISERROR($V812),\"\",OFFSET('Smelter Look-up'!$G$4,$V812-4,0))","v":""},{"$f":"IF(ISERROR($V812),\"\",OFFSET('Smelter Look-up'!$H$4,$V812-4,0))","v":""},{"$f":"IF(ISERROR($V812),\"\",OFFSET('Smelter Look-up'!$I$4,$V812-4,0))","v":""},{"$nulls":7},{"$f":"IF(ISERROR($V812),\"\",OFFSET('Smelter Look-up'!$C$4,$V812-4,0)&\"\")","v":""},"",{"$f":"IF(B812=\"\",\"\",IF(ISERROR(MATCH($J812,SorP!$B$1:$B$6230,0)),\"\",INDIRECT(\"'SorP'!$A$\"&MATCH($J812,SorP!$B$1:$B$6230,0))))","v":""},null,{"$f":"IF(C812=\"\",NA(),MATCH($B812&$C812,'Smelter Look-up'!$J:$J,0))","v":{"$error":"#N/A"}},null,0,null,null,null,""]
[null,{"$f":"IF(LEN(A813)=0,\"\",INDEX('Smelter Look-up'!$A:$A,MATCH($A813,'Smelter Look-up'!$E:$E,0)))","v":""},{"$f":"IF(LEN(A813)=0,\"\",INDEX('Smelter Look-up'!$C:$C,MATCH($A813,'Smelter Look-up'!$E:$E,0)))","v":""},null,{"$f":"IF(ISERROR($V813),\"\",OFFSET('Smelter Look-up'!$D$4,$V813-4,0)&\"\")","v":""},{"$f":"IF(ISERROR($V813),\"\",OFFSET('Smelter Look-up'!$E$4,$V813-4,0))","v":""},{"$f":"IF(C813=$X$4,\"Enter smelter details\", IF(ISERROR($V813),\"\",OFFSET('Smelter Look-up'!$F$4,$V813-4,0)))","v":""},{"$f":"IF(ISERROR($V813),\"\",OFFSET('Smelter Look-up'!$G$4,$V813-4,0))","v":""},{"$f":"IF(ISERROR($V813),\"\",OFFSET('Smelter Look-up'!$H$4,$V813-4,0))","v":""},{"$f":"IF(ISERROR($V813),\"\",OFFSET('Smelter Look-up'!$I$4,$V813-4,0))","v":""},{"$nulls":7},{"$f":"IF(ISERROR($V813),\"\",OFFSET('Smelter Look-up'!$C$4,$V813-4,0)&\"\")","v":""},"",{"$f":"IF(B813=\"\",\"\",IF(ISERROR(MATCH($J813,SorP!$B$1:$B$6230,0)),\"\",INDIRECT(\"'SorP'!$A$\"&MATCH($J813,SorP!$B$1:$B$6230,0))))","v":""},null,{"$f":"IF(C813=\"\",NA(),MATCH($B813&$C813,'Smelter Look-up'!$J:$J,0))","v":{"$error":"#N/A"}},null,0,null,null,null,""]
[null,{"$f":"IF(LEN(A814)=0,\"\",INDEX('Smelter Look-up'!$A:$A,MATCH($A814,'Smelter Look-up'!$E:$E,0)))","v":""},{"$f":"IF(LEN(A814)=0,\"\",INDEX('Smelter Look-up'!$C:$C,MATCH($A814,'Smelter Look-up'!$E:$E,0)))","v":""},null,{"$f":"IF(ISERROR($V814),\"\",OFFSET('Smelter Look-up'!$D$4,$V814-4,0)&\"\")","v":""},{"$f":"IF(ISERROR($V814),\"\",OFFSET('Smelter Look-up'!$E$4,$V814-4,0))","v":""},{"$f":"IF(C814=$X$4,\"Enter smelter details\", IF(ISERROR($V814),\"\",OFFSET('Smelter Look-up'!$F$4,$V814-4,0)))","v":""},{"$f":"IF(ISERROR($V814),\"\",OFFSET('Smelter Look-up'!$G$4,$V814-4,0))","v":""},{"$f":"IF(ISERROR($V814),\"\",OFFSET('Smelter Look-up'!$H$4,$V814-4,0))","v":""},{"$f":"IF(ISERROR($V814),\"\",OFFSET('Smelter Look-up'!$I$4,$V814-4,0))","v":""},{"$nulls":7},{"$f":"IF(ISERROR($V814),\"\",OFFSET('Smelter Look-up'!$C$4,$V814-4,0)&\"\")","v":""},"",{"$f":"IF(B814=\"\",\"\",IF(ISERROR(MATCH($J814,SorP!$B$1:$B$6230,0)),\"\",INDIRECT(\"'SorP'!$A$\"&MATCH($J814,SorP!$B$1:$B$6230,0))))","v":""},null,{"$f":"IF(C814=\"\",NA(),MATCH($B814&$C814,'Smelter Look-up'!$J:$J,0))","v":{"$error":"#N/A"}},null,0,null,null,null,""]
[null,{"$f":"IF(LEN(A815)=0,\"\",INDEX('Smelter Look-up'!$A:$A,MATCH($A815,'Smelter Look-up'!$E:$E,0)))","v":""},{"$f":"IF(LEN(A815)=0,\"\",INDEX('Smelter Look-up'!$C:$C,MATCH($A815,'Smelter Look-up'!$E:$E,0)))","v":""},null,{"$f":"IF(ISERROR($V815),\"\",OFFSET('Smelter Look-up'!$D$4,$V815-4,0)&\"\")","v":""},{"$f":"IF(ISERROR($V815),\"\",OFFSET('Smelter Look-up'!$E$4,$V815-4,0))","v":""},{"$f":"IF(C815=$X$4,\"Enter smelter details\", IF(ISERROR($V815),\"\",OFFSET('Smelter Look-up'!$F$4,$V815-4,0)))","v":""},{"$f":"IF(ISERROR($V815),\"\",OFFSET('Smelter Look-up'!$G$4,$V815-4,0))","v":""},{"$f":"IF(ISERROR($V815),\"\",OFFSET('Smelter Look-up'!$H$4,$V815-4,0))","v":""},{"$f":"IF(ISERROR($V815),\"\",OFFSET('Smelter Look-up'!$I$4,$V815-4,0))","v":""},{"$nulls":7},{"$f":"IF(ISERROR($V815),\"\",OFFSET('Smelter Look-up'!$C$4,$V815-4,0)&\"\")","v":""},"",{"$f":"IF(B815=\"\",\"\",IF(ISERROR(MATCH($J815,SorP!$B$1:$B$6230,0)),\"\",INDIRECT(\"'SorP'!$A$\"&MATCH($J815,SorP!$B$1:$B$6230,0))))","v":""},null,{"$f":"IF(C815=\"\",NA(),MATCH($B815&$C815,'Smelter Look-up'!$J:$J,0))","v":{"$error":"#N/A"}},null,0,null,null,null,""]
[null,{"$f":"IF(LEN(A816)=0,\"\",INDEX('Smelter Look-up'!$A:$A,MATCH($A816,'Smelter Look-up'!$E:$E,0)))","v":""},{"$f":"IF(LEN(A816)=0,\"\",INDEX('Smelter Look-up'!$C:$C,MATCH($A816,'Smelter Look-up'!$E:$E,0)))","v":""},null,{"$f":"IF(ISERROR($V816),\"\",OFFSET('Smelter Look-up'!$D$4,$V816-4,0)&\"\")","v":""},{"$f":"IF(ISERROR($V816),\"\",OFFSET('Smelter Look-up'!$E$4,$V816-4,0))","v":""},{"$f":"IF(C816=$X$4,\"Enter smelter details\", IF(ISERROR($V816),\"\",OFFSET('Smelter Look-up'!$F$4,$V816-4,0)))","v":""},{"$f":"IF(ISERROR($V816),\"\",OFFSET('Smelter Look-up'!$G$4,$V816-4,0))","v":""},{"$f":"IF(ISERROR($V816),\"\",OFFSET('Smelter Look-up'!$H$4,$V816-4,0))","v":""},{"$f":"IF(ISERROR($V816),\"\",OFFSET('Smelter Look-up'!$I$4,$V816-4,0))","v":""},{"$nulls":7},{"$f":"IF(ISERROR($V816),\"\",OFFSET('Smelter Look-up'!$C$4,$V816-4,0)&\"\")","v":""},"",{"$f":"IF(B816=\"\",\"\",IF(ISERROR(MATCH($J816,SorP!$B$1:$B$6230,0)),\"\",INDIRECT(\"'SorP'!$A$\"&MATCH($J816,SorP!$B$1:$B$6230,0))))","v":""},null,{"$f":"IF(C816=\"\",NA(),MATCH($B816&$C816,'Smelter Look-up'!$J:$J,0))","v":{"$error":"#N/A"}},null,0,null,null,null,""]
[null,{"$f":"IF(LEN(A817)=0,\"\",INDEX('Smelter Look-up'!$A:$A,MATCH($A817,'Smelter Look-up'!$E:$E,0)))","v":""},{"$f":"IF(LEN(A817)=0,\"\",INDEX('Smelter Look-up'!$C:$C,MATCH($A817,'Smelter Look-up'!$E:$E,0)))","v":""},null,{"$f":"IF(ISERROR($V817),\"\",OFFSET('Smelter Look-up'!$D$4,$V817-4,0)&\"\")","v":""},{"$f":"IF(ISERROR($V817),\"\",OFFSET('Smelter Look-up'!$E$4,$V817-4,0))","v":""},{"$f":"IF(C817=$X$4,\"Enter smelter details\", IF(ISERROR($V817),\"\",OFFSET('Smelter Look-up'!$F$4,$V817-4,0)))","v":""},{"$f":"IF(ISERROR($V817),\"\",OFFSET('Smelter Look-up'!$G$4,$V817-4,0))","v":""},{"$f":"IF(ISERROR($V817),\"\",OFFSET('Smelter Look-up'!$H$4,$V817-4,0))","v":""},{"$f":"IF(ISERROR($V817),\"\",OFFSET('Smelter Look-up'!$I$4,$V817-4,0))","v":""},{"$nulls":7},{"$f":"IF(ISERROR($V817),\"\",OFFSET('Smelter Look-up'!$C$4,$V817-4,0)&\"\")","v":""},"",{"$f":"IF(B817=\"\",\"\",IF(ISERROR(MATCH($J817,SorP!$B$1:$B$6230,0)),\"\",INDIRECT(\"'SorP'!$A$\"&MATCH($J817,SorP!$B$1:$B$6230,0))))","v":""},null,{"$f":"IF(C817=\"\",NA(),MATCH($B817&$C817,'Smelter Look-up'!$J:$J,0))","v":{"$error":"#N/A"}},null,0,null,null,null,""]
[null,{"$f":"IF(LEN(A818)=0,\"\",INDEX('Smelter Look-up'!$A:$A,MATCH($A818,'Smelter Look-up'!$E:$E,0)))","v":""},{"$f":"IF(LEN(A818)=0,\"\",INDEX('Smelter Look-up'!$C:$C,MATCH($A818,'Smelter Look-up'!$E:$E,0)))","v":""},null,{"$f":"IF(ISERROR($V818),\"\",OFFSET('Smelter Look-up'!$D$4,$V818-4,0)&\"\")","v":""},{"$f":"IF(ISERROR($V818),\"\",OFFSET('Smelter Look-up'!$E$4,$V818-4,0))","v":""},{"$f":"IF(C818=$X$4,\"Enter smelter details\", IF(ISERROR($V818),\"\",OFFSET('Smelter Look-up'!$F$4,$V818-4,0)))","v":""},{"$f":"IF(ISERROR($V818),\"\",OFFSET('Smelter Look-up'!$G$4,$V818-4,0))","v":""},{"$f":"IF(ISERROR($V818),\"\",OFFSET('Smelter Look-up'!$H$4,$V818-4,0))","v":""},{"$f":"IF(ISERROR($V818),\"\",OFFSET('Smelter Look-up'!$I$4,$V818-4,0))","v":""},{"$nulls":7},{"$f":"IF(ISERROR($V818),\"\",OFFSET('Smelter Look-up'!$C$4,$V818-4,0)&\"\")","v":""},"",{"$f":"IF(B818=\"\",\"\",IF(ISERROR(MATCH($J818,SorP!$B$1:$B$6230,0)),\"\",INDIRECT(\"'SorP'!$A$\"&MATCH($J818,SorP!$B$1:$B$6230,0))))","v":""},null,{"$f":"IF(C818=\"\",NA(),MATCH($B818&$C818,'Smelter Look-up'!$J:$J,0))","v":{"$error":"#N/A"}},null,0,null,null,null,""]
[null,{"$f":"IF(LEN(A819)=0,\"\",INDEX('Smelter Look-up'!$A:$A,MATCH($A819,'Smelter Look-up'!$E:$E,0)))","v":""},{"$f":"IF(LEN(A819)=0,\"\",INDEX('Smelter Look-up'!$C:$C,MATCH($A819,'Smelter Look-up'!$E:$E,0)))","v":""},null,{"$f":"IF(ISERROR($V819),\"\",OFFSET('Smelter Look-up'!$D$4,$V819-4,0)&\"\")","v":""},{"$f":"IF(ISERROR($V819),\"\",OFFSET('Smelter Look-up'!$E$4,$V819-4,0))","v":""},{"$f":"IF(C819=$X$4,\"Enter smelter details\", IF(ISERROR($V819),\"\",OFFSET('Smelter Look-up'!$F$4,$V819-4,0)))","v":""},{"$f":"IF(ISERROR($V819),\"\",OFFSET('Smelter Look-up'!$G$4,$V819-4,0))","v":""},{"$f":"IF(ISERROR($V819),\"\",OFFSET('Smelter Look-up'!$H$4,$V819-4,0))","v":""},{"$f":"IF(ISERROR($V819),\"\",OFFSET('Smelter Look-up'!$I$4,$V819-4,0))","v":""},{"$nulls":7},{"$f":"IF(ISERROR($V819),\"\",OFFSET('Smelter Look-up'!$C$4,$V819-4,0)&\"\")","v":""},"",{"$f":"IF(B819=\"\",\"\",IF(ISERROR(MATCH($J819,SorP!$B$1:$B$6230,0)),\"\",INDIRECT(\"'SorP'!$A$\"&MATCH($J819,SorP!$B$1:$B$6230,0))))","v":""},null,{"$f":"IF(C819=\"\",NA(),MATCH($B819&$C819,'Smelter Look-up'!$J:$J,0))","v":{"$error":"#N/A"}},null,0,null,null,null,""]
[null,{"$f":"IF(LEN(A820)=0,\"\",INDEX('Smelter Look-up'!$A:$A,MATCH($A820,'Smelter Look-up'!$E:$E,0)))","v":""},{"$f":"IF(LEN(A820)=0,\"\",INDEX('Smelter Look-up'!$C:$C,MATCH($A820,'Smelter Look-up'!$E:$E,0)))","v":""},null,{"$f":"IF(ISERROR($V820),\"\",OFFSET('Smelter Look-up'!$D$4,$V820-4,0)&\"\")","v":""},{"$f":"IF(ISERROR($V820),\"\",OFFSET('Smelter Look-up'!$E$4,$V820-4,0))","v":""},{"$f":"IF(C820=$X$4,\"Enter smelter details\", IF(ISERROR($V820),\"\",OFFSET('Smelter Look-up'!$F$4,$V820-4,0)))","v":""},{"$f":"IF(ISERROR($V820),\"\",OFFSET('Smelter Look-up'!$G$4,$V820-4,0))","v":""},{"$f":"IF(ISERROR($V820),\"\",OFFSET('Smelter Look-up'!$H$4,$V820-4,0))","v":""},{"$f":"IF(ISERROR($V820),\"\",OFFSET('Smelter Look-up'!$I$4,$V820-4,0))","v":""},{"$nulls":7},{"$f":"IF(ISERROR($V820),\"\",OFFSET('Smelter Look-up'!$C$4,$V820-4,0)&\"\")","v":""},"",{"$f":"IF(B820=\"\",\"\",IF(ISERROR(MATCH($J820,SorP!$B$1:$B$6230,0)),\"\",INDIRECT(\"'SorP'!$A$\"&MATCH($J820,SorP!$B$1:$B$6230,0))))","v":""},null,{"$f":"IF(C820=\"\",NA(),MATCH($B820&$C820,'Smelter Look-up'!$J:$J,0))","v":{"$error":"#N/A"}},null,0,null,null,null,""]
[null,{"$f":"IF(LEN(A821)=0,\"\",INDEX('Smelter Look-up'!$A:$A,MATCH($A821,'Smelter Look-up'!$E:$E,0)))","v":""},{"$f":"IF(LEN(A821)=0,\"\",INDEX('Smelter Look-up'!$C:$C,MATCH($A821,'Smelter Look-up'!$E:$E,0)))","v":""},null,{"$f":"IF(ISERROR($V821),\"\",OFFSET('Smelter Look-up'!$D$4,$V821-4,0)&\"\")","v":""},{"$f":"IF(ISERROR($V821),\"\",OFFSET('Smelter Look-up'!$E$4,$V821-4,0))","v":""},{"$f":"IF(C821=$X$4,\"Enter smelter details\", IF(ISERROR($V821),\"\",OFFSET('Smelter Look-up'!$F$4,$V821-4,0)))","v":""},{"$f":"IF(ISERROR($V821),\"\",OFFSET('Smelter Look-up'!$G$4,$V821-4,0))","v":""},{"$f":"IF(ISERROR($V821),\"\",OFFSET('Smelter Look-up'!$H$4,$V821-4,0))","v":""},{"$f":"IF(ISERROR($V821),\"\",OFFSET('Smelter Look-up'!$I$4,$V821-4,0))","v":""},{"$nulls":7},{"$f":"IF(ISERROR($V821),\"\",OFFSET('Smelter Look-up'!$C$4,$V821-4,0)&\"\")","v":""},"",{"$f":"IF(B821=\"\",\"\",IF(ISERROR(MATCH($J821,SorP!$B$1:$B$6230,0)),\"\",INDIRECT(\"'SorP'!$A$\"&MATCH($J821,SorP!$B$1:$B$6230,0))))","v":""},null,{"$f":"IF(C821=\"\",NA(),MATCH($B821&$C821,'Smelter Look-up'!$J:$J,0))","v":{"$error":"#N/A"}},null,0,null,null,null,""]
[null,{"$f":"IF(LEN(A822)=0,\"\",INDEX('Smelter Look-up'!$A:$A,MATCH($A822,'Smelter Look-up'!$E:$E,0)))","v":""},{"$f":"IF(LEN(A822)=0,\"\",INDEX('Smelter Look-up'!$C:$C,MATCH($A822,'Smelter Look-up'!$E:$E,0)))","v":""},null,{"$f":"IF(ISERROR($V822),\"\",OFFSET('Smelter Look-up'!$D$4,$V822-4,0)&\"\")","v":""},{"$f":"IF(ISERROR($V822),\"\",OFFSET('Smelter Look-up'!$E$4,$V822-4,0))","v":""},{"$f":"IF(C822=$X$4,\"Enter smelter details\", IF(ISERROR($V822),\"\",OFFSET('Smelter Look-up'!$F$4,$V822-4,0)))","v":""},{"$f":"IF(ISERROR($V822),\"\",OFFSET('Smelter Look-up'!$G$4,$V822-4,0))","v":""},{"$f":"IF(ISERROR($V822),\"\",OFFSET('Smelter Look-up'!$H$4,$V822-4,0))","v":""},{"$f":"IF(ISERROR($V822),\"\",OFFSET('Smelter Look-up'!$I$4,$V822-4,0))","v":""},{"$nulls":7},{"$f":"IF(ISERROR($V822),\"\",OFFSET('Smelter Look-up'!$C$4,$V822-4,0)&\"\")","v":""},"",{"$f":"IF(B822=\"\",\"\",IF(ISERROR(MATCH($J822,SorP!$B$1:$B$6230,0)),\"\",INDIRECT(\"'SorP'!$A$\"&MATCH($J822,SorP!$B$1:$B$6230,0))))","v":""},null,{"$f":"IF(C822=\"\",NA(),MATCH($B822&$C822,'Smelter Look-up'!$J:$J,0))","v":{"$error":"#N/A"}},null,0,null,null,null,""]
[null,{"$f":"IF(LEN(A823)=0,\"\",INDEX('Smelter Look-up'!$A:$A,MATCH($A823,'Smelter Look-up'!$E:$E,0)))","v":""},{"$f":"IF(LEN(A823)=0,\"\",INDEX('Smelter Look-up'!$C:$C,MATCH($A823,'Smelter Look-up'!$E:$E,0)))","v":""},null,{"$f":"IF(ISERROR($V823),\"\",OFFSET('Smelter Look-up'!$D$4,$V823-4,0)&\"\")","v":""},{"$f":"IF(ISERROR($V823),\"\",OFFSET('Smelter Look-up'!$E$4,$V823-4,0))","v":""},{"$f":"IF(C823=$X$4,\"Enter smelter details\", IF(ISERROR($V823),\"\",OFFSET('Smelter Look-up'!$F$4,$V823-4,0)))","v":""},{"$f":"IF(ISERROR($V823),\"\",OFFSET('Smelter Look-up'!$G$4,$V823-4,0))","v":""},{"$f":"IF(ISERROR($V823),\"\",OFFSET('Smelter Look-up'!$H$4,$V823-4,0))","v":""},{"$f":"IF(ISERROR($V823),\"\",OFFSET('Smelter Look-up'!$I$4,$V823-4,0))","v":""},{"$nulls":7},{"$f":"IF(ISERROR($V823),\"\",OFFSET('Smelter Look-up'!$C$4,$V823-4,0)&\"\")","v":""},"",{"$f":"IF(B823=\"\",\"\",IF(ISERROR(MATCH($J823,SorP!$B$1:$B$6230,0)),\"\",INDIRECT(\"'SorP'!$A$\"&MATCH($J823,SorP!$B$1:$B$6230,0))))","v":""},null,{"$f":"IF(C823=\"\",NA(),MATCH($B823&$C823,'Smelter Look-up'!$J:$J,0))","v":{"$error":"#N/A"}},null,0,null,null,null,""]
[null,{"$f":"IF(LEN(A824)=0,\"\",INDEX('Smelter Look-up'!$A:$A,MATCH($A824,'Smelter Look-up'!$E:$E,0)))","v":""},{"$f":"IF(LEN(A824)=0,\"\",INDEX('Smelter Look-up'!$C:$C,MATCH($A824,'Smelter Look-up'!$E:$E,0)))","v":""},null,{"$f":"IF(ISERROR($V824),\"\",OFFSET('Smelter Look-up'!$D$4,$V824-4,0)&\"\")","v":""},{"$f":"IF(ISERROR($V824),\"\",OFFSET('Smelter Look-up'!$E$4,$V824-4,0))","v":""},{"$f":"IF(C824=$X$4,\"Enter smelter details\", IF(ISERROR($V824),\"\",OFFSET('Smelter Look-up'!$F$4,$V824-4,0)))","v":""},{"$f":"IF(ISERROR($V824),\"\",OFFSET('Smelter Look-up'!$G$4,$V824-4,0))","v":""},{"$f":"IF(ISERROR($V824),\"\",OFFSET('Smelter Look-up'!$H$4,$V824-4,0))","v":""},{"$f":"IF(ISERROR($V824),\"\",OFFSET('Smelter Look-up'!$I$4,$V824-4,0))","v":""},{"$nulls":7},{"$f":"IF(ISERROR($V824),\"\",OFFSET('Smelter Look-up'!$C$4,$V824-4,0)&\"\")","v":""},"",{"$f":"IF(B824=\"\",\"\",IF(ISERROR(MATCH($J824,SorP!$B$1:$B$6230,0)),\"\",INDIRECT(\"'SorP'!$A$\"&MATCH($J824,SorP!$B$1:$B$6230,0))))","v":""},null,{"$f":"IF(C824=\"\",NA(),MATCH($B824&$C824,'Smelter Look-up'!$J:$J,0))","v":{"$error":"#N/A"}},null,0,null,null,null,""]
[null,{"$f":"IF(LEN(A825)=0,\"\",INDEX('Smelter Look-up'!$A:$A,MATCH($A825,'Smelter Look-up'!$E:$E,0)))","v":""},{"$f":"IF(LEN(A825)=0,\"\",INDEX('Smelter Look-up'!$C:$C,MATCH($A825,'Smelter Look-up'!$E:$E,0)))","v":""},null,{"$f":"IF(ISERROR($V825),\"\",OFFSET('Smelter Look-up'!$D$4,$V825-4,0)&\"\")","v":""},{"$f":"IF(ISERROR($V825),\"\",OFFSET('Smelter Look-up'!$E$4,$V825-4,0))","v":""},{"$f":"IF(C825=$X$4,\"Enter smelter details\", IF(ISERROR($V825),\"\",OFFSET('Smelter Look-up'!$F$4,$V825-4,0)))","v":""},{"$f":"IF(ISERROR($V825),\"\",OFFSET('Smelter Look-up'!$G$4,$V825-4,0))","v":""},{"$f":"IF(ISERROR($V825),\"\",OFFSET('Smelter Look-up'!$H$4,$V825-4,0))","v":""},{"$f":"IF(ISERROR($V825),\"\",OFFSET('Smelter Look-up'!$I$4,$V825-4,0))","v":""},{"$nulls":7},{"$f":"IF(ISERROR($V825),\"\",OFFSET('Smelter Look-up'!$C$4,$V825-4,0)&\"\")","v":""},"",{"$f":"IF(B825=\"\",\"\",IF(ISERROR(MATCH($J825,SorP!$B$1:$B$6230,0)),\"\",INDIRECT(\"'SorP'!$A$\"&MATCH($J825,SorP!$B$1:$B$6230,0))))","v":""},null,{"$f":"IF(C825=\"\",NA(),MATCH($B825&$C825,'Smelter Look-up'!$J:$J,0))","v":{"$error":"#N/A"}},null,0,null,null,null,""]
[null,{"$f":"IF(LEN(A826)=0,\"\",INDEX('Smelter Look-up'!$A:$A,MATCH($A826,'Smelter Look-up'!$E:$E,0)))","v":""},{"$f":"IF(LEN(A826)=0,\"\",INDEX('Smelter Look-up'!$C:$C,MATCH($A826,'Smelter Look-up'!$E:$E,0)))","v":""},null,{"$f":"IF(ISERROR($V826),\"\",OFFSET('Smelter Look-up'!$D$4,$V826-4,0)&\"\")","v":""},{"$f":"IF(ISERROR($V826),\"\",OFFSET('Smelter Look-up'!$E$4,$V826-4,0))","v":""},{"$f":"IF(C826=$X$4,\"Enter smelter details\", IF(ISERROR($V826),\"\",OFFSET('Smelter Look-up'!$F$4,$V826-4,0)))","v":""},{"$f":"IF(ISERROR($V826),\"\",OFFSET('Smelter Look-up'!$G$4,$V826-4,0))","v":""},{"$f":"IF(ISERROR($V826),\"\",OFFSET('Smelter Look-up'!$H$4,$V826-4,0))","v":""},{"$f":"IF(ISERROR($V826),\"\",OFFSET('Smelter Look-up'!$I$4,$V826-4,0))","v":""},{"$nulls":7},{"$f":"IF(ISERROR($V826),\"\",OFFSET('Smelter Look-up'!$C$4,$V826-4,0)&\"\")","v":""},"",{"$f":"IF(B826=\"\",\"\",IF(ISERROR(MATCH($J826,SorP!$B$1:$B$6230,0)),\"\",INDIRECT(\"'SorP'!$A$\"&MATCH($J826,SorP!$B$1:$B$6230,0))))","v":""},null,{"$f":"IF(C826=\"\",NA(),MATCH($B826&$C826,'Smelter Look-up'!$J:$J,0))","v":{"$error":"#N/A"}},null,0,null,null,null,""]
[null,{"$f":"IF(LEN(A827)=0,\"\",INDEX('Smelter Look-up'!$A:$A,MATCH($A827,'Smelter Look-up'!$E:$E,0)))","v":""},{"$f":"IF(LEN(A827)=0,\"\",INDEX('Smelter Look-up'!$C:$C,MATCH($A827,'Smelter Look-up'!$E:$E,0)))","v":""},null,{"$f":"IF(ISERROR($V827),\"\",OFFSET('Smelter Look-up'!$D$4,$V827-4,0)&\"\")","v":""},{"$f":"IF(ISERROR($V827),\"\",OFFSET('Smelter Look-up'!$E$4,$V827-4,0))","v":""},{"$f":"IF(C827=$X$4,\"Enter smelter details\", IF(ISERROR($V827),\"\",OFFSET('Smelter Look-up'!$F$4,$V827-4,0)))","v":""},{"$f":"IF(ISERROR($V827),\"\",OFFSET('Smelter Look-up'!$G$4,$V827-4,0))","v":""},{"$f":"IF(ISERROR($V827),\"\",OFFSET('Smelter Look-up'!$H$4,$V827-4,0))","v":""},{"$f":"IF(ISERROR($V827),\"\",OFFSET('Smelter Look-up'!$I$4,$V827-4,0))","v":""},{"$nulls":7},{"$f":"IF(ISERROR($V827),\"\",OFFSET('Smelter Look-up'!$C$4,$V827-4,0)&\"\")","v":""},{"$f":"IF(B827=\"\",\"\",IF(ISERROR(MATCH($E827,CL,0)),\"Unknown\",INDIRECT(\"'C'!$A$\"&MATCH($E827,CL,0)+1)))","v":""},{"$f":"IF(B827=\"\",\"\",IF(ISERROR(MATCH($J827,SorP!$B$1:$B$6230,0)),\"\",INDIRECT(\"'SorP'!$A$\"&MATCH($J827,SorP!$B$1:$B$6230,0))))","v":""},null,{"$f":"IF(C827=\"\",NA(),MATCH($B827&$C827,'Smelter Look-up'!$J:$J,0))","v":{"$error":"#N/A"}},null,{"$f":"IF(AND(C827=\"Smelter not listed\",OR(LEN(D827)=0,LEN(E827)=0)),1,0)","v":0},null,null,null,{"$f":"B827&C827","v":""}]
[null,{"$f":"IF(LEN(A828)=0,\"\",INDEX('Smelter Look-up'!$A:$A,MATCH($A828,'Smelter Look-up'!$E:$E,0)))","v":""},{"$f":"IF(LEN(A828)=0,\"\",INDEX('Smelter Look-up'!$C:$C,MATCH($A828,'Smelter Look-up'!$E:$E,0)))","v":""},null,{"$f":"IF(ISERROR($V828),\"\",OFFSET('Smelter Look-up'!$D$4,$V828-4,0)&\"\")","v":""},{"$f":"IF(ISERROR($V828),\"\",OFFSET('Smelter Look-up'!$E$4,$V828-4,0))","v":""},{"$f":"IF(C828=$X$4,\"Enter smelter details\", IF(ISERROR($V828),\"\",OFFSET('Smelter Look-up'!$F$4,$V828-4,0)))","v":""},{"$f":"IF(ISERROR($V828),\"\",OFFSET('Smelter Look-up'!$G$4,$V828-4,0))","v":""},{"$f":"IF(ISERROR($V828),\"\",OFFSET('Smelter Look-up'!$H$4,$V828-4,0))","v":""},{"$f":"IF(ISERROR($V828),\"\",OFFSET('Smelter Look-up'!$I$4,$V828-4,0))","v":""},{"$nulls":7},{"$f":"IF(ISERROR($V828),\"\",OFFSET('Smelter Look-up'!$C$4,$V828-4,0)&\"\")","v":""},"",{"$f":"IF(B828=\"\",\"\",IF(ISERROR(MATCH($J828,SorP!$B$1:$B$6230,0)),\"\",INDIRECT(\"'SorP'!$A$\"&MATCH($J828,SorP!$B$1:$B$6230,0))))","v":""},null,{"$f":"IF(C828=\"\",NA(),MATCH($B828&$C828,'Smelter Look-up'!$J:$J,0))","v":{"$error":"#N/A"}},null,0,null,null,null,""]
[null,{"$f":"IF(LEN(A829)=0,\"\",INDEX('Smelter Look-up'!$A:$A,MATCH($A829,'Smelter Look-up'!$E:$E,0)))","v":""},{"$f":"IF(LEN(A829)=0,\"\",INDEX('Smelter Look-up'!$C:$C,MATCH($A829,'Smelter Look-up'!$E:$E,0)))","v":""},null,{"$f":"IF(ISERROR($V829),\"\",OFFSET('Smelter Look-up'!$D$4,$V829-4,0)&\"\")","v":""},{"$f":"IF(ISERROR($V829),\"\",OFFSET('Smelter Look-up'!$E$4,$V829-4,0))","v":""},{"$f":"IF(C829=$X$4,\"Enter smelter details\", IF(ISERROR($V829),\"\",OFFSET('Smelter Look-up'!$F$4,$V829-4,0)))","v":""},{"$f":"IF(ISERROR($V829),\"\",OFFSET('Smelter Look-up'!$G$4,$V829-4,0))","v":""},{"$f":"IF(ISERROR($V829),\"\",OFFSET('Smelter Look-up'!$H$4,$V829-4,0))","v":""},{"$f":"IF(ISERROR($V829),\"\",OFFSET('Smelter Look-up'!$I$4,$V829-4,0))","v":""},{"$nulls":7},{"$f":"IF(ISERROR($V829),\"\",OFFSET('Smelter Look-up'!$C$4,$V829-4,0)&\"\")","v":""},"",{"$f":"IF(B829=\"\",\"\",IF(ISERROR(MATCH($J829,SorP!$B$1:$B$6230,0)),\"\",INDIRECT(\"'SorP'!$A$\"&MATCH($J829,SorP!$B$1:$B$6230,0))))","v":""},null,{"$f":"IF(C829=\"\",NA(),MATCH($B829&$C829,'Smelter Look-up'!$J:$J,0))","v":{"$error":"#N/A"}},null,0,null,null,null,""]
[null,{"$f":"IF(LEN(A830)=0,\"\",INDEX('Smelter Look-up'!$A:$A,MATCH($A830,'Smelter Look-up'!$E:$E,0)))","v":""},{"$f":"IF(LEN(A830)=0,\"\",INDEX('Smelter Look-up'!$C:$C,MATCH($A830,'Smelter Look-up'!$E:$E,0)))","v":""},null,{"$f":"IF(ISERROR($V830),\"\",OFFSET('Smelter Look-up'!$D$4,$V830-4,0)&\"\")","v":""},{"$f":"IF(ISERROR($V830),\"\",OFFSET('Smelter Look-up'!$E$4,$V830-4,0))","v":""},{"$f":"IF(C830=$X$4,\"Enter smelter details\", IF(ISERROR($V830),\"\",OFFSET('Smelter Look-up'!$F$4,$V830-4,0)))","v":""},{"$f":"IF(ISERROR($V830),\"\",OFFSET('Smelter Look-up'!$G$4,$V830-4,0))","v":""},{"$f":"IF(ISERROR($V830),\"\",OFFSET('Smelter Look-up'!$H$4,$V830-4,0))","v":""},{"$f":"IF(ISERROR($V830),\"\",OFFSET('Smelter Look-up'!$I$4,$V830-4,0))","v":""},{"$nulls":7},{"$f":"IF(ISERROR($V830),\"\",OFFSET('Smelter Look-up'!$C$4,$V830-4,0)&\"\")","v":""},"",{"$f":"IF(B830=\"\",\"\",IF(ISERROR(MATCH($J830,SorP!$B$1:$B$6230,0)),\"\",INDIRECT(\"'SorP'!$A$\"&MATCH($J830,SorP!$B$1:$B$6230,0))))","v":""},null,{"$f":"IF(C830=\"\",NA(),MATCH($B830&$C830,'Smelter Look-up'!$J:$J,0))","v":{"$error":"#N/A"}},null,0,null,null,null,""]
[null,{"$f":"IF(LEN(A831)=0,\"\",INDEX('Smelter Look-up'!$A:$A,MATCH($A831,'Smelter Look-up'!$E:$E,0)))","v":""},{"$f":"IF(LEN(A831)=0,\"\",INDEX('Smelter Look-up'!$C:$C,MATCH($A831,'Smelter Look-up'!$E:$E,0)))","v":""},null,{"$f":"IF(ISERROR($V831),\"\",OFFSET('Smelter Look-up'!$D$4,$V831-4,0)&\"\")","v":""},{"$f":"IF(ISERROR($V831),\"\",OFFSET('Smelter Look-up'!$E$4,$V831-4,0))","v":""},{"$f":"IF(C831=$X$4,\"Enter smelter details\", IF(ISERROR($V831),\"\",OFFSET('Smelter Look-up'!$F$4,$V831-4,0)))","v":""},{"$f":"IF(ISERROR($V831),\"\",OFFSET('Smelter Look-up'!$G$4,$V831-4,0))","v":""},{"$f":"IF(ISERROR($V831),\"\",OFFSET('Smelter Look-up'!$H$4,$V831-4,0))","v":""},{"$f":"IF(ISERROR($V831),\"\",OFFSET('Smelter Look-up'!$I$4,$V831-4,0))","v":""},{"$nulls":7},{"$f":"IF(ISERROR($V831),\"\",OFFSET('Smelter Look-up'!$C$4,$V831-4,0)&\"\")","v":""},"",{"$f":"IF(B831=\"\",\"\",IF(ISERROR(MATCH($J831,SorP!$B$1:$B$6230,0)),\"\",INDIRECT(\"'SorP'!$A$\"&MATCH($J831,SorP!$B$1:$B$6230,0))))","v":""},null,{"$f":"IF(C831=\"\",NA(),MATCH($B831&$C831,'Smelter Look-up'!$J:$J,0))","v":{"$error":"#N/A"}},null,0,null,null,null,""]
[null,{"$f":"IF(LEN(A832)=0,\"\",INDEX('Smelter Look-up'!$A:$A,MATCH($A832,'Smelter Look-up'!$E:$E,0)))","v":""},{"$f":"IF(LEN(A832)=0,\"\",INDEX('Smelter Look-up'!$C:$C,MATCH($A832,'Smelter Look-up'!$E:$E,0)))","v":""},null,{"$f":"IF(ISERROR($V832),\"\",OFFSET('Smelter Look-up'!$D$4,$V832-4,0)&\"\")","v":""},{"$f":"IF(ISERROR($V832),\"\",OFFSET('Smelter Look-up'!$E$4,$V832-4,0))","v":""},{"$f":"IF(C832=$X$4,\"Enter smelter details\", IF(ISERROR($V832),\"\",OFFSET('Smelter Look-up'!$F$4,$V832-4,0)))","v":""},{"$f":"IF(ISERROR($V832),\"\",OFFSET('Smelter Look-up'!$G$4,$V832-4,0))","v":""},{"$f":"IF(ISERROR($V832),\"\",OFFSET('Smelter Look-up'!$H$4,$V832-4,0))","v":""},{"$f":"IF(ISERROR($V832),\"\",OFFSET('Smelter Look-up'!$I$4,$V832-4,0))","v":""},{"$nulls":7},{"$f":"IF(ISERROR($V832),\"\",OFFSET('Smelter Look-up'!$C$4,$V832-4,0)&\"\")","v":""},"",{"$f":"IF(B832=\"\",\"\",IF(ISERROR(MATCH($J832,SorP!$B$1:$B$6230,0)),\"\",INDIRECT(\"'SorP'!$A$\"&MATCH($J832,SorP!$B$1:$B$6230,0))))","v":""},null,{"$f":"IF(C832=\"\",NA(),MATCH($B832&$C832,'Smelter Look-up'!$J:$J,0))","v":{"$error":"#N/A"}},null,0,null,null,null,""]
[null,{"$f":"IF(LEN(A833)=0,\"\",INDEX('Smelter Look-up'!$A:$A,MATCH($A833,'Smelter Look-up'!$E:$E,0)))","v":""},{"$f":"IF(LEN(A833)=0,\"\",INDEX('Smelter Look-up'!$C:$C,MATCH($A833,'Smelter Look-up'!$E:$E,0)))","v":""},null,{"$f":"IF(ISERROR($V833),\"\",OFFSET('Smelter Look-up'!$D$4,$V833-4,0)&\"\")","v":""},{"$f":"IF(ISERROR($V833),\"\",OFFSET('Smelter Look-up'!$E$4,$V833-4,0))","v":""},{"$f":"IF(C833=$X$4,\"Enter smelter details\", IF(ISERROR($V833),\"\",OFFSET('Smelter Look-up'!$F$4,$V833-4,0)))","v":""},{"$f":"IF(ISERROR($V833),\"\",OFFSET('Smelter Look-up'!$G$4,$V833-4,0))","v":""},{"$f":"IF(ISERROR($V833),\"\",OFFSET('Smelter Look-up'!$H$4,$V833-4,0))","v":""},{"$f":"IF(ISERROR($V833),\"\",OFFSET('Smelter Look-up'!$I$4,$V833-4,0))","v":""},{"$nulls":7},{"$f":"IF(ISERROR($V833),\"\",OFFSET('Smelter Look-up'!$C$4,$V833-4,0)&\"\")","v":""},"",{"$f":"IF(B833=\"\",\"\",IF(ISERROR(MATCH($J833,SorP!$B$1:$B$6230,0)),\"\",INDIRECT(\"'SorP'!$A$\"&MATCH($J833,SorP!$B$1:$B$6230,0))))","v":""},null,{"$f":"IF(C833=\"\",NA(),MATCH($B833&$C833,'Smelter Look-up'!$J:$J,0))","v":{"$error":"#N/A"}},null,0,null,null,null,""]
[null,{"$f":"IF(LEN(A834)=0,\"\",INDEX('Smelter Look-up'!$A:$A,MATCH($A834,'Smelter Look-up'!$E:$E,0)))","v":""},{"$f":"IF(LEN(A834)=0,\"\",INDEX('Smelter Look-up'!$C:$C,MATCH($A834,'Smelter Look-up'!$E:$E,0)))","v":""},null,{"$f":"IF(ISERROR($V834),\"\",OFFSET('Smelter Look-up'!$D$4,$V834-4,0)&\"\")","v":""},{"$f":"IF(ISERROR($V834),\"\",OFFSET('Smelter Look-up'!$E$4,$V834-4,0))","v":""},{"$f":"IF(C834=$X$4,\"Enter smelter details\", IF(ISERROR($V834),\"\",OFFSET('Smelter Look-up'!$F$4,$V834-4,0)))","v":""},{"$f":"IF(ISERROR($V834),\"\",OFFSET('Smelter Look-up'!$G$4,$V834-4,0))","v":""},{"$f":"IF(ISERROR($V834),\"\",OFFSET('Smelter Look-up'!$H$4,$V834-4,0))","v":""},{"$f":"IF(ISERROR($V834),\"\",OFFSET('Smelter Look-up'!$I$4,$V834-4,0))","v":""},{"$nulls":7},{"$f":"IF(ISERROR($V834),\"\",OFFSET('Smelter Look-up'!$C$4,$V834-4,0)&\"\")","v":""},"",{"$f":"IF(B834=\"\",\"\",IF(ISERROR(MATCH($J834,SorP!$B$1:$B$6230,0)),\"\",INDIRECT(\"'SorP'!$A$\"&MATCH($J834,SorP!$B$1:$B$6230,0))))","v":""},null,{"$f":"IF(C834=\"\",NA(),MATCH($B834&$C834,'Smelter Look-up'!$J:$J,0))","v":{"$error":"#N/A"}},null,0,null,null,null,""]
[null,{"$f":"IF(LEN(A835)=0,\"\",INDEX('Smelter Look-up'!$A:$A,MATCH($A835,'Smelter Look-up'!$E:$E,0)))","v":""},{"$f":"IF(LEN(A835)=0,\"\",INDEX('Smelter Look-up'!$C:$C,MATCH($A835,'Smelter Look-up'!$E:$E,0)))","v":""},null,{"$f":"IF(ISERROR($V835),\"\",OFFSET('Smelter Look-up'!$D$4,$V835-4,0)&\"\")","v":""},{"$f":"IF(ISERROR($V835),\"\",OFFSET('Smelter Look-up'!$E$4,$V835-4,0))","v":""},{"$f":"IF(C835=$X$4,\"Enter smelter details\", IF(ISERROR($V835),\"\",OFFSET('Smelter Look-up'!$F$4,$V835-4,0)))","v":""},{"$f":"IF(ISERROR($V835),\"\",OFFSET('Smelter Look-up'!$G$4,$V835-4,0))","v":""},{"$f":"IF(ISERROR($V835),\"\",OFFSET('Smelter Look-up'!$H$4,$V835-4,0))","v":""},{"$f":"IF(ISERROR($V835),\"\",OFFSET('Smelter Look-up'!$I$4,$V835-4,0))","v":""},{"$nulls":7},{"$f":"IF(ISERROR($V835),\"\",OFFSET('Smelter Look-up'!$C$4,$V835-4,0)&\"\")","v":""},"",{"$f":"IF(B835=\"\",\"\",IF(ISERROR(MATCH($J835,SorP!$B$1:$B$6230,0)),\"\",INDIRECT(\"'SorP'!$A$\"&MATCH($J835,SorP!$B$1:$B$6230,0))))","v":""},null,{"$f":"IF(C835=\"\",NA(),MATCH($B835&$C835,'Smelter Look-up'!$J:$J,0))","v":{"$error":"#N/A"}},null,0,null,null,null,""]
[null,{"$f":"IF(LEN(A836)=0,\"\",INDEX('Smelter Look-up'!$A:$A,MATCH($A836,'Smelter Look-up'!$E:$E,0)))","v":""},{"$f":"IF(LEN(A836)=0,\"\",INDEX('Smelter Look-up'!$C:$C,MATCH($A836,'Smelter Look-up'!$E:$E,0)))","v":""},null,{"$f":"IF(ISERROR($V836),\"\",OFFSET('Smelter Look-up'!$D$4,$V836-4,0)&\"\")","v":""},{"$f":"IF(ISERROR($V836),\"\",OFFSET('Smelter Look-up'!$E$4,$V836-4,0))","v":""},{"$f":"IF(C836=$X$4,\"Enter smelter details\", IF(ISERROR($V836),\"\",OFFSET('Smelter Look-up'!$F$4,$V836-4,0)))","v":""},{"$f":"IF(ISERROR($V836),\"\",OFFSET('Smelter Look-up'!$G$4,$V836-4,0))","v":""},{"$f":"IF(ISERROR($V836),\"\",OFFSET('Smelter Look-up'!$H$4,$V836-4,0))","v":""},{"$f":"IF(ISERROR($V836),\"\",OFFSET('Smelter Look-up'!$I$4,$V836-4,0))","v":""},{"$nulls":7},{"$f":"IF(ISERROR($V836),\"\",OFFSET('Smelter Look-up'!$C$4,$V836-4,0)&\"\")","v":""},"",{"$f":"IF(B836=\"\",\"\",IF(ISERROR(MATCH($J836,SorP!$B$1:$B$6230,0)),\"\",INDIRECT(\"'SorP'!$A$\"&MATCH($J836,SorP!$B$1:$B$6230,0))))","v":""},null,{"$f":"IF(C836=\"\",NA(),MATCH($B836&$C836,'Smelter Look-up'!$J:$J,0))","v":{"$error":"#N/A"}},null,0,null,null,null,""]
[null,{"$f":"IF(LEN(A837)=0,\"\",INDEX('Smelter Look-up'!$A:$A,MATCH($A837,'Smelter Look-up'!$E:$E,0)))","v":""},{"$f":"IF(LEN(A837)=0,\"\",INDEX('Smelter Look-up'!$C:$C,MATCH($A837,'Smelter Look-up'!$E:$E,0)))","v":""},null,{"$f":"IF(ISERROR($V837),\"\",OFFSET('Smelter Look-up'!$D$4,$V837-4,0)&\"\")","v":""},{"$f":"IF(ISERROR($V837),\"\",OFFSET('Smelter Look-up'!$E$4,$V837-4,0))","v":""},{"$f":"IF(C837=$X$4,\"Enter smelter details\", IF(ISERROR($V837),\"\",OFFSET('Smelter Look-up'!$F$4,$V837-4,0)))","v":""},{"$f":"IF(ISERROR($V837),\"\",OFFSET('Smelter Look-up'!$G$4,$V837-4,0))","v":""},{"$f":"IF(ISERROR($V837),\"\",OFFSET('Smelter Look-up'!$H$4,$V837-4,0))","v":""},{"$f":"IF(ISERROR($V837),\"\",OFFSET('Smelter Look-up'!$I$4,$V837-4,0))","v":""},{"$nulls":7},{"$f":"IF(ISERROR($V837),\"\",OFFSET('Smelter Look-up'!$C$4,$V837-4,0)&\"\")","v":""},"",{"$f":"IF(B837=\"\",\"\",IF(ISERROR(MATCH($J837,SorP!$B$1:$B$6230,0)),\"\",INDIRECT(\"'SorP'!$A$\"&MATCH($J837,SorP!$B$1:$B$6230,0))))","v":""},null,{"$f":"IF(C837=\"\",NA(),MATCH($B837&$C837,'Smelter Look-up'!$J:$J,0))","v":{"$error":"#N/A"}},null,0,null,null,null,""]
[null,{"$f":"IF(LEN(A838)=0,\"\",INDEX('Smelter Look-up'!$A:$A,MATCH($A838,'Smelter Look-up'!$E:$E,0)))","v":""},{"$f":"IF(LEN(A838)=0,\"\",INDEX('Smelter Look-up'!$C:$C,MATCH($A838,'Smelter Look-up'!$E:$E,0)))","v":""},null,{"$f":"IF(ISERROR($V838),\"\",OFFSET('Smelter Look-up'!$D$4,$V838-4,0)&\"\")","v":""},{"$f":"IF(ISERROR($V838),\"\",OFFSET('Smelter Look-up'!$E$4,$V838-4,0))","v":""},{"$f":"IF(C838=$X$4,\"Enter smelter details\", IF(ISERROR($V838),\"\",OFFSET('Smelter Look-up'!$F$4,$V838-4,0)))","v":""},{"$f":"IF(ISERROR($V838),\"\",OFFSET('Smelter Look-up'!$G$4,$V838-4,0))","v":""},{"$f":"IF(ISERROR($V838),\"\",OFFSET('Smelter Look-up'!$H$4,$V838-4,0))","v":""},{"$f":"IF(ISERROR($V838),\"\",OFFSET('Smelter Look-up'!$I$4,$V838-4,0))","v":""},{"$nulls":7},{"$f":"IF(ISERROR($V838),\"\",OFFSET('Smelter Look-up'!$C$4,$V838-4,0)&\"\")","v":""},"",{"$f":"IF(B838=\"\",\"\",IF(ISERROR(MATCH($J838,SorP!$B$1:$B$6230,0)),\"\",INDIRECT(\"'SorP'!$A$\"&MATCH($J838,SorP!$B$1:$B$6230,0))))","v":""},null,{"$f":"IF(C838=\"\",NA(),MATCH($B838&$C838,'Smelter Look-up'!$J:$J,0))","v":{"$error":"#N/A"}},null,0,null,null,null,""]
[null,{"$f":"IF(LEN(A839)=0,\"\",INDEX('Smelter Look-up'!$A:$A,MATCH($A839,'Smelter Look-up'!$E:$E,0)))","v":""},{"$f":"IF(LEN(A839)=0,\"\",INDEX('Smelter Look-up'!$C:$C,MATCH($A839,'Smelter Look-up'!$E:$E,0)))","v":""},null,{"$f":"IF(ISERROR($V839),\"\",OFFSET('Smelter Look-up'!$D$4,$V839-4,0)&\"\")","v":""},{"$f":"IF(ISERROR($V839),\"\",OFFSET('Smelter Look-up'!$E$4,$V839-4,0))","v":""},{"$f":"IF(C839=$X$4,\"Enter smelter details\", IF(ISERROR($V839),\"\",OFFSET('Smelter Look-up'!$F$4,$V839-4,0)))","v":""},{"$f":"IF(ISERROR($V839),\"\",OFFSET('Smelter Look-up'!$G$4,$V839-4,0))","v":""},{"$f":"IF(ISERROR($V839),\"\",OFFSET('Smelter Look-up'!$H$4,$V839-4,0))","v":""},{"$f":"IF(ISERROR($V839),\"\",OFFSET('Smelter Look-up'!$I$4,$V839-4,0))","v":""},{"$nulls":7},{"$f":"IF(ISERROR($V839),\"\",OFFSET('Smelter Look-up'!$C$4,$V839-4,0)&\"\")","v":""},"",{"$f":"IF(B839=\"\",\"\",IF(ISERROR(MATCH($J839,SorP!$B$1:$B$6230,0)),\"\",INDIRECT(\"'SorP'!$A$\"&MATCH($J839,SorP!$B$1:$B$6230,0))))","v":""},null,{"$f":"IF(C839=\"\",NA(),MATCH($B839&$C839,'Smelter Look-up'!$J:$J,0))","v":{"$error":"#N/A"}},null,0,null,null,null,""]
[null,{"$f":"IF(LEN(A840)=0,\"\",INDEX('Smelter Look-up'!$A:$A,MATCH($A840,'Smelter Look-up'!$E:$E,0)))","v":""},{"$f":"IF(LEN(A840)=0,\"\",INDEX('Smelter Look-up'!$C:$C,MATCH($A840,'Smelter Look-up'!$E:$E,0)))","v":""},null,{"$f":"IF(ISERROR($V840),\"\",OFFSET('Smelter Look-up'!$D$4,$V840-4,0)&\"\")","v":""},{"$f":"IF(ISERROR($V840),\"\",OFFSET('Smelter Look-up'!$E$4,$V840-4,0))","v":""},{"$f":"IF(C840=$X$4,\"Enter smelter details\", IF(ISERROR($V840),\"\",OFFSET('Smelter Look-up'!$F$4,$V840-4,0)))","v":""},{"$f":"IF(ISERROR($V840),\"\",OFFSET('Smelter Look-up'!$G$4,$V840-4,0))","v":""},{"$f":"IF(ISERROR($V840),\"\",OFFSET('Smelter Look-up'!$H$4,$V840-4,0))","v":""},{"$f":"IF(ISERROR($V840),\"\",OFFSET('Smelter Look-up'!$I$4,$V840-4,0))","v":""},{"$nulls":7},{"$f":"IF(ISERROR($V840),\"\",OFFSET('Smelter Look-up'!$C$4,$V840-4,0)&\"\")","v":""},"",{"$f":"IF(B840=\"\",\"\",IF(ISERROR(MATCH($J840,SorP!$B$1:$B$6230,0)),\"\",INDIRECT(\"'SorP'!$A$\"&MATCH($J840,SorP!$B$1:$B$6230,0))))","v":""},null,{"$f":"IF(C840=\"\",NA(),MATCH($B840&$C840,'Smelter Look-up'!$J:$J,0))","v":{"$error":"#N/A"}},null,0,null,null,null,""]
[null,{"$f":"IF(LEN(A841)=0,\"\",INDEX('Smelter Look-up'!$A:$A,MATCH($A841,'Smelter Look-up'!$E:$E,0)))","v":""},{"$f":"IF(LEN(A841)=0,\"\",INDEX('Smelter Look-up'!$C:$C,MATCH($A841,'Smelter Look-up'!$E:$E,0)))","v":""},null,{"$f":"IF(ISERROR($V841),\"\",OFFSET('Smelter Look-up'!$D$4,$V841-4,0)&\"\")","v":""},{"$f":"IF(ISERROR($V841),\"\",OFFSET('Smelter Look-up'!$E$4,$V841-4,0))","v":""},{"$f":"IF(C841=$X$4,\"Enter smelter details\", IF(ISERROR($V841),\"\",OFFSET('Smelter Look-up'!$F$4,$V841-4,0)))","v":""},{"$f":"IF(ISERROR($V841),\"\",OFFSET('Smelter Look-up'!$G$4,$V841-4,0))","v":""},{"$f":"IF(ISERROR($V841),\"\",OFFSET('Smelter Look-up'!$H$4,$V841-4,0))","v":""},{"$f":"IF(ISERROR($V841),\"\",OFFSET('Smelter Look-up'!$I$4,$V841-4,0))","v":""},{"$nulls":7},{"$f":"IF(ISERROR($V841),\"\",OFFSET('Smelter Look-up'!$C$4,$V841-4,0)&\"\")","v":""},"",{"$f":"IF(B841=\"\",\"\",IF(ISERROR(MATCH($J841,SorP!$B$1:$B$6230,0)),\"\",INDIRECT(\"'SorP'!$A$\"&MATCH($J841,SorP!$B$1:$B$6230,0))))","v":""},null,{"$f":"IF(C841=\"\",NA(),MATCH($B841&$C841,'Smelter Look-up'!$J:$J,0))","v":{"$error":"#N/A"}},null,0,null,null,null,""]
[null,{"$f":"IF(LEN(A842)=0,\"\",INDEX('Smelter Look-up'!$A:$A,MATCH($A842,'Smelter Look-up'!$E:$E,0)))","v":""},{"$f":"IF(LEN(A842)=0,\"\",INDEX('Smelter Look-up'!$C:$C,MATCH($A842,'Smelter Look-up'!$E:$E,0)))","v":""},null,{"$f":"IF(ISERROR($V842),\"\",OFFSET('Smelter Look-up'!$D$4,$V842-4,0)&\"\")","v":""},{"$f":"IF(ISERROR($V842),\"\",OFFSET('Smelter Look-up'!$E$4,$V842-4,0))","v":""},{"$f":"IF(C842=$X$4,\"Enter smelter details\", IF(ISERROR($V842),\"\",OFFSET('Smelter Look-up'!$F$4,$V842-4,0)))","v":""},{"$f":"IF(ISERROR($V842),\"\",OFFSET('Smelter Look-up'!$G$4,$V842-4,0))","v":""},{"$f":"IF(ISERROR($V842),\"\",OFFSET('Smelter Look-up'!$H$4,$V842-4,0))","v":""},{"$f":"IF(ISERROR($V842),\"\",OFFSET('Smelter Look-up'!$I$4,$V842-4,0))","v":""},{"$nulls":7},{"$f":"IF(ISERROR($V842),\"\",OFFSET('Smelter Look-up'!$C$4,$V842-4,0)&\"\")","v":""},"",{"$f":"IF(B842=\"\",\"\",IF(ISERROR(MATCH($J842,SorP!$B$1:$B$6230,0)),\"\",INDIRECT(\"'SorP'!$A$\"&MATCH($J842,SorP!$B$1:$B$6230,0))))","v":""},null,{"$f":"IF(C842=\"\",NA(),MATCH($B842&$C842,'Smelter Look-up'!$J:$J,0))","v":{"$error":"#N/A"}},null,0,null,null,null,""]
[null,{"$f":"IF(LEN(A843)=0,\"\",INDEX('Smelter Look-up'!$A:$A,MATCH($A843,'Smelter Look-up'!$E:$E,0)))","v":""},{"$f":"IF(LEN(A843)=0,\"\",INDEX('Smelter Look-up'!$C:$C,MATCH($A843,'Smelter Look-up'!$E:$E,0)))","v":""},null,{"$f":"IF(ISERROR($V843),\"\",OFFSET('Smelter Look-up'!$D$4,$V843-4,0)&\"\")","v":""},{"$f":"IF(ISERROR($V843),\"\",OFFSET('Smelter Look-up'!$E$4,$V843-4,0))","v":""},{"$f":"IF(C843=$X$4,\"Enter smelter details\", IF(ISERROR($V843),\"\",OFFSET('Smelter Look-up'!$F$4,$V843-4,0)))","v":""},{"$f":"IF(ISERROR($V843),\"\",OFFSET('Smelter Look-up'!$G$4,$V843-4,0))","v":""},{"$f":"IF(ISERROR($V843),\"\",OFFSET('Smelter Look-up'!$H$4,$V843-4,0))","v":""},{"$f":"IF(ISERROR($V843),\"\",OFFSET('Smelter Look-up'!$I$4,$V843-4,0))","v":""},{"$nulls":7},{"$f":"IF(ISERROR($V843),\"\",OFFSET('Smelter Look-up'!$C$4,$V843-4,0)&\"\")","v":""},"",{"$f":"IF(B843=\"\",\"\",IF(ISERROR(MATCH($J843,SorP!$B$1:$B$6230,0)),\"\",INDIRECT(\"'SorP'!$A$\"&MATCH($J843,SorP!$B$1:$B$6230,0))))","v":""},null,{"$f":"IF(C843=\"\",NA(),MATCH($B843&$C843,'Smelter Look-up'!$J:$J,0))","v":{"$error":"#N/A"}},null,0,null,null,null,""]
[null,{"$f":"IF(LEN(A844)=0,\"\",INDEX('Smelter Look-up'!$A:$A,MATCH($A844,'Smelter Look-up'!$E:$E,0)))","v":""},{"$f":"IF(LEN(A844)=0,\"\",INDEX('Smelter Look-up'!$C:$C,MATCH($A844,'Smelter Look-up'!$E:$E,0)))","v":""},null,{"$f":"IF(ISERROR($V844),\"\",OFFSET('Smelter Look-up'!$D$4,$V844-4,0)&\"\")","v":""},{"$f":"IF(ISERROR($V844),\"\",OFFSET('Smelter Look-up'!$E$4,$V844-4,0))","v":""},{"$f":"IF(C844=$X$4,\"Enter smelter details\", IF(ISERROR($V844),\"\",OFFSET('Smelter Look-up'!$F$4,$V844-4,0)))","v":""},{"$f":"IF(ISERROR($V844),\"\",OFFSET('Smelter Look-up'!$G$4,$V844-4,0))","v":""},{"$f":"IF(ISERROR($V844),\"\",OFFSET('Smelter Look-up'!$H$4,$V844-4,0))","v":""},{"$f":"IF(ISERROR($V844),\"\",OFFSET('Smelter Look-up'!$I$4,$V844-4,0))","v":""},{"$nulls":7},{"$f":"IF(ISERROR($V844),\"\",OFFSET('Smelter Look-up'!$C$4,$V844-4,0)&\"\")","v":""},"",{"$f":"IF(B844=\"\",\"\",IF(ISERROR(MATCH($J844,SorP!$B$1:$B$6230,0)),\"\",INDIRECT(\"'SorP'!$A$\"&MATCH($J844,SorP!$B$1:$B$6230,0))))","v":""},null,{"$f":"IF(C844=\"\",NA(),MATCH($B844&$C844,'Smelter Look-up'!$J:$J,0))","v":{"$error":"#N/A"}},null,0,null,null,null,""]
[null,{"$f":"IF(LEN(A845)=0,\"\",INDEX('Smelter Look-up'!$A:$A,MATCH($A845,'Smelter Look-up'!$E:$E,0)))","v":""},{"$f":"IF(LEN(A845)=0,\"\",INDEX('Smelter Look-up'!$C:$C,MATCH($A845,'Smelter Look-up'!$E:$E,0)))","v":""},null,{"$f":"IF(ISERROR($V845),\"\",OFFSET('Smelter Look-up'!$D$4,$V845-4,0)&\"\")","v":""},{"$f":"IF(ISERROR($V845),\"\",OFFSET('Smelter Look-up'!$E$4,$V845-4,0))","v":""},{"$f":"IF(C845=$X$4,\"Enter smelter details\", IF(ISERROR($V845),\"\",OFFSET('Smelter Look-up'!$F$4,$V845-4,0)))","v":""},{"$f":"IF(ISERROR($V845),\"\",OFFSET('Smelter Look-up'!$G$4,$V845-4,0))","v":""},{"$f":"IF(ISERROR($V845),\"\",OFFSET('Smelter Look-up'!$H$4,$V845-4,0))","v":""},{"$f":"IF(ISERROR($V845),\"\",OFFSET('Smelter Look-up'!$I$4,$V845-4,0))","v":""},{"$nulls":7},{"$f":"IF(ISERROR($V845),\"\",OFFSET('Smelter Look-up'!$C$4,$V845-4,0)&\"\")","v":""},"",{"$f":"IF(B845=\"\",\"\",IF(ISERROR(MATCH($J845,SorP!$B$1:$B$6230,0)),\"\",INDIRECT(\"'SorP'!$A$\"&MATCH($J845,SorP!$B$1:$B$6230,0))))","v":""},null,{"$f":"IF(C845=\"\",NA(),MATCH($B845&$C845,'Smelter Look-up'!$J:$J,0))","v":{"$error":"#N/A"}},null,0,null,null,null,""]
[null,{"$f":"IF(LEN(A846)=0,\"\",INDEX('Smelter Look-up'!$A:$A,MATCH($A846,'Smelter Look-up'!$E:$E,0)))","v":""},{"$f":"IF(LEN(A846)=0,\"\",INDEX('Smelter Look-up'!$C:$C,MATCH($A846,'Smelter Look-up'!$E:$E,0)))","v":""},null,{"$f":"IF(ISERROR($V846),\"\",OFFSET('Smelter Look-up'!$D$4,$V846-4,0)&\"\")","v":""},{"$f":"IF(ISERROR($V846),\"\",OFFSET('Smelter Look-up'!$E$4,$V846-4,0))","v":""},{"$f":"IF(C846=$X$4,\"Enter smelter details\", IF(ISERROR($V846),\"\",OFFSET('Smelter Look-up'!$F$4,$V846-4,0)))","v":""},{"$f":"IF(ISERROR($V846),\"\",OFFSET('Smelter Look-up'!$G$4,$V846-4,0))","v":""},{"$f":"IF(ISERROR($V846),\"\",OFFSET('Smelter Look-up'!$H$4,$V846-4,0))","v":""},{"$f":"IF(ISERROR($V846),\"\",OFFSET('Smelter Look-up'!$I$4,$V846-4,0))","v":""},{"$nulls":7},{"$f":"IF(ISERROR($V846),\"\",OFFSET('Smelter Look-up'!$C$4,$V846-4,0)&\"\")","v":""},"",{"$f":"IF(B846=\"\",\"\",IF(ISERROR(MATCH($J846,SorP!$B$1:$B$6230,0)),\"\",INDIRECT(\"'SorP'!$A$\"&MATCH($J846,SorP!$B$1:$B$6230,0))))","v":""},null,{"$f":"IF(C846=\"\",NA(),MATCH($B846&$C846,'Smelter Look-up'!$J:$J,0))","v":{"$error":"#N/A"}},null,0,null,null,null,""]
[null,{"$f":"IF(LEN(A847)=0,\"\",INDEX('Smelter Look-up'!$A:$A,MATCH($A847,'Smelter Look-up'!$E:$E,0)))","v":""},{"$f":"IF(LEN(A847)=0,\"\",INDEX('Smelter Look-up'!$C:$C,MATCH($A847,'Smelter Look-up'!$E:$E,0)))","v":""},null,{"$f":"IF(ISERROR($V847),\"\",OFFSET('Smelter Look-up'!$D$4,$V847-4,0)&\"\")","v":""},{"$f":"IF(ISERROR($V847),\"\",OFFSET('Smelter Look-up'!$E$4,$V847-4,0))","v":""},{"$f":"IF(C847=$X$4,\"Enter smelter details\", IF(ISERROR($V847),\"\",OFFSET('Smelter Look-up'!$F$4,$V847-4,0)))","v":""},{"$f":"IF(ISERROR($V847),\"\",OFFSET('Smelter Look-up'!$G$4,$V847-4,0))","v":""},{"$f":"IF(ISERROR($V847),\"\",OFFSET('Smelter Look-up'!$H$4,$V847-4,0))","v":""},{"$f":"IF(ISERROR($V847),\"\",OFFSET('Smelter Look-up'!$I$4,$V847-4,0))","v":""},{"$nulls":7},{"$f":"IF(ISERROR($V847),\"\",OFFSET('Smelter Look-up'!$C$4,$V847-4,0)&\"\")","v":""},"",{"$f":"IF(B847=\"\",\"\",IF(ISERROR(MATCH($J847,SorP!$B$1:$B$6230,0)),\"\",INDIRECT(\"'SorP'!$A$\"&MATCH($J847,SorP!$B$1:$B$6230,0))))","v":""},null,{"$f":"IF(C847=\"\",NA(),MATCH($B847&$C847,'Smelter Look-up'!$J:$J,0))","v":{"$error":"#N/A"}},null,0,null,null,null,""]
[null,{"$f":"IF(LEN(A848)=0,\"\",INDEX('Smelter Look-up'!$A:$A,MATCH($A848,'Smelter Look-up'!$E:$E,0)))","v":""},{"$f":"IF(LEN(A848)=0,\"\",INDEX('Smelter Look-up'!$C:$C,MATCH($A848,'Smelter Look-up'!$E:$E,0)))","v":""},null,{"$f":"IF(ISERROR($V848),\"\",OFFSET('Smelter Look-up'!$D$4,$V848-4,0)&\"\")","v":""},{"$f":"IF(ISERROR($V848),\"\",OFFSET('Smelter Look-up'!$E$4,$V848-4,0))","v":""},{"$f":"IF(C848=$X$4,\"Enter smelter details\", IF(ISERROR($V848),\"\",OFFSET('Smelter Look-up'!$F$4,$V848-4,0)))","v":""},{"$f":"IF(ISERROR($V848),\"\",OFFSET('Smelter Look-up'!$G$4,$V848-4,0))","v":""},{"$f":"IF(ISERROR($V848),\"\",OFFSET('Smelter Look-up'!$H$4,$V848-4,0))","v":""},{"$f":"IF(ISERROR($V848),\"\",OFFSET('Smelter Look-up'!$I$4,$V848-4,0))","v":""},{"$nulls":7},{"$f":"IF(ISERROR($V848),\"\",OFFSET('Smelter Look-up'!$C$4,$V848-4,0)&\"\")","v":""},"",{"$f":"IF(B848=\"\",\"\",IF(ISERROR(MATCH($J848,SorP!$B$1:$B$6230,0)),\"\",INDIRECT(\"'SorP'!$A$\"&MATCH($J848,SorP!$B$1:$B$6230,0))))","v":""},null,{"$f":"IF(C848=\"\",NA(),MATCH($B848&$C848,'Smelter Look-up'!$J:$J,0))","v":{"$error":"#N/A"}},null,0,null,null,null,""]
[null,{"$f":"IF(LEN(A849)=0,\"\",INDEX('Smelter Look-up'!$A:$A,MATCH($A849,'Smelter Look-up'!$E:$E,0)))","v":""},{"$f":"IF(LEN(A849)=0,\"\",INDEX('Smelter Look-up'!$C:$C,MATCH($A849,'Smelter Look-up'!$E:$E,0)))","v":""},null,{"$f":"IF(ISERROR($V849),\"\",OFFSET('Smelter Look-up'!$D$4,$V849-4,0)&\"\")","v":""},{"$f":"IF(ISERROR($V849),\"\",OFFSET('Smelter Look-up'!$E$4,$V849-4,0))","v":""},{"$f":"IF(C849=$X$4,\"Enter smelter details\", IF(ISERROR($V849),\"\",OFFSET('Smelter Look-up'!$F$4,$V849-4,0)))","v":""},{"$f":"IF(ISERROR($V849),\"\",OFFSET('Smelter Look-up'!$G$4,$V849-4,0))","v":""},{"$f":"IF(ISERROR($V849),\"\",OFFSET('Smelter Look-up'!$H$4,$V849-4,0))","v":""},{"$f":"IF(ISERROR($V849),\"\",OFFSET('Smelter Look-up'!$I$4,$V849-4,0))","v":""},{"$nulls":7},{"$f":"IF(ISERROR($V849),\"\",OFFSET('Smelter Look-up'!$C$4,$V849-4,0)&\"\")","v":""},"",{"$f":"IF(B849=\"\",\"\",IF(ISERROR(MATCH($J849,SorP!$B$1:$B$6230,0)),\"\",INDIRECT(\"'SorP'!$A$\"&MATCH($J849,SorP!$B$1:$B$6230,0))))","v":""},null,{"$f":"IF(C849=\"\",NA(),MATCH($B849&$C849,'Smelter Look-up'!$J:$J,0))","v":{"$error":"#N/A"}},null,0,null,null,null,""]
[null,{"$f":"IF(LEN(A850)=0,\"\",INDEX('Smelter Look-up'!$A:$A,MATCH($A850,'Smelter Look-up'!$E:$E,0)))","v":""},{"$f":"IF(LEN(A850)=0,\"\",INDEX('Smelter Look-up'!$C:$C,MATCH($A850,'Smelter Look-up'!$E:$E,0)))","v":""},null,{"$f":"IF(ISERROR($V850),\"\",OFFSET('Smelter Look-up'!$D$4,$V850-4,0)&\"\")","v":""},{"$f":"IF(ISERROR($V850),\"\",OFFSET('Smelter Look-up'!$E$4,$V850-4,0))","v":""},{"$f":"IF(C850=$X$4,\"Enter smelter details\", IF(ISERROR($V850),\"\",OFFSET('Smelter Look-up'!$F$4,$V850-4,0)))","v":""},{"$f":"IF(ISERROR($V850),\"\",OFFSET('Smelter Look-up'!$G$4,$V850-4,0))","v":""},{"$f":"IF(ISERROR($V850),\"\",OFFSET('Smelter Look-up'!$H$4,$V850-4,0))","v":""},{"$f":"IF(ISERROR($V850),\"\",OFFSET('Smelter Look-up'!$I$4,$V850-4,0))","v":""},{"$nulls":7},{"$f":"IF(ISERROR($V850),\"\",OFFSET('Smelter Look-up'!$C$4,$V850-4,0)&\"\")","v":""},"",{"$f":"IF(B850=\"\",\"\",IF(ISERROR(MATCH($J850,SorP!$B$1:$B$6230,0)),\"\",INDIRECT(\"'SorP'!$A$\"&MATCH($J850,SorP!$B$1:$B$6230,0))))","v":""},null,{"$f":"IF(C850=\"\",NA(),MATCH($B850&$C850,'Smelter Look-up'!$J:$J,0))","v":{"$error":"#N/A"}},null,0,null,null,null,""]
[null,{"$f":"IF(LEN(A851)=0,\"\",INDEX('Smelter Look-up'!$A:$A,MATCH($A851,'Smelter Look-up'!$E:$E,0)))","v":""},{"$f":"IF(LEN(A851)=0,\"\",INDEX('Smelter Look-up'!$C:$C,MATCH($A851,'Smelter Look-up'!$E:$E,0)))","v":""},null,{"$f":"IF(ISERROR($V851),\"\",OFFSET('Smelter Look-up'!$D$4,$V851-4,0)&\"\")","v":""},{"$f":"IF(ISERROR($V851),\"\",OFFSET('Smelter Look-up'!$E$4,$V851-4,0))","v":""},{"$f":"IF(C851=$X$4,\"Enter smelter details\", IF(ISERROR($V851),\"\",OFFSET('Smelter Look-up'!$F$4,$V851-4,0)))","v":""},{"$f":"IF(ISERROR($V851),\"\",OFFSET('Smelter Look-up'!$G$4,$V851-4,0))","v":""},{"$f":"IF(ISERROR($V851),\"\",OFFSET('Smelter Look-up'!$H$4,$V851-4,0))","v":""},{"$f":"IF(ISERROR($V851),\"\",OFFSET('Smelter Look-up'!$I$4,$V851-4,0))","v":""},{"$nulls":7},{"$f":"IF(ISERROR($V851),\"\",OFFSET('Smelter Look-up'!$C$4,$V851-4,0)&\"\")","v":""},"",{"$f":"IF(B851=\"\",\"\",IF(ISERROR(MATCH($J851,SorP!$B$1:$B$6230,0)),\"\",INDIRECT(\"'SorP'!$A$\"&MATCH($J851,SorP!$B$1:$B$6230,0))))","v":""},null,{"$f":"IF(C851=\"\",NA(),MATCH($B851&$C851,'Smelter Look-up'!$J:$J,0))","v":{"$error":"#N/A"}},null,0,null,null,null,""]
[null,{"$f":"IF(LEN(A852)=0,\"\",INDEX('Smelter Look-up'!$A:$A,MATCH($A852,'Smelter Look-up'!$E:$E,0)))","v":""},{"$f":"IF(LEN(A852)=0,\"\",INDEX('Smelter Look-up'!$C:$C,MATCH($A852,'Smelter Look-up'!$E:$E,0)))","v":""},null,{"$f":"IF(ISERROR($V852),\"\",OFFSET('Smelter Look-up'!$D$4,$V852-4,0)&\"\")","v":""},{"$f":"IF(ISERROR($V852),\"\",OFFSET('Smelter Look-up'!$E$4,$V852-4,0))","v":""},{"$f":"IF(C852=$X$4,\"Enter smelter details\", IF(ISERROR($V852),\"\",OFFSET('Smelter Look-up'!$F$4,$V852-4,0)))","v":""},{"$f":"IF(ISERROR($V852),\"\",OFFSET('Smelter Look-up'!$G$4,$V852-4,0))","v":""},{"$f":"IF(ISERROR($V852),\"\",OFFSET('Smelter Look-up'!$H$4,$V852-4,0))","v":""},{"$f":"IF(ISERROR($V852),\"\",OFFSET('Smelter Look-up'!$I$4,$V852-4,0))","v":""},{"$nulls":7},{"$f":"IF(ISERROR($V852),\"\",OFFSET('Smelter Look-up'!$C$4,$V852-4,0)&\"\")","v":""},"",{"$f":"IF(B852=\"\",\"\",IF(ISERROR(MATCH($J852,SorP!$B$1:$B$6230,0)),\"\",INDIRECT(\"'SorP'!$A$\"&MATCH($J852,SorP!$B$1:$B$6230,0))))","v":""},null,{"$f":"IF(C852=\"\",NA(),MATCH($B852&$C852,'Smelter Look-up'!$J:$J,0))","v":{"$error":"#N/A"}},null,0,null,null,null,""]
[null,{"$f":"IF(LEN(A853)=0,\"\",INDEX('Smelter Look-up'!$A:$A,MATCH($A853,'Smelter Look-up'!$E:$E,0)))","v":""},{"$f":"IF(LEN(A853)=0,\"\",INDEX('Smelter Look-up'!$C:$C,MATCH($A853,'Smelter Look-up'!$E:$E,0)))","v":""},null,{"$f":"IF(ISERROR($V853),\"\",OFFSET('Smelter Look-up'!$D$4,$V853-4,0)&\"\")","v":""},{"$f":"IF(ISERROR($V853),\"\",OFFSET('Smelter Look-up'!$E$4,$V853-4,0))","v":""},{"$f":"IF(C853=$X$4,\"Enter smelter details\", IF(ISERROR($V853),\"\",OFFSET('Smelter Look-up'!$F$4,$V853-4,0)))","v":""},{"$f":"IF(ISERROR($V853),\"\",OFFSET('Smelter Look-up'!$G$4,$V853-4,0))","v":""},{"$f":"IF(ISERROR($V853),\"\",OFFSET('Smelter Look-up'!$H$4,$V853-4,0))","v":""},{"$f":"IF(ISERROR($V853),\"\",OFFSET('Smelter Look-up'!$I$4,$V853-4,0))","v":""},{"$nulls":7},{"$f":"IF(ISERROR($V853),\"\",OFFSET('Smelter Look-up'!$C$4,$V853-4,0)&\"\")","v":""},"",{"$f":"IF(B853=\"\",\"\",IF(ISERROR(MATCH($J853,SorP!$B$1:$B$6230,0)),\"\",INDIRECT(\"'SorP'!$A$\"&MATCH($J853,SorP!$B$1:$B$6230,0))))","v":""},null,{"$f":"IF(C853=\"\",NA(),MATCH($B853&$C853,'Smelter Look-up'!$J:$J,0))","v":{"$error":"#N/A"}},null,0,null,null,null,""]
[null,{"$f":"IF(LEN(A854)=0,\"\",INDEX('Smelter Look-up'!$A:$A,MATCH($A854,'Smelter Look-up'!$E:$E,0)))","v":""},{"$f":"IF(LEN(A854)=0,\"\",INDEX('Smelter Look-up'!$C:$C,MATCH($A854,'Smelter Look-up'!$E:$E,0)))","v":""},null,{"$f":"IF(ISERROR($V854),\"\",OFFSET('Smelter Look-up'!$D$4,$V854-4,0)&\"\")","v":""},{"$f":"IF(ISERROR($V854),\"\",OFFSET('Smelter Look-up'!$E$4,$V854-4,0))","v":""},{"$f":"IF(C854=$X$4,\"Enter smelter details\", IF(ISERROR($V854),\"\",OFFSET('Smelter Look-up'!$F$4,$V854-4,0)))","v":""},{"$f":"IF(ISERROR($V854),\"\",OFFSET('Smelter Look-up'!$G$4,$V854-4,0))","v":""},{"$f":"IF(ISERROR($V854),\"\",OFFSET('Smelter Look-up'!$H$4,$V854-4,0))","v":""},{"$f":"IF(ISERROR($V854),\"\",OFFSET('Smelter Look-up'!$I$4,$V854-4,0))","v":""},{"$nulls":7},{"$f":"IF(ISERROR($V854),\"\",OFFSET('Smelter Look-up'!$C$4,$V854-4,0)&\"\")","v":""},"",{"$f":"IF(B854=\"\",\"\",IF(ISERROR(MATCH($J854,SorP!$B$1:$B$6230,0)),\"\",INDIRECT(\"'SorP'!$A$\"&MATCH($J854,SorP!$B$1:$B$6230,0))))","v":""},null,{"$f":"IF(C854=\"\",NA(),MATCH($B854&$C854,'Smelter Look-up'!$J:$J,0))","v":{"$error":"#N/A"}},null,0,null,null,null,""]
[null,{"$f":"IF(LEN(A855)=0,\"\",INDEX('Smelter Look-up'!$A:$A,MATCH($A855,'Smelter Look-up'!$E:$E,0)))","v":""},{"$f":"IF(LEN(A855)=0,\"\",INDEX('Smelter Look-up'!$C:$C,MATCH($A855,'Smelter Look-up'!$E:$E,0)))","v":""},null,{"$f":"IF(ISERROR($V855),\"\",OFFSET('Smelter Look-up'!$D$4,$V855-4,0)&\"\")","v":""},{"$f":"IF(ISERROR($V855),\"\",OFFSET('Smelter Look-up'!$E$4,$V855-4,0))","v":""},{"$f":"IF(C855=$X$4,\"Enter smelter details\", IF(ISERROR($V855),\"\",OFFSET('Smelter Look-up'!$F$4,$V855-4,0)))","v":""},{"$f":"IF(ISERROR($V855),\"\",OFFSET('Smelter Look-up'!$G$4,$V855-4,0))","v":""},{"$f":"IF(ISERROR($V855),\"\",OFFSET('Smelter Look-up'!$H$4,$V855-4,0))","v":""},{"$f":"IF(ISERROR($V855),\"\",OFFSET('Smelter Look-up'!$I$4,$V855-4,0))","v":""},{"$nulls":7},{"$f":"IF(ISERROR($V855),\"\",OFFSET('Smelter Look-up'!$C$4,$V855-4,0)&\"\")","v":""},"",{"$f":"IF(B855=\"\",\"\",IF(ISERROR(MATCH($J855,SorP!$B$1:$B$6230,0)),\"\",INDIRECT(\"'SorP'!$A$\"&MATCH($J855,SorP!$B$1:$B$6230,0))))","v":""},null,{"$f":"IF(C855=\"\",NA(),MATCH($B855&$C855,'Smelter Look-up'!$J:$J,0))","v":{"$error":"#N/A"}},null,0,null,null,null,""]
[null,{"$f":"IF(LEN(A856)=0,\"\",INDEX('Smelter Look-up'!$A:$A,MATCH($A856,'Smelter Look-up'!$E:$E,0)))","v":""},{"$f":"IF(LEN(A856)=0,\"\",INDEX('Smelter Look-up'!$C:$C,MATCH($A856,'Smelter Look-up'!$E:$E,0)))","v":""},null,{"$f":"IF(ISERROR($V856),\"\",OFFSET('Smelter Look-up'!$D$4,$V856-4,0)&\"\")","v":""},{"$f":"IF(ISERROR($V856),\"\",OFFSET('Smelter Look-up'!$E$4,$V856-4,0))","v":""},{"$f":"IF(C856=$X$4,\"Enter smelter details\", IF(ISERROR($V856),\"\",OFFSET('Smelter Look-up'!$F$4,$V856-4,0)))","v":""},{"$f":"IF(ISERROR($V856),\"\",OFFSET('Smelter Look-up'!$G$4,$V856-4,0))","v":""},{"$f":"IF(ISERROR($V856),\"\",OFFSET('Smelter Look-up'!$H$4,$V856-4,0))","v":""},{"$f":"IF(ISERROR($V856),\"\",OFFSET('Smelter Look-up'!$I$4,$V856-4,0))","v":""},{"$nulls":7},{"$f":"IF(ISERROR($V856),\"\",OFFSET('Smelter Look-up'!$C$4,$V856-4,0)&\"\")","v":""},"",{"$f":"IF(B856=\"\",\"\",IF(ISERROR(MATCH($J856,SorP!$B$1:$B$6230,0)),\"\",INDIRECT(\"'SorP'!$A$\"&MATCH($J856,SorP!$B$1:$B$6230,0))))","v":""},null,{"$f":"IF(C856=\"\",NA(),MATCH($B856&$C856,'Smelter Look-up'!$J:$J,0))","v":{"$error":"#N/A"}},null,0,null,null,null,""]
[null,{"$f":"IF(LEN(A857)=0,\"\",INDEX('Smelter Look-up'!$A:$A,MATCH($A857,'Smelter Look-up'!$E:$E,0)))","v":""},{"$f":"IF(LEN(A857)=0,\"\",INDEX('Smelter Look-up'!$C:$C,MATCH($A857,'Smelter Look-up'!$E:$E,0)))","v":""},null,{"$f":"IF(ISERROR($V857),\"\",OFFSET('Smelter Look-up'!$D$4,$V857-4,0)&\"\")","v":""},{"$f":"IF(ISERROR($V857),\"\",OFFSET('Smelter Look-up'!$E$4,$V857-4,0))","v":""},{"$f":"IF(C857=$X$4,\"Enter smelter details\", IF(ISERROR($V857),\"\",OFFSET('Smelter Look-up'!$F$4,$V857-4,0)))","v":""},{"$f":"IF(ISERROR($V857),\"\",OFFSET('Smelter Look-up'!$G$4,$V857-4,0))","v":""},{"$f":"IF(ISERROR($V857),\"\",OFFSET('Smelter Look-up'!$H$4,$V857-4,0))","v":""},{"$f":"IF(ISERROR($V857),\"\",OFFSET('Smelter Look-up'!$I$4,$V857-4,0))","v":""},{"$nulls":7},{"$f":"IF(ISERROR($V857),\"\",OFFSET('Smelter Look-up'!$C$4,$V857-4,0)&\"\")","v":""},"",{"$f":"IF(B857=\"\",\"\",IF(ISERROR(MATCH($J857,SorP!$B$1:$B$6230,0)),\"\",INDIRECT(\"'SorP'!$A$\"&MATCH($J857,SorP!$B$1:$B$6230,0))))","v":""},null,{"$f":"IF(C857=\"\",NA(),MATCH($B857&$C857,'Smelter Look-up'!$J:$J,0))","v":{"$error":"#N/A"}},null,0,null,null,null,""]
[null,{"$f":"IF(LEN(A858)=0,\"\",INDEX('Smelter Look-up'!$A:$A,MATCH($A858,'Smelter Look-up'!$E:$E,0)))","v":""},{"$f":"IF(LEN(A858)=0,\"\",INDEX('Smelter Look-up'!$C:$C,MATCH($A858,'Smelter Look-up'!$E:$E,0)))","v":""},null,{"$f":"IF(ISERROR($V858),\"\",OFFSET('Smelter Look-up'!$D$4,$V858-4,0)&\"\")","v":""},{"$f":"IF(ISERROR($V858),\"\",OFFSET('Smelter Look-up'!$E$4,$V858-4,0))","v":""},{"$f":"IF(C858=$X$4,\"Enter smelter details\", IF(ISERROR($V858),\"\",OFFSET('Smelter Look-up'!$F$4,$V858-4,0)))","v":""},{"$f":"IF(ISERROR($V858),\"\",OFFSET('Smelter Look-up'!$G$4,$V858-4,0))","v":""},{"$f":"IF(ISERROR($V858),\"\",OFFSET('Smelter Look-up'!$H$4,$V858-4,0))","v":""},{"$f":"IF(ISERROR($V858),\"\",OFFSET('Smelter Look-up'!$I$4,$V858-4,0))","v":""},{"$nulls":7},{"$f":"IF(ISERROR($V858),\"\",OFFSET('Smelter Look-up'!$C$4,$V858-4,0)&\"\")","v":""},"",{"$f":"IF(B858=\"\",\"\",IF(ISERROR(MATCH($J858,SorP!$B$1:$B$6230,0)),\"\",INDIRECT(\"'SorP'!$A$\"&MATCH($J858,SorP!$B$1:$B$6230,0))))","v":""},null,{"$f":"IF(C858=\"\",NA(),MATCH($B858&$C858,'Smelter Look-up'!$J:$J,0))","v":{"$error":"#N/A"}},null,0,null,null,null,""]
[null,{"$f":"IF(LEN(A859)=0,\"\",INDEX('Smelter Look-up'!$A:$A,MATCH($A859,'Smelter Look-up'!$E:$E,0)))","v":""},{"$f":"IF(LEN(A859)=0,\"\",INDEX('Smelter Look-up'!$C:$C,MATCH($A859,'Smelter Look-up'!$E:$E,0)))","v":""},null,{"$f":"IF(ISERROR($V859),\"\",OFFSET('Smelter Look-up'!$D$4,$V859-4,0)&\"\")","v":""},{"$f":"IF(ISERROR($V859),\"\",OFFSET('Smelter Look-up'!$E$4,$V859-4,0))","v":""},{"$f":"IF(C859=$X$4,\"Enter smelter details\", IF(ISERROR($V859),\"\",OFFSET('Smelter Look-up'!$F$4,$V859-4,0)))","v":""},{"$f":"IF(ISERROR($V859),\"\",OFFSET('Smelter Look-up'!$G$4,$V859-4,0))","v":""},{"$f":"IF(ISERROR($V859),\"\",OFFSET('Smelter Look-up'!$H$4,$V859-4,0))","v":""},{"$f":"IF(ISERROR($V859),\"\",OFFSET('Smelter Look-up'!$I$4,$V859-4,0))","v":""},{"$nulls":7},{"$f":"IF(ISERROR($V859),\"\",OFFSET('Smelter Look-up'!$C$4,$V859-4,0)&\"\")","v":""},"",{"$f":"IF(B859=\"\",\"\",IF(ISERROR(MATCH($J859,SorP!$B$1:$B$6230,0)),\"\",INDIRECT(\"'SorP'!$A$\"&MATCH($J859,SorP!$B$1:$B$6230,0))))","v":""},null,{"$f":"IF(C859=\"\",NA(),MATCH($B859&$C859,'Smelter Look-up'!$J:$J,0))","v":{"$error":"#N/A"}},null,0,null,null,null,""]
[null,{"$f":"IF(LEN(A860)=0,\"\",INDEX('Smelter Look-up'!$A:$A,MATCH($A860,'Smelter Look-up'!$E:$E,0)))","v":""},{"$f":"IF(LEN(A860)=0,\"\",INDEX('Smelter Look-up'!$C:$C,MATCH($A860,'Smelter Look-up'!$E:$E,0)))","v":""},null,{"$f":"IF(ISERROR($V860),\"\",OFFSET('Smelter Look-up'!$D$4,$V860-4,0)&\"\")","v":""},{"$f":"IF(ISERROR($V860),\"\",OFFSET('Smelter Look-up'!$E$4,$V860-4,0))","v":""},{"$f":"IF(C860=$X$4,\"Enter smelter details\", IF(ISERROR($V860),\"\",OFFSET('Smelter Look-up'!$F$4,$V860-4,0)))","v":""},{"$f":"IF(ISERROR($V860),\"\",OFFSET('Smelter Look-up'!$G$4,$V860-4,0))","v":""},{"$f":"IF(ISERROR($V860),\"\",OFFSET('Smelter Look-up'!$H$4,$V860-4,0))","v":""},{"$f":"IF(ISERROR($V860),\"\",OFFSET('Smelter Look-up'!$I$4,$V860-4,0))","v":""},{"$nulls":7},{"$f":"IF(ISERROR($V860),\"\",OFFSET('Smelter Look-up'!$C$4,$V860-4,0)&\"\")","v":""},"",{"$f":"IF(B860=\"\",\"\",IF(ISERROR(MATCH($J860,SorP!$B$1:$B$6230,0)),\"\",INDIRECT(\"'SorP'!$A$\"&MATCH($J860,SorP!$B$1:$B$6230,0))))","v":""},null,{"$f":"IF(C860=\"\",NA(),MATCH($B860&$C860,'Smelter Look-up'!$J:$J,0))","v":{"$error":"#N/A"}},null,0,null,null,null,""]
[null,{"$f":"IF(LEN(A861)=0,\"\",INDEX('Smelter Look-up'!$A:$A,MATCH($A861,'Smelter Look-up'!$E:$E,0)))","v":""},{"$f":"IF(LEN(A861)=0,\"\",INDEX('Smelter Look-up'!$C:$C,MATCH($A861,'Smelter Look-up'!$E:$E,0)))","v":""},null,{"$f":"IF(ISERROR($V861),\"\",OFFSET('Smelter Look-up'!$D$4,$V861-4,0)&\"\")","v":""},{"$f":"IF(ISERROR($V861),\"\",OFFSET('Smelter Look-up'!$E$4,$V861-4,0))","v":""},{"$f":"IF(C861=$X$4,\"Enter smelter details\", IF(ISERROR($V861),\"\",OFFSET('Smelter Look-up'!$F$4,$V861-4,0)))","v":""},{"$f":"IF(ISERROR($V861),\"\",OFFSET('Smelter Look-up'!$G$4,$V861-4,0))","v":""},{"$f":"IF(ISERROR($V861),\"\",OFFSET('Smelter Look-up'!$H$4,$V861-4,0))","v":""},{"$f":"IF(ISERROR($V861),\"\",OFFSET('Smelter Look-up'!$I$4,$V861-4,0))","v":""},{"$nulls":7},{"$f":"IF(ISERROR($V861),\"\",OFFSET('Smelter Look-up'!$C$4,$V861-4,0)&\"\")","v":""},"",{"$f":"IF(B861=\"\",\"\",IF(ISERROR(MATCH($J861,SorP!$B$1:$B$6230,0)),\"\",INDIRECT(\"'SorP'!$A$\"&MATCH($J861,SorP!$B$1:$B$6230,0))))","v":""},null,{"$f":"IF(C861=\"\",NA(),MATCH($B861&$C861,'Smelter Look-up'!$J:$J,0))","v":{"$error":"#N/A"}},null,0,null,null,null,""]
[null,{"$f":"IF(LEN(A862)=0,\"\",INDEX('Smelter Look-up'!$A:$A,MATCH($A862,'Smelter Look-up'!$E:$E,0)))","v":""},{"$f":"IF(LEN(A862)=0,\"\",INDEX('Smelter Look-up'!$C:$C,MATCH($A862,'Smelter Look-up'!$E:$E,0)))","v":""},null,{"$f":"IF(ISERROR($V862),\"\",OFFSET('Smelter Look-up'!$D$4,$V862-4,0)&\"\")","v":""},{"$f":"IF(ISERROR($V862),\"\",OFFSET('Smelter Look-up'!$E$4,$V862-4,0))","v":""},{"$f":"IF(C862=$X$4,\"Enter smelter details\", IF(ISERROR($V862),\"\",OFFSET('Smelter Look-up'!$F$4,$V862-4,0)))","v":""},{"$f":"IF(ISERROR($V862),\"\",OFFSET('Smelter Look-up'!$G$4,$V862-4,0))","v":""},{"$f":"IF(ISERROR($V862),\"\",OFFSET('Smelter Look-up'!$H$4,$V862-4,0))","v":""},{"$f":"IF(ISERROR($V862),\"\",OFFSET('Smelter Look-up'!$I$4,$V862-4,0))","v":""},{"$nulls":7},{"$f":"IF(ISERROR($V862),\"\",OFFSET('Smelter Look-up'!$C$4,$V862-4,0)&\"\")","v":""},"",{"$f":"IF(B862=\"\",\"\",IF(ISERROR(MATCH($J862,SorP!$B$1:$B$6230,0)),\"\",INDIRECT(\"'SorP'!$A$\"&MATCH($J862,SorP!$B$1:$B$6230,0))))","v":""},null,{"$f":"IF(C862=\"\",NA(),MATCH($B862&$C862,'Smelter Look-up'!$J:$J,0))","v":{"$error":"#N/A"}},null,0,null,null,null,""]
[null,{"$f":"IF(LEN(A863)=0,\"\",INDEX('Smelter Look-up'!$A:$A,MATCH($A863,'Smelter Look-up'!$E:$E,0)))","v":""},{"$f":"IF(LEN(A863)=0,\"\",INDEX('Smelter Look-up'!$C:$C,MATCH($A863,'Smelter Look-up'!$E:$E,0)))","v":""},null,{"$f":"IF(ISERROR($V863),\"\",OFFSET('Smelter Look-up'!$D$4,$V863-4,0)&\"\")","v":""},{"$f":"IF(ISERROR($V863),\"\",OFFSET('Smelter Look-up'!$E$4,$V863-4,0))","v":""},{"$f":"IF(C863=$X$4,\"Enter smelter details\", IF(ISERROR($V863),\"\",OFFSET('Smelter Look-up'!$F$4,$V863-4,0)))","v":""},{"$f":"IF(ISERROR($V863),\"\",OFFSET('Smelter Look-up'!$G$4,$V863-4,0))","v":""},{"$f":"IF(ISERROR($V863),\"\",OFFSET('Smelter Look-up'!$H$4,$V863-4,0))","v":""},{"$f":"IF(ISERROR($V863),\"\",OFFSET('Smelter Look-up'!$I$4,$V863-4,0))","v":""},{"$nulls":7},{"$f":"IF(ISERROR($V863),\"\",OFFSET('Smelter Look-up'!$C$4,$V863-4,0)&\"\")","v":""},"",{"$f":"IF(B863=\"\",\"\",IF(ISERROR(MATCH($J863,SorP!$B$1:$B$6230,0)),\"\",INDIRECT(\"'SorP'!$A$\"&MATCH($J863,SorP!$B$1:$B$6230,0))))","v":""},null,{"$f":"IF(C863=\"\",NA(),MATCH($B863&$C863,'Smelter Look-up'!$J:$J,0))","v":{"$error":"#N/A"}},null,0,null,null,null,""]
[null,{"$f":"IF(LEN(A864)=0,\"\",INDEX('Smelter Look-up'!$A:$A,MATCH($A864,'Smelter Look-up'!$E:$E,0)))","v":""},{"$f":"IF(LEN(A864)=0,\"\",INDEX('Smelter Look-up'!$C:$C,MATCH($A864,'Smelter Look-up'!$E:$E,0)))","v":""},null,{"$f":"IF(ISERROR($V864),\"\",OFFSET('Smelter Look-up'!$D$4,$V864-4,0)&\"\")","v":""},{"$f":"IF(ISERROR($V864),\"\",OFFSET('Smelter Look-up'!$E$4,$V864-4,0))","v":""},{"$f":"IF(C864=$X$4,\"Enter smelter details\", IF(ISERROR($V864),\"\",OFFSET('Smelter Look-up'!$F$4,$V864-4,0)))","v":""},{"$f":"IF(ISERROR($V864),\"\",OFFSET('Smelter Look-up'!$G$4,$V864-4,0))","v":""},{"$f":"IF(ISERROR($V864),\"\",OFFSET('Smelter Look-up'!$H$4,$V864-4,0))","v":""},{"$f":"IF(ISERROR($V864),\"\",OFFSET('Smelter Look-up'!$I$4,$V864-4,0))","v":""},{"$nulls":7},{"$f":"IF(ISERROR($V864),\"\",OFFSET('Smelter Look-up'!$C$4,$V864-4,0)&\"\")","v":""},"",{"$f":"IF(B864=\"\",\"\",IF(ISERROR(MATCH($J864,SorP!$B$1:$B$6230,0)),\"\",INDIRECT(\"'SorP'!$A$\"&MATCH($J864,SorP!$B$1:$B$6230,0))))","v":""},null,{"$f":"IF(C864=\"\",NA(),MATCH($B864&$C864,'Smelter Look-up'!$J:$J,0))","v":{"$error":"#N/A"}},null,0,null,null,null,""]
[null,{"$f":"IF(LEN(A865)=0,\"\",INDEX('Smelter Look-up'!$A:$A,MATCH($A865,'Smelter Look-up'!$E:$E,0)))","v":""},{"$f":"IF(LEN(A865)=0,\"\",INDEX('Smelter Look-up'!$C:$C,MATCH($A865,'Smelter Look-up'!$E:$E,0)))","v":""},null,{"$f":"IF(ISERROR($V865),\"\",OFFSET('Smelter Look-up'!$D$4,$V865-4,0)&\"\")","v":""},{"$f":"IF(ISERROR($V865),\"\",OFFSET('Smelter Look-up'!$E$4,$V865-4,0))","v":""},{"$f":"IF(C865=$X$4,\"Enter smelter details\", IF(ISERROR($V865),\"\",OFFSET('Smelter Look-up'!$F$4,$V865-4,0)))","v":""},{"$f":"IF(ISERROR($V865),\"\",OFFSET('Smelter Look-up'!$G$4,$V865-4,0))","v":""},{"$f":"IF(ISERROR($V865),\"\",OFFSET('Smelter Look-up'!$H$4,$V865-4,0))","v":""},{"$f":"IF(ISERROR($V865),\"\",OFFSET('Smelter Look-up'!$I$4,$V865-4,0))","v":""},{"$nulls":7},{"$f":"IF(ISERROR($V865),\"\",OFFSET('Smelter Look-up'!$C$4,$V865-4,0)&\"\")","v":""},"",{"$f":"IF(B865=\"\",\"\",IF(ISERROR(MATCH($J865,SorP!$B$1:$B$6230,0)),\"\",INDIRECT(\"'SorP'!$A$\"&MATCH($J865,SorP!$B$1:$B$6230,0))))","v":""},null,{"$f":"IF(C865=\"\",NA(),MATCH($B865&$C865,'Smelter Look-up'!$J:$J,0))","v":{"$error":"#N/A"}},null,0,null,null,null,""]
[null,{"$f":"IF(LEN(A866)=0,\"\",INDEX('Smelter Look-up'!$A:$A,MATCH($A866,'Smelter Look-up'!$E:$E,0)))","v":""},{"$f":"IF(LEN(A866)=0,\"\",INDEX('Smelter Look-up'!$C:$C,MATCH($A866,'Smelter Look-up'!$E:$E,0)))","v":""},null,{"$f":"IF(ISERROR($V866),\"\",OFFSET('Smelter Look-up'!$D$4,$V866-4,0)&\"\")","v":""},{"$f":"IF(ISERROR($V866),\"\",OFFSET('Smelter Look-up'!$E$4,$V866-4,0))","v":""},{"$f":"IF(C866=$X$4,\"Enter smelter details\", IF(ISERROR($V866),\"\",OFFSET('Smelter Look-up'!$F$4,$V866-4,0)))","v":""},{"$f":"IF(ISERROR($V866),\"\",OFFSET('Smelter Look-up'!$G$4,$V866-4,0))","v":""},{"$f":"IF(ISERROR($V866),\"\",OFFSET('Smelter Look-up'!$H$4,$V866-4,0))","v":""},{"$f":"IF(ISERROR($V866),\"\",OFFSET('Smelter Look-up'!$I$4,$V866-4,0))","v":""},{"$nulls":7},{"$f":"IF(ISERROR($V866),\"\",OFFSET('Smelter Look-up'!$C$4,$V866-4,0)&\"\")","v":""},"",{"$f":"IF(B866=\"\",\"\",IF(ISERROR(MATCH($J866,SorP!$B$1:$B$6230,0)),\"\",INDIRECT(\"'SorP'!$A$\"&MATCH($J866,SorP!$B$1:$B$6230,0))))","v":""},null,{"$f":"IF(C866=\"\",NA(),MATCH($B866&$C866,'Smelter Look-up'!$J:$J,0))","v":{"$error":"#N/A"}},null,0,null,null,null,""]
[null,{"$f":"IF(LEN(A867)=0,\"\",INDEX('Smelter Look-up'!$A:$A,MATCH($A867,'Smelter Look-up'!$E:$E,0)))","v":""},{"$f":"IF(LEN(A867)=0,\"\",INDEX('Smelter Look-up'!$C:$C,MATCH($A867,'Smelter Look-up'!$E:$E,0)))","v":""},null,{"$f":"IF(ISERROR($V867),\"\",OFFSET('Smelter Look-up'!$D$4,$V867-4,0)&\"\")","v":""},{"$f":"IF(ISERROR($V867),\"\",OFFSET('Smelter Look-up'!$E$4,$V867-4,0))","v":""},{"$f":"IF(C867=$X$4,\"Enter smelter details\", IF(ISERROR($V867),\"\",OFFSET('Smelter Look-up'!$F$4,$V867-4,0)))","v":""},{"$f":"IF(ISERROR($V867),\"\",OFFSET('Smelter Look-up'!$G$4,$V867-4,0))","v":""},{"$f":"IF(ISERROR($V867),\"\",OFFSET('Smelter Look-up'!$H$4,$V867-4,0))","v":""},{"$f":"IF(ISERROR($V867),\"\",OFFSET('Smelter Look-up'!$I$4,$V867-4,0))","v":""},{"$nulls":7},{"$f":"IF(ISERROR($V867),\"\",OFFSET('Smelter Look-up'!$C$4,$V867-4,0)&\"\")","v":""},"",{"$f":"IF(B867=\"\",\"\",IF(ISERROR(MATCH($J867,SorP!$B$1:$B$6230,0)),\"\",INDIRECT(\"'SorP'!$A$\"&MATCH($J867,SorP!$B$1:$B$6230,0))))","v":""},null,{"$f":"IF(C867=\"\",NA(),MATCH($B867&$C867,'Smelter Look-up'!$J:$J,0))","v":{"$error":"#N/A"}},null,0,null,null,null,""]
[null,{"$f":"IF(LEN(A868)=0,\"\",INDEX('Smelter Look-up'!$A:$A,MATCH($A868,'Smelter Look-up'!$E:$E,0)))","v":""},{"$f":"IF(LEN(A868)=0,\"\",INDEX('Smelter Look-up'!$C:$C,MATCH($A868,'Smelter Look-up'!$E:$E,0)))","v":""},null,{"$f":"IF(ISERROR($V868),\"\",OFFSET('Smelter Look-up'!$D$4,$V868-4,0)&\"\")","v":""},{"$f":"IF(ISERROR($V868),\"\",OFFSET('Smelter Look-up'!$E$4,$V868-4,0))","v":""},{"$f":"IF(C868=$X$4,\"Enter smelter details\", IF(ISERROR($V868),\"\",OFFSET('Smelter Look-up'!$F$4,$V868-4,0)))","v":""},{"$f":"IF(ISERROR($V868),\"\",OFFSET('Smelter Look-up'!$G$4,$V868-4,0))","v":""},{"$f":"IF(ISERROR($V868),\"\",OFFSET('Smelter Look-up'!$H$4,$V868-4,0))","v":""},{"$f":"IF(ISERROR($V868),\"\",OFFSET('Smelter Look-up'!$I$4,$V868-4,0))","v":""},{"$nulls":7},{"$f":"IF(ISERROR($V868),\"\",OFFSET('Smelter Look-up'!$C$4,$V868-4,0)&\"\")","v":""},"",{"$f":"IF(B868=\"\",\"\",IF(ISERROR(MATCH($J868,SorP!$B$1:$B$6230,0)),\"\",INDIRECT(\"'SorP'!$A$\"&MATCH($J868,SorP!$B$1:$B$6230,0))))","v":""},null,{"$f":"IF(C868=\"\",NA(),MATCH($B868&$C868,'Smelter Look-up'!$J:$J,0))","v":{"$error":"#N/A"}},null,0,null,null,null,""]
[null,{"$f":"IF(LEN(A869)=0,\"\",INDEX('Smelter Look-up'!$A:$A,MATCH($A869,'Smelter Look-up'!$E:$E,0)))","v":""},{"$f":"IF(LEN(A869)=0,\"\",INDEX('Smelter Look-up'!$C:$C,MATCH($A869,'Smelter Look-up'!$E:$E,0)))","v":""},null,{"$f":"IF(ISERROR($V869),\"\",OFFSET('Smelter Look-up'!$D$4,$V869-4,0)&\"\")","v":""},{"$f":"IF(ISERROR($V869),\"\",OFFSET('Smelter Look-up'!$E$4,$V869-4,0))","v":""},{"$f":"IF(C869=$X$4,\"Enter smelter details\", IF(ISERROR($V869),\"\",OFFSET('Smelter Look-up'!$F$4,$V869-4,0)))","v":""},{"$f":"IF(ISERROR($V869),\"\",OFFSET('Smelter Look-up'!$G$4,$V869-4,0))","v":""},{"$f":"IF(ISERROR($V869),\"\",OFFSET('Smelter Look-up'!$H$4,$V869-4,0))","v":""},{"$f":"IF(ISERROR($V869),\"\",OFFSET('Smelter Look-up'!$I$4,$V869-4,0))","v":""},{"$nulls":7},{"$f":"IF(ISERROR($V869),\"\",OFFSET('Smelter Look-up'!$C$4,$V869-4,0)&\"\")","v":""},"",{"$f":"IF(B869=\"\",\"\",IF(ISERROR(MATCH($J869,SorP!$B$1:$B$6230,0)),\"\",INDIRECT(\"'SorP'!$A$\"&MATCH($J869,SorP!$B$1:$B$6230,0))))","v":""},null,{"$f":"IF(C869=\"\",NA(),MATCH($B869&$C869,'Smelter Look-up'!$J:$J,0))","v":{"$error":"#N/A"}},null,0,null,null,null,""]
[null,{"$f":"IF(LEN(A870)=0,\"\",INDEX('Smelter Look-up'!$A:$A,MATCH($A870,'Smelter Look-up'!$E:$E,0)))","v":""},{"$f":"IF(LEN(A870)=0,\"\",INDEX('Smelter Look-up'!$C:$C,MATCH($A870,'Smelter Look-up'!$E:$E,0)))","v":""},null,{"$f":"IF(ISERROR($V870),\"\",OFFSET('Smelter Look-up'!$D$4,$V870-4,0)&\"\")","v":""},{"$f":"IF(ISERROR($V870),\"\",OFFSET('Smelter Look-up'!$E$4,$V870-4,0))","v":""},{"$f":"IF(C870=$X$4,\"Enter smelter details\", IF(ISERROR($V870),\"\",OFFSET('Smelter Look-up'!$F$4,$V870-4,0)))","v":""},{"$f":"IF(ISERROR($V870),\"\",OFFSET('Smelter Look-up'!$G$4,$V870-4,0))","v":""},{"$f":"IF(ISERROR($V870),\"\",OFFSET('Smelter Look-up'!$H$4,$V870-4,0))","v":""},{"$f":"IF(ISERROR($V870),\"\",OFFSET('Smelter Look-up'!$I$4,$V870-4,0))","v":""},{"$nulls":7},{"$f":"IF(ISERROR($V870),\"\",OFFSET('Smelter Look-up'!$C$4,$V870-4,0)&\"\")","v":""},"",{"$f":"IF(B870=\"\",\"\",IF(ISERROR(MATCH($J870,SorP!$B$1:$B$6230,0)),\"\",INDIRECT(\"'SorP'!$A$\"&MATCH($J870,SorP!$B$1:$B$6230,0))))","v":""},null,{"$f":"IF(C870=\"\",NA(),MATCH($B870&$C870,'Smelter Look-up'!$J:$J,0))","v":{"$error":"#N/A"}},null,0,null,null,null,""]
[null,{"$f":"IF(LEN(A871)=0,\"\",INDEX('Smelter Look-up'!$A:$A,MATCH($A871,'Smelter Look-up'!$E:$E,0)))","v":""},{"$f":"IF(LEN(A871)=0,\"\",INDEX('Smelter Look-up'!$C:$C,MATCH($A871,'Smelter Look-up'!$E:$E,0)))","v":""},null,{"$f":"IF(ISERROR($V871),\"\",OFFSET('Smelter Look-up'!$D$4,$V871-4,0)&\"\")","v":""},{"$f":"IF(ISERROR($V871),\"\",OFFSET('Smelter Look-up'!$E$4,$V871-4,0))","v":""},{"$f":"IF(C871=$X$4,\"Enter smelter details\", IF(ISERROR($V871),\"\",OFFSET('Smelter Look-up'!$F$4,$V871-4,0)))","v":""},{"$f":"IF(ISERROR($V871),\"\",OFFSET('Smelter Look-up'!$G$4,$V871-4,0))","v":""},{"$f":"IF(ISERROR($V871),\"\",OFFSET('Smelter Look-up'!$H$4,$V871-4,0))","v":""},{"$f":"IF(ISERROR($V871),\"\",OFFSET('Smelter Look-up'!$I$4,$V871-4,0))","v":""},{"$nulls":7},{"$f":"IF(ISERROR($V871),\"\",OFFSET('Smelter Look-up'!$C$4,$V871-4,0)&\"\")","v":""},"",{"$f":"IF(B871=\"\",\"\",IF(ISERROR(MATCH($J871,SorP!$B$1:$B$6230,0)),\"\",INDIRECT(\"'SorP'!$A$\"&MATCH($J871,SorP!$B$1:$B$6230,0))))","v":""},null,{"$f":"IF(C871=\"\",NA(),MATCH($B871&$C871,'Smelter Look-up'!$J:$J,0))","v":{"$error":"#N/A"}},null,0,null,null,null,""]
[null,{"$f":"IF(LEN(A872)=0,\"\",INDEX('Smelter Look-up'!$A:$A,MATCH($A872,'Smelter Look-up'!$E:$E,0)))","v":""},{"$f":"IF(LEN(A872)=0,\"\",INDEX('Smelter Look-up'!$C:$C,MATCH($A872,'Smelter Look-up'!$E:$E,0)))","v":""},null,{"$f":"IF(ISERROR($V872),\"\",OFFSET('Smelter Look-up'!$D$4,$V872-4,0)&\"\")","v":""},{"$f":"IF(ISERROR($V872),\"\",OFFSET('Smelter Look-up'!$E$4,$V872-4,0))","v":""},{"$f":"IF(C872=$X$4,\"Enter smelter details\", IF(ISERROR($V872),\"\",OFFSET('Smelter Look-up'!$F$4,$V872-4,0)))","v":""},{"$f":"IF(ISERROR($V872),\"\",OFFSET('Smelter Look-up'!$G$4,$V872-4,0))","v":""},{"$f":"IF(ISERROR($V872),\"\",OFFSET('Smelter Look-up'!$H$4,$V872-4,0))","v":""},{"$f":"IF(ISERROR($V872),\"\",OFFSET('Smelter Look-up'!$I$4,$V872-4,0))","v":""},{"$nulls":7},{"$f":"IF(ISERROR($V872),\"\",OFFSET('Smelter Look-up'!$C$4,$V872-4,0)&\"\")","v":""},"",{"$f":"IF(B872=\"\",\"\",IF(ISERROR(MATCH($J872,SorP!$B$1:$B$6230,0)),\"\",INDIRECT(\"'SorP'!$A$\"&MATCH($J872,SorP!$B$1:$B$6230,0))))","v":""},null,{"$f":"IF(C872=\"\",NA(),MATCH($B872&$C872,'Smelter Look-up'!$J:$J,0))","v":{"$error":"#N/A"}},null,0,null,null,null,""]
[null,{"$f":"IF(LEN(A873)=0,\"\",INDEX('Smelter Look-up'!$A:$A,MATCH($A873,'Smelter Look-up'!$E:$E,0)))","v":""},{"$f":"IF(LEN(A873)=0,\"\",INDEX('Smelter Look-up'!$C:$C,MATCH($A873,'Smelter Look-up'!$E:$E,0)))","v":""},null,{"$f":"IF(ISERROR($V873),\"\",OFFSET('Smelter Look-up'!$D$4,$V873-4,0)&\"\")","v":""},{"$f":"IF(ISERROR($V873),\"\",OFFSET('Smelter Look-up'!$E$4,$V873-4,0))","v":""},{"$f":"IF(C873=$X$4,\"Enter smelter details\", IF(ISERROR($V873),\"\",OFFSET('Smelter Look-up'!$F$4,$V873-4,0)))","v":""},{"$f":"IF(ISERROR($V873),\"\",OFFSET('Smelter Look-up'!$G$4,$V873-4,0))","v":""},{"$f":"IF(ISERROR($V873),\"\",OFFSET('Smelter Look-up'!$H$4,$V873-4,0))","v":""},{"$f":"IF(ISERROR($V873),\"\",OFFSET('Smelter Look-up'!$I$4,$V873-4,0))","v":""},{"$nulls":7},{"$f":"IF(ISERROR($V873),\"\",OFFSET('Smelter Look-up'!$C$4,$V873-4,0)&\"\")","v":""},"",{"$f":"IF(B873=\"\",\"\",IF(ISERROR(MATCH($J873,SorP!$B$1:$B$6230,0)),\"\",INDIRECT(\"'SorP'!$A$\"&MATCH($J873,SorP!$B$1:$B$6230,0))))","v":""},null,{"$f":"IF(C873=\"\",NA(),MATCH($B873&$C873,'Smelter Look-up'!$J:$J,0))","v":{"$error":"#N/A"}},null,0,null,null,null,""]
[null,{"$f":"IF(LEN(A874)=0,\"\",INDEX('Smelter Look-up'!$A:$A,MATCH($A874,'Smelter Look-up'!$E:$E,0)))","v":""},{"$f":"IF(LEN(A874)=0,\"\",INDEX('Smelter Look-up'!$C:$C,MATCH($A874,'Smelter Look-up'!$E:$E,0)))","v":""},null,{"$f":"IF(ISERROR($V874),\"\",OFFSET('Smelter Look-up'!$D$4,$V874-4,0)&\"\")","v":""},{"$f":"IF(ISERROR($V874),\"\",OFFSET('Smelter Look-up'!$E$4,$V874-4,0))","v":""},{"$f":"IF(C874=$X$4,\"Enter smelter details\", IF(ISERROR($V874),\"\",OFFSET('Smelter Look-up'!$F$4,$V874-4,0)))","v":""},{"$f":"IF(ISERROR($V874),\"\",OFFSET('Smelter Look-up'!$G$4,$V874-4,0))","v":""},{"$f":"IF(ISERROR($V874),\"\",OFFSET('Smelter Look-up'!$H$4,$V874-4,0))","v":""},{"$f":"IF(ISERROR($V874),\"\",OFFSET('Smelter Look-up'!$I$4,$V874-4,0))","v":""},{"$nulls":7},{"$f":"IF(ISERROR($V874),\"\",OFFSET('Smelter Look-up'!$C$4,$V874-4,0)&\"\")","v":""},"",{"$f":"IF(B874=\"\",\"\",IF(ISERROR(MATCH($J874,SorP!$B$1:$B$6230,0)),\"\",INDIRECT(\"'SorP'!$A$\"&MATCH($J874,SorP!$B$1:$B$6230,0))))","v":""},null,{"$f":"IF(C874=\"\",NA(),MATCH($B874&$C874,'Smelter Look-up'!$J:$J,0))","v":{"$error":"#N/A"}},null,0,null,null,null,""]
[null,{"$f":"IF(LEN(A875)=0,\"\",INDEX('Smelter Look-up'!$A:$A,MATCH($A875,'Smelter Look-up'!$E:$E,0)))","v":""},{"$f":"IF(LEN(A875)=0,\"\",INDEX('Smelter Look-up'!$C:$C,MATCH($A875,'Smelter Look-up'!$E:$E,0)))","v":""},null,{"$f":"IF(ISERROR($V875),\"\",OFFSET('Smelter Look-up'!$D$4,$V875-4,0)&\"\")","v":""},{"$f":"IF(ISERROR($V875),\"\",OFFSET('Smelter Look-up'!$E$4,$V875-4,0))","v":""},{"$f":"IF(C875=$X$4,\"Enter smelter details\", IF(ISERROR($V875),\"\",OFFSET('Smelter Look-up'!$F$4,$V875-4,0)))","v":""},{"$f":"IF(ISERROR($V875),\"\",OFFSET('Smelter Look-up'!$G$4,$V875-4,0))","v":""},{"$f":"IF(ISERROR($V875),\"\",OFFSET('Smelter Look-up'!$H$4,$V875-4,0))","v":""},{"$f":"IF(ISERROR($V875),\"\",OFFSET('Smelter Look-up'!$I$4,$V875-4,0))","v":""},{"$nulls":7},{"$f":"IF(ISERROR($V875),\"\",OFFSET('Smelter Look-up'!$C$4,$V875-4,0)&\"\")","v":""},"",{"$f":"IF(B875=\"\",\"\",IF(ISERROR(MATCH($J875,SorP!$B$1:$B$6230,0)),\"\",INDIRECT(\"'SorP'!$A$\"&MATCH($J875,SorP!$B$1:$B$6230,0))))","v":""},null,{"$f":"IF(C875=\"\",NA(),MATCH($B875&$C875,'Smelter Look-up'!$J:$J,0))","v":{"$error":"#N/A"}},null,0,null,null,null,""]
[null,{"$f":"IF(LEN(A876)=0,\"\",INDEX('Smelter Look-up'!$A:$A,MATCH($A876,'Smelter Look-up'!$E:$E,0)))","v":""},{"$f":"IF(LEN(A876)=0,\"\",INDEX('Smelter Look-up'!$C:$C,MATCH($A876,'Smelter Look-up'!$E:$E,0)))","v":""},null,{"$f":"IF(ISERROR($V876),\"\",OFFSET('Smelter Look-up'!$D$4,$V876-4,0)&\"\")","v":""},{"$f":"IF(ISERROR($V876),\"\",OFFSET('Smelter Look-up'!$E$4,$V876-4,0))","v":""},{"$f":"IF(C876=$X$4,\"Enter smelter details\", IF(ISERROR($V876),\"\",OFFSET('Smelter Look-up'!$F$4,$V876-4,0)))","v":""},{"$f":"IF(ISERROR($V876),\"\",OFFSET('Smelter Look-up'!$G$4,$V876-4,0))","v":""},{"$f":"IF(ISERROR($V876),\"\",OFFSET('Smelter Look-up'!$H$4,$V876-4,0))","v":""},{"$f":"IF(ISERROR($V876),\"\",OFFSET('Smelter Look-up'!$I$4,$V876-4,0))","v":""},{"$nulls":7},{"$f":"IF(ISERROR($V876),\"\",OFFSET('Smelter Look-up'!$C$4,$V876-4,0)&\"\")","v":""},"",{"$f":"IF(B876=\"\",\"\",IF(ISERROR(MATCH($J876,SorP!$B$1:$B$6230,0)),\"\",INDIRECT(\"'SorP'!$A$\"&MATCH($J876,SorP!$B$1:$B$6230,0))))","v":""},null,{"$f":"IF(C876=\"\",NA(),MATCH($B876&$C876,'Smelter Look-up'!$J:$J,0))","v":{"$error":"#N/A"}},null,0,null,null,null,""]
[null,{"$f":"IF(LEN(A877)=0,\"\",INDEX('Smelter Look-up'!$A:$A,MATCH($A877,'Smelter Look-up'!$E:$E,0)))","v":""},{"$f":"IF(LEN(A877)=0,\"\",INDEX('Smelter Look-up'!$C:$C,MATCH($A877,'Smelter Look-up'!$E:$E,0)))","v":""},null,{"$f":"IF(ISERROR($V877),\"\",OFFSET('Smelter Look-up'!$D$4,$V877-4,0)&\"\")","v":""},{"$f":"IF(ISERROR($V877),\"\",OFFSET('Smelter Look-up'!$E$4,$V877-4,0))","v":""},{"$f":"IF(C877=$X$4,\"Enter smelter details\", IF(ISERROR($V877),\"\",OFFSET('Smelter Look-up'!$F$4,$V877-4,0)))","v":""},{"$f":"IF(ISERROR($V877),\"\",OFFSET('Smelter Look-up'!$G$4,$V877-4,0))","v":""},{"$f":"IF(ISERROR($V877),\"\",OFFSET('Smelter Look-up'!$H$4,$V877-4,0))","v":""},{"$f":"IF(ISERROR($V877),\"\",OFFSET('Smelter Look-up'!$I$4,$V877-4,0))","v":""},{"$nulls":7},{"$f":"IF(ISERROR($V877),\"\",OFFSET('Smelter Look-up'!$C$4,$V877-4,0)&\"\")","v":""},"",{"$f":"IF(B877=\"\",\"\",IF(ISERROR(MATCH($J877,SorP!$B$1:$B$6230,0)),\"\",INDIRECT(\"'SorP'!$A$\"&MATCH($J877,SorP!$B$1:$B$6230,0))))","v":""},null,{"$f":"IF(C877=\"\",NA(),MATCH($B877&$C877,'Smelter Look-up'!$J:$J,0))","v":{"$error":"#N/A"}},null,0,null,null,null,""]
[null,{"$f":"IF(LEN(A878)=0,\"\",INDEX('Smelter Look-up'!$A:$A,MATCH($A878,'Smelter Look-up'!$E:$E,0)))","v":""},{"$f":"IF(LEN(A878)=0,\"\",INDEX('Smelter Look-up'!$C:$C,MATCH($A878,'Smelter Look-up'!$E:$E,0)))","v":""},null,{"$f":"IF(ISERROR($V878),\"\",OFFSET('Smelter Look-up'!$D$4,$V878-4,0)&\"\")","v":""},{"$f":"IF(ISERROR($V878),\"\",OFFSET('Smelter Look-up'!$E$4,$V878-4,0))","v":""},{"$f":"IF(C878=$X$4,\"Enter smelter details\", IF(ISERROR($V878),\"\",OFFSET('Smelter Look-up'!$F$4,$V878-4,0)))","v":""},{"$f":"IF(ISERROR($V878),\"\",OFFSET('Smelter Look-up'!$G$4,$V878-4,0))","v":""},{"$f":"IF(ISERROR($V878),\"\",OFFSET('Smelter Look-up'!$H$4,$V878-4,0))","v":""},{"$f":"IF(ISERROR($V878),\"\",OFFSET('Smelter Look-up'!$I$4,$V878-4,0))","v":""},{"$nulls":7},{"$f":"IF(ISERROR($V878),\"\",OFFSET('Smelter Look-up'!$C$4,$V878-4,0)&\"\")","v":""},"",{"$f":"IF(B878=\"\",\"\",IF(ISERROR(MATCH($J878,SorP!$B$1:$B$6230,0)),\"\",INDIRECT(\"'SorP'!$A$\"&MATCH($J878,SorP!$B$1:$B$6230,0))))","v":""},null,{"$f":"IF(C878=\"\",NA(),MATCH($B878&$C878,'Smelter Look-up'!$J:$J,0))","v":{"$error":"#N/A"}},null,0,null,null,null,""]
[null,{"$f":"IF(LEN(A879)=0,\"\",INDEX('Smelter Look-up'!$A:$A,MATCH($A879,'Smelter Look-up'!$E:$E,0)))","v":""},{"$f":"IF(LEN(A879)=0,\"\",INDEX('Smelter Look-up'!$C:$C,MATCH($A879,'Smelter Look-up'!$E:$E,0)))","v":""},null,{"$f":"IF(ISERROR($V879),\"\",OFFSET('Smelter Look-up'!$D$4,$V879-4,0)&\"\")","v":""},{"$f":"IF(ISERROR($V879),\"\",OFFSET('Smelter Look-up'!$E$4,$V879-4,0))","v":""},{"$f":"IF(C879=$X$4,\"Enter smelter details\", IF(ISERROR($V879),\"\",OFFSET('Smelter Look-up'!$F$4,$V879-4,0)))","v":""},{"$f":"IF(ISERROR($V879),\"\",OFFSET('Smelter Look-up'!$G$4,$V879-4,0))","v":""},{"$f":"IF(ISERROR($V879),\"\",OFFSET('Smelter Look-up'!$H$4,$V879-4,0))","v":""},{"$f":"IF(ISERROR($V879),\"\",OFFSET('Smelter Look-up'!$I$4,$V879-4,0))","v":""},{"$nulls":7},{"$f":"IF(ISERROR($V879),\"\",OFFSET('Smelter Look-up'!$C$4,$V879-4,0)&\"\")","v":""},"",{"$f":"IF(B879=\"\",\"\",IF(ISERROR(MATCH($J879,SorP!$B$1:$B$6230,0)),\"\",INDIRECT(\"'SorP'!$A$\"&MATCH($J879,SorP!$B$1:$B$6230,0))))","v":""},null,{"$f":"IF(C879=\"\",NA(),MATCH($B879&$C879,'Smelter Look-up'!$J:$J,0))","v":{"$error":"#N/A"}},null,0,null,null,null,""]
[null,{"$f":"IF(LEN(A880)=0,\"\",INDEX('Smelter Look-up'!$A:$A,MATCH($A880,'Smelter Look-up'!$E:$E,0)))","v":""},{"$f":"IF(LEN(A880)=0,\"\",INDEX('Smelter Look-up'!$C:$C,MATCH($A880,'Smelter Look-up'!$E:$E,0)))","v":""},null,{"$f":"IF(ISERROR($V880),\"\",OFFSET('Smelter Look-up'!$D$4,$V880-4,0)&\"\")","v":""},{"$f":"IF(ISERROR($V880),\"\",OFFSET('Smelter Look-up'!$E$4,$V880-4,0))","v":""},{"$f":"IF(C880=$X$4,\"Enter smelter details\", IF(ISERROR($V880),\"\",OFFSET('Smelter Look-up'!$F$4,$V880-4,0)))","v":""},{"$f":"IF(ISERROR($V880),\"\",OFFSET('Smelter Look-up'!$G$4,$V880-4,0))","v":""},{"$f":"IF(ISERROR($V880),\"\",OFFSET('Smelter Look-up'!$H$4,$V880-4,0))","v":""},{"$f":"IF(ISERROR($V880),\"\",OFFSET('Smelter Look-up'!$I$4,$V880-4,0))","v":""},{"$nulls":7},{"$f":"IF(ISERROR($V880),\"\",OFFSET('Smelter Look-up'!$C$4,$V880-4,0)&\"\")","v":""},"",{"$f":"IF(B880=\"\",\"\",IF(ISERROR(MATCH($J880,SorP!$B$1:$B$6230,0)),\"\",INDIRECT(\"'SorP'!$A$\"&MATCH($J880,SorP!$B$1:$B$6230,0))))","v":""},null,{"$f":"IF(C880=\"\",NA(),MATCH($B880&$C880,'Smelter Look-up'!$J:$J,0))","v":{"$error":"#N/A"}},null,0,null,null,null,""]
[null,{"$f":"IF(LEN(A881)=0,\"\",INDEX('Smelter Look-up'!$A:$A,MATCH($A881,'Smelter Look-up'!$E:$E,0)))","v":""},{"$f":"IF(LEN(A881)=0,\"\",INDEX('Smelter Look-up'!$C:$C,MATCH($A881,'Smelter Look-up'!$E:$E,0)))","v":""},null,{"$f":"IF(ISERROR($V881),\"\",OFFSET('Smelter Look-up'!$D$4,$V881-4,0)&\"\")","v":""},{"$f":"IF(ISERROR($V881),\"\",OFFSET('Smelter Look-up'!$E$4,$V881-4,0))","v":""},{"$f":"IF(C881=$X$4,\"Enter smelter details\", IF(ISERROR($V881),\"\",OFFSET('Smelter Look-up'!$F$4,$V881-4,0)))","v":""},{"$f":"IF(ISERROR($V881),\"\",OFFSET('Smelter Look-up'!$G$4,$V881-4,0))","v":""},{"$f":"IF(ISERROR($V881),\"\",OFFSET('Smelter Look-up'!$H$4,$V881-4,0))","v":""},{"$f":"IF(ISERROR($V881),\"\",OFFSET('Smelter Look-up'!$I$4,$V881-4,0))","v":""},{"$nulls":7},{"$f":"IF(ISERROR($V881),\"\",OFFSET('Smelter Look-up'!$C$4,$V881-4,0)&\"\")","v":""},"",{"$f":"IF(B881=\"\",\"\",IF(ISERROR(MATCH($J881,SorP!$B$1:$B$6230,0)),\"\",INDIRECT(\"'SorP'!$A$\"&MATCH($J881,SorP!$B$1:$B$6230,0))))","v":""},null,{"$f":"IF(C881=\"\",NA(),MATCH($B881&$C881,'Smelter Look-up'!$J:$J,0))","v":{"$error":"#N/A"}},null,0,null,null,null,""]
[null,{"$f":"IF(LEN(A882)=0,\"\",INDEX('Smelter Look-up'!$A:$A,MATCH($A882,'Smelter Look-up'!$E:$E,0)))","v":""},{"$f":"IF(LEN(A882)=0,\"\",INDEX('Smelter Look-up'!$C:$C,MATCH($A882,'Smelter Look-up'!$E:$E,0)))","v":""},null,{"$f":"IF(ISERROR($V882),\"\",OFFSET('Smelter Look-up'!$D$4,$V882-4,0)&\"\")","v":""},{"$f":"IF(ISERROR($V882),\"\",OFFSET('Smelter Look-up'!$E$4,$V882-4,0))","v":""},{"$f":"IF(C882=$X$4,\"Enter smelter details\", IF(ISERROR($V882),\"\",OFFSET('Smelter Look-up'!$F$4,$V882-4,0)))","v":""},{"$f":"IF(ISERROR($V882),\"\",OFFSET('Smelter Look-up'!$G$4,$V882-4,0))","v":""},{"$f":"IF(ISERROR($V882),\"\",OFFSET('Smelter Look-up'!$H$4,$V882-4,0))","v":""},{"$f":"IF(ISERROR($V882),\"\",OFFSET('Smelter Look-up'!$I$4,$V882-4,0))","v":""},{"$nulls":7},{"$f":"IF(ISERROR($V882),\"\",OFFSET('Smelter Look-up'!$C$4,$V882-4,0)&\"\")","v":""},"",{"$f":"IF(B882=\"\",\"\",IF(ISERROR(MATCH($J882,SorP!$B$1:$B$6230,0)),\"\",INDIRECT(\"'SorP'!$A$\"&MATCH($J882,SorP!$B$1:$B$6230,0))))","v":""},null,{"$f":"IF(C882=\"\",NA(),MATCH($B882&$C882,'Smelter Look-up'!$J:$J,0))","v":{"$error":"#N/A"}},null,0,null,null,null,""]
[null,{"$f":"IF(LEN(A883)=0,\"\",INDEX('Smelter Look-up'!$A:$A,MATCH($A883,'Smelter Look-up'!$E:$E,0)))","v":""},{"$f":"IF(LEN(A883)=0,\"\",INDEX('Smelter Look-up'!$C:$C,MATCH($A883,'Smelter Look-up'!$E:$E,0)))","v":""},null,{"$f":"IF(ISERROR($V883),\"\",OFFSET('Smelter Look-up'!$D$4,$V883-4,0)&\"\")","v":""},{"$f":"IF(ISERROR($V883),\"\",OFFSET('Smelter Look-up'!$E$4,$V883-4,0))","v":""},{"$f":"IF(C883=$X$4,\"Enter smelter details\", IF(ISERROR($V883),\"\",OFFSET('Smelter Look-up'!$F$4,$V883-4,0)))","v":""},{"$f":"IF(ISERROR($V883),\"\",OFFSET('Smelter Look-up'!$G$4,$V883-4,0))","v":""},{"$f":"IF(ISERROR($V883),\"\",OFFSET('Smelter Look-up'!$H$4,$V883-4,0))","v":""},{"$f":"IF(ISERROR($V883),\"\",OFFSET('Smelter Look-up'!$I$4,$V883-4,0))","v":""},{"$nulls":7},{"$f":"IF(ISERROR($V883),\"\",OFFSET('Smelter Look-up'!$C$4,$V883-4,0)&\"\")","v":""},"",{"$f":"IF(B883=\"\",\"\",IF(ISERROR(MATCH($J883,SorP!$B$1:$B$6230,0)),\"\",INDIRECT(\"'SorP'!$A$\"&MATCH($J883,SorP!$B$1:$B$6230,0))))","v":""},null,{"$f":"IF(C883=\"\",NA(),MATCH($B883&$C883,'Smelter Look-up'!$J:$J,0))","v":{"$error":"#N/A"}},null,0,null,null,null,""]
[null,{"$f":"IF(LEN(A884)=0,\"\",INDEX('Smelter Look-up'!$A:$A,MATCH($A884,'Smelter Look-up'!$E:$E,0)))","v":""},{"$f":"IF(LEN(A884)=0,\"\",INDEX('Smelter Look-up'!$C:$C,MATCH($A884,'Smelter Look-up'!$E:$E,0)))","v":""},null,{"$f":"IF(ISERROR($V884),\"\",OFFSET('Smelter Look-up'!$D$4,$V884-4,0)&\"\")","v":""},{"$f":"IF(ISERROR($V884),\"\",OFFSET('Smelter Look-up'!$E$4,$V884-4,0))","v":""},{"$f":"IF(C884=$X$4,\"Enter smelter details\", IF(ISERROR($V884),\"\",OFFSET('Smelter Look-up'!$F$4,$V884-4,0)))","v":""},{"$f":"IF(ISERROR($V884),\"\",OFFSET('Smelter Look-up'!$G$4,$V884-4,0))","v":""},{"$f":"IF(ISERROR($V884),\"\",OFFSET('Smelter Look-up'!$H$4,$V884-4,0))","v":""},{"$f":"IF(ISERROR($V884),\"\",OFFSET('Smelter Look-up'!$I$4,$V884-4,0))","v":""},{"$nulls":7},{"$f":"IF(ISERROR($V884),\"\",OFFSET('Smelter Look-up'!$C$4,$V884-4,0)&\"\")","v":""},"",{"$f":"IF(B884=\"\",\"\",IF(ISERROR(MATCH($J884,SorP!$B$1:$B$6230,0)),\"\",INDIRECT(\"'SorP'!$A$\"&MATCH($J884,SorP!$B$1:$B$6230,0))))","v":""},null,{"$f":"IF(C884=\"\",NA(),MATCH($B884&$C884,'Smelter Look-up'!$J:$J,0))","v":{"$error":"#N/A"}},null,0,null,null,null,""]
[null,{"$f":"IF(LEN(A885)=0,\"\",INDEX('Smelter Look-up'!$A:$A,MATCH($A885,'Smelter Look-up'!$E:$E,0)))","v":""},{"$f":"IF(LEN(A885)=0,\"\",INDEX('Smelter Look-up'!$C:$C,MATCH($A885,'Smelter Look-up'!$E:$E,0)))","v":""},null,{"$f":"IF(ISERROR($V885),\"\",OFFSET('Smelter Look-up'!$D$4,$V885-4,0)&\"\")","v":""},{"$f":"IF(ISERROR($V885),\"\",OFFSET('Smelter Look-up'!$E$4,$V885-4,0))","v":""},{"$f":"IF(C885=$X$4,\"Enter smelter details\", IF(ISERROR($V885),\"\",OFFSET('Smelter Look-up'!$F$4,$V885-4,0)))","v":""},{"$f":"IF(ISERROR($V885),\"\",OFFSET('Smelter Look-up'!$G$4,$V885-4,0))","v":""},{"$f":"IF(ISERROR($V885),\"\",OFFSET('Smelter Look-up'!$H$4,$V885-4,0))","v":""},{"$f":"IF(ISERROR($V885),\"\",OFFSET('Smelter Look-up'!$I$4,$V885-4,0))","v":""},{"$nulls":7},{"$f":"IF(ISERROR($V885),\"\",OFFSET('Smelter Look-up'!$C$4,$V885-4,0)&\"\")","v":""},"",{"$f":"IF(B885=\"\",\"\",IF(ISERROR(MATCH($J885,SorP!$B$1:$B$6230,0)),\"\",INDIRECT(\"'SorP'!$A$\"&MATCH($J885,SorP!$B$1:$B$6230,0))))","v":""},null,{"$f":"IF(C885=\"\",NA(),MATCH($B885&$C885,'Smelter Look-up'!$J:$J,0))","v":{"$error":"#N/A"}},null,0,null,null,null,""]
[null,{"$f":"IF(LEN(A886)=0,\"\",INDEX('Smelter Look-up'!$A:$A,MATCH($A886,'Smelter Look-up'!$E:$E,0)))","v":""},{"$f":"IF(LEN(A886)=0,\"\",INDEX('Smelter Look-up'!$C:$C,MATCH($A886,'Smelter Look-up'!$E:$E,0)))","v":""},null,{"$f":"IF(ISERROR($V886),\"\",OFFSET('Smelter Look-up'!$D$4,$V886-4,0)&\"\")","v":""},{"$f":"IF(ISERROR($V886),\"\",OFFSET('Smelter Look-up'!$E$4,$V886-4,0))","v":""},{"$f":"IF(C886=$X$4,\"Enter smelter details\", IF(ISERROR($V886),\"\",OFFSET('Smelter Look-up'!$F$4,$V886-4,0)))","v":""},{"$f":"IF(ISERROR($V886),\"\",OFFSET('Smelter Look-up'!$G$4,$V886-4,0))","v":""},{"$f":"IF(ISERROR($V886),\"\",OFFSET('Smelter Look-up'!$H$4,$V886-4,0))","v":""},{"$f":"IF(ISERROR($V886),\"\",OFFSET('Smelter Look-up'!$I$4,$V886-4,0))","v":""},{"$nulls":7},{"$f":"IF(ISERROR($V886),\"\",OFFSET('Smelter Look-up'!$C$4,$V886-4,0)&\"\")","v":""},"",{"$f":"IF(B886=\"\",\"\",IF(ISERROR(MATCH($J886,SorP!$B$1:$B$6230,0)),\"\",INDIRECT(\"'SorP'!$A$\"&MATCH($J886,SorP!$B$1:$B$6230,0))))","v":""},null,{"$f":"IF(C886=\"\",NA(),MATCH($B886&$C886,'Smelter Look-up'!$J:$J,0))","v":{"$error":"#N/A"}},null,0,null,null,null,""]
[null,{"$f":"IF(LEN(A887)=0,\"\",INDEX('Smelter Look-up'!$A:$A,MATCH($A887,'Smelter Look-up'!$E:$E,0)))","v":""},{"$f":"IF(LEN(A887)=0,\"\",INDEX('Smelter Look-up'!$C:$C,MATCH($A887,'Smelter Look-up'!$E:$E,0)))","v":""},null,{"$f":"IF(ISERROR($V887),\"\",OFFSET('Smelter Look-up'!$D$4,$V887-4,0)&\"\")","v":""},{"$f":"IF(ISERROR($V887),\"\",OFFSET('Smelter Look-up'!$E$4,$V887-4,0))","v":""},{"$f":"IF(C887=$X$4,\"Enter smelter details\", IF(ISERROR($V887),\"\",OFFSET('Smelter Look-up'!$F$4,$V887-4,0)))","v":""},{"$f":"IF(ISERROR($V887),\"\",OFFSET('Smelter Look-up'!$G$4,$V887-4,0))","v":""},{"$f":"IF(ISERROR($V887),\"\",OFFSET('Smelter Look-up'!$H$4,$V887-4,0))","v":""},{"$f":"IF(ISERROR($V887),\"\",OFFSET('Smelter Look-up'!$I$4,$V887-4,0))","v":""},{"$nulls":7},{"$f":"IF(ISERROR($V887),\"\",OFFSET('Smelter Look-up'!$C$4,$V887-4,0)&\"\")","v":""},"",{"$f":"IF(B887=\"\",\"\",IF(ISERROR(MATCH($J887,SorP!$B$1:$B$6230,0)),\"\",INDIRECT(\"'SorP'!$A$\"&MATCH($J887,SorP!$B$1:$B$6230,0))))","v":""},null,{"$f":"IF(C887=\"\",NA(),MATCH($B887&$C887,'Smelter Look-up'!$J:$J,0))","v":{"$error":"#N/A"}},null,0,null,null,null,""]
[null,{"$f":"IF(LEN(A888)=0,\"\",INDEX('Smelter Look-up'!$A:$A,MATCH($A888,'Smelter Look-up'!$E:$E,0)))","v":""},{"$f":"IF(LEN(A888)=0,\"\",INDEX('Smelter Look-up'!$C:$C,MATCH($A888,'Smelter Look-up'!$E:$E,0)))","v":""},null,{"$f":"IF(ISERROR($V888),\"\",OFFSET('Smelter Look-up'!$D$4,$V888-4,0)&\"\")","v":""},{"$f":"IF(ISERROR($V888),\"\",OFFSET('Smelter Look-up'!$E$4,$V888-4,0))","v":""},{"$f":"IF(C888=$X$4,\"Enter smelter details\", IF(ISERROR($V888),\"\",OFFSET('Smelter Look-up'!$F$4,$V888-4,0)))","v":""},{"$f":"IF(ISERROR($V888),\"\",OFFSET('Smelter Look-up'!$G$4,$V888-4,0))","v":""},{"$f":"IF(ISERROR($V888),\"\",OFFSET('Smelter Look-up'!$H$4,$V888-4,0))","v":""},{"$f":"IF(ISERROR($V888),\"\",OFFSET('Smelter Look-up'!$I$4,$V888-4,0))","v":""},{"$nulls":7},{"$f":"IF(ISERROR($V888),\"\",OFFSET('Smelter Look-up'!$C$4,$V888-4,0)&\"\")","v":""},"",{"$f":"IF(B888=\"\",\"\",IF(ISERROR(MATCH($J888,SorP!$B$1:$B$6230,0)),\"\",INDIRECT(\"'SorP'!$A$\"&MATCH($J888,SorP!$B$1:$B$6230,0))))","v":""},null,{"$f":"IF(C888=\"\",NA(),MATCH($B888&$C888,'Smelter Look-up'!$J:$J,0))","v":{"$error":"#N/A"}},null,0,null,null,null,""]
[null,{"$f":"IF(LEN(A889)=0,\"\",INDEX('Smelter Look-up'!$A:$A,MATCH($A889,'Smelter Look-up'!$E:$E,0)))","v":""},{"$f":"IF(LEN(A889)=0,\"\",INDEX('Smelter Look-up'!$C:$C,MATCH($A889,'Smelter Look-up'!$E:$E,0)))","v":""},null,{"$f":"IF(ISERROR($V889),\"\",OFFSET('Smelter Look-up'!$D$4,$V889-4,0)&\"\")","v":""},{"$f":"IF(ISERROR($V889),\"\",OFFSET('Smelter Look-up'!$E$4,$V889-4,0))","v":""},{"$f":"IF(C889=$X$4,\"Enter smelter details\", IF(ISERROR($V889),\"\",OFFSET('Smelter Look-up'!$F$4,$V889-4,0)))","v":""},{"$f":"IF(ISERROR($V889),\"\",OFFSET('Smelter Look-up'!$G$4,$V889-4,0))","v":""},{"$f":"IF(ISERROR($V889),\"\",OFFSET('Smelter Look-up'!$H$4,$V889-4,0))","v":""},{"$f":"IF(ISERROR($V889),\"\",OFFSET('Smelter Look-up'!$I$4,$V889-4,0))","v":""},{"$nulls":7},{"$f":"IF(ISERROR($V889),\"\",OFFSET('Smelter Look-up'!$C$4,$V889-4,0)&\"\")","v":""},"",{"$f":"IF(B889=\"\",\"\",IF(ISERROR(MATCH($J889,SorP!$B$1:$B$6230,0)),\"\",INDIRECT(\"'SorP'!$A$\"&MATCH($J889,SorP!$B$1:$B$6230,0))))","v":""},null,{"$f":"IF(C889=\"\",NA(),MATCH($B889&$C889,'Smelter Look-up'!$J:$J,0))","v":{"$error":"#N/A"}},null,0,null,null,null,""]
[null,{"$f":"IF(LEN(A890)=0,\"\",INDEX('Smelter Look-up'!$A:$A,MATCH($A890,'Smelter Look-up'!$E:$E,0)))","v":""},{"$f":"IF(LEN(A890)=0,\"\",INDEX('Smelter Look-up'!$C:$C,MATCH($A890,'Smelter Look-up'!$E:$E,0)))","v":""},null,{"$f":"IF(ISERROR($V890),\"\",OFFSET('Smelter Look-up'!$D$4,$V890-4,0)&\"\")","v":""},{"$f":"IF(ISERROR($V890),\"\",OFFSET('Smelter Look-up'!$E$4,$V890-4,0))","v":""},{"$f":"IF(C890=$X$4,\"Enter smelter details\", IF(ISERROR($V890),\"\",OFFSET('Smelter Look-up'!$F$4,$V890-4,0)))","v":""},{"$f":"IF(ISERROR($V890),\"\",OFFSET('Smelter Look-up'!$G$4,$V890-4,0))","v":""},{"$f":"IF(ISERROR($V890),\"\",OFFSET('Smelter Look-up'!$H$4,$V890-4,0))","v":""},{"$f":"IF(ISERROR($V890),\"\",OFFSET('Smelter Look-up'!$I$4,$V890-4,0))","v":""},{"$nulls":7},{"$f":"IF(ISERROR($V890),\"\",OFFSET('Smelter Look-up'!$C$4,$V890-4,0)&\"\")","v":""},"",{"$f":"IF(B890=\"\",\"\",IF(ISERROR(MATCH($J890,SorP!$B$1:$B$6230,0)),\"\",INDIRECT(\"'SorP'!$A$\"&MATCH($J890,SorP!$B$1:$B$6230,0))))","v":""},null,{"$f":"IF(C890=\"\",NA(),MATCH($B890&$C890,'Smelter Look-up'!$J:$J,0))","v":{"$error":"#N/A"}},null,0,null,null,null,""]
[null,{"$f":"IF(LEN(A891)=0,\"\",INDEX('Smelter Look-up'!$A:$A,MATCH($A891,'Smelter Look-up'!$E:$E,0)))","v":""},{"$f":"IF(LEN(A891)=0,\"\",INDEX('Smelter Look-up'!$C:$C,MATCH($A891,'Smelter Look-up'!$E:$E,0)))","v":""},null,{"$f":"IF(ISERROR($V891),\"\",OFFSET('Smelter Look-up'!$D$4,$V891-4,0)&\"\")","v":""},{"$f":"IF(ISERROR($V891),\"\",OFFSET('Smelter Look-up'!$E$4,$V891-4,0))","v":""},{"$f":"IF(C891=$X$4,\"Enter smelter details\", IF(ISERROR($V891),\"\",OFFSET('Smelter Look-up'!$F$4,$V891-4,0)))","v":""},{"$f":"IF(ISERROR($V891),\"\",OFFSET('Smelter Look-up'!$G$4,$V891-4,0))","v":""},{"$f":"IF(ISERROR($V891),\"\",OFFSET('Smelter Look-up'!$H$4,$V891-4,0))","v":""},{"$f":"IF(ISERROR($V891),\"\",OFFSET('Smelter Look-up'!$I$4,$V891-4,0))","v":""},{"$nulls":7},{"$f":"IF(ISERROR($V891),\"\",OFFSET('Smelter Look-up'!$C$4,$V891-4,0)&\"\")","v":""},{"$f":"IF(B891=\"\",\"\",IF(ISERROR(MATCH($E891,CL,0)),\"Unknown\",INDIRECT(\"'C'!$A$\"&MATCH($E891,CL,0)+1)))","v":""},{"$f":"IF(B891=\"\",\"\",IF(ISERROR(MATCH($J891,SorP!$B$1:$B$6230,0)),\"\",INDIRECT(\"'SorP'!$A$\"&MATCH($J891,SorP!$B$1:$B$6230,0))))","v":""},null,{"$f":"IF(C891=\"\",NA(),MATCH($B891&$C891,'Smelter Look-up'!$J:$J,0))","v":{"$error":"#N/A"}},null,{"$f":"IF(AND(C891=\"Smelter not listed\",OR(LEN(D891)=0,LEN(E891)=0)),1,0)","v":0},null,null,null,{"$f":"B891&C891","v":""}]
[null,{"$f":"IF(LEN(A892)=0,\"\",INDEX('Smelter Look-up'!$A:$A,MATCH($A892,'Smelter Look-up'!$E:$E,0)))","v":""},{"$f":"IF(LEN(A892)=0,\"\",INDEX('Smelter Look-up'!$C:$C,MATCH($A892,'Smelter Look-up'!$E:$E,0)))","v":""},null,{"$f":"IF(ISERROR($V892),\"\",OFFSET('Smelter Look-up'!$D$4,$V892-4,0)&\"\")","v":""},{"$f":"IF(ISERROR($V892),\"\",OFFSET('Smelter Look-up'!$E$4,$V892-4,0))","v":""},{"$f":"IF(C892=$X$4,\"Enter smelter details\", IF(ISERROR($V892),\"\",OFFSET('Smelter Look-up'!$F$4,$V892-4,0)))","v":""},{"$f":"IF(ISERROR($V892),\"\",OFFSET('Smelter Look-up'!$G$4,$V892-4,0))","v":""},{"$f":"IF(ISERROR($V892),\"\",OFFSET('Smelter Look-up'!$H$4,$V892-4,0))","v":""},{"$f":"IF(ISERROR($V892),\"\",OFFSET('Smelter Look-up'!$I$4,$V892-4,0))","v":""},{"$nulls":7},{"$f":"IF(ISERROR($V892),\"\",OFFSET('Smelter Look-up'!$C$4,$V892-4,0)&\"\")","v":""},"",{"$f":"IF(B892=\"\",\"\",IF(ISERROR(MATCH($J892,SorP!$B$1:$B$6230,0)),\"\",INDIRECT(\"'SorP'!$A$\"&MATCH($J892,SorP!$B$1:$B$6230,0))))","v":""},null,{"$f":"IF(C892=\"\",NA(),MATCH($B892&$C892,'Smelter Look-up'!$J:$J,0))","v":{"$error":"#N/A"}},null,0,null,null,null,""]
[null,{"$f":"IF(LEN(A893)=0,\"\",INDEX('Smelter Look-up'!$A:$A,MATCH($A893,'Smelter Look-up'!$E:$E,0)))","v":""},{"$f":"IF(LEN(A893)=0,\"\",INDEX('Smelter Look-up'!$C:$C,MATCH($A893,'Smelter Look-up'!$E:$E,0)))","v":""},null,{"$f":"IF(ISERROR($V893),\"\",OFFSET('Smelter Look-up'!$D$4,$V893-4,0)&\"\")","v":""},{"$f":"IF(ISERROR($V893),\"\",OFFSET('Smelter Look-up'!$E$4,$V893-4,0))","v":""},{"$f":"IF(C893=$X$4,\"Enter smelter details\", IF(ISERROR($V893),\"\",OFFSET('Smelter Look-up'!$F$4,$V893-4,0)))","v":""},{"$f":"IF(ISERROR($V893),\"\",OFFSET('Smelter Look-up'!$G$4,$V893-4,0))","v":""},{"$f":"IF(ISERROR($V893),\"\",OFFSET('Smelter Look-up'!$H$4,$V893-4,0))","v":""},{"$f":"IF(ISERROR($V893),\"\",OFFSET('Smelter Look-up'!$I$4,$V893-4,0))","v":""},{"$nulls":7},{"$f":"IF(ISERROR($V893),\"\",OFFSET('Smelter Look-up'!$C$4,$V893-4,0)&\"\")","v":""},"",{"$f":"IF(B893=\"\",\"\",IF(ISERROR(MATCH($J893,SorP!$B$1:$B$6230,0)),\"\",INDIRECT(\"'SorP'!$A$\"&MATCH($J893,SorP!$B$1:$B$6230,0))))","v":""},null,{"$f":"IF(C893=\"\",NA(),MATCH($B893&$C893,'Smelter Look-up'!$J:$J,0))","v":{"$error":"#N/A"}},null,0,null,null,null,""]
[null,{"$f":"IF(LEN(A894)=0,\"\",INDEX('Smelter Look-up'!$A:$A,MATCH($A894,'Smelter Look-up'!$E:$E,0)))","v":""},{"$f":"IF(LEN(A894)=0,\"\",INDEX('Smelter Look-up'!$C:$C,MATCH($A894,'Smelter Look-up'!$E:$E,0)))","v":""},null,{"$f":"IF(ISERROR($V894),\"\",OFFSET('Smelter Look-up'!$D$4,$V894-4,0)&\"\")","v":""},{"$f":"IF(ISERROR($V894),\"\",OFFSET('Smelter Look-up'!$E$4,$V894-4,0))","v":""},{"$f":"IF(C894=$X$4,\"Enter smelter details\", IF(ISERROR($V894),\"\",OFFSET('Smelter Look-up'!$F$4,$V894-4,0)))","v":""},{"$f":"IF(ISERROR($V894),\"\",OFFSET('Smelter Look-up'!$G$4,$V894-4,0))","v":""},{"$f":"IF(ISERROR($V894),\"\",OFFSET('Smelter Look-up'!$H$4,$V894-4,0))","v":""},{"$f":"IF(ISERROR($V894),\"\",OFFSET('Smelter Look-up'!$I$4,$V894-4,0))","v":""},{"$nulls":7},{"$f":"IF(ISERROR($V894),\"\",OFFSET('Smelter Look-up'!$C$4,$V894-4,0)&\"\")","v":""},"",{"$f":"IF(B894=\"\",\"\",IF(ISERROR(MATCH($J894,SorP!$B$1:$B$6230,0)),\"\",INDIRECT(\"'SorP'!$A$\"&MATCH($J894,SorP!$B$1:$B$6230,0))))","v":""},null,{"$f":"IF(C894=\"\",NA(),MATCH($B894&$C894,'Smelter Look-up'!$J:$J,0))","v":{"$error":"#N/A"}},null,0,null,null,null,""]
[null,{"$f":"IF(LEN(A895)=0,\"\",INDEX('Smelter Look-up'!$A:$A,MATCH($A895,'Smelter Look-up'!$E:$E,0)))","v":""},{"$f":"IF(LEN(A895)=0,\"\",INDEX('Smelter Look-up'!$C:$C,MATCH($A895,'Smelter Look-up'!$E:$E,0)))","v":""},null,{"$f":"IF(ISERROR($V895),\"\",OFFSET('Smelter Look-up'!$D$4,$V895-4,0)&\"\")","v":""},{"$f":"IF(ISERROR($V895),\"\",OFFSET('Smelter Look-up'!$E$4,$V895-4,0))","v":""},{"$f":"IF(C895=$X$4,\"Enter smelter details\", IF(ISERROR($V895),\"\",OFFSET('Smelter Look-up'!$F$4,$V895-4,0)))","v":""},{"$f":"IF(ISERROR($V895),\"\",OFFSET('Smelter Look-up'!$G$4,$V895-4,0))","v":""},{"$f":"IF(ISERROR($V895),\"\",OFFSET('Smelter Look-up'!$H$4,$V895-4,0))","v":""},{"$f":"IF(ISERROR($V895),\"\",OFFSET('Smelter Look-up'!$I$4,$V895-4,0))","v":""},{"$nulls":7},{"$f":"IF(ISERROR($V895),\"\",OFFSET('Smelter Look-up'!$C$4,$V895-4,0)&\"\")","v":""},"",{"$f":"IF(B895=\"\",\"\",IF(ISERROR(MATCH($J895,SorP!$B$1:$B$6230,0)),\"\",INDIRECT(\"'SorP'!$A$\"&MATCH($J895,SorP!$B$1:$B$6230,0))))","v":""},null,{"$f":"IF(C895=\"\",NA(),MATCH($B895&$C895,'Smelter Look-up'!$J:$J,0))","v":{"$error":"#N/A"}},null,0,null,null,null,""]
[null,{"$f":"IF(LEN(A896)=0,\"\",INDEX('Smelter Look-up'!$A:$A,MATCH($A896,'Smelter Look-up'!$E:$E,0)))","v":""},{"$f":"IF(LEN(A896)=0,\"\",INDEX('Smelter Look-up'!$C:$C,MATCH($A896,'Smelter Look-up'!$E:$E,0)))","v":""},null,{"$f":"IF(ISERROR($V896),\"\",OFFSET('Smelter Look-up'!$D$4,$V896-4,0)&\"\")","v":""},{"$f":"IF(ISERROR($V896),\"\",OFFSET('Smelter Look-up'!$E$4,$V896-4,0))","v":""},{"$f":"IF(C896=$X$4,\"Enter smelter details\", IF(ISERROR($V896),\"\",OFFSET('Smelter Look-up'!$F$4,$V896-4,0)))","v":""},{"$f":"IF(ISERROR($V896),\"\",OFFSET('Smelter Look-up'!$G$4,$V896-4,0))","v":""},{"$f":"IF(ISERROR($V896),\"\",OFFSET('Smelter Look-up'!$H$4,$V896-4,0))","v":""},{"$f":"IF(ISERROR($V896),\"\",OFFSET('Smelter Look-up'!$I$4,$V896-4,0))","v":""},{"$nulls":7},{"$f":"IF(ISERROR($V896),\"\",OFFSET('Smelter Look-up'!$C$4,$V896-4,0)&\"\")","v":""},"",{"$f":"IF(B896=\"\",\"\",IF(ISERROR(MATCH($J896,SorP!$B$1:$B$6230,0)),\"\",INDIRECT(\"'SorP'!$A$\"&MATCH($J896,SorP!$B$1:$B$6230,0))))","v":""},null,{"$f":"IF(C896=\"\",NA(),MATCH($B896&$C896,'Smelter Look-up'!$J:$J,0))","v":{"$error":"#N/A"}},null,0,null,null,null,""]
[null,{"$f":"IF(LEN(A897)=0,\"\",INDEX('Smelter Look-up'!$A:$A,MATCH($A897,'Smelter Look-up'!$E:$E,0)))","v":""},{"$f":"IF(LEN(A897)=0,\"\",INDEX('Smelter Look-up'!$C:$C,MATCH($A897,'Smelter Look-up'!$E:$E,0)))","v":""},null,{"$f":"IF(ISERROR($V897),\"\",OFFSET('Smelter Look-up'!$D$4,$V897-4,0)&\"\")","v":""},{"$f":"IF(ISERROR($V897),\"\",OFFSET('Smelter Look-up'!$E$4,$V897-4,0))","v":""},{"$f":"IF(C897=$X$4,\"Enter smelter details\", IF(ISERROR($V897),\"\",OFFSET('Smelter Look-up'!$F$4,$V897-4,0)))","v":""},{"$f":"IF(ISERROR($V897),\"\",OFFSET('Smelter Look-up'!$G$4,$V897-4,0))","v":""},{"$f":"IF(ISERROR($V897),\"\",OFFSET('Smelter Look-up'!$H$4,$V897-4,0))","v":""},{"$f":"IF(ISERROR($V897),\"\",OFFSET('Smelter Look-up'!$I$4,$V897-4,0))","v":""},{"$nulls":7},{"$f":"IF(ISERROR($V897),\"\",OFFSET('Smelter Look-up'!$C$4,$V897-4,0)&\"\")","v":""},"",{"$f":"IF(B897=\"\",\"\",IF(ISERROR(MATCH($J897,SorP!$B$1:$B$6230,0)),\"\",INDIRECT(\"'SorP'!$A$\"&MATCH($J897,SorP!$B$1:$B$6230,0))))","v":""},null,{"$f":"IF(C897=\"\",NA(),MATCH($B897&$C897,'Smelter Look-up'!$J:$J,0))","v":{"$error":"#N/A"}},null,0,null,null,null,""]
[null,{"$f":"IF(LEN(A898)=0,\"\",INDEX('Smelter Look-up'!$A:$A,MATCH($A898,'Smelter Look-up'!$E:$E,0)))","v":""},{"$f":"IF(LEN(A898)=0,\"\",INDEX('Smelter Look-up'!$C:$C,MATCH($A898,'Smelter Look-up'!$E:$E,0)))","v":""},null,{"$f":"IF(ISERROR($V898),\"\",OFFSET('Smelter Look-up'!$D$4,$V898-4,0)&\"\")","v":""},{"$f":"IF(ISERROR($V898),\"\",OFFSET('Smelter Look-up'!$E$4,$V898-4,0))","v":""},{"$f":"IF(C898=$X$4,\"Enter smelter details\", IF(ISERROR($V898),\"\",OFFSET('Smelter Look-up'!$F$4,$V898-4,0)))","v":""},{"$f":"IF(ISERROR($V898),\"\",OFFSET('Smelter Look-up'!$G$4,$V898-4,0))","v":""},{"$f":"IF(ISERROR($V898),\"\",OFFSET('Smelter Look-up'!$H$4,$V898-4,0))","v":""},{"$f":"IF(ISERROR($V898),\"\",OFFSET('Smelter Look-up'!$I$4,$V898-4,0))","v":""},{"$nulls":7},{"$f":"IF(ISERROR($V898),\"\",OFFSET('Smelter Look-up'!$C$4,$V898-4,0)&\"\")","v":""},"",{"$f":"IF(B898=\"\",\"\",IF(ISERROR(MATCH($J898,SorP!$B$1:$B$6230,0)),\"\",INDIRECT(\"'SorP'!$A$\"&MATCH($J898,SorP!$B$1:$B$6230,0))))","v":""},null,{"$f":"IF(C898=\"\",NA(),MATCH($B898&$C898,'Smelter Look-up'!$J:$J,0))","v":{"$error":"#N/A"}},null,0,null,null,null,""]
[null,{"$f":"IF(LEN(A899)=0,\"\",INDEX('Smelter Look-up'!$A:$A,MATCH($A899,'Smelter Look-up'!$E:$E,0)))","v":""},{"$f":"IF(LEN(A899)=0,\"\",INDEX('Smelter Look-up'!$C:$C,MATCH($A899,'Smelter Look-up'!$E:$E,0)))","v":""},null,{"$f":"IF(ISERROR($V899),\"\",OFFSET('Smelter Look-up'!$D$4,$V899-4,0)&\"\")","v":""},{"$f":"IF(ISERROR($V899),\"\",OFFSET('Smelter Look-up'!$E$4,$V899-4,0))","v":""},{"$f":"IF(C899=$X$4,\"Enter smelter details\", IF(ISERROR($V899),\"\",OFFSET('Smelter Look-up'!$F$4,$V899-4,0)))","v":""},{"$f":"IF(ISERROR($V899),\"\",OFFSET('Smelter Look-up'!$G$4,$V899-4,0))","v":""},{"$f":"IF(ISERROR($V899),\"\",OFFSET('Smelter Look-up'!$H$4,$V899-4,0))","v":""},{"$f":"IF(ISERROR($V899),\"\",OFFSET('Smelter Look-up'!$I$4,$V899-4,0))","v":""},{"$nulls":7},{"$f":"IF(ISERROR($V899),\"\",OFFSET('Smelter Look-up'!$C$4,$V899-4,0)&\"\")","v":""},"",{"$f":"IF(B899=\"\",\"\",IF(ISERROR(MATCH($J899,SorP!$B$1:$B$6230,0)),\"\",INDIRECT(\"'SorP'!$A$\"&MATCH($J899,SorP!$B$1:$B$6230,0))))","v":""},null,{"$f":"IF(C899=\"\",NA(),MATCH($B899&$C899,'Smelter Look-up'!$J:$J,0))","v":{"$error":"#N/A"}},null,0,null,null,null,""]
[null,{"$f":"IF(LEN(A900)=0,\"\",INDEX('Smelter Look-up'!$A:$A,MATCH($A900,'Smelter Look-up'!$E:$E,0)))","v":""},{"$f":"IF(LEN(A900)=0,\"\",INDEX('Smelter Look-up'!$C:$C,MATCH($A900,'Smelter Look-up'!$E:$E,0)))","v":""},null,{"$f":"IF(ISERROR($V900),\"\",OFFSET('Smelter Look-up'!$D$4,$V900-4,0)&\"\")","v":""},{"$f":"IF(ISERROR($V900),\"\",OFFSET('Smelter Look-up'!$E$4,$V900-4,0))","v":""},{"$f":"IF(C900=$X$4,\"Enter smelter details\", IF(ISERROR($V900),\"\",OFFSET('Smelter Look-up'!$F$4,$V900-4,0)))","v":""},{"$f":"IF(ISERROR($V900),\"\",OFFSET('Smelter Look-up'!$G$4,$V900-4,0))","v":""},{"$f":"IF(ISERROR($V900),\"\",OFFSET('Smelter Look-up'!$H$4,$V900-4,0))","v":""},{"$f":"IF(ISERROR($V900),\"\",OFFSET('Smelter Look-up'!$I$4,$V900-4,0))","v":""},{"$nulls":7},{"$f":"IF(ISERROR($V900),\"\",OFFSET('Smelter Look-up'!$C$4,$V900-4,0)&\"\")","v":""},"",{"$f":"IF(B900=\"\",\"\",IF(ISERROR(MATCH($J900,SorP!$B$1:$B$6230,0)),\"\",INDIRECT(\"'SorP'!$A$\"&MATCH($J900,SorP!$B$1:$B$6230,0))))","v":""},null,{"$f":"IF(C900=\"\",NA(),MATCH($B900&$C900,'Smelter Look-up'!$J:$J,0))","v":{"$error":"#N/A"}},null,0,null,null,null,""]
[null,{"$f":"IF(LEN(A901)=0,\"\",INDEX('Smelter Look-up'!$A:$A,MATCH($A901,'Smelter Look-up'!$E:$E,0)))","v":""},{"$f":"IF(LEN(A901)=0,\"\",INDEX('Smelter Look-up'!$C:$C,MATCH($A901,'Smelter Look-up'!$E:$E,0)))","v":""},null,{"$f":"IF(ISERROR($V901),\"\",OFFSET('Smelter Look-up'!$D$4,$V901-4,0)&\"\")","v":""},{"$f":"IF(ISERROR($V901),\"\",OFFSET('Smelter Look-up'!$E$4,$V901-4,0))","v":""},{"$f":"IF(C901=$X$4,\"Enter smelter details\", IF(ISERROR($V901),\"\",OFFSET('Smelter Look-up'!$F$4,$V901-4,0)))","v":""},{"$f":"IF(ISERROR($V901),\"\",OFFSET('Smelter Look-up'!$G$4,$V901-4,0))","v":""},{"$f":"IF(ISERROR($V901),\"\",OFFSET('Smelter Look-up'!$H$4,$V901-4,0))","v":""},{"$f":"IF(ISERROR($V901),\"\",OFFSET('Smelter Look-up'!$I$4,$V901-4,0))","v":""},{"$nulls":7},{"$f":"IF(ISERROR($V901),\"\",OFFSET('Smelter Look-up'!$C$4,$V901-4,0)&\"\")","v":""},"",{"$f":"IF(B901=\"\",\"\",IF(ISERROR(MATCH($J901,SorP!$B$1:$B$6230,0)),\"\",INDIRECT(\"'SorP'!$A$\"&MATCH($J901,SorP!$B$1:$B$6230,0))))","v":""},null,{"$f":"IF(C901=\"\",NA(),MATCH($B901&$C901,'Smelter Look-up'!$J:$J,0))","v":{"$error":"#N/A"}},null,0,null,null,null,""]
[null,{"$f":"IF(LEN(A902)=0,\"\",INDEX('Smelter Look-up'!$A:$A,MATCH($A902,'Smelter Look-up'!$E:$E,0)))","v":""},{"$f":"IF(LEN(A902)=0,\"\",INDEX('Smelter Look-up'!$C:$C,MATCH($A902,'Smelter Look-up'!$E:$E,0)))","v":""},null,{"$f":"IF(ISERROR($V902),\"\",OFFSET('Smelter Look-up'!$D$4,$V902-4,0)&\"\")","v":""},{"$f":"IF(ISERROR($V902),\"\",OFFSET('Smelter Look-up'!$E$4,$V902-4,0))","v":""},{"$f":"IF(C902=$X$4,\"Enter smelter details\", IF(ISERROR($V902),\"\",OFFSET('Smelter Look-up'!$F$4,$V902-4,0)))","v":""},{"$f":"IF(ISERROR($V902),\"\",OFFSET('Smelter Look-up'!$G$4,$V902-4,0))","v":""},{"$f":"IF(ISERROR($V902),\"\",OFFSET('Smelter Look-up'!$H$4,$V902-4,0))","v":""},{"$f":"IF(ISERROR($V902),\"\",OFFSET('Smelter Look-up'!$I$4,$V902-4,0))","v":""},{"$nulls":7},{"$f":"IF(ISERROR($V902),\"\",OFFSET('Smelter Look-up'!$C$4,$V902-4,0)&\"\")","v":""},"",{"$f":"IF(B902=\"\",\"\",IF(ISERROR(MATCH($J902,SorP!$B$1:$B$6230,0)),\"\",INDIRECT(\"'SorP'!$A$\"&MATCH($J902,SorP!$B$1:$B$6230,0))))","v":""},null,{"$f":"IF(C902=\"\",NA(),MATCH($B902&$C902,'Smelter Look-up'!$J:$J,0))","v":{"$error":"#N/A"}},null,0,null,null,null,""]
[null,{"$f":"IF(LEN(A903)=0,\"\",INDEX('Smelter Look-up'!$A:$A,MATCH($A903,'Smelter Look-up'!$E:$E,0)))","v":""},{"$f":"IF(LEN(A903)=0,\"\",INDEX('Smelter Look-up'!$C:$C,MATCH($A903,'Smelter Look-up'!$E:$E,0)))","v":""},null,{"$f":"IF(ISERROR($V903),\"\",OFFSET('Smelter Look-up'!$D$4,$V903-4,0)&\"\")","v":""},{"$f":"IF(ISERROR($V903),\"\",OFFSET('Smelter Look-up'!$E$4,$V903-4,0))","v":""},{"$f":"IF(C903=$X$4,\"Enter smelter details\", IF(ISERROR($V903),\"\",OFFSET('Smelter Look-up'!$F$4,$V903-4,0)))","v":""},{"$f":"IF(ISERROR($V903),\"\",OFFSET('Smelter Look-up'!$G$4,$V903-4,0))","v":""},{"$f":"IF(ISERROR($V903),\"\",OFFSET('Smelter Look-up'!$H$4,$V903-4,0))","v":""},{"$f":"IF(ISERROR($V903),\"\",OFFSET('Smelter Look-up'!$I$4,$V903-4,0))","v":""},{"$nulls":7},{"$f":"IF(ISERROR($V903),\"\",OFFSET('Smelter Look-up'!$C$4,$V903-4,0)&\"\")","v":""},"",{"$f":"IF(B903=\"\",\"\",IF(ISERROR(MATCH($J903,SorP!$B$1:$B$6230,0)),\"\",INDIRECT(\"'SorP'!$A$\"&MATCH($J903,SorP!$B$1:$B$6230,0))))","v":""},null,{"$f":"IF(C903=\"\",NA(),MATCH($B903&$C903,'Smelter Look-up'!$J:$J,0))","v":{"$error":"#N/A"}},null,0,null,null,null,""]
[null,{"$f":"IF(LEN(A904)=0,\"\",INDEX('Smelter Look-up'!$A:$A,MATCH($A904,'Smelter Look-up'!$E:$E,0)))","v":""},{"$f":"IF(LEN(A904)=0,\"\",INDEX('Smelter Look-up'!$C:$C,MATCH($A904,'Smelter Look-up'!$E:$E,0)))","v":""},null,{"$f":"IF(ISERROR($V904),\"\",OFFSET('Smelter Look-up'!$D$4,$V904-4,0)&\"\")","v":""},{"$f":"IF(ISERROR($V904),\"\",OFFSET('Smelter Look-up'!$E$4,$V904-4,0))","v":""},{"$f":"IF(C904=$X$4,\"Enter smelter details\", IF(ISERROR($V904),\"\",OFFSET('Smelter Look-up'!$F$4,$V904-4,0)))","v":""},{"$f":"IF(ISERROR($V904),\"\",OFFSET('Smelter Look-up'!$G$4,$V904-4,0))","v":""},{"$f":"IF(ISERROR($V904),\"\",OFFSET('Smelter Look-up'!$H$4,$V904-4,0))","v":""},{"$f":"IF(ISERROR($V904),\"\",OFFSET('Smelter Look-up'!$I$4,$V904-4,0))","v":""},{"$nulls":7},{"$f":"IF(ISERROR($V904),\"\",OFFSET('Smelter Look-up'!$C$4,$V904-4,0)&\"\")","v":""},"",{"$f":"IF(B904=\"\",\"\",IF(ISERROR(MATCH($J904,SorP!$B$1:$B$6230,0)),\"\",INDIRECT(\"'SorP'!$A$\"&MATCH($J904,SorP!$B$1:$B$6230,0))))","v":""},null,{"$f":"IF(C904=\"\",NA(),MATCH($B904&$C904,'Smelter Look-up'!$J:$J,0))","v":{"$error":"#N/A"}},null,0,null,null,null,""]
[null,{"$f":"IF(LEN(A905)=0,\"\",INDEX('Smelter Look-up'!$A:$A,MATCH($A905,'Smelter Look-up'!$E:$E,0)))","v":""},{"$f":"IF(LEN(A905)=0,\"\",INDEX('Smelter Look-up'!$C:$C,MATCH($A905,'Smelter Look-up'!$E:$E,0)))","v":""},null,{"$f":"IF(ISERROR($V905),\"\",OFFSET('Smelter Look-up'!$D$4,$V905-4,0)&\"\")","v":""},{"$f":"IF(ISERROR($V905),\"\",OFFSET('Smelter Look-up'!$E$4,$V905-4,0))","v":""},{"$f":"IF(C905=$X$4,\"Enter smelter details\", IF(ISERROR($V905),\"\",OFFSET('Smelter Look-up'!$F$4,$V905-4,0)))","v":""},{"$f":"IF(ISERROR($V905),\"\",OFFSET('Smelter Look-up'!$G$4,$V905-4,0))","v":""},{"$f":"IF(ISERROR($V905),\"\",OFFSET('Smelter Look-up'!$H$4,$V905-4,0))","v":""},{"$f":"IF(ISERROR($V905),\"\",OFFSET('Smelter Look-up'!$I$4,$V905-4,0))","v":""},{"$nulls":7},{"$f":"IF(ISERROR($V905),\"\",OFFSET('Smelter Look-up'!$C$4,$V905-4,0)&\"\")","v":""},"",{"$f":"IF(B905=\"\",\"\",IF(ISERROR(MATCH($J905,SorP!$B$1:$B$6230,0)),\"\",INDIRECT(\"'SorP'!$A$\"&MATCH($J905,SorP!$B$1:$B$6230,0))))","v":""},null,{"$f":"IF(C905=\"\",NA(),MATCH($B905&$C905,'Smelter Look-up'!$J:$J,0))","v":{"$error":"#N/A"}},null,0,null,null,null,""]
[null,{"$f":"IF(LEN(A906)=0,\"\",INDEX('Smelter Look-up'!$A:$A,MATCH($A906,'Smelter Look-up'!$E:$E,0)))","v":""},{"$f":"IF(LEN(A906)=0,\"\",INDEX('Smelter Look-up'!$C:$C,MATCH($A906,'Smelter Look-up'!$E:$E,0)))","v":""},null,{"$f":"IF(ISERROR($V906),\"\",OFFSET('Smelter Look-up'!$D$4,$V906-4,0)&\"\")","v":""},{"$f":"IF(ISERROR($V906),\"\",OFFSET('Smelter Look-up'!$E$4,$V906-4,0))","v":""},{"$f":"IF(C906=$X$4,\"Enter smelter details\", IF(ISERROR($V906),\"\",OFFSET('Smelter Look-up'!$F$4,$V906-4,0)))","v":""},{"$f":"IF(ISERROR($V906),\"\",OFFSET('Smelter Look-up'!$G$4,$V906-4,0))","v":""},{"$f":"IF(ISERROR($V906),\"\",OFFSET('Smelter Look-up'!$H$4,$V906-4,0))","v":""},{"$f":"IF(ISERROR($V906),\"\",OFFSET('Smelter Look-up'!$I$4,$V906-4,0))","v":""},{"$nulls":7},{"$f":"IF(ISERROR($V906),\"\",OFFSET('Smelter Look-up'!$C$4,$V906-4,0)&\"\")","v":""},"",{"$f":"IF(B906=\"\",\"\",IF(ISERROR(MATCH($J906,SorP!$B$1:$B$6230,0)),\"\",INDIRECT(\"'SorP'!$A$\"&MATCH($J906,SorP!$B$1:$B$6230,0))))","v":""},null,{"$f":"IF(C906=\"\",NA(),MATCH($B906&$C906,'Smelter Look-up'!$J:$J,0))","v":{"$error":"#N/A"}},null,0,null,null,null,""]
[null,{"$f":"IF(LEN(A907)=0,\"\",INDEX('Smelter Look-up'!$A:$A,MATCH($A907,'Smelter Look-up'!$E:$E,0)))","v":""},{"$f":"IF(LEN(A907)=0,\"\",INDEX('Smelter Look-up'!$C:$C,MATCH($A907,'Smelter Look-up'!$E:$E,0)))","v":""},null,{"$f":"IF(ISERROR($V907),\"\",OFFSET('Smelter Look-up'!$D$4,$V907-4,0)&\"\")","v":""},{"$f":"IF(ISERROR($V907),\"\",OFFSET('Smelter Look-up'!$E$4,$V907-4,0))","v":""},{"$f":"IF(C907=$X$4,\"Enter smelter details\", IF(ISERROR($V907),\"\",OFFSET('Smelter Look-up'!$F$4,$V907-4,0)))","v":""},{"$f":"IF(ISERROR($V907),\"\",OFFSET('Smelter Look-up'!$G$4,$V907-4,0))","v":""},{"$f":"IF(ISERROR($V907),\"\",OFFSET('Smelter Look-up'!$H$4,$V907-4,0))","v":""},{"$f":"IF(ISERROR($V907),\"\",OFFSET('Smelter Look-up'!$I$4,$V907-4,0))","v":""},{"$nulls":7},{"$f":"IF(ISERROR($V907),\"\",OFFSET('Smelter Look-up'!$C$4,$V907-4,0)&\"\")","v":""},"",{"$f":"IF(B907=\"\",\"\",IF(ISERROR(MATCH($J907,SorP!$B$1:$B$6230,0)),\"\",INDIRECT(\"'SorP'!$A$\"&MATCH($J907,SorP!$B$1:$B$6230,0))))","v":""},null,{"$f":"IF(C907=\"\",NA(),MATCH($B907&$C907,'Smelter Look-up'!$J:$J,0))","v":{"$error":"#N/A"}},null,0,null,null,null,""]
[null,{"$f":"IF(LEN(A908)=0,\"\",INDEX('Smelter Look-up'!$A:$A,MATCH($A908,'Smelter Look-up'!$E:$E,0)))","v":""},{"$f":"IF(LEN(A908)=0,\"\",INDEX('Smelter Look-up'!$C:$C,MATCH($A908,'Smelter Look-up'!$E:$E,0)))","v":""},null,{"$f":"IF(ISERROR($V908),\"\",OFFSET('Smelter Look-up'!$D$4,$V908-4,0)&\"\")","v":""},{"$f":"IF(ISERROR($V908),\"\",OFFSET('Smelter Look-up'!$E$4,$V908-4,0))","v":""},{"$f":"IF(C908=$X$4,\"Enter smelter details\", IF(ISERROR($V908),\"\",OFFSET('Smelter Look-up'!$F$4,$V908-4,0)))","v":""},{"$f":"IF(ISERROR($V908),\"\",OFFSET('Smelter Look-up'!$G$4,$V908-4,0))","v":""},{"$f":"IF(ISERROR($V908),\"\",OFFSET('Smelter Look-up'!$H$4,$V908-4,0))","v":""},{"$f":"IF(ISERROR($V908),\"\",OFFSET('Smelter Look-up'!$I$4,$V908-4,0))","v":""},{"$nulls":7},{"$f":"IF(ISERROR($V908),\"\",OFFSET('Smelter Look-up'!$C$4,$V908-4,0)&\"\")","v":""},"",{"$f":"IF(B908=\"\",\"\",IF(ISERROR(MATCH($J908,SorP!$B$1:$B$6230,0)),\"\",INDIRECT(\"'SorP'!$A$\"&MATCH($J908,SorP!$B$1:$B$6230,0))))","v":""},null,{"$f":"IF(C908=\"\",NA(),MATCH($B908&$C908,'Smelter Look-up'!$J:$J,0))","v":{"$error":"#N/A"}},null,0,null,null,null,""]
[null,{"$f":"IF(LEN(A909)=0,\"\",INDEX('Smelter Look-up'!$A:$A,MATCH($A909,'Smelter Look-up'!$E:$E,0)))","v":""},{"$f":"IF(LEN(A909)=0,\"\",INDEX('Smelter Look-up'!$C:$C,MATCH($A909,'Smelter Look-up'!$E:$E,0)))","v":""},null,{"$f":"IF(ISERROR($V909),\"\",OFFSET('Smelter Look-up'!$D$4,$V909-4,0)&\"\")","v":""},{"$f":"IF(ISERROR($V909),\"\",OFFSET('Smelter Look-up'!$E$4,$V909-4,0))","v":""},{"$f":"IF(C909=$X$4,\"Enter smelter details\", IF(ISERROR($V909),\"\",OFFSET('Smelter Look-up'!$F$4,$V909-4,0)))","v":""},{"$f":"IF(ISERROR($V909),\"\",OFFSET('Smelter Look-up'!$G$4,$V909-4,0))","v":""},{"$f":"IF(ISERROR($V909),\"\",OFFSET('Smelter Look-up'!$H$4,$V909-4,0))","v":""},{"$f":"IF(ISERROR($V909),\"\",OFFSET('Smelter Look-up'!$I$4,$V909-4,0))","v":""},{"$nulls":7},{"$f":"IF(ISERROR($V909),\"\",OFFSET('Smelter Look-up'!$C$4,$V909-4,0)&\"\")","v":""},"",{"$f":"IF(B909=\"\",\"\",IF(ISERROR(MATCH($J909,SorP!$B$1:$B$6230,0)),\"\",INDIRECT(\"'SorP'!$A$\"&MATCH($J909,SorP!$B$1:$B$6230,0))))","v":""},null,{"$f":"IF(C909=\"\",NA(),MATCH($B909&$C909,'Smelter Look-up'!$J:$J,0))","v":{"$error":"#N/A"}},null,0,null,null,null,""]
[null,{"$f":"IF(LEN(A910)=0,\"\",INDEX('Smelter Look-up'!$A:$A,MATCH($A910,'Smelter Look-up'!$E:$E,0)))","v":""},{"$f":"IF(LEN(A910)=0,\"\",INDEX('Smelter Look-up'!$C:$C,MATCH($A910,'Smelter Look-up'!$E:$E,0)))","v":""},null,{"$f":"IF(ISERROR($V910),\"\",OFFSET('Smelter Look-up'!$D$4,$V910-4,0)&\"\")","v":""},{"$f":"IF(ISERROR($V910),\"\",OFFSET('Smelter Look-up'!$E$4,$V910-4,0))","v":""},{"$f":"IF(C910=$X$4,\"Enter smelter details\", IF(ISERROR($V910),\"\",OFFSET('Smelter Look-up'!$F$4,$V910-4,0)))","v":""},{"$f":"IF(ISERROR($V910),\"\",OFFSET('Smelter Look-up'!$G$4,$V910-4,0))","v":""},{"$f":"IF(ISERROR($V910),\"\",OFFSET('Smelter Look-up'!$H$4,$V910-4,0))","v":""},{"$f":"IF(ISERROR($V910),\"\",OFFSET('Smelter Look-up'!$I$4,$V910-4,0))","v":""},{"$nulls":7},{"$f":"IF(ISERROR($V910),\"\",OFFSET('Smelter Look-up'!$C$4,$V910-4,0)&\"\")","v":""},"",{"$f":"IF(B910=\"\",\"\",IF(ISERROR(MATCH($J910,SorP!$B$1:$B$6230,0)),\"\",INDIRECT(\"'SorP'!$A$\"&MATCH($J910,SorP!$B$1:$B$6230,0))))","v":""},null,{"$f":"IF(C910=\"\",NA(),MATCH($B910&$C910,'Smelter Look-up'!$J:$J,0))","v":{"$error":"#N/A"}},null,0,null,null,null,""]
[null,{"$f":"IF(LEN(A911)=0,\"\",INDEX('Smelter Look-up'!$A:$A,MATCH($A911,'Smelter Look-up'!$E:$E,0)))","v":""},{"$f":"IF(LEN(A911)=0,\"\",INDEX('Smelter Look-up'!$C:$C,MATCH($A911,'Smelter Look-up'!$E:$E,0)))","v":""},null,{"$f":"IF(ISERROR($V911),\"\",OFFSET('Smelter Look-up'!$D$4,$V911-4,0)&\"\")","v":""},{"$f":"IF(ISERROR($V911),\"\",OFFSET('Smelter Look-up'!$E$4,$V911-4,0))","v":""},{"$f":"IF(C911=$X$4,\"Enter smelter details\", IF(ISERROR($V911),\"\",OFFSET('Smelter Look-up'!$F$4,$V911-4,0)))","v":""},{"$f":"IF(ISERROR($V911),\"\",OFFSET('Smelter Look-up'!$G$4,$V911-4,0))","v":""},{"$f":"IF(ISERROR($V911),\"\",OFFSET('Smelter Look-up'!$H$4,$V911-4,0))","v":""},{"$f":"IF(ISERROR($V911),\"\",OFFSET('Smelter Look-up'!$I$4,$V911-4,0))","v":""},{"$nulls":7},{"$f":"IF(ISERROR($V911),\"\",OFFSET('Smelter Look-up'!$C$4,$V911-4,0)&\"\")","v":""},"",{"$f":"IF(B911=\"\",\"\",IF(ISERROR(MATCH($J911,SorP!$B$1:$B$6230,0)),\"\",INDIRECT(\"'SorP'!$A$\"&MATCH($J911,SorP!$B$1:$B$6230,0))))","v":""},null,{"$f":"IF(C911=\"\",NA(),MATCH($B911&$C911,'Smelter Look-up'!$J:$J,0))","v":{"$error":"#N/A"}},null,0,null,null,null,""]
[null,{"$f":"IF(LEN(A912)=0,\"\",INDEX('Smelter Look-up'!$A:$A,MATCH($A912,'Smelter Look-up'!$E:$E,0)))","v":""},{"$f":"IF(LEN(A912)=0,\"\",INDEX('Smelter Look-up'!$C:$C,MATCH($A912,'Smelter Look-up'!$E:$E,0)))","v":""},null,{"$f":"IF(ISERROR($V912),\"\",OFFSET('Smelter Look-up'!$D$4,$V912-4,0)&\"\")","v":""},{"$f":"IF(ISERROR($V912),\"\",OFFSET('Smelter Look-up'!$E$4,$V912-4,0))","v":""},{"$f":"IF(C912=$X$4,\"Enter smelter details\", IF(ISERROR($V912),\"\",OFFSET('Smelter Look-up'!$F$4,$V912-4,0)))","v":""},{"$f":"IF(ISERROR($V912),\"\",OFFSET('Smelter Look-up'!$G$4,$V912-4,0))","v":""},{"$f":"IF(ISERROR($V912),\"\",OFFSET('Smelter Look-up'!$H$4,$V912-4,0))","v":""},{"$f":"IF(ISERROR($V912),\"\",OFFSET('Smelter Look-up'!$I$4,$V912-4,0))","v":""},{"$nulls":7},{"$f":"IF(ISERROR($V912),\"\",OFFSET('Smelter Look-up'!$C$4,$V912-4,0)&\"\")","v":""},"",{"$f":"IF(B912=\"\",\"\",IF(ISERROR(MATCH($J912,SorP!$B$1:$B$6230,0)),\"\",INDIRECT(\"'SorP'!$A$\"&MATCH($J912,SorP!$B$1:$B$6230,0))))","v":""},null,{"$f":"IF(C912=\"\",NA(),MATCH($B912&$C912,'Smelter Look-up'!$J:$J,0))","v":{"$error":"#N/A"}},null,0,null,null,null,""]
[null,{"$f":"IF(LEN(A913)=0,\"\",INDEX('Smelter Look-up'!$A:$A,MATCH($A913,'Smelter Look-up'!$E:$E,0)))","v":""},{"$f":"IF(LEN(A913)=0,\"\",INDEX('Smelter Look-up'!$C:$C,MATCH($A913,'Smelter Look-up'!$E:$E,0)))","v":""},null,{"$f":"IF(ISERROR($V913),\"\",OFFSET('Smelter Look-up'!$D$4,$V913-4,0)&\"\")","v":""},{"$f":"IF(ISERROR($V913),\"\",OFFSET('Smelter Look-up'!$E$4,$V913-4,0))","v":""},{"$f":"IF(C913=$X$4,\"Enter smelter details\", IF(ISERROR($V913),\"\",OFFSET('Smelter Look-up'!$F$4,$V913-4,0)))","v":""},{"$f":"IF(ISERROR($V913),\"\",OFFSET('Smelter Look-up'!$G$4,$V913-4,0))","v":""},{"$f":"IF(ISERROR($V913),\"\",OFFSET('Smelter Look-up'!$H$4,$V913-4,0))","v":""},{"$f":"IF(ISERROR($V913),\"\",OFFSET('Smelter Look-up'!$I$4,$V913-4,0))","v":""},{"$nulls":7},{"$f":"IF(ISERROR($V913),\"\",OFFSET('Smelter Look-up'!$C$4,$V913-4,0)&\"\")","v":""},"",{"$f":"IF(B913=\"\",\"\",IF(ISERROR(MATCH($J913,SorP!$B$1:$B$6230,0)),\"\",INDIRECT(\"'SorP'!$A$\"&MATCH($J913,SorP!$B$1:$B$6230,0))))","v":""},null,{"$f":"IF(C913=\"\",NA(),MATCH($B913&$C913,'Smelter Look-up'!$J:$J,0))","v":{"$error":"#N/A"}},null,0,null,null,null,""]
[null,{"$f":"IF(LEN(A914)=0,\"\",INDEX('Smelter Look-up'!$A:$A,MATCH($A914,'Smelter Look-up'!$E:$E,0)))","v":""},{"$f":"IF(LEN(A914)=0,\"\",INDEX('Smelter Look-up'!$C:$C,MATCH($A914,'Smelter Look-up'!$E:$E,0)))","v":""},null,{"$f":"IF(ISERROR($V914),\"\",OFFSET('Smelter Look-up'!$D$4,$V914-4,0)&\"\")","v":""},{"$f":"IF(ISERROR($V914),\"\",OFFSET('Smelter Look-up'!$E$4,$V914-4,0))","v":""},{"$f":"IF(C914=$X$4,\"Enter smelter details\", IF(ISERROR($V914),\"\",OFFSET('Smelter Look-up'!$F$4,$V914-4,0)))","v":""},{"$f":"IF(ISERROR($V914),\"\",OFFSET('Smelter Look-up'!$G$4,$V914-4,0))","v":""},{"$f":"IF(ISERROR($V914),\"\",OFFSET('Smelter Look-up'!$H$4,$V914-4,0))","v":""},{"$f":"IF(ISERROR($V914),\"\",OFFSET('Smelter Look-up'!$I$4,$V914-4,0))","v":""},{"$nulls":7},{"$f":"IF(ISERROR($V914),\"\",OFFSET('Smelter Look-up'!$C$4,$V914-4,0)&\"\")","v":""},"",{"$f":"IF(B914=\"\",\"\",IF(ISERROR(MATCH($J914,SorP!$B$1:$B$6230,0)),\"\",INDIRECT(\"'SorP'!$A$\"&MATCH($J914,SorP!$B$1:$B$6230,0))))","v":""},null,{"$f":"IF(C914=\"\",NA(),MATCH($B914&$C914,'Smelter Look-up'!$J:$J,0))","v":{"$error":"#N/A"}},null,0,null,null,null,""]
[null,{"$f":"IF(LEN(A915)=0,\"\",INDEX('Smelter Look-up'!$A:$A,MATCH($A915,'Smelter Look-up'!$E:$E,0)))","v":""},{"$f":"IF(LEN(A915)=0,\"\",INDEX('Smelter Look-up'!$C:$C,MATCH($A915,'Smelter Look-up'!$E:$E,0)))","v":""},null,{"$f":"IF(ISERROR($V915),\"\",OFFSET('Smelter Look-up'!$D$4,$V915-4,0)&\"\")","v":""},{"$f":"IF(ISERROR($V915),\"\",OFFSET('Smelter Look-up'!$E$4,$V915-4,0))","v":""},{"$f":"IF(C915=$X$4,\"Enter smelter details\", IF(ISERROR($V915),\"\",OFFSET('Smelter Look-up'!$F$4,$V915-4,0)))","v":""},{"$f":"IF(ISERROR($V915),\"\",OFFSET('Smelter Look-up'!$G$4,$V915-4,0))","v":""},{"$f":"IF(ISERROR($V915),\"\",OFFSET('Smelter Look-up'!$H$4,$V915-4,0))","v":""},{"$f":"IF(ISERROR($V915),\"\",OFFSET('Smelter Look-up'!$I$4,$V915-4,0))","v":""},{"$nulls":7},{"$f":"IF(ISERROR($V915),\"\",OFFSET('Smelter Look-up'!$C$4,$V915-4,0)&\"\")","v":""},"",{"$f":"IF(B915=\"\",\"\",IF(ISERROR(MATCH($J915,SorP!$B$1:$B$6230,0)),\"\",INDIRECT(\"'SorP'!$A$\"&MATCH($J915,SorP!$B$1:$B$6230,0))))","v":""},null,{"$f":"IF(C915=\"\",NA(),MATCH($B915&$C915,'Smelter Look-up'!$J:$J,0))","v":{"$error":"#N/A"}},null,0,null,null,null,""]
[null,{"$f":"IF(LEN(A916)=0,\"\",INDEX('Smelter Look-up'!$A:$A,MATCH($A916,'Smelter Look-up'!$E:$E,0)))","v":""},{"$f":"IF(LEN(A916)=0,\"\",INDEX('Smelter Look-up'!$C:$C,MATCH($A916,'Smelter Look-up'!$E:$E,0)))","v":""},null,{"$f":"IF(ISERROR($V916),\"\",OFFSET('Smelter Look-up'!$D$4,$V916-4,0)&\"\")","v":""},{"$f":"IF(ISERROR($V916),\"\",OFFSET('Smelter Look-up'!$E$4,$V916-4,0))","v":""},{"$f":"IF(C916=$X$4,\"Enter smelter details\", IF(ISERROR($V916),\"\",OFFSET('Smelter Look-up'!$F$4,$V916-4,0)))","v":""},{"$f":"IF(ISERROR($V916),\"\",OFFSET('Smelter Look-up'!$G$4,$V916-4,0))","v":""},{"$f":"IF(ISERROR($V916),\"\",OFFSET('Smelter Look-up'!$H$4,$V916-4,0))","v":""},{"$f":"IF(ISERROR($V916),\"\",OFFSET('Smelter Look-up'!$I$4,$V916-4,0))","v":""},{"$nulls":7},{"$f":"IF(ISERROR($V916),\"\",OFFSET('Smelter Look-up'!$C$4,$V916-4,0)&\"\")","v":""},"",{"$f":"IF(B916=\"\",\"\",IF(ISERROR(MATCH($J916,SorP!$B$1:$B$6230,0)),\"\",INDIRECT(\"'SorP'!$A$\"&MATCH($J916,SorP!$B$1:$B$6230,0))))","v":""},null,{"$f":"IF(C916=\"\",NA(),MATCH($B916&$C916,'Smelter Look-up'!$J:$J,0))","v":{"$error":"#N/A"}},null,0,null,null,null,""]
[null,{"$f":"IF(LEN(A917)=0,\"\",INDEX('Smelter Look-up'!$A:$A,MATCH($A917,'Smelter Look-up'!$E:$E,0)))","v":""},{"$f":"IF(LEN(A917)=0,\"\",INDEX('Smelter Look-up'!$C:$C,MATCH($A917,'Smelter Look-up'!$E:$E,0)))","v":""},null,{"$f":"IF(ISERROR($V917),\"\",OFFSET('Smelter Look-up'!$D$4,$V917-4,0)&\"\")","v":""},{"$f":"IF(ISERROR($V917),\"\",OFFSET('Smelter Look-up'!$E$4,$V917-4,0))","v":""},{"$f":"IF(C917=$X$4,\"Enter smelter details\", IF(ISERROR($V917),\"\",OFFSET('Smelter Look-up'!$F$4,$V917-4,0)))","v":""},{"$f":"IF(ISERROR($V917),\"\",OFFSET('Smelter Look-up'!$G$4,$V917-4,0))","v":""},{"$f":"IF(ISERROR($V917),\"\",OFFSET('Smelter Look-up'!$H$4,$V917-4,0))","v":""},{"$f":"IF(ISERROR($V917),\"\",OFFSET('Smelter Look-up'!$I$4,$V917-4,0))","v":""},{"$nulls":7},{"$f":"IF(ISERROR($V917),\"\",OFFSET('Smelter Look-up'!$C$4,$V917-4,0)&\"\")","v":""},"",{"$f":"IF(B917=\"\",\"\",IF(ISERROR(MATCH($J917,SorP!$B$1:$B$6230,0)),\"\",INDIRECT(\"'SorP'!$A$\"&MATCH($J917,SorP!$B$1:$B$6230,0))))","v":""},null,{"$f":"IF(C917=\"\",NA(),MATCH($B917&$C917,'Smelter Look-up'!$J:$J,0))","v":{"$error":"#N/A"}},null,0,null,null,null,""]
[null,{"$f":"IF(LEN(A918)=0,\"\",INDEX('Smelter Look-up'!$A:$A,MATCH($A918,'Smelter Look-up'!$E:$E,0)))","v":""},{"$f":"IF(LEN(A918)=0,\"\",INDEX('Smelter Look-up'!$C:$C,MATCH($A918,'Smelter Look-up'!$E:$E,0)))","v":""},null,{"$f":"IF(ISERROR($V918),\"\",OFFSET('Smelter Look-up'!$D$4,$V918-4,0)&\"\")","v":""},{"$f":"IF(ISERROR($V918),\"\",OFFSET('Smelter Look-up'!$E$4,$V918-4,0))","v":""},{"$f":"IF(C918=$X$4,\"Enter smelter details\", IF(ISERROR($V918),\"\",OFFSET('Smelter Look-up'!$F$4,$V918-4,0)))","v":""},{"$f":"IF(ISERROR($V918),\"\",OFFSET('Smelter Look-up'!$G$4,$V918-4,0))","v":""},{"$f":"IF(ISERROR($V918),\"\",OFFSET('Smelter Look-up'!$H$4,$V918-4,0))","v":""},{"$f":"IF(ISERROR($V918),\"\",OFFSET('Smelter Look-up'!$I$4,$V918-4,0))","v":""},{"$nulls":7},{"$f":"IF(ISERROR($V918),\"\",OFFSET('Smelter Look-up'!$C$4,$V918-4,0)&\"\")","v":""},"",{"$f":"IF(B918=\"\",\"\",IF(ISERROR(MATCH($J918,SorP!$B$1:$B$6230,0)),\"\",INDIRECT(\"'SorP'!$A$\"&MATCH($J918,SorP!$B$1:$B$6230,0))))","v":""},null,{"$f":"IF(C918=\"\",NA(),MATCH($B918&$C918,'Smelter Look-up'!$J:$J,0))","v":{"$error":"#N/A"}},null,0,null,null,null,""]
[null,{"$f":"IF(LEN(A919)=0,\"\",INDEX('Smelter Look-up'!$A:$A,MATCH($A919,'Smelter Look-up'!$E:$E,0)))","v":""},{"$f":"IF(LEN(A919)=0,\"\",INDEX('Smelter Look-up'!$C:$C,MATCH($A919,'Smelter Look-up'!$E:$E,0)))","v":""},null,{"$f":"IF(ISERROR($V919),\"\",OFFSET('Smelter Look-up'!$D$4,$V919-4,0)&\"\")","v":""},{"$f":"IF(ISERROR($V919),\"\",OFFSET('Smelter Look-up'!$E$4,$V919-4,0))","v":""},{"$f":"IF(C919=$X$4,\"Enter smelter details\", IF(ISERROR($V919),\"\",OFFSET('Smelter Look-up'!$F$4,$V919-4,0)))","v":""},{"$f":"IF(ISERROR($V919),\"\",OFFSET('Smelter Look-up'!$G$4,$V919-4,0))","v":""},{"$f":"IF(ISERROR($V919),\"\",OFFSET('Smelter Look-up'!$H$4,$V919-4,0))","v":""},{"$f":"IF(ISERROR($V919),\"\",OFFSET('Smelter Look-up'!$I$4,$V919-4,0))","v":""},{"$nulls":7},{"$f":"IF(ISERROR($V919),\"\",OFFSET('Smelter Look-up'!$C$4,$V919-4,0)&\"\")","v":""},"",{"$f":"IF(B919=\"\",\"\",IF(ISERROR(MATCH($J919,SorP!$B$1:$B$6230,0)),\"\",INDIRECT(\"'SorP'!$A$\"&MATCH($J919,SorP!$B$1:$B$6230,0))))","v":""},null,{"$f":"IF(C919=\"\",NA(),MATCH($B919&$C919,'Smelter Look-up'!$J:$J,0))","v":{"$error":"#N/A"}},null,0,null,null,null,""]
[null,{"$f":"IF(LEN(A920)=0,\"\",INDEX('Smelter Look-up'!$A:$A,MATCH($A920,'Smelter Look-up'!$E:$E,0)))","v":""},{"$f":"IF(LEN(A920)=0,\"\",INDEX('Smelter Look-up'!$C:$C,MATCH($A920,'Smelter Look-up'!$E:$E,0)))","v":""},null,{"$f":"IF(ISERROR($V920),\"\",OFFSET('Smelter Look-up'!$D$4,$V920-4,0)&\"\")","v":""},{"$f":"IF(ISERROR($V920),\"\",OFFSET('Smelter Look-up'!$E$4,$V920-4,0))","v":""},{"$f":"IF(C920=$X$4,\"Enter smelter details\", IF(ISERROR($V920),\"\",OFFSET('Smelter Look-up'!$F$4,$V920-4,0)))","v":""},{"$f":"IF(ISERROR($V920),\"\",OFFSET('Smelter Look-up'!$G$4,$V920-4,0))","v":""},{"$f":"IF(ISERROR($V920),\"\",OFFSET('Smelter Look-up'!$H$4,$V920-4,0))","v":""},{"$f":"IF(ISERROR($V920),\"\",OFFSET('Smelter Look-up'!$I$4,$V920-4,0))","v":""},{"$nulls":7},{"$f":"IF(ISERROR($V920),\"\",OFFSET('Smelter Look-up'!$C$4,$V920-4,0)&\"\")","v":""},"",{"$f":"IF(B920=\"\",\"\",IF(ISERROR(MATCH($J920,SorP!$B$1:$B$6230,0)),\"\",INDIRECT(\"'SorP'!$A$\"&MATCH($J920,SorP!$B$1:$B$6230,0))))","v":""},null,{"$f":"IF(C920=\"\",NA(),MATCH($B920&$C920,'Smelter Look-up'!$J:$J,0))","v":{"$error":"#N/A"}},null,0,null,null,null,""]
[null,{"$f":"IF(LEN(A921)=0,\"\",INDEX('Smelter Look-up'!$A:$A,MATCH($A921,'Smelter Look-up'!$E:$E,0)))","v":""},{"$f":"IF(LEN(A921)=0,\"\",INDEX('Smelter Look-up'!$C:$C,MATCH($A921,'Smelter Look-up'!$E:$E,0)))","v":""},null,{"$f":"IF(ISERROR($V921),\"\",OFFSET('Smelter Look-up'!$D$4,$V921-4,0)&\"\")","v":""},{"$f":"IF(ISERROR($V921),\"\",OFFSET('Smelter Look-up'!$E$4,$V921-4,0))","v":""},{"$f":"IF(C921=$X$4,\"Enter smelter details\", IF(ISERROR($V921),\"\",OFFSET('Smelter Look-up'!$F$4,$V921-4,0)))","v":""},{"$f":"IF(ISERROR($V921),\"\",OFFSET('Smelter Look-up'!$G$4,$V921-4,0))","v":""},{"$f":"IF(ISERROR($V921),\"\",OFFSET('Smelter Look-up'!$H$4,$V921-4,0))","v":""},{"$f":"IF(ISERROR($V921),\"\",OFFSET('Smelter Look-up'!$I$4,$V921-4,0))","v":""},{"$nulls":7},{"$f":"IF(ISERROR($V921),\"\",OFFSET('Smelter Look-up'!$C$4,$V921-4,0)&\"\")","v":""},"",{"$f":"IF(B921=\"\",\"\",IF(ISERROR(MATCH($J921,SorP!$B$1:$B$6230,0)),\"\",INDIRECT(\"'SorP'!$A$\"&MATCH($J921,SorP!$B$1:$B$6230,0))))","v":""},null,{"$f":"IF(C921=\"\",NA(),MATCH($B921&$C921,'Smelter Look-up'!$J:$J,0))","v":{"$error":"#N/A"}},null,0,null,null,null,""]
[null,{"$f":"IF(LEN(A922)=0,\"\",INDEX('Smelter Look-up'!$A:$A,MATCH($A922,'Smelter Look-up'!$E:$E,0)))","v":""},{"$f":"IF(LEN(A922)=0,\"\",INDEX('Smelter Look-up'!$C:$C,MATCH($A922,'Smelter Look-up'!$E:$E,0)))","v":""},null,{"$f":"IF(ISERROR($V922),\"\",OFFSET('Smelter Look-up'!$D$4,$V922-4,0)&\"\")","v":""},{"$f":"IF(ISERROR($V922),\"\",OFFSET('Smelter Look-up'!$E$4,$V922-4,0))","v":""},{"$f":"IF(C922=$X$4,\"Enter smelter details\", IF(ISERROR($V922),\"\",OFFSET('Smelter Look-up'!$F$4,$V922-4,0)))","v":""},{"$f":"IF(ISERROR($V922),\"\",OFFSET('Smelter Look-up'!$G$4,$V922-4,0))","v":""},{"$f":"IF(ISERROR($V922),\"\",OFFSET('Smelter Look-up'!$H$4,$V922-4,0))","v":""},{"$f":"IF(ISERROR($V922),\"\",OFFSET('Smelter Look-up'!$I$4,$V922-4,0))","v":""},{"$nulls":7},{"$f":"IF(ISERROR($V922),\"\",OFFSET('Smelter Look-up'!$C$4,$V922-4,0)&\"\")","v":""},"",{"$f":"IF(B922=\"\",\"\",IF(ISERROR(MATCH($J922,SorP!$B$1:$B$6230,0)),\"\",INDIRECT(\"'SorP'!$A$\"&MATCH($J922,SorP!$B$1:$B$6230,0))))","v":""},null,{"$f":"IF(C922=\"\",NA(),MATCH($B922&$C922,'Smelter Look-up'!$J:$J,0))","v":{"$error":"#N/A"}},null,0,null,null,null,""]
[null,{"$f":"IF(LEN(A923)=0,\"\",INDEX('Smelter Look-up'!$A:$A,MATCH($A923,'Smelter Look-up'!$E:$E,0)))","v":""},{"$f":"IF(LEN(A923)=0,\"\",INDEX('Smelter Look-up'!$C:$C,MATCH($A923,'Smelter Look-up'!$E:$E,0)))","v":""},null,{"$f":"IF(ISERROR($V923),\"\",OFFSET('Smelter Look-up'!$D$4,$V923-4,0)&\"\")","v":""},{"$f":"IF(ISERROR($V923),\"\",OFFSET('Smelter Look-up'!$E$4,$V923-4,0))","v":""},{"$f":"IF(C923=$X$4,\"Enter smelter details\", IF(ISERROR($V923),\"\",OFFSET('Smelter Look-up'!$F$4,$V923-4,0)))","v":""},{"$f":"IF(ISERROR($V923),\"\",OFFSET('Smelter Look-up'!$G$4,$V923-4,0))","v":""},{"$f":"IF(ISERROR($V923),\"\",OFFSET('Smelter Look-up'!$H$4,$V923-4,0))","v":""},{"$f":"IF(ISERROR($V923),\"\",OFFSET('Smelter Look-up'!$I$4,$V923-4,0))","v":""},{"$nulls":7},{"$f":"IF(ISERROR($V923),\"\",OFFSET('Smelter Look-up'!$C$4,$V923-4,0)&\"\")","v":""},"",{"$f":"IF(B923=\"\",\"\",IF(ISERROR(MATCH($J923,SorP!$B$1:$B$6230,0)),\"\",INDIRECT(\"'SorP'!$A$\"&MATCH($J923,SorP!$B$1:$B$6230,0))))","v":""},null,{"$f":"IF(C923=\"\",NA(),MATCH($B923&$C923,'Smelter Look-up'!$J:$J,0))","v":{"$error":"#N/A"}},null,0,null,null,null,""]
[null,{"$f":"IF(LEN(A924)=0,\"\",INDEX('Smelter Look-up'!$A:$A,MATCH($A924,'Smelter Look-up'!$E:$E,0)))","v":""},{"$f":"IF(LEN(A924)=0,\"\",INDEX('Smelter Look-up'!$C:$C,MATCH($A924,'Smelter Look-up'!$E:$E,0)))","v":""},null,{"$f":"IF(ISERROR($V924),\"\",OFFSET('Smelter Look-up'!$D$4,$V924-4,0)&\"\")","v":""},{"$f":"IF(ISERROR($V924),\"\",OFFSET('Smelter Look-up'!$E$4,$V924-4,0))","v":""},{"$f":"IF(C924=$X$4,\"Enter smelter details\", IF(ISERROR($V924),\"\",OFFSET('Smelter Look-up'!$F$4,$V924-4,0)))","v":""},{"$f":"IF(ISERROR($V924),\"\",OFFSET('Smelter Look-up'!$G$4,$V924-4,0))","v":""},{"$f":"IF(ISERROR($V924),\"\",OFFSET('Smelter Look-up'!$H$4,$V924-4,0))","v":""},{"$f":"IF(ISERROR($V924),\"\",OFFSET('Smelter Look-up'!$I$4,$V924-4,0))","v":""},{"$nulls":7},{"$f":"IF(ISERROR($V924),\"\",OFFSET('Smelter Look-up'!$C$4,$V924-4,0)&\"\")","v":""},"",{"$f":"IF(B924=\"\",\"\",IF(ISERROR(MATCH($J924,SorP!$B$1:$B$6230,0)),\"\",INDIRECT(\"'SorP'!$A$\"&MATCH($J924,SorP!$B$1:$B$6230,0))))","v":""},null,{"$f":"IF(C924=\"\",NA(),MATCH($B924&$C924,'Smelter Look-up'!$J:$J,0))","v":{"$error":"#N/A"}},null,0,null,null,null,""]
[null,{"$f":"IF(LEN(A925)=0,\"\",INDEX('Smelter Look-up'!$A:$A,MATCH($A925,'Smelter Look-up'!$E:$E,0)))","v":""},{"$f":"IF(LEN(A925)=0,\"\",INDEX('Smelter Look-up'!$C:$C,MATCH($A925,'Smelter Look-up'!$E:$E,0)))","v":""},null,{"$f":"IF(ISERROR($V925),\"\",OFFSET('Smelter Look-up'!$D$4,$V925-4,0)&\"\")","v":""},{"$f":"IF(ISERROR($V925),\"\",OFFSET('Smelter Look-up'!$E$4,$V925-4,0))","v":""},{"$f":"IF(C925=$X$4,\"Enter smelter details\", IF(ISERROR($V925),\"\",OFFSET('Smelter Look-up'!$F$4,$V925-4,0)))","v":""},{"$f":"IF(ISERROR($V925),\"\",OFFSET('Smelter Look-up'!$G$4,$V925-4,0))","v":""},{"$f":"IF(ISERROR($V925),\"\",OFFSET('Smelter Look-up'!$H$4,$V925-4,0))","v":""},{"$f":"IF(ISERROR($V925),\"\",OFFSET('Smelter Look-up'!$I$4,$V925-4,0))","v":""},{"$nulls":7},{"$f":"IF(ISERROR($V925),\"\",OFFSET('Smelter Look-up'!$C$4,$V925-4,0)&\"\")","v":""},"",{"$f":"IF(B925=\"\",\"\",IF(ISERROR(MATCH($J925,SorP!$B$1:$B$6230,0)),\"\",INDIRECT(\"'SorP'!$A$\"&MATCH($J925,SorP!$B$1:$B$6230,0))))","v":""},null,{"$f":"IF(C925=\"\",NA(),MATCH($B925&$C925,'Smelter Look-up'!$J:$J,0))","v":{"$error":"#N/A"}},null,0,null,null,null,""]
[null,{"$f":"IF(LEN(A926)=0,\"\",INDEX('Smelter Look-up'!$A:$A,MATCH($A926,'Smelter Look-up'!$E:$E,0)))","v":""},{"$f":"IF(LEN(A926)=0,\"\",INDEX('Smelter Look-up'!$C:$C,MATCH($A926,'Smelter Look-up'!$E:$E,0)))","v":""},null,{"$f":"IF(ISERROR($V926),\"\",OFFSET('Smelter Look-up'!$D$4,$V926-4,0)&\"\")","v":""},{"$f":"IF(ISERROR($V926),\"\",OFFSET('Smelter Look-up'!$E$4,$V926-4,0))","v":""},{"$f":"IF(C926=$X$4,\"Enter smelter details\", IF(ISERROR($V926),\"\",OFFSET('Smelter Look-up'!$F$4,$V926-4,0)))","v":""},{"$f":"IF(ISERROR($V926),\"\",OFFSET('Smelter Look-up'!$G$4,$V926-4,0))","v":""},{"$f":"IF(ISERROR($V926),\"\",OFFSET('Smelter Look-up'!$H$4,$V926-4,0))","v":""},{"$f":"IF(ISERROR($V926),\"\",OFFSET('Smelter Look-up'!$I$4,$V926-4,0))","v":""},{"$nulls":7},{"$f":"IF(ISERROR($V926),\"\",OFFSET('Smelter Look-up'!$C$4,$V926-4,0)&\"\")","v":""},"",{"$f":"IF(B926=\"\",\"\",IF(ISERROR(MATCH($J926,SorP!$B$1:$B$6230,0)),\"\",INDIRECT(\"'SorP'!$A$\"&MATCH($J926,SorP!$B$1:$B$6230,0))))","v":""},null,{"$f":"IF(C926=\"\",NA(),MATCH($B926&$C926,'Smelter Look-up'!$J:$J,0))","v":{"$error":"#N/A"}},null,0,null,null,null,""]
[null,{"$f":"IF(LEN(A927)=0,\"\",INDEX('Smelter Look-up'!$A:$A,MATCH($A927,'Smelter Look-up'!$E:$E,0)))","v":""},{"$f":"IF(LEN(A927)=0,\"\",INDEX('Smelter Look-up'!$C:$C,MATCH($A927,'Smelter Look-up'!$E:$E,0)))","v":""},null,{"$f":"IF(ISERROR($V927),\"\",OFFSET('Smelter Look-up'!$D$4,$V927-4,0)&\"\")","v":""},{"$f":"IF(ISERROR($V927),\"\",OFFSET('Smelter Look-up'!$E$4,$V927-4,0))","v":""},{"$f":"IF(C927=$X$4,\"Enter smelter details\", IF(ISERROR($V927),\"\",OFFSET('Smelter Look-up'!$F$4,$V927-4,0)))","v":""},{"$f":"IF(ISERROR($V927),\"\",OFFSET('Smelter Look-up'!$G$4,$V927-4,0))","v":""},{"$f":"IF(ISERROR($V927),\"\",OFFSET('Smelter Look-up'!$H$4,$V927-4,0))","v":""},{"$f":"IF(ISERROR($V927),\"\",OFFSET('Smelter Look-up'!$I$4,$V927-4,0))","v":""},{"$nulls":7},{"$f":"IF(ISERROR($V927),\"\",OFFSET('Smelter Look-up'!$C$4,$V927-4,0)&\"\")","v":""},"",{"$f":"IF(B927=\"\",\"\",IF(ISERROR(MATCH($J927,SorP!$B$1:$B$6230,0)),\"\",INDIRECT(\"'SorP'!$A$\"&MATCH($J927,SorP!$B$1:$B$6230,0))))","v":""},null,{"$f":"IF(C927=\"\",NA(),MATCH($B927&$C927,'Smelter Look-up'!$J:$J,0))","v":{"$error":"#N/A"}},null,0,null,null,null,""]
[null,{"$f":"IF(LEN(A928)=0,\"\",INDEX('Smelter Look-up'!$A:$A,MATCH($A928,'Smelter Look-up'!$E:$E,0)))","v":""},{"$f":"IF(LEN(A928)=0,\"\",INDEX('Smelter Look-up'!$C:$C,MATCH($A928,'Smelter Look-up'!$E:$E,0)))","v":""},null,{"$f":"IF(ISERROR($V928),\"\",OFFSET('Smelter Look-up'!$D$4,$V928-4,0)&\"\")","v":""},{"$f":"IF(ISERROR($V928),\"\",OFFSET('Smelter Look-up'!$E$4,$V928-4,0))","v":""},{"$f":"IF(C928=$X$4,\"Enter smelter details\", IF(ISERROR($V928),\"\",OFFSET('Smelter Look-up'!$F$4,$V928-4,0)))","v":""},{"$f":"IF(ISERROR($V928),\"\",OFFSET('Smelter Look-up'!$G$4,$V928-4,0))","v":""},{"$f":"IF(ISERROR($V928),\"\",OFFSET('Smelter Look-up'!$H$4,$V928-4,0))","v":""},{"$f":"IF(ISERROR($V928),\"\",OFFSET('Smelter Look-up'!$I$4,$V928-4,0))","v":""},{"$nulls":7},{"$f":"IF(ISERROR($V928),\"\",OFFSET('Smelter Look-up'!$C$4,$V928-4,0)&\"\")","v":""},"",{"$f":"IF(B928=\"\",\"\",IF(ISERROR(MATCH($J928,SorP!$B$1:$B$6230,0)),\"\",INDIRECT(\"'SorP'!$A$\"&MATCH($J928,SorP!$B$1:$B$6230,0))))","v":""},null,{"$f":"IF(C928=\"\",NA(),MATCH($B928&$C928,'Smelter Look-up'!$J:$J,0))","v":{"$error":"#N/A"}},null,0,null,null,null,""]
[null,{"$f":"IF(LEN(A929)=0,\"\",INDEX('Smelter Look-up'!$A:$A,MATCH($A929,'Smelter Look-up'!$E:$E,0)))","v":""},{"$f":"IF(LEN(A929)=0,\"\",INDEX('Smelter Look-up'!$C:$C,MATCH($A929,'Smelter Look-up'!$E:$E,0)))","v":""},null,{"$f":"IF(ISERROR($V929),\"\",OFFSET('Smelter Look-up'!$D$4,$V929-4,0)&\"\")","v":""},{"$f":"IF(ISERROR($V929),\"\",OFFSET('Smelter Look-up'!$E$4,$V929-4,0))","v":""},{"$f":"IF(C929=$X$4,\"Enter smelter details\", IF(ISERROR($V929),\"\",OFFSET('Smelter Look-up'!$F$4,$V929-4,0)))","v":""},{"$f":"IF(ISERROR($V929),\"\",OFFSET('Smelter Look-up'!$G$4,$V929-4,0))","v":""},{"$f":"IF(ISERROR($V929),\"\",OFFSET('Smelter Look-up'!$H$4,$V929-4,0))","v":""},{"$f":"IF(ISERROR($V929),\"\",OFFSET('Smelter Look-up'!$I$4,$V929-4,0))","v":""},{"$nulls":7},{"$f":"IF(ISERROR($V929),\"\",OFFSET('Smelter Look-up'!$C$4,$V929-4,0)&\"\")","v":""},"",{"$f":"IF(B929=\"\",\"\",IF(ISERROR(MATCH($J929,SorP!$B$1:$B$6230,0)),\"\",INDIRECT(\"'SorP'!$A$\"&MATCH($J929,SorP!$B$1:$B$6230,0))))","v":""},null,{"$f":"IF(C929=\"\",NA(),MATCH($B929&$C929,'Smelter Look-up'!$J:$J,0))","v":{"$error":"#N/A"}},null,0,null,null,null,""]
[null,{"$f":"IF(LEN(A930)=0,\"\",INDEX('Smelter Look-up'!$A:$A,MATCH($A930,'Smelter Look-up'!$E:$E,0)))","v":""},{"$f":"IF(LEN(A930)=0,\"\",INDEX('Smelter Look-up'!$C:$C,MATCH($A930,'Smelter Look-up'!$E:$E,0)))","v":""},null,{"$f":"IF(ISERROR($V930),\"\",OFFSET('Smelter Look-up'!$D$4,$V930-4,0)&\"\")","v":""},{"$f":"IF(ISERROR($V930),\"\",OFFSET('Smelter Look-up'!$E$4,$V930-4,0))","v":""},{"$f":"IF(C930=$X$4,\"Enter smelter details\", IF(ISERROR($V930),\"\",OFFSET('Smelter Look-up'!$F$4,$V930-4,0)))","v":""},{"$f":"IF(ISERROR($V930),\"\",OFFSET('Smelter Look-up'!$G$4,$V930-4,0))","v":""},{"$f":"IF(ISERROR($V930),\"\",OFFSET('Smelter Look-up'!$H$4,$V930-4,0))","v":""},{"$f":"IF(ISERROR($V930),\"\",OFFSET('Smelter Look-up'!$I$4,$V930-4,0))","v":""},{"$nulls":7},{"$f":"IF(ISERROR($V930),\"\",OFFSET('Smelter Look-up'!$C$4,$V930-4,0)&\"\")","v":""},"",{"$f":"IF(B930=\"\",\"\",IF(ISERROR(MATCH($J930,SorP!$B$1:$B$6230,0)),\"\",INDIRECT(\"'SorP'!$A$\"&MATCH($J930,SorP!$B$1:$B$6230,0))))","v":""},null,{"$f":"IF(C930=\"\",NA(),MATCH($B930&$C930,'Smelter Look-up'!$J:$J,0))","v":{"$error":"#N/A"}},null,0,null,null,null,""]
[null,{"$f":"IF(LEN(A931)=0,\"\",INDEX('Smelter Look-up'!$A:$A,MATCH($A931,'Smelter Look-up'!$E:$E,0)))","v":""},{"$f":"IF(LEN(A931)=0,\"\",INDEX('Smelter Look-up'!$C:$C,MATCH($A931,'Smelter Look-up'!$E:$E,0)))","v":""},null,{"$f":"IF(ISERROR($V931),\"\",OFFSET('Smelter Look-up'!$D$4,$V931-4,0)&\"\")","v":""},{"$f":"IF(ISERROR($V931),\"\",OFFSET('Smelter Look-up'!$E$4,$V931-4,0))","v":""},{"$f":"IF(C931=$X$4,\"Enter smelter details\", IF(ISERROR($V931),\"\",OFFSET('Smelter Look-up'!$F$4,$V931-4,0)))","v":""},{"$f":"IF(ISERROR($V931),\"\",OFFSET('Smelter Look-up'!$G$4,$V931-4,0))","v":""},{"$f":"IF(ISERROR($V931),\"\",OFFSET('Smelter Look-up'!$H$4,$V931-4,0))","v":""},{"$f":"IF(ISERROR($V931),\"\",OFFSET('Smelter Look-up'!$I$4,$V931-4,0))","v":""},{"$nulls":7},{"$f":"IF(ISERROR($V931),\"\",OFFSET('Smelter Look-up'!$C$4,$V931-4,0)&\"\")","v":""},"",{"$f":"IF(B931=\"\",\"\",IF(ISERROR(MATCH($J931,SorP!$B$1:$B$6230,0)),\"\",INDIRECT(\"'SorP'!$A$\"&MATCH($J931,SorP!$B$1:$B$6230,0))))","v":""},null,{"$f":"IF(C931=\"\",NA(),MATCH($B931&$C931,'Smelter Look-up'!$J:$J,0))","v":{"$error":"#N/A"}},null,0,null,null,null,""]
[null,{"$f":"IF(LEN(A932)=0,\"\",INDEX('Smelter Look-up'!$A:$A,MATCH($A932,'Smelter Look-up'!$E:$E,0)))","v":""},{"$f":"IF(LEN(A932)=0,\"\",INDEX('Smelter Look-up'!$C:$C,MATCH($A932,'Smelter Look-up'!$E:$E,0)))","v":""},null,{"$f":"IF(ISERROR($V932),\"\",OFFSET('Smelter Look-up'!$D$4,$V932-4,0)&\"\")","v":""},{"$f":"IF(ISERROR($V932),\"\",OFFSET('Smelter Look-up'!$E$4,$V932-4,0))","v":""},{"$f":"IF(C932=$X$4,\"Enter smelter details\", IF(ISERROR($V932),\"\",OFFSET('Smelter Look-up'!$F$4,$V932-4,0)))","v":""},{"$f":"IF(ISERROR($V932),\"\",OFFSET('Smelter Look-up'!$G$4,$V932-4,0))","v":""},{"$f":"IF(ISERROR($V932),\"\",OFFSET('Smelter Look-up'!$H$4,$V932-4,0))","v":""},{"$f":"IF(ISERROR($V932),\"\",OFFSET('Smelter Look-up'!$I$4,$V932-4,0))","v":""},{"$nulls":7},{"$f":"IF(ISERROR($V932),\"\",OFFSET('Smelter Look-up'!$C$4,$V932-4,0)&\"\")","v":""},"",{"$f":"IF(B932=\"\",\"\",IF(ISERROR(MATCH($J932,SorP!$B$1:$B$6230,0)),\"\",INDIRECT(\"'SorP'!$A$\"&MATCH($J932,SorP!$B$1:$B$6230,0))))","v":""},null,{"$f":"IF(C932=\"\",NA(),MATCH($B932&$C932,'Smelter Look-up'!$J:$J,0))","v":{"$error":"#N/A"}},null,0,null,null,null,""]
[null,{"$f":"IF(LEN(A933)=0,\"\",INDEX('Smelter Look-up'!$A:$A,MATCH($A933,'Smelter Look-up'!$E:$E,0)))","v":""},{"$f":"IF(LEN(A933)=0,\"\",INDEX('Smelter Look-up'!$C:$C,MATCH($A933,'Smelter Look-up'!$E:$E,0)))","v":""},null,{"$f":"IF(ISERROR($V933),\"\",OFFSET('Smelter Look-up'!$D$4,$V933-4,0)&\"\")","v":""},{"$f":"IF(ISERROR($V933),\"\",OFFSET('Smelter Look-up'!$E$4,$V933-4,0))","v":""},{"$f":"IF(C933=$X$4,\"Enter smelter details\", IF(ISERROR($V933),\"\",OFFSET('Smelter Look-up'!$F$4,$V933-4,0)))","v":""},{"$f":"IF(ISERROR($V933),\"\",OFFSET('Smelter Look-up'!$G$4,$V933-4,0))","v":""},{"$f":"IF(ISERROR($V933),\"\",OFFSET('Smelter Look-up'!$H$4,$V933-4,0))","v":""},{"$f":"IF(ISERROR($V933),\"\",OFFSET('Smelter Look-up'!$I$4,$V933-4,0))","v":""},{"$nulls":7},{"$f":"IF(ISERROR($V933),\"\",OFFSET('Smelter Look-up'!$C$4,$V933-4,0)&\"\")","v":""},"",{"$f":"IF(B933=\"\",\"\",IF(ISERROR(MATCH($J933,SorP!$B$1:$B$6230,0)),\"\",INDIRECT(\"'SorP'!$A$\"&MATCH($J933,SorP!$B$1:$B$6230,0))))","v":""},null,{"$f":"IF(C933=\"\",NA(),MATCH($B933&$C933,'Smelter Look-up'!$J:$J,0))","v":{"$error":"#N/A"}},null,0,null,null,null,""]
[null,{"$f":"IF(LEN(A934)=0,\"\",INDEX('Smelter Look-up'!$A:$A,MATCH($A934,'Smelter Look-up'!$E:$E,0)))","v":""},{"$f":"IF(LEN(A934)=0,\"\",INDEX('Smelter Look-up'!$C:$C,MATCH($A934,'Smelter Look-up'!$E:$E,0)))","v":""},null,{"$f":"IF(ISERROR($V934),\"\",OFFSET('Smelter Look-up'!$D$4,$V934-4,0)&\"\")","v":""},{"$f":"IF(ISERROR($V934),\"\",OFFSET('Smelter Look-up'!$E$4,$V934-4,0))","v":""},{"$f":"IF(C934=$X$4,\"Enter smelter details\", IF(ISERROR($V934),\"\",OFFSET('Smelter Look-up'!$F$4,$V934-4,0)))","v":""},{"$f":"IF(ISERROR($V934),\"\",OFFSET('Smelter Look-up'!$G$4,$V934-4,0))","v":""},{"$f":"IF(ISERROR($V934),\"\",OFFSET('Smelter Look-up'!$H$4,$V934-4,0))","v":""},{"$f":"IF(ISERROR($V934),\"\",OFFSET('Smelter Look-up'!$I$4,$V934-4,0))","v":""},{"$nulls":7},{"$f":"IF(ISERROR($V934),\"\",OFFSET('Smelter Look-up'!$C$4,$V934-4,0)&\"\")","v":""},"",{"$f":"IF(B934=\"\",\"\",IF(ISERROR(MATCH($J934,SorP!$B$1:$B$6230,0)),\"\",INDIRECT(\"'SorP'!$A$\"&MATCH($J934,SorP!$B$1:$B$6230,0))))","v":""},null,{"$f":"IF(C934=\"\",NA(),MATCH($B934&$C934,'Smelter Look-up'!$J:$J,0))","v":{"$error":"#N/A"}},null,0,null,null,null,""]
[null,{"$f":"IF(LEN(A935)=0,\"\",INDEX('Smelter Look-up'!$A:$A,MATCH($A935,'Smelter Look-up'!$E:$E,0)))","v":""},{"$f":"IF(LEN(A935)=0,\"\",INDEX('Smelter Look-up'!$C:$C,MATCH($A935,'Smelter Look-up'!$E:$E,0)))","v":""},null,{"$f":"IF(ISERROR($V935),\"\",OFFSET('Smelter Look-up'!$D$4,$V935-4,0)&\"\")","v":""},{"$f":"IF(ISERROR($V935),\"\",OFFSET('Smelter Look-up'!$E$4,$V935-4,0))","v":""},{"$f":"IF(C935=$X$4,\"Enter smelter details\", IF(ISERROR($V935),\"\",OFFSET('Smelter Look-up'!$F$4,$V935-4,0)))","v":""},{"$f":"IF(ISERROR($V935),\"\",OFFSET('Smelter Look-up'!$G$4,$V935-4,0))","v":""},{"$f":"IF(ISERROR($V935),\"\",OFFSET('Smelter Look-up'!$H$4,$V935-4,0))","v":""},{"$f":"IF(ISERROR($V935),\"\",OFFSET('Smelter Look-up'!$I$4,$V935-4,0))","v":""},{"$nulls":7},{"$f":"IF(ISERROR($V935),\"\",OFFSET('Smelter Look-up'!$C$4,$V935-4,0)&\"\")","v":""},"",{"$f":"IF(B935=\"\",\"\",IF(ISERROR(MATCH($J935,SorP!$B$1:$B$6230,0)),\"\",INDIRECT(\"'SorP'!$A$\"&MATCH($J935,SorP!$B$1:$B$6230,0))))","v":""},null,{"$f":"IF(C935=\"\",NA(),MATCH($B935&$C935,'Smelter Look-up'!$J:$J,0))","v":{"$error":"#N/A"}},null,0,null,null,null,""]
[null,{"$f":"IF(LEN(A936)=0,\"\",INDEX('Smelter Look-up'!$A:$A,MATCH($A936,'Smelter Look-up'!$E:$E,0)))","v":""},{"$f":"IF(LEN(A936)=0,\"\",INDEX('Smelter Look-up'!$C:$C,MATCH($A936,'Smelter Look-up'!$E:$E,0)))","v":""},null,{"$f":"IF(ISERROR($V936),\"\",OFFSET('Smelter Look-up'!$D$4,$V936-4,0)&\"\")","v":""},{"$f":"IF(ISERROR($V936),\"\",OFFSET('Smelter Look-up'!$E$4,$V936-4,0))","v":""},{"$f":"IF(C936=$X$4,\"Enter smelter details\", IF(ISERROR($V936),\"\",OFFSET('Smelter Look-up'!$F$4,$V936-4,0)))","v":""},{"$f":"IF(ISERROR($V936),\"\",OFFSET('Smelter Look-up'!$G$4,$V936-4,0))","v":""},{"$f":"IF(ISERROR($V936),\"\",OFFSET('Smelter Look-up'!$H$4,$V936-4,0))","v":""},{"$f":"IF(ISERROR($V936),\"\",OFFSET('Smelter Look-up'!$I$4,$V936-4,0))","v":""},{"$nulls":7},{"$f":"IF(ISERROR($V936),\"\",OFFSET('Smelter Look-up'!$C$4,$V936-4,0)&\"\")","v":""},"",{"$f":"IF(B936=\"\",\"\",IF(ISERROR(MATCH($J936,SorP!$B$1:$B$6230,0)),\"\",INDIRECT(\"'SorP'!$A$\"&MATCH($J936,SorP!$B$1:$B$6230,0))))","v":""},null,{"$f":"IF(C936=\"\",NA(),MATCH($B936&$C936,'Smelter Look-up'!$J:$J,0))","v":{"$error":"#N/A"}},null,0,null,null,null,""]
[null,{"$f":"IF(LEN(A937)=0,\"\",INDEX('Smelter Look-up'!$A:$A,MATCH($A937,'Smelter Look-up'!$E:$E,0)))","v":""},{"$f":"IF(LEN(A937)=0,\"\",INDEX('Smelter Look-up'!$C:$C,MATCH($A937,'Smelter Look-up'!$E:$E,0)))","v":""},null,{"$f":"IF(ISERROR($V937),\"\",OFFSET('Smelter Look-up'!$D$4,$V937-4,0)&\"\")","v":""},{"$f":"IF(ISERROR($V937),\"\",OFFSET('Smelter Look-up'!$E$4,$V937-4,0))","v":""},{"$f":"IF(C937=$X$4,\"Enter smelter details\", IF(ISERROR($V937),\"\",OFFSET('Smelter Look-up'!$F$4,$V937-4,0)))","v":""},{"$f":"IF(ISERROR($V937),\"\",OFFSET('Smelter Look-up'!$G$4,$V937-4,0))","v":""},{"$f":"IF(ISERROR($V937),\"\",OFFSET('Smelter Look-up'!$H$4,$V937-4,0))","v":""},{"$f":"IF(ISERROR($V937),\"\",OFFSET('Smelter Look-up'!$I$4,$V937-4,0))","v":""},{"$nulls":7},{"$f":"IF(ISERROR($V937),\"\",OFFSET('Smelter Look-up'!$C$4,$V937-4,0)&\"\")","v":""},"",{"$f":"IF(B937=\"\",\"\",IF(ISERROR(MATCH($J937,SorP!$B$1:$B$6230,0)),\"\",INDIRECT(\"'SorP'!$A$\"&MATCH($J937,SorP!$B$1:$B$6230,0))))","v":""},null,{"$f":"IF(C937=\"\",NA(),MATCH($B937&$C937,'Smelter Look-up'!$J:$J,0))","v":{"$error":"#N/A"}},null,0,null,null,null,""]
[null,{"$f":"IF(LEN(A938)=0,\"\",INDEX('Smelter Look-up'!$A:$A,MATCH($A938,'Smelter Look-up'!$E:$E,0)))","v":""},{"$f":"IF(LEN(A938)=0,\"\",INDEX('Smelter Look-up'!$C:$C,MATCH($A938,'Smelter Look-up'!$E:$E,0)))","v":""},null,{"$f":"IF(ISERROR($V938),\"\",OFFSET('Smelter Look-up'!$D$4,$V938-4,0)&\"\")","v":""},{"$f":"IF(ISERROR($V938),\"\",OFFSET('Smelter Look-up'!$E$4,$V938-4,0))","v":""},{"$f":"IF(C938=$X$4,\"Enter smelter details\", IF(ISERROR($V938),\"\",OFFSET('Smelter Look-up'!$F$4,$V938-4,0)))","v":""},{"$f":"IF(ISERROR($V938),\"\",OFFSET('Smelter Look-up'!$G$4,$V938-4,0))","v":""},{"$f":"IF(ISERROR($V938),\"\",OFFSET('Smelter Look-up'!$H$4,$V938-4,0))","v":""},{"$f":"IF(ISERROR($V938),\"\",OFFSET('Smelter Look-up'!$I$4,$V938-4,0))","v":""},{"$nulls":7},{"$f":"IF(ISERROR($V938),\"\",OFFSET('Smelter Look-up'!$C$4,$V938-4,0)&\"\")","v":""},"",{"$f":"IF(B938=\"\",\"\",IF(ISERROR(MATCH($J938,SorP!$B$1:$B$6230,0)),\"\",INDIRECT(\"'SorP'!$A$\"&MATCH($J938,SorP!$B$1:$B$6230,0))))","v":""},null,{"$f":"IF(C938=\"\",NA(),MATCH($B938&$C938,'Smelter Look-up'!$J:$J,0))","v":{"$error":"#N/A"}},null,0,null,null,null,""]
[null,{"$f":"IF(LEN(A939)=0,\"\",INDEX('Smelter Look-up'!$A:$A,MATCH($A939,'Smelter Look-up'!$E:$E,0)))","v":""},{"$f":"IF(LEN(A939)=0,\"\",INDEX('Smelter Look-up'!$C:$C,MATCH($A939,'Smelter Look-up'!$E:$E,0)))","v":""},null,{"$f":"IF(ISERROR($V939),\"\",OFFSET('Smelter Look-up'!$D$4,$V939-4,0)&\"\")","v":""},{"$f":"IF(ISERROR($V939),\"\",OFFSET('Smelter Look-up'!$E$4,$V939-4,0))","v":""},{"$f":"IF(C939=$X$4,\"Enter smelter details\", IF(ISERROR($V939),\"\",OFFSET('Smelter Look-up'!$F$4,$V939-4,0)))","v":""},{"$f":"IF(ISERROR($V939),\"\",OFFSET('Smelter Look-up'!$G$4,$V939-4,0))","v":""},{"$f":"IF(ISERROR($V939),\"\",OFFSET('Smelter Look-up'!$H$4,$V939-4,0))","v":""},{"$f":"IF(ISERROR($V939),\"\",OFFSET('Smelter Look-up'!$I$4,$V939-4,0))","v":""},{"$nulls":7},{"$f":"IF(ISERROR($V939),\"\",OFFSET('Smelter Look-up'!$C$4,$V939-4,0)&\"\")","v":""},"",{"$f":"IF(B939=\"\",\"\",IF(ISERROR(MATCH($J939,SorP!$B$1:$B$6230,0)),\"\",INDIRECT(\"'SorP'!$A$\"&MATCH($J939,SorP!$B$1:$B$6230,0))))","v":""},null,{"$f":"IF(C939=\"\",NA(),MATCH($B939&$C939,'Smelter Look-up'!$J:$J,0))","v":{"$error":"#N/A"}},null,0,null,null,null,""]
[null,{"$f":"IF(LEN(A940)=0,\"\",INDEX('Smelter Look-up'!$A:$A,MATCH($A940,'Smelter Look-up'!$E:$E,0)))","v":""},{"$f":"IF(LEN(A940)=0,\"\",INDEX('Smelter Look-up'!$C:$C,MATCH($A940,'Smelter Look-up'!$E:$E,0)))","v":""},null,{"$f":"IF(ISERROR($V940),\"\",OFFSET('Smelter Look-up'!$D$4,$V940-4,0)&\"\")","v":""},{"$f":"IF(ISERROR($V940),\"\",OFFSET('Smelter Look-up'!$E$4,$V940-4,0))","v":""},{"$f":"IF(C940=$X$4,\"Enter smelter details\", IF(ISERROR($V940),\"\",OFFSET('Smelter Look-up'!$F$4,$V940-4,0)))","v":""},{"$f":"IF(ISERROR($V940),\"\",OFFSET('Smelter Look-up'!$G$4,$V940-4,0))","v":""},{"$f":"IF(ISERROR($V940),\"\",OFFSET('Smelter Look-up'!$H$4,$V940-4,0))","v":""},{"$f":"IF(ISERROR($V940),\"\",OFFSET('Smelter Look-up'!$I$4,$V940-4,0))","v":""},{"$nulls":7},{"$f":"IF(ISERROR($V940),\"\",OFFSET('Smelter Look-up'!$C$4,$V940-4,0)&\"\")","v":""},"",{"$f":"IF(B940=\"\",\"\",IF(ISERROR(MATCH($J940,SorP!$B$1:$B$6230,0)),\"\",INDIRECT(\"'SorP'!$A$\"&MATCH($J940,SorP!$B$1:$B$6230,0))))","v":""},null,{"$f":"IF(C940=\"\",NA(),MATCH($B940&$C940,'Smelter Look-up'!$J:$J,0))","v":{"$error":"#N/A"}},null,0,null,null,null,""]
[null,{"$f":"IF(LEN(A941)=0,\"\",INDEX('Smelter Look-up'!$A:$A,MATCH($A941,'Smelter Look-up'!$E:$E,0)))","v":""},{"$f":"IF(LEN(A941)=0,\"\",INDEX('Smelter Look-up'!$C:$C,MATCH($A941,'Smelter Look-up'!$E:$E,0)))","v":""},null,{"$f":"IF(ISERROR($V941),\"\",OFFSET('Smelter Look-up'!$D$4,$V941-4,0)&\"\")","v":""},{"$f":"IF(ISERROR($V941),\"\",OFFSET('Smelter Look-up'!$E$4,$V941-4,0))","v":""},{"$f":"IF(C941=$X$4,\"Enter smelter details\", IF(ISERROR($V941),\"\",OFFSET('Smelter Look-up'!$F$4,$V941-4,0)))","v":""},{"$f":"IF(ISERROR($V941),\"\",OFFSET('Smelter Look-up'!$G$4,$V941-4,0))","v":""},{"$f":"IF(ISERROR($V941),\"\",OFFSET('Smelter Look-up'!$H$4,$V941-4,0))","v":""},{"$f":"IF(ISERROR($V941),\"\",OFFSET('Smelter Look-up'!$I$4,$V941-4,0))","v":""},{"$nulls":7},{"$f":"IF(ISERROR($V941),\"\",OFFSET('Smelter Look-up'!$C$4,$V941-4,0)&\"\")","v":""},"",{"$f":"IF(B941=\"\",\"\",IF(ISERROR(MATCH($J941,SorP!$B$1:$B$6230,0)),\"\",INDIRECT(\"'SorP'!$A$\"&MATCH($J941,SorP!$B$1:$B$6230,0))))","v":""},null,{"$f":"IF(C941=\"\",NA(),MATCH($B941&$C941,'Smelter Look-up'!$J:$J,0))","v":{"$error":"#N/A"}},null,0,null,null,null,""]
[null,{"$f":"IF(LEN(A942)=0,\"\",INDEX('Smelter Look-up'!$A:$A,MATCH($A942,'Smelter Look-up'!$E:$E,0)))","v":""},{"$f":"IF(LEN(A942)=0,\"\",INDEX('Smelter Look-up'!$C:$C,MATCH($A942,'Smelter Look-up'!$E:$E,0)))","v":""},null,{"$f":"IF(ISERROR($V942),\"\",OFFSET('Smelter Look-up'!$D$4,$V942-4,0)&\"\")","v":""},{"$f":"IF(ISERROR($V942),\"\",OFFSET('Smelter Look-up'!$E$4,$V942-4,0))","v":""},{"$f":"IF(C942=$X$4,\"Enter smelter details\", IF(ISERROR($V942),\"\",OFFSET('Smelter Look-up'!$F$4,$V942-4,0)))","v":""},{"$f":"IF(ISERROR($V942),\"\",OFFSET('Smelter Look-up'!$G$4,$V942-4,0))","v":""},{"$f":"IF(ISERROR($V942),\"\",OFFSET('Smelter Look-up'!$H$4,$V942-4,0))","v":""},{"$f":"IF(ISERROR($V942),\"\",OFFSET('Smelter Look-up'!$I$4,$V942-4,0))","v":""},{"$nulls":7},{"$f":"IF(ISERROR($V942),\"\",OFFSET('Smelter Look-up'!$C$4,$V942-4,0)&\"\")","v":""},"",{"$f":"IF(B942=\"\",\"\",IF(ISERROR(MATCH($J942,SorP!$B$1:$B$6230,0)),\"\",INDIRECT(\"'SorP'!$A$\"&MATCH($J942,SorP!$B$1:$B$6230,0))))","v":""},null,{"$f":"IF(C942=\"\",NA(),MATCH($B942&$C942,'Smelter Look-up'!$J:$J,0))","v":{"$error":"#N/A"}},null,0,null,null,null,""]
[null,{"$f":"IF(LEN(A943)=0,\"\",INDEX('Smelter Look-up'!$A:$A,MATCH($A943,'Smelter Look-up'!$E:$E,0)))","v":""},{"$f":"IF(LEN(A943)=0,\"\",INDEX('Smelter Look-up'!$C:$C,MATCH($A943,'Smelter Look-up'!$E:$E,0)))","v":""},null,{"$f":"IF(ISERROR($V943),\"\",OFFSET('Smelter Look-up'!$D$4,$V943-4,0)&\"\")","v":""},{"$f":"IF(ISERROR($V943),\"\",OFFSET('Smelter Look-up'!$E$4,$V943-4,0))","v":""},{"$f":"IF(C943=$X$4,\"Enter smelter details\", IF(ISERROR($V943),\"\",OFFSET('Smelter Look-up'!$F$4,$V943-4,0)))","v":""},{"$f":"IF(ISERROR($V943),\"\",OFFSET('Smelter Look-up'!$G$4,$V943-4,0))","v":""},{"$f":"IF(ISERROR($V943),\"\",OFFSET('Smelter Look-up'!$H$4,$V943-4,0))","v":""},{"$f":"IF(ISERROR($V943),\"\",OFFSET('Smelter Look-up'!$I$4,$V943-4,0))","v":""},{"$nulls":7},{"$f":"IF(ISERROR($V943),\"\",OFFSET('Smelter Look-up'!$C$4,$V943-4,0)&\"\")","v":""},"",{"$f":"IF(B943=\"\",\"\",IF(ISERROR(MATCH($J943,SorP!$B$1:$B$6230,0)),\"\",INDIRECT(\"'SorP'!$A$\"&MATCH($J943,SorP!$B$1:$B$6230,0))))","v":""},null,{"$f":"IF(C943=\"\",NA(),MATCH($B943&$C943,'Smelter Look-up'!$J:$J,0))","v":{"$error":"#N/A"}},null,0,null,null,null,""]
[null,{"$f":"IF(LEN(A944)=0,\"\",INDEX('Smelter Look-up'!$A:$A,MATCH($A944,'Smelter Look-up'!$E:$E,0)))","v":""},{"$f":"IF(LEN(A944)=0,\"\",INDEX('Smelter Look-up'!$C:$C,MATCH($A944,'Smelter Look-up'!$E:$E,0)))","v":""},null,{"$f":"IF(ISERROR($V944),\"\",OFFSET('Smelter Look-up'!$D$4,$V944-4,0)&\"\")","v":""},{"$f":"IF(ISERROR($V944),\"\",OFFSET('Smelter Look-up'!$E$4,$V944-4,0))","v":""},{"$f":"IF(C944=$X$4,\"Enter smelter details\", IF(ISERROR($V944),\"\",OFFSET('Smelter Look-up'!$F$4,$V944-4,0)))","v":""},{"$f":"IF(ISERROR($V944),\"\",OFFSET('Smelter Look-up'!$G$4,$V944-4,0))","v":""},{"$f":"IF(ISERROR($V944),\"\",OFFSET('Smelter Look-up'!$H$4,$V944-4,0))","v":""},{"$f":"IF(ISERROR($V944),\"\",OFFSET('Smelter Look-up'!$I$4,$V944-4,0))","v":""},{"$nulls":7},{"$f":"IF(ISERROR($V944),\"\",OFFSET('Smelter Look-up'!$C$4,$V944-4,0)&\"\")","v":""},"",{"$f":"IF(B944=\"\",\"\",IF(ISERROR(MATCH($J944,SorP!$B$1:$B$6230,0)),\"\",INDIRECT(\"'SorP'!$A$\"&MATCH($J944,SorP!$B$1:$B$6230,0))))","v":""},null,{"$f":"IF(C944=\"\",NA(),MATCH($B944&$C944,'Smelter Look-up'!$J:$J,0))","v":{"$error":"#N/A"}},null,0,null,null,null,""]
[null,{"$f":"IF(LEN(A945)=0,\"\",INDEX('Smelter Look-up'!$A:$A,MATCH($A945,'Smelter Look-up'!$E:$E,0)))","v":""},{"$f":"IF(LEN(A945)=0,\"\",INDEX('Smelter Look-up'!$C:$C,MATCH($A945,'Smelter Look-up'!$E:$E,0)))","v":""},null,{"$f":"IF(ISERROR($V945),\"\",OFFSET('Smelter Look-up'!$D$4,$V945-4,0)&\"\")","v":""},{"$f":"IF(ISERROR($V945),\"\",OFFSET('Smelter Look-up'!$E$4,$V945-4,0))","v":""},{"$f":"IF(C945=$X$4,\"Enter smelter details\", IF(ISERROR($V945),\"\",OFFSET('Smelter Look-up'!$F$4,$V945-4,0)))","v":""},{"$f":"IF(ISERROR($V945),\"\",OFFSET('Smelter Look-up'!$G$4,$V945-4,0))","v":""},{"$f":"IF(ISERROR($V945),\"\",OFFSET('Smelter Look-up'!$H$4,$V945-4,0))","v":""},{"$f":"IF(ISERROR($V945),\"\",OFFSET('Smelter Look-up'!$I$4,$V945-4,0))","v":""},{"$nulls":7},{"$f":"IF(ISERROR($V945),\"\",OFFSET('Smelter Look-up'!$C$4,$V945-4,0)&\"\")","v":""},"",{"$f":"IF(B945=\"\",\"\",IF(ISERROR(MATCH($J945,SorP!$B$1:$B$6230,0)),\"\",INDIRECT(\"'SorP'!$A$\"&MATCH($J945,SorP!$B$1:$B$6230,0))))","v":""},null,{"$f":"IF(C945=\"\",NA(),MATCH($B945&$C945,'Smelter Look-up'!$J:$J,0))","v":{"$error":"#N/A"}},null,0,null,null,null,""]
[null,{"$f":"IF(LEN(A946)=0,\"\",INDEX('Smelter Look-up'!$A:$A,MATCH($A946,'Smelter Look-up'!$E:$E,0)))","v":""},{"$f":"IF(LEN(A946)=0,\"\",INDEX('Smelter Look-up'!$C:$C,MATCH($A946,'Smelter Look-up'!$E:$E,0)))","v":""},null,{"$f":"IF(ISERROR($V946),\"\",OFFSET('Smelter Look-up'!$D$4,$V946-4,0)&\"\")","v":""},{"$f":"IF(ISERROR($V946),\"\",OFFSET('Smelter Look-up'!$E$4,$V946-4,0))","v":""},{"$f":"IF(C946=$X$4,\"Enter smelter details\", IF(ISERROR($V946),\"\",OFFSET('Smelter Look-up'!$F$4,$V946-4,0)))","v":""},{"$f":"IF(ISERROR($V946),\"\",OFFSET('Smelter Look-up'!$G$4,$V946-4,0))","v":""},{"$f":"IF(ISERROR($V946),\"\",OFFSET('Smelter Look-up'!$H$4,$V946-4,0))","v":""},{"$f":"IF(ISERROR($V946),\"\",OFFSET('Smelter Look-up'!$I$4,$V946-4,0))","v":""},{"$nulls":7},{"$f":"IF(ISERROR($V946),\"\",OFFSET('Smelter Look-up'!$C$4,$V946-4,0)&\"\")","v":""},"",{"$f":"IF(B946=\"\",\"\",IF(ISERROR(MATCH($J946,SorP!$B$1:$B$6230,0)),\"\",INDIRECT(\"'SorP'!$A$\"&MATCH($J946,SorP!$B$1:$B$6230,0))))","v":""},null,{"$f":"IF(C946=\"\",NA(),MATCH($B946&$C946,'Smelter Look-up'!$J:$J,0))","v":{"$error":"#N/A"}},null,0,null,null,null,""]
[null,{"$f":"IF(LEN(A947)=0,\"\",INDEX('Smelter Look-up'!$A:$A,MATCH($A947,'Smelter Look-up'!$E:$E,0)))","v":""},{"$f":"IF(LEN(A947)=0,\"\",INDEX('Smelter Look-up'!$C:$C,MATCH($A947,'Smelter Look-up'!$E:$E,0)))","v":""},null,{"$f":"IF(ISERROR($V947),\"\",OFFSET('Smelter Look-up'!$D$4,$V947-4,0)&\"\")","v":""},{"$f":"IF(ISERROR($V947),\"\",OFFSET('Smelter Look-up'!$E$4,$V947-4,0))","v":""},{"$f":"IF(C947=$X$4,\"Enter smelter details\", IF(ISERROR($V947),\"\",OFFSET('Smelter Look-up'!$F$4,$V947-4,0)))","v":""},{"$f":"IF(ISERROR($V947),\"\",OFFSET('Smelter Look-up'!$G$4,$V947-4,0))","v":""},{"$f":"IF(ISERROR($V947),\"\",OFFSET('Smelter Look-up'!$H$4,$V947-4,0))","v":""},{"$f":"IF(ISERROR($V947),\"\",OFFSET('Smelter Look-up'!$I$4,$V947-4,0))","v":""},{"$nulls":7},{"$f":"IF(ISERROR($V947),\"\",OFFSET('Smelter Look-up'!$C$4,$V947-4,0)&\"\")","v":""},"",{"$f":"IF(B947=\"\",\"\",IF(ISERROR(MATCH($J947,SorP!$B$1:$B$6230,0)),\"\",INDIRECT(\"'SorP'!$A$\"&MATCH($J947,SorP!$B$1:$B$6230,0))))","v":""},null,{"$f":"IF(C947=\"\",NA(),MATCH($B947&$C947,'Smelter Look-up'!$J:$J,0))","v":{"$error":"#N/A"}},null,0,null,null,null,""]
[null,{"$f":"IF(LEN(A948)=0,\"\",INDEX('Smelter Look-up'!$A:$A,MATCH($A948,'Smelter Look-up'!$E:$E,0)))","v":""},{"$f":"IF(LEN(A948)=0,\"\",INDEX('Smelter Look-up'!$C:$C,MATCH($A948,'Smelter Look-up'!$E:$E,0)))","v":""},null,{"$f":"IF(ISERROR($V948),\"\",OFFSET('Smelter Look-up'!$D$4,$V948-4,0)&\"\")","v":""},{"$f":"IF(ISERROR($V948),\"\",OFFSET('Smelter Look-up'!$E$4,$V948-4,0))","v":""},{"$f":"IF(C948=$X$4,\"Enter smelter details\", IF(ISERROR($V948),\"\",OFFSET('Smelter Look-up'!$F$4,$V948-4,0)))","v":""},{"$f":"IF(ISERROR($V948),\"\",OFFSET('Smelter Look-up'!$G$4,$V948-4,0))","v":""},{"$f":"IF(ISERROR($V948),\"\",OFFSET('Smelter Look-up'!$H$4,$V948-4,0))","v":""},{"$f":"IF(ISERROR($V948),\"\",OFFSET('Smelter Look-up'!$I$4,$V948-4,0))","v":""},{"$nulls":7},{"$f":"IF(ISERROR($V948),\"\",OFFSET('Smelter Look-up'!$C$4,$V948-4,0)&\"\")","v":""},"",{"$f":"IF(B948=\"\",\"\",IF(ISERROR(MATCH($J948,SorP!$B$1:$B$6230,0)),\"\",INDIRECT(\"'SorP'!$A$\"&MATCH($J948,SorP!$B$1:$B$6230,0))))","v":""},null,{"$f":"IF(C948=\"\",NA(),MATCH($B948&$C948,'Smelter Look-up'!$J:$J,0))","v":{"$error":"#N/A"}},null,0,null,null,null,""]
[null,{"$f":"IF(LEN(A949)=0,\"\",INDEX('Smelter Look-up'!$A:$A,MATCH($A949,'Smelter Look-up'!$E:$E,0)))","v":""},{"$f":"IF(LEN(A949)=0,\"\",INDEX('Smelter Look-up'!$C:$C,MATCH($A949,'Smelter Look-up'!$E:$E,0)))","v":""},null,{"$f":"IF(ISERROR($V949),\"\",OFFSET('Smelter Look-up'!$D$4,$V949-4,0)&\"\")","v":""},{"$f":"IF(ISERROR($V949),\"\",OFFSET('Smelter Look-up'!$E$4,$V949-4,0))","v":""},{"$f":"IF(C949=$X$4,\"Enter smelter details\", IF(ISERROR($V949),\"\",OFFSET('Smelter Look-up'!$F$4,$V949-4,0)))","v":""},{"$f":"IF(ISERROR($V949),\"\",OFFSET('Smelter Look-up'!$G$4,$V949-4,0))","v":""},{"$f":"IF(ISERROR($V949),\"\",OFFSET('Smelter Look-up'!$H$4,$V949-4,0))","v":""},{"$f":"IF(ISERROR($V949),\"\",OFFSET('Smelter Look-up'!$I$4,$V949-4,0))","v":""},{"$nulls":7},{"$f":"IF(ISERROR($V949),\"\",OFFSET('Smelter Look-up'!$C$4,$V949-4,0)&\"\")","v":""},"",{"$f":"IF(B949=\"\",\"\",IF(ISERROR(MATCH($J949,SorP!$B$1:$B$6230,0)),\"\",INDIRECT(\"'SorP'!$A$\"&MATCH($J949,SorP!$B$1:$B$6230,0))))","v":""},null,{"$f":"IF(C949=\"\",NA(),MATCH($B949&$C949,'Smelter Look-up'!$J:$J,0))","v":{"$error":"#N/A"}},null,0,null,null,null,""]
[null,{"$f":"IF(LEN(A950)=0,\"\",INDEX('Smelter Look-up'!$A:$A,MATCH($A950,'Smelter Look-up'!$E:$E,0)))","v":""},{"$f":"IF(LEN(A950)=0,\"\",INDEX('Smelter Look-up'!$C:$C,MATCH($A950,'Smelter Look-up'!$E:$E,0)))","v":""},null,{"$f":"IF(ISERROR($V950),\"\",OFFSET('Smelter Look-up'!$D$4,$V950-4,0)&\"\")","v":""},{"$f":"IF(ISERROR($V950),\"\",OFFSET('Smelter Look-up'!$E$4,$V950-4,0))","v":""},{"$f":"IF(C950=$X$4,\"Enter smelter details\", IF(ISERROR($V950),\"\",OFFSET('Smelter Look-up'!$F$4,$V950-4,0)))","v":""},{"$f":"IF(ISERROR($V950),\"\",OFFSET('Smelter Look-up'!$G$4,$V950-4,0))","v":""},{"$f":"IF(ISERROR($V950),\"\",OFFSET('Smelter Look-up'!$H$4,$V950-4,0))","v":""},{"$f":"IF(ISERROR($V950),\"\",OFFSET('Smelter Look-up'!$I$4,$V950-4,0))","v":""},{"$nulls":7},{"$f":"IF(ISERROR($V950),\"\",OFFSET('Smelter Look-up'!$C$4,$V950-4,0)&\"\")","v":""},"",{"$f":"IF(B950=\"\",\"\",IF(ISERROR(MATCH($J950,SorP!$B$1:$B$6230,0)),\"\",INDIRECT(\"'SorP'!$A$\"&MATCH($J950,SorP!$B$1:$B$6230,0))))","v":""},null,{"$f":"IF(C950=\"\",NA(),MATCH($B950&$C950,'Smelter Look-up'!$J:$J,0))","v":{"$error":"#N/A"}},null,0,null,null,null,""]
[null,{"$f":"IF(LEN(A951)=0,\"\",INDEX('Smelter Look-up'!$A:$A,MATCH($A951,'Smelter Look-up'!$E:$E,0)))","v":""},{"$f":"IF(LEN(A951)=0,\"\",INDEX('Smelter Look-up'!$C:$C,MATCH($A951,'Smelter Look-up'!$E:$E,0)))","v":""},null,{"$f":"IF(ISERROR($V951),\"\",OFFSET('Smelter Look-up'!$D$4,$V951-4,0)&\"\")","v":""},{"$f":"IF(ISERROR($V951),\"\",OFFSET('Smelter Look-up'!$E$4,$V951-4,0))","v":""},{"$f":"IF(C951=$X$4,\"Enter smelter details\", IF(ISERROR($V951),\"\",OFFSET('Smelter Look-up'!$F$4,$V951-4,0)))","v":""},{"$f":"IF(ISERROR($V951),\"\",OFFSET('Smelter Look-up'!$G$4,$V951-4,0))","v":""},{"$f":"IF(ISERROR($V951),\"\",OFFSET('Smelter Look-up'!$H$4,$V951-4,0))","v":""},{"$f":"IF(ISERROR($V951),\"\",OFFSET('Smelter Look-up'!$I$4,$V951-4,0))","v":""},{"$nulls":7},{"$f":"IF(ISERROR($V951),\"\",OFFSET('Smelter Look-up'!$C$4,$V951-4,0)&\"\")","v":""},"",{"$f":"IF(B951=\"\",\"\",IF(ISERROR(MATCH($J951,SorP!$B$1:$B$6230,0)),\"\",INDIRECT(\"'SorP'!$A$\"&MATCH($J951,SorP!$B$1:$B$6230,0))))","v":""},null,{"$f":"IF(C951=\"\",NA(),MATCH($B951&$C951,'Smelter Look-up'!$J:$J,0))","v":{"$error":"#N/A"}},null,0,null,null,null,""]
[null,{"$f":"IF(LEN(A952)=0,\"\",INDEX('Smelter Look-up'!$A:$A,MATCH($A952,'Smelter Look-up'!$E:$E,0)))","v":""},{"$f":"IF(LEN(A952)=0,\"\",INDEX('Smelter Look-up'!$C:$C,MATCH($A952,'Smelter Look-up'!$E:$E,0)))","v":""},null,{"$f":"IF(ISERROR($V952),\"\",OFFSET('Smelter Look-up'!$D$4,$V952-4,0)&\"\")","v":""},{"$f":"IF(ISERROR($V952),\"\",OFFSET('Smelter Look-up'!$E$4,$V952-4,0))","v":""},{"$f":"IF(C952=$X$4,\"Enter smelter details\", IF(ISERROR($V952),\"\",OFFSET('Smelter Look-up'!$F$4,$V952-4,0)))","v":""},{"$f":"IF(ISERROR($V952),\"\",OFFSET('Smelter Look-up'!$G$4,$V952-4,0))","v":""},{"$f":"IF(ISERROR($V952),\"\",OFFSET('Smelter Look-up'!$H$4,$V952-4,0))","v":""},{"$f":"IF(ISERROR($V952),\"\",OFFSET('Smelter Look-up'!$I$4,$V952-4,0))","v":""},{"$nulls":7},{"$f":"IF(ISERROR($V952),\"\",OFFSET('Smelter Look-up'!$C$4,$V952-4,0)&\"\")","v":""},"",{"$f":"IF(B952=\"\",\"\",IF(ISERROR(MATCH($J952,SorP!$B$1:$B$6230,0)),\"\",INDIRECT(\"'SorP'!$A$\"&MATCH($J952,SorP!$B$1:$B$6230,0))))","v":""},null,{"$f":"IF(C952=\"\",NA(),MATCH($B952&$C952,'Smelter Look-up'!$J:$J,0))","v":{"$error":"#N/A"}},null,0,null,null,null,""]
[null,{"$f":"IF(LEN(A953)=0,\"\",INDEX('Smelter Look-up'!$A:$A,MATCH($A953,'Smelter Look-up'!$E:$E,0)))","v":""},{"$f":"IF(LEN(A953)=0,\"\",INDEX('Smelter Look-up'!$C:$C,MATCH($A953,'Smelter Look-up'!$E:$E,0)))","v":""},null,{"$f":"IF(ISERROR($V953),\"\",OFFSET('Smelter Look-up'!$D$4,$V953-4,0)&\"\")","v":""},{"$f":"IF(ISERROR($V953),\"\",OFFSET('Smelter Look-up'!$E$4,$V953-4,0))","v":""},{"$f":"IF(C953=$X$4,\"Enter smelter details\", IF(ISERROR($V953),\"\",OFFSET('Smelter Look-up'!$F$4,$V953-4,0)))","v":""},{"$f":"IF(ISERROR($V953),\"\",OFFSET('Smelter Look-up'!$G$4,$V953-4,0))","v":""},{"$f":"IF(ISERROR($V953),\"\",OFFSET('Smelter Look-up'!$H$4,$V953-4,0))","v":""},{"$f":"IF(ISERROR($V953),\"\",OFFSET('Smelter Look-up'!$I$4,$V953-4,0))","v":""},{"$nulls":7},{"$f":"IF(ISERROR($V953),\"\",OFFSET('Smelter Look-up'!$C$4,$V953-4,0)&\"\")","v":""},"",{"$f":"IF(B953=\"\",\"\",IF(ISERROR(MATCH($J953,SorP!$B$1:$B$6230,0)),\"\",INDIRECT(\"'SorP'!$A$\"&MATCH($J953,SorP!$B$1:$B$6230,0))))","v":""},null,{"$f":"IF(C953=\"\",NA(),MATCH($B953&$C953,'Smelter Look-up'!$J:$J,0))","v":{"$error":"#N/A"}},null,0,null,null,null,""]
[null,{"$f":"IF(LEN(A954)=0,\"\",INDEX('Smelter Look-up'!$A:$A,MATCH($A954,'Smelter Look-up'!$E:$E,0)))","v":""},{"$f":"IF(LEN(A954)=0,\"\",INDEX('Smelter Look-up'!$C:$C,MATCH($A954,'Smelter Look-up'!$E:$E,0)))","v":""},null,{"$f":"IF(ISERROR($V954),\"\",OFFSET('Smelter Look-up'!$D$4,$V954-4,0)&\"\")","v":""},{"$f":"IF(ISERROR($V954),\"\",OFFSET('Smelter Look-up'!$E$4,$V954-4,0))","v":""},{"$f":"IF(C954=$X$4,\"Enter smelter details\", IF(ISERROR($V954),\"\",OFFSET('Smelter Look-up'!$F$4,$V954-4,0)))","v":""},{"$f":"IF(ISERROR($V954),\"\",OFFSET('Smelter Look-up'!$G$4,$V954-4,0))","v":""},{"$f":"IF(ISERROR($V954),\"\",OFFSET('Smelter Look-up'!$H$4,$V954-4,0))","v":""},{"$f":"IF(ISERROR($V954),\"\",OFFSET('Smelter Look-up'!$I$4,$V954-4,0))","v":""},{"$nulls":7},{"$f":"IF(ISERROR($V954),\"\",OFFSET('Smelter Look-up'!$C$4,$V954-4,0)&\"\")","v":""},"",{"$f":"IF(B954=\"\",\"\",IF(ISERROR(MATCH($J954,SorP!$B$1:$B$6230,0)),\"\",INDIRECT(\"'SorP'!$A$\"&MATCH($J954,SorP!$B$1:$B$6230,0))))","v":""},null,{"$f":"IF(C954=\"\",NA(),MATCH($B954&$C954,'Smelter Look-up'!$J:$J,0))","v":{"$error":"#N/A"}},null,0,null,null,null,""]
[null,{"$f":"IF(LEN(A955)=0,\"\",INDEX('Smelter Look-up'!$A:$A,MATCH($A955,'Smelter Look-up'!$E:$E,0)))","v":""},{"$f":"IF(LEN(A955)=0,\"\",INDEX('Smelter Look-up'!$C:$C,MATCH($A955,'Smelter Look-up'!$E:$E,0)))","v":""},null,{"$f":"IF(ISERROR($V955),\"\",OFFSET('Smelter Look-up'!$D$4,$V955-4,0)&\"\")","v":""},{"$f":"IF(ISERROR($V955),\"\",OFFSET('Smelter Look-up'!$E$4,$V955-4,0))","v":""},{"$f":"IF(C955=$X$4,\"Enter smelter details\", IF(ISERROR($V955),\"\",OFFSET('Smelter Look-up'!$F$4,$V955-4,0)))","v":""},{"$f":"IF(ISERROR($V955),\"\",OFFSET('Smelter Look-up'!$G$4,$V955-4,0))","v":""},{"$f":"IF(ISERROR($V955),\"\",OFFSET('Smelter Look-up'!$H$4,$V955-4,0))","v":""},{"$f":"IF(ISERROR($V955),\"\",OFFSET('Smelter Look-up'!$I$4,$V955-4,0))","v":""},{"$nulls":7},{"$f":"IF(ISERROR($V955),\"\",OFFSET('Smelter Look-up'!$C$4,$V955-4,0)&\"\")","v":""},{"$f":"IF(B955=\"\",\"\",IF(ISERROR(MATCH($E955,CL,0)),\"Unknown\",INDIRECT(\"'C'!$A$\"&MATCH($E955,CL,0)+1)))","v":""},{"$f":"IF(B955=\"\",\"\",IF(ISERROR(MATCH($J955,SorP!$B$1:$B$6230,0)),\"\",INDIRECT(\"'SorP'!$A$\"&MATCH($J955,SorP!$B$1:$B$6230,0))))","v":""},null,{"$f":"IF(C955=\"\",NA(),MATCH($B955&$C955,'Smelter Look-up'!$J:$J,0))","v":{"$error":"#N/A"}},null,{"$f":"IF(AND(C955=\"Smelter not listed\",OR(LEN(D955)=0,LEN(E955)=0)),1,0)","v":0},null,null,null,{"$f":"B955&C955","v":""}]
[null,{"$f":"IF(LEN(A956)=0,\"\",INDEX('Smelter Look-up'!$A:$A,MATCH($A956,'Smelter Look-up'!$E:$E,0)))","v":""},{"$f":"IF(LEN(A956)=0,\"\",INDEX('Smelter Look-up'!$C:$C,MATCH($A956,'Smelter Look-up'!$E:$E,0)))","v":""},null,{"$f":"IF(ISERROR($V956),\"\",OFFSET('Smelter Look-up'!$D$4,$V956-4,0)&\"\")","v":""},{"$f":"IF(ISERROR($V956),\"\",OFFSET('Smelter Look-up'!$E$4,$V956-4,0))","v":""},{"$f":"IF(C956=$X$4,\"Enter smelter details\", IF(ISERROR($V956),\"\",OFFSET('Smelter Look-up'!$F$4,$V956-4,0)))","v":""},{"$f":"IF(ISERROR($V956),\"\",OFFSET('Smelter Look-up'!$G$4,$V956-4,0))","v":""},{"$f":"IF(ISERROR($V956),\"\",OFFSET('Smelter Look-up'!$H$4,$V956-4,0))","v":""},{"$f":"IF(ISERROR($V956),\"\",OFFSET('Smelter Look-up'!$I$4,$V956-4,0))","v":""},{"$nulls":7},{"$f":"IF(ISERROR($V956),\"\",OFFSET('Smelter Look-up'!$C$4,$V956-4,0)&\"\")","v":""},"",{"$f":"IF(B956=\"\",\"\",IF(ISERROR(MATCH($J956,SorP!$B$1:$B$6230,0)),\"\",INDIRECT(\"'SorP'!$A$\"&MATCH($J956,SorP!$B$1:$B$6230,0))))","v":""},null,{"$f":"IF(C956=\"\",NA(),MATCH($B956&$C956,'Smelter Look-up'!$J:$J,0))","v":{"$error":"#N/A"}},null,0,null,null,null,""]
[null,{"$f":"IF(LEN(A957)=0,\"\",INDEX('Smelter Look-up'!$A:$A,MATCH($A957,'Smelter Look-up'!$E:$E,0)))","v":""},{"$f":"IF(LEN(A957)=0,\"\",INDEX('Smelter Look-up'!$C:$C,MATCH($A957,'Smelter Look-up'!$E:$E,0)))","v":""},null,{"$f":"IF(ISERROR($V957),\"\",OFFSET('Smelter Look-up'!$D$4,$V957-4,0)&\"\")","v":""},{"$f":"IF(ISERROR($V957),\"\",OFFSET('Smelter Look-up'!$E$4,$V957-4,0))","v":""},{"$f":"IF(C957=$X$4,\"Enter smelter details\", IF(ISERROR($V957),\"\",OFFSET('Smelter Look-up'!$F$4,$V957-4,0)))","v":""},{"$f":"IF(ISERROR($V957),\"\",OFFSET('Smelter Look-up'!$G$4,$V957-4,0))","v":""},{"$f":"IF(ISERROR($V957),\"\",OFFSET('Smelter Look-up'!$H$4,$V957-4,0))","v":""},{"$f":"IF(ISERROR($V957),\"\",OFFSET('Smelter Look-up'!$I$4,$V957-4,0))","v":""},{"$nulls":7},{"$f":"IF(ISERROR($V957),\"\",OFFSET('Smelter Look-up'!$C$4,$V957-4,0)&\"\")","v":""},"",{"$f":"IF(B957=\"\",\"\",IF(ISERROR(MATCH($J957,SorP!$B$1:$B$6230,0)),\"\",INDIRECT(\"'SorP'!$A$\"&MATCH($J957,SorP!$B$1:$B$6230,0))))","v":""},null,{"$f":"IF(C957=\"\",NA(),MATCH($B957&$C957,'Smelter Look-up'!$J:$J,0))","v":{"$error":"#N/A"}},null,0,null,null,null,""]
[null,{"$f":"IF(LEN(A958)=0,\"\",INDEX('Smelter Look-up'!$A:$A,MATCH($A958,'Smelter Look-up'!$E:$E,0)))","v":""},{"$f":"IF(LEN(A958)=0,\"\",INDEX('Smelter Look-up'!$C:$C,MATCH($A958,'Smelter Look-up'!$E:$E,0)))","v":""},null,{"$f":"IF(ISERROR($V958),\"\",OFFSET('Smelter Look-up'!$D$4,$V958-4,0)&\"\")","v":""},{"$f":"IF(ISERROR($V958),\"\",OFFSET('Smelter Look-up'!$E$4,$V958-4,0))","v":""},{"$f":"IF(C958=$X$4,\"Enter smelter details\", IF(ISERROR($V958),\"\",OFFSET('Smelter Look-up'!$F$4,$V958-4,0)))","v":""},{"$f":"IF(ISERROR($V958),\"\",OFFSET('Smelter Look-up'!$G$4,$V958-4,0))","v":""},{"$f":"IF(ISERROR($V958),\"\",OFFSET('Smelter Look-up'!$H$4,$V958-4,0))","v":""},{"$f":"IF(ISERROR($V958),\"\",OFFSET('Smelter Look-up'!$I$4,$V958-4,0))","v":""},{"$nulls":7},{"$f":"IF(ISERROR($V958),\"\",OFFSET('Smelter Look-up'!$C$4,$V958-4,0)&\"\")","v":""},"",{"$f":"IF(B958=\"\",\"\",IF(ISERROR(MATCH($J958,SorP!$B$1:$B$6230,0)),\"\",INDIRECT(\"'SorP'!$A$\"&MATCH($J958,SorP!$B$1:$B$6230,0))))","v":""},null,{"$f":"IF(C958=\"\",NA(),MATCH($B958&$C958,'Smelter Look-up'!$J:$J,0))","v":{"$error":"#N/A"}},null,0,null,null,null,""]
[null,{"$f":"IF(LEN(A959)=0,\"\",INDEX('Smelter Look-up'!$A:$A,MATCH($A959,'Smelter Look-up'!$E:$E,0)))","v":""},{"$f":"IF(LEN(A959)=0,\"\",INDEX('Smelter Look-up'!$C:$C,MATCH($A959,'Smelter Look-up'!$E:$E,0)))","v":""},null,{"$f":"IF(ISERROR($V959),\"\",OFFSET('Smelter Look-up'!$D$4,$V959-4,0)&\"\")","v":""},{"$f":"IF(ISERROR($V959),\"\",OFFSET('Smelter Look-up'!$E$4,$V959-4,0))","v":""},{"$f":"IF(C959=$X$4,\"Enter smelter details\", IF(ISERROR($V959),\"\",OFFSET('Smelter Look-up'!$F$4,$V959-4,0)))","v":""},{"$f":"IF(ISERROR($V959),\"\",OFFSET('Smelter Look-up'!$G$4,$V959-4,0))","v":""},{"$f":"IF(ISERROR($V959),\"\",OFFSET('Smelter Look-up'!$H$4,$V959-4,0))","v":""},{"$f":"IF(ISERROR($V959),\"\",OFFSET('Smelter Look-up'!$I$4,$V959-4,0))","v":""},{"$nulls":7},{"$f":"IF(ISERROR($V959),\"\",OFFSET('Smelter Look-up'!$C$4,$V959-4,0)&\"\")","v":""},"",{"$f":"IF(B959=\"\",\"\",IF(ISERROR(MATCH($J959,SorP!$B$1:$B$6230,0)),\"\",INDIRECT(\"'SorP'!$A$\"&MATCH($J959,SorP!$B$1:$B$6230,0))))","v":""},null,{"$f":"IF(C959=\"\",NA(),MATCH($B959&$C959,'Smelter Look-up'!$J:$J,0))","v":{"$error":"#N/A"}},null,0,null,null,null,""]
[null,{"$f":"IF(LEN(A960)=0,\"\",INDEX('Smelter Look-up'!$A:$A,MATCH($A960,'Smelter Look-up'!$E:$E,0)))","v":""},{"$f":"IF(LEN(A960)=0,\"\",INDEX('Smelter Look-up'!$C:$C,MATCH($A960,'Smelter Look-up'!$E:$E,0)))","v":""},null,{"$f":"IF(ISERROR($V960),\"\",OFFSET('Smelter Look-up'!$D$4,$V960-4,0)&\"\")","v":""},{"$f":"IF(ISERROR($V960),\"\",OFFSET('Smelter Look-up'!$E$4,$V960-4,0))","v":""},{"$f":"IF(C960=$X$4,\"Enter smelter details\", IF(ISERROR($V960),\"\",OFFSET('Smelter Look-up'!$F$4,$V960-4,0)))","v":""},{"$f":"IF(ISERROR($V960),\"\",OFFSET('Smelter Look-up'!$G$4,$V960-4,0))","v":""},{"$f":"IF(ISERROR($V960),\"\",OFFSET('Smelter Look-up'!$H$4,$V960-4,0))","v":""},{"$f":"IF(ISERROR($V960),\"\",OFFSET('Smelter Look-up'!$I$4,$V960-4,0))","v":""},{"$nulls":7},{"$f":"IF(ISERROR($V960),\"\",OFFSET('Smelter Look-up'!$C$4,$V960-4,0)&\"\")","v":""},"",{"$f":"IF(B960=\"\",\"\",IF(ISERROR(MATCH($J960,SorP!$B$1:$B$6230,0)),\"\",INDIRECT(\"'SorP'!$A$\"&MATCH($J960,SorP!$B$1:$B$6230,0))))","v":""},null,{"$f":"IF(C960=\"\",NA(),MATCH($B960&$C960,'Smelter Look-up'!$J:$J,0))","v":{"$error":"#N/A"}},null,0,null,null,null,""]
[null,{"$f":"IF(LEN(A961)=0,\"\",INDEX('Smelter Look-up'!$A:$A,MATCH($A961,'Smelter Look-up'!$E:$E,0)))","v":""},{"$f":"IF(LEN(A961)=0,\"\",INDEX('Smelter Look-up'!$C:$C,MATCH($A961,'Smelter Look-up'!$E:$E,0)))","v":""},null,{"$f":"IF(ISERROR($V961),\"\",OFFSET('Smelter Look-up'!$D$4,$V961-4,0)&\"\")","v":""},{"$f":"IF(ISERROR($V961),\"\",OFFSET('Smelter Look-up'!$E$4,$V961-4,0))","v":""},{"$f":"IF(C961=$X$4,\"Enter smelter details\", IF(ISERROR($V961),\"\",OFFSET('Smelter Look-up'!$F$4,$V961-4,0)))","v":""},{"$f":"IF(ISERROR($V961),\"\",OFFSET('Smelter Look-up'!$G$4,$V961-4,0))","v":""},{"$f":"IF(ISERROR($V961),\"\",OFFSET('Smelter Look-up'!$H$4,$V961-4,0))","v":""},{"$f":"IF(ISERROR($V961),\"\",OFFSET('Smelter Look-up'!$I$4,$V961-4,0))","v":""},{"$nulls":7},{"$f":"IF(ISERROR($V961),\"\",OFFSET('Smelter Look-up'!$C$4,$V961-4,0)&\"\")","v":""},"",{"$f":"IF(B961=\"\",\"\",IF(ISERROR(MATCH($J961,SorP!$B$1:$B$6230,0)),\"\",INDIRECT(\"'SorP'!$A$\"&MATCH($J961,SorP!$B$1:$B$6230,0))))","v":""},null,{"$f":"IF(C961=\"\",NA(),MATCH($B961&$C961,'Smelter Look-up'!$J:$J,0))","v":{"$error":"#N/A"}},null,0,null,null,null,""]
[null,{"$f":"IF(LEN(A962)=0,\"\",INDEX('Smelter Look-up'!$A:$A,MATCH($A962,'Smelter Look-up'!$E:$E,0)))","v":""},{"$f":"IF(LEN(A962)=0,\"\",INDEX('Smelter Look-up'!$C:$C,MATCH($A962,'Smelter Look-up'!$E:$E,0)))","v":""},null,{"$f":"IF(ISERROR($V962),\"\",OFFSET('Smelter Look-up'!$D$4,$V962-4,0)&\"\")","v":""},{"$f":"IF(ISERROR($V962),\"\",OFFSET('Smelter Look-up'!$E$4,$V962-4,0))","v":""},{"$f":"IF(C962=$X$4,\"Enter smelter details\", IF(ISERROR($V962),\"\",OFFSET('Smelter Look-up'!$F$4,$V962-4,0)))","v":""},{"$f":"IF(ISERROR($V962),\"\",OFFSET('Smelter Look-up'!$G$4,$V962-4,0))","v":""},{"$f":"IF(ISERROR($V962),\"\",OFFSET('Smelter Look-up'!$H$4,$V962-4,0))","v":""},{"$f":"IF(ISERROR($V962),\"\",OFFSET('Smelter Look-up'!$I$4,$V962-4,0))","v":""},{"$nulls":7},{"$f":"IF(ISERROR($V962),\"\",OFFSET('Smelter Look-up'!$C$4,$V962-4,0)&\"\")","v":""},"",{"$f":"IF(B962=\"\",\"\",IF(ISERROR(MATCH($J962,SorP!$B$1:$B$6230,0)),\"\",INDIRECT(\"'SorP'!$A$\"&MATCH($J962,SorP!$B$1:$B$6230,0))))","v":""},null,{"$f":"IF(C962=\"\",NA(),MATCH($B962&$C962,'Smelter Look-up'!$J:$J,0))","v":{"$error":"#N/A"}},null,0,null,null,null,""]
[null,{"$f":"IF(LEN(A963)=0,\"\",INDEX('Smelter Look-up'!$A:$A,MATCH($A963,'Smelter Look-up'!$E:$E,0)))","v":""},{"$f":"IF(LEN(A963)=0,\"\",INDEX('Smelter Look-up'!$C:$C,MATCH($A963,'Smelter Look-up'!$E:$E,0)))","v":""},null,{"$f":"IF(ISERROR($V963),\"\",OFFSET('Smelter Look-up'!$D$4,$V963-4,0)&\"\")","v":""},{"$f":"IF(ISERROR($V963),\"\",OFFSET('Smelter Look-up'!$E$4,$V963-4,0))","v":""},{"$f":"IF(C963=$X$4,\"Enter smelter details\", IF(ISERROR($V963),\"\",OFFSET('Smelter Look-up'!$F$4,$V963-4,0)))","v":""},{"$f":"IF(ISERROR($V963),\"\",OFFSET('Smelter Look-up'!$G$4,$V963-4,0))","v":""},{"$f":"IF(ISERROR($V963),\"\",OFFSET('Smelter Look-up'!$H$4,$V963-4,0))","v":""},{"$f":"IF(ISERROR($V963),\"\",OFFSET('Smelter Look-up'!$I$4,$V963-4,0))","v":""},{"$nulls":7},{"$f":"IF(ISERROR($V963),\"\",OFFSET('Smelter Look-up'!$C$4,$V963-4,0)&\"\")","v":""},"",{"$f":"IF(B963=\"\",\"\",IF(ISERROR(MATCH($J963,SorP!$B$1:$B$6230,0)),\"\",INDIRECT(\"'SorP'!$A$\"&MATCH($J963,SorP!$B$1:$B$6230,0))))","v":""},null,{"$f":"IF(C963=\"\",NA(),MATCH($B963&$C963,'Smelter Look-up'!$J:$J,0))","v":{"$error":"#N/A"}},null,0,null,null,null,""]
[null,{"$f":"IF(LEN(A964)=0,\"\",INDEX('Smelter Look-up'!$A:$A,MATCH($A964,'Smelter Look-up'!$E:$E,0)))","v":""},{"$f":"IF(LEN(A964)=0,\"\",INDEX('Smelter Look-up'!$C:$C,MATCH($A964,'Smelter Look-up'!$E:$E,0)))","v":""},null,{"$f":"IF(ISERROR($V964),\"\",OFFSET('Smelter Look-up'!$D$4,$V964-4,0)&\"\")","v":""},{"$f":"IF(ISERROR($V964),\"\",OFFSET('Smelter Look-up'!$E$4,$V964-4,0))","v":""},{"$f":"IF(C964=$X$4,\"Enter smelter details\", IF(ISERROR($V964),\"\",OFFSET('Smelter Look-up'!$F$4,$V964-4,0)))","v":""},{"$f":"IF(ISERROR($V964),\"\",OFFSET('Smelter Look-up'!$G$4,$V964-4,0))","v":""},{"$f":"IF(ISERROR($V964),\"\",OFFSET('Smelter Look-up'!$H$4,$V964-4,0))","v":""},{"$f":"IF(ISERROR($V964),\"\",OFFSET('Smelter Look-up'!$I$4,$V964-4,0))","v":""},{"$nulls":7},{"$f":"IF(ISERROR($V964),\"\",OFFSET('Smelter Look-up'!$C$4,$V964-4,0)&\"\")","v":""},"",{"$f":"IF(B964=\"\",\"\",IF(ISERROR(MATCH($J964,SorP!$B$1:$B$6230,0)),\"\",INDIRECT(\"'SorP'!$A$\"&MATCH($J964,SorP!$B$1:$B$6230,0))))","v":""},null,{"$f":"IF(C964=\"\",NA(),MATCH($B964&$C964,'Smelter Look-up'!$J:$J,0))","v":{"$error":"#N/A"}},null,0,null,null,null,""]
[null,{"$f":"IF(LEN(A965)=0,\"\",INDEX('Smelter Look-up'!$A:$A,MATCH($A965,'Smelter Look-up'!$E:$E,0)))","v":""},{"$f":"IF(LEN(A965)=0,\"\",INDEX('Smelter Look-up'!$C:$C,MATCH($A965,'Smelter Look-up'!$E:$E,0)))","v":""},null,{"$f":"IF(ISERROR($V965),\"\",OFFSET('Smelter Look-up'!$D$4,$V965-4,0)&\"\")","v":""},{"$f":"IF(ISERROR($V965),\"\",OFFSET('Smelter Look-up'!$E$4,$V965-4,0))","v":""},{"$f":"IF(C965=$X$4,\"Enter smelter details\", IF(ISERROR($V965),\"\",OFFSET('Smelter Look-up'!$F$4,$V965-4,0)))","v":""},{"$f":"IF(ISERROR($V965),\"\",OFFSET('Smelter Look-up'!$G$4,$V965-4,0))","v":""},{"$f":"IF(ISERROR($V965),\"\",OFFSET('Smelter Look-up'!$H$4,$V965-4,0))","v":""},{"$f":"IF(ISERROR($V965),\"\",OFFSET('Smelter Look-up'!$I$4,$V965-4,0))","v":""},{"$nulls":7},{"$f":"IF(ISERROR($V965),\"\",OFFSET('Smelter Look-up'!$C$4,$V965-4,0)&\"\")","v":""},"",{"$f":"IF(B965=\"\",\"\",IF(ISERROR(MATCH($J965,SorP!$B$1:$B$6230,0)),\"\",INDIRECT(\"'SorP'!$A$\"&MATCH($J965,SorP!$B$1:$B$6230,0))))","v":""},null,{"$f":"IF(C965=\"\",NA(),MATCH($B965&$C965,'Smelter Look-up'!$J:$J,0))","v":{"$error":"#N/A"}},null,0,null,null,null,""]
[null,{"$f":"IF(LEN(A966)=0,\"\",INDEX('Smelter Look-up'!$A:$A,MATCH($A966,'Smelter Look-up'!$E:$E,0)))","v":""},{"$f":"IF(LEN(A966)=0,\"\",INDEX('Smelter Look-up'!$C:$C,MATCH($A966,'Smelter Look-up'!$E:$E,0)))","v":""},null,{"$f":"IF(ISERROR($V966),\"\",OFFSET('Smelter Look-up'!$D$4,$V966-4,0)&\"\")","v":""},{"$f":"IF(ISERROR($V966),\"\",OFFSET('Smelter Look-up'!$E$4,$V966-4,0))","v":""},{"$f":"IF(C966=$X$4,\"Enter smelter details\", IF(ISERROR($V966),\"\",OFFSET('Smelter Look-up'!$F$4,$V966-4,0)))","v":""},{"$f":"IF(ISERROR($V966),\"\",OFFSET('Smelter Look-up'!$G$4,$V966-4,0))","v":""},{"$f":"IF(ISERROR($V966),\"\",OFFSET('Smelter Look-up'!$H$4,$V966-4,0))","v":""},{"$f":"IF(ISERROR($V966),\"\",OFFSET('Smelter Look-up'!$I$4,$V966-4,0))","v":""},{"$nulls":7},{"$f":"IF(ISERROR($V966),\"\",OFFSET('Smelter Look-up'!$C$4,$V966-4,0)&\"\")","v":""},"",{"$f":"IF(B966=\"\",\"\",IF(ISERROR(MATCH($J966,SorP!$B$1:$B$6230,0)),\"\",INDIRECT(\"'SorP'!$A$\"&MATCH($J966,SorP!$B$1:$B$6230,0))))","v":""},null,{"$f":"IF(C966=\"\",NA(),MATCH($B966&$C966,'Smelter Look-up'!$J:$J,0))","v":{"$error":"#N/A"}},null,0,null,null,null,""]
[null,{"$f":"IF(LEN(A967)=0,\"\",INDEX('Smelter Look-up'!$A:$A,MATCH($A967,'Smelter Look-up'!$E:$E,0)))","v":""},{"$f":"IF(LEN(A967)=0,\"\",INDEX('Smelter Look-up'!$C:$C,MATCH($A967,'Smelter Look-up'!$E:$E,0)))","v":""},null,{"$f":"IF(ISERROR($V967),\"\",OFFSET('Smelter Look-up'!$D$4,$V967-4,0)&\"\")","v":""},{"$f":"IF(ISERROR($V967),\"\",OFFSET('Smelter Look-up'!$E$4,$V967-4,0))","v":""},{"$f":"IF(C967=$X$4,\"Enter smelter details\", IF(ISERROR($V967),\"\",OFFSET('Smelter Look-up'!$F$4,$V967-4,0)))","v":""},{"$f":"IF(ISERROR($V967),\"\",OFFSET('Smelter Look-up'!$G$4,$V967-4,0))","v":""},{"$f":"IF(ISERROR($V967),\"\",OFFSET('Smelter Look-up'!$H$4,$V967-4,0))","v":""},{"$f":"IF(ISERROR($V967),\"\",OFFSET('Smelter Look-up'!$I$4,$V967-4,0))","v":""},{"$nulls":7},{"$f":"IF(ISERROR($V967),\"\",OFFSET('Smelter Look-up'!$C$4,$V967-4,0)&\"\")","v":""},"",{"$f":"IF(B967=\"\",\"\",IF(ISERROR(MATCH($J967,SorP!$B$1:$B$6230,0)),\"\",INDIRECT(\"'SorP'!$A$\"&MATCH($J967,SorP!$B$1:$B$6230,0))))","v":""},null,{"$f":"IF(C967=\"\",NA(),MATCH($B967&$C967,'Smelter Look-up'!$J:$J,0))","v":{"$error":"#N/A"}},null,0,null,null,null,""]
[null,{"$f":"IF(LEN(A968)=0,\"\",INDEX('Smelter Look-up'!$A:$A,MATCH($A968,'Smelter Look-up'!$E:$E,0)))","v":""},{"$f":"IF(LEN(A968)=0,\"\",INDEX('Smelter Look-up'!$C:$C,MATCH($A968,'Smelter Look-up'!$E:$E,0)))","v":""},null,{"$f":"IF(ISERROR($V968),\"\",OFFSET('Smelter Look-up'!$D$4,$V968-4,0)&\"\")","v":""},{"$f":"IF(ISERROR($V968),\"\",OFFSET('Smelter Look-up'!$E$4,$V968-4,0))","v":""},{"$f":"IF(C968=$X$4,\"Enter smelter details\", IF(ISERROR($V968),\"\",OFFSET('Smelter Look-up'!$F$4,$V968-4,0)))","v":""},{"$f":"IF(ISERROR($V968),\"\",OFFSET('Smelter Look-up'!$G$4,$V968-4,0))","v":""},{"$f":"IF(ISERROR($V968),\"\",OFFSET('Smelter Look-up'!$H$4,$V968-4,0))","v":""},{"$f":"IF(ISERROR($V968),\"\",OFFSET('Smelter Look-up'!$I$4,$V968-4,0))","v":""},{"$nulls":7},{"$f":"IF(ISERROR($V968),\"\",OFFSET('Smelter Look-up'!$C$4,$V968-4,0)&\"\")","v":""},"",{"$f":"IF(B968=\"\",\"\",IF(ISERROR(MATCH($J968,SorP!$B$1:$B$6230,0)),\"\",INDIRECT(\"'SorP'!$A$\"&MATCH($J968,SorP!$B$1:$B$6230,0))))","v":""},null,{"$f":"IF(C968=\"\",NA(),MATCH($B968&$C968,'Smelter Look-up'!$J:$J,0))","v":{"$error":"#N/A"}},null,0,null,null,null,""]
[null,{"$f":"IF(LEN(A969)=0,\"\",INDEX('Smelter Look-up'!$A:$A,MATCH($A969,'Smelter Look-up'!$E:$E,0)))","v":""},{"$f":"IF(LEN(A969)=0,\"\",INDEX('Smelter Look-up'!$C:$C,MATCH($A969,'Smelter Look-up'!$E:$E,0)))","v":""},null,{"$f":"IF(ISERROR($V969),\"\",OFFSET('Smelter Look-up'!$D$4,$V969-4,0)&\"\")","v":""},{"$f":"IF(ISERROR($V969),\"\",OFFSET('Smelter Look-up'!$E$4,$V969-4,0))","v":""},{"$f":"IF(C969=$X$4,\"Enter smelter details\", IF(ISERROR($V969),\"\",OFFSET('Smelter Look-up'!$F$4,$V969-4,0)))","v":""},{"$f":"IF(ISERROR($V969),\"\",OFFSET('Smelter Look-up'!$G$4,$V969-4,0))","v":""},{"$f":"IF(ISERROR($V969),\"\",OFFSET('Smelter Look-up'!$H$4,$V969-4,0))","v":""},{"$f":"IF(ISERROR($V969),\"\",OFFSET('Smelter Look-up'!$I$4,$V969-4,0))","v":""},{"$nulls":7},{"$f":"IF(ISERROR($V969),\"\",OFFSET('Smelter Look-up'!$C$4,$V969-4,0)&\"\")","v":""},"",{"$f":"IF(B969=\"\",\"\",IF(ISERROR(MATCH($J969,SorP!$B$1:$B$6230,0)),\"\",INDIRECT(\"'SorP'!$A$\"&MATCH($J969,SorP!$B$1:$B$6230,0))))","v":""},null,{"$f":"IF(C969=\"\",NA(),MATCH($B969&$C969,'Smelter Look-up'!$J:$J,0))","v":{"$error":"#N/A"}},null,0,null,null,null,""]
[null,{"$f":"IF(LEN(A970)=0,\"\",INDEX('Smelter Look-up'!$A:$A,MATCH($A970,'Smelter Look-up'!$E:$E,0)))","v":""},{"$f":"IF(LEN(A970)=0,\"\",INDEX('Smelter Look-up'!$C:$C,MATCH($A970,'Smelter Look-up'!$E:$E,0)))","v":""},null,{"$f":"IF(ISERROR($V970),\"\",OFFSET('Smelter Look-up'!$D$4,$V970-4,0)&\"\")","v":""},{"$f":"IF(ISERROR($V970),\"\",OFFSET('Smelter Look-up'!$E$4,$V970-4,0))","v":""},{"$f":"IF(C970=$X$4,\"Enter smelter details\", IF(ISERROR($V970),\"\",OFFSET('Smelter Look-up'!$F$4,$V970-4,0)))","v":""},{"$f":"IF(ISERROR($V970),\"\",OFFSET('Smelter Look-up'!$G$4,$V970-4,0))","v":""},{"$f":"IF(ISERROR($V970),\"\",OFFSET('Smelter Look-up'!$H$4,$V970-4,0))","v":""},{"$f":"IF(ISERROR($V970),\"\",OFFSET('Smelter Look-up'!$I$4,$V970-4,0))","v":""},{"$nulls":7},{"$f":"IF(ISERROR($V970),\"\",OFFSET('Smelter Look-up'!$C$4,$V970-4,0)&\"\")","v":""},"",{"$f":"IF(B970=\"\",\"\",IF(ISERROR(MATCH($J970,SorP!$B$1:$B$6230,0)),\"\",INDIRECT(\"'SorP'!$A$\"&MATCH($J970,SorP!$B$1:$B$6230,0))))","v":""},null,{"$f":"IF(C970=\"\",NA(),MATCH($B970&$C970,'Smelter Look-up'!$J:$J,0))","v":{"$error":"#N/A"}},null,0,null,null,null,""]
[null,{"$f":"IF(LEN(A971)=0,\"\",INDEX('Smelter Look-up'!$A:$A,MATCH($A971,'Smelter Look-up'!$E:$E,0)))","v":""},{"$f":"IF(LEN(A971)=0,\"\",INDEX('Smelter Look-up'!$C:$C,MATCH($A971,'Smelter Look-up'!$E:$E,0)))","v":""},null,{"$f":"IF(ISERROR($V971),\"\",OFFSET('Smelter Look-up'!$D$4,$V971-4,0)&\"\")","v":""},{"$f":"IF(ISERROR($V971),\"\",OFFSET('Smelter Look-up'!$E$4,$V971-4,0))","v":""},{"$f":"IF(C971=$X$4,\"Enter smelter details\", IF(ISERROR($V971),\"\",OFFSET('Smelter Look-up'!$F$4,$V971-4,0)))","v":""},{"$f":"IF(ISERROR($V971),\"\",OFFSET('Smelter Look-up'!$G$4,$V971-4,0))","v":""},{"$f":"IF(ISERROR($V971),\"\",OFFSET('Smelter Look-up'!$H$4,$V971-4,0))","v":""},{"$f":"IF(ISERROR($V971),\"\",OFFSET('Smelter Look-up'!$I$4,$V971-4,0))","v":""},{"$nulls":7},{"$f":"IF(ISERROR($V971),\"\",OFFSET('Smelter Look-up'!$C$4,$V971-4,0)&\"\")","v":""},"",{"$f":"IF(B971=\"\",\"\",IF(ISERROR(MATCH($J971,SorP!$B$1:$B$6230,0)),\"\",INDIRECT(\"'SorP'!$A$\"&MATCH($J971,SorP!$B$1:$B$6230,0))))","v":""},null,{"$f":"IF(C971=\"\",NA(),MATCH($B971&$C971,'Smelter Look-up'!$J:$J,0))","v":{"$error":"#N/A"}},null,0,null,null,null,""]
[null,{"$f":"IF(LEN(A972)=0,\"\",INDEX('Smelter Look-up'!$A:$A,MATCH($A972,'Smelter Look-up'!$E:$E,0)))","v":""},{"$f":"IF(LEN(A972)=0,\"\",INDEX('Smelter Look-up'!$C:$C,MATCH($A972,'Smelter Look-up'!$E:$E,0)))","v":""},null,{"$f":"IF(ISERROR($V972),\"\",OFFSET('Smelter Look-up'!$D$4,$V972-4,0)&\"\")","v":""},{"$f":"IF(ISERROR($V972),\"\",OFFSET('Smelter Look-up'!$E$4,$V972-4,0))","v":""},{"$f":"IF(C972=$X$4,\"Enter smelter details\", IF(ISERROR($V972),\"\",OFFSET('Smelter Look-up'!$F$4,$V972-4,0)))","v":""},{"$f":"IF(ISERROR($V972),\"\",OFFSET('Smelter Look-up'!$G$4,$V972-4,0))","v":""},{"$f":"IF(ISERROR($V972),\"\",OFFSET('Smelter Look-up'!$H$4,$V972-4,0))","v":""},{"$f":"IF(ISERROR($V972),\"\",OFFSET('Smelter Look-up'!$I$4,$V972-4,0))","v":""},{"$nulls":7},{"$f":"IF(ISERROR($V972),\"\",OFFSET('Smelter Look-up'!$C$4,$V972-4,0)&\"\")","v":""},"",{"$f":"IF(B972=\"\",\"\",IF(ISERROR(MATCH($J972,SorP!$B$1:$B$6230,0)),\"\",INDIRECT(\"'SorP'!$A$\"&MATCH($J972,SorP!$B$1:$B$6230,0))))","v":""},null,{"$f":"IF(C972=\"\",NA(),MATCH($B972&$C972,'Smelter Look-up'!$J:$J,0))","v":{"$error":"#N/A"}},null,0,null,null,null,""]
[null,{"$f":"IF(LEN(A973)=0,\"\",INDEX('Smelter Look-up'!$A:$A,MATCH($A973,'Smelter Look-up'!$E:$E,0)))","v":""},{"$f":"IF(LEN(A973)=0,\"\",INDEX('Smelter Look-up'!$C:$C,MATCH($A973,'Smelter Look-up'!$E:$E,0)))","v":""},null,{"$f":"IF(ISERROR($V973),\"\",OFFSET('Smelter Look-up'!$D$4,$V973-4,0)&\"\")","v":""},{"$f":"IF(ISERROR($V973),\"\",OFFSET('Smelter Look-up'!$E$4,$V973-4,0))","v":""},{"$f":"IF(C973=$X$4,\"Enter smelter details\", IF(ISERROR($V973),\"\",OFFSET('Smelter Look-up'!$F$4,$V973-4,0)))","v":""},{"$f":"IF(ISERROR($V973),\"\",OFFSET('Smelter Look-up'!$G$4,$V973-4,0))","v":""},{"$f":"IF(ISERROR($V973),\"\",OFFSET('Smelter Look-up'!$H$4,$V973-4,0))","v":""},{"$f":"IF(ISERROR($V973),\"\",OFFSET('Smelter Look-up'!$I$4,$V973-4,0))","v":""},{"$nulls":7},{"$f":"IF(ISERROR($V973),\"\",OFFSET('Smelter Look-up'!$C$4,$V973-4,0)&\"\")","v":""},"",{"$f":"IF(B973=\"\",\"\",IF(ISERROR(MATCH($J973,SorP!$B$1:$B$6230,0)),\"\",INDIRECT(\"'SorP'!$A$\"&MATCH($J973,SorP!$B$1:$B$6230,0))))","v":""},null,{"$f":"IF(C973=\"\",NA(),MATCH($B973&$C973,'Smelter Look-up'!$J:$J,0))","v":{"$error":"#N/A"}},null,0,null,null,null,""]
[null,{"$f":"IF(LEN(A974)=0,\"\",INDEX('Smelter Look-up'!$A:$A,MATCH($A974,'Smelter Look-up'!$E:$E,0)))","v":""},{"$f":"IF(LEN(A974)=0,\"\",INDEX('Smelter Look-up'!$C:$C,MATCH($A974,'Smelter Look-up'!$E:$E,0)))","v":""},null,{"$f":"IF(ISERROR($V974),\"\",OFFSET('Smelter Look-up'!$D$4,$V974-4,0)&\"\")","v":""},{"$f":"IF(ISERROR($V974),\"\",OFFSET('Smelter Look-up'!$E$4,$V974-4,0))","v":""},{"$f":"IF(C974=$X$4,\"Enter smelter details\", IF(ISERROR($V974),\"\",OFFSET('Smelter Look-up'!$F$4,$V974-4,0)))","v":""},{"$f":"IF(ISERROR($V974),\"\",OFFSET('Smelter Look-up'!$G$4,$V974-4,0))","v":""},{"$f":"IF(ISERROR($V974),\"\",OFFSET('Smelter Look-up'!$H$4,$V974-4,0))","v":""},{"$f":"IF(ISERROR($V974),\"\",OFFSET('Smelter Look-up'!$I$4,$V974-4,0))","v":""},{"$nulls":7},{"$f":"IF(ISERROR($V974),\"\",OFFSET('Smelter Look-up'!$C$4,$V974-4,0)&\"\")","v":""},"",{"$f":"IF(B974=\"\",\"\",IF(ISERROR(MATCH($J974,SorP!$B$1:$B$6230,0)),\"\",INDIRECT(\"'SorP'!$A$\"&MATCH($J974,SorP!$B$1:$B$6230,0))))","v":""},null,{"$f":"IF(C974=\"\",NA(),MATCH($B974&$C974,'Smelter Look-up'!$J:$J,0))","v":{"$error":"#N/A"}},null,0,null,null,null,""]
[null,{"$f":"IF(LEN(A975)=0,\"\",INDEX('Smelter Look-up'!$A:$A,MATCH($A975,'Smelter Look-up'!$E:$E,0)))","v":""},{"$f":"IF(LEN(A975)=0,\"\",INDEX('Smelter Look-up'!$C:$C,MATCH($A975,'Smelter Look-up'!$E:$E,0)))","v":""},null,{"$f":"IF(ISERROR($V975),\"\",OFFSET('Smelter Look-up'!$D$4,$V975-4,0)&\"\")","v":""},{"$f":"IF(ISERROR($V975),\"\",OFFSET('Smelter Look-up'!$E$4,$V975-4,0))","v":""},{"$f":"IF(C975=$X$4,\"Enter smelter details\", IF(ISERROR($V975),\"\",OFFSET('Smelter Look-up'!$F$4,$V975-4,0)))","v":""},{"$f":"IF(ISERROR($V975),\"\",OFFSET('Smelter Look-up'!$G$4,$V975-4,0))","v":""},{"$f":"IF(ISERROR($V975),\"\",OFFSET('Smelter Look-up'!$H$4,$V975-4,0))","v":""},{"$f":"IF(ISERROR($V975),\"\",OFFSET('Smelter Look-up'!$I$4,$V975-4,0))","v":""},{"$nulls":7},{"$f":"IF(ISERROR($V975),\"\",OFFSET('Smelter Look-up'!$C$4,$V975-4,0)&\"\")","v":""},"",{"$f":"IF(B975=\"\",\"\",IF(ISERROR(MATCH($J975,SorP!$B$1:$B$6230,0)),\"\",INDIRECT(\"'SorP'!$A$\"&MATCH($J975,SorP!$B$1:$B$6230,0))))","v":""},null,{"$f":"IF(C975=\"\",NA(),MATCH($B975&$C975,'Smelter Look-up'!$J:$J,0))","v":{"$error":"#N/A"}},null,0,null,null,null,""]
[null,{"$f":"IF(LEN(A976)=0,\"\",INDEX('Smelter Look-up'!$A:$A,MATCH($A976,'Smelter Look-up'!$E:$E,0)))","v":""},{"$f":"IF(LEN(A976)=0,\"\",INDEX('Smelter Look-up'!$C:$C,MATCH($A976,'Smelter Look-up'!$E:$E,0)))","v":""},null,{"$f":"IF(ISERROR($V976),\"\",OFFSET('Smelter Look-up'!$D$4,$V976-4,0)&\"\")","v":""},{"$f":"IF(ISERROR($V976),\"\",OFFSET('Smelter Look-up'!$E$4,$V976-4,0))","v":""},{"$f":"IF(C976=$X$4,\"Enter smelter details\", IF(ISERROR($V976),\"\",OFFSET('Smelter Look-up'!$F$4,$V976-4,0)))","v":""},{"$f":"IF(ISERROR($V976),\"\",OFFSET('Smelter Look-up'!$G$4,$V976-4,0))","v":""},{"$f":"IF(ISERROR($V976),\"\",OFFSET('Smelter Look-up'!$H$4,$V976-4,0))","v":""},{"$f":"IF(ISERROR($V976),\"\",OFFSET('Smelter Look-up'!$I$4,$V976-4,0))","v":""},{"$nulls":7},{"$f":"IF(ISERROR($V976),\"\",OFFSET('Smelter Look-up'!$C$4,$V976-4,0)&\"\")","v":""},"",{"$f":"IF(B976=\"\",\"\",IF(ISERROR(MATCH($J976,SorP!$B$1:$B$6230,0)),\"\",INDIRECT(\"'SorP'!$A$\"&MATCH($J976,SorP!$B$1:$B$6230,0))))","v":""},null,{"$f":"IF(C976=\"\",NA(),MATCH($B976&$C976,'Smelter Look-up'!$J:$J,0))","v":{"$error":"#N/A"}},null,0,null,null,null,""]
[null,{"$f":"IF(LEN(A977)=0,\"\",INDEX('Smelter Look-up'!$A:$A,MATCH($A977,'Smelter Look-up'!$E:$E,0)))","v":""},{"$f":"IF(LEN(A977)=0,\"\",INDEX('Smelter Look-up'!$C:$C,MATCH($A977,'Smelter Look-up'!$E:$E,0)))","v":""},null,{"$f":"IF(ISERROR($V977),\"\",OFFSET('Smelter Look-up'!$D$4,$V977-4,0)&\"\")","v":""},{"$f":"IF(ISERROR($V977),\"\",OFFSET('Smelter Look-up'!$E$4,$V977-4,0))","v":""},{"$f":"IF(C977=$X$4,\"Enter smelter details\", IF(ISERROR($V977),\"\",OFFSET('Smelter Look-up'!$F$4,$V977-4,0)))","v":""},{"$f":"IF(ISERROR($V977),\"\",OFFSET('Smelter Look-up'!$G$4,$V977-4,0))","v":""},{"$f":"IF(ISERROR($V977),\"\",OFFSET('Smelter Look-up'!$H$4,$V977-4,0))","v":""},{"$f":"IF(ISERROR($V977),\"\",OFFSET('Smelter Look-up'!$I$4,$V977-4,0))","v":""},{"$nulls":7},{"$f":"IF(ISERROR($V977),\"\",OFFSET('Smelter Look-up'!$C$4,$V977-4,0)&\"\")","v":""},"",{"$f":"IF(B977=\"\",\"\",IF(ISERROR(MATCH($J977,SorP!$B$1:$B$6230,0)),\"\",INDIRECT(\"'SorP'!$A$\"&MATCH($J977,SorP!$B$1:$B$6230,0))))","v":""},null,{"$f":"IF(C977=\"\",NA(),MATCH($B977&$C977,'Smelter Look-up'!$J:$J,0))","v":{"$error":"#N/A"}},null,0,null,null,null,""]
[null,{"$f":"IF(LEN(A978)=0,\"\",INDEX('Smelter Look-up'!$A:$A,MATCH($A978,'Smelter Look-up'!$E:$E,0)))","v":""},{"$f":"IF(LEN(A978)=0,\"\",INDEX('Smelter Look-up'!$C:$C,MATCH($A978,'Smelter Look-up'!$E:$E,0)))","v":""},null,{"$f":"IF(ISERROR($V978),\"\",OFFSET('Smelter Look-up'!$D$4,$V978-4,0)&\"\")","v":""},{"$f":"IF(ISERROR($V978),\"\",OFFSET('Smelter Look-up'!$E$4,$V978-4,0))","v":""},{"$f":"IF(C978=$X$4,\"Enter smelter details\", IF(ISERROR($V978),\"\",OFFSET('Smelter Look-up'!$F$4,$V978-4,0)))","v":""},{"$f":"IF(ISERROR($V978),\"\",OFFSET('Smelter Look-up'!$G$4,$V978-4,0))","v":""},{"$f":"IF(ISERROR($V978),\"\",OFFSET('Smelter Look-up'!$H$4,$V978-4,0))","v":""},{"$f":"IF(ISERROR($V978),\"\",OFFSET('Smelter Look-up'!$I$4,$V978-4,0))","v":""},{"$nulls":7},{"$f":"IF(ISERROR($V978),\"\",OFFSET('Smelter Look-up'!$C$4,$V978-4,0)&\"\")","v":""},"",{"$f":"IF(B978=\"\",\"\",IF(ISERROR(MATCH($J978,SorP!$B$1:$B$6230,0)),\"\",INDIRECT(\"'SorP'!$A$\"&MATCH($J978,SorP!$B$1:$B$6230,0))))","v":""},null,{"$f":"IF(C978=\"\",NA(),MATCH($B978&$C978,'Smelter Look-up'!$J:$J,0))","v":{"$error":"#N/A"}},null,0,null,null,null,""]
[null,{"$f":"IF(LEN(A979)=0,\"\",INDEX('Smelter Look-up'!$A:$A,MATCH($A979,'Smelter Look-up'!$E:$E,0)))","v":""},{"$f":"IF(LEN(A979)=0,\"\",INDEX('Smelter Look-up'!$C:$C,MATCH($A979,'Smelter Look-up'!$E:$E,0)))","v":""},null,{"$f":"IF(ISERROR($V979),\"\",OFFSET('Smelter Look-up'!$D$4,$V979-4,0)&\"\")","v":""},{"$f":"IF(ISERROR($V979),\"\",OFFSET('Smelter Look-up'!$E$4,$V979-4,0))","v":""},{"$f":"IF(C979=$X$4,\"Enter smelter details\", IF(ISERROR($V979),\"\",OFFSET('Smelter Look-up'!$F$4,$V979-4,0)))","v":""},{"$f":"IF(ISERROR($V979),\"\",OFFSET('Smelter Look-up'!$G$4,$V979-4,0))","v":""},{"$f":"IF(ISERROR($V979),\"\",OFFSET('Smelter Look-up'!$H$4,$V979-4,0))","v":""},{"$f":"IF(ISERROR($V979),\"\",OFFSET('Smelter Look-up'!$I$4,$V979-4,0))","v":""},{"$nulls":7},{"$f":"IF(ISERROR($V979),\"\",OFFSET('Smelter Look-up'!$C$4,$V979-4,0)&\"\")","v":""},"",{"$f":"IF(B979=\"\",\"\",IF(ISERROR(MATCH($J979,SorP!$B$1:$B$6230,0)),\"\",INDIRECT(\"'SorP'!$A$\"&MATCH($J979,SorP!$B$1:$B$6230,0))))","v":""},null,{"$f":"IF(C979=\"\",NA(),MATCH($B979&$C979,'Smelter Look-up'!$J:$J,0))","v":{"$error":"#N/A"}},null,0,null,null,null,""]
[null,{"$f":"IF(LEN(A980)=0,\"\",INDEX('Smelter Look-up'!$A:$A,MATCH($A980,'Smelter Look-up'!$E:$E,0)))","v":""},{"$f":"IF(LEN(A980)=0,\"\",INDEX('Smelter Look-up'!$C:$C,MATCH($A980,'Smelter Look-up'!$E:$E,0)))","v":""},null,{"$f":"IF(ISERROR($V980),\"\",OFFSET('Smelter Look-up'!$D$4,$V980-4,0)&\"\")","v":""},{"$f":"IF(ISERROR($V980),\"\",OFFSET('Smelter Look-up'!$E$4,$V980-4,0))","v":""},{"$f":"IF(C980=$X$4,\"Enter smelter details\", IF(ISERROR($V980),\"\",OFFSET('Smelter Look-up'!$F$4,$V980-4,0)))","v":""},{"$f":"IF(ISERROR($V980),\"\",OFFSET('Smelter Look-up'!$G$4,$V980-4,0))","v":""},{"$f":"IF(ISERROR($V980),\"\",OFFSET('Smelter Look-up'!$H$4,$V980-4,0))","v":""},{"$f":"IF(ISERROR($V980),\"\",OFFSET('Smelter Look-up'!$I$4,$V980-4,0))","v":""},{"$nulls":7},{"$f":"IF(ISERROR($V980),\"\",OFFSET('Smelter Look-up'!$C$4,$V980-4,0)&\"\")","v":""},"",{"$f":"IF(B980=\"\",\"\",IF(ISERROR(MATCH($J980,SorP!$B$1:$B$6230,0)),\"\",INDIRECT(\"'SorP'!$A$\"&MATCH($J980,SorP!$B$1:$B$6230,0))))","v":""},null,{"$f":"IF(C980=\"\",NA(),MATCH($B980&$C980,'Smelter Look-up'!$J:$J,0))","v":{"$error":"#N/A"}},null,0,null,null,null,""]
[null,{"$f":"IF(LEN(A981)=0,\"\",INDEX('Smelter Look-up'!$A:$A,MATCH($A981,'Smelter Look-up'!$E:$E,0)))","v":""},{"$f":"IF(LEN(A981)=0,\"\",INDEX('Smelter Look-up'!$C:$C,MATCH($A981,'Smelter Look-up'!$E:$E,0)))","v":""},null,{"$f":"IF(ISERROR($V981),\"\",OFFSET('Smelter Look-up'!$D$4,$V981-4,0)&\"\")","v":""},{"$f":"IF(ISERROR($V981),\"\",OFFSET('Smelter Look-up'!$E$4,$V981-4,0))","v":""},{"$f":"IF(C981=$X$4,\"Enter smelter details\", IF(ISERROR($V981),\"\",OFFSET('Smelter Look-up'!$F$4,$V981-4,0)))","v":""},{"$f":"IF(ISERROR($V981),\"\",OFFSET('Smelter Look-up'!$G$4,$V981-4,0))","v":""},{"$f":"IF(ISERROR($V981),\"\",OFFSET('Smelter Look-up'!$H$4,$V981-4,0))","v":""},{"$f":"IF(ISERROR($V981),\"\",OFFSET('Smelter Look-up'!$I$4,$V981-4,0))","v":""},{"$nulls":7},{"$f":"IF(ISERROR($V981),\"\",OFFSET('Smelter Look-up'!$C$4,$V981-4,0)&\"\")","v":""},"",{"$f":"IF(B981=\"\",\"\",IF(ISERROR(MATCH($J981,SorP!$B$1:$B$6230,0)),\"\",INDIRECT(\"'SorP'!$A$\"&MATCH($J981,SorP!$B$1:$B$6230,0))))","v":""},null,{"$f":"IF(C981=\"\",NA(),MATCH($B981&$C981,'Smelter Look-up'!$J:$J,0))","v":{"$error":"#N/A"}},null,0,null,null,null,""]
[null,{"$f":"IF(LEN(A982)=0,\"\",INDEX('Smelter Look-up'!$A:$A,MATCH($A982,'Smelter Look-up'!$E:$E,0)))","v":""},{"$f":"IF(LEN(A982)=0,\"\",INDEX('Smelter Look-up'!$C:$C,MATCH($A982,'Smelter Look-up'!$E:$E,0)))","v":""},null,{"$f":"IF(ISERROR($V982),\"\",OFFSET('Smelter Look-up'!$D$4,$V982-4,0)&\"\")","v":""},{"$f":"IF(ISERROR($V982),\"\",OFFSET('Smelter Look-up'!$E$4,$V982-4,0))","v":""},{"$f":"IF(C982=$X$4,\"Enter smelter details\", IF(ISERROR($V982),\"\",OFFSET('Smelter Look-up'!$F$4,$V982-4,0)))","v":""},{"$f":"IF(ISERROR($V982),\"\",OFFSET('Smelter Look-up'!$G$4,$V982-4,0))","v":""},{"$f":"IF(ISERROR($V982),\"\",OFFSET('Smelter Look-up'!$H$4,$V982-4,0))","v":""},{"$f":"IF(ISERROR($V982),\"\",OFFSET('Smelter Look-up'!$I$4,$V982-4,0))","v":""},{"$nulls":7},{"$f":"IF(ISERROR($V982),\"\",OFFSET('Smelter Look-up'!$C$4,$V982-4,0)&\"\")","v":""},"",{"$f":"IF(B982=\"\",\"\",IF(ISERROR(MATCH($J982,SorP!$B$1:$B$6230,0)),\"\",INDIRECT(\"'SorP'!$A$\"&MATCH($J982,SorP!$B$1:$B$6230,0))))","v":""},null,{"$f":"IF(C982=\"\",NA(),MATCH($B982&$C982,'Smelter Look-up'!$J:$J,0))","v":{"$error":"#N/A"}},null,0,null,null,null,""]
[null,{"$f":"IF(LEN(A983)=0,\"\",INDEX('Smelter Look-up'!$A:$A,MATCH($A983,'Smelter Look-up'!$E:$E,0)))","v":""},{"$f":"IF(LEN(A983)=0,\"\",INDEX('Smelter Look-up'!$C:$C,MATCH($A983,'Smelter Look-up'!$E:$E,0)))","v":""},null,{"$f":"IF(ISERROR($V983),\"\",OFFSET('Smelter Look-up'!$D$4,$V983-4,0)&\"\")","v":""},{"$f":"IF(ISERROR($V983),\"\",OFFSET('Smelter Look-up'!$E$4,$V983-4,0))","v":""},{"$f":"IF(C983=$X$4,\"Enter smelter details\", IF(ISERROR($V983),\"\",OFFSET('Smelter Look-up'!$F$4,$V983-4,0)))","v":""},{"$f":"IF(ISERROR($V983),\"\",OFFSET('Smelter Look-up'!$G$4,$V983-4,0))","v":""},{"$f":"IF(ISERROR($V983),\"\",OFFSET('Smelter Look-up'!$H$4,$V983-4,0))","v":""},{"$f":"IF(ISERROR($V983),\"\",OFFSET('Smelter Look-up'!$I$4,$V983-4,0))","v":""},{"$nulls":7},{"$f":"IF(ISERROR($V983),\"\",OFFSET('Smelter Look-up'!$C$4,$V983-4,0)&\"\")","v":""},"",{"$f":"IF(B983=\"\",\"\",IF(ISERROR(MATCH($J983,SorP!$B$1:$B$6230,0)),\"\",INDIRECT(\"'SorP'!$A$\"&MATCH($J983,SorP!$B$1:$B$6230,0))))","v":""},null,{"$f":"IF(C983=\"\",NA(),MATCH($B983&$C983,'Smelter Look-up'!$J:$J,0))","v":{"$error":"#N/A"}},null,0,null,null,null,""]
[null,{"$f":"IF(LEN(A984)=0,\"\",INDEX('Smelter Look-up'!$A:$A,MATCH($A984,'Smelter Look-up'!$E:$E,0)))","v":""},{"$f":"IF(LEN(A984)=0,\"\",INDEX('Smelter Look-up'!$C:$C,MATCH($A984,'Smelter Look-up'!$E:$E,0)))","v":""},null,{"$f":"IF(ISERROR($V984),\"\",OFFSET('Smelter Look-up'!$D$4,$V984-4,0)&\"\")","v":""},{"$f":"IF(ISERROR($V984),\"\",OFFSET('Smelter Look-up'!$E$4,$V984-4,0))","v":""},{"$f":"IF(C984=$X$4,\"Enter smelter details\", IF(ISERROR($V984),\"\",OFFSET('Smelter Look-up'!$F$4,$V984-4,0)))","v":""},{"$f":"IF(ISERROR($V984),\"\",OFFSET('Smelter Look-up'!$G$4,$V984-4,0))","v":""},{"$f":"IF(ISERROR($V984),\"\",OFFSET('Smelter Look-up'!$H$4,$V984-4,0))","v":""},{"$f":"IF(ISERROR($V984),\"\",OFFSET('Smelter Look-up'!$I$4,$V984-4,0))","v":""},{"$nulls":7},{"$f":"IF(ISERROR($V984),\"\",OFFSET('Smelter Look-up'!$C$4,$V984-4,0)&\"\")","v":""},"",{"$f":"IF(B984=\"\",\"\",IF(ISERROR(MATCH($J984,SorP!$B$1:$B$6230,0)),\"\",INDIRECT(\"'SorP'!$A$\"&MATCH($J984,SorP!$B$1:$B$6230,0))))","v":""},null,{"$f":"IF(C984=\"\",NA(),MATCH($B984&$C984,'Smelter Look-up'!$J:$J,0))","v":{"$error":"#N/A"}},null,0,null,null,null,""]
[null,{"$f":"IF(LEN(A985)=0,\"\",INDEX('Smelter Look-up'!$A:$A,MATCH($A985,'Smelter Look-up'!$E:$E,0)))","v":""},{"$f":"IF(LEN(A985)=0,\"\",INDEX('Smelter Look-up'!$C:$C,MATCH($A985,'Smelter Look-up'!$E:$E,0)))","v":""},null,{"$f":"IF(ISERROR($V985),\"\",OFFSET('Smelter Look-up'!$D$4,$V985-4,0)&\"\")","v":""},{"$f":"IF(ISERROR($V985),\"\",OFFSET('Smelter Look-up'!$E$4,$V985-4,0))","v":""},{"$f":"IF(C985=$X$4,\"Enter smelter details\", IF(ISERROR($V985),\"\",OFFSET('Smelter Look-up'!$F$4,$V985-4,0)))","v":""},{"$f":"IF(ISERROR($V985),\"\",OFFSET('Smelter Look-up'!$G$4,$V985-4,0))","v":""},{"$f":"IF(ISERROR($V985),\"\",OFFSET('Smelter Look-up'!$H$4,$V985-4,0))","v":""},{"$f":"IF(ISERROR($V985),\"\",OFFSET('Smelter Look-up'!$I$4,$V985-4,0))","v":""},{"$nulls":7},{"$f":"IF(ISERROR($V985),\"\",OFFSET('Smelter Look-up'!$C$4,$V985-4,0)&\"\")","v":""},"",{"$f":"IF(B985=\"\",\"\",IF(ISERROR(MATCH($J985,SorP!$B$1:$B$6230,0)),\"\",INDIRECT(\"'SorP'!$A$\"&MATCH($J985,SorP!$B$1:$B$6230,0))))","v":""},null,{"$f":"IF(C985=\"\",NA(),MATCH($B985&$C985,'Smelter Look-up'!$J:$J,0))","v":{"$error":"#N/A"}},null,0,null,null,null,""]
[null,{"$f":"IF(LEN(A986)=0,\"\",INDEX('Smelter Look-up'!$A:$A,MATCH($A986,'Smelter Look-up'!$E:$E,0)))","v":""},{"$f":"IF(LEN(A986)=0,\"\",INDEX('Smelter Look-up'!$C:$C,MATCH($A986,'Smelter Look-up'!$E:$E,0)))","v":""},null,{"$f":"IF(ISERROR($V986),\"\",OFFSET('Smelter Look-up'!$D$4,$V986-4,0)&\"\")","v":""},{"$f":"IF(ISERROR($V986),\"\",OFFSET('Smelter Look-up'!$E$4,$V986-4,0))","v":""},{"$f":"IF(C986=$X$4,\"Enter smelter details\", IF(ISERROR($V986),\"\",OFFSET('Smelter Look-up'!$F$4,$V986-4,0)))","v":""},{"$f":"IF(ISERROR($V986),\"\",OFFSET('Smelter Look-up'!$G$4,$V986-4,0))","v":""},{"$f":"IF(ISERROR($V986),\"\",OFFSET('Smelter Look-up'!$H$4,$V986-4,0))","v":""},{"$f":"IF(ISERROR($V986),\"\",OFFSET('Smelter Look-up'!$I$4,$V986-4,0))","v":""},{"$nulls":7},{"$f":"IF(ISERROR($V986),\"\",OFFSET('Smelter Look-up'!$C$4,$V986-4,0)&\"\")","v":""},"",{"$f":"IF(B986=\"\",\"\",IF(ISERROR(MATCH($J986,SorP!$B$1:$B$6230,0)),\"\",INDIRECT(\"'SorP'!$A$\"&MATCH($J986,SorP!$B$1:$B$6230,0))))","v":""},null,{"$f":"IF(C986=\"\",NA(),MATCH($B986&$C986,'Smelter Look-up'!$J:$J,0))","v":{"$error":"#N/A"}},null,0,null,null,null,""]
[null,{"$f":"IF(LEN(A987)=0,\"\",INDEX('Smelter Look-up'!$A:$A,MATCH($A987,'Smelter Look-up'!$E:$E,0)))","v":""},{"$f":"IF(LEN(A987)=0,\"\",INDEX('Smelter Look-up'!$C:$C,MATCH($A987,'Smelter Look-up'!$E:$E,0)))","v":""},null,{"$f":"IF(ISERROR($V987),\"\",OFFSET('Smelter Look-up'!$D$4,$V987-4,0)&\"\")","v":""},{"$f":"IF(ISERROR($V987),\"\",OFFSET('Smelter Look-up'!$E$4,$V987-4,0))","v":""},{"$f":"IF(C987=$X$4,\"Enter smelter details\", IF(ISERROR($V987),\"\",OFFSET('Smelter Look-up'!$F$4,$V987-4,0)))","v":""},{"$f":"IF(ISERROR($V987),\"\",OFFSET('Smelter Look-up'!$G$4,$V987-4,0))","v":""},{"$f":"IF(ISERROR($V987),\"\",OFFSET('Smelter Look-up'!$H$4,$V987-4,0))","v":""},{"$f":"IF(ISERROR($V987),\"\",OFFSET('Smelter Look-up'!$I$4,$V987-4,0))","v":""},{"$nulls":7},{"$f":"IF(ISERROR($V987),\"\",OFFSET('Smelter Look-up'!$C$4,$V987-4,0)&\"\")","v":""},"",{"$f":"IF(B987=\"\",\"\",IF(ISERROR(MATCH($J987,SorP!$B$1:$B$6230,0)),\"\",INDIRECT(\"'SorP'!$A$\"&MATCH($J987,SorP!$B$1:$B$6230,0))))","v":""},null,{"$f":"IF(C987=\"\",NA(),MATCH($B987&$C987,'Smelter Look-up'!$J:$J,0))","v":{"$error":"#N/A"}},null,0,null,null,null,""]
[null,{"$f":"IF(LEN(A988)=0,\"\",INDEX('Smelter Look-up'!$A:$A,MATCH($A988,'Smelter Look-up'!$E:$E,0)))","v":""},{"$f":"IF(LEN(A988)=0,\"\",INDEX('Smelter Look-up'!$C:$C,MATCH($A988,'Smelter Look-up'!$E:$E,0)))","v":""},null,{"$f":"IF(ISERROR($V988),\"\",OFFSET('Smelter Look-up'!$D$4,$V988-4,0)&\"\")","v":""},{"$f":"IF(ISERROR($V988),\"\",OFFSET('Smelter Look-up'!$E$4,$V988-4,0))","v":""},{"$f":"IF(C988=$X$4,\"Enter smelter details\", IF(ISERROR($V988),\"\",OFFSET('Smelter Look-up'!$F$4,$V988-4,0)))","v":""},{"$f":"IF(ISERROR($V988),\"\",OFFSET('Smelter Look-up'!$G$4,$V988-4,0))","v":""},{"$f":"IF(ISERROR($V988),\"\",OFFSET('Smelter Look-up'!$H$4,$V988-4,0))","v":""},{"$f":"IF(ISERROR($V988),\"\",OFFSET('Smelter Look-up'!$I$4,$V988-4,0))","v":""},{"$nulls":7},{"$f":"IF(ISERROR($V988),\"\",OFFSET('Smelter Look-up'!$C$4,$V988-4,0)&\"\")","v":""},"",{"$f":"IF(B988=\"\",\"\",IF(ISERROR(MATCH($J988,SorP!$B$1:$B$6230,0)),\"\",INDIRECT(\"'SorP'!$A$\"&MATCH($J988,SorP!$B$1:$B$6230,0))))","v":""},null,{"$f":"IF(C988=\"\",NA(),MATCH($B988&$C988,'Smelter Look-up'!$J:$J,0))","v":{"$error":"#N/A"}},null,0,null,null,null,""]
[null,{"$f":"IF(LEN(A989)=0,\"\",INDEX('Smelter Look-up'!$A:$A,MATCH($A989,'Smelter Look-up'!$E:$E,0)))","v":""},{"$f":"IF(LEN(A989)=0,\"\",INDEX('Smelter Look-up'!$C:$C,MATCH($A989,'Smelter Look-up'!$E:$E,0)))","v":""},null,{"$f":"IF(ISERROR($V989),\"\",OFFSET('Smelter Look-up'!$D$4,$V989-4,0)&\"\")","v":""},{"$f":"IF(ISERROR($V989),\"\",OFFSET('Smelter Look-up'!$E$4,$V989-4,0))","v":""},{"$f":"IF(C989=$X$4,\"Enter smelter details\", IF(ISERROR($V989),\"\",OFFSET('Smelter Look-up'!$F$4,$V989-4,0)))","v":""},{"$f":"IF(ISERROR($V989),\"\",OFFSET('Smelter Look-up'!$G$4,$V989-4,0))","v":""},{"$f":"IF(ISERROR($V989),\"\",OFFSET('Smelter Look-up'!$H$4,$V989-4,0))","v":""},{"$f":"IF(ISERROR($V989),\"\",OFFSET('Smelter Look-up'!$I$4,$V989-4,0))","v":""},{"$nulls":7},{"$f":"IF(ISERROR($V989),\"\",OFFSET('Smelter Look-up'!$C$4,$V989-4,0)&\"\")","v":""},"",{"$f":"IF(B989=\"\",\"\",IF(ISERROR(MATCH($J989,SorP!$B$1:$B$6230,0)),\"\",INDIRECT(\"'SorP'!$A$\"&MATCH($J989,SorP!$B$1:$B$6230,0))))","v":""},null,{"$f":"IF(C989=\"\",NA(),MATCH($B989&$C989,'Smelter Look-up'!$J:$J,0))","v":{"$error":"#N/A"}},null,0,null,null,null,""]
[null,{"$f":"IF(LEN(A990)=0,\"\",INDEX('Smelter Look-up'!$A:$A,MATCH($A990,'Smelter Look-up'!$E:$E,0)))","v":""},{"$f":"IF(LEN(A990)=0,\"\",INDEX('Smelter Look-up'!$C:$C,MATCH($A990,'Smelter Look-up'!$E:$E,0)))","v":""},null,{"$f":"IF(ISERROR($V990),\"\",OFFSET('Smelter Look-up'!$D$4,$V990-4,0)&\"\")","v":""},{"$f":"IF(ISERROR($V990),\"\",OFFSET('Smelter Look-up'!$E$4,$V990-4,0))","v":""},{"$f":"IF(C990=$X$4,\"Enter smelter details\", IF(ISERROR($V990),\"\",OFFSET('Smelter Look-up'!$F$4,$V990-4,0)))","v":""},{"$f":"IF(ISERROR($V990),\"\",OFFSET('Smelter Look-up'!$G$4,$V990-4,0))","v":""},{"$f":"IF(ISERROR($V990),\"\",OFFSET('Smelter Look-up'!$H$4,$V990-4,0))","v":""},{"$f":"IF(ISERROR($V990),\"\",OFFSET('Smelter Look-up'!$I$4,$V990-4,0))","v":""},{"$nulls":7},{"$f":"IF(ISERROR($V990),\"\",OFFSET('Smelter Look-up'!$C$4,$V990-4,0)&\"\")","v":""},"",{"$f":"IF(B990=\"\",\"\",IF(ISERROR(MATCH($J990,SorP!$B$1:$B$6230,0)),\"\",INDIRECT(\"'SorP'!$A$\"&MATCH($J990,SorP!$B$1:$B$6230,0))))","v":""},null,{"$f":"IF(C990=\"\",NA(),MATCH($B990&$C990,'Smelter Look-up'!$J:$J,0))","v":{"$error":"#N/A"}},null,0,null,null,null,""]
[null,{"$f":"IF(LEN(A991)=0,\"\",INDEX('Smelter Look-up'!$A:$A,MATCH($A991,'Smelter Look-up'!$E:$E,0)))","v":""},{"$f":"IF(LEN(A991)=0,\"\",INDEX('Smelter Look-up'!$C:$C,MATCH($A991,'Smelter Look-up'!$E:$E,0)))","v":""},null,{"$f":"IF(ISERROR($V991),\"\",OFFSET('Smelter Look-up'!$D$4,$V991-4,0)&\"\")","v":""},{"$f":"IF(ISERROR($V991),\"\",OFFSET('Smelter Look-up'!$E$4,$V991-4,0))","v":""},{"$f":"IF(C991=$X$4,\"Enter smelter details\", IF(ISERROR($V991),\"\",OFFSET('Smelter Look-up'!$F$4,$V991-4,0)))","v":""},{"$f":"IF(ISERROR($V991),\"\",OFFSET('Smelter Look-up'!$G$4,$V991-4,0))","v":""},{"$f":"IF(ISERROR($V991),\"\",OFFSET('Smelter Look-up'!$H$4,$V991-4,0))","v":""},{"$f":"IF(ISERROR($V991),\"\",OFFSET('Smelter Look-up'!$I$4,$V991-4,0))","v":""},{"$nulls":7},{"$f":"IF(ISERROR($V991),\"\",OFFSET('Smelter Look-up'!$C$4,$V991-4,0)&\"\")","v":""},"",{"$f":"IF(B991=\"\",\"\",IF(ISERROR(MATCH($J991,SorP!$B$1:$B$6230,0)),\"\",INDIRECT(\"'SorP'!$A$\"&MATCH($J991,SorP!$B$1:$B$6230,0))))","v":""},null,{"$f":"IF(C991=\"\",NA(),MATCH($B991&$C991,'Smelter Look-up'!$J:$J,0))","v":{"$error":"#N/A"}},null,0,null,null,null,""]
[null,{"$f":"IF(LEN(A992)=0,\"\",INDEX('Smelter Look-up'!$A:$A,MATCH($A992,'Smelter Look-up'!$E:$E,0)))","v":""},{"$f":"IF(LEN(A992)=0,\"\",INDEX('Smelter Look-up'!$C:$C,MATCH($A992,'Smelter Look-up'!$E:$E,0)))","v":""},null,{"$f":"IF(ISERROR($V992),\"\",OFFSET('Smelter Look-up'!$D$4,$V992-4,0)&\"\")","v":""},{"$f":"IF(ISERROR($V992),\"\",OFFSET('Smelter Look-up'!$E$4,$V992-4,0))","v":""},{"$f":"IF(C992=$X$4,\"Enter smelter details\", IF(ISERROR($V992),\"\",OFFSET('Smelter Look-up'!$F$4,$V992-4,0)))","v":""},{"$f":"IF(ISERROR($V992),\"\",OFFSET('Smelter Look-up'!$G$4,$V992-4,0))","v":""},{"$f":"IF(ISERROR($V992),\"\",OFFSET('Smelter Look-up'!$H$4,$V992-4,0))","v":""},{"$f":"IF(ISERROR($V992),\"\",OFFSET('Smelter Look-up'!$I$4,$V992-4,0))","v":""},{"$nulls":7},{"$f":"IF(ISERROR($V992),\"\",OFFSET('Smelter Look-up'!$C$4,$V992-4,0)&\"\")","v":""},"",{"$f":"IF(B992=\"\",\"\",IF(ISERROR(MATCH($J992,SorP!$B$1:$B$6230,0)),\"\",INDIRECT(\"'SorP'!$A$\"&MATCH($J992,SorP!$B$1:$B$6230,0))))","v":""},null,{"$f":"IF(C992=\"\",NA(),MATCH($B992&$C992,'Smelter Look-up'!$J:$J,0))","v":{"$error":"#N/A"}},null,0,null,null,null,""]
[null,{"$f":"IF(LEN(A993)=0,\"\",INDEX('Smelter Look-up'!$A:$A,MATCH($A993,'Smelter Look-up'!$E:$E,0)))","v":""},{"$f":"IF(LEN(A993)=0,\"\",INDEX('Smelter Look-up'!$C:$C,MATCH($A993,'Smelter Look-up'!$E:$E,0)))","v":""},null,{"$f":"IF(ISERROR($V993),\"\",OFFSET('Smelter Look-up'!$D$4,$V993-4,0)&\"\")","v":""},{"$f":"IF(ISERROR($V993),\"\",OFFSET('Smelter Look-up'!$E$4,$V993-4,0))","v":""},{"$f":"IF(C993=$X$4,\"Enter smelter details\", IF(ISERROR($V993),\"\",OFFSET('Smelter Look-up'!$F$4,$V993-4,0)))","v":""},{"$f":"IF(ISERROR($V993),\"\",OFFSET('Smelter Look-up'!$G$4,$V993-4,0))","v":""},{"$f":"IF(ISERROR($V993),\"\",OFFSET('Smelter Look-up'!$H$4,$V993-4,0))","v":""},{"$f":"IF(ISERROR($V993),\"\",OFFSET('Smelter Look-up'!$I$4,$V993-4,0))","v":""},{"$nulls":7},{"$f":"IF(ISERROR($V993),\"\",OFFSET('Smelter Look-up'!$C$4,$V993-4,0)&\"\")","v":""},"",{"$f":"IF(B993=\"\",\"\",IF(ISERROR(MATCH($J993,SorP!$B$1:$B$6230,0)),\"\",INDIRECT(\"'SorP'!$A$\"&MATCH($J993,SorP!$B$1:$B$6230,0))))","v":""},null,{"$f":"IF(C993=\"\",NA(),MATCH($B993&$C993,'Smelter Look-up'!$J:$J,0))","v":{"$error":"#N/A"}},null,0,null,null,null,""]
[null,{"$f":"IF(LEN(A994)=0,\"\",INDEX('Smelter Look-up'!$A:$A,MATCH($A994,'Smelter Look-up'!$E:$E,0)))","v":""},{"$f":"IF(LEN(A994)=0,\"\",INDEX('Smelter Look-up'!$C:$C,MATCH($A994,'Smelter Look-up'!$E:$E,0)))","v":""},null,{"$f":"IF(ISERROR($V994),\"\",OFFSET('Smelter Look-up'!$D$4,$V994-4,0)&\"\")","v":""},{"$f":"IF(ISERROR($V994),\"\",OFFSET('Smelter Look-up'!$E$4,$V994-4,0))","v":""},{"$f":"IF(C994=$X$4,\"Enter smelter details\", IF(ISERROR($V994),\"\",OFFSET('Smelter Look-up'!$F$4,$V994-4,0)))","v":""},{"$f":"IF(ISERROR($V994),\"\",OFFSET('Smelter Look-up'!$G$4,$V994-4,0))","v":""},{"$f":"IF(ISERROR($V994),\"\",OFFSET('Smelter Look-up'!$H$4,$V994-4,0))","v":""},{"$f":"IF(ISERROR($V994),\"\",OFFSET('Smelter Look-up'!$I$4,$V994-4,0))","v":""},{"$nulls":7},{"$f":"IF(ISERROR($V994),\"\",OFFSET('Smelter Look-up'!$C$4,$V994-4,0)&\"\")","v":""},"",{"$f":"IF(B994=\"\",\"\",IF(ISERROR(MATCH($J994,SorP!$B$1:$B$6230,0)),\"\",INDIRECT(\"'SorP'!$A$\"&MATCH($J994,SorP!$B$1:$B$6230,0))))","v":""},null,{"$f":"IF(C994=\"\",NA(),MATCH($B994&$C994,'Smelter Look-up'!$J:$J,0))","v":{"$error":"#N/A"}},null,0,null,null,null,""]
[null,{"$f":"IF(LEN(A995)=0,\"\",INDEX('Smelter Look-up'!$A:$A,MATCH($A995,'Smelter Look-up'!$E:$E,0)))","v":""},{"$f":"IF(LEN(A995)=0,\"\",INDEX('Smelter Look-up'!$C:$C,MATCH($A995,'Smelter Look-up'!$E:$E,0)))","v":""},null,{"$f":"IF(ISERROR($V995),\"\",OFFSET('Smelter Look-up'!$D$4,$V995-4,0)&\"\")","v":""},{"$f":"IF(ISERROR($V995),\"\",OFFSET('Smelter Look-up'!$E$4,$V995-4,0))","v":""},{"$f":"IF(C995=$X$4,\"Enter smelter details\", IF(ISERROR($V995),\"\",OFFSET('Smelter Look-up'!$F$4,$V995-4,0)))","v":""},{"$f":"IF(ISERROR($V995),\"\",OFFSET('Smelter Look-up'!$G$4,$V995-4,0))","v":""},{"$f":"IF(ISERROR($V995),\"\",OFFSET('Smelter Look-up'!$H$4,$V995-4,0))","v":""},{"$f":"IF(ISERROR($V995),\"\",OFFSET('Smelter Look-up'!$I$4,$V995-4,0))","v":""},{"$nulls":7},{"$f":"IF(ISERROR($V995),\"\",OFFSET('Smelter Look-up'!$C$4,$V995-4,0)&\"\")","v":""},"",{"$f":"IF(B995=\"\",\"\",IF(ISERROR(MATCH($J995,SorP!$B$1:$B$6230,0)),\"\",INDIRECT(\"'SorP'!$A$\"&MATCH($J995,SorP!$B$1:$B$6230,0))))","v":""},null,{"$f":"IF(C995=\"\",NA(),MATCH($B995&$C995,'Smelter Look-up'!$J:$J,0))","v":{"$error":"#N/A"}},null,0,null,null,null,""]
[null,{"$f":"IF(LEN(A996)=0,\"\",INDEX('Smelter Look-up'!$A:$A,MATCH($A996,'Smelter Look-up'!$E:$E,0)))","v":""},{"$f":"IF(LEN(A996)=0,\"\",INDEX('Smelter Look-up'!$C:$C,MATCH($A996,'Smelter Look-up'!$E:$E,0)))","v":""},null,{"$f":"IF(ISERROR($V996),\"\",OFFSET('Smelter Look-up'!$D$4,$V996-4,0)&\"\")","v":""},{"$f":"IF(ISERROR($V996),\"\",OFFSET('Smelter Look-up'!$E$4,$V996-4,0))","v":""},{"$f":"IF(C996=$X$4,\"Enter smelter details\", IF(ISERROR($V996),\"\",OFFSET('Smelter Look-up'!$F$4,$V996-4,0)))","v":""},{"$f":"IF(ISERROR($V996),\"\",OFFSET('Smelter Look-up'!$G$4,$V996-4,0))","v":""},{"$f":"IF(ISERROR($V996),\"\",OFFSET('Smelter Look-up'!$H$4,$V996-4,0))","v":""},{"$f":"IF(ISERROR($V996),\"\",OFFSET('Smelter Look-up'!$I$4,$V996-4,0))","v":""},{"$nulls":7},{"$f":"IF(ISERROR($V996),\"\",OFFSET('Smelter Look-up'!$C$4,$V996-4,0)&\"\")","v":""},"",{"$f":"IF(B996=\"\",\"\",IF(ISERROR(MATCH($J996,SorP!$B$1:$B$6230,0)),\"\",INDIRECT(\"'SorP'!$A$\"&MATCH($J996,SorP!$B$1:$B$6230,0))))","v":""},null,{"$f":"IF(C996=\"\",NA(),MATCH($B996&$C996,'Smelter Look-up'!$J:$J,0))","v":{"$error":"#N/A"}},null,0,null,null,null,""]
[null,{"$f":"IF(LEN(A997)=0,\"\",INDEX('Smelter Look-up'!$A:$A,MATCH($A997,'Smelter Look-up'!$E:$E,0)))","v":""},{"$f":"IF(LEN(A997)=0,\"\",INDEX('Smelter Look-up'!$C:$C,MATCH($A997,'Smelter Look-up'!$E:$E,0)))","v":""},null,{"$f":"IF(ISERROR($V997),\"\",OFFSET('Smelter Look-up'!$D$4,$V997-4,0)&\"\")","v":""},{"$f":"IF(ISERROR($V997),\"\",OFFSET('Smelter Look-up'!$E$4,$V997-4,0))","v":""},{"$f":"IF(C997=$X$4,\"Enter smelter details\", IF(ISERROR($V997),\"\",OFFSET('Smelter Look-up'!$F$4,$V997-4,0)))","v":""},{"$f":"IF(ISERROR($V997),\"\",OFFSET('Smelter Look-up'!$G$4,$V997-4,0))","v":""},{"$f":"IF(ISERROR($V997),\"\",OFFSET('Smelter Look-up'!$H$4,$V997-4,0))","v":""},{"$f":"IF(ISERROR($V997),\"\",OFFSET('Smelter Look-up'!$I$4,$V997-4,0))","v":""},{"$nulls":7},{"$f":"IF(ISERROR($V997),\"\",OFFSET('Smelter Look-up'!$C$4,$V997-4,0)&\"\")","v":""},"",{"$f":"IF(B997=\"\",\"\",IF(ISERROR(MATCH($J997,SorP!$B$1:$B$6230,0)),\"\",INDIRECT(\"'SorP'!$A$\"&MATCH($J997,SorP!$B$1:$B$6230,0))))","v":""},null,{"$f":"IF(C997=\"\",NA(),MATCH($B997&$C997,'Smelter Look-up'!$J:$J,0))","v":{"$error":"#N/A"}},null,0,null,null,null,""]
[null,{"$f":"IF(LEN(A998)=0,\"\",INDEX('Smelter Look-up'!$A:$A,MATCH($A998,'Smelter Look-up'!$E:$E,0)))","v":""},{"$f":"IF(LEN(A998)=0,\"\",INDEX('Smelter Look-up'!$C:$C,MATCH($A998,'Smelter Look-up'!$E:$E,0)))","v":""},null,{"$f":"IF(ISERROR($V998),\"\",OFFSET('Smelter Look-up'!$D$4,$V998-4,0)&\"\")","v":""},{"$f":"IF(ISERROR($V998),\"\",OFFSET('Smelter Look-up'!$E$4,$V998-4,0))","v":""},{"$f":"IF(C998=$X$4,\"Enter smelter details\", IF(ISERROR($V998),\"\",OFFSET('Smelter Look-up'!$F$4,$V998-4,0)))","v":""},{"$f":"IF(ISERROR($V998),\"\",OFFSET('Smelter Look-up'!$G$4,$V998-4,0))","v":""},{"$f":"IF(ISERROR($V998),\"\",OFFSET('Smelter Look-up'!$H$4,$V998-4,0))","v":""},{"$f":"IF(ISERROR($V998),\"\",OFFSET('Smelter Look-up'!$I$4,$V998-4,0))","v":""},{"$nulls":7},{"$f":"IF(ISERROR($V998),\"\",OFFSET('Smelter Look-up'!$C$4,$V998-4,0)&\"\")","v":""},"",{"$f":"IF(B998=\"\",\"\",IF(ISERROR(MATCH($J998,SorP!$B$1:$B$6230,0)),\"\",INDIRECT(\"'SorP'!$A$\"&MATCH($J998,SorP!$B$1:$B$6230,0))))","v":""},null,{"$f":"IF(C998=\"\",NA(),MATCH($B998&$C998,'Smelter Look-up'!$J:$J,0))","v":{"$error":"#N/A"}},null,0,null,null,null,""]
[null,{"$f":"IF(LEN(A999)=0,\"\",INDEX('Smelter Look-up'!$A:$A,MATCH($A999,'Smelter Look-up'!$E:$E,0)))","v":""},{"$f":"IF(LEN(A999)=0,\"\",INDEX('Smelter Look-up'!$C:$C,MATCH($A999,'Smelter Look-up'!$E:$E,0)))","v":""},null,{"$f":"IF(ISERROR($V999),\"\",OFFSET('Smelter Look-up'!$D$4,$V999-4,0)&\"\")","v":""},{"$f":"IF(ISERROR($V999),\"\",OFFSET('Smelter Look-up'!$E$4,$V999-4,0))","v":""},{"$f":"IF(C999=$X$4,\"Enter smelter details\", IF(ISERROR($V999),\"\",OFFSET('Smelter Look-up'!$F$4,$V999-4,0)))","v":""},{"$f":"IF(ISERROR($V999),\"\",OFFSET('Smelter Look-up'!$G$4,$V999-4,0))","v":""},{"$f":"IF(ISERROR($V999),\"\",OFFSET('Smelter Look-up'!$H$4,$V999-4,0))","v":""},{"$f":"IF(ISERROR($V999),\"\",OFFSET('Smelter Look-up'!$I$4,$V999-4,0))","v":""},{"$nulls":7},{"$f":"IF(ISERROR($V999),\"\",OFFSET('Smelter Look-up'!$C$4,$V999-4,0)&\"\")","v":""},"",{"$f":"IF(B999=\"\",\"\",IF(ISERROR(MATCH($J999,SorP!$B$1:$B$6230,0)),\"\",INDIRECT(\"'SorP'!$A$\"&MATCH($J999,SorP!$B$1:$B$6230,0))))","v":""},null,{"$f":"IF(C999=\"\",NA(),MATCH($B999&$C999,'Smelter Look-up'!$J:$J,0))","v":{"$error":"#N/A"}},null,0,null,null,null,""]
[null,{"$f":"IF(LEN(A1000)=0,\"\",INDEX('Smelter Look-up'!$A:$A,MATCH($A1000,'Smelter Look-up'!$E:$E,0)))","v":""},{"$f":"IF(LEN(A1000)=0,\"\",INDEX('Smelter Look-up'!$C:$C,MATCH($A1000,'Smelter Look-up'!$E:$E,0)))","v":""},null,{"$f":"IF(ISERROR($V1000),\"\",OFFSET('Smelter Look-up'!$D$4,$V1000-4,0)&\"\")","v":""},{"$f":"IF(ISERROR($V1000),\"\",OFFSET('Smelter Look-up'!$E$4,$V1000-4,0))","v":""},{"$f":"IF(C1000=$X$4,\"Enter smelter details\", IF(ISERROR($V1000),\"\",OFFSET('Smelter Look-up'!$F$4,$V1000-4,0)))","v":""},{"$f":"IF(ISERROR($V1000),\"\",OFFSET('Smelter Look-up'!$G$4,$V1000-4,0))","v":""},{"$f":"IF(ISERROR($V1000),\"\",OFFSET('Smelter Look-up'!$H$4,$V1000-4,0))","v":""},{"$f":"IF(ISERROR($V1000),\"\",OFFSET('Smelter Look-up'!$I$4,$V1000-4,0))","v":""},{"$nulls":7},{"$f":"IF(ISERROR($V1000),\"\",OFFSET('Smelter Look-up'!$C$4,$V1000-4,0)&\"\")","v":""},"",{"$f":"IF(B1000=\"\",\"\",IF(ISERROR(MATCH($J1000,SorP!$B$1:$B$6230,0)),\"\",INDIRECT(\"'SorP'!$A$\"&MATCH($J1000,SorP!$B$1:$B$6230,0))))","v":""},null,{"$f":"IF(C1000=\"\",NA(),MATCH($B1000&$C1000,'Smelter Look-up'!$J:$J,0))","v":{"$error":"#N/A"}},null,0,null,null,null,""]
[null,{"$f":"IF(LEN(A1001)=0,\"\",INDEX('Smelter Look-up'!$A:$A,MATCH($A1001,'Smelter Look-up'!$E:$E,0)))","v":""},{"$f":"IF(LEN(A1001)=0,\"\",INDEX('Smelter Look-up'!$C:$C,MATCH($A1001,'Smelter Look-up'!$E:$E,0)))","v":""},null,{"$f":"IF(ISERROR($V1001),\"\",OFFSET('Smelter Look-up'!$D$4,$V1001-4,0)&\"\")","v":""},{"$f":"IF(ISERROR($V1001),\"\",OFFSET('Smelter Look-up'!$E$4,$V1001-4,0))","v":""},{"$f":"IF(C1001=$X$4,\"Enter smelter details\", IF(ISERROR($V1001),\"\",OFFSET('Smelter Look-up'!$F$4,$V1001-4,0)))","v":""},{"$f":"IF(ISERROR($V1001),\"\",OFFSET('Smelter Look-up'!$G$4,$V1001-4,0))","v":""},{"$f":"IF(ISERROR($V1001),\"\",OFFSET('Smelter Look-up'!$H$4,$V1001-4,0))","v":""},{"$f":"IF(ISERROR($V1001),\"\",OFFSET('Smelter Look-up'!$I$4,$V1001-4,0))","v":""},{"$nulls":7},{"$f":"IF(ISERROR($V1001),\"\",OFFSET('Smelter Look-up'!$C$4,$V1001-4,0)&\"\")","v":""},"",{"$f":"IF(B1001=\"\",\"\",IF(ISERROR(MATCH($J1001,SorP!$B$1:$B$6230,0)),\"\",INDIRECT(\"'SorP'!$A$\"&MATCH($J1001,SorP!$B$1:$B$6230,0))))","v":""},null,{"$f":"IF(C1001=\"\",NA(),MATCH($B1001&$C1001,'Smelter Look-up'!$J:$J,0))","v":{"$error":"#N/A"}},null,0,null,null,null,""]
[null,{"$f":"IF(LEN(A1002)=0,\"\",INDEX('Smelter Look-up'!$A:$A,MATCH($A1002,'Smelter Look-up'!$E:$E,0)))","v":""},{"$f":"IF(LEN(A1002)=0,\"\",INDEX('Smelter Look-up'!$C:$C,MATCH($A1002,'Smelter Look-up'!$E:$E,0)))","v":""},null,{"$f":"IF(ISERROR($V1002),\"\",OFFSET('Smelter Look-up'!$D$4,$V1002-4,0)&\"\")","v":""},{"$f":"IF(ISERROR($V1002),\"\",OFFSET('Smelter Look-up'!$E$4,$V1002-4,0))","v":""},{"$f":"IF(C1002=$X$4,\"Enter smelter details\", IF(ISERROR($V1002),\"\",OFFSET('Smelter Look-up'!$F$4,$V1002-4,0)))","v":""},{"$f":"IF(ISERROR($V1002),\"\",OFFSET('Smelter Look-up'!$G$4,$V1002-4,0))","v":""},{"$f":"IF(ISERROR($V1002),\"\",OFFSET('Smelter Look-up'!$H$4,$V1002-4,0))","v":""},{"$f":"IF(ISERROR($V1002),\"\",OFFSET('Smelter Look-up'!$I$4,$V1002-4,0))","v":""},{"$nulls":7},{"$f":"IF(ISERROR($V1002),\"\",OFFSET('Smelter Look-up'!$C$4,$V1002-4,0)&\"\")","v":""},"",{"$f":"IF(B1002=\"\",\"\",IF(ISERROR(MATCH($J1002,SorP!$B$1:$B$6230,0)),\"\",INDIRECT(\"'SorP'!$A$\"&MATCH($J1002,SorP!$B$1:$B$6230,0))))","v":""},null,{"$f":"IF(C1002=\"\",NA(),MATCH($B1002&$C1002,'Smelter Look-up'!$J:$J,0))","v":{"$error":"#N/A"}},null,0,null,null,null,""]
[null,{"$f":"IF(LEN(A1003)=0,\"\",INDEX('Smelter Look-up'!$A:$A,MATCH($A1003,'Smelter Look-up'!$E:$E,0)))","v":""},{"$f":"IF(LEN(A1003)=0,\"\",INDEX('Smelter Look-up'!$C:$C,MATCH($A1003,'Smelter Look-up'!$E:$E,0)))","v":""},null,{"$f":"IF(ISERROR($V1003),\"\",OFFSET('Smelter Look-up'!$D$4,$V1003-4,0)&\"\")","v":""},{"$f":"IF(ISERROR($V1003),\"\",OFFSET('Smelter Look-up'!$E$4,$V1003-4,0))","v":""},{"$f":"IF(C1003=$X$4,\"Enter smelter details\", IF(ISERROR($V1003),\"\",OFFSET('Smelter Look-up'!$F$4,$V1003-4,0)))","v":""},{"$f":"IF(ISERROR($V1003),\"\",OFFSET('Smelter Look-up'!$G$4,$V1003-4,0))","v":""},{"$f":"IF(ISERROR($V1003),\"\",OFFSET('Smelter Look-up'!$H$4,$V1003-4,0))","v":""},{"$f":"IF(ISERROR($V1003),\"\",OFFSET('Smelter Look-up'!$I$4,$V1003-4,0))","v":""},{"$nulls":7},{"$f":"IF(ISERROR($V1003),\"\",OFFSET('Smelter Look-up'!$C$4,$V1003-4,0)&\"\")","v":""},"",{"$f":"IF(B1003=\"\",\"\",IF(ISERROR(MATCH($J1003,SorP!$B$1:$B$6230,0)),\"\",INDIRECT(\"'SorP'!$A$\"&MATCH($J1003,SorP!$B$1:$B$6230,0))))","v":""},null,{"$f":"IF(C1003=\"\",NA(),MATCH($B1003&$C1003,'Smelter Look-up'!$J:$J,0))","v":{"$error":"#N/A"}},null,0,null,null,null,""]
[null,{"$f":"IF(LEN(A1004)=0,\"\",INDEX('Smelter Look-up'!$A:$A,MATCH($A1004,'Smelter Look-up'!$E:$E,0)))","v":""},{"$f":"IF(LEN(A1004)=0,\"\",INDEX('Smelter Look-up'!$C:$C,MATCH($A1004,'Smelter Look-up'!$E:$E,0)))","v":""},null,{"$f":"IF(ISERROR($V1004),\"\",OFFSET('Smelter Look-up'!$D$4,$V1004-4,0)&\"\")","v":""},{"$f":"IF(ISERROR($V1004),\"\",OFFSET('Smelter Look-up'!$E$4,$V1004-4,0))","v":""},{"$f":"IF(C1004=$X$4,\"Enter smelter details\", IF(ISERROR($V1004),\"\",OFFSET('Smelter Look-up'!$F$4,$V1004-4,0)))","v":""},{"$f":"IF(ISERROR($V1004),\"\",OFFSET('Smelter Look-up'!$G$4,$V1004-4,0))","v":""},{"$f":"IF(ISERROR($V1004),\"\",OFFSET('Smelter Look-up'!$H$4,$V1004-4,0))","v":""},{"$f":"IF(ISERROR($V1004),\"\",OFFSET('Smelter Look-up'!$I$4,$V1004-4,0))","v":""},{"$nulls":7},{"$f":"IF(ISERROR($V1004),\"\",OFFSET('Smelter Look-up'!$C$4,$V1004-4,0)&\"\")","v":""},"",{"$f":"IF(B1004=\"\",\"\",IF(ISERROR(MATCH($J1004,SorP!$B$1:$B$6230,0)),\"\",INDIRECT(\"'SorP'!$A$\"&MATCH($J1004,SorP!$B$1:$B$6230,0))))","v":""},null,{"$f":"IF(C1004=\"\",NA(),MATCH($B1004&$C1004,'Smelter Look-up'!$J:$J,0))","v":{"$error":"#N/A"}},null,0,null,null,null,""]
[null,{"$f":"IF(LEN(A1005)=0,\"\",INDEX('Smelter Look-up'!$A:$A,MATCH($A1005,'Smelter Look-up'!$E:$E,0)))","v":""},{"$f":"IF(LEN(A1005)=0,\"\",INDEX('Smelter Look-up'!$C:$C,MATCH($A1005,'Smelter Look-up'!$E:$E,0)))","v":""},null,{"$f":"IF(ISERROR($V1005),\"\",OFFSET('Smelter Look-up'!$D$4,$V1005-4,0)&\"\")","v":""},{"$f":"IF(ISERROR($V1005),\"\",OFFSET('Smelter Look-up'!$E$4,$V1005-4,0))","v":""},{"$f":"IF(C1005=$X$4,\"Enter smelter details\", IF(ISERROR($V1005),\"\",OFFSET('Smelter Look-up'!$F$4,$V1005-4,0)))","v":""},{"$f":"IF(ISERROR($V1005),\"\",OFFSET('Smelter Look-up'!$G$4,$V1005-4,0))","v":""},{"$f":"IF(ISERROR($V1005),\"\",OFFSET('Smelter Look-up'!$H$4,$V1005-4,0))","v":""},{"$f":"IF(ISERROR($V1005),\"\",OFFSET('Smelter Look-up'!$I$4,$V1005-4,0))","v":""},{"$nulls":7},{"$f":"IF(ISERROR($V1005),\"\",OFFSET('Smelter Look-up'!$C$4,$V1005-4,0)&\"\")","v":""},"",{"$f":"IF(B1005=\"\",\"\",IF(ISERROR(MATCH($J1005,SorP!$B$1:$B$6230,0)),\"\",INDIRECT(\"'SorP'!$A$\"&MATCH($J1005,SorP!$B$1:$B$6230,0))))","v":""},null,{"$f":"IF(C1005=\"\",NA(),MATCH($B1005&$C1005,'Smelter Look-up'!$J:$J,0))","v":{"$error":"#N/A"}},null,0,null,null,null,""]
[null,{"$f":"IF(LEN(A1006)=0,\"\",INDEX('Smelter Look-up'!$A:$A,MATCH($A1006,'Smelter Look-up'!$E:$E,0)))","v":""},{"$f":"IF(LEN(A1006)=0,\"\",INDEX('Smelter Look-up'!$C:$C,MATCH($A1006,'Smelter Look-up'!$E:$E,0)))","v":""},null,{"$f":"IF(ISERROR($V1006),\"\",OFFSET('Smelter Look-up'!$D$4,$V1006-4,0)&\"\")","v":""},{"$f":"IF(ISERROR($V1006),\"\",OFFSET('Smelter Look-up'!$E$4,$V1006-4,0))","v":""},{"$f":"IF(C1006=$X$4,\"Enter smelter details\", IF(ISERROR($V1006),\"\",OFFSET('Smelter Look-up'!$F$4,$V1006-4,0)))","v":""},{"$f":"IF(ISERROR($V1006),\"\",OFFSET('Smelter Look-up'!$G$4,$V1006-4,0))","v":""},{"$f":"IF(ISERROR($V1006),\"\",OFFSET('Smelter Look-up'!$H$4,$V1006-4,0))","v":""},{"$f":"IF(ISERROR($V1006),\"\",OFFSET('Smelter Look-up'!$I$4,$V1006-4,0))","v":""},{"$nulls":7},{"$f":"IF(ISERROR($V1006),\"\",OFFSET('Smelter Look-up'!$C$4,$V1006-4,0)&\"\")","v":""},"",{"$f":"IF(B1006=\"\",\"\",IF(ISERROR(MATCH($J1006,SorP!$B$1:$B$6230,0)),\"\",INDIRECT(\"'SorP'!$A$\"&MATCH($J1006,SorP!$B$1:$B$6230,0))))","v":""},null,{"$f":"IF(C1006=\"\",NA(),MATCH($B1006&$C1006,'Smelter Look-up'!$J:$J,0))","v":{"$error":"#N/A"}},null,0,null,null,null,""]
[null,{"$f":"IF(LEN(A1007)=0,\"\",INDEX('Smelter Look-up'!$A:$A,MATCH($A1007,'Smelter Look-up'!$E:$E,0)))","v":""},{"$f":"IF(LEN(A1007)=0,\"\",INDEX('Smelter Look-up'!$C:$C,MATCH($A1007,'Smelter Look-up'!$E:$E,0)))","v":""},null,{"$f":"IF(ISERROR($V1007),\"\",OFFSET('Smelter Look-up'!$D$4,$V1007-4,0)&\"\")","v":""},{"$f":"IF(ISERROR($V1007),\"\",OFFSET('Smelter Look-up'!$E$4,$V1007-4,0))","v":""},{"$f":"IF(C1007=$X$4,\"Enter smelter details\", IF(ISERROR($V1007),\"\",OFFSET('Smelter Look-up'!$F$4,$V1007-4,0)))","v":""},{"$f":"IF(ISERROR($V1007),\"\",OFFSET('Smelter Look-up'!$G$4,$V1007-4,0))","v":""},{"$f":"IF(ISERROR($V1007),\"\",OFFSET('Smelter Look-up'!$H$4,$V1007-4,0))","v":""},{"$f":"IF(ISERROR($V1007),\"\",OFFSET('Smelter Look-up'!$I$4,$V1007-4,0))","v":""},{"$nulls":7},{"$f":"IF(ISERROR($V1007),\"\",OFFSET('Smelter Look-up'!$C$4,$V1007-4,0)&\"\")","v":""},"",{"$f":"IF(B1007=\"\",\"\",IF(ISERROR(MATCH($J1007,SorP!$B$1:$B$6230,0)),\"\",INDIRECT(\"'SorP'!$A$\"&MATCH($J1007,SorP!$B$1:$B$6230,0))))","v":""},null,{"$f":"IF(C1007=\"\",NA(),MATCH($B1007&$C1007,'Smelter Look-up'!$J:$J,0))","v":{"$error":"#N/A"}},null,0,null,null,null,""]
[null,{"$f":"IF(LEN(A1008)=0,\"\",INDEX('Smelter Look-up'!$A:$A,MATCH($A1008,'Smelter Look-up'!$E:$E,0)))","v":""},{"$f":"IF(LEN(A1008)=0,\"\",INDEX('Smelter Look-up'!$C:$C,MATCH($A1008,'Smelter Look-up'!$E:$E,0)))","v":""},null,{"$f":"IF(ISERROR($V1008),\"\",OFFSET('Smelter Look-up'!$D$4,$V1008-4,0)&\"\")","v":""},{"$f":"IF(ISERROR($V1008),\"\",OFFSET('Smelter Look-up'!$E$4,$V1008-4,0))","v":""},{"$f":"IF(C1008=$X$4,\"Enter smelter details\", IF(ISERROR($V1008),\"\",OFFSET('Smelter Look-up'!$F$4,$V1008-4,0)))","v":""},{"$f":"IF(ISERROR($V1008),\"\",OFFSET('Smelter Look-up'!$G$4,$V1008-4,0))","v":""},{"$f":"IF(ISERROR($V1008),\"\",OFFSET('Smelter Look-up'!$H$4,$V1008-4,0))","v":""},{"$f":"IF(ISERROR($V1008),\"\",OFFSET('Smelter Look-up'!$I$4,$V1008-4,0))","v":""},{"$nulls":7},{"$f":"IF(ISERROR($V1008),\"\",OFFSET('Smelter Look-up'!$C$4,$V1008-4,0)&\"\")","v":""},"",{"$f":"IF(B1008=\"\",\"\",IF(ISERROR(MATCH($J1008,SorP!$B$1:$B$6230,0)),\"\",INDIRECT(\"'SorP'!$A$\"&MATCH($J1008,SorP!$B$1:$B$6230,0))))","v":""},null,{"$f":"IF(C1008=\"\",NA(),MATCH($B1008&$C1008,'Smelter Look-up'!$J:$J,0))","v":{"$error":"#N/A"}},null,0,null,null,null,""]
[null,{"$f":"IF(LEN(A1009)=0,\"\",INDEX('Smelter Look-up'!$A:$A,MATCH($A1009,'Smelter Look-up'!$E:$E,0)))","v":""},{"$f":"IF(LEN(A1009)=0,\"\",INDEX('Smelter Look-up'!$C:$C,MATCH($A1009,'Smelter Look-up'!$E:$E,0)))","v":""},null,{"$f":"IF(ISERROR($V1009),\"\",OFFSET('Smelter Look-up'!$D$4,$V1009-4,0)&\"\")","v":""},{"$f":"IF(ISERROR($V1009),\"\",OFFSET('Smelter Look-up'!$E$4,$V1009-4,0))","v":""},{"$f":"IF(C1009=$X$4,\"Enter smelter details\", IF(ISERROR($V1009),\"\",OFFSET('Smelter Look-up'!$F$4,$V1009-4,0)))","v":""},{"$f":"IF(ISERROR($V1009),\"\",OFFSET('Smelter Look-up'!$G$4,$V1009-4,0))","v":""},{"$f":"IF(ISERROR($V1009),\"\",OFFSET('Smelter Look-up'!$H$4,$V1009-4,0))","v":""},{"$f":"IF(ISERROR($V1009),\"\",OFFSET('Smelter Look-up'!$I$4,$V1009-4,0))","v":""},{"$nulls":7},{"$f":"IF(ISERROR($V1009),\"\",OFFSET('Smelter Look-up'!$C$4,$V1009-4,0)&\"\")","v":""},"",{"$f":"IF(B1009=\"\",\"\",IF(ISERROR(MATCH($J1009,SorP!$B$1:$B$6230,0)),\"\",INDIRECT(\"'SorP'!$A$\"&MATCH($J1009,SorP!$B$1:$B$6230,0))))","v":""},null,{"$f":"IF(C1009=\"\",NA(),MATCH($B1009&$C1009,'Smelter Look-up'!$J:$J,0))","v":{"$error":"#N/A"}},null,0,null,null,null,""]
[null,{"$f":"IF(LEN(A1010)=0,\"\",INDEX('Smelter Look-up'!$A:$A,MATCH($A1010,'Smelter Look-up'!$E:$E,0)))","v":""},{"$f":"IF(LEN(A1010)=0,\"\",INDEX('Smelter Look-up'!$C:$C,MATCH($A1010,'Smelter Look-up'!$E:$E,0)))","v":""},null,{"$f":"IF(ISERROR($V1010),\"\",OFFSET('Smelter Look-up'!$D$4,$V1010-4,0)&\"\")","v":""},{"$f":"IF(ISERROR($V1010),\"\",OFFSET('Smelter Look-up'!$E$4,$V1010-4,0))","v":""},{"$f":"IF(C1010=$X$4,\"Enter smelter details\", IF(ISERROR($V1010),\"\",OFFSET('Smelter Look-up'!$F$4,$V1010-4,0)))","v":""},{"$f":"IF(ISERROR($V1010),\"\",OFFSET('Smelter Look-up'!$G$4,$V1010-4,0))","v":""},{"$f":"IF(ISERROR($V1010),\"\",OFFSET('Smelter Look-up'!$H$4,$V1010-4,0))","v":""},{"$f":"IF(ISERROR($V1010),\"\",OFFSET('Smelter Look-up'!$I$4,$V1010-4,0))","v":""},{"$nulls":7},{"$f":"IF(ISERROR($V1010),\"\",OFFSET('Smelter Look-up'!$C$4,$V1010-4,0)&\"\")","v":""},"",{"$f":"IF(B1010=\"\",\"\",IF(ISERROR(MATCH($J1010,SorP!$B$1:$B$6230,0)),\"\",INDIRECT(\"'SorP'!$A$\"&MATCH($J1010,SorP!$B$1:$B$6230,0))))","v":""},null,{"$f":"IF(C1010=\"\",NA(),MATCH($B1010&$C1010,'Smelter Look-up'!$J:$J,0))","v":{"$error":"#N/A"}},null,0,null,null,null,""]
[null,{"$f":"IF(LEN(A1011)=0,\"\",INDEX('Smelter Look-up'!$A:$A,MATCH($A1011,'Smelter Look-up'!$E:$E,0)))","v":""},{"$f":"IF(LEN(A1011)=0,\"\",INDEX('Smelter Look-up'!$C:$C,MATCH($A1011,'Smelter Look-up'!$E:$E,0)))","v":""},null,{"$f":"IF(ISERROR($V1011),\"\",OFFSET('Smelter Look-up'!$D$4,$V1011-4,0)&\"\")","v":""},{"$f":"IF(ISERROR($V1011),\"\",OFFSET('Smelter Look-up'!$E$4,$V1011-4,0))","v":""},{"$f":"IF(C1011=$X$4,\"Enter smelter details\", IF(ISERROR($V1011),\"\",OFFSET('Smelter Look-up'!$F$4,$V1011-4,0)))","v":""},{"$f":"IF(ISERROR($V1011),\"\",OFFSET('Smelter Look-up'!$G$4,$V1011-4,0))","v":""},{"$f":"IF(ISERROR($V1011),\"\",OFFSET('Smelter Look-up'!$H$4,$V1011-4,0))","v":""},{"$f":"IF(ISERROR($V1011),\"\",OFFSET('Smelter Look-up'!$I$4,$V1011-4,0))","v":""},{"$nulls":7},{"$f":"IF(ISERROR($V1011),\"\",OFFSET('Smelter Look-up'!$C$4,$V1011-4,0)&\"\")","v":""},"",{"$f":"IF(B1011=\"\",\"\",IF(ISERROR(MATCH($J1011,SorP!$B$1:$B$6230,0)),\"\",INDIRECT(\"'SorP'!$A$\"&MATCH($J1011,SorP!$B$1:$B$6230,0))))","v":""},null,{"$f":"IF(C1011=\"\",NA(),MATCH($B1011&$C1011,'Smelter Look-up'!$J:$J,0))","v":{"$error":"#N/A"}},null,0,null,null,null,""]
[null,{"$f":"IF(LEN(A1012)=0,\"\",INDEX('Smelter Look-up'!$A:$A,MATCH($A1012,'Smelter Look-up'!$E:$E,0)))","v":""},{"$f":"IF(LEN(A1012)=0,\"\",INDEX('Smelter Look-up'!$C:$C,MATCH($A1012,'Smelter Look-up'!$E:$E,0)))","v":""},null,{"$f":"IF(ISERROR($V1012),\"\",OFFSET('Smelter Look-up'!$D$4,$V1012-4,0)&\"\")","v":""},{"$f":"IF(ISERROR($V1012),\"\",OFFSET('Smelter Look-up'!$E$4,$V1012-4,0))","v":""},{"$f":"IF(C1012=$X$4,\"Enter smelter details\", IF(ISERROR($V1012),\"\",OFFSET('Smelter Look-up'!$F$4,$V1012-4,0)))","v":""},{"$f":"IF(ISERROR($V1012),\"\",OFFSET('Smelter Look-up'!$G$4,$V1012-4,0))","v":""},{"$f":"IF(ISERROR($V1012),\"\",OFFSET('Smelter Look-up'!$H$4,$V1012-4,0))","v":""},{"$f":"IF(ISERROR($V1012),\"\",OFFSET('Smelter Look-up'!$I$4,$V1012-4,0))","v":""},{"$nulls":7},{"$f":"IF(ISERROR($V1012),\"\",OFFSET('Smelter Look-up'!$C$4,$V1012-4,0)&\"\")","v":""},"",{"$f":"IF(B1012=\"\",\"\",IF(ISERROR(MATCH($J1012,SorP!$B$1:$B$6230,0)),\"\",INDIRECT(\"'SorP'!$A$\"&MATCH($J1012,SorP!$B$1:$B$6230,0))))","v":""},null,{"$f":"IF(C1012=\"\",NA(),MATCH($B1012&$C1012,'Smelter Look-up'!$J:$J,0))","v":{"$error":"#N/A"}},null,0,null,null,null,""]
[null,{"$f":"IF(LEN(A1013)=0,\"\",INDEX('Smelter Look-up'!$A:$A,MATCH($A1013,'Smelter Look-up'!$E:$E,0)))","v":""},{"$f":"IF(LEN(A1013)=0,\"\",INDEX('Smelter Look-up'!$C:$C,MATCH($A1013,'Smelter Look-up'!$E:$E,0)))","v":""},null,{"$f":"IF(ISERROR($V1013),\"\",OFFSET('Smelter Look-up'!$D$4,$V1013-4,0)&\"\")","v":""},{"$f":"IF(ISERROR($V1013),\"\",OFFSET('Smelter Look-up'!$E$4,$V1013-4,0))","v":""},{"$f":"IF(C1013=$X$4,\"Enter smelter details\", IF(ISERROR($V1013),\"\",OFFSET('Smelter Look-up'!$F$4,$V1013-4,0)))","v":""},{"$f":"IF(ISERROR($V1013),\"\",OFFSET('Smelter Look-up'!$G$4,$V1013-4,0))","v":""},{"$f":"IF(ISERROR($V1013),\"\",OFFSET('Smelter Look-up'!$H$4,$V1013-4,0))","v":""},{"$f":"IF(ISERROR($V1013),\"\",OFFSET('Smelter Look-up'!$I$4,$V1013-4,0))","v":""},{"$nulls":7},{"$f":"IF(ISERROR($V1013),\"\",OFFSET('Smelter Look-up'!$C$4,$V1013-4,0)&\"\")","v":""},"",{"$f":"IF(B1013=\"\",\"\",IF(ISERROR(MATCH($J1013,SorP!$B$1:$B$6230,0)),\"\",INDIRECT(\"'SorP'!$A$\"&MATCH($J1013,SorP!$B$1:$B$6230,0))))","v":""},null,{"$f":"IF(C1013=\"\",NA(),MATCH($B1013&$C1013,'Smelter Look-up'!$J:$J,0))","v":{"$error":"#N/A"}},null,0,null,null,null,""]
[null,{"$f":"IF(LEN(A1014)=0,\"\",INDEX('Smelter Look-up'!$A:$A,MATCH($A1014,'Smelter Look-up'!$E:$E,0)))","v":""},{"$f":"IF(LEN(A1014)=0,\"\",INDEX('Smelter Look-up'!$C:$C,MATCH($A1014,'Smelter Look-up'!$E:$E,0)))","v":""},null,{"$f":"IF(ISERROR($V1014),\"\",OFFSET('Smelter Look-up'!$D$4,$V1014-4,0)&\"\")","v":""},{"$f":"IF(ISERROR($V1014),\"\",OFFSET('Smelter Look-up'!$E$4,$V1014-4,0))","v":""},{"$f":"IF(C1014=$X$4,\"Enter smelter details\", IF(ISERROR($V1014),\"\",OFFSET('Smelter Look-up'!$F$4,$V1014-4,0)))","v":""},{"$f":"IF(ISERROR($V1014),\"\",OFFSET('Smelter Look-up'!$G$4,$V1014-4,0))","v":""},{"$f":"IF(ISERROR($V1014),\"\",OFFSET('Smelter Look-up'!$H$4,$V1014-4,0))","v":""},{"$f":"IF(ISERROR($V1014),\"\",OFFSET('Smelter Look-up'!$I$4,$V1014-4,0))","v":""},{"$nulls":7},{"$f":"IF(ISERROR($V1014),\"\",OFFSET('Smelter Look-up'!$C$4,$V1014-4,0)&\"\")","v":""},"",{"$f":"IF(B1014=\"\",\"\",IF(ISERROR(MATCH($J1014,SorP!$B$1:$B$6230,0)),\"\",INDIRECT(\"'SorP'!$A$\"&MATCH($J1014,SorP!$B$1:$B$6230,0))))","v":""},null,{"$f":"IF(C1014=\"\",NA(),MATCH($B1014&$C1014,'Smelter Look-up'!$J:$J,0))","v":{"$error":"#N/A"}},null,0,null,null,null,""]
[null,{"$f":"IF(LEN(A1015)=0,\"\",INDEX('Smelter Look-up'!$A:$A,MATCH($A1015,'Smelter Look-up'!$E:$E,0)))","v":""},{"$f":"IF(LEN(A1015)=0,\"\",INDEX('Smelter Look-up'!$C:$C,MATCH($A1015,'Smelter Look-up'!$E:$E,0)))","v":""},null,{"$f":"IF(ISERROR($V1015),\"\",OFFSET('Smelter Look-up'!$D$4,$V1015-4,0)&\"\")","v":""},{"$f":"IF(ISERROR($V1015),\"\",OFFSET('Smelter Look-up'!$E$4,$V1015-4,0))","v":""},{"$f":"IF(C1015=$X$4,\"Enter smelter details\", IF(ISERROR($V1015),\"\",OFFSET('Smelter Look-up'!$F$4,$V1015-4,0)))","v":""},{"$f":"IF(ISERROR($V1015),\"\",OFFSET('Smelter Look-up'!$G$4,$V1015-4,0))","v":""},{"$f":"IF(ISERROR($V1015),\"\",OFFSET('Smelter Look-up'!$H$4,$V1015-4,0))","v":""},{"$f":"IF(ISERROR($V1015),\"\",OFFSET('Smelter Look-up'!$I$4,$V1015-4,0))","v":""},{"$nulls":7},{"$f":"IF(ISERROR($V1015),\"\",OFFSET('Smelter Look-up'!$C$4,$V1015-4,0)&\"\")","v":""},"",{"$f":"IF(B1015=\"\",\"\",IF(ISERROR(MATCH($J1015,SorP!$B$1:$B$6230,0)),\"\",INDIRECT(\"'SorP'!$A$\"&MATCH($J1015,SorP!$B$1:$B$6230,0))))","v":""},null,{"$f":"IF(C1015=\"\",NA(),MATCH($B1015&$C1015,'Smelter Look-up'!$J:$J,0))","v":{"$error":"#N/A"}},null,0,null,null,null,""]
[null,{"$f":"IF(LEN(A1016)=0,\"\",INDEX('Smelter Look-up'!$A:$A,MATCH($A1016,'Smelter Look-up'!$E:$E,0)))","v":""},{"$f":"IF(LEN(A1016)=0,\"\",INDEX('Smelter Look-up'!$C:$C,MATCH($A1016,'Smelter Look-up'!$E:$E,0)))","v":""},null,{"$f":"IF(ISERROR($V1016),\"\",OFFSET('Smelter Look-up'!$D$4,$V1016-4,0)&\"\")","v":""},{"$f":"IF(ISERROR($V1016),\"\",OFFSET('Smelter Look-up'!$E$4,$V1016-4,0))","v":""},{"$f":"IF(C1016=$X$4,\"Enter smelter details\", IF(ISERROR($V1016),\"\",OFFSET('Smelter Look-up'!$F$4,$V1016-4,0)))","v":""},{"$f":"IF(ISERROR($V1016),\"\",OFFSET('Smelter Look-up'!$G$4,$V1016-4,0))","v":""},{"$f":"IF(ISERROR($V1016),\"\",OFFSET('Smelter Look-up'!$H$4,$V1016-4,0))","v":""},{"$f":"IF(ISERROR($V1016),\"\",OFFSET('Smelter Look-up'!$I$4,$V1016-4,0))","v":""},{"$nulls":7},{"$f":"IF(ISERROR($V1016),\"\",OFFSET('Smelter Look-up'!$C$4,$V1016-4,0)&\"\")","v":""},"",{"$f":"IF(B1016=\"\",\"\",IF(ISERROR(MATCH($J1016,SorP!$B$1:$B$6230,0)),\"\",INDIRECT(\"'SorP'!$A$\"&MATCH($J1016,SorP!$B$1:$B$6230,0))))","v":""},null,{"$f":"IF(C1016=\"\",NA(),MATCH($B1016&$C1016,'Smelter Look-up'!$J:$J,0))","v":{"$error":"#N/A"}},null,0,null,null,null,""]
[null,{"$f":"IF(LEN(A1017)=0,\"\",INDEX('Smelter Look-up'!$A:$A,MATCH($A1017,'Smelter Look-up'!$E:$E,0)))","v":""},{"$f":"IF(LEN(A1017)=0,\"\",INDEX('Smelter Look-up'!$C:$C,MATCH($A1017,'Smelter Look-up'!$E:$E,0)))","v":""},null,{"$f":"IF(ISERROR($V1017),\"\",OFFSET('Smelter Look-up'!$D$4,$V1017-4,0)&\"\")","v":""},{"$f":"IF(ISERROR($V1017),\"\",OFFSET('Smelter Look-up'!$E$4,$V1017-4,0))","v":""},{"$f":"IF(C1017=$X$4,\"Enter smelter details\", IF(ISERROR($V1017),\"\",OFFSET('Smelter Look-up'!$F$4,$V1017-4,0)))","v":""},{"$f":"IF(ISERROR($V1017),\"\",OFFSET('Smelter Look-up'!$G$4,$V1017-4,0))","v":""},{"$f":"IF(ISERROR($V1017),\"\",OFFSET('Smelter Look-up'!$H$4,$V1017-4,0))","v":""},{"$f":"IF(ISERROR($V1017),\"\",OFFSET('Smelter Look-up'!$I$4,$V1017-4,0))","v":""},{"$nulls":7},{"$f":"IF(ISERROR($V1017),\"\",OFFSET('Smelter Look-up'!$C$4,$V1017-4,0)&\"\")","v":""},"",{"$f":"IF(B1017=\"\",\"\",IF(ISERROR(MATCH($J1017,SorP!$B$1:$B$6230,0)),\"\",INDIRECT(\"'SorP'!$A$\"&MATCH($J1017,SorP!$B$1:$B$6230,0))))","v":""},null,{"$f":"IF(C1017=\"\",NA(),MATCH($B1017&$C1017,'Smelter Look-up'!$J:$J,0))","v":{"$error":"#N/A"}},null,0,null,null,null,""]
[null,{"$f":"IF(LEN(A1018)=0,\"\",INDEX('Smelter Look-up'!$A:$A,MATCH($A1018,'Smelter Look-up'!$E:$E,0)))","v":""},{"$f":"IF(LEN(A1018)=0,\"\",INDEX('Smelter Look-up'!$C:$C,MATCH($A1018,'Smelter Look-up'!$E:$E,0)))","v":""},null,{"$f":"IF(ISERROR($V1018),\"\",OFFSET('Smelter Look-up'!$D$4,$V1018-4,0)&\"\")","v":""},{"$f":"IF(ISERROR($V1018),\"\",OFFSET('Smelter Look-up'!$E$4,$V1018-4,0))","v":""},{"$f":"IF(C1018=$X$4,\"Enter smelter details\", IF(ISERROR($V1018),\"\",OFFSET('Smelter Look-up'!$F$4,$V1018-4,0)))","v":""},{"$f":"IF(ISERROR($V1018),\"\",OFFSET('Smelter Look-up'!$G$4,$V1018-4,0))","v":""},{"$f":"IF(ISERROR($V1018),\"\",OFFSET('Smelter Look-up'!$H$4,$V1018-4,0))","v":""},{"$f":"IF(ISERROR($V1018),\"\",OFFSET('Smelter Look-up'!$I$4,$V1018-4,0))","v":""},{"$nulls":7},{"$f":"IF(ISERROR($V1018),\"\",OFFSET('Smelter Look-up'!$C$4,$V1018-4,0)&\"\")","v":""},"",{"$f":"IF(B1018=\"\",\"\",IF(ISERROR(MATCH($J1018,SorP!$B$1:$B$6230,0)),\"\",INDIRECT(\"'SorP'!$A$\"&MATCH($J1018,SorP!$B$1:$B$6230,0))))","v":""},null,{"$f":"IF(C1018=\"\",NA(),MATCH($B1018&$C1018,'Smelter Look-up'!$J:$J,0))","v":{"$error":"#N/A"}},null,0,null,null,null,""]
[null,{"$f":"IF(LEN(A1019)=0,\"\",INDEX('Smelter Look-up'!$A:$A,MATCH($A1019,'Smelter Look-up'!$E:$E,0)))","v":""},{"$f":"IF(LEN(A1019)=0,\"\",INDEX('Smelter Look-up'!$C:$C,MATCH($A1019,'Smelter Look-up'!$E:$E,0)))","v":""},null,{"$f":"IF(ISERROR($V1019),\"\",OFFSET('Smelter Look-up'!$D$4,$V1019-4,0)&\"\")","v":""},{"$f":"IF(ISERROR($V1019),\"\",OFFSET('Smelter Look-up'!$E$4,$V1019-4,0))","v":""},{"$f":"IF(C1019=$X$4,\"Enter smelter details\", IF(ISERROR($V1019),\"\",OFFSET('Smelter Look-up'!$F$4,$V1019-4,0)))","v":""},{"$f":"IF(ISERROR($V1019),\"\",OFFSET('Smelter Look-up'!$G$4,$V1019-4,0))","v":""},{"$f":"IF(ISERROR($V1019),\"\",OFFSET('Smelter Look-up'!$H$4,$V1019-4,0))","v":""},{"$f":"IF(ISERROR($V1019),\"\",OFFSET('Smelter Look-up'!$I$4,$V1019-4,0))","v":""},{"$nulls":7},{"$f":"IF(ISERROR($V1019),\"\",OFFSET('Smelter Look-up'!$C$4,$V1019-4,0)&\"\")","v":""},{"$f":"IF(B1019=\"\",\"\",IF(ISERROR(MATCH($E1019,CL,0)),\"Unknown\",INDIRECT(\"'C'!$A$\"&MATCH($E1019,CL,0)+1)))","v":""},{"$f":"IF(B1019=\"\",\"\",IF(ISERROR(MATCH($J1019,SorP!$B$1:$B$6230,0)),\"\",INDIRECT(\"'SorP'!$A$\"&MATCH($J1019,SorP!$B$1:$B$6230,0))))","v":""},null,{"$f":"IF(C1019=\"\",NA(),MATCH($B1019&$C1019,'Smelter Look-up'!$J:$J,0))","v":{"$error":"#N/A"}},null,{"$f":"IF(AND(C1019=\"Smelter not listed\",OR(LEN(D1019)=0,LEN(E1019)=0)),1,0)","v":0},null,null,null,{"$f":"B1019&C1019","v":""}]
[null,{"$f":"IF(LEN(A1020)=0,\"\",INDEX('Smelter Look-up'!$A:$A,MATCH($A1020,'Smelter Look-up'!$E:$E,0)))","v":""},{"$f":"IF(LEN(A1020)=0,\"\",INDEX('Smelter Look-up'!$C:$C,MATCH($A1020,'Smelter Look-up'!$E:$E,0)))","v":""},null,{"$f":"IF(ISERROR($V1020),\"\",OFFSET('Smelter Look-up'!$D$4,$V1020-4,0)&\"\")","v":""},{"$f":"IF(ISERROR($V1020),\"\",OFFSET('Smelter Look-up'!$E$4,$V1020-4,0))","v":""},{"$f":"IF(C1020=$X$4,\"Enter smelter details\", IF(ISERROR($V1020),\"\",OFFSET('Smelter Look-up'!$F$4,$V1020-4,0)))","v":""},{"$f":"IF(ISERROR($V1020),\"\",OFFSET('Smelter Look-up'!$G$4,$V1020-4,0))","v":""},{"$f":"IF(ISERROR($V1020),\"\",OFFSET('Smelter Look-up'!$H$4,$V1020-4,0))","v":""},{"$f":"IF(ISERROR($V1020),\"\",OFFSET('Smelter Look-up'!$I$4,$V1020-4,0))","v":""},{"$nulls":7},{"$f":"IF(ISERROR($V1020),\"\",OFFSET('Smelter Look-up'!$C$4,$V1020-4,0)&\"\")","v":""},"",{"$f":"IF(B1020=\"\",\"\",IF(ISERROR(MATCH($J1020,SorP!$B$1:$B$6230,0)),\"\",INDIRECT(\"'SorP'!$A$\"&MATCH($J1020,SorP!$B$1:$B$6230,0))))","v":""},null,{"$f":"IF(C1020=\"\",NA(),MATCH($B1020&$C1020,'Smelter Look-up'!$J:$J,0))","v":{"$error":"#N/A"}},null,0,null,null,null,""]
[null,{"$f":"IF(LEN(A1021)=0,\"\",INDEX('Smelter Look-up'!$A:$A,MATCH($A1021,'Smelter Look-up'!$E:$E,0)))","v":""},{"$f":"IF(LEN(A1021)=0,\"\",INDEX('Smelter Look-up'!$C:$C,MATCH($A1021,'Smelter Look-up'!$E:$E,0)))","v":""},null,{"$f":"IF(ISERROR($V1021),\"\",OFFSET('Smelter Look-up'!$D$4,$V1021-4,0)&\"\")","v":""},{"$f":"IF(ISERROR($V1021),\"\",OFFSET('Smelter Look-up'!$E$4,$V1021-4,0))","v":""},{"$f":"IF(C1021=$X$4,\"Enter smelter details\", IF(ISERROR($V1021),\"\",OFFSET('Smelter Look-up'!$F$4,$V1021-4,0)))","v":""},{"$f":"IF(ISERROR($V1021),\"\",OFFSET('Smelter Look-up'!$G$4,$V1021-4,0))","v":""},{"$f":"IF(ISERROR($V1021),\"\",OFFSET('Smelter Look-up'!$H$4,$V1021-4,0))","v":""},{"$f":"IF(ISERROR($V1021),\"\",OFFSET('Smelter Look-up'!$I$4,$V1021-4,0))","v":""},{"$nulls":7},{"$f":"IF(ISERROR($V1021),\"\",OFFSET('Smelter Look-up'!$C$4,$V1021-4,0)&\"\")","v":""},"",{"$f":"IF(B1021=\"\",\"\",IF(ISERROR(MATCH($J1021,SorP!$B$1:$B$6230,0)),\"\",INDIRECT(\"'SorP'!$A$\"&MATCH($J1021,SorP!$B$1:$B$6230,0))))","v":""},null,{"$f":"IF(C1021=\"\",NA(),MATCH($B1021&$C1021,'Smelter Look-up'!$J:$J,0))","v":{"$error":"#N/A"}},null,0,null,null,null,""]
[null,{"$f":"IF(LEN(A1022)=0,\"\",INDEX('Smelter Look-up'!$A:$A,MATCH($A1022,'Smelter Look-up'!$E:$E,0)))","v":""},{"$f":"IF(LEN(A1022)=0,\"\",INDEX('Smelter Look-up'!$C:$C,MATCH($A1022,'Smelter Look-up'!$E:$E,0)))","v":""},null,{"$f":"IF(ISERROR($V1022),\"\",OFFSET('Smelter Look-up'!$D$4,$V1022-4,0)&\"\")","v":""},{"$f":"IF(ISERROR($V1022),\"\",OFFSET('Smelter Look-up'!$E$4,$V1022-4,0))","v":""},{"$f":"IF(C1022=$X$4,\"Enter smelter details\", IF(ISERROR($V1022),\"\",OFFSET('Smelter Look-up'!$F$4,$V1022-4,0)))","v":""},{"$f":"IF(ISERROR($V1022),\"\",OFFSET('Smelter Look-up'!$G$4,$V1022-4,0))","v":""},{"$f":"IF(ISERROR($V1022),\"\",OFFSET('Smelter Look-up'!$H$4,$V1022-4,0))","v":""},{"$f":"IF(ISERROR($V1022),\"\",OFFSET('Smelter Look-up'!$I$4,$V1022-4,0))","v":""},{"$nulls":7},{"$f":"IF(ISERROR($V1022),\"\",OFFSET('Smelter Look-up'!$C$4,$V1022-4,0)&\"\")","v":""},"",{"$f":"IF(B1022=\"\",\"\",IF(ISERROR(MATCH($J1022,SorP!$B$1:$B$6230,0)),\"\",INDIRECT(\"'SorP'!$A$\"&MATCH($J1022,SorP!$B$1:$B$6230,0))))","v":""},null,{"$f":"IF(C1022=\"\",NA(),MATCH($B1022&$C1022,'Smelter Look-up'!$J:$J,0))","v":{"$error":"#N/A"}},null,0,null,null,null,""]
[null,{"$f":"IF(LEN(A1023)=0,\"\",INDEX('Smelter Look-up'!$A:$A,MATCH($A1023,'Smelter Look-up'!$E:$E,0)))","v":""},{"$f":"IF(LEN(A1023)=0,\"\",INDEX('Smelter Look-up'!$C:$C,MATCH($A1023,'Smelter Look-up'!$E:$E,0)))","v":""},null,{"$f":"IF(ISERROR($V1023),\"\",OFFSET('Smelter Look-up'!$D$4,$V1023-4,0)&\"\")","v":""},{"$f":"IF(ISERROR($V1023),\"\",OFFSET('Smelter Look-up'!$E$4,$V1023-4,0))","v":""},{"$f":"IF(C1023=$X$4,\"Enter smelter details\", IF(ISERROR($V1023),\"\",OFFSET('Smelter Look-up'!$F$4,$V1023-4,0)))","v":""},{"$f":"IF(ISERROR($V1023),\"\",OFFSET('Smelter Look-up'!$G$4,$V1023-4,0))","v":""},{"$f":"IF(ISERROR($V1023),\"\",OFFSET('Smelter Look-up'!$H$4,$V1023-4,0))","v":""},{"$f":"IF(ISERROR($V1023),\"\",OFFSET('Smelter Look-up'!$I$4,$V1023-4,0))","v":""},{"$nulls":7},{"$f":"IF(ISERROR($V1023),\"\",OFFSET('Smelter Look-up'!$C$4,$V1023-4,0)&\"\")","v":""},"",{"$f":"IF(B1023=\"\",\"\",IF(ISERROR(MATCH($J1023,SorP!$B$1:$B$6230,0)),\"\",INDIRECT(\"'SorP'!$A$\"&MATCH($J1023,SorP!$B$1:$B$6230,0))))","v":""},null,{"$f":"IF(C1023=\"\",NA(),MATCH($B1023&$C1023,'Smelter Look-up'!$J:$J,0))","v":{"$error":"#N/A"}},null,0,null,null,null,""]
[null,{"$f":"IF(LEN(A1024)=0,\"\",INDEX('Smelter Look-up'!$A:$A,MATCH($A1024,'Smelter Look-up'!$E:$E,0)))","v":""},{"$f":"IF(LEN(A1024)=0,\"\",INDEX('Smelter Look-up'!$C:$C,MATCH($A1024,'Smelter Look-up'!$E:$E,0)))","v":""},null,{"$f":"IF(ISERROR($V1024),\"\",OFFSET('Smelter Look-up'!$D$4,$V1024-4,0)&\"\")","v":""},{"$f":"IF(ISERROR($V1024),\"\",OFFSET('Smelter Look-up'!$E$4,$V1024-4,0))","v":""},{"$f":"IF(C1024=$X$4,\"Enter smelter details\", IF(ISERROR($V1024),\"\",OFFSET('Smelter Look-up'!$F$4,$V1024-4,0)))","v":""},{"$f":"IF(ISERROR($V1024),\"\",OFFSET('Smelter Look-up'!$G$4,$V1024-4,0))","v":""},{"$f":"IF(ISERROR($V1024),\"\",OFFSET('Smelter Look-up'!$H$4,$V1024-4,0))","v":""},{"$f":"IF(ISERROR($V1024),\"\",OFFSET('Smelter Look-up'!$I$4,$V1024-4,0))","v":""},{"$nulls":7},{"$f":"IF(ISERROR($V1024),\"\",OFFSET('Smelter Look-up'!$C$4,$V1024-4,0)&\"\")","v":""},"",{"$f":"IF(B1024=\"\",\"\",IF(ISERROR(MATCH($J1024,SorP!$B$1:$B$6230,0)),\"\",INDIRECT(\"'SorP'!$A$\"&MATCH($J1024,SorP!$B$1:$B$6230,0))))","v":""},null,{"$f":"IF(C1024=\"\",NA(),MATCH($B1024&$C1024,'Smelter Look-up'!$J:$J,0))","v":{"$error":"#N/A"}},null,0,null,null,null,""]
[null,{"$f":"IF(LEN(A1025)=0,\"\",INDEX('Smelter Look-up'!$A:$A,MATCH($A1025,'Smelter Look-up'!$E:$E,0)))","v":""},{"$f":"IF(LEN(A1025)=0,\"\",INDEX('Smelter Look-up'!$C:$C,MATCH($A1025,'Smelter Look-up'!$E:$E,0)))","v":""},null,{"$f":"IF(ISERROR($V1025),\"\",OFFSET('Smelter Look-up'!$D$4,$V1025-4,0)&\"\")","v":""},{"$f":"IF(ISERROR($V1025),\"\",OFFSET('Smelter Look-up'!$E$4,$V1025-4,0))","v":""},{"$f":"IF(C1025=$X$4,\"Enter smelter details\", IF(ISERROR($V1025),\"\",OFFSET('Smelter Look-up'!$F$4,$V1025-4,0)))","v":""},{"$f":"IF(ISERROR($V1025),\"\",OFFSET('Smelter Look-up'!$G$4,$V1025-4,0))","v":""},{"$f":"IF(ISERROR($V1025),\"\",OFFSET('Smelter Look-up'!$H$4,$V1025-4,0))","v":""},{"$f":"IF(ISERROR($V1025),\"\",OFFSET('Smelter Look-up'!$I$4,$V1025-4,0))","v":""},{"$nulls":7},{"$f":"IF(ISERROR($V1025),\"\",OFFSET('Smelter Look-up'!$C$4,$V1025-4,0)&\"\")","v":""},"",{"$f":"IF(B1025=\"\",\"\",IF(ISERROR(MATCH($J1025,SorP!$B$1:$B$6230,0)),\"\",INDIRECT(\"'SorP'!$A$\"&MATCH($J1025,SorP!$B$1:$B$6230,0))))","v":""},null,{"$f":"IF(C1025=\"\",NA(),MATCH($B1025&$C1025,'Smelter Look-up'!$J:$J,0))","v":{"$error":"#N/A"}},null,0,null,null,null,""]
[null,{"$f":"IF(LEN(A1026)=0,\"\",INDEX('Smelter Look-up'!$A:$A,MATCH($A1026,'Smelter Look-up'!$E:$E,0)))","v":""},{"$f":"IF(LEN(A1026)=0,\"\",INDEX('Smelter Look-up'!$C:$C,MATCH($A1026,'Smelter Look-up'!$E:$E,0)))","v":""},null,{"$f":"IF(ISERROR($V1026),\"\",OFFSET('Smelter Look-up'!$D$4,$V1026-4,0)&\"\")","v":""},{"$f":"IF(ISERROR($V1026),\"\",OFFSET('Smelter Look-up'!$E$4,$V1026-4,0))","v":""},{"$f":"IF(C1026=$X$4,\"Enter smelter details\", IF(ISERROR($V1026),\"\",OFFSET('Smelter Look-up'!$F$4,$V1026-4,0)))","v":""},{"$f":"IF(ISERROR($V1026),\"\",OFFSET('Smelter Look-up'!$G$4,$V1026-4,0))","v":""},{"$f":"IF(ISERROR($V1026),\"\",OFFSET('Smelter Look-up'!$H$4,$V1026-4,0))","v":""},{"$f":"IF(ISERROR($V1026),\"\",OFFSET('Smelter Look-up'!$I$4,$V1026-4,0))","v":""},{"$nulls":7},{"$f":"IF(ISERROR($V1026),\"\",OFFSET('Smelter Look-up'!$C$4,$V1026-4,0)&\"\")","v":""},"",{"$f":"IF(B1026=\"\",\"\",IF(ISERROR(MATCH($J1026,SorP!$B$1:$B$6230,0)),\"\",INDIRECT(\"'SorP'!$A$\"&MATCH($J1026,SorP!$B$1:$B$6230,0))))","v":""},null,{"$f":"IF(C1026=\"\",NA(),MATCH($B1026&$C1026,'Smelter Look-up'!$J:$J,0))","v":{"$error":"#N/A"}},null,0,null,null,null,""]
[null,{"$f":"IF(LEN(A1027)=0,\"\",INDEX('Smelter Look-up'!$A:$A,MATCH($A1027,'Smelter Look-up'!$E:$E,0)))","v":""},{"$f":"IF(LEN(A1027)=0,\"\",INDEX('Smelter Look-up'!$C:$C,MATCH($A1027,'Smelter Look-up'!$E:$E,0)))","v":""},null,{"$f":"IF(ISERROR($V1027),\"\",OFFSET('Smelter Look-up'!$D$4,$V1027-4,0)&\"\")","v":""},{"$f":"IF(ISERROR($V1027),\"\",OFFSET('Smelter Look-up'!$E$4,$V1027-4,0))","v":""},{"$f":"IF(C1027=$X$4,\"Enter smelter details\", IF(ISERROR($V1027),\"\",OFFSET('Smelter Look-up'!$F$4,$V1027-4,0)))","v":""},{"$f":"IF(ISERROR($V1027),\"\",OFFSET('Smelter Look-up'!$G$4,$V1027-4,0))","v":""},{"$f":"IF(ISERROR($V1027),\"\",OFFSET('Smelter Look-up'!$H$4,$V1027-4,0))","v":""},{"$f":"IF(ISERROR($V1027),\"\",OFFSET('Smelter Look-up'!$I$4,$V1027-4,0))","v":""},{"$nulls":7},{"$f":"IF(ISERROR($V1027),\"\",OFFSET('Smelter Look-up'!$C$4,$V1027-4,0)&\"\")","v":""},"",{"$f":"IF(B1027=\"\",\"\",IF(ISERROR(MATCH($J1027,SorP!$B$1:$B$6230,0)),\"\",INDIRECT(\"'SorP'!$A$\"&MATCH($J1027,SorP!$B$1:$B$6230,0))))","v":""},null,{"$f":"IF(C1027=\"\",NA(),MATCH($B1027&$C1027,'Smelter Look-up'!$J:$J,0))","v":{"$error":"#N/A"}},null,0,null,null,null,""]
[null,{"$f":"IF(LEN(A1028)=0,\"\",INDEX('Smelter Look-up'!$A:$A,MATCH($A1028,'Smelter Look-up'!$E:$E,0)))","v":""},{"$f":"IF(LEN(A1028)=0,\"\",INDEX('Smelter Look-up'!$C:$C,MATCH($A1028,'Smelter Look-up'!$E:$E,0)))","v":""},null,{"$f":"IF(ISERROR($V1028),\"\",OFFSET('Smelter Look-up'!$D$4,$V1028-4,0)&\"\")","v":""},{"$f":"IF(ISERROR($V1028),\"\",OFFSET('Smelter Look-up'!$E$4,$V1028-4,0))","v":""},{"$f":"IF(C1028=$X$4,\"Enter smelter details\", IF(ISERROR($V1028),\"\",OFFSET('Smelter Look-up'!$F$4,$V1028-4,0)))","v":""},{"$f":"IF(ISERROR($V1028),\"\",OFFSET('Smelter Look-up'!$G$4,$V1028-4,0))","v":""},{"$f":"IF(ISERROR($V1028),\"\",OFFSET('Smelter Look-up'!$H$4,$V1028-4,0))","v":""},{"$f":"IF(ISERROR($V1028),\"\",OFFSET('Smelter Look-up'!$I$4,$V1028-4,0))","v":""},{"$nulls":7},{"$f":"IF(ISERROR($V1028),\"\",OFFSET('Smelter Look-up'!$C$4,$V1028-4,0)&\"\")","v":""},"",{"$f":"IF(B1028=\"\",\"\",IF(ISERROR(MATCH($J1028,SorP!$B$1:$B$6230,0)),\"\",INDIRECT(\"'SorP'!$A$\"&MATCH($J1028,SorP!$B$1:$B$6230,0))))","v":""},null,{"$f":"IF(C1028=\"\",NA(),MATCH($B1028&$C1028,'Smelter Look-up'!$J:$J,0))","v":{"$error":"#N/A"}},null,0,null,null,null,""]
[null,{"$f":"IF(LEN(A1029)=0,\"\",INDEX('Smelter Look-up'!$A:$A,MATCH($A1029,'Smelter Look-up'!$E:$E,0)))","v":""},{"$f":"IF(LEN(A1029)=0,\"\",INDEX('Smelter Look-up'!$C:$C,MATCH($A1029,'Smelter Look-up'!$E:$E,0)))","v":""},null,{"$f":"IF(ISERROR($V1029),\"\",OFFSET('Smelter Look-up'!$D$4,$V1029-4,0)&\"\")","v":""},{"$f":"IF(ISERROR($V1029),\"\",OFFSET('Smelter Look-up'!$E$4,$V1029-4,0))","v":""},{"$f":"IF(C1029=$X$4,\"Enter smelter details\", IF(ISERROR($V1029),\"\",OFFSET('Smelter Look-up'!$F$4,$V1029-4,0)))","v":""},{"$f":"IF(ISERROR($V1029),\"\",OFFSET('Smelter Look-up'!$G$4,$V1029-4,0))","v":""},{"$f":"IF(ISERROR($V1029),\"\",OFFSET('Smelter Look-up'!$H$4,$V1029-4,0))","v":""},{"$f":"IF(ISERROR($V1029),\"\",OFFSET('Smelter Look-up'!$I$4,$V1029-4,0))","v":""},{"$nulls":7},{"$f":"IF(ISERROR($V1029),\"\",OFFSET('Smelter Look-up'!$C$4,$V1029-4,0)&\"\")","v":""},"",{"$f":"IF(B1029=\"\",\"\",IF(ISERROR(MATCH($J1029,SorP!$B$1:$B$6230,0)),\"\",INDIRECT(\"'SorP'!$A$\"&MATCH($J1029,SorP!$B$1:$B$6230,0))))","v":""},null,{"$f":"IF(C1029=\"\",NA(),MATCH($B1029&$C1029,'Smelter Look-up'!$J:$J,0))","v":{"$error":"#N/A"}},null,0,null,null,null,""]
[null,{"$f":"IF(LEN(A1030)=0,\"\",INDEX('Smelter Look-up'!$A:$A,MATCH($A1030,'Smelter Look-up'!$E:$E,0)))","v":""},{"$f":"IF(LEN(A1030)=0,\"\",INDEX('Smelter Look-up'!$C:$C,MATCH($A1030,'Smelter Look-up'!$E:$E,0)))","v":""},null,{"$f":"IF(ISERROR($V1030),\"\",OFFSET('Smelter Look-up'!$D$4,$V1030-4,0)&\"\")","v":""},{"$f":"IF(ISERROR($V1030),\"\",OFFSET('Smelter Look-up'!$E$4,$V1030-4,0))","v":""},{"$f":"IF(C1030=$X$4,\"Enter smelter details\", IF(ISERROR($V1030),\"\",OFFSET('Smelter Look-up'!$F$4,$V1030-4,0)))","v":""},{"$f":"IF(ISERROR($V1030),\"\",OFFSET('Smelter Look-up'!$G$4,$V1030-4,0))","v":""},{"$f":"IF(ISERROR($V1030),\"\",OFFSET('Smelter Look-up'!$H$4,$V1030-4,0))","v":""},{"$f":"IF(ISERROR($V1030),\"\",OFFSET('Smelter Look-up'!$I$4,$V1030-4,0))","v":""},{"$nulls":7},{"$f":"IF(ISERROR($V1030),\"\",OFFSET('Smelter Look-up'!$C$4,$V1030-4,0)&\"\")","v":""},"",{"$f":"IF(B1030=\"\",\"\",IF(ISERROR(MATCH($J1030,SorP!$B$1:$B$6230,0)),\"\",INDIRECT(\"'SorP'!$A$\"&MATCH($J1030,SorP!$B$1:$B$6230,0))))","v":""},null,{"$f":"IF(C1030=\"\",NA(),MATCH($B1030&$C1030,'Smelter Look-up'!$J:$J,0))","v":{"$error":"#N/A"}},null,0,null,null,null,""]
[null,{"$f":"IF(LEN(A1031)=0,\"\",INDEX('Smelter Look-up'!$A:$A,MATCH($A1031,'Smelter Look-up'!$E:$E,0)))","v":""},{"$f":"IF(LEN(A1031)=0,\"\",INDEX('Smelter Look-up'!$C:$C,MATCH($A1031,'Smelter Look-up'!$E:$E,0)))","v":""},null,{"$f":"IF(ISERROR($V1031),\"\",OFFSET('Smelter Look-up'!$D$4,$V1031-4,0)&\"\")","v":""},{"$f":"IF(ISERROR($V1031),\"\",OFFSET('Smelter Look-up'!$E$4,$V1031-4,0))","v":""},{"$f":"IF(C1031=$X$4,\"Enter smelter details\", IF(ISERROR($V1031),\"\",OFFSET('Smelter Look-up'!$F$4,$V1031-4,0)))","v":""},{"$f":"IF(ISERROR($V1031),\"\",OFFSET('Smelter Look-up'!$G$4,$V1031-4,0))","v":""},{"$f":"IF(ISERROR($V1031),\"\",OFFSET('Smelter Look-up'!$H$4,$V1031-4,0))","v":""},{"$f":"IF(ISERROR($V1031),\"\",OFFSET('Smelter Look-up'!$I$4,$V1031-4,0))","v":""},{"$nulls":7},{"$f":"IF(ISERROR($V1031),\"\",OFFSET('Smelter Look-up'!$C$4,$V1031-4,0)&\"\")","v":""},"",{"$f":"IF(B1031=\"\",\"\",IF(ISERROR(MATCH($J1031,SorP!$B$1:$B$6230,0)),\"\",INDIRECT(\"'SorP'!$A$\"&MATCH($J1031,SorP!$B$1:$B$6230,0))))","v":""},null,{"$f":"IF(C1031=\"\",NA(),MATCH($B1031&$C1031,'Smelter Look-up'!$J:$J,0))","v":{"$error":"#N/A"}},null,0,null,null,null,""]
[null,{"$f":"IF(LEN(A1032)=0,\"\",INDEX('Smelter Look-up'!$A:$A,MATCH($A1032,'Smelter Look-up'!$E:$E,0)))","v":""},{"$f":"IF(LEN(A1032)=0,\"\",INDEX('Smelter Look-up'!$C:$C,MATCH($A1032,'Smelter Look-up'!$E:$E,0)))","v":""},null,{"$f":"IF(ISERROR($V1032),\"\",OFFSET('Smelter Look-up'!$D$4,$V1032-4,0)&\"\")","v":""},{"$f":"IF(ISERROR($V1032),\"\",OFFSET('Smelter Look-up'!$E$4,$V1032-4,0))","v":""},{"$f":"IF(C1032=$X$4,\"Enter smelter details\", IF(ISERROR($V1032),\"\",OFFSET('Smelter Look-up'!$F$4,$V1032-4,0)))","v":""},{"$f":"IF(ISERROR($V1032),\"\",OFFSET('Smelter Look-up'!$G$4,$V1032-4,0))","v":""},{"$f":"IF(ISERROR($V1032),\"\",OFFSET('Smelter Look-up'!$H$4,$V1032-4,0))","v":""},{"$f":"IF(ISERROR($V1032),\"\",OFFSET('Smelter Look-up'!$I$4,$V1032-4,0))","v":""},{"$nulls":7},{"$f":"IF(ISERROR($V1032),\"\",OFFSET('Smelter Look-up'!$C$4,$V1032-4,0)&\"\")","v":""},"",{"$f":"IF(B1032=\"\",\"\",IF(ISERROR(MATCH($J1032,SorP!$B$1:$B$6230,0)),\"\",INDIRECT(\"'SorP'!$A$\"&MATCH($J1032,SorP!$B$1:$B$6230,0))))","v":""},null,{"$f":"IF(C1032=\"\",NA(),MATCH($B1032&$C1032,'Smelter Look-up'!$J:$J,0))","v":{"$error":"#N/A"}},null,0,null,null,null,""]
[null,{"$f":"IF(LEN(A1033)=0,\"\",INDEX('Smelter Look-up'!$A:$A,MATCH($A1033,'Smelter Look-up'!$E:$E,0)))","v":""},{"$f":"IF(LEN(A1033)=0,\"\",INDEX('Smelter Look-up'!$C:$C,MATCH($A1033,'Smelter Look-up'!$E:$E,0)))","v":""},null,{"$f":"IF(ISERROR($V1033),\"\",OFFSET('Smelter Look-up'!$D$4,$V1033-4,0)&\"\")","v":""},{"$f":"IF(ISERROR($V1033),\"\",OFFSET('Smelter Look-up'!$E$4,$V1033-4,0))","v":""},{"$f":"IF(C1033=$X$4,\"Enter smelter details\", IF(ISERROR($V1033),\"\",OFFSET('Smelter Look-up'!$F$4,$V1033-4,0)))","v":""},{"$f":"IF(ISERROR($V1033),\"\",OFFSET('Smelter Look-up'!$G$4,$V1033-4,0))","v":""},{"$f":"IF(ISERROR($V1033),\"\",OFFSET('Smelter Look-up'!$H$4,$V1033-4,0))","v":""},{"$f":"IF(ISERROR($V1033),\"\",OFFSET('Smelter Look-up'!$I$4,$V1033-4,0))","v":""},{"$nulls":7},{"$f":"IF(ISERROR($V1033),\"\",OFFSET('Smelter Look-up'!$C$4,$V1033-4,0)&\"\")","v":""},"",{"$f":"IF(B1033=\"\",\"\",IF(ISERROR(MATCH($J1033,SorP!$B$1:$B$6230,0)),\"\",INDIRECT(\"'SorP'!$A$\"&MATCH($J1033,SorP!$B$1:$B$6230,0))))","v":""},null,{"$f":"IF(C1033=\"\",NA(),MATCH($B1033&$C1033,'Smelter Look-up'!$J:$J,0))","v":{"$error":"#N/A"}},null,0,null,null,null,""]
[null,{"$f":"IF(LEN(A1034)=0,\"\",INDEX('Smelter Look-up'!$A:$A,MATCH($A1034,'Smelter Look-up'!$E:$E,0)))","v":""},{"$f":"IF(LEN(A1034)=0,\"\",INDEX('Smelter Look-up'!$C:$C,MATCH($A1034,'Smelter Look-up'!$E:$E,0)))","v":""},null,{"$f":"IF(ISERROR($V1034),\"\",OFFSET('Smelter Look-up'!$D$4,$V1034-4,0)&\"\")","v":""},{"$f":"IF(ISERROR($V1034),\"\",OFFSET('Smelter Look-up'!$E$4,$V1034-4,0))","v":""},{"$f":"IF(C1034=$X$4,\"Enter smelter details\", IF(ISERROR($V1034),\"\",OFFSET('Smelter Look-up'!$F$4,$V1034-4,0)))","v":""},{"$f":"IF(ISERROR($V1034),\"\",OFFSET('Smelter Look-up'!$G$4,$V1034-4,0))","v":""},{"$f":"IF(ISERROR($V1034),\"\",OFFSET('Smelter Look-up'!$H$4,$V1034-4,0))","v":""},{"$f":"IF(ISERROR($V1034),\"\",OFFSET('Smelter Look-up'!$I$4,$V1034-4,0))","v":""},{"$nulls":7},{"$f":"IF(ISERROR($V1034),\"\",OFFSET('Smelter Look-up'!$C$4,$V1034-4,0)&\"\")","v":""},"",{"$f":"IF(B1034=\"\",\"\",IF(ISERROR(MATCH($J1034,SorP!$B$1:$B$6230,0)),\"\",INDIRECT(\"'SorP'!$A$\"&MATCH($J1034,SorP!$B$1:$B$6230,0))))","v":""},null,{"$f":"IF(C1034=\"\",NA(),MATCH($B1034&$C1034,'Smelter Look-up'!$J:$J,0))","v":{"$error":"#N/A"}},null,0,null,null,null,""]
[null,{"$f":"IF(LEN(A1035)=0,\"\",INDEX('Smelter Look-up'!$A:$A,MATCH($A1035,'Smelter Look-up'!$E:$E,0)))","v":""},{"$f":"IF(LEN(A1035)=0,\"\",INDEX('Smelter Look-up'!$C:$C,MATCH($A1035,'Smelter Look-up'!$E:$E,0)))","v":""},null,{"$f":"IF(ISERROR($V1035),\"\",OFFSET('Smelter Look-up'!$D$4,$V1035-4,0)&\"\")","v":""},{"$f":"IF(ISERROR($V1035),\"\",OFFSET('Smelter Look-up'!$E$4,$V1035-4,0))","v":""},{"$f":"IF(C1035=$X$4,\"Enter smelter details\", IF(ISERROR($V1035),\"\",OFFSET('Smelter Look-up'!$F$4,$V1035-4,0)))","v":""},{"$f":"IF(ISERROR($V1035),\"\",OFFSET('Smelter Look-up'!$G$4,$V1035-4,0))","v":""},{"$f":"IF(ISERROR($V1035),\"\",OFFSET('Smelter Look-up'!$H$4,$V1035-4,0))","v":""},{"$f":"IF(ISERROR($V1035),\"\",OFFSET('Smelter Look-up'!$I$4,$V1035-4,0))","v":""},{"$nulls":7},{"$f":"IF(ISERROR($V1035),\"\",OFFSET('Smelter Look-up'!$C$4,$V1035-4,0)&\"\")","v":""},"",{"$f":"IF(B1035=\"\",\"\",IF(ISERROR(MATCH($J1035,SorP!$B$1:$B$6230,0)),\"\",INDIRECT(\"'SorP'!$A$\"&MATCH($J1035,SorP!$B$1:$B$6230,0))))","v":""},null,{"$f":"IF(C1035=\"\",NA(),MATCH($B1035&$C1035,'Smelter Look-up'!$J:$J,0))","v":{"$error":"#N/A"}},null,0,null,null,null,""]
[null,{"$f":"IF(LEN(A1036)=0,\"\",INDEX('Smelter Look-up'!$A:$A,MATCH($A1036,'Smelter Look-up'!$E:$E,0)))","v":""},{"$f":"IF(LEN(A1036)=0,\"\",INDEX('Smelter Look-up'!$C:$C,MATCH($A1036,'Smelter Look-up'!$E:$E,0)))","v":""},null,{"$f":"IF(ISERROR($V1036),\"\",OFFSET('Smelter Look-up'!$D$4,$V1036-4,0)&\"\")","v":""},{"$f":"IF(ISERROR($V1036),\"\",OFFSET('Smelter Look-up'!$E$4,$V1036-4,0))","v":""},{"$f":"IF(C1036=$X$4,\"Enter smelter details\", IF(ISERROR($V1036),\"\",OFFSET('Smelter Look-up'!$F$4,$V1036-4,0)))","v":""},{"$f":"IF(ISERROR($V1036),\"\",OFFSET('Smelter Look-up'!$G$4,$V1036-4,0))","v":""},{"$f":"IF(ISERROR($V1036),\"\",OFFSET('Smelter Look-up'!$H$4,$V1036-4,0))","v":""},{"$f":"IF(ISERROR($V1036),\"\",OFFSET('Smelter Look-up'!$I$4,$V1036-4,0))","v":""},{"$nulls":7},{"$f":"IF(ISERROR($V1036),\"\",OFFSET('Smelter Look-up'!$C$4,$V1036-4,0)&\"\")","v":""},"",{"$f":"IF(B1036=\"\",\"\",IF(ISERROR(MATCH($J1036,SorP!$B$1:$B$6230,0)),\"\",INDIRECT(\"'SorP'!$A$\"&MATCH($J1036,SorP!$B$1:$B$6230,0))))","v":""},null,{"$f":"IF(C1036=\"\",NA(),MATCH($B1036&$C1036,'Smelter Look-up'!$J:$J,0))","v":{"$error":"#N/A"}},null,0,null,null,null,""]
[null,{"$f":"IF(LEN(A1037)=0,\"\",INDEX('Smelter Look-up'!$A:$A,MATCH($A1037,'Smelter Look-up'!$E:$E,0)))","v":""},{"$f":"IF(LEN(A1037)=0,\"\",INDEX('Smelter Look-up'!$C:$C,MATCH($A1037,'Smelter Look-up'!$E:$E,0)))","v":""},null,{"$f":"IF(ISERROR($V1037),\"\",OFFSET('Smelter Look-up'!$D$4,$V1037-4,0)&\"\")","v":""},{"$f":"IF(ISERROR($V1037),\"\",OFFSET('Smelter Look-up'!$E$4,$V1037-4,0))","v":""},{"$f":"IF(C1037=$X$4,\"Enter smelter details\", IF(ISERROR($V1037),\"\",OFFSET('Smelter Look-up'!$F$4,$V1037-4,0)))","v":""},{"$f":"IF(ISERROR($V1037),\"\",OFFSET('Smelter Look-up'!$G$4,$V1037-4,0))","v":""},{"$f":"IF(ISERROR($V1037),\"\",OFFSET('Smelter Look-up'!$H$4,$V1037-4,0))","v":""},{"$f":"IF(ISERROR($V1037),\"\",OFFSET('Smelter Look-up'!$I$4,$V1037-4,0))","v":""},{"$nulls":7},{"$f":"IF(ISERROR($V1037),\"\",OFFSET('Smelter Look-up'!$C$4,$V1037-4,0)&\"\")","v":""},"",{"$f":"IF(B1037=\"\",\"\",IF(ISERROR(MATCH($J1037,SorP!$B$1:$B$6230,0)),\"\",INDIRECT(\"'SorP'!$A$\"&MATCH($J1037,SorP!$B$1:$B$6230,0))))","v":""},null,{"$f":"IF(C1037=\"\",NA(),MATCH($B1037&$C1037,'Smelter Look-up'!$J:$J,0))","v":{"$error":"#N/A"}},null,0,null,null,null,""]
[null,{"$f":"IF(LEN(A1038)=0,\"\",INDEX('Smelter Look-up'!$A:$A,MATCH($A1038,'Smelter Look-up'!$E:$E,0)))","v":""},{"$f":"IF(LEN(A1038)=0,\"\",INDEX('Smelter Look-up'!$C:$C,MATCH($A1038,'Smelter Look-up'!$E:$E,0)))","v":""},null,{"$f":"IF(ISERROR($V1038),\"\",OFFSET('Smelter Look-up'!$D$4,$V1038-4,0)&\"\")","v":""},{"$f":"IF(ISERROR($V1038),\"\",OFFSET('Smelter Look-up'!$E$4,$V1038-4,0))","v":""},{"$f":"IF(C1038=$X$4,\"Enter smelter details\", IF(ISERROR($V1038),\"\",OFFSET('Smelter Look-up'!$F$4,$V1038-4,0)))","v":""},{"$f":"IF(ISERROR($V1038),\"\",OFFSET('Smelter Look-up'!$G$4,$V1038-4,0))","v":""},{"$f":"IF(ISERROR($V1038),\"\",OFFSET('Smelter Look-up'!$H$4,$V1038-4,0))","v":""},{"$f":"IF(ISERROR($V1038),\"\",OFFSET('Smelter Look-up'!$I$4,$V1038-4,0))","v":""},{"$nulls":7},{"$f":"IF(ISERROR($V1038),\"\",OFFSET('Smelter Look-up'!$C$4,$V1038-4,0)&\"\")","v":""},"",{"$f":"IF(B1038=\"\",\"\",IF(ISERROR(MATCH($J1038,SorP!$B$1:$B$6230,0)),\"\",INDIRECT(\"'SorP'!$A$\"&MATCH($J1038,SorP!$B$1:$B$6230,0))))","v":""},null,{"$f":"IF(C1038=\"\",NA(),MATCH($B1038&$C1038,'Smelter Look-up'!$J:$J,0))","v":{"$error":"#N/A"}},null,0,null,null,null,""]
[null,{"$f":"IF(LEN(A1039)=0,\"\",INDEX('Smelter Look-up'!$A:$A,MATCH($A1039,'Smelter Look-up'!$E:$E,0)))","v":""},{"$f":"IF(LEN(A1039)=0,\"\",INDEX('Smelter Look-up'!$C:$C,MATCH($A1039,'Smelter Look-up'!$E:$E,0)))","v":""},null,{"$f":"IF(ISERROR($V1039),\"\",OFFSET('Smelter Look-up'!$D$4,$V1039-4,0)&\"\")","v":""},{"$f":"IF(ISERROR($V1039),\"\",OFFSET('Smelter Look-up'!$E$4,$V1039-4,0))","v":""},{"$f":"IF(C1039=$X$4,\"Enter smelter details\", IF(ISERROR($V1039),\"\",OFFSET('Smelter Look-up'!$F$4,$V1039-4,0)))","v":""},{"$f":"IF(ISERROR($V1039),\"\",OFFSET('Smelter Look-up'!$G$4,$V1039-4,0))","v":""},{"$f":"IF(ISERROR($V1039),\"\",OFFSET('Smelter Look-up'!$H$4,$V1039-4,0))","v":""},{"$f":"IF(ISERROR($V1039),\"\",OFFSET('Smelter Look-up'!$I$4,$V1039-4,0))","v":""},{"$nulls":7},{"$f":"IF(ISERROR($V1039),\"\",OFFSET('Smelter Look-up'!$C$4,$V1039-4,0)&\"\")","v":""},"",{"$f":"IF(B1039=\"\",\"\",IF(ISERROR(MATCH($J1039,SorP!$B$1:$B$6230,0)),\"\",INDIRECT(\"'SorP'!$A$\"&MATCH($J1039,SorP!$B$1:$B$6230,0))))","v":""},null,{"$f":"IF(C1039=\"\",NA(),MATCH($B1039&$C1039,'Smelter Look-up'!$J:$J,0))","v":{"$error":"#N/A"}},null,0,null,null,null,""]
[null,{"$f":"IF(LEN(A1040)=0,\"\",INDEX('Smelter Look-up'!$A:$A,MATCH($A1040,'Smelter Look-up'!$E:$E,0)))","v":""},{"$f":"IF(LEN(A1040)=0,\"\",INDEX('Smelter Look-up'!$C:$C,MATCH($A1040,'Smelter Look-up'!$E:$E,0)))","v":""},null,{"$f":"IF(ISERROR($V1040),\"\",OFFSET('Smelter Look-up'!$D$4,$V1040-4,0)&\"\")","v":""},{"$f":"IF(ISERROR($V1040),\"\",OFFSET('Smelter Look-up'!$E$4,$V1040-4,0))","v":""},{"$f":"IF(C1040=$X$4,\"Enter smelter details\", IF(ISERROR($V1040),\"\",OFFSET('Smelter Look-up'!$F$4,$V1040-4,0)))","v":""},{"$f":"IF(ISERROR($V1040),\"\",OFFSET('Smelter Look-up'!$G$4,$V1040-4,0))","v":""},{"$f":"IF(ISERROR($V1040),\"\",OFFSET('Smelter Look-up'!$H$4,$V1040-4,0))","v":""},{"$f":"IF(ISERROR($V1040),\"\",OFFSET('Smelter Look-up'!$I$4,$V1040-4,0))","v":""},{"$nulls":7},{"$f":"IF(ISERROR($V1040),\"\",OFFSET('Smelter Look-up'!$C$4,$V1040-4,0)&\"\")","v":""},"",{"$f":"IF(B1040=\"\",\"\",IF(ISERROR(MATCH($J1040,SorP!$B$1:$B$6230,0)),\"\",INDIRECT(\"'SorP'!$A$\"&MATCH($J1040,SorP!$B$1:$B$6230,0))))","v":""},null,{"$f":"IF(C1040=\"\",NA(),MATCH($B1040&$C1040,'Smelter Look-up'!$J:$J,0))","v":{"$error":"#N/A"}},null,0,null,null,null,""]
[null,{"$f":"IF(LEN(A1041)=0,\"\",INDEX('Smelter Look-up'!$A:$A,MATCH($A1041,'Smelter Look-up'!$E:$E,0)))","v":""},{"$f":"IF(LEN(A1041)=0,\"\",INDEX('Smelter Look-up'!$C:$C,MATCH($A1041,'Smelter Look-up'!$E:$E,0)))","v":""},null,{"$f":"IF(ISERROR($V1041),\"\",OFFSET('Smelter Look-up'!$D$4,$V1041-4,0)&\"\")","v":""},{"$f":"IF(ISERROR($V1041),\"\",OFFSET('Smelter Look-up'!$E$4,$V1041-4,0))","v":""},{"$f":"IF(C1041=$X$4,\"Enter smelter details\", IF(ISERROR($V1041),\"\",OFFSET('Smelter Look-up'!$F$4,$V1041-4,0)))","v":""},{"$f":"IF(ISERROR($V1041),\"\",OFFSET('Smelter Look-up'!$G$4,$V1041-4,0))","v":""},{"$f":"IF(ISERROR($V1041),\"\",OFFSET('Smelter Look-up'!$H$4,$V1041-4,0))","v":""},{"$f":"IF(ISERROR($V1041),\"\",OFFSET('Smelter Look-up'!$I$4,$V1041-4,0))","v":""},{"$nulls":7},{"$f":"IF(ISERROR($V1041),\"\",OFFSET('Smelter Look-up'!$C$4,$V1041-4,0)&\"\")","v":""},"",{"$f":"IF(B1041=\"\",\"\",IF(ISERROR(MATCH($J1041,SorP!$B$1:$B$6230,0)),\"\",INDIRECT(\"'SorP'!$A$\"&MATCH($J1041,SorP!$B$1:$B$6230,0))))","v":""},null,{"$f":"IF(C1041=\"\",NA(),MATCH($B1041&$C1041,'Smelter Look-up'!$J:$J,0))","v":{"$error":"#N/A"}},null,0,null,null,null,""]
[null,{"$f":"IF(LEN(A1042)=0,\"\",INDEX('Smelter Look-up'!$A:$A,MATCH($A1042,'Smelter Look-up'!$E:$E,0)))","v":""},{"$f":"IF(LEN(A1042)=0,\"\",INDEX('Smelter Look-up'!$C:$C,MATCH($A1042,'Smelter Look-up'!$E:$E,0)))","v":""},null,{"$f":"IF(ISERROR($V1042),\"\",OFFSET('Smelter Look-up'!$D$4,$V1042-4,0)&\"\")","v":""},{"$f":"IF(ISERROR($V1042),\"\",OFFSET('Smelter Look-up'!$E$4,$V1042-4,0))","v":""},{"$f":"IF(C1042=$X$4,\"Enter smelter details\", IF(ISERROR($V1042),\"\",OFFSET('Smelter Look-up'!$F$4,$V1042-4,0)))","v":""},{"$f":"IF(ISERROR($V1042),\"\",OFFSET('Smelter Look-up'!$G$4,$V1042-4,0))","v":""},{"$f":"IF(ISERROR($V1042),\"\",OFFSET('Smelter Look-up'!$H$4,$V1042-4,0))","v":""},{"$f":"IF(ISERROR($V1042),\"\",OFFSET('Smelter Look-up'!$I$4,$V1042-4,0))","v":""},{"$nulls":7},{"$f":"IF(ISERROR($V1042),\"\",OFFSET('Smelter Look-up'!$C$4,$V1042-4,0)&\"\")","v":""},"",{"$f":"IF(B1042=\"\",\"\",IF(ISERROR(MATCH($J1042,SorP!$B$1:$B$6230,0)),\"\",INDIRECT(\"'SorP'!$A$\"&MATCH($J1042,SorP!$B$1:$B$6230,0))))","v":""},null,{"$f":"IF(C1042=\"\",NA(),MATCH($B1042&$C1042,'Smelter Look-up'!$J:$J,0))","v":{"$error":"#N/A"}},null,0,null,null,null,""]
[null,{"$f":"IF(LEN(A1043)=0,\"\",INDEX('Smelter Look-up'!$A:$A,MATCH($A1043,'Smelter Look-up'!$E:$E,0)))","v":""},{"$f":"IF(LEN(A1043)=0,\"\",INDEX('Smelter Look-up'!$C:$C,MATCH($A1043,'Smelter Look-up'!$E:$E,0)))","v":""},null,{"$f":"IF(ISERROR($V1043),\"\",OFFSET('Smelter Look-up'!$D$4,$V1043-4,0)&\"\")","v":""},{"$f":"IF(ISERROR($V1043),\"\",OFFSET('Smelter Look-up'!$E$4,$V1043-4,0))","v":""},{"$f":"IF(C1043=$X$4,\"Enter smelter details\", IF(ISERROR($V1043),\"\",OFFSET('Smelter Look-up'!$F$4,$V1043-4,0)))","v":""},{"$f":"IF(ISERROR($V1043),\"\",OFFSET('Smelter Look-up'!$G$4,$V1043-4,0))","v":""},{"$f":"IF(ISERROR($V1043),\"\",OFFSET('Smelter Look-up'!$H$4,$V1043-4,0))","v":""},{"$f":"IF(ISERROR($V1043),\"\",OFFSET('Smelter Look-up'!$I$4,$V1043-4,0))","v":""},{"$nulls":7},{"$f":"IF(ISERROR($V1043),\"\",OFFSET('Smelter Look-up'!$C$4,$V1043-4,0)&\"\")","v":""},"",{"$f":"IF(B1043=\"\",\"\",IF(ISERROR(MATCH($J1043,SorP!$B$1:$B$6230,0)),\"\",INDIRECT(\"'SorP'!$A$\"&MATCH($J1043,SorP!$B$1:$B$6230,0))))","v":""},null,{"$f":"IF(C1043=\"\",NA(),MATCH($B1043&$C1043,'Smelter Look-up'!$J:$J,0))","v":{"$error":"#N/A"}},null,0,null,null,null,""]
[null,{"$f":"IF(LEN(A1044)=0,\"\",INDEX('Smelter Look-up'!$A:$A,MATCH($A1044,'Smelter Look-up'!$E:$E,0)))","v":""},{"$f":"IF(LEN(A1044)=0,\"\",INDEX('Smelter Look-up'!$C:$C,MATCH($A1044,'Smelter Look-up'!$E:$E,0)))","v":""},null,{"$f":"IF(ISERROR($V1044),\"\",OFFSET('Smelter Look-up'!$D$4,$V1044-4,0)&\"\")","v":""},{"$f":"IF(ISERROR($V1044),\"\",OFFSET('Smelter Look-up'!$E$4,$V1044-4,0))","v":""},{"$f":"IF(C1044=$X$4,\"Enter smelter details\", IF(ISERROR($V1044),\"\",OFFSET('Smelter Look-up'!$F$4,$V1044-4,0)))","v":""},{"$f":"IF(ISERROR($V1044),\"\",OFFSET('Smelter Look-up'!$G$4,$V1044-4,0))","v":""},{"$f":"IF(ISERROR($V1044),\"\",OFFSET('Smelter Look-up'!$H$4,$V1044-4,0))","v":""},{"$f":"IF(ISERROR($V1044),\"\",OFFSET('Smelter Look-up'!$I$4,$V1044-4,0))","v":""},{"$nulls":7},{"$f":"IF(ISERROR($V1044),\"\",OFFSET('Smelter Look-up'!$C$4,$V1044-4,0)&\"\")","v":""},"",{"$f":"IF(B1044=\"\",\"\",IF(ISERROR(MATCH($J1044,SorP!$B$1:$B$6230,0)),\"\",INDIRECT(\"'SorP'!$A$\"&MATCH($J1044,SorP!$B$1:$B$6230,0))))","v":""},null,{"$f":"IF(C1044=\"\",NA(),MATCH($B1044&$C1044,'Smelter Look-up'!$J:$J,0))","v":{"$error":"#N/A"}},null,0,null,null,null,""]
[null,{"$f":"IF(LEN(A1045)=0,\"\",INDEX('Smelter Look-up'!$A:$A,MATCH($A1045,'Smelter Look-up'!$E:$E,0)))","v":""},{"$f":"IF(LEN(A1045)=0,\"\",INDEX('Smelter Look-up'!$C:$C,MATCH($A1045,'Smelter Look-up'!$E:$E,0)))","v":""},null,{"$f":"IF(ISERROR($V1045),\"\",OFFSET('Smelter Look-up'!$D$4,$V1045-4,0)&\"\")","v":""},{"$f":"IF(ISERROR($V1045),\"\",OFFSET('Smelter Look-up'!$E$4,$V1045-4,0))","v":""},{"$f":"IF(C1045=$X$4,\"Enter smelter details\", IF(ISERROR($V1045),\"\",OFFSET('Smelter Look-up'!$F$4,$V1045-4,0)))","v":""},{"$f":"IF(ISERROR($V1045),\"\",OFFSET('Smelter Look-up'!$G$4,$V1045-4,0))","v":""},{"$f":"IF(ISERROR($V1045),\"\",OFFSET('Smelter Look-up'!$H$4,$V1045-4,0))","v":""},{"$f":"IF(ISERROR($V1045),\"\",OFFSET('Smelter Look-up'!$I$4,$V1045-4,0))","v":""},{"$nulls":7},{"$f":"IF(ISERROR($V1045),\"\",OFFSET('Smelter Look-up'!$C$4,$V1045-4,0)&\"\")","v":""},"",{"$f":"IF(B1045=\"\",\"\",IF(ISERROR(MATCH($J1045,SorP!$B$1:$B$6230,0)),\"\",INDIRECT(\"'SorP'!$A$\"&MATCH($J1045,SorP!$B$1:$B$6230,0))))","v":""},null,{"$f":"IF(C1045=\"\",NA(),MATCH($B1045&$C1045,'Smelter Look-up'!$J:$J,0))","v":{"$error":"#N/A"}},null,0,null,null,null,""]
[null,{"$f":"IF(LEN(A1046)=0,\"\",INDEX('Smelter Look-up'!$A:$A,MATCH($A1046,'Smelter Look-up'!$E:$E,0)))","v":""},{"$f":"IF(LEN(A1046)=0,\"\",INDEX('Smelter Look-up'!$C:$C,MATCH($A1046,'Smelter Look-up'!$E:$E,0)))","v":""},null,{"$f":"IF(ISERROR($V1046),\"\",OFFSET('Smelter Look-up'!$D$4,$V1046-4,0)&\"\")","v":""},{"$f":"IF(ISERROR($V1046),\"\",OFFSET('Smelter Look-up'!$E$4,$V1046-4,0))","v":""},{"$f":"IF(C1046=$X$4,\"Enter smelter details\", IF(ISERROR($V1046),\"\",OFFSET('Smelter Look-up'!$F$4,$V1046-4,0)))","v":""},{"$f":"IF(ISERROR($V1046),\"\",OFFSET('Smelter Look-up'!$G$4,$V1046-4,0))","v":""},{"$f":"IF(ISERROR($V1046),\"\",OFFSET('Smelter Look-up'!$H$4,$V1046-4,0))","v":""},{"$f":"IF(ISERROR($V1046),\"\",OFFSET('Smelter Look-up'!$I$4,$V1046-4,0))","v":""},{"$nulls":7},{"$f":"IF(ISERROR($V1046),\"\",OFFSET('Smelter Look-up'!$C$4,$V1046-4,0)&\"\")","v":""},"",{"$f":"IF(B1046=\"\",\"\",IF(ISERROR(MATCH($J1046,SorP!$B$1:$B$6230,0)),\"\",INDIRECT(\"'SorP'!$A$\"&MATCH($J1046,SorP!$B$1:$B$6230,0))))","v":""},null,{"$f":"IF(C1046=\"\",NA(),MATCH($B1046&$C1046,'Smelter Look-up'!$J:$J,0))","v":{"$error":"#N/A"}},null,0,null,null,null,""]
[null,{"$f":"IF(LEN(A1047)=0,\"\",INDEX('Smelter Look-up'!$A:$A,MATCH($A1047,'Smelter Look-up'!$E:$E,0)))","v":""},{"$f":"IF(LEN(A1047)=0,\"\",INDEX('Smelter Look-up'!$C:$C,MATCH($A1047,'Smelter Look-up'!$E:$E,0)))","v":""},null,{"$f":"IF(ISERROR($V1047),\"\",OFFSET('Smelter Look-up'!$D$4,$V1047-4,0)&\"\")","v":""},{"$f":"IF(ISERROR($V1047),\"\",OFFSET('Smelter Look-up'!$E$4,$V1047-4,0))","v":""},{"$f":"IF(C1047=$X$4,\"Enter smelter details\", IF(ISERROR($V1047),\"\",OFFSET('Smelter Look-up'!$F$4,$V1047-4,0)))","v":""},{"$f":"IF(ISERROR($V1047),\"\",OFFSET('Smelter Look-up'!$G$4,$V1047-4,0))","v":""},{"$f":"IF(ISERROR($V1047),\"\",OFFSET('Smelter Look-up'!$H$4,$V1047-4,0))","v":""},{"$f":"IF(ISERROR($V1047),\"\",OFFSET('Smelter Look-up'!$I$4,$V1047-4,0))","v":""},{"$nulls":7},{"$f":"IF(ISERROR($V1047),\"\",OFFSET('Smelter Look-up'!$C$4,$V1047-4,0)&\"\")","v":""},"",{"$f":"IF(B1047=\"\",\"\",IF(ISERROR(MATCH($J1047,SorP!$B$1:$B$6230,0)),\"\",INDIRECT(\"'SorP'!$A$\"&MATCH($J1047,SorP!$B$1:$B$6230,0))))","v":""},null,{"$f":"IF(C1047=\"\",NA(),MATCH($B1047&$C1047,'Smelter Look-up'!$J:$J,0))","v":{"$error":"#N/A"}},null,0,null,null,null,""]
[null,{"$f":"IF(LEN(A1048)=0,\"\",INDEX('Smelter Look-up'!$A:$A,MATCH($A1048,'Smelter Look-up'!$E:$E,0)))","v":""},{"$f":"IF(LEN(A1048)=0,\"\",INDEX('Smelter Look-up'!$C:$C,MATCH($A1048,'Smelter Look-up'!$E:$E,0)))","v":""},null,{"$f":"IF(ISERROR($V1048),\"\",OFFSET('Smelter Look-up'!$D$4,$V1048-4,0)&\"\")","v":""},{"$f":"IF(ISERROR($V1048),\"\",OFFSET('Smelter Look-up'!$E$4,$V1048-4,0))","v":""},{"$f":"IF(C1048=$X$4,\"Enter smelter details\", IF(ISERROR($V1048),\"\",OFFSET('Smelter Look-up'!$F$4,$V1048-4,0)))","v":""},{"$f":"IF(ISERROR($V1048),\"\",OFFSET('Smelter Look-up'!$G$4,$V1048-4,0))","v":""},{"$f":"IF(ISERROR($V1048),\"\",OFFSET('Smelter Look-up'!$H$4,$V1048-4,0))","v":""},{"$f":"IF(ISERROR($V1048),\"\",OFFSET('Smelter Look-up'!$I$4,$V1048-4,0))","v":""},{"$nulls":7},{"$f":"IF(ISERROR($V1048),\"\",OFFSET('Smelter Look-up'!$C$4,$V1048-4,0)&\"\")","v":""},"",{"$f":"IF(B1048=\"\",\"\",IF(ISERROR(MATCH($J1048,SorP!$B$1:$B$6230,0)),\"\",INDIRECT(\"'SorP'!$A$\"&MATCH($J1048,SorP!$B$1:$B$6230,0))))","v":""},null,{"$f":"IF(C1048=\"\",NA(),MATCH($B1048&$C1048,'Smelter Look-up'!$J:$J,0))","v":{"$error":"#N/A"}},null,0,null,null,null,""]
[null,{"$f":"IF(LEN(A1049)=0,\"\",INDEX('Smelter Look-up'!$A:$A,MATCH($A1049,'Smelter Look-up'!$E:$E,0)))","v":""},{"$f":"IF(LEN(A1049)=0,\"\",INDEX('Smelter Look-up'!$C:$C,MATCH($A1049,'Smelter Look-up'!$E:$E,0)))","v":""},null,{"$f":"IF(ISERROR($V1049),\"\",OFFSET('Smelter Look-up'!$D$4,$V1049-4,0)&\"\")","v":""},{"$f":"IF(ISERROR($V1049),\"\",OFFSET('Smelter Look-up'!$E$4,$V1049-4,0))","v":""},{"$f":"IF(C1049=$X$4,\"Enter smelter details\", IF(ISERROR($V1049),\"\",OFFSET('Smelter Look-up'!$F$4,$V1049-4,0)))","v":""},{"$f":"IF(ISERROR($V1049),\"\",OFFSET('Smelter Look-up'!$G$4,$V1049-4,0))","v":""},{"$f":"IF(ISERROR($V1049),\"\",OFFSET('Smelter Look-up'!$H$4,$V1049-4,0))","v":""},{"$f":"IF(ISERROR($V1049),\"\",OFFSET('Smelter Look-up'!$I$4,$V1049-4,0))","v":""},{"$nulls":7},{"$f":"IF(ISERROR($V1049),\"\",OFFSET('Smelter Look-up'!$C$4,$V1049-4,0)&\"\")","v":""},"",{"$f":"IF(B1049=\"\",\"\",IF(ISERROR(MATCH($J1049,SorP!$B$1:$B$6230,0)),\"\",INDIRECT(\"'SorP'!$A$\"&MATCH($J1049,SorP!$B$1:$B$6230,0))))","v":""},null,{"$f":"IF(C1049=\"\",NA(),MATCH($B1049&$C1049,'Smelter Look-up'!$J:$J,0))","v":{"$error":"#N/A"}},null,0,null,null,null,""]
[null,{"$f":"IF(LEN(A1050)=0,\"\",INDEX('Smelter Look-up'!$A:$A,MATCH($A1050,'Smelter Look-up'!$E:$E,0)))","v":""},{"$f":"IF(LEN(A1050)=0,\"\",INDEX('Smelter Look-up'!$C:$C,MATCH($A1050,'Smelter Look-up'!$E:$E,0)))","v":""},null,{"$f":"IF(ISERROR($V1050),\"\",OFFSET('Smelter Look-up'!$D$4,$V1050-4,0)&\"\")","v":""},{"$f":"IF(ISERROR($V1050),\"\",OFFSET('Smelter Look-up'!$E$4,$V1050-4,0))","v":""},{"$f":"IF(C1050=$X$4,\"Enter smelter details\", IF(ISERROR($V1050),\"\",OFFSET('Smelter Look-up'!$F$4,$V1050-4,0)))","v":""},{"$f":"IF(ISERROR($V1050),\"\",OFFSET('Smelter Look-up'!$G$4,$V1050-4,0))","v":""},{"$f":"IF(ISERROR($V1050),\"\",OFFSET('Smelter Look-up'!$H$4,$V1050-4,0))","v":""},{"$f":"IF(ISERROR($V1050),\"\",OFFSET('Smelter Look-up'!$I$4,$V1050-4,0))","v":""},{"$nulls":7},{"$f":"IF(ISERROR($V1050),\"\",OFFSET('Smelter Look-up'!$C$4,$V1050-4,0)&\"\")","v":""},"",{"$f":"IF(B1050=\"\",\"\",IF(ISERROR(MATCH($J1050,SorP!$B$1:$B$6230,0)),\"\",INDIRECT(\"'SorP'!$A$\"&MATCH($J1050,SorP!$B$1:$B$6230,0))))","v":""},null,{"$f":"IF(C1050=\"\",NA(),MATCH($B1050&$C1050,'Smelter Look-up'!$J:$J,0))","v":{"$error":"#N/A"}},null,0,null,null,null,""]
[null,{"$f":"IF(LEN(A1051)=0,\"\",INDEX('Smelter Look-up'!$A:$A,MATCH($A1051,'Smelter Look-up'!$E:$E,0)))","v":""},{"$f":"IF(LEN(A1051)=0,\"\",INDEX('Smelter Look-up'!$C:$C,MATCH($A1051,'Smelter Look-up'!$E:$E,0)))","v":""},null,{"$f":"IF(ISERROR($V1051),\"\",OFFSET('Smelter Look-up'!$D$4,$V1051-4,0)&\"\")","v":""},{"$f":"IF(ISERROR($V1051),\"\",OFFSET('Smelter Look-up'!$E$4,$V1051-4,0))","v":""},{"$f":"IF(C1051=$X$4,\"Enter smelter details\", IF(ISERROR($V1051),\"\",OFFSET('Smelter Look-up'!$F$4,$V1051-4,0)))","v":""},{"$f":"IF(ISERROR($V1051),\"\",OFFSET('Smelter Look-up'!$G$4,$V1051-4,0))","v":""},{"$f":"IF(ISERROR($V1051),\"\",OFFSET('Smelter Look-up'!$H$4,$V1051-4,0))","v":""},{"$f":"IF(ISERROR($V1051),\"\",OFFSET('Smelter Look-up'!$I$4,$V1051-4,0))","v":""},{"$nulls":7},{"$f":"IF(ISERROR($V1051),\"\",OFFSET('Smelter Look-up'!$C$4,$V1051-4,0)&\"\")","v":""},"",{"$f":"IF(B1051=\"\",\"\",IF(ISERROR(MATCH($J1051,SorP!$B$1:$B$6230,0)),\"\",INDIRECT(\"'SorP'!$A$\"&MATCH($J1051,SorP!$B$1:$B$6230,0))))","v":""},null,{"$f":"IF(C1051=\"\",NA(),MATCH($B1051&$C1051,'Smelter Look-up'!$J:$J,0))","v":{"$error":"#N/A"}},null,0,null,null,null,""]
[null,{"$f":"IF(LEN(A1052)=0,\"\",INDEX('Smelter Look-up'!$A:$A,MATCH($A1052,'Smelter Look-up'!$E:$E,0)))","v":""},{"$f":"IF(LEN(A1052)=0,\"\",INDEX('Smelter Look-up'!$C:$C,MATCH($A1052,'Smelter Look-up'!$E:$E,0)))","v":""},null,{"$f":"IF(ISERROR($V1052),\"\",OFFSET('Smelter Look-up'!$D$4,$V1052-4,0)&\"\")","v":""},{"$f":"IF(ISERROR($V1052),\"\",OFFSET('Smelter Look-up'!$E$4,$V1052-4,0))","v":""},{"$f":"IF(C1052=$X$4,\"Enter smelter details\", IF(ISERROR($V1052),\"\",OFFSET('Smelter Look-up'!$F$4,$V1052-4,0)))","v":""},{"$f":"IF(ISERROR($V1052),\"\",OFFSET('Smelter Look-up'!$G$4,$V1052-4,0))","v":""},{"$f":"IF(ISERROR($V1052),\"\",OFFSET('Smelter Look-up'!$H$4,$V1052-4,0))","v":""},{"$f":"IF(ISERROR($V1052),\"\",OFFSET('Smelter Look-up'!$I$4,$V1052-4,0))","v":""},{"$nulls":7},{"$f":"IF(ISERROR($V1052),\"\",OFFSET('Smelter Look-up'!$C$4,$V1052-4,0)&\"\")","v":""},"",{"$f":"IF(B1052=\"\",\"\",IF(ISERROR(MATCH($J1052,SorP!$B$1:$B$6230,0)),\"\",INDIRECT(\"'SorP'!$A$\"&MATCH($J1052,SorP!$B$1:$B$6230,0))))","v":""},null,{"$f":"IF(C1052=\"\",NA(),MATCH($B1052&$C1052,'Smelter Look-up'!$J:$J,0))","v":{"$error":"#N/A"}},null,0,null,null,null,""]
[null,{"$f":"IF(LEN(A1053)=0,\"\",INDEX('Smelter Look-up'!$A:$A,MATCH($A1053,'Smelter Look-up'!$E:$E,0)))","v":""},{"$f":"IF(LEN(A1053)=0,\"\",INDEX('Smelter Look-up'!$C:$C,MATCH($A1053,'Smelter Look-up'!$E:$E,0)))","v":""},null,{"$f":"IF(ISERROR($V1053),\"\",OFFSET('Smelter Look-up'!$D$4,$V1053-4,0)&\"\")","v":""},{"$f":"IF(ISERROR($V1053),\"\",OFFSET('Smelter Look-up'!$E$4,$V1053-4,0))","v":""},{"$f":"IF(C1053=$X$4,\"Enter smelter details\", IF(ISERROR($V1053),\"\",OFFSET('Smelter Look-up'!$F$4,$V1053-4,0)))","v":""},{"$f":"IF(ISERROR($V1053),\"\",OFFSET('Smelter Look-up'!$G$4,$V1053-4,0))","v":""},{"$f":"IF(ISERROR($V1053),\"\",OFFSET('Smelter Look-up'!$H$4,$V1053-4,0))","v":""},{"$f":"IF(ISERROR($V1053),\"\",OFFSET('Smelter Look-up'!$I$4,$V1053-4,0))","v":""},{"$nulls":7},{"$f":"IF(ISERROR($V1053),\"\",OFFSET('Smelter Look-up'!$C$4,$V1053-4,0)&\"\")","v":""},"",{"$f":"IF(B1053=\"\",\"\",IF(ISERROR(MATCH($J1053,SorP!$B$1:$B$6230,0)),\"\",INDIRECT(\"'SorP'!$A$\"&MATCH($J1053,SorP!$B$1:$B$6230,0))))","v":""},null,{"$f":"IF(C1053=\"\",NA(),MATCH($B1053&$C1053,'Smelter Look-up'!$J:$J,0))","v":{"$error":"#N/A"}},null,0,null,null,null,""]
[null,{"$f":"IF(LEN(A1054)=0,\"\",INDEX('Smelter Look-up'!$A:$A,MATCH($A1054,'Smelter Look-up'!$E:$E,0)))","v":""},{"$f":"IF(LEN(A1054)=0,\"\",INDEX('Smelter Look-up'!$C:$C,MATCH($A1054,'Smelter Look-up'!$E:$E,0)))","v":""},null,{"$f":"IF(ISERROR($V1054),\"\",OFFSET('Smelter Look-up'!$D$4,$V1054-4,0)&\"\")","v":""},{"$f":"IF(ISERROR($V1054),\"\",OFFSET('Smelter Look-up'!$E$4,$V1054-4,0))","v":""},{"$f":"IF(C1054=$X$4,\"Enter smelter details\", IF(ISERROR($V1054),\"\",OFFSET('Smelter Look-up'!$F$4,$V1054-4,0)))","v":""},{"$f":"IF(ISERROR($V1054),\"\",OFFSET('Smelter Look-up'!$G$4,$V1054-4,0))","v":""},{"$f":"IF(ISERROR($V1054),\"\",OFFSET('Smelter Look-up'!$H$4,$V1054-4,0))","v":""},{"$f":"IF(ISERROR($V1054),\"\",OFFSET('Smelter Look-up'!$I$4,$V1054-4,0))","v":""},{"$nulls":7},{"$f":"IF(ISERROR($V1054),\"\",OFFSET('Smelter Look-up'!$C$4,$V1054-4,0)&\"\")","v":""},"",{"$f":"IF(B1054=\"\",\"\",IF(ISERROR(MATCH($J1054,SorP!$B$1:$B$6230,0)),\"\",INDIRECT(\"'SorP'!$A$\"&MATCH($J1054,SorP!$B$1:$B$6230,0))))","v":""},null,{"$f":"IF(C1054=\"\",NA(),MATCH($B1054&$C1054,'Smelter Look-up'!$J:$J,0))","v":{"$error":"#N/A"}},null,0,null,null,null,""]
[null,{"$f":"IF(LEN(A1055)=0,\"\",INDEX('Smelter Look-up'!$A:$A,MATCH($A1055,'Smelter Look-up'!$E:$E,0)))","v":""},{"$f":"IF(LEN(A1055)=0,\"\",INDEX('Smelter Look-up'!$C:$C,MATCH($A1055,'Smelter Look-up'!$E:$E,0)))","v":""},null,{"$f":"IF(ISERROR($V1055),\"\",OFFSET('Smelter Look-up'!$D$4,$V1055-4,0)&\"\")","v":""},{"$f":"IF(ISERROR($V1055),\"\",OFFSET('Smelter Look-up'!$E$4,$V1055-4,0))","v":""},{"$f":"IF(C1055=$X$4,\"Enter smelter details\", IF(ISERROR($V1055),\"\",OFFSET('Smelter Look-up'!$F$4,$V1055-4,0)))","v":""},{"$f":"IF(ISERROR($V1055),\"\",OFFSET('Smelter Look-up'!$G$4,$V1055-4,0))","v":""},{"$f":"IF(ISERROR($V1055),\"\",OFFSET('Smelter Look-up'!$H$4,$V1055-4,0))","v":""},{"$f":"IF(ISERROR($V1055),\"\",OFFSET('Smelter Look-up'!$I$4,$V1055-4,0))","v":""},{"$nulls":7},{"$f":"IF(ISERROR($V1055),\"\",OFFSET('Smelter Look-up'!$C$4,$V1055-4,0)&\"\")","v":""},"",{"$f":"IF(B1055=\"\",\"\",IF(ISERROR(MATCH($J1055,SorP!$B$1:$B$6230,0)),\"\",INDIRECT(\"'SorP'!$A$\"&MATCH($J1055,SorP!$B$1:$B$6230,0))))","v":""},null,{"$f":"IF(C1055=\"\",NA(),MATCH($B1055&$C1055,'Smelter Look-up'!$J:$J,0))","v":{"$error":"#N/A"}},null,0,null,null,null,""]
[null,{"$f":"IF(LEN(A1056)=0,\"\",INDEX('Smelter Look-up'!$A:$A,MATCH($A1056,'Smelter Look-up'!$E:$E,0)))","v":""},{"$f":"IF(LEN(A1056)=0,\"\",INDEX('Smelter Look-up'!$C:$C,MATCH($A1056,'Smelter Look-up'!$E:$E,0)))","v":""},null,{"$f":"IF(ISERROR($V1056),\"\",OFFSET('Smelter Look-up'!$D$4,$V1056-4,0)&\"\")","v":""},{"$f":"IF(ISERROR($V1056),\"\",OFFSET('Smelter Look-up'!$E$4,$V1056-4,0))","v":""},{"$f":"IF(C1056=$X$4,\"Enter smelter details\", IF(ISERROR($V1056),\"\",OFFSET('Smelter Look-up'!$F$4,$V1056-4,0)))","v":""},{"$f":"IF(ISERROR($V1056),\"\",OFFSET('Smelter Look-up'!$G$4,$V1056-4,0))","v":""},{"$f":"IF(ISERROR($V1056),\"\",OFFSET('Smelter Look-up'!$H$4,$V1056-4,0))","v":""},{"$f":"IF(ISERROR($V1056),\"\",OFFSET('Smelter Look-up'!$I$4,$V1056-4,0))","v":""},{"$nulls":7},{"$f":"IF(ISERROR($V1056),\"\",OFFSET('Smelter Look-up'!$C$4,$V1056-4,0)&\"\")","v":""},"",{"$f":"IF(B1056=\"\",\"\",IF(ISERROR(MATCH($J1056,SorP!$B$1:$B$6230,0)),\"\",INDIRECT(\"'SorP'!$A$\"&MATCH($J1056,SorP!$B$1:$B$6230,0))))","v":""},null,{"$f":"IF(C1056=\"\",NA(),MATCH($B1056&$C1056,'Smelter Look-up'!$J:$J,0))","v":{"$error":"#N/A"}},null,0,null,null,null,""]
[null,{"$f":"IF(LEN(A1057)=0,\"\",INDEX('Smelter Look-up'!$A:$A,MATCH($A1057,'Smelter Look-up'!$E:$E,0)))","v":""},{"$f":"IF(LEN(A1057)=0,\"\",INDEX('Smelter Look-up'!$C:$C,MATCH($A1057,'Smelter Look-up'!$E:$E,0)))","v":""},null,{"$f":"IF(ISERROR($V1057),\"\",OFFSET('Smelter Look-up'!$D$4,$V1057-4,0)&\"\")","v":""},{"$f":"IF(ISERROR($V1057),\"\",OFFSET('Smelter Look-up'!$E$4,$V1057-4,0))","v":""},{"$f":"IF(C1057=$X$4,\"Enter smelter details\", IF(ISERROR($V1057),\"\",OFFSET('Smelter Look-up'!$F$4,$V1057-4,0)))","v":""},{"$f":"IF(ISERROR($V1057),\"\",OFFSET('Smelter Look-up'!$G$4,$V1057-4,0))","v":""},{"$f":"IF(ISERROR($V1057),\"\",OFFSET('Smelter Look-up'!$H$4,$V1057-4,0))","v":""},{"$f":"IF(ISERROR($V1057),\"\",OFFSET('Smelter Look-up'!$I$4,$V1057-4,0))","v":""},{"$nulls":7},{"$f":"IF(ISERROR($V1057),\"\",OFFSET('Smelter Look-up'!$C$4,$V1057-4,0)&\"\")","v":""},"",{"$f":"IF(B1057=\"\",\"\",IF(ISERROR(MATCH($J1057,SorP!$B$1:$B$6230,0)),\"\",INDIRECT(\"'SorP'!$A$\"&MATCH($J1057,SorP!$B$1:$B$6230,0))))","v":""},null,{"$f":"IF(C1057=\"\",NA(),MATCH($B1057&$C1057,'Smelter Look-up'!$J:$J,0))","v":{"$error":"#N/A"}},null,0,null,null,null,""]
[null,{"$f":"IF(LEN(A1058)=0,\"\",INDEX('Smelter Look-up'!$A:$A,MATCH($A1058,'Smelter Look-up'!$E:$E,0)))","v":""},{"$f":"IF(LEN(A1058)=0,\"\",INDEX('Smelter Look-up'!$C:$C,MATCH($A1058,'Smelter Look-up'!$E:$E,0)))","v":""},null,{"$f":"IF(ISERROR($V1058),\"\",OFFSET('Smelter Look-up'!$D$4,$V1058-4,0)&\"\")","v":""},{"$f":"IF(ISERROR($V1058),\"\",OFFSET('Smelter Look-up'!$E$4,$V1058-4,0))","v":""},{"$f":"IF(C1058=$X$4,\"Enter smelter details\", IF(ISERROR($V1058),\"\",OFFSET('Smelter Look-up'!$F$4,$V1058-4,0)))","v":""},{"$f":"IF(ISERROR($V1058),\"\",OFFSET('Smelter Look-up'!$G$4,$V1058-4,0))","v":""},{"$f":"IF(ISERROR($V1058),\"\",OFFSET('Smelter Look-up'!$H$4,$V1058-4,0))","v":""},{"$f":"IF(ISERROR($V1058),\"\",OFFSET('Smelter Look-up'!$I$4,$V1058-4,0))","v":""},{"$nulls":7},{"$f":"IF(ISERROR($V1058),\"\",OFFSET('Smelter Look-up'!$C$4,$V1058-4,0)&\"\")","v":""},"",{"$f":"IF(B1058=\"\",\"\",IF(ISERROR(MATCH($J1058,SorP!$B$1:$B$6230,0)),\"\",INDIRECT(\"'SorP'!$A$\"&MATCH($J1058,SorP!$B$1:$B$6230,0))))","v":""},null,{"$f":"IF(C1058=\"\",NA(),MATCH($B1058&$C1058,'Smelter Look-up'!$J:$J,0))","v":{"$error":"#N/A"}},null,0,null,null,null,""]
[null,{"$f":"IF(LEN(A1059)=0,\"\",INDEX('Smelter Look-up'!$A:$A,MATCH($A1059,'Smelter Look-up'!$E:$E,0)))","v":""},{"$f":"IF(LEN(A1059)=0,\"\",INDEX('Smelter Look-up'!$C:$C,MATCH($A1059,'Smelter Look-up'!$E:$E,0)))","v":""},null,{"$f":"IF(ISERROR($V1059),\"\",OFFSET('Smelter Look-up'!$D$4,$V1059-4,0)&\"\")","v":""},{"$f":"IF(ISERROR($V1059),\"\",OFFSET('Smelter Look-up'!$E$4,$V1059-4,0))","v":""},{"$f":"IF(C1059=$X$4,\"Enter smelter details\", IF(ISERROR($V1059),\"\",OFFSET('Smelter Look-up'!$F$4,$V1059-4,0)))","v":""},{"$f":"IF(ISERROR($V1059),\"\",OFFSET('Smelter Look-up'!$G$4,$V1059-4,0))","v":""},{"$f":"IF(ISERROR($V1059),\"\",OFFSET('Smelter Look-up'!$H$4,$V1059-4,0))","v":""},{"$f":"IF(ISERROR($V1059),\"\",OFFSET('Smelter Look-up'!$I$4,$V1059-4,0))","v":""},{"$nulls":7},{"$f":"IF(ISERROR($V1059),\"\",OFFSET('Smelter Look-up'!$C$4,$V1059-4,0)&\"\")","v":""},"",{"$f":"IF(B1059=\"\",\"\",IF(ISERROR(MATCH($J1059,SorP!$B$1:$B$6230,0)),\"\",INDIRECT(\"'SorP'!$A$\"&MATCH($J1059,SorP!$B$1:$B$6230,0))))","v":""},null,{"$f":"IF(C1059=\"\",NA(),MATCH($B1059&$C1059,'Smelter Look-up'!$J:$J,0))","v":{"$error":"#N/A"}},null,0,null,null,null,""]
[null,{"$f":"IF(LEN(A1060)=0,\"\",INDEX('Smelter Look-up'!$A:$A,MATCH($A1060,'Smelter Look-up'!$E:$E,0)))","v":""},{"$f":"IF(LEN(A1060)=0,\"\",INDEX('Smelter Look-up'!$C:$C,MATCH($A1060,'Smelter Look-up'!$E:$E,0)))","v":""},null,{"$f":"IF(ISERROR($V1060),\"\",OFFSET('Smelter Look-up'!$D$4,$V1060-4,0)&\"\")","v":""},{"$f":"IF(ISERROR($V1060),\"\",OFFSET('Smelter Look-up'!$E$4,$V1060-4,0))","v":""},{"$f":"IF(C1060=$X$4,\"Enter smelter details\", IF(ISERROR($V1060),\"\",OFFSET('Smelter Look-up'!$F$4,$V1060-4,0)))","v":""},{"$f":"IF(ISERROR($V1060),\"\",OFFSET('Smelter Look-up'!$G$4,$V1060-4,0))","v":""},{"$f":"IF(ISERROR($V1060),\"\",OFFSET('Smelter Look-up'!$H$4,$V1060-4,0))","v":""},{"$f":"IF(ISERROR($V1060),\"\",OFFSET('Smelter Look-up'!$I$4,$V1060-4,0))","v":""},{"$nulls":7},{"$f":"IF(ISERROR($V1060),\"\",OFFSET('Smelter Look-up'!$C$4,$V1060-4,0)&\"\")","v":""},"",{"$f":"IF(B1060=\"\",\"\",IF(ISERROR(MATCH($J1060,SorP!$B$1:$B$6230,0)),\"\",INDIRECT(\"'SorP'!$A$\"&MATCH($J1060,SorP!$B$1:$B$6230,0))))","v":""},null,{"$f":"IF(C1060=\"\",NA(),MATCH($B1060&$C1060,'Smelter Look-up'!$J:$J,0))","v":{"$error":"#N/A"}},null,0,null,null,null,""]
[null,{"$f":"IF(LEN(A1061)=0,\"\",INDEX('Smelter Look-up'!$A:$A,MATCH($A1061,'Smelter Look-up'!$E:$E,0)))","v":""},{"$f":"IF(LEN(A1061)=0,\"\",INDEX('Smelter Look-up'!$C:$C,MATCH($A1061,'Smelter Look-up'!$E:$E,0)))","v":""},null,{"$f":"IF(ISERROR($V1061),\"\",OFFSET('Smelter Look-up'!$D$4,$V1061-4,0)&\"\")","v":""},{"$f":"IF(ISERROR($V1061),\"\",OFFSET('Smelter Look-up'!$E$4,$V1061-4,0))","v":""},{"$f":"IF(C1061=$X$4,\"Enter smelter details\", IF(ISERROR($V1061),\"\",OFFSET('Smelter Look-up'!$F$4,$V1061-4,0)))","v":""},{"$f":"IF(ISERROR($V1061),\"\",OFFSET('Smelter Look-up'!$G$4,$V1061-4,0))","v":""},{"$f":"IF(ISERROR($V1061),\"\",OFFSET('Smelter Look-up'!$H$4,$V1061-4,0))","v":""},{"$f":"IF(ISERROR($V1061),\"\",OFFSET('Smelter Look-up'!$I$4,$V1061-4,0))","v":""},{"$nulls":7},{"$f":"IF(ISERROR($V1061),\"\",OFFSET('Smelter Look-up'!$C$4,$V1061-4,0)&\"\")","v":""},"",{"$f":"IF(B1061=\"\",\"\",IF(ISERROR(MATCH($J1061,SorP!$B$1:$B$6230,0)),\"\",INDIRECT(\"'SorP'!$A$\"&MATCH($J1061,SorP!$B$1:$B$6230,0))))","v":""},null,{"$f":"IF(C1061=\"\",NA(),MATCH($B1061&$C1061,'Smelter Look-up'!$J:$J,0))","v":{"$error":"#N/A"}},null,0,null,null,null,""]
[null,{"$f":"IF(LEN(A1062)=0,\"\",INDEX('Smelter Look-up'!$A:$A,MATCH($A1062,'Smelter Look-up'!$E:$E,0)))","v":""},{"$f":"IF(LEN(A1062)=0,\"\",INDEX('Smelter Look-up'!$C:$C,MATCH($A1062,'Smelter Look-up'!$E:$E,0)))","v":""},null,{"$f":"IF(ISERROR($V1062),\"\",OFFSET('Smelter Look-up'!$D$4,$V1062-4,0)&\"\")","v":""},{"$f":"IF(ISERROR($V1062),\"\",OFFSET('Smelter Look-up'!$E$4,$V1062-4,0))","v":""},{"$f":"IF(C1062=$X$4,\"Enter smelter details\", IF(ISERROR($V1062),\"\",OFFSET('Smelter Look-up'!$F$4,$V1062-4,0)))","v":""},{"$f":"IF(ISERROR($V1062),\"\",OFFSET('Smelter Look-up'!$G$4,$V1062-4,0))","v":""},{"$f":"IF(ISERROR($V1062),\"\",OFFSET('Smelter Look-up'!$H$4,$V1062-4,0))","v":""},{"$f":"IF(ISERROR($V1062),\"\",OFFSET('Smelter Look-up'!$I$4,$V1062-4,0))","v":""},{"$nulls":7},{"$f":"IF(ISERROR($V1062),\"\",OFFSET('Smelter Look-up'!$C$4,$V1062-4,0)&\"\")","v":""},"",{"$f":"IF(B1062=\"\",\"\",IF(ISERROR(MATCH($J1062,SorP!$B$1:$B$6230,0)),\"\",INDIRECT(\"'SorP'!$A$\"&MATCH($J1062,SorP!$B$1:$B$6230,0))))","v":""},null,{"$f":"IF(C1062=\"\",NA(),MATCH($B1062&$C1062,'Smelter Look-up'!$J:$J,0))","v":{"$error":"#N/A"}},null,0,null,null,null,""]
[null,{"$f":"IF(LEN(A1063)=0,\"\",INDEX('Smelter Look-up'!$A:$A,MATCH($A1063,'Smelter Look-up'!$E:$E,0)))","v":""},{"$f":"IF(LEN(A1063)=0,\"\",INDEX('Smelter Look-up'!$C:$C,MATCH($A1063,'Smelter Look-up'!$E:$E,0)))","v":""},null,{"$f":"IF(ISERROR($V1063),\"\",OFFSET('Smelter Look-up'!$D$4,$V1063-4,0)&\"\")","v":""},{"$f":"IF(ISERROR($V1063),\"\",OFFSET('Smelter Look-up'!$E$4,$V1063-4,0))","v":""},{"$f":"IF(C1063=$X$4,\"Enter smelter details\", IF(ISERROR($V1063),\"\",OFFSET('Smelter Look-up'!$F$4,$V1063-4,0)))","v":""},{"$f":"IF(ISERROR($V1063),\"\",OFFSET('Smelter Look-up'!$G$4,$V1063-4,0))","v":""},{"$f":"IF(ISERROR($V1063),\"\",OFFSET('Smelter Look-up'!$H$4,$V1063-4,0))","v":""},{"$f":"IF(ISERROR($V1063),\"\",OFFSET('Smelter Look-up'!$I$4,$V1063-4,0))","v":""},{"$nulls":7},{"$f":"IF(ISERROR($V1063),\"\",OFFSET('Smelter Look-up'!$C$4,$V1063-4,0)&\"\")","v":""},"",{"$f":"IF(B1063=\"\",\"\",IF(ISERROR(MATCH($J1063,SorP!$B$1:$B$6230,0)),\"\",INDIRECT(\"'SorP'!$A$\"&MATCH($J1063,SorP!$B$1:$B$6230,0))))","v":""},null,{"$f":"IF(C1063=\"\",NA(),MATCH($B1063&$C1063,'Smelter Look-up'!$J:$J,0))","v":{"$error":"#N/A"}},null,0,null,null,null,""]
[null,{"$f":"IF(LEN(A1064)=0,\"\",INDEX('Smelter Look-up'!$A:$A,MATCH($A1064,'Smelter Look-up'!$E:$E,0)))","v":""},{"$f":"IF(LEN(A1064)=0,\"\",INDEX('Smelter Look-up'!$C:$C,MATCH($A1064,'Smelter Look-up'!$E:$E,0)))","v":""},null,{"$f":"IF(ISERROR($V1064),\"\",OFFSET('Smelter Look-up'!$D$4,$V1064-4,0)&\"\")","v":""},{"$f":"IF(ISERROR($V1064),\"\",OFFSET('Smelter Look-up'!$E$4,$V1064-4,0))","v":""},{"$f":"IF(C1064=$X$4,\"Enter smelter details\", IF(ISERROR($V1064),\"\",OFFSET('Smelter Look-up'!$F$4,$V1064-4,0)))","v":""},{"$f":"IF(ISERROR($V1064),\"\",OFFSET('Smelter Look-up'!$G$4,$V1064-4,0))","v":""},{"$f":"IF(ISERROR($V1064),\"\",OFFSET('Smelter Look-up'!$H$4,$V1064-4,0))","v":""},{"$f":"IF(ISERROR($V1064),\"\",OFFSET('Smelter Look-up'!$I$4,$V1064-4,0))","v":""},{"$nulls":7},{"$f":"IF(ISERROR($V1064),\"\",OFFSET('Smelter Look-up'!$C$4,$V1064-4,0)&\"\")","v":""},"",{"$f":"IF(B1064=\"\",\"\",IF(ISERROR(MATCH($J1064,SorP!$B$1:$B$6230,0)),\"\",INDIRECT(\"'SorP'!$A$\"&MATCH($J1064,SorP!$B$1:$B$6230,0))))","v":""},null,{"$f":"IF(C1064=\"\",NA(),MATCH($B1064&$C1064,'Smelter Look-up'!$J:$J,0))","v":{"$error":"#N/A"}},null,0,null,null,null,""]
[null,{"$f":"IF(LEN(A1065)=0,\"\",INDEX('Smelter Look-up'!$A:$A,MATCH($A1065,'Smelter Look-up'!$E:$E,0)))","v":""},{"$f":"IF(LEN(A1065)=0,\"\",INDEX('Smelter Look-up'!$C:$C,MATCH($A1065,'Smelter Look-up'!$E:$E,0)))","v":""},null,{"$f":"IF(ISERROR($V1065),\"\",OFFSET('Smelter Look-up'!$D$4,$V1065-4,0)&\"\")","v":""},{"$f":"IF(ISERROR($V1065),\"\",OFFSET('Smelter Look-up'!$E$4,$V1065-4,0))","v":""},{"$f":"IF(C1065=$X$4,\"Enter smelter details\", IF(ISERROR($V1065),\"\",OFFSET('Smelter Look-up'!$F$4,$V1065-4,0)))","v":""},{"$f":"IF(ISERROR($V1065),\"\",OFFSET('Smelter Look-up'!$G$4,$V1065-4,0))","v":""},{"$f":"IF(ISERROR($V1065),\"\",OFFSET('Smelter Look-up'!$H$4,$V1065-4,0))","v":""},{"$f":"IF(ISERROR($V1065),\"\",OFFSET('Smelter Look-up'!$I$4,$V1065-4,0))","v":""},{"$nulls":7},{"$f":"IF(ISERROR($V1065),\"\",OFFSET('Smelter Look-up'!$C$4,$V1065-4,0)&\"\")","v":""},"",{"$f":"IF(B1065=\"\",\"\",IF(ISERROR(MATCH($J1065,SorP!$B$1:$B$6230,0)),\"\",INDIRECT(\"'SorP'!$A$\"&MATCH($J1065,SorP!$B$1:$B$6230,0))))","v":""},null,{"$f":"IF(C1065=\"\",NA(),MATCH($B1065&$C1065,'Smelter Look-up'!$J:$J,0))","v":{"$error":"#N/A"}},null,0,null,null,null,""]
[null,{"$f":"IF(LEN(A1066)=0,\"\",INDEX('Smelter Look-up'!$A:$A,MATCH($A1066,'Smelter Look-up'!$E:$E,0)))","v":""},{"$f":"IF(LEN(A1066)=0,\"\",INDEX('Smelter Look-up'!$C:$C,MATCH($A1066,'Smelter Look-up'!$E:$E,0)))","v":""},null,{"$f":"IF(ISERROR($V1066),\"\",OFFSET('Smelter Look-up'!$D$4,$V1066-4,0)&\"\")","v":""},{"$f":"IF(ISERROR($V1066),\"\",OFFSET('Smelter Look-up'!$E$4,$V1066-4,0))","v":""},{"$f":"IF(C1066=$X$4,\"Enter smelter details\", IF(ISERROR($V1066),\"\",OFFSET('Smelter Look-up'!$F$4,$V1066-4,0)))","v":""},{"$f":"IF(ISERROR($V1066),\"\",OFFSET('Smelter Look-up'!$G$4,$V1066-4,0))","v":""},{"$f":"IF(ISERROR($V1066),\"\",OFFSET('Smelter Look-up'!$H$4,$V1066-4,0))","v":""},{"$f":"IF(ISERROR($V1066),\"\",OFFSET('Smelter Look-up'!$I$4,$V1066-4,0))","v":""},{"$nulls":7},{"$f":"IF(ISERROR($V1066),\"\",OFFSET('Smelter Look-up'!$C$4,$V1066-4,0)&\"\")","v":""},"",{"$f":"IF(B1066=\"\",\"\",IF(ISERROR(MATCH($J1066,SorP!$B$1:$B$6230,0)),\"\",INDIRECT(\"'SorP'!$A$\"&MATCH($J1066,SorP!$B$1:$B$6230,0))))","v":""},null,{"$f":"IF(C1066=\"\",NA(),MATCH($B1066&$C1066,'Smelter Look-up'!$J:$J,0))","v":{"$error":"#N/A"}},null,0,null,null,null,""]
[null,{"$f":"IF(LEN(A1067)=0,\"\",INDEX('Smelter Look-up'!$A:$A,MATCH($A1067,'Smelter Look-up'!$E:$E,0)))","v":""},{"$f":"IF(LEN(A1067)=0,\"\",INDEX('Smelter Look-up'!$C:$C,MATCH($A1067,'Smelter Look-up'!$E:$E,0)))","v":""},null,{"$f":"IF(ISERROR($V1067),\"\",OFFSET('Smelter Look-up'!$D$4,$V1067-4,0)&\"\")","v":""},{"$f":"IF(ISERROR($V1067),\"\",OFFSET('Smelter Look-up'!$E$4,$V1067-4,0))","v":""},{"$f":"IF(C1067=$X$4,\"Enter smelter details\", IF(ISERROR($V1067),\"\",OFFSET('Smelter Look-up'!$F$4,$V1067-4,0)))","v":""},{"$f":"IF(ISERROR($V1067),\"\",OFFSET('Smelter Look-up'!$G$4,$V1067-4,0))","v":""},{"$f":"IF(ISERROR($V1067),\"\",OFFSET('Smelter Look-up'!$H$4,$V1067-4,0))","v":""},{"$f":"IF(ISERROR($V1067),\"\",OFFSET('Smelter Look-up'!$I$4,$V1067-4,0))","v":""},{"$nulls":7},{"$f":"IF(ISERROR($V1067),\"\",OFFSET('Smelter Look-up'!$C$4,$V1067-4,0)&\"\")","v":""},"",{"$f":"IF(B1067=\"\",\"\",IF(ISERROR(MATCH($J1067,SorP!$B$1:$B$6230,0)),\"\",INDIRECT(\"'SorP'!$A$\"&MATCH($J1067,SorP!$B$1:$B$6230,0))))","v":""},null,{"$f":"IF(C1067=\"\",NA(),MATCH($B1067&$C1067,'Smelter Look-up'!$J:$J,0))","v":{"$error":"#N/A"}},null,0,null,null,null,""]
[null,{"$f":"IF(LEN(A1068)=0,\"\",INDEX('Smelter Look-up'!$A:$A,MATCH($A1068,'Smelter Look-up'!$E:$E,0)))","v":""},{"$f":"IF(LEN(A1068)=0,\"\",INDEX('Smelter Look-up'!$C:$C,MATCH($A1068,'Smelter Look-up'!$E:$E,0)))","v":""},null,{"$f":"IF(ISERROR($V1068),\"\",OFFSET('Smelter Look-up'!$D$4,$V1068-4,0)&\"\")","v":""},{"$f":"IF(ISERROR($V1068),\"\",OFFSET('Smelter Look-up'!$E$4,$V1068-4,0))","v":""},{"$f":"IF(C1068=$X$4,\"Enter smelter details\", IF(ISERROR($V1068),\"\",OFFSET('Smelter Look-up'!$F$4,$V1068-4,0)))","v":""},{"$f":"IF(ISERROR($V1068),\"\",OFFSET('Smelter Look-up'!$G$4,$V1068-4,0))","v":""},{"$f":"IF(ISERROR($V1068),\"\",OFFSET('Smelter Look-up'!$H$4,$V1068-4,0))","v":""},{"$f":"IF(ISERROR($V1068),\"\",OFFSET('Smelter Look-up'!$I$4,$V1068-4,0))","v":""},{"$nulls":7},{"$f":"IF(ISERROR($V1068),\"\",OFFSET('Smelter Look-up'!$C$4,$V1068-4,0)&\"\")","v":""},"",{"$f":"IF(B1068=\"\",\"\",IF(ISERROR(MATCH($J1068,SorP!$B$1:$B$6230,0)),\"\",INDIRECT(\"'SorP'!$A$\"&MATCH($J1068,SorP!$B$1:$B$6230,0))))","v":""},null,{"$f":"IF(C1068=\"\",NA(),MATCH($B1068&$C1068,'Smelter Look-up'!$J:$J,0))","v":{"$error":"#N/A"}},null,0,null,null,null,""]
[null,{"$f":"IF(LEN(A1069)=0,\"\",INDEX('Smelter Look-up'!$A:$A,MATCH($A1069,'Smelter Look-up'!$E:$E,0)))","v":""},{"$f":"IF(LEN(A1069)=0,\"\",INDEX('Smelter Look-up'!$C:$C,MATCH($A1069,'Smelter Look-up'!$E:$E,0)))","v":""},null,{"$f":"IF(ISERROR($V1069),\"\",OFFSET('Smelter Look-up'!$D$4,$V1069-4,0)&\"\")","v":""},{"$f":"IF(ISERROR($V1069),\"\",OFFSET('Smelter Look-up'!$E$4,$V1069-4,0))","v":""},{"$f":"IF(C1069=$X$4,\"Enter smelter details\", IF(ISERROR($V1069),\"\",OFFSET('Smelter Look-up'!$F$4,$V1069-4,0)))","v":""},{"$f":"IF(ISERROR($V1069),\"\",OFFSET('Smelter Look-up'!$G$4,$V1069-4,0))","v":""},{"$f":"IF(ISERROR($V1069),\"\",OFFSET('Smelter Look-up'!$H$4,$V1069-4,0))","v":""},{"$f":"IF(ISERROR($V1069),\"\",OFFSET('Smelter Look-up'!$I$4,$V1069-4,0))","v":""},{"$nulls":7},{"$f":"IF(ISERROR($V1069),\"\",OFFSET('Smelter Look-up'!$C$4,$V1069-4,0)&\"\")","v":""},"",{"$f":"IF(B1069=\"\",\"\",IF(ISERROR(MATCH($J1069,SorP!$B$1:$B$6230,0)),\"\",INDIRECT(\"'SorP'!$A$\"&MATCH($J1069,SorP!$B$1:$B$6230,0))))","v":""},null,{"$f":"IF(C1069=\"\",NA(),MATCH($B1069&$C1069,'Smelter Look-up'!$J:$J,0))","v":{"$error":"#N/A"}},null,0,null,null,null,""]
[null,{"$f":"IF(LEN(A1070)=0,\"\",INDEX('Smelter Look-up'!$A:$A,MATCH($A1070,'Smelter Look-up'!$E:$E,0)))","v":""},{"$f":"IF(LEN(A1070)=0,\"\",INDEX('Smelter Look-up'!$C:$C,MATCH($A1070,'Smelter Look-up'!$E:$E,0)))","v":""},null,{"$f":"IF(ISERROR($V1070),\"\",OFFSET('Smelter Look-up'!$D$4,$V1070-4,0)&\"\")","v":""},{"$f":"IF(ISERROR($V1070),\"\",OFFSET('Smelter Look-up'!$E$4,$V1070-4,0))","v":""},{"$f":"IF(C1070=$X$4,\"Enter smelter details\", IF(ISERROR($V1070),\"\",OFFSET('Smelter Look-up'!$F$4,$V1070-4,0)))","v":""},{"$f":"IF(ISERROR($V1070),\"\",OFFSET('Smelter Look-up'!$G$4,$V1070-4,0))","v":""},{"$f":"IF(ISERROR($V1070),\"\",OFFSET('Smelter Look-up'!$H$4,$V1070-4,0))","v":""},{"$f":"IF(ISERROR($V1070),\"\",OFFSET('Smelter Look-up'!$I$4,$V1070-4,0))","v":""},{"$nulls":7},{"$f":"IF(ISERROR($V1070),\"\",OFFSET('Smelter Look-up'!$C$4,$V1070-4,0)&\"\")","v":""},"",{"$f":"IF(B1070=\"\",\"\",IF(ISERROR(MATCH($J1070,SorP!$B$1:$B$6230,0)),\"\",INDIRECT(\"'SorP'!$A$\"&MATCH($J1070,SorP!$B$1:$B$6230,0))))","v":""},null,{"$f":"IF(C1070=\"\",NA(),MATCH($B1070&$C1070,'Smelter Look-up'!$J:$J,0))","v":{"$error":"#N/A"}},null,0,null,null,null,""]
[null,{"$f":"IF(LEN(A1071)=0,\"\",INDEX('Smelter Look-up'!$A:$A,MATCH($A1071,'Smelter Look-up'!$E:$E,0)))","v":""},{"$f":"IF(LEN(A1071)=0,\"\",INDEX('Smelter Look-up'!$C:$C,MATCH($A1071,'Smelter Look-up'!$E:$E,0)))","v":""},null,{"$f":"IF(ISERROR($V1071),\"\",OFFSET('Smelter Look-up'!$D$4,$V1071-4,0)&\"\")","v":""},{"$f":"IF(ISERROR($V1071),\"\",OFFSET('Smelter Look-up'!$E$4,$V1071-4,0))","v":""},{"$f":"IF(C1071=$X$4,\"Enter smelter details\", IF(ISERROR($V1071),\"\",OFFSET('Smelter Look-up'!$F$4,$V1071-4,0)))","v":""},{"$f":"IF(ISERROR($V1071),\"\",OFFSET('Smelter Look-up'!$G$4,$V1071-4,0))","v":""},{"$f":"IF(ISERROR($V1071),\"\",OFFSET('Smelter Look-up'!$H$4,$V1071-4,0))","v":""},{"$f":"IF(ISERROR($V1071),\"\",OFFSET('Smelter Look-up'!$I$4,$V1071-4,0))","v":""},{"$nulls":7},{"$f":"IF(ISERROR($V1071),\"\",OFFSET('Smelter Look-up'!$C$4,$V1071-4,0)&\"\")","v":""},"",{"$f":"IF(B1071=\"\",\"\",IF(ISERROR(MATCH($J1071,SorP!$B$1:$B$6230,0)),\"\",INDIRECT(\"'SorP'!$A$\"&MATCH($J1071,SorP!$B$1:$B$6230,0))))","v":""},null,{"$f":"IF(C1071=\"\",NA(),MATCH($B1071&$C1071,'Smelter Look-up'!$J:$J,0))","v":{"$error":"#N/A"}},null,0,null,null,null,""]
[null,{"$f":"IF(LEN(A1072)=0,\"\",INDEX('Smelter Look-up'!$A:$A,MATCH($A1072,'Smelter Look-up'!$E:$E,0)))","v":""},{"$f":"IF(LEN(A1072)=0,\"\",INDEX('Smelter Look-up'!$C:$C,MATCH($A1072,'Smelter Look-up'!$E:$E,0)))","v":""},null,{"$f":"IF(ISERROR($V1072),\"\",OFFSET('Smelter Look-up'!$D$4,$V1072-4,0)&\"\")","v":""},{"$f":"IF(ISERROR($V1072),\"\",OFFSET('Smelter Look-up'!$E$4,$V1072-4,0))","v":""},{"$f":"IF(C1072=$X$4,\"Enter smelter details\", IF(ISERROR($V1072),\"\",OFFSET('Smelter Look-up'!$F$4,$V1072-4,0)))","v":""},{"$f":"IF(ISERROR($V1072),\"\",OFFSET('Smelter Look-up'!$G$4,$V1072-4,0))","v":""},{"$f":"IF(ISERROR($V1072),\"\",OFFSET('Smelter Look-up'!$H$4,$V1072-4,0))","v":""},{"$f":"IF(ISERROR($V1072),\"\",OFFSET('Smelter Look-up'!$I$4,$V1072-4,0))","v":""},{"$nulls":7},{"$f":"IF(ISERROR($V1072),\"\",OFFSET('Smelter Look-up'!$C$4,$V1072-4,0)&\"\")","v":""},"",{"$f":"IF(B1072=\"\",\"\",IF(ISERROR(MATCH($J1072,SorP!$B$1:$B$6230,0)),\"\",INDIRECT(\"'SorP'!$A$\"&MATCH($J1072,SorP!$B$1:$B$6230,0))))","v":""},null,{"$f":"IF(C1072=\"\",NA(),MATCH($B1072&$C1072,'Smelter Look-up'!$J:$J,0))","v":{"$error":"#N/A"}},null,0,null,null,null,""]
[null,{"$f":"IF(LEN(A1073)=0,\"\",INDEX('Smelter Look-up'!$A:$A,MATCH($A1073,'Smelter Look-up'!$E:$E,0)))","v":""},{"$f":"IF(LEN(A1073)=0,\"\",INDEX('Smelter Look-up'!$C:$C,MATCH($A1073,'Smelter Look-up'!$E:$E,0)))","v":""},null,{"$f":"IF(ISERROR($V1073),\"\",OFFSET('Smelter Look-up'!$D$4,$V1073-4,0)&\"\")","v":""},{"$f":"IF(ISERROR($V1073),\"\",OFFSET('Smelter Look-up'!$E$4,$V1073-4,0))","v":""},{"$f":"IF(C1073=$X$4,\"Enter smelter details\", IF(ISERROR($V1073),\"\",OFFSET('Smelter Look-up'!$F$4,$V1073-4,0)))","v":""},{"$f":"IF(ISERROR($V1073),\"\",OFFSET('Smelter Look-up'!$G$4,$V1073-4,0))","v":""},{"$f":"IF(ISERROR($V1073),\"\",OFFSET('Smelter Look-up'!$H$4,$V1073-4,0))","v":""},{"$f":"IF(ISERROR($V1073),\"\",OFFSET('Smelter Look-up'!$I$4,$V1073-4,0))","v":""},{"$nulls":7},{"$f":"IF(ISERROR($V1073),\"\",OFFSET('Smelter Look-up'!$C$4,$V1073-4,0)&\"\")","v":""},"",{"$f":"IF(B1073=\"\",\"\",IF(ISERROR(MATCH($J1073,SorP!$B$1:$B$6230,0)),\"\",INDIRECT(\"'SorP'!$A$\"&MATCH($J1073,SorP!$B$1:$B$6230,0))))","v":""},null,{"$f":"IF(C1073=\"\",NA(),MATCH($B1073&$C1073,'Smelter Look-up'!$J:$J,0))","v":{"$error":"#N/A"}},null,0,null,null,null,""]
[null,{"$f":"IF(LEN(A1074)=0,\"\",INDEX('Smelter Look-up'!$A:$A,MATCH($A1074,'Smelter Look-up'!$E:$E,0)))","v":""},{"$f":"IF(LEN(A1074)=0,\"\",INDEX('Smelter Look-up'!$C:$C,MATCH($A1074,'Smelter Look-up'!$E:$E,0)))","v":""},null,{"$f":"IF(ISERROR($V1074),\"\",OFFSET('Smelter Look-up'!$D$4,$V1074-4,0)&\"\")","v":""},{"$f":"IF(ISERROR($V1074),\"\",OFFSET('Smelter Look-up'!$E$4,$V1074-4,0))","v":""},{"$f":"IF(C1074=$X$4,\"Enter smelter details\", IF(ISERROR($V1074),\"\",OFFSET('Smelter Look-up'!$F$4,$V1074-4,0)))","v":""},{"$f":"IF(ISERROR($V1074),\"\",OFFSET('Smelter Look-up'!$G$4,$V1074-4,0))","v":""},{"$f":"IF(ISERROR($V1074),\"\",OFFSET('Smelter Look-up'!$H$4,$V1074-4,0))","v":""},{"$f":"IF(ISERROR($V1074),\"\",OFFSET('Smelter Look-up'!$I$4,$V1074-4,0))","v":""},{"$nulls":7},{"$f":"IF(ISERROR($V1074),\"\",OFFSET('Smelter Look-up'!$C$4,$V1074-4,0)&\"\")","v":""},"",{"$f":"IF(B1074=\"\",\"\",IF(ISERROR(MATCH($J1074,SorP!$B$1:$B$6230,0)),\"\",INDIRECT(\"'SorP'!$A$\"&MATCH($J1074,SorP!$B$1:$B$6230,0))))","v":""},null,{"$f":"IF(C1074=\"\",NA(),MATCH($B1074&$C1074,'Smelter Look-up'!$J:$J,0))","v":{"$error":"#N/A"}},null,0,null,null,null,""]
[null,{"$f":"IF(LEN(A1075)=0,\"\",INDEX('Smelter Look-up'!$A:$A,MATCH($A1075,'Smelter Look-up'!$E:$E,0)))","v":""},{"$f":"IF(LEN(A1075)=0,\"\",INDEX('Smelter Look-up'!$C:$C,MATCH($A1075,'Smelter Look-up'!$E:$E,0)))","v":""},null,{"$f":"IF(ISERROR($V1075),\"\",OFFSET('Smelter Look-up'!$D$4,$V1075-4,0)&\"\")","v":""},{"$f":"IF(ISERROR($V1075),\"\",OFFSET('Smelter Look-up'!$E$4,$V1075-4,0))","v":""},{"$f":"IF(C1075=$X$4,\"Enter smelter details\", IF(ISERROR($V1075),\"\",OFFSET('Smelter Look-up'!$F$4,$V1075-4,0)))","v":""},{"$f":"IF(ISERROR($V1075),\"\",OFFSET('Smelter Look-up'!$G$4,$V1075-4,0))","v":""},{"$f":"IF(ISERROR($V1075),\"\",OFFSET('Smelter Look-up'!$H$4,$V1075-4,0))","v":""},{"$f":"IF(ISERROR($V1075),\"\",OFFSET('Smelter Look-up'!$I$4,$V1075-4,0))","v":""},{"$nulls":7},{"$f":"IF(ISERROR($V1075),\"\",OFFSET('Smelter Look-up'!$C$4,$V1075-4,0)&\"\")","v":""},"",{"$f":"IF(B1075=\"\",\"\",IF(ISERROR(MATCH($J1075,SorP!$B$1:$B$6230,0)),\"\",INDIRECT(\"'SorP'!$A$\"&MATCH($J1075,SorP!$B$1:$B$6230,0))))","v":""},null,{"$f":"IF(C1075=\"\",NA(),MATCH($B1075&$C1075,'Smelter Look-up'!$J:$J,0))","v":{"$error":"#N/A"}},null,0,null,null,null,""]
[null,{"$f":"IF(LEN(A1076)=0,\"\",INDEX('Smelter Look-up'!$A:$A,MATCH($A1076,'Smelter Look-up'!$E:$E,0)))","v":""},{"$f":"IF(LEN(A1076)=0,\"\",INDEX('Smelter Look-up'!$C:$C,MATCH($A1076,'Smelter Look-up'!$E:$E,0)))","v":""},null,{"$f":"IF(ISERROR($V1076),\"\",OFFSET('Smelter Look-up'!$D$4,$V1076-4,0)&\"\")","v":""},{"$f":"IF(ISERROR($V1076),\"\",OFFSET('Smelter Look-up'!$E$4,$V1076-4,0))","v":""},{"$f":"IF(C1076=$X$4,\"Enter smelter details\", IF(ISERROR($V1076),\"\",OFFSET('Smelter Look-up'!$F$4,$V1076-4,0)))","v":""},{"$f":"IF(ISERROR($V1076),\"\",OFFSET('Smelter Look-up'!$G$4,$V1076-4,0))","v":""},{"$f":"IF(ISERROR($V1076),\"\",OFFSET('Smelter Look-up'!$H$4,$V1076-4,0))","v":""},{"$f":"IF(ISERROR($V1076),\"\",OFFSET('Smelter Look-up'!$I$4,$V1076-4,0))","v":""},{"$nulls":7},{"$f":"IF(ISERROR($V1076),\"\",OFFSET('Smelter Look-up'!$C$4,$V1076-4,0)&\"\")","v":""},"",{"$f":"IF(B1076=\"\",\"\",IF(ISERROR(MATCH($J1076,SorP!$B$1:$B$6230,0)),\"\",INDIRECT(\"'SorP'!$A$\"&MATCH($J1076,SorP!$B$1:$B$6230,0))))","v":""},null,{"$f":"IF(C1076=\"\",NA(),MATCH($B1076&$C1076,'Smelter Look-up'!$J:$J,0))","v":{"$error":"#N/A"}},null,0,null,null,null,""]
[null,{"$f":"IF(LEN(A1077)=0,\"\",INDEX('Smelter Look-up'!$A:$A,MATCH($A1077,'Smelter Look-up'!$E:$E,0)))","v":""},{"$f":"IF(LEN(A1077)=0,\"\",INDEX('Smelter Look-up'!$C:$C,MATCH($A1077,'Smelter Look-up'!$E:$E,0)))","v":""},null,{"$f":"IF(ISERROR($V1077),\"\",OFFSET('Smelter Look-up'!$D$4,$V1077-4,0)&\"\")","v":""},{"$f":"IF(ISERROR($V1077),\"\",OFFSET('Smelter Look-up'!$E$4,$V1077-4,0))","v":""},{"$f":"IF(C1077=$X$4,\"Enter smelter details\", IF(ISERROR($V1077),\"\",OFFSET('Smelter Look-up'!$F$4,$V1077-4,0)))","v":""},{"$f":"IF(ISERROR($V1077),\"\",OFFSET('Smelter Look-up'!$G$4,$V1077-4,0))","v":""},{"$f":"IF(ISERROR($V1077),\"\",OFFSET('Smelter Look-up'!$H$4,$V1077-4,0))","v":""},{"$f":"IF(ISERROR($V1077),\"\",OFFSET('Smelter Look-up'!$I$4,$V1077-4,0))","v":""},{"$nulls":7},{"$f":"IF(ISERROR($V1077),\"\",OFFSET('Smelter Look-up'!$C$4,$V1077-4,0)&\"\")","v":""},"",{"$f":"IF(B1077=\"\",\"\",IF(ISERROR(MATCH($J1077,SorP!$B$1:$B$6230,0)),\"\",INDIRECT(\"'SorP'!$A$\"&MATCH($J1077,SorP!$B$1:$B$6230,0))))","v":""},null,{"$f":"IF(C1077=\"\",NA(),MATCH($B1077&$C1077,'Smelter Look-up'!$J:$J,0))","v":{"$error":"#N/A"}},null,0,null,null,null,""]
[null,{"$f":"IF(LEN(A1078)=0,\"\",INDEX('Smelter Look-up'!$A:$A,MATCH($A1078,'Smelter Look-up'!$E:$E,0)))","v":""},{"$f":"IF(LEN(A1078)=0,\"\",INDEX('Smelter Look-up'!$C:$C,MATCH($A1078,'Smelter Look-up'!$E:$E,0)))","v":""},null,{"$f":"IF(ISERROR($V1078),\"\",OFFSET('Smelter Look-up'!$D$4,$V1078-4,0)&\"\")","v":""},{"$f":"IF(ISERROR($V1078),\"\",OFFSET('Smelter Look-up'!$E$4,$V1078-4,0))","v":""},{"$f":"IF(C1078=$X$4,\"Enter smelter details\", IF(ISERROR($V1078),\"\",OFFSET('Smelter Look-up'!$F$4,$V1078-4,0)))","v":""},{"$f":"IF(ISERROR($V1078),\"\",OFFSET('Smelter Look-up'!$G$4,$V1078-4,0))","v":""},{"$f":"IF(ISERROR($V1078),\"\",OFFSET('Smelter Look-up'!$H$4,$V1078-4,0))","v":""},{"$f":"IF(ISERROR($V1078),\"\",OFFSET('Smelter Look-up'!$I$4,$V1078-4,0))","v":""},{"$nulls":7},{"$f":"IF(ISERROR($V1078),\"\",OFFSET('Smelter Look-up'!$C$4,$V1078-4,0)&\"\")","v":""},"",{"$f":"IF(B1078=\"\",\"\",IF(ISERROR(MATCH($J1078,SorP!$B$1:$B$6230,0)),\"\",INDIRECT(\"'SorP'!$A$\"&MATCH($J1078,SorP!$B$1:$B$6230,0))))","v":""},null,{"$f":"IF(C1078=\"\",NA(),MATCH($B1078&$C1078,'Smelter Look-up'!$J:$J,0))","v":{"$error":"#N/A"}},null,0,null,null,null,""]
[null,{"$f":"IF(LEN(A1079)=0,\"\",INDEX('Smelter Look-up'!$A:$A,MATCH($A1079,'Smelter Look-up'!$E:$E,0)))","v":""},{"$f":"IF(LEN(A1079)=0,\"\",INDEX('Smelter Look-up'!$C:$C,MATCH($A1079,'Smelter Look-up'!$E:$E,0)))","v":""},null,{"$f":"IF(ISERROR($V1079),\"\",OFFSET('Smelter Look-up'!$D$4,$V1079-4,0)&\"\")","v":""},{"$f":"IF(ISERROR($V1079),\"\",OFFSET('Smelter Look-up'!$E$4,$V1079-4,0))","v":""},{"$f":"IF(C1079=$X$4,\"Enter smelter details\", IF(ISERROR($V1079),\"\",OFFSET('Smelter Look-up'!$F$4,$V1079-4,0)))","v":""},{"$f":"IF(ISERROR($V1079),\"\",OFFSET('Smelter Look-up'!$G$4,$V1079-4,0))","v":""},{"$f":"IF(ISERROR($V1079),\"\",OFFSET('Smelter Look-up'!$H$4,$V1079-4,0))","v":""},{"$f":"IF(ISERROR($V1079),\"\",OFFSET('Smelter Look-up'!$I$4,$V1079-4,0))","v":""},{"$nulls":7},{"$f":"IF(ISERROR($V1079),\"\",OFFSET('Smelter Look-up'!$C$4,$V1079-4,0)&\"\")","v":""},"",{"$f":"IF(B1079=\"\",\"\",IF(ISERROR(MATCH($J1079,SorP!$B$1:$B$6230,0)),\"\",INDIRECT(\"'SorP'!$A$\"&MATCH($J1079,SorP!$B$1:$B$6230,0))))","v":""},null,{"$f":"IF(C1079=\"\",NA(),MATCH($B1079&$C1079,'Smelter Look-up'!$J:$J,0))","v":{"$error":"#N/A"}},null,0,null,null,null,""]
[null,{"$f":"IF(LEN(A1080)=0,\"\",INDEX('Smelter Look-up'!$A:$A,MATCH($A1080,'Smelter Look-up'!$E:$E,0)))","v":""},{"$f":"IF(LEN(A1080)=0,\"\",INDEX('Smelter Look-up'!$C:$C,MATCH($A1080,'Smelter Look-up'!$E:$E,0)))","v":""},null,{"$f":"IF(ISERROR($V1080),\"\",OFFSET('Smelter Look-up'!$D$4,$V1080-4,0)&\"\")","v":""},{"$f":"IF(ISERROR($V1080),\"\",OFFSET('Smelter Look-up'!$E$4,$V1080-4,0))","v":""},{"$f":"IF(C1080=$X$4,\"Enter smelter details\", IF(ISERROR($V1080),\"\",OFFSET('Smelter Look-up'!$F$4,$V1080-4,0)))","v":""},{"$f":"IF(ISERROR($V1080),\"\",OFFSET('Smelter Look-up'!$G$4,$V1080-4,0))","v":""},{"$f":"IF(ISERROR($V1080),\"\",OFFSET('Smelter Look-up'!$H$4,$V1080-4,0))","v":""},{"$f":"IF(ISERROR($V1080),\"\",OFFSET('Smelter Look-up'!$I$4,$V1080-4,0))","v":""},{"$nulls":7},{"$f":"IF(ISERROR($V1080),\"\",OFFSET('Smelter Look-up'!$C$4,$V1080-4,0)&\"\")","v":""},"",{"$f":"IF(B1080=\"\",\"\",IF(ISERROR(MATCH($J1080,SorP!$B$1:$B$6230,0)),\"\",INDIRECT(\"'SorP'!$A$\"&MATCH($J1080,SorP!$B$1:$B$6230,0))))","v":""},null,{"$f":"IF(C1080=\"\",NA(),MATCH($B1080&$C1080,'Smelter Look-up'!$J:$J,0))","v":{"$error":"#N/A"}},null,0,null,null,null,""]
[null,{"$f":"IF(LEN(A1081)=0,\"\",INDEX('Smelter Look-up'!$A:$A,MATCH($A1081,'Smelter Look-up'!$E:$E,0)))","v":""},{"$f":"IF(LEN(A1081)=0,\"\",INDEX('Smelter Look-up'!$C:$C,MATCH($A1081,'Smelter Look-up'!$E:$E,0)))","v":""},null,{"$f":"IF(ISERROR($V1081),\"\",OFFSET('Smelter Look-up'!$D$4,$V1081-4,0)&\"\")","v":""},{"$f":"IF(ISERROR($V1081),\"\",OFFSET('Smelter Look-up'!$E$4,$V1081-4,0))","v":""},{"$f":"IF(C1081=$X$4,\"Enter smelter details\", IF(ISERROR($V1081),\"\",OFFSET('Smelter Look-up'!$F$4,$V1081-4,0)))","v":""},{"$f":"IF(ISERROR($V1081),\"\",OFFSET('Smelter Look-up'!$G$4,$V1081-4,0))","v":""},{"$f":"IF(ISERROR($V1081),\"\",OFFSET('Smelter Look-up'!$H$4,$V1081-4,0))","v":""},{"$f":"IF(ISERROR($V1081),\"\",OFFSET('Smelter Look-up'!$I$4,$V1081-4,0))","v":""},{"$nulls":7},{"$f":"IF(ISERROR($V1081),\"\",OFFSET('Smelter Look-up'!$C$4,$V1081-4,0)&\"\")","v":""},"",{"$f":"IF(B1081=\"\",\"\",IF(ISERROR(MATCH($J1081,SorP!$B$1:$B$6230,0)),\"\",INDIRECT(\"'SorP'!$A$\"&MATCH($J1081,SorP!$B$1:$B$6230,0))))","v":""},null,{"$f":"IF(C1081=\"\",NA(),MATCH($B1081&$C1081,'Smelter Look-up'!$J:$J,0))","v":{"$error":"#N/A"}},null,0,null,null,null,""]
[null,{"$f":"IF(LEN(A1082)=0,\"\",INDEX('Smelter Look-up'!$A:$A,MATCH($A1082,'Smelter Look-up'!$E:$E,0)))","v":""},{"$f":"IF(LEN(A1082)=0,\"\",INDEX('Smelter Look-up'!$C:$C,MATCH($A1082,'Smelter Look-up'!$E:$E,0)))","v":""},null,{"$f":"IF(ISERROR($V1082),\"\",OFFSET('Smelter Look-up'!$D$4,$V1082-4,0)&\"\")","v":""},{"$f":"IF(ISERROR($V1082),\"\",OFFSET('Smelter Look-up'!$E$4,$V1082-4,0))","v":""},{"$f":"IF(C1082=$X$4,\"Enter smelter details\", IF(ISERROR($V1082),\"\",OFFSET('Smelter Look-up'!$F$4,$V1082-4,0)))","v":""},{"$f":"IF(ISERROR($V1082),\"\",OFFSET('Smelter Look-up'!$G$4,$V1082-4,0))","v":""},{"$f":"IF(ISERROR($V1082),\"\",OFFSET('Smelter Look-up'!$H$4,$V1082-4,0))","v":""},{"$f":"IF(ISERROR($V1082),\"\",OFFSET('Smelter Look-up'!$I$4,$V1082-4,0))","v":""},{"$nulls":7},{"$f":"IF(ISERROR($V1082),\"\",OFFSET('Smelter Look-up'!$C$4,$V1082-4,0)&\"\")","v":""},"",{"$f":"IF(B1082=\"\",\"\",IF(ISERROR(MATCH($J1082,SorP!$B$1:$B$6230,0)),\"\",INDIRECT(\"'SorP'!$A$\"&MATCH($J1082,SorP!$B$1:$B$6230,0))))","v":""},null,{"$f":"IF(C1082=\"\",NA(),MATCH($B1082&$C1082,'Smelter Look-up'!$J:$J,0))","v":{"$error":"#N/A"}},null,0,null,null,null,""]
[null,{"$f":"IF(LEN(A1083)=0,\"\",INDEX('Smelter Look-up'!$A:$A,MATCH($A1083,'Smelter Look-up'!$E:$E,0)))","v":""},{"$f":"IF(LEN(A1083)=0,\"\",INDEX('Smelter Look-up'!$C:$C,MATCH($A1083,'Smelter Look-up'!$E:$E,0)))","v":""},null,{"$f":"IF(ISERROR($V1083),\"\",OFFSET('Smelter Look-up'!$D$4,$V1083-4,0)&\"\")","v":""},{"$f":"IF(ISERROR($V1083),\"\",OFFSET('Smelter Look-up'!$E$4,$V1083-4,0))","v":""},{"$f":"IF(C1083=$X$4,\"Enter smelter details\", IF(ISERROR($V1083),\"\",OFFSET('Smelter Look-up'!$F$4,$V1083-4,0)))","v":""},{"$f":"IF(ISERROR($V1083),\"\",OFFSET('Smelter Look-up'!$G$4,$V1083-4,0))","v":""},{"$f":"IF(ISERROR($V1083),\"\",OFFSET('Smelter Look-up'!$H$4,$V1083-4,0))","v":""},{"$f":"IF(ISERROR($V1083),\"\",OFFSET('Smelter Look-up'!$I$4,$V1083-4,0))","v":""},{"$nulls":7},{"$f":"IF(ISERROR($V1083),\"\",OFFSET('Smelter Look-up'!$C$4,$V1083-4,0)&\"\")","v":""},{"$f":"IF(B1083=\"\",\"\",IF(ISERROR(MATCH($E1083,CL,0)),\"Unknown\",INDIRECT(\"'C'!$A$\"&MATCH($E1083,CL,0)+1)))","v":""},{"$f":"IF(B1083=\"\",\"\",IF(ISERROR(MATCH($J1083,SorP!$B$1:$B$6230,0)),\"\",INDIRECT(\"'SorP'!$A$\"&MATCH($J1083,SorP!$B$1:$B$6230,0))))","v":""},null,{"$f":"IF(C1083=\"\",NA(),MATCH($B1083&$C1083,'Smelter Look-up'!$J:$J,0))","v":{"$error":"#N/A"}},null,{"$f":"IF(AND(C1083=\"Smelter not listed\",OR(LEN(D1083)=0,LEN(E1083)=0)),1,0)","v":0},null,null,null,{"$f":"B1083&C1083","v":""}]
[null,{"$f":"IF(LEN(A1084)=0,\"\",INDEX('Smelter Look-up'!$A:$A,MATCH($A1084,'Smelter Look-up'!$E:$E,0)))","v":""},{"$f":"IF(LEN(A1084)=0,\"\",INDEX('Smelter Look-up'!$C:$C,MATCH($A1084,'Smelter Look-up'!$E:$E,0)))","v":""},null,{"$f":"IF(ISERROR($V1084),\"\",OFFSET('Smelter Look-up'!$D$4,$V1084-4,0)&\"\")","v":""},{"$f":"IF(ISERROR($V1084),\"\",OFFSET('Smelter Look-up'!$E$4,$V1084-4,0))","v":""},{"$f":"IF(C1084=$X$4,\"Enter smelter details\", IF(ISERROR($V1084),\"\",OFFSET('Smelter Look-up'!$F$4,$V1084-4,0)))","v":""},{"$f":"IF(ISERROR($V1084),\"\",OFFSET('Smelter Look-up'!$G$4,$V1084-4,0))","v":""},{"$f":"IF(ISERROR($V1084),\"\",OFFSET('Smelter Look-up'!$H$4,$V1084-4,0))","v":""},{"$f":"IF(ISERROR($V1084),\"\",OFFSET('Smelter Look-up'!$I$4,$V1084-4,0))","v":""},{"$nulls":7},{"$f":"IF(ISERROR($V1084),\"\",OFFSET('Smelter Look-up'!$C$4,$V1084-4,0)&\"\")","v":""},"",{"$f":"IF(B1084=\"\",\"\",IF(ISERROR(MATCH($J1084,SorP!$B$1:$B$6230,0)),\"\",INDIRECT(\"'SorP'!$A$\"&MATCH($J1084,SorP!$B$1:$B$6230,0))))","v":""},null,{"$f":"IF(C1084=\"\",NA(),MATCH($B1084&$C1084,'Smelter Look-up'!$J:$J,0))","v":{"$error":"#N/A"}},null,0,null,null,null,""]
[null,{"$f":"IF(LEN(A1085)=0,\"\",INDEX('Smelter Look-up'!$A:$A,MATCH($A1085,'Smelter Look-up'!$E:$E,0)))","v":""},{"$f":"IF(LEN(A1085)=0,\"\",INDEX('Smelter Look-up'!$C:$C,MATCH($A1085,'Smelter Look-up'!$E:$E,0)))","v":""},null,{"$f":"IF(ISERROR($V1085),\"\",OFFSET('Smelter Look-up'!$D$4,$V1085-4,0)&\"\")","v":""},{"$f":"IF(ISERROR($V1085),\"\",OFFSET('Smelter Look-up'!$E$4,$V1085-4,0))","v":""},{"$f":"IF(C1085=$X$4,\"Enter smelter details\", IF(ISERROR($V1085),\"\",OFFSET('Smelter Look-up'!$F$4,$V1085-4,0)))","v":""},{"$f":"IF(ISERROR($V1085),\"\",OFFSET('Smelter Look-up'!$G$4,$V1085-4,0))","v":""},{"$f":"IF(ISERROR($V1085),\"\",OFFSET('Smelter Look-up'!$H$4,$V1085-4,0))","v":""},{"$f":"IF(ISERROR($V1085),\"\",OFFSET('Smelter Look-up'!$I$4,$V1085-4,0))","v":""},{"$nulls":7},{"$f":"IF(ISERROR($V1085),\"\",OFFSET('Smelter Look-up'!$C$4,$V1085-4,0)&\"\")","v":""},"",{"$f":"IF(B1085=\"\",\"\",IF(ISERROR(MATCH($J1085,SorP!$B$1:$B$6230,0)),\"\",INDIRECT(\"'SorP'!$A$\"&MATCH($J1085,SorP!$B$1:$B$6230,0))))","v":""},null,{"$f":"IF(C1085=\"\",NA(),MATCH($B1085&$C1085,'Smelter Look-up'!$J:$J,0))","v":{"$error":"#N/A"}},null,0,null,null,null,""]
[null,{"$f":"IF(LEN(A1086)=0,\"\",INDEX('Smelter Look-up'!$A:$A,MATCH($A1086,'Smelter Look-up'!$E:$E,0)))","v":""},{"$f":"IF(LEN(A1086)=0,\"\",INDEX('Smelter Look-up'!$C:$C,MATCH($A1086,'Smelter Look-up'!$E:$E,0)))","v":""},null,{"$f":"IF(ISERROR($V1086),\"\",OFFSET('Smelter Look-up'!$D$4,$V1086-4,0)&\"\")","v":""},{"$f":"IF(ISERROR($V1086),\"\",OFFSET('Smelter Look-up'!$E$4,$V1086-4,0))","v":""},{"$f":"IF(C1086=$X$4,\"Enter smelter details\", IF(ISERROR($V1086),\"\",OFFSET('Smelter Look-up'!$F$4,$V1086-4,0)))","v":""},{"$f":"IF(ISERROR($V1086),\"\",OFFSET('Smelter Look-up'!$G$4,$V1086-4,0))","v":""},{"$f":"IF(ISERROR($V1086),\"\",OFFSET('Smelter Look-up'!$H$4,$V1086-4,0))","v":""},{"$f":"IF(ISERROR($V1086),\"\",OFFSET('Smelter Look-up'!$I$4,$V1086-4,0))","v":""},{"$nulls":7},{"$f":"IF(ISERROR($V1086),\"\",OFFSET('Smelter Look-up'!$C$4,$V1086-4,0)&\"\")","v":""},"",{"$f":"IF(B1086=\"\",\"\",IF(ISERROR(MATCH($J1086,SorP!$B$1:$B$6230,0)),\"\",INDIRECT(\"'SorP'!$A$\"&MATCH($J1086,SorP!$B$1:$B$6230,0))))","v":""},null,{"$f":"IF(C1086=\"\",NA(),MATCH($B1086&$C1086,'Smelter Look-up'!$J:$J,0))","v":{"$error":"#N/A"}},null,0,null,null,null,""]
[null,{"$f":"IF(LEN(A1087)=0,\"\",INDEX('Smelter Look-up'!$A:$A,MATCH($A1087,'Smelter Look-up'!$E:$E,0)))","v":""},{"$f":"IF(LEN(A1087)=0,\"\",INDEX('Smelter Look-up'!$C:$C,MATCH($A1087,'Smelter Look-up'!$E:$E,0)))","v":""},null,{"$f":"IF(ISERROR($V1087),\"\",OFFSET('Smelter Look-up'!$D$4,$V1087-4,0)&\"\")","v":""},{"$f":"IF(ISERROR($V1087),\"\",OFFSET('Smelter Look-up'!$E$4,$V1087-4,0))","v":""},{"$f":"IF(C1087=$X$4,\"Enter smelter details\", IF(ISERROR($V1087),\"\",OFFSET('Smelter Look-up'!$F$4,$V1087-4,0)))","v":""},{"$f":"IF(ISERROR($V1087),\"\",OFFSET('Smelter Look-up'!$G$4,$V1087-4,0))","v":""},{"$f":"IF(ISERROR($V1087),\"\",OFFSET('Smelter Look-up'!$H$4,$V1087-4,0))","v":""},{"$f":"IF(ISERROR($V1087),\"\",OFFSET('Smelter Look-up'!$I$4,$V1087-4,0))","v":""},{"$nulls":7},{"$f":"IF(ISERROR($V1087),\"\",OFFSET('Smelter Look-up'!$C$4,$V1087-4,0)&\"\")","v":""},"",{"$f":"IF(B1087=\"\",\"\",IF(ISERROR(MATCH($J1087,SorP!$B$1:$B$6230,0)),\"\",INDIRECT(\"'SorP'!$A$\"&MATCH($J1087,SorP!$B$1:$B$6230,0))))","v":""},null,{"$f":"IF(C1087=\"\",NA(),MATCH($B1087&$C1087,'Smelter Look-up'!$J:$J,0))","v":{"$error":"#N/A"}},null,0,null,null,null,""]
[null,{"$f":"IF(LEN(A1088)=0,\"\",INDEX('Smelter Look-up'!$A:$A,MATCH($A1088,'Smelter Look-up'!$E:$E,0)))","v":""},{"$f":"IF(LEN(A1088)=0,\"\",INDEX('Smelter Look-up'!$C:$C,MATCH($A1088,'Smelter Look-up'!$E:$E,0)))","v":""},null,{"$f":"IF(ISERROR($V1088),\"\",OFFSET('Smelter Look-up'!$D$4,$V1088-4,0)&\"\")","v":""},{"$f":"IF(ISERROR($V1088),\"\",OFFSET('Smelter Look-up'!$E$4,$V1088-4,0))","v":""},{"$f":"IF(C1088=$X$4,\"Enter smelter details\", IF(ISERROR($V1088),\"\",OFFSET('Smelter Look-up'!$F$4,$V1088-4,0)))","v":""},{"$f":"IF(ISERROR($V1088),\"\",OFFSET('Smelter Look-up'!$G$4,$V1088-4,0))","v":""},{"$f":"IF(ISERROR($V1088),\"\",OFFSET('Smelter Look-up'!$H$4,$V1088-4,0))","v":""},{"$f":"IF(ISERROR($V1088),\"\",OFFSET('Smelter Look-up'!$I$4,$V1088-4,0))","v":""},{"$nulls":7},{"$f":"IF(ISERROR($V1088),\"\",OFFSET('Smelter Look-up'!$C$4,$V1088-4,0)&\"\")","v":""},"",{"$f":"IF(B1088=\"\",\"\",IF(ISERROR(MATCH($J1088,SorP!$B$1:$B$6230,0)),\"\",INDIRECT(\"'SorP'!$A$\"&MATCH($J1088,SorP!$B$1:$B$6230,0))))","v":""},null,{"$f":"IF(C1088=\"\",NA(),MATCH($B1088&$C1088,'Smelter Look-up'!$J:$J,0))","v":{"$error":"#N/A"}},null,0,null,null,null,""]
[null,{"$f":"IF(LEN(A1089)=0,\"\",INDEX('Smelter Look-up'!$A:$A,MATCH($A1089,'Smelter Look-up'!$E:$E,0)))","v":""},{"$f":"IF(LEN(A1089)=0,\"\",INDEX('Smelter Look-up'!$C:$C,MATCH($A1089,'Smelter Look-up'!$E:$E,0)))","v":""},null,{"$f":"IF(ISERROR($V1089),\"\",OFFSET('Smelter Look-up'!$D$4,$V1089-4,0)&\"\")","v":""},{"$f":"IF(ISERROR($V1089),\"\",OFFSET('Smelter Look-up'!$E$4,$V1089-4,0))","v":""},{"$f":"IF(C1089=$X$4,\"Enter smelter details\", IF(ISERROR($V1089),\"\",OFFSET('Smelter Look-up'!$F$4,$V1089-4,0)))","v":""},{"$f":"IF(ISERROR($V1089),\"\",OFFSET('Smelter Look-up'!$G$4,$V1089-4,0))","v":""},{"$f":"IF(ISERROR($V1089),\"\",OFFSET('Smelter Look-up'!$H$4,$V1089-4,0))","v":""},{"$f":"IF(ISERROR($V1089),\"\",OFFSET('Smelter Look-up'!$I$4,$V1089-4,0))","v":""},{"$nulls":7},{"$f":"IF(ISERROR($V1089),\"\",OFFSET('Smelter Look-up'!$C$4,$V1089-4,0)&\"\")","v":""},"",{"$f":"IF(B1089=\"\",\"\",IF(ISERROR(MATCH($J1089,SorP!$B$1:$B$6230,0)),\"\",INDIRECT(\"'SorP'!$A$\"&MATCH($J1089,SorP!$B$1:$B$6230,0))))","v":""},null,{"$f":"IF(C1089=\"\",NA(),MATCH($B1089&$C1089,'Smelter Look-up'!$J:$J,0))","v":{"$error":"#N/A"}},null,0,null,null,null,""]
[null,{"$f":"IF(LEN(A1090)=0,\"\",INDEX('Smelter Look-up'!$A:$A,MATCH($A1090,'Smelter Look-up'!$E:$E,0)))","v":""},{"$f":"IF(LEN(A1090)=0,\"\",INDEX('Smelter Look-up'!$C:$C,MATCH($A1090,'Smelter Look-up'!$E:$E,0)))","v":""},null,{"$f":"IF(ISERROR($V1090),\"\",OFFSET('Smelter Look-up'!$D$4,$V1090-4,0)&\"\")","v":""},{"$f":"IF(ISERROR($V1090),\"\",OFFSET('Smelter Look-up'!$E$4,$V1090-4,0))","v":""},{"$f":"IF(C1090=$X$4,\"Enter smelter details\", IF(ISERROR($V1090),\"\",OFFSET('Smelter Look-up'!$F$4,$V1090-4,0)))","v":""},{"$f":"IF(ISERROR($V1090),\"\",OFFSET('Smelter Look-up'!$G$4,$V1090-4,0))","v":""},{"$f":"IF(ISERROR($V1090),\"\",OFFSET('Smelter Look-up'!$H$4,$V1090-4,0))","v":""},{"$f":"IF(ISERROR($V1090),\"\",OFFSET('Smelter Look-up'!$I$4,$V1090-4,0))","v":""},{"$nulls":7},{"$f":"IF(ISERROR($V1090),\"\",OFFSET('Smelter Look-up'!$C$4,$V1090-4,0)&\"\")","v":""},"",{"$f":"IF(B1090=\"\",\"\",IF(ISERROR(MATCH($J1090,SorP!$B$1:$B$6230,0)),\"\",INDIRECT(\"'SorP'!$A$\"&MATCH($J1090,SorP!$B$1:$B$6230,0))))","v":""},null,{"$f":"IF(C1090=\"\",NA(),MATCH($B1090&$C1090,'Smelter Look-up'!$J:$J,0))","v":{"$error":"#N/A"}},null,0,null,null,null,""]
[null,{"$f":"IF(LEN(A1091)=0,\"\",INDEX('Smelter Look-up'!$A:$A,MATCH($A1091,'Smelter Look-up'!$E:$E,0)))","v":""},{"$f":"IF(LEN(A1091)=0,\"\",INDEX('Smelter Look-up'!$C:$C,MATCH($A1091,'Smelter Look-up'!$E:$E,0)))","v":""},null,{"$f":"IF(ISERROR($V1091),\"\",OFFSET('Smelter Look-up'!$D$4,$V1091-4,0)&\"\")","v":""},{"$f":"IF(ISERROR($V1091),\"\",OFFSET('Smelter Look-up'!$E$4,$V1091-4,0))","v":""},{"$f":"IF(C1091=$X$4,\"Enter smelter details\", IF(ISERROR($V1091),\"\",OFFSET('Smelter Look-up'!$F$4,$V1091-4,0)))","v":""},{"$f":"IF(ISERROR($V1091),\"\",OFFSET('Smelter Look-up'!$G$4,$V1091-4,0))","v":""},{"$f":"IF(ISERROR($V1091),\"\",OFFSET('Smelter Look-up'!$H$4,$V1091-4,0))","v":""},{"$f":"IF(ISERROR($V1091),\"\",OFFSET('Smelter Look-up'!$I$4,$V1091-4,0))","v":""},{"$nulls":7},{"$f":"IF(ISERROR($V1091),\"\",OFFSET('Smelter Look-up'!$C$4,$V1091-4,0)&\"\")","v":""},"",{"$f":"IF(B1091=\"\",\"\",IF(ISERROR(MATCH($J1091,SorP!$B$1:$B$6230,0)),\"\",INDIRECT(\"'SorP'!$A$\"&MATCH($J1091,SorP!$B$1:$B$6230,0))))","v":""},null,{"$f":"IF(C1091=\"\",NA(),MATCH($B1091&$C1091,'Smelter Look-up'!$J:$J,0))","v":{"$error":"#N/A"}},null,0,null,null,null,""]
[null,{"$f":"IF(LEN(A1092)=0,\"\",INDEX('Smelter Look-up'!$A:$A,MATCH($A1092,'Smelter Look-up'!$E:$E,0)))","v":""},{"$f":"IF(LEN(A1092)=0,\"\",INDEX('Smelter Look-up'!$C:$C,MATCH($A1092,'Smelter Look-up'!$E:$E,0)))","v":""},null,{"$f":"IF(ISERROR($V1092),\"\",OFFSET('Smelter Look-up'!$D$4,$V1092-4,0)&\"\")","v":""},{"$f":"IF(ISERROR($V1092),\"\",OFFSET('Smelter Look-up'!$E$4,$V1092-4,0))","v":""},{"$f":"IF(C1092=$X$4,\"Enter smelter details\", IF(ISERROR($V1092),\"\",OFFSET('Smelter Look-up'!$F$4,$V1092-4,0)))","v":""},{"$f":"IF(ISERROR($V1092),\"\",OFFSET('Smelter Look-up'!$G$4,$V1092-4,0))","v":""},{"$f":"IF(ISERROR($V1092),\"\",OFFSET('Smelter Look-up'!$H$4,$V1092-4,0))","v":""},{"$f":"IF(ISERROR($V1092),\"\",OFFSET('Smelter Look-up'!$I$4,$V1092-4,0))","v":""},{"$nulls":7},{"$f":"IF(ISERROR($V1092),\"\",OFFSET('Smelter Look-up'!$C$4,$V1092-4,0)&\"\")","v":""},"",{"$f":"IF(B1092=\"\",\"\",IF(ISERROR(MATCH($J1092,SorP!$B$1:$B$6230,0)),\"\",INDIRECT(\"'SorP'!$A$\"&MATCH($J1092,SorP!$B$1:$B$6230,0))))","v":""},null,{"$f":"IF(C1092=\"\",NA(),MATCH($B1092&$C1092,'Smelter Look-up'!$J:$J,0))","v":{"$error":"#N/A"}},null,0,null,null,null,""]
[null,{"$f":"IF(LEN(A1093)=0,\"\",INDEX('Smelter Look-up'!$A:$A,MATCH($A1093,'Smelter Look-up'!$E:$E,0)))","v":""},{"$f":"IF(LEN(A1093)=0,\"\",INDEX('Smelter Look-up'!$C:$C,MATCH($A1093,'Smelter Look-up'!$E:$E,0)))","v":""},null,{"$f":"IF(ISERROR($V1093),\"\",OFFSET('Smelter Look-up'!$D$4,$V1093-4,0)&\"\")","v":""},{"$f":"IF(ISERROR($V1093),\"\",OFFSET('Smelter Look-up'!$E$4,$V1093-4,0))","v":""},{"$f":"IF(C1093=$X$4,\"Enter smelter details\", IF(ISERROR($V1093),\"\",OFFSET('Smelter Look-up'!$F$4,$V1093-4,0)))","v":""},{"$f":"IF(ISERROR($V1093),\"\",OFFSET('Smelter Look-up'!$G$4,$V1093-4,0))","v":""},{"$f":"IF(ISERROR($V1093),\"\",OFFSET('Smelter Look-up'!$H$4,$V1093-4,0))","v":""},{"$f":"IF(ISERROR($V1093),\"\",OFFSET('Smelter Look-up'!$I$4,$V1093-4,0))","v":""},{"$nulls":7},{"$f":"IF(ISERROR($V1093),\"\",OFFSET('Smelter Look-up'!$C$4,$V1093-4,0)&\"\")","v":""},"",{"$f":"IF(B1093=\"\",\"\",IF(ISERROR(MATCH($J1093,SorP!$B$1:$B$6230,0)),\"\",INDIRECT(\"'SorP'!$A$\"&MATCH($J1093,SorP!$B$1:$B$6230,0))))","v":""},null,{"$f":"IF(C1093=\"\",NA(),MATCH($B1093&$C1093,'Smelter Look-up'!$J:$J,0))","v":{"$error":"#N/A"}},null,0,null,null,null,""]
[null,{"$f":"IF(LEN(A1094)=0,\"\",INDEX('Smelter Look-up'!$A:$A,MATCH($A1094,'Smelter Look-up'!$E:$E,0)))","v":""},{"$f":"IF(LEN(A1094)=0,\"\",INDEX('Smelter Look-up'!$C:$C,MATCH($A1094,'Smelter Look-up'!$E:$E,0)))","v":""},null,{"$f":"IF(ISERROR($V1094),\"\",OFFSET('Smelter Look-up'!$D$4,$V1094-4,0)&\"\")","v":""},{"$f":"IF(ISERROR($V1094),\"\",OFFSET('Smelter Look-up'!$E$4,$V1094-4,0))","v":""},{"$f":"IF(C1094=$X$4,\"Enter smelter details\", IF(ISERROR($V1094),\"\",OFFSET('Smelter Look-up'!$F$4,$V1094-4,0)))","v":""},{"$f":"IF(ISERROR($V1094),\"\",OFFSET('Smelter Look-up'!$G$4,$V1094-4,0))","v":""},{"$f":"IF(ISERROR($V1094),\"\",OFFSET('Smelter Look-up'!$H$4,$V1094-4,0))","v":""},{"$f":"IF(ISERROR($V1094),\"\",OFFSET('Smelter Look-up'!$I$4,$V1094-4,0))","v":""},{"$nulls":7},{"$f":"IF(ISERROR($V1094),\"\",OFFSET('Smelter Look-up'!$C$4,$V1094-4,0)&\"\")","v":""},"",{"$f":"IF(B1094=\"\",\"\",IF(ISERROR(MATCH($J1094,SorP!$B$1:$B$6230,0)),\"\",INDIRECT(\"'SorP'!$A$\"&MATCH($J1094,SorP!$B$1:$B$6230,0))))","v":""},null,{"$f":"IF(C1094=\"\",NA(),MATCH($B1094&$C1094,'Smelter Look-up'!$J:$J,0))","v":{"$error":"#N/A"}},null,0,null,null,null,""]
[null,{"$f":"IF(LEN(A1095)=0,\"\",INDEX('Smelter Look-up'!$A:$A,MATCH($A1095,'Smelter Look-up'!$E:$E,0)))","v":""},{"$f":"IF(LEN(A1095)=0,\"\",INDEX('Smelter Look-up'!$C:$C,MATCH($A1095,'Smelter Look-up'!$E:$E,0)))","v":""},null,{"$f":"IF(ISERROR($V1095),\"\",OFFSET('Smelter Look-up'!$D$4,$V1095-4,0)&\"\")","v":""},{"$f":"IF(ISERROR($V1095),\"\",OFFSET('Smelter Look-up'!$E$4,$V1095-4,0))","v":""},{"$f":"IF(C1095=$X$4,\"Enter smelter details\", IF(ISERROR($V1095),\"\",OFFSET('Smelter Look-up'!$F$4,$V1095-4,0)))","v":""},{"$f":"IF(ISERROR($V1095),\"\",OFFSET('Smelter Look-up'!$G$4,$V1095-4,0))","v":""},{"$f":"IF(ISERROR($V1095),\"\",OFFSET('Smelter Look-up'!$H$4,$V1095-4,0))","v":""},{"$f":"IF(ISERROR($V1095),\"\",OFFSET('Smelter Look-up'!$I$4,$V1095-4,0))","v":""},{"$nulls":7},{"$f":"IF(ISERROR($V1095),\"\",OFFSET('Smelter Look-up'!$C$4,$V1095-4,0)&\"\")","v":""},"",{"$f":"IF(B1095=\"\",\"\",IF(ISERROR(MATCH($J1095,SorP!$B$1:$B$6230,0)),\"\",INDIRECT(\"'SorP'!$A$\"&MATCH($J1095,SorP!$B$1:$B$6230,0))))","v":""},null,{"$f":"IF(C1095=\"\",NA(),MATCH($B1095&$C1095,'Smelter Look-up'!$J:$J,0))","v":{"$error":"#N/A"}},null,0,null,null,null,""]
[null,{"$f":"IF(LEN(A1096)=0,\"\",INDEX('Smelter Look-up'!$A:$A,MATCH($A1096,'Smelter Look-up'!$E:$E,0)))","v":""},{"$f":"IF(LEN(A1096)=0,\"\",INDEX('Smelter Look-up'!$C:$C,MATCH($A1096,'Smelter Look-up'!$E:$E,0)))","v":""},null,{"$f":"IF(ISERROR($V1096),\"\",OFFSET('Smelter Look-up'!$D$4,$V1096-4,0)&\"\")","v":""},{"$f":"IF(ISERROR($V1096),\"\",OFFSET('Smelter Look-up'!$E$4,$V1096-4,0))","v":""},{"$f":"IF(C1096=$X$4,\"Enter smelter details\", IF(ISERROR($V1096),\"\",OFFSET('Smelter Look-up'!$F$4,$V1096-4,0)))","v":""},{"$f":"IF(ISERROR($V1096),\"\",OFFSET('Smelter Look-up'!$G$4,$V1096-4,0))","v":""},{"$f":"IF(ISERROR($V1096),\"\",OFFSET('Smelter Look-up'!$H$4,$V1096-4,0))","v":""},{"$f":"IF(ISERROR($V1096),\"\",OFFSET('Smelter Look-up'!$I$4,$V1096-4,0))","v":""},{"$nulls":7},{"$f":"IF(ISERROR($V1096),\"\",OFFSET('Smelter Look-up'!$C$4,$V1096-4,0)&\"\")","v":""},"",{"$f":"IF(B1096=\"\",\"\",IF(ISERROR(MATCH($J1096,SorP!$B$1:$B$6230,0)),\"\",INDIRECT(\"'SorP'!$A$\"&MATCH($J1096,SorP!$B$1:$B$6230,0))))","v":""},null,{"$f":"IF(C1096=\"\",NA(),MATCH($B1096&$C1096,'Smelter Look-up'!$J:$J,0))","v":{"$error":"#N/A"}},null,0,null,null,null,""]
[null,{"$f":"IF(LEN(A1097)=0,\"\",INDEX('Smelter Look-up'!$A:$A,MATCH($A1097,'Smelter Look-up'!$E:$E,0)))","v":""},{"$f":"IF(LEN(A1097)=0,\"\",INDEX('Smelter Look-up'!$C:$C,MATCH($A1097,'Smelter Look-up'!$E:$E,0)))","v":""},null,{"$f":"IF(ISERROR($V1097),\"\",OFFSET('Smelter Look-up'!$D$4,$V1097-4,0)&\"\")","v":""},{"$f":"IF(ISERROR($V1097),\"\",OFFSET('Smelter Look-up'!$E$4,$V1097-4,0))","v":""},{"$f":"IF(C1097=$X$4,\"Enter smelter details\", IF(ISERROR($V1097),\"\",OFFSET('Smelter Look-up'!$F$4,$V1097-4,0)))","v":""},{"$f":"IF(ISERROR($V1097),\"\",OFFSET('Smelter Look-up'!$G$4,$V1097-4,0))","v":""},{"$f":"IF(ISERROR($V1097),\"\",OFFSET('Smelter Look-up'!$H$4,$V1097-4,0))","v":""},{"$f":"IF(ISERROR($V1097),\"\",OFFSET('Smelter Look-up'!$I$4,$V1097-4,0))","v":""},{"$nulls":7},{"$f":"IF(ISERROR($V1097),\"\",OFFSET('Smelter Look-up'!$C$4,$V1097-4,0)&\"\")","v":""},"",{"$f":"IF(B1097=\"\",\"\",IF(ISERROR(MATCH($J1097,SorP!$B$1:$B$6230,0)),\"\",INDIRECT(\"'SorP'!$A$\"&MATCH($J1097,SorP!$B$1:$B$6230,0))))","v":""},null,{"$f":"IF(C1097=\"\",NA(),MATCH($B1097&$C1097,'Smelter Look-up'!$J:$J,0))","v":{"$error":"#N/A"}},null,0,null,null,null,""]
[null,{"$f":"IF(LEN(A1098)=0,\"\",INDEX('Smelter Look-up'!$A:$A,MATCH($A1098,'Smelter Look-up'!$E:$E,0)))","v":""},{"$f":"IF(LEN(A1098)=0,\"\",INDEX('Smelter Look-up'!$C:$C,MATCH($A1098,'Smelter Look-up'!$E:$E,0)))","v":""},null,{"$f":"IF(ISERROR($V1098),\"\",OFFSET('Smelter Look-up'!$D$4,$V1098-4,0)&\"\")","v":""},{"$f":"IF(ISERROR($V1098),\"\",OFFSET('Smelter Look-up'!$E$4,$V1098-4,0))","v":""},{"$f":"IF(C1098=$X$4,\"Enter smelter details\", IF(ISERROR($V1098),\"\",OFFSET('Smelter Look-up'!$F$4,$V1098-4,0)))","v":""},{"$f":"IF(ISERROR($V1098),\"\",OFFSET('Smelter Look-up'!$G$4,$V1098-4,0))","v":""},{"$f":"IF(ISERROR($V1098),\"\",OFFSET('Smelter Look-up'!$H$4,$V1098-4,0))","v":""},{"$f":"IF(ISERROR($V1098),\"\",OFFSET('Smelter Look-up'!$I$4,$V1098-4,0))","v":""},{"$nulls":7},{"$f":"IF(ISERROR($V1098),\"\",OFFSET('Smelter Look-up'!$C$4,$V1098-4,0)&\"\")","v":""},"",{"$f":"IF(B1098=\"\",\"\",IF(ISERROR(MATCH($J1098,SorP!$B$1:$B$6230,0)),\"\",INDIRECT(\"'SorP'!$A$\"&MATCH($J1098,SorP!$B$1:$B$6230,0))))","v":""},null,{"$f":"IF(C1098=\"\",NA(),MATCH($B1098&$C1098,'Smelter Look-up'!$J:$J,0))","v":{"$error":"#N/A"}},null,0,null,null,null,""]
[null,{"$f":"IF(LEN(A1099)=0,\"\",INDEX('Smelter Look-up'!$A:$A,MATCH($A1099,'Smelter Look-up'!$E:$E,0)))","v":""},{"$f":"IF(LEN(A1099)=0,\"\",INDEX('Smelter Look-up'!$C:$C,MATCH($A1099,'Smelter Look-up'!$E:$E,0)))","v":""},null,{"$f":"IF(ISERROR($V1099),\"\",OFFSET('Smelter Look-up'!$D$4,$V1099-4,0)&\"\")","v":""},{"$f":"IF(ISERROR($V1099),\"\",OFFSET('Smelter Look-up'!$E$4,$V1099-4,0))","v":""},{"$f":"IF(C1099=$X$4,\"Enter smelter details\", IF(ISERROR($V1099),\"\",OFFSET('Smelter Look-up'!$F$4,$V1099-4,0)))","v":""},{"$f":"IF(ISERROR($V1099),\"\",OFFSET('Smelter Look-up'!$G$4,$V1099-4,0))","v":""},{"$f":"IF(ISERROR($V1099),\"\",OFFSET('Smelter Look-up'!$H$4,$V1099-4,0))","v":""},{"$f":"IF(ISERROR($V1099),\"\",OFFSET('Smelter Look-up'!$I$4,$V1099-4,0))","v":""},{"$nulls":7},{"$f":"IF(ISERROR($V1099),\"\",OFFSET('Smelter Look-up'!$C$4,$V1099-4,0)&\"\")","v":""},"",{"$f":"IF(B1099=\"\",\"\",IF(ISERROR(MATCH($J1099,SorP!$B$1:$B$6230,0)),\"\",INDIRECT(\"'SorP'!$A$\"&MATCH($J1099,SorP!$B$1:$B$6230,0))))","v":""},null,{"$f":"IF(C1099=\"\",NA(),MATCH($B1099&$C1099,'Smelter Look-up'!$J:$J,0))","v":{"$error":"#N/A"}},null,0,null,null,null,""]
[null,{"$f":"IF(LEN(A1100)=0,\"\",INDEX('Smelter Look-up'!$A:$A,MATCH($A1100,'Smelter Look-up'!$E:$E,0)))","v":""},{"$f":"IF(LEN(A1100)=0,\"\",INDEX('Smelter Look-up'!$C:$C,MATCH($A1100,'Smelter Look-up'!$E:$E,0)))","v":""},null,{"$f":"IF(ISERROR($V1100),\"\",OFFSET('Smelter Look-up'!$D$4,$V1100-4,0)&\"\")","v":""},{"$f":"IF(ISERROR($V1100),\"\",OFFSET('Smelter Look-up'!$E$4,$V1100-4,0))","v":""},{"$f":"IF(C1100=$X$4,\"Enter smelter details\", IF(ISERROR($V1100),\"\",OFFSET('Smelter Look-up'!$F$4,$V1100-4,0)))","v":""},{"$f":"IF(ISERROR($V1100),\"\",OFFSET('Smelter Look-up'!$G$4,$V1100-4,0))","v":""},{"$f":"IF(ISERROR($V1100),\"\",OFFSET('Smelter Look-up'!$H$4,$V1100-4,0))","v":""},{"$f":"IF(ISERROR($V1100),\"\",OFFSET('Smelter Look-up'!$I$4,$V1100-4,0))","v":""},{"$nulls":7},{"$f":"IF(ISERROR($V1100),\"\",OFFSET('Smelter Look-up'!$C$4,$V1100-4,0)&\"\")","v":""},"",{"$f":"IF(B1100=\"\",\"\",IF(ISERROR(MATCH($J1100,SorP!$B$1:$B$6230,0)),\"\",INDIRECT(\"'SorP'!$A$\"&MATCH($J1100,SorP!$B$1:$B$6230,0))))","v":""},null,{"$f":"IF(C1100=\"\",NA(),MATCH($B1100&$C1100,'Smelter Look-up'!$J:$J,0))","v":{"$error":"#N/A"}},null,0,null,null,null,""]
[null,{"$f":"IF(LEN(A1101)=0,\"\",INDEX('Smelter Look-up'!$A:$A,MATCH($A1101,'Smelter Look-up'!$E:$E,0)))","v":""},{"$f":"IF(LEN(A1101)=0,\"\",INDEX('Smelter Look-up'!$C:$C,MATCH($A1101,'Smelter Look-up'!$E:$E,0)))","v":""},null,{"$f":"IF(ISERROR($V1101),\"\",OFFSET('Smelter Look-up'!$D$4,$V1101-4,0)&\"\")","v":""},{"$f":"IF(ISERROR($V1101),\"\",OFFSET('Smelter Look-up'!$E$4,$V1101-4,0))","v":""},{"$f":"IF(C1101=$X$4,\"Enter smelter details\", IF(ISERROR($V1101),\"\",OFFSET('Smelter Look-up'!$F$4,$V1101-4,0)))","v":""},{"$f":"IF(ISERROR($V1101),\"\",OFFSET('Smelter Look-up'!$G$4,$V1101-4,0))","v":""},{"$f":"IF(ISERROR($V1101),\"\",OFFSET('Smelter Look-up'!$H$4,$V1101-4,0))","v":""},{"$f":"IF(ISERROR($V1101),\"\",OFFSET('Smelter Look-up'!$I$4,$V1101-4,0))","v":""},{"$nulls":7},{"$f":"IF(ISERROR($V1101),\"\",OFFSET('Smelter Look-up'!$C$4,$V1101-4,0)&\"\")","v":""},"",{"$f":"IF(B1101=\"\",\"\",IF(ISERROR(MATCH($J1101,SorP!$B$1:$B$6230,0)),\"\",INDIRECT(\"'SorP'!$A$\"&MATCH($J1101,SorP!$B$1:$B$6230,0))))","v":""},null,{"$f":"IF(C1101=\"\",NA(),MATCH($B1101&$C1101,'Smelter Look-up'!$J:$J,0))","v":{"$error":"#N/A"}},null,0,null,null,null,""]
[null,{"$f":"IF(LEN(A1102)=0,\"\",INDEX('Smelter Look-up'!$A:$A,MATCH($A1102,'Smelter Look-up'!$E:$E,0)))","v":""},{"$f":"IF(LEN(A1102)=0,\"\",INDEX('Smelter Look-up'!$C:$C,MATCH($A1102,'Smelter Look-up'!$E:$E,0)))","v":""},null,{"$f":"IF(ISERROR($V1102),\"\",OFFSET('Smelter Look-up'!$D$4,$V1102-4,0)&\"\")","v":""},{"$f":"IF(ISERROR($V1102),\"\",OFFSET('Smelter Look-up'!$E$4,$V1102-4,0))","v":""},{"$f":"IF(C1102=$X$4,\"Enter smelter details\", IF(ISERROR($V1102),\"\",OFFSET('Smelter Look-up'!$F$4,$V1102-4,0)))","v":""},{"$f":"IF(ISERROR($V1102),\"\",OFFSET('Smelter Look-up'!$G$4,$V1102-4,0))","v":""},{"$f":"IF(ISERROR($V1102),\"\",OFFSET('Smelter Look-up'!$H$4,$V1102-4,0))","v":""},{"$f":"IF(ISERROR($V1102),\"\",OFFSET('Smelter Look-up'!$I$4,$V1102-4,0))","v":""},{"$nulls":7},{"$f":"IF(ISERROR($V1102),\"\",OFFSET('Smelter Look-up'!$C$4,$V1102-4,0)&\"\")","v":""},"",{"$f":"IF(B1102=\"\",\"\",IF(ISERROR(MATCH($J1102,SorP!$B$1:$B$6230,0)),\"\",INDIRECT(\"'SorP'!$A$\"&MATCH($J1102,SorP!$B$1:$B$6230,0))))","v":""},null,{"$f":"IF(C1102=\"\",NA(),MATCH($B1102&$C1102,'Smelter Look-up'!$J:$J,0))","v":{"$error":"#N/A"}},null,0,null,null,null,""]
[null,{"$f":"IF(LEN(A1103)=0,\"\",INDEX('Smelter Look-up'!$A:$A,MATCH($A1103,'Smelter Look-up'!$E:$E,0)))","v":""},{"$f":"IF(LEN(A1103)=0,\"\",INDEX('Smelter Look-up'!$C:$C,MATCH($A1103,'Smelter Look-up'!$E:$E,0)))","v":""},null,{"$f":"IF(ISERROR($V1103),\"\",OFFSET('Smelter Look-up'!$D$4,$V1103-4,0)&\"\")","v":""},{"$f":"IF(ISERROR($V1103),\"\",OFFSET('Smelter Look-up'!$E$4,$V1103-4,0))","v":""},{"$f":"IF(C1103=$X$4,\"Enter smelter details\", IF(ISERROR($V1103),\"\",OFFSET('Smelter Look-up'!$F$4,$V1103-4,0)))","v":""},{"$f":"IF(ISERROR($V1103),\"\",OFFSET('Smelter Look-up'!$G$4,$V1103-4,0))","v":""},{"$f":"IF(ISERROR($V1103),\"\",OFFSET('Smelter Look-up'!$H$4,$V1103-4,0))","v":""},{"$f":"IF(ISERROR($V1103),\"\",OFFSET('Smelter Look-up'!$I$4,$V1103-4,0))","v":""},{"$nulls":7},{"$f":"IF(ISERROR($V1103),\"\",OFFSET('Smelter Look-up'!$C$4,$V1103-4,0)&\"\")","v":""},"",{"$f":"IF(B1103=\"\",\"\",IF(ISERROR(MATCH($J1103,SorP!$B$1:$B$6230,0)),\"\",INDIRECT(\"'SorP'!$A$\"&MATCH($J1103,SorP!$B$1:$B$6230,0))))","v":""},null,{"$f":"IF(C1103=\"\",NA(),MATCH($B1103&$C1103,'Smelter Look-up'!$J:$J,0))","v":{"$error":"#N/A"}},null,0,null,null,null,""]
[null,{"$f":"IF(LEN(A1104)=0,\"\",INDEX('Smelter Look-up'!$A:$A,MATCH($A1104,'Smelter Look-up'!$E:$E,0)))","v":""},{"$f":"IF(LEN(A1104)=0,\"\",INDEX('Smelter Look-up'!$C:$C,MATCH($A1104,'Smelter Look-up'!$E:$E,0)))","v":""},null,{"$f":"IF(ISERROR($V1104),\"\",OFFSET('Smelter Look-up'!$D$4,$V1104-4,0)&\"\")","v":""},{"$f":"IF(ISERROR($V1104),\"\",OFFSET('Smelter Look-up'!$E$4,$V1104-4,0))","v":""},{"$f":"IF(C1104=$X$4,\"Enter smelter details\", IF(ISERROR($V1104),\"\",OFFSET('Smelter Look-up'!$F$4,$V1104-4,0)))","v":""},{"$f":"IF(ISERROR($V1104),\"\",OFFSET('Smelter Look-up'!$G$4,$V1104-4,0))","v":""},{"$f":"IF(ISERROR($V1104),\"\",OFFSET('Smelter Look-up'!$H$4,$V1104-4,0))","v":""},{"$f":"IF(ISERROR($V1104),\"\",OFFSET('Smelter Look-up'!$I$4,$V1104-4,0))","v":""},{"$nulls":7},{"$f":"IF(ISERROR($V1104),\"\",OFFSET('Smelter Look-up'!$C$4,$V1104-4,0)&\"\")","v":""},"",{"$f":"IF(B1104=\"\",\"\",IF(ISERROR(MATCH($J1104,SorP!$B$1:$B$6230,0)),\"\",INDIRECT(\"'SorP'!$A$\"&MATCH($J1104,SorP!$B$1:$B$6230,0))))","v":""},null,{"$f":"IF(C1104=\"\",NA(),MATCH($B1104&$C1104,'Smelter Look-up'!$J:$J,0))","v":{"$error":"#N/A"}},null,0,null,null,null,""]
[null,{"$f":"IF(LEN(A1105)=0,\"\",INDEX('Smelter Look-up'!$A:$A,MATCH($A1105,'Smelter Look-up'!$E:$E,0)))","v":""},{"$f":"IF(LEN(A1105)=0,\"\",INDEX('Smelter Look-up'!$C:$C,MATCH($A1105,'Smelter Look-up'!$E:$E,0)))","v":""},null,{"$f":"IF(ISERROR($V1105),\"\",OFFSET('Smelter Look-up'!$D$4,$V1105-4,0)&\"\")","v":""},{"$f":"IF(ISERROR($V1105),\"\",OFFSET('Smelter Look-up'!$E$4,$V1105-4,0))","v":""},{"$f":"IF(C1105=$X$4,\"Enter smelter details\", IF(ISERROR($V1105),\"\",OFFSET('Smelter Look-up'!$F$4,$V1105-4,0)))","v":""},{"$f":"IF(ISERROR($V1105),\"\",OFFSET('Smelter Look-up'!$G$4,$V1105-4,0))","v":""},{"$f":"IF(ISERROR($V1105),\"\",OFFSET('Smelter Look-up'!$H$4,$V1105-4,0))","v":""},{"$f":"IF(ISERROR($V1105),\"\",OFFSET('Smelter Look-up'!$I$4,$V1105-4,0))","v":""},{"$nulls":7},{"$f":"IF(ISERROR($V1105),\"\",OFFSET('Smelter Look-up'!$C$4,$V1105-4,0)&\"\")","v":""},"",{"$f":"IF(B1105=\"\",\"\",IF(ISERROR(MATCH($J1105,SorP!$B$1:$B$6230,0)),\"\",INDIRECT(\"'SorP'!$A$\"&MATCH($J1105,SorP!$B$1:$B$6230,0))))","v":""},null,{"$f":"IF(C1105=\"\",NA(),MATCH($B1105&$C1105,'Smelter Look-up'!$J:$J,0))","v":{"$error":"#N/A"}},null,0,null,null,null,""]
[null,{"$f":"IF(LEN(A1106)=0,\"\",INDEX('Smelter Look-up'!$A:$A,MATCH($A1106,'Smelter Look-up'!$E:$E,0)))","v":""},{"$f":"IF(LEN(A1106)=0,\"\",INDEX('Smelter Look-up'!$C:$C,MATCH($A1106,'Smelter Look-up'!$E:$E,0)))","v":""},null,{"$f":"IF(ISERROR($V1106),\"\",OFFSET('Smelter Look-up'!$D$4,$V1106-4,0)&\"\")","v":""},{"$f":"IF(ISERROR($V1106),\"\",OFFSET('Smelter Look-up'!$E$4,$V1106-4,0))","v":""},{"$f":"IF(C1106=$X$4,\"Enter smelter details\", IF(ISERROR($V1106),\"\",OFFSET('Smelter Look-up'!$F$4,$V1106-4,0)))","v":""},{"$f":"IF(ISERROR($V1106),\"\",OFFSET('Smelter Look-up'!$G$4,$V1106-4,0))","v":""},{"$f":"IF(ISERROR($V1106),\"\",OFFSET('Smelter Look-up'!$H$4,$V1106-4,0))","v":""},{"$f":"IF(ISERROR($V1106),\"\",OFFSET('Smelter Look-up'!$I$4,$V1106-4,0))","v":""},{"$nulls":7},{"$f":"IF(ISERROR($V1106),\"\",OFFSET('Smelter Look-up'!$C$4,$V1106-4,0)&\"\")","v":""},"",{"$f":"IF(B1106=\"\",\"\",IF(ISERROR(MATCH($J1106,SorP!$B$1:$B$6230,0)),\"\",INDIRECT(\"'SorP'!$A$\"&MATCH($J1106,SorP!$B$1:$B$6230,0))))","v":""},null,{"$f":"IF(C1106=\"\",NA(),MATCH($B1106&$C1106,'Smelter Look-up'!$J:$J,0))","v":{"$error":"#N/A"}},null,0,null,null,null,""]
[null,{"$f":"IF(LEN(A1107)=0,\"\",INDEX('Smelter Look-up'!$A:$A,MATCH($A1107,'Smelter Look-up'!$E:$E,0)))","v":""},{"$f":"IF(LEN(A1107)=0,\"\",INDEX('Smelter Look-up'!$C:$C,MATCH($A1107,'Smelter Look-up'!$E:$E,0)))","v":""},null,{"$f":"IF(ISERROR($V1107),\"\",OFFSET('Smelter Look-up'!$D$4,$V1107-4,0)&\"\")","v":""},{"$f":"IF(ISERROR($V1107),\"\",OFFSET('Smelter Look-up'!$E$4,$V1107-4,0))","v":""},{"$f":"IF(C1107=$X$4,\"Enter smelter details\", IF(ISERROR($V1107),\"\",OFFSET('Smelter Look-up'!$F$4,$V1107-4,0)))","v":""},{"$f":"IF(ISERROR($V1107),\"\",OFFSET('Smelter Look-up'!$G$4,$V1107-4,0))","v":""},{"$f":"IF(ISERROR($V1107),\"\",OFFSET('Smelter Look-up'!$H$4,$V1107-4,0))","v":""},{"$f":"IF(ISERROR($V1107),\"\",OFFSET('Smelter Look-up'!$I$4,$V1107-4,0))","v":""},{"$nulls":7},{"$f":"IF(ISERROR($V1107),\"\",OFFSET('Smelter Look-up'!$C$4,$V1107-4,0)&\"\")","v":""},"",{"$f":"IF(B1107=\"\",\"\",IF(ISERROR(MATCH($J1107,SorP!$B$1:$B$6230,0)),\"\",INDIRECT(\"'SorP'!$A$\"&MATCH($J1107,SorP!$B$1:$B$6230,0))))","v":""},null,{"$f":"IF(C1107=\"\",NA(),MATCH($B1107&$C1107,'Smelter Look-up'!$J:$J,0))","v":{"$error":"#N/A"}},null,0,null,null,null,""]
[null,{"$f":"IF(LEN(A1108)=0,\"\",INDEX('Smelter Look-up'!$A:$A,MATCH($A1108,'Smelter Look-up'!$E:$E,0)))","v":""},{"$f":"IF(LEN(A1108)=0,\"\",INDEX('Smelter Look-up'!$C:$C,MATCH($A1108,'Smelter Look-up'!$E:$E,0)))","v":""},null,{"$f":"IF(ISERROR($V1108),\"\",OFFSET('Smelter Look-up'!$D$4,$V1108-4,0)&\"\")","v":""},{"$f":"IF(ISERROR($V1108),\"\",OFFSET('Smelter Look-up'!$E$4,$V1108-4,0))","v":""},{"$f":"IF(C1108=$X$4,\"Enter smelter details\", IF(ISERROR($V1108),\"\",OFFSET('Smelter Look-up'!$F$4,$V1108-4,0)))","v":""},{"$f":"IF(ISERROR($V1108),\"\",OFFSET('Smelter Look-up'!$G$4,$V1108-4,0))","v":""},{"$f":"IF(ISERROR($V1108),\"\",OFFSET('Smelter Look-up'!$H$4,$V1108-4,0))","v":""},{"$f":"IF(ISERROR($V1108),\"\",OFFSET('Smelter Look-up'!$I$4,$V1108-4,0))","v":""},{"$nulls":7},{"$f":"IF(ISERROR($V1108),\"\",OFFSET('Smelter Look-up'!$C$4,$V1108-4,0)&\"\")","v":""},"",{"$f":"IF(B1108=\"\",\"\",IF(ISERROR(MATCH($J1108,SorP!$B$1:$B$6230,0)),\"\",INDIRECT(\"'SorP'!$A$\"&MATCH($J1108,SorP!$B$1:$B$6230,0))))","v":""},null,{"$f":"IF(C1108=\"\",NA(),MATCH($B1108&$C1108,'Smelter Look-up'!$J:$J,0))","v":{"$error":"#N/A"}},null,0,null,null,null,""]
[null,{"$f":"IF(LEN(A1109)=0,\"\",INDEX('Smelter Look-up'!$A:$A,MATCH($A1109,'Smelter Look-up'!$E:$E,0)))","v":""},{"$f":"IF(LEN(A1109)=0,\"\",INDEX('Smelter Look-up'!$C:$C,MATCH($A1109,'Smelter Look-up'!$E:$E,0)))","v":""},null,{"$f":"IF(ISERROR($V1109),\"\",OFFSET('Smelter Look-up'!$D$4,$V1109-4,0)&\"\")","v":""},{"$f":"IF(ISERROR($V1109),\"\",OFFSET('Smelter Look-up'!$E$4,$V1109-4,0))","v":""},{"$f":"IF(C1109=$X$4,\"Enter smelter details\", IF(ISERROR($V1109),\"\",OFFSET('Smelter Look-up'!$F$4,$V1109-4,0)))","v":""},{"$f":"IF(ISERROR($V1109),\"\",OFFSET('Smelter Look-up'!$G$4,$V1109-4,0))","v":""},{"$f":"IF(ISERROR($V1109),\"\",OFFSET('Smelter Look-up'!$H$4,$V1109-4,0))","v":""},{"$f":"IF(ISERROR($V1109),\"\",OFFSET('Smelter Look-up'!$I$4,$V1109-4,0))","v":""},{"$nulls":7},{"$f":"IF(ISERROR($V1109),\"\",OFFSET('Smelter Look-up'!$C$4,$V1109-4,0)&\"\")","v":""},"",{"$f":"IF(B1109=\"\",\"\",IF(ISERROR(MATCH($J1109,SorP!$B$1:$B$6230,0)),\"\",INDIRECT(\"'SorP'!$A$\"&MATCH($J1109,SorP!$B$1:$B$6230,0))))","v":""},null,{"$f":"IF(C1109=\"\",NA(),MATCH($B1109&$C1109,'Smelter Look-up'!$J:$J,0))","v":{"$error":"#N/A"}},null,0,null,null,null,""]
[null,{"$f":"IF(LEN(A1110)=0,\"\",INDEX('Smelter Look-up'!$A:$A,MATCH($A1110,'Smelter Look-up'!$E:$E,0)))","v":""},{"$f":"IF(LEN(A1110)=0,\"\",INDEX('Smelter Look-up'!$C:$C,MATCH($A1110,'Smelter Look-up'!$E:$E,0)))","v":""},null,{"$f":"IF(ISERROR($V1110),\"\",OFFSET('Smelter Look-up'!$D$4,$V1110-4,0)&\"\")","v":""},{"$f":"IF(ISERROR($V1110),\"\",OFFSET('Smelter Look-up'!$E$4,$V1110-4,0))","v":""},{"$f":"IF(C1110=$X$4,\"Enter smelter details\", IF(ISERROR($V1110),\"\",OFFSET('Smelter Look-up'!$F$4,$V1110-4,0)))","v":""},{"$f":"IF(ISERROR($V1110),\"\",OFFSET('Smelter Look-up'!$G$4,$V1110-4,0))","v":""},{"$f":"IF(ISERROR($V1110),\"\",OFFSET('Smelter Look-up'!$H$4,$V1110-4,0))","v":""},{"$f":"IF(ISERROR($V1110),\"\",OFFSET('Smelter Look-up'!$I$4,$V1110-4,0))","v":""},{"$nulls":7},{"$f":"IF(ISERROR($V1110),\"\",OFFSET('Smelter Look-up'!$C$4,$V1110-4,0)&\"\")","v":""},"",{"$f":"IF(B1110=\"\",\"\",IF(ISERROR(MATCH($J1110,SorP!$B$1:$B$6230,0)),\"\",INDIRECT(\"'SorP'!$A$\"&MATCH($J1110,SorP!$B$1:$B$6230,0))))","v":""},null,{"$f":"IF(C1110=\"\",NA(),MATCH($B1110&$C1110,'Smelter Look-up'!$J:$J,0))","v":{"$error":"#N/A"}},null,0,null,null,null,""]
[null,{"$f":"IF(LEN(A1111)=0,\"\",INDEX('Smelter Look-up'!$A:$A,MATCH($A1111,'Smelter Look-up'!$E:$E,0)))","v":""},{"$f":"IF(LEN(A1111)=0,\"\",INDEX('Smelter Look-up'!$C:$C,MATCH($A1111,'Smelter Look-up'!$E:$E,0)))","v":""},null,{"$f":"IF(ISERROR($V1111),\"\",OFFSET('Smelter Look-up'!$D$4,$V1111-4,0)&\"\")","v":""},{"$f":"IF(ISERROR($V1111),\"\",OFFSET('Smelter Look-up'!$E$4,$V1111-4,0))","v":""},{"$f":"IF(C1111=$X$4,\"Enter smelter details\", IF(ISERROR($V1111),\"\",OFFSET('Smelter Look-up'!$F$4,$V1111-4,0)))","v":""},{"$f":"IF(ISERROR($V1111),\"\",OFFSET('Smelter Look-up'!$G$4,$V1111-4,0))","v":""},{"$f":"IF(ISERROR($V1111),\"\",OFFSET('Smelter Look-up'!$H$4,$V1111-4,0))","v":""},{"$f":"IF(ISERROR($V1111),\"\",OFFSET('Smelter Look-up'!$I$4,$V1111-4,0))","v":""},{"$nulls":7},{"$f":"IF(ISERROR($V1111),\"\",OFFSET('Smelter Look-up'!$C$4,$V1111-4,0)&\"\")","v":""},"",{"$f":"IF(B1111=\"\",\"\",IF(ISERROR(MATCH($J1111,SorP!$B$1:$B$6230,0)),\"\",INDIRECT(\"'SorP'!$A$\"&MATCH($J1111,SorP!$B$1:$B$6230,0))))","v":""},null,{"$f":"IF(C1111=\"\",NA(),MATCH($B1111&$C1111,'Smelter Look-up'!$J:$J,0))","v":{"$error":"#N/A"}},null,0,null,null,null,""]
[null,{"$f":"IF(LEN(A1112)=0,\"\",INDEX('Smelter Look-up'!$A:$A,MATCH($A1112,'Smelter Look-up'!$E:$E,0)))","v":""},{"$f":"IF(LEN(A1112)=0,\"\",INDEX('Smelter Look-up'!$C:$C,MATCH($A1112,'Smelter Look-up'!$E:$E,0)))","v":""},null,{"$f":"IF(ISERROR($V1112),\"\",OFFSET('Smelter Look-up'!$D$4,$V1112-4,0)&\"\")","v":""},{"$f":"IF(ISERROR($V1112),\"\",OFFSET('Smelter Look-up'!$E$4,$V1112-4,0))","v":""},{"$f":"IF(C1112=$X$4,\"Enter smelter details\", IF(ISERROR($V1112),\"\",OFFSET('Smelter Look-up'!$F$4,$V1112-4,0)))","v":""},{"$f":"IF(ISERROR($V1112),\"\",OFFSET('Smelter Look-up'!$G$4,$V1112-4,0))","v":""},{"$f":"IF(ISERROR($V1112),\"\",OFFSET('Smelter Look-up'!$H$4,$V1112-4,0))","v":""},{"$f":"IF(ISERROR($V1112),\"\",OFFSET('Smelter Look-up'!$I$4,$V1112-4,0))","v":""},{"$nulls":7},{"$f":"IF(ISERROR($V1112),\"\",OFFSET('Smelter Look-up'!$C$4,$V1112-4,0)&\"\")","v":""},"",{"$f":"IF(B1112=\"\",\"\",IF(ISERROR(MATCH($J1112,SorP!$B$1:$B$6230,0)),\"\",INDIRECT(\"'SorP'!$A$\"&MATCH($J1112,SorP!$B$1:$B$6230,0))))","v":""},null,{"$f":"IF(C1112=\"\",NA(),MATCH($B1112&$C1112,'Smelter Look-up'!$J:$J,0))","v":{"$error":"#N/A"}},null,0,null,null,null,""]
[null,{"$f":"IF(LEN(A1113)=0,\"\",INDEX('Smelter Look-up'!$A:$A,MATCH($A1113,'Smelter Look-up'!$E:$E,0)))","v":""},{"$f":"IF(LEN(A1113)=0,\"\",INDEX('Smelter Look-up'!$C:$C,MATCH($A1113,'Smelter Look-up'!$E:$E,0)))","v":""},null,{"$f":"IF(ISERROR($V1113),\"\",OFFSET('Smelter Look-up'!$D$4,$V1113-4,0)&\"\")","v":""},{"$f":"IF(ISERROR($V1113),\"\",OFFSET('Smelter Look-up'!$E$4,$V1113-4,0))","v":""},{"$f":"IF(C1113=$X$4,\"Enter smelter details\", IF(ISERROR($V1113),\"\",OFFSET('Smelter Look-up'!$F$4,$V1113-4,0)))","v":""},{"$f":"IF(ISERROR($V1113),\"\",OFFSET('Smelter Look-up'!$G$4,$V1113-4,0))","v":""},{"$f":"IF(ISERROR($V1113),\"\",OFFSET('Smelter Look-up'!$H$4,$V1113-4,0))","v":""},{"$f":"IF(ISERROR($V1113),\"\",OFFSET('Smelter Look-up'!$I$4,$V1113-4,0))","v":""},{"$nulls":7},{"$f":"IF(ISERROR($V1113),\"\",OFFSET('Smelter Look-up'!$C$4,$V1113-4,0)&\"\")","v":""},"",{"$f":"IF(B1113=\"\",\"\",IF(ISERROR(MATCH($J1113,SorP!$B$1:$B$6230,0)),\"\",INDIRECT(\"'SorP'!$A$\"&MATCH($J1113,SorP!$B$1:$B$6230,0))))","v":""},null,{"$f":"IF(C1113=\"\",NA(),MATCH($B1113&$C1113,'Smelter Look-up'!$J:$J,0))","v":{"$error":"#N/A"}},null,0,null,null,null,""]
[null,{"$f":"IF(LEN(A1114)=0,\"\",INDEX('Smelter Look-up'!$A:$A,MATCH($A1114,'Smelter Look-up'!$E:$E,0)))","v":""},{"$f":"IF(LEN(A1114)=0,\"\",INDEX('Smelter Look-up'!$C:$C,MATCH($A1114,'Smelter Look-up'!$E:$E,0)))","v":""},null,{"$f":"IF(ISERROR($V1114),\"\",OFFSET('Smelter Look-up'!$D$4,$V1114-4,0)&\"\")","v":""},{"$f":"IF(ISERROR($V1114),\"\",OFFSET('Smelter Look-up'!$E$4,$V1114-4,0))","v":""},{"$f":"IF(C1114=$X$4,\"Enter smelter details\", IF(ISERROR($V1114),\"\",OFFSET('Smelter Look-up'!$F$4,$V1114-4,0)))","v":""},{"$f":"IF(ISERROR($V1114),\"\",OFFSET('Smelter Look-up'!$G$4,$V1114-4,0))","v":""},{"$f":"IF(ISERROR($V1114),\"\",OFFSET('Smelter Look-up'!$H$4,$V1114-4,0))","v":""},{"$f":"IF(ISERROR($V1114),\"\",OFFSET('Smelter Look-up'!$I$4,$V1114-4,0))","v":""},{"$nulls":7},{"$f":"IF(ISERROR($V1114),\"\",OFFSET('Smelter Look-up'!$C$4,$V1114-4,0)&\"\")","v":""},"",{"$f":"IF(B1114=\"\",\"\",IF(ISERROR(MATCH($J1114,SorP!$B$1:$B$6230,0)),\"\",INDIRECT(\"'SorP'!$A$\"&MATCH($J1114,SorP!$B$1:$B$6230,0))))","v":""},null,{"$f":"IF(C1114=\"\",NA(),MATCH($B1114&$C1114,'Smelter Look-up'!$J:$J,0))","v":{"$error":"#N/A"}},null,0,null,null,null,""]
[null,{"$f":"IF(LEN(A1115)=0,\"\",INDEX('Smelter Look-up'!$A:$A,MATCH($A1115,'Smelter Look-up'!$E:$E,0)))","v":""},{"$f":"IF(LEN(A1115)=0,\"\",INDEX('Smelter Look-up'!$C:$C,MATCH($A1115,'Smelter Look-up'!$E:$E,0)))","v":""},null,{"$f":"IF(ISERROR($V1115),\"\",OFFSET('Smelter Look-up'!$D$4,$V1115-4,0)&\"\")","v":""},{"$f":"IF(ISERROR($V1115),\"\",OFFSET('Smelter Look-up'!$E$4,$V1115-4,0))","v":""},{"$f":"IF(C1115=$X$4,\"Enter smelter details\", IF(ISERROR($V1115),\"\",OFFSET('Smelter Look-up'!$F$4,$V1115-4,0)))","v":""},{"$f":"IF(ISERROR($V1115),\"\",OFFSET('Smelter Look-up'!$G$4,$V1115-4,0))","v":""},{"$f":"IF(ISERROR($V1115),\"\",OFFSET('Smelter Look-up'!$H$4,$V1115-4,0))","v":""},{"$f":"IF(ISERROR($V1115),\"\",OFFSET('Smelter Look-up'!$I$4,$V1115-4,0))","v":""},{"$nulls":7},{"$f":"IF(ISERROR($V1115),\"\",OFFSET('Smelter Look-up'!$C$4,$V1115-4,0)&\"\")","v":""},"",{"$f":"IF(B1115=\"\",\"\",IF(ISERROR(MATCH($J1115,SorP!$B$1:$B$6230,0)),\"\",INDIRECT(\"'SorP'!$A$\"&MATCH($J1115,SorP!$B$1:$B$6230,0))))","v":""},null,{"$f":"IF(C1115=\"\",NA(),MATCH($B1115&$C1115,'Smelter Look-up'!$J:$J,0))","v":{"$error":"#N/A"}},null,0,null,null,null,""]
[null,{"$f":"IF(LEN(A1116)=0,\"\",INDEX('Smelter Look-up'!$A:$A,MATCH($A1116,'Smelter Look-up'!$E:$E,0)))","v":""},{"$f":"IF(LEN(A1116)=0,\"\",INDEX('Smelter Look-up'!$C:$C,MATCH($A1116,'Smelter Look-up'!$E:$E,0)))","v":""},null,{"$f":"IF(ISERROR($V1116),\"\",OFFSET('Smelter Look-up'!$D$4,$V1116-4,0)&\"\")","v":""},{"$f":"IF(ISERROR($V1116),\"\",OFFSET('Smelter Look-up'!$E$4,$V1116-4,0))","v":""},{"$f":"IF(C1116=$X$4,\"Enter smelter details\", IF(ISERROR($V1116),\"\",OFFSET('Smelter Look-up'!$F$4,$V1116-4,0)))","v":""},{"$f":"IF(ISERROR($V1116),\"\",OFFSET('Smelter Look-up'!$G$4,$V1116-4,0))","v":""},{"$f":"IF(ISERROR($V1116),\"\",OFFSET('Smelter Look-up'!$H$4,$V1116-4,0))","v":""},{"$f":"IF(ISERROR($V1116),\"\",OFFSET('Smelter Look-up'!$I$4,$V1116-4,0))","v":""},{"$nulls":7},{"$f":"IF(ISERROR($V1116),\"\",OFFSET('Smelter Look-up'!$C$4,$V1116-4,0)&\"\")","v":""},"",{"$f":"IF(B1116=\"\",\"\",IF(ISERROR(MATCH($J1116,SorP!$B$1:$B$6230,0)),\"\",INDIRECT(\"'SorP'!$A$\"&MATCH($J1116,SorP!$B$1:$B$6230,0))))","v":""},null,{"$f":"IF(C1116=\"\",NA(),MATCH($B1116&$C1116,'Smelter Look-up'!$J:$J,0))","v":{"$error":"#N/A"}},null,0,null,null,null,""]
[null,{"$f":"IF(LEN(A1117)=0,\"\",INDEX('Smelter Look-up'!$A:$A,MATCH($A1117,'Smelter Look-up'!$E:$E,0)))","v":""},{"$f":"IF(LEN(A1117)=0,\"\",INDEX('Smelter Look-up'!$C:$C,MATCH($A1117,'Smelter Look-up'!$E:$E,0)))","v":""},null,{"$f":"IF(ISERROR($V1117),\"\",OFFSET('Smelter Look-up'!$D$4,$V1117-4,0)&\"\")","v":""},{"$f":"IF(ISERROR($V1117),\"\",OFFSET('Smelter Look-up'!$E$4,$V1117-4,0))","v":""},{"$f":"IF(C1117=$X$4,\"Enter smelter details\", IF(ISERROR($V1117),\"\",OFFSET('Smelter Look-up'!$F$4,$V1117-4,0)))","v":""},{"$f":"IF(ISERROR($V1117),\"\",OFFSET('Smelter Look-up'!$G$4,$V1117-4,0))","v":""},{"$f":"IF(ISERROR($V1117),\"\",OFFSET('Smelter Look-up'!$H$4,$V1117-4,0))","v":""},{"$f":"IF(ISERROR($V1117),\"\",OFFSET('Smelter Look-up'!$I$4,$V1117-4,0))","v":""},{"$nulls":7},{"$f":"IF(ISERROR($V1117),\"\",OFFSET('Smelter Look-up'!$C$4,$V1117-4,0)&\"\")","v":""},"",{"$f":"IF(B1117=\"\",\"\",IF(ISERROR(MATCH($J1117,SorP!$B$1:$B$6230,0)),\"\",INDIRECT(\"'SorP'!$A$\"&MATCH($J1117,SorP!$B$1:$B$6230,0))))","v":""},null,{"$f":"IF(C1117=\"\",NA(),MATCH($B1117&$C1117,'Smelter Look-up'!$J:$J,0))","v":{"$error":"#N/A"}},null,0,null,null,null,""]
[null,{"$f":"IF(LEN(A1118)=0,\"\",INDEX('Smelter Look-up'!$A:$A,MATCH($A1118,'Smelter Look-up'!$E:$E,0)))","v":""},{"$f":"IF(LEN(A1118)=0,\"\",INDEX('Smelter Look-up'!$C:$C,MATCH($A1118,'Smelter Look-up'!$E:$E,0)))","v":""},null,{"$f":"IF(ISERROR($V1118),\"\",OFFSET('Smelter Look-up'!$D$4,$V1118-4,0)&\"\")","v":""},{"$f":"IF(ISERROR($V1118),\"\",OFFSET('Smelter Look-up'!$E$4,$V1118-4,0))","v":""},{"$f":"IF(C1118=$X$4,\"Enter smelter details\", IF(ISERROR($V1118),\"\",OFFSET('Smelter Look-up'!$F$4,$V1118-4,0)))","v":""},{"$f":"IF(ISERROR($V1118),\"\",OFFSET('Smelter Look-up'!$G$4,$V1118-4,0))","v":""},{"$f":"IF(ISERROR($V1118),\"\",OFFSET('Smelter Look-up'!$H$4,$V1118-4,0))","v":""},{"$f":"IF(ISERROR($V1118),\"\",OFFSET('Smelter Look-up'!$I$4,$V1118-4,0))","v":""},{"$nulls":7},{"$f":"IF(ISERROR($V1118),\"\",OFFSET('Smelter Look-up'!$C$4,$V1118-4,0)&\"\")","v":""},"",{"$f":"IF(B1118=\"\",\"\",IF(ISERROR(MATCH($J1118,SorP!$B$1:$B$6230,0)),\"\",INDIRECT(\"'SorP'!$A$\"&MATCH($J1118,SorP!$B$1:$B$6230,0))))","v":""},null,{"$f":"IF(C1118=\"\",NA(),MATCH($B1118&$C1118,'Smelter Look-up'!$J:$J,0))","v":{"$error":"#N/A"}},null,0,null,null,null,""]
[null,{"$f":"IF(LEN(A1119)=0,\"\",INDEX('Smelter Look-up'!$A:$A,MATCH($A1119,'Smelter Look-up'!$E:$E,0)))","v":""},{"$f":"IF(LEN(A1119)=0,\"\",INDEX('Smelter Look-up'!$C:$C,MATCH($A1119,'Smelter Look-up'!$E:$E,0)))","v":""},null,{"$f":"IF(ISERROR($V1119),\"\",OFFSET('Smelter Look-up'!$D$4,$V1119-4,0)&\"\")","v":""},{"$f":"IF(ISERROR($V1119),\"\",OFFSET('Smelter Look-up'!$E$4,$V1119-4,0))","v":""},{"$f":"IF(C1119=$X$4,\"Enter smelter details\", IF(ISERROR($V1119),\"\",OFFSET('Smelter Look-up'!$F$4,$V1119-4,0)))","v":""},{"$f":"IF(ISERROR($V1119),\"\",OFFSET('Smelter Look-up'!$G$4,$V1119-4,0))","v":""},{"$f":"IF(ISERROR($V1119),\"\",OFFSET('Smelter Look-up'!$H$4,$V1119-4,0))","v":""},{"$f":"IF(ISERROR($V1119),\"\",OFFSET('Smelter Look-up'!$I$4,$V1119-4,0))","v":""},{"$nulls":7},{"$f":"IF(ISERROR($V1119),\"\",OFFSET('Smelter Look-up'!$C$4,$V1119-4,0)&\"\")","v":""},"",{"$f":"IF(B1119=\"\",\"\",IF(ISERROR(MATCH($J1119,SorP!$B$1:$B$6230,0)),\"\",INDIRECT(\"'SorP'!$A$\"&MATCH($J1119,SorP!$B$1:$B$6230,0))))","v":""},null,{"$f":"IF(C1119=\"\",NA(),MATCH($B1119&$C1119,'Smelter Look-up'!$J:$J,0))","v":{"$error":"#N/A"}},null,0,null,null,null,""]
[null,{"$f":"IF(LEN(A1120)=0,\"\",INDEX('Smelter Look-up'!$A:$A,MATCH($A1120,'Smelter Look-up'!$E:$E,0)))","v":""},{"$f":"IF(LEN(A1120)=0,\"\",INDEX('Smelter Look-up'!$C:$C,MATCH($A1120,'Smelter Look-up'!$E:$E,0)))","v":""},null,{"$f":"IF(ISERROR($V1120),\"\",OFFSET('Smelter Look-up'!$D$4,$V1120-4,0)&\"\")","v":""},{"$f":"IF(ISERROR($V1120),\"\",OFFSET('Smelter Look-up'!$E$4,$V1120-4,0))","v":""},{"$f":"IF(C1120=$X$4,\"Enter smelter details\", IF(ISERROR($V1120),\"\",OFFSET('Smelter Look-up'!$F$4,$V1120-4,0)))","v":""},{"$f":"IF(ISERROR($V1120),\"\",OFFSET('Smelter Look-up'!$G$4,$V1120-4,0))","v":""},{"$f":"IF(ISERROR($V1120),\"\",OFFSET('Smelter Look-up'!$H$4,$V1120-4,0))","v":""},{"$f":"IF(ISERROR($V1120),\"\",OFFSET('Smelter Look-up'!$I$4,$V1120-4,0))","v":""},{"$nulls":7},{"$f":"IF(ISERROR($V1120),\"\",OFFSET('Smelter Look-up'!$C$4,$V1120-4,0)&\"\")","v":""},"",{"$f":"IF(B1120=\"\",\"\",IF(ISERROR(MATCH($J1120,SorP!$B$1:$B$6230,0)),\"\",INDIRECT(\"'SorP'!$A$\"&MATCH($J1120,SorP!$B$1:$B$6230,0))))","v":""},null,{"$f":"IF(C1120=\"\",NA(),MATCH($B1120&$C1120,'Smelter Look-up'!$J:$J,0))","v":{"$error":"#N/A"}},null,0,null,null,null,""]
[null,{"$f":"IF(LEN(A1121)=0,\"\",INDEX('Smelter Look-up'!$A:$A,MATCH($A1121,'Smelter Look-up'!$E:$E,0)))","v":""},{"$f":"IF(LEN(A1121)=0,\"\",INDEX('Smelter Look-up'!$C:$C,MATCH($A1121,'Smelter Look-up'!$E:$E,0)))","v":""},null,{"$f":"IF(ISERROR($V1121),\"\",OFFSET('Smelter Look-up'!$D$4,$V1121-4,0)&\"\")","v":""},{"$f":"IF(ISERROR($V1121),\"\",OFFSET('Smelter Look-up'!$E$4,$V1121-4,0))","v":""},{"$f":"IF(C1121=$X$4,\"Enter smelter details\", IF(ISERROR($V1121),\"\",OFFSET('Smelter Look-up'!$F$4,$V1121-4,0)))","v":""},{"$f":"IF(ISERROR($V1121),\"\",OFFSET('Smelter Look-up'!$G$4,$V1121-4,0))","v":""},{"$f":"IF(ISERROR($V1121),\"\",OFFSET('Smelter Look-up'!$H$4,$V1121-4,0))","v":""},{"$f":"IF(ISERROR($V1121),\"\",OFFSET('Smelter Look-up'!$I$4,$V1121-4,0))","v":""},{"$nulls":7},{"$f":"IF(ISERROR($V1121),\"\",OFFSET('Smelter Look-up'!$C$4,$V1121-4,0)&\"\")","v":""},"",{"$f":"IF(B1121=\"\",\"\",IF(ISERROR(MATCH($J1121,SorP!$B$1:$B$6230,0)),\"\",INDIRECT(\"'SorP'!$A$\"&MATCH($J1121,SorP!$B$1:$B$6230,0))))","v":""},null,{"$f":"IF(C1121=\"\",NA(),MATCH($B1121&$C1121,'Smelter Look-up'!$J:$J,0))","v":{"$error":"#N/A"}},null,0,null,null,null,""]
[null,{"$f":"IF(LEN(A1122)=0,\"\",INDEX('Smelter Look-up'!$A:$A,MATCH($A1122,'Smelter Look-up'!$E:$E,0)))","v":""},{"$f":"IF(LEN(A1122)=0,\"\",INDEX('Smelter Look-up'!$C:$C,MATCH($A1122,'Smelter Look-up'!$E:$E,0)))","v":""},null,{"$f":"IF(ISERROR($V1122),\"\",OFFSET('Smelter Look-up'!$D$4,$V1122-4,0)&\"\")","v":""},{"$f":"IF(ISERROR($V1122),\"\",OFFSET('Smelter Look-up'!$E$4,$V1122-4,0))","v":""},{"$f":"IF(C1122=$X$4,\"Enter smelter details\", IF(ISERROR($V1122),\"\",OFFSET('Smelter Look-up'!$F$4,$V1122-4,0)))","v":""},{"$f":"IF(ISERROR($V1122),\"\",OFFSET('Smelter Look-up'!$G$4,$V1122-4,0))","v":""},{"$f":"IF(ISERROR($V1122),\"\",OFFSET('Smelter Look-up'!$H$4,$V1122-4,0))","v":""},{"$f":"IF(ISERROR($V1122),\"\",OFFSET('Smelter Look-up'!$I$4,$V1122-4,0))","v":""},{"$nulls":7},{"$f":"IF(ISERROR($V1122),\"\",OFFSET('Smelter Look-up'!$C$4,$V1122-4,0)&\"\")","v":""},"",{"$f":"IF(B1122=\"\",\"\",IF(ISERROR(MATCH($J1122,SorP!$B$1:$B$6230,0)),\"\",INDIRECT(\"'SorP'!$A$\"&MATCH($J1122,SorP!$B$1:$B$6230,0))))","v":""},null,{"$f":"IF(C1122=\"\",NA(),MATCH($B1122&$C1122,'Smelter Look-up'!$J:$J,0))","v":{"$error":"#N/A"}},null,0,null,null,null,""]
[null,{"$f":"IF(LEN(A1123)=0,\"\",INDEX('Smelter Look-up'!$A:$A,MATCH($A1123,'Smelter Look-up'!$E:$E,0)))","v":""},{"$f":"IF(LEN(A1123)=0,\"\",INDEX('Smelter Look-up'!$C:$C,MATCH($A1123,'Smelter Look-up'!$E:$E,0)))","v":""},null,{"$f":"IF(ISERROR($V1123),\"\",OFFSET('Smelter Look-up'!$D$4,$V1123-4,0)&\"\")","v":""},{"$f":"IF(ISERROR($V1123),\"\",OFFSET('Smelter Look-up'!$E$4,$V1123-4,0))","v":""},{"$f":"IF(C1123=$X$4,\"Enter smelter details\", IF(ISERROR($V1123),\"\",OFFSET('Smelter Look-up'!$F$4,$V1123-4,0)))","v":""},{"$f":"IF(ISERROR($V1123),\"\",OFFSET('Smelter Look-up'!$G$4,$V1123-4,0))","v":""},{"$f":"IF(ISERROR($V1123),\"\",OFFSET('Smelter Look-up'!$H$4,$V1123-4,0))","v":""},{"$f":"IF(ISERROR($V1123),\"\",OFFSET('Smelter Look-up'!$I$4,$V1123-4,0))","v":""},{"$nulls":7},{"$f":"IF(ISERROR($V1123),\"\",OFFSET('Smelter Look-up'!$C$4,$V1123-4,0)&\"\")","v":""},"",{"$f":"IF(B1123=\"\",\"\",IF(ISERROR(MATCH($J1123,SorP!$B$1:$B$6230,0)),\"\",INDIRECT(\"'SorP'!$A$\"&MATCH($J1123,SorP!$B$1:$B$6230,0))))","v":""},null,{"$f":"IF(C1123=\"\",NA(),MATCH($B1123&$C1123,'Smelter Look-up'!$J:$J,0))","v":{"$error":"#N/A"}},null,0,null,null,null,""]
[null,{"$f":"IF(LEN(A1124)=0,\"\",INDEX('Smelter Look-up'!$A:$A,MATCH($A1124,'Smelter Look-up'!$E:$E,0)))","v":""},{"$f":"IF(LEN(A1124)=0,\"\",INDEX('Smelter Look-up'!$C:$C,MATCH($A1124,'Smelter Look-up'!$E:$E,0)))","v":""},null,{"$f":"IF(ISERROR($V1124),\"\",OFFSET('Smelter Look-up'!$D$4,$V1124-4,0)&\"\")","v":""},{"$f":"IF(ISERROR($V1124),\"\",OFFSET('Smelter Look-up'!$E$4,$V1124-4,0))","v":""},{"$f":"IF(C1124=$X$4,\"Enter smelter details\", IF(ISERROR($V1124),\"\",OFFSET('Smelter Look-up'!$F$4,$V1124-4,0)))","v":""},{"$f":"IF(ISERROR($V1124),\"\",OFFSET('Smelter Look-up'!$G$4,$V1124-4,0))","v":""},{"$f":"IF(ISERROR($V1124),\"\",OFFSET('Smelter Look-up'!$H$4,$V1124-4,0))","v":""},{"$f":"IF(ISERROR($V1124),\"\",OFFSET('Smelter Look-up'!$I$4,$V1124-4,0))","v":""},{"$nulls":7},{"$f":"IF(ISERROR($V1124),\"\",OFFSET('Smelter Look-up'!$C$4,$V1124-4,0)&\"\")","v":""},"",{"$f":"IF(B1124=\"\",\"\",IF(ISERROR(MATCH($J1124,SorP!$B$1:$B$6230,0)),\"\",INDIRECT(\"'SorP'!$A$\"&MATCH($J1124,SorP!$B$1:$B$6230,0))))","v":""},null,{"$f":"IF(C1124=\"\",NA(),MATCH($B1124&$C1124,'Smelter Look-up'!$J:$J,0))","v":{"$error":"#N/A"}},null,0,null,null,null,""]
[null,{"$f":"IF(LEN(A1125)=0,\"\",INDEX('Smelter Look-up'!$A:$A,MATCH($A1125,'Smelter Look-up'!$E:$E,0)))","v":""},{"$f":"IF(LEN(A1125)=0,\"\",INDEX('Smelter Look-up'!$C:$C,MATCH($A1125,'Smelter Look-up'!$E:$E,0)))","v":""},null,{"$f":"IF(ISERROR($V1125),\"\",OFFSET('Smelter Look-up'!$D$4,$V1125-4,0)&\"\")","v":""},{"$f":"IF(ISERROR($V1125),\"\",OFFSET('Smelter Look-up'!$E$4,$V1125-4,0))","v":""},{"$f":"IF(C1125=$X$4,\"Enter smelter details\", IF(ISERROR($V1125),\"\",OFFSET('Smelter Look-up'!$F$4,$V1125-4,0)))","v":""},{"$f":"IF(ISERROR($V1125),\"\",OFFSET('Smelter Look-up'!$G$4,$V1125-4,0))","v":""},{"$f":"IF(ISERROR($V1125),\"\",OFFSET('Smelter Look-up'!$H$4,$V1125-4,0))","v":""},{"$f":"IF(ISERROR($V1125),\"\",OFFSET('Smelter Look-up'!$I$4,$V1125-4,0))","v":""},{"$nulls":7},{"$f":"IF(ISERROR($V1125),\"\",OFFSET('Smelter Look-up'!$C$4,$V1125-4,0)&\"\")","v":""},"",{"$f":"IF(B1125=\"\",\"\",IF(ISERROR(MATCH($J1125,SorP!$B$1:$B$6230,0)),\"\",INDIRECT(\"'SorP'!$A$\"&MATCH($J1125,SorP!$B$1:$B$6230,0))))","v":""},null,{"$f":"IF(C1125=\"\",NA(),MATCH($B1125&$C1125,'Smelter Look-up'!$J:$J,0))","v":{"$error":"#N/A"}},null,0,null,null,null,""]
[null,{"$f":"IF(LEN(A1126)=0,\"\",INDEX('Smelter Look-up'!$A:$A,MATCH($A1126,'Smelter Look-up'!$E:$E,0)))","v":""},{"$f":"IF(LEN(A1126)=0,\"\",INDEX('Smelter Look-up'!$C:$C,MATCH($A1126,'Smelter Look-up'!$E:$E,0)))","v":""},null,{"$f":"IF(ISERROR($V1126),\"\",OFFSET('Smelter Look-up'!$D$4,$V1126-4,0)&\"\")","v":""},{"$f":"IF(ISERROR($V1126),\"\",OFFSET('Smelter Look-up'!$E$4,$V1126-4,0))","v":""},{"$f":"IF(C1126=$X$4,\"Enter smelter details\", IF(ISERROR($V1126),\"\",OFFSET('Smelter Look-up'!$F$4,$V1126-4,0)))","v":""},{"$f":"IF(ISERROR($V1126),\"\",OFFSET('Smelter Look-up'!$G$4,$V1126-4,0))","v":""},{"$f":"IF(ISERROR($V1126),\"\",OFFSET('Smelter Look-up'!$H$4,$V1126-4,0))","v":""},{"$f":"IF(ISERROR($V1126),\"\",OFFSET('Smelter Look-up'!$I$4,$V1126-4,0))","v":""},{"$nulls":7},{"$f":"IF(ISERROR($V1126),\"\",OFFSET('Smelter Look-up'!$C$4,$V1126-4,0)&\"\")","v":""},"",{"$f":"IF(B1126=\"\",\"\",IF(ISERROR(MATCH($J1126,SorP!$B$1:$B$6230,0)),\"\",INDIRECT(\"'SorP'!$A$\"&MATCH($J1126,SorP!$B$1:$B$6230,0))))","v":""},null,{"$f":"IF(C1126=\"\",NA(),MATCH($B1126&$C1126,'Smelter Look-up'!$J:$J,0))","v":{"$error":"#N/A"}},null,0,null,null,null,""]
[null,{"$f":"IF(LEN(A1127)=0,\"\",INDEX('Smelter Look-up'!$A:$A,MATCH($A1127,'Smelter Look-up'!$E:$E,0)))","v":""},{"$f":"IF(LEN(A1127)=0,\"\",INDEX('Smelter Look-up'!$C:$C,MATCH($A1127,'Smelter Look-up'!$E:$E,0)))","v":""},null,{"$f":"IF(ISERROR($V1127),\"\",OFFSET('Smelter Look-up'!$D$4,$V1127-4,0)&\"\")","v":""},{"$f":"IF(ISERROR($V1127),\"\",OFFSET('Smelter Look-up'!$E$4,$V1127-4,0))","v":""},{"$f":"IF(C1127=$X$4,\"Enter smelter details\", IF(ISERROR($V1127),\"\",OFFSET('Smelter Look-up'!$F$4,$V1127-4,0)))","v":""},{"$f":"IF(ISERROR($V1127),\"\",OFFSET('Smelter Look-up'!$G$4,$V1127-4,0))","v":""},{"$f":"IF(ISERROR($V1127),\"\",OFFSET('Smelter Look-up'!$H$4,$V1127-4,0))","v":""},{"$f":"IF(ISERROR($V1127),\"\",OFFSET('Smelter Look-up'!$I$4,$V1127-4,0))","v":""},{"$nulls":7},{"$f":"IF(ISERROR($V1127),\"\",OFFSET('Smelter Look-up'!$C$4,$V1127-4,0)&\"\")","v":""},"",{"$f":"IF(B1127=\"\",\"\",IF(ISERROR(MATCH($J1127,SorP!$B$1:$B$6230,0)),\"\",INDIRECT(\"'SorP'!$A$\"&MATCH($J1127,SorP!$B$1:$B$6230,0))))","v":""},null,{"$f":"IF(C1127=\"\",NA(),MATCH($B1127&$C1127,'Smelter Look-up'!$J:$J,0))","v":{"$error":"#N/A"}},null,0,null,null,null,""]
[null,{"$f":"IF(LEN(A1128)=0,\"\",INDEX('Smelter Look-up'!$A:$A,MATCH($A1128,'Smelter Look-up'!$E:$E,0)))","v":""},{"$f":"IF(LEN(A1128)=0,\"\",INDEX('Smelter Look-up'!$C:$C,MATCH($A1128,'Smelter Look-up'!$E:$E,0)))","v":""},null,{"$f":"IF(ISERROR($V1128),\"\",OFFSET('Smelter Look-up'!$D$4,$V1128-4,0)&\"\")","v":""},{"$f":"IF(ISERROR($V1128),\"\",OFFSET('Smelter Look-up'!$E$4,$V1128-4,0))","v":""},{"$f":"IF(C1128=$X$4,\"Enter smelter details\", IF(ISERROR($V1128),\"\",OFFSET('Smelter Look-up'!$F$4,$V1128-4,0)))","v":""},{"$f":"IF(ISERROR($V1128),\"\",OFFSET('Smelter Look-up'!$G$4,$V1128-4,0))","v":""},{"$f":"IF(ISERROR($V1128),\"\",OFFSET('Smelter Look-up'!$H$4,$V1128-4,0))","v":""},{"$f":"IF(ISERROR($V1128),\"\",OFFSET('Smelter Look-up'!$I$4,$V1128-4,0))","v":""},{"$nulls":7},{"$f":"IF(ISERROR($V1128),\"\",OFFSET('Smelter Look-up'!$C$4,$V1128-4,0)&\"\")","v":""},"",{"$f":"IF(B1128=\"\",\"\",IF(ISERROR(MATCH($J1128,SorP!$B$1:$B$6230,0)),\"\",INDIRECT(\"'SorP'!$A$\"&MATCH($J1128,SorP!$B$1:$B$6230,0))))","v":""},null,{"$f":"IF(C1128=\"\",NA(),MATCH($B1128&$C1128,'Smelter Look-up'!$J:$J,0))","v":{"$error":"#N/A"}},null,0,null,null,null,""]
[null,{"$f":"IF(LEN(A1129)=0,\"\",INDEX('Smelter Look-up'!$A:$A,MATCH($A1129,'Smelter Look-up'!$E:$E,0)))","v":""},{"$f":"IF(LEN(A1129)=0,\"\",INDEX('Smelter Look-up'!$C:$C,MATCH($A1129,'Smelter Look-up'!$E:$E,0)))","v":""},null,{"$f":"IF(ISERROR($V1129),\"\",OFFSET('Smelter Look-up'!$D$4,$V1129-4,0)&\"\")","v":""},{"$f":"IF(ISERROR($V1129),\"\",OFFSET('Smelter Look-up'!$E$4,$V1129-4,0))","v":""},{"$f":"IF(C1129=$X$4,\"Enter smelter details\", IF(ISERROR($V1129),\"\",OFFSET('Smelter Look-up'!$F$4,$V1129-4,0)))","v":""},{"$f":"IF(ISERROR($V1129),\"\",OFFSET('Smelter Look-up'!$G$4,$V1129-4,0))","v":""},{"$f":"IF(ISERROR($V1129),\"\",OFFSET('Smelter Look-up'!$H$4,$V1129-4,0))","v":""},{"$f":"IF(ISERROR($V1129),\"\",OFFSET('Smelter Look-up'!$I$4,$V1129-4,0))","v":""},{"$nulls":7},{"$f":"IF(ISERROR($V1129),\"\",OFFSET('Smelter Look-up'!$C$4,$V1129-4,0)&\"\")","v":""},"",{"$f":"IF(B1129=\"\",\"\",IF(ISERROR(MATCH($J1129,SorP!$B$1:$B$6230,0)),\"\",INDIRECT(\"'SorP'!$A$\"&MATCH($J1129,SorP!$B$1:$B$6230,0))))","v":""},null,{"$f":"IF(C1129=\"\",NA(),MATCH($B1129&$C1129,'Smelter Look-up'!$J:$J,0))","v":{"$error":"#N/A"}},null,0,null,null,null,""]
[null,{"$f":"IF(LEN(A1130)=0,\"\",INDEX('Smelter Look-up'!$A:$A,MATCH($A1130,'Smelter Look-up'!$E:$E,0)))","v":""},{"$f":"IF(LEN(A1130)=0,\"\",INDEX('Smelter Look-up'!$C:$C,MATCH($A1130,'Smelter Look-up'!$E:$E,0)))","v":""},null,{"$f":"IF(ISERROR($V1130),\"\",OFFSET('Smelter Look-up'!$D$4,$V1130-4,0)&\"\")","v":""},{"$f":"IF(ISERROR($V1130),\"\",OFFSET('Smelter Look-up'!$E$4,$V1130-4,0))","v":""},{"$f":"IF(C1130=$X$4,\"Enter smelter details\", IF(ISERROR($V1130),\"\",OFFSET('Smelter Look-up'!$F$4,$V1130-4,0)))","v":""},{"$f":"IF(ISERROR($V1130),\"\",OFFSET('Smelter Look-up'!$G$4,$V1130-4,0))","v":""},{"$f":"IF(ISERROR($V1130),\"\",OFFSET('Smelter Look-up'!$H$4,$V1130-4,0))","v":""},{"$f":"IF(ISERROR($V1130),\"\",OFFSET('Smelter Look-up'!$I$4,$V1130-4,0))","v":""},{"$nulls":7},{"$f":"IF(ISERROR($V1130),\"\",OFFSET('Smelter Look-up'!$C$4,$V1130-4,0)&\"\")","v":""},"",{"$f":"IF(B1130=\"\",\"\",IF(ISERROR(MATCH($J1130,SorP!$B$1:$B$6230,0)),\"\",INDIRECT(\"'SorP'!$A$\"&MATCH($J1130,SorP!$B$1:$B$6230,0))))","v":""},null,{"$f":"IF(C1130=\"\",NA(),MATCH($B1130&$C1130,'Smelter Look-up'!$J:$J,0))","v":{"$error":"#N/A"}},null,0,null,null,null,""]
[null,{"$f":"IF(LEN(A1131)=0,\"\",INDEX('Smelter Look-up'!$A:$A,MATCH($A1131,'Smelter Look-up'!$E:$E,0)))","v":""},{"$f":"IF(LEN(A1131)=0,\"\",INDEX('Smelter Look-up'!$C:$C,MATCH($A1131,'Smelter Look-up'!$E:$E,0)))","v":""},null,{"$f":"IF(ISERROR($V1131),\"\",OFFSET('Smelter Look-up'!$D$4,$V1131-4,0)&\"\")","v":""},{"$f":"IF(ISERROR($V1131),\"\",OFFSET('Smelter Look-up'!$E$4,$V1131-4,0))","v":""},{"$f":"IF(C1131=$X$4,\"Enter smelter details\", IF(ISERROR($V1131),\"\",OFFSET('Smelter Look-up'!$F$4,$V1131-4,0)))","v":""},{"$f":"IF(ISERROR($V1131),\"\",OFFSET('Smelter Look-up'!$G$4,$V1131-4,0))","v":""},{"$f":"IF(ISERROR($V1131),\"\",OFFSET('Smelter Look-up'!$H$4,$V1131-4,0))","v":""},{"$f":"IF(ISERROR($V1131),\"\",OFFSET('Smelter Look-up'!$I$4,$V1131-4,0))","v":""},{"$nulls":7},{"$f":"IF(ISERROR($V1131),\"\",OFFSET('Smelter Look-up'!$C$4,$V1131-4,0)&\"\")","v":""},"",{"$f":"IF(B1131=\"\",\"\",IF(ISERROR(MATCH($J1131,SorP!$B$1:$B$6230,0)),\"\",INDIRECT(\"'SorP'!$A$\"&MATCH($J1131,SorP!$B$1:$B$6230,0))))","v":""},null,{"$f":"IF(C1131=\"\",NA(),MATCH($B1131&$C1131,'Smelter Look-up'!$J:$J,0))","v":{"$error":"#N/A"}},null,0,null,null,null,""]
[null,{"$f":"IF(LEN(A1132)=0,\"\",INDEX('Smelter Look-up'!$A:$A,MATCH($A1132,'Smelter Look-up'!$E:$E,0)))","v":""},{"$f":"IF(LEN(A1132)=0,\"\",INDEX('Smelter Look-up'!$C:$C,MATCH($A1132,'Smelter Look-up'!$E:$E,0)))","v":""},null,{"$f":"IF(ISERROR($V1132),\"\",OFFSET('Smelter Look-up'!$D$4,$V1132-4,0)&\"\")","v":""},{"$f":"IF(ISERROR($V1132),\"\",OFFSET('Smelter Look-up'!$E$4,$V1132-4,0))","v":""},{"$f":"IF(C1132=$X$4,\"Enter smelter details\", IF(ISERROR($V1132),\"\",OFFSET('Smelter Look-up'!$F$4,$V1132-4,0)))","v":""},{"$f":"IF(ISERROR($V1132),\"\",OFFSET('Smelter Look-up'!$G$4,$V1132-4,0))","v":""},{"$f":"IF(ISERROR($V1132),\"\",OFFSET('Smelter Look-up'!$H$4,$V1132-4,0))","v":""},{"$f":"IF(ISERROR($V1132),\"\",OFFSET('Smelter Look-up'!$I$4,$V1132-4,0))","v":""},{"$nulls":7},{"$f":"IF(ISERROR($V1132),\"\",OFFSET('Smelter Look-up'!$C$4,$V1132-4,0)&\"\")","v":""},"",{"$f":"IF(B1132=\"\",\"\",IF(ISERROR(MATCH($J1132,SorP!$B$1:$B$6230,0)),\"\",INDIRECT(\"'SorP'!$A$\"&MATCH($J1132,SorP!$B$1:$B$6230,0))))","v":""},null,{"$f":"IF(C1132=\"\",NA(),MATCH($B1132&$C1132,'Smelter Look-up'!$J:$J,0))","v":{"$error":"#N/A"}},null,0,null,null,null,""]
[null,{"$f":"IF(LEN(A1133)=0,\"\",INDEX('Smelter Look-up'!$A:$A,MATCH($A1133,'Smelter Look-up'!$E:$E,0)))","v":""},{"$f":"IF(LEN(A1133)=0,\"\",INDEX('Smelter Look-up'!$C:$C,MATCH($A1133,'Smelter Look-up'!$E:$E,0)))","v":""},null,{"$f":"IF(ISERROR($V1133),\"\",OFFSET('Smelter Look-up'!$D$4,$V1133-4,0)&\"\")","v":""},{"$f":"IF(ISERROR($V1133),\"\",OFFSET('Smelter Look-up'!$E$4,$V1133-4,0))","v":""},{"$f":"IF(C1133=$X$4,\"Enter smelter details\", IF(ISERROR($V1133),\"\",OFFSET('Smelter Look-up'!$F$4,$V1133-4,0)))","v":""},{"$f":"IF(ISERROR($V1133),\"\",OFFSET('Smelter Look-up'!$G$4,$V1133-4,0))","v":""},{"$f":"IF(ISERROR($V1133),\"\",OFFSET('Smelter Look-up'!$H$4,$V1133-4,0))","v":""},{"$f":"IF(ISERROR($V1133),\"\",OFFSET('Smelter Look-up'!$I$4,$V1133-4,0))","v":""},{"$nulls":7},{"$f":"IF(ISERROR($V1133),\"\",OFFSET('Smelter Look-up'!$C$4,$V1133-4,0)&\"\")","v":""},"",{"$f":"IF(B1133=\"\",\"\",IF(ISERROR(MATCH($J1133,SorP!$B$1:$B$6230,0)),\"\",INDIRECT(\"'SorP'!$A$\"&MATCH($J1133,SorP!$B$1:$B$6230,0))))","v":""},null,{"$f":"IF(C1133=\"\",NA(),MATCH($B1133&$C1133,'Smelter Look-up'!$J:$J,0))","v":{"$error":"#N/A"}},null,0,null,null,null,""]
[null,{"$f":"IF(LEN(A1134)=0,\"\",INDEX('Smelter Look-up'!$A:$A,MATCH($A1134,'Smelter Look-up'!$E:$E,0)))","v":""},{"$f":"IF(LEN(A1134)=0,\"\",INDEX('Smelter Look-up'!$C:$C,MATCH($A1134,'Smelter Look-up'!$E:$E,0)))","v":""},null,{"$f":"IF(ISERROR($V1134),\"\",OFFSET('Smelter Look-up'!$D$4,$V1134-4,0)&\"\")","v":""},{"$f":"IF(ISERROR($V1134),\"\",OFFSET('Smelter Look-up'!$E$4,$V1134-4,0))","v":""},{"$f":"IF(C1134=$X$4,\"Enter smelter details\", IF(ISERROR($V1134),\"\",OFFSET('Smelter Look-up'!$F$4,$V1134-4,0)))","v":""},{"$f":"IF(ISERROR($V1134),\"\",OFFSET('Smelter Look-up'!$G$4,$V1134-4,0))","v":""},{"$f":"IF(ISERROR($V1134),\"\",OFFSET('Smelter Look-up'!$H$4,$V1134-4,0))","v":""},{"$f":"IF(ISERROR($V1134),\"\",OFFSET('Smelter Look-up'!$I$4,$V1134-4,0))","v":""},{"$nulls":7},{"$f":"IF(ISERROR($V1134),\"\",OFFSET('Smelter Look-up'!$C$4,$V1134-4,0)&\"\")","v":""},"",{"$f":"IF(B1134=\"\",\"\",IF(ISERROR(MATCH($J1134,SorP!$B$1:$B$6230,0)),\"\",INDIRECT(\"'SorP'!$A$\"&MATCH($J1134,SorP!$B$1:$B$6230,0))))","v":""},null,{"$f":"IF(C1134=\"\",NA(),MATCH($B1134&$C1134,'Smelter Look-up'!$J:$J,0))","v":{"$error":"#N/A"}},null,0,null,null,null,""]
[null,{"$f":"IF(LEN(A1135)=0,\"\",INDEX('Smelter Look-up'!$A:$A,MATCH($A1135,'Smelter Look-up'!$E:$E,0)))","v":""},{"$f":"IF(LEN(A1135)=0,\"\",INDEX('Smelter Look-up'!$C:$C,MATCH($A1135,'Smelter Look-up'!$E:$E,0)))","v":""},null,{"$f":"IF(ISERROR($V1135),\"\",OFFSET('Smelter Look-up'!$D$4,$V1135-4,0)&\"\")","v":""},{"$f":"IF(ISERROR($V1135),\"\",OFFSET('Smelter Look-up'!$E$4,$V1135-4,0))","v":""},{"$f":"IF(C1135=$X$4,\"Enter smelter details\", IF(ISERROR($V1135),\"\",OFFSET('Smelter Look-up'!$F$4,$V1135-4,0)))","v":""},{"$f":"IF(ISERROR($V1135),\"\",OFFSET('Smelter Look-up'!$G$4,$V1135-4,0))","v":""},{"$f":"IF(ISERROR($V1135),\"\",OFFSET('Smelter Look-up'!$H$4,$V1135-4,0))","v":""},{"$f":"IF(ISERROR($V1135),\"\",OFFSET('Smelter Look-up'!$I$4,$V1135-4,0))","v":""},{"$nulls":7},{"$f":"IF(ISERROR($V1135),\"\",OFFSET('Smelter Look-up'!$C$4,$V1135-4,0)&\"\")","v":""},"",{"$f":"IF(B1135=\"\",\"\",IF(ISERROR(MATCH($J1135,SorP!$B$1:$B$6230,0)),\"\",INDIRECT(\"'SorP'!$A$\"&MATCH($J1135,SorP!$B$1:$B$6230,0))))","v":""},null,{"$f":"IF(C1135=\"\",NA(),MATCH($B1135&$C1135,'Smelter Look-up'!$J:$J,0))","v":{"$error":"#N/A"}},null,0,null,null,null,""]
[null,{"$f":"IF(LEN(A1136)=0,\"\",INDEX('Smelter Look-up'!$A:$A,MATCH($A1136,'Smelter Look-up'!$E:$E,0)))","v":""},{"$f":"IF(LEN(A1136)=0,\"\",INDEX('Smelter Look-up'!$C:$C,MATCH($A1136,'Smelter Look-up'!$E:$E,0)))","v":""},null,{"$f":"IF(ISERROR($V1136),\"\",OFFSET('Smelter Look-up'!$D$4,$V1136-4,0)&\"\")","v":""},{"$f":"IF(ISERROR($V1136),\"\",OFFSET('Smelter Look-up'!$E$4,$V1136-4,0))","v":""},{"$f":"IF(C1136=$X$4,\"Enter smelter details\", IF(ISERROR($V1136),\"\",OFFSET('Smelter Look-up'!$F$4,$V1136-4,0)))","v":""},{"$f":"IF(ISERROR($V1136),\"\",OFFSET('Smelter Look-up'!$G$4,$V1136-4,0))","v":""},{"$f":"IF(ISERROR($V1136),\"\",OFFSET('Smelter Look-up'!$H$4,$V1136-4,0))","v":""},{"$f":"IF(ISERROR($V1136),\"\",OFFSET('Smelter Look-up'!$I$4,$V1136-4,0))","v":""},{"$nulls":7},{"$f":"IF(ISERROR($V1136),\"\",OFFSET('Smelter Look-up'!$C$4,$V1136-4,0)&\"\")","v":""},"",{"$f":"IF(B1136=\"\",\"\",IF(ISERROR(MATCH($J1136,SorP!$B$1:$B$6230,0)),\"\",INDIRECT(\"'SorP'!$A$\"&MATCH($J1136,SorP!$B$1:$B$6230,0))))","v":""},null,{"$f":"IF(C1136=\"\",NA(),MATCH($B1136&$C1136,'Smelter Look-up'!$J:$J,0))","v":{"$error":"#N/A"}},null,0,null,null,null,""]
[null,{"$f":"IF(LEN(A1137)=0,\"\",INDEX('Smelter Look-up'!$A:$A,MATCH($A1137,'Smelter Look-up'!$E:$E,0)))","v":""},{"$f":"IF(LEN(A1137)=0,\"\",INDEX('Smelter Look-up'!$C:$C,MATCH($A1137,'Smelter Look-up'!$E:$E,0)))","v":""},null,{"$f":"IF(ISERROR($V1137),\"\",OFFSET('Smelter Look-up'!$D$4,$V1137-4,0)&\"\")","v":""},{"$f":"IF(ISERROR($V1137),\"\",OFFSET('Smelter Look-up'!$E$4,$V1137-4,0))","v":""},{"$f":"IF(C1137=$X$4,\"Enter smelter details\", IF(ISERROR($V1137),\"\",OFFSET('Smelter Look-up'!$F$4,$V1137-4,0)))","v":""},{"$f":"IF(ISERROR($V1137),\"\",OFFSET('Smelter Look-up'!$G$4,$V1137-4,0))","v":""},{"$f":"IF(ISERROR($V1137),\"\",OFFSET('Smelter Look-up'!$H$4,$V1137-4,0))","v":""},{"$f":"IF(ISERROR($V1137),\"\",OFFSET('Smelter Look-up'!$I$4,$V1137-4,0))","v":""},{"$nulls":7},{"$f":"IF(ISERROR($V1137),\"\",OFFSET('Smelter Look-up'!$C$4,$V1137-4,0)&\"\")","v":""},"",{"$f":"IF(B1137=\"\",\"\",IF(ISERROR(MATCH($J1137,SorP!$B$1:$B$6230,0)),\"\",INDIRECT(\"'SorP'!$A$\"&MATCH($J1137,SorP!$B$1:$B$6230,0))))","v":""},null,{"$f":"IF(C1137=\"\",NA(),MATCH($B1137&$C1137,'Smelter Look-up'!$J:$J,0))","v":{"$error":"#N/A"}},null,0,null,null,null,""]
[null,{"$f":"IF(LEN(A1138)=0,\"\",INDEX('Smelter Look-up'!$A:$A,MATCH($A1138,'Smelter Look-up'!$E:$E,0)))","v":""},{"$f":"IF(LEN(A1138)=0,\"\",INDEX('Smelter Look-up'!$C:$C,MATCH($A1138,'Smelter Look-up'!$E:$E,0)))","v":""},null,{"$f":"IF(ISERROR($V1138),\"\",OFFSET('Smelter Look-up'!$D$4,$V1138-4,0)&\"\")","v":""},{"$f":"IF(ISERROR($V1138),\"\",OFFSET('Smelter Look-up'!$E$4,$V1138-4,0))","v":""},{"$f":"IF(C1138=$X$4,\"Enter smelter details\", IF(ISERROR($V1138),\"\",OFFSET('Smelter Look-up'!$F$4,$V1138-4,0)))","v":""},{"$f":"IF(ISERROR($V1138),\"\",OFFSET('Smelter Look-up'!$G$4,$V1138-4,0))","v":""},{"$f":"IF(ISERROR($V1138),\"\",OFFSET('Smelter Look-up'!$H$4,$V1138-4,0))","v":""},{"$f":"IF(ISERROR($V1138),\"\",OFFSET('Smelter Look-up'!$I$4,$V1138-4,0))","v":""},{"$nulls":7},{"$f":"IF(ISERROR($V1138),\"\",OFFSET('Smelter Look-up'!$C$4,$V1138-4,0)&\"\")","v":""},"",{"$f":"IF(B1138=\"\",\"\",IF(ISERROR(MATCH($J1138,SorP!$B$1:$B$6230,0)),\"\",INDIRECT(\"'SorP'!$A$\"&MATCH($J1138,SorP!$B$1:$B$6230,0))))","v":""},null,{"$f":"IF(C1138=\"\",NA(),MATCH($B1138&$C1138,'Smelter Look-up'!$J:$J,0))","v":{"$error":"#N/A"}},null,0,null,null,null,""]
[null,{"$f":"IF(LEN(A1139)=0,\"\",INDEX('Smelter Look-up'!$A:$A,MATCH($A1139,'Smelter Look-up'!$E:$E,0)))","v":""},{"$f":"IF(LEN(A1139)=0,\"\",INDEX('Smelter Look-up'!$C:$C,MATCH($A1139,'Smelter Look-up'!$E:$E,0)))","v":""},null,{"$f":"IF(ISERROR($V1139),\"\",OFFSET('Smelter Look-up'!$D$4,$V1139-4,0)&\"\")","v":""},{"$f":"IF(ISERROR($V1139),\"\",OFFSET('Smelter Look-up'!$E$4,$V1139-4,0))","v":""},{"$f":"IF(C1139=$X$4,\"Enter smelter details\", IF(ISERROR($V1139),\"\",OFFSET('Smelter Look-up'!$F$4,$V1139-4,0)))","v":""},{"$f":"IF(ISERROR($V1139),\"\",OFFSET('Smelter Look-up'!$G$4,$V1139-4,0))","v":""},{"$f":"IF(ISERROR($V1139),\"\",OFFSET('Smelter Look-up'!$H$4,$V1139-4,0))","v":""},{"$f":"IF(ISERROR($V1139),\"\",OFFSET('Smelter Look-up'!$I$4,$V1139-4,0))","v":""},{"$nulls":7},{"$f":"IF(ISERROR($V1139),\"\",OFFSET('Smelter Look-up'!$C$4,$V1139-4,0)&\"\")","v":""},"",{"$f":"IF(B1139=\"\",\"\",IF(ISERROR(MATCH($J1139,SorP!$B$1:$B$6230,0)),\"\",INDIRECT(\"'SorP'!$A$\"&MATCH($J1139,SorP!$B$1:$B$6230,0))))","v":""},null,{"$f":"IF(C1139=\"\",NA(),MATCH($B1139&$C1139,'Smelter Look-up'!$J:$J,0))","v":{"$error":"#N/A"}},null,0,null,null,null,""]
[null,{"$f":"IF(LEN(A1140)=0,\"\",INDEX('Smelter Look-up'!$A:$A,MATCH($A1140,'Smelter Look-up'!$E:$E,0)))","v":""},{"$f":"IF(LEN(A1140)=0,\"\",INDEX('Smelter Look-up'!$C:$C,MATCH($A1140,'Smelter Look-up'!$E:$E,0)))","v":""},null,{"$f":"IF(ISERROR($V1140),\"\",OFFSET('Smelter Look-up'!$D$4,$V1140-4,0)&\"\")","v":""},{"$f":"IF(ISERROR($V1140),\"\",OFFSET('Smelter Look-up'!$E$4,$V1140-4,0))","v":""},{"$f":"IF(C1140=$X$4,\"Enter smelter details\", IF(ISERROR($V1140),\"\",OFFSET('Smelter Look-up'!$F$4,$V1140-4,0)))","v":""},{"$f":"IF(ISERROR($V1140),\"\",OFFSET('Smelter Look-up'!$G$4,$V1140-4,0))","v":""},{"$f":"IF(ISERROR($V1140),\"\",OFFSET('Smelter Look-up'!$H$4,$V1140-4,0))","v":""},{"$f":"IF(ISERROR($V1140),\"\",OFFSET('Smelter Look-up'!$I$4,$V1140-4,0))","v":""},{"$nulls":7},{"$f":"IF(ISERROR($V1140),\"\",OFFSET('Smelter Look-up'!$C$4,$V1140-4,0)&\"\")","v":""},"",{"$f":"IF(B1140=\"\",\"\",IF(ISERROR(MATCH($J1140,SorP!$B$1:$B$6230,0)),\"\",INDIRECT(\"'SorP'!$A$\"&MATCH($J1140,SorP!$B$1:$B$6230,0))))","v":""},null,{"$f":"IF(C1140=\"\",NA(),MATCH($B1140&$C1140,'Smelter Look-up'!$J:$J,0))","v":{"$error":"#N/A"}},null,0,null,null,null,""]
[null,{"$f":"IF(LEN(A1141)=0,\"\",INDEX('Smelter Look-up'!$A:$A,MATCH($A1141,'Smelter Look-up'!$E:$E,0)))","v":""},{"$f":"IF(LEN(A1141)=0,\"\",INDEX('Smelter Look-up'!$C:$C,MATCH($A1141,'Smelter Look-up'!$E:$E,0)))","v":""},null,{"$f":"IF(ISERROR($V1141),\"\",OFFSET('Smelter Look-up'!$D$4,$V1141-4,0)&\"\")","v":""},{"$f":"IF(ISERROR($V1141),\"\",OFFSET('Smelter Look-up'!$E$4,$V1141-4,0))","v":""},{"$f":"IF(C1141=$X$4,\"Enter smelter details\", IF(ISERROR($V1141),\"\",OFFSET('Smelter Look-up'!$F$4,$V1141-4,0)))","v":""},{"$f":"IF(ISERROR($V1141),\"\",OFFSET('Smelter Look-up'!$G$4,$V1141-4,0))","v":""},{"$f":"IF(ISERROR($V1141),\"\",OFFSET('Smelter Look-up'!$H$4,$V1141-4,0))","v":""},{"$f":"IF(ISERROR($V1141),\"\",OFFSET('Smelter Look-up'!$I$4,$V1141-4,0))","v":""},{"$nulls":7},{"$f":"IF(ISERROR($V1141),\"\",OFFSET('Smelter Look-up'!$C$4,$V1141-4,0)&\"\")","v":""},"",{"$f":"IF(B1141=\"\",\"\",IF(ISERROR(MATCH($J1141,SorP!$B$1:$B$6230,0)),\"\",INDIRECT(\"'SorP'!$A$\"&MATCH($J1141,SorP!$B$1:$B$6230,0))))","v":""},null,{"$f":"IF(C1141=\"\",NA(),MATCH($B1141&$C1141,'Smelter Look-up'!$J:$J,0))","v":{"$error":"#N/A"}},null,0,null,null,null,""]
[null,{"$f":"IF(LEN(A1142)=0,\"\",INDEX('Smelter Look-up'!$A:$A,MATCH($A1142,'Smelter Look-up'!$E:$E,0)))","v":""},{"$f":"IF(LEN(A1142)=0,\"\",INDEX('Smelter Look-up'!$C:$C,MATCH($A1142,'Smelter Look-up'!$E:$E,0)))","v":""},null,{"$f":"IF(ISERROR($V1142),\"\",OFFSET('Smelter Look-up'!$D$4,$V1142-4,0)&\"\")","v":""},{"$f":"IF(ISERROR($V1142),\"\",OFFSET('Smelter Look-up'!$E$4,$V1142-4,0))","v":""},{"$f":"IF(C1142=$X$4,\"Enter smelter details\", IF(ISERROR($V1142),\"\",OFFSET('Smelter Look-up'!$F$4,$V1142-4,0)))","v":""},{"$f":"IF(ISERROR($V1142),\"\",OFFSET('Smelter Look-up'!$G$4,$V1142-4,0))","v":""},{"$f":"IF(ISERROR($V1142),\"\",OFFSET('Smelter Look-up'!$H$4,$V1142-4,0))","v":""},{"$f":"IF(ISERROR($V1142),\"\",OFFSET('Smelter Look-up'!$I$4,$V1142-4,0))","v":""},{"$nulls":7},{"$f":"IF(ISERROR($V1142),\"\",OFFSET('Smelter Look-up'!$C$4,$V1142-4,0)&\"\")","v":""},"",{"$f":"IF(B1142=\"\",\"\",IF(ISERROR(MATCH($J1142,SorP!$B$1:$B$6230,0)),\"\",INDIRECT(\"'SorP'!$A$\"&MATCH($J1142,SorP!$B$1:$B$6230,0))))","v":""},null,{"$f":"IF(C1142=\"\",NA(),MATCH($B1142&$C1142,'Smelter Look-up'!$J:$J,0))","v":{"$error":"#N/A"}},null,0,null,null,null,""]
[null,{"$f":"IF(LEN(A1143)=0,\"\",INDEX('Smelter Look-up'!$A:$A,MATCH($A1143,'Smelter Look-up'!$E:$E,0)))","v":""},{"$f":"IF(LEN(A1143)=0,\"\",INDEX('Smelter Look-up'!$C:$C,MATCH($A1143,'Smelter Look-up'!$E:$E,0)))","v":""},null,{"$f":"IF(ISERROR($V1143),\"\",OFFSET('Smelter Look-up'!$D$4,$V1143-4,0)&\"\")","v":""},{"$f":"IF(ISERROR($V1143),\"\",OFFSET('Smelter Look-up'!$E$4,$V1143-4,0))","v":""},{"$f":"IF(C1143=$X$4,\"Enter smelter details\", IF(ISERROR($V1143),\"\",OFFSET('Smelter Look-up'!$F$4,$V1143-4,0)))","v":""},{"$f":"IF(ISERROR($V1143),\"\",OFFSET('Smelter Look-up'!$G$4,$V1143-4,0))","v":""},{"$f":"IF(ISERROR($V1143),\"\",OFFSET('Smelter Look-up'!$H$4,$V1143-4,0))","v":""},{"$f":"IF(ISERROR($V1143),\"\",OFFSET('Smelter Look-up'!$I$4,$V1143-4,0))","v":""},{"$nulls":7},{"$f":"IF(ISERROR($V1143),\"\",OFFSET('Smelter Look-up'!$C$4,$V1143-4,0)&\"\")","v":""},"",{"$f":"IF(B1143=\"\",\"\",IF(ISERROR(MATCH($J1143,SorP!$B$1:$B$6230,0)),\"\",INDIRECT(\"'SorP'!$A$\"&MATCH($J1143,SorP!$B$1:$B$6230,0))))","v":""},null,{"$f":"IF(C1143=\"\",NA(),MATCH($B1143&$C1143,'Smelter Look-up'!$J:$J,0))","v":{"$error":"#N/A"}},null,0,null,null,null,""]
[null,{"$f":"IF(LEN(A1144)=0,\"\",INDEX('Smelter Look-up'!$A:$A,MATCH($A1144,'Smelter Look-up'!$E:$E,0)))","v":""},{"$f":"IF(LEN(A1144)=0,\"\",INDEX('Smelter Look-up'!$C:$C,MATCH($A1144,'Smelter Look-up'!$E:$E,0)))","v":""},null,{"$f":"IF(ISERROR($V1144),\"\",OFFSET('Smelter Look-up'!$D$4,$V1144-4,0)&\"\")","v":""},{"$f":"IF(ISERROR($V1144),\"\",OFFSET('Smelter Look-up'!$E$4,$V1144-4,0))","v":""},{"$f":"IF(C1144=$X$4,\"Enter smelter details\", IF(ISERROR($V1144),\"\",OFFSET('Smelter Look-up'!$F$4,$V1144-4,0)))","v":""},{"$f":"IF(ISERROR($V1144),\"\",OFFSET('Smelter Look-up'!$G$4,$V1144-4,0))","v":""},{"$f":"IF(ISERROR($V1144),\"\",OFFSET('Smelter Look-up'!$H$4,$V1144-4,0))","v":""},{"$f":"IF(ISERROR($V1144),\"\",OFFSET('Smelter Look-up'!$I$4,$V1144-4,0))","v":""},{"$nulls":7},{"$f":"IF(ISERROR($V1144),\"\",OFFSET('Smelter Look-up'!$C$4,$V1144-4,0)&\"\")","v":""},"",{"$f":"IF(B1144=\"\",\"\",IF(ISERROR(MATCH($J1144,SorP!$B$1:$B$6230,0)),\"\",INDIRECT(\"'SorP'!$A$\"&MATCH($J1144,SorP!$B$1:$B$6230,0))))","v":""},null,{"$f":"IF(C1144=\"\",NA(),MATCH($B1144&$C1144,'Smelter Look-up'!$J:$J,0))","v":{"$error":"#N/A"}},null,0,null,null,null,""]
[null,{"$f":"IF(LEN(A1145)=0,\"\",INDEX('Smelter Look-up'!$A:$A,MATCH($A1145,'Smelter Look-up'!$E:$E,0)))","v":""},{"$f":"IF(LEN(A1145)=0,\"\",INDEX('Smelter Look-up'!$C:$C,MATCH($A1145,'Smelter Look-up'!$E:$E,0)))","v":""},null,{"$f":"IF(ISERROR($V1145),\"\",OFFSET('Smelter Look-up'!$D$4,$V1145-4,0)&\"\")","v":""},{"$f":"IF(ISERROR($V1145),\"\",OFFSET('Smelter Look-up'!$E$4,$V1145-4,0))","v":""},{"$f":"IF(C1145=$X$4,\"Enter smelter details\", IF(ISERROR($V1145),\"\",OFFSET('Smelter Look-up'!$F$4,$V1145-4,0)))","v":""},{"$f":"IF(ISERROR($V1145),\"\",OFFSET('Smelter Look-up'!$G$4,$V1145-4,0))","v":""},{"$f":"IF(ISERROR($V1145),\"\",OFFSET('Smelter Look-up'!$H$4,$V1145-4,0))","v":""},{"$f":"IF(ISERROR($V1145),\"\",OFFSET('Smelter Look-up'!$I$4,$V1145-4,0))","v":""},{"$nulls":7},{"$f":"IF(ISERROR($V1145),\"\",OFFSET('Smelter Look-up'!$C$4,$V1145-4,0)&\"\")","v":""},"",{"$f":"IF(B1145=\"\",\"\",IF(ISERROR(MATCH($J1145,SorP!$B$1:$B$6230,0)),\"\",INDIRECT(\"'SorP'!$A$\"&MATCH($J1145,SorP!$B$1:$B$6230,0))))","v":""},null,{"$f":"IF(C1145=\"\",NA(),MATCH($B1145&$C1145,'Smelter Look-up'!$J:$J,0))","v":{"$error":"#N/A"}},null,0,null,null,null,""]
[null,{"$f":"IF(LEN(A1146)=0,\"\",INDEX('Smelter Look-up'!$A:$A,MATCH($A1146,'Smelter Look-up'!$E:$E,0)))","v":""},{"$f":"IF(LEN(A1146)=0,\"\",INDEX('Smelter Look-up'!$C:$C,MATCH($A1146,'Smelter Look-up'!$E:$E,0)))","v":""},null,{"$f":"IF(ISERROR($V1146),\"\",OFFSET('Smelter Look-up'!$D$4,$V1146-4,0)&\"\")","v":""},{"$f":"IF(ISERROR($V1146),\"\",OFFSET('Smelter Look-up'!$E$4,$V1146-4,0))","v":""},{"$f":"IF(C1146=$X$4,\"Enter smelter details\", IF(ISERROR($V1146),\"\",OFFSET('Smelter Look-up'!$F$4,$V1146-4,0)))","v":""},{"$f":"IF(ISERROR($V1146),\"\",OFFSET('Smelter Look-up'!$G$4,$V1146-4,0))","v":""},{"$f":"IF(ISERROR($V1146),\"\",OFFSET('Smelter Look-up'!$H$4,$V1146-4,0))","v":""},{"$f":"IF(ISERROR($V1146),\"\",OFFSET('Smelter Look-up'!$I$4,$V1146-4,0))","v":""},{"$nulls":7},{"$f":"IF(ISERROR($V1146),\"\",OFFSET('Smelter Look-up'!$C$4,$V1146-4,0)&\"\")","v":""},"",{"$f":"IF(B1146=\"\",\"\",IF(ISERROR(MATCH($J1146,SorP!$B$1:$B$6230,0)),\"\",INDIRECT(\"'SorP'!$A$\"&MATCH($J1146,SorP!$B$1:$B$6230,0))))","v":""},null,{"$f":"IF(C1146=\"\",NA(),MATCH($B1146&$C1146,'Smelter Look-up'!$J:$J,0))","v":{"$error":"#N/A"}},null,0,null,null,null,""]
[null,{"$f":"IF(LEN(A1147)=0,\"\",INDEX('Smelter Look-up'!$A:$A,MATCH($A1147,'Smelter Look-up'!$E:$E,0)))","v":""},{"$f":"IF(LEN(A1147)=0,\"\",INDEX('Smelter Look-up'!$C:$C,MATCH($A1147,'Smelter Look-up'!$E:$E,0)))","v":""},null,{"$f":"IF(ISERROR($V1147),\"\",OFFSET('Smelter Look-up'!$D$4,$V1147-4,0)&\"\")","v":""},{"$f":"IF(ISERROR($V1147),\"\",OFFSET('Smelter Look-up'!$E$4,$V1147-4,0))","v":""},{"$f":"IF(C1147=$X$4,\"Enter smelter details\", IF(ISERROR($V1147),\"\",OFFSET('Smelter Look-up'!$F$4,$V1147-4,0)))","v":""},{"$f":"IF(ISERROR($V1147),\"\",OFFSET('Smelter Look-up'!$G$4,$V1147-4,0))","v":""},{"$f":"IF(ISERROR($V1147),\"\",OFFSET('Smelter Look-up'!$H$4,$V1147-4,0))","v":""},{"$f":"IF(ISERROR($V1147),\"\",OFFSET('Smelter Look-up'!$I$4,$V1147-4,0))","v":""},{"$nulls":7},{"$f":"IF(ISERROR($V1147),\"\",OFFSET('Smelter Look-up'!$C$4,$V1147-4,0)&\"\")","v":""},{"$f":"IF(B1147=\"\",\"\",IF(ISERROR(MATCH($E1147,CL,0)),\"Unknown\",INDIRECT(\"'C'!$A$\"&MATCH($E1147,CL,0)+1)))","v":""},{"$f":"IF(B1147=\"\",\"\",IF(ISERROR(MATCH($J1147,SorP!$B$1:$B$6230,0)),\"\",INDIRECT(\"'SorP'!$A$\"&MATCH($J1147,SorP!$B$1:$B$6230,0))))","v":""},null,{"$f":"IF(C1147=\"\",NA(),MATCH($B1147&$C1147,'Smelter Look-up'!$J:$J,0))","v":{"$error":"#N/A"}},null,{"$f":"IF(AND(C1147=\"Smelter not listed\",OR(LEN(D1147)=0,LEN(E1147)=0)),1,0)","v":0},null,null,null,{"$f":"B1147&C1147","v":""}]
[null,{"$f":"IF(LEN(A1148)=0,\"\",INDEX('Smelter Look-up'!$A:$A,MATCH($A1148,'Smelter Look-up'!$E:$E,0)))","v":""},{"$f":"IF(LEN(A1148)=0,\"\",INDEX('Smelter Look-up'!$C:$C,MATCH($A1148,'Smelter Look-up'!$E:$E,0)))","v":""},null,{"$f":"IF(ISERROR($V1148),\"\",OFFSET('Smelter Look-up'!$D$4,$V1148-4,0)&\"\")","v":""},{"$f":"IF(ISERROR($V1148),\"\",OFFSET('Smelter Look-up'!$E$4,$V1148-4,0))","v":""},{"$f":"IF(C1148=$X$4,\"Enter smelter details\", IF(ISERROR($V1148),\"\",OFFSET('Smelter Look-up'!$F$4,$V1148-4,0)))","v":""},{"$f":"IF(ISERROR($V1148),\"\",OFFSET('Smelter Look-up'!$G$4,$V1148-4,0))","v":""},{"$f":"IF(ISERROR($V1148),\"\",OFFSET('Smelter Look-up'!$H$4,$V1148-4,0))","v":""},{"$f":"IF(ISERROR($V1148),\"\",OFFSET('Smelter Look-up'!$I$4,$V1148-4,0))","v":""},{"$nulls":7},{"$f":"IF(ISERROR($V1148),\"\",OFFSET('Smelter Look-up'!$C$4,$V1148-4,0)&\"\")","v":""},"",{"$f":"IF(B1148=\"\",\"\",IF(ISERROR(MATCH($J1148,SorP!$B$1:$B$6230,0)),\"\",INDIRECT(\"'SorP'!$A$\"&MATCH($J1148,SorP!$B$1:$B$6230,0))))","v":""},null,{"$f":"IF(C1148=\"\",NA(),MATCH($B1148&$C1148,'Smelter Look-up'!$J:$J,0))","v":{"$error":"#N/A"}},null,0,null,null,null,""]
[null,{"$f":"IF(LEN(A1149)=0,\"\",INDEX('Smelter Look-up'!$A:$A,MATCH($A1149,'Smelter Look-up'!$E:$E,0)))","v":""},{"$f":"IF(LEN(A1149)=0,\"\",INDEX('Smelter Look-up'!$C:$C,MATCH($A1149,'Smelter Look-up'!$E:$E,0)))","v":""},null,{"$f":"IF(ISERROR($V1149),\"\",OFFSET('Smelter Look-up'!$D$4,$V1149-4,0)&\"\")","v":""},{"$f":"IF(ISERROR($V1149),\"\",OFFSET('Smelter Look-up'!$E$4,$V1149-4,0))","v":""},{"$f":"IF(C1149=$X$4,\"Enter smelter details\", IF(ISERROR($V1149),\"\",OFFSET('Smelter Look-up'!$F$4,$V1149-4,0)))","v":""},{"$f":"IF(ISERROR($V1149),\"\",OFFSET('Smelter Look-up'!$G$4,$V1149-4,0))","v":""},{"$f":"IF(ISERROR($V1149),\"\",OFFSET('Smelter Look-up'!$H$4,$V1149-4,0))","v":""},{"$f":"IF(ISERROR($V1149),\"\",OFFSET('Smelter Look-up'!$I$4,$V1149-4,0))","v":""},{"$nulls":7},{"$f":"IF(ISERROR($V1149),\"\",OFFSET('Smelter Look-up'!$C$4,$V1149-4,0)&\"\")","v":""},"",{"$f":"IF(B1149=\"\",\"\",IF(ISERROR(MATCH($J1149,SorP!$B$1:$B$6230,0)),\"\",INDIRECT(\"'SorP'!$A$\"&MATCH($J1149,SorP!$B$1:$B$6230,0))))","v":""},null,{"$f":"IF(C1149=\"\",NA(),MATCH($B1149&$C1149,'Smelter Look-up'!$J:$J,0))","v":{"$error":"#N/A"}},null,0,null,null,null,""]
[null,{"$f":"IF(LEN(A1150)=0,\"\",INDEX('Smelter Look-up'!$A:$A,MATCH($A1150,'Smelter Look-up'!$E:$E,0)))","v":""},{"$f":"IF(LEN(A1150)=0,\"\",INDEX('Smelter Look-up'!$C:$C,MATCH($A1150,'Smelter Look-up'!$E:$E,0)))","v":""},null,{"$f":"IF(ISERROR($V1150),\"\",OFFSET('Smelter Look-up'!$D$4,$V1150-4,0)&\"\")","v":""},{"$f":"IF(ISERROR($V1150),\"\",OFFSET('Smelter Look-up'!$E$4,$V1150-4,0))","v":""},{"$f":"IF(C1150=$X$4,\"Enter smelter details\", IF(ISERROR($V1150),\"\",OFFSET('Smelter Look-up'!$F$4,$V1150-4,0)))","v":""},{"$f":"IF(ISERROR($V1150),\"\",OFFSET('Smelter Look-up'!$G$4,$V1150-4,0))","v":""},{"$f":"IF(ISERROR($V1150),\"\",OFFSET('Smelter Look-up'!$H$4,$V1150-4,0))","v":""},{"$f":"IF(ISERROR($V1150),\"\",OFFSET('Smelter Look-up'!$I$4,$V1150-4,0))","v":""},{"$nulls":7},{"$f":"IF(ISERROR($V1150),\"\",OFFSET('Smelter Look-up'!$C$4,$V1150-4,0)&\"\")","v":""},"",{"$f":"IF(B1150=\"\",\"\",IF(ISERROR(MATCH($J1150,SorP!$B$1:$B$6230,0)),\"\",INDIRECT(\"'SorP'!$A$\"&MATCH($J1150,SorP!$B$1:$B$6230,0))))","v":""},null,{"$f":"IF(C1150=\"\",NA(),MATCH($B1150&$C1150,'Smelter Look-up'!$J:$J,0))","v":{"$error":"#N/A"}},null,0,null,null,null,""]
[null,{"$f":"IF(LEN(A1151)=0,\"\",INDEX('Smelter Look-up'!$A:$A,MATCH($A1151,'Smelter Look-up'!$E:$E,0)))","v":""},{"$f":"IF(LEN(A1151)=0,\"\",INDEX('Smelter Look-up'!$C:$C,MATCH($A1151,'Smelter Look-up'!$E:$E,0)))","v":""},null,{"$f":"IF(ISERROR($V1151),\"\",OFFSET('Smelter Look-up'!$D$4,$V1151-4,0)&\"\")","v":""},{"$f":"IF(ISERROR($V1151),\"\",OFFSET('Smelter Look-up'!$E$4,$V1151-4,0))","v":""},{"$f":"IF(C1151=$X$4,\"Enter smelter details\", IF(ISERROR($V1151),\"\",OFFSET('Smelter Look-up'!$F$4,$V1151-4,0)))","v":""},{"$f":"IF(ISERROR($V1151),\"\",OFFSET('Smelter Look-up'!$G$4,$V1151-4,0))","v":""},{"$f":"IF(ISERROR($V1151),\"\",OFFSET('Smelter Look-up'!$H$4,$V1151-4,0))","v":""},{"$f":"IF(ISERROR($V1151),\"\",OFFSET('Smelter Look-up'!$I$4,$V1151-4,0))","v":""},{"$nulls":7},{"$f":"IF(ISERROR($V1151),\"\",OFFSET('Smelter Look-up'!$C$4,$V1151-4,0)&\"\")","v":""},"",{"$f":"IF(B1151=\"\",\"\",IF(ISERROR(MATCH($J1151,SorP!$B$1:$B$6230,0)),\"\",INDIRECT(\"'SorP'!$A$\"&MATCH($J1151,SorP!$B$1:$B$6230,0))))","v":""},null,{"$f":"IF(C1151=\"\",NA(),MATCH($B1151&$C1151,'Smelter Look-up'!$J:$J,0))","v":{"$error":"#N/A"}},null,0,null,null,null,""]
[null,{"$f":"IF(LEN(A1152)=0,\"\",INDEX('Smelter Look-up'!$A:$A,MATCH($A1152,'Smelter Look-up'!$E:$E,0)))","v":""},{"$f":"IF(LEN(A1152)=0,\"\",INDEX('Smelter Look-up'!$C:$C,MATCH($A1152,'Smelter Look-up'!$E:$E,0)))","v":""},null,{"$f":"IF(ISERROR($V1152),\"\",OFFSET('Smelter Look-up'!$D$4,$V1152-4,0)&\"\")","v":""},{"$f":"IF(ISERROR($V1152),\"\",OFFSET('Smelter Look-up'!$E$4,$V1152-4,0))","v":""},{"$f":"IF(C1152=$X$4,\"Enter smelter details\", IF(ISERROR($V1152),\"\",OFFSET('Smelter Look-up'!$F$4,$V1152-4,0)))","v":""},{"$f":"IF(ISERROR($V1152),\"\",OFFSET('Smelter Look-up'!$G$4,$V1152-4,0))","v":""},{"$f":"IF(ISERROR($V1152),\"\",OFFSET('Smelter Look-up'!$H$4,$V1152-4,0))","v":""},{"$f":"IF(ISERROR($V1152),\"\",OFFSET('Smelter Look-up'!$I$4,$V1152-4,0))","v":""},{"$nulls":7},{"$f":"IF(ISERROR($V1152),\"\",OFFSET('Smelter Look-up'!$C$4,$V1152-4,0)&\"\")","v":""},"",{"$f":"IF(B1152=\"\",\"\",IF(ISERROR(MATCH($J1152,SorP!$B$1:$B$6230,0)),\"\",INDIRECT(\"'SorP'!$A$\"&MATCH($J1152,SorP!$B$1:$B$6230,0))))","v":""},null,{"$f":"IF(C1152=\"\",NA(),MATCH($B1152&$C1152,'Smelter Look-up'!$J:$J,0))","v":{"$error":"#N/A"}},null,0,null,null,null,""]
[null,{"$f":"IF(LEN(A1153)=0,\"\",INDEX('Smelter Look-up'!$A:$A,MATCH($A1153,'Smelter Look-up'!$E:$E,0)))","v":""},{"$f":"IF(LEN(A1153)=0,\"\",INDEX('Smelter Look-up'!$C:$C,MATCH($A1153,'Smelter Look-up'!$E:$E,0)))","v":""},null,{"$f":"IF(ISERROR($V1153),\"\",OFFSET('Smelter Look-up'!$D$4,$V1153-4,0)&\"\")","v":""},{"$f":"IF(ISERROR($V1153),\"\",OFFSET('Smelter Look-up'!$E$4,$V1153-4,0))","v":""},{"$f":"IF(C1153=$X$4,\"Enter smelter details\", IF(ISERROR($V1153),\"\",OFFSET('Smelter Look-up'!$F$4,$V1153-4,0)))","v":""},{"$f":"IF(ISERROR($V1153),\"\",OFFSET('Smelter Look-up'!$G$4,$V1153-4,0))","v":""},{"$f":"IF(ISERROR($V1153),\"\",OFFSET('Smelter Look-up'!$H$4,$V1153-4,0))","v":""},{"$f":"IF(ISERROR($V1153),\"\",OFFSET('Smelter Look-up'!$I$4,$V1153-4,0))","v":""},{"$nulls":7},{"$f":"IF(ISERROR($V1153),\"\",OFFSET('Smelter Look-up'!$C$4,$V1153-4,0)&\"\")","v":""},"",{"$f":"IF(B1153=\"\",\"\",IF(ISERROR(MATCH($J1153,SorP!$B$1:$B$6230,0)),\"\",INDIRECT(\"'SorP'!$A$\"&MATCH($J1153,SorP!$B$1:$B$6230,0))))","v":""},null,{"$f":"IF(C1153=\"\",NA(),MATCH($B1153&$C1153,'Smelter Look-up'!$J:$J,0))","v":{"$error":"#N/A"}},null,0,null,null,null,""]
[null,{"$f":"IF(LEN(A1154)=0,\"\",INDEX('Smelter Look-up'!$A:$A,MATCH($A1154,'Smelter Look-up'!$E:$E,0)))","v":""},{"$f":"IF(LEN(A1154)=0,\"\",INDEX('Smelter Look-up'!$C:$C,MATCH($A1154,'Smelter Look-up'!$E:$E,0)))","v":""},null,{"$f":"IF(ISERROR($V1154),\"\",OFFSET('Smelter Look-up'!$D$4,$V1154-4,0)&\"\")","v":""},{"$f":"IF(ISERROR($V1154),\"\",OFFSET('Smelter Look-up'!$E$4,$V1154-4,0))","v":""},{"$f":"IF(C1154=$X$4,\"Enter smelter details\", IF(ISERROR($V1154),\"\",OFFSET('Smelter Look-up'!$F$4,$V1154-4,0)))","v":""},{"$f":"IF(ISERROR($V1154),\"\",OFFSET('Smelter Look-up'!$G$4,$V1154-4,0))","v":""},{"$f":"IF(ISERROR($V1154),\"\",OFFSET('Smelter Look-up'!$H$4,$V1154-4,0))","v":""},{"$f":"IF(ISERROR($V1154),\"\",OFFSET('Smelter Look-up'!$I$4,$V1154-4,0))","v":""},{"$nulls":7},{"$f":"IF(ISERROR($V1154),\"\",OFFSET('Smelter Look-up'!$C$4,$V1154-4,0)&\"\")","v":""},"",{"$f":"IF(B1154=\"\",\"\",IF(ISERROR(MATCH($J1154,SorP!$B$1:$B$6230,0)),\"\",INDIRECT(\"'SorP'!$A$\"&MATCH($J1154,SorP!$B$1:$B$6230,0))))","v":""},null,{"$f":"IF(C1154=\"\",NA(),MATCH($B1154&$C1154,'Smelter Look-up'!$J:$J,0))","v":{"$error":"#N/A"}},null,0,null,null,null,""]
[null,{"$f":"IF(LEN(A1155)=0,\"\",INDEX('Smelter Look-up'!$A:$A,MATCH($A1155,'Smelter Look-up'!$E:$E,0)))","v":""},{"$f":"IF(LEN(A1155)=0,\"\",INDEX('Smelter Look-up'!$C:$C,MATCH($A1155,'Smelter Look-up'!$E:$E,0)))","v":""},null,{"$f":"IF(ISERROR($V1155),\"\",OFFSET('Smelter Look-up'!$D$4,$V1155-4,0)&\"\")","v":""},{"$f":"IF(ISERROR($V1155),\"\",OFFSET('Smelter Look-up'!$E$4,$V1155-4,0))","v":""},{"$f":"IF(C1155=$X$4,\"Enter smelter details\", IF(ISERROR($V1155),\"\",OFFSET('Smelter Look-up'!$F$4,$V1155-4,0)))","v":""},{"$f":"IF(ISERROR($V1155),\"\",OFFSET('Smelter Look-up'!$G$4,$V1155-4,0))","v":""},{"$f":"IF(ISERROR($V1155),\"\",OFFSET('Smelter Look-up'!$H$4,$V1155-4,0))","v":""},{"$f":"IF(ISERROR($V1155),\"\",OFFSET('Smelter Look-up'!$I$4,$V1155-4,0))","v":""},{"$nulls":7},{"$f":"IF(ISERROR($V1155),\"\",OFFSET('Smelter Look-up'!$C$4,$V1155-4,0)&\"\")","v":""},"",{"$f":"IF(B1155=\"\",\"\",IF(ISERROR(MATCH($J1155,SorP!$B$1:$B$6230,0)),\"\",INDIRECT(\"'SorP'!$A$\"&MATCH($J1155,SorP!$B$1:$B$6230,0))))","v":""},null,{"$f":"IF(C1155=\"\",NA(),MATCH($B1155&$C1155,'Smelter Look-up'!$J:$J,0))","v":{"$error":"#N/A"}},null,0,null,null,null,""]
[null,{"$f":"IF(LEN(A1156)=0,\"\",INDEX('Smelter Look-up'!$A:$A,MATCH($A1156,'Smelter Look-up'!$E:$E,0)))","v":""},{"$f":"IF(LEN(A1156)=0,\"\",INDEX('Smelter Look-up'!$C:$C,MATCH($A1156,'Smelter Look-up'!$E:$E,0)))","v":""},null,{"$f":"IF(ISERROR($V1156),\"\",OFFSET('Smelter Look-up'!$D$4,$V1156-4,0)&\"\")","v":""},{"$f":"IF(ISERROR($V1156),\"\",OFFSET('Smelter Look-up'!$E$4,$V1156-4,0))","v":""},{"$f":"IF(C1156=$X$4,\"Enter smelter details\", IF(ISERROR($V1156),\"\",OFFSET('Smelter Look-up'!$F$4,$V1156-4,0)))","v":""},{"$f":"IF(ISERROR($V1156),\"\",OFFSET('Smelter Look-up'!$G$4,$V1156-4,0))","v":""},{"$f":"IF(ISERROR($V1156),\"\",OFFSET('Smelter Look-up'!$H$4,$V1156-4,0))","v":""},{"$f":"IF(ISERROR($V1156),\"\",OFFSET('Smelter Look-up'!$I$4,$V1156-4,0))","v":""},{"$nulls":7},{"$f":"IF(ISERROR($V1156),\"\",OFFSET('Smelter Look-up'!$C$4,$V1156-4,0)&\"\")","v":""},"",{"$f":"IF(B1156=\"\",\"\",IF(ISERROR(MATCH($J1156,SorP!$B$1:$B$6230,0)),\"\",INDIRECT(\"'SorP'!$A$\"&MATCH($J1156,SorP!$B$1:$B$6230,0))))","v":""},null,{"$f":"IF(C1156=\"\",NA(),MATCH($B1156&$C1156,'Smelter Look-up'!$J:$J,0))","v":{"$error":"#N/A"}},null,0,null,null,null,""]
[null,{"$f":"IF(LEN(A1157)=0,\"\",INDEX('Smelter Look-up'!$A:$A,MATCH($A1157,'Smelter Look-up'!$E:$E,0)))","v":""},{"$f":"IF(LEN(A1157)=0,\"\",INDEX('Smelter Look-up'!$C:$C,MATCH($A1157,'Smelter Look-up'!$E:$E,0)))","v":""},null,{"$f":"IF(ISERROR($V1157),\"\",OFFSET('Smelter Look-up'!$D$4,$V1157-4,0)&\"\")","v":""},{"$f":"IF(ISERROR($V1157),\"\",OFFSET('Smelter Look-up'!$E$4,$V1157-4,0))","v":""},{"$f":"IF(C1157=$X$4,\"Enter smelter details\", IF(ISERROR($V1157),\"\",OFFSET('Smelter Look-up'!$F$4,$V1157-4,0)))","v":""},{"$f":"IF(ISERROR($V1157),\"\",OFFSET('Smelter Look-up'!$G$4,$V1157-4,0))","v":""},{"$f":"IF(ISERROR($V1157),\"\",OFFSET('Smelter Look-up'!$H$4,$V1157-4,0))","v":""},{"$f":"IF(ISERROR($V1157),\"\",OFFSET('Smelter Look-up'!$I$4,$V1157-4,0))","v":""},{"$nulls":7},{"$f":"IF(ISERROR($V1157),\"\",OFFSET('Smelter Look-up'!$C$4,$V1157-4,0)&\"\")","v":""},"",{"$f":"IF(B1157=\"\",\"\",IF(ISERROR(MATCH($J1157,SorP!$B$1:$B$6230,0)),\"\",INDIRECT(\"'SorP'!$A$\"&MATCH($J1157,SorP!$B$1:$B$6230,0))))","v":""},null,{"$f":"IF(C1157=\"\",NA(),MATCH($B1157&$C1157,'Smelter Look-up'!$J:$J,0))","v":{"$error":"#N/A"}},null,0,null,null,null,""]
[null,{"$f":"IF(LEN(A1158)=0,\"\",INDEX('Smelter Look-up'!$A:$A,MATCH($A1158,'Smelter Look-up'!$E:$E,0)))","v":""},{"$f":"IF(LEN(A1158)=0,\"\",INDEX('Smelter Look-up'!$C:$C,MATCH($A1158,'Smelter Look-up'!$E:$E,0)))","v":""},null,{"$f":"IF(ISERROR($V1158),\"\",OFFSET('Smelter Look-up'!$D$4,$V1158-4,0)&\"\")","v":""},{"$f":"IF(ISERROR($V1158),\"\",OFFSET('Smelter Look-up'!$E$4,$V1158-4,0))","v":""},{"$f":"IF(C1158=$X$4,\"Enter smelter details\", IF(ISERROR($V1158),\"\",OFFSET('Smelter Look-up'!$F$4,$V1158-4,0)))","v":""},{"$f":"IF(ISERROR($V1158),\"\",OFFSET('Smelter Look-up'!$G$4,$V1158-4,0))","v":""},{"$f":"IF(ISERROR($V1158),\"\",OFFSET('Smelter Look-up'!$H$4,$V1158-4,0))","v":""},{"$f":"IF(ISERROR($V1158),\"\",OFFSET('Smelter Look-up'!$I$4,$V1158-4,0))","v":""},{"$nulls":7},{"$f":"IF(ISERROR($V1158),\"\",OFFSET('Smelter Look-up'!$C$4,$V1158-4,0)&\"\")","v":""},"",{"$f":"IF(B1158=\"\",\"\",IF(ISERROR(MATCH($J1158,SorP!$B$1:$B$6230,0)),\"\",INDIRECT(\"'SorP'!$A$\"&MATCH($J1158,SorP!$B$1:$B$6230,0))))","v":""},null,{"$f":"IF(C1158=\"\",NA(),MATCH($B1158&$C1158,'Smelter Look-up'!$J:$J,0))","v":{"$error":"#N/A"}},null,0,null,null,null,""]
[null,{"$f":"IF(LEN(A1159)=0,\"\",INDEX('Smelter Look-up'!$A:$A,MATCH($A1159,'Smelter Look-up'!$E:$E,0)))","v":""},{"$f":"IF(LEN(A1159)=0,\"\",INDEX('Smelter Look-up'!$C:$C,MATCH($A1159,'Smelter Look-up'!$E:$E,0)))","v":""},null,{"$f":"IF(ISERROR($V1159),\"\",OFFSET('Smelter Look-up'!$D$4,$V1159-4,0)&\"\")","v":""},{"$f":"IF(ISERROR($V1159),\"\",OFFSET('Smelter Look-up'!$E$4,$V1159-4,0))","v":""},{"$f":"IF(C1159=$X$4,\"Enter smelter details\", IF(ISERROR($V1159),\"\",OFFSET('Smelter Look-up'!$F$4,$V1159-4,0)))","v":""},{"$f":"IF(ISERROR($V1159),\"\",OFFSET('Smelter Look-up'!$G$4,$V1159-4,0))","v":""},{"$f":"IF(ISERROR($V1159),\"\",OFFSET('Smelter Look-up'!$H$4,$V1159-4,0))","v":""},{"$f":"IF(ISERROR($V1159),\"\",OFFSET('Smelter Look-up'!$I$4,$V1159-4,0))","v":""},{"$nulls":7},{"$f":"IF(ISERROR($V1159),\"\",OFFSET('Smelter Look-up'!$C$4,$V1159-4,0)&\"\")","v":""},"",{"$f":"IF(B1159=\"\",\"\",IF(ISERROR(MATCH($J1159,SorP!$B$1:$B$6230,0)),\"\",INDIRECT(\"'SorP'!$A$\"&MATCH($J1159,SorP!$B$1:$B$6230,0))))","v":""},null,{"$f":"IF(C1159=\"\",NA(),MATCH($B1159&$C1159,'Smelter Look-up'!$J:$J,0))","v":{"$error":"#N/A"}},null,0,null,null,null,""]
[null,{"$f":"IF(LEN(A1160)=0,\"\",INDEX('Smelter Look-up'!$A:$A,MATCH($A1160,'Smelter Look-up'!$E:$E,0)))","v":""},{"$f":"IF(LEN(A1160)=0,\"\",INDEX('Smelter Look-up'!$C:$C,MATCH($A1160,'Smelter Look-up'!$E:$E,0)))","v":""},null,{"$f":"IF(ISERROR($V1160),\"\",OFFSET('Smelter Look-up'!$D$4,$V1160-4,0)&\"\")","v":""},{"$f":"IF(ISERROR($V1160),\"\",OFFSET('Smelter Look-up'!$E$4,$V1160-4,0))","v":""},{"$f":"IF(C1160=$X$4,\"Enter smelter details\", IF(ISERROR($V1160),\"\",OFFSET('Smelter Look-up'!$F$4,$V1160-4,0)))","v":""},{"$f":"IF(ISERROR($V1160),\"\",OFFSET('Smelter Look-up'!$G$4,$V1160-4,0))","v":""},{"$f":"IF(ISERROR($V1160),\"\",OFFSET('Smelter Look-up'!$H$4,$V1160-4,0))","v":""},{"$f":"IF(ISERROR($V1160),\"\",OFFSET('Smelter Look-up'!$I$4,$V1160-4,0))","v":""},{"$nulls":7},{"$f":"IF(ISERROR($V1160),\"\",OFFSET('Smelter Look-up'!$C$4,$V1160-4,0)&\"\")","v":""},"",{"$f":"IF(B1160=\"\",\"\",IF(ISERROR(MATCH($J1160,SorP!$B$1:$B$6230,0)),\"\",INDIRECT(\"'SorP'!$A$\"&MATCH($J1160,SorP!$B$1:$B$6230,0))))","v":""},null,{"$f":"IF(C1160=\"\",NA(),MATCH($B1160&$C1160,'Smelter Look-up'!$J:$J,0))","v":{"$error":"#N/A"}},null,0,null,null,null,""]
[null,{"$f":"IF(LEN(A1161)=0,\"\",INDEX('Smelter Look-up'!$A:$A,MATCH($A1161,'Smelter Look-up'!$E:$E,0)))","v":""},{"$f":"IF(LEN(A1161)=0,\"\",INDEX('Smelter Look-up'!$C:$C,MATCH($A1161,'Smelter Look-up'!$E:$E,0)))","v":""},null,{"$f":"IF(ISERROR($V1161),\"\",OFFSET('Smelter Look-up'!$D$4,$V1161-4,0)&\"\")","v":""},{"$f":"IF(ISERROR($V1161),\"\",OFFSET('Smelter Look-up'!$E$4,$V1161-4,0))","v":""},{"$f":"IF(C1161=$X$4,\"Enter smelter details\", IF(ISERROR($V1161),\"\",OFFSET('Smelter Look-up'!$F$4,$V1161-4,0)))","v":""},{"$f":"IF(ISERROR($V1161),\"\",OFFSET('Smelter Look-up'!$G$4,$V1161-4,0))","v":""},{"$f":"IF(ISERROR($V1161),\"\",OFFSET('Smelter Look-up'!$H$4,$V1161-4,0))","v":""},{"$f":"IF(ISERROR($V1161),\"\",OFFSET('Smelter Look-up'!$I$4,$V1161-4,0))","v":""},{"$nulls":7},{"$f":"IF(ISERROR($V1161),\"\",OFFSET('Smelter Look-up'!$C$4,$V1161-4,0)&\"\")","v":""},"",{"$f":"IF(B1161=\"\",\"\",IF(ISERROR(MATCH($J1161,SorP!$B$1:$B$6230,0)),\"\",INDIRECT(\"'SorP'!$A$\"&MATCH($J1161,SorP!$B$1:$B$6230,0))))","v":""},null,{"$f":"IF(C1161=\"\",NA(),MATCH($B1161&$C1161,'Smelter Look-up'!$J:$J,0))","v":{"$error":"#N/A"}},null,0,null,null,null,""]
[null,{"$f":"IF(LEN(A1162)=0,\"\",INDEX('Smelter Look-up'!$A:$A,MATCH($A1162,'Smelter Look-up'!$E:$E,0)))","v":""},{"$f":"IF(LEN(A1162)=0,\"\",INDEX('Smelter Look-up'!$C:$C,MATCH($A1162,'Smelter Look-up'!$E:$E,0)))","v":""},null,{"$f":"IF(ISERROR($V1162),\"\",OFFSET('Smelter Look-up'!$D$4,$V1162-4,0)&\"\")","v":""},{"$f":"IF(ISERROR($V1162),\"\",OFFSET('Smelter Look-up'!$E$4,$V1162-4,0))","v":""},{"$f":"IF(C1162=$X$4,\"Enter smelter details\", IF(ISERROR($V1162),\"\",OFFSET('Smelter Look-up'!$F$4,$V1162-4,0)))","v":""},{"$f":"IF(ISERROR($V1162),\"\",OFFSET('Smelter Look-up'!$G$4,$V1162-4,0))","v":""},{"$f":"IF(ISERROR($V1162),\"\",OFFSET('Smelter Look-up'!$H$4,$V1162-4,0))","v":""},{"$f":"IF(ISERROR($V1162),\"\",OFFSET('Smelter Look-up'!$I$4,$V1162-4,0))","v":""},{"$nulls":7},{"$f":"IF(ISERROR($V1162),\"\",OFFSET('Smelter Look-up'!$C$4,$V1162-4,0)&\"\")","v":""},"",{"$f":"IF(B1162=\"\",\"\",IF(ISERROR(MATCH($J1162,SorP!$B$1:$B$6230,0)),\"\",INDIRECT(\"'SorP'!$A$\"&MATCH($J1162,SorP!$B$1:$B$6230,0))))","v":""},null,{"$f":"IF(C1162=\"\",NA(),MATCH($B1162&$C1162,'Smelter Look-up'!$J:$J,0))","v":{"$error":"#N/A"}},null,0,null,null,null,""]
[null,{"$f":"IF(LEN(A1163)=0,\"\",INDEX('Smelter Look-up'!$A:$A,MATCH($A1163,'Smelter Look-up'!$E:$E,0)))","v":""},{"$f":"IF(LEN(A1163)=0,\"\",INDEX('Smelter Look-up'!$C:$C,MATCH($A1163,'Smelter Look-up'!$E:$E,0)))","v":""},null,{"$f":"IF(ISERROR($V1163),\"\",OFFSET('Smelter Look-up'!$D$4,$V1163-4,0)&\"\")","v":""},{"$f":"IF(ISERROR($V1163),\"\",OFFSET('Smelter Look-up'!$E$4,$V1163-4,0))","v":""},{"$f":"IF(C1163=$X$4,\"Enter smelter details\", IF(ISERROR($V1163),\"\",OFFSET('Smelter Look-up'!$F$4,$V1163-4,0)))","v":""},{"$f":"IF(ISERROR($V1163),\"\",OFFSET('Smelter Look-up'!$G$4,$V1163-4,0))","v":""},{"$f":"IF(ISERROR($V1163),\"\",OFFSET('Smelter Look-up'!$H$4,$V1163-4,0))","v":""},{"$f":"IF(ISERROR($V1163),\"\",OFFSET('Smelter Look-up'!$I$4,$V1163-4,0))","v":""},{"$nulls":7},{"$f":"IF(ISERROR($V1163),\"\",OFFSET('Smelter Look-up'!$C$4,$V1163-4,0)&\"\")","v":""},"",{"$f":"IF(B1163=\"\",\"\",IF(ISERROR(MATCH($J1163,SorP!$B$1:$B$6230,0)),\"\",INDIRECT(\"'SorP'!$A$\"&MATCH($J1163,SorP!$B$1:$B$6230,0))))","v":""},null,{"$f":"IF(C1163=\"\",NA(),MATCH($B1163&$C1163,'Smelter Look-up'!$J:$J,0))","v":{"$error":"#N/A"}},null,0,null,null,null,""]
[null,{"$f":"IF(LEN(A1164)=0,\"\",INDEX('Smelter Look-up'!$A:$A,MATCH($A1164,'Smelter Look-up'!$E:$E,0)))","v":""},{"$f":"IF(LEN(A1164)=0,\"\",INDEX('Smelter Look-up'!$C:$C,MATCH($A1164,'Smelter Look-up'!$E:$E,0)))","v":""},null,{"$f":"IF(ISERROR($V1164),\"\",OFFSET('Smelter Look-up'!$D$4,$V1164-4,0)&\"\")","v":""},{"$f":"IF(ISERROR($V1164),\"\",OFFSET('Smelter Look-up'!$E$4,$V1164-4,0))","v":""},{"$f":"IF(C1164=$X$4,\"Enter smelter details\", IF(ISERROR($V1164),\"\",OFFSET('Smelter Look-up'!$F$4,$V1164-4,0)))","v":""},{"$f":"IF(ISERROR($V1164),\"\",OFFSET('Smelter Look-up'!$G$4,$V1164-4,0))","v":""},{"$f":"IF(ISERROR($V1164),\"\",OFFSET('Smelter Look-up'!$H$4,$V1164-4,0))","v":""},{"$f":"IF(ISERROR($V1164),\"\",OFFSET('Smelter Look-up'!$I$4,$V1164-4,0))","v":""},{"$nulls":7},{"$f":"IF(ISERROR($V1164),\"\",OFFSET('Smelter Look-up'!$C$4,$V1164-4,0)&\"\")","v":""},"",{"$f":"IF(B1164=\"\",\"\",IF(ISERROR(MATCH($J1164,SorP!$B$1:$B$6230,0)),\"\",INDIRECT(\"'SorP'!$A$\"&MATCH($J1164,SorP!$B$1:$B$6230,0))))","v":""},null,{"$f":"IF(C1164=\"\",NA(),MATCH($B1164&$C1164,'Smelter Look-up'!$J:$J,0))","v":{"$error":"#N/A"}},null,0,null,null,null,""]
[null,{"$f":"IF(LEN(A1165)=0,\"\",INDEX('Smelter Look-up'!$A:$A,MATCH($A1165,'Smelter Look-up'!$E:$E,0)))","v":""},{"$f":"IF(LEN(A1165)=0,\"\",INDEX('Smelter Look-up'!$C:$C,MATCH($A1165,'Smelter Look-up'!$E:$E,0)))","v":""},null,{"$f":"IF(ISERROR($V1165),\"\",OFFSET('Smelter Look-up'!$D$4,$V1165-4,0)&\"\")","v":""},{"$f":"IF(ISERROR($V1165),\"\",OFFSET('Smelter Look-up'!$E$4,$V1165-4,0))","v":""},{"$f":"IF(C1165=$X$4,\"Enter smelter details\", IF(ISERROR($V1165),\"\",OFFSET('Smelter Look-up'!$F$4,$V1165-4,0)))","v":""},{"$f":"IF(ISERROR($V1165),\"\",OFFSET('Smelter Look-up'!$G$4,$V1165-4,0))","v":""},{"$f":"IF(ISERROR($V1165),\"\",OFFSET('Smelter Look-up'!$H$4,$V1165-4,0))","v":""},{"$f":"IF(ISERROR($V1165),\"\",OFFSET('Smelter Look-up'!$I$4,$V1165-4,0))","v":""},{"$nulls":7},{"$f":"IF(ISERROR($V1165),\"\",OFFSET('Smelter Look-up'!$C$4,$V1165-4,0)&\"\")","v":""},"",{"$f":"IF(B1165=\"\",\"\",IF(ISERROR(MATCH($J1165,SorP!$B$1:$B$6230,0)),\"\",INDIRECT(\"'SorP'!$A$\"&MATCH($J1165,SorP!$B$1:$B$6230,0))))","v":""},null,{"$f":"IF(C1165=\"\",NA(),MATCH($B1165&$C1165,'Smelter Look-up'!$J:$J,0))","v":{"$error":"#N/A"}},null,0,null,null,null,""]
[null,{"$f":"IF(LEN(A1166)=0,\"\",INDEX('Smelter Look-up'!$A:$A,MATCH($A1166,'Smelter Look-up'!$E:$E,0)))","v":""},{"$f":"IF(LEN(A1166)=0,\"\",INDEX('Smelter Look-up'!$C:$C,MATCH($A1166,'Smelter Look-up'!$E:$E,0)))","v":""},null,{"$f":"IF(ISERROR($V1166),\"\",OFFSET('Smelter Look-up'!$D$4,$V1166-4,0)&\"\")","v":""},{"$f":"IF(ISERROR($V1166),\"\",OFFSET('Smelter Look-up'!$E$4,$V1166-4,0))","v":""},{"$f":"IF(C1166=$X$4,\"Enter smelter details\", IF(ISERROR($V1166),\"\",OFFSET('Smelter Look-up'!$F$4,$V1166-4,0)))","v":""},{"$f":"IF(ISERROR($V1166),\"\",OFFSET('Smelter Look-up'!$G$4,$V1166-4,0))","v":""},{"$f":"IF(ISERROR($V1166),\"\",OFFSET('Smelter Look-up'!$H$4,$V1166-4,0))","v":""},{"$f":"IF(ISERROR($V1166),\"\",OFFSET('Smelter Look-up'!$I$4,$V1166-4,0))","v":""},{"$nulls":7},{"$f":"IF(ISERROR($V1166),\"\",OFFSET('Smelter Look-up'!$C$4,$V1166-4,0)&\"\")","v":""},"",{"$f":"IF(B1166=\"\",\"\",IF(ISERROR(MATCH($J1166,SorP!$B$1:$B$6230,0)),\"\",INDIRECT(\"'SorP'!$A$\"&MATCH($J1166,SorP!$B$1:$B$6230,0))))","v":""},null,{"$f":"IF(C1166=\"\",NA(),MATCH($B1166&$C1166,'Smelter Look-up'!$J:$J,0))","v":{"$error":"#N/A"}},null,0,null,null,null,""]
[null,{"$f":"IF(LEN(A1167)=0,\"\",INDEX('Smelter Look-up'!$A:$A,MATCH($A1167,'Smelter Look-up'!$E:$E,0)))","v":""},{"$f":"IF(LEN(A1167)=0,\"\",INDEX('Smelter Look-up'!$C:$C,MATCH($A1167,'Smelter Look-up'!$E:$E,0)))","v":""},null,{"$f":"IF(ISERROR($V1167),\"\",OFFSET('Smelter Look-up'!$D$4,$V1167-4,0)&\"\")","v":""},{"$f":"IF(ISERROR($V1167),\"\",OFFSET('Smelter Look-up'!$E$4,$V1167-4,0))","v":""},{"$f":"IF(C1167=$X$4,\"Enter smelter details\", IF(ISERROR($V1167),\"\",OFFSET('Smelter Look-up'!$F$4,$V1167-4,0)))","v":""},{"$f":"IF(ISERROR($V1167),\"\",OFFSET('Smelter Look-up'!$G$4,$V1167-4,0))","v":""},{"$f":"IF(ISERROR($V1167),\"\",OFFSET('Smelter Look-up'!$H$4,$V1167-4,0))","v":""},{"$f":"IF(ISERROR($V1167),\"\",OFFSET('Smelter Look-up'!$I$4,$V1167-4,0))","v":""},{"$nulls":7},{"$f":"IF(ISERROR($V1167),\"\",OFFSET('Smelter Look-up'!$C$4,$V1167-4,0)&\"\")","v":""},"",{"$f":"IF(B1167=\"\",\"\",IF(ISERROR(MATCH($J1167,SorP!$B$1:$B$6230,0)),\"\",INDIRECT(\"'SorP'!$A$\"&MATCH($J1167,SorP!$B$1:$B$6230,0))))","v":""},null,{"$f":"IF(C1167=\"\",NA(),MATCH($B1167&$C1167,'Smelter Look-up'!$J:$J,0))","v":{"$error":"#N/A"}},null,0,null,null,null,""]
[null,{"$f":"IF(LEN(A1168)=0,\"\",INDEX('Smelter Look-up'!$A:$A,MATCH($A1168,'Smelter Look-up'!$E:$E,0)))","v":""},{"$f":"IF(LEN(A1168)=0,\"\",INDEX('Smelter Look-up'!$C:$C,MATCH($A1168,'Smelter Look-up'!$E:$E,0)))","v":""},null,{"$f":"IF(ISERROR($V1168),\"\",OFFSET('Smelter Look-up'!$D$4,$V1168-4,0)&\"\")","v":""},{"$f":"IF(ISERROR($V1168),\"\",OFFSET('Smelter Look-up'!$E$4,$V1168-4,0))","v":""},{"$f":"IF(C1168=$X$4,\"Enter smelter details\", IF(ISERROR($V1168),\"\",OFFSET('Smelter Look-up'!$F$4,$V1168-4,0)))","v":""},{"$f":"IF(ISERROR($V1168),\"\",OFFSET('Smelter Look-up'!$G$4,$V1168-4,0))","v":""},{"$f":"IF(ISERROR($V1168),\"\",OFFSET('Smelter Look-up'!$H$4,$V1168-4,0))","v":""},{"$f":"IF(ISERROR($V1168),\"\",OFFSET('Smelter Look-up'!$I$4,$V1168-4,0))","v":""},{"$nulls":7},{"$f":"IF(ISERROR($V1168),\"\",OFFSET('Smelter Look-up'!$C$4,$V1168-4,0)&\"\")","v":""},"",{"$f":"IF(B1168=\"\",\"\",IF(ISERROR(MATCH($J1168,SorP!$B$1:$B$6230,0)),\"\",INDIRECT(\"'SorP'!$A$\"&MATCH($J1168,SorP!$B$1:$B$6230,0))))","v":""},null,{"$f":"IF(C1168=\"\",NA(),MATCH($B1168&$C1168,'Smelter Look-up'!$J:$J,0))","v":{"$error":"#N/A"}},null,0,null,null,null,""]
[null,{"$f":"IF(LEN(A1169)=0,\"\",INDEX('Smelter Look-up'!$A:$A,MATCH($A1169,'Smelter Look-up'!$E:$E,0)))","v":""},{"$f":"IF(LEN(A1169)=0,\"\",INDEX('Smelter Look-up'!$C:$C,MATCH($A1169,'Smelter Look-up'!$E:$E,0)))","v":""},null,{"$f":"IF(ISERROR($V1169),\"\",OFFSET('Smelter Look-up'!$D$4,$V1169-4,0)&\"\")","v":""},{"$f":"IF(ISERROR($V1169),\"\",OFFSET('Smelter Look-up'!$E$4,$V1169-4,0))","v":""},{"$f":"IF(C1169=$X$4,\"Enter smelter details\", IF(ISERROR($V1169),\"\",OFFSET('Smelter Look-up'!$F$4,$V1169-4,0)))","v":""},{"$f":"IF(ISERROR($V1169),\"\",OFFSET('Smelter Look-up'!$G$4,$V1169-4,0))","v":""},{"$f":"IF(ISERROR($V1169),\"\",OFFSET('Smelter Look-up'!$H$4,$V1169-4,0))","v":""},{"$f":"IF(ISERROR($V1169),\"\",OFFSET('Smelter Look-up'!$I$4,$V1169-4,0))","v":""},{"$nulls":7},{"$f":"IF(ISERROR($V1169),\"\",OFFSET('Smelter Look-up'!$C$4,$V1169-4,0)&\"\")","v":""},"",{"$f":"IF(B1169=\"\",\"\",IF(ISERROR(MATCH($J1169,SorP!$B$1:$B$6230,0)),\"\",INDIRECT(\"'SorP'!$A$\"&MATCH($J1169,SorP!$B$1:$B$6230,0))))","v":""},null,{"$f":"IF(C1169=\"\",NA(),MATCH($B1169&$C1169,'Smelter Look-up'!$J:$J,0))","v":{"$error":"#N/A"}},null,0,null,null,null,""]
[null,{"$f":"IF(LEN(A1170)=0,\"\",INDEX('Smelter Look-up'!$A:$A,MATCH($A1170,'Smelter Look-up'!$E:$E,0)))","v":""},{"$f":"IF(LEN(A1170)=0,\"\",INDEX('Smelter Look-up'!$C:$C,MATCH($A1170,'Smelter Look-up'!$E:$E,0)))","v":""},null,{"$f":"IF(ISERROR($V1170),\"\",OFFSET('Smelter Look-up'!$D$4,$V1170-4,0)&\"\")","v":""},{"$f":"IF(ISERROR($V1170),\"\",OFFSET('Smelter Look-up'!$E$4,$V1170-4,0))","v":""},{"$f":"IF(C1170=$X$4,\"Enter smelter details\", IF(ISERROR($V1170),\"\",OFFSET('Smelter Look-up'!$F$4,$V1170-4,0)))","v":""},{"$f":"IF(ISERROR($V1170),\"\",OFFSET('Smelter Look-up'!$G$4,$V1170-4,0))","v":""},{"$f":"IF(ISERROR($V1170),\"\",OFFSET('Smelter Look-up'!$H$4,$V1170-4,0))","v":""},{"$f":"IF(ISERROR($V1170),\"\",OFFSET('Smelter Look-up'!$I$4,$V1170-4,0))","v":""},{"$nulls":7},{"$f":"IF(ISERROR($V1170),\"\",OFFSET('Smelter Look-up'!$C$4,$V1170-4,0)&\"\")","v":""},"",{"$f":"IF(B1170=\"\",\"\",IF(ISERROR(MATCH($J1170,SorP!$B$1:$B$6230,0)),\"\",INDIRECT(\"'SorP'!$A$\"&MATCH($J1170,SorP!$B$1:$B$6230,0))))","v":""},null,{"$f":"IF(C1170=\"\",NA(),MATCH($B1170&$C1170,'Smelter Look-up'!$J:$J,0))","v":{"$error":"#N/A"}},null,0,null,null,null,""]
[null,{"$f":"IF(LEN(A1171)=0,\"\",INDEX('Smelter Look-up'!$A:$A,MATCH($A1171,'Smelter Look-up'!$E:$E,0)))","v":""},{"$f":"IF(LEN(A1171)=0,\"\",INDEX('Smelter Look-up'!$C:$C,MATCH($A1171,'Smelter Look-up'!$E:$E,0)))","v":""},null,{"$f":"IF(ISERROR($V1171),\"\",OFFSET('Smelter Look-up'!$D$4,$V1171-4,0)&\"\")","v":""},{"$f":"IF(ISERROR($V1171),\"\",OFFSET('Smelter Look-up'!$E$4,$V1171-4,0))","v":""},{"$f":"IF(C1171=$X$4,\"Enter smelter details\", IF(ISERROR($V1171),\"\",OFFSET('Smelter Look-up'!$F$4,$V1171-4,0)))","v":""},{"$f":"IF(ISERROR($V1171),\"\",OFFSET('Smelter Look-up'!$G$4,$V1171-4,0))","v":""},{"$f":"IF(ISERROR($V1171),\"\",OFFSET('Smelter Look-up'!$H$4,$V1171-4,0))","v":""},{"$f":"IF(ISERROR($V1171),\"\",OFFSET('Smelter Look-up'!$I$4,$V1171-4,0))","v":""},{"$nulls":7},{"$f":"IF(ISERROR($V1171),\"\",OFFSET('Smelter Look-up'!$C$4,$V1171-4,0)&\"\")","v":""},"",{"$f":"IF(B1171=\"\",\"\",IF(ISERROR(MATCH($J1171,SorP!$B$1:$B$6230,0)),\"\",INDIRECT(\"'SorP'!$A$\"&MATCH($J1171,SorP!$B$1:$B$6230,0))))","v":""},null,{"$f":"IF(C1171=\"\",NA(),MATCH($B1171&$C1171,'Smelter Look-up'!$J:$J,0))","v":{"$error":"#N/A"}},null,0,null,null,null,""]
[null,{"$f":"IF(LEN(A1172)=0,\"\",INDEX('Smelter Look-up'!$A:$A,MATCH($A1172,'Smelter Look-up'!$E:$E,0)))","v":""},{"$f":"IF(LEN(A1172)=0,\"\",INDEX('Smelter Look-up'!$C:$C,MATCH($A1172,'Smelter Look-up'!$E:$E,0)))","v":""},null,{"$f":"IF(ISERROR($V1172),\"\",OFFSET('Smelter Look-up'!$D$4,$V1172-4,0)&\"\")","v":""},{"$f":"IF(ISERROR($V1172),\"\",OFFSET('Smelter Look-up'!$E$4,$V1172-4,0))","v":""},{"$f":"IF(C1172=$X$4,\"Enter smelter details\", IF(ISERROR($V1172),\"\",OFFSET('Smelter Look-up'!$F$4,$V1172-4,0)))","v":""},{"$f":"IF(ISERROR($V1172),\"\",OFFSET('Smelter Look-up'!$G$4,$V1172-4,0))","v":""},{"$f":"IF(ISERROR($V1172),\"\",OFFSET('Smelter Look-up'!$H$4,$V1172-4,0))","v":""},{"$f":"IF(ISERROR($V1172),\"\",OFFSET('Smelter Look-up'!$I$4,$V1172-4,0))","v":""},{"$nulls":7},{"$f":"IF(ISERROR($V1172),\"\",OFFSET('Smelter Look-up'!$C$4,$V1172-4,0)&\"\")","v":""},"",{"$f":"IF(B1172=\"\",\"\",IF(ISERROR(MATCH($J1172,SorP!$B$1:$B$6230,0)),\"\",INDIRECT(\"'SorP'!$A$\"&MATCH($J1172,SorP!$B$1:$B$6230,0))))","v":""},null,{"$f":"IF(C1172=\"\",NA(),MATCH($B1172&$C1172,'Smelter Look-up'!$J:$J,0))","v":{"$error":"#N/A"}},null,0,null,null,null,""]
[null,{"$f":"IF(LEN(A1173)=0,\"\",INDEX('Smelter Look-up'!$A:$A,MATCH($A1173,'Smelter Look-up'!$E:$E,0)))","v":""},{"$f":"IF(LEN(A1173)=0,\"\",INDEX('Smelter Look-up'!$C:$C,MATCH($A1173,'Smelter Look-up'!$E:$E,0)))","v":""},null,{"$f":"IF(ISERROR($V1173),\"\",OFFSET('Smelter Look-up'!$D$4,$V1173-4,0)&\"\")","v":""},{"$f":"IF(ISERROR($V1173),\"\",OFFSET('Smelter Look-up'!$E$4,$V1173-4,0))","v":""},{"$f":"IF(C1173=$X$4,\"Enter smelter details\", IF(ISERROR($V1173),\"\",OFFSET('Smelter Look-up'!$F$4,$V1173-4,0)))","v":""},{"$f":"IF(ISERROR($V1173),\"\",OFFSET('Smelter Look-up'!$G$4,$V1173-4,0))","v":""},{"$f":"IF(ISERROR($V1173),\"\",OFFSET('Smelter Look-up'!$H$4,$V1173-4,0))","v":""},{"$f":"IF(ISERROR($V1173),\"\",OFFSET('Smelter Look-up'!$I$4,$V1173-4,0))","v":""},{"$nulls":7},{"$f":"IF(ISERROR($V1173),\"\",OFFSET('Smelter Look-up'!$C$4,$V1173-4,0)&\"\")","v":""},"",{"$f":"IF(B1173=\"\",\"\",IF(ISERROR(MATCH($J1173,SorP!$B$1:$B$6230,0)),\"\",INDIRECT(\"'SorP'!$A$\"&MATCH($J1173,SorP!$B$1:$B$6230,0))))","v":""},null,{"$f":"IF(C1173=\"\",NA(),MATCH($B1173&$C1173,'Smelter Look-up'!$J:$J,0))","v":{"$error":"#N/A"}},null,0,null,null,null,""]
[null,{"$f":"IF(LEN(A1174)=0,\"\",INDEX('Smelter Look-up'!$A:$A,MATCH($A1174,'Smelter Look-up'!$E:$E,0)))","v":""},{"$f":"IF(LEN(A1174)=0,\"\",INDEX('Smelter Look-up'!$C:$C,MATCH($A1174,'Smelter Look-up'!$E:$E,0)))","v":""},null,{"$f":"IF(ISERROR($V1174),\"\",OFFSET('Smelter Look-up'!$D$4,$V1174-4,0)&\"\")","v":""},{"$f":"IF(ISERROR($V1174),\"\",OFFSET('Smelter Look-up'!$E$4,$V1174-4,0))","v":""},{"$f":"IF(C1174=$X$4,\"Enter smelter details\", IF(ISERROR($V1174),\"\",OFFSET('Smelter Look-up'!$F$4,$V1174-4,0)))","v":""},{"$f":"IF(ISERROR($V1174),\"\",OFFSET('Smelter Look-up'!$G$4,$V1174-4,0))","v":""},{"$f":"IF(ISERROR($V1174),\"\",OFFSET('Smelter Look-up'!$H$4,$V1174-4,0))","v":""},{"$f":"IF(ISERROR($V1174),\"\",OFFSET('Smelter Look-up'!$I$4,$V1174-4,0))","v":""},{"$nulls":7},{"$f":"IF(ISERROR($V1174),\"\",OFFSET('Smelter Look-up'!$C$4,$V1174-4,0)&\"\")","v":""},"",{"$f":"IF(B1174=\"\",\"\",IF(ISERROR(MATCH($J1174,SorP!$B$1:$B$6230,0)),\"\",INDIRECT(\"'SorP'!$A$\"&MATCH($J1174,SorP!$B$1:$B$6230,0))))","v":""},null,{"$f":"IF(C1174=\"\",NA(),MATCH($B1174&$C1174,'Smelter Look-up'!$J:$J,0))","v":{"$error":"#N/A"}},null,0,null,null,null,""]
[null,{"$f":"IF(LEN(A1175)=0,\"\",INDEX('Smelter Look-up'!$A:$A,MATCH($A1175,'Smelter Look-up'!$E:$E,0)))","v":""},{"$f":"IF(LEN(A1175)=0,\"\",INDEX('Smelter Look-up'!$C:$C,MATCH($A1175,'Smelter Look-up'!$E:$E,0)))","v":""},null,{"$f":"IF(ISERROR($V1175),\"\",OFFSET('Smelter Look-up'!$D$4,$V1175-4,0)&\"\")","v":""},{"$f":"IF(ISERROR($V1175),\"\",OFFSET('Smelter Look-up'!$E$4,$V1175-4,0))","v":""},{"$f":"IF(C1175=$X$4,\"Enter smelter details\", IF(ISERROR($V1175),\"\",OFFSET('Smelter Look-up'!$F$4,$V1175-4,0)))","v":""},{"$f":"IF(ISERROR($V1175),\"\",OFFSET('Smelter Look-up'!$G$4,$V1175-4,0))","v":""},{"$f":"IF(ISERROR($V1175),\"\",OFFSET('Smelter Look-up'!$H$4,$V1175-4,0))","v":""},{"$f":"IF(ISERROR($V1175),\"\",OFFSET('Smelter Look-up'!$I$4,$V1175-4,0))","v":""},{"$nulls":7},{"$f":"IF(ISERROR($V1175),\"\",OFFSET('Smelter Look-up'!$C$4,$V1175-4,0)&\"\")","v":""},"",{"$f":"IF(B1175=\"\",\"\",IF(ISERROR(MATCH($J1175,SorP!$B$1:$B$6230,0)),\"\",INDIRECT(\"'SorP'!$A$\"&MATCH($J1175,SorP!$B$1:$B$6230,0))))","v":""},null,{"$f":"IF(C1175=\"\",NA(),MATCH($B1175&$C1175,'Smelter Look-up'!$J:$J,0))","v":{"$error":"#N/A"}},null,0,null,null,null,""]
[null,{"$f":"IF(LEN(A1176)=0,\"\",INDEX('Smelter Look-up'!$A:$A,MATCH($A1176,'Smelter Look-up'!$E:$E,0)))","v":""},{"$f":"IF(LEN(A1176)=0,\"\",INDEX('Smelter Look-up'!$C:$C,MATCH($A1176,'Smelter Look-up'!$E:$E,0)))","v":""},null,{"$f":"IF(ISERROR($V1176),\"\",OFFSET('Smelter Look-up'!$D$4,$V1176-4,0)&\"\")","v":""},{"$f":"IF(ISERROR($V1176),\"\",OFFSET('Smelter Look-up'!$E$4,$V1176-4,0))","v":""},{"$f":"IF(C1176=$X$4,\"Enter smelter details\", IF(ISERROR($V1176),\"\",OFFSET('Smelter Look-up'!$F$4,$V1176-4,0)))","v":""},{"$f":"IF(ISERROR($V1176),\"\",OFFSET('Smelter Look-up'!$G$4,$V1176-4,0))","v":""},{"$f":"IF(ISERROR($V1176),\"\",OFFSET('Smelter Look-up'!$H$4,$V1176-4,0))","v":""},{"$f":"IF(ISERROR($V1176),\"\",OFFSET('Smelter Look-up'!$I$4,$V1176-4,0))","v":""},{"$nulls":7},{"$f":"IF(ISERROR($V1176),\"\",OFFSET('Smelter Look-up'!$C$4,$V1176-4,0)&\"\")","v":""},"",{"$f":"IF(B1176=\"\",\"\",IF(ISERROR(MATCH($J1176,SorP!$B$1:$B$6230,0)),\"\",INDIRECT(\"'SorP'!$A$\"&MATCH($J1176,SorP!$B$1:$B$6230,0))))","v":""},null,{"$f":"IF(C1176=\"\",NA(),MATCH($B1176&$C1176,'Smelter Look-up'!$J:$J,0))","v":{"$error":"#N/A"}},null,0,null,null,null,""]
[null,{"$f":"IF(LEN(A1177)=0,\"\",INDEX('Smelter Look-up'!$A:$A,MATCH($A1177,'Smelter Look-up'!$E:$E,0)))","v":""},{"$f":"IF(LEN(A1177)=0,\"\",INDEX('Smelter Look-up'!$C:$C,MATCH($A1177,'Smelter Look-up'!$E:$E,0)))","v":""},null,{"$f":"IF(ISERROR($V1177),\"\",OFFSET('Smelter Look-up'!$D$4,$V1177-4,0)&\"\")","v":""},{"$f":"IF(ISERROR($V1177),\"\",OFFSET('Smelter Look-up'!$E$4,$V1177-4,0))","v":""},{"$f":"IF(C1177=$X$4,\"Enter smelter details\", IF(ISERROR($V1177),\"\",OFFSET('Smelter Look-up'!$F$4,$V1177-4,0)))","v":""},{"$f":"IF(ISERROR($V1177),\"\",OFFSET('Smelter Look-up'!$G$4,$V1177-4,0))","v":""},{"$f":"IF(ISERROR($V1177),\"\",OFFSET('Smelter Look-up'!$H$4,$V1177-4,0))","v":""},{"$f":"IF(ISERROR($V1177),\"\",OFFSET('Smelter Look-up'!$I$4,$V1177-4,0))","v":""},{"$nulls":7},{"$f":"IF(ISERROR($V1177),\"\",OFFSET('Smelter Look-up'!$C$4,$V1177-4,0)&\"\")","v":""},"",{"$f":"IF(B1177=\"\",\"\",IF(ISERROR(MATCH($J1177,SorP!$B$1:$B$6230,0)),\"\",INDIRECT(\"'SorP'!$A$\"&MATCH($J1177,SorP!$B$1:$B$6230,0))))","v":""},null,{"$f":"IF(C1177=\"\",NA(),MATCH($B1177&$C1177,'Smelter Look-up'!$J:$J,0))","v":{"$error":"#N/A"}},null,0,null,null,null,""]
[null,{"$f":"IF(LEN(A1178)=0,\"\",INDEX('Smelter Look-up'!$A:$A,MATCH($A1178,'Smelter Look-up'!$E:$E,0)))","v":""},{"$f":"IF(LEN(A1178)=0,\"\",INDEX('Smelter Look-up'!$C:$C,MATCH($A1178,'Smelter Look-up'!$E:$E,0)))","v":""},null,{"$f":"IF(ISERROR($V1178),\"\",OFFSET('Smelter Look-up'!$D$4,$V1178-4,0)&\"\")","v":""},{"$f":"IF(ISERROR($V1178),\"\",OFFSET('Smelter Look-up'!$E$4,$V1178-4,0))","v":""},{"$f":"IF(C1178=$X$4,\"Enter smelter details\", IF(ISERROR($V1178),\"\",OFFSET('Smelter Look-up'!$F$4,$V1178-4,0)))","v":""},{"$f":"IF(ISERROR($V1178),\"\",OFFSET('Smelter Look-up'!$G$4,$V1178-4,0))","v":""},{"$f":"IF(ISERROR($V1178),\"\",OFFSET('Smelter Look-up'!$H$4,$V1178-4,0))","v":""},{"$f":"IF(ISERROR($V1178),\"\",OFFSET('Smelter Look-up'!$I$4,$V1178-4,0))","v":""},{"$nulls":7},{"$f":"IF(ISERROR($V1178),\"\",OFFSET('Smelter Look-up'!$C$4,$V1178-4,0)&\"\")","v":""},"",{"$f":"IF(B1178=\"\",\"\",IF(ISERROR(MATCH($J1178,SorP!$B$1:$B$6230,0)),\"\",INDIRECT(\"'SorP'!$A$\"&MATCH($J1178,SorP!$B$1:$B$6230,0))))","v":""},null,{"$f":"IF(C1178=\"\",NA(),MATCH($B1178&$C1178,'Smelter Look-up'!$J:$J,0))","v":{"$error":"#N/A"}},null,0,null,null,null,""]
[null,{"$f":"IF(LEN(A1179)=0,\"\",INDEX('Smelter Look-up'!$A:$A,MATCH($A1179,'Smelter Look-up'!$E:$E,0)))","v":""},{"$f":"IF(LEN(A1179)=0,\"\",INDEX('Smelter Look-up'!$C:$C,MATCH($A1179,'Smelter Look-up'!$E:$E,0)))","v":""},null,{"$f":"IF(ISERROR($V1179),\"\",OFFSET('Smelter Look-up'!$D$4,$V1179-4,0)&\"\")","v":""},{"$f":"IF(ISERROR($V1179),\"\",OFFSET('Smelter Look-up'!$E$4,$V1179-4,0))","v":""},{"$f":"IF(C1179=$X$4,\"Enter smelter details\", IF(ISERROR($V1179),\"\",OFFSET('Smelter Look-up'!$F$4,$V1179-4,0)))","v":""},{"$f":"IF(ISERROR($V1179),\"\",OFFSET('Smelter Look-up'!$G$4,$V1179-4,0))","v":""},{"$f":"IF(ISERROR($V1179),\"\",OFFSET('Smelter Look-up'!$H$4,$V1179-4,0))","v":""},{"$f":"IF(ISERROR($V1179),\"\",OFFSET('Smelter Look-up'!$I$4,$V1179-4,0))","v":""},{"$nulls":7},{"$f":"IF(ISERROR($V1179),\"\",OFFSET('Smelter Look-up'!$C$4,$V1179-4,0)&\"\")","v":""},"",{"$f":"IF(B1179=\"\",\"\",IF(ISERROR(MATCH($J1179,SorP!$B$1:$B$6230,0)),\"\",INDIRECT(\"'SorP'!$A$\"&MATCH($J1179,SorP!$B$1:$B$6230,0))))","v":""},null,{"$f":"IF(C1179=\"\",NA(),MATCH($B1179&$C1179,'Smelter Look-up'!$J:$J,0))","v":{"$error":"#N/A"}},null,0,null,null,null,""]
[null,{"$f":"IF(LEN(A1180)=0,\"\",INDEX('Smelter Look-up'!$A:$A,MATCH($A1180,'Smelter Look-up'!$E:$E,0)))","v":""},{"$f":"IF(LEN(A1180)=0,\"\",INDEX('Smelter Look-up'!$C:$C,MATCH($A1180,'Smelter Look-up'!$E:$E,0)))","v":""},null,{"$f":"IF(ISERROR($V1180),\"\",OFFSET('Smelter Look-up'!$D$4,$V1180-4,0)&\"\")","v":""},{"$f":"IF(ISERROR($V1180),\"\",OFFSET('Smelter Look-up'!$E$4,$V1180-4,0))","v":""},{"$f":"IF(C1180=$X$4,\"Enter smelter details\", IF(ISERROR($V1180),\"\",OFFSET('Smelter Look-up'!$F$4,$V1180-4,0)))","v":""},{"$f":"IF(ISERROR($V1180),\"\",OFFSET('Smelter Look-up'!$G$4,$V1180-4,0))","v":""},{"$f":"IF(ISERROR($V1180),\"\",OFFSET('Smelter Look-up'!$H$4,$V1180-4,0))","v":""},{"$f":"IF(ISERROR($V1180),\"\",OFFSET('Smelter Look-up'!$I$4,$V1180-4,0))","v":""},{"$nulls":7},{"$f":"IF(ISERROR($V1180),\"\",OFFSET('Smelter Look-up'!$C$4,$V1180-4,0)&\"\")","v":""},"",{"$f":"IF(B1180=\"\",\"\",IF(ISERROR(MATCH($J1180,SorP!$B$1:$B$6230,0)),\"\",INDIRECT(\"'SorP'!$A$\"&MATCH($J1180,SorP!$B$1:$B$6230,0))))","v":""},null,{"$f":"IF(C1180=\"\",NA(),MATCH($B1180&$C1180,'Smelter Look-up'!$J:$J,0))","v":{"$error":"#N/A"}},null,0,null,null,null,""]
[null,{"$f":"IF(LEN(A1181)=0,\"\",INDEX('Smelter Look-up'!$A:$A,MATCH($A1181,'Smelter Look-up'!$E:$E,0)))","v":""},{"$f":"IF(LEN(A1181)=0,\"\",INDEX('Smelter Look-up'!$C:$C,MATCH($A1181,'Smelter Look-up'!$E:$E,0)))","v":""},null,{"$f":"IF(ISERROR($V1181),\"\",OFFSET('Smelter Look-up'!$D$4,$V1181-4,0)&\"\")","v":""},{"$f":"IF(ISERROR($V1181),\"\",OFFSET('Smelter Look-up'!$E$4,$V1181-4,0))","v":""},{"$f":"IF(C1181=$X$4,\"Enter smelter details\", IF(ISERROR($V1181),\"\",OFFSET('Smelter Look-up'!$F$4,$V1181-4,0)))","v":""},{"$f":"IF(ISERROR($V1181),\"\",OFFSET('Smelter Look-up'!$G$4,$V1181-4,0))","v":""},{"$f":"IF(ISERROR($V1181),\"\",OFFSET('Smelter Look-up'!$H$4,$V1181-4,0))","v":""},{"$f":"IF(ISERROR($V1181),\"\",OFFSET('Smelter Look-up'!$I$4,$V1181-4,0))","v":""},{"$nulls":7},{"$f":"IF(ISERROR($V1181),\"\",OFFSET('Smelter Look-up'!$C$4,$V1181-4,0)&\"\")","v":""},"",{"$f":"IF(B1181=\"\",\"\",IF(ISERROR(MATCH($J1181,SorP!$B$1:$B$6230,0)),\"\",INDIRECT(\"'SorP'!$A$\"&MATCH($J1181,SorP!$B$1:$B$6230,0))))","v":""},null,{"$f":"IF(C1181=\"\",NA(),MATCH($B1181&$C1181,'Smelter Look-up'!$J:$J,0))","v":{"$error":"#N/A"}},null,0,null,null,null,""]
[null,{"$f":"IF(LEN(A1182)=0,\"\",INDEX('Smelter Look-up'!$A:$A,MATCH($A1182,'Smelter Look-up'!$E:$E,0)))","v":""},{"$f":"IF(LEN(A1182)=0,\"\",INDEX('Smelter Look-up'!$C:$C,MATCH($A1182,'Smelter Look-up'!$E:$E,0)))","v":""},null,{"$f":"IF(ISERROR($V1182),\"\",OFFSET('Smelter Look-up'!$D$4,$V1182-4,0)&\"\")","v":""},{"$f":"IF(ISERROR($V1182),\"\",OFFSET('Smelter Look-up'!$E$4,$V1182-4,0))","v":""},{"$f":"IF(C1182=$X$4,\"Enter smelter details\", IF(ISERROR($V1182),\"\",OFFSET('Smelter Look-up'!$F$4,$V1182-4,0)))","v":""},{"$f":"IF(ISERROR($V1182),\"\",OFFSET('Smelter Look-up'!$G$4,$V1182-4,0))","v":""},{"$f":"IF(ISERROR($V1182),\"\",OFFSET('Smelter Look-up'!$H$4,$V1182-4,0))","v":""},{"$f":"IF(ISERROR($V1182),\"\",OFFSET('Smelter Look-up'!$I$4,$V1182-4,0))","v":""},{"$nulls":7},{"$f":"IF(ISERROR($V1182),\"\",OFFSET('Smelter Look-up'!$C$4,$V1182-4,0)&\"\")","v":""},"",{"$f":"IF(B1182=\"\",\"\",IF(ISERROR(MATCH($J1182,SorP!$B$1:$B$6230,0)),\"\",INDIRECT(\"'SorP'!$A$\"&MATCH($J1182,SorP!$B$1:$B$6230,0))))","v":""},null,{"$f":"IF(C1182=\"\",NA(),MATCH($B1182&$C1182,'Smelter Look-up'!$J:$J,0))","v":{"$error":"#N/A"}},null,0,null,null,null,""]
[null,{"$f":"IF(LEN(A1183)=0,\"\",INDEX('Smelter Look-up'!$A:$A,MATCH($A1183,'Smelter Look-up'!$E:$E,0)))","v":""},{"$f":"IF(LEN(A1183)=0,\"\",INDEX('Smelter Look-up'!$C:$C,MATCH($A1183,'Smelter Look-up'!$E:$E,0)))","v":""},null,{"$f":"IF(ISERROR($V1183),\"\",OFFSET('Smelter Look-up'!$D$4,$V1183-4,0)&\"\")","v":""},{"$f":"IF(ISERROR($V1183),\"\",OFFSET('Smelter Look-up'!$E$4,$V1183-4,0))","v":""},{"$f":"IF(C1183=$X$4,\"Enter smelter details\", IF(ISERROR($V1183),\"\",OFFSET('Smelter Look-up'!$F$4,$V1183-4,0)))","v":""},{"$f":"IF(ISERROR($V1183),\"\",OFFSET('Smelter Look-up'!$G$4,$V1183-4,0))","v":""},{"$f":"IF(ISERROR($V1183),\"\",OFFSET('Smelter Look-up'!$H$4,$V1183-4,0))","v":""},{"$f":"IF(ISERROR($V1183),\"\",OFFSET('Smelter Look-up'!$I$4,$V1183-4,0))","v":""},{"$nulls":7},{"$f":"IF(ISERROR($V1183),\"\",OFFSET('Smelter Look-up'!$C$4,$V1183-4,0)&\"\")","v":""},"",{"$f":"IF(B1183=\"\",\"\",IF(ISERROR(MATCH($J1183,SorP!$B$1:$B$6230,0)),\"\",INDIRECT(\"'SorP'!$A$\"&MATCH($J1183,SorP!$B$1:$B$6230,0))))","v":""},null,{"$f":"IF(C1183=\"\",NA(),MATCH($B1183&$C1183,'Smelter Look-up'!$J:$J,0))","v":{"$error":"#N/A"}},null,0,null,null,null,""]
[null,{"$f":"IF(LEN(A1184)=0,\"\",INDEX('Smelter Look-up'!$A:$A,MATCH($A1184,'Smelter Look-up'!$E:$E,0)))","v":""},{"$f":"IF(LEN(A1184)=0,\"\",INDEX('Smelter Look-up'!$C:$C,MATCH($A1184,'Smelter Look-up'!$E:$E,0)))","v":""},null,{"$f":"IF(ISERROR($V1184),\"\",OFFSET('Smelter Look-up'!$D$4,$V1184-4,0)&\"\")","v":""},{"$f":"IF(ISERROR($V1184),\"\",OFFSET('Smelter Look-up'!$E$4,$V1184-4,0))","v":""},{"$f":"IF(C1184=$X$4,\"Enter smelter details\", IF(ISERROR($V1184),\"\",OFFSET('Smelter Look-up'!$F$4,$V1184-4,0)))","v":""},{"$f":"IF(ISERROR($V1184),\"\",OFFSET('Smelter Look-up'!$G$4,$V1184-4,0))","v":""},{"$f":"IF(ISERROR($V1184),\"\",OFFSET('Smelter Look-up'!$H$4,$V1184-4,0))","v":""},{"$f":"IF(ISERROR($V1184),\"\",OFFSET('Smelter Look-up'!$I$4,$V1184-4,0))","v":""},{"$nulls":7},{"$f":"IF(ISERROR($V1184),\"\",OFFSET('Smelter Look-up'!$C$4,$V1184-4,0)&\"\")","v":""},"",{"$f":"IF(B1184=\"\",\"\",IF(ISERROR(MATCH($J1184,SorP!$B$1:$B$6230,0)),\"\",INDIRECT(\"'SorP'!$A$\"&MATCH($J1184,SorP!$B$1:$B$6230,0))))","v":""},null,{"$f":"IF(C1184=\"\",NA(),MATCH($B1184&$C1184,'Smelter Look-up'!$J:$J,0))","v":{"$error":"#N/A"}},null,0,null,null,null,""]
[null,{"$f":"IF(LEN(A1185)=0,\"\",INDEX('Smelter Look-up'!$A:$A,MATCH($A1185,'Smelter Look-up'!$E:$E,0)))","v":""},{"$f":"IF(LEN(A1185)=0,\"\",INDEX('Smelter Look-up'!$C:$C,MATCH($A1185,'Smelter Look-up'!$E:$E,0)))","v":""},null,{"$f":"IF(ISERROR($V1185),\"\",OFFSET('Smelter Look-up'!$D$4,$V1185-4,0)&\"\")","v":""},{"$f":"IF(ISERROR($V1185),\"\",OFFSET('Smelter Look-up'!$E$4,$V1185-4,0))","v":""},{"$f":"IF(C1185=$X$4,\"Enter smelter details\", IF(ISERROR($V1185),\"\",OFFSET('Smelter Look-up'!$F$4,$V1185-4,0)))","v":""},{"$f":"IF(ISERROR($V1185),\"\",OFFSET('Smelter Look-up'!$G$4,$V1185-4,0))","v":""},{"$f":"IF(ISERROR($V1185),\"\",OFFSET('Smelter Look-up'!$H$4,$V1185-4,0))","v":""},{"$f":"IF(ISERROR($V1185),\"\",OFFSET('Smelter Look-up'!$I$4,$V1185-4,0))","v":""},{"$nulls":7},{"$f":"IF(ISERROR($V1185),\"\",OFFSET('Smelter Look-up'!$C$4,$V1185-4,0)&\"\")","v":""},"",{"$f":"IF(B1185=\"\",\"\",IF(ISERROR(MATCH($J1185,SorP!$B$1:$B$6230,0)),\"\",INDIRECT(\"'SorP'!$A$\"&MATCH($J1185,SorP!$B$1:$B$6230,0))))","v":""},null,{"$f":"IF(C1185=\"\",NA(),MATCH($B1185&$C1185,'Smelter Look-up'!$J:$J,0))","v":{"$error":"#N/A"}},null,0,null,null,null,""]
[null,{"$f":"IF(LEN(A1186)=0,\"\",INDEX('Smelter Look-up'!$A:$A,MATCH($A1186,'Smelter Look-up'!$E:$E,0)))","v":""},{"$f":"IF(LEN(A1186)=0,\"\",INDEX('Smelter Look-up'!$C:$C,MATCH($A1186,'Smelter Look-up'!$E:$E,0)))","v":""},null,{"$f":"IF(ISERROR($V1186),\"\",OFFSET('Smelter Look-up'!$D$4,$V1186-4,0)&\"\")","v":""},{"$f":"IF(ISERROR($V1186),\"\",OFFSET('Smelter Look-up'!$E$4,$V1186-4,0))","v":""},{"$f":"IF(C1186=$X$4,\"Enter smelter details\", IF(ISERROR($V1186),\"\",OFFSET('Smelter Look-up'!$F$4,$V1186-4,0)))","v":""},{"$f":"IF(ISERROR($V1186),\"\",OFFSET('Smelter Look-up'!$G$4,$V1186-4,0))","v":""},{"$f":"IF(ISERROR($V1186),\"\",OFFSET('Smelter Look-up'!$H$4,$V1186-4,0))","v":""},{"$f":"IF(ISERROR($V1186),\"\",OFFSET('Smelter Look-up'!$I$4,$V1186-4,0))","v":""},{"$nulls":7},{"$f":"IF(ISERROR($V1186),\"\",OFFSET('Smelter Look-up'!$C$4,$V1186-4,0)&\"\")","v":""},"",{"$f":"IF(B1186=\"\",\"\",IF(ISERROR(MATCH($J1186,SorP!$B$1:$B$6230,0)),\"\",INDIRECT(\"'SorP'!$A$\"&MATCH($J1186,SorP!$B$1:$B$6230,0))))","v":""},null,{"$f":"IF(C1186=\"\",NA(),MATCH($B1186&$C1186,'Smelter Look-up'!$J:$J,0))","v":{"$error":"#N/A"}},null,0,null,null,null,""]
[null,{"$f":"IF(LEN(A1187)=0,\"\",INDEX('Smelter Look-up'!$A:$A,MATCH($A1187,'Smelter Look-up'!$E:$E,0)))","v":""},{"$f":"IF(LEN(A1187)=0,\"\",INDEX('Smelter Look-up'!$C:$C,MATCH($A1187,'Smelter Look-up'!$E:$E,0)))","v":""},null,{"$f":"IF(ISERROR($V1187),\"\",OFFSET('Smelter Look-up'!$D$4,$V1187-4,0)&\"\")","v":""},{"$f":"IF(ISERROR($V1187),\"\",OFFSET('Smelter Look-up'!$E$4,$V1187-4,0))","v":""},{"$f":"IF(C1187=$X$4,\"Enter smelter details\", IF(ISERROR($V1187),\"\",OFFSET('Smelter Look-up'!$F$4,$V1187-4,0)))","v":""},{"$f":"IF(ISERROR($V1187),\"\",OFFSET('Smelter Look-up'!$G$4,$V1187-4,0))","v":""},{"$f":"IF(ISERROR($V1187),\"\",OFFSET('Smelter Look-up'!$H$4,$V1187-4,0))","v":""},{"$f":"IF(ISERROR($V1187),\"\",OFFSET('Smelter Look-up'!$I$4,$V1187-4,0))","v":""},{"$nulls":7},{"$f":"IF(ISERROR($V1187),\"\",OFFSET('Smelter Look-up'!$C$4,$V1187-4,0)&\"\")","v":""},"",{"$f":"IF(B1187=\"\",\"\",IF(ISERROR(MATCH($J1187,SorP!$B$1:$B$6230,0)),\"\",INDIRECT(\"'SorP'!$A$\"&MATCH($J1187,SorP!$B$1:$B$6230,0))))","v":""},null,{"$f":"IF(C1187=\"\",NA(),MATCH($B1187&$C1187,'Smelter Look-up'!$J:$J,0))","v":{"$error":"#N/A"}},null,0,null,null,null,""]
[null,{"$f":"IF(LEN(A1188)=0,\"\",INDEX('Smelter Look-up'!$A:$A,MATCH($A1188,'Smelter Look-up'!$E:$E,0)))","v":""},{"$f":"IF(LEN(A1188)=0,\"\",INDEX('Smelter Look-up'!$C:$C,MATCH($A1188,'Smelter Look-up'!$E:$E,0)))","v":""},null,{"$f":"IF(ISERROR($V1188),\"\",OFFSET('Smelter Look-up'!$D$4,$V1188-4,0)&\"\")","v":""},{"$f":"IF(ISERROR($V1188),\"\",OFFSET('Smelter Look-up'!$E$4,$V1188-4,0))","v":""},{"$f":"IF(C1188=$X$4,\"Enter smelter details\", IF(ISERROR($V1188),\"\",OFFSET('Smelter Look-up'!$F$4,$V1188-4,0)))","v":""},{"$f":"IF(ISERROR($V1188),\"\",OFFSET('Smelter Look-up'!$G$4,$V1188-4,0))","v":""},{"$f":"IF(ISERROR($V1188),\"\",OFFSET('Smelter Look-up'!$H$4,$V1188-4,0))","v":""},{"$f":"IF(ISERROR($V1188),\"\",OFFSET('Smelter Look-up'!$I$4,$V1188-4,0))","v":""},{"$nulls":7},{"$f":"IF(ISERROR($V1188),\"\",OFFSET('Smelter Look-up'!$C$4,$V1188-4,0)&\"\")","v":""},"",{"$f":"IF(B1188=\"\",\"\",IF(ISERROR(MATCH($J1188,SorP!$B$1:$B$6230,0)),\"\",INDIRECT(\"'SorP'!$A$\"&MATCH($J1188,SorP!$B$1:$B$6230,0))))","v":""},null,{"$f":"IF(C1188=\"\",NA(),MATCH($B1188&$C1188,'Smelter Look-up'!$J:$J,0))","v":{"$error":"#N/A"}},null,0,null,null,null,""]
[null,{"$f":"IF(LEN(A1189)=0,\"\",INDEX('Smelter Look-up'!$A:$A,MATCH($A1189,'Smelter Look-up'!$E:$E,0)))","v":""},{"$f":"IF(LEN(A1189)=0,\"\",INDEX('Smelter Look-up'!$C:$C,MATCH($A1189,'Smelter Look-up'!$E:$E,0)))","v":""},null,{"$f":"IF(ISERROR($V1189),\"\",OFFSET('Smelter Look-up'!$D$4,$V1189-4,0)&\"\")","v":""},{"$f":"IF(ISERROR($V1189),\"\",OFFSET('Smelter Look-up'!$E$4,$V1189-4,0))","v":""},{"$f":"IF(C1189=$X$4,\"Enter smelter details\", IF(ISERROR($V1189),\"\",OFFSET('Smelter Look-up'!$F$4,$V1189-4,0)))","v":""},{"$f":"IF(ISERROR($V1189),\"\",OFFSET('Smelter Look-up'!$G$4,$V1189-4,0))","v":""},{"$f":"IF(ISERROR($V1189),\"\",OFFSET('Smelter Look-up'!$H$4,$V1189-4,0))","v":""},{"$f":"IF(ISERROR($V1189),\"\",OFFSET('Smelter Look-up'!$I$4,$V1189-4,0))","v":""},{"$nulls":7},{"$f":"IF(ISERROR($V1189),\"\",OFFSET('Smelter Look-up'!$C$4,$V1189-4,0)&\"\")","v":""},"",{"$f":"IF(B1189=\"\",\"\",IF(ISERROR(MATCH($J1189,SorP!$B$1:$B$6230,0)),\"\",INDIRECT(\"'SorP'!$A$\"&MATCH($J1189,SorP!$B$1:$B$6230,0))))","v":""},null,{"$f":"IF(C1189=\"\",NA(),MATCH($B1189&$C1189,'Smelter Look-up'!$J:$J,0))","v":{"$error":"#N/A"}},null,0,null,null,null,""]
[null,{"$f":"IF(LEN(A1190)=0,\"\",INDEX('Smelter Look-up'!$A:$A,MATCH($A1190,'Smelter Look-up'!$E:$E,0)))","v":""},{"$f":"IF(LEN(A1190)=0,\"\",INDEX('Smelter Look-up'!$C:$C,MATCH($A1190,'Smelter Look-up'!$E:$E,0)))","v":""},null,{"$f":"IF(ISERROR($V1190),\"\",OFFSET('Smelter Look-up'!$D$4,$V1190-4,0)&\"\")","v":""},{"$f":"IF(ISERROR($V1190),\"\",OFFSET('Smelter Look-up'!$E$4,$V1190-4,0))","v":""},{"$f":"IF(C1190=$X$4,\"Enter smelter details\", IF(ISERROR($V1190),\"\",OFFSET('Smelter Look-up'!$F$4,$V1190-4,0)))","v":""},{"$f":"IF(ISERROR($V1190),\"\",OFFSET('Smelter Look-up'!$G$4,$V1190-4,0))","v":""},{"$f":"IF(ISERROR($V1190),\"\",OFFSET('Smelter Look-up'!$H$4,$V1190-4,0))","v":""},{"$f":"IF(ISERROR($V1190),\"\",OFFSET('Smelter Look-up'!$I$4,$V1190-4,0))","v":""},{"$nulls":7},{"$f":"IF(ISERROR($V1190),\"\",OFFSET('Smelter Look-up'!$C$4,$V1190-4,0)&\"\")","v":""},"",{"$f":"IF(B1190=\"\",\"\",IF(ISERROR(MATCH($J1190,SorP!$B$1:$B$6230,0)),\"\",INDIRECT(\"'SorP'!$A$\"&MATCH($J1190,SorP!$B$1:$B$6230,0))))","v":""},null,{"$f":"IF(C1190=\"\",NA(),MATCH($B1190&$C1190,'Smelter Look-up'!$J:$J,0))","v":{"$error":"#N/A"}},null,0,null,null,null,""]
[null,{"$f":"IF(LEN(A1191)=0,\"\",INDEX('Smelter Look-up'!$A:$A,MATCH($A1191,'Smelter Look-up'!$E:$E,0)))","v":""},{"$f":"IF(LEN(A1191)=0,\"\",INDEX('Smelter Look-up'!$C:$C,MATCH($A1191,'Smelter Look-up'!$E:$E,0)))","v":""},null,{"$f":"IF(ISERROR($V1191),\"\",OFFSET('Smelter Look-up'!$D$4,$V1191-4,0)&\"\")","v":""},{"$f":"IF(ISERROR($V1191),\"\",OFFSET('Smelter Look-up'!$E$4,$V1191-4,0))","v":""},{"$f":"IF(C1191=$X$4,\"Enter smelter details\", IF(ISERROR($V1191),\"\",OFFSET('Smelter Look-up'!$F$4,$V1191-4,0)))","v":""},{"$f":"IF(ISERROR($V1191),\"\",OFFSET('Smelter Look-up'!$G$4,$V1191-4,0))","v":""},{"$f":"IF(ISERROR($V1191),\"\",OFFSET('Smelter Look-up'!$H$4,$V1191-4,0))","v":""},{"$f":"IF(ISERROR($V1191),\"\",OFFSET('Smelter Look-up'!$I$4,$V1191-4,0))","v":""},{"$nulls":7},{"$f":"IF(ISERROR($V1191),\"\",OFFSET('Smelter Look-up'!$C$4,$V1191-4,0)&\"\")","v":""},"",{"$f":"IF(B1191=\"\",\"\",IF(ISERROR(MATCH($J1191,SorP!$B$1:$B$6230,0)),\"\",INDIRECT(\"'SorP'!$A$\"&MATCH($J1191,SorP!$B$1:$B$6230,0))))","v":""},null,{"$f":"IF(C1191=\"\",NA(),MATCH($B1191&$C1191,'Smelter Look-up'!$J:$J,0))","v":{"$error":"#N/A"}},null,0,null,null,null,""]
[null,{"$f":"IF(LEN(A1192)=0,\"\",INDEX('Smelter Look-up'!$A:$A,MATCH($A1192,'Smelter Look-up'!$E:$E,0)))","v":""},{"$f":"IF(LEN(A1192)=0,\"\",INDEX('Smelter Look-up'!$C:$C,MATCH($A1192,'Smelter Look-up'!$E:$E,0)))","v":""},null,{"$f":"IF(ISERROR($V1192),\"\",OFFSET('Smelter Look-up'!$D$4,$V1192-4,0)&\"\")","v":""},{"$f":"IF(ISERROR($V1192),\"\",OFFSET('Smelter Look-up'!$E$4,$V1192-4,0))","v":""},{"$f":"IF(C1192=$X$4,\"Enter smelter details\", IF(ISERROR($V1192),\"\",OFFSET('Smelter Look-up'!$F$4,$V1192-4,0)))","v":""},{"$f":"IF(ISERROR($V1192),\"\",OFFSET('Smelter Look-up'!$G$4,$V1192-4,0))","v":""},{"$f":"IF(ISERROR($V1192),\"\",OFFSET('Smelter Look-up'!$H$4,$V1192-4,0))","v":""},{"$f":"IF(ISERROR($V1192),\"\",OFFSET('Smelter Look-up'!$I$4,$V1192-4,0))","v":""},{"$nulls":7},{"$f":"IF(ISERROR($V1192),\"\",OFFSET('Smelter Look-up'!$C$4,$V1192-4,0)&\"\")","v":""},"",{"$f":"IF(B1192=\"\",\"\",IF(ISERROR(MATCH($J1192,SorP!$B$1:$B$6230,0)),\"\",INDIRECT(\"'SorP'!$A$\"&MATCH($J1192,SorP!$B$1:$B$6230,0))))","v":""},null,{"$f":"IF(C1192=\"\",NA(),MATCH($B1192&$C1192,'Smelter Look-up'!$J:$J,0))","v":{"$error":"#N/A"}},null,0,null,null,null,""]
[null,{"$f":"IF(LEN(A1193)=0,\"\",INDEX('Smelter Look-up'!$A:$A,MATCH($A1193,'Smelter Look-up'!$E:$E,0)))","v":""},{"$f":"IF(LEN(A1193)=0,\"\",INDEX('Smelter Look-up'!$C:$C,MATCH($A1193,'Smelter Look-up'!$E:$E,0)))","v":""},null,{"$f":"IF(ISERROR($V1193),\"\",OFFSET('Smelter Look-up'!$D$4,$V1193-4,0)&\"\")","v":""},{"$f":"IF(ISERROR($V1193),\"\",OFFSET('Smelter Look-up'!$E$4,$V1193-4,0))","v":""},{"$f":"IF(C1193=$X$4,\"Enter smelter details\", IF(ISERROR($V1193),\"\",OFFSET('Smelter Look-up'!$F$4,$V1193-4,0)))","v":""},{"$f":"IF(ISERROR($V1193),\"\",OFFSET('Smelter Look-up'!$G$4,$V1193-4,0))","v":""},{"$f":"IF(ISERROR($V1193),\"\",OFFSET('Smelter Look-up'!$H$4,$V1193-4,0))","v":""},{"$f":"IF(ISERROR($V1193),\"\",OFFSET('Smelter Look-up'!$I$4,$V1193-4,0))","v":""},{"$nulls":7},{"$f":"IF(ISERROR($V1193),\"\",OFFSET('Smelter Look-up'!$C$4,$V1193-4,0)&\"\")","v":""},"",{"$f":"IF(B1193=\"\",\"\",IF(ISERROR(MATCH($J1193,SorP!$B$1:$B$6230,0)),\"\",INDIRECT(\"'SorP'!$A$\"&MATCH($J1193,SorP!$B$1:$B$6230,0))))","v":""},null,{"$f":"IF(C1193=\"\",NA(),MATCH($B1193&$C1193,'Smelter Look-up'!$J:$J,0))","v":{"$error":"#N/A"}},null,0,null,null,null,""]
[null,{"$f":"IF(LEN(A1194)=0,\"\",INDEX('Smelter Look-up'!$A:$A,MATCH($A1194,'Smelter Look-up'!$E:$E,0)))","v":""},{"$f":"IF(LEN(A1194)=0,\"\",INDEX('Smelter Look-up'!$C:$C,MATCH($A1194,'Smelter Look-up'!$E:$E,0)))","v":""},null,{"$f":"IF(ISERROR($V1194),\"\",OFFSET('Smelter Look-up'!$D$4,$V1194-4,0)&\"\")","v":""},{"$f":"IF(ISERROR($V1194),\"\",OFFSET('Smelter Look-up'!$E$4,$V1194-4,0))","v":""},{"$f":"IF(C1194=$X$4,\"Enter smelter details\", IF(ISERROR($V1194),\"\",OFFSET('Smelter Look-up'!$F$4,$V1194-4,0)))","v":""},{"$f":"IF(ISERROR($V1194),\"\",OFFSET('Smelter Look-up'!$G$4,$V1194-4,0))","v":""},{"$f":"IF(ISERROR($V1194),\"\",OFFSET('Smelter Look-up'!$H$4,$V1194-4,0))","v":""},{"$f":"IF(ISERROR($V1194),\"\",OFFSET('Smelter Look-up'!$I$4,$V1194-4,0))","v":""},{"$nulls":7},{"$f":"IF(ISERROR($V1194),\"\",OFFSET('Smelter Look-up'!$C$4,$V1194-4,0)&\"\")","v":""},"",{"$f":"IF(B1194=\"\",\"\",IF(ISERROR(MATCH($J1194,SorP!$B$1:$B$6230,0)),\"\",INDIRECT(\"'SorP'!$A$\"&MATCH($J1194,SorP!$B$1:$B$6230,0))))","v":""},null,{"$f":"IF(C1194=\"\",NA(),MATCH($B1194&$C1194,'Smelter Look-up'!$J:$J,0))","v":{"$error":"#N/A"}},null,0,null,null,null,""]
[null,{"$f":"IF(LEN(A1195)=0,\"\",INDEX('Smelter Look-up'!$A:$A,MATCH($A1195,'Smelter Look-up'!$E:$E,0)))","v":""},{"$f":"IF(LEN(A1195)=0,\"\",INDEX('Smelter Look-up'!$C:$C,MATCH($A1195,'Smelter Look-up'!$E:$E,0)))","v":""},null,{"$f":"IF(ISERROR($V1195),\"\",OFFSET('Smelter Look-up'!$D$4,$V1195-4,0)&\"\")","v":""},{"$f":"IF(ISERROR($V1195),\"\",OFFSET('Smelter Look-up'!$E$4,$V1195-4,0))","v":""},{"$f":"IF(C1195=$X$4,\"Enter smelter details\", IF(ISERROR($V1195),\"\",OFFSET('Smelter Look-up'!$F$4,$V1195-4,0)))","v":""},{"$f":"IF(ISERROR($V1195),\"\",OFFSET('Smelter Look-up'!$G$4,$V1195-4,0))","v":""},{"$f":"IF(ISERROR($V1195),\"\",OFFSET('Smelter Look-up'!$H$4,$V1195-4,0))","v":""},{"$f":"IF(ISERROR($V1195),\"\",OFFSET('Smelter Look-up'!$I$4,$V1195-4,0))","v":""},{"$nulls":7},{"$f":"IF(ISERROR($V1195),\"\",OFFSET('Smelter Look-up'!$C$4,$V1195-4,0)&\"\")","v":""},"",{"$f":"IF(B1195=\"\",\"\",IF(ISERROR(MATCH($J1195,SorP!$B$1:$B$6230,0)),\"\",INDIRECT(\"'SorP'!$A$\"&MATCH($J1195,SorP!$B$1:$B$6230,0))))","v":""},null,{"$f":"IF(C1195=\"\",NA(),MATCH($B1195&$C1195,'Smelter Look-up'!$J:$J,0))","v":{"$error":"#N/A"}},null,0,null,null,null,""]
[null,{"$f":"IF(LEN(A1196)=0,\"\",INDEX('Smelter Look-up'!$A:$A,MATCH($A1196,'Smelter Look-up'!$E:$E,0)))","v":""},{"$f":"IF(LEN(A1196)=0,\"\",INDEX('Smelter Look-up'!$C:$C,MATCH($A1196,'Smelter Look-up'!$E:$E,0)))","v":""},null,{"$f":"IF(ISERROR($V1196),\"\",OFFSET('Smelter Look-up'!$D$4,$V1196-4,0)&\"\")","v":""},{"$f":"IF(ISERROR($V1196),\"\",OFFSET('Smelter Look-up'!$E$4,$V1196-4,0))","v":""},{"$f":"IF(C1196=$X$4,\"Enter smelter details\", IF(ISERROR($V1196),\"\",OFFSET('Smelter Look-up'!$F$4,$V1196-4,0)))","v":""},{"$f":"IF(ISERROR($V1196),\"\",OFFSET('Smelter Look-up'!$G$4,$V1196-4,0))","v":""},{"$f":"IF(ISERROR($V1196),\"\",OFFSET('Smelter Look-up'!$H$4,$V1196-4,0))","v":""},{"$f":"IF(ISERROR($V1196),\"\",OFFSET('Smelter Look-up'!$I$4,$V1196-4,0))","v":""},{"$nulls":7},{"$f":"IF(ISERROR($V1196),\"\",OFFSET('Smelter Look-up'!$C$4,$V1196-4,0)&\"\")","v":""},"",{"$f":"IF(B1196=\"\",\"\",IF(ISERROR(MATCH($J1196,SorP!$B$1:$B$6230,0)),\"\",INDIRECT(\"'SorP'!$A$\"&MATCH($J1196,SorP!$B$1:$B$6230,0))))","v":""},null,{"$f":"IF(C1196=\"\",NA(),MATCH($B1196&$C1196,'Smelter Look-up'!$J:$J,0))","v":{"$error":"#N/A"}},null,0,null,null,null,""]
[null,{"$f":"IF(LEN(A1197)=0,\"\",INDEX('Smelter Look-up'!$A:$A,MATCH($A1197,'Smelter Look-up'!$E:$E,0)))","v":""},{"$f":"IF(LEN(A1197)=0,\"\",INDEX('Smelter Look-up'!$C:$C,MATCH($A1197,'Smelter Look-up'!$E:$E,0)))","v":""},null,{"$f":"IF(ISERROR($V1197),\"\",OFFSET('Smelter Look-up'!$D$4,$V1197-4,0)&\"\")","v":""},{"$f":"IF(ISERROR($V1197),\"\",OFFSET('Smelter Look-up'!$E$4,$V1197-4,0))","v":""},{"$f":"IF(C1197=$X$4,\"Enter smelter details\", IF(ISERROR($V1197),\"\",OFFSET('Smelter Look-up'!$F$4,$V1197-4,0)))","v":""},{"$f":"IF(ISERROR($V1197),\"\",OFFSET('Smelter Look-up'!$G$4,$V1197-4,0))","v":""},{"$f":"IF(ISERROR($V1197),\"\",OFFSET('Smelter Look-up'!$H$4,$V1197-4,0))","v":""},{"$f":"IF(ISERROR($V1197),\"\",OFFSET('Smelter Look-up'!$I$4,$V1197-4,0))","v":""},{"$nulls":7},{"$f":"IF(ISERROR($V1197),\"\",OFFSET('Smelter Look-up'!$C$4,$V1197-4,0)&\"\")","v":""},"",{"$f":"IF(B1197=\"\",\"\",IF(ISERROR(MATCH($J1197,SorP!$B$1:$B$6230,0)),\"\",INDIRECT(\"'SorP'!$A$\"&MATCH($J1197,SorP!$B$1:$B$6230,0))))","v":""},null,{"$f":"IF(C1197=\"\",NA(),MATCH($B1197&$C1197,'Smelter Look-up'!$J:$J,0))","v":{"$error":"#N/A"}},null,0,null,null,null,""]
[null,{"$f":"IF(LEN(A1198)=0,\"\",INDEX('Smelter Look-up'!$A:$A,MATCH($A1198,'Smelter Look-up'!$E:$E,0)))","v":""},{"$f":"IF(LEN(A1198)=0,\"\",INDEX('Smelter Look-up'!$C:$C,MATCH($A1198,'Smelter Look-up'!$E:$E,0)))","v":""},null,{"$f":"IF(ISERROR($V1198),\"\",OFFSET('Smelter Look-up'!$D$4,$V1198-4,0)&\"\")","v":""},{"$f":"IF(ISERROR($V1198),\"\",OFFSET('Smelter Look-up'!$E$4,$V1198-4,0))","v":""},{"$f":"IF(C1198=$X$4,\"Enter smelter details\", IF(ISERROR($V1198),\"\",OFFSET('Smelter Look-up'!$F$4,$V1198-4,0)))","v":""},{"$f":"IF(ISERROR($V1198),\"\",OFFSET('Smelter Look-up'!$G$4,$V1198-4,0))","v":""},{"$f":"IF(ISERROR($V1198),\"\",OFFSET('Smelter Look-up'!$H$4,$V1198-4,0))","v":""},{"$f":"IF(ISERROR($V1198),\"\",OFFSET('Smelter Look-up'!$I$4,$V1198-4,0))","v":""},{"$nulls":7},{"$f":"IF(ISERROR($V1198),\"\",OFFSET('Smelter Look-up'!$C$4,$V1198-4,0)&\"\")","v":""},"",{"$f":"IF(B1198=\"\",\"\",IF(ISERROR(MATCH($J1198,SorP!$B$1:$B$6230,0)),\"\",INDIRECT(\"'SorP'!$A$\"&MATCH($J1198,SorP!$B$1:$B$6230,0))))","v":""},null,{"$f":"IF(C1198=\"\",NA(),MATCH($B1198&$C1198,'Smelter Look-up'!$J:$J,0))","v":{"$error":"#N/A"}},null,0,null,null,null,""]
[null,{"$f":"IF(LEN(A1199)=0,\"\",INDEX('Smelter Look-up'!$A:$A,MATCH($A1199,'Smelter Look-up'!$E:$E,0)))","v":""},{"$f":"IF(LEN(A1199)=0,\"\",INDEX('Smelter Look-up'!$C:$C,MATCH($A1199,'Smelter Look-up'!$E:$E,0)))","v":""},null,{"$f":"IF(ISERROR($V1199),\"\",OFFSET('Smelter Look-up'!$D$4,$V1199-4,0)&\"\")","v":""},{"$f":"IF(ISERROR($V1199),\"\",OFFSET('Smelter Look-up'!$E$4,$V1199-4,0))","v":""},{"$f":"IF(C1199=$X$4,\"Enter smelter details\", IF(ISERROR($V1199),\"\",OFFSET('Smelter Look-up'!$F$4,$V1199-4,0)))","v":""},{"$f":"IF(ISERROR($V1199),\"\",OFFSET('Smelter Look-up'!$G$4,$V1199-4,0))","v":""},{"$f":"IF(ISERROR($V1199),\"\",OFFSET('Smelter Look-up'!$H$4,$V1199-4,0))","v":""},{"$f":"IF(ISERROR($V1199),\"\",OFFSET('Smelter Look-up'!$I$4,$V1199-4,0))","v":""},{"$nulls":7},{"$f":"IF(ISERROR($V1199),\"\",OFFSET('Smelter Look-up'!$C$4,$V1199-4,0)&\"\")","v":""},"",{"$f":"IF(B1199=\"\",\"\",IF(ISERROR(MATCH($J1199,SorP!$B$1:$B$6230,0)),\"\",INDIRECT(\"'SorP'!$A$\"&MATCH($J1199,SorP!$B$1:$B$6230,0))))","v":""},null,{"$f":"IF(C1199=\"\",NA(),MATCH($B1199&$C1199,'Smelter Look-up'!$J:$J,0))","v":{"$error":"#N/A"}},null,0,null,null,null,""]
[null,{"$f":"IF(LEN(A1200)=0,\"\",INDEX('Smelter Look-up'!$A:$A,MATCH($A1200,'Smelter Look-up'!$E:$E,0)))","v":""},{"$f":"IF(LEN(A1200)=0,\"\",INDEX('Smelter Look-up'!$C:$C,MATCH($A1200,'Smelter Look-up'!$E:$E,0)))","v":""},null,{"$f":"IF(ISERROR($V1200),\"\",OFFSET('Smelter Look-up'!$D$4,$V1200-4,0)&\"\")","v":""},{"$f":"IF(ISERROR($V1200),\"\",OFFSET('Smelter Look-up'!$E$4,$V1200-4,0))","v":""},{"$f":"IF(C1200=$X$4,\"Enter smelter details\", IF(ISERROR($V1200),\"\",OFFSET('Smelter Look-up'!$F$4,$V1200-4,0)))","v":""},{"$f":"IF(ISERROR($V1200),\"\",OFFSET('Smelter Look-up'!$G$4,$V1200-4,0))","v":""},{"$f":"IF(ISERROR($V1200),\"\",OFFSET('Smelter Look-up'!$H$4,$V1200-4,0))","v":""},{"$f":"IF(ISERROR($V1200),\"\",OFFSET('Smelter Look-up'!$I$4,$V1200-4,0))","v":""},{"$nulls":7},{"$f":"IF(ISERROR($V1200),\"\",OFFSET('Smelter Look-up'!$C$4,$V1200-4,0)&\"\")","v":""},"",{"$f":"IF(B1200=\"\",\"\",IF(ISERROR(MATCH($J1200,SorP!$B$1:$B$6230,0)),\"\",INDIRECT(\"'SorP'!$A$\"&MATCH($J1200,SorP!$B$1:$B$6230,0))))","v":""},null,{"$f":"IF(C1200=\"\",NA(),MATCH($B1200&$C1200,'Smelter Look-up'!$J:$J,0))","v":{"$error":"#N/A"}},null,0,null,null,null,""]
[null,{"$f":"IF(LEN(A1201)=0,\"\",INDEX('Smelter Look-up'!$A:$A,MATCH($A1201,'Smelter Look-up'!$E:$E,0)))","v":""},{"$f":"IF(LEN(A1201)=0,\"\",INDEX('Smelter Look-up'!$C:$C,MATCH($A1201,'Smelter Look-up'!$E:$E,0)))","v":""},null,{"$f":"IF(ISERROR($V1201),\"\",OFFSET('Smelter Look-up'!$D$4,$V1201-4,0)&\"\")","v":""},{"$f":"IF(ISERROR($V1201),\"\",OFFSET('Smelter Look-up'!$E$4,$V1201-4,0))","v":""},{"$f":"IF(C1201=$X$4,\"Enter smelter details\", IF(ISERROR($V1201),\"\",OFFSET('Smelter Look-up'!$F$4,$V1201-4,0)))","v":""},{"$f":"IF(ISERROR($V1201),\"\",OFFSET('Smelter Look-up'!$G$4,$V1201-4,0))","v":""},{"$f":"IF(ISERROR($V1201),\"\",OFFSET('Smelter Look-up'!$H$4,$V1201-4,0))","v":""},{"$f":"IF(ISERROR($V1201),\"\",OFFSET('Smelter Look-up'!$I$4,$V1201-4,0))","v":""},{"$nulls":7},{"$f":"IF(ISERROR($V1201),\"\",OFFSET('Smelter Look-up'!$C$4,$V1201-4,0)&\"\")","v":""},"",{"$f":"IF(B1201=\"\",\"\",IF(ISERROR(MATCH($J1201,SorP!$B$1:$B$6230,0)),\"\",INDIRECT(\"'SorP'!$A$\"&MATCH($J1201,SorP!$B$1:$B$6230,0))))","v":""},null,{"$f":"IF(C1201=\"\",NA(),MATCH($B1201&$C1201,'Smelter Look-up'!$J:$J,0))","v":{"$error":"#N/A"}},null,0,null,null,null,""]
[null,{"$f":"IF(LEN(A1202)=0,\"\",INDEX('Smelter Look-up'!$A:$A,MATCH($A1202,'Smelter Look-up'!$E:$E,0)))","v":""},{"$f":"IF(LEN(A1202)=0,\"\",INDEX('Smelter Look-up'!$C:$C,MATCH($A1202,'Smelter Look-up'!$E:$E,0)))","v":""},null,{"$f":"IF(ISERROR($V1202),\"\",OFFSET('Smelter Look-up'!$D$4,$V1202-4,0)&\"\")","v":""},{"$f":"IF(ISERROR($V1202),\"\",OFFSET('Smelter Look-up'!$E$4,$V1202-4,0))","v":""},{"$f":"IF(C1202=$X$4,\"Enter smelter details\", IF(ISERROR($V1202),\"\",OFFSET('Smelter Look-up'!$F$4,$V1202-4,0)))","v":""},{"$f":"IF(ISERROR($V1202),\"\",OFFSET('Smelter Look-up'!$G$4,$V1202-4,0))","v":""},{"$f":"IF(ISERROR($V1202),\"\",OFFSET('Smelter Look-up'!$H$4,$V1202-4,0))","v":""},{"$f":"IF(ISERROR($V1202),\"\",OFFSET('Smelter Look-up'!$I$4,$V1202-4,0))","v":""},{"$nulls":7},{"$f":"IF(ISERROR($V1202),\"\",OFFSET('Smelter Look-up'!$C$4,$V1202-4,0)&\"\")","v":""},"",{"$f":"IF(B1202=\"\",\"\",IF(ISERROR(MATCH($J1202,SorP!$B$1:$B$6230,0)),\"\",INDIRECT(\"'SorP'!$A$\"&MATCH($J1202,SorP!$B$1:$B$6230,0))))","v":""},null,{"$f":"IF(C1202=\"\",NA(),MATCH($B1202&$C1202,'Smelter Look-up'!$J:$J,0))","v":{"$error":"#N/A"}},null,0,null,null,null,""]
[null,{"$f":"IF(LEN(A1203)=0,\"\",INDEX('Smelter Look-up'!$A:$A,MATCH($A1203,'Smelter Look-up'!$E:$E,0)))","v":""},{"$f":"IF(LEN(A1203)=0,\"\",INDEX('Smelter Look-up'!$C:$C,MATCH($A1203,'Smelter Look-up'!$E:$E,0)))","v":""},null,{"$f":"IF(ISERROR($V1203),\"\",OFFSET('Smelter Look-up'!$D$4,$V1203-4,0)&\"\")","v":""},{"$f":"IF(ISERROR($V1203),\"\",OFFSET('Smelter Look-up'!$E$4,$V1203-4,0))","v":""},{"$f":"IF(C1203=$X$4,\"Enter smelter details\", IF(ISERROR($V1203),\"\",OFFSET('Smelter Look-up'!$F$4,$V1203-4,0)))","v":""},{"$f":"IF(ISERROR($V1203),\"\",OFFSET('Smelter Look-up'!$G$4,$V1203-4,0))","v":""},{"$f":"IF(ISERROR($V1203),\"\",OFFSET('Smelter Look-up'!$H$4,$V1203-4,0))","v":""},{"$f":"IF(ISERROR($V1203),\"\",OFFSET('Smelter Look-up'!$I$4,$V1203-4,0))","v":""},{"$nulls":7},{"$f":"IF(ISERROR($V1203),\"\",OFFSET('Smelter Look-up'!$C$4,$V1203-4,0)&\"\")","v":""},"",{"$f":"IF(B1203=\"\",\"\",IF(ISERROR(MATCH($J1203,SorP!$B$1:$B$6230,0)),\"\",INDIRECT(\"'SorP'!$A$\"&MATCH($J1203,SorP!$B$1:$B$6230,0))))","v":""},null,{"$f":"IF(C1203=\"\",NA(),MATCH($B1203&$C1203,'Smelter Look-up'!$J:$J,0))","v":{"$error":"#N/A"}},null,0,null,null,null,""]
[null,{"$f":"IF(LEN(A1204)=0,\"\",INDEX('Smelter Look-up'!$A:$A,MATCH($A1204,'Smelter Look-up'!$E:$E,0)))","v":""},{"$f":"IF(LEN(A1204)=0,\"\",INDEX('Smelter Look-up'!$C:$C,MATCH($A1204,'Smelter Look-up'!$E:$E,0)))","v":""},null,{"$f":"IF(ISERROR($V1204),\"\",OFFSET('Smelter Look-up'!$D$4,$V1204-4,0)&\"\")","v":""},{"$f":"IF(ISERROR($V1204),\"\",OFFSET('Smelter Look-up'!$E$4,$V1204-4,0))","v":""},{"$f":"IF(C1204=$X$4,\"Enter smelter details\", IF(ISERROR($V1204),\"\",OFFSET('Smelter Look-up'!$F$4,$V1204-4,0)))","v":""},{"$f":"IF(ISERROR($V1204),\"\",OFFSET('Smelter Look-up'!$G$4,$V1204-4,0))","v":""},{"$f":"IF(ISERROR($V1204),\"\",OFFSET('Smelter Look-up'!$H$4,$V1204-4,0))","v":""},{"$f":"IF(ISERROR($V1204),\"\",OFFSET('Smelter Look-up'!$I$4,$V1204-4,0))","v":""},{"$nulls":7},{"$f":"IF(ISERROR($V1204),\"\",OFFSET('Smelter Look-up'!$C$4,$V1204-4,0)&\"\")","v":""},"",{"$f":"IF(B1204=\"\",\"\",IF(ISERROR(MATCH($J1204,SorP!$B$1:$B$6230,0)),\"\",INDIRECT(\"'SorP'!$A$\"&MATCH($J1204,SorP!$B$1:$B$6230,0))))","v":""},null,{"$f":"IF(C1204=\"\",NA(),MATCH($B1204&$C1204,'Smelter Look-up'!$J:$J,0))","v":{"$error":"#N/A"}},null,0,null,null,null,""]
[null,{"$f":"IF(LEN(A1205)=0,\"\",INDEX('Smelter Look-up'!$A:$A,MATCH($A1205,'Smelter Look-up'!$E:$E,0)))","v":""},{"$f":"IF(LEN(A1205)=0,\"\",INDEX('Smelter Look-up'!$C:$C,MATCH($A1205,'Smelter Look-up'!$E:$E,0)))","v":""},null,{"$f":"IF(ISERROR($V1205),\"\",OFFSET('Smelter Look-up'!$D$4,$V1205-4,0)&\"\")","v":""},{"$f":"IF(ISERROR($V1205),\"\",OFFSET('Smelter Look-up'!$E$4,$V1205-4,0))","v":""},{"$f":"IF(C1205=$X$4,\"Enter smelter details\", IF(ISERROR($V1205),\"\",OFFSET('Smelter Look-up'!$F$4,$V1205-4,0)))","v":""},{"$f":"IF(ISERROR($V1205),\"\",OFFSET('Smelter Look-up'!$G$4,$V1205-4,0))","v":""},{"$f":"IF(ISERROR($V1205),\"\",OFFSET('Smelter Look-up'!$H$4,$V1205-4,0))","v":""},{"$f":"IF(ISERROR($V1205),\"\",OFFSET('Smelter Look-up'!$I$4,$V1205-4,0))","v":""},{"$nulls":7},{"$f":"IF(ISERROR($V1205),\"\",OFFSET('Smelter Look-up'!$C$4,$V1205-4,0)&\"\")","v":""},"",{"$f":"IF(B1205=\"\",\"\",IF(ISERROR(MATCH($J1205,SorP!$B$1:$B$6230,0)),\"\",INDIRECT(\"'SorP'!$A$\"&MATCH($J1205,SorP!$B$1:$B$6230,0))))","v":""},null,{"$f":"IF(C1205=\"\",NA(),MATCH($B1205&$C1205,'Smelter Look-up'!$J:$J,0))","v":{"$error":"#N/A"}},null,0,null,null,null,""]
[null,{"$f":"IF(LEN(A1206)=0,\"\",INDEX('Smelter Look-up'!$A:$A,MATCH($A1206,'Smelter Look-up'!$E:$E,0)))","v":""},{"$f":"IF(LEN(A1206)=0,\"\",INDEX('Smelter Look-up'!$C:$C,MATCH($A1206,'Smelter Look-up'!$E:$E,0)))","v":""},null,{"$f":"IF(ISERROR($V1206),\"\",OFFSET('Smelter Look-up'!$D$4,$V1206-4,0)&\"\")","v":""},{"$f":"IF(ISERROR($V1206),\"\",OFFSET('Smelter Look-up'!$E$4,$V1206-4,0))","v":""},{"$f":"IF(C1206=$X$4,\"Enter smelter details\", IF(ISERROR($V1206),\"\",OFFSET('Smelter Look-up'!$F$4,$V1206-4,0)))","v":""},{"$f":"IF(ISERROR($V1206),\"\",OFFSET('Smelter Look-up'!$G$4,$V1206-4,0))","v":""},{"$f":"IF(ISERROR($V1206),\"\",OFFSET('Smelter Look-up'!$H$4,$V1206-4,0))","v":""},{"$f":"IF(ISERROR($V1206),\"\",OFFSET('Smelter Look-up'!$I$4,$V1206-4,0))","v":""},{"$nulls":7},{"$f":"IF(ISERROR($V1206),\"\",OFFSET('Smelter Look-up'!$C$4,$V1206-4,0)&\"\")","v":""},"",{"$f":"IF(B1206=\"\",\"\",IF(ISERROR(MATCH($J1206,SorP!$B$1:$B$6230,0)),\"\",INDIRECT(\"'SorP'!$A$\"&MATCH($J1206,SorP!$B$1:$B$6230,0))))","v":""},null,{"$f":"IF(C1206=\"\",NA(),MATCH($B1206&$C1206,'Smelter Look-up'!$J:$J,0))","v":{"$error":"#N/A"}},null,0,null,null,null,""]
[null,{"$f":"IF(LEN(A1207)=0,\"\",INDEX('Smelter Look-up'!$A:$A,MATCH($A1207,'Smelter Look-up'!$E:$E,0)))","v":""},{"$f":"IF(LEN(A1207)=0,\"\",INDEX('Smelter Look-up'!$C:$C,MATCH($A1207,'Smelter Look-up'!$E:$E,0)))","v":""},null,{"$f":"IF(ISERROR($V1207),\"\",OFFSET('Smelter Look-up'!$D$4,$V1207-4,0)&\"\")","v":""},{"$f":"IF(ISERROR($V1207),\"\",OFFSET('Smelter Look-up'!$E$4,$V1207-4,0))","v":""},{"$f":"IF(C1207=$X$4,\"Enter smelter details\", IF(ISERROR($V1207),\"\",OFFSET('Smelter Look-up'!$F$4,$V1207-4,0)))","v":""},{"$f":"IF(ISERROR($V1207),\"\",OFFSET('Smelter Look-up'!$G$4,$V1207-4,0))","v":""},{"$f":"IF(ISERROR($V1207),\"\",OFFSET('Smelter Look-up'!$H$4,$V1207-4,0))","v":""},{"$f":"IF(ISERROR($V1207),\"\",OFFSET('Smelter Look-up'!$I$4,$V1207-4,0))","v":""},{"$nulls":7},{"$f":"IF(ISERROR($V1207),\"\",OFFSET('Smelter Look-up'!$C$4,$V1207-4,0)&\"\")","v":""},"",{"$f":"IF(B1207=\"\",\"\",IF(ISERROR(MATCH($J1207,SorP!$B$1:$B$6230,0)),\"\",INDIRECT(\"'SorP'!$A$\"&MATCH($J1207,SorP!$B$1:$B$6230,0))))","v":""},null,{"$f":"IF(C1207=\"\",NA(),MATCH($B1207&$C1207,'Smelter Look-up'!$J:$J,0))","v":{"$error":"#N/A"}},null,0,null,null,null,""]
[null,{"$f":"IF(LEN(A1208)=0,\"\",INDEX('Smelter Look-up'!$A:$A,MATCH($A1208,'Smelter Look-up'!$E:$E,0)))","v":""},{"$f":"IF(LEN(A1208)=0,\"\",INDEX('Smelter Look-up'!$C:$C,MATCH($A1208,'Smelter Look-up'!$E:$E,0)))","v":""},null,{"$f":"IF(ISERROR($V1208),\"\",OFFSET('Smelter Look-up'!$D$4,$V1208-4,0)&\"\")","v":""},{"$f":"IF(ISERROR($V1208),\"\",OFFSET('Smelter Look-up'!$E$4,$V1208-4,0))","v":""},{"$f":"IF(C1208=$X$4,\"Enter smelter details\", IF(ISERROR($V1208),\"\",OFFSET('Smelter Look-up'!$F$4,$V1208-4,0)))","v":""},{"$f":"IF(ISERROR($V1208),\"\",OFFSET('Smelter Look-up'!$G$4,$V1208-4,0))","v":""},{"$f":"IF(ISERROR($V1208),\"\",OFFSET('Smelter Look-up'!$H$4,$V1208-4,0))","v":""},{"$f":"IF(ISERROR($V1208),\"\",OFFSET('Smelter Look-up'!$I$4,$V1208-4,0))","v":""},{"$nulls":7},{"$f":"IF(ISERROR($V1208),\"\",OFFSET('Smelter Look-up'!$C$4,$V1208-4,0)&\"\")","v":""},"",{"$f":"IF(B1208=\"\",\"\",IF(ISERROR(MATCH($J1208,SorP!$B$1:$B$6230,0)),\"\",INDIRECT(\"'SorP'!$A$\"&MATCH($J1208,SorP!$B$1:$B$6230,0))))","v":""},null,{"$f":"IF(C1208=\"\",NA(),MATCH($B1208&$C1208,'Smelter Look-up'!$J:$J,0))","v":{"$error":"#N/A"}},null,0,null,null,null,""]
[null,{"$f":"IF(LEN(A1209)=0,\"\",INDEX('Smelter Look-up'!$A:$A,MATCH($A1209,'Smelter Look-up'!$E:$E,0)))","v":""},{"$f":"IF(LEN(A1209)=0,\"\",INDEX('Smelter Look-up'!$C:$C,MATCH($A1209,'Smelter Look-up'!$E:$E,0)))","v":""},null,{"$f":"IF(ISERROR($V1209),\"\",OFFSET('Smelter Look-up'!$D$4,$V1209-4,0)&\"\")","v":""},{"$f":"IF(ISERROR($V1209),\"\",OFFSET('Smelter Look-up'!$E$4,$V1209-4,0))","v":""},{"$f":"IF(C1209=$X$4,\"Enter smelter details\", IF(ISERROR($V1209),\"\",OFFSET('Smelter Look-up'!$F$4,$V1209-4,0)))","v":""},{"$f":"IF(ISERROR($V1209),\"\",OFFSET('Smelter Look-up'!$G$4,$V1209-4,0))","v":""},{"$f":"IF(ISERROR($V1209),\"\",OFFSET('Smelter Look-up'!$H$4,$V1209-4,0))","v":""},{"$f":"IF(ISERROR($V1209),\"\",OFFSET('Smelter Look-up'!$I$4,$V1209-4,0))","v":""},{"$nulls":7},{"$f":"IF(ISERROR($V1209),\"\",OFFSET('Smelter Look-up'!$C$4,$V1209-4,0)&\"\")","v":""},"",{"$f":"IF(B1209=\"\",\"\",IF(ISERROR(MATCH($J1209,SorP!$B$1:$B$6230,0)),\"\",INDIRECT(\"'SorP'!$A$\"&MATCH($J1209,SorP!$B$1:$B$6230,0))))","v":""},null,{"$f":"IF(C1209=\"\",NA(),MATCH($B1209&$C1209,'Smelter Look-up'!$J:$J,0))","v":{"$error":"#N/A"}},null,0,null,null,null,""]
[null,{"$f":"IF(LEN(A1210)=0,\"\",INDEX('Smelter Look-up'!$A:$A,MATCH($A1210,'Smelter Look-up'!$E:$E,0)))","v":""},{"$f":"IF(LEN(A1210)=0,\"\",INDEX('Smelter Look-up'!$C:$C,MATCH($A1210,'Smelter Look-up'!$E:$E,0)))","v":""},null,{"$f":"IF(ISERROR($V1210),\"\",OFFSET('Smelter Look-up'!$D$4,$V1210-4,0)&\"\")","v":""},{"$f":"IF(ISERROR($V1210),\"\",OFFSET('Smelter Look-up'!$E$4,$V1210-4,0))","v":""},{"$f":"IF(C1210=$X$4,\"Enter smelter details\", IF(ISERROR($V1210),\"\",OFFSET('Smelter Look-up'!$F$4,$V1210-4,0)))","v":""},{"$f":"IF(ISERROR($V1210),\"\",OFFSET('Smelter Look-up'!$G$4,$V1210-4,0))","v":""},{"$f":"IF(ISERROR($V1210),\"\",OFFSET('Smelter Look-up'!$H$4,$V1210-4,0))","v":""},{"$f":"IF(ISERROR($V1210),\"\",OFFSET('Smelter Look-up'!$I$4,$V1210-4,0))","v":""},{"$nulls":7},{"$f":"IF(ISERROR($V1210),\"\",OFFSET('Smelter Look-up'!$C$4,$V1210-4,0)&\"\")","v":""},"",{"$f":"IF(B1210=\"\",\"\",IF(ISERROR(MATCH($J1210,SorP!$B$1:$B$6230,0)),\"\",INDIRECT(\"'SorP'!$A$\"&MATCH($J1210,SorP!$B$1:$B$6230,0))))","v":""},null,{"$f":"IF(C1210=\"\",NA(),MATCH($B1210&$C1210,'Smelter Look-up'!$J:$J,0))","v":{"$error":"#N/A"}},null,0,null,null,null,""]
[null,{"$f":"IF(LEN(A1211)=0,\"\",INDEX('Smelter Look-up'!$A:$A,MATCH($A1211,'Smelter Look-up'!$E:$E,0)))","v":""},{"$f":"IF(LEN(A1211)=0,\"\",INDEX('Smelter Look-up'!$C:$C,MATCH($A1211,'Smelter Look-up'!$E:$E,0)))","v":""},null,{"$f":"IF(ISERROR($V1211),\"\",OFFSET('Smelter Look-up'!$D$4,$V1211-4,0)&\"\")","v":""},{"$f":"IF(ISERROR($V1211),\"\",OFFSET('Smelter Look-up'!$E$4,$V1211-4,0))","v":""},{"$f":"IF(C1211=$X$4,\"Enter smelter details\", IF(ISERROR($V1211),\"\",OFFSET('Smelter Look-up'!$F$4,$V1211-4,0)))","v":""},{"$f":"IF(ISERROR($V1211),\"\",OFFSET('Smelter Look-up'!$G$4,$V1211-4,0))","v":""},{"$f":"IF(ISERROR($V1211),\"\",OFFSET('Smelter Look-up'!$H$4,$V1211-4,0))","v":""},{"$f":"IF(ISERROR($V1211),\"\",OFFSET('Smelter Look-up'!$I$4,$V1211-4,0))","v":""},{"$nulls":7},{"$f":"IF(ISERROR($V1211),\"\",OFFSET('Smelter Look-up'!$C$4,$V1211-4,0)&\"\")","v":""},{"$f":"IF(B1211=\"\",\"\",IF(ISERROR(MATCH($E1211,CL,0)),\"Unknown\",INDIRECT(\"'C'!$A$\"&MATCH($E1211,CL,0)+1)))","v":""},{"$f":"IF(B1211=\"\",\"\",IF(ISERROR(MATCH($J1211,SorP!$B$1:$B$6230,0)),\"\",INDIRECT(\"'SorP'!$A$\"&MATCH($J1211,SorP!$B$1:$B$6230,0))))","v":""},null,{"$f":"IF(C1211=\"\",NA(),MATCH($B1211&$C1211,'Smelter Look-up'!$J:$J,0))","v":{"$error":"#N/A"}},null,{"$f":"IF(AND(C1211=\"Smelter not listed\",OR(LEN(D1211)=0,LEN(E1211)=0)),1,0)","v":0},null,null,null,{"$f":"B1211&C1211","v":""}]
[null,{"$f":"IF(LEN(A1212)=0,\"\",INDEX('Smelter Look-up'!$A:$A,MATCH($A1212,'Smelter Look-up'!$E:$E,0)))","v":""},{"$f":"IF(LEN(A1212)=0,\"\",INDEX('Smelter Look-up'!$C:$C,MATCH($A1212,'Smelter Look-up'!$E:$E,0)))","v":""},null,{"$f":"IF(ISERROR($V1212),\"\",OFFSET('Smelter Look-up'!$D$4,$V1212-4,0)&\"\")","v":""},{"$f":"IF(ISERROR($V1212),\"\",OFFSET('Smelter Look-up'!$E$4,$V1212-4,0))","v":""},{"$f":"IF(C1212=$X$4,\"Enter smelter details\", IF(ISERROR($V1212),\"\",OFFSET('Smelter Look-up'!$F$4,$V1212-4,0)))","v":""},{"$f":"IF(ISERROR($V1212),\"\",OFFSET('Smelter Look-up'!$G$4,$V1212-4,0))","v":""},{"$f":"IF(ISERROR($V1212),\"\",OFFSET('Smelter Look-up'!$H$4,$V1212-4,0))","v":""},{"$f":"IF(ISERROR($V1212),\"\",OFFSET('Smelter Look-up'!$I$4,$V1212-4,0))","v":""},{"$nulls":7},{"$f":"IF(ISERROR($V1212),\"\",OFFSET('Smelter Look-up'!$C$4,$V1212-4,0)&\"\")","v":""},"",{"$f":"IF(B1212=\"\",\"\",IF(ISERROR(MATCH($J1212,SorP!$B$1:$B$6230,0)),\"\",INDIRECT(\"'SorP'!$A$\"&MATCH($J1212,SorP!$B$1:$B$6230,0))))","v":""},null,{"$f":"IF(C1212=\"\",NA(),MATCH($B1212&$C1212,'Smelter Look-up'!$J:$J,0))","v":{"$error":"#N/A"}},null,0,null,null,null,""]
[null,{"$f":"IF(LEN(A1213)=0,\"\",INDEX('Smelter Look-up'!$A:$A,MATCH($A1213,'Smelter Look-up'!$E:$E,0)))","v":""},{"$f":"IF(LEN(A1213)=0,\"\",INDEX('Smelter Look-up'!$C:$C,MATCH($A1213,'Smelter Look-up'!$E:$E,0)))","v":""},null,{"$f":"IF(ISERROR($V1213),\"\",OFFSET('Smelter Look-up'!$D$4,$V1213-4,0)&\"\")","v":""},{"$f":"IF(ISERROR($V1213),\"\",OFFSET('Smelter Look-up'!$E$4,$V1213-4,0))","v":""},{"$f":"IF(C1213=$X$4,\"Enter smelter details\", IF(ISERROR($V1213),\"\",OFFSET('Smelter Look-up'!$F$4,$V1213-4,0)))","v":""},{"$f":"IF(ISERROR($V1213),\"\",OFFSET('Smelter Look-up'!$G$4,$V1213-4,0))","v":""},{"$f":"IF(ISERROR($V1213),\"\",OFFSET('Smelter Look-up'!$H$4,$V1213-4,0))","v":""},{"$f":"IF(ISERROR($V1213),\"\",OFFSET('Smelter Look-up'!$I$4,$V1213-4,0))","v":""},{"$nulls":7},{"$f":"IF(ISERROR($V1213),\"\",OFFSET('Smelter Look-up'!$C$4,$V1213-4,0)&\"\")","v":""},"",{"$f":"IF(B1213=\"\",\"\",IF(ISERROR(MATCH($J1213,SorP!$B$1:$B$6230,0)),\"\",INDIRECT(\"'SorP'!$A$\"&MATCH($J1213,SorP!$B$1:$B$6230,0))))","v":""},null,{"$f":"IF(C1213=\"\",NA(),MATCH($B1213&$C1213,'Smelter Look-up'!$J:$J,0))","v":{"$error":"#N/A"}},null,0,null,null,null,""]
[null,{"$f":"IF(LEN(A1214)=0,\"\",INDEX('Smelter Look-up'!$A:$A,MATCH($A1214,'Smelter Look-up'!$E:$E,0)))","v":""},{"$f":"IF(LEN(A1214)=0,\"\",INDEX('Smelter Look-up'!$C:$C,MATCH($A1214,'Smelter Look-up'!$E:$E,0)))","v":""},null,{"$f":"IF(ISERROR($V1214),\"\",OFFSET('Smelter Look-up'!$D$4,$V1214-4,0)&\"\")","v":""},{"$f":"IF(ISERROR($V1214),\"\",OFFSET('Smelter Look-up'!$E$4,$V1214-4,0))","v":""},{"$f":"IF(C1214=$X$4,\"Enter smelter details\", IF(ISERROR($V1214),\"\",OFFSET('Smelter Look-up'!$F$4,$V1214-4,0)))","v":""},{"$f":"IF(ISERROR($V1214),\"\",OFFSET('Smelter Look-up'!$G$4,$V1214-4,0))","v":""},{"$f":"IF(ISERROR($V1214),\"\",OFFSET('Smelter Look-up'!$H$4,$V1214-4,0))","v":""},{"$f":"IF(ISERROR($V1214),\"\",OFFSET('Smelter Look-up'!$I$4,$V1214-4,0))","v":""},{"$nulls":7},{"$f":"IF(ISERROR($V1214),\"\",OFFSET('Smelter Look-up'!$C$4,$V1214-4,0)&\"\")","v":""},"",{"$f":"IF(B1214=\"\",\"\",IF(ISERROR(MATCH($J1214,SorP!$B$1:$B$6230,0)),\"\",INDIRECT(\"'SorP'!$A$\"&MATCH($J1214,SorP!$B$1:$B$6230,0))))","v":""},null,{"$f":"IF(C1214=\"\",NA(),MATCH($B1214&$C1214,'Smelter Look-up'!$J:$J,0))","v":{"$error":"#N/A"}},null,0,null,null,null,""]
[null,{"$f":"IF(LEN(A1215)=0,\"\",INDEX('Smelter Look-up'!$A:$A,MATCH($A1215,'Smelter Look-up'!$E:$E,0)))","v":""},{"$f":"IF(LEN(A1215)=0,\"\",INDEX('Smelter Look-up'!$C:$C,MATCH($A1215,'Smelter Look-up'!$E:$E,0)))","v":""},null,{"$f":"IF(ISERROR($V1215),\"\",OFFSET('Smelter Look-up'!$D$4,$V1215-4,0)&\"\")","v":""},{"$f":"IF(ISERROR($V1215),\"\",OFFSET('Smelter Look-up'!$E$4,$V1215-4,0))","v":""},{"$f":"IF(C1215=$X$4,\"Enter smelter details\", IF(ISERROR($V1215),\"\",OFFSET('Smelter Look-up'!$F$4,$V1215-4,0)))","v":""},{"$f":"IF(ISERROR($V1215),\"\",OFFSET('Smelter Look-up'!$G$4,$V1215-4,0))","v":""},{"$f":"IF(ISERROR($V1215),\"\",OFFSET('Smelter Look-up'!$H$4,$V1215-4,0))","v":""},{"$f":"IF(ISERROR($V1215),\"\",OFFSET('Smelter Look-up'!$I$4,$V1215-4,0))","v":""},{"$nulls":7},{"$f":"IF(ISERROR($V1215),\"\",OFFSET('Smelter Look-up'!$C$4,$V1215-4,0)&\"\")","v":""},"",{"$f":"IF(B1215=\"\",\"\",IF(ISERROR(MATCH($J1215,SorP!$B$1:$B$6230,0)),\"\",INDIRECT(\"'SorP'!$A$\"&MATCH($J1215,SorP!$B$1:$B$6230,0))))","v":""},null,{"$f":"IF(C1215=\"\",NA(),MATCH($B1215&$C1215,'Smelter Look-up'!$J:$J,0))","v":{"$error":"#N/A"}},null,0,null,null,null,""]
[null,{"$f":"IF(LEN(A1216)=0,\"\",INDEX('Smelter Look-up'!$A:$A,MATCH($A1216,'Smelter Look-up'!$E:$E,0)))","v":""},{"$f":"IF(LEN(A1216)=0,\"\",INDEX('Smelter Look-up'!$C:$C,MATCH($A1216,'Smelter Look-up'!$E:$E,0)))","v":""},null,{"$f":"IF(ISERROR($V1216),\"\",OFFSET('Smelter Look-up'!$D$4,$V1216-4,0)&\"\")","v":""},{"$f":"IF(ISERROR($V1216),\"\",OFFSET('Smelter Look-up'!$E$4,$V1216-4,0))","v":""},{"$f":"IF(C1216=$X$4,\"Enter smelter details\", IF(ISERROR($V1216),\"\",OFFSET('Smelter Look-up'!$F$4,$V1216-4,0)))","v":""},{"$f":"IF(ISERROR($V1216),\"\",OFFSET('Smelter Look-up'!$G$4,$V1216-4,0))","v":""},{"$f":"IF(ISERROR($V1216),\"\",OFFSET('Smelter Look-up'!$H$4,$V1216-4,0))","v":""},{"$f":"IF(ISERROR($V1216),\"\",OFFSET('Smelter Look-up'!$I$4,$V1216-4,0))","v":""},{"$nulls":7},{"$f":"IF(ISERROR($V1216),\"\",OFFSET('Smelter Look-up'!$C$4,$V1216-4,0)&\"\")","v":""},"",{"$f":"IF(B1216=\"\",\"\",IF(ISERROR(MATCH($J1216,SorP!$B$1:$B$6230,0)),\"\",INDIRECT(\"'SorP'!$A$\"&MATCH($J1216,SorP!$B$1:$B$6230,0))))","v":""},null,{"$f":"IF(C1216=\"\",NA(),MATCH($B1216&$C1216,'Smelter Look-up'!$J:$J,0))","v":{"$error":"#N/A"}},null,0,null,null,null,""]
[null,{"$f":"IF(LEN(A1217)=0,\"\",INDEX('Smelter Look-up'!$A:$A,MATCH($A1217,'Smelter Look-up'!$E:$E,0)))","v":""},{"$f":"IF(LEN(A1217)=0,\"\",INDEX('Smelter Look-up'!$C:$C,MATCH($A1217,'Smelter Look-up'!$E:$E,0)))","v":""},null,{"$f":"IF(ISERROR($V1217),\"\",OFFSET('Smelter Look-up'!$D$4,$V1217-4,0)&\"\")","v":""},{"$f":"IF(ISERROR($V1217),\"\",OFFSET('Smelter Look-up'!$E$4,$V1217-4,0))","v":""},{"$f":"IF(C1217=$X$4,\"Enter smelter details\", IF(ISERROR($V1217),\"\",OFFSET('Smelter Look-up'!$F$4,$V1217-4,0)))","v":""},{"$f":"IF(ISERROR($V1217),\"\",OFFSET('Smelter Look-up'!$G$4,$V1217-4,0))","v":""},{"$f":"IF(ISERROR($V1217),\"\",OFFSET('Smelter Look-up'!$H$4,$V1217-4,0))","v":""},{"$f":"IF(ISERROR($V1217),\"\",OFFSET('Smelter Look-up'!$I$4,$V1217-4,0))","v":""},{"$nulls":7},{"$f":"IF(ISERROR($V1217),\"\",OFFSET('Smelter Look-up'!$C$4,$V1217-4,0)&\"\")","v":""},"",{"$f":"IF(B1217=\"\",\"\",IF(ISERROR(MATCH($J1217,SorP!$B$1:$B$6230,0)),\"\",INDIRECT(\"'SorP'!$A$\"&MATCH($J1217,SorP!$B$1:$B$6230,0))))","v":""},null,{"$f":"IF(C1217=\"\",NA(),MATCH($B1217&$C1217,'Smelter Look-up'!$J:$J,0))","v":{"$error":"#N/A"}},null,0,null,null,null,""]
[null,{"$f":"IF(LEN(A1218)=0,\"\",INDEX('Smelter Look-up'!$A:$A,MATCH($A1218,'Smelter Look-up'!$E:$E,0)))","v":""},{"$f":"IF(LEN(A1218)=0,\"\",INDEX('Smelter Look-up'!$C:$C,MATCH($A1218,'Smelter Look-up'!$E:$E,0)))","v":""},null,{"$f":"IF(ISERROR($V1218),\"\",OFFSET('Smelter Look-up'!$D$4,$V1218-4,0)&\"\")","v":""},{"$f":"IF(ISERROR($V1218),\"\",OFFSET('Smelter Look-up'!$E$4,$V1218-4,0))","v":""},{"$f":"IF(C1218=$X$4,\"Enter smelter details\", IF(ISERROR($V1218),\"\",OFFSET('Smelter Look-up'!$F$4,$V1218-4,0)))","v":""},{"$f":"IF(ISERROR($V1218),\"\",OFFSET('Smelter Look-up'!$G$4,$V1218-4,0))","v":""},{"$f":"IF(ISERROR($V1218),\"\",OFFSET('Smelter Look-up'!$H$4,$V1218-4,0))","v":""},{"$f":"IF(ISERROR($V1218),\"\",OFFSET('Smelter Look-up'!$I$4,$V1218-4,0))","v":""},{"$nulls":7},{"$f":"IF(ISERROR($V1218),\"\",OFFSET('Smelter Look-up'!$C$4,$V1218-4,0)&\"\")","v":""},"",{"$f":"IF(B1218=\"\",\"\",IF(ISERROR(MATCH($J1218,SorP!$B$1:$B$6230,0)),\"\",INDIRECT(\"'SorP'!$A$\"&MATCH($J1218,SorP!$B$1:$B$6230,0))))","v":""},null,{"$f":"IF(C1218=\"\",NA(),MATCH($B1218&$C1218,'Smelter Look-up'!$J:$J,0))","v":{"$error":"#N/A"}},null,0,null,null,null,""]
[null,{"$f":"IF(LEN(A1219)=0,\"\",INDEX('Smelter Look-up'!$A:$A,MATCH($A1219,'Smelter Look-up'!$E:$E,0)))","v":""},{"$f":"IF(LEN(A1219)=0,\"\",INDEX('Smelter Look-up'!$C:$C,MATCH($A1219,'Smelter Look-up'!$E:$E,0)))","v":""},null,{"$f":"IF(ISERROR($V1219),\"\",OFFSET('Smelter Look-up'!$D$4,$V1219-4,0)&\"\")","v":""},{"$f":"IF(ISERROR($V1219),\"\",OFFSET('Smelter Look-up'!$E$4,$V1219-4,0))","v":""},{"$f":"IF(C1219=$X$4,\"Enter smelter details\", IF(ISERROR($V1219),\"\",OFFSET('Smelter Look-up'!$F$4,$V1219-4,0)))","v":""},{"$f":"IF(ISERROR($V1219),\"\",OFFSET('Smelter Look-up'!$G$4,$V1219-4,0))","v":""},{"$f":"IF(ISERROR($V1219),\"\",OFFSET('Smelter Look-up'!$H$4,$V1219-4,0))","v":""},{"$f":"IF(ISERROR($V1219),\"\",OFFSET('Smelter Look-up'!$I$4,$V1219-4,0))","v":""},{"$nulls":7},{"$f":"IF(ISERROR($V1219),\"\",OFFSET('Smelter Look-up'!$C$4,$V1219-4,0)&\"\")","v":""},"",{"$f":"IF(B1219=\"\",\"\",IF(ISERROR(MATCH($J1219,SorP!$B$1:$B$6230,0)),\"\",INDIRECT(\"'SorP'!$A$\"&MATCH($J1219,SorP!$B$1:$B$6230,0))))","v":""},null,{"$f":"IF(C1219=\"\",NA(),MATCH($B1219&$C1219,'Smelter Look-up'!$J:$J,0))","v":{"$error":"#N/A"}},null,0,null,null,null,""]
[null,{"$f":"IF(LEN(A1220)=0,\"\",INDEX('Smelter Look-up'!$A:$A,MATCH($A1220,'Smelter Look-up'!$E:$E,0)))","v":""},{"$f":"IF(LEN(A1220)=0,\"\",INDEX('Smelter Look-up'!$C:$C,MATCH($A1220,'Smelter Look-up'!$E:$E,0)))","v":""},null,{"$f":"IF(ISERROR($V1220),\"\",OFFSET('Smelter Look-up'!$D$4,$V1220-4,0)&\"\")","v":""},{"$f":"IF(ISERROR($V1220),\"\",OFFSET('Smelter Look-up'!$E$4,$V1220-4,0))","v":""},{"$f":"IF(C1220=$X$4,\"Enter smelter details\", IF(ISERROR($V1220),\"\",OFFSET('Smelter Look-up'!$F$4,$V1220-4,0)))","v":""},{"$f":"IF(ISERROR($V1220),\"\",OFFSET('Smelter Look-up'!$G$4,$V1220-4,0))","v":""},{"$f":"IF(ISERROR($V1220),\"\",OFFSET('Smelter Look-up'!$H$4,$V1220-4,0))","v":""},{"$f":"IF(ISERROR($V1220),\"\",OFFSET('Smelter Look-up'!$I$4,$V1220-4,0))","v":""},{"$nulls":7},{"$f":"IF(ISERROR($V1220),\"\",OFFSET('Smelter Look-up'!$C$4,$V1220-4,0)&\"\")","v":""},"",{"$f":"IF(B1220=\"\",\"\",IF(ISERROR(MATCH($J1220,SorP!$B$1:$B$6230,0)),\"\",INDIRECT(\"'SorP'!$A$\"&MATCH($J1220,SorP!$B$1:$B$6230,0))))","v":""},null,{"$f":"IF(C1220=\"\",NA(),MATCH($B1220&$C1220,'Smelter Look-up'!$J:$J,0))","v":{"$error":"#N/A"}},null,0,null,null,null,""]
[null,{"$f":"IF(LEN(A1221)=0,\"\",INDEX('Smelter Look-up'!$A:$A,MATCH($A1221,'Smelter Look-up'!$E:$E,0)))","v":""},{"$f":"IF(LEN(A1221)=0,\"\",INDEX('Smelter Look-up'!$C:$C,MATCH($A1221,'Smelter Look-up'!$E:$E,0)))","v":""},null,{"$f":"IF(ISERROR($V1221),\"\",OFFSET('Smelter Look-up'!$D$4,$V1221-4,0)&\"\")","v":""},{"$f":"IF(ISERROR($V1221),\"\",OFFSET('Smelter Look-up'!$E$4,$V1221-4,0))","v":""},{"$f":"IF(C1221=$X$4,\"Enter smelter details\", IF(ISERROR($V1221),\"\",OFFSET('Smelter Look-up'!$F$4,$V1221-4,0)))","v":""},{"$f":"IF(ISERROR($V1221),\"\",OFFSET('Smelter Look-up'!$G$4,$V1221-4,0))","v":""},{"$f":"IF(ISERROR($V1221),\"\",OFFSET('Smelter Look-up'!$H$4,$V1221-4,0))","v":""},{"$f":"IF(ISERROR($V1221),\"\",OFFSET('Smelter Look-up'!$I$4,$V1221-4,0))","v":""},{"$nulls":7},{"$f":"IF(ISERROR($V1221),\"\",OFFSET('Smelter Look-up'!$C$4,$V1221-4,0)&\"\")","v":""},"",{"$f":"IF(B1221=\"\",\"\",IF(ISERROR(MATCH($J1221,SorP!$B$1:$B$6230,0)),\"\",INDIRECT(\"'SorP'!$A$\"&MATCH($J1221,SorP!$B$1:$B$6230,0))))","v":""},null,{"$f":"IF(C1221=\"\",NA(),MATCH($B1221&$C1221,'Smelter Look-up'!$J:$J,0))","v":{"$error":"#N/A"}},null,0,null,null,null,""]
[null,{"$f":"IF(LEN(A1222)=0,\"\",INDEX('Smelter Look-up'!$A:$A,MATCH($A1222,'Smelter Look-up'!$E:$E,0)))","v":""},{"$f":"IF(LEN(A1222)=0,\"\",INDEX('Smelter Look-up'!$C:$C,MATCH($A1222,'Smelter Look-up'!$E:$E,0)))","v":""},null,{"$f":"IF(ISERROR($V1222),\"\",OFFSET('Smelter Look-up'!$D$4,$V1222-4,0)&\"\")","v":""},{"$f":"IF(ISERROR($V1222),\"\",OFFSET('Smelter Look-up'!$E$4,$V1222-4,0))","v":""},{"$f":"IF(C1222=$X$4,\"Enter smelter details\", IF(ISERROR($V1222),\"\",OFFSET('Smelter Look-up'!$F$4,$V1222-4,0)))","v":""},{"$f":"IF(ISERROR($V1222),\"\",OFFSET('Smelter Look-up'!$G$4,$V1222-4,0))","v":""},{"$f":"IF(ISERROR($V1222),\"\",OFFSET('Smelter Look-up'!$H$4,$V1222-4,0))","v":""},{"$f":"IF(ISERROR($V1222),\"\",OFFSET('Smelter Look-up'!$I$4,$V1222-4,0))","v":""},{"$nulls":7},{"$f":"IF(ISERROR($V1222),\"\",OFFSET('Smelter Look-up'!$C$4,$V1222-4,0)&\"\")","v":""},"",{"$f":"IF(B1222=\"\",\"\",IF(ISERROR(MATCH($J1222,SorP!$B$1:$B$6230,0)),\"\",INDIRECT(\"'SorP'!$A$\"&MATCH($J1222,SorP!$B$1:$B$6230,0))))","v":""},null,{"$f":"IF(C1222=\"\",NA(),MATCH($B1222&$C1222,'Smelter Look-up'!$J:$J,0))","v":{"$error":"#N/A"}},null,0,null,null,null,""]
[null,{"$f":"IF(LEN(A1223)=0,\"\",INDEX('Smelter Look-up'!$A:$A,MATCH($A1223,'Smelter Look-up'!$E:$E,0)))","v":""},{"$f":"IF(LEN(A1223)=0,\"\",INDEX('Smelter Look-up'!$C:$C,MATCH($A1223,'Smelter Look-up'!$E:$E,0)))","v":""},null,{"$f":"IF(ISERROR($V1223),\"\",OFFSET('Smelter Look-up'!$D$4,$V1223-4,0)&\"\")","v":""},{"$f":"IF(ISERROR($V1223),\"\",OFFSET('Smelter Look-up'!$E$4,$V1223-4,0))","v":""},{"$f":"IF(C1223=$X$4,\"Enter smelter details\", IF(ISERROR($V1223),\"\",OFFSET('Smelter Look-up'!$F$4,$V1223-4,0)))","v":""},{"$f":"IF(ISERROR($V1223),\"\",OFFSET('Smelter Look-up'!$G$4,$V1223-4,0))","v":""},{"$f":"IF(ISERROR($V1223),\"\",OFFSET('Smelter Look-up'!$H$4,$V1223-4,0))","v":""},{"$f":"IF(ISERROR($V1223),\"\",OFFSET('Smelter Look-up'!$I$4,$V1223-4,0))","v":""},{"$nulls":7},{"$f":"IF(ISERROR($V1223),\"\",OFFSET('Smelter Look-up'!$C$4,$V1223-4,0)&\"\")","v":""},"",{"$f":"IF(B1223=\"\",\"\",IF(ISERROR(MATCH($J1223,SorP!$B$1:$B$6230,0)),\"\",INDIRECT(\"'SorP'!$A$\"&MATCH($J1223,SorP!$B$1:$B$6230,0))))","v":""},null,{"$f":"IF(C1223=\"\",NA(),MATCH($B1223&$C1223,'Smelter Look-up'!$J:$J,0))","v":{"$error":"#N/A"}},null,0,null,null,null,""]
[null,{"$f":"IF(LEN(A1224)=0,\"\",INDEX('Smelter Look-up'!$A:$A,MATCH($A1224,'Smelter Look-up'!$E:$E,0)))","v":""},{"$f":"IF(LEN(A1224)=0,\"\",INDEX('Smelter Look-up'!$C:$C,MATCH($A1224,'Smelter Look-up'!$E:$E,0)))","v":""},null,{"$f":"IF(ISERROR($V1224),\"\",OFFSET('Smelter Look-up'!$D$4,$V1224-4,0)&\"\")","v":""},{"$f":"IF(ISERROR($V1224),\"\",OFFSET('Smelter Look-up'!$E$4,$V1224-4,0))","v":""},{"$f":"IF(C1224=$X$4,\"Enter smelter details\", IF(ISERROR($V1224),\"\",OFFSET('Smelter Look-up'!$F$4,$V1224-4,0)))","v":""},{"$f":"IF(ISERROR($V1224),\"\",OFFSET('Smelter Look-up'!$G$4,$V1224-4,0))","v":""},{"$f":"IF(ISERROR($V1224),\"\",OFFSET('Smelter Look-up'!$H$4,$V1224-4,0))","v":""},{"$f":"IF(ISERROR($V1224),\"\",OFFSET('Smelter Look-up'!$I$4,$V1224-4,0))","v":""},{"$nulls":7},{"$f":"IF(ISERROR($V1224),\"\",OFFSET('Smelter Look-up'!$C$4,$V1224-4,0)&\"\")","v":""},"",{"$f":"IF(B1224=\"\",\"\",IF(ISERROR(MATCH($J1224,SorP!$B$1:$B$6230,0)),\"\",INDIRECT(\"'SorP'!$A$\"&MATCH($J1224,SorP!$B$1:$B$6230,0))))","v":""},null,{"$f":"IF(C1224=\"\",NA(),MATCH($B1224&$C1224,'Smelter Look-up'!$J:$J,0))","v":{"$error":"#N/A"}},null,0,null,null,null,""]
[null,{"$f":"IF(LEN(A1225)=0,\"\",INDEX('Smelter Look-up'!$A:$A,MATCH($A1225,'Smelter Look-up'!$E:$E,0)))","v":""},{"$f":"IF(LEN(A1225)=0,\"\",INDEX('Smelter Look-up'!$C:$C,MATCH($A1225,'Smelter Look-up'!$E:$E,0)))","v":""},null,{"$f":"IF(ISERROR($V1225),\"\",OFFSET('Smelter Look-up'!$D$4,$V1225-4,0)&\"\")","v":""},{"$f":"IF(ISERROR($V1225),\"\",OFFSET('Smelter Look-up'!$E$4,$V1225-4,0))","v":""},{"$f":"IF(C1225=$X$4,\"Enter smelter details\", IF(ISERROR($V1225),\"\",OFFSET('Smelter Look-up'!$F$4,$V1225-4,0)))","v":""},{"$f":"IF(ISERROR($V1225),\"\",OFFSET('Smelter Look-up'!$G$4,$V1225-4,0))","v":""},{"$f":"IF(ISERROR($V1225),\"\",OFFSET('Smelter Look-up'!$H$4,$V1225-4,0))","v":""},{"$f":"IF(ISERROR($V1225),\"\",OFFSET('Smelter Look-up'!$I$4,$V1225-4,0))","v":""},{"$nulls":7},{"$f":"IF(ISERROR($V1225),\"\",OFFSET('Smelter Look-up'!$C$4,$V1225-4,0)&\"\")","v":""},"",{"$f":"IF(B1225=\"\",\"\",IF(ISERROR(MATCH($J1225,SorP!$B$1:$B$6230,0)),\"\",INDIRECT(\"'SorP'!$A$\"&MATCH($J1225,SorP!$B$1:$B$6230,0))))","v":""},null,{"$f":"IF(C1225=\"\",NA(),MATCH($B1225&$C1225,'Smelter Look-up'!$J:$J,0))","v":{"$error":"#N/A"}},null,0,null,null,null,""]
[null,{"$f":"IF(LEN(A1226)=0,\"\",INDEX('Smelter Look-up'!$A:$A,MATCH($A1226,'Smelter Look-up'!$E:$E,0)))","v":""},{"$f":"IF(LEN(A1226)=0,\"\",INDEX('Smelter Look-up'!$C:$C,MATCH($A1226,'Smelter Look-up'!$E:$E,0)))","v":""},null,{"$f":"IF(ISERROR($V1226),\"\",OFFSET('Smelter Look-up'!$D$4,$V1226-4,0)&\"\")","v":""},{"$f":"IF(ISERROR($V1226),\"\",OFFSET('Smelter Look-up'!$E$4,$V1226-4,0))","v":""},{"$f":"IF(C1226=$X$4,\"Enter smelter details\", IF(ISERROR($V1226),\"\",OFFSET('Smelter Look-up'!$F$4,$V1226-4,0)))","v":""},{"$f":"IF(ISERROR($V1226),\"\",OFFSET('Smelter Look-up'!$G$4,$V1226-4,0))","v":""},{"$f":"IF(ISERROR($V1226),\"\",OFFSET('Smelter Look-up'!$H$4,$V1226-4,0))","v":""},{"$f":"IF(ISERROR($V1226),\"\",OFFSET('Smelter Look-up'!$I$4,$V1226-4,0))","v":""},{"$nulls":7},{"$f":"IF(ISERROR($V1226),\"\",OFFSET('Smelter Look-up'!$C$4,$V1226-4,0)&\"\")","v":""},"",{"$f":"IF(B1226=\"\",\"\",IF(ISERROR(MATCH($J1226,SorP!$B$1:$B$6230,0)),\"\",INDIRECT(\"'SorP'!$A$\"&MATCH($J1226,SorP!$B$1:$B$6230,0))))","v":""},null,{"$f":"IF(C1226=\"\",NA(),MATCH($B1226&$C1226,'Smelter Look-up'!$J:$J,0))","v":{"$error":"#N/A"}},null,0,null,null,null,""]
[null,{"$f":"IF(LEN(A1227)=0,\"\",INDEX('Smelter Look-up'!$A:$A,MATCH($A1227,'Smelter Look-up'!$E:$E,0)))","v":""},{"$f":"IF(LEN(A1227)=0,\"\",INDEX('Smelter Look-up'!$C:$C,MATCH($A1227,'Smelter Look-up'!$E:$E,0)))","v":""},null,{"$f":"IF(ISERROR($V1227),\"\",OFFSET('Smelter Look-up'!$D$4,$V1227-4,0)&\"\")","v":""},{"$f":"IF(ISERROR($V1227),\"\",OFFSET('Smelter Look-up'!$E$4,$V1227-4,0))","v":""},{"$f":"IF(C1227=$X$4,\"Enter smelter details\", IF(ISERROR($V1227),\"\",OFFSET('Smelter Look-up'!$F$4,$V1227-4,0)))","v":""},{"$f":"IF(ISERROR($V1227),\"\",OFFSET('Smelter Look-up'!$G$4,$V1227-4,0))","v":""},{"$f":"IF(ISERROR($V1227),\"\",OFFSET('Smelter Look-up'!$H$4,$V1227-4,0))","v":""},{"$f":"IF(ISERROR($V1227),\"\",OFFSET('Smelter Look-up'!$I$4,$V1227-4,0))","v":""},{"$nulls":7},{"$f":"IF(ISERROR($V1227),\"\",OFFSET('Smelter Look-up'!$C$4,$V1227-4,0)&\"\")","v":""},"",{"$f":"IF(B1227=\"\",\"\",IF(ISERROR(MATCH($J1227,SorP!$B$1:$B$6230,0)),\"\",INDIRECT(\"'SorP'!$A$\"&MATCH($J1227,SorP!$B$1:$B$6230,0))))","v":""},null,{"$f":"IF(C1227=\"\",NA(),MATCH($B1227&$C1227,'Smelter Look-up'!$J:$J,0))","v":{"$error":"#N/A"}},null,0,null,null,null,""]
[null,{"$f":"IF(LEN(A1228)=0,\"\",INDEX('Smelter Look-up'!$A:$A,MATCH($A1228,'Smelter Look-up'!$E:$E,0)))","v":""},{"$f":"IF(LEN(A1228)=0,\"\",INDEX('Smelter Look-up'!$C:$C,MATCH($A1228,'Smelter Look-up'!$E:$E,0)))","v":""},null,{"$f":"IF(ISERROR($V1228),\"\",OFFSET('Smelter Look-up'!$D$4,$V1228-4,0)&\"\")","v":""},{"$f":"IF(ISERROR($V1228),\"\",OFFSET('Smelter Look-up'!$E$4,$V1228-4,0))","v":""},{"$f":"IF(C1228=$X$4,\"Enter smelter details\", IF(ISERROR($V1228),\"\",OFFSET('Smelter Look-up'!$F$4,$V1228-4,0)))","v":""},{"$f":"IF(ISERROR($V1228),\"\",OFFSET('Smelter Look-up'!$G$4,$V1228-4,0))","v":""},{"$f":"IF(ISERROR($V1228),\"\",OFFSET('Smelter Look-up'!$H$4,$V1228-4,0))","v":""},{"$f":"IF(ISERROR($V1228),\"\",OFFSET('Smelter Look-up'!$I$4,$V1228-4,0))","v":""},{"$nulls":7},{"$f":"IF(ISERROR($V1228),\"\",OFFSET('Smelter Look-up'!$C$4,$V1228-4,0)&\"\")","v":""},"",{"$f":"IF(B1228=\"\",\"\",IF(ISERROR(MATCH($J1228,SorP!$B$1:$B$6230,0)),\"\",INDIRECT(\"'SorP'!$A$\"&MATCH($J1228,SorP!$B$1:$B$6230,0))))","v":""},null,{"$f":"IF(C1228=\"\",NA(),MATCH($B1228&$C1228,'Smelter Look-up'!$J:$J,0))","v":{"$error":"#N/A"}},null,0,null,null,null,""]
[null,{"$f":"IF(LEN(A1229)=0,\"\",INDEX('Smelter Look-up'!$A:$A,MATCH($A1229,'Smelter Look-up'!$E:$E,0)))","v":""},{"$f":"IF(LEN(A1229)=0,\"\",INDEX('Smelter Look-up'!$C:$C,MATCH($A1229,'Smelter Look-up'!$E:$E,0)))","v":""},null,{"$f":"IF(ISERROR($V1229),\"\",OFFSET('Smelter Look-up'!$D$4,$V1229-4,0)&\"\")","v":""},{"$f":"IF(ISERROR($V1229),\"\",OFFSET('Smelter Look-up'!$E$4,$V1229-4,0))","v":""},{"$f":"IF(C1229=$X$4,\"Enter smelter details\", IF(ISERROR($V1229),\"\",OFFSET('Smelter Look-up'!$F$4,$V1229-4,0)))","v":""},{"$f":"IF(ISERROR($V1229),\"\",OFFSET('Smelter Look-up'!$G$4,$V1229-4,0))","v":""},{"$f":"IF(ISERROR($V1229),\"\",OFFSET('Smelter Look-up'!$H$4,$V1229-4,0))","v":""},{"$f":"IF(ISERROR($V1229),\"\",OFFSET('Smelter Look-up'!$I$4,$V1229-4,0))","v":""},{"$nulls":7},{"$f":"IF(ISERROR($V1229),\"\",OFFSET('Smelter Look-up'!$C$4,$V1229-4,0)&\"\")","v":""},"",{"$f":"IF(B1229=\"\",\"\",IF(ISERROR(MATCH($J1229,SorP!$B$1:$B$6230,0)),\"\",INDIRECT(\"'SorP'!$A$\"&MATCH($J1229,SorP!$B$1:$B$6230,0))))","v":""},null,{"$f":"IF(C1229=\"\",NA(),MATCH($B1229&$C1229,'Smelter Look-up'!$J:$J,0))","v":{"$error":"#N/A"}},null,0,null,null,null,""]
[null,{"$f":"IF(LEN(A1230)=0,\"\",INDEX('Smelter Look-up'!$A:$A,MATCH($A1230,'Smelter Look-up'!$E:$E,0)))","v":""},{"$f":"IF(LEN(A1230)=0,\"\",INDEX('Smelter Look-up'!$C:$C,MATCH($A1230,'Smelter Look-up'!$E:$E,0)))","v":""},null,{"$f":"IF(ISERROR($V1230),\"\",OFFSET('Smelter Look-up'!$D$4,$V1230-4,0)&\"\")","v":""},{"$f":"IF(ISERROR($V1230),\"\",OFFSET('Smelter Look-up'!$E$4,$V1230-4,0))","v":""},{"$f":"IF(C1230=$X$4,\"Enter smelter details\", IF(ISERROR($V1230),\"\",OFFSET('Smelter Look-up'!$F$4,$V1230-4,0)))","v":""},{"$f":"IF(ISERROR($V1230),\"\",OFFSET('Smelter Look-up'!$G$4,$V1230-4,0))","v":""},{"$f":"IF(ISERROR($V1230),\"\",OFFSET('Smelter Look-up'!$H$4,$V1230-4,0))","v":""},{"$f":"IF(ISERROR($V1230),\"\",OFFSET('Smelter Look-up'!$I$4,$V1230-4,0))","v":""},{"$nulls":7},{"$f":"IF(ISERROR($V1230),\"\",OFFSET('Smelter Look-up'!$C$4,$V1230-4,0)&\"\")","v":""},"",{"$f":"IF(B1230=\"\",\"\",IF(ISERROR(MATCH($J1230,SorP!$B$1:$B$6230,0)),\"\",INDIRECT(\"'SorP'!$A$\"&MATCH($J1230,SorP!$B$1:$B$6230,0))))","v":""},null,{"$f":"IF(C1230=\"\",NA(),MATCH($B1230&$C1230,'Smelter Look-up'!$J:$J,0))","v":{"$error":"#N/A"}},null,0,null,null,null,""]
[null,{"$f":"IF(LEN(A1231)=0,\"\",INDEX('Smelter Look-up'!$A:$A,MATCH($A1231,'Smelter Look-up'!$E:$E,0)))","v":""},{"$f":"IF(LEN(A1231)=0,\"\",INDEX('Smelter Look-up'!$C:$C,MATCH($A1231,'Smelter Look-up'!$E:$E,0)))","v":""},null,{"$f":"IF(ISERROR($V1231),\"\",OFFSET('Smelter Look-up'!$D$4,$V1231-4,0)&\"\")","v":""},{"$f":"IF(ISERROR($V1231),\"\",OFFSET('Smelter Look-up'!$E$4,$V1231-4,0))","v":""},{"$f":"IF(C1231=$X$4,\"Enter smelter details\", IF(ISERROR($V1231),\"\",OFFSET('Smelter Look-up'!$F$4,$V1231-4,0)))","v":""},{"$f":"IF(ISERROR($V1231),\"\",OFFSET('Smelter Look-up'!$G$4,$V1231-4,0))","v":""},{"$f":"IF(ISERROR($V1231),\"\",OFFSET('Smelter Look-up'!$H$4,$V1231-4,0))","v":""},{"$f":"IF(ISERROR($V1231),\"\",OFFSET('Smelter Look-up'!$I$4,$V1231-4,0))","v":""},{"$nulls":7},{"$f":"IF(ISERROR($V1231),\"\",OFFSET('Smelter Look-up'!$C$4,$V1231-4,0)&\"\")","v":""},"",{"$f":"IF(B1231=\"\",\"\",IF(ISERROR(MATCH($J1231,SorP!$B$1:$B$6230,0)),\"\",INDIRECT(\"'SorP'!$A$\"&MATCH($J1231,SorP!$B$1:$B$6230,0))))","v":""},null,{"$f":"IF(C1231=\"\",NA(),MATCH($B1231&$C1231,'Smelter Look-up'!$J:$J,0))","v":{"$error":"#N/A"}},null,0,null,null,null,""]
[null,{"$f":"IF(LEN(A1232)=0,\"\",INDEX('Smelter Look-up'!$A:$A,MATCH($A1232,'Smelter Look-up'!$E:$E,0)))","v":""},{"$f":"IF(LEN(A1232)=0,\"\",INDEX('Smelter Look-up'!$C:$C,MATCH($A1232,'Smelter Look-up'!$E:$E,0)))","v":""},null,{"$f":"IF(ISERROR($V1232),\"\",OFFSET('Smelter Look-up'!$D$4,$V1232-4,0)&\"\")","v":""},{"$f":"IF(ISERROR($V1232),\"\",OFFSET('Smelter Look-up'!$E$4,$V1232-4,0))","v":""},{"$f":"IF(C1232=$X$4,\"Enter smelter details\", IF(ISERROR($V1232),\"\",OFFSET('Smelter Look-up'!$F$4,$V1232-4,0)))","v":""},{"$f":"IF(ISERROR($V1232),\"\",OFFSET('Smelter Look-up'!$G$4,$V1232-4,0))","v":""},{"$f":"IF(ISERROR($V1232),\"\",OFFSET('Smelter Look-up'!$H$4,$V1232-4,0))","v":""},{"$f":"IF(ISERROR($V1232),\"\",OFFSET('Smelter Look-up'!$I$4,$V1232-4,0))","v":""},{"$nulls":7},{"$f":"IF(ISERROR($V1232),\"\",OFFSET('Smelter Look-up'!$C$4,$V1232-4,0)&\"\")","v":""},"",{"$f":"IF(B1232=\"\",\"\",IF(ISERROR(MATCH($J1232,SorP!$B$1:$B$6230,0)),\"\",INDIRECT(\"'SorP'!$A$\"&MATCH($J1232,SorP!$B$1:$B$6230,0))))","v":""},null,{"$f":"IF(C1232=\"\",NA(),MATCH($B1232&$C1232,'Smelter Look-up'!$J:$J,0))","v":{"$error":"#N/A"}},null,0,null,null,null,""]
[null,{"$f":"IF(LEN(A1233)=0,\"\",INDEX('Smelter Look-up'!$A:$A,MATCH($A1233,'Smelter Look-up'!$E:$E,0)))","v":""},{"$f":"IF(LEN(A1233)=0,\"\",INDEX('Smelter Look-up'!$C:$C,MATCH($A1233,'Smelter Look-up'!$E:$E,0)))","v":""},null,{"$f":"IF(ISERROR($V1233),\"\",OFFSET('Smelter Look-up'!$D$4,$V1233-4,0)&\"\")","v":""},{"$f":"IF(ISERROR($V1233),\"\",OFFSET('Smelter Look-up'!$E$4,$V1233-4,0))","v":""},{"$f":"IF(C1233=$X$4,\"Enter smelter details\", IF(ISERROR($V1233),\"\",OFFSET('Smelter Look-up'!$F$4,$V1233-4,0)))","v":""},{"$f":"IF(ISERROR($V1233),\"\",OFFSET('Smelter Look-up'!$G$4,$V1233-4,0))","v":""},{"$f":"IF(ISERROR($V1233),\"\",OFFSET('Smelter Look-up'!$H$4,$V1233-4,0))","v":""},{"$f":"IF(ISERROR($V1233),\"\",OFFSET('Smelter Look-up'!$I$4,$V1233-4,0))","v":""},{"$nulls":7},{"$f":"IF(ISERROR($V1233),\"\",OFFSET('Smelter Look-up'!$C$4,$V1233-4,0)&\"\")","v":""},"",{"$f":"IF(B1233=\"\",\"\",IF(ISERROR(MATCH($J1233,SorP!$B$1:$B$6230,0)),\"\",INDIRECT(\"'SorP'!$A$\"&MATCH($J1233,SorP!$B$1:$B$6230,0))))","v":""},null,{"$f":"IF(C1233=\"\",NA(),MATCH($B1233&$C1233,'Smelter Look-up'!$J:$J,0))","v":{"$error":"#N/A"}},null,0,null,null,null,""]
[null,{"$f":"IF(LEN(A1234)=0,\"\",INDEX('Smelter Look-up'!$A:$A,MATCH($A1234,'Smelter Look-up'!$E:$E,0)))","v":""},{"$f":"IF(LEN(A1234)=0,\"\",INDEX('Smelter Look-up'!$C:$C,MATCH($A1234,'Smelter Look-up'!$E:$E,0)))","v":""},null,{"$f":"IF(ISERROR($V1234),\"\",OFFSET('Smelter Look-up'!$D$4,$V1234-4,0)&\"\")","v":""},{"$f":"IF(ISERROR($V1234),\"\",OFFSET('Smelter Look-up'!$E$4,$V1234-4,0))","v":""},{"$f":"IF(C1234=$X$4,\"Enter smelter details\", IF(ISERROR($V1234),\"\",OFFSET('Smelter Look-up'!$F$4,$V1234-4,0)))","v":""},{"$f":"IF(ISERROR($V1234),\"\",OFFSET('Smelter Look-up'!$G$4,$V1234-4,0))","v":""},{"$f":"IF(ISERROR($V1234),\"\",OFFSET('Smelter Look-up'!$H$4,$V1234-4,0))","v":""},{"$f":"IF(ISERROR($V1234),\"\",OFFSET('Smelter Look-up'!$I$4,$V1234-4,0))","v":""},{"$nulls":7},{"$f":"IF(ISERROR($V1234),\"\",OFFSET('Smelter Look-up'!$C$4,$V1234-4,0)&\"\")","v":""},"",{"$f":"IF(B1234=\"\",\"\",IF(ISERROR(MATCH($J1234,SorP!$B$1:$B$6230,0)),\"\",INDIRECT(\"'SorP'!$A$\"&MATCH($J1234,SorP!$B$1:$B$6230,0))))","v":""},null,{"$f":"IF(C1234=\"\",NA(),MATCH($B1234&$C1234,'Smelter Look-up'!$J:$J,0))","v":{"$error":"#N/A"}},null,0,null,null,null,""]
[null,{"$f":"IF(LEN(A1235)=0,\"\",INDEX('Smelter Look-up'!$A:$A,MATCH($A1235,'Smelter Look-up'!$E:$E,0)))","v":""},{"$f":"IF(LEN(A1235)=0,\"\",INDEX('Smelter Look-up'!$C:$C,MATCH($A1235,'Smelter Look-up'!$E:$E,0)))","v":""},null,{"$f":"IF(ISERROR($V1235),\"\",OFFSET('Smelter Look-up'!$D$4,$V1235-4,0)&\"\")","v":""},{"$f":"IF(ISERROR($V1235),\"\",OFFSET('Smelter Look-up'!$E$4,$V1235-4,0))","v":""},{"$f":"IF(C1235=$X$4,\"Enter smelter details\", IF(ISERROR($V1235),\"\",OFFSET('Smelter Look-up'!$F$4,$V1235-4,0)))","v":""},{"$f":"IF(ISERROR($V1235),\"\",OFFSET('Smelter Look-up'!$G$4,$V1235-4,0))","v":""},{"$f":"IF(ISERROR($V1235),\"\",OFFSET('Smelter Look-up'!$H$4,$V1235-4,0))","v":""},{"$f":"IF(ISERROR($V1235),\"\",OFFSET('Smelter Look-up'!$I$4,$V1235-4,0))","v":""},{"$nulls":7},{"$f":"IF(ISERROR($V1235),\"\",OFFSET('Smelter Look-up'!$C$4,$V1235-4,0)&\"\")","v":""},"",{"$f":"IF(B1235=\"\",\"\",IF(ISERROR(MATCH($J1235,SorP!$B$1:$B$6230,0)),\"\",INDIRECT(\"'SorP'!$A$\"&MATCH($J1235,SorP!$B$1:$B$6230,0))))","v":""},null,{"$f":"IF(C1235=\"\",NA(),MATCH($B1235&$C1235,'Smelter Look-up'!$J:$J,0))","v":{"$error":"#N/A"}},null,0,null,null,null,""]
[null,{"$f":"IF(LEN(A1236)=0,\"\",INDEX('Smelter Look-up'!$A:$A,MATCH($A1236,'Smelter Look-up'!$E:$E,0)))","v":""},{"$f":"IF(LEN(A1236)=0,\"\",INDEX('Smelter Look-up'!$C:$C,MATCH($A1236,'Smelter Look-up'!$E:$E,0)))","v":""},null,{"$f":"IF(ISERROR($V1236),\"\",OFFSET('Smelter Look-up'!$D$4,$V1236-4,0)&\"\")","v":""},{"$f":"IF(ISERROR($V1236),\"\",OFFSET('Smelter Look-up'!$E$4,$V1236-4,0))","v":""},{"$f":"IF(C1236=$X$4,\"Enter smelter details\", IF(ISERROR($V1236),\"\",OFFSET('Smelter Look-up'!$F$4,$V1236-4,0)))","v":""},{"$f":"IF(ISERROR($V1236),\"\",OFFSET('Smelter Look-up'!$G$4,$V1236-4,0))","v":""},{"$f":"IF(ISERROR($V1236),\"\",OFFSET('Smelter Look-up'!$H$4,$V1236-4,0))","v":""},{"$f":"IF(ISERROR($V1236),\"\",OFFSET('Smelter Look-up'!$I$4,$V1236-4,0))","v":""},{"$nulls":7},{"$f":"IF(ISERROR($V1236),\"\",OFFSET('Smelter Look-up'!$C$4,$V1236-4,0)&\"\")","v":""},"",{"$f":"IF(B1236=\"\",\"\",IF(ISERROR(MATCH($J1236,SorP!$B$1:$B$6230,0)),\"\",INDIRECT(\"'SorP'!$A$\"&MATCH($J1236,SorP!$B$1:$B$6230,0))))","v":""},null,{"$f":"IF(C1236=\"\",NA(),MATCH($B1236&$C1236,'Smelter Look-up'!$J:$J,0))","v":{"$error":"#N/A"}},null,0,null,null,null,""]
[null,{"$f":"IF(LEN(A1237)=0,\"\",INDEX('Smelter Look-up'!$A:$A,MATCH($A1237,'Smelter Look-up'!$E:$E,0)))","v":""},{"$f":"IF(LEN(A1237)=0,\"\",INDEX('Smelter Look-up'!$C:$C,MATCH($A1237,'Smelter Look-up'!$E:$E,0)))","v":""},null,{"$f":"IF(ISERROR($V1237),\"\",OFFSET('Smelter Look-up'!$D$4,$V1237-4,0)&\"\")","v":""},{"$f":"IF(ISERROR($V1237),\"\",OFFSET('Smelter Look-up'!$E$4,$V1237-4,0))","v":""},{"$f":"IF(C1237=$X$4,\"Enter smelter details\", IF(ISERROR($V1237),\"\",OFFSET('Smelter Look-up'!$F$4,$V1237-4,0)))","v":""},{"$f":"IF(ISERROR($V1237),\"\",OFFSET('Smelter Look-up'!$G$4,$V1237-4,0))","v":""},{"$f":"IF(ISERROR($V1237),\"\",OFFSET('Smelter Look-up'!$H$4,$V1237-4,0))","v":""},{"$f":"IF(ISERROR($V1237),\"\",OFFSET('Smelter Look-up'!$I$4,$V1237-4,0))","v":""},{"$nulls":7},{"$f":"IF(ISERROR($V1237),\"\",OFFSET('Smelter Look-up'!$C$4,$V1237-4,0)&\"\")","v":""},"",{"$f":"IF(B1237=\"\",\"\",IF(ISERROR(MATCH($J1237,SorP!$B$1:$B$6230,0)),\"\",INDIRECT(\"'SorP'!$A$\"&MATCH($J1237,SorP!$B$1:$B$6230,0))))","v":""},null,{"$f":"IF(C1237=\"\",NA(),MATCH($B1237&$C1237,'Smelter Look-up'!$J:$J,0))","v":{"$error":"#N/A"}},null,0,null,null,null,""]
[null,{"$f":"IF(LEN(A1238)=0,\"\",INDEX('Smelter Look-up'!$A:$A,MATCH($A1238,'Smelter Look-up'!$E:$E,0)))","v":""},{"$f":"IF(LEN(A1238)=0,\"\",INDEX('Smelter Look-up'!$C:$C,MATCH($A1238,'Smelter Look-up'!$E:$E,0)))","v":""},null,{"$f":"IF(ISERROR($V1238),\"\",OFFSET('Smelter Look-up'!$D$4,$V1238-4,0)&\"\")","v":""},{"$f":"IF(ISERROR($V1238),\"\",OFFSET('Smelter Look-up'!$E$4,$V1238-4,0))","v":""},{"$f":"IF(C1238=$X$4,\"Enter smelter details\", IF(ISERROR($V1238),\"\",OFFSET('Smelter Look-up'!$F$4,$V1238-4,0)))","v":""},{"$f":"IF(ISERROR($V1238),\"\",OFFSET('Smelter Look-up'!$G$4,$V1238-4,0))","v":""},{"$f":"IF(ISERROR($V1238),\"\",OFFSET('Smelter Look-up'!$H$4,$V1238-4,0))","v":""},{"$f":"IF(ISERROR($V1238),\"\",OFFSET('Smelter Look-up'!$I$4,$V1238-4,0))","v":""},{"$nulls":7},{"$f":"IF(ISERROR($V1238),\"\",OFFSET('Smelter Look-up'!$C$4,$V1238-4,0)&\"\")","v":""},"",{"$f":"IF(B1238=\"\",\"\",IF(ISERROR(MATCH($J1238,SorP!$B$1:$B$6230,0)),\"\",INDIRECT(\"'SorP'!$A$\"&MATCH($J1238,SorP!$B$1:$B$6230,0))))","v":""},null,{"$f":"IF(C1238=\"\",NA(),MATCH($B1238&$C1238,'Smelter Look-up'!$J:$J,0))","v":{"$error":"#N/A"}},null,0,null,null,null,""]
[null,{"$f":"IF(LEN(A1239)=0,\"\",INDEX('Smelter Look-up'!$A:$A,MATCH($A1239,'Smelter Look-up'!$E:$E,0)))","v":""},{"$f":"IF(LEN(A1239)=0,\"\",INDEX('Smelter Look-up'!$C:$C,MATCH($A1239,'Smelter Look-up'!$E:$E,0)))","v":""},null,{"$f":"IF(ISERROR($V1239),\"\",OFFSET('Smelter Look-up'!$D$4,$V1239-4,0)&\"\")","v":""},{"$f":"IF(ISERROR($V1239),\"\",OFFSET('Smelter Look-up'!$E$4,$V1239-4,0))","v":""},{"$f":"IF(C1239=$X$4,\"Enter smelter details\", IF(ISERROR($V1239),\"\",OFFSET('Smelter Look-up'!$F$4,$V1239-4,0)))","v":""},{"$f":"IF(ISERROR($V1239),\"\",OFFSET('Smelter Look-up'!$G$4,$V1239-4,0))","v":""},{"$f":"IF(ISERROR($V1239),\"\",OFFSET('Smelter Look-up'!$H$4,$V1239-4,0))","v":""},{"$f":"IF(ISERROR($V1239),\"\",OFFSET('Smelter Look-up'!$I$4,$V1239-4,0))","v":""},{"$nulls":7},{"$f":"IF(ISERROR($V1239),\"\",OFFSET('Smelter Look-up'!$C$4,$V1239-4,0)&\"\")","v":""},"",{"$f":"IF(B1239=\"\",\"\",IF(ISERROR(MATCH($J1239,SorP!$B$1:$B$6230,0)),\"\",INDIRECT(\"'SorP'!$A$\"&MATCH($J1239,SorP!$B$1:$B$6230,0))))","v":""},null,{"$f":"IF(C1239=\"\",NA(),MATCH($B1239&$C1239,'Smelter Look-up'!$J:$J,0))","v":{"$error":"#N/A"}},null,0,null,null,null,""]
[null,{"$f":"IF(LEN(A1240)=0,\"\",INDEX('Smelter Look-up'!$A:$A,MATCH($A1240,'Smelter Look-up'!$E:$E,0)))","v":""},{"$f":"IF(LEN(A1240)=0,\"\",INDEX('Smelter Look-up'!$C:$C,MATCH($A1240,'Smelter Look-up'!$E:$E,0)))","v":""},null,{"$f":"IF(ISERROR($V1240),\"\",OFFSET('Smelter Look-up'!$D$4,$V1240-4,0)&\"\")","v":""},{"$f":"IF(ISERROR($V1240),\"\",OFFSET('Smelter Look-up'!$E$4,$V1240-4,0))","v":""},{"$f":"IF(C1240=$X$4,\"Enter smelter details\", IF(ISERROR($V1240),\"\",OFFSET('Smelter Look-up'!$F$4,$V1240-4,0)))","v":""},{"$f":"IF(ISERROR($V1240),\"\",OFFSET('Smelter Look-up'!$G$4,$V1240-4,0))","v":""},{"$f":"IF(ISERROR($V1240),\"\",OFFSET('Smelter Look-up'!$H$4,$V1240-4,0))","v":""},{"$f":"IF(ISERROR($V1240),\"\",OFFSET('Smelter Look-up'!$I$4,$V1240-4,0))","v":""},{"$nulls":7},{"$f":"IF(ISERROR($V1240),\"\",OFFSET('Smelter Look-up'!$C$4,$V1240-4,0)&\"\")","v":""},"",{"$f":"IF(B1240=\"\",\"\",IF(ISERROR(MATCH($J1240,SorP!$B$1:$B$6230,0)),\"\",INDIRECT(\"'SorP'!$A$\"&MATCH($J1240,SorP!$B$1:$B$6230,0))))","v":""},null,{"$f":"IF(C1240=\"\",NA(),MATCH($B1240&$C1240,'Smelter Look-up'!$J:$J,0))","v":{"$error":"#N/A"}},null,0,null,null,null,""]
[null,{"$f":"IF(LEN(A1241)=0,\"\",INDEX('Smelter Look-up'!$A:$A,MATCH($A1241,'Smelter Look-up'!$E:$E,0)))","v":""},{"$f":"IF(LEN(A1241)=0,\"\",INDEX('Smelter Look-up'!$C:$C,MATCH($A1241,'Smelter Look-up'!$E:$E,0)))","v":""},null,{"$f":"IF(ISERROR($V1241),\"\",OFFSET('Smelter Look-up'!$D$4,$V1241-4,0)&\"\")","v":""},{"$f":"IF(ISERROR($V1241),\"\",OFFSET('Smelter Look-up'!$E$4,$V1241-4,0))","v":""},{"$f":"IF(C1241=$X$4,\"Enter smelter details\", IF(ISERROR($V1241),\"\",OFFSET('Smelter Look-up'!$F$4,$V1241-4,0)))","v":""},{"$f":"IF(ISERROR($V1241),\"\",OFFSET('Smelter Look-up'!$G$4,$V1241-4,0))","v":""},{"$f":"IF(ISERROR($V1241),\"\",OFFSET('Smelter Look-up'!$H$4,$V1241-4,0))","v":""},{"$f":"IF(ISERROR($V1241),\"\",OFFSET('Smelter Look-up'!$I$4,$V1241-4,0))","v":""},{"$nulls":7},{"$f":"IF(ISERROR($V1241),\"\",OFFSET('Smelter Look-up'!$C$4,$V1241-4,0)&\"\")","v":""},"",{"$f":"IF(B1241=\"\",\"\",IF(ISERROR(MATCH($J1241,SorP!$B$1:$B$6230,0)),\"\",INDIRECT(\"'SorP'!$A$\"&MATCH($J1241,SorP!$B$1:$B$6230,0))))","v":""},null,{"$f":"IF(C1241=\"\",NA(),MATCH($B1241&$C1241,'Smelter Look-up'!$J:$J,0))","v":{"$error":"#N/A"}},null,0,null,null,null,""]
[null,{"$f":"IF(LEN(A1242)=0,\"\",INDEX('Smelter Look-up'!$A:$A,MATCH($A1242,'Smelter Look-up'!$E:$E,0)))","v":""},{"$f":"IF(LEN(A1242)=0,\"\",INDEX('Smelter Look-up'!$C:$C,MATCH($A1242,'Smelter Look-up'!$E:$E,0)))","v":""},null,{"$f":"IF(ISERROR($V1242),\"\",OFFSET('Smelter Look-up'!$D$4,$V1242-4,0)&\"\")","v":""},{"$f":"IF(ISERROR($V1242),\"\",OFFSET('Smelter Look-up'!$E$4,$V1242-4,0))","v":""},{"$f":"IF(C1242=$X$4,\"Enter smelter details\", IF(ISERROR($V1242),\"\",OFFSET('Smelter Look-up'!$F$4,$V1242-4,0)))","v":""},{"$f":"IF(ISERROR($V1242),\"\",OFFSET('Smelter Look-up'!$G$4,$V1242-4,0))","v":""},{"$f":"IF(ISERROR($V1242),\"\",OFFSET('Smelter Look-up'!$H$4,$V1242-4,0))","v":""},{"$f":"IF(ISERROR($V1242),\"\",OFFSET('Smelter Look-up'!$I$4,$V1242-4,0))","v":""},{"$nulls":7},{"$f":"IF(ISERROR($V1242),\"\",OFFSET('Smelter Look-up'!$C$4,$V1242-4,0)&\"\")","v":""},"",{"$f":"IF(B1242=\"\",\"\",IF(ISERROR(MATCH($J1242,SorP!$B$1:$B$6230,0)),\"\",INDIRECT(\"'SorP'!$A$\"&MATCH($J1242,SorP!$B$1:$B$6230,0))))","v":""},null,{"$f":"IF(C1242=\"\",NA(),MATCH($B1242&$C1242,'Smelter Look-up'!$J:$J,0))","v":{"$error":"#N/A"}},null,0,null,null,null,""]
[null,{"$f":"IF(LEN(A1243)=0,\"\",INDEX('Smelter Look-up'!$A:$A,MATCH($A1243,'Smelter Look-up'!$E:$E,0)))","v":""},{"$f":"IF(LEN(A1243)=0,\"\",INDEX('Smelter Look-up'!$C:$C,MATCH($A1243,'Smelter Look-up'!$E:$E,0)))","v":""},null,{"$f":"IF(ISERROR($V1243),\"\",OFFSET('Smelter Look-up'!$D$4,$V1243-4,0)&\"\")","v":""},{"$f":"IF(ISERROR($V1243),\"\",OFFSET('Smelter Look-up'!$E$4,$V1243-4,0))","v":""},{"$f":"IF(C1243=$X$4,\"Enter smelter details\", IF(ISERROR($V1243),\"\",OFFSET('Smelter Look-up'!$F$4,$V1243-4,0)))","v":""},{"$f":"IF(ISERROR($V1243),\"\",OFFSET('Smelter Look-up'!$G$4,$V1243-4,0))","v":""},{"$f":"IF(ISERROR($V1243),\"\",OFFSET('Smelter Look-up'!$H$4,$V1243-4,0))","v":""},{"$f":"IF(ISERROR($V1243),\"\",OFFSET('Smelter Look-up'!$I$4,$V1243-4,0))","v":""},{"$nulls":7},{"$f":"IF(ISERROR($V1243),\"\",OFFSET('Smelter Look-up'!$C$4,$V1243-4,0)&\"\")","v":""},"",{"$f":"IF(B1243=\"\",\"\",IF(ISERROR(MATCH($J1243,SorP!$B$1:$B$6230,0)),\"\",INDIRECT(\"'SorP'!$A$\"&MATCH($J1243,SorP!$B$1:$B$6230,0))))","v":""},null,{"$f":"IF(C1243=\"\",NA(),MATCH($B1243&$C1243,'Smelter Look-up'!$J:$J,0))","v":{"$error":"#N/A"}},null,0,null,null,null,""]
[null,{"$f":"IF(LEN(A1244)=0,\"\",INDEX('Smelter Look-up'!$A:$A,MATCH($A1244,'Smelter Look-up'!$E:$E,0)))","v":""},{"$f":"IF(LEN(A1244)=0,\"\",INDEX('Smelter Look-up'!$C:$C,MATCH($A1244,'Smelter Look-up'!$E:$E,0)))","v":""},null,{"$f":"IF(ISERROR($V1244),\"\",OFFSET('Smelter Look-up'!$D$4,$V1244-4,0)&\"\")","v":""},{"$f":"IF(ISERROR($V1244),\"\",OFFSET('Smelter Look-up'!$E$4,$V1244-4,0))","v":""},{"$f":"IF(C1244=$X$4,\"Enter smelter details\", IF(ISERROR($V1244),\"\",OFFSET('Smelter Look-up'!$F$4,$V1244-4,0)))","v":""},{"$f":"IF(ISERROR($V1244),\"\",OFFSET('Smelter Look-up'!$G$4,$V1244-4,0))","v":""},{"$f":"IF(ISERROR($V1244),\"\",OFFSET('Smelter Look-up'!$H$4,$V1244-4,0))","v":""},{"$f":"IF(ISERROR($V1244),\"\",OFFSET('Smelter Look-up'!$I$4,$V1244-4,0))","v":""},{"$nulls":7},{"$f":"IF(ISERROR($V1244),\"\",OFFSET('Smelter Look-up'!$C$4,$V1244-4,0)&\"\")","v":""},"",{"$f":"IF(B1244=\"\",\"\",IF(ISERROR(MATCH($J1244,SorP!$B$1:$B$6230,0)),\"\",INDIRECT(\"'SorP'!$A$\"&MATCH($J1244,SorP!$B$1:$B$6230,0))))","v":""},null,{"$f":"IF(C1244=\"\",NA(),MATCH($B1244&$C1244,'Smelter Look-up'!$J:$J,0))","v":{"$error":"#N/A"}},null,0,null,null,null,""]
[null,{"$f":"IF(LEN(A1245)=0,\"\",INDEX('Smelter Look-up'!$A:$A,MATCH($A1245,'Smelter Look-up'!$E:$E,0)))","v":""},{"$f":"IF(LEN(A1245)=0,\"\",INDEX('Smelter Look-up'!$C:$C,MATCH($A1245,'Smelter Look-up'!$E:$E,0)))","v":""},null,{"$f":"IF(ISERROR($V1245),\"\",OFFSET('Smelter Look-up'!$D$4,$V1245-4,0)&\"\")","v":""},{"$f":"IF(ISERROR($V1245),\"\",OFFSET('Smelter Look-up'!$E$4,$V1245-4,0))","v":""},{"$f":"IF(C1245=$X$4,\"Enter smelter details\", IF(ISERROR($V1245),\"\",OFFSET('Smelter Look-up'!$F$4,$V1245-4,0)))","v":""},{"$f":"IF(ISERROR($V1245),\"\",OFFSET('Smelter Look-up'!$G$4,$V1245-4,0))","v":""},{"$f":"IF(ISERROR($V1245),\"\",OFFSET('Smelter Look-up'!$H$4,$V1245-4,0))","v":""},{"$f":"IF(ISERROR($V1245),\"\",OFFSET('Smelter Look-up'!$I$4,$V1245-4,0))","v":""},{"$nulls":7},{"$f":"IF(ISERROR($V1245),\"\",OFFSET('Smelter Look-up'!$C$4,$V1245-4,0)&\"\")","v":""},"",{"$f":"IF(B1245=\"\",\"\",IF(ISERROR(MATCH($J1245,SorP!$B$1:$B$6230,0)),\"\",INDIRECT(\"'SorP'!$A$\"&MATCH($J1245,SorP!$B$1:$B$6230,0))))","v":""},null,{"$f":"IF(C1245=\"\",NA(),MATCH($B1245&$C1245,'Smelter Look-up'!$J:$J,0))","v":{"$error":"#N/A"}},null,0,null,null,null,""]
[null,{"$f":"IF(LEN(A1246)=0,\"\",INDEX('Smelter Look-up'!$A:$A,MATCH($A1246,'Smelter Look-up'!$E:$E,0)))","v":""},{"$f":"IF(LEN(A1246)=0,\"\",INDEX('Smelter Look-up'!$C:$C,MATCH($A1246,'Smelter Look-up'!$E:$E,0)))","v":""},null,{"$f":"IF(ISERROR($V1246),\"\",OFFSET('Smelter Look-up'!$D$4,$V1246-4,0)&\"\")","v":""},{"$f":"IF(ISERROR($V1246),\"\",OFFSET('Smelter Look-up'!$E$4,$V1246-4,0))","v":""},{"$f":"IF(C1246=$X$4,\"Enter smelter details\", IF(ISERROR($V1246),\"\",OFFSET('Smelter Look-up'!$F$4,$V1246-4,0)))","v":""},{"$f":"IF(ISERROR($V1246),\"\",OFFSET('Smelter Look-up'!$G$4,$V1246-4,0))","v":""},{"$f":"IF(ISERROR($V1246),\"\",OFFSET('Smelter Look-up'!$H$4,$V1246-4,0))","v":""},{"$f":"IF(ISERROR($V1246),\"\",OFFSET('Smelter Look-up'!$I$4,$V1246-4,0))","v":""},{"$nulls":7},{"$f":"IF(ISERROR($V1246),\"\",OFFSET('Smelter Look-up'!$C$4,$V1246-4,0)&\"\")","v":""},"",{"$f":"IF(B1246=\"\",\"\",IF(ISERROR(MATCH($J1246,SorP!$B$1:$B$6230,0)),\"\",INDIRECT(\"'SorP'!$A$\"&MATCH($J1246,SorP!$B$1:$B$6230,0))))","v":""},null,{"$f":"IF(C1246=\"\",NA(),MATCH($B1246&$C1246,'Smelter Look-up'!$J:$J,0))","v":{"$error":"#N/A"}},null,0,null,null,null,""]
[null,{"$f":"IF(LEN(A1247)=0,\"\",INDEX('Smelter Look-up'!$A:$A,MATCH($A1247,'Smelter Look-up'!$E:$E,0)))","v":""},{"$f":"IF(LEN(A1247)=0,\"\",INDEX('Smelter Look-up'!$C:$C,MATCH($A1247,'Smelter Look-up'!$E:$E,0)))","v":""},null,{"$f":"IF(ISERROR($V1247),\"\",OFFSET('Smelter Look-up'!$D$4,$V1247-4,0)&\"\")","v":""},{"$f":"IF(ISERROR($V1247),\"\",OFFSET('Smelter Look-up'!$E$4,$V1247-4,0))","v":""},{"$f":"IF(C1247=$X$4,\"Enter smelter details\", IF(ISERROR($V1247),\"\",OFFSET('Smelter Look-up'!$F$4,$V1247-4,0)))","v":""},{"$f":"IF(ISERROR($V1247),\"\",OFFSET('Smelter Look-up'!$G$4,$V1247-4,0))","v":""},{"$f":"IF(ISERROR($V1247),\"\",OFFSET('Smelter Look-up'!$H$4,$V1247-4,0))","v":""},{"$f":"IF(ISERROR($V1247),\"\",OFFSET('Smelter Look-up'!$I$4,$V1247-4,0))","v":""},{"$nulls":7},{"$f":"IF(ISERROR($V1247),\"\",OFFSET('Smelter Look-up'!$C$4,$V1247-4,0)&\"\")","v":""},"",{"$f":"IF(B1247=\"\",\"\",IF(ISERROR(MATCH($J1247,SorP!$B$1:$B$6230,0)),\"\",INDIRECT(\"'SorP'!$A$\"&MATCH($J1247,SorP!$B$1:$B$6230,0))))","v":""},null,{"$f":"IF(C1247=\"\",NA(),MATCH($B1247&$C1247,'Smelter Look-up'!$J:$J,0))","v":{"$error":"#N/A"}},null,0,null,null,null,""]
[null,{"$f":"IF(LEN(A1248)=0,\"\",INDEX('Smelter Look-up'!$A:$A,MATCH($A1248,'Smelter Look-up'!$E:$E,0)))","v":""},{"$f":"IF(LEN(A1248)=0,\"\",INDEX('Smelter Look-up'!$C:$C,MATCH($A1248,'Smelter Look-up'!$E:$E,0)))","v":""},null,{"$f":"IF(ISERROR($V1248),\"\",OFFSET('Smelter Look-up'!$D$4,$V1248-4,0)&\"\")","v":""},{"$f":"IF(ISERROR($V1248),\"\",OFFSET('Smelter Look-up'!$E$4,$V1248-4,0))","v":""},{"$f":"IF(C1248=$X$4,\"Enter smelter details\", IF(ISERROR($V1248),\"\",OFFSET('Smelter Look-up'!$F$4,$V1248-4,0)))","v":""},{"$f":"IF(ISERROR($V1248),\"\",OFFSET('Smelter Look-up'!$G$4,$V1248-4,0))","v":""},{"$f":"IF(ISERROR($V1248),\"\",OFFSET('Smelter Look-up'!$H$4,$V1248-4,0))","v":""},{"$f":"IF(ISERROR($V1248),\"\",OFFSET('Smelter Look-up'!$I$4,$V1248-4,0))","v":""},{"$nulls":7},{"$f":"IF(ISERROR($V1248),\"\",OFFSET('Smelter Look-up'!$C$4,$V1248-4,0)&\"\")","v":""},"",{"$f":"IF(B1248=\"\",\"\",IF(ISERROR(MATCH($J1248,SorP!$B$1:$B$6230,0)),\"\",INDIRECT(\"'SorP'!$A$\"&MATCH($J1248,SorP!$B$1:$B$6230,0))))","v":""},null,{"$f":"IF(C1248=\"\",NA(),MATCH($B1248&$C1248,'Smelter Look-up'!$J:$J,0))","v":{"$error":"#N/A"}},null,0,null,null,null,""]
[null,{"$f":"IF(LEN(A1249)=0,\"\",INDEX('Smelter Look-up'!$A:$A,MATCH($A1249,'Smelter Look-up'!$E:$E,0)))","v":""},{"$f":"IF(LEN(A1249)=0,\"\",INDEX('Smelter Look-up'!$C:$C,MATCH($A1249,'Smelter Look-up'!$E:$E,0)))","v":""},null,{"$f":"IF(ISERROR($V1249),\"\",OFFSET('Smelter Look-up'!$D$4,$V1249-4,0)&\"\")","v":""},{"$f":"IF(ISERROR($V1249),\"\",OFFSET('Smelter Look-up'!$E$4,$V1249-4,0))","v":""},{"$f":"IF(C1249=$X$4,\"Enter smelter details\", IF(ISERROR($V1249),\"\",OFFSET('Smelter Look-up'!$F$4,$V1249-4,0)))","v":""},{"$f":"IF(ISERROR($V1249),\"\",OFFSET('Smelter Look-up'!$G$4,$V1249-4,0))","v":""},{"$f":"IF(ISERROR($V1249),\"\",OFFSET('Smelter Look-up'!$H$4,$V1249-4,0))","v":""},{"$f":"IF(ISERROR($V1249),\"\",OFFSET('Smelter Look-up'!$I$4,$V1249-4,0))","v":""},{"$nulls":7},{"$f":"IF(ISERROR($V1249),\"\",OFFSET('Smelter Look-up'!$C$4,$V1249-4,0)&\"\")","v":""},"",{"$f":"IF(B1249=\"\",\"\",IF(ISERROR(MATCH($J1249,SorP!$B$1:$B$6230,0)),\"\",INDIRECT(\"'SorP'!$A$\"&MATCH($J1249,SorP!$B$1:$B$6230,0))))","v":""},null,{"$f":"IF(C1249=\"\",NA(),MATCH($B1249&$C1249,'Smelter Look-up'!$J:$J,0))","v":{"$error":"#N/A"}},null,0,null,null,null,""]
[null,{"$f":"IF(LEN(A1250)=0,\"\",INDEX('Smelter Look-up'!$A:$A,MATCH($A1250,'Smelter Look-up'!$E:$E,0)))","v":""},{"$f":"IF(LEN(A1250)=0,\"\",INDEX('Smelter Look-up'!$C:$C,MATCH($A1250,'Smelter Look-up'!$E:$E,0)))","v":""},null,{"$f":"IF(ISERROR($V1250),\"\",OFFSET('Smelter Look-up'!$D$4,$V1250-4,0)&\"\")","v":""},{"$f":"IF(ISERROR($V1250),\"\",OFFSET('Smelter Look-up'!$E$4,$V1250-4,0))","v":""},{"$f":"IF(C1250=$X$4,\"Enter smelter details\", IF(ISERROR($V1250),\"\",OFFSET('Smelter Look-up'!$F$4,$V1250-4,0)))","v":""},{"$f":"IF(ISERROR($V1250),\"\",OFFSET('Smelter Look-up'!$G$4,$V1250-4,0))","v":""},{"$f":"IF(ISERROR($V1250),\"\",OFFSET('Smelter Look-up'!$H$4,$V1250-4,0))","v":""},{"$f":"IF(ISERROR($V1250),\"\",OFFSET('Smelter Look-up'!$I$4,$V1250-4,0))","v":""},{"$nulls":7},{"$f":"IF(ISERROR($V1250),\"\",OFFSET('Smelter Look-up'!$C$4,$V1250-4,0)&\"\")","v":""},"",{"$f":"IF(B1250=\"\",\"\",IF(ISERROR(MATCH($J1250,SorP!$B$1:$B$6230,0)),\"\",INDIRECT(\"'SorP'!$A$\"&MATCH($J1250,SorP!$B$1:$B$6230,0))))","v":""},null,{"$f":"IF(C1250=\"\",NA(),MATCH($B1250&$C1250,'Smelter Look-up'!$J:$J,0))","v":{"$error":"#N/A"}},null,0,null,null,null,""]
[null,{"$f":"IF(LEN(A1251)=0,\"\",INDEX('Smelter Look-up'!$A:$A,MATCH($A1251,'Smelter Look-up'!$E:$E,0)))","v":""},{"$f":"IF(LEN(A1251)=0,\"\",INDEX('Smelter Look-up'!$C:$C,MATCH($A1251,'Smelter Look-up'!$E:$E,0)))","v":""},null,{"$f":"IF(ISERROR($V1251),\"\",OFFSET('Smelter Look-up'!$D$4,$V1251-4,0)&\"\")","v":""},{"$f":"IF(ISERROR($V1251),\"\",OFFSET('Smelter Look-up'!$E$4,$V1251-4,0))","v":""},{"$f":"IF(C1251=$X$4,\"Enter smelter details\", IF(ISERROR($V1251),\"\",OFFSET('Smelter Look-up'!$F$4,$V1251-4,0)))","v":""},{"$f":"IF(ISERROR($V1251),\"\",OFFSET('Smelter Look-up'!$G$4,$V1251-4,0))","v":""},{"$f":"IF(ISERROR($V1251),\"\",OFFSET('Smelter Look-up'!$H$4,$V1251-4,0))","v":""},{"$f":"IF(ISERROR($V1251),\"\",OFFSET('Smelter Look-up'!$I$4,$V1251-4,0))","v":""},{"$nulls":7},{"$f":"IF(ISERROR($V1251),\"\",OFFSET('Smelter Look-up'!$C$4,$V1251-4,0)&\"\")","v":""},"",{"$f":"IF(B1251=\"\",\"\",IF(ISERROR(MATCH($J1251,SorP!$B$1:$B$6230,0)),\"\",INDIRECT(\"'SorP'!$A$\"&MATCH($J1251,SorP!$B$1:$B$6230,0))))","v":""},null,{"$f":"IF(C1251=\"\",NA(),MATCH($B1251&$C1251,'Smelter Look-up'!$J:$J,0))","v":{"$error":"#N/A"}},null,0,null,null,null,""]
[null,{"$f":"IF(LEN(A1252)=0,\"\",INDEX('Smelter Look-up'!$A:$A,MATCH($A1252,'Smelter Look-up'!$E:$E,0)))","v":""},{"$f":"IF(LEN(A1252)=0,\"\",INDEX('Smelter Look-up'!$C:$C,MATCH($A1252,'Smelter Look-up'!$E:$E,0)))","v":""},null,{"$f":"IF(ISERROR($V1252),\"\",OFFSET('Smelter Look-up'!$D$4,$V1252-4,0)&\"\")","v":""},{"$f":"IF(ISERROR($V1252),\"\",OFFSET('Smelter Look-up'!$E$4,$V1252-4,0))","v":""},{"$f":"IF(C1252=$X$4,\"Enter smelter details\", IF(ISERROR($V1252),\"\",OFFSET('Smelter Look-up'!$F$4,$V1252-4,0)))","v":""},{"$f":"IF(ISERROR($V1252),\"\",OFFSET('Smelter Look-up'!$G$4,$V1252-4,0))","v":""},{"$f":"IF(ISERROR($V1252),\"\",OFFSET('Smelter Look-up'!$H$4,$V1252-4,0))","v":""},{"$f":"IF(ISERROR($V1252),\"\",OFFSET('Smelter Look-up'!$I$4,$V1252-4,0))","v":""},{"$nulls":7},{"$f":"IF(ISERROR($V1252),\"\",OFFSET('Smelter Look-up'!$C$4,$V1252-4,0)&\"\")","v":""},"",{"$f":"IF(B1252=\"\",\"\",IF(ISERROR(MATCH($J1252,SorP!$B$1:$B$6230,0)),\"\",INDIRECT(\"'SorP'!$A$\"&MATCH($J1252,SorP!$B$1:$B$6230,0))))","v":""},null,{"$f":"IF(C1252=\"\",NA(),MATCH($B1252&$C1252,'Smelter Look-up'!$J:$J,0))","v":{"$error":"#N/A"}},null,0,null,null,null,""]
[null,{"$f":"IF(LEN(A1253)=0,\"\",INDEX('Smelter Look-up'!$A:$A,MATCH($A1253,'Smelter Look-up'!$E:$E,0)))","v":""},{"$f":"IF(LEN(A1253)=0,\"\",INDEX('Smelter Look-up'!$C:$C,MATCH($A1253,'Smelter Look-up'!$E:$E,0)))","v":""},null,{"$f":"IF(ISERROR($V1253),\"\",OFFSET('Smelter Look-up'!$D$4,$V1253-4,0)&\"\")","v":""},{"$f":"IF(ISERROR($V1253),\"\",OFFSET('Smelter Look-up'!$E$4,$V1253-4,0))","v":""},{"$f":"IF(C1253=$X$4,\"Enter smelter details\", IF(ISERROR($V1253),\"\",OFFSET('Smelter Look-up'!$F$4,$V1253-4,0)))","v":""},{"$f":"IF(ISERROR($V1253),\"\",OFFSET('Smelter Look-up'!$G$4,$V1253-4,0))","v":""},{"$f":"IF(ISERROR($V1253),\"\",OFFSET('Smelter Look-up'!$H$4,$V1253-4,0))","v":""},{"$f":"IF(ISERROR($V1253),\"\",OFFSET('Smelter Look-up'!$I$4,$V1253-4,0))","v":""},{"$nulls":7},{"$f":"IF(ISERROR($V1253),\"\",OFFSET('Smelter Look-up'!$C$4,$V1253-4,0)&\"\")","v":""},"",{"$f":"IF(B1253=\"\",\"\",IF(ISERROR(MATCH($J1253,SorP!$B$1:$B$6230,0)),\"\",INDIRECT(\"'SorP'!$A$\"&MATCH($J1253,SorP!$B$1:$B$6230,0))))","v":""},null,{"$f":"IF(C1253=\"\",NA(),MATCH($B1253&$C1253,'Smelter Look-up'!$J:$J,0))","v":{"$error":"#N/A"}},null,0,null,null,null,""]
[null,{"$f":"IF(LEN(A1254)=0,\"\",INDEX('Smelter Look-up'!$A:$A,MATCH($A1254,'Smelter Look-up'!$E:$E,0)))","v":""},{"$f":"IF(LEN(A1254)=0,\"\",INDEX('Smelter Look-up'!$C:$C,MATCH($A1254,'Smelter Look-up'!$E:$E,0)))","v":""},null,{"$f":"IF(ISERROR($V1254),\"\",OFFSET('Smelter Look-up'!$D$4,$V1254-4,0)&\"\")","v":""},{"$f":"IF(ISERROR($V1254),\"\",OFFSET('Smelter Look-up'!$E$4,$V1254-4,0))","v":""},{"$f":"IF(C1254=$X$4,\"Enter smelter details\", IF(ISERROR($V1254),\"\",OFFSET('Smelter Look-up'!$F$4,$V1254-4,0)))","v":""},{"$f":"IF(ISERROR($V1254),\"\",OFFSET('Smelter Look-up'!$G$4,$V1254-4,0))","v":""},{"$f":"IF(ISERROR($V1254),\"\",OFFSET('Smelter Look-up'!$H$4,$V1254-4,0))","v":""},{"$f":"IF(ISERROR($V1254),\"\",OFFSET('Smelter Look-up'!$I$4,$V1254-4,0))","v":""},{"$nulls":7},{"$f":"IF(ISERROR($V1254),\"\",OFFSET('Smelter Look-up'!$C$4,$V1254-4,0)&\"\")","v":""},"",{"$f":"IF(B1254=\"\",\"\",IF(ISERROR(MATCH($J1254,SorP!$B$1:$B$6230,0)),\"\",INDIRECT(\"'SorP'!$A$\"&MATCH($J1254,SorP!$B$1:$B$6230,0))))","v":""},null,{"$f":"IF(C1254=\"\",NA(),MATCH($B1254&$C1254,'Smelter Look-up'!$J:$J,0))","v":{"$error":"#N/A"}},null,0,null,null,null,""]
[null,{"$f":"IF(LEN(A1255)=0,\"\",INDEX('Smelter Look-up'!$A:$A,MATCH($A1255,'Smelter Look-up'!$E:$E,0)))","v":""},{"$f":"IF(LEN(A1255)=0,\"\",INDEX('Smelter Look-up'!$C:$C,MATCH($A1255,'Smelter Look-up'!$E:$E,0)))","v":""},null,{"$f":"IF(ISERROR($V1255),\"\",OFFSET('Smelter Look-up'!$D$4,$V1255-4,0)&\"\")","v":""},{"$f":"IF(ISERROR($V1255),\"\",OFFSET('Smelter Look-up'!$E$4,$V1255-4,0))","v":""},{"$f":"IF(C1255=$X$4,\"Enter smelter details\", IF(ISERROR($V1255),\"\",OFFSET('Smelter Look-up'!$F$4,$V1255-4,0)))","v":""},{"$f":"IF(ISERROR($V1255),\"\",OFFSET('Smelter Look-up'!$G$4,$V1255-4,0))","v":""},{"$f":"IF(ISERROR($V1255),\"\",OFFSET('Smelter Look-up'!$H$4,$V1255-4,0))","v":""},{"$f":"IF(ISERROR($V1255),\"\",OFFSET('Smelter Look-up'!$I$4,$V1255-4,0))","v":""},{"$nulls":7},{"$f":"IF(ISERROR($V1255),\"\",OFFSET('Smelter Look-up'!$C$4,$V1255-4,0)&\"\")","v":""},"",{"$f":"IF(B1255=\"\",\"\",IF(ISERROR(MATCH($J1255,SorP!$B$1:$B$6230,0)),\"\",INDIRECT(\"'SorP'!$A$\"&MATCH($J1255,SorP!$B$1:$B$6230,0))))","v":""},null,{"$f":"IF(C1255=\"\",NA(),MATCH($B1255&$C1255,'Smelter Look-up'!$J:$J,0))","v":{"$error":"#N/A"}},null,0,null,null,null,""]
[null,{"$f":"IF(LEN(A1256)=0,\"\",INDEX('Smelter Look-up'!$A:$A,MATCH($A1256,'Smelter Look-up'!$E:$E,0)))","v":""},{"$f":"IF(LEN(A1256)=0,\"\",INDEX('Smelter Look-up'!$C:$C,MATCH($A1256,'Smelter Look-up'!$E:$E,0)))","v":""},null,{"$f":"IF(ISERROR($V1256),\"\",OFFSET('Smelter Look-up'!$D$4,$V1256-4,0)&\"\")","v":""},{"$f":"IF(ISERROR($V1256),\"\",OFFSET('Smelter Look-up'!$E$4,$V1256-4,0))","v":""},{"$f":"IF(C1256=$X$4,\"Enter smelter details\", IF(ISERROR($V1256),\"\",OFFSET('Smelter Look-up'!$F$4,$V1256-4,0)))","v":""},{"$f":"IF(ISERROR($V1256),\"\",OFFSET('Smelter Look-up'!$G$4,$V1256-4,0))","v":""},{"$f":"IF(ISERROR($V1256),\"\",OFFSET('Smelter Look-up'!$H$4,$V1256-4,0))","v":""},{"$f":"IF(ISERROR($V1256),\"\",OFFSET('Smelter Look-up'!$I$4,$V1256-4,0))","v":""},{"$nulls":7},{"$f":"IF(ISERROR($V1256),\"\",OFFSET('Smelter Look-up'!$C$4,$V1256-4,0)&\"\")","v":""},"",{"$f":"IF(B1256=\"\",\"\",IF(ISERROR(MATCH($J1256,SorP!$B$1:$B$6230,0)),\"\",INDIRECT(\"'SorP'!$A$\"&MATCH($J1256,SorP!$B$1:$B$6230,0))))","v":""},null,{"$f":"IF(C1256=\"\",NA(),MATCH($B1256&$C1256,'Smelter Look-up'!$J:$J,0))","v":{"$error":"#N/A"}},null,0,null,null,null,""]
[null,{"$f":"IF(LEN(A1257)=0,\"\",INDEX('Smelter Look-up'!$A:$A,MATCH($A1257,'Smelter Look-up'!$E:$E,0)))","v":""},{"$f":"IF(LEN(A1257)=0,\"\",INDEX('Smelter Look-up'!$C:$C,MATCH($A1257,'Smelter Look-up'!$E:$E,0)))","v":""},null,{"$f":"IF(ISERROR($V1257),\"\",OFFSET('Smelter Look-up'!$D$4,$V1257-4,0)&\"\")","v":""},{"$f":"IF(ISERROR($V1257),\"\",OFFSET('Smelter Look-up'!$E$4,$V1257-4,0))","v":""},{"$f":"IF(C1257=$X$4,\"Enter smelter details\", IF(ISERROR($V1257),\"\",OFFSET('Smelter Look-up'!$F$4,$V1257-4,0)))","v":""},{"$f":"IF(ISERROR($V1257),\"\",OFFSET('Smelter Look-up'!$G$4,$V1257-4,0))","v":""},{"$f":"IF(ISERROR($V1257),\"\",OFFSET('Smelter Look-up'!$H$4,$V1257-4,0))","v":""},{"$f":"IF(ISERROR($V1257),\"\",OFFSET('Smelter Look-up'!$I$4,$V1257-4,0))","v":""},{"$nulls":7},{"$f":"IF(ISERROR($V1257),\"\",OFFSET('Smelter Look-up'!$C$4,$V1257-4,0)&\"\")","v":""},"",{"$f":"IF(B1257=\"\",\"\",IF(ISERROR(MATCH($J1257,SorP!$B$1:$B$6230,0)),\"\",INDIRECT(\"'SorP'!$A$\"&MATCH($J1257,SorP!$B$1:$B$6230,0))))","v":""},null,{"$f":"IF(C1257=\"\",NA(),MATCH($B1257&$C1257,'Smelter Look-up'!$J:$J,0))","v":{"$error":"#N/A"}},null,0,null,null,null,""]
[null,{"$f":"IF(LEN(A1258)=0,\"\",INDEX('Smelter Look-up'!$A:$A,MATCH($A1258,'Smelter Look-up'!$E:$E,0)))","v":""},{"$f":"IF(LEN(A1258)=0,\"\",INDEX('Smelter Look-up'!$C:$C,MATCH($A1258,'Smelter Look-up'!$E:$E,0)))","v":""},null,{"$f":"IF(ISERROR($V1258),\"\",OFFSET('Smelter Look-up'!$D$4,$V1258-4,0)&\"\")","v":""},{"$f":"IF(ISERROR($V1258),\"\",OFFSET('Smelter Look-up'!$E$4,$V1258-4,0))","v":""},{"$f":"IF(C1258=$X$4,\"Enter smelter details\", IF(ISERROR($V1258),\"\",OFFSET('Smelter Look-up'!$F$4,$V1258-4,0)))","v":""},{"$f":"IF(ISERROR($V1258),\"\",OFFSET('Smelter Look-up'!$G$4,$V1258-4,0))","v":""},{"$f":"IF(ISERROR($V1258),\"\",OFFSET('Smelter Look-up'!$H$4,$V1258-4,0))","v":""},{"$f":"IF(ISERROR($V1258),\"\",OFFSET('Smelter Look-up'!$I$4,$V1258-4,0))","v":""},{"$nulls":7},{"$f":"IF(ISERROR($V1258),\"\",OFFSET('Smelter Look-up'!$C$4,$V1258-4,0)&\"\")","v":""},"",{"$f":"IF(B1258=\"\",\"\",IF(ISERROR(MATCH($J1258,SorP!$B$1:$B$6230,0)),\"\",INDIRECT(\"'SorP'!$A$\"&MATCH($J1258,SorP!$B$1:$B$6230,0))))","v":""},null,{"$f":"IF(C1258=\"\",NA(),MATCH($B1258&$C1258,'Smelter Look-up'!$J:$J,0))","v":{"$error":"#N/A"}},null,0,null,null,null,""]
[null,{"$f":"IF(LEN(A1259)=0,\"\",INDEX('Smelter Look-up'!$A:$A,MATCH($A1259,'Smelter Look-up'!$E:$E,0)))","v":""},{"$f":"IF(LEN(A1259)=0,\"\",INDEX('Smelter Look-up'!$C:$C,MATCH($A1259,'Smelter Look-up'!$E:$E,0)))","v":""},null,{"$f":"IF(ISERROR($V1259),\"\",OFFSET('Smelter Look-up'!$D$4,$V1259-4,0)&\"\")","v":""},{"$f":"IF(ISERROR($V1259),\"\",OFFSET('Smelter Look-up'!$E$4,$V1259-4,0))","v":""},{"$f":"IF(C1259=$X$4,\"Enter smelter details\", IF(ISERROR($V1259),\"\",OFFSET('Smelter Look-up'!$F$4,$V1259-4,0)))","v":""},{"$f":"IF(ISERROR($V1259),\"\",OFFSET('Smelter Look-up'!$G$4,$V1259-4,0))","v":""},{"$f":"IF(ISERROR($V1259),\"\",OFFSET('Smelter Look-up'!$H$4,$V1259-4,0))","v":""},{"$f":"IF(ISERROR($V1259),\"\",OFFSET('Smelter Look-up'!$I$4,$V1259-4,0))","v":""},{"$nulls":7},{"$f":"IF(ISERROR($V1259),\"\",OFFSET('Smelter Look-up'!$C$4,$V1259-4,0)&\"\")","v":""},"",{"$f":"IF(B1259=\"\",\"\",IF(ISERROR(MATCH($J1259,SorP!$B$1:$B$6230,0)),\"\",INDIRECT(\"'SorP'!$A$\"&MATCH($J1259,SorP!$B$1:$B$6230,0))))","v":""},null,{"$f":"IF(C1259=\"\",NA(),MATCH($B1259&$C1259,'Smelter Look-up'!$J:$J,0))","v":{"$error":"#N/A"}},null,0,null,null,null,""]
[null,{"$f":"IF(LEN(A1260)=0,\"\",INDEX('Smelter Look-up'!$A:$A,MATCH($A1260,'Smelter Look-up'!$E:$E,0)))","v":""},{"$f":"IF(LEN(A1260)=0,\"\",INDEX('Smelter Look-up'!$C:$C,MATCH($A1260,'Smelter Look-up'!$E:$E,0)))","v":""},null,{"$f":"IF(ISERROR($V1260),\"\",OFFSET('Smelter Look-up'!$D$4,$V1260-4,0)&\"\")","v":""},{"$f":"IF(ISERROR($V1260),\"\",OFFSET('Smelter Look-up'!$E$4,$V1260-4,0))","v":""},{"$f":"IF(C1260=$X$4,\"Enter smelter details\", IF(ISERROR($V1260),\"\",OFFSET('Smelter Look-up'!$F$4,$V1260-4,0)))","v":""},{"$f":"IF(ISERROR($V1260),\"\",OFFSET('Smelter Look-up'!$G$4,$V1260-4,0))","v":""},{"$f":"IF(ISERROR($V1260),\"\",OFFSET('Smelter Look-up'!$H$4,$V1260-4,0))","v":""},{"$f":"IF(ISERROR($V1260),\"\",OFFSET('Smelter Look-up'!$I$4,$V1260-4,0))","v":""},{"$nulls":7},{"$f":"IF(ISERROR($V1260),\"\",OFFSET('Smelter Look-up'!$C$4,$V1260-4,0)&\"\")","v":""},"",{"$f":"IF(B1260=\"\",\"\",IF(ISERROR(MATCH($J1260,SorP!$B$1:$B$6230,0)),\"\",INDIRECT(\"'SorP'!$A$\"&MATCH($J1260,SorP!$B$1:$B$6230,0))))","v":""},null,{"$f":"IF(C1260=\"\",NA(),MATCH($B1260&$C1260,'Smelter Look-up'!$J:$J,0))","v":{"$error":"#N/A"}},null,0,null,null,null,""]
[null,{"$f":"IF(LEN(A1261)=0,\"\",INDEX('Smelter Look-up'!$A:$A,MATCH($A1261,'Smelter Look-up'!$E:$E,0)))","v":""},{"$f":"IF(LEN(A1261)=0,\"\",INDEX('Smelter Look-up'!$C:$C,MATCH($A1261,'Smelter Look-up'!$E:$E,0)))","v":""},null,{"$f":"IF(ISERROR($V1261),\"\",OFFSET('Smelter Look-up'!$D$4,$V1261-4,0)&\"\")","v":""},{"$f":"IF(ISERROR($V1261),\"\",OFFSET('Smelter Look-up'!$E$4,$V1261-4,0))","v":""},{"$f":"IF(C1261=$X$4,\"Enter smelter details\", IF(ISERROR($V1261),\"\",OFFSET('Smelter Look-up'!$F$4,$V1261-4,0)))","v":""},{"$f":"IF(ISERROR($V1261),\"\",OFFSET('Smelter Look-up'!$G$4,$V1261-4,0))","v":""},{"$f":"IF(ISERROR($V1261),\"\",OFFSET('Smelter Look-up'!$H$4,$V1261-4,0))","v":""},{"$f":"IF(ISERROR($V1261),\"\",OFFSET('Smelter Look-up'!$I$4,$V1261-4,0))","v":""},{"$nulls":7},{"$f":"IF(ISERROR($V1261),\"\",OFFSET('Smelter Look-up'!$C$4,$V1261-4,0)&\"\")","v":""},"",{"$f":"IF(B1261=\"\",\"\",IF(ISERROR(MATCH($J1261,SorP!$B$1:$B$6230,0)),\"\",INDIRECT(\"'SorP'!$A$\"&MATCH($J1261,SorP!$B$1:$B$6230,0))))","v":""},null,{"$f":"IF(C1261=\"\",NA(),MATCH($B1261&$C1261,'Smelter Look-up'!$J:$J,0))","v":{"$error":"#N/A"}},null,0,null,null,null,""]
[null,{"$f":"IF(LEN(A1262)=0,\"\",INDEX('Smelter Look-up'!$A:$A,MATCH($A1262,'Smelter Look-up'!$E:$E,0)))","v":""},{"$f":"IF(LEN(A1262)=0,\"\",INDEX('Smelter Look-up'!$C:$C,MATCH($A1262,'Smelter Look-up'!$E:$E,0)))","v":""},null,{"$f":"IF(ISERROR($V1262),\"\",OFFSET('Smelter Look-up'!$D$4,$V1262-4,0)&\"\")","v":""},{"$f":"IF(ISERROR($V1262),\"\",OFFSET('Smelter Look-up'!$E$4,$V1262-4,0))","v":""},{"$f":"IF(C1262=$X$4,\"Enter smelter details\", IF(ISERROR($V1262),\"\",OFFSET('Smelter Look-up'!$F$4,$V1262-4,0)))","v":""},{"$f":"IF(ISERROR($V1262),\"\",OFFSET('Smelter Look-up'!$G$4,$V1262-4,0))","v":""},{"$f":"IF(ISERROR($V1262),\"\",OFFSET('Smelter Look-up'!$H$4,$V1262-4,0))","v":""},{"$f":"IF(ISERROR($V1262),\"\",OFFSET('Smelter Look-up'!$I$4,$V1262-4,0))","v":""},{"$nulls":7},{"$f":"IF(ISERROR($V1262),\"\",OFFSET('Smelter Look-up'!$C$4,$V1262-4,0)&\"\")","v":""},"",{"$f":"IF(B1262=\"\",\"\",IF(ISERROR(MATCH($J1262,SorP!$B$1:$B$6230,0)),\"\",INDIRECT(\"'SorP'!$A$\"&MATCH($J1262,SorP!$B$1:$B$6230,0))))","v":""},null,{"$f":"IF(C1262=\"\",NA(),MATCH($B1262&$C1262,'Smelter Look-up'!$J:$J,0))","v":{"$error":"#N/A"}},null,0,null,null,null,""]
[null,{"$f":"IF(LEN(A1263)=0,\"\",INDEX('Smelter Look-up'!$A:$A,MATCH($A1263,'Smelter Look-up'!$E:$E,0)))","v":""},{"$f":"IF(LEN(A1263)=0,\"\",INDEX('Smelter Look-up'!$C:$C,MATCH($A1263,'Smelter Look-up'!$E:$E,0)))","v":""},null,{"$f":"IF(ISERROR($V1263),\"\",OFFSET('Smelter Look-up'!$D$4,$V1263-4,0)&\"\")","v":""},{"$f":"IF(ISERROR($V1263),\"\",OFFSET('Smelter Look-up'!$E$4,$V1263-4,0))","v":""},{"$f":"IF(C1263=$X$4,\"Enter smelter details\", IF(ISERROR($V1263),\"\",OFFSET('Smelter Look-up'!$F$4,$V1263-4,0)))","v":""},{"$f":"IF(ISERROR($V1263),\"\",OFFSET('Smelter Look-up'!$G$4,$V1263-4,0))","v":""},{"$f":"IF(ISERROR($V1263),\"\",OFFSET('Smelter Look-up'!$H$4,$V1263-4,0))","v":""},{"$f":"IF(ISERROR($V1263),\"\",OFFSET('Smelter Look-up'!$I$4,$V1263-4,0))","v":""},{"$nulls":7},{"$f":"IF(ISERROR($V1263),\"\",OFFSET('Smelter Look-up'!$C$4,$V1263-4,0)&\"\")","v":""},"",{"$f":"IF(B1263=\"\",\"\",IF(ISERROR(MATCH($J1263,SorP!$B$1:$B$6230,0)),\"\",INDIRECT(\"'SorP'!$A$\"&MATCH($J1263,SorP!$B$1:$B$6230,0))))","v":""},null,{"$f":"IF(C1263=\"\",NA(),MATCH($B1263&$C1263,'Smelter Look-up'!$J:$J,0))","v":{"$error":"#N/A"}},null,0,null,null,null,""]
[null,{"$f":"IF(LEN(A1264)=0,\"\",INDEX('Smelter Look-up'!$A:$A,MATCH($A1264,'Smelter Look-up'!$E:$E,0)))","v":""},{"$f":"IF(LEN(A1264)=0,\"\",INDEX('Smelter Look-up'!$C:$C,MATCH($A1264,'Smelter Look-up'!$E:$E,0)))","v":""},null,{"$f":"IF(ISERROR($V1264),\"\",OFFSET('Smelter Look-up'!$D$4,$V1264-4,0)&\"\")","v":""},{"$f":"IF(ISERROR($V1264),\"\",OFFSET('Smelter Look-up'!$E$4,$V1264-4,0))","v":""},{"$f":"IF(C1264=$X$4,\"Enter smelter details\", IF(ISERROR($V1264),\"\",OFFSET('Smelter Look-up'!$F$4,$V1264-4,0)))","v":""},{"$f":"IF(ISERROR($V1264),\"\",OFFSET('Smelter Look-up'!$G$4,$V1264-4,0))","v":""},{"$f":"IF(ISERROR($V1264),\"\",OFFSET('Smelter Look-up'!$H$4,$V1264-4,0))","v":""},{"$f":"IF(ISERROR($V1264),\"\",OFFSET('Smelter Look-up'!$I$4,$V1264-4,0))","v":""},{"$nulls":7},{"$f":"IF(ISERROR($V1264),\"\",OFFSET('Smelter Look-up'!$C$4,$V1264-4,0)&\"\")","v":""},"",{"$f":"IF(B1264=\"\",\"\",IF(ISERROR(MATCH($J1264,SorP!$B$1:$B$6230,0)),\"\",INDIRECT(\"'SorP'!$A$\"&MATCH($J1264,SorP!$B$1:$B$6230,0))))","v":""},null,{"$f":"IF(C1264=\"\",NA(),MATCH($B1264&$C1264,'Smelter Look-up'!$J:$J,0))","v":{"$error":"#N/A"}},null,0,null,null,null,""]
[null,{"$f":"IF(LEN(A1265)=0,\"\",INDEX('Smelter Look-up'!$A:$A,MATCH($A1265,'Smelter Look-up'!$E:$E,0)))","v":""},{"$f":"IF(LEN(A1265)=0,\"\",INDEX('Smelter Look-up'!$C:$C,MATCH($A1265,'Smelter Look-up'!$E:$E,0)))","v":""},null,{"$f":"IF(ISERROR($V1265),\"\",OFFSET('Smelter Look-up'!$D$4,$V1265-4,0)&\"\")","v":""},{"$f":"IF(ISERROR($V1265),\"\",OFFSET('Smelter Look-up'!$E$4,$V1265-4,0))","v":""},{"$f":"IF(C1265=$X$4,\"Enter smelter details\", IF(ISERROR($V1265),\"\",OFFSET('Smelter Look-up'!$F$4,$V1265-4,0)))","v":""},{"$f":"IF(ISERROR($V1265),\"\",OFFSET('Smelter Look-up'!$G$4,$V1265-4,0))","v":""},{"$f":"IF(ISERROR($V1265),\"\",OFFSET('Smelter Look-up'!$H$4,$V1265-4,0))","v":""},{"$f":"IF(ISERROR($V1265),\"\",OFFSET('Smelter Look-up'!$I$4,$V1265-4,0))","v":""},{"$nulls":7},{"$f":"IF(ISERROR($V1265),\"\",OFFSET('Smelter Look-up'!$C$4,$V1265-4,0)&\"\")","v":""},"",{"$f":"IF(B1265=\"\",\"\",IF(ISERROR(MATCH($J1265,SorP!$B$1:$B$6230,0)),\"\",INDIRECT(\"'SorP'!$A$\"&MATCH($J1265,SorP!$B$1:$B$6230,0))))","v":""},null,{"$f":"IF(C1265=\"\",NA(),MATCH($B1265&$C1265,'Smelter Look-up'!$J:$J,0))","v":{"$error":"#N/A"}},null,0,null,null,null,""]
[null,{"$f":"IF(LEN(A1266)=0,\"\",INDEX('Smelter Look-up'!$A:$A,MATCH($A1266,'Smelter Look-up'!$E:$E,0)))","v":""},{"$f":"IF(LEN(A1266)=0,\"\",INDEX('Smelter Look-up'!$C:$C,MATCH($A1266,'Smelter Look-up'!$E:$E,0)))","v":""},null,{"$f":"IF(ISERROR($V1266),\"\",OFFSET('Smelter Look-up'!$D$4,$V1266-4,0)&\"\")","v":""},{"$f":"IF(ISERROR($V1266),\"\",OFFSET('Smelter Look-up'!$E$4,$V1266-4,0))","v":""},{"$f":"IF(C1266=$X$4,\"Enter smelter details\", IF(ISERROR($V1266),\"\",OFFSET('Smelter Look-up'!$F$4,$V1266-4,0)))","v":""},{"$f":"IF(ISERROR($V1266),\"\",OFFSET('Smelter Look-up'!$G$4,$V1266-4,0))","v":""},{"$f":"IF(ISERROR($V1266),\"\",OFFSET('Smelter Look-up'!$H$4,$V1266-4,0))","v":""},{"$f":"IF(ISERROR($V1266),\"\",OFFSET('Smelter Look-up'!$I$4,$V1266-4,0))","v":""},{"$nulls":7},{"$f":"IF(ISERROR($V1266),\"\",OFFSET('Smelter Look-up'!$C$4,$V1266-4,0)&\"\")","v":""},"",{"$f":"IF(B1266=\"\",\"\",IF(ISERROR(MATCH($J1266,SorP!$B$1:$B$6230,0)),\"\",INDIRECT(\"'SorP'!$A$\"&MATCH($J1266,SorP!$B$1:$B$6230,0))))","v":""},null,{"$f":"IF(C1266=\"\",NA(),MATCH($B1266&$C1266,'Smelter Look-up'!$J:$J,0))","v":{"$error":"#N/A"}},null,0,null,null,null,""]
[null,{"$f":"IF(LEN(A1267)=0,\"\",INDEX('Smelter Look-up'!$A:$A,MATCH($A1267,'Smelter Look-up'!$E:$E,0)))","v":""},{"$f":"IF(LEN(A1267)=0,\"\",INDEX('Smelter Look-up'!$C:$C,MATCH($A1267,'Smelter Look-up'!$E:$E,0)))","v":""},null,{"$f":"IF(ISERROR($V1267),\"\",OFFSET('Smelter Look-up'!$D$4,$V1267-4,0)&\"\")","v":""},{"$f":"IF(ISERROR($V1267),\"\",OFFSET('Smelter Look-up'!$E$4,$V1267-4,0))","v":""},{"$f":"IF(C1267=$X$4,\"Enter smelter details\", IF(ISERROR($V1267),\"\",OFFSET('Smelter Look-up'!$F$4,$V1267-4,0)))","v":""},{"$f":"IF(ISERROR($V1267),\"\",OFFSET('Smelter Look-up'!$G$4,$V1267-4,0))","v":""},{"$f":"IF(ISERROR($V1267),\"\",OFFSET('Smelter Look-up'!$H$4,$V1267-4,0))","v":""},{"$f":"IF(ISERROR($V1267),\"\",OFFSET('Smelter Look-up'!$I$4,$V1267-4,0))","v":""},{"$nulls":7},{"$f":"IF(ISERROR($V1267),\"\",OFFSET('Smelter Look-up'!$C$4,$V1267-4,0)&\"\")","v":""},"",{"$f":"IF(B1267=\"\",\"\",IF(ISERROR(MATCH($J1267,SorP!$B$1:$B$6230,0)),\"\",INDIRECT(\"'SorP'!$A$\"&MATCH($J1267,SorP!$B$1:$B$6230,0))))","v":""},null,{"$f":"IF(C1267=\"\",NA(),MATCH($B1267&$C1267,'Smelter Look-up'!$J:$J,0))","v":{"$error":"#N/A"}},null,0,null,null,null,""]
[null,{"$f":"IF(LEN(A1268)=0,\"\",INDEX('Smelter Look-up'!$A:$A,MATCH($A1268,'Smelter Look-up'!$E:$E,0)))","v":""},{"$f":"IF(LEN(A1268)=0,\"\",INDEX('Smelter Look-up'!$C:$C,MATCH($A1268,'Smelter Look-up'!$E:$E,0)))","v":""},null,{"$f":"IF(ISERROR($V1268),\"\",OFFSET('Smelter Look-up'!$D$4,$V1268-4,0)&\"\")","v":""},{"$f":"IF(ISERROR($V1268),\"\",OFFSET('Smelter Look-up'!$E$4,$V1268-4,0))","v":""},{"$f":"IF(C1268=$X$4,\"Enter smelter details\", IF(ISERROR($V1268),\"\",OFFSET('Smelter Look-up'!$F$4,$V1268-4,0)))","v":""},{"$f":"IF(ISERROR($V1268),\"\",OFFSET('Smelter Look-up'!$G$4,$V1268-4,0))","v":""},{"$f":"IF(ISERROR($V1268),\"\",OFFSET('Smelter Look-up'!$H$4,$V1268-4,0))","v":""},{"$f":"IF(ISERROR($V1268),\"\",OFFSET('Smelter Look-up'!$I$4,$V1268-4,0))","v":""},{"$nulls":7},{"$f":"IF(ISERROR($V1268),\"\",OFFSET('Smelter Look-up'!$C$4,$V1268-4,0)&\"\")","v":""},"",{"$f":"IF(B1268=\"\",\"\",IF(ISERROR(MATCH($J1268,SorP!$B$1:$B$6230,0)),\"\",INDIRECT(\"'SorP'!$A$\"&MATCH($J1268,SorP!$B$1:$B$6230,0))))","v":""},null,{"$f":"IF(C1268=\"\",NA(),MATCH($B1268&$C1268,'Smelter Look-up'!$J:$J,0))","v":{"$error":"#N/A"}},null,0,null,null,null,""]
[null,{"$f":"IF(LEN(A1269)=0,\"\",INDEX('Smelter Look-up'!$A:$A,MATCH($A1269,'Smelter Look-up'!$E:$E,0)))","v":""},{"$f":"IF(LEN(A1269)=0,\"\",INDEX('Smelter Look-up'!$C:$C,MATCH($A1269,'Smelter Look-up'!$E:$E,0)))","v":""},null,{"$f":"IF(ISERROR($V1269),\"\",OFFSET('Smelter Look-up'!$D$4,$V1269-4,0)&\"\")","v":""},{"$f":"IF(ISERROR($V1269),\"\",OFFSET('Smelter Look-up'!$E$4,$V1269-4,0))","v":""},{"$f":"IF(C1269=$X$4,\"Enter smelter details\", IF(ISERROR($V1269),\"\",OFFSET('Smelter Look-up'!$F$4,$V1269-4,0)))","v":""},{"$f":"IF(ISERROR($V1269),\"\",OFFSET('Smelter Look-up'!$G$4,$V1269-4,0))","v":""},{"$f":"IF(ISERROR($V1269),\"\",OFFSET('Smelter Look-up'!$H$4,$V1269-4,0))","v":""},{"$f":"IF(ISERROR($V1269),\"\",OFFSET('Smelter Look-up'!$I$4,$V1269-4,0))","v":""},{"$nulls":7},{"$f":"IF(ISERROR($V1269),\"\",OFFSET('Smelter Look-up'!$C$4,$V1269-4,0)&\"\")","v":""},"",{"$f":"IF(B1269=\"\",\"\",IF(ISERROR(MATCH($J1269,SorP!$B$1:$B$6230,0)),\"\",INDIRECT(\"'SorP'!$A$\"&MATCH($J1269,SorP!$B$1:$B$6230,0))))","v":""},null,{"$f":"IF(C1269=\"\",NA(),MATCH($B1269&$C1269,'Smelter Look-up'!$J:$J,0))","v":{"$error":"#N/A"}},null,0,null,null,null,""]
[null,{"$f":"IF(LEN(A1270)=0,\"\",INDEX('Smelter Look-up'!$A:$A,MATCH($A1270,'Smelter Look-up'!$E:$E,0)))","v":""},{"$f":"IF(LEN(A1270)=0,\"\",INDEX('Smelter Look-up'!$C:$C,MATCH($A1270,'Smelter Look-up'!$E:$E,0)))","v":""},null,{"$f":"IF(ISERROR($V1270),\"\",OFFSET('Smelter Look-up'!$D$4,$V1270-4,0)&\"\")","v":""},{"$f":"IF(ISERROR($V1270),\"\",OFFSET('Smelter Look-up'!$E$4,$V1270-4,0))","v":""},{"$f":"IF(C1270=$X$4,\"Enter smelter details\", IF(ISERROR($V1270),\"\",OFFSET('Smelter Look-up'!$F$4,$V1270-4,0)))","v":""},{"$f":"IF(ISERROR($V1270),\"\",OFFSET('Smelter Look-up'!$G$4,$V1270-4,0))","v":""},{"$f":"IF(ISERROR($V1270),\"\",OFFSET('Smelter Look-up'!$H$4,$V1270-4,0))","v":""},{"$f":"IF(ISERROR($V1270),\"\",OFFSET('Smelter Look-up'!$I$4,$V1270-4,0))","v":""},{"$nulls":7},{"$f":"IF(ISERROR($V1270),\"\",OFFSET('Smelter Look-up'!$C$4,$V1270-4,0)&\"\")","v":""},"",{"$f":"IF(B1270=\"\",\"\",IF(ISERROR(MATCH($J1270,SorP!$B$1:$B$6230,0)),\"\",INDIRECT(\"'SorP'!$A$\"&MATCH($J1270,SorP!$B$1:$B$6230,0))))","v":""},null,{"$f":"IF(C1270=\"\",NA(),MATCH($B1270&$C1270,'Smelter Look-up'!$J:$J,0))","v":{"$error":"#N/A"}},null,0,null,null,null,""]
[null,{"$f":"IF(LEN(A1271)=0,\"\",INDEX('Smelter Look-up'!$A:$A,MATCH($A1271,'Smelter Look-up'!$E:$E,0)))","v":""},{"$f":"IF(LEN(A1271)=0,\"\",INDEX('Smelter Look-up'!$C:$C,MATCH($A1271,'Smelter Look-up'!$E:$E,0)))","v":""},null,{"$f":"IF(ISERROR($V1271),\"\",OFFSET('Smelter Look-up'!$D$4,$V1271-4,0)&\"\")","v":""},{"$f":"IF(ISERROR($V1271),\"\",OFFSET('Smelter Look-up'!$E$4,$V1271-4,0))","v":""},{"$f":"IF(C1271=$X$4,\"Enter smelter details\", IF(ISERROR($V1271),\"\",OFFSET('Smelter Look-up'!$F$4,$V1271-4,0)))","v":""},{"$f":"IF(ISERROR($V1271),\"\",OFFSET('Smelter Look-up'!$G$4,$V1271-4,0))","v":""},{"$f":"IF(ISERROR($V1271),\"\",OFFSET('Smelter Look-up'!$H$4,$V1271-4,0))","v":""},{"$f":"IF(ISERROR($V1271),\"\",OFFSET('Smelter Look-up'!$I$4,$V1271-4,0))","v":""},{"$nulls":7},{"$f":"IF(ISERROR($V1271),\"\",OFFSET('Smelter Look-up'!$C$4,$V1271-4,0)&\"\")","v":""},"",{"$f":"IF(B1271=\"\",\"\",IF(ISERROR(MATCH($J1271,SorP!$B$1:$B$6230,0)),\"\",INDIRECT(\"'SorP'!$A$\"&MATCH($J1271,SorP!$B$1:$B$6230,0))))","v":""},null,{"$f":"IF(C1271=\"\",NA(),MATCH($B1271&$C1271,'Smelter Look-up'!$J:$J,0))","v":{"$error":"#N/A"}},null,0,null,null,null,""]
[null,{"$f":"IF(LEN(A1272)=0,\"\",INDEX('Smelter Look-up'!$A:$A,MATCH($A1272,'Smelter Look-up'!$E:$E,0)))","v":""},{"$f":"IF(LEN(A1272)=0,\"\",INDEX('Smelter Look-up'!$C:$C,MATCH($A1272,'Smelter Look-up'!$E:$E,0)))","v":""},null,{"$f":"IF(ISERROR($V1272),\"\",OFFSET('Smelter Look-up'!$D$4,$V1272-4,0)&\"\")","v":""},{"$f":"IF(ISERROR($V1272),\"\",OFFSET('Smelter Look-up'!$E$4,$V1272-4,0))","v":""},{"$f":"IF(C1272=$X$4,\"Enter smelter details\", IF(ISERROR($V1272),\"\",OFFSET('Smelter Look-up'!$F$4,$V1272-4,0)))","v":""},{"$f":"IF(ISERROR($V1272),\"\",OFFSET('Smelter Look-up'!$G$4,$V1272-4,0))","v":""},{"$f":"IF(ISERROR($V1272),\"\",OFFSET('Smelter Look-up'!$H$4,$V1272-4,0))","v":""},{"$f":"IF(ISERROR($V1272),\"\",OFFSET('Smelter Look-up'!$I$4,$V1272-4,0))","v":""},{"$nulls":7},{"$f":"IF(ISERROR($V1272),\"\",OFFSET('Smelter Look-up'!$C$4,$V1272-4,0)&\"\")","v":""},"",{"$f":"IF(B1272=\"\",\"\",IF(ISERROR(MATCH($J1272,SorP!$B$1:$B$6230,0)),\"\",INDIRECT(\"'SorP'!$A$\"&MATCH($J1272,SorP!$B$1:$B$6230,0))))","v":""},null,{"$f":"IF(C1272=\"\",NA(),MATCH($B1272&$C1272,'Smelter Look-up'!$J:$J,0))","v":{"$error":"#N/A"}},null,0,null,null,null,""]
[null,{"$f":"IF(LEN(A1273)=0,\"\",INDEX('Smelter Look-up'!$A:$A,MATCH($A1273,'Smelter Look-up'!$E:$E,0)))","v":""},{"$f":"IF(LEN(A1273)=0,\"\",INDEX('Smelter Look-up'!$C:$C,MATCH($A1273,'Smelter Look-up'!$E:$E,0)))","v":""},null,{"$f":"IF(ISERROR($V1273),\"\",OFFSET('Smelter Look-up'!$D$4,$V1273-4,0)&\"\")","v":""},{"$f":"IF(ISERROR($V1273),\"\",OFFSET('Smelter Look-up'!$E$4,$V1273-4,0))","v":""},{"$f":"IF(C1273=$X$4,\"Enter smelter details\", IF(ISERROR($V1273),\"\",OFFSET('Smelter Look-up'!$F$4,$V1273-4,0)))","v":""},{"$f":"IF(ISERROR($V1273),\"\",OFFSET('Smelter Look-up'!$G$4,$V1273-4,0))","v":""},{"$f":"IF(ISERROR($V1273),\"\",OFFSET('Smelter Look-up'!$H$4,$V1273-4,0))","v":""},{"$f":"IF(ISERROR($V1273),\"\",OFFSET('Smelter Look-up'!$I$4,$V1273-4,0))","v":""},{"$nulls":7},{"$f":"IF(ISERROR($V1273),\"\",OFFSET('Smelter Look-up'!$C$4,$V1273-4,0)&\"\")","v":""},"",{"$f":"IF(B1273=\"\",\"\",IF(ISERROR(MATCH($J1273,SorP!$B$1:$B$6230,0)),\"\",INDIRECT(\"'SorP'!$A$\"&MATCH($J1273,SorP!$B$1:$B$6230,0))))","v":""},null,{"$f":"IF(C1273=\"\",NA(),MATCH($B1273&$C1273,'Smelter Look-up'!$J:$J,0))","v":{"$error":"#N/A"}},null,0,null,null,null,""]
[null,{"$f":"IF(LEN(A1274)=0,\"\",INDEX('Smelter Look-up'!$A:$A,MATCH($A1274,'Smelter Look-up'!$E:$E,0)))","v":""},{"$f":"IF(LEN(A1274)=0,\"\",INDEX('Smelter Look-up'!$C:$C,MATCH($A1274,'Smelter Look-up'!$E:$E,0)))","v":""},null,{"$f":"IF(ISERROR($V1274),\"\",OFFSET('Smelter Look-up'!$D$4,$V1274-4,0)&\"\")","v":""},{"$f":"IF(ISERROR($V1274),\"\",OFFSET('Smelter Look-up'!$E$4,$V1274-4,0))","v":""},{"$f":"IF(C1274=$X$4,\"Enter smelter details\", IF(ISERROR($V1274),\"\",OFFSET('Smelter Look-up'!$F$4,$V1274-4,0)))","v":""},{"$f":"IF(ISERROR($V1274),\"\",OFFSET('Smelter Look-up'!$G$4,$V1274-4,0))","v":""},{"$f":"IF(ISERROR($V1274),\"\",OFFSET('Smelter Look-up'!$H$4,$V1274-4,0))","v":""},{"$f":"IF(ISERROR($V1274),\"\",OFFSET('Smelter Look-up'!$I$4,$V1274-4,0))","v":""},{"$nulls":7},{"$f":"IF(ISERROR($V1274),\"\",OFFSET('Smelter Look-up'!$C$4,$V1274-4,0)&\"\")","v":""},"",{"$f":"IF(B1274=\"\",\"\",IF(ISERROR(MATCH($J1274,SorP!$B$1:$B$6230,0)),\"\",INDIRECT(\"'SorP'!$A$\"&MATCH($J1274,SorP!$B$1:$B$6230,0))))","v":""},null,{"$f":"IF(C1274=\"\",NA(),MATCH($B1274&$C1274,'Smelter Look-up'!$J:$J,0))","v":{"$error":"#N/A"}},null,0,null,null,null,""]
[null,{"$f":"IF(LEN(A1275)=0,\"\",INDEX('Smelter Look-up'!$A:$A,MATCH($A1275,'Smelter Look-up'!$E:$E,0)))","v":""},{"$f":"IF(LEN(A1275)=0,\"\",INDEX('Smelter Look-up'!$C:$C,MATCH($A1275,'Smelter Look-up'!$E:$E,0)))","v":""},null,{"$f":"IF(ISERROR($V1275),\"\",OFFSET('Smelter Look-up'!$D$4,$V1275-4,0)&\"\")","v":""},{"$f":"IF(ISERROR($V1275),\"\",OFFSET('Smelter Look-up'!$E$4,$V1275-4,0))","v":""},{"$f":"IF(C1275=$X$4,\"Enter smelter details\", IF(ISERROR($V1275),\"\",OFFSET('Smelter Look-up'!$F$4,$V1275-4,0)))","v":""},{"$f":"IF(ISERROR($V1275),\"\",OFFSET('Smelter Look-up'!$G$4,$V1275-4,0))","v":""},{"$f":"IF(ISERROR($V1275),\"\",OFFSET('Smelter Look-up'!$H$4,$V1275-4,0))","v":""},{"$f":"IF(ISERROR($V1275),\"\",OFFSET('Smelter Look-up'!$I$4,$V1275-4,0))","v":""},{"$nulls":7},{"$f":"IF(ISERROR($V1275),\"\",OFFSET('Smelter Look-up'!$C$4,$V1275-4,0)&\"\")","v":""},{"$f":"IF(B1275=\"\",\"\",IF(ISERROR(MATCH($E1275,CL,0)),\"Unknown\",INDIRECT(\"'C'!$A$\"&MATCH($E1275,CL,0)+1)))","v":""},{"$f":"IF(B1275=\"\",\"\",IF(ISERROR(MATCH($J1275,SorP!$B$1:$B$6230,0)),\"\",INDIRECT(\"'SorP'!$A$\"&MATCH($J1275,SorP!$B$1:$B$6230,0))))","v":""},null,{"$f":"IF(C1275=\"\",NA(),MATCH($B1275&$C1275,'Smelter Look-up'!$J:$J,0))","v":{"$error":"#N/A"}},null,{"$f":"IF(AND(C1275=\"Smelter not listed\",OR(LEN(D1275)=0,LEN(E1275)=0)),1,0)","v":0},null,null,null,{"$f":"B1275&C1275","v":""}]
[null,{"$f":"IF(LEN(A1276)=0,\"\",INDEX('Smelter Look-up'!$A:$A,MATCH($A1276,'Smelter Look-up'!$E:$E,0)))","v":""},{"$f":"IF(LEN(A1276)=0,\"\",INDEX('Smelter Look-up'!$C:$C,MATCH($A1276,'Smelter Look-up'!$E:$E,0)))","v":""},null,{"$f":"IF(ISERROR($V1276),\"\",OFFSET('Smelter Look-up'!$D$4,$V1276-4,0)&\"\")","v":""},{"$f":"IF(ISERROR($V1276),\"\",OFFSET('Smelter Look-up'!$E$4,$V1276-4,0))","v":""},{"$f":"IF(C1276=$X$4,\"Enter smelter details\", IF(ISERROR($V1276),\"\",OFFSET('Smelter Look-up'!$F$4,$V1276-4,0)))","v":""},{"$f":"IF(ISERROR($V1276),\"\",OFFSET('Smelter Look-up'!$G$4,$V1276-4,0))","v":""},{"$f":"IF(ISERROR($V1276),\"\",OFFSET('Smelter Look-up'!$H$4,$V1276-4,0))","v":""},{"$f":"IF(ISERROR($V1276),\"\",OFFSET('Smelter Look-up'!$I$4,$V1276-4,0))","v":""},{"$nulls":7},{"$f":"IF(ISERROR($V1276),\"\",OFFSET('Smelter Look-up'!$C$4,$V1276-4,0)&\"\")","v":""},"",{"$f":"IF(B1276=\"\",\"\",IF(ISERROR(MATCH($J1276,SorP!$B$1:$B$6230,0)),\"\",INDIRECT(\"'SorP'!$A$\"&MATCH($J1276,SorP!$B$1:$B$6230,0))))","v":""},null,{"$f":"IF(C1276=\"\",NA(),MATCH($B1276&$C1276,'Smelter Look-up'!$J:$J,0))","v":{"$error":"#N/A"}},null,0,null,null,null,""]
[null,{"$f":"IF(LEN(A1277)=0,\"\",INDEX('Smelter Look-up'!$A:$A,MATCH($A1277,'Smelter Look-up'!$E:$E,0)))","v":""},{"$f":"IF(LEN(A1277)=0,\"\",INDEX('Smelter Look-up'!$C:$C,MATCH($A1277,'Smelter Look-up'!$E:$E,0)))","v":""},null,{"$f":"IF(ISERROR($V1277),\"\",OFFSET('Smelter Look-up'!$D$4,$V1277-4,0)&\"\")","v":""},{"$f":"IF(ISERROR($V1277),\"\",OFFSET('Smelter Look-up'!$E$4,$V1277-4,0))","v":""},{"$f":"IF(C1277=$X$4,\"Enter smelter details\", IF(ISERROR($V1277),\"\",OFFSET('Smelter Look-up'!$F$4,$V1277-4,0)))","v":""},{"$f":"IF(ISERROR($V1277),\"\",OFFSET('Smelter Look-up'!$G$4,$V1277-4,0))","v":""},{"$f":"IF(ISERROR($V1277),\"\",OFFSET('Smelter Look-up'!$H$4,$V1277-4,0))","v":""},{"$f":"IF(ISERROR($V1277),\"\",OFFSET('Smelter Look-up'!$I$4,$V1277-4,0))","v":""},{"$nulls":7},{"$f":"IF(ISERROR($V1277),\"\",OFFSET('Smelter Look-up'!$C$4,$V1277-4,0)&\"\")","v":""},"",{"$f":"IF(B1277=\"\",\"\",IF(ISERROR(MATCH($J1277,SorP!$B$1:$B$6230,0)),\"\",INDIRECT(\"'SorP'!$A$\"&MATCH($J1277,SorP!$B$1:$B$6230,0))))","v":""},null,{"$f":"IF(C1277=\"\",NA(),MATCH($B1277&$C1277,'Smelter Look-up'!$J:$J,0))","v":{"$error":"#N/A"}},null,0,null,null,null,""]
[null,{"$f":"IF(LEN(A1278)=0,\"\",INDEX('Smelter Look-up'!$A:$A,MATCH($A1278,'Smelter Look-up'!$E:$E,0)))","v":""},{"$f":"IF(LEN(A1278)=0,\"\",INDEX('Smelter Look-up'!$C:$C,MATCH($A1278,'Smelter Look-up'!$E:$E,0)))","v":""},null,{"$f":"IF(ISERROR($V1278),\"\",OFFSET('Smelter Look-up'!$D$4,$V1278-4,0)&\"\")","v":""},{"$f":"IF(ISERROR($V1278),\"\",OFFSET('Smelter Look-up'!$E$4,$V1278-4,0))","v":""},{"$f":"IF(C1278=$X$4,\"Enter smelter details\", IF(ISERROR($V1278),\"\",OFFSET('Smelter Look-up'!$F$4,$V1278-4,0)))","v":""},{"$f":"IF(ISERROR($V1278),\"\",OFFSET('Smelter Look-up'!$G$4,$V1278-4,0))","v":""},{"$f":"IF(ISERROR($V1278),\"\",OFFSET('Smelter Look-up'!$H$4,$V1278-4,0))","v":""},{"$f":"IF(ISERROR($V1278),\"\",OFFSET('Smelter Look-up'!$I$4,$V1278-4,0))","v":""},{"$nulls":7},{"$f":"IF(ISERROR($V1278),\"\",OFFSET('Smelter Look-up'!$C$4,$V1278-4,0)&\"\")","v":""},"",{"$f":"IF(B1278=\"\",\"\",IF(ISERROR(MATCH($J1278,SorP!$B$1:$B$6230,0)),\"\",INDIRECT(\"'SorP'!$A$\"&MATCH($J1278,SorP!$B$1:$B$6230,0))))","v":""},null,{"$f":"IF(C1278=\"\",NA(),MATCH($B1278&$C1278,'Smelter Look-up'!$J:$J,0))","v":{"$error":"#N/A"}},null,0,null,null,null,""]
[null,{"$f":"IF(LEN(A1279)=0,\"\",INDEX('Smelter Look-up'!$A:$A,MATCH($A1279,'Smelter Look-up'!$E:$E,0)))","v":""},{"$f":"IF(LEN(A1279)=0,\"\",INDEX('Smelter Look-up'!$C:$C,MATCH($A1279,'Smelter Look-up'!$E:$E,0)))","v":""},null,{"$f":"IF(ISERROR($V1279),\"\",OFFSET('Smelter Look-up'!$D$4,$V1279-4,0)&\"\")","v":""},{"$f":"IF(ISERROR($V1279),\"\",OFFSET('Smelter Look-up'!$E$4,$V1279-4,0))","v":""},{"$f":"IF(C1279=$X$4,\"Enter smelter details\", IF(ISERROR($V1279),\"\",OFFSET('Smelter Look-up'!$F$4,$V1279-4,0)))","v":""},{"$f":"IF(ISERROR($V1279),\"\",OFFSET('Smelter Look-up'!$G$4,$V1279-4,0))","v":""},{"$f":"IF(ISERROR($V1279),\"\",OFFSET('Smelter Look-up'!$H$4,$V1279-4,0))","v":""},{"$f":"IF(ISERROR($V1279),\"\",OFFSET('Smelter Look-up'!$I$4,$V1279-4,0))","v":""},{"$nulls":7},{"$f":"IF(ISERROR($V1279),\"\",OFFSET('Smelter Look-up'!$C$4,$V1279-4,0)&\"\")","v":""},"",{"$f":"IF(B1279=\"\",\"\",IF(ISERROR(MATCH($J1279,SorP!$B$1:$B$6230,0)),\"\",INDIRECT(\"'SorP'!$A$\"&MATCH($J1279,SorP!$B$1:$B$6230,0))))","v":""},null,{"$f":"IF(C1279=\"\",NA(),MATCH($B1279&$C1279,'Smelter Look-up'!$J:$J,0))","v":{"$error":"#N/A"}},null,0,null,null,null,""]
[null,{"$f":"IF(LEN(A1280)=0,\"\",INDEX('Smelter Look-up'!$A:$A,MATCH($A1280,'Smelter Look-up'!$E:$E,0)))","v":""},{"$f":"IF(LEN(A1280)=0,\"\",INDEX('Smelter Look-up'!$C:$C,MATCH($A1280,'Smelter Look-up'!$E:$E,0)))","v":""},null,{"$f":"IF(ISERROR($V1280),\"\",OFFSET('Smelter Look-up'!$D$4,$V1280-4,0)&\"\")","v":""},{"$f":"IF(ISERROR($V1280),\"\",OFFSET('Smelter Look-up'!$E$4,$V1280-4,0))","v":""},{"$f":"IF(C1280=$X$4,\"Enter smelter details\", IF(ISERROR($V1280),\"\",OFFSET('Smelter Look-up'!$F$4,$V1280-4,0)))","v":""},{"$f":"IF(ISERROR($V1280),\"\",OFFSET('Smelter Look-up'!$G$4,$V1280-4,0))","v":""},{"$f":"IF(ISERROR($V1280),\"\",OFFSET('Smelter Look-up'!$H$4,$V1280-4,0))","v":""},{"$f":"IF(ISERROR($V1280),\"\",OFFSET('Smelter Look-up'!$I$4,$V1280-4,0))","v":""},{"$nulls":7},{"$f":"IF(ISERROR($V1280),\"\",OFFSET('Smelter Look-up'!$C$4,$V1280-4,0)&\"\")","v":""},"",{"$f":"IF(B1280=\"\",\"\",IF(ISERROR(MATCH($J1280,SorP!$B$1:$B$6230,0)),\"\",INDIRECT(\"'SorP'!$A$\"&MATCH($J1280,SorP!$B$1:$B$6230,0))))","v":""},null,{"$f":"IF(C1280=\"\",NA(),MATCH($B1280&$C1280,'Smelter Look-up'!$J:$J,0))","v":{"$error":"#N/A"}},null,0,null,null,null,""]
[null,{"$f":"IF(LEN(A1281)=0,\"\",INDEX('Smelter Look-up'!$A:$A,MATCH($A1281,'Smelter Look-up'!$E:$E,0)))","v":""},{"$f":"IF(LEN(A1281)=0,\"\",INDEX('Smelter Look-up'!$C:$C,MATCH($A1281,'Smelter Look-up'!$E:$E,0)))","v":""},null,{"$f":"IF(ISERROR($V1281),\"\",OFFSET('Smelter Look-up'!$D$4,$V1281-4,0)&\"\")","v":""},{"$f":"IF(ISERROR($V1281),\"\",OFFSET('Smelter Look-up'!$E$4,$V1281-4,0))","v":""},{"$f":"IF(C1281=$X$4,\"Enter smelter details\", IF(ISERROR($V1281),\"\",OFFSET('Smelter Look-up'!$F$4,$V1281-4,0)))","v":""},{"$f":"IF(ISERROR($V1281),\"\",OFFSET('Smelter Look-up'!$G$4,$V1281-4,0))","v":""},{"$f":"IF(ISERROR($V1281),\"\",OFFSET('Smelter Look-up'!$H$4,$V1281-4,0))","v":""},{"$f":"IF(ISERROR($V1281),\"\",OFFSET('Smelter Look-up'!$I$4,$V1281-4,0))","v":""},{"$nulls":7},{"$f":"IF(ISERROR($V1281),\"\",OFFSET('Smelter Look-up'!$C$4,$V1281-4,0)&\"\")","v":""},"",{"$f":"IF(B1281=\"\",\"\",IF(ISERROR(MATCH($J1281,SorP!$B$1:$B$6230,0)),\"\",INDIRECT(\"'SorP'!$A$\"&MATCH($J1281,SorP!$B$1:$B$6230,0))))","v":""},null,{"$f":"IF(C1281=\"\",NA(),MATCH($B1281&$C1281,'Smelter Look-up'!$J:$J,0))","v":{"$error":"#N/A"}},null,0,null,null,null,""]
[null,{"$f":"IF(LEN(A1282)=0,\"\",INDEX('Smelter Look-up'!$A:$A,MATCH($A1282,'Smelter Look-up'!$E:$E,0)))","v":""},{"$f":"IF(LEN(A1282)=0,\"\",INDEX('Smelter Look-up'!$C:$C,MATCH($A1282,'Smelter Look-up'!$E:$E,0)))","v":""},null,{"$f":"IF(ISERROR($V1282),\"\",OFFSET('Smelter Look-up'!$D$4,$V1282-4,0)&\"\")","v":""},{"$f":"IF(ISERROR($V1282),\"\",OFFSET('Smelter Look-up'!$E$4,$V1282-4,0))","v":""},{"$f":"IF(C1282=$X$4,\"Enter smelter details\", IF(ISERROR($V1282),\"\",OFFSET('Smelter Look-up'!$F$4,$V1282-4,0)))","v":""},{"$f":"IF(ISERROR($V1282),\"\",OFFSET('Smelter Look-up'!$G$4,$V1282-4,0))","v":""},{"$f":"IF(ISERROR($V1282),\"\",OFFSET('Smelter Look-up'!$H$4,$V1282-4,0))","v":""},{"$f":"IF(ISERROR($V1282),\"\",OFFSET('Smelter Look-up'!$I$4,$V1282-4,0))","v":""},{"$nulls":7},{"$f":"IF(ISERROR($V1282),\"\",OFFSET('Smelter Look-up'!$C$4,$V1282-4,0)&\"\")","v":""},"",{"$f":"IF(B1282=\"\",\"\",IF(ISERROR(MATCH($J1282,SorP!$B$1:$B$6230,0)),\"\",INDIRECT(\"'SorP'!$A$\"&MATCH($J1282,SorP!$B$1:$B$6230,0))))","v":""},null,{"$f":"IF(C1282=\"\",NA(),MATCH($B1282&$C1282,'Smelter Look-up'!$J:$J,0))","v":{"$error":"#N/A"}},null,0,null,null,null,""]
[null,{"$f":"IF(LEN(A1283)=0,\"\",INDEX('Smelter Look-up'!$A:$A,MATCH($A1283,'Smelter Look-up'!$E:$E,0)))","v":""},{"$f":"IF(LEN(A1283)=0,\"\",INDEX('Smelter Look-up'!$C:$C,MATCH($A1283,'Smelter Look-up'!$E:$E,0)))","v":""},null,{"$f":"IF(ISERROR($V1283),\"\",OFFSET('Smelter Look-up'!$D$4,$V1283-4,0)&\"\")","v":""},{"$f":"IF(ISERROR($V1283),\"\",OFFSET('Smelter Look-up'!$E$4,$V1283-4,0))","v":""},{"$f":"IF(C1283=$X$4,\"Enter smelter details\", IF(ISERROR($V1283),\"\",OFFSET('Smelter Look-up'!$F$4,$V1283-4,0)))","v":""},{"$f":"IF(ISERROR($V1283),\"\",OFFSET('Smelter Look-up'!$G$4,$V1283-4,0))","v":""},{"$f":"IF(ISERROR($V1283),\"\",OFFSET('Smelter Look-up'!$H$4,$V1283-4,0))","v":""},{"$f":"IF(ISERROR($V1283),\"\",OFFSET('Smelter Look-up'!$I$4,$V1283-4,0))","v":""},{"$nulls":7},{"$f":"IF(ISERROR($V1283),\"\",OFFSET('Smelter Look-up'!$C$4,$V1283-4,0)&\"\")","v":""},"",{"$f":"IF(B1283=\"\",\"\",IF(ISERROR(MATCH($J1283,SorP!$B$1:$B$6230,0)),\"\",INDIRECT(\"'SorP'!$A$\"&MATCH($J1283,SorP!$B$1:$B$6230,0))))","v":""},null,{"$f":"IF(C1283=\"\",NA(),MATCH($B1283&$C1283,'Smelter Look-up'!$J:$J,0))","v":{"$error":"#N/A"}},null,0,null,null,null,""]
[null,{"$f":"IF(LEN(A1284)=0,\"\",INDEX('Smelter Look-up'!$A:$A,MATCH($A1284,'Smelter Look-up'!$E:$E,0)))","v":""},{"$f":"IF(LEN(A1284)=0,\"\",INDEX('Smelter Look-up'!$C:$C,MATCH($A1284,'Smelter Look-up'!$E:$E,0)))","v":""},null,{"$f":"IF(ISERROR($V1284),\"\",OFFSET('Smelter Look-up'!$D$4,$V1284-4,0)&\"\")","v":""},{"$f":"IF(ISERROR($V1284),\"\",OFFSET('Smelter Look-up'!$E$4,$V1284-4,0))","v":""},{"$f":"IF(C1284=$X$4,\"Enter smelter details\", IF(ISERROR($V1284),\"\",OFFSET('Smelter Look-up'!$F$4,$V1284-4,0)))","v":""},{"$f":"IF(ISERROR($V1284),\"\",OFFSET('Smelter Look-up'!$G$4,$V1284-4,0))","v":""},{"$f":"IF(ISERROR($V1284),\"\",OFFSET('Smelter Look-up'!$H$4,$V1284-4,0))","v":""},{"$f":"IF(ISERROR($V1284),\"\",OFFSET('Smelter Look-up'!$I$4,$V1284-4,0))","v":""},{"$nulls":7},{"$f":"IF(ISERROR($V1284),\"\",OFFSET('Smelter Look-up'!$C$4,$V1284-4,0)&\"\")","v":""},"",{"$f":"IF(B1284=\"\",\"\",IF(ISERROR(MATCH($J1284,SorP!$B$1:$B$6230,0)),\"\",INDIRECT(\"'SorP'!$A$\"&MATCH($J1284,SorP!$B$1:$B$6230,0))))","v":""},null,{"$f":"IF(C1284=\"\",NA(),MATCH($B1284&$C1284,'Smelter Look-up'!$J:$J,0))","v":{"$error":"#N/A"}},null,0,null,null,null,""]
[null,{"$f":"IF(LEN(A1285)=0,\"\",INDEX('Smelter Look-up'!$A:$A,MATCH($A1285,'Smelter Look-up'!$E:$E,0)))","v":""},{"$f":"IF(LEN(A1285)=0,\"\",INDEX('Smelter Look-up'!$C:$C,MATCH($A1285,'Smelter Look-up'!$E:$E,0)))","v":""},null,{"$f":"IF(ISERROR($V1285),\"\",OFFSET('Smelter Look-up'!$D$4,$V1285-4,0)&\"\")","v":""},{"$f":"IF(ISERROR($V1285),\"\",OFFSET('Smelter Look-up'!$E$4,$V1285-4,0))","v":""},{"$f":"IF(C1285=$X$4,\"Enter smelter details\", IF(ISERROR($V1285),\"\",OFFSET('Smelter Look-up'!$F$4,$V1285-4,0)))","v":""},{"$f":"IF(ISERROR($V1285),\"\",OFFSET('Smelter Look-up'!$G$4,$V1285-4,0))","v":""},{"$f":"IF(ISERROR($V1285),\"\",OFFSET('Smelter Look-up'!$H$4,$V1285-4,0))","v":""},{"$f":"IF(ISERROR($V1285),\"\",OFFSET('Smelter Look-up'!$I$4,$V1285-4,0))","v":""},{"$nulls":7},{"$f":"IF(ISERROR($V1285),\"\",OFFSET('Smelter Look-up'!$C$4,$V1285-4,0)&\"\")","v":""},"",{"$f":"IF(B1285=\"\",\"\",IF(ISERROR(MATCH($J1285,SorP!$B$1:$B$6230,0)),\"\",INDIRECT(\"'SorP'!$A$\"&MATCH($J1285,SorP!$B$1:$B$6230,0))))","v":""},null,{"$f":"IF(C1285=\"\",NA(),MATCH($B1285&$C1285,'Smelter Look-up'!$J:$J,0))","v":{"$error":"#N/A"}},null,0,null,null,null,""]
[null,{"$f":"IF(LEN(A1286)=0,\"\",INDEX('Smelter Look-up'!$A:$A,MATCH($A1286,'Smelter Look-up'!$E:$E,0)))","v":""},{"$f":"IF(LEN(A1286)=0,\"\",INDEX('Smelter Look-up'!$C:$C,MATCH($A1286,'Smelter Look-up'!$E:$E,0)))","v":""},null,{"$f":"IF(ISERROR($V1286),\"\",OFFSET('Smelter Look-up'!$D$4,$V1286-4,0)&\"\")","v":""},{"$f":"IF(ISERROR($V1286),\"\",OFFSET('Smelter Look-up'!$E$4,$V1286-4,0))","v":""},{"$f":"IF(C1286=$X$4,\"Enter smelter details\", IF(ISERROR($V1286),\"\",OFFSET('Smelter Look-up'!$F$4,$V1286-4,0)))","v":""},{"$f":"IF(ISERROR($V1286),\"\",OFFSET('Smelter Look-up'!$G$4,$V1286-4,0))","v":""},{"$f":"IF(ISERROR($V1286),\"\",OFFSET('Smelter Look-up'!$H$4,$V1286-4,0))","v":""},{"$f":"IF(ISERROR($V1286),\"\",OFFSET('Smelter Look-up'!$I$4,$V1286-4,0))","v":""},{"$nulls":7},{"$f":"IF(ISERROR($V1286),\"\",OFFSET('Smelter Look-up'!$C$4,$V1286-4,0)&\"\")","v":""},"",{"$f":"IF(B1286=\"\",\"\",IF(ISERROR(MATCH($J1286,SorP!$B$1:$B$6230,0)),\"\",INDIRECT(\"'SorP'!$A$\"&MATCH($J1286,SorP!$B$1:$B$6230,0))))","v":""},null,{"$f":"IF(C1286=\"\",NA(),MATCH($B1286&$C1286,'Smelter Look-up'!$J:$J,0))","v":{"$error":"#N/A"}},null,0,null,null,null,""]
[null,{"$f":"IF(LEN(A1287)=0,\"\",INDEX('Smelter Look-up'!$A:$A,MATCH($A1287,'Smelter Look-up'!$E:$E,0)))","v":""},{"$f":"IF(LEN(A1287)=0,\"\",INDEX('Smelter Look-up'!$C:$C,MATCH($A1287,'Smelter Look-up'!$E:$E,0)))","v":""},null,{"$f":"IF(ISERROR($V1287),\"\",OFFSET('Smelter Look-up'!$D$4,$V1287-4,0)&\"\")","v":""},{"$f":"IF(ISERROR($V1287),\"\",OFFSET('Smelter Look-up'!$E$4,$V1287-4,0))","v":""},{"$f":"IF(C1287=$X$4,\"Enter smelter details\", IF(ISERROR($V1287),\"\",OFFSET('Smelter Look-up'!$F$4,$V1287-4,0)))","v":""},{"$f":"IF(ISERROR($V1287),\"\",OFFSET('Smelter Look-up'!$G$4,$V1287-4,0))","v":""},{"$f":"IF(ISERROR($V1287),\"\",OFFSET('Smelter Look-up'!$H$4,$V1287-4,0))","v":""},{"$f":"IF(ISERROR($V1287),\"\",OFFSET('Smelter Look-up'!$I$4,$V1287-4,0))","v":""},{"$nulls":7},{"$f":"IF(ISERROR($V1287),\"\",OFFSET('Smelter Look-up'!$C$4,$V1287-4,0)&\"\")","v":""},"",{"$f":"IF(B1287=\"\",\"\",IF(ISERROR(MATCH($J1287,SorP!$B$1:$B$6230,0)),\"\",INDIRECT(\"'SorP'!$A$\"&MATCH($J1287,SorP!$B$1:$B$6230,0))))","v":""},null,{"$f":"IF(C1287=\"\",NA(),MATCH($B1287&$C1287,'Smelter Look-up'!$J:$J,0))","v":{"$error":"#N/A"}},null,0,null,null,null,""]
[null,{"$f":"IF(LEN(A1288)=0,\"\",INDEX('Smelter Look-up'!$A:$A,MATCH($A1288,'Smelter Look-up'!$E:$E,0)))","v":""},{"$f":"IF(LEN(A1288)=0,\"\",INDEX('Smelter Look-up'!$C:$C,MATCH($A1288,'Smelter Look-up'!$E:$E,0)))","v":""},null,{"$f":"IF(ISERROR($V1288),\"\",OFFSET('Smelter Look-up'!$D$4,$V1288-4,0)&\"\")","v":""},{"$f":"IF(ISERROR($V1288),\"\",OFFSET('Smelter Look-up'!$E$4,$V1288-4,0))","v":""},{"$f":"IF(C1288=$X$4,\"Enter smelter details\", IF(ISERROR($V1288),\"\",OFFSET('Smelter Look-up'!$F$4,$V1288-4,0)))","v":""},{"$f":"IF(ISERROR($V1288),\"\",OFFSET('Smelter Look-up'!$G$4,$V1288-4,0))","v":""},{"$f":"IF(ISERROR($V1288),\"\",OFFSET('Smelter Look-up'!$H$4,$V1288-4,0))","v":""},{"$f":"IF(ISERROR($V1288),\"\",OFFSET('Smelter Look-up'!$I$4,$V1288-4,0))","v":""},{"$nulls":7},{"$f":"IF(ISERROR($V1288),\"\",OFFSET('Smelter Look-up'!$C$4,$V1288-4,0)&\"\")","v":""},"",{"$f":"IF(B1288=\"\",\"\",IF(ISERROR(MATCH($J1288,SorP!$B$1:$B$6230,0)),\"\",INDIRECT(\"'SorP'!$A$\"&MATCH($J1288,SorP!$B$1:$B$6230,0))))","v":""},null,{"$f":"IF(C1288=\"\",NA(),MATCH($B1288&$C1288,'Smelter Look-up'!$J:$J,0))","v":{"$error":"#N/A"}},null,0,null,null,null,""]
[null,{"$f":"IF(LEN(A1289)=0,\"\",INDEX('Smelter Look-up'!$A:$A,MATCH($A1289,'Smelter Look-up'!$E:$E,0)))","v":""},{"$f":"IF(LEN(A1289)=0,\"\",INDEX('Smelter Look-up'!$C:$C,MATCH($A1289,'Smelter Look-up'!$E:$E,0)))","v":""},null,{"$f":"IF(ISERROR($V1289),\"\",OFFSET('Smelter Look-up'!$D$4,$V1289-4,0)&\"\")","v":""},{"$f":"IF(ISERROR($V1289),\"\",OFFSET('Smelter Look-up'!$E$4,$V1289-4,0))","v":""},{"$f":"IF(C1289=$X$4,\"Enter smelter details\", IF(ISERROR($V1289),\"\",OFFSET('Smelter Look-up'!$F$4,$V1289-4,0)))","v":""},{"$f":"IF(ISERROR($V1289),\"\",OFFSET('Smelter Look-up'!$G$4,$V1289-4,0))","v":""},{"$f":"IF(ISERROR($V1289),\"\",OFFSET('Smelter Look-up'!$H$4,$V1289-4,0))","v":""},{"$f":"IF(ISERROR($V1289),\"\",OFFSET('Smelter Look-up'!$I$4,$V1289-4,0))","v":""},{"$nulls":7},{"$f":"IF(ISERROR($V1289),\"\",OFFSET('Smelter Look-up'!$C$4,$V1289-4,0)&\"\")","v":""},"",{"$f":"IF(B1289=\"\",\"\",IF(ISERROR(MATCH($J1289,SorP!$B$1:$B$6230,0)),\"\",INDIRECT(\"'SorP'!$A$\"&MATCH($J1289,SorP!$B$1:$B$6230,0))))","v":""},null,{"$f":"IF(C1289=\"\",NA(),MATCH($B1289&$C1289,'Smelter Look-up'!$J:$J,0))","v":{"$error":"#N/A"}},null,0,null,null,null,""]
[null,{"$f":"IF(LEN(A1290)=0,\"\",INDEX('Smelter Look-up'!$A:$A,MATCH($A1290,'Smelter Look-up'!$E:$E,0)))","v":""},{"$f":"IF(LEN(A1290)=0,\"\",INDEX('Smelter Look-up'!$C:$C,MATCH($A1290,'Smelter Look-up'!$E:$E,0)))","v":""},null,{"$f":"IF(ISERROR($V1290),\"\",OFFSET('Smelter Look-up'!$D$4,$V1290-4,0)&\"\")","v":""},{"$f":"IF(ISERROR($V1290),\"\",OFFSET('Smelter Look-up'!$E$4,$V1290-4,0))","v":""},{"$f":"IF(C1290=$X$4,\"Enter smelter details\", IF(ISERROR($V1290),\"\",OFFSET('Smelter Look-up'!$F$4,$V1290-4,0)))","v":""},{"$f":"IF(ISERROR($V1290),\"\",OFFSET('Smelter Look-up'!$G$4,$V1290-4,0))","v":""},{"$f":"IF(ISERROR($V1290),\"\",OFFSET('Smelter Look-up'!$H$4,$V1290-4,0))","v":""},{"$f":"IF(ISERROR($V1290),\"\",OFFSET('Smelter Look-up'!$I$4,$V1290-4,0))","v":""},{"$nulls":7},{"$f":"IF(ISERROR($V1290),\"\",OFFSET('Smelter Look-up'!$C$4,$V1290-4,0)&\"\")","v":""},"",{"$f":"IF(B1290=\"\",\"\",IF(ISERROR(MATCH($J1290,SorP!$B$1:$B$6230,0)),\"\",INDIRECT(\"'SorP'!$A$\"&MATCH($J1290,SorP!$B$1:$B$6230,0))))","v":""},null,{"$f":"IF(C1290=\"\",NA(),MATCH($B1290&$C1290,'Smelter Look-up'!$J:$J,0))","v":{"$error":"#N/A"}},null,0,null,null,null,""]
[null,{"$f":"IF(LEN(A1291)=0,\"\",INDEX('Smelter Look-up'!$A:$A,MATCH($A1291,'Smelter Look-up'!$E:$E,0)))","v":""},{"$f":"IF(LEN(A1291)=0,\"\",INDEX('Smelter Look-up'!$C:$C,MATCH($A1291,'Smelter Look-up'!$E:$E,0)))","v":""},null,{"$f":"IF(ISERROR($V1291),\"\",OFFSET('Smelter Look-up'!$D$4,$V1291-4,0)&\"\")","v":""},{"$f":"IF(ISERROR($V1291),\"\",OFFSET('Smelter Look-up'!$E$4,$V1291-4,0))","v":""},{"$f":"IF(C1291=$X$4,\"Enter smelter details\", IF(ISERROR($V1291),\"\",OFFSET('Smelter Look-up'!$F$4,$V1291-4,0)))","v":""},{"$f":"IF(ISERROR($V1291),\"\",OFFSET('Smelter Look-up'!$G$4,$V1291-4,0))","v":""},{"$f":"IF(ISERROR($V1291),\"\",OFFSET('Smelter Look-up'!$H$4,$V1291-4,0))","v":""},{"$f":"IF(ISERROR($V1291),\"\",OFFSET('Smelter Look-up'!$I$4,$V1291-4,0))","v":""},{"$nulls":7},{"$f":"IF(ISERROR($V1291),\"\",OFFSET('Smelter Look-up'!$C$4,$V1291-4,0)&\"\")","v":""},"",{"$f":"IF(B1291=\"\",\"\",IF(ISERROR(MATCH($J1291,SorP!$B$1:$B$6230,0)),\"\",INDIRECT(\"'SorP'!$A$\"&MATCH($J1291,SorP!$B$1:$B$6230,0))))","v":""},null,{"$f":"IF(C1291=\"\",NA(),MATCH($B1291&$C1291,'Smelter Look-up'!$J:$J,0))","v":{"$error":"#N/A"}},null,0,null,null,null,""]
[null,{"$f":"IF(LEN(A1292)=0,\"\",INDEX('Smelter Look-up'!$A:$A,MATCH($A1292,'Smelter Look-up'!$E:$E,0)))","v":""},{"$f":"IF(LEN(A1292)=0,\"\",INDEX('Smelter Look-up'!$C:$C,MATCH($A1292,'Smelter Look-up'!$E:$E,0)))","v":""},null,{"$f":"IF(ISERROR($V1292),\"\",OFFSET('Smelter Look-up'!$D$4,$V1292-4,0)&\"\")","v":""},{"$f":"IF(ISERROR($V1292),\"\",OFFSET('Smelter Look-up'!$E$4,$V1292-4,0))","v":""},{"$f":"IF(C1292=$X$4,\"Enter smelter details\", IF(ISERROR($V1292),\"\",OFFSET('Smelter Look-up'!$F$4,$V1292-4,0)))","v":""},{"$f":"IF(ISERROR($V1292),\"\",OFFSET('Smelter Look-up'!$G$4,$V1292-4,0))","v":""},{"$f":"IF(ISERROR($V1292),\"\",OFFSET('Smelter Look-up'!$H$4,$V1292-4,0))","v":""},{"$f":"IF(ISERROR($V1292),\"\",OFFSET('Smelter Look-up'!$I$4,$V1292-4,0))","v":""},{"$nulls":7},{"$f":"IF(ISERROR($V1292),\"\",OFFSET('Smelter Look-up'!$C$4,$V1292-4,0)&\"\")","v":""},"",{"$f":"IF(B1292=\"\",\"\",IF(ISERROR(MATCH($J1292,SorP!$B$1:$B$6230,0)),\"\",INDIRECT(\"'SorP'!$A$\"&MATCH($J1292,SorP!$B$1:$B$6230,0))))","v":""},null,{"$f":"IF(C1292=\"\",NA(),MATCH($B1292&$C1292,'Smelter Look-up'!$J:$J,0))","v":{"$error":"#N/A"}},null,0,null,null,null,""]
[null,{"$f":"IF(LEN(A1293)=0,\"\",INDEX('Smelter Look-up'!$A:$A,MATCH($A1293,'Smelter Look-up'!$E:$E,0)))","v":""},{"$f":"IF(LEN(A1293)=0,\"\",INDEX('Smelter Look-up'!$C:$C,MATCH($A1293,'Smelter Look-up'!$E:$E,0)))","v":""},null,{"$f":"IF(ISERROR($V1293),\"\",OFFSET('Smelter Look-up'!$D$4,$V1293-4,0)&\"\")","v":""},{"$f":"IF(ISERROR($V1293),\"\",OFFSET('Smelter Look-up'!$E$4,$V1293-4,0))","v":""},{"$f":"IF(C1293=$X$4,\"Enter smelter details\", IF(ISERROR($V1293),\"\",OFFSET('Smelter Look-up'!$F$4,$V1293-4,0)))","v":""},{"$f":"IF(ISERROR($V1293),\"\",OFFSET('Smelter Look-up'!$G$4,$V1293-4,0))","v":""},{"$f":"IF(ISERROR($V1293),\"\",OFFSET('Smelter Look-up'!$H$4,$V1293-4,0))","v":""},{"$f":"IF(ISERROR($V1293),\"\",OFFSET('Smelter Look-up'!$I$4,$V1293-4,0))","v":""},{"$nulls":7},{"$f":"IF(ISERROR($V1293),\"\",OFFSET('Smelter Look-up'!$C$4,$V1293-4,0)&\"\")","v":""},"",{"$f":"IF(B1293=\"\",\"\",IF(ISERROR(MATCH($J1293,SorP!$B$1:$B$6230,0)),\"\",INDIRECT(\"'SorP'!$A$\"&MATCH($J1293,SorP!$B$1:$B$6230,0))))","v":""},null,{"$f":"IF(C1293=\"\",NA(),MATCH($B1293&$C1293,'Smelter Look-up'!$J:$J,0))","v":{"$error":"#N/A"}},null,0,null,null,null,""]
[null,{"$f":"IF(LEN(A1294)=0,\"\",INDEX('Smelter Look-up'!$A:$A,MATCH($A1294,'Smelter Look-up'!$E:$E,0)))","v":""},{"$f":"IF(LEN(A1294)=0,\"\",INDEX('Smelter Look-up'!$C:$C,MATCH($A1294,'Smelter Look-up'!$E:$E,0)))","v":""},null,{"$f":"IF(ISERROR($V1294),\"\",OFFSET('Smelter Look-up'!$D$4,$V1294-4,0)&\"\")","v":""},{"$f":"IF(ISERROR($V1294),\"\",OFFSET('Smelter Look-up'!$E$4,$V1294-4,0))","v":""},{"$f":"IF(C1294=$X$4,\"Enter smelter details\", IF(ISERROR($V1294),\"\",OFFSET('Smelter Look-up'!$F$4,$V1294-4,0)))","v":""},{"$f":"IF(ISERROR($V1294),\"\",OFFSET('Smelter Look-up'!$G$4,$V1294-4,0))","v":""},{"$f":"IF(ISERROR($V1294),\"\",OFFSET('Smelter Look-up'!$H$4,$V1294-4,0))","v":""},{"$f":"IF(ISERROR($V1294),\"\",OFFSET('Smelter Look-up'!$I$4,$V1294-4,0))","v":""},{"$nulls":7},{"$f":"IF(ISERROR($V1294),\"\",OFFSET('Smelter Look-up'!$C$4,$V1294-4,0)&\"\")","v":""},"",{"$f":"IF(B1294=\"\",\"\",IF(ISERROR(MATCH($J1294,SorP!$B$1:$B$6230,0)),\"\",INDIRECT(\"'SorP'!$A$\"&MATCH($J1294,SorP!$B$1:$B$6230,0))))","v":""},null,{"$f":"IF(C1294=\"\",NA(),MATCH($B1294&$C1294,'Smelter Look-up'!$J:$J,0))","v":{"$error":"#N/A"}},null,0,null,null,null,""]
[null,{"$f":"IF(LEN(A1295)=0,\"\",INDEX('Smelter Look-up'!$A:$A,MATCH($A1295,'Smelter Look-up'!$E:$E,0)))","v":""},{"$f":"IF(LEN(A1295)=0,\"\",INDEX('Smelter Look-up'!$C:$C,MATCH($A1295,'Smelter Look-up'!$E:$E,0)))","v":""},null,{"$f":"IF(ISERROR($V1295),\"\",OFFSET('Smelter Look-up'!$D$4,$V1295-4,0)&\"\")","v":""},{"$f":"IF(ISERROR($V1295),\"\",OFFSET('Smelter Look-up'!$E$4,$V1295-4,0))","v":""},{"$f":"IF(C1295=$X$4,\"Enter smelter details\", IF(ISERROR($V1295),\"\",OFFSET('Smelter Look-up'!$F$4,$V1295-4,0)))","v":""},{"$f":"IF(ISERROR($V1295),\"\",OFFSET('Smelter Look-up'!$G$4,$V1295-4,0))","v":""},{"$f":"IF(ISERROR($V1295),\"\",OFFSET('Smelter Look-up'!$H$4,$V1295-4,0))","v":""},{"$f":"IF(ISERROR($V1295),\"\",OFFSET('Smelter Look-up'!$I$4,$V1295-4,0))","v":""},{"$nulls":7},{"$f":"IF(ISERROR($V1295),\"\",OFFSET('Smelter Look-up'!$C$4,$V1295-4,0)&\"\")","v":""},"",{"$f":"IF(B1295=\"\",\"\",IF(ISERROR(MATCH($J1295,SorP!$B$1:$B$6230,0)),\"\",INDIRECT(\"'SorP'!$A$\"&MATCH($J1295,SorP!$B$1:$B$6230,0))))","v":""},null,{"$f":"IF(C1295=\"\",NA(),MATCH($B1295&$C1295,'Smelter Look-up'!$J:$J,0))","v":{"$error":"#N/A"}},null,0,null,null,null,""]
[null,{"$f":"IF(LEN(A1296)=0,\"\",INDEX('Smelter Look-up'!$A:$A,MATCH($A1296,'Smelter Look-up'!$E:$E,0)))","v":""},{"$f":"IF(LEN(A1296)=0,\"\",INDEX('Smelter Look-up'!$C:$C,MATCH($A1296,'Smelter Look-up'!$E:$E,0)))","v":""},null,{"$f":"IF(ISERROR($V1296),\"\",OFFSET('Smelter Look-up'!$D$4,$V1296-4,0)&\"\")","v":""},{"$f":"IF(ISERROR($V1296),\"\",OFFSET('Smelter Look-up'!$E$4,$V1296-4,0))","v":""},{"$f":"IF(C1296=$X$4,\"Enter smelter details\", IF(ISERROR($V1296),\"\",OFFSET('Smelter Look-up'!$F$4,$V1296-4,0)))","v":""},{"$f":"IF(ISERROR($V1296),\"\",OFFSET('Smelter Look-up'!$G$4,$V1296-4,0))","v":""},{"$f":"IF(ISERROR($V1296),\"\",OFFSET('Smelter Look-up'!$H$4,$V1296-4,0))","v":""},{"$f":"IF(ISERROR($V1296),\"\",OFFSET('Smelter Look-up'!$I$4,$V1296-4,0))","v":""},{"$nulls":7},{"$f":"IF(ISERROR($V1296),\"\",OFFSET('Smelter Look-up'!$C$4,$V1296-4,0)&\"\")","v":""},"",{"$f":"IF(B1296=\"\",\"\",IF(ISERROR(MATCH($J1296,SorP!$B$1:$B$6230,0)),\"\",INDIRECT(\"'SorP'!$A$\"&MATCH($J1296,SorP!$B$1:$B$6230,0))))","v":""},null,{"$f":"IF(C1296=\"\",NA(),MATCH($B1296&$C1296,'Smelter Look-up'!$J:$J,0))","v":{"$error":"#N/A"}},null,0,null,null,null,""]
[null,{"$f":"IF(LEN(A1297)=0,\"\",INDEX('Smelter Look-up'!$A:$A,MATCH($A1297,'Smelter Look-up'!$E:$E,0)))","v":""},{"$f":"IF(LEN(A1297)=0,\"\",INDEX('Smelter Look-up'!$C:$C,MATCH($A1297,'Smelter Look-up'!$E:$E,0)))","v":""},null,{"$f":"IF(ISERROR($V1297),\"\",OFFSET('Smelter Look-up'!$D$4,$V1297-4,0)&\"\")","v":""},{"$f":"IF(ISERROR($V1297),\"\",OFFSET('Smelter Look-up'!$E$4,$V1297-4,0))","v":""},{"$f":"IF(C1297=$X$4,\"Enter smelter details\", IF(ISERROR($V1297),\"\",OFFSET('Smelter Look-up'!$F$4,$V1297-4,0)))","v":""},{"$f":"IF(ISERROR($V1297),\"\",OFFSET('Smelter Look-up'!$G$4,$V1297-4,0))","v":""},{"$f":"IF(ISERROR($V1297),\"\",OFFSET('Smelter Look-up'!$H$4,$V1297-4,0))","v":""},{"$f":"IF(ISERROR($V1297),\"\",OFFSET('Smelter Look-up'!$I$4,$V1297-4,0))","v":""},{"$nulls":7},{"$f":"IF(ISERROR($V1297),\"\",OFFSET('Smelter Look-up'!$C$4,$V1297-4,0)&\"\")","v":""},"",{"$f":"IF(B1297=\"\",\"\",IF(ISERROR(MATCH($J1297,SorP!$B$1:$B$6230,0)),\"\",INDIRECT(\"'SorP'!$A$\"&MATCH($J1297,SorP!$B$1:$B$6230,0))))","v":""},null,{"$f":"IF(C1297=\"\",NA(),MATCH($B1297&$C1297,'Smelter Look-up'!$J:$J,0))","v":{"$error":"#N/A"}},null,0,null,null,null,""]
[null,{"$f":"IF(LEN(A1298)=0,\"\",INDEX('Smelter Look-up'!$A:$A,MATCH($A1298,'Smelter Look-up'!$E:$E,0)))","v":""},{"$f":"IF(LEN(A1298)=0,\"\",INDEX('Smelter Look-up'!$C:$C,MATCH($A1298,'Smelter Look-up'!$E:$E,0)))","v":""},null,{"$f":"IF(ISERROR($V1298),\"\",OFFSET('Smelter Look-up'!$D$4,$V1298-4,0)&\"\")","v":""},{"$f":"IF(ISERROR($V1298),\"\",OFFSET('Smelter Look-up'!$E$4,$V1298-4,0))","v":""},{"$f":"IF(C1298=$X$4,\"Enter smelter details\", IF(ISERROR($V1298),\"\",OFFSET('Smelter Look-up'!$F$4,$V1298-4,0)))","v":""},{"$f":"IF(ISERROR($V1298),\"\",OFFSET('Smelter Look-up'!$G$4,$V1298-4,0))","v":""},{"$f":"IF(ISERROR($V1298),\"\",OFFSET('Smelter Look-up'!$H$4,$V1298-4,0))","v":""},{"$f":"IF(ISERROR($V1298),\"\",OFFSET('Smelter Look-up'!$I$4,$V1298-4,0))","v":""},{"$nulls":7},{"$f":"IF(ISERROR($V1298),\"\",OFFSET('Smelter Look-up'!$C$4,$V1298-4,0)&\"\")","v":""},"",{"$f":"IF(B1298=\"\",\"\",IF(ISERROR(MATCH($J1298,SorP!$B$1:$B$6230,0)),\"\",INDIRECT(\"'SorP'!$A$\"&MATCH($J1298,SorP!$B$1:$B$6230,0))))","v":""},null,{"$f":"IF(C1298=\"\",NA(),MATCH($B1298&$C1298,'Smelter Look-up'!$J:$J,0))","v":{"$error":"#N/A"}},null,0,null,null,null,""]
[null,{"$f":"IF(LEN(A1299)=0,\"\",INDEX('Smelter Look-up'!$A:$A,MATCH($A1299,'Smelter Look-up'!$E:$E,0)))","v":""},{"$f":"IF(LEN(A1299)=0,\"\",INDEX('Smelter Look-up'!$C:$C,MATCH($A1299,'Smelter Look-up'!$E:$E,0)))","v":""},null,{"$f":"IF(ISERROR($V1299),\"\",OFFSET('Smelter Look-up'!$D$4,$V1299-4,0)&\"\")","v":""},{"$f":"IF(ISERROR($V1299),\"\",OFFSET('Smelter Look-up'!$E$4,$V1299-4,0))","v":""},{"$f":"IF(C1299=$X$4,\"Enter smelter details\", IF(ISERROR($V1299),\"\",OFFSET('Smelter Look-up'!$F$4,$V1299-4,0)))","v":""},{"$f":"IF(ISERROR($V1299),\"\",OFFSET('Smelter Look-up'!$G$4,$V1299-4,0))","v":""},{"$f":"IF(ISERROR($V1299),\"\",OFFSET('Smelter Look-up'!$H$4,$V1299-4,0))","v":""},{"$f":"IF(ISERROR($V1299),\"\",OFFSET('Smelter Look-up'!$I$4,$V1299-4,0))","v":""},{"$nulls":7},{"$f":"IF(ISERROR($V1299),\"\",OFFSET('Smelter Look-up'!$C$4,$V1299-4,0)&\"\")","v":""},"",{"$f":"IF(B1299=\"\",\"\",IF(ISERROR(MATCH($J1299,SorP!$B$1:$B$6230,0)),\"\",INDIRECT(\"'SorP'!$A$\"&MATCH($J1299,SorP!$B$1:$B$6230,0))))","v":""},null,{"$f":"IF(C1299=\"\",NA(),MATCH($B1299&$C1299,'Smelter Look-up'!$J:$J,0))","v":{"$error":"#N/A"}},null,0,null,null,null,""]
[null,{"$f":"IF(LEN(A1300)=0,\"\",INDEX('Smelter Look-up'!$A:$A,MATCH($A1300,'Smelter Look-up'!$E:$E,0)))","v":""},{"$f":"IF(LEN(A1300)=0,\"\",INDEX('Smelter Look-up'!$C:$C,MATCH($A1300,'Smelter Look-up'!$E:$E,0)))","v":""},null,{"$f":"IF(ISERROR($V1300),\"\",OFFSET('Smelter Look-up'!$D$4,$V1300-4,0)&\"\")","v":""},{"$f":"IF(ISERROR($V1300),\"\",OFFSET('Smelter Look-up'!$E$4,$V1300-4,0))","v":""},{"$f":"IF(C1300=$X$4,\"Enter smelter details\", IF(ISERROR($V1300),\"\",OFFSET('Smelter Look-up'!$F$4,$V1300-4,0)))","v":""},{"$f":"IF(ISERROR($V1300),\"\",OFFSET('Smelter Look-up'!$G$4,$V1300-4,0))","v":""},{"$f":"IF(ISERROR($V1300),\"\",OFFSET('Smelter Look-up'!$H$4,$V1300-4,0))","v":""},{"$f":"IF(ISERROR($V1300),\"\",OFFSET('Smelter Look-up'!$I$4,$V1300-4,0))","v":""},{"$nulls":7},{"$f":"IF(ISERROR($V1300),\"\",OFFSET('Smelter Look-up'!$C$4,$V1300-4,0)&\"\")","v":""},"",{"$f":"IF(B1300=\"\",\"\",IF(ISERROR(MATCH($J1300,SorP!$B$1:$B$6230,0)),\"\",INDIRECT(\"'SorP'!$A$\"&MATCH($J1300,SorP!$B$1:$B$6230,0))))","v":""},null,{"$f":"IF(C1300=\"\",NA(),MATCH($B1300&$C1300,'Smelter Look-up'!$J:$J,0))","v":{"$error":"#N/A"}},null,0,null,null,null,""]
[null,{"$f":"IF(LEN(A1301)=0,\"\",INDEX('Smelter Look-up'!$A:$A,MATCH($A1301,'Smelter Look-up'!$E:$E,0)))","v":""},{"$f":"IF(LEN(A1301)=0,\"\",INDEX('Smelter Look-up'!$C:$C,MATCH($A1301,'Smelter Look-up'!$E:$E,0)))","v":""},null,{"$f":"IF(ISERROR($V1301),\"\",OFFSET('Smelter Look-up'!$D$4,$V1301-4,0)&\"\")","v":""},{"$f":"IF(ISERROR($V1301),\"\",OFFSET('Smelter Look-up'!$E$4,$V1301-4,0))","v":""},{"$f":"IF(C1301=$X$4,\"Enter smelter details\", IF(ISERROR($V1301),\"\",OFFSET('Smelter Look-up'!$F$4,$V1301-4,0)))","v":""},{"$f":"IF(ISERROR($V1301),\"\",OFFSET('Smelter Look-up'!$G$4,$V1301-4,0))","v":""},{"$f":"IF(ISERROR($V1301),\"\",OFFSET('Smelter Look-up'!$H$4,$V1301-4,0))","v":""},{"$f":"IF(ISERROR($V1301),\"\",OFFSET('Smelter Look-up'!$I$4,$V1301-4,0))","v":""},{"$nulls":7},{"$f":"IF(ISERROR($V1301),\"\",OFFSET('Smelter Look-up'!$C$4,$V1301-4,0)&\"\")","v":""},"",{"$f":"IF(B1301=\"\",\"\",IF(ISERROR(MATCH($J1301,SorP!$B$1:$B$6230,0)),\"\",INDIRECT(\"'SorP'!$A$\"&MATCH($J1301,SorP!$B$1:$B$6230,0))))","v":""},null,{"$f":"IF(C1301=\"\",NA(),MATCH($B1301&$C1301,'Smelter Look-up'!$J:$J,0))","v":{"$error":"#N/A"}},null,0,null,null,null,""]
[null,{"$f":"IF(LEN(A1302)=0,\"\",INDEX('Smelter Look-up'!$A:$A,MATCH($A1302,'Smelter Look-up'!$E:$E,0)))","v":""},{"$f":"IF(LEN(A1302)=0,\"\",INDEX('Smelter Look-up'!$C:$C,MATCH($A1302,'Smelter Look-up'!$E:$E,0)))","v":""},null,{"$f":"IF(ISERROR($V1302),\"\",OFFSET('Smelter Look-up'!$D$4,$V1302-4,0)&\"\")","v":""},{"$f":"IF(ISERROR($V1302),\"\",OFFSET('Smelter Look-up'!$E$4,$V1302-4,0))","v":""},{"$f":"IF(C1302=$X$4,\"Enter smelter details\", IF(ISERROR($V1302),\"\",OFFSET('Smelter Look-up'!$F$4,$V1302-4,0)))","v":""},{"$f":"IF(ISERROR($V1302),\"\",OFFSET('Smelter Look-up'!$G$4,$V1302-4,0))","v":""},{"$f":"IF(ISERROR($V1302),\"\",OFFSET('Smelter Look-up'!$H$4,$V1302-4,0))","v":""},{"$f":"IF(ISERROR($V1302),\"\",OFFSET('Smelter Look-up'!$I$4,$V1302-4,0))","v":""},{"$nulls":7},{"$f":"IF(ISERROR($V1302),\"\",OFFSET('Smelter Look-up'!$C$4,$V1302-4,0)&\"\")","v":""},"",{"$f":"IF(B1302=\"\",\"\",IF(ISERROR(MATCH($J1302,SorP!$B$1:$B$6230,0)),\"\",INDIRECT(\"'SorP'!$A$\"&MATCH($J1302,SorP!$B$1:$B$6230,0))))","v":""},null,{"$f":"IF(C1302=\"\",NA(),MATCH($B1302&$C1302,'Smelter Look-up'!$J:$J,0))","v":{"$error":"#N/A"}},null,0,null,null,null,""]
[null,{"$f":"IF(LEN(A1303)=0,\"\",INDEX('Smelter Look-up'!$A:$A,MATCH($A1303,'Smelter Look-up'!$E:$E,0)))","v":""},{"$f":"IF(LEN(A1303)=0,\"\",INDEX('Smelter Look-up'!$C:$C,MATCH($A1303,'Smelter Look-up'!$E:$E,0)))","v":""},null,{"$f":"IF(ISERROR($V1303),\"\",OFFSET('Smelter Look-up'!$D$4,$V1303-4,0)&\"\")","v":""},{"$f":"IF(ISERROR($V1303),\"\",OFFSET('Smelter Look-up'!$E$4,$V1303-4,0))","v":""},{"$f":"IF(C1303=$X$4,\"Enter smelter details\", IF(ISERROR($V1303),\"\",OFFSET('Smelter Look-up'!$F$4,$V1303-4,0)))","v":""},{"$f":"IF(ISERROR($V1303),\"\",OFFSET('Smelter Look-up'!$G$4,$V1303-4,0))","v":""},{"$f":"IF(ISERROR($V1303),\"\",OFFSET('Smelter Look-up'!$H$4,$V1303-4,0))","v":""},{"$f":"IF(ISERROR($V1303),\"\",OFFSET('Smelter Look-up'!$I$4,$V1303-4,0))","v":""},{"$nulls":7},{"$f":"IF(ISERROR($V1303),\"\",OFFSET('Smelter Look-up'!$C$4,$V1303-4,0)&\"\")","v":""},"",{"$f":"IF(B1303=\"\",\"\",IF(ISERROR(MATCH($J1303,SorP!$B$1:$B$6230,0)),\"\",INDIRECT(\"'SorP'!$A$\"&MATCH($J1303,SorP!$B$1:$B$6230,0))))","v":""},null,{"$f":"IF(C1303=\"\",NA(),MATCH($B1303&$C1303,'Smelter Look-up'!$J:$J,0))","v":{"$error":"#N/A"}},null,0,null,null,null,""]
[null,{"$f":"IF(LEN(A1304)=0,\"\",INDEX('Smelter Look-up'!$A:$A,MATCH($A1304,'Smelter Look-up'!$E:$E,0)))","v":""},{"$f":"IF(LEN(A1304)=0,\"\",INDEX('Smelter Look-up'!$C:$C,MATCH($A1304,'Smelter Look-up'!$E:$E,0)))","v":""},null,{"$f":"IF(ISERROR($V1304),\"\",OFFSET('Smelter Look-up'!$D$4,$V1304-4,0)&\"\")","v":""},{"$f":"IF(ISERROR($V1304),\"\",OFFSET('Smelter Look-up'!$E$4,$V1304-4,0))","v":""},{"$f":"IF(C1304=$X$4,\"Enter smelter details\", IF(ISERROR($V1304),\"\",OFFSET('Smelter Look-up'!$F$4,$V1304-4,0)))","v":""},{"$f":"IF(ISERROR($V1304),\"\",OFFSET('Smelter Look-up'!$G$4,$V1304-4,0))","v":""},{"$f":"IF(ISERROR($V1304),\"\",OFFSET('Smelter Look-up'!$H$4,$V1304-4,0))","v":""},{"$f":"IF(ISERROR($V1304),\"\",OFFSET('Smelter Look-up'!$I$4,$V1304-4,0))","v":""},{"$nulls":7},{"$f":"IF(ISERROR($V1304),\"\",OFFSET('Smelter Look-up'!$C$4,$V1304-4,0)&\"\")","v":""},"",{"$f":"IF(B1304=\"\",\"\",IF(ISERROR(MATCH($J1304,SorP!$B$1:$B$6230,0)),\"\",INDIRECT(\"'SorP'!$A$\"&MATCH($J1304,SorP!$B$1:$B$6230,0))))","v":""},null,{"$f":"IF(C1304=\"\",NA(),MATCH($B1304&$C1304,'Smelter Look-up'!$J:$J,0))","v":{"$error":"#N/A"}},null,0,null,null,null,""]
[null,{"$f":"IF(LEN(A1305)=0,\"\",INDEX('Smelter Look-up'!$A:$A,MATCH($A1305,'Smelter Look-up'!$E:$E,0)))","v":""},{"$f":"IF(LEN(A1305)=0,\"\",INDEX('Smelter Look-up'!$C:$C,MATCH($A1305,'Smelter Look-up'!$E:$E,0)))","v":""},null,{"$f":"IF(ISERROR($V1305),\"\",OFFSET('Smelter Look-up'!$D$4,$V1305-4,0)&\"\")","v":""},{"$f":"IF(ISERROR($V1305),\"\",OFFSET('Smelter Look-up'!$E$4,$V1305-4,0))","v":""},{"$f":"IF(C1305=$X$4,\"Enter smelter details\", IF(ISERROR($V1305),\"\",OFFSET('Smelter Look-up'!$F$4,$V1305-4,0)))","v":""},{"$f":"IF(ISERROR($V1305),\"\",OFFSET('Smelter Look-up'!$G$4,$V1305-4,0))","v":""},{"$f":"IF(ISERROR($V1305),\"\",OFFSET('Smelter Look-up'!$H$4,$V1305-4,0))","v":""},{"$f":"IF(ISERROR($V1305),\"\",OFFSET('Smelter Look-up'!$I$4,$V1305-4,0))","v":""},{"$nulls":7},{"$f":"IF(ISERROR($V1305),\"\",OFFSET('Smelter Look-up'!$C$4,$V1305-4,0)&\"\")","v":""},"",{"$f":"IF(B1305=\"\",\"\",IF(ISERROR(MATCH($J1305,SorP!$B$1:$B$6230,0)),\"\",INDIRECT(\"'SorP'!$A$\"&MATCH($J1305,SorP!$B$1:$B$6230,0))))","v":""},null,{"$f":"IF(C1305=\"\",NA(),MATCH($B1305&$C1305,'Smelter Look-up'!$J:$J,0))","v":{"$error":"#N/A"}},null,0,null,null,null,""]
[null,{"$f":"IF(LEN(A1306)=0,\"\",INDEX('Smelter Look-up'!$A:$A,MATCH($A1306,'Smelter Look-up'!$E:$E,0)))","v":""},{"$f":"IF(LEN(A1306)=0,\"\",INDEX('Smelter Look-up'!$C:$C,MATCH($A1306,'Smelter Look-up'!$E:$E,0)))","v":""},null,{"$f":"IF(ISERROR($V1306),\"\",OFFSET('Smelter Look-up'!$D$4,$V1306-4,0)&\"\")","v":""},{"$f":"IF(ISERROR($V1306),\"\",OFFSET('Smelter Look-up'!$E$4,$V1306-4,0))","v":""},{"$f":"IF(C1306=$X$4,\"Enter smelter details\", IF(ISERROR($V1306),\"\",OFFSET('Smelter Look-up'!$F$4,$V1306-4,0)))","v":""},{"$f":"IF(ISERROR($V1306),\"\",OFFSET('Smelter Look-up'!$G$4,$V1306-4,0))","v":""},{"$f":"IF(ISERROR($V1306),\"\",OFFSET('Smelter Look-up'!$H$4,$V1306-4,0))","v":""},{"$f":"IF(ISERROR($V1306),\"\",OFFSET('Smelter Look-up'!$I$4,$V1306-4,0))","v":""},{"$nulls":7},{"$f":"IF(ISERROR($V1306),\"\",OFFSET('Smelter Look-up'!$C$4,$V1306-4,0)&\"\")","v":""},"",{"$f":"IF(B1306=\"\",\"\",IF(ISERROR(MATCH($J1306,SorP!$B$1:$B$6230,0)),\"\",INDIRECT(\"'SorP'!$A$\"&MATCH($J1306,SorP!$B$1:$B$6230,0))))","v":""},null,{"$f":"IF(C1306=\"\",NA(),MATCH($B1306&$C1306,'Smelter Look-up'!$J:$J,0))","v":{"$error":"#N/A"}},null,0,null,null,null,""]
[null,{"$f":"IF(LEN(A1307)=0,\"\",INDEX('Smelter Look-up'!$A:$A,MATCH($A1307,'Smelter Look-up'!$E:$E,0)))","v":""},{"$f":"IF(LEN(A1307)=0,\"\",INDEX('Smelter Look-up'!$C:$C,MATCH($A1307,'Smelter Look-up'!$E:$E,0)))","v":""},null,{"$f":"IF(ISERROR($V1307),\"\",OFFSET('Smelter Look-up'!$D$4,$V1307-4,0)&\"\")","v":""},{"$f":"IF(ISERROR($V1307),\"\",OFFSET('Smelter Look-up'!$E$4,$V1307-4,0))","v":""},{"$f":"IF(C1307=$X$4,\"Enter smelter details\", IF(ISERROR($V1307),\"\",OFFSET('Smelter Look-up'!$F$4,$V1307-4,0)))","v":""},{"$f":"IF(ISERROR($V1307),\"\",OFFSET('Smelter Look-up'!$G$4,$V1307-4,0))","v":""},{"$f":"IF(ISERROR($V1307),\"\",OFFSET('Smelter Look-up'!$H$4,$V1307-4,0))","v":""},{"$f":"IF(ISERROR($V1307),\"\",OFFSET('Smelter Look-up'!$I$4,$V1307-4,0))","v":""},{"$nulls":7},{"$f":"IF(ISERROR($V1307),\"\",OFFSET('Smelter Look-up'!$C$4,$V1307-4,0)&\"\")","v":""},"",{"$f":"IF(B1307=\"\",\"\",IF(ISERROR(MATCH($J1307,SorP!$B$1:$B$6230,0)),\"\",INDIRECT(\"'SorP'!$A$\"&MATCH($J1307,SorP!$B$1:$B$6230,0))))","v":""},null,{"$f":"IF(C1307=\"\",NA(),MATCH($B1307&$C1307,'Smelter Look-up'!$J:$J,0))","v":{"$error":"#N/A"}},null,0,null,null,null,""]
[null,{"$f":"IF(LEN(A1308)=0,\"\",INDEX('Smelter Look-up'!$A:$A,MATCH($A1308,'Smelter Look-up'!$E:$E,0)))","v":""},{"$f":"IF(LEN(A1308)=0,\"\",INDEX('Smelter Look-up'!$C:$C,MATCH($A1308,'Smelter Look-up'!$E:$E,0)))","v":""},null,{"$f":"IF(ISERROR($V1308),\"\",OFFSET('Smelter Look-up'!$D$4,$V1308-4,0)&\"\")","v":""},{"$f":"IF(ISERROR($V1308),\"\",OFFSET('Smelter Look-up'!$E$4,$V1308-4,0))","v":""},{"$f":"IF(C1308=$X$4,\"Enter smelter details\", IF(ISERROR($V1308),\"\",OFFSET('Smelter Look-up'!$F$4,$V1308-4,0)))","v":""},{"$f":"IF(ISERROR($V1308),\"\",OFFSET('Smelter Look-up'!$G$4,$V1308-4,0))","v":""},{"$f":"IF(ISERROR($V1308),\"\",OFFSET('Smelter Look-up'!$H$4,$V1308-4,0))","v":""},{"$f":"IF(ISERROR($V1308),\"\",OFFSET('Smelter Look-up'!$I$4,$V1308-4,0))","v":""},{"$nulls":7},{"$f":"IF(ISERROR($V1308),\"\",OFFSET('Smelter Look-up'!$C$4,$V1308-4,0)&\"\")","v":""},"",{"$f":"IF(B1308=\"\",\"\",IF(ISERROR(MATCH($J1308,SorP!$B$1:$B$6230,0)),\"\",INDIRECT(\"'SorP'!$A$\"&MATCH($J1308,SorP!$B$1:$B$6230,0))))","v":""},null,{"$f":"IF(C1308=\"\",NA(),MATCH($B1308&$C1308,'Smelter Look-up'!$J:$J,0))","v":{"$error":"#N/A"}},null,0,null,null,null,""]
[null,{"$f":"IF(LEN(A1309)=0,\"\",INDEX('Smelter Look-up'!$A:$A,MATCH($A1309,'Smelter Look-up'!$E:$E,0)))","v":""},{"$f":"IF(LEN(A1309)=0,\"\",INDEX('Smelter Look-up'!$C:$C,MATCH($A1309,'Smelter Look-up'!$E:$E,0)))","v":""},null,{"$f":"IF(ISERROR($V1309),\"\",OFFSET('Smelter Look-up'!$D$4,$V1309-4,0)&\"\")","v":""},{"$f":"IF(ISERROR($V1309),\"\",OFFSET('Smelter Look-up'!$E$4,$V1309-4,0))","v":""},{"$f":"IF(C1309=$X$4,\"Enter smelter details\", IF(ISERROR($V1309),\"\",OFFSET('Smelter Look-up'!$F$4,$V1309-4,0)))","v":""},{"$f":"IF(ISERROR($V1309),\"\",OFFSET('Smelter Look-up'!$G$4,$V1309-4,0))","v":""},{"$f":"IF(ISERROR($V1309),\"\",OFFSET('Smelter Look-up'!$H$4,$V1309-4,0))","v":""},{"$f":"IF(ISERROR($V1309),\"\",OFFSET('Smelter Look-up'!$I$4,$V1309-4,0))","v":""},{"$nulls":7},{"$f":"IF(ISERROR($V1309),\"\",OFFSET('Smelter Look-up'!$C$4,$V1309-4,0)&\"\")","v":""},"",{"$f":"IF(B1309=\"\",\"\",IF(ISERROR(MATCH($J1309,SorP!$B$1:$B$6230,0)),\"\",INDIRECT(\"'SorP'!$A$\"&MATCH($J1309,SorP!$B$1:$B$6230,0))))","v":""},null,{"$f":"IF(C1309=\"\",NA(),MATCH($B1309&$C1309,'Smelter Look-up'!$J:$J,0))","v":{"$error":"#N/A"}},null,0,null,null,null,""]
[null,{"$f":"IF(LEN(A1310)=0,\"\",INDEX('Smelter Look-up'!$A:$A,MATCH($A1310,'Smelter Look-up'!$E:$E,0)))","v":""},{"$f":"IF(LEN(A1310)=0,\"\",INDEX('Smelter Look-up'!$C:$C,MATCH($A1310,'Smelter Look-up'!$E:$E,0)))","v":""},null,{"$f":"IF(ISERROR($V1310),\"\",OFFSET('Smelter Look-up'!$D$4,$V1310-4,0)&\"\")","v":""},{"$f":"IF(ISERROR($V1310),\"\",OFFSET('Smelter Look-up'!$E$4,$V1310-4,0))","v":""},{"$f":"IF(C1310=$X$4,\"Enter smelter details\", IF(ISERROR($V1310),\"\",OFFSET('Smelter Look-up'!$F$4,$V1310-4,0)))","v":""},{"$f":"IF(ISERROR($V1310),\"\",OFFSET('Smelter Look-up'!$G$4,$V1310-4,0))","v":""},{"$f":"IF(ISERROR($V1310),\"\",OFFSET('Smelter Look-up'!$H$4,$V1310-4,0))","v":""},{"$f":"IF(ISERROR($V1310),\"\",OFFSET('Smelter Look-up'!$I$4,$V1310-4,0))","v":""},{"$nulls":7},{"$f":"IF(ISERROR($V1310),\"\",OFFSET('Smelter Look-up'!$C$4,$V1310-4,0)&\"\")","v":""},"",{"$f":"IF(B1310=\"\",\"\",IF(ISERROR(MATCH($J1310,SorP!$B$1:$B$6230,0)),\"\",INDIRECT(\"'SorP'!$A$\"&MATCH($J1310,SorP!$B$1:$B$6230,0))))","v":""},null,{"$f":"IF(C1310=\"\",NA(),MATCH($B1310&$C1310,'Smelter Look-up'!$J:$J,0))","v":{"$error":"#N/A"}},null,0,null,null,null,""]
[null,{"$f":"IF(LEN(A1311)=0,\"\",INDEX('Smelter Look-up'!$A:$A,MATCH($A1311,'Smelter Look-up'!$E:$E,0)))","v":""},{"$f":"IF(LEN(A1311)=0,\"\",INDEX('Smelter Look-up'!$C:$C,MATCH($A1311,'Smelter Look-up'!$E:$E,0)))","v":""},null,{"$f":"IF(ISERROR($V1311),\"\",OFFSET('Smelter Look-up'!$D$4,$V1311-4,0)&\"\")","v":""},{"$f":"IF(ISERROR($V1311),\"\",OFFSET('Smelter Look-up'!$E$4,$V1311-4,0))","v":""},{"$f":"IF(C1311=$X$4,\"Enter smelter details\", IF(ISERROR($V1311),\"\",OFFSET('Smelter Look-up'!$F$4,$V1311-4,0)))","v":""},{"$f":"IF(ISERROR($V1311),\"\",OFFSET('Smelter Look-up'!$G$4,$V1311-4,0))","v":""},{"$f":"IF(ISERROR($V1311),\"\",OFFSET('Smelter Look-up'!$H$4,$V1311-4,0))","v":""},{"$f":"IF(ISERROR($V1311),\"\",OFFSET('Smelter Look-up'!$I$4,$V1311-4,0))","v":""},{"$nulls":7},{"$f":"IF(ISERROR($V1311),\"\",OFFSET('Smelter Look-up'!$C$4,$V1311-4,0)&\"\")","v":""},"",{"$f":"IF(B1311=\"\",\"\",IF(ISERROR(MATCH($J1311,SorP!$B$1:$B$6230,0)),\"\",INDIRECT(\"'SorP'!$A$\"&MATCH($J1311,SorP!$B$1:$B$6230,0))))","v":""},null,{"$f":"IF(C1311=\"\",NA(),MATCH($B1311&$C1311,'Smelter Look-up'!$J:$J,0))","v":{"$error":"#N/A"}},null,0,null,null,null,""]
[null,{"$f":"IF(LEN(A1312)=0,\"\",INDEX('Smelter Look-up'!$A:$A,MATCH($A1312,'Smelter Look-up'!$E:$E,0)))","v":""},{"$f":"IF(LEN(A1312)=0,\"\",INDEX('Smelter Look-up'!$C:$C,MATCH($A1312,'Smelter Look-up'!$E:$E,0)))","v":""},null,{"$f":"IF(ISERROR($V1312),\"\",OFFSET('Smelter Look-up'!$D$4,$V1312-4,0)&\"\")","v":""},{"$f":"IF(ISERROR($V1312),\"\",OFFSET('Smelter Look-up'!$E$4,$V1312-4,0))","v":""},{"$f":"IF(C1312=$X$4,\"Enter smelter details\", IF(ISERROR($V1312),\"\",OFFSET('Smelter Look-up'!$F$4,$V1312-4,0)))","v":""},{"$f":"IF(ISERROR($V1312),\"\",OFFSET('Smelter Look-up'!$G$4,$V1312-4,0))","v":""},{"$f":"IF(ISERROR($V1312),\"\",OFFSET('Smelter Look-up'!$H$4,$V1312-4,0))","v":""},{"$f":"IF(ISERROR($V1312),\"\",OFFSET('Smelter Look-up'!$I$4,$V1312-4,0))","v":""},{"$nulls":7},{"$f":"IF(ISERROR($V1312),\"\",OFFSET('Smelter Look-up'!$C$4,$V1312-4,0)&\"\")","v":""},"",{"$f":"IF(B1312=\"\",\"\",IF(ISERROR(MATCH($J1312,SorP!$B$1:$B$6230,0)),\"\",INDIRECT(\"'SorP'!$A$\"&MATCH($J1312,SorP!$B$1:$B$6230,0))))","v":""},null,{"$f":"IF(C1312=\"\",NA(),MATCH($B1312&$C1312,'Smelter Look-up'!$J:$J,0))","v":{"$error":"#N/A"}},null,0,null,null,null,""]
[null,{"$f":"IF(LEN(A1313)=0,\"\",INDEX('Smelter Look-up'!$A:$A,MATCH($A1313,'Smelter Look-up'!$E:$E,0)))","v":""},{"$f":"IF(LEN(A1313)=0,\"\",INDEX('Smelter Look-up'!$C:$C,MATCH($A1313,'Smelter Look-up'!$E:$E,0)))","v":""},null,{"$f":"IF(ISERROR($V1313),\"\",OFFSET('Smelter Look-up'!$D$4,$V1313-4,0)&\"\")","v":""},{"$f":"IF(ISERROR($V1313),\"\",OFFSET('Smelter Look-up'!$E$4,$V1313-4,0))","v":""},{"$f":"IF(C1313=$X$4,\"Enter smelter details\", IF(ISERROR($V1313),\"\",OFFSET('Smelter Look-up'!$F$4,$V1313-4,0)))","v":""},{"$f":"IF(ISERROR($V1313),\"\",OFFSET('Smelter Look-up'!$G$4,$V1313-4,0))","v":""},{"$f":"IF(ISERROR($V1313),\"\",OFFSET('Smelter Look-up'!$H$4,$V1313-4,0))","v":""},{"$f":"IF(ISERROR($V1313),\"\",OFFSET('Smelter Look-up'!$I$4,$V1313-4,0))","v":""},{"$nulls":7},{"$f":"IF(ISERROR($V1313),\"\",OFFSET('Smelter Look-up'!$C$4,$V1313-4,0)&\"\")","v":""},"",{"$f":"IF(B1313=\"\",\"\",IF(ISERROR(MATCH($J1313,SorP!$B$1:$B$6230,0)),\"\",INDIRECT(\"'SorP'!$A$\"&MATCH($J1313,SorP!$B$1:$B$6230,0))))","v":""},null,{"$f":"IF(C1313=\"\",NA(),MATCH($B1313&$C1313,'Smelter Look-up'!$J:$J,0))","v":{"$error":"#N/A"}},null,0,null,null,null,""]
[null,{"$f":"IF(LEN(A1314)=0,\"\",INDEX('Smelter Look-up'!$A:$A,MATCH($A1314,'Smelter Look-up'!$E:$E,0)))","v":""},{"$f":"IF(LEN(A1314)=0,\"\",INDEX('Smelter Look-up'!$C:$C,MATCH($A1314,'Smelter Look-up'!$E:$E,0)))","v":""},null,{"$f":"IF(ISERROR($V1314),\"\",OFFSET('Smelter Look-up'!$D$4,$V1314-4,0)&\"\")","v":""},{"$f":"IF(ISERROR($V1314),\"\",OFFSET('Smelter Look-up'!$E$4,$V1314-4,0))","v":""},{"$f":"IF(C1314=$X$4,\"Enter smelter details\", IF(ISERROR($V1314),\"\",OFFSET('Smelter Look-up'!$F$4,$V1314-4,0)))","v":""},{"$f":"IF(ISERROR($V1314),\"\",OFFSET('Smelter Look-up'!$G$4,$V1314-4,0))","v":""},{"$f":"IF(ISERROR($V1314),\"\",OFFSET('Smelter Look-up'!$H$4,$V1314-4,0))","v":""},{"$f":"IF(ISERROR($V1314),\"\",OFFSET('Smelter Look-up'!$I$4,$V1314-4,0))","v":""},{"$nulls":7},{"$f":"IF(ISERROR($V1314),\"\",OFFSET('Smelter Look-up'!$C$4,$V1314-4,0)&\"\")","v":""},"",{"$f":"IF(B1314=\"\",\"\",IF(ISERROR(MATCH($J1314,SorP!$B$1:$B$6230,0)),\"\",INDIRECT(\"'SorP'!$A$\"&MATCH($J1314,SorP!$B$1:$B$6230,0))))","v":""},null,{"$f":"IF(C1314=\"\",NA(),MATCH($B1314&$C1314,'Smelter Look-up'!$J:$J,0))","v":{"$error":"#N/A"}},null,0,null,null,null,""]
[null,{"$f":"IF(LEN(A1315)=0,\"\",INDEX('Smelter Look-up'!$A:$A,MATCH($A1315,'Smelter Look-up'!$E:$E,0)))","v":""},{"$f":"IF(LEN(A1315)=0,\"\",INDEX('Smelter Look-up'!$C:$C,MATCH($A1315,'Smelter Look-up'!$E:$E,0)))","v":""},null,{"$f":"IF(ISERROR($V1315),\"\",OFFSET('Smelter Look-up'!$D$4,$V1315-4,0)&\"\")","v":""},{"$f":"IF(ISERROR($V1315),\"\",OFFSET('Smelter Look-up'!$E$4,$V1315-4,0))","v":""},{"$f":"IF(C1315=$X$4,\"Enter smelter details\", IF(ISERROR($V1315),\"\",OFFSET('Smelter Look-up'!$F$4,$V1315-4,0)))","v":""},{"$f":"IF(ISERROR($V1315),\"\",OFFSET('Smelter Look-up'!$G$4,$V1315-4,0))","v":""},{"$f":"IF(ISERROR($V1315),\"\",OFFSET('Smelter Look-up'!$H$4,$V1315-4,0))","v":""},{"$f":"IF(ISERROR($V1315),\"\",OFFSET('Smelter Look-up'!$I$4,$V1315-4,0))","v":""},{"$nulls":7},{"$f":"IF(ISERROR($V1315),\"\",OFFSET('Smelter Look-up'!$C$4,$V1315-4,0)&\"\")","v":""},"",{"$f":"IF(B1315=\"\",\"\",IF(ISERROR(MATCH($J1315,SorP!$B$1:$B$6230,0)),\"\",INDIRECT(\"'SorP'!$A$\"&MATCH($J1315,SorP!$B$1:$B$6230,0))))","v":""},null,{"$f":"IF(C1315=\"\",NA(),MATCH($B1315&$C1315,'Smelter Look-up'!$J:$J,0))","v":{"$error":"#N/A"}},null,0,null,null,null,""]
[null,{"$f":"IF(LEN(A1316)=0,\"\",INDEX('Smelter Look-up'!$A:$A,MATCH($A1316,'Smelter Look-up'!$E:$E,0)))","v":""},{"$f":"IF(LEN(A1316)=0,\"\",INDEX('Smelter Look-up'!$C:$C,MATCH($A1316,'Smelter Look-up'!$E:$E,0)))","v":""},null,{"$f":"IF(ISERROR($V1316),\"\",OFFSET('Smelter Look-up'!$D$4,$V1316-4,0)&\"\")","v":""},{"$f":"IF(ISERROR($V1316),\"\",OFFSET('Smelter Look-up'!$E$4,$V1316-4,0))","v":""},{"$f":"IF(C1316=$X$4,\"Enter smelter details\", IF(ISERROR($V1316),\"\",OFFSET('Smelter Look-up'!$F$4,$V1316-4,0)))","v":""},{"$f":"IF(ISERROR($V1316),\"\",OFFSET('Smelter Look-up'!$G$4,$V1316-4,0))","v":""},{"$f":"IF(ISERROR($V1316),\"\",OFFSET('Smelter Look-up'!$H$4,$V1316-4,0))","v":""},{"$f":"IF(ISERROR($V1316),\"\",OFFSET('Smelter Look-up'!$I$4,$V1316-4,0))","v":""},{"$nulls":7},{"$f":"IF(ISERROR($V1316),\"\",OFFSET('Smelter Look-up'!$C$4,$V1316-4,0)&\"\")","v":""},"",{"$f":"IF(B1316=\"\",\"\",IF(ISERROR(MATCH($J1316,SorP!$B$1:$B$6230,0)),\"\",INDIRECT(\"'SorP'!$A$\"&MATCH($J1316,SorP!$B$1:$B$6230,0))))","v":""},null,{"$f":"IF(C1316=\"\",NA(),MATCH($B1316&$C1316,'Smelter Look-up'!$J:$J,0))","v":{"$error":"#N/A"}},null,0,null,null,null,""]
[null,{"$f":"IF(LEN(A1317)=0,\"\",INDEX('Smelter Look-up'!$A:$A,MATCH($A1317,'Smelter Look-up'!$E:$E,0)))","v":""},{"$f":"IF(LEN(A1317)=0,\"\",INDEX('Smelter Look-up'!$C:$C,MATCH($A1317,'Smelter Look-up'!$E:$E,0)))","v":""},null,{"$f":"IF(ISERROR($V1317),\"\",OFFSET('Smelter Look-up'!$D$4,$V1317-4,0)&\"\")","v":""},{"$f":"IF(ISERROR($V1317),\"\",OFFSET('Smelter Look-up'!$E$4,$V1317-4,0))","v":""},{"$f":"IF(C1317=$X$4,\"Enter smelter details\", IF(ISERROR($V1317),\"\",OFFSET('Smelter Look-up'!$F$4,$V1317-4,0)))","v":""},{"$f":"IF(ISERROR($V1317),\"\",OFFSET('Smelter Look-up'!$G$4,$V1317-4,0))","v":""},{"$f":"IF(ISERROR($V1317),\"\",OFFSET('Smelter Look-up'!$H$4,$V1317-4,0))","v":""},{"$f":"IF(ISERROR($V1317),\"\",OFFSET('Smelter Look-up'!$I$4,$V1317-4,0))","v":""},{"$nulls":7},{"$f":"IF(ISERROR($V1317),\"\",OFFSET('Smelter Look-up'!$C$4,$V1317-4,0)&\"\")","v":""},"",{"$f":"IF(B1317=\"\",\"\",IF(ISERROR(MATCH($J1317,SorP!$B$1:$B$6230,0)),\"\",INDIRECT(\"'SorP'!$A$\"&MATCH($J1317,SorP!$B$1:$B$6230,0))))","v":""},null,{"$f":"IF(C1317=\"\",NA(),MATCH($B1317&$C1317,'Smelter Look-up'!$J:$J,0))","v":{"$error":"#N/A"}},null,0,null,null,null,""]
[null,{"$f":"IF(LEN(A1318)=0,\"\",INDEX('Smelter Look-up'!$A:$A,MATCH($A1318,'Smelter Look-up'!$E:$E,0)))","v":""},{"$f":"IF(LEN(A1318)=0,\"\",INDEX('Smelter Look-up'!$C:$C,MATCH($A1318,'Smelter Look-up'!$E:$E,0)))","v":""},null,{"$f":"IF(ISERROR($V1318),\"\",OFFSET('Smelter Look-up'!$D$4,$V1318-4,0)&\"\")","v":""},{"$f":"IF(ISERROR($V1318),\"\",OFFSET('Smelter Look-up'!$E$4,$V1318-4,0))","v":""},{"$f":"IF(C1318=$X$4,\"Enter smelter details\", IF(ISERROR($V1318),\"\",OFFSET('Smelter Look-up'!$F$4,$V1318-4,0)))","v":""},{"$f":"IF(ISERROR($V1318),\"\",OFFSET('Smelter Look-up'!$G$4,$V1318-4,0))","v":""},{"$f":"IF(ISERROR($V1318),\"\",OFFSET('Smelter Look-up'!$H$4,$V1318-4,0))","v":""},{"$f":"IF(ISERROR($V1318),\"\",OFFSET('Smelter Look-up'!$I$4,$V1318-4,0))","v":""},{"$nulls":7},{"$f":"IF(ISERROR($V1318),\"\",OFFSET('Smelter Look-up'!$C$4,$V1318-4,0)&\"\")","v":""},"",{"$f":"IF(B1318=\"\",\"\",IF(ISERROR(MATCH($J1318,SorP!$B$1:$B$6230,0)),\"\",INDIRECT(\"'SorP'!$A$\"&MATCH($J1318,SorP!$B$1:$B$6230,0))))","v":""},null,{"$f":"IF(C1318=\"\",NA(),MATCH($B1318&$C1318,'Smelter Look-up'!$J:$J,0))","v":{"$error":"#N/A"}},null,0,null,null,null,""]
[null,{"$f":"IF(LEN(A1319)=0,\"\",INDEX('Smelter Look-up'!$A:$A,MATCH($A1319,'Smelter Look-up'!$E:$E,0)))","v":""},{"$f":"IF(LEN(A1319)=0,\"\",INDEX('Smelter Look-up'!$C:$C,MATCH($A1319,'Smelter Look-up'!$E:$E,0)))","v":""},null,{"$f":"IF(ISERROR($V1319),\"\",OFFSET('Smelter Look-up'!$D$4,$V1319-4,0)&\"\")","v":""},{"$f":"IF(ISERROR($V1319),\"\",OFFSET('Smelter Look-up'!$E$4,$V1319-4,0))","v":""},{"$f":"IF(C1319=$X$4,\"Enter smelter details\", IF(ISERROR($V1319),\"\",OFFSET('Smelter Look-up'!$F$4,$V1319-4,0)))","v":""},{"$f":"IF(ISERROR($V1319),\"\",OFFSET('Smelter Look-up'!$G$4,$V1319-4,0))","v":""},{"$f":"IF(ISERROR($V1319),\"\",OFFSET('Smelter Look-up'!$H$4,$V1319-4,0))","v":""},{"$f":"IF(ISERROR($V1319),\"\",OFFSET('Smelter Look-up'!$I$4,$V1319-4,0))","v":""},{"$nulls":7},{"$f":"IF(ISERROR($V1319),\"\",OFFSET('Smelter Look-up'!$C$4,$V1319-4,0)&\"\")","v":""},"",{"$f":"IF(B1319=\"\",\"\",IF(ISERROR(MATCH($J1319,SorP!$B$1:$B$6230,0)),\"\",INDIRECT(\"'SorP'!$A$\"&MATCH($J1319,SorP!$B$1:$B$6230,0))))","v":""},null,{"$f":"IF(C1319=\"\",NA(),MATCH($B1319&$C1319,'Smelter Look-up'!$J:$J,0))","v":{"$error":"#N/A"}},null,0,null,null,null,""]
[null,{"$f":"IF(LEN(A1320)=0,\"\",INDEX('Smelter Look-up'!$A:$A,MATCH($A1320,'Smelter Look-up'!$E:$E,0)))","v":""},{"$f":"IF(LEN(A1320)=0,\"\",INDEX('Smelter Look-up'!$C:$C,MATCH($A1320,'Smelter Look-up'!$E:$E,0)))","v":""},null,{"$f":"IF(ISERROR($V1320),\"\",OFFSET('Smelter Look-up'!$D$4,$V1320-4,0)&\"\")","v":""},{"$f":"IF(ISERROR($V1320),\"\",OFFSET('Smelter Look-up'!$E$4,$V1320-4,0))","v":""},{"$f":"IF(C1320=$X$4,\"Enter smelter details\", IF(ISERROR($V1320),\"\",OFFSET('Smelter Look-up'!$F$4,$V1320-4,0)))","v":""},{"$f":"IF(ISERROR($V1320),\"\",OFFSET('Smelter Look-up'!$G$4,$V1320-4,0))","v":""},{"$f":"IF(ISERROR($V1320),\"\",OFFSET('Smelter Look-up'!$H$4,$V1320-4,0))","v":""},{"$f":"IF(ISERROR($V1320),\"\",OFFSET('Smelter Look-up'!$I$4,$V1320-4,0))","v":""},{"$nulls":7},{"$f":"IF(ISERROR($V1320),\"\",OFFSET('Smelter Look-up'!$C$4,$V1320-4,0)&\"\")","v":""},"",{"$f":"IF(B1320=\"\",\"\",IF(ISERROR(MATCH($J1320,SorP!$B$1:$B$6230,0)),\"\",INDIRECT(\"'SorP'!$A$\"&MATCH($J1320,SorP!$B$1:$B$6230,0))))","v":""},null,{"$f":"IF(C1320=\"\",NA(),MATCH($B1320&$C1320,'Smelter Look-up'!$J:$J,0))","v":{"$error":"#N/A"}},null,0,null,null,null,""]
[null,{"$f":"IF(LEN(A1321)=0,\"\",INDEX('Smelter Look-up'!$A:$A,MATCH($A1321,'Smelter Look-up'!$E:$E,0)))","v":""},{"$f":"IF(LEN(A1321)=0,\"\",INDEX('Smelter Look-up'!$C:$C,MATCH($A1321,'Smelter Look-up'!$E:$E,0)))","v":""},null,{"$f":"IF(ISERROR($V1321),\"\",OFFSET('Smelter Look-up'!$D$4,$V1321-4,0)&\"\")","v":""},{"$f":"IF(ISERROR($V1321),\"\",OFFSET('Smelter Look-up'!$E$4,$V1321-4,0))","v":""},{"$f":"IF(C1321=$X$4,\"Enter smelter details\", IF(ISERROR($V1321),\"\",OFFSET('Smelter Look-up'!$F$4,$V1321-4,0)))","v":""},{"$f":"IF(ISERROR($V1321),\"\",OFFSET('Smelter Look-up'!$G$4,$V1321-4,0))","v":""},{"$f":"IF(ISERROR($V1321),\"\",OFFSET('Smelter Look-up'!$H$4,$V1321-4,0))","v":""},{"$f":"IF(ISERROR($V1321),\"\",OFFSET('Smelter Look-up'!$I$4,$V1321-4,0))","v":""},{"$nulls":7},{"$f":"IF(ISERROR($V1321),\"\",OFFSET('Smelter Look-up'!$C$4,$V1321-4,0)&\"\")","v":""},"",{"$f":"IF(B1321=\"\",\"\",IF(ISERROR(MATCH($J1321,SorP!$B$1:$B$6230,0)),\"\",INDIRECT(\"'SorP'!$A$\"&MATCH($J1321,SorP!$B$1:$B$6230,0))))","v":""},null,{"$f":"IF(C1321=\"\",NA(),MATCH($B1321&$C1321,'Smelter Look-up'!$J:$J,0))","v":{"$error":"#N/A"}},null,0,null,null,null,""]
[null,{"$f":"IF(LEN(A1322)=0,\"\",INDEX('Smelter Look-up'!$A:$A,MATCH($A1322,'Smelter Look-up'!$E:$E,0)))","v":""},{"$f":"IF(LEN(A1322)=0,\"\",INDEX('Smelter Look-up'!$C:$C,MATCH($A1322,'Smelter Look-up'!$E:$E,0)))","v":""},null,{"$f":"IF(ISERROR($V1322),\"\",OFFSET('Smelter Look-up'!$D$4,$V1322-4,0)&\"\")","v":""},{"$f":"IF(ISERROR($V1322),\"\",OFFSET('Smelter Look-up'!$E$4,$V1322-4,0))","v":""},{"$f":"IF(C1322=$X$4,\"Enter smelter details\", IF(ISERROR($V1322),\"\",OFFSET('Smelter Look-up'!$F$4,$V1322-4,0)))","v":""},{"$f":"IF(ISERROR($V1322),\"\",OFFSET('Smelter Look-up'!$G$4,$V1322-4,0))","v":""},{"$f":"IF(ISERROR($V1322),\"\",OFFSET('Smelter Look-up'!$H$4,$V1322-4,0))","v":""},{"$f":"IF(ISERROR($V1322),\"\",OFFSET('Smelter Look-up'!$I$4,$V1322-4,0))","v":""},{"$nulls":7},{"$f":"IF(ISERROR($V1322),\"\",OFFSET('Smelter Look-up'!$C$4,$V1322-4,0)&\"\")","v":""},"",{"$f":"IF(B1322=\"\",\"\",IF(ISERROR(MATCH($J1322,SorP!$B$1:$B$6230,0)),\"\",INDIRECT(\"'SorP'!$A$\"&MATCH($J1322,SorP!$B$1:$B$6230,0))))","v":""},null,{"$f":"IF(C1322=\"\",NA(),MATCH($B1322&$C1322,'Smelter Look-up'!$J:$J,0))","v":{"$error":"#N/A"}},null,0,null,null,null,""]
[null,{"$f":"IF(LEN(A1323)=0,\"\",INDEX('Smelter Look-up'!$A:$A,MATCH($A1323,'Smelter Look-up'!$E:$E,0)))","v":""},{"$f":"IF(LEN(A1323)=0,\"\",INDEX('Smelter Look-up'!$C:$C,MATCH($A1323,'Smelter Look-up'!$E:$E,0)))","v":""},null,{"$f":"IF(ISERROR($V1323),\"\",OFFSET('Smelter Look-up'!$D$4,$V1323-4,0)&\"\")","v":""},{"$f":"IF(ISERROR($V1323),\"\",OFFSET('Smelter Look-up'!$E$4,$V1323-4,0))","v":""},{"$f":"IF(C1323=$X$4,\"Enter smelter details\", IF(ISERROR($V1323),\"\",OFFSET('Smelter Look-up'!$F$4,$V1323-4,0)))","v":""},{"$f":"IF(ISERROR($V1323),\"\",OFFSET('Smelter Look-up'!$G$4,$V1323-4,0))","v":""},{"$f":"IF(ISERROR($V1323),\"\",OFFSET('Smelter Look-up'!$H$4,$V1323-4,0))","v":""},{"$f":"IF(ISERROR($V1323),\"\",OFFSET('Smelter Look-up'!$I$4,$V1323-4,0))","v":""},{"$nulls":7},{"$f":"IF(ISERROR($V1323),\"\",OFFSET('Smelter Look-up'!$C$4,$V1323-4,0)&\"\")","v":""},"",{"$f":"IF(B1323=\"\",\"\",IF(ISERROR(MATCH($J1323,SorP!$B$1:$B$6230,0)),\"\",INDIRECT(\"'SorP'!$A$\"&MATCH($J1323,SorP!$B$1:$B$6230,0))))","v":""},null,{"$f":"IF(C1323=\"\",NA(),MATCH($B1323&$C1323,'Smelter Look-up'!$J:$J,0))","v":{"$error":"#N/A"}},null,0,null,null,null,""]
[null,{"$f":"IF(LEN(A1324)=0,\"\",INDEX('Smelter Look-up'!$A:$A,MATCH($A1324,'Smelter Look-up'!$E:$E,0)))","v":""},{"$f":"IF(LEN(A1324)=0,\"\",INDEX('Smelter Look-up'!$C:$C,MATCH($A1324,'Smelter Look-up'!$E:$E,0)))","v":""},null,{"$f":"IF(ISERROR($V1324),\"\",OFFSET('Smelter Look-up'!$D$4,$V1324-4,0)&\"\")","v":""},{"$f":"IF(ISERROR($V1324),\"\",OFFSET('Smelter Look-up'!$E$4,$V1324-4,0))","v":""},{"$f":"IF(C1324=$X$4,\"Enter smelter details\", IF(ISERROR($V1324),\"\",OFFSET('Smelter Look-up'!$F$4,$V1324-4,0)))","v":""},{"$f":"IF(ISERROR($V1324),\"\",OFFSET('Smelter Look-up'!$G$4,$V1324-4,0))","v":""},{"$f":"IF(ISERROR($V1324),\"\",OFFSET('Smelter Look-up'!$H$4,$V1324-4,0))","v":""},{"$f":"IF(ISERROR($V1324),\"\",OFFSET('Smelter Look-up'!$I$4,$V1324-4,0))","v":""},{"$nulls":7},{"$f":"IF(ISERROR($V1324),\"\",OFFSET('Smelter Look-up'!$C$4,$V1324-4,0)&\"\")","v":""},"",{"$f":"IF(B1324=\"\",\"\",IF(ISERROR(MATCH($J1324,SorP!$B$1:$B$6230,0)),\"\",INDIRECT(\"'SorP'!$A$\"&MATCH($J1324,SorP!$B$1:$B$6230,0))))","v":""},null,{"$f":"IF(C1324=\"\",NA(),MATCH($B1324&$C1324,'Smelter Look-up'!$J:$J,0))","v":{"$error":"#N/A"}},null,0,null,null,null,""]
[null,{"$f":"IF(LEN(A1325)=0,\"\",INDEX('Smelter Look-up'!$A:$A,MATCH($A1325,'Smelter Look-up'!$E:$E,0)))","v":""},{"$f":"IF(LEN(A1325)=0,\"\",INDEX('Smelter Look-up'!$C:$C,MATCH($A1325,'Smelter Look-up'!$E:$E,0)))","v":""},null,{"$f":"IF(ISERROR($V1325),\"\",OFFSET('Smelter Look-up'!$D$4,$V1325-4,0)&\"\")","v":""},{"$f":"IF(ISERROR($V1325),\"\",OFFSET('Smelter Look-up'!$E$4,$V1325-4,0))","v":""},{"$f":"IF(C1325=$X$4,\"Enter smelter details\", IF(ISERROR($V1325),\"\",OFFSET('Smelter Look-up'!$F$4,$V1325-4,0)))","v":""},{"$f":"IF(ISERROR($V1325),\"\",OFFSET('Smelter Look-up'!$G$4,$V1325-4,0))","v":""},{"$f":"IF(ISERROR($V1325),\"\",OFFSET('Smelter Look-up'!$H$4,$V1325-4,0))","v":""},{"$f":"IF(ISERROR($V1325),\"\",OFFSET('Smelter Look-up'!$I$4,$V1325-4,0))","v":""},{"$nulls":7},{"$f":"IF(ISERROR($V1325),\"\",OFFSET('Smelter Look-up'!$C$4,$V1325-4,0)&\"\")","v":""},"",{"$f":"IF(B1325=\"\",\"\",IF(ISERROR(MATCH($J1325,SorP!$B$1:$B$6230,0)),\"\",INDIRECT(\"'SorP'!$A$\"&MATCH($J1325,SorP!$B$1:$B$6230,0))))","v":""},null,{"$f":"IF(C1325=\"\",NA(),MATCH($B1325&$C1325,'Smelter Look-up'!$J:$J,0))","v":{"$error":"#N/A"}},null,0,null,null,null,""]
[null,{"$f":"IF(LEN(A1326)=0,\"\",INDEX('Smelter Look-up'!$A:$A,MATCH($A1326,'Smelter Look-up'!$E:$E,0)))","v":""},{"$f":"IF(LEN(A1326)=0,\"\",INDEX('Smelter Look-up'!$C:$C,MATCH($A1326,'Smelter Look-up'!$E:$E,0)))","v":""},null,{"$f":"IF(ISERROR($V1326),\"\",OFFSET('Smelter Look-up'!$D$4,$V1326-4,0)&\"\")","v":""},{"$f":"IF(ISERROR($V1326),\"\",OFFSET('Smelter Look-up'!$E$4,$V1326-4,0))","v":""},{"$f":"IF(C1326=$X$4,\"Enter smelter details\", IF(ISERROR($V1326),\"\",OFFSET('Smelter Look-up'!$F$4,$V1326-4,0)))","v":""},{"$f":"IF(ISERROR($V1326),\"\",OFFSET('Smelter Look-up'!$G$4,$V1326-4,0))","v":""},{"$f":"IF(ISERROR($V1326),\"\",OFFSET('Smelter Look-up'!$H$4,$V1326-4,0))","v":""},{"$f":"IF(ISERROR($V1326),\"\",OFFSET('Smelter Look-up'!$I$4,$V1326-4,0))","v":""},{"$nulls":7},{"$f":"IF(ISERROR($V1326),\"\",OFFSET('Smelter Look-up'!$C$4,$V1326-4,0)&\"\")","v":""},"",{"$f":"IF(B1326=\"\",\"\",IF(ISERROR(MATCH($J1326,SorP!$B$1:$B$6230,0)),\"\",INDIRECT(\"'SorP'!$A$\"&MATCH($J1326,SorP!$B$1:$B$6230,0))))","v":""},null,{"$f":"IF(C1326=\"\",NA(),MATCH($B1326&$C1326,'Smelter Look-up'!$J:$J,0))","v":{"$error":"#N/A"}},null,0,null,null,null,""]
[null,{"$f":"IF(LEN(A1327)=0,\"\",INDEX('Smelter Look-up'!$A:$A,MATCH($A1327,'Smelter Look-up'!$E:$E,0)))","v":""},{"$f":"IF(LEN(A1327)=0,\"\",INDEX('Smelter Look-up'!$C:$C,MATCH($A1327,'Smelter Look-up'!$E:$E,0)))","v":""},null,{"$f":"IF(ISERROR($V1327),\"\",OFFSET('Smelter Look-up'!$D$4,$V1327-4,0)&\"\")","v":""},{"$f":"IF(ISERROR($V1327),\"\",OFFSET('Smelter Look-up'!$E$4,$V1327-4,0))","v":""},{"$f":"IF(C1327=$X$4,\"Enter smelter details\", IF(ISERROR($V1327),\"\",OFFSET('Smelter Look-up'!$F$4,$V1327-4,0)))","v":""},{"$f":"IF(ISERROR($V1327),\"\",OFFSET('Smelter Look-up'!$G$4,$V1327-4,0))","v":""},{"$f":"IF(ISERROR($V1327),\"\",OFFSET('Smelter Look-up'!$H$4,$V1327-4,0))","v":""},{"$f":"IF(ISERROR($V1327),\"\",OFFSET('Smelter Look-up'!$I$4,$V1327-4,0))","v":""},{"$nulls":7},{"$f":"IF(ISERROR($V1327),\"\",OFFSET('Smelter Look-up'!$C$4,$V1327-4,0)&\"\")","v":""},"",{"$f":"IF(B1327=\"\",\"\",IF(ISERROR(MATCH($J1327,SorP!$B$1:$B$6230,0)),\"\",INDIRECT(\"'SorP'!$A$\"&MATCH($J1327,SorP!$B$1:$B$6230,0))))","v":""},null,{"$f":"IF(C1327=\"\",NA(),MATCH($B1327&$C1327,'Smelter Look-up'!$J:$J,0))","v":{"$error":"#N/A"}},null,0,null,null,null,""]
[null,{"$f":"IF(LEN(A1328)=0,\"\",INDEX('Smelter Look-up'!$A:$A,MATCH($A1328,'Smelter Look-up'!$E:$E,0)))","v":""},{"$f":"IF(LEN(A1328)=0,\"\",INDEX('Smelter Look-up'!$C:$C,MATCH($A1328,'Smelter Look-up'!$E:$E,0)))","v":""},null,{"$f":"IF(ISERROR($V1328),\"\",OFFSET('Smelter Look-up'!$D$4,$V1328-4,0)&\"\")","v":""},{"$f":"IF(ISERROR($V1328),\"\",OFFSET('Smelter Look-up'!$E$4,$V1328-4,0))","v":""},{"$f":"IF(C1328=$X$4,\"Enter smelter details\", IF(ISERROR($V1328),\"\",OFFSET('Smelter Look-up'!$F$4,$V1328-4,0)))","v":""},{"$f":"IF(ISERROR($V1328),\"\",OFFSET('Smelter Look-up'!$G$4,$V1328-4,0))","v":""},{"$f":"IF(ISERROR($V1328),\"\",OFFSET('Smelter Look-up'!$H$4,$V1328-4,0))","v":""},{"$f":"IF(ISERROR($V1328),\"\",OFFSET('Smelter Look-up'!$I$4,$V1328-4,0))","v":""},{"$nulls":7},{"$f":"IF(ISERROR($V1328),\"\",OFFSET('Smelter Look-up'!$C$4,$V1328-4,0)&\"\")","v":""},"",{"$f":"IF(B1328=\"\",\"\",IF(ISERROR(MATCH($J1328,SorP!$B$1:$B$6230,0)),\"\",INDIRECT(\"'SorP'!$A$\"&MATCH($J1328,SorP!$B$1:$B$6230,0))))","v":""},null,{"$f":"IF(C1328=\"\",NA(),MATCH($B1328&$C1328,'Smelter Look-up'!$J:$J,0))","v":{"$error":"#N/A"}},null,0,null,null,null,""]
[null,{"$f":"IF(LEN(A1329)=0,\"\",INDEX('Smelter Look-up'!$A:$A,MATCH($A1329,'Smelter Look-up'!$E:$E,0)))","v":""},{"$f":"IF(LEN(A1329)=0,\"\",INDEX('Smelter Look-up'!$C:$C,MATCH($A1329,'Smelter Look-up'!$E:$E,0)))","v":""},null,{"$f":"IF(ISERROR($V1329),\"\",OFFSET('Smelter Look-up'!$D$4,$V1329-4,0)&\"\")","v":""},{"$f":"IF(ISERROR($V1329),\"\",OFFSET('Smelter Look-up'!$E$4,$V1329-4,0))","v":""},{"$f":"IF(C1329=$X$4,\"Enter smelter details\", IF(ISERROR($V1329),\"\",OFFSET('Smelter Look-up'!$F$4,$V1329-4,0)))","v":""},{"$f":"IF(ISERROR($V1329),\"\",OFFSET('Smelter Look-up'!$G$4,$V1329-4,0))","v":""},{"$f":"IF(ISERROR($V1329),\"\",OFFSET('Smelter Look-up'!$H$4,$V1329-4,0))","v":""},{"$f":"IF(ISERROR($V1329),\"\",OFFSET('Smelter Look-up'!$I$4,$V1329-4,0))","v":""},{"$nulls":7},{"$f":"IF(ISERROR($V1329),\"\",OFFSET('Smelter Look-up'!$C$4,$V1329-4,0)&\"\")","v":""},"",{"$f":"IF(B1329=\"\",\"\",IF(ISERROR(MATCH($J1329,SorP!$B$1:$B$6230,0)),\"\",INDIRECT(\"'SorP'!$A$\"&MATCH($J1329,SorP!$B$1:$B$6230,0))))","v":""},null,{"$f":"IF(C1329=\"\",NA(),MATCH($B1329&$C1329,'Smelter Look-up'!$J:$J,0))","v":{"$error":"#N/A"}},null,0,null,null,null,""]
[null,{"$f":"IF(LEN(A1330)=0,\"\",INDEX('Smelter Look-up'!$A:$A,MATCH($A1330,'Smelter Look-up'!$E:$E,0)))","v":""},{"$f":"IF(LEN(A1330)=0,\"\",INDEX('Smelter Look-up'!$C:$C,MATCH($A1330,'Smelter Look-up'!$E:$E,0)))","v":""},null,{"$f":"IF(ISERROR($V1330),\"\",OFFSET('Smelter Look-up'!$D$4,$V1330-4,0)&\"\")","v":""},{"$f":"IF(ISERROR($V1330),\"\",OFFSET('Smelter Look-up'!$E$4,$V1330-4,0))","v":""},{"$f":"IF(C1330=$X$4,\"Enter smelter details\", IF(ISERROR($V1330),\"\",OFFSET('Smelter Look-up'!$F$4,$V1330-4,0)))","v":""},{"$f":"IF(ISERROR($V1330),\"\",OFFSET('Smelter Look-up'!$G$4,$V1330-4,0))","v":""},{"$f":"IF(ISERROR($V1330),\"\",OFFSET('Smelter Look-up'!$H$4,$V1330-4,0))","v":""},{"$f":"IF(ISERROR($V1330),\"\",OFFSET('Smelter Look-up'!$I$4,$V1330-4,0))","v":""},{"$nulls":7},{"$f":"IF(ISERROR($V1330),\"\",OFFSET('Smelter Look-up'!$C$4,$V1330-4,0)&\"\")","v":""},"",{"$f":"IF(B1330=\"\",\"\",IF(ISERROR(MATCH($J1330,SorP!$B$1:$B$6230,0)),\"\",INDIRECT(\"'SorP'!$A$\"&MATCH($J1330,SorP!$B$1:$B$6230,0))))","v":""},null,{"$f":"IF(C1330=\"\",NA(),MATCH($B1330&$C1330,'Smelter Look-up'!$J:$J,0))","v":{"$error":"#N/A"}},null,0,null,null,null,""]
[null,{"$f":"IF(LEN(A1331)=0,\"\",INDEX('Smelter Look-up'!$A:$A,MATCH($A1331,'Smelter Look-up'!$E:$E,0)))","v":""},{"$f":"IF(LEN(A1331)=0,\"\",INDEX('Smelter Look-up'!$C:$C,MATCH($A1331,'Smelter Look-up'!$E:$E,0)))","v":""},null,{"$f":"IF(ISERROR($V1331),\"\",OFFSET('Smelter Look-up'!$D$4,$V1331-4,0)&\"\")","v":""},{"$f":"IF(ISERROR($V1331),\"\",OFFSET('Smelter Look-up'!$E$4,$V1331-4,0))","v":""},{"$f":"IF(C1331=$X$4,\"Enter smelter details\", IF(ISERROR($V1331),\"\",OFFSET('Smelter Look-up'!$F$4,$V1331-4,0)))","v":""},{"$f":"IF(ISERROR($V1331),\"\",OFFSET('Smelter Look-up'!$G$4,$V1331-4,0))","v":""},{"$f":"IF(ISERROR($V1331),\"\",OFFSET('Smelter Look-up'!$H$4,$V1331-4,0))","v":""},{"$f":"IF(ISERROR($V1331),\"\",OFFSET('Smelter Look-up'!$I$4,$V1331-4,0))","v":""},{"$nulls":7},{"$f":"IF(ISERROR($V1331),\"\",OFFSET('Smelter Look-up'!$C$4,$V1331-4,0)&\"\")","v":""},"",{"$f":"IF(B1331=\"\",\"\",IF(ISERROR(MATCH($J1331,SorP!$B$1:$B$6230,0)),\"\",INDIRECT(\"'SorP'!$A$\"&MATCH($J1331,SorP!$B$1:$B$6230,0))))","v":""},null,{"$f":"IF(C1331=\"\",NA(),MATCH($B1331&$C1331,'Smelter Look-up'!$J:$J,0))","v":{"$error":"#N/A"}},null,0,null,null,null,""]
[null,{"$f":"IF(LEN(A1332)=0,\"\",INDEX('Smelter Look-up'!$A:$A,MATCH($A1332,'Smelter Look-up'!$E:$E,0)))","v":""},{"$f":"IF(LEN(A1332)=0,\"\",INDEX('Smelter Look-up'!$C:$C,MATCH($A1332,'Smelter Look-up'!$E:$E,0)))","v":""},null,{"$f":"IF(ISERROR($V1332),\"\",OFFSET('Smelter Look-up'!$D$4,$V1332-4,0)&\"\")","v":""},{"$f":"IF(ISERROR($V1332),\"\",OFFSET('Smelter Look-up'!$E$4,$V1332-4,0))","v":""},{"$f":"IF(C1332=$X$4,\"Enter smelter details\", IF(ISERROR($V1332),\"\",OFFSET('Smelter Look-up'!$F$4,$V1332-4,0)))","v":""},{"$f":"IF(ISERROR($V1332),\"\",OFFSET('Smelter Look-up'!$G$4,$V1332-4,0))","v":""},{"$f":"IF(ISERROR($V1332),\"\",OFFSET('Smelter Look-up'!$H$4,$V1332-4,0))","v":""},{"$f":"IF(ISERROR($V1332),\"\",OFFSET('Smelter Look-up'!$I$4,$V1332-4,0))","v":""},{"$nulls":7},{"$f":"IF(ISERROR($V1332),\"\",OFFSET('Smelter Look-up'!$C$4,$V1332-4,0)&\"\")","v":""},"",{"$f":"IF(B1332=\"\",\"\",IF(ISERROR(MATCH($J1332,SorP!$B$1:$B$6230,0)),\"\",INDIRECT(\"'SorP'!$A$\"&MATCH($J1332,SorP!$B$1:$B$6230,0))))","v":""},null,{"$f":"IF(C1332=\"\",NA(),MATCH($B1332&$C1332,'Smelter Look-up'!$J:$J,0))","v":{"$error":"#N/A"}},null,0,null,null,null,""]
[null,{"$f":"IF(LEN(A1333)=0,\"\",INDEX('Smelter Look-up'!$A:$A,MATCH($A1333,'Smelter Look-up'!$E:$E,0)))","v":""},{"$f":"IF(LEN(A1333)=0,\"\",INDEX('Smelter Look-up'!$C:$C,MATCH($A1333,'Smelter Look-up'!$E:$E,0)))","v":""},null,{"$f":"IF(ISERROR($V1333),\"\",OFFSET('Smelter Look-up'!$D$4,$V1333-4,0)&\"\")","v":""},{"$f":"IF(ISERROR($V1333),\"\",OFFSET('Smelter Look-up'!$E$4,$V1333-4,0))","v":""},{"$f":"IF(C1333=$X$4,\"Enter smelter details\", IF(ISERROR($V1333),\"\",OFFSET('Smelter Look-up'!$F$4,$V1333-4,0)))","v":""},{"$f":"IF(ISERROR($V1333),\"\",OFFSET('Smelter Look-up'!$G$4,$V1333-4,0))","v":""},{"$f":"IF(ISERROR($V1333),\"\",OFFSET('Smelter Look-up'!$H$4,$V1333-4,0))","v":""},{"$f":"IF(ISERROR($V1333),\"\",OFFSET('Smelter Look-up'!$I$4,$V1333-4,0))","v":""},{"$nulls":7},{"$f":"IF(ISERROR($V1333),\"\",OFFSET('Smelter Look-up'!$C$4,$V1333-4,0)&\"\")","v":""},"",{"$f":"IF(B1333=\"\",\"\",IF(ISERROR(MATCH($J1333,SorP!$B$1:$B$6230,0)),\"\",INDIRECT(\"'SorP'!$A$\"&MATCH($J1333,SorP!$B$1:$B$6230,0))))","v":""},null,{"$f":"IF(C1333=\"\",NA(),MATCH($B1333&$C1333,'Smelter Look-up'!$J:$J,0))","v":{"$error":"#N/A"}},null,0,null,null,null,""]
[null,{"$f":"IF(LEN(A1334)=0,\"\",INDEX('Smelter Look-up'!$A:$A,MATCH($A1334,'Smelter Look-up'!$E:$E,0)))","v":""},{"$f":"IF(LEN(A1334)=0,\"\",INDEX('Smelter Look-up'!$C:$C,MATCH($A1334,'Smelter Look-up'!$E:$E,0)))","v":""},null,{"$f":"IF(ISERROR($V1334),\"\",OFFSET('Smelter Look-up'!$D$4,$V1334-4,0)&\"\")","v":""},{"$f":"IF(ISERROR($V1334),\"\",OFFSET('Smelter Look-up'!$E$4,$V1334-4,0))","v":""},{"$f":"IF(C1334=$X$4,\"Enter smelter details\", IF(ISERROR($V1334),\"\",OFFSET('Smelter Look-up'!$F$4,$V1334-4,0)))","v":""},{"$f":"IF(ISERROR($V1334),\"\",OFFSET('Smelter Look-up'!$G$4,$V1334-4,0))","v":""},{"$f":"IF(ISERROR($V1334),\"\",OFFSET('Smelter Look-up'!$H$4,$V1334-4,0))","v":""},{"$f":"IF(ISERROR($V1334),\"\",OFFSET('Smelter Look-up'!$I$4,$V1334-4,0))","v":""},{"$nulls":7},{"$f":"IF(ISERROR($V1334),\"\",OFFSET('Smelter Look-up'!$C$4,$V1334-4,0)&\"\")","v":""},"",{"$f":"IF(B1334=\"\",\"\",IF(ISERROR(MATCH($J1334,SorP!$B$1:$B$6230,0)),\"\",INDIRECT(\"'SorP'!$A$\"&MATCH($J1334,SorP!$B$1:$B$6230,0))))","v":""},null,{"$f":"IF(C1334=\"\",NA(),MATCH($B1334&$C1334,'Smelter Look-up'!$J:$J,0))","v":{"$error":"#N/A"}},null,0,null,null,null,""]
[null,{"$f":"IF(LEN(A1335)=0,\"\",INDEX('Smelter Look-up'!$A:$A,MATCH($A1335,'Smelter Look-up'!$E:$E,0)))","v":""},{"$f":"IF(LEN(A1335)=0,\"\",INDEX('Smelter Look-up'!$C:$C,MATCH($A1335,'Smelter Look-up'!$E:$E,0)))","v":""},null,{"$f":"IF(ISERROR($V1335),\"\",OFFSET('Smelter Look-up'!$D$4,$V1335-4,0)&\"\")","v":""},{"$f":"IF(ISERROR($V1335),\"\",OFFSET('Smelter Look-up'!$E$4,$V1335-4,0))","v":""},{"$f":"IF(C1335=$X$4,\"Enter smelter details\", IF(ISERROR($V1335),\"\",OFFSET('Smelter Look-up'!$F$4,$V1335-4,0)))","v":""},{"$f":"IF(ISERROR($V1335),\"\",OFFSET('Smelter Look-up'!$G$4,$V1335-4,0))","v":""},{"$f":"IF(ISERROR($V1335),\"\",OFFSET('Smelter Look-up'!$H$4,$V1335-4,0))","v":""},{"$f":"IF(ISERROR($V1335),\"\",OFFSET('Smelter Look-up'!$I$4,$V1335-4,0))","v":""},{"$nulls":7},{"$f":"IF(ISERROR($V1335),\"\",OFFSET('Smelter Look-up'!$C$4,$V1335-4,0)&\"\")","v":""},"",{"$f":"IF(B1335=\"\",\"\",IF(ISERROR(MATCH($J1335,SorP!$B$1:$B$6230,0)),\"\",INDIRECT(\"'SorP'!$A$\"&MATCH($J1335,SorP!$B$1:$B$6230,0))))","v":""},null,{"$f":"IF(C1335=\"\",NA(),MATCH($B1335&$C1335,'Smelter Look-up'!$J:$J,0))","v":{"$error":"#N/A"}},null,0,null,null,null,""]
[null,{"$f":"IF(LEN(A1336)=0,\"\",INDEX('Smelter Look-up'!$A:$A,MATCH($A1336,'Smelter Look-up'!$E:$E,0)))","v":""},{"$f":"IF(LEN(A1336)=0,\"\",INDEX('Smelter Look-up'!$C:$C,MATCH($A1336,'Smelter Look-up'!$E:$E,0)))","v":""},null,{"$f":"IF(ISERROR($V1336),\"\",OFFSET('Smelter Look-up'!$D$4,$V1336-4,0)&\"\")","v":""},{"$f":"IF(ISERROR($V1336),\"\",OFFSET('Smelter Look-up'!$E$4,$V1336-4,0))","v":""},{"$f":"IF(C1336=$X$4,\"Enter smelter details\", IF(ISERROR($V1336),\"\",OFFSET('Smelter Look-up'!$F$4,$V1336-4,0)))","v":""},{"$f":"IF(ISERROR($V1336),\"\",OFFSET('Smelter Look-up'!$G$4,$V1336-4,0))","v":""},{"$f":"IF(ISERROR($V1336),\"\",OFFSET('Smelter Look-up'!$H$4,$V1336-4,0))","v":""},{"$f":"IF(ISERROR($V1336),\"\",OFFSET('Smelter Look-up'!$I$4,$V1336-4,0))","v":""},{"$nulls":7},{"$f":"IF(ISERROR($V1336),\"\",OFFSET('Smelter Look-up'!$C$4,$V1336-4,0)&\"\")","v":""},"",{"$f":"IF(B1336=\"\",\"\",IF(ISERROR(MATCH($J1336,SorP!$B$1:$B$6230,0)),\"\",INDIRECT(\"'SorP'!$A$\"&MATCH($J1336,SorP!$B$1:$B$6230,0))))","v":""},null,{"$f":"IF(C1336=\"\",NA(),MATCH($B1336&$C1336,'Smelter Look-up'!$J:$J,0))","v":{"$error":"#N/A"}},null,0,null,null,null,""]
[null,{"$f":"IF(LEN(A1337)=0,\"\",INDEX('Smelter Look-up'!$A:$A,MATCH($A1337,'Smelter Look-up'!$E:$E,0)))","v":""},{"$f":"IF(LEN(A1337)=0,\"\",INDEX('Smelter Look-up'!$C:$C,MATCH($A1337,'Smelter Look-up'!$E:$E,0)))","v":""},null,{"$f":"IF(ISERROR($V1337),\"\",OFFSET('Smelter Look-up'!$D$4,$V1337-4,0)&\"\")","v":""},{"$f":"IF(ISERROR($V1337),\"\",OFFSET('Smelter Look-up'!$E$4,$V1337-4,0))","v":""},{"$f":"IF(C1337=$X$4,\"Enter smelter details\", IF(ISERROR($V1337),\"\",OFFSET('Smelter Look-up'!$F$4,$V1337-4,0)))","v":""},{"$f":"IF(ISERROR($V1337),\"\",OFFSET('Smelter Look-up'!$G$4,$V1337-4,0))","v":""},{"$f":"IF(ISERROR($V1337),\"\",OFFSET('Smelter Look-up'!$H$4,$V1337-4,0))","v":""},{"$f":"IF(ISERROR($V1337),\"\",OFFSET('Smelter Look-up'!$I$4,$V1337-4,0))","v":""},{"$nulls":7},{"$f":"IF(ISERROR($V1337),\"\",OFFSET('Smelter Look-up'!$C$4,$V1337-4,0)&\"\")","v":""},"",{"$f":"IF(B1337=\"\",\"\",IF(ISERROR(MATCH($J1337,SorP!$B$1:$B$6230,0)),\"\",INDIRECT(\"'SorP'!$A$\"&MATCH($J1337,SorP!$B$1:$B$6230,0))))","v":""},null,{"$f":"IF(C1337=\"\",NA(),MATCH($B1337&$C1337,'Smelter Look-up'!$J:$J,0))","v":{"$error":"#N/A"}},null,0,null,null,null,""]
[null,{"$f":"IF(LEN(A1338)=0,\"\",INDEX('Smelter Look-up'!$A:$A,MATCH($A1338,'Smelter Look-up'!$E:$E,0)))","v":""},{"$f":"IF(LEN(A1338)=0,\"\",INDEX('Smelter Look-up'!$C:$C,MATCH($A1338,'Smelter Look-up'!$E:$E,0)))","v":""},null,{"$f":"IF(ISERROR($V1338),\"\",OFFSET('Smelter Look-up'!$D$4,$V1338-4,0)&\"\")","v":""},{"$f":"IF(ISERROR($V1338),\"\",OFFSET('Smelter Look-up'!$E$4,$V1338-4,0))","v":""},{"$f":"IF(C1338=$X$4,\"Enter smelter details\", IF(ISERROR($V1338),\"\",OFFSET('Smelter Look-up'!$F$4,$V1338-4,0)))","v":""},{"$f":"IF(ISERROR($V1338),\"\",OFFSET('Smelter Look-up'!$G$4,$V1338-4,0))","v":""},{"$f":"IF(ISERROR($V1338),\"\",OFFSET('Smelter Look-up'!$H$4,$V1338-4,0))","v":""},{"$f":"IF(ISERROR($V1338),\"\",OFFSET('Smelter Look-up'!$I$4,$V1338-4,0))","v":""},{"$nulls":7},{"$f":"IF(ISERROR($V1338),\"\",OFFSET('Smelter Look-up'!$C$4,$V1338-4,0)&\"\")","v":""},"",{"$f":"IF(B1338=\"\",\"\",IF(ISERROR(MATCH($J1338,SorP!$B$1:$B$6230,0)),\"\",INDIRECT(\"'SorP'!$A$\"&MATCH($J1338,SorP!$B$1:$B$6230,0))))","v":""},null,{"$f":"IF(C1338=\"\",NA(),MATCH($B1338&$C1338,'Smelter Look-up'!$J:$J,0))","v":{"$error":"#N/A"}},null,0,null,null,null,""]
[null,{"$f":"IF(LEN(A1339)=0,\"\",INDEX('Smelter Look-up'!$A:$A,MATCH($A1339,'Smelter Look-up'!$E:$E,0)))","v":""},{"$f":"IF(LEN(A1339)=0,\"\",INDEX('Smelter Look-up'!$C:$C,MATCH($A1339,'Smelter Look-up'!$E:$E,0)))","v":""},null,{"$f":"IF(ISERROR($V1339),\"\",OFFSET('Smelter Look-up'!$D$4,$V1339-4,0)&\"\")","v":""},{"$f":"IF(ISERROR($V1339),\"\",OFFSET('Smelter Look-up'!$E$4,$V1339-4,0))","v":""},{"$f":"IF(C1339=$X$4,\"Enter smelter details\", IF(ISERROR($V1339),\"\",OFFSET('Smelter Look-up'!$F$4,$V1339-4,0)))","v":""},{"$f":"IF(ISERROR($V1339),\"\",OFFSET('Smelter Look-up'!$G$4,$V1339-4,0))","v":""},{"$f":"IF(ISERROR($V1339),\"\",OFFSET('Smelter Look-up'!$H$4,$V1339-4,0))","v":""},{"$f":"IF(ISERROR($V1339),\"\",OFFSET('Smelter Look-up'!$I$4,$V1339-4,0))","v":""},{"$nulls":7},{"$f":"IF(ISERROR($V1339),\"\",OFFSET('Smelter Look-up'!$C$4,$V1339-4,0)&\"\")","v":""},{"$f":"IF(B1339=\"\",\"\",IF(ISERROR(MATCH($E1339,CL,0)),\"Unknown\",INDIRECT(\"'C'!$A$\"&MATCH($E1339,CL,0)+1)))","v":""},{"$f":"IF(B1339=\"\",\"\",IF(ISERROR(MATCH($J1339,SorP!$B$1:$B$6230,0)),\"\",INDIRECT(\"'SorP'!$A$\"&MATCH($J1339,SorP!$B$1:$B$6230,0))))","v":""},null,{"$f":"IF(C1339=\"\",NA(),MATCH($B1339&$C1339,'Smelter Look-up'!$J:$J,0))","v":{"$error":"#N/A"}},null,{"$f":"IF(AND(C1339=\"Smelter not listed\",OR(LEN(D1339)=0,LEN(E1339)=0)),1,0)","v":0},null,null,null,{"$f":"B1339&C1339","v":""}]
[null,{"$f":"IF(LEN(A1340)=0,\"\",INDEX('Smelter Look-up'!$A:$A,MATCH($A1340,'Smelter Look-up'!$E:$E,0)))","v":""},{"$f":"IF(LEN(A1340)=0,\"\",INDEX('Smelter Look-up'!$C:$C,MATCH($A1340,'Smelter Look-up'!$E:$E,0)))","v":""},null,{"$f":"IF(ISERROR($V1340),\"\",OFFSET('Smelter Look-up'!$D$4,$V1340-4,0)&\"\")","v":""},{"$f":"IF(ISERROR($V1340),\"\",OFFSET('Smelter Look-up'!$E$4,$V1340-4,0))","v":""},{"$f":"IF(C1340=$X$4,\"Enter smelter details\", IF(ISERROR($V1340),\"\",OFFSET('Smelter Look-up'!$F$4,$V1340-4,0)))","v":""},{"$f":"IF(ISERROR($V1340),\"\",OFFSET('Smelter Look-up'!$G$4,$V1340-4,0))","v":""},{"$f":"IF(ISERROR($V1340),\"\",OFFSET('Smelter Look-up'!$H$4,$V1340-4,0))","v":""},{"$f":"IF(ISERROR($V1340),\"\",OFFSET('Smelter Look-up'!$I$4,$V1340-4,0))","v":""},{"$nulls":7},{"$f":"IF(ISERROR($V1340),\"\",OFFSET('Smelter Look-up'!$C$4,$V1340-4,0)&\"\")","v":""},"",{"$f":"IF(B1340=\"\",\"\",IF(ISERROR(MATCH($J1340,SorP!$B$1:$B$6230,0)),\"\",INDIRECT(\"'SorP'!$A$\"&MATCH($J1340,SorP!$B$1:$B$6230,0))))","v":""},null,{"$f":"IF(C1340=\"\",NA(),MATCH($B1340&$C1340,'Smelter Look-up'!$J:$J,0))","v":{"$error":"#N/A"}},null,0,null,null,null,""]
[null,{"$f":"IF(LEN(A1341)=0,\"\",INDEX('Smelter Look-up'!$A:$A,MATCH($A1341,'Smelter Look-up'!$E:$E,0)))","v":""},{"$f":"IF(LEN(A1341)=0,\"\",INDEX('Smelter Look-up'!$C:$C,MATCH($A1341,'Smelter Look-up'!$E:$E,0)))","v":""},null,{"$f":"IF(ISERROR($V1341),\"\",OFFSET('Smelter Look-up'!$D$4,$V1341-4,0)&\"\")","v":""},{"$f":"IF(ISERROR($V1341),\"\",OFFSET('Smelter Look-up'!$E$4,$V1341-4,0))","v":""},{"$f":"IF(C1341=$X$4,\"Enter smelter details\", IF(ISERROR($V1341),\"\",OFFSET('Smelter Look-up'!$F$4,$V1341-4,0)))","v":""},{"$f":"IF(ISERROR($V1341),\"\",OFFSET('Smelter Look-up'!$G$4,$V1341-4,0))","v":""},{"$f":"IF(ISERROR($V1341),\"\",OFFSET('Smelter Look-up'!$H$4,$V1341-4,0))","v":""},{"$f":"IF(ISERROR($V1341),\"\",OFFSET('Smelter Look-up'!$I$4,$V1341-4,0))","v":""},{"$nulls":7},{"$f":"IF(ISERROR($V1341),\"\",OFFSET('Smelter Look-up'!$C$4,$V1341-4,0)&\"\")","v":""},"",{"$f":"IF(B1341=\"\",\"\",IF(ISERROR(MATCH($J1341,SorP!$B$1:$B$6230,0)),\"\",INDIRECT(\"'SorP'!$A$\"&MATCH($J1341,SorP!$B$1:$B$6230,0))))","v":""},null,{"$f":"IF(C1341=\"\",NA(),MATCH($B1341&$C1341,'Smelter Look-up'!$J:$J,0))","v":{"$error":"#N/A"}},null,0,null,null,null,""]
[null,{"$f":"IF(LEN(A1342)=0,\"\",INDEX('Smelter Look-up'!$A:$A,MATCH($A1342,'Smelter Look-up'!$E:$E,0)))","v":""},{"$f":"IF(LEN(A1342)=0,\"\",INDEX('Smelter Look-up'!$C:$C,MATCH($A1342,'Smelter Look-up'!$E:$E,0)))","v":""},null,{"$f":"IF(ISERROR($V1342),\"\",OFFSET('Smelter Look-up'!$D$4,$V1342-4,0)&\"\")","v":""},{"$f":"IF(ISERROR($V1342),\"\",OFFSET('Smelter Look-up'!$E$4,$V1342-4,0))","v":""},{"$f":"IF(C1342=$X$4,\"Enter smelter details\", IF(ISERROR($V1342),\"\",OFFSET('Smelter Look-up'!$F$4,$V1342-4,0)))","v":""},{"$f":"IF(ISERROR($V1342),\"\",OFFSET('Smelter Look-up'!$G$4,$V1342-4,0))","v":""},{"$f":"IF(ISERROR($V1342),\"\",OFFSET('Smelter Look-up'!$H$4,$V1342-4,0))","v":""},{"$f":"IF(ISERROR($V1342),\"\",OFFSET('Smelter Look-up'!$I$4,$V1342-4,0))","v":""},{"$nulls":7},{"$f":"IF(ISERROR($V1342),\"\",OFFSET('Smelter Look-up'!$C$4,$V1342-4,0)&\"\")","v":""},"",{"$f":"IF(B1342=\"\",\"\",IF(ISERROR(MATCH($J1342,SorP!$B$1:$B$6230,0)),\"\",INDIRECT(\"'SorP'!$A$\"&MATCH($J1342,SorP!$B$1:$B$6230,0))))","v":""},null,{"$f":"IF(C1342=\"\",NA(),MATCH($B1342&$C1342,'Smelter Look-up'!$J:$J,0))","v":{"$error":"#N/A"}},null,0,null,null,null,""]
[null,{"$f":"IF(LEN(A1343)=0,\"\",INDEX('Smelter Look-up'!$A:$A,MATCH($A1343,'Smelter Look-up'!$E:$E,0)))","v":""},{"$f":"IF(LEN(A1343)=0,\"\",INDEX('Smelter Look-up'!$C:$C,MATCH($A1343,'Smelter Look-up'!$E:$E,0)))","v":""},null,{"$f":"IF(ISERROR($V1343),\"\",OFFSET('Smelter Look-up'!$D$4,$V1343-4,0)&\"\")","v":""},{"$f":"IF(ISERROR($V1343),\"\",OFFSET('Smelter Look-up'!$E$4,$V1343-4,0))","v":""},{"$f":"IF(C1343=$X$4,\"Enter smelter details\", IF(ISERROR($V1343),\"\",OFFSET('Smelter Look-up'!$F$4,$V1343-4,0)))","v":""},{"$f":"IF(ISERROR($V1343),\"\",OFFSET('Smelter Look-up'!$G$4,$V1343-4,0))","v":""},{"$f":"IF(ISERROR($V1343),\"\",OFFSET('Smelter Look-up'!$H$4,$V1343-4,0))","v":""},{"$f":"IF(ISERROR($V1343),\"\",OFFSET('Smelter Look-up'!$I$4,$V1343-4,0))","v":""},{"$nulls":7},{"$f":"IF(ISERROR($V1343),\"\",OFFSET('Smelter Look-up'!$C$4,$V1343-4,0)&\"\")","v":""},"",{"$f":"IF(B1343=\"\",\"\",IF(ISERROR(MATCH($J1343,SorP!$B$1:$B$6230,0)),\"\",INDIRECT(\"'SorP'!$A$\"&MATCH($J1343,SorP!$B$1:$B$6230,0))))","v":""},null,{"$f":"IF(C1343=\"\",NA(),MATCH($B1343&$C1343,'Smelter Look-up'!$J:$J,0))","v":{"$error":"#N/A"}},null,0,null,null,null,""]
[null,{"$f":"IF(LEN(A1344)=0,\"\",INDEX('Smelter Look-up'!$A:$A,MATCH($A1344,'Smelter Look-up'!$E:$E,0)))","v":""},{"$f":"IF(LEN(A1344)=0,\"\",INDEX('Smelter Look-up'!$C:$C,MATCH($A1344,'Smelter Look-up'!$E:$E,0)))","v":""},null,{"$f":"IF(ISERROR($V1344),\"\",OFFSET('Smelter Look-up'!$D$4,$V1344-4,0)&\"\")","v":""},{"$f":"IF(ISERROR($V1344),\"\",OFFSET('Smelter Look-up'!$E$4,$V1344-4,0))","v":""},{"$f":"IF(C1344=$X$4,\"Enter smelter details\", IF(ISERROR($V1344),\"\",OFFSET('Smelter Look-up'!$F$4,$V1344-4,0)))","v":""},{"$f":"IF(ISERROR($V1344),\"\",OFFSET('Smelter Look-up'!$G$4,$V1344-4,0))","v":""},{"$f":"IF(ISERROR($V1344),\"\",OFFSET('Smelter Look-up'!$H$4,$V1344-4,0))","v":""},{"$f":"IF(ISERROR($V1344),\"\",OFFSET('Smelter Look-up'!$I$4,$V1344-4,0))","v":""},{"$nulls":7},{"$f":"IF(ISERROR($V1344),\"\",OFFSET('Smelter Look-up'!$C$4,$V1344-4,0)&\"\")","v":""},"",{"$f":"IF(B1344=\"\",\"\",IF(ISERROR(MATCH($J1344,SorP!$B$1:$B$6230,0)),\"\",INDIRECT(\"'SorP'!$A$\"&MATCH($J1344,SorP!$B$1:$B$6230,0))))","v":""},null,{"$f":"IF(C1344=\"\",NA(),MATCH($B1344&$C1344,'Smelter Look-up'!$J:$J,0))","v":{"$error":"#N/A"}},null,0,null,null,null,""]
[null,{"$f":"IF(LEN(A1345)=0,\"\",INDEX('Smelter Look-up'!$A:$A,MATCH($A1345,'Smelter Look-up'!$E:$E,0)))","v":""},{"$f":"IF(LEN(A1345)=0,\"\",INDEX('Smelter Look-up'!$C:$C,MATCH($A1345,'Smelter Look-up'!$E:$E,0)))","v":""},null,{"$f":"IF(ISERROR($V1345),\"\",OFFSET('Smelter Look-up'!$D$4,$V1345-4,0)&\"\")","v":""},{"$f":"IF(ISERROR($V1345),\"\",OFFSET('Smelter Look-up'!$E$4,$V1345-4,0))","v":""},{"$f":"IF(C1345=$X$4,\"Enter smelter details\", IF(ISERROR($V1345),\"\",OFFSET('Smelter Look-up'!$F$4,$V1345-4,0)))","v":""},{"$f":"IF(ISERROR($V1345),\"\",OFFSET('Smelter Look-up'!$G$4,$V1345-4,0))","v":""},{"$f":"IF(ISERROR($V1345),\"\",OFFSET('Smelter Look-up'!$H$4,$V1345-4,0))","v":""},{"$f":"IF(ISERROR($V1345),\"\",OFFSET('Smelter Look-up'!$I$4,$V1345-4,0))","v":""},{"$nulls":7},{"$f":"IF(ISERROR($V1345),\"\",OFFSET('Smelter Look-up'!$C$4,$V1345-4,0)&\"\")","v":""},"",{"$f":"IF(B1345=\"\",\"\",IF(ISERROR(MATCH($J1345,SorP!$B$1:$B$6230,0)),\"\",INDIRECT(\"'SorP'!$A$\"&MATCH($J1345,SorP!$B$1:$B$6230,0))))","v":""},null,{"$f":"IF(C1345=\"\",NA(),MATCH($B1345&$C1345,'Smelter Look-up'!$J:$J,0))","v":{"$error":"#N/A"}},null,0,null,null,null,""]
[null,{"$f":"IF(LEN(A1346)=0,\"\",INDEX('Smelter Look-up'!$A:$A,MATCH($A1346,'Smelter Look-up'!$E:$E,0)))","v":""},{"$f":"IF(LEN(A1346)=0,\"\",INDEX('Smelter Look-up'!$C:$C,MATCH($A1346,'Smelter Look-up'!$E:$E,0)))","v":""},null,{"$f":"IF(ISERROR($V1346),\"\",OFFSET('Smelter Look-up'!$D$4,$V1346-4,0)&\"\")","v":""},{"$f":"IF(ISERROR($V1346),\"\",OFFSET('Smelter Look-up'!$E$4,$V1346-4,0))","v":""},{"$f":"IF(C1346=$X$4,\"Enter smelter details\", IF(ISERROR($V1346),\"\",OFFSET('Smelter Look-up'!$F$4,$V1346-4,0)))","v":""},{"$f":"IF(ISERROR($V1346),\"\",OFFSET('Smelter Look-up'!$G$4,$V1346-4,0))","v":""},{"$f":"IF(ISERROR($V1346),\"\",OFFSET('Smelter Look-up'!$H$4,$V1346-4,0))","v":""},{"$f":"IF(ISERROR($V1346),\"\",OFFSET('Smelter Look-up'!$I$4,$V1346-4,0))","v":""},{"$nulls":7},{"$f":"IF(ISERROR($V1346),\"\",OFFSET('Smelter Look-up'!$C$4,$V1346-4,0)&\"\")","v":""},"",{"$f":"IF(B1346=\"\",\"\",IF(ISERROR(MATCH($J1346,SorP!$B$1:$B$6230,0)),\"\",INDIRECT(\"'SorP'!$A$\"&MATCH($J1346,SorP!$B$1:$B$6230,0))))","v":""},null,{"$f":"IF(C1346=\"\",NA(),MATCH($B1346&$C1346,'Smelter Look-up'!$J:$J,0))","v":{"$error":"#N/A"}},null,0,null,null,null,""]
[null,{"$f":"IF(LEN(A1347)=0,\"\",INDEX('Smelter Look-up'!$A:$A,MATCH($A1347,'Smelter Look-up'!$E:$E,0)))","v":""},{"$f":"IF(LEN(A1347)=0,\"\",INDEX('Smelter Look-up'!$C:$C,MATCH($A1347,'Smelter Look-up'!$E:$E,0)))","v":""},null,{"$f":"IF(ISERROR($V1347),\"\",OFFSET('Smelter Look-up'!$D$4,$V1347-4,0)&\"\")","v":""},{"$f":"IF(ISERROR($V1347),\"\",OFFSET('Smelter Look-up'!$E$4,$V1347-4,0))","v":""},{"$f":"IF(C1347=$X$4,\"Enter smelter details\", IF(ISERROR($V1347),\"\",OFFSET('Smelter Look-up'!$F$4,$V1347-4,0)))","v":""},{"$f":"IF(ISERROR($V1347),\"\",OFFSET('Smelter Look-up'!$G$4,$V1347-4,0))","v":""},{"$f":"IF(ISERROR($V1347),\"\",OFFSET('Smelter Look-up'!$H$4,$V1347-4,0))","v":""},{"$f":"IF(ISERROR($V1347),\"\",OFFSET('Smelter Look-up'!$I$4,$V1347-4,0))","v":""},{"$nulls":7},{"$f":"IF(ISERROR($V1347),\"\",OFFSET('Smelter Look-up'!$C$4,$V1347-4,0)&\"\")","v":""},"",{"$f":"IF(B1347=\"\",\"\",IF(ISERROR(MATCH($J1347,SorP!$B$1:$B$6230,0)),\"\",INDIRECT(\"'SorP'!$A$\"&MATCH($J1347,SorP!$B$1:$B$6230,0))))","v":""},null,{"$f":"IF(C1347=\"\",NA(),MATCH($B1347&$C1347,'Smelter Look-up'!$J:$J,0))","v":{"$error":"#N/A"}},null,0,null,null,null,""]
[null,{"$f":"IF(LEN(A1348)=0,\"\",INDEX('Smelter Look-up'!$A:$A,MATCH($A1348,'Smelter Look-up'!$E:$E,0)))","v":""},{"$f":"IF(LEN(A1348)=0,\"\",INDEX('Smelter Look-up'!$C:$C,MATCH($A1348,'Smelter Look-up'!$E:$E,0)))","v":""},null,{"$f":"IF(ISERROR($V1348),\"\",OFFSET('Smelter Look-up'!$D$4,$V1348-4,0)&\"\")","v":""},{"$f":"IF(ISERROR($V1348),\"\",OFFSET('Smelter Look-up'!$E$4,$V1348-4,0))","v":""},{"$f":"IF(C1348=$X$4,\"Enter smelter details\", IF(ISERROR($V1348),\"\",OFFSET('Smelter Look-up'!$F$4,$V1348-4,0)))","v":""},{"$f":"IF(ISERROR($V1348),\"\",OFFSET('Smelter Look-up'!$G$4,$V1348-4,0))","v":""},{"$f":"IF(ISERROR($V1348),\"\",OFFSET('Smelter Look-up'!$H$4,$V1348-4,0))","v":""},{"$f":"IF(ISERROR($V1348),\"\",OFFSET('Smelter Look-up'!$I$4,$V1348-4,0))","v":""},{"$nulls":7},{"$f":"IF(ISERROR($V1348),\"\",OFFSET('Smelter Look-up'!$C$4,$V1348-4,0)&\"\")","v":""},"",{"$f":"IF(B1348=\"\",\"\",IF(ISERROR(MATCH($J1348,SorP!$B$1:$B$6230,0)),\"\",INDIRECT(\"'SorP'!$A$\"&MATCH($J1348,SorP!$B$1:$B$6230,0))))","v":""},null,{"$f":"IF(C1348=\"\",NA(),MATCH($B1348&$C1348,'Smelter Look-up'!$J:$J,0))","v":{"$error":"#N/A"}},null,0,null,null,null,""]
[null,{"$f":"IF(LEN(A1349)=0,\"\",INDEX('Smelter Look-up'!$A:$A,MATCH($A1349,'Smelter Look-up'!$E:$E,0)))","v":""},{"$f":"IF(LEN(A1349)=0,\"\",INDEX('Smelter Look-up'!$C:$C,MATCH($A1349,'Smelter Look-up'!$E:$E,0)))","v":""},null,{"$f":"IF(ISERROR($V1349),\"\",OFFSET('Smelter Look-up'!$D$4,$V1349-4,0)&\"\")","v":""},{"$f":"IF(ISERROR($V1349),\"\",OFFSET('Smelter Look-up'!$E$4,$V1349-4,0))","v":""},{"$f":"IF(C1349=$X$4,\"Enter smelter details\", IF(ISERROR($V1349),\"\",OFFSET('Smelter Look-up'!$F$4,$V1349-4,0)))","v":""},{"$f":"IF(ISERROR($V1349),\"\",OFFSET('Smelter Look-up'!$G$4,$V1349-4,0))","v":""},{"$f":"IF(ISERROR($V1349),\"\",OFFSET('Smelter Look-up'!$H$4,$V1349-4,0))","v":""},{"$f":"IF(ISERROR($V1349),\"\",OFFSET('Smelter Look-up'!$I$4,$V1349-4,0))","v":""},{"$nulls":7},{"$f":"IF(ISERROR($V1349),\"\",OFFSET('Smelter Look-up'!$C$4,$V1349-4,0)&\"\")","v":""},"",{"$f":"IF(B1349=\"\",\"\",IF(ISERROR(MATCH($J1349,SorP!$B$1:$B$6230,0)),\"\",INDIRECT(\"'SorP'!$A$\"&MATCH($J1349,SorP!$B$1:$B$6230,0))))","v":""},null,{"$f":"IF(C1349=\"\",NA(),MATCH($B1349&$C1349,'Smelter Look-up'!$J:$J,0))","v":{"$error":"#N/A"}},null,0,null,null,null,""]
[null,{"$f":"IF(LEN(A1350)=0,\"\",INDEX('Smelter Look-up'!$A:$A,MATCH($A1350,'Smelter Look-up'!$E:$E,0)))","v":""},{"$f":"IF(LEN(A1350)=0,\"\",INDEX('Smelter Look-up'!$C:$C,MATCH($A1350,'Smelter Look-up'!$E:$E,0)))","v":""},null,{"$f":"IF(ISERROR($V1350),\"\",OFFSET('Smelter Look-up'!$D$4,$V1350-4,0)&\"\")","v":""},{"$f":"IF(ISERROR($V1350),\"\",OFFSET('Smelter Look-up'!$E$4,$V1350-4,0))","v":""},{"$f":"IF(C1350=$X$4,\"Enter smelter details\", IF(ISERROR($V1350),\"\",OFFSET('Smelter Look-up'!$F$4,$V1350-4,0)))","v":""},{"$f":"IF(ISERROR($V1350),\"\",OFFSET('Smelter Look-up'!$G$4,$V1350-4,0))","v":""},{"$f":"IF(ISERROR($V1350),\"\",OFFSET('Smelter Look-up'!$H$4,$V1350-4,0))","v":""},{"$f":"IF(ISERROR($V1350),\"\",OFFSET('Smelter Look-up'!$I$4,$V1350-4,0))","v":""},{"$nulls":7},{"$f":"IF(ISERROR($V1350),\"\",OFFSET('Smelter Look-up'!$C$4,$V1350-4,0)&\"\")","v":""},"",{"$f":"IF(B1350=\"\",\"\",IF(ISERROR(MATCH($J1350,SorP!$B$1:$B$6230,0)),\"\",INDIRECT(\"'SorP'!$A$\"&MATCH($J1350,SorP!$B$1:$B$6230,0))))","v":""},null,{"$f":"IF(C1350=\"\",NA(),MATCH($B1350&$C1350,'Smelter Look-up'!$J:$J,0))","v":{"$error":"#N/A"}},null,0,null,null,null,""]
[null,{"$f":"IF(LEN(A1351)=0,\"\",INDEX('Smelter Look-up'!$A:$A,MATCH($A1351,'Smelter Look-up'!$E:$E,0)))","v":""},{"$f":"IF(LEN(A1351)=0,\"\",INDEX('Smelter Look-up'!$C:$C,MATCH($A1351,'Smelter Look-up'!$E:$E,0)))","v":""},null,{"$f":"IF(ISERROR($V1351),\"\",OFFSET('Smelter Look-up'!$D$4,$V1351-4,0)&\"\")","v":""},{"$f":"IF(ISERROR($V1351),\"\",OFFSET('Smelter Look-up'!$E$4,$V1351-4,0))","v":""},{"$f":"IF(C1351=$X$4,\"Enter smelter details\", IF(ISERROR($V1351),\"\",OFFSET('Smelter Look-up'!$F$4,$V1351-4,0)))","v":""},{"$f":"IF(ISERROR($V1351),\"\",OFFSET('Smelter Look-up'!$G$4,$V1351-4,0))","v":""},{"$f":"IF(ISERROR($V1351),\"\",OFFSET('Smelter Look-up'!$H$4,$V1351-4,0))","v":""},{"$f":"IF(ISERROR($V1351),\"\",OFFSET('Smelter Look-up'!$I$4,$V1351-4,0))","v":""},{"$nulls":7},{"$f":"IF(ISERROR($V1351),\"\",OFFSET('Smelter Look-up'!$C$4,$V1351-4,0)&\"\")","v":""},"",{"$f":"IF(B1351=\"\",\"\",IF(ISERROR(MATCH($J1351,SorP!$B$1:$B$6230,0)),\"\",INDIRECT(\"'SorP'!$A$\"&MATCH($J1351,SorP!$B$1:$B$6230,0))))","v":""},null,{"$f":"IF(C1351=\"\",NA(),MATCH($B1351&$C1351,'Smelter Look-up'!$J:$J,0))","v":{"$error":"#N/A"}},null,0,null,null,null,""]
[null,{"$f":"IF(LEN(A1352)=0,\"\",INDEX('Smelter Look-up'!$A:$A,MATCH($A1352,'Smelter Look-up'!$E:$E,0)))","v":""},{"$f":"IF(LEN(A1352)=0,\"\",INDEX('Smelter Look-up'!$C:$C,MATCH($A1352,'Smelter Look-up'!$E:$E,0)))","v":""},null,{"$f":"IF(ISERROR($V1352),\"\",OFFSET('Smelter Look-up'!$D$4,$V1352-4,0)&\"\")","v":""},{"$f":"IF(ISERROR($V1352),\"\",OFFSET('Smelter Look-up'!$E$4,$V1352-4,0))","v":""},{"$f":"IF(C1352=$X$4,\"Enter smelter details\", IF(ISERROR($V1352),\"\",OFFSET('Smelter Look-up'!$F$4,$V1352-4,0)))","v":""},{"$f":"IF(ISERROR($V1352),\"\",OFFSET('Smelter Look-up'!$G$4,$V1352-4,0))","v":""},{"$f":"IF(ISERROR($V1352),\"\",OFFSET('Smelter Look-up'!$H$4,$V1352-4,0))","v":""},{"$f":"IF(ISERROR($V1352),\"\",OFFSET('Smelter Look-up'!$I$4,$V1352-4,0))","v":""},{"$nulls":7},{"$f":"IF(ISERROR($V1352),\"\",OFFSET('Smelter Look-up'!$C$4,$V1352-4,0)&\"\")","v":""},"",{"$f":"IF(B1352=\"\",\"\",IF(ISERROR(MATCH($J1352,SorP!$B$1:$B$6230,0)),\"\",INDIRECT(\"'SorP'!$A$\"&MATCH($J1352,SorP!$B$1:$B$6230,0))))","v":""},null,{"$f":"IF(C1352=\"\",NA(),MATCH($B1352&$C1352,'Smelter Look-up'!$J:$J,0))","v":{"$error":"#N/A"}},null,0,null,null,null,""]
[null,{"$f":"IF(LEN(A1353)=0,\"\",INDEX('Smelter Look-up'!$A:$A,MATCH($A1353,'Smelter Look-up'!$E:$E,0)))","v":""},{"$f":"IF(LEN(A1353)=0,\"\",INDEX('Smelter Look-up'!$C:$C,MATCH($A1353,'Smelter Look-up'!$E:$E,0)))","v":""},null,{"$f":"IF(ISERROR($V1353),\"\",OFFSET('Smelter Look-up'!$D$4,$V1353-4,0)&\"\")","v":""},{"$f":"IF(ISERROR($V1353),\"\",OFFSET('Smelter Look-up'!$E$4,$V1353-4,0))","v":""},{"$f":"IF(C1353=$X$4,\"Enter smelter details\", IF(ISERROR($V1353),\"\",OFFSET('Smelter Look-up'!$F$4,$V1353-4,0)))","v":""},{"$f":"IF(ISERROR($V1353),\"\",OFFSET('Smelter Look-up'!$G$4,$V1353-4,0))","v":""},{"$f":"IF(ISERROR($V1353),\"\",OFFSET('Smelter Look-up'!$H$4,$V1353-4,0))","v":""},{"$f":"IF(ISERROR($V1353),\"\",OFFSET('Smelter Look-up'!$I$4,$V1353-4,0))","v":""},{"$nulls":7},{"$f":"IF(ISERROR($V1353),\"\",OFFSET('Smelter Look-up'!$C$4,$V1353-4,0)&\"\")","v":""},"",{"$f":"IF(B1353=\"\",\"\",IF(ISERROR(MATCH($J1353,SorP!$B$1:$B$6230,0)),\"\",INDIRECT(\"'SorP'!$A$\"&MATCH($J1353,SorP!$B$1:$B$6230,0))))","v":""},null,{"$f":"IF(C1353=\"\",NA(),MATCH($B1353&$C1353,'Smelter Look-up'!$J:$J,0))","v":{"$error":"#N/A"}},null,0,null,null,null,""]
[null,{"$f":"IF(LEN(A1354)=0,\"\",INDEX('Smelter Look-up'!$A:$A,MATCH($A1354,'Smelter Look-up'!$E:$E,0)))","v":""},{"$f":"IF(LEN(A1354)=0,\"\",INDEX('Smelter Look-up'!$C:$C,MATCH($A1354,'Smelter Look-up'!$E:$E,0)))","v":""},null,{"$f":"IF(ISERROR($V1354),\"\",OFFSET('Smelter Look-up'!$D$4,$V1354-4,0)&\"\")","v":""},{"$f":"IF(ISERROR($V1354),\"\",OFFSET('Smelter Look-up'!$E$4,$V1354-4,0))","v":""},{"$f":"IF(C1354=$X$4,\"Enter smelter details\", IF(ISERROR($V1354),\"\",OFFSET('Smelter Look-up'!$F$4,$V1354-4,0)))","v":""},{"$f":"IF(ISERROR($V1354),\"\",OFFSET('Smelter Look-up'!$G$4,$V1354-4,0))","v":""},{"$f":"IF(ISERROR($V1354),\"\",OFFSET('Smelter Look-up'!$H$4,$V1354-4,0))","v":""},{"$f":"IF(ISERROR($V1354),\"\",OFFSET('Smelter Look-up'!$I$4,$V1354-4,0))","v":""},{"$nulls":7},{"$f":"IF(ISERROR($V1354),\"\",OFFSET('Smelter Look-up'!$C$4,$V1354-4,0)&\"\")","v":""},"",{"$f":"IF(B1354=\"\",\"\",IF(ISERROR(MATCH($J1354,SorP!$B$1:$B$6230,0)),\"\",INDIRECT(\"'SorP'!$A$\"&MATCH($J1354,SorP!$B$1:$B$6230,0))))","v":""},null,{"$f":"IF(C1354=\"\",NA(),MATCH($B1354&$C1354,'Smelter Look-up'!$J:$J,0))","v":{"$error":"#N/A"}},null,0,null,null,null,""]
[null,{"$f":"IF(LEN(A1355)=0,\"\",INDEX('Smelter Look-up'!$A:$A,MATCH($A1355,'Smelter Look-up'!$E:$E,0)))","v":""},{"$f":"IF(LEN(A1355)=0,\"\",INDEX('Smelter Look-up'!$C:$C,MATCH($A1355,'Smelter Look-up'!$E:$E,0)))","v":""},null,{"$f":"IF(ISERROR($V1355),\"\",OFFSET('Smelter Look-up'!$D$4,$V1355-4,0)&\"\")","v":""},{"$f":"IF(ISERROR($V1355),\"\",OFFSET('Smelter Look-up'!$E$4,$V1355-4,0))","v":""},{"$f":"IF(C1355=$X$4,\"Enter smelter details\", IF(ISERROR($V1355),\"\",OFFSET('Smelter Look-up'!$F$4,$V1355-4,0)))","v":""},{"$f":"IF(ISERROR($V1355),\"\",OFFSET('Smelter Look-up'!$G$4,$V1355-4,0))","v":""},{"$f":"IF(ISERROR($V1355),\"\",OFFSET('Smelter Look-up'!$H$4,$V1355-4,0))","v":""},{"$f":"IF(ISERROR($V1355),\"\",OFFSET('Smelter Look-up'!$I$4,$V1355-4,0))","v":""},{"$nulls":7},{"$f":"IF(ISERROR($V1355),\"\",OFFSET('Smelter Look-up'!$C$4,$V1355-4,0)&\"\")","v":""},"",{"$f":"IF(B1355=\"\",\"\",IF(ISERROR(MATCH($J1355,SorP!$B$1:$B$6230,0)),\"\",INDIRECT(\"'SorP'!$A$\"&MATCH($J1355,SorP!$B$1:$B$6230,0))))","v":""},null,{"$f":"IF(C1355=\"\",NA(),MATCH($B1355&$C1355,'Smelter Look-up'!$J:$J,0))","v":{"$error":"#N/A"}},null,0,null,null,null,""]
[null,{"$f":"IF(LEN(A1356)=0,\"\",INDEX('Smelter Look-up'!$A:$A,MATCH($A1356,'Smelter Look-up'!$E:$E,0)))","v":""},{"$f":"IF(LEN(A1356)=0,\"\",INDEX('Smelter Look-up'!$C:$C,MATCH($A1356,'Smelter Look-up'!$E:$E,0)))","v":""},null,{"$f":"IF(ISERROR($V1356),\"\",OFFSET('Smelter Look-up'!$D$4,$V1356-4,0)&\"\")","v":""},{"$f":"IF(ISERROR($V1356),\"\",OFFSET('Smelter Look-up'!$E$4,$V1356-4,0))","v":""},{"$f":"IF(C1356=$X$4,\"Enter smelter details\", IF(ISERROR($V1356),\"\",OFFSET('Smelter Look-up'!$F$4,$V1356-4,0)))","v":""},{"$f":"IF(ISERROR($V1356),\"\",OFFSET('Smelter Look-up'!$G$4,$V1356-4,0))","v":""},{"$f":"IF(ISERROR($V1356),\"\",OFFSET('Smelter Look-up'!$H$4,$V1356-4,0))","v":""},{"$f":"IF(ISERROR($V1356),\"\",OFFSET('Smelter Look-up'!$I$4,$V1356-4,0))","v":""},{"$nulls":7},{"$f":"IF(ISERROR($V1356),\"\",OFFSET('Smelter Look-up'!$C$4,$V1356-4,0)&\"\")","v":""},"",{"$f":"IF(B1356=\"\",\"\",IF(ISERROR(MATCH($J1356,SorP!$B$1:$B$6230,0)),\"\",INDIRECT(\"'SorP'!$A$\"&MATCH($J1356,SorP!$B$1:$B$6230,0))))","v":""},null,{"$f":"IF(C1356=\"\",NA(),MATCH($B1356&$C1356,'Smelter Look-up'!$J:$J,0))","v":{"$error":"#N/A"}},null,0,null,null,null,""]
[null,{"$f":"IF(LEN(A1357)=0,\"\",INDEX('Smelter Look-up'!$A:$A,MATCH($A1357,'Smelter Look-up'!$E:$E,0)))","v":""},{"$f":"IF(LEN(A1357)=0,\"\",INDEX('Smelter Look-up'!$C:$C,MATCH($A1357,'Smelter Look-up'!$E:$E,0)))","v":""},null,{"$f":"IF(ISERROR($V1357),\"\",OFFSET('Smelter Look-up'!$D$4,$V1357-4,0)&\"\")","v":""},{"$f":"IF(ISERROR($V1357),\"\",OFFSET('Smelter Look-up'!$E$4,$V1357-4,0))","v":""},{"$f":"IF(C1357=$X$4,\"Enter smelter details\", IF(ISERROR($V1357),\"\",OFFSET('Smelter Look-up'!$F$4,$V1357-4,0)))","v":""},{"$f":"IF(ISERROR($V1357),\"\",OFFSET('Smelter Look-up'!$G$4,$V1357-4,0))","v":""},{"$f":"IF(ISERROR($V1357),\"\",OFFSET('Smelter Look-up'!$H$4,$V1357-4,0))","v":""},{"$f":"IF(ISERROR($V1357),\"\",OFFSET('Smelter Look-up'!$I$4,$V1357-4,0))","v":""},{"$nulls":7},{"$f":"IF(ISERROR($V1357),\"\",OFFSET('Smelter Look-up'!$C$4,$V1357-4,0)&\"\")","v":""},"",{"$f":"IF(B1357=\"\",\"\",IF(ISERROR(MATCH($J1357,SorP!$B$1:$B$6230,0)),\"\",INDIRECT(\"'SorP'!$A$\"&MATCH($J1357,SorP!$B$1:$B$6230,0))))","v":""},null,{"$f":"IF(C1357=\"\",NA(),MATCH($B1357&$C1357,'Smelter Look-up'!$J:$J,0))","v":{"$error":"#N/A"}},null,0,null,null,null,""]
[null,{"$f":"IF(LEN(A1358)=0,\"\",INDEX('Smelter Look-up'!$A:$A,MATCH($A1358,'Smelter Look-up'!$E:$E,0)))","v":""},{"$f":"IF(LEN(A1358)=0,\"\",INDEX('Smelter Look-up'!$C:$C,MATCH($A1358,'Smelter Look-up'!$E:$E,0)))","v":""},null,{"$f":"IF(ISERROR($V1358),\"\",OFFSET('Smelter Look-up'!$D$4,$V1358-4,0)&\"\")","v":""},{"$f":"IF(ISERROR($V1358),\"\",OFFSET('Smelter Look-up'!$E$4,$V1358-4,0))","v":""},{"$f":"IF(C1358=$X$4,\"Enter smelter details\", IF(ISERROR($V1358),\"\",OFFSET('Smelter Look-up'!$F$4,$V1358-4,0)))","v":""},{"$f":"IF(ISERROR($V1358),\"\",OFFSET('Smelter Look-up'!$G$4,$V1358-4,0))","v":""},{"$f":"IF(ISERROR($V1358),\"\",OFFSET('Smelter Look-up'!$H$4,$V1358-4,0))","v":""},{"$f":"IF(ISERROR($V1358),\"\",OFFSET('Smelter Look-up'!$I$4,$V1358-4,0))","v":""},{"$nulls":7},{"$f":"IF(ISERROR($V1358),\"\",OFFSET('Smelter Look-up'!$C$4,$V1358-4,0)&\"\")","v":""},"",{"$f":"IF(B1358=\"\",\"\",IF(ISERROR(MATCH($J1358,SorP!$B$1:$B$6230,0)),\"\",INDIRECT(\"'SorP'!$A$\"&MATCH($J1358,SorP!$B$1:$B$6230,0))))","v":""},null,{"$f":"IF(C1358=\"\",NA(),MATCH($B1358&$C1358,'Smelter Look-up'!$J:$J,0))","v":{"$error":"#N/A"}},null,0,null,null,null,""]
[null,{"$f":"IF(LEN(A1359)=0,\"\",INDEX('Smelter Look-up'!$A:$A,MATCH($A1359,'Smelter Look-up'!$E:$E,0)))","v":""},{"$f":"IF(LEN(A1359)=0,\"\",INDEX('Smelter Look-up'!$C:$C,MATCH($A1359,'Smelter Look-up'!$E:$E,0)))","v":""},null,{"$f":"IF(ISERROR($V1359),\"\",OFFSET('Smelter Look-up'!$D$4,$V1359-4,0)&\"\")","v":""},{"$f":"IF(ISERROR($V1359),\"\",OFFSET('Smelter Look-up'!$E$4,$V1359-4,0))","v":""},{"$f":"IF(C1359=$X$4,\"Enter smelter details\", IF(ISERROR($V1359),\"\",OFFSET('Smelter Look-up'!$F$4,$V1359-4,0)))","v":""},{"$f":"IF(ISERROR($V1359),\"\",OFFSET('Smelter Look-up'!$G$4,$V1359-4,0))","v":""},{"$f":"IF(ISERROR($V1359),\"\",OFFSET('Smelter Look-up'!$H$4,$V1359-4,0))","v":""},{"$f":"IF(ISERROR($V1359),\"\",OFFSET('Smelter Look-up'!$I$4,$V1359-4,0))","v":""},{"$nulls":7},{"$f":"IF(ISERROR($V1359),\"\",OFFSET('Smelter Look-up'!$C$4,$V1359-4,0)&\"\")","v":""},"",{"$f":"IF(B1359=\"\",\"\",IF(ISERROR(MATCH($J1359,SorP!$B$1:$B$6230,0)),\"\",INDIRECT(\"'SorP'!$A$\"&MATCH($J1359,SorP!$B$1:$B$6230,0))))","v":""},null,{"$f":"IF(C1359=\"\",NA(),MATCH($B1359&$C1359,'Smelter Look-up'!$J:$J,0))","v":{"$error":"#N/A"}},null,0,null,null,null,""]
[null,{"$f":"IF(LEN(A1360)=0,\"\",INDEX('Smelter Look-up'!$A:$A,MATCH($A1360,'Smelter Look-up'!$E:$E,0)))","v":""},{"$f":"IF(LEN(A1360)=0,\"\",INDEX('Smelter Look-up'!$C:$C,MATCH($A1360,'Smelter Look-up'!$E:$E,0)))","v":""},null,{"$f":"IF(ISERROR($V1360),\"\",OFFSET('Smelter Look-up'!$D$4,$V1360-4,0)&\"\")","v":""},{"$f":"IF(ISERROR($V1360),\"\",OFFSET('Smelter Look-up'!$E$4,$V1360-4,0))","v":""},{"$f":"IF(C1360=$X$4,\"Enter smelter details\", IF(ISERROR($V1360),\"\",OFFSET('Smelter Look-up'!$F$4,$V1360-4,0)))","v":""},{"$f":"IF(ISERROR($V1360),\"\",OFFSET('Smelter Look-up'!$G$4,$V1360-4,0))","v":""},{"$f":"IF(ISERROR($V1360),\"\",OFFSET('Smelter Look-up'!$H$4,$V1360-4,0))","v":""},{"$f":"IF(ISERROR($V1360),\"\",OFFSET('Smelter Look-up'!$I$4,$V1360-4,0))","v":""},{"$nulls":7},{"$f":"IF(ISERROR($V1360),\"\",OFFSET('Smelter Look-up'!$C$4,$V1360-4,0)&\"\")","v":""},"",{"$f":"IF(B1360=\"\",\"\",IF(ISERROR(MATCH($J1360,SorP!$B$1:$B$6230,0)),\"\",INDIRECT(\"'SorP'!$A$\"&MATCH($J1360,SorP!$B$1:$B$6230,0))))","v":""},null,{"$f":"IF(C1360=\"\",NA(),MATCH($B1360&$C1360,'Smelter Look-up'!$J:$J,0))","v":{"$error":"#N/A"}},null,0,null,null,null,""]
[null,{"$f":"IF(LEN(A1361)=0,\"\",INDEX('Smelter Look-up'!$A:$A,MATCH($A1361,'Smelter Look-up'!$E:$E,0)))","v":""},{"$f":"IF(LEN(A1361)=0,\"\",INDEX('Smelter Look-up'!$C:$C,MATCH($A1361,'Smelter Look-up'!$E:$E,0)))","v":""},null,{"$f":"IF(ISERROR($V1361),\"\",OFFSET('Smelter Look-up'!$D$4,$V1361-4,0)&\"\")","v":""},{"$f":"IF(ISERROR($V1361),\"\",OFFSET('Smelter Look-up'!$E$4,$V1361-4,0))","v":""},{"$f":"IF(C1361=$X$4,\"Enter smelter details\", IF(ISERROR($V1361),\"\",OFFSET('Smelter Look-up'!$F$4,$V1361-4,0)))","v":""},{"$f":"IF(ISERROR($V1361),\"\",OFFSET('Smelter Look-up'!$G$4,$V1361-4,0))","v":""},{"$f":"IF(ISERROR($V1361),\"\",OFFSET('Smelter Look-up'!$H$4,$V1361-4,0))","v":""},{"$f":"IF(ISERROR($V1361),\"\",OFFSET('Smelter Look-up'!$I$4,$V1361-4,0))","v":""},{"$nulls":7},{"$f":"IF(ISERROR($V1361),\"\",OFFSET('Smelter Look-up'!$C$4,$V1361-4,0)&\"\")","v":""},"",{"$f":"IF(B1361=\"\",\"\",IF(ISERROR(MATCH($J1361,SorP!$B$1:$B$6230,0)),\"\",INDIRECT(\"'SorP'!$A$\"&MATCH($J1361,SorP!$B$1:$B$6230,0))))","v":""},null,{"$f":"IF(C1361=\"\",NA(),MATCH($B1361&$C1361,'Smelter Look-up'!$J:$J,0))","v":{"$error":"#N/A"}},null,0,null,null,null,""]
[null,{"$f":"IF(LEN(A1362)=0,\"\",INDEX('Smelter Look-up'!$A:$A,MATCH($A1362,'Smelter Look-up'!$E:$E,0)))","v":""},{"$f":"IF(LEN(A1362)=0,\"\",INDEX('Smelter Look-up'!$C:$C,MATCH($A1362,'Smelter Look-up'!$E:$E,0)))","v":""},null,{"$f":"IF(ISERROR($V1362),\"\",OFFSET('Smelter Look-up'!$D$4,$V1362-4,0)&\"\")","v":""},{"$f":"IF(ISERROR($V1362),\"\",OFFSET('Smelter Look-up'!$E$4,$V1362-4,0))","v":""},{"$f":"IF(C1362=$X$4,\"Enter smelter details\", IF(ISERROR($V1362),\"\",OFFSET('Smelter Look-up'!$F$4,$V1362-4,0)))","v":""},{"$f":"IF(ISERROR($V1362),\"\",OFFSET('Smelter Look-up'!$G$4,$V1362-4,0))","v":""},{"$f":"IF(ISERROR($V1362),\"\",OFFSET('Smelter Look-up'!$H$4,$V1362-4,0))","v":""},{"$f":"IF(ISERROR($V1362),\"\",OFFSET('Smelter Look-up'!$I$4,$V1362-4,0))","v":""},{"$nulls":7},{"$f":"IF(ISERROR($V1362),\"\",OFFSET('Smelter Look-up'!$C$4,$V1362-4,0)&\"\")","v":""},"",{"$f":"IF(B1362=\"\",\"\",IF(ISERROR(MATCH($J1362,SorP!$B$1:$B$6230,0)),\"\",INDIRECT(\"'SorP'!$A$\"&MATCH($J1362,SorP!$B$1:$B$6230,0))))","v":""},null,{"$f":"IF(C1362=\"\",NA(),MATCH($B1362&$C1362,'Smelter Look-up'!$J:$J,0))","v":{"$error":"#N/A"}},null,0,null,null,null,""]
[null,{"$f":"IF(LEN(A1363)=0,\"\",INDEX('Smelter Look-up'!$A:$A,MATCH($A1363,'Smelter Look-up'!$E:$E,0)))","v":""},{"$f":"IF(LEN(A1363)=0,\"\",INDEX('Smelter Look-up'!$C:$C,MATCH($A1363,'Smelter Look-up'!$E:$E,0)))","v":""},null,{"$f":"IF(ISERROR($V1363),\"\",OFFSET('Smelter Look-up'!$D$4,$V1363-4,0)&\"\")","v":""},{"$f":"IF(ISERROR($V1363),\"\",OFFSET('Smelter Look-up'!$E$4,$V1363-4,0))","v":""},{"$f":"IF(C1363=$X$4,\"Enter smelter details\", IF(ISERROR($V1363),\"\",OFFSET('Smelter Look-up'!$F$4,$V1363-4,0)))","v":""},{"$f":"IF(ISERROR($V1363),\"\",OFFSET('Smelter Look-up'!$G$4,$V1363-4,0))","v":""},{"$f":"IF(ISERROR($V1363),\"\",OFFSET('Smelter Look-up'!$H$4,$V1363-4,0))","v":""},{"$f":"IF(ISERROR($V1363),\"\",OFFSET('Smelter Look-up'!$I$4,$V1363-4,0))","v":""},{"$nulls":7},{"$f":"IF(ISERROR($V1363),\"\",OFFSET('Smelter Look-up'!$C$4,$V1363-4,0)&\"\")","v":""},"",{"$f":"IF(B1363=\"\",\"\",IF(ISERROR(MATCH($J1363,SorP!$B$1:$B$6230,0)),\"\",INDIRECT(\"'SorP'!$A$\"&MATCH($J1363,SorP!$B$1:$B$6230,0))))","v":""},null,{"$f":"IF(C1363=\"\",NA(),MATCH($B1363&$C1363,'Smelter Look-up'!$J:$J,0))","v":{"$error":"#N/A"}},null,0,null,null,null,""]
[null,{"$f":"IF(LEN(A1364)=0,\"\",INDEX('Smelter Look-up'!$A:$A,MATCH($A1364,'Smelter Look-up'!$E:$E,0)))","v":""},{"$f":"IF(LEN(A1364)=0,\"\",INDEX('Smelter Look-up'!$C:$C,MATCH($A1364,'Smelter Look-up'!$E:$E,0)))","v":""},null,{"$f":"IF(ISERROR($V1364),\"\",OFFSET('Smelter Look-up'!$D$4,$V1364-4,0)&\"\")","v":""},{"$f":"IF(ISERROR($V1364),\"\",OFFSET('Smelter Look-up'!$E$4,$V1364-4,0))","v":""},{"$f":"IF(C1364=$X$4,\"Enter smelter details\", IF(ISERROR($V1364),\"\",OFFSET('Smelter Look-up'!$F$4,$V1364-4,0)))","v":""},{"$f":"IF(ISERROR($V1364),\"\",OFFSET('Smelter Look-up'!$G$4,$V1364-4,0))","v":""},{"$f":"IF(ISERROR($V1364),\"\",OFFSET('Smelter Look-up'!$H$4,$V1364-4,0))","v":""},{"$f":"IF(ISERROR($V1364),\"\",OFFSET('Smelter Look-up'!$I$4,$V1364-4,0))","v":""},{"$nulls":7},{"$f":"IF(ISERROR($V1364),\"\",OFFSET('Smelter Look-up'!$C$4,$V1364-4,0)&\"\")","v":""},"",{"$f":"IF(B1364=\"\",\"\",IF(ISERROR(MATCH($J1364,SorP!$B$1:$B$6230,0)),\"\",INDIRECT(\"'SorP'!$A$\"&MATCH($J1364,SorP!$B$1:$B$6230,0))))","v":""},null,{"$f":"IF(C1364=\"\",NA(),MATCH($B1364&$C1364,'Smelter Look-up'!$J:$J,0))","v":{"$error":"#N/A"}},null,0,null,null,null,""]
[null,{"$f":"IF(LEN(A1365)=0,\"\",INDEX('Smelter Look-up'!$A:$A,MATCH($A1365,'Smelter Look-up'!$E:$E,0)))","v":""},{"$f":"IF(LEN(A1365)=0,\"\",INDEX('Smelter Look-up'!$C:$C,MATCH($A1365,'Smelter Look-up'!$E:$E,0)))","v":""},null,{"$f":"IF(ISERROR($V1365),\"\",OFFSET('Smelter Look-up'!$D$4,$V1365-4,0)&\"\")","v":""},{"$f":"IF(ISERROR($V1365),\"\",OFFSET('Smelter Look-up'!$E$4,$V1365-4,0))","v":""},{"$f":"IF(C1365=$X$4,\"Enter smelter details\", IF(ISERROR($V1365),\"\",OFFSET('Smelter Look-up'!$F$4,$V1365-4,0)))","v":""},{"$f":"IF(ISERROR($V1365),\"\",OFFSET('Smelter Look-up'!$G$4,$V1365-4,0))","v":""},{"$f":"IF(ISERROR($V1365),\"\",OFFSET('Smelter Look-up'!$H$4,$V1365-4,0))","v":""},{"$f":"IF(ISERROR($V1365),\"\",OFFSET('Smelter Look-up'!$I$4,$V1365-4,0))","v":""},{"$nulls":7},{"$f":"IF(ISERROR($V1365),\"\",OFFSET('Smelter Look-up'!$C$4,$V1365-4,0)&\"\")","v":""},"",{"$f":"IF(B1365=\"\",\"\",IF(ISERROR(MATCH($J1365,SorP!$B$1:$B$6230,0)),\"\",INDIRECT(\"'SorP'!$A$\"&MATCH($J1365,SorP!$B$1:$B$6230,0))))","v":""},null,{"$f":"IF(C1365=\"\",NA(),MATCH($B1365&$C1365,'Smelter Look-up'!$J:$J,0))","v":{"$error":"#N/A"}},null,0,null,null,null,""]
[null,{"$f":"IF(LEN(A1366)=0,\"\",INDEX('Smelter Look-up'!$A:$A,MATCH($A1366,'Smelter Look-up'!$E:$E,0)))","v":""},{"$f":"IF(LEN(A1366)=0,\"\",INDEX('Smelter Look-up'!$C:$C,MATCH($A1366,'Smelter Look-up'!$E:$E,0)))","v":""},null,{"$f":"IF(ISERROR($V1366),\"\",OFFSET('Smelter Look-up'!$D$4,$V1366-4,0)&\"\")","v":""},{"$f":"IF(ISERROR($V1366),\"\",OFFSET('Smelter Look-up'!$E$4,$V1366-4,0))","v":""},{"$f":"IF(C1366=$X$4,\"Enter smelter details\", IF(ISERROR($V1366),\"\",OFFSET('Smelter Look-up'!$F$4,$V1366-4,0)))","v":""},{"$f":"IF(ISERROR($V1366),\"\",OFFSET('Smelter Look-up'!$G$4,$V1366-4,0))","v":""},{"$f":"IF(ISERROR($V1366),\"\",OFFSET('Smelter Look-up'!$H$4,$V1366-4,0))","v":""},{"$f":"IF(ISERROR($V1366),\"\",OFFSET('Smelter Look-up'!$I$4,$V1366-4,0))","v":""},{"$nulls":7},{"$f":"IF(ISERROR($V1366),\"\",OFFSET('Smelter Look-up'!$C$4,$V1366-4,0)&\"\")","v":""},"",{"$f":"IF(B1366=\"\",\"\",IF(ISERROR(MATCH($J1366,SorP!$B$1:$B$6230,0)),\"\",INDIRECT(\"'SorP'!$A$\"&MATCH($J1366,SorP!$B$1:$B$6230,0))))","v":""},null,{"$f":"IF(C1366=\"\",NA(),MATCH($B1366&$C1366,'Smelter Look-up'!$J:$J,0))","v":{"$error":"#N/A"}},null,0,null,null,null,""]
[null,{"$f":"IF(LEN(A1367)=0,\"\",INDEX('Smelter Look-up'!$A:$A,MATCH($A1367,'Smelter Look-up'!$E:$E,0)))","v":""},{"$f":"IF(LEN(A1367)=0,\"\",INDEX('Smelter Look-up'!$C:$C,MATCH($A1367,'Smelter Look-up'!$E:$E,0)))","v":""},null,{"$f":"IF(ISERROR($V1367),\"\",OFFSET('Smelter Look-up'!$D$4,$V1367-4,0)&\"\")","v":""},{"$f":"IF(ISERROR($V1367),\"\",OFFSET('Smelter Look-up'!$E$4,$V1367-4,0))","v":""},{"$f":"IF(C1367=$X$4,\"Enter smelter details\", IF(ISERROR($V1367),\"\",OFFSET('Smelter Look-up'!$F$4,$V1367-4,0)))","v":""},{"$f":"IF(ISERROR($V1367),\"\",OFFSET('Smelter Look-up'!$G$4,$V1367-4,0))","v":""},{"$f":"IF(ISERROR($V1367),\"\",OFFSET('Smelter Look-up'!$H$4,$V1367-4,0))","v":""},{"$f":"IF(ISERROR($V1367),\"\",OFFSET('Smelter Look-up'!$I$4,$V1367-4,0))","v":""},{"$nulls":7},{"$f":"IF(ISERROR($V1367),\"\",OFFSET('Smelter Look-up'!$C$4,$V1367-4,0)&\"\")","v":""},"",{"$f":"IF(B1367=\"\",\"\",IF(ISERROR(MATCH($J1367,SorP!$B$1:$B$6230,0)),\"\",INDIRECT(\"'SorP'!$A$\"&MATCH($J1367,SorP!$B$1:$B$6230,0))))","v":""},null,{"$f":"IF(C1367=\"\",NA(),MATCH($B1367&$C1367,'Smelter Look-up'!$J:$J,0))","v":{"$error":"#N/A"}},null,0,null,null,null,""]
[null,{"$f":"IF(LEN(A1368)=0,\"\",INDEX('Smelter Look-up'!$A:$A,MATCH($A1368,'Smelter Look-up'!$E:$E,0)))","v":""},{"$f":"IF(LEN(A1368)=0,\"\",INDEX('Smelter Look-up'!$C:$C,MATCH($A1368,'Smelter Look-up'!$E:$E,0)))","v":""},null,{"$f":"IF(ISERROR($V1368),\"\",OFFSET('Smelter Look-up'!$D$4,$V1368-4,0)&\"\")","v":""},{"$f":"IF(ISERROR($V1368),\"\",OFFSET('Smelter Look-up'!$E$4,$V1368-4,0))","v":""},{"$f":"IF(C1368=$X$4,\"Enter smelter details\", IF(ISERROR($V1368),\"\",OFFSET('Smelter Look-up'!$F$4,$V1368-4,0)))","v":""},{"$f":"IF(ISERROR($V1368),\"\",OFFSET('Smelter Look-up'!$G$4,$V1368-4,0))","v":""},{"$f":"IF(ISERROR($V1368),\"\",OFFSET('Smelter Look-up'!$H$4,$V1368-4,0))","v":""},{"$f":"IF(ISERROR($V1368),\"\",OFFSET('Smelter Look-up'!$I$4,$V1368-4,0))","v":""},{"$nulls":7},{"$f":"IF(ISERROR($V1368),\"\",OFFSET('Smelter Look-up'!$C$4,$V1368-4,0)&\"\")","v":""},"",{"$f":"IF(B1368=\"\",\"\",IF(ISERROR(MATCH($J1368,SorP!$B$1:$B$6230,0)),\"\",INDIRECT(\"'SorP'!$A$\"&MATCH($J1368,SorP!$B$1:$B$6230,0))))","v":""},null,{"$f":"IF(C1368=\"\",NA(),MATCH($B1368&$C1368,'Smelter Look-up'!$J:$J,0))","v":{"$error":"#N/A"}},null,0,null,null,null,""]
[null,{"$f":"IF(LEN(A1369)=0,\"\",INDEX('Smelter Look-up'!$A:$A,MATCH($A1369,'Smelter Look-up'!$E:$E,0)))","v":""},{"$f":"IF(LEN(A1369)=0,\"\",INDEX('Smelter Look-up'!$C:$C,MATCH($A1369,'Smelter Look-up'!$E:$E,0)))","v":""},null,{"$f":"IF(ISERROR($V1369),\"\",OFFSET('Smelter Look-up'!$D$4,$V1369-4,0)&\"\")","v":""},{"$f":"IF(ISERROR($V1369),\"\",OFFSET('Smelter Look-up'!$E$4,$V1369-4,0))","v":""},{"$f":"IF(C1369=$X$4,\"Enter smelter details\", IF(ISERROR($V1369),\"\",OFFSET('Smelter Look-up'!$F$4,$V1369-4,0)))","v":""},{"$f":"IF(ISERROR($V1369),\"\",OFFSET('Smelter Look-up'!$G$4,$V1369-4,0))","v":""},{"$f":"IF(ISERROR($V1369),\"\",OFFSET('Smelter Look-up'!$H$4,$V1369-4,0))","v":""},{"$f":"IF(ISERROR($V1369),\"\",OFFSET('Smelter Look-up'!$I$4,$V1369-4,0))","v":""},{"$nulls":7},{"$f":"IF(ISERROR($V1369),\"\",OFFSET('Smelter Look-up'!$C$4,$V1369-4,0)&\"\")","v":""},"",{"$f":"IF(B1369=\"\",\"\",IF(ISERROR(MATCH($J1369,SorP!$B$1:$B$6230,0)),\"\",INDIRECT(\"'SorP'!$A$\"&MATCH($J1369,SorP!$B$1:$B$6230,0))))","v":""},null,{"$f":"IF(C1369=\"\",NA(),MATCH($B1369&$C1369,'Smelter Look-up'!$J:$J,0))","v":{"$error":"#N/A"}},null,0,null,null,null,""]
[null,{"$f":"IF(LEN(A1370)=0,\"\",INDEX('Smelter Look-up'!$A:$A,MATCH($A1370,'Smelter Look-up'!$E:$E,0)))","v":""},{"$f":"IF(LEN(A1370)=0,\"\",INDEX('Smelter Look-up'!$C:$C,MATCH($A1370,'Smelter Look-up'!$E:$E,0)))","v":""},null,{"$f":"IF(ISERROR($V1370),\"\",OFFSET('Smelter Look-up'!$D$4,$V1370-4,0)&\"\")","v":""},{"$f":"IF(ISERROR($V1370),\"\",OFFSET('Smelter Look-up'!$E$4,$V1370-4,0))","v":""},{"$f":"IF(C1370=$X$4,\"Enter smelter details\", IF(ISERROR($V1370),\"\",OFFSET('Smelter Look-up'!$F$4,$V1370-4,0)))","v":""},{"$f":"IF(ISERROR($V1370),\"\",OFFSET('Smelter Look-up'!$G$4,$V1370-4,0))","v":""},{"$f":"IF(ISERROR($V1370),\"\",OFFSET('Smelter Look-up'!$H$4,$V1370-4,0))","v":""},{"$f":"IF(ISERROR($V1370),\"\",OFFSET('Smelter Look-up'!$I$4,$V1370-4,0))","v":""},{"$nulls":7},{"$f":"IF(ISERROR($V1370),\"\",OFFSET('Smelter Look-up'!$C$4,$V1370-4,0)&\"\")","v":""},"",{"$f":"IF(B1370=\"\",\"\",IF(ISERROR(MATCH($J1370,SorP!$B$1:$B$6230,0)),\"\",INDIRECT(\"'SorP'!$A$\"&MATCH($J1370,SorP!$B$1:$B$6230,0))))","v":""},null,{"$f":"IF(C1370=\"\",NA(),MATCH($B1370&$C1370,'Smelter Look-up'!$J:$J,0))","v":{"$error":"#N/A"}},null,0,null,null,null,""]
[null,{"$f":"IF(LEN(A1371)=0,\"\",INDEX('Smelter Look-up'!$A:$A,MATCH($A1371,'Smelter Look-up'!$E:$E,0)))","v":""},{"$f":"IF(LEN(A1371)=0,\"\",INDEX('Smelter Look-up'!$C:$C,MATCH($A1371,'Smelter Look-up'!$E:$E,0)))","v":""},null,{"$f":"IF(ISERROR($V1371),\"\",OFFSET('Smelter Look-up'!$D$4,$V1371-4,0)&\"\")","v":""},{"$f":"IF(ISERROR($V1371),\"\",OFFSET('Smelter Look-up'!$E$4,$V1371-4,0))","v":""},{"$f":"IF(C1371=$X$4,\"Enter smelter details\", IF(ISERROR($V1371),\"\",OFFSET('Smelter Look-up'!$F$4,$V1371-4,0)))","v":""},{"$f":"IF(ISERROR($V1371),\"\",OFFSET('Smelter Look-up'!$G$4,$V1371-4,0))","v":""},{"$f":"IF(ISERROR($V1371),\"\",OFFSET('Smelter Look-up'!$H$4,$V1371-4,0))","v":""},{"$f":"IF(ISERROR($V1371),\"\",OFFSET('Smelter Look-up'!$I$4,$V1371-4,0))","v":""},{"$nulls":7},{"$f":"IF(ISERROR($V1371),\"\",OFFSET('Smelter Look-up'!$C$4,$V1371-4,0)&\"\")","v":""},"",{"$f":"IF(B1371=\"\",\"\",IF(ISERROR(MATCH($J1371,SorP!$B$1:$B$6230,0)),\"\",INDIRECT(\"'SorP'!$A$\"&MATCH($J1371,SorP!$B$1:$B$6230,0))))","v":""},null,{"$f":"IF(C1371=\"\",NA(),MATCH($B1371&$C1371,'Smelter Look-up'!$J:$J,0))","v":{"$error":"#N/A"}},null,0,null,null,null,""]
[null,{"$f":"IF(LEN(A1372)=0,\"\",INDEX('Smelter Look-up'!$A:$A,MATCH($A1372,'Smelter Look-up'!$E:$E,0)))","v":""},{"$f":"IF(LEN(A1372)=0,\"\",INDEX('Smelter Look-up'!$C:$C,MATCH($A1372,'Smelter Look-up'!$E:$E,0)))","v":""},null,{"$f":"IF(ISERROR($V1372),\"\",OFFSET('Smelter Look-up'!$D$4,$V1372-4,0)&\"\")","v":""},{"$f":"IF(ISERROR($V1372),\"\",OFFSET('Smelter Look-up'!$E$4,$V1372-4,0))","v":""},{"$f":"IF(C1372=$X$4,\"Enter smelter details\", IF(ISERROR($V1372),\"\",OFFSET('Smelter Look-up'!$F$4,$V1372-4,0)))","v":""},{"$f":"IF(ISERROR($V1372),\"\",OFFSET('Smelter Look-up'!$G$4,$V1372-4,0))","v":""},{"$f":"IF(ISERROR($V1372),\"\",OFFSET('Smelter Look-up'!$H$4,$V1372-4,0))","v":""},{"$f":"IF(ISERROR($V1372),\"\",OFFSET('Smelter Look-up'!$I$4,$V1372-4,0))","v":""},{"$nulls":7},{"$f":"IF(ISERROR($V1372),\"\",OFFSET('Smelter Look-up'!$C$4,$V1372-4,0)&\"\")","v":""},"",{"$f":"IF(B1372=\"\",\"\",IF(ISERROR(MATCH($J1372,SorP!$B$1:$B$6230,0)),\"\",INDIRECT(\"'SorP'!$A$\"&MATCH($J1372,SorP!$B$1:$B$6230,0))))","v":""},null,{"$f":"IF(C1372=\"\",NA(),MATCH($B1372&$C1372,'Smelter Look-up'!$J:$J,0))","v":{"$error":"#N/A"}},null,0,null,null,null,""]
[null,{"$f":"IF(LEN(A1373)=0,\"\",INDEX('Smelter Look-up'!$A:$A,MATCH($A1373,'Smelter Look-up'!$E:$E,0)))","v":""},{"$f":"IF(LEN(A1373)=0,\"\",INDEX('Smelter Look-up'!$C:$C,MATCH($A1373,'Smelter Look-up'!$E:$E,0)))","v":""},null,{"$f":"IF(ISERROR($V1373),\"\",OFFSET('Smelter Look-up'!$D$4,$V1373-4,0)&\"\")","v":""},{"$f":"IF(ISERROR($V1373),\"\",OFFSET('Smelter Look-up'!$E$4,$V1373-4,0))","v":""},{"$f":"IF(C1373=$X$4,\"Enter smelter details\", IF(ISERROR($V1373),\"\",OFFSET('Smelter Look-up'!$F$4,$V1373-4,0)))","v":""},{"$f":"IF(ISERROR($V1373),\"\",OFFSET('Smelter Look-up'!$G$4,$V1373-4,0))","v":""},{"$f":"IF(ISERROR($V1373),\"\",OFFSET('Smelter Look-up'!$H$4,$V1373-4,0))","v":""},{"$f":"IF(ISERROR($V1373),\"\",OFFSET('Smelter Look-up'!$I$4,$V1373-4,0))","v":""},{"$nulls":7},{"$f":"IF(ISERROR($V1373),\"\",OFFSET('Smelter Look-up'!$C$4,$V1373-4,0)&\"\")","v":""},"",{"$f":"IF(B1373=\"\",\"\",IF(ISERROR(MATCH($J1373,SorP!$B$1:$B$6230,0)),\"\",INDIRECT(\"'SorP'!$A$\"&MATCH($J1373,SorP!$B$1:$B$6230,0))))","v":""},null,{"$f":"IF(C1373=\"\",NA(),MATCH($B1373&$C1373,'Smelter Look-up'!$J:$J,0))","v":{"$error":"#N/A"}},null,0,null,null,null,""]
[null,{"$f":"IF(LEN(A1374)=0,\"\",INDEX('Smelter Look-up'!$A:$A,MATCH($A1374,'Smelter Look-up'!$E:$E,0)))","v":""},{"$f":"IF(LEN(A1374)=0,\"\",INDEX('Smelter Look-up'!$C:$C,MATCH($A1374,'Smelter Look-up'!$E:$E,0)))","v":""},null,{"$f":"IF(ISERROR($V1374),\"\",OFFSET('Smelter Look-up'!$D$4,$V1374-4,0)&\"\")","v":""},{"$f":"IF(ISERROR($V1374),\"\",OFFSET('Smelter Look-up'!$E$4,$V1374-4,0))","v":""},{"$f":"IF(C1374=$X$4,\"Enter smelter details\", IF(ISERROR($V1374),\"\",OFFSET('Smelter Look-up'!$F$4,$V1374-4,0)))","v":""},{"$f":"IF(ISERROR($V1374),\"\",OFFSET('Smelter Look-up'!$G$4,$V1374-4,0))","v":""},{"$f":"IF(ISERROR($V1374),\"\",OFFSET('Smelter Look-up'!$H$4,$V1374-4,0))","v":""},{"$f":"IF(ISERROR($V1374),\"\",OFFSET('Smelter Look-up'!$I$4,$V1374-4,0))","v":""},{"$nulls":7},{"$f":"IF(ISERROR($V1374),\"\",OFFSET('Smelter Look-up'!$C$4,$V1374-4,0)&\"\")","v":""},"",{"$f":"IF(B1374=\"\",\"\",IF(ISERROR(MATCH($J1374,SorP!$B$1:$B$6230,0)),\"\",INDIRECT(\"'SorP'!$A$\"&MATCH($J1374,SorP!$B$1:$B$6230,0))))","v":""},null,{"$f":"IF(C1374=\"\",NA(),MATCH($B1374&$C1374,'Smelter Look-up'!$J:$J,0))","v":{"$error":"#N/A"}},null,0,null,null,null,""]
[null,{"$f":"IF(LEN(A1375)=0,\"\",INDEX('Smelter Look-up'!$A:$A,MATCH($A1375,'Smelter Look-up'!$E:$E,0)))","v":""},{"$f":"IF(LEN(A1375)=0,\"\",INDEX('Smelter Look-up'!$C:$C,MATCH($A1375,'Smelter Look-up'!$E:$E,0)))","v":""},null,{"$f":"IF(ISERROR($V1375),\"\",OFFSET('Smelter Look-up'!$D$4,$V1375-4,0)&\"\")","v":""},{"$f":"IF(ISERROR($V1375),\"\",OFFSET('Smelter Look-up'!$E$4,$V1375-4,0))","v":""},{"$f":"IF(C1375=$X$4,\"Enter smelter details\", IF(ISERROR($V1375),\"\",OFFSET('Smelter Look-up'!$F$4,$V1375-4,0)))","v":""},{"$f":"IF(ISERROR($V1375),\"\",OFFSET('Smelter Look-up'!$G$4,$V1375-4,0))","v":""},{"$f":"IF(ISERROR($V1375),\"\",OFFSET('Smelter Look-up'!$H$4,$V1375-4,0))","v":""},{"$f":"IF(ISERROR($V1375),\"\",OFFSET('Smelter Look-up'!$I$4,$V1375-4,0))","v":""},{"$nulls":7},{"$f":"IF(ISERROR($V1375),\"\",OFFSET('Smelter Look-up'!$C$4,$V1375-4,0)&\"\")","v":""},"",{"$f":"IF(B1375=\"\",\"\",IF(ISERROR(MATCH($J1375,SorP!$B$1:$B$6230,0)),\"\",INDIRECT(\"'SorP'!$A$\"&MATCH($J1375,SorP!$B$1:$B$6230,0))))","v":""},null,{"$f":"IF(C1375=\"\",NA(),MATCH($B1375&$C1375,'Smelter Look-up'!$J:$J,0))","v":{"$error":"#N/A"}},null,0,null,null,null,""]
[null,{"$f":"IF(LEN(A1376)=0,\"\",INDEX('Smelter Look-up'!$A:$A,MATCH($A1376,'Smelter Look-up'!$E:$E,0)))","v":""},{"$f":"IF(LEN(A1376)=0,\"\",INDEX('Smelter Look-up'!$C:$C,MATCH($A1376,'Smelter Look-up'!$E:$E,0)))","v":""},null,{"$f":"IF(ISERROR($V1376),\"\",OFFSET('Smelter Look-up'!$D$4,$V1376-4,0)&\"\")","v":""},{"$f":"IF(ISERROR($V1376),\"\",OFFSET('Smelter Look-up'!$E$4,$V1376-4,0))","v":""},{"$f":"IF(C1376=$X$4,\"Enter smelter details\", IF(ISERROR($V1376),\"\",OFFSET('Smelter Look-up'!$F$4,$V1376-4,0)))","v":""},{"$f":"IF(ISERROR($V1376),\"\",OFFSET('Smelter Look-up'!$G$4,$V1376-4,0))","v":""},{"$f":"IF(ISERROR($V1376),\"\",OFFSET('Smelter Look-up'!$H$4,$V1376-4,0))","v":""},{"$f":"IF(ISERROR($V1376),\"\",OFFSET('Smelter Look-up'!$I$4,$V1376-4,0))","v":""},{"$nulls":7},{"$f":"IF(ISERROR($V1376),\"\",OFFSET('Smelter Look-up'!$C$4,$V1376-4,0)&\"\")","v":""},"",{"$f":"IF(B1376=\"\",\"\",IF(ISERROR(MATCH($J1376,SorP!$B$1:$B$6230,0)),\"\",INDIRECT(\"'SorP'!$A$\"&MATCH($J1376,SorP!$B$1:$B$6230,0))))","v":""},null,{"$f":"IF(C1376=\"\",NA(),MATCH($B1376&$C1376,'Smelter Look-up'!$J:$J,0))","v":{"$error":"#N/A"}},null,0,null,null,null,""]
[null,{"$f":"IF(LEN(A1377)=0,\"\",INDEX('Smelter Look-up'!$A:$A,MATCH($A1377,'Smelter Look-up'!$E:$E,0)))","v":""},{"$f":"IF(LEN(A1377)=0,\"\",INDEX('Smelter Look-up'!$C:$C,MATCH($A1377,'Smelter Look-up'!$E:$E,0)))","v":""},null,{"$f":"IF(ISERROR($V1377),\"\",OFFSET('Smelter Look-up'!$D$4,$V1377-4,0)&\"\")","v":""},{"$f":"IF(ISERROR($V1377),\"\",OFFSET('Smelter Look-up'!$E$4,$V1377-4,0))","v":""},{"$f":"IF(C1377=$X$4,\"Enter smelter details\", IF(ISERROR($V1377),\"\",OFFSET('Smelter Look-up'!$F$4,$V1377-4,0)))","v":""},{"$f":"IF(ISERROR($V1377),\"\",OFFSET('Smelter Look-up'!$G$4,$V1377-4,0))","v":""},{"$f":"IF(ISERROR($V1377),\"\",OFFSET('Smelter Look-up'!$H$4,$V1377-4,0))","v":""},{"$f":"IF(ISERROR($V1377),\"\",OFFSET('Smelter Look-up'!$I$4,$V1377-4,0))","v":""},{"$nulls":7},{"$f":"IF(ISERROR($V1377),\"\",OFFSET('Smelter Look-up'!$C$4,$V1377-4,0)&\"\")","v":""},"",{"$f":"IF(B1377=\"\",\"\",IF(ISERROR(MATCH($J1377,SorP!$B$1:$B$6230,0)),\"\",INDIRECT(\"'SorP'!$A$\"&MATCH($J1377,SorP!$B$1:$B$6230,0))))","v":""},null,{"$f":"IF(C1377=\"\",NA(),MATCH($B1377&$C1377,'Smelter Look-up'!$J:$J,0))","v":{"$error":"#N/A"}},null,0,null,null,null,""]
[null,{"$f":"IF(LEN(A1378)=0,\"\",INDEX('Smelter Look-up'!$A:$A,MATCH($A1378,'Smelter Look-up'!$E:$E,0)))","v":""},{"$f":"IF(LEN(A1378)=0,\"\",INDEX('Smelter Look-up'!$C:$C,MATCH($A1378,'Smelter Look-up'!$E:$E,0)))","v":""},null,{"$f":"IF(ISERROR($V1378),\"\",OFFSET('Smelter Look-up'!$D$4,$V1378-4,0)&\"\")","v":""},{"$f":"IF(ISERROR($V1378),\"\",OFFSET('Smelter Look-up'!$E$4,$V1378-4,0))","v":""},{"$f":"IF(C1378=$X$4,\"Enter smelter details\", IF(ISERROR($V1378),\"\",OFFSET('Smelter Look-up'!$F$4,$V1378-4,0)))","v":""},{"$f":"IF(ISERROR($V1378),\"\",OFFSET('Smelter Look-up'!$G$4,$V1378-4,0))","v":""},{"$f":"IF(ISERROR($V1378),\"\",OFFSET('Smelter Look-up'!$H$4,$V1378-4,0))","v":""},{"$f":"IF(ISERROR($V1378),\"\",OFFSET('Smelter Look-up'!$I$4,$V1378-4,0))","v":""},{"$nulls":7},{"$f":"IF(ISERROR($V1378),\"\",OFFSET('Smelter Look-up'!$C$4,$V1378-4,0)&\"\")","v":""},"",{"$f":"IF(B1378=\"\",\"\",IF(ISERROR(MATCH($J1378,SorP!$B$1:$B$6230,0)),\"\",INDIRECT(\"'SorP'!$A$\"&MATCH($J1378,SorP!$B$1:$B$6230,0))))","v":""},null,{"$f":"IF(C1378=\"\",NA(),MATCH($B1378&$C1378,'Smelter Look-up'!$J:$J,0))","v":{"$error":"#N/A"}},null,0,null,null,null,""]
[null,{"$f":"IF(LEN(A1379)=0,\"\",INDEX('Smelter Look-up'!$A:$A,MATCH($A1379,'Smelter Look-up'!$E:$E,0)))","v":""},{"$f":"IF(LEN(A1379)=0,\"\",INDEX('Smelter Look-up'!$C:$C,MATCH($A1379,'Smelter Look-up'!$E:$E,0)))","v":""},null,{"$f":"IF(ISERROR($V1379),\"\",OFFSET('Smelter Look-up'!$D$4,$V1379-4,0)&\"\")","v":""},{"$f":"IF(ISERROR($V1379),\"\",OFFSET('Smelter Look-up'!$E$4,$V1379-4,0))","v":""},{"$f":"IF(C1379=$X$4,\"Enter smelter details\", IF(ISERROR($V1379),\"\",OFFSET('Smelter Look-up'!$F$4,$V1379-4,0)))","v":""},{"$f":"IF(ISERROR($V1379),\"\",OFFSET('Smelter Look-up'!$G$4,$V1379-4,0))","v":""},{"$f":"IF(ISERROR($V1379),\"\",OFFSET('Smelter Look-up'!$H$4,$V1379-4,0))","v":""},{"$f":"IF(ISERROR($V1379),\"\",OFFSET('Smelter Look-up'!$I$4,$V1379-4,0))","v":""},{"$nulls":7},{"$f":"IF(ISERROR($V1379),\"\",OFFSET('Smelter Look-up'!$C$4,$V1379-4,0)&\"\")","v":""},"",{"$f":"IF(B1379=\"\",\"\",IF(ISERROR(MATCH($J1379,SorP!$B$1:$B$6230,0)),\"\",INDIRECT(\"'SorP'!$A$\"&MATCH($J1379,SorP!$B$1:$B$6230,0))))","v":""},null,{"$f":"IF(C1379=\"\",NA(),MATCH($B1379&$C1379,'Smelter Look-up'!$J:$J,0))","v":{"$error":"#N/A"}},null,0,null,null,null,""]
[null,{"$f":"IF(LEN(A1380)=0,\"\",INDEX('Smelter Look-up'!$A:$A,MATCH($A1380,'Smelter Look-up'!$E:$E,0)))","v":""},{"$f":"IF(LEN(A1380)=0,\"\",INDEX('Smelter Look-up'!$C:$C,MATCH($A1380,'Smelter Look-up'!$E:$E,0)))","v":""},null,{"$f":"IF(ISERROR($V1380),\"\",OFFSET('Smelter Look-up'!$D$4,$V1380-4,0)&\"\")","v":""},{"$f":"IF(ISERROR($V1380),\"\",OFFSET('Smelter Look-up'!$E$4,$V1380-4,0))","v":""},{"$f":"IF(C1380=$X$4,\"Enter smelter details\", IF(ISERROR($V1380),\"\",OFFSET('Smelter Look-up'!$F$4,$V1380-4,0)))","v":""},{"$f":"IF(ISERROR($V1380),\"\",OFFSET('Smelter Look-up'!$G$4,$V1380-4,0))","v":""},{"$f":"IF(ISERROR($V1380),\"\",OFFSET('Smelter Look-up'!$H$4,$V1380-4,0))","v":""},{"$f":"IF(ISERROR($V1380),\"\",OFFSET('Smelter Look-up'!$I$4,$V1380-4,0))","v":""},{"$nulls":7},{"$f":"IF(ISERROR($V1380),\"\",OFFSET('Smelter Look-up'!$C$4,$V1380-4,0)&\"\")","v":""},"",{"$f":"IF(B1380=\"\",\"\",IF(ISERROR(MATCH($J1380,SorP!$B$1:$B$6230,0)),\"\",INDIRECT(\"'SorP'!$A$\"&MATCH($J1380,SorP!$B$1:$B$6230,0))))","v":""},null,{"$f":"IF(C1380=\"\",NA(),MATCH($B1380&$C1380,'Smelter Look-up'!$J:$J,0))","v":{"$error":"#N/A"}},null,0,null,null,null,""]
[null,{"$f":"IF(LEN(A1381)=0,\"\",INDEX('Smelter Look-up'!$A:$A,MATCH($A1381,'Smelter Look-up'!$E:$E,0)))","v":""},{"$f":"IF(LEN(A1381)=0,\"\",INDEX('Smelter Look-up'!$C:$C,MATCH($A1381,'Smelter Look-up'!$E:$E,0)))","v":""},null,{"$f":"IF(ISERROR($V1381),\"\",OFFSET('Smelter Look-up'!$D$4,$V1381-4,0)&\"\")","v":""},{"$f":"IF(ISERROR($V1381),\"\",OFFSET('Smelter Look-up'!$E$4,$V1381-4,0))","v":""},{"$f":"IF(C1381=$X$4,\"Enter smelter details\", IF(ISERROR($V1381),\"\",OFFSET('Smelter Look-up'!$F$4,$V1381-4,0)))","v":""},{"$f":"IF(ISERROR($V1381),\"\",OFFSET('Smelter Look-up'!$G$4,$V1381-4,0))","v":""},{"$f":"IF(ISERROR($V1381),\"\",OFFSET('Smelter Look-up'!$H$4,$V1381-4,0))","v":""},{"$f":"IF(ISERROR($V1381),\"\",OFFSET('Smelter Look-up'!$I$4,$V1381-4,0))","v":""},{"$nulls":7},{"$f":"IF(ISERROR($V1381),\"\",OFFSET('Smelter Look-up'!$C$4,$V1381-4,0)&\"\")","v":""},"",{"$f":"IF(B1381=\"\",\"\",IF(ISERROR(MATCH($J1381,SorP!$B$1:$B$6230,0)),\"\",INDIRECT(\"'SorP'!$A$\"&MATCH($J1381,SorP!$B$1:$B$6230,0))))","v":""},null,{"$f":"IF(C1381=\"\",NA(),MATCH($B1381&$C1381,'Smelter Look-up'!$J:$J,0))","v":{"$error":"#N/A"}},null,0,null,null,null,""]
[null,{"$f":"IF(LEN(A1382)=0,\"\",INDEX('Smelter Look-up'!$A:$A,MATCH($A1382,'Smelter Look-up'!$E:$E,0)))","v":""},{"$f":"IF(LEN(A1382)=0,\"\",INDEX('Smelter Look-up'!$C:$C,MATCH($A1382,'Smelter Look-up'!$E:$E,0)))","v":""},null,{"$f":"IF(ISERROR($V1382),\"\",OFFSET('Smelter Look-up'!$D$4,$V1382-4,0)&\"\")","v":""},{"$f":"IF(ISERROR($V1382),\"\",OFFSET('Smelter Look-up'!$E$4,$V1382-4,0))","v":""},{"$f":"IF(C1382=$X$4,\"Enter smelter details\", IF(ISERROR($V1382),\"\",OFFSET('Smelter Look-up'!$F$4,$V1382-4,0)))","v":""},{"$f":"IF(ISERROR($V1382),\"\",OFFSET('Smelter Look-up'!$G$4,$V1382-4,0))","v":""},{"$f":"IF(ISERROR($V1382),\"\",OFFSET('Smelter Look-up'!$H$4,$V1382-4,0))","v":""},{"$f":"IF(ISERROR($V1382),\"\",OFFSET('Smelter Look-up'!$I$4,$V1382-4,0))","v":""},{"$nulls":7},{"$f":"IF(ISERROR($V1382),\"\",OFFSET('Smelter Look-up'!$C$4,$V1382-4,0)&\"\")","v":""},"",{"$f":"IF(B1382=\"\",\"\",IF(ISERROR(MATCH($J1382,SorP!$B$1:$B$6230,0)),\"\",INDIRECT(\"'SorP'!$A$\"&MATCH($J1382,SorP!$B$1:$B$6230,0))))","v":""},null,{"$f":"IF(C1382=\"\",NA(),MATCH($B1382&$C1382,'Smelter Look-up'!$J:$J,0))","v":{"$error":"#N/A"}},null,0,null,null,null,""]
[null,{"$f":"IF(LEN(A1383)=0,\"\",INDEX('Smelter Look-up'!$A:$A,MATCH($A1383,'Smelter Look-up'!$E:$E,0)))","v":""},{"$f":"IF(LEN(A1383)=0,\"\",INDEX('Smelter Look-up'!$C:$C,MATCH($A1383,'Smelter Look-up'!$E:$E,0)))","v":""},null,{"$f":"IF(ISERROR($V1383),\"\",OFFSET('Smelter Look-up'!$D$4,$V1383-4,0)&\"\")","v":""},{"$f":"IF(ISERROR($V1383),\"\",OFFSET('Smelter Look-up'!$E$4,$V1383-4,0))","v":""},{"$f":"IF(C1383=$X$4,\"Enter smelter details\", IF(ISERROR($V1383),\"\",OFFSET('Smelter Look-up'!$F$4,$V1383-4,0)))","v":""},{"$f":"IF(ISERROR($V1383),\"\",OFFSET('Smelter Look-up'!$G$4,$V1383-4,0))","v":""},{"$f":"IF(ISERROR($V1383),\"\",OFFSET('Smelter Look-up'!$H$4,$V1383-4,0))","v":""},{"$f":"IF(ISERROR($V1383),\"\",OFFSET('Smelter Look-up'!$I$4,$V1383-4,0))","v":""},{"$nulls":7},{"$f":"IF(ISERROR($V1383),\"\",OFFSET('Smelter Look-up'!$C$4,$V1383-4,0)&\"\")","v":""},"",{"$f":"IF(B1383=\"\",\"\",IF(ISERROR(MATCH($J1383,SorP!$B$1:$B$6230,0)),\"\",INDIRECT(\"'SorP'!$A$\"&MATCH($J1383,SorP!$B$1:$B$6230,0))))","v":""},null,{"$f":"IF(C1383=\"\",NA(),MATCH($B1383&$C1383,'Smelter Look-up'!$J:$J,0))","v":{"$error":"#N/A"}},null,0,null,null,null,""]
[null,{"$f":"IF(LEN(A1384)=0,\"\",INDEX('Smelter Look-up'!$A:$A,MATCH($A1384,'Smelter Look-up'!$E:$E,0)))","v":""},{"$f":"IF(LEN(A1384)=0,\"\",INDEX('Smelter Look-up'!$C:$C,MATCH($A1384,'Smelter Look-up'!$E:$E,0)))","v":""},null,{"$f":"IF(ISERROR($V1384),\"\",OFFSET('Smelter Look-up'!$D$4,$V1384-4,0)&\"\")","v":""},{"$f":"IF(ISERROR($V1384),\"\",OFFSET('Smelter Look-up'!$E$4,$V1384-4,0))","v":""},{"$f":"IF(C1384=$X$4,\"Enter smelter details\", IF(ISERROR($V1384),\"\",OFFSET('Smelter Look-up'!$F$4,$V1384-4,0)))","v":""},{"$f":"IF(ISERROR($V1384),\"\",OFFSET('Smelter Look-up'!$G$4,$V1384-4,0))","v":""},{"$f":"IF(ISERROR($V1384),\"\",OFFSET('Smelter Look-up'!$H$4,$V1384-4,0))","v":""},{"$f":"IF(ISERROR($V1384),\"\",OFFSET('Smelter Look-up'!$I$4,$V1384-4,0))","v":""},{"$nulls":7},{"$f":"IF(ISERROR($V1384),\"\",OFFSET('Smelter Look-up'!$C$4,$V1384-4,0)&\"\")","v":""},"",{"$f":"IF(B1384=\"\",\"\",IF(ISERROR(MATCH($J1384,SorP!$B$1:$B$6230,0)),\"\",INDIRECT(\"'SorP'!$A$\"&MATCH($J1384,SorP!$B$1:$B$6230,0))))","v":""},null,{"$f":"IF(C1384=\"\",NA(),MATCH($B1384&$C1384,'Smelter Look-up'!$J:$J,0))","v":{"$error":"#N/A"}},null,0,null,null,null,""]
[null,{"$f":"IF(LEN(A1385)=0,\"\",INDEX('Smelter Look-up'!$A:$A,MATCH($A1385,'Smelter Look-up'!$E:$E,0)))","v":""},{"$f":"IF(LEN(A1385)=0,\"\",INDEX('Smelter Look-up'!$C:$C,MATCH($A1385,'Smelter Look-up'!$E:$E,0)))","v":""},null,{"$f":"IF(ISERROR($V1385),\"\",OFFSET('Smelter Look-up'!$D$4,$V1385-4,0)&\"\")","v":""},{"$f":"IF(ISERROR($V1385),\"\",OFFSET('Smelter Look-up'!$E$4,$V1385-4,0))","v":""},{"$f":"IF(C1385=$X$4,\"Enter smelter details\", IF(ISERROR($V1385),\"\",OFFSET('Smelter Look-up'!$F$4,$V1385-4,0)))","v":""},{"$f":"IF(ISERROR($V1385),\"\",OFFSET('Smelter Look-up'!$G$4,$V1385-4,0))","v":""},{"$f":"IF(ISERROR($V1385),\"\",OFFSET('Smelter Look-up'!$H$4,$V1385-4,0))","v":""},{"$f":"IF(ISERROR($V1385),\"\",OFFSET('Smelter Look-up'!$I$4,$V1385-4,0))","v":""},{"$nulls":7},{"$f":"IF(ISERROR($V1385),\"\",OFFSET('Smelter Look-up'!$C$4,$V1385-4,0)&\"\")","v":""},"",{"$f":"IF(B1385=\"\",\"\",IF(ISERROR(MATCH($J1385,SorP!$B$1:$B$6230,0)),\"\",INDIRECT(\"'SorP'!$A$\"&MATCH($J1385,SorP!$B$1:$B$6230,0))))","v":""},null,{"$f":"IF(C1385=\"\",NA(),MATCH($B1385&$C1385,'Smelter Look-up'!$J:$J,0))","v":{"$error":"#N/A"}},null,0,null,null,null,""]
[null,{"$f":"IF(LEN(A1386)=0,\"\",INDEX('Smelter Look-up'!$A:$A,MATCH($A1386,'Smelter Look-up'!$E:$E,0)))","v":""},{"$f":"IF(LEN(A1386)=0,\"\",INDEX('Smelter Look-up'!$C:$C,MATCH($A1386,'Smelter Look-up'!$E:$E,0)))","v":""},null,{"$f":"IF(ISERROR($V1386),\"\",OFFSET('Smelter Look-up'!$D$4,$V1386-4,0)&\"\")","v":""},{"$f":"IF(ISERROR($V1386),\"\",OFFSET('Smelter Look-up'!$E$4,$V1386-4,0))","v":""},{"$f":"IF(C1386=$X$4,\"Enter smelter details\", IF(ISERROR($V1386),\"\",OFFSET('Smelter Look-up'!$F$4,$V1386-4,0)))","v":""},{"$f":"IF(ISERROR($V1386),\"\",OFFSET('Smelter Look-up'!$G$4,$V1386-4,0))","v":""},{"$f":"IF(ISERROR($V1386),\"\",OFFSET('Smelter Look-up'!$H$4,$V1386-4,0))","v":""},{"$f":"IF(ISERROR($V1386),\"\",OFFSET('Smelter Look-up'!$I$4,$V1386-4,0))","v":""},{"$nulls":7},{"$f":"IF(ISERROR($V1386),\"\",OFFSET('Smelter Look-up'!$C$4,$V1386-4,0)&\"\")","v":""},"",{"$f":"IF(B1386=\"\",\"\",IF(ISERROR(MATCH($J1386,SorP!$B$1:$B$6230,0)),\"\",INDIRECT(\"'SorP'!$A$\"&MATCH($J1386,SorP!$B$1:$B$6230,0))))","v":""},null,{"$f":"IF(C1386=\"\",NA(),MATCH($B1386&$C1386,'Smelter Look-up'!$J:$J,0))","v":{"$error":"#N/A"}},null,0,null,null,null,""]
[null,{"$f":"IF(LEN(A1387)=0,\"\",INDEX('Smelter Look-up'!$A:$A,MATCH($A1387,'Smelter Look-up'!$E:$E,0)))","v":""},{"$f":"IF(LEN(A1387)=0,\"\",INDEX('Smelter Look-up'!$C:$C,MATCH($A1387,'Smelter Look-up'!$E:$E,0)))","v":""},null,{"$f":"IF(ISERROR($V1387),\"\",OFFSET('Smelter Look-up'!$D$4,$V1387-4,0)&\"\")","v":""},{"$f":"IF(ISERROR($V1387),\"\",OFFSET('Smelter Look-up'!$E$4,$V1387-4,0))","v":""},{"$f":"IF(C1387=$X$4,\"Enter smelter details\", IF(ISERROR($V1387),\"\",OFFSET('Smelter Look-up'!$F$4,$V1387-4,0)))","v":""},{"$f":"IF(ISERROR($V1387),\"\",OFFSET('Smelter Look-up'!$G$4,$V1387-4,0))","v":""},{"$f":"IF(ISERROR($V1387),\"\",OFFSET('Smelter Look-up'!$H$4,$V1387-4,0))","v":""},{"$f":"IF(ISERROR($V1387),\"\",OFFSET('Smelter Look-up'!$I$4,$V1387-4,0))","v":""},{"$nulls":7},{"$f":"IF(ISERROR($V1387),\"\",OFFSET('Smelter Look-up'!$C$4,$V1387-4,0)&\"\")","v":""},"",{"$f":"IF(B1387=\"\",\"\",IF(ISERROR(MATCH($J1387,SorP!$B$1:$B$6230,0)),\"\",INDIRECT(\"'SorP'!$A$\"&MATCH($J1387,SorP!$B$1:$B$6230,0))))","v":""},null,{"$f":"IF(C1387=\"\",NA(),MATCH($B1387&$C1387,'Smelter Look-up'!$J:$J,0))","v":{"$error":"#N/A"}},null,0,null,null,null,""]
[null,{"$f":"IF(LEN(A1388)=0,\"\",INDEX('Smelter Look-up'!$A:$A,MATCH($A1388,'Smelter Look-up'!$E:$E,0)))","v":""},{"$f":"IF(LEN(A1388)=0,\"\",INDEX('Smelter Look-up'!$C:$C,MATCH($A1388,'Smelter Look-up'!$E:$E,0)))","v":""},null,{"$f":"IF(ISERROR($V1388),\"\",OFFSET('Smelter Look-up'!$D$4,$V1388-4,0)&\"\")","v":""},{"$f":"IF(ISERROR($V1388),\"\",OFFSET('Smelter Look-up'!$E$4,$V1388-4,0))","v":""},{"$f":"IF(C1388=$X$4,\"Enter smelter details\", IF(ISERROR($V1388),\"\",OFFSET('Smelter Look-up'!$F$4,$V1388-4,0)))","v":""},{"$f":"IF(ISERROR($V1388),\"\",OFFSET('Smelter Look-up'!$G$4,$V1388-4,0))","v":""},{"$f":"IF(ISERROR($V1388),\"\",OFFSET('Smelter Look-up'!$H$4,$V1388-4,0))","v":""},{"$f":"IF(ISERROR($V1388),\"\",OFFSET('Smelter Look-up'!$I$4,$V1388-4,0))","v":""},{"$nulls":7},{"$f":"IF(ISERROR($V1388),\"\",OFFSET('Smelter Look-up'!$C$4,$V1388-4,0)&\"\")","v":""},"",{"$f":"IF(B1388=\"\",\"\",IF(ISERROR(MATCH($J1388,SorP!$B$1:$B$6230,0)),\"\",INDIRECT(\"'SorP'!$A$\"&MATCH($J1388,SorP!$B$1:$B$6230,0))))","v":""},null,{"$f":"IF(C1388=\"\",NA(),MATCH($B1388&$C1388,'Smelter Look-up'!$J:$J,0))","v":{"$error":"#N/A"}},null,0,null,null,null,""]
[null,{"$f":"IF(LEN(A1389)=0,\"\",INDEX('Smelter Look-up'!$A:$A,MATCH($A1389,'Smelter Look-up'!$E:$E,0)))","v":""},{"$f":"IF(LEN(A1389)=0,\"\",INDEX('Smelter Look-up'!$C:$C,MATCH($A1389,'Smelter Look-up'!$E:$E,0)))","v":""},null,{"$f":"IF(ISERROR($V1389),\"\",OFFSET('Smelter Look-up'!$D$4,$V1389-4,0)&\"\")","v":""},{"$f":"IF(ISERROR($V1389),\"\",OFFSET('Smelter Look-up'!$E$4,$V1389-4,0))","v":""},{"$f":"IF(C1389=$X$4,\"Enter smelter details\", IF(ISERROR($V1389),\"\",OFFSET('Smelter Look-up'!$F$4,$V1389-4,0)))","v":""},{"$f":"IF(ISERROR($V1389),\"\",OFFSET('Smelter Look-up'!$G$4,$V1389-4,0))","v":""},{"$f":"IF(ISERROR($V1389),\"\",OFFSET('Smelter Look-up'!$H$4,$V1389-4,0))","v":""},{"$f":"IF(ISERROR($V1389),\"\",OFFSET('Smelter Look-up'!$I$4,$V1389-4,0))","v":""},{"$nulls":7},{"$f":"IF(ISERROR($V1389),\"\",OFFSET('Smelter Look-up'!$C$4,$V1389-4,0)&\"\")","v":""},"",{"$f":"IF(B1389=\"\",\"\",IF(ISERROR(MATCH($J1389,SorP!$B$1:$B$6230,0)),\"\",INDIRECT(\"'SorP'!$A$\"&MATCH($J1389,SorP!$B$1:$B$6230,0))))","v":""},null,{"$f":"IF(C1389=\"\",NA(),MATCH($B1389&$C1389,'Smelter Look-up'!$J:$J,0))","v":{"$error":"#N/A"}},null,0,null,null,null,""]
[null,{"$f":"IF(LEN(A1390)=0,\"\",INDEX('Smelter Look-up'!$A:$A,MATCH($A1390,'Smelter Look-up'!$E:$E,0)))","v":""},{"$f":"IF(LEN(A1390)=0,\"\",INDEX('Smelter Look-up'!$C:$C,MATCH($A1390,'Smelter Look-up'!$E:$E,0)))","v":""},null,{"$f":"IF(ISERROR($V1390),\"\",OFFSET('Smelter Look-up'!$D$4,$V1390-4,0)&\"\")","v":""},{"$f":"IF(ISERROR($V1390),\"\",OFFSET('Smelter Look-up'!$E$4,$V1390-4,0))","v":""},{"$f":"IF(C1390=$X$4,\"Enter smelter details\", IF(ISERROR($V1390),\"\",OFFSET('Smelter Look-up'!$F$4,$V1390-4,0)))","v":""},{"$f":"IF(ISERROR($V1390),\"\",OFFSET('Smelter Look-up'!$G$4,$V1390-4,0))","v":""},{"$f":"IF(ISERROR($V1390),\"\",OFFSET('Smelter Look-up'!$H$4,$V1390-4,0))","v":""},{"$f":"IF(ISERROR($V1390),\"\",OFFSET('Smelter Look-up'!$I$4,$V1390-4,0))","v":""},{"$nulls":7},{"$f":"IF(ISERROR($V1390),\"\",OFFSET('Smelter Look-up'!$C$4,$V1390-4,0)&\"\")","v":""},"",{"$f":"IF(B1390=\"\",\"\",IF(ISERROR(MATCH($J1390,SorP!$B$1:$B$6230,0)),\"\",INDIRECT(\"'SorP'!$A$\"&MATCH($J1390,SorP!$B$1:$B$6230,0))))","v":""},null,{"$f":"IF(C1390=\"\",NA(),MATCH($B1390&$C1390,'Smelter Look-up'!$J:$J,0))","v":{"$error":"#N/A"}},null,0,null,null,null,""]
[null,{"$f":"IF(LEN(A1391)=0,\"\",INDEX('Smelter Look-up'!$A:$A,MATCH($A1391,'Smelter Look-up'!$E:$E,0)))","v":""},{"$f":"IF(LEN(A1391)=0,\"\",INDEX('Smelter Look-up'!$C:$C,MATCH($A1391,'Smelter Look-up'!$E:$E,0)))","v":""},null,{"$f":"IF(ISERROR($V1391),\"\",OFFSET('Smelter Look-up'!$D$4,$V1391-4,0)&\"\")","v":""},{"$f":"IF(ISERROR($V1391),\"\",OFFSET('Smelter Look-up'!$E$4,$V1391-4,0))","v":""},{"$f":"IF(C1391=$X$4,\"Enter smelter details\", IF(ISERROR($V1391),\"\",OFFSET('Smelter Look-up'!$F$4,$V1391-4,0)))","v":""},{"$f":"IF(ISERROR($V1391),\"\",OFFSET('Smelter Look-up'!$G$4,$V1391-4,0))","v":""},{"$f":"IF(ISERROR($V1391),\"\",OFFSET('Smelter Look-up'!$H$4,$V1391-4,0))","v":""},{"$f":"IF(ISERROR($V1391),\"\",OFFSET('Smelter Look-up'!$I$4,$V1391-4,0))","v":""},{"$nulls":7},{"$f":"IF(ISERROR($V1391),\"\",OFFSET('Smelter Look-up'!$C$4,$V1391-4,0)&\"\")","v":""},"",{"$f":"IF(B1391=\"\",\"\",IF(ISERROR(MATCH($J1391,SorP!$B$1:$B$6230,0)),\"\",INDIRECT(\"'SorP'!$A$\"&MATCH($J1391,SorP!$B$1:$B$6230,0))))","v":""},null,{"$f":"IF(C1391=\"\",NA(),MATCH($B1391&$C1391,'Smelter Look-up'!$J:$J,0))","v":{"$error":"#N/A"}},null,0,null,null,null,""]
[null,{"$f":"IF(LEN(A1392)=0,\"\",INDEX('Smelter Look-up'!$A:$A,MATCH($A1392,'Smelter Look-up'!$E:$E,0)))","v":""},{"$f":"IF(LEN(A1392)=0,\"\",INDEX('Smelter Look-up'!$C:$C,MATCH($A1392,'Smelter Look-up'!$E:$E,0)))","v":""},null,{"$f":"IF(ISERROR($V1392),\"\",OFFSET('Smelter Look-up'!$D$4,$V1392-4,0)&\"\")","v":""},{"$f":"IF(ISERROR($V1392),\"\",OFFSET('Smelter Look-up'!$E$4,$V1392-4,0))","v":""},{"$f":"IF(C1392=$X$4,\"Enter smelter details\", IF(ISERROR($V1392),\"\",OFFSET('Smelter Look-up'!$F$4,$V1392-4,0)))","v":""},{"$f":"IF(ISERROR($V1392),\"\",OFFSET('Smelter Look-up'!$G$4,$V1392-4,0))","v":""},{"$f":"IF(ISERROR($V1392),\"\",OFFSET('Smelter Look-up'!$H$4,$V1392-4,0))","v":""},{"$f":"IF(ISERROR($V1392),\"\",OFFSET('Smelter Look-up'!$I$4,$V1392-4,0))","v":""},{"$nulls":7},{"$f":"IF(ISERROR($V1392),\"\",OFFSET('Smelter Look-up'!$C$4,$V1392-4,0)&\"\")","v":""},"",{"$f":"IF(B1392=\"\",\"\",IF(ISERROR(MATCH($J1392,SorP!$B$1:$B$6230,0)),\"\",INDIRECT(\"'SorP'!$A$\"&MATCH($J1392,SorP!$B$1:$B$6230,0))))","v":""},null,{"$f":"IF(C1392=\"\",NA(),MATCH($B1392&$C1392,'Smelter Look-up'!$J:$J,0))","v":{"$error":"#N/A"}},null,0,null,null,null,""]
[null,{"$f":"IF(LEN(A1393)=0,\"\",INDEX('Smelter Look-up'!$A:$A,MATCH($A1393,'Smelter Look-up'!$E:$E,0)))","v":""},{"$f":"IF(LEN(A1393)=0,\"\",INDEX('Smelter Look-up'!$C:$C,MATCH($A1393,'Smelter Look-up'!$E:$E,0)))","v":""},null,{"$f":"IF(ISERROR($V1393),\"\",OFFSET('Smelter Look-up'!$D$4,$V1393-4,0)&\"\")","v":""},{"$f":"IF(ISERROR($V1393),\"\",OFFSET('Smelter Look-up'!$E$4,$V1393-4,0))","v":""},{"$f":"IF(C1393=$X$4,\"Enter smelter details\", IF(ISERROR($V1393),\"\",OFFSET('Smelter Look-up'!$F$4,$V1393-4,0)))","v":""},{"$f":"IF(ISERROR($V1393),\"\",OFFSET('Smelter Look-up'!$G$4,$V1393-4,0))","v":""},{"$f":"IF(ISERROR($V1393),\"\",OFFSET('Smelter Look-up'!$H$4,$V1393-4,0))","v":""},{"$f":"IF(ISERROR($V1393),\"\",OFFSET('Smelter Look-up'!$I$4,$V1393-4,0))","v":""},{"$nulls":7},{"$f":"IF(ISERROR($V1393),\"\",OFFSET('Smelter Look-up'!$C$4,$V1393-4,0)&\"\")","v":""},"",{"$f":"IF(B1393=\"\",\"\",IF(ISERROR(MATCH($J1393,SorP!$B$1:$B$6230,0)),\"\",INDIRECT(\"'SorP'!$A$\"&MATCH($J1393,SorP!$B$1:$B$6230,0))))","v":""},null,{"$f":"IF(C1393=\"\",NA(),MATCH($B1393&$C1393,'Smelter Look-up'!$J:$J,0))","v":{"$error":"#N/A"}},null,0,null,null,null,""]
[null,{"$f":"IF(LEN(A1394)=0,\"\",INDEX('Smelter Look-up'!$A:$A,MATCH($A1394,'Smelter Look-up'!$E:$E,0)))","v":""},{"$f":"IF(LEN(A1394)=0,\"\",INDEX('Smelter Look-up'!$C:$C,MATCH($A1394,'Smelter Look-up'!$E:$E,0)))","v":""},null,{"$f":"IF(ISERROR($V1394),\"\",OFFSET('Smelter Look-up'!$D$4,$V1394-4,0)&\"\")","v":""},{"$f":"IF(ISERROR($V1394),\"\",OFFSET('Smelter Look-up'!$E$4,$V1394-4,0))","v":""},{"$f":"IF(C1394=$X$4,\"Enter smelter details\", IF(ISERROR($V1394),\"\",OFFSET('Smelter Look-up'!$F$4,$V1394-4,0)))","v":""},{"$f":"IF(ISERROR($V1394),\"\",OFFSET('Smelter Look-up'!$G$4,$V1394-4,0))","v":""},{"$f":"IF(ISERROR($V1394),\"\",OFFSET('Smelter Look-up'!$H$4,$V1394-4,0))","v":""},{"$f":"IF(ISERROR($V1394),\"\",OFFSET('Smelter Look-up'!$I$4,$V1394-4,0))","v":""},{"$nulls":7},{"$f":"IF(ISERROR($V1394),\"\",OFFSET('Smelter Look-up'!$C$4,$V1394-4,0)&\"\")","v":""},"",{"$f":"IF(B1394=\"\",\"\",IF(ISERROR(MATCH($J1394,SorP!$B$1:$B$6230,0)),\"\",INDIRECT(\"'SorP'!$A$\"&MATCH($J1394,SorP!$B$1:$B$6230,0))))","v":""},null,{"$f":"IF(C1394=\"\",NA(),MATCH($B1394&$C1394,'Smelter Look-up'!$J:$J,0))","v":{"$error":"#N/A"}},null,0,null,null,null,""]
[null,{"$f":"IF(LEN(A1395)=0,\"\",INDEX('Smelter Look-up'!$A:$A,MATCH($A1395,'Smelter Look-up'!$E:$E,0)))","v":""},{"$f":"IF(LEN(A1395)=0,\"\",INDEX('Smelter Look-up'!$C:$C,MATCH($A1395,'Smelter Look-up'!$E:$E,0)))","v":""},null,{"$f":"IF(ISERROR($V1395),\"\",OFFSET('Smelter Look-up'!$D$4,$V1395-4,0)&\"\")","v":""},{"$f":"IF(ISERROR($V1395),\"\",OFFSET('Smelter Look-up'!$E$4,$V1395-4,0))","v":""},{"$f":"IF(C1395=$X$4,\"Enter smelter details\", IF(ISERROR($V1395),\"\",OFFSET('Smelter Look-up'!$F$4,$V1395-4,0)))","v":""},{"$f":"IF(ISERROR($V1395),\"\",OFFSET('Smelter Look-up'!$G$4,$V1395-4,0))","v":""},{"$f":"IF(ISERROR($V1395),\"\",OFFSET('Smelter Look-up'!$H$4,$V1395-4,0))","v":""},{"$f":"IF(ISERROR($V1395),\"\",OFFSET('Smelter Look-up'!$I$4,$V1395-4,0))","v":""},{"$nulls":7},{"$f":"IF(ISERROR($V1395),\"\",OFFSET('Smelter Look-up'!$C$4,$V1395-4,0)&\"\")","v":""},"",{"$f":"IF(B1395=\"\",\"\",IF(ISERROR(MATCH($J1395,SorP!$B$1:$B$6230,0)),\"\",INDIRECT(\"'SorP'!$A$\"&MATCH($J1395,SorP!$B$1:$B$6230,0))))","v":""},null,{"$f":"IF(C1395=\"\",NA(),MATCH($B1395&$C1395,'Smelter Look-up'!$J:$J,0))","v":{"$error":"#N/A"}},null,0,null,null,null,""]
[null,{"$f":"IF(LEN(A1396)=0,\"\",INDEX('Smelter Look-up'!$A:$A,MATCH($A1396,'Smelter Look-up'!$E:$E,0)))","v":""},{"$f":"IF(LEN(A1396)=0,\"\",INDEX('Smelter Look-up'!$C:$C,MATCH($A1396,'Smelter Look-up'!$E:$E,0)))","v":""},null,{"$f":"IF(ISERROR($V1396),\"\",OFFSET('Smelter Look-up'!$D$4,$V1396-4,0)&\"\")","v":""},{"$f":"IF(ISERROR($V1396),\"\",OFFSET('Smelter Look-up'!$E$4,$V1396-4,0))","v":""},{"$f":"IF(C1396=$X$4,\"Enter smelter details\", IF(ISERROR($V1396),\"\",OFFSET('Smelter Look-up'!$F$4,$V1396-4,0)))","v":""},{"$f":"IF(ISERROR($V1396),\"\",OFFSET('Smelter Look-up'!$G$4,$V1396-4,0))","v":""},{"$f":"IF(ISERROR($V1396),\"\",OFFSET('Smelter Look-up'!$H$4,$V1396-4,0))","v":""},{"$f":"IF(ISERROR($V1396),\"\",OFFSET('Smelter Look-up'!$I$4,$V1396-4,0))","v":""},{"$nulls":7},{"$f":"IF(ISERROR($V1396),\"\",OFFSET('Smelter Look-up'!$C$4,$V1396-4,0)&\"\")","v":""},"",{"$f":"IF(B1396=\"\",\"\",IF(ISERROR(MATCH($J1396,SorP!$B$1:$B$6230,0)),\"\",INDIRECT(\"'SorP'!$A$\"&MATCH($J1396,SorP!$B$1:$B$6230,0))))","v":""},null,{"$f":"IF(C1396=\"\",NA(),MATCH($B1396&$C1396,'Smelter Look-up'!$J:$J,0))","v":{"$error":"#N/A"}},null,0,null,null,null,""]
[null,{"$f":"IF(LEN(A1397)=0,\"\",INDEX('Smelter Look-up'!$A:$A,MATCH($A1397,'Smelter Look-up'!$E:$E,0)))","v":""},{"$f":"IF(LEN(A1397)=0,\"\",INDEX('Smelter Look-up'!$C:$C,MATCH($A1397,'Smelter Look-up'!$E:$E,0)))","v":""},null,{"$f":"IF(ISERROR($V1397),\"\",OFFSET('Smelter Look-up'!$D$4,$V1397-4,0)&\"\")","v":""},{"$f":"IF(ISERROR($V1397),\"\",OFFSET('Smelter Look-up'!$E$4,$V1397-4,0))","v":""},{"$f":"IF(C1397=$X$4,\"Enter smelter details\", IF(ISERROR($V1397),\"\",OFFSET('Smelter Look-up'!$F$4,$V1397-4,0)))","v":""},{"$f":"IF(ISERROR($V1397),\"\",OFFSET('Smelter Look-up'!$G$4,$V1397-4,0))","v":""},{"$f":"IF(ISERROR($V1397),\"\",OFFSET('Smelter Look-up'!$H$4,$V1397-4,0))","v":""},{"$f":"IF(ISERROR($V1397),\"\",OFFSET('Smelter Look-up'!$I$4,$V1397-4,0))","v":""},{"$nulls":7},{"$f":"IF(ISERROR($V1397),\"\",OFFSET('Smelter Look-up'!$C$4,$V1397-4,0)&\"\")","v":""},"",{"$f":"IF(B1397=\"\",\"\",IF(ISERROR(MATCH($J1397,SorP!$B$1:$B$6230,0)),\"\",INDIRECT(\"'SorP'!$A$\"&MATCH($J1397,SorP!$B$1:$B$6230,0))))","v":""},null,{"$f":"IF(C1397=\"\",NA(),MATCH($B1397&$C1397,'Smelter Look-up'!$J:$J,0))","v":{"$error":"#N/A"}},null,0,null,null,null,""]
[null,{"$f":"IF(LEN(A1398)=0,\"\",INDEX('Smelter Look-up'!$A:$A,MATCH($A1398,'Smelter Look-up'!$E:$E,0)))","v":""},{"$f":"IF(LEN(A1398)=0,\"\",INDEX('Smelter Look-up'!$C:$C,MATCH($A1398,'Smelter Look-up'!$E:$E,0)))","v":""},null,{"$f":"IF(ISERROR($V1398),\"\",OFFSET('Smelter Look-up'!$D$4,$V1398-4,0)&\"\")","v":""},{"$f":"IF(ISERROR($V1398),\"\",OFFSET('Smelter Look-up'!$E$4,$V1398-4,0))","v":""},{"$f":"IF(C1398=$X$4,\"Enter smelter details\", IF(ISERROR($V1398),\"\",OFFSET('Smelter Look-up'!$F$4,$V1398-4,0)))","v":""},{"$f":"IF(ISERROR($V1398),\"\",OFFSET('Smelter Look-up'!$G$4,$V1398-4,0))","v":""},{"$f":"IF(ISERROR($V1398),\"\",OFFSET('Smelter Look-up'!$H$4,$V1398-4,0))","v":""},{"$f":"IF(ISERROR($V1398),\"\",OFFSET('Smelter Look-up'!$I$4,$V1398-4,0))","v":""},{"$nulls":7},{"$f":"IF(ISERROR($V1398),\"\",OFFSET('Smelter Look-up'!$C$4,$V1398-4,0)&\"\")","v":""},"",{"$f":"IF(B1398=\"\",\"\",IF(ISERROR(MATCH($J1398,SorP!$B$1:$B$6230,0)),\"\",INDIRECT(\"'SorP'!$A$\"&MATCH($J1398,SorP!$B$1:$B$6230,0))))","v":""},null,{"$f":"IF(C1398=\"\",NA(),MATCH($B1398&$C1398,'Smelter Look-up'!$J:$J,0))","v":{"$error":"#N/A"}},null,0,null,null,null,""]
[null,{"$f":"IF(LEN(A1399)=0,\"\",INDEX('Smelter Look-up'!$A:$A,MATCH($A1399,'Smelter Look-up'!$E:$E,0)))","v":""},{"$f":"IF(LEN(A1399)=0,\"\",INDEX('Smelter Look-up'!$C:$C,MATCH($A1399,'Smelter Look-up'!$E:$E,0)))","v":""},null,{"$f":"IF(ISERROR($V1399),\"\",OFFSET('Smelter Look-up'!$D$4,$V1399-4,0)&\"\")","v":""},{"$f":"IF(ISERROR($V1399),\"\",OFFSET('Smelter Look-up'!$E$4,$V1399-4,0))","v":""},{"$f":"IF(C1399=$X$4,\"Enter smelter details\", IF(ISERROR($V1399),\"\",OFFSET('Smelter Look-up'!$F$4,$V1399-4,0)))","v":""},{"$f":"IF(ISERROR($V1399),\"\",OFFSET('Smelter Look-up'!$G$4,$V1399-4,0))","v":""},{"$f":"IF(ISERROR($V1399),\"\",OFFSET('Smelter Look-up'!$H$4,$V1399-4,0))","v":""},{"$f":"IF(ISERROR($V1399),\"\",OFFSET('Smelter Look-up'!$I$4,$V1399-4,0))","v":""},{"$nulls":7},{"$f":"IF(ISERROR($V1399),\"\",OFFSET('Smelter Look-up'!$C$4,$V1399-4,0)&\"\")","v":""},"",{"$f":"IF(B1399=\"\",\"\",IF(ISERROR(MATCH($J1399,SorP!$B$1:$B$6230,0)),\"\",INDIRECT(\"'SorP'!$A$\"&MATCH($J1399,SorP!$B$1:$B$6230,0))))","v":""},null,{"$f":"IF(C1399=\"\",NA(),MATCH($B1399&$C1399,'Smelter Look-up'!$J:$J,0))","v":{"$error":"#N/A"}},null,0,null,null,null,""]
[null,{"$f":"IF(LEN(A1400)=0,\"\",INDEX('Smelter Look-up'!$A:$A,MATCH($A1400,'Smelter Look-up'!$E:$E,0)))","v":""},{"$f":"IF(LEN(A1400)=0,\"\",INDEX('Smelter Look-up'!$C:$C,MATCH($A1400,'Smelter Look-up'!$E:$E,0)))","v":""},null,{"$f":"IF(ISERROR($V1400),\"\",OFFSET('Smelter Look-up'!$D$4,$V1400-4,0)&\"\")","v":""},{"$f":"IF(ISERROR($V1400),\"\",OFFSET('Smelter Look-up'!$E$4,$V1400-4,0))","v":""},{"$f":"IF(C1400=$X$4,\"Enter smelter details\", IF(ISERROR($V1400),\"\",OFFSET('Smelter Look-up'!$F$4,$V1400-4,0)))","v":""},{"$f":"IF(ISERROR($V1400),\"\",OFFSET('Smelter Look-up'!$G$4,$V1400-4,0))","v":""},{"$f":"IF(ISERROR($V1400),\"\",OFFSET('Smelter Look-up'!$H$4,$V1400-4,0))","v":""},{"$f":"IF(ISERROR($V1400),\"\",OFFSET('Smelter Look-up'!$I$4,$V1400-4,0))","v":""},{"$nulls":7},{"$f":"IF(ISERROR($V1400),\"\",OFFSET('Smelter Look-up'!$C$4,$V1400-4,0)&\"\")","v":""},"",{"$f":"IF(B1400=\"\",\"\",IF(ISERROR(MATCH($J1400,SorP!$B$1:$B$6230,0)),\"\",INDIRECT(\"'SorP'!$A$\"&MATCH($J1400,SorP!$B$1:$B$6230,0))))","v":""},null,{"$f":"IF(C1400=\"\",NA(),MATCH($B1400&$C1400,'Smelter Look-up'!$J:$J,0))","v":{"$error":"#N/A"}},null,0,null,null,null,""]
[null,{"$f":"IF(LEN(A1401)=0,\"\",INDEX('Smelter Look-up'!$A:$A,MATCH($A1401,'Smelter Look-up'!$E:$E,0)))","v":""},{"$f":"IF(LEN(A1401)=0,\"\",INDEX('Smelter Look-up'!$C:$C,MATCH($A1401,'Smelter Look-up'!$E:$E,0)))","v":""},null,{"$f":"IF(ISERROR($V1401),\"\",OFFSET('Smelter Look-up'!$D$4,$V1401-4,0)&\"\")","v":""},{"$f":"IF(ISERROR($V1401),\"\",OFFSET('Smelter Look-up'!$E$4,$V1401-4,0))","v":""},{"$f":"IF(C1401=$X$4,\"Enter smelter details\", IF(ISERROR($V1401),\"\",OFFSET('Smelter Look-up'!$F$4,$V1401-4,0)))","v":""},{"$f":"IF(ISERROR($V1401),\"\",OFFSET('Smelter Look-up'!$G$4,$V1401-4,0))","v":""},{"$f":"IF(ISERROR($V1401),\"\",OFFSET('Smelter Look-up'!$H$4,$V1401-4,0))","v":""},{"$f":"IF(ISERROR($V1401),\"\",OFFSET('Smelter Look-up'!$I$4,$V1401-4,0))","v":""},{"$nulls":7},{"$f":"IF(ISERROR($V1401),\"\",OFFSET('Smelter Look-up'!$C$4,$V1401-4,0)&\"\")","v":""},"",{"$f":"IF(B1401=\"\",\"\",IF(ISERROR(MATCH($J1401,SorP!$B$1:$B$6230,0)),\"\",INDIRECT(\"'SorP'!$A$\"&MATCH($J1401,SorP!$B$1:$B$6230,0))))","v":""},null,{"$f":"IF(C1401=\"\",NA(),MATCH($B1401&$C1401,'Smelter Look-up'!$J:$J,0))","v":{"$error":"#N/A"}},null,0,null,null,null,""]
[null,{"$f":"IF(LEN(A1402)=0,\"\",INDEX('Smelter Look-up'!$A:$A,MATCH($A1402,'Smelter Look-up'!$E:$E,0)))","v":""},{"$f":"IF(LEN(A1402)=0,\"\",INDEX('Smelter Look-up'!$C:$C,MATCH($A1402,'Smelter Look-up'!$E:$E,0)))","v":""},null,{"$f":"IF(ISERROR($V1402),\"\",OFFSET('Smelter Look-up'!$D$4,$V1402-4,0)&\"\")","v":""},{"$f":"IF(ISERROR($V1402),\"\",OFFSET('Smelter Look-up'!$E$4,$V1402-4,0))","v":""},{"$f":"IF(C1402=$X$4,\"Enter smelter details\", IF(ISERROR($V1402),\"\",OFFSET('Smelter Look-up'!$F$4,$V1402-4,0)))","v":""},{"$f":"IF(ISERROR($V1402),\"\",OFFSET('Smelter Look-up'!$G$4,$V1402-4,0))","v":""},{"$f":"IF(ISERROR($V1402),\"\",OFFSET('Smelter Look-up'!$H$4,$V1402-4,0))","v":""},{"$f":"IF(ISERROR($V1402),\"\",OFFSET('Smelter Look-up'!$I$4,$V1402-4,0))","v":""},{"$nulls":7},{"$f":"IF(ISERROR($V1402),\"\",OFFSET('Smelter Look-up'!$C$4,$V1402-4,0)&\"\")","v":""},"",{"$f":"IF(B1402=\"\",\"\",IF(ISERROR(MATCH($J1402,SorP!$B$1:$B$6230,0)),\"\",INDIRECT(\"'SorP'!$A$\"&MATCH($J1402,SorP!$B$1:$B$6230,0))))","v":""},null,{"$f":"IF(C1402=\"\",NA(),MATCH($B1402&$C1402,'Smelter Look-up'!$J:$J,0))","v":{"$error":"#N/A"}},null,0,null,null,null,""]
[null,{"$f":"IF(LEN(A1403)=0,\"\",INDEX('Smelter Look-up'!$A:$A,MATCH($A1403,'Smelter Look-up'!$E:$E,0)))","v":""},{"$f":"IF(LEN(A1403)=0,\"\",INDEX('Smelter Look-up'!$C:$C,MATCH($A1403,'Smelter Look-up'!$E:$E,0)))","v":""},null,{"$f":"IF(ISERROR($V1403),\"\",OFFSET('Smelter Look-up'!$D$4,$V1403-4,0)&\"\")","v":""},{"$f":"IF(ISERROR($V1403),\"\",OFFSET('Smelter Look-up'!$E$4,$V1403-4,0))","v":""},{"$f":"IF(C1403=$X$4,\"Enter smelter details\", IF(ISERROR($V1403),\"\",OFFSET('Smelter Look-up'!$F$4,$V1403-4,0)))","v":""},{"$f":"IF(ISERROR($V1403),\"\",OFFSET('Smelter Look-up'!$G$4,$V1403-4,0))","v":""},{"$f":"IF(ISERROR($V1403),\"\",OFFSET('Smelter Look-up'!$H$4,$V1403-4,0))","v":""},{"$f":"IF(ISERROR($V1403),\"\",OFFSET('Smelter Look-up'!$I$4,$V1403-4,0))","v":""},{"$nulls":7},{"$f":"IF(ISERROR($V1403),\"\",OFFSET('Smelter Look-up'!$C$4,$V1403-4,0)&\"\")","v":""},{"$f":"IF(B1403=\"\",\"\",IF(ISERROR(MATCH($E1403,CL,0)),\"Unknown\",INDIRECT(\"'C'!$A$\"&MATCH($E1403,CL,0)+1)))","v":""},{"$f":"IF(B1403=\"\",\"\",IF(ISERROR(MATCH($J1403,SorP!$B$1:$B$6230,0)),\"\",INDIRECT(\"'SorP'!$A$\"&MATCH($J1403,SorP!$B$1:$B$6230,0))))","v":""},null,{"$f":"IF(C1403=\"\",NA(),MATCH($B1403&$C1403,'Smelter Look-up'!$J:$J,0))","v":{"$error":"#N/A"}},null,{"$f":"IF(AND(C1403=\"Smelter not listed\",OR(LEN(D1403)=0,LEN(E1403)=0)),1,0)","v":0},null,null,null,{"$f":"B1403&C1403","v":""}]
[null,{"$f":"IF(LEN(A1404)=0,\"\",INDEX('Smelter Look-up'!$A:$A,MATCH($A1404,'Smelter Look-up'!$E:$E,0)))","v":""},{"$f":"IF(LEN(A1404)=0,\"\",INDEX('Smelter Look-up'!$C:$C,MATCH($A1404,'Smelter Look-up'!$E:$E,0)))","v":""},null,{"$f":"IF(ISERROR($V1404),\"\",OFFSET('Smelter Look-up'!$D$4,$V1404-4,0)&\"\")","v":""},{"$f":"IF(ISERROR($V1404),\"\",OFFSET('Smelter Look-up'!$E$4,$V1404-4,0))","v":""},{"$f":"IF(C1404=$X$4,\"Enter smelter details\", IF(ISERROR($V1404),\"\",OFFSET('Smelter Look-up'!$F$4,$V1404-4,0)))","v":""},{"$f":"IF(ISERROR($V1404),\"\",OFFSET('Smelter Look-up'!$G$4,$V1404-4,0))","v":""},{"$f":"IF(ISERROR($V1404),\"\",OFFSET('Smelter Look-up'!$H$4,$V1404-4,0))","v":""},{"$f":"IF(ISERROR($V1404),\"\",OFFSET('Smelter Look-up'!$I$4,$V1404-4,0))","v":""},{"$nulls":7},{"$f":"IF(ISERROR($V1404),\"\",OFFSET('Smelter Look-up'!$C$4,$V1404-4,0)&\"\")","v":""},"",{"$f":"IF(B1404=\"\",\"\",IF(ISERROR(MATCH($J1404,SorP!$B$1:$B$6230,0)),\"\",INDIRECT(\"'SorP'!$A$\"&MATCH($J1404,SorP!$B$1:$B$6230,0))))","v":""},null,{"$f":"IF(C1404=\"\",NA(),MATCH($B1404&$C1404,'Smelter Look-up'!$J:$J,0))","v":{"$error":"#N/A"}},null,0,null,null,null,""]
[null,{"$f":"IF(LEN(A1405)=0,\"\",INDEX('Smelter Look-up'!$A:$A,MATCH($A1405,'Smelter Look-up'!$E:$E,0)))","v":""},{"$f":"IF(LEN(A1405)=0,\"\",INDEX('Smelter Look-up'!$C:$C,MATCH($A1405,'Smelter Look-up'!$E:$E,0)))","v":""},null,{"$f":"IF(ISERROR($V1405),\"\",OFFSET('Smelter Look-up'!$D$4,$V1405-4,0)&\"\")","v":""},{"$f":"IF(ISERROR($V1405),\"\",OFFSET('Smelter Look-up'!$E$4,$V1405-4,0))","v":""},{"$f":"IF(C1405=$X$4,\"Enter smelter details\", IF(ISERROR($V1405),\"\",OFFSET('Smelter Look-up'!$F$4,$V1405-4,0)))","v":""},{"$f":"IF(ISERROR($V1405),\"\",OFFSET('Smelter Look-up'!$G$4,$V1405-4,0))","v":""},{"$f":"IF(ISERROR($V1405),\"\",OFFSET('Smelter Look-up'!$H$4,$V1405-4,0))","v":""},{"$f":"IF(ISERROR($V1405),\"\",OFFSET('Smelter Look-up'!$I$4,$V1405-4,0))","v":""},{"$nulls":7},{"$f":"IF(ISERROR($V1405),\"\",OFFSET('Smelter Look-up'!$C$4,$V1405-4,0)&\"\")","v":""},"",{"$f":"IF(B1405=\"\",\"\",IF(ISERROR(MATCH($J1405,SorP!$B$1:$B$6230,0)),\"\",INDIRECT(\"'SorP'!$A$\"&MATCH($J1405,SorP!$B$1:$B$6230,0))))","v":""},null,{"$f":"IF(C1405=\"\",NA(),MATCH($B1405&$C1405,'Smelter Look-up'!$J:$J,0))","v":{"$error":"#N/A"}},null,0,null,null,null,""]
[null,{"$f":"IF(LEN(A1406)=0,\"\",INDEX('Smelter Look-up'!$A:$A,MATCH($A1406,'Smelter Look-up'!$E:$E,0)))","v":""},{"$f":"IF(LEN(A1406)=0,\"\",INDEX('Smelter Look-up'!$C:$C,MATCH($A1406,'Smelter Look-up'!$E:$E,0)))","v":""},null,{"$f":"IF(ISERROR($V1406),\"\",OFFSET('Smelter Look-up'!$D$4,$V1406-4,0)&\"\")","v":""},{"$f":"IF(ISERROR($V1406),\"\",OFFSET('Smelter Look-up'!$E$4,$V1406-4,0))","v":""},{"$f":"IF(C1406=$X$4,\"Enter smelter details\", IF(ISERROR($V1406),\"\",OFFSET('Smelter Look-up'!$F$4,$V1406-4,0)))","v":""},{"$f":"IF(ISERROR($V1406),\"\",OFFSET('Smelter Look-up'!$G$4,$V1406-4,0))","v":""},{"$f":"IF(ISERROR($V1406),\"\",OFFSET('Smelter Look-up'!$H$4,$V1406-4,0))","v":""},{"$f":"IF(ISERROR($V1406),\"\",OFFSET('Smelter Look-up'!$I$4,$V1406-4,0))","v":""},{"$nulls":7},{"$f":"IF(ISERROR($V1406),\"\",OFFSET('Smelter Look-up'!$C$4,$V1406-4,0)&\"\")","v":""},"",{"$f":"IF(B1406=\"\",\"\",IF(ISERROR(MATCH($J1406,SorP!$B$1:$B$6230,0)),\"\",INDIRECT(\"'SorP'!$A$\"&MATCH($J1406,SorP!$B$1:$B$6230,0))))","v":""},null,{"$f":"IF(C1406=\"\",NA(),MATCH($B1406&$C1406,'Smelter Look-up'!$J:$J,0))","v":{"$error":"#N/A"}},null,0,null,null,null,""]
[null,{"$f":"IF(LEN(A1407)=0,\"\",INDEX('Smelter Look-up'!$A:$A,MATCH($A1407,'Smelter Look-up'!$E:$E,0)))","v":""},{"$f":"IF(LEN(A1407)=0,\"\",INDEX('Smelter Look-up'!$C:$C,MATCH($A1407,'Smelter Look-up'!$E:$E,0)))","v":""},null,{"$f":"IF(ISERROR($V1407),\"\",OFFSET('Smelter Look-up'!$D$4,$V1407-4,0)&\"\")","v":""},{"$f":"IF(ISERROR($V1407),\"\",OFFSET('Smelter Look-up'!$E$4,$V1407-4,0))","v":""},{"$f":"IF(C1407=$X$4,\"Enter smelter details\", IF(ISERROR($V1407),\"\",OFFSET('Smelter Look-up'!$F$4,$V1407-4,0)))","v":""},{"$f":"IF(ISERROR($V1407),\"\",OFFSET('Smelter Look-up'!$G$4,$V1407-4,0))","v":""},{"$f":"IF(ISERROR($V1407),\"\",OFFSET('Smelter Look-up'!$H$4,$V1407-4,0))","v":""},{"$f":"IF(ISERROR($V1407),\"\",OFFSET('Smelter Look-up'!$I$4,$V1407-4,0))","v":""},{"$nulls":7},{"$f":"IF(ISERROR($V1407),\"\",OFFSET('Smelter Look-up'!$C$4,$V1407-4,0)&\"\")","v":""},"",{"$f":"IF(B1407=\"\",\"\",IF(ISERROR(MATCH($J1407,SorP!$B$1:$B$6230,0)),\"\",INDIRECT(\"'SorP'!$A$\"&MATCH($J1407,SorP!$B$1:$B$6230,0))))","v":""},null,{"$f":"IF(C1407=\"\",NA(),MATCH($B1407&$C1407,'Smelter Look-up'!$J:$J,0))","v":{"$error":"#N/A"}},null,0,null,null,null,""]
[null,{"$f":"IF(LEN(A1408)=0,\"\",INDEX('Smelter Look-up'!$A:$A,MATCH($A1408,'Smelter Look-up'!$E:$E,0)))","v":""},{"$f":"IF(LEN(A1408)=0,\"\",INDEX('Smelter Look-up'!$C:$C,MATCH($A1408,'Smelter Look-up'!$E:$E,0)))","v":""},null,{"$f":"IF(ISERROR($V1408),\"\",OFFSET('Smelter Look-up'!$D$4,$V1408-4,0)&\"\")","v":""},{"$f":"IF(ISERROR($V1408),\"\",OFFSET('Smelter Look-up'!$E$4,$V1408-4,0))","v":""},{"$f":"IF(C1408=$X$4,\"Enter smelter details\", IF(ISERROR($V1408),\"\",OFFSET('Smelter Look-up'!$F$4,$V1408-4,0)))","v":""},{"$f":"IF(ISERROR($V1408),\"\",OFFSET('Smelter Look-up'!$G$4,$V1408-4,0))","v":""},{"$f":"IF(ISERROR($V1408),\"\",OFFSET('Smelter Look-up'!$H$4,$V1408-4,0))","v":""},{"$f":"IF(ISERROR($V1408),\"\",OFFSET('Smelter Look-up'!$I$4,$V1408-4,0))","v":""},{"$nulls":7},{"$f":"IF(ISERROR($V1408),\"\",OFFSET('Smelter Look-up'!$C$4,$V1408-4,0)&\"\")","v":""},"",{"$f":"IF(B1408=\"\",\"\",IF(ISERROR(MATCH($J1408,SorP!$B$1:$B$6230,0)),\"\",INDIRECT(\"'SorP'!$A$\"&MATCH($J1408,SorP!$B$1:$B$6230,0))))","v":""},null,{"$f":"IF(C1408=\"\",NA(),MATCH($B1408&$C1408,'Smelter Look-up'!$J:$J,0))","v":{"$error":"#N/A"}},null,0,null,null,null,""]
[null,{"$f":"IF(LEN(A1409)=0,\"\",INDEX('Smelter Look-up'!$A:$A,MATCH($A1409,'Smelter Look-up'!$E:$E,0)))","v":""},{"$f":"IF(LEN(A1409)=0,\"\",INDEX('Smelter Look-up'!$C:$C,MATCH($A1409,'Smelter Look-up'!$E:$E,0)))","v":""},null,{"$f":"IF(ISERROR($V1409),\"\",OFFSET('Smelter Look-up'!$D$4,$V1409-4,0)&\"\")","v":""},{"$f":"IF(ISERROR($V1409),\"\",OFFSET('Smelter Look-up'!$E$4,$V1409-4,0))","v":""},{"$f":"IF(C1409=$X$4,\"Enter smelter details\", IF(ISERROR($V1409),\"\",OFFSET('Smelter Look-up'!$F$4,$V1409-4,0)))","v":""},{"$f":"IF(ISERROR($V1409),\"\",OFFSET('Smelter Look-up'!$G$4,$V1409-4,0))","v":""},{"$f":"IF(ISERROR($V1409),\"\",OFFSET('Smelter Look-up'!$H$4,$V1409-4,0))","v":""},{"$f":"IF(ISERROR($V1409),\"\",OFFSET('Smelter Look-up'!$I$4,$V1409-4,0))","v":""},{"$nulls":7},{"$f":"IF(ISERROR($V1409),\"\",OFFSET('Smelter Look-up'!$C$4,$V1409-4,0)&\"\")","v":""},"",{"$f":"IF(B1409=\"\",\"\",IF(ISERROR(MATCH($J1409,SorP!$B$1:$B$6230,0)),\"\",INDIRECT(\"'SorP'!$A$\"&MATCH($J1409,SorP!$B$1:$B$6230,0))))","v":""},null,{"$f":"IF(C1409=\"\",NA(),MATCH($B1409&$C1409,'Smelter Look-up'!$J:$J,0))","v":{"$error":"#N/A"}},null,0,null,null,null,""]
[null,{"$f":"IF(LEN(A1410)=0,\"\",INDEX('Smelter Look-up'!$A:$A,MATCH($A1410,'Smelter Look-up'!$E:$E,0)))","v":""},{"$f":"IF(LEN(A1410)=0,\"\",INDEX('Smelter Look-up'!$C:$C,MATCH($A1410,'Smelter Look-up'!$E:$E,0)))","v":""},null,{"$f":"IF(ISERROR($V1410),\"\",OFFSET('Smelter Look-up'!$D$4,$V1410-4,0)&\"\")","v":""},{"$f":"IF(ISERROR($V1410),\"\",OFFSET('Smelter Look-up'!$E$4,$V1410-4,0))","v":""},{"$f":"IF(C1410=$X$4,\"Enter smelter details\", IF(ISERROR($V1410),\"\",OFFSET('Smelter Look-up'!$F$4,$V1410-4,0)))","v":""},{"$f":"IF(ISERROR($V1410),\"\",OFFSET('Smelter Look-up'!$G$4,$V1410-4,0))","v":""},{"$f":"IF(ISERROR($V1410),\"\",OFFSET('Smelter Look-up'!$H$4,$V1410-4,0))","v":""},{"$f":"IF(ISERROR($V1410),\"\",OFFSET('Smelter Look-up'!$I$4,$V1410-4,0))","v":""},{"$nulls":7},{"$f":"IF(ISERROR($V1410),\"\",OFFSET('Smelter Look-up'!$C$4,$V1410-4,0)&\"\")","v":""},"",{"$f":"IF(B1410=\"\",\"\",IF(ISERROR(MATCH($J1410,SorP!$B$1:$B$6230,0)),\"\",INDIRECT(\"'SorP'!$A$\"&MATCH($J1410,SorP!$B$1:$B$6230,0))))","v":""},null,{"$f":"IF(C1410=\"\",NA(),MATCH($B1410&$C1410,'Smelter Look-up'!$J:$J,0))","v":{"$error":"#N/A"}},null,0,null,null,null,""]
[null,{"$f":"IF(LEN(A1411)=0,\"\",INDEX('Smelter Look-up'!$A:$A,MATCH($A1411,'Smelter Look-up'!$E:$E,0)))","v":""},{"$f":"IF(LEN(A1411)=0,\"\",INDEX('Smelter Look-up'!$C:$C,MATCH($A1411,'Smelter Look-up'!$E:$E,0)))","v":""},null,{"$f":"IF(ISERROR($V1411),\"\",OFFSET('Smelter Look-up'!$D$4,$V1411-4,0)&\"\")","v":""},{"$f":"IF(ISERROR($V1411),\"\",OFFSET('Smelter Look-up'!$E$4,$V1411-4,0))","v":""},{"$f":"IF(C1411=$X$4,\"Enter smelter details\", IF(ISERROR($V1411),\"\",OFFSET('Smelter Look-up'!$F$4,$V1411-4,0)))","v":""},{"$f":"IF(ISERROR($V1411),\"\",OFFSET('Smelter Look-up'!$G$4,$V1411-4,0))","v":""},{"$f":"IF(ISERROR($V1411),\"\",OFFSET('Smelter Look-up'!$H$4,$V1411-4,0))","v":""},{"$f":"IF(ISERROR($V1411),\"\",OFFSET('Smelter Look-up'!$I$4,$V1411-4,0))","v":""},{"$nulls":7},{"$f":"IF(ISERROR($V1411),\"\",OFFSET('Smelter Look-up'!$C$4,$V1411-4,0)&\"\")","v":""},"",{"$f":"IF(B1411=\"\",\"\",IF(ISERROR(MATCH($J1411,SorP!$B$1:$B$6230,0)),\"\",INDIRECT(\"'SorP'!$A$\"&MATCH($J1411,SorP!$B$1:$B$6230,0))))","v":""},null,{"$f":"IF(C1411=\"\",NA(),MATCH($B1411&$C1411,'Smelter Look-up'!$J:$J,0))","v":{"$error":"#N/A"}},null,0,null,null,null,""]
[null,{"$f":"IF(LEN(A1412)=0,\"\",INDEX('Smelter Look-up'!$A:$A,MATCH($A1412,'Smelter Look-up'!$E:$E,0)))","v":""},{"$f":"IF(LEN(A1412)=0,\"\",INDEX('Smelter Look-up'!$C:$C,MATCH($A1412,'Smelter Look-up'!$E:$E,0)))","v":""},null,{"$f":"IF(ISERROR($V1412),\"\",OFFSET('Smelter Look-up'!$D$4,$V1412-4,0)&\"\")","v":""},{"$f":"IF(ISERROR($V1412),\"\",OFFSET('Smelter Look-up'!$E$4,$V1412-4,0))","v":""},{"$f":"IF(C1412=$X$4,\"Enter smelter details\", IF(ISERROR($V1412),\"\",OFFSET('Smelter Look-up'!$F$4,$V1412-4,0)))","v":""},{"$f":"IF(ISERROR($V1412),\"\",OFFSET('Smelter Look-up'!$G$4,$V1412-4,0))","v":""},{"$f":"IF(ISERROR($V1412),\"\",OFFSET('Smelter Look-up'!$H$4,$V1412-4,0))","v":""},{"$f":"IF(ISERROR($V1412),\"\",OFFSET('Smelter Look-up'!$I$4,$V1412-4,0))","v":""},{"$nulls":7},{"$f":"IF(ISERROR($V1412),\"\",OFFSET('Smelter Look-up'!$C$4,$V1412-4,0)&\"\")","v":""},"",{"$f":"IF(B1412=\"\",\"\",IF(ISERROR(MATCH($J1412,SorP!$B$1:$B$6230,0)),\"\",INDIRECT(\"'SorP'!$A$\"&MATCH($J1412,SorP!$B$1:$B$6230,0))))","v":""},null,{"$f":"IF(C1412=\"\",NA(),MATCH($B1412&$C1412,'Smelter Look-up'!$J:$J,0))","v":{"$error":"#N/A"}},null,0,null,null,null,""]
[null,{"$f":"IF(LEN(A1413)=0,\"\",INDEX('Smelter Look-up'!$A:$A,MATCH($A1413,'Smelter Look-up'!$E:$E,0)))","v":""},{"$f":"IF(LEN(A1413)=0,\"\",INDEX('Smelter Look-up'!$C:$C,MATCH($A1413,'Smelter Look-up'!$E:$E,0)))","v":""},null,{"$f":"IF(ISERROR($V1413),\"\",OFFSET('Smelter Look-up'!$D$4,$V1413-4,0)&\"\")","v":""},{"$f":"IF(ISERROR($V1413),\"\",OFFSET('Smelter Look-up'!$E$4,$V1413-4,0))","v":""},{"$f":"IF(C1413=$X$4,\"Enter smelter details\", IF(ISERROR($V1413),\"\",OFFSET('Smelter Look-up'!$F$4,$V1413-4,0)))","v":""},{"$f":"IF(ISERROR($V1413),\"\",OFFSET('Smelter Look-up'!$G$4,$V1413-4,0))","v":""},{"$f":"IF(ISERROR($V1413),\"\",OFFSET('Smelter Look-up'!$H$4,$V1413-4,0))","v":""},{"$f":"IF(ISERROR($V1413),\"\",OFFSET('Smelter Look-up'!$I$4,$V1413-4,0))","v":""},{"$nulls":7},{"$f":"IF(ISERROR($V1413),\"\",OFFSET('Smelter Look-up'!$C$4,$V1413-4,0)&\"\")","v":""},"",{"$f":"IF(B1413=\"\",\"\",IF(ISERROR(MATCH($J1413,SorP!$B$1:$B$6230,0)),\"\",INDIRECT(\"'SorP'!$A$\"&MATCH($J1413,SorP!$B$1:$B$6230,0))))","v":""},null,{"$f":"IF(C1413=\"\",NA(),MATCH($B1413&$C1413,'Smelter Look-up'!$J:$J,0))","v":{"$error":"#N/A"}},null,0,null,null,null,""]
[null,{"$f":"IF(LEN(A1414)=0,\"\",INDEX('Smelter Look-up'!$A:$A,MATCH($A1414,'Smelter Look-up'!$E:$E,0)))","v":""},{"$f":"IF(LEN(A1414)=0,\"\",INDEX('Smelter Look-up'!$C:$C,MATCH($A1414,'Smelter Look-up'!$E:$E,0)))","v":""},null,{"$f":"IF(ISERROR($V1414),\"\",OFFSET('Smelter Look-up'!$D$4,$V1414-4,0)&\"\")","v":""},{"$f":"IF(ISERROR($V1414),\"\",OFFSET('Smelter Look-up'!$E$4,$V1414-4,0))","v":""},{"$f":"IF(C1414=$X$4,\"Enter smelter details\", IF(ISERROR($V1414),\"\",OFFSET('Smelter Look-up'!$F$4,$V1414-4,0)))","v":""},{"$f":"IF(ISERROR($V1414),\"\",OFFSET('Smelter Look-up'!$G$4,$V1414-4,0))","v":""},{"$f":"IF(ISERROR($V1414),\"\",OFFSET('Smelter Look-up'!$H$4,$V1414-4,0))","v":""},{"$f":"IF(ISERROR($V1414),\"\",OFFSET('Smelter Look-up'!$I$4,$V1414-4,0))","v":""},{"$nulls":7},{"$f":"IF(ISERROR($V1414),\"\",OFFSET('Smelter Look-up'!$C$4,$V1414-4,0)&\"\")","v":""},"",{"$f":"IF(B1414=\"\",\"\",IF(ISERROR(MATCH($J1414,SorP!$B$1:$B$6230,0)),\"\",INDIRECT(\"'SorP'!$A$\"&MATCH($J1414,SorP!$B$1:$B$6230,0))))","v":""},null,{"$f":"IF(C1414=\"\",NA(),MATCH($B1414&$C1414,'Smelter Look-up'!$J:$J,0))","v":{"$error":"#N/A"}},null,0,null,null,null,""]
[null,{"$f":"IF(LEN(A1415)=0,\"\",INDEX('Smelter Look-up'!$A:$A,MATCH($A1415,'Smelter Look-up'!$E:$E,0)))","v":""},{"$f":"IF(LEN(A1415)=0,\"\",INDEX('Smelter Look-up'!$C:$C,MATCH($A1415,'Smelter Look-up'!$E:$E,0)))","v":""},null,{"$f":"IF(ISERROR($V1415),\"\",OFFSET('Smelter Look-up'!$D$4,$V1415-4,0)&\"\")","v":""},{"$f":"IF(ISERROR($V1415),\"\",OFFSET('Smelter Look-up'!$E$4,$V1415-4,0))","v":""},{"$f":"IF(C1415=$X$4,\"Enter smelter details\", IF(ISERROR($V1415),\"\",OFFSET('Smelter Look-up'!$F$4,$V1415-4,0)))","v":""},{"$f":"IF(ISERROR($V1415),\"\",OFFSET('Smelter Look-up'!$G$4,$V1415-4,0))","v":""},{"$f":"IF(ISERROR($V1415),\"\",OFFSET('Smelter Look-up'!$H$4,$V1415-4,0))","v":""},{"$f":"IF(ISERROR($V1415),\"\",OFFSET('Smelter Look-up'!$I$4,$V1415-4,0))","v":""},{"$nulls":7},{"$f":"IF(ISERROR($V1415),\"\",OFFSET('Smelter Look-up'!$C$4,$V1415-4,0)&\"\")","v":""},"",{"$f":"IF(B1415=\"\",\"\",IF(ISERROR(MATCH($J1415,SorP!$B$1:$B$6230,0)),\"\",INDIRECT(\"'SorP'!$A$\"&MATCH($J1415,SorP!$B$1:$B$6230,0))))","v":""},null,{"$f":"IF(C1415=\"\",NA(),MATCH($B1415&$C1415,'Smelter Look-up'!$J:$J,0))","v":{"$error":"#N/A"}},null,0,null,null,null,""]
[null,{"$f":"IF(LEN(A1416)=0,\"\",INDEX('Smelter Look-up'!$A:$A,MATCH($A1416,'Smelter Look-up'!$E:$E,0)))","v":""},{"$f":"IF(LEN(A1416)=0,\"\",INDEX('Smelter Look-up'!$C:$C,MATCH($A1416,'Smelter Look-up'!$E:$E,0)))","v":""},null,{"$f":"IF(ISERROR($V1416),\"\",OFFSET('Smelter Look-up'!$D$4,$V1416-4,0)&\"\")","v":""},{"$f":"IF(ISERROR($V1416),\"\",OFFSET('Smelter Look-up'!$E$4,$V1416-4,0))","v":""},{"$f":"IF(C1416=$X$4,\"Enter smelter details\", IF(ISERROR($V1416),\"\",OFFSET('Smelter Look-up'!$F$4,$V1416-4,0)))","v":""},{"$f":"IF(ISERROR($V1416),\"\",OFFSET('Smelter Look-up'!$G$4,$V1416-4,0))","v":""},{"$f":"IF(ISERROR($V1416),\"\",OFFSET('Smelter Look-up'!$H$4,$V1416-4,0))","v":""},{"$f":"IF(ISERROR($V1416),\"\",OFFSET('Smelter Look-up'!$I$4,$V1416-4,0))","v":""},{"$nulls":7},{"$f":"IF(ISERROR($V1416),\"\",OFFSET('Smelter Look-up'!$C$4,$V1416-4,0)&\"\")","v":""},"",{"$f":"IF(B1416=\"\",\"\",IF(ISERROR(MATCH($J1416,SorP!$B$1:$B$6230,0)),\"\",INDIRECT(\"'SorP'!$A$\"&MATCH($J1416,SorP!$B$1:$B$6230,0))))","v":""},null,{"$f":"IF(C1416=\"\",NA(),MATCH($B1416&$C1416,'Smelter Look-up'!$J:$J,0))","v":{"$error":"#N/A"}},null,0,null,null,null,""]
[null,{"$f":"IF(LEN(A1417)=0,\"\",INDEX('Smelter Look-up'!$A:$A,MATCH($A1417,'Smelter Look-up'!$E:$E,0)))","v":""},{"$f":"IF(LEN(A1417)=0,\"\",INDEX('Smelter Look-up'!$C:$C,MATCH($A1417,'Smelter Look-up'!$E:$E,0)))","v":""},null,{"$f":"IF(ISERROR($V1417),\"\",OFFSET('Smelter Look-up'!$D$4,$V1417-4,0)&\"\")","v":""},{"$f":"IF(ISERROR($V1417),\"\",OFFSET('Smelter Look-up'!$E$4,$V1417-4,0))","v":""},{"$f":"IF(C1417=$X$4,\"Enter smelter details\", IF(ISERROR($V1417),\"\",OFFSET('Smelter Look-up'!$F$4,$V1417-4,0)))","v":""},{"$f":"IF(ISERROR($V1417),\"\",OFFSET('Smelter Look-up'!$G$4,$V1417-4,0))","v":""},{"$f":"IF(ISERROR($V1417),\"\",OFFSET('Smelter Look-up'!$H$4,$V1417-4,0))","v":""},{"$f":"IF(ISERROR($V1417),\"\",OFFSET('Smelter Look-up'!$I$4,$V1417-4,0))","v":""},{"$nulls":7},{"$f":"IF(ISERROR($V1417),\"\",OFFSET('Smelter Look-up'!$C$4,$V1417-4,0)&\"\")","v":""},"",{"$f":"IF(B1417=\"\",\"\",IF(ISERROR(MATCH($J1417,SorP!$B$1:$B$6230,0)),\"\",INDIRECT(\"'SorP'!$A$\"&MATCH($J1417,SorP!$B$1:$B$6230,0))))","v":""},null,{"$f":"IF(C1417=\"\",NA(),MATCH($B1417&$C1417,'Smelter Look-up'!$J:$J,0))","v":{"$error":"#N/A"}},null,0,null,null,null,""]
[null,{"$f":"IF(LEN(A1418)=0,\"\",INDEX('Smelter Look-up'!$A:$A,MATCH($A1418,'Smelter Look-up'!$E:$E,0)))","v":""},{"$f":"IF(LEN(A1418)=0,\"\",INDEX('Smelter Look-up'!$C:$C,MATCH($A1418,'Smelter Look-up'!$E:$E,0)))","v":""},null,{"$f":"IF(ISERROR($V1418),\"\",OFFSET('Smelter Look-up'!$D$4,$V1418-4,0)&\"\")","v":""},{"$f":"IF(ISERROR($V1418),\"\",OFFSET('Smelter Look-up'!$E$4,$V1418-4,0))","v":""},{"$f":"IF(C1418=$X$4,\"Enter smelter details\", IF(ISERROR($V1418),\"\",OFFSET('Smelter Look-up'!$F$4,$V1418-4,0)))","v":""},{"$f":"IF(ISERROR($V1418),\"\",OFFSET('Smelter Look-up'!$G$4,$V1418-4,0))","v":""},{"$f":"IF(ISERROR($V1418),\"\",OFFSET('Smelter Look-up'!$H$4,$V1418-4,0))","v":""},{"$f":"IF(ISERROR($V1418),\"\",OFFSET('Smelter Look-up'!$I$4,$V1418-4,0))","v":""},{"$nulls":7},{"$f":"IF(ISERROR($V1418),\"\",OFFSET('Smelter Look-up'!$C$4,$V1418-4,0)&\"\")","v":""},"",{"$f":"IF(B1418=\"\",\"\",IF(ISERROR(MATCH($J1418,SorP!$B$1:$B$6230,0)),\"\",INDIRECT(\"'SorP'!$A$\"&MATCH($J1418,SorP!$B$1:$B$6230,0))))","v":""},null,{"$f":"IF(C1418=\"\",NA(),MATCH($B1418&$C1418,'Smelter Look-up'!$J:$J,0))","v":{"$error":"#N/A"}},null,0,null,null,null,""]
[null,{"$f":"IF(LEN(A1419)=0,\"\",INDEX('Smelter Look-up'!$A:$A,MATCH($A1419,'Smelter Look-up'!$E:$E,0)))","v":""},{"$f":"IF(LEN(A1419)=0,\"\",INDEX('Smelter Look-up'!$C:$C,MATCH($A1419,'Smelter Look-up'!$E:$E,0)))","v":""},null,{"$f":"IF(ISERROR($V1419),\"\",OFFSET('Smelter Look-up'!$D$4,$V1419-4,0)&\"\")","v":""},{"$f":"IF(ISERROR($V1419),\"\",OFFSET('Smelter Look-up'!$E$4,$V1419-4,0))","v":""},{"$f":"IF(C1419=$X$4,\"Enter smelter details\", IF(ISERROR($V1419),\"\",OFFSET('Smelter Look-up'!$F$4,$V1419-4,0)))","v":""},{"$f":"IF(ISERROR($V1419),\"\",OFFSET('Smelter Look-up'!$G$4,$V1419-4,0))","v":""},{"$f":"IF(ISERROR($V1419),\"\",OFFSET('Smelter Look-up'!$H$4,$V1419-4,0))","v":""},{"$f":"IF(ISERROR($V1419),\"\",OFFSET('Smelter Look-up'!$I$4,$V1419-4,0))","v":""},{"$nulls":7},{"$f":"IF(ISERROR($V1419),\"\",OFFSET('Smelter Look-up'!$C$4,$V1419-4,0)&\"\")","v":""},"",{"$f":"IF(B1419=\"\",\"\",IF(ISERROR(MATCH($J1419,SorP!$B$1:$B$6230,0)),\"\",INDIRECT(\"'SorP'!$A$\"&MATCH($J1419,SorP!$B$1:$B$6230,0))))","v":""},null,{"$f":"IF(C1419=\"\",NA(),MATCH($B1419&$C1419,'Smelter Look-up'!$J:$J,0))","v":{"$error":"#N/A"}},null,0,null,null,null,""]
[null,{"$f":"IF(LEN(A1420)=0,\"\",INDEX('Smelter Look-up'!$A:$A,MATCH($A1420,'Smelter Look-up'!$E:$E,0)))","v":""},{"$f":"IF(LEN(A1420)=0,\"\",INDEX('Smelter Look-up'!$C:$C,MATCH($A1420,'Smelter Look-up'!$E:$E,0)))","v":""},null,{"$f":"IF(ISERROR($V1420),\"\",OFFSET('Smelter Look-up'!$D$4,$V1420-4,0)&\"\")","v":""},{"$f":"IF(ISERROR($V1420),\"\",OFFSET('Smelter Look-up'!$E$4,$V1420-4,0))","v":""},{"$f":"IF(C1420=$X$4,\"Enter smelter details\", IF(ISERROR($V1420),\"\",OFFSET('Smelter Look-up'!$F$4,$V1420-4,0)))","v":""},{"$f":"IF(ISERROR($V1420),\"\",OFFSET('Smelter Look-up'!$G$4,$V1420-4,0))","v":""},{"$f":"IF(ISERROR($V1420),\"\",OFFSET('Smelter Look-up'!$H$4,$V1420-4,0))","v":""},{"$f":"IF(ISERROR($V1420),\"\",OFFSET('Smelter Look-up'!$I$4,$V1420-4,0))","v":""},{"$nulls":7},{"$f":"IF(ISERROR($V1420),\"\",OFFSET('Smelter Look-up'!$C$4,$V1420-4,0)&\"\")","v":""},"",{"$f":"IF(B1420=\"\",\"\",IF(ISERROR(MATCH($J1420,SorP!$B$1:$B$6230,0)),\"\",INDIRECT(\"'SorP'!$A$\"&MATCH($J1420,SorP!$B$1:$B$6230,0))))","v":""},null,{"$f":"IF(C1420=\"\",NA(),MATCH($B1420&$C1420,'Smelter Look-up'!$J:$J,0))","v":{"$error":"#N/A"}},null,0,null,null,null,""]
[null,{"$f":"IF(LEN(A1421)=0,\"\",INDEX('Smelter Look-up'!$A:$A,MATCH($A1421,'Smelter Look-up'!$E:$E,0)))","v":""},{"$f":"IF(LEN(A1421)=0,\"\",INDEX('Smelter Look-up'!$C:$C,MATCH($A1421,'Smelter Look-up'!$E:$E,0)))","v":""},null,{"$f":"IF(ISERROR($V1421),\"\",OFFSET('Smelter Look-up'!$D$4,$V1421-4,0)&\"\")","v":""},{"$f":"IF(ISERROR($V1421),\"\",OFFSET('Smelter Look-up'!$E$4,$V1421-4,0))","v":""},{"$f":"IF(C1421=$X$4,\"Enter smelter details\", IF(ISERROR($V1421),\"\",OFFSET('Smelter Look-up'!$F$4,$V1421-4,0)))","v":""},{"$f":"IF(ISERROR($V1421),\"\",OFFSET('Smelter Look-up'!$G$4,$V1421-4,0))","v":""},{"$f":"IF(ISERROR($V1421),\"\",OFFSET('Smelter Look-up'!$H$4,$V1421-4,0))","v":""},{"$f":"IF(ISERROR($V1421),\"\",OFFSET('Smelter Look-up'!$I$4,$V1421-4,0))","v":""},{"$nulls":7},{"$f":"IF(ISERROR($V1421),\"\",OFFSET('Smelter Look-up'!$C$4,$V1421-4,0)&\"\")","v":""},"",{"$f":"IF(B1421=\"\",\"\",IF(ISERROR(MATCH($J1421,SorP!$B$1:$B$6230,0)),\"\",INDIRECT(\"'SorP'!$A$\"&MATCH($J1421,SorP!$B$1:$B$6230,0))))","v":""},null,{"$f":"IF(C1421=\"\",NA(),MATCH($B1421&$C1421,'Smelter Look-up'!$J:$J,0))","v":{"$error":"#N/A"}},null,0,null,null,null,""]
[null,{"$f":"IF(LEN(A1422)=0,\"\",INDEX('Smelter Look-up'!$A:$A,MATCH($A1422,'Smelter Look-up'!$E:$E,0)))","v":""},{"$f":"IF(LEN(A1422)=0,\"\",INDEX('Smelter Look-up'!$C:$C,MATCH($A1422,'Smelter Look-up'!$E:$E,0)))","v":""},null,{"$f":"IF(ISERROR($V1422),\"\",OFFSET('Smelter Look-up'!$D$4,$V1422-4,0)&\"\")","v":""},{"$f":"IF(ISERROR($V1422),\"\",OFFSET('Smelter Look-up'!$E$4,$V1422-4,0))","v":""},{"$f":"IF(C1422=$X$4,\"Enter smelter details\", IF(ISERROR($V1422),\"\",OFFSET('Smelter Look-up'!$F$4,$V1422-4,0)))","v":""},{"$f":"IF(ISERROR($V1422),\"\",OFFSET('Smelter Look-up'!$G$4,$V1422-4,0))","v":""},{"$f":"IF(ISERROR($V1422),\"\",OFFSET('Smelter Look-up'!$H$4,$V1422-4,0))","v":""},{"$f":"IF(ISERROR($V1422),\"\",OFFSET('Smelter Look-up'!$I$4,$V1422-4,0))","v":""},{"$nulls":7},{"$f":"IF(ISERROR($V1422),\"\",OFFSET('Smelter Look-up'!$C$4,$V1422-4,0)&\"\")","v":""},"",{"$f":"IF(B1422=\"\",\"\",IF(ISERROR(MATCH($J1422,SorP!$B$1:$B$6230,0)),\"\",INDIRECT(\"'SorP'!$A$\"&MATCH($J1422,SorP!$B$1:$B$6230,0))))","v":""},null,{"$f":"IF(C1422=\"\",NA(),MATCH($B1422&$C1422,'Smelter Look-up'!$J:$J,0))","v":{"$error":"#N/A"}},null,0,null,null,null,""]
[null,{"$f":"IF(LEN(A1423)=0,\"\",INDEX('Smelter Look-up'!$A:$A,MATCH($A1423,'Smelter Look-up'!$E:$E,0)))","v":""},{"$f":"IF(LEN(A1423)=0,\"\",INDEX('Smelter Look-up'!$C:$C,MATCH($A1423,'Smelter Look-up'!$E:$E,0)))","v":""},null,{"$f":"IF(ISERROR($V1423),\"\",OFFSET('Smelter Look-up'!$D$4,$V1423-4,0)&\"\")","v":""},{"$f":"IF(ISERROR($V1423),\"\",OFFSET('Smelter Look-up'!$E$4,$V1423-4,0))","v":""},{"$f":"IF(C1423=$X$4,\"Enter smelter details\", IF(ISERROR($V1423),\"\",OFFSET('Smelter Look-up'!$F$4,$V1423-4,0)))","v":""},{"$f":"IF(ISERROR($V1423),\"\",OFFSET('Smelter Look-up'!$G$4,$V1423-4,0))","v":""},{"$f":"IF(ISERROR($V1423),\"\",OFFSET('Smelter Look-up'!$H$4,$V1423-4,0))","v":""},{"$f":"IF(ISERROR($V1423),\"\",OFFSET('Smelter Look-up'!$I$4,$V1423-4,0))","v":""},{"$nulls":7},{"$f":"IF(ISERROR($V1423),\"\",OFFSET('Smelter Look-up'!$C$4,$V1423-4,0)&\"\")","v":""},"",{"$f":"IF(B1423=\"\",\"\",IF(ISERROR(MATCH($J1423,SorP!$B$1:$B$6230,0)),\"\",INDIRECT(\"'SorP'!$A$\"&MATCH($J1423,SorP!$B$1:$B$6230,0))))","v":""},null,{"$f":"IF(C1423=\"\",NA(),MATCH($B1423&$C1423,'Smelter Look-up'!$J:$J,0))","v":{"$error":"#N/A"}},null,0,null,null,null,""]
[null,{"$f":"IF(LEN(A1424)=0,\"\",INDEX('Smelter Look-up'!$A:$A,MATCH($A1424,'Smelter Look-up'!$E:$E,0)))","v":""},{"$f":"IF(LEN(A1424)=0,\"\",INDEX('Smelter Look-up'!$C:$C,MATCH($A1424,'Smelter Look-up'!$E:$E,0)))","v":""},null,{"$f":"IF(ISERROR($V1424),\"\",OFFSET('Smelter Look-up'!$D$4,$V1424-4,0)&\"\")","v":""},{"$f":"IF(ISERROR($V1424),\"\",OFFSET('Smelter Look-up'!$E$4,$V1424-4,0))","v":""},{"$f":"IF(C1424=$X$4,\"Enter smelter details\", IF(ISERROR($V1424),\"\",OFFSET('Smelter Look-up'!$F$4,$V1424-4,0)))","v":""},{"$f":"IF(ISERROR($V1424),\"\",OFFSET('Smelter Look-up'!$G$4,$V1424-4,0))","v":""},{"$f":"IF(ISERROR($V1424),\"\",OFFSET('Smelter Look-up'!$H$4,$V1424-4,0))","v":""},{"$f":"IF(ISERROR($V1424),\"\",OFFSET('Smelter Look-up'!$I$4,$V1424-4,0))","v":""},{"$nulls":7},{"$f":"IF(ISERROR($V1424),\"\",OFFSET('Smelter Look-up'!$C$4,$V1424-4,0)&\"\")","v":""},"",{"$f":"IF(B1424=\"\",\"\",IF(ISERROR(MATCH($J1424,SorP!$B$1:$B$6230,0)),\"\",INDIRECT(\"'SorP'!$A$\"&MATCH($J1424,SorP!$B$1:$B$6230,0))))","v":""},null,{"$f":"IF(C1424=\"\",NA(),MATCH($B1424&$C1424,'Smelter Look-up'!$J:$J,0))","v":{"$error":"#N/A"}},null,0,null,null,null,""]
[null,{"$f":"IF(LEN(A1425)=0,\"\",INDEX('Smelter Look-up'!$A:$A,MATCH($A1425,'Smelter Look-up'!$E:$E,0)))","v":""},{"$f":"IF(LEN(A1425)=0,\"\",INDEX('Smelter Look-up'!$C:$C,MATCH($A1425,'Smelter Look-up'!$E:$E,0)))","v":""},null,{"$f":"IF(ISERROR($V1425),\"\",OFFSET('Smelter Look-up'!$D$4,$V1425-4,0)&\"\")","v":""},{"$f":"IF(ISERROR($V1425),\"\",OFFSET('Smelter Look-up'!$E$4,$V1425-4,0))","v":""},{"$f":"IF(C1425=$X$4,\"Enter smelter details\", IF(ISERROR($V1425),\"\",OFFSET('Smelter Look-up'!$F$4,$V1425-4,0)))","v":""},{"$f":"IF(ISERROR($V1425),\"\",OFFSET('Smelter Look-up'!$G$4,$V1425-4,0))","v":""},{"$f":"IF(ISERROR($V1425),\"\",OFFSET('Smelter Look-up'!$H$4,$V1425-4,0))","v":""},{"$f":"IF(ISERROR($V1425),\"\",OFFSET('Smelter Look-up'!$I$4,$V1425-4,0))","v":""},{"$nulls":7},{"$f":"IF(ISERROR($V1425),\"\",OFFSET('Smelter Look-up'!$C$4,$V1425-4,0)&\"\")","v":""},"",{"$f":"IF(B1425=\"\",\"\",IF(ISERROR(MATCH($J1425,SorP!$B$1:$B$6230,0)),\"\",INDIRECT(\"'SorP'!$A$\"&MATCH($J1425,SorP!$B$1:$B$6230,0))))","v":""},null,{"$f":"IF(C1425=\"\",NA(),MATCH($B1425&$C1425,'Smelter Look-up'!$J:$J,0))","v":{"$error":"#N/A"}},null,0,null,null,null,""]
[null,{"$f":"IF(LEN(A1426)=0,\"\",INDEX('Smelter Look-up'!$A:$A,MATCH($A1426,'Smelter Look-up'!$E:$E,0)))","v":""},{"$f":"IF(LEN(A1426)=0,\"\",INDEX('Smelter Look-up'!$C:$C,MATCH($A1426,'Smelter Look-up'!$E:$E,0)))","v":""},null,{"$f":"IF(ISERROR($V1426),\"\",OFFSET('Smelter Look-up'!$D$4,$V1426-4,0)&\"\")","v":""},{"$f":"IF(ISERROR($V1426),\"\",OFFSET('Smelter Look-up'!$E$4,$V1426-4,0))","v":""},{"$f":"IF(C1426=$X$4,\"Enter smelter details\", IF(ISERROR($V1426),\"\",OFFSET('Smelter Look-up'!$F$4,$V1426-4,0)))","v":""},{"$f":"IF(ISERROR($V1426),\"\",OFFSET('Smelter Look-up'!$G$4,$V1426-4,0))","v":""},{"$f":"IF(ISERROR($V1426),\"\",OFFSET('Smelter Look-up'!$H$4,$V1426-4,0))","v":""},{"$f":"IF(ISERROR($V1426),\"\",OFFSET('Smelter Look-up'!$I$4,$V1426-4,0))","v":""},{"$nulls":7},{"$f":"IF(ISERROR($V1426),\"\",OFFSET('Smelter Look-up'!$C$4,$V1426-4,0)&\"\")","v":""},"",{"$f":"IF(B1426=\"\",\"\",IF(ISERROR(MATCH($J1426,SorP!$B$1:$B$6230,0)),\"\",INDIRECT(\"'SorP'!$A$\"&MATCH($J1426,SorP!$B$1:$B$6230,0))))","v":""},null,{"$f":"IF(C1426=\"\",NA(),MATCH($B1426&$C1426,'Smelter Look-up'!$J:$J,0))","v":{"$error":"#N/A"}},null,0,null,null,null,""]
[null,{"$f":"IF(LEN(A1427)=0,\"\",INDEX('Smelter Look-up'!$A:$A,MATCH($A1427,'Smelter Look-up'!$E:$E,0)))","v":""},{"$f":"IF(LEN(A1427)=0,\"\",INDEX('Smelter Look-up'!$C:$C,MATCH($A1427,'Smelter Look-up'!$E:$E,0)))","v":""},null,{"$f":"IF(ISERROR($V1427),\"\",OFFSET('Smelter Look-up'!$D$4,$V1427-4,0)&\"\")","v":""},{"$f":"IF(ISERROR($V1427),\"\",OFFSET('Smelter Look-up'!$E$4,$V1427-4,0))","v":""},{"$f":"IF(C1427=$X$4,\"Enter smelter details\", IF(ISERROR($V1427),\"\",OFFSET('Smelter Look-up'!$F$4,$V1427-4,0)))","v":""},{"$f":"IF(ISERROR($V1427),\"\",OFFSET('Smelter Look-up'!$G$4,$V1427-4,0))","v":""},{"$f":"IF(ISERROR($V1427),\"\",OFFSET('Smelter Look-up'!$H$4,$V1427-4,0))","v":""},{"$f":"IF(ISERROR($V1427),\"\",OFFSET('Smelter Look-up'!$I$4,$V1427-4,0))","v":""},{"$nulls":7},{"$f":"IF(ISERROR($V1427),\"\",OFFSET('Smelter Look-up'!$C$4,$V1427-4,0)&\"\")","v":""},"",{"$f":"IF(B1427=\"\",\"\",IF(ISERROR(MATCH($J1427,SorP!$B$1:$B$6230,0)),\"\",INDIRECT(\"'SorP'!$A$\"&MATCH($J1427,SorP!$B$1:$B$6230,0))))","v":""},null,{"$f":"IF(C1427=\"\",NA(),MATCH($B1427&$C1427,'Smelter Look-up'!$J:$J,0))","v":{"$error":"#N/A"}},null,0,null,null,null,""]
[null,{"$f":"IF(LEN(A1428)=0,\"\",INDEX('Smelter Look-up'!$A:$A,MATCH($A1428,'Smelter Look-up'!$E:$E,0)))","v":""},{"$f":"IF(LEN(A1428)=0,\"\",INDEX('Smelter Look-up'!$C:$C,MATCH($A1428,'Smelter Look-up'!$E:$E,0)))","v":""},null,{"$f":"IF(ISERROR($V1428),\"\",OFFSET('Smelter Look-up'!$D$4,$V1428-4,0)&\"\")","v":""},{"$f":"IF(ISERROR($V1428),\"\",OFFSET('Smelter Look-up'!$E$4,$V1428-4,0))","v":""},{"$f":"IF(C1428=$X$4,\"Enter smelter details\", IF(ISERROR($V1428),\"\",OFFSET('Smelter Look-up'!$F$4,$V1428-4,0)))","v":""},{"$f":"IF(ISERROR($V1428),\"\",OFFSET('Smelter Look-up'!$G$4,$V1428-4,0))","v":""},{"$f":"IF(ISERROR($V1428),\"\",OFFSET('Smelter Look-up'!$H$4,$V1428-4,0))","v":""},{"$f":"IF(ISERROR($V1428),\"\",OFFSET('Smelter Look-up'!$I$4,$V1428-4,0))","v":""},{"$nulls":7},{"$f":"IF(ISERROR($V1428),\"\",OFFSET('Smelter Look-up'!$C$4,$V1428-4,0)&\"\")","v":""},"",{"$f":"IF(B1428=\"\",\"\",IF(ISERROR(MATCH($J1428,SorP!$B$1:$B$6230,0)),\"\",INDIRECT(\"'SorP'!$A$\"&MATCH($J1428,SorP!$B$1:$B$6230,0))))","v":""},null,{"$f":"IF(C1428=\"\",NA(),MATCH($B1428&$C1428,'Smelter Look-up'!$J:$J,0))","v":{"$error":"#N/A"}},null,0,null,null,null,""]
[null,{"$f":"IF(LEN(A1429)=0,\"\",INDEX('Smelter Look-up'!$A:$A,MATCH($A1429,'Smelter Look-up'!$E:$E,0)))","v":""},{"$f":"IF(LEN(A1429)=0,\"\",INDEX('Smelter Look-up'!$C:$C,MATCH($A1429,'Smelter Look-up'!$E:$E,0)))","v":""},null,{"$f":"IF(ISERROR($V1429),\"\",OFFSET('Smelter Look-up'!$D$4,$V1429-4,0)&\"\")","v":""},{"$f":"IF(ISERROR($V1429),\"\",OFFSET('Smelter Look-up'!$E$4,$V1429-4,0))","v":""},{"$f":"IF(C1429=$X$4,\"Enter smelter details\", IF(ISERROR($V1429),\"\",OFFSET('Smelter Look-up'!$F$4,$V1429-4,0)))","v":""},{"$f":"IF(ISERROR($V1429),\"\",OFFSET('Smelter Look-up'!$G$4,$V1429-4,0))","v":""},{"$f":"IF(ISERROR($V1429),\"\",OFFSET('Smelter Look-up'!$H$4,$V1429-4,0))","v":""},{"$f":"IF(ISERROR($V1429),\"\",OFFSET('Smelter Look-up'!$I$4,$V1429-4,0))","v":""},{"$nulls":7},{"$f":"IF(ISERROR($V1429),\"\",OFFSET('Smelter Look-up'!$C$4,$V1429-4,0)&\"\")","v":""},"",{"$f":"IF(B1429=\"\",\"\",IF(ISERROR(MATCH($J1429,SorP!$B$1:$B$6230,0)),\"\",INDIRECT(\"'SorP'!$A$\"&MATCH($J1429,SorP!$B$1:$B$6230,0))))","v":""},null,{"$f":"IF(C1429=\"\",NA(),MATCH($B1429&$C1429,'Smelter Look-up'!$J:$J,0))","v":{"$error":"#N/A"}},null,0,null,null,null,""]
[null,{"$f":"IF(LEN(A1430)=0,\"\",INDEX('Smelter Look-up'!$A:$A,MATCH($A1430,'Smelter Look-up'!$E:$E,0)))","v":""},{"$f":"IF(LEN(A1430)=0,\"\",INDEX('Smelter Look-up'!$C:$C,MATCH($A1430,'Smelter Look-up'!$E:$E,0)))","v":""},null,{"$f":"IF(ISERROR($V1430),\"\",OFFSET('Smelter Look-up'!$D$4,$V1430-4,0)&\"\")","v":""},{"$f":"IF(ISERROR($V1430),\"\",OFFSET('Smelter Look-up'!$E$4,$V1430-4,0))","v":""},{"$f":"IF(C1430=$X$4,\"Enter smelter details\", IF(ISERROR($V1430),\"\",OFFSET('Smelter Look-up'!$F$4,$V1430-4,0)))","v":""},{"$f":"IF(ISERROR($V1430),\"\",OFFSET('Smelter Look-up'!$G$4,$V1430-4,0))","v":""},{"$f":"IF(ISERROR($V1430),\"\",OFFSET('Smelter Look-up'!$H$4,$V1430-4,0))","v":""},{"$f":"IF(ISERROR($V1430),\"\",OFFSET('Smelter Look-up'!$I$4,$V1430-4,0))","v":""},{"$nulls":7},{"$f":"IF(ISERROR($V1430),\"\",OFFSET('Smelter Look-up'!$C$4,$V1430-4,0)&\"\")","v":""},"",{"$f":"IF(B1430=\"\",\"\",IF(ISERROR(MATCH($J1430,SorP!$B$1:$B$6230,0)),\"\",INDIRECT(\"'SorP'!$A$\"&MATCH($J1430,SorP!$B$1:$B$6230,0))))","v":""},null,{"$f":"IF(C1430=\"\",NA(),MATCH($B1430&$C1430,'Smelter Look-up'!$J:$J,0))","v":{"$error":"#N/A"}},null,0,null,null,null,""]
[null,{"$f":"IF(LEN(A1431)=0,\"\",INDEX('Smelter Look-up'!$A:$A,MATCH($A1431,'Smelter Look-up'!$E:$E,0)))","v":""},{"$f":"IF(LEN(A1431)=0,\"\",INDEX('Smelter Look-up'!$C:$C,MATCH($A1431,'Smelter Look-up'!$E:$E,0)))","v":""},null,{"$f":"IF(ISERROR($V1431),\"\",OFFSET('Smelter Look-up'!$D$4,$V1431-4,0)&\"\")","v":""},{"$f":"IF(ISERROR($V1431),\"\",OFFSET('Smelter Look-up'!$E$4,$V1431-4,0))","v":""},{"$f":"IF(C1431=$X$4,\"Enter smelter details\", IF(ISERROR($V1431),\"\",OFFSET('Smelter Look-up'!$F$4,$V1431-4,0)))","v":""},{"$f":"IF(ISERROR($V1431),\"\",OFFSET('Smelter Look-up'!$G$4,$V1431-4,0))","v":""},{"$f":"IF(ISERROR($V1431),\"\",OFFSET('Smelter Look-up'!$H$4,$V1431-4,0))","v":""},{"$f":"IF(ISERROR($V1431),\"\",OFFSET('Smelter Look-up'!$I$4,$V1431-4,0))","v":""},{"$nulls":7},{"$f":"IF(ISERROR($V1431),\"\",OFFSET('Smelter Look-up'!$C$4,$V1431-4,0)&\"\")","v":""},"",{"$f":"IF(B1431=\"\",\"\",IF(ISERROR(MATCH($J1431,SorP!$B$1:$B$6230,0)),\"\",INDIRECT(\"'SorP'!$A$\"&MATCH($J1431,SorP!$B$1:$B$6230,0))))","v":""},null,{"$f":"IF(C1431=\"\",NA(),MATCH($B1431&$C1431,'Smelter Look-up'!$J:$J,0))","v":{"$error":"#N/A"}},null,0,null,null,null,""]
[null,{"$f":"IF(LEN(A1432)=0,\"\",INDEX('Smelter Look-up'!$A:$A,MATCH($A1432,'Smelter Look-up'!$E:$E,0)))","v":""},{"$f":"IF(LEN(A1432)=0,\"\",INDEX('Smelter Look-up'!$C:$C,MATCH($A1432,'Smelter Look-up'!$E:$E,0)))","v":""},null,{"$f":"IF(ISERROR($V1432),\"\",OFFSET('Smelter Look-up'!$D$4,$V1432-4,0)&\"\")","v":""},{"$f":"IF(ISERROR($V1432),\"\",OFFSET('Smelter Look-up'!$E$4,$V1432-4,0))","v":""},{"$f":"IF(C1432=$X$4,\"Enter smelter details\", IF(ISERROR($V1432),\"\",OFFSET('Smelter Look-up'!$F$4,$V1432-4,0)))","v":""},{"$f":"IF(ISERROR($V1432),\"\",OFFSET('Smelter Look-up'!$G$4,$V1432-4,0))","v":""},{"$f":"IF(ISERROR($V1432),\"\",OFFSET('Smelter Look-up'!$H$4,$V1432-4,0))","v":""},{"$f":"IF(ISERROR($V1432),\"\",OFFSET('Smelter Look-up'!$I$4,$V1432-4,0))","v":""},{"$nulls":7},{"$f":"IF(ISERROR($V1432),\"\",OFFSET('Smelter Look-up'!$C$4,$V1432-4,0)&\"\")","v":""},"",{"$f":"IF(B1432=\"\",\"\",IF(ISERROR(MATCH($J1432,SorP!$B$1:$B$6230,0)),\"\",INDIRECT(\"'SorP'!$A$\"&MATCH($J1432,SorP!$B$1:$B$6230,0))))","v":""},null,{"$f":"IF(C1432=\"\",NA(),MATCH($B1432&$C1432,'Smelter Look-up'!$J:$J,0))","v":{"$error":"#N/A"}},null,0,null,null,null,""]
[null,{"$f":"IF(LEN(A1433)=0,\"\",INDEX('Smelter Look-up'!$A:$A,MATCH($A1433,'Smelter Look-up'!$E:$E,0)))","v":""},{"$f":"IF(LEN(A1433)=0,\"\",INDEX('Smelter Look-up'!$C:$C,MATCH($A1433,'Smelter Look-up'!$E:$E,0)))","v":""},null,{"$f":"IF(ISERROR($V1433),\"\",OFFSET('Smelter Look-up'!$D$4,$V1433-4,0)&\"\")","v":""},{"$f":"IF(ISERROR($V1433),\"\",OFFSET('Smelter Look-up'!$E$4,$V1433-4,0))","v":""},{"$f":"IF(C1433=$X$4,\"Enter smelter details\", IF(ISERROR($V1433),\"\",OFFSET('Smelter Look-up'!$F$4,$V1433-4,0)))","v":""},{"$f":"IF(ISERROR($V1433),\"\",OFFSET('Smelter Look-up'!$G$4,$V1433-4,0))","v":""},{"$f":"IF(ISERROR($V1433),\"\",OFFSET('Smelter Look-up'!$H$4,$V1433-4,0))","v":""},{"$f":"IF(ISERROR($V1433),\"\",OFFSET('Smelter Look-up'!$I$4,$V1433-4,0))","v":""},{"$nulls":7},{"$f":"IF(ISERROR($V1433),\"\",OFFSET('Smelter Look-up'!$C$4,$V1433-4,0)&\"\")","v":""},"",{"$f":"IF(B1433=\"\",\"\",IF(ISERROR(MATCH($J1433,SorP!$B$1:$B$6230,0)),\"\",INDIRECT(\"'SorP'!$A$\"&MATCH($J1433,SorP!$B$1:$B$6230,0))))","v":""},null,{"$f":"IF(C1433=\"\",NA(),MATCH($B1433&$C1433,'Smelter Look-up'!$J:$J,0))","v":{"$error":"#N/A"}},null,0,null,null,null,""]
[null,{"$f":"IF(LEN(A1434)=0,\"\",INDEX('Smelter Look-up'!$A:$A,MATCH($A1434,'Smelter Look-up'!$E:$E,0)))","v":""},{"$f":"IF(LEN(A1434)=0,\"\",INDEX('Smelter Look-up'!$C:$C,MATCH($A1434,'Smelter Look-up'!$E:$E,0)))","v":""},null,{"$f":"IF(ISERROR($V1434),\"\",OFFSET('Smelter Look-up'!$D$4,$V1434-4,0)&\"\")","v":""},{"$f":"IF(ISERROR($V1434),\"\",OFFSET('Smelter Look-up'!$E$4,$V1434-4,0))","v":""},{"$f":"IF(C1434=$X$4,\"Enter smelter details\", IF(ISERROR($V1434),\"\",OFFSET('Smelter Look-up'!$F$4,$V1434-4,0)))","v":""},{"$f":"IF(ISERROR($V1434),\"\",OFFSET('Smelter Look-up'!$G$4,$V1434-4,0))","v":""},{"$f":"IF(ISERROR($V1434),\"\",OFFSET('Smelter Look-up'!$H$4,$V1434-4,0))","v":""},{"$f":"IF(ISERROR($V1434),\"\",OFFSET('Smelter Look-up'!$I$4,$V1434-4,0))","v":""},{"$nulls":7},{"$f":"IF(ISERROR($V1434),\"\",OFFSET('Smelter Look-up'!$C$4,$V1434-4,0)&\"\")","v":""},"",{"$f":"IF(B1434=\"\",\"\",IF(ISERROR(MATCH($J1434,SorP!$B$1:$B$6230,0)),\"\",INDIRECT(\"'SorP'!$A$\"&MATCH($J1434,SorP!$B$1:$B$6230,0))))","v":""},null,{"$f":"IF(C1434=\"\",NA(),MATCH($B1434&$C1434,'Smelter Look-up'!$J:$J,0))","v":{"$error":"#N/A"}},null,0,null,null,null,""]
[null,{"$f":"IF(LEN(A1435)=0,\"\",INDEX('Smelter Look-up'!$A:$A,MATCH($A1435,'Smelter Look-up'!$E:$E,0)))","v":""},{"$f":"IF(LEN(A1435)=0,\"\",INDEX('Smelter Look-up'!$C:$C,MATCH($A1435,'Smelter Look-up'!$E:$E,0)))","v":""},null,{"$f":"IF(ISERROR($V1435),\"\",OFFSET('Smelter Look-up'!$D$4,$V1435-4,0)&\"\")","v":""},{"$f":"IF(ISERROR($V1435),\"\",OFFSET('Smelter Look-up'!$E$4,$V1435-4,0))","v":""},{"$f":"IF(C1435=$X$4,\"Enter smelter details\", IF(ISERROR($V1435),\"\",OFFSET('Smelter Look-up'!$F$4,$V1435-4,0)))","v":""},{"$f":"IF(ISERROR($V1435),\"\",OFFSET('Smelter Look-up'!$G$4,$V1435-4,0))","v":""},{"$f":"IF(ISERROR($V1435),\"\",OFFSET('Smelter Look-up'!$H$4,$V1435-4,0))","v":""},{"$f":"IF(ISERROR($V1435),\"\",OFFSET('Smelter Look-up'!$I$4,$V1435-4,0))","v":""},{"$nulls":7},{"$f":"IF(ISERROR($V1435),\"\",OFFSET('Smelter Look-up'!$C$4,$V1435-4,0)&\"\")","v":""},"",{"$f":"IF(B1435=\"\",\"\",IF(ISERROR(MATCH($J1435,SorP!$B$1:$B$6230,0)),\"\",INDIRECT(\"'SorP'!$A$\"&MATCH($J1435,SorP!$B$1:$B$6230,0))))","v":""},null,{"$f":"IF(C1435=\"\",NA(),MATCH($B1435&$C1435,'Smelter Look-up'!$J:$J,0))","v":{"$error":"#N/A"}},null,0,null,null,null,""]
[null,{"$f":"IF(LEN(A1436)=0,\"\",INDEX('Smelter Look-up'!$A:$A,MATCH($A1436,'Smelter Look-up'!$E:$E,0)))","v":""},{"$f":"IF(LEN(A1436)=0,\"\",INDEX('Smelter Look-up'!$C:$C,MATCH($A1436,'Smelter Look-up'!$E:$E,0)))","v":""},null,{"$f":"IF(ISERROR($V1436),\"\",OFFSET('Smelter Look-up'!$D$4,$V1436-4,0)&\"\")","v":""},{"$f":"IF(ISERROR($V1436),\"\",OFFSET('Smelter Look-up'!$E$4,$V1436-4,0))","v":""},{"$f":"IF(C1436=$X$4,\"Enter smelter details\", IF(ISERROR($V1436),\"\",OFFSET('Smelter Look-up'!$F$4,$V1436-4,0)))","v":""},{"$f":"IF(ISERROR($V1436),\"\",OFFSET('Smelter Look-up'!$G$4,$V1436-4,0))","v":""},{"$f":"IF(ISERROR($V1436),\"\",OFFSET('Smelter Look-up'!$H$4,$V1436-4,0))","v":""},{"$f":"IF(ISERROR($V1436),\"\",OFFSET('Smelter Look-up'!$I$4,$V1436-4,0))","v":""},{"$nulls":7},{"$f":"IF(ISERROR($V1436),\"\",OFFSET('Smelter Look-up'!$C$4,$V1436-4,0)&\"\")","v":""},"",{"$f":"IF(B1436=\"\",\"\",IF(ISERROR(MATCH($J1436,SorP!$B$1:$B$6230,0)),\"\",INDIRECT(\"'SorP'!$A$\"&MATCH($J1436,SorP!$B$1:$B$6230,0))))","v":""},null,{"$f":"IF(C1436=\"\",NA(),MATCH($B1436&$C1436,'Smelter Look-up'!$J:$J,0))","v":{"$error":"#N/A"}},null,0,null,null,null,""]
[null,{"$f":"IF(LEN(A1437)=0,\"\",INDEX('Smelter Look-up'!$A:$A,MATCH($A1437,'Smelter Look-up'!$E:$E,0)))","v":""},{"$f":"IF(LEN(A1437)=0,\"\",INDEX('Smelter Look-up'!$C:$C,MATCH($A1437,'Smelter Look-up'!$E:$E,0)))","v":""},null,{"$f":"IF(ISERROR($V1437),\"\",OFFSET('Smelter Look-up'!$D$4,$V1437-4,0)&\"\")","v":""},{"$f":"IF(ISERROR($V1437),\"\",OFFSET('Smelter Look-up'!$E$4,$V1437-4,0))","v":""},{"$f":"IF(C1437=$X$4,\"Enter smelter details\", IF(ISERROR($V1437),\"\",OFFSET('Smelter Look-up'!$F$4,$V1437-4,0)))","v":""},{"$f":"IF(ISERROR($V1437),\"\",OFFSET('Smelter Look-up'!$G$4,$V1437-4,0))","v":""},{"$f":"IF(ISERROR($V1437),\"\",OFFSET('Smelter Look-up'!$H$4,$V1437-4,0))","v":""},{"$f":"IF(ISERROR($V1437),\"\",OFFSET('Smelter Look-up'!$I$4,$V1437-4,0))","v":""},{"$nulls":7},{"$f":"IF(ISERROR($V1437),\"\",OFFSET('Smelter Look-up'!$C$4,$V1437-4,0)&\"\")","v":""},"",{"$f":"IF(B1437=\"\",\"\",IF(ISERROR(MATCH($J1437,SorP!$B$1:$B$6230,0)),\"\",INDIRECT(\"'SorP'!$A$\"&MATCH($J1437,SorP!$B$1:$B$6230,0))))","v":""},null,{"$f":"IF(C1437=\"\",NA(),MATCH($B1437&$C1437,'Smelter Look-up'!$J:$J,0))","v":{"$error":"#N/A"}},null,0,null,null,null,""]
[null,{"$f":"IF(LEN(A1438)=0,\"\",INDEX('Smelter Look-up'!$A:$A,MATCH($A1438,'Smelter Look-up'!$E:$E,0)))","v":""},{"$f":"IF(LEN(A1438)=0,\"\",INDEX('Smelter Look-up'!$C:$C,MATCH($A1438,'Smelter Look-up'!$E:$E,0)))","v":""},null,{"$f":"IF(ISERROR($V1438),\"\",OFFSET('Smelter Look-up'!$D$4,$V1438-4,0)&\"\")","v":""},{"$f":"IF(ISERROR($V1438),\"\",OFFSET('Smelter Look-up'!$E$4,$V1438-4,0))","v":""},{"$f":"IF(C1438=$X$4,\"Enter smelter details\", IF(ISERROR($V1438),\"\",OFFSET('Smelter Look-up'!$F$4,$V1438-4,0)))","v":""},{"$f":"IF(ISERROR($V1438),\"\",OFFSET('Smelter Look-up'!$G$4,$V1438-4,0))","v":""},{"$f":"IF(ISERROR($V1438),\"\",OFFSET('Smelter Look-up'!$H$4,$V1438-4,0))","v":""},{"$f":"IF(ISERROR($V1438),\"\",OFFSET('Smelter Look-up'!$I$4,$V1438-4,0))","v":""},{"$nulls":7},{"$f":"IF(ISERROR($V1438),\"\",OFFSET('Smelter Look-up'!$C$4,$V1438-4,0)&\"\")","v":""},"",{"$f":"IF(B1438=\"\",\"\",IF(ISERROR(MATCH($J1438,SorP!$B$1:$B$6230,0)),\"\",INDIRECT(\"'SorP'!$A$\"&MATCH($J1438,SorP!$B$1:$B$6230,0))))","v":""},null,{"$f":"IF(C1438=\"\",NA(),MATCH($B1438&$C1438,'Smelter Look-up'!$J:$J,0))","v":{"$error":"#N/A"}},null,0,null,null,null,""]
[null,{"$f":"IF(LEN(A1439)=0,\"\",INDEX('Smelter Look-up'!$A:$A,MATCH($A1439,'Smelter Look-up'!$E:$E,0)))","v":""},{"$f":"IF(LEN(A1439)=0,\"\",INDEX('Smelter Look-up'!$C:$C,MATCH($A1439,'Smelter Look-up'!$E:$E,0)))","v":""},null,{"$f":"IF(ISERROR($V1439),\"\",OFFSET('Smelter Look-up'!$D$4,$V1439-4,0)&\"\")","v":""},{"$f":"IF(ISERROR($V1439),\"\",OFFSET('Smelter Look-up'!$E$4,$V1439-4,0))","v":""},{"$f":"IF(C1439=$X$4,\"Enter smelter details\", IF(ISERROR($V1439),\"\",OFFSET('Smelter Look-up'!$F$4,$V1439-4,0)))","v":""},{"$f":"IF(ISERROR($V1439),\"\",OFFSET('Smelter Look-up'!$G$4,$V1439-4,0))","v":""},{"$f":"IF(ISERROR($V1439),\"\",OFFSET('Smelter Look-up'!$H$4,$V1439-4,0))","v":""},{"$f":"IF(ISERROR($V1439),\"\",OFFSET('Smelter Look-up'!$I$4,$V1439-4,0))","v":""},{"$nulls":7},{"$f":"IF(ISERROR($V1439),\"\",OFFSET('Smelter Look-up'!$C$4,$V1439-4,0)&\"\")","v":""},"",{"$f":"IF(B1439=\"\",\"\",IF(ISERROR(MATCH($J1439,SorP!$B$1:$B$6230,0)),\"\",INDIRECT(\"'SorP'!$A$\"&MATCH($J1439,SorP!$B$1:$B$6230,0))))","v":""},null,{"$f":"IF(C1439=\"\",NA(),MATCH($B1439&$C1439,'Smelter Look-up'!$J:$J,0))","v":{"$error":"#N/A"}},null,0,null,null,null,""]
[null,{"$f":"IF(LEN(A1440)=0,\"\",INDEX('Smelter Look-up'!$A:$A,MATCH($A1440,'Smelter Look-up'!$E:$E,0)))","v":""},{"$f":"IF(LEN(A1440)=0,\"\",INDEX('Smelter Look-up'!$C:$C,MATCH($A1440,'Smelter Look-up'!$E:$E,0)))","v":""},null,{"$f":"IF(ISERROR($V1440),\"\",OFFSET('Smelter Look-up'!$D$4,$V1440-4,0)&\"\")","v":""},{"$f":"IF(ISERROR($V1440),\"\",OFFSET('Smelter Look-up'!$E$4,$V1440-4,0))","v":""},{"$f":"IF(C1440=$X$4,\"Enter smelter details\", IF(ISERROR($V1440),\"\",OFFSET('Smelter Look-up'!$F$4,$V1440-4,0)))","v":""},{"$f":"IF(ISERROR($V1440),\"\",OFFSET('Smelter Look-up'!$G$4,$V1440-4,0))","v":""},{"$f":"IF(ISERROR($V1440),\"\",OFFSET('Smelter Look-up'!$H$4,$V1440-4,0))","v":""},{"$f":"IF(ISERROR($V1440),\"\",OFFSET('Smelter Look-up'!$I$4,$V1440-4,0))","v":""},{"$nulls":7},{"$f":"IF(ISERROR($V1440),\"\",OFFSET('Smelter Look-up'!$C$4,$V1440-4,0)&\"\")","v":""},"",{"$f":"IF(B1440=\"\",\"\",IF(ISERROR(MATCH($J1440,SorP!$B$1:$B$6230,0)),\"\",INDIRECT(\"'SorP'!$A$\"&MATCH($J1440,SorP!$B$1:$B$6230,0))))","v":""},null,{"$f":"IF(C1440=\"\",NA(),MATCH($B1440&$C1440,'Smelter Look-up'!$J:$J,0))","v":{"$error":"#N/A"}},null,0,null,null,null,""]
[null,{"$f":"IF(LEN(A1441)=0,\"\",INDEX('Smelter Look-up'!$A:$A,MATCH($A1441,'Smelter Look-up'!$E:$E,0)))","v":""},{"$f":"IF(LEN(A1441)=0,\"\",INDEX('Smelter Look-up'!$C:$C,MATCH($A1441,'Smelter Look-up'!$E:$E,0)))","v":""},null,{"$f":"IF(ISERROR($V1441),\"\",OFFSET('Smelter Look-up'!$D$4,$V1441-4,0)&\"\")","v":""},{"$f":"IF(ISERROR($V1441),\"\",OFFSET('Smelter Look-up'!$E$4,$V1441-4,0))","v":""},{"$f":"IF(C1441=$X$4,\"Enter smelter details\", IF(ISERROR($V1441),\"\",OFFSET('Smelter Look-up'!$F$4,$V1441-4,0)))","v":""},{"$f":"IF(ISERROR($V1441),\"\",OFFSET('Smelter Look-up'!$G$4,$V1441-4,0))","v":""},{"$f":"IF(ISERROR($V1441),\"\",OFFSET('Smelter Look-up'!$H$4,$V1441-4,0))","v":""},{"$f":"IF(ISERROR($V1441),\"\",OFFSET('Smelter Look-up'!$I$4,$V1441-4,0))","v":""},{"$nulls":7},{"$f":"IF(ISERROR($V1441),\"\",OFFSET('Smelter Look-up'!$C$4,$V1441-4,0)&\"\")","v":""},"",{"$f":"IF(B1441=\"\",\"\",IF(ISERROR(MATCH($J1441,SorP!$B$1:$B$6230,0)),\"\",INDIRECT(\"'SorP'!$A$\"&MATCH($J1441,SorP!$B$1:$B$6230,0))))","v":""},null,{"$f":"IF(C1441=\"\",NA(),MATCH($B1441&$C1441,'Smelter Look-up'!$J:$J,0))","v":{"$error":"#N/A"}},null,0,null,null,null,""]
[null,{"$f":"IF(LEN(A1442)=0,\"\",INDEX('Smelter Look-up'!$A:$A,MATCH($A1442,'Smelter Look-up'!$E:$E,0)))","v":""},{"$f":"IF(LEN(A1442)=0,\"\",INDEX('Smelter Look-up'!$C:$C,MATCH($A1442,'Smelter Look-up'!$E:$E,0)))","v":""},null,{"$f":"IF(ISERROR($V1442),\"\",OFFSET('Smelter Look-up'!$D$4,$V1442-4,0)&\"\")","v":""},{"$f":"IF(ISERROR($V1442),\"\",OFFSET('Smelter Look-up'!$E$4,$V1442-4,0))","v":""},{"$f":"IF(C1442=$X$4,\"Enter smelter details\", IF(ISERROR($V1442),\"\",OFFSET('Smelter Look-up'!$F$4,$V1442-4,0)))","v":""},{"$f":"IF(ISERROR($V1442),\"\",OFFSET('Smelter Look-up'!$G$4,$V1442-4,0))","v":""},{"$f":"IF(ISERROR($V1442),\"\",OFFSET('Smelter Look-up'!$H$4,$V1442-4,0))","v":""},{"$f":"IF(ISERROR($V1442),\"\",OFFSET('Smelter Look-up'!$I$4,$V1442-4,0))","v":""},{"$nulls":7},{"$f":"IF(ISERROR($V1442),\"\",OFFSET('Smelter Look-up'!$C$4,$V1442-4,0)&\"\")","v":""},"",{"$f":"IF(B1442=\"\",\"\",IF(ISERROR(MATCH($J1442,SorP!$B$1:$B$6230,0)),\"\",INDIRECT(\"'SorP'!$A$\"&MATCH($J1442,SorP!$B$1:$B$6230,0))))","v":""},null,{"$f":"IF(C1442=\"\",NA(),MATCH($B1442&$C1442,'Smelter Look-up'!$J:$J,0))","v":{"$error":"#N/A"}},null,0,null,null,null,""]
[null,{"$f":"IF(LEN(A1443)=0,\"\",INDEX('Smelter Look-up'!$A:$A,MATCH($A1443,'Smelter Look-up'!$E:$E,0)))","v":""},{"$f":"IF(LEN(A1443)=0,\"\",INDEX('Smelter Look-up'!$C:$C,MATCH($A1443,'Smelter Look-up'!$E:$E,0)))","v":""},null,{"$f":"IF(ISERROR($V1443),\"\",OFFSET('Smelter Look-up'!$D$4,$V1443-4,0)&\"\")","v":""},{"$f":"IF(ISERROR($V1443),\"\",OFFSET('Smelter Look-up'!$E$4,$V1443-4,0))","v":""},{"$f":"IF(C1443=$X$4,\"Enter smelter details\", IF(ISERROR($V1443),\"\",OFFSET('Smelter Look-up'!$F$4,$V1443-4,0)))","v":""},{"$f":"IF(ISERROR($V1443),\"\",OFFSET('Smelter Look-up'!$G$4,$V1443-4,0))","v":""},{"$f":"IF(ISERROR($V1443),\"\",OFFSET('Smelter Look-up'!$H$4,$V1443-4,0))","v":""},{"$f":"IF(ISERROR($V1443),\"\",OFFSET('Smelter Look-up'!$I$4,$V1443-4,0))","v":""},{"$nulls":7},{"$f":"IF(ISERROR($V1443),\"\",OFFSET('Smelter Look-up'!$C$4,$V1443-4,0)&\"\")","v":""},"",{"$f":"IF(B1443=\"\",\"\",IF(ISERROR(MATCH($J1443,SorP!$B$1:$B$6230,0)),\"\",INDIRECT(\"'SorP'!$A$\"&MATCH($J1443,SorP!$B$1:$B$6230,0))))","v":""},null,{"$f":"IF(C1443=\"\",NA(),MATCH($B1443&$C1443,'Smelter Look-up'!$J:$J,0))","v":{"$error":"#N/A"}},null,0,null,null,null,""]
[null,{"$f":"IF(LEN(A1444)=0,\"\",INDEX('Smelter Look-up'!$A:$A,MATCH($A1444,'Smelter Look-up'!$E:$E,0)))","v":""},{"$f":"IF(LEN(A1444)=0,\"\",INDEX('Smelter Look-up'!$C:$C,MATCH($A1444,'Smelter Look-up'!$E:$E,0)))","v":""},null,{"$f":"IF(ISERROR($V1444),\"\",OFFSET('Smelter Look-up'!$D$4,$V1444-4,0)&\"\")","v":""},{"$f":"IF(ISERROR($V1444),\"\",OFFSET('Smelter Look-up'!$E$4,$V1444-4,0))","v":""},{"$f":"IF(C1444=$X$4,\"Enter smelter details\", IF(ISERROR($V1444),\"\",OFFSET('Smelter Look-up'!$F$4,$V1444-4,0)))","v":""},{"$f":"IF(ISERROR($V1444),\"\",OFFSET('Smelter Look-up'!$G$4,$V1444-4,0))","v":""},{"$f":"IF(ISERROR($V1444),\"\",OFFSET('Smelter Look-up'!$H$4,$V1444-4,0))","v":""},{"$f":"IF(ISERROR($V1444),\"\",OFFSET('Smelter Look-up'!$I$4,$V1444-4,0))","v":""},{"$nulls":7},{"$f":"IF(ISERROR($V1444),\"\",OFFSET('Smelter Look-up'!$C$4,$V1444-4,0)&\"\")","v":""},"",{"$f":"IF(B1444=\"\",\"\",IF(ISERROR(MATCH($J1444,SorP!$B$1:$B$6230,0)),\"\",INDIRECT(\"'SorP'!$A$\"&MATCH($J1444,SorP!$B$1:$B$6230,0))))","v":""},null,{"$f":"IF(C1444=\"\",NA(),MATCH($B1444&$C1444,'Smelter Look-up'!$J:$J,0))","v":{"$error":"#N/A"}},null,0,null,null,null,""]
[null,{"$f":"IF(LEN(A1445)=0,\"\",INDEX('Smelter Look-up'!$A:$A,MATCH($A1445,'Smelter Look-up'!$E:$E,0)))","v":""},{"$f":"IF(LEN(A1445)=0,\"\",INDEX('Smelter Look-up'!$C:$C,MATCH($A1445,'Smelter Look-up'!$E:$E,0)))","v":""},null,{"$f":"IF(ISERROR($V1445),\"\",OFFSET('Smelter Look-up'!$D$4,$V1445-4,0)&\"\")","v":""},{"$f":"IF(ISERROR($V1445),\"\",OFFSET('Smelter Look-up'!$E$4,$V1445-4,0))","v":""},{"$f":"IF(C1445=$X$4,\"Enter smelter details\", IF(ISERROR($V1445),\"\",OFFSET('Smelter Look-up'!$F$4,$V1445-4,0)))","v":""},{"$f":"IF(ISERROR($V1445),\"\",OFFSET('Smelter Look-up'!$G$4,$V1445-4,0))","v":""},{"$f":"IF(ISERROR($V1445),\"\",OFFSET('Smelter Look-up'!$H$4,$V1445-4,0))","v":""},{"$f":"IF(ISERROR($V1445),\"\",OFFSET('Smelter Look-up'!$I$4,$V1445-4,0))","v":""},{"$nulls":7},{"$f":"IF(ISERROR($V1445),\"\",OFFSET('Smelter Look-up'!$C$4,$V1445-4,0)&\"\")","v":""},"",{"$f":"IF(B1445=\"\",\"\",IF(ISERROR(MATCH($J1445,SorP!$B$1:$B$6230,0)),\"\",INDIRECT(\"'SorP'!$A$\"&MATCH($J1445,SorP!$B$1:$B$6230,0))))","v":""},null,{"$f":"IF(C1445=\"\",NA(),MATCH($B1445&$C1445,'Smelter Look-up'!$J:$J,0))","v":{"$error":"#N/A"}},null,0,null,null,null,""]
[null,{"$f":"IF(LEN(A1446)=0,\"\",INDEX('Smelter Look-up'!$A:$A,MATCH($A1446,'Smelter Look-up'!$E:$E,0)))","v":""},{"$f":"IF(LEN(A1446)=0,\"\",INDEX('Smelter Look-up'!$C:$C,MATCH($A1446,'Smelter Look-up'!$E:$E,0)))","v":""},null,{"$f":"IF(ISERROR($V1446),\"\",OFFSET('Smelter Look-up'!$D$4,$V1446-4,0)&\"\")","v":""},{"$f":"IF(ISERROR($V1446),\"\",OFFSET('Smelter Look-up'!$E$4,$V1446-4,0))","v":""},{"$f":"IF(C1446=$X$4,\"Enter smelter details\", IF(ISERROR($V1446),\"\",OFFSET('Smelter Look-up'!$F$4,$V1446-4,0)))","v":""},{"$f":"IF(ISERROR($V1446),\"\",OFFSET('Smelter Look-up'!$G$4,$V1446-4,0))","v":""},{"$f":"IF(ISERROR($V1446),\"\",OFFSET('Smelter Look-up'!$H$4,$V1446-4,0))","v":""},{"$f":"IF(ISERROR($V1446),\"\",OFFSET('Smelter Look-up'!$I$4,$V1446-4,0))","v":""},{"$nulls":7},{"$f":"IF(ISERROR($V1446),\"\",OFFSET('Smelter Look-up'!$C$4,$V1446-4,0)&\"\")","v":""},"",{"$f":"IF(B1446=\"\",\"\",IF(ISERROR(MATCH($J1446,SorP!$B$1:$B$6230,0)),\"\",INDIRECT(\"'SorP'!$A$\"&MATCH($J1446,SorP!$B$1:$B$6230,0))))","v":""},null,{"$f":"IF(C1446=\"\",NA(),MATCH($B1446&$C1446,'Smelter Look-up'!$J:$J,0))","v":{"$error":"#N/A"}},null,0,null,null,null,""]
[null,{"$f":"IF(LEN(A1447)=0,\"\",INDEX('Smelter Look-up'!$A:$A,MATCH($A1447,'Smelter Look-up'!$E:$E,0)))","v":""},{"$f":"IF(LEN(A1447)=0,\"\",INDEX('Smelter Look-up'!$C:$C,MATCH($A1447,'Smelter Look-up'!$E:$E,0)))","v":""},null,{"$f":"IF(ISERROR($V1447),\"\",OFFSET('Smelter Look-up'!$D$4,$V1447-4,0)&\"\")","v":""},{"$f":"IF(ISERROR($V1447),\"\",OFFSET('Smelter Look-up'!$E$4,$V1447-4,0))","v":""},{"$f":"IF(C1447=$X$4,\"Enter smelter details\", IF(ISERROR($V1447),\"\",OFFSET('Smelter Look-up'!$F$4,$V1447-4,0)))","v":""},{"$f":"IF(ISERROR($V1447),\"\",OFFSET('Smelter Look-up'!$G$4,$V1447-4,0))","v":""},{"$f":"IF(ISERROR($V1447),\"\",OFFSET('Smelter Look-up'!$H$4,$V1447-4,0))","v":""},{"$f":"IF(ISERROR($V1447),\"\",OFFSET('Smelter Look-up'!$I$4,$V1447-4,0))","v":""},{"$nulls":7},{"$f":"IF(ISERROR($V1447),\"\",OFFSET('Smelter Look-up'!$C$4,$V1447-4,0)&\"\")","v":""},"",{"$f":"IF(B1447=\"\",\"\",IF(ISERROR(MATCH($J1447,SorP!$B$1:$B$6230,0)),\"\",INDIRECT(\"'SorP'!$A$\"&MATCH($J1447,SorP!$B$1:$B$6230,0))))","v":""},null,{"$f":"IF(C1447=\"\",NA(),MATCH($B1447&$C1447,'Smelter Look-up'!$J:$J,0))","v":{"$error":"#N/A"}},null,0,null,null,null,""]
[null,{"$f":"IF(LEN(A1448)=0,\"\",INDEX('Smelter Look-up'!$A:$A,MATCH($A1448,'Smelter Look-up'!$E:$E,0)))","v":""},{"$f":"IF(LEN(A1448)=0,\"\",INDEX('Smelter Look-up'!$C:$C,MATCH($A1448,'Smelter Look-up'!$E:$E,0)))","v":""},null,{"$f":"IF(ISERROR($V1448),\"\",OFFSET('Smelter Look-up'!$D$4,$V1448-4,0)&\"\")","v":""},{"$f":"IF(ISERROR($V1448),\"\",OFFSET('Smelter Look-up'!$E$4,$V1448-4,0))","v":""},{"$f":"IF(C1448=$X$4,\"Enter smelter details\", IF(ISERROR($V1448),\"\",OFFSET('Smelter Look-up'!$F$4,$V1448-4,0)))","v":""},{"$f":"IF(ISERROR($V1448),\"\",OFFSET('Smelter Look-up'!$G$4,$V1448-4,0))","v":""},{"$f":"IF(ISERROR($V1448),\"\",OFFSET('Smelter Look-up'!$H$4,$V1448-4,0))","v":""},{"$f":"IF(ISERROR($V1448),\"\",OFFSET('Smelter Look-up'!$I$4,$V1448-4,0))","v":""},{"$nulls":7},{"$f":"IF(ISERROR($V1448),\"\",OFFSET('Smelter Look-up'!$C$4,$V1448-4,0)&\"\")","v":""},"",{"$f":"IF(B1448=\"\",\"\",IF(ISERROR(MATCH($J1448,SorP!$B$1:$B$6230,0)),\"\",INDIRECT(\"'SorP'!$A$\"&MATCH($J1448,SorP!$B$1:$B$6230,0))))","v":""},null,{"$f":"IF(C1448=\"\",NA(),MATCH($B1448&$C1448,'Smelter Look-up'!$J:$J,0))","v":{"$error":"#N/A"}},null,0,null,null,null,""]
[null,{"$f":"IF(LEN(A1449)=0,\"\",INDEX('Smelter Look-up'!$A:$A,MATCH($A1449,'Smelter Look-up'!$E:$E,0)))","v":""},{"$f":"IF(LEN(A1449)=0,\"\",INDEX('Smelter Look-up'!$C:$C,MATCH($A1449,'Smelter Look-up'!$E:$E,0)))","v":""},null,{"$f":"IF(ISERROR($V1449),\"\",OFFSET('Smelter Look-up'!$D$4,$V1449-4,0)&\"\")","v":""},{"$f":"IF(ISERROR($V1449),\"\",OFFSET('Smelter Look-up'!$E$4,$V1449-4,0))","v":""},{"$f":"IF(C1449=$X$4,\"Enter smelter details\", IF(ISERROR($V1449),\"\",OFFSET('Smelter Look-up'!$F$4,$V1449-4,0)))","v":""},{"$f":"IF(ISERROR($V1449),\"\",OFFSET('Smelter Look-up'!$G$4,$V1449-4,0))","v":""},{"$f":"IF(ISERROR($V1449),\"\",OFFSET('Smelter Look-up'!$H$4,$V1449-4,0))","v":""},{"$f":"IF(ISERROR($V1449),\"\",OFFSET('Smelter Look-up'!$I$4,$V1449-4,0))","v":""},{"$nulls":7},{"$f":"IF(ISERROR($V1449),\"\",OFFSET('Smelter Look-up'!$C$4,$V1449-4,0)&\"\")","v":""},"",{"$f":"IF(B1449=\"\",\"\",IF(ISERROR(MATCH($J1449,SorP!$B$1:$B$6230,0)),\"\",INDIRECT(\"'SorP'!$A$\"&MATCH($J1449,SorP!$B$1:$B$6230,0))))","v":""},null,{"$f":"IF(C1449=\"\",NA(),MATCH($B1449&$C1449,'Smelter Look-up'!$J:$J,0))","v":{"$error":"#N/A"}},null,0,null,null,null,""]
[null,{"$f":"IF(LEN(A1450)=0,\"\",INDEX('Smelter Look-up'!$A:$A,MATCH($A1450,'Smelter Look-up'!$E:$E,0)))","v":""},{"$f":"IF(LEN(A1450)=0,\"\",INDEX('Smelter Look-up'!$C:$C,MATCH($A1450,'Smelter Look-up'!$E:$E,0)))","v":""},null,{"$f":"IF(ISERROR($V1450),\"\",OFFSET('Smelter Look-up'!$D$4,$V1450-4,0)&\"\")","v":""},{"$f":"IF(ISERROR($V1450),\"\",OFFSET('Smelter Look-up'!$E$4,$V1450-4,0))","v":""},{"$f":"IF(C1450=$X$4,\"Enter smelter details\", IF(ISERROR($V1450),\"\",OFFSET('Smelter Look-up'!$F$4,$V1450-4,0)))","v":""},{"$f":"IF(ISERROR($V1450),\"\",OFFSET('Smelter Look-up'!$G$4,$V1450-4,0))","v":""},{"$f":"IF(ISERROR($V1450),\"\",OFFSET('Smelter Look-up'!$H$4,$V1450-4,0))","v":""},{"$f":"IF(ISERROR($V1450),\"\",OFFSET('Smelter Look-up'!$I$4,$V1450-4,0))","v":""},{"$nulls":7},{"$f":"IF(ISERROR($V1450),\"\",OFFSET('Smelter Look-up'!$C$4,$V1450-4,0)&\"\")","v":""},"",{"$f":"IF(B1450=\"\",\"\",IF(ISERROR(MATCH($J1450,SorP!$B$1:$B$6230,0)),\"\",INDIRECT(\"'SorP'!$A$\"&MATCH($J1450,SorP!$B$1:$B$6230,0))))","v":""},null,{"$f":"IF(C1450=\"\",NA(),MATCH($B1450&$C1450,'Smelter Look-up'!$J:$J,0))","v":{"$error":"#N/A"}},null,0,null,null,null,""]
[null,{"$f":"IF(LEN(A1451)=0,\"\",INDEX('Smelter Look-up'!$A:$A,MATCH($A1451,'Smelter Look-up'!$E:$E,0)))","v":""},{"$f":"IF(LEN(A1451)=0,\"\",INDEX('Smelter Look-up'!$C:$C,MATCH($A1451,'Smelter Look-up'!$E:$E,0)))","v":""},null,{"$f":"IF(ISERROR($V1451),\"\",OFFSET('Smelter Look-up'!$D$4,$V1451-4,0)&\"\")","v":""},{"$f":"IF(ISERROR($V1451),\"\",OFFSET('Smelter Look-up'!$E$4,$V1451-4,0))","v":""},{"$f":"IF(C1451=$X$4,\"Enter smelter details\", IF(ISERROR($V1451),\"\",OFFSET('Smelter Look-up'!$F$4,$V1451-4,0)))","v":""},{"$f":"IF(ISERROR($V1451),\"\",OFFSET('Smelter Look-up'!$G$4,$V1451-4,0))","v":""},{"$f":"IF(ISERROR($V1451),\"\",OFFSET('Smelter Look-up'!$H$4,$V1451-4,0))","v":""},{"$f":"IF(ISERROR($V1451),\"\",OFFSET('Smelter Look-up'!$I$4,$V1451-4,0))","v":""},{"$nulls":7},{"$f":"IF(ISERROR($V1451),\"\",OFFSET('Smelter Look-up'!$C$4,$V1451-4,0)&\"\")","v":""},"",{"$f":"IF(B1451=\"\",\"\",IF(ISERROR(MATCH($J1451,SorP!$B$1:$B$6230,0)),\"\",INDIRECT(\"'SorP'!$A$\"&MATCH($J1451,SorP!$B$1:$B$6230,0))))","v":""},null,{"$f":"IF(C1451=\"\",NA(),MATCH($B1451&$C1451,'Smelter Look-up'!$J:$J,0))","v":{"$error":"#N/A"}},null,0,null,null,null,""]
[null,{"$f":"IF(LEN(A1452)=0,\"\",INDEX('Smelter Look-up'!$A:$A,MATCH($A1452,'Smelter Look-up'!$E:$E,0)))","v":""},{"$f":"IF(LEN(A1452)=0,\"\",INDEX('Smelter Look-up'!$C:$C,MATCH($A1452,'Smelter Look-up'!$E:$E,0)))","v":""},null,{"$f":"IF(ISERROR($V1452),\"\",OFFSET('Smelter Look-up'!$D$4,$V1452-4,0)&\"\")","v":""},{"$f":"IF(ISERROR($V1452),\"\",OFFSET('Smelter Look-up'!$E$4,$V1452-4,0))","v":""},{"$f":"IF(C1452=$X$4,\"Enter smelter details\", IF(ISERROR($V1452),\"\",OFFSET('Smelter Look-up'!$F$4,$V1452-4,0)))","v":""},{"$f":"IF(ISERROR($V1452),\"\",OFFSET('Smelter Look-up'!$G$4,$V1452-4,0))","v":""},{"$f":"IF(ISERROR($V1452),\"\",OFFSET('Smelter Look-up'!$H$4,$V1452-4,0))","v":""},{"$f":"IF(ISERROR($V1452),\"\",OFFSET('Smelter Look-up'!$I$4,$V1452-4,0))","v":""},{"$nulls":7},{"$f":"IF(ISERROR($V1452),\"\",OFFSET('Smelter Look-up'!$C$4,$V1452-4,0)&\"\")","v":""},"",{"$f":"IF(B1452=\"\",\"\",IF(ISERROR(MATCH($J1452,SorP!$B$1:$B$6230,0)),\"\",INDIRECT(\"'SorP'!$A$\"&MATCH($J1452,SorP!$B$1:$B$6230,0))))","v":""},null,{"$f":"IF(C1452=\"\",NA(),MATCH($B1452&$C1452,'Smelter Look-up'!$J:$J,0))","v":{"$error":"#N/A"}},null,0,null,null,null,""]
[null,{"$f":"IF(LEN(A1453)=0,\"\",INDEX('Smelter Look-up'!$A:$A,MATCH($A1453,'Smelter Look-up'!$E:$E,0)))","v":""},{"$f":"IF(LEN(A1453)=0,\"\",INDEX('Smelter Look-up'!$C:$C,MATCH($A1453,'Smelter Look-up'!$E:$E,0)))","v":""},null,{"$f":"IF(ISERROR($V1453),\"\",OFFSET('Smelter Look-up'!$D$4,$V1453-4,0)&\"\")","v":""},{"$f":"IF(ISERROR($V1453),\"\",OFFSET('Smelter Look-up'!$E$4,$V1453-4,0))","v":""},{"$f":"IF(C1453=$X$4,\"Enter smelter details\", IF(ISERROR($V1453),\"\",OFFSET('Smelter Look-up'!$F$4,$V1453-4,0)))","v":""},{"$f":"IF(ISERROR($V1453),\"\",OFFSET('Smelter Look-up'!$G$4,$V1453-4,0))","v":""},{"$f":"IF(ISERROR($V1453),\"\",OFFSET('Smelter Look-up'!$H$4,$V1453-4,0))","v":""},{"$f":"IF(ISERROR($V1453),\"\",OFFSET('Smelter Look-up'!$I$4,$V1453-4,0))","v":""},{"$nulls":7},{"$f":"IF(ISERROR($V1453),\"\",OFFSET('Smelter Look-up'!$C$4,$V1453-4,0)&\"\")","v":""},"",{"$f":"IF(B1453=\"\",\"\",IF(ISERROR(MATCH($J1453,SorP!$B$1:$B$6230,0)),\"\",INDIRECT(\"'SorP'!$A$\"&MATCH($J1453,SorP!$B$1:$B$6230,0))))","v":""},null,{"$f":"IF(C1453=\"\",NA(),MATCH($B1453&$C1453,'Smelter Look-up'!$J:$J,0))","v":{"$error":"#N/A"}},null,0,null,null,null,""]
[null,{"$f":"IF(LEN(A1454)=0,\"\",INDEX('Smelter Look-up'!$A:$A,MATCH($A1454,'Smelter Look-up'!$E:$E,0)))","v":""},{"$f":"IF(LEN(A1454)=0,\"\",INDEX('Smelter Look-up'!$C:$C,MATCH($A1454,'Smelter Look-up'!$E:$E,0)))","v":""},null,{"$f":"IF(ISERROR($V1454),\"\",OFFSET('Smelter Look-up'!$D$4,$V1454-4,0)&\"\")","v":""},{"$f":"IF(ISERROR($V1454),\"\",OFFSET('Smelter Look-up'!$E$4,$V1454-4,0))","v":""},{"$f":"IF(C1454=$X$4,\"Enter smelter details\", IF(ISERROR($V1454),\"\",OFFSET('Smelter Look-up'!$F$4,$V1454-4,0)))","v":""},{"$f":"IF(ISERROR($V1454),\"\",OFFSET('Smelter Look-up'!$G$4,$V1454-4,0))","v":""},{"$f":"IF(ISERROR($V1454),\"\",OFFSET('Smelter Look-up'!$H$4,$V1454-4,0))","v":""},{"$f":"IF(ISERROR($V1454),\"\",OFFSET('Smelter Look-up'!$I$4,$V1454-4,0))","v":""},{"$nulls":7},{"$f":"IF(ISERROR($V1454),\"\",OFFSET('Smelter Look-up'!$C$4,$V1454-4,0)&\"\")","v":""},"",{"$f":"IF(B1454=\"\",\"\",IF(ISERROR(MATCH($J1454,SorP!$B$1:$B$6230,0)),\"\",INDIRECT(\"'SorP'!$A$\"&MATCH($J1454,SorP!$B$1:$B$6230,0))))","v":""},null,{"$f":"IF(C1454=\"\",NA(),MATCH($B1454&$C1454,'Smelter Look-up'!$J:$J,0))","v":{"$error":"#N/A"}},null,0,null,null,null,""]
[null,{"$f":"IF(LEN(A1455)=0,\"\",INDEX('Smelter Look-up'!$A:$A,MATCH($A1455,'Smelter Look-up'!$E:$E,0)))","v":""},{"$f":"IF(LEN(A1455)=0,\"\",INDEX('Smelter Look-up'!$C:$C,MATCH($A1455,'Smelter Look-up'!$E:$E,0)))","v":""},null,{"$f":"IF(ISERROR($V1455),\"\",OFFSET('Smelter Look-up'!$D$4,$V1455-4,0)&\"\")","v":""},{"$f":"IF(ISERROR($V1455),\"\",OFFSET('Smelter Look-up'!$E$4,$V1455-4,0))","v":""},{"$f":"IF(C1455=$X$4,\"Enter smelter details\", IF(ISERROR($V1455),\"\",OFFSET('Smelter Look-up'!$F$4,$V1455-4,0)))","v":""},{"$f":"IF(ISERROR($V1455),\"\",OFFSET('Smelter Look-up'!$G$4,$V1455-4,0))","v":""},{"$f":"IF(ISERROR($V1455),\"\",OFFSET('Smelter Look-up'!$H$4,$V1455-4,0))","v":""},{"$f":"IF(ISERROR($V1455),\"\",OFFSET('Smelter Look-up'!$I$4,$V1455-4,0))","v":""},{"$nulls":7},{"$f":"IF(ISERROR($V1455),\"\",OFFSET('Smelter Look-up'!$C$4,$V1455-4,0)&\"\")","v":""},"",{"$f":"IF(B1455=\"\",\"\",IF(ISERROR(MATCH($J1455,SorP!$B$1:$B$6230,0)),\"\",INDIRECT(\"'SorP'!$A$\"&MATCH($J1455,SorP!$B$1:$B$6230,0))))","v":""},null,{"$f":"IF(C1455=\"\",NA(),MATCH($B1455&$C1455,'Smelter Look-up'!$J:$J,0))","v":{"$error":"#N/A"}},null,0,null,null,null,""]
[null,{"$f":"IF(LEN(A1456)=0,\"\",INDEX('Smelter Look-up'!$A:$A,MATCH($A1456,'Smelter Look-up'!$E:$E,0)))","v":""},{"$f":"IF(LEN(A1456)=0,\"\",INDEX('Smelter Look-up'!$C:$C,MATCH($A1456,'Smelter Look-up'!$E:$E,0)))","v":""},null,{"$f":"IF(ISERROR($V1456),\"\",OFFSET('Smelter Look-up'!$D$4,$V1456-4,0)&\"\")","v":""},{"$f":"IF(ISERROR($V1456),\"\",OFFSET('Smelter Look-up'!$E$4,$V1456-4,0))","v":""},{"$f":"IF(C1456=$X$4,\"Enter smelter details\", IF(ISERROR($V1456),\"\",OFFSET('Smelter Look-up'!$F$4,$V1456-4,0)))","v":""},{"$f":"IF(ISERROR($V1456),\"\",OFFSET('Smelter Look-up'!$G$4,$V1456-4,0))","v":""},{"$f":"IF(ISERROR($V1456),\"\",OFFSET('Smelter Look-up'!$H$4,$V1456-4,0))","v":""},{"$f":"IF(ISERROR($V1456),\"\",OFFSET('Smelter Look-up'!$I$4,$V1456-4,0))","v":""},{"$nulls":7},{"$f":"IF(ISERROR($V1456),\"\",OFFSET('Smelter Look-up'!$C$4,$V1456-4,0)&\"\")","v":""},"",{"$f":"IF(B1456=\"\",\"\",IF(ISERROR(MATCH($J1456,SorP!$B$1:$B$6230,0)),\"\",INDIRECT(\"'SorP'!$A$\"&MATCH($J1456,SorP!$B$1:$B$6230,0))))","v":""},null,{"$f":"IF(C1456=\"\",NA(),MATCH($B1456&$C1456,'Smelter Look-up'!$J:$J,0))","v":{"$error":"#N/A"}},null,0,null,null,null,""]
[null,{"$f":"IF(LEN(A1457)=0,\"\",INDEX('Smelter Look-up'!$A:$A,MATCH($A1457,'Smelter Look-up'!$E:$E,0)))","v":""},{"$f":"IF(LEN(A1457)=0,\"\",INDEX('Smelter Look-up'!$C:$C,MATCH($A1457,'Smelter Look-up'!$E:$E,0)))","v":""},null,{"$f":"IF(ISERROR($V1457),\"\",OFFSET('Smelter Look-up'!$D$4,$V1457-4,0)&\"\")","v":""},{"$f":"IF(ISERROR($V1457),\"\",OFFSET('Smelter Look-up'!$E$4,$V1457-4,0))","v":""},{"$f":"IF(C1457=$X$4,\"Enter smelter details\", IF(ISERROR($V1457),\"\",OFFSET('Smelter Look-up'!$F$4,$V1457-4,0)))","v":""},{"$f":"IF(ISERROR($V1457),\"\",OFFSET('Smelter Look-up'!$G$4,$V1457-4,0))","v":""},{"$f":"IF(ISERROR($V1457),\"\",OFFSET('Smelter Look-up'!$H$4,$V1457-4,0))","v":""},{"$f":"IF(ISERROR($V1457),\"\",OFFSET('Smelter Look-up'!$I$4,$V1457-4,0))","v":""},{"$nulls":7},{"$f":"IF(ISERROR($V1457),\"\",OFFSET('Smelter Look-up'!$C$4,$V1457-4,0)&\"\")","v":""},"",{"$f":"IF(B1457=\"\",\"\",IF(ISERROR(MATCH($J1457,SorP!$B$1:$B$6230,0)),\"\",INDIRECT(\"'SorP'!$A$\"&MATCH($J1457,SorP!$B$1:$B$6230,0))))","v":""},null,{"$f":"IF(C1457=\"\",NA(),MATCH($B1457&$C1457,'Smelter Look-up'!$J:$J,0))","v":{"$error":"#N/A"}},null,0,null,null,null,""]
[null,{"$f":"IF(LEN(A1458)=0,\"\",INDEX('Smelter Look-up'!$A:$A,MATCH($A1458,'Smelter Look-up'!$E:$E,0)))","v":""},{"$f":"IF(LEN(A1458)=0,\"\",INDEX('Smelter Look-up'!$C:$C,MATCH($A1458,'Smelter Look-up'!$E:$E,0)))","v":""},null,{"$f":"IF(ISERROR($V1458),\"\",OFFSET('Smelter Look-up'!$D$4,$V1458-4,0)&\"\")","v":""},{"$f":"IF(ISERROR($V1458),\"\",OFFSET('Smelter Look-up'!$E$4,$V1458-4,0))","v":""},{"$f":"IF(C1458=$X$4,\"Enter smelter details\", IF(ISERROR($V1458),\"\",OFFSET('Smelter Look-up'!$F$4,$V1458-4,0)))","v":""},{"$f":"IF(ISERROR($V1458),\"\",OFFSET('Smelter Look-up'!$G$4,$V1458-4,0))","v":""},{"$f":"IF(ISERROR($V1458),\"\",OFFSET('Smelter Look-up'!$H$4,$V1458-4,0))","v":""},{"$f":"IF(ISERROR($V1458),\"\",OFFSET('Smelter Look-up'!$I$4,$V1458-4,0))","v":""},{"$nulls":7},{"$f":"IF(ISERROR($V1458),\"\",OFFSET('Smelter Look-up'!$C$4,$V1458-4,0)&\"\")","v":""},"",{"$f":"IF(B1458=\"\",\"\",IF(ISERROR(MATCH($J1458,SorP!$B$1:$B$6230,0)),\"\",INDIRECT(\"'SorP'!$A$\"&MATCH($J1458,SorP!$B$1:$B$6230,0))))","v":""},null,{"$f":"IF(C1458=\"\",NA(),MATCH($B1458&$C1458,'Smelter Look-up'!$J:$J,0))","v":{"$error":"#N/A"}},null,0,null,null,null,""]
[null,{"$f":"IF(LEN(A1459)=0,\"\",INDEX('Smelter Look-up'!$A:$A,MATCH($A1459,'Smelter Look-up'!$E:$E,0)))","v":""},{"$f":"IF(LEN(A1459)=0,\"\",INDEX('Smelter Look-up'!$C:$C,MATCH($A1459,'Smelter Look-up'!$E:$E,0)))","v":""},null,{"$f":"IF(ISERROR($V1459),\"\",OFFSET('Smelter Look-up'!$D$4,$V1459-4,0)&\"\")","v":""},{"$f":"IF(ISERROR($V1459),\"\",OFFSET('Smelter Look-up'!$E$4,$V1459-4,0))","v":""},{"$f":"IF(C1459=$X$4,\"Enter smelter details\", IF(ISERROR($V1459),\"\",OFFSET('Smelter Look-up'!$F$4,$V1459-4,0)))","v":""},{"$f":"IF(ISERROR($V1459),\"\",OFFSET('Smelter Look-up'!$G$4,$V1459-4,0))","v":""},{"$f":"IF(ISERROR($V1459),\"\",OFFSET('Smelter Look-up'!$H$4,$V1459-4,0))","v":""},{"$f":"IF(ISERROR($V1459),\"\",OFFSET('Smelter Look-up'!$I$4,$V1459-4,0))","v":""},{"$nulls":7},{"$f":"IF(ISERROR($V1459),\"\",OFFSET('Smelter Look-up'!$C$4,$V1459-4,0)&\"\")","v":""},"",{"$f":"IF(B1459=\"\",\"\",IF(ISERROR(MATCH($J1459,SorP!$B$1:$B$6230,0)),\"\",INDIRECT(\"'SorP'!$A$\"&MATCH($J1459,SorP!$B$1:$B$6230,0))))","v":""},null,{"$f":"IF(C1459=\"\",NA(),MATCH($B1459&$C1459,'Smelter Look-up'!$J:$J,0))","v":{"$error":"#N/A"}},null,0,null,null,null,""]
[null,{"$f":"IF(LEN(A1460)=0,\"\",INDEX('Smelter Look-up'!$A:$A,MATCH($A1460,'Smelter Look-up'!$E:$E,0)))","v":""},{"$f":"IF(LEN(A1460)=0,\"\",INDEX('Smelter Look-up'!$C:$C,MATCH($A1460,'Smelter Look-up'!$E:$E,0)))","v":""},null,{"$f":"IF(ISERROR($V1460),\"\",OFFSET('Smelter Look-up'!$D$4,$V1460-4,0)&\"\")","v":""},{"$f":"IF(ISERROR($V1460),\"\",OFFSET('Smelter Look-up'!$E$4,$V1460-4,0))","v":""},{"$f":"IF(C1460=$X$4,\"Enter smelter details\", IF(ISERROR($V1460),\"\",OFFSET('Smelter Look-up'!$F$4,$V1460-4,0)))","v":""},{"$f":"IF(ISERROR($V1460),\"\",OFFSET('Smelter Look-up'!$G$4,$V1460-4,0))","v":""},{"$f":"IF(ISERROR($V1460),\"\",OFFSET('Smelter Look-up'!$H$4,$V1460-4,0))","v":""},{"$f":"IF(ISERROR($V1460),\"\",OFFSET('Smelter Look-up'!$I$4,$V1460-4,0))","v":""},{"$nulls":7},{"$f":"IF(ISERROR($V1460),\"\",OFFSET('Smelter Look-up'!$C$4,$V1460-4,0)&\"\")","v":""},"",{"$f":"IF(B1460=\"\",\"\",IF(ISERROR(MATCH($J1460,SorP!$B$1:$B$6230,0)),\"\",INDIRECT(\"'SorP'!$A$\"&MATCH($J1460,SorP!$B$1:$B$6230,0))))","v":""},null,{"$f":"IF(C1460=\"\",NA(),MATCH($B1460&$C1460,'Smelter Look-up'!$J:$J,0))","v":{"$error":"#N/A"}},null,0,null,null,null,""]
[null,{"$f":"IF(LEN(A1461)=0,\"\",INDEX('Smelter Look-up'!$A:$A,MATCH($A1461,'Smelter Look-up'!$E:$E,0)))","v":""},{"$f":"IF(LEN(A1461)=0,\"\",INDEX('Smelter Look-up'!$C:$C,MATCH($A1461,'Smelter Look-up'!$E:$E,0)))","v":""},null,{"$f":"IF(ISERROR($V1461),\"\",OFFSET('Smelter Look-up'!$D$4,$V1461-4,0)&\"\")","v":""},{"$f":"IF(ISERROR($V1461),\"\",OFFSET('Smelter Look-up'!$E$4,$V1461-4,0))","v":""},{"$f":"IF(C1461=$X$4,\"Enter smelter details\", IF(ISERROR($V1461),\"\",OFFSET('Smelter Look-up'!$F$4,$V1461-4,0)))","v":""},{"$f":"IF(ISERROR($V1461),\"\",OFFSET('Smelter Look-up'!$G$4,$V1461-4,0))","v":""},{"$f":"IF(ISERROR($V1461),\"\",OFFSET('Smelter Look-up'!$H$4,$V1461-4,0))","v":""},{"$f":"IF(ISERROR($V1461),\"\",OFFSET('Smelter Look-up'!$I$4,$V1461-4,0))","v":""},{"$nulls":7},{"$f":"IF(ISERROR($V1461),\"\",OFFSET('Smelter Look-up'!$C$4,$V1461-4,0)&\"\")","v":""},"",{"$f":"IF(B1461=\"\",\"\",IF(ISERROR(MATCH($J1461,SorP!$B$1:$B$6230,0)),\"\",INDIRECT(\"'SorP'!$A$\"&MATCH($J1461,SorP!$B$1:$B$6230,0))))","v":""},null,{"$f":"IF(C1461=\"\",NA(),MATCH($B1461&$C1461,'Smelter Look-up'!$J:$J,0))","v":{"$error":"#N/A"}},null,0,null,null,null,""]
[null,{"$f":"IF(LEN(A1462)=0,\"\",INDEX('Smelter Look-up'!$A:$A,MATCH($A1462,'Smelter Look-up'!$E:$E,0)))","v":""},{"$f":"IF(LEN(A1462)=0,\"\",INDEX('Smelter Look-up'!$C:$C,MATCH($A1462,'Smelter Look-up'!$E:$E,0)))","v":""},null,{"$f":"IF(ISERROR($V1462),\"\",OFFSET('Smelter Look-up'!$D$4,$V1462-4,0)&\"\")","v":""},{"$f":"IF(ISERROR($V1462),\"\",OFFSET('Smelter Look-up'!$E$4,$V1462-4,0))","v":""},{"$f":"IF(C1462=$X$4,\"Enter smelter details\", IF(ISERROR($V1462),\"\",OFFSET('Smelter Look-up'!$F$4,$V1462-4,0)))","v":""},{"$f":"IF(ISERROR($V1462),\"\",OFFSET('Smelter Look-up'!$G$4,$V1462-4,0))","v":""},{"$f":"IF(ISERROR($V1462),\"\",OFFSET('Smelter Look-up'!$H$4,$V1462-4,0))","v":""},{"$f":"IF(ISERROR($V1462),\"\",OFFSET('Smelter Look-up'!$I$4,$V1462-4,0))","v":""},{"$nulls":7},{"$f":"IF(ISERROR($V1462),\"\",OFFSET('Smelter Look-up'!$C$4,$V1462-4,0)&\"\")","v":""},"",{"$f":"IF(B1462=\"\",\"\",IF(ISERROR(MATCH($J1462,SorP!$B$1:$B$6230,0)),\"\",INDIRECT(\"'SorP'!$A$\"&MATCH($J1462,SorP!$B$1:$B$6230,0))))","v":""},null,{"$f":"IF(C1462=\"\",NA(),MATCH($B1462&$C1462,'Smelter Look-up'!$J:$J,0))","v":{"$error":"#N/A"}},null,0,null,null,null,""]
[null,{"$f":"IF(LEN(A1463)=0,\"\",INDEX('Smelter Look-up'!$A:$A,MATCH($A1463,'Smelter Look-up'!$E:$E,0)))","v":""},{"$f":"IF(LEN(A1463)=0,\"\",INDEX('Smelter Look-up'!$C:$C,MATCH($A1463,'Smelter Look-up'!$E:$E,0)))","v":""},null,{"$f":"IF(ISERROR($V1463),\"\",OFFSET('Smelter Look-up'!$D$4,$V1463-4,0)&\"\")","v":""},{"$f":"IF(ISERROR($V1463),\"\",OFFSET('Smelter Look-up'!$E$4,$V1463-4,0))","v":""},{"$f":"IF(C1463=$X$4,\"Enter smelter details\", IF(ISERROR($V1463),\"\",OFFSET('Smelter Look-up'!$F$4,$V1463-4,0)))","v":""},{"$f":"IF(ISERROR($V1463),\"\",OFFSET('Smelter Look-up'!$G$4,$V1463-4,0))","v":""},{"$f":"IF(ISERROR($V1463),\"\",OFFSET('Smelter Look-up'!$H$4,$V1463-4,0))","v":""},{"$f":"IF(ISERROR($V1463),\"\",OFFSET('Smelter Look-up'!$I$4,$V1463-4,0))","v":""},{"$nulls":7},{"$f":"IF(ISERROR($V1463),\"\",OFFSET('Smelter Look-up'!$C$4,$V1463-4,0)&\"\")","v":""},"",{"$f":"IF(B1463=\"\",\"\",IF(ISERROR(MATCH($J1463,SorP!$B$1:$B$6230,0)),\"\",INDIRECT(\"'SorP'!$A$\"&MATCH($J1463,SorP!$B$1:$B$6230,0))))","v":""},null,{"$f":"IF(C1463=\"\",NA(),MATCH($B1463&$C1463,'Smelter Look-up'!$J:$J,0))","v":{"$error":"#N/A"}},null,0,null,null,null,""]
[null,{"$f":"IF(LEN(A1464)=0,\"\",INDEX('Smelter Look-up'!$A:$A,MATCH($A1464,'Smelter Look-up'!$E:$E,0)))","v":""},{"$f":"IF(LEN(A1464)=0,\"\",INDEX('Smelter Look-up'!$C:$C,MATCH($A1464,'Smelter Look-up'!$E:$E,0)))","v":""},null,{"$f":"IF(ISERROR($V1464),\"\",OFFSET('Smelter Look-up'!$D$4,$V1464-4,0)&\"\")","v":""},{"$f":"IF(ISERROR($V1464),\"\",OFFSET('Smelter Look-up'!$E$4,$V1464-4,0))","v":""},{"$f":"IF(C1464=$X$4,\"Enter smelter details\", IF(ISERROR($V1464),\"\",OFFSET('Smelter Look-up'!$F$4,$V1464-4,0)))","v":""},{"$f":"IF(ISERROR($V1464),\"\",OFFSET('Smelter Look-up'!$G$4,$V1464-4,0))","v":""},{"$f":"IF(ISERROR($V1464),\"\",OFFSET('Smelter Look-up'!$H$4,$V1464-4,0))","v":""},{"$f":"IF(ISERROR($V1464),\"\",OFFSET('Smelter Look-up'!$I$4,$V1464-4,0))","v":""},{"$nulls":7},{"$f":"IF(ISERROR($V1464),\"\",OFFSET('Smelter Look-up'!$C$4,$V1464-4,0)&\"\")","v":""},"",{"$f":"IF(B1464=\"\",\"\",IF(ISERROR(MATCH($J1464,SorP!$B$1:$B$6230,0)),\"\",INDIRECT(\"'SorP'!$A$\"&MATCH($J1464,SorP!$B$1:$B$6230,0))))","v":""},null,{"$f":"IF(C1464=\"\",NA(),MATCH($B1464&$C1464,'Smelter Look-up'!$J:$J,0))","v":{"$error":"#N/A"}},null,0,null,null,null,""]
[null,{"$f":"IF(LEN(A1465)=0,\"\",INDEX('Smelter Look-up'!$A:$A,MATCH($A1465,'Smelter Look-up'!$E:$E,0)))","v":""},{"$f":"IF(LEN(A1465)=0,\"\",INDEX('Smelter Look-up'!$C:$C,MATCH($A1465,'Smelter Look-up'!$E:$E,0)))","v":""},null,{"$f":"IF(ISERROR($V1465),\"\",OFFSET('Smelter Look-up'!$D$4,$V1465-4,0)&\"\")","v":""},{"$f":"IF(ISERROR($V1465),\"\",OFFSET('Smelter Look-up'!$E$4,$V1465-4,0))","v":""},{"$f":"IF(C1465=$X$4,\"Enter smelter details\", IF(ISERROR($V1465),\"\",OFFSET('Smelter Look-up'!$F$4,$V1465-4,0)))","v":""},{"$f":"IF(ISERROR($V1465),\"\",OFFSET('Smelter Look-up'!$G$4,$V1465-4,0))","v":""},{"$f":"IF(ISERROR($V1465),\"\",OFFSET('Smelter Look-up'!$H$4,$V1465-4,0))","v":""},{"$f":"IF(ISERROR($V1465),\"\",OFFSET('Smelter Look-up'!$I$4,$V1465-4,0))","v":""},{"$nulls":7},{"$f":"IF(ISERROR($V1465),\"\",OFFSET('Smelter Look-up'!$C$4,$V1465-4,0)&\"\")","v":""},"",{"$f":"IF(B1465=\"\",\"\",IF(ISERROR(MATCH($J1465,SorP!$B$1:$B$6230,0)),\"\",INDIRECT(\"'SorP'!$A$\"&MATCH($J1465,SorP!$B$1:$B$6230,0))))","v":""},null,{"$f":"IF(C1465=\"\",NA(),MATCH($B1465&$C1465,'Smelter Look-up'!$J:$J,0))","v":{"$error":"#N/A"}},null,0,null,null,null,""]
[null,{"$f":"IF(LEN(A1466)=0,\"\",INDEX('Smelter Look-up'!$A:$A,MATCH($A1466,'Smelter Look-up'!$E:$E,0)))","v":""},{"$f":"IF(LEN(A1466)=0,\"\",INDEX('Smelter Look-up'!$C:$C,MATCH($A1466,'Smelter Look-up'!$E:$E,0)))","v":""},null,{"$f":"IF(ISERROR($V1466),\"\",OFFSET('Smelter Look-up'!$D$4,$V1466-4,0)&\"\")","v":""},{"$f":"IF(ISERROR($V1466),\"\",OFFSET('Smelter Look-up'!$E$4,$V1466-4,0))","v":""},{"$f":"IF(C1466=$X$4,\"Enter smelter details\", IF(ISERROR($V1466),\"\",OFFSET('Smelter Look-up'!$F$4,$V1466-4,0)))","v":""},{"$f":"IF(ISERROR($V1466),\"\",OFFSET('Smelter Look-up'!$G$4,$V1466-4,0))","v":""},{"$f":"IF(ISERROR($V1466),\"\",OFFSET('Smelter Look-up'!$H$4,$V1466-4,0))","v":""},{"$f":"IF(ISERROR($V1466),\"\",OFFSET('Smelter Look-up'!$I$4,$V1466-4,0))","v":""},{"$nulls":7},{"$f":"IF(ISERROR($V1466),\"\",OFFSET('Smelter Look-up'!$C$4,$V1466-4,0)&\"\")","v":""},"",{"$f":"IF(B1466=\"\",\"\",IF(ISERROR(MATCH($J1466,SorP!$B$1:$B$6230,0)),\"\",INDIRECT(\"'SorP'!$A$\"&MATCH($J1466,SorP!$B$1:$B$6230,0))))","v":""},null,{"$f":"IF(C1466=\"\",NA(),MATCH($B1466&$C1466,'Smelter Look-up'!$J:$J,0))","v":{"$error":"#N/A"}},null,0,null,null,null,""]
[null,{"$f":"IF(LEN(A1467)=0,\"\",INDEX('Smelter Look-up'!$A:$A,MATCH($A1467,'Smelter Look-up'!$E:$E,0)))","v":""},{"$f":"IF(LEN(A1467)=0,\"\",INDEX('Smelter Look-up'!$C:$C,MATCH($A1467,'Smelter Look-up'!$E:$E,0)))","v":""},null,{"$f":"IF(ISERROR($V1467),\"\",OFFSET('Smelter Look-up'!$D$4,$V1467-4,0)&\"\")","v":""},{"$f":"IF(ISERROR($V1467),\"\",OFFSET('Smelter Look-up'!$E$4,$V1467-4,0))","v":""},{"$f":"IF(C1467=$X$4,\"Enter smelter details\", IF(ISERROR($V1467),\"\",OFFSET('Smelter Look-up'!$F$4,$V1467-4,0)))","v":""},{"$f":"IF(ISERROR($V1467),\"\",OFFSET('Smelter Look-up'!$G$4,$V1467-4,0))","v":""},{"$f":"IF(ISERROR($V1467),\"\",OFFSET('Smelter Look-up'!$H$4,$V1467-4,0))","v":""},{"$f":"IF(ISERROR($V1467),\"\",OFFSET('Smelter Look-up'!$I$4,$V1467-4,0))","v":""},{"$nulls":7},{"$f":"IF(ISERROR($V1467),\"\",OFFSET('Smelter Look-up'!$C$4,$V1467-4,0)&\"\")","v":""},{"$f":"IF(B1467=\"\",\"\",IF(ISERROR(MATCH($E1467,CL,0)),\"Unknown\",INDIRECT(\"'C'!$A$\"&MATCH($E1467,CL,0)+1)))","v":""},{"$f":"IF(B1467=\"\",\"\",IF(ISERROR(MATCH($J1467,SorP!$B$1:$B$6230,0)),\"\",INDIRECT(\"'SorP'!$A$\"&MATCH($J1467,SorP!$B$1:$B$6230,0))))","v":""},null,{"$f":"IF(C1467=\"\",NA(),MATCH($B1467&$C1467,'Smelter Look-up'!$J:$J,0))","v":{"$error":"#N/A"}},null,{"$f":"IF(AND(C1467=\"Smelter not listed\",OR(LEN(D1467)=0,LEN(E1467)=0)),1,0)","v":0},null,null,null,{"$f":"B1467&C1467","v":""}]
[null,{"$f":"IF(LEN(A1468)=0,\"\",INDEX('Smelter Look-up'!$A:$A,MATCH($A1468,'Smelter Look-up'!$E:$E,0)))","v":""},{"$f":"IF(LEN(A1468)=0,\"\",INDEX('Smelter Look-up'!$C:$C,MATCH($A1468,'Smelter Look-up'!$E:$E,0)))","v":""},null,{"$f":"IF(ISERROR($V1468),\"\",OFFSET('Smelter Look-up'!$D$4,$V1468-4,0)&\"\")","v":""},{"$f":"IF(ISERROR($V1468),\"\",OFFSET('Smelter Look-up'!$E$4,$V1468-4,0))","v":""},{"$f":"IF(C1468=$X$4,\"Enter smelter details\", IF(ISERROR($V1468),\"\",OFFSET('Smelter Look-up'!$F$4,$V1468-4,0)))","v":""},{"$f":"IF(ISERROR($V1468),\"\",OFFSET('Smelter Look-up'!$G$4,$V1468-4,0))","v":""},{"$f":"IF(ISERROR($V1468),\"\",OFFSET('Smelter Look-up'!$H$4,$V1468-4,0))","v":""},{"$f":"IF(ISERROR($V1468),\"\",OFFSET('Smelter Look-up'!$I$4,$V1468-4,0))","v":""},{"$nulls":7},{"$f":"IF(ISERROR($V1468),\"\",OFFSET('Smelter Look-up'!$C$4,$V1468-4,0)&\"\")","v":""},"",{"$f":"IF(B1468=\"\",\"\",IF(ISERROR(MATCH($J1468,SorP!$B$1:$B$6230,0)),\"\",INDIRECT(\"'SorP'!$A$\"&MATCH($J1468,SorP!$B$1:$B$6230,0))))","v":""},null,{"$f":"IF(C1468=\"\",NA(),MATCH($B1468&$C1468,'Smelter Look-up'!$J:$J,0))","v":{"$error":"#N/A"}},null,0,null,null,null,""]
[null,{"$f":"IF(LEN(A1469)=0,\"\",INDEX('Smelter Look-up'!$A:$A,MATCH($A1469,'Smelter Look-up'!$E:$E,0)))","v":""},{"$f":"IF(LEN(A1469)=0,\"\",INDEX('Smelter Look-up'!$C:$C,MATCH($A1469,'Smelter Look-up'!$E:$E,0)))","v":""},null,{"$f":"IF(ISERROR($V1469),\"\",OFFSET('Smelter Look-up'!$D$4,$V1469-4,0)&\"\")","v":""},{"$f":"IF(ISERROR($V1469),\"\",OFFSET('Smelter Look-up'!$E$4,$V1469-4,0))","v":""},{"$f":"IF(C1469=$X$4,\"Enter smelter details\", IF(ISERROR($V1469),\"\",OFFSET('Smelter Look-up'!$F$4,$V1469-4,0)))","v":""},{"$f":"IF(ISERROR($V1469),\"\",OFFSET('Smelter Look-up'!$G$4,$V1469-4,0))","v":""},{"$f":"IF(ISERROR($V1469),\"\",OFFSET('Smelter Look-up'!$H$4,$V1469-4,0))","v":""},{"$f":"IF(ISERROR($V1469),\"\",OFFSET('Smelter Look-up'!$I$4,$V1469-4,0))","v":""},{"$nulls":7},{"$f":"IF(ISERROR($V1469),\"\",OFFSET('Smelter Look-up'!$C$4,$V1469-4,0)&\"\")","v":""},"",{"$f":"IF(B1469=\"\",\"\",IF(ISERROR(MATCH($J1469,SorP!$B$1:$B$6230,0)),\"\",INDIRECT(\"'SorP'!$A$\"&MATCH($J1469,SorP!$B$1:$B$6230,0))))","v":""},null,{"$f":"IF(C1469=\"\",NA(),MATCH($B1469&$C1469,'Smelter Look-up'!$J:$J,0))","v":{"$error":"#N/A"}},null,0,null,null,null,""]
[null,{"$f":"IF(LEN(A1470)=0,\"\",INDEX('Smelter Look-up'!$A:$A,MATCH($A1470,'Smelter Look-up'!$E:$E,0)))","v":""},{"$f":"IF(LEN(A1470)=0,\"\",INDEX('Smelter Look-up'!$C:$C,MATCH($A1470,'Smelter Look-up'!$E:$E,0)))","v":""},null,{"$f":"IF(ISERROR($V1470),\"\",OFFSET('Smelter Look-up'!$D$4,$V1470-4,0)&\"\")","v":""},{"$f":"IF(ISERROR($V1470),\"\",OFFSET('Smelter Look-up'!$E$4,$V1470-4,0))","v":""},{"$f":"IF(C1470=$X$4,\"Enter smelter details\", IF(ISERROR($V1470),\"\",OFFSET('Smelter Look-up'!$F$4,$V1470-4,0)))","v":""},{"$f":"IF(ISERROR($V1470),\"\",OFFSET('Smelter Look-up'!$G$4,$V1470-4,0))","v":""},{"$f":"IF(ISERROR($V1470),\"\",OFFSET('Smelter Look-up'!$H$4,$V1470-4,0))","v":""},{"$f":"IF(ISERROR($V1470),\"\",OFFSET('Smelter Look-up'!$I$4,$V1470-4,0))","v":""},{"$nulls":7},{"$f":"IF(ISERROR($V1470),\"\",OFFSET('Smelter Look-up'!$C$4,$V1470-4,0)&\"\")","v":""},"",{"$f":"IF(B1470=\"\",\"\",IF(ISERROR(MATCH($J1470,SorP!$B$1:$B$6230,0)),\"\",INDIRECT(\"'SorP'!$A$\"&MATCH($J1470,SorP!$B$1:$B$6230,0))))","v":""},null,{"$f":"IF(C1470=\"\",NA(),MATCH($B1470&$C1470,'Smelter Look-up'!$J:$J,0))","v":{"$error":"#N/A"}},null,0,null,null,null,""]
[null,{"$f":"IF(LEN(A1471)=0,\"\",INDEX('Smelter Look-up'!$A:$A,MATCH($A1471,'Smelter Look-up'!$E:$E,0)))","v":""},{"$f":"IF(LEN(A1471)=0,\"\",INDEX('Smelter Look-up'!$C:$C,MATCH($A1471,'Smelter Look-up'!$E:$E,0)))","v":""},null,{"$f":"IF(ISERROR($V1471),\"\",OFFSET('Smelter Look-up'!$D$4,$V1471-4,0)&\"\")","v":""},{"$f":"IF(ISERROR($V1471),\"\",OFFSET('Smelter Look-up'!$E$4,$V1471-4,0))","v":""},{"$f":"IF(C1471=$X$4,\"Enter smelter details\", IF(ISERROR($V1471),\"\",OFFSET('Smelter Look-up'!$F$4,$V1471-4,0)))","v":""},{"$f":"IF(ISERROR($V1471),\"\",OFFSET('Smelter Look-up'!$G$4,$V1471-4,0))","v":""},{"$f":"IF(ISERROR($V1471),\"\",OFFSET('Smelter Look-up'!$H$4,$V1471-4,0))","v":""},{"$f":"IF(ISERROR($V1471),\"\",OFFSET('Smelter Look-up'!$I$4,$V1471-4,0))","v":""},{"$nulls":7},{"$f":"IF(ISERROR($V1471),\"\",OFFSET('Smelter Look-up'!$C$4,$V1471-4,0)&\"\")","v":""},"",{"$f":"IF(B1471=\"\",\"\",IF(ISERROR(MATCH($J1471,SorP!$B$1:$B$6230,0)),\"\",INDIRECT(\"'SorP'!$A$\"&MATCH($J1471,SorP!$B$1:$B$6230,0))))","v":""},null,{"$f":"IF(C1471=\"\",NA(),MATCH($B1471&$C1471,'Smelter Look-up'!$J:$J,0))","v":{"$error":"#N/A"}},null,0,null,null,null,""]
[null,{"$f":"IF(LEN(A1472)=0,\"\",INDEX('Smelter Look-up'!$A:$A,MATCH($A1472,'Smelter Look-up'!$E:$E,0)))","v":""},{"$f":"IF(LEN(A1472)=0,\"\",INDEX('Smelter Look-up'!$C:$C,MATCH($A1472,'Smelter Look-up'!$E:$E,0)))","v":""},null,{"$f":"IF(ISERROR($V1472),\"\",OFFSET('Smelter Look-up'!$D$4,$V1472-4,0)&\"\")","v":""},{"$f":"IF(ISERROR($V1472),\"\",OFFSET('Smelter Look-up'!$E$4,$V1472-4,0))","v":""},{"$f":"IF(C1472=$X$4,\"Enter smelter details\", IF(ISERROR($V1472),\"\",OFFSET('Smelter Look-up'!$F$4,$V1472-4,0)))","v":""},{"$f":"IF(ISERROR($V1472),\"\",OFFSET('Smelter Look-up'!$G$4,$V1472-4,0))","v":""},{"$f":"IF(ISERROR($V1472),\"\",OFFSET('Smelter Look-up'!$H$4,$V1472-4,0))","v":""},{"$f":"IF(ISERROR($V1472),\"\",OFFSET('Smelter Look-up'!$I$4,$V1472-4,0))","v":""},{"$nulls":7},{"$f":"IF(ISERROR($V1472),\"\",OFFSET('Smelter Look-up'!$C$4,$V1472-4,0)&\"\")","v":""},"",{"$f":"IF(B1472=\"\",\"\",IF(ISERROR(MATCH($J1472,SorP!$B$1:$B$6230,0)),\"\",INDIRECT(\"'SorP'!$A$\"&MATCH($J1472,SorP!$B$1:$B$6230,0))))","v":""},null,{"$f":"IF(C1472=\"\",NA(),MATCH($B1472&$C1472,'Smelter Look-up'!$J:$J,0))","v":{"$error":"#N/A"}},null,0,null,null,null,""]
[null,{"$f":"IF(LEN(A1473)=0,\"\",INDEX('Smelter Look-up'!$A:$A,MATCH($A1473,'Smelter Look-up'!$E:$E,0)))","v":""},{"$f":"IF(LEN(A1473)=0,\"\",INDEX('Smelter Look-up'!$C:$C,MATCH($A1473,'Smelter Look-up'!$E:$E,0)))","v":""},null,{"$f":"IF(ISERROR($V1473),\"\",OFFSET('Smelter Look-up'!$D$4,$V1473-4,0)&\"\")","v":""},{"$f":"IF(ISERROR($V1473),\"\",OFFSET('Smelter Look-up'!$E$4,$V1473-4,0))","v":""},{"$f":"IF(C1473=$X$4,\"Enter smelter details\", IF(ISERROR($V1473),\"\",OFFSET('Smelter Look-up'!$F$4,$V1473-4,0)))","v":""},{"$f":"IF(ISERROR($V1473),\"\",OFFSET('Smelter Look-up'!$G$4,$V1473-4,0))","v":""},{"$f":"IF(ISERROR($V1473),\"\",OFFSET('Smelter Look-up'!$H$4,$V1473-4,0))","v":""},{"$f":"IF(ISERROR($V1473),\"\",OFFSET('Smelter Look-up'!$I$4,$V1473-4,0))","v":""},{"$nulls":7},{"$f":"IF(ISERROR($V1473),\"\",OFFSET('Smelter Look-up'!$C$4,$V1473-4,0)&\"\")","v":""},"",{"$f":"IF(B1473=\"\",\"\",IF(ISERROR(MATCH($J1473,SorP!$B$1:$B$6230,0)),\"\",INDIRECT(\"'SorP'!$A$\"&MATCH($J1473,SorP!$B$1:$B$6230,0))))","v":""},null,{"$f":"IF(C1473=\"\",NA(),MATCH($B1473&$C1473,'Smelter Look-up'!$J:$J,0))","v":{"$error":"#N/A"}},null,0,null,null,null,""]
[null,{"$f":"IF(LEN(A1474)=0,\"\",INDEX('Smelter Look-up'!$A:$A,MATCH($A1474,'Smelter Look-up'!$E:$E,0)))","v":""},{"$f":"IF(LEN(A1474)=0,\"\",INDEX('Smelter Look-up'!$C:$C,MATCH($A1474,'Smelter Look-up'!$E:$E,0)))","v":""},null,{"$f":"IF(ISERROR($V1474),\"\",OFFSET('Smelter Look-up'!$D$4,$V1474-4,0)&\"\")","v":""},{"$f":"IF(ISERROR($V1474),\"\",OFFSET('Smelter Look-up'!$E$4,$V1474-4,0))","v":""},{"$f":"IF(C1474=$X$4,\"Enter smelter details\", IF(ISERROR($V1474),\"\",OFFSET('Smelter Look-up'!$F$4,$V1474-4,0)))","v":""},{"$f":"IF(ISERROR($V1474),\"\",OFFSET('Smelter Look-up'!$G$4,$V1474-4,0))","v":""},{"$f":"IF(ISERROR($V1474),\"\",OFFSET('Smelter Look-up'!$H$4,$V1474-4,0))","v":""},{"$f":"IF(ISERROR($V1474),\"\",OFFSET('Smelter Look-up'!$I$4,$V1474-4,0))","v":""},{"$nulls":7},{"$f":"IF(ISERROR($V1474),\"\",OFFSET('Smelter Look-up'!$C$4,$V1474-4,0)&\"\")","v":""},"",{"$f":"IF(B1474=\"\",\"\",IF(ISERROR(MATCH($J1474,SorP!$B$1:$B$6230,0)),\"\",INDIRECT(\"'SorP'!$A$\"&MATCH($J1474,SorP!$B$1:$B$6230,0))))","v":""},null,{"$f":"IF(C1474=\"\",NA(),MATCH($B1474&$C1474,'Smelter Look-up'!$J:$J,0))","v":{"$error":"#N/A"}},null,0,null,null,null,""]
[null,{"$f":"IF(LEN(A1475)=0,\"\",INDEX('Smelter Look-up'!$A:$A,MATCH($A1475,'Smelter Look-up'!$E:$E,0)))","v":""},{"$f":"IF(LEN(A1475)=0,\"\",INDEX('Smelter Look-up'!$C:$C,MATCH($A1475,'Smelter Look-up'!$E:$E,0)))","v":""},null,{"$f":"IF(ISERROR($V1475),\"\",OFFSET('Smelter Look-up'!$D$4,$V1475-4,0)&\"\")","v":""},{"$f":"IF(ISERROR($V1475),\"\",OFFSET('Smelter Look-up'!$E$4,$V1475-4,0))","v":""},{"$f":"IF(C1475=$X$4,\"Enter smelter details\", IF(ISERROR($V1475),\"\",OFFSET('Smelter Look-up'!$F$4,$V1475-4,0)))","v":""},{"$f":"IF(ISERROR($V1475),\"\",OFFSET('Smelter Look-up'!$G$4,$V1475-4,0))","v":""},{"$f":"IF(ISERROR($V1475),\"\",OFFSET('Smelter Look-up'!$H$4,$V1475-4,0))","v":""},{"$f":"IF(ISERROR($V1475),\"\",OFFSET('Smelter Look-up'!$I$4,$V1475-4,0))","v":""},{"$nulls":7},{"$f":"IF(ISERROR($V1475),\"\",OFFSET('Smelter Look-up'!$C$4,$V1475-4,0)&\"\")","v":""},"",{"$f":"IF(B1475=\"\",\"\",IF(ISERROR(MATCH($J1475,SorP!$B$1:$B$6230,0)),\"\",INDIRECT(\"'SorP'!$A$\"&MATCH($J1475,SorP!$B$1:$B$6230,0))))","v":""},null,{"$f":"IF(C1475=\"\",NA(),MATCH($B1475&$C1475,'Smelter Look-up'!$J:$J,0))","v":{"$error":"#N/A"}},null,0,null,null,null,""]
[null,{"$f":"IF(LEN(A1476)=0,\"\",INDEX('Smelter Look-up'!$A:$A,MATCH($A1476,'Smelter Look-up'!$E:$E,0)))","v":""},{"$f":"IF(LEN(A1476)=0,\"\",INDEX('Smelter Look-up'!$C:$C,MATCH($A1476,'Smelter Look-up'!$E:$E,0)))","v":""},null,{"$f":"IF(ISERROR($V1476),\"\",OFFSET('Smelter Look-up'!$D$4,$V1476-4,0)&\"\")","v":""},{"$f":"IF(ISERROR($V1476),\"\",OFFSET('Smelter Look-up'!$E$4,$V1476-4,0))","v":""},{"$f":"IF(C1476=$X$4,\"Enter smelter details\", IF(ISERROR($V1476),\"\",OFFSET('Smelter Look-up'!$F$4,$V1476-4,0)))","v":""},{"$f":"IF(ISERROR($V1476),\"\",OFFSET('Smelter Look-up'!$G$4,$V1476-4,0))","v":""},{"$f":"IF(ISERROR($V1476),\"\",OFFSET('Smelter Look-up'!$H$4,$V1476-4,0))","v":""},{"$f":"IF(ISERROR($V1476),\"\",OFFSET('Smelter Look-up'!$I$4,$V1476-4,0))","v":""},{"$nulls":7},{"$f":"IF(ISERROR($V1476),\"\",OFFSET('Smelter Look-up'!$C$4,$V1476-4,0)&\"\")","v":""},"",{"$f":"IF(B1476=\"\",\"\",IF(ISERROR(MATCH($J1476,SorP!$B$1:$B$6230,0)),\"\",INDIRECT(\"'SorP'!$A$\"&MATCH($J1476,SorP!$B$1:$B$6230,0))))","v":""},null,{"$f":"IF(C1476=\"\",NA(),MATCH($B1476&$C1476,'Smelter Look-up'!$J:$J,0))","v":{"$error":"#N/A"}},null,0,null,null,null,""]
[null,{"$f":"IF(LEN(A1477)=0,\"\",INDEX('Smelter Look-up'!$A:$A,MATCH($A1477,'Smelter Look-up'!$E:$E,0)))","v":""},{"$f":"IF(LEN(A1477)=0,\"\",INDEX('Smelter Look-up'!$C:$C,MATCH($A1477,'Smelter Look-up'!$E:$E,0)))","v":""},null,{"$f":"IF(ISERROR($V1477),\"\",OFFSET('Smelter Look-up'!$D$4,$V1477-4,0)&\"\")","v":""},{"$f":"IF(ISERROR($V1477),\"\",OFFSET('Smelter Look-up'!$E$4,$V1477-4,0))","v":""},{"$f":"IF(C1477=$X$4,\"Enter smelter details\", IF(ISERROR($V1477),\"\",OFFSET('Smelter Look-up'!$F$4,$V1477-4,0)))","v":""},{"$f":"IF(ISERROR($V1477),\"\",OFFSET('Smelter Look-up'!$G$4,$V1477-4,0))","v":""},{"$f":"IF(ISERROR($V1477),\"\",OFFSET('Smelter Look-up'!$H$4,$V1477-4,0))","v":""},{"$f":"IF(ISERROR($V1477),\"\",OFFSET('Smelter Look-up'!$I$4,$V1477-4,0))","v":""},{"$nulls":7},{"$f":"IF(ISERROR($V1477),\"\",OFFSET('Smelter Look-up'!$C$4,$V1477-4,0)&\"\")","v":""},"",{"$f":"IF(B1477=\"\",\"\",IF(ISERROR(MATCH($J1477,SorP!$B$1:$B$6230,0)),\"\",INDIRECT(\"'SorP'!$A$\"&MATCH($J1477,SorP!$B$1:$B$6230,0))))","v":""},null,{"$f":"IF(C1477=\"\",NA(),MATCH($B1477&$C1477,'Smelter Look-up'!$J:$J,0))","v":{"$error":"#N/A"}},null,0,null,null,null,""]
[null,{"$f":"IF(LEN(A1478)=0,\"\",INDEX('Smelter Look-up'!$A:$A,MATCH($A1478,'Smelter Look-up'!$E:$E,0)))","v":""},{"$f":"IF(LEN(A1478)=0,\"\",INDEX('Smelter Look-up'!$C:$C,MATCH($A1478,'Smelter Look-up'!$E:$E,0)))","v":""},null,{"$f":"IF(ISERROR($V1478),\"\",OFFSET('Smelter Look-up'!$D$4,$V1478-4,0)&\"\")","v":""},{"$f":"IF(ISERROR($V1478),\"\",OFFSET('Smelter Look-up'!$E$4,$V1478-4,0))","v":""},{"$f":"IF(C1478=$X$4,\"Enter smelter details\", IF(ISERROR($V1478),\"\",OFFSET('Smelter Look-up'!$F$4,$V1478-4,0)))","v":""},{"$f":"IF(ISERROR($V1478),\"\",OFFSET('Smelter Look-up'!$G$4,$V1478-4,0))","v":""},{"$f":"IF(ISERROR($V1478),\"\",OFFSET('Smelter Look-up'!$H$4,$V1478-4,0))","v":""},{"$f":"IF(ISERROR($V1478),\"\",OFFSET('Smelter Look-up'!$I$4,$V1478-4,0))","v":""},{"$nulls":7},{"$f":"IF(ISERROR($V1478),\"\",OFFSET('Smelter Look-up'!$C$4,$V1478-4,0)&\"\")","v":""},"",{"$f":"IF(B1478=\"\",\"\",IF(ISERROR(MATCH($J1478,SorP!$B$1:$B$6230,0)),\"\",INDIRECT(\"'SorP'!$A$\"&MATCH($J1478,SorP!$B$1:$B$6230,0))))","v":""},null,{"$f":"IF(C1478=\"\",NA(),MATCH($B1478&$C1478,'Smelter Look-up'!$J:$J,0))","v":{"$error":"#N/A"}},null,0,null,null,null,""]
[null,{"$f":"IF(LEN(A1479)=0,\"\",INDEX('Smelter Look-up'!$A:$A,MATCH($A1479,'Smelter Look-up'!$E:$E,0)))","v":""},{"$f":"IF(LEN(A1479)=0,\"\",INDEX('Smelter Look-up'!$C:$C,MATCH($A1479,'Smelter Look-up'!$E:$E,0)))","v":""},null,{"$f":"IF(ISERROR($V1479),\"\",OFFSET('Smelter Look-up'!$D$4,$V1479-4,0)&\"\")","v":""},{"$f":"IF(ISERROR($V1479),\"\",OFFSET('Smelter Look-up'!$E$4,$V1479-4,0))","v":""},{"$f":"IF(C1479=$X$4,\"Enter smelter details\", IF(ISERROR($V1479),\"\",OFFSET('Smelter Look-up'!$F$4,$V1479-4,0)))","v":""},{"$f":"IF(ISERROR($V1479),\"\",OFFSET('Smelter Look-up'!$G$4,$V1479-4,0))","v":""},{"$f":"IF(ISERROR($V1479),\"\",OFFSET('Smelter Look-up'!$H$4,$V1479-4,0))","v":""},{"$f":"IF(ISERROR($V1479),\"\",OFFSET('Smelter Look-up'!$I$4,$V1479-4,0))","v":""},{"$nulls":7},{"$f":"IF(ISERROR($V1479),\"\",OFFSET('Smelter Look-up'!$C$4,$V1479-4,0)&\"\")","v":""},"",{"$f":"IF(B1479=\"\",\"\",IF(ISERROR(MATCH($J1479,SorP!$B$1:$B$6230,0)),\"\",INDIRECT(\"'SorP'!$A$\"&MATCH($J1479,SorP!$B$1:$B$6230,0))))","v":""},null,{"$f":"IF(C1479=\"\",NA(),MATCH($B1479&$C1479,'Smelter Look-up'!$J:$J,0))","v":{"$error":"#N/A"}},null,0,null,null,null,""]
[null,{"$f":"IF(LEN(A1480)=0,\"\",INDEX('Smelter Look-up'!$A:$A,MATCH($A1480,'Smelter Look-up'!$E:$E,0)))","v":""},{"$f":"IF(LEN(A1480)=0,\"\",INDEX('Smelter Look-up'!$C:$C,MATCH($A1480,'Smelter Look-up'!$E:$E,0)))","v":""},null,{"$f":"IF(ISERROR($V1480),\"\",OFFSET('Smelter Look-up'!$D$4,$V1480-4,0)&\"\")","v":""},{"$f":"IF(ISERROR($V1480),\"\",OFFSET('Smelter Look-up'!$E$4,$V1480-4,0))","v":""},{"$f":"IF(C1480=$X$4,\"Enter smelter details\", IF(ISERROR($V1480),\"\",OFFSET('Smelter Look-up'!$F$4,$V1480-4,0)))","v":""},{"$f":"IF(ISERROR($V1480),\"\",OFFSET('Smelter Look-up'!$G$4,$V1480-4,0))","v":""},{"$f":"IF(ISERROR($V1480),\"\",OFFSET('Smelter Look-up'!$H$4,$V1480-4,0))","v":""},{"$f":"IF(ISERROR($V1480),\"\",OFFSET('Smelter Look-up'!$I$4,$V1480-4,0))","v":""},{"$nulls":7},{"$f":"IF(ISERROR($V1480),\"\",OFFSET('Smelter Look-up'!$C$4,$V1480-4,0)&\"\")","v":""},"",{"$f":"IF(B1480=\"\",\"\",IF(ISERROR(MATCH($J1480,SorP!$B$1:$B$6230,0)),\"\",INDIRECT(\"'SorP'!$A$\"&MATCH($J1480,SorP!$B$1:$B$6230,0))))","v":""},null,{"$f":"IF(C1480=\"\",NA(),MATCH($B1480&$C1480,'Smelter Look-up'!$J:$J,0))","v":{"$error":"#N/A"}},null,0,null,null,null,""]
[null,{"$f":"IF(LEN(A1481)=0,\"\",INDEX('Smelter Look-up'!$A:$A,MATCH($A1481,'Smelter Look-up'!$E:$E,0)))","v":""},{"$f":"IF(LEN(A1481)=0,\"\",INDEX('Smelter Look-up'!$C:$C,MATCH($A1481,'Smelter Look-up'!$E:$E,0)))","v":""},null,{"$f":"IF(ISERROR($V1481),\"\",OFFSET('Smelter Look-up'!$D$4,$V1481-4,0)&\"\")","v":""},{"$f":"IF(ISERROR($V1481),\"\",OFFSET('Smelter Look-up'!$E$4,$V1481-4,0))","v":""},{"$f":"IF(C1481=$X$4,\"Enter smelter details\", IF(ISERROR($V1481),\"\",OFFSET('Smelter Look-up'!$F$4,$V1481-4,0)))","v":""},{"$f":"IF(ISERROR($V1481),\"\",OFFSET('Smelter Look-up'!$G$4,$V1481-4,0))","v":""},{"$f":"IF(ISERROR($V1481),\"\",OFFSET('Smelter Look-up'!$H$4,$V1481-4,0))","v":""},{"$f":"IF(ISERROR($V1481),\"\",OFFSET('Smelter Look-up'!$I$4,$V1481-4,0))","v":""},{"$nulls":7},{"$f":"IF(ISERROR($V1481),\"\",OFFSET('Smelter Look-up'!$C$4,$V1481-4,0)&\"\")","v":""},"",{"$f":"IF(B1481=\"\",\"\",IF(ISERROR(MATCH($J1481,SorP!$B$1:$B$6230,0)),\"\",INDIRECT(\"'SorP'!$A$\"&MATCH($J1481,SorP!$B$1:$B$6230,0))))","v":""},null,{"$f":"IF(C1481=\"\",NA(),MATCH($B1481&$C1481,'Smelter Look-up'!$J:$J,0))","v":{"$error":"#N/A"}},null,0,null,null,null,""]
[null,{"$f":"IF(LEN(A1482)=0,\"\",INDEX('Smelter Look-up'!$A:$A,MATCH($A1482,'Smelter Look-up'!$E:$E,0)))","v":""},{"$f":"IF(LEN(A1482)=0,\"\",INDEX('Smelter Look-up'!$C:$C,MATCH($A1482,'Smelter Look-up'!$E:$E,0)))","v":""},null,{"$f":"IF(ISERROR($V1482),\"\",OFFSET('Smelter Look-up'!$D$4,$V1482-4,0)&\"\")","v":""},{"$f":"IF(ISERROR($V1482),\"\",OFFSET('Smelter Look-up'!$E$4,$V1482-4,0))","v":""},{"$f":"IF(C1482=$X$4,\"Enter smelter details\", IF(ISERROR($V1482),\"\",OFFSET('Smelter Look-up'!$F$4,$V1482-4,0)))","v":""},{"$f":"IF(ISERROR($V1482),\"\",OFFSET('Smelter Look-up'!$G$4,$V1482-4,0))","v":""},{"$f":"IF(ISERROR($V1482),\"\",OFFSET('Smelter Look-up'!$H$4,$V1482-4,0))","v":""},{"$f":"IF(ISERROR($V1482),\"\",OFFSET('Smelter Look-up'!$I$4,$V1482-4,0))","v":""},{"$nulls":7},{"$f":"IF(ISERROR($V1482),\"\",OFFSET('Smelter Look-up'!$C$4,$V1482-4,0)&\"\")","v":""},"",{"$f":"IF(B1482=\"\",\"\",IF(ISERROR(MATCH($J1482,SorP!$B$1:$B$6230,0)),\"\",INDIRECT(\"'SorP'!$A$\"&MATCH($J1482,SorP!$B$1:$B$6230,0))))","v":""},null,{"$f":"IF(C1482=\"\",NA(),MATCH($B1482&$C1482,'Smelter Look-up'!$J:$J,0))","v":{"$error":"#N/A"}},null,0,null,null,null,""]
[null,{"$f":"IF(LEN(A1483)=0,\"\",INDEX('Smelter Look-up'!$A:$A,MATCH($A1483,'Smelter Look-up'!$E:$E,0)))","v":""},{"$f":"IF(LEN(A1483)=0,\"\",INDEX('Smelter Look-up'!$C:$C,MATCH($A1483,'Smelter Look-up'!$E:$E,0)))","v":""},null,{"$f":"IF(ISERROR($V1483),\"\",OFFSET('Smelter Look-up'!$D$4,$V1483-4,0)&\"\")","v":""},{"$f":"IF(ISERROR($V1483),\"\",OFFSET('Smelter Look-up'!$E$4,$V1483-4,0))","v":""},{"$f":"IF(C1483=$X$4,\"Enter smelter details\", IF(ISERROR($V1483),\"\",OFFSET('Smelter Look-up'!$F$4,$V1483-4,0)))","v":""},{"$f":"IF(ISERROR($V1483),\"\",OFFSET('Smelter Look-up'!$G$4,$V1483-4,0))","v":""},{"$f":"IF(ISERROR($V1483),\"\",OFFSET('Smelter Look-up'!$H$4,$V1483-4,0))","v":""},{"$f":"IF(ISERROR($V1483),\"\",OFFSET('Smelter Look-up'!$I$4,$V1483-4,0))","v":""},{"$nulls":7},{"$f":"IF(ISERROR($V1483),\"\",OFFSET('Smelter Look-up'!$C$4,$V1483-4,0)&\"\")","v":""},"",{"$f":"IF(B1483=\"\",\"\",IF(ISERROR(MATCH($J1483,SorP!$B$1:$B$6230,0)),\"\",INDIRECT(\"'SorP'!$A$\"&MATCH($J1483,SorP!$B$1:$B$6230,0))))","v":""},null,{"$f":"IF(C1483=\"\",NA(),MATCH($B1483&$C1483,'Smelter Look-up'!$J:$J,0))","v":{"$error":"#N/A"}},null,0,null,null,null,""]
[null,{"$f":"IF(LEN(A1484)=0,\"\",INDEX('Smelter Look-up'!$A:$A,MATCH($A1484,'Smelter Look-up'!$E:$E,0)))","v":""},{"$f":"IF(LEN(A1484)=0,\"\",INDEX('Smelter Look-up'!$C:$C,MATCH($A1484,'Smelter Look-up'!$E:$E,0)))","v":""},null,{"$f":"IF(ISERROR($V1484),\"\",OFFSET('Smelter Look-up'!$D$4,$V1484-4,0)&\"\")","v":""},{"$f":"IF(ISERROR($V1484),\"\",OFFSET('Smelter Look-up'!$E$4,$V1484-4,0))","v":""},{"$f":"IF(C1484=$X$4,\"Enter smelter details\", IF(ISERROR($V1484),\"\",OFFSET('Smelter Look-up'!$F$4,$V1484-4,0)))","v":""},{"$f":"IF(ISERROR($V1484),\"\",OFFSET('Smelter Look-up'!$G$4,$V1484-4,0))","v":""},{"$f":"IF(ISERROR($V1484),\"\",OFFSET('Smelter Look-up'!$H$4,$V1484-4,0))","v":""},{"$f":"IF(ISERROR($V1484),\"\",OFFSET('Smelter Look-up'!$I$4,$V1484-4,0))","v":""},{"$nulls":7},{"$f":"IF(ISERROR($V1484),\"\",OFFSET('Smelter Look-up'!$C$4,$V1484-4,0)&\"\")","v":""},"",{"$f":"IF(B1484=\"\",\"\",IF(ISERROR(MATCH($J1484,SorP!$B$1:$B$6230,0)),\"\",INDIRECT(\"'SorP'!$A$\"&MATCH($J1484,SorP!$B$1:$B$6230,0))))","v":""},null,{"$f":"IF(C1484=\"\",NA(),MATCH($B1484&$C1484,'Smelter Look-up'!$J:$J,0))","v":{"$error":"#N/A"}},null,0,null,null,null,""]
[null,{"$f":"IF(LEN(A1485)=0,\"\",INDEX('Smelter Look-up'!$A:$A,MATCH($A1485,'Smelter Look-up'!$E:$E,0)))","v":""},{"$f":"IF(LEN(A1485)=0,\"\",INDEX('Smelter Look-up'!$C:$C,MATCH($A1485,'Smelter Look-up'!$E:$E,0)))","v":""},null,{"$f":"IF(ISERROR($V1485),\"\",OFFSET('Smelter Look-up'!$D$4,$V1485-4,0)&\"\")","v":""},{"$f":"IF(ISERROR($V1485),\"\",OFFSET('Smelter Look-up'!$E$4,$V1485-4,0))","v":""},{"$f":"IF(C1485=$X$4,\"Enter smelter details\", IF(ISERROR($V1485),\"\",OFFSET('Smelter Look-up'!$F$4,$V1485-4,0)))","v":""},{"$f":"IF(ISERROR($V1485),\"\",OFFSET('Smelter Look-up'!$G$4,$V1485-4,0))","v":""},{"$f":"IF(ISERROR($V1485),\"\",OFFSET('Smelter Look-up'!$H$4,$V1485-4,0))","v":""},{"$f":"IF(ISERROR($V1485),\"\",OFFSET('Smelter Look-up'!$I$4,$V1485-4,0))","v":""},{"$nulls":7},{"$f":"IF(ISERROR($V1485),\"\",OFFSET('Smelter Look-up'!$C$4,$V1485-4,0)&\"\")","v":""},"",{"$f":"IF(B1485=\"\",\"\",IF(ISERROR(MATCH($J1485,SorP!$B$1:$B$6230,0)),\"\",INDIRECT(\"'SorP'!$A$\"&MATCH($J1485,SorP!$B$1:$B$6230,0))))","v":""},null,{"$f":"IF(C1485=\"\",NA(),MATCH($B1485&$C1485,'Smelter Look-up'!$J:$J,0))","v":{"$error":"#N/A"}},null,0,null,null,null,""]
[null,{"$f":"IF(LEN(A1486)=0,\"\",INDEX('Smelter Look-up'!$A:$A,MATCH($A1486,'Smelter Look-up'!$E:$E,0)))","v":""},{"$f":"IF(LEN(A1486)=0,\"\",INDEX('Smelter Look-up'!$C:$C,MATCH($A1486,'Smelter Look-up'!$E:$E,0)))","v":""},null,{"$f":"IF(ISERROR($V1486),\"\",OFFSET('Smelter Look-up'!$D$4,$V1486-4,0)&\"\")","v":""},{"$f":"IF(ISERROR($V1486),\"\",OFFSET('Smelter Look-up'!$E$4,$V1486-4,0))","v":""},{"$f":"IF(C1486=$X$4,\"Enter smelter details\", IF(ISERROR($V1486),\"\",OFFSET('Smelter Look-up'!$F$4,$V1486-4,0)))","v":""},{"$f":"IF(ISERROR($V1486),\"\",OFFSET('Smelter Look-up'!$G$4,$V1486-4,0))","v":""},{"$f":"IF(ISERROR($V1486),\"\",OFFSET('Smelter Look-up'!$H$4,$V1486-4,0))","v":""},{"$f":"IF(ISERROR($V1486),\"\",OFFSET('Smelter Look-up'!$I$4,$V1486-4,0))","v":""},{"$nulls":7},{"$f":"IF(ISERROR($V1486),\"\",OFFSET('Smelter Look-up'!$C$4,$V1486-4,0)&\"\")","v":""},"",{"$f":"IF(B1486=\"\",\"\",IF(ISERROR(MATCH($J1486,SorP!$B$1:$B$6230,0)),\"\",INDIRECT(\"'SorP'!$A$\"&MATCH($J1486,SorP!$B$1:$B$6230,0))))","v":""},null,{"$f":"IF(C1486=\"\",NA(),MATCH($B1486&$C1486,'Smelter Look-up'!$J:$J,0))","v":{"$error":"#N/A"}},null,0,null,null,null,""]
[null,{"$f":"IF(LEN(A1487)=0,\"\",INDEX('Smelter Look-up'!$A:$A,MATCH($A1487,'Smelter Look-up'!$E:$E,0)))","v":""},{"$f":"IF(LEN(A1487)=0,\"\",INDEX('Smelter Look-up'!$C:$C,MATCH($A1487,'Smelter Look-up'!$E:$E,0)))","v":""},null,{"$f":"IF(ISERROR($V1487),\"\",OFFSET('Smelter Look-up'!$D$4,$V1487-4,0)&\"\")","v":""},{"$f":"IF(ISERROR($V1487),\"\",OFFSET('Smelter Look-up'!$E$4,$V1487-4,0))","v":""},{"$f":"IF(C1487=$X$4,\"Enter smelter details\", IF(ISERROR($V1487),\"\",OFFSET('Smelter Look-up'!$F$4,$V1487-4,0)))","v":""},{"$f":"IF(ISERROR($V1487),\"\",OFFSET('Smelter Look-up'!$G$4,$V1487-4,0))","v":""},{"$f":"IF(ISERROR($V1487),\"\",OFFSET('Smelter Look-up'!$H$4,$V1487-4,0))","v":""},{"$f":"IF(ISERROR($V1487),\"\",OFFSET('Smelter Look-up'!$I$4,$V1487-4,0))","v":""},{"$nulls":7},{"$f":"IF(ISERROR($V1487),\"\",OFFSET('Smelter Look-up'!$C$4,$V1487-4,0)&\"\")","v":""},"",{"$f":"IF(B1487=\"\",\"\",IF(ISERROR(MATCH($J1487,SorP!$B$1:$B$6230,0)),\"\",INDIRECT(\"'SorP'!$A$\"&MATCH($J1487,SorP!$B$1:$B$6230,0))))","v":""},null,{"$f":"IF(C1487=\"\",NA(),MATCH($B1487&$C1487,'Smelter Look-up'!$J:$J,0))","v":{"$error":"#N/A"}},null,0,null,null,null,""]
[null,{"$f":"IF(LEN(A1488)=0,\"\",INDEX('Smelter Look-up'!$A:$A,MATCH($A1488,'Smelter Look-up'!$E:$E,0)))","v":""},{"$f":"IF(LEN(A1488)=0,\"\",INDEX('Smelter Look-up'!$C:$C,MATCH($A1488,'Smelter Look-up'!$E:$E,0)))","v":""},null,{"$f":"IF(ISERROR($V1488),\"\",OFFSET('Smelter Look-up'!$D$4,$V1488-4,0)&\"\")","v":""},{"$f":"IF(ISERROR($V1488),\"\",OFFSET('Smelter Look-up'!$E$4,$V1488-4,0))","v":""},{"$f":"IF(C1488=$X$4,\"Enter smelter details\", IF(ISERROR($V1488),\"\",OFFSET('Smelter Look-up'!$F$4,$V1488-4,0)))","v":""},{"$f":"IF(ISERROR($V1488),\"\",OFFSET('Smelter Look-up'!$G$4,$V1488-4,0))","v":""},{"$f":"IF(ISERROR($V1488),\"\",OFFSET('Smelter Look-up'!$H$4,$V1488-4,0))","v":""},{"$f":"IF(ISERROR($V1488),\"\",OFFSET('Smelter Look-up'!$I$4,$V1488-4,0))","v":""},{"$nulls":7},{"$f":"IF(ISERROR($V1488),\"\",OFFSET('Smelter Look-up'!$C$4,$V1488-4,0)&\"\")","v":""},"",{"$f":"IF(B1488=\"\",\"\",IF(ISERROR(MATCH($J1488,SorP!$B$1:$B$6230,0)),\"\",INDIRECT(\"'SorP'!$A$\"&MATCH($J1488,SorP!$B$1:$B$6230,0))))","v":""},null,{"$f":"IF(C1488=\"\",NA(),MATCH($B1488&$C1488,'Smelter Look-up'!$J:$J,0))","v":{"$error":"#N/A"}},null,0,null,null,null,""]
[null,{"$f":"IF(LEN(A1489)=0,\"\",INDEX('Smelter Look-up'!$A:$A,MATCH($A1489,'Smelter Look-up'!$E:$E,0)))","v":""},{"$f":"IF(LEN(A1489)=0,\"\",INDEX('Smelter Look-up'!$C:$C,MATCH($A1489,'Smelter Look-up'!$E:$E,0)))","v":""},null,{"$f":"IF(ISERROR($V1489),\"\",OFFSET('Smelter Look-up'!$D$4,$V1489-4,0)&\"\")","v":""},{"$f":"IF(ISERROR($V1489),\"\",OFFSET('Smelter Look-up'!$E$4,$V1489-4,0))","v":""},{"$f":"IF(C1489=$X$4,\"Enter smelter details\", IF(ISERROR($V1489),\"\",OFFSET('Smelter Look-up'!$F$4,$V1489-4,0)))","v":""},{"$f":"IF(ISERROR($V1489),\"\",OFFSET('Smelter Look-up'!$G$4,$V1489-4,0))","v":""},{"$f":"IF(ISERROR($V1489),\"\",OFFSET('Smelter Look-up'!$H$4,$V1489-4,0))","v":""},{"$f":"IF(ISERROR($V1489),\"\",OFFSET('Smelter Look-up'!$I$4,$V1489-4,0))","v":""},{"$nulls":7},{"$f":"IF(ISERROR($V1489),\"\",OFFSET('Smelter Look-up'!$C$4,$V1489-4,0)&\"\")","v":""},"",{"$f":"IF(B1489=\"\",\"\",IF(ISERROR(MATCH($J1489,SorP!$B$1:$B$6230,0)),\"\",INDIRECT(\"'SorP'!$A$\"&MATCH($J1489,SorP!$B$1:$B$6230,0))))","v":""},null,{"$f":"IF(C1489=\"\",NA(),MATCH($B1489&$C1489,'Smelter Look-up'!$J:$J,0))","v":{"$error":"#N/A"}},null,0,null,null,null,""]
[null,{"$f":"IF(LEN(A1490)=0,\"\",INDEX('Smelter Look-up'!$A:$A,MATCH($A1490,'Smelter Look-up'!$E:$E,0)))","v":""},{"$f":"IF(LEN(A1490)=0,\"\",INDEX('Smelter Look-up'!$C:$C,MATCH($A1490,'Smelter Look-up'!$E:$E,0)))","v":""},null,{"$f":"IF(ISERROR($V1490),\"\",OFFSET('Smelter Look-up'!$D$4,$V1490-4,0)&\"\")","v":""},{"$f":"IF(ISERROR($V1490),\"\",OFFSET('Smelter Look-up'!$E$4,$V1490-4,0))","v":""},{"$f":"IF(C1490=$X$4,\"Enter smelter details\", IF(ISERROR($V1490),\"\",OFFSET('Smelter Look-up'!$F$4,$V1490-4,0)))","v":""},{"$f":"IF(ISERROR($V1490),\"\",OFFSET('Smelter Look-up'!$G$4,$V1490-4,0))","v":""},{"$f":"IF(ISERROR($V1490),\"\",OFFSET('Smelter Look-up'!$H$4,$V1490-4,0))","v":""},{"$f":"IF(ISERROR($V1490),\"\",OFFSET('Smelter Look-up'!$I$4,$V1490-4,0))","v":""},{"$nulls":7},{"$f":"IF(ISERROR($V1490),\"\",OFFSET('Smelter Look-up'!$C$4,$V1490-4,0)&\"\")","v":""},"",{"$f":"IF(B1490=\"\",\"\",IF(ISERROR(MATCH($J1490,SorP!$B$1:$B$6230,0)),\"\",INDIRECT(\"'SorP'!$A$\"&MATCH($J1490,SorP!$B$1:$B$6230,0))))","v":""},null,{"$f":"IF(C1490=\"\",NA(),MATCH($B1490&$C1490,'Smelter Look-up'!$J:$J,0))","v":{"$error":"#N/A"}},null,0,null,null,null,""]
[null,{"$f":"IF(LEN(A1491)=0,\"\",INDEX('Smelter Look-up'!$A:$A,MATCH($A1491,'Smelter Look-up'!$E:$E,0)))","v":""},{"$f":"IF(LEN(A1491)=0,\"\",INDEX('Smelter Look-up'!$C:$C,MATCH($A1491,'Smelter Look-up'!$E:$E,0)))","v":""},null,{"$f":"IF(ISERROR($V1491),\"\",OFFSET('Smelter Look-up'!$D$4,$V1491-4,0)&\"\")","v":""},{"$f":"IF(ISERROR($V1491),\"\",OFFSET('Smelter Look-up'!$E$4,$V1491-4,0))","v":""},{"$f":"IF(C1491=$X$4,\"Enter smelter details\", IF(ISERROR($V1491),\"\",OFFSET('Smelter Look-up'!$F$4,$V1491-4,0)))","v":""},{"$f":"IF(ISERROR($V1491),\"\",OFFSET('Smelter Look-up'!$G$4,$V1491-4,0))","v":""},{"$f":"IF(ISERROR($V1491),\"\",OFFSET('Smelter Look-up'!$H$4,$V1491-4,0))","v":""},{"$f":"IF(ISERROR($V1491),\"\",OFFSET('Smelter Look-up'!$I$4,$V1491-4,0))","v":""},{"$nulls":7},{"$f":"IF(ISERROR($V1491),\"\",OFFSET('Smelter Look-up'!$C$4,$V1491-4,0)&\"\")","v":""},"",{"$f":"IF(B1491=\"\",\"\",IF(ISERROR(MATCH($J1491,SorP!$B$1:$B$6230,0)),\"\",INDIRECT(\"'SorP'!$A$\"&MATCH($J1491,SorP!$B$1:$B$6230,0))))","v":""},null,{"$f":"IF(C1491=\"\",NA(),MATCH($B1491&$C1491,'Smelter Look-up'!$J:$J,0))","v":{"$error":"#N/A"}},null,0,null,null,null,""]
[null,{"$f":"IF(LEN(A1492)=0,\"\",INDEX('Smelter Look-up'!$A:$A,MATCH($A1492,'Smelter Look-up'!$E:$E,0)))","v":""},{"$f":"IF(LEN(A1492)=0,\"\",INDEX('Smelter Look-up'!$C:$C,MATCH($A1492,'Smelter Look-up'!$E:$E,0)))","v":""},null,{"$f":"IF(ISERROR($V1492),\"\",OFFSET('Smelter Look-up'!$D$4,$V1492-4,0)&\"\")","v":""},{"$f":"IF(ISERROR($V1492),\"\",OFFSET('Smelter Look-up'!$E$4,$V1492-4,0))","v":""},{"$f":"IF(C1492=$X$4,\"Enter smelter details\", IF(ISERROR($V1492),\"\",OFFSET('Smelter Look-up'!$F$4,$V1492-4,0)))","v":""},{"$f":"IF(ISERROR($V1492),\"\",OFFSET('Smelter Look-up'!$G$4,$V1492-4,0))","v":""},{"$f":"IF(ISERROR($V1492),\"\",OFFSET('Smelter Look-up'!$H$4,$V1492-4,0))","v":""},{"$f":"IF(ISERROR($V1492),\"\",OFFSET('Smelter Look-up'!$I$4,$V1492-4,0))","v":""},{"$nulls":7},{"$f":"IF(ISERROR($V1492),\"\",OFFSET('Smelter Look-up'!$C$4,$V1492-4,0)&\"\")","v":""},"",{"$f":"IF(B1492=\"\",\"\",IF(ISERROR(MATCH($J1492,SorP!$B$1:$B$6230,0)),\"\",INDIRECT(\"'SorP'!$A$\"&MATCH($J1492,SorP!$B$1:$B$6230,0))))","v":""},null,{"$f":"IF(C1492=\"\",NA(),MATCH($B1492&$C1492,'Smelter Look-up'!$J:$J,0))","v":{"$error":"#N/A"}},null,0,null,null,null,""]
[null,{"$f":"IF(LEN(A1493)=0,\"\",INDEX('Smelter Look-up'!$A:$A,MATCH($A1493,'Smelter Look-up'!$E:$E,0)))","v":""},{"$f":"IF(LEN(A1493)=0,\"\",INDEX('Smelter Look-up'!$C:$C,MATCH($A1493,'Smelter Look-up'!$E:$E,0)))","v":""},null,{"$f":"IF(ISERROR($V1493),\"\",OFFSET('Smelter Look-up'!$D$4,$V1493-4,0)&\"\")","v":""},{"$f":"IF(ISERROR($V1493),\"\",OFFSET('Smelter Look-up'!$E$4,$V1493-4,0))","v":""},{"$f":"IF(C1493=$X$4,\"Enter smelter details\", IF(ISERROR($V1493),\"\",OFFSET('Smelter Look-up'!$F$4,$V1493-4,0)))","v":""},{"$f":"IF(ISERROR($V1493),\"\",OFFSET('Smelter Look-up'!$G$4,$V1493-4,0))","v":""},{"$f":"IF(ISERROR($V1493),\"\",OFFSET('Smelter Look-up'!$H$4,$V1493-4,0))","v":""},{"$f":"IF(ISERROR($V1493),\"\",OFFSET('Smelter Look-up'!$I$4,$V1493-4,0))","v":""},{"$nulls":7},{"$f":"IF(ISERROR($V1493),\"\",OFFSET('Smelter Look-up'!$C$4,$V1493-4,0)&\"\")","v":""},"",{"$f":"IF(B1493=\"\",\"\",IF(ISERROR(MATCH($J1493,SorP!$B$1:$B$6230,0)),\"\",INDIRECT(\"'SorP'!$A$\"&MATCH($J1493,SorP!$B$1:$B$6230,0))))","v":""},null,{"$f":"IF(C1493=\"\",NA(),MATCH($B1493&$C1493,'Smelter Look-up'!$J:$J,0))","v":{"$error":"#N/A"}},null,0,null,null,null,""]
[null,{"$f":"IF(LEN(A1494)=0,\"\",INDEX('Smelter Look-up'!$A:$A,MATCH($A1494,'Smelter Look-up'!$E:$E,0)))","v":""},{"$f":"IF(LEN(A1494)=0,\"\",INDEX('Smelter Look-up'!$C:$C,MATCH($A1494,'Smelter Look-up'!$E:$E,0)))","v":""},null,{"$f":"IF(ISERROR($V1494),\"\",OFFSET('Smelter Look-up'!$D$4,$V1494-4,0)&\"\")","v":""},{"$f":"IF(ISERROR($V1494),\"\",OFFSET('Smelter Look-up'!$E$4,$V1494-4,0))","v":""},{"$f":"IF(C1494=$X$4,\"Enter smelter details\", IF(ISERROR($V1494),\"\",OFFSET('Smelter Look-up'!$F$4,$V1494-4,0)))","v":""},{"$f":"IF(ISERROR($V1494),\"\",OFFSET('Smelter Look-up'!$G$4,$V1494-4,0))","v":""},{"$f":"IF(ISERROR($V1494),\"\",OFFSET('Smelter Look-up'!$H$4,$V1494-4,0))","v":""},{"$f":"IF(ISERROR($V1494),\"\",OFFSET('Smelter Look-up'!$I$4,$V1494-4,0))","v":""},{"$nulls":7},{"$f":"IF(ISERROR($V1494),\"\",OFFSET('Smelter Look-up'!$C$4,$V1494-4,0)&\"\")","v":""},"",{"$f":"IF(B1494=\"\",\"\",IF(ISERROR(MATCH($J1494,SorP!$B$1:$B$6230,0)),\"\",INDIRECT(\"'SorP'!$A$\"&MATCH($J1494,SorP!$B$1:$B$6230,0))))","v":""},null,{"$f":"IF(C1494=\"\",NA(),MATCH($B1494&$C1494,'Smelter Look-up'!$J:$J,0))","v":{"$error":"#N/A"}},null,0,null,null,null,""]
[null,{"$f":"IF(LEN(A1495)=0,\"\",INDEX('Smelter Look-up'!$A:$A,MATCH($A1495,'Smelter Look-up'!$E:$E,0)))","v":""},{"$f":"IF(LEN(A1495)=0,\"\",INDEX('Smelter Look-up'!$C:$C,MATCH($A1495,'Smelter Look-up'!$E:$E,0)))","v":""},null,{"$f":"IF(ISERROR($V1495),\"\",OFFSET('Smelter Look-up'!$D$4,$V1495-4,0)&\"\")","v":""},{"$f":"IF(ISERROR($V1495),\"\",OFFSET('Smelter Look-up'!$E$4,$V1495-4,0))","v":""},{"$f":"IF(C1495=$X$4,\"Enter smelter details\", IF(ISERROR($V1495),\"\",OFFSET('Smelter Look-up'!$F$4,$V1495-4,0)))","v":""},{"$f":"IF(ISERROR($V1495),\"\",OFFSET('Smelter Look-up'!$G$4,$V1495-4,0))","v":""},{"$f":"IF(ISERROR($V1495),\"\",OFFSET('Smelter Look-up'!$H$4,$V1495-4,0))","v":""},{"$f":"IF(ISERROR($V1495),\"\",OFFSET('Smelter Look-up'!$I$4,$V1495-4,0))","v":""},{"$nulls":7},{"$f":"IF(ISERROR($V1495),\"\",OFFSET('Smelter Look-up'!$C$4,$V1495-4,0)&\"\")","v":""},"",{"$f":"IF(B1495=\"\",\"\",IF(ISERROR(MATCH($J1495,SorP!$B$1:$B$6230,0)),\"\",INDIRECT(\"'SorP'!$A$\"&MATCH($J1495,SorP!$B$1:$B$6230,0))))","v":""},null,{"$f":"IF(C1495=\"\",NA(),MATCH($B1495&$C1495,'Smelter Look-up'!$J:$J,0))","v":{"$error":"#N/A"}},null,0,null,null,null,""]
[null,{"$f":"IF(LEN(A1496)=0,\"\",INDEX('Smelter Look-up'!$A:$A,MATCH($A1496,'Smelter Look-up'!$E:$E,0)))","v":""},{"$f":"IF(LEN(A1496)=0,\"\",INDEX('Smelter Look-up'!$C:$C,MATCH($A1496,'Smelter Look-up'!$E:$E,0)))","v":""},null,{"$f":"IF(ISERROR($V1496),\"\",OFFSET('Smelter Look-up'!$D$4,$V1496-4,0)&\"\")","v":""},{"$f":"IF(ISERROR($V1496),\"\",OFFSET('Smelter Look-up'!$E$4,$V1496-4,0))","v":""},{"$f":"IF(C1496=$X$4,\"Enter smelter details\", IF(ISERROR($V1496),\"\",OFFSET('Smelter Look-up'!$F$4,$V1496-4,0)))","v":""},{"$f":"IF(ISERROR($V1496),\"\",OFFSET('Smelter Look-up'!$G$4,$V1496-4,0))","v":""},{"$f":"IF(ISERROR($V1496),\"\",OFFSET('Smelter Look-up'!$H$4,$V1496-4,0))","v":""},{"$f":"IF(ISERROR($V1496),\"\",OFFSET('Smelter Look-up'!$I$4,$V1496-4,0))","v":""},{"$nulls":7},{"$f":"IF(ISERROR($V1496),\"\",OFFSET('Smelter Look-up'!$C$4,$V1496-4,0)&\"\")","v":""},"",{"$f":"IF(B1496=\"\",\"\",IF(ISERROR(MATCH($J1496,SorP!$B$1:$B$6230,0)),\"\",INDIRECT(\"'SorP'!$A$\"&MATCH($J1496,SorP!$B$1:$B$6230,0))))","v":""},null,{"$f":"IF(C1496=\"\",NA(),MATCH($B1496&$C1496,'Smelter Look-up'!$J:$J,0))","v":{"$error":"#N/A"}},null,0,null,null,null,""]
[null,{"$f":"IF(LEN(A1497)=0,\"\",INDEX('Smelter Look-up'!$A:$A,MATCH($A1497,'Smelter Look-up'!$E:$E,0)))","v":""},{"$f":"IF(LEN(A1497)=0,\"\",INDEX('Smelter Look-up'!$C:$C,MATCH($A1497,'Smelter Look-up'!$E:$E,0)))","v":""},null,{"$f":"IF(ISERROR($V1497),\"\",OFFSET('Smelter Look-up'!$D$4,$V1497-4,0)&\"\")","v":""},{"$f":"IF(ISERROR($V1497),\"\",OFFSET('Smelter Look-up'!$E$4,$V1497-4,0))","v":""},{"$f":"IF(C1497=$X$4,\"Enter smelter details\", IF(ISERROR($V1497),\"\",OFFSET('Smelter Look-up'!$F$4,$V1497-4,0)))","v":""},{"$f":"IF(ISERROR($V1497),\"\",OFFSET('Smelter Look-up'!$G$4,$V1497-4,0))","v":""},{"$f":"IF(ISERROR($V1497),\"\",OFFSET('Smelter Look-up'!$H$4,$V1497-4,0))","v":""},{"$f":"IF(ISERROR($V1497),\"\",OFFSET('Smelter Look-up'!$I$4,$V1497-4,0))","v":""},{"$nulls":7},{"$f":"IF(ISERROR($V1497),\"\",OFFSET('Smelter Look-up'!$C$4,$V1497-4,0)&\"\")","v":""},"",{"$f":"IF(B1497=\"\",\"\",IF(ISERROR(MATCH($J1497,SorP!$B$1:$B$6230,0)),\"\",INDIRECT(\"'SorP'!$A$\"&MATCH($J1497,SorP!$B$1:$B$6230,0))))","v":""},null,{"$f":"IF(C1497=\"\",NA(),MATCH($B1497&$C1497,'Smelter Look-up'!$J:$J,0))","v":{"$error":"#N/A"}},null,0,null,null,null,""]
[null,{"$f":"IF(LEN(A1498)=0,\"\",INDEX('Smelter Look-up'!$A:$A,MATCH($A1498,'Smelter Look-up'!$E:$E,0)))","v":""},{"$f":"IF(LEN(A1498)=0,\"\",INDEX('Smelter Look-up'!$C:$C,MATCH($A1498,'Smelter Look-up'!$E:$E,0)))","v":""},null,{"$f":"IF(ISERROR($V1498),\"\",OFFSET('Smelter Look-up'!$D$4,$V1498-4,0)&\"\")","v":""},{"$f":"IF(ISERROR($V1498),\"\",OFFSET('Smelter Look-up'!$E$4,$V1498-4,0))","v":""},{"$f":"IF(C1498=$X$4,\"Enter smelter details\", IF(ISERROR($V1498),\"\",OFFSET('Smelter Look-up'!$F$4,$V1498-4,0)))","v":""},{"$f":"IF(ISERROR($V1498),\"\",OFFSET('Smelter Look-up'!$G$4,$V1498-4,0))","v":""},{"$f":"IF(ISERROR($V1498),\"\",OFFSET('Smelter Look-up'!$H$4,$V1498-4,0))","v":""},{"$f":"IF(ISERROR($V1498),\"\",OFFSET('Smelter Look-up'!$I$4,$V1498-4,0))","v":""},{"$nulls":7},{"$f":"IF(ISERROR($V1498),\"\",OFFSET('Smelter Look-up'!$C$4,$V1498-4,0)&\"\")","v":""},"",{"$f":"IF(B1498=\"\",\"\",IF(ISERROR(MATCH($J1498,SorP!$B$1:$B$6230,0)),\"\",INDIRECT(\"'SorP'!$A$\"&MATCH($J1498,SorP!$B$1:$B$6230,0))))","v":""},null,{"$f":"IF(C1498=\"\",NA(),MATCH($B1498&$C1498,'Smelter Look-up'!$J:$J,0))","v":{"$error":"#N/A"}},null,0,null,null,null,""]
[null,{"$f":"IF(LEN(A1499)=0,\"\",INDEX('Smelter Look-up'!$A:$A,MATCH($A1499,'Smelter Look-up'!$E:$E,0)))","v":""},{"$f":"IF(LEN(A1499)=0,\"\",INDEX('Smelter Look-up'!$C:$C,MATCH($A1499,'Smelter Look-up'!$E:$E,0)))","v":""},null,{"$f":"IF(ISERROR($V1499),\"\",OFFSET('Smelter Look-up'!$D$4,$V1499-4,0)&\"\")","v":""},{"$f":"IF(ISERROR($V1499),\"\",OFFSET('Smelter Look-up'!$E$4,$V1499-4,0))","v":""},{"$f":"IF(C1499=$X$4,\"Enter smelter details\", IF(ISERROR($V1499),\"\",OFFSET('Smelter Look-up'!$F$4,$V1499-4,0)))","v":""},{"$f":"IF(ISERROR($V1499),\"\",OFFSET('Smelter Look-up'!$G$4,$V1499-4,0))","v":""},{"$f":"IF(ISERROR($V1499),\"\",OFFSET('Smelter Look-up'!$H$4,$V1499-4,0))","v":""},{"$f":"IF(ISERROR($V1499),\"\",OFFSET('Smelter Look-up'!$I$4,$V1499-4,0))","v":""},{"$nulls":7},{"$f":"IF(ISERROR($V1499),\"\",OFFSET('Smelter Look-up'!$C$4,$V1499-4,0)&\"\")","v":""},"",{"$f":"IF(B1499=\"\",\"\",IF(ISERROR(MATCH($J1499,SorP!$B$1:$B$6230,0)),\"\",INDIRECT(\"'SorP'!$A$\"&MATCH($J1499,SorP!$B$1:$B$6230,0))))","v":""},null,{"$f":"IF(C1499=\"\",NA(),MATCH($B1499&$C1499,'Smelter Look-up'!$J:$J,0))","v":{"$error":"#N/A"}},null,0,null,null,null,""]
[null,{"$f":"IF(LEN(A1500)=0,\"\",INDEX('Smelter Look-up'!$A:$A,MATCH($A1500,'Smelter Look-up'!$E:$E,0)))","v":""},{"$f":"IF(LEN(A1500)=0,\"\",INDEX('Smelter Look-up'!$C:$C,MATCH($A1500,'Smelter Look-up'!$E:$E,0)))","v":""},null,{"$f":"IF(ISERROR($V1500),\"\",OFFSET('Smelter Look-up'!$D$4,$V1500-4,0)&\"\")","v":""},{"$f":"IF(ISERROR($V1500),\"\",OFFSET('Smelter Look-up'!$E$4,$V1500-4,0))","v":""},{"$f":"IF(C1500=$X$4,\"Enter smelter details\", IF(ISERROR($V1500),\"\",OFFSET('Smelter Look-up'!$F$4,$V1500-4,0)))","v":""},{"$f":"IF(ISERROR($V1500),\"\",OFFSET('Smelter Look-up'!$G$4,$V1500-4,0))","v":""},{"$f":"IF(ISERROR($V1500),\"\",OFFSET('Smelter Look-up'!$H$4,$V1500-4,0))","v":""},{"$f":"IF(ISERROR($V1500),\"\",OFFSET('Smelter Look-up'!$I$4,$V1500-4,0))","v":""},{"$nulls":7},{"$f":"IF(ISERROR($V1500),\"\",OFFSET('Smelter Look-up'!$C$4,$V1500-4,0)&\"\")","v":""},"",{"$f":"IF(B1500=\"\",\"\",IF(ISERROR(MATCH($J1500,SorP!$B$1:$B$6230,0)),\"\",INDIRECT(\"'SorP'!$A$\"&MATCH($J1500,SorP!$B$1:$B$6230,0))))","v":""},null,{"$f":"IF(C1500=\"\",NA(),MATCH($B1500&$C1500,'Smelter Look-up'!$J:$J,0))","v":{"$error":"#N/A"}},null,0,null,null,null,""]
[null,{"$f":"IF(LEN(A1501)=0,\"\",INDEX('Smelter Look-up'!$A:$A,MATCH($A1501,'Smelter Look-up'!$E:$E,0)))","v":""},{"$f":"IF(LEN(A1501)=0,\"\",INDEX('Smelter Look-up'!$C:$C,MATCH($A1501,'Smelter Look-up'!$E:$E,0)))","v":""},null,{"$f":"IF(ISERROR($V1501),\"\",OFFSET('Smelter Look-up'!$D$4,$V1501-4,0)&\"\")","v":""},{"$f":"IF(ISERROR($V1501),\"\",OFFSET('Smelter Look-up'!$E$4,$V1501-4,0))","v":""},{"$f":"IF(C1501=$X$4,\"Enter smelter details\", IF(ISERROR($V1501),\"\",OFFSET('Smelter Look-up'!$F$4,$V1501-4,0)))","v":""},{"$f":"IF(ISERROR($V1501),\"\",OFFSET('Smelter Look-up'!$G$4,$V1501-4,0))","v":""},{"$f":"IF(ISERROR($V1501),\"\",OFFSET('Smelter Look-up'!$H$4,$V1501-4,0))","v":""},{"$f":"IF(ISERROR($V1501),\"\",OFFSET('Smelter Look-up'!$I$4,$V1501-4,0))","v":""},{"$nulls":7},{"$f":"IF(ISERROR($V1501),\"\",OFFSET('Smelter Look-up'!$C$4,$V1501-4,0)&\"\")","v":""},"",{"$f":"IF(B1501=\"\",\"\",IF(ISERROR(MATCH($J1501,SorP!$B$1:$B$6230,0)),\"\",INDIRECT(\"'SorP'!$A$\"&MATCH($J1501,SorP!$B$1:$B$6230,0))))","v":""},null,{"$f":"IF(C1501=\"\",NA(),MATCH($B1501&$C1501,'Smelter Look-up'!$J:$J,0))","v":{"$error":"#N/A"}},null,0,null,null,null,""]
[null,{"$f":"IF(LEN(A1502)=0,\"\",INDEX('Smelter Look-up'!$A:$A,MATCH($A1502,'Smelter Look-up'!$E:$E,0)))","v":""},{"$f":"IF(LEN(A1502)=0,\"\",INDEX('Smelter Look-up'!$C:$C,MATCH($A1502,'Smelter Look-up'!$E:$E,0)))","v":""},null,{"$f":"IF(ISERROR($V1502),\"\",OFFSET('Smelter Look-up'!$D$4,$V1502-4,0)&\"\")","v":""},{"$f":"IF(ISERROR($V1502),\"\",OFFSET('Smelter Look-up'!$E$4,$V1502-4,0))","v":""},{"$f":"IF(C1502=$X$4,\"Enter smelter details\", IF(ISERROR($V1502),\"\",OFFSET('Smelter Look-up'!$F$4,$V1502-4,0)))","v":""},{"$f":"IF(ISERROR($V1502),\"\",OFFSET('Smelter Look-up'!$G$4,$V1502-4,0))","v":""},{"$f":"IF(ISERROR($V1502),\"\",OFFSET('Smelter Look-up'!$H$4,$V1502-4,0))","v":""},{"$f":"IF(ISERROR($V1502),\"\",OFFSET('Smelter Look-up'!$I$4,$V1502-4,0))","v":""},{"$nulls":7},{"$f":"IF(ISERROR($V1502),\"\",OFFSET('Smelter Look-up'!$C$4,$V1502-4,0)&\"\")","v":""},"",{"$f":"IF(B1502=\"\",\"\",IF(ISERROR(MATCH($J1502,SorP!$B$1:$B$6230,0)),\"\",INDIRECT(\"'SorP'!$A$\"&MATCH($J1502,SorP!$B$1:$B$6230,0))))","v":""},null,{"$f":"IF(C1502=\"\",NA(),MATCH($B1502&$C1502,'Smelter Look-up'!$J:$J,0))","v":{"$error":"#N/A"}},null,0,null,null,null,""]
[null,{"$f":"IF(LEN(A1503)=0,\"\",INDEX('Smelter Look-up'!$A:$A,MATCH($A1503,'Smelter Look-up'!$E:$E,0)))","v":""},{"$f":"IF(LEN(A1503)=0,\"\",INDEX('Smelter Look-up'!$C:$C,MATCH($A1503,'Smelter Look-up'!$E:$E,0)))","v":""},null,{"$f":"IF(ISERROR($V1503),\"\",OFFSET('Smelter Look-up'!$D$4,$V1503-4,0)&\"\")","v":""},{"$f":"IF(ISERROR($V1503),\"\",OFFSET('Smelter Look-up'!$E$4,$V1503-4,0))","v":""},{"$f":"IF(C1503=$X$4,\"Enter smelter details\", IF(ISERROR($V1503),\"\",OFFSET('Smelter Look-up'!$F$4,$V1503-4,0)))","v":""},{"$f":"IF(ISERROR($V1503),\"\",OFFSET('Smelter Look-up'!$G$4,$V1503-4,0))","v":""},{"$f":"IF(ISERROR($V1503),\"\",OFFSET('Smelter Look-up'!$H$4,$V1503-4,0))","v":""},{"$f":"IF(ISERROR($V1503),\"\",OFFSET('Smelter Look-up'!$I$4,$V1503-4,0))","v":""},{"$nulls":7},{"$f":"IF(ISERROR($V1503),\"\",OFFSET('Smelter Look-up'!$C$4,$V1503-4,0)&\"\")","v":""},"",{"$f":"IF(B1503=\"\",\"\",IF(ISERROR(MATCH($J1503,SorP!$B$1:$B$6230,0)),\"\",INDIRECT(\"'SorP'!$A$\"&MATCH($J1503,SorP!$B$1:$B$6230,0))))","v":""},null,{"$f":"IF(C1503=\"\",NA(),MATCH($B1503&$C1503,'Smelter Look-up'!$J:$J,0))","v":{"$error":"#N/A"}},null,0,null,null,null,""]
[null,{"$f":"IF(LEN(A1504)=0,\"\",INDEX('Smelter Look-up'!$A:$A,MATCH($A1504,'Smelter Look-up'!$E:$E,0)))","v":""},{"$f":"IF(LEN(A1504)=0,\"\",INDEX('Smelter Look-up'!$C:$C,MATCH($A1504,'Smelter Look-up'!$E:$E,0)))","v":""},null,{"$f":"IF(ISERROR($V1504),\"\",OFFSET('Smelter Look-up'!$D$4,$V1504-4,0)&\"\")","v":""},{"$f":"IF(ISERROR($V1504),\"\",OFFSET('Smelter Look-up'!$E$4,$V1504-4,0))","v":""},{"$f":"IF(C1504=$X$4,\"Enter smelter details\", IF(ISERROR($V1504),\"\",OFFSET('Smelter Look-up'!$F$4,$V1504-4,0)))","v":""},{"$f":"IF(ISERROR($V1504),\"\",OFFSET('Smelter Look-up'!$G$4,$V1504-4,0))","v":""},{"$f":"IF(ISERROR($V1504),\"\",OFFSET('Smelter Look-up'!$H$4,$V1504-4,0))","v":""},{"$f":"IF(ISERROR($V1504),\"\",OFFSET('Smelter Look-up'!$I$4,$V1504-4,0))","v":""},{"$nulls":7},{"$f":"IF(ISERROR($V1504),\"\",OFFSET('Smelter Look-up'!$C$4,$V1504-4,0)&\"\")","v":""},"",{"$f":"IF(B1504=\"\",\"\",IF(ISERROR(MATCH($J1504,SorP!$B$1:$B$6230,0)),\"\",INDIRECT(\"'SorP'!$A$\"&MATCH($J1504,SorP!$B$1:$B$6230,0))))","v":""},null,{"$f":"IF(C1504=\"\",NA(),MATCH($B1504&$C1504,'Smelter Look-up'!$J:$J,0))","v":{"$error":"#N/A"}},null,0,null,null,null,""]
[null,{"$f":"IF(LEN(A1505)=0,\"\",INDEX('Smelter Look-up'!$A:$A,MATCH($A1505,'Smelter Look-up'!$E:$E,0)))","v":""},{"$f":"IF(LEN(A1505)=0,\"\",INDEX('Smelter Look-up'!$C:$C,MATCH($A1505,'Smelter Look-up'!$E:$E,0)))","v":""},null,{"$f":"IF(ISERROR($V1505),\"\",OFFSET('Smelter Look-up'!$D$4,$V1505-4,0)&\"\")","v":""},{"$f":"IF(ISERROR($V1505),\"\",OFFSET('Smelter Look-up'!$E$4,$V1505-4,0))","v":""},{"$f":"IF(C1505=$X$4,\"Enter smelter details\", IF(ISERROR($V1505),\"\",OFFSET('Smelter Look-up'!$F$4,$V1505-4,0)))","v":""},{"$f":"IF(ISERROR($V1505),\"\",OFFSET('Smelter Look-up'!$G$4,$V1505-4,0))","v":""},{"$f":"IF(ISERROR($V1505),\"\",OFFSET('Smelter Look-up'!$H$4,$V1505-4,0))","v":""},{"$f":"IF(ISERROR($V1505),\"\",OFFSET('Smelter Look-up'!$I$4,$V1505-4,0))","v":""},{"$nulls":7},{"$f":"IF(ISERROR($V1505),\"\",OFFSET('Smelter Look-up'!$C$4,$V1505-4,0)&\"\")","v":""},"",{"$f":"IF(B1505=\"\",\"\",IF(ISERROR(MATCH($J1505,SorP!$B$1:$B$6230,0)),\"\",INDIRECT(\"'SorP'!$A$\"&MATCH($J1505,SorP!$B$1:$B$6230,0))))","v":""},null,{"$f":"IF(C1505=\"\",NA(),MATCH($B1505&$C1505,'Smelter Look-up'!$J:$J,0))","v":{"$error":"#N/A"}},null,0,null,null,null,""]
[null,{"$f":"IF(LEN(A1506)=0,\"\",INDEX('Smelter Look-up'!$A:$A,MATCH($A1506,'Smelter Look-up'!$E:$E,0)))","v":""},{"$f":"IF(LEN(A1506)=0,\"\",INDEX('Smelter Look-up'!$C:$C,MATCH($A1506,'Smelter Look-up'!$E:$E,0)))","v":""},null,{"$f":"IF(ISERROR($V1506),\"\",OFFSET('Smelter Look-up'!$D$4,$V1506-4,0)&\"\")","v":""},{"$f":"IF(ISERROR($V1506),\"\",OFFSET('Smelter Look-up'!$E$4,$V1506-4,0))","v":""},{"$f":"IF(C1506=$X$4,\"Enter smelter details\", IF(ISERROR($V1506),\"\",OFFSET('Smelter Look-up'!$F$4,$V1506-4,0)))","v":""},{"$f":"IF(ISERROR($V1506),\"\",OFFSET('Smelter Look-up'!$G$4,$V1506-4,0))","v":""},{"$f":"IF(ISERROR($V1506),\"\",OFFSET('Smelter Look-up'!$H$4,$V1506-4,0))","v":""},{"$f":"IF(ISERROR($V1506),\"\",OFFSET('Smelter Look-up'!$I$4,$V1506-4,0))","v":""},{"$nulls":7},{"$f":"IF(ISERROR($V1506),\"\",OFFSET('Smelter Look-up'!$C$4,$V1506-4,0)&\"\")","v":""},"",{"$f":"IF(B1506=\"\",\"\",IF(ISERROR(MATCH($J1506,SorP!$B$1:$B$6230,0)),\"\",INDIRECT(\"'SorP'!$A$\"&MATCH($J1506,SorP!$B$1:$B$6230,0))))","v":""},null,{"$f":"IF(C1506=\"\",NA(),MATCH($B1506&$C1506,'Smelter Look-up'!$J:$J,0))","v":{"$error":"#N/A"}},null,0,null,null,null,""]
[null,{"$f":"IF(LEN(A1507)=0,\"\",INDEX('Smelter Look-up'!$A:$A,MATCH($A1507,'Smelter Look-up'!$E:$E,0)))","v":""},{"$f":"IF(LEN(A1507)=0,\"\",INDEX('Smelter Look-up'!$C:$C,MATCH($A1507,'Smelter Look-up'!$E:$E,0)))","v":""},null,{"$f":"IF(ISERROR($V1507),\"\",OFFSET('Smelter Look-up'!$D$4,$V1507-4,0)&\"\")","v":""},{"$f":"IF(ISERROR($V1507),\"\",OFFSET('Smelter Look-up'!$E$4,$V1507-4,0))","v":""},{"$f":"IF(C1507=$X$4,\"Enter smelter details\", IF(ISERROR($V1507),\"\",OFFSET('Smelter Look-up'!$F$4,$V1507-4,0)))","v":""},{"$f":"IF(ISERROR($V1507),\"\",OFFSET('Smelter Look-up'!$G$4,$V1507-4,0))","v":""},{"$f":"IF(ISERROR($V1507),\"\",OFFSET('Smelter Look-up'!$H$4,$V1507-4,0))","v":""},{"$f":"IF(ISERROR($V1507),\"\",OFFSET('Smelter Look-up'!$I$4,$V1507-4,0))","v":""},{"$nulls":7},{"$f":"IF(ISERROR($V1507),\"\",OFFSET('Smelter Look-up'!$C$4,$V1507-4,0)&\"\")","v":""},"",{"$f":"IF(B1507=\"\",\"\",IF(ISERROR(MATCH($J1507,SorP!$B$1:$B$6230,0)),\"\",INDIRECT(\"'SorP'!$A$\"&MATCH($J1507,SorP!$B$1:$B$6230,0))))","v":""},null,{"$f":"IF(C1507=\"\",NA(),MATCH($B1507&$C1507,'Smelter Look-up'!$J:$J,0))","v":{"$error":"#N/A"}},null,0,null,null,null,""]
[null,{"$f":"IF(LEN(A1508)=0,\"\",INDEX('Smelter Look-up'!$A:$A,MATCH($A1508,'Smelter Look-up'!$E:$E,0)))","v":""},{"$f":"IF(LEN(A1508)=0,\"\",INDEX('Smelter Look-up'!$C:$C,MATCH($A1508,'Smelter Look-up'!$E:$E,0)))","v":""},null,{"$f":"IF(ISERROR($V1508),\"\",OFFSET('Smelter Look-up'!$D$4,$V1508-4,0)&\"\")","v":""},{"$f":"IF(ISERROR($V1508),\"\",OFFSET('Smelter Look-up'!$E$4,$V1508-4,0))","v":""},{"$f":"IF(C1508=$X$4,\"Enter smelter details\", IF(ISERROR($V1508),\"\",OFFSET('Smelter Look-up'!$F$4,$V1508-4,0)))","v":""},{"$f":"IF(ISERROR($V1508),\"\",OFFSET('Smelter Look-up'!$G$4,$V1508-4,0))","v":""},{"$f":"IF(ISERROR($V1508),\"\",OFFSET('Smelter Look-up'!$H$4,$V1508-4,0))","v":""},{"$f":"IF(ISERROR($V1508),\"\",OFFSET('Smelter Look-up'!$I$4,$V1508-4,0))","v":""},{"$nulls":7},{"$f":"IF(ISERROR($V1508),\"\",OFFSET('Smelter Look-up'!$C$4,$V1508-4,0)&\"\")","v":""},"",{"$f":"IF(B1508=\"\",\"\",IF(ISERROR(MATCH($J1508,SorP!$B$1:$B$6230,0)),\"\",INDIRECT(\"'SorP'!$A$\"&MATCH($J1508,SorP!$B$1:$B$6230,0))))","v":""},null,{"$f":"IF(C1508=\"\",NA(),MATCH($B1508&$C1508,'Smelter Look-up'!$J:$J,0))","v":{"$error":"#N/A"}},null,0,null,null,null,""]
[null,{"$f":"IF(LEN(A1509)=0,\"\",INDEX('Smelter Look-up'!$A:$A,MATCH($A1509,'Smelter Look-up'!$E:$E,0)))","v":""},{"$f":"IF(LEN(A1509)=0,\"\",INDEX('Smelter Look-up'!$C:$C,MATCH($A1509,'Smelter Look-up'!$E:$E,0)))","v":""},null,{"$f":"IF(ISERROR($V1509),\"\",OFFSET('Smelter Look-up'!$D$4,$V1509-4,0)&\"\")","v":""},{"$f":"IF(ISERROR($V1509),\"\",OFFSET('Smelter Look-up'!$E$4,$V1509-4,0))","v":""},{"$f":"IF(C1509=$X$4,\"Enter smelter details\", IF(ISERROR($V1509),\"\",OFFSET('Smelter Look-up'!$F$4,$V1509-4,0)))","v":""},{"$f":"IF(ISERROR($V1509),\"\",OFFSET('Smelter Look-up'!$G$4,$V1509-4,0))","v":""},{"$f":"IF(ISERROR($V1509),\"\",OFFSET('Smelter Look-up'!$H$4,$V1509-4,0))","v":""},{"$f":"IF(ISERROR($V1509),\"\",OFFSET('Smelter Look-up'!$I$4,$V1509-4,0))","v":""},{"$nulls":7},{"$f":"IF(ISERROR($V1509),\"\",OFFSET('Smelter Look-up'!$C$4,$V1509-4,0)&\"\")","v":""},"",{"$f":"IF(B1509=\"\",\"\",IF(ISERROR(MATCH($J1509,SorP!$B$1:$B$6230,0)),\"\",INDIRECT(\"'SorP'!$A$\"&MATCH($J1509,SorP!$B$1:$B$6230,0))))","v":""},null,{"$f":"IF(C1509=\"\",NA(),MATCH($B1509&$C1509,'Smelter Look-up'!$J:$J,0))","v":{"$error":"#N/A"}},null,0,null,null,null,""]
[null,{"$f":"IF(LEN(A1510)=0,\"\",INDEX('Smelter Look-up'!$A:$A,MATCH($A1510,'Smelter Look-up'!$E:$E,0)))","v":""},{"$f":"IF(LEN(A1510)=0,\"\",INDEX('Smelter Look-up'!$C:$C,MATCH($A1510,'Smelter Look-up'!$E:$E,0)))","v":""},null,{"$f":"IF(ISERROR($V1510),\"\",OFFSET('Smelter Look-up'!$D$4,$V1510-4,0)&\"\")","v":""},{"$f":"IF(ISERROR($V1510),\"\",OFFSET('Smelter Look-up'!$E$4,$V1510-4,0))","v":""},{"$f":"IF(C1510=$X$4,\"Enter smelter details\", IF(ISERROR($V1510),\"\",OFFSET('Smelter Look-up'!$F$4,$V1510-4,0)))","v":""},{"$f":"IF(ISERROR($V1510),\"\",OFFSET('Smelter Look-up'!$G$4,$V1510-4,0))","v":""},{"$f":"IF(ISERROR($V1510),\"\",OFFSET('Smelter Look-up'!$H$4,$V1510-4,0))","v":""},{"$f":"IF(ISERROR($V1510),\"\",OFFSET('Smelter Look-up'!$I$4,$V1510-4,0))","v":""},{"$nulls":7},{"$f":"IF(ISERROR($V1510),\"\",OFFSET('Smelter Look-up'!$C$4,$V1510-4,0)&\"\")","v":""},"",{"$f":"IF(B1510=\"\",\"\",IF(ISERROR(MATCH($J1510,SorP!$B$1:$B$6230,0)),\"\",INDIRECT(\"'SorP'!$A$\"&MATCH($J1510,SorP!$B$1:$B$6230,0))))","v":""},null,{"$f":"IF(C1510=\"\",NA(),MATCH($B1510&$C1510,'Smelter Look-up'!$J:$J,0))","v":{"$error":"#N/A"}},null,0,null,null,null,""]
[null,{"$f":"IF(LEN(A1511)=0,\"\",INDEX('Smelter Look-up'!$A:$A,MATCH($A1511,'Smelter Look-up'!$E:$E,0)))","v":""},{"$f":"IF(LEN(A1511)=0,\"\",INDEX('Smelter Look-up'!$C:$C,MATCH($A1511,'Smelter Look-up'!$E:$E,0)))","v":""},null,{"$f":"IF(ISERROR($V1511),\"\",OFFSET('Smelter Look-up'!$D$4,$V1511-4,0)&\"\")","v":""},{"$f":"IF(ISERROR($V1511),\"\",OFFSET('Smelter Look-up'!$E$4,$V1511-4,0))","v":""},{"$f":"IF(C1511=$X$4,\"Enter smelter details\", IF(ISERROR($V1511),\"\",OFFSET('Smelter Look-up'!$F$4,$V1511-4,0)))","v":""},{"$f":"IF(ISERROR($V1511),\"\",OFFSET('Smelter Look-up'!$G$4,$V1511-4,0))","v":""},{"$f":"IF(ISERROR($V1511),\"\",OFFSET('Smelter Look-up'!$H$4,$V1511-4,0))","v":""},{"$f":"IF(ISERROR($V1511),\"\",OFFSET('Smelter Look-up'!$I$4,$V1511-4,0))","v":""},{"$nulls":7},{"$f":"IF(ISERROR($V1511),\"\",OFFSET('Smelter Look-up'!$C$4,$V1511-4,0)&\"\")","v":""},"",{"$f":"IF(B1511=\"\",\"\",IF(ISERROR(MATCH($J1511,SorP!$B$1:$B$6230,0)),\"\",INDIRECT(\"'SorP'!$A$\"&MATCH($J1511,SorP!$B$1:$B$6230,0))))","v":""},null,{"$f":"IF(C1511=\"\",NA(),MATCH($B1511&$C1511,'Smelter Look-up'!$J:$J,0))","v":{"$error":"#N/A"}},null,0,null,null,null,""]
[null,{"$f":"IF(LEN(A1512)=0,\"\",INDEX('Smelter Look-up'!$A:$A,MATCH($A1512,'Smelter Look-up'!$E:$E,0)))","v":""},{"$f":"IF(LEN(A1512)=0,\"\",INDEX('Smelter Look-up'!$C:$C,MATCH($A1512,'Smelter Look-up'!$E:$E,0)))","v":""},null,{"$f":"IF(ISERROR($V1512),\"\",OFFSET('Smelter Look-up'!$D$4,$V1512-4,0)&\"\")","v":""},{"$f":"IF(ISERROR($V1512),\"\",OFFSET('Smelter Look-up'!$E$4,$V1512-4,0))","v":""},{"$f":"IF(C1512=$X$4,\"Enter smelter details\", IF(ISERROR($V1512),\"\",OFFSET('Smelter Look-up'!$F$4,$V1512-4,0)))","v":""},{"$f":"IF(ISERROR($V1512),\"\",OFFSET('Smelter Look-up'!$G$4,$V1512-4,0))","v":""},{"$f":"IF(ISERROR($V1512),\"\",OFFSET('Smelter Look-up'!$H$4,$V1512-4,0))","v":""},{"$f":"IF(ISERROR($V1512),\"\",OFFSET('Smelter Look-up'!$I$4,$V1512-4,0))","v":""},{"$nulls":7},{"$f":"IF(ISERROR($V1512),\"\",OFFSET('Smelter Look-up'!$C$4,$V1512-4,0)&\"\")","v":""},"",{"$f":"IF(B1512=\"\",\"\",IF(ISERROR(MATCH($J1512,SorP!$B$1:$B$6230,0)),\"\",INDIRECT(\"'SorP'!$A$\"&MATCH($J1512,SorP!$B$1:$B$6230,0))))","v":""},null,{"$f":"IF(C1512=\"\",NA(),MATCH($B1512&$C1512,'Smelter Look-up'!$J:$J,0))","v":{"$error":"#N/A"}},null,0,null,null,null,""]
[null,{"$f":"IF(LEN(A1513)=0,\"\",INDEX('Smelter Look-up'!$A:$A,MATCH($A1513,'Smelter Look-up'!$E:$E,0)))","v":""},{"$f":"IF(LEN(A1513)=0,\"\",INDEX('Smelter Look-up'!$C:$C,MATCH($A1513,'Smelter Look-up'!$E:$E,0)))","v":""},null,{"$f":"IF(ISERROR($V1513),\"\",OFFSET('Smelter Look-up'!$D$4,$V1513-4,0)&\"\")","v":""},{"$f":"IF(ISERROR($V1513),\"\",OFFSET('Smelter Look-up'!$E$4,$V1513-4,0))","v":""},{"$f":"IF(C1513=$X$4,\"Enter smelter details\", IF(ISERROR($V1513),\"\",OFFSET('Smelter Look-up'!$F$4,$V1513-4,0)))","v":""},{"$f":"IF(ISERROR($V1513),\"\",OFFSET('Smelter Look-up'!$G$4,$V1513-4,0))","v":""},{"$f":"IF(ISERROR($V1513),\"\",OFFSET('Smelter Look-up'!$H$4,$V1513-4,0))","v":""},{"$f":"IF(ISERROR($V1513),\"\",OFFSET('Smelter Look-up'!$I$4,$V1513-4,0))","v":""},{"$nulls":7},{"$f":"IF(ISERROR($V1513),\"\",OFFSET('Smelter Look-up'!$C$4,$V1513-4,0)&\"\")","v":""},"",{"$f":"IF(B1513=\"\",\"\",IF(ISERROR(MATCH($J1513,SorP!$B$1:$B$6230,0)),\"\",INDIRECT(\"'SorP'!$A$\"&MATCH($J1513,SorP!$B$1:$B$6230,0))))","v":""},null,{"$f":"IF(C1513=\"\",NA(),MATCH($B1513&$C1513,'Smelter Look-up'!$J:$J,0))","v":{"$error":"#N/A"}},null,0,null,null,null,""]
[null,{"$f":"IF(LEN(A1514)=0,\"\",INDEX('Smelter Look-up'!$A:$A,MATCH($A1514,'Smelter Look-up'!$E:$E,0)))","v":""},{"$f":"IF(LEN(A1514)=0,\"\",INDEX('Smelter Look-up'!$C:$C,MATCH($A1514,'Smelter Look-up'!$E:$E,0)))","v":""},null,{"$f":"IF(ISERROR($V1514),\"\",OFFSET('Smelter Look-up'!$D$4,$V1514-4,0)&\"\")","v":""},{"$f":"IF(ISERROR($V1514),\"\",OFFSET('Smelter Look-up'!$E$4,$V1514-4,0))","v":""},{"$f":"IF(C1514=$X$4,\"Enter smelter details\", IF(ISERROR($V1514),\"\",OFFSET('Smelter Look-up'!$F$4,$V1514-4,0)))","v":""},{"$f":"IF(ISERROR($V1514),\"\",OFFSET('Smelter Look-up'!$G$4,$V1514-4,0))","v":""},{"$f":"IF(ISERROR($V1514),\"\",OFFSET('Smelter Look-up'!$H$4,$V1514-4,0))","v":""},{"$f":"IF(ISERROR($V1514),\"\",OFFSET('Smelter Look-up'!$I$4,$V1514-4,0))","v":""},{"$nulls":7},{"$f":"IF(ISERROR($V1514),\"\",OFFSET('Smelter Look-up'!$C$4,$V1514-4,0)&\"\")","v":""},"",{"$f":"IF(B1514=\"\",\"\",IF(ISERROR(MATCH($J1514,SorP!$B$1:$B$6230,0)),\"\",INDIRECT(\"'SorP'!$A$\"&MATCH($J1514,SorP!$B$1:$B$6230,0))))","v":""},null,{"$f":"IF(C1514=\"\",NA(),MATCH($B1514&$C1514,'Smelter Look-up'!$J:$J,0))","v":{"$error":"#N/A"}},null,0,null,null,null,""]
[null,{"$f":"IF(LEN(A1515)=0,\"\",INDEX('Smelter Look-up'!$A:$A,MATCH($A1515,'Smelter Look-up'!$E:$E,0)))","v":""},{"$f":"IF(LEN(A1515)=0,\"\",INDEX('Smelter Look-up'!$C:$C,MATCH($A1515,'Smelter Look-up'!$E:$E,0)))","v":""},null,{"$f":"IF(ISERROR($V1515),\"\",OFFSET('Smelter Look-up'!$D$4,$V1515-4,0)&\"\")","v":""},{"$f":"IF(ISERROR($V1515),\"\",OFFSET('Smelter Look-up'!$E$4,$V1515-4,0))","v":""},{"$f":"IF(C1515=$X$4,\"Enter smelter details\", IF(ISERROR($V1515),\"\",OFFSET('Smelter Look-up'!$F$4,$V1515-4,0)))","v":""},{"$f":"IF(ISERROR($V1515),\"\",OFFSET('Smelter Look-up'!$G$4,$V1515-4,0))","v":""},{"$f":"IF(ISERROR($V1515),\"\",OFFSET('Smelter Look-up'!$H$4,$V1515-4,0))","v":""},{"$f":"IF(ISERROR($V1515),\"\",OFFSET('Smelter Look-up'!$I$4,$V1515-4,0))","v":""},{"$nulls":7},{"$f":"IF(ISERROR($V1515),\"\",OFFSET('Smelter Look-up'!$C$4,$V1515-4,0)&\"\")","v":""},"",{"$f":"IF(B1515=\"\",\"\",IF(ISERROR(MATCH($J1515,SorP!$B$1:$B$6230,0)),\"\",INDIRECT(\"'SorP'!$A$\"&MATCH($J1515,SorP!$B$1:$B$6230,0))))","v":""},null,{"$f":"IF(C1515=\"\",NA(),MATCH($B1515&$C1515,'Smelter Look-up'!$J:$J,0))","v":{"$error":"#N/A"}},null,0,null,null,null,""]
[null,{"$f":"IF(LEN(A1516)=0,\"\",INDEX('Smelter Look-up'!$A:$A,MATCH($A1516,'Smelter Look-up'!$E:$E,0)))","v":""},{"$f":"IF(LEN(A1516)=0,\"\",INDEX('Smelter Look-up'!$C:$C,MATCH($A1516,'Smelter Look-up'!$E:$E,0)))","v":""},null,{"$f":"IF(ISERROR($V1516),\"\",OFFSET('Smelter Look-up'!$D$4,$V1516-4,0)&\"\")","v":""},{"$f":"IF(ISERROR($V1516),\"\",OFFSET('Smelter Look-up'!$E$4,$V1516-4,0))","v":""},{"$f":"IF(C1516=$X$4,\"Enter smelter details\", IF(ISERROR($V1516),\"\",OFFSET('Smelter Look-up'!$F$4,$V1516-4,0)))","v":""},{"$f":"IF(ISERROR($V1516),\"\",OFFSET('Smelter Look-up'!$G$4,$V1516-4,0))","v":""},{"$f":"IF(ISERROR($V1516),\"\",OFFSET('Smelter Look-up'!$H$4,$V1516-4,0))","v":""},{"$f":"IF(ISERROR($V1516),\"\",OFFSET('Smelter Look-up'!$I$4,$V1516-4,0))","v":""},{"$nulls":7},{"$f":"IF(ISERROR($V1516),\"\",OFFSET('Smelter Look-up'!$C$4,$V1516-4,0)&\"\")","v":""},"",{"$f":"IF(B1516=\"\",\"\",IF(ISERROR(MATCH($J1516,SorP!$B$1:$B$6230,0)),\"\",INDIRECT(\"'SorP'!$A$\"&MATCH($J1516,SorP!$B$1:$B$6230,0))))","v":""},null,{"$f":"IF(C1516=\"\",NA(),MATCH($B1516&$C1516,'Smelter Look-up'!$J:$J,0))","v":{"$error":"#N/A"}},null,0,null,null,null,""]
[null,{"$f":"IF(LEN(A1517)=0,\"\",INDEX('Smelter Look-up'!$A:$A,MATCH($A1517,'Smelter Look-up'!$E:$E,0)))","v":""},{"$f":"IF(LEN(A1517)=0,\"\",INDEX('Smelter Look-up'!$C:$C,MATCH($A1517,'Smelter Look-up'!$E:$E,0)))","v":""},null,{"$f":"IF(ISERROR($V1517),\"\",OFFSET('Smelter Look-up'!$D$4,$V1517-4,0)&\"\")","v":""},{"$f":"IF(ISERROR($V1517),\"\",OFFSET('Smelter Look-up'!$E$4,$V1517-4,0))","v":""},{"$f":"IF(C1517=$X$4,\"Enter smelter details\", IF(ISERROR($V1517),\"\",OFFSET('Smelter Look-up'!$F$4,$V1517-4,0)))","v":""},{"$f":"IF(ISERROR($V1517),\"\",OFFSET('Smelter Look-up'!$G$4,$V1517-4,0))","v":""},{"$f":"IF(ISERROR($V1517),\"\",OFFSET('Smelter Look-up'!$H$4,$V1517-4,0))","v":""},{"$f":"IF(ISERROR($V1517),\"\",OFFSET('Smelter Look-up'!$I$4,$V1517-4,0))","v":""},{"$nulls":7},{"$f":"IF(ISERROR($V1517),\"\",OFFSET('Smelter Look-up'!$C$4,$V1517-4,0)&\"\")","v":""},"",{"$f":"IF(B1517=\"\",\"\",IF(ISERROR(MATCH($J1517,SorP!$B$1:$B$6230,0)),\"\",INDIRECT(\"'SorP'!$A$\"&MATCH($J1517,SorP!$B$1:$B$6230,0))))","v":""},null,{"$f":"IF(C1517=\"\",NA(),MATCH($B1517&$C1517,'Smelter Look-up'!$J:$J,0))","v":{"$error":"#N/A"}},null,0,null,null,null,""]
[null,{"$f":"IF(LEN(A1518)=0,\"\",INDEX('Smelter Look-up'!$A:$A,MATCH($A1518,'Smelter Look-up'!$E:$E,0)))","v":""},{"$f":"IF(LEN(A1518)=0,\"\",INDEX('Smelter Look-up'!$C:$C,MATCH($A1518,'Smelter Look-up'!$E:$E,0)))","v":""},null,{"$f":"IF(ISERROR($V1518),\"\",OFFSET('Smelter Look-up'!$D$4,$V1518-4,0)&\"\")","v":""},{"$f":"IF(ISERROR($V1518),\"\",OFFSET('Smelter Look-up'!$E$4,$V1518-4,0))","v":""},{"$f":"IF(C1518=$X$4,\"Enter smelter details\", IF(ISERROR($V1518),\"\",OFFSET('Smelter Look-up'!$F$4,$V1518-4,0)))","v":""},{"$f":"IF(ISERROR($V1518),\"\",OFFSET('Smelter Look-up'!$G$4,$V1518-4,0))","v":""},{"$f":"IF(ISERROR($V1518),\"\",OFFSET('Smelter Look-up'!$H$4,$V1518-4,0))","v":""},{"$f":"IF(ISERROR($V1518),\"\",OFFSET('Smelter Look-up'!$I$4,$V1518-4,0))","v":""},{"$nulls":7},{"$f":"IF(ISERROR($V1518),\"\",OFFSET('Smelter Look-up'!$C$4,$V1518-4,0)&\"\")","v":""},"",{"$f":"IF(B1518=\"\",\"\",IF(ISERROR(MATCH($J1518,SorP!$B$1:$B$6230,0)),\"\",INDIRECT(\"'SorP'!$A$\"&MATCH($J1518,SorP!$B$1:$B$6230,0))))","v":""},null,{"$f":"IF(C1518=\"\",NA(),MATCH($B1518&$C1518,'Smelter Look-up'!$J:$J,0))","v":{"$error":"#N/A"}},null,0,null,null,null,""]
[null,{"$f":"IF(LEN(A1519)=0,\"\",INDEX('Smelter Look-up'!$A:$A,MATCH($A1519,'Smelter Look-up'!$E:$E,0)))","v":""},{"$f":"IF(LEN(A1519)=0,\"\",INDEX('Smelter Look-up'!$C:$C,MATCH($A1519,'Smelter Look-up'!$E:$E,0)))","v":""},null,{"$f":"IF(ISERROR($V1519),\"\",OFFSET('Smelter Look-up'!$D$4,$V1519-4,0)&\"\")","v":""},{"$f":"IF(ISERROR($V1519),\"\",OFFSET('Smelter Look-up'!$E$4,$V1519-4,0))","v":""},{"$f":"IF(C1519=$X$4,\"Enter smelter details\", IF(ISERROR($V1519),\"\",OFFSET('Smelter Look-up'!$F$4,$V1519-4,0)))","v":""},{"$f":"IF(ISERROR($V1519),\"\",OFFSET('Smelter Look-up'!$G$4,$V1519-4,0))","v":""},{"$f":"IF(ISERROR($V1519),\"\",OFFSET('Smelter Look-up'!$H$4,$V1519-4,0))","v":""},{"$f":"IF(ISERROR($V1519),\"\",OFFSET('Smelter Look-up'!$I$4,$V1519-4,0))","v":""},{"$nulls":7},{"$f":"IF(ISERROR($V1519),\"\",OFFSET('Smelter Look-up'!$C$4,$V1519-4,0)&\"\")","v":""},"",{"$f":"IF(B1519=\"\",\"\",IF(ISERROR(MATCH($J1519,SorP!$B$1:$B$6230,0)),\"\",INDIRECT(\"'SorP'!$A$\"&MATCH($J1519,SorP!$B$1:$B$6230,0))))","v":""},null,{"$f":"IF(C1519=\"\",NA(),MATCH($B1519&$C1519,'Smelter Look-up'!$J:$J,0))","v":{"$error":"#N/A"}},null,0,null,null,null,""]
[null,{"$f":"IF(LEN(A1520)=0,\"\",INDEX('Smelter Look-up'!$A:$A,MATCH($A1520,'Smelter Look-up'!$E:$E,0)))","v":""},{"$f":"IF(LEN(A1520)=0,\"\",INDEX('Smelter Look-up'!$C:$C,MATCH($A1520,'Smelter Look-up'!$E:$E,0)))","v":""},null,{"$f":"IF(ISERROR($V1520),\"\",OFFSET('Smelter Look-up'!$D$4,$V1520-4,0)&\"\")","v":""},{"$f":"IF(ISERROR($V1520),\"\",OFFSET('Smelter Look-up'!$E$4,$V1520-4,0))","v":""},{"$f":"IF(C1520=$X$4,\"Enter smelter details\", IF(ISERROR($V1520),\"\",OFFSET('Smelter Look-up'!$F$4,$V1520-4,0)))","v":""},{"$f":"IF(ISERROR($V1520),\"\",OFFSET('Smelter Look-up'!$G$4,$V1520-4,0))","v":""},{"$f":"IF(ISERROR($V1520),\"\",OFFSET('Smelter Look-up'!$H$4,$V1520-4,0))","v":""},{"$f":"IF(ISERROR($V1520),\"\",OFFSET('Smelter Look-up'!$I$4,$V1520-4,0))","v":""},{"$nulls":7},{"$f":"IF(ISERROR($V1520),\"\",OFFSET('Smelter Look-up'!$C$4,$V1520-4,0)&\"\")","v":""},"",{"$f":"IF(B1520=\"\",\"\",IF(ISERROR(MATCH($J1520,SorP!$B$1:$B$6230,0)),\"\",INDIRECT(\"'SorP'!$A$\"&MATCH($J1520,SorP!$B$1:$B$6230,0))))","v":""},null,{"$f":"IF(C1520=\"\",NA(),MATCH($B1520&$C1520,'Smelter Look-up'!$J:$J,0))","v":{"$error":"#N/A"}},null,0,null,null,null,""]
[null,{"$f":"IF(LEN(A1521)=0,\"\",INDEX('Smelter Look-up'!$A:$A,MATCH($A1521,'Smelter Look-up'!$E:$E,0)))","v":""},{"$f":"IF(LEN(A1521)=0,\"\",INDEX('Smelter Look-up'!$C:$C,MATCH($A1521,'Smelter Look-up'!$E:$E,0)))","v":""},null,{"$f":"IF(ISERROR($V1521),\"\",OFFSET('Smelter Look-up'!$D$4,$V1521-4,0)&\"\")","v":""},{"$f":"IF(ISERROR($V1521),\"\",OFFSET('Smelter Look-up'!$E$4,$V1521-4,0))","v":""},{"$f":"IF(C1521=$X$4,\"Enter smelter details\", IF(ISERROR($V1521),\"\",OFFSET('Smelter Look-up'!$F$4,$V1521-4,0)))","v":""},{"$f":"IF(ISERROR($V1521),\"\",OFFSET('Smelter Look-up'!$G$4,$V1521-4,0))","v":""},{"$f":"IF(ISERROR($V1521),\"\",OFFSET('Smelter Look-up'!$H$4,$V1521-4,0))","v":""},{"$f":"IF(ISERROR($V1521),\"\",OFFSET('Smelter Look-up'!$I$4,$V1521-4,0))","v":""},{"$nulls":7},{"$f":"IF(ISERROR($V1521),\"\",OFFSET('Smelter Look-up'!$C$4,$V1521-4,0)&\"\")","v":""},"",{"$f":"IF(B1521=\"\",\"\",IF(ISERROR(MATCH($J1521,SorP!$B$1:$B$6230,0)),\"\",INDIRECT(\"'SorP'!$A$\"&MATCH($J1521,SorP!$B$1:$B$6230,0))))","v":""},null,{"$f":"IF(C1521=\"\",NA(),MATCH($B1521&$C1521,'Smelter Look-up'!$J:$J,0))","v":{"$error":"#N/A"}},null,0,null,null,null,""]
[null,{"$f":"IF(LEN(A1522)=0,\"\",INDEX('Smelter Look-up'!$A:$A,MATCH($A1522,'Smelter Look-up'!$E:$E,0)))","v":""},{"$f":"IF(LEN(A1522)=0,\"\",INDEX('Smelter Look-up'!$C:$C,MATCH($A1522,'Smelter Look-up'!$E:$E,0)))","v":""},null,{"$f":"IF(ISERROR($V1522),\"\",OFFSET('Smelter Look-up'!$D$4,$V1522-4,0)&\"\")","v":""},{"$f":"IF(ISERROR($V1522),\"\",OFFSET('Smelter Look-up'!$E$4,$V1522-4,0))","v":""},{"$f":"IF(C1522=$X$4,\"Enter smelter details\", IF(ISERROR($V1522),\"\",OFFSET('Smelter Look-up'!$F$4,$V1522-4,0)))","v":""},{"$f":"IF(ISERROR($V1522),\"\",OFFSET('Smelter Look-up'!$G$4,$V1522-4,0))","v":""},{"$f":"IF(ISERROR($V1522),\"\",OFFSET('Smelter Look-up'!$H$4,$V1522-4,0))","v":""},{"$f":"IF(ISERROR($V1522),\"\",OFFSET('Smelter Look-up'!$I$4,$V1522-4,0))","v":""},{"$nulls":7},{"$f":"IF(ISERROR($V1522),\"\",OFFSET('Smelter Look-up'!$C$4,$V1522-4,0)&\"\")","v":""},"",{"$f":"IF(B1522=\"\",\"\",IF(ISERROR(MATCH($J1522,SorP!$B$1:$B$6230,0)),\"\",INDIRECT(\"'SorP'!$A$\"&MATCH($J1522,SorP!$B$1:$B$6230,0))))","v":""},null,{"$f":"IF(C1522=\"\",NA(),MATCH($B1522&$C1522,'Smelter Look-up'!$J:$J,0))","v":{"$error":"#N/A"}},null,0,null,null,null,""]
[null,{"$f":"IF(LEN(A1523)=0,\"\",INDEX('Smelter Look-up'!$A:$A,MATCH($A1523,'Smelter Look-up'!$E:$E,0)))","v":""},{"$f":"IF(LEN(A1523)=0,\"\",INDEX('Smelter Look-up'!$C:$C,MATCH($A1523,'Smelter Look-up'!$E:$E,0)))","v":""},null,{"$f":"IF(ISERROR($V1523),\"\",OFFSET('Smelter Look-up'!$D$4,$V1523-4,0)&\"\")","v":""},{"$f":"IF(ISERROR($V1523),\"\",OFFSET('Smelter Look-up'!$E$4,$V1523-4,0))","v":""},{"$f":"IF(C1523=$X$4,\"Enter smelter details\", IF(ISERROR($V1523),\"\",OFFSET('Smelter Look-up'!$F$4,$V1523-4,0)))","v":""},{"$f":"IF(ISERROR($V1523),\"\",OFFSET('Smelter Look-up'!$G$4,$V1523-4,0))","v":""},{"$f":"IF(ISERROR($V1523),\"\",OFFSET('Smelter Look-up'!$H$4,$V1523-4,0))","v":""},{"$f":"IF(ISERROR($V1523),\"\",OFFSET('Smelter Look-up'!$I$4,$V1523-4,0))","v":""},{"$nulls":7},{"$f":"IF(ISERROR($V1523),\"\",OFFSET('Smelter Look-up'!$C$4,$V1523-4,0)&\"\")","v":""},"",{"$f":"IF(B1523=\"\",\"\",IF(ISERROR(MATCH($J1523,SorP!$B$1:$B$6230,0)),\"\",INDIRECT(\"'SorP'!$A$\"&MATCH($J1523,SorP!$B$1:$B$6230,0))))","v":""},null,{"$f":"IF(C1523=\"\",NA(),MATCH($B1523&$C1523,'Smelter Look-up'!$J:$J,0))","v":{"$error":"#N/A"}},null,0,null,null,null,""]
[null,{"$f":"IF(LEN(A1524)=0,\"\",INDEX('Smelter Look-up'!$A:$A,MATCH($A1524,'Smelter Look-up'!$E:$E,0)))","v":""},{"$f":"IF(LEN(A1524)=0,\"\",INDEX('Smelter Look-up'!$C:$C,MATCH($A1524,'Smelter Look-up'!$E:$E,0)))","v":""},null,{"$f":"IF(ISERROR($V1524),\"\",OFFSET('Smelter Look-up'!$D$4,$V1524-4,0)&\"\")","v":""},{"$f":"IF(ISERROR($V1524),\"\",OFFSET('Smelter Look-up'!$E$4,$V1524-4,0))","v":""},{"$f":"IF(C1524=$X$4,\"Enter smelter details\", IF(ISERROR($V1524),\"\",OFFSET('Smelter Look-up'!$F$4,$V1524-4,0)))","v":""},{"$f":"IF(ISERROR($V1524),\"\",OFFSET('Smelter Look-up'!$G$4,$V1524-4,0))","v":""},{"$f":"IF(ISERROR($V1524),\"\",OFFSET('Smelter Look-up'!$H$4,$V1524-4,0))","v":""},{"$f":"IF(ISERROR($V1524),\"\",OFFSET('Smelter Look-up'!$I$4,$V1524-4,0))","v":""},{"$nulls":7},{"$f":"IF(ISERROR($V1524),\"\",OFFSET('Smelter Look-up'!$C$4,$V1524-4,0)&\"\")","v":""},"",{"$f":"IF(B1524=\"\",\"\",IF(ISERROR(MATCH($J1524,SorP!$B$1:$B$6230,0)),\"\",INDIRECT(\"'SorP'!$A$\"&MATCH($J1524,SorP!$B$1:$B$6230,0))))","v":""},null,{"$f":"IF(C1524=\"\",NA(),MATCH($B1524&$C1524,'Smelter Look-up'!$J:$J,0))","v":{"$error":"#N/A"}},null,0,null,null,null,""]
[null,{"$f":"IF(LEN(A1525)=0,\"\",INDEX('Smelter Look-up'!$A:$A,MATCH($A1525,'Smelter Look-up'!$E:$E,0)))","v":""},{"$f":"IF(LEN(A1525)=0,\"\",INDEX('Smelter Look-up'!$C:$C,MATCH($A1525,'Smelter Look-up'!$E:$E,0)))","v":""},null,{"$f":"IF(ISERROR($V1525),\"\",OFFSET('Smelter Look-up'!$D$4,$V1525-4,0)&\"\")","v":""},{"$f":"IF(ISERROR($V1525),\"\",OFFSET('Smelter Look-up'!$E$4,$V1525-4,0))","v":""},{"$f":"IF(C1525=$X$4,\"Enter smelter details\", IF(ISERROR($V1525),\"\",OFFSET('Smelter Look-up'!$F$4,$V1525-4,0)))","v":""},{"$f":"IF(ISERROR($V1525),\"\",OFFSET('Smelter Look-up'!$G$4,$V1525-4,0))","v":""},{"$f":"IF(ISERROR($V1525),\"\",OFFSET('Smelter Look-up'!$H$4,$V1525-4,0))","v":""},{"$f":"IF(ISERROR($V1525),\"\",OFFSET('Smelter Look-up'!$I$4,$V1525-4,0))","v":""},{"$nulls":7},{"$f":"IF(ISERROR($V1525),\"\",OFFSET('Smelter Look-up'!$C$4,$V1525-4,0)&\"\")","v":""},"",{"$f":"IF(B1525=\"\",\"\",IF(ISERROR(MATCH($J1525,SorP!$B$1:$B$6230,0)),\"\",INDIRECT(\"'SorP'!$A$\"&MATCH($J1525,SorP!$B$1:$B$6230,0))))","v":""},null,{"$f":"IF(C1525=\"\",NA(),MATCH($B1525&$C1525,'Smelter Look-up'!$J:$J,0))","v":{"$error":"#N/A"}},null,0,null,null,null,""]
[null,{"$f":"IF(LEN(A1526)=0,\"\",INDEX('Smelter Look-up'!$A:$A,MATCH($A1526,'Smelter Look-up'!$E:$E,0)))","v":""},{"$f":"IF(LEN(A1526)=0,\"\",INDEX('Smelter Look-up'!$C:$C,MATCH($A1526,'Smelter Look-up'!$E:$E,0)))","v":""},null,{"$f":"IF(ISERROR($V1526),\"\",OFFSET('Smelter Look-up'!$D$4,$V1526-4,0)&\"\")","v":""},{"$f":"IF(ISERROR($V1526),\"\",OFFSET('Smelter Look-up'!$E$4,$V1526-4,0))","v":""},{"$f":"IF(C1526=$X$4,\"Enter smelter details\", IF(ISERROR($V1526),\"\",OFFSET('Smelter Look-up'!$F$4,$V1526-4,0)))","v":""},{"$f":"IF(ISERROR($V1526),\"\",OFFSET('Smelter Look-up'!$G$4,$V1526-4,0))","v":""},{"$f":"IF(ISERROR($V1526),\"\",OFFSET('Smelter Look-up'!$H$4,$V1526-4,0))","v":""},{"$f":"IF(ISERROR($V1526),\"\",OFFSET('Smelter Look-up'!$I$4,$V1526-4,0))","v":""},{"$nulls":7},{"$f":"IF(ISERROR($V1526),\"\",OFFSET('Smelter Look-up'!$C$4,$V1526-4,0)&\"\")","v":""},"",{"$f":"IF(B1526=\"\",\"\",IF(ISERROR(MATCH($J1526,SorP!$B$1:$B$6230,0)),\"\",INDIRECT(\"'SorP'!$A$\"&MATCH($J1526,SorP!$B$1:$B$6230,0))))","v":""},null,{"$f":"IF(C1526=\"\",NA(),MATCH($B1526&$C1526,'Smelter Look-up'!$J:$J,0))","v":{"$error":"#N/A"}},null,0,null,null,null,""]
[null,{"$f":"IF(LEN(A1527)=0,\"\",INDEX('Smelter Look-up'!$A:$A,MATCH($A1527,'Smelter Look-up'!$E:$E,0)))","v":""},{"$f":"IF(LEN(A1527)=0,\"\",INDEX('Smelter Look-up'!$C:$C,MATCH($A1527,'Smelter Look-up'!$E:$E,0)))","v":""},null,{"$f":"IF(ISERROR($V1527),\"\",OFFSET('Smelter Look-up'!$D$4,$V1527-4,0)&\"\")","v":""},{"$f":"IF(ISERROR($V1527),\"\",OFFSET('Smelter Look-up'!$E$4,$V1527-4,0))","v":""},{"$f":"IF(C1527=$X$4,\"Enter smelter details\", IF(ISERROR($V1527),\"\",OFFSET('Smelter Look-up'!$F$4,$V1527-4,0)))","v":""},{"$f":"IF(ISERROR($V1527),\"\",OFFSET('Smelter Look-up'!$G$4,$V1527-4,0))","v":""},{"$f":"IF(ISERROR($V1527),\"\",OFFSET('Smelter Look-up'!$H$4,$V1527-4,0))","v":""},{"$f":"IF(ISERROR($V1527),\"\",OFFSET('Smelter Look-up'!$I$4,$V1527-4,0))","v":""},{"$nulls":7},{"$f":"IF(ISERROR($V1527),\"\",OFFSET('Smelter Look-up'!$C$4,$V1527-4,0)&\"\")","v":""},"",{"$f":"IF(B1527=\"\",\"\",IF(ISERROR(MATCH($J1527,SorP!$B$1:$B$6230,0)),\"\",INDIRECT(\"'SorP'!$A$\"&MATCH($J1527,SorP!$B$1:$B$6230,0))))","v":""},null,{"$f":"IF(C1527=\"\",NA(),MATCH($B1527&$C1527,'Smelter Look-up'!$J:$J,0))","v":{"$error":"#N/A"}},null,0,null,null,null,""]
[null,{"$f":"IF(LEN(A1528)=0,\"\",INDEX('Smelter Look-up'!$A:$A,MATCH($A1528,'Smelter Look-up'!$E:$E,0)))","v":""},{"$f":"IF(LEN(A1528)=0,\"\",INDEX('Smelter Look-up'!$C:$C,MATCH($A1528,'Smelter Look-up'!$E:$E,0)))","v":""},null,{"$f":"IF(ISERROR($V1528),\"\",OFFSET('Smelter Look-up'!$D$4,$V1528-4,0)&\"\")","v":""},{"$f":"IF(ISERROR($V1528),\"\",OFFSET('Smelter Look-up'!$E$4,$V1528-4,0))","v":""},{"$f":"IF(C1528=$X$4,\"Enter smelter details\", IF(ISERROR($V1528),\"\",OFFSET('Smelter Look-up'!$F$4,$V1528-4,0)))","v":""},{"$f":"IF(ISERROR($V1528),\"\",OFFSET('Smelter Look-up'!$G$4,$V1528-4,0))","v":""},{"$f":"IF(ISERROR($V1528),\"\",OFFSET('Smelter Look-up'!$H$4,$V1528-4,0))","v":""},{"$f":"IF(ISERROR($V1528),\"\",OFFSET('Smelter Look-up'!$I$4,$V1528-4,0))","v":""},{"$nulls":7},{"$f":"IF(ISERROR($V1528),\"\",OFFSET('Smelter Look-up'!$C$4,$V1528-4,0)&\"\")","v":""},"",{"$f":"IF(B1528=\"\",\"\",IF(ISERROR(MATCH($J1528,SorP!$B$1:$B$6230,0)),\"\",INDIRECT(\"'SorP'!$A$\"&MATCH($J1528,SorP!$B$1:$B$6230,0))))","v":""},null,{"$f":"IF(C1528=\"\",NA(),MATCH($B1528&$C1528,'Smelter Look-up'!$J:$J,0))","v":{"$error":"#N/A"}},null,0,null,null,null,""]
[null,{"$f":"IF(LEN(A1529)=0,\"\",INDEX('Smelter Look-up'!$A:$A,MATCH($A1529,'Smelter Look-up'!$E:$E,0)))","v":""},{"$f":"IF(LEN(A1529)=0,\"\",INDEX('Smelter Look-up'!$C:$C,MATCH($A1529,'Smelter Look-up'!$E:$E,0)))","v":""},null,{"$f":"IF(ISERROR($V1529),\"\",OFFSET('Smelter Look-up'!$D$4,$V1529-4,0)&\"\")","v":""},{"$f":"IF(ISERROR($V1529),\"\",OFFSET('Smelter Look-up'!$E$4,$V1529-4,0))","v":""},{"$f":"IF(C1529=$X$4,\"Enter smelter details\", IF(ISERROR($V1529),\"\",OFFSET('Smelter Look-up'!$F$4,$V1529-4,0)))","v":""},{"$f":"IF(ISERROR($V1529),\"\",OFFSET('Smelter Look-up'!$G$4,$V1529-4,0))","v":""},{"$f":"IF(ISERROR($V1529),\"\",OFFSET('Smelter Look-up'!$H$4,$V1529-4,0))","v":""},{"$f":"IF(ISERROR($V1529),\"\",OFFSET('Smelter Look-up'!$I$4,$V1529-4,0))","v":""},{"$nulls":7},{"$f":"IF(ISERROR($V1529),\"\",OFFSET('Smelter Look-up'!$C$4,$V1529-4,0)&\"\")","v":""},"",{"$f":"IF(B1529=\"\",\"\",IF(ISERROR(MATCH($J1529,SorP!$B$1:$B$6230,0)),\"\",INDIRECT(\"'SorP'!$A$\"&MATCH($J1529,SorP!$B$1:$B$6230,0))))","v":""},null,{"$f":"IF(C1529=\"\",NA(),MATCH($B1529&$C1529,'Smelter Look-up'!$J:$J,0))","v":{"$error":"#N/A"}},null,0,null,null,null,""]
[null,{"$f":"IF(LEN(A1530)=0,\"\",INDEX('Smelter Look-up'!$A:$A,MATCH($A1530,'Smelter Look-up'!$E:$E,0)))","v":""},{"$f":"IF(LEN(A1530)=0,\"\",INDEX('Smelter Look-up'!$C:$C,MATCH($A1530,'Smelter Look-up'!$E:$E,0)))","v":""},null,{"$f":"IF(ISERROR($V1530),\"\",OFFSET('Smelter Look-up'!$D$4,$V1530-4,0)&\"\")","v":""},{"$f":"IF(ISERROR($V1530),\"\",OFFSET('Smelter Look-up'!$E$4,$V1530-4,0))","v":""},{"$f":"IF(C1530=$X$4,\"Enter smelter details\", IF(ISERROR($V1530),\"\",OFFSET('Smelter Look-up'!$F$4,$V1530-4,0)))","v":""},{"$f":"IF(ISERROR($V1530),\"\",OFFSET('Smelter Look-up'!$G$4,$V1530-4,0))","v":""},{"$f":"IF(ISERROR($V1530),\"\",OFFSET('Smelter Look-up'!$H$4,$V1530-4,0))","v":""},{"$f":"IF(ISERROR($V1530),\"\",OFFSET('Smelter Look-up'!$I$4,$V1530-4,0))","v":""},{"$nulls":7},{"$f":"IF(ISERROR($V1530),\"\",OFFSET('Smelter Look-up'!$C$4,$V1530-4,0)&\"\")","v":""},"",{"$f":"IF(B1530=\"\",\"\",IF(ISERROR(MATCH($J1530,SorP!$B$1:$B$6230,0)),\"\",INDIRECT(\"'SorP'!$A$\"&MATCH($J1530,SorP!$B$1:$B$6230,0))))","v":""},null,{"$f":"IF(C1530=\"\",NA(),MATCH($B1530&$C1530,'Smelter Look-up'!$J:$J,0))","v":{"$error":"#N/A"}},null,0,null,null,null,""]
[null,{"$f":"IF(LEN(A1531)=0,\"\",INDEX('Smelter Look-up'!$A:$A,MATCH($A1531,'Smelter Look-up'!$E:$E,0)))","v":""},{"$f":"IF(LEN(A1531)=0,\"\",INDEX('Smelter Look-up'!$C:$C,MATCH($A1531,'Smelter Look-up'!$E:$E,0)))","v":""},null,{"$f":"IF(ISERROR($V1531),\"\",OFFSET('Smelter Look-up'!$D$4,$V1531-4,0)&\"\")","v":""},{"$f":"IF(ISERROR($V1531),\"\",OFFSET('Smelter Look-up'!$E$4,$V1531-4,0))","v":""},{"$f":"IF(C1531=$X$4,\"Enter smelter details\", IF(ISERROR($V1531),\"\",OFFSET('Smelter Look-up'!$F$4,$V1531-4,0)))","v":""},{"$f":"IF(ISERROR($V1531),\"\",OFFSET('Smelter Look-up'!$G$4,$V1531-4,0))","v":""},{"$f":"IF(ISERROR($V1531),\"\",OFFSET('Smelter Look-up'!$H$4,$V1531-4,0))","v":""},{"$f":"IF(ISERROR($V1531),\"\",OFFSET('Smelter Look-up'!$I$4,$V1531-4,0))","v":""},{"$nulls":7},{"$f":"IF(ISERROR($V1531),\"\",OFFSET('Smelter Look-up'!$C$4,$V1531-4,0)&\"\")","v":""},{"$f":"IF(B1531=\"\",\"\",IF(ISERROR(MATCH($E1531,CL,0)),\"Unknown\",INDIRECT(\"'C'!$A$\"&MATCH($E1531,CL,0)+1)))","v":""},{"$f":"IF(B1531=\"\",\"\",IF(ISERROR(MATCH($J1531,SorP!$B$1:$B$6230,0)),\"\",INDIRECT(\"'SorP'!$A$\"&MATCH($J1531,SorP!$B$1:$B$6230,0))))","v":""},null,{"$f":"IF(C1531=\"\",NA(),MATCH($B1531&$C1531,'Smelter Look-up'!$J:$J,0))","v":{"$error":"#N/A"}},null,{"$f":"IF(AND(C1531=\"Smelter not listed\",OR(LEN(D1531)=0,LEN(E1531)=0)),1,0)","v":0},null,null,null,{"$f":"B1531&C1531","v":""}]
[null,{"$f":"IF(LEN(A1532)=0,\"\",INDEX('Smelter Look-up'!$A:$A,MATCH($A1532,'Smelter Look-up'!$E:$E,0)))","v":""},{"$f":"IF(LEN(A1532)=0,\"\",INDEX('Smelter Look-up'!$C:$C,MATCH($A1532,'Smelter Look-up'!$E:$E,0)))","v":""},null,{"$f":"IF(ISERROR($V1532),\"\",OFFSET('Smelter Look-up'!$D$4,$V1532-4,0)&\"\")","v":""},{"$f":"IF(ISERROR($V1532),\"\",OFFSET('Smelter Look-up'!$E$4,$V1532-4,0))","v":""},{"$f":"IF(C1532=$X$4,\"Enter smelter details\", IF(ISERROR($V1532),\"\",OFFSET('Smelter Look-up'!$F$4,$V1532-4,0)))","v":""},{"$f":"IF(ISERROR($V1532),\"\",OFFSET('Smelter Look-up'!$G$4,$V1532-4,0))","v":""},{"$f":"IF(ISERROR($V1532),\"\",OFFSET('Smelter Look-up'!$H$4,$V1532-4,0))","v":""},{"$f":"IF(ISERROR($V1532),\"\",OFFSET('Smelter Look-up'!$I$4,$V1532-4,0))","v":""},{"$nulls":7},{"$f":"IF(ISERROR($V1532),\"\",OFFSET('Smelter Look-up'!$C$4,$V1532-4,0)&\"\")","v":""},"",{"$f":"IF(B1532=\"\",\"\",IF(ISERROR(MATCH($J1532,SorP!$B$1:$B$6230,0)),\"\",INDIRECT(\"'SorP'!$A$\"&MATCH($J1532,SorP!$B$1:$B$6230,0))))","v":""},null,{"$f":"IF(C1532=\"\",NA(),MATCH($B1532&$C1532,'Smelter Look-up'!$J:$J,0))","v":{"$error":"#N/A"}},null,0,null,null,null,""]
[null,{"$f":"IF(LEN(A1533)=0,\"\",INDEX('Smelter Look-up'!$A:$A,MATCH($A1533,'Smelter Look-up'!$E:$E,0)))","v":""},{"$f":"IF(LEN(A1533)=0,\"\",INDEX('Smelter Look-up'!$C:$C,MATCH($A1533,'Smelter Look-up'!$E:$E,0)))","v":""},null,{"$f":"IF(ISERROR($V1533),\"\",OFFSET('Smelter Look-up'!$D$4,$V1533-4,0)&\"\")","v":""},{"$f":"IF(ISERROR($V1533),\"\",OFFSET('Smelter Look-up'!$E$4,$V1533-4,0))","v":""},{"$f":"IF(C1533=$X$4,\"Enter smelter details\", IF(ISERROR($V1533),\"\",OFFSET('Smelter Look-up'!$F$4,$V1533-4,0)))","v":""},{"$f":"IF(ISERROR($V1533),\"\",OFFSET('Smelter Look-up'!$G$4,$V1533-4,0))","v":""},{"$f":"IF(ISERROR($V1533),\"\",OFFSET('Smelter Look-up'!$H$4,$V1533-4,0))","v":""},{"$f":"IF(ISERROR($V1533),\"\",OFFSET('Smelter Look-up'!$I$4,$V1533-4,0))","v":""},{"$nulls":7},{"$f":"IF(ISERROR($V1533),\"\",OFFSET('Smelter Look-up'!$C$4,$V1533-4,0)&\"\")","v":""},"",{"$f":"IF(B1533=\"\",\"\",IF(ISERROR(MATCH($J1533,SorP!$B$1:$B$6230,0)),\"\",INDIRECT(\"'SorP'!$A$\"&MATCH($J1533,SorP!$B$1:$B$6230,0))))","v":""},null,{"$f":"IF(C1533=\"\",NA(),MATCH($B1533&$C1533,'Smelter Look-up'!$J:$J,0))","v":{"$error":"#N/A"}},null,0,null,null,null,""]
[null,{"$f":"IF(LEN(A1534)=0,\"\",INDEX('Smelter Look-up'!$A:$A,MATCH($A1534,'Smelter Look-up'!$E:$E,0)))","v":""},{"$f":"IF(LEN(A1534)=0,\"\",INDEX('Smelter Look-up'!$C:$C,MATCH($A1534,'Smelter Look-up'!$E:$E,0)))","v":""},null,{"$f":"IF(ISERROR($V1534),\"\",OFFSET('Smelter Look-up'!$D$4,$V1534-4,0)&\"\")","v":""},{"$f":"IF(ISERROR($V1534),\"\",OFFSET('Smelter Look-up'!$E$4,$V1534-4,0))","v":""},{"$f":"IF(C1534=$X$4,\"Enter smelter details\", IF(ISERROR($V1534),\"\",OFFSET('Smelter Look-up'!$F$4,$V1534-4,0)))","v":""},{"$f":"IF(ISERROR($V1534),\"\",OFFSET('Smelter Look-up'!$G$4,$V1534-4,0))","v":""},{"$f":"IF(ISERROR($V1534),\"\",OFFSET('Smelter Look-up'!$H$4,$V1534-4,0))","v":""},{"$f":"IF(ISERROR($V1534),\"\",OFFSET('Smelter Look-up'!$I$4,$V1534-4,0))","v":""},{"$nulls":7},{"$f":"IF(ISERROR($V1534),\"\",OFFSET('Smelter Look-up'!$C$4,$V1534-4,0)&\"\")","v":""},"",{"$f":"IF(B1534=\"\",\"\",IF(ISERROR(MATCH($J1534,SorP!$B$1:$B$6230,0)),\"\",INDIRECT(\"'SorP'!$A$\"&MATCH($J1534,SorP!$B$1:$B$6230,0))))","v":""},null,{"$f":"IF(C1534=\"\",NA(),MATCH($B1534&$C1534,'Smelter Look-up'!$J:$J,0))","v":{"$error":"#N/A"}},null,0,null,null,null,""]
[null,{"$f":"IF(LEN(A1535)=0,\"\",INDEX('Smelter Look-up'!$A:$A,MATCH($A1535,'Smelter Look-up'!$E:$E,0)))","v":""},{"$f":"IF(LEN(A1535)=0,\"\",INDEX('Smelter Look-up'!$C:$C,MATCH($A1535,'Smelter Look-up'!$E:$E,0)))","v":""},null,{"$f":"IF(ISERROR($V1535),\"\",OFFSET('Smelter Look-up'!$D$4,$V1535-4,0)&\"\")","v":""},{"$f":"IF(ISERROR($V1535),\"\",OFFSET('Smelter Look-up'!$E$4,$V1535-4,0))","v":""},{"$f":"IF(C1535=$X$4,\"Enter smelter details\", IF(ISERROR($V1535),\"\",OFFSET('Smelter Look-up'!$F$4,$V1535-4,0)))","v":""},{"$f":"IF(ISERROR($V1535),\"\",OFFSET('Smelter Look-up'!$G$4,$V1535-4,0))","v":""},{"$f":"IF(ISERROR($V1535),\"\",OFFSET('Smelter Look-up'!$H$4,$V1535-4,0))","v":""},{"$f":"IF(ISERROR($V1535),\"\",OFFSET('Smelter Look-up'!$I$4,$V1535-4,0))","v":""},{"$nulls":7},{"$f":"IF(ISERROR($V1535),\"\",OFFSET('Smelter Look-up'!$C$4,$V1535-4,0)&\"\")","v":""},"",{"$f":"IF(B1535=\"\",\"\",IF(ISERROR(MATCH($J1535,SorP!$B$1:$B$6230,0)),\"\",INDIRECT(\"'SorP'!$A$\"&MATCH($J1535,SorP!$B$1:$B$6230,0))))","v":""},null,{"$f":"IF(C1535=\"\",NA(),MATCH($B1535&$C1535,'Smelter Look-up'!$J:$J,0))","v":{"$error":"#N/A"}},null,0,null,null,null,""]
[null,{"$f":"IF(LEN(A1536)=0,\"\",INDEX('Smelter Look-up'!$A:$A,MATCH($A1536,'Smelter Look-up'!$E:$E,0)))","v":""},{"$f":"IF(LEN(A1536)=0,\"\",INDEX('Smelter Look-up'!$C:$C,MATCH($A1536,'Smelter Look-up'!$E:$E,0)))","v":""},null,{"$f":"IF(ISERROR($V1536),\"\",OFFSET('Smelter Look-up'!$D$4,$V1536-4,0)&\"\")","v":""},{"$f":"IF(ISERROR($V1536),\"\",OFFSET('Smelter Look-up'!$E$4,$V1536-4,0))","v":""},{"$f":"IF(C1536=$X$4,\"Enter smelter details\", IF(ISERROR($V1536),\"\",OFFSET('Smelter Look-up'!$F$4,$V1536-4,0)))","v":""},{"$f":"IF(ISERROR($V1536),\"\",OFFSET('Smelter Look-up'!$G$4,$V1536-4,0))","v":""},{"$f":"IF(ISERROR($V1536),\"\",OFFSET('Smelter Look-up'!$H$4,$V1536-4,0))","v":""},{"$f":"IF(ISERROR($V1536),\"\",OFFSET('Smelter Look-up'!$I$4,$V1536-4,0))","v":""},{"$nulls":7},{"$f":"IF(ISERROR($V1536),\"\",OFFSET('Smelter Look-up'!$C$4,$V1536-4,0)&\"\")","v":""},"",{"$f":"IF(B1536=\"\",\"\",IF(ISERROR(MATCH($J1536,SorP!$B$1:$B$6230,0)),\"\",INDIRECT(\"'SorP'!$A$\"&MATCH($J1536,SorP!$B$1:$B$6230,0))))","v":""},null,{"$f":"IF(C1536=\"\",NA(),MATCH($B1536&$C1536,'Smelter Look-up'!$J:$J,0))","v":{"$error":"#N/A"}},null,0,null,null,null,""]
[null,{"$f":"IF(LEN(A1537)=0,\"\",INDEX('Smelter Look-up'!$A:$A,MATCH($A1537,'Smelter Look-up'!$E:$E,0)))","v":""},{"$f":"IF(LEN(A1537)=0,\"\",INDEX('Smelter Look-up'!$C:$C,MATCH($A1537,'Smelter Look-up'!$E:$E,0)))","v":""},null,{"$f":"IF(ISERROR($V1537),\"\",OFFSET('Smelter Look-up'!$D$4,$V1537-4,0)&\"\")","v":""},{"$f":"IF(ISERROR($V1537),\"\",OFFSET('Smelter Look-up'!$E$4,$V1537-4,0))","v":""},{"$f":"IF(C1537=$X$4,\"Enter smelter details\", IF(ISERROR($V1537),\"\",OFFSET('Smelter Look-up'!$F$4,$V1537-4,0)))","v":""},{"$f":"IF(ISERROR($V1537),\"\",OFFSET('Smelter Look-up'!$G$4,$V1537-4,0))","v":""},{"$f":"IF(ISERROR($V1537),\"\",OFFSET('Smelter Look-up'!$H$4,$V1537-4,0))","v":""},{"$f":"IF(ISERROR($V1537),\"\",OFFSET('Smelter Look-up'!$I$4,$V1537-4,0))","v":""},{"$nulls":7},{"$f":"IF(ISERROR($V1537),\"\",OFFSET('Smelter Look-up'!$C$4,$V1537-4,0)&\"\")","v":""},"",{"$f":"IF(B1537=\"\",\"\",IF(ISERROR(MATCH($J1537,SorP!$B$1:$B$6230,0)),\"\",INDIRECT(\"'SorP'!$A$\"&MATCH($J1537,SorP!$B$1:$B$6230,0))))","v":""},null,{"$f":"IF(C1537=\"\",NA(),MATCH($B1537&$C1537,'Smelter Look-up'!$J:$J,0))","v":{"$error":"#N/A"}},null,0,null,null,null,""]
[null,{"$f":"IF(LEN(A1538)=0,\"\",INDEX('Smelter Look-up'!$A:$A,MATCH($A1538,'Smelter Look-up'!$E:$E,0)))","v":""},{"$f":"IF(LEN(A1538)=0,\"\",INDEX('Smelter Look-up'!$C:$C,MATCH($A1538,'Smelter Look-up'!$E:$E,0)))","v":""},null,{"$f":"IF(ISERROR($V1538),\"\",OFFSET('Smelter Look-up'!$D$4,$V1538-4,0)&\"\")","v":""},{"$f":"IF(ISERROR($V1538),\"\",OFFSET('Smelter Look-up'!$E$4,$V1538-4,0))","v":""},{"$f":"IF(C1538=$X$4,\"Enter smelter details\", IF(ISERROR($V1538),\"\",OFFSET('Smelter Look-up'!$F$4,$V1538-4,0)))","v":""},{"$f":"IF(ISERROR($V1538),\"\",OFFSET('Smelter Look-up'!$G$4,$V1538-4,0))","v":""},{"$f":"IF(ISERROR($V1538),\"\",OFFSET('Smelter Look-up'!$H$4,$V1538-4,0))","v":""},{"$f":"IF(ISERROR($V1538),\"\",OFFSET('Smelter Look-up'!$I$4,$V1538-4,0))","v":""},{"$nulls":7},{"$f":"IF(ISERROR($V1538),\"\",OFFSET('Smelter Look-up'!$C$4,$V1538-4,0)&\"\")","v":""},"",{"$f":"IF(B1538=\"\",\"\",IF(ISERROR(MATCH($J1538,SorP!$B$1:$B$6230,0)),\"\",INDIRECT(\"'SorP'!$A$\"&MATCH($J1538,SorP!$B$1:$B$6230,0))))","v":""},null,{"$f":"IF(C1538=\"\",NA(),MATCH($B1538&$C1538,'Smelter Look-up'!$J:$J,0))","v":{"$error":"#N/A"}},null,0,null,null,null,""]
[null,{"$f":"IF(LEN(A1539)=0,\"\",INDEX('Smelter Look-up'!$A:$A,MATCH($A1539,'Smelter Look-up'!$E:$E,0)))","v":""},{"$f":"IF(LEN(A1539)=0,\"\",INDEX('Smelter Look-up'!$C:$C,MATCH($A1539,'Smelter Look-up'!$E:$E,0)))","v":""},null,{"$f":"IF(ISERROR($V1539),\"\",OFFSET('Smelter Look-up'!$D$4,$V1539-4,0)&\"\")","v":""},{"$f":"IF(ISERROR($V1539),\"\",OFFSET('Smelter Look-up'!$E$4,$V1539-4,0))","v":""},{"$f":"IF(C1539=$X$4,\"Enter smelter details\", IF(ISERROR($V1539),\"\",OFFSET('Smelter Look-up'!$F$4,$V1539-4,0)))","v":""},{"$f":"IF(ISERROR($V1539),\"\",OFFSET('Smelter Look-up'!$G$4,$V1539-4,0))","v":""},{"$f":"IF(ISERROR($V1539),\"\",OFFSET('Smelter Look-up'!$H$4,$V1539-4,0))","v":""},{"$f":"IF(ISERROR($V1539),\"\",OFFSET('Smelter Look-up'!$I$4,$V1539-4,0))","v":""},{"$nulls":7},{"$f":"IF(ISERROR($V1539),\"\",OFFSET('Smelter Look-up'!$C$4,$V1539-4,0)&\"\")","v":""},"",{"$f":"IF(B1539=\"\",\"\",IF(ISERROR(MATCH($J1539,SorP!$B$1:$B$6230,0)),\"\",INDIRECT(\"'SorP'!$A$\"&MATCH($J1539,SorP!$B$1:$B$6230,0))))","v":""},null,{"$f":"IF(C1539=\"\",NA(),MATCH($B1539&$C1539,'Smelter Look-up'!$J:$J,0))","v":{"$error":"#N/A"}},null,0,null,null,null,""]
[null,{"$f":"IF(LEN(A1540)=0,\"\",INDEX('Smelter Look-up'!$A:$A,MATCH($A1540,'Smelter Look-up'!$E:$E,0)))","v":""},{"$f":"IF(LEN(A1540)=0,\"\",INDEX('Smelter Look-up'!$C:$C,MATCH($A1540,'Smelter Look-up'!$E:$E,0)))","v":""},null,{"$f":"IF(ISERROR($V1540),\"\",OFFSET('Smelter Look-up'!$D$4,$V1540-4,0)&\"\")","v":""},{"$f":"IF(ISERROR($V1540),\"\",OFFSET('Smelter Look-up'!$E$4,$V1540-4,0))","v":""},{"$f":"IF(C1540=$X$4,\"Enter smelter details\", IF(ISERROR($V1540),\"\",OFFSET('Smelter Look-up'!$F$4,$V1540-4,0)))","v":""},{"$f":"IF(ISERROR($V1540),\"\",OFFSET('Smelter Look-up'!$G$4,$V1540-4,0))","v":""},{"$f":"IF(ISERROR($V1540),\"\",OFFSET('Smelter Look-up'!$H$4,$V1540-4,0))","v":""},{"$f":"IF(ISERROR($V1540),\"\",OFFSET('Smelter Look-up'!$I$4,$V1540-4,0))","v":""},{"$nulls":7},{"$f":"IF(ISERROR($V1540),\"\",OFFSET('Smelter Look-up'!$C$4,$V1540-4,0)&\"\")","v":""},"",{"$f":"IF(B1540=\"\",\"\",IF(ISERROR(MATCH($J1540,SorP!$B$1:$B$6230,0)),\"\",INDIRECT(\"'SorP'!$A$\"&MATCH($J1540,SorP!$B$1:$B$6230,0))))","v":""},null,{"$f":"IF(C1540=\"\",NA(),MATCH($B1540&$C1540,'Smelter Look-up'!$J:$J,0))","v":{"$error":"#N/A"}},null,0,null,null,null,""]
[null,{"$f":"IF(LEN(A1541)=0,\"\",INDEX('Smelter Look-up'!$A:$A,MATCH($A1541,'Smelter Look-up'!$E:$E,0)))","v":""},{"$f":"IF(LEN(A1541)=0,\"\",INDEX('Smelter Look-up'!$C:$C,MATCH($A1541,'Smelter Look-up'!$E:$E,0)))","v":""},null,{"$f":"IF(ISERROR($V1541),\"\",OFFSET('Smelter Look-up'!$D$4,$V1541-4,0)&\"\")","v":""},{"$f":"IF(ISERROR($V1541),\"\",OFFSET('Smelter Look-up'!$E$4,$V1541-4,0))","v":""},{"$f":"IF(C1541=$X$4,\"Enter smelter details\", IF(ISERROR($V1541),\"\",OFFSET('Smelter Look-up'!$F$4,$V1541-4,0)))","v":""},{"$f":"IF(ISERROR($V1541),\"\",OFFSET('Smelter Look-up'!$G$4,$V1541-4,0))","v":""},{"$f":"IF(ISERROR($V1541),\"\",OFFSET('Smelter Look-up'!$H$4,$V1541-4,0))","v":""},{"$f":"IF(ISERROR($V1541),\"\",OFFSET('Smelter Look-up'!$I$4,$V1541-4,0))","v":""},{"$nulls":7},{"$f":"IF(ISERROR($V1541),\"\",OFFSET('Smelter Look-up'!$C$4,$V1541-4,0)&\"\")","v":""},"",{"$f":"IF(B1541=\"\",\"\",IF(ISERROR(MATCH($J1541,SorP!$B$1:$B$6230,0)),\"\",INDIRECT(\"'SorP'!$A$\"&MATCH($J1541,SorP!$B$1:$B$6230,0))))","v":""},null,{"$f":"IF(C1541=\"\",NA(),MATCH($B1541&$C1541,'Smelter Look-up'!$J:$J,0))","v":{"$error":"#N/A"}},null,0,null,null,null,""]
[null,{"$f":"IF(LEN(A1542)=0,\"\",INDEX('Smelter Look-up'!$A:$A,MATCH($A1542,'Smelter Look-up'!$E:$E,0)))","v":""},{"$f":"IF(LEN(A1542)=0,\"\",INDEX('Smelter Look-up'!$C:$C,MATCH($A1542,'Smelter Look-up'!$E:$E,0)))","v":""},null,{"$f":"IF(ISERROR($V1542),\"\",OFFSET('Smelter Look-up'!$D$4,$V1542-4,0)&\"\")","v":""},{"$f":"IF(ISERROR($V1542),\"\",OFFSET('Smelter Look-up'!$E$4,$V1542-4,0))","v":""},{"$f":"IF(C1542=$X$4,\"Enter smelter details\", IF(ISERROR($V1542),\"\",OFFSET('Smelter Look-up'!$F$4,$V1542-4,0)))","v":""},{"$f":"IF(ISERROR($V1542),\"\",OFFSET('Smelter Look-up'!$G$4,$V1542-4,0))","v":""},{"$f":"IF(ISERROR($V1542),\"\",OFFSET('Smelter Look-up'!$H$4,$V1542-4,0))","v":""},{"$f":"IF(ISERROR($V1542),\"\",OFFSET('Smelter Look-up'!$I$4,$V1542-4,0))","v":""},{"$nulls":7},{"$f":"IF(ISERROR($V1542),\"\",OFFSET('Smelter Look-up'!$C$4,$V1542-4,0)&\"\")","v":""},"",{"$f":"IF(B1542=\"\",\"\",IF(ISERROR(MATCH($J1542,SorP!$B$1:$B$6230,0)),\"\",INDIRECT(\"'SorP'!$A$\"&MATCH($J1542,SorP!$B$1:$B$6230,0))))","v":""},null,{"$f":"IF(C1542=\"\",NA(),MATCH($B1542&$C1542,'Smelter Look-up'!$J:$J,0))","v":{"$error":"#N/A"}},null,0,null,null,null,""]
[null,{"$f":"IF(LEN(A1543)=0,\"\",INDEX('Smelter Look-up'!$A:$A,MATCH($A1543,'Smelter Look-up'!$E:$E,0)))","v":""},{"$f":"IF(LEN(A1543)=0,\"\",INDEX('Smelter Look-up'!$C:$C,MATCH($A1543,'Smelter Look-up'!$E:$E,0)))","v":""},null,{"$f":"IF(ISERROR($V1543),\"\",OFFSET('Smelter Look-up'!$D$4,$V1543-4,0)&\"\")","v":""},{"$f":"IF(ISERROR($V1543),\"\",OFFSET('Smelter Look-up'!$E$4,$V1543-4,0))","v":""},{"$f":"IF(C1543=$X$4,\"Enter smelter details\", IF(ISERROR($V1543),\"\",OFFSET('Smelter Look-up'!$F$4,$V1543-4,0)))","v":""},{"$f":"IF(ISERROR($V1543),\"\",OFFSET('Smelter Look-up'!$G$4,$V1543-4,0))","v":""},{"$f":"IF(ISERROR($V1543),\"\",OFFSET('Smelter Look-up'!$H$4,$V1543-4,0))","v":""},{"$f":"IF(ISERROR($V1543),\"\",OFFSET('Smelter Look-up'!$I$4,$V1543-4,0))","v":""},{"$nulls":7},{"$f":"IF(ISERROR($V1543),\"\",OFFSET('Smelter Look-up'!$C$4,$V1543-4,0)&\"\")","v":""},"",{"$f":"IF(B1543=\"\",\"\",IF(ISERROR(MATCH($J1543,SorP!$B$1:$B$6230,0)),\"\",INDIRECT(\"'SorP'!$A$\"&MATCH($J1543,SorP!$B$1:$B$6230,0))))","v":""},null,{"$f":"IF(C1543=\"\",NA(),MATCH($B1543&$C1543,'Smelter Look-up'!$J:$J,0))","v":{"$error":"#N/A"}},null,0,null,null,null,""]
[null,{"$f":"IF(LEN(A1544)=0,\"\",INDEX('Smelter Look-up'!$A:$A,MATCH($A1544,'Smelter Look-up'!$E:$E,0)))","v":""},{"$f":"IF(LEN(A1544)=0,\"\",INDEX('Smelter Look-up'!$C:$C,MATCH($A1544,'Smelter Look-up'!$E:$E,0)))","v":""},null,{"$f":"IF(ISERROR($V1544),\"\",OFFSET('Smelter Look-up'!$D$4,$V1544-4,0)&\"\")","v":""},{"$f":"IF(ISERROR($V1544),\"\",OFFSET('Smelter Look-up'!$E$4,$V1544-4,0))","v":""},{"$f":"IF(C1544=$X$4,\"Enter smelter details\", IF(ISERROR($V1544),\"\",OFFSET('Smelter Look-up'!$F$4,$V1544-4,0)))","v":""},{"$f":"IF(ISERROR($V1544),\"\",OFFSET('Smelter Look-up'!$G$4,$V1544-4,0))","v":""},{"$f":"IF(ISERROR($V1544),\"\",OFFSET('Smelter Look-up'!$H$4,$V1544-4,0))","v":""},{"$f":"IF(ISERROR($V1544),\"\",OFFSET('Smelter Look-up'!$I$4,$V1544-4,0))","v":""},{"$nulls":7},{"$f":"IF(ISERROR($V1544),\"\",OFFSET('Smelter Look-up'!$C$4,$V1544-4,0)&\"\")","v":""},"",{"$f":"IF(B1544=\"\",\"\",IF(ISERROR(MATCH($J1544,SorP!$B$1:$B$6230,0)),\"\",INDIRECT(\"'SorP'!$A$\"&MATCH($J1544,SorP!$B$1:$B$6230,0))))","v":""},null,{"$f":"IF(C1544=\"\",NA(),MATCH($B1544&$C1544,'Smelter Look-up'!$J:$J,0))","v":{"$error":"#N/A"}},null,0,null,null,null,""]
[null,{"$f":"IF(LEN(A1545)=0,\"\",INDEX('Smelter Look-up'!$A:$A,MATCH($A1545,'Smelter Look-up'!$E:$E,0)))","v":""},{"$f":"IF(LEN(A1545)=0,\"\",INDEX('Smelter Look-up'!$C:$C,MATCH($A1545,'Smelter Look-up'!$E:$E,0)))","v":""},null,{"$f":"IF(ISERROR($V1545),\"\",OFFSET('Smelter Look-up'!$D$4,$V1545-4,0)&\"\")","v":""},{"$f":"IF(ISERROR($V1545),\"\",OFFSET('Smelter Look-up'!$E$4,$V1545-4,0))","v":""},{"$f":"IF(C1545=$X$4,\"Enter smelter details\", IF(ISERROR($V1545),\"\",OFFSET('Smelter Look-up'!$F$4,$V1545-4,0)))","v":""},{"$f":"IF(ISERROR($V1545),\"\",OFFSET('Smelter Look-up'!$G$4,$V1545-4,0))","v":""},{"$f":"IF(ISERROR($V1545),\"\",OFFSET('Smelter Look-up'!$H$4,$V1545-4,0))","v":""},{"$f":"IF(ISERROR($V1545),\"\",OFFSET('Smelter Look-up'!$I$4,$V1545-4,0))","v":""},{"$nulls":7},{"$f":"IF(ISERROR($V1545),\"\",OFFSET('Smelter Look-up'!$C$4,$V1545-4,0)&\"\")","v":""},"",{"$f":"IF(B1545=\"\",\"\",IF(ISERROR(MATCH($J1545,SorP!$B$1:$B$6230,0)),\"\",INDIRECT(\"'SorP'!$A$\"&MATCH($J1545,SorP!$B$1:$B$6230,0))))","v":""},null,{"$f":"IF(C1545=\"\",NA(),MATCH($B1545&$C1545,'Smelter Look-up'!$J:$J,0))","v":{"$error":"#N/A"}},null,0,null,null,null,""]
[null,{"$f":"IF(LEN(A1546)=0,\"\",INDEX('Smelter Look-up'!$A:$A,MATCH($A1546,'Smelter Look-up'!$E:$E,0)))","v":""},{"$f":"IF(LEN(A1546)=0,\"\",INDEX('Smelter Look-up'!$C:$C,MATCH($A1546,'Smelter Look-up'!$E:$E,0)))","v":""},null,{"$f":"IF(ISERROR($V1546),\"\",OFFSET('Smelter Look-up'!$D$4,$V1546-4,0)&\"\")","v":""},{"$f":"IF(ISERROR($V1546),\"\",OFFSET('Smelter Look-up'!$E$4,$V1546-4,0))","v":""},{"$f":"IF(C1546=$X$4,\"Enter smelter details\", IF(ISERROR($V1546),\"\",OFFSET('Smelter Look-up'!$F$4,$V1546-4,0)))","v":""},{"$f":"IF(ISERROR($V1546),\"\",OFFSET('Smelter Look-up'!$G$4,$V1546-4,0))","v":""},{"$f":"IF(ISERROR($V1546),\"\",OFFSET('Smelter Look-up'!$H$4,$V1546-4,0))","v":""},{"$f":"IF(ISERROR($V1546),\"\",OFFSET('Smelter Look-up'!$I$4,$V1546-4,0))","v":""},{"$nulls":7},{"$f":"IF(ISERROR($V1546),\"\",OFFSET('Smelter Look-up'!$C$4,$V1546-4,0)&\"\")","v":""},"",{"$f":"IF(B1546=\"\",\"\",IF(ISERROR(MATCH($J1546,SorP!$B$1:$B$6230,0)),\"\",INDIRECT(\"'SorP'!$A$\"&MATCH($J1546,SorP!$B$1:$B$6230,0))))","v":""},null,{"$f":"IF(C1546=\"\",NA(),MATCH($B1546&$C1546,'Smelter Look-up'!$J:$J,0))","v":{"$error":"#N/A"}},null,0,null,null,null,""]
[null,{"$f":"IF(LEN(A1547)=0,\"\",INDEX('Smelter Look-up'!$A:$A,MATCH($A1547,'Smelter Look-up'!$E:$E,0)))","v":""},{"$f":"IF(LEN(A1547)=0,\"\",INDEX('Smelter Look-up'!$C:$C,MATCH($A1547,'Smelter Look-up'!$E:$E,0)))","v":""},null,{"$f":"IF(ISERROR($V1547),\"\",OFFSET('Smelter Look-up'!$D$4,$V1547-4,0)&\"\")","v":""},{"$f":"IF(ISERROR($V1547),\"\",OFFSET('Smelter Look-up'!$E$4,$V1547-4,0))","v":""},{"$f":"IF(C1547=$X$4,\"Enter smelter details\", IF(ISERROR($V1547),\"\",OFFSET('Smelter Look-up'!$F$4,$V1547-4,0)))","v":""},{"$f":"IF(ISERROR($V1547),\"\",OFFSET('Smelter Look-up'!$G$4,$V1547-4,0))","v":""},{"$f":"IF(ISERROR($V1547),\"\",OFFSET('Smelter Look-up'!$H$4,$V1547-4,0))","v":""},{"$f":"IF(ISERROR($V1547),\"\",OFFSET('Smelter Look-up'!$I$4,$V1547-4,0))","v":""},{"$nulls":7},{"$f":"IF(ISERROR($V1547),\"\",OFFSET('Smelter Look-up'!$C$4,$V1547-4,0)&\"\")","v":""},"",{"$f":"IF(B1547=\"\",\"\",IF(ISERROR(MATCH($J1547,SorP!$B$1:$B$6230,0)),\"\",INDIRECT(\"'SorP'!$A$\"&MATCH($J1547,SorP!$B$1:$B$6230,0))))","v":""},null,{"$f":"IF(C1547=\"\",NA(),MATCH($B1547&$C1547,'Smelter Look-up'!$J:$J,0))","v":{"$error":"#N/A"}},null,0,null,null,null,""]
[null,{"$f":"IF(LEN(A1548)=0,\"\",INDEX('Smelter Look-up'!$A:$A,MATCH($A1548,'Smelter Look-up'!$E:$E,0)))","v":""},{"$f":"IF(LEN(A1548)=0,\"\",INDEX('Smelter Look-up'!$C:$C,MATCH($A1548,'Smelter Look-up'!$E:$E,0)))","v":""},null,{"$f":"IF(ISERROR($V1548),\"\",OFFSET('Smelter Look-up'!$D$4,$V1548-4,0)&\"\")","v":""},{"$f":"IF(ISERROR($V1548),\"\",OFFSET('Smelter Look-up'!$E$4,$V1548-4,0))","v":""},{"$f":"IF(C1548=$X$4,\"Enter smelter details\", IF(ISERROR($V1548),\"\",OFFSET('Smelter Look-up'!$F$4,$V1548-4,0)))","v":""},{"$f":"IF(ISERROR($V1548),\"\",OFFSET('Smelter Look-up'!$G$4,$V1548-4,0))","v":""},{"$f":"IF(ISERROR($V1548),\"\",OFFSET('Smelter Look-up'!$H$4,$V1548-4,0))","v":""},{"$f":"IF(ISERROR($V1548),\"\",OFFSET('Smelter Look-up'!$I$4,$V1548-4,0))","v":""},{"$nulls":7},{"$f":"IF(ISERROR($V1548),\"\",OFFSET('Smelter Look-up'!$C$4,$V1548-4,0)&\"\")","v":""},"",{"$f":"IF(B1548=\"\",\"\",IF(ISERROR(MATCH($J1548,SorP!$B$1:$B$6230,0)),\"\",INDIRECT(\"'SorP'!$A$\"&MATCH($J1548,SorP!$B$1:$B$6230,0))))","v":""},null,{"$f":"IF(C1548=\"\",NA(),MATCH($B1548&$C1548,'Smelter Look-up'!$J:$J,0))","v":{"$error":"#N/A"}},null,0,null,null,null,""]
[null,{"$f":"IF(LEN(A1549)=0,\"\",INDEX('Smelter Look-up'!$A:$A,MATCH($A1549,'Smelter Look-up'!$E:$E,0)))","v":""},{"$f":"IF(LEN(A1549)=0,\"\",INDEX('Smelter Look-up'!$C:$C,MATCH($A1549,'Smelter Look-up'!$E:$E,0)))","v":""},null,{"$f":"IF(ISERROR($V1549),\"\",OFFSET('Smelter Look-up'!$D$4,$V1549-4,0)&\"\")","v":""},{"$f":"IF(ISERROR($V1549),\"\",OFFSET('Smelter Look-up'!$E$4,$V1549-4,0))","v":""},{"$f":"IF(C1549=$X$4,\"Enter smelter details\", IF(ISERROR($V1549),\"\",OFFSET('Smelter Look-up'!$F$4,$V1549-4,0)))","v":""},{"$f":"IF(ISERROR($V1549),\"\",OFFSET('Smelter Look-up'!$G$4,$V1549-4,0))","v":""},{"$f":"IF(ISERROR($V1549),\"\",OFFSET('Smelter Look-up'!$H$4,$V1549-4,0))","v":""},{"$f":"IF(ISERROR($V1549),\"\",OFFSET('Smelter Look-up'!$I$4,$V1549-4,0))","v":""},{"$nulls":7},{"$f":"IF(ISERROR($V1549),\"\",OFFSET('Smelter Look-up'!$C$4,$V1549-4,0)&\"\")","v":""},"",{"$f":"IF(B1549=\"\",\"\",IF(ISERROR(MATCH($J1549,SorP!$B$1:$B$6230,0)),\"\",INDIRECT(\"'SorP'!$A$\"&MATCH($J1549,SorP!$B$1:$B$6230,0))))","v":""},null,{"$f":"IF(C1549=\"\",NA(),MATCH($B1549&$C1549,'Smelter Look-up'!$J:$J,0))","v":{"$error":"#N/A"}},null,0,null,null,null,""]
[null,{"$f":"IF(LEN(A1550)=0,\"\",INDEX('Smelter Look-up'!$A:$A,MATCH($A1550,'Smelter Look-up'!$E:$E,0)))","v":""},{"$f":"IF(LEN(A1550)=0,\"\",INDEX('Smelter Look-up'!$C:$C,MATCH($A1550,'Smelter Look-up'!$E:$E,0)))","v":""},null,{"$f":"IF(ISERROR($V1550),\"\",OFFSET('Smelter Look-up'!$D$4,$V1550-4,0)&\"\")","v":""},{"$f":"IF(ISERROR($V1550),\"\",OFFSET('Smelter Look-up'!$E$4,$V1550-4,0))","v":""},{"$f":"IF(C1550=$X$4,\"Enter smelter details\", IF(ISERROR($V1550),\"\",OFFSET('Smelter Look-up'!$F$4,$V1550-4,0)))","v":""},{"$f":"IF(ISERROR($V1550),\"\",OFFSET('Smelter Look-up'!$G$4,$V1550-4,0))","v":""},{"$f":"IF(ISERROR($V1550),\"\",OFFSET('Smelter Look-up'!$H$4,$V1550-4,0))","v":""},{"$f":"IF(ISERROR($V1550),\"\",OFFSET('Smelter Look-up'!$I$4,$V1550-4,0))","v":""},{"$nulls":7},{"$f":"IF(ISERROR($V1550),\"\",OFFSET('Smelter Look-up'!$C$4,$V1550-4,0)&\"\")","v":""},"",{"$f":"IF(B1550=\"\",\"\",IF(ISERROR(MATCH($J1550,SorP!$B$1:$B$6230,0)),\"\",INDIRECT(\"'SorP'!$A$\"&MATCH($J1550,SorP!$B$1:$B$6230,0))))","v":""},null,{"$f":"IF(C1550=\"\",NA(),MATCH($B1550&$C1550,'Smelter Look-up'!$J:$J,0))","v":{"$error":"#N/A"}},null,0,null,null,null,""]
[null,{"$f":"IF(LEN(A1551)=0,\"\",INDEX('Smelter Look-up'!$A:$A,MATCH($A1551,'Smelter Look-up'!$E:$E,0)))","v":""},{"$f":"IF(LEN(A1551)=0,\"\",INDEX('Smelter Look-up'!$C:$C,MATCH($A1551,'Smelter Look-up'!$E:$E,0)))","v":""},null,{"$f":"IF(ISERROR($V1551),\"\",OFFSET('Smelter Look-up'!$D$4,$V1551-4,0)&\"\")","v":""},{"$f":"IF(ISERROR($V1551),\"\",OFFSET('Smelter Look-up'!$E$4,$V1551-4,0))","v":""},{"$f":"IF(C1551=$X$4,\"Enter smelter details\", IF(ISERROR($V1551),\"\",OFFSET('Smelter Look-up'!$F$4,$V1551-4,0)))","v":""},{"$f":"IF(ISERROR($V1551),\"\",OFFSET('Smelter Look-up'!$G$4,$V1551-4,0))","v":""},{"$f":"IF(ISERROR($V1551),\"\",OFFSET('Smelter Look-up'!$H$4,$V1551-4,0))","v":""},{"$f":"IF(ISERROR($V1551),\"\",OFFSET('Smelter Look-up'!$I$4,$V1551-4,0))","v":""},{"$nulls":7},{"$f":"IF(ISERROR($V1551),\"\",OFFSET('Smelter Look-up'!$C$4,$V1551-4,0)&\"\")","v":""},"",{"$f":"IF(B1551=\"\",\"\",IF(ISERROR(MATCH($J1551,SorP!$B$1:$B$6230,0)),\"\",INDIRECT(\"'SorP'!$A$\"&MATCH($J1551,SorP!$B$1:$B$6230,0))))","v":""},null,{"$f":"IF(C1551=\"\",NA(),MATCH($B1551&$C1551,'Smelter Look-up'!$J:$J,0))","v":{"$error":"#N/A"}},null,0,null,null,null,""]
[null,{"$f":"IF(LEN(A1552)=0,\"\",INDEX('Smelter Look-up'!$A:$A,MATCH($A1552,'Smelter Look-up'!$E:$E,0)))","v":""},{"$f":"IF(LEN(A1552)=0,\"\",INDEX('Smelter Look-up'!$C:$C,MATCH($A1552,'Smelter Look-up'!$E:$E,0)))","v":""},null,{"$f":"IF(ISERROR($V1552),\"\",OFFSET('Smelter Look-up'!$D$4,$V1552-4,0)&\"\")","v":""},{"$f":"IF(ISERROR($V1552),\"\",OFFSET('Smelter Look-up'!$E$4,$V1552-4,0))","v":""},{"$f":"IF(C1552=$X$4,\"Enter smelter details\", IF(ISERROR($V1552),\"\",OFFSET('Smelter Look-up'!$F$4,$V1552-4,0)))","v":""},{"$f":"IF(ISERROR($V1552),\"\",OFFSET('Smelter Look-up'!$G$4,$V1552-4,0))","v":""},{"$f":"IF(ISERROR($V1552),\"\",OFFSET('Smelter Look-up'!$H$4,$V1552-4,0))","v":""},{"$f":"IF(ISERROR($V1552),\"\",OFFSET('Smelter Look-up'!$I$4,$V1552-4,0))","v":""},{"$nulls":7},{"$f":"IF(ISERROR($V1552),\"\",OFFSET('Smelter Look-up'!$C$4,$V1552-4,0)&\"\")","v":""},"",{"$f":"IF(B1552=\"\",\"\",IF(ISERROR(MATCH($J1552,SorP!$B$1:$B$6230,0)),\"\",INDIRECT(\"'SorP'!$A$\"&MATCH($J1552,SorP!$B$1:$B$6230,0))))","v":""},null,{"$f":"IF(C1552=\"\",NA(),MATCH($B1552&$C1552,'Smelter Look-up'!$J:$J,0))","v":{"$error":"#N/A"}},null,0,null,null,null,""]
[null,{"$f":"IF(LEN(A1553)=0,\"\",INDEX('Smelter Look-up'!$A:$A,MATCH($A1553,'Smelter Look-up'!$E:$E,0)))","v":""},{"$f":"IF(LEN(A1553)=0,\"\",INDEX('Smelter Look-up'!$C:$C,MATCH($A1553,'Smelter Look-up'!$E:$E,0)))","v":""},null,{"$f":"IF(ISERROR($V1553),\"\",OFFSET('Smelter Look-up'!$D$4,$V1553-4,0)&\"\")","v":""},{"$f":"IF(ISERROR($V1553),\"\",OFFSET('Smelter Look-up'!$E$4,$V1553-4,0))","v":""},{"$f":"IF(C1553=$X$4,\"Enter smelter details\", IF(ISERROR($V1553),\"\",OFFSET('Smelter Look-up'!$F$4,$V1553-4,0)))","v":""},{"$f":"IF(ISERROR($V1553),\"\",OFFSET('Smelter Look-up'!$G$4,$V1553-4,0))","v":""},{"$f":"IF(ISERROR($V1553),\"\",OFFSET('Smelter Look-up'!$H$4,$V1553-4,0))","v":""},{"$f":"IF(ISERROR($V1553),\"\",OFFSET('Smelter Look-up'!$I$4,$V1553-4,0))","v":""},{"$nulls":7},{"$f":"IF(ISERROR($V1553),\"\",OFFSET('Smelter Look-up'!$C$4,$V1553-4,0)&\"\")","v":""},"",{"$f":"IF(B1553=\"\",\"\",IF(ISERROR(MATCH($J1553,SorP!$B$1:$B$6230,0)),\"\",INDIRECT(\"'SorP'!$A$\"&MATCH($J1553,SorP!$B$1:$B$6230,0))))","v":""},null,{"$f":"IF(C1553=\"\",NA(),MATCH($B1553&$C1553,'Smelter Look-up'!$J:$J,0))","v":{"$error":"#N/A"}},null,0,null,null,null,""]
[null,{"$f":"IF(LEN(A1554)=0,\"\",INDEX('Smelter Look-up'!$A:$A,MATCH($A1554,'Smelter Look-up'!$E:$E,0)))","v":""},{"$f":"IF(LEN(A1554)=0,\"\",INDEX('Smelter Look-up'!$C:$C,MATCH($A1554,'Smelter Look-up'!$E:$E,0)))","v":""},null,{"$f":"IF(ISERROR($V1554),\"\",OFFSET('Smelter Look-up'!$D$4,$V1554-4,0)&\"\")","v":""},{"$f":"IF(ISERROR($V1554),\"\",OFFSET('Smelter Look-up'!$E$4,$V1554-4,0))","v":""},{"$f":"IF(C1554=$X$4,\"Enter smelter details\", IF(ISERROR($V1554),\"\",OFFSET('Smelter Look-up'!$F$4,$V1554-4,0)))","v":""},{"$f":"IF(ISERROR($V1554),\"\",OFFSET('Smelter Look-up'!$G$4,$V1554-4,0))","v":""},{"$f":"IF(ISERROR($V1554),\"\",OFFSET('Smelter Look-up'!$H$4,$V1554-4,0))","v":""},{"$f":"IF(ISERROR($V1554),\"\",OFFSET('Smelter Look-up'!$I$4,$V1554-4,0))","v":""},{"$nulls":7},{"$f":"IF(ISERROR($V1554),\"\",OFFSET('Smelter Look-up'!$C$4,$V1554-4,0)&\"\")","v":""},"",{"$f":"IF(B1554=\"\",\"\",IF(ISERROR(MATCH($J1554,SorP!$B$1:$B$6230,0)),\"\",INDIRECT(\"'SorP'!$A$\"&MATCH($J1554,SorP!$B$1:$B$6230,0))))","v":""},null,{"$f":"IF(C1554=\"\",NA(),MATCH($B1554&$C1554,'Smelter Look-up'!$J:$J,0))","v":{"$error":"#N/A"}},null,0,null,null,null,""]
[null,{"$f":"IF(LEN(A1555)=0,\"\",INDEX('Smelter Look-up'!$A:$A,MATCH($A1555,'Smelter Look-up'!$E:$E,0)))","v":""},{"$f":"IF(LEN(A1555)=0,\"\",INDEX('Smelter Look-up'!$C:$C,MATCH($A1555,'Smelter Look-up'!$E:$E,0)))","v":""},null,{"$f":"IF(ISERROR($V1555),\"\",OFFSET('Smelter Look-up'!$D$4,$V1555-4,0)&\"\")","v":""},{"$f":"IF(ISERROR($V1555),\"\",OFFSET('Smelter Look-up'!$E$4,$V1555-4,0))","v":""},{"$f":"IF(C1555=$X$4,\"Enter smelter details\", IF(ISERROR($V1555),\"\",OFFSET('Smelter Look-up'!$F$4,$V1555-4,0)))","v":""},{"$f":"IF(ISERROR($V1555),\"\",OFFSET('Smelter Look-up'!$G$4,$V1555-4,0))","v":""},{"$f":"IF(ISERROR($V1555),\"\",OFFSET('Smelter Look-up'!$H$4,$V1555-4,0))","v":""},{"$f":"IF(ISERROR($V1555),\"\",OFFSET('Smelter Look-up'!$I$4,$V1555-4,0))","v":""},{"$nulls":7},{"$f":"IF(ISERROR($V1555),\"\",OFFSET('Smelter Look-up'!$C$4,$V1555-4,0)&\"\")","v":""},"",{"$f":"IF(B1555=\"\",\"\",IF(ISERROR(MATCH($J1555,SorP!$B$1:$B$6230,0)),\"\",INDIRECT(\"'SorP'!$A$\"&MATCH($J1555,SorP!$B$1:$B$6230,0))))","v":""},null,{"$f":"IF(C1555=\"\",NA(),MATCH($B1555&$C1555,'Smelter Look-up'!$J:$J,0))","v":{"$error":"#N/A"}},null,0,null,null,null,""]
[null,{"$f":"IF(LEN(A1556)=0,\"\",INDEX('Smelter Look-up'!$A:$A,MATCH($A1556,'Smelter Look-up'!$E:$E,0)))","v":""},{"$f":"IF(LEN(A1556)=0,\"\",INDEX('Smelter Look-up'!$C:$C,MATCH($A1556,'Smelter Look-up'!$E:$E,0)))","v":""},null,{"$f":"IF(ISERROR($V1556),\"\",OFFSET('Smelter Look-up'!$D$4,$V1556-4,0)&\"\")","v":""},{"$f":"IF(ISERROR($V1556),\"\",OFFSET('Smelter Look-up'!$E$4,$V1556-4,0))","v":""},{"$f":"IF(C1556=$X$4,\"Enter smelter details\", IF(ISERROR($V1556),\"\",OFFSET('Smelter Look-up'!$F$4,$V1556-4,0)))","v":""},{"$f":"IF(ISERROR($V1556),\"\",OFFSET('Smelter Look-up'!$G$4,$V1556-4,0))","v":""},{"$f":"IF(ISERROR($V1556),\"\",OFFSET('Smelter Look-up'!$H$4,$V1556-4,0))","v":""},{"$f":"IF(ISERROR($V1556),\"\",OFFSET('Smelter Look-up'!$I$4,$V1556-4,0))","v":""},{"$nulls":7},{"$f":"IF(ISERROR($V1556),\"\",OFFSET('Smelter Look-up'!$C$4,$V1556-4,0)&\"\")","v":""},"",{"$f":"IF(B1556=\"\",\"\",IF(ISERROR(MATCH($J1556,SorP!$B$1:$B$6230,0)),\"\",INDIRECT(\"'SorP'!$A$\"&MATCH($J1556,SorP!$B$1:$B$6230,0))))","v":""},null,{"$f":"IF(C1556=\"\",NA(),MATCH($B1556&$C1556,'Smelter Look-up'!$J:$J,0))","v":{"$error":"#N/A"}},null,0,null,null,null,""]
[null,{"$f":"IF(LEN(A1557)=0,\"\",INDEX('Smelter Look-up'!$A:$A,MATCH($A1557,'Smelter Look-up'!$E:$E,0)))","v":""},{"$f":"IF(LEN(A1557)=0,\"\",INDEX('Smelter Look-up'!$C:$C,MATCH($A1557,'Smelter Look-up'!$E:$E,0)))","v":""},null,{"$f":"IF(ISERROR($V1557),\"\",OFFSET('Smelter Look-up'!$D$4,$V1557-4,0)&\"\")","v":""},{"$f":"IF(ISERROR($V1557),\"\",OFFSET('Smelter Look-up'!$E$4,$V1557-4,0))","v":""},{"$f":"IF(C1557=$X$4,\"Enter smelter details\", IF(ISERROR($V1557),\"\",OFFSET('Smelter Look-up'!$F$4,$V1557-4,0)))","v":""},{"$f":"IF(ISERROR($V1557),\"\",OFFSET('Smelter Look-up'!$G$4,$V1557-4,0))","v":""},{"$f":"IF(ISERROR($V1557),\"\",OFFSET('Smelter Look-up'!$H$4,$V1557-4,0))","v":""},{"$f":"IF(ISERROR($V1557),\"\",OFFSET('Smelter Look-up'!$I$4,$V1557-4,0))","v":""},{"$nulls":7},{"$f":"IF(ISERROR($V1557),\"\",OFFSET('Smelter Look-up'!$C$4,$V1557-4,0)&\"\")","v":""},"",{"$f":"IF(B1557=\"\",\"\",IF(ISERROR(MATCH($J1557,SorP!$B$1:$B$6230,0)),\"\",INDIRECT(\"'SorP'!$A$\"&MATCH($J1557,SorP!$B$1:$B$6230,0))))","v":""},null,{"$f":"IF(C1557=\"\",NA(),MATCH($B1557&$C1557,'Smelter Look-up'!$J:$J,0))","v":{"$error":"#N/A"}},null,0,null,null,null,""]
[null,{"$f":"IF(LEN(A1558)=0,\"\",INDEX('Smelter Look-up'!$A:$A,MATCH($A1558,'Smelter Look-up'!$E:$E,0)))","v":""},{"$f":"IF(LEN(A1558)=0,\"\",INDEX('Smelter Look-up'!$C:$C,MATCH($A1558,'Smelter Look-up'!$E:$E,0)))","v":""},null,{"$f":"IF(ISERROR($V1558),\"\",OFFSET('Smelter Look-up'!$D$4,$V1558-4,0)&\"\")","v":""},{"$f":"IF(ISERROR($V1558),\"\",OFFSET('Smelter Look-up'!$E$4,$V1558-4,0))","v":""},{"$f":"IF(C1558=$X$4,\"Enter smelter details\", IF(ISERROR($V1558),\"\",OFFSET('Smelter Look-up'!$F$4,$V1558-4,0)))","v":""},{"$f":"IF(ISERROR($V1558),\"\",OFFSET('Smelter Look-up'!$G$4,$V1558-4,0))","v":""},{"$f":"IF(ISERROR($V1558),\"\",OFFSET('Smelter Look-up'!$H$4,$V1558-4,0))","v":""},{"$f":"IF(ISERROR($V1558),\"\",OFFSET('Smelter Look-up'!$I$4,$V1558-4,0))","v":""},{"$nulls":7},{"$f":"IF(ISERROR($V1558),\"\",OFFSET('Smelter Look-up'!$C$4,$V1558-4,0)&\"\")","v":""},"",{"$f":"IF(B1558=\"\",\"\",IF(ISERROR(MATCH($J1558,SorP!$B$1:$B$6230,0)),\"\",INDIRECT(\"'SorP'!$A$\"&MATCH($J1558,SorP!$B$1:$B$6230,0))))","v":""},null,{"$f":"IF(C1558=\"\",NA(),MATCH($B1558&$C1558,'Smelter Look-up'!$J:$J,0))","v":{"$error":"#N/A"}},null,0,null,null,null,""]
[null,{"$f":"IF(LEN(A1559)=0,\"\",INDEX('Smelter Look-up'!$A:$A,MATCH($A1559,'Smelter Look-up'!$E:$E,0)))","v":""},{"$f":"IF(LEN(A1559)=0,\"\",INDEX('Smelter Look-up'!$C:$C,MATCH($A1559,'Smelter Look-up'!$E:$E,0)))","v":""},null,{"$f":"IF(ISERROR($V1559),\"\",OFFSET('Smelter Look-up'!$D$4,$V1559-4,0)&\"\")","v":""},{"$f":"IF(ISERROR($V1559),\"\",OFFSET('Smelter Look-up'!$E$4,$V1559-4,0))","v":""},{"$f":"IF(C1559=$X$4,\"Enter smelter details\", IF(ISERROR($V1559),\"\",OFFSET('Smelter Look-up'!$F$4,$V1559-4,0)))","v":""},{"$f":"IF(ISERROR($V1559),\"\",OFFSET('Smelter Look-up'!$G$4,$V1559-4,0))","v":""},{"$f":"IF(ISERROR($V1559),\"\",OFFSET('Smelter Look-up'!$H$4,$V1559-4,0))","v":""},{"$f":"IF(ISERROR($V1559),\"\",OFFSET('Smelter Look-up'!$I$4,$V1559-4,0))","v":""},{"$nulls":7},{"$f":"IF(ISERROR($V1559),\"\",OFFSET('Smelter Look-up'!$C$4,$V1559-4,0)&\"\")","v":""},"",{"$f":"IF(B1559=\"\",\"\",IF(ISERROR(MATCH($J1559,SorP!$B$1:$B$6230,0)),\"\",INDIRECT(\"'SorP'!$A$\"&MATCH($J1559,SorP!$B$1:$B$6230,0))))","v":""},null,{"$f":"IF(C1559=\"\",NA(),MATCH($B1559&$C1559,'Smelter Look-up'!$J:$J,0))","v":{"$error":"#N/A"}},null,0,null,null,null,""]
[null,{"$f":"IF(LEN(A1560)=0,\"\",INDEX('Smelter Look-up'!$A:$A,MATCH($A1560,'Smelter Look-up'!$E:$E,0)))","v":""},{"$f":"IF(LEN(A1560)=0,\"\",INDEX('Smelter Look-up'!$C:$C,MATCH($A1560,'Smelter Look-up'!$E:$E,0)))","v":""},null,{"$f":"IF(ISERROR($V1560),\"\",OFFSET('Smelter Look-up'!$D$4,$V1560-4,0)&\"\")","v":""},{"$f":"IF(ISERROR($V1560),\"\",OFFSET('Smelter Look-up'!$E$4,$V1560-4,0))","v":""},{"$f":"IF(C1560=$X$4,\"Enter smelter details\", IF(ISERROR($V1560),\"\",OFFSET('Smelter Look-up'!$F$4,$V1560-4,0)))","v":""},{"$f":"IF(ISERROR($V1560),\"\",OFFSET('Smelter Look-up'!$G$4,$V1560-4,0))","v":""},{"$f":"IF(ISERROR($V1560),\"\",OFFSET('Smelter Look-up'!$H$4,$V1560-4,0))","v":""},{"$f":"IF(ISERROR($V1560),\"\",OFFSET('Smelter Look-up'!$I$4,$V1560-4,0))","v":""},{"$nulls":7},{"$f":"IF(ISERROR($V1560),\"\",OFFSET('Smelter Look-up'!$C$4,$V1560-4,0)&\"\")","v":""},"",{"$f":"IF(B1560=\"\",\"\",IF(ISERROR(MATCH($J1560,SorP!$B$1:$B$6230,0)),\"\",INDIRECT(\"'SorP'!$A$\"&MATCH($J1560,SorP!$B$1:$B$6230,0))))","v":""},null,{"$f":"IF(C1560=\"\",NA(),MATCH($B1560&$C1560,'Smelter Look-up'!$J:$J,0))","v":{"$error":"#N/A"}},null,0,null,null,null,""]
[null,{"$f":"IF(LEN(A1561)=0,\"\",INDEX('Smelter Look-up'!$A:$A,MATCH($A1561,'Smelter Look-up'!$E:$E,0)))","v":""},{"$f":"IF(LEN(A1561)=0,\"\",INDEX('Smelter Look-up'!$C:$C,MATCH($A1561,'Smelter Look-up'!$E:$E,0)))","v":""},null,{"$f":"IF(ISERROR($V1561),\"\",OFFSET('Smelter Look-up'!$D$4,$V1561-4,0)&\"\")","v":""},{"$f":"IF(ISERROR($V1561),\"\",OFFSET('Smelter Look-up'!$E$4,$V1561-4,0))","v":""},{"$f":"IF(C1561=$X$4,\"Enter smelter details\", IF(ISERROR($V1561),\"\",OFFSET('Smelter Look-up'!$F$4,$V1561-4,0)))","v":""},{"$f":"IF(ISERROR($V1561),\"\",OFFSET('Smelter Look-up'!$G$4,$V1561-4,0))","v":""},{"$f":"IF(ISERROR($V1561),\"\",OFFSET('Smelter Look-up'!$H$4,$V1561-4,0))","v":""},{"$f":"IF(ISERROR($V1561),\"\",OFFSET('Smelter Look-up'!$I$4,$V1561-4,0))","v":""},{"$nulls":7},{"$f":"IF(ISERROR($V1561),\"\",OFFSET('Smelter Look-up'!$C$4,$V1561-4,0)&\"\")","v":""},"",{"$f":"IF(B1561=\"\",\"\",IF(ISERROR(MATCH($J1561,SorP!$B$1:$B$6230,0)),\"\",INDIRECT(\"'SorP'!$A$\"&MATCH($J1561,SorP!$B$1:$B$6230,0))))","v":""},null,{"$f":"IF(C1561=\"\",NA(),MATCH($B1561&$C1561,'Smelter Look-up'!$J:$J,0))","v":{"$error":"#N/A"}},null,0,null,null,null,""]
[null,{"$f":"IF(LEN(A1562)=0,\"\",INDEX('Smelter Look-up'!$A:$A,MATCH($A1562,'Smelter Look-up'!$E:$E,0)))","v":""},{"$f":"IF(LEN(A1562)=0,\"\",INDEX('Smelter Look-up'!$C:$C,MATCH($A1562,'Smelter Look-up'!$E:$E,0)))","v":""},null,{"$f":"IF(ISERROR($V1562),\"\",OFFSET('Smelter Look-up'!$D$4,$V1562-4,0)&\"\")","v":""},{"$f":"IF(ISERROR($V1562),\"\",OFFSET('Smelter Look-up'!$E$4,$V1562-4,0))","v":""},{"$f":"IF(C1562=$X$4,\"Enter smelter details\", IF(ISERROR($V1562),\"\",OFFSET('Smelter Look-up'!$F$4,$V1562-4,0)))","v":""},{"$f":"IF(ISERROR($V1562),\"\",OFFSET('Smelter Look-up'!$G$4,$V1562-4,0))","v":""},{"$f":"IF(ISERROR($V1562),\"\",OFFSET('Smelter Look-up'!$H$4,$V1562-4,0))","v":""},{"$f":"IF(ISERROR($V1562),\"\",OFFSET('Smelter Look-up'!$I$4,$V1562-4,0))","v":""},{"$nulls":7},{"$f":"IF(ISERROR($V1562),\"\",OFFSET('Smelter Look-up'!$C$4,$V1562-4,0)&\"\")","v":""},"",{"$f":"IF(B1562=\"\",\"\",IF(ISERROR(MATCH($J1562,SorP!$B$1:$B$6230,0)),\"\",INDIRECT(\"'SorP'!$A$\"&MATCH($J1562,SorP!$B$1:$B$6230,0))))","v":""},null,{"$f":"IF(C1562=\"\",NA(),MATCH($B1562&$C1562,'Smelter Look-up'!$J:$J,0))","v":{"$error":"#N/A"}},null,0,null,null,null,""]
[null,{"$f":"IF(LEN(A1563)=0,\"\",INDEX('Smelter Look-up'!$A:$A,MATCH($A1563,'Smelter Look-up'!$E:$E,0)))","v":""},{"$f":"IF(LEN(A1563)=0,\"\",INDEX('Smelter Look-up'!$C:$C,MATCH($A1563,'Smelter Look-up'!$E:$E,0)))","v":""},null,{"$f":"IF(ISERROR($V1563),\"\",OFFSET('Smelter Look-up'!$D$4,$V1563-4,0)&\"\")","v":""},{"$f":"IF(ISERROR($V1563),\"\",OFFSET('Smelter Look-up'!$E$4,$V1563-4,0))","v":""},{"$f":"IF(C1563=$X$4,\"Enter smelter details\", IF(ISERROR($V1563),\"\",OFFSET('Smelter Look-up'!$F$4,$V1563-4,0)))","v":""},{"$f":"IF(ISERROR($V1563),\"\",OFFSET('Smelter Look-up'!$G$4,$V1563-4,0))","v":""},{"$f":"IF(ISERROR($V1563),\"\",OFFSET('Smelter Look-up'!$H$4,$V1563-4,0))","v":""},{"$f":"IF(ISERROR($V1563),\"\",OFFSET('Smelter Look-up'!$I$4,$V1563-4,0))","v":""},{"$nulls":7},{"$f":"IF(ISERROR($V1563),\"\",OFFSET('Smelter Look-up'!$C$4,$V1563-4,0)&\"\")","v":""},"",{"$f":"IF(B1563=\"\",\"\",IF(ISERROR(MATCH($J1563,SorP!$B$1:$B$6230,0)),\"\",INDIRECT(\"'SorP'!$A$\"&MATCH($J1563,SorP!$B$1:$B$6230,0))))","v":""},null,{"$f":"IF(C1563=\"\",NA(),MATCH($B1563&$C1563,'Smelter Look-up'!$J:$J,0))","v":{"$error":"#N/A"}},null,0,null,null,null,""]
[null,{"$f":"IF(LEN(A1564)=0,\"\",INDEX('Smelter Look-up'!$A:$A,MATCH($A1564,'Smelter Look-up'!$E:$E,0)))","v":""},{"$f":"IF(LEN(A1564)=0,\"\",INDEX('Smelter Look-up'!$C:$C,MATCH($A1564,'Smelter Look-up'!$E:$E,0)))","v":""},null,{"$f":"IF(ISERROR($V1564),\"\",OFFSET('Smelter Look-up'!$D$4,$V1564-4,0)&\"\")","v":""},{"$f":"IF(ISERROR($V1564),\"\",OFFSET('Smelter Look-up'!$E$4,$V1564-4,0))","v":""},{"$f":"IF(C1564=$X$4,\"Enter smelter details\", IF(ISERROR($V1564),\"\",OFFSET('Smelter Look-up'!$F$4,$V1564-4,0)))","v":""},{"$f":"IF(ISERROR($V1564),\"\",OFFSET('Smelter Look-up'!$G$4,$V1564-4,0))","v":""},{"$f":"IF(ISERROR($V1564),\"\",OFFSET('Smelter Look-up'!$H$4,$V1564-4,0))","v":""},{"$f":"IF(ISERROR($V1564),\"\",OFFSET('Smelter Look-up'!$I$4,$V1564-4,0))","v":""},{"$nulls":7},{"$f":"IF(ISERROR($V1564),\"\",OFFSET('Smelter Look-up'!$C$4,$V1564-4,0)&\"\")","v":""},"",{"$f":"IF(B1564=\"\",\"\",IF(ISERROR(MATCH($J1564,SorP!$B$1:$B$6230,0)),\"\",INDIRECT(\"'SorP'!$A$\"&MATCH($J1564,SorP!$B$1:$B$6230,0))))","v":""},null,{"$f":"IF(C1564=\"\",NA(),MATCH($B1564&$C1564,'Smelter Look-up'!$J:$J,0))","v":{"$error":"#N/A"}},null,0,null,null,null,""]
[null,{"$f":"IF(LEN(A1565)=0,\"\",INDEX('Smelter Look-up'!$A:$A,MATCH($A1565,'Smelter Look-up'!$E:$E,0)))","v":""},{"$f":"IF(LEN(A1565)=0,\"\",INDEX('Smelter Look-up'!$C:$C,MATCH($A1565,'Smelter Look-up'!$E:$E,0)))","v":""},null,{"$f":"IF(ISERROR($V1565),\"\",OFFSET('Smelter Look-up'!$D$4,$V1565-4,0)&\"\")","v":""},{"$f":"IF(ISERROR($V1565),\"\",OFFSET('Smelter Look-up'!$E$4,$V1565-4,0))","v":""},{"$f":"IF(C1565=$X$4,\"Enter smelter details\", IF(ISERROR($V1565),\"\",OFFSET('Smelter Look-up'!$F$4,$V1565-4,0)))","v":""},{"$f":"IF(ISERROR($V1565),\"\",OFFSET('Smelter Look-up'!$G$4,$V1565-4,0))","v":""},{"$f":"IF(ISERROR($V1565),\"\",OFFSET('Smelter Look-up'!$H$4,$V1565-4,0))","v":""},{"$f":"IF(ISERROR($V1565),\"\",OFFSET('Smelter Look-up'!$I$4,$V1565-4,0))","v":""},{"$nulls":7},{"$f":"IF(ISERROR($V1565),\"\",OFFSET('Smelter Look-up'!$C$4,$V1565-4,0)&\"\")","v":""},"",{"$f":"IF(B1565=\"\",\"\",IF(ISERROR(MATCH($J1565,SorP!$B$1:$B$6230,0)),\"\",INDIRECT(\"'SorP'!$A$\"&MATCH($J1565,SorP!$B$1:$B$6230,0))))","v":""},null,{"$f":"IF(C1565=\"\",NA(),MATCH($B1565&$C1565,'Smelter Look-up'!$J:$J,0))","v":{"$error":"#N/A"}},null,0,null,null,null,""]
[null,{"$f":"IF(LEN(A1566)=0,\"\",INDEX('Smelter Look-up'!$A:$A,MATCH($A1566,'Smelter Look-up'!$E:$E,0)))","v":""},{"$f":"IF(LEN(A1566)=0,\"\",INDEX('Smelter Look-up'!$C:$C,MATCH($A1566,'Smelter Look-up'!$E:$E,0)))","v":""},null,{"$f":"IF(ISERROR($V1566),\"\",OFFSET('Smelter Look-up'!$D$4,$V1566-4,0)&\"\")","v":""},{"$f":"IF(ISERROR($V1566),\"\",OFFSET('Smelter Look-up'!$E$4,$V1566-4,0))","v":""},{"$f":"IF(C1566=$X$4,\"Enter smelter details\", IF(ISERROR($V1566),\"\",OFFSET('Smelter Look-up'!$F$4,$V1566-4,0)))","v":""},{"$f":"IF(ISERROR($V1566),\"\",OFFSET('Smelter Look-up'!$G$4,$V1566-4,0))","v":""},{"$f":"IF(ISERROR($V1566),\"\",OFFSET('Smelter Look-up'!$H$4,$V1566-4,0))","v":""},{"$f":"IF(ISERROR($V1566),\"\",OFFSET('Smelter Look-up'!$I$4,$V1566-4,0))","v":""},{"$nulls":7},{"$f":"IF(ISERROR($V1566),\"\",OFFSET('Smelter Look-up'!$C$4,$V1566-4,0)&\"\")","v":""},"",{"$f":"IF(B1566=\"\",\"\",IF(ISERROR(MATCH($J1566,SorP!$B$1:$B$6230,0)),\"\",INDIRECT(\"'SorP'!$A$\"&MATCH($J1566,SorP!$B$1:$B$6230,0))))","v":""},null,{"$f":"IF(C1566=\"\",NA(),MATCH($B1566&$C1566,'Smelter Look-up'!$J:$J,0))","v":{"$error":"#N/A"}},null,0,null,null,null,""]
[null,{"$f":"IF(LEN(A1567)=0,\"\",INDEX('Smelter Look-up'!$A:$A,MATCH($A1567,'Smelter Look-up'!$E:$E,0)))","v":""},{"$f":"IF(LEN(A1567)=0,\"\",INDEX('Smelter Look-up'!$C:$C,MATCH($A1567,'Smelter Look-up'!$E:$E,0)))","v":""},null,{"$f":"IF(ISERROR($V1567),\"\",OFFSET('Smelter Look-up'!$D$4,$V1567-4,0)&\"\")","v":""},{"$f":"IF(ISERROR($V1567),\"\",OFFSET('Smelter Look-up'!$E$4,$V1567-4,0))","v":""},{"$f":"IF(C1567=$X$4,\"Enter smelter details\", IF(ISERROR($V1567),\"\",OFFSET('Smelter Look-up'!$F$4,$V1567-4,0)))","v":""},{"$f":"IF(ISERROR($V1567),\"\",OFFSET('Smelter Look-up'!$G$4,$V1567-4,0))","v":""},{"$f":"IF(ISERROR($V1567),\"\",OFFSET('Smelter Look-up'!$H$4,$V1567-4,0))","v":""},{"$f":"IF(ISERROR($V1567),\"\",OFFSET('Smelter Look-up'!$I$4,$V1567-4,0))","v":""},{"$nulls":7},{"$f":"IF(ISERROR($V1567),\"\",OFFSET('Smelter Look-up'!$C$4,$V1567-4,0)&\"\")","v":""},"",{"$f":"IF(B1567=\"\",\"\",IF(ISERROR(MATCH($J1567,SorP!$B$1:$B$6230,0)),\"\",INDIRECT(\"'SorP'!$A$\"&MATCH($J1567,SorP!$B$1:$B$6230,0))))","v":""},null,{"$f":"IF(C1567=\"\",NA(),MATCH($B1567&$C1567,'Smelter Look-up'!$J:$J,0))","v":{"$error":"#N/A"}},null,0,null,null,null,""]
[null,{"$f":"IF(LEN(A1568)=0,\"\",INDEX('Smelter Look-up'!$A:$A,MATCH($A1568,'Smelter Look-up'!$E:$E,0)))","v":""},{"$f":"IF(LEN(A1568)=0,\"\",INDEX('Smelter Look-up'!$C:$C,MATCH($A1568,'Smelter Look-up'!$E:$E,0)))","v":""},null,{"$f":"IF(ISERROR($V1568),\"\",OFFSET('Smelter Look-up'!$D$4,$V1568-4,0)&\"\")","v":""},{"$f":"IF(ISERROR($V1568),\"\",OFFSET('Smelter Look-up'!$E$4,$V1568-4,0))","v":""},{"$f":"IF(C1568=$X$4,\"Enter smelter details\", IF(ISERROR($V1568),\"\",OFFSET('Smelter Look-up'!$F$4,$V1568-4,0)))","v":""},{"$f":"IF(ISERROR($V1568),\"\",OFFSET('Smelter Look-up'!$G$4,$V1568-4,0))","v":""},{"$f":"IF(ISERROR($V1568),\"\",OFFSET('Smelter Look-up'!$H$4,$V1568-4,0))","v":""},{"$f":"IF(ISERROR($V1568),\"\",OFFSET('Smelter Look-up'!$I$4,$V1568-4,0))","v":""},{"$nulls":7},{"$f":"IF(ISERROR($V1568),\"\",OFFSET('Smelter Look-up'!$C$4,$V1568-4,0)&\"\")","v":""},"",{"$f":"IF(B1568=\"\",\"\",IF(ISERROR(MATCH($J1568,SorP!$B$1:$B$6230,0)),\"\",INDIRECT(\"'SorP'!$A$\"&MATCH($J1568,SorP!$B$1:$B$6230,0))))","v":""},null,{"$f":"IF(C1568=\"\",NA(),MATCH($B1568&$C1568,'Smelter Look-up'!$J:$J,0))","v":{"$error":"#N/A"}},null,0,null,null,null,""]
[null,{"$f":"IF(LEN(A1569)=0,\"\",INDEX('Smelter Look-up'!$A:$A,MATCH($A1569,'Smelter Look-up'!$E:$E,0)))","v":""},{"$f":"IF(LEN(A1569)=0,\"\",INDEX('Smelter Look-up'!$C:$C,MATCH($A1569,'Smelter Look-up'!$E:$E,0)))","v":""},null,{"$f":"IF(ISERROR($V1569),\"\",OFFSET('Smelter Look-up'!$D$4,$V1569-4,0)&\"\")","v":""},{"$f":"IF(ISERROR($V1569),\"\",OFFSET('Smelter Look-up'!$E$4,$V1569-4,0))","v":""},{"$f":"IF(C1569=$X$4,\"Enter smelter details\", IF(ISERROR($V1569),\"\",OFFSET('Smelter Look-up'!$F$4,$V1569-4,0)))","v":""},{"$f":"IF(ISERROR($V1569),\"\",OFFSET('Smelter Look-up'!$G$4,$V1569-4,0))","v":""},{"$f":"IF(ISERROR($V1569),\"\",OFFSET('Smelter Look-up'!$H$4,$V1569-4,0))","v":""},{"$f":"IF(ISERROR($V1569),\"\",OFFSET('Smelter Look-up'!$I$4,$V1569-4,0))","v":""},{"$nulls":7},{"$f":"IF(ISERROR($V1569),\"\",OFFSET('Smelter Look-up'!$C$4,$V1569-4,0)&\"\")","v":""},"",{"$f":"IF(B1569=\"\",\"\",IF(ISERROR(MATCH($J1569,SorP!$B$1:$B$6230,0)),\"\",INDIRECT(\"'SorP'!$A$\"&MATCH($J1569,SorP!$B$1:$B$6230,0))))","v":""},null,{"$f":"IF(C1569=\"\",NA(),MATCH($B1569&$C1569,'Smelter Look-up'!$J:$J,0))","v":{"$error":"#N/A"}},null,0,null,null,null,""]
[null,{"$f":"IF(LEN(A1570)=0,\"\",INDEX('Smelter Look-up'!$A:$A,MATCH($A1570,'Smelter Look-up'!$E:$E,0)))","v":""},{"$f":"IF(LEN(A1570)=0,\"\",INDEX('Smelter Look-up'!$C:$C,MATCH($A1570,'Smelter Look-up'!$E:$E,0)))","v":""},null,{"$f":"IF(ISERROR($V1570),\"\",OFFSET('Smelter Look-up'!$D$4,$V1570-4,0)&\"\")","v":""},{"$f":"IF(ISERROR($V1570),\"\",OFFSET('Smelter Look-up'!$E$4,$V1570-4,0))","v":""},{"$f":"IF(C1570=$X$4,\"Enter smelter details\", IF(ISERROR($V1570),\"\",OFFSET('Smelter Look-up'!$F$4,$V1570-4,0)))","v":""},{"$f":"IF(ISERROR($V1570),\"\",OFFSET('Smelter Look-up'!$G$4,$V1570-4,0))","v":""},{"$f":"IF(ISERROR($V1570),\"\",OFFSET('Smelter Look-up'!$H$4,$V1570-4,0))","v":""},{"$f":"IF(ISERROR($V1570),\"\",OFFSET('Smelter Look-up'!$I$4,$V1570-4,0))","v":""},{"$nulls":7},{"$f":"IF(ISERROR($V1570),\"\",OFFSET('Smelter Look-up'!$C$4,$V1570-4,0)&\"\")","v":""},"",{"$f":"IF(B1570=\"\",\"\",IF(ISERROR(MATCH($J1570,SorP!$B$1:$B$6230,0)),\"\",INDIRECT(\"'SorP'!$A$\"&MATCH($J1570,SorP!$B$1:$B$6230,0))))","v":""},null,{"$f":"IF(C1570=\"\",NA(),MATCH($B1570&$C1570,'Smelter Look-up'!$J:$J,0))","v":{"$error":"#N/A"}},null,0,null,null,null,""]
[null,{"$f":"IF(LEN(A1571)=0,\"\",INDEX('Smelter Look-up'!$A:$A,MATCH($A1571,'Smelter Look-up'!$E:$E,0)))","v":""},{"$f":"IF(LEN(A1571)=0,\"\",INDEX('Smelter Look-up'!$C:$C,MATCH($A1571,'Smelter Look-up'!$E:$E,0)))","v":""},null,{"$f":"IF(ISERROR($V1571),\"\",OFFSET('Smelter Look-up'!$D$4,$V1571-4,0)&\"\")","v":""},{"$f":"IF(ISERROR($V1571),\"\",OFFSET('Smelter Look-up'!$E$4,$V1571-4,0))","v":""},{"$f":"IF(C1571=$X$4,\"Enter smelter details\", IF(ISERROR($V1571),\"\",OFFSET('Smelter Look-up'!$F$4,$V1571-4,0)))","v":""},{"$f":"IF(ISERROR($V1571),\"\",OFFSET('Smelter Look-up'!$G$4,$V1571-4,0))","v":""},{"$f":"IF(ISERROR($V1571),\"\",OFFSET('Smelter Look-up'!$H$4,$V1571-4,0))","v":""},{"$f":"IF(ISERROR($V1571),\"\",OFFSET('Smelter Look-up'!$I$4,$V1571-4,0))","v":""},{"$nulls":7},{"$f":"IF(ISERROR($V1571),\"\",OFFSET('Smelter Look-up'!$C$4,$V1571-4,0)&\"\")","v":""},"",{"$f":"IF(B1571=\"\",\"\",IF(ISERROR(MATCH($J1571,SorP!$B$1:$B$6230,0)),\"\",INDIRECT(\"'SorP'!$A$\"&MATCH($J1571,SorP!$B$1:$B$6230,0))))","v":""},null,{"$f":"IF(C1571=\"\",NA(),MATCH($B1571&$C1571,'Smelter Look-up'!$J:$J,0))","v":{"$error":"#N/A"}},null,0,null,null,null,""]
[null,{"$f":"IF(LEN(A1572)=0,\"\",INDEX('Smelter Look-up'!$A:$A,MATCH($A1572,'Smelter Look-up'!$E:$E,0)))","v":""},{"$f":"IF(LEN(A1572)=0,\"\",INDEX('Smelter Look-up'!$C:$C,MATCH($A1572,'Smelter Look-up'!$E:$E,0)))","v":""},null,{"$f":"IF(ISERROR($V1572),\"\",OFFSET('Smelter Look-up'!$D$4,$V1572-4,0)&\"\")","v":""},{"$f":"IF(ISERROR($V1572),\"\",OFFSET('Smelter Look-up'!$E$4,$V1572-4,0))","v":""},{"$f":"IF(C1572=$X$4,\"Enter smelter details\", IF(ISERROR($V1572),\"\",OFFSET('Smelter Look-up'!$F$4,$V1572-4,0)))","v":""},{"$f":"IF(ISERROR($V1572),\"\",OFFSET('Smelter Look-up'!$G$4,$V1572-4,0))","v":""},{"$f":"IF(ISERROR($V1572),\"\",OFFSET('Smelter Look-up'!$H$4,$V1572-4,0))","v":""},{"$f":"IF(ISERROR($V1572),\"\",OFFSET('Smelter Look-up'!$I$4,$V1572-4,0))","v":""},{"$nulls":7},{"$f":"IF(ISERROR($V1572),\"\",OFFSET('Smelter Look-up'!$C$4,$V1572-4,0)&\"\")","v":""},"",{"$f":"IF(B1572=\"\",\"\",IF(ISERROR(MATCH($J1572,SorP!$B$1:$B$6230,0)),\"\",INDIRECT(\"'SorP'!$A$\"&MATCH($J1572,SorP!$B$1:$B$6230,0))))","v":""},null,{"$f":"IF(C1572=\"\",NA(),MATCH($B1572&$C1572,'Smelter Look-up'!$J:$J,0))","v":{"$error":"#N/A"}},null,0,null,null,null,""]
[null,{"$f":"IF(LEN(A1573)=0,\"\",INDEX('Smelter Look-up'!$A:$A,MATCH($A1573,'Smelter Look-up'!$E:$E,0)))","v":""},{"$f":"IF(LEN(A1573)=0,\"\",INDEX('Smelter Look-up'!$C:$C,MATCH($A1573,'Smelter Look-up'!$E:$E,0)))","v":""},null,{"$f":"IF(ISERROR($V1573),\"\",OFFSET('Smelter Look-up'!$D$4,$V1573-4,0)&\"\")","v":""},{"$f":"IF(ISERROR($V1573),\"\",OFFSET('Smelter Look-up'!$E$4,$V1573-4,0))","v":""},{"$f":"IF(C1573=$X$4,\"Enter smelter details\", IF(ISERROR($V1573),\"\",OFFSET('Smelter Look-up'!$F$4,$V1573-4,0)))","v":""},{"$f":"IF(ISERROR($V1573),\"\",OFFSET('Smelter Look-up'!$G$4,$V1573-4,0))","v":""},{"$f":"IF(ISERROR($V1573),\"\",OFFSET('Smelter Look-up'!$H$4,$V1573-4,0))","v":""},{"$f":"IF(ISERROR($V1573),\"\",OFFSET('Smelter Look-up'!$I$4,$V1573-4,0))","v":""},{"$nulls":7},{"$f":"IF(ISERROR($V1573),\"\",OFFSET('Smelter Look-up'!$C$4,$V1573-4,0)&\"\")","v":""},"",{"$f":"IF(B1573=\"\",\"\",IF(ISERROR(MATCH($J1573,SorP!$B$1:$B$6230,0)),\"\",INDIRECT(\"'SorP'!$A$\"&MATCH($J1573,SorP!$B$1:$B$6230,0))))","v":""},null,{"$f":"IF(C1573=\"\",NA(),MATCH($B1573&$C1573,'Smelter Look-up'!$J:$J,0))","v":{"$error":"#N/A"}},null,0,null,null,null,""]
[null,{"$f":"IF(LEN(A1574)=0,\"\",INDEX('Smelter Look-up'!$A:$A,MATCH($A1574,'Smelter Look-up'!$E:$E,0)))","v":""},{"$f":"IF(LEN(A1574)=0,\"\",INDEX('Smelter Look-up'!$C:$C,MATCH($A1574,'Smelter Look-up'!$E:$E,0)))","v":""},null,{"$f":"IF(ISERROR($V1574),\"\",OFFSET('Smelter Look-up'!$D$4,$V1574-4,0)&\"\")","v":""},{"$f":"IF(ISERROR($V1574),\"\",OFFSET('Smelter Look-up'!$E$4,$V1574-4,0))","v":""},{"$f":"IF(C1574=$X$4,\"Enter smelter details\", IF(ISERROR($V1574),\"\",OFFSET('Smelter Look-up'!$F$4,$V1574-4,0)))","v":""},{"$f":"IF(ISERROR($V1574),\"\",OFFSET('Smelter Look-up'!$G$4,$V1574-4,0))","v":""},{"$f":"IF(ISERROR($V1574),\"\",OFFSET('Smelter Look-up'!$H$4,$V1574-4,0))","v":""},{"$f":"IF(ISERROR($V1574),\"\",OFFSET('Smelter Look-up'!$I$4,$V1574-4,0))","v":""},{"$nulls":7},{"$f":"IF(ISERROR($V1574),\"\",OFFSET('Smelter Look-up'!$C$4,$V1574-4,0)&\"\")","v":""},"",{"$f":"IF(B1574=\"\",\"\",IF(ISERROR(MATCH($J1574,SorP!$B$1:$B$6230,0)),\"\",INDIRECT(\"'SorP'!$A$\"&MATCH($J1574,SorP!$B$1:$B$6230,0))))","v":""},null,{"$f":"IF(C1574=\"\",NA(),MATCH($B1574&$C1574,'Smelter Look-up'!$J:$J,0))","v":{"$error":"#N/A"}},null,0,null,null,null,""]
[null,{"$f":"IF(LEN(A1575)=0,\"\",INDEX('Smelter Look-up'!$A:$A,MATCH($A1575,'Smelter Look-up'!$E:$E,0)))","v":""},{"$f":"IF(LEN(A1575)=0,\"\",INDEX('Smelter Look-up'!$C:$C,MATCH($A1575,'Smelter Look-up'!$E:$E,0)))","v":""},null,{"$f":"IF(ISERROR($V1575),\"\",OFFSET('Smelter Look-up'!$D$4,$V1575-4,0)&\"\")","v":""},{"$f":"IF(ISERROR($V1575),\"\",OFFSET('Smelter Look-up'!$E$4,$V1575-4,0))","v":""},{"$f":"IF(C1575=$X$4,\"Enter smelter details\", IF(ISERROR($V1575),\"\",OFFSET('Smelter Look-up'!$F$4,$V1575-4,0)))","v":""},{"$f":"IF(ISERROR($V1575),\"\",OFFSET('Smelter Look-up'!$G$4,$V1575-4,0))","v":""},{"$f":"IF(ISERROR($V1575),\"\",OFFSET('Smelter Look-up'!$H$4,$V1575-4,0))","v":""},{"$f":"IF(ISERROR($V1575),\"\",OFFSET('Smelter Look-up'!$I$4,$V1575-4,0))","v":""},{"$nulls":7},{"$f":"IF(ISERROR($V1575),\"\",OFFSET('Smelter Look-up'!$C$4,$V1575-4,0)&\"\")","v":""},"",{"$f":"IF(B1575=\"\",\"\",IF(ISERROR(MATCH($J1575,SorP!$B$1:$B$6230,0)),\"\",INDIRECT(\"'SorP'!$A$\"&MATCH($J1575,SorP!$B$1:$B$6230,0))))","v":""},null,{"$f":"IF(C1575=\"\",NA(),MATCH($B1575&$C1575,'Smelter Look-up'!$J:$J,0))","v":{"$error":"#N/A"}},null,0,null,null,null,""]
[null,{"$f":"IF(LEN(A1576)=0,\"\",INDEX('Smelter Look-up'!$A:$A,MATCH($A1576,'Smelter Look-up'!$E:$E,0)))","v":""},{"$f":"IF(LEN(A1576)=0,\"\",INDEX('Smelter Look-up'!$C:$C,MATCH($A1576,'Smelter Look-up'!$E:$E,0)))","v":""},null,{"$f":"IF(ISERROR($V1576),\"\",OFFSET('Smelter Look-up'!$D$4,$V1576-4,0)&\"\")","v":""},{"$f":"IF(ISERROR($V1576),\"\",OFFSET('Smelter Look-up'!$E$4,$V1576-4,0))","v":""},{"$f":"IF(C1576=$X$4,\"Enter smelter details\", IF(ISERROR($V1576),\"\",OFFSET('Smelter Look-up'!$F$4,$V1576-4,0)))","v":""},{"$f":"IF(ISERROR($V1576),\"\",OFFSET('Smelter Look-up'!$G$4,$V1576-4,0))","v":""},{"$f":"IF(ISERROR($V1576),\"\",OFFSET('Smelter Look-up'!$H$4,$V1576-4,0))","v":""},{"$f":"IF(ISERROR($V1576),\"\",OFFSET('Smelter Look-up'!$I$4,$V1576-4,0))","v":""},{"$nulls":7},{"$f":"IF(ISERROR($V1576),\"\",OFFSET('Smelter Look-up'!$C$4,$V1576-4,0)&\"\")","v":""},"",{"$f":"IF(B1576=\"\",\"\",IF(ISERROR(MATCH($J1576,SorP!$B$1:$B$6230,0)),\"\",INDIRECT(\"'SorP'!$A$\"&MATCH($J1576,SorP!$B$1:$B$6230,0))))","v":""},null,{"$f":"IF(C1576=\"\",NA(),MATCH($B1576&$C1576,'Smelter Look-up'!$J:$J,0))","v":{"$error":"#N/A"}},null,0,null,null,null,""]
[null,{"$f":"IF(LEN(A1577)=0,\"\",INDEX('Smelter Look-up'!$A:$A,MATCH($A1577,'Smelter Look-up'!$E:$E,0)))","v":""},{"$f":"IF(LEN(A1577)=0,\"\",INDEX('Smelter Look-up'!$C:$C,MATCH($A1577,'Smelter Look-up'!$E:$E,0)))","v":""},null,{"$f":"IF(ISERROR($V1577),\"\",OFFSET('Smelter Look-up'!$D$4,$V1577-4,0)&\"\")","v":""},{"$f":"IF(ISERROR($V1577),\"\",OFFSET('Smelter Look-up'!$E$4,$V1577-4,0))","v":""},{"$f":"IF(C1577=$X$4,\"Enter smelter details\", IF(ISERROR($V1577),\"\",OFFSET('Smelter Look-up'!$F$4,$V1577-4,0)))","v":""},{"$f":"IF(ISERROR($V1577),\"\",OFFSET('Smelter Look-up'!$G$4,$V1577-4,0))","v":""},{"$f":"IF(ISERROR($V1577),\"\",OFFSET('Smelter Look-up'!$H$4,$V1577-4,0))","v":""},{"$f":"IF(ISERROR($V1577),\"\",OFFSET('Smelter Look-up'!$I$4,$V1577-4,0))","v":""},{"$nulls":7},{"$f":"IF(ISERROR($V1577),\"\",OFFSET('Smelter Look-up'!$C$4,$V1577-4,0)&\"\")","v":""},"",{"$f":"IF(B1577=\"\",\"\",IF(ISERROR(MATCH($J1577,SorP!$B$1:$B$6230,0)),\"\",INDIRECT(\"'SorP'!$A$\"&MATCH($J1577,SorP!$B$1:$B$6230,0))))","v":""},null,{"$f":"IF(C1577=\"\",NA(),MATCH($B1577&$C1577,'Smelter Look-up'!$J:$J,0))","v":{"$error":"#N/A"}},null,0,null,null,null,""]
[null,{"$f":"IF(LEN(A1578)=0,\"\",INDEX('Smelter Look-up'!$A:$A,MATCH($A1578,'Smelter Look-up'!$E:$E,0)))","v":""},{"$f":"IF(LEN(A1578)=0,\"\",INDEX('Smelter Look-up'!$C:$C,MATCH($A1578,'Smelter Look-up'!$E:$E,0)))","v":""},null,{"$f":"IF(ISERROR($V1578),\"\",OFFSET('Smelter Look-up'!$D$4,$V1578-4,0)&\"\")","v":""},{"$f":"IF(ISERROR($V1578),\"\",OFFSET('Smelter Look-up'!$E$4,$V1578-4,0))","v":""},{"$f":"IF(C1578=$X$4,\"Enter smelter details\", IF(ISERROR($V1578),\"\",OFFSET('Smelter Look-up'!$F$4,$V1578-4,0)))","v":""},{"$f":"IF(ISERROR($V1578),\"\",OFFSET('Smelter Look-up'!$G$4,$V1578-4,0))","v":""},{"$f":"IF(ISERROR($V1578),\"\",OFFSET('Smelter Look-up'!$H$4,$V1578-4,0))","v":""},{"$f":"IF(ISERROR($V1578),\"\",OFFSET('Smelter Look-up'!$I$4,$V1578-4,0))","v":""},{"$nulls":7},{"$f":"IF(ISERROR($V1578),\"\",OFFSET('Smelter Look-up'!$C$4,$V1578-4,0)&\"\")","v":""},"",{"$f":"IF(B1578=\"\",\"\",IF(ISERROR(MATCH($J1578,SorP!$B$1:$B$6230,0)),\"\",INDIRECT(\"'SorP'!$A$\"&MATCH($J1578,SorP!$B$1:$B$6230,0))))","v":""},null,{"$f":"IF(C1578=\"\",NA(),MATCH($B1578&$C1578,'Smelter Look-up'!$J:$J,0))","v":{"$error":"#N/A"}},null,0,null,null,null,""]
[null,{"$f":"IF(LEN(A1579)=0,\"\",INDEX('Smelter Look-up'!$A:$A,MATCH($A1579,'Smelter Look-up'!$E:$E,0)))","v":""},{"$f":"IF(LEN(A1579)=0,\"\",INDEX('Smelter Look-up'!$C:$C,MATCH($A1579,'Smelter Look-up'!$E:$E,0)))","v":""},null,{"$f":"IF(ISERROR($V1579),\"\",OFFSET('Smelter Look-up'!$D$4,$V1579-4,0)&\"\")","v":""},{"$f":"IF(ISERROR($V1579),\"\",OFFSET('Smelter Look-up'!$E$4,$V1579-4,0))","v":""},{"$f":"IF(C1579=$X$4,\"Enter smelter details\", IF(ISERROR($V1579),\"\",OFFSET('Smelter Look-up'!$F$4,$V1579-4,0)))","v":""},{"$f":"IF(ISERROR($V1579),\"\",OFFSET('Smelter Look-up'!$G$4,$V1579-4,0))","v":""},{"$f":"IF(ISERROR($V1579),\"\",OFFSET('Smelter Look-up'!$H$4,$V1579-4,0))","v":""},{"$f":"IF(ISERROR($V1579),\"\",OFFSET('Smelter Look-up'!$I$4,$V1579-4,0))","v":""},{"$nulls":7},{"$f":"IF(ISERROR($V1579),\"\",OFFSET('Smelter Look-up'!$C$4,$V1579-4,0)&\"\")","v":""},"",{"$f":"IF(B1579=\"\",\"\",IF(ISERROR(MATCH($J1579,SorP!$B$1:$B$6230,0)),\"\",INDIRECT(\"'SorP'!$A$\"&MATCH($J1579,SorP!$B$1:$B$6230,0))))","v":""},null,{"$f":"IF(C1579=\"\",NA(),MATCH($B1579&$C1579,'Smelter Look-up'!$J:$J,0))","v":{"$error":"#N/A"}},null,0,null,null,null,""]
[null,{"$f":"IF(LEN(A1580)=0,\"\",INDEX('Smelter Look-up'!$A:$A,MATCH($A1580,'Smelter Look-up'!$E:$E,0)))","v":""},{"$f":"IF(LEN(A1580)=0,\"\",INDEX('Smelter Look-up'!$C:$C,MATCH($A1580,'Smelter Look-up'!$E:$E,0)))","v":""},null,{"$f":"IF(ISERROR($V1580),\"\",OFFSET('Smelter Look-up'!$D$4,$V1580-4,0)&\"\")","v":""},{"$f":"IF(ISERROR($V1580),\"\",OFFSET('Smelter Look-up'!$E$4,$V1580-4,0))","v":""},{"$f":"IF(C1580=$X$4,\"Enter smelter details\", IF(ISERROR($V1580),\"\",OFFSET('Smelter Look-up'!$F$4,$V1580-4,0)))","v":""},{"$f":"IF(ISERROR($V1580),\"\",OFFSET('Smelter Look-up'!$G$4,$V1580-4,0))","v":""},{"$f":"IF(ISERROR($V1580),\"\",OFFSET('Smelter Look-up'!$H$4,$V1580-4,0))","v":""},{"$f":"IF(ISERROR($V1580),\"\",OFFSET('Smelter Look-up'!$I$4,$V1580-4,0))","v":""},{"$nulls":7},{"$f":"IF(ISERROR($V1580),\"\",OFFSET('Smelter Look-up'!$C$4,$V1580-4,0)&\"\")","v":""},"",{"$f":"IF(B1580=\"\",\"\",IF(ISERROR(MATCH($J1580,SorP!$B$1:$B$6230,0)),\"\",INDIRECT(\"'SorP'!$A$\"&MATCH($J1580,SorP!$B$1:$B$6230,0))))","v":""},null,{"$f":"IF(C1580=\"\",NA(),MATCH($B1580&$C1580,'Smelter Look-up'!$J:$J,0))","v":{"$error":"#N/A"}},null,0,null,null,null,""]
[null,{"$f":"IF(LEN(A1581)=0,\"\",INDEX('Smelter Look-up'!$A:$A,MATCH($A1581,'Smelter Look-up'!$E:$E,0)))","v":""},{"$f":"IF(LEN(A1581)=0,\"\",INDEX('Smelter Look-up'!$C:$C,MATCH($A1581,'Smelter Look-up'!$E:$E,0)))","v":""},null,{"$f":"IF(ISERROR($V1581),\"\",OFFSET('Smelter Look-up'!$D$4,$V1581-4,0)&\"\")","v":""},{"$f":"IF(ISERROR($V1581),\"\",OFFSET('Smelter Look-up'!$E$4,$V1581-4,0))","v":""},{"$f":"IF(C1581=$X$4,\"Enter smelter details\", IF(ISERROR($V1581),\"\",OFFSET('Smelter Look-up'!$F$4,$V1581-4,0)))","v":""},{"$f":"IF(ISERROR($V1581),\"\",OFFSET('Smelter Look-up'!$G$4,$V1581-4,0))","v":""},{"$f":"IF(ISERROR($V1581),\"\",OFFSET('Smelter Look-up'!$H$4,$V1581-4,0))","v":""},{"$f":"IF(ISERROR($V1581),\"\",OFFSET('Smelter Look-up'!$I$4,$V1581-4,0))","v":""},{"$nulls":7},{"$f":"IF(ISERROR($V1581),\"\",OFFSET('Smelter Look-up'!$C$4,$V1581-4,0)&\"\")","v":""},"",{"$f":"IF(B1581=\"\",\"\",IF(ISERROR(MATCH($J1581,SorP!$B$1:$B$6230,0)),\"\",INDIRECT(\"'SorP'!$A$\"&MATCH($J1581,SorP!$B$1:$B$6230,0))))","v":""},null,{"$f":"IF(C1581=\"\",NA(),MATCH($B1581&$C1581,'Smelter Look-up'!$J:$J,0))","v":{"$error":"#N/A"}},null,0,null,null,null,""]
[null,{"$f":"IF(LEN(A1582)=0,\"\",INDEX('Smelter Look-up'!$A:$A,MATCH($A1582,'Smelter Look-up'!$E:$E,0)))","v":""},{"$f":"IF(LEN(A1582)=0,\"\",INDEX('Smelter Look-up'!$C:$C,MATCH($A1582,'Smelter Look-up'!$E:$E,0)))","v":""},null,{"$f":"IF(ISERROR($V1582),\"\",OFFSET('Smelter Look-up'!$D$4,$V1582-4,0)&\"\")","v":""},{"$f":"IF(ISERROR($V1582),\"\",OFFSET('Smelter Look-up'!$E$4,$V1582-4,0))","v":""},{"$f":"IF(C1582=$X$4,\"Enter smelter details\", IF(ISERROR($V1582),\"\",OFFSET('Smelter Look-up'!$F$4,$V1582-4,0)))","v":""},{"$f":"IF(ISERROR($V1582),\"\",OFFSET('Smelter Look-up'!$G$4,$V1582-4,0))","v":""},{"$f":"IF(ISERROR($V1582),\"\",OFFSET('Smelter Look-up'!$H$4,$V1582-4,0))","v":""},{"$f":"IF(ISERROR($V1582),\"\",OFFSET('Smelter Look-up'!$I$4,$V1582-4,0))","v":""},{"$nulls":7},{"$f":"IF(ISERROR($V1582),\"\",OFFSET('Smelter Look-up'!$C$4,$V1582-4,0)&\"\")","v":""},"",{"$f":"IF(B1582=\"\",\"\",IF(ISERROR(MATCH($J1582,SorP!$B$1:$B$6230,0)),\"\",INDIRECT(\"'SorP'!$A$\"&MATCH($J1582,SorP!$B$1:$B$6230,0))))","v":""},null,{"$f":"IF(C1582=\"\",NA(),MATCH($B1582&$C1582,'Smelter Look-up'!$J:$J,0))","v":{"$error":"#N/A"}},null,0,null,null,null,""]
[null,{"$f":"IF(LEN(A1583)=0,\"\",INDEX('Smelter Look-up'!$A:$A,MATCH($A1583,'Smelter Look-up'!$E:$E,0)))","v":""},{"$f":"IF(LEN(A1583)=0,\"\",INDEX('Smelter Look-up'!$C:$C,MATCH($A1583,'Smelter Look-up'!$E:$E,0)))","v":""},null,{"$f":"IF(ISERROR($V1583),\"\",OFFSET('Smelter Look-up'!$D$4,$V1583-4,0)&\"\")","v":""},{"$f":"IF(ISERROR($V1583),\"\",OFFSET('Smelter Look-up'!$E$4,$V1583-4,0))","v":""},{"$f":"IF(C1583=$X$4,\"Enter smelter details\", IF(ISERROR($V1583),\"\",OFFSET('Smelter Look-up'!$F$4,$V1583-4,0)))","v":""},{"$f":"IF(ISERROR($V1583),\"\",OFFSET('Smelter Look-up'!$G$4,$V1583-4,0))","v":""},{"$f":"IF(ISERROR($V1583),\"\",OFFSET('Smelter Look-up'!$H$4,$V1583-4,0))","v":""},{"$f":"IF(ISERROR($V1583),\"\",OFFSET('Smelter Look-up'!$I$4,$V1583-4,0))","v":""},{"$nulls":7},{"$f":"IF(ISERROR($V1583),\"\",OFFSET('Smelter Look-up'!$C$4,$V1583-4,0)&\"\")","v":""},"",{"$f":"IF(B1583=\"\",\"\",IF(ISERROR(MATCH($J1583,SorP!$B$1:$B$6230,0)),\"\",INDIRECT(\"'SorP'!$A$\"&MATCH($J1583,SorP!$B$1:$B$6230,0))))","v":""},null,{"$f":"IF(C1583=\"\",NA(),MATCH($B1583&$C1583,'Smelter Look-up'!$J:$J,0))","v":{"$error":"#N/A"}},null,0,null,null,null,""]
[null,{"$f":"IF(LEN(A1584)=0,\"\",INDEX('Smelter Look-up'!$A:$A,MATCH($A1584,'Smelter Look-up'!$E:$E,0)))","v":""},{"$f":"IF(LEN(A1584)=0,\"\",INDEX('Smelter Look-up'!$C:$C,MATCH($A1584,'Smelter Look-up'!$E:$E,0)))","v":""},null,{"$f":"IF(ISERROR($V1584),\"\",OFFSET('Smelter Look-up'!$D$4,$V1584-4,0)&\"\")","v":""},{"$f":"IF(ISERROR($V1584),\"\",OFFSET('Smelter Look-up'!$E$4,$V1584-4,0))","v":""},{"$f":"IF(C1584=$X$4,\"Enter smelter details\", IF(ISERROR($V1584),\"\",OFFSET('Smelter Look-up'!$F$4,$V1584-4,0)))","v":""},{"$f":"IF(ISERROR($V1584),\"\",OFFSET('Smelter Look-up'!$G$4,$V1584-4,0))","v":""},{"$f":"IF(ISERROR($V1584),\"\",OFFSET('Smelter Look-up'!$H$4,$V1584-4,0))","v":""},{"$f":"IF(ISERROR($V1584),\"\",OFFSET('Smelter Look-up'!$I$4,$V1584-4,0))","v":""},{"$nulls":7},{"$f":"IF(ISERROR($V1584),\"\",OFFSET('Smelter Look-up'!$C$4,$V1584-4,0)&\"\")","v":""},"",{"$f":"IF(B1584=\"\",\"\",IF(ISERROR(MATCH($J1584,SorP!$B$1:$B$6230,0)),\"\",INDIRECT(\"'SorP'!$A$\"&MATCH($J1584,SorP!$B$1:$B$6230,0))))","v":""},null,{"$f":"IF(C1584=\"\",NA(),MATCH($B1584&$C1584,'Smelter Look-up'!$J:$J,0))","v":{"$error":"#N/A"}},null,0,null,null,null,""]
[null,{"$f":"IF(LEN(A1585)=0,\"\",INDEX('Smelter Look-up'!$A:$A,MATCH($A1585,'Smelter Look-up'!$E:$E,0)))","v":""},{"$f":"IF(LEN(A1585)=0,\"\",INDEX('Smelter Look-up'!$C:$C,MATCH($A1585,'Smelter Look-up'!$E:$E,0)))","v":""},null,{"$f":"IF(ISERROR($V1585),\"\",OFFSET('Smelter Look-up'!$D$4,$V1585-4,0)&\"\")","v":""},{"$f":"IF(ISERROR($V1585),\"\",OFFSET('Smelter Look-up'!$E$4,$V1585-4,0))","v":""},{"$f":"IF(C1585=$X$4,\"Enter smelter details\", IF(ISERROR($V1585),\"\",OFFSET('Smelter Look-up'!$F$4,$V1585-4,0)))","v":""},{"$f":"IF(ISERROR($V1585),\"\",OFFSET('Smelter Look-up'!$G$4,$V1585-4,0))","v":""},{"$f":"IF(ISERROR($V1585),\"\",OFFSET('Smelter Look-up'!$H$4,$V1585-4,0))","v":""},{"$f":"IF(ISERROR($V1585),\"\",OFFSET('Smelter Look-up'!$I$4,$V1585-4,0))","v":""},{"$nulls":7},{"$f":"IF(ISERROR($V1585),\"\",OFFSET('Smelter Look-up'!$C$4,$V1585-4,0)&\"\")","v":""},"",{"$f":"IF(B1585=\"\",\"\",IF(ISERROR(MATCH($J1585,SorP!$B$1:$B$6230,0)),\"\",INDIRECT(\"'SorP'!$A$\"&MATCH($J1585,SorP!$B$1:$B$6230,0))))","v":""},null,{"$f":"IF(C1585=\"\",NA(),MATCH($B1585&$C1585,'Smelter Look-up'!$J:$J,0))","v":{"$error":"#N/A"}},null,0,null,null,null,""]
[null,{"$f":"IF(LEN(A1586)=0,\"\",INDEX('Smelter Look-up'!$A:$A,MATCH($A1586,'Smelter Look-up'!$E:$E,0)))","v":""},{"$f":"IF(LEN(A1586)=0,\"\",INDEX('Smelter Look-up'!$C:$C,MATCH($A1586,'Smelter Look-up'!$E:$E,0)))","v":""},null,{"$f":"IF(ISERROR($V1586),\"\",OFFSET('Smelter Look-up'!$D$4,$V1586-4,0)&\"\")","v":""},{"$f":"IF(ISERROR($V1586),\"\",OFFSET('Smelter Look-up'!$E$4,$V1586-4,0))","v":""},{"$f":"IF(C1586=$X$4,\"Enter smelter details\", IF(ISERROR($V1586),\"\",OFFSET('Smelter Look-up'!$F$4,$V1586-4,0)))","v":""},{"$f":"IF(ISERROR($V1586),\"\",OFFSET('Smelter Look-up'!$G$4,$V1586-4,0))","v":""},{"$f":"IF(ISERROR($V1586),\"\",OFFSET('Smelter Look-up'!$H$4,$V1586-4,0))","v":""},{"$f":"IF(ISERROR($V1586),\"\",OFFSET('Smelter Look-up'!$I$4,$V1586-4,0))","v":""},{"$nulls":7},{"$f":"IF(ISERROR($V1586),\"\",OFFSET('Smelter Look-up'!$C$4,$V1586-4,0)&\"\")","v":""},"",{"$f":"IF(B1586=\"\",\"\",IF(ISERROR(MATCH($J1586,SorP!$B$1:$B$6230,0)),\"\",INDIRECT(\"'SorP'!$A$\"&MATCH($J1586,SorP!$B$1:$B$6230,0))))","v":""},null,{"$f":"IF(C1586=\"\",NA(),MATCH($B1586&$C1586,'Smelter Look-up'!$J:$J,0))","v":{"$error":"#N/A"}},null,0,null,null,null,""]
[null,{"$f":"IF(LEN(A1587)=0,\"\",INDEX('Smelter Look-up'!$A:$A,MATCH($A1587,'Smelter Look-up'!$E:$E,0)))","v":""},{"$f":"IF(LEN(A1587)=0,\"\",INDEX('Smelter Look-up'!$C:$C,MATCH($A1587,'Smelter Look-up'!$E:$E,0)))","v":""},null,{"$f":"IF(ISERROR($V1587),\"\",OFFSET('Smelter Look-up'!$D$4,$V1587-4,0)&\"\")","v":""},{"$f":"IF(ISERROR($V1587),\"\",OFFSET('Smelter Look-up'!$E$4,$V1587-4,0))","v":""},{"$f":"IF(C1587=$X$4,\"Enter smelter details\", IF(ISERROR($V1587),\"\",OFFSET('Smelter Look-up'!$F$4,$V1587-4,0)))","v":""},{"$f":"IF(ISERROR($V1587),\"\",OFFSET('Smelter Look-up'!$G$4,$V1587-4,0))","v":""},{"$f":"IF(ISERROR($V1587),\"\",OFFSET('Smelter Look-up'!$H$4,$V1587-4,0))","v":""},{"$f":"IF(ISERROR($V1587),\"\",OFFSET('Smelter Look-up'!$I$4,$V1587-4,0))","v":""},{"$nulls":7},{"$f":"IF(ISERROR($V1587),\"\",OFFSET('Smelter Look-up'!$C$4,$V1587-4,0)&\"\")","v":""},"",{"$f":"IF(B1587=\"\",\"\",IF(ISERROR(MATCH($J1587,SorP!$B$1:$B$6230,0)),\"\",INDIRECT(\"'SorP'!$A$\"&MATCH($J1587,SorP!$B$1:$B$6230,0))))","v":""},null,{"$f":"IF(C1587=\"\",NA(),MATCH($B1587&$C1587,'Smelter Look-up'!$J:$J,0))","v":{"$error":"#N/A"}},null,0,null,null,null,""]
[null,{"$f":"IF(LEN(A1588)=0,\"\",INDEX('Smelter Look-up'!$A:$A,MATCH($A1588,'Smelter Look-up'!$E:$E,0)))","v":""},{"$f":"IF(LEN(A1588)=0,\"\",INDEX('Smelter Look-up'!$C:$C,MATCH($A1588,'Smelter Look-up'!$E:$E,0)))","v":""},null,{"$f":"IF(ISERROR($V1588),\"\",OFFSET('Smelter Look-up'!$D$4,$V1588-4,0)&\"\")","v":""},{"$f":"IF(ISERROR($V1588),\"\",OFFSET('Smelter Look-up'!$E$4,$V1588-4,0))","v":""},{"$f":"IF(C1588=$X$4,\"Enter smelter details\", IF(ISERROR($V1588),\"\",OFFSET('Smelter Look-up'!$F$4,$V1588-4,0)))","v":""},{"$f":"IF(ISERROR($V1588),\"\",OFFSET('Smelter Look-up'!$G$4,$V1588-4,0))","v":""},{"$f":"IF(ISERROR($V1588),\"\",OFFSET('Smelter Look-up'!$H$4,$V1588-4,0))","v":""},{"$f":"IF(ISERROR($V1588),\"\",OFFSET('Smelter Look-up'!$I$4,$V1588-4,0))","v":""},{"$nulls":7},{"$f":"IF(ISERROR($V1588),\"\",OFFSET('Smelter Look-up'!$C$4,$V1588-4,0)&\"\")","v":""},"",{"$f":"IF(B1588=\"\",\"\",IF(ISERROR(MATCH($J1588,SorP!$B$1:$B$6230,0)),\"\",INDIRECT(\"'SorP'!$A$\"&MATCH($J1588,SorP!$B$1:$B$6230,0))))","v":""},null,{"$f":"IF(C1588=\"\",NA(),MATCH($B1588&$C1588,'Smelter Look-up'!$J:$J,0))","v":{"$error":"#N/A"}},null,0,null,null,null,""]
[null,{"$f":"IF(LEN(A1589)=0,\"\",INDEX('Smelter Look-up'!$A:$A,MATCH($A1589,'Smelter Look-up'!$E:$E,0)))","v":""},{"$f":"IF(LEN(A1589)=0,\"\",INDEX('Smelter Look-up'!$C:$C,MATCH($A1589,'Smelter Look-up'!$E:$E,0)))","v":""},null,{"$f":"IF(ISERROR($V1589),\"\",OFFSET('Smelter Look-up'!$D$4,$V1589-4,0)&\"\")","v":""},{"$f":"IF(ISERROR($V1589),\"\",OFFSET('Smelter Look-up'!$E$4,$V1589-4,0))","v":""},{"$f":"IF(C1589=$X$4,\"Enter smelter details\", IF(ISERROR($V1589),\"\",OFFSET('Smelter Look-up'!$F$4,$V1589-4,0)))","v":""},{"$f":"IF(ISERROR($V1589),\"\",OFFSET('Smelter Look-up'!$G$4,$V1589-4,0))","v":""},{"$f":"IF(ISERROR($V1589),\"\",OFFSET('Smelter Look-up'!$H$4,$V1589-4,0))","v":""},{"$f":"IF(ISERROR($V1589),\"\",OFFSET('Smelter Look-up'!$I$4,$V1589-4,0))","v":""},{"$nulls":7},{"$f":"IF(ISERROR($V1589),\"\",OFFSET('Smelter Look-up'!$C$4,$V1589-4,0)&\"\")","v":""},"",{"$f":"IF(B1589=\"\",\"\",IF(ISERROR(MATCH($J1589,SorP!$B$1:$B$6230,0)),\"\",INDIRECT(\"'SorP'!$A$\"&MATCH($J1589,SorP!$B$1:$B$6230,0))))","v":""},null,{"$f":"IF(C1589=\"\",NA(),MATCH($B1589&$C1589,'Smelter Look-up'!$J:$J,0))","v":{"$error":"#N/A"}},null,0,null,null,null,""]
[null,{"$f":"IF(LEN(A1590)=0,\"\",INDEX('Smelter Look-up'!$A:$A,MATCH($A1590,'Smelter Look-up'!$E:$E,0)))","v":""},{"$f":"IF(LEN(A1590)=0,\"\",INDEX('Smelter Look-up'!$C:$C,MATCH($A1590,'Smelter Look-up'!$E:$E,0)))","v":""},null,{"$f":"IF(ISERROR($V1590),\"\",OFFSET('Smelter Look-up'!$D$4,$V1590-4,0)&\"\")","v":""},{"$f":"IF(ISERROR($V1590),\"\",OFFSET('Smelter Look-up'!$E$4,$V1590-4,0))","v":""},{"$f":"IF(C1590=$X$4,\"Enter smelter details\", IF(ISERROR($V1590),\"\",OFFSET('Smelter Look-up'!$F$4,$V1590-4,0)))","v":""},{"$f":"IF(ISERROR($V1590),\"\",OFFSET('Smelter Look-up'!$G$4,$V1590-4,0))","v":""},{"$f":"IF(ISERROR($V1590),\"\",OFFSET('Smelter Look-up'!$H$4,$V1590-4,0))","v":""},{"$f":"IF(ISERROR($V1590),\"\",OFFSET('Smelter Look-up'!$I$4,$V1590-4,0))","v":""},{"$nulls":7},{"$f":"IF(ISERROR($V1590),\"\",OFFSET('Smelter Look-up'!$C$4,$V1590-4,0)&\"\")","v":""},"",{"$f":"IF(B1590=\"\",\"\",IF(ISERROR(MATCH($J1590,SorP!$B$1:$B$6230,0)),\"\",INDIRECT(\"'SorP'!$A$\"&MATCH($J1590,SorP!$B$1:$B$6230,0))))","v":""},null,{"$f":"IF(C1590=\"\",NA(),MATCH($B1590&$C1590,'Smelter Look-up'!$J:$J,0))","v":{"$error":"#N/A"}},null,0,null,null,null,""]
[null,{"$f":"IF(LEN(A1591)=0,\"\",INDEX('Smelter Look-up'!$A:$A,MATCH($A1591,'Smelter Look-up'!$E:$E,0)))","v":""},{"$f":"IF(LEN(A1591)=0,\"\",INDEX('Smelter Look-up'!$C:$C,MATCH($A1591,'Smelter Look-up'!$E:$E,0)))","v":""},null,{"$f":"IF(ISERROR($V1591),\"\",OFFSET('Smelter Look-up'!$D$4,$V1591-4,0)&\"\")","v":""},{"$f":"IF(ISERROR($V1591),\"\",OFFSET('Smelter Look-up'!$E$4,$V1591-4,0))","v":""},{"$f":"IF(C1591=$X$4,\"Enter smelter details\", IF(ISERROR($V1591),\"\",OFFSET('Smelter Look-up'!$F$4,$V1591-4,0)))","v":""},{"$f":"IF(ISERROR($V1591),\"\",OFFSET('Smelter Look-up'!$G$4,$V1591-4,0))","v":""},{"$f":"IF(ISERROR($V1591),\"\",OFFSET('Smelter Look-up'!$H$4,$V1591-4,0))","v":""},{"$f":"IF(ISERROR($V1591),\"\",OFFSET('Smelter Look-up'!$I$4,$V1591-4,0))","v":""},{"$nulls":7},{"$f":"IF(ISERROR($V1591),\"\",OFFSET('Smelter Look-up'!$C$4,$V1591-4,0)&\"\")","v":""},"",{"$f":"IF(B1591=\"\",\"\",IF(ISERROR(MATCH($J1591,SorP!$B$1:$B$6230,0)),\"\",INDIRECT(\"'SorP'!$A$\"&MATCH($J1591,SorP!$B$1:$B$6230,0))))","v":""},null,{"$f":"IF(C1591=\"\",NA(),MATCH($B1591&$C1591,'Smelter Look-up'!$J:$J,0))","v":{"$error":"#N/A"}},null,0,null,null,null,""]
[null,{"$f":"IF(LEN(A1592)=0,\"\",INDEX('Smelter Look-up'!$A:$A,MATCH($A1592,'Smelter Look-up'!$E:$E,0)))","v":""},{"$f":"IF(LEN(A1592)=0,\"\",INDEX('Smelter Look-up'!$C:$C,MATCH($A1592,'Smelter Look-up'!$E:$E,0)))","v":""},null,{"$f":"IF(ISERROR($V1592),\"\",OFFSET('Smelter Look-up'!$D$4,$V1592-4,0)&\"\")","v":""},{"$f":"IF(ISERROR($V1592),\"\",OFFSET('Smelter Look-up'!$E$4,$V1592-4,0))","v":""},{"$f":"IF(C1592=$X$4,\"Enter smelter details\", IF(ISERROR($V1592),\"\",OFFSET('Smelter Look-up'!$F$4,$V1592-4,0)))","v":""},{"$f":"IF(ISERROR($V1592),\"\",OFFSET('Smelter Look-up'!$G$4,$V1592-4,0))","v":""},{"$f":"IF(ISERROR($V1592),\"\",OFFSET('Smelter Look-up'!$H$4,$V1592-4,0))","v":""},{"$f":"IF(ISERROR($V1592),\"\",OFFSET('Smelter Look-up'!$I$4,$V1592-4,0))","v":""},{"$nulls":7},{"$f":"IF(ISERROR($V1592),\"\",OFFSET('Smelter Look-up'!$C$4,$V1592-4,0)&\"\")","v":""},"",{"$f":"IF(B1592=\"\",\"\",IF(ISERROR(MATCH($J1592,SorP!$B$1:$B$6230,0)),\"\",INDIRECT(\"'SorP'!$A$\"&MATCH($J1592,SorP!$B$1:$B$6230,0))))","v":""},null,{"$f":"IF(C1592=\"\",NA(),MATCH($B1592&$C1592,'Smelter Look-up'!$J:$J,0))","v":{"$error":"#N/A"}},null,0,null,null,null,""]
[null,{"$f":"IF(LEN(A1593)=0,\"\",INDEX('Smelter Look-up'!$A:$A,MATCH($A1593,'Smelter Look-up'!$E:$E,0)))","v":""},{"$f":"IF(LEN(A1593)=0,\"\",INDEX('Smelter Look-up'!$C:$C,MATCH($A1593,'Smelter Look-up'!$E:$E,0)))","v":""},null,{"$f":"IF(ISERROR($V1593),\"\",OFFSET('Smelter Look-up'!$D$4,$V1593-4,0)&\"\")","v":""},{"$f":"IF(ISERROR($V1593),\"\",OFFSET('Smelter Look-up'!$E$4,$V1593-4,0))","v":""},{"$f":"IF(C1593=$X$4,\"Enter smelter details\", IF(ISERROR($V1593),\"\",OFFSET('Smelter Look-up'!$F$4,$V1593-4,0)))","v":""},{"$f":"IF(ISERROR($V1593),\"\",OFFSET('Smelter Look-up'!$G$4,$V1593-4,0))","v":""},{"$f":"IF(ISERROR($V1593),\"\",OFFSET('Smelter Look-up'!$H$4,$V1593-4,0))","v":""},{"$f":"IF(ISERROR($V1593),\"\",OFFSET('Smelter Look-up'!$I$4,$V1593-4,0))","v":""},{"$nulls":7},{"$f":"IF(ISERROR($V1593),\"\",OFFSET('Smelter Look-up'!$C$4,$V1593-4,0)&\"\")","v":""},"",{"$f":"IF(B1593=\"\",\"\",IF(ISERROR(MATCH($J1593,SorP!$B$1:$B$6230,0)),\"\",INDIRECT(\"'SorP'!$A$\"&MATCH($J1593,SorP!$B$1:$B$6230,0))))","v":""},null,{"$f":"IF(C1593=\"\",NA(),MATCH($B1593&$C1593,'Smelter Look-up'!$J:$J,0))","v":{"$error":"#N/A"}},null,0,null,null,null,""]
[null,{"$f":"IF(LEN(A1594)=0,\"\",INDEX('Smelter Look-up'!$A:$A,MATCH($A1594,'Smelter Look-up'!$E:$E,0)))","v":""},{"$f":"IF(LEN(A1594)=0,\"\",INDEX('Smelter Look-up'!$C:$C,MATCH($A1594,'Smelter Look-up'!$E:$E,0)))","v":""},null,{"$f":"IF(ISERROR($V1594),\"\",OFFSET('Smelter Look-up'!$D$4,$V1594-4,0)&\"\")","v":""},{"$f":"IF(ISERROR($V1594),\"\",OFFSET('Smelter Look-up'!$E$4,$V1594-4,0))","v":""},{"$f":"IF(C1594=$X$4,\"Enter smelter details\", IF(ISERROR($V1594),\"\",OFFSET('Smelter Look-up'!$F$4,$V1594-4,0)))","v":""},{"$f":"IF(ISERROR($V1594),\"\",OFFSET('Smelter Look-up'!$G$4,$V1594-4,0))","v":""},{"$f":"IF(ISERROR($V1594),\"\",OFFSET('Smelter Look-up'!$H$4,$V1594-4,0))","v":""},{"$f":"IF(ISERROR($V1594),\"\",OFFSET('Smelter Look-up'!$I$4,$V1594-4,0))","v":""},{"$nulls":7},{"$f":"IF(ISERROR($V1594),\"\",OFFSET('Smelter Look-up'!$C$4,$V1594-4,0)&\"\")","v":""},"",{"$f":"IF(B1594=\"\",\"\",IF(ISERROR(MATCH($J1594,SorP!$B$1:$B$6230,0)),\"\",INDIRECT(\"'SorP'!$A$\"&MATCH($J1594,SorP!$B$1:$B$6230,0))))","v":""},null,{"$f":"IF(C1594=\"\",NA(),MATCH($B1594&$C1594,'Smelter Look-up'!$J:$J,0))","v":{"$error":"#N/A"}},null,0,null,null,null,""]
[null,{"$f":"IF(LEN(A1595)=0,\"\",INDEX('Smelter Look-up'!$A:$A,MATCH($A1595,'Smelter Look-up'!$E:$E,0)))","v":""},{"$f":"IF(LEN(A1595)=0,\"\",INDEX('Smelter Look-up'!$C:$C,MATCH($A1595,'Smelter Look-up'!$E:$E,0)))","v":""},null,{"$f":"IF(ISERROR($V1595),\"\",OFFSET('Smelter Look-up'!$D$4,$V1595-4,0)&\"\")","v":""},{"$f":"IF(ISERROR($V1595),\"\",OFFSET('Smelter Look-up'!$E$4,$V1595-4,0))","v":""},{"$f":"IF(C1595=$X$4,\"Enter smelter details\", IF(ISERROR($V1595),\"\",OFFSET('Smelter Look-up'!$F$4,$V1595-4,0)))","v":""},{"$f":"IF(ISERROR($V1595),\"\",OFFSET('Smelter Look-up'!$G$4,$V1595-4,0))","v":""},{"$f":"IF(ISERROR($V1595),\"\",OFFSET('Smelter Look-up'!$H$4,$V1595-4,0))","v":""},{"$f":"IF(ISERROR($V1595),\"\",OFFSET('Smelter Look-up'!$I$4,$V1595-4,0))","v":""},{"$nulls":7},{"$f":"IF(ISERROR($V1595),\"\",OFFSET('Smelter Look-up'!$C$4,$V1595-4,0)&\"\")","v":""},{"$f":"IF(B1595=\"\",\"\",IF(ISERROR(MATCH($E1595,CL,0)),\"Unknown\",INDIRECT(\"'C'!$A$\"&MATCH($E1595,CL,0)+1)))","v":""},{"$f":"IF(B1595=\"\",\"\",IF(ISERROR(MATCH($J1595,SorP!$B$1:$B$6230,0)),\"\",INDIRECT(\"'SorP'!$A$\"&MATCH($J1595,SorP!$B$1:$B$6230,0))))","v":""},null,{"$f":"IF(C1595=\"\",NA(),MATCH($B1595&$C1595,'Smelter Look-up'!$J:$J,0))","v":{"$error":"#N/A"}},null,{"$f":"IF(AND(C1595=\"Smelter not listed\",OR(LEN(D1595)=0,LEN(E1595)=0)),1,0)","v":0},null,null,null,{"$f":"B1595&C1595","v":""}]
[null,{"$f":"IF(LEN(A1596)=0,\"\",INDEX('Smelter Look-up'!$A:$A,MATCH($A1596,'Smelter Look-up'!$E:$E,0)))","v":""},{"$f":"IF(LEN(A1596)=0,\"\",INDEX('Smelter Look-up'!$C:$C,MATCH($A1596,'Smelter Look-up'!$E:$E,0)))","v":""},null,{"$f":"IF(ISERROR($V1596),\"\",OFFSET('Smelter Look-up'!$D$4,$V1596-4,0)&\"\")","v":""},{"$f":"IF(ISERROR($V1596),\"\",OFFSET('Smelter Look-up'!$E$4,$V1596-4,0))","v":""},{"$f":"IF(C1596=$X$4,\"Enter smelter details\", IF(ISERROR($V1596),\"\",OFFSET('Smelter Look-up'!$F$4,$V1596-4,0)))","v":""},{"$f":"IF(ISERROR($V1596),\"\",OFFSET('Smelter Look-up'!$G$4,$V1596-4,0))","v":""},{"$f":"IF(ISERROR($V1596),\"\",OFFSET('Smelter Look-up'!$H$4,$V1596-4,0))","v":""},{"$f":"IF(ISERROR($V1596),\"\",OFFSET('Smelter Look-up'!$I$4,$V1596-4,0))","v":""},{"$nulls":7},{"$f":"IF(ISERROR($V1596),\"\",OFFSET('Smelter Look-up'!$C$4,$V1596-4,0)&\"\")","v":""},"",{"$f":"IF(B1596=\"\",\"\",IF(ISERROR(MATCH($J1596,SorP!$B$1:$B$6230,0)),\"\",INDIRECT(\"'SorP'!$A$\"&MATCH($J1596,SorP!$B$1:$B$6230,0))))","v":""},null,{"$f":"IF(C1596=\"\",NA(),MATCH($B1596&$C1596,'Smelter Look-up'!$J:$J,0))","v":{"$error":"#N/A"}},null,0,null,null,null,""]
[null,{"$f":"IF(LEN(A1597)=0,\"\",INDEX('Smelter Look-up'!$A:$A,MATCH($A1597,'Smelter Look-up'!$E:$E,0)))","v":""},{"$f":"IF(LEN(A1597)=0,\"\",INDEX('Smelter Look-up'!$C:$C,MATCH($A1597,'Smelter Look-up'!$E:$E,0)))","v":""},null,{"$f":"IF(ISERROR($V1597),\"\",OFFSET('Smelter Look-up'!$D$4,$V1597-4,0)&\"\")","v":""},{"$f":"IF(ISERROR($V1597),\"\",OFFSET('Smelter Look-up'!$E$4,$V1597-4,0))","v":""},{"$f":"IF(C1597=$X$4,\"Enter smelter details\", IF(ISERROR($V1597),\"\",OFFSET('Smelter Look-up'!$F$4,$V1597-4,0)))","v":""},{"$f":"IF(ISERROR($V1597),\"\",OFFSET('Smelter Look-up'!$G$4,$V1597-4,0))","v":""},{"$f":"IF(ISERROR($V1597),\"\",OFFSET('Smelter Look-up'!$H$4,$V1597-4,0))","v":""},{"$f":"IF(ISERROR($V1597),\"\",OFFSET('Smelter Look-up'!$I$4,$V1597-4,0))","v":""},{"$nulls":7},{"$f":"IF(ISERROR($V1597),\"\",OFFSET('Smelter Look-up'!$C$4,$V1597-4,0)&\"\")","v":""},"",{"$f":"IF(B1597=\"\",\"\",IF(ISERROR(MATCH($J1597,SorP!$B$1:$B$6230,0)),\"\",INDIRECT(\"'SorP'!$A$\"&MATCH($J1597,SorP!$B$1:$B$6230,0))))","v":""},null,{"$f":"IF(C1597=\"\",NA(),MATCH($B1597&$C1597,'Smelter Look-up'!$J:$J,0))","v":{"$error":"#N/A"}},null,0,null,null,null,""]
[null,{"$f":"IF(LEN(A1598)=0,\"\",INDEX('Smelter Look-up'!$A:$A,MATCH($A1598,'Smelter Look-up'!$E:$E,0)))","v":""},{"$f":"IF(LEN(A1598)=0,\"\",INDEX('Smelter Look-up'!$C:$C,MATCH($A1598,'Smelter Look-up'!$E:$E,0)))","v":""},null,{"$f":"IF(ISERROR($V1598),\"\",OFFSET('Smelter Look-up'!$D$4,$V1598-4,0)&\"\")","v":""},{"$f":"IF(ISERROR($V1598),\"\",OFFSET('Smelter Look-up'!$E$4,$V1598-4,0))","v":""},{"$f":"IF(C1598=$X$4,\"Enter smelter details\", IF(ISERROR($V1598),\"\",OFFSET('Smelter Look-up'!$F$4,$V1598-4,0)))","v":""},{"$f":"IF(ISERROR($V1598),\"\",OFFSET('Smelter Look-up'!$G$4,$V1598-4,0))","v":""},{"$f":"IF(ISERROR($V1598),\"\",OFFSET('Smelter Look-up'!$H$4,$V1598-4,0))","v":""},{"$f":"IF(ISERROR($V1598),\"\",OFFSET('Smelter Look-up'!$I$4,$V1598-4,0))","v":""},{"$nulls":7},{"$f":"IF(ISERROR($V1598),\"\",OFFSET('Smelter Look-up'!$C$4,$V1598-4,0)&\"\")","v":""},"",{"$f":"IF(B1598=\"\",\"\",IF(ISERROR(MATCH($J1598,SorP!$B$1:$B$6230,0)),\"\",INDIRECT(\"'SorP'!$A$\"&MATCH($J1598,SorP!$B$1:$B$6230,0))))","v":""},null,{"$f":"IF(C1598=\"\",NA(),MATCH($B1598&$C1598,'Smelter Look-up'!$J:$J,0))","v":{"$error":"#N/A"}},null,0,null,null,null,""]
[null,{"$f":"IF(LEN(A1599)=0,\"\",INDEX('Smelter Look-up'!$A:$A,MATCH($A1599,'Smelter Look-up'!$E:$E,0)))","v":""},{"$f":"IF(LEN(A1599)=0,\"\",INDEX('Smelter Look-up'!$C:$C,MATCH($A1599,'Smelter Look-up'!$E:$E,0)))","v":""},null,{"$f":"IF(ISERROR($V1599),\"\",OFFSET('Smelter Look-up'!$D$4,$V1599-4,0)&\"\")","v":""},{"$f":"IF(ISERROR($V1599),\"\",OFFSET('Smelter Look-up'!$E$4,$V1599-4,0))","v":""},{"$f":"IF(C1599=$X$4,\"Enter smelter details\", IF(ISERROR($V1599),\"\",OFFSET('Smelter Look-up'!$F$4,$V1599-4,0)))","v":""},{"$f":"IF(ISERROR($V1599),\"\",OFFSET('Smelter Look-up'!$G$4,$V1599-4,0))","v":""},{"$f":"IF(ISERROR($V1599),\"\",OFFSET('Smelter Look-up'!$H$4,$V1599-4,0))","v":""},{"$f":"IF(ISERROR($V1599),\"\",OFFSET('Smelter Look-up'!$I$4,$V1599-4,0))","v":""},{"$nulls":7},{"$f":"IF(ISERROR($V1599),\"\",OFFSET('Smelter Look-up'!$C$4,$V1599-4,0)&\"\")","v":""},"",{"$f":"IF(B1599=\"\",\"\",IF(ISERROR(MATCH($J1599,SorP!$B$1:$B$6230,0)),\"\",INDIRECT(\"'SorP'!$A$\"&MATCH($J1599,SorP!$B$1:$B$6230,0))))","v":""},null,{"$f":"IF(C1599=\"\",NA(),MATCH($B1599&$C1599,'Smelter Look-up'!$J:$J,0))","v":{"$error":"#N/A"}},null,0,null,null,null,""]
[null,{"$f":"IF(LEN(A1600)=0,\"\",INDEX('Smelter Look-up'!$A:$A,MATCH($A1600,'Smelter Look-up'!$E:$E,0)))","v":""},{"$f":"IF(LEN(A1600)=0,\"\",INDEX('Smelter Look-up'!$C:$C,MATCH($A1600,'Smelter Look-up'!$E:$E,0)))","v":""},null,{"$f":"IF(ISERROR($V1600),\"\",OFFSET('Smelter Look-up'!$D$4,$V1600-4,0)&\"\")","v":""},{"$f":"IF(ISERROR($V1600),\"\",OFFSET('Smelter Look-up'!$E$4,$V1600-4,0))","v":""},{"$f":"IF(C1600=$X$4,\"Enter smelter details\", IF(ISERROR($V1600),\"\",OFFSET('Smelter Look-up'!$F$4,$V1600-4,0)))","v":""},{"$f":"IF(ISERROR($V1600),\"\",OFFSET('Smelter Look-up'!$G$4,$V1600-4,0))","v":""},{"$f":"IF(ISERROR($V1600),\"\",OFFSET('Smelter Look-up'!$H$4,$V1600-4,0))","v":""},{"$f":"IF(ISERROR($V1600),\"\",OFFSET('Smelter Look-up'!$I$4,$V1600-4,0))","v":""},{"$nulls":7},{"$f":"IF(ISERROR($V1600),\"\",OFFSET('Smelter Look-up'!$C$4,$V1600-4,0)&\"\")","v":""},"",{"$f":"IF(B1600=\"\",\"\",IF(ISERROR(MATCH($J1600,SorP!$B$1:$B$6230,0)),\"\",INDIRECT(\"'SorP'!$A$\"&MATCH($J1600,SorP!$B$1:$B$6230,0))))","v":""},null,{"$f":"IF(C1600=\"\",NA(),MATCH($B1600&$C1600,'Smelter Look-up'!$J:$J,0))","v":{"$error":"#N/A"}},null,0,null,null,null,""]
[null,{"$f":"IF(LEN(A1601)=0,\"\",INDEX('Smelter Look-up'!$A:$A,MATCH($A1601,'Smelter Look-up'!$E:$E,0)))","v":""},{"$f":"IF(LEN(A1601)=0,\"\",INDEX('Smelter Look-up'!$C:$C,MATCH($A1601,'Smelter Look-up'!$E:$E,0)))","v":""},null,{"$f":"IF(ISERROR($V1601),\"\",OFFSET('Smelter Look-up'!$D$4,$V1601-4,0)&\"\")","v":""},{"$f":"IF(ISERROR($V1601),\"\",OFFSET('Smelter Look-up'!$E$4,$V1601-4,0))","v":""},{"$f":"IF(C1601=$X$4,\"Enter smelter details\", IF(ISERROR($V1601),\"\",OFFSET('Smelter Look-up'!$F$4,$V1601-4,0)))","v":""},{"$f":"IF(ISERROR($V1601),\"\",OFFSET('Smelter Look-up'!$G$4,$V1601-4,0))","v":""},{"$f":"IF(ISERROR($V1601),\"\",OFFSET('Smelter Look-up'!$H$4,$V1601-4,0))","v":""},{"$f":"IF(ISERROR($V1601),\"\",OFFSET('Smelter Look-up'!$I$4,$V1601-4,0))","v":""},{"$nulls":7},{"$f":"IF(ISERROR($V1601),\"\",OFFSET('Smelter Look-up'!$C$4,$V1601-4,0)&\"\")","v":""},"",{"$f":"IF(B1601=\"\",\"\",IF(ISERROR(MATCH($J1601,SorP!$B$1:$B$6230,0)),\"\",INDIRECT(\"'SorP'!$A$\"&MATCH($J1601,SorP!$B$1:$B$6230,0))))","v":""},null,{"$f":"IF(C1601=\"\",NA(),MATCH($B1601&$C1601,'Smelter Look-up'!$J:$J,0))","v":{"$error":"#N/A"}},null,0,null,null,null,""]
[null,{"$f":"IF(LEN(A1602)=0,\"\",INDEX('Smelter Look-up'!$A:$A,MATCH($A1602,'Smelter Look-up'!$E:$E,0)))","v":""},{"$f":"IF(LEN(A1602)=0,\"\",INDEX('Smelter Look-up'!$C:$C,MATCH($A1602,'Smelter Look-up'!$E:$E,0)))","v":""},null,{"$f":"IF(ISERROR($V1602),\"\",OFFSET('Smelter Look-up'!$D$4,$V1602-4,0)&\"\")","v":""},{"$f":"IF(ISERROR($V1602),\"\",OFFSET('Smelter Look-up'!$E$4,$V1602-4,0))","v":""},{"$f":"IF(C1602=$X$4,\"Enter smelter details\", IF(ISERROR($V1602),\"\",OFFSET('Smelter Look-up'!$F$4,$V1602-4,0)))","v":""},{"$f":"IF(ISERROR($V1602),\"\",OFFSET('Smelter Look-up'!$G$4,$V1602-4,0))","v":""},{"$f":"IF(ISERROR($V1602),\"\",OFFSET('Smelter Look-up'!$H$4,$V1602-4,0))","v":""},{"$f":"IF(ISERROR($V1602),\"\",OFFSET('Smelter Look-up'!$I$4,$V1602-4,0))","v":""},{"$nulls":7},{"$f":"IF(ISERROR($V1602),\"\",OFFSET('Smelter Look-up'!$C$4,$V1602-4,0)&\"\")","v":""},"",{"$f":"IF(B1602=\"\",\"\",IF(ISERROR(MATCH($J1602,SorP!$B$1:$B$6230,0)),\"\",INDIRECT(\"'SorP'!$A$\"&MATCH($J1602,SorP!$B$1:$B$6230,0))))","v":""},null,{"$f":"IF(C1602=\"\",NA(),MATCH($B1602&$C1602,'Smelter Look-up'!$J:$J,0))","v":{"$error":"#N/A"}},null,0,null,null,null,""]
[null,{"$f":"IF(LEN(A1603)=0,\"\",INDEX('Smelter Look-up'!$A:$A,MATCH($A1603,'Smelter Look-up'!$E:$E,0)))","v":""},{"$f":"IF(LEN(A1603)=0,\"\",INDEX('Smelter Look-up'!$C:$C,MATCH($A1603,'Smelter Look-up'!$E:$E,0)))","v":""},null,{"$f":"IF(ISERROR($V1603),\"\",OFFSET('Smelter Look-up'!$D$4,$V1603-4,0)&\"\")","v":""},{"$f":"IF(ISERROR($V1603),\"\",OFFSET('Smelter Look-up'!$E$4,$V1603-4,0))","v":""},{"$f":"IF(C1603=$X$4,\"Enter smelter details\", IF(ISERROR($V1603),\"\",OFFSET('Smelter Look-up'!$F$4,$V1603-4,0)))","v":""},{"$f":"IF(ISERROR($V1603),\"\",OFFSET('Smelter Look-up'!$G$4,$V1603-4,0))","v":""},{"$f":"IF(ISERROR($V1603),\"\",OFFSET('Smelter Look-up'!$H$4,$V1603-4,0))","v":""},{"$f":"IF(ISERROR($V1603),\"\",OFFSET('Smelter Look-up'!$I$4,$V1603-4,0))","v":""},{"$nulls":7},{"$f":"IF(ISERROR($V1603),\"\",OFFSET('Smelter Look-up'!$C$4,$V1603-4,0)&\"\")","v":""},"",{"$f":"IF(B1603=\"\",\"\",IF(ISERROR(MATCH($J1603,SorP!$B$1:$B$6230,0)),\"\",INDIRECT(\"'SorP'!$A$\"&MATCH($J1603,SorP!$B$1:$B$6230,0))))","v":""},null,{"$f":"IF(C1603=\"\",NA(),MATCH($B1603&$C1603,'Smelter Look-up'!$J:$J,0))","v":{"$error":"#N/A"}},null,0,null,null,null,""]
[null,{"$f":"IF(LEN(A1604)=0,\"\",INDEX('Smelter Look-up'!$A:$A,MATCH($A1604,'Smelter Look-up'!$E:$E,0)))","v":""},{"$f":"IF(LEN(A1604)=0,\"\",INDEX('Smelter Look-up'!$C:$C,MATCH($A1604,'Smelter Look-up'!$E:$E,0)))","v":""},null,{"$f":"IF(ISERROR($V1604),\"\",OFFSET('Smelter Look-up'!$D$4,$V1604-4,0)&\"\")","v":""},{"$f":"IF(ISERROR($V1604),\"\",OFFSET('Smelter Look-up'!$E$4,$V1604-4,0))","v":""},{"$f":"IF(C1604=$X$4,\"Enter smelter details\", IF(ISERROR($V1604),\"\",OFFSET('Smelter Look-up'!$F$4,$V1604-4,0)))","v":""},{"$f":"IF(ISERROR($V1604),\"\",OFFSET('Smelter Look-up'!$G$4,$V1604-4,0))","v":""},{"$f":"IF(ISERROR($V1604),\"\",OFFSET('Smelter Look-up'!$H$4,$V1604-4,0))","v":""},{"$f":"IF(ISERROR($V1604),\"\",OFFSET('Smelter Look-up'!$I$4,$V1604-4,0))","v":""},{"$nulls":7},{"$f":"IF(ISERROR($V1604),\"\",OFFSET('Smelter Look-up'!$C$4,$V1604-4,0)&\"\")","v":""},"",{"$f":"IF(B1604=\"\",\"\",IF(ISERROR(MATCH($J1604,SorP!$B$1:$B$6230,0)),\"\",INDIRECT(\"'SorP'!$A$\"&MATCH($J1604,SorP!$B$1:$B$6230,0))))","v":""},null,{"$f":"IF(C1604=\"\",NA(),MATCH($B1604&$C1604,'Smelter Look-up'!$J:$J,0))","v":{"$error":"#N/A"}},null,0,null,null,null,""]
[null,{"$f":"IF(LEN(A1605)=0,\"\",INDEX('Smelter Look-up'!$A:$A,MATCH($A1605,'Smelter Look-up'!$E:$E,0)))","v":""},{"$f":"IF(LEN(A1605)=0,\"\",INDEX('Smelter Look-up'!$C:$C,MATCH($A1605,'Smelter Look-up'!$E:$E,0)))","v":""},null,{"$f":"IF(ISERROR($V1605),\"\",OFFSET('Smelter Look-up'!$D$4,$V1605-4,0)&\"\")","v":""},{"$f":"IF(ISERROR($V1605),\"\",OFFSET('Smelter Look-up'!$E$4,$V1605-4,0))","v":""},{"$f":"IF(C1605=$X$4,\"Enter smelter details\", IF(ISERROR($V1605),\"\",OFFSET('Smelter Look-up'!$F$4,$V1605-4,0)))","v":""},{"$f":"IF(ISERROR($V1605),\"\",OFFSET('Smelter Look-up'!$G$4,$V1605-4,0))","v":""},{"$f":"IF(ISERROR($V1605),\"\",OFFSET('Smelter Look-up'!$H$4,$V1605-4,0))","v":""},{"$f":"IF(ISERROR($V1605),\"\",OFFSET('Smelter Look-up'!$I$4,$V1605-4,0))","v":""},{"$nulls":7},{"$f":"IF(ISERROR($V1605),\"\",OFFSET('Smelter Look-up'!$C$4,$V1605-4,0)&\"\")","v":""},"",{"$f":"IF(B1605=\"\",\"\",IF(ISERROR(MATCH($J1605,SorP!$B$1:$B$6230,0)),\"\",INDIRECT(\"'SorP'!$A$\"&MATCH($J1605,SorP!$B$1:$B$6230,0))))","v":""},null,{"$f":"IF(C1605=\"\",NA(),MATCH($B1605&$C1605,'Smelter Look-up'!$J:$J,0))","v":{"$error":"#N/A"}},null,0,null,null,null,""]
[null,{"$f":"IF(LEN(A1606)=0,\"\",INDEX('Smelter Look-up'!$A:$A,MATCH($A1606,'Smelter Look-up'!$E:$E,0)))","v":""},{"$f":"IF(LEN(A1606)=0,\"\",INDEX('Smelter Look-up'!$C:$C,MATCH($A1606,'Smelter Look-up'!$E:$E,0)))","v":""},null,{"$f":"IF(ISERROR($V1606),\"\",OFFSET('Smelter Look-up'!$D$4,$V1606-4,0)&\"\")","v":""},{"$f":"IF(ISERROR($V1606),\"\",OFFSET('Smelter Look-up'!$E$4,$V1606-4,0))","v":""},{"$f":"IF(C1606=$X$4,\"Enter smelter details\", IF(ISERROR($V1606),\"\",OFFSET('Smelter Look-up'!$F$4,$V1606-4,0)))","v":""},{"$f":"IF(ISERROR($V1606),\"\",OFFSET('Smelter Look-up'!$G$4,$V1606-4,0))","v":""},{"$f":"IF(ISERROR($V1606),\"\",OFFSET('Smelter Look-up'!$H$4,$V1606-4,0))","v":""},{"$f":"IF(ISERROR($V1606),\"\",OFFSET('Smelter Look-up'!$I$4,$V1606-4,0))","v":""},{"$nulls":7},{"$f":"IF(ISERROR($V1606),\"\",OFFSET('Smelter Look-up'!$C$4,$V1606-4,0)&\"\")","v":""},"",{"$f":"IF(B1606=\"\",\"\",IF(ISERROR(MATCH($J1606,SorP!$B$1:$B$6230,0)),\"\",INDIRECT(\"'SorP'!$A$\"&MATCH($J1606,SorP!$B$1:$B$6230,0))))","v":""},null,{"$f":"IF(C1606=\"\",NA(),MATCH($B1606&$C1606,'Smelter Look-up'!$J:$J,0))","v":{"$error":"#N/A"}},null,0,null,null,null,""]
[null,{"$f":"IF(LEN(A1607)=0,\"\",INDEX('Smelter Look-up'!$A:$A,MATCH($A1607,'Smelter Look-up'!$E:$E,0)))","v":""},{"$f":"IF(LEN(A1607)=0,\"\",INDEX('Smelter Look-up'!$C:$C,MATCH($A1607,'Smelter Look-up'!$E:$E,0)))","v":""},null,{"$f":"IF(ISERROR($V1607),\"\",OFFSET('Smelter Look-up'!$D$4,$V1607-4,0)&\"\")","v":""},{"$f":"IF(ISERROR($V1607),\"\",OFFSET('Smelter Look-up'!$E$4,$V1607-4,0))","v":""},{"$f":"IF(C1607=$X$4,\"Enter smelter details\", IF(ISERROR($V1607),\"\",OFFSET('Smelter Look-up'!$F$4,$V1607-4,0)))","v":""},{"$f":"IF(ISERROR($V1607),\"\",OFFSET('Smelter Look-up'!$G$4,$V1607-4,0))","v":""},{"$f":"IF(ISERROR($V1607),\"\",OFFSET('Smelter Look-up'!$H$4,$V1607-4,0))","v":""},{"$f":"IF(ISERROR($V1607),\"\",OFFSET('Smelter Look-up'!$I$4,$V1607-4,0))","v":""},{"$nulls":7},{"$f":"IF(ISERROR($V1607),\"\",OFFSET('Smelter Look-up'!$C$4,$V1607-4,0)&\"\")","v":""},"",{"$f":"IF(B1607=\"\",\"\",IF(ISERROR(MATCH($J1607,SorP!$B$1:$B$6230,0)),\"\",INDIRECT(\"'SorP'!$A$\"&MATCH($J1607,SorP!$B$1:$B$6230,0))))","v":""},null,{"$f":"IF(C1607=\"\",NA(),MATCH($B1607&$C1607,'Smelter Look-up'!$J:$J,0))","v":{"$error":"#N/A"}},null,0,null,null,null,""]
[null,{"$f":"IF(LEN(A1608)=0,\"\",INDEX('Smelter Look-up'!$A:$A,MATCH($A1608,'Smelter Look-up'!$E:$E,0)))","v":""},{"$f":"IF(LEN(A1608)=0,\"\",INDEX('Smelter Look-up'!$C:$C,MATCH($A1608,'Smelter Look-up'!$E:$E,0)))","v":""},null,{"$f":"IF(ISERROR($V1608),\"\",OFFSET('Smelter Look-up'!$D$4,$V1608-4,0)&\"\")","v":""},{"$f":"IF(ISERROR($V1608),\"\",OFFSET('Smelter Look-up'!$E$4,$V1608-4,0))","v":""},{"$f":"IF(C1608=$X$4,\"Enter smelter details\", IF(ISERROR($V1608),\"\",OFFSET('Smelter Look-up'!$F$4,$V1608-4,0)))","v":""},{"$f":"IF(ISERROR($V1608),\"\",OFFSET('Smelter Look-up'!$G$4,$V1608-4,0))","v":""},{"$f":"IF(ISERROR($V1608),\"\",OFFSET('Smelter Look-up'!$H$4,$V1608-4,0))","v":""},{"$f":"IF(ISERROR($V1608),\"\",OFFSET('Smelter Look-up'!$I$4,$V1608-4,0))","v":""},{"$nulls":7},{"$f":"IF(ISERROR($V1608),\"\",OFFSET('Smelter Look-up'!$C$4,$V1608-4,0)&\"\")","v":""},"",{"$f":"IF(B1608=\"\",\"\",IF(ISERROR(MATCH($J1608,SorP!$B$1:$B$6230,0)),\"\",INDIRECT(\"'SorP'!$A$\"&MATCH($J1608,SorP!$B$1:$B$6230,0))))","v":""},null,{"$f":"IF(C1608=\"\",NA(),MATCH($B1608&$C1608,'Smelter Look-up'!$J:$J,0))","v":{"$error":"#N/A"}},null,0,null,null,null,""]
[null,{"$f":"IF(LEN(A1609)=0,\"\",INDEX('Smelter Look-up'!$A:$A,MATCH($A1609,'Smelter Look-up'!$E:$E,0)))","v":""},{"$f":"IF(LEN(A1609)=0,\"\",INDEX('Smelter Look-up'!$C:$C,MATCH($A1609,'Smelter Look-up'!$E:$E,0)))","v":""},null,{"$f":"IF(ISERROR($V1609),\"\",OFFSET('Smelter Look-up'!$D$4,$V1609-4,0)&\"\")","v":""},{"$f":"IF(ISERROR($V1609),\"\",OFFSET('Smelter Look-up'!$E$4,$V1609-4,0))","v":""},{"$f":"IF(C1609=$X$4,\"Enter smelter details\", IF(ISERROR($V1609),\"\",OFFSET('Smelter Look-up'!$F$4,$V1609-4,0)))","v":""},{"$f":"IF(ISERROR($V1609),\"\",OFFSET('Smelter Look-up'!$G$4,$V1609-4,0))","v":""},{"$f":"IF(ISERROR($V1609),\"\",OFFSET('Smelter Look-up'!$H$4,$V1609-4,0))","v":""},{"$f":"IF(ISERROR($V1609),\"\",OFFSET('Smelter Look-up'!$I$4,$V1609-4,0))","v":""},{"$nulls":7},{"$f":"IF(ISERROR($V1609),\"\",OFFSET('Smelter Look-up'!$C$4,$V1609-4,0)&\"\")","v":""},"",{"$f":"IF(B1609=\"\",\"\",IF(ISERROR(MATCH($J1609,SorP!$B$1:$B$6230,0)),\"\",INDIRECT(\"'SorP'!$A$\"&MATCH($J1609,SorP!$B$1:$B$6230,0))))","v":""},null,{"$f":"IF(C1609=\"\",NA(),MATCH($B1609&$C1609,'Smelter Look-up'!$J:$J,0))","v":{"$error":"#N/A"}},null,0,null,null,null,""]
[null,{"$f":"IF(LEN(A1610)=0,\"\",INDEX('Smelter Look-up'!$A:$A,MATCH($A1610,'Smelter Look-up'!$E:$E,0)))","v":""},{"$f":"IF(LEN(A1610)=0,\"\",INDEX('Smelter Look-up'!$C:$C,MATCH($A1610,'Smelter Look-up'!$E:$E,0)))","v":""},null,{"$f":"IF(ISERROR($V1610),\"\",OFFSET('Smelter Look-up'!$D$4,$V1610-4,0)&\"\")","v":""},{"$f":"IF(ISERROR($V1610),\"\",OFFSET('Smelter Look-up'!$E$4,$V1610-4,0))","v":""},{"$f":"IF(C1610=$X$4,\"Enter smelter details\", IF(ISERROR($V1610),\"\",OFFSET('Smelter Look-up'!$F$4,$V1610-4,0)))","v":""},{"$f":"IF(ISERROR($V1610),\"\",OFFSET('Smelter Look-up'!$G$4,$V1610-4,0))","v":""},{"$f":"IF(ISERROR($V1610),\"\",OFFSET('Smelter Look-up'!$H$4,$V1610-4,0))","v":""},{"$f":"IF(ISERROR($V1610),\"\",OFFSET('Smelter Look-up'!$I$4,$V1610-4,0))","v":""},{"$nulls":7},{"$f":"IF(ISERROR($V1610),\"\",OFFSET('Smelter Look-up'!$C$4,$V1610-4,0)&\"\")","v":""},"",{"$f":"IF(B1610=\"\",\"\",IF(ISERROR(MATCH($J1610,SorP!$B$1:$B$6230,0)),\"\",INDIRECT(\"'SorP'!$A$\"&MATCH($J1610,SorP!$B$1:$B$6230,0))))","v":""},null,{"$f":"IF(C1610=\"\",NA(),MATCH($B1610&$C1610,'Smelter Look-up'!$J:$J,0))","v":{"$error":"#N/A"}},null,0,null,null,null,""]
[null,{"$f":"IF(LEN(A1611)=0,\"\",INDEX('Smelter Look-up'!$A:$A,MATCH($A1611,'Smelter Look-up'!$E:$E,0)))","v":""},{"$f":"IF(LEN(A1611)=0,\"\",INDEX('Smelter Look-up'!$C:$C,MATCH($A1611,'Smelter Look-up'!$E:$E,0)))","v":""},null,{"$f":"IF(ISERROR($V1611),\"\",OFFSET('Smelter Look-up'!$D$4,$V1611-4,0)&\"\")","v":""},{"$f":"IF(ISERROR($V1611),\"\",OFFSET('Smelter Look-up'!$E$4,$V1611-4,0))","v":""},{"$f":"IF(C1611=$X$4,\"Enter smelter details\", IF(ISERROR($V1611),\"\",OFFSET('Smelter Look-up'!$F$4,$V1611-4,0)))","v":""},{"$f":"IF(ISERROR($V1611),\"\",OFFSET('Smelter Look-up'!$G$4,$V1611-4,0))","v":""},{"$f":"IF(ISERROR($V1611),\"\",OFFSET('Smelter Look-up'!$H$4,$V1611-4,0))","v":""},{"$f":"IF(ISERROR($V1611),\"\",OFFSET('Smelter Look-up'!$I$4,$V1611-4,0))","v":""},{"$nulls":7},{"$f":"IF(ISERROR($V1611),\"\",OFFSET('Smelter Look-up'!$C$4,$V1611-4,0)&\"\")","v":""},"",{"$f":"IF(B1611=\"\",\"\",IF(ISERROR(MATCH($J1611,SorP!$B$1:$B$6230,0)),\"\",INDIRECT(\"'SorP'!$A$\"&MATCH($J1611,SorP!$B$1:$B$6230,0))))","v":""},null,{"$f":"IF(C1611=\"\",NA(),MATCH($B1611&$C1611,'Smelter Look-up'!$J:$J,0))","v":{"$error":"#N/A"}},null,0,null,null,null,""]
[null,{"$f":"IF(LEN(A1612)=0,\"\",INDEX('Smelter Look-up'!$A:$A,MATCH($A1612,'Smelter Look-up'!$E:$E,0)))","v":""},{"$f":"IF(LEN(A1612)=0,\"\",INDEX('Smelter Look-up'!$C:$C,MATCH($A1612,'Smelter Look-up'!$E:$E,0)))","v":""},null,{"$f":"IF(ISERROR($V1612),\"\",OFFSET('Smelter Look-up'!$D$4,$V1612-4,0)&\"\")","v":""},{"$f":"IF(ISERROR($V1612),\"\",OFFSET('Smelter Look-up'!$E$4,$V1612-4,0))","v":""},{"$f":"IF(C1612=$X$4,\"Enter smelter details\", IF(ISERROR($V1612),\"\",OFFSET('Smelter Look-up'!$F$4,$V1612-4,0)))","v":""},{"$f":"IF(ISERROR($V1612),\"\",OFFSET('Smelter Look-up'!$G$4,$V1612-4,0))","v":""},{"$f":"IF(ISERROR($V1612),\"\",OFFSET('Smelter Look-up'!$H$4,$V1612-4,0))","v":""},{"$f":"IF(ISERROR($V1612),\"\",OFFSET('Smelter Look-up'!$I$4,$V1612-4,0))","v":""},{"$nulls":7},{"$f":"IF(ISERROR($V1612),\"\",OFFSET('Smelter Look-up'!$C$4,$V1612-4,0)&\"\")","v":""},"",{"$f":"IF(B1612=\"\",\"\",IF(ISERROR(MATCH($J1612,SorP!$B$1:$B$6230,0)),\"\",INDIRECT(\"'SorP'!$A$\"&MATCH($J1612,SorP!$B$1:$B$6230,0))))","v":""},null,{"$f":"IF(C1612=\"\",NA(),MATCH($B1612&$C1612,'Smelter Look-up'!$J:$J,0))","v":{"$error":"#N/A"}},null,0,null,null,null,""]
[null,{"$f":"IF(LEN(A1613)=0,\"\",INDEX('Smelter Look-up'!$A:$A,MATCH($A1613,'Smelter Look-up'!$E:$E,0)))","v":""},{"$f":"IF(LEN(A1613)=0,\"\",INDEX('Smelter Look-up'!$C:$C,MATCH($A1613,'Smelter Look-up'!$E:$E,0)))","v":""},null,{"$f":"IF(ISERROR($V1613),\"\",OFFSET('Smelter Look-up'!$D$4,$V1613-4,0)&\"\")","v":""},{"$f":"IF(ISERROR($V1613),\"\",OFFSET('Smelter Look-up'!$E$4,$V1613-4,0))","v":""},{"$f":"IF(C1613=$X$4,\"Enter smelter details\", IF(ISERROR($V1613),\"\",OFFSET('Smelter Look-up'!$F$4,$V1613-4,0)))","v":""},{"$f":"IF(ISERROR($V1613),\"\",OFFSET('Smelter Look-up'!$G$4,$V1613-4,0))","v":""},{"$f":"IF(ISERROR($V1613),\"\",OFFSET('Smelter Look-up'!$H$4,$V1613-4,0))","v":""},{"$f":"IF(ISERROR($V1613),\"\",OFFSET('Smelter Look-up'!$I$4,$V1613-4,0))","v":""},{"$nulls":7},{"$f":"IF(ISERROR($V1613),\"\",OFFSET('Smelter Look-up'!$C$4,$V1613-4,0)&\"\")","v":""},"",{"$f":"IF(B1613=\"\",\"\",IF(ISERROR(MATCH($J1613,SorP!$B$1:$B$6230,0)),\"\",INDIRECT(\"'SorP'!$A$\"&MATCH($J1613,SorP!$B$1:$B$6230,0))))","v":""},null,{"$f":"IF(C1613=\"\",NA(),MATCH($B1613&$C1613,'Smelter Look-up'!$J:$J,0))","v":{"$error":"#N/A"}},null,0,null,null,null,""]
[null,{"$f":"IF(LEN(A1614)=0,\"\",INDEX('Smelter Look-up'!$A:$A,MATCH($A1614,'Smelter Look-up'!$E:$E,0)))","v":""},{"$f":"IF(LEN(A1614)=0,\"\",INDEX('Smelter Look-up'!$C:$C,MATCH($A1614,'Smelter Look-up'!$E:$E,0)))","v":""},null,{"$f":"IF(ISERROR($V1614),\"\",OFFSET('Smelter Look-up'!$D$4,$V1614-4,0)&\"\")","v":""},{"$f":"IF(ISERROR($V1614),\"\",OFFSET('Smelter Look-up'!$E$4,$V1614-4,0))","v":""},{"$f":"IF(C1614=$X$4,\"Enter smelter details\", IF(ISERROR($V1614),\"\",OFFSET('Smelter Look-up'!$F$4,$V1614-4,0)))","v":""},{"$f":"IF(ISERROR($V1614),\"\",OFFSET('Smelter Look-up'!$G$4,$V1614-4,0))","v":""},{"$f":"IF(ISERROR($V1614),\"\",OFFSET('Smelter Look-up'!$H$4,$V1614-4,0))","v":""},{"$f":"IF(ISERROR($V1614),\"\",OFFSET('Smelter Look-up'!$I$4,$V1614-4,0))","v":""},{"$nulls":7},{"$f":"IF(ISERROR($V1614),\"\",OFFSET('Smelter Look-up'!$C$4,$V1614-4,0)&\"\")","v":""},"",{"$f":"IF(B1614=\"\",\"\",IF(ISERROR(MATCH($J1614,SorP!$B$1:$B$6230,0)),\"\",INDIRECT(\"'SorP'!$A$\"&MATCH($J1614,SorP!$B$1:$B$6230,0))))","v":""},null,{"$f":"IF(C1614=\"\",NA(),MATCH($B1614&$C1614,'Smelter Look-up'!$J:$J,0))","v":{"$error":"#N/A"}},null,0,null,null,null,""]
[null,{"$f":"IF(LEN(A1615)=0,\"\",INDEX('Smelter Look-up'!$A:$A,MATCH($A1615,'Smelter Look-up'!$E:$E,0)))","v":""},{"$f":"IF(LEN(A1615)=0,\"\",INDEX('Smelter Look-up'!$C:$C,MATCH($A1615,'Smelter Look-up'!$E:$E,0)))","v":""},null,{"$f":"IF(ISERROR($V1615),\"\",OFFSET('Smelter Look-up'!$D$4,$V1615-4,0)&\"\")","v":""},{"$f":"IF(ISERROR($V1615),\"\",OFFSET('Smelter Look-up'!$E$4,$V1615-4,0))","v":""},{"$f":"IF(C1615=$X$4,\"Enter smelter details\", IF(ISERROR($V1615),\"\",OFFSET('Smelter Look-up'!$F$4,$V1615-4,0)))","v":""},{"$f":"IF(ISERROR($V1615),\"\",OFFSET('Smelter Look-up'!$G$4,$V1615-4,0))","v":""},{"$f":"IF(ISERROR($V1615),\"\",OFFSET('Smelter Look-up'!$H$4,$V1615-4,0))","v":""},{"$f":"IF(ISERROR($V1615),\"\",OFFSET('Smelter Look-up'!$I$4,$V1615-4,0))","v":""},{"$nulls":7},{"$f":"IF(ISERROR($V1615),\"\",OFFSET('Smelter Look-up'!$C$4,$V1615-4,0)&\"\")","v":""},"",{"$f":"IF(B1615=\"\",\"\",IF(ISERROR(MATCH($J1615,SorP!$B$1:$B$6230,0)),\"\",INDIRECT(\"'SorP'!$A$\"&MATCH($J1615,SorP!$B$1:$B$6230,0))))","v":""},null,{"$f":"IF(C1615=\"\",NA(),MATCH($B1615&$C1615,'Smelter Look-up'!$J:$J,0))","v":{"$error":"#N/A"}},null,0,null,null,null,""]
[null,{"$f":"IF(LEN(A1616)=0,\"\",INDEX('Smelter Look-up'!$A:$A,MATCH($A1616,'Smelter Look-up'!$E:$E,0)))","v":""},{"$f":"IF(LEN(A1616)=0,\"\",INDEX('Smelter Look-up'!$C:$C,MATCH($A1616,'Smelter Look-up'!$E:$E,0)))","v":""},null,{"$f":"IF(ISERROR($V1616),\"\",OFFSET('Smelter Look-up'!$D$4,$V1616-4,0)&\"\")","v":""},{"$f":"IF(ISERROR($V1616),\"\",OFFSET('Smelter Look-up'!$E$4,$V1616-4,0))","v":""},{"$f":"IF(C1616=$X$4,\"Enter smelter details\", IF(ISERROR($V1616),\"\",OFFSET('Smelter Look-up'!$F$4,$V1616-4,0)))","v":""},{"$f":"IF(ISERROR($V1616),\"\",OFFSET('Smelter Look-up'!$G$4,$V1616-4,0))","v":""},{"$f":"IF(ISERROR($V1616),\"\",OFFSET('Smelter Look-up'!$H$4,$V1616-4,0))","v":""},{"$f":"IF(ISERROR($V1616),\"\",OFFSET('Smelter Look-up'!$I$4,$V1616-4,0))","v":""},{"$nulls":7},{"$f":"IF(ISERROR($V1616),\"\",OFFSET('Smelter Look-up'!$C$4,$V1616-4,0)&\"\")","v":""},"",{"$f":"IF(B1616=\"\",\"\",IF(ISERROR(MATCH($J1616,SorP!$B$1:$B$6230,0)),\"\",INDIRECT(\"'SorP'!$A$\"&MATCH($J1616,SorP!$B$1:$B$6230,0))))","v":""},null,{"$f":"IF(C1616=\"\",NA(),MATCH($B1616&$C1616,'Smelter Look-up'!$J:$J,0))","v":{"$error":"#N/A"}},null,0,null,null,null,""]
[null,{"$f":"IF(LEN(A1617)=0,\"\",INDEX('Smelter Look-up'!$A:$A,MATCH($A1617,'Smelter Look-up'!$E:$E,0)))","v":""},{"$f":"IF(LEN(A1617)=0,\"\",INDEX('Smelter Look-up'!$C:$C,MATCH($A1617,'Smelter Look-up'!$E:$E,0)))","v":""},null,{"$f":"IF(ISERROR($V1617),\"\",OFFSET('Smelter Look-up'!$D$4,$V1617-4,0)&\"\")","v":""},{"$f":"IF(ISERROR($V1617),\"\",OFFSET('Smelter Look-up'!$E$4,$V1617-4,0))","v":""},{"$f":"IF(C1617=$X$4,\"Enter smelter details\", IF(ISERROR($V1617),\"\",OFFSET('Smelter Look-up'!$F$4,$V1617-4,0)))","v":""},{"$f":"IF(ISERROR($V1617),\"\",OFFSET('Smelter Look-up'!$G$4,$V1617-4,0))","v":""},{"$f":"IF(ISERROR($V1617),\"\",OFFSET('Smelter Look-up'!$H$4,$V1617-4,0))","v":""},{"$f":"IF(ISERROR($V1617),\"\",OFFSET('Smelter Look-up'!$I$4,$V1617-4,0))","v":""},{"$nulls":7},{"$f":"IF(ISERROR($V1617),\"\",OFFSET('Smelter Look-up'!$C$4,$V1617-4,0)&\"\")","v":""},"",{"$f":"IF(B1617=\"\",\"\",IF(ISERROR(MATCH($J1617,SorP!$B$1:$B$6230,0)),\"\",INDIRECT(\"'SorP'!$A$\"&MATCH($J1617,SorP!$B$1:$B$6230,0))))","v":""},null,{"$f":"IF(C1617=\"\",NA(),MATCH($B1617&$C1617,'Smelter Look-up'!$J:$J,0))","v":{"$error":"#N/A"}},null,0,null,null,null,""]
[null,{"$f":"IF(LEN(A1618)=0,\"\",INDEX('Smelter Look-up'!$A:$A,MATCH($A1618,'Smelter Look-up'!$E:$E,0)))","v":""},{"$f":"IF(LEN(A1618)=0,\"\",INDEX('Smelter Look-up'!$C:$C,MATCH($A1618,'Smelter Look-up'!$E:$E,0)))","v":""},null,{"$f":"IF(ISERROR($V1618),\"\",OFFSET('Smelter Look-up'!$D$4,$V1618-4,0)&\"\")","v":""},{"$f":"IF(ISERROR($V1618),\"\",OFFSET('Smelter Look-up'!$E$4,$V1618-4,0))","v":""},{"$f":"IF(C1618=$X$4,\"Enter smelter details\", IF(ISERROR($V1618),\"\",OFFSET('Smelter Look-up'!$F$4,$V1618-4,0)))","v":""},{"$f":"IF(ISERROR($V1618),\"\",OFFSET('Smelter Look-up'!$G$4,$V1618-4,0))","v":""},{"$f":"IF(ISERROR($V1618),\"\",OFFSET('Smelter Look-up'!$H$4,$V1618-4,0))","v":""},{"$f":"IF(ISERROR($V1618),\"\",OFFSET('Smelter Look-up'!$I$4,$V1618-4,0))","v":""},{"$nulls":7},{"$f":"IF(ISERROR($V1618),\"\",OFFSET('Smelter Look-up'!$C$4,$V1618-4,0)&\"\")","v":""},"",{"$f":"IF(B1618=\"\",\"\",IF(ISERROR(MATCH($J1618,SorP!$B$1:$B$6230,0)),\"\",INDIRECT(\"'SorP'!$A$\"&MATCH($J1618,SorP!$B$1:$B$6230,0))))","v":""},null,{"$f":"IF(C1618=\"\",NA(),MATCH($B1618&$C1618,'Smelter Look-up'!$J:$J,0))","v":{"$error":"#N/A"}},null,0,null,null,null,""]
[null,{"$f":"IF(LEN(A1619)=0,\"\",INDEX('Smelter Look-up'!$A:$A,MATCH($A1619,'Smelter Look-up'!$E:$E,0)))","v":""},{"$f":"IF(LEN(A1619)=0,\"\",INDEX('Smelter Look-up'!$C:$C,MATCH($A1619,'Smelter Look-up'!$E:$E,0)))","v":""},null,{"$f":"IF(ISERROR($V1619),\"\",OFFSET('Smelter Look-up'!$D$4,$V1619-4,0)&\"\")","v":""},{"$f":"IF(ISERROR($V1619),\"\",OFFSET('Smelter Look-up'!$E$4,$V1619-4,0))","v":""},{"$f":"IF(C1619=$X$4,\"Enter smelter details\", IF(ISERROR($V1619),\"\",OFFSET('Smelter Look-up'!$F$4,$V1619-4,0)))","v":""},{"$f":"IF(ISERROR($V1619),\"\",OFFSET('Smelter Look-up'!$G$4,$V1619-4,0))","v":""},{"$f":"IF(ISERROR($V1619),\"\",OFFSET('Smelter Look-up'!$H$4,$V1619-4,0))","v":""},{"$f":"IF(ISERROR($V1619),\"\",OFFSET('Smelter Look-up'!$I$4,$V1619-4,0))","v":""},{"$nulls":7},{"$f":"IF(ISERROR($V1619),\"\",OFFSET('Smelter Look-up'!$C$4,$V1619-4,0)&\"\")","v":""},"",{"$f":"IF(B1619=\"\",\"\",IF(ISERROR(MATCH($J1619,SorP!$B$1:$B$6230,0)),\"\",INDIRECT(\"'SorP'!$A$\"&MATCH($J1619,SorP!$B$1:$B$6230,0))))","v":""},null,{"$f":"IF(C1619=\"\",NA(),MATCH($B1619&$C1619,'Smelter Look-up'!$J:$J,0))","v":{"$error":"#N/A"}},null,0,null,null,null,""]
[null,{"$f":"IF(LEN(A1620)=0,\"\",INDEX('Smelter Look-up'!$A:$A,MATCH($A1620,'Smelter Look-up'!$E:$E,0)))","v":""},{"$f":"IF(LEN(A1620)=0,\"\",INDEX('Smelter Look-up'!$C:$C,MATCH($A1620,'Smelter Look-up'!$E:$E,0)))","v":""},null,{"$f":"IF(ISERROR($V1620),\"\",OFFSET('Smelter Look-up'!$D$4,$V1620-4,0)&\"\")","v":""},{"$f":"IF(ISERROR($V1620),\"\",OFFSET('Smelter Look-up'!$E$4,$V1620-4,0))","v":""},{"$f":"IF(C1620=$X$4,\"Enter smelter details\", IF(ISERROR($V1620),\"\",OFFSET('Smelter Look-up'!$F$4,$V1620-4,0)))","v":""},{"$f":"IF(ISERROR($V1620),\"\",OFFSET('Smelter Look-up'!$G$4,$V1620-4,0))","v":""},{"$f":"IF(ISERROR($V1620),\"\",OFFSET('Smelter Look-up'!$H$4,$V1620-4,0))","v":""},{"$f":"IF(ISERROR($V1620),\"\",OFFSET('Smelter Look-up'!$I$4,$V1620-4,0))","v":""},{"$nulls":7},{"$f":"IF(ISERROR($V1620),\"\",OFFSET('Smelter Look-up'!$C$4,$V1620-4,0)&\"\")","v":""},"",{"$f":"IF(B1620=\"\",\"\",IF(ISERROR(MATCH($J1620,SorP!$B$1:$B$6230,0)),\"\",INDIRECT(\"'SorP'!$A$\"&MATCH($J1620,SorP!$B$1:$B$6230,0))))","v":""},null,{"$f":"IF(C1620=\"\",NA(),MATCH($B1620&$C1620,'Smelter Look-up'!$J:$J,0))","v":{"$error":"#N/A"}},null,0,null,null,null,""]
[null,{"$f":"IF(LEN(A1621)=0,\"\",INDEX('Smelter Look-up'!$A:$A,MATCH($A1621,'Smelter Look-up'!$E:$E,0)))","v":""},{"$f":"IF(LEN(A1621)=0,\"\",INDEX('Smelter Look-up'!$C:$C,MATCH($A1621,'Smelter Look-up'!$E:$E,0)))","v":""},null,{"$f":"IF(ISERROR($V1621),\"\",OFFSET('Smelter Look-up'!$D$4,$V1621-4,0)&\"\")","v":""},{"$f":"IF(ISERROR($V1621),\"\",OFFSET('Smelter Look-up'!$E$4,$V1621-4,0))","v":""},{"$f":"IF(C1621=$X$4,\"Enter smelter details\", IF(ISERROR($V1621),\"\",OFFSET('Smelter Look-up'!$F$4,$V1621-4,0)))","v":""},{"$f":"IF(ISERROR($V1621),\"\",OFFSET('Smelter Look-up'!$G$4,$V1621-4,0))","v":""},{"$f":"IF(ISERROR($V1621),\"\",OFFSET('Smelter Look-up'!$H$4,$V1621-4,0))","v":""},{"$f":"IF(ISERROR($V1621),\"\",OFFSET('Smelter Look-up'!$I$4,$V1621-4,0))","v":""},{"$nulls":7},{"$f":"IF(ISERROR($V1621),\"\",OFFSET('Smelter Look-up'!$C$4,$V1621-4,0)&\"\")","v":""},"",{"$f":"IF(B1621=\"\",\"\",IF(ISERROR(MATCH($J1621,SorP!$B$1:$B$6230,0)),\"\",INDIRECT(\"'SorP'!$A$\"&MATCH($J1621,SorP!$B$1:$B$6230,0))))","v":""},null,{"$f":"IF(C1621=\"\",NA(),MATCH($B1621&$C1621,'Smelter Look-up'!$J:$J,0))","v":{"$error":"#N/A"}},null,0,null,null,null,""]
[null,{"$f":"IF(LEN(A1622)=0,\"\",INDEX('Smelter Look-up'!$A:$A,MATCH($A1622,'Smelter Look-up'!$E:$E,0)))","v":""},{"$f":"IF(LEN(A1622)=0,\"\",INDEX('Smelter Look-up'!$C:$C,MATCH($A1622,'Smelter Look-up'!$E:$E,0)))","v":""},null,{"$f":"IF(ISERROR($V1622),\"\",OFFSET('Smelter Look-up'!$D$4,$V1622-4,0)&\"\")","v":""},{"$f":"IF(ISERROR($V1622),\"\",OFFSET('Smelter Look-up'!$E$4,$V1622-4,0))","v":""},{"$f":"IF(C1622=$X$4,\"Enter smelter details\", IF(ISERROR($V1622),\"\",OFFSET('Smelter Look-up'!$F$4,$V1622-4,0)))","v":""},{"$f":"IF(ISERROR($V1622),\"\",OFFSET('Smelter Look-up'!$G$4,$V1622-4,0))","v":""},{"$f":"IF(ISERROR($V1622),\"\",OFFSET('Smelter Look-up'!$H$4,$V1622-4,0))","v":""},{"$f":"IF(ISERROR($V1622),\"\",OFFSET('Smelter Look-up'!$I$4,$V1622-4,0))","v":""},{"$nulls":7},{"$f":"IF(ISERROR($V1622),\"\",OFFSET('Smelter Look-up'!$C$4,$V1622-4,0)&\"\")","v":""},"",{"$f":"IF(B1622=\"\",\"\",IF(ISERROR(MATCH($J1622,SorP!$B$1:$B$6230,0)),\"\",INDIRECT(\"'SorP'!$A$\"&MATCH($J1622,SorP!$B$1:$B$6230,0))))","v":""},null,{"$f":"IF(C1622=\"\",NA(),MATCH($B1622&$C1622,'Smelter Look-up'!$J:$J,0))","v":{"$error":"#N/A"}},null,0,null,null,null,""]
[null,{"$f":"IF(LEN(A1623)=0,\"\",INDEX('Smelter Look-up'!$A:$A,MATCH($A1623,'Smelter Look-up'!$E:$E,0)))","v":""},{"$f":"IF(LEN(A1623)=0,\"\",INDEX('Smelter Look-up'!$C:$C,MATCH($A1623,'Smelter Look-up'!$E:$E,0)))","v":""},null,{"$f":"IF(ISERROR($V1623),\"\",OFFSET('Smelter Look-up'!$D$4,$V1623-4,0)&\"\")","v":""},{"$f":"IF(ISERROR($V1623),\"\",OFFSET('Smelter Look-up'!$E$4,$V1623-4,0))","v":""},{"$f":"IF(C1623=$X$4,\"Enter smelter details\", IF(ISERROR($V1623),\"\",OFFSET('Smelter Look-up'!$F$4,$V1623-4,0)))","v":""},{"$f":"IF(ISERROR($V1623),\"\",OFFSET('Smelter Look-up'!$G$4,$V1623-4,0))","v":""},{"$f":"IF(ISERROR($V1623),\"\",OFFSET('Smelter Look-up'!$H$4,$V1623-4,0))","v":""},{"$f":"IF(ISERROR($V1623),\"\",OFFSET('Smelter Look-up'!$I$4,$V1623-4,0))","v":""},{"$nulls":7},{"$f":"IF(ISERROR($V1623),\"\",OFFSET('Smelter Look-up'!$C$4,$V1623-4,0)&\"\")","v":""},"",{"$f":"IF(B1623=\"\",\"\",IF(ISERROR(MATCH($J1623,SorP!$B$1:$B$6230,0)),\"\",INDIRECT(\"'SorP'!$A$\"&MATCH($J1623,SorP!$B$1:$B$6230,0))))","v":""},null,{"$f":"IF(C1623=\"\",NA(),MATCH($B1623&$C1623,'Smelter Look-up'!$J:$J,0))","v":{"$error":"#N/A"}},null,0,null,null,null,""]
[null,{"$f":"IF(LEN(A1624)=0,\"\",INDEX('Smelter Look-up'!$A:$A,MATCH($A1624,'Smelter Look-up'!$E:$E,0)))","v":""},{"$f":"IF(LEN(A1624)=0,\"\",INDEX('Smelter Look-up'!$C:$C,MATCH($A1624,'Smelter Look-up'!$E:$E,0)))","v":""},null,{"$f":"IF(ISERROR($V1624),\"\",OFFSET('Smelter Look-up'!$D$4,$V1624-4,0)&\"\")","v":""},{"$f":"IF(ISERROR($V1624),\"\",OFFSET('Smelter Look-up'!$E$4,$V1624-4,0))","v":""},{"$f":"IF(C1624=$X$4,\"Enter smelter details\", IF(ISERROR($V1624),\"\",OFFSET('Smelter Look-up'!$F$4,$V1624-4,0)))","v":""},{"$f":"IF(ISERROR($V1624),\"\",OFFSET('Smelter Look-up'!$G$4,$V1624-4,0))","v":""},{"$f":"IF(ISERROR($V1624),\"\",OFFSET('Smelter Look-up'!$H$4,$V1624-4,0))","v":""},{"$f":"IF(ISERROR($V1624),\"\",OFFSET('Smelter Look-up'!$I$4,$V1624-4,0))","v":""},{"$nulls":7},{"$f":"IF(ISERROR($V1624),\"\",OFFSET('Smelter Look-up'!$C$4,$V1624-4,0)&\"\")","v":""},"",{"$f":"IF(B1624=\"\",\"\",IF(ISERROR(MATCH($J1624,SorP!$B$1:$B$6230,0)),\"\",INDIRECT(\"'SorP'!$A$\"&MATCH($J1624,SorP!$B$1:$B$6230,0))))","v":""},null,{"$f":"IF(C1624=\"\",NA(),MATCH($B1624&$C1624,'Smelter Look-up'!$J:$J,0))","v":{"$error":"#N/A"}},null,0,null,null,null,""]
[null,{"$f":"IF(LEN(A1625)=0,\"\",INDEX('Smelter Look-up'!$A:$A,MATCH($A1625,'Smelter Look-up'!$E:$E,0)))","v":""},{"$f":"IF(LEN(A1625)=0,\"\",INDEX('Smelter Look-up'!$C:$C,MATCH($A1625,'Smelter Look-up'!$E:$E,0)))","v":""},null,{"$f":"IF(ISERROR($V1625),\"\",OFFSET('Smelter Look-up'!$D$4,$V1625-4,0)&\"\")","v":""},{"$f":"IF(ISERROR($V1625),\"\",OFFSET('Smelter Look-up'!$E$4,$V1625-4,0))","v":""},{"$f":"IF(C1625=$X$4,\"Enter smelter details\", IF(ISERROR($V1625),\"\",OFFSET('Smelter Look-up'!$F$4,$V1625-4,0)))","v":""},{"$f":"IF(ISERROR($V1625),\"\",OFFSET('Smelter Look-up'!$G$4,$V1625-4,0))","v":""},{"$f":"IF(ISERROR($V1625),\"\",OFFSET('Smelter Look-up'!$H$4,$V1625-4,0))","v":""},{"$f":"IF(ISERROR($V1625),\"\",OFFSET('Smelter Look-up'!$I$4,$V1625-4,0))","v":""},{"$nulls":7},{"$f":"IF(ISERROR($V1625),\"\",OFFSET('Smelter Look-up'!$C$4,$V1625-4,0)&\"\")","v":""},"",{"$f":"IF(B1625=\"\",\"\",IF(ISERROR(MATCH($J1625,SorP!$B$1:$B$6230,0)),\"\",INDIRECT(\"'SorP'!$A$\"&MATCH($J1625,SorP!$B$1:$B$6230,0))))","v":""},null,{"$f":"IF(C1625=\"\",NA(),MATCH($B1625&$C1625,'Smelter Look-up'!$J:$J,0))","v":{"$error":"#N/A"}},null,0,null,null,null,""]
[null,{"$f":"IF(LEN(A1626)=0,\"\",INDEX('Smelter Look-up'!$A:$A,MATCH($A1626,'Smelter Look-up'!$E:$E,0)))","v":""},{"$f":"IF(LEN(A1626)=0,\"\",INDEX('Smelter Look-up'!$C:$C,MATCH($A1626,'Smelter Look-up'!$E:$E,0)))","v":""},null,{"$f":"IF(ISERROR($V1626),\"\",OFFSET('Smelter Look-up'!$D$4,$V1626-4,0)&\"\")","v":""},{"$f":"IF(ISERROR($V1626),\"\",OFFSET('Smelter Look-up'!$E$4,$V1626-4,0))","v":""},{"$f":"IF(C1626=$X$4,\"Enter smelter details\", IF(ISERROR($V1626),\"\",OFFSET('Smelter Look-up'!$F$4,$V1626-4,0)))","v":""},{"$f":"IF(ISERROR($V1626),\"\",OFFSET('Smelter Look-up'!$G$4,$V1626-4,0))","v":""},{"$f":"IF(ISERROR($V1626),\"\",OFFSET('Smelter Look-up'!$H$4,$V1626-4,0))","v":""},{"$f":"IF(ISERROR($V1626),\"\",OFFSET('Smelter Look-up'!$I$4,$V1626-4,0))","v":""},{"$nulls":7},{"$f":"IF(ISERROR($V1626),\"\",OFFSET('Smelter Look-up'!$C$4,$V1626-4,0)&\"\")","v":""},"",{"$f":"IF(B1626=\"\",\"\",IF(ISERROR(MATCH($J1626,SorP!$B$1:$B$6230,0)),\"\",INDIRECT(\"'SorP'!$A$\"&MATCH($J1626,SorP!$B$1:$B$6230,0))))","v":""},null,{"$f":"IF(C1626=\"\",NA(),MATCH($B1626&$C1626,'Smelter Look-up'!$J:$J,0))","v":{"$error":"#N/A"}},null,0,null,null,null,""]
[null,{"$f":"IF(LEN(A1627)=0,\"\",INDEX('Smelter Look-up'!$A:$A,MATCH($A1627,'Smelter Look-up'!$E:$E,0)))","v":""},{"$f":"IF(LEN(A1627)=0,\"\",INDEX('Smelter Look-up'!$C:$C,MATCH($A1627,'Smelter Look-up'!$E:$E,0)))","v":""},null,{"$f":"IF(ISERROR($V1627),\"\",OFFSET('Smelter Look-up'!$D$4,$V1627-4,0)&\"\")","v":""},{"$f":"IF(ISERROR($V1627),\"\",OFFSET('Smelter Look-up'!$E$4,$V1627-4,0))","v":""},{"$f":"IF(C1627=$X$4,\"Enter smelter details\", IF(ISERROR($V1627),\"\",OFFSET('Smelter Look-up'!$F$4,$V1627-4,0)))","v":""},{"$f":"IF(ISERROR($V1627),\"\",OFFSET('Smelter Look-up'!$G$4,$V1627-4,0))","v":""},{"$f":"IF(ISERROR($V1627),\"\",OFFSET('Smelter Look-up'!$H$4,$V1627-4,0))","v":""},{"$f":"IF(ISERROR($V1627),\"\",OFFSET('Smelter Look-up'!$I$4,$V1627-4,0))","v":""},{"$nulls":7},{"$f":"IF(ISERROR($V1627),\"\",OFFSET('Smelter Look-up'!$C$4,$V1627-4,0)&\"\")","v":""},"",{"$f":"IF(B1627=\"\",\"\",IF(ISERROR(MATCH($J1627,SorP!$B$1:$B$6230,0)),\"\",INDIRECT(\"'SorP'!$A$\"&MATCH($J1627,SorP!$B$1:$B$6230,0))))","v":""},null,{"$f":"IF(C1627=\"\",NA(),MATCH($B1627&$C1627,'Smelter Look-up'!$J:$J,0))","v":{"$error":"#N/A"}},null,0,null,null,null,""]
[null,{"$f":"IF(LEN(A1628)=0,\"\",INDEX('Smelter Look-up'!$A:$A,MATCH($A1628,'Smelter Look-up'!$E:$E,0)))","v":""},{"$f":"IF(LEN(A1628)=0,\"\",INDEX('Smelter Look-up'!$C:$C,MATCH($A1628,'Smelter Look-up'!$E:$E,0)))","v":""},null,{"$f":"IF(ISERROR($V1628),\"\",OFFSET('Smelter Look-up'!$D$4,$V1628-4,0)&\"\")","v":""},{"$f":"IF(ISERROR($V1628),\"\",OFFSET('Smelter Look-up'!$E$4,$V1628-4,0))","v":""},{"$f":"IF(C1628=$X$4,\"Enter smelter details\", IF(ISERROR($V1628),\"\",OFFSET('Smelter Look-up'!$F$4,$V1628-4,0)))","v":""},{"$f":"IF(ISERROR($V1628),\"\",OFFSET('Smelter Look-up'!$G$4,$V1628-4,0))","v":""},{"$f":"IF(ISERROR($V1628),\"\",OFFSET('Smelter Look-up'!$H$4,$V1628-4,0))","v":""},{"$f":"IF(ISERROR($V1628),\"\",OFFSET('Smelter Look-up'!$I$4,$V1628-4,0))","v":""},{"$nulls":7},{"$f":"IF(ISERROR($V1628),\"\",OFFSET('Smelter Look-up'!$C$4,$V1628-4,0)&\"\")","v":""},"",{"$f":"IF(B1628=\"\",\"\",IF(ISERROR(MATCH($J1628,SorP!$B$1:$B$6230,0)),\"\",INDIRECT(\"'SorP'!$A$\"&MATCH($J1628,SorP!$B$1:$B$6230,0))))","v":""},null,{"$f":"IF(C1628=\"\",NA(),MATCH($B1628&$C1628,'Smelter Look-up'!$J:$J,0))","v":{"$error":"#N/A"}},null,0,null,null,null,""]
[null,{"$f":"IF(LEN(A1629)=0,\"\",INDEX('Smelter Look-up'!$A:$A,MATCH($A1629,'Smelter Look-up'!$E:$E,0)))","v":""},{"$f":"IF(LEN(A1629)=0,\"\",INDEX('Smelter Look-up'!$C:$C,MATCH($A1629,'Smelter Look-up'!$E:$E,0)))","v":""},null,{"$f":"IF(ISERROR($V1629),\"\",OFFSET('Smelter Look-up'!$D$4,$V1629-4,0)&\"\")","v":""},{"$f":"IF(ISERROR($V1629),\"\",OFFSET('Smelter Look-up'!$E$4,$V1629-4,0))","v":""},{"$f":"IF(C1629=$X$4,\"Enter smelter details\", IF(ISERROR($V1629),\"\",OFFSET('Smelter Look-up'!$F$4,$V1629-4,0)))","v":""},{"$f":"IF(ISERROR($V1629),\"\",OFFSET('Smelter Look-up'!$G$4,$V1629-4,0))","v":""},{"$f":"IF(ISERROR($V1629),\"\",OFFSET('Smelter Look-up'!$H$4,$V1629-4,0))","v":""},{"$f":"IF(ISERROR($V1629),\"\",OFFSET('Smelter Look-up'!$I$4,$V1629-4,0))","v":""},{"$nulls":7},{"$f":"IF(ISERROR($V1629),\"\",OFFSET('Smelter Look-up'!$C$4,$V1629-4,0)&\"\")","v":""},"",{"$f":"IF(B1629=\"\",\"\",IF(ISERROR(MATCH($J1629,SorP!$B$1:$B$6230,0)),\"\",INDIRECT(\"'SorP'!$A$\"&MATCH($J1629,SorP!$B$1:$B$6230,0))))","v":""},null,{"$f":"IF(C1629=\"\",NA(),MATCH($B1629&$C1629,'Smelter Look-up'!$J:$J,0))","v":{"$error":"#N/A"}},null,0,null,null,null,""]
[null,{"$f":"IF(LEN(A1630)=0,\"\",INDEX('Smelter Look-up'!$A:$A,MATCH($A1630,'Smelter Look-up'!$E:$E,0)))","v":""},{"$f":"IF(LEN(A1630)=0,\"\",INDEX('Smelter Look-up'!$C:$C,MATCH($A1630,'Smelter Look-up'!$E:$E,0)))","v":""},null,{"$f":"IF(ISERROR($V1630),\"\",OFFSET('Smelter Look-up'!$D$4,$V1630-4,0)&\"\")","v":""},{"$f":"IF(ISERROR($V1630),\"\",OFFSET('Smelter Look-up'!$E$4,$V1630-4,0))","v":""},{"$f":"IF(C1630=$X$4,\"Enter smelter details\", IF(ISERROR($V1630),\"\",OFFSET('Smelter Look-up'!$F$4,$V1630-4,0)))","v":""},{"$f":"IF(ISERROR($V1630),\"\",OFFSET('Smelter Look-up'!$G$4,$V1630-4,0))","v":""},{"$f":"IF(ISERROR($V1630),\"\",OFFSET('Smelter Look-up'!$H$4,$V1630-4,0))","v":""},{"$f":"IF(ISERROR($V1630),\"\",OFFSET('Smelter Look-up'!$I$4,$V1630-4,0))","v":""},{"$nulls":7},{"$f":"IF(ISERROR($V1630),\"\",OFFSET('Smelter Look-up'!$C$4,$V1630-4,0)&\"\")","v":""},"",{"$f":"IF(B1630=\"\",\"\",IF(ISERROR(MATCH($J1630,SorP!$B$1:$B$6230,0)),\"\",INDIRECT(\"'SorP'!$A$\"&MATCH($J1630,SorP!$B$1:$B$6230,0))))","v":""},null,{"$f":"IF(C1630=\"\",NA(),MATCH($B1630&$C1630,'Smelter Look-up'!$J:$J,0))","v":{"$error":"#N/A"}},null,0,null,null,null,""]
[null,{"$f":"IF(LEN(A1631)=0,\"\",INDEX('Smelter Look-up'!$A:$A,MATCH($A1631,'Smelter Look-up'!$E:$E,0)))","v":""},{"$f":"IF(LEN(A1631)=0,\"\",INDEX('Smelter Look-up'!$C:$C,MATCH($A1631,'Smelter Look-up'!$E:$E,0)))","v":""},null,{"$f":"IF(ISERROR($V1631),\"\",OFFSET('Smelter Look-up'!$D$4,$V1631-4,0)&\"\")","v":""},{"$f":"IF(ISERROR($V1631),\"\",OFFSET('Smelter Look-up'!$E$4,$V1631-4,0))","v":""},{"$f":"IF(C1631=$X$4,\"Enter smelter details\", IF(ISERROR($V1631),\"\",OFFSET('Smelter Look-up'!$F$4,$V1631-4,0)))","v":""},{"$f":"IF(ISERROR($V1631),\"\",OFFSET('Smelter Look-up'!$G$4,$V1631-4,0))","v":""},{"$f":"IF(ISERROR($V1631),\"\",OFFSET('Smelter Look-up'!$H$4,$V1631-4,0))","v":""},{"$f":"IF(ISERROR($V1631),\"\",OFFSET('Smelter Look-up'!$I$4,$V1631-4,0))","v":""},{"$nulls":7},{"$f":"IF(ISERROR($V1631),\"\",OFFSET('Smelter Look-up'!$C$4,$V1631-4,0)&\"\")","v":""},"",{"$f":"IF(B1631=\"\",\"\",IF(ISERROR(MATCH($J1631,SorP!$B$1:$B$6230,0)),\"\",INDIRECT(\"'SorP'!$A$\"&MATCH($J1631,SorP!$B$1:$B$6230,0))))","v":""},null,{"$f":"IF(C1631=\"\",NA(),MATCH($B1631&$C1631,'Smelter Look-up'!$J:$J,0))","v":{"$error":"#N/A"}},null,0,null,null,null,""]
[null,{"$f":"IF(LEN(A1632)=0,\"\",INDEX('Smelter Look-up'!$A:$A,MATCH($A1632,'Smelter Look-up'!$E:$E,0)))","v":""},{"$f":"IF(LEN(A1632)=0,\"\",INDEX('Smelter Look-up'!$C:$C,MATCH($A1632,'Smelter Look-up'!$E:$E,0)))","v":""},null,{"$f":"IF(ISERROR($V1632),\"\",OFFSET('Smelter Look-up'!$D$4,$V1632-4,0)&\"\")","v":""},{"$f":"IF(ISERROR($V1632),\"\",OFFSET('Smelter Look-up'!$E$4,$V1632-4,0))","v":""},{"$f":"IF(C1632=$X$4,\"Enter smelter details\", IF(ISERROR($V1632),\"\",OFFSET('Smelter Look-up'!$F$4,$V1632-4,0)))","v":""},{"$f":"IF(ISERROR($V1632),\"\",OFFSET('Smelter Look-up'!$G$4,$V1632-4,0))","v":""},{"$f":"IF(ISERROR($V1632),\"\",OFFSET('Smelter Look-up'!$H$4,$V1632-4,0))","v":""},{"$f":"IF(ISERROR($V1632),\"\",OFFSET('Smelter Look-up'!$I$4,$V1632-4,0))","v":""},{"$nulls":7},{"$f":"IF(ISERROR($V1632),\"\",OFFSET('Smelter Look-up'!$C$4,$V1632-4,0)&\"\")","v":""},"",{"$f":"IF(B1632=\"\",\"\",IF(ISERROR(MATCH($J1632,SorP!$B$1:$B$6230,0)),\"\",INDIRECT(\"'SorP'!$A$\"&MATCH($J1632,SorP!$B$1:$B$6230,0))))","v":""},null,{"$f":"IF(C1632=\"\",NA(),MATCH($B1632&$C1632,'Smelter Look-up'!$J:$J,0))","v":{"$error":"#N/A"}},null,0,null,null,null,""]
[null,{"$f":"IF(LEN(A1633)=0,\"\",INDEX('Smelter Look-up'!$A:$A,MATCH($A1633,'Smelter Look-up'!$E:$E,0)))","v":""},{"$f":"IF(LEN(A1633)=0,\"\",INDEX('Smelter Look-up'!$C:$C,MATCH($A1633,'Smelter Look-up'!$E:$E,0)))","v":""},null,{"$f":"IF(ISERROR($V1633),\"\",OFFSET('Smelter Look-up'!$D$4,$V1633-4,0)&\"\")","v":""},{"$f":"IF(ISERROR($V1633),\"\",OFFSET('Smelter Look-up'!$E$4,$V1633-4,0))","v":""},{"$f":"IF(C1633=$X$4,\"Enter smelter details\", IF(ISERROR($V1633),\"\",OFFSET('Smelter Look-up'!$F$4,$V1633-4,0)))","v":""},{"$f":"IF(ISERROR($V1633),\"\",OFFSET('Smelter Look-up'!$G$4,$V1633-4,0))","v":""},{"$f":"IF(ISERROR($V1633),\"\",OFFSET('Smelter Look-up'!$H$4,$V1633-4,0))","v":""},{"$f":"IF(ISERROR($V1633),\"\",OFFSET('Smelter Look-up'!$I$4,$V1633-4,0))","v":""},{"$nulls":7},{"$f":"IF(ISERROR($V1633),\"\",OFFSET('Smelter Look-up'!$C$4,$V1633-4,0)&\"\")","v":""},"",{"$f":"IF(B1633=\"\",\"\",IF(ISERROR(MATCH($J1633,SorP!$B$1:$B$6230,0)),\"\",INDIRECT(\"'SorP'!$A$\"&MATCH($J1633,SorP!$B$1:$B$6230,0))))","v":""},null,{"$f":"IF(C1633=\"\",NA(),MATCH($B1633&$C1633,'Smelter Look-up'!$J:$J,0))","v":{"$error":"#N/A"}},null,0,null,null,null,""]
[null,{"$f":"IF(LEN(A1634)=0,\"\",INDEX('Smelter Look-up'!$A:$A,MATCH($A1634,'Smelter Look-up'!$E:$E,0)))","v":""},{"$f":"IF(LEN(A1634)=0,\"\",INDEX('Smelter Look-up'!$C:$C,MATCH($A1634,'Smelter Look-up'!$E:$E,0)))","v":""},null,{"$f":"IF(ISERROR($V1634),\"\",OFFSET('Smelter Look-up'!$D$4,$V1634-4,0)&\"\")","v":""},{"$f":"IF(ISERROR($V1634),\"\",OFFSET('Smelter Look-up'!$E$4,$V1634-4,0))","v":""},{"$f":"IF(C1634=$X$4,\"Enter smelter details\", IF(ISERROR($V1634),\"\",OFFSET('Smelter Look-up'!$F$4,$V1634-4,0)))","v":""},{"$f":"IF(ISERROR($V1634),\"\",OFFSET('Smelter Look-up'!$G$4,$V1634-4,0))","v":""},{"$f":"IF(ISERROR($V1634),\"\",OFFSET('Smelter Look-up'!$H$4,$V1634-4,0))","v":""},{"$f":"IF(ISERROR($V1634),\"\",OFFSET('Smelter Look-up'!$I$4,$V1634-4,0))","v":""},{"$nulls":7},{"$f":"IF(ISERROR($V1634),\"\",OFFSET('Smelter Look-up'!$C$4,$V1634-4,0)&\"\")","v":""},"",{"$f":"IF(B1634=\"\",\"\",IF(ISERROR(MATCH($J1634,SorP!$B$1:$B$6230,0)),\"\",INDIRECT(\"'SorP'!$A$\"&MATCH($J1634,SorP!$B$1:$B$6230,0))))","v":""},null,{"$f":"IF(C1634=\"\",NA(),MATCH($B1634&$C1634,'Smelter Look-up'!$J:$J,0))","v":{"$error":"#N/A"}},null,0,null,null,null,""]
[null,{"$f":"IF(LEN(A1635)=0,\"\",INDEX('Smelter Look-up'!$A:$A,MATCH($A1635,'Smelter Look-up'!$E:$E,0)))","v":""},{"$f":"IF(LEN(A1635)=0,\"\",INDEX('Smelter Look-up'!$C:$C,MATCH($A1635,'Smelter Look-up'!$E:$E,0)))","v":""},null,{"$f":"IF(ISERROR($V1635),\"\",OFFSET('Smelter Look-up'!$D$4,$V1635-4,0)&\"\")","v":""},{"$f":"IF(ISERROR($V1635),\"\",OFFSET('Smelter Look-up'!$E$4,$V1635-4,0))","v":""},{"$f":"IF(C1635=$X$4,\"Enter smelter details\", IF(ISERROR($V1635),\"\",OFFSET('Smelter Look-up'!$F$4,$V1635-4,0)))","v":""},{"$f":"IF(ISERROR($V1635),\"\",OFFSET('Smelter Look-up'!$G$4,$V1635-4,0))","v":""},{"$f":"IF(ISERROR($V1635),\"\",OFFSET('Smelter Look-up'!$H$4,$V1635-4,0))","v":""},{"$f":"IF(ISERROR($V1635),\"\",OFFSET('Smelter Look-up'!$I$4,$V1635-4,0))","v":""},{"$nulls":7},{"$f":"IF(ISERROR($V1635),\"\",OFFSET('Smelter Look-up'!$C$4,$V1635-4,0)&\"\")","v":""},"",{"$f":"IF(B1635=\"\",\"\",IF(ISERROR(MATCH($J1635,SorP!$B$1:$B$6230,0)),\"\",INDIRECT(\"'SorP'!$A$\"&MATCH($J1635,SorP!$B$1:$B$6230,0))))","v":""},null,{"$f":"IF(C1635=\"\",NA(),MATCH($B1635&$C1635,'Smelter Look-up'!$J:$J,0))","v":{"$error":"#N/A"}},null,0,null,null,null,""]
[null,{"$f":"IF(LEN(A1636)=0,\"\",INDEX('Smelter Look-up'!$A:$A,MATCH($A1636,'Smelter Look-up'!$E:$E,0)))","v":""},{"$f":"IF(LEN(A1636)=0,\"\",INDEX('Smelter Look-up'!$C:$C,MATCH($A1636,'Smelter Look-up'!$E:$E,0)))","v":""},null,{"$f":"IF(ISERROR($V1636),\"\",OFFSET('Smelter Look-up'!$D$4,$V1636-4,0)&\"\")","v":""},{"$f":"IF(ISERROR($V1636),\"\",OFFSET('Smelter Look-up'!$E$4,$V1636-4,0))","v":""},{"$f":"IF(C1636=$X$4,\"Enter smelter details\", IF(ISERROR($V1636),\"\",OFFSET('Smelter Look-up'!$F$4,$V1636-4,0)))","v":""},{"$f":"IF(ISERROR($V1636),\"\",OFFSET('Smelter Look-up'!$G$4,$V1636-4,0))","v":""},{"$f":"IF(ISERROR($V1636),\"\",OFFSET('Smelter Look-up'!$H$4,$V1636-4,0))","v":""},{"$f":"IF(ISERROR($V1636),\"\",OFFSET('Smelter Look-up'!$I$4,$V1636-4,0))","v":""},{"$nulls":7},{"$f":"IF(ISERROR($V1636),\"\",OFFSET('Smelter Look-up'!$C$4,$V1636-4,0)&\"\")","v":""},"",{"$f":"IF(B1636=\"\",\"\",IF(ISERROR(MATCH($J1636,SorP!$B$1:$B$6230,0)),\"\",INDIRECT(\"'SorP'!$A$\"&MATCH($J1636,SorP!$B$1:$B$6230,0))))","v":""},null,{"$f":"IF(C1636=\"\",NA(),MATCH($B1636&$C1636,'Smelter Look-up'!$J:$J,0))","v":{"$error":"#N/A"}},null,0,null,null,null,""]
[null,{"$f":"IF(LEN(A1637)=0,\"\",INDEX('Smelter Look-up'!$A:$A,MATCH($A1637,'Smelter Look-up'!$E:$E,0)))","v":""},{"$f":"IF(LEN(A1637)=0,\"\",INDEX('Smelter Look-up'!$C:$C,MATCH($A1637,'Smelter Look-up'!$E:$E,0)))","v":""},null,{"$f":"IF(ISERROR($V1637),\"\",OFFSET('Smelter Look-up'!$D$4,$V1637-4,0)&\"\")","v":""},{"$f":"IF(ISERROR($V1637),\"\",OFFSET('Smelter Look-up'!$E$4,$V1637-4,0))","v":""},{"$f":"IF(C1637=$X$4,\"Enter smelter details\", IF(ISERROR($V1637),\"\",OFFSET('Smelter Look-up'!$F$4,$V1637-4,0)))","v":""},{"$f":"IF(ISERROR($V1637),\"\",OFFSET('Smelter Look-up'!$G$4,$V1637-4,0))","v":""},{"$f":"IF(ISERROR($V1637),\"\",OFFSET('Smelter Look-up'!$H$4,$V1637-4,0))","v":""},{"$f":"IF(ISERROR($V1637),\"\",OFFSET('Smelter Look-up'!$I$4,$V1637-4,0))","v":""},{"$nulls":7},{"$f":"IF(ISERROR($V1637),\"\",OFFSET('Smelter Look-up'!$C$4,$V1637-4,0)&\"\")","v":""},"",{"$f":"IF(B1637=\"\",\"\",IF(ISERROR(MATCH($J1637,SorP!$B$1:$B$6230,0)),\"\",INDIRECT(\"'SorP'!$A$\"&MATCH($J1637,SorP!$B$1:$B$6230,0))))","v":""},null,{"$f":"IF(C1637=\"\",NA(),MATCH($B1637&$C1637,'Smelter Look-up'!$J:$J,0))","v":{"$error":"#N/A"}},null,0,null,null,null,""]
[null,{"$f":"IF(LEN(A1638)=0,\"\",INDEX('Smelter Look-up'!$A:$A,MATCH($A1638,'Smelter Look-up'!$E:$E,0)))","v":""},{"$f":"IF(LEN(A1638)=0,\"\",INDEX('Smelter Look-up'!$C:$C,MATCH($A1638,'Smelter Look-up'!$E:$E,0)))","v":""},null,{"$f":"IF(ISERROR($V1638),\"\",OFFSET('Smelter Look-up'!$D$4,$V1638-4,0)&\"\")","v":""},{"$f":"IF(ISERROR($V1638),\"\",OFFSET('Smelter Look-up'!$E$4,$V1638-4,0))","v":""},{"$f":"IF(C1638=$X$4,\"Enter smelter details\", IF(ISERROR($V1638),\"\",OFFSET('Smelter Look-up'!$F$4,$V1638-4,0)))","v":""},{"$f":"IF(ISERROR($V1638),\"\",OFFSET('Smelter Look-up'!$G$4,$V1638-4,0))","v":""},{"$f":"IF(ISERROR($V1638),\"\",OFFSET('Smelter Look-up'!$H$4,$V1638-4,0))","v":""},{"$f":"IF(ISERROR($V1638),\"\",OFFSET('Smelter Look-up'!$I$4,$V1638-4,0))","v":""},{"$nulls":7},{"$f":"IF(ISERROR($V1638),\"\",OFFSET('Smelter Look-up'!$C$4,$V1638-4,0)&\"\")","v":""},"",{"$f":"IF(B1638=\"\",\"\",IF(ISERROR(MATCH($J1638,SorP!$B$1:$B$6230,0)),\"\",INDIRECT(\"'SorP'!$A$\"&MATCH($J1638,SorP!$B$1:$B$6230,0))))","v":""},null,{"$f":"IF(C1638=\"\",NA(),MATCH($B1638&$C1638,'Smelter Look-up'!$J:$J,0))","v":{"$error":"#N/A"}},null,0,null,null,null,""]
[null,{"$f":"IF(LEN(A1639)=0,\"\",INDEX('Smelter Look-up'!$A:$A,MATCH($A1639,'Smelter Look-up'!$E:$E,0)))","v":""},{"$f":"IF(LEN(A1639)=0,\"\",INDEX('Smelter Look-up'!$C:$C,MATCH($A1639,'Smelter Look-up'!$E:$E,0)))","v":""},null,{"$f":"IF(ISERROR($V1639),\"\",OFFSET('Smelter Look-up'!$D$4,$V1639-4,0)&\"\")","v":""},{"$f":"IF(ISERROR($V1639),\"\",OFFSET('Smelter Look-up'!$E$4,$V1639-4,0))","v":""},{"$f":"IF(C1639=$X$4,\"Enter smelter details\", IF(ISERROR($V1639),\"\",OFFSET('Smelter Look-up'!$F$4,$V1639-4,0)))","v":""},{"$f":"IF(ISERROR($V1639),\"\",OFFSET('Smelter Look-up'!$G$4,$V1639-4,0))","v":""},{"$f":"IF(ISERROR($V1639),\"\",OFFSET('Smelter Look-up'!$H$4,$V1639-4,0))","v":""},{"$f":"IF(ISERROR($V1639),\"\",OFFSET('Smelter Look-up'!$I$4,$V1639-4,0))","v":""},{"$nulls":7},{"$f":"IF(ISERROR($V1639),\"\",OFFSET('Smelter Look-up'!$C$4,$V1639-4,0)&\"\")","v":""},"",{"$f":"IF(B1639=\"\",\"\",IF(ISERROR(MATCH($J1639,SorP!$B$1:$B$6230,0)),\"\",INDIRECT(\"'SorP'!$A$\"&MATCH($J1639,SorP!$B$1:$B$6230,0))))","v":""},null,{"$f":"IF(C1639=\"\",NA(),MATCH($B1639&$C1639,'Smelter Look-up'!$J:$J,0))","v":{"$error":"#N/A"}},null,0,null,null,null,""]
[null,{"$f":"IF(LEN(A1640)=0,\"\",INDEX('Smelter Look-up'!$A:$A,MATCH($A1640,'Smelter Look-up'!$E:$E,0)))","v":""},{"$f":"IF(LEN(A1640)=0,\"\",INDEX('Smelter Look-up'!$C:$C,MATCH($A1640,'Smelter Look-up'!$E:$E,0)))","v":""},null,{"$f":"IF(ISERROR($V1640),\"\",OFFSET('Smelter Look-up'!$D$4,$V1640-4,0)&\"\")","v":""},{"$f":"IF(ISERROR($V1640),\"\",OFFSET('Smelter Look-up'!$E$4,$V1640-4,0))","v":""},{"$f":"IF(C1640=$X$4,\"Enter smelter details\", IF(ISERROR($V1640),\"\",OFFSET('Smelter Look-up'!$F$4,$V1640-4,0)))","v":""},{"$f":"IF(ISERROR($V1640),\"\",OFFSET('Smelter Look-up'!$G$4,$V1640-4,0))","v":""},{"$f":"IF(ISERROR($V1640),\"\",OFFSET('Smelter Look-up'!$H$4,$V1640-4,0))","v":""},{"$f":"IF(ISERROR($V1640),\"\",OFFSET('Smelter Look-up'!$I$4,$V1640-4,0))","v":""},{"$nulls":7},{"$f":"IF(ISERROR($V1640),\"\",OFFSET('Smelter Look-up'!$C$4,$V1640-4,0)&\"\")","v":""},"",{"$f":"IF(B1640=\"\",\"\",IF(ISERROR(MATCH($J1640,SorP!$B$1:$B$6230,0)),\"\",INDIRECT(\"'SorP'!$A$\"&MATCH($J1640,SorP!$B$1:$B$6230,0))))","v":""},null,{"$f":"IF(C1640=\"\",NA(),MATCH($B1640&$C1640,'Smelter Look-up'!$J:$J,0))","v":{"$error":"#N/A"}},null,0,null,null,null,""]
[null,{"$f":"IF(LEN(A1641)=0,\"\",INDEX('Smelter Look-up'!$A:$A,MATCH($A1641,'Smelter Look-up'!$E:$E,0)))","v":""},{"$f":"IF(LEN(A1641)=0,\"\",INDEX('Smelter Look-up'!$C:$C,MATCH($A1641,'Smelter Look-up'!$E:$E,0)))","v":""},null,{"$f":"IF(ISERROR($V1641),\"\",OFFSET('Smelter Look-up'!$D$4,$V1641-4,0)&\"\")","v":""},{"$f":"IF(ISERROR($V1641),\"\",OFFSET('Smelter Look-up'!$E$4,$V1641-4,0))","v":""},{"$f":"IF(C1641=$X$4,\"Enter smelter details\", IF(ISERROR($V1641),\"\",OFFSET('Smelter Look-up'!$F$4,$V1641-4,0)))","v":""},{"$f":"IF(ISERROR($V1641),\"\",OFFSET('Smelter Look-up'!$G$4,$V1641-4,0))","v":""},{"$f":"IF(ISERROR($V1641),\"\",OFFSET('Smelter Look-up'!$H$4,$V1641-4,0))","v":""},{"$f":"IF(ISERROR($V1641),\"\",OFFSET('Smelter Look-up'!$I$4,$V1641-4,0))","v":""},{"$nulls":7},{"$f":"IF(ISERROR($V1641),\"\",OFFSET('Smelter Look-up'!$C$4,$V1641-4,0)&\"\")","v":""},"",{"$f":"IF(B1641=\"\",\"\",IF(ISERROR(MATCH($J1641,SorP!$B$1:$B$6230,0)),\"\",INDIRECT(\"'SorP'!$A$\"&MATCH($J1641,SorP!$B$1:$B$6230,0))))","v":""},null,{"$f":"IF(C1641=\"\",NA(),MATCH($B1641&$C1641,'Smelter Look-up'!$J:$J,0))","v":{"$error":"#N/A"}},null,0,null,null,null,""]
[null,{"$f":"IF(LEN(A1642)=0,\"\",INDEX('Smelter Look-up'!$A:$A,MATCH($A1642,'Smelter Look-up'!$E:$E,0)))","v":""},{"$f":"IF(LEN(A1642)=0,\"\",INDEX('Smelter Look-up'!$C:$C,MATCH($A1642,'Smelter Look-up'!$E:$E,0)))","v":""},null,{"$f":"IF(ISERROR($V1642),\"\",OFFSET('Smelter Look-up'!$D$4,$V1642-4,0)&\"\")","v":""},{"$f":"IF(ISERROR($V1642),\"\",OFFSET('Smelter Look-up'!$E$4,$V1642-4,0))","v":""},{"$f":"IF(C1642=$X$4,\"Enter smelter details\", IF(ISERROR($V1642),\"\",OFFSET('Smelter Look-up'!$F$4,$V1642-4,0)))","v":""},{"$f":"IF(ISERROR($V1642),\"\",OFFSET('Smelter Look-up'!$G$4,$V1642-4,0))","v":""},{"$f":"IF(ISERROR($V1642),\"\",OFFSET('Smelter Look-up'!$H$4,$V1642-4,0))","v":""},{"$f":"IF(ISERROR($V1642),\"\",OFFSET('Smelter Look-up'!$I$4,$V1642-4,0))","v":""},{"$nulls":7},{"$f":"IF(ISERROR($V1642),\"\",OFFSET('Smelter Look-up'!$C$4,$V1642-4,0)&\"\")","v":""},"",{"$f":"IF(B1642=\"\",\"\",IF(ISERROR(MATCH($J1642,SorP!$B$1:$B$6230,0)),\"\",INDIRECT(\"'SorP'!$A$\"&MATCH($J1642,SorP!$B$1:$B$6230,0))))","v":""},null,{"$f":"IF(C1642=\"\",NA(),MATCH($B1642&$C1642,'Smelter Look-up'!$J:$J,0))","v":{"$error":"#N/A"}},null,0,null,null,null,""]
[null,{"$f":"IF(LEN(A1643)=0,\"\",INDEX('Smelter Look-up'!$A:$A,MATCH($A1643,'Smelter Look-up'!$E:$E,0)))","v":""},{"$f":"IF(LEN(A1643)=0,\"\",INDEX('Smelter Look-up'!$C:$C,MATCH($A1643,'Smelter Look-up'!$E:$E,0)))","v":""},null,{"$f":"IF(ISERROR($V1643),\"\",OFFSET('Smelter Look-up'!$D$4,$V1643-4,0)&\"\")","v":""},{"$f":"IF(ISERROR($V1643),\"\",OFFSET('Smelter Look-up'!$E$4,$V1643-4,0))","v":""},{"$f":"IF(C1643=$X$4,\"Enter smelter details\", IF(ISERROR($V1643),\"\",OFFSET('Smelter Look-up'!$F$4,$V1643-4,0)))","v":""},{"$f":"IF(ISERROR($V1643),\"\",OFFSET('Smelter Look-up'!$G$4,$V1643-4,0))","v":""},{"$f":"IF(ISERROR($V1643),\"\",OFFSET('Smelter Look-up'!$H$4,$V1643-4,0))","v":""},{"$f":"IF(ISERROR($V1643),\"\",OFFSET('Smelter Look-up'!$I$4,$V1643-4,0))","v":""},{"$nulls":7},{"$f":"IF(ISERROR($V1643),\"\",OFFSET('Smelter Look-up'!$C$4,$V1643-4,0)&\"\")","v":""},"",{"$f":"IF(B1643=\"\",\"\",IF(ISERROR(MATCH($J1643,SorP!$B$1:$B$6230,0)),\"\",INDIRECT(\"'SorP'!$A$\"&MATCH($J1643,SorP!$B$1:$B$6230,0))))","v":""},null,{"$f":"IF(C1643=\"\",NA(),MATCH($B1643&$C1643,'Smelter Look-up'!$J:$J,0))","v":{"$error":"#N/A"}},null,0,null,null,null,""]
[null,{"$f":"IF(LEN(A1644)=0,\"\",INDEX('Smelter Look-up'!$A:$A,MATCH($A1644,'Smelter Look-up'!$E:$E,0)))","v":""},{"$f":"IF(LEN(A1644)=0,\"\",INDEX('Smelter Look-up'!$C:$C,MATCH($A1644,'Smelter Look-up'!$E:$E,0)))","v":""},null,{"$f":"IF(ISERROR($V1644),\"\",OFFSET('Smelter Look-up'!$D$4,$V1644-4,0)&\"\")","v":""},{"$f":"IF(ISERROR($V1644),\"\",OFFSET('Smelter Look-up'!$E$4,$V1644-4,0))","v":""},{"$f":"IF(C1644=$X$4,\"Enter smelter details\", IF(ISERROR($V1644),\"\",OFFSET('Smelter Look-up'!$F$4,$V1644-4,0)))","v":""},{"$f":"IF(ISERROR($V1644),\"\",OFFSET('Smelter Look-up'!$G$4,$V1644-4,0))","v":""},{"$f":"IF(ISERROR($V1644),\"\",OFFSET('Smelter Look-up'!$H$4,$V1644-4,0))","v":""},{"$f":"IF(ISERROR($V1644),\"\",OFFSET('Smelter Look-up'!$I$4,$V1644-4,0))","v":""},{"$nulls":7},{"$f":"IF(ISERROR($V1644),\"\",OFFSET('Smelter Look-up'!$C$4,$V1644-4,0)&\"\")","v":""},"",{"$f":"IF(B1644=\"\",\"\",IF(ISERROR(MATCH($J1644,SorP!$B$1:$B$6230,0)),\"\",INDIRECT(\"'SorP'!$A$\"&MATCH($J1644,SorP!$B$1:$B$6230,0))))","v":""},null,{"$f":"IF(C1644=\"\",NA(),MATCH($B1644&$C1644,'Smelter Look-up'!$J:$J,0))","v":{"$error":"#N/A"}},null,0,null,null,null,""]
[null,{"$f":"IF(LEN(A1645)=0,\"\",INDEX('Smelter Look-up'!$A:$A,MATCH($A1645,'Smelter Look-up'!$E:$E,0)))","v":""},{"$f":"IF(LEN(A1645)=0,\"\",INDEX('Smelter Look-up'!$C:$C,MATCH($A1645,'Smelter Look-up'!$E:$E,0)))","v":""},null,{"$f":"IF(ISERROR($V1645),\"\",OFFSET('Smelter Look-up'!$D$4,$V1645-4,0)&\"\")","v":""},{"$f":"IF(ISERROR($V1645),\"\",OFFSET('Smelter Look-up'!$E$4,$V1645-4,0))","v":""},{"$f":"IF(C1645=$X$4,\"Enter smelter details\", IF(ISERROR($V1645),\"\",OFFSET('Smelter Look-up'!$F$4,$V1645-4,0)))","v":""},{"$f":"IF(ISERROR($V1645),\"\",OFFSET('Smelter Look-up'!$G$4,$V1645-4,0))","v":""},{"$f":"IF(ISERROR($V1645),\"\",OFFSET('Smelter Look-up'!$H$4,$V1645-4,0))","v":""},{"$f":"IF(ISERROR($V1645),\"\",OFFSET('Smelter Look-up'!$I$4,$V1645-4,0))","v":""},{"$nulls":7},{"$f":"IF(ISERROR($V1645),\"\",OFFSET('Smelter Look-up'!$C$4,$V1645-4,0)&\"\")","v":""},"",{"$f":"IF(B1645=\"\",\"\",IF(ISERROR(MATCH($J1645,SorP!$B$1:$B$6230,0)),\"\",INDIRECT(\"'SorP'!$A$\"&MATCH($J1645,SorP!$B$1:$B$6230,0))))","v":""},null,{"$f":"IF(C1645=\"\",NA(),MATCH($B1645&$C1645,'Smelter Look-up'!$J:$J,0))","v":{"$error":"#N/A"}},null,0,null,null,null,""]
[null,{"$f":"IF(LEN(A1646)=0,\"\",INDEX('Smelter Look-up'!$A:$A,MATCH($A1646,'Smelter Look-up'!$E:$E,0)))","v":""},{"$f":"IF(LEN(A1646)=0,\"\",INDEX('Smelter Look-up'!$C:$C,MATCH($A1646,'Smelter Look-up'!$E:$E,0)))","v":""},null,{"$f":"IF(ISERROR($V1646),\"\",OFFSET('Smelter Look-up'!$D$4,$V1646-4,0)&\"\")","v":""},{"$f":"IF(ISERROR($V1646),\"\",OFFSET('Smelter Look-up'!$E$4,$V1646-4,0))","v":""},{"$f":"IF(C1646=$X$4,\"Enter smelter details\", IF(ISERROR($V1646),\"\",OFFSET('Smelter Look-up'!$F$4,$V1646-4,0)))","v":""},{"$f":"IF(ISERROR($V1646),\"\",OFFSET('Smelter Look-up'!$G$4,$V1646-4,0))","v":""},{"$f":"IF(ISERROR($V1646),\"\",OFFSET('Smelter Look-up'!$H$4,$V1646-4,0))","v":""},{"$f":"IF(ISERROR($V1646),\"\",OFFSET('Smelter Look-up'!$I$4,$V1646-4,0))","v":""},{"$nulls":7},{"$f":"IF(ISERROR($V1646),\"\",OFFSET('Smelter Look-up'!$C$4,$V1646-4,0)&\"\")","v":""},"",{"$f":"IF(B1646=\"\",\"\",IF(ISERROR(MATCH($J1646,SorP!$B$1:$B$6230,0)),\"\",INDIRECT(\"'SorP'!$A$\"&MATCH($J1646,SorP!$B$1:$B$6230,0))))","v":""},null,{"$f":"IF(C1646=\"\",NA(),MATCH($B1646&$C1646,'Smelter Look-up'!$J:$J,0))","v":{"$error":"#N/A"}},null,0,null,null,null,""]
[null,{"$f":"IF(LEN(A1647)=0,\"\",INDEX('Smelter Look-up'!$A:$A,MATCH($A1647,'Smelter Look-up'!$E:$E,0)))","v":""},{"$f":"IF(LEN(A1647)=0,\"\",INDEX('Smelter Look-up'!$C:$C,MATCH($A1647,'Smelter Look-up'!$E:$E,0)))","v":""},null,{"$f":"IF(ISERROR($V1647),\"\",OFFSET('Smelter Look-up'!$D$4,$V1647-4,0)&\"\")","v":""},{"$f":"IF(ISERROR($V1647),\"\",OFFSET('Smelter Look-up'!$E$4,$V1647-4,0))","v":""},{"$f":"IF(C1647=$X$4,\"Enter smelter details\", IF(ISERROR($V1647),\"\",OFFSET('Smelter Look-up'!$F$4,$V1647-4,0)))","v":""},{"$f":"IF(ISERROR($V1647),\"\",OFFSET('Smelter Look-up'!$G$4,$V1647-4,0))","v":""},{"$f":"IF(ISERROR($V1647),\"\",OFFSET('Smelter Look-up'!$H$4,$V1647-4,0))","v":""},{"$f":"IF(ISERROR($V1647),\"\",OFFSET('Smelter Look-up'!$I$4,$V1647-4,0))","v":""},{"$nulls":7},{"$f":"IF(ISERROR($V1647),\"\",OFFSET('Smelter Look-up'!$C$4,$V1647-4,0)&\"\")","v":""},"",{"$f":"IF(B1647=\"\",\"\",IF(ISERROR(MATCH($J1647,SorP!$B$1:$B$6230,0)),\"\",INDIRECT(\"'SorP'!$A$\"&MATCH($J1647,SorP!$B$1:$B$6230,0))))","v":""},null,{"$f":"IF(C1647=\"\",NA(),MATCH($B1647&$C1647,'Smelter Look-up'!$J:$J,0))","v":{"$error":"#N/A"}},null,0,null,null,null,""]
[null,{"$f":"IF(LEN(A1648)=0,\"\",INDEX('Smelter Look-up'!$A:$A,MATCH($A1648,'Smelter Look-up'!$E:$E,0)))","v":""},{"$f":"IF(LEN(A1648)=0,\"\",INDEX('Smelter Look-up'!$C:$C,MATCH($A1648,'Smelter Look-up'!$E:$E,0)))","v":""},null,{"$f":"IF(ISERROR($V1648),\"\",OFFSET('Smelter Look-up'!$D$4,$V1648-4,0)&\"\")","v":""},{"$f":"IF(ISERROR($V1648),\"\",OFFSET('Smelter Look-up'!$E$4,$V1648-4,0))","v":""},{"$f":"IF(C1648=$X$4,\"Enter smelter details\", IF(ISERROR($V1648),\"\",OFFSET('Smelter Look-up'!$F$4,$V1648-4,0)))","v":""},{"$f":"IF(ISERROR($V1648),\"\",OFFSET('Smelter Look-up'!$G$4,$V1648-4,0))","v":""},{"$f":"IF(ISERROR($V1648),\"\",OFFSET('Smelter Look-up'!$H$4,$V1648-4,0))","v":""},{"$f":"IF(ISERROR($V1648),\"\",OFFSET('Smelter Look-up'!$I$4,$V1648-4,0))","v":""},{"$nulls":7},{"$f":"IF(ISERROR($V1648),\"\",OFFSET('Smelter Look-up'!$C$4,$V1648-4,0)&\"\")","v":""},"",{"$f":"IF(B1648=\"\",\"\",IF(ISERROR(MATCH($J1648,SorP!$B$1:$B$6230,0)),\"\",INDIRECT(\"'SorP'!$A$\"&MATCH($J1648,SorP!$B$1:$B$6230,0))))","v":""},null,{"$f":"IF(C1648=\"\",NA(),MATCH($B1648&$C1648,'Smelter Look-up'!$J:$J,0))","v":{"$error":"#N/A"}},null,0,null,null,null,""]
[null,{"$f":"IF(LEN(A1649)=0,\"\",INDEX('Smelter Look-up'!$A:$A,MATCH($A1649,'Smelter Look-up'!$E:$E,0)))","v":""},{"$f":"IF(LEN(A1649)=0,\"\",INDEX('Smelter Look-up'!$C:$C,MATCH($A1649,'Smelter Look-up'!$E:$E,0)))","v":""},null,{"$f":"IF(ISERROR($V1649),\"\",OFFSET('Smelter Look-up'!$D$4,$V1649-4,0)&\"\")","v":""},{"$f":"IF(ISERROR($V1649),\"\",OFFSET('Smelter Look-up'!$E$4,$V1649-4,0))","v":""},{"$f":"IF(C1649=$X$4,\"Enter smelter details\", IF(ISERROR($V1649),\"\",OFFSET('Smelter Look-up'!$F$4,$V1649-4,0)))","v":""},{"$f":"IF(ISERROR($V1649),\"\",OFFSET('Smelter Look-up'!$G$4,$V1649-4,0))","v":""},{"$f":"IF(ISERROR($V1649),\"\",OFFSET('Smelter Look-up'!$H$4,$V1649-4,0))","v":""},{"$f":"IF(ISERROR($V1649),\"\",OFFSET('Smelter Look-up'!$I$4,$V1649-4,0))","v":""},{"$nulls":7},{"$f":"IF(ISERROR($V1649),\"\",OFFSET('Smelter Look-up'!$C$4,$V1649-4,0)&\"\")","v":""},"",{"$f":"IF(B1649=\"\",\"\",IF(ISERROR(MATCH($J1649,SorP!$B$1:$B$6230,0)),\"\",INDIRECT(\"'SorP'!$A$\"&MATCH($J1649,SorP!$B$1:$B$6230,0))))","v":""},null,{"$f":"IF(C1649=\"\",NA(),MATCH($B1649&$C1649,'Smelter Look-up'!$J:$J,0))","v":{"$error":"#N/A"}},null,0,null,null,null,""]
[null,{"$f":"IF(LEN(A1650)=0,\"\",INDEX('Smelter Look-up'!$A:$A,MATCH($A1650,'Smelter Look-up'!$E:$E,0)))","v":""},{"$f":"IF(LEN(A1650)=0,\"\",INDEX('Smelter Look-up'!$C:$C,MATCH($A1650,'Smelter Look-up'!$E:$E,0)))","v":""},null,{"$f":"IF(ISERROR($V1650),\"\",OFFSET('Smelter Look-up'!$D$4,$V1650-4,0)&\"\")","v":""},{"$f":"IF(ISERROR($V1650),\"\",OFFSET('Smelter Look-up'!$E$4,$V1650-4,0))","v":""},{"$f":"IF(C1650=$X$4,\"Enter smelter details\", IF(ISERROR($V1650),\"\",OFFSET('Smelter Look-up'!$F$4,$V1650-4,0)))","v":""},{"$f":"IF(ISERROR($V1650),\"\",OFFSET('Smelter Look-up'!$G$4,$V1650-4,0))","v":""},{"$f":"IF(ISERROR($V1650),\"\",OFFSET('Smelter Look-up'!$H$4,$V1650-4,0))","v":""},{"$f":"IF(ISERROR($V1650),\"\",OFFSET('Smelter Look-up'!$I$4,$V1650-4,0))","v":""},{"$nulls":7},{"$f":"IF(ISERROR($V1650),\"\",OFFSET('Smelter Look-up'!$C$4,$V1650-4,0)&\"\")","v":""},"",{"$f":"IF(B1650=\"\",\"\",IF(ISERROR(MATCH($J1650,SorP!$B$1:$B$6230,0)),\"\",INDIRECT(\"'SorP'!$A$\"&MATCH($J1650,SorP!$B$1:$B$6230,0))))","v":""},null,{"$f":"IF(C1650=\"\",NA(),MATCH($B1650&$C1650,'Smelter Look-up'!$J:$J,0))","v":{"$error":"#N/A"}},null,0,null,null,null,""]
[null,{"$f":"IF(LEN(A1651)=0,\"\",INDEX('Smelter Look-up'!$A:$A,MATCH($A1651,'Smelter Look-up'!$E:$E,0)))","v":""},{"$f":"IF(LEN(A1651)=0,\"\",INDEX('Smelter Look-up'!$C:$C,MATCH($A1651,'Smelter Look-up'!$E:$E,0)))","v":""},null,{"$f":"IF(ISERROR($V1651),\"\",OFFSET('Smelter Look-up'!$D$4,$V1651-4,0)&\"\")","v":""},{"$f":"IF(ISERROR($V1651),\"\",OFFSET('Smelter Look-up'!$E$4,$V1651-4,0))","v":""},{"$f":"IF(C1651=$X$4,\"Enter smelter details\", IF(ISERROR($V1651),\"\",OFFSET('Smelter Look-up'!$F$4,$V1651-4,0)))","v":""},{"$f":"IF(ISERROR($V1651),\"\",OFFSET('Smelter Look-up'!$G$4,$V1651-4,0))","v":""},{"$f":"IF(ISERROR($V1651),\"\",OFFSET('Smelter Look-up'!$H$4,$V1651-4,0))","v":""},{"$f":"IF(ISERROR($V1651),\"\",OFFSET('Smelter Look-up'!$I$4,$V1651-4,0))","v":""},{"$nulls":7},{"$f":"IF(ISERROR($V1651),\"\",OFFSET('Smelter Look-up'!$C$4,$V1651-4,0)&\"\")","v":""},"",{"$f":"IF(B1651=\"\",\"\",IF(ISERROR(MATCH($J1651,SorP!$B$1:$B$6230,0)),\"\",INDIRECT(\"'SorP'!$A$\"&MATCH($J1651,SorP!$B$1:$B$6230,0))))","v":""},null,{"$f":"IF(C1651=\"\",NA(),MATCH($B1651&$C1651,'Smelter Look-up'!$J:$J,0))","v":{"$error":"#N/A"}},null,0,null,null,null,""]
[null,{"$f":"IF(LEN(A1652)=0,\"\",INDEX('Smelter Look-up'!$A:$A,MATCH($A1652,'Smelter Look-up'!$E:$E,0)))","v":""},{"$f":"IF(LEN(A1652)=0,\"\",INDEX('Smelter Look-up'!$C:$C,MATCH($A1652,'Smelter Look-up'!$E:$E,0)))","v":""},null,{"$f":"IF(ISERROR($V1652),\"\",OFFSET('Smelter Look-up'!$D$4,$V1652-4,0)&\"\")","v":""},{"$f":"IF(ISERROR($V1652),\"\",OFFSET('Smelter Look-up'!$E$4,$V1652-4,0))","v":""},{"$f":"IF(C1652=$X$4,\"Enter smelter details\", IF(ISERROR($V1652),\"\",OFFSET('Smelter Look-up'!$F$4,$V1652-4,0)))","v":""},{"$f":"IF(ISERROR($V1652),\"\",OFFSET('Smelter Look-up'!$G$4,$V1652-4,0))","v":""},{"$f":"IF(ISERROR($V1652),\"\",OFFSET('Smelter Look-up'!$H$4,$V1652-4,0))","v":""},{"$f":"IF(ISERROR($V1652),\"\",OFFSET('Smelter Look-up'!$I$4,$V1652-4,0))","v":""},{"$nulls":7},{"$f":"IF(ISERROR($V1652),\"\",OFFSET('Smelter Look-up'!$C$4,$V1652-4,0)&\"\")","v":""},"",{"$f":"IF(B1652=\"\",\"\",IF(ISERROR(MATCH($J1652,SorP!$B$1:$B$6230,0)),\"\",INDIRECT(\"'SorP'!$A$\"&MATCH($J1652,SorP!$B$1:$B$6230,0))))","v":""},null,{"$f":"IF(C1652=\"\",NA(),MATCH($B1652&$C1652,'Smelter Look-up'!$J:$J,0))","v":{"$error":"#N/A"}},null,0,null,null,null,""]
[null,{"$f":"IF(LEN(A1653)=0,\"\",INDEX('Smelter Look-up'!$A:$A,MATCH($A1653,'Smelter Look-up'!$E:$E,0)))","v":""},{"$f":"IF(LEN(A1653)=0,\"\",INDEX('Smelter Look-up'!$C:$C,MATCH($A1653,'Smelter Look-up'!$E:$E,0)))","v":""},null,{"$f":"IF(ISERROR($V1653),\"\",OFFSET('Smelter Look-up'!$D$4,$V1653-4,0)&\"\")","v":""},{"$f":"IF(ISERROR($V1653),\"\",OFFSET('Smelter Look-up'!$E$4,$V1653-4,0))","v":""},{"$f":"IF(C1653=$X$4,\"Enter smelter details\", IF(ISERROR($V1653),\"\",OFFSET('Smelter Look-up'!$F$4,$V1653-4,0)))","v":""},{"$f":"IF(ISERROR($V1653),\"\",OFFSET('Smelter Look-up'!$G$4,$V1653-4,0))","v":""},{"$f":"IF(ISERROR($V1653),\"\",OFFSET('Smelter Look-up'!$H$4,$V1653-4,0))","v":""},{"$f":"IF(ISERROR($V1653),\"\",OFFSET('Smelter Look-up'!$I$4,$V1653-4,0))","v":""},{"$nulls":7},{"$f":"IF(ISERROR($V1653),\"\",OFFSET('Smelter Look-up'!$C$4,$V1653-4,0)&\"\")","v":""},"",{"$f":"IF(B1653=\"\",\"\",IF(ISERROR(MATCH($J1653,SorP!$B$1:$B$6230,0)),\"\",INDIRECT(\"'SorP'!$A$\"&MATCH($J1653,SorP!$B$1:$B$6230,0))))","v":""},null,{"$f":"IF(C1653=\"\",NA(),MATCH($B1653&$C1653,'Smelter Look-up'!$J:$J,0))","v":{"$error":"#N/A"}},null,0,null,null,null,""]
[null,{"$f":"IF(LEN(A1654)=0,\"\",INDEX('Smelter Look-up'!$A:$A,MATCH($A1654,'Smelter Look-up'!$E:$E,0)))","v":""},{"$f":"IF(LEN(A1654)=0,\"\",INDEX('Smelter Look-up'!$C:$C,MATCH($A1654,'Smelter Look-up'!$E:$E,0)))","v":""},null,{"$f":"IF(ISERROR($V1654),\"\",OFFSET('Smelter Look-up'!$D$4,$V1654-4,0)&\"\")","v":""},{"$f":"IF(ISERROR($V1654),\"\",OFFSET('Smelter Look-up'!$E$4,$V1654-4,0))","v":""},{"$f":"IF(C1654=$X$4,\"Enter smelter details\", IF(ISERROR($V1654),\"\",OFFSET('Smelter Look-up'!$F$4,$V1654-4,0)))","v":""},{"$f":"IF(ISERROR($V1654),\"\",OFFSET('Smelter Look-up'!$G$4,$V1654-4,0))","v":""},{"$f":"IF(ISERROR($V1654),\"\",OFFSET('Smelter Look-up'!$H$4,$V1654-4,0))","v":""},{"$f":"IF(ISERROR($V1654),\"\",OFFSET('Smelter Look-up'!$I$4,$V1654-4,0))","v":""},{"$nulls":7},{"$f":"IF(ISERROR($V1654),\"\",OFFSET('Smelter Look-up'!$C$4,$V1654-4,0)&\"\")","v":""},"",{"$f":"IF(B1654=\"\",\"\",IF(ISERROR(MATCH($J1654,SorP!$B$1:$B$6230,0)),\"\",INDIRECT(\"'SorP'!$A$\"&MATCH($J1654,SorP!$B$1:$B$6230,0))))","v":""},null,{"$f":"IF(C1654=\"\",NA(),MATCH($B1654&$C1654,'Smelter Look-up'!$J:$J,0))","v":{"$error":"#N/A"}},null,0,null,null,null,""]
[null,{"$f":"IF(LEN(A1655)=0,\"\",INDEX('Smelter Look-up'!$A:$A,MATCH($A1655,'Smelter Look-up'!$E:$E,0)))","v":""},{"$f":"IF(LEN(A1655)=0,\"\",INDEX('Smelter Look-up'!$C:$C,MATCH($A1655,'Smelter Look-up'!$E:$E,0)))","v":""},null,{"$f":"IF(ISERROR($V1655),\"\",OFFSET('Smelter Look-up'!$D$4,$V1655-4,0)&\"\")","v":""},{"$f":"IF(ISERROR($V1655),\"\",OFFSET('Smelter Look-up'!$E$4,$V1655-4,0))","v":""},{"$f":"IF(C1655=$X$4,\"Enter smelter details\", IF(ISERROR($V1655),\"\",OFFSET('Smelter Look-up'!$F$4,$V1655-4,0)))","v":""},{"$f":"IF(ISERROR($V1655),\"\",OFFSET('Smelter Look-up'!$G$4,$V1655-4,0))","v":""},{"$f":"IF(ISERROR($V1655),\"\",OFFSET('Smelter Look-up'!$H$4,$V1655-4,0))","v":""},{"$f":"IF(ISERROR($V1655),\"\",OFFSET('Smelter Look-up'!$I$4,$V1655-4,0))","v":""},{"$nulls":7},{"$f":"IF(ISERROR($V1655),\"\",OFFSET('Smelter Look-up'!$C$4,$V1655-4,0)&\"\")","v":""},"",{"$f":"IF(B1655=\"\",\"\",IF(ISERROR(MATCH($J1655,SorP!$B$1:$B$6230,0)),\"\",INDIRECT(\"'SorP'!$A$\"&MATCH($J1655,SorP!$B$1:$B$6230,0))))","v":""},null,{"$f":"IF(C1655=\"\",NA(),MATCH($B1655&$C1655,'Smelter Look-up'!$J:$J,0))","v":{"$error":"#N/A"}},null,0,null,null,null,""]
[null,{"$f":"IF(LEN(A1656)=0,\"\",INDEX('Smelter Look-up'!$A:$A,MATCH($A1656,'Smelter Look-up'!$E:$E,0)))","v":""},{"$f":"IF(LEN(A1656)=0,\"\",INDEX('Smelter Look-up'!$C:$C,MATCH($A1656,'Smelter Look-up'!$E:$E,0)))","v":""},null,{"$f":"IF(ISERROR($V1656),\"\",OFFSET('Smelter Look-up'!$D$4,$V1656-4,0)&\"\")","v":""},{"$f":"IF(ISERROR($V1656),\"\",OFFSET('Smelter Look-up'!$E$4,$V1656-4,0))","v":""},{"$f":"IF(C1656=$X$4,\"Enter smelter details\", IF(ISERROR($V1656),\"\",OFFSET('Smelter Look-up'!$F$4,$V1656-4,0)))","v":""},{"$f":"IF(ISERROR($V1656),\"\",OFFSET('Smelter Look-up'!$G$4,$V1656-4,0))","v":""},{"$f":"IF(ISERROR($V1656),\"\",OFFSET('Smelter Look-up'!$H$4,$V1656-4,0))","v":""},{"$f":"IF(ISERROR($V1656),\"\",OFFSET('Smelter Look-up'!$I$4,$V1656-4,0))","v":""},{"$nulls":7},{"$f":"IF(ISERROR($V1656),\"\",OFFSET('Smelter Look-up'!$C$4,$V1656-4,0)&\"\")","v":""},"",{"$f":"IF(B1656=\"\",\"\",IF(ISERROR(MATCH($J1656,SorP!$B$1:$B$6230,0)),\"\",INDIRECT(\"'SorP'!$A$\"&MATCH($J1656,SorP!$B$1:$B$6230,0))))","v":""},null,{"$f":"IF(C1656=\"\",NA(),MATCH($B1656&$C1656,'Smelter Look-up'!$J:$J,0))","v":{"$error":"#N/A"}},null,0,null,null,null,""]
[null,{"$f":"IF(LEN(A1657)=0,\"\",INDEX('Smelter Look-up'!$A:$A,MATCH($A1657,'Smelter Look-up'!$E:$E,0)))","v":""},{"$f":"IF(LEN(A1657)=0,\"\",INDEX('Smelter Look-up'!$C:$C,MATCH($A1657,'Smelter Look-up'!$E:$E,0)))","v":""},null,{"$f":"IF(ISERROR($V1657),\"\",OFFSET('Smelter Look-up'!$D$4,$V1657-4,0)&\"\")","v":""},{"$f":"IF(ISERROR($V1657),\"\",OFFSET('Smelter Look-up'!$E$4,$V1657-4,0))","v":""},{"$f":"IF(C1657=$X$4,\"Enter smelter details\", IF(ISERROR($V1657),\"\",OFFSET('Smelter Look-up'!$F$4,$V1657-4,0)))","v":""},{"$f":"IF(ISERROR($V1657),\"\",OFFSET('Smelter Look-up'!$G$4,$V1657-4,0))","v":""},{"$f":"IF(ISERROR($V1657),\"\",OFFSET('Smelter Look-up'!$H$4,$V1657-4,0))","v":""},{"$f":"IF(ISERROR($V1657),\"\",OFFSET('Smelter Look-up'!$I$4,$V1657-4,0))","v":""},{"$nulls":7},{"$f":"IF(ISERROR($V1657),\"\",OFFSET('Smelter Look-up'!$C$4,$V1657-4,0)&\"\")","v":""},"",{"$f":"IF(B1657=\"\",\"\",IF(ISERROR(MATCH($J1657,SorP!$B$1:$B$6230,0)),\"\",INDIRECT(\"'SorP'!$A$\"&MATCH($J1657,SorP!$B$1:$B$6230,0))))","v":""},null,{"$f":"IF(C1657=\"\",NA(),MATCH($B1657&$C1657,'Smelter Look-up'!$J:$J,0))","v":{"$error":"#N/A"}},null,0,null,null,null,""]
[null,{"$f":"IF(LEN(A1658)=0,\"\",INDEX('Smelter Look-up'!$A:$A,MATCH($A1658,'Smelter Look-up'!$E:$E,0)))","v":""},{"$f":"IF(LEN(A1658)=0,\"\",INDEX('Smelter Look-up'!$C:$C,MATCH($A1658,'Smelter Look-up'!$E:$E,0)))","v":""},null,{"$f":"IF(ISERROR($V1658),\"\",OFFSET('Smelter Look-up'!$D$4,$V1658-4,0)&\"\")","v":""},{"$f":"IF(ISERROR($V1658),\"\",OFFSET('Smelter Look-up'!$E$4,$V1658-4,0))","v":""},{"$f":"IF(C1658=$X$4,\"Enter smelter details\", IF(ISERROR($V1658),\"\",OFFSET('Smelter Look-up'!$F$4,$V1658-4,0)))","v":""},{"$f":"IF(ISERROR($V1658),\"\",OFFSET('Smelter Look-up'!$G$4,$V1658-4,0))","v":""},{"$f":"IF(ISERROR($V1658),\"\",OFFSET('Smelter Look-up'!$H$4,$V1658-4,0))","v":""},{"$f":"IF(ISERROR($V1658),\"\",OFFSET('Smelter Look-up'!$I$4,$V1658-4,0))","v":""},{"$nulls":7},{"$f":"IF(ISERROR($V1658),\"\",OFFSET('Smelter Look-up'!$C$4,$V1658-4,0)&\"\")","v":""},"",{"$f":"IF(B1658=\"\",\"\",IF(ISERROR(MATCH($J1658,SorP!$B$1:$B$6230,0)),\"\",INDIRECT(\"'SorP'!$A$\"&MATCH($J1658,SorP!$B$1:$B$6230,0))))","v":""},null,{"$f":"IF(C1658=\"\",NA(),MATCH($B1658&$C1658,'Smelter Look-up'!$J:$J,0))","v":{"$error":"#N/A"}},null,0,null,null,null,""]
[null,{"$f":"IF(LEN(A1659)=0,\"\",INDEX('Smelter Look-up'!$A:$A,MATCH($A1659,'Smelter Look-up'!$E:$E,0)))","v":""},{"$f":"IF(LEN(A1659)=0,\"\",INDEX('Smelter Look-up'!$C:$C,MATCH($A1659,'Smelter Look-up'!$E:$E,0)))","v":""},null,{"$f":"IF(ISERROR($V1659),\"\",OFFSET('Smelter Look-up'!$D$4,$V1659-4,0)&\"\")","v":""},{"$f":"IF(ISERROR($V1659),\"\",OFFSET('Smelter Look-up'!$E$4,$V1659-4,0))","v":""},{"$f":"IF(C1659=$X$4,\"Enter smelter details\", IF(ISERROR($V1659),\"\",OFFSET('Smelter Look-up'!$F$4,$V1659-4,0)))","v":""},{"$f":"IF(ISERROR($V1659),\"\",OFFSET('Smelter Look-up'!$G$4,$V1659-4,0))","v":""},{"$f":"IF(ISERROR($V1659),\"\",OFFSET('Smelter Look-up'!$H$4,$V1659-4,0))","v":""},{"$f":"IF(ISERROR($V1659),\"\",OFFSET('Smelter Look-up'!$I$4,$V1659-4,0))","v":""},{"$nulls":7},{"$f":"IF(ISERROR($V1659),\"\",OFFSET('Smelter Look-up'!$C$4,$V1659-4,0)&\"\")","v":""},{"$f":"IF(B1659=\"\",\"\",IF(ISERROR(MATCH($E1659,CL,0)),\"Unknown\",INDIRECT(\"'C'!$A$\"&MATCH($E1659,CL,0)+1)))","v":""},{"$f":"IF(B1659=\"\",\"\",IF(ISERROR(MATCH($J1659,SorP!$B$1:$B$6230,0)),\"\",INDIRECT(\"'SorP'!$A$\"&MATCH($J1659,SorP!$B$1:$B$6230,0))))","v":""},null,{"$f":"IF(C1659=\"\",NA(),MATCH($B1659&$C1659,'Smelter Look-up'!$J:$J,0))","v":{"$error":"#N/A"}},null,{"$f":"IF(AND(C1659=\"Smelter not listed\",OR(LEN(D1659)=0,LEN(E1659)=0)),1,0)","v":0},null,null,null,{"$f":"B1659&C1659","v":""}]
[null,{"$f":"IF(LEN(A1660)=0,\"\",INDEX('Smelter Look-up'!$A:$A,MATCH($A1660,'Smelter Look-up'!$E:$E,0)))","v":""},{"$f":"IF(LEN(A1660)=0,\"\",INDEX('Smelter Look-up'!$C:$C,MATCH($A1660,'Smelter Look-up'!$E:$E,0)))","v":""},null,{"$f":"IF(ISERROR($V1660),\"\",OFFSET('Smelter Look-up'!$D$4,$V1660-4,0)&\"\")","v":""},{"$f":"IF(ISERROR($V1660),\"\",OFFSET('Smelter Look-up'!$E$4,$V1660-4,0))","v":""},{"$f":"IF(C1660=$X$4,\"Enter smelter details\", IF(ISERROR($V1660),\"\",OFFSET('Smelter Look-up'!$F$4,$V1660-4,0)))","v":""},{"$f":"IF(ISERROR($V1660),\"\",OFFSET('Smelter Look-up'!$G$4,$V1660-4,0))","v":""},{"$f":"IF(ISERROR($V1660),\"\",OFFSET('Smelter Look-up'!$H$4,$V1660-4,0))","v":""},{"$f":"IF(ISERROR($V1660),\"\",OFFSET('Smelter Look-up'!$I$4,$V1660-4,0))","v":""},{"$nulls":7},{"$f":"IF(ISERROR($V1660),\"\",OFFSET('Smelter Look-up'!$C$4,$V1660-4,0)&\"\")","v":""},"",{"$f":"IF(B1660=\"\",\"\",IF(ISERROR(MATCH($J1660,SorP!$B$1:$B$6230,0)),\"\",INDIRECT(\"'SorP'!$A$\"&MATCH($J1660,SorP!$B$1:$B$6230,0))))","v":""},null,{"$f":"IF(C1660=\"\",NA(),MATCH($B1660&$C1660,'Smelter Look-up'!$J:$J,0))","v":{"$error":"#N/A"}},null,0,null,null,null,""]
[null,{"$f":"IF(LEN(A1661)=0,\"\",INDEX('Smelter Look-up'!$A:$A,MATCH($A1661,'Smelter Look-up'!$E:$E,0)))","v":""},{"$f":"IF(LEN(A1661)=0,\"\",INDEX('Smelter Look-up'!$C:$C,MATCH($A1661,'Smelter Look-up'!$E:$E,0)))","v":""},null,{"$f":"IF(ISERROR($V1661),\"\",OFFSET('Smelter Look-up'!$D$4,$V1661-4,0)&\"\")","v":""},{"$f":"IF(ISERROR($V1661),\"\",OFFSET('Smelter Look-up'!$E$4,$V1661-4,0))","v":""},{"$f":"IF(C1661=$X$4,\"Enter smelter details\", IF(ISERROR($V1661),\"\",OFFSET('Smelter Look-up'!$F$4,$V1661-4,0)))","v":""},{"$f":"IF(ISERROR($V1661),\"\",OFFSET('Smelter Look-up'!$G$4,$V1661-4,0))","v":""},{"$f":"IF(ISERROR($V1661),\"\",OFFSET('Smelter Look-up'!$H$4,$V1661-4,0))","v":""},{"$f":"IF(ISERROR($V1661),\"\",OFFSET('Smelter Look-up'!$I$4,$V1661-4,0))","v":""},{"$nulls":7},{"$f":"IF(ISERROR($V1661),\"\",OFFSET('Smelter Look-up'!$C$4,$V1661-4,0)&\"\")","v":""},"",{"$f":"IF(B1661=\"\",\"\",IF(ISERROR(MATCH($J1661,SorP!$B$1:$B$6230,0)),\"\",INDIRECT(\"'SorP'!$A$\"&MATCH($J1661,SorP!$B$1:$B$6230,0))))","v":""},null,{"$f":"IF(C1661=\"\",NA(),MATCH($B1661&$C1661,'Smelter Look-up'!$J:$J,0))","v":{"$error":"#N/A"}},null,0,null,null,null,""]
[null,{"$f":"IF(LEN(A1662)=0,\"\",INDEX('Smelter Look-up'!$A:$A,MATCH($A1662,'Smelter Look-up'!$E:$E,0)))","v":""},{"$f":"IF(LEN(A1662)=0,\"\",INDEX('Smelter Look-up'!$C:$C,MATCH($A1662,'Smelter Look-up'!$E:$E,0)))","v":""},null,{"$f":"IF(ISERROR($V1662),\"\",OFFSET('Smelter Look-up'!$D$4,$V1662-4,0)&\"\")","v":""},{"$f":"IF(ISERROR($V1662),\"\",OFFSET('Smelter Look-up'!$E$4,$V1662-4,0))","v":""},{"$f":"IF(C1662=$X$4,\"Enter smelter details\", IF(ISERROR($V1662),\"\",OFFSET('Smelter Look-up'!$F$4,$V1662-4,0)))","v":""},{"$f":"IF(ISERROR($V1662),\"\",OFFSET('Smelter Look-up'!$G$4,$V1662-4,0))","v":""},{"$f":"IF(ISERROR($V1662),\"\",OFFSET('Smelter Look-up'!$H$4,$V1662-4,0))","v":""},{"$f":"IF(ISERROR($V1662),\"\",OFFSET('Smelter Look-up'!$I$4,$V1662-4,0))","v":""},{"$nulls":7},{"$f":"IF(ISERROR($V1662),\"\",OFFSET('Smelter Look-up'!$C$4,$V1662-4,0)&\"\")","v":""},"",{"$f":"IF(B1662=\"\",\"\",IF(ISERROR(MATCH($J1662,SorP!$B$1:$B$6230,0)),\"\",INDIRECT(\"'SorP'!$A$\"&MATCH($J1662,SorP!$B$1:$B$6230,0))))","v":""},null,{"$f":"IF(C1662=\"\",NA(),MATCH($B1662&$C1662,'Smelter Look-up'!$J:$J,0))","v":{"$error":"#N/A"}},null,0,null,null,null,""]
[null,{"$f":"IF(LEN(A1663)=0,\"\",INDEX('Smelter Look-up'!$A:$A,MATCH($A1663,'Smelter Look-up'!$E:$E,0)))","v":""},{"$f":"IF(LEN(A1663)=0,\"\",INDEX('Smelter Look-up'!$C:$C,MATCH($A1663,'Smelter Look-up'!$E:$E,0)))","v":""},null,{"$f":"IF(ISERROR($V1663),\"\",OFFSET('Smelter Look-up'!$D$4,$V1663-4,0)&\"\")","v":""},{"$f":"IF(ISERROR($V1663),\"\",OFFSET('Smelter Look-up'!$E$4,$V1663-4,0))","v":""},{"$f":"IF(C1663=$X$4,\"Enter smelter details\", IF(ISERROR($V1663),\"\",OFFSET('Smelter Look-up'!$F$4,$V1663-4,0)))","v":""},{"$f":"IF(ISERROR($V1663),\"\",OFFSET('Smelter Look-up'!$G$4,$V1663-4,0))","v":""},{"$f":"IF(ISERROR($V1663),\"\",OFFSET('Smelter Look-up'!$H$4,$V1663-4,0))","v":""},{"$f":"IF(ISERROR($V1663),\"\",OFFSET('Smelter Look-up'!$I$4,$V1663-4,0))","v":""},{"$nulls":7},{"$f":"IF(ISERROR($V1663),\"\",OFFSET('Smelter Look-up'!$C$4,$V1663-4,0)&\"\")","v":""},"",{"$f":"IF(B1663=\"\",\"\",IF(ISERROR(MATCH($J1663,SorP!$B$1:$B$6230,0)),\"\",INDIRECT(\"'SorP'!$A$\"&MATCH($J1663,SorP!$B$1:$B$6230,0))))","v":""},null,{"$f":"IF(C1663=\"\",NA(),MATCH($B1663&$C1663,'Smelter Look-up'!$J:$J,0))","v":{"$error":"#N/A"}},null,0,null,null,null,""]
[null,{"$f":"IF(LEN(A1664)=0,\"\",INDEX('Smelter Look-up'!$A:$A,MATCH($A1664,'Smelter Look-up'!$E:$E,0)))","v":""},{"$f":"IF(LEN(A1664)=0,\"\",INDEX('Smelter Look-up'!$C:$C,MATCH($A1664,'Smelter Look-up'!$E:$E,0)))","v":""},null,{"$f":"IF(ISERROR($V1664),\"\",OFFSET('Smelter Look-up'!$D$4,$V1664-4,0)&\"\")","v":""},{"$f":"IF(ISERROR($V1664),\"\",OFFSET('Smelter Look-up'!$E$4,$V1664-4,0))","v":""},{"$f":"IF(C1664=$X$4,\"Enter smelter details\", IF(ISERROR($V1664),\"\",OFFSET('Smelter Look-up'!$F$4,$V1664-4,0)))","v":""},{"$f":"IF(ISERROR($V1664),\"\",OFFSET('Smelter Look-up'!$G$4,$V1664-4,0))","v":""},{"$f":"IF(ISERROR($V1664),\"\",OFFSET('Smelter Look-up'!$H$4,$V1664-4,0))","v":""},{"$f":"IF(ISERROR($V1664),\"\",OFFSET('Smelter Look-up'!$I$4,$V1664-4,0))","v":""},{"$nulls":7},{"$f":"IF(ISERROR($V1664),\"\",OFFSET('Smelter Look-up'!$C$4,$V1664-4,0)&\"\")","v":""},"",{"$f":"IF(B1664=\"\",\"\",IF(ISERROR(MATCH($J1664,SorP!$B$1:$B$6230,0)),\"\",INDIRECT(\"'SorP'!$A$\"&MATCH($J1664,SorP!$B$1:$B$6230,0))))","v":""},null,{"$f":"IF(C1664=\"\",NA(),MATCH($B1664&$C1664,'Smelter Look-up'!$J:$J,0))","v":{"$error":"#N/A"}},null,0,null,null,null,""]
[null,{"$f":"IF(LEN(A1665)=0,\"\",INDEX('Smelter Look-up'!$A:$A,MATCH($A1665,'Smelter Look-up'!$E:$E,0)))","v":""},{"$f":"IF(LEN(A1665)=0,\"\",INDEX('Smelter Look-up'!$C:$C,MATCH($A1665,'Smelter Look-up'!$E:$E,0)))","v":""},null,{"$f":"IF(ISERROR($V1665),\"\",OFFSET('Smelter Look-up'!$D$4,$V1665-4,0)&\"\")","v":""},{"$f":"IF(ISERROR($V1665),\"\",OFFSET('Smelter Look-up'!$E$4,$V1665-4,0))","v":""},{"$f":"IF(C1665=$X$4,\"Enter smelter details\", IF(ISERROR($V1665),\"\",OFFSET('Smelter Look-up'!$F$4,$V1665-4,0)))","v":""},{"$f":"IF(ISERROR($V1665),\"\",OFFSET('Smelter Look-up'!$G$4,$V1665-4,0))","v":""},{"$f":"IF(ISERROR($V1665),\"\",OFFSET('Smelter Look-up'!$H$4,$V1665-4,0))","v":""},{"$f":"IF(ISERROR($V1665),\"\",OFFSET('Smelter Look-up'!$I$4,$V1665-4,0))","v":""},{"$nulls":7},{"$f":"IF(ISERROR($V1665),\"\",OFFSET('Smelter Look-up'!$C$4,$V1665-4,0)&\"\")","v":""},"",{"$f":"IF(B1665=\"\",\"\",IF(ISERROR(MATCH($J1665,SorP!$B$1:$B$6230,0)),\"\",INDIRECT(\"'SorP'!$A$\"&MATCH($J1665,SorP!$B$1:$B$6230,0))))","v":""},null,{"$f":"IF(C1665=\"\",NA(),MATCH($B1665&$C1665,'Smelter Look-up'!$J:$J,0))","v":{"$error":"#N/A"}},null,0,null,null,null,""]
[null,{"$f":"IF(LEN(A1666)=0,\"\",INDEX('Smelter Look-up'!$A:$A,MATCH($A1666,'Smelter Look-up'!$E:$E,0)))","v":""},{"$f":"IF(LEN(A1666)=0,\"\",INDEX('Smelter Look-up'!$C:$C,MATCH($A1666,'Smelter Look-up'!$E:$E,0)))","v":""},null,{"$f":"IF(ISERROR($V1666),\"\",OFFSET('Smelter Look-up'!$D$4,$V1666-4,0)&\"\")","v":""},{"$f":"IF(ISERROR($V1666),\"\",OFFSET('Smelter Look-up'!$E$4,$V1666-4,0))","v":""},{"$f":"IF(C1666=$X$4,\"Enter smelter details\", IF(ISERROR($V1666),\"\",OFFSET('Smelter Look-up'!$F$4,$V1666-4,0)))","v":""},{"$f":"IF(ISERROR($V1666),\"\",OFFSET('Smelter Look-up'!$G$4,$V1666-4,0))","v":""},{"$f":"IF(ISERROR($V1666),\"\",OFFSET('Smelter Look-up'!$H$4,$V1666-4,0))","v":""},{"$f":"IF(ISERROR($V1666),\"\",OFFSET('Smelter Look-up'!$I$4,$V1666-4,0))","v":""},{"$nulls":7},{"$f":"IF(ISERROR($V1666),\"\",OFFSET('Smelter Look-up'!$C$4,$V1666-4,0)&\"\")","v":""},"",{"$f":"IF(B1666=\"\",\"\",IF(ISERROR(MATCH($J1666,SorP!$B$1:$B$6230,0)),\"\",INDIRECT(\"'SorP'!$A$\"&MATCH($J1666,SorP!$B$1:$B$6230,0))))","v":""},null,{"$f":"IF(C1666=\"\",NA(),MATCH($B1666&$C1666,'Smelter Look-up'!$J:$J,0))","v":{"$error":"#N/A"}},null,0,null,null,null,""]
[null,{"$f":"IF(LEN(A1667)=0,\"\",INDEX('Smelter Look-up'!$A:$A,MATCH($A1667,'Smelter Look-up'!$E:$E,0)))","v":""},{"$f":"IF(LEN(A1667)=0,\"\",INDEX('Smelter Look-up'!$C:$C,MATCH($A1667,'Smelter Look-up'!$E:$E,0)))","v":""},null,{"$f":"IF(ISERROR($V1667),\"\",OFFSET('Smelter Look-up'!$D$4,$V1667-4,0)&\"\")","v":""},{"$f":"IF(ISERROR($V1667),\"\",OFFSET('Smelter Look-up'!$E$4,$V1667-4,0))","v":""},{"$f":"IF(C1667=$X$4,\"Enter smelter details\", IF(ISERROR($V1667),\"\",OFFSET('Smelter Look-up'!$F$4,$V1667-4,0)))","v":""},{"$f":"IF(ISERROR($V1667),\"\",OFFSET('Smelter Look-up'!$G$4,$V1667-4,0))","v":""},{"$f":"IF(ISERROR($V1667),\"\",OFFSET('Smelter Look-up'!$H$4,$V1667-4,0))","v":""},{"$f":"IF(ISERROR($V1667),\"\",OFFSET('Smelter Look-up'!$I$4,$V1667-4,0))","v":""},{"$nulls":7},{"$f":"IF(ISERROR($V1667),\"\",OFFSET('Smelter Look-up'!$C$4,$V1667-4,0)&\"\")","v":""},"",{"$f":"IF(B1667=\"\",\"\",IF(ISERROR(MATCH($J1667,SorP!$B$1:$B$6230,0)),\"\",INDIRECT(\"'SorP'!$A$\"&MATCH($J1667,SorP!$B$1:$B$6230,0))))","v":""},null,{"$f":"IF(C1667=\"\",NA(),MATCH($B1667&$C1667,'Smelter Look-up'!$J:$J,0))","v":{"$error":"#N/A"}},null,0,null,null,null,""]
[null,{"$f":"IF(LEN(A1668)=0,\"\",INDEX('Smelter Look-up'!$A:$A,MATCH($A1668,'Smelter Look-up'!$E:$E,0)))","v":""},{"$f":"IF(LEN(A1668)=0,\"\",INDEX('Smelter Look-up'!$C:$C,MATCH($A1668,'Smelter Look-up'!$E:$E,0)))","v":""},null,{"$f":"IF(ISERROR($V1668),\"\",OFFSET('Smelter Look-up'!$D$4,$V1668-4,0)&\"\")","v":""},{"$f":"IF(ISERROR($V1668),\"\",OFFSET('Smelter Look-up'!$E$4,$V1668-4,0))","v":""},{"$f":"IF(C1668=$X$4,\"Enter smelter details\", IF(ISERROR($V1668),\"\",OFFSET('Smelter Look-up'!$F$4,$V1668-4,0)))","v":""},{"$f":"IF(ISERROR($V1668),\"\",OFFSET('Smelter Look-up'!$G$4,$V1668-4,0))","v":""},{"$f":"IF(ISERROR($V1668),\"\",OFFSET('Smelter Look-up'!$H$4,$V1668-4,0))","v":""},{"$f":"IF(ISERROR($V1668),\"\",OFFSET('Smelter Look-up'!$I$4,$V1668-4,0))","v":""},{"$nulls":7},{"$f":"IF(ISERROR($V1668),\"\",OFFSET('Smelter Look-up'!$C$4,$V1668-4,0)&\"\")","v":""},"",{"$f":"IF(B1668=\"\",\"\",IF(ISERROR(MATCH($J1668,SorP!$B$1:$B$6230,0)),\"\",INDIRECT(\"'SorP'!$A$\"&MATCH($J1668,SorP!$B$1:$B$6230,0))))","v":""},null,{"$f":"IF(C1668=\"\",NA(),MATCH($B1668&$C1668,'Smelter Look-up'!$J:$J,0))","v":{"$error":"#N/A"}},null,0,null,null,null,""]
[null,{"$f":"IF(LEN(A1669)=0,\"\",INDEX('Smelter Look-up'!$A:$A,MATCH($A1669,'Smelter Look-up'!$E:$E,0)))","v":""},{"$f":"IF(LEN(A1669)=0,\"\",INDEX('Smelter Look-up'!$C:$C,MATCH($A1669,'Smelter Look-up'!$E:$E,0)))","v":""},null,{"$f":"IF(ISERROR($V1669),\"\",OFFSET('Smelter Look-up'!$D$4,$V1669-4,0)&\"\")","v":""},{"$f":"IF(ISERROR($V1669),\"\",OFFSET('Smelter Look-up'!$E$4,$V1669-4,0))","v":""},{"$f":"IF(C1669=$X$4,\"Enter smelter details\", IF(ISERROR($V1669),\"\",OFFSET('Smelter Look-up'!$F$4,$V1669-4,0)))","v":""},{"$f":"IF(ISERROR($V1669),\"\",OFFSET('Smelter Look-up'!$G$4,$V1669-4,0))","v":""},{"$f":"IF(ISERROR($V1669),\"\",OFFSET('Smelter Look-up'!$H$4,$V1669-4,0))","v":""},{"$f":"IF(ISERROR($V1669),\"\",OFFSET('Smelter Look-up'!$I$4,$V1669-4,0))","v":""},{"$nulls":7},{"$f":"IF(ISERROR($V1669),\"\",OFFSET('Smelter Look-up'!$C$4,$V1669-4,0)&\"\")","v":""},"",{"$f":"IF(B1669=\"\",\"\",IF(ISERROR(MATCH($J1669,SorP!$B$1:$B$6230,0)),\"\",INDIRECT(\"'SorP'!$A$\"&MATCH($J1669,SorP!$B$1:$B$6230,0))))","v":""},null,{"$f":"IF(C1669=\"\",NA(),MATCH($B1669&$C1669,'Smelter Look-up'!$J:$J,0))","v":{"$error":"#N/A"}},null,0,null,null,null,""]
[null,{"$f":"IF(LEN(A1670)=0,\"\",INDEX('Smelter Look-up'!$A:$A,MATCH($A1670,'Smelter Look-up'!$E:$E,0)))","v":""},{"$f":"IF(LEN(A1670)=0,\"\",INDEX('Smelter Look-up'!$C:$C,MATCH($A1670,'Smelter Look-up'!$E:$E,0)))","v":""},null,{"$f":"IF(ISERROR($V1670),\"\",OFFSET('Smelter Look-up'!$D$4,$V1670-4,0)&\"\")","v":""},{"$f":"IF(ISERROR($V1670),\"\",OFFSET('Smelter Look-up'!$E$4,$V1670-4,0))","v":""},{"$f":"IF(C1670=$X$4,\"Enter smelter details\", IF(ISERROR($V1670),\"\",OFFSET('Smelter Look-up'!$F$4,$V1670-4,0)))","v":""},{"$f":"IF(ISERROR($V1670),\"\",OFFSET('Smelter Look-up'!$G$4,$V1670-4,0))","v":""},{"$f":"IF(ISERROR($V1670),\"\",OFFSET('Smelter Look-up'!$H$4,$V1670-4,0))","v":""},{"$f":"IF(ISERROR($V1670),\"\",OFFSET('Smelter Look-up'!$I$4,$V1670-4,0))","v":""},{"$nulls":7},{"$f":"IF(ISERROR($V1670),\"\",OFFSET('Smelter Look-up'!$C$4,$V1670-4,0)&\"\")","v":""},"",{"$f":"IF(B1670=\"\",\"\",IF(ISERROR(MATCH($J1670,SorP!$B$1:$B$6230,0)),\"\",INDIRECT(\"'SorP'!$A$\"&MATCH($J1670,SorP!$B$1:$B$6230,0))))","v":""},null,{"$f":"IF(C1670=\"\",NA(),MATCH($B1670&$C1670,'Smelter Look-up'!$J:$J,0))","v":{"$error":"#N/A"}},null,0,null,null,null,""]
[null,{"$f":"IF(LEN(A1671)=0,\"\",INDEX('Smelter Look-up'!$A:$A,MATCH($A1671,'Smelter Look-up'!$E:$E,0)))","v":""},{"$f":"IF(LEN(A1671)=0,\"\",INDEX('Smelter Look-up'!$C:$C,MATCH($A1671,'Smelter Look-up'!$E:$E,0)))","v":""},null,{"$f":"IF(ISERROR($V1671),\"\",OFFSET('Smelter Look-up'!$D$4,$V1671-4,0)&\"\")","v":""},{"$f":"IF(ISERROR($V1671),\"\",OFFSET('Smelter Look-up'!$E$4,$V1671-4,0))","v":""},{"$f":"IF(C1671=$X$4,\"Enter smelter details\", IF(ISERROR($V1671),\"\",OFFSET('Smelter Look-up'!$F$4,$V1671-4,0)))","v":""},{"$f":"IF(ISERROR($V1671),\"\",OFFSET('Smelter Look-up'!$G$4,$V1671-4,0))","v":""},{"$f":"IF(ISERROR($V1671),\"\",OFFSET('Smelter Look-up'!$H$4,$V1671-4,0))","v":""},{"$f":"IF(ISERROR($V1671),\"\",OFFSET('Smelter Look-up'!$I$4,$V1671-4,0))","v":""},{"$nulls":7},{"$f":"IF(ISERROR($V1671),\"\",OFFSET('Smelter Look-up'!$C$4,$V1671-4,0)&\"\")","v":""},"",{"$f":"IF(B1671=\"\",\"\",IF(ISERROR(MATCH($J1671,SorP!$B$1:$B$6230,0)),\"\",INDIRECT(\"'SorP'!$A$\"&MATCH($J1671,SorP!$B$1:$B$6230,0))))","v":""},null,{"$f":"IF(C1671=\"\",NA(),MATCH($B1671&$C1671,'Smelter Look-up'!$J:$J,0))","v":{"$error":"#N/A"}},null,0,null,null,null,""]
[null,{"$f":"IF(LEN(A1672)=0,\"\",INDEX('Smelter Look-up'!$A:$A,MATCH($A1672,'Smelter Look-up'!$E:$E,0)))","v":""},{"$f":"IF(LEN(A1672)=0,\"\",INDEX('Smelter Look-up'!$C:$C,MATCH($A1672,'Smelter Look-up'!$E:$E,0)))","v":""},null,{"$f":"IF(ISERROR($V1672),\"\",OFFSET('Smelter Look-up'!$D$4,$V1672-4,0)&\"\")","v":""},{"$f":"IF(ISERROR($V1672),\"\",OFFSET('Smelter Look-up'!$E$4,$V1672-4,0))","v":""},{"$f":"IF(C1672=$X$4,\"Enter smelter details\", IF(ISERROR($V1672),\"\",OFFSET('Smelter Look-up'!$F$4,$V1672-4,0)))","v":""},{"$f":"IF(ISERROR($V1672),\"\",OFFSET('Smelter Look-up'!$G$4,$V1672-4,0))","v":""},{"$f":"IF(ISERROR($V1672),\"\",OFFSET('Smelter Look-up'!$H$4,$V1672-4,0))","v":""},{"$f":"IF(ISERROR($V1672),\"\",OFFSET('Smelter Look-up'!$I$4,$V1672-4,0))","v":""},{"$nulls":7},{"$f":"IF(ISERROR($V1672),\"\",OFFSET('Smelter Look-up'!$C$4,$V1672-4,0)&\"\")","v":""},"",{"$f":"IF(B1672=\"\",\"\",IF(ISERROR(MATCH($J1672,SorP!$B$1:$B$6230,0)),\"\",INDIRECT(\"'SorP'!$A$\"&MATCH($J1672,SorP!$B$1:$B$6230,0))))","v":""},null,{"$f":"IF(C1672=\"\",NA(),MATCH($B1672&$C1672,'Smelter Look-up'!$J:$J,0))","v":{"$error":"#N/A"}},null,0,null,null,null,""]
[null,{"$f":"IF(LEN(A1673)=0,\"\",INDEX('Smelter Look-up'!$A:$A,MATCH($A1673,'Smelter Look-up'!$E:$E,0)))","v":""},{"$f":"IF(LEN(A1673)=0,\"\",INDEX('Smelter Look-up'!$C:$C,MATCH($A1673,'Smelter Look-up'!$E:$E,0)))","v":""},null,{"$f":"IF(ISERROR($V1673),\"\",OFFSET('Smelter Look-up'!$D$4,$V1673-4,0)&\"\")","v":""},{"$f":"IF(ISERROR($V1673),\"\",OFFSET('Smelter Look-up'!$E$4,$V1673-4,0))","v":""},{"$f":"IF(C1673=$X$4,\"Enter smelter details\", IF(ISERROR($V1673),\"\",OFFSET('Smelter Look-up'!$F$4,$V1673-4,0)))","v":""},{"$f":"IF(ISERROR($V1673),\"\",OFFSET('Smelter Look-up'!$G$4,$V1673-4,0))","v":""},{"$f":"IF(ISERROR($V1673),\"\",OFFSET('Smelter Look-up'!$H$4,$V1673-4,0))","v":""},{"$f":"IF(ISERROR($V1673),\"\",OFFSET('Smelter Look-up'!$I$4,$V1673-4,0))","v":""},{"$nulls":7},{"$f":"IF(ISERROR($V1673),\"\",OFFSET('Smelter Look-up'!$C$4,$V1673-4,0)&\"\")","v":""},"",{"$f":"IF(B1673=\"\",\"\",IF(ISERROR(MATCH($J1673,SorP!$B$1:$B$6230,0)),\"\",INDIRECT(\"'SorP'!$A$\"&MATCH($J1673,SorP!$B$1:$B$6230,0))))","v":""},null,{"$f":"IF(C1673=\"\",NA(),MATCH($B1673&$C1673,'Smelter Look-up'!$J:$J,0))","v":{"$error":"#N/A"}},null,0,null,null,null,""]
[null,{"$f":"IF(LEN(A1674)=0,\"\",INDEX('Smelter Look-up'!$A:$A,MATCH($A1674,'Smelter Look-up'!$E:$E,0)))","v":""},{"$f":"IF(LEN(A1674)=0,\"\",INDEX('Smelter Look-up'!$C:$C,MATCH($A1674,'Smelter Look-up'!$E:$E,0)))","v":""},null,{"$f":"IF(ISERROR($V1674),\"\",OFFSET('Smelter Look-up'!$D$4,$V1674-4,0)&\"\")","v":""},{"$f":"IF(ISERROR($V1674),\"\",OFFSET('Smelter Look-up'!$E$4,$V1674-4,0))","v":""},{"$f":"IF(C1674=$X$4,\"Enter smelter details\", IF(ISERROR($V1674),\"\",OFFSET('Smelter Look-up'!$F$4,$V1674-4,0)))","v":""},{"$f":"IF(ISERROR($V1674),\"\",OFFSET('Smelter Look-up'!$G$4,$V1674-4,0))","v":""},{"$f":"IF(ISERROR($V1674),\"\",OFFSET('Smelter Look-up'!$H$4,$V1674-4,0))","v":""},{"$f":"IF(ISERROR($V1674),\"\",OFFSET('Smelter Look-up'!$I$4,$V1674-4,0))","v":""},{"$nulls":7},{"$f":"IF(ISERROR($V1674),\"\",OFFSET('Smelter Look-up'!$C$4,$V1674-4,0)&\"\")","v":""},"",{"$f":"IF(B1674=\"\",\"\",IF(ISERROR(MATCH($J1674,SorP!$B$1:$B$6230,0)),\"\",INDIRECT(\"'SorP'!$A$\"&MATCH($J1674,SorP!$B$1:$B$6230,0))))","v":""},null,{"$f":"IF(C1674=\"\",NA(),MATCH($B1674&$C1674,'Smelter Look-up'!$J:$J,0))","v":{"$error":"#N/A"}},null,0,null,null,null,""]
[null,{"$f":"IF(LEN(A1675)=0,\"\",INDEX('Smelter Look-up'!$A:$A,MATCH($A1675,'Smelter Look-up'!$E:$E,0)))","v":""},{"$f":"IF(LEN(A1675)=0,\"\",INDEX('Smelter Look-up'!$C:$C,MATCH($A1675,'Smelter Look-up'!$E:$E,0)))","v":""},null,{"$f":"IF(ISERROR($V1675),\"\",OFFSET('Smelter Look-up'!$D$4,$V1675-4,0)&\"\")","v":""},{"$f":"IF(ISERROR($V1675),\"\",OFFSET('Smelter Look-up'!$E$4,$V1675-4,0))","v":""},{"$f":"IF(C1675=$X$4,\"Enter smelter details\", IF(ISERROR($V1675),\"\",OFFSET('Smelter Look-up'!$F$4,$V1675-4,0)))","v":""},{"$f":"IF(ISERROR($V1675),\"\",OFFSET('Smelter Look-up'!$G$4,$V1675-4,0))","v":""},{"$f":"IF(ISERROR($V1675),\"\",OFFSET('Smelter Look-up'!$H$4,$V1675-4,0))","v":""},{"$f":"IF(ISERROR($V1675),\"\",OFFSET('Smelter Look-up'!$I$4,$V1675-4,0))","v":""},{"$nulls":7},{"$f":"IF(ISERROR($V1675),\"\",OFFSET('Smelter Look-up'!$C$4,$V1675-4,0)&\"\")","v":""},"",{"$f":"IF(B1675=\"\",\"\",IF(ISERROR(MATCH($J1675,SorP!$B$1:$B$6230,0)),\"\",INDIRECT(\"'SorP'!$A$\"&MATCH($J1675,SorP!$B$1:$B$6230,0))))","v":""},null,{"$f":"IF(C1675=\"\",NA(),MATCH($B1675&$C1675,'Smelter Look-up'!$J:$J,0))","v":{"$error":"#N/A"}},null,0,null,null,null,""]
[null,{"$f":"IF(LEN(A1676)=0,\"\",INDEX('Smelter Look-up'!$A:$A,MATCH($A1676,'Smelter Look-up'!$E:$E,0)))","v":""},{"$f":"IF(LEN(A1676)=0,\"\",INDEX('Smelter Look-up'!$C:$C,MATCH($A1676,'Smelter Look-up'!$E:$E,0)))","v":""},null,{"$f":"IF(ISERROR($V1676),\"\",OFFSET('Smelter Look-up'!$D$4,$V1676-4,0)&\"\")","v":""},{"$f":"IF(ISERROR($V1676),\"\",OFFSET('Smelter Look-up'!$E$4,$V1676-4,0))","v":""},{"$f":"IF(C1676=$X$4,\"Enter smelter details\", IF(ISERROR($V1676),\"\",OFFSET('Smelter Look-up'!$F$4,$V1676-4,0)))","v":""},{"$f":"IF(ISERROR($V1676),\"\",OFFSET('Smelter Look-up'!$G$4,$V1676-4,0))","v":""},{"$f":"IF(ISERROR($V1676),\"\",OFFSET('Smelter Look-up'!$H$4,$V1676-4,0))","v":""},{"$f":"IF(ISERROR($V1676),\"\",OFFSET('Smelter Look-up'!$I$4,$V1676-4,0))","v":""},{"$nulls":7},{"$f":"IF(ISERROR($V1676),\"\",OFFSET('Smelter Look-up'!$C$4,$V1676-4,0)&\"\")","v":""},"",{"$f":"IF(B1676=\"\",\"\",IF(ISERROR(MATCH($J1676,SorP!$B$1:$B$6230,0)),\"\",INDIRECT(\"'SorP'!$A$\"&MATCH($J1676,SorP!$B$1:$B$6230,0))))","v":""},null,{"$f":"IF(C1676=\"\",NA(),MATCH($B1676&$C1676,'Smelter Look-up'!$J:$J,0))","v":{"$error":"#N/A"}},null,0,null,null,null,""]
[null,{"$f":"IF(LEN(A1677)=0,\"\",INDEX('Smelter Look-up'!$A:$A,MATCH($A1677,'Smelter Look-up'!$E:$E,0)))","v":""},{"$f":"IF(LEN(A1677)=0,\"\",INDEX('Smelter Look-up'!$C:$C,MATCH($A1677,'Smelter Look-up'!$E:$E,0)))","v":""},null,{"$f":"IF(ISERROR($V1677),\"\",OFFSET('Smelter Look-up'!$D$4,$V1677-4,0)&\"\")","v":""},{"$f":"IF(ISERROR($V1677),\"\",OFFSET('Smelter Look-up'!$E$4,$V1677-4,0))","v":""},{"$f":"IF(C1677=$X$4,\"Enter smelter details\", IF(ISERROR($V1677),\"\",OFFSET('Smelter Look-up'!$F$4,$V1677-4,0)))","v":""},{"$f":"IF(ISERROR($V1677),\"\",OFFSET('Smelter Look-up'!$G$4,$V1677-4,0))","v":""},{"$f":"IF(ISERROR($V1677),\"\",OFFSET('Smelter Look-up'!$H$4,$V1677-4,0))","v":""},{"$f":"IF(ISERROR($V1677),\"\",OFFSET('Smelter Look-up'!$I$4,$V1677-4,0))","v":""},{"$nulls":7},{"$f":"IF(ISERROR($V1677),\"\",OFFSET('Smelter Look-up'!$C$4,$V1677-4,0)&\"\")","v":""},"",{"$f":"IF(B1677=\"\",\"\",IF(ISERROR(MATCH($J1677,SorP!$B$1:$B$6230,0)),\"\",INDIRECT(\"'SorP'!$A$\"&MATCH($J1677,SorP!$B$1:$B$6230,0))))","v":""},null,{"$f":"IF(C1677=\"\",NA(),MATCH($B1677&$C1677,'Smelter Look-up'!$J:$J,0))","v":{"$error":"#N/A"}},null,0,null,null,null,""]
[null,{"$f":"IF(LEN(A1678)=0,\"\",INDEX('Smelter Look-up'!$A:$A,MATCH($A1678,'Smelter Look-up'!$E:$E,0)))","v":""},{"$f":"IF(LEN(A1678)=0,\"\",INDEX('Smelter Look-up'!$C:$C,MATCH($A1678,'Smelter Look-up'!$E:$E,0)))","v":""},null,{"$f":"IF(ISERROR($V1678),\"\",OFFSET('Smelter Look-up'!$D$4,$V1678-4,0)&\"\")","v":""},{"$f":"IF(ISERROR($V1678),\"\",OFFSET('Smelter Look-up'!$E$4,$V1678-4,0))","v":""},{"$f":"IF(C1678=$X$4,\"Enter smelter details\", IF(ISERROR($V1678),\"\",OFFSET('Smelter Look-up'!$F$4,$V1678-4,0)))","v":""},{"$f":"IF(ISERROR($V1678),\"\",OFFSET('Smelter Look-up'!$G$4,$V1678-4,0))","v":""},{"$f":"IF(ISERROR($V1678),\"\",OFFSET('Smelter Look-up'!$H$4,$V1678-4,0))","v":""},{"$f":"IF(ISERROR($V1678),\"\",OFFSET('Smelter Look-up'!$I$4,$V1678-4,0))","v":""},{"$nulls":7},{"$f":"IF(ISERROR($V1678),\"\",OFFSET('Smelter Look-up'!$C$4,$V1678-4,0)&\"\")","v":""},"",{"$f":"IF(B1678=\"\",\"\",IF(ISERROR(MATCH($J1678,SorP!$B$1:$B$6230,0)),\"\",INDIRECT(\"'SorP'!$A$\"&MATCH($J1678,SorP!$B$1:$B$6230,0))))","v":""},null,{"$f":"IF(C1678=\"\",NA(),MATCH($B1678&$C1678,'Smelter Look-up'!$J:$J,0))","v":{"$error":"#N/A"}},null,0,null,null,null,""]
[null,{"$f":"IF(LEN(A1679)=0,\"\",INDEX('Smelter Look-up'!$A:$A,MATCH($A1679,'Smelter Look-up'!$E:$E,0)))","v":""},{"$f":"IF(LEN(A1679)=0,\"\",INDEX('Smelter Look-up'!$C:$C,MATCH($A1679,'Smelter Look-up'!$E:$E,0)))","v":""},null,{"$f":"IF(ISERROR($V1679),\"\",OFFSET('Smelter Look-up'!$D$4,$V1679-4,0)&\"\")","v":""},{"$f":"IF(ISERROR($V1679),\"\",OFFSET('Smelter Look-up'!$E$4,$V1679-4,0))","v":""},{"$f":"IF(C1679=$X$4,\"Enter smelter details\", IF(ISERROR($V1679),\"\",OFFSET('Smelter Look-up'!$F$4,$V1679-4,0)))","v":""},{"$f":"IF(ISERROR($V1679),\"\",OFFSET('Smelter Look-up'!$G$4,$V1679-4,0))","v":""},{"$f":"IF(ISERROR($V1679),\"\",OFFSET('Smelter Look-up'!$H$4,$V1679-4,0))","v":""},{"$f":"IF(ISERROR($V1679),\"\",OFFSET('Smelter Look-up'!$I$4,$V1679-4,0))","v":""},{"$nulls":7},{"$f":"IF(ISERROR($V1679),\"\",OFFSET('Smelter Look-up'!$C$4,$V1679-4,0)&\"\")","v":""},"",{"$f":"IF(B1679=\"\",\"\",IF(ISERROR(MATCH($J1679,SorP!$B$1:$B$6230,0)),\"\",INDIRECT(\"'SorP'!$A$\"&MATCH($J1679,SorP!$B$1:$B$6230,0))))","v":""},null,{"$f":"IF(C1679=\"\",NA(),MATCH($B1679&$C1679,'Smelter Look-up'!$J:$J,0))","v":{"$error":"#N/A"}},null,0,null,null,null,""]
[null,{"$f":"IF(LEN(A1680)=0,\"\",INDEX('Smelter Look-up'!$A:$A,MATCH($A1680,'Smelter Look-up'!$E:$E,0)))","v":""},{"$f":"IF(LEN(A1680)=0,\"\",INDEX('Smelter Look-up'!$C:$C,MATCH($A1680,'Smelter Look-up'!$E:$E,0)))","v":""},null,{"$f":"IF(ISERROR($V1680),\"\",OFFSET('Smelter Look-up'!$D$4,$V1680-4,0)&\"\")","v":""},{"$f":"IF(ISERROR($V1680),\"\",OFFSET('Smelter Look-up'!$E$4,$V1680-4,0))","v":""},{"$f":"IF(C1680=$X$4,\"Enter smelter details\", IF(ISERROR($V1680),\"\",OFFSET('Smelter Look-up'!$F$4,$V1680-4,0)))","v":""},{"$f":"IF(ISERROR($V1680),\"\",OFFSET('Smelter Look-up'!$G$4,$V1680-4,0))","v":""},{"$f":"IF(ISERROR($V1680),\"\",OFFSET('Smelter Look-up'!$H$4,$V1680-4,0))","v":""},{"$f":"IF(ISERROR($V1680),\"\",OFFSET('Smelter Look-up'!$I$4,$V1680-4,0))","v":""},{"$nulls":7},{"$f":"IF(ISERROR($V1680),\"\",OFFSET('Smelter Look-up'!$C$4,$V1680-4,0)&\"\")","v":""},"",{"$f":"IF(B1680=\"\",\"\",IF(ISERROR(MATCH($J1680,SorP!$B$1:$B$6230,0)),\"\",INDIRECT(\"'SorP'!$A$\"&MATCH($J1680,SorP!$B$1:$B$6230,0))))","v":""},null,{"$f":"IF(C1680=\"\",NA(),MATCH($B1680&$C1680,'Smelter Look-up'!$J:$J,0))","v":{"$error":"#N/A"}},null,0,null,null,null,""]
[null,{"$f":"IF(LEN(A1681)=0,\"\",INDEX('Smelter Look-up'!$A:$A,MATCH($A1681,'Smelter Look-up'!$E:$E,0)))","v":""},{"$f":"IF(LEN(A1681)=0,\"\",INDEX('Smelter Look-up'!$C:$C,MATCH($A1681,'Smelter Look-up'!$E:$E,0)))","v":""},null,{"$f":"IF(ISERROR($V1681),\"\",OFFSET('Smelter Look-up'!$D$4,$V1681-4,0)&\"\")","v":""},{"$f":"IF(ISERROR($V1681),\"\",OFFSET('Smelter Look-up'!$E$4,$V1681-4,0))","v":""},{"$f":"IF(C1681=$X$4,\"Enter smelter details\", IF(ISERROR($V1681),\"\",OFFSET('Smelter Look-up'!$F$4,$V1681-4,0)))","v":""},{"$f":"IF(ISERROR($V1681),\"\",OFFSET('Smelter Look-up'!$G$4,$V1681-4,0))","v":""},{"$f":"IF(ISERROR($V1681),\"\",OFFSET('Smelter Look-up'!$H$4,$V1681-4,0))","v":""},{"$f":"IF(ISERROR($V1681),\"\",OFFSET('Smelter Look-up'!$I$4,$V1681-4,0))","v":""},{"$nulls":7},{"$f":"IF(ISERROR($V1681),\"\",OFFSET('Smelter Look-up'!$C$4,$V1681-4,0)&\"\")","v":""},"",{"$f":"IF(B1681=\"\",\"\",IF(ISERROR(MATCH($J1681,SorP!$B$1:$B$6230,0)),\"\",INDIRECT(\"'SorP'!$A$\"&MATCH($J1681,SorP!$B$1:$B$6230,0))))","v":""},null,{"$f":"IF(C1681=\"\",NA(),MATCH($B1681&$C1681,'Smelter Look-up'!$J:$J,0))","v":{"$error":"#N/A"}},null,0,null,null,null,""]
[null,{"$f":"IF(LEN(A1682)=0,\"\",INDEX('Smelter Look-up'!$A:$A,MATCH($A1682,'Smelter Look-up'!$E:$E,0)))","v":""},{"$f":"IF(LEN(A1682)=0,\"\",INDEX('Smelter Look-up'!$C:$C,MATCH($A1682,'Smelter Look-up'!$E:$E,0)))","v":""},null,{"$f":"IF(ISERROR($V1682),\"\",OFFSET('Smelter Look-up'!$D$4,$V1682-4,0)&\"\")","v":""},{"$f":"IF(ISERROR($V1682),\"\",OFFSET('Smelter Look-up'!$E$4,$V1682-4,0))","v":""},{"$f":"IF(C1682=$X$4,\"Enter smelter details\", IF(ISERROR($V1682),\"\",OFFSET('Smelter Look-up'!$F$4,$V1682-4,0)))","v":""},{"$f":"IF(ISERROR($V1682),\"\",OFFSET('Smelter Look-up'!$G$4,$V1682-4,0))","v":""},{"$f":"IF(ISERROR($V1682),\"\",OFFSET('Smelter Look-up'!$H$4,$V1682-4,0))","v":""},{"$f":"IF(ISERROR($V1682),\"\",OFFSET('Smelter Look-up'!$I$4,$V1682-4,0))","v":""},{"$nulls":7},{"$f":"IF(ISERROR($V1682),\"\",OFFSET('Smelter Look-up'!$C$4,$V1682-4,0)&\"\")","v":""},"",{"$f":"IF(B1682=\"\",\"\",IF(ISERROR(MATCH($J1682,SorP!$B$1:$B$6230,0)),\"\",INDIRECT(\"'SorP'!$A$\"&MATCH($J1682,SorP!$B$1:$B$6230,0))))","v":""},null,{"$f":"IF(C1682=\"\",NA(),MATCH($B1682&$C1682,'Smelter Look-up'!$J:$J,0))","v":{"$error":"#N/A"}},null,0,null,null,null,""]
[null,{"$f":"IF(LEN(A1683)=0,\"\",INDEX('Smelter Look-up'!$A:$A,MATCH($A1683,'Smelter Look-up'!$E:$E,0)))","v":""},{"$f":"IF(LEN(A1683)=0,\"\",INDEX('Smelter Look-up'!$C:$C,MATCH($A1683,'Smelter Look-up'!$E:$E,0)))","v":""},null,{"$f":"IF(ISERROR($V1683),\"\",OFFSET('Smelter Look-up'!$D$4,$V1683-4,0)&\"\")","v":""},{"$f":"IF(ISERROR($V1683),\"\",OFFSET('Smelter Look-up'!$E$4,$V1683-4,0))","v":""},{"$f":"IF(C1683=$X$4,\"Enter smelter details\", IF(ISERROR($V1683),\"\",OFFSET('Smelter Look-up'!$F$4,$V1683-4,0)))","v":""},{"$f":"IF(ISERROR($V1683),\"\",OFFSET('Smelter Look-up'!$G$4,$V1683-4,0))","v":""},{"$f":"IF(ISERROR($V1683),\"\",OFFSET('Smelter Look-up'!$H$4,$V1683-4,0))","v":""},{"$f":"IF(ISERROR($V1683),\"\",OFFSET('Smelter Look-up'!$I$4,$V1683-4,0))","v":""},{"$nulls":7},{"$f":"IF(ISERROR($V1683),\"\",OFFSET('Smelter Look-up'!$C$4,$V1683-4,0)&\"\")","v":""},"",{"$f":"IF(B1683=\"\",\"\",IF(ISERROR(MATCH($J1683,SorP!$B$1:$B$6230,0)),\"\",INDIRECT(\"'SorP'!$A$\"&MATCH($J1683,SorP!$B$1:$B$6230,0))))","v":""},null,{"$f":"IF(C1683=\"\",NA(),MATCH($B1683&$C1683,'Smelter Look-up'!$J:$J,0))","v":{"$error":"#N/A"}},null,0,null,null,null,""]
[null,{"$f":"IF(LEN(A1684)=0,\"\",INDEX('Smelter Look-up'!$A:$A,MATCH($A1684,'Smelter Look-up'!$E:$E,0)))","v":""},{"$f":"IF(LEN(A1684)=0,\"\",INDEX('Smelter Look-up'!$C:$C,MATCH($A1684,'Smelter Look-up'!$E:$E,0)))","v":""},null,{"$f":"IF(ISERROR($V1684),\"\",OFFSET('Smelter Look-up'!$D$4,$V1684-4,0)&\"\")","v":""},{"$f":"IF(ISERROR($V1684),\"\",OFFSET('Smelter Look-up'!$E$4,$V1684-4,0))","v":""},{"$f":"IF(C1684=$X$4,\"Enter smelter details\", IF(ISERROR($V1684),\"\",OFFSET('Smelter Look-up'!$F$4,$V1684-4,0)))","v":""},{"$f":"IF(ISERROR($V1684),\"\",OFFSET('Smelter Look-up'!$G$4,$V1684-4,0))","v":""},{"$f":"IF(ISERROR($V1684),\"\",OFFSET('Smelter Look-up'!$H$4,$V1684-4,0))","v":""},{"$f":"IF(ISERROR($V1684),\"\",OFFSET('Smelter Look-up'!$I$4,$V1684-4,0))","v":""},{"$nulls":7},{"$f":"IF(ISERROR($V1684),\"\",OFFSET('Smelter Look-up'!$C$4,$V1684-4,0)&\"\")","v":""},"",{"$f":"IF(B1684=\"\",\"\",IF(ISERROR(MATCH($J1684,SorP!$B$1:$B$6230,0)),\"\",INDIRECT(\"'SorP'!$A$\"&MATCH($J1684,SorP!$B$1:$B$6230,0))))","v":""},null,{"$f":"IF(C1684=\"\",NA(),MATCH($B1684&$C1684,'Smelter Look-up'!$J:$J,0))","v":{"$error":"#N/A"}},null,0,null,null,null,""]
[null,{"$f":"IF(LEN(A1685)=0,\"\",INDEX('Smelter Look-up'!$A:$A,MATCH($A1685,'Smelter Look-up'!$E:$E,0)))","v":""},{"$f":"IF(LEN(A1685)=0,\"\",INDEX('Smelter Look-up'!$C:$C,MATCH($A1685,'Smelter Look-up'!$E:$E,0)))","v":""},null,{"$f":"IF(ISERROR($V1685),\"\",OFFSET('Smelter Look-up'!$D$4,$V1685-4,0)&\"\")","v":""},{"$f":"IF(ISERROR($V1685),\"\",OFFSET('Smelter Look-up'!$E$4,$V1685-4,0))","v":""},{"$f":"IF(C1685=$X$4,\"Enter smelter details\", IF(ISERROR($V1685),\"\",OFFSET('Smelter Look-up'!$F$4,$V1685-4,0)))","v":""},{"$f":"IF(ISERROR($V1685),\"\",OFFSET('Smelter Look-up'!$G$4,$V1685-4,0))","v":""},{"$f":"IF(ISERROR($V1685),\"\",OFFSET('Smelter Look-up'!$H$4,$V1685-4,0))","v":""},{"$f":"IF(ISERROR($V1685),\"\",OFFSET('Smelter Look-up'!$I$4,$V1685-4,0))","v":""},{"$nulls":7},{"$f":"IF(ISERROR($V1685),\"\",OFFSET('Smelter Look-up'!$C$4,$V1685-4,0)&\"\")","v":""},"",{"$f":"IF(B1685=\"\",\"\",IF(ISERROR(MATCH($J1685,SorP!$B$1:$B$6230,0)),\"\",INDIRECT(\"'SorP'!$A$\"&MATCH($J1685,SorP!$B$1:$B$6230,0))))","v":""},null,{"$f":"IF(C1685=\"\",NA(),MATCH($B1685&$C1685,'Smelter Look-up'!$J:$J,0))","v":{"$error":"#N/A"}},null,0,null,null,null,""]
[null,{"$f":"IF(LEN(A1686)=0,\"\",INDEX('Smelter Look-up'!$A:$A,MATCH($A1686,'Smelter Look-up'!$E:$E,0)))","v":""},{"$f":"IF(LEN(A1686)=0,\"\",INDEX('Smelter Look-up'!$C:$C,MATCH($A1686,'Smelter Look-up'!$E:$E,0)))","v":""},null,{"$f":"IF(ISERROR($V1686),\"\",OFFSET('Smelter Look-up'!$D$4,$V1686-4,0)&\"\")","v":""},{"$f":"IF(ISERROR($V1686),\"\",OFFSET('Smelter Look-up'!$E$4,$V1686-4,0))","v":""},{"$f":"IF(C1686=$X$4,\"Enter smelter details\", IF(ISERROR($V1686),\"\",OFFSET('Smelter Look-up'!$F$4,$V1686-4,0)))","v":""},{"$f":"IF(ISERROR($V1686),\"\",OFFSET('Smelter Look-up'!$G$4,$V1686-4,0))","v":""},{"$f":"IF(ISERROR($V1686),\"\",OFFSET('Smelter Look-up'!$H$4,$V1686-4,0))","v":""},{"$f":"IF(ISERROR($V1686),\"\",OFFSET('Smelter Look-up'!$I$4,$V1686-4,0))","v":""},{"$nulls":7},{"$f":"IF(ISERROR($V1686),\"\",OFFSET('Smelter Look-up'!$C$4,$V1686-4,0)&\"\")","v":""},"",{"$f":"IF(B1686=\"\",\"\",IF(ISERROR(MATCH($J1686,SorP!$B$1:$B$6230,0)),\"\",INDIRECT(\"'SorP'!$A$\"&MATCH($J1686,SorP!$B$1:$B$6230,0))))","v":""},null,{"$f":"IF(C1686=\"\",NA(),MATCH($B1686&$C1686,'Smelter Look-up'!$J:$J,0))","v":{"$error":"#N/A"}},null,0,null,null,null,""]
[null,{"$f":"IF(LEN(A1687)=0,\"\",INDEX('Smelter Look-up'!$A:$A,MATCH($A1687,'Smelter Look-up'!$E:$E,0)))","v":""},{"$f":"IF(LEN(A1687)=0,\"\",INDEX('Smelter Look-up'!$C:$C,MATCH($A1687,'Smelter Look-up'!$E:$E,0)))","v":""},null,{"$f":"IF(ISERROR($V1687),\"\",OFFSET('Smelter Look-up'!$D$4,$V1687-4,0)&\"\")","v":""},{"$f":"IF(ISERROR($V1687),\"\",OFFSET('Smelter Look-up'!$E$4,$V1687-4,0))","v":""},{"$f":"IF(C1687=$X$4,\"Enter smelter details\", IF(ISERROR($V1687),\"\",OFFSET('Smelter Look-up'!$F$4,$V1687-4,0)))","v":""},{"$f":"IF(ISERROR($V1687),\"\",OFFSET('Smelter Look-up'!$G$4,$V1687-4,0))","v":""},{"$f":"IF(ISERROR($V1687),\"\",OFFSET('Smelter Look-up'!$H$4,$V1687-4,0))","v":""},{"$f":"IF(ISERROR($V1687),\"\",OFFSET('Smelter Look-up'!$I$4,$V1687-4,0))","v":""},{"$nulls":7},{"$f":"IF(ISERROR($V1687),\"\",OFFSET('Smelter Look-up'!$C$4,$V1687-4,0)&\"\")","v":""},"",{"$f":"IF(B1687=\"\",\"\",IF(ISERROR(MATCH($J1687,SorP!$B$1:$B$6230,0)),\"\",INDIRECT(\"'SorP'!$A$\"&MATCH($J1687,SorP!$B$1:$B$6230,0))))","v":""},null,{"$f":"IF(C1687=\"\",NA(),MATCH($B1687&$C1687,'Smelter Look-up'!$J:$J,0))","v":{"$error":"#N/A"}},null,0,null,null,null,""]
[null,{"$f":"IF(LEN(A1688)=0,\"\",INDEX('Smelter Look-up'!$A:$A,MATCH($A1688,'Smelter Look-up'!$E:$E,0)))","v":""},{"$f":"IF(LEN(A1688)=0,\"\",INDEX('Smelter Look-up'!$C:$C,MATCH($A1688,'Smelter Look-up'!$E:$E,0)))","v":""},null,{"$f":"IF(ISERROR($V1688),\"\",OFFSET('Smelter Look-up'!$D$4,$V1688-4,0)&\"\")","v":""},{"$f":"IF(ISERROR($V1688),\"\",OFFSET('Smelter Look-up'!$E$4,$V1688-4,0))","v":""},{"$f":"IF(C1688=$X$4,\"Enter smelter details\", IF(ISERROR($V1688),\"\",OFFSET('Smelter Look-up'!$F$4,$V1688-4,0)))","v":""},{"$f":"IF(ISERROR($V1688),\"\",OFFSET('Smelter Look-up'!$G$4,$V1688-4,0))","v":""},{"$f":"IF(ISERROR($V1688),\"\",OFFSET('Smelter Look-up'!$H$4,$V1688-4,0))","v":""},{"$f":"IF(ISERROR($V1688),\"\",OFFSET('Smelter Look-up'!$I$4,$V1688-4,0))","v":""},{"$nulls":7},{"$f":"IF(ISERROR($V1688),\"\",OFFSET('Smelter Look-up'!$C$4,$V1688-4,0)&\"\")","v":""},"",{"$f":"IF(B1688=\"\",\"\",IF(ISERROR(MATCH($J1688,SorP!$B$1:$B$6230,0)),\"\",INDIRECT(\"'SorP'!$A$\"&MATCH($J1688,SorP!$B$1:$B$6230,0))))","v":""},null,{"$f":"IF(C1688=\"\",NA(),MATCH($B1688&$C1688,'Smelter Look-up'!$J:$J,0))","v":{"$error":"#N/A"}},null,0,null,null,null,""]
[null,{"$f":"IF(LEN(A1689)=0,\"\",INDEX('Smelter Look-up'!$A:$A,MATCH($A1689,'Smelter Look-up'!$E:$E,0)))","v":""},{"$f":"IF(LEN(A1689)=0,\"\",INDEX('Smelter Look-up'!$C:$C,MATCH($A1689,'Smelter Look-up'!$E:$E,0)))","v":""},null,{"$f":"IF(ISERROR($V1689),\"\",OFFSET('Smelter Look-up'!$D$4,$V1689-4,0)&\"\")","v":""},{"$f":"IF(ISERROR($V1689),\"\",OFFSET('Smelter Look-up'!$E$4,$V1689-4,0))","v":""},{"$f":"IF(C1689=$X$4,\"Enter smelter details\", IF(ISERROR($V1689),\"\",OFFSET('Smelter Look-up'!$F$4,$V1689-4,0)))","v":""},{"$f":"IF(ISERROR($V1689),\"\",OFFSET('Smelter Look-up'!$G$4,$V1689-4,0))","v":""},{"$f":"IF(ISERROR($V1689),\"\",OFFSET('Smelter Look-up'!$H$4,$V1689-4,0))","v":""},{"$f":"IF(ISERROR($V1689),\"\",OFFSET('Smelter Look-up'!$I$4,$V1689-4,0))","v":""},{"$nulls":7},{"$f":"IF(ISERROR($V1689),\"\",OFFSET('Smelter Look-up'!$C$4,$V1689-4,0)&\"\")","v":""},"",{"$f":"IF(B1689=\"\",\"\",IF(ISERROR(MATCH($J1689,SorP!$B$1:$B$6230,0)),\"\",INDIRECT(\"'SorP'!$A$\"&MATCH($J1689,SorP!$B$1:$B$6230,0))))","v":""},null,{"$f":"IF(C1689=\"\",NA(),MATCH($B1689&$C1689,'Smelter Look-up'!$J:$J,0))","v":{"$error":"#N/A"}},null,0,null,null,null,""]
[null,{"$f":"IF(LEN(A1690)=0,\"\",INDEX('Smelter Look-up'!$A:$A,MATCH($A1690,'Smelter Look-up'!$E:$E,0)))","v":""},{"$f":"IF(LEN(A1690)=0,\"\",INDEX('Smelter Look-up'!$C:$C,MATCH($A1690,'Smelter Look-up'!$E:$E,0)))","v":""},null,{"$f":"IF(ISERROR($V1690),\"\",OFFSET('Smelter Look-up'!$D$4,$V1690-4,0)&\"\")","v":""},{"$f":"IF(ISERROR($V1690),\"\",OFFSET('Smelter Look-up'!$E$4,$V1690-4,0))","v":""},{"$f":"IF(C1690=$X$4,\"Enter smelter details\", IF(ISERROR($V1690),\"\",OFFSET('Smelter Look-up'!$F$4,$V1690-4,0)))","v":""},{"$f":"IF(ISERROR($V1690),\"\",OFFSET('Smelter Look-up'!$G$4,$V1690-4,0))","v":""},{"$f":"IF(ISERROR($V1690),\"\",OFFSET('Smelter Look-up'!$H$4,$V1690-4,0))","v":""},{"$f":"IF(ISERROR($V1690),\"\",OFFSET('Smelter Look-up'!$I$4,$V1690-4,0))","v":""},{"$nulls":7},{"$f":"IF(ISERROR($V1690),\"\",OFFSET('Smelter Look-up'!$C$4,$V1690-4,0)&\"\")","v":""},"",{"$f":"IF(B1690=\"\",\"\",IF(ISERROR(MATCH($J1690,SorP!$B$1:$B$6230,0)),\"\",INDIRECT(\"'SorP'!$A$\"&MATCH($J1690,SorP!$B$1:$B$6230,0))))","v":""},null,{"$f":"IF(C1690=\"\",NA(),MATCH($B1690&$C1690,'Smelter Look-up'!$J:$J,0))","v":{"$error":"#N/A"}},null,0,null,null,null,""]
[null,{"$f":"IF(LEN(A1691)=0,\"\",INDEX('Smelter Look-up'!$A:$A,MATCH($A1691,'Smelter Look-up'!$E:$E,0)))","v":""},{"$f":"IF(LEN(A1691)=0,\"\",INDEX('Smelter Look-up'!$C:$C,MATCH($A1691,'Smelter Look-up'!$E:$E,0)))","v":""},null,{"$f":"IF(ISERROR($V1691),\"\",OFFSET('Smelter Look-up'!$D$4,$V1691-4,0)&\"\")","v":""},{"$f":"IF(ISERROR($V1691),\"\",OFFSET('Smelter Look-up'!$E$4,$V1691-4,0))","v":""},{"$f":"IF(C1691=$X$4,\"Enter smelter details\", IF(ISERROR($V1691),\"\",OFFSET('Smelter Look-up'!$F$4,$V1691-4,0)))","v":""},{"$f":"IF(ISERROR($V1691),\"\",OFFSET('Smelter Look-up'!$G$4,$V1691-4,0))","v":""},{"$f":"IF(ISERROR($V1691),\"\",OFFSET('Smelter Look-up'!$H$4,$V1691-4,0))","v":""},{"$f":"IF(ISERROR($V1691),\"\",OFFSET('Smelter Look-up'!$I$4,$V1691-4,0))","v":""},{"$nulls":7},{"$f":"IF(ISERROR($V1691),\"\",OFFSET('Smelter Look-up'!$C$4,$V1691-4,0)&\"\")","v":""},"",{"$f":"IF(B1691=\"\",\"\",IF(ISERROR(MATCH($J1691,SorP!$B$1:$B$6230,0)),\"\",INDIRECT(\"'SorP'!$A$\"&MATCH($J1691,SorP!$B$1:$B$6230,0))))","v":""},null,{"$f":"IF(C1691=\"\",NA(),MATCH($B1691&$C1691,'Smelter Look-up'!$J:$J,0))","v":{"$error":"#N/A"}},null,0,null,null,null,""]
[null,{"$f":"IF(LEN(A1692)=0,\"\",INDEX('Smelter Look-up'!$A:$A,MATCH($A1692,'Smelter Look-up'!$E:$E,0)))","v":""},{"$f":"IF(LEN(A1692)=0,\"\",INDEX('Smelter Look-up'!$C:$C,MATCH($A1692,'Smelter Look-up'!$E:$E,0)))","v":""},null,{"$f":"IF(ISERROR($V1692),\"\",OFFSET('Smelter Look-up'!$D$4,$V1692-4,0)&\"\")","v":""},{"$f":"IF(ISERROR($V1692),\"\",OFFSET('Smelter Look-up'!$E$4,$V1692-4,0))","v":""},{"$f":"IF(C1692=$X$4,\"Enter smelter details\", IF(ISERROR($V1692),\"\",OFFSET('Smelter Look-up'!$F$4,$V1692-4,0)))","v":""},{"$f":"IF(ISERROR($V1692),\"\",OFFSET('Smelter Look-up'!$G$4,$V1692-4,0))","v":""},{"$f":"IF(ISERROR($V1692),\"\",OFFSET('Smelter Look-up'!$H$4,$V1692-4,0))","v":""},{"$f":"IF(ISERROR($V1692),\"\",OFFSET('Smelter Look-up'!$I$4,$V1692-4,0))","v":""},{"$nulls":7},{"$f":"IF(ISERROR($V1692),\"\",OFFSET('Smelter Look-up'!$C$4,$V1692-4,0)&\"\")","v":""},"",{"$f":"IF(B1692=\"\",\"\",IF(ISERROR(MATCH($J1692,SorP!$B$1:$B$6230,0)),\"\",INDIRECT(\"'SorP'!$A$\"&MATCH($J1692,SorP!$B$1:$B$6230,0))))","v":""},null,{"$f":"IF(C1692=\"\",NA(),MATCH($B1692&$C1692,'Smelter Look-up'!$J:$J,0))","v":{"$error":"#N/A"}},null,0,null,null,null,""]
[null,{"$f":"IF(LEN(A1693)=0,\"\",INDEX('Smelter Look-up'!$A:$A,MATCH($A1693,'Smelter Look-up'!$E:$E,0)))","v":""},{"$f":"IF(LEN(A1693)=0,\"\",INDEX('Smelter Look-up'!$C:$C,MATCH($A1693,'Smelter Look-up'!$E:$E,0)))","v":""},null,{"$f":"IF(ISERROR($V1693),\"\",OFFSET('Smelter Look-up'!$D$4,$V1693-4,0)&\"\")","v":""},{"$f":"IF(ISERROR($V1693),\"\",OFFSET('Smelter Look-up'!$E$4,$V1693-4,0))","v":""},{"$f":"IF(C1693=$X$4,\"Enter smelter details\", IF(ISERROR($V1693),\"\",OFFSET('Smelter Look-up'!$F$4,$V1693-4,0)))","v":""},{"$f":"IF(ISERROR($V1693),\"\",OFFSET('Smelter Look-up'!$G$4,$V1693-4,0))","v":""},{"$f":"IF(ISERROR($V1693),\"\",OFFSET('Smelter Look-up'!$H$4,$V1693-4,0))","v":""},{"$f":"IF(ISERROR($V1693),\"\",OFFSET('Smelter Look-up'!$I$4,$V1693-4,0))","v":""},{"$nulls":7},{"$f":"IF(ISERROR($V1693),\"\",OFFSET('Smelter Look-up'!$C$4,$V1693-4,0)&\"\")","v":""},"",{"$f":"IF(B1693=\"\",\"\",IF(ISERROR(MATCH($J1693,SorP!$B$1:$B$6230,0)),\"\",INDIRECT(\"'SorP'!$A$\"&MATCH($J1693,SorP!$B$1:$B$6230,0))))","v":""},null,{"$f":"IF(C1693=\"\",NA(),MATCH($B1693&$C1693,'Smelter Look-up'!$J:$J,0))","v":{"$error":"#N/A"}},null,0,null,null,null,""]
[null,{"$f":"IF(LEN(A1694)=0,\"\",INDEX('Smelter Look-up'!$A:$A,MATCH($A1694,'Smelter Look-up'!$E:$E,0)))","v":""},{"$f":"IF(LEN(A1694)=0,\"\",INDEX('Smelter Look-up'!$C:$C,MATCH($A1694,'Smelter Look-up'!$E:$E,0)))","v":""},null,{"$f":"IF(ISERROR($V1694),\"\",OFFSET('Smelter Look-up'!$D$4,$V1694-4,0)&\"\")","v":""},{"$f":"IF(ISERROR($V1694),\"\",OFFSET('Smelter Look-up'!$E$4,$V1694-4,0))","v":""},{"$f":"IF(C1694=$X$4,\"Enter smelter details\", IF(ISERROR($V1694),\"\",OFFSET('Smelter Look-up'!$F$4,$V1694-4,0)))","v":""},{"$f":"IF(ISERROR($V1694),\"\",OFFSET('Smelter Look-up'!$G$4,$V1694-4,0))","v":""},{"$f":"IF(ISERROR($V1694),\"\",OFFSET('Smelter Look-up'!$H$4,$V1694-4,0))","v":""},{"$f":"IF(ISERROR($V1694),\"\",OFFSET('Smelter Look-up'!$I$4,$V1694-4,0))","v":""},{"$nulls":7},{"$f":"IF(ISERROR($V1694),\"\",OFFSET('Smelter Look-up'!$C$4,$V1694-4,0)&\"\")","v":""},"",{"$f":"IF(B1694=\"\",\"\",IF(ISERROR(MATCH($J1694,SorP!$B$1:$B$6230,0)),\"\",INDIRECT(\"'SorP'!$A$\"&MATCH($J1694,SorP!$B$1:$B$6230,0))))","v":""},null,{"$f":"IF(C1694=\"\",NA(),MATCH($B1694&$C1694,'Smelter Look-up'!$J:$J,0))","v":{"$error":"#N/A"}},null,0,null,null,null,""]
[null,{"$f":"IF(LEN(A1695)=0,\"\",INDEX('Smelter Look-up'!$A:$A,MATCH($A1695,'Smelter Look-up'!$E:$E,0)))","v":""},{"$f":"IF(LEN(A1695)=0,\"\",INDEX('Smelter Look-up'!$C:$C,MATCH($A1695,'Smelter Look-up'!$E:$E,0)))","v":""},null,{"$f":"IF(ISERROR($V1695),\"\",OFFSET('Smelter Look-up'!$D$4,$V1695-4,0)&\"\")","v":""},{"$f":"IF(ISERROR($V1695),\"\",OFFSET('Smelter Look-up'!$E$4,$V1695-4,0))","v":""},{"$f":"IF(C1695=$X$4,\"Enter smelter details\", IF(ISERROR($V1695),\"\",OFFSET('Smelter Look-up'!$F$4,$V1695-4,0)))","v":""},{"$f":"IF(ISERROR($V1695),\"\",OFFSET('Smelter Look-up'!$G$4,$V1695-4,0))","v":""},{"$f":"IF(ISERROR($V1695),\"\",OFFSET('Smelter Look-up'!$H$4,$V1695-4,0))","v":""},{"$f":"IF(ISERROR($V1695),\"\",OFFSET('Smelter Look-up'!$I$4,$V1695-4,0))","v":""},{"$nulls":7},{"$f":"IF(ISERROR($V1695),\"\",OFFSET('Smelter Look-up'!$C$4,$V1695-4,0)&\"\")","v":""},"",{"$f":"IF(B1695=\"\",\"\",IF(ISERROR(MATCH($J1695,SorP!$B$1:$B$6230,0)),\"\",INDIRECT(\"'SorP'!$A$\"&MATCH($J1695,SorP!$B$1:$B$6230,0))))","v":""},null,{"$f":"IF(C1695=\"\",NA(),MATCH($B1695&$C1695,'Smelter Look-up'!$J:$J,0))","v":{"$error":"#N/A"}},null,0,null,null,null,""]
[null,{"$f":"IF(LEN(A1696)=0,\"\",INDEX('Smelter Look-up'!$A:$A,MATCH($A1696,'Smelter Look-up'!$E:$E,0)))","v":""},{"$f":"IF(LEN(A1696)=0,\"\",INDEX('Smelter Look-up'!$C:$C,MATCH($A1696,'Smelter Look-up'!$E:$E,0)))","v":""},null,{"$f":"IF(ISERROR($V1696),\"\",OFFSET('Smelter Look-up'!$D$4,$V1696-4,0)&\"\")","v":""},{"$f":"IF(ISERROR($V1696),\"\",OFFSET('Smelter Look-up'!$E$4,$V1696-4,0))","v":""},{"$f":"IF(C1696=$X$4,\"Enter smelter details\", IF(ISERROR($V1696),\"\",OFFSET('Smelter Look-up'!$F$4,$V1696-4,0)))","v":""},{"$f":"IF(ISERROR($V1696),\"\",OFFSET('Smelter Look-up'!$G$4,$V1696-4,0))","v":""},{"$f":"IF(ISERROR($V1696),\"\",OFFSET('Smelter Look-up'!$H$4,$V1696-4,0))","v":""},{"$f":"IF(ISERROR($V1696),\"\",OFFSET('Smelter Look-up'!$I$4,$V1696-4,0))","v":""},{"$nulls":7},{"$f":"IF(ISERROR($V1696),\"\",OFFSET('Smelter Look-up'!$C$4,$V1696-4,0)&\"\")","v":""},"",{"$f":"IF(B1696=\"\",\"\",IF(ISERROR(MATCH($J1696,SorP!$B$1:$B$6230,0)),\"\",INDIRECT(\"'SorP'!$A$\"&MATCH($J1696,SorP!$B$1:$B$6230,0))))","v":""},null,{"$f":"IF(C1696=\"\",NA(),MATCH($B1696&$C1696,'Smelter Look-up'!$J:$J,0))","v":{"$error":"#N/A"}},null,0,null,null,null,""]
[null,{"$f":"IF(LEN(A1697)=0,\"\",INDEX('Smelter Look-up'!$A:$A,MATCH($A1697,'Smelter Look-up'!$E:$E,0)))","v":""},{"$f":"IF(LEN(A1697)=0,\"\",INDEX('Smelter Look-up'!$C:$C,MATCH($A1697,'Smelter Look-up'!$E:$E,0)))","v":""},null,{"$f":"IF(ISERROR($V1697),\"\",OFFSET('Smelter Look-up'!$D$4,$V1697-4,0)&\"\")","v":""},{"$f":"IF(ISERROR($V1697),\"\",OFFSET('Smelter Look-up'!$E$4,$V1697-4,0))","v":""},{"$f":"IF(C1697=$X$4,\"Enter smelter details\", IF(ISERROR($V1697),\"\",OFFSET('Smelter Look-up'!$F$4,$V1697-4,0)))","v":""},{"$f":"IF(ISERROR($V1697),\"\",OFFSET('Smelter Look-up'!$G$4,$V1697-4,0))","v":""},{"$f":"IF(ISERROR($V1697),\"\",OFFSET('Smelter Look-up'!$H$4,$V1697-4,0))","v":""},{"$f":"IF(ISERROR($V1697),\"\",OFFSET('Smelter Look-up'!$I$4,$V1697-4,0))","v":""},{"$nulls":7},{"$f":"IF(ISERROR($V1697),\"\",OFFSET('Smelter Look-up'!$C$4,$V1697-4,0)&\"\")","v":""},"",{"$f":"IF(B1697=\"\",\"\",IF(ISERROR(MATCH($J1697,SorP!$B$1:$B$6230,0)),\"\",INDIRECT(\"'SorP'!$A$\"&MATCH($J1697,SorP!$B$1:$B$6230,0))))","v":""},null,{"$f":"IF(C1697=\"\",NA(),MATCH($B1697&$C1697,'Smelter Look-up'!$J:$J,0))","v":{"$error":"#N/A"}},null,0,null,null,null,""]
[null,{"$f":"IF(LEN(A1698)=0,\"\",INDEX('Smelter Look-up'!$A:$A,MATCH($A1698,'Smelter Look-up'!$E:$E,0)))","v":""},{"$f":"IF(LEN(A1698)=0,\"\",INDEX('Smelter Look-up'!$C:$C,MATCH($A1698,'Smelter Look-up'!$E:$E,0)))","v":""},null,{"$f":"IF(ISERROR($V1698),\"\",OFFSET('Smelter Look-up'!$D$4,$V1698-4,0)&\"\")","v":""},{"$f":"IF(ISERROR($V1698),\"\",OFFSET('Smelter Look-up'!$E$4,$V1698-4,0))","v":""},{"$f":"IF(C1698=$X$4,\"Enter smelter details\", IF(ISERROR($V1698),\"\",OFFSET('Smelter Look-up'!$F$4,$V1698-4,0)))","v":""},{"$f":"IF(ISERROR($V1698),\"\",OFFSET('Smelter Look-up'!$G$4,$V1698-4,0))","v":""},{"$f":"IF(ISERROR($V1698),\"\",OFFSET('Smelter Look-up'!$H$4,$V1698-4,0))","v":""},{"$f":"IF(ISERROR($V1698),\"\",OFFSET('Smelter Look-up'!$I$4,$V1698-4,0))","v":""},{"$nulls":7},{"$f":"IF(ISERROR($V1698),\"\",OFFSET('Smelter Look-up'!$C$4,$V1698-4,0)&\"\")","v":""},"",{"$f":"IF(B1698=\"\",\"\",IF(ISERROR(MATCH($J1698,SorP!$B$1:$B$6230,0)),\"\",INDIRECT(\"'SorP'!$A$\"&MATCH($J1698,SorP!$B$1:$B$6230,0))))","v":""},null,{"$f":"IF(C1698=\"\",NA(),MATCH($B1698&$C1698,'Smelter Look-up'!$J:$J,0))","v":{"$error":"#N/A"}},null,0,null,null,null,""]
[null,{"$f":"IF(LEN(A1699)=0,\"\",INDEX('Smelter Look-up'!$A:$A,MATCH($A1699,'Smelter Look-up'!$E:$E,0)))","v":""},{"$f":"IF(LEN(A1699)=0,\"\",INDEX('Smelter Look-up'!$C:$C,MATCH($A1699,'Smelter Look-up'!$E:$E,0)))","v":""},null,{"$f":"IF(ISERROR($V1699),\"\",OFFSET('Smelter Look-up'!$D$4,$V1699-4,0)&\"\")","v":""},{"$f":"IF(ISERROR($V1699),\"\",OFFSET('Smelter Look-up'!$E$4,$V1699-4,0))","v":""},{"$f":"IF(C1699=$X$4,\"Enter smelter details\", IF(ISERROR($V1699),\"\",OFFSET('Smelter Look-up'!$F$4,$V1699-4,0)))","v":""},{"$f":"IF(ISERROR($V1699),\"\",OFFSET('Smelter Look-up'!$G$4,$V1699-4,0))","v":""},{"$f":"IF(ISERROR($V1699),\"\",OFFSET('Smelter Look-up'!$H$4,$V1699-4,0))","v":""},{"$f":"IF(ISERROR($V1699),\"\",OFFSET('Smelter Look-up'!$I$4,$V1699-4,0))","v":""},{"$nulls":7},{"$f":"IF(ISERROR($V1699),\"\",OFFSET('Smelter Look-up'!$C$4,$V1699-4,0)&\"\")","v":""},"",{"$f":"IF(B1699=\"\",\"\",IF(ISERROR(MATCH($J1699,SorP!$B$1:$B$6230,0)),\"\",INDIRECT(\"'SorP'!$A$\"&MATCH($J1699,SorP!$B$1:$B$6230,0))))","v":""},null,{"$f":"IF(C1699=\"\",NA(),MATCH($B1699&$C1699,'Smelter Look-up'!$J:$J,0))","v":{"$error":"#N/A"}},null,0,null,null,null,""]
[null,{"$f":"IF(LEN(A1700)=0,\"\",INDEX('Smelter Look-up'!$A:$A,MATCH($A1700,'Smelter Look-up'!$E:$E,0)))","v":""},{"$f":"IF(LEN(A1700)=0,\"\",INDEX('Smelter Look-up'!$C:$C,MATCH($A1700,'Smelter Look-up'!$E:$E,0)))","v":""},null,{"$f":"IF(ISERROR($V1700),\"\",OFFSET('Smelter Look-up'!$D$4,$V1700-4,0)&\"\")","v":""},{"$f":"IF(ISERROR($V1700),\"\",OFFSET('Smelter Look-up'!$E$4,$V1700-4,0))","v":""},{"$f":"IF(C1700=$X$4,\"Enter smelter details\", IF(ISERROR($V1700),\"\",OFFSET('Smelter Look-up'!$F$4,$V1700-4,0)))","v":""},{"$f":"IF(ISERROR($V1700),\"\",OFFSET('Smelter Look-up'!$G$4,$V1700-4,0))","v":""},{"$f":"IF(ISERROR($V1700),\"\",OFFSET('Smelter Look-up'!$H$4,$V1700-4,0))","v":""},{"$f":"IF(ISERROR($V1700),\"\",OFFSET('Smelter Look-up'!$I$4,$V1700-4,0))","v":""},{"$nulls":7},{"$f":"IF(ISERROR($V1700),\"\",OFFSET('Smelter Look-up'!$C$4,$V1700-4,0)&\"\")","v":""},"",{"$f":"IF(B1700=\"\",\"\",IF(ISERROR(MATCH($J1700,SorP!$B$1:$B$6230,0)),\"\",INDIRECT(\"'SorP'!$A$\"&MATCH($J1700,SorP!$B$1:$B$6230,0))))","v":""},null,{"$f":"IF(C1700=\"\",NA(),MATCH($B1700&$C1700,'Smelter Look-up'!$J:$J,0))","v":{"$error":"#N/A"}},null,0,null,null,null,""]
[null,{"$f":"IF(LEN(A1701)=0,\"\",INDEX('Smelter Look-up'!$A:$A,MATCH($A1701,'Smelter Look-up'!$E:$E,0)))","v":""},{"$f":"IF(LEN(A1701)=0,\"\",INDEX('Smelter Look-up'!$C:$C,MATCH($A1701,'Smelter Look-up'!$E:$E,0)))","v":""},null,{"$f":"IF(ISERROR($V1701),\"\",OFFSET('Smelter Look-up'!$D$4,$V1701-4,0)&\"\")","v":""},{"$f":"IF(ISERROR($V1701),\"\",OFFSET('Smelter Look-up'!$E$4,$V1701-4,0))","v":""},{"$f":"IF(C1701=$X$4,\"Enter smelter details\", IF(ISERROR($V1701),\"\",OFFSET('Smelter Look-up'!$F$4,$V1701-4,0)))","v":""},{"$f":"IF(ISERROR($V1701),\"\",OFFSET('Smelter Look-up'!$G$4,$V1701-4,0))","v":""},{"$f":"IF(ISERROR($V1701),\"\",OFFSET('Smelter Look-up'!$H$4,$V1701-4,0))","v":""},{"$f":"IF(ISERROR($V1701),\"\",OFFSET('Smelter Look-up'!$I$4,$V1701-4,0))","v":""},{"$nulls":7},{"$f":"IF(ISERROR($V1701),\"\",OFFSET('Smelter Look-up'!$C$4,$V1701-4,0)&\"\")","v":""},"",{"$f":"IF(B1701=\"\",\"\",IF(ISERROR(MATCH($J1701,SorP!$B$1:$B$6230,0)),\"\",INDIRECT(\"'SorP'!$A$\"&MATCH($J1701,SorP!$B$1:$B$6230,0))))","v":""},null,{"$f":"IF(C1701=\"\",NA(),MATCH($B1701&$C1701,'Smelter Look-up'!$J:$J,0))","v":{"$error":"#N/A"}},null,0,null,null,null,""]
[null,{"$f":"IF(LEN(A1702)=0,\"\",INDEX('Smelter Look-up'!$A:$A,MATCH($A1702,'Smelter Look-up'!$E:$E,0)))","v":""},{"$f":"IF(LEN(A1702)=0,\"\",INDEX('Smelter Look-up'!$C:$C,MATCH($A1702,'Smelter Look-up'!$E:$E,0)))","v":""},null,{"$f":"IF(ISERROR($V1702),\"\",OFFSET('Smelter Look-up'!$D$4,$V1702-4,0)&\"\")","v":""},{"$f":"IF(ISERROR($V1702),\"\",OFFSET('Smelter Look-up'!$E$4,$V1702-4,0))","v":""},{"$f":"IF(C1702=$X$4,\"Enter smelter details\", IF(ISERROR($V1702),\"\",OFFSET('Smelter Look-up'!$F$4,$V1702-4,0)))","v":""},{"$f":"IF(ISERROR($V1702),\"\",OFFSET('Smelter Look-up'!$G$4,$V1702-4,0))","v":""},{"$f":"IF(ISERROR($V1702),\"\",OFFSET('Smelter Look-up'!$H$4,$V1702-4,0))","v":""},{"$f":"IF(ISERROR($V1702),\"\",OFFSET('Smelter Look-up'!$I$4,$V1702-4,0))","v":""},{"$nulls":7},{"$f":"IF(ISERROR($V1702),\"\",OFFSET('Smelter Look-up'!$C$4,$V1702-4,0)&\"\")","v":""},"",{"$f":"IF(B1702=\"\",\"\",IF(ISERROR(MATCH($J1702,SorP!$B$1:$B$6230,0)),\"\",INDIRECT(\"'SorP'!$A$\"&MATCH($J1702,SorP!$B$1:$B$6230,0))))","v":""},null,{"$f":"IF(C1702=\"\",NA(),MATCH($B1702&$C1702,'Smelter Look-up'!$J:$J,0))","v":{"$error":"#N/A"}},null,0,null,null,null,""]
[null,{"$f":"IF(LEN(A1703)=0,\"\",INDEX('Smelter Look-up'!$A:$A,MATCH($A1703,'Smelter Look-up'!$E:$E,0)))","v":""},{"$f":"IF(LEN(A1703)=0,\"\",INDEX('Smelter Look-up'!$C:$C,MATCH($A1703,'Smelter Look-up'!$E:$E,0)))","v":""},null,{"$f":"IF(ISERROR($V1703),\"\",OFFSET('Smelter Look-up'!$D$4,$V1703-4,0)&\"\")","v":""},{"$f":"IF(ISERROR($V1703),\"\",OFFSET('Smelter Look-up'!$E$4,$V1703-4,0))","v":""},{"$f":"IF(C1703=$X$4,\"Enter smelter details\", IF(ISERROR($V1703),\"\",OFFSET('Smelter Look-up'!$F$4,$V1703-4,0)))","v":""},{"$f":"IF(ISERROR($V1703),\"\",OFFSET('Smelter Look-up'!$G$4,$V1703-4,0))","v":""},{"$f":"IF(ISERROR($V1703),\"\",OFFSET('Smelter Look-up'!$H$4,$V1703-4,0))","v":""},{"$f":"IF(ISERROR($V1703),\"\",OFFSET('Smelter Look-up'!$I$4,$V1703-4,0))","v":""},{"$nulls":7},{"$f":"IF(ISERROR($V1703),\"\",OFFSET('Smelter Look-up'!$C$4,$V1703-4,0)&\"\")","v":""},"",{"$f":"IF(B1703=\"\",\"\",IF(ISERROR(MATCH($J1703,SorP!$B$1:$B$6230,0)),\"\",INDIRECT(\"'SorP'!$A$\"&MATCH($J1703,SorP!$B$1:$B$6230,0))))","v":""},null,{"$f":"IF(C1703=\"\",NA(),MATCH($B1703&$C1703,'Smelter Look-up'!$J:$J,0))","v":{"$error":"#N/A"}},null,0,null,null,null,""]
[null,{"$f":"IF(LEN(A1704)=0,\"\",INDEX('Smelter Look-up'!$A:$A,MATCH($A1704,'Smelter Look-up'!$E:$E,0)))","v":""},{"$f":"IF(LEN(A1704)=0,\"\",INDEX('Smelter Look-up'!$C:$C,MATCH($A1704,'Smelter Look-up'!$E:$E,0)))","v":""},null,{"$f":"IF(ISERROR($V1704),\"\",OFFSET('Smelter Look-up'!$D$4,$V1704-4,0)&\"\")","v":""},{"$f":"IF(ISERROR($V1704),\"\",OFFSET('Smelter Look-up'!$E$4,$V1704-4,0))","v":""},{"$f":"IF(C1704=$X$4,\"Enter smelter details\", IF(ISERROR($V1704),\"\",OFFSET('Smelter Look-up'!$F$4,$V1704-4,0)))","v":""},{"$f":"IF(ISERROR($V1704),\"\",OFFSET('Smelter Look-up'!$G$4,$V1704-4,0))","v":""},{"$f":"IF(ISERROR($V1704),\"\",OFFSET('Smelter Look-up'!$H$4,$V1704-4,0))","v":""},{"$f":"IF(ISERROR($V1704),\"\",OFFSET('Smelter Look-up'!$I$4,$V1704-4,0))","v":""},{"$nulls":7},{"$f":"IF(ISERROR($V1704),\"\",OFFSET('Smelter Look-up'!$C$4,$V1704-4,0)&\"\")","v":""},"",{"$f":"IF(B1704=\"\",\"\",IF(ISERROR(MATCH($J1704,SorP!$B$1:$B$6230,0)),\"\",INDIRECT(\"'SorP'!$A$\"&MATCH($J1704,SorP!$B$1:$B$6230,0))))","v":""},null,{"$f":"IF(C1704=\"\",NA(),MATCH($B1704&$C1704,'Smelter Look-up'!$J:$J,0))","v":{"$error":"#N/A"}},null,0,null,null,null,""]
[null,{"$f":"IF(LEN(A1705)=0,\"\",INDEX('Smelter Look-up'!$A:$A,MATCH($A1705,'Smelter Look-up'!$E:$E,0)))","v":""},{"$f":"IF(LEN(A1705)=0,\"\",INDEX('Smelter Look-up'!$C:$C,MATCH($A1705,'Smelter Look-up'!$E:$E,0)))","v":""},null,{"$f":"IF(ISERROR($V1705),\"\",OFFSET('Smelter Look-up'!$D$4,$V1705-4,0)&\"\")","v":""},{"$f":"IF(ISERROR($V1705),\"\",OFFSET('Smelter Look-up'!$E$4,$V1705-4,0))","v":""},{"$f":"IF(C1705=$X$4,\"Enter smelter details\", IF(ISERROR($V1705),\"\",OFFSET('Smelter Look-up'!$F$4,$V1705-4,0)))","v":""},{"$f":"IF(ISERROR($V1705),\"\",OFFSET('Smelter Look-up'!$G$4,$V1705-4,0))","v":""},{"$f":"IF(ISERROR($V1705),\"\",OFFSET('Smelter Look-up'!$H$4,$V1705-4,0))","v":""},{"$f":"IF(ISERROR($V1705),\"\",OFFSET('Smelter Look-up'!$I$4,$V1705-4,0))","v":""},{"$nulls":7},{"$f":"IF(ISERROR($V1705),\"\",OFFSET('Smelter Look-up'!$C$4,$V1705-4,0)&\"\")","v":""},"",{"$f":"IF(B1705=\"\",\"\",IF(ISERROR(MATCH($J1705,SorP!$B$1:$B$6230,0)),\"\",INDIRECT(\"'SorP'!$A$\"&MATCH($J1705,SorP!$B$1:$B$6230,0))))","v":""},null,{"$f":"IF(C1705=\"\",NA(),MATCH($B1705&$C1705,'Smelter Look-up'!$J:$J,0))","v":{"$error":"#N/A"}},null,0,null,null,null,""]
[null,{"$f":"IF(LEN(A1706)=0,\"\",INDEX('Smelter Look-up'!$A:$A,MATCH($A1706,'Smelter Look-up'!$E:$E,0)))","v":""},{"$f":"IF(LEN(A1706)=0,\"\",INDEX('Smelter Look-up'!$C:$C,MATCH($A1706,'Smelter Look-up'!$E:$E,0)))","v":""},null,{"$f":"IF(ISERROR($V1706),\"\",OFFSET('Smelter Look-up'!$D$4,$V1706-4,0)&\"\")","v":""},{"$f":"IF(ISERROR($V1706),\"\",OFFSET('Smelter Look-up'!$E$4,$V1706-4,0))","v":""},{"$f":"IF(C1706=$X$4,\"Enter smelter details\", IF(ISERROR($V1706),\"\",OFFSET('Smelter Look-up'!$F$4,$V1706-4,0)))","v":""},{"$f":"IF(ISERROR($V1706),\"\",OFFSET('Smelter Look-up'!$G$4,$V1706-4,0))","v":""},{"$f":"IF(ISERROR($V1706),\"\",OFFSET('Smelter Look-up'!$H$4,$V1706-4,0))","v":""},{"$f":"IF(ISERROR($V1706),\"\",OFFSET('Smelter Look-up'!$I$4,$V1706-4,0))","v":""},{"$nulls":7},{"$f":"IF(ISERROR($V1706),\"\",OFFSET('Smelter Look-up'!$C$4,$V1706-4,0)&\"\")","v":""},"",{"$f":"IF(B1706=\"\",\"\",IF(ISERROR(MATCH($J1706,SorP!$B$1:$B$6230,0)),\"\",INDIRECT(\"'SorP'!$A$\"&MATCH($J1706,SorP!$B$1:$B$6230,0))))","v":""},null,{"$f":"IF(C1706=\"\",NA(),MATCH($B1706&$C1706,'Smelter Look-up'!$J:$J,0))","v":{"$error":"#N/A"}},null,0,null,null,null,""]
[null,{"$f":"IF(LEN(A1707)=0,\"\",INDEX('Smelter Look-up'!$A:$A,MATCH($A1707,'Smelter Look-up'!$E:$E,0)))","v":""},{"$f":"IF(LEN(A1707)=0,\"\",INDEX('Smelter Look-up'!$C:$C,MATCH($A1707,'Smelter Look-up'!$E:$E,0)))","v":""},null,{"$f":"IF(ISERROR($V1707),\"\",OFFSET('Smelter Look-up'!$D$4,$V1707-4,0)&\"\")","v":""},{"$f":"IF(ISERROR($V1707),\"\",OFFSET('Smelter Look-up'!$E$4,$V1707-4,0))","v":""},{"$f":"IF(C1707=$X$4,\"Enter smelter details\", IF(ISERROR($V1707),\"\",OFFSET('Smelter Look-up'!$F$4,$V1707-4,0)))","v":""},{"$f":"IF(ISERROR($V1707),\"\",OFFSET('Smelter Look-up'!$G$4,$V1707-4,0))","v":""},{"$f":"IF(ISERROR($V1707),\"\",OFFSET('Smelter Look-up'!$H$4,$V1707-4,0))","v":""},{"$f":"IF(ISERROR($V1707),\"\",OFFSET('Smelter Look-up'!$I$4,$V1707-4,0))","v":""},{"$nulls":7},{"$f":"IF(ISERROR($V1707),\"\",OFFSET('Smelter Look-up'!$C$4,$V1707-4,0)&\"\")","v":""},"",{"$f":"IF(B1707=\"\",\"\",IF(ISERROR(MATCH($J1707,SorP!$B$1:$B$6230,0)),\"\",INDIRECT(\"'SorP'!$A$\"&MATCH($J1707,SorP!$B$1:$B$6230,0))))","v":""},null,{"$f":"IF(C1707=\"\",NA(),MATCH($B1707&$C1707,'Smelter Look-up'!$J:$J,0))","v":{"$error":"#N/A"}},null,0,null,null,null,""]
[null,{"$f":"IF(LEN(A1708)=0,\"\",INDEX('Smelter Look-up'!$A:$A,MATCH($A1708,'Smelter Look-up'!$E:$E,0)))","v":""},{"$f":"IF(LEN(A1708)=0,\"\",INDEX('Smelter Look-up'!$C:$C,MATCH($A1708,'Smelter Look-up'!$E:$E,0)))","v":""},null,{"$f":"IF(ISERROR($V1708),\"\",OFFSET('Smelter Look-up'!$D$4,$V1708-4,0)&\"\")","v":""},{"$f":"IF(ISERROR($V1708),\"\",OFFSET('Smelter Look-up'!$E$4,$V1708-4,0))","v":""},{"$f":"IF(C1708=$X$4,\"Enter smelter details\", IF(ISERROR($V1708),\"\",OFFSET('Smelter Look-up'!$F$4,$V1708-4,0)))","v":""},{"$f":"IF(ISERROR($V1708),\"\",OFFSET('Smelter Look-up'!$G$4,$V1708-4,0))","v":""},{"$f":"IF(ISERROR($V1708),\"\",OFFSET('Smelter Look-up'!$H$4,$V1708-4,0))","v":""},{"$f":"IF(ISERROR($V1708),\"\",OFFSET('Smelter Look-up'!$I$4,$V1708-4,0))","v":""},{"$nulls":7},{"$f":"IF(ISERROR($V1708),\"\",OFFSET('Smelter Look-up'!$C$4,$V1708-4,0)&\"\")","v":""},"",{"$f":"IF(B1708=\"\",\"\",IF(ISERROR(MATCH($J1708,SorP!$B$1:$B$6230,0)),\"\",INDIRECT(\"'SorP'!$A$\"&MATCH($J1708,SorP!$B$1:$B$6230,0))))","v":""},null,{"$f":"IF(C1708=\"\",NA(),MATCH($B1708&$C1708,'Smelter Look-up'!$J:$J,0))","v":{"$error":"#N/A"}},null,0,null,null,null,""]
[null,{"$f":"IF(LEN(A1709)=0,\"\",INDEX('Smelter Look-up'!$A:$A,MATCH($A1709,'Smelter Look-up'!$E:$E,0)))","v":""},{"$f":"IF(LEN(A1709)=0,\"\",INDEX('Smelter Look-up'!$C:$C,MATCH($A1709,'Smelter Look-up'!$E:$E,0)))","v":""},null,{"$f":"IF(ISERROR($V1709),\"\",OFFSET('Smelter Look-up'!$D$4,$V1709-4,0)&\"\")","v":""},{"$f":"IF(ISERROR($V1709),\"\",OFFSET('Smelter Look-up'!$E$4,$V1709-4,0))","v":""},{"$f":"IF(C1709=$X$4,\"Enter smelter details\", IF(ISERROR($V1709),\"\",OFFSET('Smelter Look-up'!$F$4,$V1709-4,0)))","v":""},{"$f":"IF(ISERROR($V1709),\"\",OFFSET('Smelter Look-up'!$G$4,$V1709-4,0))","v":""},{"$f":"IF(ISERROR($V1709),\"\",OFFSET('Smelter Look-up'!$H$4,$V1709-4,0))","v":""},{"$f":"IF(ISERROR($V1709),\"\",OFFSET('Smelter Look-up'!$I$4,$V1709-4,0))","v":""},{"$nulls":7},{"$f":"IF(ISERROR($V1709),\"\",OFFSET('Smelter Look-up'!$C$4,$V1709-4,0)&\"\")","v":""},"",{"$f":"IF(B1709=\"\",\"\",IF(ISERROR(MATCH($J1709,SorP!$B$1:$B$6230,0)),\"\",INDIRECT(\"'SorP'!$A$\"&MATCH($J1709,SorP!$B$1:$B$6230,0))))","v":""},null,{"$f":"IF(C1709=\"\",NA(),MATCH($B1709&$C1709,'Smelter Look-up'!$J:$J,0))","v":{"$error":"#N/A"}},null,0,null,null,null,""]
[null,{"$f":"IF(LEN(A1710)=0,\"\",INDEX('Smelter Look-up'!$A:$A,MATCH($A1710,'Smelter Look-up'!$E:$E,0)))","v":""},{"$f":"IF(LEN(A1710)=0,\"\",INDEX('Smelter Look-up'!$C:$C,MATCH($A1710,'Smelter Look-up'!$E:$E,0)))","v":""},null,{"$f":"IF(ISERROR($V1710),\"\",OFFSET('Smelter Look-up'!$D$4,$V1710-4,0)&\"\")","v":""},{"$f":"IF(ISERROR($V1710),\"\",OFFSET('Smelter Look-up'!$E$4,$V1710-4,0))","v":""},{"$f":"IF(C1710=$X$4,\"Enter smelter details\", IF(ISERROR($V1710),\"\",OFFSET('Smelter Look-up'!$F$4,$V1710-4,0)))","v":""},{"$f":"IF(ISERROR($V1710),\"\",OFFSET('Smelter Look-up'!$G$4,$V1710-4,0))","v":""},{"$f":"IF(ISERROR($V1710),\"\",OFFSET('Smelter Look-up'!$H$4,$V1710-4,0))","v":""},{"$f":"IF(ISERROR($V1710),\"\",OFFSET('Smelter Look-up'!$I$4,$V1710-4,0))","v":""},{"$nulls":7},{"$f":"IF(ISERROR($V1710),\"\",OFFSET('Smelter Look-up'!$C$4,$V1710-4,0)&\"\")","v":""},"",{"$f":"IF(B1710=\"\",\"\",IF(ISERROR(MATCH($J1710,SorP!$B$1:$B$6230,0)),\"\",INDIRECT(\"'SorP'!$A$\"&MATCH($J1710,SorP!$B$1:$B$6230,0))))","v":""},null,{"$f":"IF(C1710=\"\",NA(),MATCH($B1710&$C1710,'Smelter Look-up'!$J:$J,0))","v":{"$error":"#N/A"}},null,0,null,null,null,""]
[null,{"$f":"IF(LEN(A1711)=0,\"\",INDEX('Smelter Look-up'!$A:$A,MATCH($A1711,'Smelter Look-up'!$E:$E,0)))","v":""},{"$f":"IF(LEN(A1711)=0,\"\",INDEX('Smelter Look-up'!$C:$C,MATCH($A1711,'Smelter Look-up'!$E:$E,0)))","v":""},null,{"$f":"IF(ISERROR($V1711),\"\",OFFSET('Smelter Look-up'!$D$4,$V1711-4,0)&\"\")","v":""},{"$f":"IF(ISERROR($V1711),\"\",OFFSET('Smelter Look-up'!$E$4,$V1711-4,0))","v":""},{"$f":"IF(C1711=$X$4,\"Enter smelter details\", IF(ISERROR($V1711),\"\",OFFSET('Smelter Look-up'!$F$4,$V1711-4,0)))","v":""},{"$f":"IF(ISERROR($V1711),\"\",OFFSET('Smelter Look-up'!$G$4,$V1711-4,0))","v":""},{"$f":"IF(ISERROR($V1711),\"\",OFFSET('Smelter Look-up'!$H$4,$V1711-4,0))","v":""},{"$f":"IF(ISERROR($V1711),\"\",OFFSET('Smelter Look-up'!$I$4,$V1711-4,0))","v":""},{"$nulls":7},{"$f":"IF(ISERROR($V1711),\"\",OFFSET('Smelter Look-up'!$C$4,$V1711-4,0)&\"\")","v":""},"",{"$f":"IF(B1711=\"\",\"\",IF(ISERROR(MATCH($J1711,SorP!$B$1:$B$6230,0)),\"\",INDIRECT(\"'SorP'!$A$\"&MATCH($J1711,SorP!$B$1:$B$6230,0))))","v":""},null,{"$f":"IF(C1711=\"\",NA(),MATCH($B1711&$C1711,'Smelter Look-up'!$J:$J,0))","v":{"$error":"#N/A"}},null,0,null,null,null,""]
[null,{"$f":"IF(LEN(A1712)=0,\"\",INDEX('Smelter Look-up'!$A:$A,MATCH($A1712,'Smelter Look-up'!$E:$E,0)))","v":""},{"$f":"IF(LEN(A1712)=0,\"\",INDEX('Smelter Look-up'!$C:$C,MATCH($A1712,'Smelter Look-up'!$E:$E,0)))","v":""},null,{"$f":"IF(ISERROR($V1712),\"\",OFFSET('Smelter Look-up'!$D$4,$V1712-4,0)&\"\")","v":""},{"$f":"IF(ISERROR($V1712),\"\",OFFSET('Smelter Look-up'!$E$4,$V1712-4,0))","v":""},{"$f":"IF(C1712=$X$4,\"Enter smelter details\", IF(ISERROR($V1712),\"\",OFFSET('Smelter Look-up'!$F$4,$V1712-4,0)))","v":""},{"$f":"IF(ISERROR($V1712),\"\",OFFSET('Smelter Look-up'!$G$4,$V1712-4,0))","v":""},{"$f":"IF(ISERROR($V1712),\"\",OFFSET('Smelter Look-up'!$H$4,$V1712-4,0))","v":""},{"$f":"IF(ISERROR($V1712),\"\",OFFSET('Smelter Look-up'!$I$4,$V1712-4,0))","v":""},{"$nulls":7},{"$f":"IF(ISERROR($V1712),\"\",OFFSET('Smelter Look-up'!$C$4,$V1712-4,0)&\"\")","v":""},"",{"$f":"IF(B1712=\"\",\"\",IF(ISERROR(MATCH($J1712,SorP!$B$1:$B$6230,0)),\"\",INDIRECT(\"'SorP'!$A$\"&MATCH($J1712,SorP!$B$1:$B$6230,0))))","v":""},null,{"$f":"IF(C1712=\"\",NA(),MATCH($B1712&$C1712,'Smelter Look-up'!$J:$J,0))","v":{"$error":"#N/A"}},null,0,null,null,null,""]
[null,{"$f":"IF(LEN(A1713)=0,\"\",INDEX('Smelter Look-up'!$A:$A,MATCH($A1713,'Smelter Look-up'!$E:$E,0)))","v":""},{"$f":"IF(LEN(A1713)=0,\"\",INDEX('Smelter Look-up'!$C:$C,MATCH($A1713,'Smelter Look-up'!$E:$E,0)))","v":""},null,{"$f":"IF(ISERROR($V1713),\"\",OFFSET('Smelter Look-up'!$D$4,$V1713-4,0)&\"\")","v":""},{"$f":"IF(ISERROR($V1713),\"\",OFFSET('Smelter Look-up'!$E$4,$V1713-4,0))","v":""},{"$f":"IF(C1713=$X$4,\"Enter smelter details\", IF(ISERROR($V1713),\"\",OFFSET('Smelter Look-up'!$F$4,$V1713-4,0)))","v":""},{"$f":"IF(ISERROR($V1713),\"\",OFFSET('Smelter Look-up'!$G$4,$V1713-4,0))","v":""},{"$f":"IF(ISERROR($V1713),\"\",OFFSET('Smelter Look-up'!$H$4,$V1713-4,0))","v":""},{"$f":"IF(ISERROR($V1713),\"\",OFFSET('Smelter Look-up'!$I$4,$V1713-4,0))","v":""},{"$nulls":7},{"$f":"IF(ISERROR($V1713),\"\",OFFSET('Smelter Look-up'!$C$4,$V1713-4,0)&\"\")","v":""},"",{"$f":"IF(B1713=\"\",\"\",IF(ISERROR(MATCH($J1713,SorP!$B$1:$B$6230,0)),\"\",INDIRECT(\"'SorP'!$A$\"&MATCH($J1713,SorP!$B$1:$B$6230,0))))","v":""},null,{"$f":"IF(C1713=\"\",NA(),MATCH($B1713&$C1713,'Smelter Look-up'!$J:$J,0))","v":{"$error":"#N/A"}},null,0,null,null,null,""]
[null,{"$f":"IF(LEN(A1714)=0,\"\",INDEX('Smelter Look-up'!$A:$A,MATCH($A1714,'Smelter Look-up'!$E:$E,0)))","v":""},{"$f":"IF(LEN(A1714)=0,\"\",INDEX('Smelter Look-up'!$C:$C,MATCH($A1714,'Smelter Look-up'!$E:$E,0)))","v":""},null,{"$f":"IF(ISERROR($V1714),\"\",OFFSET('Smelter Look-up'!$D$4,$V1714-4,0)&\"\")","v":""},{"$f":"IF(ISERROR($V1714),\"\",OFFSET('Smelter Look-up'!$E$4,$V1714-4,0))","v":""},{"$f":"IF(C1714=$X$4,\"Enter smelter details\", IF(ISERROR($V1714),\"\",OFFSET('Smelter Look-up'!$F$4,$V1714-4,0)))","v":""},{"$f":"IF(ISERROR($V1714),\"\",OFFSET('Smelter Look-up'!$G$4,$V1714-4,0))","v":""},{"$f":"IF(ISERROR($V1714),\"\",OFFSET('Smelter Look-up'!$H$4,$V1714-4,0))","v":""},{"$f":"IF(ISERROR($V1714),\"\",OFFSET('Smelter Look-up'!$I$4,$V1714-4,0))","v":""},{"$nulls":7},{"$f":"IF(ISERROR($V1714),\"\",OFFSET('Smelter Look-up'!$C$4,$V1714-4,0)&\"\")","v":""},"",{"$f":"IF(B1714=\"\",\"\",IF(ISERROR(MATCH($J1714,SorP!$B$1:$B$6230,0)),\"\",INDIRECT(\"'SorP'!$A$\"&MATCH($J1714,SorP!$B$1:$B$6230,0))))","v":""},null,{"$f":"IF(C1714=\"\",NA(),MATCH($B1714&$C1714,'Smelter Look-up'!$J:$J,0))","v":{"$error":"#N/A"}},null,0,null,null,null,""]
[null,{"$f":"IF(LEN(A1715)=0,\"\",INDEX('Smelter Look-up'!$A:$A,MATCH($A1715,'Smelter Look-up'!$E:$E,0)))","v":""},{"$f":"IF(LEN(A1715)=0,\"\",INDEX('Smelter Look-up'!$C:$C,MATCH($A1715,'Smelter Look-up'!$E:$E,0)))","v":""},null,{"$f":"IF(ISERROR($V1715),\"\",OFFSET('Smelter Look-up'!$D$4,$V1715-4,0)&\"\")","v":""},{"$f":"IF(ISERROR($V1715),\"\",OFFSET('Smelter Look-up'!$E$4,$V1715-4,0))","v":""},{"$f":"IF(C1715=$X$4,\"Enter smelter details\", IF(ISERROR($V1715),\"\",OFFSET('Smelter Look-up'!$F$4,$V1715-4,0)))","v":""},{"$f":"IF(ISERROR($V1715),\"\",OFFSET('Smelter Look-up'!$G$4,$V1715-4,0))","v":""},{"$f":"IF(ISERROR($V1715),\"\",OFFSET('Smelter Look-up'!$H$4,$V1715-4,0))","v":""},{"$f":"IF(ISERROR($V1715),\"\",OFFSET('Smelter Look-up'!$I$4,$V1715-4,0))","v":""},{"$nulls":7},{"$f":"IF(ISERROR($V1715),\"\",OFFSET('Smelter Look-up'!$C$4,$V1715-4,0)&\"\")","v":""},"",{"$f":"IF(B1715=\"\",\"\",IF(ISERROR(MATCH($J1715,SorP!$B$1:$B$6230,0)),\"\",INDIRECT(\"'SorP'!$A$\"&MATCH($J1715,SorP!$B$1:$B$6230,0))))","v":""},null,{"$f":"IF(C1715=\"\",NA(),MATCH($B1715&$C1715,'Smelter Look-up'!$J:$J,0))","v":{"$error":"#N/A"}},null,0,null,null,null,""]
[null,{"$f":"IF(LEN(A1716)=0,\"\",INDEX('Smelter Look-up'!$A:$A,MATCH($A1716,'Smelter Look-up'!$E:$E,0)))","v":""},{"$f":"IF(LEN(A1716)=0,\"\",INDEX('Smelter Look-up'!$C:$C,MATCH($A1716,'Smelter Look-up'!$E:$E,0)))","v":""},null,{"$f":"IF(ISERROR($V1716),\"\",OFFSET('Smelter Look-up'!$D$4,$V1716-4,0)&\"\")","v":""},{"$f":"IF(ISERROR($V1716),\"\",OFFSET('Smelter Look-up'!$E$4,$V1716-4,0))","v":""},{"$f":"IF(C1716=$X$4,\"Enter smelter details\", IF(ISERROR($V1716),\"\",OFFSET('Smelter Look-up'!$F$4,$V1716-4,0)))","v":""},{"$f":"IF(ISERROR($V1716),\"\",OFFSET('Smelter Look-up'!$G$4,$V1716-4,0))","v":""},{"$f":"IF(ISERROR($V1716),\"\",OFFSET('Smelter Look-up'!$H$4,$V1716-4,0))","v":""},{"$f":"IF(ISERROR($V1716),\"\",OFFSET('Smelter Look-up'!$I$4,$V1716-4,0))","v":""},{"$nulls":7},{"$f":"IF(ISERROR($V1716),\"\",OFFSET('Smelter Look-up'!$C$4,$V1716-4,0)&\"\")","v":""},"",{"$f":"IF(B1716=\"\",\"\",IF(ISERROR(MATCH($J1716,SorP!$B$1:$B$6230,0)),\"\",INDIRECT(\"'SorP'!$A$\"&MATCH($J1716,SorP!$B$1:$B$6230,0))))","v":""},null,{"$f":"IF(C1716=\"\",NA(),MATCH($B1716&$C1716,'Smelter Look-up'!$J:$J,0))","v":{"$error":"#N/A"}},null,0,null,null,null,""]
[null,{"$f":"IF(LEN(A1717)=0,\"\",INDEX('Smelter Look-up'!$A:$A,MATCH($A1717,'Smelter Look-up'!$E:$E,0)))","v":""},{"$f":"IF(LEN(A1717)=0,\"\",INDEX('Smelter Look-up'!$C:$C,MATCH($A1717,'Smelter Look-up'!$E:$E,0)))","v":""},null,{"$f":"IF(ISERROR($V1717),\"\",OFFSET('Smelter Look-up'!$D$4,$V1717-4,0)&\"\")","v":""},{"$f":"IF(ISERROR($V1717),\"\",OFFSET('Smelter Look-up'!$E$4,$V1717-4,0))","v":""},{"$f":"IF(C1717=$X$4,\"Enter smelter details\", IF(ISERROR($V1717),\"\",OFFSET('Smelter Look-up'!$F$4,$V1717-4,0)))","v":""},{"$f":"IF(ISERROR($V1717),\"\",OFFSET('Smelter Look-up'!$G$4,$V1717-4,0))","v":""},{"$f":"IF(ISERROR($V1717),\"\",OFFSET('Smelter Look-up'!$H$4,$V1717-4,0))","v":""},{"$f":"IF(ISERROR($V1717),\"\",OFFSET('Smelter Look-up'!$I$4,$V1717-4,0))","v":""},{"$nulls":7},{"$f":"IF(ISERROR($V1717),\"\",OFFSET('Smelter Look-up'!$C$4,$V1717-4,0)&\"\")","v":""},"",{"$f":"IF(B1717=\"\",\"\",IF(ISERROR(MATCH($J1717,SorP!$B$1:$B$6230,0)),\"\",INDIRECT(\"'SorP'!$A$\"&MATCH($J1717,SorP!$B$1:$B$6230,0))))","v":""},null,{"$f":"IF(C1717=\"\",NA(),MATCH($B1717&$C1717,'Smelter Look-up'!$J:$J,0))","v":{"$error":"#N/A"}},null,0,null,null,null,""]
[null,{"$f":"IF(LEN(A1718)=0,\"\",INDEX('Smelter Look-up'!$A:$A,MATCH($A1718,'Smelter Look-up'!$E:$E,0)))","v":""},{"$f":"IF(LEN(A1718)=0,\"\",INDEX('Smelter Look-up'!$C:$C,MATCH($A1718,'Smelter Look-up'!$E:$E,0)))","v":""},null,{"$f":"IF(ISERROR($V1718),\"\",OFFSET('Smelter Look-up'!$D$4,$V1718-4,0)&\"\")","v":""},{"$f":"IF(ISERROR($V1718),\"\",OFFSET('Smelter Look-up'!$E$4,$V1718-4,0))","v":""},{"$f":"IF(C1718=$X$4,\"Enter smelter details\", IF(ISERROR($V1718),\"\",OFFSET('Smelter Look-up'!$F$4,$V1718-4,0)))","v":""},{"$f":"IF(ISERROR($V1718),\"\",OFFSET('Smelter Look-up'!$G$4,$V1718-4,0))","v":""},{"$f":"IF(ISERROR($V1718),\"\",OFFSET('Smelter Look-up'!$H$4,$V1718-4,0))","v":""},{"$f":"IF(ISERROR($V1718),\"\",OFFSET('Smelter Look-up'!$I$4,$V1718-4,0))","v":""},{"$nulls":7},{"$f":"IF(ISERROR($V1718),\"\",OFFSET('Smelter Look-up'!$C$4,$V1718-4,0)&\"\")","v":""},"",{"$f":"IF(B1718=\"\",\"\",IF(ISERROR(MATCH($J1718,SorP!$B$1:$B$6230,0)),\"\",INDIRECT(\"'SorP'!$A$\"&MATCH($J1718,SorP!$B$1:$B$6230,0))))","v":""},null,{"$f":"IF(C1718=\"\",NA(),MATCH($B1718&$C1718,'Smelter Look-up'!$J:$J,0))","v":{"$error":"#N/A"}},null,0,null,null,null,""]
[null,{"$f":"IF(LEN(A1719)=0,\"\",INDEX('Smelter Look-up'!$A:$A,MATCH($A1719,'Smelter Look-up'!$E:$E,0)))","v":""},{"$f":"IF(LEN(A1719)=0,\"\",INDEX('Smelter Look-up'!$C:$C,MATCH($A1719,'Smelter Look-up'!$E:$E,0)))","v":""},null,{"$f":"IF(ISERROR($V1719),\"\",OFFSET('Smelter Look-up'!$D$4,$V1719-4,0)&\"\")","v":""},{"$f":"IF(ISERROR($V1719),\"\",OFFSET('Smelter Look-up'!$E$4,$V1719-4,0))","v":""},{"$f":"IF(C1719=$X$4,\"Enter smelter details\", IF(ISERROR($V1719),\"\",OFFSET('Smelter Look-up'!$F$4,$V1719-4,0)))","v":""},{"$f":"IF(ISERROR($V1719),\"\",OFFSET('Smelter Look-up'!$G$4,$V1719-4,0))","v":""},{"$f":"IF(ISERROR($V1719),\"\",OFFSET('Smelter Look-up'!$H$4,$V1719-4,0))","v":""},{"$f":"IF(ISERROR($V1719),\"\",OFFSET('Smelter Look-up'!$I$4,$V1719-4,0))","v":""},{"$nulls":7},{"$f":"IF(ISERROR($V1719),\"\",OFFSET('Smelter Look-up'!$C$4,$V1719-4,0)&\"\")","v":""},"",{"$f":"IF(B1719=\"\",\"\",IF(ISERROR(MATCH($J1719,SorP!$B$1:$B$6230,0)),\"\",INDIRECT(\"'SorP'!$A$\"&MATCH($J1719,SorP!$B$1:$B$6230,0))))","v":""},null,{"$f":"IF(C1719=\"\",NA(),MATCH($B1719&$C1719,'Smelter Look-up'!$J:$J,0))","v":{"$error":"#N/A"}},null,0,null,null,null,""]
[null,{"$f":"IF(LEN(A1720)=0,\"\",INDEX('Smelter Look-up'!$A:$A,MATCH($A1720,'Smelter Look-up'!$E:$E,0)))","v":""},{"$f":"IF(LEN(A1720)=0,\"\",INDEX('Smelter Look-up'!$C:$C,MATCH($A1720,'Smelter Look-up'!$E:$E,0)))","v":""},null,{"$f":"IF(ISERROR($V1720),\"\",OFFSET('Smelter Look-up'!$D$4,$V1720-4,0)&\"\")","v":""},{"$f":"IF(ISERROR($V1720),\"\",OFFSET('Smelter Look-up'!$E$4,$V1720-4,0))","v":""},{"$f":"IF(C1720=$X$4,\"Enter smelter details\", IF(ISERROR($V1720),\"\",OFFSET('Smelter Look-up'!$F$4,$V1720-4,0)))","v":""},{"$f":"IF(ISERROR($V1720),\"\",OFFSET('Smelter Look-up'!$G$4,$V1720-4,0))","v":""},{"$f":"IF(ISERROR($V1720),\"\",OFFSET('Smelter Look-up'!$H$4,$V1720-4,0))","v":""},{"$f":"IF(ISERROR($V1720),\"\",OFFSET('Smelter Look-up'!$I$4,$V1720-4,0))","v":""},{"$nulls":7},{"$f":"IF(ISERROR($V1720),\"\",OFFSET('Smelter Look-up'!$C$4,$V1720-4,0)&\"\")","v":""},"",{"$f":"IF(B1720=\"\",\"\",IF(ISERROR(MATCH($J1720,SorP!$B$1:$B$6230,0)),\"\",INDIRECT(\"'SorP'!$A$\"&MATCH($J1720,SorP!$B$1:$B$6230,0))))","v":""},null,{"$f":"IF(C1720=\"\",NA(),MATCH($B1720&$C1720,'Smelter Look-up'!$J:$J,0))","v":{"$error":"#N/A"}},null,0,null,null,null,""]
[null,{"$f":"IF(LEN(A1721)=0,\"\",INDEX('Smelter Look-up'!$A:$A,MATCH($A1721,'Smelter Look-up'!$E:$E,0)))","v":""},{"$f":"IF(LEN(A1721)=0,\"\",INDEX('Smelter Look-up'!$C:$C,MATCH($A1721,'Smelter Look-up'!$E:$E,0)))","v":""},null,{"$f":"IF(ISERROR($V1721),\"\",OFFSET('Smelter Look-up'!$D$4,$V1721-4,0)&\"\")","v":""},{"$f":"IF(ISERROR($V1721),\"\",OFFSET('Smelter Look-up'!$E$4,$V1721-4,0))","v":""},{"$f":"IF(C1721=$X$4,\"Enter smelter details\", IF(ISERROR($V1721),\"\",OFFSET('Smelter Look-up'!$F$4,$V1721-4,0)))","v":""},{"$f":"IF(ISERROR($V1721),\"\",OFFSET('Smelter Look-up'!$G$4,$V1721-4,0))","v":""},{"$f":"IF(ISERROR($V1721),\"\",OFFSET('Smelter Look-up'!$H$4,$V1721-4,0))","v":""},{"$f":"IF(ISERROR($V1721),\"\",OFFSET('Smelter Look-up'!$I$4,$V1721-4,0))","v":""},{"$nulls":7},{"$f":"IF(ISERROR($V1721),\"\",OFFSET('Smelter Look-up'!$C$4,$V1721-4,0)&\"\")","v":""},"",{"$f":"IF(B1721=\"\",\"\",IF(ISERROR(MATCH($J1721,SorP!$B$1:$B$6230,0)),\"\",INDIRECT(\"'SorP'!$A$\"&MATCH($J1721,SorP!$B$1:$B$6230,0))))","v":""},null,{"$f":"IF(C1721=\"\",NA(),MATCH($B1721&$C1721,'Smelter Look-up'!$J:$J,0))","v":{"$error":"#N/A"}},null,0,null,null,null,""]
[null,{"$f":"IF(LEN(A1722)=0,\"\",INDEX('Smelter Look-up'!$A:$A,MATCH($A1722,'Smelter Look-up'!$E:$E,0)))","v":""},{"$f":"IF(LEN(A1722)=0,\"\",INDEX('Smelter Look-up'!$C:$C,MATCH($A1722,'Smelter Look-up'!$E:$E,0)))","v":""},null,{"$f":"IF(ISERROR($V1722),\"\",OFFSET('Smelter Look-up'!$D$4,$V1722-4,0)&\"\")","v":""},{"$f":"IF(ISERROR($V1722),\"\",OFFSET('Smelter Look-up'!$E$4,$V1722-4,0))","v":""},{"$f":"IF(C1722=$X$4,\"Enter smelter details\", IF(ISERROR($V1722),\"\",OFFSET('Smelter Look-up'!$F$4,$V1722-4,0)))","v":""},{"$f":"IF(ISERROR($V1722),\"\",OFFSET('Smelter Look-up'!$G$4,$V1722-4,0))","v":""},{"$f":"IF(ISERROR($V1722),\"\",OFFSET('Smelter Look-up'!$H$4,$V1722-4,0))","v":""},{"$f":"IF(ISERROR($V1722),\"\",OFFSET('Smelter Look-up'!$I$4,$V1722-4,0))","v":""},{"$nulls":7},{"$f":"IF(ISERROR($V1722),\"\",OFFSET('Smelter Look-up'!$C$4,$V1722-4,0)&\"\")","v":""},"",{"$f":"IF(B1722=\"\",\"\",IF(ISERROR(MATCH($J1722,SorP!$B$1:$B$6230,0)),\"\",INDIRECT(\"'SorP'!$A$\"&MATCH($J1722,SorP!$B$1:$B$6230,0))))","v":""},null,{"$f":"IF(C1722=\"\",NA(),MATCH($B1722&$C1722,'Smelter Look-up'!$J:$J,0))","v":{"$error":"#N/A"}},null,0,null,null,null,""]
[null,{"$f":"IF(LEN(A1723)=0,\"\",INDEX('Smelter Look-up'!$A:$A,MATCH($A1723,'Smelter Look-up'!$E:$E,0)))","v":""},{"$f":"IF(LEN(A1723)=0,\"\",INDEX('Smelter Look-up'!$C:$C,MATCH($A1723,'Smelter Look-up'!$E:$E,0)))","v":""},null,{"$f":"IF(ISERROR($V1723),\"\",OFFSET('Smelter Look-up'!$D$4,$V1723-4,0)&\"\")","v":""},{"$f":"IF(ISERROR($V1723),\"\",OFFSET('Smelter Look-up'!$E$4,$V1723-4,0))","v":""},{"$f":"IF(C1723=$X$4,\"Enter smelter details\", IF(ISERROR($V1723),\"\",OFFSET('Smelter Look-up'!$F$4,$V1723-4,0)))","v":""},{"$f":"IF(ISERROR($V1723),\"\",OFFSET('Smelter Look-up'!$G$4,$V1723-4,0))","v":""},{"$f":"IF(ISERROR($V1723),\"\",OFFSET('Smelter Look-up'!$H$4,$V1723-4,0))","v":""},{"$f":"IF(ISERROR($V1723),\"\",OFFSET('Smelter Look-up'!$I$4,$V1723-4,0))","v":""},{"$nulls":7},{"$f":"IF(ISERROR($V1723),\"\",OFFSET('Smelter Look-up'!$C$4,$V1723-4,0)&\"\")","v":""},{"$f":"IF(B1723=\"\",\"\",IF(ISERROR(MATCH($E1723,CL,0)),\"Unknown\",INDIRECT(\"'C'!$A$\"&MATCH($E1723,CL,0)+1)))","v":""},{"$f":"IF(B1723=\"\",\"\",IF(ISERROR(MATCH($J1723,SorP!$B$1:$B$6230,0)),\"\",INDIRECT(\"'SorP'!$A$\"&MATCH($J1723,SorP!$B$1:$B$6230,0))))","v":""},null,{"$f":"IF(C1723=\"\",NA(),MATCH($B1723&$C1723,'Smelter Look-up'!$J:$J,0))","v":{"$error":"#N/A"}},null,{"$f":"IF(AND(C1723=\"Smelter not listed\",OR(LEN(D1723)=0,LEN(E1723)=0)),1,0)","v":0},null,null,null,{"$f":"B1723&C1723","v":""}]
[null,{"$f":"IF(LEN(A1724)=0,\"\",INDEX('Smelter Look-up'!$A:$A,MATCH($A1724,'Smelter Look-up'!$E:$E,0)))","v":""},{"$f":"IF(LEN(A1724)=0,\"\",INDEX('Smelter Look-up'!$C:$C,MATCH($A1724,'Smelter Look-up'!$E:$E,0)))","v":""},null,{"$f":"IF(ISERROR($V1724),\"\",OFFSET('Smelter Look-up'!$D$4,$V1724-4,0)&\"\")","v":""},{"$f":"IF(ISERROR($V1724),\"\",OFFSET('Smelter Look-up'!$E$4,$V1724-4,0))","v":""},{"$f":"IF(C1724=$X$4,\"Enter smelter details\", IF(ISERROR($V1724),\"\",OFFSET('Smelter Look-up'!$F$4,$V1724-4,0)))","v":""},{"$f":"IF(ISERROR($V1724),\"\",OFFSET('Smelter Look-up'!$G$4,$V1724-4,0))","v":""},{"$f":"IF(ISERROR($V1724),\"\",OFFSET('Smelter Look-up'!$H$4,$V1724-4,0))","v":""},{"$f":"IF(ISERROR($V1724),\"\",OFFSET('Smelter Look-up'!$I$4,$V1724-4,0))","v":""},{"$nulls":7},{"$f":"IF(ISERROR($V1724),\"\",OFFSET('Smelter Look-up'!$C$4,$V1724-4,0)&\"\")","v":""},"",{"$f":"IF(B1724=\"\",\"\",IF(ISERROR(MATCH($J1724,SorP!$B$1:$B$6230,0)),\"\",INDIRECT(\"'SorP'!$A$\"&MATCH($J1724,SorP!$B$1:$B$6230,0))))","v":""},null,{"$f":"IF(C1724=\"\",NA(),MATCH($B1724&$C1724,'Smelter Look-up'!$J:$J,0))","v":{"$error":"#N/A"}},null,0,null,null,null,""]
[null,{"$f":"IF(LEN(A1725)=0,\"\",INDEX('Smelter Look-up'!$A:$A,MATCH($A1725,'Smelter Look-up'!$E:$E,0)))","v":""},{"$f":"IF(LEN(A1725)=0,\"\",INDEX('Smelter Look-up'!$C:$C,MATCH($A1725,'Smelter Look-up'!$E:$E,0)))","v":""},null,{"$f":"IF(ISERROR($V1725),\"\",OFFSET('Smelter Look-up'!$D$4,$V1725-4,0)&\"\")","v":""},{"$f":"IF(ISERROR($V1725),\"\",OFFSET('Smelter Look-up'!$E$4,$V1725-4,0))","v":""},{"$f":"IF(C1725=$X$4,\"Enter smelter details\", IF(ISERROR($V1725),\"\",OFFSET('Smelter Look-up'!$F$4,$V1725-4,0)))","v":""},{"$f":"IF(ISERROR($V1725),\"\",OFFSET('Smelter Look-up'!$G$4,$V1725-4,0))","v":""},{"$f":"IF(ISERROR($V1725),\"\",OFFSET('Smelter Look-up'!$H$4,$V1725-4,0))","v":""},{"$f":"IF(ISERROR($V1725),\"\",OFFSET('Smelter Look-up'!$I$4,$V1725-4,0))","v":""},{"$nulls":7},{"$f":"IF(ISERROR($V1725),\"\",OFFSET('Smelter Look-up'!$C$4,$V1725-4,0)&\"\")","v":""},"",{"$f":"IF(B1725=\"\",\"\",IF(ISERROR(MATCH($J1725,SorP!$B$1:$B$6230,0)),\"\",INDIRECT(\"'SorP'!$A$\"&MATCH($J1725,SorP!$B$1:$B$6230,0))))","v":""},null,{"$f":"IF(C1725=\"\",NA(),MATCH($B1725&$C1725,'Smelter Look-up'!$J:$J,0))","v":{"$error":"#N/A"}},null,0,null,null,null,""]
[null,{"$f":"IF(LEN(A1726)=0,\"\",INDEX('Smelter Look-up'!$A:$A,MATCH($A1726,'Smelter Look-up'!$E:$E,0)))","v":""},{"$f":"IF(LEN(A1726)=0,\"\",INDEX('Smelter Look-up'!$C:$C,MATCH($A1726,'Smelter Look-up'!$E:$E,0)))","v":""},null,{"$f":"IF(ISERROR($V1726),\"\",OFFSET('Smelter Look-up'!$D$4,$V1726-4,0)&\"\")","v":""},{"$f":"IF(ISERROR($V1726),\"\",OFFSET('Smelter Look-up'!$E$4,$V1726-4,0))","v":""},{"$f":"IF(C1726=$X$4,\"Enter smelter details\", IF(ISERROR($V1726),\"\",OFFSET('Smelter Look-up'!$F$4,$V1726-4,0)))","v":""},{"$f":"IF(ISERROR($V1726),\"\",OFFSET('Smelter Look-up'!$G$4,$V1726-4,0))","v":""},{"$f":"IF(ISERROR($V1726),\"\",OFFSET('Smelter Look-up'!$H$4,$V1726-4,0))","v":""},{"$f":"IF(ISERROR($V1726),\"\",OFFSET('Smelter Look-up'!$I$4,$V1726-4,0))","v":""},{"$nulls":7},{"$f":"IF(ISERROR($V1726),\"\",OFFSET('Smelter Look-up'!$C$4,$V1726-4,0)&\"\")","v":""},"",{"$f":"IF(B1726=\"\",\"\",IF(ISERROR(MATCH($J1726,SorP!$B$1:$B$6230,0)),\"\",INDIRECT(\"'SorP'!$A$\"&MATCH($J1726,SorP!$B$1:$B$6230,0))))","v":""},null,{"$f":"IF(C1726=\"\",NA(),MATCH($B1726&$C1726,'Smelter Look-up'!$J:$J,0))","v":{"$error":"#N/A"}},null,0,null,null,null,""]
[null,{"$f":"IF(LEN(A1727)=0,\"\",INDEX('Smelter Look-up'!$A:$A,MATCH($A1727,'Smelter Look-up'!$E:$E,0)))","v":""},{"$f":"IF(LEN(A1727)=0,\"\",INDEX('Smelter Look-up'!$C:$C,MATCH($A1727,'Smelter Look-up'!$E:$E,0)))","v":""},null,{"$f":"IF(ISERROR($V1727),\"\",OFFSET('Smelter Look-up'!$D$4,$V1727-4,0)&\"\")","v":""},{"$f":"IF(ISERROR($V1727),\"\",OFFSET('Smelter Look-up'!$E$4,$V1727-4,0))","v":""},{"$f":"IF(C1727=$X$4,\"Enter smelter details\", IF(ISERROR($V1727),\"\",OFFSET('Smelter Look-up'!$F$4,$V1727-4,0)))","v":""},{"$f":"IF(ISERROR($V1727),\"\",OFFSET('Smelter Look-up'!$G$4,$V1727-4,0))","v":""},{"$f":"IF(ISERROR($V1727),\"\",OFFSET('Smelter Look-up'!$H$4,$V1727-4,0))","v":""},{"$f":"IF(ISERROR($V1727),\"\",OFFSET('Smelter Look-up'!$I$4,$V1727-4,0))","v":""},{"$nulls":7},{"$f":"IF(ISERROR($V1727),\"\",OFFSET('Smelter Look-up'!$C$4,$V1727-4,0)&\"\")","v":""},"",{"$f":"IF(B1727=\"\",\"\",IF(ISERROR(MATCH($J1727,SorP!$B$1:$B$6230,0)),\"\",INDIRECT(\"'SorP'!$A$\"&MATCH($J1727,SorP!$B$1:$B$6230,0))))","v":""},null,{"$f":"IF(C1727=\"\",NA(),MATCH($B1727&$C1727,'Smelter Look-up'!$J:$J,0))","v":{"$error":"#N/A"}},null,0,null,null,null,""]
[null,{"$f":"IF(LEN(A1728)=0,\"\",INDEX('Smelter Look-up'!$A:$A,MATCH($A1728,'Smelter Look-up'!$E:$E,0)))","v":""},{"$f":"IF(LEN(A1728)=0,\"\",INDEX('Smelter Look-up'!$C:$C,MATCH($A1728,'Smelter Look-up'!$E:$E,0)))","v":""},null,{"$f":"IF(ISERROR($V1728),\"\",OFFSET('Smelter Look-up'!$D$4,$V1728-4,0)&\"\")","v":""},{"$f":"IF(ISERROR($V1728),\"\",OFFSET('Smelter Look-up'!$E$4,$V1728-4,0))","v":""},{"$f":"IF(C1728=$X$4,\"Enter smelter details\", IF(ISERROR($V1728),\"\",OFFSET('Smelter Look-up'!$F$4,$V1728-4,0)))","v":""},{"$f":"IF(ISERROR($V1728),\"\",OFFSET('Smelter Look-up'!$G$4,$V1728-4,0))","v":""},{"$f":"IF(ISERROR($V1728),\"\",OFFSET('Smelter Look-up'!$H$4,$V1728-4,0))","v":""},{"$f":"IF(ISERROR($V1728),\"\",OFFSET('Smelter Look-up'!$I$4,$V1728-4,0))","v":""},{"$nulls":7},{"$f":"IF(ISERROR($V1728),\"\",OFFSET('Smelter Look-up'!$C$4,$V1728-4,0)&\"\")","v":""},"",{"$f":"IF(B1728=\"\",\"\",IF(ISERROR(MATCH($J1728,SorP!$B$1:$B$6230,0)),\"\",INDIRECT(\"'SorP'!$A$\"&MATCH($J1728,SorP!$B$1:$B$6230,0))))","v":""},null,{"$f":"IF(C1728=\"\",NA(),MATCH($B1728&$C1728,'Smelter Look-up'!$J:$J,0))","v":{"$error":"#N/A"}},null,0,null,null,null,""]
[null,{"$f":"IF(LEN(A1729)=0,\"\",INDEX('Smelter Look-up'!$A:$A,MATCH($A1729,'Smelter Look-up'!$E:$E,0)))","v":""},{"$f":"IF(LEN(A1729)=0,\"\",INDEX('Smelter Look-up'!$C:$C,MATCH($A1729,'Smelter Look-up'!$E:$E,0)))","v":""},null,{"$f":"IF(ISERROR($V1729),\"\",OFFSET('Smelter Look-up'!$D$4,$V1729-4,0)&\"\")","v":""},{"$f":"IF(ISERROR($V1729),\"\",OFFSET('Smelter Look-up'!$E$4,$V1729-4,0))","v":""},{"$f":"IF(C1729=$X$4,\"Enter smelter details\", IF(ISERROR($V1729),\"\",OFFSET('Smelter Look-up'!$F$4,$V1729-4,0)))","v":""},{"$f":"IF(ISERROR($V1729),\"\",OFFSET('Smelter Look-up'!$G$4,$V1729-4,0))","v":""},{"$f":"IF(ISERROR($V1729),\"\",OFFSET('Smelter Look-up'!$H$4,$V1729-4,0))","v":""},{"$f":"IF(ISERROR($V1729),\"\",OFFSET('Smelter Look-up'!$I$4,$V1729-4,0))","v":""},{"$nulls":7},{"$f":"IF(ISERROR($V1729),\"\",OFFSET('Smelter Look-up'!$C$4,$V1729-4,0)&\"\")","v":""},"",{"$f":"IF(B1729=\"\",\"\",IF(ISERROR(MATCH($J1729,SorP!$B$1:$B$6230,0)),\"\",INDIRECT(\"'SorP'!$A$\"&MATCH($J1729,SorP!$B$1:$B$6230,0))))","v":""},null,{"$f":"IF(C1729=\"\",NA(),MATCH($B1729&$C1729,'Smelter Look-up'!$J:$J,0))","v":{"$error":"#N/A"}},null,0,null,null,null,""]
[null,{"$f":"IF(LEN(A1730)=0,\"\",INDEX('Smelter Look-up'!$A:$A,MATCH($A1730,'Smelter Look-up'!$E:$E,0)))","v":""},{"$f":"IF(LEN(A1730)=0,\"\",INDEX('Smelter Look-up'!$C:$C,MATCH($A1730,'Smelter Look-up'!$E:$E,0)))","v":""},null,{"$f":"IF(ISERROR($V1730),\"\",OFFSET('Smelter Look-up'!$D$4,$V1730-4,0)&\"\")","v":""},{"$f":"IF(ISERROR($V1730),\"\",OFFSET('Smelter Look-up'!$E$4,$V1730-4,0))","v":""},{"$f":"IF(C1730=$X$4,\"Enter smelter details\", IF(ISERROR($V1730),\"\",OFFSET('Smelter Look-up'!$F$4,$V1730-4,0)))","v":""},{"$f":"IF(ISERROR($V1730),\"\",OFFSET('Smelter Look-up'!$G$4,$V1730-4,0))","v":""},{"$f":"IF(ISERROR($V1730),\"\",OFFSET('Smelter Look-up'!$H$4,$V1730-4,0))","v":""},{"$f":"IF(ISERROR($V1730),\"\",OFFSET('Smelter Look-up'!$I$4,$V1730-4,0))","v":""},{"$nulls":7},{"$f":"IF(ISERROR($V1730),\"\",OFFSET('Smelter Look-up'!$C$4,$V1730-4,0)&\"\")","v":""},"",{"$f":"IF(B1730=\"\",\"\",IF(ISERROR(MATCH($J1730,SorP!$B$1:$B$6230,0)),\"\",INDIRECT(\"'SorP'!$A$\"&MATCH($J1730,SorP!$B$1:$B$6230,0))))","v":""},null,{"$f":"IF(C1730=\"\",NA(),MATCH($B1730&$C1730,'Smelter Look-up'!$J:$J,0))","v":{"$error":"#N/A"}},null,0,null,null,null,""]
[null,{"$f":"IF(LEN(A1731)=0,\"\",INDEX('Smelter Look-up'!$A:$A,MATCH($A1731,'Smelter Look-up'!$E:$E,0)))","v":""},{"$f":"IF(LEN(A1731)=0,\"\",INDEX('Smelter Look-up'!$C:$C,MATCH($A1731,'Smelter Look-up'!$E:$E,0)))","v":""},null,{"$f":"IF(ISERROR($V1731),\"\",OFFSET('Smelter Look-up'!$D$4,$V1731-4,0)&\"\")","v":""},{"$f":"IF(ISERROR($V1731),\"\",OFFSET('Smelter Look-up'!$E$4,$V1731-4,0))","v":""},{"$f":"IF(C1731=$X$4,\"Enter smelter details\", IF(ISERROR($V1731),\"\",OFFSET('Smelter Look-up'!$F$4,$V1731-4,0)))","v":""},{"$f":"IF(ISERROR($V1731),\"\",OFFSET('Smelter Look-up'!$G$4,$V1731-4,0))","v":""},{"$f":"IF(ISERROR($V1731),\"\",OFFSET('Smelter Look-up'!$H$4,$V1731-4,0))","v":""},{"$f":"IF(ISERROR($V1731),\"\",OFFSET('Smelter Look-up'!$I$4,$V1731-4,0))","v":""},{"$nulls":7},{"$f":"IF(ISERROR($V1731),\"\",OFFSET('Smelter Look-up'!$C$4,$V1731-4,0)&\"\")","v":""},"",{"$f":"IF(B1731=\"\",\"\",IF(ISERROR(MATCH($J1731,SorP!$B$1:$B$6230,0)),\"\",INDIRECT(\"'SorP'!$A$\"&MATCH($J1731,SorP!$B$1:$B$6230,0))))","v":""},null,{"$f":"IF(C1731=\"\",NA(),MATCH($B1731&$C1731,'Smelter Look-up'!$J:$J,0))","v":{"$error":"#N/A"}},null,0,null,null,null,""]
[null,{"$f":"IF(LEN(A1732)=0,\"\",INDEX('Smelter Look-up'!$A:$A,MATCH($A1732,'Smelter Look-up'!$E:$E,0)))","v":""},{"$f":"IF(LEN(A1732)=0,\"\",INDEX('Smelter Look-up'!$C:$C,MATCH($A1732,'Smelter Look-up'!$E:$E,0)))","v":""},null,{"$f":"IF(ISERROR($V1732),\"\",OFFSET('Smelter Look-up'!$D$4,$V1732-4,0)&\"\")","v":""},{"$f":"IF(ISERROR($V1732),\"\",OFFSET('Smelter Look-up'!$E$4,$V1732-4,0))","v":""},{"$f":"IF(C1732=$X$4,\"Enter smelter details\", IF(ISERROR($V1732),\"\",OFFSET('Smelter Look-up'!$F$4,$V1732-4,0)))","v":""},{"$f":"IF(ISERROR($V1732),\"\",OFFSET('Smelter Look-up'!$G$4,$V1732-4,0))","v":""},{"$f":"IF(ISERROR($V1732),\"\",OFFSET('Smelter Look-up'!$H$4,$V1732-4,0))","v":""},{"$f":"IF(ISERROR($V1732),\"\",OFFSET('Smelter Look-up'!$I$4,$V1732-4,0))","v":""},{"$nulls":7},{"$f":"IF(ISERROR($V1732),\"\",OFFSET('Smelter Look-up'!$C$4,$V1732-4,0)&\"\")","v":""},"",{"$f":"IF(B1732=\"\",\"\",IF(ISERROR(MATCH($J1732,SorP!$B$1:$B$6230,0)),\"\",INDIRECT(\"'SorP'!$A$\"&MATCH($J1732,SorP!$B$1:$B$6230,0))))","v":""},null,{"$f":"IF(C1732=\"\",NA(),MATCH($B1732&$C1732,'Smelter Look-up'!$J:$J,0))","v":{"$error":"#N/A"}},null,0,null,null,null,""]
[null,{"$f":"IF(LEN(A1733)=0,\"\",INDEX('Smelter Look-up'!$A:$A,MATCH($A1733,'Smelter Look-up'!$E:$E,0)))","v":""},{"$f":"IF(LEN(A1733)=0,\"\",INDEX('Smelter Look-up'!$C:$C,MATCH($A1733,'Smelter Look-up'!$E:$E,0)))","v":""},null,{"$f":"IF(ISERROR($V1733),\"\",OFFSET('Smelter Look-up'!$D$4,$V1733-4,0)&\"\")","v":""},{"$f":"IF(ISERROR($V1733),\"\",OFFSET('Smelter Look-up'!$E$4,$V1733-4,0))","v":""},{"$f":"IF(C1733=$X$4,\"Enter smelter details\", IF(ISERROR($V1733),\"\",OFFSET('Smelter Look-up'!$F$4,$V1733-4,0)))","v":""},{"$f":"IF(ISERROR($V1733),\"\",OFFSET('Smelter Look-up'!$G$4,$V1733-4,0))","v":""},{"$f":"IF(ISERROR($V1733),\"\",OFFSET('Smelter Look-up'!$H$4,$V1733-4,0))","v":""},{"$f":"IF(ISERROR($V1733),\"\",OFFSET('Smelter Look-up'!$I$4,$V1733-4,0))","v":""},{"$nulls":7},{"$f":"IF(ISERROR($V1733),\"\",OFFSET('Smelter Look-up'!$C$4,$V1733-4,0)&\"\")","v":""},"",{"$f":"IF(B1733=\"\",\"\",IF(ISERROR(MATCH($J1733,SorP!$B$1:$B$6230,0)),\"\",INDIRECT(\"'SorP'!$A$\"&MATCH($J1733,SorP!$B$1:$B$6230,0))))","v":""},null,{"$f":"IF(C1733=\"\",NA(),MATCH($B1733&$C1733,'Smelter Look-up'!$J:$J,0))","v":{"$error":"#N/A"}},null,0,null,null,null,""]
[null,{"$f":"IF(LEN(A1734)=0,\"\",INDEX('Smelter Look-up'!$A:$A,MATCH($A1734,'Smelter Look-up'!$E:$E,0)))","v":""},{"$f":"IF(LEN(A1734)=0,\"\",INDEX('Smelter Look-up'!$C:$C,MATCH($A1734,'Smelter Look-up'!$E:$E,0)))","v":""},null,{"$f":"IF(ISERROR($V1734),\"\",OFFSET('Smelter Look-up'!$D$4,$V1734-4,0)&\"\")","v":""},{"$f":"IF(ISERROR($V1734),\"\",OFFSET('Smelter Look-up'!$E$4,$V1734-4,0))","v":""},{"$f":"IF(C1734=$X$4,\"Enter smelter details\", IF(ISERROR($V1734),\"\",OFFSET('Smelter Look-up'!$F$4,$V1734-4,0)))","v":""},{"$f":"IF(ISERROR($V1734),\"\",OFFSET('Smelter Look-up'!$G$4,$V1734-4,0))","v":""},{"$f":"IF(ISERROR($V1734),\"\",OFFSET('Smelter Look-up'!$H$4,$V1734-4,0))","v":""},{"$f":"IF(ISERROR($V1734),\"\",OFFSET('Smelter Look-up'!$I$4,$V1734-4,0))","v":""},{"$nulls":7},{"$f":"IF(ISERROR($V1734),\"\",OFFSET('Smelter Look-up'!$C$4,$V1734-4,0)&\"\")","v":""},"",{"$f":"IF(B1734=\"\",\"\",IF(ISERROR(MATCH($J1734,SorP!$B$1:$B$6230,0)),\"\",INDIRECT(\"'SorP'!$A$\"&MATCH($J1734,SorP!$B$1:$B$6230,0))))","v":""},null,{"$f":"IF(C1734=\"\",NA(),MATCH($B1734&$C1734,'Smelter Look-up'!$J:$J,0))","v":{"$error":"#N/A"}},null,0,null,null,null,""]
[null,{"$f":"IF(LEN(A1735)=0,\"\",INDEX('Smelter Look-up'!$A:$A,MATCH($A1735,'Smelter Look-up'!$E:$E,0)))","v":""},{"$f":"IF(LEN(A1735)=0,\"\",INDEX('Smelter Look-up'!$C:$C,MATCH($A1735,'Smelter Look-up'!$E:$E,0)))","v":""},null,{"$f":"IF(ISERROR($V1735),\"\",OFFSET('Smelter Look-up'!$D$4,$V1735-4,0)&\"\")","v":""},{"$f":"IF(ISERROR($V1735),\"\",OFFSET('Smelter Look-up'!$E$4,$V1735-4,0))","v":""},{"$f":"IF(C1735=$X$4,\"Enter smelter details\", IF(ISERROR($V1735),\"\",OFFSET('Smelter Look-up'!$F$4,$V1735-4,0)))","v":""},{"$f":"IF(ISERROR($V1735),\"\",OFFSET('Smelter Look-up'!$G$4,$V1735-4,0))","v":""},{"$f":"IF(ISERROR($V1735),\"\",OFFSET('Smelter Look-up'!$H$4,$V1735-4,0))","v":""},{"$f":"IF(ISERROR($V1735),\"\",OFFSET('Smelter Look-up'!$I$4,$V1735-4,0))","v":""},{"$nulls":7},{"$f":"IF(ISERROR($V1735),\"\",OFFSET('Smelter Look-up'!$C$4,$V1735-4,0)&\"\")","v":""},"",{"$f":"IF(B1735=\"\",\"\",IF(ISERROR(MATCH($J1735,SorP!$B$1:$B$6230,0)),\"\",INDIRECT(\"'SorP'!$A$\"&MATCH($J1735,SorP!$B$1:$B$6230,0))))","v":""},null,{"$f":"IF(C1735=\"\",NA(),MATCH($B1735&$C1735,'Smelter Look-up'!$J:$J,0))","v":{"$error":"#N/A"}},null,0,null,null,null,""]
[null,{"$f":"IF(LEN(A1736)=0,\"\",INDEX('Smelter Look-up'!$A:$A,MATCH($A1736,'Smelter Look-up'!$E:$E,0)))","v":""},{"$f":"IF(LEN(A1736)=0,\"\",INDEX('Smelter Look-up'!$C:$C,MATCH($A1736,'Smelter Look-up'!$E:$E,0)))","v":""},null,{"$f":"IF(ISERROR($V1736),\"\",OFFSET('Smelter Look-up'!$D$4,$V1736-4,0)&\"\")","v":""},{"$f":"IF(ISERROR($V1736),\"\",OFFSET('Smelter Look-up'!$E$4,$V1736-4,0))","v":""},{"$f":"IF(C1736=$X$4,\"Enter smelter details\", IF(ISERROR($V1736),\"\",OFFSET('Smelter Look-up'!$F$4,$V1736-4,0)))","v":""},{"$f":"IF(ISERROR($V1736),\"\",OFFSET('Smelter Look-up'!$G$4,$V1736-4,0))","v":""},{"$f":"IF(ISERROR($V1736),\"\",OFFSET('Smelter Look-up'!$H$4,$V1736-4,0))","v":""},{"$f":"IF(ISERROR($V1736),\"\",OFFSET('Smelter Look-up'!$I$4,$V1736-4,0))","v":""},{"$nulls":7},{"$f":"IF(ISERROR($V1736),\"\",OFFSET('Smelter Look-up'!$C$4,$V1736-4,0)&\"\")","v":""},"",{"$f":"IF(B1736=\"\",\"\",IF(ISERROR(MATCH($J1736,SorP!$B$1:$B$6230,0)),\"\",INDIRECT(\"'SorP'!$A$\"&MATCH($J1736,SorP!$B$1:$B$6230,0))))","v":""},null,{"$f":"IF(C1736=\"\",NA(),MATCH($B1736&$C1736,'Smelter Look-up'!$J:$J,0))","v":{"$error":"#N/A"}},null,0,null,null,null,""]
[null,{"$f":"IF(LEN(A1737)=0,\"\",INDEX('Smelter Look-up'!$A:$A,MATCH($A1737,'Smelter Look-up'!$E:$E,0)))","v":""},{"$f":"IF(LEN(A1737)=0,\"\",INDEX('Smelter Look-up'!$C:$C,MATCH($A1737,'Smelter Look-up'!$E:$E,0)))","v":""},null,{"$f":"IF(ISERROR($V1737),\"\",OFFSET('Smelter Look-up'!$D$4,$V1737-4,0)&\"\")","v":""},{"$f":"IF(ISERROR($V1737),\"\",OFFSET('Smelter Look-up'!$E$4,$V1737-4,0))","v":""},{"$f":"IF(C1737=$X$4,\"Enter smelter details\", IF(ISERROR($V1737),\"\",OFFSET('Smelter Look-up'!$F$4,$V1737-4,0)))","v":""},{"$f":"IF(ISERROR($V1737),\"\",OFFSET('Smelter Look-up'!$G$4,$V1737-4,0))","v":""},{"$f":"IF(ISERROR($V1737),\"\",OFFSET('Smelter Look-up'!$H$4,$V1737-4,0))","v":""},{"$f":"IF(ISERROR($V1737),\"\",OFFSET('Smelter Look-up'!$I$4,$V1737-4,0))","v":""},{"$nulls":7},{"$f":"IF(ISERROR($V1737),\"\",OFFSET('Smelter Look-up'!$C$4,$V1737-4,0)&\"\")","v":""},"",{"$f":"IF(B1737=\"\",\"\",IF(ISERROR(MATCH($J1737,SorP!$B$1:$B$6230,0)),\"\",INDIRECT(\"'SorP'!$A$\"&MATCH($J1737,SorP!$B$1:$B$6230,0))))","v":""},null,{"$f":"IF(C1737=\"\",NA(),MATCH($B1737&$C1737,'Smelter Look-up'!$J:$J,0))","v":{"$error":"#N/A"}},null,0,null,null,null,""]
[null,{"$f":"IF(LEN(A1738)=0,\"\",INDEX('Smelter Look-up'!$A:$A,MATCH($A1738,'Smelter Look-up'!$E:$E,0)))","v":""},{"$f":"IF(LEN(A1738)=0,\"\",INDEX('Smelter Look-up'!$C:$C,MATCH($A1738,'Smelter Look-up'!$E:$E,0)))","v":""},null,{"$f":"IF(ISERROR($V1738),\"\",OFFSET('Smelter Look-up'!$D$4,$V1738-4,0)&\"\")","v":""},{"$f":"IF(ISERROR($V1738),\"\",OFFSET('Smelter Look-up'!$E$4,$V1738-4,0))","v":""},{"$f":"IF(C1738=$X$4,\"Enter smelter details\", IF(ISERROR($V1738),\"\",OFFSET('Smelter Look-up'!$F$4,$V1738-4,0)))","v":""},{"$f":"IF(ISERROR($V1738),\"\",OFFSET('Smelter Look-up'!$G$4,$V1738-4,0))","v":""},{"$f":"IF(ISERROR($V1738),\"\",OFFSET('Smelter Look-up'!$H$4,$V1738-4,0))","v":""},{"$f":"IF(ISERROR($V1738),\"\",OFFSET('Smelter Look-up'!$I$4,$V1738-4,0))","v":""},{"$nulls":7},{"$f":"IF(ISERROR($V1738),\"\",OFFSET('Smelter Look-up'!$C$4,$V1738-4,0)&\"\")","v":""},"",{"$f":"IF(B1738=\"\",\"\",IF(ISERROR(MATCH($J1738,SorP!$B$1:$B$6230,0)),\"\",INDIRECT(\"'SorP'!$A$\"&MATCH($J1738,SorP!$B$1:$B$6230,0))))","v":""},null,{"$f":"IF(C1738=\"\",NA(),MATCH($B1738&$C1738,'Smelter Look-up'!$J:$J,0))","v":{"$error":"#N/A"}},null,0,null,null,null,""]
[null,{"$f":"IF(LEN(A1739)=0,\"\",INDEX('Smelter Look-up'!$A:$A,MATCH($A1739,'Smelter Look-up'!$E:$E,0)))","v":""},{"$f":"IF(LEN(A1739)=0,\"\",INDEX('Smelter Look-up'!$C:$C,MATCH($A1739,'Smelter Look-up'!$E:$E,0)))","v":""},null,{"$f":"IF(ISERROR($V1739),\"\",OFFSET('Smelter Look-up'!$D$4,$V1739-4,0)&\"\")","v":""},{"$f":"IF(ISERROR($V1739),\"\",OFFSET('Smelter Look-up'!$E$4,$V1739-4,0))","v":""},{"$f":"IF(C1739=$X$4,\"Enter smelter details\", IF(ISERROR($V1739),\"\",OFFSET('Smelter Look-up'!$F$4,$V1739-4,0)))","v":""},{"$f":"IF(ISERROR($V1739),\"\",OFFSET('Smelter Look-up'!$G$4,$V1739-4,0))","v":""},{"$f":"IF(ISERROR($V1739),\"\",OFFSET('Smelter Look-up'!$H$4,$V1739-4,0))","v":""},{"$f":"IF(ISERROR($V1739),\"\",OFFSET('Smelter Look-up'!$I$4,$V1739-4,0))","v":""},{"$nulls":7},{"$f":"IF(ISERROR($V1739),\"\",OFFSET('Smelter Look-up'!$C$4,$V1739-4,0)&\"\")","v":""},"",{"$f":"IF(B1739=\"\",\"\",IF(ISERROR(MATCH($J1739,SorP!$B$1:$B$6230,0)),\"\",INDIRECT(\"'SorP'!$A$\"&MATCH($J1739,SorP!$B$1:$B$6230,0))))","v":""},null,{"$f":"IF(C1739=\"\",NA(),MATCH($B1739&$C1739,'Smelter Look-up'!$J:$J,0))","v":{"$error":"#N/A"}},null,0,null,null,null,""]
[null,{"$f":"IF(LEN(A1740)=0,\"\",INDEX('Smelter Look-up'!$A:$A,MATCH($A1740,'Smelter Look-up'!$E:$E,0)))","v":""},{"$f":"IF(LEN(A1740)=0,\"\",INDEX('Smelter Look-up'!$C:$C,MATCH($A1740,'Smelter Look-up'!$E:$E,0)))","v":""},null,{"$f":"IF(ISERROR($V1740),\"\",OFFSET('Smelter Look-up'!$D$4,$V1740-4,0)&\"\")","v":""},{"$f":"IF(ISERROR($V1740),\"\",OFFSET('Smelter Look-up'!$E$4,$V1740-4,0))","v":""},{"$f":"IF(C1740=$X$4,\"Enter smelter details\", IF(ISERROR($V1740),\"\",OFFSET('Smelter Look-up'!$F$4,$V1740-4,0)))","v":""},{"$f":"IF(ISERROR($V1740),\"\",OFFSET('Smelter Look-up'!$G$4,$V1740-4,0))","v":""},{"$f":"IF(ISERROR($V1740),\"\",OFFSET('Smelter Look-up'!$H$4,$V1740-4,0))","v":""},{"$f":"IF(ISERROR($V1740),\"\",OFFSET('Smelter Look-up'!$I$4,$V1740-4,0))","v":""},{"$nulls":7},{"$f":"IF(ISERROR($V1740),\"\",OFFSET('Smelter Look-up'!$C$4,$V1740-4,0)&\"\")","v":""},"",{"$f":"IF(B1740=\"\",\"\",IF(ISERROR(MATCH($J1740,SorP!$B$1:$B$6230,0)),\"\",INDIRECT(\"'SorP'!$A$\"&MATCH($J1740,SorP!$B$1:$B$6230,0))))","v":""},null,{"$f":"IF(C1740=\"\",NA(),MATCH($B1740&$C1740,'Smelter Look-up'!$J:$J,0))","v":{"$error":"#N/A"}},null,0,null,null,null,""]
[null,{"$f":"IF(LEN(A1741)=0,\"\",INDEX('Smelter Look-up'!$A:$A,MATCH($A1741,'Smelter Look-up'!$E:$E,0)))","v":""},{"$f":"IF(LEN(A1741)=0,\"\",INDEX('Smelter Look-up'!$C:$C,MATCH($A1741,'Smelter Look-up'!$E:$E,0)))","v":""},null,{"$f":"IF(ISERROR($V1741),\"\",OFFSET('Smelter Look-up'!$D$4,$V1741-4,0)&\"\")","v":""},{"$f":"IF(ISERROR($V1741),\"\",OFFSET('Smelter Look-up'!$E$4,$V1741-4,0))","v":""},{"$f":"IF(C1741=$X$4,\"Enter smelter details\", IF(ISERROR($V1741),\"\",OFFSET('Smelter Look-up'!$F$4,$V1741-4,0)))","v":""},{"$f":"IF(ISERROR($V1741),\"\",OFFSET('Smelter Look-up'!$G$4,$V1741-4,0))","v":""},{"$f":"IF(ISERROR($V1741),\"\",OFFSET('Smelter Look-up'!$H$4,$V1741-4,0))","v":""},{"$f":"IF(ISERROR($V1741),\"\",OFFSET('Smelter Look-up'!$I$4,$V1741-4,0))","v":""},{"$nulls":7},{"$f":"IF(ISERROR($V1741),\"\",OFFSET('Smelter Look-up'!$C$4,$V1741-4,0)&\"\")","v":""},"",{"$f":"IF(B1741=\"\",\"\",IF(ISERROR(MATCH($J1741,SorP!$B$1:$B$6230,0)),\"\",INDIRECT(\"'SorP'!$A$\"&MATCH($J1741,SorP!$B$1:$B$6230,0))))","v":""},null,{"$f":"IF(C1741=\"\",NA(),MATCH($B1741&$C1741,'Smelter Look-up'!$J:$J,0))","v":{"$error":"#N/A"}},null,0,null,null,null,""]
[null,{"$f":"IF(LEN(A1742)=0,\"\",INDEX('Smelter Look-up'!$A:$A,MATCH($A1742,'Smelter Look-up'!$E:$E,0)))","v":""},{"$f":"IF(LEN(A1742)=0,\"\",INDEX('Smelter Look-up'!$C:$C,MATCH($A1742,'Smelter Look-up'!$E:$E,0)))","v":""},null,{"$f":"IF(ISERROR($V1742),\"\",OFFSET('Smelter Look-up'!$D$4,$V1742-4,0)&\"\")","v":""},{"$f":"IF(ISERROR($V1742),\"\",OFFSET('Smelter Look-up'!$E$4,$V1742-4,0))","v":""},{"$f":"IF(C1742=$X$4,\"Enter smelter details\", IF(ISERROR($V1742),\"\",OFFSET('Smelter Look-up'!$F$4,$V1742-4,0)))","v":""},{"$f":"IF(ISERROR($V1742),\"\",OFFSET('Smelter Look-up'!$G$4,$V1742-4,0))","v":""},{"$f":"IF(ISERROR($V1742),\"\",OFFSET('Smelter Look-up'!$H$4,$V1742-4,0))","v":""},{"$f":"IF(ISERROR($V1742),\"\",OFFSET('Smelter Look-up'!$I$4,$V1742-4,0))","v":""},{"$nulls":7},{"$f":"IF(ISERROR($V1742),\"\",OFFSET('Smelter Look-up'!$C$4,$V1742-4,0)&\"\")","v":""},"",{"$f":"IF(B1742=\"\",\"\",IF(ISERROR(MATCH($J1742,SorP!$B$1:$B$6230,0)),\"\",INDIRECT(\"'SorP'!$A$\"&MATCH($J1742,SorP!$B$1:$B$6230,0))))","v":""},null,{"$f":"IF(C1742=\"\",NA(),MATCH($B1742&$C1742,'Smelter Look-up'!$J:$J,0))","v":{"$error":"#N/A"}},null,0,null,null,null,""]
[null,{"$f":"IF(LEN(A1743)=0,\"\",INDEX('Smelter Look-up'!$A:$A,MATCH($A1743,'Smelter Look-up'!$E:$E,0)))","v":""},{"$f":"IF(LEN(A1743)=0,\"\",INDEX('Smelter Look-up'!$C:$C,MATCH($A1743,'Smelter Look-up'!$E:$E,0)))","v":""},null,{"$f":"IF(ISERROR($V1743),\"\",OFFSET('Smelter Look-up'!$D$4,$V1743-4,0)&\"\")","v":""},{"$f":"IF(ISERROR($V1743),\"\",OFFSET('Smelter Look-up'!$E$4,$V1743-4,0))","v":""},{"$f":"IF(C1743=$X$4,\"Enter smelter details\", IF(ISERROR($V1743),\"\",OFFSET('Smelter Look-up'!$F$4,$V1743-4,0)))","v":""},{"$f":"IF(ISERROR($V1743),\"\",OFFSET('Smelter Look-up'!$G$4,$V1743-4,0))","v":""},{"$f":"IF(ISERROR($V1743),\"\",OFFSET('Smelter Look-up'!$H$4,$V1743-4,0))","v":""},{"$f":"IF(ISERROR($V1743),\"\",OFFSET('Smelter Look-up'!$I$4,$V1743-4,0))","v":""},{"$nulls":7},{"$f":"IF(ISERROR($V1743),\"\",OFFSET('Smelter Look-up'!$C$4,$V1743-4,0)&\"\")","v":""},"",{"$f":"IF(B1743=\"\",\"\",IF(ISERROR(MATCH($J1743,SorP!$B$1:$B$6230,0)),\"\",INDIRECT(\"'SorP'!$A$\"&MATCH($J1743,SorP!$B$1:$B$6230,0))))","v":""},null,{"$f":"IF(C1743=\"\",NA(),MATCH($B1743&$C1743,'Smelter Look-up'!$J:$J,0))","v":{"$error":"#N/A"}},null,0,null,null,null,""]
[null,{"$f":"IF(LEN(A1744)=0,\"\",INDEX('Smelter Look-up'!$A:$A,MATCH($A1744,'Smelter Look-up'!$E:$E,0)))","v":""},{"$f":"IF(LEN(A1744)=0,\"\",INDEX('Smelter Look-up'!$C:$C,MATCH($A1744,'Smelter Look-up'!$E:$E,0)))","v":""},null,{"$f":"IF(ISERROR($V1744),\"\",OFFSET('Smelter Look-up'!$D$4,$V1744-4,0)&\"\")","v":""},{"$f":"IF(ISERROR($V1744),\"\",OFFSET('Smelter Look-up'!$E$4,$V1744-4,0))","v":""},{"$f":"IF(C1744=$X$4,\"Enter smelter details\", IF(ISERROR($V1744),\"\",OFFSET('Smelter Look-up'!$F$4,$V1744-4,0)))","v":""},{"$f":"IF(ISERROR($V1744),\"\",OFFSET('Smelter Look-up'!$G$4,$V1744-4,0))","v":""},{"$f":"IF(ISERROR($V1744),\"\",OFFSET('Smelter Look-up'!$H$4,$V1744-4,0))","v":""},{"$f":"IF(ISERROR($V1744),\"\",OFFSET('Smelter Look-up'!$I$4,$V1744-4,0))","v":""},{"$nulls":7},{"$f":"IF(ISERROR($V1744),\"\",OFFSET('Smelter Look-up'!$C$4,$V1744-4,0)&\"\")","v":""},"",{"$f":"IF(B1744=\"\",\"\",IF(ISERROR(MATCH($J1744,SorP!$B$1:$B$6230,0)),\"\",INDIRECT(\"'SorP'!$A$\"&MATCH($J1744,SorP!$B$1:$B$6230,0))))","v":""},null,{"$f":"IF(C1744=\"\",NA(),MATCH($B1744&$C1744,'Smelter Look-up'!$J:$J,0))","v":{"$error":"#N/A"}},null,0,null,null,null,""]
[null,{"$f":"IF(LEN(A1745)=0,\"\",INDEX('Smelter Look-up'!$A:$A,MATCH($A1745,'Smelter Look-up'!$E:$E,0)))","v":""},{"$f":"IF(LEN(A1745)=0,\"\",INDEX('Smelter Look-up'!$C:$C,MATCH($A1745,'Smelter Look-up'!$E:$E,0)))","v":""},null,{"$f":"IF(ISERROR($V1745),\"\",OFFSET('Smelter Look-up'!$D$4,$V1745-4,0)&\"\")","v":""},{"$f":"IF(ISERROR($V1745),\"\",OFFSET('Smelter Look-up'!$E$4,$V1745-4,0))","v":""},{"$f":"IF(C1745=$X$4,\"Enter smelter details\", IF(ISERROR($V1745),\"\",OFFSET('Smelter Look-up'!$F$4,$V1745-4,0)))","v":""},{"$f":"IF(ISERROR($V1745),\"\",OFFSET('Smelter Look-up'!$G$4,$V1745-4,0))","v":""},{"$f":"IF(ISERROR($V1745),\"\",OFFSET('Smelter Look-up'!$H$4,$V1745-4,0))","v":""},{"$f":"IF(ISERROR($V1745),\"\",OFFSET('Smelter Look-up'!$I$4,$V1745-4,0))","v":""},{"$nulls":7},{"$f":"IF(ISERROR($V1745),\"\",OFFSET('Smelter Look-up'!$C$4,$V1745-4,0)&\"\")","v":""},"",{"$f":"IF(B1745=\"\",\"\",IF(ISERROR(MATCH($J1745,SorP!$B$1:$B$6230,0)),\"\",INDIRECT(\"'SorP'!$A$\"&MATCH($J1745,SorP!$B$1:$B$6230,0))))","v":""},null,{"$f":"IF(C1745=\"\",NA(),MATCH($B1745&$C1745,'Smelter Look-up'!$J:$J,0))","v":{"$error":"#N/A"}},null,0,null,null,null,""]
[null,{"$f":"IF(LEN(A1746)=0,\"\",INDEX('Smelter Look-up'!$A:$A,MATCH($A1746,'Smelter Look-up'!$E:$E,0)))","v":""},{"$f":"IF(LEN(A1746)=0,\"\",INDEX('Smelter Look-up'!$C:$C,MATCH($A1746,'Smelter Look-up'!$E:$E,0)))","v":""},null,{"$f":"IF(ISERROR($V1746),\"\",OFFSET('Smelter Look-up'!$D$4,$V1746-4,0)&\"\")","v":""},{"$f":"IF(ISERROR($V1746),\"\",OFFSET('Smelter Look-up'!$E$4,$V1746-4,0))","v":""},{"$f":"IF(C1746=$X$4,\"Enter smelter details\", IF(ISERROR($V1746),\"\",OFFSET('Smelter Look-up'!$F$4,$V1746-4,0)))","v":""},{"$f":"IF(ISERROR($V1746),\"\",OFFSET('Smelter Look-up'!$G$4,$V1746-4,0))","v":""},{"$f":"IF(ISERROR($V1746),\"\",OFFSET('Smelter Look-up'!$H$4,$V1746-4,0))","v":""},{"$f":"IF(ISERROR($V1746),\"\",OFFSET('Smelter Look-up'!$I$4,$V1746-4,0))","v":""},{"$nulls":7},{"$f":"IF(ISERROR($V1746),\"\",OFFSET('Smelter Look-up'!$C$4,$V1746-4,0)&\"\")","v":""},"",{"$f":"IF(B1746=\"\",\"\",IF(ISERROR(MATCH($J1746,SorP!$B$1:$B$6230,0)),\"\",INDIRECT(\"'SorP'!$A$\"&MATCH($J1746,SorP!$B$1:$B$6230,0))))","v":""},null,{"$f":"IF(C1746=\"\",NA(),MATCH($B1746&$C1746,'Smelter Look-up'!$J:$J,0))","v":{"$error":"#N/A"}},null,0,null,null,null,""]
[null,{"$f":"IF(LEN(A1747)=0,\"\",INDEX('Smelter Look-up'!$A:$A,MATCH($A1747,'Smelter Look-up'!$E:$E,0)))","v":""},{"$f":"IF(LEN(A1747)=0,\"\",INDEX('Smelter Look-up'!$C:$C,MATCH($A1747,'Smelter Look-up'!$E:$E,0)))","v":""},null,{"$f":"IF(ISERROR($V1747),\"\",OFFSET('Smelter Look-up'!$D$4,$V1747-4,0)&\"\")","v":""},{"$f":"IF(ISERROR($V1747),\"\",OFFSET('Smelter Look-up'!$E$4,$V1747-4,0))","v":""},{"$f":"IF(C1747=$X$4,\"Enter smelter details\", IF(ISERROR($V1747),\"\",OFFSET('Smelter Look-up'!$F$4,$V1747-4,0)))","v":""},{"$f":"IF(ISERROR($V1747),\"\",OFFSET('Smelter Look-up'!$G$4,$V1747-4,0))","v":""},{"$f":"IF(ISERROR($V1747),\"\",OFFSET('Smelter Look-up'!$H$4,$V1747-4,0))","v":""},{"$f":"IF(ISERROR($V1747),\"\",OFFSET('Smelter Look-up'!$I$4,$V1747-4,0))","v":""},{"$nulls":7},{"$f":"IF(ISERROR($V1747),\"\",OFFSET('Smelter Look-up'!$C$4,$V1747-4,0)&\"\")","v":""},"",{"$f":"IF(B1747=\"\",\"\",IF(ISERROR(MATCH($J1747,SorP!$B$1:$B$6230,0)),\"\",INDIRECT(\"'SorP'!$A$\"&MATCH($J1747,SorP!$B$1:$B$6230,0))))","v":""},null,{"$f":"IF(C1747=\"\",NA(),MATCH($B1747&$C1747,'Smelter Look-up'!$J:$J,0))","v":{"$error":"#N/A"}},null,0,null,null,null,""]
[null,{"$f":"IF(LEN(A1748)=0,\"\",INDEX('Smelter Look-up'!$A:$A,MATCH($A1748,'Smelter Look-up'!$E:$E,0)))","v":""},{"$f":"IF(LEN(A1748)=0,\"\",INDEX('Smelter Look-up'!$C:$C,MATCH($A1748,'Smelter Look-up'!$E:$E,0)))","v":""},null,{"$f":"IF(ISERROR($V1748),\"\",OFFSET('Smelter Look-up'!$D$4,$V1748-4,0)&\"\")","v":""},{"$f":"IF(ISERROR($V1748),\"\",OFFSET('Smelter Look-up'!$E$4,$V1748-4,0))","v":""},{"$f":"IF(C1748=$X$4,\"Enter smelter details\", IF(ISERROR($V1748),\"\",OFFSET('Smelter Look-up'!$F$4,$V1748-4,0)))","v":""},{"$f":"IF(ISERROR($V1748),\"\",OFFSET('Smelter Look-up'!$G$4,$V1748-4,0))","v":""},{"$f":"IF(ISERROR($V1748),\"\",OFFSET('Smelter Look-up'!$H$4,$V1748-4,0))","v":""},{"$f":"IF(ISERROR($V1748),\"\",OFFSET('Smelter Look-up'!$I$4,$V1748-4,0))","v":""},{"$nulls":7},{"$f":"IF(ISERROR($V1748),\"\",OFFSET('Smelter Look-up'!$C$4,$V1748-4,0)&\"\")","v":""},"",{"$f":"IF(B1748=\"\",\"\",IF(ISERROR(MATCH($J1748,SorP!$B$1:$B$6230,0)),\"\",INDIRECT(\"'SorP'!$A$\"&MATCH($J1748,SorP!$B$1:$B$6230,0))))","v":""},null,{"$f":"IF(C1748=\"\",NA(),MATCH($B1748&$C1748,'Smelter Look-up'!$J:$J,0))","v":{"$error":"#N/A"}},null,0,null,null,null,""]
[null,{"$f":"IF(LEN(A1749)=0,\"\",INDEX('Smelter Look-up'!$A:$A,MATCH($A1749,'Smelter Look-up'!$E:$E,0)))","v":""},{"$f":"IF(LEN(A1749)=0,\"\",INDEX('Smelter Look-up'!$C:$C,MATCH($A1749,'Smelter Look-up'!$E:$E,0)))","v":""},null,{"$f":"IF(ISERROR($V1749),\"\",OFFSET('Smelter Look-up'!$D$4,$V1749-4,0)&\"\")","v":""},{"$f":"IF(ISERROR($V1749),\"\",OFFSET('Smelter Look-up'!$E$4,$V1749-4,0))","v":""},{"$f":"IF(C1749=$X$4,\"Enter smelter details\", IF(ISERROR($V1749),\"\",OFFSET('Smelter Look-up'!$F$4,$V1749-4,0)))","v":""},{"$f":"IF(ISERROR($V1749),\"\",OFFSET('Smelter Look-up'!$G$4,$V1749-4,0))","v":""},{"$f":"IF(ISERROR($V1749),\"\",OFFSET('Smelter Look-up'!$H$4,$V1749-4,0))","v":""},{"$f":"IF(ISERROR($V1749),\"\",OFFSET('Smelter Look-up'!$I$4,$V1749-4,0))","v":""},{"$nulls":7},{"$f":"IF(ISERROR($V1749),\"\",OFFSET('Smelter Look-up'!$C$4,$V1749-4,0)&\"\")","v":""},"",{"$f":"IF(B1749=\"\",\"\",IF(ISERROR(MATCH($J1749,SorP!$B$1:$B$6230,0)),\"\",INDIRECT(\"'SorP'!$A$\"&MATCH($J1749,SorP!$B$1:$B$6230,0))))","v":""},null,{"$f":"IF(C1749=\"\",NA(),MATCH($B1749&$C1749,'Smelter Look-up'!$J:$J,0))","v":{"$error":"#N/A"}},null,0,null,null,null,""]
[null,{"$f":"IF(LEN(A1750)=0,\"\",INDEX('Smelter Look-up'!$A:$A,MATCH($A1750,'Smelter Look-up'!$E:$E,0)))","v":""},{"$f":"IF(LEN(A1750)=0,\"\",INDEX('Smelter Look-up'!$C:$C,MATCH($A1750,'Smelter Look-up'!$E:$E,0)))","v":""},null,{"$f":"IF(ISERROR($V1750),\"\",OFFSET('Smelter Look-up'!$D$4,$V1750-4,0)&\"\")","v":""},{"$f":"IF(ISERROR($V1750),\"\",OFFSET('Smelter Look-up'!$E$4,$V1750-4,0))","v":""},{"$f":"IF(C1750=$X$4,\"Enter smelter details\", IF(ISERROR($V1750),\"\",OFFSET('Smelter Look-up'!$F$4,$V1750-4,0)))","v":""},{"$f":"IF(ISERROR($V1750),\"\",OFFSET('Smelter Look-up'!$G$4,$V1750-4,0))","v":""},{"$f":"IF(ISERROR($V1750),\"\",OFFSET('Smelter Look-up'!$H$4,$V1750-4,0))","v":""},{"$f":"IF(ISERROR($V1750),\"\",OFFSET('Smelter Look-up'!$I$4,$V1750-4,0))","v":""},{"$nulls":7},{"$f":"IF(ISERROR($V1750),\"\",OFFSET('Smelter Look-up'!$C$4,$V1750-4,0)&\"\")","v":""},"",{"$f":"IF(B1750=\"\",\"\",IF(ISERROR(MATCH($J1750,SorP!$B$1:$B$6230,0)),\"\",INDIRECT(\"'SorP'!$A$\"&MATCH($J1750,SorP!$B$1:$B$6230,0))))","v":""},null,{"$f":"IF(C1750=\"\",NA(),MATCH($B1750&$C1750,'Smelter Look-up'!$J:$J,0))","v":{"$error":"#N/A"}},null,0,null,null,null,""]
[null,{"$f":"IF(LEN(A1751)=0,\"\",INDEX('Smelter Look-up'!$A:$A,MATCH($A1751,'Smelter Look-up'!$E:$E,0)))","v":""},{"$f":"IF(LEN(A1751)=0,\"\",INDEX('Smelter Look-up'!$C:$C,MATCH($A1751,'Smelter Look-up'!$E:$E,0)))","v":""},null,{"$f":"IF(ISERROR($V1751),\"\",OFFSET('Smelter Look-up'!$D$4,$V1751-4,0)&\"\")","v":""},{"$f":"IF(ISERROR($V1751),\"\",OFFSET('Smelter Look-up'!$E$4,$V1751-4,0))","v":""},{"$f":"IF(C1751=$X$4,\"Enter smelter details\", IF(ISERROR($V1751),\"\",OFFSET('Smelter Look-up'!$F$4,$V1751-4,0)))","v":""},{"$f":"IF(ISERROR($V1751),\"\",OFFSET('Smelter Look-up'!$G$4,$V1751-4,0))","v":""},{"$f":"IF(ISERROR($V1751),\"\",OFFSET('Smelter Look-up'!$H$4,$V1751-4,0))","v":""},{"$f":"IF(ISERROR($V1751),\"\",OFFSET('Smelter Look-up'!$I$4,$V1751-4,0))","v":""},{"$nulls":7},{"$f":"IF(ISERROR($V1751),\"\",OFFSET('Smelter Look-up'!$C$4,$V1751-4,0)&\"\")","v":""},"",{"$f":"IF(B1751=\"\",\"\",IF(ISERROR(MATCH($J1751,SorP!$B$1:$B$6230,0)),\"\",INDIRECT(\"'SorP'!$A$\"&MATCH($J1751,SorP!$B$1:$B$6230,0))))","v":""},null,{"$f":"IF(C1751=\"\",NA(),MATCH($B1751&$C1751,'Smelter Look-up'!$J:$J,0))","v":{"$error":"#N/A"}},null,0,null,null,null,""]
[null,{"$f":"IF(LEN(A1752)=0,\"\",INDEX('Smelter Look-up'!$A:$A,MATCH($A1752,'Smelter Look-up'!$E:$E,0)))","v":""},{"$f":"IF(LEN(A1752)=0,\"\",INDEX('Smelter Look-up'!$C:$C,MATCH($A1752,'Smelter Look-up'!$E:$E,0)))","v":""},null,{"$f":"IF(ISERROR($V1752),\"\",OFFSET('Smelter Look-up'!$D$4,$V1752-4,0)&\"\")","v":""},{"$f":"IF(ISERROR($V1752),\"\",OFFSET('Smelter Look-up'!$E$4,$V1752-4,0))","v":""},{"$f":"IF(C1752=$X$4,\"Enter smelter details\", IF(ISERROR($V1752),\"\",OFFSET('Smelter Look-up'!$F$4,$V1752-4,0)))","v":""},{"$f":"IF(ISERROR($V1752),\"\",OFFSET('Smelter Look-up'!$G$4,$V1752-4,0))","v":""},{"$f":"IF(ISERROR($V1752),\"\",OFFSET('Smelter Look-up'!$H$4,$V1752-4,0))","v":""},{"$f":"IF(ISERROR($V1752),\"\",OFFSET('Smelter Look-up'!$I$4,$V1752-4,0))","v":""},{"$nulls":7},{"$f":"IF(ISERROR($V1752),\"\",OFFSET('Smelter Look-up'!$C$4,$V1752-4,0)&\"\")","v":""},"",{"$f":"IF(B1752=\"\",\"\",IF(ISERROR(MATCH($J1752,SorP!$B$1:$B$6230,0)),\"\",INDIRECT(\"'SorP'!$A$\"&MATCH($J1752,SorP!$B$1:$B$6230,0))))","v":""},null,{"$f":"IF(C1752=\"\",NA(),MATCH($B1752&$C1752,'Smelter Look-up'!$J:$J,0))","v":{"$error":"#N/A"}},null,0,null,null,null,""]
[null,{"$f":"IF(LEN(A1753)=0,\"\",INDEX('Smelter Look-up'!$A:$A,MATCH($A1753,'Smelter Look-up'!$E:$E,0)))","v":""},{"$f":"IF(LEN(A1753)=0,\"\",INDEX('Smelter Look-up'!$C:$C,MATCH($A1753,'Smelter Look-up'!$E:$E,0)))","v":""},null,{"$f":"IF(ISERROR($V1753),\"\",OFFSET('Smelter Look-up'!$D$4,$V1753-4,0)&\"\")","v":""},{"$f":"IF(ISERROR($V1753),\"\",OFFSET('Smelter Look-up'!$E$4,$V1753-4,0))","v":""},{"$f":"IF(C1753=$X$4,\"Enter smelter details\", IF(ISERROR($V1753),\"\",OFFSET('Smelter Look-up'!$F$4,$V1753-4,0)))","v":""},{"$f":"IF(ISERROR($V1753),\"\",OFFSET('Smelter Look-up'!$G$4,$V1753-4,0))","v":""},{"$f":"IF(ISERROR($V1753),\"\",OFFSET('Smelter Look-up'!$H$4,$V1753-4,0))","v":""},{"$f":"IF(ISERROR($V1753),\"\",OFFSET('Smelter Look-up'!$I$4,$V1753-4,0))","v":""},{"$nulls":7},{"$f":"IF(ISERROR($V1753),\"\",OFFSET('Smelter Look-up'!$C$4,$V1753-4,0)&\"\")","v":""},"",{"$f":"IF(B1753=\"\",\"\",IF(ISERROR(MATCH($J1753,SorP!$B$1:$B$6230,0)),\"\",INDIRECT(\"'SorP'!$A$\"&MATCH($J1753,SorP!$B$1:$B$6230,0))))","v":""},null,{"$f":"IF(C1753=\"\",NA(),MATCH($B1753&$C1753,'Smelter Look-up'!$J:$J,0))","v":{"$error":"#N/A"}},null,0,null,null,null,""]
[null,{"$f":"IF(LEN(A1754)=0,\"\",INDEX('Smelter Look-up'!$A:$A,MATCH($A1754,'Smelter Look-up'!$E:$E,0)))","v":""},{"$f":"IF(LEN(A1754)=0,\"\",INDEX('Smelter Look-up'!$C:$C,MATCH($A1754,'Smelter Look-up'!$E:$E,0)))","v":""},null,{"$f":"IF(ISERROR($V1754),\"\",OFFSET('Smelter Look-up'!$D$4,$V1754-4,0)&\"\")","v":""},{"$f":"IF(ISERROR($V1754),\"\",OFFSET('Smelter Look-up'!$E$4,$V1754-4,0))","v":""},{"$f":"IF(C1754=$X$4,\"Enter smelter details\", IF(ISERROR($V1754),\"\",OFFSET('Smelter Look-up'!$F$4,$V1754-4,0)))","v":""},{"$f":"IF(ISERROR($V1754),\"\",OFFSET('Smelter Look-up'!$G$4,$V1754-4,0))","v":""},{"$f":"IF(ISERROR($V1754),\"\",OFFSET('Smelter Look-up'!$H$4,$V1754-4,0))","v":""},{"$f":"IF(ISERROR($V1754),\"\",OFFSET('Smelter Look-up'!$I$4,$V1754-4,0))","v":""},{"$nulls":7},{"$f":"IF(ISERROR($V1754),\"\",OFFSET('Smelter Look-up'!$C$4,$V1754-4,0)&\"\")","v":""},"",{"$f":"IF(B1754=\"\",\"\",IF(ISERROR(MATCH($J1754,SorP!$B$1:$B$6230,0)),\"\",INDIRECT(\"'SorP'!$A$\"&MATCH($J1754,SorP!$B$1:$B$6230,0))))","v":""},null,{"$f":"IF(C1754=\"\",NA(),MATCH($B1754&$C1754,'Smelter Look-up'!$J:$J,0))","v":{"$error":"#N/A"}},null,0,null,null,null,""]
[null,{"$f":"IF(LEN(A1755)=0,\"\",INDEX('Smelter Look-up'!$A:$A,MATCH($A1755,'Smelter Look-up'!$E:$E,0)))","v":""},{"$f":"IF(LEN(A1755)=0,\"\",INDEX('Smelter Look-up'!$C:$C,MATCH($A1755,'Smelter Look-up'!$E:$E,0)))","v":""},null,{"$f":"IF(ISERROR($V1755),\"\",OFFSET('Smelter Look-up'!$D$4,$V1755-4,0)&\"\")","v":""},{"$f":"IF(ISERROR($V1755),\"\",OFFSET('Smelter Look-up'!$E$4,$V1755-4,0))","v":""},{"$f":"IF(C1755=$X$4,\"Enter smelter details\", IF(ISERROR($V1755),\"\",OFFSET('Smelter Look-up'!$F$4,$V1755-4,0)))","v":""},{"$f":"IF(ISERROR($V1755),\"\",OFFSET('Smelter Look-up'!$G$4,$V1755-4,0))","v":""},{"$f":"IF(ISERROR($V1755),\"\",OFFSET('Smelter Look-up'!$H$4,$V1755-4,0))","v":""},{"$f":"IF(ISERROR($V1755),\"\",OFFSET('Smelter Look-up'!$I$4,$V1755-4,0))","v":""},{"$nulls":7},{"$f":"IF(ISERROR($V1755),\"\",OFFSET('Smelter Look-up'!$C$4,$V1755-4,0)&\"\")","v":""},"",{"$f":"IF(B1755=\"\",\"\",IF(ISERROR(MATCH($J1755,SorP!$B$1:$B$6230,0)),\"\",INDIRECT(\"'SorP'!$A$\"&MATCH($J1755,SorP!$B$1:$B$6230,0))))","v":""},null,{"$f":"IF(C1755=\"\",NA(),MATCH($B1755&$C1755,'Smelter Look-up'!$J:$J,0))","v":{"$error":"#N/A"}},null,0,null,null,null,""]
[null,{"$f":"IF(LEN(A1756)=0,\"\",INDEX('Smelter Look-up'!$A:$A,MATCH($A1756,'Smelter Look-up'!$E:$E,0)))","v":""},{"$f":"IF(LEN(A1756)=0,\"\",INDEX('Smelter Look-up'!$C:$C,MATCH($A1756,'Smelter Look-up'!$E:$E,0)))","v":""},null,{"$f":"IF(ISERROR($V1756),\"\",OFFSET('Smelter Look-up'!$D$4,$V1756-4,0)&\"\")","v":""},{"$f":"IF(ISERROR($V1756),\"\",OFFSET('Smelter Look-up'!$E$4,$V1756-4,0))","v":""},{"$f":"IF(C1756=$X$4,\"Enter smelter details\", IF(ISERROR($V1756),\"\",OFFSET('Smelter Look-up'!$F$4,$V1756-4,0)))","v":""},{"$f":"IF(ISERROR($V1756),\"\",OFFSET('Smelter Look-up'!$G$4,$V1756-4,0))","v":""},{"$f":"IF(ISERROR($V1756),\"\",OFFSET('Smelter Look-up'!$H$4,$V1756-4,0))","v":""},{"$f":"IF(ISERROR($V1756),\"\",OFFSET('Smelter Look-up'!$I$4,$V1756-4,0))","v":""},{"$nulls":7},{"$f":"IF(ISERROR($V1756),\"\",OFFSET('Smelter Look-up'!$C$4,$V1756-4,0)&\"\")","v":""},"",{"$f":"IF(B1756=\"\",\"\",IF(ISERROR(MATCH($J1756,SorP!$B$1:$B$6230,0)),\"\",INDIRECT(\"'SorP'!$A$\"&MATCH($J1756,SorP!$B$1:$B$6230,0))))","v":""},null,{"$f":"IF(C1756=\"\",NA(),MATCH($B1756&$C1756,'Smelter Look-up'!$J:$J,0))","v":{"$error":"#N/A"}},null,0,null,null,null,""]
[null,{"$f":"IF(LEN(A1757)=0,\"\",INDEX('Smelter Look-up'!$A:$A,MATCH($A1757,'Smelter Look-up'!$E:$E,0)))","v":""},{"$f":"IF(LEN(A1757)=0,\"\",INDEX('Smelter Look-up'!$C:$C,MATCH($A1757,'Smelter Look-up'!$E:$E,0)))","v":""},null,{"$f":"IF(ISERROR($V1757),\"\",OFFSET('Smelter Look-up'!$D$4,$V1757-4,0)&\"\")","v":""},{"$f":"IF(ISERROR($V1757),\"\",OFFSET('Smelter Look-up'!$E$4,$V1757-4,0))","v":""},{"$f":"IF(C1757=$X$4,\"Enter smelter details\", IF(ISERROR($V1757),\"\",OFFSET('Smelter Look-up'!$F$4,$V1757-4,0)))","v":""},{"$f":"IF(ISERROR($V1757),\"\",OFFSET('Smelter Look-up'!$G$4,$V1757-4,0))","v":""},{"$f":"IF(ISERROR($V1757),\"\",OFFSET('Smelter Look-up'!$H$4,$V1757-4,0))","v":""},{"$f":"IF(ISERROR($V1757),\"\",OFFSET('Smelter Look-up'!$I$4,$V1757-4,0))","v":""},{"$nulls":7},{"$f":"IF(ISERROR($V1757),\"\",OFFSET('Smelter Look-up'!$C$4,$V1757-4,0)&\"\")","v":""},"",{"$f":"IF(B1757=\"\",\"\",IF(ISERROR(MATCH($J1757,SorP!$B$1:$B$6230,0)),\"\",INDIRECT(\"'SorP'!$A$\"&MATCH($J1757,SorP!$B$1:$B$6230,0))))","v":""},null,{"$f":"IF(C1757=\"\",NA(),MATCH($B1757&$C1757,'Smelter Look-up'!$J:$J,0))","v":{"$error":"#N/A"}},null,0,null,null,null,""]
[null,{"$f":"IF(LEN(A1758)=0,\"\",INDEX('Smelter Look-up'!$A:$A,MATCH($A1758,'Smelter Look-up'!$E:$E,0)))","v":""},{"$f":"IF(LEN(A1758)=0,\"\",INDEX('Smelter Look-up'!$C:$C,MATCH($A1758,'Smelter Look-up'!$E:$E,0)))","v":""},null,{"$f":"IF(ISERROR($V1758),\"\",OFFSET('Smelter Look-up'!$D$4,$V1758-4,0)&\"\")","v":""},{"$f":"IF(ISERROR($V1758),\"\",OFFSET('Smelter Look-up'!$E$4,$V1758-4,0))","v":""},{"$f":"IF(C1758=$X$4,\"Enter smelter details\", IF(ISERROR($V1758),\"\",OFFSET('Smelter Look-up'!$F$4,$V1758-4,0)))","v":""},{"$f":"IF(ISERROR($V1758),\"\",OFFSET('Smelter Look-up'!$G$4,$V1758-4,0))","v":""},{"$f":"IF(ISERROR($V1758),\"\",OFFSET('Smelter Look-up'!$H$4,$V1758-4,0))","v":""},{"$f":"IF(ISERROR($V1758),\"\",OFFSET('Smelter Look-up'!$I$4,$V1758-4,0))","v":""},{"$nulls":7},{"$f":"IF(ISERROR($V1758),\"\",OFFSET('Smelter Look-up'!$C$4,$V1758-4,0)&\"\")","v":""},"",{"$f":"IF(B1758=\"\",\"\",IF(ISERROR(MATCH($J1758,SorP!$B$1:$B$6230,0)),\"\",INDIRECT(\"'SorP'!$A$\"&MATCH($J1758,SorP!$B$1:$B$6230,0))))","v":""},null,{"$f":"IF(C1758=\"\",NA(),MATCH($B1758&$C1758,'Smelter Look-up'!$J:$J,0))","v":{"$error":"#N/A"}},null,0,null,null,null,""]
[null,{"$f":"IF(LEN(A1759)=0,\"\",INDEX('Smelter Look-up'!$A:$A,MATCH($A1759,'Smelter Look-up'!$E:$E,0)))","v":""},{"$f":"IF(LEN(A1759)=0,\"\",INDEX('Smelter Look-up'!$C:$C,MATCH($A1759,'Smelter Look-up'!$E:$E,0)))","v":""},null,{"$f":"IF(ISERROR($V1759),\"\",OFFSET('Smelter Look-up'!$D$4,$V1759-4,0)&\"\")","v":""},{"$f":"IF(ISERROR($V1759),\"\",OFFSET('Smelter Look-up'!$E$4,$V1759-4,0))","v":""},{"$f":"IF(C1759=$X$4,\"Enter smelter details\", IF(ISERROR($V1759),\"\",OFFSET('Smelter Look-up'!$F$4,$V1759-4,0)))","v":""},{"$f":"IF(ISERROR($V1759),\"\",OFFSET('Smelter Look-up'!$G$4,$V1759-4,0))","v":""},{"$f":"IF(ISERROR($V1759),\"\",OFFSET('Smelter Look-up'!$H$4,$V1759-4,0))","v":""},{"$f":"IF(ISERROR($V1759),\"\",OFFSET('Smelter Look-up'!$I$4,$V1759-4,0))","v":""},{"$nulls":7},{"$f":"IF(ISERROR($V1759),\"\",OFFSET('Smelter Look-up'!$C$4,$V1759-4,0)&\"\")","v":""},"",{"$f":"IF(B1759=\"\",\"\",IF(ISERROR(MATCH($J1759,SorP!$B$1:$B$6230,0)),\"\",INDIRECT(\"'SorP'!$A$\"&MATCH($J1759,SorP!$B$1:$B$6230,0))))","v":""},null,{"$f":"IF(C1759=\"\",NA(),MATCH($B1759&$C1759,'Smelter Look-up'!$J:$J,0))","v":{"$error":"#N/A"}},null,0,null,null,null,""]
[null,{"$f":"IF(LEN(A1760)=0,\"\",INDEX('Smelter Look-up'!$A:$A,MATCH($A1760,'Smelter Look-up'!$E:$E,0)))","v":""},{"$f":"IF(LEN(A1760)=0,\"\",INDEX('Smelter Look-up'!$C:$C,MATCH($A1760,'Smelter Look-up'!$E:$E,0)))","v":""},null,{"$f":"IF(ISERROR($V1760),\"\",OFFSET('Smelter Look-up'!$D$4,$V1760-4,0)&\"\")","v":""},{"$f":"IF(ISERROR($V1760),\"\",OFFSET('Smelter Look-up'!$E$4,$V1760-4,0))","v":""},{"$f":"IF(C1760=$X$4,\"Enter smelter details\", IF(ISERROR($V1760),\"\",OFFSET('Smelter Look-up'!$F$4,$V1760-4,0)))","v":""},{"$f":"IF(ISERROR($V1760),\"\",OFFSET('Smelter Look-up'!$G$4,$V1760-4,0))","v":""},{"$f":"IF(ISERROR($V1760),\"\",OFFSET('Smelter Look-up'!$H$4,$V1760-4,0))","v":""},{"$f":"IF(ISERROR($V1760),\"\",OFFSET('Smelter Look-up'!$I$4,$V1760-4,0))","v":""},{"$nulls":7},{"$f":"IF(ISERROR($V1760),\"\",OFFSET('Smelter Look-up'!$C$4,$V1760-4,0)&\"\")","v":""},"",{"$f":"IF(B1760=\"\",\"\",IF(ISERROR(MATCH($J1760,SorP!$B$1:$B$6230,0)),\"\",INDIRECT(\"'SorP'!$A$\"&MATCH($J1760,SorP!$B$1:$B$6230,0))))","v":""},null,{"$f":"IF(C1760=\"\",NA(),MATCH($B1760&$C1760,'Smelter Look-up'!$J:$J,0))","v":{"$error":"#N/A"}},null,0,null,null,null,""]
[null,{"$f":"IF(LEN(A1761)=0,\"\",INDEX('Smelter Look-up'!$A:$A,MATCH($A1761,'Smelter Look-up'!$E:$E,0)))","v":""},{"$f":"IF(LEN(A1761)=0,\"\",INDEX('Smelter Look-up'!$C:$C,MATCH($A1761,'Smelter Look-up'!$E:$E,0)))","v":""},null,{"$f":"IF(ISERROR($V1761),\"\",OFFSET('Smelter Look-up'!$D$4,$V1761-4,0)&\"\")","v":""},{"$f":"IF(ISERROR($V1761),\"\",OFFSET('Smelter Look-up'!$E$4,$V1761-4,0))","v":""},{"$f":"IF(C1761=$X$4,\"Enter smelter details\", IF(ISERROR($V1761),\"\",OFFSET('Smelter Look-up'!$F$4,$V1761-4,0)))","v":""},{"$f":"IF(ISERROR($V1761),\"\",OFFSET('Smelter Look-up'!$G$4,$V1761-4,0))","v":""},{"$f":"IF(ISERROR($V1761),\"\",OFFSET('Smelter Look-up'!$H$4,$V1761-4,0))","v":""},{"$f":"IF(ISERROR($V1761),\"\",OFFSET('Smelter Look-up'!$I$4,$V1761-4,0))","v":""},{"$nulls":7},{"$f":"IF(ISERROR($V1761),\"\",OFFSET('Smelter Look-up'!$C$4,$V1761-4,0)&\"\")","v":""},"",{"$f":"IF(B1761=\"\",\"\",IF(ISERROR(MATCH($J1761,SorP!$B$1:$B$6230,0)),\"\",INDIRECT(\"'SorP'!$A$\"&MATCH($J1761,SorP!$B$1:$B$6230,0))))","v":""},null,{"$f":"IF(C1761=\"\",NA(),MATCH($B1761&$C1761,'Smelter Look-up'!$J:$J,0))","v":{"$error":"#N/A"}},null,0,null,null,null,""]
[null,{"$f":"IF(LEN(A1762)=0,\"\",INDEX('Smelter Look-up'!$A:$A,MATCH($A1762,'Smelter Look-up'!$E:$E,0)))","v":""},{"$f":"IF(LEN(A1762)=0,\"\",INDEX('Smelter Look-up'!$C:$C,MATCH($A1762,'Smelter Look-up'!$E:$E,0)))","v":""},null,{"$f":"IF(ISERROR($V1762),\"\",OFFSET('Smelter Look-up'!$D$4,$V1762-4,0)&\"\")","v":""},{"$f":"IF(ISERROR($V1762),\"\",OFFSET('Smelter Look-up'!$E$4,$V1762-4,0))","v":""},{"$f":"IF(C1762=$X$4,\"Enter smelter details\", IF(ISERROR($V1762),\"\",OFFSET('Smelter Look-up'!$F$4,$V1762-4,0)))","v":""},{"$f":"IF(ISERROR($V1762),\"\",OFFSET('Smelter Look-up'!$G$4,$V1762-4,0))","v":""},{"$f":"IF(ISERROR($V1762),\"\",OFFSET('Smelter Look-up'!$H$4,$V1762-4,0))","v":""},{"$f":"IF(ISERROR($V1762),\"\",OFFSET('Smelter Look-up'!$I$4,$V1762-4,0))","v":""},{"$nulls":7},{"$f":"IF(ISERROR($V1762),\"\",OFFSET('Smelter Look-up'!$C$4,$V1762-4,0)&\"\")","v":""},"",{"$f":"IF(B1762=\"\",\"\",IF(ISERROR(MATCH($J1762,SorP!$B$1:$B$6230,0)),\"\",INDIRECT(\"'SorP'!$A$\"&MATCH($J1762,SorP!$B$1:$B$6230,0))))","v":""},null,{"$f":"IF(C1762=\"\",NA(),MATCH($B1762&$C1762,'Smelter Look-up'!$J:$J,0))","v":{"$error":"#N/A"}},null,0,null,null,null,""]
[null,{"$f":"IF(LEN(A1763)=0,\"\",INDEX('Smelter Look-up'!$A:$A,MATCH($A1763,'Smelter Look-up'!$E:$E,0)))","v":""},{"$f":"IF(LEN(A1763)=0,\"\",INDEX('Smelter Look-up'!$C:$C,MATCH($A1763,'Smelter Look-up'!$E:$E,0)))","v":""},null,{"$f":"IF(ISERROR($V1763),\"\",OFFSET('Smelter Look-up'!$D$4,$V1763-4,0)&\"\")","v":""},{"$f":"IF(ISERROR($V1763),\"\",OFFSET('Smelter Look-up'!$E$4,$V1763-4,0))","v":""},{"$f":"IF(C1763=$X$4,\"Enter smelter details\", IF(ISERROR($V1763),\"\",OFFSET('Smelter Look-up'!$F$4,$V1763-4,0)))","v":""},{"$f":"IF(ISERROR($V1763),\"\",OFFSET('Smelter Look-up'!$G$4,$V1763-4,0))","v":""},{"$f":"IF(ISERROR($V1763),\"\",OFFSET('Smelter Look-up'!$H$4,$V1763-4,0))","v":""},{"$f":"IF(ISERROR($V1763),\"\",OFFSET('Smelter Look-up'!$I$4,$V1763-4,0))","v":""},{"$nulls":7},{"$f":"IF(ISERROR($V1763),\"\",OFFSET('Smelter Look-up'!$C$4,$V1763-4,0)&\"\")","v":""},"",{"$f":"IF(B1763=\"\",\"\",IF(ISERROR(MATCH($J1763,SorP!$B$1:$B$6230,0)),\"\",INDIRECT(\"'SorP'!$A$\"&MATCH($J1763,SorP!$B$1:$B$6230,0))))","v":""},null,{"$f":"IF(C1763=\"\",NA(),MATCH($B1763&$C1763,'Smelter Look-up'!$J:$J,0))","v":{"$error":"#N/A"}},null,0,null,null,null,""]
[null,{"$f":"IF(LEN(A1764)=0,\"\",INDEX('Smelter Look-up'!$A:$A,MATCH($A1764,'Smelter Look-up'!$E:$E,0)))","v":""},{"$f":"IF(LEN(A1764)=0,\"\",INDEX('Smelter Look-up'!$C:$C,MATCH($A1764,'Smelter Look-up'!$E:$E,0)))","v":""},null,{"$f":"IF(ISERROR($V1764),\"\",OFFSET('Smelter Look-up'!$D$4,$V1764-4,0)&\"\")","v":""},{"$f":"IF(ISERROR($V1764),\"\",OFFSET('Smelter Look-up'!$E$4,$V1764-4,0))","v":""},{"$f":"IF(C1764=$X$4,\"Enter smelter details\", IF(ISERROR($V1764),\"\",OFFSET('Smelter Look-up'!$F$4,$V1764-4,0)))","v":""},{"$f":"IF(ISERROR($V1764),\"\",OFFSET('Smelter Look-up'!$G$4,$V1764-4,0))","v":""},{"$f":"IF(ISERROR($V1764),\"\",OFFSET('Smelter Look-up'!$H$4,$V1764-4,0))","v":""},{"$f":"IF(ISERROR($V1764),\"\",OFFSET('Smelter Look-up'!$I$4,$V1764-4,0))","v":""},{"$nulls":7},{"$f":"IF(ISERROR($V1764),\"\",OFFSET('Smelter Look-up'!$C$4,$V1764-4,0)&\"\")","v":""},"",{"$f":"IF(B1764=\"\",\"\",IF(ISERROR(MATCH($J1764,SorP!$B$1:$B$6230,0)),\"\",INDIRECT(\"'SorP'!$A$\"&MATCH($J1764,SorP!$B$1:$B$6230,0))))","v":""},null,{"$f":"IF(C1764=\"\",NA(),MATCH($B1764&$C1764,'Smelter Look-up'!$J:$J,0))","v":{"$error":"#N/A"}},null,0,null,null,null,""]
[null,{"$f":"IF(LEN(A1765)=0,\"\",INDEX('Smelter Look-up'!$A:$A,MATCH($A1765,'Smelter Look-up'!$E:$E,0)))","v":""},{"$f":"IF(LEN(A1765)=0,\"\",INDEX('Smelter Look-up'!$C:$C,MATCH($A1765,'Smelter Look-up'!$E:$E,0)))","v":""},null,{"$f":"IF(ISERROR($V1765),\"\",OFFSET('Smelter Look-up'!$D$4,$V1765-4,0)&\"\")","v":""},{"$f":"IF(ISERROR($V1765),\"\",OFFSET('Smelter Look-up'!$E$4,$V1765-4,0))","v":""},{"$f":"IF(C1765=$X$4,\"Enter smelter details\", IF(ISERROR($V1765),\"\",OFFSET('Smelter Look-up'!$F$4,$V1765-4,0)))","v":""},{"$f":"IF(ISERROR($V1765),\"\",OFFSET('Smelter Look-up'!$G$4,$V1765-4,0))","v":""},{"$f":"IF(ISERROR($V1765),\"\",OFFSET('Smelter Look-up'!$H$4,$V1765-4,0))","v":""},{"$f":"IF(ISERROR($V1765),\"\",OFFSET('Smelter Look-up'!$I$4,$V1765-4,0))","v":""},{"$nulls":7},{"$f":"IF(ISERROR($V1765),\"\",OFFSET('Smelter Look-up'!$C$4,$V1765-4,0)&\"\")","v":""},"",{"$f":"IF(B1765=\"\",\"\",IF(ISERROR(MATCH($J1765,SorP!$B$1:$B$6230,0)),\"\",INDIRECT(\"'SorP'!$A$\"&MATCH($J1765,SorP!$B$1:$B$6230,0))))","v":""},null,{"$f":"IF(C1765=\"\",NA(),MATCH($B1765&$C1765,'Smelter Look-up'!$J:$J,0))","v":{"$error":"#N/A"}},null,0,null,null,null,""]
[null,{"$f":"IF(LEN(A1766)=0,\"\",INDEX('Smelter Look-up'!$A:$A,MATCH($A1766,'Smelter Look-up'!$E:$E,0)))","v":""},{"$f":"IF(LEN(A1766)=0,\"\",INDEX('Smelter Look-up'!$C:$C,MATCH($A1766,'Smelter Look-up'!$E:$E,0)))","v":""},null,{"$f":"IF(ISERROR($V1766),\"\",OFFSET('Smelter Look-up'!$D$4,$V1766-4,0)&\"\")","v":""},{"$f":"IF(ISERROR($V1766),\"\",OFFSET('Smelter Look-up'!$E$4,$V1766-4,0))","v":""},{"$f":"IF(C1766=$X$4,\"Enter smelter details\", IF(ISERROR($V1766),\"\",OFFSET('Smelter Look-up'!$F$4,$V1766-4,0)))","v":""},{"$f":"IF(ISERROR($V1766),\"\",OFFSET('Smelter Look-up'!$G$4,$V1766-4,0))","v":""},{"$f":"IF(ISERROR($V1766),\"\",OFFSET('Smelter Look-up'!$H$4,$V1766-4,0))","v":""},{"$f":"IF(ISERROR($V1766),\"\",OFFSET('Smelter Look-up'!$I$4,$V1766-4,0))","v":""},{"$nulls":7},{"$f":"IF(ISERROR($V1766),\"\",OFFSET('Smelter Look-up'!$C$4,$V1766-4,0)&\"\")","v":""},"",{"$f":"IF(B1766=\"\",\"\",IF(ISERROR(MATCH($J1766,SorP!$B$1:$B$6230,0)),\"\",INDIRECT(\"'SorP'!$A$\"&MATCH($J1766,SorP!$B$1:$B$6230,0))))","v":""},null,{"$f":"IF(C1766=\"\",NA(),MATCH($B1766&$C1766,'Smelter Look-up'!$J:$J,0))","v":{"$error":"#N/A"}},null,0,null,null,null,""]
[null,{"$f":"IF(LEN(A1767)=0,\"\",INDEX('Smelter Look-up'!$A:$A,MATCH($A1767,'Smelter Look-up'!$E:$E,0)))","v":""},{"$f":"IF(LEN(A1767)=0,\"\",INDEX('Smelter Look-up'!$C:$C,MATCH($A1767,'Smelter Look-up'!$E:$E,0)))","v":""},null,{"$f":"IF(ISERROR($V1767),\"\",OFFSET('Smelter Look-up'!$D$4,$V1767-4,0)&\"\")","v":""},{"$f":"IF(ISERROR($V1767),\"\",OFFSET('Smelter Look-up'!$E$4,$V1767-4,0))","v":""},{"$f":"IF(C1767=$X$4,\"Enter smelter details\", IF(ISERROR($V1767),\"\",OFFSET('Smelter Look-up'!$F$4,$V1767-4,0)))","v":""},{"$f":"IF(ISERROR($V1767),\"\",OFFSET('Smelter Look-up'!$G$4,$V1767-4,0))","v":""},{"$f":"IF(ISERROR($V1767),\"\",OFFSET('Smelter Look-up'!$H$4,$V1767-4,0))","v":""},{"$f":"IF(ISERROR($V1767),\"\",OFFSET('Smelter Look-up'!$I$4,$V1767-4,0))","v":""},{"$nulls":7},{"$f":"IF(ISERROR($V1767),\"\",OFFSET('Smelter Look-up'!$C$4,$V1767-4,0)&\"\")","v":""},"",{"$f":"IF(B1767=\"\",\"\",IF(ISERROR(MATCH($J1767,SorP!$B$1:$B$6230,0)),\"\",INDIRECT(\"'SorP'!$A$\"&MATCH($J1767,SorP!$B$1:$B$6230,0))))","v":""},null,{"$f":"IF(C1767=\"\",NA(),MATCH($B1767&$C1767,'Smelter Look-up'!$J:$J,0))","v":{"$error":"#N/A"}},null,0,null,null,null,""]
[null,{"$f":"IF(LEN(A1768)=0,\"\",INDEX('Smelter Look-up'!$A:$A,MATCH($A1768,'Smelter Look-up'!$E:$E,0)))","v":""},{"$f":"IF(LEN(A1768)=0,\"\",INDEX('Smelter Look-up'!$C:$C,MATCH($A1768,'Smelter Look-up'!$E:$E,0)))","v":""},null,{"$f":"IF(ISERROR($V1768),\"\",OFFSET('Smelter Look-up'!$D$4,$V1768-4,0)&\"\")","v":""},{"$f":"IF(ISERROR($V1768),\"\",OFFSET('Smelter Look-up'!$E$4,$V1768-4,0))","v":""},{"$f":"IF(C1768=$X$4,\"Enter smelter details\", IF(ISERROR($V1768),\"\",OFFSET('Smelter Look-up'!$F$4,$V1768-4,0)))","v":""},{"$f":"IF(ISERROR($V1768),\"\",OFFSET('Smelter Look-up'!$G$4,$V1768-4,0))","v":""},{"$f":"IF(ISERROR($V1768),\"\",OFFSET('Smelter Look-up'!$H$4,$V1768-4,0))","v":""},{"$f":"IF(ISERROR($V1768),\"\",OFFSET('Smelter Look-up'!$I$4,$V1768-4,0))","v":""},{"$nulls":7},{"$f":"IF(ISERROR($V1768),\"\",OFFSET('Smelter Look-up'!$C$4,$V1768-4,0)&\"\")","v":""},"",{"$f":"IF(B1768=\"\",\"\",IF(ISERROR(MATCH($J1768,SorP!$B$1:$B$6230,0)),\"\",INDIRECT(\"'SorP'!$A$\"&MATCH($J1768,SorP!$B$1:$B$6230,0))))","v":""},null,{"$f":"IF(C1768=\"\",NA(),MATCH($B1768&$C1768,'Smelter Look-up'!$J:$J,0))","v":{"$error":"#N/A"}},null,0,null,null,null,""]
[null,{"$f":"IF(LEN(A1769)=0,\"\",INDEX('Smelter Look-up'!$A:$A,MATCH($A1769,'Smelter Look-up'!$E:$E,0)))","v":""},{"$f":"IF(LEN(A1769)=0,\"\",INDEX('Smelter Look-up'!$C:$C,MATCH($A1769,'Smelter Look-up'!$E:$E,0)))","v":""},null,{"$f":"IF(ISERROR($V1769),\"\",OFFSET('Smelter Look-up'!$D$4,$V1769-4,0)&\"\")","v":""},{"$f":"IF(ISERROR($V1769),\"\",OFFSET('Smelter Look-up'!$E$4,$V1769-4,0))","v":""},{"$f":"IF(C1769=$X$4,\"Enter smelter details\", IF(ISERROR($V1769),\"\",OFFSET('Smelter Look-up'!$F$4,$V1769-4,0)))","v":""},{"$f":"IF(ISERROR($V1769),\"\",OFFSET('Smelter Look-up'!$G$4,$V1769-4,0))","v":""},{"$f":"IF(ISERROR($V1769),\"\",OFFSET('Smelter Look-up'!$H$4,$V1769-4,0))","v":""},{"$f":"IF(ISERROR($V1769),\"\",OFFSET('Smelter Look-up'!$I$4,$V1769-4,0))","v":""},{"$nulls":7},{"$f":"IF(ISERROR($V1769),\"\",OFFSET('Smelter Look-up'!$C$4,$V1769-4,0)&\"\")","v":""},"",{"$f":"IF(B1769=\"\",\"\",IF(ISERROR(MATCH($J1769,SorP!$B$1:$B$6230,0)),\"\",INDIRECT(\"'SorP'!$A$\"&MATCH($J1769,SorP!$B$1:$B$6230,0))))","v":""},null,{"$f":"IF(C1769=\"\",NA(),MATCH($B1769&$C1769,'Smelter Look-up'!$J:$J,0))","v":{"$error":"#N/A"}},null,0,null,null,null,""]
[null,{"$f":"IF(LEN(A1770)=0,\"\",INDEX('Smelter Look-up'!$A:$A,MATCH($A1770,'Smelter Look-up'!$E:$E,0)))","v":""},{"$f":"IF(LEN(A1770)=0,\"\",INDEX('Smelter Look-up'!$C:$C,MATCH($A1770,'Smelter Look-up'!$E:$E,0)))","v":""},null,{"$f":"IF(ISERROR($V1770),\"\",OFFSET('Smelter Look-up'!$D$4,$V1770-4,0)&\"\")","v":""},{"$f":"IF(ISERROR($V1770),\"\",OFFSET('Smelter Look-up'!$E$4,$V1770-4,0))","v":""},{"$f":"IF(C1770=$X$4,\"Enter smelter details\", IF(ISERROR($V1770),\"\",OFFSET('Smelter Look-up'!$F$4,$V1770-4,0)))","v":""},{"$f":"IF(ISERROR($V1770),\"\",OFFSET('Smelter Look-up'!$G$4,$V1770-4,0))","v":""},{"$f":"IF(ISERROR($V1770),\"\",OFFSET('Smelter Look-up'!$H$4,$V1770-4,0))","v":""},{"$f":"IF(ISERROR($V1770),\"\",OFFSET('Smelter Look-up'!$I$4,$V1770-4,0))","v":""},{"$nulls":7},{"$f":"IF(ISERROR($V1770),\"\",OFFSET('Smelter Look-up'!$C$4,$V1770-4,0)&\"\")","v":""},"",{"$f":"IF(B1770=\"\",\"\",IF(ISERROR(MATCH($J1770,SorP!$B$1:$B$6230,0)),\"\",INDIRECT(\"'SorP'!$A$\"&MATCH($J1770,SorP!$B$1:$B$6230,0))))","v":""},null,{"$f":"IF(C1770=\"\",NA(),MATCH($B1770&$C1770,'Smelter Look-up'!$J:$J,0))","v":{"$error":"#N/A"}},null,0,null,null,null,""]
[null,{"$f":"IF(LEN(A1771)=0,\"\",INDEX('Smelter Look-up'!$A:$A,MATCH($A1771,'Smelter Look-up'!$E:$E,0)))","v":""},{"$f":"IF(LEN(A1771)=0,\"\",INDEX('Smelter Look-up'!$C:$C,MATCH($A1771,'Smelter Look-up'!$E:$E,0)))","v":""},null,{"$f":"IF(ISERROR($V1771),\"\",OFFSET('Smelter Look-up'!$D$4,$V1771-4,0)&\"\")","v":""},{"$f":"IF(ISERROR($V1771),\"\",OFFSET('Smelter Look-up'!$E$4,$V1771-4,0))","v":""},{"$f":"IF(C1771=$X$4,\"Enter smelter details\", IF(ISERROR($V1771),\"\",OFFSET('Smelter Look-up'!$F$4,$V1771-4,0)))","v":""},{"$f":"IF(ISERROR($V1771),\"\",OFFSET('Smelter Look-up'!$G$4,$V1771-4,0))","v":""},{"$f":"IF(ISERROR($V1771),\"\",OFFSET('Smelter Look-up'!$H$4,$V1771-4,0))","v":""},{"$f":"IF(ISERROR($V1771),\"\",OFFSET('Smelter Look-up'!$I$4,$V1771-4,0))","v":""},{"$nulls":7},{"$f":"IF(ISERROR($V1771),\"\",OFFSET('Smelter Look-up'!$C$4,$V1771-4,0)&\"\")","v":""},"",{"$f":"IF(B1771=\"\",\"\",IF(ISERROR(MATCH($J1771,SorP!$B$1:$B$6230,0)),\"\",INDIRECT(\"'SorP'!$A$\"&MATCH($J1771,SorP!$B$1:$B$6230,0))))","v":""},null,{"$f":"IF(C1771=\"\",NA(),MATCH($B1771&$C1771,'Smelter Look-up'!$J:$J,0))","v":{"$error":"#N/A"}},null,0,null,null,null,""]
[null,{"$f":"IF(LEN(A1772)=0,\"\",INDEX('Smelter Look-up'!$A:$A,MATCH($A1772,'Smelter Look-up'!$E:$E,0)))","v":""},{"$f":"IF(LEN(A1772)=0,\"\",INDEX('Smelter Look-up'!$C:$C,MATCH($A1772,'Smelter Look-up'!$E:$E,0)))","v":""},null,{"$f":"IF(ISERROR($V1772),\"\",OFFSET('Smelter Look-up'!$D$4,$V1772-4,0)&\"\")","v":""},{"$f":"IF(ISERROR($V1772),\"\",OFFSET('Smelter Look-up'!$E$4,$V1772-4,0))","v":""},{"$f":"IF(C1772=$X$4,\"Enter smelter details\", IF(ISERROR($V1772),\"\",OFFSET('Smelter Look-up'!$F$4,$V1772-4,0)))","v":""},{"$f":"IF(ISERROR($V1772),\"\",OFFSET('Smelter Look-up'!$G$4,$V1772-4,0))","v":""},{"$f":"IF(ISERROR($V1772),\"\",OFFSET('Smelter Look-up'!$H$4,$V1772-4,0))","v":""},{"$f":"IF(ISERROR($V1772),\"\",OFFSET('Smelter Look-up'!$I$4,$V1772-4,0))","v":""},{"$nulls":7},{"$f":"IF(ISERROR($V1772),\"\",OFFSET('Smelter Look-up'!$C$4,$V1772-4,0)&\"\")","v":""},"",{"$f":"IF(B1772=\"\",\"\",IF(ISERROR(MATCH($J1772,SorP!$B$1:$B$6230,0)),\"\",INDIRECT(\"'SorP'!$A$\"&MATCH($J1772,SorP!$B$1:$B$6230,0))))","v":""},null,{"$f":"IF(C1772=\"\",NA(),MATCH($B1772&$C1772,'Smelter Look-up'!$J:$J,0))","v":{"$error":"#N/A"}},null,0,null,null,null,""]
[null,{"$f":"IF(LEN(A1773)=0,\"\",INDEX('Smelter Look-up'!$A:$A,MATCH($A1773,'Smelter Look-up'!$E:$E,0)))","v":""},{"$f":"IF(LEN(A1773)=0,\"\",INDEX('Smelter Look-up'!$C:$C,MATCH($A1773,'Smelter Look-up'!$E:$E,0)))","v":""},null,{"$f":"IF(ISERROR($V1773),\"\",OFFSET('Smelter Look-up'!$D$4,$V1773-4,0)&\"\")","v":""},{"$f":"IF(ISERROR($V1773),\"\",OFFSET('Smelter Look-up'!$E$4,$V1773-4,0))","v":""},{"$f":"IF(C1773=$X$4,\"Enter smelter details\", IF(ISERROR($V1773),\"\",OFFSET('Smelter Look-up'!$F$4,$V1773-4,0)))","v":""},{"$f":"IF(ISERROR($V1773),\"\",OFFSET('Smelter Look-up'!$G$4,$V1773-4,0))","v":""},{"$f":"IF(ISERROR($V1773),\"\",OFFSET('Smelter Look-up'!$H$4,$V1773-4,0))","v":""},{"$f":"IF(ISERROR($V1773),\"\",OFFSET('Smelter Look-up'!$I$4,$V1773-4,0))","v":""},{"$nulls":7},{"$f":"IF(ISERROR($V1773),\"\",OFFSET('Smelter Look-up'!$C$4,$V1773-4,0)&\"\")","v":""},"",{"$f":"IF(B1773=\"\",\"\",IF(ISERROR(MATCH($J1773,SorP!$B$1:$B$6230,0)),\"\",INDIRECT(\"'SorP'!$A$\"&MATCH($J1773,SorP!$B$1:$B$6230,0))))","v":""},null,{"$f":"IF(C1773=\"\",NA(),MATCH($B1773&$C1773,'Smelter Look-up'!$J:$J,0))","v":{"$error":"#N/A"}},null,0,null,null,null,""]
[null,{"$f":"IF(LEN(A1774)=0,\"\",INDEX('Smelter Look-up'!$A:$A,MATCH($A1774,'Smelter Look-up'!$E:$E,0)))","v":""},{"$f":"IF(LEN(A1774)=0,\"\",INDEX('Smelter Look-up'!$C:$C,MATCH($A1774,'Smelter Look-up'!$E:$E,0)))","v":""},null,{"$f":"IF(ISERROR($V1774),\"\",OFFSET('Smelter Look-up'!$D$4,$V1774-4,0)&\"\")","v":""},{"$f":"IF(ISERROR($V1774),\"\",OFFSET('Smelter Look-up'!$E$4,$V1774-4,0))","v":""},{"$f":"IF(C1774=$X$4,\"Enter smelter details\", IF(ISERROR($V1774),\"\",OFFSET('Smelter Look-up'!$F$4,$V1774-4,0)))","v":""},{"$f":"IF(ISERROR($V1774),\"\",OFFSET('Smelter Look-up'!$G$4,$V1774-4,0))","v":""},{"$f":"IF(ISERROR($V1774),\"\",OFFSET('Smelter Look-up'!$H$4,$V1774-4,0))","v":""},{"$f":"IF(ISERROR($V1774),\"\",OFFSET('Smelter Look-up'!$I$4,$V1774-4,0))","v":""},{"$nulls":7},{"$f":"IF(ISERROR($V1774),\"\",OFFSET('Smelter Look-up'!$C$4,$V1774-4,0)&\"\")","v":""},"",{"$f":"IF(B1774=\"\",\"\",IF(ISERROR(MATCH($J1774,SorP!$B$1:$B$6230,0)),\"\",INDIRECT(\"'SorP'!$A$\"&MATCH($J1774,SorP!$B$1:$B$6230,0))))","v":""},null,{"$f":"IF(C1774=\"\",NA(),MATCH($B1774&$C1774,'Smelter Look-up'!$J:$J,0))","v":{"$error":"#N/A"}},null,0,null,null,null,""]
[null,{"$f":"IF(LEN(A1775)=0,\"\",INDEX('Smelter Look-up'!$A:$A,MATCH($A1775,'Smelter Look-up'!$E:$E,0)))","v":""},{"$f":"IF(LEN(A1775)=0,\"\",INDEX('Smelter Look-up'!$C:$C,MATCH($A1775,'Smelter Look-up'!$E:$E,0)))","v":""},null,{"$f":"IF(ISERROR($V1775),\"\",OFFSET('Smelter Look-up'!$D$4,$V1775-4,0)&\"\")","v":""},{"$f":"IF(ISERROR($V1775),\"\",OFFSET('Smelter Look-up'!$E$4,$V1775-4,0))","v":""},{"$f":"IF(C1775=$X$4,\"Enter smelter details\", IF(ISERROR($V1775),\"\",OFFSET('Smelter Look-up'!$F$4,$V1775-4,0)))","v":""},{"$f":"IF(ISERROR($V1775),\"\",OFFSET('Smelter Look-up'!$G$4,$V1775-4,0))","v":""},{"$f":"IF(ISERROR($V1775),\"\",OFFSET('Smelter Look-up'!$H$4,$V1775-4,0))","v":""},{"$f":"IF(ISERROR($V1775),\"\",OFFSET('Smelter Look-up'!$I$4,$V1775-4,0))","v":""},{"$nulls":7},{"$f":"IF(ISERROR($V1775),\"\",OFFSET('Smelter Look-up'!$C$4,$V1775-4,0)&\"\")","v":""},"",{"$f":"IF(B1775=\"\",\"\",IF(ISERROR(MATCH($J1775,SorP!$B$1:$B$6230,0)),\"\",INDIRECT(\"'SorP'!$A$\"&MATCH($J1775,SorP!$B$1:$B$6230,0))))","v":""},null,{"$f":"IF(C1775=\"\",NA(),MATCH($B1775&$C1775,'Smelter Look-up'!$J:$J,0))","v":{"$error":"#N/A"}},null,0,null,null,null,""]
[null,{"$f":"IF(LEN(A1776)=0,\"\",INDEX('Smelter Look-up'!$A:$A,MATCH($A1776,'Smelter Look-up'!$E:$E,0)))","v":""},{"$f":"IF(LEN(A1776)=0,\"\",INDEX('Smelter Look-up'!$C:$C,MATCH($A1776,'Smelter Look-up'!$E:$E,0)))","v":""},null,{"$f":"IF(ISERROR($V1776),\"\",OFFSET('Smelter Look-up'!$D$4,$V1776-4,0)&\"\")","v":""},{"$f":"IF(ISERROR($V1776),\"\",OFFSET('Smelter Look-up'!$E$4,$V1776-4,0))","v":""},{"$f":"IF(C1776=$X$4,\"Enter smelter details\", IF(ISERROR($V1776),\"\",OFFSET('Smelter Look-up'!$F$4,$V1776-4,0)))","v":""},{"$f":"IF(ISERROR($V1776),\"\",OFFSET('Smelter Look-up'!$G$4,$V1776-4,0))","v":""},{"$f":"IF(ISERROR($V1776),\"\",OFFSET('Smelter Look-up'!$H$4,$V1776-4,0))","v":""},{"$f":"IF(ISERROR($V1776),\"\",OFFSET('Smelter Look-up'!$I$4,$V1776-4,0))","v":""},{"$nulls":7},{"$f":"IF(ISERROR($V1776),\"\",OFFSET('Smelter Look-up'!$C$4,$V1776-4,0)&\"\")","v":""},"",{"$f":"IF(B1776=\"\",\"\",IF(ISERROR(MATCH($J1776,SorP!$B$1:$B$6230,0)),\"\",INDIRECT(\"'SorP'!$A$\"&MATCH($J1776,SorP!$B$1:$B$6230,0))))","v":""},null,{"$f":"IF(C1776=\"\",NA(),MATCH($B1776&$C1776,'Smelter Look-up'!$J:$J,0))","v":{"$error":"#N/A"}},null,0,null,null,null,""]
[null,{"$f":"IF(LEN(A1777)=0,\"\",INDEX('Smelter Look-up'!$A:$A,MATCH($A1777,'Smelter Look-up'!$E:$E,0)))","v":""},{"$f":"IF(LEN(A1777)=0,\"\",INDEX('Smelter Look-up'!$C:$C,MATCH($A1777,'Smelter Look-up'!$E:$E,0)))","v":""},null,{"$f":"IF(ISERROR($V1777),\"\",OFFSET('Smelter Look-up'!$D$4,$V1777-4,0)&\"\")","v":""},{"$f":"IF(ISERROR($V1777),\"\",OFFSET('Smelter Look-up'!$E$4,$V1777-4,0))","v":""},{"$f":"IF(C1777=$X$4,\"Enter smelter details\", IF(ISERROR($V1777),\"\",OFFSET('Smelter Look-up'!$F$4,$V1777-4,0)))","v":""},{"$f":"IF(ISERROR($V1777),\"\",OFFSET('Smelter Look-up'!$G$4,$V1777-4,0))","v":""},{"$f":"IF(ISERROR($V1777),\"\",OFFSET('Smelter Look-up'!$H$4,$V1777-4,0))","v":""},{"$f":"IF(ISERROR($V1777),\"\",OFFSET('Smelter Look-up'!$I$4,$V1777-4,0))","v":""},{"$nulls":7},{"$f":"IF(ISERROR($V1777),\"\",OFFSET('Smelter Look-up'!$C$4,$V1777-4,0)&\"\")","v":""},"",{"$f":"IF(B1777=\"\",\"\",IF(ISERROR(MATCH($J1777,SorP!$B$1:$B$6230,0)),\"\",INDIRECT(\"'SorP'!$A$\"&MATCH($J1777,SorP!$B$1:$B$6230,0))))","v":""},null,{"$f":"IF(C1777=\"\",NA(),MATCH($B1777&$C1777,'Smelter Look-up'!$J:$J,0))","v":{"$error":"#N/A"}},null,0,null,null,null,""]
[null,{"$f":"IF(LEN(A1778)=0,\"\",INDEX('Smelter Look-up'!$A:$A,MATCH($A1778,'Smelter Look-up'!$E:$E,0)))","v":""},{"$f":"IF(LEN(A1778)=0,\"\",INDEX('Smelter Look-up'!$C:$C,MATCH($A1778,'Smelter Look-up'!$E:$E,0)))","v":""},null,{"$f":"IF(ISERROR($V1778),\"\",OFFSET('Smelter Look-up'!$D$4,$V1778-4,0)&\"\")","v":""},{"$f":"IF(ISERROR($V1778),\"\",OFFSET('Smelter Look-up'!$E$4,$V1778-4,0))","v":""},{"$f":"IF(C1778=$X$4,\"Enter smelter details\", IF(ISERROR($V1778),\"\",OFFSET('Smelter Look-up'!$F$4,$V1778-4,0)))","v":""},{"$f":"IF(ISERROR($V1778),\"\",OFFSET('Smelter Look-up'!$G$4,$V1778-4,0))","v":""},{"$f":"IF(ISERROR($V1778),\"\",OFFSET('Smelter Look-up'!$H$4,$V1778-4,0))","v":""},{"$f":"IF(ISERROR($V1778),\"\",OFFSET('Smelter Look-up'!$I$4,$V1778-4,0))","v":""},{"$nulls":7},{"$f":"IF(ISERROR($V1778),\"\",OFFSET('Smelter Look-up'!$C$4,$V1778-4,0)&\"\")","v":""},"",{"$f":"IF(B1778=\"\",\"\",IF(ISERROR(MATCH($J1778,SorP!$B$1:$B$6230,0)),\"\",INDIRECT(\"'SorP'!$A$\"&MATCH($J1778,SorP!$B$1:$B$6230,0))))","v":""},null,{"$f":"IF(C1778=\"\",NA(),MATCH($B1778&$C1778,'Smelter Look-up'!$J:$J,0))","v":{"$error":"#N/A"}},null,0,null,null,null,""]
[null,{"$f":"IF(LEN(A1779)=0,\"\",INDEX('Smelter Look-up'!$A:$A,MATCH($A1779,'Smelter Look-up'!$E:$E,0)))","v":""},{"$f":"IF(LEN(A1779)=0,\"\",INDEX('Smelter Look-up'!$C:$C,MATCH($A1779,'Smelter Look-up'!$E:$E,0)))","v":""},null,{"$f":"IF(ISERROR($V1779),\"\",OFFSET('Smelter Look-up'!$D$4,$V1779-4,0)&\"\")","v":""},{"$f":"IF(ISERROR($V1779),\"\",OFFSET('Smelter Look-up'!$E$4,$V1779-4,0))","v":""},{"$f":"IF(C1779=$X$4,\"Enter smelter details\", IF(ISERROR($V1779),\"\",OFFSET('Smelter Look-up'!$F$4,$V1779-4,0)))","v":""},{"$f":"IF(ISERROR($V1779),\"\",OFFSET('Smelter Look-up'!$G$4,$V1779-4,0))","v":""},{"$f":"IF(ISERROR($V1779),\"\",OFFSET('Smelter Look-up'!$H$4,$V1779-4,0))","v":""},{"$f":"IF(ISERROR($V1779),\"\",OFFSET('Smelter Look-up'!$I$4,$V1779-4,0))","v":""},{"$nulls":7},{"$f":"IF(ISERROR($V1779),\"\",OFFSET('Smelter Look-up'!$C$4,$V1779-4,0)&\"\")","v":""},"",{"$f":"IF(B1779=\"\",\"\",IF(ISERROR(MATCH($J1779,SorP!$B$1:$B$6230,0)),\"\",INDIRECT(\"'SorP'!$A$\"&MATCH($J1779,SorP!$B$1:$B$6230,0))))","v":""},null,{"$f":"IF(C1779=\"\",NA(),MATCH($B1779&$C1779,'Smelter Look-up'!$J:$J,0))","v":{"$error":"#N/A"}},null,0,null,null,null,""]
[null,{"$f":"IF(LEN(A1780)=0,\"\",INDEX('Smelter Look-up'!$A:$A,MATCH($A1780,'Smelter Look-up'!$E:$E,0)))","v":""},{"$f":"IF(LEN(A1780)=0,\"\",INDEX('Smelter Look-up'!$C:$C,MATCH($A1780,'Smelter Look-up'!$E:$E,0)))","v":""},null,{"$f":"IF(ISERROR($V1780),\"\",OFFSET('Smelter Look-up'!$D$4,$V1780-4,0)&\"\")","v":""},{"$f":"IF(ISERROR($V1780),\"\",OFFSET('Smelter Look-up'!$E$4,$V1780-4,0))","v":""},{"$f":"IF(C1780=$X$4,\"Enter smelter details\", IF(ISERROR($V1780),\"\",OFFSET('Smelter Look-up'!$F$4,$V1780-4,0)))","v":""},{"$f":"IF(ISERROR($V1780),\"\",OFFSET('Smelter Look-up'!$G$4,$V1780-4,0))","v":""},{"$f":"IF(ISERROR($V1780),\"\",OFFSET('Smelter Look-up'!$H$4,$V1780-4,0))","v":""},{"$f":"IF(ISERROR($V1780),\"\",OFFSET('Smelter Look-up'!$I$4,$V1780-4,0))","v":""},{"$nulls":7},{"$f":"IF(ISERROR($V1780),\"\",OFFSET('Smelter Look-up'!$C$4,$V1780-4,0)&\"\")","v":""},"",{"$f":"IF(B1780=\"\",\"\",IF(ISERROR(MATCH($J1780,SorP!$B$1:$B$6230,0)),\"\",INDIRECT(\"'SorP'!$A$\"&MATCH($J1780,SorP!$B$1:$B$6230,0))))","v":""},null,{"$f":"IF(C1780=\"\",NA(),MATCH($B1780&$C1780,'Smelter Look-up'!$J:$J,0))","v":{"$error":"#N/A"}},null,0,null,null,null,""]
[null,{"$f":"IF(LEN(A1781)=0,\"\",INDEX('Smelter Look-up'!$A:$A,MATCH($A1781,'Smelter Look-up'!$E:$E,0)))","v":""},{"$f":"IF(LEN(A1781)=0,\"\",INDEX('Smelter Look-up'!$C:$C,MATCH($A1781,'Smelter Look-up'!$E:$E,0)))","v":""},null,{"$f":"IF(ISERROR($V1781),\"\",OFFSET('Smelter Look-up'!$D$4,$V1781-4,0)&\"\")","v":""},{"$f":"IF(ISERROR($V1781),\"\",OFFSET('Smelter Look-up'!$E$4,$V1781-4,0))","v":""},{"$f":"IF(C1781=$X$4,\"Enter smelter details\", IF(ISERROR($V1781),\"\",OFFSET('Smelter Look-up'!$F$4,$V1781-4,0)))","v":""},{"$f":"IF(ISERROR($V1781),\"\",OFFSET('Smelter Look-up'!$G$4,$V1781-4,0))","v":""},{"$f":"IF(ISERROR($V1781),\"\",OFFSET('Smelter Look-up'!$H$4,$V1781-4,0))","v":""},{"$f":"IF(ISERROR($V1781),\"\",OFFSET('Smelter Look-up'!$I$4,$V1781-4,0))","v":""},{"$nulls":7},{"$f":"IF(ISERROR($V1781),\"\",OFFSET('Smelter Look-up'!$C$4,$V1781-4,0)&\"\")","v":""},"",{"$f":"IF(B1781=\"\",\"\",IF(ISERROR(MATCH($J1781,SorP!$B$1:$B$6230,0)),\"\",INDIRECT(\"'SorP'!$A$\"&MATCH($J1781,SorP!$B$1:$B$6230,0))))","v":""},null,{"$f":"IF(C1781=\"\",NA(),MATCH($B1781&$C1781,'Smelter Look-up'!$J:$J,0))","v":{"$error":"#N/A"}},null,0,null,null,null,""]
[null,{"$f":"IF(LEN(A1782)=0,\"\",INDEX('Smelter Look-up'!$A:$A,MATCH($A1782,'Smelter Look-up'!$E:$E,0)))","v":""},{"$f":"IF(LEN(A1782)=0,\"\",INDEX('Smelter Look-up'!$C:$C,MATCH($A1782,'Smelter Look-up'!$E:$E,0)))","v":""},null,{"$f":"IF(ISERROR($V1782),\"\",OFFSET('Smelter Look-up'!$D$4,$V1782-4,0)&\"\")","v":""},{"$f":"IF(ISERROR($V1782),\"\",OFFSET('Smelter Look-up'!$E$4,$V1782-4,0))","v":""},{"$f":"IF(C1782=$X$4,\"Enter smelter details\", IF(ISERROR($V1782),\"\",OFFSET('Smelter Look-up'!$F$4,$V1782-4,0)))","v":""},{"$f":"IF(ISERROR($V1782),\"\",OFFSET('Smelter Look-up'!$G$4,$V1782-4,0))","v":""},{"$f":"IF(ISERROR($V1782),\"\",OFFSET('Smelter Look-up'!$H$4,$V1782-4,0))","v":""},{"$f":"IF(ISERROR($V1782),\"\",OFFSET('Smelter Look-up'!$I$4,$V1782-4,0))","v":""},{"$nulls":7},{"$f":"IF(ISERROR($V1782),\"\",OFFSET('Smelter Look-up'!$C$4,$V1782-4,0)&\"\")","v":""},"",{"$f":"IF(B1782=\"\",\"\",IF(ISERROR(MATCH($J1782,SorP!$B$1:$B$6230,0)),\"\",INDIRECT(\"'SorP'!$A$\"&MATCH($J1782,SorP!$B$1:$B$6230,0))))","v":""},null,{"$f":"IF(C1782=\"\",NA(),MATCH($B1782&$C1782,'Smelter Look-up'!$J:$J,0))","v":{"$error":"#N/A"}},null,0,null,null,null,""]
[null,{"$f":"IF(LEN(A1783)=0,\"\",INDEX('Smelter Look-up'!$A:$A,MATCH($A1783,'Smelter Look-up'!$E:$E,0)))","v":""},{"$f":"IF(LEN(A1783)=0,\"\",INDEX('Smelter Look-up'!$C:$C,MATCH($A1783,'Smelter Look-up'!$E:$E,0)))","v":""},null,{"$f":"IF(ISERROR($V1783),\"\",OFFSET('Smelter Look-up'!$D$4,$V1783-4,0)&\"\")","v":""},{"$f":"IF(ISERROR($V1783),\"\",OFFSET('Smelter Look-up'!$E$4,$V1783-4,0))","v":""},{"$f":"IF(C1783=$X$4,\"Enter smelter details\", IF(ISERROR($V1783),\"\",OFFSET('Smelter Look-up'!$F$4,$V1783-4,0)))","v":""},{"$f":"IF(ISERROR($V1783),\"\",OFFSET('Smelter Look-up'!$G$4,$V1783-4,0))","v":""},{"$f":"IF(ISERROR($V1783),\"\",OFFSET('Smelter Look-up'!$H$4,$V1783-4,0))","v":""},{"$f":"IF(ISERROR($V1783),\"\",OFFSET('Smelter Look-up'!$I$4,$V1783-4,0))","v":""},{"$nulls":7},{"$f":"IF(ISERROR($V1783),\"\",OFFSET('Smelter Look-up'!$C$4,$V1783-4,0)&\"\")","v":""},"",{"$f":"IF(B1783=\"\",\"\",IF(ISERROR(MATCH($J1783,SorP!$B$1:$B$6230,0)),\"\",INDIRECT(\"'SorP'!$A$\"&MATCH($J1783,SorP!$B$1:$B$6230,0))))","v":""},null,{"$f":"IF(C1783=\"\",NA(),MATCH($B1783&$C1783,'Smelter Look-up'!$J:$J,0))","v":{"$error":"#N/A"}},null,0,null,null,null,""]
[null,{"$f":"IF(LEN(A1784)=0,\"\",INDEX('Smelter Look-up'!$A:$A,MATCH($A1784,'Smelter Look-up'!$E:$E,0)))","v":""},{"$f":"IF(LEN(A1784)=0,\"\",INDEX('Smelter Look-up'!$C:$C,MATCH($A1784,'Smelter Look-up'!$E:$E,0)))","v":""},null,{"$f":"IF(ISERROR($V1784),\"\",OFFSET('Smelter Look-up'!$D$4,$V1784-4,0)&\"\")","v":""},{"$f":"IF(ISERROR($V1784),\"\",OFFSET('Smelter Look-up'!$E$4,$V1784-4,0))","v":""},{"$f":"IF(C1784=$X$4,\"Enter smelter details\", IF(ISERROR($V1784),\"\",OFFSET('Smelter Look-up'!$F$4,$V1784-4,0)))","v":""},{"$f":"IF(ISERROR($V1784),\"\",OFFSET('Smelter Look-up'!$G$4,$V1784-4,0))","v":""},{"$f":"IF(ISERROR($V1784),\"\",OFFSET('Smelter Look-up'!$H$4,$V1784-4,0))","v":""},{"$f":"IF(ISERROR($V1784),\"\",OFFSET('Smelter Look-up'!$I$4,$V1784-4,0))","v":""},{"$nulls":7},{"$f":"IF(ISERROR($V1784),\"\",OFFSET('Smelter Look-up'!$C$4,$V1784-4,0)&\"\")","v":""},"",{"$f":"IF(B1784=\"\",\"\",IF(ISERROR(MATCH($J1784,SorP!$B$1:$B$6230,0)),\"\",INDIRECT(\"'SorP'!$A$\"&MATCH($J1784,SorP!$B$1:$B$6230,0))))","v":""},null,{"$f":"IF(C1784=\"\",NA(),MATCH($B1784&$C1784,'Smelter Look-up'!$J:$J,0))","v":{"$error":"#N/A"}},null,0,null,null,null,""]
[null,{"$f":"IF(LEN(A1785)=0,\"\",INDEX('Smelter Look-up'!$A:$A,MATCH($A1785,'Smelter Look-up'!$E:$E,0)))","v":""},{"$f":"IF(LEN(A1785)=0,\"\",INDEX('Smelter Look-up'!$C:$C,MATCH($A1785,'Smelter Look-up'!$E:$E,0)))","v":""},null,{"$f":"IF(ISERROR($V1785),\"\",OFFSET('Smelter Look-up'!$D$4,$V1785-4,0)&\"\")","v":""},{"$f":"IF(ISERROR($V1785),\"\",OFFSET('Smelter Look-up'!$E$4,$V1785-4,0))","v":""},{"$f":"IF(C1785=$X$4,\"Enter smelter details\", IF(ISERROR($V1785),\"\",OFFSET('Smelter Look-up'!$F$4,$V1785-4,0)))","v":""},{"$f":"IF(ISERROR($V1785),\"\",OFFSET('Smelter Look-up'!$G$4,$V1785-4,0))","v":""},{"$f":"IF(ISERROR($V1785),\"\",OFFSET('Smelter Look-up'!$H$4,$V1785-4,0))","v":""},{"$f":"IF(ISERROR($V1785),\"\",OFFSET('Smelter Look-up'!$I$4,$V1785-4,0))","v":""},{"$nulls":7},{"$f":"IF(ISERROR($V1785),\"\",OFFSET('Smelter Look-up'!$C$4,$V1785-4,0)&\"\")","v":""},"",{"$f":"IF(B1785=\"\",\"\",IF(ISERROR(MATCH($J1785,SorP!$B$1:$B$6230,0)),\"\",INDIRECT(\"'SorP'!$A$\"&MATCH($J1785,SorP!$B$1:$B$6230,0))))","v":""},null,{"$f":"IF(C1785=\"\",NA(),MATCH($B1785&$C1785,'Smelter Look-up'!$J:$J,0))","v":{"$error":"#N/A"}},null,0,null,null,null,""]
[null,{"$f":"IF(LEN(A1786)=0,\"\",INDEX('Smelter Look-up'!$A:$A,MATCH($A1786,'Smelter Look-up'!$E:$E,0)))","v":""},{"$f":"IF(LEN(A1786)=0,\"\",INDEX('Smelter Look-up'!$C:$C,MATCH($A1786,'Smelter Look-up'!$E:$E,0)))","v":""},null,{"$f":"IF(ISERROR($V1786),\"\",OFFSET('Smelter Look-up'!$D$4,$V1786-4,0)&\"\")","v":""},{"$f":"IF(ISERROR($V1786),\"\",OFFSET('Smelter Look-up'!$E$4,$V1786-4,0))","v":""},{"$f":"IF(C1786=$X$4,\"Enter smelter details\", IF(ISERROR($V1786),\"\",OFFSET('Smelter Look-up'!$F$4,$V1786-4,0)))","v":""},{"$f":"IF(ISERROR($V1786),\"\",OFFSET('Smelter Look-up'!$G$4,$V1786-4,0))","v":""},{"$f":"IF(ISERROR($V1786),\"\",OFFSET('Smelter Look-up'!$H$4,$V1786-4,0))","v":""},{"$f":"IF(ISERROR($V1786),\"\",OFFSET('Smelter Look-up'!$I$4,$V1786-4,0))","v":""},{"$nulls":7},{"$f":"IF(ISERROR($V1786),\"\",OFFSET('Smelter Look-up'!$C$4,$V1786-4,0)&\"\")","v":""},"",{"$f":"IF(B1786=\"\",\"\",IF(ISERROR(MATCH($J1786,SorP!$B$1:$B$6230,0)),\"\",INDIRECT(\"'SorP'!$A$\"&MATCH($J1786,SorP!$B$1:$B$6230,0))))","v":""},null,{"$f":"IF(C1786=\"\",NA(),MATCH($B1786&$C1786,'Smelter Look-up'!$J:$J,0))","v":{"$error":"#N/A"}},null,0,null,null,null,""]
[null,{"$f":"IF(LEN(A1787)=0,\"\",INDEX('Smelter Look-up'!$A:$A,MATCH($A1787,'Smelter Look-up'!$E:$E,0)))","v":""},{"$f":"IF(LEN(A1787)=0,\"\",INDEX('Smelter Look-up'!$C:$C,MATCH($A1787,'Smelter Look-up'!$E:$E,0)))","v":""},null,{"$f":"IF(ISERROR($V1787),\"\",OFFSET('Smelter Look-up'!$D$4,$V1787-4,0)&\"\")","v":""},{"$f":"IF(ISERROR($V1787),\"\",OFFSET('Smelter Look-up'!$E$4,$V1787-4,0))","v":""},{"$f":"IF(C1787=$X$4,\"Enter smelter details\", IF(ISERROR($V1787),\"\",OFFSET('Smelter Look-up'!$F$4,$V1787-4,0)))","v":""},{"$f":"IF(ISERROR($V1787),\"\",OFFSET('Smelter Look-up'!$G$4,$V1787-4,0))","v":""},{"$f":"IF(ISERROR($V1787),\"\",OFFSET('Smelter Look-up'!$H$4,$V1787-4,0))","v":""},{"$f":"IF(ISERROR($V1787),\"\",OFFSET('Smelter Look-up'!$I$4,$V1787-4,0))","v":""},{"$nulls":7},{"$f":"IF(ISERROR($V1787),\"\",OFFSET('Smelter Look-up'!$C$4,$V1787-4,0)&\"\")","v":""},{"$f":"IF(B1787=\"\",\"\",IF(ISERROR(MATCH($E1787,CL,0)),\"Unknown\",INDIRECT(\"'C'!$A$\"&MATCH($E1787,CL,0)+1)))","v":""},{"$f":"IF(B1787=\"\",\"\",IF(ISERROR(MATCH($J1787,SorP!$B$1:$B$6230,0)),\"\",INDIRECT(\"'SorP'!$A$\"&MATCH($J1787,SorP!$B$1:$B$6230,0))))","v":""},null,{"$f":"IF(C1787=\"\",NA(),MATCH($B1787&$C1787,'Smelter Look-up'!$J:$J,0))","v":{"$error":"#N/A"}},null,{"$f":"IF(AND(C1787=\"Smelter not listed\",OR(LEN(D1787)=0,LEN(E1787)=0)),1,0)","v":0},null,null,null,{"$f":"B1787&C1787","v":""}]
[null,{"$f":"IF(LEN(A1788)=0,\"\",INDEX('Smelter Look-up'!$A:$A,MATCH($A1788,'Smelter Look-up'!$E:$E,0)))","v":""},{"$f":"IF(LEN(A1788)=0,\"\",INDEX('Smelter Look-up'!$C:$C,MATCH($A1788,'Smelter Look-up'!$E:$E,0)))","v":""},null,{"$f":"IF(ISERROR($V1788),\"\",OFFSET('Smelter Look-up'!$D$4,$V1788-4,0)&\"\")","v":""},{"$f":"IF(ISERROR($V1788),\"\",OFFSET('Smelter Look-up'!$E$4,$V1788-4,0))","v":""},{"$f":"IF(C1788=$X$4,\"Enter smelter details\", IF(ISERROR($V1788),\"\",OFFSET('Smelter Look-up'!$F$4,$V1788-4,0)))","v":""},{"$f":"IF(ISERROR($V1788),\"\",OFFSET('Smelter Look-up'!$G$4,$V1788-4,0))","v":""},{"$f":"IF(ISERROR($V1788),\"\",OFFSET('Smelter Look-up'!$H$4,$V1788-4,0))","v":""},{"$f":"IF(ISERROR($V1788),\"\",OFFSET('Smelter Look-up'!$I$4,$V1788-4,0))","v":""},{"$nulls":7},{"$f":"IF(ISERROR($V1788),\"\",OFFSET('Smelter Look-up'!$C$4,$V1788-4,0)&\"\")","v":""},"",{"$f":"IF(B1788=\"\",\"\",IF(ISERROR(MATCH($J1788,SorP!$B$1:$B$6230,0)),\"\",INDIRECT(\"'SorP'!$A$\"&MATCH($J1788,SorP!$B$1:$B$6230,0))))","v":""},null,{"$f":"IF(C1788=\"\",NA(),MATCH($B1788&$C1788,'Smelter Look-up'!$J:$J,0))","v":{"$error":"#N/A"}},null,0,null,null,null,""]
[null,{"$f":"IF(LEN(A1789)=0,\"\",INDEX('Smelter Look-up'!$A:$A,MATCH($A1789,'Smelter Look-up'!$E:$E,0)))","v":""},{"$f":"IF(LEN(A1789)=0,\"\",INDEX('Smelter Look-up'!$C:$C,MATCH($A1789,'Smelter Look-up'!$E:$E,0)))","v":""},null,{"$f":"IF(ISERROR($V1789),\"\",OFFSET('Smelter Look-up'!$D$4,$V1789-4,0)&\"\")","v":""},{"$f":"IF(ISERROR($V1789),\"\",OFFSET('Smelter Look-up'!$E$4,$V1789-4,0))","v":""},{"$f":"IF(C1789=$X$4,\"Enter smelter details\", IF(ISERROR($V1789),\"\",OFFSET('Smelter Look-up'!$F$4,$V1789-4,0)))","v":""},{"$f":"IF(ISERROR($V1789),\"\",OFFSET('Smelter Look-up'!$G$4,$V1789-4,0))","v":""},{"$f":"IF(ISERROR($V1789),\"\",OFFSET('Smelter Look-up'!$H$4,$V1789-4,0))","v":""},{"$f":"IF(ISERROR($V1789),\"\",OFFSET('Smelter Look-up'!$I$4,$V1789-4,0))","v":""},{"$nulls":7},{"$f":"IF(ISERROR($V1789),\"\",OFFSET('Smelter Look-up'!$C$4,$V1789-4,0)&\"\")","v":""},"",{"$f":"IF(B1789=\"\",\"\",IF(ISERROR(MATCH($J1789,SorP!$B$1:$B$6230,0)),\"\",INDIRECT(\"'SorP'!$A$\"&MATCH($J1789,SorP!$B$1:$B$6230,0))))","v":""},null,{"$f":"IF(C1789=\"\",NA(),MATCH($B1789&$C1789,'Smelter Look-up'!$J:$J,0))","v":{"$error":"#N/A"}},null,0,null,null,null,""]
[null,{"$f":"IF(LEN(A1790)=0,\"\",INDEX('Smelter Look-up'!$A:$A,MATCH($A1790,'Smelter Look-up'!$E:$E,0)))","v":""},{"$f":"IF(LEN(A1790)=0,\"\",INDEX('Smelter Look-up'!$C:$C,MATCH($A1790,'Smelter Look-up'!$E:$E,0)))","v":""},null,{"$f":"IF(ISERROR($V1790),\"\",OFFSET('Smelter Look-up'!$D$4,$V1790-4,0)&\"\")","v":""},{"$f":"IF(ISERROR($V1790),\"\",OFFSET('Smelter Look-up'!$E$4,$V1790-4,0))","v":""},{"$f":"IF(C1790=$X$4,\"Enter smelter details\", IF(ISERROR($V1790),\"\",OFFSET('Smelter Look-up'!$F$4,$V1790-4,0)))","v":""},{"$f":"IF(ISERROR($V1790),\"\",OFFSET('Smelter Look-up'!$G$4,$V1790-4,0))","v":""},{"$f":"IF(ISERROR($V1790),\"\",OFFSET('Smelter Look-up'!$H$4,$V1790-4,0))","v":""},{"$f":"IF(ISERROR($V1790),\"\",OFFSET('Smelter Look-up'!$I$4,$V1790-4,0))","v":""},{"$nulls":7},{"$f":"IF(ISERROR($V1790),\"\",OFFSET('Smelter Look-up'!$C$4,$V1790-4,0)&\"\")","v":""},"",{"$f":"IF(B1790=\"\",\"\",IF(ISERROR(MATCH($J1790,SorP!$B$1:$B$6230,0)),\"\",INDIRECT(\"'SorP'!$A$\"&MATCH($J1790,SorP!$B$1:$B$6230,0))))","v":""},null,{"$f":"IF(C1790=\"\",NA(),MATCH($B1790&$C1790,'Smelter Look-up'!$J:$J,0))","v":{"$error":"#N/A"}},null,0,null,null,null,""]
[null,{"$f":"IF(LEN(A1791)=0,\"\",INDEX('Smelter Look-up'!$A:$A,MATCH($A1791,'Smelter Look-up'!$E:$E,0)))","v":""},{"$f":"IF(LEN(A1791)=0,\"\",INDEX('Smelter Look-up'!$C:$C,MATCH($A1791,'Smelter Look-up'!$E:$E,0)))","v":""},null,{"$f":"IF(ISERROR($V1791),\"\",OFFSET('Smelter Look-up'!$D$4,$V1791-4,0)&\"\")","v":""},{"$f":"IF(ISERROR($V1791),\"\",OFFSET('Smelter Look-up'!$E$4,$V1791-4,0))","v":""},{"$f":"IF(C1791=$X$4,\"Enter smelter details\", IF(ISERROR($V1791),\"\",OFFSET('Smelter Look-up'!$F$4,$V1791-4,0)))","v":""},{"$f":"IF(ISERROR($V1791),\"\",OFFSET('Smelter Look-up'!$G$4,$V1791-4,0))","v":""},{"$f":"IF(ISERROR($V1791),\"\",OFFSET('Smelter Look-up'!$H$4,$V1791-4,0))","v":""},{"$f":"IF(ISERROR($V1791),\"\",OFFSET('Smelter Look-up'!$I$4,$V1791-4,0))","v":""},{"$nulls":7},{"$f":"IF(ISERROR($V1791),\"\",OFFSET('Smelter Look-up'!$C$4,$V1791-4,0)&\"\")","v":""},"",{"$f":"IF(B1791=\"\",\"\",IF(ISERROR(MATCH($J1791,SorP!$B$1:$B$6230,0)),\"\",INDIRECT(\"'SorP'!$A$\"&MATCH($J1791,SorP!$B$1:$B$6230,0))))","v":""},null,{"$f":"IF(C1791=\"\",NA(),MATCH($B1791&$C1791,'Smelter Look-up'!$J:$J,0))","v":{"$error":"#N/A"}},null,0,null,null,null,""]
[null,{"$f":"IF(LEN(A1792)=0,\"\",INDEX('Smelter Look-up'!$A:$A,MATCH($A1792,'Smelter Look-up'!$E:$E,0)))","v":""},{"$f":"IF(LEN(A1792)=0,\"\",INDEX('Smelter Look-up'!$C:$C,MATCH($A1792,'Smelter Look-up'!$E:$E,0)))","v":""},null,{"$f":"IF(ISERROR($V1792),\"\",OFFSET('Smelter Look-up'!$D$4,$V1792-4,0)&\"\")","v":""},{"$f":"IF(ISERROR($V1792),\"\",OFFSET('Smelter Look-up'!$E$4,$V1792-4,0))","v":""},{"$f":"IF(C1792=$X$4,\"Enter smelter details\", IF(ISERROR($V1792),\"\",OFFSET('Smelter Look-up'!$F$4,$V1792-4,0)))","v":""},{"$f":"IF(ISERROR($V1792),\"\",OFFSET('Smelter Look-up'!$G$4,$V1792-4,0))","v":""},{"$f":"IF(ISERROR($V1792),\"\",OFFSET('Smelter Look-up'!$H$4,$V1792-4,0))","v":""},{"$f":"IF(ISERROR($V1792),\"\",OFFSET('Smelter Look-up'!$I$4,$V1792-4,0))","v":""},{"$nulls":7},{"$f":"IF(ISERROR($V1792),\"\",OFFSET('Smelter Look-up'!$C$4,$V1792-4,0)&\"\")","v":""},"",{"$f":"IF(B1792=\"\",\"\",IF(ISERROR(MATCH($J1792,SorP!$B$1:$B$6230,0)),\"\",INDIRECT(\"'SorP'!$A$\"&MATCH($J1792,SorP!$B$1:$B$6230,0))))","v":""},null,{"$f":"IF(C1792=\"\",NA(),MATCH($B1792&$C1792,'Smelter Look-up'!$J:$J,0))","v":{"$error":"#N/A"}},null,0,null,null,null,""]
[null,{"$f":"IF(LEN(A1793)=0,\"\",INDEX('Smelter Look-up'!$A:$A,MATCH($A1793,'Smelter Look-up'!$E:$E,0)))","v":""},{"$f":"IF(LEN(A1793)=0,\"\",INDEX('Smelter Look-up'!$C:$C,MATCH($A1793,'Smelter Look-up'!$E:$E,0)))","v":""},null,{"$f":"IF(ISERROR($V1793),\"\",OFFSET('Smelter Look-up'!$D$4,$V1793-4,0)&\"\")","v":""},{"$f":"IF(ISERROR($V1793),\"\",OFFSET('Smelter Look-up'!$E$4,$V1793-4,0))","v":""},{"$f":"IF(C1793=$X$4,\"Enter smelter details\", IF(ISERROR($V1793),\"\",OFFSET('Smelter Look-up'!$F$4,$V1793-4,0)))","v":""},{"$f":"IF(ISERROR($V1793),\"\",OFFSET('Smelter Look-up'!$G$4,$V1793-4,0))","v":""},{"$f":"IF(ISERROR($V1793),\"\",OFFSET('Smelter Look-up'!$H$4,$V1793-4,0))","v":""},{"$f":"IF(ISERROR($V1793),\"\",OFFSET('Smelter Look-up'!$I$4,$V1793-4,0))","v":""},{"$nulls":7},{"$f":"IF(ISERROR($V1793),\"\",OFFSET('Smelter Look-up'!$C$4,$V1793-4,0)&\"\")","v":""},"",{"$f":"IF(B1793=\"\",\"\",IF(ISERROR(MATCH($J1793,SorP!$B$1:$B$6230,0)),\"\",INDIRECT(\"'SorP'!$A$\"&MATCH($J1793,SorP!$B$1:$B$6230,0))))","v":""},null,{"$f":"IF(C1793=\"\",NA(),MATCH($B1793&$C1793,'Smelter Look-up'!$J:$J,0))","v":{"$error":"#N/A"}},null,0,null,null,null,""]
[null,{"$f":"IF(LEN(A1794)=0,\"\",INDEX('Smelter Look-up'!$A:$A,MATCH($A1794,'Smelter Look-up'!$E:$E,0)))","v":""},{"$f":"IF(LEN(A1794)=0,\"\",INDEX('Smelter Look-up'!$C:$C,MATCH($A1794,'Smelter Look-up'!$E:$E,0)))","v":""},null,{"$f":"IF(ISERROR($V1794),\"\",OFFSET('Smelter Look-up'!$D$4,$V1794-4,0)&\"\")","v":""},{"$f":"IF(ISERROR($V1794),\"\",OFFSET('Smelter Look-up'!$E$4,$V1794-4,0))","v":""},{"$f":"IF(C1794=$X$4,\"Enter smelter details\", IF(ISERROR($V1794),\"\",OFFSET('Smelter Look-up'!$F$4,$V1794-4,0)))","v":""},{"$f":"IF(ISERROR($V1794),\"\",OFFSET('Smelter Look-up'!$G$4,$V1794-4,0))","v":""},{"$f":"IF(ISERROR($V1794),\"\",OFFSET('Smelter Look-up'!$H$4,$V1794-4,0))","v":""},{"$f":"IF(ISERROR($V1794),\"\",OFFSET('Smelter Look-up'!$I$4,$V1794-4,0))","v":""},{"$nulls":7},{"$f":"IF(ISERROR($V1794),\"\",OFFSET('Smelter Look-up'!$C$4,$V1794-4,0)&\"\")","v":""},"",{"$f":"IF(B1794=\"\",\"\",IF(ISERROR(MATCH($J1794,SorP!$B$1:$B$6230,0)),\"\",INDIRECT(\"'SorP'!$A$\"&MATCH($J1794,SorP!$B$1:$B$6230,0))))","v":""},null,{"$f":"IF(C1794=\"\",NA(),MATCH($B1794&$C1794,'Smelter Look-up'!$J:$J,0))","v":{"$error":"#N/A"}},null,0,null,null,null,""]
[null,{"$f":"IF(LEN(A1795)=0,\"\",INDEX('Smelter Look-up'!$A:$A,MATCH($A1795,'Smelter Look-up'!$E:$E,0)))","v":""},{"$f":"IF(LEN(A1795)=0,\"\",INDEX('Smelter Look-up'!$C:$C,MATCH($A1795,'Smelter Look-up'!$E:$E,0)))","v":""},null,{"$f":"IF(ISERROR($V1795),\"\",OFFSET('Smelter Look-up'!$D$4,$V1795-4,0)&\"\")","v":""},{"$f":"IF(ISERROR($V1795),\"\",OFFSET('Smelter Look-up'!$E$4,$V1795-4,0))","v":""},{"$f":"IF(C1795=$X$4,\"Enter smelter details\", IF(ISERROR($V1795),\"\",OFFSET('Smelter Look-up'!$F$4,$V1795-4,0)))","v":""},{"$f":"IF(ISERROR($V1795),\"\",OFFSET('Smelter Look-up'!$G$4,$V1795-4,0))","v":""},{"$f":"IF(ISERROR($V1795),\"\",OFFSET('Smelter Look-up'!$H$4,$V1795-4,0))","v":""},{"$f":"IF(ISERROR($V1795),\"\",OFFSET('Smelter Look-up'!$I$4,$V1795-4,0))","v":""},{"$nulls":7},{"$f":"IF(ISERROR($V1795),\"\",OFFSET('Smelter Look-up'!$C$4,$V1795-4,0)&\"\")","v":""},"",{"$f":"IF(B1795=\"\",\"\",IF(ISERROR(MATCH($J1795,SorP!$B$1:$B$6230,0)),\"\",INDIRECT(\"'SorP'!$A$\"&MATCH($J1795,SorP!$B$1:$B$6230,0))))","v":""},null,{"$f":"IF(C1795=\"\",NA(),MATCH($B1795&$C1795,'Smelter Look-up'!$J:$J,0))","v":{"$error":"#N/A"}},null,0,null,null,null,""]
[null,{"$f":"IF(LEN(A1796)=0,\"\",INDEX('Smelter Look-up'!$A:$A,MATCH($A1796,'Smelter Look-up'!$E:$E,0)))","v":""},{"$f":"IF(LEN(A1796)=0,\"\",INDEX('Smelter Look-up'!$C:$C,MATCH($A1796,'Smelter Look-up'!$E:$E,0)))","v":""},null,{"$f":"IF(ISERROR($V1796),\"\",OFFSET('Smelter Look-up'!$D$4,$V1796-4,0)&\"\")","v":""},{"$f":"IF(ISERROR($V1796),\"\",OFFSET('Smelter Look-up'!$E$4,$V1796-4,0))","v":""},{"$f":"IF(C1796=$X$4,\"Enter smelter details\", IF(ISERROR($V1796),\"\",OFFSET('Smelter Look-up'!$F$4,$V1796-4,0)))","v":""},{"$f":"IF(ISERROR($V1796),\"\",OFFSET('Smelter Look-up'!$G$4,$V1796-4,0))","v":""},{"$f":"IF(ISERROR($V1796),\"\",OFFSET('Smelter Look-up'!$H$4,$V1796-4,0))","v":""},{"$f":"IF(ISERROR($V1796),\"\",OFFSET('Smelter Look-up'!$I$4,$V1796-4,0))","v":""},{"$nulls":7},{"$f":"IF(ISERROR($V1796),\"\",OFFSET('Smelter Look-up'!$C$4,$V1796-4,0)&\"\")","v":""},"",{"$f":"IF(B1796=\"\",\"\",IF(ISERROR(MATCH($J1796,SorP!$B$1:$B$6230,0)),\"\",INDIRECT(\"'SorP'!$A$\"&MATCH($J1796,SorP!$B$1:$B$6230,0))))","v":""},null,{"$f":"IF(C1796=\"\",NA(),MATCH($B1796&$C1796,'Smelter Look-up'!$J:$J,0))","v":{"$error":"#N/A"}},null,0,null,null,null,""]
[null,{"$f":"IF(LEN(A1797)=0,\"\",INDEX('Smelter Look-up'!$A:$A,MATCH($A1797,'Smelter Look-up'!$E:$E,0)))","v":""},{"$f":"IF(LEN(A1797)=0,\"\",INDEX('Smelter Look-up'!$C:$C,MATCH($A1797,'Smelter Look-up'!$E:$E,0)))","v":""},null,{"$f":"IF(ISERROR($V1797),\"\",OFFSET('Smelter Look-up'!$D$4,$V1797-4,0)&\"\")","v":""},{"$f":"IF(ISERROR($V1797),\"\",OFFSET('Smelter Look-up'!$E$4,$V1797-4,0))","v":""},{"$f":"IF(C1797=$X$4,\"Enter smelter details\", IF(ISERROR($V1797),\"\",OFFSET('Smelter Look-up'!$F$4,$V1797-4,0)))","v":""},{"$f":"IF(ISERROR($V1797),\"\",OFFSET('Smelter Look-up'!$G$4,$V1797-4,0))","v":""},{"$f":"IF(ISERROR($V1797),\"\",OFFSET('Smelter Look-up'!$H$4,$V1797-4,0))","v":""},{"$f":"IF(ISERROR($V1797),\"\",OFFSET('Smelter Look-up'!$I$4,$V1797-4,0))","v":""},{"$nulls":7},{"$f":"IF(ISERROR($V1797),\"\",OFFSET('Smelter Look-up'!$C$4,$V1797-4,0)&\"\")","v":""},"",{"$f":"IF(B1797=\"\",\"\",IF(ISERROR(MATCH($J1797,SorP!$B$1:$B$6230,0)),\"\",INDIRECT(\"'SorP'!$A$\"&MATCH($J1797,SorP!$B$1:$B$6230,0))))","v":""},null,{"$f":"IF(C1797=\"\",NA(),MATCH($B1797&$C1797,'Smelter Look-up'!$J:$J,0))","v":{"$error":"#N/A"}},null,0,null,null,null,""]
[null,{"$f":"IF(LEN(A1798)=0,\"\",INDEX('Smelter Look-up'!$A:$A,MATCH($A1798,'Smelter Look-up'!$E:$E,0)))","v":""},{"$f":"IF(LEN(A1798)=0,\"\",INDEX('Smelter Look-up'!$C:$C,MATCH($A1798,'Smelter Look-up'!$E:$E,0)))","v":""},null,{"$f":"IF(ISERROR($V1798),\"\",OFFSET('Smelter Look-up'!$D$4,$V1798-4,0)&\"\")","v":""},{"$f":"IF(ISERROR($V1798),\"\",OFFSET('Smelter Look-up'!$E$4,$V1798-4,0))","v":""},{"$f":"IF(C1798=$X$4,\"Enter smelter details\", IF(ISERROR($V1798),\"\",OFFSET('Smelter Look-up'!$F$4,$V1798-4,0)))","v":""},{"$f":"IF(ISERROR($V1798),\"\",OFFSET('Smelter Look-up'!$G$4,$V1798-4,0))","v":""},{"$f":"IF(ISERROR($V1798),\"\",OFFSET('Smelter Look-up'!$H$4,$V1798-4,0))","v":""},{"$f":"IF(ISERROR($V1798),\"\",OFFSET('Smelter Look-up'!$I$4,$V1798-4,0))","v":""},{"$nulls":7},{"$f":"IF(ISERROR($V1798),\"\",OFFSET('Smelter Look-up'!$C$4,$V1798-4,0)&\"\")","v":""},"",{"$f":"IF(B1798=\"\",\"\",IF(ISERROR(MATCH($J1798,SorP!$B$1:$B$6230,0)),\"\",INDIRECT(\"'SorP'!$A$\"&MATCH($J1798,SorP!$B$1:$B$6230,0))))","v":""},null,{"$f":"IF(C1798=\"\",NA(),MATCH($B1798&$C1798,'Smelter Look-up'!$J:$J,0))","v":{"$error":"#N/A"}},null,0,null,null,null,""]
[null,{"$f":"IF(LEN(A1799)=0,\"\",INDEX('Smelter Look-up'!$A:$A,MATCH($A1799,'Smelter Look-up'!$E:$E,0)))","v":""},{"$f":"IF(LEN(A1799)=0,\"\",INDEX('Smelter Look-up'!$C:$C,MATCH($A1799,'Smelter Look-up'!$E:$E,0)))","v":""},null,{"$f":"IF(ISERROR($V1799),\"\",OFFSET('Smelter Look-up'!$D$4,$V1799-4,0)&\"\")","v":""},{"$f":"IF(ISERROR($V1799),\"\",OFFSET('Smelter Look-up'!$E$4,$V1799-4,0))","v":""},{"$f":"IF(C1799=$X$4,\"Enter smelter details\", IF(ISERROR($V1799),\"\",OFFSET('Smelter Look-up'!$F$4,$V1799-4,0)))","v":""},{"$f":"IF(ISERROR($V1799),\"\",OFFSET('Smelter Look-up'!$G$4,$V1799-4,0))","v":""},{"$f":"IF(ISERROR($V1799),\"\",OFFSET('Smelter Look-up'!$H$4,$V1799-4,0))","v":""},{"$f":"IF(ISERROR($V1799),\"\",OFFSET('Smelter Look-up'!$I$4,$V1799-4,0))","v":""},{"$nulls":7},{"$f":"IF(ISERROR($V1799),\"\",OFFSET('Smelter Look-up'!$C$4,$V1799-4,0)&\"\")","v":""},"",{"$f":"IF(B1799=\"\",\"\",IF(ISERROR(MATCH($J1799,SorP!$B$1:$B$6230,0)),\"\",INDIRECT(\"'SorP'!$A$\"&MATCH($J1799,SorP!$B$1:$B$6230,0))))","v":""},null,{"$f":"IF(C1799=\"\",NA(),MATCH($B1799&$C1799,'Smelter Look-up'!$J:$J,0))","v":{"$error":"#N/A"}},null,0,null,null,null,""]
[null,{"$f":"IF(LEN(A1800)=0,\"\",INDEX('Smelter Look-up'!$A:$A,MATCH($A1800,'Smelter Look-up'!$E:$E,0)))","v":""},{"$f":"IF(LEN(A1800)=0,\"\",INDEX('Smelter Look-up'!$C:$C,MATCH($A1800,'Smelter Look-up'!$E:$E,0)))","v":""},null,{"$f":"IF(ISERROR($V1800),\"\",OFFSET('Smelter Look-up'!$D$4,$V1800-4,0)&\"\")","v":""},{"$f":"IF(ISERROR($V1800),\"\",OFFSET('Smelter Look-up'!$E$4,$V1800-4,0))","v":""},{"$f":"IF(C1800=$X$4,\"Enter smelter details\", IF(ISERROR($V1800),\"\",OFFSET('Smelter Look-up'!$F$4,$V1800-4,0)))","v":""},{"$f":"IF(ISERROR($V1800),\"\",OFFSET('Smelter Look-up'!$G$4,$V1800-4,0))","v":""},{"$f":"IF(ISERROR($V1800),\"\",OFFSET('Smelter Look-up'!$H$4,$V1800-4,0))","v":""},{"$f":"IF(ISERROR($V1800),\"\",OFFSET('Smelter Look-up'!$I$4,$V1800-4,0))","v":""},{"$nulls":7},{"$f":"IF(ISERROR($V1800),\"\",OFFSET('Smelter Look-up'!$C$4,$V1800-4,0)&\"\")","v":""},"",{"$f":"IF(B1800=\"\",\"\",IF(ISERROR(MATCH($J1800,SorP!$B$1:$B$6230,0)),\"\",INDIRECT(\"'SorP'!$A$\"&MATCH($J1800,SorP!$B$1:$B$6230,0))))","v":""},null,{"$f":"IF(C1800=\"\",NA(),MATCH($B1800&$C1800,'Smelter Look-up'!$J:$J,0))","v":{"$error":"#N/A"}},null,0,null,null,null,""]
[null,{"$f":"IF(LEN(A1801)=0,\"\",INDEX('Smelter Look-up'!$A:$A,MATCH($A1801,'Smelter Look-up'!$E:$E,0)))","v":""},{"$f":"IF(LEN(A1801)=0,\"\",INDEX('Smelter Look-up'!$C:$C,MATCH($A1801,'Smelter Look-up'!$E:$E,0)))","v":""},null,{"$f":"IF(ISERROR($V1801),\"\",OFFSET('Smelter Look-up'!$D$4,$V1801-4,0)&\"\")","v":""},{"$f":"IF(ISERROR($V1801),\"\",OFFSET('Smelter Look-up'!$E$4,$V1801-4,0))","v":""},{"$f":"IF(C1801=$X$4,\"Enter smelter details\", IF(ISERROR($V1801),\"\",OFFSET('Smelter Look-up'!$F$4,$V1801-4,0)))","v":""},{"$f":"IF(ISERROR($V1801),\"\",OFFSET('Smelter Look-up'!$G$4,$V1801-4,0))","v":""},{"$f":"IF(ISERROR($V1801),\"\",OFFSET('Smelter Look-up'!$H$4,$V1801-4,0))","v":""},{"$f":"IF(ISERROR($V1801),\"\",OFFSET('Smelter Look-up'!$I$4,$V1801-4,0))","v":""},{"$nulls":7},{"$f":"IF(ISERROR($V1801),\"\",OFFSET('Smelter Look-up'!$C$4,$V1801-4,0)&\"\")","v":""},"",{"$f":"IF(B1801=\"\",\"\",IF(ISERROR(MATCH($J1801,SorP!$B$1:$B$6230,0)),\"\",INDIRECT(\"'SorP'!$A$\"&MATCH($J1801,SorP!$B$1:$B$6230,0))))","v":""},null,{"$f":"IF(C1801=\"\",NA(),MATCH($B1801&$C1801,'Smelter Look-up'!$J:$J,0))","v":{"$error":"#N/A"}},null,0,null,null,null,""]
[null,{"$f":"IF(LEN(A1802)=0,\"\",INDEX('Smelter Look-up'!$A:$A,MATCH($A1802,'Smelter Look-up'!$E:$E,0)))","v":""},{"$f":"IF(LEN(A1802)=0,\"\",INDEX('Smelter Look-up'!$C:$C,MATCH($A1802,'Smelter Look-up'!$E:$E,0)))","v":""},null,{"$f":"IF(ISERROR($V1802),\"\",OFFSET('Smelter Look-up'!$D$4,$V1802-4,0)&\"\")","v":""},{"$f":"IF(ISERROR($V1802),\"\",OFFSET('Smelter Look-up'!$E$4,$V1802-4,0))","v":""},{"$f":"IF(C1802=$X$4,\"Enter smelter details\", IF(ISERROR($V1802),\"\",OFFSET('Smelter Look-up'!$F$4,$V1802-4,0)))","v":""},{"$f":"IF(ISERROR($V1802),\"\",OFFSET('Smelter Look-up'!$G$4,$V1802-4,0))","v":""},{"$f":"IF(ISERROR($V1802),\"\",OFFSET('Smelter Look-up'!$H$4,$V1802-4,0))","v":""},{"$f":"IF(ISERROR($V1802),\"\",OFFSET('Smelter Look-up'!$I$4,$V1802-4,0))","v":""},{"$nulls":7},{"$f":"IF(ISERROR($V1802),\"\",OFFSET('Smelter Look-up'!$C$4,$V1802-4,0)&\"\")","v":""},"",{"$f":"IF(B1802=\"\",\"\",IF(ISERROR(MATCH($J1802,SorP!$B$1:$B$6230,0)),\"\",INDIRECT(\"'SorP'!$A$\"&MATCH($J1802,SorP!$B$1:$B$6230,0))))","v":""},null,{"$f":"IF(C1802=\"\",NA(),MATCH($B1802&$C1802,'Smelter Look-up'!$J:$J,0))","v":{"$error":"#N/A"}},null,0,null,null,null,""]
[null,{"$f":"IF(LEN(A1803)=0,\"\",INDEX('Smelter Look-up'!$A:$A,MATCH($A1803,'Smelter Look-up'!$E:$E,0)))","v":""},{"$f":"IF(LEN(A1803)=0,\"\",INDEX('Smelter Look-up'!$C:$C,MATCH($A1803,'Smelter Look-up'!$E:$E,0)))","v":""},null,{"$f":"IF(ISERROR($V1803),\"\",OFFSET('Smelter Look-up'!$D$4,$V1803-4,0)&\"\")","v":""},{"$f":"IF(ISERROR($V1803),\"\",OFFSET('Smelter Look-up'!$E$4,$V1803-4,0))","v":""},{"$f":"IF(C1803=$X$4,\"Enter smelter details\", IF(ISERROR($V1803),\"\",OFFSET('Smelter Look-up'!$F$4,$V1803-4,0)))","v":""},{"$f":"IF(ISERROR($V1803),\"\",OFFSET('Smelter Look-up'!$G$4,$V1803-4,0))","v":""},{"$f":"IF(ISERROR($V1803),\"\",OFFSET('Smelter Look-up'!$H$4,$V1803-4,0))","v":""},{"$f":"IF(ISERROR($V1803),\"\",OFFSET('Smelter Look-up'!$I$4,$V1803-4,0))","v":""},{"$nulls":7},{"$f":"IF(ISERROR($V1803),\"\",OFFSET('Smelter Look-up'!$C$4,$V1803-4,0)&\"\")","v":""},"",{"$f":"IF(B1803=\"\",\"\",IF(ISERROR(MATCH($J1803,SorP!$B$1:$B$6230,0)),\"\",INDIRECT(\"'SorP'!$A$\"&MATCH($J1803,SorP!$B$1:$B$6230,0))))","v":""},null,{"$f":"IF(C1803=\"\",NA(),MATCH($B1803&$C1803,'Smelter Look-up'!$J:$J,0))","v":{"$error":"#N/A"}},null,0,null,null,null,""]
[null,{"$f":"IF(LEN(A1804)=0,\"\",INDEX('Smelter Look-up'!$A:$A,MATCH($A1804,'Smelter Look-up'!$E:$E,0)))","v":""},{"$f":"IF(LEN(A1804)=0,\"\",INDEX('Smelter Look-up'!$C:$C,MATCH($A1804,'Smelter Look-up'!$E:$E,0)))","v":""},null,{"$f":"IF(ISERROR($V1804),\"\",OFFSET('Smelter Look-up'!$D$4,$V1804-4,0)&\"\")","v":""},{"$f":"IF(ISERROR($V1804),\"\",OFFSET('Smelter Look-up'!$E$4,$V1804-4,0))","v":""},{"$f":"IF(C1804=$X$4,\"Enter smelter details\", IF(ISERROR($V1804),\"\",OFFSET('Smelter Look-up'!$F$4,$V1804-4,0)))","v":""},{"$f":"IF(ISERROR($V1804),\"\",OFFSET('Smelter Look-up'!$G$4,$V1804-4,0))","v":""},{"$f":"IF(ISERROR($V1804),\"\",OFFSET('Smelter Look-up'!$H$4,$V1804-4,0))","v":""},{"$f":"IF(ISERROR($V1804),\"\",OFFSET('Smelter Look-up'!$I$4,$V1804-4,0))","v":""},{"$nulls":7},{"$f":"IF(ISERROR($V1804),\"\",OFFSET('Smelter Look-up'!$C$4,$V1804-4,0)&\"\")","v":""},"",{"$f":"IF(B1804=\"\",\"\",IF(ISERROR(MATCH($J1804,SorP!$B$1:$B$6230,0)),\"\",INDIRECT(\"'SorP'!$A$\"&MATCH($J1804,SorP!$B$1:$B$6230,0))))","v":""},null,{"$f":"IF(C1804=\"\",NA(),MATCH($B1804&$C1804,'Smelter Look-up'!$J:$J,0))","v":{"$error":"#N/A"}},null,0,null,null,null,""]
[null,{"$f":"IF(LEN(A1805)=0,\"\",INDEX('Smelter Look-up'!$A:$A,MATCH($A1805,'Smelter Look-up'!$E:$E,0)))","v":""},{"$f":"IF(LEN(A1805)=0,\"\",INDEX('Smelter Look-up'!$C:$C,MATCH($A1805,'Smelter Look-up'!$E:$E,0)))","v":""},null,{"$f":"IF(ISERROR($V1805),\"\",OFFSET('Smelter Look-up'!$D$4,$V1805-4,0)&\"\")","v":""},{"$f":"IF(ISERROR($V1805),\"\",OFFSET('Smelter Look-up'!$E$4,$V1805-4,0))","v":""},{"$f":"IF(C1805=$X$4,\"Enter smelter details\", IF(ISERROR($V1805),\"\",OFFSET('Smelter Look-up'!$F$4,$V1805-4,0)))","v":""},{"$f":"IF(ISERROR($V1805),\"\",OFFSET('Smelter Look-up'!$G$4,$V1805-4,0))","v":""},{"$f":"IF(ISERROR($V1805),\"\",OFFSET('Smelter Look-up'!$H$4,$V1805-4,0))","v":""},{"$f":"IF(ISERROR($V1805),\"\",OFFSET('Smelter Look-up'!$I$4,$V1805-4,0))","v":""},{"$nulls":7},{"$f":"IF(ISERROR($V1805),\"\",OFFSET('Smelter Look-up'!$C$4,$V1805-4,0)&\"\")","v":""},"",{"$f":"IF(B1805=\"\",\"\",IF(ISERROR(MATCH($J1805,SorP!$B$1:$B$6230,0)),\"\",INDIRECT(\"'SorP'!$A$\"&MATCH($J1805,SorP!$B$1:$B$6230,0))))","v":""},null,{"$f":"IF(C1805=\"\",NA(),MATCH($B1805&$C1805,'Smelter Look-up'!$J:$J,0))","v":{"$error":"#N/A"}},null,0,null,null,null,""]
[null,{"$f":"IF(LEN(A1806)=0,\"\",INDEX('Smelter Look-up'!$A:$A,MATCH($A1806,'Smelter Look-up'!$E:$E,0)))","v":""},{"$f":"IF(LEN(A1806)=0,\"\",INDEX('Smelter Look-up'!$C:$C,MATCH($A1806,'Smelter Look-up'!$E:$E,0)))","v":""},null,{"$f":"IF(ISERROR($V1806),\"\",OFFSET('Smelter Look-up'!$D$4,$V1806-4,0)&\"\")","v":""},{"$f":"IF(ISERROR($V1806),\"\",OFFSET('Smelter Look-up'!$E$4,$V1806-4,0))","v":""},{"$f":"IF(C1806=$X$4,\"Enter smelter details\", IF(ISERROR($V1806),\"\",OFFSET('Smelter Look-up'!$F$4,$V1806-4,0)))","v":""},{"$f":"IF(ISERROR($V1806),\"\",OFFSET('Smelter Look-up'!$G$4,$V1806-4,0))","v":""},{"$f":"IF(ISERROR($V1806),\"\",OFFSET('Smelter Look-up'!$H$4,$V1806-4,0))","v":""},{"$f":"IF(ISERROR($V1806),\"\",OFFSET('Smelter Look-up'!$I$4,$V1806-4,0))","v":""},{"$nulls":7},{"$f":"IF(ISERROR($V1806),\"\",OFFSET('Smelter Look-up'!$C$4,$V1806-4,0)&\"\")","v":""},"",{"$f":"IF(B1806=\"\",\"\",IF(ISERROR(MATCH($J1806,SorP!$B$1:$B$6230,0)),\"\",INDIRECT(\"'SorP'!$A$\"&MATCH($J1806,SorP!$B$1:$B$6230,0))))","v":""},null,{"$f":"IF(C1806=\"\",NA(),MATCH($B1806&$C1806,'Smelter Look-up'!$J:$J,0))","v":{"$error":"#N/A"}},null,0,null,null,null,""]
[null,{"$f":"IF(LEN(A1807)=0,\"\",INDEX('Smelter Look-up'!$A:$A,MATCH($A1807,'Smelter Look-up'!$E:$E,0)))","v":""},{"$f":"IF(LEN(A1807)=0,\"\",INDEX('Smelter Look-up'!$C:$C,MATCH($A1807,'Smelter Look-up'!$E:$E,0)))","v":""},null,{"$f":"IF(ISERROR($V1807),\"\",OFFSET('Smelter Look-up'!$D$4,$V1807-4,0)&\"\")","v":""},{"$f":"IF(ISERROR($V1807),\"\",OFFSET('Smelter Look-up'!$E$4,$V1807-4,0))","v":""},{"$f":"IF(C1807=$X$4,\"Enter smelter details\", IF(ISERROR($V1807),\"\",OFFSET('Smelter Look-up'!$F$4,$V1807-4,0)))","v":""},{"$f":"IF(ISERROR($V1807),\"\",OFFSET('Smelter Look-up'!$G$4,$V1807-4,0))","v":""},{"$f":"IF(ISERROR($V1807),\"\",OFFSET('Smelter Look-up'!$H$4,$V1807-4,0))","v":""},{"$f":"IF(ISERROR($V1807),\"\",OFFSET('Smelter Look-up'!$I$4,$V1807-4,0))","v":""},{"$nulls":7},{"$f":"IF(ISERROR($V1807),\"\",OFFSET('Smelter Look-up'!$C$4,$V1807-4,0)&\"\")","v":""},"",{"$f":"IF(B1807=\"\",\"\",IF(ISERROR(MATCH($J1807,SorP!$B$1:$B$6230,0)),\"\",INDIRECT(\"'SorP'!$A$\"&MATCH($J1807,SorP!$B$1:$B$6230,0))))","v":""},null,{"$f":"IF(C1807=\"\",NA(),MATCH($B1807&$C1807,'Smelter Look-up'!$J:$J,0))","v":{"$error":"#N/A"}},null,0,null,null,null,""]
[null,{"$f":"IF(LEN(A1808)=0,\"\",INDEX('Smelter Look-up'!$A:$A,MATCH($A1808,'Smelter Look-up'!$E:$E,0)))","v":""},{"$f":"IF(LEN(A1808)=0,\"\",INDEX('Smelter Look-up'!$C:$C,MATCH($A1808,'Smelter Look-up'!$E:$E,0)))","v":""},null,{"$f":"IF(ISERROR($V1808),\"\",OFFSET('Smelter Look-up'!$D$4,$V1808-4,0)&\"\")","v":""},{"$f":"IF(ISERROR($V1808),\"\",OFFSET('Smelter Look-up'!$E$4,$V1808-4,0))","v":""},{"$f":"IF(C1808=$X$4,\"Enter smelter details\", IF(ISERROR($V1808),\"\",OFFSET('Smelter Look-up'!$F$4,$V1808-4,0)))","v":""},{"$f":"IF(ISERROR($V1808),\"\",OFFSET('Smelter Look-up'!$G$4,$V1808-4,0))","v":""},{"$f":"IF(ISERROR($V1808),\"\",OFFSET('Smelter Look-up'!$H$4,$V1808-4,0))","v":""},{"$f":"IF(ISERROR($V1808),\"\",OFFSET('Smelter Look-up'!$I$4,$V1808-4,0))","v":""},{"$nulls":7},{"$f":"IF(ISERROR($V1808),\"\",OFFSET('Smelter Look-up'!$C$4,$V1808-4,0)&\"\")","v":""},"",{"$f":"IF(B1808=\"\",\"\",IF(ISERROR(MATCH($J1808,SorP!$B$1:$B$6230,0)),\"\",INDIRECT(\"'SorP'!$A$\"&MATCH($J1808,SorP!$B$1:$B$6230,0))))","v":""},null,{"$f":"IF(C1808=\"\",NA(),MATCH($B1808&$C1808,'Smelter Look-up'!$J:$J,0))","v":{"$error":"#N/A"}},null,0,null,null,null,""]
[null,{"$f":"IF(LEN(A1809)=0,\"\",INDEX('Smelter Look-up'!$A:$A,MATCH($A1809,'Smelter Look-up'!$E:$E,0)))","v":""},{"$f":"IF(LEN(A1809)=0,\"\",INDEX('Smelter Look-up'!$C:$C,MATCH($A1809,'Smelter Look-up'!$E:$E,0)))","v":""},null,{"$f":"IF(ISERROR($V1809),\"\",OFFSET('Smelter Look-up'!$D$4,$V1809-4,0)&\"\")","v":""},{"$f":"IF(ISERROR($V1809),\"\",OFFSET('Smelter Look-up'!$E$4,$V1809-4,0))","v":""},{"$f":"IF(C1809=$X$4,\"Enter smelter details\", IF(ISERROR($V1809),\"\",OFFSET('Smelter Look-up'!$F$4,$V1809-4,0)))","v":""},{"$f":"IF(ISERROR($V1809),\"\",OFFSET('Smelter Look-up'!$G$4,$V1809-4,0))","v":""},{"$f":"IF(ISERROR($V1809),\"\",OFFSET('Smelter Look-up'!$H$4,$V1809-4,0))","v":""},{"$f":"IF(ISERROR($V1809),\"\",OFFSET('Smelter Look-up'!$I$4,$V1809-4,0))","v":""},{"$nulls":7},{"$f":"IF(ISERROR($V1809),\"\",OFFSET('Smelter Look-up'!$C$4,$V1809-4,0)&\"\")","v":""},"",{"$f":"IF(B1809=\"\",\"\",IF(ISERROR(MATCH($J1809,SorP!$B$1:$B$6230,0)),\"\",INDIRECT(\"'SorP'!$A$\"&MATCH($J1809,SorP!$B$1:$B$6230,0))))","v":""},null,{"$f":"IF(C1809=\"\",NA(),MATCH($B1809&$C1809,'Smelter Look-up'!$J:$J,0))","v":{"$error":"#N/A"}},null,0,null,null,null,""]
[null,{"$f":"IF(LEN(A1810)=0,\"\",INDEX('Smelter Look-up'!$A:$A,MATCH($A1810,'Smelter Look-up'!$E:$E,0)))","v":""},{"$f":"IF(LEN(A1810)=0,\"\",INDEX('Smelter Look-up'!$C:$C,MATCH($A1810,'Smelter Look-up'!$E:$E,0)))","v":""},null,{"$f":"IF(ISERROR($V1810),\"\",OFFSET('Smelter Look-up'!$D$4,$V1810-4,0)&\"\")","v":""},{"$f":"IF(ISERROR($V1810),\"\",OFFSET('Smelter Look-up'!$E$4,$V1810-4,0))","v":""},{"$f":"IF(C1810=$X$4,\"Enter smelter details\", IF(ISERROR($V1810),\"\",OFFSET('Smelter Look-up'!$F$4,$V1810-4,0)))","v":""},{"$f":"IF(ISERROR($V1810),\"\",OFFSET('Smelter Look-up'!$G$4,$V1810-4,0))","v":""},{"$f":"IF(ISERROR($V1810),\"\",OFFSET('Smelter Look-up'!$H$4,$V1810-4,0))","v":""},{"$f":"IF(ISERROR($V1810),\"\",OFFSET('Smelter Look-up'!$I$4,$V1810-4,0))","v":""},{"$nulls":7},{"$f":"IF(ISERROR($V1810),\"\",OFFSET('Smelter Look-up'!$C$4,$V1810-4,0)&\"\")","v":""},"",{"$f":"IF(B1810=\"\",\"\",IF(ISERROR(MATCH($J1810,SorP!$B$1:$B$6230,0)),\"\",INDIRECT(\"'SorP'!$A$\"&MATCH($J1810,SorP!$B$1:$B$6230,0))))","v":""},null,{"$f":"IF(C1810=\"\",NA(),MATCH($B1810&$C1810,'Smelter Look-up'!$J:$J,0))","v":{"$error":"#N/A"}},null,0,null,null,null,""]
[null,{"$f":"IF(LEN(A1811)=0,\"\",INDEX('Smelter Look-up'!$A:$A,MATCH($A1811,'Smelter Look-up'!$E:$E,0)))","v":""},{"$f":"IF(LEN(A1811)=0,\"\",INDEX('Smelter Look-up'!$C:$C,MATCH($A1811,'Smelter Look-up'!$E:$E,0)))","v":""},null,{"$f":"IF(ISERROR($V1811),\"\",OFFSET('Smelter Look-up'!$D$4,$V1811-4,0)&\"\")","v":""},{"$f":"IF(ISERROR($V1811),\"\",OFFSET('Smelter Look-up'!$E$4,$V1811-4,0))","v":""},{"$f":"IF(C1811=$X$4,\"Enter smelter details\", IF(ISERROR($V1811),\"\",OFFSET('Smelter Look-up'!$F$4,$V1811-4,0)))","v":""},{"$f":"IF(ISERROR($V1811),\"\",OFFSET('Smelter Look-up'!$G$4,$V1811-4,0))","v":""},{"$f":"IF(ISERROR($V1811),\"\",OFFSET('Smelter Look-up'!$H$4,$V1811-4,0))","v":""},{"$f":"IF(ISERROR($V1811),\"\",OFFSET('Smelter Look-up'!$I$4,$V1811-4,0))","v":""},{"$nulls":7},{"$f":"IF(ISERROR($V1811),\"\",OFFSET('Smelter Look-up'!$C$4,$V1811-4,0)&\"\")","v":""},"",{"$f":"IF(B1811=\"\",\"\",IF(ISERROR(MATCH($J1811,SorP!$B$1:$B$6230,0)),\"\",INDIRECT(\"'SorP'!$A$\"&MATCH($J1811,SorP!$B$1:$B$6230,0))))","v":""},null,{"$f":"IF(C1811=\"\",NA(),MATCH($B1811&$C1811,'Smelter Look-up'!$J:$J,0))","v":{"$error":"#N/A"}},null,0,null,null,null,""]
[null,{"$f":"IF(LEN(A1812)=0,\"\",INDEX('Smelter Look-up'!$A:$A,MATCH($A1812,'Smelter Look-up'!$E:$E,0)))","v":""},{"$f":"IF(LEN(A1812)=0,\"\",INDEX('Smelter Look-up'!$C:$C,MATCH($A1812,'Smelter Look-up'!$E:$E,0)))","v":""},null,{"$f":"IF(ISERROR($V1812),\"\",OFFSET('Smelter Look-up'!$D$4,$V1812-4,0)&\"\")","v":""},{"$f":"IF(ISERROR($V1812),\"\",OFFSET('Smelter Look-up'!$E$4,$V1812-4,0))","v":""},{"$f":"IF(C1812=$X$4,\"Enter smelter details\", IF(ISERROR($V1812),\"\",OFFSET('Smelter Look-up'!$F$4,$V1812-4,0)))","v":""},{"$f":"IF(ISERROR($V1812),\"\",OFFSET('Smelter Look-up'!$G$4,$V1812-4,0))","v":""},{"$f":"IF(ISERROR($V1812),\"\",OFFSET('Smelter Look-up'!$H$4,$V1812-4,0))","v":""},{"$f":"IF(ISERROR($V1812),\"\",OFFSET('Smelter Look-up'!$I$4,$V1812-4,0))","v":""},{"$nulls":7},{"$f":"IF(ISERROR($V1812),\"\",OFFSET('Smelter Look-up'!$C$4,$V1812-4,0)&\"\")","v":""},"",{"$f":"IF(B1812=\"\",\"\",IF(ISERROR(MATCH($J1812,SorP!$B$1:$B$6230,0)),\"\",INDIRECT(\"'SorP'!$A$\"&MATCH($J1812,SorP!$B$1:$B$6230,0))))","v":""},null,{"$f":"IF(C1812=\"\",NA(),MATCH($B1812&$C1812,'Smelter Look-up'!$J:$J,0))","v":{"$error":"#N/A"}},null,0,null,null,null,""]
[null,{"$f":"IF(LEN(A1813)=0,\"\",INDEX('Smelter Look-up'!$A:$A,MATCH($A1813,'Smelter Look-up'!$E:$E,0)))","v":""},{"$f":"IF(LEN(A1813)=0,\"\",INDEX('Smelter Look-up'!$C:$C,MATCH($A1813,'Smelter Look-up'!$E:$E,0)))","v":""},null,{"$f":"IF(ISERROR($V1813),\"\",OFFSET('Smelter Look-up'!$D$4,$V1813-4,0)&\"\")","v":""},{"$f":"IF(ISERROR($V1813),\"\",OFFSET('Smelter Look-up'!$E$4,$V1813-4,0))","v":""},{"$f":"IF(C1813=$X$4,\"Enter smelter details\", IF(ISERROR($V1813),\"\",OFFSET('Smelter Look-up'!$F$4,$V1813-4,0)))","v":""},{"$f":"IF(ISERROR($V1813),\"\",OFFSET('Smelter Look-up'!$G$4,$V1813-4,0))","v":""},{"$f":"IF(ISERROR($V1813),\"\",OFFSET('Smelter Look-up'!$H$4,$V1813-4,0))","v":""},{"$f":"IF(ISERROR($V1813),\"\",OFFSET('Smelter Look-up'!$I$4,$V1813-4,0))","v":""},{"$nulls":7},{"$f":"IF(ISERROR($V1813),\"\",OFFSET('Smelter Look-up'!$C$4,$V1813-4,0)&\"\")","v":""},"",{"$f":"IF(B1813=\"\",\"\",IF(ISERROR(MATCH($J1813,SorP!$B$1:$B$6230,0)),\"\",INDIRECT(\"'SorP'!$A$\"&MATCH($J1813,SorP!$B$1:$B$6230,0))))","v":""},null,{"$f":"IF(C1813=\"\",NA(),MATCH($B1813&$C1813,'Smelter Look-up'!$J:$J,0))","v":{"$error":"#N/A"}},null,0,null,null,null,""]
[null,{"$f":"IF(LEN(A1814)=0,\"\",INDEX('Smelter Look-up'!$A:$A,MATCH($A1814,'Smelter Look-up'!$E:$E,0)))","v":""},{"$f":"IF(LEN(A1814)=0,\"\",INDEX('Smelter Look-up'!$C:$C,MATCH($A1814,'Smelter Look-up'!$E:$E,0)))","v":""},null,{"$f":"IF(ISERROR($V1814),\"\",OFFSET('Smelter Look-up'!$D$4,$V1814-4,0)&\"\")","v":""},{"$f":"IF(ISERROR($V1814),\"\",OFFSET('Smelter Look-up'!$E$4,$V1814-4,0))","v":""},{"$f":"IF(C1814=$X$4,\"Enter smelter details\", IF(ISERROR($V1814),\"\",OFFSET('Smelter Look-up'!$F$4,$V1814-4,0)))","v":""},{"$f":"IF(ISERROR($V1814),\"\",OFFSET('Smelter Look-up'!$G$4,$V1814-4,0))","v":""},{"$f":"IF(ISERROR($V1814),\"\",OFFSET('Smelter Look-up'!$H$4,$V1814-4,0))","v":""},{"$f":"IF(ISERROR($V1814),\"\",OFFSET('Smelter Look-up'!$I$4,$V1814-4,0))","v":""},{"$nulls":7},{"$f":"IF(ISERROR($V1814),\"\",OFFSET('Smelter Look-up'!$C$4,$V1814-4,0)&\"\")","v":""},"",{"$f":"IF(B1814=\"\",\"\",IF(ISERROR(MATCH($J1814,SorP!$B$1:$B$6230,0)),\"\",INDIRECT(\"'SorP'!$A$\"&MATCH($J1814,SorP!$B$1:$B$6230,0))))","v":""},null,{"$f":"IF(C1814=\"\",NA(),MATCH($B1814&$C1814,'Smelter Look-up'!$J:$J,0))","v":{"$error":"#N/A"}},null,0,null,null,null,""]
[null,{"$f":"IF(LEN(A1815)=0,\"\",INDEX('Smelter Look-up'!$A:$A,MATCH($A1815,'Smelter Look-up'!$E:$E,0)))","v":""},{"$f":"IF(LEN(A1815)=0,\"\",INDEX('Smelter Look-up'!$C:$C,MATCH($A1815,'Smelter Look-up'!$E:$E,0)))","v":""},null,{"$f":"IF(ISERROR($V1815),\"\",OFFSET('Smelter Look-up'!$D$4,$V1815-4,0)&\"\")","v":""},{"$f":"IF(ISERROR($V1815),\"\",OFFSET('Smelter Look-up'!$E$4,$V1815-4,0))","v":""},{"$f":"IF(C1815=$X$4,\"Enter smelter details\", IF(ISERROR($V1815),\"\",OFFSET('Smelter Look-up'!$F$4,$V1815-4,0)))","v":""},{"$f":"IF(ISERROR($V1815),\"\",OFFSET('Smelter Look-up'!$G$4,$V1815-4,0))","v":""},{"$f":"IF(ISERROR($V1815),\"\",OFFSET('Smelter Look-up'!$H$4,$V1815-4,0))","v":""},{"$f":"IF(ISERROR($V1815),\"\",OFFSET('Smelter Look-up'!$I$4,$V1815-4,0))","v":""},{"$nulls":7},{"$f":"IF(ISERROR($V1815),\"\",OFFSET('Smelter Look-up'!$C$4,$V1815-4,0)&\"\")","v":""},"",{"$f":"IF(B1815=\"\",\"\",IF(ISERROR(MATCH($J1815,SorP!$B$1:$B$6230,0)),\"\",INDIRECT(\"'SorP'!$A$\"&MATCH($J1815,SorP!$B$1:$B$6230,0))))","v":""},null,{"$f":"IF(C1815=\"\",NA(),MATCH($B1815&$C1815,'Smelter Look-up'!$J:$J,0))","v":{"$error":"#N/A"}},null,0,null,null,null,""]
[null,{"$f":"IF(LEN(A1816)=0,\"\",INDEX('Smelter Look-up'!$A:$A,MATCH($A1816,'Smelter Look-up'!$E:$E,0)))","v":""},{"$f":"IF(LEN(A1816)=0,\"\",INDEX('Smelter Look-up'!$C:$C,MATCH($A1816,'Smelter Look-up'!$E:$E,0)))","v":""},null,{"$f":"IF(ISERROR($V1816),\"\",OFFSET('Smelter Look-up'!$D$4,$V1816-4,0)&\"\")","v":""},{"$f":"IF(ISERROR($V1816),\"\",OFFSET('Smelter Look-up'!$E$4,$V1816-4,0))","v":""},{"$f":"IF(C1816=$X$4,\"Enter smelter details\", IF(ISERROR($V1816),\"\",OFFSET('Smelter Look-up'!$F$4,$V1816-4,0)))","v":""},{"$f":"IF(ISERROR($V1816),\"\",OFFSET('Smelter Look-up'!$G$4,$V1816-4,0))","v":""},{"$f":"IF(ISERROR($V1816),\"\",OFFSET('Smelter Look-up'!$H$4,$V1816-4,0))","v":""},{"$f":"IF(ISERROR($V1816),\"\",OFFSET('Smelter Look-up'!$I$4,$V1816-4,0))","v":""},{"$nulls":7},{"$f":"IF(ISERROR($V1816),\"\",OFFSET('Smelter Look-up'!$C$4,$V1816-4,0)&\"\")","v":""},"",{"$f":"IF(B1816=\"\",\"\",IF(ISERROR(MATCH($J1816,SorP!$B$1:$B$6230,0)),\"\",INDIRECT(\"'SorP'!$A$\"&MATCH($J1816,SorP!$B$1:$B$6230,0))))","v":""},null,{"$f":"IF(C1816=\"\",NA(),MATCH($B1816&$C1816,'Smelter Look-up'!$J:$J,0))","v":{"$error":"#N/A"}},null,0,null,null,null,""]
[null,{"$f":"IF(LEN(A1817)=0,\"\",INDEX('Smelter Look-up'!$A:$A,MATCH($A1817,'Smelter Look-up'!$E:$E,0)))","v":""},{"$f":"IF(LEN(A1817)=0,\"\",INDEX('Smelter Look-up'!$C:$C,MATCH($A1817,'Smelter Look-up'!$E:$E,0)))","v":""},null,{"$f":"IF(ISERROR($V1817),\"\",OFFSET('Smelter Look-up'!$D$4,$V1817-4,0)&\"\")","v":""},{"$f":"IF(ISERROR($V1817),\"\",OFFSET('Smelter Look-up'!$E$4,$V1817-4,0))","v":""},{"$f":"IF(C1817=$X$4,\"Enter smelter details\", IF(ISERROR($V1817),\"\",OFFSET('Smelter Look-up'!$F$4,$V1817-4,0)))","v":""},{"$f":"IF(ISERROR($V1817),\"\",OFFSET('Smelter Look-up'!$G$4,$V1817-4,0))","v":""},{"$f":"IF(ISERROR($V1817),\"\",OFFSET('Smelter Look-up'!$H$4,$V1817-4,0))","v":""},{"$f":"IF(ISERROR($V1817),\"\",OFFSET('Smelter Look-up'!$I$4,$V1817-4,0))","v":""},{"$nulls":7},{"$f":"IF(ISERROR($V1817),\"\",OFFSET('Smelter Look-up'!$C$4,$V1817-4,0)&\"\")","v":""},"",{"$f":"IF(B1817=\"\",\"\",IF(ISERROR(MATCH($J1817,SorP!$B$1:$B$6230,0)),\"\",INDIRECT(\"'SorP'!$A$\"&MATCH($J1817,SorP!$B$1:$B$6230,0))))","v":""},null,{"$f":"IF(C1817=\"\",NA(),MATCH($B1817&$C1817,'Smelter Look-up'!$J:$J,0))","v":{"$error":"#N/A"}},null,0,null,null,null,""]
[null,{"$f":"IF(LEN(A1818)=0,\"\",INDEX('Smelter Look-up'!$A:$A,MATCH($A1818,'Smelter Look-up'!$E:$E,0)))","v":""},{"$f":"IF(LEN(A1818)=0,\"\",INDEX('Smelter Look-up'!$C:$C,MATCH($A1818,'Smelter Look-up'!$E:$E,0)))","v":""},null,{"$f":"IF(ISERROR($V1818),\"\",OFFSET('Smelter Look-up'!$D$4,$V1818-4,0)&\"\")","v":""},{"$f":"IF(ISERROR($V1818),\"\",OFFSET('Smelter Look-up'!$E$4,$V1818-4,0))","v":""},{"$f":"IF(C1818=$X$4,\"Enter smelter details\", IF(ISERROR($V1818),\"\",OFFSET('Smelter Look-up'!$F$4,$V1818-4,0)))","v":""},{"$f":"IF(ISERROR($V1818),\"\",OFFSET('Smelter Look-up'!$G$4,$V1818-4,0))","v":""},{"$f":"IF(ISERROR($V1818),\"\",OFFSET('Smelter Look-up'!$H$4,$V1818-4,0))","v":""},{"$f":"IF(ISERROR($V1818),\"\",OFFSET('Smelter Look-up'!$I$4,$V1818-4,0))","v":""},{"$nulls":7},{"$f":"IF(ISERROR($V1818),\"\",OFFSET('Smelter Look-up'!$C$4,$V1818-4,0)&\"\")","v":""},"",{"$f":"IF(B1818=\"\",\"\",IF(ISERROR(MATCH($J1818,SorP!$B$1:$B$6230,0)),\"\",INDIRECT(\"'SorP'!$A$\"&MATCH($J1818,SorP!$B$1:$B$6230,0))))","v":""},null,{"$f":"IF(C1818=\"\",NA(),MATCH($B1818&$C1818,'Smelter Look-up'!$J:$J,0))","v":{"$error":"#N/A"}},null,0,null,null,null,""]
[null,{"$f":"IF(LEN(A1819)=0,\"\",INDEX('Smelter Look-up'!$A:$A,MATCH($A1819,'Smelter Look-up'!$E:$E,0)))","v":""},{"$f":"IF(LEN(A1819)=0,\"\",INDEX('Smelter Look-up'!$C:$C,MATCH($A1819,'Smelter Look-up'!$E:$E,0)))","v":""},null,{"$f":"IF(ISERROR($V1819),\"\",OFFSET('Smelter Look-up'!$D$4,$V1819-4,0)&\"\")","v":""},{"$f":"IF(ISERROR($V1819),\"\",OFFSET('Smelter Look-up'!$E$4,$V1819-4,0))","v":""},{"$f":"IF(C1819=$X$4,\"Enter smelter details\", IF(ISERROR($V1819),\"\",OFFSET('Smelter Look-up'!$F$4,$V1819-4,0)))","v":""},{"$f":"IF(ISERROR($V1819),\"\",OFFSET('Smelter Look-up'!$G$4,$V1819-4,0))","v":""},{"$f":"IF(ISERROR($V1819),\"\",OFFSET('Smelter Look-up'!$H$4,$V1819-4,0))","v":""},{"$f":"IF(ISERROR($V1819),\"\",OFFSET('Smelter Look-up'!$I$4,$V1819-4,0))","v":""},{"$nulls":7},{"$f":"IF(ISERROR($V1819),\"\",OFFSET('Smelter Look-up'!$C$4,$V1819-4,0)&\"\")","v":""},"",{"$f":"IF(B1819=\"\",\"\",IF(ISERROR(MATCH($J1819,SorP!$B$1:$B$6230,0)),\"\",INDIRECT(\"'SorP'!$A$\"&MATCH($J1819,SorP!$B$1:$B$6230,0))))","v":""},null,{"$f":"IF(C1819=\"\",NA(),MATCH($B1819&$C1819,'Smelter Look-up'!$J:$J,0))","v":{"$error":"#N/A"}},null,0,null,null,null,""]
[null,{"$f":"IF(LEN(A1820)=0,\"\",INDEX('Smelter Look-up'!$A:$A,MATCH($A1820,'Smelter Look-up'!$E:$E,0)))","v":""},{"$f":"IF(LEN(A1820)=0,\"\",INDEX('Smelter Look-up'!$C:$C,MATCH($A1820,'Smelter Look-up'!$E:$E,0)))","v":""},null,{"$f":"IF(ISERROR($V1820),\"\",OFFSET('Smelter Look-up'!$D$4,$V1820-4,0)&\"\")","v":""},{"$f":"IF(ISERROR($V1820),\"\",OFFSET('Smelter Look-up'!$E$4,$V1820-4,0))","v":""},{"$f":"IF(C1820=$X$4,\"Enter smelter details\", IF(ISERROR($V1820),\"\",OFFSET('Smelter Look-up'!$F$4,$V1820-4,0)))","v":""},{"$f":"IF(ISERROR($V1820),\"\",OFFSET('Smelter Look-up'!$G$4,$V1820-4,0))","v":""},{"$f":"IF(ISERROR($V1820),\"\",OFFSET('Smelter Look-up'!$H$4,$V1820-4,0))","v":""},{"$f":"IF(ISERROR($V1820),\"\",OFFSET('Smelter Look-up'!$I$4,$V1820-4,0))","v":""},{"$nulls":7},{"$f":"IF(ISERROR($V1820),\"\",OFFSET('Smelter Look-up'!$C$4,$V1820-4,0)&\"\")","v":""},"",{"$f":"IF(B1820=\"\",\"\",IF(ISERROR(MATCH($J1820,SorP!$B$1:$B$6230,0)),\"\",INDIRECT(\"'SorP'!$A$\"&MATCH($J1820,SorP!$B$1:$B$6230,0))))","v":""},null,{"$f":"IF(C1820=\"\",NA(),MATCH($B1820&$C1820,'Smelter Look-up'!$J:$J,0))","v":{"$error":"#N/A"}},null,0,null,null,null,""]
[null,{"$f":"IF(LEN(A1821)=0,\"\",INDEX('Smelter Look-up'!$A:$A,MATCH($A1821,'Smelter Look-up'!$E:$E,0)))","v":""},{"$f":"IF(LEN(A1821)=0,\"\",INDEX('Smelter Look-up'!$C:$C,MATCH($A1821,'Smelter Look-up'!$E:$E,0)))","v":""},null,{"$f":"IF(ISERROR($V1821),\"\",OFFSET('Smelter Look-up'!$D$4,$V1821-4,0)&\"\")","v":""},{"$f":"IF(ISERROR($V1821),\"\",OFFSET('Smelter Look-up'!$E$4,$V1821-4,0))","v":""},{"$f":"IF(C1821=$X$4,\"Enter smelter details\", IF(ISERROR($V1821),\"\",OFFSET('Smelter Look-up'!$F$4,$V1821-4,0)))","v":""},{"$f":"IF(ISERROR($V1821),\"\",OFFSET('Smelter Look-up'!$G$4,$V1821-4,0))","v":""},{"$f":"IF(ISERROR($V1821),\"\",OFFSET('Smelter Look-up'!$H$4,$V1821-4,0))","v":""},{"$f":"IF(ISERROR($V1821),\"\",OFFSET('Smelter Look-up'!$I$4,$V1821-4,0))","v":""},{"$nulls":7},{"$f":"IF(ISERROR($V1821),\"\",OFFSET('Smelter Look-up'!$C$4,$V1821-4,0)&\"\")","v":""},"",{"$f":"IF(B1821=\"\",\"\",IF(ISERROR(MATCH($J1821,SorP!$B$1:$B$6230,0)),\"\",INDIRECT(\"'SorP'!$A$\"&MATCH($J1821,SorP!$B$1:$B$6230,0))))","v":""},null,{"$f":"IF(C1821=\"\",NA(),MATCH($B1821&$C1821,'Smelter Look-up'!$J:$J,0))","v":{"$error":"#N/A"}},null,0,null,null,null,""]
[null,{"$f":"IF(LEN(A1822)=0,\"\",INDEX('Smelter Look-up'!$A:$A,MATCH($A1822,'Smelter Look-up'!$E:$E,0)))","v":""},{"$f":"IF(LEN(A1822)=0,\"\",INDEX('Smelter Look-up'!$C:$C,MATCH($A1822,'Smelter Look-up'!$E:$E,0)))","v":""},null,{"$f":"IF(ISERROR($V1822),\"\",OFFSET('Smelter Look-up'!$D$4,$V1822-4,0)&\"\")","v":""},{"$f":"IF(ISERROR($V1822),\"\",OFFSET('Smelter Look-up'!$E$4,$V1822-4,0))","v":""},{"$f":"IF(C1822=$X$4,\"Enter smelter details\", IF(ISERROR($V1822),\"\",OFFSET('Smelter Look-up'!$F$4,$V1822-4,0)))","v":""},{"$f":"IF(ISERROR($V1822),\"\",OFFSET('Smelter Look-up'!$G$4,$V1822-4,0))","v":""},{"$f":"IF(ISERROR($V1822),\"\",OFFSET('Smelter Look-up'!$H$4,$V1822-4,0))","v":""},{"$f":"IF(ISERROR($V1822),\"\",OFFSET('Smelter Look-up'!$I$4,$V1822-4,0))","v":""},{"$nulls":7},{"$f":"IF(ISERROR($V1822),\"\",OFFSET('Smelter Look-up'!$C$4,$V1822-4,0)&\"\")","v":""},"",{"$f":"IF(B1822=\"\",\"\",IF(ISERROR(MATCH($J1822,SorP!$B$1:$B$6230,0)),\"\",INDIRECT(\"'SorP'!$A$\"&MATCH($J1822,SorP!$B$1:$B$6230,0))))","v":""},null,{"$f":"IF(C1822=\"\",NA(),MATCH($B1822&$C1822,'Smelter Look-up'!$J:$J,0))","v":{"$error":"#N/A"}},null,0,null,null,null,""]
[null,{"$f":"IF(LEN(A1823)=0,\"\",INDEX('Smelter Look-up'!$A:$A,MATCH($A1823,'Smelter Look-up'!$E:$E,0)))","v":""},{"$f":"IF(LEN(A1823)=0,\"\",INDEX('Smelter Look-up'!$C:$C,MATCH($A1823,'Smelter Look-up'!$E:$E,0)))","v":""},null,{"$f":"IF(ISERROR($V1823),\"\",OFFSET('Smelter Look-up'!$D$4,$V1823-4,0)&\"\")","v":""},{"$f":"IF(ISERROR($V1823),\"\",OFFSET('Smelter Look-up'!$E$4,$V1823-4,0))","v":""},{"$f":"IF(C1823=$X$4,\"Enter smelter details\", IF(ISERROR($V1823),\"\",OFFSET('Smelter Look-up'!$F$4,$V1823-4,0)))","v":""},{"$f":"IF(ISERROR($V1823),\"\",OFFSET('Smelter Look-up'!$G$4,$V1823-4,0))","v":""},{"$f":"IF(ISERROR($V1823),\"\",OFFSET('Smelter Look-up'!$H$4,$V1823-4,0))","v":""},{"$f":"IF(ISERROR($V1823),\"\",OFFSET('Smelter Look-up'!$I$4,$V1823-4,0))","v":""},{"$nulls":7},{"$f":"IF(ISERROR($V1823),\"\",OFFSET('Smelter Look-up'!$C$4,$V1823-4,0)&\"\")","v":""},"",{"$f":"IF(B1823=\"\",\"\",IF(ISERROR(MATCH($J1823,SorP!$B$1:$B$6230,0)),\"\",INDIRECT(\"'SorP'!$A$\"&MATCH($J1823,SorP!$B$1:$B$6230,0))))","v":""},null,{"$f":"IF(C1823=\"\",NA(),MATCH($B1823&$C1823,'Smelter Look-up'!$J:$J,0))","v":{"$error":"#N/A"}},null,0,null,null,null,""]
[null,{"$f":"IF(LEN(A1824)=0,\"\",INDEX('Smelter Look-up'!$A:$A,MATCH($A1824,'Smelter Look-up'!$E:$E,0)))","v":""},{"$f":"IF(LEN(A1824)=0,\"\",INDEX('Smelter Look-up'!$C:$C,MATCH($A1824,'Smelter Look-up'!$E:$E,0)))","v":""},null,{"$f":"IF(ISERROR($V1824),\"\",OFFSET('Smelter Look-up'!$D$4,$V1824-4,0)&\"\")","v":""},{"$f":"IF(ISERROR($V1824),\"\",OFFSET('Smelter Look-up'!$E$4,$V1824-4,0))","v":""},{"$f":"IF(C1824=$X$4,\"Enter smelter details\", IF(ISERROR($V1824),\"\",OFFSET('Smelter Look-up'!$F$4,$V1824-4,0)))","v":""},{"$f":"IF(ISERROR($V1824),\"\",OFFSET('Smelter Look-up'!$G$4,$V1824-4,0))","v":""},{"$f":"IF(ISERROR($V1824),\"\",OFFSET('Smelter Look-up'!$H$4,$V1824-4,0))","v":""},{"$f":"IF(ISERROR($V1824),\"\",OFFSET('Smelter Look-up'!$I$4,$V1824-4,0))","v":""},{"$nulls":7},{"$f":"IF(ISERROR($V1824),\"\",OFFSET('Smelter Look-up'!$C$4,$V1824-4,0)&\"\")","v":""},"",{"$f":"IF(B1824=\"\",\"\",IF(ISERROR(MATCH($J1824,SorP!$B$1:$B$6230,0)),\"\",INDIRECT(\"'SorP'!$A$\"&MATCH($J1824,SorP!$B$1:$B$6230,0))))","v":""},null,{"$f":"IF(C1824=\"\",NA(),MATCH($B1824&$C1824,'Smelter Look-up'!$J:$J,0))","v":{"$error":"#N/A"}},null,0,null,null,null,""]
[null,{"$f":"IF(LEN(A1825)=0,\"\",INDEX('Smelter Look-up'!$A:$A,MATCH($A1825,'Smelter Look-up'!$E:$E,0)))","v":""},{"$f":"IF(LEN(A1825)=0,\"\",INDEX('Smelter Look-up'!$C:$C,MATCH($A1825,'Smelter Look-up'!$E:$E,0)))","v":""},null,{"$f":"IF(ISERROR($V1825),\"\",OFFSET('Smelter Look-up'!$D$4,$V1825-4,0)&\"\")","v":""},{"$f":"IF(ISERROR($V1825),\"\",OFFSET('Smelter Look-up'!$E$4,$V1825-4,0))","v":""},{"$f":"IF(C1825=$X$4,\"Enter smelter details\", IF(ISERROR($V1825),\"\",OFFSET('Smelter Look-up'!$F$4,$V1825-4,0)))","v":""},{"$f":"IF(ISERROR($V1825),\"\",OFFSET('Smelter Look-up'!$G$4,$V1825-4,0))","v":""},{"$f":"IF(ISERROR($V1825),\"\",OFFSET('Smelter Look-up'!$H$4,$V1825-4,0))","v":""},{"$f":"IF(ISERROR($V1825),\"\",OFFSET('Smelter Look-up'!$I$4,$V1825-4,0))","v":""},{"$nulls":7},{"$f":"IF(ISERROR($V1825),\"\",OFFSET('Smelter Look-up'!$C$4,$V1825-4,0)&\"\")","v":""},"",{"$f":"IF(B1825=\"\",\"\",IF(ISERROR(MATCH($J1825,SorP!$B$1:$B$6230,0)),\"\",INDIRECT(\"'SorP'!$A$\"&MATCH($J1825,SorP!$B$1:$B$6230,0))))","v":""},null,{"$f":"IF(C1825=\"\",NA(),MATCH($B1825&$C1825,'Smelter Look-up'!$J:$J,0))","v":{"$error":"#N/A"}},null,0,null,null,null,""]
[null,{"$f":"IF(LEN(A1826)=0,\"\",INDEX('Smelter Look-up'!$A:$A,MATCH($A1826,'Smelter Look-up'!$E:$E,0)))","v":""},{"$f":"IF(LEN(A1826)=0,\"\",INDEX('Smelter Look-up'!$C:$C,MATCH($A1826,'Smelter Look-up'!$E:$E,0)))","v":""},null,{"$f":"IF(ISERROR($V1826),\"\",OFFSET('Smelter Look-up'!$D$4,$V1826-4,0)&\"\")","v":""},{"$f":"IF(ISERROR($V1826),\"\",OFFSET('Smelter Look-up'!$E$4,$V1826-4,0))","v":""},{"$f":"IF(C1826=$X$4,\"Enter smelter details\", IF(ISERROR($V1826),\"\",OFFSET('Smelter Look-up'!$F$4,$V1826-4,0)))","v":""},{"$f":"IF(ISERROR($V1826),\"\",OFFSET('Smelter Look-up'!$G$4,$V1826-4,0))","v":""},{"$f":"IF(ISERROR($V1826),\"\",OFFSET('Smelter Look-up'!$H$4,$V1826-4,0))","v":""},{"$f":"IF(ISERROR($V1826),\"\",OFFSET('Smelter Look-up'!$I$4,$V1826-4,0))","v":""},{"$nulls":7},{"$f":"IF(ISERROR($V1826),\"\",OFFSET('Smelter Look-up'!$C$4,$V1826-4,0)&\"\")","v":""},"",{"$f":"IF(B1826=\"\",\"\",IF(ISERROR(MATCH($J1826,SorP!$B$1:$B$6230,0)),\"\",INDIRECT(\"'SorP'!$A$\"&MATCH($J1826,SorP!$B$1:$B$6230,0))))","v":""},null,{"$f":"IF(C1826=\"\",NA(),MATCH($B1826&$C1826,'Smelter Look-up'!$J:$J,0))","v":{"$error":"#N/A"}},null,0,null,null,null,""]
[null,{"$f":"IF(LEN(A1827)=0,\"\",INDEX('Smelter Look-up'!$A:$A,MATCH($A1827,'Smelter Look-up'!$E:$E,0)))","v":""},{"$f":"IF(LEN(A1827)=0,\"\",INDEX('Smelter Look-up'!$C:$C,MATCH($A1827,'Smelter Look-up'!$E:$E,0)))","v":""},null,{"$f":"IF(ISERROR($V1827),\"\",OFFSET('Smelter Look-up'!$D$4,$V1827-4,0)&\"\")","v":""},{"$f":"IF(ISERROR($V1827),\"\",OFFSET('Smelter Look-up'!$E$4,$V1827-4,0))","v":""},{"$f":"IF(C1827=$X$4,\"Enter smelter details\", IF(ISERROR($V1827),\"\",OFFSET('Smelter Look-up'!$F$4,$V1827-4,0)))","v":""},{"$f":"IF(ISERROR($V1827),\"\",OFFSET('Smelter Look-up'!$G$4,$V1827-4,0))","v":""},{"$f":"IF(ISERROR($V1827),\"\",OFFSET('Smelter Look-up'!$H$4,$V1827-4,0))","v":""},{"$f":"IF(ISERROR($V1827),\"\",OFFSET('Smelter Look-up'!$I$4,$V1827-4,0))","v":""},{"$nulls":7},{"$f":"IF(ISERROR($V1827),\"\",OFFSET('Smelter Look-up'!$C$4,$V1827-4,0)&\"\")","v":""},"",{"$f":"IF(B1827=\"\",\"\",IF(ISERROR(MATCH($J1827,SorP!$B$1:$B$6230,0)),\"\",INDIRECT(\"'SorP'!$A$\"&MATCH($J1827,SorP!$B$1:$B$6230,0))))","v":""},null,{"$f":"IF(C1827=\"\",NA(),MATCH($B1827&$C1827,'Smelter Look-up'!$J:$J,0))","v":{"$error":"#N/A"}},null,0,null,null,null,""]
[null,{"$f":"IF(LEN(A1828)=0,\"\",INDEX('Smelter Look-up'!$A:$A,MATCH($A1828,'Smelter Look-up'!$E:$E,0)))","v":""},{"$f":"IF(LEN(A1828)=0,\"\",INDEX('Smelter Look-up'!$C:$C,MATCH($A1828,'Smelter Look-up'!$E:$E,0)))","v":""},null,{"$f":"IF(ISERROR($V1828),\"\",OFFSET('Smelter Look-up'!$D$4,$V1828-4,0)&\"\")","v":""},{"$f":"IF(ISERROR($V1828),\"\",OFFSET('Smelter Look-up'!$E$4,$V1828-4,0))","v":""},{"$f":"IF(C1828=$X$4,\"Enter smelter details\", IF(ISERROR($V1828),\"\",OFFSET('Smelter Look-up'!$F$4,$V1828-4,0)))","v":""},{"$f":"IF(ISERROR($V1828),\"\",OFFSET('Smelter Look-up'!$G$4,$V1828-4,0))","v":""},{"$f":"IF(ISERROR($V1828),\"\",OFFSET('Smelter Look-up'!$H$4,$V1828-4,0))","v":""},{"$f":"IF(ISERROR($V1828),\"\",OFFSET('Smelter Look-up'!$I$4,$V1828-4,0))","v":""},{"$nulls":7},{"$f":"IF(ISERROR($V1828),\"\",OFFSET('Smelter Look-up'!$C$4,$V1828-4,0)&\"\")","v":""},"",{"$f":"IF(B1828=\"\",\"\",IF(ISERROR(MATCH($J1828,SorP!$B$1:$B$6230,0)),\"\",INDIRECT(\"'SorP'!$A$\"&MATCH($J1828,SorP!$B$1:$B$6230,0))))","v":""},null,{"$f":"IF(C1828=\"\",NA(),MATCH($B1828&$C1828,'Smelter Look-up'!$J:$J,0))","v":{"$error":"#N/A"}},null,0,null,null,null,""]
[null,{"$f":"IF(LEN(A1829)=0,\"\",INDEX('Smelter Look-up'!$A:$A,MATCH($A1829,'Smelter Look-up'!$E:$E,0)))","v":""},{"$f":"IF(LEN(A1829)=0,\"\",INDEX('Smelter Look-up'!$C:$C,MATCH($A1829,'Smelter Look-up'!$E:$E,0)))","v":""},null,{"$f":"IF(ISERROR($V1829),\"\",OFFSET('Smelter Look-up'!$D$4,$V1829-4,0)&\"\")","v":""},{"$f":"IF(ISERROR($V1829),\"\",OFFSET('Smelter Look-up'!$E$4,$V1829-4,0))","v":""},{"$f":"IF(C1829=$X$4,\"Enter smelter details\", IF(ISERROR($V1829),\"\",OFFSET('Smelter Look-up'!$F$4,$V1829-4,0)))","v":""},{"$f":"IF(ISERROR($V1829),\"\",OFFSET('Smelter Look-up'!$G$4,$V1829-4,0))","v":""},{"$f":"IF(ISERROR($V1829),\"\",OFFSET('Smelter Look-up'!$H$4,$V1829-4,0))","v":""},{"$f":"IF(ISERROR($V1829),\"\",OFFSET('Smelter Look-up'!$I$4,$V1829-4,0))","v":""},{"$nulls":7},{"$f":"IF(ISERROR($V1829),\"\",OFFSET('Smelter Look-up'!$C$4,$V1829-4,0)&\"\")","v":""},"",{"$f":"IF(B1829=\"\",\"\",IF(ISERROR(MATCH($J1829,SorP!$B$1:$B$6230,0)),\"\",INDIRECT(\"'SorP'!$A$\"&MATCH($J1829,SorP!$B$1:$B$6230,0))))","v":""},null,{"$f":"IF(C1829=\"\",NA(),MATCH($B1829&$C1829,'Smelter Look-up'!$J:$J,0))","v":{"$error":"#N/A"}},null,0,null,null,null,""]
[null,{"$f":"IF(LEN(A1830)=0,\"\",INDEX('Smelter Look-up'!$A:$A,MATCH($A1830,'Smelter Look-up'!$E:$E,0)))","v":""},{"$f":"IF(LEN(A1830)=0,\"\",INDEX('Smelter Look-up'!$C:$C,MATCH($A1830,'Smelter Look-up'!$E:$E,0)))","v":""},null,{"$f":"IF(ISERROR($V1830),\"\",OFFSET('Smelter Look-up'!$D$4,$V1830-4,0)&\"\")","v":""},{"$f":"IF(ISERROR($V1830),\"\",OFFSET('Smelter Look-up'!$E$4,$V1830-4,0))","v":""},{"$f":"IF(C1830=$X$4,\"Enter smelter details\", IF(ISERROR($V1830),\"\",OFFSET('Smelter Look-up'!$F$4,$V1830-4,0)))","v":""},{"$f":"IF(ISERROR($V1830),\"\",OFFSET('Smelter Look-up'!$G$4,$V1830-4,0))","v":""},{"$f":"IF(ISERROR($V1830),\"\",OFFSET('Smelter Look-up'!$H$4,$V1830-4,0))","v":""},{"$f":"IF(ISERROR($V1830),\"\",OFFSET('Smelter Look-up'!$I$4,$V1830-4,0))","v":""},{"$nulls":7},{"$f":"IF(ISERROR($V1830),\"\",OFFSET('Smelter Look-up'!$C$4,$V1830-4,0)&\"\")","v":""},"",{"$f":"IF(B1830=\"\",\"\",IF(ISERROR(MATCH($J1830,SorP!$B$1:$B$6230,0)),\"\",INDIRECT(\"'SorP'!$A$\"&MATCH($J1830,SorP!$B$1:$B$6230,0))))","v":""},null,{"$f":"IF(C1830=\"\",NA(),MATCH($B1830&$C1830,'Smelter Look-up'!$J:$J,0))","v":{"$error":"#N/A"}},null,0,null,null,null,""]
[null,{"$f":"IF(LEN(A1831)=0,\"\",INDEX('Smelter Look-up'!$A:$A,MATCH($A1831,'Smelter Look-up'!$E:$E,0)))","v":""},{"$f":"IF(LEN(A1831)=0,\"\",INDEX('Smelter Look-up'!$C:$C,MATCH($A1831,'Smelter Look-up'!$E:$E,0)))","v":""},null,{"$f":"IF(ISERROR($V1831),\"\",OFFSET('Smelter Look-up'!$D$4,$V1831-4,0)&\"\")","v":""},{"$f":"IF(ISERROR($V1831),\"\",OFFSET('Smelter Look-up'!$E$4,$V1831-4,0))","v":""},{"$f":"IF(C1831=$X$4,\"Enter smelter details\", IF(ISERROR($V1831),\"\",OFFSET('Smelter Look-up'!$F$4,$V1831-4,0)))","v":""},{"$f":"IF(ISERROR($V1831),\"\",OFFSET('Smelter Look-up'!$G$4,$V1831-4,0))","v":""},{"$f":"IF(ISERROR($V1831),\"\",OFFSET('Smelter Look-up'!$H$4,$V1831-4,0))","v":""},{"$f":"IF(ISERROR($V1831),\"\",OFFSET('Smelter Look-up'!$I$4,$V1831-4,0))","v":""},{"$nulls":7},{"$f":"IF(ISERROR($V1831),\"\",OFFSET('Smelter Look-up'!$C$4,$V1831-4,0)&\"\")","v":""},"",{"$f":"IF(B1831=\"\",\"\",IF(ISERROR(MATCH($J1831,SorP!$B$1:$B$6230,0)),\"\",INDIRECT(\"'SorP'!$A$\"&MATCH($J1831,SorP!$B$1:$B$6230,0))))","v":""},null,{"$f":"IF(C1831=\"\",NA(),MATCH($B1831&$C1831,'Smelter Look-up'!$J:$J,0))","v":{"$error":"#N/A"}},null,0,null,null,null,""]
[null,{"$f":"IF(LEN(A1832)=0,\"\",INDEX('Smelter Look-up'!$A:$A,MATCH($A1832,'Smelter Look-up'!$E:$E,0)))","v":""},{"$f":"IF(LEN(A1832)=0,\"\",INDEX('Smelter Look-up'!$C:$C,MATCH($A1832,'Smelter Look-up'!$E:$E,0)))","v":""},null,{"$f":"IF(ISERROR($V1832),\"\",OFFSET('Smelter Look-up'!$D$4,$V1832-4,0)&\"\")","v":""},{"$f":"IF(ISERROR($V1832),\"\",OFFSET('Smelter Look-up'!$E$4,$V1832-4,0))","v":""},{"$f":"IF(C1832=$X$4,\"Enter smelter details\", IF(ISERROR($V1832),\"\",OFFSET('Smelter Look-up'!$F$4,$V1832-4,0)))","v":""},{"$f":"IF(ISERROR($V1832),\"\",OFFSET('Smelter Look-up'!$G$4,$V1832-4,0))","v":""},{"$f":"IF(ISERROR($V1832),\"\",OFFSET('Smelter Look-up'!$H$4,$V1832-4,0))","v":""},{"$f":"IF(ISERROR($V1832),\"\",OFFSET('Smelter Look-up'!$I$4,$V1832-4,0))","v":""},{"$nulls":7},{"$f":"IF(ISERROR($V1832),\"\",OFFSET('Smelter Look-up'!$C$4,$V1832-4,0)&\"\")","v":""},"",{"$f":"IF(B1832=\"\",\"\",IF(ISERROR(MATCH($J1832,SorP!$B$1:$B$6230,0)),\"\",INDIRECT(\"'SorP'!$A$\"&MATCH($J1832,SorP!$B$1:$B$6230,0))))","v":""},null,{"$f":"IF(C1832=\"\",NA(),MATCH($B1832&$C1832,'Smelter Look-up'!$J:$J,0))","v":{"$error":"#N/A"}},null,0,null,null,null,""]
[null,{"$f":"IF(LEN(A1833)=0,\"\",INDEX('Smelter Look-up'!$A:$A,MATCH($A1833,'Smelter Look-up'!$E:$E,0)))","v":""},{"$f":"IF(LEN(A1833)=0,\"\",INDEX('Smelter Look-up'!$C:$C,MATCH($A1833,'Smelter Look-up'!$E:$E,0)))","v":""},null,{"$f":"IF(ISERROR($V1833),\"\",OFFSET('Smelter Look-up'!$D$4,$V1833-4,0)&\"\")","v":""},{"$f":"IF(ISERROR($V1833),\"\",OFFSET('Smelter Look-up'!$E$4,$V1833-4,0))","v":""},{"$f":"IF(C1833=$X$4,\"Enter smelter details\", IF(ISERROR($V1833),\"\",OFFSET('Smelter Look-up'!$F$4,$V1833-4,0)))","v":""},{"$f":"IF(ISERROR($V1833),\"\",OFFSET('Smelter Look-up'!$G$4,$V1833-4,0))","v":""},{"$f":"IF(ISERROR($V1833),\"\",OFFSET('Smelter Look-up'!$H$4,$V1833-4,0))","v":""},{"$f":"IF(ISERROR($V1833),\"\",OFFSET('Smelter Look-up'!$I$4,$V1833-4,0))","v":""},{"$nulls":7},{"$f":"IF(ISERROR($V1833),\"\",OFFSET('Smelter Look-up'!$C$4,$V1833-4,0)&\"\")","v":""},"",{"$f":"IF(B1833=\"\",\"\",IF(ISERROR(MATCH($J1833,SorP!$B$1:$B$6230,0)),\"\",INDIRECT(\"'SorP'!$A$\"&MATCH($J1833,SorP!$B$1:$B$6230,0))))","v":""},null,{"$f":"IF(C1833=\"\",NA(),MATCH($B1833&$C1833,'Smelter Look-up'!$J:$J,0))","v":{"$error":"#N/A"}},null,0,null,null,null,""]
[null,{"$f":"IF(LEN(A1834)=0,\"\",INDEX('Smelter Look-up'!$A:$A,MATCH($A1834,'Smelter Look-up'!$E:$E,0)))","v":""},{"$f":"IF(LEN(A1834)=0,\"\",INDEX('Smelter Look-up'!$C:$C,MATCH($A1834,'Smelter Look-up'!$E:$E,0)))","v":""},null,{"$f":"IF(ISERROR($V1834),\"\",OFFSET('Smelter Look-up'!$D$4,$V1834-4,0)&\"\")","v":""},{"$f":"IF(ISERROR($V1834),\"\",OFFSET('Smelter Look-up'!$E$4,$V1834-4,0))","v":""},{"$f":"IF(C1834=$X$4,\"Enter smelter details\", IF(ISERROR($V1834),\"\",OFFSET('Smelter Look-up'!$F$4,$V1834-4,0)))","v":""},{"$f":"IF(ISERROR($V1834),\"\",OFFSET('Smelter Look-up'!$G$4,$V1834-4,0))","v":""},{"$f":"IF(ISERROR($V1834),\"\",OFFSET('Smelter Look-up'!$H$4,$V1834-4,0))","v":""},{"$f":"IF(ISERROR($V1834),\"\",OFFSET('Smelter Look-up'!$I$4,$V1834-4,0))","v":""},{"$nulls":7},{"$f":"IF(ISERROR($V1834),\"\",OFFSET('Smelter Look-up'!$C$4,$V1834-4,0)&\"\")","v":""},"",{"$f":"IF(B1834=\"\",\"\",IF(ISERROR(MATCH($J1834,SorP!$B$1:$B$6230,0)),\"\",INDIRECT(\"'SorP'!$A$\"&MATCH($J1834,SorP!$B$1:$B$6230,0))))","v":""},null,{"$f":"IF(C1834=\"\",NA(),MATCH($B1834&$C1834,'Smelter Look-up'!$J:$J,0))","v":{"$error":"#N/A"}},null,0,null,null,null,""]
[null,{"$f":"IF(LEN(A1835)=0,\"\",INDEX('Smelter Look-up'!$A:$A,MATCH($A1835,'Smelter Look-up'!$E:$E,0)))","v":""},{"$f":"IF(LEN(A1835)=0,\"\",INDEX('Smelter Look-up'!$C:$C,MATCH($A1835,'Smelter Look-up'!$E:$E,0)))","v":""},null,{"$f":"IF(ISERROR($V1835),\"\",OFFSET('Smelter Look-up'!$D$4,$V1835-4,0)&\"\")","v":""},{"$f":"IF(ISERROR($V1835),\"\",OFFSET('Smelter Look-up'!$E$4,$V1835-4,0))","v":""},{"$f":"IF(C1835=$X$4,\"Enter smelter details\", IF(ISERROR($V1835),\"\",OFFSET('Smelter Look-up'!$F$4,$V1835-4,0)))","v":""},{"$f":"IF(ISERROR($V1835),\"\",OFFSET('Smelter Look-up'!$G$4,$V1835-4,0))","v":""},{"$f":"IF(ISERROR($V1835),\"\",OFFSET('Smelter Look-up'!$H$4,$V1835-4,0))","v":""},{"$f":"IF(ISERROR($V1835),\"\",OFFSET('Smelter Look-up'!$I$4,$V1835-4,0))","v":""},{"$nulls":7},{"$f":"IF(ISERROR($V1835),\"\",OFFSET('Smelter Look-up'!$C$4,$V1835-4,0)&\"\")","v":""},"",{"$f":"IF(B1835=\"\",\"\",IF(ISERROR(MATCH($J1835,SorP!$B$1:$B$6230,0)),\"\",INDIRECT(\"'SorP'!$A$\"&MATCH($J1835,SorP!$B$1:$B$6230,0))))","v":""},null,{"$f":"IF(C1835=\"\",NA(),MATCH($B1835&$C1835,'Smelter Look-up'!$J:$J,0))","v":{"$error":"#N/A"}},null,0,null,null,null,""]
[null,{"$f":"IF(LEN(A1836)=0,\"\",INDEX('Smelter Look-up'!$A:$A,MATCH($A1836,'Smelter Look-up'!$E:$E,0)))","v":""},{"$f":"IF(LEN(A1836)=0,\"\",INDEX('Smelter Look-up'!$C:$C,MATCH($A1836,'Smelter Look-up'!$E:$E,0)))","v":""},null,{"$f":"IF(ISERROR($V1836),\"\",OFFSET('Smelter Look-up'!$D$4,$V1836-4,0)&\"\")","v":""},{"$f":"IF(ISERROR($V1836),\"\",OFFSET('Smelter Look-up'!$E$4,$V1836-4,0))","v":""},{"$f":"IF(C1836=$X$4,\"Enter smelter details\", IF(ISERROR($V1836),\"\",OFFSET('Smelter Look-up'!$F$4,$V1836-4,0)))","v":""},{"$f":"IF(ISERROR($V1836),\"\",OFFSET('Smelter Look-up'!$G$4,$V1836-4,0))","v":""},{"$f":"IF(ISERROR($V1836),\"\",OFFSET('Smelter Look-up'!$H$4,$V1836-4,0))","v":""},{"$f":"IF(ISERROR($V1836),\"\",OFFSET('Smelter Look-up'!$I$4,$V1836-4,0))","v":""},{"$nulls":7},{"$f":"IF(ISERROR($V1836),\"\",OFFSET('Smelter Look-up'!$C$4,$V1836-4,0)&\"\")","v":""},"",{"$f":"IF(B1836=\"\",\"\",IF(ISERROR(MATCH($J1836,SorP!$B$1:$B$6230,0)),\"\",INDIRECT(\"'SorP'!$A$\"&MATCH($J1836,SorP!$B$1:$B$6230,0))))","v":""},null,{"$f":"IF(C1836=\"\",NA(),MATCH($B1836&$C1836,'Smelter Look-up'!$J:$J,0))","v":{"$error":"#N/A"}},null,0,null,null,null,""]
[null,{"$f":"IF(LEN(A1837)=0,\"\",INDEX('Smelter Look-up'!$A:$A,MATCH($A1837,'Smelter Look-up'!$E:$E,0)))","v":""},{"$f":"IF(LEN(A1837)=0,\"\",INDEX('Smelter Look-up'!$C:$C,MATCH($A1837,'Smelter Look-up'!$E:$E,0)))","v":""},null,{"$f":"IF(ISERROR($V1837),\"\",OFFSET('Smelter Look-up'!$D$4,$V1837-4,0)&\"\")","v":""},{"$f":"IF(ISERROR($V1837),\"\",OFFSET('Smelter Look-up'!$E$4,$V1837-4,0))","v":""},{"$f":"IF(C1837=$X$4,\"Enter smelter details\", IF(ISERROR($V1837),\"\",OFFSET('Smelter Look-up'!$F$4,$V1837-4,0)))","v":""},{"$f":"IF(ISERROR($V1837),\"\",OFFSET('Smelter Look-up'!$G$4,$V1837-4,0))","v":""},{"$f":"IF(ISERROR($V1837),\"\",OFFSET('Smelter Look-up'!$H$4,$V1837-4,0))","v":""},{"$f":"IF(ISERROR($V1837),\"\",OFFSET('Smelter Look-up'!$I$4,$V1837-4,0))","v":""},{"$nulls":7},{"$f":"IF(ISERROR($V1837),\"\",OFFSET('Smelter Look-up'!$C$4,$V1837-4,0)&\"\")","v":""},"",{"$f":"IF(B1837=\"\",\"\",IF(ISERROR(MATCH($J1837,SorP!$B$1:$B$6230,0)),\"\",INDIRECT(\"'SorP'!$A$\"&MATCH($J1837,SorP!$B$1:$B$6230,0))))","v":""},null,{"$f":"IF(C1837=\"\",NA(),MATCH($B1837&$C1837,'Smelter Look-up'!$J:$J,0))","v":{"$error":"#N/A"}},null,0,null,null,null,""]
[null,{"$f":"IF(LEN(A1838)=0,\"\",INDEX('Smelter Look-up'!$A:$A,MATCH($A1838,'Smelter Look-up'!$E:$E,0)))","v":""},{"$f":"IF(LEN(A1838)=0,\"\",INDEX('Smelter Look-up'!$C:$C,MATCH($A1838,'Smelter Look-up'!$E:$E,0)))","v":""},null,{"$f":"IF(ISERROR($V1838),\"\",OFFSET('Smelter Look-up'!$D$4,$V1838-4,0)&\"\")","v":""},{"$f":"IF(ISERROR($V1838),\"\",OFFSET('Smelter Look-up'!$E$4,$V1838-4,0))","v":""},{"$f":"IF(C1838=$X$4,\"Enter smelter details\", IF(ISERROR($V1838),\"\",OFFSET('Smelter Look-up'!$F$4,$V1838-4,0)))","v":""},{"$f":"IF(ISERROR($V1838),\"\",OFFSET('Smelter Look-up'!$G$4,$V1838-4,0))","v":""},{"$f":"IF(ISERROR($V1838),\"\",OFFSET('Smelter Look-up'!$H$4,$V1838-4,0))","v":""},{"$f":"IF(ISERROR($V1838),\"\",OFFSET('Smelter Look-up'!$I$4,$V1838-4,0))","v":""},{"$nulls":7},{"$f":"IF(ISERROR($V1838),\"\",OFFSET('Smelter Look-up'!$C$4,$V1838-4,0)&\"\")","v":""},"",{"$f":"IF(B1838=\"\",\"\",IF(ISERROR(MATCH($J1838,SorP!$B$1:$B$6230,0)),\"\",INDIRECT(\"'SorP'!$A$\"&MATCH($J1838,SorP!$B$1:$B$6230,0))))","v":""},null,{"$f":"IF(C1838=\"\",NA(),MATCH($B1838&$C1838,'Smelter Look-up'!$J:$J,0))","v":{"$error":"#N/A"}},null,0,null,null,null,""]
[null,{"$f":"IF(LEN(A1839)=0,\"\",INDEX('Smelter Look-up'!$A:$A,MATCH($A1839,'Smelter Look-up'!$E:$E,0)))","v":""},{"$f":"IF(LEN(A1839)=0,\"\",INDEX('Smelter Look-up'!$C:$C,MATCH($A1839,'Smelter Look-up'!$E:$E,0)))","v":""},null,{"$f":"IF(ISERROR($V1839),\"\",OFFSET('Smelter Look-up'!$D$4,$V1839-4,0)&\"\")","v":""},{"$f":"IF(ISERROR($V1839),\"\",OFFSET('Smelter Look-up'!$E$4,$V1839-4,0))","v":""},{"$f":"IF(C1839=$X$4,\"Enter smelter details\", IF(ISERROR($V1839),\"\",OFFSET('Smelter Look-up'!$F$4,$V1839-4,0)))","v":""},{"$f":"IF(ISERROR($V1839),\"\",OFFSET('Smelter Look-up'!$G$4,$V1839-4,0))","v":""},{"$f":"IF(ISERROR($V1839),\"\",OFFSET('Smelter Look-up'!$H$4,$V1839-4,0))","v":""},{"$f":"IF(ISERROR($V1839),\"\",OFFSET('Smelter Look-up'!$I$4,$V1839-4,0))","v":""},{"$nulls":7},{"$f":"IF(ISERROR($V1839),\"\",OFFSET('Smelter Look-up'!$C$4,$V1839-4,0)&\"\")","v":""},"",{"$f":"IF(B1839=\"\",\"\",IF(ISERROR(MATCH($J1839,SorP!$B$1:$B$6230,0)),\"\",INDIRECT(\"'SorP'!$A$\"&MATCH($J1839,SorP!$B$1:$B$6230,0))))","v":""},null,{"$f":"IF(C1839=\"\",NA(),MATCH($B1839&$C1839,'Smelter Look-up'!$J:$J,0))","v":{"$error":"#N/A"}},null,0,null,null,null,""]
[null,{"$f":"IF(LEN(A1840)=0,\"\",INDEX('Smelter Look-up'!$A:$A,MATCH($A1840,'Smelter Look-up'!$E:$E,0)))","v":""},{"$f":"IF(LEN(A1840)=0,\"\",INDEX('Smelter Look-up'!$C:$C,MATCH($A1840,'Smelter Look-up'!$E:$E,0)))","v":""},null,{"$f":"IF(ISERROR($V1840),\"\",OFFSET('Smelter Look-up'!$D$4,$V1840-4,0)&\"\")","v":""},{"$f":"IF(ISERROR($V1840),\"\",OFFSET('Smelter Look-up'!$E$4,$V1840-4,0))","v":""},{"$f":"IF(C1840=$X$4,\"Enter smelter details\", IF(ISERROR($V1840),\"\",OFFSET('Smelter Look-up'!$F$4,$V1840-4,0)))","v":""},{"$f":"IF(ISERROR($V1840),\"\",OFFSET('Smelter Look-up'!$G$4,$V1840-4,0))","v":""},{"$f":"IF(ISERROR($V1840),\"\",OFFSET('Smelter Look-up'!$H$4,$V1840-4,0))","v":""},{"$f":"IF(ISERROR($V1840),\"\",OFFSET('Smelter Look-up'!$I$4,$V1840-4,0))","v":""},{"$nulls":7},{"$f":"IF(ISERROR($V1840),\"\",OFFSET('Smelter Look-up'!$C$4,$V1840-4,0)&\"\")","v":""},"",{"$f":"IF(B1840=\"\",\"\",IF(ISERROR(MATCH($J1840,SorP!$B$1:$B$6230,0)),\"\",INDIRECT(\"'SorP'!$A$\"&MATCH($J1840,SorP!$B$1:$B$6230,0))))","v":""},null,{"$f":"IF(C1840=\"\",NA(),MATCH($B1840&$C1840,'Smelter Look-up'!$J:$J,0))","v":{"$error":"#N/A"}},null,0,null,null,null,""]
[null,{"$f":"IF(LEN(A1841)=0,\"\",INDEX('Smelter Look-up'!$A:$A,MATCH($A1841,'Smelter Look-up'!$E:$E,0)))","v":""},{"$f":"IF(LEN(A1841)=0,\"\",INDEX('Smelter Look-up'!$C:$C,MATCH($A1841,'Smelter Look-up'!$E:$E,0)))","v":""},null,{"$f":"IF(ISERROR($V1841),\"\",OFFSET('Smelter Look-up'!$D$4,$V1841-4,0)&\"\")","v":""},{"$f":"IF(ISERROR($V1841),\"\",OFFSET('Smelter Look-up'!$E$4,$V1841-4,0))","v":""},{"$f":"IF(C1841=$X$4,\"Enter smelter details\", IF(ISERROR($V1841),\"\",OFFSET('Smelter Look-up'!$F$4,$V1841-4,0)))","v":""},{"$f":"IF(ISERROR($V1841),\"\",OFFSET('Smelter Look-up'!$G$4,$V1841-4,0))","v":""},{"$f":"IF(ISERROR($V1841),\"\",OFFSET('Smelter Look-up'!$H$4,$V1841-4,0))","v":""},{"$f":"IF(ISERROR($V1841),\"\",OFFSET('Smelter Look-up'!$I$4,$V1841-4,0))","v":""},{"$nulls":7},{"$f":"IF(ISERROR($V1841),\"\",OFFSET('Smelter Look-up'!$C$4,$V1841-4,0)&\"\")","v":""},"",{"$f":"IF(B1841=\"\",\"\",IF(ISERROR(MATCH($J1841,SorP!$B$1:$B$6230,0)),\"\",INDIRECT(\"'SorP'!$A$\"&MATCH($J1841,SorP!$B$1:$B$6230,0))))","v":""},null,{"$f":"IF(C1841=\"\",NA(),MATCH($B1841&$C1841,'Smelter Look-up'!$J:$J,0))","v":{"$error":"#N/A"}},null,0,null,null,null,""]
[null,{"$f":"IF(LEN(A1842)=0,\"\",INDEX('Smelter Look-up'!$A:$A,MATCH($A1842,'Smelter Look-up'!$E:$E,0)))","v":""},{"$f":"IF(LEN(A1842)=0,\"\",INDEX('Smelter Look-up'!$C:$C,MATCH($A1842,'Smelter Look-up'!$E:$E,0)))","v":""},null,{"$f":"IF(ISERROR($V1842),\"\",OFFSET('Smelter Look-up'!$D$4,$V1842-4,0)&\"\")","v":""},{"$f":"IF(ISERROR($V1842),\"\",OFFSET('Smelter Look-up'!$E$4,$V1842-4,0))","v":""},{"$f":"IF(C1842=$X$4,\"Enter smelter details\", IF(ISERROR($V1842),\"\",OFFSET('Smelter Look-up'!$F$4,$V1842-4,0)))","v":""},{"$f":"IF(ISERROR($V1842),\"\",OFFSET('Smelter Look-up'!$G$4,$V1842-4,0))","v":""},{"$f":"IF(ISERROR($V1842),\"\",OFFSET('Smelter Look-up'!$H$4,$V1842-4,0))","v":""},{"$f":"IF(ISERROR($V1842),\"\",OFFSET('Smelter Look-up'!$I$4,$V1842-4,0))","v":""},{"$nulls":7},{"$f":"IF(ISERROR($V1842),\"\",OFFSET('Smelter Look-up'!$C$4,$V1842-4,0)&\"\")","v":""},"",{"$f":"IF(B1842=\"\",\"\",IF(ISERROR(MATCH($J1842,SorP!$B$1:$B$6230,0)),\"\",INDIRECT(\"'SorP'!$A$\"&MATCH($J1842,SorP!$B$1:$B$6230,0))))","v":""},null,{"$f":"IF(C1842=\"\",NA(),MATCH($B1842&$C1842,'Smelter Look-up'!$J:$J,0))","v":{"$error":"#N/A"}},null,0,null,null,null,""]
[null,{"$f":"IF(LEN(A1843)=0,\"\",INDEX('Smelter Look-up'!$A:$A,MATCH($A1843,'Smelter Look-up'!$E:$E,0)))","v":""},{"$f":"IF(LEN(A1843)=0,\"\",INDEX('Smelter Look-up'!$C:$C,MATCH($A1843,'Smelter Look-up'!$E:$E,0)))","v":""},null,{"$f":"IF(ISERROR($V1843),\"\",OFFSET('Smelter Look-up'!$D$4,$V1843-4,0)&\"\")","v":""},{"$f":"IF(ISERROR($V1843),\"\",OFFSET('Smelter Look-up'!$E$4,$V1843-4,0))","v":""},{"$f":"IF(C1843=$X$4,\"Enter smelter details\", IF(ISERROR($V1843),\"\",OFFSET('Smelter Look-up'!$F$4,$V1843-4,0)))","v":""},{"$f":"IF(ISERROR($V1843),\"\",OFFSET('Smelter Look-up'!$G$4,$V1843-4,0))","v":""},{"$f":"IF(ISERROR($V1843),\"\",OFFSET('Smelter Look-up'!$H$4,$V1843-4,0))","v":""},{"$f":"IF(ISERROR($V1843),\"\",OFFSET('Smelter Look-up'!$I$4,$V1843-4,0))","v":""},{"$nulls":7},{"$f":"IF(ISERROR($V1843),\"\",OFFSET('Smelter Look-up'!$C$4,$V1843-4,0)&\"\")","v":""},"",{"$f":"IF(B1843=\"\",\"\",IF(ISERROR(MATCH($J1843,SorP!$B$1:$B$6230,0)),\"\",INDIRECT(\"'SorP'!$A$\"&MATCH($J1843,SorP!$B$1:$B$6230,0))))","v":""},null,{"$f":"IF(C1843=\"\",NA(),MATCH($B1843&$C1843,'Smelter Look-up'!$J:$J,0))","v":{"$error":"#N/A"}},null,0,null,null,null,""]
[null,{"$f":"IF(LEN(A1844)=0,\"\",INDEX('Smelter Look-up'!$A:$A,MATCH($A1844,'Smelter Look-up'!$E:$E,0)))","v":""},{"$f":"IF(LEN(A1844)=0,\"\",INDEX('Smelter Look-up'!$C:$C,MATCH($A1844,'Smelter Look-up'!$E:$E,0)))","v":""},null,{"$f":"IF(ISERROR($V1844),\"\",OFFSET('Smelter Look-up'!$D$4,$V1844-4,0)&\"\")","v":""},{"$f":"IF(ISERROR($V1844),\"\",OFFSET('Smelter Look-up'!$E$4,$V1844-4,0))","v":""},{"$f":"IF(C1844=$X$4,\"Enter smelter details\", IF(ISERROR($V1844),\"\",OFFSET('Smelter Look-up'!$F$4,$V1844-4,0)))","v":""},{"$f":"IF(ISERROR($V1844),\"\",OFFSET('Smelter Look-up'!$G$4,$V1844-4,0))","v":""},{"$f":"IF(ISERROR($V1844),\"\",OFFSET('Smelter Look-up'!$H$4,$V1844-4,0))","v":""},{"$f":"IF(ISERROR($V1844),\"\",OFFSET('Smelter Look-up'!$I$4,$V1844-4,0))","v":""},{"$nulls":7},{"$f":"IF(ISERROR($V1844),\"\",OFFSET('Smelter Look-up'!$C$4,$V1844-4,0)&\"\")","v":""},"",{"$f":"IF(B1844=\"\",\"\",IF(ISERROR(MATCH($J1844,SorP!$B$1:$B$6230,0)),\"\",INDIRECT(\"'SorP'!$A$\"&MATCH($J1844,SorP!$B$1:$B$6230,0))))","v":""},null,{"$f":"IF(C1844=\"\",NA(),MATCH($B1844&$C1844,'Smelter Look-up'!$J:$J,0))","v":{"$error":"#N/A"}},null,0,null,null,null,""]
[null,{"$f":"IF(LEN(A1845)=0,\"\",INDEX('Smelter Look-up'!$A:$A,MATCH($A1845,'Smelter Look-up'!$E:$E,0)))","v":""},{"$f":"IF(LEN(A1845)=0,\"\",INDEX('Smelter Look-up'!$C:$C,MATCH($A1845,'Smelter Look-up'!$E:$E,0)))","v":""},null,{"$f":"IF(ISERROR($V1845),\"\",OFFSET('Smelter Look-up'!$D$4,$V1845-4,0)&\"\")","v":""},{"$f":"IF(ISERROR($V1845),\"\",OFFSET('Smelter Look-up'!$E$4,$V1845-4,0))","v":""},{"$f":"IF(C1845=$X$4,\"Enter smelter details\", IF(ISERROR($V1845),\"\",OFFSET('Smelter Look-up'!$F$4,$V1845-4,0)))","v":""},{"$f":"IF(ISERROR($V1845),\"\",OFFSET('Smelter Look-up'!$G$4,$V1845-4,0))","v":""},{"$f":"IF(ISERROR($V1845),\"\",OFFSET('Smelter Look-up'!$H$4,$V1845-4,0))","v":""},{"$f":"IF(ISERROR($V1845),\"\",OFFSET('Smelter Look-up'!$I$4,$V1845-4,0))","v":""},{"$nulls":7},{"$f":"IF(ISERROR($V1845),\"\",OFFSET('Smelter Look-up'!$C$4,$V1845-4,0)&\"\")","v":""},"",{"$f":"IF(B1845=\"\",\"\",IF(ISERROR(MATCH($J1845,SorP!$B$1:$B$6230,0)),\"\",INDIRECT(\"'SorP'!$A$\"&MATCH($J1845,SorP!$B$1:$B$6230,0))))","v":""},null,{"$f":"IF(C1845=\"\",NA(),MATCH($B1845&$C1845,'Smelter Look-up'!$J:$J,0))","v":{"$error":"#N/A"}},null,0,null,null,null,""]
[null,{"$f":"IF(LEN(A1846)=0,\"\",INDEX('Smelter Look-up'!$A:$A,MATCH($A1846,'Smelter Look-up'!$E:$E,0)))","v":""},{"$f":"IF(LEN(A1846)=0,\"\",INDEX('Smelter Look-up'!$C:$C,MATCH($A1846,'Smelter Look-up'!$E:$E,0)))","v":""},null,{"$f":"IF(ISERROR($V1846),\"\",OFFSET('Smelter Look-up'!$D$4,$V1846-4,0)&\"\")","v":""},{"$f":"IF(ISERROR($V1846),\"\",OFFSET('Smelter Look-up'!$E$4,$V1846-4,0))","v":""},{"$f":"IF(C1846=$X$4,\"Enter smelter details\", IF(ISERROR($V1846),\"\",OFFSET('Smelter Look-up'!$F$4,$V1846-4,0)))","v":""},{"$f":"IF(ISERROR($V1846),\"\",OFFSET('Smelter Look-up'!$G$4,$V1846-4,0))","v":""},{"$f":"IF(ISERROR($V1846),\"\",OFFSET('Smelter Look-up'!$H$4,$V1846-4,0))","v":""},{"$f":"IF(ISERROR($V1846),\"\",OFFSET('Smelter Look-up'!$I$4,$V1846-4,0))","v":""},{"$nulls":7},{"$f":"IF(ISERROR($V1846),\"\",OFFSET('Smelter Look-up'!$C$4,$V1846-4,0)&\"\")","v":""},"",{"$f":"IF(B1846=\"\",\"\",IF(ISERROR(MATCH($J1846,SorP!$B$1:$B$6230,0)),\"\",INDIRECT(\"'SorP'!$A$\"&MATCH($J1846,SorP!$B$1:$B$6230,0))))","v":""},null,{"$f":"IF(C1846=\"\",NA(),MATCH($B1846&$C1846,'Smelter Look-up'!$J:$J,0))","v":{"$error":"#N/A"}},null,0,null,null,null,""]
[null,{"$f":"IF(LEN(A1847)=0,\"\",INDEX('Smelter Look-up'!$A:$A,MATCH($A1847,'Smelter Look-up'!$E:$E,0)))","v":""},{"$f":"IF(LEN(A1847)=0,\"\",INDEX('Smelter Look-up'!$C:$C,MATCH($A1847,'Smelter Look-up'!$E:$E,0)))","v":""},null,{"$f":"IF(ISERROR($V1847),\"\",OFFSET('Smelter Look-up'!$D$4,$V1847-4,0)&\"\")","v":""},{"$f":"IF(ISERROR($V1847),\"\",OFFSET('Smelter Look-up'!$E$4,$V1847-4,0))","v":""},{"$f":"IF(C1847=$X$4,\"Enter smelter details\", IF(ISERROR($V1847),\"\",OFFSET('Smelter Look-up'!$F$4,$V1847-4,0)))","v":""},{"$f":"IF(ISERROR($V1847),\"\",OFFSET('Smelter Look-up'!$G$4,$V1847-4,0))","v":""},{"$f":"IF(ISERROR($V1847),\"\",OFFSET('Smelter Look-up'!$H$4,$V1847-4,0))","v":""},{"$f":"IF(ISERROR($V1847),\"\",OFFSET('Smelter Look-up'!$I$4,$V1847-4,0))","v":""},{"$nulls":7},{"$f":"IF(ISERROR($V1847),\"\",OFFSET('Smelter Look-up'!$C$4,$V1847-4,0)&\"\")","v":""},"",{"$f":"IF(B1847=\"\",\"\",IF(ISERROR(MATCH($J1847,SorP!$B$1:$B$6230,0)),\"\",INDIRECT(\"'SorP'!$A$\"&MATCH($J1847,SorP!$B$1:$B$6230,0))))","v":""},null,{"$f":"IF(C1847=\"\",NA(),MATCH($B1847&$C1847,'Smelter Look-up'!$J:$J,0))","v":{"$error":"#N/A"}},null,0,null,null,null,""]
[null,{"$f":"IF(LEN(A1848)=0,\"\",INDEX('Smelter Look-up'!$A:$A,MATCH($A1848,'Smelter Look-up'!$E:$E,0)))","v":""},{"$f":"IF(LEN(A1848)=0,\"\",INDEX('Smelter Look-up'!$C:$C,MATCH($A1848,'Smelter Look-up'!$E:$E,0)))","v":""},null,{"$f":"IF(ISERROR($V1848),\"\",OFFSET('Smelter Look-up'!$D$4,$V1848-4,0)&\"\")","v":""},{"$f":"IF(ISERROR($V1848),\"\",OFFSET('Smelter Look-up'!$E$4,$V1848-4,0))","v":""},{"$f":"IF(C1848=$X$4,\"Enter smelter details\", IF(ISERROR($V1848),\"\",OFFSET('Smelter Look-up'!$F$4,$V1848-4,0)))","v":""},{"$f":"IF(ISERROR($V1848),\"\",OFFSET('Smelter Look-up'!$G$4,$V1848-4,0))","v":""},{"$f":"IF(ISERROR($V1848),\"\",OFFSET('Smelter Look-up'!$H$4,$V1848-4,0))","v":""},{"$f":"IF(ISERROR($V1848),\"\",OFFSET('Smelter Look-up'!$I$4,$V1848-4,0))","v":""},{"$nulls":7},{"$f":"IF(ISERROR($V1848),\"\",OFFSET('Smelter Look-up'!$C$4,$V1848-4,0)&\"\")","v":""},"",{"$f":"IF(B1848=\"\",\"\",IF(ISERROR(MATCH($J1848,SorP!$B$1:$B$6230,0)),\"\",INDIRECT(\"'SorP'!$A$\"&MATCH($J1848,SorP!$B$1:$B$6230,0))))","v":""},null,{"$f":"IF(C1848=\"\",NA(),MATCH($B1848&$C1848,'Smelter Look-up'!$J:$J,0))","v":{"$error":"#N/A"}},null,0,null,null,null,""]
[null,{"$f":"IF(LEN(A1849)=0,\"\",INDEX('Smelter Look-up'!$A:$A,MATCH($A1849,'Smelter Look-up'!$E:$E,0)))","v":""},{"$f":"IF(LEN(A1849)=0,\"\",INDEX('Smelter Look-up'!$C:$C,MATCH($A1849,'Smelter Look-up'!$E:$E,0)))","v":""},null,{"$f":"IF(ISERROR($V1849),\"\",OFFSET('Smelter Look-up'!$D$4,$V1849-4,0)&\"\")","v":""},{"$f":"IF(ISERROR($V1849),\"\",OFFSET('Smelter Look-up'!$E$4,$V1849-4,0))","v":""},{"$f":"IF(C1849=$X$4,\"Enter smelter details\", IF(ISERROR($V1849),\"\",OFFSET('Smelter Look-up'!$F$4,$V1849-4,0)))","v":""},{"$f":"IF(ISERROR($V1849),\"\",OFFSET('Smelter Look-up'!$G$4,$V1849-4,0))","v":""},{"$f":"IF(ISERROR($V1849),\"\",OFFSET('Smelter Look-up'!$H$4,$V1849-4,0))","v":""},{"$f":"IF(ISERROR($V1849),\"\",OFFSET('Smelter Look-up'!$I$4,$V1849-4,0))","v":""},{"$nulls":7},{"$f":"IF(ISERROR($V1849),\"\",OFFSET('Smelter Look-up'!$C$4,$V1849-4,0)&\"\")","v":""},"",{"$f":"IF(B1849=\"\",\"\",IF(ISERROR(MATCH($J1849,SorP!$B$1:$B$6230,0)),\"\",INDIRECT(\"'SorP'!$A$\"&MATCH($J1849,SorP!$B$1:$B$6230,0))))","v":""},null,{"$f":"IF(C1849=\"\",NA(),MATCH($B1849&$C1849,'Smelter Look-up'!$J:$J,0))","v":{"$error":"#N/A"}},null,0,null,null,null,""]
[null,{"$f":"IF(LEN(A1850)=0,\"\",INDEX('Smelter Look-up'!$A:$A,MATCH($A1850,'Smelter Look-up'!$E:$E,0)))","v":""},{"$f":"IF(LEN(A1850)=0,\"\",INDEX('Smelter Look-up'!$C:$C,MATCH($A1850,'Smelter Look-up'!$E:$E,0)))","v":""},null,{"$f":"IF(ISERROR($V1850),\"\",OFFSET('Smelter Look-up'!$D$4,$V1850-4,0)&\"\")","v":""},{"$f":"IF(ISERROR($V1850),\"\",OFFSET('Smelter Look-up'!$E$4,$V1850-4,0))","v":""},{"$f":"IF(C1850=$X$4,\"Enter smelter details\", IF(ISERROR($V1850),\"\",OFFSET('Smelter Look-up'!$F$4,$V1850-4,0)))","v":""},{"$f":"IF(ISERROR($V1850),\"\",OFFSET('Smelter Look-up'!$G$4,$V1850-4,0))","v":""},{"$f":"IF(ISERROR($V1850),\"\",OFFSET('Smelter Look-up'!$H$4,$V1850-4,0))","v":""},{"$f":"IF(ISERROR($V1850),\"\",OFFSET('Smelter Look-up'!$I$4,$V1850-4,0))","v":""},{"$nulls":7},{"$f":"IF(ISERROR($V1850),\"\",OFFSET('Smelter Look-up'!$C$4,$V1850-4,0)&\"\")","v":""},"",{"$f":"IF(B1850=\"\",\"\",IF(ISERROR(MATCH($J1850,SorP!$B$1:$B$6230,0)),\"\",INDIRECT(\"'SorP'!$A$\"&MATCH($J1850,SorP!$B$1:$B$6230,0))))","v":""},null,{"$f":"IF(C1850=\"\",NA(),MATCH($B1850&$C1850,'Smelter Look-up'!$J:$J,0))","v":{"$error":"#N/A"}},null,0,null,null,null,""]
[null,{"$f":"IF(LEN(A1851)=0,\"\",INDEX('Smelter Look-up'!$A:$A,MATCH($A1851,'Smelter Look-up'!$E:$E,0)))","v":""},{"$f":"IF(LEN(A1851)=0,\"\",INDEX('Smelter Look-up'!$C:$C,MATCH($A1851,'Smelter Look-up'!$E:$E,0)))","v":""},null,{"$f":"IF(ISERROR($V1851),\"\",OFFSET('Smelter Look-up'!$D$4,$V1851-4,0)&\"\")","v":""},{"$f":"IF(ISERROR($V1851),\"\",OFFSET('Smelter Look-up'!$E$4,$V1851-4,0))","v":""},{"$f":"IF(C1851=$X$4,\"Enter smelter details\", IF(ISERROR($V1851),\"\",OFFSET('Smelter Look-up'!$F$4,$V1851-4,0)))","v":""},{"$f":"IF(ISERROR($V1851),\"\",OFFSET('Smelter Look-up'!$G$4,$V1851-4,0))","v":""},{"$f":"IF(ISERROR($V1851),\"\",OFFSET('Smelter Look-up'!$H$4,$V1851-4,0))","v":""},{"$f":"IF(ISERROR($V1851),\"\",OFFSET('Smelter Look-up'!$I$4,$V1851-4,0))","v":""},{"$nulls":7},{"$f":"IF(ISERROR($V1851),\"\",OFFSET('Smelter Look-up'!$C$4,$V1851-4,0)&\"\")","v":""},{"$f":"IF(B1851=\"\",\"\",IF(ISERROR(MATCH($E1851,CL,0)),\"Unknown\",INDIRECT(\"'C'!$A$\"&MATCH($E1851,CL,0)+1)))","v":""},{"$f":"IF(B1851=\"\",\"\",IF(ISERROR(MATCH($J1851,SorP!$B$1:$B$6230,0)),\"\",INDIRECT(\"'SorP'!$A$\"&MATCH($J1851,SorP!$B$1:$B$6230,0))))","v":""},null,{"$f":"IF(C1851=\"\",NA(),MATCH($B1851&$C1851,'Smelter Look-up'!$J:$J,0))","v":{"$error":"#N/A"}},null,{"$f":"IF(AND(C1851=\"Smelter not listed\",OR(LEN(D1851)=0,LEN(E1851)=0)),1,0)","v":0},null,null,null,{"$f":"B1851&C1851","v":""}]
[null,{"$f":"IF(LEN(A1852)=0,\"\",INDEX('Smelter Look-up'!$A:$A,MATCH($A1852,'Smelter Look-up'!$E:$E,0)))","v":""},{"$f":"IF(LEN(A1852)=0,\"\",INDEX('Smelter Look-up'!$C:$C,MATCH($A1852,'Smelter Look-up'!$E:$E,0)))","v":""},null,{"$f":"IF(ISERROR($V1852),\"\",OFFSET('Smelter Look-up'!$D$4,$V1852-4,0)&\"\")","v":""},{"$f":"IF(ISERROR($V1852),\"\",OFFSET('Smelter Look-up'!$E$4,$V1852-4,0))","v":""},{"$f":"IF(C1852=$X$4,\"Enter smelter details\", IF(ISERROR($V1852),\"\",OFFSET('Smelter Look-up'!$F$4,$V1852-4,0)))","v":""},{"$f":"IF(ISERROR($V1852),\"\",OFFSET('Smelter Look-up'!$G$4,$V1852-4,0))","v":""},{"$f":"IF(ISERROR($V1852),\"\",OFFSET('Smelter Look-up'!$H$4,$V1852-4,0))","v":""},{"$f":"IF(ISERROR($V1852),\"\",OFFSET('Smelter Look-up'!$I$4,$V1852-4,0))","v":""},{"$nulls":7},{"$f":"IF(ISERROR($V1852),\"\",OFFSET('Smelter Look-up'!$C$4,$V1852-4,0)&\"\")","v":""},"",{"$f":"IF(B1852=\"\",\"\",IF(ISERROR(MATCH($J1852,SorP!$B$1:$B$6230,0)),\"\",INDIRECT(\"'SorP'!$A$\"&MATCH($J1852,SorP!$B$1:$B$6230,0))))","v":""},null,{"$f":"IF(C1852=\"\",NA(),MATCH($B1852&$C1852,'Smelter Look-up'!$J:$J,0))","v":{"$error":"#N/A"}},null,0,null,null,null,""]
[null,{"$f":"IF(LEN(A1853)=0,\"\",INDEX('Smelter Look-up'!$A:$A,MATCH($A1853,'Smelter Look-up'!$E:$E,0)))","v":""},{"$f":"IF(LEN(A1853)=0,\"\",INDEX('Smelter Look-up'!$C:$C,MATCH($A1853,'Smelter Look-up'!$E:$E,0)))","v":""},null,{"$f":"IF(ISERROR($V1853),\"\",OFFSET('Smelter Look-up'!$D$4,$V1853-4,0)&\"\")","v":""},{"$f":"IF(ISERROR($V1853),\"\",OFFSET('Smelter Look-up'!$E$4,$V1853-4,0))","v":""},{"$f":"IF(C1853=$X$4,\"Enter smelter details\", IF(ISERROR($V1853),\"\",OFFSET('Smelter Look-up'!$F$4,$V1853-4,0)))","v":""},{"$f":"IF(ISERROR($V1853),\"\",OFFSET('Smelter Look-up'!$G$4,$V1853-4,0))","v":""},{"$f":"IF(ISERROR($V1853),\"\",OFFSET('Smelter Look-up'!$H$4,$V1853-4,0))","v":""},{"$f":"IF(ISERROR($V1853),\"\",OFFSET('Smelter Look-up'!$I$4,$V1853-4,0))","v":""},{"$nulls":7},{"$f":"IF(ISERROR($V1853),\"\",OFFSET('Smelter Look-up'!$C$4,$V1853-4,0)&\"\")","v":""},"",{"$f":"IF(B1853=\"\",\"\",IF(ISERROR(MATCH($J1853,SorP!$B$1:$B$6230,0)),\"\",INDIRECT(\"'SorP'!$A$\"&MATCH($J1853,SorP!$B$1:$B$6230,0))))","v":""},null,{"$f":"IF(C1853=\"\",NA(),MATCH($B1853&$C1853,'Smelter Look-up'!$J:$J,0))","v":{"$error":"#N/A"}},null,0,null,null,null,""]
[null,{"$f":"IF(LEN(A1854)=0,\"\",INDEX('Smelter Look-up'!$A:$A,MATCH($A1854,'Smelter Look-up'!$E:$E,0)))","v":""},{"$f":"IF(LEN(A1854)=0,\"\",INDEX('Smelter Look-up'!$C:$C,MATCH($A1854,'Smelter Look-up'!$E:$E,0)))","v":""},null,{"$f":"IF(ISERROR($V1854),\"\",OFFSET('Smelter Look-up'!$D$4,$V1854-4,0)&\"\")","v":""},{"$f":"IF(ISERROR($V1854),\"\",OFFSET('Smelter Look-up'!$E$4,$V1854-4,0))","v":""},{"$f":"IF(C1854=$X$4,\"Enter smelter details\", IF(ISERROR($V1854),\"\",OFFSET('Smelter Look-up'!$F$4,$V1854-4,0)))","v":""},{"$f":"IF(ISERROR($V1854),\"\",OFFSET('Smelter Look-up'!$G$4,$V1854-4,0))","v":""},{"$f":"IF(ISERROR($V1854),\"\",OFFSET('Smelter Look-up'!$H$4,$V1854-4,0))","v":""},{"$f":"IF(ISERROR($V1854),\"\",OFFSET('Smelter Look-up'!$I$4,$V1854-4,0))","v":""},{"$nulls":7},{"$f":"IF(ISERROR($V1854),\"\",OFFSET('Smelter Look-up'!$C$4,$V1854-4,0)&\"\")","v":""},"",{"$f":"IF(B1854=\"\",\"\",IF(ISERROR(MATCH($J1854,SorP!$B$1:$B$6230,0)),\"\",INDIRECT(\"'SorP'!$A$\"&MATCH($J1854,SorP!$B$1:$B$6230,0))))","v":""},null,{"$f":"IF(C1854=\"\",NA(),MATCH($B1854&$C1854,'Smelter Look-up'!$J:$J,0))","v":{"$error":"#N/A"}},null,0,null,null,null,""]
[null,{"$f":"IF(LEN(A1855)=0,\"\",INDEX('Smelter Look-up'!$A:$A,MATCH($A1855,'Smelter Look-up'!$E:$E,0)))","v":""},{"$f":"IF(LEN(A1855)=0,\"\",INDEX('Smelter Look-up'!$C:$C,MATCH($A1855,'Smelter Look-up'!$E:$E,0)))","v":""},null,{"$f":"IF(ISERROR($V1855),\"\",OFFSET('Smelter Look-up'!$D$4,$V1855-4,0)&\"\")","v":""},{"$f":"IF(ISERROR($V1855),\"\",OFFSET('Smelter Look-up'!$E$4,$V1855-4,0))","v":""},{"$f":"IF(C1855=$X$4,\"Enter smelter details\", IF(ISERROR($V1855),\"\",OFFSET('Smelter Look-up'!$F$4,$V1855-4,0)))","v":""},{"$f":"IF(ISERROR($V1855),\"\",OFFSET('Smelter Look-up'!$G$4,$V1855-4,0))","v":""},{"$f":"IF(ISERROR($V1855),\"\",OFFSET('Smelter Look-up'!$H$4,$V1855-4,0))","v":""},{"$f":"IF(ISERROR($V1855),\"\",OFFSET('Smelter Look-up'!$I$4,$V1855-4,0))","v":""},{"$nulls":7},{"$f":"IF(ISERROR($V1855),\"\",OFFSET('Smelter Look-up'!$C$4,$V1855-4,0)&\"\")","v":""},"",{"$f":"IF(B1855=\"\",\"\",IF(ISERROR(MATCH($J1855,SorP!$B$1:$B$6230,0)),\"\",INDIRECT(\"'SorP'!$A$\"&MATCH($J1855,SorP!$B$1:$B$6230,0))))","v":""},null,{"$f":"IF(C1855=\"\",NA(),MATCH($B1855&$C1855,'Smelter Look-up'!$J:$J,0))","v":{"$error":"#N/A"}},null,0,null,null,null,""]
[null,{"$f":"IF(LEN(A1856)=0,\"\",INDEX('Smelter Look-up'!$A:$A,MATCH($A1856,'Smelter Look-up'!$E:$E,0)))","v":""},{"$f":"IF(LEN(A1856)=0,\"\",INDEX('Smelter Look-up'!$C:$C,MATCH($A1856,'Smelter Look-up'!$E:$E,0)))","v":""},null,{"$f":"IF(ISERROR($V1856),\"\",OFFSET('Smelter Look-up'!$D$4,$V1856-4,0)&\"\")","v":""},{"$f":"IF(ISERROR($V1856),\"\",OFFSET('Smelter Look-up'!$E$4,$V1856-4,0))","v":""},{"$f":"IF(C1856=$X$4,\"Enter smelter details\", IF(ISERROR($V1856),\"\",OFFSET('Smelter Look-up'!$F$4,$V1856-4,0)))","v":""},{"$f":"IF(ISERROR($V1856),\"\",OFFSET('Smelter Look-up'!$G$4,$V1856-4,0))","v":""},{"$f":"IF(ISERROR($V1856),\"\",OFFSET('Smelter Look-up'!$H$4,$V1856-4,0))","v":""},{"$f":"IF(ISERROR($V1856),\"\",OFFSET('Smelter Look-up'!$I$4,$V1856-4,0))","v":""},{"$nulls":7},{"$f":"IF(ISERROR($V1856),\"\",OFFSET('Smelter Look-up'!$C$4,$V1856-4,0)&\"\")","v":""},"",{"$f":"IF(B1856=\"\",\"\",IF(ISERROR(MATCH($J1856,SorP!$B$1:$B$6230,0)),\"\",INDIRECT(\"'SorP'!$A$\"&MATCH($J1856,SorP!$B$1:$B$6230,0))))","v":""},null,{"$f":"IF(C1856=\"\",NA(),MATCH($B1856&$C1856,'Smelter Look-up'!$J:$J,0))","v":{"$error":"#N/A"}},null,0,null,null,null,""]
[null,{"$f":"IF(LEN(A1857)=0,\"\",INDEX('Smelter Look-up'!$A:$A,MATCH($A1857,'Smelter Look-up'!$E:$E,0)))","v":""},{"$f":"IF(LEN(A1857)=0,\"\",INDEX('Smelter Look-up'!$C:$C,MATCH($A1857,'Smelter Look-up'!$E:$E,0)))","v":""},null,{"$f":"IF(ISERROR($V1857),\"\",OFFSET('Smelter Look-up'!$D$4,$V1857-4,0)&\"\")","v":""},{"$f":"IF(ISERROR($V1857),\"\",OFFSET('Smelter Look-up'!$E$4,$V1857-4,0))","v":""},{"$f":"IF(C1857=$X$4,\"Enter smelter details\", IF(ISERROR($V1857),\"\",OFFSET('Smelter Look-up'!$F$4,$V1857-4,0)))","v":""},{"$f":"IF(ISERROR($V1857),\"\",OFFSET('Smelter Look-up'!$G$4,$V1857-4,0))","v":""},{"$f":"IF(ISERROR($V1857),\"\",OFFSET('Smelter Look-up'!$H$4,$V1857-4,0))","v":""},{"$f":"IF(ISERROR($V1857),\"\",OFFSET('Smelter Look-up'!$I$4,$V1857-4,0))","v":""},{"$nulls":7},{"$f":"IF(ISERROR($V1857),\"\",OFFSET('Smelter Look-up'!$C$4,$V1857-4,0)&\"\")","v":""},"",{"$f":"IF(B1857=\"\",\"\",IF(ISERROR(MATCH($J1857,SorP!$B$1:$B$6230,0)),\"\",INDIRECT(\"'SorP'!$A$\"&MATCH($J1857,SorP!$B$1:$B$6230,0))))","v":""},null,{"$f":"IF(C1857=\"\",NA(),MATCH($B1857&$C1857,'Smelter Look-up'!$J:$J,0))","v":{"$error":"#N/A"}},null,0,null,null,null,""]
[null,{"$f":"IF(LEN(A1858)=0,\"\",INDEX('Smelter Look-up'!$A:$A,MATCH($A1858,'Smelter Look-up'!$E:$E,0)))","v":""},{"$f":"IF(LEN(A1858)=0,\"\",INDEX('Smelter Look-up'!$C:$C,MATCH($A1858,'Smelter Look-up'!$E:$E,0)))","v":""},null,{"$f":"IF(ISERROR($V1858),\"\",OFFSET('Smelter Look-up'!$D$4,$V1858-4,0)&\"\")","v":""},{"$f":"IF(ISERROR($V1858),\"\",OFFSET('Smelter Look-up'!$E$4,$V1858-4,0))","v":""},{"$f":"IF(C1858=$X$4,\"Enter smelter details\", IF(ISERROR($V1858),\"\",OFFSET('Smelter Look-up'!$F$4,$V1858-4,0)))","v":""},{"$f":"IF(ISERROR($V1858),\"\",OFFSET('Smelter Look-up'!$G$4,$V1858-4,0))","v":""},{"$f":"IF(ISERROR($V1858),\"\",OFFSET('Smelter Look-up'!$H$4,$V1858-4,0))","v":""},{"$f":"IF(ISERROR($V1858),\"\",OFFSET('Smelter Look-up'!$I$4,$V1858-4,0))","v":""},{"$nulls":7},{"$f":"IF(ISERROR($V1858),\"\",OFFSET('Smelter Look-up'!$C$4,$V1858-4,0)&\"\")","v":""},"",{"$f":"IF(B1858=\"\",\"\",IF(ISERROR(MATCH($J1858,SorP!$B$1:$B$6230,0)),\"\",INDIRECT(\"'SorP'!$A$\"&MATCH($J1858,SorP!$B$1:$B$6230,0))))","v":""},null,{"$f":"IF(C1858=\"\",NA(),MATCH($B1858&$C1858,'Smelter Look-up'!$J:$J,0))","v":{"$error":"#N/A"}},null,0,null,null,null,""]
[null,{"$f":"IF(LEN(A1859)=0,\"\",INDEX('Smelter Look-up'!$A:$A,MATCH($A1859,'Smelter Look-up'!$E:$E,0)))","v":""},{"$f":"IF(LEN(A1859)=0,\"\",INDEX('Smelter Look-up'!$C:$C,MATCH($A1859,'Smelter Look-up'!$E:$E,0)))","v":""},null,{"$f":"IF(ISERROR($V1859),\"\",OFFSET('Smelter Look-up'!$D$4,$V1859-4,0)&\"\")","v":""},{"$f":"IF(ISERROR($V1859),\"\",OFFSET('Smelter Look-up'!$E$4,$V1859-4,0))","v":""},{"$f":"IF(C1859=$X$4,\"Enter smelter details\", IF(ISERROR($V1859),\"\",OFFSET('Smelter Look-up'!$F$4,$V1859-4,0)))","v":""},{"$f":"IF(ISERROR($V1859),\"\",OFFSET('Smelter Look-up'!$G$4,$V1859-4,0))","v":""},{"$f":"IF(ISERROR($V1859),\"\",OFFSET('Smelter Look-up'!$H$4,$V1859-4,0))","v":""},{"$f":"IF(ISERROR($V1859),\"\",OFFSET('Smelter Look-up'!$I$4,$V1859-4,0))","v":""},{"$nulls":7},{"$f":"IF(ISERROR($V1859),\"\",OFFSET('Smelter Look-up'!$C$4,$V1859-4,0)&\"\")","v":""},"",{"$f":"IF(B1859=\"\",\"\",IF(ISERROR(MATCH($J1859,SorP!$B$1:$B$6230,0)),\"\",INDIRECT(\"'SorP'!$A$\"&MATCH($J1859,SorP!$B$1:$B$6230,0))))","v":""},null,{"$f":"IF(C1859=\"\",NA(),MATCH($B1859&$C1859,'Smelter Look-up'!$J:$J,0))","v":{"$error":"#N/A"}},null,0,null,null,null,""]
[null,{"$f":"IF(LEN(A1860)=0,\"\",INDEX('Smelter Look-up'!$A:$A,MATCH($A1860,'Smelter Look-up'!$E:$E,0)))","v":""},{"$f":"IF(LEN(A1860)=0,\"\",INDEX('Smelter Look-up'!$C:$C,MATCH($A1860,'Smelter Look-up'!$E:$E,0)))","v":""},null,{"$f":"IF(ISERROR($V1860),\"\",OFFSET('Smelter Look-up'!$D$4,$V1860-4,0)&\"\")","v":""},{"$f":"IF(ISERROR($V1860),\"\",OFFSET('Smelter Look-up'!$E$4,$V1860-4,0))","v":""},{"$f":"IF(C1860=$X$4,\"Enter smelter details\", IF(ISERROR($V1860),\"\",OFFSET('Smelter Look-up'!$F$4,$V1860-4,0)))","v":""},{"$f":"IF(ISERROR($V1860),\"\",OFFSET('Smelter Look-up'!$G$4,$V1860-4,0))","v":""},{"$f":"IF(ISERROR($V1860),\"\",OFFSET('Smelter Look-up'!$H$4,$V1860-4,0))","v":""},{"$f":"IF(ISERROR($V1860),\"\",OFFSET('Smelter Look-up'!$I$4,$V1860-4,0))","v":""},{"$nulls":7},{"$f":"IF(ISERROR($V1860),\"\",OFFSET('Smelter Look-up'!$C$4,$V1860-4,0)&\"\")","v":""},"",{"$f":"IF(B1860=\"\",\"\",IF(ISERROR(MATCH($J1860,SorP!$B$1:$B$6230,0)),\"\",INDIRECT(\"'SorP'!$A$\"&MATCH($J1860,SorP!$B$1:$B$6230,0))))","v":""},null,{"$f":"IF(C1860=\"\",NA(),MATCH($B1860&$C1860,'Smelter Look-up'!$J:$J,0))","v":{"$error":"#N/A"}},null,0,null,null,null,""]
[null,{"$f":"IF(LEN(A1861)=0,\"\",INDEX('Smelter Look-up'!$A:$A,MATCH($A1861,'Smelter Look-up'!$E:$E,0)))","v":""},{"$f":"IF(LEN(A1861)=0,\"\",INDEX('Smelter Look-up'!$C:$C,MATCH($A1861,'Smelter Look-up'!$E:$E,0)))","v":""},null,{"$f":"IF(ISERROR($V1861),\"\",OFFSET('Smelter Look-up'!$D$4,$V1861-4,0)&\"\")","v":""},{"$f":"IF(ISERROR($V1861),\"\",OFFSET('Smelter Look-up'!$E$4,$V1861-4,0))","v":""},{"$f":"IF(C1861=$X$4,\"Enter smelter details\", IF(ISERROR($V1861),\"\",OFFSET('Smelter Look-up'!$F$4,$V1861-4,0)))","v":""},{"$f":"IF(ISERROR($V1861),\"\",OFFSET('Smelter Look-up'!$G$4,$V1861-4,0))","v":""},{"$f":"IF(ISERROR($V1861),\"\",OFFSET('Smelter Look-up'!$H$4,$V1861-4,0))","v":""},{"$f":"IF(ISERROR($V1861),\"\",OFFSET('Smelter Look-up'!$I$4,$V1861-4,0))","v":""},{"$nulls":7},{"$f":"IF(ISERROR($V1861),\"\",OFFSET('Smelter Look-up'!$C$4,$V1861-4,0)&\"\")","v":""},"",{"$f":"IF(B1861=\"\",\"\",IF(ISERROR(MATCH($J1861,SorP!$B$1:$B$6230,0)),\"\",INDIRECT(\"'SorP'!$A$\"&MATCH($J1861,SorP!$B$1:$B$6230,0))))","v":""},null,{"$f":"IF(C1861=\"\",NA(),MATCH($B1861&$C1861,'Smelter Look-up'!$J:$J,0))","v":{"$error":"#N/A"}},null,0,null,null,null,""]
[null,{"$f":"IF(LEN(A1862)=0,\"\",INDEX('Smelter Look-up'!$A:$A,MATCH($A1862,'Smelter Look-up'!$E:$E,0)))","v":""},{"$f":"IF(LEN(A1862)=0,\"\",INDEX('Smelter Look-up'!$C:$C,MATCH($A1862,'Smelter Look-up'!$E:$E,0)))","v":""},null,{"$f":"IF(ISERROR($V1862),\"\",OFFSET('Smelter Look-up'!$D$4,$V1862-4,0)&\"\")","v":""},{"$f":"IF(ISERROR($V1862),\"\",OFFSET('Smelter Look-up'!$E$4,$V1862-4,0))","v":""},{"$f":"IF(C1862=$X$4,\"Enter smelter details\", IF(ISERROR($V1862),\"\",OFFSET('Smelter Look-up'!$F$4,$V1862-4,0)))","v":""},{"$f":"IF(ISERROR($V1862),\"\",OFFSET('Smelter Look-up'!$G$4,$V1862-4,0))","v":""},{"$f":"IF(ISERROR($V1862),\"\",OFFSET('Smelter Look-up'!$H$4,$V1862-4,0))","v":""},{"$f":"IF(ISERROR($V1862),\"\",OFFSET('Smelter Look-up'!$I$4,$V1862-4,0))","v":""},{"$nulls":7},{"$f":"IF(ISERROR($V1862),\"\",OFFSET('Smelter Look-up'!$C$4,$V1862-4,0)&\"\")","v":""},"",{"$f":"IF(B1862=\"\",\"\",IF(ISERROR(MATCH($J1862,SorP!$B$1:$B$6230,0)),\"\",INDIRECT(\"'SorP'!$A$\"&MATCH($J1862,SorP!$B$1:$B$6230,0))))","v":""},null,{"$f":"IF(C1862=\"\",NA(),MATCH($B1862&$C1862,'Smelter Look-up'!$J:$J,0))","v":{"$error":"#N/A"}},null,0,null,null,null,""]
[null,{"$f":"IF(LEN(A1863)=0,\"\",INDEX('Smelter Look-up'!$A:$A,MATCH($A1863,'Smelter Look-up'!$E:$E,0)))","v":""},{"$f":"IF(LEN(A1863)=0,\"\",INDEX('Smelter Look-up'!$C:$C,MATCH($A1863,'Smelter Look-up'!$E:$E,0)))","v":""},null,{"$f":"IF(ISERROR($V1863),\"\",OFFSET('Smelter Look-up'!$D$4,$V1863-4,0)&\"\")","v":""},{"$f":"IF(ISERROR($V1863),\"\",OFFSET('Smelter Look-up'!$E$4,$V1863-4,0))","v":""},{"$f":"IF(C1863=$X$4,\"Enter smelter details\", IF(ISERROR($V1863),\"\",OFFSET('Smelter Look-up'!$F$4,$V1863-4,0)))","v":""},{"$f":"IF(ISERROR($V1863),\"\",OFFSET('Smelter Look-up'!$G$4,$V1863-4,0))","v":""},{"$f":"IF(ISERROR($V1863),\"\",OFFSET('Smelter Look-up'!$H$4,$V1863-4,0))","v":""},{"$f":"IF(ISERROR($V1863),\"\",OFFSET('Smelter Look-up'!$I$4,$V1863-4,0))","v":""},{"$nulls":7},{"$f":"IF(ISERROR($V1863),\"\",OFFSET('Smelter Look-up'!$C$4,$V1863-4,0)&\"\")","v":""},"",{"$f":"IF(B1863=\"\",\"\",IF(ISERROR(MATCH($J1863,SorP!$B$1:$B$6230,0)),\"\",INDIRECT(\"'SorP'!$A$\"&MATCH($J1863,SorP!$B$1:$B$6230,0))))","v":""},null,{"$f":"IF(C1863=\"\",NA(),MATCH($B1863&$C1863,'Smelter Look-up'!$J:$J,0))","v":{"$error":"#N/A"}},null,0,null,null,null,""]
[null,{"$f":"IF(LEN(A1864)=0,\"\",INDEX('Smelter Look-up'!$A:$A,MATCH($A1864,'Smelter Look-up'!$E:$E,0)))","v":""},{"$f":"IF(LEN(A1864)=0,\"\",INDEX('Smelter Look-up'!$C:$C,MATCH($A1864,'Smelter Look-up'!$E:$E,0)))","v":""},null,{"$f":"IF(ISERROR($V1864),\"\",OFFSET('Smelter Look-up'!$D$4,$V1864-4,0)&\"\")","v":""},{"$f":"IF(ISERROR($V1864),\"\",OFFSET('Smelter Look-up'!$E$4,$V1864-4,0))","v":""},{"$f":"IF(C1864=$X$4,\"Enter smelter details\", IF(ISERROR($V1864),\"\",OFFSET('Smelter Look-up'!$F$4,$V1864-4,0)))","v":""},{"$f":"IF(ISERROR($V1864),\"\",OFFSET('Smelter Look-up'!$G$4,$V1864-4,0))","v":""},{"$f":"IF(ISERROR($V1864),\"\",OFFSET('Smelter Look-up'!$H$4,$V1864-4,0))","v":""},{"$f":"IF(ISERROR($V1864),\"\",OFFSET('Smelter Look-up'!$I$4,$V1864-4,0))","v":""},{"$nulls":7},{"$f":"IF(ISERROR($V1864),\"\",OFFSET('Smelter Look-up'!$C$4,$V1864-4,0)&\"\")","v":""},"",{"$f":"IF(B1864=\"\",\"\",IF(ISERROR(MATCH($J1864,SorP!$B$1:$B$6230,0)),\"\",INDIRECT(\"'SorP'!$A$\"&MATCH($J1864,SorP!$B$1:$B$6230,0))))","v":""},null,{"$f":"IF(C1864=\"\",NA(),MATCH($B1864&$C1864,'Smelter Look-up'!$J:$J,0))","v":{"$error":"#N/A"}},null,0,null,null,null,""]
[null,{"$f":"IF(LEN(A1865)=0,\"\",INDEX('Smelter Look-up'!$A:$A,MATCH($A1865,'Smelter Look-up'!$E:$E,0)))","v":""},{"$f":"IF(LEN(A1865)=0,\"\",INDEX('Smelter Look-up'!$C:$C,MATCH($A1865,'Smelter Look-up'!$E:$E,0)))","v":""},null,{"$f":"IF(ISERROR($V1865),\"\",OFFSET('Smelter Look-up'!$D$4,$V1865-4,0)&\"\")","v":""},{"$f":"IF(ISERROR($V1865),\"\",OFFSET('Smelter Look-up'!$E$4,$V1865-4,0))","v":""},{"$f":"IF(C1865=$X$4,\"Enter smelter details\", IF(ISERROR($V1865),\"\",OFFSET('Smelter Look-up'!$F$4,$V1865-4,0)))","v":""},{"$f":"IF(ISERROR($V1865),\"\",OFFSET('Smelter Look-up'!$G$4,$V1865-4,0))","v":""},{"$f":"IF(ISERROR($V1865),\"\",OFFSET('Smelter Look-up'!$H$4,$V1865-4,0))","v":""},{"$f":"IF(ISERROR($V1865),\"\",OFFSET('Smelter Look-up'!$I$4,$V1865-4,0))","v":""},{"$nulls":7},{"$f":"IF(ISERROR($V1865),\"\",OFFSET('Smelter Look-up'!$C$4,$V1865-4,0)&\"\")","v":""},"",{"$f":"IF(B1865=\"\",\"\",IF(ISERROR(MATCH($J1865,SorP!$B$1:$B$6230,0)),\"\",INDIRECT(\"'SorP'!$A$\"&MATCH($J1865,SorP!$B$1:$B$6230,0))))","v":""},null,{"$f":"IF(C1865=\"\",NA(),MATCH($B1865&$C1865,'Smelter Look-up'!$J:$J,0))","v":{"$error":"#N/A"}},null,0,null,null,null,""]
[null,{"$f":"IF(LEN(A1866)=0,\"\",INDEX('Smelter Look-up'!$A:$A,MATCH($A1866,'Smelter Look-up'!$E:$E,0)))","v":""},{"$f":"IF(LEN(A1866)=0,\"\",INDEX('Smelter Look-up'!$C:$C,MATCH($A1866,'Smelter Look-up'!$E:$E,0)))","v":""},null,{"$f":"IF(ISERROR($V1866),\"\",OFFSET('Smelter Look-up'!$D$4,$V1866-4,0)&\"\")","v":""},{"$f":"IF(ISERROR($V1866),\"\",OFFSET('Smelter Look-up'!$E$4,$V1866-4,0))","v":""},{"$f":"IF(C1866=$X$4,\"Enter smelter details\", IF(ISERROR($V1866),\"\",OFFSET('Smelter Look-up'!$F$4,$V1866-4,0)))","v":""},{"$f":"IF(ISERROR($V1866),\"\",OFFSET('Smelter Look-up'!$G$4,$V1866-4,0))","v":""},{"$f":"IF(ISERROR($V1866),\"\",OFFSET('Smelter Look-up'!$H$4,$V1866-4,0))","v":""},{"$f":"IF(ISERROR($V1866),\"\",OFFSET('Smelter Look-up'!$I$4,$V1866-4,0))","v":""},{"$nulls":7},{"$f":"IF(ISERROR($V1866),\"\",OFFSET('Smelter Look-up'!$C$4,$V1866-4,0)&\"\")","v":""},"",{"$f":"IF(B1866=\"\",\"\",IF(ISERROR(MATCH($J1866,SorP!$B$1:$B$6230,0)),\"\",INDIRECT(\"'SorP'!$A$\"&MATCH($J1866,SorP!$B$1:$B$6230,0))))","v":""},null,{"$f":"IF(C1866=\"\",NA(),MATCH($B1866&$C1866,'Smelter Look-up'!$J:$J,0))","v":{"$error":"#N/A"}},null,0,null,null,null,""]
[null,{"$f":"IF(LEN(A1867)=0,\"\",INDEX('Smelter Look-up'!$A:$A,MATCH($A1867,'Smelter Look-up'!$E:$E,0)))","v":""},{"$f":"IF(LEN(A1867)=0,\"\",INDEX('Smelter Look-up'!$C:$C,MATCH($A1867,'Smelter Look-up'!$E:$E,0)))","v":""},null,{"$f":"IF(ISERROR($V1867),\"\",OFFSET('Smelter Look-up'!$D$4,$V1867-4,0)&\"\")","v":""},{"$f":"IF(ISERROR($V1867),\"\",OFFSET('Smelter Look-up'!$E$4,$V1867-4,0))","v":""},{"$f":"IF(C1867=$X$4,\"Enter smelter details\", IF(ISERROR($V1867),\"\",OFFSET('Smelter Look-up'!$F$4,$V1867-4,0)))","v":""},{"$f":"IF(ISERROR($V1867),\"\",OFFSET('Smelter Look-up'!$G$4,$V1867-4,0))","v":""},{"$f":"IF(ISERROR($V1867),\"\",OFFSET('Smelter Look-up'!$H$4,$V1867-4,0))","v":""},{"$f":"IF(ISERROR($V1867),\"\",OFFSET('Smelter Look-up'!$I$4,$V1867-4,0))","v":""},{"$nulls":7},{"$f":"IF(ISERROR($V1867),\"\",OFFSET('Smelter Look-up'!$C$4,$V1867-4,0)&\"\")","v":""},"",{"$f":"IF(B1867=\"\",\"\",IF(ISERROR(MATCH($J1867,SorP!$B$1:$B$6230,0)),\"\",INDIRECT(\"'SorP'!$A$\"&MATCH($J1867,SorP!$B$1:$B$6230,0))))","v":""},null,{"$f":"IF(C1867=\"\",NA(),MATCH($B1867&$C1867,'Smelter Look-up'!$J:$J,0))","v":{"$error":"#N/A"}},null,0,null,null,null,""]
[null,{"$f":"IF(LEN(A1868)=0,\"\",INDEX('Smelter Look-up'!$A:$A,MATCH($A1868,'Smelter Look-up'!$E:$E,0)))","v":""},{"$f":"IF(LEN(A1868)=0,\"\",INDEX('Smelter Look-up'!$C:$C,MATCH($A1868,'Smelter Look-up'!$E:$E,0)))","v":""},null,{"$f":"IF(ISERROR($V1868),\"\",OFFSET('Smelter Look-up'!$D$4,$V1868-4,0)&\"\")","v":""},{"$f":"IF(ISERROR($V1868),\"\",OFFSET('Smelter Look-up'!$E$4,$V1868-4,0))","v":""},{"$f":"IF(C1868=$X$4,\"Enter smelter details\", IF(ISERROR($V1868),\"\",OFFSET('Smelter Look-up'!$F$4,$V1868-4,0)))","v":""},{"$f":"IF(ISERROR($V1868),\"\",OFFSET('Smelter Look-up'!$G$4,$V1868-4,0))","v":""},{"$f":"IF(ISERROR($V1868),\"\",OFFSET('Smelter Look-up'!$H$4,$V1868-4,0))","v":""},{"$f":"IF(ISERROR($V1868),\"\",OFFSET('Smelter Look-up'!$I$4,$V1868-4,0))","v":""},{"$nulls":7},{"$f":"IF(ISERROR($V1868),\"\",OFFSET('Smelter Look-up'!$C$4,$V1868-4,0)&\"\")","v":""},"",{"$f":"IF(B1868=\"\",\"\",IF(ISERROR(MATCH($J1868,SorP!$B$1:$B$6230,0)),\"\",INDIRECT(\"'SorP'!$A$\"&MATCH($J1868,SorP!$B$1:$B$6230,0))))","v":""},null,{"$f":"IF(C1868=\"\",NA(),MATCH($B1868&$C1868,'Smelter Look-up'!$J:$J,0))","v":{"$error":"#N/A"}},null,0,null,null,null,""]
[null,{"$f":"IF(LEN(A1869)=0,\"\",INDEX('Smelter Look-up'!$A:$A,MATCH($A1869,'Smelter Look-up'!$E:$E,0)))","v":""},{"$f":"IF(LEN(A1869)=0,\"\",INDEX('Smelter Look-up'!$C:$C,MATCH($A1869,'Smelter Look-up'!$E:$E,0)))","v":""},null,{"$f":"IF(ISERROR($V1869),\"\",OFFSET('Smelter Look-up'!$D$4,$V1869-4,0)&\"\")","v":""},{"$f":"IF(ISERROR($V1869),\"\",OFFSET('Smelter Look-up'!$E$4,$V1869-4,0))","v":""},{"$f":"IF(C1869=$X$4,\"Enter smelter details\", IF(ISERROR($V1869),\"\",OFFSET('Smelter Look-up'!$F$4,$V1869-4,0)))","v":""},{"$f":"IF(ISERROR($V1869),\"\",OFFSET('Smelter Look-up'!$G$4,$V1869-4,0))","v":""},{"$f":"IF(ISERROR($V1869),\"\",OFFSET('Smelter Look-up'!$H$4,$V1869-4,0))","v":""},{"$f":"IF(ISERROR($V1869),\"\",OFFSET('Smelter Look-up'!$I$4,$V1869-4,0))","v":""},{"$nulls":7},{"$f":"IF(ISERROR($V1869),\"\",OFFSET('Smelter Look-up'!$C$4,$V1869-4,0)&\"\")","v":""},"",{"$f":"IF(B1869=\"\",\"\",IF(ISERROR(MATCH($J1869,SorP!$B$1:$B$6230,0)),\"\",INDIRECT(\"'SorP'!$A$\"&MATCH($J1869,SorP!$B$1:$B$6230,0))))","v":""},null,{"$f":"IF(C1869=\"\",NA(),MATCH($B1869&$C1869,'Smelter Look-up'!$J:$J,0))","v":{"$error":"#N/A"}},null,0,null,null,null,""]
[null,{"$f":"IF(LEN(A1870)=0,\"\",INDEX('Smelter Look-up'!$A:$A,MATCH($A1870,'Smelter Look-up'!$E:$E,0)))","v":""},{"$f":"IF(LEN(A1870)=0,\"\",INDEX('Smelter Look-up'!$C:$C,MATCH($A1870,'Smelter Look-up'!$E:$E,0)))","v":""},null,{"$f":"IF(ISERROR($V1870),\"\",OFFSET('Smelter Look-up'!$D$4,$V1870-4,0)&\"\")","v":""},{"$f":"IF(ISERROR($V1870),\"\",OFFSET('Smelter Look-up'!$E$4,$V1870-4,0))","v":""},{"$f":"IF(C1870=$X$4,\"Enter smelter details\", IF(ISERROR($V1870),\"\",OFFSET('Smelter Look-up'!$F$4,$V1870-4,0)))","v":""},{"$f":"IF(ISERROR($V1870),\"\",OFFSET('Smelter Look-up'!$G$4,$V1870-4,0))","v":""},{"$f":"IF(ISERROR($V1870),\"\",OFFSET('Smelter Look-up'!$H$4,$V1870-4,0))","v":""},{"$f":"IF(ISERROR($V1870),\"\",OFFSET('Smelter Look-up'!$I$4,$V1870-4,0))","v":""},{"$nulls":7},{"$f":"IF(ISERROR($V1870),\"\",OFFSET('Smelter Look-up'!$C$4,$V1870-4,0)&\"\")","v":""},"",{"$f":"IF(B1870=\"\",\"\",IF(ISERROR(MATCH($J1870,SorP!$B$1:$B$6230,0)),\"\",INDIRECT(\"'SorP'!$A$\"&MATCH($J1870,SorP!$B$1:$B$6230,0))))","v":""},null,{"$f":"IF(C1870=\"\",NA(),MATCH($B1870&$C1870,'Smelter Look-up'!$J:$J,0))","v":{"$error":"#N/A"}},null,0,null,null,null,""]
[null,{"$f":"IF(LEN(A1871)=0,\"\",INDEX('Smelter Look-up'!$A:$A,MATCH($A1871,'Smelter Look-up'!$E:$E,0)))","v":""},{"$f":"IF(LEN(A1871)=0,\"\",INDEX('Smelter Look-up'!$C:$C,MATCH($A1871,'Smelter Look-up'!$E:$E,0)))","v":""},null,{"$f":"IF(ISERROR($V1871),\"\",OFFSET('Smelter Look-up'!$D$4,$V1871-4,0)&\"\")","v":""},{"$f":"IF(ISERROR($V1871),\"\",OFFSET('Smelter Look-up'!$E$4,$V1871-4,0))","v":""},{"$f":"IF(C1871=$X$4,\"Enter smelter details\", IF(ISERROR($V1871),\"\",OFFSET('Smelter Look-up'!$F$4,$V1871-4,0)))","v":""},{"$f":"IF(ISERROR($V1871),\"\",OFFSET('Smelter Look-up'!$G$4,$V1871-4,0))","v":""},{"$f":"IF(ISERROR($V1871),\"\",OFFSET('Smelter Look-up'!$H$4,$V1871-4,0))","v":""},{"$f":"IF(ISERROR($V1871),\"\",OFFSET('Smelter Look-up'!$I$4,$V1871-4,0))","v":""},{"$nulls":7},{"$f":"IF(ISERROR($V1871),\"\",OFFSET('Smelter Look-up'!$C$4,$V1871-4,0)&\"\")","v":""},"",{"$f":"IF(B1871=\"\",\"\",IF(ISERROR(MATCH($J1871,SorP!$B$1:$B$6230,0)),\"\",INDIRECT(\"'SorP'!$A$\"&MATCH($J1871,SorP!$B$1:$B$6230,0))))","v":""},null,{"$f":"IF(C1871=\"\",NA(),MATCH($B1871&$C1871,'Smelter Look-up'!$J:$J,0))","v":{"$error":"#N/A"}},null,0,null,null,null,""]
[null,{"$f":"IF(LEN(A1872)=0,\"\",INDEX('Smelter Look-up'!$A:$A,MATCH($A1872,'Smelter Look-up'!$E:$E,0)))","v":""},{"$f":"IF(LEN(A1872)=0,\"\",INDEX('Smelter Look-up'!$C:$C,MATCH($A1872,'Smelter Look-up'!$E:$E,0)))","v":""},null,{"$f":"IF(ISERROR($V1872),\"\",OFFSET('Smelter Look-up'!$D$4,$V1872-4,0)&\"\")","v":""},{"$f":"IF(ISERROR($V1872),\"\",OFFSET('Smelter Look-up'!$E$4,$V1872-4,0))","v":""},{"$f":"IF(C1872=$X$4,\"Enter smelter details\", IF(ISERROR($V1872),\"\",OFFSET('Smelter Look-up'!$F$4,$V1872-4,0)))","v":""},{"$f":"IF(ISERROR($V1872),\"\",OFFSET('Smelter Look-up'!$G$4,$V1872-4,0))","v":""},{"$f":"IF(ISERROR($V1872),\"\",OFFSET('Smelter Look-up'!$H$4,$V1872-4,0))","v":""},{"$f":"IF(ISERROR($V1872),\"\",OFFSET('Smelter Look-up'!$I$4,$V1872-4,0))","v":""},{"$nulls":7},{"$f":"IF(ISERROR($V1872),\"\",OFFSET('Smelter Look-up'!$C$4,$V1872-4,0)&\"\")","v":""},"",{"$f":"IF(B1872=\"\",\"\",IF(ISERROR(MATCH($J1872,SorP!$B$1:$B$6230,0)),\"\",INDIRECT(\"'SorP'!$A$\"&MATCH($J1872,SorP!$B$1:$B$6230,0))))","v":""},null,{"$f":"IF(C1872=\"\",NA(),MATCH($B1872&$C1872,'Smelter Look-up'!$J:$J,0))","v":{"$error":"#N/A"}},null,0,null,null,null,""]
[null,{"$f":"IF(LEN(A1873)=0,\"\",INDEX('Smelter Look-up'!$A:$A,MATCH($A1873,'Smelter Look-up'!$E:$E,0)))","v":""},{"$f":"IF(LEN(A1873)=0,\"\",INDEX('Smelter Look-up'!$C:$C,MATCH($A1873,'Smelter Look-up'!$E:$E,0)))","v":""},null,{"$f":"IF(ISERROR($V1873),\"\",OFFSET('Smelter Look-up'!$D$4,$V1873-4,0)&\"\")","v":""},{"$f":"IF(ISERROR($V1873),\"\",OFFSET('Smelter Look-up'!$E$4,$V1873-4,0))","v":""},{"$f":"IF(C1873=$X$4,\"Enter smelter details\", IF(ISERROR($V1873),\"\",OFFSET('Smelter Look-up'!$F$4,$V1873-4,0)))","v":""},{"$f":"IF(ISERROR($V1873),\"\",OFFSET('Smelter Look-up'!$G$4,$V1873-4,0))","v":""},{"$f":"IF(ISERROR($V1873),\"\",OFFSET('Smelter Look-up'!$H$4,$V1873-4,0))","v":""},{"$f":"IF(ISERROR($V1873),\"\",OFFSET('Smelter Look-up'!$I$4,$V1873-4,0))","v":""},{"$nulls":7},{"$f":"IF(ISERROR($V1873),\"\",OFFSET('Smelter Look-up'!$C$4,$V1873-4,0)&\"\")","v":""},"",{"$f":"IF(B1873=\"\",\"\",IF(ISERROR(MATCH($J1873,SorP!$B$1:$B$6230,0)),\"\",INDIRECT(\"'SorP'!$A$\"&MATCH($J1873,SorP!$B$1:$B$6230,0))))","v":""},null,{"$f":"IF(C1873=\"\",NA(),MATCH($B1873&$C1873,'Smelter Look-up'!$J:$J,0))","v":{"$error":"#N/A"}},null,0,null,null,null,""]
[null,{"$f":"IF(LEN(A1874)=0,\"\",INDEX('Smelter Look-up'!$A:$A,MATCH($A1874,'Smelter Look-up'!$E:$E,0)))","v":""},{"$f":"IF(LEN(A1874)=0,\"\",INDEX('Smelter Look-up'!$C:$C,MATCH($A1874,'Smelter Look-up'!$E:$E,0)))","v":""},null,{"$f":"IF(ISERROR($V1874),\"\",OFFSET('Smelter Look-up'!$D$4,$V1874-4,0)&\"\")","v":""},{"$f":"IF(ISERROR($V1874),\"\",OFFSET('Smelter Look-up'!$E$4,$V1874-4,0))","v":""},{"$f":"IF(C1874=$X$4,\"Enter smelter details\", IF(ISERROR($V1874),\"\",OFFSET('Smelter Look-up'!$F$4,$V1874-4,0)))","v":""},{"$f":"IF(ISERROR($V1874),\"\",OFFSET('Smelter Look-up'!$G$4,$V1874-4,0))","v":""},{"$f":"IF(ISERROR($V1874),\"\",OFFSET('Smelter Look-up'!$H$4,$V1874-4,0))","v":""},{"$f":"IF(ISERROR($V1874),\"\",OFFSET('Smelter Look-up'!$I$4,$V1874-4,0))","v":""},{"$nulls":7},{"$f":"IF(ISERROR($V1874),\"\",OFFSET('Smelter Look-up'!$C$4,$V1874-4,0)&\"\")","v":""},"",{"$f":"IF(B1874=\"\",\"\",IF(ISERROR(MATCH($J1874,SorP!$B$1:$B$6230,0)),\"\",INDIRECT(\"'SorP'!$A$\"&MATCH($J1874,SorP!$B$1:$B$6230,0))))","v":""},null,{"$f":"IF(C1874=\"\",NA(),MATCH($B1874&$C1874,'Smelter Look-up'!$J:$J,0))","v":{"$error":"#N/A"}},null,0,null,null,null,""]
[null,{"$f":"IF(LEN(A1875)=0,\"\",INDEX('Smelter Look-up'!$A:$A,MATCH($A1875,'Smelter Look-up'!$E:$E,0)))","v":""},{"$f":"IF(LEN(A1875)=0,\"\",INDEX('Smelter Look-up'!$C:$C,MATCH($A1875,'Smelter Look-up'!$E:$E,0)))","v":""},null,{"$f":"IF(ISERROR($V1875),\"\",OFFSET('Smelter Look-up'!$D$4,$V1875-4,0)&\"\")","v":""},{"$f":"IF(ISERROR($V1875),\"\",OFFSET('Smelter Look-up'!$E$4,$V1875-4,0))","v":""},{"$f":"IF(C1875=$X$4,\"Enter smelter details\", IF(ISERROR($V1875),\"\",OFFSET('Smelter Look-up'!$F$4,$V1875-4,0)))","v":""},{"$f":"IF(ISERROR($V1875),\"\",OFFSET('Smelter Look-up'!$G$4,$V1875-4,0))","v":""},{"$f":"IF(ISERROR($V1875),\"\",OFFSET('Smelter Look-up'!$H$4,$V1875-4,0))","v":""},{"$f":"IF(ISERROR($V1875),\"\",OFFSET('Smelter Look-up'!$I$4,$V1875-4,0))","v":""},{"$nulls":7},{"$f":"IF(ISERROR($V1875),\"\",OFFSET('Smelter Look-up'!$C$4,$V1875-4,0)&\"\")","v":""},"",{"$f":"IF(B1875=\"\",\"\",IF(ISERROR(MATCH($J1875,SorP!$B$1:$B$6230,0)),\"\",INDIRECT(\"'SorP'!$A$\"&MATCH($J1875,SorP!$B$1:$B$6230,0))))","v":""},null,{"$f":"IF(C1875=\"\",NA(),MATCH($B1875&$C1875,'Smelter Look-up'!$J:$J,0))","v":{"$error":"#N/A"}},null,0,null,null,null,""]
[null,{"$f":"IF(LEN(A1876)=0,\"\",INDEX('Smelter Look-up'!$A:$A,MATCH($A1876,'Smelter Look-up'!$E:$E,0)))","v":""},{"$f":"IF(LEN(A1876)=0,\"\",INDEX('Smelter Look-up'!$C:$C,MATCH($A1876,'Smelter Look-up'!$E:$E,0)))","v":""},null,{"$f":"IF(ISERROR($V1876),\"\",OFFSET('Smelter Look-up'!$D$4,$V1876-4,0)&\"\")","v":""},{"$f":"IF(ISERROR($V1876),\"\",OFFSET('Smelter Look-up'!$E$4,$V1876-4,0))","v":""},{"$f":"IF(C1876=$X$4,\"Enter smelter details\", IF(ISERROR($V1876),\"\",OFFSET('Smelter Look-up'!$F$4,$V1876-4,0)))","v":""},{"$f":"IF(ISERROR($V1876),\"\",OFFSET('Smelter Look-up'!$G$4,$V1876-4,0))","v":""},{"$f":"IF(ISERROR($V1876),\"\",OFFSET('Smelter Look-up'!$H$4,$V1876-4,0))","v":""},{"$f":"IF(ISERROR($V1876),\"\",OFFSET('Smelter Look-up'!$I$4,$V1876-4,0))","v":""},{"$nulls":7},{"$f":"IF(ISERROR($V1876),\"\",OFFSET('Smelter Look-up'!$C$4,$V1876-4,0)&\"\")","v":""},"",{"$f":"IF(B1876=\"\",\"\",IF(ISERROR(MATCH($J1876,SorP!$B$1:$B$6230,0)),\"\",INDIRECT(\"'SorP'!$A$\"&MATCH($J1876,SorP!$B$1:$B$6230,0))))","v":""},null,{"$f":"IF(C1876=\"\",NA(),MATCH($B1876&$C1876,'Smelter Look-up'!$J:$J,0))","v":{"$error":"#N/A"}},null,0,null,null,null,""]
[null,{"$f":"IF(LEN(A1877)=0,\"\",INDEX('Smelter Look-up'!$A:$A,MATCH($A1877,'Smelter Look-up'!$E:$E,0)))","v":""},{"$f":"IF(LEN(A1877)=0,\"\",INDEX('Smelter Look-up'!$C:$C,MATCH($A1877,'Smelter Look-up'!$E:$E,0)))","v":""},null,{"$f":"IF(ISERROR($V1877),\"\",OFFSET('Smelter Look-up'!$D$4,$V1877-4,0)&\"\")","v":""},{"$f":"IF(ISERROR($V1877),\"\",OFFSET('Smelter Look-up'!$E$4,$V1877-4,0))","v":""},{"$f":"IF(C1877=$X$4,\"Enter smelter details\", IF(ISERROR($V1877),\"\",OFFSET('Smelter Look-up'!$F$4,$V1877-4,0)))","v":""},{"$f":"IF(ISERROR($V1877),\"\",OFFSET('Smelter Look-up'!$G$4,$V1877-4,0))","v":""},{"$f":"IF(ISERROR($V1877),\"\",OFFSET('Smelter Look-up'!$H$4,$V1877-4,0))","v":""},{"$f":"IF(ISERROR($V1877),\"\",OFFSET('Smelter Look-up'!$I$4,$V1877-4,0))","v":""},{"$nulls":7},{"$f":"IF(ISERROR($V1877),\"\",OFFSET('Smelter Look-up'!$C$4,$V1877-4,0)&\"\")","v":""},"",{"$f":"IF(B1877=\"\",\"\",IF(ISERROR(MATCH($J1877,SorP!$B$1:$B$6230,0)),\"\",INDIRECT(\"'SorP'!$A$\"&MATCH($J1877,SorP!$B$1:$B$6230,0))))","v":""},null,{"$f":"IF(C1877=\"\",NA(),MATCH($B1877&$C1877,'Smelter Look-up'!$J:$J,0))","v":{"$error":"#N/A"}},null,0,null,null,null,""]
[null,{"$f":"IF(LEN(A1878)=0,\"\",INDEX('Smelter Look-up'!$A:$A,MATCH($A1878,'Smelter Look-up'!$E:$E,0)))","v":""},{"$f":"IF(LEN(A1878)=0,\"\",INDEX('Smelter Look-up'!$C:$C,MATCH($A1878,'Smelter Look-up'!$E:$E,0)))","v":""},null,{"$f":"IF(ISERROR($V1878),\"\",OFFSET('Smelter Look-up'!$D$4,$V1878-4,0)&\"\")","v":""},{"$f":"IF(ISERROR($V1878),\"\",OFFSET('Smelter Look-up'!$E$4,$V1878-4,0))","v":""},{"$f":"IF(C1878=$X$4,\"Enter smelter details\", IF(ISERROR($V1878),\"\",OFFSET('Smelter Look-up'!$F$4,$V1878-4,0)))","v":""},{"$f":"IF(ISERROR($V1878),\"\",OFFSET('Smelter Look-up'!$G$4,$V1878-4,0))","v":""},{"$f":"IF(ISERROR($V1878),\"\",OFFSET('Smelter Look-up'!$H$4,$V1878-4,0))","v":""},{"$f":"IF(ISERROR($V1878),\"\",OFFSET('Smelter Look-up'!$I$4,$V1878-4,0))","v":""},{"$nulls":7},{"$f":"IF(ISERROR($V1878),\"\",OFFSET('Smelter Look-up'!$C$4,$V1878-4,0)&\"\")","v":""},"",{"$f":"IF(B1878=\"\",\"\",IF(ISERROR(MATCH($J1878,SorP!$B$1:$B$6230,0)),\"\",INDIRECT(\"'SorP'!$A$\"&MATCH($J1878,SorP!$B$1:$B$6230,0))))","v":""},null,{"$f":"IF(C1878=\"\",NA(),MATCH($B1878&$C1878,'Smelter Look-up'!$J:$J,0))","v":{"$error":"#N/A"}},null,0,null,null,null,""]
[null,{"$f":"IF(LEN(A1879)=0,\"\",INDEX('Smelter Look-up'!$A:$A,MATCH($A1879,'Smelter Look-up'!$E:$E,0)))","v":""},{"$f":"IF(LEN(A1879)=0,\"\",INDEX('Smelter Look-up'!$C:$C,MATCH($A1879,'Smelter Look-up'!$E:$E,0)))","v":""},null,{"$f":"IF(ISERROR($V1879),\"\",OFFSET('Smelter Look-up'!$D$4,$V1879-4,0)&\"\")","v":""},{"$f":"IF(ISERROR($V1879),\"\",OFFSET('Smelter Look-up'!$E$4,$V1879-4,0))","v":""},{"$f":"IF(C1879=$X$4,\"Enter smelter details\", IF(ISERROR($V1879),\"\",OFFSET('Smelter Look-up'!$F$4,$V1879-4,0)))","v":""},{"$f":"IF(ISERROR($V1879),\"\",OFFSET('Smelter Look-up'!$G$4,$V1879-4,0))","v":""},{"$f":"IF(ISERROR($V1879),\"\",OFFSET('Smelter Look-up'!$H$4,$V1879-4,0))","v":""},{"$f":"IF(ISERROR($V1879),\"\",OFFSET('Smelter Look-up'!$I$4,$V1879-4,0))","v":""},{"$nulls":7},{"$f":"IF(ISERROR($V1879),\"\",OFFSET('Smelter Look-up'!$C$4,$V1879-4,0)&\"\")","v":""},"",{"$f":"IF(B1879=\"\",\"\",IF(ISERROR(MATCH($J1879,SorP!$B$1:$B$6230,0)),\"\",INDIRECT(\"'SorP'!$A$\"&MATCH($J1879,SorP!$B$1:$B$6230,0))))","v":""},null,{"$f":"IF(C1879=\"\",NA(),MATCH($B1879&$C1879,'Smelter Look-up'!$J:$J,0))","v":{"$error":"#N/A"}},null,0,null,null,null,""]
[null,{"$f":"IF(LEN(A1880)=0,\"\",INDEX('Smelter Look-up'!$A:$A,MATCH($A1880,'Smelter Look-up'!$E:$E,0)))","v":""},{"$f":"IF(LEN(A1880)=0,\"\",INDEX('Smelter Look-up'!$C:$C,MATCH($A1880,'Smelter Look-up'!$E:$E,0)))","v":""},null,{"$f":"IF(ISERROR($V1880),\"\",OFFSET('Smelter Look-up'!$D$4,$V1880-4,0)&\"\")","v":""},{"$f":"IF(ISERROR($V1880),\"\",OFFSET('Smelter Look-up'!$E$4,$V1880-4,0))","v":""},{"$f":"IF(C1880=$X$4,\"Enter smelter details\", IF(ISERROR($V1880),\"\",OFFSET('Smelter Look-up'!$F$4,$V1880-4,0)))","v":""},{"$f":"IF(ISERROR($V1880),\"\",OFFSET('Smelter Look-up'!$G$4,$V1880-4,0))","v":""},{"$f":"IF(ISERROR($V1880),\"\",OFFSET('Smelter Look-up'!$H$4,$V1880-4,0))","v":""},{"$f":"IF(ISERROR($V1880),\"\",OFFSET('Smelter Look-up'!$I$4,$V1880-4,0))","v":""},{"$nulls":7},{"$f":"IF(ISERROR($V1880),\"\",OFFSET('Smelter Look-up'!$C$4,$V1880-4,0)&\"\")","v":""},"",{"$f":"IF(B1880=\"\",\"\",IF(ISERROR(MATCH($J1880,SorP!$B$1:$B$6230,0)),\"\",INDIRECT(\"'SorP'!$A$\"&MATCH($J1880,SorP!$B$1:$B$6230,0))))","v":""},null,{"$f":"IF(C1880=\"\",NA(),MATCH($B1880&$C1880,'Smelter Look-up'!$J:$J,0))","v":{"$error":"#N/A"}},null,0,null,null,null,""]
[null,{"$f":"IF(LEN(A1881)=0,\"\",INDEX('Smelter Look-up'!$A:$A,MATCH($A1881,'Smelter Look-up'!$E:$E,0)))","v":""},{"$f":"IF(LEN(A1881)=0,\"\",INDEX('Smelter Look-up'!$C:$C,MATCH($A1881,'Smelter Look-up'!$E:$E,0)))","v":""},null,{"$f":"IF(ISERROR($V1881),\"\",OFFSET('Smelter Look-up'!$D$4,$V1881-4,0)&\"\")","v":""},{"$f":"IF(ISERROR($V1881),\"\",OFFSET('Smelter Look-up'!$E$4,$V1881-4,0))","v":""},{"$f":"IF(C1881=$X$4,\"Enter smelter details\", IF(ISERROR($V1881),\"\",OFFSET('Smelter Look-up'!$F$4,$V1881-4,0)))","v":""},{"$f":"IF(ISERROR($V1881),\"\",OFFSET('Smelter Look-up'!$G$4,$V1881-4,0))","v":""},{"$f":"IF(ISERROR($V1881),\"\",OFFSET('Smelter Look-up'!$H$4,$V1881-4,0))","v":""},{"$f":"IF(ISERROR($V1881),\"\",OFFSET('Smelter Look-up'!$I$4,$V1881-4,0))","v":""},{"$nulls":7},{"$f":"IF(ISERROR($V1881),\"\",OFFSET('Smelter Look-up'!$C$4,$V1881-4,0)&\"\")","v":""},"",{"$f":"IF(B1881=\"\",\"\",IF(ISERROR(MATCH($J1881,SorP!$B$1:$B$6230,0)),\"\",INDIRECT(\"'SorP'!$A$\"&MATCH($J1881,SorP!$B$1:$B$6230,0))))","v":""},null,{"$f":"IF(C1881=\"\",NA(),MATCH($B1881&$C1881,'Smelter Look-up'!$J:$J,0))","v":{"$error":"#N/A"}},null,0,null,null,null,""]
[null,{"$f":"IF(LEN(A1882)=0,\"\",INDEX('Smelter Look-up'!$A:$A,MATCH($A1882,'Smelter Look-up'!$E:$E,0)))","v":""},{"$f":"IF(LEN(A1882)=0,\"\",INDEX('Smelter Look-up'!$C:$C,MATCH($A1882,'Smelter Look-up'!$E:$E,0)))","v":""},null,{"$f":"IF(ISERROR($V1882),\"\",OFFSET('Smelter Look-up'!$D$4,$V1882-4,0)&\"\")","v":""},{"$f":"IF(ISERROR($V1882),\"\",OFFSET('Smelter Look-up'!$E$4,$V1882-4,0))","v":""},{"$f":"IF(C1882=$X$4,\"Enter smelter details\", IF(ISERROR($V1882),\"\",OFFSET('Smelter Look-up'!$F$4,$V1882-4,0)))","v":""},{"$f":"IF(ISERROR($V1882),\"\",OFFSET('Smelter Look-up'!$G$4,$V1882-4,0))","v":""},{"$f":"IF(ISERROR($V1882),\"\",OFFSET('Smelter Look-up'!$H$4,$V1882-4,0))","v":""},{"$f":"IF(ISERROR($V1882),\"\",OFFSET('Smelter Look-up'!$I$4,$V1882-4,0))","v":""},{"$nulls":7},{"$f":"IF(ISERROR($V1882),\"\",OFFSET('Smelter Look-up'!$C$4,$V1882-4,0)&\"\")","v":""},"",{"$f":"IF(B1882=\"\",\"\",IF(ISERROR(MATCH($J1882,SorP!$B$1:$B$6230,0)),\"\",INDIRECT(\"'SorP'!$A$\"&MATCH($J1882,SorP!$B$1:$B$6230,0))))","v":""},null,{"$f":"IF(C1882=\"\",NA(),MATCH($B1882&$C1882,'Smelter Look-up'!$J:$J,0))","v":{"$error":"#N/A"}},null,0,null,null,null,""]
[null,{"$f":"IF(LEN(A1883)=0,\"\",INDEX('Smelter Look-up'!$A:$A,MATCH($A1883,'Smelter Look-up'!$E:$E,0)))","v":""},{"$f":"IF(LEN(A1883)=0,\"\",INDEX('Smelter Look-up'!$C:$C,MATCH($A1883,'Smelter Look-up'!$E:$E,0)))","v":""},null,{"$f":"IF(ISERROR($V1883),\"\",OFFSET('Smelter Look-up'!$D$4,$V1883-4,0)&\"\")","v":""},{"$f":"IF(ISERROR($V1883),\"\",OFFSET('Smelter Look-up'!$E$4,$V1883-4,0))","v":""},{"$f":"IF(C1883=$X$4,\"Enter smelter details\", IF(ISERROR($V1883),\"\",OFFSET('Smelter Look-up'!$F$4,$V1883-4,0)))","v":""},{"$f":"IF(ISERROR($V1883),\"\",OFFSET('Smelter Look-up'!$G$4,$V1883-4,0))","v":""},{"$f":"IF(ISERROR($V1883),\"\",OFFSET('Smelter Look-up'!$H$4,$V1883-4,0))","v":""},{"$f":"IF(ISERROR($V1883),\"\",OFFSET('Smelter Look-up'!$I$4,$V1883-4,0))","v":""},{"$nulls":7},{"$f":"IF(ISERROR($V1883),\"\",OFFSET('Smelter Look-up'!$C$4,$V1883-4,0)&\"\")","v":""},"",{"$f":"IF(B1883=\"\",\"\",IF(ISERROR(MATCH($J1883,SorP!$B$1:$B$6230,0)),\"\",INDIRECT(\"'SorP'!$A$\"&MATCH($J1883,SorP!$B$1:$B$6230,0))))","v":""},null,{"$f":"IF(C1883=\"\",NA(),MATCH($B1883&$C1883,'Smelter Look-up'!$J:$J,0))","v":{"$error":"#N/A"}},null,0,null,null,null,""]
[null,{"$f":"IF(LEN(A1884)=0,\"\",INDEX('Smelter Look-up'!$A:$A,MATCH($A1884,'Smelter Look-up'!$E:$E,0)))","v":""},{"$f":"IF(LEN(A1884)=0,\"\",INDEX('Smelter Look-up'!$C:$C,MATCH($A1884,'Smelter Look-up'!$E:$E,0)))","v":""},null,{"$f":"IF(ISERROR($V1884),\"\",OFFSET('Smelter Look-up'!$D$4,$V1884-4,0)&\"\")","v":""},{"$f":"IF(ISERROR($V1884),\"\",OFFSET('Smelter Look-up'!$E$4,$V1884-4,0))","v":""},{"$f":"IF(C1884=$X$4,\"Enter smelter details\", IF(ISERROR($V1884),\"\",OFFSET('Smelter Look-up'!$F$4,$V1884-4,0)))","v":""},{"$f":"IF(ISERROR($V1884),\"\",OFFSET('Smelter Look-up'!$G$4,$V1884-4,0))","v":""},{"$f":"IF(ISERROR($V1884),\"\",OFFSET('Smelter Look-up'!$H$4,$V1884-4,0))","v":""},{"$f":"IF(ISERROR($V1884),\"\",OFFSET('Smelter Look-up'!$I$4,$V1884-4,0))","v":""},{"$nulls":7},{"$f":"IF(ISERROR($V1884),\"\",OFFSET('Smelter Look-up'!$C$4,$V1884-4,0)&\"\")","v":""},"",{"$f":"IF(B1884=\"\",\"\",IF(ISERROR(MATCH($J1884,SorP!$B$1:$B$6230,0)),\"\",INDIRECT(\"'SorP'!$A$\"&MATCH($J1884,SorP!$B$1:$B$6230,0))))","v":""},null,{"$f":"IF(C1884=\"\",NA(),MATCH($B1884&$C1884,'Smelter Look-up'!$J:$J,0))","v":{"$error":"#N/A"}},null,0,null,null,null,""]
[null,{"$f":"IF(LEN(A1885)=0,\"\",INDEX('Smelter Look-up'!$A:$A,MATCH($A1885,'Smelter Look-up'!$E:$E,0)))","v":""},{"$f":"IF(LEN(A1885)=0,\"\",INDEX('Smelter Look-up'!$C:$C,MATCH($A1885,'Smelter Look-up'!$E:$E,0)))","v":""},null,{"$f":"IF(ISERROR($V1885),\"\",OFFSET('Smelter Look-up'!$D$4,$V1885-4,0)&\"\")","v":""},{"$f":"IF(ISERROR($V1885),\"\",OFFSET('Smelter Look-up'!$E$4,$V1885-4,0))","v":""},{"$f":"IF(C1885=$X$4,\"Enter smelter details\", IF(ISERROR($V1885),\"\",OFFSET('Smelter Look-up'!$F$4,$V1885-4,0)))","v":""},{"$f":"IF(ISERROR($V1885),\"\",OFFSET('Smelter Look-up'!$G$4,$V1885-4,0))","v":""},{"$f":"IF(ISERROR($V1885),\"\",OFFSET('Smelter Look-up'!$H$4,$V1885-4,0))","v":""},{"$f":"IF(ISERROR($V1885),\"\",OFFSET('Smelter Look-up'!$I$4,$V1885-4,0))","v":""},{"$nulls":7},{"$f":"IF(ISERROR($V1885),\"\",OFFSET('Smelter Look-up'!$C$4,$V1885-4,0)&\"\")","v":""},"",{"$f":"IF(B1885=\"\",\"\",IF(ISERROR(MATCH($J1885,SorP!$B$1:$B$6230,0)),\"\",INDIRECT(\"'SorP'!$A$\"&MATCH($J1885,SorP!$B$1:$B$6230,0))))","v":""},null,{"$f":"IF(C1885=\"\",NA(),MATCH($B1885&$C1885,'Smelter Look-up'!$J:$J,0))","v":{"$error":"#N/A"}},null,0,null,null,null,""]
[null,{"$f":"IF(LEN(A1886)=0,\"\",INDEX('Smelter Look-up'!$A:$A,MATCH($A1886,'Smelter Look-up'!$E:$E,0)))","v":""},{"$f":"IF(LEN(A1886)=0,\"\",INDEX('Smelter Look-up'!$C:$C,MATCH($A1886,'Smelter Look-up'!$E:$E,0)))","v":""},null,{"$f":"IF(ISERROR($V1886),\"\",OFFSET('Smelter Look-up'!$D$4,$V1886-4,0)&\"\")","v":""},{"$f":"IF(ISERROR($V1886),\"\",OFFSET('Smelter Look-up'!$E$4,$V1886-4,0))","v":""},{"$f":"IF(C1886=$X$4,\"Enter smelter details\", IF(ISERROR($V1886),\"\",OFFSET('Smelter Look-up'!$F$4,$V1886-4,0)))","v":""},{"$f":"IF(ISERROR($V1886),\"\",OFFSET('Smelter Look-up'!$G$4,$V1886-4,0))","v":""},{"$f":"IF(ISERROR($V1886),\"\",OFFSET('Smelter Look-up'!$H$4,$V1886-4,0))","v":""},{"$f":"IF(ISERROR($V1886),\"\",OFFSET('Smelter Look-up'!$I$4,$V1886-4,0))","v":""},{"$nulls":7},{"$f":"IF(ISERROR($V1886),\"\",OFFSET('Smelter Look-up'!$C$4,$V1886-4,0)&\"\")","v":""},"",{"$f":"IF(B1886=\"\",\"\",IF(ISERROR(MATCH($J1886,SorP!$B$1:$B$6230,0)),\"\",INDIRECT(\"'SorP'!$A$\"&MATCH($J1886,SorP!$B$1:$B$6230,0))))","v":""},null,{"$f":"IF(C1886=\"\",NA(),MATCH($B1886&$C1886,'Smelter Look-up'!$J:$J,0))","v":{"$error":"#N/A"}},null,0,null,null,null,""]
[null,{"$f":"IF(LEN(A1887)=0,\"\",INDEX('Smelter Look-up'!$A:$A,MATCH($A1887,'Smelter Look-up'!$E:$E,0)))","v":""},{"$f":"IF(LEN(A1887)=0,\"\",INDEX('Smelter Look-up'!$C:$C,MATCH($A1887,'Smelter Look-up'!$E:$E,0)))","v":""},null,{"$f":"IF(ISERROR($V1887),\"\",OFFSET('Smelter Look-up'!$D$4,$V1887-4,0)&\"\")","v":""},{"$f":"IF(ISERROR($V1887),\"\",OFFSET('Smelter Look-up'!$E$4,$V1887-4,0))","v":""},{"$f":"IF(C1887=$X$4,\"Enter smelter details\", IF(ISERROR($V1887),\"\",OFFSET('Smelter Look-up'!$F$4,$V1887-4,0)))","v":""},{"$f":"IF(ISERROR($V1887),\"\",OFFSET('Smelter Look-up'!$G$4,$V1887-4,0))","v":""},{"$f":"IF(ISERROR($V1887),\"\",OFFSET('Smelter Look-up'!$H$4,$V1887-4,0))","v":""},{"$f":"IF(ISERROR($V1887),\"\",OFFSET('Smelter Look-up'!$I$4,$V1887-4,0))","v":""},{"$nulls":7},{"$f":"IF(ISERROR($V1887),\"\",OFFSET('Smelter Look-up'!$C$4,$V1887-4,0)&\"\")","v":""},"",{"$f":"IF(B1887=\"\",\"\",IF(ISERROR(MATCH($J1887,SorP!$B$1:$B$6230,0)),\"\",INDIRECT(\"'SorP'!$A$\"&MATCH($J1887,SorP!$B$1:$B$6230,0))))","v":""},null,{"$f":"IF(C1887=\"\",NA(),MATCH($B1887&$C1887,'Smelter Look-up'!$J:$J,0))","v":{"$error":"#N/A"}},null,0,null,null,null,""]
[null,{"$f":"IF(LEN(A1888)=0,\"\",INDEX('Smelter Look-up'!$A:$A,MATCH($A1888,'Smelter Look-up'!$E:$E,0)))","v":""},{"$f":"IF(LEN(A1888)=0,\"\",INDEX('Smelter Look-up'!$C:$C,MATCH($A1888,'Smelter Look-up'!$E:$E,0)))","v":""},null,{"$f":"IF(ISERROR($V1888),\"\",OFFSET('Smelter Look-up'!$D$4,$V1888-4,0)&\"\")","v":""},{"$f":"IF(ISERROR($V1888),\"\",OFFSET('Smelter Look-up'!$E$4,$V1888-4,0))","v":""},{"$f":"IF(C1888=$X$4,\"Enter smelter details\", IF(ISERROR($V1888),\"\",OFFSET('Smelter Look-up'!$F$4,$V1888-4,0)))","v":""},{"$f":"IF(ISERROR($V1888),\"\",OFFSET('Smelter Look-up'!$G$4,$V1888-4,0))","v":""},{"$f":"IF(ISERROR($V1888),\"\",OFFSET('Smelter Look-up'!$H$4,$V1888-4,0))","v":""},{"$f":"IF(ISERROR($V1888),\"\",OFFSET('Smelter Look-up'!$I$4,$V1888-4,0))","v":""},{"$nulls":7},{"$f":"IF(ISERROR($V1888),\"\",OFFSET('Smelter Look-up'!$C$4,$V1888-4,0)&\"\")","v":""},"",{"$f":"IF(B1888=\"\",\"\",IF(ISERROR(MATCH($J1888,SorP!$B$1:$B$6230,0)),\"\",INDIRECT(\"'SorP'!$A$\"&MATCH($J1888,SorP!$B$1:$B$6230,0))))","v":""},null,{"$f":"IF(C1888=\"\",NA(),MATCH($B1888&$C1888,'Smelter Look-up'!$J:$J,0))","v":{"$error":"#N/A"}},null,0,null,null,null,""]
[null,{"$f":"IF(LEN(A1889)=0,\"\",INDEX('Smelter Look-up'!$A:$A,MATCH($A1889,'Smelter Look-up'!$E:$E,0)))","v":""},{"$f":"IF(LEN(A1889)=0,\"\",INDEX('Smelter Look-up'!$C:$C,MATCH($A1889,'Smelter Look-up'!$E:$E,0)))","v":""},null,{"$f":"IF(ISERROR($V1889),\"\",OFFSET('Smelter Look-up'!$D$4,$V1889-4,0)&\"\")","v":""},{"$f":"IF(ISERROR($V1889),\"\",OFFSET('Smelter Look-up'!$E$4,$V1889-4,0))","v":""},{"$f":"IF(C1889=$X$4,\"Enter smelter details\", IF(ISERROR($V1889),\"\",OFFSET('Smelter Look-up'!$F$4,$V1889-4,0)))","v":""},{"$f":"IF(ISERROR($V1889),\"\",OFFSET('Smelter Look-up'!$G$4,$V1889-4,0))","v":""},{"$f":"IF(ISERROR($V1889),\"\",OFFSET('Smelter Look-up'!$H$4,$V1889-4,0))","v":""},{"$f":"IF(ISERROR($V1889),\"\",OFFSET('Smelter Look-up'!$I$4,$V1889-4,0))","v":""},{"$nulls":7},{"$f":"IF(ISERROR($V1889),\"\",OFFSET('Smelter Look-up'!$C$4,$V1889-4,0)&\"\")","v":""},"",{"$f":"IF(B1889=\"\",\"\",IF(ISERROR(MATCH($J1889,SorP!$B$1:$B$6230,0)),\"\",INDIRECT(\"'SorP'!$A$\"&MATCH($J1889,SorP!$B$1:$B$6230,0))))","v":""},null,{"$f":"IF(C1889=\"\",NA(),MATCH($B1889&$C1889,'Smelter Look-up'!$J:$J,0))","v":{"$error":"#N/A"}},null,0,null,null,null,""]
[null,{"$f":"IF(LEN(A1890)=0,\"\",INDEX('Smelter Look-up'!$A:$A,MATCH($A1890,'Smelter Look-up'!$E:$E,0)))","v":""},{"$f":"IF(LEN(A1890)=0,\"\",INDEX('Smelter Look-up'!$C:$C,MATCH($A1890,'Smelter Look-up'!$E:$E,0)))","v":""},null,{"$f":"IF(ISERROR($V1890),\"\",OFFSET('Smelter Look-up'!$D$4,$V1890-4,0)&\"\")","v":""},{"$f":"IF(ISERROR($V1890),\"\",OFFSET('Smelter Look-up'!$E$4,$V1890-4,0))","v":""},{"$f":"IF(C1890=$X$4,\"Enter smelter details\", IF(ISERROR($V1890),\"\",OFFSET('Smelter Look-up'!$F$4,$V1890-4,0)))","v":""},{"$f":"IF(ISERROR($V1890),\"\",OFFSET('Smelter Look-up'!$G$4,$V1890-4,0))","v":""},{"$f":"IF(ISERROR($V1890),\"\",OFFSET('Smelter Look-up'!$H$4,$V1890-4,0))","v":""},{"$f":"IF(ISERROR($V1890),\"\",OFFSET('Smelter Look-up'!$I$4,$V1890-4,0))","v":""},{"$nulls":7},{"$f":"IF(ISERROR($V1890),\"\",OFFSET('Smelter Look-up'!$C$4,$V1890-4,0)&\"\")","v":""},"",{"$f":"IF(B1890=\"\",\"\",IF(ISERROR(MATCH($J1890,SorP!$B$1:$B$6230,0)),\"\",INDIRECT(\"'SorP'!$A$\"&MATCH($J1890,SorP!$B$1:$B$6230,0))))","v":""},null,{"$f":"IF(C1890=\"\",NA(),MATCH($B1890&$C1890,'Smelter Look-up'!$J:$J,0))","v":{"$error":"#N/A"}},null,0,null,null,null,""]
[null,{"$f":"IF(LEN(A1891)=0,\"\",INDEX('Smelter Look-up'!$A:$A,MATCH($A1891,'Smelter Look-up'!$E:$E,0)))","v":""},{"$f":"IF(LEN(A1891)=0,\"\",INDEX('Smelter Look-up'!$C:$C,MATCH($A1891,'Smelter Look-up'!$E:$E,0)))","v":""},null,{"$f":"IF(ISERROR($V1891),\"\",OFFSET('Smelter Look-up'!$D$4,$V1891-4,0)&\"\")","v":""},{"$f":"IF(ISERROR($V1891),\"\",OFFSET('Smelter Look-up'!$E$4,$V1891-4,0))","v":""},{"$f":"IF(C1891=$X$4,\"Enter smelter details\", IF(ISERROR($V1891),\"\",OFFSET('Smelter Look-up'!$F$4,$V1891-4,0)))","v":""},{"$f":"IF(ISERROR($V1891),\"\",OFFSET('Smelter Look-up'!$G$4,$V1891-4,0))","v":""},{"$f":"IF(ISERROR($V1891),\"\",OFFSET('Smelter Look-up'!$H$4,$V1891-4,0))","v":""},{"$f":"IF(ISERROR($V1891),\"\",OFFSET('Smelter Look-up'!$I$4,$V1891-4,0))","v":""},{"$nulls":7},{"$f":"IF(ISERROR($V1891),\"\",OFFSET('Smelter Look-up'!$C$4,$V1891-4,0)&\"\")","v":""},"",{"$f":"IF(B1891=\"\",\"\",IF(ISERROR(MATCH($J1891,SorP!$B$1:$B$6230,0)),\"\",INDIRECT(\"'SorP'!$A$\"&MATCH($J1891,SorP!$B$1:$B$6230,0))))","v":""},null,{"$f":"IF(C1891=\"\",NA(),MATCH($B1891&$C1891,'Smelter Look-up'!$J:$J,0))","v":{"$error":"#N/A"}},null,0,null,null,null,""]
[null,{"$f":"IF(LEN(A1892)=0,\"\",INDEX('Smelter Look-up'!$A:$A,MATCH($A1892,'Smelter Look-up'!$E:$E,0)))","v":""},{"$f":"IF(LEN(A1892)=0,\"\",INDEX('Smelter Look-up'!$C:$C,MATCH($A1892,'Smelter Look-up'!$E:$E,0)))","v":""},null,{"$f":"IF(ISERROR($V1892),\"\",OFFSET('Smelter Look-up'!$D$4,$V1892-4,0)&\"\")","v":""},{"$f":"IF(ISERROR($V1892),\"\",OFFSET('Smelter Look-up'!$E$4,$V1892-4,0))","v":""},{"$f":"IF(C1892=$X$4,\"Enter smelter details\", IF(ISERROR($V1892),\"\",OFFSET('Smelter Look-up'!$F$4,$V1892-4,0)))","v":""},{"$f":"IF(ISERROR($V1892),\"\",OFFSET('Smelter Look-up'!$G$4,$V1892-4,0))","v":""},{"$f":"IF(ISERROR($V1892),\"\",OFFSET('Smelter Look-up'!$H$4,$V1892-4,0))","v":""},{"$f":"IF(ISERROR($V1892),\"\",OFFSET('Smelter Look-up'!$I$4,$V1892-4,0))","v":""},{"$nulls":7},{"$f":"IF(ISERROR($V1892),\"\",OFFSET('Smelter Look-up'!$C$4,$V1892-4,0)&\"\")","v":""},"",{"$f":"IF(B1892=\"\",\"\",IF(ISERROR(MATCH($J1892,SorP!$B$1:$B$6230,0)),\"\",INDIRECT(\"'SorP'!$A$\"&MATCH($J1892,SorP!$B$1:$B$6230,0))))","v":""},null,{"$f":"IF(C1892=\"\",NA(),MATCH($B1892&$C1892,'Smelter Look-up'!$J:$J,0))","v":{"$error":"#N/A"}},null,0,null,null,null,""]
[null,{"$f":"IF(LEN(A1893)=0,\"\",INDEX('Smelter Look-up'!$A:$A,MATCH($A1893,'Smelter Look-up'!$E:$E,0)))","v":""},{"$f":"IF(LEN(A1893)=0,\"\",INDEX('Smelter Look-up'!$C:$C,MATCH($A1893,'Smelter Look-up'!$E:$E,0)))","v":""},null,{"$f":"IF(ISERROR($V1893),\"\",OFFSET('Smelter Look-up'!$D$4,$V1893-4,0)&\"\")","v":""},{"$f":"IF(ISERROR($V1893),\"\",OFFSET('Smelter Look-up'!$E$4,$V1893-4,0))","v":""},{"$f":"IF(C1893=$X$4,\"Enter smelter details\", IF(ISERROR($V1893),\"\",OFFSET('Smelter Look-up'!$F$4,$V1893-4,0)))","v":""},{"$f":"IF(ISERROR($V1893),\"\",OFFSET('Smelter Look-up'!$G$4,$V1893-4,0))","v":""},{"$f":"IF(ISERROR($V1893),\"\",OFFSET('Smelter Look-up'!$H$4,$V1893-4,0))","v":""},{"$f":"IF(ISERROR($V1893),\"\",OFFSET('Smelter Look-up'!$I$4,$V1893-4,0))","v":""},{"$nulls":7},{"$f":"IF(ISERROR($V1893),\"\",OFFSET('Smelter Look-up'!$C$4,$V1893-4,0)&\"\")","v":""},"",{"$f":"IF(B1893=\"\",\"\",IF(ISERROR(MATCH($J1893,SorP!$B$1:$B$6230,0)),\"\",INDIRECT(\"'SorP'!$A$\"&MATCH($J1893,SorP!$B$1:$B$6230,0))))","v":""},null,{"$f":"IF(C1893=\"\",NA(),MATCH($B1893&$C1893,'Smelter Look-up'!$J:$J,0))","v":{"$error":"#N/A"}},null,0,null,null,null,""]
[null,{"$f":"IF(LEN(A1894)=0,\"\",INDEX('Smelter Look-up'!$A:$A,MATCH($A1894,'Smelter Look-up'!$E:$E,0)))","v":""},{"$f":"IF(LEN(A1894)=0,\"\",INDEX('Smelter Look-up'!$C:$C,MATCH($A1894,'Smelter Look-up'!$E:$E,0)))","v":""},null,{"$f":"IF(ISERROR($V1894),\"\",OFFSET('Smelter Look-up'!$D$4,$V1894-4,0)&\"\")","v":""},{"$f":"IF(ISERROR($V1894),\"\",OFFSET('Smelter Look-up'!$E$4,$V1894-4,0))","v":""},{"$f":"IF(C1894=$X$4,\"Enter smelter details\", IF(ISERROR($V1894),\"\",OFFSET('Smelter Look-up'!$F$4,$V1894-4,0)))","v":""},{"$f":"IF(ISERROR($V1894),\"\",OFFSET('Smelter Look-up'!$G$4,$V1894-4,0))","v":""},{"$f":"IF(ISERROR($V1894),\"\",OFFSET('Smelter Look-up'!$H$4,$V1894-4,0))","v":""},{"$f":"IF(ISERROR($V1894),\"\",OFFSET('Smelter Look-up'!$I$4,$V1894-4,0))","v":""},{"$nulls":7},{"$f":"IF(ISERROR($V1894),\"\",OFFSET('Smelter Look-up'!$C$4,$V1894-4,0)&\"\")","v":""},"",{"$f":"IF(B1894=\"\",\"\",IF(ISERROR(MATCH($J1894,SorP!$B$1:$B$6230,0)),\"\",INDIRECT(\"'SorP'!$A$\"&MATCH($J1894,SorP!$B$1:$B$6230,0))))","v":""},null,{"$f":"IF(C1894=\"\",NA(),MATCH($B1894&$C1894,'Smelter Look-up'!$J:$J,0))","v":{"$error":"#N/A"}},null,0,null,null,null,""]
[null,{"$f":"IF(LEN(A1895)=0,\"\",INDEX('Smelter Look-up'!$A:$A,MATCH($A1895,'Smelter Look-up'!$E:$E,0)))","v":""},{"$f":"IF(LEN(A1895)=0,\"\",INDEX('Smelter Look-up'!$C:$C,MATCH($A1895,'Smelter Look-up'!$E:$E,0)))","v":""},null,{"$f":"IF(ISERROR($V1895),\"\",OFFSET('Smelter Look-up'!$D$4,$V1895-4,0)&\"\")","v":""},{"$f":"IF(ISERROR($V1895),\"\",OFFSET('Smelter Look-up'!$E$4,$V1895-4,0))","v":""},{"$f":"IF(C1895=$X$4,\"Enter smelter details\", IF(ISERROR($V1895),\"\",OFFSET('Smelter Look-up'!$F$4,$V1895-4,0)))","v":""},{"$f":"IF(ISERROR($V1895),\"\",OFFSET('Smelter Look-up'!$G$4,$V1895-4,0))","v":""},{"$f":"IF(ISERROR($V1895),\"\",OFFSET('Smelter Look-up'!$H$4,$V1895-4,0))","v":""},{"$f":"IF(ISERROR($V1895),\"\",OFFSET('Smelter Look-up'!$I$4,$V1895-4,0))","v":""},{"$nulls":7},{"$f":"IF(ISERROR($V1895),\"\",OFFSET('Smelter Look-up'!$C$4,$V1895-4,0)&\"\")","v":""},"",{"$f":"IF(B1895=\"\",\"\",IF(ISERROR(MATCH($J1895,SorP!$B$1:$B$6230,0)),\"\",INDIRECT(\"'SorP'!$A$\"&MATCH($J1895,SorP!$B$1:$B$6230,0))))","v":""},null,{"$f":"IF(C1895=\"\",NA(),MATCH($B1895&$C1895,'Smelter Look-up'!$J:$J,0))","v":{"$error":"#N/A"}},null,0,null,null,null,""]
[null,{"$f":"IF(LEN(A1896)=0,\"\",INDEX('Smelter Look-up'!$A:$A,MATCH($A1896,'Smelter Look-up'!$E:$E,0)))","v":""},{"$f":"IF(LEN(A1896)=0,\"\",INDEX('Smelter Look-up'!$C:$C,MATCH($A1896,'Smelter Look-up'!$E:$E,0)))","v":""},null,{"$f":"IF(ISERROR($V1896),\"\",OFFSET('Smelter Look-up'!$D$4,$V1896-4,0)&\"\")","v":""},{"$f":"IF(ISERROR($V1896),\"\",OFFSET('Smelter Look-up'!$E$4,$V1896-4,0))","v":""},{"$f":"IF(C1896=$X$4,\"Enter smelter details\", IF(ISERROR($V1896),\"\",OFFSET('Smelter Look-up'!$F$4,$V1896-4,0)))","v":""},{"$f":"IF(ISERROR($V1896),\"\",OFFSET('Smelter Look-up'!$G$4,$V1896-4,0))","v":""},{"$f":"IF(ISERROR($V1896),\"\",OFFSET('Smelter Look-up'!$H$4,$V1896-4,0))","v":""},{"$f":"IF(ISERROR($V1896),\"\",OFFSET('Smelter Look-up'!$I$4,$V1896-4,0))","v":""},{"$nulls":7},{"$f":"IF(ISERROR($V1896),\"\",OFFSET('Smelter Look-up'!$C$4,$V1896-4,0)&\"\")","v":""},"",{"$f":"IF(B1896=\"\",\"\",IF(ISERROR(MATCH($J1896,SorP!$B$1:$B$6230,0)),\"\",INDIRECT(\"'SorP'!$A$\"&MATCH($J1896,SorP!$B$1:$B$6230,0))))","v":""},null,{"$f":"IF(C1896=\"\",NA(),MATCH($B1896&$C1896,'Smelter Look-up'!$J:$J,0))","v":{"$error":"#N/A"}},null,0,null,null,null,""]
[null,{"$f":"IF(LEN(A1897)=0,\"\",INDEX('Smelter Look-up'!$A:$A,MATCH($A1897,'Smelter Look-up'!$E:$E,0)))","v":""},{"$f":"IF(LEN(A1897)=0,\"\",INDEX('Smelter Look-up'!$C:$C,MATCH($A1897,'Smelter Look-up'!$E:$E,0)))","v":""},null,{"$f":"IF(ISERROR($V1897),\"\",OFFSET('Smelter Look-up'!$D$4,$V1897-4,0)&\"\")","v":""},{"$f":"IF(ISERROR($V1897),\"\",OFFSET('Smelter Look-up'!$E$4,$V1897-4,0))","v":""},{"$f":"IF(C1897=$X$4,\"Enter smelter details\", IF(ISERROR($V1897),\"\",OFFSET('Smelter Look-up'!$F$4,$V1897-4,0)))","v":""},{"$f":"IF(ISERROR($V1897),\"\",OFFSET('Smelter Look-up'!$G$4,$V1897-4,0))","v":""},{"$f":"IF(ISERROR($V1897),\"\",OFFSET('Smelter Look-up'!$H$4,$V1897-4,0))","v":""},{"$f":"IF(ISERROR($V1897),\"\",OFFSET('Smelter Look-up'!$I$4,$V1897-4,0))","v":""},{"$nulls":7},{"$f":"IF(ISERROR($V1897),\"\",OFFSET('Smelter Look-up'!$C$4,$V1897-4,0)&\"\")","v":""},"",{"$f":"IF(B1897=\"\",\"\",IF(ISERROR(MATCH($J1897,SorP!$B$1:$B$6230,0)),\"\",INDIRECT(\"'SorP'!$A$\"&MATCH($J1897,SorP!$B$1:$B$6230,0))))","v":""},null,{"$f":"IF(C1897=\"\",NA(),MATCH($B1897&$C1897,'Smelter Look-up'!$J:$J,0))","v":{"$error":"#N/A"}},null,0,null,null,null,""]
[null,{"$f":"IF(LEN(A1898)=0,\"\",INDEX('Smelter Look-up'!$A:$A,MATCH($A1898,'Smelter Look-up'!$E:$E,0)))","v":""},{"$f":"IF(LEN(A1898)=0,\"\",INDEX('Smelter Look-up'!$C:$C,MATCH($A1898,'Smelter Look-up'!$E:$E,0)))","v":""},null,{"$f":"IF(ISERROR($V1898),\"\",OFFSET('Smelter Look-up'!$D$4,$V1898-4,0)&\"\")","v":""},{"$f":"IF(ISERROR($V1898),\"\",OFFSET('Smelter Look-up'!$E$4,$V1898-4,0))","v":""},{"$f":"IF(C1898=$X$4,\"Enter smelter details\", IF(ISERROR($V1898),\"\",OFFSET('Smelter Look-up'!$F$4,$V1898-4,0)))","v":""},{"$f":"IF(ISERROR($V1898),\"\",OFFSET('Smelter Look-up'!$G$4,$V1898-4,0))","v":""},{"$f":"IF(ISERROR($V1898),\"\",OFFSET('Smelter Look-up'!$H$4,$V1898-4,0))","v":""},{"$f":"IF(ISERROR($V1898),\"\",OFFSET('Smelter Look-up'!$I$4,$V1898-4,0))","v":""},{"$nulls":7},{"$f":"IF(ISERROR($V1898),\"\",OFFSET('Smelter Look-up'!$C$4,$V1898-4,0)&\"\")","v":""},"",{"$f":"IF(B1898=\"\",\"\",IF(ISERROR(MATCH($J1898,SorP!$B$1:$B$6230,0)),\"\",INDIRECT(\"'SorP'!$A$\"&MATCH($J1898,SorP!$B$1:$B$6230,0))))","v":""},null,{"$f":"IF(C1898=\"\",NA(),MATCH($B1898&$C1898,'Smelter Look-up'!$J:$J,0))","v":{"$error":"#N/A"}},null,0,null,null,null,""]
[null,{"$f":"IF(LEN(A1899)=0,\"\",INDEX('Smelter Look-up'!$A:$A,MATCH($A1899,'Smelter Look-up'!$E:$E,0)))","v":""},{"$f":"IF(LEN(A1899)=0,\"\",INDEX('Smelter Look-up'!$C:$C,MATCH($A1899,'Smelter Look-up'!$E:$E,0)))","v":""},null,{"$f":"IF(ISERROR($V1899),\"\",OFFSET('Smelter Look-up'!$D$4,$V1899-4,0)&\"\")","v":""},{"$f":"IF(ISERROR($V1899),\"\",OFFSET('Smelter Look-up'!$E$4,$V1899-4,0))","v":""},{"$f":"IF(C1899=$X$4,\"Enter smelter details\", IF(ISERROR($V1899),\"\",OFFSET('Smelter Look-up'!$F$4,$V1899-4,0)))","v":""},{"$f":"IF(ISERROR($V1899),\"\",OFFSET('Smelter Look-up'!$G$4,$V1899-4,0))","v":""},{"$f":"IF(ISERROR($V1899),\"\",OFFSET('Smelter Look-up'!$H$4,$V1899-4,0))","v":""},{"$f":"IF(ISERROR($V1899),\"\",OFFSET('Smelter Look-up'!$I$4,$V1899-4,0))","v":""},{"$nulls":7},{"$f":"IF(ISERROR($V1899),\"\",OFFSET('Smelter Look-up'!$C$4,$V1899-4,0)&\"\")","v":""},"",{"$f":"IF(B1899=\"\",\"\",IF(ISERROR(MATCH($J1899,SorP!$B$1:$B$6230,0)),\"\",INDIRECT(\"'SorP'!$A$\"&MATCH($J1899,SorP!$B$1:$B$6230,0))))","v":""},null,{"$f":"IF(C1899=\"\",NA(),MATCH($B1899&$C1899,'Smelter Look-up'!$J:$J,0))","v":{"$error":"#N/A"}},null,0,null,null,null,""]
[null,{"$f":"IF(LEN(A1900)=0,\"\",INDEX('Smelter Look-up'!$A:$A,MATCH($A1900,'Smelter Look-up'!$E:$E,0)))","v":""},{"$f":"IF(LEN(A1900)=0,\"\",INDEX('Smelter Look-up'!$C:$C,MATCH($A1900,'Smelter Look-up'!$E:$E,0)))","v":""},null,{"$f":"IF(ISERROR($V1900),\"\",OFFSET('Smelter Look-up'!$D$4,$V1900-4,0)&\"\")","v":""},{"$f":"IF(ISERROR($V1900),\"\",OFFSET('Smelter Look-up'!$E$4,$V1900-4,0))","v":""},{"$f":"IF(C1900=$X$4,\"Enter smelter details\", IF(ISERROR($V1900),\"\",OFFSET('Smelter Look-up'!$F$4,$V1900-4,0)))","v":""},{"$f":"IF(ISERROR($V1900),\"\",OFFSET('Smelter Look-up'!$G$4,$V1900-4,0))","v":""},{"$f":"IF(ISERROR($V1900),\"\",OFFSET('Smelter Look-up'!$H$4,$V1900-4,0))","v":""},{"$f":"IF(ISERROR($V1900),\"\",OFFSET('Smelter Look-up'!$I$4,$V1900-4,0))","v":""},{"$nulls":7},{"$f":"IF(ISERROR($V1900),\"\",OFFSET('Smelter Look-up'!$C$4,$V1900-4,0)&\"\")","v":""},"",{"$f":"IF(B1900=\"\",\"\",IF(ISERROR(MATCH($J1900,SorP!$B$1:$B$6230,0)),\"\",INDIRECT(\"'SorP'!$A$\"&MATCH($J1900,SorP!$B$1:$B$6230,0))))","v":""},null,{"$f":"IF(C1900=\"\",NA(),MATCH($B1900&$C1900,'Smelter Look-up'!$J:$J,0))","v":{"$error":"#N/A"}},null,0,null,null,null,""]
[null,{"$f":"IF(LEN(A1901)=0,\"\",INDEX('Smelter Look-up'!$A:$A,MATCH($A1901,'Smelter Look-up'!$E:$E,0)))","v":""},{"$f":"IF(LEN(A1901)=0,\"\",INDEX('Smelter Look-up'!$C:$C,MATCH($A1901,'Smelter Look-up'!$E:$E,0)))","v":""},null,{"$f":"IF(ISERROR($V1901),\"\",OFFSET('Smelter Look-up'!$D$4,$V1901-4,0)&\"\")","v":""},{"$f":"IF(ISERROR($V1901),\"\",OFFSET('Smelter Look-up'!$E$4,$V1901-4,0))","v":""},{"$f":"IF(C1901=$X$4,\"Enter smelter details\", IF(ISERROR($V1901),\"\",OFFSET('Smelter Look-up'!$F$4,$V1901-4,0)))","v":""},{"$f":"IF(ISERROR($V1901),\"\",OFFSET('Smelter Look-up'!$G$4,$V1901-4,0))","v":""},{"$f":"IF(ISERROR($V1901),\"\",OFFSET('Smelter Look-up'!$H$4,$V1901-4,0))","v":""},{"$f":"IF(ISERROR($V1901),\"\",OFFSET('Smelter Look-up'!$I$4,$V1901-4,0))","v":""},{"$nulls":7},{"$f":"IF(ISERROR($V1901),\"\",OFFSET('Smelter Look-up'!$C$4,$V1901-4,0)&\"\")","v":""},"",{"$f":"IF(B1901=\"\",\"\",IF(ISERROR(MATCH($J1901,SorP!$B$1:$B$6230,0)),\"\",INDIRECT(\"'SorP'!$A$\"&MATCH($J1901,SorP!$B$1:$B$6230,0))))","v":""},null,{"$f":"IF(C1901=\"\",NA(),MATCH($B1901&$C1901,'Smelter Look-up'!$J:$J,0))","v":{"$error":"#N/A"}},null,0,null,null,null,""]
[null,{"$f":"IF(LEN(A1902)=0,\"\",INDEX('Smelter Look-up'!$A:$A,MATCH($A1902,'Smelter Look-up'!$E:$E,0)))","v":""},{"$f":"IF(LEN(A1902)=0,\"\",INDEX('Smelter Look-up'!$C:$C,MATCH($A1902,'Smelter Look-up'!$E:$E,0)))","v":""},null,{"$f":"IF(ISERROR($V1902),\"\",OFFSET('Smelter Look-up'!$D$4,$V1902-4,0)&\"\")","v":""},{"$f":"IF(ISERROR($V1902),\"\",OFFSET('Smelter Look-up'!$E$4,$V1902-4,0))","v":""},{"$f":"IF(C1902=$X$4,\"Enter smelter details\", IF(ISERROR($V1902),\"\",OFFSET('Smelter Look-up'!$F$4,$V1902-4,0)))","v":""},{"$f":"IF(ISERROR($V1902),\"\",OFFSET('Smelter Look-up'!$G$4,$V1902-4,0))","v":""},{"$f":"IF(ISERROR($V1902),\"\",OFFSET('Smelter Look-up'!$H$4,$V1902-4,0))","v":""},{"$f":"IF(ISERROR($V1902),\"\",OFFSET('Smelter Look-up'!$I$4,$V1902-4,0))","v":""},{"$nulls":7},{"$f":"IF(ISERROR($V1902),\"\",OFFSET('Smelter Look-up'!$C$4,$V1902-4,0)&\"\")","v":""},"",{"$f":"IF(B1902=\"\",\"\",IF(ISERROR(MATCH($J1902,SorP!$B$1:$B$6230,0)),\"\",INDIRECT(\"'SorP'!$A$\"&MATCH($J1902,SorP!$B$1:$B$6230,0))))","v":""},null,{"$f":"IF(C1902=\"\",NA(),MATCH($B1902&$C1902,'Smelter Look-up'!$J:$J,0))","v":{"$error":"#N/A"}},null,0,null,null,null,""]
[null,{"$f":"IF(LEN(A1903)=0,\"\",INDEX('Smelter Look-up'!$A:$A,MATCH($A1903,'Smelter Look-up'!$E:$E,0)))","v":""},{"$f":"IF(LEN(A1903)=0,\"\",INDEX('Smelter Look-up'!$C:$C,MATCH($A1903,'Smelter Look-up'!$E:$E,0)))","v":""},null,{"$f":"IF(ISERROR($V1903),\"\",OFFSET('Smelter Look-up'!$D$4,$V1903-4,0)&\"\")","v":""},{"$f":"IF(ISERROR($V1903),\"\",OFFSET('Smelter Look-up'!$E$4,$V1903-4,0))","v":""},{"$f":"IF(C1903=$X$4,\"Enter smelter details\", IF(ISERROR($V1903),\"\",OFFSET('Smelter Look-up'!$F$4,$V1903-4,0)))","v":""},{"$f":"IF(ISERROR($V1903),\"\",OFFSET('Smelter Look-up'!$G$4,$V1903-4,0))","v":""},{"$f":"IF(ISERROR($V1903),\"\",OFFSET('Smelter Look-up'!$H$4,$V1903-4,0))","v":""},{"$f":"IF(ISERROR($V1903),\"\",OFFSET('Smelter Look-up'!$I$4,$V1903-4,0))","v":""},{"$nulls":7},{"$f":"IF(ISERROR($V1903),\"\",OFFSET('Smelter Look-up'!$C$4,$V1903-4,0)&\"\")","v":""},"",{"$f":"IF(B1903=\"\",\"\",IF(ISERROR(MATCH($J1903,SorP!$B$1:$B$6230,0)),\"\",INDIRECT(\"'SorP'!$A$\"&MATCH($J1903,SorP!$B$1:$B$6230,0))))","v":""},null,{"$f":"IF(C1903=\"\",NA(),MATCH($B1903&$C1903,'Smelter Look-up'!$J:$J,0))","v":{"$error":"#N/A"}},null,0,null,null,null,""]
[null,{"$f":"IF(LEN(A1904)=0,\"\",INDEX('Smelter Look-up'!$A:$A,MATCH($A1904,'Smelter Look-up'!$E:$E,0)))","v":""},{"$f":"IF(LEN(A1904)=0,\"\",INDEX('Smelter Look-up'!$C:$C,MATCH($A1904,'Smelter Look-up'!$E:$E,0)))","v":""},null,{"$f":"IF(ISERROR($V1904),\"\",OFFSET('Smelter Look-up'!$D$4,$V1904-4,0)&\"\")","v":""},{"$f":"IF(ISERROR($V1904),\"\",OFFSET('Smelter Look-up'!$E$4,$V1904-4,0))","v":""},{"$f":"IF(C1904=$X$4,\"Enter smelter details\", IF(ISERROR($V1904),\"\",OFFSET('Smelter Look-up'!$F$4,$V1904-4,0)))","v":""},{"$f":"IF(ISERROR($V1904),\"\",OFFSET('Smelter Look-up'!$G$4,$V1904-4,0))","v":""},{"$f":"IF(ISERROR($V1904),\"\",OFFSET('Smelter Look-up'!$H$4,$V1904-4,0))","v":""},{"$f":"IF(ISERROR($V1904),\"\",OFFSET('Smelter Look-up'!$I$4,$V1904-4,0))","v":""},{"$nulls":7},{"$f":"IF(ISERROR($V1904),\"\",OFFSET('Smelter Look-up'!$C$4,$V1904-4,0)&\"\")","v":""},"",{"$f":"IF(B1904=\"\",\"\",IF(ISERROR(MATCH($J1904,SorP!$B$1:$B$6230,0)),\"\",INDIRECT(\"'SorP'!$A$\"&MATCH($J1904,SorP!$B$1:$B$6230,0))))","v":""},null,{"$f":"IF(C1904=\"\",NA(),MATCH($B1904&$C1904,'Smelter Look-up'!$J:$J,0))","v":{"$error":"#N/A"}},null,0,null,null,null,""]
[null,{"$f":"IF(LEN(A1905)=0,\"\",INDEX('Smelter Look-up'!$A:$A,MATCH($A1905,'Smelter Look-up'!$E:$E,0)))","v":""},{"$f":"IF(LEN(A1905)=0,\"\",INDEX('Smelter Look-up'!$C:$C,MATCH($A1905,'Smelter Look-up'!$E:$E,0)))","v":""},null,{"$f":"IF(ISERROR($V1905),\"\",OFFSET('Smelter Look-up'!$D$4,$V1905-4,0)&\"\")","v":""},{"$f":"IF(ISERROR($V1905),\"\",OFFSET('Smelter Look-up'!$E$4,$V1905-4,0))","v":""},{"$f":"IF(C1905=$X$4,\"Enter smelter details\", IF(ISERROR($V1905),\"\",OFFSET('Smelter Look-up'!$F$4,$V1905-4,0)))","v":""},{"$f":"IF(ISERROR($V1905),\"\",OFFSET('Smelter Look-up'!$G$4,$V1905-4,0))","v":""},{"$f":"IF(ISERROR($V1905),\"\",OFFSET('Smelter Look-up'!$H$4,$V1905-4,0))","v":""},{"$f":"IF(ISERROR($V1905),\"\",OFFSET('Smelter Look-up'!$I$4,$V1905-4,0))","v":""},{"$nulls":7},{"$f":"IF(ISERROR($V1905),\"\",OFFSET('Smelter Look-up'!$C$4,$V1905-4,0)&\"\")","v":""},"",{"$f":"IF(B1905=\"\",\"\",IF(ISERROR(MATCH($J1905,SorP!$B$1:$B$6230,0)),\"\",INDIRECT(\"'SorP'!$A$\"&MATCH($J1905,SorP!$B$1:$B$6230,0))))","v":""},null,{"$f":"IF(C1905=\"\",NA(),MATCH($B1905&$C1905,'Smelter Look-up'!$J:$J,0))","v":{"$error":"#N/A"}},null,0,null,null,null,""]
[null,{"$f":"IF(LEN(A1906)=0,\"\",INDEX('Smelter Look-up'!$A:$A,MATCH($A1906,'Smelter Look-up'!$E:$E,0)))","v":""},{"$f":"IF(LEN(A1906)=0,\"\",INDEX('Smelter Look-up'!$C:$C,MATCH($A1906,'Smelter Look-up'!$E:$E,0)))","v":""},null,{"$f":"IF(ISERROR($V1906),\"\",OFFSET('Smelter Look-up'!$D$4,$V1906-4,0)&\"\")","v":""},{"$f":"IF(ISERROR($V1906),\"\",OFFSET('Smelter Look-up'!$E$4,$V1906-4,0))","v":""},{"$f":"IF(C1906=$X$4,\"Enter smelter details\", IF(ISERROR($V1906),\"\",OFFSET('Smelter Look-up'!$F$4,$V1906-4,0)))","v":""},{"$f":"IF(ISERROR($V1906),\"\",OFFSET('Smelter Look-up'!$G$4,$V1906-4,0))","v":""},{"$f":"IF(ISERROR($V1906),\"\",OFFSET('Smelter Look-up'!$H$4,$V1906-4,0))","v":""},{"$f":"IF(ISERROR($V1906),\"\",OFFSET('Smelter Look-up'!$I$4,$V1906-4,0))","v":""},{"$nulls":7},{"$f":"IF(ISERROR($V1906),\"\",OFFSET('Smelter Look-up'!$C$4,$V1906-4,0)&\"\")","v":""},"",{"$f":"IF(B1906=\"\",\"\",IF(ISERROR(MATCH($J1906,SorP!$B$1:$B$6230,0)),\"\",INDIRECT(\"'SorP'!$A$\"&MATCH($J1906,SorP!$B$1:$B$6230,0))))","v":""},null,{"$f":"IF(C1906=\"\",NA(),MATCH($B1906&$C1906,'Smelter Look-up'!$J:$J,0))","v":{"$error":"#N/A"}},null,0,null,null,null,""]
[null,{"$f":"IF(LEN(A1907)=0,\"\",INDEX('Smelter Look-up'!$A:$A,MATCH($A1907,'Smelter Look-up'!$E:$E,0)))","v":""},{"$f":"IF(LEN(A1907)=0,\"\",INDEX('Smelter Look-up'!$C:$C,MATCH($A1907,'Smelter Look-up'!$E:$E,0)))","v":""},null,{"$f":"IF(ISERROR($V1907),\"\",OFFSET('Smelter Look-up'!$D$4,$V1907-4,0)&\"\")","v":""},{"$f":"IF(ISERROR($V1907),\"\",OFFSET('Smelter Look-up'!$E$4,$V1907-4,0))","v":""},{"$f":"IF(C1907=$X$4,\"Enter smelter details\", IF(ISERROR($V1907),\"\",OFFSET('Smelter Look-up'!$F$4,$V1907-4,0)))","v":""},{"$f":"IF(ISERROR($V1907),\"\",OFFSET('Smelter Look-up'!$G$4,$V1907-4,0))","v":""},{"$f":"IF(ISERROR($V1907),\"\",OFFSET('Smelter Look-up'!$H$4,$V1907-4,0))","v":""},{"$f":"IF(ISERROR($V1907),\"\",OFFSET('Smelter Look-up'!$I$4,$V1907-4,0))","v":""},{"$nulls":7},{"$f":"IF(ISERROR($V1907),\"\",OFFSET('Smelter Look-up'!$C$4,$V1907-4,0)&\"\")","v":""},"",{"$f":"IF(B1907=\"\",\"\",IF(ISERROR(MATCH($J1907,SorP!$B$1:$B$6230,0)),\"\",INDIRECT(\"'SorP'!$A$\"&MATCH($J1907,SorP!$B$1:$B$6230,0))))","v":""},null,{"$f":"IF(C1907=\"\",NA(),MATCH($B1907&$C1907,'Smelter Look-up'!$J:$J,0))","v":{"$error":"#N/A"}},null,0,null,null,null,""]
[null,{"$f":"IF(LEN(A1908)=0,\"\",INDEX('Smelter Look-up'!$A:$A,MATCH($A1908,'Smelter Look-up'!$E:$E,0)))","v":""},{"$f":"IF(LEN(A1908)=0,\"\",INDEX('Smelter Look-up'!$C:$C,MATCH($A1908,'Smelter Look-up'!$E:$E,0)))","v":""},null,{"$f":"IF(ISERROR($V1908),\"\",OFFSET('Smelter Look-up'!$D$4,$V1908-4,0)&\"\")","v":""},{"$f":"IF(ISERROR($V1908),\"\",OFFSET('Smelter Look-up'!$E$4,$V1908-4,0))","v":""},{"$f":"IF(C1908=$X$4,\"Enter smelter details\", IF(ISERROR($V1908),\"\",OFFSET('Smelter Look-up'!$F$4,$V1908-4,0)))","v":""},{"$f":"IF(ISERROR($V1908),\"\",OFFSET('Smelter Look-up'!$G$4,$V1908-4,0))","v":""},{"$f":"IF(ISERROR($V1908),\"\",OFFSET('Smelter Look-up'!$H$4,$V1908-4,0))","v":""},{"$f":"IF(ISERROR($V1908),\"\",OFFSET('Smelter Look-up'!$I$4,$V1908-4,0))","v":""},{"$nulls":7},{"$f":"IF(ISERROR($V1908),\"\",OFFSET('Smelter Look-up'!$C$4,$V1908-4,0)&\"\")","v":""},"",{"$f":"IF(B1908=\"\",\"\",IF(ISERROR(MATCH($J1908,SorP!$B$1:$B$6230,0)),\"\",INDIRECT(\"'SorP'!$A$\"&MATCH($J1908,SorP!$B$1:$B$6230,0))))","v":""},null,{"$f":"IF(C1908=\"\",NA(),MATCH($B1908&$C1908,'Smelter Look-up'!$J:$J,0))","v":{"$error":"#N/A"}},null,0,null,null,null,""]
[null,{"$f":"IF(LEN(A1909)=0,\"\",INDEX('Smelter Look-up'!$A:$A,MATCH($A1909,'Smelter Look-up'!$E:$E,0)))","v":""},{"$f":"IF(LEN(A1909)=0,\"\",INDEX('Smelter Look-up'!$C:$C,MATCH($A1909,'Smelter Look-up'!$E:$E,0)))","v":""},null,{"$f":"IF(ISERROR($V1909),\"\",OFFSET('Smelter Look-up'!$D$4,$V1909-4,0)&\"\")","v":""},{"$f":"IF(ISERROR($V1909),\"\",OFFSET('Smelter Look-up'!$E$4,$V1909-4,0))","v":""},{"$f":"IF(C1909=$X$4,\"Enter smelter details\", IF(ISERROR($V1909),\"\",OFFSET('Smelter Look-up'!$F$4,$V1909-4,0)))","v":""},{"$f":"IF(ISERROR($V1909),\"\",OFFSET('Smelter Look-up'!$G$4,$V1909-4,0))","v":""},{"$f":"IF(ISERROR($V1909),\"\",OFFSET('Smelter Look-up'!$H$4,$V1909-4,0))","v":""},{"$f":"IF(ISERROR($V1909),\"\",OFFSET('Smelter Look-up'!$I$4,$V1909-4,0))","v":""},{"$nulls":7},{"$f":"IF(ISERROR($V1909),\"\",OFFSET('Smelter Look-up'!$C$4,$V1909-4,0)&\"\")","v":""},"",{"$f":"IF(B1909=\"\",\"\",IF(ISERROR(MATCH($J1909,SorP!$B$1:$B$6230,0)),\"\",INDIRECT(\"'SorP'!$A$\"&MATCH($J1909,SorP!$B$1:$B$6230,0))))","v":""},null,{"$f":"IF(C1909=\"\",NA(),MATCH($B1909&$C1909,'Smelter Look-up'!$J:$J,0))","v":{"$error":"#N/A"}},null,0,null,null,null,""]
[null,{"$f":"IF(LEN(A1910)=0,\"\",INDEX('Smelter Look-up'!$A:$A,MATCH($A1910,'Smelter Look-up'!$E:$E,0)))","v":""},{"$f":"IF(LEN(A1910)=0,\"\",INDEX('Smelter Look-up'!$C:$C,MATCH($A1910,'Smelter Look-up'!$E:$E,0)))","v":""},null,{"$f":"IF(ISERROR($V1910),\"\",OFFSET('Smelter Look-up'!$D$4,$V1910-4,0)&\"\")","v":""},{"$f":"IF(ISERROR($V1910),\"\",OFFSET('Smelter Look-up'!$E$4,$V1910-4,0))","v":""},{"$f":"IF(C1910=$X$4,\"Enter smelter details\", IF(ISERROR($V1910),\"\",OFFSET('Smelter Look-up'!$F$4,$V1910-4,0)))","v":""},{"$f":"IF(ISERROR($V1910),\"\",OFFSET('Smelter Look-up'!$G$4,$V1910-4,0))","v":""},{"$f":"IF(ISERROR($V1910),\"\",OFFSET('Smelter Look-up'!$H$4,$V1910-4,0))","v":""},{"$f":"IF(ISERROR($V1910),\"\",OFFSET('Smelter Look-up'!$I$4,$V1910-4,0))","v":""},{"$nulls":7},{"$f":"IF(ISERROR($V1910),\"\",OFFSET('Smelter Look-up'!$C$4,$V1910-4,0)&\"\")","v":""},"",{"$f":"IF(B1910=\"\",\"\",IF(ISERROR(MATCH($J1910,SorP!$B$1:$B$6230,0)),\"\",INDIRECT(\"'SorP'!$A$\"&MATCH($J1910,SorP!$B$1:$B$6230,0))))","v":""},null,{"$f":"IF(C1910=\"\",NA(),MATCH($B1910&$C1910,'Smelter Look-up'!$J:$J,0))","v":{"$error":"#N/A"}},null,0,null,null,null,""]
[null,{"$f":"IF(LEN(A1911)=0,\"\",INDEX('Smelter Look-up'!$A:$A,MATCH($A1911,'Smelter Look-up'!$E:$E,0)))","v":""},{"$f":"IF(LEN(A1911)=0,\"\",INDEX('Smelter Look-up'!$C:$C,MATCH($A1911,'Smelter Look-up'!$E:$E,0)))","v":""},null,{"$f":"IF(ISERROR($V1911),\"\",OFFSET('Smelter Look-up'!$D$4,$V1911-4,0)&\"\")","v":""},{"$f":"IF(ISERROR($V1911),\"\",OFFSET('Smelter Look-up'!$E$4,$V1911-4,0))","v":""},{"$f":"IF(C1911=$X$4,\"Enter smelter details\", IF(ISERROR($V1911),\"\",OFFSET('Smelter Look-up'!$F$4,$V1911-4,0)))","v":""},{"$f":"IF(ISERROR($V1911),\"\",OFFSET('Smelter Look-up'!$G$4,$V1911-4,0))","v":""},{"$f":"IF(ISERROR($V1911),\"\",OFFSET('Smelter Look-up'!$H$4,$V1911-4,0))","v":""},{"$f":"IF(ISERROR($V1911),\"\",OFFSET('Smelter Look-up'!$I$4,$V1911-4,0))","v":""},{"$nulls":7},{"$f":"IF(ISERROR($V1911),\"\",OFFSET('Smelter Look-up'!$C$4,$V1911-4,0)&\"\")","v":""},"",{"$f":"IF(B1911=\"\",\"\",IF(ISERROR(MATCH($J1911,SorP!$B$1:$B$6230,0)),\"\",INDIRECT(\"'SorP'!$A$\"&MATCH($J1911,SorP!$B$1:$B$6230,0))))","v":""},null,{"$f":"IF(C1911=\"\",NA(),MATCH($B1911&$C1911,'Smelter Look-up'!$J:$J,0))","v":{"$error":"#N/A"}},null,0,null,null,null,""]
[null,{"$f":"IF(LEN(A1912)=0,\"\",INDEX('Smelter Look-up'!$A:$A,MATCH($A1912,'Smelter Look-up'!$E:$E,0)))","v":""},{"$f":"IF(LEN(A1912)=0,\"\",INDEX('Smelter Look-up'!$C:$C,MATCH($A1912,'Smelter Look-up'!$E:$E,0)))","v":""},null,{"$f":"IF(ISERROR($V1912),\"\",OFFSET('Smelter Look-up'!$D$4,$V1912-4,0)&\"\")","v":""},{"$f":"IF(ISERROR($V1912),\"\",OFFSET('Smelter Look-up'!$E$4,$V1912-4,0))","v":""},{"$f":"IF(C1912=$X$4,\"Enter smelter details\", IF(ISERROR($V1912),\"\",OFFSET('Smelter Look-up'!$F$4,$V1912-4,0)))","v":""},{"$f":"IF(ISERROR($V1912),\"\",OFFSET('Smelter Look-up'!$G$4,$V1912-4,0))","v":""},{"$f":"IF(ISERROR($V1912),\"\",OFFSET('Smelter Look-up'!$H$4,$V1912-4,0))","v":""},{"$f":"IF(ISERROR($V1912),\"\",OFFSET('Smelter Look-up'!$I$4,$V1912-4,0))","v":""},{"$nulls":7},{"$f":"IF(ISERROR($V1912),\"\",OFFSET('Smelter Look-up'!$C$4,$V1912-4,0)&\"\")","v":""},"",{"$f":"IF(B1912=\"\",\"\",IF(ISERROR(MATCH($J1912,SorP!$B$1:$B$6230,0)),\"\",INDIRECT(\"'SorP'!$A$\"&MATCH($J1912,SorP!$B$1:$B$6230,0))))","v":""},null,{"$f":"IF(C1912=\"\",NA(),MATCH($B1912&$C1912,'Smelter Look-up'!$J:$J,0))","v":{"$error":"#N/A"}},null,0,null,null,null,""]
[null,{"$f":"IF(LEN(A1913)=0,\"\",INDEX('Smelter Look-up'!$A:$A,MATCH($A1913,'Smelter Look-up'!$E:$E,0)))","v":""},{"$f":"IF(LEN(A1913)=0,\"\",INDEX('Smelter Look-up'!$C:$C,MATCH($A1913,'Smelter Look-up'!$E:$E,0)))","v":""},null,{"$f":"IF(ISERROR($V1913),\"\",OFFSET('Smelter Look-up'!$D$4,$V1913-4,0)&\"\")","v":""},{"$f":"IF(ISERROR($V1913),\"\",OFFSET('Smelter Look-up'!$E$4,$V1913-4,0))","v":""},{"$f":"IF(C1913=$X$4,\"Enter smelter details\", IF(ISERROR($V1913),\"\",OFFSET('Smelter Look-up'!$F$4,$V1913-4,0)))","v":""},{"$f":"IF(ISERROR($V1913),\"\",OFFSET('Smelter Look-up'!$G$4,$V1913-4,0))","v":""},{"$f":"IF(ISERROR($V1913),\"\",OFFSET('Smelter Look-up'!$H$4,$V1913-4,0))","v":""},{"$f":"IF(ISERROR($V1913),\"\",OFFSET('Smelter Look-up'!$I$4,$V1913-4,0))","v":""},{"$nulls":7},{"$f":"IF(ISERROR($V1913),\"\",OFFSET('Smelter Look-up'!$C$4,$V1913-4,0)&\"\")","v":""},"",{"$f":"IF(B1913=\"\",\"\",IF(ISERROR(MATCH($J1913,SorP!$B$1:$B$6230,0)),\"\",INDIRECT(\"'SorP'!$A$\"&MATCH($J1913,SorP!$B$1:$B$6230,0))))","v":""},null,{"$f":"IF(C1913=\"\",NA(),MATCH($B1913&$C1913,'Smelter Look-up'!$J:$J,0))","v":{"$error":"#N/A"}},null,0,null,null,null,""]
[null,{"$f":"IF(LEN(A1914)=0,\"\",INDEX('Smelter Look-up'!$A:$A,MATCH($A1914,'Smelter Look-up'!$E:$E,0)))","v":""},{"$f":"IF(LEN(A1914)=0,\"\",INDEX('Smelter Look-up'!$C:$C,MATCH($A1914,'Smelter Look-up'!$E:$E,0)))","v":""},null,{"$f":"IF(ISERROR($V1914),\"\",OFFSET('Smelter Look-up'!$D$4,$V1914-4,0)&\"\")","v":""},{"$f":"IF(ISERROR($V1914),\"\",OFFSET('Smelter Look-up'!$E$4,$V1914-4,0))","v":""},{"$f":"IF(C1914=$X$4,\"Enter smelter details\", IF(ISERROR($V1914),\"\",OFFSET('Smelter Look-up'!$F$4,$V1914-4,0)))","v":""},{"$f":"IF(ISERROR($V1914),\"\",OFFSET('Smelter Look-up'!$G$4,$V1914-4,0))","v":""},{"$f":"IF(ISERROR($V1914),\"\",OFFSET('Smelter Look-up'!$H$4,$V1914-4,0))","v":""},{"$f":"IF(ISERROR($V1914),\"\",OFFSET('Smelter Look-up'!$I$4,$V1914-4,0))","v":""},{"$nulls":7},{"$f":"IF(ISERROR($V1914),\"\",OFFSET('Smelter Look-up'!$C$4,$V1914-4,0)&\"\")","v":""},"",{"$f":"IF(B1914=\"\",\"\",IF(ISERROR(MATCH($J1914,SorP!$B$1:$B$6230,0)),\"\",INDIRECT(\"'SorP'!$A$\"&MATCH($J1914,SorP!$B$1:$B$6230,0))))","v":""},null,{"$f":"IF(C1914=\"\",NA(),MATCH($B1914&$C1914,'Smelter Look-up'!$J:$J,0))","v":{"$error":"#N/A"}},null,0,null,null,null,""]
[null,{"$f":"IF(LEN(A1915)=0,\"\",INDEX('Smelter Look-up'!$A:$A,MATCH($A1915,'Smelter Look-up'!$E:$E,0)))","v":""},{"$f":"IF(LEN(A1915)=0,\"\",INDEX('Smelter Look-up'!$C:$C,MATCH($A1915,'Smelter Look-up'!$E:$E,0)))","v":""},null,{"$f":"IF(ISERROR($V1915),\"\",OFFSET('Smelter Look-up'!$D$4,$V1915-4,0)&\"\")","v":""},{"$f":"IF(ISERROR($V1915),\"\",OFFSET('Smelter Look-up'!$E$4,$V1915-4,0))","v":""},{"$f":"IF(C1915=$X$4,\"Enter smelter details\", IF(ISERROR($V1915),\"\",OFFSET('Smelter Look-up'!$F$4,$V1915-4,0)))","v":""},{"$f":"IF(ISERROR($V1915),\"\",OFFSET('Smelter Look-up'!$G$4,$V1915-4,0))","v":""},{"$f":"IF(ISERROR($V1915),\"\",OFFSET('Smelter Look-up'!$H$4,$V1915-4,0))","v":""},{"$f":"IF(ISERROR($V1915),\"\",OFFSET('Smelter Look-up'!$I$4,$V1915-4,0))","v":""},{"$nulls":7},{"$f":"IF(ISERROR($V1915),\"\",OFFSET('Smelter Look-up'!$C$4,$V1915-4,0)&\"\")","v":""},{"$f":"IF(B1915=\"\",\"\",IF(ISERROR(MATCH($E1915,CL,0)),\"Unknown\",INDIRECT(\"'C'!$A$\"&MATCH($E1915,CL,0)+1)))","v":""},{"$f":"IF(B1915=\"\",\"\",IF(ISERROR(MATCH($J1915,SorP!$B$1:$B$6230,0)),\"\",INDIRECT(\"'SorP'!$A$\"&MATCH($J1915,SorP!$B$1:$B$6230,0))))","v":""},null,{"$f":"IF(C1915=\"\",NA(),MATCH($B1915&$C1915,'Smelter Look-up'!$J:$J,0))","v":{"$error":"#N/A"}},null,{"$f":"IF(AND(C1915=\"Smelter not listed\",OR(LEN(D1915)=0,LEN(E1915)=0)),1,0)","v":0},null,null,null,{"$f":"B1915&C1915","v":""}]
[null,{"$f":"IF(LEN(A1916)=0,\"\",INDEX('Smelter Look-up'!$A:$A,MATCH($A1916,'Smelter Look-up'!$E:$E,0)))","v":""},{"$f":"IF(LEN(A1916)=0,\"\",INDEX('Smelter Look-up'!$C:$C,MATCH($A1916,'Smelter Look-up'!$E:$E,0)))","v":""},null,{"$f":"IF(ISERROR($V1916),\"\",OFFSET('Smelter Look-up'!$D$4,$V1916-4,0)&\"\")","v":""},{"$f":"IF(ISERROR($V1916),\"\",OFFSET('Smelter Look-up'!$E$4,$V1916-4,0))","v":""},{"$f":"IF(C1916=$X$4,\"Enter smelter details\", IF(ISERROR($V1916),\"\",OFFSET('Smelter Look-up'!$F$4,$V1916-4,0)))","v":""},{"$f":"IF(ISERROR($V1916),\"\",OFFSET('Smelter Look-up'!$G$4,$V1916-4,0))","v":""},{"$f":"IF(ISERROR($V1916),\"\",OFFSET('Smelter Look-up'!$H$4,$V1916-4,0))","v":""},{"$f":"IF(ISERROR($V1916),\"\",OFFSET('Smelter Look-up'!$I$4,$V1916-4,0))","v":""},{"$nulls":7},{"$f":"IF(ISERROR($V1916),\"\",OFFSET('Smelter Look-up'!$C$4,$V1916-4,0)&\"\")","v":""},"",{"$f":"IF(B1916=\"\",\"\",IF(ISERROR(MATCH($J1916,SorP!$B$1:$B$6230,0)),\"\",INDIRECT(\"'SorP'!$A$\"&MATCH($J1916,SorP!$B$1:$B$6230,0))))","v":""},null,{"$f":"IF(C1916=\"\",NA(),MATCH($B1916&$C1916,'Smelter Look-up'!$J:$J,0))","v":{"$error":"#N/A"}},null,0,null,null,null,""]
[null,{"$f":"IF(LEN(A1917)=0,\"\",INDEX('Smelter Look-up'!$A:$A,MATCH($A1917,'Smelter Look-up'!$E:$E,0)))","v":""},{"$f":"IF(LEN(A1917)=0,\"\",INDEX('Smelter Look-up'!$C:$C,MATCH($A1917,'Smelter Look-up'!$E:$E,0)))","v":""},null,{"$f":"IF(ISERROR($V1917),\"\",OFFSET('Smelter Look-up'!$D$4,$V1917-4,0)&\"\")","v":""},{"$f":"IF(ISERROR($V1917),\"\",OFFSET('Smelter Look-up'!$E$4,$V1917-4,0))","v":""},{"$f":"IF(C1917=$X$4,\"Enter smelter details\", IF(ISERROR($V1917),\"\",OFFSET('Smelter Look-up'!$F$4,$V1917-4,0)))","v":""},{"$f":"IF(ISERROR($V1917),\"\",OFFSET('Smelter Look-up'!$G$4,$V1917-4,0))","v":""},{"$f":"IF(ISERROR($V1917),\"\",OFFSET('Smelter Look-up'!$H$4,$V1917-4,0))","v":""},{"$f":"IF(ISERROR($V1917),\"\",OFFSET('Smelter Look-up'!$I$4,$V1917-4,0))","v":""},{"$nulls":7},{"$f":"IF(ISERROR($V1917),\"\",OFFSET('Smelter Look-up'!$C$4,$V1917-4,0)&\"\")","v":""},"",{"$f":"IF(B1917=\"\",\"\",IF(ISERROR(MATCH($J1917,SorP!$B$1:$B$6230,0)),\"\",INDIRECT(\"'SorP'!$A$\"&MATCH($J1917,SorP!$B$1:$B$6230,0))))","v":""},null,{"$f":"IF(C1917=\"\",NA(),MATCH($B1917&$C1917,'Smelter Look-up'!$J:$J,0))","v":{"$error":"#N/A"}},null,0,null,null,null,""]
[null,{"$f":"IF(LEN(A1918)=0,\"\",INDEX('Smelter Look-up'!$A:$A,MATCH($A1918,'Smelter Look-up'!$E:$E,0)))","v":""},{"$f":"IF(LEN(A1918)=0,\"\",INDEX('Smelter Look-up'!$C:$C,MATCH($A1918,'Smelter Look-up'!$E:$E,0)))","v":""},null,{"$f":"IF(ISERROR($V1918),\"\",OFFSET('Smelter Look-up'!$D$4,$V1918-4,0)&\"\")","v":""},{"$f":"IF(ISERROR($V1918),\"\",OFFSET('Smelter Look-up'!$E$4,$V1918-4,0))","v":""},{"$f":"IF(C1918=$X$4,\"Enter smelter details\", IF(ISERROR($V1918),\"\",OFFSET('Smelter Look-up'!$F$4,$V1918-4,0)))","v":""},{"$f":"IF(ISERROR($V1918),\"\",OFFSET('Smelter Look-up'!$G$4,$V1918-4,0))","v":""},{"$f":"IF(ISERROR($V1918),\"\",OFFSET('Smelter Look-up'!$H$4,$V1918-4,0))","v":""},{"$f":"IF(ISERROR($V1918),\"\",OFFSET('Smelter Look-up'!$I$4,$V1918-4,0))","v":""},{"$nulls":7},{"$f":"IF(ISERROR($V1918),\"\",OFFSET('Smelter Look-up'!$C$4,$V1918-4,0)&\"\")","v":""},"",{"$f":"IF(B1918=\"\",\"\",IF(ISERROR(MATCH($J1918,SorP!$B$1:$B$6230,0)),\"\",INDIRECT(\"'SorP'!$A$\"&MATCH($J1918,SorP!$B$1:$B$6230,0))))","v":""},null,{"$f":"IF(C1918=\"\",NA(),MATCH($B1918&$C1918,'Smelter Look-up'!$J:$J,0))","v":{"$error":"#N/A"}},null,0,null,null,null,""]
[null,{"$f":"IF(LEN(A1919)=0,\"\",INDEX('Smelter Look-up'!$A:$A,MATCH($A1919,'Smelter Look-up'!$E:$E,0)))","v":""},{"$f":"IF(LEN(A1919)=0,\"\",INDEX('Smelter Look-up'!$C:$C,MATCH($A1919,'Smelter Look-up'!$E:$E,0)))","v":""},null,{"$f":"IF(ISERROR($V1919),\"\",OFFSET('Smelter Look-up'!$D$4,$V1919-4,0)&\"\")","v":""},{"$f":"IF(ISERROR($V1919),\"\",OFFSET('Smelter Look-up'!$E$4,$V1919-4,0))","v":""},{"$f":"IF(C1919=$X$4,\"Enter smelter details\", IF(ISERROR($V1919),\"\",OFFSET('Smelter Look-up'!$F$4,$V1919-4,0)))","v":""},{"$f":"IF(ISERROR($V1919),\"\",OFFSET('Smelter Look-up'!$G$4,$V1919-4,0))","v":""},{"$f":"IF(ISERROR($V1919),\"\",OFFSET('Smelter Look-up'!$H$4,$V1919-4,0))","v":""},{"$f":"IF(ISERROR($V1919),\"\",OFFSET('Smelter Look-up'!$I$4,$V1919-4,0))","v":""},{"$nulls":7},{"$f":"IF(ISERROR($V1919),\"\",OFFSET('Smelter Look-up'!$C$4,$V1919-4,0)&\"\")","v":""},"",{"$f":"IF(B1919=\"\",\"\",IF(ISERROR(MATCH($J1919,SorP!$B$1:$B$6230,0)),\"\",INDIRECT(\"'SorP'!$A$\"&MATCH($J1919,SorP!$B$1:$B$6230,0))))","v":""},null,{"$f":"IF(C1919=\"\",NA(),MATCH($B1919&$C1919,'Smelter Look-up'!$J:$J,0))","v":{"$error":"#N/A"}},null,0,null,null,null,""]
[null,{"$f":"IF(LEN(A1920)=0,\"\",INDEX('Smelter Look-up'!$A:$A,MATCH($A1920,'Smelter Look-up'!$E:$E,0)))","v":""},{"$f":"IF(LEN(A1920)=0,\"\",INDEX('Smelter Look-up'!$C:$C,MATCH($A1920,'Smelter Look-up'!$E:$E,0)))","v":""},null,{"$f":"IF(ISERROR($V1920),\"\",OFFSET('Smelter Look-up'!$D$4,$V1920-4,0)&\"\")","v":""},{"$f":"IF(ISERROR($V1920),\"\",OFFSET('Smelter Look-up'!$E$4,$V1920-4,0))","v":""},{"$f":"IF(C1920=$X$4,\"Enter smelter details\", IF(ISERROR($V1920),\"\",OFFSET('Smelter Look-up'!$F$4,$V1920-4,0)))","v":""},{"$f":"IF(ISERROR($V1920),\"\",OFFSET('Smelter Look-up'!$G$4,$V1920-4,0))","v":""},{"$f":"IF(ISERROR($V1920),\"\",OFFSET('Smelter Look-up'!$H$4,$V1920-4,0))","v":""},{"$f":"IF(ISERROR($V1920),\"\",OFFSET('Smelter Look-up'!$I$4,$V1920-4,0))","v":""},{"$nulls":7},{"$f":"IF(ISERROR($V1920),\"\",OFFSET('Smelter Look-up'!$C$4,$V1920-4,0)&\"\")","v":""},"",{"$f":"IF(B1920=\"\",\"\",IF(ISERROR(MATCH($J1920,SorP!$B$1:$B$6230,0)),\"\",INDIRECT(\"'SorP'!$A$\"&MATCH($J1920,SorP!$B$1:$B$6230,0))))","v":""},null,{"$f":"IF(C1920=\"\",NA(),MATCH($B1920&$C1920,'Smelter Look-up'!$J:$J,0))","v":{"$error":"#N/A"}},null,0,null,null,null,""]
[null,{"$f":"IF(LEN(A1921)=0,\"\",INDEX('Smelter Look-up'!$A:$A,MATCH($A1921,'Smelter Look-up'!$E:$E,0)))","v":""},{"$f":"IF(LEN(A1921)=0,\"\",INDEX('Smelter Look-up'!$C:$C,MATCH($A1921,'Smelter Look-up'!$E:$E,0)))","v":""},null,{"$f":"IF(ISERROR($V1921),\"\",OFFSET('Smelter Look-up'!$D$4,$V1921-4,0)&\"\")","v":""},{"$f":"IF(ISERROR($V1921),\"\",OFFSET('Smelter Look-up'!$E$4,$V1921-4,0))","v":""},{"$f":"IF(C1921=$X$4,\"Enter smelter details\", IF(ISERROR($V1921),\"\",OFFSET('Smelter Look-up'!$F$4,$V1921-4,0)))","v":""},{"$f":"IF(ISERROR($V1921),\"\",OFFSET('Smelter Look-up'!$G$4,$V1921-4,0))","v":""},{"$f":"IF(ISERROR($V1921),\"\",OFFSET('Smelter Look-up'!$H$4,$V1921-4,0))","v":""},{"$f":"IF(ISERROR($V1921),\"\",OFFSET('Smelter Look-up'!$I$4,$V1921-4,0))","v":""},{"$nulls":7},{"$f":"IF(ISERROR($V1921),\"\",OFFSET('Smelter Look-up'!$C$4,$V1921-4,0)&\"\")","v":""},"",{"$f":"IF(B1921=\"\",\"\",IF(ISERROR(MATCH($J1921,SorP!$B$1:$B$6230,0)),\"\",INDIRECT(\"'SorP'!$A$\"&MATCH($J1921,SorP!$B$1:$B$6230,0))))","v":""},null,{"$f":"IF(C1921=\"\",NA(),MATCH($B1921&$C1921,'Smelter Look-up'!$J:$J,0))","v":{"$error":"#N/A"}},null,0,null,null,null,""]
[null,{"$f":"IF(LEN(A1922)=0,\"\",INDEX('Smelter Look-up'!$A:$A,MATCH($A1922,'Smelter Look-up'!$E:$E,0)))","v":""},{"$f":"IF(LEN(A1922)=0,\"\",INDEX('Smelter Look-up'!$C:$C,MATCH($A1922,'Smelter Look-up'!$E:$E,0)))","v":""},null,{"$f":"IF(ISERROR($V1922),\"\",OFFSET('Smelter Look-up'!$D$4,$V1922-4,0)&\"\")","v":""},{"$f":"IF(ISERROR($V1922),\"\",OFFSET('Smelter Look-up'!$E$4,$V1922-4,0))","v":""},{"$f":"IF(C1922=$X$4,\"Enter smelter details\", IF(ISERROR($V1922),\"\",OFFSET('Smelter Look-up'!$F$4,$V1922-4,0)))","v":""},{"$f":"IF(ISERROR($V1922),\"\",OFFSET('Smelter Look-up'!$G$4,$V1922-4,0))","v":""},{"$f":"IF(ISERROR($V1922),\"\",OFFSET('Smelter Look-up'!$H$4,$V1922-4,0))","v":""},{"$f":"IF(ISERROR($V1922),\"\",OFFSET('Smelter Look-up'!$I$4,$V1922-4,0))","v":""},{"$nulls":7},{"$f":"IF(ISERROR($V1922),\"\",OFFSET('Smelter Look-up'!$C$4,$V1922-4,0)&\"\")","v":""},"",{"$f":"IF(B1922=\"\",\"\",IF(ISERROR(MATCH($J1922,SorP!$B$1:$B$6230,0)),\"\",INDIRECT(\"'SorP'!$A$\"&MATCH($J1922,SorP!$B$1:$B$6230,0))))","v":""},null,{"$f":"IF(C1922=\"\",NA(),MATCH($B1922&$C1922,'Smelter Look-up'!$J:$J,0))","v":{"$error":"#N/A"}},null,0,null,null,null,""]
[null,{"$f":"IF(LEN(A1923)=0,\"\",INDEX('Smelter Look-up'!$A:$A,MATCH($A1923,'Smelter Look-up'!$E:$E,0)))","v":""},{"$f":"IF(LEN(A1923)=0,\"\",INDEX('Smelter Look-up'!$C:$C,MATCH($A1923,'Smelter Look-up'!$E:$E,0)))","v":""},null,{"$f":"IF(ISERROR($V1923),\"\",OFFSET('Smelter Look-up'!$D$4,$V1923-4,0)&\"\")","v":""},{"$f":"IF(ISERROR($V1923),\"\",OFFSET('Smelter Look-up'!$E$4,$V1923-4,0))","v":""},{"$f":"IF(C1923=$X$4,\"Enter smelter details\", IF(ISERROR($V1923),\"\",OFFSET('Smelter Look-up'!$F$4,$V1923-4,0)))","v":""},{"$f":"IF(ISERROR($V1923),\"\",OFFSET('Smelter Look-up'!$G$4,$V1923-4,0))","v":""},{"$f":"IF(ISERROR($V1923),\"\",OFFSET('Smelter Look-up'!$H$4,$V1923-4,0))","v":""},{"$f":"IF(ISERROR($V1923),\"\",OFFSET('Smelter Look-up'!$I$4,$V1923-4,0))","v":""},{"$nulls":7},{"$f":"IF(ISERROR($V1923),\"\",OFFSET('Smelter Look-up'!$C$4,$V1923-4,0)&\"\")","v":""},"",{"$f":"IF(B1923=\"\",\"\",IF(ISERROR(MATCH($J1923,SorP!$B$1:$B$6230,0)),\"\",INDIRECT(\"'SorP'!$A$\"&MATCH($J1923,SorP!$B$1:$B$6230,0))))","v":""},null,{"$f":"IF(C1923=\"\",NA(),MATCH($B1923&$C1923,'Smelter Look-up'!$J:$J,0))","v":{"$error":"#N/A"}},null,0,null,null,null,""]
[null,{"$f":"IF(LEN(A1924)=0,\"\",INDEX('Smelter Look-up'!$A:$A,MATCH($A1924,'Smelter Look-up'!$E:$E,0)))","v":""},{"$f":"IF(LEN(A1924)=0,\"\",INDEX('Smelter Look-up'!$C:$C,MATCH($A1924,'Smelter Look-up'!$E:$E,0)))","v":""},null,{"$f":"IF(ISERROR($V1924),\"\",OFFSET('Smelter Look-up'!$D$4,$V1924-4,0)&\"\")","v":""},{"$f":"IF(ISERROR($V1924),\"\",OFFSET('Smelter Look-up'!$E$4,$V1924-4,0))","v":""},{"$f":"IF(C1924=$X$4,\"Enter smelter details\", IF(ISERROR($V1924),\"\",OFFSET('Smelter Look-up'!$F$4,$V1924-4,0)))","v":""},{"$f":"IF(ISERROR($V1924),\"\",OFFSET('Smelter Look-up'!$G$4,$V1924-4,0))","v":""},{"$f":"IF(ISERROR($V1924),\"\",OFFSET('Smelter Look-up'!$H$4,$V1924-4,0))","v":""},{"$f":"IF(ISERROR($V1924),\"\",OFFSET('Smelter Look-up'!$I$4,$V1924-4,0))","v":""},{"$nulls":7},{"$f":"IF(ISERROR($V1924),\"\",OFFSET('Smelter Look-up'!$C$4,$V1924-4,0)&\"\")","v":""},"",{"$f":"IF(B1924=\"\",\"\",IF(ISERROR(MATCH($J1924,SorP!$B$1:$B$6230,0)),\"\",INDIRECT(\"'SorP'!$A$\"&MATCH($J1924,SorP!$B$1:$B$6230,0))))","v":""},null,{"$f":"IF(C1924=\"\",NA(),MATCH($B1924&$C1924,'Smelter Look-up'!$J:$J,0))","v":{"$error":"#N/A"}},null,0,null,null,null,""]
[null,{"$f":"IF(LEN(A1925)=0,\"\",INDEX('Smelter Look-up'!$A:$A,MATCH($A1925,'Smelter Look-up'!$E:$E,0)))","v":""},{"$f":"IF(LEN(A1925)=0,\"\",INDEX('Smelter Look-up'!$C:$C,MATCH($A1925,'Smelter Look-up'!$E:$E,0)))","v":""},null,{"$f":"IF(ISERROR($V1925),\"\",OFFSET('Smelter Look-up'!$D$4,$V1925-4,0)&\"\")","v":""},{"$f":"IF(ISERROR($V1925),\"\",OFFSET('Smelter Look-up'!$E$4,$V1925-4,0))","v":""},{"$f":"IF(C1925=$X$4,\"Enter smelter details\", IF(ISERROR($V1925),\"\",OFFSET('Smelter Look-up'!$F$4,$V1925-4,0)))","v":""},{"$f":"IF(ISERROR($V1925),\"\",OFFSET('Smelter Look-up'!$G$4,$V1925-4,0))","v":""},{"$f":"IF(ISERROR($V1925),\"\",OFFSET('Smelter Look-up'!$H$4,$V1925-4,0))","v":""},{"$f":"IF(ISERROR($V1925),\"\",OFFSET('Smelter Look-up'!$I$4,$V1925-4,0))","v":""},{"$nulls":7},{"$f":"IF(ISERROR($V1925),\"\",OFFSET('Smelter Look-up'!$C$4,$V1925-4,0)&\"\")","v":""},"",{"$f":"IF(B1925=\"\",\"\",IF(ISERROR(MATCH($J1925,SorP!$B$1:$B$6230,0)),\"\",INDIRECT(\"'SorP'!$A$\"&MATCH($J1925,SorP!$B$1:$B$6230,0))))","v":""},null,{"$f":"IF(C1925=\"\",NA(),MATCH($B1925&$C1925,'Smelter Look-up'!$J:$J,0))","v":{"$error":"#N/A"}},null,0,null,null,null,""]
[null,{"$f":"IF(LEN(A1926)=0,\"\",INDEX('Smelter Look-up'!$A:$A,MATCH($A1926,'Smelter Look-up'!$E:$E,0)))","v":""},{"$f":"IF(LEN(A1926)=0,\"\",INDEX('Smelter Look-up'!$C:$C,MATCH($A1926,'Smelter Look-up'!$E:$E,0)))","v":""},null,{"$f":"IF(ISERROR($V1926),\"\",OFFSET('Smelter Look-up'!$D$4,$V1926-4,0)&\"\")","v":""},{"$f":"IF(ISERROR($V1926),\"\",OFFSET('Smelter Look-up'!$E$4,$V1926-4,0))","v":""},{"$f":"IF(C1926=$X$4,\"Enter smelter details\", IF(ISERROR($V1926),\"\",OFFSET('Smelter Look-up'!$F$4,$V1926-4,0)))","v":""},{"$f":"IF(ISERROR($V1926),\"\",OFFSET('Smelter Look-up'!$G$4,$V1926-4,0))","v":""},{"$f":"IF(ISERROR($V1926),\"\",OFFSET('Smelter Look-up'!$H$4,$V1926-4,0))","v":""},{"$f":"IF(ISERROR($V1926),\"\",OFFSET('Smelter Look-up'!$I$4,$V1926-4,0))","v":""},{"$nulls":7},{"$f":"IF(ISERROR($V1926),\"\",OFFSET('Smelter Look-up'!$C$4,$V1926-4,0)&\"\")","v":""},"",{"$f":"IF(B1926=\"\",\"\",IF(ISERROR(MATCH($J1926,SorP!$B$1:$B$6230,0)),\"\",INDIRECT(\"'SorP'!$A$\"&MATCH($J1926,SorP!$B$1:$B$6230,0))))","v":""},null,{"$f":"IF(C1926=\"\",NA(),MATCH($B1926&$C1926,'Smelter Look-up'!$J:$J,0))","v":{"$error":"#N/A"}},null,0,null,null,null,""]
[null,{"$f":"IF(LEN(A1927)=0,\"\",INDEX('Smelter Look-up'!$A:$A,MATCH($A1927,'Smelter Look-up'!$E:$E,0)))","v":""},{"$f":"IF(LEN(A1927)=0,\"\",INDEX('Smelter Look-up'!$C:$C,MATCH($A1927,'Smelter Look-up'!$E:$E,0)))","v":""},null,{"$f":"IF(ISERROR($V1927),\"\",OFFSET('Smelter Look-up'!$D$4,$V1927-4,0)&\"\")","v":""},{"$f":"IF(ISERROR($V1927),\"\",OFFSET('Smelter Look-up'!$E$4,$V1927-4,0))","v":""},{"$f":"IF(C1927=$X$4,\"Enter smelter details\", IF(ISERROR($V1927),\"\",OFFSET('Smelter Look-up'!$F$4,$V1927-4,0)))","v":""},{"$f":"IF(ISERROR($V1927),\"\",OFFSET('Smelter Look-up'!$G$4,$V1927-4,0))","v":""},{"$f":"IF(ISERROR($V1927),\"\",OFFSET('Smelter Look-up'!$H$4,$V1927-4,0))","v":""},{"$f":"IF(ISERROR($V1927),\"\",OFFSET('Smelter Look-up'!$I$4,$V1927-4,0))","v":""},{"$nulls":7},{"$f":"IF(ISERROR($V1927),\"\",OFFSET('Smelter Look-up'!$C$4,$V1927-4,0)&\"\")","v":""},"",{"$f":"IF(B1927=\"\",\"\",IF(ISERROR(MATCH($J1927,SorP!$B$1:$B$6230,0)),\"\",INDIRECT(\"'SorP'!$A$\"&MATCH($J1927,SorP!$B$1:$B$6230,0))))","v":""},null,{"$f":"IF(C1927=\"\",NA(),MATCH($B1927&$C1927,'Smelter Look-up'!$J:$J,0))","v":{"$error":"#N/A"}},null,0,null,null,null,""]
[null,{"$f":"IF(LEN(A1928)=0,\"\",INDEX('Smelter Look-up'!$A:$A,MATCH($A1928,'Smelter Look-up'!$E:$E,0)))","v":""},{"$f":"IF(LEN(A1928)=0,\"\",INDEX('Smelter Look-up'!$C:$C,MATCH($A1928,'Smelter Look-up'!$E:$E,0)))","v":""},null,{"$f":"IF(ISERROR($V1928),\"\",OFFSET('Smelter Look-up'!$D$4,$V1928-4,0)&\"\")","v":""},{"$f":"IF(ISERROR($V1928),\"\",OFFSET('Smelter Look-up'!$E$4,$V1928-4,0))","v":""},{"$f":"IF(C1928=$X$4,\"Enter smelter details\", IF(ISERROR($V1928),\"\",OFFSET('Smelter Look-up'!$F$4,$V1928-4,0)))","v":""},{"$f":"IF(ISERROR($V1928),\"\",OFFSET('Smelter Look-up'!$G$4,$V1928-4,0))","v":""},{"$f":"IF(ISERROR($V1928),\"\",OFFSET('Smelter Look-up'!$H$4,$V1928-4,0))","v":""},{"$f":"IF(ISERROR($V1928),\"\",OFFSET('Smelter Look-up'!$I$4,$V1928-4,0))","v":""},{"$nulls":7},{"$f":"IF(ISERROR($V1928),\"\",OFFSET('Smelter Look-up'!$C$4,$V1928-4,0)&\"\")","v":""},"",{"$f":"IF(B1928=\"\",\"\",IF(ISERROR(MATCH($J1928,SorP!$B$1:$B$6230,0)),\"\",INDIRECT(\"'SorP'!$A$\"&MATCH($J1928,SorP!$B$1:$B$6230,0))))","v":""},null,{"$f":"IF(C1928=\"\",NA(),MATCH($B1928&$C1928,'Smelter Look-up'!$J:$J,0))","v":{"$error":"#N/A"}},null,0,null,null,null,""]
[null,{"$f":"IF(LEN(A1929)=0,\"\",INDEX('Smelter Look-up'!$A:$A,MATCH($A1929,'Smelter Look-up'!$E:$E,0)))","v":""},{"$f":"IF(LEN(A1929)=0,\"\",INDEX('Smelter Look-up'!$C:$C,MATCH($A1929,'Smelter Look-up'!$E:$E,0)))","v":""},null,{"$f":"IF(ISERROR($V1929),\"\",OFFSET('Smelter Look-up'!$D$4,$V1929-4,0)&\"\")","v":""},{"$f":"IF(ISERROR($V1929),\"\",OFFSET('Smelter Look-up'!$E$4,$V1929-4,0))","v":""},{"$f":"IF(C1929=$X$4,\"Enter smelter details\", IF(ISERROR($V1929),\"\",OFFSET('Smelter Look-up'!$F$4,$V1929-4,0)))","v":""},{"$f":"IF(ISERROR($V1929),\"\",OFFSET('Smelter Look-up'!$G$4,$V1929-4,0))","v":""},{"$f":"IF(ISERROR($V1929),\"\",OFFSET('Smelter Look-up'!$H$4,$V1929-4,0))","v":""},{"$f":"IF(ISERROR($V1929),\"\",OFFSET('Smelter Look-up'!$I$4,$V1929-4,0))","v":""},{"$nulls":7},{"$f":"IF(ISERROR($V1929),\"\",OFFSET('Smelter Look-up'!$C$4,$V1929-4,0)&\"\")","v":""},"",{"$f":"IF(B1929=\"\",\"\",IF(ISERROR(MATCH($J1929,SorP!$B$1:$B$6230,0)),\"\",INDIRECT(\"'SorP'!$A$\"&MATCH($J1929,SorP!$B$1:$B$6230,0))))","v":""},null,{"$f":"IF(C1929=\"\",NA(),MATCH($B1929&$C1929,'Smelter Look-up'!$J:$J,0))","v":{"$error":"#N/A"}},null,0,null,null,null,""]
[null,{"$f":"IF(LEN(A1930)=0,\"\",INDEX('Smelter Look-up'!$A:$A,MATCH($A1930,'Smelter Look-up'!$E:$E,0)))","v":""},{"$f":"IF(LEN(A1930)=0,\"\",INDEX('Smelter Look-up'!$C:$C,MATCH($A1930,'Smelter Look-up'!$E:$E,0)))","v":""},null,{"$f":"IF(ISERROR($V1930),\"\",OFFSET('Smelter Look-up'!$D$4,$V1930-4,0)&\"\")","v":""},{"$f":"IF(ISERROR($V1930),\"\",OFFSET('Smelter Look-up'!$E$4,$V1930-4,0))","v":""},{"$f":"IF(C1930=$X$4,\"Enter smelter details\", IF(ISERROR($V1930),\"\",OFFSET('Smelter Look-up'!$F$4,$V1930-4,0)))","v":""},{"$f":"IF(ISERROR($V1930),\"\",OFFSET('Smelter Look-up'!$G$4,$V1930-4,0))","v":""},{"$f":"IF(ISERROR($V1930),\"\",OFFSET('Smelter Look-up'!$H$4,$V1930-4,0))","v":""},{"$f":"IF(ISERROR($V1930),\"\",OFFSET('Smelter Look-up'!$I$4,$V1930-4,0))","v":""},{"$nulls":7},{"$f":"IF(ISERROR($V1930),\"\",OFFSET('Smelter Look-up'!$C$4,$V1930-4,0)&\"\")","v":""},"",{"$f":"IF(B1930=\"\",\"\",IF(ISERROR(MATCH($J1930,SorP!$B$1:$B$6230,0)),\"\",INDIRECT(\"'SorP'!$A$\"&MATCH($J1930,SorP!$B$1:$B$6230,0))))","v":""},null,{"$f":"IF(C1930=\"\",NA(),MATCH($B1930&$C1930,'Smelter Look-up'!$J:$J,0))","v":{"$error":"#N/A"}},null,0,null,null,null,""]
[null,{"$f":"IF(LEN(A1931)=0,\"\",INDEX('Smelter Look-up'!$A:$A,MATCH($A1931,'Smelter Look-up'!$E:$E,0)))","v":""},{"$f":"IF(LEN(A1931)=0,\"\",INDEX('Smelter Look-up'!$C:$C,MATCH($A1931,'Smelter Look-up'!$E:$E,0)))","v":""},null,{"$f":"IF(ISERROR($V1931),\"\",OFFSET('Smelter Look-up'!$D$4,$V1931-4,0)&\"\")","v":""},{"$f":"IF(ISERROR($V1931),\"\",OFFSET('Smelter Look-up'!$E$4,$V1931-4,0))","v":""},{"$f":"IF(C1931=$X$4,\"Enter smelter details\", IF(ISERROR($V1931),\"\",OFFSET('Smelter Look-up'!$F$4,$V1931-4,0)))","v":""},{"$f":"IF(ISERROR($V1931),\"\",OFFSET('Smelter Look-up'!$G$4,$V1931-4,0))","v":""},{"$f":"IF(ISERROR($V1931),\"\",OFFSET('Smelter Look-up'!$H$4,$V1931-4,0))","v":""},{"$f":"IF(ISERROR($V1931),\"\",OFFSET('Smelter Look-up'!$I$4,$V1931-4,0))","v":""},{"$nulls":7},{"$f":"IF(ISERROR($V1931),\"\",OFFSET('Smelter Look-up'!$C$4,$V1931-4,0)&\"\")","v":""},"",{"$f":"IF(B1931=\"\",\"\",IF(ISERROR(MATCH($J1931,SorP!$B$1:$B$6230,0)),\"\",INDIRECT(\"'SorP'!$A$\"&MATCH($J1931,SorP!$B$1:$B$6230,0))))","v":""},null,{"$f":"IF(C1931=\"\",NA(),MATCH($B1931&$C1931,'Smelter Look-up'!$J:$J,0))","v":{"$error":"#N/A"}},null,0,null,null,null,""]
[null,{"$f":"IF(LEN(A1932)=0,\"\",INDEX('Smelter Look-up'!$A:$A,MATCH($A1932,'Smelter Look-up'!$E:$E,0)))","v":""},{"$f":"IF(LEN(A1932)=0,\"\",INDEX('Smelter Look-up'!$C:$C,MATCH($A1932,'Smelter Look-up'!$E:$E,0)))","v":""},null,{"$f":"IF(ISERROR($V1932),\"\",OFFSET('Smelter Look-up'!$D$4,$V1932-4,0)&\"\")","v":""},{"$f":"IF(ISERROR($V1932),\"\",OFFSET('Smelter Look-up'!$E$4,$V1932-4,0))","v":""},{"$f":"IF(C1932=$X$4,\"Enter smelter details\", IF(ISERROR($V1932),\"\",OFFSET('Smelter Look-up'!$F$4,$V1932-4,0)))","v":""},{"$f":"IF(ISERROR($V1932),\"\",OFFSET('Smelter Look-up'!$G$4,$V1932-4,0))","v":""},{"$f":"IF(ISERROR($V1932),\"\",OFFSET('Smelter Look-up'!$H$4,$V1932-4,0))","v":""},{"$f":"IF(ISERROR($V1932),\"\",OFFSET('Smelter Look-up'!$I$4,$V1932-4,0))","v":""},{"$nulls":7},{"$f":"IF(ISERROR($V1932),\"\",OFFSET('Smelter Look-up'!$C$4,$V1932-4,0)&\"\")","v":""},"",{"$f":"IF(B1932=\"\",\"\",IF(ISERROR(MATCH($J1932,SorP!$B$1:$B$6230,0)),\"\",INDIRECT(\"'SorP'!$A$\"&MATCH($J1932,SorP!$B$1:$B$6230,0))))","v":""},null,{"$f":"IF(C1932=\"\",NA(),MATCH($B1932&$C1932,'Smelter Look-up'!$J:$J,0))","v":{"$error":"#N/A"}},null,0,null,null,null,""]
[null,{"$f":"IF(LEN(A1933)=0,\"\",INDEX('Smelter Look-up'!$A:$A,MATCH($A1933,'Smelter Look-up'!$E:$E,0)))","v":""},{"$f":"IF(LEN(A1933)=0,\"\",INDEX('Smelter Look-up'!$C:$C,MATCH($A1933,'Smelter Look-up'!$E:$E,0)))","v":""},null,{"$f":"IF(ISERROR($V1933),\"\",OFFSET('Smelter Look-up'!$D$4,$V1933-4,0)&\"\")","v":""},{"$f":"IF(ISERROR($V1933),\"\",OFFSET('Smelter Look-up'!$E$4,$V1933-4,0))","v":""},{"$f":"IF(C1933=$X$4,\"Enter smelter details\", IF(ISERROR($V1933),\"\",OFFSET('Smelter Look-up'!$F$4,$V1933-4,0)))","v":""},{"$f":"IF(ISERROR($V1933),\"\",OFFSET('Smelter Look-up'!$G$4,$V1933-4,0))","v":""},{"$f":"IF(ISERROR($V1933),\"\",OFFSET('Smelter Look-up'!$H$4,$V1933-4,0))","v":""},{"$f":"IF(ISERROR($V1933),\"\",OFFSET('Smelter Look-up'!$I$4,$V1933-4,0))","v":""},{"$nulls":7},{"$f":"IF(ISERROR($V1933),\"\",OFFSET('Smelter Look-up'!$C$4,$V1933-4,0)&\"\")","v":""},"",{"$f":"IF(B1933=\"\",\"\",IF(ISERROR(MATCH($J1933,SorP!$B$1:$B$6230,0)),\"\",INDIRECT(\"'SorP'!$A$\"&MATCH($J1933,SorP!$B$1:$B$6230,0))))","v":""},null,{"$f":"IF(C1933=\"\",NA(),MATCH($B1933&$C1933,'Smelter Look-up'!$J:$J,0))","v":{"$error":"#N/A"}},null,0,null,null,null,""]
[null,{"$f":"IF(LEN(A1934)=0,\"\",INDEX('Smelter Look-up'!$A:$A,MATCH($A1934,'Smelter Look-up'!$E:$E,0)))","v":""},{"$f":"IF(LEN(A1934)=0,\"\",INDEX('Smelter Look-up'!$C:$C,MATCH($A1934,'Smelter Look-up'!$E:$E,0)))","v":""},null,{"$f":"IF(ISERROR($V1934),\"\",OFFSET('Smelter Look-up'!$D$4,$V1934-4,0)&\"\")","v":""},{"$f":"IF(ISERROR($V1934),\"\",OFFSET('Smelter Look-up'!$E$4,$V1934-4,0))","v":""},{"$f":"IF(C1934=$X$4,\"Enter smelter details\", IF(ISERROR($V1934),\"\",OFFSET('Smelter Look-up'!$F$4,$V1934-4,0)))","v":""},{"$f":"IF(ISERROR($V1934),\"\",OFFSET('Smelter Look-up'!$G$4,$V1934-4,0))","v":""},{"$f":"IF(ISERROR($V1934),\"\",OFFSET('Smelter Look-up'!$H$4,$V1934-4,0))","v":""},{"$f":"IF(ISERROR($V1934),\"\",OFFSET('Smelter Look-up'!$I$4,$V1934-4,0))","v":""},{"$nulls":7},{"$f":"IF(ISERROR($V1934),\"\",OFFSET('Smelter Look-up'!$C$4,$V1934-4,0)&\"\")","v":""},"",{"$f":"IF(B1934=\"\",\"\",IF(ISERROR(MATCH($J1934,SorP!$B$1:$B$6230,0)),\"\",INDIRECT(\"'SorP'!$A$\"&MATCH($J1934,SorP!$B$1:$B$6230,0))))","v":""},null,{"$f":"IF(C1934=\"\",NA(),MATCH($B1934&$C1934,'Smelter Look-up'!$J:$J,0))","v":{"$error":"#N/A"}},null,0,null,null,null,""]
[null,{"$f":"IF(LEN(A1935)=0,\"\",INDEX('Smelter Look-up'!$A:$A,MATCH($A1935,'Smelter Look-up'!$E:$E,0)))","v":""},{"$f":"IF(LEN(A1935)=0,\"\",INDEX('Smelter Look-up'!$C:$C,MATCH($A1935,'Smelter Look-up'!$E:$E,0)))","v":""},null,{"$f":"IF(ISERROR($V1935),\"\",OFFSET('Smelter Look-up'!$D$4,$V1935-4,0)&\"\")","v":""},{"$f":"IF(ISERROR($V1935),\"\",OFFSET('Smelter Look-up'!$E$4,$V1935-4,0))","v":""},{"$f":"IF(C1935=$X$4,\"Enter smelter details\", IF(ISERROR($V1935),\"\",OFFSET('Smelter Look-up'!$F$4,$V1935-4,0)))","v":""},{"$f":"IF(ISERROR($V1935),\"\",OFFSET('Smelter Look-up'!$G$4,$V1935-4,0))","v":""},{"$f":"IF(ISERROR($V1935),\"\",OFFSET('Smelter Look-up'!$H$4,$V1935-4,0))","v":""},{"$f":"IF(ISERROR($V1935),\"\",OFFSET('Smelter Look-up'!$I$4,$V1935-4,0))","v":""},{"$nulls":7},{"$f":"IF(ISERROR($V1935),\"\",OFFSET('Smelter Look-up'!$C$4,$V1935-4,0)&\"\")","v":""},"",{"$f":"IF(B1935=\"\",\"\",IF(ISERROR(MATCH($J1935,SorP!$B$1:$B$6230,0)),\"\",INDIRECT(\"'SorP'!$A$\"&MATCH($J1935,SorP!$B$1:$B$6230,0))))","v":""},null,{"$f":"IF(C1935=\"\",NA(),MATCH($B1935&$C1935,'Smelter Look-up'!$J:$J,0))","v":{"$error":"#N/A"}},null,0,null,null,null,""]
[null,{"$f":"IF(LEN(A1936)=0,\"\",INDEX('Smelter Look-up'!$A:$A,MATCH($A1936,'Smelter Look-up'!$E:$E,0)))","v":""},{"$f":"IF(LEN(A1936)=0,\"\",INDEX('Smelter Look-up'!$C:$C,MATCH($A1936,'Smelter Look-up'!$E:$E,0)))","v":""},null,{"$f":"IF(ISERROR($V1936),\"\",OFFSET('Smelter Look-up'!$D$4,$V1936-4,0)&\"\")","v":""},{"$f":"IF(ISERROR($V1936),\"\",OFFSET('Smelter Look-up'!$E$4,$V1936-4,0))","v":""},{"$f":"IF(C1936=$X$4,\"Enter smelter details\", IF(ISERROR($V1936),\"\",OFFSET('Smelter Look-up'!$F$4,$V1936-4,0)))","v":""},{"$f":"IF(ISERROR($V1936),\"\",OFFSET('Smelter Look-up'!$G$4,$V1936-4,0))","v":""},{"$f":"IF(ISERROR($V1936),\"\",OFFSET('Smelter Look-up'!$H$4,$V1936-4,0))","v":""},{"$f":"IF(ISERROR($V1936),\"\",OFFSET('Smelter Look-up'!$I$4,$V1936-4,0))","v":""},{"$nulls":7},{"$f":"IF(ISERROR($V1936),\"\",OFFSET('Smelter Look-up'!$C$4,$V1936-4,0)&\"\")","v":""},"",{"$f":"IF(B1936=\"\",\"\",IF(ISERROR(MATCH($J1936,SorP!$B$1:$B$6230,0)),\"\",INDIRECT(\"'SorP'!$A$\"&MATCH($J1936,SorP!$B$1:$B$6230,0))))","v":""},null,{"$f":"IF(C1936=\"\",NA(),MATCH($B1936&$C1936,'Smelter Look-up'!$J:$J,0))","v":{"$error":"#N/A"}},null,0,null,null,null,""]
[null,{"$f":"IF(LEN(A1937)=0,\"\",INDEX('Smelter Look-up'!$A:$A,MATCH($A1937,'Smelter Look-up'!$E:$E,0)))","v":""},{"$f":"IF(LEN(A1937)=0,\"\",INDEX('Smelter Look-up'!$C:$C,MATCH($A1937,'Smelter Look-up'!$E:$E,0)))","v":""},null,{"$f":"IF(ISERROR($V1937),\"\",OFFSET('Smelter Look-up'!$D$4,$V1937-4,0)&\"\")","v":""},{"$f":"IF(ISERROR($V1937),\"\",OFFSET('Smelter Look-up'!$E$4,$V1937-4,0))","v":""},{"$f":"IF(C1937=$X$4,\"Enter smelter details\", IF(ISERROR($V1937),\"\",OFFSET('Smelter Look-up'!$F$4,$V1937-4,0)))","v":""},{"$f":"IF(ISERROR($V1937),\"\",OFFSET('Smelter Look-up'!$G$4,$V1937-4,0))","v":""},{"$f":"IF(ISERROR($V1937),\"\",OFFSET('Smelter Look-up'!$H$4,$V1937-4,0))","v":""},{"$f":"IF(ISERROR($V1937),\"\",OFFSET('Smelter Look-up'!$I$4,$V1937-4,0))","v":""},{"$nulls":7},{"$f":"IF(ISERROR($V1937),\"\",OFFSET('Smelter Look-up'!$C$4,$V1937-4,0)&\"\")","v":""},"",{"$f":"IF(B1937=\"\",\"\",IF(ISERROR(MATCH($J1937,SorP!$B$1:$B$6230,0)),\"\",INDIRECT(\"'SorP'!$A$\"&MATCH($J1937,SorP!$B$1:$B$6230,0))))","v":""},null,{"$f":"IF(C1937=\"\",NA(),MATCH($B1937&$C1937,'Smelter Look-up'!$J:$J,0))","v":{"$error":"#N/A"}},null,0,null,null,null,""]
[null,{"$f":"IF(LEN(A1938)=0,\"\",INDEX('Smelter Look-up'!$A:$A,MATCH($A1938,'Smelter Look-up'!$E:$E,0)))","v":""},{"$f":"IF(LEN(A1938)=0,\"\",INDEX('Smelter Look-up'!$C:$C,MATCH($A1938,'Smelter Look-up'!$E:$E,0)))","v":""},null,{"$f":"IF(ISERROR($V1938),\"\",OFFSET('Smelter Look-up'!$D$4,$V1938-4,0)&\"\")","v":""},{"$f":"IF(ISERROR($V1938),\"\",OFFSET('Smelter Look-up'!$E$4,$V1938-4,0))","v":""},{"$f":"IF(C1938=$X$4,\"Enter smelter details\", IF(ISERROR($V1938),\"\",OFFSET('Smelter Look-up'!$F$4,$V1938-4,0)))","v":""},{"$f":"IF(ISERROR($V1938),\"\",OFFSET('Smelter Look-up'!$G$4,$V1938-4,0))","v":""},{"$f":"IF(ISERROR($V1938),\"\",OFFSET('Smelter Look-up'!$H$4,$V1938-4,0))","v":""},{"$f":"IF(ISERROR($V1938),\"\",OFFSET('Smelter Look-up'!$I$4,$V1938-4,0))","v":""},{"$nulls":7},{"$f":"IF(ISERROR($V1938),\"\",OFFSET('Smelter Look-up'!$C$4,$V1938-4,0)&\"\")","v":""},"",{"$f":"IF(B1938=\"\",\"\",IF(ISERROR(MATCH($J1938,SorP!$B$1:$B$6230,0)),\"\",INDIRECT(\"'SorP'!$A$\"&MATCH($J1938,SorP!$B$1:$B$6230,0))))","v":""},null,{"$f":"IF(C1938=\"\",NA(),MATCH($B1938&$C1938,'Smelter Look-up'!$J:$J,0))","v":{"$error":"#N/A"}},null,0,null,null,null,""]
[null,{"$f":"IF(LEN(A1939)=0,\"\",INDEX('Smelter Look-up'!$A:$A,MATCH($A1939,'Smelter Look-up'!$E:$E,0)))","v":""},{"$f":"IF(LEN(A1939)=0,\"\",INDEX('Smelter Look-up'!$C:$C,MATCH($A1939,'Smelter Look-up'!$E:$E,0)))","v":""},null,{"$f":"IF(ISERROR($V1939),\"\",OFFSET('Smelter Look-up'!$D$4,$V1939-4,0)&\"\")","v":""},{"$f":"IF(ISERROR($V1939),\"\",OFFSET('Smelter Look-up'!$E$4,$V1939-4,0))","v":""},{"$f":"IF(C1939=$X$4,\"Enter smelter details\", IF(ISERROR($V1939),\"\",OFFSET('Smelter Look-up'!$F$4,$V1939-4,0)))","v":""},{"$f":"IF(ISERROR($V1939),\"\",OFFSET('Smelter Look-up'!$G$4,$V1939-4,0))","v":""},{"$f":"IF(ISERROR($V1939),\"\",OFFSET('Smelter Look-up'!$H$4,$V1939-4,0))","v":""},{"$f":"IF(ISERROR($V1939),\"\",OFFSET('Smelter Look-up'!$I$4,$V1939-4,0))","v":""},{"$nulls":7},{"$f":"IF(ISERROR($V1939),\"\",OFFSET('Smelter Look-up'!$C$4,$V1939-4,0)&\"\")","v":""},"",{"$f":"IF(B1939=\"\",\"\",IF(ISERROR(MATCH($J1939,SorP!$B$1:$B$6230,0)),\"\",INDIRECT(\"'SorP'!$A$\"&MATCH($J1939,SorP!$B$1:$B$6230,0))))","v":""},null,{"$f":"IF(C1939=\"\",NA(),MATCH($B1939&$C1939,'Smelter Look-up'!$J:$J,0))","v":{"$error":"#N/A"}},null,0,null,null,null,""]
[null,{"$f":"IF(LEN(A1940)=0,\"\",INDEX('Smelter Look-up'!$A:$A,MATCH($A1940,'Smelter Look-up'!$E:$E,0)))","v":""},{"$f":"IF(LEN(A1940)=0,\"\",INDEX('Smelter Look-up'!$C:$C,MATCH($A1940,'Smelter Look-up'!$E:$E,0)))","v":""},null,{"$f":"IF(ISERROR($V1940),\"\",OFFSET('Smelter Look-up'!$D$4,$V1940-4,0)&\"\")","v":""},{"$f":"IF(ISERROR($V1940),\"\",OFFSET('Smelter Look-up'!$E$4,$V1940-4,0))","v":""},{"$f":"IF(C1940=$X$4,\"Enter smelter details\", IF(ISERROR($V1940),\"\",OFFSET('Smelter Look-up'!$F$4,$V1940-4,0)))","v":""},{"$f":"IF(ISERROR($V1940),\"\",OFFSET('Smelter Look-up'!$G$4,$V1940-4,0))","v":""},{"$f":"IF(ISERROR($V1940),\"\",OFFSET('Smelter Look-up'!$H$4,$V1940-4,0))","v":""},{"$f":"IF(ISERROR($V1940),\"\",OFFSET('Smelter Look-up'!$I$4,$V1940-4,0))","v":""},{"$nulls":7},{"$f":"IF(ISERROR($V1940),\"\",OFFSET('Smelter Look-up'!$C$4,$V1940-4,0)&\"\")","v":""},"",{"$f":"IF(B1940=\"\",\"\",IF(ISERROR(MATCH($J1940,SorP!$B$1:$B$6230,0)),\"\",INDIRECT(\"'SorP'!$A$\"&MATCH($J1940,SorP!$B$1:$B$6230,0))))","v":""},null,{"$f":"IF(C1940=\"\",NA(),MATCH($B1940&$C1940,'Smelter Look-up'!$J:$J,0))","v":{"$error":"#N/A"}},null,0,null,null,null,""]
[null,{"$f":"IF(LEN(A1941)=0,\"\",INDEX('Smelter Look-up'!$A:$A,MATCH($A1941,'Smelter Look-up'!$E:$E,0)))","v":""},{"$f":"IF(LEN(A1941)=0,\"\",INDEX('Smelter Look-up'!$C:$C,MATCH($A1941,'Smelter Look-up'!$E:$E,0)))","v":""},null,{"$f":"IF(ISERROR($V1941),\"\",OFFSET('Smelter Look-up'!$D$4,$V1941-4,0)&\"\")","v":""},{"$f":"IF(ISERROR($V1941),\"\",OFFSET('Smelter Look-up'!$E$4,$V1941-4,0))","v":""},{"$f":"IF(C1941=$X$4,\"Enter smelter details\", IF(ISERROR($V1941),\"\",OFFSET('Smelter Look-up'!$F$4,$V1941-4,0)))","v":""},{"$f":"IF(ISERROR($V1941),\"\",OFFSET('Smelter Look-up'!$G$4,$V1941-4,0))","v":""},{"$f":"IF(ISERROR($V1941),\"\",OFFSET('Smelter Look-up'!$H$4,$V1941-4,0))","v":""},{"$f":"IF(ISERROR($V1941),\"\",OFFSET('Smelter Look-up'!$I$4,$V1941-4,0))","v":""},{"$nulls":7},{"$f":"IF(ISERROR($V1941),\"\",OFFSET('Smelter Look-up'!$C$4,$V1941-4,0)&\"\")","v":""},"",{"$f":"IF(B1941=\"\",\"\",IF(ISERROR(MATCH($J1941,SorP!$B$1:$B$6230,0)),\"\",INDIRECT(\"'SorP'!$A$\"&MATCH($J1941,SorP!$B$1:$B$6230,0))))","v":""},null,{"$f":"IF(C1941=\"\",NA(),MATCH($B1941&$C1941,'Smelter Look-up'!$J:$J,0))","v":{"$error":"#N/A"}},null,0,null,null,null,""]
[null,{"$f":"IF(LEN(A1942)=0,\"\",INDEX('Smelter Look-up'!$A:$A,MATCH($A1942,'Smelter Look-up'!$E:$E,0)))","v":""},{"$f":"IF(LEN(A1942)=0,\"\",INDEX('Smelter Look-up'!$C:$C,MATCH($A1942,'Smelter Look-up'!$E:$E,0)))","v":""},null,{"$f":"IF(ISERROR($V1942),\"\",OFFSET('Smelter Look-up'!$D$4,$V1942-4,0)&\"\")","v":""},{"$f":"IF(ISERROR($V1942),\"\",OFFSET('Smelter Look-up'!$E$4,$V1942-4,0))","v":""},{"$f":"IF(C1942=$X$4,\"Enter smelter details\", IF(ISERROR($V1942),\"\",OFFSET('Smelter Look-up'!$F$4,$V1942-4,0)))","v":""},{"$f":"IF(ISERROR($V1942),\"\",OFFSET('Smelter Look-up'!$G$4,$V1942-4,0))","v":""},{"$f":"IF(ISERROR($V1942),\"\",OFFSET('Smelter Look-up'!$H$4,$V1942-4,0))","v":""},{"$f":"IF(ISERROR($V1942),\"\",OFFSET('Smelter Look-up'!$I$4,$V1942-4,0))","v":""},{"$nulls":7},{"$f":"IF(ISERROR($V1942),\"\",OFFSET('Smelter Look-up'!$C$4,$V1942-4,0)&\"\")","v":""},"",{"$f":"IF(B1942=\"\",\"\",IF(ISERROR(MATCH($J1942,SorP!$B$1:$B$6230,0)),\"\",INDIRECT(\"'SorP'!$A$\"&MATCH($J1942,SorP!$B$1:$B$6230,0))))","v":""},null,{"$f":"IF(C1942=\"\",NA(),MATCH($B1942&$C1942,'Smelter Look-up'!$J:$J,0))","v":{"$error":"#N/A"}},null,0,null,null,null,""]
[null,{"$f":"IF(LEN(A1943)=0,\"\",INDEX('Smelter Look-up'!$A:$A,MATCH($A1943,'Smelter Look-up'!$E:$E,0)))","v":""},{"$f":"IF(LEN(A1943)=0,\"\",INDEX('Smelter Look-up'!$C:$C,MATCH($A1943,'Smelter Look-up'!$E:$E,0)))","v":""},null,{"$f":"IF(ISERROR($V1943),\"\",OFFSET('Smelter Look-up'!$D$4,$V1943-4,0)&\"\")","v":""},{"$f":"IF(ISERROR($V1943),\"\",OFFSET('Smelter Look-up'!$E$4,$V1943-4,0))","v":""},{"$f":"IF(C1943=$X$4,\"Enter smelter details\", IF(ISERROR($V1943),\"\",OFFSET('Smelter Look-up'!$F$4,$V1943-4,0)))","v":""},{"$f":"IF(ISERROR($V1943),\"\",OFFSET('Smelter Look-up'!$G$4,$V1943-4,0))","v":""},{"$f":"IF(ISERROR($V1943),\"\",OFFSET('Smelter Look-up'!$H$4,$V1943-4,0))","v":""},{"$f":"IF(ISERROR($V1943),\"\",OFFSET('Smelter Look-up'!$I$4,$V1943-4,0))","v":""},{"$nulls":7},{"$f":"IF(ISERROR($V1943),\"\",OFFSET('Smelter Look-up'!$C$4,$V1943-4,0)&\"\")","v":""},"",{"$f":"IF(B1943=\"\",\"\",IF(ISERROR(MATCH($J1943,SorP!$B$1:$B$6230,0)),\"\",INDIRECT(\"'SorP'!$A$\"&MATCH($J1943,SorP!$B$1:$B$6230,0))))","v":""},null,{"$f":"IF(C1943=\"\",NA(),MATCH($B1943&$C1943,'Smelter Look-up'!$J:$J,0))","v":{"$error":"#N/A"}},null,0,null,null,null,""]
[null,{"$f":"IF(LEN(A1944)=0,\"\",INDEX('Smelter Look-up'!$A:$A,MATCH($A1944,'Smelter Look-up'!$E:$E,0)))","v":""},{"$f":"IF(LEN(A1944)=0,\"\",INDEX('Smelter Look-up'!$C:$C,MATCH($A1944,'Smelter Look-up'!$E:$E,0)))","v":""},null,{"$f":"IF(ISERROR($V1944),\"\",OFFSET('Smelter Look-up'!$D$4,$V1944-4,0)&\"\")","v":""},{"$f":"IF(ISERROR($V1944),\"\",OFFSET('Smelter Look-up'!$E$4,$V1944-4,0))","v":""},{"$f":"IF(C1944=$X$4,\"Enter smelter details\", IF(ISERROR($V1944),\"\",OFFSET('Smelter Look-up'!$F$4,$V1944-4,0)))","v":""},{"$f":"IF(ISERROR($V1944),\"\",OFFSET('Smelter Look-up'!$G$4,$V1944-4,0))","v":""},{"$f":"IF(ISERROR($V1944),\"\",OFFSET('Smelter Look-up'!$H$4,$V1944-4,0))","v":""},{"$f":"IF(ISERROR($V1944),\"\",OFFSET('Smelter Look-up'!$I$4,$V1944-4,0))","v":""},{"$nulls":7},{"$f":"IF(ISERROR($V1944),\"\",OFFSET('Smelter Look-up'!$C$4,$V1944-4,0)&\"\")","v":""},"",{"$f":"IF(B1944=\"\",\"\",IF(ISERROR(MATCH($J1944,SorP!$B$1:$B$6230,0)),\"\",INDIRECT(\"'SorP'!$A$\"&MATCH($J1944,SorP!$B$1:$B$6230,0))))","v":""},null,{"$f":"IF(C1944=\"\",NA(),MATCH($B1944&$C1944,'Smelter Look-up'!$J:$J,0))","v":{"$error":"#N/A"}},null,0,null,null,null,""]
[null,{"$f":"IF(LEN(A1945)=0,\"\",INDEX('Smelter Look-up'!$A:$A,MATCH($A1945,'Smelter Look-up'!$E:$E,0)))","v":""},{"$f":"IF(LEN(A1945)=0,\"\",INDEX('Smelter Look-up'!$C:$C,MATCH($A1945,'Smelter Look-up'!$E:$E,0)))","v":""},null,{"$f":"IF(ISERROR($V1945),\"\",OFFSET('Smelter Look-up'!$D$4,$V1945-4,0)&\"\")","v":""},{"$f":"IF(ISERROR($V1945),\"\",OFFSET('Smelter Look-up'!$E$4,$V1945-4,0))","v":""},{"$f":"IF(C1945=$X$4,\"Enter smelter details\", IF(ISERROR($V1945),\"\",OFFSET('Smelter Look-up'!$F$4,$V1945-4,0)))","v":""},{"$f":"IF(ISERROR($V1945),\"\",OFFSET('Smelter Look-up'!$G$4,$V1945-4,0))","v":""},{"$f":"IF(ISERROR($V1945),\"\",OFFSET('Smelter Look-up'!$H$4,$V1945-4,0))","v":""},{"$f":"IF(ISERROR($V1945),\"\",OFFSET('Smelter Look-up'!$I$4,$V1945-4,0))","v":""},{"$nulls":7},{"$f":"IF(ISERROR($V1945),\"\",OFFSET('Smelter Look-up'!$C$4,$V1945-4,0)&\"\")","v":""},"",{"$f":"IF(B1945=\"\",\"\",IF(ISERROR(MATCH($J1945,SorP!$B$1:$B$6230,0)),\"\",INDIRECT(\"'SorP'!$A$\"&MATCH($J1945,SorP!$B$1:$B$6230,0))))","v":""},null,{"$f":"IF(C1945=\"\",NA(),MATCH($B1945&$C1945,'Smelter Look-up'!$J:$J,0))","v":{"$error":"#N/A"}},null,0,null,null,null,""]
[null,{"$f":"IF(LEN(A1946)=0,\"\",INDEX('Smelter Look-up'!$A:$A,MATCH($A1946,'Smelter Look-up'!$E:$E,0)))","v":""},{"$f":"IF(LEN(A1946)=0,\"\",INDEX('Smelter Look-up'!$C:$C,MATCH($A1946,'Smelter Look-up'!$E:$E,0)))","v":""},null,{"$f":"IF(ISERROR($V1946),\"\",OFFSET('Smelter Look-up'!$D$4,$V1946-4,0)&\"\")","v":""},{"$f":"IF(ISERROR($V1946),\"\",OFFSET('Smelter Look-up'!$E$4,$V1946-4,0))","v":""},{"$f":"IF(C1946=$X$4,\"Enter smelter details\", IF(ISERROR($V1946),\"\",OFFSET('Smelter Look-up'!$F$4,$V1946-4,0)))","v":""},{"$f":"IF(ISERROR($V1946),\"\",OFFSET('Smelter Look-up'!$G$4,$V1946-4,0))","v":""},{"$f":"IF(ISERROR($V1946),\"\",OFFSET('Smelter Look-up'!$H$4,$V1946-4,0))","v":""},{"$f":"IF(ISERROR($V1946),\"\",OFFSET('Smelter Look-up'!$I$4,$V1946-4,0))","v":""},{"$nulls":7},{"$f":"IF(ISERROR($V1946),\"\",OFFSET('Smelter Look-up'!$C$4,$V1946-4,0)&\"\")","v":""},"",{"$f":"IF(B1946=\"\",\"\",IF(ISERROR(MATCH($J1946,SorP!$B$1:$B$6230,0)),\"\",INDIRECT(\"'SorP'!$A$\"&MATCH($J1946,SorP!$B$1:$B$6230,0))))","v":""},null,{"$f":"IF(C1946=\"\",NA(),MATCH($B1946&$C1946,'Smelter Look-up'!$J:$J,0))","v":{"$error":"#N/A"}},null,0,null,null,null,""]
[null,{"$f":"IF(LEN(A1947)=0,\"\",INDEX('Smelter Look-up'!$A:$A,MATCH($A1947,'Smelter Look-up'!$E:$E,0)))","v":""},{"$f":"IF(LEN(A1947)=0,\"\",INDEX('Smelter Look-up'!$C:$C,MATCH($A1947,'Smelter Look-up'!$E:$E,0)))","v":""},null,{"$f":"IF(ISERROR($V1947),\"\",OFFSET('Smelter Look-up'!$D$4,$V1947-4,0)&\"\")","v":""},{"$f":"IF(ISERROR($V1947),\"\",OFFSET('Smelter Look-up'!$E$4,$V1947-4,0))","v":""},{"$f":"IF(C1947=$X$4,\"Enter smelter details\", IF(ISERROR($V1947),\"\",OFFSET('Smelter Look-up'!$F$4,$V1947-4,0)))","v":""},{"$f":"IF(ISERROR($V1947),\"\",OFFSET('Smelter Look-up'!$G$4,$V1947-4,0))","v":""},{"$f":"IF(ISERROR($V1947),\"\",OFFSET('Smelter Look-up'!$H$4,$V1947-4,0))","v":""},{"$f":"IF(ISERROR($V1947),\"\",OFFSET('Smelter Look-up'!$I$4,$V1947-4,0))","v":""},{"$nulls":7},{"$f":"IF(ISERROR($V1947),\"\",OFFSET('Smelter Look-up'!$C$4,$V1947-4,0)&\"\")","v":""},"",{"$f":"IF(B1947=\"\",\"\",IF(ISERROR(MATCH($J1947,SorP!$B$1:$B$6230,0)),\"\",INDIRECT(\"'SorP'!$A$\"&MATCH($J1947,SorP!$B$1:$B$6230,0))))","v":""},null,{"$f":"IF(C1947=\"\",NA(),MATCH($B1947&$C1947,'Smelter Look-up'!$J:$J,0))","v":{"$error":"#N/A"}},null,0,null,null,null,""]
[null,{"$f":"IF(LEN(A1948)=0,\"\",INDEX('Smelter Look-up'!$A:$A,MATCH($A1948,'Smelter Look-up'!$E:$E,0)))","v":""},{"$f":"IF(LEN(A1948)=0,\"\",INDEX('Smelter Look-up'!$C:$C,MATCH($A1948,'Smelter Look-up'!$E:$E,0)))","v":""},null,{"$f":"IF(ISERROR($V1948),\"\",OFFSET('Smelter Look-up'!$D$4,$V1948-4,0)&\"\")","v":""},{"$f":"IF(ISERROR($V1948),\"\",OFFSET('Smelter Look-up'!$E$4,$V1948-4,0))","v":""},{"$f":"IF(C1948=$X$4,\"Enter smelter details\", IF(ISERROR($V1948),\"\",OFFSET('Smelter Look-up'!$F$4,$V1948-4,0)))","v":""},{"$f":"IF(ISERROR($V1948),\"\",OFFSET('Smelter Look-up'!$G$4,$V1948-4,0))","v":""},{"$f":"IF(ISERROR($V1948),\"\",OFFSET('Smelter Look-up'!$H$4,$V1948-4,0))","v":""},{"$f":"IF(ISERROR($V1948),\"\",OFFSET('Smelter Look-up'!$I$4,$V1948-4,0))","v":""},{"$nulls":7},{"$f":"IF(ISERROR($V1948),\"\",OFFSET('Smelter Look-up'!$C$4,$V1948-4,0)&\"\")","v":""},"",{"$f":"IF(B1948=\"\",\"\",IF(ISERROR(MATCH($J1948,SorP!$B$1:$B$6230,0)),\"\",INDIRECT(\"'SorP'!$A$\"&MATCH($J1948,SorP!$B$1:$B$6230,0))))","v":""},null,{"$f":"IF(C1948=\"\",NA(),MATCH($B1948&$C1948,'Smelter Look-up'!$J:$J,0))","v":{"$error":"#N/A"}},null,0,null,null,null,""]
[null,{"$f":"IF(LEN(A1949)=0,\"\",INDEX('Smelter Look-up'!$A:$A,MATCH($A1949,'Smelter Look-up'!$E:$E,0)))","v":""},{"$f":"IF(LEN(A1949)=0,\"\",INDEX('Smelter Look-up'!$C:$C,MATCH($A1949,'Smelter Look-up'!$E:$E,0)))","v":""},null,{"$f":"IF(ISERROR($V1949),\"\",OFFSET('Smelter Look-up'!$D$4,$V1949-4,0)&\"\")","v":""},{"$f":"IF(ISERROR($V1949),\"\",OFFSET('Smelter Look-up'!$E$4,$V1949-4,0))","v":""},{"$f":"IF(C1949=$X$4,\"Enter smelter details\", IF(ISERROR($V1949),\"\",OFFSET('Smelter Look-up'!$F$4,$V1949-4,0)))","v":""},{"$f":"IF(ISERROR($V1949),\"\",OFFSET('Smelter Look-up'!$G$4,$V1949-4,0))","v":""},{"$f":"IF(ISERROR($V1949),\"\",OFFSET('Smelter Look-up'!$H$4,$V1949-4,0))","v":""},{"$f":"IF(ISERROR($V1949),\"\",OFFSET('Smelter Look-up'!$I$4,$V1949-4,0))","v":""},{"$nulls":7},{"$f":"IF(ISERROR($V1949),\"\",OFFSET('Smelter Look-up'!$C$4,$V1949-4,0)&\"\")","v":""},"",{"$f":"IF(B1949=\"\",\"\",IF(ISERROR(MATCH($J1949,SorP!$B$1:$B$6230,0)),\"\",INDIRECT(\"'SorP'!$A$\"&MATCH($J1949,SorP!$B$1:$B$6230,0))))","v":""},null,{"$f":"IF(C1949=\"\",NA(),MATCH($B1949&$C1949,'Smelter Look-up'!$J:$J,0))","v":{"$error":"#N/A"}},null,0,null,null,null,""]
[null,{"$f":"IF(LEN(A1950)=0,\"\",INDEX('Smelter Look-up'!$A:$A,MATCH($A1950,'Smelter Look-up'!$E:$E,0)))","v":""},{"$f":"IF(LEN(A1950)=0,\"\",INDEX('Smelter Look-up'!$C:$C,MATCH($A1950,'Smelter Look-up'!$E:$E,0)))","v":""},null,{"$f":"IF(ISERROR($V1950),\"\",OFFSET('Smelter Look-up'!$D$4,$V1950-4,0)&\"\")","v":""},{"$f":"IF(ISERROR($V1950),\"\",OFFSET('Smelter Look-up'!$E$4,$V1950-4,0))","v":""},{"$f":"IF(C1950=$X$4,\"Enter smelter details\", IF(ISERROR($V1950),\"\",OFFSET('Smelter Look-up'!$F$4,$V1950-4,0)))","v":""},{"$f":"IF(ISERROR($V1950),\"\",OFFSET('Smelter Look-up'!$G$4,$V1950-4,0))","v":""},{"$f":"IF(ISERROR($V1950),\"\",OFFSET('Smelter Look-up'!$H$4,$V1950-4,0))","v":""},{"$f":"IF(ISERROR($V1950),\"\",OFFSET('Smelter Look-up'!$I$4,$V1950-4,0))","v":""},{"$nulls":7},{"$f":"IF(ISERROR($V1950),\"\",OFFSET('Smelter Look-up'!$C$4,$V1950-4,0)&\"\")","v":""},"",{"$f":"IF(B1950=\"\",\"\",IF(ISERROR(MATCH($J1950,SorP!$B$1:$B$6230,0)),\"\",INDIRECT(\"'SorP'!$A$\"&MATCH($J1950,SorP!$B$1:$B$6230,0))))","v":""},null,{"$f":"IF(C1950=\"\",NA(),MATCH($B1950&$C1950,'Smelter Look-up'!$J:$J,0))","v":{"$error":"#N/A"}},null,0,null,null,null,""]
[null,{"$f":"IF(LEN(A1951)=0,\"\",INDEX('Smelter Look-up'!$A:$A,MATCH($A1951,'Smelter Look-up'!$E:$E,0)))","v":""},{"$f":"IF(LEN(A1951)=0,\"\",INDEX('Smelter Look-up'!$C:$C,MATCH($A1951,'Smelter Look-up'!$E:$E,0)))","v":""},null,{"$f":"IF(ISERROR($V1951),\"\",OFFSET('Smelter Look-up'!$D$4,$V1951-4,0)&\"\")","v":""},{"$f":"IF(ISERROR($V1951),\"\",OFFSET('Smelter Look-up'!$E$4,$V1951-4,0))","v":""},{"$f":"IF(C1951=$X$4,\"Enter smelter details\", IF(ISERROR($V1951),\"\",OFFSET('Smelter Look-up'!$F$4,$V1951-4,0)))","v":""},{"$f":"IF(ISERROR($V1951),\"\",OFFSET('Smelter Look-up'!$G$4,$V1951-4,0))","v":""},{"$f":"IF(ISERROR($V1951),\"\",OFFSET('Smelter Look-up'!$H$4,$V1951-4,0))","v":""},{"$f":"IF(ISERROR($V1951),\"\",OFFSET('Smelter Look-up'!$I$4,$V1951-4,0))","v":""},{"$nulls":7},{"$f":"IF(ISERROR($V1951),\"\",OFFSET('Smelter Look-up'!$C$4,$V1951-4,0)&\"\")","v":""},"",{"$f":"IF(B1951=\"\",\"\",IF(ISERROR(MATCH($J1951,SorP!$B$1:$B$6230,0)),\"\",INDIRECT(\"'SorP'!$A$\"&MATCH($J1951,SorP!$B$1:$B$6230,0))))","v":""},null,{"$f":"IF(C1951=\"\",NA(),MATCH($B1951&$C1951,'Smelter Look-up'!$J:$J,0))","v":{"$error":"#N/A"}},null,0,null,null,null,""]
[null,{"$f":"IF(LEN(A1952)=0,\"\",INDEX('Smelter Look-up'!$A:$A,MATCH($A1952,'Smelter Look-up'!$E:$E,0)))","v":""},{"$f":"IF(LEN(A1952)=0,\"\",INDEX('Smelter Look-up'!$C:$C,MATCH($A1952,'Smelter Look-up'!$E:$E,0)))","v":""},null,{"$f":"IF(ISERROR($V1952),\"\",OFFSET('Smelter Look-up'!$D$4,$V1952-4,0)&\"\")","v":""},{"$f":"IF(ISERROR($V1952),\"\",OFFSET('Smelter Look-up'!$E$4,$V1952-4,0))","v":""},{"$f":"IF(C1952=$X$4,\"Enter smelter details\", IF(ISERROR($V1952),\"\",OFFSET('Smelter Look-up'!$F$4,$V1952-4,0)))","v":""},{"$f":"IF(ISERROR($V1952),\"\",OFFSET('Smelter Look-up'!$G$4,$V1952-4,0))","v":""},{"$f":"IF(ISERROR($V1952),\"\",OFFSET('Smelter Look-up'!$H$4,$V1952-4,0))","v":""},{"$f":"IF(ISERROR($V1952),\"\",OFFSET('Smelter Look-up'!$I$4,$V1952-4,0))","v":""},{"$nulls":7},{"$f":"IF(ISERROR($V1952),\"\",OFFSET('Smelter Look-up'!$C$4,$V1952-4,0)&\"\")","v":""},"",{"$f":"IF(B1952=\"\",\"\",IF(ISERROR(MATCH($J1952,SorP!$B$1:$B$6230,0)),\"\",INDIRECT(\"'SorP'!$A$\"&MATCH($J1952,SorP!$B$1:$B$6230,0))))","v":""},null,{"$f":"IF(C1952=\"\",NA(),MATCH($B1952&$C1952,'Smelter Look-up'!$J:$J,0))","v":{"$error":"#N/A"}},null,0,null,null,null,""]
[null,{"$f":"IF(LEN(A1953)=0,\"\",INDEX('Smelter Look-up'!$A:$A,MATCH($A1953,'Smelter Look-up'!$E:$E,0)))","v":""},{"$f":"IF(LEN(A1953)=0,\"\",INDEX('Smelter Look-up'!$C:$C,MATCH($A1953,'Smelter Look-up'!$E:$E,0)))","v":""},null,{"$f":"IF(ISERROR($V1953),\"\",OFFSET('Smelter Look-up'!$D$4,$V1953-4,0)&\"\")","v":""},{"$f":"IF(ISERROR($V1953),\"\",OFFSET('Smelter Look-up'!$E$4,$V1953-4,0))","v":""},{"$f":"IF(C1953=$X$4,\"Enter smelter details\", IF(ISERROR($V1953),\"\",OFFSET('Smelter Look-up'!$F$4,$V1953-4,0)))","v":""},{"$f":"IF(ISERROR($V1953),\"\",OFFSET('Smelter Look-up'!$G$4,$V1953-4,0))","v":""},{"$f":"IF(ISERROR($V1953),\"\",OFFSET('Smelter Look-up'!$H$4,$V1953-4,0))","v":""},{"$f":"IF(ISERROR($V1953),\"\",OFFSET('Smelter Look-up'!$I$4,$V1953-4,0))","v":""},{"$nulls":7},{"$f":"IF(ISERROR($V1953),\"\",OFFSET('Smelter Look-up'!$C$4,$V1953-4,0)&\"\")","v":""},"",{"$f":"IF(B1953=\"\",\"\",IF(ISERROR(MATCH($J1953,SorP!$B$1:$B$6230,0)),\"\",INDIRECT(\"'SorP'!$A$\"&MATCH($J1953,SorP!$B$1:$B$6230,0))))","v":""},null,{"$f":"IF(C1953=\"\",NA(),MATCH($B1953&$C1953,'Smelter Look-up'!$J:$J,0))","v":{"$error":"#N/A"}},null,0,null,null,null,""]
[null,{"$f":"IF(LEN(A1954)=0,\"\",INDEX('Smelter Look-up'!$A:$A,MATCH($A1954,'Smelter Look-up'!$E:$E,0)))","v":""},{"$f":"IF(LEN(A1954)=0,\"\",INDEX('Smelter Look-up'!$C:$C,MATCH($A1954,'Smelter Look-up'!$E:$E,0)))","v":""},null,{"$f":"IF(ISERROR($V1954),\"\",OFFSET('Smelter Look-up'!$D$4,$V1954-4,0)&\"\")","v":""},{"$f":"IF(ISERROR($V1954),\"\",OFFSET('Smelter Look-up'!$E$4,$V1954-4,0))","v":""},{"$f":"IF(C1954=$X$4,\"Enter smelter details\", IF(ISERROR($V1954),\"\",OFFSET('Smelter Look-up'!$F$4,$V1954-4,0)))","v":""},{"$f":"IF(ISERROR($V1954),\"\",OFFSET('Smelter Look-up'!$G$4,$V1954-4,0))","v":""},{"$f":"IF(ISERROR($V1954),\"\",OFFSET('Smelter Look-up'!$H$4,$V1954-4,0))","v":""},{"$f":"IF(ISERROR($V1954),\"\",OFFSET('Smelter Look-up'!$I$4,$V1954-4,0))","v":""},{"$nulls":7},{"$f":"IF(ISERROR($V1954),\"\",OFFSET('Smelter Look-up'!$C$4,$V1954-4,0)&\"\")","v":""},"",{"$f":"IF(B1954=\"\",\"\",IF(ISERROR(MATCH($J1954,SorP!$B$1:$B$6230,0)),\"\",INDIRECT(\"'SorP'!$A$\"&MATCH($J1954,SorP!$B$1:$B$6230,0))))","v":""},null,{"$f":"IF(C1954=\"\",NA(),MATCH($B1954&$C1954,'Smelter Look-up'!$J:$J,0))","v":{"$error":"#N/A"}},null,0,null,null,null,""]
[null,{"$f":"IF(LEN(A1955)=0,\"\",INDEX('Smelter Look-up'!$A:$A,MATCH($A1955,'Smelter Look-up'!$E:$E,0)))","v":""},{"$f":"IF(LEN(A1955)=0,\"\",INDEX('Smelter Look-up'!$C:$C,MATCH($A1955,'Smelter Look-up'!$E:$E,0)))","v":""},null,{"$f":"IF(ISERROR($V1955),\"\",OFFSET('Smelter Look-up'!$D$4,$V1955-4,0)&\"\")","v":""},{"$f":"IF(ISERROR($V1955),\"\",OFFSET('Smelter Look-up'!$E$4,$V1955-4,0))","v":""},{"$f":"IF(C1955=$X$4,\"Enter smelter details\", IF(ISERROR($V1955),\"\",OFFSET('Smelter Look-up'!$F$4,$V1955-4,0)))","v":""},{"$f":"IF(ISERROR($V1955),\"\",OFFSET('Smelter Look-up'!$G$4,$V1955-4,0))","v":""},{"$f":"IF(ISERROR($V1955),\"\",OFFSET('Smelter Look-up'!$H$4,$V1955-4,0))","v":""},{"$f":"IF(ISERROR($V1955),\"\",OFFSET('Smelter Look-up'!$I$4,$V1955-4,0))","v":""},{"$nulls":7},{"$f":"IF(ISERROR($V1955),\"\",OFFSET('Smelter Look-up'!$C$4,$V1955-4,0)&\"\")","v":""},"",{"$f":"IF(B1955=\"\",\"\",IF(ISERROR(MATCH($J1955,SorP!$B$1:$B$6230,0)),\"\",INDIRECT(\"'SorP'!$A$\"&MATCH($J1955,SorP!$B$1:$B$6230,0))))","v":""},null,{"$f":"IF(C1955=\"\",NA(),MATCH($B1955&$C1955,'Smelter Look-up'!$J:$J,0))","v":{"$error":"#N/A"}},null,0,null,null,null,""]
[null,{"$f":"IF(LEN(A1956)=0,\"\",INDEX('Smelter Look-up'!$A:$A,MATCH($A1956,'Smelter Look-up'!$E:$E,0)))","v":""},{"$f":"IF(LEN(A1956)=0,\"\",INDEX('Smelter Look-up'!$C:$C,MATCH($A1956,'Smelter Look-up'!$E:$E,0)))","v":""},null,{"$f":"IF(ISERROR($V1956),\"\",OFFSET('Smelter Look-up'!$D$4,$V1956-4,0)&\"\")","v":""},{"$f":"IF(ISERROR($V1956),\"\",OFFSET('Smelter Look-up'!$E$4,$V1956-4,0))","v":""},{"$f":"IF(C1956=$X$4,\"Enter smelter details\", IF(ISERROR($V1956),\"\",OFFSET('Smelter Look-up'!$F$4,$V1956-4,0)))","v":""},{"$f":"IF(ISERROR($V1956),\"\",OFFSET('Smelter Look-up'!$G$4,$V1956-4,0))","v":""},{"$f":"IF(ISERROR($V1956),\"\",OFFSET('Smelter Look-up'!$H$4,$V1956-4,0))","v":""},{"$f":"IF(ISERROR($V1956),\"\",OFFSET('Smelter Look-up'!$I$4,$V1956-4,0))","v":""},{"$nulls":7},{"$f":"IF(ISERROR($V1956),\"\",OFFSET('Smelter Look-up'!$C$4,$V1956-4,0)&\"\")","v":""},"",{"$f":"IF(B1956=\"\",\"\",IF(ISERROR(MATCH($J1956,SorP!$B$1:$B$6230,0)),\"\",INDIRECT(\"'SorP'!$A$\"&MATCH($J1956,SorP!$B$1:$B$6230,0))))","v":""},null,{"$f":"IF(C1956=\"\",NA(),MATCH($B1956&$C1956,'Smelter Look-up'!$J:$J,0))","v":{"$error":"#N/A"}},null,0,null,null,null,""]
[null,{"$f":"IF(LEN(A1957)=0,\"\",INDEX('Smelter Look-up'!$A:$A,MATCH($A1957,'Smelter Look-up'!$E:$E,0)))","v":""},{"$f":"IF(LEN(A1957)=0,\"\",INDEX('Smelter Look-up'!$C:$C,MATCH($A1957,'Smelter Look-up'!$E:$E,0)))","v":""},null,{"$f":"IF(ISERROR($V1957),\"\",OFFSET('Smelter Look-up'!$D$4,$V1957-4,0)&\"\")","v":""},{"$f":"IF(ISERROR($V1957),\"\",OFFSET('Smelter Look-up'!$E$4,$V1957-4,0))","v":""},{"$f":"IF(C1957=$X$4,\"Enter smelter details\", IF(ISERROR($V1957),\"\",OFFSET('Smelter Look-up'!$F$4,$V1957-4,0)))","v":""},{"$f":"IF(ISERROR($V1957),\"\",OFFSET('Smelter Look-up'!$G$4,$V1957-4,0))","v":""},{"$f":"IF(ISERROR($V1957),\"\",OFFSET('Smelter Look-up'!$H$4,$V1957-4,0))","v":""},{"$f":"IF(ISERROR($V1957),\"\",OFFSET('Smelter Look-up'!$I$4,$V1957-4,0))","v":""},{"$nulls":7},{"$f":"IF(ISERROR($V1957),\"\",OFFSET('Smelter Look-up'!$C$4,$V1957-4,0)&\"\")","v":""},"",{"$f":"IF(B1957=\"\",\"\",IF(ISERROR(MATCH($J1957,SorP!$B$1:$B$6230,0)),\"\",INDIRECT(\"'SorP'!$A$\"&MATCH($J1957,SorP!$B$1:$B$6230,0))))","v":""},null,{"$f":"IF(C1957=\"\",NA(),MATCH($B1957&$C1957,'Smelter Look-up'!$J:$J,0))","v":{"$error":"#N/A"}},null,0,null,null,null,""]
[null,{"$f":"IF(LEN(A1958)=0,\"\",INDEX('Smelter Look-up'!$A:$A,MATCH($A1958,'Smelter Look-up'!$E:$E,0)))","v":""},{"$f":"IF(LEN(A1958)=0,\"\",INDEX('Smelter Look-up'!$C:$C,MATCH($A1958,'Smelter Look-up'!$E:$E,0)))","v":""},null,{"$f":"IF(ISERROR($V1958),\"\",OFFSET('Smelter Look-up'!$D$4,$V1958-4,0)&\"\")","v":""},{"$f":"IF(ISERROR($V1958),\"\",OFFSET('Smelter Look-up'!$E$4,$V1958-4,0))","v":""},{"$f":"IF(C1958=$X$4,\"Enter smelter details\", IF(ISERROR($V1958),\"\",OFFSET('Smelter Look-up'!$F$4,$V1958-4,0)))","v":""},{"$f":"IF(ISERROR($V1958),\"\",OFFSET('Smelter Look-up'!$G$4,$V1958-4,0))","v":""},{"$f":"IF(ISERROR($V1958),\"\",OFFSET('Smelter Look-up'!$H$4,$V1958-4,0))","v":""},{"$f":"IF(ISERROR($V1958),\"\",OFFSET('Smelter Look-up'!$I$4,$V1958-4,0))","v":""},{"$nulls":7},{"$f":"IF(ISERROR($V1958),\"\",OFFSET('Smelter Look-up'!$C$4,$V1958-4,0)&\"\")","v":""},"",{"$f":"IF(B1958=\"\",\"\",IF(ISERROR(MATCH($J1958,SorP!$B$1:$B$6230,0)),\"\",INDIRECT(\"'SorP'!$A$\"&MATCH($J1958,SorP!$B$1:$B$6230,0))))","v":""},null,{"$f":"IF(C1958=\"\",NA(),MATCH($B1958&$C1958,'Smelter Look-up'!$J:$J,0))","v":{"$error":"#N/A"}},null,0,null,null,null,""]
[null,{"$f":"IF(LEN(A1959)=0,\"\",INDEX('Smelter Look-up'!$A:$A,MATCH($A1959,'Smelter Look-up'!$E:$E,0)))","v":""},{"$f":"IF(LEN(A1959)=0,\"\",INDEX('Smelter Look-up'!$C:$C,MATCH($A1959,'Smelter Look-up'!$E:$E,0)))","v":""},null,{"$f":"IF(ISERROR($V1959),\"\",OFFSET('Smelter Look-up'!$D$4,$V1959-4,0)&\"\")","v":""},{"$f":"IF(ISERROR($V1959),\"\",OFFSET('Smelter Look-up'!$E$4,$V1959-4,0))","v":""},{"$f":"IF(C1959=$X$4,\"Enter smelter details\", IF(ISERROR($V1959),\"\",OFFSET('Smelter Look-up'!$F$4,$V1959-4,0)))","v":""},{"$f":"IF(ISERROR($V1959),\"\",OFFSET('Smelter Look-up'!$G$4,$V1959-4,0))","v":""},{"$f":"IF(ISERROR($V1959),\"\",OFFSET('Smelter Look-up'!$H$4,$V1959-4,0))","v":""},{"$f":"IF(ISERROR($V1959),\"\",OFFSET('Smelter Look-up'!$I$4,$V1959-4,0))","v":""},{"$nulls":7},{"$f":"IF(ISERROR($V1959),\"\",OFFSET('Smelter Look-up'!$C$4,$V1959-4,0)&\"\")","v":""},"",{"$f":"IF(B1959=\"\",\"\",IF(ISERROR(MATCH($J1959,SorP!$B$1:$B$6230,0)),\"\",INDIRECT(\"'SorP'!$A$\"&MATCH($J1959,SorP!$B$1:$B$6230,0))))","v":""},null,{"$f":"IF(C1959=\"\",NA(),MATCH($B1959&$C1959,'Smelter Look-up'!$J:$J,0))","v":{"$error":"#N/A"}},null,0,null,null,null,""]
[null,{"$f":"IF(LEN(A1960)=0,\"\",INDEX('Smelter Look-up'!$A:$A,MATCH($A1960,'Smelter Look-up'!$E:$E,0)))","v":""},{"$f":"IF(LEN(A1960)=0,\"\",INDEX('Smelter Look-up'!$C:$C,MATCH($A1960,'Smelter Look-up'!$E:$E,0)))","v":""},null,{"$f":"IF(ISERROR($V1960),\"\",OFFSET('Smelter Look-up'!$D$4,$V1960-4,0)&\"\")","v":""},{"$f":"IF(ISERROR($V1960),\"\",OFFSET('Smelter Look-up'!$E$4,$V1960-4,0))","v":""},{"$f":"IF(C1960=$X$4,\"Enter smelter details\", IF(ISERROR($V1960),\"\",OFFSET('Smelter Look-up'!$F$4,$V1960-4,0)))","v":""},{"$f":"IF(ISERROR($V1960),\"\",OFFSET('Smelter Look-up'!$G$4,$V1960-4,0))","v":""},{"$f":"IF(ISERROR($V1960),\"\",OFFSET('Smelter Look-up'!$H$4,$V1960-4,0))","v":""},{"$f":"IF(ISERROR($V1960),\"\",OFFSET('Smelter Look-up'!$I$4,$V1960-4,0))","v":""},{"$nulls":7},{"$f":"IF(ISERROR($V1960),\"\",OFFSET('Smelter Look-up'!$C$4,$V1960-4,0)&\"\")","v":""},"",{"$f":"IF(B1960=\"\",\"\",IF(ISERROR(MATCH($J1960,SorP!$B$1:$B$6230,0)),\"\",INDIRECT(\"'SorP'!$A$\"&MATCH($J1960,SorP!$B$1:$B$6230,0))))","v":""},null,{"$f":"IF(C1960=\"\",NA(),MATCH($B1960&$C1960,'Smelter Look-up'!$J:$J,0))","v":{"$error":"#N/A"}},null,0,null,null,null,""]
[null,{"$f":"IF(LEN(A1961)=0,\"\",INDEX('Smelter Look-up'!$A:$A,MATCH($A1961,'Smelter Look-up'!$E:$E,0)))","v":""},{"$f":"IF(LEN(A1961)=0,\"\",INDEX('Smelter Look-up'!$C:$C,MATCH($A1961,'Smelter Look-up'!$E:$E,0)))","v":""},null,{"$f":"IF(ISERROR($V1961),\"\",OFFSET('Smelter Look-up'!$D$4,$V1961-4,0)&\"\")","v":""},{"$f":"IF(ISERROR($V1961),\"\",OFFSET('Smelter Look-up'!$E$4,$V1961-4,0))","v":""},{"$f":"IF(C1961=$X$4,\"Enter smelter details\", IF(ISERROR($V1961),\"\",OFFSET('Smelter Look-up'!$F$4,$V1961-4,0)))","v":""},{"$f":"IF(ISERROR($V1961),\"\",OFFSET('Smelter Look-up'!$G$4,$V1961-4,0))","v":""},{"$f":"IF(ISERROR($V1961),\"\",OFFSET('Smelter Look-up'!$H$4,$V1961-4,0))","v":""},{"$f":"IF(ISERROR($V1961),\"\",OFFSET('Smelter Look-up'!$I$4,$V1961-4,0))","v":""},{"$nulls":7},{"$f":"IF(ISERROR($V1961),\"\",OFFSET('Smelter Look-up'!$C$4,$V1961-4,0)&\"\")","v":""},"",{"$f":"IF(B1961=\"\",\"\",IF(ISERROR(MATCH($J1961,SorP!$B$1:$B$6230,0)),\"\",INDIRECT(\"'SorP'!$A$\"&MATCH($J1961,SorP!$B$1:$B$6230,0))))","v":""},null,{"$f":"IF(C1961=\"\",NA(),MATCH($B1961&$C1961,'Smelter Look-up'!$J:$J,0))","v":{"$error":"#N/A"}},null,0,null,null,null,""]
[null,{"$f":"IF(LEN(A1962)=0,\"\",INDEX('Smelter Look-up'!$A:$A,MATCH($A1962,'Smelter Look-up'!$E:$E,0)))","v":""},{"$f":"IF(LEN(A1962)=0,\"\",INDEX('Smelter Look-up'!$C:$C,MATCH($A1962,'Smelter Look-up'!$E:$E,0)))","v":""},null,{"$f":"IF(ISERROR($V1962),\"\",OFFSET('Smelter Look-up'!$D$4,$V1962-4,0)&\"\")","v":""},{"$f":"IF(ISERROR($V1962),\"\",OFFSET('Smelter Look-up'!$E$4,$V1962-4,0))","v":""},{"$f":"IF(C1962=$X$4,\"Enter smelter details\", IF(ISERROR($V1962),\"\",OFFSET('Smelter Look-up'!$F$4,$V1962-4,0)))","v":""},{"$f":"IF(ISERROR($V1962),\"\",OFFSET('Smelter Look-up'!$G$4,$V1962-4,0))","v":""},{"$f":"IF(ISERROR($V1962),\"\",OFFSET('Smelter Look-up'!$H$4,$V1962-4,0))","v":""},{"$f":"IF(ISERROR($V1962),\"\",OFFSET('Smelter Look-up'!$I$4,$V1962-4,0))","v":""},{"$nulls":7},{"$f":"IF(ISERROR($V1962),\"\",OFFSET('Smelter Look-up'!$C$4,$V1962-4,0)&\"\")","v":""},"",{"$f":"IF(B1962=\"\",\"\",IF(ISERROR(MATCH($J1962,SorP!$B$1:$B$6230,0)),\"\",INDIRECT(\"'SorP'!$A$\"&MATCH($J1962,SorP!$B$1:$B$6230,0))))","v":""},null,{"$f":"IF(C1962=\"\",NA(),MATCH($B1962&$C1962,'Smelter Look-up'!$J:$J,0))","v":{"$error":"#N/A"}},null,0,null,null,null,""]
[null,{"$f":"IF(LEN(A1963)=0,\"\",INDEX('Smelter Look-up'!$A:$A,MATCH($A1963,'Smelter Look-up'!$E:$E,0)))","v":""},{"$f":"IF(LEN(A1963)=0,\"\",INDEX('Smelter Look-up'!$C:$C,MATCH($A1963,'Smelter Look-up'!$E:$E,0)))","v":""},null,{"$f":"IF(ISERROR($V1963),\"\",OFFSET('Smelter Look-up'!$D$4,$V1963-4,0)&\"\")","v":""},{"$f":"IF(ISERROR($V1963),\"\",OFFSET('Smelter Look-up'!$E$4,$V1963-4,0))","v":""},{"$f":"IF(C1963=$X$4,\"Enter smelter details\", IF(ISERROR($V1963),\"\",OFFSET('Smelter Look-up'!$F$4,$V1963-4,0)))","v":""},{"$f":"IF(ISERROR($V1963),\"\",OFFSET('Smelter Look-up'!$G$4,$V1963-4,0))","v":""},{"$f":"IF(ISERROR($V1963),\"\",OFFSET('Smelter Look-up'!$H$4,$V1963-4,0))","v":""},{"$f":"IF(ISERROR($V1963),\"\",OFFSET('Smelter Look-up'!$I$4,$V1963-4,0))","v":""},{"$nulls":7},{"$f":"IF(ISERROR($V1963),\"\",OFFSET('Smelter Look-up'!$C$4,$V1963-4,0)&\"\")","v":""},"",{"$f":"IF(B1963=\"\",\"\",IF(ISERROR(MATCH($J1963,SorP!$B$1:$B$6230,0)),\"\",INDIRECT(\"'SorP'!$A$\"&MATCH($J1963,SorP!$B$1:$B$6230,0))))","v":""},null,{"$f":"IF(C1963=\"\",NA(),MATCH($B1963&$C1963,'Smelter Look-up'!$J:$J,0))","v":{"$error":"#N/A"}},null,0,null,null,null,""]
[null,{"$f":"IF(LEN(A1964)=0,\"\",INDEX('Smelter Look-up'!$A:$A,MATCH($A1964,'Smelter Look-up'!$E:$E,0)))","v":""},{"$f":"IF(LEN(A1964)=0,\"\",INDEX('Smelter Look-up'!$C:$C,MATCH($A1964,'Smelter Look-up'!$E:$E,0)))","v":""},null,{"$f":"IF(ISERROR($V1964),\"\",OFFSET('Smelter Look-up'!$D$4,$V1964-4,0)&\"\")","v":""},{"$f":"IF(ISERROR($V1964),\"\",OFFSET('Smelter Look-up'!$E$4,$V1964-4,0))","v":""},{"$f":"IF(C1964=$X$4,\"Enter smelter details\", IF(ISERROR($V1964),\"\",OFFSET('Smelter Look-up'!$F$4,$V1964-4,0)))","v":""},{"$f":"IF(ISERROR($V1964),\"\",OFFSET('Smelter Look-up'!$G$4,$V1964-4,0))","v":""},{"$f":"IF(ISERROR($V1964),\"\",OFFSET('Smelter Look-up'!$H$4,$V1964-4,0))","v":""},{"$f":"IF(ISERROR($V1964),\"\",OFFSET('Smelter Look-up'!$I$4,$V1964-4,0))","v":""},{"$nulls":7},{"$f":"IF(ISERROR($V1964),\"\",OFFSET('Smelter Look-up'!$C$4,$V1964-4,0)&\"\")","v":""},"",{"$f":"IF(B1964=\"\",\"\",IF(ISERROR(MATCH($J1964,SorP!$B$1:$B$6230,0)),\"\",INDIRECT(\"'SorP'!$A$\"&MATCH($J1964,SorP!$B$1:$B$6230,0))))","v":""},null,{"$f":"IF(C1964=\"\",NA(),MATCH($B1964&$C1964,'Smelter Look-up'!$J:$J,0))","v":{"$error":"#N/A"}},null,0,null,null,null,""]
[null,{"$f":"IF(LEN(A1965)=0,\"\",INDEX('Smelter Look-up'!$A:$A,MATCH($A1965,'Smelter Look-up'!$E:$E,0)))","v":""},{"$f":"IF(LEN(A1965)=0,\"\",INDEX('Smelter Look-up'!$C:$C,MATCH($A1965,'Smelter Look-up'!$E:$E,0)))","v":""},null,{"$f":"IF(ISERROR($V1965),\"\",OFFSET('Smelter Look-up'!$D$4,$V1965-4,0)&\"\")","v":""},{"$f":"IF(ISERROR($V1965),\"\",OFFSET('Smelter Look-up'!$E$4,$V1965-4,0))","v":""},{"$f":"IF(C1965=$X$4,\"Enter smelter details\", IF(ISERROR($V1965),\"\",OFFSET('Smelter Look-up'!$F$4,$V1965-4,0)))","v":""},{"$f":"IF(ISERROR($V1965),\"\",OFFSET('Smelter Look-up'!$G$4,$V1965-4,0))","v":""},{"$f":"IF(ISERROR($V1965),\"\",OFFSET('Smelter Look-up'!$H$4,$V1965-4,0))","v":""},{"$f":"IF(ISERROR($V1965),\"\",OFFSET('Smelter Look-up'!$I$4,$V1965-4,0))","v":""},{"$nulls":7},{"$f":"IF(ISERROR($V1965),\"\",OFFSET('Smelter Look-up'!$C$4,$V1965-4,0)&\"\")","v":""},"",{"$f":"IF(B1965=\"\",\"\",IF(ISERROR(MATCH($J1965,SorP!$B$1:$B$6230,0)),\"\",INDIRECT(\"'SorP'!$A$\"&MATCH($J1965,SorP!$B$1:$B$6230,0))))","v":""},null,{"$f":"IF(C1965=\"\",NA(),MATCH($B1965&$C1965,'Smelter Look-up'!$J:$J,0))","v":{"$error":"#N/A"}},null,0,null,null,null,""]
[null,{"$f":"IF(LEN(A1966)=0,\"\",INDEX('Smelter Look-up'!$A:$A,MATCH($A1966,'Smelter Look-up'!$E:$E,0)))","v":""},{"$f":"IF(LEN(A1966)=0,\"\",INDEX('Smelter Look-up'!$C:$C,MATCH($A1966,'Smelter Look-up'!$E:$E,0)))","v":""},null,{"$f":"IF(ISERROR($V1966),\"\",OFFSET('Smelter Look-up'!$D$4,$V1966-4,0)&\"\")","v":""},{"$f":"IF(ISERROR($V1966),\"\",OFFSET('Smelter Look-up'!$E$4,$V1966-4,0))","v":""},{"$f":"IF(C1966=$X$4,\"Enter smelter details\", IF(ISERROR($V1966),\"\",OFFSET('Smelter Look-up'!$F$4,$V1966-4,0)))","v":""},{"$f":"IF(ISERROR($V1966),\"\",OFFSET('Smelter Look-up'!$G$4,$V1966-4,0))","v":""},{"$f":"IF(ISERROR($V1966),\"\",OFFSET('Smelter Look-up'!$H$4,$V1966-4,0))","v":""},{"$f":"IF(ISERROR($V1966),\"\",OFFSET('Smelter Look-up'!$I$4,$V1966-4,0))","v":""},{"$nulls":7},{"$f":"IF(ISERROR($V1966),\"\",OFFSET('Smelter Look-up'!$C$4,$V1966-4,0)&\"\")","v":""},"",{"$f":"IF(B1966=\"\",\"\",IF(ISERROR(MATCH($J1966,SorP!$B$1:$B$6230,0)),\"\",INDIRECT(\"'SorP'!$A$\"&MATCH($J1966,SorP!$B$1:$B$6230,0))))","v":""},null,{"$f":"IF(C1966=\"\",NA(),MATCH($B1966&$C1966,'Smelter Look-up'!$J:$J,0))","v":{"$error":"#N/A"}},null,0,null,null,null,""]
[null,{"$f":"IF(LEN(A1967)=0,\"\",INDEX('Smelter Look-up'!$A:$A,MATCH($A1967,'Smelter Look-up'!$E:$E,0)))","v":""},{"$f":"IF(LEN(A1967)=0,\"\",INDEX('Smelter Look-up'!$C:$C,MATCH($A1967,'Smelter Look-up'!$E:$E,0)))","v":""},null,{"$f":"IF(ISERROR($V1967),\"\",OFFSET('Smelter Look-up'!$D$4,$V1967-4,0)&\"\")","v":""},{"$f":"IF(ISERROR($V1967),\"\",OFFSET('Smelter Look-up'!$E$4,$V1967-4,0))","v":""},{"$f":"IF(C1967=$X$4,\"Enter smelter details\", IF(ISERROR($V1967),\"\",OFFSET('Smelter Look-up'!$F$4,$V1967-4,0)))","v":""},{"$f":"IF(ISERROR($V1967),\"\",OFFSET('Smelter Look-up'!$G$4,$V1967-4,0))","v":""},{"$f":"IF(ISERROR($V1967),\"\",OFFSET('Smelter Look-up'!$H$4,$V1967-4,0))","v":""},{"$f":"IF(ISERROR($V1967),\"\",OFFSET('Smelter Look-up'!$I$4,$V1967-4,0))","v":""},{"$nulls":7},{"$f":"IF(ISERROR($V1967),\"\",OFFSET('Smelter Look-up'!$C$4,$V1967-4,0)&\"\")","v":""},"",{"$f":"IF(B1967=\"\",\"\",IF(ISERROR(MATCH($J1967,SorP!$B$1:$B$6230,0)),\"\",INDIRECT(\"'SorP'!$A$\"&MATCH($J1967,SorP!$B$1:$B$6230,0))))","v":""},null,{"$f":"IF(C1967=\"\",NA(),MATCH($B1967&$C1967,'Smelter Look-up'!$J:$J,0))","v":{"$error":"#N/A"}},null,0,null,null,null,""]
[null,{"$f":"IF(LEN(A1968)=0,\"\",INDEX('Smelter Look-up'!$A:$A,MATCH($A1968,'Smelter Look-up'!$E:$E,0)))","v":""},{"$f":"IF(LEN(A1968)=0,\"\",INDEX('Smelter Look-up'!$C:$C,MATCH($A1968,'Smelter Look-up'!$E:$E,0)))","v":""},null,{"$f":"IF(ISERROR($V1968),\"\",OFFSET('Smelter Look-up'!$D$4,$V1968-4,0)&\"\")","v":""},{"$f":"IF(ISERROR($V1968),\"\",OFFSET('Smelter Look-up'!$E$4,$V1968-4,0))","v":""},{"$f":"IF(C1968=$X$4,\"Enter smelter details\", IF(ISERROR($V1968),\"\",OFFSET('Smelter Look-up'!$F$4,$V1968-4,0)))","v":""},{"$f":"IF(ISERROR($V1968),\"\",OFFSET('Smelter Look-up'!$G$4,$V1968-4,0))","v":""},{"$f":"IF(ISERROR($V1968),\"\",OFFSET('Smelter Look-up'!$H$4,$V1968-4,0))","v":""},{"$f":"IF(ISERROR($V1968),\"\",OFFSET('Smelter Look-up'!$I$4,$V1968-4,0))","v":""},{"$nulls":7},{"$f":"IF(ISERROR($V1968),\"\",OFFSET('Smelter Look-up'!$C$4,$V1968-4,0)&\"\")","v":""},"",{"$f":"IF(B1968=\"\",\"\",IF(ISERROR(MATCH($J1968,SorP!$B$1:$B$6230,0)),\"\",INDIRECT(\"'SorP'!$A$\"&MATCH($J1968,SorP!$B$1:$B$6230,0))))","v":""},null,{"$f":"IF(C1968=\"\",NA(),MATCH($B1968&$C1968,'Smelter Look-up'!$J:$J,0))","v":{"$error":"#N/A"}},null,0,null,null,null,""]
[null,{"$f":"IF(LEN(A1969)=0,\"\",INDEX('Smelter Look-up'!$A:$A,MATCH($A1969,'Smelter Look-up'!$E:$E,0)))","v":""},{"$f":"IF(LEN(A1969)=0,\"\",INDEX('Smelter Look-up'!$C:$C,MATCH($A1969,'Smelter Look-up'!$E:$E,0)))","v":""},null,{"$f":"IF(ISERROR($V1969),\"\",OFFSET('Smelter Look-up'!$D$4,$V1969-4,0)&\"\")","v":""},{"$f":"IF(ISERROR($V1969),\"\",OFFSET('Smelter Look-up'!$E$4,$V1969-4,0))","v":""},{"$f":"IF(C1969=$X$4,\"Enter smelter details\", IF(ISERROR($V1969),\"\",OFFSET('Smelter Look-up'!$F$4,$V1969-4,0)))","v":""},{"$f":"IF(ISERROR($V1969),\"\",OFFSET('Smelter Look-up'!$G$4,$V1969-4,0))","v":""},{"$f":"IF(ISERROR($V1969),\"\",OFFSET('Smelter Look-up'!$H$4,$V1969-4,0))","v":""},{"$f":"IF(ISERROR($V1969),\"\",OFFSET('Smelter Look-up'!$I$4,$V1969-4,0))","v":""},{"$nulls":7},{"$f":"IF(ISERROR($V1969),\"\",OFFSET('Smelter Look-up'!$C$4,$V1969-4,0)&\"\")","v":""},"",{"$f":"IF(B1969=\"\",\"\",IF(ISERROR(MATCH($J1969,SorP!$B$1:$B$6230,0)),\"\",INDIRECT(\"'SorP'!$A$\"&MATCH($J1969,SorP!$B$1:$B$6230,0))))","v":""},null,{"$f":"IF(C1969=\"\",NA(),MATCH($B1969&$C1969,'Smelter Look-up'!$J:$J,0))","v":{"$error":"#N/A"}},null,0,null,null,null,""]
[null,{"$f":"IF(LEN(A1970)=0,\"\",INDEX('Smelter Look-up'!$A:$A,MATCH($A1970,'Smelter Look-up'!$E:$E,0)))","v":""},{"$f":"IF(LEN(A1970)=0,\"\",INDEX('Smelter Look-up'!$C:$C,MATCH($A1970,'Smelter Look-up'!$E:$E,0)))","v":""},null,{"$f":"IF(ISERROR($V1970),\"\",OFFSET('Smelter Look-up'!$D$4,$V1970-4,0)&\"\")","v":""},{"$f":"IF(ISERROR($V1970),\"\",OFFSET('Smelter Look-up'!$E$4,$V1970-4,0))","v":""},{"$f":"IF(C1970=$X$4,\"Enter smelter details\", IF(ISERROR($V1970),\"\",OFFSET('Smelter Look-up'!$F$4,$V1970-4,0)))","v":""},{"$f":"IF(ISERROR($V1970),\"\",OFFSET('Smelter Look-up'!$G$4,$V1970-4,0))","v":""},{"$f":"IF(ISERROR($V1970),\"\",OFFSET('Smelter Look-up'!$H$4,$V1970-4,0))","v":""},{"$f":"IF(ISERROR($V1970),\"\",OFFSET('Smelter Look-up'!$I$4,$V1970-4,0))","v":""},{"$nulls":7},{"$f":"IF(ISERROR($V1970),\"\",OFFSET('Smelter Look-up'!$C$4,$V1970-4,0)&\"\")","v":""},"",{"$f":"IF(B1970=\"\",\"\",IF(ISERROR(MATCH($J1970,SorP!$B$1:$B$6230,0)),\"\",INDIRECT(\"'SorP'!$A$\"&MATCH($J1970,SorP!$B$1:$B$6230,0))))","v":""},null,{"$f":"IF(C1970=\"\",NA(),MATCH($B1970&$C1970,'Smelter Look-up'!$J:$J,0))","v":{"$error":"#N/A"}},null,0,null,null,null,""]
[null,{"$f":"IF(LEN(A1971)=0,\"\",INDEX('Smelter Look-up'!$A:$A,MATCH($A1971,'Smelter Look-up'!$E:$E,0)))","v":""},{"$f":"IF(LEN(A1971)=0,\"\",INDEX('Smelter Look-up'!$C:$C,MATCH($A1971,'Smelter Look-up'!$E:$E,0)))","v":""},null,{"$f":"IF(ISERROR($V1971),\"\",OFFSET('Smelter Look-up'!$D$4,$V1971-4,0)&\"\")","v":""},{"$f":"IF(ISERROR($V1971),\"\",OFFSET('Smelter Look-up'!$E$4,$V1971-4,0))","v":""},{"$f":"IF(C1971=$X$4,\"Enter smelter details\", IF(ISERROR($V1971),\"\",OFFSET('Smelter Look-up'!$F$4,$V1971-4,0)))","v":""},{"$f":"IF(ISERROR($V1971),\"\",OFFSET('Smelter Look-up'!$G$4,$V1971-4,0))","v":""},{"$f":"IF(ISERROR($V1971),\"\",OFFSET('Smelter Look-up'!$H$4,$V1971-4,0))","v":""},{"$f":"IF(ISERROR($V1971),\"\",OFFSET('Smelter Look-up'!$I$4,$V1971-4,0))","v":""},{"$nulls":7},{"$f":"IF(ISERROR($V1971),\"\",OFFSET('Smelter Look-up'!$C$4,$V1971-4,0)&\"\")","v":""},"",{"$f":"IF(B1971=\"\",\"\",IF(ISERROR(MATCH($J1971,SorP!$B$1:$B$6230,0)),\"\",INDIRECT(\"'SorP'!$A$\"&MATCH($J1971,SorP!$B$1:$B$6230,0))))","v":""},null,{"$f":"IF(C1971=\"\",NA(),MATCH($B1971&$C1971,'Smelter Look-up'!$J:$J,0))","v":{"$error":"#N/A"}},null,0,null,null,null,""]
[null,{"$f":"IF(LEN(A1972)=0,\"\",INDEX('Smelter Look-up'!$A:$A,MATCH($A1972,'Smelter Look-up'!$E:$E,0)))","v":""},{"$f":"IF(LEN(A1972)=0,\"\",INDEX('Smelter Look-up'!$C:$C,MATCH($A1972,'Smelter Look-up'!$E:$E,0)))","v":""},null,{"$f":"IF(ISERROR($V1972),\"\",OFFSET('Smelter Look-up'!$D$4,$V1972-4,0)&\"\")","v":""},{"$f":"IF(ISERROR($V1972),\"\",OFFSET('Smelter Look-up'!$E$4,$V1972-4,0))","v":""},{"$f":"IF(C1972=$X$4,\"Enter smelter details\", IF(ISERROR($V1972),\"\",OFFSET('Smelter Look-up'!$F$4,$V1972-4,0)))","v":""},{"$f":"IF(ISERROR($V1972),\"\",OFFSET('Smelter Look-up'!$G$4,$V1972-4,0))","v":""},{"$f":"IF(ISERROR($V1972),\"\",OFFSET('Smelter Look-up'!$H$4,$V1972-4,0))","v":""},{"$f":"IF(ISERROR($V1972),\"\",OFFSET('Smelter Look-up'!$I$4,$V1972-4,0))","v":""},{"$nulls":7},{"$f":"IF(ISERROR($V1972),\"\",OFFSET('Smelter Look-up'!$C$4,$V1972-4,0)&\"\")","v":""},"",{"$f":"IF(B1972=\"\",\"\",IF(ISERROR(MATCH($J1972,SorP!$B$1:$B$6230,0)),\"\",INDIRECT(\"'SorP'!$A$\"&MATCH($J1972,SorP!$B$1:$B$6230,0))))","v":""},null,{"$f":"IF(C1972=\"\",NA(),MATCH($B1972&$C1972,'Smelter Look-up'!$J:$J,0))","v":{"$error":"#N/A"}},null,0,null,null,null,""]
[null,{"$f":"IF(LEN(A1973)=0,\"\",INDEX('Smelter Look-up'!$A:$A,MATCH($A1973,'Smelter Look-up'!$E:$E,0)))","v":""},{"$f":"IF(LEN(A1973)=0,\"\",INDEX('Smelter Look-up'!$C:$C,MATCH($A1973,'Smelter Look-up'!$E:$E,0)))","v":""},null,{"$f":"IF(ISERROR($V1973),\"\",OFFSET('Smelter Look-up'!$D$4,$V1973-4,0)&\"\")","v":""},{"$f":"IF(ISERROR($V1973),\"\",OFFSET('Smelter Look-up'!$E$4,$V1973-4,0))","v":""},{"$f":"IF(C1973=$X$4,\"Enter smelter details\", IF(ISERROR($V1973),\"\",OFFSET('Smelter Look-up'!$F$4,$V1973-4,0)))","v":""},{"$f":"IF(ISERROR($V1973),\"\",OFFSET('Smelter Look-up'!$G$4,$V1973-4,0))","v":""},{"$f":"IF(ISERROR($V1973),\"\",OFFSET('Smelter Look-up'!$H$4,$V1973-4,0))","v":""},{"$f":"IF(ISERROR($V1973),\"\",OFFSET('Smelter Look-up'!$I$4,$V1973-4,0))","v":""},{"$nulls":7},{"$f":"IF(ISERROR($V1973),\"\",OFFSET('Smelter Look-up'!$C$4,$V1973-4,0)&\"\")","v":""},"",{"$f":"IF(B1973=\"\",\"\",IF(ISERROR(MATCH($J1973,SorP!$B$1:$B$6230,0)),\"\",INDIRECT(\"'SorP'!$A$\"&MATCH($J1973,SorP!$B$1:$B$6230,0))))","v":""},null,{"$f":"IF(C1973=\"\",NA(),MATCH($B1973&$C1973,'Smelter Look-up'!$J:$J,0))","v":{"$error":"#N/A"}},null,0,null,null,null,""]
[null,{"$f":"IF(LEN(A1974)=0,\"\",INDEX('Smelter Look-up'!$A:$A,MATCH($A1974,'Smelter Look-up'!$E:$E,0)))","v":""},{"$f":"IF(LEN(A1974)=0,\"\",INDEX('Smelter Look-up'!$C:$C,MATCH($A1974,'Smelter Look-up'!$E:$E,0)))","v":""},null,{"$f":"IF(ISERROR($V1974),\"\",OFFSET('Smelter Look-up'!$D$4,$V1974-4,0)&\"\")","v":""},{"$f":"IF(ISERROR($V1974),\"\",OFFSET('Smelter Look-up'!$E$4,$V1974-4,0))","v":""},{"$f":"IF(C1974=$X$4,\"Enter smelter details\", IF(ISERROR($V1974),\"\",OFFSET('Smelter Look-up'!$F$4,$V1974-4,0)))","v":""},{"$f":"IF(ISERROR($V1974),\"\",OFFSET('Smelter Look-up'!$G$4,$V1974-4,0))","v":""},{"$f":"IF(ISERROR($V1974),\"\",OFFSET('Smelter Look-up'!$H$4,$V1974-4,0))","v":""},{"$f":"IF(ISERROR($V1974),\"\",OFFSET('Smelter Look-up'!$I$4,$V1974-4,0))","v":""},{"$nulls":7},{"$f":"IF(ISERROR($V1974),\"\",OFFSET('Smelter Look-up'!$C$4,$V1974-4,0)&\"\")","v":""},"",{"$f":"IF(B1974=\"\",\"\",IF(ISERROR(MATCH($J1974,SorP!$B$1:$B$6230,0)),\"\",INDIRECT(\"'SorP'!$A$\"&MATCH($J1974,SorP!$B$1:$B$6230,0))))","v":""},null,{"$f":"IF(C1974=\"\",NA(),MATCH($B1974&$C1974,'Smelter Look-up'!$J:$J,0))","v":{"$error":"#N/A"}},null,0,null,null,null,""]
[null,{"$f":"IF(LEN(A1975)=0,\"\",INDEX('Smelter Look-up'!$A:$A,MATCH($A1975,'Smelter Look-up'!$E:$E,0)))","v":""},{"$f":"IF(LEN(A1975)=0,\"\",INDEX('Smelter Look-up'!$C:$C,MATCH($A1975,'Smelter Look-up'!$E:$E,0)))","v":""},null,{"$f":"IF(ISERROR($V1975),\"\",OFFSET('Smelter Look-up'!$D$4,$V1975-4,0)&\"\")","v":""},{"$f":"IF(ISERROR($V1975),\"\",OFFSET('Smelter Look-up'!$E$4,$V1975-4,0))","v":""},{"$f":"IF(C1975=$X$4,\"Enter smelter details\", IF(ISERROR($V1975),\"\",OFFSET('Smelter Look-up'!$F$4,$V1975-4,0)))","v":""},{"$f":"IF(ISERROR($V1975),\"\",OFFSET('Smelter Look-up'!$G$4,$V1975-4,0))","v":""},{"$f":"IF(ISERROR($V1975),\"\",OFFSET('Smelter Look-up'!$H$4,$V1975-4,0))","v":""},{"$f":"IF(ISERROR($V1975),\"\",OFFSET('Smelter Look-up'!$I$4,$V1975-4,0))","v":""},{"$nulls":7},{"$f":"IF(ISERROR($V1975),\"\",OFFSET('Smelter Look-up'!$C$4,$V1975-4,0)&\"\")","v":""},"",{"$f":"IF(B1975=\"\",\"\",IF(ISERROR(MATCH($J1975,SorP!$B$1:$B$6230,0)),\"\",INDIRECT(\"'SorP'!$A$\"&MATCH($J1975,SorP!$B$1:$B$6230,0))))","v":""},null,{"$f":"IF(C1975=\"\",NA(),MATCH($B1975&$C1975,'Smelter Look-up'!$J:$J,0))","v":{"$error":"#N/A"}},null,0,null,null,null,""]
[null,{"$f":"IF(LEN(A1976)=0,\"\",INDEX('Smelter Look-up'!$A:$A,MATCH($A1976,'Smelter Look-up'!$E:$E,0)))","v":""},{"$f":"IF(LEN(A1976)=0,\"\",INDEX('Smelter Look-up'!$C:$C,MATCH($A1976,'Smelter Look-up'!$E:$E,0)))","v":""},null,{"$f":"IF(ISERROR($V1976),\"\",OFFSET('Smelter Look-up'!$D$4,$V1976-4,0)&\"\")","v":""},{"$f":"IF(ISERROR($V1976),\"\",OFFSET('Smelter Look-up'!$E$4,$V1976-4,0))","v":""},{"$f":"IF(C1976=$X$4,\"Enter smelter details\", IF(ISERROR($V1976),\"\",OFFSET('Smelter Look-up'!$F$4,$V1976-4,0)))","v":""},{"$f":"IF(ISERROR($V1976),\"\",OFFSET('Smelter Look-up'!$G$4,$V1976-4,0))","v":""},{"$f":"IF(ISERROR($V1976),\"\",OFFSET('Smelter Look-up'!$H$4,$V1976-4,0))","v":""},{"$f":"IF(ISERROR($V1976),\"\",OFFSET('Smelter Look-up'!$I$4,$V1976-4,0))","v":""},{"$nulls":7},{"$f":"IF(ISERROR($V1976),\"\",OFFSET('Smelter Look-up'!$C$4,$V1976-4,0)&\"\")","v":""},"",{"$f":"IF(B1976=\"\",\"\",IF(ISERROR(MATCH($J1976,SorP!$B$1:$B$6230,0)),\"\",INDIRECT(\"'SorP'!$A$\"&MATCH($J1976,SorP!$B$1:$B$6230,0))))","v":""},null,{"$f":"IF(C1976=\"\",NA(),MATCH($B1976&$C1976,'Smelter Look-up'!$J:$J,0))","v":{"$error":"#N/A"}},null,0,null,null,null,""]
[null,{"$f":"IF(LEN(A1977)=0,\"\",INDEX('Smelter Look-up'!$A:$A,MATCH($A1977,'Smelter Look-up'!$E:$E,0)))","v":""},{"$f":"IF(LEN(A1977)=0,\"\",INDEX('Smelter Look-up'!$C:$C,MATCH($A1977,'Smelter Look-up'!$E:$E,0)))","v":""},null,{"$f":"IF(ISERROR($V1977),\"\",OFFSET('Smelter Look-up'!$D$4,$V1977-4,0)&\"\")","v":""},{"$f":"IF(ISERROR($V1977),\"\",OFFSET('Smelter Look-up'!$E$4,$V1977-4,0))","v":""},{"$f":"IF(C1977=$X$4,\"Enter smelter details\", IF(ISERROR($V1977),\"\",OFFSET('Smelter Look-up'!$F$4,$V1977-4,0)))","v":""},{"$f":"IF(ISERROR($V1977),\"\",OFFSET('Smelter Look-up'!$G$4,$V1977-4,0))","v":""},{"$f":"IF(ISERROR($V1977),\"\",OFFSET('Smelter Look-up'!$H$4,$V1977-4,0))","v":""},{"$f":"IF(ISERROR($V1977),\"\",OFFSET('Smelter Look-up'!$I$4,$V1977-4,0))","v":""},{"$nulls":7},{"$f":"IF(ISERROR($V1977),\"\",OFFSET('Smelter Look-up'!$C$4,$V1977-4,0)&\"\")","v":""},"",{"$f":"IF(B1977=\"\",\"\",IF(ISERROR(MATCH($J1977,SorP!$B$1:$B$6230,0)),\"\",INDIRECT(\"'SorP'!$A$\"&MATCH($J1977,SorP!$B$1:$B$6230,0))))","v":""},null,{"$f":"IF(C1977=\"\",NA(),MATCH($B1977&$C1977,'Smelter Look-up'!$J:$J,0))","v":{"$error":"#N/A"}},null,0,null,null,null,""]
[null,{"$f":"IF(LEN(A1978)=0,\"\",INDEX('Smelter Look-up'!$A:$A,MATCH($A1978,'Smelter Look-up'!$E:$E,0)))","v":""},{"$f":"IF(LEN(A1978)=0,\"\",INDEX('Smelter Look-up'!$C:$C,MATCH($A1978,'Smelter Look-up'!$E:$E,0)))","v":""},null,{"$f":"IF(ISERROR($V1978),\"\",OFFSET('Smelter Look-up'!$D$4,$V1978-4,0)&\"\")","v":""},{"$f":"IF(ISERROR($V1978),\"\",OFFSET('Smelter Look-up'!$E$4,$V1978-4,0))","v":""},{"$f":"IF(C1978=$X$4,\"Enter smelter details\", IF(ISERROR($V1978),\"\",OFFSET('Smelter Look-up'!$F$4,$V1978-4,0)))","v":""},{"$f":"IF(ISERROR($V1978),\"\",OFFSET('Smelter Look-up'!$G$4,$V1978-4,0))","v":""},{"$f":"IF(ISERROR($V1978),\"\",OFFSET('Smelter Look-up'!$H$4,$V1978-4,0))","v":""},{"$f":"IF(ISERROR($V1978),\"\",OFFSET('Smelter Look-up'!$I$4,$V1978-4,0))","v":""},{"$nulls":7},{"$f":"IF(ISERROR($V1978),\"\",OFFSET('Smelter Look-up'!$C$4,$V1978-4,0)&\"\")","v":""},"",{"$f":"IF(B1978=\"\",\"\",IF(ISERROR(MATCH($J1978,SorP!$B$1:$B$6230,0)),\"\",INDIRECT(\"'SorP'!$A$\"&MATCH($J1978,SorP!$B$1:$B$6230,0))))","v":""},null,{"$f":"IF(C1978=\"\",NA(),MATCH($B1978&$C1978,'Smelter Look-up'!$J:$J,0))","v":{"$error":"#N/A"}},null,0,null,null,null,""]
[null,{"$f":"IF(LEN(A1979)=0,\"\",INDEX('Smelter Look-up'!$A:$A,MATCH($A1979,'Smelter Look-up'!$E:$E,0)))","v":""},{"$f":"IF(LEN(A1979)=0,\"\",INDEX('Smelter Look-up'!$C:$C,MATCH($A1979,'Smelter Look-up'!$E:$E,0)))","v":""},null,{"$f":"IF(ISERROR($V1979),\"\",OFFSET('Smelter Look-up'!$D$4,$V1979-4,0)&\"\")","v":""},{"$f":"IF(ISERROR($V1979),\"\",OFFSET('Smelter Look-up'!$E$4,$V1979-4,0))","v":""},{"$f":"IF(C1979=$X$4,\"Enter smelter details\", IF(ISERROR($V1979),\"\",OFFSET('Smelter Look-up'!$F$4,$V1979-4,0)))","v":""},{"$f":"IF(ISERROR($V1979),\"\",OFFSET('Smelter Look-up'!$G$4,$V1979-4,0))","v":""},{"$f":"IF(ISERROR($V1979),\"\",OFFSET('Smelter Look-up'!$H$4,$V1979-4,0))","v":""},{"$f":"IF(ISERROR($V1979),\"\",OFFSET('Smelter Look-up'!$I$4,$V1979-4,0))","v":""},{"$nulls":7},{"$f":"IF(ISERROR($V1979),\"\",OFFSET('Smelter Look-up'!$C$4,$V1979-4,0)&\"\")","v":""},{"$f":"IF(B1979=\"\",\"\",IF(ISERROR(MATCH($E1979,CL,0)),\"Unknown\",INDIRECT(\"'C'!$A$\"&MATCH($E1979,CL,0)+1)))","v":""},{"$f":"IF(B1979=\"\",\"\",IF(ISERROR(MATCH($J1979,SorP!$B$1:$B$6230,0)),\"\",INDIRECT(\"'SorP'!$A$\"&MATCH($J1979,SorP!$B$1:$B$6230,0))))","v":""},null,{"$f":"IF(C1979=\"\",NA(),MATCH($B1979&$C1979,'Smelter Look-up'!$J:$J,0))","v":{"$error":"#N/A"}},null,{"$f":"IF(AND(C1979=\"Smelter not listed\",OR(LEN(D1979)=0,LEN(E1979)=0)),1,0)","v":0},null,null,null,{"$f":"B1979&C1979","v":""}]
[null,{"$f":"IF(LEN(A1980)=0,\"\",INDEX('Smelter Look-up'!$A:$A,MATCH($A1980,'Smelter Look-up'!$E:$E,0)))","v":""},{"$f":"IF(LEN(A1980)=0,\"\",INDEX('Smelter Look-up'!$C:$C,MATCH($A1980,'Smelter Look-up'!$E:$E,0)))","v":""},null,{"$f":"IF(ISERROR($V1980),\"\",OFFSET('Smelter Look-up'!$D$4,$V1980-4,0)&\"\")","v":""},{"$f":"IF(ISERROR($V1980),\"\",OFFSET('Smelter Look-up'!$E$4,$V1980-4,0))","v":""},{"$f":"IF(C1980=$X$4,\"Enter smelter details\", IF(ISERROR($V1980),\"\",OFFSET('Smelter Look-up'!$F$4,$V1980-4,0)))","v":""},{"$f":"IF(ISERROR($V1980),\"\",OFFSET('Smelter Look-up'!$G$4,$V1980-4,0))","v":""},{"$f":"IF(ISERROR($V1980),\"\",OFFSET('Smelter Look-up'!$H$4,$V1980-4,0))","v":""},{"$f":"IF(ISERROR($V1980),\"\",OFFSET('Smelter Look-up'!$I$4,$V1980-4,0))","v":""},{"$nulls":7},{"$f":"IF(ISERROR($V1980),\"\",OFFSET('Smelter Look-up'!$C$4,$V1980-4,0)&\"\")","v":""},"",{"$f":"IF(B1980=\"\",\"\",IF(ISERROR(MATCH($J1980,SorP!$B$1:$B$6230,0)),\"\",INDIRECT(\"'SorP'!$A$\"&MATCH($J1980,SorP!$B$1:$B$6230,0))))","v":""},null,{"$f":"IF(C1980=\"\",NA(),MATCH($B1980&$C1980,'Smelter Look-up'!$J:$J,0))","v":{"$error":"#N/A"}},null,0,null,null,null,""]
[null,{"$f":"IF(LEN(A1981)=0,\"\",INDEX('Smelter Look-up'!$A:$A,MATCH($A1981,'Smelter Look-up'!$E:$E,0)))","v":""},{"$f":"IF(LEN(A1981)=0,\"\",INDEX('Smelter Look-up'!$C:$C,MATCH($A1981,'Smelter Look-up'!$E:$E,0)))","v":""},null,{"$f":"IF(ISERROR($V1981),\"\",OFFSET('Smelter Look-up'!$D$4,$V1981-4,0)&\"\")","v":""},{"$f":"IF(ISERROR($V1981),\"\",OFFSET('Smelter Look-up'!$E$4,$V1981-4,0))","v":""},{"$f":"IF(C1981=$X$4,\"Enter smelter details\", IF(ISERROR($V1981),\"\",OFFSET('Smelter Look-up'!$F$4,$V1981-4,0)))","v":""},{"$f":"IF(ISERROR($V1981),\"\",OFFSET('Smelter Look-up'!$G$4,$V1981-4,0))","v":""},{"$f":"IF(ISERROR($V1981),\"\",OFFSET('Smelter Look-up'!$H$4,$V1981-4,0))","v":""},{"$f":"IF(ISERROR($V1981),\"\",OFFSET('Smelter Look-up'!$I$4,$V1981-4,0))","v":""},{"$nulls":7},{"$f":"IF(ISERROR($V1981),\"\",OFFSET('Smelter Look-up'!$C$4,$V1981-4,0)&\"\")","v":""},"",{"$f":"IF(B1981=\"\",\"\",IF(ISERROR(MATCH($J1981,SorP!$B$1:$B$6230,0)),\"\",INDIRECT(\"'SorP'!$A$\"&MATCH($J1981,SorP!$B$1:$B$6230,0))))","v":""},null,{"$f":"IF(C1981=\"\",NA(),MATCH($B1981&$C1981,'Smelter Look-up'!$J:$J,0))","v":{"$error":"#N/A"}},null,0,null,null,null,""]
[null,{"$f":"IF(LEN(A1982)=0,\"\",INDEX('Smelter Look-up'!$A:$A,MATCH($A1982,'Smelter Look-up'!$E:$E,0)))","v":""},{"$f":"IF(LEN(A1982)=0,\"\",INDEX('Smelter Look-up'!$C:$C,MATCH($A1982,'Smelter Look-up'!$E:$E,0)))","v":""},null,{"$f":"IF(ISERROR($V1982),\"\",OFFSET('Smelter Look-up'!$D$4,$V1982-4,0)&\"\")","v":""},{"$f":"IF(ISERROR($V1982),\"\",OFFSET('Smelter Look-up'!$E$4,$V1982-4,0))","v":""},{"$f":"IF(C1982=$X$4,\"Enter smelter details\", IF(ISERROR($V1982),\"\",OFFSET('Smelter Look-up'!$F$4,$V1982-4,0)))","v":""},{"$f":"IF(ISERROR($V1982),\"\",OFFSET('Smelter Look-up'!$G$4,$V1982-4,0))","v":""},{"$f":"IF(ISERROR($V1982),\"\",OFFSET('Smelter Look-up'!$H$4,$V1982-4,0))","v":""},{"$f":"IF(ISERROR($V1982),\"\",OFFSET('Smelter Look-up'!$I$4,$V1982-4,0))","v":""},{"$nulls":7},{"$f":"IF(ISERROR($V1982),\"\",OFFSET('Smelter Look-up'!$C$4,$V1982-4,0)&\"\")","v":""},"",{"$f":"IF(B1982=\"\",\"\",IF(ISERROR(MATCH($J1982,SorP!$B$1:$B$6230,0)),\"\",INDIRECT(\"'SorP'!$A$\"&MATCH($J1982,SorP!$B$1:$B$6230,0))))","v":""},null,{"$f":"IF(C1982=\"\",NA(),MATCH($B1982&$C1982,'Smelter Look-up'!$J:$J,0))","v":{"$error":"#N/A"}},null,0,null,null,null,""]
[null,{"$f":"IF(LEN(A1983)=0,\"\",INDEX('Smelter Look-up'!$A:$A,MATCH($A1983,'Smelter Look-up'!$E:$E,0)))","v":""},{"$f":"IF(LEN(A1983)=0,\"\",INDEX('Smelter Look-up'!$C:$C,MATCH($A1983,'Smelter Look-up'!$E:$E,0)))","v":""},null,{"$f":"IF(ISERROR($V1983),\"\",OFFSET('Smelter Look-up'!$D$4,$V1983-4,0)&\"\")","v":""},{"$f":"IF(ISERROR($V1983),\"\",OFFSET('Smelter Look-up'!$E$4,$V1983-4,0))","v":""},{"$f":"IF(C1983=$X$4,\"Enter smelter details\", IF(ISERROR($V1983),\"\",OFFSET('Smelter Look-up'!$F$4,$V1983-4,0)))","v":""},{"$f":"IF(ISERROR($V1983),\"\",OFFSET('Smelter Look-up'!$G$4,$V1983-4,0))","v":""},{"$f":"IF(ISERROR($V1983),\"\",OFFSET('Smelter Look-up'!$H$4,$V1983-4,0))","v":""},{"$f":"IF(ISERROR($V1983),\"\",OFFSET('Smelter Look-up'!$I$4,$V1983-4,0))","v":""},{"$nulls":7},{"$f":"IF(ISERROR($V1983),\"\",OFFSET('Smelter Look-up'!$C$4,$V1983-4,0)&\"\")","v":""},"",{"$f":"IF(B1983=\"\",\"\",IF(ISERROR(MATCH($J1983,SorP!$B$1:$B$6230,0)),\"\",INDIRECT(\"'SorP'!$A$\"&MATCH($J1983,SorP!$B$1:$B$6230,0))))","v":""},null,{"$f":"IF(C1983=\"\",NA(),MATCH($B1983&$C1983,'Smelter Look-up'!$J:$J,0))","v":{"$error":"#N/A"}},null,0,null,null,null,""]
[null,{"$f":"IF(LEN(A1984)=0,\"\",INDEX('Smelter Look-up'!$A:$A,MATCH($A1984,'Smelter Look-up'!$E:$E,0)))","v":""},{"$f":"IF(LEN(A1984)=0,\"\",INDEX('Smelter Look-up'!$C:$C,MATCH($A1984,'Smelter Look-up'!$E:$E,0)))","v":""},null,{"$f":"IF(ISERROR($V1984),\"\",OFFSET('Smelter Look-up'!$D$4,$V1984-4,0)&\"\")","v":""},{"$f":"IF(ISERROR($V1984),\"\",OFFSET('Smelter Look-up'!$E$4,$V1984-4,0))","v":""},{"$f":"IF(C1984=$X$4,\"Enter smelter details\", IF(ISERROR($V1984),\"\",OFFSET('Smelter Look-up'!$F$4,$V1984-4,0)))","v":""},{"$f":"IF(ISERROR($V1984),\"\",OFFSET('Smelter Look-up'!$G$4,$V1984-4,0))","v":""},{"$f":"IF(ISERROR($V1984),\"\",OFFSET('Smelter Look-up'!$H$4,$V1984-4,0))","v":""},{"$f":"IF(ISERROR($V1984),\"\",OFFSET('Smelter Look-up'!$I$4,$V1984-4,0))","v":""},{"$nulls":7},{"$f":"IF(ISERROR($V1984),\"\",OFFSET('Smelter Look-up'!$C$4,$V1984-4,0)&\"\")","v":""},"",{"$f":"IF(B1984=\"\",\"\",IF(ISERROR(MATCH($J1984,SorP!$B$1:$B$6230,0)),\"\",INDIRECT(\"'SorP'!$A$\"&MATCH($J1984,SorP!$B$1:$B$6230,0))))","v":""},null,{"$f":"IF(C1984=\"\",NA(),MATCH($B1984&$C1984,'Smelter Look-up'!$J:$J,0))","v":{"$error":"#N/A"}},null,0,null,null,null,""]
[null,{"$f":"IF(LEN(A1985)=0,\"\",INDEX('Smelter Look-up'!$A:$A,MATCH($A1985,'Smelter Look-up'!$E:$E,0)))","v":""},{"$f":"IF(LEN(A1985)=0,\"\",INDEX('Smelter Look-up'!$C:$C,MATCH($A1985,'Smelter Look-up'!$E:$E,0)))","v":""},null,{"$f":"IF(ISERROR($V1985),\"\",OFFSET('Smelter Look-up'!$D$4,$V1985-4,0)&\"\")","v":""},{"$f":"IF(ISERROR($V1985),\"\",OFFSET('Smelter Look-up'!$E$4,$V1985-4,0))","v":""},{"$f":"IF(C1985=$X$4,\"Enter smelter details\", IF(ISERROR($V1985),\"\",OFFSET('Smelter Look-up'!$F$4,$V1985-4,0)))","v":""},{"$f":"IF(ISERROR($V1985),\"\",OFFSET('Smelter Look-up'!$G$4,$V1985-4,0))","v":""},{"$f":"IF(ISERROR($V1985),\"\",OFFSET('Smelter Look-up'!$H$4,$V1985-4,0))","v":""},{"$f":"IF(ISERROR($V1985),\"\",OFFSET('Smelter Look-up'!$I$4,$V1985-4,0))","v":""},{"$nulls":7},{"$f":"IF(ISERROR($V1985),\"\",OFFSET('Smelter Look-up'!$C$4,$V1985-4,0)&\"\")","v":""},"",{"$f":"IF(B1985=\"\",\"\",IF(ISERROR(MATCH($J1985,SorP!$B$1:$B$6230,0)),\"\",INDIRECT(\"'SorP'!$A$\"&MATCH($J1985,SorP!$B$1:$B$6230,0))))","v":""},null,{"$f":"IF(C1985=\"\",NA(),MATCH($B1985&$C1985,'Smelter Look-up'!$J:$J,0))","v":{"$error":"#N/A"}},null,0,null,null,null,""]
[null,{"$f":"IF(LEN(A1986)=0,\"\",INDEX('Smelter Look-up'!$A:$A,MATCH($A1986,'Smelter Look-up'!$E:$E,0)))","v":""},{"$f":"IF(LEN(A1986)=0,\"\",INDEX('Smelter Look-up'!$C:$C,MATCH($A1986,'Smelter Look-up'!$E:$E,0)))","v":""},null,{"$f":"IF(ISERROR($V1986),\"\",OFFSET('Smelter Look-up'!$D$4,$V1986-4,0)&\"\")","v":""},{"$f":"IF(ISERROR($V1986),\"\",OFFSET('Smelter Look-up'!$E$4,$V1986-4,0))","v":""},{"$f":"IF(C1986=$X$4,\"Enter smelter details\", IF(ISERROR($V1986),\"\",OFFSET('Smelter Look-up'!$F$4,$V1986-4,0)))","v":""},{"$f":"IF(ISERROR($V1986),\"\",OFFSET('Smelter Look-up'!$G$4,$V1986-4,0))","v":""},{"$f":"IF(ISERROR($V1986),\"\",OFFSET('Smelter Look-up'!$H$4,$V1986-4,0))","v":""},{"$f":"IF(ISERROR($V1986),\"\",OFFSET('Smelter Look-up'!$I$4,$V1986-4,0))","v":""},{"$nulls":7},{"$f":"IF(ISERROR($V1986),\"\",OFFSET('Smelter Look-up'!$C$4,$V1986-4,0)&\"\")","v":""},"",{"$f":"IF(B1986=\"\",\"\",IF(ISERROR(MATCH($J1986,SorP!$B$1:$B$6230,0)),\"\",INDIRECT(\"'SorP'!$A$\"&MATCH($J1986,SorP!$B$1:$B$6230,0))))","v":""},null,{"$f":"IF(C1986=\"\",NA(),MATCH($B1986&$C1986,'Smelter Look-up'!$J:$J,0))","v":{"$error":"#N/A"}},null,0,null,null,null,""]
[null,{"$f":"IF(LEN(A1987)=0,\"\",INDEX('Smelter Look-up'!$A:$A,MATCH($A1987,'Smelter Look-up'!$E:$E,0)))","v":""},{"$f":"IF(LEN(A1987)=0,\"\",INDEX('Smelter Look-up'!$C:$C,MATCH($A1987,'Smelter Look-up'!$E:$E,0)))","v":""},null,{"$f":"IF(ISERROR($V1987),\"\",OFFSET('Smelter Look-up'!$D$4,$V1987-4,0)&\"\")","v":""},{"$f":"IF(ISERROR($V1987),\"\",OFFSET('Smelter Look-up'!$E$4,$V1987-4,0))","v":""},{"$f":"IF(C1987=$X$4,\"Enter smelter details\", IF(ISERROR($V1987),\"\",OFFSET('Smelter Look-up'!$F$4,$V1987-4,0)))","v":""},{"$f":"IF(ISERROR($V1987),\"\",OFFSET('Smelter Look-up'!$G$4,$V1987-4,0))","v":""},{"$f":"IF(ISERROR($V1987),\"\",OFFSET('Smelter Look-up'!$H$4,$V1987-4,0))","v":""},{"$f":"IF(ISERROR($V1987),\"\",OFFSET('Smelter Look-up'!$I$4,$V1987-4,0))","v":""},{"$nulls":7},{"$f":"IF(ISERROR($V1987),\"\",OFFSET('Smelter Look-up'!$C$4,$V1987-4,0)&\"\")","v":""},"",{"$f":"IF(B1987=\"\",\"\",IF(ISERROR(MATCH($J1987,SorP!$B$1:$B$6230,0)),\"\",INDIRECT(\"'SorP'!$A$\"&MATCH($J1987,SorP!$B$1:$B$6230,0))))","v":""},null,{"$f":"IF(C1987=\"\",NA(),MATCH($B1987&$C1987,'Smelter Look-up'!$J:$J,0))","v":{"$error":"#N/A"}},null,0,null,null,null,""]
[null,{"$f":"IF(LEN(A1988)=0,\"\",INDEX('Smelter Look-up'!$A:$A,MATCH($A1988,'Smelter Look-up'!$E:$E,0)))","v":""},{"$f":"IF(LEN(A1988)=0,\"\",INDEX('Smelter Look-up'!$C:$C,MATCH($A1988,'Smelter Look-up'!$E:$E,0)))","v":""},null,{"$f":"IF(ISERROR($V1988),\"\",OFFSET('Smelter Look-up'!$D$4,$V1988-4,0)&\"\")","v":""},{"$f":"IF(ISERROR($V1988),\"\",OFFSET('Smelter Look-up'!$E$4,$V1988-4,0))","v":""},{"$f":"IF(C1988=$X$4,\"Enter smelter details\", IF(ISERROR($V1988),\"\",OFFSET('Smelter Look-up'!$F$4,$V1988-4,0)))","v":""},{"$f":"IF(ISERROR($V1988),\"\",OFFSET('Smelter Look-up'!$G$4,$V1988-4,0))","v":""},{"$f":"IF(ISERROR($V1988),\"\",OFFSET('Smelter Look-up'!$H$4,$V1988-4,0))","v":""},{"$f":"IF(ISERROR($V1988),\"\",OFFSET('Smelter Look-up'!$I$4,$V1988-4,0))","v":""},{"$nulls":7},{"$f":"IF(ISERROR($V1988),\"\",OFFSET('Smelter Look-up'!$C$4,$V1988-4,0)&\"\")","v":""},"",{"$f":"IF(B1988=\"\",\"\",IF(ISERROR(MATCH($J1988,SorP!$B$1:$B$6230,0)),\"\",INDIRECT(\"'SorP'!$A$\"&MATCH($J1988,SorP!$B$1:$B$6230,0))))","v":""},null,{"$f":"IF(C1988=\"\",NA(),MATCH($B1988&$C1988,'Smelter Look-up'!$J:$J,0))","v":{"$error":"#N/A"}},null,0,null,null,null,""]
[null,{"$f":"IF(LEN(A1989)=0,\"\",INDEX('Smelter Look-up'!$A:$A,MATCH($A1989,'Smelter Look-up'!$E:$E,0)))","v":""},{"$f":"IF(LEN(A1989)=0,\"\",INDEX('Smelter Look-up'!$C:$C,MATCH($A1989,'Smelter Look-up'!$E:$E,0)))","v":""},null,{"$f":"IF(ISERROR($V1989),\"\",OFFSET('Smelter Look-up'!$D$4,$V1989-4,0)&\"\")","v":""},{"$f":"IF(ISERROR($V1989),\"\",OFFSET('Smelter Look-up'!$E$4,$V1989-4,0))","v":""},{"$f":"IF(C1989=$X$4,\"Enter smelter details\", IF(ISERROR($V1989),\"\",OFFSET('Smelter Look-up'!$F$4,$V1989-4,0)))","v":""},{"$f":"IF(ISERROR($V1989),\"\",OFFSET('Smelter Look-up'!$G$4,$V1989-4,0))","v":""},{"$f":"IF(ISERROR($V1989),\"\",OFFSET('Smelter Look-up'!$H$4,$V1989-4,0))","v":""},{"$f":"IF(ISERROR($V1989),\"\",OFFSET('Smelter Look-up'!$I$4,$V1989-4,0))","v":""},{"$nulls":7},{"$f":"IF(ISERROR($V1989),\"\",OFFSET('Smelter Look-up'!$C$4,$V1989-4,0)&\"\")","v":""},"",{"$f":"IF(B1989=\"\",\"\",IF(ISERROR(MATCH($J1989,SorP!$B$1:$B$6230,0)),\"\",INDIRECT(\"'SorP'!$A$\"&MATCH($J1989,SorP!$B$1:$B$6230,0))))","v":""},null,{"$f":"IF(C1989=\"\",NA(),MATCH($B1989&$C1989,'Smelter Look-up'!$J:$J,0))","v":{"$error":"#N/A"}},null,0,null,null,null,""]
[null,{"$f":"IF(LEN(A1990)=0,\"\",INDEX('Smelter Look-up'!$A:$A,MATCH($A1990,'Smelter Look-up'!$E:$E,0)))","v":""},{"$f":"IF(LEN(A1990)=0,\"\",INDEX('Smelter Look-up'!$C:$C,MATCH($A1990,'Smelter Look-up'!$E:$E,0)))","v":""},null,{"$f":"IF(ISERROR($V1990),\"\",OFFSET('Smelter Look-up'!$D$4,$V1990-4,0)&\"\")","v":""},{"$f":"IF(ISERROR($V1990),\"\",OFFSET('Smelter Look-up'!$E$4,$V1990-4,0))","v":""},{"$f":"IF(C1990=$X$4,\"Enter smelter details\", IF(ISERROR($V1990),\"\",OFFSET('Smelter Look-up'!$F$4,$V1990-4,0)))","v":""},{"$f":"IF(ISERROR($V1990),\"\",OFFSET('Smelter Look-up'!$G$4,$V1990-4,0))","v":""},{"$f":"IF(ISERROR($V1990),\"\",OFFSET('Smelter Look-up'!$H$4,$V1990-4,0))","v":""},{"$f":"IF(ISERROR($V1990),\"\",OFFSET('Smelter Look-up'!$I$4,$V1990-4,0))","v":""},{"$nulls":7},{"$f":"IF(ISERROR($V1990),\"\",OFFSET('Smelter Look-up'!$C$4,$V1990-4,0)&\"\")","v":""},"",{"$f":"IF(B1990=\"\",\"\",IF(ISERROR(MATCH($J1990,SorP!$B$1:$B$6230,0)),\"\",INDIRECT(\"'SorP'!$A$\"&MATCH($J1990,SorP!$B$1:$B$6230,0))))","v":""},null,{"$f":"IF(C1990=\"\",NA(),MATCH($B1990&$C1990,'Smelter Look-up'!$J:$J,0))","v":{"$error":"#N/A"}},null,0,null,null,null,""]
[null,{"$f":"IF(LEN(A1991)=0,\"\",INDEX('Smelter Look-up'!$A:$A,MATCH($A1991,'Smelter Look-up'!$E:$E,0)))","v":""},{"$f":"IF(LEN(A1991)=0,\"\",INDEX('Smelter Look-up'!$C:$C,MATCH($A1991,'Smelter Look-up'!$E:$E,0)))","v":""},null,{"$f":"IF(ISERROR($V1991),\"\",OFFSET('Smelter Look-up'!$D$4,$V1991-4,0)&\"\")","v":""},{"$f":"IF(ISERROR($V1991),\"\",OFFSET('Smelter Look-up'!$E$4,$V1991-4,0))","v":""},{"$f":"IF(C1991=$X$4,\"Enter smelter details\", IF(ISERROR($V1991),\"\",OFFSET('Smelter Look-up'!$F$4,$V1991-4,0)))","v":""},{"$f":"IF(ISERROR($V1991),\"\",OFFSET('Smelter Look-up'!$G$4,$V1991-4,0))","v":""},{"$f":"IF(ISERROR($V1991),\"\",OFFSET('Smelter Look-up'!$H$4,$V1991-4,0))","v":""},{"$f":"IF(ISERROR($V1991),\"\",OFFSET('Smelter Look-up'!$I$4,$V1991-4,0))","v":""},{"$nulls":7},{"$f":"IF(ISERROR($V1991),\"\",OFFSET('Smelter Look-up'!$C$4,$V1991-4,0)&\"\")","v":""},"",{"$f":"IF(B1991=\"\",\"\",IF(ISERROR(MATCH($J1991,SorP!$B$1:$B$6230,0)),\"\",INDIRECT(\"'SorP'!$A$\"&MATCH($J1991,SorP!$B$1:$B$6230,0))))","v":""},null,{"$f":"IF(C1991=\"\",NA(),MATCH($B1991&$C1991,'Smelter Look-up'!$J:$J,0))","v":{"$error":"#N/A"}},null,0,null,null,null,""]
[null,{"$f":"IF(LEN(A1992)=0,\"\",INDEX('Smelter Look-up'!$A:$A,MATCH($A1992,'Smelter Look-up'!$E:$E,0)))","v":""},{"$f":"IF(LEN(A1992)=0,\"\",INDEX('Smelter Look-up'!$C:$C,MATCH($A1992,'Smelter Look-up'!$E:$E,0)))","v":""},null,{"$f":"IF(ISERROR($V1992),\"\",OFFSET('Smelter Look-up'!$D$4,$V1992-4,0)&\"\")","v":""},{"$f":"IF(ISERROR($V1992),\"\",OFFSET('Smelter Look-up'!$E$4,$V1992-4,0))","v":""},{"$f":"IF(C1992=$X$4,\"Enter smelter details\", IF(ISERROR($V1992),\"\",OFFSET('Smelter Look-up'!$F$4,$V1992-4,0)))","v":""},{"$f":"IF(ISERROR($V1992),\"\",OFFSET('Smelter Look-up'!$G$4,$V1992-4,0))","v":""},{"$f":"IF(ISERROR($V1992),\"\",OFFSET('Smelter Look-up'!$H$4,$V1992-4,0))","v":""},{"$f":"IF(ISERROR($V1992),\"\",OFFSET('Smelter Look-up'!$I$4,$V1992-4,0))","v":""},{"$nulls":7},{"$f":"IF(ISERROR($V1992),\"\",OFFSET('Smelter Look-up'!$C$4,$V1992-4,0)&\"\")","v":""},"",{"$f":"IF(B1992=\"\",\"\",IF(ISERROR(MATCH($J1992,SorP!$B$1:$B$6230,0)),\"\",INDIRECT(\"'SorP'!$A$\"&MATCH($J1992,SorP!$B$1:$B$6230,0))))","v":""},null,{"$f":"IF(C1992=\"\",NA(),MATCH($B1992&$C1992,'Smelter Look-up'!$J:$J,0))","v":{"$error":"#N/A"}},null,0,null,null,null,""]
[null,{"$f":"IF(LEN(A1993)=0,\"\",INDEX('Smelter Look-up'!$A:$A,MATCH($A1993,'Smelter Look-up'!$E:$E,0)))","v":""},{"$f":"IF(LEN(A1993)=0,\"\",INDEX('Smelter Look-up'!$C:$C,MATCH($A1993,'Smelter Look-up'!$E:$E,0)))","v":""},null,{"$f":"IF(ISERROR($V1993),\"\",OFFSET('Smelter Look-up'!$D$4,$V1993-4,0)&\"\")","v":""},{"$f":"IF(ISERROR($V1993),\"\",OFFSET('Smelter Look-up'!$E$4,$V1993-4,0))","v":""},{"$f":"IF(C1993=$X$4,\"Enter smelter details\", IF(ISERROR($V1993),\"\",OFFSET('Smelter Look-up'!$F$4,$V1993-4,0)))","v":""},{"$f":"IF(ISERROR($V1993),\"\",OFFSET('Smelter Look-up'!$G$4,$V1993-4,0))","v":""},{"$f":"IF(ISERROR($V1993),\"\",OFFSET('Smelter Look-up'!$H$4,$V1993-4,0))","v":""},{"$f":"IF(ISERROR($V1993),\"\",OFFSET('Smelter Look-up'!$I$4,$V1993-4,0))","v":""},{"$nulls":7},{"$f":"IF(ISERROR($V1993),\"\",OFFSET('Smelter Look-up'!$C$4,$V1993-4,0)&\"\")","v":""},"",{"$f":"IF(B1993=\"\",\"\",IF(ISERROR(MATCH($J1993,SorP!$B$1:$B$6230,0)),\"\",INDIRECT(\"'SorP'!$A$\"&MATCH($J1993,SorP!$B$1:$B$6230,0))))","v":""},null,{"$f":"IF(C1993=\"\",NA(),MATCH($B1993&$C1993,'Smelter Look-up'!$J:$J,0))","v":{"$error":"#N/A"}},null,0,null,null,null,""]
[null,{"$f":"IF(LEN(A1994)=0,\"\",INDEX('Smelter Look-up'!$A:$A,MATCH($A1994,'Smelter Look-up'!$E:$E,0)))","v":""},{"$f":"IF(LEN(A1994)=0,\"\",INDEX('Smelter Look-up'!$C:$C,MATCH($A1994,'Smelter Look-up'!$E:$E,0)))","v":""},null,{"$f":"IF(ISERROR($V1994),\"\",OFFSET('Smelter Look-up'!$D$4,$V1994-4,0)&\"\")","v":""},{"$f":"IF(ISERROR($V1994),\"\",OFFSET('Smelter Look-up'!$E$4,$V1994-4,0))","v":""},{"$f":"IF(C1994=$X$4,\"Enter smelter details\", IF(ISERROR($V1994),\"\",OFFSET('Smelter Look-up'!$F$4,$V1994-4,0)))","v":""},{"$f":"IF(ISERROR($V1994),\"\",OFFSET('Smelter Look-up'!$G$4,$V1994-4,0))","v":""},{"$f":"IF(ISERROR($V1994),\"\",OFFSET('Smelter Look-up'!$H$4,$V1994-4,0))","v":""},{"$f":"IF(ISERROR($V1994),\"\",OFFSET('Smelter Look-up'!$I$4,$V1994-4,0))","v":""},{"$nulls":7},{"$f":"IF(ISERROR($V1994),\"\",OFFSET('Smelter Look-up'!$C$4,$V1994-4,0)&\"\")","v":""},"",{"$f":"IF(B1994=\"\",\"\",IF(ISERROR(MATCH($J1994,SorP!$B$1:$B$6230,0)),\"\",INDIRECT(\"'SorP'!$A$\"&MATCH($J1994,SorP!$B$1:$B$6230,0))))","v":""},null,{"$f":"IF(C1994=\"\",NA(),MATCH($B1994&$C1994,'Smelter Look-up'!$J:$J,0))","v":{"$error":"#N/A"}},null,0,null,null,null,""]
[null,{"$f":"IF(LEN(A1995)=0,\"\",INDEX('Smelter Look-up'!$A:$A,MATCH($A1995,'Smelter Look-up'!$E:$E,0)))","v":""},{"$f":"IF(LEN(A1995)=0,\"\",INDEX('Smelter Look-up'!$C:$C,MATCH($A1995,'Smelter Look-up'!$E:$E,0)))","v":""},null,{"$f":"IF(ISERROR($V1995),\"\",OFFSET('Smelter Look-up'!$D$4,$V1995-4,0)&\"\")","v":""},{"$f":"IF(ISERROR($V1995),\"\",OFFSET('Smelter Look-up'!$E$4,$V1995-4,0))","v":""},{"$f":"IF(C1995=$X$4,\"Enter smelter details\", IF(ISERROR($V1995),\"\",OFFSET('Smelter Look-up'!$F$4,$V1995-4,0)))","v":""},{"$f":"IF(ISERROR($V1995),\"\",OFFSET('Smelter Look-up'!$G$4,$V1995-4,0))","v":""},{"$f":"IF(ISERROR($V1995),\"\",OFFSET('Smelter Look-up'!$H$4,$V1995-4,0))","v":""},{"$f":"IF(ISERROR($V1995),\"\",OFFSET('Smelter Look-up'!$I$4,$V1995-4,0))","v":""},{"$nulls":7},{"$f":"IF(ISERROR($V1995),\"\",OFFSET('Smelter Look-up'!$C$4,$V1995-4,0)&\"\")","v":""},"",{"$f":"IF(B1995=\"\",\"\",IF(ISERROR(MATCH($J1995,SorP!$B$1:$B$6230,0)),\"\",INDIRECT(\"'SorP'!$A$\"&MATCH($J1995,SorP!$B$1:$B$6230,0))))","v":""},null,{"$f":"IF(C1995=\"\",NA(),MATCH($B1995&$C1995,'Smelter Look-up'!$J:$J,0))","v":{"$error":"#N/A"}},null,0,null,null,null,""]
[null,{"$f":"IF(LEN(A1996)=0,\"\",INDEX('Smelter Look-up'!$A:$A,MATCH($A1996,'Smelter Look-up'!$E:$E,0)))","v":""},{"$f":"IF(LEN(A1996)=0,\"\",INDEX('Smelter Look-up'!$C:$C,MATCH($A1996,'Smelter Look-up'!$E:$E,0)))","v":""},null,{"$f":"IF(ISERROR($V1996),\"\",OFFSET('Smelter Look-up'!$D$4,$V1996-4,0)&\"\")","v":""},{"$f":"IF(ISERROR($V1996),\"\",OFFSET('Smelter Look-up'!$E$4,$V1996-4,0))","v":""},{"$f":"IF(C1996=$X$4,\"Enter smelter details\", IF(ISERROR($V1996),\"\",OFFSET('Smelter Look-up'!$F$4,$V1996-4,0)))","v":""},{"$f":"IF(ISERROR($V1996),\"\",OFFSET('Smelter Look-up'!$G$4,$V1996-4,0))","v":""},{"$f":"IF(ISERROR($V1996),\"\",OFFSET('Smelter Look-up'!$H$4,$V1996-4,0))","v":""},{"$f":"IF(ISERROR($V1996),\"\",OFFSET('Smelter Look-up'!$I$4,$V1996-4,0))","v":""},{"$nulls":7},{"$f":"IF(ISERROR($V1996),\"\",OFFSET('Smelter Look-up'!$C$4,$V1996-4,0)&\"\")","v":""},"",{"$f":"IF(B1996=\"\",\"\",IF(ISERROR(MATCH($J1996,SorP!$B$1:$B$6230,0)),\"\",INDIRECT(\"'SorP'!$A$\"&MATCH($J1996,SorP!$B$1:$B$6230,0))))","v":""},null,{"$f":"IF(C1996=\"\",NA(),MATCH($B1996&$C1996,'Smelter Look-up'!$J:$J,0))","v":{"$error":"#N/A"}},null,0,null,null,null,""]
[null,{"$f":"IF(LEN(A1997)=0,\"\",INDEX('Smelter Look-up'!$A:$A,MATCH($A1997,'Smelter Look-up'!$E:$E,0)))","v":""},{"$f":"IF(LEN(A1997)=0,\"\",INDEX('Smelter Look-up'!$C:$C,MATCH($A1997,'Smelter Look-up'!$E:$E,0)))","v":""},null,{"$f":"IF(ISERROR($V1997),\"\",OFFSET('Smelter Look-up'!$D$4,$V1997-4,0)&\"\")","v":""},{"$f":"IF(ISERROR($V1997),\"\",OFFSET('Smelter Look-up'!$E$4,$V1997-4,0))","v":""},{"$f":"IF(C1997=$X$4,\"Enter smelter details\", IF(ISERROR($V1997),\"\",OFFSET('Smelter Look-up'!$F$4,$V1997-4,0)))","v":""},{"$f":"IF(ISERROR($V1997),\"\",OFFSET('Smelter Look-up'!$G$4,$V1997-4,0))","v":""},{"$f":"IF(ISERROR($V1997),\"\",OFFSET('Smelter Look-up'!$H$4,$V1997-4,0))","v":""},{"$f":"IF(ISERROR($V1997),\"\",OFFSET('Smelter Look-up'!$I$4,$V1997-4,0))","v":""},{"$nulls":7},{"$f":"IF(ISERROR($V1997),\"\",OFFSET('Smelter Look-up'!$C$4,$V1997-4,0)&\"\")","v":""},"",{"$f":"IF(B1997=\"\",\"\",IF(ISERROR(MATCH($J1997,SorP!$B$1:$B$6230,0)),\"\",INDIRECT(\"'SorP'!$A$\"&MATCH($J1997,SorP!$B$1:$B$6230,0))))","v":""},null,{"$f":"IF(C1997=\"\",NA(),MATCH($B1997&$C1997,'Smelter Look-up'!$J:$J,0))","v":{"$error":"#N/A"}},null,0,null,null,null,""]
[null,{"$f":"IF(LEN(A1998)=0,\"\",INDEX('Smelter Look-up'!$A:$A,MATCH($A1998,'Smelter Look-up'!$E:$E,0)))","v":""},{"$f":"IF(LEN(A1998)=0,\"\",INDEX('Smelter Look-up'!$C:$C,MATCH($A1998,'Smelter Look-up'!$E:$E,0)))","v":""},null,{"$f":"IF(ISERROR($V1998),\"\",OFFSET('Smelter Look-up'!$D$4,$V1998-4,0)&\"\")","v":""},{"$f":"IF(ISERROR($V1998),\"\",OFFSET('Smelter Look-up'!$E$4,$V1998-4,0))","v":""},{"$f":"IF(C1998=$X$4,\"Enter smelter details\", IF(ISERROR($V1998),\"\",OFFSET('Smelter Look-up'!$F$4,$V1998-4,0)))","v":""},{"$f":"IF(ISERROR($V1998),\"\",OFFSET('Smelter Look-up'!$G$4,$V1998-4,0))","v":""},{"$f":"IF(ISERROR($V1998),\"\",OFFSET('Smelter Look-up'!$H$4,$V1998-4,0))","v":""},{"$f":"IF(ISERROR($V1998),\"\",OFFSET('Smelter Look-up'!$I$4,$V1998-4,0))","v":""},{"$nulls":7},{"$f":"IF(ISERROR($V1998),\"\",OFFSET('Smelter Look-up'!$C$4,$V1998-4,0)&\"\")","v":""},"",{"$f":"IF(B1998=\"\",\"\",IF(ISERROR(MATCH($J1998,SorP!$B$1:$B$6230,0)),\"\",INDIRECT(\"'SorP'!$A$\"&MATCH($J1998,SorP!$B$1:$B$6230,0))))","v":""},null,{"$f":"IF(C1998=\"\",NA(),MATCH($B1998&$C1998,'Smelter Look-up'!$J:$J,0))","v":{"$error":"#N/A"}},null,0,null,null,null,""]
[null,{"$f":"IF(LEN(A1999)=0,\"\",INDEX('Smelter Look-up'!$A:$A,MATCH($A1999,'Smelter Look-up'!$E:$E,0)))","v":""},{"$f":"IF(LEN(A1999)=0,\"\",INDEX('Smelter Look-up'!$C:$C,MATCH($A1999,'Smelter Look-up'!$E:$E,0)))","v":""},null,{"$f":"IF(ISERROR($V1999),\"\",OFFSET('Smelter Look-up'!$D$4,$V1999-4,0)&\"\")","v":""},{"$f":"IF(ISERROR($V1999),\"\",OFFSET('Smelter Look-up'!$E$4,$V1999-4,0))","v":""},{"$f":"IF(C1999=$X$4,\"Enter smelter details\", IF(ISERROR($V1999),\"\",OFFSET('Smelter Look-up'!$F$4,$V1999-4,0)))","v":""},{"$f":"IF(ISERROR($V1999),\"\",OFFSET('Smelter Look-up'!$G$4,$V1999-4,0))","v":""},{"$f":"IF(ISERROR($V1999),\"\",OFFSET('Smelter Look-up'!$H$4,$V1999-4,0))","v":""},{"$f":"IF(ISERROR($V1999),\"\",OFFSET('Smelter Look-up'!$I$4,$V1999-4,0))","v":""},{"$nulls":7},{"$f":"IF(ISERROR($V1999),\"\",OFFSET('Smelter Look-up'!$C$4,$V1999-4,0)&\"\")","v":""},"",{"$f":"IF(B1999=\"\",\"\",IF(ISERROR(MATCH($J1999,SorP!$B$1:$B$6230,0)),\"\",INDIRECT(\"'SorP'!$A$\"&MATCH($J1999,SorP!$B$1:$B$6230,0))))","v":""},null,{"$f":"IF(C1999=\"\",NA(),MATCH($B1999&$C1999,'Smelter Look-up'!$J:$J,0))","v":{"$error":"#N/A"}},null,0,null,null,null,""]
[null,{"$f":"IF(LEN(A2000)=0,\"\",INDEX('Smelter Look-up'!$A:$A,MATCH($A2000,'Smelter Look-up'!$E:$E,0)))","v":""},{"$f":"IF(LEN(A2000)=0,\"\",INDEX('Smelter Look-up'!$C:$C,MATCH($A2000,'Smelter Look-up'!$E:$E,0)))","v":""},null,{"$f":"IF(ISERROR($V2000),\"\",OFFSET('Smelter Look-up'!$D$4,$V2000-4,0)&\"\")","v":""},{"$f":"IF(ISERROR($V2000),\"\",OFFSET('Smelter Look-up'!$E$4,$V2000-4,0))","v":""},{"$f":"IF(C2000=$X$4,\"Enter smelter details\", IF(ISERROR($V2000),\"\",OFFSET('Smelter Look-up'!$F$4,$V2000-4,0)))","v":""},{"$f":"IF(ISERROR($V2000),\"\",OFFSET('Smelter Look-up'!$G$4,$V2000-4,0))","v":""},{"$f":"IF(ISERROR($V2000),\"\",OFFSET('Smelter Look-up'!$H$4,$V2000-4,0))","v":""},{"$f":"IF(ISERROR($V2000),\"\",OFFSET('Smelter Look-up'!$I$4,$V2000-4,0))","v":""},{"$nulls":7},{"$f":"IF(ISERROR($V2000),\"\",OFFSET('Smelter Look-up'!$C$4,$V2000-4,0)&\"\")","v":""},"",{"$f":"IF(B2000=\"\",\"\",IF(ISERROR(MATCH($J2000,SorP!$B$1:$B$6230,0)),\"\",INDIRECT(\"'SorP'!$A$\"&MATCH($J2000,SorP!$B$1:$B$6230,0))))","v":""},null,{"$f":"IF(C2000=\"\",NA(),MATCH($B2000&$C2000,'Smelter Look-up'!$J:$J,0))","v":{"$error":"#N/A"}},null,0,null,null,null,""]
[null,{"$f":"IF(LEN(A2001)=0,\"\",INDEX('Smelter Look-up'!$A:$A,MATCH($A2001,'Smelter Look-up'!$E:$E,0)))","v":""},{"$f":"IF(LEN(A2001)=0,\"\",INDEX('Smelter Look-up'!$C:$C,MATCH($A2001,'Smelter Look-up'!$E:$E,0)))","v":""},null,{"$f":"IF(ISERROR($V2001),\"\",OFFSET('Smelter Look-up'!$D$4,$V2001-4,0)&\"\")","v":""},{"$f":"IF(ISERROR($V2001),\"\",OFFSET('Smelter Look-up'!$E$4,$V2001-4,0))","v":""},{"$f":"IF(C2001=$X$4,\"Enter smelter details\", IF(ISERROR($V2001),\"\",OFFSET('Smelter Look-up'!$F$4,$V2001-4,0)))","v":""},{"$f":"IF(ISERROR($V2001),\"\",OFFSET('Smelter Look-up'!$G$4,$V2001-4,0))","v":""},{"$f":"IF(ISERROR($V2001),\"\",OFFSET('Smelter Look-up'!$H$4,$V2001-4,0))","v":""},{"$f":"IF(ISERROR($V2001),\"\",OFFSET('Smelter Look-up'!$I$4,$V2001-4,0))","v":""},{"$nulls":7},{"$f":"IF(ISERROR($V2001),\"\",OFFSET('Smelter Look-up'!$C$4,$V2001-4,0)&\"\")","v":""},"",{"$f":"IF(B2001=\"\",\"\",IF(ISERROR(MATCH($J2001,SorP!$B$1:$B$6230,0)),\"\",INDIRECT(\"'SorP'!$A$\"&MATCH($J2001,SorP!$B$1:$B$6230,0))))","v":""},null,{"$f":"IF(C2001=\"\",NA(),MATCH($B2001&$C2001,'Smelter Look-up'!$J:$J,0))","v":{"$error":"#N/A"}},null,0,null,null,null,""]
[null,{"$f":"IF(LEN(A2002)=0,\"\",INDEX('Smelter Look-up'!$A:$A,MATCH($A2002,'Smelter Look-up'!$E:$E,0)))","v":""},{"$f":"IF(LEN(A2002)=0,\"\",INDEX('Smelter Look-up'!$C:$C,MATCH($A2002,'Smelter Look-up'!$E:$E,0)))","v":""},null,{"$f":"IF(ISERROR($V2002),\"\",OFFSET('Smelter Look-up'!$D$4,$V2002-4,0)&\"\")","v":""},{"$f":"IF(ISERROR($V2002),\"\",OFFSET('Smelter Look-up'!$E$4,$V2002-4,0))","v":""},{"$f":"IF(C2002=$X$4,\"Enter smelter details\", IF(ISERROR($V2002),\"\",OFFSET('Smelter Look-up'!$F$4,$V2002-4,0)))","v":""},{"$f":"IF(ISERROR($V2002),\"\",OFFSET('Smelter Look-up'!$G$4,$V2002-4,0))","v":""},{"$f":"IF(ISERROR($V2002),\"\",OFFSET('Smelter Look-up'!$H$4,$V2002-4,0))","v":""},{"$f":"IF(ISERROR($V2002),\"\",OFFSET('Smelter Look-up'!$I$4,$V2002-4,0))","v":""},{"$nulls":7},{"$f":"IF(ISERROR($V2002),\"\",OFFSET('Smelter Look-up'!$C$4,$V2002-4,0)&\"\")","v":""},"",{"$f":"IF(B2002=\"\",\"\",IF(ISERROR(MATCH($J2002,SorP!$B$1:$B$6230,0)),\"\",INDIRECT(\"'SorP'!$A$\"&MATCH($J2002,SorP!$B$1:$B$6230,0))))","v":""},null,{"$f":"IF(C2002=\"\",NA(),MATCH($B2002&$C2002,'Smelter Look-up'!$J:$J,0))","v":{"$error":"#N/A"}},null,0,null,null,null,""]
[null,{"$f":"IF(LEN(A2003)=0,\"\",INDEX('Smelter Look-up'!$A:$A,MATCH($A2003,'Smelter Look-up'!$E:$E,0)))","v":""},{"$f":"IF(LEN(A2003)=0,\"\",INDEX('Smelter Look-up'!$C:$C,MATCH($A2003,'Smelter Look-up'!$E:$E,0)))","v":""},null,{"$f":"IF(ISERROR($V2003),\"\",OFFSET('Smelter Look-up'!$D$4,$V2003-4,0)&\"\")","v":""},{"$f":"IF(ISERROR($V2003),\"\",OFFSET('Smelter Look-up'!$E$4,$V2003-4,0))","v":""},{"$f":"IF(C2003=$X$4,\"Enter smelter details\", IF(ISERROR($V2003),\"\",OFFSET('Smelter Look-up'!$F$4,$V2003-4,0)))","v":""},{"$f":"IF(ISERROR($V2003),\"\",OFFSET('Smelter Look-up'!$G$4,$V2003-4,0))","v":""},{"$f":"IF(ISERROR($V2003),\"\",OFFSET('Smelter Look-up'!$H$4,$V2003-4,0))","v":""},{"$f":"IF(ISERROR($V2003),\"\",OFFSET('Smelter Look-up'!$I$4,$V2003-4,0))","v":""},{"$nulls":7},{"$f":"IF(ISERROR($V2003),\"\",OFFSET('Smelter Look-up'!$C$4,$V2003-4,0)&\"\")","v":""},"",{"$f":"IF(B2003=\"\",\"\",IF(ISERROR(MATCH($J2003,SorP!$B$1:$B$6230,0)),\"\",INDIRECT(\"'SorP'!$A$\"&MATCH($J2003,SorP!$B$1:$B$6230,0))))","v":""},null,{"$f":"IF(C2003=\"\",NA(),MATCH($B2003&$C2003,'Smelter Look-up'!$J:$J,0))","v":{"$error":"#N/A"}},null,0,null,null,null,""]
[null,{"$f":"IF(LEN(A2004)=0,\"\",INDEX('Smelter Look-up'!$A:$A,MATCH($A2004,'Smelter Look-up'!$E:$E,0)))","v":""},{"$f":"IF(LEN(A2004)=0,\"\",INDEX('Smelter Look-up'!$C:$C,MATCH($A2004,'Smelter Look-up'!$E:$E,0)))","v":""},null,{"$f":"IF(ISERROR($V2004),\"\",OFFSET('Smelter Look-up'!$D$4,$V2004-4,0)&\"\")","v":""},{"$f":"IF(ISERROR($V2004),\"\",OFFSET('Smelter Look-up'!$E$4,$V2004-4,0))","v":""},{"$f":"IF(C2004=$X$4,\"Enter smelter details\", IF(ISERROR($V2004),\"\",OFFSET('Smelter Look-up'!$F$4,$V2004-4,0)))","v":""},{"$f":"IF(ISERROR($V2004),\"\",OFFSET('Smelter Look-up'!$G$4,$V2004-4,0))","v":""},{"$f":"IF(ISERROR($V2004),\"\",OFFSET('Smelter Look-up'!$H$4,$V2004-4,0))","v":""},{"$f":"IF(ISERROR($V2004),\"\",OFFSET('Smelter Look-up'!$I$4,$V2004-4,0))","v":""},{"$nulls":7},{"$f":"IF(ISERROR($V2004),\"\",OFFSET('Smelter Look-up'!$C$4,$V2004-4,0)&\"\")","v":""},"",{"$f":"IF(B2004=\"\",\"\",IF(ISERROR(MATCH($J2004,SorP!$B$1:$B$6230,0)),\"\",INDIRECT(\"'SorP'!$A$\"&MATCH($J2004,SorP!$B$1:$B$6230,0))))","v":""},null,{"$f":"IF(C2004=\"\",NA(),MATCH($B2004&$C2004,'Smelter Look-up'!$J:$J,0))","v":{"$error":"#N/A"}},null,0,null,null,null,""]
[null,{"$f":"IF(LEN(A2005)=0,\"\",INDEX('Smelter Look-up'!$A:$A,MATCH($A2005,'Smelter Look-up'!$E:$E,0)))","v":""},{"$f":"IF(LEN(A2005)=0,\"\",INDEX('Smelter Look-up'!$C:$C,MATCH($A2005,'Smelter Look-up'!$E:$E,0)))","v":""},null,{"$f":"IF(ISERROR($V2005),\"\",OFFSET('Smelter Look-up'!$D$4,$V2005-4,0)&\"\")","v":""},{"$f":"IF(ISERROR($V2005),\"\",OFFSET('Smelter Look-up'!$E$4,$V2005-4,0))","v":""},{"$f":"IF(C2005=$X$4,\"Enter smelter details\", IF(ISERROR($V2005),\"\",OFFSET('Smelter Look-up'!$F$4,$V2005-4,0)))","v":""},{"$f":"IF(ISERROR($V2005),\"\",OFFSET('Smelter Look-up'!$G$4,$V2005-4,0))","v":""},{"$f":"IF(ISERROR($V2005),\"\",OFFSET('Smelter Look-up'!$H$4,$V2005-4,0))","v":""},{"$f":"IF(ISERROR($V2005),\"\",OFFSET('Smelter Look-up'!$I$4,$V2005-4,0))","v":""},{"$nulls":7},{"$f":"IF(ISERROR($V2005),\"\",OFFSET('Smelter Look-up'!$C$4,$V2005-4,0)&\"\")","v":""},"",{"$f":"IF(B2005=\"\",\"\",IF(ISERROR(MATCH($J2005,SorP!$B$1:$B$6230,0)),\"\",INDIRECT(\"'SorP'!$A$\"&MATCH($J2005,SorP!$B$1:$B$6230,0))))","v":""},null,{"$f":"IF(C2005=\"\",NA(),MATCH($B2005&$C2005,'Smelter Look-up'!$J:$J,0))","v":{"$error":"#N/A"}},null,0,null,null,null,""]
[null,{"$f":"IF(LEN(A2006)=0,\"\",INDEX('Smelter Look-up'!$A:$A,MATCH($A2006,'Smelter Look-up'!$E:$E,0)))","v":""},{"$f":"IF(LEN(A2006)=0,\"\",INDEX('Smelter Look-up'!$C:$C,MATCH($A2006,'Smelter Look-up'!$E:$E,0)))","v":""},null,{"$f":"IF(ISERROR($V2006),\"\",OFFSET('Smelter Look-up'!$D$4,$V2006-4,0)&\"\")","v":""},{"$f":"IF(ISERROR($V2006),\"\",OFFSET('Smelter Look-up'!$E$4,$V2006-4,0))","v":""},{"$f":"IF(C2006=$X$4,\"Enter smelter details\", IF(ISERROR($V2006),\"\",OFFSET('Smelter Look-up'!$F$4,$V2006-4,0)))","v":""},{"$f":"IF(ISERROR($V2006),\"\",OFFSET('Smelter Look-up'!$G$4,$V2006-4,0))","v":""},{"$f":"IF(ISERROR($V2006),\"\",OFFSET('Smelter Look-up'!$H$4,$V2006-4,0))","v":""},{"$f":"IF(ISERROR($V2006),\"\",OFFSET('Smelter Look-up'!$I$4,$V2006-4,0))","v":""},{"$nulls":7},{"$f":"IF(ISERROR($V2006),\"\",OFFSET('Smelter Look-up'!$C$4,$V2006-4,0)&\"\")","v":""},"",{"$f":"IF(B2006=\"\",\"\",IF(ISERROR(MATCH($J2006,SorP!$B$1:$B$6230,0)),\"\",INDIRECT(\"'SorP'!$A$\"&MATCH($J2006,SorP!$B$1:$B$6230,0))))","v":""},null,{"$f":"IF(C2006=\"\",NA(),MATCH($B2006&$C2006,'Smelter Look-up'!$J:$J,0))","v":{"$error":"#N/A"}},null,0,null,null,null,""]
[null,{"$f":"IF(LEN(A2007)=0,\"\",INDEX('Smelter Look-up'!$A:$A,MATCH($A2007,'Smelter Look-up'!$E:$E,0)))","v":""},{"$f":"IF(LEN(A2007)=0,\"\",INDEX('Smelter Look-up'!$C:$C,MATCH($A2007,'Smelter Look-up'!$E:$E,0)))","v":""},null,{"$f":"IF(ISERROR($V2007),\"\",OFFSET('Smelter Look-up'!$D$4,$V2007-4,0)&\"\")","v":""},{"$f":"IF(ISERROR($V2007),\"\",OFFSET('Smelter Look-up'!$E$4,$V2007-4,0))","v":""},{"$f":"IF(C2007=$X$4,\"Enter smelter details\", IF(ISERROR($V2007),\"\",OFFSET('Smelter Look-up'!$F$4,$V2007-4,0)))","v":""},{"$f":"IF(ISERROR($V2007),\"\",OFFSET('Smelter Look-up'!$G$4,$V2007-4,0))","v":""},{"$f":"IF(ISERROR($V2007),\"\",OFFSET('Smelter Look-up'!$H$4,$V2007-4,0))","v":""},{"$f":"IF(ISERROR($V2007),\"\",OFFSET('Smelter Look-up'!$I$4,$V2007-4,0))","v":""},{"$nulls":7},{"$f":"IF(ISERROR($V2007),\"\",OFFSET('Smelter Look-up'!$C$4,$V2007-4,0)&\"\")","v":""},"",{"$f":"IF(B2007=\"\",\"\",IF(ISERROR(MATCH($J2007,SorP!$B$1:$B$6230,0)),\"\",INDIRECT(\"'SorP'!$A$\"&MATCH($J2007,SorP!$B$1:$B$6230,0))))","v":""},null,{"$f":"IF(C2007=\"\",NA(),MATCH($B2007&$C2007,'Smelter Look-up'!$J:$J,0))","v":{"$error":"#N/A"}},null,0,null,null,null,""]
[null,{"$f":"IF(LEN(A2008)=0,\"\",INDEX('Smelter Look-up'!$A:$A,MATCH($A2008,'Smelter Look-up'!$E:$E,0)))","v":""},{"$f":"IF(LEN(A2008)=0,\"\",INDEX('Smelter Look-up'!$C:$C,MATCH($A2008,'Smelter Look-up'!$E:$E,0)))","v":""},null,{"$f":"IF(ISERROR($V2008),\"\",OFFSET('Smelter Look-up'!$D$4,$V2008-4,0)&\"\")","v":""},{"$f":"IF(ISERROR($V2008),\"\",OFFSET('Smelter Look-up'!$E$4,$V2008-4,0))","v":""},{"$f":"IF(C2008=$X$4,\"Enter smelter details\", IF(ISERROR($V2008),\"\",OFFSET('Smelter Look-up'!$F$4,$V2008-4,0)))","v":""},{"$f":"IF(ISERROR($V2008),\"\",OFFSET('Smelter Look-up'!$G$4,$V2008-4,0))","v":""},{"$f":"IF(ISERROR($V2008),\"\",OFFSET('Smelter Look-up'!$H$4,$V2008-4,0))","v":""},{"$f":"IF(ISERROR($V2008),\"\",OFFSET('Smelter Look-up'!$I$4,$V2008-4,0))","v":""},{"$nulls":7},{"$f":"IF(ISERROR($V2008),\"\",OFFSET('Smelter Look-up'!$C$4,$V2008-4,0)&\"\")","v":""},"",{"$f":"IF(B2008=\"\",\"\",IF(ISERROR(MATCH($J2008,SorP!$B$1:$B$6230,0)),\"\",INDIRECT(\"'SorP'!$A$\"&MATCH($J2008,SorP!$B$1:$B$6230,0))))","v":""},null,{"$f":"IF(C2008=\"\",NA(),MATCH($B2008&$C2008,'Smelter Look-up'!$J:$J,0))","v":{"$error":"#N/A"}},null,0,null,null,null,""]
[null,{"$f":"IF(LEN(A2009)=0,\"\",INDEX('Smelter Look-up'!$A:$A,MATCH($A2009,'Smelter Look-up'!$E:$E,0)))","v":""},{"$f":"IF(LEN(A2009)=0,\"\",INDEX('Smelter Look-up'!$C:$C,MATCH($A2009,'Smelter Look-up'!$E:$E,0)))","v":""},null,{"$f":"IF(ISERROR($V2009),\"\",OFFSET('Smelter Look-up'!$D$4,$V2009-4,0)&\"\")","v":""},{"$f":"IF(ISERROR($V2009),\"\",OFFSET('Smelter Look-up'!$E$4,$V2009-4,0))","v":""},{"$f":"IF(C2009=$X$4,\"Enter smelter details\", IF(ISERROR($V2009),\"\",OFFSET('Smelter Look-up'!$F$4,$V2009-4,0)))","v":""},{"$f":"IF(ISERROR($V2009),\"\",OFFSET('Smelter Look-up'!$G$4,$V2009-4,0))","v":""},{"$f":"IF(ISERROR($V2009),\"\",OFFSET('Smelter Look-up'!$H$4,$V2009-4,0))","v":""},{"$f":"IF(ISERROR($V2009),\"\",OFFSET('Smelter Look-up'!$I$4,$V2009-4,0))","v":""},{"$nulls":7},{"$f":"IF(ISERROR($V2009),\"\",OFFSET('Smelter Look-up'!$C$4,$V2009-4,0)&\"\")","v":""},"",{"$f":"IF(B2009=\"\",\"\",IF(ISERROR(MATCH($J2009,SorP!$B$1:$B$6230,0)),\"\",INDIRECT(\"'SorP'!$A$\"&MATCH($J2009,SorP!$B$1:$B$6230,0))))","v":""},null,{"$f":"IF(C2009=\"\",NA(),MATCH($B2009&$C2009,'Smelter Look-up'!$J:$J,0))","v":{"$error":"#N/A"}},null,0,null,null,null,""]
[null,{"$f":"IF(LEN(A2010)=0,\"\",INDEX('Smelter Look-up'!$A:$A,MATCH($A2010,'Smelter Look-up'!$E:$E,0)))","v":""},{"$f":"IF(LEN(A2010)=0,\"\",INDEX('Smelter Look-up'!$C:$C,MATCH($A2010,'Smelter Look-up'!$E:$E,0)))","v":""},null,{"$f":"IF(ISERROR($V2010),\"\",OFFSET('Smelter Look-up'!$D$4,$V2010-4,0)&\"\")","v":""},{"$f":"IF(ISERROR($V2010),\"\",OFFSET('Smelter Look-up'!$E$4,$V2010-4,0))","v":""},{"$f":"IF(C2010=$X$4,\"Enter smelter details\", IF(ISERROR($V2010),\"\",OFFSET('Smelter Look-up'!$F$4,$V2010-4,0)))","v":""},{"$f":"IF(ISERROR($V2010),\"\",OFFSET('Smelter Look-up'!$G$4,$V2010-4,0))","v":""},{"$f":"IF(ISERROR($V2010),\"\",OFFSET('Smelter Look-up'!$H$4,$V2010-4,0))","v":""},{"$f":"IF(ISERROR($V2010),\"\",OFFSET('Smelter Look-up'!$I$4,$V2010-4,0))","v":""},{"$nulls":7},{"$f":"IF(ISERROR($V2010),\"\",OFFSET('Smelter Look-up'!$C$4,$V2010-4,0)&\"\")","v":""},"",{"$f":"IF(B2010=\"\",\"\",IF(ISERROR(MATCH($J2010,SorP!$B$1:$B$6230,0)),\"\",INDIRECT(\"'SorP'!$A$\"&MATCH($J2010,SorP!$B$1:$B$6230,0))))","v":""},null,{"$f":"IF(C2010=\"\",NA(),MATCH($B2010&$C2010,'Smelter Look-up'!$J:$J,0))","v":{"$error":"#N/A"}},null,0,null,null,null,""]
[null,{"$f":"IF(LEN(A2011)=0,\"\",INDEX('Smelter Look-up'!$A:$A,MATCH($A2011,'Smelter Look-up'!$E:$E,0)))","v":""},{"$f":"IF(LEN(A2011)=0,\"\",INDEX('Smelter Look-up'!$C:$C,MATCH($A2011,'Smelter Look-up'!$E:$E,0)))","v":""},null,{"$f":"IF(ISERROR($V2011),\"\",OFFSET('Smelter Look-up'!$D$4,$V2011-4,0)&\"\")","v":""},{"$f":"IF(ISERROR($V2011),\"\",OFFSET('Smelter Look-up'!$E$4,$V2011-4,0))","v":""},{"$f":"IF(C2011=$X$4,\"Enter smelter details\", IF(ISERROR($V2011),\"\",OFFSET('Smelter Look-up'!$F$4,$V2011-4,0)))","v":""},{"$f":"IF(ISERROR($V2011),\"\",OFFSET('Smelter Look-up'!$G$4,$V2011-4,0))","v":""},{"$f":"IF(ISERROR($V2011),\"\",OFFSET('Smelter Look-up'!$H$4,$V2011-4,0))","v":""},{"$f":"IF(ISERROR($V2011),\"\",OFFSET('Smelter Look-up'!$I$4,$V2011-4,0))","v":""},{"$nulls":7},{"$f":"IF(ISERROR($V2011),\"\",OFFSET('Smelter Look-up'!$C$4,$V2011-4,0)&\"\")","v":""},"",{"$f":"IF(B2011=\"\",\"\",IF(ISERROR(MATCH($J2011,SorP!$B$1:$B$6230,0)),\"\",INDIRECT(\"'SorP'!$A$\"&MATCH($J2011,SorP!$B$1:$B$6230,0))))","v":""},null,{"$f":"IF(C2011=\"\",NA(),MATCH($B2011&$C2011,'Smelter Look-up'!$J:$J,0))","v":{"$error":"#N/A"}},null,0,null,null,null,""]
[null,{"$f":"IF(LEN(A2012)=0,\"\",INDEX('Smelter Look-up'!$A:$A,MATCH($A2012,'Smelter Look-up'!$E:$E,0)))","v":""},{"$f":"IF(LEN(A2012)=0,\"\",INDEX('Smelter Look-up'!$C:$C,MATCH($A2012,'Smelter Look-up'!$E:$E,0)))","v":""},null,{"$f":"IF(ISERROR($V2012),\"\",OFFSET('Smelter Look-up'!$D$4,$V2012-4,0)&\"\")","v":""},{"$f":"IF(ISERROR($V2012),\"\",OFFSET('Smelter Look-up'!$E$4,$V2012-4,0))","v":""},{"$f":"IF(C2012=$X$4,\"Enter smelter details\", IF(ISERROR($V2012),\"\",OFFSET('Smelter Look-up'!$F$4,$V2012-4,0)))","v":""},{"$f":"IF(ISERROR($V2012),\"\",OFFSET('Smelter Look-up'!$G$4,$V2012-4,0))","v":""},{"$f":"IF(ISERROR($V2012),\"\",OFFSET('Smelter Look-up'!$H$4,$V2012-4,0))","v":""},{"$f":"IF(ISERROR($V2012),\"\",OFFSET('Smelter Look-up'!$I$4,$V2012-4,0))","v":""},{"$nulls":7},{"$f":"IF(ISERROR($V2012),\"\",OFFSET('Smelter Look-up'!$C$4,$V2012-4,0)&\"\")","v":""},"",{"$f":"IF(B2012=\"\",\"\",IF(ISERROR(MATCH($J2012,SorP!$B$1:$B$6230,0)),\"\",INDIRECT(\"'SorP'!$A$\"&MATCH($J2012,SorP!$B$1:$B$6230,0))))","v":""},null,{"$f":"IF(C2012=\"\",NA(),MATCH($B2012&$C2012,'Smelter Look-up'!$J:$J,0))","v":{"$error":"#N/A"}},null,0,null,null,null,""]
[null,{"$f":"IF(LEN(A2013)=0,\"\",INDEX('Smelter Look-up'!$A:$A,MATCH($A2013,'Smelter Look-up'!$E:$E,0)))","v":""},{"$f":"IF(LEN(A2013)=0,\"\",INDEX('Smelter Look-up'!$C:$C,MATCH($A2013,'Smelter Look-up'!$E:$E,0)))","v":""},null,{"$f":"IF(ISERROR($V2013),\"\",OFFSET('Smelter Look-up'!$D$4,$V2013-4,0)&\"\")","v":""},{"$f":"IF(ISERROR($V2013),\"\",OFFSET('Smelter Look-up'!$E$4,$V2013-4,0))","v":""},{"$f":"IF(C2013=$X$4,\"Enter smelter details\", IF(ISERROR($V2013),\"\",OFFSET('Smelter Look-up'!$F$4,$V2013-4,0)))","v":""},{"$f":"IF(ISERROR($V2013),\"\",OFFSET('Smelter Look-up'!$G$4,$V2013-4,0))","v":""},{"$f":"IF(ISERROR($V2013),\"\",OFFSET('Smelter Look-up'!$H$4,$V2013-4,0))","v":""},{"$f":"IF(ISERROR($V2013),\"\",OFFSET('Smelter Look-up'!$I$4,$V2013-4,0))","v":""},{"$nulls":7},{"$f":"IF(ISERROR($V2013),\"\",OFFSET('Smelter Look-up'!$C$4,$V2013-4,0)&\"\")","v":""},"",{"$f":"IF(B2013=\"\",\"\",IF(ISERROR(MATCH($J2013,SorP!$B$1:$B$6230,0)),\"\",INDIRECT(\"'SorP'!$A$\"&MATCH($J2013,SorP!$B$1:$B$6230,0))))","v":""},null,{"$f":"IF(C2013=\"\",NA(),MATCH($B2013&$C2013,'Smelter Look-up'!$J:$J,0))","v":{"$error":"#N/A"}},null,0,null,null,null,""]
[null,{"$f":"IF(LEN(A2014)=0,\"\",INDEX('Smelter Look-up'!$A:$A,MATCH($A2014,'Smelter Look-up'!$E:$E,0)))","v":""},{"$f":"IF(LEN(A2014)=0,\"\",INDEX('Smelter Look-up'!$C:$C,MATCH($A2014,'Smelter Look-up'!$E:$E,0)))","v":""},null,{"$f":"IF(ISERROR($V2014),\"\",OFFSET('Smelter Look-up'!$D$4,$V2014-4,0)&\"\")","v":""},{"$f":"IF(ISERROR($V2014),\"\",OFFSET('Smelter Look-up'!$E$4,$V2014-4,0))","v":""},{"$f":"IF(C2014=$X$4,\"Enter smelter details\", IF(ISERROR($V2014),\"\",OFFSET('Smelter Look-up'!$F$4,$V2014-4,0)))","v":""},{"$f":"IF(ISERROR($V2014),\"\",OFFSET('Smelter Look-up'!$G$4,$V2014-4,0))","v":""},{"$f":"IF(ISERROR($V2014),\"\",OFFSET('Smelter Look-up'!$H$4,$V2014-4,0))","v":""},{"$f":"IF(ISERROR($V2014),\"\",OFFSET('Smelter Look-up'!$I$4,$V2014-4,0))","v":""},{"$nulls":7},{"$f":"IF(ISERROR($V2014),\"\",OFFSET('Smelter Look-up'!$C$4,$V2014-4,0)&\"\")","v":""},"",{"$f":"IF(B2014=\"\",\"\",IF(ISERROR(MATCH($J2014,SorP!$B$1:$B$6230,0)),\"\",INDIRECT(\"'SorP'!$A$\"&MATCH($J2014,SorP!$B$1:$B$6230,0))))","v":""},null,{"$f":"IF(C2014=\"\",NA(),MATCH($B2014&$C2014,'Smelter Look-up'!$J:$J,0))","v":{"$error":"#N/A"}},null,0,null,null,null,""]
[null,{"$f":"IF(LEN(A2015)=0,\"\",INDEX('Smelter Look-up'!$A:$A,MATCH($A2015,'Smelter Look-up'!$E:$E,0)))","v":""},{"$f":"IF(LEN(A2015)=0,\"\",INDEX('Smelter Look-up'!$C:$C,MATCH($A2015,'Smelter Look-up'!$E:$E,0)))","v":""},null,{"$f":"IF(ISERROR($V2015),\"\",OFFSET('Smelter Look-up'!$D$4,$V2015-4,0)&\"\")","v":""},{"$f":"IF(ISERROR($V2015),\"\",OFFSET('Smelter Look-up'!$E$4,$V2015-4,0))","v":""},{"$f":"IF(C2015=$X$4,\"Enter smelter details\", IF(ISERROR($V2015),\"\",OFFSET('Smelter Look-up'!$F$4,$V2015-4,0)))","v":""},{"$f":"IF(ISERROR($V2015),\"\",OFFSET('Smelter Look-up'!$G$4,$V2015-4,0))","v":""},{"$f":"IF(ISERROR($V2015),\"\",OFFSET('Smelter Look-up'!$H$4,$V2015-4,0))","v":""},{"$f":"IF(ISERROR($V2015),\"\",OFFSET('Smelter Look-up'!$I$4,$V2015-4,0))","v":""},{"$nulls":7},{"$f":"IF(ISERROR($V2015),\"\",OFFSET('Smelter Look-up'!$C$4,$V2015-4,0)&\"\")","v":""},"",{"$f":"IF(B2015=\"\",\"\",IF(ISERROR(MATCH($J2015,SorP!$B$1:$B$6230,0)),\"\",INDIRECT(\"'SorP'!$A$\"&MATCH($J2015,SorP!$B$1:$B$6230,0))))","v":""},null,{"$f":"IF(C2015=\"\",NA(),MATCH($B2015&$C2015,'Smelter Look-up'!$J:$J,0))","v":{"$error":"#N/A"}},null,0,null,null,null,""]
[null,{"$f":"IF(LEN(A2016)=0,\"\",INDEX('Smelter Look-up'!$A:$A,MATCH($A2016,'Smelter Look-up'!$E:$E,0)))","v":""},{"$f":"IF(LEN(A2016)=0,\"\",INDEX('Smelter Look-up'!$C:$C,MATCH($A2016,'Smelter Look-up'!$E:$E,0)))","v":""},null,{"$f":"IF(ISERROR($V2016),\"\",OFFSET('Smelter Look-up'!$D$4,$V2016-4,0)&\"\")","v":""},{"$f":"IF(ISERROR($V2016),\"\",OFFSET('Smelter Look-up'!$E$4,$V2016-4,0))","v":""},{"$f":"IF(C2016=$X$4,\"Enter smelter details\", IF(ISERROR($V2016),\"\",OFFSET('Smelter Look-up'!$F$4,$V2016-4,0)))","v":""},{"$f":"IF(ISERROR($V2016),\"\",OFFSET('Smelter Look-up'!$G$4,$V2016-4,0))","v":""},{"$f":"IF(ISERROR($V2016),\"\",OFFSET('Smelter Look-up'!$H$4,$V2016-4,0))","v":""},{"$f":"IF(ISERROR($V2016),\"\",OFFSET('Smelter Look-up'!$I$4,$V2016-4,0))","v":""},{"$nulls":7},{"$f":"IF(ISERROR($V2016),\"\",OFFSET('Smelter Look-up'!$C$4,$V2016-4,0)&\"\")","v":""},"",{"$f":"IF(B2016=\"\",\"\",IF(ISERROR(MATCH($J2016,SorP!$B$1:$B$6230,0)),\"\",INDIRECT(\"'SorP'!$A$\"&MATCH($J2016,SorP!$B$1:$B$6230,0))))","v":""},null,{"$f":"IF(C2016=\"\",NA(),MATCH($B2016&$C2016,'Smelter Look-up'!$J:$J,0))","v":{"$error":"#N/A"}},null,0,null,null,null,""]
[null,{"$f":"IF(LEN(A2017)=0,\"\",INDEX('Smelter Look-up'!$A:$A,MATCH($A2017,'Smelter Look-up'!$E:$E,0)))","v":""},{"$f":"IF(LEN(A2017)=0,\"\",INDEX('Smelter Look-up'!$C:$C,MATCH($A2017,'Smelter Look-up'!$E:$E,0)))","v":""},null,{"$f":"IF(ISERROR($V2017),\"\",OFFSET('Smelter Look-up'!$D$4,$V2017-4,0)&\"\")","v":""},{"$f":"IF(ISERROR($V2017),\"\",OFFSET('Smelter Look-up'!$E$4,$V2017-4,0))","v":""},{"$f":"IF(C2017=$X$4,\"Enter smelter details\", IF(ISERROR($V2017),\"\",OFFSET('Smelter Look-up'!$F$4,$V2017-4,0)))","v":""},{"$f":"IF(ISERROR($V2017),\"\",OFFSET('Smelter Look-up'!$G$4,$V2017-4,0))","v":""},{"$f":"IF(ISERROR($V2017),\"\",OFFSET('Smelter Look-up'!$H$4,$V2017-4,0))","v":""},{"$f":"IF(ISERROR($V2017),\"\",OFFSET('Smelter Look-up'!$I$4,$V2017-4,0))","v":""},{"$nulls":7},{"$f":"IF(ISERROR($V2017),\"\",OFFSET('Smelter Look-up'!$C$4,$V2017-4,0)&\"\")","v":""},"",{"$f":"IF(B2017=\"\",\"\",IF(ISERROR(MATCH($J2017,SorP!$B$1:$B$6230,0)),\"\",INDIRECT(\"'SorP'!$A$\"&MATCH($J2017,SorP!$B$1:$B$6230,0))))","v":""},null,{"$f":"IF(C2017=\"\",NA(),MATCH($B2017&$C2017,'Smelter Look-up'!$J:$J,0))","v":{"$error":"#N/A"}},null,0,null,null,null,""]
[null,{"$f":"IF(LEN(A2018)=0,\"\",INDEX('Smelter Look-up'!$A:$A,MATCH($A2018,'Smelter Look-up'!$E:$E,0)))","v":""},{"$f":"IF(LEN(A2018)=0,\"\",INDEX('Smelter Look-up'!$C:$C,MATCH($A2018,'Smelter Look-up'!$E:$E,0)))","v":""},null,{"$f":"IF(ISERROR($V2018),\"\",OFFSET('Smelter Look-up'!$D$4,$V2018-4,0)&\"\")","v":""},{"$f":"IF(ISERROR($V2018),\"\",OFFSET('Smelter Look-up'!$E$4,$V2018-4,0))","v":""},{"$f":"IF(C2018=$X$4,\"Enter smelter details\", IF(ISERROR($V2018),\"\",OFFSET('Smelter Look-up'!$F$4,$V2018-4,0)))","v":""},{"$f":"IF(ISERROR($V2018),\"\",OFFSET('Smelter Look-up'!$G$4,$V2018-4,0))","v":""},{"$f":"IF(ISERROR($V2018),\"\",OFFSET('Smelter Look-up'!$H$4,$V2018-4,0))","v":""},{"$f":"IF(ISERROR($V2018),\"\",OFFSET('Smelter Look-up'!$I$4,$V2018-4,0))","v":""},{"$nulls":7},{"$f":"IF(ISERROR($V2018),\"\",OFFSET('Smelter Look-up'!$C$4,$V2018-4,0)&\"\")","v":""},"",{"$f":"IF(B2018=\"\",\"\",IF(ISERROR(MATCH($J2018,SorP!$B$1:$B$6230,0)),\"\",INDIRECT(\"'SorP'!$A$\"&MATCH($J2018,SorP!$B$1:$B$6230,0))))","v":""},null,{"$f":"IF(C2018=\"\",NA(),MATCH($B2018&$C2018,'Smelter Look-up'!$J:$J,0))","v":{"$error":"#N/A"}},null,0,null,null,null,""]
[null,{"$f":"IF(LEN(A2019)=0,\"\",INDEX('Smelter Look-up'!$A:$A,MATCH($A2019,'Smelter Look-up'!$E:$E,0)))","v":""},{"$f":"IF(LEN(A2019)=0,\"\",INDEX('Smelter Look-up'!$C:$C,MATCH($A2019,'Smelter Look-up'!$E:$E,0)))","v":""},null,{"$f":"IF(ISERROR($V2019),\"\",OFFSET('Smelter Look-up'!$D$4,$V2019-4,0)&\"\")","v":""},{"$f":"IF(ISERROR($V2019),\"\",OFFSET('Smelter Look-up'!$E$4,$V2019-4,0))","v":""},{"$f":"IF(C2019=$X$4,\"Enter smelter details\", IF(ISERROR($V2019),\"\",OFFSET('Smelter Look-up'!$F$4,$V2019-4,0)))","v":""},{"$f":"IF(ISERROR($V2019),\"\",OFFSET('Smelter Look-up'!$G$4,$V2019-4,0))","v":""},{"$f":"IF(ISERROR($V2019),\"\",OFFSET('Smelter Look-up'!$H$4,$V2019-4,0))","v":""},{"$f":"IF(ISERROR($V2019),\"\",OFFSET('Smelter Look-up'!$I$4,$V2019-4,0))","v":""},{"$nulls":7},{"$f":"IF(ISERROR($V2019),\"\",OFFSET('Smelter Look-up'!$C$4,$V2019-4,0)&\"\")","v":""},"",{"$f":"IF(B2019=\"\",\"\",IF(ISERROR(MATCH($J2019,SorP!$B$1:$B$6230,0)),\"\",INDIRECT(\"'SorP'!$A$\"&MATCH($J2019,SorP!$B$1:$B$6230,0))))","v":""},null,{"$f":"IF(C2019=\"\",NA(),MATCH($B2019&$C2019,'Smelter Look-up'!$J:$J,0))","v":{"$error":"#N/A"}},null,0,null,null,null,""]
[null,{"$f":"IF(LEN(A2020)=0,\"\",INDEX('Smelter Look-up'!$A:$A,MATCH($A2020,'Smelter Look-up'!$E:$E,0)))","v":""},{"$f":"IF(LEN(A2020)=0,\"\",INDEX('Smelter Look-up'!$C:$C,MATCH($A2020,'Smelter Look-up'!$E:$E,0)))","v":""},null,{"$f":"IF(ISERROR($V2020),\"\",OFFSET('Smelter Look-up'!$D$4,$V2020-4,0)&\"\")","v":""},{"$f":"IF(ISERROR($V2020),\"\",OFFSET('Smelter Look-up'!$E$4,$V2020-4,0))","v":""},{"$f":"IF(C2020=$X$4,\"Enter smelter details\", IF(ISERROR($V2020),\"\",OFFSET('Smelter Look-up'!$F$4,$V2020-4,0)))","v":""},{"$f":"IF(ISERROR($V2020),\"\",OFFSET('Smelter Look-up'!$G$4,$V2020-4,0))","v":""},{"$f":"IF(ISERROR($V2020),\"\",OFFSET('Smelter Look-up'!$H$4,$V2020-4,0))","v":""},{"$f":"IF(ISERROR($V2020),\"\",OFFSET('Smelter Look-up'!$I$4,$V2020-4,0))","v":""},{"$nulls":7},{"$f":"IF(ISERROR($V2020),\"\",OFFSET('Smelter Look-up'!$C$4,$V2020-4,0)&\"\")","v":""},"",{"$f":"IF(B2020=\"\",\"\",IF(ISERROR(MATCH($J2020,SorP!$B$1:$B$6230,0)),\"\",INDIRECT(\"'SorP'!$A$\"&MATCH($J2020,SorP!$B$1:$B$6230,0))))","v":""},null,{"$f":"IF(C2020=\"\",NA(),MATCH($B2020&$C2020,'Smelter Look-up'!$J:$J,0))","v":{"$error":"#N/A"}},null,0,null,null,null,""]
[null,{"$f":"IF(LEN(A2021)=0,\"\",INDEX('Smelter Look-up'!$A:$A,MATCH($A2021,'Smelter Look-up'!$E:$E,0)))","v":""},{"$f":"IF(LEN(A2021)=0,\"\",INDEX('Smelter Look-up'!$C:$C,MATCH($A2021,'Smelter Look-up'!$E:$E,0)))","v":""},null,{"$f":"IF(ISERROR($V2021),\"\",OFFSET('Smelter Look-up'!$D$4,$V2021-4,0)&\"\")","v":""},{"$f":"IF(ISERROR($V2021),\"\",OFFSET('Smelter Look-up'!$E$4,$V2021-4,0))","v":""},{"$f":"IF(C2021=$X$4,\"Enter smelter details\", IF(ISERROR($V2021),\"\",OFFSET('Smelter Look-up'!$F$4,$V2021-4,0)))","v":""},{"$f":"IF(ISERROR($V2021),\"\",OFFSET('Smelter Look-up'!$G$4,$V2021-4,0))","v":""},{"$f":"IF(ISERROR($V2021),\"\",OFFSET('Smelter Look-up'!$H$4,$V2021-4,0))","v":""},{"$f":"IF(ISERROR($V2021),\"\",OFFSET('Smelter Look-up'!$I$4,$V2021-4,0))","v":""},{"$nulls":7},{"$f":"IF(ISERROR($V2021),\"\",OFFSET('Smelter Look-up'!$C$4,$V2021-4,0)&\"\")","v":""},"",{"$f":"IF(B2021=\"\",\"\",IF(ISERROR(MATCH($J2021,SorP!$B$1:$B$6230,0)),\"\",INDIRECT(\"'SorP'!$A$\"&MATCH($J2021,SorP!$B$1:$B$6230,0))))","v":""},null,{"$f":"IF(C2021=\"\",NA(),MATCH($B2021&$C2021,'Smelter Look-up'!$J:$J,0))","v":{"$error":"#N/A"}},null,0,null,null,null,""]
[null,{"$f":"IF(LEN(A2022)=0,\"\",INDEX('Smelter Look-up'!$A:$A,MATCH($A2022,'Smelter Look-up'!$E:$E,0)))","v":""},{"$f":"IF(LEN(A2022)=0,\"\",INDEX('Smelter Look-up'!$C:$C,MATCH($A2022,'Smelter Look-up'!$E:$E,0)))","v":""},null,{"$f":"IF(ISERROR($V2022),\"\",OFFSET('Smelter Look-up'!$D$4,$V2022-4,0)&\"\")","v":""},{"$f":"IF(ISERROR($V2022),\"\",OFFSET('Smelter Look-up'!$E$4,$V2022-4,0))","v":""},{"$f":"IF(C2022=$X$4,\"Enter smelter details\", IF(ISERROR($V2022),\"\",OFFSET('Smelter Look-up'!$F$4,$V2022-4,0)))","v":""},{"$f":"IF(ISERROR($V2022),\"\",OFFSET('Smelter Look-up'!$G$4,$V2022-4,0))","v":""},{"$f":"IF(ISERROR($V2022),\"\",OFFSET('Smelter Look-up'!$H$4,$V2022-4,0))","v":""},{"$f":"IF(ISERROR($V2022),\"\",OFFSET('Smelter Look-up'!$I$4,$V2022-4,0))","v":""},{"$nulls":7},{"$f":"IF(ISERROR($V2022),\"\",OFFSET('Smelter Look-up'!$C$4,$V2022-4,0)&\"\")","v":""},"",{"$f":"IF(B2022=\"\",\"\",IF(ISERROR(MATCH($J2022,SorP!$B$1:$B$6230,0)),\"\",INDIRECT(\"'SorP'!$A$\"&MATCH($J2022,SorP!$B$1:$B$6230,0))))","v":""},null,{"$f":"IF(C2022=\"\",NA(),MATCH($B2022&$C2022,'Smelter Look-up'!$J:$J,0))","v":{"$error":"#N/A"}},null,0,null,null,null,""]
[null,{"$f":"IF(LEN(A2023)=0,\"\",INDEX('Smelter Look-up'!$A:$A,MATCH($A2023,'Smelter Look-up'!$E:$E,0)))","v":""},{"$f":"IF(LEN(A2023)=0,\"\",INDEX('Smelter Look-up'!$C:$C,MATCH($A2023,'Smelter Look-up'!$E:$E,0)))","v":""},null,{"$f":"IF(ISERROR($V2023),\"\",OFFSET('Smelter Look-up'!$D$4,$V2023-4,0)&\"\")","v":""},{"$f":"IF(ISERROR($V2023),\"\",OFFSET('Smelter Look-up'!$E$4,$V2023-4,0))","v":""},{"$f":"IF(C2023=$X$4,\"Enter smelter details\", IF(ISERROR($V2023),\"\",OFFSET('Smelter Look-up'!$F$4,$V2023-4,0)))","v":""},{"$f":"IF(ISERROR($V2023),\"\",OFFSET('Smelter Look-up'!$G$4,$V2023-4,0))","v":""},{"$f":"IF(ISERROR($V2023),\"\",OFFSET('Smelter Look-up'!$H$4,$V2023-4,0))","v":""},{"$f":"IF(ISERROR($V2023),\"\",OFFSET('Smelter Look-up'!$I$4,$V2023-4,0))","v":""},{"$nulls":7},{"$f":"IF(ISERROR($V2023),\"\",OFFSET('Smelter Look-up'!$C$4,$V2023-4,0)&\"\")","v":""},"",{"$f":"IF(B2023=\"\",\"\",IF(ISERROR(MATCH($J2023,SorP!$B$1:$B$6230,0)),\"\",INDIRECT(\"'SorP'!$A$\"&MATCH($J2023,SorP!$B$1:$B$6230,0))))","v":""},null,{"$f":"IF(C2023=\"\",NA(),MATCH($B2023&$C2023,'Smelter Look-up'!$J:$J,0))","v":{"$error":"#N/A"}},null,0,null,null,null,""]
[null,{"$f":"IF(LEN(A2024)=0,\"\",INDEX('Smelter Look-up'!$A:$A,MATCH($A2024,'Smelter Look-up'!$E:$E,0)))","v":""},{"$f":"IF(LEN(A2024)=0,\"\",INDEX('Smelter Look-up'!$C:$C,MATCH($A2024,'Smelter Look-up'!$E:$E,0)))","v":""},null,{"$f":"IF(ISERROR($V2024),\"\",OFFSET('Smelter Look-up'!$D$4,$V2024-4,0)&\"\")","v":""},{"$f":"IF(ISERROR($V2024),\"\",OFFSET('Smelter Look-up'!$E$4,$V2024-4,0))","v":""},{"$f":"IF(C2024=$X$4,\"Enter smelter details\", IF(ISERROR($V2024),\"\",OFFSET('Smelter Look-up'!$F$4,$V2024-4,0)))","v":""},{"$f":"IF(ISERROR($V2024),\"\",OFFSET('Smelter Look-up'!$G$4,$V2024-4,0))","v":""},{"$f":"IF(ISERROR($V2024),\"\",OFFSET('Smelter Look-up'!$H$4,$V2024-4,0))","v":""},{"$f":"IF(ISERROR($V2024),\"\",OFFSET('Smelter Look-up'!$I$4,$V2024-4,0))","v":""},{"$nulls":7},{"$f":"IF(ISERROR($V2024),\"\",OFFSET('Smelter Look-up'!$C$4,$V2024-4,0)&\"\")","v":""},"",{"$f":"IF(B2024=\"\",\"\",IF(ISERROR(MATCH($J2024,SorP!$B$1:$B$6230,0)),\"\",INDIRECT(\"'SorP'!$A$\"&MATCH($J2024,SorP!$B$1:$B$6230,0))))","v":""},null,{"$f":"IF(C2024=\"\",NA(),MATCH($B2024&$C2024,'Smelter Look-up'!$J:$J,0))","v":{"$error":"#N/A"}},null,0,null,null,null,""]
[null,{"$f":"IF(LEN(A2025)=0,\"\",INDEX('Smelter Look-up'!$A:$A,MATCH($A2025,'Smelter Look-up'!$E:$E,0)))","v":""},{"$f":"IF(LEN(A2025)=0,\"\",INDEX('Smelter Look-up'!$C:$C,MATCH($A2025,'Smelter Look-up'!$E:$E,0)))","v":""},null,{"$f":"IF(ISERROR($V2025),\"\",OFFSET('Smelter Look-up'!$D$4,$V2025-4,0)&\"\")","v":""},{"$f":"IF(ISERROR($V2025),\"\",OFFSET('Smelter Look-up'!$E$4,$V2025-4,0))","v":""},{"$f":"IF(C2025=$X$4,\"Enter smelter details\", IF(ISERROR($V2025),\"\",OFFSET('Smelter Look-up'!$F$4,$V2025-4,0)))","v":""},{"$f":"IF(ISERROR($V2025),\"\",OFFSET('Smelter Look-up'!$G$4,$V2025-4,0))","v":""},{"$f":"IF(ISERROR($V2025),\"\",OFFSET('Smelter Look-up'!$H$4,$V2025-4,0))","v":""},{"$f":"IF(ISERROR($V2025),\"\",OFFSET('Smelter Look-up'!$I$4,$V2025-4,0))","v":""},{"$nulls":7},{"$f":"IF(ISERROR($V2025),\"\",OFFSET('Smelter Look-up'!$C$4,$V2025-4,0)&\"\")","v":""},"",{"$f":"IF(B2025=\"\",\"\",IF(ISERROR(MATCH($J2025,SorP!$B$1:$B$6230,0)),\"\",INDIRECT(\"'SorP'!$A$\"&MATCH($J2025,SorP!$B$1:$B$6230,0))))","v":""},null,{"$f":"IF(C2025=\"\",NA(),MATCH($B2025&$C2025,'Smelter Look-up'!$J:$J,0))","v":{"$error":"#N/A"}},null,0,null,null,null,""]
[null,{"$f":"IF(LEN(A2026)=0,\"\",INDEX('Smelter Look-up'!$A:$A,MATCH($A2026,'Smelter Look-up'!$E:$E,0)))","v":""},{"$f":"IF(LEN(A2026)=0,\"\",INDEX('Smelter Look-up'!$C:$C,MATCH($A2026,'Smelter Look-up'!$E:$E,0)))","v":""},null,{"$f":"IF(ISERROR($V2026),\"\",OFFSET('Smelter Look-up'!$D$4,$V2026-4,0)&\"\")","v":""},{"$f":"IF(ISERROR($V2026),\"\",OFFSET('Smelter Look-up'!$E$4,$V2026-4,0))","v":""},{"$f":"IF(C2026=$X$4,\"Enter smelter details\", IF(ISERROR($V2026),\"\",OFFSET('Smelter Look-up'!$F$4,$V2026-4,0)))","v":""},{"$f":"IF(ISERROR($V2026),\"\",OFFSET('Smelter Look-up'!$G$4,$V2026-4,0))","v":""},{"$f":"IF(ISERROR($V2026),\"\",OFFSET('Smelter Look-up'!$H$4,$V2026-4,0))","v":""},{"$f":"IF(ISERROR($V2026),\"\",OFFSET('Smelter Look-up'!$I$4,$V2026-4,0))","v":""},{"$nulls":7},{"$f":"IF(ISERROR($V2026),\"\",OFFSET('Smelter Look-up'!$C$4,$V2026-4,0)&\"\")","v":""},"",{"$f":"IF(B2026=\"\",\"\",IF(ISERROR(MATCH($J2026,SorP!$B$1:$B$6230,0)),\"\",INDIRECT(\"'SorP'!$A$\"&MATCH($J2026,SorP!$B$1:$B$6230,0))))","v":""},null,{"$f":"IF(C2026=\"\",NA(),MATCH($B2026&$C2026,'Smelter Look-up'!$J:$J,0))","v":{"$error":"#N/A"}},null,0,null,null,null,""]
[null,{"$f":"IF(LEN(A2027)=0,\"\",INDEX('Smelter Look-up'!$A:$A,MATCH($A2027,'Smelter Look-up'!$E:$E,0)))","v":""},{"$f":"IF(LEN(A2027)=0,\"\",INDEX('Smelter Look-up'!$C:$C,MATCH($A2027,'Smelter Look-up'!$E:$E,0)))","v":""},null,{"$f":"IF(ISERROR($V2027),\"\",OFFSET('Smelter Look-up'!$D$4,$V2027-4,0)&\"\")","v":""},{"$f":"IF(ISERROR($V2027),\"\",OFFSET('Smelter Look-up'!$E$4,$V2027-4,0))","v":""},{"$f":"IF(C2027=$X$4,\"Enter smelter details\", IF(ISERROR($V2027),\"\",OFFSET('Smelter Look-up'!$F$4,$V2027-4,0)))","v":""},{"$f":"IF(ISERROR($V2027),\"\",OFFSET('Smelter Look-up'!$G$4,$V2027-4,0))","v":""},{"$f":"IF(ISERROR($V2027),\"\",OFFSET('Smelter Look-up'!$H$4,$V2027-4,0))","v":""},{"$f":"IF(ISERROR($V2027),\"\",OFFSET('Smelter Look-up'!$I$4,$V2027-4,0))","v":""},{"$nulls":7},{"$f":"IF(ISERROR($V2027),\"\",OFFSET('Smelter Look-up'!$C$4,$V2027-4,0)&\"\")","v":""},"",{"$f":"IF(B2027=\"\",\"\",IF(ISERROR(MATCH($J2027,SorP!$B$1:$B$6230,0)),\"\",INDIRECT(\"'SorP'!$A$\"&MATCH($J2027,SorP!$B$1:$B$6230,0))))","v":""},null,{"$f":"IF(C2027=\"\",NA(),MATCH($B2027&$C2027,'Smelter Look-up'!$J:$J,0))","v":{"$error":"#N/A"}},null,0,null,null,null,""]
[null,{"$f":"IF(LEN(A2028)=0,\"\",INDEX('Smelter Look-up'!$A:$A,MATCH($A2028,'Smelter Look-up'!$E:$E,0)))","v":""},{"$f":"IF(LEN(A2028)=0,\"\",INDEX('Smelter Look-up'!$C:$C,MATCH($A2028,'Smelter Look-up'!$E:$E,0)))","v":""},null,{"$f":"IF(ISERROR($V2028),\"\",OFFSET('Smelter Look-up'!$D$4,$V2028-4,0)&\"\")","v":""},{"$f":"IF(ISERROR($V2028),\"\",OFFSET('Smelter Look-up'!$E$4,$V2028-4,0))","v":""},{"$f":"IF(C2028=$X$4,\"Enter smelter details\", IF(ISERROR($V2028),\"\",OFFSET('Smelter Look-up'!$F$4,$V2028-4,0)))","v":""},{"$f":"IF(ISERROR($V2028),\"\",OFFSET('Smelter Look-up'!$G$4,$V2028-4,0))","v":""},{"$f":"IF(ISERROR($V2028),\"\",OFFSET('Smelter Look-up'!$H$4,$V2028-4,0))","v":""},{"$f":"IF(ISERROR($V2028),\"\",OFFSET('Smelter Look-up'!$I$4,$V2028-4,0))","v":""},{"$nulls":7},{"$f":"IF(ISERROR($V2028),\"\",OFFSET('Smelter Look-up'!$C$4,$V2028-4,0)&\"\")","v":""},"",{"$f":"IF(B2028=\"\",\"\",IF(ISERROR(MATCH($J2028,SorP!$B$1:$B$6230,0)),\"\",INDIRECT(\"'SorP'!$A$\"&MATCH($J2028,SorP!$B$1:$B$6230,0))))","v":""},null,{"$f":"IF(C2028=\"\",NA(),MATCH($B2028&$C2028,'Smelter Look-up'!$J:$J,0))","v":{"$error":"#N/A"}},null,0,null,null,null,""]
[null,{"$f":"IF(LEN(A2029)=0,\"\",INDEX('Smelter Look-up'!$A:$A,MATCH($A2029,'Smelter Look-up'!$E:$E,0)))","v":""},{"$f":"IF(LEN(A2029)=0,\"\",INDEX('Smelter Look-up'!$C:$C,MATCH($A2029,'Smelter Look-up'!$E:$E,0)))","v":""},null,{"$f":"IF(ISERROR($V2029),\"\",OFFSET('Smelter Look-up'!$D$4,$V2029-4,0)&\"\")","v":""},{"$f":"IF(ISERROR($V2029),\"\",OFFSET('Smelter Look-up'!$E$4,$V2029-4,0))","v":""},{"$f":"IF(C2029=$X$4,\"Enter smelter details\", IF(ISERROR($V2029),\"\",OFFSET('Smelter Look-up'!$F$4,$V2029-4,0)))","v":""},{"$f":"IF(ISERROR($V2029),\"\",OFFSET('Smelter Look-up'!$G$4,$V2029-4,0))","v":""},{"$f":"IF(ISERROR($V2029),\"\",OFFSET('Smelter Look-up'!$H$4,$V2029-4,0))","v":""},{"$f":"IF(ISERROR($V2029),\"\",OFFSET('Smelter Look-up'!$I$4,$V2029-4,0))","v":""},{"$nulls":7},{"$f":"IF(ISERROR($V2029),\"\",OFFSET('Smelter Look-up'!$C$4,$V2029-4,0)&\"\")","v":""},"",{"$f":"IF(B2029=\"\",\"\",IF(ISERROR(MATCH($J2029,SorP!$B$1:$B$6230,0)),\"\",INDIRECT(\"'SorP'!$A$\"&MATCH($J2029,SorP!$B$1:$B$6230,0))))","v":""},null,{"$f":"IF(C2029=\"\",NA(),MATCH($B2029&$C2029,'Smelter Look-up'!$J:$J,0))","v":{"$error":"#N/A"}},null,0,null,null,null,""]
[null,{"$f":"IF(LEN(A2030)=0,\"\",INDEX('Smelter Look-up'!$A:$A,MATCH($A2030,'Smelter Look-up'!$E:$E,0)))","v":""},{"$f":"IF(LEN(A2030)=0,\"\",INDEX('Smelter Look-up'!$C:$C,MATCH($A2030,'Smelter Look-up'!$E:$E,0)))","v":""},null,{"$f":"IF(ISERROR($V2030),\"\",OFFSET('Smelter Look-up'!$D$4,$V2030-4,0)&\"\")","v":""},{"$f":"IF(ISERROR($V2030),\"\",OFFSET('Smelter Look-up'!$E$4,$V2030-4,0))","v":""},{"$f":"IF(C2030=$X$4,\"Enter smelter details\", IF(ISERROR($V2030),\"\",OFFSET('Smelter Look-up'!$F$4,$V2030-4,0)))","v":""},{"$f":"IF(ISERROR($V2030),\"\",OFFSET('Smelter Look-up'!$G$4,$V2030-4,0))","v":""},{"$f":"IF(ISERROR($V2030),\"\",OFFSET('Smelter Look-up'!$H$4,$V2030-4,0))","v":""},{"$f":"IF(ISERROR($V2030),\"\",OFFSET('Smelter Look-up'!$I$4,$V2030-4,0))","v":""},{"$nulls":7},{"$f":"IF(ISERROR($V2030),\"\",OFFSET('Smelter Look-up'!$C$4,$V2030-4,0)&\"\")","v":""},"",{"$f":"IF(B2030=\"\",\"\",IF(ISERROR(MATCH($J2030,SorP!$B$1:$B$6230,0)),\"\",INDIRECT(\"'SorP'!$A$\"&MATCH($J2030,SorP!$B$1:$B$6230,0))))","v":""},null,{"$f":"IF(C2030=\"\",NA(),MATCH($B2030&$C2030,'Smelter Look-up'!$J:$J,0))","v":{"$error":"#N/A"}},null,0,null,null,null,""]
[null,{"$f":"IF(LEN(A2031)=0,\"\",INDEX('Smelter Look-up'!$A:$A,MATCH($A2031,'Smelter Look-up'!$E:$E,0)))","v":""},{"$f":"IF(LEN(A2031)=0,\"\",INDEX('Smelter Look-up'!$C:$C,MATCH($A2031,'Smelter Look-up'!$E:$E,0)))","v":""},null,{"$f":"IF(ISERROR($V2031),\"\",OFFSET('Smelter Look-up'!$D$4,$V2031-4,0)&\"\")","v":""},{"$f":"IF(ISERROR($V2031),\"\",OFFSET('Smelter Look-up'!$E$4,$V2031-4,0))","v":""},{"$f":"IF(C2031=$X$4,\"Enter smelter details\", IF(ISERROR($V2031),\"\",OFFSET('Smelter Look-up'!$F$4,$V2031-4,0)))","v":""},{"$f":"IF(ISERROR($V2031),\"\",OFFSET('Smelter Look-up'!$G$4,$V2031-4,0))","v":""},{"$f":"IF(ISERROR($V2031),\"\",OFFSET('Smelter Look-up'!$H$4,$V2031-4,0))","v":""},{"$f":"IF(ISERROR($V2031),\"\",OFFSET('Smelter Look-up'!$I$4,$V2031-4,0))","v":""},{"$nulls":7},{"$f":"IF(ISERROR($V2031),\"\",OFFSET('Smelter Look-up'!$C$4,$V2031-4,0)&\"\")","v":""},"",{"$f":"IF(B2031=\"\",\"\",IF(ISERROR(MATCH($J2031,SorP!$B$1:$B$6230,0)),\"\",INDIRECT(\"'SorP'!$A$\"&MATCH($J2031,SorP!$B$1:$B$6230,0))))","v":""},null,{"$f":"IF(C2031=\"\",NA(),MATCH($B2031&$C2031,'Smelter Look-up'!$J:$J,0))","v":{"$error":"#N/A"}},null,0,null,null,null,""]
[null,{"$f":"IF(LEN(A2032)=0,\"\",INDEX('Smelter Look-up'!$A:$A,MATCH($A2032,'Smelter Look-up'!$E:$E,0)))","v":""},{"$f":"IF(LEN(A2032)=0,\"\",INDEX('Smelter Look-up'!$C:$C,MATCH($A2032,'Smelter Look-up'!$E:$E,0)))","v":""},null,{"$f":"IF(ISERROR($V2032),\"\",OFFSET('Smelter Look-up'!$D$4,$V2032-4,0)&\"\")","v":""},{"$f":"IF(ISERROR($V2032),\"\",OFFSET('Smelter Look-up'!$E$4,$V2032-4,0))","v":""},{"$f":"IF(C2032=$X$4,\"Enter smelter details\", IF(ISERROR($V2032),\"\",OFFSET('Smelter Look-up'!$F$4,$V2032-4,0)))","v":""},{"$f":"IF(ISERROR($V2032),\"\",OFFSET('Smelter Look-up'!$G$4,$V2032-4,0))","v":""},{"$f":"IF(ISERROR($V2032),\"\",OFFSET('Smelter Look-up'!$H$4,$V2032-4,0))","v":""},{"$f":"IF(ISERROR($V2032),\"\",OFFSET('Smelter Look-up'!$I$4,$V2032-4,0))","v":""},{"$nulls":7},{"$f":"IF(ISERROR($V2032),\"\",OFFSET('Smelter Look-up'!$C$4,$V2032-4,0)&\"\")","v":""},"",{"$f":"IF(B2032=\"\",\"\",IF(ISERROR(MATCH($J2032,SorP!$B$1:$B$6230,0)),\"\",INDIRECT(\"'SorP'!$A$\"&MATCH($J2032,SorP!$B$1:$B$6230,0))))","v":""},null,{"$f":"IF(C2032=\"\",NA(),MATCH($B2032&$C2032,'Smelter Look-up'!$J:$J,0))","v":{"$error":"#N/A"}},null,0,null,null,null,""]
[null,{"$f":"IF(LEN(A2033)=0,\"\",INDEX('Smelter Look-up'!$A:$A,MATCH($A2033,'Smelter Look-up'!$E:$E,0)))","v":""},{"$f":"IF(LEN(A2033)=0,\"\",INDEX('Smelter Look-up'!$C:$C,MATCH($A2033,'Smelter Look-up'!$E:$E,0)))","v":""},null,{"$f":"IF(ISERROR($V2033),\"\",OFFSET('Smelter Look-up'!$D$4,$V2033-4,0)&\"\")","v":""},{"$f":"IF(ISERROR($V2033),\"\",OFFSET('Smelter Look-up'!$E$4,$V2033-4,0))","v":""},{"$f":"IF(C2033=$X$4,\"Enter smelter details\", IF(ISERROR($V2033),\"\",OFFSET('Smelter Look-up'!$F$4,$V2033-4,0)))","v":""},{"$f":"IF(ISERROR($V2033),\"\",OFFSET('Smelter Look-up'!$G$4,$V2033-4,0))","v":""},{"$f":"IF(ISERROR($V2033),\"\",OFFSET('Smelter Look-up'!$H$4,$V2033-4,0))","v":""},{"$f":"IF(ISERROR($V2033),\"\",OFFSET('Smelter Look-up'!$I$4,$V2033-4,0))","v":""},{"$nulls":7},{"$f":"IF(ISERROR($V2033),\"\",OFFSET('Smelter Look-up'!$C$4,$V2033-4,0)&\"\")","v":""},"",{"$f":"IF(B2033=\"\",\"\",IF(ISERROR(MATCH($J2033,SorP!$B$1:$B$6230,0)),\"\",INDIRECT(\"'SorP'!$A$\"&MATCH($J2033,SorP!$B$1:$B$6230,0))))","v":""},null,{"$f":"IF(C2033=\"\",NA(),MATCH($B2033&$C2033,'Smelter Look-up'!$J:$J,0))","v":{"$error":"#N/A"}},null,0,null,null,null,""]
[null,{"$f":"IF(LEN(A2034)=0,\"\",INDEX('Smelter Look-up'!$A:$A,MATCH($A2034,'Smelter Look-up'!$E:$E,0)))","v":""},{"$f":"IF(LEN(A2034)=0,\"\",INDEX('Smelter Look-up'!$C:$C,MATCH($A2034,'Smelter Look-up'!$E:$E,0)))","v":""},null,{"$f":"IF(ISERROR($V2034),\"\",OFFSET('Smelter Look-up'!$D$4,$V2034-4,0)&\"\")","v":""},{"$f":"IF(ISERROR($V2034),\"\",OFFSET('Smelter Look-up'!$E$4,$V2034-4,0))","v":""},{"$f":"IF(C2034=$X$4,\"Enter smelter details\", IF(ISERROR($V2034),\"\",OFFSET('Smelter Look-up'!$F$4,$V2034-4,0)))","v":""},{"$f":"IF(ISERROR($V2034),\"\",OFFSET('Smelter Look-up'!$G$4,$V2034-4,0))","v":""},{"$f":"IF(ISERROR($V2034),\"\",OFFSET('Smelter Look-up'!$H$4,$V2034-4,0))","v":""},{"$f":"IF(ISERROR($V2034),\"\",OFFSET('Smelter Look-up'!$I$4,$V2034-4,0))","v":""},{"$nulls":7},{"$f":"IF(ISERROR($V2034),\"\",OFFSET('Smelter Look-up'!$C$4,$V2034-4,0)&\"\")","v":""},"",{"$f":"IF(B2034=\"\",\"\",IF(ISERROR(MATCH($J2034,SorP!$B$1:$B$6230,0)),\"\",INDIRECT(\"'SorP'!$A$\"&MATCH($J2034,SorP!$B$1:$B$6230,0))))","v":""},null,{"$f":"IF(C2034=\"\",NA(),MATCH($B2034&$C2034,'Smelter Look-up'!$J:$J,0))","v":{"$error":"#N/A"}},null,0,null,null,null,""]
[null,{"$f":"IF(LEN(A2035)=0,\"\",INDEX('Smelter Look-up'!$A:$A,MATCH($A2035,'Smelter Look-up'!$E:$E,0)))","v":""},{"$f":"IF(LEN(A2035)=0,\"\",INDEX('Smelter Look-up'!$C:$C,MATCH($A2035,'Smelter Look-up'!$E:$E,0)))","v":""},null,{"$f":"IF(ISERROR($V2035),\"\",OFFSET('Smelter Look-up'!$D$4,$V2035-4,0)&\"\")","v":""},{"$f":"IF(ISERROR($V2035),\"\",OFFSET('Smelter Look-up'!$E$4,$V2035-4,0))","v":""},{"$f":"IF(C2035=$X$4,\"Enter smelter details\", IF(ISERROR($V2035),\"\",OFFSET('Smelter Look-up'!$F$4,$V2035-4,0)))","v":""},{"$f":"IF(ISERROR($V2035),\"\",OFFSET('Smelter Look-up'!$G$4,$V2035-4,0))","v":""},{"$f":"IF(ISERROR($V2035),\"\",OFFSET('Smelter Look-up'!$H$4,$V2035-4,0))","v":""},{"$f":"IF(ISERROR($V2035),\"\",OFFSET('Smelter Look-up'!$I$4,$V2035-4,0))","v":""},{"$nulls":7},{"$f":"IF(ISERROR($V2035),\"\",OFFSET('Smelter Look-up'!$C$4,$V2035-4,0)&\"\")","v":""},"",{"$f":"IF(B2035=\"\",\"\",IF(ISERROR(MATCH($J2035,SorP!$B$1:$B$6230,0)),\"\",INDIRECT(\"'SorP'!$A$\"&MATCH($J2035,SorP!$B$1:$B$6230,0))))","v":""},null,{"$f":"IF(C2035=\"\",NA(),MATCH($B2035&$C2035,'Smelter Look-up'!$J:$J,0))","v":{"$error":"#N/A"}},null,0,null,null,null,""]
[null,{"$f":"IF(LEN(A2036)=0,\"\",INDEX('Smelter Look-up'!$A:$A,MATCH($A2036,'Smelter Look-up'!$E:$E,0)))","v":""},{"$f":"IF(LEN(A2036)=0,\"\",INDEX('Smelter Look-up'!$C:$C,MATCH($A2036,'Smelter Look-up'!$E:$E,0)))","v":""},null,{"$f":"IF(ISERROR($V2036),\"\",OFFSET('Smelter Look-up'!$D$4,$V2036-4,0)&\"\")","v":""},{"$f":"IF(ISERROR($V2036),\"\",OFFSET('Smelter Look-up'!$E$4,$V2036-4,0))","v":""},{"$f":"IF(C2036=$X$4,\"Enter smelter details\", IF(ISERROR($V2036),\"\",OFFSET('Smelter Look-up'!$F$4,$V2036-4,0)))","v":""},{"$f":"IF(ISERROR($V2036),\"\",OFFSET('Smelter Look-up'!$G$4,$V2036-4,0))","v":""},{"$f":"IF(ISERROR($V2036),\"\",OFFSET('Smelter Look-up'!$H$4,$V2036-4,0))","v":""},{"$f":"IF(ISERROR($V2036),\"\",OFFSET('Smelter Look-up'!$I$4,$V2036-4,0))","v":""},{"$nulls":7},{"$f":"IF(ISERROR($V2036),\"\",OFFSET('Smelter Look-up'!$C$4,$V2036-4,0)&\"\")","v":""},"",{"$f":"IF(B2036=\"\",\"\",IF(ISERROR(MATCH($J2036,SorP!$B$1:$B$6230,0)),\"\",INDIRECT(\"'SorP'!$A$\"&MATCH($J2036,SorP!$B$1:$B$6230,0))))","v":""},null,{"$f":"IF(C2036=\"\",NA(),MATCH($B2036&$C2036,'Smelter Look-up'!$J:$J,0))","v":{"$error":"#N/A"}},null,0,null,null,null,""]
[null,{"$f":"IF(LEN(A2037)=0,\"\",INDEX('Smelter Look-up'!$A:$A,MATCH($A2037,'Smelter Look-up'!$E:$E,0)))","v":""},{"$f":"IF(LEN(A2037)=0,\"\",INDEX('Smelter Look-up'!$C:$C,MATCH($A2037,'Smelter Look-up'!$E:$E,0)))","v":""},null,{"$f":"IF(ISERROR($V2037),\"\",OFFSET('Smelter Look-up'!$D$4,$V2037-4,0)&\"\")","v":""},{"$f":"IF(ISERROR($V2037),\"\",OFFSET('Smelter Look-up'!$E$4,$V2037-4,0))","v":""},{"$f":"IF(C2037=$X$4,\"Enter smelter details\", IF(ISERROR($V2037),\"\",OFFSET('Smelter Look-up'!$F$4,$V2037-4,0)))","v":""},{"$f":"IF(ISERROR($V2037),\"\",OFFSET('Smelter Look-up'!$G$4,$V2037-4,0))","v":""},{"$f":"IF(ISERROR($V2037),\"\",OFFSET('Smelter Look-up'!$H$4,$V2037-4,0))","v":""},{"$f":"IF(ISERROR($V2037),\"\",OFFSET('Smelter Look-up'!$I$4,$V2037-4,0))","v":""},{"$nulls":7},{"$f":"IF(ISERROR($V2037),\"\",OFFSET('Smelter Look-up'!$C$4,$V2037-4,0)&\"\")","v":""},"",{"$f":"IF(B2037=\"\",\"\",IF(ISERROR(MATCH($J2037,SorP!$B$1:$B$6230,0)),\"\",INDIRECT(\"'SorP'!$A$\"&MATCH($J2037,SorP!$B$1:$B$6230,0))))","v":""},null,{"$f":"IF(C2037=\"\",NA(),MATCH($B2037&$C2037,'Smelter Look-up'!$J:$J,0))","v":{"$error":"#N/A"}},null,0,null,null,null,""]
[null,{"$f":"IF(LEN(A2038)=0,\"\",INDEX('Smelter Look-up'!$A:$A,MATCH($A2038,'Smelter Look-up'!$E:$E,0)))","v":""},{"$f":"IF(LEN(A2038)=0,\"\",INDEX('Smelter Look-up'!$C:$C,MATCH($A2038,'Smelter Look-up'!$E:$E,0)))","v":""},null,{"$f":"IF(ISERROR($V2038),\"\",OFFSET('Smelter Look-up'!$D$4,$V2038-4,0)&\"\")","v":""},{"$f":"IF(ISERROR($V2038),\"\",OFFSET('Smelter Look-up'!$E$4,$V2038-4,0))","v":""},{"$f":"IF(C2038=$X$4,\"Enter smelter details\", IF(ISERROR($V2038),\"\",OFFSET('Smelter Look-up'!$F$4,$V2038-4,0)))","v":""},{"$f":"IF(ISERROR($V2038),\"\",OFFSET('Smelter Look-up'!$G$4,$V2038-4,0))","v":""},{"$f":"IF(ISERROR($V2038),\"\",OFFSET('Smelter Look-up'!$H$4,$V2038-4,0))","v":""},{"$f":"IF(ISERROR($V2038),\"\",OFFSET('Smelter Look-up'!$I$4,$V2038-4,0))","v":""},{"$nulls":7},{"$f":"IF(ISERROR($V2038),\"\",OFFSET('Smelter Look-up'!$C$4,$V2038-4,0)&\"\")","v":""},"",{"$f":"IF(B2038=\"\",\"\",IF(ISERROR(MATCH($J2038,SorP!$B$1:$B$6230,0)),\"\",INDIRECT(\"'SorP'!$A$\"&MATCH($J2038,SorP!$B$1:$B$6230,0))))","v":""},null,{"$f":"IF(C2038=\"\",NA(),MATCH($B2038&$C2038,'Smelter Look-up'!$J:$J,0))","v":{"$error":"#N/A"}},null,0,null,null,null,""]
[null,{"$f":"IF(LEN(A2039)=0,\"\",INDEX('Smelter Look-up'!$A:$A,MATCH($A2039,'Smelter Look-up'!$E:$E,0)))","v":""},{"$f":"IF(LEN(A2039)=0,\"\",INDEX('Smelter Look-up'!$C:$C,MATCH($A2039,'Smelter Look-up'!$E:$E,0)))","v":""},null,{"$f":"IF(ISERROR($V2039),\"\",OFFSET('Smelter Look-up'!$D$4,$V2039-4,0)&\"\")","v":""},{"$f":"IF(ISERROR($V2039),\"\",OFFSET('Smelter Look-up'!$E$4,$V2039-4,0))","v":""},{"$f":"IF(C2039=$X$4,\"Enter smelter details\", IF(ISERROR($V2039),\"\",OFFSET('Smelter Look-up'!$F$4,$V2039-4,0)))","v":""},{"$f":"IF(ISERROR($V2039),\"\",OFFSET('Smelter Look-up'!$G$4,$V2039-4,0))","v":""},{"$f":"IF(ISERROR($V2039),\"\",OFFSET('Smelter Look-up'!$H$4,$V2039-4,0))","v":""},{"$f":"IF(ISERROR($V2039),\"\",OFFSET('Smelter Look-up'!$I$4,$V2039-4,0))","v":""},{"$nulls":7},{"$f":"IF(ISERROR($V2039),\"\",OFFSET('Smelter Look-up'!$C$4,$V2039-4,0)&\"\")","v":""},"",{"$f":"IF(B2039=\"\",\"\",IF(ISERROR(MATCH($J2039,SorP!$B$1:$B$6230,0)),\"\",INDIRECT(\"'SorP'!$A$\"&MATCH($J2039,SorP!$B$1:$B$6230,0))))","v":""},null,{"$f":"IF(C2039=\"\",NA(),MATCH($B2039&$C2039,'Smelter Look-up'!$J:$J,0))","v":{"$error":"#N/A"}},null,0,null,null,null,""]
[null,{"$f":"IF(LEN(A2040)=0,\"\",INDEX('Smelter Look-up'!$A:$A,MATCH($A2040,'Smelter Look-up'!$E:$E,0)))","v":""},{"$f":"IF(LEN(A2040)=0,\"\",INDEX('Smelter Look-up'!$C:$C,MATCH($A2040,'Smelter Look-up'!$E:$E,0)))","v":""},null,{"$f":"IF(ISERROR($V2040),\"\",OFFSET('Smelter Look-up'!$D$4,$V2040-4,0)&\"\")","v":""},{"$f":"IF(ISERROR($V2040),\"\",OFFSET('Smelter Look-up'!$E$4,$V2040-4,0))","v":""},{"$f":"IF(C2040=$X$4,\"Enter smelter details\", IF(ISERROR($V2040),\"\",OFFSET('Smelter Look-up'!$F$4,$V2040-4,0)))","v":""},{"$f":"IF(ISERROR($V2040),\"\",OFFSET('Smelter Look-up'!$G$4,$V2040-4,0))","v":""},{"$f":"IF(ISERROR($V2040),\"\",OFFSET('Smelter Look-up'!$H$4,$V2040-4,0))","v":""},{"$f":"IF(ISERROR($V2040),\"\",OFFSET('Smelter Look-up'!$I$4,$V2040-4,0))","v":""},{"$nulls":7},{"$f":"IF(ISERROR($V2040),\"\",OFFSET('Smelter Look-up'!$C$4,$V2040-4,0)&\"\")","v":""},"",{"$f":"IF(B2040=\"\",\"\",IF(ISERROR(MATCH($J2040,SorP!$B$1:$B$6230,0)),\"\",INDIRECT(\"'SorP'!$A$\"&MATCH($J2040,SorP!$B$1:$B$6230,0))))","v":""},null,{"$f":"IF(C2040=\"\",NA(),MATCH($B2040&$C2040,'Smelter Look-up'!$J:$J,0))","v":{"$error":"#N/A"}},null,0,null,null,null,""]
[null,{"$f":"IF(LEN(A2041)=0,\"\",INDEX('Smelter Look-up'!$A:$A,MATCH($A2041,'Smelter Look-up'!$E:$E,0)))","v":""},{"$f":"IF(LEN(A2041)=0,\"\",INDEX('Smelter Look-up'!$C:$C,MATCH($A2041,'Smelter Look-up'!$E:$E,0)))","v":""},null,{"$f":"IF(ISERROR($V2041),\"\",OFFSET('Smelter Look-up'!$D$4,$V2041-4,0)&\"\")","v":""},{"$f":"IF(ISERROR($V2041),\"\",OFFSET('Smelter Look-up'!$E$4,$V2041-4,0))","v":""},{"$f":"IF(C2041=$X$4,\"Enter smelter details\", IF(ISERROR($V2041),\"\",OFFSET('Smelter Look-up'!$F$4,$V2041-4,0)))","v":""},{"$f":"IF(ISERROR($V2041),\"\",OFFSET('Smelter Look-up'!$G$4,$V2041-4,0))","v":""},{"$f":"IF(ISERROR($V2041),\"\",OFFSET('Smelter Look-up'!$H$4,$V2041-4,0))","v":""},{"$f":"IF(ISERROR($V2041),\"\",OFFSET('Smelter Look-up'!$I$4,$V2041-4,0))","v":""},{"$nulls":7},{"$f":"IF(ISERROR($V2041),\"\",OFFSET('Smelter Look-up'!$C$4,$V2041-4,0)&\"\")","v":""},"",{"$f":"IF(B2041=\"\",\"\",IF(ISERROR(MATCH($J2041,SorP!$B$1:$B$6230,0)),\"\",INDIRECT(\"'SorP'!$A$\"&MATCH($J2041,SorP!$B$1:$B$6230,0))))","v":""},null,{"$f":"IF(C2041=\"\",NA(),MATCH($B2041&$C2041,'Smelter Look-up'!$J:$J,0))","v":{"$error":"#N/A"}},null,0,null,null,null,""]
[null,{"$f":"IF(LEN(A2042)=0,\"\",INDEX('Smelter Look-up'!$A:$A,MATCH($A2042,'Smelter Look-up'!$E:$E,0)))","v":""},{"$f":"IF(LEN(A2042)=0,\"\",INDEX('Smelter Look-up'!$C:$C,MATCH($A2042,'Smelter Look-up'!$E:$E,0)))","v":""},null,{"$f":"IF(ISERROR($V2042),\"\",OFFSET('Smelter Look-up'!$D$4,$V2042-4,0)&\"\")","v":""},{"$f":"IF(ISERROR($V2042),\"\",OFFSET('Smelter Look-up'!$E$4,$V2042-4,0))","v":""},{"$f":"IF(C2042=$X$4,\"Enter smelter details\", IF(ISERROR($V2042),\"\",OFFSET('Smelter Look-up'!$F$4,$V2042-4,0)))","v":""},{"$f":"IF(ISERROR($V2042),\"\",OFFSET('Smelter Look-up'!$G$4,$V2042-4,0))","v":""},{"$f":"IF(ISERROR($V2042),\"\",OFFSET('Smelter Look-up'!$H$4,$V2042-4,0))","v":""},{"$f":"IF(ISERROR($V2042),\"\",OFFSET('Smelter Look-up'!$I$4,$V2042-4,0))","v":""},{"$nulls":7},{"$f":"IF(ISERROR($V2042),\"\",OFFSET('Smelter Look-up'!$C$4,$V2042-4,0)&\"\")","v":""},"",{"$f":"IF(B2042=\"\",\"\",IF(ISERROR(MATCH($J2042,SorP!$B$1:$B$6230,0)),\"\",INDIRECT(\"'SorP'!$A$\"&MATCH($J2042,SorP!$B$1:$B$6230,0))))","v":""},null,{"$f":"IF(C2042=\"\",NA(),MATCH($B2042&$C2042,'Smelter Look-up'!$J:$J,0))","v":{"$error":"#N/A"}},null,0,null,null,null,""]
[null,{"$f":"IF(LEN(A2043)=0,\"\",INDEX('Smelter Look-up'!$A:$A,MATCH($A2043,'Smelter Look-up'!$E:$E,0)))","v":""},{"$f":"IF(LEN(A2043)=0,\"\",INDEX('Smelter Look-up'!$C:$C,MATCH($A2043,'Smelter Look-up'!$E:$E,0)))","v":""},null,{"$f":"IF(ISERROR($V2043),\"\",OFFSET('Smelter Look-up'!$D$4,$V2043-4,0)&\"\")","v":""},{"$f":"IF(ISERROR($V2043),\"\",OFFSET('Smelter Look-up'!$E$4,$V2043-4,0))","v":""},{"$f":"IF(C2043=$X$4,\"Enter smelter details\", IF(ISERROR($V2043),\"\",OFFSET('Smelter Look-up'!$F$4,$V2043-4,0)))","v":""},{"$f":"IF(ISERROR($V2043),\"\",OFFSET('Smelter Look-up'!$G$4,$V2043-4,0))","v":""},{"$f":"IF(ISERROR($V2043),\"\",OFFSET('Smelter Look-up'!$H$4,$V2043-4,0))","v":""},{"$f":"IF(ISERROR($V2043),\"\",OFFSET('Smelter Look-up'!$I$4,$V2043-4,0))","v":""},{"$nulls":7},{"$f":"IF(ISERROR($V2043),\"\",OFFSET('Smelter Look-up'!$C$4,$V2043-4,0)&\"\")","v":""},{"$f":"IF(B2043=\"\",\"\",IF(ISERROR(MATCH($E2043,CL,0)),\"Unknown\",INDIRECT(\"'C'!$A$\"&MATCH($E2043,CL,0)+1)))","v":""},{"$f":"IF(B2043=\"\",\"\",IF(ISERROR(MATCH($J2043,SorP!$B$1:$B$6230,0)),\"\",INDIRECT(\"'SorP'!$A$\"&MATCH($J2043,SorP!$B$1:$B$6230,0))))","v":""},null,{"$f":"IF(C2043=\"\",NA(),MATCH($B2043&$C2043,'Smelter Look-up'!$J:$J,0))","v":{"$error":"#N/A"}},null,{"$f":"IF(AND(C2043=\"Smelter not listed\",OR(LEN(D2043)=0,LEN(E2043)=0)),1,0)","v":0},null,null,null,{"$f":"B2043&C2043","v":""}]
[null,{"$f":"IF(LEN(A2044)=0,\"\",INDEX('Smelter Look-up'!$A:$A,MATCH($A2044,'Smelter Look-up'!$E:$E,0)))","v":""},{"$f":"IF(LEN(A2044)=0,\"\",INDEX('Smelter Look-up'!$C:$C,MATCH($A2044,'Smelter Look-up'!$E:$E,0)))","v":""},null,{"$f":"IF(ISERROR($V2044),\"\",OFFSET('Smelter Look-up'!$D$4,$V2044-4,0)&\"\")","v":""},{"$f":"IF(ISERROR($V2044),\"\",OFFSET('Smelter Look-up'!$E$4,$V2044-4,0))","v":""},{"$f":"IF(C2044=$X$4,\"Enter smelter details\", IF(ISERROR($V2044),\"\",OFFSET('Smelter Look-up'!$F$4,$V2044-4,0)))","v":""},{"$f":"IF(ISERROR($V2044),\"\",OFFSET('Smelter Look-up'!$G$4,$V2044-4,0))","v":""},{"$f":"IF(ISERROR($V2044),\"\",OFFSET('Smelter Look-up'!$H$4,$V2044-4,0))","v":""},{"$f":"IF(ISERROR($V2044),\"\",OFFSET('Smelter Look-up'!$I$4,$V2044-4,0))","v":""},{"$nulls":7},{"$f":"IF(ISERROR($V2044),\"\",OFFSET('Smelter Look-up'!$C$4,$V2044-4,0)&\"\")","v":""},"",{"$f":"IF(B2044=\"\",\"\",IF(ISERROR(MATCH($J2044,SorP!$B$1:$B$6230,0)),\"\",INDIRECT(\"'SorP'!$A$\"&MATCH($J2044,SorP!$B$1:$B$6230,0))))","v":""},null,{"$f":"IF(C2044=\"\",NA(),MATCH($B2044&$C2044,'Smelter Look-up'!$J:$J,0))","v":{"$error":"#N/A"}},null,0,null,null,null,""]
[null,{"$f":"IF(LEN(A2045)=0,\"\",INDEX('Smelter Look-up'!$A:$A,MATCH($A2045,'Smelter Look-up'!$E:$E,0)))","v":""},{"$f":"IF(LEN(A2045)=0,\"\",INDEX('Smelter Look-up'!$C:$C,MATCH($A2045,'Smelter Look-up'!$E:$E,0)))","v":""},null,{"$f":"IF(ISERROR($V2045),\"\",OFFSET('Smelter Look-up'!$D$4,$V2045-4,0)&\"\")","v":""},{"$f":"IF(ISERROR($V2045),\"\",OFFSET('Smelter Look-up'!$E$4,$V2045-4,0))","v":""},{"$f":"IF(C2045=$X$4,\"Enter smelter details\", IF(ISERROR($V2045),\"\",OFFSET('Smelter Look-up'!$F$4,$V2045-4,0)))","v":""},{"$f":"IF(ISERROR($V2045),\"\",OFFSET('Smelter Look-up'!$G$4,$V2045-4,0))","v":""},{"$f":"IF(ISERROR($V2045),\"\",OFFSET('Smelter Look-up'!$H$4,$V2045-4,0))","v":""},{"$f":"IF(ISERROR($V2045),\"\",OFFSET('Smelter Look-up'!$I$4,$V2045-4,0))","v":""},{"$nulls":7},{"$f":"IF(ISERROR($V2045),\"\",OFFSET('Smelter Look-up'!$C$4,$V2045-4,0)&\"\")","v":""},"",{"$f":"IF(B2045=\"\",\"\",IF(ISERROR(MATCH($J2045,SorP!$B$1:$B$6230,0)),\"\",INDIRECT(\"'SorP'!$A$\"&MATCH($J2045,SorP!$B$1:$B$6230,0))))","v":""},null,{"$f":"IF(C2045=\"\",NA(),MATCH($B2045&$C2045,'Smelter Look-up'!$J:$J,0))","v":{"$error":"#N/A"}},null,0,null,null,null,""]
[null,{"$f":"IF(LEN(A2046)=0,\"\",INDEX('Smelter Look-up'!$A:$A,MATCH($A2046,'Smelter Look-up'!$E:$E,0)))","v":""},{"$f":"IF(LEN(A2046)=0,\"\",INDEX('Smelter Look-up'!$C:$C,MATCH($A2046,'Smelter Look-up'!$E:$E,0)))","v":""},null,{"$f":"IF(ISERROR($V2046),\"\",OFFSET('Smelter Look-up'!$D$4,$V2046-4,0)&\"\")","v":""},{"$f":"IF(ISERROR($V2046),\"\",OFFSET('Smelter Look-up'!$E$4,$V2046-4,0))","v":""},{"$f":"IF(C2046=$X$4,\"Enter smelter details\", IF(ISERROR($V2046),\"\",OFFSET('Smelter Look-up'!$F$4,$V2046-4,0)))","v":""},{"$f":"IF(ISERROR($V2046),\"\",OFFSET('Smelter Look-up'!$G$4,$V2046-4,0))","v":""},{"$f":"IF(ISERROR($V2046),\"\",OFFSET('Smelter Look-up'!$H$4,$V2046-4,0))","v":""},{"$f":"IF(ISERROR($V2046),\"\",OFFSET('Smelter Look-up'!$I$4,$V2046-4,0))","v":""},{"$nulls":7},{"$f":"IF(ISERROR($V2046),\"\",OFFSET('Smelter Look-up'!$C$4,$V2046-4,0)&\"\")","v":""},"",{"$f":"IF(B2046=\"\",\"\",IF(ISERROR(MATCH($J2046,SorP!$B$1:$B$6230,0)),\"\",INDIRECT(\"'SorP'!$A$\"&MATCH($J2046,SorP!$B$1:$B$6230,0))))","v":""},null,{"$f":"IF(C2046=\"\",NA(),MATCH($B2046&$C2046,'Smelter Look-up'!$J:$J,0))","v":{"$error":"#N/A"}},null,0,null,null,null,""]
[null,{"$f":"IF(LEN(A2047)=0,\"\",INDEX('Smelter Look-up'!$A:$A,MATCH($A2047,'Smelter Look-up'!$E:$E,0)))","v":""},{"$f":"IF(LEN(A2047)=0,\"\",INDEX('Smelter Look-up'!$C:$C,MATCH($A2047,'Smelter Look-up'!$E:$E,0)))","v":""},null,{"$f":"IF(ISERROR($V2047),\"\",OFFSET('Smelter Look-up'!$D$4,$V2047-4,0)&\"\")","v":""},{"$f":"IF(ISERROR($V2047),\"\",OFFSET('Smelter Look-up'!$E$4,$V2047-4,0))","v":""},{"$f":"IF(C2047=$X$4,\"Enter smelter details\", IF(ISERROR($V2047),\"\",OFFSET('Smelter Look-up'!$F$4,$V2047-4,0)))","v":""},{"$f":"IF(ISERROR($V2047),\"\",OFFSET('Smelter Look-up'!$G$4,$V2047-4,0))","v":""},{"$f":"IF(ISERROR($V2047),\"\",OFFSET('Smelter Look-up'!$H$4,$V2047-4,0))","v":""},{"$f":"IF(ISERROR($V2047),\"\",OFFSET('Smelter Look-up'!$I$4,$V2047-4,0))","v":""},{"$nulls":7},{"$f":"IF(ISERROR($V2047),\"\",OFFSET('Smelter Look-up'!$C$4,$V2047-4,0)&\"\")","v":""},"",{"$f":"IF(B2047=\"\",\"\",IF(ISERROR(MATCH($J2047,SorP!$B$1:$B$6230,0)),\"\",INDIRECT(\"'SorP'!$A$\"&MATCH($J2047,SorP!$B$1:$B$6230,0))))","v":""},null,{"$f":"IF(C2047=\"\",NA(),MATCH($B2047&$C2047,'Smelter Look-up'!$J:$J,0))","v":{"$error":"#N/A"}},null,0,null,null,null,""]
[null,{"$f":"IF(LEN(A2048)=0,\"\",INDEX('Smelter Look-up'!$A:$A,MATCH($A2048,'Smelter Look-up'!$E:$E,0)))","v":""},{"$f":"IF(LEN(A2048)=0,\"\",INDEX('Smelter Look-up'!$C:$C,MATCH($A2048,'Smelter Look-up'!$E:$E,0)))","v":""},null,{"$f":"IF(ISERROR($V2048),\"\",OFFSET('Smelter Look-up'!$D$4,$V2048-4,0)&\"\")","v":""},{"$f":"IF(ISERROR($V2048),\"\",OFFSET('Smelter Look-up'!$E$4,$V2048-4,0))","v":""},{"$f":"IF(C2048=$X$4,\"Enter smelter details\", IF(ISERROR($V2048),\"\",OFFSET('Smelter Look-up'!$F$4,$V2048-4,0)))","v":""},{"$f":"IF(ISERROR($V2048),\"\",OFFSET('Smelter Look-up'!$G$4,$V2048-4,0))","v":""},{"$f":"IF(ISERROR($V2048),\"\",OFFSET('Smelter Look-up'!$H$4,$V2048-4,0))","v":""},{"$f":"IF(ISERROR($V2048),\"\",OFFSET('Smelter Look-up'!$I$4,$V2048-4,0))","v":""},{"$nulls":7},{"$f":"IF(ISERROR($V2048),\"\",OFFSET('Smelter Look-up'!$C$4,$V2048-4,0)&\"\")","v":""},"",{"$f":"IF(B2048=\"\",\"\",IF(ISERROR(MATCH($J2048,SorP!$B$1:$B$6230,0)),\"\",INDIRECT(\"'SorP'!$A$\"&MATCH($J2048,SorP!$B$1:$B$6230,0))))","v":""},null,{"$f":"IF(C2048=\"\",NA(),MATCH($B2048&$C2048,'Smelter Look-up'!$J:$J,0))","v":{"$error":"#N/A"}},null,0,null,null,null,""]
[null,{"$f":"IF(LEN(A2049)=0,\"\",INDEX('Smelter Look-up'!$A:$A,MATCH($A2049,'Smelter Look-up'!$E:$E,0)))","v":""},{"$f":"IF(LEN(A2049)=0,\"\",INDEX('Smelter Look-up'!$C:$C,MATCH($A2049,'Smelter Look-up'!$E:$E,0)))","v":""},null,{"$f":"IF(ISERROR($V2049),\"\",OFFSET('Smelter Look-up'!$D$4,$V2049-4,0)&\"\")","v":""},{"$f":"IF(ISERROR($V2049),\"\",OFFSET('Smelter Look-up'!$E$4,$V2049-4,0))","v":""},{"$f":"IF(C2049=$X$4,\"Enter smelter details\", IF(ISERROR($V2049),\"\",OFFSET('Smelter Look-up'!$F$4,$V2049-4,0)))","v":""},{"$f":"IF(ISERROR($V2049),\"\",OFFSET('Smelter Look-up'!$G$4,$V2049-4,0))","v":""},{"$f":"IF(ISERROR($V2049),\"\",OFFSET('Smelter Look-up'!$H$4,$V2049-4,0))","v":""},{"$f":"IF(ISERROR($V2049),\"\",OFFSET('Smelter Look-up'!$I$4,$V2049-4,0))","v":""},{"$nulls":7},{"$f":"IF(ISERROR($V2049),\"\",OFFSET('Smelter Look-up'!$C$4,$V2049-4,0)&\"\")","v":""},"",{"$f":"IF(B2049=\"\",\"\",IF(ISERROR(MATCH($J2049,SorP!$B$1:$B$6230,0)),\"\",INDIRECT(\"'SorP'!$A$\"&MATCH($J2049,SorP!$B$1:$B$6230,0))))","v":""},null,{"$f":"IF(C2049=\"\",NA(),MATCH($B2049&$C2049,'Smelter Look-up'!$J:$J,0))","v":{"$error":"#N/A"}},null,0,null,null,null,""]
[null,{"$f":"IF(LEN(A2050)=0,\"\",INDEX('Smelter Look-up'!$A:$A,MATCH($A2050,'Smelter Look-up'!$E:$E,0)))","v":""},{"$f":"IF(LEN(A2050)=0,\"\",INDEX('Smelter Look-up'!$C:$C,MATCH($A2050,'Smelter Look-up'!$E:$E,0)))","v":""},null,{"$f":"IF(ISERROR($V2050),\"\",OFFSET('Smelter Look-up'!$D$4,$V2050-4,0)&\"\")","v":""},{"$f":"IF(ISERROR($V2050),\"\",OFFSET('Smelter Look-up'!$E$4,$V2050-4,0))","v":""},{"$f":"IF(C2050=$X$4,\"Enter smelter details\", IF(ISERROR($V2050),\"\",OFFSET('Smelter Look-up'!$F$4,$V2050-4,0)))","v":""},{"$f":"IF(ISERROR($V2050),\"\",OFFSET('Smelter Look-up'!$G$4,$V2050-4,0))","v":""},{"$f":"IF(ISERROR($V2050),\"\",OFFSET('Smelter Look-up'!$H$4,$V2050-4,0))","v":""},{"$f":"IF(ISERROR($V2050),\"\",OFFSET('Smelter Look-up'!$I$4,$V2050-4,0))","v":""},{"$nulls":7},{"$f":"IF(ISERROR($V2050),\"\",OFFSET('Smelter Look-up'!$C$4,$V2050-4,0)&\"\")","v":""},"",{"$f":"IF(B2050=\"\",\"\",IF(ISERROR(MATCH($J2050,SorP!$B$1:$B$6230,0)),\"\",INDIRECT(\"'SorP'!$A$\"&MATCH($J2050,SorP!$B$1:$B$6230,0))))","v":""},null,{"$f":"IF(C2050=\"\",NA(),MATCH($B2050&$C2050,'Smelter Look-up'!$J:$J,0))","v":{"$error":"#N/A"}},null,0,null,null,null,""]
[null,{"$f":"IF(LEN(A2051)=0,\"\",INDEX('Smelter Look-up'!$A:$A,MATCH($A2051,'Smelter Look-up'!$E:$E,0)))","v":""},{"$f":"IF(LEN(A2051)=0,\"\",INDEX('Smelter Look-up'!$C:$C,MATCH($A2051,'Smelter Look-up'!$E:$E,0)))","v":""},null,{"$f":"IF(ISERROR($V2051),\"\",OFFSET('Smelter Look-up'!$D$4,$V2051-4,0)&\"\")","v":""},{"$f":"IF(ISERROR($V2051),\"\",OFFSET('Smelter Look-up'!$E$4,$V2051-4,0))","v":""},{"$f":"IF(C2051=$X$4,\"Enter smelter details\", IF(ISERROR($V2051),\"\",OFFSET('Smelter Look-up'!$F$4,$V2051-4,0)))","v":""},{"$f":"IF(ISERROR($V2051),\"\",OFFSET('Smelter Look-up'!$G$4,$V2051-4,0))","v":""},{"$f":"IF(ISERROR($V2051),\"\",OFFSET('Smelter Look-up'!$H$4,$V2051-4,0))","v":""},{"$f":"IF(ISERROR($V2051),\"\",OFFSET('Smelter Look-up'!$I$4,$V2051-4,0))","v":""},{"$nulls":7},{"$f":"IF(ISERROR($V2051),\"\",OFFSET('Smelter Look-up'!$C$4,$V2051-4,0)&\"\")","v":""},"",{"$f":"IF(B2051=\"\",\"\",IF(ISERROR(MATCH($J2051,SorP!$B$1:$B$6230,0)),\"\",INDIRECT(\"'SorP'!$A$\"&MATCH($J2051,SorP!$B$1:$B$6230,0))))","v":""},null,{"$f":"IF(C2051=\"\",NA(),MATCH($B2051&$C2051,'Smelter Look-up'!$J:$J,0))","v":{"$error":"#N/A"}},null,0,null,null,null,""]
[null,{"$f":"IF(LEN(A2052)=0,\"\",INDEX('Smelter Look-up'!$A:$A,MATCH($A2052,'Smelter Look-up'!$E:$E,0)))","v":""},{"$f":"IF(LEN(A2052)=0,\"\",INDEX('Smelter Look-up'!$C:$C,MATCH($A2052,'Smelter Look-up'!$E:$E,0)))","v":""},null,{"$f":"IF(ISERROR($V2052),\"\",OFFSET('Smelter Look-up'!$D$4,$V2052-4,0)&\"\")","v":""},{"$f":"IF(ISERROR($V2052),\"\",OFFSET('Smelter Look-up'!$E$4,$V2052-4,0))","v":""},{"$f":"IF(C2052=$X$4,\"Enter smelter details\", IF(ISERROR($V2052),\"\",OFFSET('Smelter Look-up'!$F$4,$V2052-4,0)))","v":""},{"$f":"IF(ISERROR($V2052),\"\",OFFSET('Smelter Look-up'!$G$4,$V2052-4,0))","v":""},{"$f":"IF(ISERROR($V2052),\"\",OFFSET('Smelter Look-up'!$H$4,$V2052-4,0))","v":""},{"$f":"IF(ISERROR($V2052),\"\",OFFSET('Smelter Look-up'!$I$4,$V2052-4,0))","v":""},{"$nulls":7},{"$f":"IF(ISERROR($V2052),\"\",OFFSET('Smelter Look-up'!$C$4,$V2052-4,0)&\"\")","v":""},"",{"$f":"IF(B2052=\"\",\"\",IF(ISERROR(MATCH($J2052,SorP!$B$1:$B$6230,0)),\"\",INDIRECT(\"'SorP'!$A$\"&MATCH($J2052,SorP!$B$1:$B$6230,0))))","v":""},null,{"$f":"IF(C2052=\"\",NA(),MATCH($B2052&$C2052,'Smelter Look-up'!$J:$J,0))","v":{"$error":"#N/A"}},null,0,null,null,null,""]
[null,{"$f":"IF(LEN(A2053)=0,\"\",INDEX('Smelter Look-up'!$A:$A,MATCH($A2053,'Smelter Look-up'!$E:$E,0)))","v":""},{"$f":"IF(LEN(A2053)=0,\"\",INDEX('Smelter Look-up'!$C:$C,MATCH($A2053,'Smelter Look-up'!$E:$E,0)))","v":""},null,{"$f":"IF(ISERROR($V2053),\"\",OFFSET('Smelter Look-up'!$D$4,$V2053-4,0)&\"\")","v":""},{"$f":"IF(ISERROR($V2053),\"\",OFFSET('Smelter Look-up'!$E$4,$V2053-4,0))","v":""},{"$f":"IF(C2053=$X$4,\"Enter smelter details\", IF(ISERROR($V2053),\"\",OFFSET('Smelter Look-up'!$F$4,$V2053-4,0)))","v":""},{"$f":"IF(ISERROR($V2053),\"\",OFFSET('Smelter Look-up'!$G$4,$V2053-4,0))","v":""},{"$f":"IF(ISERROR($V2053),\"\",OFFSET('Smelter Look-up'!$H$4,$V2053-4,0))","v":""},{"$f":"IF(ISERROR($V2053),\"\",OFFSET('Smelter Look-up'!$I$4,$V2053-4,0))","v":""},{"$nulls":7},{"$f":"IF(ISERROR($V2053),\"\",OFFSET('Smelter Look-up'!$C$4,$V2053-4,0)&\"\")","v":""},"",{"$f":"IF(B2053=\"\",\"\",IF(ISERROR(MATCH($J2053,SorP!$B$1:$B$6230,0)),\"\",INDIRECT(\"'SorP'!$A$\"&MATCH($J2053,SorP!$B$1:$B$6230,0))))","v":""},null,{"$f":"IF(C2053=\"\",NA(),MATCH($B2053&$C2053,'Smelter Look-up'!$J:$J,0))","v":{"$error":"#N/A"}},null,0,null,null,null,""]
[null,{"$f":"IF(LEN(A2054)=0,\"\",INDEX('Smelter Look-up'!$A:$A,MATCH($A2054,'Smelter Look-up'!$E:$E,0)))","v":""},{"$f":"IF(LEN(A2054)=0,\"\",INDEX('Smelter Look-up'!$C:$C,MATCH($A2054,'Smelter Look-up'!$E:$E,0)))","v":""},null,{"$f":"IF(ISERROR($V2054),\"\",OFFSET('Smelter Look-up'!$D$4,$V2054-4,0)&\"\")","v":""},{"$f":"IF(ISERROR($V2054),\"\",OFFSET('Smelter Look-up'!$E$4,$V2054-4,0))","v":""},{"$f":"IF(C2054=$X$4,\"Enter smelter details\", IF(ISERROR($V2054),\"\",OFFSET('Smelter Look-up'!$F$4,$V2054-4,0)))","v":""},{"$f":"IF(ISERROR($V2054),\"\",OFFSET('Smelter Look-up'!$G$4,$V2054-4,0))","v":""},{"$f":"IF(ISERROR($V2054),\"\",OFFSET('Smelter Look-up'!$H$4,$V2054-4,0))","v":""},{"$f":"IF(ISERROR($V2054),\"\",OFFSET('Smelter Look-up'!$I$4,$V2054-4,0))","v":""},{"$nulls":7},{"$f":"IF(ISERROR($V2054),\"\",OFFSET('Smelter Look-up'!$C$4,$V2054-4,0)&\"\")","v":""},"",{"$f":"IF(B2054=\"\",\"\",IF(ISERROR(MATCH($J2054,SorP!$B$1:$B$6230,0)),\"\",INDIRECT(\"'SorP'!$A$\"&MATCH($J2054,SorP!$B$1:$B$6230,0))))","v":""},null,{"$f":"IF(C2054=\"\",NA(),MATCH($B2054&$C2054,'Smelter Look-up'!$J:$J,0))","v":{"$error":"#N/A"}},null,0,null,null,null,""]
[null,{"$f":"IF(LEN(A2055)=0,\"\",INDEX('Smelter Look-up'!$A:$A,MATCH($A2055,'Smelter Look-up'!$E:$E,0)))","v":""},{"$f":"IF(LEN(A2055)=0,\"\",INDEX('Smelter Look-up'!$C:$C,MATCH($A2055,'Smelter Look-up'!$E:$E,0)))","v":""},null,{"$f":"IF(ISERROR($V2055),\"\",OFFSET('Smelter Look-up'!$D$4,$V2055-4,0)&\"\")","v":""},{"$f":"IF(ISERROR($V2055),\"\",OFFSET('Smelter Look-up'!$E$4,$V2055-4,0))","v":""},{"$f":"IF(C2055=$X$4,\"Enter smelter details\", IF(ISERROR($V2055),\"\",OFFSET('Smelter Look-up'!$F$4,$V2055-4,0)))","v":""},{"$f":"IF(ISERROR($V2055),\"\",OFFSET('Smelter Look-up'!$G$4,$V2055-4,0))","v":""},{"$f":"IF(ISERROR($V2055),\"\",OFFSET('Smelter Look-up'!$H$4,$V2055-4,0))","v":""},{"$f":"IF(ISERROR($V2055),\"\",OFFSET('Smelter Look-up'!$I$4,$V2055-4,0))","v":""},{"$nulls":7},{"$f":"IF(ISERROR($V2055),\"\",OFFSET('Smelter Look-up'!$C$4,$V2055-4,0)&\"\")","v":""},"",{"$f":"IF(B2055=\"\",\"\",IF(ISERROR(MATCH($J2055,SorP!$B$1:$B$6230,0)),\"\",INDIRECT(\"'SorP'!$A$\"&MATCH($J2055,SorP!$B$1:$B$6230,0))))","v":""},null,{"$f":"IF(C2055=\"\",NA(),MATCH($B2055&$C2055,'Smelter Look-up'!$J:$J,0))","v":{"$error":"#N/A"}},null,0,null,null,null,""]
[null,{"$f":"IF(LEN(A2056)=0,\"\",INDEX('Smelter Look-up'!$A:$A,MATCH($A2056,'Smelter Look-up'!$E:$E,0)))","v":""},{"$f":"IF(LEN(A2056)=0,\"\",INDEX('Smelter Look-up'!$C:$C,MATCH($A2056,'Smelter Look-up'!$E:$E,0)))","v":""},null,{"$f":"IF(ISERROR($V2056),\"\",OFFSET('Smelter Look-up'!$D$4,$V2056-4,0)&\"\")","v":""},{"$f":"IF(ISERROR($V2056),\"\",OFFSET('Smelter Look-up'!$E$4,$V2056-4,0))","v":""},{"$f":"IF(C2056=$X$4,\"Enter smelter details\", IF(ISERROR($V2056),\"\",OFFSET('Smelter Look-up'!$F$4,$V2056-4,0)))","v":""},{"$f":"IF(ISERROR($V2056),\"\",OFFSET('Smelter Look-up'!$G$4,$V2056-4,0))","v":""},{"$f":"IF(ISERROR($V2056),\"\",OFFSET('Smelter Look-up'!$H$4,$V2056-4,0))","v":""},{"$f":"IF(ISERROR($V2056),\"\",OFFSET('Smelter Look-up'!$I$4,$V2056-4,0))","v":""},{"$nulls":7},{"$f":"IF(ISERROR($V2056),\"\",OFFSET('Smelter Look-up'!$C$4,$V2056-4,0)&\"\")","v":""},"",{"$f":"IF(B2056=\"\",\"\",IF(ISERROR(MATCH($J2056,SorP!$B$1:$B$6230,0)),\"\",INDIRECT(\"'SorP'!$A$\"&MATCH($J2056,SorP!$B$1:$B$6230,0))))","v":""},null,{"$f":"IF(C2056=\"\",NA(),MATCH($B2056&$C2056,'Smelter Look-up'!$J:$J,0))","v":{"$error":"#N/A"}},null,0,null,null,null,""]
[null,{"$f":"IF(LEN(A2057)=0,\"\",INDEX('Smelter Look-up'!$A:$A,MATCH($A2057,'Smelter Look-up'!$E:$E,0)))","v":""},{"$f":"IF(LEN(A2057)=0,\"\",INDEX('Smelter Look-up'!$C:$C,MATCH($A2057,'Smelter Look-up'!$E:$E,0)))","v":""},null,{"$f":"IF(ISERROR($V2057),\"\",OFFSET('Smelter Look-up'!$D$4,$V2057-4,0)&\"\")","v":""},{"$f":"IF(ISERROR($V2057),\"\",OFFSET('Smelter Look-up'!$E$4,$V2057-4,0))","v":""},{"$f":"IF(C2057=$X$4,\"Enter smelter details\", IF(ISERROR($V2057),\"\",OFFSET('Smelter Look-up'!$F$4,$V2057-4,0)))","v":""},{"$f":"IF(ISERROR($V2057),\"\",OFFSET('Smelter Look-up'!$G$4,$V2057-4,0))","v":""},{"$f":"IF(ISERROR($V2057),\"\",OFFSET('Smelter Look-up'!$H$4,$V2057-4,0))","v":""},{"$f":"IF(ISERROR($V2057),\"\",OFFSET('Smelter Look-up'!$I$4,$V2057-4,0))","v":""},{"$nulls":7},{"$f":"IF(ISERROR($V2057),\"\",OFFSET('Smelter Look-up'!$C$4,$V2057-4,0)&\"\")","v":""},"",{"$f":"IF(B2057=\"\",\"\",IF(ISERROR(MATCH($J2057,SorP!$B$1:$B$6230,0)),\"\",INDIRECT(\"'SorP'!$A$\"&MATCH($J2057,SorP!$B$1:$B$6230,0))))","v":""},null,{"$f":"IF(C2057=\"\",NA(),MATCH($B2057&$C2057,'Smelter Look-up'!$J:$J,0))","v":{"$error":"#N/A"}},null,0,null,null,null,""]
[null,{"$f":"IF(LEN(A2058)=0,\"\",INDEX('Smelter Look-up'!$A:$A,MATCH($A2058,'Smelter Look-up'!$E:$E,0)))","v":""},{"$f":"IF(LEN(A2058)=0,\"\",INDEX('Smelter Look-up'!$C:$C,MATCH($A2058,'Smelter Look-up'!$E:$E,0)))","v":""},null,{"$f":"IF(ISERROR($V2058),\"\",OFFSET('Smelter Look-up'!$D$4,$V2058-4,0)&\"\")","v":""},{"$f":"IF(ISERROR($V2058),\"\",OFFSET('Smelter Look-up'!$E$4,$V2058-4,0))","v":""},{"$f":"IF(C2058=$X$4,\"Enter smelter details\", IF(ISERROR($V2058),\"\",OFFSET('Smelter Look-up'!$F$4,$V2058-4,0)))","v":""},{"$f":"IF(ISERROR($V2058),\"\",OFFSET('Smelter Look-up'!$G$4,$V2058-4,0))","v":""},{"$f":"IF(ISERROR($V2058),\"\",OFFSET('Smelter Look-up'!$H$4,$V2058-4,0))","v":""},{"$f":"IF(ISERROR($V2058),\"\",OFFSET('Smelter Look-up'!$I$4,$V2058-4,0))","v":""},{"$nulls":7},{"$f":"IF(ISERROR($V2058),\"\",OFFSET('Smelter Look-up'!$C$4,$V2058-4,0)&\"\")","v":""},"",{"$f":"IF(B2058=\"\",\"\",IF(ISERROR(MATCH($J2058,SorP!$B$1:$B$6230,0)),\"\",INDIRECT(\"'SorP'!$A$\"&MATCH($J2058,SorP!$B$1:$B$6230,0))))","v":""},null,{"$f":"IF(C2058=\"\",NA(),MATCH($B2058&$C2058,'Smelter Look-up'!$J:$J,0))","v":{"$error":"#N/A"}},null,0,null,null,null,""]
[null,{"$f":"IF(LEN(A2059)=0,\"\",INDEX('Smelter Look-up'!$A:$A,MATCH($A2059,'Smelter Look-up'!$E:$E,0)))","v":""},{"$f":"IF(LEN(A2059)=0,\"\",INDEX('Smelter Look-up'!$C:$C,MATCH($A2059,'Smelter Look-up'!$E:$E,0)))","v":""},null,{"$f":"IF(ISERROR($V2059),\"\",OFFSET('Smelter Look-up'!$D$4,$V2059-4,0)&\"\")","v":""},{"$f":"IF(ISERROR($V2059),\"\",OFFSET('Smelter Look-up'!$E$4,$V2059-4,0))","v":""},{"$f":"IF(C2059=$X$4,\"Enter smelter details\", IF(ISERROR($V2059),\"\",OFFSET('Smelter Look-up'!$F$4,$V2059-4,0)))","v":""},{"$f":"IF(ISERROR($V2059),\"\",OFFSET('Smelter Look-up'!$G$4,$V2059-4,0))","v":""},{"$f":"IF(ISERROR($V2059),\"\",OFFSET('Smelter Look-up'!$H$4,$V2059-4,0))","v":""},{"$f":"IF(ISERROR($V2059),\"\",OFFSET('Smelter Look-up'!$I$4,$V2059-4,0))","v":""},{"$nulls":7},{"$f":"IF(ISERROR($V2059),\"\",OFFSET('Smelter Look-up'!$C$4,$V2059-4,0)&\"\")","v":""},"",{"$f":"IF(B2059=\"\",\"\",IF(ISERROR(MATCH($J2059,SorP!$B$1:$B$6230,0)),\"\",INDIRECT(\"'SorP'!$A$\"&MATCH($J2059,SorP!$B$1:$B$6230,0))))","v":""},null,{"$f":"IF(C2059=\"\",NA(),MATCH($B2059&$C2059,'Smelter Look-up'!$J:$J,0))","v":{"$error":"#N/A"}},null,0,null,null,null,""]
[null,{"$f":"IF(LEN(A2060)=0,\"\",INDEX('Smelter Look-up'!$A:$A,MATCH($A2060,'Smelter Look-up'!$E:$E,0)))","v":""},{"$f":"IF(LEN(A2060)=0,\"\",INDEX('Smelter Look-up'!$C:$C,MATCH($A2060,'Smelter Look-up'!$E:$E,0)))","v":""},null,{"$f":"IF(ISERROR($V2060),\"\",OFFSET('Smelter Look-up'!$D$4,$V2060-4,0)&\"\")","v":""},{"$f":"IF(ISERROR($V2060),\"\",OFFSET('Smelter Look-up'!$E$4,$V2060-4,0))","v":""},{"$f":"IF(C2060=$X$4,\"Enter smelter details\", IF(ISERROR($V2060),\"\",OFFSET('Smelter Look-up'!$F$4,$V2060-4,0)))","v":""},{"$f":"IF(ISERROR($V2060),\"\",OFFSET('Smelter Look-up'!$G$4,$V2060-4,0))","v":""},{"$f":"IF(ISERROR($V2060),\"\",OFFSET('Smelter Look-up'!$H$4,$V2060-4,0))","v":""},{"$f":"IF(ISERROR($V2060),\"\",OFFSET('Smelter Look-up'!$I$4,$V2060-4,0))","v":""},{"$nulls":7},{"$f":"IF(ISERROR($V2060),\"\",OFFSET('Smelter Look-up'!$C$4,$V2060-4,0)&\"\")","v":""},"",{"$f":"IF(B2060=\"\",\"\",IF(ISERROR(MATCH($J2060,SorP!$B$1:$B$6230,0)),\"\",INDIRECT(\"'SorP'!$A$\"&MATCH($J2060,SorP!$B$1:$B$6230,0))))","v":""},null,{"$f":"IF(C2060=\"\",NA(),MATCH($B2060&$C2060,'Smelter Look-up'!$J:$J,0))","v":{"$error":"#N/A"}},null,0,null,null,null,""]
[null,{"$f":"IF(LEN(A2061)=0,\"\",INDEX('Smelter Look-up'!$A:$A,MATCH($A2061,'Smelter Look-up'!$E:$E,0)))","v":""},{"$f":"IF(LEN(A2061)=0,\"\",INDEX('Smelter Look-up'!$C:$C,MATCH($A2061,'Smelter Look-up'!$E:$E,0)))","v":""},null,{"$f":"IF(ISERROR($V2061),\"\",OFFSET('Smelter Look-up'!$D$4,$V2061-4,0)&\"\")","v":""},{"$f":"IF(ISERROR($V2061),\"\",OFFSET('Smelter Look-up'!$E$4,$V2061-4,0))","v":""},{"$f":"IF(C2061=$X$4,\"Enter smelter details\", IF(ISERROR($V2061),\"\",OFFSET('Smelter Look-up'!$F$4,$V2061-4,0)))","v":""},{"$f":"IF(ISERROR($V2061),\"\",OFFSET('Smelter Look-up'!$G$4,$V2061-4,0))","v":""},{"$f":"IF(ISERROR($V2061),\"\",OFFSET('Smelter Look-up'!$H$4,$V2061-4,0))","v":""},{"$f":"IF(ISERROR($V2061),\"\",OFFSET('Smelter Look-up'!$I$4,$V2061-4,0))","v":""},{"$nulls":7},{"$f":"IF(ISERROR($V2061),\"\",OFFSET('Smelter Look-up'!$C$4,$V2061-4,0)&\"\")","v":""},"",{"$f":"IF(B2061=\"\",\"\",IF(ISERROR(MATCH($J2061,SorP!$B$1:$B$6230,0)),\"\",INDIRECT(\"'SorP'!$A$\"&MATCH($J2061,SorP!$B$1:$B$6230,0))))","v":""},null,{"$f":"IF(C2061=\"\",NA(),MATCH($B2061&$C2061,'Smelter Look-up'!$J:$J,0))","v":{"$error":"#N/A"}},null,0,null,null,null,""]
[null,{"$f":"IF(LEN(A2062)=0,\"\",INDEX('Smelter Look-up'!$A:$A,MATCH($A2062,'Smelter Look-up'!$E:$E,0)))","v":""},{"$f":"IF(LEN(A2062)=0,\"\",INDEX('Smelter Look-up'!$C:$C,MATCH($A2062,'Smelter Look-up'!$E:$E,0)))","v":""},null,{"$f":"IF(ISERROR($V2062),\"\",OFFSET('Smelter Look-up'!$D$4,$V2062-4,0)&\"\")","v":""},{"$f":"IF(ISERROR($V2062),\"\",OFFSET('Smelter Look-up'!$E$4,$V2062-4,0))","v":""},{"$f":"IF(C2062=$X$4,\"Enter smelter details\", IF(ISERROR($V2062),\"\",OFFSET('Smelter Look-up'!$F$4,$V2062-4,0)))","v":""},{"$f":"IF(ISERROR($V2062),\"\",OFFSET('Smelter Look-up'!$G$4,$V2062-4,0))","v":""},{"$f":"IF(ISERROR($V2062),\"\",OFFSET('Smelter Look-up'!$H$4,$V2062-4,0))","v":""},{"$f":"IF(ISERROR($V2062),\"\",OFFSET('Smelter Look-up'!$I$4,$V2062-4,0))","v":""},{"$nulls":7},{"$f":"IF(ISERROR($V2062),\"\",OFFSET('Smelter Look-up'!$C$4,$V2062-4,0)&\"\")","v":""},"",{"$f":"IF(B2062=\"\",\"\",IF(ISERROR(MATCH($J2062,SorP!$B$1:$B$6230,0)),\"\",INDIRECT(\"'SorP'!$A$\"&MATCH($J2062,SorP!$B$1:$B$6230,0))))","v":""},null,{"$f":"IF(C2062=\"\",NA(),MATCH($B2062&$C2062,'Smelter Look-up'!$J:$J,0))","v":{"$error":"#N/A"}},null,0,null,null,null,""]
[null,{"$f":"IF(LEN(A2063)=0,\"\",INDEX('Smelter Look-up'!$A:$A,MATCH($A2063,'Smelter Look-up'!$E:$E,0)))","v":""},{"$f":"IF(LEN(A2063)=0,\"\",INDEX('Smelter Look-up'!$C:$C,MATCH($A2063,'Smelter Look-up'!$E:$E,0)))","v":""},null,{"$f":"IF(ISERROR($V2063),\"\",OFFSET('Smelter Look-up'!$D$4,$V2063-4,0)&\"\")","v":""},{"$f":"IF(ISERROR($V2063),\"\",OFFSET('Smelter Look-up'!$E$4,$V2063-4,0))","v":""},{"$f":"IF(C2063=$X$4,\"Enter smelter details\", IF(ISERROR($V2063),\"\",OFFSET('Smelter Look-up'!$F$4,$V2063-4,0)))","v":""},{"$f":"IF(ISERROR($V2063),\"\",OFFSET('Smelter Look-up'!$G$4,$V2063-4,0))","v":""},{"$f":"IF(ISERROR($V2063),\"\",OFFSET('Smelter Look-up'!$H$4,$V2063-4,0))","v":""},{"$f":"IF(ISERROR($V2063),\"\",OFFSET('Smelter Look-up'!$I$4,$V2063-4,0))","v":""},{"$nulls":7},{"$f":"IF(ISERROR($V2063),\"\",OFFSET('Smelter Look-up'!$C$4,$V2063-4,0)&\"\")","v":""},"",{"$f":"IF(B2063=\"\",\"\",IF(ISERROR(MATCH($J2063,SorP!$B$1:$B$6230,0)),\"\",INDIRECT(\"'SorP'!$A$\"&MATCH($J2063,SorP!$B$1:$B$6230,0))))","v":""},null,{"$f":"IF(C2063=\"\",NA(),MATCH($B2063&$C2063,'Smelter Look-up'!$J:$J,0))","v":{"$error":"#N/A"}},null,0,null,null,null,""]
[null,{"$f":"IF(LEN(A2064)=0,\"\",INDEX('Smelter Look-up'!$A:$A,MATCH($A2064,'Smelter Look-up'!$E:$E,0)))","v":""},{"$f":"IF(LEN(A2064)=0,\"\",INDEX('Smelter Look-up'!$C:$C,MATCH($A2064,'Smelter Look-up'!$E:$E,0)))","v":""},null,{"$f":"IF(ISERROR($V2064),\"\",OFFSET('Smelter Look-up'!$D$4,$V2064-4,0)&\"\")","v":""},{"$f":"IF(ISERROR($V2064),\"\",OFFSET('Smelter Look-up'!$E$4,$V2064-4,0))","v":""},{"$f":"IF(C2064=$X$4,\"Enter smelter details\", IF(ISERROR($V2064),\"\",OFFSET('Smelter Look-up'!$F$4,$V2064-4,0)))","v":""},{"$f":"IF(ISERROR($V2064),\"\",OFFSET('Smelter Look-up'!$G$4,$V2064-4,0))","v":""},{"$f":"IF(ISERROR($V2064),\"\",OFFSET('Smelter Look-up'!$H$4,$V2064-4,0))","v":""},{"$f":"IF(ISERROR($V2064),\"\",OFFSET('Smelter Look-up'!$I$4,$V2064-4,0))","v":""},{"$nulls":7},{"$f":"IF(ISERROR($V2064),\"\",OFFSET('Smelter Look-up'!$C$4,$V2064-4,0)&\"\")","v":""},"",{"$f":"IF(B2064=\"\",\"\",IF(ISERROR(MATCH($J2064,SorP!$B$1:$B$6230,0)),\"\",INDIRECT(\"'SorP'!$A$\"&MATCH($J2064,SorP!$B$1:$B$6230,0))))","v":""},null,{"$f":"IF(C2064=\"\",NA(),MATCH($B2064&$C2064,'Smelter Look-up'!$J:$J,0))","v":{"$error":"#N/A"}},null,0,null,null,null,""]
[null,{"$f":"IF(LEN(A2065)=0,\"\",INDEX('Smelter Look-up'!$A:$A,MATCH($A2065,'Smelter Look-up'!$E:$E,0)))","v":""},{"$f":"IF(LEN(A2065)=0,\"\",INDEX('Smelter Look-up'!$C:$C,MATCH($A2065,'Smelter Look-up'!$E:$E,0)))","v":""},null,{"$f":"IF(ISERROR($V2065),\"\",OFFSET('Smelter Look-up'!$D$4,$V2065-4,0)&\"\")","v":""},{"$f":"IF(ISERROR($V2065),\"\",OFFSET('Smelter Look-up'!$E$4,$V2065-4,0))","v":""},{"$f":"IF(C2065=$X$4,\"Enter smelter details\", IF(ISERROR($V2065),\"\",OFFSET('Smelter Look-up'!$F$4,$V2065-4,0)))","v":""},{"$f":"IF(ISERROR($V2065),\"\",OFFSET('Smelter Look-up'!$G$4,$V2065-4,0))","v":""},{"$f":"IF(ISERROR($V2065),\"\",OFFSET('Smelter Look-up'!$H$4,$V2065-4,0))","v":""},{"$f":"IF(ISERROR($V2065),\"\",OFFSET('Smelter Look-up'!$I$4,$V2065-4,0))","v":""},{"$nulls":7},{"$f":"IF(ISERROR($V2065),\"\",OFFSET('Smelter Look-up'!$C$4,$V2065-4,0)&\"\")","v":""},"",{"$f":"IF(B2065=\"\",\"\",IF(ISERROR(MATCH($J2065,SorP!$B$1:$B$6230,0)),\"\",INDIRECT(\"'SorP'!$A$\"&MATCH($J2065,SorP!$B$1:$B$6230,0))))","v":""},null,{"$f":"IF(C2065=\"\",NA(),MATCH($B2065&$C2065,'Smelter Look-up'!$J:$J,0))","v":{"$error":"#N/A"}},null,0,null,null,null,""]
[null,{"$f":"IF(LEN(A2066)=0,\"\",INDEX('Smelter Look-up'!$A:$A,MATCH($A2066,'Smelter Look-up'!$E:$E,0)))","v":""},{"$f":"IF(LEN(A2066)=0,\"\",INDEX('Smelter Look-up'!$C:$C,MATCH($A2066,'Smelter Look-up'!$E:$E,0)))","v":""},null,{"$f":"IF(ISERROR($V2066),\"\",OFFSET('Smelter Look-up'!$D$4,$V2066-4,0)&\"\")","v":""},{"$f":"IF(ISERROR($V2066),\"\",OFFSET('Smelter Look-up'!$E$4,$V2066-4,0))","v":""},{"$f":"IF(C2066=$X$4,\"Enter smelter details\", IF(ISERROR($V2066),\"\",OFFSET('Smelter Look-up'!$F$4,$V2066-4,0)))","v":""},{"$f":"IF(ISERROR($V2066),\"\",OFFSET('Smelter Look-up'!$G$4,$V2066-4,0))","v":""},{"$f":"IF(ISERROR($V2066),\"\",OFFSET('Smelter Look-up'!$H$4,$V2066-4,0))","v":""},{"$f":"IF(ISERROR($V2066),\"\",OFFSET('Smelter Look-up'!$I$4,$V2066-4,0))","v":""},{"$nulls":7},{"$f":"IF(ISERROR($V2066),\"\",OFFSET('Smelter Look-up'!$C$4,$V2066-4,0)&\"\")","v":""},"",{"$f":"IF(B2066=\"\",\"\",IF(ISERROR(MATCH($J2066,SorP!$B$1:$B$6230,0)),\"\",INDIRECT(\"'SorP'!$A$\"&MATCH($J2066,SorP!$B$1:$B$6230,0))))","v":""},null,{"$f":"IF(C2066=\"\",NA(),MATCH($B2066&$C2066,'Smelter Look-up'!$J:$J,0))","v":{"$error":"#N/A"}},null,0,null,null,null,""]
[null,{"$f":"IF(LEN(A2067)=0,\"\",INDEX('Smelter Look-up'!$A:$A,MATCH($A2067,'Smelter Look-up'!$E:$E,0)))","v":""},{"$f":"IF(LEN(A2067)=0,\"\",INDEX('Smelter Look-up'!$C:$C,MATCH($A2067,'Smelter Look-up'!$E:$E,0)))","v":""},null,{"$f":"IF(ISERROR($V2067),\"\",OFFSET('Smelter Look-up'!$D$4,$V2067-4,0)&\"\")","v":""},{"$f":"IF(ISERROR($V2067),\"\",OFFSET('Smelter Look-up'!$E$4,$V2067-4,0))","v":""},{"$f":"IF(C2067=$X$4,\"Enter smelter details\", IF(ISERROR($V2067),\"\",OFFSET('Smelter Look-up'!$F$4,$V2067-4,0)))","v":""},{"$f":"IF(ISERROR($V2067),\"\",OFFSET('Smelter Look-up'!$G$4,$V2067-4,0))","v":""},{"$f":"IF(ISERROR($V2067),\"\",OFFSET('Smelter Look-up'!$H$4,$V2067-4,0))","v":""},{"$f":"IF(ISERROR($V2067),\"\",OFFSET('Smelter Look-up'!$I$4,$V2067-4,0))","v":""},{"$nulls":7},{"$f":"IF(ISERROR($V2067),\"\",OFFSET('Smelter Look-up'!$C$4,$V2067-4,0)&\"\")","v":""},"",{"$f":"IF(B2067=\"\",\"\",IF(ISERROR(MATCH($J2067,SorP!$B$1:$B$6230,0)),\"\",INDIRECT(\"'SorP'!$A$\"&MATCH($J2067,SorP!$B$1:$B$6230,0))))","v":""},null,{"$f":"IF(C2067=\"\",NA(),MATCH($B2067&$C2067,'Smelter Look-up'!$J:$J,0))","v":{"$error":"#N/A"}},null,0,null,null,null,""]
[null,{"$f":"IF(LEN(A2068)=0,\"\",INDEX('Smelter Look-up'!$A:$A,MATCH($A2068,'Smelter Look-up'!$E:$E,0)))","v":""},{"$f":"IF(LEN(A2068)=0,\"\",INDEX('Smelter Look-up'!$C:$C,MATCH($A2068,'Smelter Look-up'!$E:$E,0)))","v":""},null,{"$f":"IF(ISERROR($V2068),\"\",OFFSET('Smelter Look-up'!$D$4,$V2068-4,0)&\"\")","v":""},{"$f":"IF(ISERROR($V2068),\"\",OFFSET('Smelter Look-up'!$E$4,$V2068-4,0))","v":""},{"$f":"IF(C2068=$X$4,\"Enter smelter details\", IF(ISERROR($V2068),\"\",OFFSET('Smelter Look-up'!$F$4,$V2068-4,0)))","v":""},{"$f":"IF(ISERROR($V2068),\"\",OFFSET('Smelter Look-up'!$G$4,$V2068-4,0))","v":""},{"$f":"IF(ISERROR($V2068),\"\",OFFSET('Smelter Look-up'!$H$4,$V2068-4,0))","v":""},{"$f":"IF(ISERROR($V2068),\"\",OFFSET('Smelter Look-up'!$I$4,$V2068-4,0))","v":""},{"$nulls":7},{"$f":"IF(ISERROR($V2068),\"\",OFFSET('Smelter Look-up'!$C$4,$V2068-4,0)&\"\")","v":""},"",{"$f":"IF(B2068=\"\",\"\",IF(ISERROR(MATCH($J2068,SorP!$B$1:$B$6230,0)),\"\",INDIRECT(\"'SorP'!$A$\"&MATCH($J2068,SorP!$B$1:$B$6230,0))))","v":""},null,{"$f":"IF(C2068=\"\",NA(),MATCH($B2068&$C2068,'Smelter Look-up'!$J:$J,0))","v":{"$error":"#N/A"}},null,0,null,null,null,""]
[null,{"$f":"IF(LEN(A2069)=0,\"\",INDEX('Smelter Look-up'!$A:$A,MATCH($A2069,'Smelter Look-up'!$E:$E,0)))","v":""},{"$f":"IF(LEN(A2069)=0,\"\",INDEX('Smelter Look-up'!$C:$C,MATCH($A2069,'Smelter Look-up'!$E:$E,0)))","v":""},null,{"$f":"IF(ISERROR($V2069),\"\",OFFSET('Smelter Look-up'!$D$4,$V2069-4,0)&\"\")","v":""},{"$f":"IF(ISERROR($V2069),\"\",OFFSET('Smelter Look-up'!$E$4,$V2069-4,0))","v":""},{"$f":"IF(C2069=$X$4,\"Enter smelter details\", IF(ISERROR($V2069),\"\",OFFSET('Smelter Look-up'!$F$4,$V2069-4,0)))","v":""},{"$f":"IF(ISERROR($V2069),\"\",OFFSET('Smelter Look-up'!$G$4,$V2069-4,0))","v":""},{"$f":"IF(ISERROR($V2069),\"\",OFFSET('Smelter Look-up'!$H$4,$V2069-4,0))","v":""},{"$f":"IF(ISERROR($V2069),\"\",OFFSET('Smelter Look-up'!$I$4,$V2069-4,0))","v":""},{"$nulls":7},{"$f":"IF(ISERROR($V2069),\"\",OFFSET('Smelter Look-up'!$C$4,$V2069-4,0)&\"\")","v":""},"",{"$f":"IF(B2069=\"\",\"\",IF(ISERROR(MATCH($J2069,SorP!$B$1:$B$6230,0)),\"\",INDIRECT(\"'SorP'!$A$\"&MATCH($J2069,SorP!$B$1:$B$6230,0))))","v":""},null,{"$f":"IF(C2069=\"\",NA(),MATCH($B2069&$C2069,'Smelter Look-up'!$J:$J,0))","v":{"$error":"#N/A"}},null,0,null,null,null,""]
[null,{"$f":"IF(LEN(A2070)=0,\"\",INDEX('Smelter Look-up'!$A:$A,MATCH($A2070,'Smelter Look-up'!$E:$E,0)))","v":""},{"$f":"IF(LEN(A2070)=0,\"\",INDEX('Smelter Look-up'!$C:$C,MATCH($A2070,'Smelter Look-up'!$E:$E,0)))","v":""},null,{"$f":"IF(ISERROR($V2070),\"\",OFFSET('Smelter Look-up'!$D$4,$V2070-4,0)&\"\")","v":""},{"$f":"IF(ISERROR($V2070),\"\",OFFSET('Smelter Look-up'!$E$4,$V2070-4,0))","v":""},{"$f":"IF(C2070=$X$4,\"Enter smelter details\", IF(ISERROR($V2070),\"\",OFFSET('Smelter Look-up'!$F$4,$V2070-4,0)))","v":""},{"$f":"IF(ISERROR($V2070),\"\",OFFSET('Smelter Look-up'!$G$4,$V2070-4,0))","v":""},{"$f":"IF(ISERROR($V2070),\"\",OFFSET('Smelter Look-up'!$H$4,$V2070-4,0))","v":""},{"$f":"IF(ISERROR($V2070),\"\",OFFSET('Smelter Look-up'!$I$4,$V2070-4,0))","v":""},{"$nulls":7},{"$f":"IF(ISERROR($V2070),\"\",OFFSET('Smelter Look-up'!$C$4,$V2070-4,0)&\"\")","v":""},"",{"$f":"IF(B2070=\"\",\"\",IF(ISERROR(MATCH($J2070,SorP!$B$1:$B$6230,0)),\"\",INDIRECT(\"'SorP'!$A$\"&MATCH($J2070,SorP!$B$1:$B$6230,0))))","v":""},null,{"$f":"IF(C2070=\"\",NA(),MATCH($B2070&$C2070,'Smelter Look-up'!$J:$J,0))","v":{"$error":"#N/A"}},null,0,null,null,null,""]
[null,{"$f":"IF(LEN(A2071)=0,\"\",INDEX('Smelter Look-up'!$A:$A,MATCH($A2071,'Smelter Look-up'!$E:$E,0)))","v":""},{"$f":"IF(LEN(A2071)=0,\"\",INDEX('Smelter Look-up'!$C:$C,MATCH($A2071,'Smelter Look-up'!$E:$E,0)))","v":""},null,{"$f":"IF(ISERROR($V2071),\"\",OFFSET('Smelter Look-up'!$D$4,$V2071-4,0)&\"\")","v":""},{"$f":"IF(ISERROR($V2071),\"\",OFFSET('Smelter Look-up'!$E$4,$V2071-4,0))","v":""},{"$f":"IF(C2071=$X$4,\"Enter smelter details\", IF(ISERROR($V2071),\"\",OFFSET('Smelter Look-up'!$F$4,$V2071-4,0)))","v":""},{"$f":"IF(ISERROR($V2071),\"\",OFFSET('Smelter Look-up'!$G$4,$V2071-4,0))","v":""},{"$f":"IF(ISERROR($V2071),\"\",OFFSET('Smelter Look-up'!$H$4,$V2071-4,0))","v":""},{"$f":"IF(ISERROR($V2071),\"\",OFFSET('Smelter Look-up'!$I$4,$V2071-4,0))","v":""},{"$nulls":7},{"$f":"IF(ISERROR($V2071),\"\",OFFSET('Smelter Look-up'!$C$4,$V2071-4,0)&\"\")","v":""},"",{"$f":"IF(B2071=\"\",\"\",IF(ISERROR(MATCH($J2071,SorP!$B$1:$B$6230,0)),\"\",INDIRECT(\"'SorP'!$A$\"&MATCH($J2071,SorP!$B$1:$B$6230,0))))","v":""},null,{"$f":"IF(C2071=\"\",NA(),MATCH($B2071&$C2071,'Smelter Look-up'!$J:$J,0))","v":{"$error":"#N/A"}},null,0,null,null,null,""]
[null,{"$f":"IF(LEN(A2072)=0,\"\",INDEX('Smelter Look-up'!$A:$A,MATCH($A2072,'Smelter Look-up'!$E:$E,0)))","v":""},{"$f":"IF(LEN(A2072)=0,\"\",INDEX('Smelter Look-up'!$C:$C,MATCH($A2072,'Smelter Look-up'!$E:$E,0)))","v":""},null,{"$f":"IF(ISERROR($V2072),\"\",OFFSET('Smelter Look-up'!$D$4,$V2072-4,0)&\"\")","v":""},{"$f":"IF(ISERROR($V2072),\"\",OFFSET('Smelter Look-up'!$E$4,$V2072-4,0))","v":""},{"$f":"IF(C2072=$X$4,\"Enter smelter details\", IF(ISERROR($V2072),\"\",OFFSET('Smelter Look-up'!$F$4,$V2072-4,0)))","v":""},{"$f":"IF(ISERROR($V2072),\"\",OFFSET('Smelter Look-up'!$G$4,$V2072-4,0))","v":""},{"$f":"IF(ISERROR($V2072),\"\",OFFSET('Smelter Look-up'!$H$4,$V2072-4,0))","v":""},{"$f":"IF(ISERROR($V2072),\"\",OFFSET('Smelter Look-up'!$I$4,$V2072-4,0))","v":""},{"$nulls":7},{"$f":"IF(ISERROR($V2072),\"\",OFFSET('Smelter Look-up'!$C$4,$V2072-4,0)&\"\")","v":""},"",{"$f":"IF(B2072=\"\",\"\",IF(ISERROR(MATCH($J2072,SorP!$B$1:$B$6230,0)),\"\",INDIRECT(\"'SorP'!$A$\"&MATCH($J2072,SorP!$B$1:$B$6230,0))))","v":""},null,{"$f":"IF(C2072=\"\",NA(),MATCH($B2072&$C2072,'Smelter Look-up'!$J:$J,0))","v":{"$error":"#N/A"}},null,0,null,null,null,""]
[null,{"$f":"IF(LEN(A2073)=0,\"\",INDEX('Smelter Look-up'!$A:$A,MATCH($A2073,'Smelter Look-up'!$E:$E,0)))","v":""},{"$f":"IF(LEN(A2073)=0,\"\",INDEX('Smelter Look-up'!$C:$C,MATCH($A2073,'Smelter Look-up'!$E:$E,0)))","v":""},null,{"$f":"IF(ISERROR($V2073),\"\",OFFSET('Smelter Look-up'!$D$4,$V2073-4,0)&\"\")","v":""},{"$f":"IF(ISERROR($V2073),\"\",OFFSET('Smelter Look-up'!$E$4,$V2073-4,0))","v":""},{"$f":"IF(C2073=$X$4,\"Enter smelter details\", IF(ISERROR($V2073),\"\",OFFSET('Smelter Look-up'!$F$4,$V2073-4,0)))","v":""},{"$f":"IF(ISERROR($V2073),\"\",OFFSET('Smelter Look-up'!$G$4,$V2073-4,0))","v":""},{"$f":"IF(ISERROR($V2073),\"\",OFFSET('Smelter Look-up'!$H$4,$V2073-4,0))","v":""},{"$f":"IF(ISERROR($V2073),\"\",OFFSET('Smelter Look-up'!$I$4,$V2073-4,0))","v":""},{"$nulls":7},{"$f":"IF(ISERROR($V2073),\"\",OFFSET('Smelter Look-up'!$C$4,$V2073-4,0)&\"\")","v":""},"",{"$f":"IF(B2073=\"\",\"\",IF(ISERROR(MATCH($J2073,SorP!$B$1:$B$6230,0)),\"\",INDIRECT(\"'SorP'!$A$\"&MATCH($J2073,SorP!$B$1:$B$6230,0))))","v":""},null,{"$f":"IF(C2073=\"\",NA(),MATCH($B2073&$C2073,'Smelter Look-up'!$J:$J,0))","v":{"$error":"#N/A"}},null,0,null,null,null,""]
[null,{"$f":"IF(LEN(A2074)=0,\"\",INDEX('Smelter Look-up'!$A:$A,MATCH($A2074,'Smelter Look-up'!$E:$E,0)))","v":""},{"$f":"IF(LEN(A2074)=0,\"\",INDEX('Smelter Look-up'!$C:$C,MATCH($A2074,'Smelter Look-up'!$E:$E,0)))","v":""},null,{"$f":"IF(ISERROR($V2074),\"\",OFFSET('Smelter Look-up'!$D$4,$V2074-4,0)&\"\")","v":""},{"$f":"IF(ISERROR($V2074),\"\",OFFSET('Smelter Look-up'!$E$4,$V2074-4,0))","v":""},{"$f":"IF(C2074=$X$4,\"Enter smelter details\", IF(ISERROR($V2074),\"\",OFFSET('Smelter Look-up'!$F$4,$V2074-4,0)))","v":""},{"$f":"IF(ISERROR($V2074),\"\",OFFSET('Smelter Look-up'!$G$4,$V2074-4,0))","v":""},{"$f":"IF(ISERROR($V2074),\"\",OFFSET('Smelter Look-up'!$H$4,$V2074-4,0))","v":""},{"$f":"IF(ISERROR($V2074),\"\",OFFSET('Smelter Look-up'!$I$4,$V2074-4,0))","v":""},{"$nulls":7},{"$f":"IF(ISERROR($V2074),\"\",OFFSET('Smelter Look-up'!$C$4,$V2074-4,0)&\"\")","v":""},"",{"$f":"IF(B2074=\"\",\"\",IF(ISERROR(MATCH($J2074,SorP!$B$1:$B$6230,0)),\"\",INDIRECT(\"'SorP'!$A$\"&MATCH($J2074,SorP!$B$1:$B$6230,0))))","v":""},null,{"$f":"IF(C2074=\"\",NA(),MATCH($B2074&$C2074,'Smelter Look-up'!$J:$J,0))","v":{"$error":"#N/A"}},null,0,null,null,null,""]
[null,{"$f":"IF(LEN(A2075)=0,\"\",INDEX('Smelter Look-up'!$A:$A,MATCH($A2075,'Smelter Look-up'!$E:$E,0)))","v":""},{"$f":"IF(LEN(A2075)=0,\"\",INDEX('Smelter Look-up'!$C:$C,MATCH($A2075,'Smelter Look-up'!$E:$E,0)))","v":""},null,{"$f":"IF(ISERROR($V2075),\"\",OFFSET('Smelter Look-up'!$D$4,$V2075-4,0)&\"\")","v":""},{"$f":"IF(ISERROR($V2075),\"\",OFFSET('Smelter Look-up'!$E$4,$V2075-4,0))","v":""},{"$f":"IF(C2075=$X$4,\"Enter smelter details\", IF(ISERROR($V2075),\"\",OFFSET('Smelter Look-up'!$F$4,$V2075-4,0)))","v":""},{"$f":"IF(ISERROR($V2075),\"\",OFFSET('Smelter Look-up'!$G$4,$V2075-4,0))","v":""},{"$f":"IF(ISERROR($V2075),\"\",OFFSET('Smelter Look-up'!$H$4,$V2075-4,0))","v":""},{"$f":"IF(ISERROR($V2075),\"\",OFFSET('Smelter Look-up'!$I$4,$V2075-4,0))","v":""},{"$nulls":7},{"$f":"IF(ISERROR($V2075),\"\",OFFSET('Smelter Look-up'!$C$4,$V2075-4,0)&\"\")","v":""},"",{"$f":"IF(B2075=\"\",\"\",IF(ISERROR(MATCH($J2075,SorP!$B$1:$B$6230,0)),\"\",INDIRECT(\"'SorP'!$A$\"&MATCH($J2075,SorP!$B$1:$B$6230,0))))","v":""},null,{"$f":"IF(C2075=\"\",NA(),MATCH($B2075&$C2075,'Smelter Look-up'!$J:$J,0))","v":{"$error":"#N/A"}},null,0,null,null,null,""]
[null,{"$f":"IF(LEN(A2076)=0,\"\",INDEX('Smelter Look-up'!$A:$A,MATCH($A2076,'Smelter Look-up'!$E:$E,0)))","v":""},{"$f":"IF(LEN(A2076)=0,\"\",INDEX('Smelter Look-up'!$C:$C,MATCH($A2076,'Smelter Look-up'!$E:$E,0)))","v":""},null,{"$f":"IF(ISERROR($V2076),\"\",OFFSET('Smelter Look-up'!$D$4,$V2076-4,0)&\"\")","v":""},{"$f":"IF(ISERROR($V2076),\"\",OFFSET('Smelter Look-up'!$E$4,$V2076-4,0))","v":""},{"$f":"IF(C2076=$X$4,\"Enter smelter details\", IF(ISERROR($V2076),\"\",OFFSET('Smelter Look-up'!$F$4,$V2076-4,0)))","v":""},{"$f":"IF(ISERROR($V2076),\"\",OFFSET('Smelter Look-up'!$G$4,$V2076-4,0))","v":""},{"$f":"IF(ISERROR($V2076),\"\",OFFSET('Smelter Look-up'!$H$4,$V2076-4,0))","v":""},{"$f":"IF(ISERROR($V2076),\"\",OFFSET('Smelter Look-up'!$I$4,$V2076-4,0))","v":""},{"$nulls":7},{"$f":"IF(ISERROR($V2076),\"\",OFFSET('Smelter Look-up'!$C$4,$V2076-4,0)&\"\")","v":""},"",{"$f":"IF(B2076=\"\",\"\",IF(ISERROR(MATCH($J2076,SorP!$B$1:$B$6230,0)),\"\",INDIRECT(\"'SorP'!$A$\"&MATCH($J2076,SorP!$B$1:$B$6230,0))))","v":""},null,{"$f":"IF(C2076=\"\",NA(),MATCH($B2076&$C2076,'Smelter Look-up'!$J:$J,0))","v":{"$error":"#N/A"}},null,0,null,null,null,""]
[null,{"$f":"IF(LEN(A2077)=0,\"\",INDEX('Smelter Look-up'!$A:$A,MATCH($A2077,'Smelter Look-up'!$E:$E,0)))","v":""},{"$f":"IF(LEN(A2077)=0,\"\",INDEX('Smelter Look-up'!$C:$C,MATCH($A2077,'Smelter Look-up'!$E:$E,0)))","v":""},null,{"$f":"IF(ISERROR($V2077),\"\",OFFSET('Smelter Look-up'!$D$4,$V2077-4,0)&\"\")","v":""},{"$f":"IF(ISERROR($V2077),\"\",OFFSET('Smelter Look-up'!$E$4,$V2077-4,0))","v":""},{"$f":"IF(C2077=$X$4,\"Enter smelter details\", IF(ISERROR($V2077),\"\",OFFSET('Smelter Look-up'!$F$4,$V2077-4,0)))","v":""},{"$f":"IF(ISERROR($V2077),\"\",OFFSET('Smelter Look-up'!$G$4,$V2077-4,0))","v":""},{"$f":"IF(ISERROR($V2077),\"\",OFFSET('Smelter Look-up'!$H$4,$V2077-4,0))","v":""},{"$f":"IF(ISERROR($V2077),\"\",OFFSET('Smelter Look-up'!$I$4,$V2077-4,0))","v":""},{"$nulls":7},{"$f":"IF(ISERROR($V2077),\"\",OFFSET('Smelter Look-up'!$C$4,$V2077-4,0)&\"\")","v":""},"",{"$f":"IF(B2077=\"\",\"\",IF(ISERROR(MATCH($J2077,SorP!$B$1:$B$6230,0)),\"\",INDIRECT(\"'SorP'!$A$\"&MATCH($J2077,SorP!$B$1:$B$6230,0))))","v":""},null,{"$f":"IF(C2077=\"\",NA(),MATCH($B2077&$C2077,'Smelter Look-up'!$J:$J,0))","v":{"$error":"#N/A"}},null,0,null,null,null,""]
[null,{"$f":"IF(LEN(A2078)=0,\"\",INDEX('Smelter Look-up'!$A:$A,MATCH($A2078,'Smelter Look-up'!$E:$E,0)))","v":""},{"$f":"IF(LEN(A2078)=0,\"\",INDEX('Smelter Look-up'!$C:$C,MATCH($A2078,'Smelter Look-up'!$E:$E,0)))","v":""},null,{"$f":"IF(ISERROR($V2078),\"\",OFFSET('Smelter Look-up'!$D$4,$V2078-4,0)&\"\")","v":""},{"$f":"IF(ISERROR($V2078),\"\",OFFSET('Smelter Look-up'!$E$4,$V2078-4,0))","v":""},{"$f":"IF(C2078=$X$4,\"Enter smelter details\", IF(ISERROR($V2078),\"\",OFFSET('Smelter Look-up'!$F$4,$V2078-4,0)))","v":""},{"$f":"IF(ISERROR($V2078),\"\",OFFSET('Smelter Look-up'!$G$4,$V2078-4,0))","v":""},{"$f":"IF(ISERROR($V2078),\"\",OFFSET('Smelter Look-up'!$H$4,$V2078-4,0))","v":""},{"$f":"IF(ISERROR($V2078),\"\",OFFSET('Smelter Look-up'!$I$4,$V2078-4,0))","v":""},{"$nulls":7},{"$f":"IF(ISERROR($V2078),\"\",OFFSET('Smelter Look-up'!$C$4,$V2078-4,0)&\"\")","v":""},"",{"$f":"IF(B2078=\"\",\"\",IF(ISERROR(MATCH($J2078,SorP!$B$1:$B$6230,0)),\"\",INDIRECT(\"'SorP'!$A$\"&MATCH($J2078,SorP!$B$1:$B$6230,0))))","v":""},null,{"$f":"IF(C2078=\"\",NA(),MATCH($B2078&$C2078,'Smelter Look-up'!$J:$J,0))","v":{"$error":"#N/A"}},null,0,null,null,null,""]
[null,{"$f":"IF(LEN(A2079)=0,\"\",INDEX('Smelter Look-up'!$A:$A,MATCH($A2079,'Smelter Look-up'!$E:$E,0)))","v":""},{"$f":"IF(LEN(A2079)=0,\"\",INDEX('Smelter Look-up'!$C:$C,MATCH($A2079,'Smelter Look-up'!$E:$E,0)))","v":""},null,{"$f":"IF(ISERROR($V2079),\"\",OFFSET('Smelter Look-up'!$D$4,$V2079-4,0)&\"\")","v":""},{"$f":"IF(ISERROR($V2079),\"\",OFFSET('Smelter Look-up'!$E$4,$V2079-4,0))","v":""},{"$f":"IF(C2079=$X$4,\"Enter smelter details\", IF(ISERROR($V2079),\"\",OFFSET('Smelter Look-up'!$F$4,$V2079-4,0)))","v":""},{"$f":"IF(ISERROR($V2079),\"\",OFFSET('Smelter Look-up'!$G$4,$V2079-4,0))","v":""},{"$f":"IF(ISERROR($V2079),\"\",OFFSET('Smelter Look-up'!$H$4,$V2079-4,0))","v":""},{"$f":"IF(ISERROR($V2079),\"\",OFFSET('Smelter Look-up'!$I$4,$V2079-4,0))","v":""},{"$nulls":7},{"$f":"IF(ISERROR($V2079),\"\",OFFSET('Smelter Look-up'!$C$4,$V2079-4,0)&\"\")","v":""},"",{"$f":"IF(B2079=\"\",\"\",IF(ISERROR(MATCH($J2079,SorP!$B$1:$B$6230,0)),\"\",INDIRECT(\"'SorP'!$A$\"&MATCH($J2079,SorP!$B$1:$B$6230,0))))","v":""},null,{"$f":"IF(C2079=\"\",NA(),MATCH($B2079&$C2079,'Smelter Look-up'!$J:$J,0))","v":{"$error":"#N/A"}},null,0,null,null,null,""]
[null,{"$f":"IF(LEN(A2080)=0,\"\",INDEX('Smelter Look-up'!$A:$A,MATCH($A2080,'Smelter Look-up'!$E:$E,0)))","v":""},{"$f":"IF(LEN(A2080)=0,\"\",INDEX('Smelter Look-up'!$C:$C,MATCH($A2080,'Smelter Look-up'!$E:$E,0)))","v":""},null,{"$f":"IF(ISERROR($V2080),\"\",OFFSET('Smelter Look-up'!$D$4,$V2080-4,0)&\"\")","v":""},{"$f":"IF(ISERROR($V2080),\"\",OFFSET('Smelter Look-up'!$E$4,$V2080-4,0))","v":""},{"$f":"IF(C2080=$X$4,\"Enter smelter details\", IF(ISERROR($V2080),\"\",OFFSET('Smelter Look-up'!$F$4,$V2080-4,0)))","v":""},{"$f":"IF(ISERROR($V2080),\"\",OFFSET('Smelter Look-up'!$G$4,$V2080-4,0))","v":""},{"$f":"IF(ISERROR($V2080),\"\",OFFSET('Smelter Look-up'!$H$4,$V2080-4,0))","v":""},{"$f":"IF(ISERROR($V2080),\"\",OFFSET('Smelter Look-up'!$I$4,$V2080-4,0))","v":""},{"$nulls":7},{"$f":"IF(ISERROR($V2080),\"\",OFFSET('Smelter Look-up'!$C$4,$V2080-4,0)&\"\")","v":""},"",{"$f":"IF(B2080=\"\",\"\",IF(ISERROR(MATCH($J2080,SorP!$B$1:$B$6230,0)),\"\",INDIRECT(\"'SorP'!$A$\"&MATCH($J2080,SorP!$B$1:$B$6230,0))))","v":""},null,{"$f":"IF(C2080=\"\",NA(),MATCH($B2080&$C2080,'Smelter Look-up'!$J:$J,0))","v":{"$error":"#N/A"}},null,0,null,null,null,""]
[null,{"$f":"IF(LEN(A2081)=0,\"\",INDEX('Smelter Look-up'!$A:$A,MATCH($A2081,'Smelter Look-up'!$E:$E,0)))","v":""},{"$f":"IF(LEN(A2081)=0,\"\",INDEX('Smelter Look-up'!$C:$C,MATCH($A2081,'Smelter Look-up'!$E:$E,0)))","v":""},null,{"$f":"IF(ISERROR($V2081),\"\",OFFSET('Smelter Look-up'!$D$4,$V2081-4,0)&\"\")","v":""},{"$f":"IF(ISERROR($V2081),\"\",OFFSET('Smelter Look-up'!$E$4,$V2081-4,0))","v":""},{"$f":"IF(C2081=$X$4,\"Enter smelter details\", IF(ISERROR($V2081),\"\",OFFSET('Smelter Look-up'!$F$4,$V2081-4,0)))","v":""},{"$f":"IF(ISERROR($V2081),\"\",OFFSET('Smelter Look-up'!$G$4,$V2081-4,0))","v":""},{"$f":"IF(ISERROR($V2081),\"\",OFFSET('Smelter Look-up'!$H$4,$V2081-4,0))","v":""},{"$f":"IF(ISERROR($V2081),\"\",OFFSET('Smelter Look-up'!$I$4,$V2081-4,0))","v":""},{"$nulls":7},{"$f":"IF(ISERROR($V2081),\"\",OFFSET('Smelter Look-up'!$C$4,$V2081-4,0)&\"\")","v":""},"",{"$f":"IF(B2081=\"\",\"\",IF(ISERROR(MATCH($J2081,SorP!$B$1:$B$6230,0)),\"\",INDIRECT(\"'SorP'!$A$\"&MATCH($J2081,SorP!$B$1:$B$6230,0))))","v":""},null,{"$f":"IF(C2081=\"\",NA(),MATCH($B2081&$C2081,'Smelter Look-up'!$J:$J,0))","v":{"$error":"#N/A"}},null,0,null,null,null,""]
[null,{"$f":"IF(LEN(A2082)=0,\"\",INDEX('Smelter Look-up'!$A:$A,MATCH($A2082,'Smelter Look-up'!$E:$E,0)))","v":""},{"$f":"IF(LEN(A2082)=0,\"\",INDEX('Smelter Look-up'!$C:$C,MATCH($A2082,'Smelter Look-up'!$E:$E,0)))","v":""},null,{"$f":"IF(ISERROR($V2082),\"\",OFFSET('Smelter Look-up'!$D$4,$V2082-4,0)&\"\")","v":""},{"$f":"IF(ISERROR($V2082),\"\",OFFSET('Smelter Look-up'!$E$4,$V2082-4,0))","v":""},{"$f":"IF(C2082=$X$4,\"Enter smelter details\", IF(ISERROR($V2082),\"\",OFFSET('Smelter Look-up'!$F$4,$V2082-4,0)))","v":""},{"$f":"IF(ISERROR($V2082),\"\",OFFSET('Smelter Look-up'!$G$4,$V2082-4,0))","v":""},{"$f":"IF(ISERROR($V2082),\"\",OFFSET('Smelter Look-up'!$H$4,$V2082-4,0))","v":""},{"$f":"IF(ISERROR($V2082),\"\",OFFSET('Smelter Look-up'!$I$4,$V2082-4,0))","v":""},{"$nulls":7},{"$f":"IF(ISERROR($V2082),\"\",OFFSET('Smelter Look-up'!$C$4,$V2082-4,0)&\"\")","v":""},"",{"$f":"IF(B2082=\"\",\"\",IF(ISERROR(MATCH($J2082,SorP!$B$1:$B$6230,0)),\"\",INDIRECT(\"'SorP'!$A$\"&MATCH($J2082,SorP!$B$1:$B$6230,0))))","v":""},null,{"$f":"IF(C2082=\"\",NA(),MATCH($B2082&$C2082,'Smelter Look-up'!$J:$J,0))","v":{"$error":"#N/A"}},null,0,null,null,null,""]
[null,{"$f":"IF(LEN(A2083)=0,\"\",INDEX('Smelter Look-up'!$A:$A,MATCH($A2083,'Smelter Look-up'!$E:$E,0)))","v":""},{"$f":"IF(LEN(A2083)=0,\"\",INDEX('Smelter Look-up'!$C:$C,MATCH($A2083,'Smelter Look-up'!$E:$E,0)))","v":""},null,{"$f":"IF(ISERROR($V2083),\"\",OFFSET('Smelter Look-up'!$D$4,$V2083-4,0)&\"\")","v":""},{"$f":"IF(ISERROR($V2083),\"\",OFFSET('Smelter Look-up'!$E$4,$V2083-4,0))","v":""},{"$f":"IF(C2083=$X$4,\"Enter smelter details\", IF(ISERROR($V2083),\"\",OFFSET('Smelter Look-up'!$F$4,$V2083-4,0)))","v":""},{"$f":"IF(ISERROR($V2083),\"\",OFFSET('Smelter Look-up'!$G$4,$V2083-4,0))","v":""},{"$f":"IF(ISERROR($V2083),\"\",OFFSET('Smelter Look-up'!$H$4,$V2083-4,0))","v":""},{"$f":"IF(ISERROR($V2083),\"\",OFFSET('Smelter Look-up'!$I$4,$V2083-4,0))","v":""},{"$nulls":7},{"$f":"IF(ISERROR($V2083),\"\",OFFSET('Smelter Look-up'!$C$4,$V2083-4,0)&\"\")","v":""},"",{"$f":"IF(B2083=\"\",\"\",IF(ISERROR(MATCH($J2083,SorP!$B$1:$B$6230,0)),\"\",INDIRECT(\"'SorP'!$A$\"&MATCH($J2083,SorP!$B$1:$B$6230,0))))","v":""},null,{"$f":"IF(C2083=\"\",NA(),MATCH($B2083&$C2083,'Smelter Look-up'!$J:$J,0))","v":{"$error":"#N/A"}},null,0,null,null,null,""]
[null,{"$f":"IF(LEN(A2084)=0,\"\",INDEX('Smelter Look-up'!$A:$A,MATCH($A2084,'Smelter Look-up'!$E:$E,0)))","v":""},{"$f":"IF(LEN(A2084)=0,\"\",INDEX('Smelter Look-up'!$C:$C,MATCH($A2084,'Smelter Look-up'!$E:$E,0)))","v":""},null,{"$f":"IF(ISERROR($V2084),\"\",OFFSET('Smelter Look-up'!$D$4,$V2084-4,0)&\"\")","v":""},{"$f":"IF(ISERROR($V2084),\"\",OFFSET('Smelter Look-up'!$E$4,$V2084-4,0))","v":""},{"$f":"IF(C2084=$X$4,\"Enter smelter details\", IF(ISERROR($V2084),\"\",OFFSET('Smelter Look-up'!$F$4,$V2084-4,0)))","v":""},{"$f":"IF(ISERROR($V2084),\"\",OFFSET('Smelter Look-up'!$G$4,$V2084-4,0))","v":""},{"$f":"IF(ISERROR($V2084),\"\",OFFSET('Smelter Look-up'!$H$4,$V2084-4,0))","v":""},{"$f":"IF(ISERROR($V2084),\"\",OFFSET('Smelter Look-up'!$I$4,$V2084-4,0))","v":""},{"$nulls":7},{"$f":"IF(ISERROR($V2084),\"\",OFFSET('Smelter Look-up'!$C$4,$V2084-4,0)&\"\")","v":""},"",{"$f":"IF(B2084=\"\",\"\",IF(ISERROR(MATCH($J2084,SorP!$B$1:$B$6230,0)),\"\",INDIRECT(\"'SorP'!$A$\"&MATCH($J2084,SorP!$B$1:$B$6230,0))))","v":""},null,{"$f":"IF(C2084=\"\",NA(),MATCH($B2084&$C2084,'Smelter Look-up'!$J:$J,0))","v":{"$error":"#N/A"}},null,0,null,null,null,""]
[null,{"$f":"IF(LEN(A2085)=0,\"\",INDEX('Smelter Look-up'!$A:$A,MATCH($A2085,'Smelter Look-up'!$E:$E,0)))","v":""},{"$f":"IF(LEN(A2085)=0,\"\",INDEX('Smelter Look-up'!$C:$C,MATCH($A2085,'Smelter Look-up'!$E:$E,0)))","v":""},null,{"$f":"IF(ISERROR($V2085),\"\",OFFSET('Smelter Look-up'!$D$4,$V2085-4,0)&\"\")","v":""},{"$f":"IF(ISERROR($V2085),\"\",OFFSET('Smelter Look-up'!$E$4,$V2085-4,0))","v":""},{"$f":"IF(C2085=$X$4,\"Enter smelter details\", IF(ISERROR($V2085),\"\",OFFSET('Smelter Look-up'!$F$4,$V2085-4,0)))","v":""},{"$f":"IF(ISERROR($V2085),\"\",OFFSET('Smelter Look-up'!$G$4,$V2085-4,0))","v":""},{"$f":"IF(ISERROR($V2085),\"\",OFFSET('Smelter Look-up'!$H$4,$V2085-4,0))","v":""},{"$f":"IF(ISERROR($V2085),\"\",OFFSET('Smelter Look-up'!$I$4,$V2085-4,0))","v":""},{"$nulls":7},{"$f":"IF(ISERROR($V2085),\"\",OFFSET('Smelter Look-up'!$C$4,$V2085-4,0)&\"\")","v":""},"",{"$f":"IF(B2085=\"\",\"\",IF(ISERROR(MATCH($J2085,SorP!$B$1:$B$6230,0)),\"\",INDIRECT(\"'SorP'!$A$\"&MATCH($J2085,SorP!$B$1:$B$6230,0))))","v":""},null,{"$f":"IF(C2085=\"\",NA(),MATCH($B2085&$C2085,'Smelter Look-up'!$J:$J,0))","v":{"$error":"#N/A"}},null,0,null,null,null,""]
[null,{"$f":"IF(LEN(A2086)=0,\"\",INDEX('Smelter Look-up'!$A:$A,MATCH($A2086,'Smelter Look-up'!$E:$E,0)))","v":""},{"$f":"IF(LEN(A2086)=0,\"\",INDEX('Smelter Look-up'!$C:$C,MATCH($A2086,'Smelter Look-up'!$E:$E,0)))","v":""},null,{"$f":"IF(ISERROR($V2086),\"\",OFFSET('Smelter Look-up'!$D$4,$V2086-4,0)&\"\")","v":""},{"$f":"IF(ISERROR($V2086),\"\",OFFSET('Smelter Look-up'!$E$4,$V2086-4,0))","v":""},{"$f":"IF(C2086=$X$4,\"Enter smelter details\", IF(ISERROR($V2086),\"\",OFFSET('Smelter Look-up'!$F$4,$V2086-4,0)))","v":""},{"$f":"IF(ISERROR($V2086),\"\",OFFSET('Smelter Look-up'!$G$4,$V2086-4,0))","v":""},{"$f":"IF(ISERROR($V2086),\"\",OFFSET('Smelter Look-up'!$H$4,$V2086-4,0))","v":""},{"$f":"IF(ISERROR($V2086),\"\",OFFSET('Smelter Look-up'!$I$4,$V2086-4,0))","v":""},{"$nulls":7},{"$f":"IF(ISERROR($V2086),\"\",OFFSET('Smelter Look-up'!$C$4,$V2086-4,0)&\"\")","v":""},"",{"$f":"IF(B2086=\"\",\"\",IF(ISERROR(MATCH($J2086,SorP!$B$1:$B$6230,0)),\"\",INDIRECT(\"'SorP'!$A$\"&MATCH($J2086,SorP!$B$1:$B$6230,0))))","v":""},null,{"$f":"IF(C2086=\"\",NA(),MATCH($B2086&$C2086,'Smelter Look-up'!$J:$J,0))","v":{"$error":"#N/A"}},null,0,null,null,null,""]
[null,{"$f":"IF(LEN(A2087)=0,\"\",INDEX('Smelter Look-up'!$A:$A,MATCH($A2087,'Smelter Look-up'!$E:$E,0)))","v":""},{"$f":"IF(LEN(A2087)=0,\"\",INDEX('Smelter Look-up'!$C:$C,MATCH($A2087,'Smelter Look-up'!$E:$E,0)))","v":""},null,{"$f":"IF(ISERROR($V2087),\"\",OFFSET('Smelter Look-up'!$D$4,$V2087-4,0)&\"\")","v":""},{"$f":"IF(ISERROR($V2087),\"\",OFFSET('Smelter Look-up'!$E$4,$V2087-4,0))","v":""},{"$f":"IF(C2087=$X$4,\"Enter smelter details\", IF(ISERROR($V2087),\"\",OFFSET('Smelter Look-up'!$F$4,$V2087-4,0)))","v":""},{"$f":"IF(ISERROR($V2087),\"\",OFFSET('Smelter Look-up'!$G$4,$V2087-4,0))","v":""},{"$f":"IF(ISERROR($V2087),\"\",OFFSET('Smelter Look-up'!$H$4,$V2087-4,0))","v":""},{"$f":"IF(ISERROR($V2087),\"\",OFFSET('Smelter Look-up'!$I$4,$V2087-4,0))","v":""},{"$nulls":7},{"$f":"IF(ISERROR($V2087),\"\",OFFSET('Smelter Look-up'!$C$4,$V2087-4,0)&\"\")","v":""},"",{"$f":"IF(B2087=\"\",\"\",IF(ISERROR(MATCH($J2087,SorP!$B$1:$B$6230,0)),\"\",INDIRECT(\"'SorP'!$A$\"&MATCH($J2087,SorP!$B$1:$B$6230,0))))","v":""},null,{"$f":"IF(C2087=\"\",NA(),MATCH($B2087&$C2087,'Smelter Look-up'!$J:$J,0))","v":{"$error":"#N/A"}},null,0,null,null,null,""]
[null,{"$f":"IF(LEN(A2088)=0,\"\",INDEX('Smelter Look-up'!$A:$A,MATCH($A2088,'Smelter Look-up'!$E:$E,0)))","v":""},{"$f":"IF(LEN(A2088)=0,\"\",INDEX('Smelter Look-up'!$C:$C,MATCH($A2088,'Smelter Look-up'!$E:$E,0)))","v":""},null,{"$f":"IF(ISERROR($V2088),\"\",OFFSET('Smelter Look-up'!$D$4,$V2088-4,0)&\"\")","v":""},{"$f":"IF(ISERROR($V2088),\"\",OFFSET('Smelter Look-up'!$E$4,$V2088-4,0))","v":""},{"$f":"IF(C2088=$X$4,\"Enter smelter details\", IF(ISERROR($V2088),\"\",OFFSET('Smelter Look-up'!$F$4,$V2088-4,0)))","v":""},{"$f":"IF(ISERROR($V2088),\"\",OFFSET('Smelter Look-up'!$G$4,$V2088-4,0))","v":""},{"$f":"IF(ISERROR($V2088),\"\",OFFSET('Smelter Look-up'!$H$4,$V2088-4,0))","v":""},{"$f":"IF(ISERROR($V2088),\"\",OFFSET('Smelter Look-up'!$I$4,$V2088-4,0))","v":""},{"$nulls":7},{"$f":"IF(ISERROR($V2088),\"\",OFFSET('Smelter Look-up'!$C$4,$V2088-4,0)&\"\")","v":""},"",{"$f":"IF(B2088=\"\",\"\",IF(ISERROR(MATCH($J2088,SorP!$B$1:$B$6230,0)),\"\",INDIRECT(\"'SorP'!$A$\"&MATCH($J2088,SorP!$B$1:$B$6230,0))))","v":""},null,{"$f":"IF(C2088=\"\",NA(),MATCH($B2088&$C2088,'Smelter Look-up'!$J:$J,0))","v":{"$error":"#N/A"}},null,0,null,null,null,""]
[null,{"$f":"IF(LEN(A2089)=0,\"\",INDEX('Smelter Look-up'!$A:$A,MATCH($A2089,'Smelter Look-up'!$E:$E,0)))","v":""},{"$f":"IF(LEN(A2089)=0,\"\",INDEX('Smelter Look-up'!$C:$C,MATCH($A2089,'Smelter Look-up'!$E:$E,0)))","v":""},null,{"$f":"IF(ISERROR($V2089),\"\",OFFSET('Smelter Look-up'!$D$4,$V2089-4,0)&\"\")","v":""},{"$f":"IF(ISERROR($V2089),\"\",OFFSET('Smelter Look-up'!$E$4,$V2089-4,0))","v":""},{"$f":"IF(C2089=$X$4,\"Enter smelter details\", IF(ISERROR($V2089),\"\",OFFSET('Smelter Look-up'!$F$4,$V2089-4,0)))","v":""},{"$f":"IF(ISERROR($V2089),\"\",OFFSET('Smelter Look-up'!$G$4,$V2089-4,0))","v":""},{"$f":"IF(ISERROR($V2089),\"\",OFFSET('Smelter Look-up'!$H$4,$V2089-4,0))","v":""},{"$f":"IF(ISERROR($V2089),\"\",OFFSET('Smelter Look-up'!$I$4,$V2089-4,0))","v":""},{"$nulls":7},{"$f":"IF(ISERROR($V2089),\"\",OFFSET('Smelter Look-up'!$C$4,$V2089-4,0)&\"\")","v":""},"",{"$f":"IF(B2089=\"\",\"\",IF(ISERROR(MATCH($J2089,SorP!$B$1:$B$6230,0)),\"\",INDIRECT(\"'SorP'!$A$\"&MATCH($J2089,SorP!$B$1:$B$6230,0))))","v":""},null,{"$f":"IF(C2089=\"\",NA(),MATCH($B2089&$C2089,'Smelter Look-up'!$J:$J,0))","v":{"$error":"#N/A"}},null,0,null,null,null,""]
[null,{"$f":"IF(LEN(A2090)=0,\"\",INDEX('Smelter Look-up'!$A:$A,MATCH($A2090,'Smelter Look-up'!$E:$E,0)))","v":""},{"$f":"IF(LEN(A2090)=0,\"\",INDEX('Smelter Look-up'!$C:$C,MATCH($A2090,'Smelter Look-up'!$E:$E,0)))","v":""},null,{"$f":"IF(ISERROR($V2090),\"\",OFFSET('Smelter Look-up'!$D$4,$V2090-4,0)&\"\")","v":""},{"$f":"IF(ISERROR($V2090),\"\",OFFSET('Smelter Look-up'!$E$4,$V2090-4,0))","v":""},{"$f":"IF(C2090=$X$4,\"Enter smelter details\", IF(ISERROR($V2090),\"\",OFFSET('Smelter Look-up'!$F$4,$V2090-4,0)))","v":""},{"$f":"IF(ISERROR($V2090),\"\",OFFSET('Smelter Look-up'!$G$4,$V2090-4,0))","v":""},{"$f":"IF(ISERROR($V2090),\"\",OFFSET('Smelter Look-up'!$H$4,$V2090-4,0))","v":""},{"$f":"IF(ISERROR($V2090),\"\",OFFSET('Smelter Look-up'!$I$4,$V2090-4,0))","v":""},{"$nulls":7},{"$f":"IF(ISERROR($V2090),\"\",OFFSET('Smelter Look-up'!$C$4,$V2090-4,0)&\"\")","v":""},"",{"$f":"IF(B2090=\"\",\"\",IF(ISERROR(MATCH($J2090,SorP!$B$1:$B$6230,0)),\"\",INDIRECT(\"'SorP'!$A$\"&MATCH($J2090,SorP!$B$1:$B$6230,0))))","v":""},null,{"$f":"IF(C2090=\"\",NA(),MATCH($B2090&$C2090,'Smelter Look-up'!$J:$J,0))","v":{"$error":"#N/A"}},null,0,null,null,null,""]
[null,{"$f":"IF(LEN(A2091)=0,\"\",INDEX('Smelter Look-up'!$A:$A,MATCH($A2091,'Smelter Look-up'!$E:$E,0)))","v":""},{"$f":"IF(LEN(A2091)=0,\"\",INDEX('Smelter Look-up'!$C:$C,MATCH($A2091,'Smelter Look-up'!$E:$E,0)))","v":""},null,{"$f":"IF(ISERROR($V2091),\"\",OFFSET('Smelter Look-up'!$D$4,$V2091-4,0)&\"\")","v":""},{"$f":"IF(ISERROR($V2091),\"\",OFFSET('Smelter Look-up'!$E$4,$V2091-4,0))","v":""},{"$f":"IF(C2091=$X$4,\"Enter smelter details\", IF(ISERROR($V2091),\"\",OFFSET('Smelter Look-up'!$F$4,$V2091-4,0)))","v":""},{"$f":"IF(ISERROR($V2091),\"\",OFFSET('Smelter Look-up'!$G$4,$V2091-4,0))","v":""},{"$f":"IF(ISERROR($V2091),\"\",OFFSET('Smelter Look-up'!$H$4,$V2091-4,0))","v":""},{"$f":"IF(ISERROR($V2091),\"\",OFFSET('Smelter Look-up'!$I$4,$V2091-4,0))","v":""},{"$nulls":7},{"$f":"IF(ISERROR($V2091),\"\",OFFSET('Smelter Look-up'!$C$4,$V2091-4,0)&\"\")","v":""},"",{"$f":"IF(B2091=\"\",\"\",IF(ISERROR(MATCH($J2091,SorP!$B$1:$B$6230,0)),\"\",INDIRECT(\"'SorP'!$A$\"&MATCH($J2091,SorP!$B$1:$B$6230,0))))","v":""},null,{"$f":"IF(C2091=\"\",NA(),MATCH($B2091&$C2091,'Smelter Look-up'!$J:$J,0))","v":{"$error":"#N/A"}},null,0,null,null,null,""]
[null,{"$f":"IF(LEN(A2092)=0,\"\",INDEX('Smelter Look-up'!$A:$A,MATCH($A2092,'Smelter Look-up'!$E:$E,0)))","v":""},{"$f":"IF(LEN(A2092)=0,\"\",INDEX('Smelter Look-up'!$C:$C,MATCH($A2092,'Smelter Look-up'!$E:$E,0)))","v":""},null,{"$f":"IF(ISERROR($V2092),\"\",OFFSET('Smelter Look-up'!$D$4,$V2092-4,0)&\"\")","v":""},{"$f":"IF(ISERROR($V2092),\"\",OFFSET('Smelter Look-up'!$E$4,$V2092-4,0))","v":""},{"$f":"IF(C2092=$X$4,\"Enter smelter details\", IF(ISERROR($V2092),\"\",OFFSET('Smelter Look-up'!$F$4,$V2092-4,0)))","v":""},{"$f":"IF(ISERROR($V2092),\"\",OFFSET('Smelter Look-up'!$G$4,$V2092-4,0))","v":""},{"$f":"IF(ISERROR($V2092),\"\",OFFSET('Smelter Look-up'!$H$4,$V2092-4,0))","v":""},{"$f":"IF(ISERROR($V2092),\"\",OFFSET('Smelter Look-up'!$I$4,$V2092-4,0))","v":""},{"$nulls":7},{"$f":"IF(ISERROR($V2092),\"\",OFFSET('Smelter Look-up'!$C$4,$V2092-4,0)&\"\")","v":""},"",{"$f":"IF(B2092=\"\",\"\",IF(ISERROR(MATCH($J2092,SorP!$B$1:$B$6230,0)),\"\",INDIRECT(\"'SorP'!$A$\"&MATCH($J2092,SorP!$B$1:$B$6230,0))))","v":""},null,{"$f":"IF(C2092=\"\",NA(),MATCH($B2092&$C2092,'Smelter Look-up'!$J:$J,0))","v":{"$error":"#N/A"}},null,0,null,null,null,""]
[null,{"$f":"IF(LEN(A2093)=0,\"\",INDEX('Smelter Look-up'!$A:$A,MATCH($A2093,'Smelter Look-up'!$E:$E,0)))","v":""},{"$f":"IF(LEN(A2093)=0,\"\",INDEX('Smelter Look-up'!$C:$C,MATCH($A2093,'Smelter Look-up'!$E:$E,0)))","v":""},null,{"$f":"IF(ISERROR($V2093),\"\",OFFSET('Smelter Look-up'!$D$4,$V2093-4,0)&\"\")","v":""},{"$f":"IF(ISERROR($V2093),\"\",OFFSET('Smelter Look-up'!$E$4,$V2093-4,0))","v":""},{"$f":"IF(C2093=$X$4,\"Enter smelter details\", IF(ISERROR($V2093),\"\",OFFSET('Smelter Look-up'!$F$4,$V2093-4,0)))","v":""},{"$f":"IF(ISERROR($V2093),\"\",OFFSET('Smelter Look-up'!$G$4,$V2093-4,0))","v":""},{"$f":"IF(ISERROR($V2093),\"\",OFFSET('Smelter Look-up'!$H$4,$V2093-4,0))","v":""},{"$f":"IF(ISERROR($V2093),\"\",OFFSET('Smelter Look-up'!$I$4,$V2093-4,0))","v":""},{"$nulls":7},{"$f":"IF(ISERROR($V2093),\"\",OFFSET('Smelter Look-up'!$C$4,$V2093-4,0)&\"\")","v":""},"",{"$f":"IF(B2093=\"\",\"\",IF(ISERROR(MATCH($J2093,SorP!$B$1:$B$6230,0)),\"\",INDIRECT(\"'SorP'!$A$\"&MATCH($J2093,SorP!$B$1:$B$6230,0))))","v":""},null,{"$f":"IF(C2093=\"\",NA(),MATCH($B2093&$C2093,'Smelter Look-up'!$J:$J,0))","v":{"$error":"#N/A"}},null,0,null,null,null,""]
[null,{"$f":"IF(LEN(A2094)=0,\"\",INDEX('Smelter Look-up'!$A:$A,MATCH($A2094,'Smelter Look-up'!$E:$E,0)))","v":""},{"$f":"IF(LEN(A2094)=0,\"\",INDEX('Smelter Look-up'!$C:$C,MATCH($A2094,'Smelter Look-up'!$E:$E,0)))","v":""},null,{"$f":"IF(ISERROR($V2094),\"\",OFFSET('Smelter Look-up'!$D$4,$V2094-4,0)&\"\")","v":""},{"$f":"IF(ISERROR($V2094),\"\",OFFSET('Smelter Look-up'!$E$4,$V2094-4,0))","v":""},{"$f":"IF(C2094=$X$4,\"Enter smelter details\", IF(ISERROR($V2094),\"\",OFFSET('Smelter Look-up'!$F$4,$V2094-4,0)))","v":""},{"$f":"IF(ISERROR($V2094),\"\",OFFSET('Smelter Look-up'!$G$4,$V2094-4,0))","v":""},{"$f":"IF(ISERROR($V2094),\"\",OFFSET('Smelter Look-up'!$H$4,$V2094-4,0))","v":""},{"$f":"IF(ISERROR($V2094),\"\",OFFSET('Smelter Look-up'!$I$4,$V2094-4,0))","v":""},{"$nulls":7},{"$f":"IF(ISERROR($V2094),\"\",OFFSET('Smelter Look-up'!$C$4,$V2094-4,0)&\"\")","v":""},"",{"$f":"IF(B2094=\"\",\"\",IF(ISERROR(MATCH($J2094,SorP!$B$1:$B$6230,0)),\"\",INDIRECT(\"'SorP'!$A$\"&MATCH($J2094,SorP!$B$1:$B$6230,0))))","v":""},null,{"$f":"IF(C2094=\"\",NA(),MATCH($B2094&$C2094,'Smelter Look-up'!$J:$J,0))","v":{"$error":"#N/A"}},null,0,null,null,null,""]
[null,{"$f":"IF(LEN(A2095)=0,\"\",INDEX('Smelter Look-up'!$A:$A,MATCH($A2095,'Smelter Look-up'!$E:$E,0)))","v":""},{"$f":"IF(LEN(A2095)=0,\"\",INDEX('Smelter Look-up'!$C:$C,MATCH($A2095,'Smelter Look-up'!$E:$E,0)))","v":""},null,{"$f":"IF(ISERROR($V2095),\"\",OFFSET('Smelter Look-up'!$D$4,$V2095-4,0)&\"\")","v":""},{"$f":"IF(ISERROR($V2095),\"\",OFFSET('Smelter Look-up'!$E$4,$V2095-4,0))","v":""},{"$f":"IF(C2095=$X$4,\"Enter smelter details\", IF(ISERROR($V2095),\"\",OFFSET('Smelter Look-up'!$F$4,$V2095-4,0)))","v":""},{"$f":"IF(ISERROR($V2095),\"\",OFFSET('Smelter Look-up'!$G$4,$V2095-4,0))","v":""},{"$f":"IF(ISERROR($V2095),\"\",OFFSET('Smelter Look-up'!$H$4,$V2095-4,0))","v":""},{"$f":"IF(ISERROR($V2095),\"\",OFFSET('Smelter Look-up'!$I$4,$V2095-4,0))","v":""},{"$nulls":7},{"$f":"IF(ISERROR($V2095),\"\",OFFSET('Smelter Look-up'!$C$4,$V2095-4,0)&\"\")","v":""},"",{"$f":"IF(B2095=\"\",\"\",IF(ISERROR(MATCH($J2095,SorP!$B$1:$B$6230,0)),\"\",INDIRECT(\"'SorP'!$A$\"&MATCH($J2095,SorP!$B$1:$B$6230,0))))","v":""},null,{"$f":"IF(C2095=\"\",NA(),MATCH($B2095&$C2095,'Smelter Look-up'!$J:$J,0))","v":{"$error":"#N/A"}},null,0,null,null,null,""]
[null,{"$f":"IF(LEN(A2096)=0,\"\",INDEX('Smelter Look-up'!$A:$A,MATCH($A2096,'Smelter Look-up'!$E:$E,0)))","v":""},{"$f":"IF(LEN(A2096)=0,\"\",INDEX('Smelter Look-up'!$C:$C,MATCH($A2096,'Smelter Look-up'!$E:$E,0)))","v":""},null,{"$f":"IF(ISERROR($V2096),\"\",OFFSET('Smelter Look-up'!$D$4,$V2096-4,0)&\"\")","v":""},{"$f":"IF(ISERROR($V2096),\"\",OFFSET('Smelter Look-up'!$E$4,$V2096-4,0))","v":""},{"$f":"IF(C2096=$X$4,\"Enter smelter details\", IF(ISERROR($V2096),\"\",OFFSET('Smelter Look-up'!$F$4,$V2096-4,0)))","v":""},{"$f":"IF(ISERROR($V2096),\"\",OFFSET('Smelter Look-up'!$G$4,$V2096-4,0))","v":""},{"$f":"IF(ISERROR($V2096),\"\",OFFSET('Smelter Look-up'!$H$4,$V2096-4,0))","v":""},{"$f":"IF(ISERROR($V2096),\"\",OFFSET('Smelter Look-up'!$I$4,$V2096-4,0))","v":""},{"$nulls":7},{"$f":"IF(ISERROR($V2096),\"\",OFFSET('Smelter Look-up'!$C$4,$V2096-4,0)&\"\")","v":""},"",{"$f":"IF(B2096=\"\",\"\",IF(ISERROR(MATCH($J2096,SorP!$B$1:$B$6230,0)),\"\",INDIRECT(\"'SorP'!$A$\"&MATCH($J2096,SorP!$B$1:$B$6230,0))))","v":""},null,{"$f":"IF(C2096=\"\",NA(),MATCH($B2096&$C2096,'Smelter Look-up'!$J:$J,0))","v":{"$error":"#N/A"}},null,0,null,null,null,""]
[null,{"$f":"IF(LEN(A2097)=0,\"\",INDEX('Smelter Look-up'!$A:$A,MATCH($A2097,'Smelter Look-up'!$E:$E,0)))","v":""},{"$f":"IF(LEN(A2097)=0,\"\",INDEX('Smelter Look-up'!$C:$C,MATCH($A2097,'Smelter Look-up'!$E:$E,0)))","v":""},null,{"$f":"IF(ISERROR($V2097),\"\",OFFSET('Smelter Look-up'!$D$4,$V2097-4,0)&\"\")","v":""},{"$f":"IF(ISERROR($V2097),\"\",OFFSET('Smelter Look-up'!$E$4,$V2097-4,0))","v":""},{"$f":"IF(C2097=$X$4,\"Enter smelter details\", IF(ISERROR($V2097),\"\",OFFSET('Smelter Look-up'!$F$4,$V2097-4,0)))","v":""},{"$f":"IF(ISERROR($V2097),\"\",OFFSET('Smelter Look-up'!$G$4,$V2097-4,0))","v":""},{"$f":"IF(ISERROR($V2097),\"\",OFFSET('Smelter Look-up'!$H$4,$V2097-4,0))","v":""},{"$f":"IF(ISERROR($V2097),\"\",OFFSET('Smelter Look-up'!$I$4,$V2097-4,0))","v":""},{"$nulls":7},{"$f":"IF(ISERROR($V2097),\"\",OFFSET('Smelter Look-up'!$C$4,$V2097-4,0)&\"\")","v":""},"",{"$f":"IF(B2097=\"\",\"\",IF(ISERROR(MATCH($J2097,SorP!$B$1:$B$6230,0)),\"\",INDIRECT(\"'SorP'!$A$\"&MATCH($J2097,SorP!$B$1:$B$6230,0))))","v":""},null,{"$f":"IF(C2097=\"\",NA(),MATCH($B2097&$C2097,'Smelter Look-up'!$J:$J,0))","v":{"$error":"#N/A"}},null,0,null,null,null,""]
[null,{"$f":"IF(LEN(A2098)=0,\"\",INDEX('Smelter Look-up'!$A:$A,MATCH($A2098,'Smelter Look-up'!$E:$E,0)))","v":""},{"$f":"IF(LEN(A2098)=0,\"\",INDEX('Smelter Look-up'!$C:$C,MATCH($A2098,'Smelter Look-up'!$E:$E,0)))","v":""},null,{"$f":"IF(ISERROR($V2098),\"\",OFFSET('Smelter Look-up'!$D$4,$V2098-4,0)&\"\")","v":""},{"$f":"IF(ISERROR($V2098),\"\",OFFSET('Smelter Look-up'!$E$4,$V2098-4,0))","v":""},{"$f":"IF(C2098=$X$4,\"Enter smelter details\", IF(ISERROR($V2098),\"\",OFFSET('Smelter Look-up'!$F$4,$V2098-4,0)))","v":""},{"$f":"IF(ISERROR($V2098),\"\",OFFSET('Smelter Look-up'!$G$4,$V2098-4,0))","v":""},{"$f":"IF(ISERROR($V2098),\"\",OFFSET('Smelter Look-up'!$H$4,$V2098-4,0))","v":""},{"$f":"IF(ISERROR($V2098),\"\",OFFSET('Smelter Look-up'!$I$4,$V2098-4,0))","v":""},{"$nulls":7},{"$f":"IF(ISERROR($V2098),\"\",OFFSET('Smelter Look-up'!$C$4,$V2098-4,0)&\"\")","v":""},"",{"$f":"IF(B2098=\"\",\"\",IF(ISERROR(MATCH($J2098,SorP!$B$1:$B$6230,0)),\"\",INDIRECT(\"'SorP'!$A$\"&MATCH($J2098,SorP!$B$1:$B$6230,0))))","v":""},null,{"$f":"IF(C2098=\"\",NA(),MATCH($B2098&$C2098,'Smelter Look-up'!$J:$J,0))","v":{"$error":"#N/A"}},null,0,null,null,null,""]
[null,{"$f":"IF(LEN(A2099)=0,\"\",INDEX('Smelter Look-up'!$A:$A,MATCH($A2099,'Smelter Look-up'!$E:$E,0)))","v":""},{"$f":"IF(LEN(A2099)=0,\"\",INDEX('Smelter Look-up'!$C:$C,MATCH($A2099,'Smelter Look-up'!$E:$E,0)))","v":""},null,{"$f":"IF(ISERROR($V2099),\"\",OFFSET('Smelter Look-up'!$D$4,$V2099-4,0)&\"\")","v":""},{"$f":"IF(ISERROR($V2099),\"\",OFFSET('Smelter Look-up'!$E$4,$V2099-4,0))","v":""},{"$f":"IF(C2099=$X$4,\"Enter smelter details\", IF(ISERROR($V2099),\"\",OFFSET('Smelter Look-up'!$F$4,$V2099-4,0)))","v":""},{"$f":"IF(ISERROR($V2099),\"\",OFFSET('Smelter Look-up'!$G$4,$V2099-4,0))","v":""},{"$f":"IF(ISERROR($V2099),\"\",OFFSET('Smelter Look-up'!$H$4,$V2099-4,0))","v":""},{"$f":"IF(ISERROR($V2099),\"\",OFFSET('Smelter Look-up'!$I$4,$V2099-4,0))","v":""},{"$nulls":7},{"$f":"IF(ISERROR($V2099),\"\",OFFSET('Smelter Look-up'!$C$4,$V2099-4,0)&\"\")","v":""},"",{"$f":"IF(B2099=\"\",\"\",IF(ISERROR(MATCH($J2099,SorP!$B$1:$B$6230,0)),\"\",INDIRECT(\"'SorP'!$A$\"&MATCH($J2099,SorP!$B$1:$B$6230,0))))","v":""},null,{"$f":"IF(C2099=\"\",NA(),MATCH($B2099&$C2099,'Smelter Look-up'!$J:$J,0))","v":{"$error":"#N/A"}},null,0,null,null,null,""]
[null,{"$f":"IF(LEN(A2100)=0,\"\",INDEX('Smelter Look-up'!$A:$A,MATCH($A2100,'Smelter Look-up'!$E:$E,0)))","v":""},{"$f":"IF(LEN(A2100)=0,\"\",INDEX('Smelter Look-up'!$C:$C,MATCH($A2100,'Smelter Look-up'!$E:$E,0)))","v":""},null,{"$f":"IF(ISERROR($V2100),\"\",OFFSET('Smelter Look-up'!$D$4,$V2100-4,0)&\"\")","v":""},{"$f":"IF(ISERROR($V2100),\"\",OFFSET('Smelter Look-up'!$E$4,$V2100-4,0))","v":""},{"$f":"IF(C2100=$X$4,\"Enter smelter details\", IF(ISERROR($V2100),\"\",OFFSET('Smelter Look-up'!$F$4,$V2100-4,0)))","v":""},{"$f":"IF(ISERROR($V2100),\"\",OFFSET('Smelter Look-up'!$G$4,$V2100-4,0))","v":""},{"$f":"IF(ISERROR($V2100),\"\",OFFSET('Smelter Look-up'!$H$4,$V2100-4,0))","v":""},{"$f":"IF(ISERROR($V2100),\"\",OFFSET('Smelter Look-up'!$I$4,$V2100-4,0))","v":""},{"$nulls":7},{"$f":"IF(ISERROR($V2100),\"\",OFFSET('Smelter Look-up'!$C$4,$V2100-4,0)&\"\")","v":""},"",{"$f":"IF(B2100=\"\",\"\",IF(ISERROR(MATCH($J2100,SorP!$B$1:$B$6230,0)),\"\",INDIRECT(\"'SorP'!$A$\"&MATCH($J2100,SorP!$B$1:$B$6230,0))))","v":""},null,{"$f":"IF(C2100=\"\",NA(),MATCH($B2100&$C2100,'Smelter Look-up'!$J:$J,0))","v":{"$error":"#N/A"}},null,0,null,null,null,""]
[null,{"$f":"IF(LEN(A2101)=0,\"\",INDEX('Smelter Look-up'!$A:$A,MATCH($A2101,'Smelter Look-up'!$E:$E,0)))","v":""},{"$f":"IF(LEN(A2101)=0,\"\",INDEX('Smelter Look-up'!$C:$C,MATCH($A2101,'Smelter Look-up'!$E:$E,0)))","v":""},null,{"$f":"IF(ISERROR($V2101),\"\",OFFSET('Smelter Look-up'!$D$4,$V2101-4,0)&\"\")","v":""},{"$f":"IF(ISERROR($V2101),\"\",OFFSET('Smelter Look-up'!$E$4,$V2101-4,0))","v":""},{"$f":"IF(C2101=$X$4,\"Enter smelter details\", IF(ISERROR($V2101),\"\",OFFSET('Smelter Look-up'!$F$4,$V2101-4,0)))","v":""},{"$f":"IF(ISERROR($V2101),\"\",OFFSET('Smelter Look-up'!$G$4,$V2101-4,0))","v":""},{"$f":"IF(ISERROR($V2101),\"\",OFFSET('Smelter Look-up'!$H$4,$V2101-4,0))","v":""},{"$f":"IF(ISERROR($V2101),\"\",OFFSET('Smelter Look-up'!$I$4,$V2101-4,0))","v":""},{"$nulls":7},{"$f":"IF(ISERROR($V2101),\"\",OFFSET('Smelter Look-up'!$C$4,$V2101-4,0)&\"\")","v":""},"",{"$f":"IF(B2101=\"\",\"\",IF(ISERROR(MATCH($J2101,SorP!$B$1:$B$6230,0)),\"\",INDIRECT(\"'SorP'!$A$\"&MATCH($J2101,SorP!$B$1:$B$6230,0))))","v":""},null,{"$f":"IF(C2101=\"\",NA(),MATCH($B2101&$C2101,'Smelter Look-up'!$J:$J,0))","v":{"$error":"#N/A"}},null,0,null,null,null,""]
[null,{"$f":"IF(LEN(A2102)=0,\"\",INDEX('Smelter Look-up'!$A:$A,MATCH($A2102,'Smelter Look-up'!$E:$E,0)))","v":""},{"$f":"IF(LEN(A2102)=0,\"\",INDEX('Smelter Look-up'!$C:$C,MATCH($A2102,'Smelter Look-up'!$E:$E,0)))","v":""},null,{"$f":"IF(ISERROR($V2102),\"\",OFFSET('Smelter Look-up'!$D$4,$V2102-4,0)&\"\")","v":""},{"$f":"IF(ISERROR($V2102),\"\",OFFSET('Smelter Look-up'!$E$4,$V2102-4,0))","v":""},{"$f":"IF(C2102=$X$4,\"Enter smelter details\", IF(ISERROR($V2102),\"\",OFFSET('Smelter Look-up'!$F$4,$V2102-4,0)))","v":""},{"$f":"IF(ISERROR($V2102),\"\",OFFSET('Smelter Look-up'!$G$4,$V2102-4,0))","v":""},{"$f":"IF(ISERROR($V2102),\"\",OFFSET('Smelter Look-up'!$H$4,$V2102-4,0))","v":""},{"$f":"IF(ISERROR($V2102),\"\",OFFSET('Smelter Look-up'!$I$4,$V2102-4,0))","v":""},{"$nulls":7},{"$f":"IF(ISERROR($V2102),\"\",OFFSET('Smelter Look-up'!$C$4,$V2102-4,0)&\"\")","v":""},"",{"$f":"IF(B2102=\"\",\"\",IF(ISERROR(MATCH($J2102,SorP!$B$1:$B$6230,0)),\"\",INDIRECT(\"'SorP'!$A$\"&MATCH($J2102,SorP!$B$1:$B$6230,0))))","v":""},null,{"$f":"IF(C2102=\"\",NA(),MATCH($B2102&$C2102,'Smelter Look-up'!$J:$J,0))","v":{"$error":"#N/A"}},null,0,null,null,null,""]
[null,{"$f":"IF(LEN(A2103)=0,\"\",INDEX('Smelter Look-up'!$A:$A,MATCH($A2103,'Smelter Look-up'!$E:$E,0)))","v":""},{"$f":"IF(LEN(A2103)=0,\"\",INDEX('Smelter Look-up'!$C:$C,MATCH($A2103,'Smelter Look-up'!$E:$E,0)))","v":""},null,{"$f":"IF(ISERROR($V2103),\"\",OFFSET('Smelter Look-up'!$D$4,$V2103-4,0)&\"\")","v":""},{"$f":"IF(ISERROR($V2103),\"\",OFFSET('Smelter Look-up'!$E$4,$V2103-4,0))","v":""},{"$f":"IF(C2103=$X$4,\"Enter smelter details\", IF(ISERROR($V2103),\"\",OFFSET('Smelter Look-up'!$F$4,$V2103-4,0)))","v":""},{"$f":"IF(ISERROR($V2103),\"\",OFFSET('Smelter Look-up'!$G$4,$V2103-4,0))","v":""},{"$f":"IF(ISERROR($V2103),\"\",OFFSET('Smelter Look-up'!$H$4,$V2103-4,0))","v":""},{"$f":"IF(ISERROR($V2103),\"\",OFFSET('Smelter Look-up'!$I$4,$V2103-4,0))","v":""},{"$nulls":7},{"$f":"IF(ISERROR($V2103),\"\",OFFSET('Smelter Look-up'!$C$4,$V2103-4,0)&\"\")","v":""},"",{"$f":"IF(B2103=\"\",\"\",IF(ISERROR(MATCH($J2103,SorP!$B$1:$B$6230,0)),\"\",INDIRECT(\"'SorP'!$A$\"&MATCH($J2103,SorP!$B$1:$B$6230,0))))","v":""},null,{"$f":"IF(C2103=\"\",NA(),MATCH($B2103&$C2103,'Smelter Look-up'!$J:$J,0))","v":{"$error":"#N/A"}},null,0,null,null,null,""]
[null,{"$f":"IF(LEN(A2104)=0,\"\",INDEX('Smelter Look-up'!$A:$A,MATCH($A2104,'Smelter Look-up'!$E:$E,0)))","v":""},{"$f":"IF(LEN(A2104)=0,\"\",INDEX('Smelter Look-up'!$C:$C,MATCH($A2104,'Smelter Look-up'!$E:$E,0)))","v":""},null,{"$f":"IF(ISERROR($V2104),\"\",OFFSET('Smelter Look-up'!$D$4,$V2104-4,0)&\"\")","v":""},{"$f":"IF(ISERROR($V2104),\"\",OFFSET('Smelter Look-up'!$E$4,$V2104-4,0))","v":""},{"$f":"IF(C2104=$X$4,\"Enter smelter details\", IF(ISERROR($V2104),\"\",OFFSET('Smelter Look-up'!$F$4,$V2104-4,0)))","v":""},{"$f":"IF(ISERROR($V2104),\"\",OFFSET('Smelter Look-up'!$G$4,$V2104-4,0))","v":""},{"$f":"IF(ISERROR($V2104),\"\",OFFSET('Smelter Look-up'!$H$4,$V2104-4,0))","v":""},{"$f":"IF(ISERROR($V2104),\"\",OFFSET('Smelter Look-up'!$I$4,$V2104-4,0))","v":""},{"$nulls":7},{"$f":"IF(ISERROR($V2104),\"\",OFFSET('Smelter Look-up'!$C$4,$V2104-4,0)&\"\")","v":""},"",{"$f":"IF(B2104=\"\",\"\",IF(ISERROR(MATCH($J2104,SorP!$B$1:$B$6230,0)),\"\",INDIRECT(\"'SorP'!$A$\"&MATCH($J2104,SorP!$B$1:$B$6230,0))))","v":""},null,{"$f":"IF(C2104=\"\",NA(),MATCH($B2104&$C2104,'Smelter Look-up'!$J:$J,0))","v":{"$error":"#N/A"}},null,0,null,null,null,""]
[null,{"$f":"IF(LEN(A2105)=0,\"\",INDEX('Smelter Look-up'!$A:$A,MATCH($A2105,'Smelter Look-up'!$E:$E,0)))","v":""},{"$f":"IF(LEN(A2105)=0,\"\",INDEX('Smelter Look-up'!$C:$C,MATCH($A2105,'Smelter Look-up'!$E:$E,0)))","v":""},null,{"$f":"IF(ISERROR($V2105),\"\",OFFSET('Smelter Look-up'!$D$4,$V2105-4,0)&\"\")","v":""},{"$f":"IF(ISERROR($V2105),\"\",OFFSET('Smelter Look-up'!$E$4,$V2105-4,0))","v":""},{"$f":"IF(C2105=$X$4,\"Enter smelter details\", IF(ISERROR($V2105),\"\",OFFSET('Smelter Look-up'!$F$4,$V2105-4,0)))","v":""},{"$f":"IF(ISERROR($V2105),\"\",OFFSET('Smelter Look-up'!$G$4,$V2105-4,0))","v":""},{"$f":"IF(ISERROR($V2105),\"\",OFFSET('Smelter Look-up'!$H$4,$V2105-4,0))","v":""},{"$f":"IF(ISERROR($V2105),\"\",OFFSET('Smelter Look-up'!$I$4,$V2105-4,0))","v":""},{"$nulls":7},{"$f":"IF(ISERROR($V2105),\"\",OFFSET('Smelter Look-up'!$C$4,$V2105-4,0)&\"\")","v":""},"",{"$f":"IF(B2105=\"\",\"\",IF(ISERROR(MATCH($J2105,SorP!$B$1:$B$6230,0)),\"\",INDIRECT(\"'SorP'!$A$\"&MATCH($J2105,SorP!$B$1:$B$6230,0))))","v":""},null,{"$f":"IF(C2105=\"\",NA(),MATCH($B2105&$C2105,'Smelter Look-up'!$J:$J,0))","v":{"$error":"#N/A"}},null,0,null,null,null,""]
[null,{"$f":"IF(LEN(A2106)=0,\"\",INDEX('Smelter Look-up'!$A:$A,MATCH($A2106,'Smelter Look-up'!$E:$E,0)))","v":""},{"$f":"IF(LEN(A2106)=0,\"\",INDEX('Smelter Look-up'!$C:$C,MATCH($A2106,'Smelter Look-up'!$E:$E,0)))","v":""},null,{"$f":"IF(ISERROR($V2106),\"\",OFFSET('Smelter Look-up'!$D$4,$V2106-4,0)&\"\")","v":""},{"$f":"IF(ISERROR($V2106),\"\",OFFSET('Smelter Look-up'!$E$4,$V2106-4,0))","v":""},{"$f":"IF(C2106=$X$4,\"Enter smelter details\", IF(ISERROR($V2106),\"\",OFFSET('Smelter Look-up'!$F$4,$V2106-4,0)))","v":""},{"$f":"IF(ISERROR($V2106),\"\",OFFSET('Smelter Look-up'!$G$4,$V2106-4,0))","v":""},{"$f":"IF(ISERROR($V2106),\"\",OFFSET('Smelter Look-up'!$H$4,$V2106-4,0))","v":""},{"$f":"IF(ISERROR($V2106),\"\",OFFSET('Smelter Look-up'!$I$4,$V2106-4,0))","v":""},{"$nulls":7},{"$f":"IF(ISERROR($V2106),\"\",OFFSET('Smelter Look-up'!$C$4,$V2106-4,0)&\"\")","v":""},"",{"$f":"IF(B2106=\"\",\"\",IF(ISERROR(MATCH($J2106,SorP!$B$1:$B$6230,0)),\"\",INDIRECT(\"'SorP'!$A$\"&MATCH($J2106,SorP!$B$1:$B$6230,0))))","v":""},null,{"$f":"IF(C2106=\"\",NA(),MATCH($B2106&$C2106,'Smelter Look-up'!$J:$J,0))","v":{"$error":"#N/A"}},null,0,null,null,null,""]
[null,{"$f":"IF(LEN(A2107)=0,\"\",INDEX('Smelter Look-up'!$A:$A,MATCH($A2107,'Smelter Look-up'!$E:$E,0)))","v":""},{"$f":"IF(LEN(A2107)=0,\"\",INDEX('Smelter Look-up'!$C:$C,MATCH($A2107,'Smelter Look-up'!$E:$E,0)))","v":""},null,{"$f":"IF(ISERROR($V2107),\"\",OFFSET('Smelter Look-up'!$D$4,$V2107-4,0)&\"\")","v":""},{"$f":"IF(ISERROR($V2107),\"\",OFFSET('Smelter Look-up'!$E$4,$V2107-4,0))","v":""},{"$f":"IF(C2107=$X$4,\"Enter smelter details\", IF(ISERROR($V2107),\"\",OFFSET('Smelter Look-up'!$F$4,$V2107-4,0)))","v":""},{"$f":"IF(ISERROR($V2107),\"\",OFFSET('Smelter Look-up'!$G$4,$V2107-4,0))","v":""},{"$f":"IF(ISERROR($V2107),\"\",OFFSET('Smelter Look-up'!$H$4,$V2107-4,0))","v":""},{"$f":"IF(ISERROR($V2107),\"\",OFFSET('Smelter Look-up'!$I$4,$V2107-4,0))","v":""},{"$nulls":7},{"$f":"IF(ISERROR($V2107),\"\",OFFSET('Smelter Look-up'!$C$4,$V2107-4,0)&\"\")","v":""},{"$f":"IF(B2107=\"\",\"\",IF(ISERROR(MATCH($E2107,CL,0)),\"Unknown\",INDIRECT(\"'C'!$A$\"&MATCH($E2107,CL,0)+1)))","v":""},{"$f":"IF(B2107=\"\",\"\",IF(ISERROR(MATCH($J2107,SorP!$B$1:$B$6230,0)),\"\",INDIRECT(\"'SorP'!$A$\"&MATCH($J2107,SorP!$B$1:$B$6230,0))))","v":""},null,{"$f":"IF(C2107=\"\",NA(),MATCH($B2107&$C2107,'Smelter Look-up'!$J:$J,0))","v":{"$error":"#N/A"}},null,{"$f":"IF(AND(C2107=\"Smelter not listed\",OR(LEN(D2107)=0,LEN(E2107)=0)),1,0)","v":0},null,null,null,{"$f":"B2107&C2107","v":""}]
[null,{"$f":"IF(LEN(A2108)=0,\"\",INDEX('Smelter Look-up'!$A:$A,MATCH($A2108,'Smelter Look-up'!$E:$E,0)))","v":""},{"$f":"IF(LEN(A2108)=0,\"\",INDEX('Smelter Look-up'!$C:$C,MATCH($A2108,'Smelter Look-up'!$E:$E,0)))","v":""},null,{"$f":"IF(ISERROR($V2108),\"\",OFFSET('Smelter Look-up'!$D$4,$V2108-4,0)&\"\")","v":""},{"$f":"IF(ISERROR($V2108),\"\",OFFSET('Smelter Look-up'!$E$4,$V2108-4,0))","v":""},{"$f":"IF(C2108=$X$4,\"Enter smelter details\", IF(ISERROR($V2108),\"\",OFFSET('Smelter Look-up'!$F$4,$V2108-4,0)))","v":""},{"$f":"IF(ISERROR($V2108),\"\",OFFSET('Smelter Look-up'!$G$4,$V2108-4,0))","v":""},{"$f":"IF(ISERROR($V2108),\"\",OFFSET('Smelter Look-up'!$H$4,$V2108-4,0))","v":""},{"$f":"IF(ISERROR($V2108),\"\",OFFSET('Smelter Look-up'!$I$4,$V2108-4,0))","v":""},{"$nulls":7},{"$f":"IF(ISERROR($V2108),\"\",OFFSET('Smelter Look-up'!$C$4,$V2108-4,0)&\"\")","v":""},"",{"$f":"IF(B2108=\"\",\"\",IF(ISERROR(MATCH($J2108,SorP!$B$1:$B$6230,0)),\"\",INDIRECT(\"'SorP'!$A$\"&MATCH($J2108,SorP!$B$1:$B$6230,0))))","v":""},null,{"$f":"IF(C2108=\"\",NA(),MATCH($B2108&$C2108,'Smelter Look-up'!$J:$J,0))","v":{"$error":"#N/A"}},null,0,null,null,null,""]
[null,{"$f":"IF(LEN(A2109)=0,\"\",INDEX('Smelter Look-up'!$A:$A,MATCH($A2109,'Smelter Look-up'!$E:$E,0)))","v":""},{"$f":"IF(LEN(A2109)=0,\"\",INDEX('Smelter Look-up'!$C:$C,MATCH($A2109,'Smelter Look-up'!$E:$E,0)))","v":""},null,{"$f":"IF(ISERROR($V2109),\"\",OFFSET('Smelter Look-up'!$D$4,$V2109-4,0)&\"\")","v":""},{"$f":"IF(ISERROR($V2109),\"\",OFFSET('Smelter Look-up'!$E$4,$V2109-4,0))","v":""},{"$f":"IF(C2109=$X$4,\"Enter smelter details\", IF(ISERROR($V2109),\"\",OFFSET('Smelter Look-up'!$F$4,$V2109-4,0)))","v":""},{"$f":"IF(ISERROR($V2109),\"\",OFFSET('Smelter Look-up'!$G$4,$V2109-4,0))","v":""},{"$f":"IF(ISERROR($V2109),\"\",OFFSET('Smelter Look-up'!$H$4,$V2109-4,0))","v":""},{"$f":"IF(ISERROR($V2109),\"\",OFFSET('Smelter Look-up'!$I$4,$V2109-4,0))","v":""},{"$nulls":7},{"$f":"IF(ISERROR($V2109),\"\",OFFSET('Smelter Look-up'!$C$4,$V2109-4,0)&\"\")","v":""},"",{"$f":"IF(B2109=\"\",\"\",IF(ISERROR(MATCH($J2109,SorP!$B$1:$B$6230,0)),\"\",INDIRECT(\"'SorP'!$A$\"&MATCH($J2109,SorP!$B$1:$B$6230,0))))","v":""},null,{"$f":"IF(C2109=\"\",NA(),MATCH($B2109&$C2109,'Smelter Look-up'!$J:$J,0))","v":{"$error":"#N/A"}},null,0,null,null,null,""]
[null,{"$f":"IF(LEN(A2110)=0,\"\",INDEX('Smelter Look-up'!$A:$A,MATCH($A2110,'Smelter Look-up'!$E:$E,0)))","v":""},{"$f":"IF(LEN(A2110)=0,\"\",INDEX('Smelter Look-up'!$C:$C,MATCH($A2110,'Smelter Look-up'!$E:$E,0)))","v":""},null,{"$f":"IF(ISERROR($V2110),\"\",OFFSET('Smelter Look-up'!$D$4,$V2110-4,0)&\"\")","v":""},{"$f":"IF(ISERROR($V2110),\"\",OFFSET('Smelter Look-up'!$E$4,$V2110-4,0))","v":""},{"$f":"IF(C2110=$X$4,\"Enter smelter details\", IF(ISERROR($V2110),\"\",OFFSET('Smelter Look-up'!$F$4,$V2110-4,0)))","v":""},{"$f":"IF(ISERROR($V2110),\"\",OFFSET('Smelter Look-up'!$G$4,$V2110-4,0))","v":""},{"$f":"IF(ISERROR($V2110),\"\",OFFSET('Smelter Look-up'!$H$4,$V2110-4,0))","v":""},{"$f":"IF(ISERROR($V2110),\"\",OFFSET('Smelter Look-up'!$I$4,$V2110-4,0))","v":""},{"$nulls":7},{"$f":"IF(ISERROR($V2110),\"\",OFFSET('Smelter Look-up'!$C$4,$V2110-4,0)&\"\")","v":""},"",{"$f":"IF(B2110=\"\",\"\",IF(ISERROR(MATCH($J2110,SorP!$B$1:$B$6230,0)),\"\",INDIRECT(\"'SorP'!$A$\"&MATCH($J2110,SorP!$B$1:$B$6230,0))))","v":""},null,{"$f":"IF(C2110=\"\",NA(),MATCH($B2110&$C2110,'Smelter Look-up'!$J:$J,0))","v":{"$error":"#N/A"}},null,0,null,null,null,""]
[null,{"$f":"IF(LEN(A2111)=0,\"\",INDEX('Smelter Look-up'!$A:$A,MATCH($A2111,'Smelter Look-up'!$E:$E,0)))","v":""},{"$f":"IF(LEN(A2111)=0,\"\",INDEX('Smelter Look-up'!$C:$C,MATCH($A2111,'Smelter Look-up'!$E:$E,0)))","v":""},null,{"$f":"IF(ISERROR($V2111),\"\",OFFSET('Smelter Look-up'!$D$4,$V2111-4,0)&\"\")","v":""},{"$f":"IF(ISERROR($V2111),\"\",OFFSET('Smelter Look-up'!$E$4,$V2111-4,0))","v":""},{"$f":"IF(C2111=$X$4,\"Enter smelter details\", IF(ISERROR($V2111),\"\",OFFSET('Smelter Look-up'!$F$4,$V2111-4,0)))","v":""},{"$f":"IF(ISERROR($V2111),\"\",OFFSET('Smelter Look-up'!$G$4,$V2111-4,0))","v":""},{"$f":"IF(ISERROR($V2111),\"\",OFFSET('Smelter Look-up'!$H$4,$V2111-4,0))","v":""},{"$f":"IF(ISERROR($V2111),\"\",OFFSET('Smelter Look-up'!$I$4,$V2111-4,0))","v":""},{"$nulls":7},{"$f":"IF(ISERROR($V2111),\"\",OFFSET('Smelter Look-up'!$C$4,$V2111-4,0)&\"\")","v":""},"",{"$f":"IF(B2111=\"\",\"\",IF(ISERROR(MATCH($J2111,SorP!$B$1:$B$6230,0)),\"\",INDIRECT(\"'SorP'!$A$\"&MATCH($J2111,SorP!$B$1:$B$6230,0))))","v":""},null,{"$f":"IF(C2111=\"\",NA(),MATCH($B2111&$C2111,'Smelter Look-up'!$J:$J,0))","v":{"$error":"#N/A"}},null,0,null,null,null,""]
[null,{"$f":"IF(LEN(A2112)=0,\"\",INDEX('Smelter Look-up'!$A:$A,MATCH($A2112,'Smelter Look-up'!$E:$E,0)))","v":""},{"$f":"IF(LEN(A2112)=0,\"\",INDEX('Smelter Look-up'!$C:$C,MATCH($A2112,'Smelter Look-up'!$E:$E,0)))","v":""},null,{"$f":"IF(ISERROR($V2112),\"\",OFFSET('Smelter Look-up'!$D$4,$V2112-4,0)&\"\")","v":""},{"$f":"IF(ISERROR($V2112),\"\",OFFSET('Smelter Look-up'!$E$4,$V2112-4,0))","v":""},{"$f":"IF(C2112=$X$4,\"Enter smelter details\", IF(ISERROR($V2112),\"\",OFFSET('Smelter Look-up'!$F$4,$V2112-4,0)))","v":""},{"$f":"IF(ISERROR($V2112),\"\",OFFSET('Smelter Look-up'!$G$4,$V2112-4,0))","v":""},{"$f":"IF(ISERROR($V2112),\"\",OFFSET('Smelter Look-up'!$H$4,$V2112-4,0))","v":""},{"$f":"IF(ISERROR($V2112),\"\",OFFSET('Smelter Look-up'!$I$4,$V2112-4,0))","v":""},{"$nulls":7},{"$f":"IF(ISERROR($V2112),\"\",OFFSET('Smelter Look-up'!$C$4,$V2112-4,0)&\"\")","v":""},"",{"$f":"IF(B2112=\"\",\"\",IF(ISERROR(MATCH($J2112,SorP!$B$1:$B$6230,0)),\"\",INDIRECT(\"'SorP'!$A$\"&MATCH($J2112,SorP!$B$1:$B$6230,0))))","v":""},null,{"$f":"IF(C2112=\"\",NA(),MATCH($B2112&$C2112,'Smelter Look-up'!$J:$J,0))","v":{"$error":"#N/A"}},null,0,null,null,null,""]
[null,{"$f":"IF(LEN(A2113)=0,\"\",INDEX('Smelter Look-up'!$A:$A,MATCH($A2113,'Smelter Look-up'!$E:$E,0)))","v":""},{"$f":"IF(LEN(A2113)=0,\"\",INDEX('Smelter Look-up'!$C:$C,MATCH($A2113,'Smelter Look-up'!$E:$E,0)))","v":""},null,{"$f":"IF(ISERROR($V2113),\"\",OFFSET('Smelter Look-up'!$D$4,$V2113-4,0)&\"\")","v":""},{"$f":"IF(ISERROR($V2113),\"\",OFFSET('Smelter Look-up'!$E$4,$V2113-4,0))","v":""},{"$f":"IF(C2113=$X$4,\"Enter smelter details\", IF(ISERROR($V2113),\"\",OFFSET('Smelter Look-up'!$F$4,$V2113-4,0)))","v":""},{"$f":"IF(ISERROR($V2113),\"\",OFFSET('Smelter Look-up'!$G$4,$V2113-4,0))","v":""},{"$f":"IF(ISERROR($V2113),\"\",OFFSET('Smelter Look-up'!$H$4,$V2113-4,0))","v":""},{"$f":"IF(ISERROR($V2113),\"\",OFFSET('Smelter Look-up'!$I$4,$V2113-4,0))","v":""},{"$nulls":7},{"$f":"IF(ISERROR($V2113),\"\",OFFSET('Smelter Look-up'!$C$4,$V2113-4,0)&\"\")","v":""},"",{"$f":"IF(B2113=\"\",\"\",IF(ISERROR(MATCH($J2113,SorP!$B$1:$B$6230,0)),\"\",INDIRECT(\"'SorP'!$A$\"&MATCH($J2113,SorP!$B$1:$B$6230,0))))","v":""},null,{"$f":"IF(C2113=\"\",NA(),MATCH($B2113&$C2113,'Smelter Look-up'!$J:$J,0))","v":{"$error":"#N/A"}},null,0,null,null,null,""]
[null,{"$f":"IF(LEN(A2114)=0,\"\",INDEX('Smelter Look-up'!$A:$A,MATCH($A2114,'Smelter Look-up'!$E:$E,0)))","v":""},{"$f":"IF(LEN(A2114)=0,\"\",INDEX('Smelter Look-up'!$C:$C,MATCH($A2114,'Smelter Look-up'!$E:$E,0)))","v":""},null,{"$f":"IF(ISERROR($V2114),\"\",OFFSET('Smelter Look-up'!$D$4,$V2114-4,0)&\"\")","v":""},{"$f":"IF(ISERROR($V2114),\"\",OFFSET('Smelter Look-up'!$E$4,$V2114-4,0))","v":""},{"$f":"IF(C2114=$X$4,\"Enter smelter details\", IF(ISERROR($V2114),\"\",OFFSET('Smelter Look-up'!$F$4,$V2114-4,0)))","v":""},{"$f":"IF(ISERROR($V2114),\"\",OFFSET('Smelter Look-up'!$G$4,$V2114-4,0))","v":""},{"$f":"IF(ISERROR($V2114),\"\",OFFSET('Smelter Look-up'!$H$4,$V2114-4,0))","v":""},{"$f":"IF(ISERROR($V2114),\"\",OFFSET('Smelter Look-up'!$I$4,$V2114-4,0))","v":""},{"$nulls":7},{"$f":"IF(ISERROR($V2114),\"\",OFFSET('Smelter Look-up'!$C$4,$V2114-4,0)&\"\")","v":""},"",{"$f":"IF(B2114=\"\",\"\",IF(ISERROR(MATCH($J2114,SorP!$B$1:$B$6230,0)),\"\",INDIRECT(\"'SorP'!$A$\"&MATCH($J2114,SorP!$B$1:$B$6230,0))))","v":""},null,{"$f":"IF(C2114=\"\",NA(),MATCH($B2114&$C2114,'Smelter Look-up'!$J:$J,0))","v":{"$error":"#N/A"}},null,0,null,null,null,""]
[null,{"$f":"IF(LEN(A2115)=0,\"\",INDEX('Smelter Look-up'!$A:$A,MATCH($A2115,'Smelter Look-up'!$E:$E,0)))","v":""},{"$f":"IF(LEN(A2115)=0,\"\",INDEX('Smelter Look-up'!$C:$C,MATCH($A2115,'Smelter Look-up'!$E:$E,0)))","v":""},null,{"$f":"IF(ISERROR($V2115),\"\",OFFSET('Smelter Look-up'!$D$4,$V2115-4,0)&\"\")","v":""},{"$f":"IF(ISERROR($V2115),\"\",OFFSET('Smelter Look-up'!$E$4,$V2115-4,0))","v":""},{"$f":"IF(C2115=$X$4,\"Enter smelter details\", IF(ISERROR($V2115),\"\",OFFSET('Smelter Look-up'!$F$4,$V2115-4,0)))","v":""},{"$f":"IF(ISERROR($V2115),\"\",OFFSET('Smelter Look-up'!$G$4,$V2115-4,0))","v":""},{"$f":"IF(ISERROR($V2115),\"\",OFFSET('Smelter Look-up'!$H$4,$V2115-4,0))","v":""},{"$f":"IF(ISERROR($V2115),\"\",OFFSET('Smelter Look-up'!$I$4,$V2115-4,0))","v":""},{"$nulls":7},{"$f":"IF(ISERROR($V2115),\"\",OFFSET('Smelter Look-up'!$C$4,$V2115-4,0)&\"\")","v":""},"",{"$f":"IF(B2115=\"\",\"\",IF(ISERROR(MATCH($J2115,SorP!$B$1:$B$6230,0)),\"\",INDIRECT(\"'SorP'!$A$\"&MATCH($J2115,SorP!$B$1:$B$6230,0))))","v":""},null,{"$f":"IF(C2115=\"\",NA(),MATCH($B2115&$C2115,'Smelter Look-up'!$J:$J,0))","v":{"$error":"#N/A"}},null,0,null,null,null,""]
[null,{"$f":"IF(LEN(A2116)=0,\"\",INDEX('Smelter Look-up'!$A:$A,MATCH($A2116,'Smelter Look-up'!$E:$E,0)))","v":""},{"$f":"IF(LEN(A2116)=0,\"\",INDEX('Smelter Look-up'!$C:$C,MATCH($A2116,'Smelter Look-up'!$E:$E,0)))","v":""},null,{"$f":"IF(ISERROR($V2116),\"\",OFFSET('Smelter Look-up'!$D$4,$V2116-4,0)&\"\")","v":""},{"$f":"IF(ISERROR($V2116),\"\",OFFSET('Smelter Look-up'!$E$4,$V2116-4,0))","v":""},{"$f":"IF(C2116=$X$4,\"Enter smelter details\", IF(ISERROR($V2116),\"\",OFFSET('Smelter Look-up'!$F$4,$V2116-4,0)))","v":""},{"$f":"IF(ISERROR($V2116),\"\",OFFSET('Smelter Look-up'!$G$4,$V2116-4,0))","v":""},{"$f":"IF(ISERROR($V2116),\"\",OFFSET('Smelter Look-up'!$H$4,$V2116-4,0))","v":""},{"$f":"IF(ISERROR($V2116),\"\",OFFSET('Smelter Look-up'!$I$4,$V2116-4,0))","v":""},{"$nulls":7},{"$f":"IF(ISERROR($V2116),\"\",OFFSET('Smelter Look-up'!$C$4,$V2116-4,0)&\"\")","v":""},"",{"$f":"IF(B2116=\"\",\"\",IF(ISERROR(MATCH($J2116,SorP!$B$1:$B$6230,0)),\"\",INDIRECT(\"'SorP'!$A$\"&MATCH($J2116,SorP!$B$1:$B$6230,0))))","v":""},null,{"$f":"IF(C2116=\"\",NA(),MATCH($B2116&$C2116,'Smelter Look-up'!$J:$J,0))","v":{"$error":"#N/A"}},null,0,null,null,null,""]
[null,{"$f":"IF(LEN(A2117)=0,\"\",INDEX('Smelter Look-up'!$A:$A,MATCH($A2117,'Smelter Look-up'!$E:$E,0)))","v":""},{"$f":"IF(LEN(A2117)=0,\"\",INDEX('Smelter Look-up'!$C:$C,MATCH($A2117,'Smelter Look-up'!$E:$E,0)))","v":""},null,{"$f":"IF(ISERROR($V2117),\"\",OFFSET('Smelter Look-up'!$D$4,$V2117-4,0)&\"\")","v":""},{"$f":"IF(ISERROR($V2117),\"\",OFFSET('Smelter Look-up'!$E$4,$V2117-4,0))","v":""},{"$f":"IF(C2117=$X$4,\"Enter smelter details\", IF(ISERROR($V2117),\"\",OFFSET('Smelter Look-up'!$F$4,$V2117-4,0)))","v":""},{"$f":"IF(ISERROR($V2117),\"\",OFFSET('Smelter Look-up'!$G$4,$V2117-4,0))","v":""},{"$f":"IF(ISERROR($V2117),\"\",OFFSET('Smelter Look-up'!$H$4,$V2117-4,0))","v":""},{"$f":"IF(ISERROR($V2117),\"\",OFFSET('Smelter Look-up'!$I$4,$V2117-4,0))","v":""},{"$nulls":7},{"$f":"IF(ISERROR($V2117),\"\",OFFSET('Smelter Look-up'!$C$4,$V2117-4,0)&\"\")","v":""},"",{"$f":"IF(B2117=\"\",\"\",IF(ISERROR(MATCH($J2117,SorP!$B$1:$B$6230,0)),\"\",INDIRECT(\"'SorP'!$A$\"&MATCH($J2117,SorP!$B$1:$B$6230,0))))","v":""},null,{"$f":"IF(C2117=\"\",NA(),MATCH($B2117&$C2117,'Smelter Look-up'!$J:$J,0))","v":{"$error":"#N/A"}},null,0,null,null,null,""]
[null,{"$f":"IF(LEN(A2118)=0,\"\",INDEX('Smelter Look-up'!$A:$A,MATCH($A2118,'Smelter Look-up'!$E:$E,0)))","v":""},{"$f":"IF(LEN(A2118)=0,\"\",INDEX('Smelter Look-up'!$C:$C,MATCH($A2118,'Smelter Look-up'!$E:$E,0)))","v":""},null,{"$f":"IF(ISERROR($V2118),\"\",OFFSET('Smelter Look-up'!$D$4,$V2118-4,0)&\"\")","v":""},{"$f":"IF(ISERROR($V2118),\"\",OFFSET('Smelter Look-up'!$E$4,$V2118-4,0))","v":""},{"$f":"IF(C2118=$X$4,\"Enter smelter details\", IF(ISERROR($V2118),\"\",OFFSET('Smelter Look-up'!$F$4,$V2118-4,0)))","v":""},{"$f":"IF(ISERROR($V2118),\"\",OFFSET('Smelter Look-up'!$G$4,$V2118-4,0))","v":""},{"$f":"IF(ISERROR($V2118),\"\",OFFSET('Smelter Look-up'!$H$4,$V2118-4,0))","v":""},{"$f":"IF(ISERROR($V2118),\"\",OFFSET('Smelter Look-up'!$I$4,$V2118-4,0))","v":""},{"$nulls":7},{"$f":"IF(ISERROR($V2118),\"\",OFFSET('Smelter Look-up'!$C$4,$V2118-4,0)&\"\")","v":""},"",{"$f":"IF(B2118=\"\",\"\",IF(ISERROR(MATCH($J2118,SorP!$B$1:$B$6230,0)),\"\",INDIRECT(\"'SorP'!$A$\"&MATCH($J2118,SorP!$B$1:$B$6230,0))))","v":""},null,{"$f":"IF(C2118=\"\",NA(),MATCH($B2118&$C2118,'Smelter Look-up'!$J:$J,0))","v":{"$error":"#N/A"}},null,0,null,null,null,""]
[null,{"$f":"IF(LEN(A2119)=0,\"\",INDEX('Smelter Look-up'!$A:$A,MATCH($A2119,'Smelter Look-up'!$E:$E,0)))","v":""},{"$f":"IF(LEN(A2119)=0,\"\",INDEX('Smelter Look-up'!$C:$C,MATCH($A2119,'Smelter Look-up'!$E:$E,0)))","v":""},null,{"$f":"IF(ISERROR($V2119),\"\",OFFSET('Smelter Look-up'!$D$4,$V2119-4,0)&\"\")","v":""},{"$f":"IF(ISERROR($V2119),\"\",OFFSET('Smelter Look-up'!$E$4,$V2119-4,0))","v":""},{"$f":"IF(C2119=$X$4,\"Enter smelter details\", IF(ISERROR($V2119),\"\",OFFSET('Smelter Look-up'!$F$4,$V2119-4,0)))","v":""},{"$f":"IF(ISERROR($V2119),\"\",OFFSET('Smelter Look-up'!$G$4,$V2119-4,0))","v":""},{"$f":"IF(ISERROR($V2119),\"\",OFFSET('Smelter Look-up'!$H$4,$V2119-4,0))","v":""},{"$f":"IF(ISERROR($V2119),\"\",OFFSET('Smelter Look-up'!$I$4,$V2119-4,0))","v":""},{"$nulls":7},{"$f":"IF(ISERROR($V2119),\"\",OFFSET('Smelter Look-up'!$C$4,$V2119-4,0)&\"\")","v":""},"",{"$f":"IF(B2119=\"\",\"\",IF(ISERROR(MATCH($J2119,SorP!$B$1:$B$6230,0)),\"\",INDIRECT(\"'SorP'!$A$\"&MATCH($J2119,SorP!$B$1:$B$6230,0))))","v":""},null,{"$f":"IF(C2119=\"\",NA(),MATCH($B2119&$C2119,'Smelter Look-up'!$J:$J,0))","v":{"$error":"#N/A"}},null,0,null,null,null,""]
[null,{"$f":"IF(LEN(A2120)=0,\"\",INDEX('Smelter Look-up'!$A:$A,MATCH($A2120,'Smelter Look-up'!$E:$E,0)))","v":""},{"$f":"IF(LEN(A2120)=0,\"\",INDEX('Smelter Look-up'!$C:$C,MATCH($A2120,'Smelter Look-up'!$E:$E,0)))","v":""},null,{"$f":"IF(ISERROR($V2120),\"\",OFFSET('Smelter Look-up'!$D$4,$V2120-4,0)&\"\")","v":""},{"$f":"IF(ISERROR($V2120),\"\",OFFSET('Smelter Look-up'!$E$4,$V2120-4,0))","v":""},{"$f":"IF(C2120=$X$4,\"Enter smelter details\", IF(ISERROR($V2120),\"\",OFFSET('Smelter Look-up'!$F$4,$V2120-4,0)))","v":""},{"$f":"IF(ISERROR($V2120),\"\",OFFSET('Smelter Look-up'!$G$4,$V2120-4,0))","v":""},{"$f":"IF(ISERROR($V2120),\"\",OFFSET('Smelter Look-up'!$H$4,$V2120-4,0))","v":""},{"$f":"IF(ISERROR($V2120),\"\",OFFSET('Smelter Look-up'!$I$4,$V2120-4,0))","v":""},{"$nulls":7},{"$f":"IF(ISERROR($V2120),\"\",OFFSET('Smelter Look-up'!$C$4,$V2120-4,0)&\"\")","v":""},"",{"$f":"IF(B2120=\"\",\"\",IF(ISERROR(MATCH($J2120,SorP!$B$1:$B$6230,0)),\"\",INDIRECT(\"'SorP'!$A$\"&MATCH($J2120,SorP!$B$1:$B$6230,0))))","v":""},null,{"$f":"IF(C2120=\"\",NA(),MATCH($B2120&$C2120,'Smelter Look-up'!$J:$J,0))","v":{"$error":"#N/A"}},null,0,null,null,null,""]
[null,{"$f":"IF(LEN(A2121)=0,\"\",INDEX('Smelter Look-up'!$A:$A,MATCH($A2121,'Smelter Look-up'!$E:$E,0)))","v":""},{"$f":"IF(LEN(A2121)=0,\"\",INDEX('Smelter Look-up'!$C:$C,MATCH($A2121,'Smelter Look-up'!$E:$E,0)))","v":""},null,{"$f":"IF(ISERROR($V2121),\"\",OFFSET('Smelter Look-up'!$D$4,$V2121-4,0)&\"\")","v":""},{"$f":"IF(ISERROR($V2121),\"\",OFFSET('Smelter Look-up'!$E$4,$V2121-4,0))","v":""},{"$f":"IF(C2121=$X$4,\"Enter smelter details\", IF(ISERROR($V2121),\"\",OFFSET('Smelter Look-up'!$F$4,$V2121-4,0)))","v":""},{"$f":"IF(ISERROR($V2121),\"\",OFFSET('Smelter Look-up'!$G$4,$V2121-4,0))","v":""},{"$f":"IF(ISERROR($V2121),\"\",OFFSET('Smelter Look-up'!$H$4,$V2121-4,0))","v":""},{"$f":"IF(ISERROR($V2121),\"\",OFFSET('Smelter Look-up'!$I$4,$V2121-4,0))","v":""},{"$nulls":7},{"$f":"IF(ISERROR($V2121),\"\",OFFSET('Smelter Look-up'!$C$4,$V2121-4,0)&\"\")","v":""},"",{"$f":"IF(B2121=\"\",\"\",IF(ISERROR(MATCH($J2121,SorP!$B$1:$B$6230,0)),\"\",INDIRECT(\"'SorP'!$A$\"&MATCH($J2121,SorP!$B$1:$B$6230,0))))","v":""},null,{"$f":"IF(C2121=\"\",NA(),MATCH($B2121&$C2121,'Smelter Look-up'!$J:$J,0))","v":{"$error":"#N/A"}},null,0,null,null,null,""]
[null,{"$f":"IF(LEN(A2122)=0,\"\",INDEX('Smelter Look-up'!$A:$A,MATCH($A2122,'Smelter Look-up'!$E:$E,0)))","v":""},{"$f":"IF(LEN(A2122)=0,\"\",INDEX('Smelter Look-up'!$C:$C,MATCH($A2122,'Smelter Look-up'!$E:$E,0)))","v":""},null,{"$f":"IF(ISERROR($V2122),\"\",OFFSET('Smelter Look-up'!$D$4,$V2122-4,0)&\"\")","v":""},{"$f":"IF(ISERROR($V2122),\"\",OFFSET('Smelter Look-up'!$E$4,$V2122-4,0))","v":""},{"$f":"IF(C2122=$X$4,\"Enter smelter details\", IF(ISERROR($V2122),\"\",OFFSET('Smelter Look-up'!$F$4,$V2122-4,0)))","v":""},{"$f":"IF(ISERROR($V2122),\"\",OFFSET('Smelter Look-up'!$G$4,$V2122-4,0))","v":""},{"$f":"IF(ISERROR($V2122),\"\",OFFSET('Smelter Look-up'!$H$4,$V2122-4,0))","v":""},{"$f":"IF(ISERROR($V2122),\"\",OFFSET('Smelter Look-up'!$I$4,$V2122-4,0))","v":""},{"$nulls":7},{"$f":"IF(ISERROR($V2122),\"\",OFFSET('Smelter Look-up'!$C$4,$V2122-4,0)&\"\")","v":""},"",{"$f":"IF(B2122=\"\",\"\",IF(ISERROR(MATCH($J2122,SorP!$B$1:$B$6230,0)),\"\",INDIRECT(\"'SorP'!$A$\"&MATCH($J2122,SorP!$B$1:$B$6230,0))))","v":""},null,{"$f":"IF(C2122=\"\",NA(),MATCH($B2122&$C2122,'Smelter Look-up'!$J:$J,0))","v":{"$error":"#N/A"}},null,0,null,null,null,""]
[null,{"$f":"IF(LEN(A2123)=0,\"\",INDEX('Smelter Look-up'!$A:$A,MATCH($A2123,'Smelter Look-up'!$E:$E,0)))","v":""},{"$f":"IF(LEN(A2123)=0,\"\",INDEX('Smelter Look-up'!$C:$C,MATCH($A2123,'Smelter Look-up'!$E:$E,0)))","v":""},null,{"$f":"IF(ISERROR($V2123),\"\",OFFSET('Smelter Look-up'!$D$4,$V2123-4,0)&\"\")","v":""},{"$f":"IF(ISERROR($V2123),\"\",OFFSET('Smelter Look-up'!$E$4,$V2123-4,0))","v":""},{"$f":"IF(C2123=$X$4,\"Enter smelter details\", IF(ISERROR($V2123),\"\",OFFSET('Smelter Look-up'!$F$4,$V2123-4,0)))","v":""},{"$f":"IF(ISERROR($V2123),\"\",OFFSET('Smelter Look-up'!$G$4,$V2123-4,0))","v":""},{"$f":"IF(ISERROR($V2123),\"\",OFFSET('Smelter Look-up'!$H$4,$V2123-4,0))","v":""},{"$f":"IF(ISERROR($V2123),\"\",OFFSET('Smelter Look-up'!$I$4,$V2123-4,0))","v":""},{"$nulls":7},{"$f":"IF(ISERROR($V2123),\"\",OFFSET('Smelter Look-up'!$C$4,$V2123-4,0)&\"\")","v":""},"",{"$f":"IF(B2123=\"\",\"\",IF(ISERROR(MATCH($J2123,SorP!$B$1:$B$6230,0)),\"\",INDIRECT(\"'SorP'!$A$\"&MATCH($J2123,SorP!$B$1:$B$6230,0))))","v":""},null,{"$f":"IF(C2123=\"\",NA(),MATCH($B2123&$C2123,'Smelter Look-up'!$J:$J,0))","v":{"$error":"#N/A"}},null,0,null,null,null,""]
[null,{"$f":"IF(LEN(A2124)=0,\"\",INDEX('Smelter Look-up'!$A:$A,MATCH($A2124,'Smelter Look-up'!$E:$E,0)))","v":""},{"$f":"IF(LEN(A2124)=0,\"\",INDEX('Smelter Look-up'!$C:$C,MATCH($A2124,'Smelter Look-up'!$E:$E,0)))","v":""},null,{"$f":"IF(ISERROR($V2124),\"\",OFFSET('Smelter Look-up'!$D$4,$V2124-4,0)&\"\")","v":""},{"$f":"IF(ISERROR($V2124),\"\",OFFSET('Smelter Look-up'!$E$4,$V2124-4,0))","v":""},{"$f":"IF(C2124=$X$4,\"Enter smelter details\", IF(ISERROR($V2124),\"\",OFFSET('Smelter Look-up'!$F$4,$V2124-4,0)))","v":""},{"$f":"IF(ISERROR($V2124),\"\",OFFSET('Smelter Look-up'!$G$4,$V2124-4,0))","v":""},{"$f":"IF(ISERROR($V2124),\"\",OFFSET('Smelter Look-up'!$H$4,$V2124-4,0))","v":""},{"$f":"IF(ISERROR($V2124),\"\",OFFSET('Smelter Look-up'!$I$4,$V2124-4,0))","v":""},{"$nulls":7},{"$f":"IF(ISERROR($V2124),\"\",OFFSET('Smelter Look-up'!$C$4,$V2124-4,0)&\"\")","v":""},"",{"$f":"IF(B2124=\"\",\"\",IF(ISERROR(MATCH($J2124,SorP!$B$1:$B$6230,0)),\"\",INDIRECT(\"'SorP'!$A$\"&MATCH($J2124,SorP!$B$1:$B$6230,0))))","v":""},null,{"$f":"IF(C2124=\"\",NA(),MATCH($B2124&$C2124,'Smelter Look-up'!$J:$J,0))","v":{"$error":"#N/A"}},null,0,null,null,null,""]
[null,{"$f":"IF(LEN(A2125)=0,\"\",INDEX('Smelter Look-up'!$A:$A,MATCH($A2125,'Smelter Look-up'!$E:$E,0)))","v":""},{"$f":"IF(LEN(A2125)=0,\"\",INDEX('Smelter Look-up'!$C:$C,MATCH($A2125,'Smelter Look-up'!$E:$E,0)))","v":""},null,{"$f":"IF(ISERROR($V2125),\"\",OFFSET('Smelter Look-up'!$D$4,$V2125-4,0)&\"\")","v":""},{"$f":"IF(ISERROR($V2125),\"\",OFFSET('Smelter Look-up'!$E$4,$V2125-4,0))","v":""},{"$f":"IF(C2125=$X$4,\"Enter smelter details\", IF(ISERROR($V2125),\"\",OFFSET('Smelter Look-up'!$F$4,$V2125-4,0)))","v":""},{"$f":"IF(ISERROR($V2125),\"\",OFFSET('Smelter Look-up'!$G$4,$V2125-4,0))","v":""},{"$f":"IF(ISERROR($V2125),\"\",OFFSET('Smelter Look-up'!$H$4,$V2125-4,0))","v":""},{"$f":"IF(ISERROR($V2125),\"\",OFFSET('Smelter Look-up'!$I$4,$V2125-4,0))","v":""},{"$nulls":7},{"$f":"IF(ISERROR($V2125),\"\",OFFSET('Smelter Look-up'!$C$4,$V2125-4,0)&\"\")","v":""},"",{"$f":"IF(B2125=\"\",\"\",IF(ISERROR(MATCH($J2125,SorP!$B$1:$B$6230,0)),\"\",INDIRECT(\"'SorP'!$A$\"&MATCH($J2125,SorP!$B$1:$B$6230,0))))","v":""},null,{"$f":"IF(C2125=\"\",NA(),MATCH($B2125&$C2125,'Smelter Look-up'!$J:$J,0))","v":{"$error":"#N/A"}},null,0,null,null,null,""]
[null,{"$f":"IF(LEN(A2126)=0,\"\",INDEX('Smelter Look-up'!$A:$A,MATCH($A2126,'Smelter Look-up'!$E:$E,0)))","v":""},{"$f":"IF(LEN(A2126)=0,\"\",INDEX('Smelter Look-up'!$C:$C,MATCH($A2126,'Smelter Look-up'!$E:$E,0)))","v":""},null,{"$f":"IF(ISERROR($V2126),\"\",OFFSET('Smelter Look-up'!$D$4,$V2126-4,0)&\"\")","v":""},{"$f":"IF(ISERROR($V2126),\"\",OFFSET('Smelter Look-up'!$E$4,$V2126-4,0))","v":""},{"$f":"IF(C2126=$X$4,\"Enter smelter details\", IF(ISERROR($V2126),\"\",OFFSET('Smelter Look-up'!$F$4,$V2126-4,0)))","v":""},{"$f":"IF(ISERROR($V2126),\"\",OFFSET('Smelter Look-up'!$G$4,$V2126-4,0))","v":""},{"$f":"IF(ISERROR($V2126),\"\",OFFSET('Smelter Look-up'!$H$4,$V2126-4,0))","v":""},{"$f":"IF(ISERROR($V2126),\"\",OFFSET('Smelter Look-up'!$I$4,$V2126-4,0))","v":""},{"$nulls":7},{"$f":"IF(ISERROR($V2126),\"\",OFFSET('Smelter Look-up'!$C$4,$V2126-4,0)&\"\")","v":""},"",{"$f":"IF(B2126=\"\",\"\",IF(ISERROR(MATCH($J2126,SorP!$B$1:$B$6230,0)),\"\",INDIRECT(\"'SorP'!$A$\"&MATCH($J2126,SorP!$B$1:$B$6230,0))))","v":""},null,{"$f":"IF(C2126=\"\",NA(),MATCH($B2126&$C2126,'Smelter Look-up'!$J:$J,0))","v":{"$error":"#N/A"}},null,0,null,null,null,""]
[null,{"$f":"IF(LEN(A2127)=0,\"\",INDEX('Smelter Look-up'!$A:$A,MATCH($A2127,'Smelter Look-up'!$E:$E,0)))","v":""},{"$f":"IF(LEN(A2127)=0,\"\",INDEX('Smelter Look-up'!$C:$C,MATCH($A2127,'Smelter Look-up'!$E:$E,0)))","v":""},null,{"$f":"IF(ISERROR($V2127),\"\",OFFSET('Smelter Look-up'!$D$4,$V2127-4,0)&\"\")","v":""},{"$f":"IF(ISERROR($V2127),\"\",OFFSET('Smelter Look-up'!$E$4,$V2127-4,0))","v":""},{"$f":"IF(C2127=$X$4,\"Enter smelter details\", IF(ISERROR($V2127),\"\",OFFSET('Smelter Look-up'!$F$4,$V2127-4,0)))","v":""},{"$f":"IF(ISERROR($V2127),\"\",OFFSET('Smelter Look-up'!$G$4,$V2127-4,0))","v":""},{"$f":"IF(ISERROR($V2127),\"\",OFFSET('Smelter Look-up'!$H$4,$V2127-4,0))","v":""},{"$f":"IF(ISERROR($V2127),\"\",OFFSET('Smelter Look-up'!$I$4,$V2127-4,0))","v":""},{"$nulls":7},{"$f":"IF(ISERROR($V2127),\"\",OFFSET('Smelter Look-up'!$C$4,$V2127-4,0)&\"\")","v":""},"",{"$f":"IF(B2127=\"\",\"\",IF(ISERROR(MATCH($J2127,SorP!$B$1:$B$6230,0)),\"\",INDIRECT(\"'SorP'!$A$\"&MATCH($J2127,SorP!$B$1:$B$6230,0))))","v":""},null,{"$f":"IF(C2127=\"\",NA(),MATCH($B2127&$C2127,'Smelter Look-up'!$J:$J,0))","v":{"$error":"#N/A"}},null,0,null,null,null,""]
[null,{"$f":"IF(LEN(A2128)=0,\"\",INDEX('Smelter Look-up'!$A:$A,MATCH($A2128,'Smelter Look-up'!$E:$E,0)))","v":""},{"$f":"IF(LEN(A2128)=0,\"\",INDEX('Smelter Look-up'!$C:$C,MATCH($A2128,'Smelter Look-up'!$E:$E,0)))","v":""},null,{"$f":"IF(ISERROR($V2128),\"\",OFFSET('Smelter Look-up'!$D$4,$V2128-4,0)&\"\")","v":""},{"$f":"IF(ISERROR($V2128),\"\",OFFSET('Smelter Look-up'!$E$4,$V2128-4,0))","v":""},{"$f":"IF(C2128=$X$4,\"Enter smelter details\", IF(ISERROR($V2128),\"\",OFFSET('Smelter Look-up'!$F$4,$V2128-4,0)))","v":""},{"$f":"IF(ISERROR($V2128),\"\",OFFSET('Smelter Look-up'!$G$4,$V2128-4,0))","v":""},{"$f":"IF(ISERROR($V2128),\"\",OFFSET('Smelter Look-up'!$H$4,$V2128-4,0))","v":""},{"$f":"IF(ISERROR($V2128),\"\",OFFSET('Smelter Look-up'!$I$4,$V2128-4,0))","v":""},{"$nulls":7},{"$f":"IF(ISERROR($V2128),\"\",OFFSET('Smelter Look-up'!$C$4,$V2128-4,0)&\"\")","v":""},"",{"$f":"IF(B2128=\"\",\"\",IF(ISERROR(MATCH($J2128,SorP!$B$1:$B$6230,0)),\"\",INDIRECT(\"'SorP'!$A$\"&MATCH($J2128,SorP!$B$1:$B$6230,0))))","v":""},null,{"$f":"IF(C2128=\"\",NA(),MATCH($B2128&$C2128,'Smelter Look-up'!$J:$J,0))","v":{"$error":"#N/A"}},null,0,null,null,null,""]
[null,{"$f":"IF(LEN(A2129)=0,\"\",INDEX('Smelter Look-up'!$A:$A,MATCH($A2129,'Smelter Look-up'!$E:$E,0)))","v":""},{"$f":"IF(LEN(A2129)=0,\"\",INDEX('Smelter Look-up'!$C:$C,MATCH($A2129,'Smelter Look-up'!$E:$E,0)))","v":""},null,{"$f":"IF(ISERROR($V2129),\"\",OFFSET('Smelter Look-up'!$D$4,$V2129-4,0)&\"\")","v":""},{"$f":"IF(ISERROR($V2129),\"\",OFFSET('Smelter Look-up'!$E$4,$V2129-4,0))","v":""},{"$f":"IF(C2129=$X$4,\"Enter smelter details\", IF(ISERROR($V2129),\"\",OFFSET('Smelter Look-up'!$F$4,$V2129-4,0)))","v":""},{"$f":"IF(ISERROR($V2129),\"\",OFFSET('Smelter Look-up'!$G$4,$V2129-4,0))","v":""},{"$f":"IF(ISERROR($V2129),\"\",OFFSET('Smelter Look-up'!$H$4,$V2129-4,0))","v":""},{"$f":"IF(ISERROR($V2129),\"\",OFFSET('Smelter Look-up'!$I$4,$V2129-4,0))","v":""},{"$nulls":7},{"$f":"IF(ISERROR($V2129),\"\",OFFSET('Smelter Look-up'!$C$4,$V2129-4,0)&\"\")","v":""},"",{"$f":"IF(B2129=\"\",\"\",IF(ISERROR(MATCH($J2129,SorP!$B$1:$B$6230,0)),\"\",INDIRECT(\"'SorP'!$A$\"&MATCH($J2129,SorP!$B$1:$B$6230,0))))","v":""},null,{"$f":"IF(C2129=\"\",NA(),MATCH($B2129&$C2129,'Smelter Look-up'!$J:$J,0))","v":{"$error":"#N/A"}},null,0,null,null,null,""]
[null,{"$f":"IF(LEN(A2130)=0,\"\",INDEX('Smelter Look-up'!$A:$A,MATCH($A2130,'Smelter Look-up'!$E:$E,0)))","v":""},{"$f":"IF(LEN(A2130)=0,\"\",INDEX('Smelter Look-up'!$C:$C,MATCH($A2130,'Smelter Look-up'!$E:$E,0)))","v":""},null,{"$f":"IF(ISERROR($V2130),\"\",OFFSET('Smelter Look-up'!$D$4,$V2130-4,0)&\"\")","v":""},{"$f":"IF(ISERROR($V2130),\"\",OFFSET('Smelter Look-up'!$E$4,$V2130-4,0))","v":""},{"$f":"IF(C2130=$X$4,\"Enter smelter details\", IF(ISERROR($V2130),\"\",OFFSET('Smelter Look-up'!$F$4,$V2130-4,0)))","v":""},{"$f":"IF(ISERROR($V2130),\"\",OFFSET('Smelter Look-up'!$G$4,$V2130-4,0))","v":""},{"$f":"IF(ISERROR($V2130),\"\",OFFSET('Smelter Look-up'!$H$4,$V2130-4,0))","v":""},{"$f":"IF(ISERROR($V2130),\"\",OFFSET('Smelter Look-up'!$I$4,$V2130-4,0))","v":""},{"$nulls":7},{"$f":"IF(ISERROR($V2130),\"\",OFFSET('Smelter Look-up'!$C$4,$V2130-4,0)&\"\")","v":""},"",{"$f":"IF(B2130=\"\",\"\",IF(ISERROR(MATCH($J2130,SorP!$B$1:$B$6230,0)),\"\",INDIRECT(\"'SorP'!$A$\"&MATCH($J2130,SorP!$B$1:$B$6230,0))))","v":""},null,{"$f":"IF(C2130=\"\",NA(),MATCH($B2130&$C2130,'Smelter Look-up'!$J:$J,0))","v":{"$error":"#N/A"}},null,0,null,null,null,""]
[null,{"$f":"IF(LEN(A2131)=0,\"\",INDEX('Smelter Look-up'!$A:$A,MATCH($A2131,'Smelter Look-up'!$E:$E,0)))","v":""},{"$f":"IF(LEN(A2131)=0,\"\",INDEX('Smelter Look-up'!$C:$C,MATCH($A2131,'Smelter Look-up'!$E:$E,0)))","v":""},null,{"$f":"IF(ISERROR($V2131),\"\",OFFSET('Smelter Look-up'!$D$4,$V2131-4,0)&\"\")","v":""},{"$f":"IF(ISERROR($V2131),\"\",OFFSET('Smelter Look-up'!$E$4,$V2131-4,0))","v":""},{"$f":"IF(C2131=$X$4,\"Enter smelter details\", IF(ISERROR($V2131),\"\",OFFSET('Smelter Look-up'!$F$4,$V2131-4,0)))","v":""},{"$f":"IF(ISERROR($V2131),\"\",OFFSET('Smelter Look-up'!$G$4,$V2131-4,0))","v":""},{"$f":"IF(ISERROR($V2131),\"\",OFFSET('Smelter Look-up'!$H$4,$V2131-4,0))","v":""},{"$f":"IF(ISERROR($V2131),\"\",OFFSET('Smelter Look-up'!$I$4,$V2131-4,0))","v":""},{"$nulls":7},{"$f":"IF(ISERROR($V2131),\"\",OFFSET('Smelter Look-up'!$C$4,$V2131-4,0)&\"\")","v":""},"",{"$f":"IF(B2131=\"\",\"\",IF(ISERROR(MATCH($J2131,SorP!$B$1:$B$6230,0)),\"\",INDIRECT(\"'SorP'!$A$\"&MATCH($J2131,SorP!$B$1:$B$6230,0))))","v":""},null,{"$f":"IF(C2131=\"\",NA(),MATCH($B2131&$C2131,'Smelter Look-up'!$J:$J,0))","v":{"$error":"#N/A"}},null,0,null,null,null,""]
[null,{"$f":"IF(LEN(A2132)=0,\"\",INDEX('Smelter Look-up'!$A:$A,MATCH($A2132,'Smelter Look-up'!$E:$E,0)))","v":""},{"$f":"IF(LEN(A2132)=0,\"\",INDEX('Smelter Look-up'!$C:$C,MATCH($A2132,'Smelter Look-up'!$E:$E,0)))","v":""},null,{"$f":"IF(ISERROR($V2132),\"\",OFFSET('Smelter Look-up'!$D$4,$V2132-4,0)&\"\")","v":""},{"$f":"IF(ISERROR($V2132),\"\",OFFSET('Smelter Look-up'!$E$4,$V2132-4,0))","v":""},{"$f":"IF(C2132=$X$4,\"Enter smelter details\", IF(ISERROR($V2132),\"\",OFFSET('Smelter Look-up'!$F$4,$V2132-4,0)))","v":""},{"$f":"IF(ISERROR($V2132),\"\",OFFSET('Smelter Look-up'!$G$4,$V2132-4,0))","v":""},{"$f":"IF(ISERROR($V2132),\"\",OFFSET('Smelter Look-up'!$H$4,$V2132-4,0))","v":""},{"$f":"IF(ISERROR($V2132),\"\",OFFSET('Smelter Look-up'!$I$4,$V2132-4,0))","v":""},{"$nulls":7},{"$f":"IF(ISERROR($V2132),\"\",OFFSET('Smelter Look-up'!$C$4,$V2132-4,0)&\"\")","v":""},"",{"$f":"IF(B2132=\"\",\"\",IF(ISERROR(MATCH($J2132,SorP!$B$1:$B$6230,0)),\"\",INDIRECT(\"'SorP'!$A$\"&MATCH($J2132,SorP!$B$1:$B$6230,0))))","v":""},null,{"$f":"IF(C2132=\"\",NA(),MATCH($B2132&$C2132,'Smelter Look-up'!$J:$J,0))","v":{"$error":"#N/A"}},null,0,null,null,null,""]
[null,{"$f":"IF(LEN(A2133)=0,\"\",INDEX('Smelter Look-up'!$A:$A,MATCH($A2133,'Smelter Look-up'!$E:$E,0)))","v":""},{"$f":"IF(LEN(A2133)=0,\"\",INDEX('Smelter Look-up'!$C:$C,MATCH($A2133,'Smelter Look-up'!$E:$E,0)))","v":""},null,{"$f":"IF(ISERROR($V2133),\"\",OFFSET('Smelter Look-up'!$D$4,$V2133-4,0)&\"\")","v":""},{"$f":"IF(ISERROR($V2133),\"\",OFFSET('Smelter Look-up'!$E$4,$V2133-4,0))","v":""},{"$f":"IF(C2133=$X$4,\"Enter smelter details\", IF(ISERROR($V2133),\"\",OFFSET('Smelter Look-up'!$F$4,$V2133-4,0)))","v":""},{"$f":"IF(ISERROR($V2133),\"\",OFFSET('Smelter Look-up'!$G$4,$V2133-4,0))","v":""},{"$f":"IF(ISERROR($V2133),\"\",OFFSET('Smelter Look-up'!$H$4,$V2133-4,0))","v":""},{"$f":"IF(ISERROR($V2133),\"\",OFFSET('Smelter Look-up'!$I$4,$V2133-4,0))","v":""},{"$nulls":7},{"$f":"IF(ISERROR($V2133),\"\",OFFSET('Smelter Look-up'!$C$4,$V2133-4,0)&\"\")","v":""},"",{"$f":"IF(B2133=\"\",\"\",IF(ISERROR(MATCH($J2133,SorP!$B$1:$B$6230,0)),\"\",INDIRECT(\"'SorP'!$A$\"&MATCH($J2133,SorP!$B$1:$B$6230,0))))","v":""},null,{"$f":"IF(C2133=\"\",NA(),MATCH($B2133&$C2133,'Smelter Look-up'!$J:$J,0))","v":{"$error":"#N/A"}},null,0,null,null,null,""]
[null,{"$f":"IF(LEN(A2134)=0,\"\",INDEX('Smelter Look-up'!$A:$A,MATCH($A2134,'Smelter Look-up'!$E:$E,0)))","v":""},{"$f":"IF(LEN(A2134)=0,\"\",INDEX('Smelter Look-up'!$C:$C,MATCH($A2134,'Smelter Look-up'!$E:$E,0)))","v":""},null,{"$f":"IF(ISERROR($V2134),\"\",OFFSET('Smelter Look-up'!$D$4,$V2134-4,0)&\"\")","v":""},{"$f":"IF(ISERROR($V2134),\"\",OFFSET('Smelter Look-up'!$E$4,$V2134-4,0))","v":""},{"$f":"IF(C2134=$X$4,\"Enter smelter details\", IF(ISERROR($V2134),\"\",OFFSET('Smelter Look-up'!$F$4,$V2134-4,0)))","v":""},{"$f":"IF(ISERROR($V2134),\"\",OFFSET('Smelter Look-up'!$G$4,$V2134-4,0))","v":""},{"$f":"IF(ISERROR($V2134),\"\",OFFSET('Smelter Look-up'!$H$4,$V2134-4,0))","v":""},{"$f":"IF(ISERROR($V2134),\"\",OFFSET('Smelter Look-up'!$I$4,$V2134-4,0))","v":""},{"$nulls":7},{"$f":"IF(ISERROR($V2134),\"\",OFFSET('Smelter Look-up'!$C$4,$V2134-4,0)&\"\")","v":""},"",{"$f":"IF(B2134=\"\",\"\",IF(ISERROR(MATCH($J2134,SorP!$B$1:$B$6230,0)),\"\",INDIRECT(\"'SorP'!$A$\"&MATCH($J2134,SorP!$B$1:$B$6230,0))))","v":""},null,{"$f":"IF(C2134=\"\",NA(),MATCH($B2134&$C2134,'Smelter Look-up'!$J:$J,0))","v":{"$error":"#N/A"}},null,0,null,null,null,""]
[null,{"$f":"IF(LEN(A2135)=0,\"\",INDEX('Smelter Look-up'!$A:$A,MATCH($A2135,'Smelter Look-up'!$E:$E,0)))","v":""},{"$f":"IF(LEN(A2135)=0,\"\",INDEX('Smelter Look-up'!$C:$C,MATCH($A2135,'Smelter Look-up'!$E:$E,0)))","v":""},null,{"$f":"IF(ISERROR($V2135),\"\",OFFSET('Smelter Look-up'!$D$4,$V2135-4,0)&\"\")","v":""},{"$f":"IF(ISERROR($V2135),\"\",OFFSET('Smelter Look-up'!$E$4,$V2135-4,0))","v":""},{"$f":"IF(C2135=$X$4,\"Enter smelter details\", IF(ISERROR($V2135),\"\",OFFSET('Smelter Look-up'!$F$4,$V2135-4,0)))","v":""},{"$f":"IF(ISERROR($V2135),\"\",OFFSET('Smelter Look-up'!$G$4,$V2135-4,0))","v":""},{"$f":"IF(ISERROR($V2135),\"\",OFFSET('Smelter Look-up'!$H$4,$V2135-4,0))","v":""},{"$f":"IF(ISERROR($V2135),\"\",OFFSET('Smelter Look-up'!$I$4,$V2135-4,0))","v":""},{"$nulls":7},{"$f":"IF(ISERROR($V2135),\"\",OFFSET('Smelter Look-up'!$C$4,$V2135-4,0)&\"\")","v":""},"",{"$f":"IF(B2135=\"\",\"\",IF(ISERROR(MATCH($J2135,SorP!$B$1:$B$6230,0)),\"\",INDIRECT(\"'SorP'!$A$\"&MATCH($J2135,SorP!$B$1:$B$6230,0))))","v":""},null,{"$f":"IF(C2135=\"\",NA(),MATCH($B2135&$C2135,'Smelter Look-up'!$J:$J,0))","v":{"$error":"#N/A"}},null,0,null,null,null,""]
[null,{"$f":"IF(LEN(A2136)=0,\"\",INDEX('Smelter Look-up'!$A:$A,MATCH($A2136,'Smelter Look-up'!$E:$E,0)))","v":""},{"$f":"IF(LEN(A2136)=0,\"\",INDEX('Smelter Look-up'!$C:$C,MATCH($A2136,'Smelter Look-up'!$E:$E,0)))","v":""},null,{"$f":"IF(ISERROR($V2136),\"\",OFFSET('Smelter Look-up'!$D$4,$V2136-4,0)&\"\")","v":""},{"$f":"IF(ISERROR($V2136),\"\",OFFSET('Smelter Look-up'!$E$4,$V2136-4,0))","v":""},{"$f":"IF(C2136=$X$4,\"Enter smelter details\", IF(ISERROR($V2136),\"\",OFFSET('Smelter Look-up'!$F$4,$V2136-4,0)))","v":""},{"$f":"IF(ISERROR($V2136),\"\",OFFSET('Smelter Look-up'!$G$4,$V2136-4,0))","v":""},{"$f":"IF(ISERROR($V2136),\"\",OFFSET('Smelter Look-up'!$H$4,$V2136-4,0))","v":""},{"$f":"IF(ISERROR($V2136),\"\",OFFSET('Smelter Look-up'!$I$4,$V2136-4,0))","v":""},{"$nulls":7},{"$f":"IF(ISERROR($V2136),\"\",OFFSET('Smelter Look-up'!$C$4,$V2136-4,0)&\"\")","v":""},"",{"$f":"IF(B2136=\"\",\"\",IF(ISERROR(MATCH($J2136,SorP!$B$1:$B$6230,0)),\"\",INDIRECT(\"'SorP'!$A$\"&MATCH($J2136,SorP!$B$1:$B$6230,0))))","v":""},null,{"$f":"IF(C2136=\"\",NA(),MATCH($B2136&$C2136,'Smelter Look-up'!$J:$J,0))","v":{"$error":"#N/A"}},null,0,null,null,null,""]
[null,{"$f":"IF(LEN(A2137)=0,\"\",INDEX('Smelter Look-up'!$A:$A,MATCH($A2137,'Smelter Look-up'!$E:$E,0)))","v":""},{"$f":"IF(LEN(A2137)=0,\"\",INDEX('Smelter Look-up'!$C:$C,MATCH($A2137,'Smelter Look-up'!$E:$E,0)))","v":""},null,{"$f":"IF(ISERROR($V2137),\"\",OFFSET('Smelter Look-up'!$D$4,$V2137-4,0)&\"\")","v":""},{"$f":"IF(ISERROR($V2137),\"\",OFFSET('Smelter Look-up'!$E$4,$V2137-4,0))","v":""},{"$f":"IF(C2137=$X$4,\"Enter smelter details\", IF(ISERROR($V2137),\"\",OFFSET('Smelter Look-up'!$F$4,$V2137-4,0)))","v":""},{"$f":"IF(ISERROR($V2137),\"\",OFFSET('Smelter Look-up'!$G$4,$V2137-4,0))","v":""},{"$f":"IF(ISERROR($V2137),\"\",OFFSET('Smelter Look-up'!$H$4,$V2137-4,0))","v":""},{"$f":"IF(ISERROR($V2137),\"\",OFFSET('Smelter Look-up'!$I$4,$V2137-4,0))","v":""},{"$nulls":7},{"$f":"IF(ISERROR($V2137),\"\",OFFSET('Smelter Look-up'!$C$4,$V2137-4,0)&\"\")","v":""},"",{"$f":"IF(B2137=\"\",\"\",IF(ISERROR(MATCH($J2137,SorP!$B$1:$B$6230,0)),\"\",INDIRECT(\"'SorP'!$A$\"&MATCH($J2137,SorP!$B$1:$B$6230,0))))","v":""},null,{"$f":"IF(C2137=\"\",NA(),MATCH($B2137&$C2137,'Smelter Look-up'!$J:$J,0))","v":{"$error":"#N/A"}},null,0,null,null,null,""]
[null,{"$f":"IF(LEN(A2138)=0,\"\",INDEX('Smelter Look-up'!$A:$A,MATCH($A2138,'Smelter Look-up'!$E:$E,0)))","v":""},{"$f":"IF(LEN(A2138)=0,\"\",INDEX('Smelter Look-up'!$C:$C,MATCH($A2138,'Smelter Look-up'!$E:$E,0)))","v":""},null,{"$f":"IF(ISERROR($V2138),\"\",OFFSET('Smelter Look-up'!$D$4,$V2138-4,0)&\"\")","v":""},{"$f":"IF(ISERROR($V2138),\"\",OFFSET('Smelter Look-up'!$E$4,$V2138-4,0))","v":""},{"$f":"IF(C2138=$X$4,\"Enter smelter details\", IF(ISERROR($V2138),\"\",OFFSET('Smelter Look-up'!$F$4,$V2138-4,0)))","v":""},{"$f":"IF(ISERROR($V2138),\"\",OFFSET('Smelter Look-up'!$G$4,$V2138-4,0))","v":""},{"$f":"IF(ISERROR($V2138),\"\",OFFSET('Smelter Look-up'!$H$4,$V2138-4,0))","v":""},{"$f":"IF(ISERROR($V2138),\"\",OFFSET('Smelter Look-up'!$I$4,$V2138-4,0))","v":""},{"$nulls":7},{"$f":"IF(ISERROR($V2138),\"\",OFFSET('Smelter Look-up'!$C$4,$V2138-4,0)&\"\")","v":""},"",{"$f":"IF(B2138=\"\",\"\",IF(ISERROR(MATCH($J2138,SorP!$B$1:$B$6230,0)),\"\",INDIRECT(\"'SorP'!$A$\"&MATCH($J2138,SorP!$B$1:$B$6230,0))))","v":""},null,{"$f":"IF(C2138=\"\",NA(),MATCH($B2138&$C2138,'Smelter Look-up'!$J:$J,0))","v":{"$error":"#N/A"}},null,0,null,null,null,""]
[null,{"$f":"IF(LEN(A2139)=0,\"\",INDEX('Smelter Look-up'!$A:$A,MATCH($A2139,'Smelter Look-up'!$E:$E,0)))","v":""},{"$f":"IF(LEN(A2139)=0,\"\",INDEX('Smelter Look-up'!$C:$C,MATCH($A2139,'Smelter Look-up'!$E:$E,0)))","v":""},null,{"$f":"IF(ISERROR($V2139),\"\",OFFSET('Smelter Look-up'!$D$4,$V2139-4,0)&\"\")","v":""},{"$f":"IF(ISERROR($V2139),\"\",OFFSET('Smelter Look-up'!$E$4,$V2139-4,0))","v":""},{"$f":"IF(C2139=$X$4,\"Enter smelter details\", IF(ISERROR($V2139),\"\",OFFSET('Smelter Look-up'!$F$4,$V2139-4,0)))","v":""},{"$f":"IF(ISERROR($V2139),\"\",OFFSET('Smelter Look-up'!$G$4,$V2139-4,0))","v":""},{"$f":"IF(ISERROR($V2139),\"\",OFFSET('Smelter Look-up'!$H$4,$V2139-4,0))","v":""},{"$f":"IF(ISERROR($V2139),\"\",OFFSET('Smelter Look-up'!$I$4,$V2139-4,0))","v":""},{"$nulls":7},{"$f":"IF(ISERROR($V2139),\"\",OFFSET('Smelter Look-up'!$C$4,$V2139-4,0)&\"\")","v":""},"",{"$f":"IF(B2139=\"\",\"\",IF(ISERROR(MATCH($J2139,SorP!$B$1:$B$6230,0)),\"\",INDIRECT(\"'SorP'!$A$\"&MATCH($J2139,SorP!$B$1:$B$6230,0))))","v":""},null,{"$f":"IF(C2139=\"\",NA(),MATCH($B2139&$C2139,'Smelter Look-up'!$J:$J,0))","v":{"$error":"#N/A"}},null,0,null,null,null,""]
[null,{"$f":"IF(LEN(A2140)=0,\"\",INDEX('Smelter Look-up'!$A:$A,MATCH($A2140,'Smelter Look-up'!$E:$E,0)))","v":""},{"$f":"IF(LEN(A2140)=0,\"\",INDEX('Smelter Look-up'!$C:$C,MATCH($A2140,'Smelter Look-up'!$E:$E,0)))","v":""},null,{"$f":"IF(ISERROR($V2140),\"\",OFFSET('Smelter Look-up'!$D$4,$V2140-4,0)&\"\")","v":""},{"$f":"IF(ISERROR($V2140),\"\",OFFSET('Smelter Look-up'!$E$4,$V2140-4,0))","v":""},{"$f":"IF(C2140=$X$4,\"Enter smelter details\", IF(ISERROR($V2140),\"\",OFFSET('Smelter Look-up'!$F$4,$V2140-4,0)))","v":""},{"$f":"IF(ISERROR($V2140),\"\",OFFSET('Smelter Look-up'!$G$4,$V2140-4,0))","v":""},{"$f":"IF(ISERROR($V2140),\"\",OFFSET('Smelter Look-up'!$H$4,$V2140-4,0))","v":""},{"$f":"IF(ISERROR($V2140),\"\",OFFSET('Smelter Look-up'!$I$4,$V2140-4,0))","v":""},{"$nulls":7},{"$f":"IF(ISERROR($V2140),\"\",OFFSET('Smelter Look-up'!$C$4,$V2140-4,0)&\"\")","v":""},"",{"$f":"IF(B2140=\"\",\"\",IF(ISERROR(MATCH($J2140,SorP!$B$1:$B$6230,0)),\"\",INDIRECT(\"'SorP'!$A$\"&MATCH($J2140,SorP!$B$1:$B$6230,0))))","v":""},null,{"$f":"IF(C2140=\"\",NA(),MATCH($B2140&$C2140,'Smelter Look-up'!$J:$J,0))","v":{"$error":"#N/A"}},null,0,null,null,null,""]
[null,{"$f":"IF(LEN(A2141)=0,\"\",INDEX('Smelter Look-up'!$A:$A,MATCH($A2141,'Smelter Look-up'!$E:$E,0)))","v":""},{"$f":"IF(LEN(A2141)=0,\"\",INDEX('Smelter Look-up'!$C:$C,MATCH($A2141,'Smelter Look-up'!$E:$E,0)))","v":""},null,{"$f":"IF(ISERROR($V2141),\"\",OFFSET('Smelter Look-up'!$D$4,$V2141-4,0)&\"\")","v":""},{"$f":"IF(ISERROR($V2141),\"\",OFFSET('Smelter Look-up'!$E$4,$V2141-4,0))","v":""},{"$f":"IF(C2141=$X$4,\"Enter smelter details\", IF(ISERROR($V2141),\"\",OFFSET('Smelter Look-up'!$F$4,$V2141-4,0)))","v":""},{"$f":"IF(ISERROR($V2141),\"\",OFFSET('Smelter Look-up'!$G$4,$V2141-4,0))","v":""},{"$f":"IF(ISERROR($V2141),\"\",OFFSET('Smelter Look-up'!$H$4,$V2141-4,0))","v":""},{"$f":"IF(ISERROR($V2141),\"\",OFFSET('Smelter Look-up'!$I$4,$V2141-4,0))","v":""},{"$nulls":7},{"$f":"IF(ISERROR($V2141),\"\",OFFSET('Smelter Look-up'!$C$4,$V2141-4,0)&\"\")","v":""},"",{"$f":"IF(B2141=\"\",\"\",IF(ISERROR(MATCH($J2141,SorP!$B$1:$B$6230,0)),\"\",INDIRECT(\"'SorP'!$A$\"&MATCH($J2141,SorP!$B$1:$B$6230,0))))","v":""},null,{"$f":"IF(C2141=\"\",NA(),MATCH($B2141&$C2141,'Smelter Look-up'!$J:$J,0))","v":{"$error":"#N/A"}},null,0,null,null,null,""]
[null,{"$f":"IF(LEN(A2142)=0,\"\",INDEX('Smelter Look-up'!$A:$A,MATCH($A2142,'Smelter Look-up'!$E:$E,0)))","v":""},{"$f":"IF(LEN(A2142)=0,\"\",INDEX('Smelter Look-up'!$C:$C,MATCH($A2142,'Smelter Look-up'!$E:$E,0)))","v":""},null,{"$f":"IF(ISERROR($V2142),\"\",OFFSET('Smelter Look-up'!$D$4,$V2142-4,0)&\"\")","v":""},{"$f":"IF(ISERROR($V2142),\"\",OFFSET('Smelter Look-up'!$E$4,$V2142-4,0))","v":""},{"$f":"IF(C2142=$X$4,\"Enter smelter details\", IF(ISERROR($V2142),\"\",OFFSET('Smelter Look-up'!$F$4,$V2142-4,0)))","v":""},{"$f":"IF(ISERROR($V2142),\"\",OFFSET('Smelter Look-up'!$G$4,$V2142-4,0))","v":""},{"$f":"IF(ISERROR($V2142),\"\",OFFSET('Smelter Look-up'!$H$4,$V2142-4,0))","v":""},{"$f":"IF(ISERROR($V2142),\"\",OFFSET('Smelter Look-up'!$I$4,$V2142-4,0))","v":""},{"$nulls":7},{"$f":"IF(ISERROR($V2142),\"\",OFFSET('Smelter Look-up'!$C$4,$V2142-4,0)&\"\")","v":""},"",{"$f":"IF(B2142=\"\",\"\",IF(ISERROR(MATCH($J2142,SorP!$B$1:$B$6230,0)),\"\",INDIRECT(\"'SorP'!$A$\"&MATCH($J2142,SorP!$B$1:$B$6230,0))))","v":""},null,{"$f":"IF(C2142=\"\",NA(),MATCH($B2142&$C2142,'Smelter Look-up'!$J:$J,0))","v":{"$error":"#N/A"}},null,0,null,null,null,""]
[null,{"$f":"IF(LEN(A2143)=0,\"\",INDEX('Smelter Look-up'!$A:$A,MATCH($A2143,'Smelter Look-up'!$E:$E,0)))","v":""},{"$f":"IF(LEN(A2143)=0,\"\",INDEX('Smelter Look-up'!$C:$C,MATCH($A2143,'Smelter Look-up'!$E:$E,0)))","v":""},null,{"$f":"IF(ISERROR($V2143),\"\",OFFSET('Smelter Look-up'!$D$4,$V2143-4,0)&\"\")","v":""},{"$f":"IF(ISERROR($V2143),\"\",OFFSET('Smelter Look-up'!$E$4,$V2143-4,0))","v":""},{"$f":"IF(C2143=$X$4,\"Enter smelter details\", IF(ISERROR($V2143),\"\",OFFSET('Smelter Look-up'!$F$4,$V2143-4,0)))","v":""},{"$f":"IF(ISERROR($V2143),\"\",OFFSET('Smelter Look-up'!$G$4,$V2143-4,0))","v":""},{"$f":"IF(ISERROR($V2143),\"\",OFFSET('Smelter Look-up'!$H$4,$V2143-4,0))","v":""},{"$f":"IF(ISERROR($V2143),\"\",OFFSET('Smelter Look-up'!$I$4,$V2143-4,0))","v":""},{"$nulls":7},{"$f":"IF(ISERROR($V2143),\"\",OFFSET('Smelter Look-up'!$C$4,$V2143-4,0)&\"\")","v":""},"",{"$f":"IF(B2143=\"\",\"\",IF(ISERROR(MATCH($J2143,SorP!$B$1:$B$6230,0)),\"\",INDIRECT(\"'SorP'!$A$\"&MATCH($J2143,SorP!$B$1:$B$6230,0))))","v":""},null,{"$f":"IF(C2143=\"\",NA(),MATCH($B2143&$C2143,'Smelter Look-up'!$J:$J,0))","v":{"$error":"#N/A"}},null,0,null,null,null,""]
[null,{"$f":"IF(LEN(A2144)=0,\"\",INDEX('Smelter Look-up'!$A:$A,MATCH($A2144,'Smelter Look-up'!$E:$E,0)))","v":""},{"$f":"IF(LEN(A2144)=0,\"\",INDEX('Smelter Look-up'!$C:$C,MATCH($A2144,'Smelter Look-up'!$E:$E,0)))","v":""},null,{"$f":"IF(ISERROR($V2144),\"\",OFFSET('Smelter Look-up'!$D$4,$V2144-4,0)&\"\")","v":""},{"$f":"IF(ISERROR($V2144),\"\",OFFSET('Smelter Look-up'!$E$4,$V2144-4,0))","v":""},{"$f":"IF(C2144=$X$4,\"Enter smelter details\", IF(ISERROR($V2144),\"\",OFFSET('Smelter Look-up'!$F$4,$V2144-4,0)))","v":""},{"$f":"IF(ISERROR($V2144),\"\",OFFSET('Smelter Look-up'!$G$4,$V2144-4,0))","v":""},{"$f":"IF(ISERROR($V2144),\"\",OFFSET('Smelter Look-up'!$H$4,$V2144-4,0))","v":""},{"$f":"IF(ISERROR($V2144),\"\",OFFSET('Smelter Look-up'!$I$4,$V2144-4,0))","v":""},{"$nulls":7},{"$f":"IF(ISERROR($V2144),\"\",OFFSET('Smelter Look-up'!$C$4,$V2144-4,0)&\"\")","v":""},"",{"$f":"IF(B2144=\"\",\"\",IF(ISERROR(MATCH($J2144,SorP!$B$1:$B$6230,0)),\"\",INDIRECT(\"'SorP'!$A$\"&MATCH($J2144,SorP!$B$1:$B$6230,0))))","v":""},null,{"$f":"IF(C2144=\"\",NA(),MATCH($B2144&$C2144,'Smelter Look-up'!$J:$J,0))","v":{"$error":"#N/A"}},null,0,null,null,null,""]
[null,{"$f":"IF(LEN(A2145)=0,\"\",INDEX('Smelter Look-up'!$A:$A,MATCH($A2145,'Smelter Look-up'!$E:$E,0)))","v":""},{"$f":"IF(LEN(A2145)=0,\"\",INDEX('Smelter Look-up'!$C:$C,MATCH($A2145,'Smelter Look-up'!$E:$E,0)))","v":""},null,{"$f":"IF(ISERROR($V2145),\"\",OFFSET('Smelter Look-up'!$D$4,$V2145-4,0)&\"\")","v":""},{"$f":"IF(ISERROR($V2145),\"\",OFFSET('Smelter Look-up'!$E$4,$V2145-4,0))","v":""},{"$f":"IF(C2145=$X$4,\"Enter smelter details\", IF(ISERROR($V2145),\"\",OFFSET('Smelter Look-up'!$F$4,$V2145-4,0)))","v":""},{"$f":"IF(ISERROR($V2145),\"\",OFFSET('Smelter Look-up'!$G$4,$V2145-4,0))","v":""},{"$f":"IF(ISERROR($V2145),\"\",OFFSET('Smelter Look-up'!$H$4,$V2145-4,0))","v":""},{"$f":"IF(ISERROR($V2145),\"\",OFFSET('Smelter Look-up'!$I$4,$V2145-4,0))","v":""},{"$nulls":7},{"$f":"IF(ISERROR($V2145),\"\",OFFSET('Smelter Look-up'!$C$4,$V2145-4,0)&\"\")","v":""},"",{"$f":"IF(B2145=\"\",\"\",IF(ISERROR(MATCH($J2145,SorP!$B$1:$B$6230,0)),\"\",INDIRECT(\"'SorP'!$A$\"&MATCH($J2145,SorP!$B$1:$B$6230,0))))","v":""},null,{"$f":"IF(C2145=\"\",NA(),MATCH($B2145&$C2145,'Smelter Look-up'!$J:$J,0))","v":{"$error":"#N/A"}},null,0,null,null,null,""]
[null,{"$f":"IF(LEN(A2146)=0,\"\",INDEX('Smelter Look-up'!$A:$A,MATCH($A2146,'Smelter Look-up'!$E:$E,0)))","v":""},{"$f":"IF(LEN(A2146)=0,\"\",INDEX('Smelter Look-up'!$C:$C,MATCH($A2146,'Smelter Look-up'!$E:$E,0)))","v":""},null,{"$f":"IF(ISERROR($V2146),\"\",OFFSET('Smelter Look-up'!$D$4,$V2146-4,0)&\"\")","v":""},{"$f":"IF(ISERROR($V2146),\"\",OFFSET('Smelter Look-up'!$E$4,$V2146-4,0))","v":""},{"$f":"IF(C2146=$X$4,\"Enter smelter details\", IF(ISERROR($V2146),\"\",OFFSET('Smelter Look-up'!$F$4,$V2146-4,0)))","v":""},{"$f":"IF(ISERROR($V2146),\"\",OFFSET('Smelter Look-up'!$G$4,$V2146-4,0))","v":""},{"$f":"IF(ISERROR($V2146),\"\",OFFSET('Smelter Look-up'!$H$4,$V2146-4,0))","v":""},{"$f":"IF(ISERROR($V2146),\"\",OFFSET('Smelter Look-up'!$I$4,$V2146-4,0))","v":""},{"$nulls":7},{"$f":"IF(ISERROR($V2146),\"\",OFFSET('Smelter Look-up'!$C$4,$V2146-4,0)&\"\")","v":""},"",{"$f":"IF(B2146=\"\",\"\",IF(ISERROR(MATCH($J2146,SorP!$B$1:$B$6230,0)),\"\",INDIRECT(\"'SorP'!$A$\"&MATCH($J2146,SorP!$B$1:$B$6230,0))))","v":""},null,{"$f":"IF(C2146=\"\",NA(),MATCH($B2146&$C2146,'Smelter Look-up'!$J:$J,0))","v":{"$error":"#N/A"}},null,0,null,null,null,""]
[null,{"$f":"IF(LEN(A2147)=0,\"\",INDEX('Smelter Look-up'!$A:$A,MATCH($A2147,'Smelter Look-up'!$E:$E,0)))","v":""},{"$f":"IF(LEN(A2147)=0,\"\",INDEX('Smelter Look-up'!$C:$C,MATCH($A2147,'Smelter Look-up'!$E:$E,0)))","v":""},null,{"$f":"IF(ISERROR($V2147),\"\",OFFSET('Smelter Look-up'!$D$4,$V2147-4,0)&\"\")","v":""},{"$f":"IF(ISERROR($V2147),\"\",OFFSET('Smelter Look-up'!$E$4,$V2147-4,0))","v":""},{"$f":"IF(C2147=$X$4,\"Enter smelter details\", IF(ISERROR($V2147),\"\",OFFSET('Smelter Look-up'!$F$4,$V2147-4,0)))","v":""},{"$f":"IF(ISERROR($V2147),\"\",OFFSET('Smelter Look-up'!$G$4,$V2147-4,0))","v":""},{"$f":"IF(ISERROR($V2147),\"\",OFFSET('Smelter Look-up'!$H$4,$V2147-4,0))","v":""},{"$f":"IF(ISERROR($V2147),\"\",OFFSET('Smelter Look-up'!$I$4,$V2147-4,0))","v":""},{"$nulls":7},{"$f":"IF(ISERROR($V2147),\"\",OFFSET('Smelter Look-up'!$C$4,$V2147-4,0)&\"\")","v":""},"",{"$f":"IF(B2147=\"\",\"\",IF(ISERROR(MATCH($J2147,SorP!$B$1:$B$6230,0)),\"\",INDIRECT(\"'SorP'!$A$\"&MATCH($J2147,SorP!$B$1:$B$6230,0))))","v":""},null,{"$f":"IF(C2147=\"\",NA(),MATCH($B2147&$C2147,'Smelter Look-up'!$J:$J,0))","v":{"$error":"#N/A"}},null,0,null,null,null,""]
[null,{"$f":"IF(LEN(A2148)=0,\"\",INDEX('Smelter Look-up'!$A:$A,MATCH($A2148,'Smelter Look-up'!$E:$E,0)))","v":""},{"$f":"IF(LEN(A2148)=0,\"\",INDEX('Smelter Look-up'!$C:$C,MATCH($A2148,'Smelter Look-up'!$E:$E,0)))","v":""},null,{"$f":"IF(ISERROR($V2148),\"\",OFFSET('Smelter Look-up'!$D$4,$V2148-4,0)&\"\")","v":""},{"$f":"IF(ISERROR($V2148),\"\",OFFSET('Smelter Look-up'!$E$4,$V2148-4,0))","v":""},{"$f":"IF(C2148=$X$4,\"Enter smelter details\", IF(ISERROR($V2148),\"\",OFFSET('Smelter Look-up'!$F$4,$V2148-4,0)))","v":""},{"$f":"IF(ISERROR($V2148),\"\",OFFSET('Smelter Look-up'!$G$4,$V2148-4,0))","v":""},{"$f":"IF(ISERROR($V2148),\"\",OFFSET('Smelter Look-up'!$H$4,$V2148-4,0))","v":""},{"$f":"IF(ISERROR($V2148),\"\",OFFSET('Smelter Look-up'!$I$4,$V2148-4,0))","v":""},{"$nulls":7},{"$f":"IF(ISERROR($V2148),\"\",OFFSET('Smelter Look-up'!$C$4,$V2148-4,0)&\"\")","v":""},"",{"$f":"IF(B2148=\"\",\"\",IF(ISERROR(MATCH($J2148,SorP!$B$1:$B$6230,0)),\"\",INDIRECT(\"'SorP'!$A$\"&MATCH($J2148,SorP!$B$1:$B$6230,0))))","v":""},null,{"$f":"IF(C2148=\"\",NA(),MATCH($B2148&$C2148,'Smelter Look-up'!$J:$J,0))","v":{"$error":"#N/A"}},null,0,null,null,null,""]
[null,{"$f":"IF(LEN(A2149)=0,\"\",INDEX('Smelter Look-up'!$A:$A,MATCH($A2149,'Smelter Look-up'!$E:$E,0)))","v":""},{"$f":"IF(LEN(A2149)=0,\"\",INDEX('Smelter Look-up'!$C:$C,MATCH($A2149,'Smelter Look-up'!$E:$E,0)))","v":""},null,{"$f":"IF(ISERROR($V2149),\"\",OFFSET('Smelter Look-up'!$D$4,$V2149-4,0)&\"\")","v":""},{"$f":"IF(ISERROR($V2149),\"\",OFFSET('Smelter Look-up'!$E$4,$V2149-4,0))","v":""},{"$f":"IF(C2149=$X$4,\"Enter smelter details\", IF(ISERROR($V2149),\"\",OFFSET('Smelter Look-up'!$F$4,$V2149-4,0)))","v":""},{"$f":"IF(ISERROR($V2149),\"\",OFFSET('Smelter Look-up'!$G$4,$V2149-4,0))","v":""},{"$f":"IF(ISERROR($V2149),\"\",OFFSET('Smelter Look-up'!$H$4,$V2149-4,0))","v":""},{"$f":"IF(ISERROR($V2149),\"\",OFFSET('Smelter Look-up'!$I$4,$V2149-4,0))","v":""},{"$nulls":7},{"$f":"IF(ISERROR($V2149),\"\",OFFSET('Smelter Look-up'!$C$4,$V2149-4,0)&\"\")","v":""},"",{"$f":"IF(B2149=\"\",\"\",IF(ISERROR(MATCH($J2149,SorP!$B$1:$B$6230,0)),\"\",INDIRECT(\"'SorP'!$A$\"&MATCH($J2149,SorP!$B$1:$B$6230,0))))","v":""},null,{"$f":"IF(C2149=\"\",NA(),MATCH($B2149&$C2149,'Smelter Look-up'!$J:$J,0))","v":{"$error":"#N/A"}},null,0,null,null,null,""]
[null,{"$f":"IF(LEN(A2150)=0,\"\",INDEX('Smelter Look-up'!$A:$A,MATCH($A2150,'Smelter Look-up'!$E:$E,0)))","v":""},{"$f":"IF(LEN(A2150)=0,\"\",INDEX('Smelter Look-up'!$C:$C,MATCH($A2150,'Smelter Look-up'!$E:$E,0)))","v":""},null,{"$f":"IF(ISERROR($V2150),\"\",OFFSET('Smelter Look-up'!$D$4,$V2150-4,0)&\"\")","v":""},{"$f":"IF(ISERROR($V2150),\"\",OFFSET('Smelter Look-up'!$E$4,$V2150-4,0))","v":""},{"$f":"IF(C2150=$X$4,\"Enter smelter details\", IF(ISERROR($V2150),\"\",OFFSET('Smelter Look-up'!$F$4,$V2150-4,0)))","v":""},{"$f":"IF(ISERROR($V2150),\"\",OFFSET('Smelter Look-up'!$G$4,$V2150-4,0))","v":""},{"$f":"IF(ISERROR($V2150),\"\",OFFSET('Smelter Look-up'!$H$4,$V2150-4,0))","v":""},{"$f":"IF(ISERROR($V2150),\"\",OFFSET('Smelter Look-up'!$I$4,$V2150-4,0))","v":""},{"$nulls":7},{"$f":"IF(ISERROR($V2150),\"\",OFFSET('Smelter Look-up'!$C$4,$V2150-4,0)&\"\")","v":""},"",{"$f":"IF(B2150=\"\",\"\",IF(ISERROR(MATCH($J2150,SorP!$B$1:$B$6230,0)),\"\",INDIRECT(\"'SorP'!$A$\"&MATCH($J2150,SorP!$B$1:$B$6230,0))))","v":""},null,{"$f":"IF(C2150=\"\",NA(),MATCH($B2150&$C2150,'Smelter Look-up'!$J:$J,0))","v":{"$error":"#N/A"}},null,0,null,null,null,""]
[null,{"$f":"IF(LEN(A2151)=0,\"\",INDEX('Smelter Look-up'!$A:$A,MATCH($A2151,'Smelter Look-up'!$E:$E,0)))","v":""},{"$f":"IF(LEN(A2151)=0,\"\",INDEX('Smelter Look-up'!$C:$C,MATCH($A2151,'Smelter Look-up'!$E:$E,0)))","v":""},null,{"$f":"IF(ISERROR($V2151),\"\",OFFSET('Smelter Look-up'!$D$4,$V2151-4,0)&\"\")","v":""},{"$f":"IF(ISERROR($V2151),\"\",OFFSET('Smelter Look-up'!$E$4,$V2151-4,0))","v":""},{"$f":"IF(C2151=$X$4,\"Enter smelter details\", IF(ISERROR($V2151),\"\",OFFSET('Smelter Look-up'!$F$4,$V2151-4,0)))","v":""},{"$f":"IF(ISERROR($V2151),\"\",OFFSET('Smelter Look-up'!$G$4,$V2151-4,0))","v":""},{"$f":"IF(ISERROR($V2151),\"\",OFFSET('Smelter Look-up'!$H$4,$V2151-4,0))","v":""},{"$f":"IF(ISERROR($V2151),\"\",OFFSET('Smelter Look-up'!$I$4,$V2151-4,0))","v":""},{"$nulls":7},{"$f":"IF(ISERROR($V2151),\"\",OFFSET('Smelter Look-up'!$C$4,$V2151-4,0)&\"\")","v":""},"",{"$f":"IF(B2151=\"\",\"\",IF(ISERROR(MATCH($J2151,SorP!$B$1:$B$6230,0)),\"\",INDIRECT(\"'SorP'!$A$\"&MATCH($J2151,SorP!$B$1:$B$6230,0))))","v":""},null,{"$f":"IF(C2151=\"\",NA(),MATCH($B2151&$C2151,'Smelter Look-up'!$J:$J,0))","v":{"$error":"#N/A"}},null,0,null,null,null,""]
[null,{"$f":"IF(LEN(A2152)=0,\"\",INDEX('Smelter Look-up'!$A:$A,MATCH($A2152,'Smelter Look-up'!$E:$E,0)))","v":""},{"$f":"IF(LEN(A2152)=0,\"\",INDEX('Smelter Look-up'!$C:$C,MATCH($A2152,'Smelter Look-up'!$E:$E,0)))","v":""},null,{"$f":"IF(ISERROR($V2152),\"\",OFFSET('Smelter Look-up'!$D$4,$V2152-4,0)&\"\")","v":""},{"$f":"IF(ISERROR($V2152),\"\",OFFSET('Smelter Look-up'!$E$4,$V2152-4,0))","v":""},{"$f":"IF(C2152=$X$4,\"Enter smelter details\", IF(ISERROR($V2152),\"\",OFFSET('Smelter Look-up'!$F$4,$V2152-4,0)))","v":""},{"$f":"IF(ISERROR($V2152),\"\",OFFSET('Smelter Look-up'!$G$4,$V2152-4,0))","v":""},{"$f":"IF(ISERROR($V2152),\"\",OFFSET('Smelter Look-up'!$H$4,$V2152-4,0))","v":""},{"$f":"IF(ISERROR($V2152),\"\",OFFSET('Smelter Look-up'!$I$4,$V2152-4,0))","v":""},{"$nulls":7},{"$f":"IF(ISERROR($V2152),\"\",OFFSET('Smelter Look-up'!$C$4,$V2152-4,0)&\"\")","v":""},"",{"$f":"IF(B2152=\"\",\"\",IF(ISERROR(MATCH($J2152,SorP!$B$1:$B$6230,0)),\"\",INDIRECT(\"'SorP'!$A$\"&MATCH($J2152,SorP!$B$1:$B$6230,0))))","v":""},null,{"$f":"IF(C2152=\"\",NA(),MATCH($B2152&$C2152,'Smelter Look-up'!$J:$J,0))","v":{"$error":"#N/A"}},null,0,null,null,null,""]
[null,{"$f":"IF(LEN(A2153)=0,\"\",INDEX('Smelter Look-up'!$A:$A,MATCH($A2153,'Smelter Look-up'!$E:$E,0)))","v":""},{"$f":"IF(LEN(A2153)=0,\"\",INDEX('Smelter Look-up'!$C:$C,MATCH($A2153,'Smelter Look-up'!$E:$E,0)))","v":""},null,{"$f":"IF(ISERROR($V2153),\"\",OFFSET('Smelter Look-up'!$D$4,$V2153-4,0)&\"\")","v":""},{"$f":"IF(ISERROR($V2153),\"\",OFFSET('Smelter Look-up'!$E$4,$V2153-4,0))","v":""},{"$f":"IF(C2153=$X$4,\"Enter smelter details\", IF(ISERROR($V2153),\"\",OFFSET('Smelter Look-up'!$F$4,$V2153-4,0)))","v":""},{"$f":"IF(ISERROR($V2153),\"\",OFFSET('Smelter Look-up'!$G$4,$V2153-4,0))","v":""},{"$f":"IF(ISERROR($V2153),\"\",OFFSET('Smelter Look-up'!$H$4,$V2153-4,0))","v":""},{"$f":"IF(ISERROR($V2153),\"\",OFFSET('Smelter Look-up'!$I$4,$V2153-4,0))","v":""},{"$nulls":7},{"$f":"IF(ISERROR($V2153),\"\",OFFSET('Smelter Look-up'!$C$4,$V2153-4,0)&\"\")","v":""},"",{"$f":"IF(B2153=\"\",\"\",IF(ISERROR(MATCH($J2153,SorP!$B$1:$B$6230,0)),\"\",INDIRECT(\"'SorP'!$A$\"&MATCH($J2153,SorP!$B$1:$B$6230,0))))","v":""},null,{"$f":"IF(C2153=\"\",NA(),MATCH($B2153&$C2153,'Smelter Look-up'!$J:$J,0))","v":{"$error":"#N/A"}},null,0,null,null,null,""]
[null,{"$f":"IF(LEN(A2154)=0,\"\",INDEX('Smelter Look-up'!$A:$A,MATCH($A2154,'Smelter Look-up'!$E:$E,0)))","v":""},{"$f":"IF(LEN(A2154)=0,\"\",INDEX('Smelter Look-up'!$C:$C,MATCH($A2154,'Smelter Look-up'!$E:$E,0)))","v":""},null,{"$f":"IF(ISERROR($V2154),\"\",OFFSET('Smelter Look-up'!$D$4,$V2154-4,0)&\"\")","v":""},{"$f":"IF(ISERROR($V2154),\"\",OFFSET('Smelter Look-up'!$E$4,$V2154-4,0))","v":""},{"$f":"IF(C2154=$X$4,\"Enter smelter details\", IF(ISERROR($V2154),\"\",OFFSET('Smelter Look-up'!$F$4,$V2154-4,0)))","v":""},{"$f":"IF(ISERROR($V2154),\"\",OFFSET('Smelter Look-up'!$G$4,$V2154-4,0))","v":""},{"$f":"IF(ISERROR($V2154),\"\",OFFSET('Smelter Look-up'!$H$4,$V2154-4,0))","v":""},{"$f":"IF(ISERROR($V2154),\"\",OFFSET('Smelter Look-up'!$I$4,$V2154-4,0))","v":""},{"$nulls":7},{"$f":"IF(ISERROR($V2154),\"\",OFFSET('Smelter Look-up'!$C$4,$V2154-4,0)&\"\")","v":""},"",{"$f":"IF(B2154=\"\",\"\",IF(ISERROR(MATCH($J2154,SorP!$B$1:$B$6230,0)),\"\",INDIRECT(\"'SorP'!$A$\"&MATCH($J2154,SorP!$B$1:$B$6230,0))))","v":""},null,{"$f":"IF(C2154=\"\",NA(),MATCH($B2154&$C2154,'Smelter Look-up'!$J:$J,0))","v":{"$error":"#N/A"}},null,0,null,null,null,""]
[null,{"$f":"IF(LEN(A2155)=0,\"\",INDEX('Smelter Look-up'!$A:$A,MATCH($A2155,'Smelter Look-up'!$E:$E,0)))","v":""},{"$f":"IF(LEN(A2155)=0,\"\",INDEX('Smelter Look-up'!$C:$C,MATCH($A2155,'Smelter Look-up'!$E:$E,0)))","v":""},null,{"$f":"IF(ISERROR($V2155),\"\",OFFSET('Smelter Look-up'!$D$4,$V2155-4,0)&\"\")","v":""},{"$f":"IF(ISERROR($V2155),\"\",OFFSET('Smelter Look-up'!$E$4,$V2155-4,0))","v":""},{"$f":"IF(C2155=$X$4,\"Enter smelter details\", IF(ISERROR($V2155),\"\",OFFSET('Smelter Look-up'!$F$4,$V2155-4,0)))","v":""},{"$f":"IF(ISERROR($V2155),\"\",OFFSET('Smelter Look-up'!$G$4,$V2155-4,0))","v":""},{"$f":"IF(ISERROR($V2155),\"\",OFFSET('Smelter Look-up'!$H$4,$V2155-4,0))","v":""},{"$f":"IF(ISERROR($V2155),\"\",OFFSET('Smelter Look-up'!$I$4,$V2155-4,0))","v":""},{"$nulls":7},{"$f":"IF(ISERROR($V2155),\"\",OFFSET('Smelter Look-up'!$C$4,$V2155-4,0)&\"\")","v":""},"",{"$f":"IF(B2155=\"\",\"\",IF(ISERROR(MATCH($J2155,SorP!$B$1:$B$6230,0)),\"\",INDIRECT(\"'SorP'!$A$\"&MATCH($J2155,SorP!$B$1:$B$6230,0))))","v":""},null,{"$f":"IF(C2155=\"\",NA(),MATCH($B2155&$C2155,'Smelter Look-up'!$J:$J,0))","v":{"$error":"#N/A"}},null,0,null,null,null,""]
[null,{"$f":"IF(LEN(A2156)=0,\"\",INDEX('Smelter Look-up'!$A:$A,MATCH($A2156,'Smelter Look-up'!$E:$E,0)))","v":""},{"$f":"IF(LEN(A2156)=0,\"\",INDEX('Smelter Look-up'!$C:$C,MATCH($A2156,'Smelter Look-up'!$E:$E,0)))","v":""},null,{"$f":"IF(ISERROR($V2156),\"\",OFFSET('Smelter Look-up'!$D$4,$V2156-4,0)&\"\")","v":""},{"$f":"IF(ISERROR($V2156),\"\",OFFSET('Smelter Look-up'!$E$4,$V2156-4,0))","v":""},{"$f":"IF(C2156=$X$4,\"Enter smelter details\", IF(ISERROR($V2156),\"\",OFFSET('Smelter Look-up'!$F$4,$V2156-4,0)))","v":""},{"$f":"IF(ISERROR($V2156),\"\",OFFSET('Smelter Look-up'!$G$4,$V2156-4,0))","v":""},{"$f":"IF(ISERROR($V2156),\"\",OFFSET('Smelter Look-up'!$H$4,$V2156-4,0))","v":""},{"$f":"IF(ISERROR($V2156),\"\",OFFSET('Smelter Look-up'!$I$4,$V2156-4,0))","v":""},{"$nulls":7},{"$f":"IF(ISERROR($V2156),\"\",OFFSET('Smelter Look-up'!$C$4,$V2156-4,0)&\"\")","v":""},"",{"$f":"IF(B2156=\"\",\"\",IF(ISERROR(MATCH($J2156,SorP!$B$1:$B$6230,0)),\"\",INDIRECT(\"'SorP'!$A$\"&MATCH($J2156,SorP!$B$1:$B$6230,0))))","v":""},null,{"$f":"IF(C2156=\"\",NA(),MATCH($B2156&$C2156,'Smelter Look-up'!$J:$J,0))","v":{"$error":"#N/A"}},null,0,null,null,null,""]
[null,{"$f":"IF(LEN(A2157)=0,\"\",INDEX('Smelter Look-up'!$A:$A,MATCH($A2157,'Smelter Look-up'!$E:$E,0)))","v":""},{"$f":"IF(LEN(A2157)=0,\"\",INDEX('Smelter Look-up'!$C:$C,MATCH($A2157,'Smelter Look-up'!$E:$E,0)))","v":""},null,{"$f":"IF(ISERROR($V2157),\"\",OFFSET('Smelter Look-up'!$D$4,$V2157-4,0)&\"\")","v":""},{"$f":"IF(ISERROR($V2157),\"\",OFFSET('Smelter Look-up'!$E$4,$V2157-4,0))","v":""},{"$f":"IF(C2157=$X$4,\"Enter smelter details\", IF(ISERROR($V2157),\"\",OFFSET('Smelter Look-up'!$F$4,$V2157-4,0)))","v":""},{"$f":"IF(ISERROR($V2157),\"\",OFFSET('Smelter Look-up'!$G$4,$V2157-4,0))","v":""},{"$f":"IF(ISERROR($V2157),\"\",OFFSET('Smelter Look-up'!$H$4,$V2157-4,0))","v":""},{"$f":"IF(ISERROR($V2157),\"\",OFFSET('Smelter Look-up'!$I$4,$V2157-4,0))","v":""},{"$nulls":7},{"$f":"IF(ISERROR($V2157),\"\",OFFSET('Smelter Look-up'!$C$4,$V2157-4,0)&\"\")","v":""},"",{"$f":"IF(B2157=\"\",\"\",IF(ISERROR(MATCH($J2157,SorP!$B$1:$B$6230,0)),\"\",INDIRECT(\"'SorP'!$A$\"&MATCH($J2157,SorP!$B$1:$B$6230,0))))","v":""},null,{"$f":"IF(C2157=\"\",NA(),MATCH($B2157&$C2157,'Smelter Look-up'!$J:$J,0))","v":{"$error":"#N/A"}},null,0,null,null,null,""]
[null,{"$f":"IF(LEN(A2158)=0,\"\",INDEX('Smelter Look-up'!$A:$A,MATCH($A2158,'Smelter Look-up'!$E:$E,0)))","v":""},{"$f":"IF(LEN(A2158)=0,\"\",INDEX('Smelter Look-up'!$C:$C,MATCH($A2158,'Smelter Look-up'!$E:$E,0)))","v":""},null,{"$f":"IF(ISERROR($V2158),\"\",OFFSET('Smelter Look-up'!$D$4,$V2158-4,0)&\"\")","v":""},{"$f":"IF(ISERROR($V2158),\"\",OFFSET('Smelter Look-up'!$E$4,$V2158-4,0))","v":""},{"$f":"IF(C2158=$X$4,\"Enter smelter details\", IF(ISERROR($V2158),\"\",OFFSET('Smelter Look-up'!$F$4,$V2158-4,0)))","v":""},{"$f":"IF(ISERROR($V2158),\"\",OFFSET('Smelter Look-up'!$G$4,$V2158-4,0))","v":""},{"$f":"IF(ISERROR($V2158),\"\",OFFSET('Smelter Look-up'!$H$4,$V2158-4,0))","v":""},{"$f":"IF(ISERROR($V2158),\"\",OFFSET('Smelter Look-up'!$I$4,$V2158-4,0))","v":""},{"$nulls":7},{"$f":"IF(ISERROR($V2158),\"\",OFFSET('Smelter Look-up'!$C$4,$V2158-4,0)&\"\")","v":""},"",{"$f":"IF(B2158=\"\",\"\",IF(ISERROR(MATCH($J2158,SorP!$B$1:$B$6230,0)),\"\",INDIRECT(\"'SorP'!$A$\"&MATCH($J2158,SorP!$B$1:$B$6230,0))))","v":""},null,{"$f":"IF(C2158=\"\",NA(),MATCH($B2158&$C2158,'Smelter Look-up'!$J:$J,0))","v":{"$error":"#N/A"}},null,0,null,null,null,""]
[null,{"$f":"IF(LEN(A2159)=0,\"\",INDEX('Smelter Look-up'!$A:$A,MATCH($A2159,'Smelter Look-up'!$E:$E,0)))","v":""},{"$f":"IF(LEN(A2159)=0,\"\",INDEX('Smelter Look-up'!$C:$C,MATCH($A2159,'Smelter Look-up'!$E:$E,0)))","v":""},null,{"$f":"IF(ISERROR($V2159),\"\",OFFSET('Smelter Look-up'!$D$4,$V2159-4,0)&\"\")","v":""},{"$f":"IF(ISERROR($V2159),\"\",OFFSET('Smelter Look-up'!$E$4,$V2159-4,0))","v":""},{"$f":"IF(C2159=$X$4,\"Enter smelter details\", IF(ISERROR($V2159),\"\",OFFSET('Smelter Look-up'!$F$4,$V2159-4,0)))","v":""},{"$f":"IF(ISERROR($V2159),\"\",OFFSET('Smelter Look-up'!$G$4,$V2159-4,0))","v":""},{"$f":"IF(ISERROR($V2159),\"\",OFFSET('Smelter Look-up'!$H$4,$V2159-4,0))","v":""},{"$f":"IF(ISERROR($V2159),\"\",OFFSET('Smelter Look-up'!$I$4,$V2159-4,0))","v":""},{"$nulls":7},{"$f":"IF(ISERROR($V2159),\"\",OFFSET('Smelter Look-up'!$C$4,$V2159-4,0)&\"\")","v":""},"",{"$f":"IF(B2159=\"\",\"\",IF(ISERROR(MATCH($J2159,SorP!$B$1:$B$6230,0)),\"\",INDIRECT(\"'SorP'!$A$\"&MATCH($J2159,SorP!$B$1:$B$6230,0))))","v":""},null,{"$f":"IF(C2159=\"\",NA(),MATCH($B2159&$C2159,'Smelter Look-up'!$J:$J,0))","v":{"$error":"#N/A"}},null,0,null,null,null,""]
[null,{"$f":"IF(LEN(A2160)=0,\"\",INDEX('Smelter Look-up'!$A:$A,MATCH($A2160,'Smelter Look-up'!$E:$E,0)))","v":""},{"$f":"IF(LEN(A2160)=0,\"\",INDEX('Smelter Look-up'!$C:$C,MATCH($A2160,'Smelter Look-up'!$E:$E,0)))","v":""},null,{"$f":"IF(ISERROR($V2160),\"\",OFFSET('Smelter Look-up'!$D$4,$V2160-4,0)&\"\")","v":""},{"$f":"IF(ISERROR($V2160),\"\",OFFSET('Smelter Look-up'!$E$4,$V2160-4,0))","v":""},{"$f":"IF(C2160=$X$4,\"Enter smelter details\", IF(ISERROR($V2160),\"\",OFFSET('Smelter Look-up'!$F$4,$V2160-4,0)))","v":""},{"$f":"IF(ISERROR($V2160),\"\",OFFSET('Smelter Look-up'!$G$4,$V2160-4,0))","v":""},{"$f":"IF(ISERROR($V2160),\"\",OFFSET('Smelter Look-up'!$H$4,$V2160-4,0))","v":""},{"$f":"IF(ISERROR($V2160),\"\",OFFSET('Smelter Look-up'!$I$4,$V2160-4,0))","v":""},{"$nulls":7},{"$f":"IF(ISERROR($V2160),\"\",OFFSET('Smelter Look-up'!$C$4,$V2160-4,0)&\"\")","v":""},"",{"$f":"IF(B2160=\"\",\"\",IF(ISERROR(MATCH($J2160,SorP!$B$1:$B$6230,0)),\"\",INDIRECT(\"'SorP'!$A$\"&MATCH($J2160,SorP!$B$1:$B$6230,0))))","v":""},null,{"$f":"IF(C2160=\"\",NA(),MATCH($B2160&$C2160,'Smelter Look-up'!$J:$J,0))","v":{"$error":"#N/A"}},null,0,null,null,null,""]
[null,{"$f":"IF(LEN(A2161)=0,\"\",INDEX('Smelter Look-up'!$A:$A,MATCH($A2161,'Smelter Look-up'!$E:$E,0)))","v":""},{"$f":"IF(LEN(A2161)=0,\"\",INDEX('Smelter Look-up'!$C:$C,MATCH($A2161,'Smelter Look-up'!$E:$E,0)))","v":""},null,{"$f":"IF(ISERROR($V2161),\"\",OFFSET('Smelter Look-up'!$D$4,$V2161-4,0)&\"\")","v":""},{"$f":"IF(ISERROR($V2161),\"\",OFFSET('Smelter Look-up'!$E$4,$V2161-4,0))","v":""},{"$f":"IF(C2161=$X$4,\"Enter smelter details\", IF(ISERROR($V2161),\"\",OFFSET('Smelter Look-up'!$F$4,$V2161-4,0)))","v":""},{"$f":"IF(ISERROR($V2161),\"\",OFFSET('Smelter Look-up'!$G$4,$V2161-4,0))","v":""},{"$f":"IF(ISERROR($V2161),\"\",OFFSET('Smelter Look-up'!$H$4,$V2161-4,0))","v":""},{"$f":"IF(ISERROR($V2161),\"\",OFFSET('Smelter Look-up'!$I$4,$V2161-4,0))","v":""},{"$nulls":7},{"$f":"IF(ISERROR($V2161),\"\",OFFSET('Smelter Look-up'!$C$4,$V2161-4,0)&\"\")","v":""},"",{"$f":"IF(B2161=\"\",\"\",IF(ISERROR(MATCH($J2161,SorP!$B$1:$B$6230,0)),\"\",INDIRECT(\"'SorP'!$A$\"&MATCH($J2161,SorP!$B$1:$B$6230,0))))","v":""},null,{"$f":"IF(C2161=\"\",NA(),MATCH($B2161&$C2161,'Smelter Look-up'!$J:$J,0))","v":{"$error":"#N/A"}},null,0,null,null,null,""]
[null,{"$f":"IF(LEN(A2162)=0,\"\",INDEX('Smelter Look-up'!$A:$A,MATCH($A2162,'Smelter Look-up'!$E:$E,0)))","v":""},{"$f":"IF(LEN(A2162)=0,\"\",INDEX('Smelter Look-up'!$C:$C,MATCH($A2162,'Smelter Look-up'!$E:$E,0)))","v":""},null,{"$f":"IF(ISERROR($V2162),\"\",OFFSET('Smelter Look-up'!$D$4,$V2162-4,0)&\"\")","v":""},{"$f":"IF(ISERROR($V2162),\"\",OFFSET('Smelter Look-up'!$E$4,$V2162-4,0))","v":""},{"$f":"IF(C2162=$X$4,\"Enter smelter details\", IF(ISERROR($V2162),\"\",OFFSET('Smelter Look-up'!$F$4,$V2162-4,0)))","v":""},{"$f":"IF(ISERROR($V2162),\"\",OFFSET('Smelter Look-up'!$G$4,$V2162-4,0))","v":""},{"$f":"IF(ISERROR($V2162),\"\",OFFSET('Smelter Look-up'!$H$4,$V2162-4,0))","v":""},{"$f":"IF(ISERROR($V2162),\"\",OFFSET('Smelter Look-up'!$I$4,$V2162-4,0))","v":""},{"$nulls":7},{"$f":"IF(ISERROR($V2162),\"\",OFFSET('Smelter Look-up'!$C$4,$V2162-4,0)&\"\")","v":""},"",{"$f":"IF(B2162=\"\",\"\",IF(ISERROR(MATCH($J2162,SorP!$B$1:$B$6230,0)),\"\",INDIRECT(\"'SorP'!$A$\"&MATCH($J2162,SorP!$B$1:$B$6230,0))))","v":""},null,{"$f":"IF(C2162=\"\",NA(),MATCH($B2162&$C2162,'Smelter Look-up'!$J:$J,0))","v":{"$error":"#N/A"}},null,0,null,null,null,""]
[null,{"$f":"IF(LEN(A2163)=0,\"\",INDEX('Smelter Look-up'!$A:$A,MATCH($A2163,'Smelter Look-up'!$E:$E,0)))","v":""},{"$f":"IF(LEN(A2163)=0,\"\",INDEX('Smelter Look-up'!$C:$C,MATCH($A2163,'Smelter Look-up'!$E:$E,0)))","v":""},null,{"$f":"IF(ISERROR($V2163),\"\",OFFSET('Smelter Look-up'!$D$4,$V2163-4,0)&\"\")","v":""},{"$f":"IF(ISERROR($V2163),\"\",OFFSET('Smelter Look-up'!$E$4,$V2163-4,0))","v":""},{"$f":"IF(C2163=$X$4,\"Enter smelter details\", IF(ISERROR($V2163),\"\",OFFSET('Smelter Look-up'!$F$4,$V2163-4,0)))","v":""},{"$f":"IF(ISERROR($V2163),\"\",OFFSET('Smelter Look-up'!$G$4,$V2163-4,0))","v":""},{"$f":"IF(ISERROR($V2163),\"\",OFFSET('Smelter Look-up'!$H$4,$V2163-4,0))","v":""},{"$f":"IF(ISERROR($V2163),\"\",OFFSET('Smelter Look-up'!$I$4,$V2163-4,0))","v":""},{"$nulls":7},{"$f":"IF(ISERROR($V2163),\"\",OFFSET('Smelter Look-up'!$C$4,$V2163-4,0)&\"\")","v":""},"",{"$f":"IF(B2163=\"\",\"\",IF(ISERROR(MATCH($J2163,SorP!$B$1:$B$6230,0)),\"\",INDIRECT(\"'SorP'!$A$\"&MATCH($J2163,SorP!$B$1:$B$6230,0))))","v":""},null,{"$f":"IF(C2163=\"\",NA(),MATCH($B2163&$C2163,'Smelter Look-up'!$J:$J,0))","v":{"$error":"#N/A"}},null,0,null,null,null,""]
[null,{"$f":"IF(LEN(A2164)=0,\"\",INDEX('Smelter Look-up'!$A:$A,MATCH($A2164,'Smelter Look-up'!$E:$E,0)))","v":""},{"$f":"IF(LEN(A2164)=0,\"\",INDEX('Smelter Look-up'!$C:$C,MATCH($A2164,'Smelter Look-up'!$E:$E,0)))","v":""},null,{"$f":"IF(ISERROR($V2164),\"\",OFFSET('Smelter Look-up'!$D$4,$V2164-4,0)&\"\")","v":""},{"$f":"IF(ISERROR($V2164),\"\",OFFSET('Smelter Look-up'!$E$4,$V2164-4,0))","v":""},{"$f":"IF(C2164=$X$4,\"Enter smelter details\", IF(ISERROR($V2164),\"\",OFFSET('Smelter Look-up'!$F$4,$V2164-4,0)))","v":""},{"$f":"IF(ISERROR($V2164),\"\",OFFSET('Smelter Look-up'!$G$4,$V2164-4,0))","v":""},{"$f":"IF(ISERROR($V2164),\"\",OFFSET('Smelter Look-up'!$H$4,$V2164-4,0))","v":""},{"$f":"IF(ISERROR($V2164),\"\",OFFSET('Smelter Look-up'!$I$4,$V2164-4,0))","v":""},{"$nulls":7},{"$f":"IF(ISERROR($V2164),\"\",OFFSET('Smelter Look-up'!$C$4,$V2164-4,0)&\"\")","v":""},"",{"$f":"IF(B2164=\"\",\"\",IF(ISERROR(MATCH($J2164,SorP!$B$1:$B$6230,0)),\"\",INDIRECT(\"'SorP'!$A$\"&MATCH($J2164,SorP!$B$1:$B$6230,0))))","v":""},null,{"$f":"IF(C2164=\"\",NA(),MATCH($B2164&$C2164,'Smelter Look-up'!$J:$J,0))","v":{"$error":"#N/A"}},null,0,null,null,null,""]
[null,{"$f":"IF(LEN(A2165)=0,\"\",INDEX('Smelter Look-up'!$A:$A,MATCH($A2165,'Smelter Look-up'!$E:$E,0)))","v":""},{"$f":"IF(LEN(A2165)=0,\"\",INDEX('Smelter Look-up'!$C:$C,MATCH($A2165,'Smelter Look-up'!$E:$E,0)))","v":""},null,{"$f":"IF(ISERROR($V2165),\"\",OFFSET('Smelter Look-up'!$D$4,$V2165-4,0)&\"\")","v":""},{"$f":"IF(ISERROR($V2165),\"\",OFFSET('Smelter Look-up'!$E$4,$V2165-4,0))","v":""},{"$f":"IF(C2165=$X$4,\"Enter smelter details\", IF(ISERROR($V2165),\"\",OFFSET('Smelter Look-up'!$F$4,$V2165-4,0)))","v":""},{"$f":"IF(ISERROR($V2165),\"\",OFFSET('Smelter Look-up'!$G$4,$V2165-4,0))","v":""},{"$f":"IF(ISERROR($V2165),\"\",OFFSET('Smelter Look-up'!$H$4,$V2165-4,0))","v":""},{"$f":"IF(ISERROR($V2165),\"\",OFFSET('Smelter Look-up'!$I$4,$V2165-4,0))","v":""},{"$nulls":7},{"$f":"IF(ISERROR($V2165),\"\",OFFSET('Smelter Look-up'!$C$4,$V2165-4,0)&\"\")","v":""},"",{"$f":"IF(B2165=\"\",\"\",IF(ISERROR(MATCH($J2165,SorP!$B$1:$B$6230,0)),\"\",INDIRECT(\"'SorP'!$A$\"&MATCH($J2165,SorP!$B$1:$B$6230,0))))","v":""},null,{"$f":"IF(C2165=\"\",NA(),MATCH($B2165&$C2165,'Smelter Look-up'!$J:$J,0))","v":{"$error":"#N/A"}},null,0,null,null,null,""]
[null,{"$f":"IF(LEN(A2166)=0,\"\",INDEX('Smelter Look-up'!$A:$A,MATCH($A2166,'Smelter Look-up'!$E:$E,0)))","v":""},{"$f":"IF(LEN(A2166)=0,\"\",INDEX('Smelter Look-up'!$C:$C,MATCH($A2166,'Smelter Look-up'!$E:$E,0)))","v":""},null,{"$f":"IF(ISERROR($V2166),\"\",OFFSET('Smelter Look-up'!$D$4,$V2166-4,0)&\"\")","v":""},{"$f":"IF(ISERROR($V2166),\"\",OFFSET('Smelter Look-up'!$E$4,$V2166-4,0))","v":""},{"$f":"IF(C2166=$X$4,\"Enter smelter details\", IF(ISERROR($V2166),\"\",OFFSET('Smelter Look-up'!$F$4,$V2166-4,0)))","v":""},{"$f":"IF(ISERROR($V2166),\"\",OFFSET('Smelter Look-up'!$G$4,$V2166-4,0))","v":""},{"$f":"IF(ISERROR($V2166),\"\",OFFSET('Smelter Look-up'!$H$4,$V2166-4,0))","v":""},{"$f":"IF(ISERROR($V2166),\"\",OFFSET('Smelter Look-up'!$I$4,$V2166-4,0))","v":""},{"$nulls":7},{"$f":"IF(ISERROR($V2166),\"\",OFFSET('Smelter Look-up'!$C$4,$V2166-4,0)&\"\")","v":""},"",{"$f":"IF(B2166=\"\",\"\",IF(ISERROR(MATCH($J2166,SorP!$B$1:$B$6230,0)),\"\",INDIRECT(\"'SorP'!$A$\"&MATCH($J2166,SorP!$B$1:$B$6230,0))))","v":""},null,{"$f":"IF(C2166=\"\",NA(),MATCH($B2166&$C2166,'Smelter Look-up'!$J:$J,0))","v":{"$error":"#N/A"}},null,0,null,null,null,""]
[null,{"$f":"IF(LEN(A2167)=0,\"\",INDEX('Smelter Look-up'!$A:$A,MATCH($A2167,'Smelter Look-up'!$E:$E,0)))","v":""},{"$f":"IF(LEN(A2167)=0,\"\",INDEX('Smelter Look-up'!$C:$C,MATCH($A2167,'Smelter Look-up'!$E:$E,0)))","v":""},null,{"$f":"IF(ISERROR($V2167),\"\",OFFSET('Smelter Look-up'!$D$4,$V2167-4,0)&\"\")","v":""},{"$f":"IF(ISERROR($V2167),\"\",OFFSET('Smelter Look-up'!$E$4,$V2167-4,0))","v":""},{"$f":"IF(C2167=$X$4,\"Enter smelter details\", IF(ISERROR($V2167),\"\",OFFSET('Smelter Look-up'!$F$4,$V2167-4,0)))","v":""},{"$f":"IF(ISERROR($V2167),\"\",OFFSET('Smelter Look-up'!$G$4,$V2167-4,0))","v":""},{"$f":"IF(ISERROR($V2167),\"\",OFFSET('Smelter Look-up'!$H$4,$V2167-4,0))","v":""},{"$f":"IF(ISERROR($V2167),\"\",OFFSET('Smelter Look-up'!$I$4,$V2167-4,0))","v":""},{"$nulls":7},{"$f":"IF(ISERROR($V2167),\"\",OFFSET('Smelter Look-up'!$C$4,$V2167-4,0)&\"\")","v":""},"",{"$f":"IF(B2167=\"\",\"\",IF(ISERROR(MATCH($J2167,SorP!$B$1:$B$6230,0)),\"\",INDIRECT(\"'SorP'!$A$\"&MATCH($J2167,SorP!$B$1:$B$6230,0))))","v":""},null,{"$f":"IF(C2167=\"\",NA(),MATCH($B2167&$C2167,'Smelter Look-up'!$J:$J,0))","v":{"$error":"#N/A"}},null,0,null,null,null,""]
[null,{"$f":"IF(LEN(A2168)=0,\"\",INDEX('Smelter Look-up'!$A:$A,MATCH($A2168,'Smelter Look-up'!$E:$E,0)))","v":""},{"$f":"IF(LEN(A2168)=0,\"\",INDEX('Smelter Look-up'!$C:$C,MATCH($A2168,'Smelter Look-up'!$E:$E,0)))","v":""},null,{"$f":"IF(ISERROR($V2168),\"\",OFFSET('Smelter Look-up'!$D$4,$V2168-4,0)&\"\")","v":""},{"$f":"IF(ISERROR($V2168),\"\",OFFSET('Smelter Look-up'!$E$4,$V2168-4,0))","v":""},{"$f":"IF(C2168=$X$4,\"Enter smelter details\", IF(ISERROR($V2168),\"\",OFFSET('Smelter Look-up'!$F$4,$V2168-4,0)))","v":""},{"$f":"IF(ISERROR($V2168),\"\",OFFSET('Smelter Look-up'!$G$4,$V2168-4,0))","v":""},{"$f":"IF(ISERROR($V2168),\"\",OFFSET('Smelter Look-up'!$H$4,$V2168-4,0))","v":""},{"$f":"IF(ISERROR($V2168),\"\",OFFSET('Smelter Look-up'!$I$4,$V2168-4,0))","v":""},{"$nulls":7},{"$f":"IF(ISERROR($V2168),\"\",OFFSET('Smelter Look-up'!$C$4,$V2168-4,0)&\"\")","v":""},"",{"$f":"IF(B2168=\"\",\"\",IF(ISERROR(MATCH($J2168,SorP!$B$1:$B$6230,0)),\"\",INDIRECT(\"'SorP'!$A$\"&MATCH($J2168,SorP!$B$1:$B$6230,0))))","v":""},null,{"$f":"IF(C2168=\"\",NA(),MATCH($B2168&$C2168,'Smelter Look-up'!$J:$J,0))","v":{"$error":"#N/A"}},null,0,null,null,null,""]
[null,{"$f":"IF(LEN(A2169)=0,\"\",INDEX('Smelter Look-up'!$A:$A,MATCH($A2169,'Smelter Look-up'!$E:$E,0)))","v":""},{"$f":"IF(LEN(A2169)=0,\"\",INDEX('Smelter Look-up'!$C:$C,MATCH($A2169,'Smelter Look-up'!$E:$E,0)))","v":""},null,{"$f":"IF(ISERROR($V2169),\"\",OFFSET('Smelter Look-up'!$D$4,$V2169-4,0)&\"\")","v":""},{"$f":"IF(ISERROR($V2169),\"\",OFFSET('Smelter Look-up'!$E$4,$V2169-4,0))","v":""},{"$f":"IF(C2169=$X$4,\"Enter smelter details\", IF(ISERROR($V2169),\"\",OFFSET('Smelter Look-up'!$F$4,$V2169-4,0)))","v":""},{"$f":"IF(ISERROR($V2169),\"\",OFFSET('Smelter Look-up'!$G$4,$V2169-4,0))","v":""},{"$f":"IF(ISERROR($V2169),\"\",OFFSET('Smelter Look-up'!$H$4,$V2169-4,0))","v":""},{"$f":"IF(ISERROR($V2169),\"\",OFFSET('Smelter Look-up'!$I$4,$V2169-4,0))","v":""},{"$nulls":7},{"$f":"IF(ISERROR($V2169),\"\",OFFSET('Smelter Look-up'!$C$4,$V2169-4,0)&\"\")","v":""},"",{"$f":"IF(B2169=\"\",\"\",IF(ISERROR(MATCH($J2169,SorP!$B$1:$B$6230,0)),\"\",INDIRECT(\"'SorP'!$A$\"&MATCH($J2169,SorP!$B$1:$B$6230,0))))","v":""},null,{"$f":"IF(C2169=\"\",NA(),MATCH($B2169&$C2169,'Smelter Look-up'!$J:$J,0))","v":{"$error":"#N/A"}},null,0,null,null,null,""]
[null,{"$f":"IF(LEN(A2170)=0,\"\",INDEX('Smelter Look-up'!$A:$A,MATCH($A2170,'Smelter Look-up'!$E:$E,0)))","v":""},{"$f":"IF(LEN(A2170)=0,\"\",INDEX('Smelter Look-up'!$C:$C,MATCH($A2170,'Smelter Look-up'!$E:$E,0)))","v":""},null,{"$f":"IF(ISERROR($V2170),\"\",OFFSET('Smelter Look-up'!$D$4,$V2170-4,0)&\"\")","v":""},{"$f":"IF(ISERROR($V2170),\"\",OFFSET('Smelter Look-up'!$E$4,$V2170-4,0))","v":""},{"$f":"IF(C2170=$X$4,\"Enter smelter details\", IF(ISERROR($V2170),\"\",OFFSET('Smelter Look-up'!$F$4,$V2170-4,0)))","v":""},{"$f":"IF(ISERROR($V2170),\"\",OFFSET('Smelter Look-up'!$G$4,$V2170-4,0))","v":""},{"$f":"IF(ISERROR($V2170),\"\",OFFSET('Smelter Look-up'!$H$4,$V2170-4,0))","v":""},{"$f":"IF(ISERROR($V2170),\"\",OFFSET('Smelter Look-up'!$I$4,$V2170-4,0))","v":""},{"$nulls":7},{"$f":"IF(ISERROR($V2170),\"\",OFFSET('Smelter Look-up'!$C$4,$V2170-4,0)&\"\")","v":""},"",{"$f":"IF(B2170=\"\",\"\",IF(ISERROR(MATCH($J2170,SorP!$B$1:$B$6230,0)),\"\",INDIRECT(\"'SorP'!$A$\"&MATCH($J2170,SorP!$B$1:$B$6230,0))))","v":""},null,{"$f":"IF(C2170=\"\",NA(),MATCH($B2170&$C2170,'Smelter Look-up'!$J:$J,0))","v":{"$error":"#N/A"}},null,0,null,null,null,""]
[null,{"$f":"IF(LEN(A2171)=0,\"\",INDEX('Smelter Look-up'!$A:$A,MATCH($A2171,'Smelter Look-up'!$E:$E,0)))","v":""},{"$f":"IF(LEN(A2171)=0,\"\",INDEX('Smelter Look-up'!$C:$C,MATCH($A2171,'Smelter Look-up'!$E:$E,0)))","v":""},null,{"$f":"IF(ISERROR($V2171),\"\",OFFSET('Smelter Look-up'!$D$4,$V2171-4,0)&\"\")","v":""},{"$f":"IF(ISERROR($V2171),\"\",OFFSET('Smelter Look-up'!$E$4,$V2171-4,0))","v":""},{"$f":"IF(C2171=$X$4,\"Enter smelter details\", IF(ISERROR($V2171),\"\",OFFSET('Smelter Look-up'!$F$4,$V2171-4,0)))","v":""},{"$f":"IF(ISERROR($V2171),\"\",OFFSET('Smelter Look-up'!$G$4,$V2171-4,0))","v":""},{"$f":"IF(ISERROR($V2171),\"\",OFFSET('Smelter Look-up'!$H$4,$V2171-4,0))","v":""},{"$f":"IF(ISERROR($V2171),\"\",OFFSET('Smelter Look-up'!$I$4,$V2171-4,0))","v":""},{"$nulls":7},{"$f":"IF(ISERROR($V2171),\"\",OFFSET('Smelter Look-up'!$C$4,$V2171-4,0)&\"\")","v":""},{"$f":"IF(B2171=\"\",\"\",IF(ISERROR(MATCH($E2171,CL,0)),\"Unknown\",INDIRECT(\"'C'!$A$\"&MATCH($E2171,CL,0)+1)))","v":""},{"$f":"IF(B2171=\"\",\"\",IF(ISERROR(MATCH($J2171,SorP!$B$1:$B$6230,0)),\"\",INDIRECT(\"'SorP'!$A$\"&MATCH($J2171,SorP!$B$1:$B$6230,0))))","v":""},null,{"$f":"IF(C2171=\"\",NA(),MATCH($B2171&$C2171,'Smelter Look-up'!$J:$J,0))","v":{"$error":"#N/A"}},null,{"$f":"IF(AND(C2171=\"Smelter not listed\",OR(LEN(D2171)=0,LEN(E2171)=0)),1,0)","v":0},null,null,null,{"$f":"B2171&C2171","v":""}]
[null,{"$f":"IF(LEN(A2172)=0,\"\",INDEX('Smelter Look-up'!$A:$A,MATCH($A2172,'Smelter Look-up'!$E:$E,0)))","v":""},{"$f":"IF(LEN(A2172)=0,\"\",INDEX('Smelter Look-up'!$C:$C,MATCH($A2172,'Smelter Look-up'!$E:$E,0)))","v":""},null,{"$f":"IF(ISERROR($V2172),\"\",OFFSET('Smelter Look-up'!$D$4,$V2172-4,0)&\"\")","v":""},{"$f":"IF(ISERROR($V2172),\"\",OFFSET('Smelter Look-up'!$E$4,$V2172-4,0))","v":""},{"$f":"IF(C2172=$X$4,\"Enter smelter details\", IF(ISERROR($V2172),\"\",OFFSET('Smelter Look-up'!$F$4,$V2172-4,0)))","v":""},{"$f":"IF(ISERROR($V2172),\"\",OFFSET('Smelter Look-up'!$G$4,$V2172-4,0))","v":""},{"$f":"IF(ISERROR($V2172),\"\",OFFSET('Smelter Look-up'!$H$4,$V2172-4,0))","v":""},{"$f":"IF(ISERROR($V2172),\"\",OFFSET('Smelter Look-up'!$I$4,$V2172-4,0))","v":""},{"$nulls":7},{"$f":"IF(ISERROR($V2172),\"\",OFFSET('Smelter Look-up'!$C$4,$V2172-4,0)&\"\")","v":""},"",{"$f":"IF(B2172=\"\",\"\",IF(ISERROR(MATCH($J2172,SorP!$B$1:$B$6230,0)),\"\",INDIRECT(\"'SorP'!$A$\"&MATCH($J2172,SorP!$B$1:$B$6230,0))))","v":""},null,{"$f":"IF(C2172=\"\",NA(),MATCH($B2172&$C2172,'Smelter Look-up'!$J:$J,0))","v":{"$error":"#N/A"}},null,0,null,null,null,""]
[null,{"$f":"IF(LEN(A2173)=0,\"\",INDEX('Smelter Look-up'!$A:$A,MATCH($A2173,'Smelter Look-up'!$E:$E,0)))","v":""},{"$f":"IF(LEN(A2173)=0,\"\",INDEX('Smelter Look-up'!$C:$C,MATCH($A2173,'Smelter Look-up'!$E:$E,0)))","v":""},null,{"$f":"IF(ISERROR($V2173),\"\",OFFSET('Smelter Look-up'!$D$4,$V2173-4,0)&\"\")","v":""},{"$f":"IF(ISERROR($V2173),\"\",OFFSET('Smelter Look-up'!$E$4,$V2173-4,0))","v":""},{"$f":"IF(C2173=$X$4,\"Enter smelter details\", IF(ISERROR($V2173),\"\",OFFSET('Smelter Look-up'!$F$4,$V2173-4,0)))","v":""},{"$f":"IF(ISERROR($V2173),\"\",OFFSET('Smelter Look-up'!$G$4,$V2173-4,0))","v":""},{"$f":"IF(ISERROR($V2173),\"\",OFFSET('Smelter Look-up'!$H$4,$V2173-4,0))","v":""},{"$f":"IF(ISERROR($V2173),\"\",OFFSET('Smelter Look-up'!$I$4,$V2173-4,0))","v":""},{"$nulls":7},{"$f":"IF(ISERROR($V2173),\"\",OFFSET('Smelter Look-up'!$C$4,$V2173-4,0)&\"\")","v":""},"",{"$f":"IF(B2173=\"\",\"\",IF(ISERROR(MATCH($J2173,SorP!$B$1:$B$6230,0)),\"\",INDIRECT(\"'SorP'!$A$\"&MATCH($J2173,SorP!$B$1:$B$6230,0))))","v":""},null,{"$f":"IF(C2173=\"\",NA(),MATCH($B2173&$C2173,'Smelter Look-up'!$J:$J,0))","v":{"$error":"#N/A"}},null,0,null,null,null,""]
[null,{"$f":"IF(LEN(A2174)=0,\"\",INDEX('Smelter Look-up'!$A:$A,MATCH($A2174,'Smelter Look-up'!$E:$E,0)))","v":""},{"$f":"IF(LEN(A2174)=0,\"\",INDEX('Smelter Look-up'!$C:$C,MATCH($A2174,'Smelter Look-up'!$E:$E,0)))","v":""},null,{"$f":"IF(ISERROR($V2174),\"\",OFFSET('Smelter Look-up'!$D$4,$V2174-4,0)&\"\")","v":""},{"$f":"IF(ISERROR($V2174),\"\",OFFSET('Smelter Look-up'!$E$4,$V2174-4,0))","v":""},{"$f":"IF(C2174=$X$4,\"Enter smelter details\", IF(ISERROR($V2174),\"\",OFFSET('Smelter Look-up'!$F$4,$V2174-4,0)))","v":""},{"$f":"IF(ISERROR($V2174),\"\",OFFSET('Smelter Look-up'!$G$4,$V2174-4,0))","v":""},{"$f":"IF(ISERROR($V2174),\"\",OFFSET('Smelter Look-up'!$H$4,$V2174-4,0))","v":""},{"$f":"IF(ISERROR($V2174),\"\",OFFSET('Smelter Look-up'!$I$4,$V2174-4,0))","v":""},{"$nulls":7},{"$f":"IF(ISERROR($V2174),\"\",OFFSET('Smelter Look-up'!$C$4,$V2174-4,0)&\"\")","v":""},"",{"$f":"IF(B2174=\"\",\"\",IF(ISERROR(MATCH($J2174,SorP!$B$1:$B$6230,0)),\"\",INDIRECT(\"'SorP'!$A$\"&MATCH($J2174,SorP!$B$1:$B$6230,0))))","v":""},null,{"$f":"IF(C2174=\"\",NA(),MATCH($B2174&$C2174,'Smelter Look-up'!$J:$J,0))","v":{"$error":"#N/A"}},null,0,null,null,null,""]
[null,{"$f":"IF(LEN(A2175)=0,\"\",INDEX('Smelter Look-up'!$A:$A,MATCH($A2175,'Smelter Look-up'!$E:$E,0)))","v":""},{"$f":"IF(LEN(A2175)=0,\"\",INDEX('Smelter Look-up'!$C:$C,MATCH($A2175,'Smelter Look-up'!$E:$E,0)))","v":""},null,{"$f":"IF(ISERROR($V2175),\"\",OFFSET('Smelter Look-up'!$D$4,$V2175-4,0)&\"\")","v":""},{"$f":"IF(ISERROR($V2175),\"\",OFFSET('Smelter Look-up'!$E$4,$V2175-4,0))","v":""},{"$f":"IF(C2175=$X$4,\"Enter smelter details\", IF(ISERROR($V2175),\"\",OFFSET('Smelter Look-up'!$F$4,$V2175-4,0)))","v":""},{"$f":"IF(ISERROR($V2175),\"\",OFFSET('Smelter Look-up'!$G$4,$V2175-4,0))","v":""},{"$f":"IF(ISERROR($V2175),\"\",OFFSET('Smelter Look-up'!$H$4,$V2175-4,0))","v":""},{"$f":"IF(ISERROR($V2175),\"\",OFFSET('Smelter Look-up'!$I$4,$V2175-4,0))","v":""},{"$nulls":7},{"$f":"IF(ISERROR($V2175),\"\",OFFSET('Smelter Look-up'!$C$4,$V2175-4,0)&\"\")","v":""},"",{"$f":"IF(B2175=\"\",\"\",IF(ISERROR(MATCH($J2175,SorP!$B$1:$B$6230,0)),\"\",INDIRECT(\"'SorP'!$A$\"&MATCH($J2175,SorP!$B$1:$B$6230,0))))","v":""},null,{"$f":"IF(C2175=\"\",NA(),MATCH($B2175&$C2175,'Smelter Look-up'!$J:$J,0))","v":{"$error":"#N/A"}},null,0,null,null,null,""]
[null,{"$f":"IF(LEN(A2176)=0,\"\",INDEX('Smelter Look-up'!$A:$A,MATCH($A2176,'Smelter Look-up'!$E:$E,0)))","v":""},{"$f":"IF(LEN(A2176)=0,\"\",INDEX('Smelter Look-up'!$C:$C,MATCH($A2176,'Smelter Look-up'!$E:$E,0)))","v":""},null,{"$f":"IF(ISERROR($V2176),\"\",OFFSET('Smelter Look-up'!$D$4,$V2176-4,0)&\"\")","v":""},{"$f":"IF(ISERROR($V2176),\"\",OFFSET('Smelter Look-up'!$E$4,$V2176-4,0))","v":""},{"$f":"IF(C2176=$X$4,\"Enter smelter details\", IF(ISERROR($V2176),\"\",OFFSET('Smelter Look-up'!$F$4,$V2176-4,0)))","v":""},{"$f":"IF(ISERROR($V2176),\"\",OFFSET('Smelter Look-up'!$G$4,$V2176-4,0))","v":""},{"$f":"IF(ISERROR($V2176),\"\",OFFSET('Smelter Look-up'!$H$4,$V2176-4,0))","v":""},{"$f":"IF(ISERROR($V2176),\"\",OFFSET('Smelter Look-up'!$I$4,$V2176-4,0))","v":""},{"$nulls":7},{"$f":"IF(ISERROR($V2176),\"\",OFFSET('Smelter Look-up'!$C$4,$V2176-4,0)&\"\")","v":""},"",{"$f":"IF(B2176=\"\",\"\",IF(ISERROR(MATCH($J2176,SorP!$B$1:$B$6230,0)),\"\",INDIRECT(\"'SorP'!$A$\"&MATCH($J2176,SorP!$B$1:$B$6230,0))))","v":""},null,{"$f":"IF(C2176=\"\",NA(),MATCH($B2176&$C2176,'Smelter Look-up'!$J:$J,0))","v":{"$error":"#N/A"}},null,0,null,null,null,""]
[null,{"$f":"IF(LEN(A2177)=0,\"\",INDEX('Smelter Look-up'!$A:$A,MATCH($A2177,'Smelter Look-up'!$E:$E,0)))","v":""},{"$f":"IF(LEN(A2177)=0,\"\",INDEX('Smelter Look-up'!$C:$C,MATCH($A2177,'Smelter Look-up'!$E:$E,0)))","v":""},null,{"$f":"IF(ISERROR($V2177),\"\",OFFSET('Smelter Look-up'!$D$4,$V2177-4,0)&\"\")","v":""},{"$f":"IF(ISERROR($V2177),\"\",OFFSET('Smelter Look-up'!$E$4,$V2177-4,0))","v":""},{"$f":"IF(C2177=$X$4,\"Enter smelter details\", IF(ISERROR($V2177),\"\",OFFSET('Smelter Look-up'!$F$4,$V2177-4,0)))","v":""},{"$f":"IF(ISERROR($V2177),\"\",OFFSET('Smelter Look-up'!$G$4,$V2177-4,0))","v":""},{"$f":"IF(ISERROR($V2177),\"\",OFFSET('Smelter Look-up'!$H$4,$V2177-4,0))","v":""},{"$f":"IF(ISERROR($V2177),\"\",OFFSET('Smelter Look-up'!$I$4,$V2177-4,0))","v":""},{"$nulls":7},{"$f":"IF(ISERROR($V2177),\"\",OFFSET('Smelter Look-up'!$C$4,$V2177-4,0)&\"\")","v":""},"",{"$f":"IF(B2177=\"\",\"\",IF(ISERROR(MATCH($J2177,SorP!$B$1:$B$6230,0)),\"\",INDIRECT(\"'SorP'!$A$\"&MATCH($J2177,SorP!$B$1:$B$6230,0))))","v":""},null,{"$f":"IF(C2177=\"\",NA(),MATCH($B2177&$C2177,'Smelter Look-up'!$J:$J,0))","v":{"$error":"#N/A"}},null,0,null,null,null,""]
[null,{"$f":"IF(LEN(A2178)=0,\"\",INDEX('Smelter Look-up'!$A:$A,MATCH($A2178,'Smelter Look-up'!$E:$E,0)))","v":""},{"$f":"IF(LEN(A2178)=0,\"\",INDEX('Smelter Look-up'!$C:$C,MATCH($A2178,'Smelter Look-up'!$E:$E,0)))","v":""},null,{"$f":"IF(ISERROR($V2178),\"\",OFFSET('Smelter Look-up'!$D$4,$V2178-4,0)&\"\")","v":""},{"$f":"IF(ISERROR($V2178),\"\",OFFSET('Smelter Look-up'!$E$4,$V2178-4,0))","v":""},{"$f":"IF(C2178=$X$4,\"Enter smelter details\", IF(ISERROR($V2178),\"\",OFFSET('Smelter Look-up'!$F$4,$V2178-4,0)))","v":""},{"$f":"IF(ISERROR($V2178),\"\",OFFSET('Smelter Look-up'!$G$4,$V2178-4,0))","v":""},{"$f":"IF(ISERROR($V2178),\"\",OFFSET('Smelter Look-up'!$H$4,$V2178-4,0))","v":""},{"$f":"IF(ISERROR($V2178),\"\",OFFSET('Smelter Look-up'!$I$4,$V2178-4,0))","v":""},{"$nulls":7},{"$f":"IF(ISERROR($V2178),\"\",OFFSET('Smelter Look-up'!$C$4,$V2178-4,0)&\"\")","v":""},"",{"$f":"IF(B2178=\"\",\"\",IF(ISERROR(MATCH($J2178,SorP!$B$1:$B$6230,0)),\"\",INDIRECT(\"'SorP'!$A$\"&MATCH($J2178,SorP!$B$1:$B$6230,0))))","v":""},null,{"$f":"IF(C2178=\"\",NA(),MATCH($B2178&$C2178,'Smelter Look-up'!$J:$J,0))","v":{"$error":"#N/A"}},null,0,null,null,null,""]
[null,{"$f":"IF(LEN(A2179)=0,\"\",INDEX('Smelter Look-up'!$A:$A,MATCH($A2179,'Smelter Look-up'!$E:$E,0)))","v":""},{"$f":"IF(LEN(A2179)=0,\"\",INDEX('Smelter Look-up'!$C:$C,MATCH($A2179,'Smelter Look-up'!$E:$E,0)))","v":""},null,{"$f":"IF(ISERROR($V2179),\"\",OFFSET('Smelter Look-up'!$D$4,$V2179-4,0)&\"\")","v":""},{"$f":"IF(ISERROR($V2179),\"\",OFFSET('Smelter Look-up'!$E$4,$V2179-4,0))","v":""},{"$f":"IF(C2179=$X$4,\"Enter smelter details\", IF(ISERROR($V2179),\"\",OFFSET('Smelter Look-up'!$F$4,$V2179-4,0)))","v":""},{"$f":"IF(ISERROR($V2179),\"\",OFFSET('Smelter Look-up'!$G$4,$V2179-4,0))","v":""},{"$f":"IF(ISERROR($V2179),\"\",OFFSET('Smelter Look-up'!$H$4,$V2179-4,0))","v":""},{"$f":"IF(ISERROR($V2179),\"\",OFFSET('Smelter Look-up'!$I$4,$V2179-4,0))","v":""},{"$nulls":7},{"$f":"IF(ISERROR($V2179),\"\",OFFSET('Smelter Look-up'!$C$4,$V2179-4,0)&\"\")","v":""},"",{"$f":"IF(B2179=\"\",\"\",IF(ISERROR(MATCH($J2179,SorP!$B$1:$B$6230,0)),\"\",INDIRECT(\"'SorP'!$A$\"&MATCH($J2179,SorP!$B$1:$B$6230,0))))","v":""},null,{"$f":"IF(C2179=\"\",NA(),MATCH($B2179&$C2179,'Smelter Look-up'!$J:$J,0))","v":{"$error":"#N/A"}},null,0,null,null,null,""]
[null,{"$f":"IF(LEN(A2180)=0,\"\",INDEX('Smelter Look-up'!$A:$A,MATCH($A2180,'Smelter Look-up'!$E:$E,0)))","v":""},{"$f":"IF(LEN(A2180)=0,\"\",INDEX('Smelter Look-up'!$C:$C,MATCH($A2180,'Smelter Look-up'!$E:$E,0)))","v":""},null,{"$f":"IF(ISERROR($V2180),\"\",OFFSET('Smelter Look-up'!$D$4,$V2180-4,0)&\"\")","v":""},{"$f":"IF(ISERROR($V2180),\"\",OFFSET('Smelter Look-up'!$E$4,$V2180-4,0))","v":""},{"$f":"IF(C2180=$X$4,\"Enter smelter details\", IF(ISERROR($V2180),\"\",OFFSET('Smelter Look-up'!$F$4,$V2180-4,0)))","v":""},{"$f":"IF(ISERROR($V2180),\"\",OFFSET('Smelter Look-up'!$G$4,$V2180-4,0))","v":""},{"$f":"IF(ISERROR($V2180),\"\",OFFSET('Smelter Look-up'!$H$4,$V2180-4,0))","v":""},{"$f":"IF(ISERROR($V2180),\"\",OFFSET('Smelter Look-up'!$I$4,$V2180-4,0))","v":""},{"$nulls":7},{"$f":"IF(ISERROR($V2180),\"\",OFFSET('Smelter Look-up'!$C$4,$V2180-4,0)&\"\")","v":""},"",{"$f":"IF(B2180=\"\",\"\",IF(ISERROR(MATCH($J2180,SorP!$B$1:$B$6230,0)),\"\",INDIRECT(\"'SorP'!$A$\"&MATCH($J2180,SorP!$B$1:$B$6230,0))))","v":""},null,{"$f":"IF(C2180=\"\",NA(),MATCH($B2180&$C2180,'Smelter Look-up'!$J:$J,0))","v":{"$error":"#N/A"}},null,0,null,null,null,""]
[null,{"$f":"IF(LEN(A2181)=0,\"\",INDEX('Smelter Look-up'!$A:$A,MATCH($A2181,'Smelter Look-up'!$E:$E,0)))","v":""},{"$f":"IF(LEN(A2181)=0,\"\",INDEX('Smelter Look-up'!$C:$C,MATCH($A2181,'Smelter Look-up'!$E:$E,0)))","v":""},null,{"$f":"IF(ISERROR($V2181),\"\",OFFSET('Smelter Look-up'!$D$4,$V2181-4,0)&\"\")","v":""},{"$f":"IF(ISERROR($V2181),\"\",OFFSET('Smelter Look-up'!$E$4,$V2181-4,0))","v":""},{"$f":"IF(C2181=$X$4,\"Enter smelter details\", IF(ISERROR($V2181),\"\",OFFSET('Smelter Look-up'!$F$4,$V2181-4,0)))","v":""},{"$f":"IF(ISERROR($V2181),\"\",OFFSET('Smelter Look-up'!$G$4,$V2181-4,0))","v":""},{"$f":"IF(ISERROR($V2181),\"\",OFFSET('Smelter Look-up'!$H$4,$V2181-4,0))","v":""},{"$f":"IF(ISERROR($V2181),\"\",OFFSET('Smelter Look-up'!$I$4,$V2181-4,0))","v":""},{"$nulls":7},{"$f":"IF(ISERROR($V2181),\"\",OFFSET('Smelter Look-up'!$C$4,$V2181-4,0)&\"\")","v":""},"",{"$f":"IF(B2181=\"\",\"\",IF(ISERROR(MATCH($J2181,SorP!$B$1:$B$6230,0)),\"\",INDIRECT(\"'SorP'!$A$\"&MATCH($J2181,SorP!$B$1:$B$6230,0))))","v":""},null,{"$f":"IF(C2181=\"\",NA(),MATCH($B2181&$C2181,'Smelter Look-up'!$J:$J,0))","v":{"$error":"#N/A"}},null,0,null,null,null,""]
[null,{"$f":"IF(LEN(A2182)=0,\"\",INDEX('Smelter Look-up'!$A:$A,MATCH($A2182,'Smelter Look-up'!$E:$E,0)))","v":""},{"$f":"IF(LEN(A2182)=0,\"\",INDEX('Smelter Look-up'!$C:$C,MATCH($A2182,'Smelter Look-up'!$E:$E,0)))","v":""},null,{"$f":"IF(ISERROR($V2182),\"\",OFFSET('Smelter Look-up'!$D$4,$V2182-4,0)&\"\")","v":""},{"$f":"IF(ISERROR($V2182),\"\",OFFSET('Smelter Look-up'!$E$4,$V2182-4,0))","v":""},{"$f":"IF(C2182=$X$4,\"Enter smelter details\", IF(ISERROR($V2182),\"\",OFFSET('Smelter Look-up'!$F$4,$V2182-4,0)))","v":""},{"$f":"IF(ISERROR($V2182),\"\",OFFSET('Smelter Look-up'!$G$4,$V2182-4,0))","v":""},{"$f":"IF(ISERROR($V2182),\"\",OFFSET('Smelter Look-up'!$H$4,$V2182-4,0))","v":""},{"$f":"IF(ISERROR($V2182),\"\",OFFSET('Smelter Look-up'!$I$4,$V2182-4,0))","v":""},{"$nulls":7},{"$f":"IF(ISERROR($V2182),\"\",OFFSET('Smelter Look-up'!$C$4,$V2182-4,0)&\"\")","v":""},"",{"$f":"IF(B2182=\"\",\"\",IF(ISERROR(MATCH($J2182,SorP!$B$1:$B$6230,0)),\"\",INDIRECT(\"'SorP'!$A$\"&MATCH($J2182,SorP!$B$1:$B$6230,0))))","v":""},null,{"$f":"IF(C2182=\"\",NA(),MATCH($B2182&$C2182,'Smelter Look-up'!$J:$J,0))","v":{"$error":"#N/A"}},null,0,null,null,null,""]
[null,{"$f":"IF(LEN(A2183)=0,\"\",INDEX('Smelter Look-up'!$A:$A,MATCH($A2183,'Smelter Look-up'!$E:$E,0)))","v":""},{"$f":"IF(LEN(A2183)=0,\"\",INDEX('Smelter Look-up'!$C:$C,MATCH($A2183,'Smelter Look-up'!$E:$E,0)))","v":""},null,{"$f":"IF(ISERROR($V2183),\"\",OFFSET('Smelter Look-up'!$D$4,$V2183-4,0)&\"\")","v":""},{"$f":"IF(ISERROR($V2183),\"\",OFFSET('Smelter Look-up'!$E$4,$V2183-4,0))","v":""},{"$f":"IF(C2183=$X$4,\"Enter smelter details\", IF(ISERROR($V2183),\"\",OFFSET('Smelter Look-up'!$F$4,$V2183-4,0)))","v":""},{"$f":"IF(ISERROR($V2183),\"\",OFFSET('Smelter Look-up'!$G$4,$V2183-4,0))","v":""},{"$f":"IF(ISERROR($V2183),\"\",OFFSET('Smelter Look-up'!$H$4,$V2183-4,0))","v":""},{"$f":"IF(ISERROR($V2183),\"\",OFFSET('Smelter Look-up'!$I$4,$V2183-4,0))","v":""},{"$nulls":7},{"$f":"IF(ISERROR($V2183),\"\",OFFSET('Smelter Look-up'!$C$4,$V2183-4,0)&\"\")","v":""},"",{"$f":"IF(B2183=\"\",\"\",IF(ISERROR(MATCH($J2183,SorP!$B$1:$B$6230,0)),\"\",INDIRECT(\"'SorP'!$A$\"&MATCH($J2183,SorP!$B$1:$B$6230,0))))","v":""},null,{"$f":"IF(C2183=\"\",NA(),MATCH($B2183&$C2183,'Smelter Look-up'!$J:$J,0))","v":{"$error":"#N/A"}},null,0,null,null,null,""]
[null,{"$f":"IF(LEN(A2184)=0,\"\",INDEX('Smelter Look-up'!$A:$A,MATCH($A2184,'Smelter Look-up'!$E:$E,0)))","v":""},{"$f":"IF(LEN(A2184)=0,\"\",INDEX('Smelter Look-up'!$C:$C,MATCH($A2184,'Smelter Look-up'!$E:$E,0)))","v":""},null,{"$f":"IF(ISERROR($V2184),\"\",OFFSET('Smelter Look-up'!$D$4,$V2184-4,0)&\"\")","v":""},{"$f":"IF(ISERROR($V2184),\"\",OFFSET('Smelter Look-up'!$E$4,$V2184-4,0))","v":""},{"$f":"IF(C2184=$X$4,\"Enter smelter details\", IF(ISERROR($V2184),\"\",OFFSET('Smelter Look-up'!$F$4,$V2184-4,0)))","v":""},{"$f":"IF(ISERROR($V2184),\"\",OFFSET('Smelter Look-up'!$G$4,$V2184-4,0))","v":""},{"$f":"IF(ISERROR($V2184),\"\",OFFSET('Smelter Look-up'!$H$4,$V2184-4,0))","v":""},{"$f":"IF(ISERROR($V2184),\"\",OFFSET('Smelter Look-up'!$I$4,$V2184-4,0))","v":""},{"$nulls":7},{"$f":"IF(ISERROR($V2184),\"\",OFFSET('Smelter Look-up'!$C$4,$V2184-4,0)&\"\")","v":""},"",{"$f":"IF(B2184=\"\",\"\",IF(ISERROR(MATCH($J2184,SorP!$B$1:$B$6230,0)),\"\",INDIRECT(\"'SorP'!$A$\"&MATCH($J2184,SorP!$B$1:$B$6230,0))))","v":""},null,{"$f":"IF(C2184=\"\",NA(),MATCH($B2184&$C2184,'Smelter Look-up'!$J:$J,0))","v":{"$error":"#N/A"}},null,0,null,null,null,""]
[null,{"$f":"IF(LEN(A2185)=0,\"\",INDEX('Smelter Look-up'!$A:$A,MATCH($A2185,'Smelter Look-up'!$E:$E,0)))","v":""},{"$f":"IF(LEN(A2185)=0,\"\",INDEX('Smelter Look-up'!$C:$C,MATCH($A2185,'Smelter Look-up'!$E:$E,0)))","v":""},null,{"$f":"IF(ISERROR($V2185),\"\",OFFSET('Smelter Look-up'!$D$4,$V2185-4,0)&\"\")","v":""},{"$f":"IF(ISERROR($V2185),\"\",OFFSET('Smelter Look-up'!$E$4,$V2185-4,0))","v":""},{"$f":"IF(C2185=$X$4,\"Enter smelter details\", IF(ISERROR($V2185),\"\",OFFSET('Smelter Look-up'!$F$4,$V2185-4,0)))","v":""},{"$f":"IF(ISERROR($V2185),\"\",OFFSET('Smelter Look-up'!$G$4,$V2185-4,0))","v":""},{"$f":"IF(ISERROR($V2185),\"\",OFFSET('Smelter Look-up'!$H$4,$V2185-4,0))","v":""},{"$f":"IF(ISERROR($V2185),\"\",OFFSET('Smelter Look-up'!$I$4,$V2185-4,0))","v":""},{"$nulls":7},{"$f":"IF(ISERROR($V2185),\"\",OFFSET('Smelter Look-up'!$C$4,$V2185-4,0)&\"\")","v":""},"",{"$f":"IF(B2185=\"\",\"\",IF(ISERROR(MATCH($J2185,SorP!$B$1:$B$6230,0)),\"\",INDIRECT(\"'SorP'!$A$\"&MATCH($J2185,SorP!$B$1:$B$6230,0))))","v":""},null,{"$f":"IF(C2185=\"\",NA(),MATCH($B2185&$C2185,'Smelter Look-up'!$J:$J,0))","v":{"$error":"#N/A"}},null,0,null,null,null,""]
[null,{"$f":"IF(LEN(A2186)=0,\"\",INDEX('Smelter Look-up'!$A:$A,MATCH($A2186,'Smelter Look-up'!$E:$E,0)))","v":""},{"$f":"IF(LEN(A2186)=0,\"\",INDEX('Smelter Look-up'!$C:$C,MATCH($A2186,'Smelter Look-up'!$E:$E,0)))","v":""},null,{"$f":"IF(ISERROR($V2186),\"\",OFFSET('Smelter Look-up'!$D$4,$V2186-4,0)&\"\")","v":""},{"$f":"IF(ISERROR($V2186),\"\",OFFSET('Smelter Look-up'!$E$4,$V2186-4,0))","v":""},{"$f":"IF(C2186=$X$4,\"Enter smelter details\", IF(ISERROR($V2186),\"\",OFFSET('Smelter Look-up'!$F$4,$V2186-4,0)))","v":""},{"$f":"IF(ISERROR($V2186),\"\",OFFSET('Smelter Look-up'!$G$4,$V2186-4,0))","v":""},{"$f":"IF(ISERROR($V2186),\"\",OFFSET('Smelter Look-up'!$H$4,$V2186-4,0))","v":""},{"$f":"IF(ISERROR($V2186),\"\",OFFSET('Smelter Look-up'!$I$4,$V2186-4,0))","v":""},{"$nulls":7},{"$f":"IF(ISERROR($V2186),\"\",OFFSET('Smelter Look-up'!$C$4,$V2186-4,0)&\"\")","v":""},"",{"$f":"IF(B2186=\"\",\"\",IF(ISERROR(MATCH($J2186,SorP!$B$1:$B$6230,0)),\"\",INDIRECT(\"'SorP'!$A$\"&MATCH($J2186,SorP!$B$1:$B$6230,0))))","v":""},null,{"$f":"IF(C2186=\"\",NA(),MATCH($B2186&$C2186,'Smelter Look-up'!$J:$J,0))","v":{"$error":"#N/A"}},null,0,null,null,null,""]
[null,{"$f":"IF(LEN(A2187)=0,\"\",INDEX('Smelter Look-up'!$A:$A,MATCH($A2187,'Smelter Look-up'!$E:$E,0)))","v":""},{"$f":"IF(LEN(A2187)=0,\"\",INDEX('Smelter Look-up'!$C:$C,MATCH($A2187,'Smelter Look-up'!$E:$E,0)))","v":""},null,{"$f":"IF(ISERROR($V2187),\"\",OFFSET('Smelter Look-up'!$D$4,$V2187-4,0)&\"\")","v":""},{"$f":"IF(ISERROR($V2187),\"\",OFFSET('Smelter Look-up'!$E$4,$V2187-4,0))","v":""},{"$f":"IF(C2187=$X$4,\"Enter smelter details\", IF(ISERROR($V2187),\"\",OFFSET('Smelter Look-up'!$F$4,$V2187-4,0)))","v":""},{"$f":"IF(ISERROR($V2187),\"\",OFFSET('Smelter Look-up'!$G$4,$V2187-4,0))","v":""},{"$f":"IF(ISERROR($V2187),\"\",OFFSET('Smelter Look-up'!$H$4,$V2187-4,0))","v":""},{"$f":"IF(ISERROR($V2187),\"\",OFFSET('Smelter Look-up'!$I$4,$V2187-4,0))","v":""},{"$nulls":7},{"$f":"IF(ISERROR($V2187),\"\",OFFSET('Smelter Look-up'!$C$4,$V2187-4,0)&\"\")","v":""},"",{"$f":"IF(B2187=\"\",\"\",IF(ISERROR(MATCH($J2187,SorP!$B$1:$B$6230,0)),\"\",INDIRECT(\"'SorP'!$A$\"&MATCH($J2187,SorP!$B$1:$B$6230,0))))","v":""},null,{"$f":"IF(C2187=\"\",NA(),MATCH($B2187&$C2187,'Smelter Look-up'!$J:$J,0))","v":{"$error":"#N/A"}},null,0,null,null,null,""]
[null,{"$f":"IF(LEN(A2188)=0,\"\",INDEX('Smelter Look-up'!$A:$A,MATCH($A2188,'Smelter Look-up'!$E:$E,0)))","v":""},{"$f":"IF(LEN(A2188)=0,\"\",INDEX('Smelter Look-up'!$C:$C,MATCH($A2188,'Smelter Look-up'!$E:$E,0)))","v":""},null,{"$f":"IF(ISERROR($V2188),\"\",OFFSET('Smelter Look-up'!$D$4,$V2188-4,0)&\"\")","v":""},{"$f":"IF(ISERROR($V2188),\"\",OFFSET('Smelter Look-up'!$E$4,$V2188-4,0))","v":""},{"$f":"IF(C2188=$X$4,\"Enter smelter details\", IF(ISERROR($V2188),\"\",OFFSET('Smelter Look-up'!$F$4,$V2188-4,0)))","v":""},{"$f":"IF(ISERROR($V2188),\"\",OFFSET('Smelter Look-up'!$G$4,$V2188-4,0))","v":""},{"$f":"IF(ISERROR($V2188),\"\",OFFSET('Smelter Look-up'!$H$4,$V2188-4,0))","v":""},{"$f":"IF(ISERROR($V2188),\"\",OFFSET('Smelter Look-up'!$I$4,$V2188-4,0))","v":""},{"$nulls":7},{"$f":"IF(ISERROR($V2188),\"\",OFFSET('Smelter Look-up'!$C$4,$V2188-4,0)&\"\")","v":""},"",{"$f":"IF(B2188=\"\",\"\",IF(ISERROR(MATCH($J2188,SorP!$B$1:$B$6230,0)),\"\",INDIRECT(\"'SorP'!$A$\"&MATCH($J2188,SorP!$B$1:$B$6230,0))))","v":""},null,{"$f":"IF(C2188=\"\",NA(),MATCH($B2188&$C2188,'Smelter Look-up'!$J:$J,0))","v":{"$error":"#N/A"}},null,0,null,null,null,""]
[null,{"$f":"IF(LEN(A2189)=0,\"\",INDEX('Smelter Look-up'!$A:$A,MATCH($A2189,'Smelter Look-up'!$E:$E,0)))","v":""},{"$f":"IF(LEN(A2189)=0,\"\",INDEX('Smelter Look-up'!$C:$C,MATCH($A2189,'Smelter Look-up'!$E:$E,0)))","v":""},null,{"$f":"IF(ISERROR($V2189),\"\",OFFSET('Smelter Look-up'!$D$4,$V2189-4,0)&\"\")","v":""},{"$f":"IF(ISERROR($V2189),\"\",OFFSET('Smelter Look-up'!$E$4,$V2189-4,0))","v":""},{"$f":"IF(C2189=$X$4,\"Enter smelter details\", IF(ISERROR($V2189),\"\",OFFSET('Smelter Look-up'!$F$4,$V2189-4,0)))","v":""},{"$f":"IF(ISERROR($V2189),\"\",OFFSET('Smelter Look-up'!$G$4,$V2189-4,0))","v":""},{"$f":"IF(ISERROR($V2189),\"\",OFFSET('Smelter Look-up'!$H$4,$V2189-4,0))","v":""},{"$f":"IF(ISERROR($V2189),\"\",OFFSET('Smelter Look-up'!$I$4,$V2189-4,0))","v":""},{"$nulls":7},{"$f":"IF(ISERROR($V2189),\"\",OFFSET('Smelter Look-up'!$C$4,$V2189-4,0)&\"\")","v":""},"",{"$f":"IF(B2189=\"\",\"\",IF(ISERROR(MATCH($J2189,SorP!$B$1:$B$6230,0)),\"\",INDIRECT(\"'SorP'!$A$\"&MATCH($J2189,SorP!$B$1:$B$6230,0))))","v":""},null,{"$f":"IF(C2189=\"\",NA(),MATCH($B2189&$C2189,'Smelter Look-up'!$J:$J,0))","v":{"$error":"#N/A"}},null,0,null,null,null,""]
[null,{"$f":"IF(LEN(A2190)=0,\"\",INDEX('Smelter Look-up'!$A:$A,MATCH($A2190,'Smelter Look-up'!$E:$E,0)))","v":""},{"$f":"IF(LEN(A2190)=0,\"\",INDEX('Smelter Look-up'!$C:$C,MATCH($A2190,'Smelter Look-up'!$E:$E,0)))","v":""},null,{"$f":"IF(ISERROR($V2190),\"\",OFFSET('Smelter Look-up'!$D$4,$V2190-4,0)&\"\")","v":""},{"$f":"IF(ISERROR($V2190),\"\",OFFSET('Smelter Look-up'!$E$4,$V2190-4,0))","v":""},{"$f":"IF(C2190=$X$4,\"Enter smelter details\", IF(ISERROR($V2190),\"\",OFFSET('Smelter Look-up'!$F$4,$V2190-4,0)))","v":""},{"$f":"IF(ISERROR($V2190),\"\",OFFSET('Smelter Look-up'!$G$4,$V2190-4,0))","v":""},{"$f":"IF(ISERROR($V2190),\"\",OFFSET('Smelter Look-up'!$H$4,$V2190-4,0))","v":""},{"$f":"IF(ISERROR($V2190),\"\",OFFSET('Smelter Look-up'!$I$4,$V2190-4,0))","v":""},{"$nulls":7},{"$f":"IF(ISERROR($V2190),\"\",OFFSET('Smelter Look-up'!$C$4,$V2190-4,0)&\"\")","v":""},"",{"$f":"IF(B2190=\"\",\"\",IF(ISERROR(MATCH($J2190,SorP!$B$1:$B$6230,0)),\"\",INDIRECT(\"'SorP'!$A$\"&MATCH($J2190,SorP!$B$1:$B$6230,0))))","v":""},null,{"$f":"IF(C2190=\"\",NA(),MATCH($B2190&$C2190,'Smelter Look-up'!$J:$J,0))","v":{"$error":"#N/A"}},null,0,null,null,null,""]
[null,{"$f":"IF(LEN(A2191)=0,\"\",INDEX('Smelter Look-up'!$A:$A,MATCH($A2191,'Smelter Look-up'!$E:$E,0)))","v":""},{"$f":"IF(LEN(A2191)=0,\"\",INDEX('Smelter Look-up'!$C:$C,MATCH($A2191,'Smelter Look-up'!$E:$E,0)))","v":""},null,{"$f":"IF(ISERROR($V2191),\"\",OFFSET('Smelter Look-up'!$D$4,$V2191-4,0)&\"\")","v":""},{"$f":"IF(ISERROR($V2191),\"\",OFFSET('Smelter Look-up'!$E$4,$V2191-4,0))","v":""},{"$f":"IF(C2191=$X$4,\"Enter smelter details\", IF(ISERROR($V2191),\"\",OFFSET('Smelter Look-up'!$F$4,$V2191-4,0)))","v":""},{"$f":"IF(ISERROR($V2191),\"\",OFFSET('Smelter Look-up'!$G$4,$V2191-4,0))","v":""},{"$f":"IF(ISERROR($V2191),\"\",OFFSET('Smelter Look-up'!$H$4,$V2191-4,0))","v":""},{"$f":"IF(ISERROR($V2191),\"\",OFFSET('Smelter Look-up'!$I$4,$V2191-4,0))","v":""},{"$nulls":7},{"$f":"IF(ISERROR($V2191),\"\",OFFSET('Smelter Look-up'!$C$4,$V2191-4,0)&\"\")","v":""},"",{"$f":"IF(B2191=\"\",\"\",IF(ISERROR(MATCH($J2191,SorP!$B$1:$B$6230,0)),\"\",INDIRECT(\"'SorP'!$A$\"&MATCH($J2191,SorP!$B$1:$B$6230,0))))","v":""},null,{"$f":"IF(C2191=\"\",NA(),MATCH($B2191&$C2191,'Smelter Look-up'!$J:$J,0))","v":{"$error":"#N/A"}},null,0,null,null,null,""]
[null,{"$f":"IF(LEN(A2192)=0,\"\",INDEX('Smelter Look-up'!$A:$A,MATCH($A2192,'Smelter Look-up'!$E:$E,0)))","v":""},{"$f":"IF(LEN(A2192)=0,\"\",INDEX('Smelter Look-up'!$C:$C,MATCH($A2192,'Smelter Look-up'!$E:$E,0)))","v":""},null,{"$f":"IF(ISERROR($V2192),\"\",OFFSET('Smelter Look-up'!$D$4,$V2192-4,0)&\"\")","v":""},{"$f":"IF(ISERROR($V2192),\"\",OFFSET('Smelter Look-up'!$E$4,$V2192-4,0))","v":""},{"$f":"IF(C2192=$X$4,\"Enter smelter details\", IF(ISERROR($V2192),\"\",OFFSET('Smelter Look-up'!$F$4,$V2192-4,0)))","v":""},{"$f":"IF(ISERROR($V2192),\"\",OFFSET('Smelter Look-up'!$G$4,$V2192-4,0))","v":""},{"$f":"IF(ISERROR($V2192),\"\",OFFSET('Smelter Look-up'!$H$4,$V2192-4,0))","v":""},{"$f":"IF(ISERROR($V2192),\"\",OFFSET('Smelter Look-up'!$I$4,$V2192-4,0))","v":""},{"$nulls":7},{"$f":"IF(ISERROR($V2192),\"\",OFFSET('Smelter Look-up'!$C$4,$V2192-4,0)&\"\")","v":""},"",{"$f":"IF(B2192=\"\",\"\",IF(ISERROR(MATCH($J2192,SorP!$B$1:$B$6230,0)),\"\",INDIRECT(\"'SorP'!$A$\"&MATCH($J2192,SorP!$B$1:$B$6230,0))))","v":""},null,{"$f":"IF(C2192=\"\",NA(),MATCH($B2192&$C2192,'Smelter Look-up'!$J:$J,0))","v":{"$error":"#N/A"}},null,0,null,null,null,""]
[null,{"$f":"IF(LEN(A2193)=0,\"\",INDEX('Smelter Look-up'!$A:$A,MATCH($A2193,'Smelter Look-up'!$E:$E,0)))","v":""},{"$f":"IF(LEN(A2193)=0,\"\",INDEX('Smelter Look-up'!$C:$C,MATCH($A2193,'Smelter Look-up'!$E:$E,0)))","v":""},null,{"$f":"IF(ISERROR($V2193),\"\",OFFSET('Smelter Look-up'!$D$4,$V2193-4,0)&\"\")","v":""},{"$f":"IF(ISERROR($V2193),\"\",OFFSET('Smelter Look-up'!$E$4,$V2193-4,0))","v":""},{"$f":"IF(C2193=$X$4,\"Enter smelter details\", IF(ISERROR($V2193),\"\",OFFSET('Smelter Look-up'!$F$4,$V2193-4,0)))","v":""},{"$f":"IF(ISERROR($V2193),\"\",OFFSET('Smelter Look-up'!$G$4,$V2193-4,0))","v":""},{"$f":"IF(ISERROR($V2193),\"\",OFFSET('Smelter Look-up'!$H$4,$V2193-4,0))","v":""},{"$f":"IF(ISERROR($V2193),\"\",OFFSET('Smelter Look-up'!$I$4,$V2193-4,0))","v":""},{"$nulls":7},{"$f":"IF(ISERROR($V2193),\"\",OFFSET('Smelter Look-up'!$C$4,$V2193-4,0)&\"\")","v":""},"",{"$f":"IF(B2193=\"\",\"\",IF(ISERROR(MATCH($J2193,SorP!$B$1:$B$6230,0)),\"\",INDIRECT(\"'SorP'!$A$\"&MATCH($J2193,SorP!$B$1:$B$6230,0))))","v":""},null,{"$f":"IF(C2193=\"\",NA(),MATCH($B2193&$C2193,'Smelter Look-up'!$J:$J,0))","v":{"$error":"#N/A"}},null,0,null,null,null,""]
[null,{"$f":"IF(LEN(A2194)=0,\"\",INDEX('Smelter Look-up'!$A:$A,MATCH($A2194,'Smelter Look-up'!$E:$E,0)))","v":""},{"$f":"IF(LEN(A2194)=0,\"\",INDEX('Smelter Look-up'!$C:$C,MATCH($A2194,'Smelter Look-up'!$E:$E,0)))","v":""},null,{"$f":"IF(ISERROR($V2194),\"\",OFFSET('Smelter Look-up'!$D$4,$V2194-4,0)&\"\")","v":""},{"$f":"IF(ISERROR($V2194),\"\",OFFSET('Smelter Look-up'!$E$4,$V2194-4,0))","v":""},{"$f":"IF(C2194=$X$4,\"Enter smelter details\", IF(ISERROR($V2194),\"\",OFFSET('Smelter Look-up'!$F$4,$V2194-4,0)))","v":""},{"$f":"IF(ISERROR($V2194),\"\",OFFSET('Smelter Look-up'!$G$4,$V2194-4,0))","v":""},{"$f":"IF(ISERROR($V2194),\"\",OFFSET('Smelter Look-up'!$H$4,$V2194-4,0))","v":""},{"$f":"IF(ISERROR($V2194),\"\",OFFSET('Smelter Look-up'!$I$4,$V2194-4,0))","v":""},{"$nulls":7},{"$f":"IF(ISERROR($V2194),\"\",OFFSET('Smelter Look-up'!$C$4,$V2194-4,0)&\"\")","v":""},"",{"$f":"IF(B2194=\"\",\"\",IF(ISERROR(MATCH($J2194,SorP!$B$1:$B$6230,0)),\"\",INDIRECT(\"'SorP'!$A$\"&MATCH($J2194,SorP!$B$1:$B$6230,0))))","v":""},null,{"$f":"IF(C2194=\"\",NA(),MATCH($B2194&$C2194,'Smelter Look-up'!$J:$J,0))","v":{"$error":"#N/A"}},null,0,null,null,null,""]
[null,{"$f":"IF(LEN(A2195)=0,\"\",INDEX('Smelter Look-up'!$A:$A,MATCH($A2195,'Smelter Look-up'!$E:$E,0)))","v":""},{"$f":"IF(LEN(A2195)=0,\"\",INDEX('Smelter Look-up'!$C:$C,MATCH($A2195,'Smelter Look-up'!$E:$E,0)))","v":""},null,{"$f":"IF(ISERROR($V2195),\"\",OFFSET('Smelter Look-up'!$D$4,$V2195-4,0)&\"\")","v":""},{"$f":"IF(ISERROR($V2195),\"\",OFFSET('Smelter Look-up'!$E$4,$V2195-4,0))","v":""},{"$f":"IF(C2195=$X$4,\"Enter smelter details\", IF(ISERROR($V2195),\"\",OFFSET('Smelter Look-up'!$F$4,$V2195-4,0)))","v":""},{"$f":"IF(ISERROR($V2195),\"\",OFFSET('Smelter Look-up'!$G$4,$V2195-4,0))","v":""},{"$f":"IF(ISERROR($V2195),\"\",OFFSET('Smelter Look-up'!$H$4,$V2195-4,0))","v":""},{"$f":"IF(ISERROR($V2195),\"\",OFFSET('Smelter Look-up'!$I$4,$V2195-4,0))","v":""},{"$nulls":7},{"$f":"IF(ISERROR($V2195),\"\",OFFSET('Smelter Look-up'!$C$4,$V2195-4,0)&\"\")","v":""},"",{"$f":"IF(B2195=\"\",\"\",IF(ISERROR(MATCH($J2195,SorP!$B$1:$B$6230,0)),\"\",INDIRECT(\"'SorP'!$A$\"&MATCH($J2195,SorP!$B$1:$B$6230,0))))","v":""},null,{"$f":"IF(C2195=\"\",NA(),MATCH($B2195&$C2195,'Smelter Look-up'!$J:$J,0))","v":{"$error":"#N/A"}},null,0,null,null,null,""]
[null,{"$f":"IF(LEN(A2196)=0,\"\",INDEX('Smelter Look-up'!$A:$A,MATCH($A2196,'Smelter Look-up'!$E:$E,0)))","v":""},{"$f":"IF(LEN(A2196)=0,\"\",INDEX('Smelter Look-up'!$C:$C,MATCH($A2196,'Smelter Look-up'!$E:$E,0)))","v":""},null,{"$f":"IF(ISERROR($V2196),\"\",OFFSET('Smelter Look-up'!$D$4,$V2196-4,0)&\"\")","v":""},{"$f":"IF(ISERROR($V2196),\"\",OFFSET('Smelter Look-up'!$E$4,$V2196-4,0))","v":""},{"$f":"IF(C2196=$X$4,\"Enter smelter details\", IF(ISERROR($V2196),\"\",OFFSET('Smelter Look-up'!$F$4,$V2196-4,0)))","v":""},{"$f":"IF(ISERROR($V2196),\"\",OFFSET('Smelter Look-up'!$G$4,$V2196-4,0))","v":""},{"$f":"IF(ISERROR($V2196),\"\",OFFSET('Smelter Look-up'!$H$4,$V2196-4,0))","v":""},{"$f":"IF(ISERROR($V2196),\"\",OFFSET('Smelter Look-up'!$I$4,$V2196-4,0))","v":""},{"$nulls":7},{"$f":"IF(ISERROR($V2196),\"\",OFFSET('Smelter Look-up'!$C$4,$V2196-4,0)&\"\")","v":""},"",{"$f":"IF(B2196=\"\",\"\",IF(ISERROR(MATCH($J2196,SorP!$B$1:$B$6230,0)),\"\",INDIRECT(\"'SorP'!$A$\"&MATCH($J2196,SorP!$B$1:$B$6230,0))))","v":""},null,{"$f":"IF(C2196=\"\",NA(),MATCH($B2196&$C2196,'Smelter Look-up'!$J:$J,0))","v":{"$error":"#N/A"}},null,0,null,null,null,""]
[null,{"$f":"IF(LEN(A2197)=0,\"\",INDEX('Smelter Look-up'!$A:$A,MATCH($A2197,'Smelter Look-up'!$E:$E,0)))","v":""},{"$f":"IF(LEN(A2197)=0,\"\",INDEX('Smelter Look-up'!$C:$C,MATCH($A2197,'Smelter Look-up'!$E:$E,0)))","v":""},null,{"$f":"IF(ISERROR($V2197),\"\",OFFSET('Smelter Look-up'!$D$4,$V2197-4,0)&\"\")","v":""},{"$f":"IF(ISERROR($V2197),\"\",OFFSET('Smelter Look-up'!$E$4,$V2197-4,0))","v":""},{"$f":"IF(C2197=$X$4,\"Enter smelter details\", IF(ISERROR($V2197),\"\",OFFSET('Smelter Look-up'!$F$4,$V2197-4,0)))","v":""},{"$f":"IF(ISERROR($V2197),\"\",OFFSET('Smelter Look-up'!$G$4,$V2197-4,0))","v":""},{"$f":"IF(ISERROR($V2197),\"\",OFFSET('Smelter Look-up'!$H$4,$V2197-4,0))","v":""},{"$f":"IF(ISERROR($V2197),\"\",OFFSET('Smelter Look-up'!$I$4,$V2197-4,0))","v":""},{"$nulls":7},{"$f":"IF(ISERROR($V2197),\"\",OFFSET('Smelter Look-up'!$C$4,$V2197-4,0)&\"\")","v":""},"",{"$f":"IF(B2197=\"\",\"\",IF(ISERROR(MATCH($J2197,SorP!$B$1:$B$6230,0)),\"\",INDIRECT(\"'SorP'!$A$\"&MATCH($J2197,SorP!$B$1:$B$6230,0))))","v":""},null,{"$f":"IF(C2197=\"\",NA(),MATCH($B2197&$C2197,'Smelter Look-up'!$J:$J,0))","v":{"$error":"#N/A"}},null,0,null,null,null,""]
[null,{"$f":"IF(LEN(A2198)=0,\"\",INDEX('Smelter Look-up'!$A:$A,MATCH($A2198,'Smelter Look-up'!$E:$E,0)))","v":""},{"$f":"IF(LEN(A2198)=0,\"\",INDEX('Smelter Look-up'!$C:$C,MATCH($A2198,'Smelter Look-up'!$E:$E,0)))","v":""},null,{"$f":"IF(ISERROR($V2198),\"\",OFFSET('Smelter Look-up'!$D$4,$V2198-4,0)&\"\")","v":""},{"$f":"IF(ISERROR($V2198),\"\",OFFSET('Smelter Look-up'!$E$4,$V2198-4,0))","v":""},{"$f":"IF(C2198=$X$4,\"Enter smelter details\", IF(ISERROR($V2198),\"\",OFFSET('Smelter Look-up'!$F$4,$V2198-4,0)))","v":""},{"$f":"IF(ISERROR($V2198),\"\",OFFSET('Smelter Look-up'!$G$4,$V2198-4,0))","v":""},{"$f":"IF(ISERROR($V2198),\"\",OFFSET('Smelter Look-up'!$H$4,$V2198-4,0))","v":""},{"$f":"IF(ISERROR($V2198),\"\",OFFSET('Smelter Look-up'!$I$4,$V2198-4,0))","v":""},{"$nulls":7},{"$f":"IF(ISERROR($V2198),\"\",OFFSET('Smelter Look-up'!$C$4,$V2198-4,0)&\"\")","v":""},"",{"$f":"IF(B2198=\"\",\"\",IF(ISERROR(MATCH($J2198,SorP!$B$1:$B$6230,0)),\"\",INDIRECT(\"'SorP'!$A$\"&MATCH($J2198,SorP!$B$1:$B$6230,0))))","v":""},null,{"$f":"IF(C2198=\"\",NA(),MATCH($B2198&$C2198,'Smelter Look-up'!$J:$J,0))","v":{"$error":"#N/A"}},null,0,null,null,null,""]
[null,{"$f":"IF(LEN(A2199)=0,\"\",INDEX('Smelter Look-up'!$A:$A,MATCH($A2199,'Smelter Look-up'!$E:$E,0)))","v":""},{"$f":"IF(LEN(A2199)=0,\"\",INDEX('Smelter Look-up'!$C:$C,MATCH($A2199,'Smelter Look-up'!$E:$E,0)))","v":""},null,{"$f":"IF(ISERROR($V2199),\"\",OFFSET('Smelter Look-up'!$D$4,$V2199-4,0)&\"\")","v":""},{"$f":"IF(ISERROR($V2199),\"\",OFFSET('Smelter Look-up'!$E$4,$V2199-4,0))","v":""},{"$f":"IF(C2199=$X$4,\"Enter smelter details\", IF(ISERROR($V2199),\"\",OFFSET('Smelter Look-up'!$F$4,$V2199-4,0)))","v":""},{"$f":"IF(ISERROR($V2199),\"\",OFFSET('Smelter Look-up'!$G$4,$V2199-4,0))","v":""},{"$f":"IF(ISERROR($V2199),\"\",OFFSET('Smelter Look-up'!$H$4,$V2199-4,0))","v":""},{"$f":"IF(ISERROR($V2199),\"\",OFFSET('Smelter Look-up'!$I$4,$V2199-4,0))","v":""},{"$nulls":7},{"$f":"IF(ISERROR($V2199),\"\",OFFSET('Smelter Look-up'!$C$4,$V2199-4,0)&\"\")","v":""},"",{"$f":"IF(B2199=\"\",\"\",IF(ISERROR(MATCH($J2199,SorP!$B$1:$B$6230,0)),\"\",INDIRECT(\"'SorP'!$A$\"&MATCH($J2199,SorP!$B$1:$B$6230,0))))","v":""},null,{"$f":"IF(C2199=\"\",NA(),MATCH($B2199&$C2199,'Smelter Look-up'!$J:$J,0))","v":{"$error":"#N/A"}},null,0,null,null,null,""]
[null,{"$f":"IF(LEN(A2200)=0,\"\",INDEX('Smelter Look-up'!$A:$A,MATCH($A2200,'Smelter Look-up'!$E:$E,0)))","v":""},{"$f":"IF(LEN(A2200)=0,\"\",INDEX('Smelter Look-up'!$C:$C,MATCH($A2200,'Smelter Look-up'!$E:$E,0)))","v":""},null,{"$f":"IF(ISERROR($V2200),\"\",OFFSET('Smelter Look-up'!$D$4,$V2200-4,0)&\"\")","v":""},{"$f":"IF(ISERROR($V2200),\"\",OFFSET('Smelter Look-up'!$E$4,$V2200-4,0))","v":""},{"$f":"IF(C2200=$X$4,\"Enter smelter details\", IF(ISERROR($V2200),\"\",OFFSET('Smelter Look-up'!$F$4,$V2200-4,0)))","v":""},{"$f":"IF(ISERROR($V2200),\"\",OFFSET('Smelter Look-up'!$G$4,$V2200-4,0))","v":""},{"$f":"IF(ISERROR($V2200),\"\",OFFSET('Smelter Look-up'!$H$4,$V2200-4,0))","v":""},{"$f":"IF(ISERROR($V2200),\"\",OFFSET('Smelter Look-up'!$I$4,$V2200-4,0))","v":""},{"$nulls":7},{"$f":"IF(ISERROR($V2200),\"\",OFFSET('Smelter Look-up'!$C$4,$V2200-4,0)&\"\")","v":""},"",{"$f":"IF(B2200=\"\",\"\",IF(ISERROR(MATCH($J2200,SorP!$B$1:$B$6230,0)),\"\",INDIRECT(\"'SorP'!$A$\"&MATCH($J2200,SorP!$B$1:$B$6230,0))))","v":""},null,{"$f":"IF(C2200=\"\",NA(),MATCH($B2200&$C2200,'Smelter Look-up'!$J:$J,0))","v":{"$error":"#N/A"}},null,0,null,null,null,""]
[null,{"$f":"IF(LEN(A2201)=0,\"\",INDEX('Smelter Look-up'!$A:$A,MATCH($A2201,'Smelter Look-up'!$E:$E,0)))","v":""},{"$f":"IF(LEN(A2201)=0,\"\",INDEX('Smelter Look-up'!$C:$C,MATCH($A2201,'Smelter Look-up'!$E:$E,0)))","v":""},null,{"$f":"IF(ISERROR($V2201),\"\",OFFSET('Smelter Look-up'!$D$4,$V2201-4,0)&\"\")","v":""},{"$f":"IF(ISERROR($V2201),\"\",OFFSET('Smelter Look-up'!$E$4,$V2201-4,0))","v":""},{"$f":"IF(C2201=$X$4,\"Enter smelter details\", IF(ISERROR($V2201),\"\",OFFSET('Smelter Look-up'!$F$4,$V2201-4,0)))","v":""},{"$f":"IF(ISERROR($V2201),\"\",OFFSET('Smelter Look-up'!$G$4,$V2201-4,0))","v":""},{"$f":"IF(ISERROR($V2201),\"\",OFFSET('Smelter Look-up'!$H$4,$V2201-4,0))","v":""},{"$f":"IF(ISERROR($V2201),\"\",OFFSET('Smelter Look-up'!$I$4,$V2201-4,0))","v":""},{"$nulls":7},{"$f":"IF(ISERROR($V2201),\"\",OFFSET('Smelter Look-up'!$C$4,$V2201-4,0)&\"\")","v":""},"",{"$f":"IF(B2201=\"\",\"\",IF(ISERROR(MATCH($J2201,SorP!$B$1:$B$6230,0)),\"\",INDIRECT(\"'SorP'!$A$\"&MATCH($J2201,SorP!$B$1:$B$6230,0))))","v":""},null,{"$f":"IF(C2201=\"\",NA(),MATCH($B2201&$C2201,'Smelter Look-up'!$J:$J,0))","v":{"$error":"#N/A"}},null,0,null,null,null,""]
[null,{"$f":"IF(LEN(A2202)=0,\"\",INDEX('Smelter Look-up'!$A:$A,MATCH($A2202,'Smelter Look-up'!$E:$E,0)))","v":""},{"$f":"IF(LEN(A2202)=0,\"\",INDEX('Smelter Look-up'!$C:$C,MATCH($A2202,'Smelter Look-up'!$E:$E,0)))","v":""},null,{"$f":"IF(ISERROR($V2202),\"\",OFFSET('Smelter Look-up'!$D$4,$V2202-4,0)&\"\")","v":""},{"$f":"IF(ISERROR($V2202),\"\",OFFSET('Smelter Look-up'!$E$4,$V2202-4,0))","v":""},{"$f":"IF(C2202=$X$4,\"Enter smelter details\", IF(ISERROR($V2202),\"\",OFFSET('Smelter Look-up'!$F$4,$V2202-4,0)))","v":""},{"$f":"IF(ISERROR($V2202),\"\",OFFSET('Smelter Look-up'!$G$4,$V2202-4,0))","v":""},{"$f":"IF(ISERROR($V2202),\"\",OFFSET('Smelter Look-up'!$H$4,$V2202-4,0))","v":""},{"$f":"IF(ISERROR($V2202),\"\",OFFSET('Smelter Look-up'!$I$4,$V2202-4,0))","v":""},{"$nulls":7},{"$f":"IF(ISERROR($V2202),\"\",OFFSET('Smelter Look-up'!$C$4,$V2202-4,0)&\"\")","v":""},"",{"$f":"IF(B2202=\"\",\"\",IF(ISERROR(MATCH($J2202,SorP!$B$1:$B$6230,0)),\"\",INDIRECT(\"'SorP'!$A$\"&MATCH($J2202,SorP!$B$1:$B$6230,0))))","v":""},null,{"$f":"IF(C2202=\"\",NA(),MATCH($B2202&$C2202,'Smelter Look-up'!$J:$J,0))","v":{"$error":"#N/A"}},null,0,null,null,null,""]
[null,{"$f":"IF(LEN(A2203)=0,\"\",INDEX('Smelter Look-up'!$A:$A,MATCH($A2203,'Smelter Look-up'!$E:$E,0)))","v":""},{"$f":"IF(LEN(A2203)=0,\"\",INDEX('Smelter Look-up'!$C:$C,MATCH($A2203,'Smelter Look-up'!$E:$E,0)))","v":""},null,{"$f":"IF(ISERROR($V2203),\"\",OFFSET('Smelter Look-up'!$D$4,$V2203-4,0)&\"\")","v":""},{"$f":"IF(ISERROR($V2203),\"\",OFFSET('Smelter Look-up'!$E$4,$V2203-4,0))","v":""},{"$f":"IF(C2203=$X$4,\"Enter smelter details\", IF(ISERROR($V2203),\"\",OFFSET('Smelter Look-up'!$F$4,$V2203-4,0)))","v":""},{"$f":"IF(ISERROR($V2203),\"\",OFFSET('Smelter Look-up'!$G$4,$V2203-4,0))","v":""},{"$f":"IF(ISERROR($V2203),\"\",OFFSET('Smelter Look-up'!$H$4,$V2203-4,0))","v":""},{"$f":"IF(ISERROR($V2203),\"\",OFFSET('Smelter Look-up'!$I$4,$V2203-4,0))","v":""},{"$nulls":7},{"$f":"IF(ISERROR($V2203),\"\",OFFSET('Smelter Look-up'!$C$4,$V2203-4,0)&\"\")","v":""},"",{"$f":"IF(B2203=\"\",\"\",IF(ISERROR(MATCH($J2203,SorP!$B$1:$B$6230,0)),\"\",INDIRECT(\"'SorP'!$A$\"&MATCH($J2203,SorP!$B$1:$B$6230,0))))","v":""},null,{"$f":"IF(C2203=\"\",NA(),MATCH($B2203&$C2203,'Smelter Look-up'!$J:$J,0))","v":{"$error":"#N/A"}},null,0,null,null,null,""]
[null,{"$f":"IF(LEN(A2204)=0,\"\",INDEX('Smelter Look-up'!$A:$A,MATCH($A2204,'Smelter Look-up'!$E:$E,0)))","v":""},{"$f":"IF(LEN(A2204)=0,\"\",INDEX('Smelter Look-up'!$C:$C,MATCH($A2204,'Smelter Look-up'!$E:$E,0)))","v":""},null,{"$f":"IF(ISERROR($V2204),\"\",OFFSET('Smelter Look-up'!$D$4,$V2204-4,0)&\"\")","v":""},{"$f":"IF(ISERROR($V2204),\"\",OFFSET('Smelter Look-up'!$E$4,$V2204-4,0))","v":""},{"$f":"IF(C2204=$X$4,\"Enter smelter details\", IF(ISERROR($V2204),\"\",OFFSET('Smelter Look-up'!$F$4,$V2204-4,0)))","v":""},{"$f":"IF(ISERROR($V2204),\"\",OFFSET('Smelter Look-up'!$G$4,$V2204-4,0))","v":""},{"$f":"IF(ISERROR($V2204),\"\",OFFSET('Smelter Look-up'!$H$4,$V2204-4,0))","v":""},{"$f":"IF(ISERROR($V2204),\"\",OFFSET('Smelter Look-up'!$I$4,$V2204-4,0))","v":""},{"$nulls":7},{"$f":"IF(ISERROR($V2204),\"\",OFFSET('Smelter Look-up'!$C$4,$V2204-4,0)&\"\")","v":""},"",{"$f":"IF(B2204=\"\",\"\",IF(ISERROR(MATCH($J2204,SorP!$B$1:$B$6230,0)),\"\",INDIRECT(\"'SorP'!$A$\"&MATCH($J2204,SorP!$B$1:$B$6230,0))))","v":""},null,{"$f":"IF(C2204=\"\",NA(),MATCH($B2204&$C2204,'Smelter Look-up'!$J:$J,0))","v":{"$error":"#N/A"}},null,0,null,null,null,""]
[null,{"$f":"IF(LEN(A2205)=0,\"\",INDEX('Smelter Look-up'!$A:$A,MATCH($A2205,'Smelter Look-up'!$E:$E,0)))","v":""},{"$f":"IF(LEN(A2205)=0,\"\",INDEX('Smelter Look-up'!$C:$C,MATCH($A2205,'Smelter Look-up'!$E:$E,0)))","v":""},null,{"$f":"IF(ISERROR($V2205),\"\",OFFSET('Smelter Look-up'!$D$4,$V2205-4,0)&\"\")","v":""},{"$f":"IF(ISERROR($V2205),\"\",OFFSET('Smelter Look-up'!$E$4,$V2205-4,0))","v":""},{"$f":"IF(C2205=$X$4,\"Enter smelter details\", IF(ISERROR($V2205),\"\",OFFSET('Smelter Look-up'!$F$4,$V2205-4,0)))","v":""},{"$f":"IF(ISERROR($V2205),\"\",OFFSET('Smelter Look-up'!$G$4,$V2205-4,0))","v":""},{"$f":"IF(ISERROR($V2205),\"\",OFFSET('Smelter Look-up'!$H$4,$V2205-4,0))","v":""},{"$f":"IF(ISERROR($V2205),\"\",OFFSET('Smelter Look-up'!$I$4,$V2205-4,0))","v":""},{"$nulls":7},{"$f":"IF(ISERROR($V2205),\"\",OFFSET('Smelter Look-up'!$C$4,$V2205-4,0)&\"\")","v":""},"",{"$f":"IF(B2205=\"\",\"\",IF(ISERROR(MATCH($J2205,SorP!$B$1:$B$6230,0)),\"\",INDIRECT(\"'SorP'!$A$\"&MATCH($J2205,SorP!$B$1:$B$6230,0))))","v":""},null,{"$f":"IF(C2205=\"\",NA(),MATCH($B2205&$C2205,'Smelter Look-up'!$J:$J,0))","v":{"$error":"#N/A"}},null,0,null,null,null,""]
[null,{"$f":"IF(LEN(A2206)=0,\"\",INDEX('Smelter Look-up'!$A:$A,MATCH($A2206,'Smelter Look-up'!$E:$E,0)))","v":""},{"$f":"IF(LEN(A2206)=0,\"\",INDEX('Smelter Look-up'!$C:$C,MATCH($A2206,'Smelter Look-up'!$E:$E,0)))","v":""},null,{"$f":"IF(ISERROR($V2206),\"\",OFFSET('Smelter Look-up'!$D$4,$V2206-4,0)&\"\")","v":""},{"$f":"IF(ISERROR($V2206),\"\",OFFSET('Smelter Look-up'!$E$4,$V2206-4,0))","v":""},{"$f":"IF(C2206=$X$4,\"Enter smelter details\", IF(ISERROR($V2206),\"\",OFFSET('Smelter Look-up'!$F$4,$V2206-4,0)))","v":""},{"$f":"IF(ISERROR($V2206),\"\",OFFSET('Smelter Look-up'!$G$4,$V2206-4,0))","v":""},{"$f":"IF(ISERROR($V2206),\"\",OFFSET('Smelter Look-up'!$H$4,$V2206-4,0))","v":""},{"$f":"IF(ISERROR($V2206),\"\",OFFSET('Smelter Look-up'!$I$4,$V2206-4,0))","v":""},{"$nulls":7},{"$f":"IF(ISERROR($V2206),\"\",OFFSET('Smelter Look-up'!$C$4,$V2206-4,0)&\"\")","v":""},"",{"$f":"IF(B2206=\"\",\"\",IF(ISERROR(MATCH($J2206,SorP!$B$1:$B$6230,0)),\"\",INDIRECT(\"'SorP'!$A$\"&MATCH($J2206,SorP!$B$1:$B$6230,0))))","v":""},null,{"$f":"IF(C2206=\"\",NA(),MATCH($B2206&$C2206,'Smelter Look-up'!$J:$J,0))","v":{"$error":"#N/A"}},null,0,null,null,null,""]
[null,{"$f":"IF(LEN(A2207)=0,\"\",INDEX('Smelter Look-up'!$A:$A,MATCH($A2207,'Smelter Look-up'!$E:$E,0)))","v":""},{"$f":"IF(LEN(A2207)=0,\"\",INDEX('Smelter Look-up'!$C:$C,MATCH($A2207,'Smelter Look-up'!$E:$E,0)))","v":""},null,{"$f":"IF(ISERROR($V2207),\"\",OFFSET('Smelter Look-up'!$D$4,$V2207-4,0)&\"\")","v":""},{"$f":"IF(ISERROR($V2207),\"\",OFFSET('Smelter Look-up'!$E$4,$V2207-4,0))","v":""},{"$f":"IF(C2207=$X$4,\"Enter smelter details\", IF(ISERROR($V2207),\"\",OFFSET('Smelter Look-up'!$F$4,$V2207-4,0)))","v":""},{"$f":"IF(ISERROR($V2207),\"\",OFFSET('Smelter Look-up'!$G$4,$V2207-4,0))","v":""},{"$f":"IF(ISERROR($V2207),\"\",OFFSET('Smelter Look-up'!$H$4,$V2207-4,0))","v":""},{"$f":"IF(ISERROR($V2207),\"\",OFFSET('Smelter Look-up'!$I$4,$V2207-4,0))","v":""},{"$nulls":7},{"$f":"IF(ISERROR($V2207),\"\",OFFSET('Smelter Look-up'!$C$4,$V2207-4,0)&\"\")","v":""},"",{"$f":"IF(B2207=\"\",\"\",IF(ISERROR(MATCH($J2207,SorP!$B$1:$B$6230,0)),\"\",INDIRECT(\"'SorP'!$A$\"&MATCH($J2207,SorP!$B$1:$B$6230,0))))","v":""},null,{"$f":"IF(C2207=\"\",NA(),MATCH($B2207&$C2207,'Smelter Look-up'!$J:$J,0))","v":{"$error":"#N/A"}},null,0,null,null,null,""]
[null,{"$f":"IF(LEN(A2208)=0,\"\",INDEX('Smelter Look-up'!$A:$A,MATCH($A2208,'Smelter Look-up'!$E:$E,0)))","v":""},{"$f":"IF(LEN(A2208)=0,\"\",INDEX('Smelter Look-up'!$C:$C,MATCH($A2208,'Smelter Look-up'!$E:$E,0)))","v":""},null,{"$f":"IF(ISERROR($V2208),\"\",OFFSET('Smelter Look-up'!$D$4,$V2208-4,0)&\"\")","v":""},{"$f":"IF(ISERROR($V2208),\"\",OFFSET('Smelter Look-up'!$E$4,$V2208-4,0))","v":""},{"$f":"IF(C2208=$X$4,\"Enter smelter details\", IF(ISERROR($V2208),\"\",OFFSET('Smelter Look-up'!$F$4,$V2208-4,0)))","v":""},{"$f":"IF(ISERROR($V2208),\"\",OFFSET('Smelter Look-up'!$G$4,$V2208-4,0))","v":""},{"$f":"IF(ISERROR($V2208),\"\",OFFSET('Smelter Look-up'!$H$4,$V2208-4,0))","v":""},{"$f":"IF(ISERROR($V2208),\"\",OFFSET('Smelter Look-up'!$I$4,$V2208-4,0))","v":""},{"$nulls":7},{"$f":"IF(ISERROR($V2208),\"\",OFFSET('Smelter Look-up'!$C$4,$V2208-4,0)&\"\")","v":""},"",{"$f":"IF(B2208=\"\",\"\",IF(ISERROR(MATCH($J2208,SorP!$B$1:$B$6230,0)),\"\",INDIRECT(\"'SorP'!$A$\"&MATCH($J2208,SorP!$B$1:$B$6230,0))))","v":""},null,{"$f":"IF(C2208=\"\",NA(),MATCH($B2208&$C2208,'Smelter Look-up'!$J:$J,0))","v":{"$error":"#N/A"}},null,0,null,null,null,""]
[null,{"$f":"IF(LEN(A2209)=0,\"\",INDEX('Smelter Look-up'!$A:$A,MATCH($A2209,'Smelter Look-up'!$E:$E,0)))","v":""},{"$f":"IF(LEN(A2209)=0,\"\",INDEX('Smelter Look-up'!$C:$C,MATCH($A2209,'Smelter Look-up'!$E:$E,0)))","v":""},null,{"$f":"IF(ISERROR($V2209),\"\",OFFSET('Smelter Look-up'!$D$4,$V2209-4,0)&\"\")","v":""},{"$f":"IF(ISERROR($V2209),\"\",OFFSET('Smelter Look-up'!$E$4,$V2209-4,0))","v":""},{"$f":"IF(C2209=$X$4,\"Enter smelter details\", IF(ISERROR($V2209),\"\",OFFSET('Smelter Look-up'!$F$4,$V2209-4,0)))","v":""},{"$f":"IF(ISERROR($V2209),\"\",OFFSET('Smelter Look-up'!$G$4,$V2209-4,0))","v":""},{"$f":"IF(ISERROR($V2209),\"\",OFFSET('Smelter Look-up'!$H$4,$V2209-4,0))","v":""},{"$f":"IF(ISERROR($V2209),\"\",OFFSET('Smelter Look-up'!$I$4,$V2209-4,0))","v":""},{"$nulls":7},{"$f":"IF(ISERROR($V2209),\"\",OFFSET('Smelter Look-up'!$C$4,$V2209-4,0)&\"\")","v":""},"",{"$f":"IF(B2209=\"\",\"\",IF(ISERROR(MATCH($J2209,SorP!$B$1:$B$6230,0)),\"\",INDIRECT(\"'SorP'!$A$\"&MATCH($J2209,SorP!$B$1:$B$6230,0))))","v":""},null,{"$f":"IF(C2209=\"\",NA(),MATCH($B2209&$C2209,'Smelter Look-up'!$J:$J,0))","v":{"$error":"#N/A"}},null,0,null,null,null,""]
[null,{"$f":"IF(LEN(A2210)=0,\"\",INDEX('Smelter Look-up'!$A:$A,MATCH($A2210,'Smelter Look-up'!$E:$E,0)))","v":""},{"$f":"IF(LEN(A2210)=0,\"\",INDEX('Smelter Look-up'!$C:$C,MATCH($A2210,'Smelter Look-up'!$E:$E,0)))","v":""},null,{"$f":"IF(ISERROR($V2210),\"\",OFFSET('Smelter Look-up'!$D$4,$V2210-4,0)&\"\")","v":""},{"$f":"IF(ISERROR($V2210),\"\",OFFSET('Smelter Look-up'!$E$4,$V2210-4,0))","v":""},{"$f":"IF(C2210=$X$4,\"Enter smelter details\", IF(ISERROR($V2210),\"\",OFFSET('Smelter Look-up'!$F$4,$V2210-4,0)))","v":""},{"$f":"IF(ISERROR($V2210),\"\",OFFSET('Smelter Look-up'!$G$4,$V2210-4,0))","v":""},{"$f":"IF(ISERROR($V2210),\"\",OFFSET('Smelter Look-up'!$H$4,$V2210-4,0))","v":""},{"$f":"IF(ISERROR($V2210),\"\",OFFSET('Smelter Look-up'!$I$4,$V2210-4,0))","v":""},{"$nulls":7},{"$f":"IF(ISERROR($V2210),\"\",OFFSET('Smelter Look-up'!$C$4,$V2210-4,0)&\"\")","v":""},"",{"$f":"IF(B2210=\"\",\"\",IF(ISERROR(MATCH($J2210,SorP!$B$1:$B$6230,0)),\"\",INDIRECT(\"'SorP'!$A$\"&MATCH($J2210,SorP!$B$1:$B$6230,0))))","v":""},null,{"$f":"IF(C2210=\"\",NA(),MATCH($B2210&$C2210,'Smelter Look-up'!$J:$J,0))","v":{"$error":"#N/A"}},null,0,null,null,null,""]
[null,{"$f":"IF(LEN(A2211)=0,\"\",INDEX('Smelter Look-up'!$A:$A,MATCH($A2211,'Smelter Look-up'!$E:$E,0)))","v":""},{"$f":"IF(LEN(A2211)=0,\"\",INDEX('Smelter Look-up'!$C:$C,MATCH($A2211,'Smelter Look-up'!$E:$E,0)))","v":""},null,{"$f":"IF(ISERROR($V2211),\"\",OFFSET('Smelter Look-up'!$D$4,$V2211-4,0)&\"\")","v":""},{"$f":"IF(ISERROR($V2211),\"\",OFFSET('Smelter Look-up'!$E$4,$V2211-4,0))","v":""},{"$f":"IF(C2211=$X$4,\"Enter smelter details\", IF(ISERROR($V2211),\"\",OFFSET('Smelter Look-up'!$F$4,$V2211-4,0)))","v":""},{"$f":"IF(ISERROR($V2211),\"\",OFFSET('Smelter Look-up'!$G$4,$V2211-4,0))","v":""},{"$f":"IF(ISERROR($V2211),\"\",OFFSET('Smelter Look-up'!$H$4,$V2211-4,0))","v":""},{"$f":"IF(ISERROR($V2211),\"\",OFFSET('Smelter Look-up'!$I$4,$V2211-4,0))","v":""},{"$nulls":7},{"$f":"IF(ISERROR($V2211),\"\",OFFSET('Smelter Look-up'!$C$4,$V2211-4,0)&\"\")","v":""},"",{"$f":"IF(B2211=\"\",\"\",IF(ISERROR(MATCH($J2211,SorP!$B$1:$B$6230,0)),\"\",INDIRECT(\"'SorP'!$A$\"&MATCH($J2211,SorP!$B$1:$B$6230,0))))","v":""},null,{"$f":"IF(C2211=\"\",NA(),MATCH($B2211&$C2211,'Smelter Look-up'!$J:$J,0))","v":{"$error":"#N/A"}},null,0,null,null,null,""]
[null,{"$f":"IF(LEN(A2212)=0,\"\",INDEX('Smelter Look-up'!$A:$A,MATCH($A2212,'Smelter Look-up'!$E:$E,0)))","v":""},{"$f":"IF(LEN(A2212)=0,\"\",INDEX('Smelter Look-up'!$C:$C,MATCH($A2212,'Smelter Look-up'!$E:$E,0)))","v":""},null,{"$f":"IF(ISERROR($V2212),\"\",OFFSET('Smelter Look-up'!$D$4,$V2212-4,0)&\"\")","v":""},{"$f":"IF(ISERROR($V2212),\"\",OFFSET('Smelter Look-up'!$E$4,$V2212-4,0))","v":""},{"$f":"IF(C2212=$X$4,\"Enter smelter details\", IF(ISERROR($V2212),\"\",OFFSET('Smelter Look-up'!$F$4,$V2212-4,0)))","v":""},{"$f":"IF(ISERROR($V2212),\"\",OFFSET('Smelter Look-up'!$G$4,$V2212-4,0))","v":""},{"$f":"IF(ISERROR($V2212),\"\",OFFSET('Smelter Look-up'!$H$4,$V2212-4,0))","v":""},{"$f":"IF(ISERROR($V2212),\"\",OFFSET('Smelter Look-up'!$I$4,$V2212-4,0))","v":""},{"$nulls":7},{"$f":"IF(ISERROR($V2212),\"\",OFFSET('Smelter Look-up'!$C$4,$V2212-4,0)&\"\")","v":""},"",{"$f":"IF(B2212=\"\",\"\",IF(ISERROR(MATCH($J2212,SorP!$B$1:$B$6230,0)),\"\",INDIRECT(\"'SorP'!$A$\"&MATCH($J2212,SorP!$B$1:$B$6230,0))))","v":""},null,{"$f":"IF(C2212=\"\",NA(),MATCH($B2212&$C2212,'Smelter Look-up'!$J:$J,0))","v":{"$error":"#N/A"}},null,0,null,null,null,""]
[null,{"$f":"IF(LEN(A2213)=0,\"\",INDEX('Smelter Look-up'!$A:$A,MATCH($A2213,'Smelter Look-up'!$E:$E,0)))","v":""},{"$f":"IF(LEN(A2213)=0,\"\",INDEX('Smelter Look-up'!$C:$C,MATCH($A2213,'Smelter Look-up'!$E:$E,0)))","v":""},null,{"$f":"IF(ISERROR($V2213),\"\",OFFSET('Smelter Look-up'!$D$4,$V2213-4,0)&\"\")","v":""},{"$f":"IF(ISERROR($V2213),\"\",OFFSET('Smelter Look-up'!$E$4,$V2213-4,0))","v":""},{"$f":"IF(C2213=$X$4,\"Enter smelter details\", IF(ISERROR($V2213),\"\",OFFSET('Smelter Look-up'!$F$4,$V2213-4,0)))","v":""},{"$f":"IF(ISERROR($V2213),\"\",OFFSET('Smelter Look-up'!$G$4,$V2213-4,0))","v":""},{"$f":"IF(ISERROR($V2213),\"\",OFFSET('Smelter Look-up'!$H$4,$V2213-4,0))","v":""},{"$f":"IF(ISERROR($V2213),\"\",OFFSET('Smelter Look-up'!$I$4,$V2213-4,0))","v":""},{"$nulls":7},{"$f":"IF(ISERROR($V2213),\"\",OFFSET('Smelter Look-up'!$C$4,$V2213-4,0)&\"\")","v":""},"",{"$f":"IF(B2213=\"\",\"\",IF(ISERROR(MATCH($J2213,SorP!$B$1:$B$6230,0)),\"\",INDIRECT(\"'SorP'!$A$\"&MATCH($J2213,SorP!$B$1:$B$6230,0))))","v":""},null,{"$f":"IF(C2213=\"\",NA(),MATCH($B2213&$C2213,'Smelter Look-up'!$J:$J,0))","v":{"$error":"#N/A"}},null,0,null,null,null,""]
[null,{"$f":"IF(LEN(A2214)=0,\"\",INDEX('Smelter Look-up'!$A:$A,MATCH($A2214,'Smelter Look-up'!$E:$E,0)))","v":""},{"$f":"IF(LEN(A2214)=0,\"\",INDEX('Smelter Look-up'!$C:$C,MATCH($A2214,'Smelter Look-up'!$E:$E,0)))","v":""},null,{"$f":"IF(ISERROR($V2214),\"\",OFFSET('Smelter Look-up'!$D$4,$V2214-4,0)&\"\")","v":""},{"$f":"IF(ISERROR($V2214),\"\",OFFSET('Smelter Look-up'!$E$4,$V2214-4,0))","v":""},{"$f":"IF(C2214=$X$4,\"Enter smelter details\", IF(ISERROR($V2214),\"\",OFFSET('Smelter Look-up'!$F$4,$V2214-4,0)))","v":""},{"$f":"IF(ISERROR($V2214),\"\",OFFSET('Smelter Look-up'!$G$4,$V2214-4,0))","v":""},{"$f":"IF(ISERROR($V2214),\"\",OFFSET('Smelter Look-up'!$H$4,$V2214-4,0))","v":""},{"$f":"IF(ISERROR($V2214),\"\",OFFSET('Smelter Look-up'!$I$4,$V2214-4,0))","v":""},{"$nulls":7},{"$f":"IF(ISERROR($V2214),\"\",OFFSET('Smelter Look-up'!$C$4,$V2214-4,0)&\"\")","v":""},"",{"$f":"IF(B2214=\"\",\"\",IF(ISERROR(MATCH($J2214,SorP!$B$1:$B$6230,0)),\"\",INDIRECT(\"'SorP'!$A$\"&MATCH($J2214,SorP!$B$1:$B$6230,0))))","v":""},null,{"$f":"IF(C2214=\"\",NA(),MATCH($B2214&$C2214,'Smelter Look-up'!$J:$J,0))","v":{"$error":"#N/A"}},null,0,null,null,null,""]
[null,{"$f":"IF(LEN(A2215)=0,\"\",INDEX('Smelter Look-up'!$A:$A,MATCH($A2215,'Smelter Look-up'!$E:$E,0)))","v":""},{"$f":"IF(LEN(A2215)=0,\"\",INDEX('Smelter Look-up'!$C:$C,MATCH($A2215,'Smelter Look-up'!$E:$E,0)))","v":""},null,{"$f":"IF(ISERROR($V2215),\"\",OFFSET('Smelter Look-up'!$D$4,$V2215-4,0)&\"\")","v":""},{"$f":"IF(ISERROR($V2215),\"\",OFFSET('Smelter Look-up'!$E$4,$V2215-4,0))","v":""},{"$f":"IF(C2215=$X$4,\"Enter smelter details\", IF(ISERROR($V2215),\"\",OFFSET('Smelter Look-up'!$F$4,$V2215-4,0)))","v":""},{"$f":"IF(ISERROR($V2215),\"\",OFFSET('Smelter Look-up'!$G$4,$V2215-4,0))","v":""},{"$f":"IF(ISERROR($V2215),\"\",OFFSET('Smelter Look-up'!$H$4,$V2215-4,0))","v":""},{"$f":"IF(ISERROR($V2215),\"\",OFFSET('Smelter Look-up'!$I$4,$V2215-4,0))","v":""},{"$nulls":7},{"$f":"IF(ISERROR($V2215),\"\",OFFSET('Smelter Look-up'!$C$4,$V2215-4,0)&\"\")","v":""},"",{"$f":"IF(B2215=\"\",\"\",IF(ISERROR(MATCH($J2215,SorP!$B$1:$B$6230,0)),\"\",INDIRECT(\"'SorP'!$A$\"&MATCH($J2215,SorP!$B$1:$B$6230,0))))","v":""},null,{"$f":"IF(C2215=\"\",NA(),MATCH($B2215&$C2215,'Smelter Look-up'!$J:$J,0))","v":{"$error":"#N/A"}},null,0,null,null,null,""]
[null,{"$f":"IF(LEN(A2216)=0,\"\",INDEX('Smelter Look-up'!$A:$A,MATCH($A2216,'Smelter Look-up'!$E:$E,0)))","v":""},{"$f":"IF(LEN(A2216)=0,\"\",INDEX('Smelter Look-up'!$C:$C,MATCH($A2216,'Smelter Look-up'!$E:$E,0)))","v":""},null,{"$f":"IF(ISERROR($V2216),\"\",OFFSET('Smelter Look-up'!$D$4,$V2216-4,0)&\"\")","v":""},{"$f":"IF(ISERROR($V2216),\"\",OFFSET('Smelter Look-up'!$E$4,$V2216-4,0))","v":""},{"$f":"IF(C2216=$X$4,\"Enter smelter details\", IF(ISERROR($V2216),\"\",OFFSET('Smelter Look-up'!$F$4,$V2216-4,0)))","v":""},{"$f":"IF(ISERROR($V2216),\"\",OFFSET('Smelter Look-up'!$G$4,$V2216-4,0))","v":""},{"$f":"IF(ISERROR($V2216),\"\",OFFSET('Smelter Look-up'!$H$4,$V2216-4,0))","v":""},{"$f":"IF(ISERROR($V2216),\"\",OFFSET('Smelter Look-up'!$I$4,$V2216-4,0))","v":""},{"$nulls":7},{"$f":"IF(ISERROR($V2216),\"\",OFFSET('Smelter Look-up'!$C$4,$V2216-4,0)&\"\")","v":""},"",{"$f":"IF(B2216=\"\",\"\",IF(ISERROR(MATCH($J2216,SorP!$B$1:$B$6230,0)),\"\",INDIRECT(\"'SorP'!$A$\"&MATCH($J2216,SorP!$B$1:$B$6230,0))))","v":""},null,{"$f":"IF(C2216=\"\",NA(),MATCH($B2216&$C2216,'Smelter Look-up'!$J:$J,0))","v":{"$error":"#N/A"}},null,0,null,null,null,""]
[null,{"$f":"IF(LEN(A2217)=0,\"\",INDEX('Smelter Look-up'!$A:$A,MATCH($A2217,'Smelter Look-up'!$E:$E,0)))","v":""},{"$f":"IF(LEN(A2217)=0,\"\",INDEX('Smelter Look-up'!$C:$C,MATCH($A2217,'Smelter Look-up'!$E:$E,0)))","v":""},null,{"$f":"IF(ISERROR($V2217),\"\",OFFSET('Smelter Look-up'!$D$4,$V2217-4,0)&\"\")","v":""},{"$f":"IF(ISERROR($V2217),\"\",OFFSET('Smelter Look-up'!$E$4,$V2217-4,0))","v":""},{"$f":"IF(C2217=$X$4,\"Enter smelter details\", IF(ISERROR($V2217),\"\",OFFSET('Smelter Look-up'!$F$4,$V2217-4,0)))","v":""},{"$f":"IF(ISERROR($V2217),\"\",OFFSET('Smelter Look-up'!$G$4,$V2217-4,0))","v":""},{"$f":"IF(ISERROR($V2217),\"\",OFFSET('Smelter Look-up'!$H$4,$V2217-4,0))","v":""},{"$f":"IF(ISERROR($V2217),\"\",OFFSET('Smelter Look-up'!$I$4,$V2217-4,0))","v":""},{"$nulls":7},{"$f":"IF(ISERROR($V2217),\"\",OFFSET('Smelter Look-up'!$C$4,$V2217-4,0)&\"\")","v":""},"",{"$f":"IF(B2217=\"\",\"\",IF(ISERROR(MATCH($J2217,SorP!$B$1:$B$6230,0)),\"\",INDIRECT(\"'SorP'!$A$\"&MATCH($J2217,SorP!$B$1:$B$6230,0))))","v":""},null,{"$f":"IF(C2217=\"\",NA(),MATCH($B2217&$C2217,'Smelter Look-up'!$J:$J,0))","v":{"$error":"#N/A"}},null,0,null,null,null,""]
[null,{"$f":"IF(LEN(A2218)=0,\"\",INDEX('Smelter Look-up'!$A:$A,MATCH($A2218,'Smelter Look-up'!$E:$E,0)))","v":""},{"$f":"IF(LEN(A2218)=0,\"\",INDEX('Smelter Look-up'!$C:$C,MATCH($A2218,'Smelter Look-up'!$E:$E,0)))","v":""},null,{"$f":"IF(ISERROR($V2218),\"\",OFFSET('Smelter Look-up'!$D$4,$V2218-4,0)&\"\")","v":""},{"$f":"IF(ISERROR($V2218),\"\",OFFSET('Smelter Look-up'!$E$4,$V2218-4,0))","v":""},{"$f":"IF(C2218=$X$4,\"Enter smelter details\", IF(ISERROR($V2218),\"\",OFFSET('Smelter Look-up'!$F$4,$V2218-4,0)))","v":""},{"$f":"IF(ISERROR($V2218),\"\",OFFSET('Smelter Look-up'!$G$4,$V2218-4,0))","v":""},{"$f":"IF(ISERROR($V2218),\"\",OFFSET('Smelter Look-up'!$H$4,$V2218-4,0))","v":""},{"$f":"IF(ISERROR($V2218),\"\",OFFSET('Smelter Look-up'!$I$4,$V2218-4,0))","v":""},{"$nulls":7},{"$f":"IF(ISERROR($V2218),\"\",OFFSET('Smelter Look-up'!$C$4,$V2218-4,0)&\"\")","v":""},"",{"$f":"IF(B2218=\"\",\"\",IF(ISERROR(MATCH($J2218,SorP!$B$1:$B$6230,0)),\"\",INDIRECT(\"'SorP'!$A$\"&MATCH($J2218,SorP!$B$1:$B$6230,0))))","v":""},null,{"$f":"IF(C2218=\"\",NA(),MATCH($B2218&$C2218,'Smelter Look-up'!$J:$J,0))","v":{"$error":"#N/A"}},null,0,null,null,null,""]
[null,{"$f":"IF(LEN(A2219)=0,\"\",INDEX('Smelter Look-up'!$A:$A,MATCH($A2219,'Smelter Look-up'!$E:$E,0)))","v":""},{"$f":"IF(LEN(A2219)=0,\"\",INDEX('Smelter Look-up'!$C:$C,MATCH($A2219,'Smelter Look-up'!$E:$E,0)))","v":""},null,{"$f":"IF(ISERROR($V2219),\"\",OFFSET('Smelter Look-up'!$D$4,$V2219-4,0)&\"\")","v":""},{"$f":"IF(ISERROR($V2219),\"\",OFFSET('Smelter Look-up'!$E$4,$V2219-4,0))","v":""},{"$f":"IF(C2219=$X$4,\"Enter smelter details\", IF(ISERROR($V2219),\"\",OFFSET('Smelter Look-up'!$F$4,$V2219-4,0)))","v":""},{"$f":"IF(ISERROR($V2219),\"\",OFFSET('Smelter Look-up'!$G$4,$V2219-4,0))","v":""},{"$f":"IF(ISERROR($V2219),\"\",OFFSET('Smelter Look-up'!$H$4,$V2219-4,0))","v":""},{"$f":"IF(ISERROR($V2219),\"\",OFFSET('Smelter Look-up'!$I$4,$V2219-4,0))","v":""},{"$nulls":7},{"$f":"IF(ISERROR($V2219),\"\",OFFSET('Smelter Look-up'!$C$4,$V2219-4,0)&\"\")","v":""},"",{"$f":"IF(B2219=\"\",\"\",IF(ISERROR(MATCH($J2219,SorP!$B$1:$B$6230,0)),\"\",INDIRECT(\"'SorP'!$A$\"&MATCH($J2219,SorP!$B$1:$B$6230,0))))","v":""},null,{"$f":"IF(C2219=\"\",NA(),MATCH($B2219&$C2219,'Smelter Look-up'!$J:$J,0))","v":{"$error":"#N/A"}},null,0,null,null,null,""]
[null,{"$f":"IF(LEN(A2220)=0,\"\",INDEX('Smelter Look-up'!$A:$A,MATCH($A2220,'Smelter Look-up'!$E:$E,0)))","v":""},{"$f":"IF(LEN(A2220)=0,\"\",INDEX('Smelter Look-up'!$C:$C,MATCH($A2220,'Smelter Look-up'!$E:$E,0)))","v":""},null,{"$f":"IF(ISERROR($V2220),\"\",OFFSET('Smelter Look-up'!$D$4,$V2220-4,0)&\"\")","v":""},{"$f":"IF(ISERROR($V2220),\"\",OFFSET('Smelter Look-up'!$E$4,$V2220-4,0))","v":""},{"$f":"IF(C2220=$X$4,\"Enter smelter details\", IF(ISERROR($V2220),\"\",OFFSET('Smelter Look-up'!$F$4,$V2220-4,0)))","v":""},{"$f":"IF(ISERROR($V2220),\"\",OFFSET('Smelter Look-up'!$G$4,$V2220-4,0))","v":""},{"$f":"IF(ISERROR($V2220),\"\",OFFSET('Smelter Look-up'!$H$4,$V2220-4,0))","v":""},{"$f":"IF(ISERROR($V2220),\"\",OFFSET('Smelter Look-up'!$I$4,$V2220-4,0))","v":""},{"$nulls":7},{"$f":"IF(ISERROR($V2220),\"\",OFFSET('Smelter Look-up'!$C$4,$V2220-4,0)&\"\")","v":""},"",{"$f":"IF(B2220=\"\",\"\",IF(ISERROR(MATCH($J2220,SorP!$B$1:$B$6230,0)),\"\",INDIRECT(\"'SorP'!$A$\"&MATCH($J2220,SorP!$B$1:$B$6230,0))))","v":""},null,{"$f":"IF(C2220=\"\",NA(),MATCH($B2220&$C2220,'Smelter Look-up'!$J:$J,0))","v":{"$error":"#N/A"}},null,0,null,null,null,""]
[null,{"$f":"IF(LEN(A2221)=0,\"\",INDEX('Smelter Look-up'!$A:$A,MATCH($A2221,'Smelter Look-up'!$E:$E,0)))","v":""},{"$f":"IF(LEN(A2221)=0,\"\",INDEX('Smelter Look-up'!$C:$C,MATCH($A2221,'Smelter Look-up'!$E:$E,0)))","v":""},null,{"$f":"IF(ISERROR($V2221),\"\",OFFSET('Smelter Look-up'!$D$4,$V2221-4,0)&\"\")","v":""},{"$f":"IF(ISERROR($V2221),\"\",OFFSET('Smelter Look-up'!$E$4,$V2221-4,0))","v":""},{"$f":"IF(C2221=$X$4,\"Enter smelter details\", IF(ISERROR($V2221),\"\",OFFSET('Smelter Look-up'!$F$4,$V2221-4,0)))","v":""},{"$f":"IF(ISERROR($V2221),\"\",OFFSET('Smelter Look-up'!$G$4,$V2221-4,0))","v":""},{"$f":"IF(ISERROR($V2221),\"\",OFFSET('Smelter Look-up'!$H$4,$V2221-4,0))","v":""},{"$f":"IF(ISERROR($V2221),\"\",OFFSET('Smelter Look-up'!$I$4,$V2221-4,0))","v":""},{"$nulls":7},{"$f":"IF(ISERROR($V2221),\"\",OFFSET('Smelter Look-up'!$C$4,$V2221-4,0)&\"\")","v":""},"",{"$f":"IF(B2221=\"\",\"\",IF(ISERROR(MATCH($J2221,SorP!$B$1:$B$6230,0)),\"\",INDIRECT(\"'SorP'!$A$\"&MATCH($J2221,SorP!$B$1:$B$6230,0))))","v":""},null,{"$f":"IF(C2221=\"\",NA(),MATCH($B2221&$C2221,'Smelter Look-up'!$J:$J,0))","v":{"$error":"#N/A"}},null,0,null,null,null,""]
[null,{"$f":"IF(LEN(A2222)=0,\"\",INDEX('Smelter Look-up'!$A:$A,MATCH($A2222,'Smelter Look-up'!$E:$E,0)))","v":""},{"$f":"IF(LEN(A2222)=0,\"\",INDEX('Smelter Look-up'!$C:$C,MATCH($A2222,'Smelter Look-up'!$E:$E,0)))","v":""},null,{"$f":"IF(ISERROR($V2222),\"\",OFFSET('Smelter Look-up'!$D$4,$V2222-4,0)&\"\")","v":""},{"$f":"IF(ISERROR($V2222),\"\",OFFSET('Smelter Look-up'!$E$4,$V2222-4,0))","v":""},{"$f":"IF(C2222=$X$4,\"Enter smelter details\", IF(ISERROR($V2222),\"\",OFFSET('Smelter Look-up'!$F$4,$V2222-4,0)))","v":""},{"$f":"IF(ISERROR($V2222),\"\",OFFSET('Smelter Look-up'!$G$4,$V2222-4,0))","v":""},{"$f":"IF(ISERROR($V2222),\"\",OFFSET('Smelter Look-up'!$H$4,$V2222-4,0))","v":""},{"$f":"IF(ISERROR($V2222),\"\",OFFSET('Smelter Look-up'!$I$4,$V2222-4,0))","v":""},{"$nulls":7},{"$f":"IF(ISERROR($V2222),\"\",OFFSET('Smelter Look-up'!$C$4,$V2222-4,0)&\"\")","v":""},"",{"$f":"IF(B2222=\"\",\"\",IF(ISERROR(MATCH($J2222,SorP!$B$1:$B$6230,0)),\"\",INDIRECT(\"'SorP'!$A$\"&MATCH($J2222,SorP!$B$1:$B$6230,0))))","v":""},null,{"$f":"IF(C2222=\"\",NA(),MATCH($B2222&$C2222,'Smelter Look-up'!$J:$J,0))","v":{"$error":"#N/A"}},null,0,null,null,null,""]
[null,{"$f":"IF(LEN(A2223)=0,\"\",INDEX('Smelter Look-up'!$A:$A,MATCH($A2223,'Smelter Look-up'!$E:$E,0)))","v":""},{"$f":"IF(LEN(A2223)=0,\"\",INDEX('Smelter Look-up'!$C:$C,MATCH($A2223,'Smelter Look-up'!$E:$E,0)))","v":""},null,{"$f":"IF(ISERROR($V2223),\"\",OFFSET('Smelter Look-up'!$D$4,$V2223-4,0)&\"\")","v":""},{"$f":"IF(ISERROR($V2223),\"\",OFFSET('Smelter Look-up'!$E$4,$V2223-4,0))","v":""},{"$f":"IF(C2223=$X$4,\"Enter smelter details\", IF(ISERROR($V2223),\"\",OFFSET('Smelter Look-up'!$F$4,$V2223-4,0)))","v":""},{"$f":"IF(ISERROR($V2223),\"\",OFFSET('Smelter Look-up'!$G$4,$V2223-4,0))","v":""},{"$f":"IF(ISERROR($V2223),\"\",OFFSET('Smelter Look-up'!$H$4,$V2223-4,0))","v":""},{"$f":"IF(ISERROR($V2223),\"\",OFFSET('Smelter Look-up'!$I$4,$V2223-4,0))","v":""},{"$nulls":7},{"$f":"IF(ISERROR($V2223),\"\",OFFSET('Smelter Look-up'!$C$4,$V2223-4,0)&\"\")","v":""},"",{"$f":"IF(B2223=\"\",\"\",IF(ISERROR(MATCH($J2223,SorP!$B$1:$B$6230,0)),\"\",INDIRECT(\"'SorP'!$A$\"&MATCH($J2223,SorP!$B$1:$B$6230,0))))","v":""},null,{"$f":"IF(C2223=\"\",NA(),MATCH($B2223&$C2223,'Smelter Look-up'!$J:$J,0))","v":{"$error":"#N/A"}},null,0,null,null,null,""]
[null,{"$f":"IF(LEN(A2224)=0,\"\",INDEX('Smelter Look-up'!$A:$A,MATCH($A2224,'Smelter Look-up'!$E:$E,0)))","v":""},{"$f":"IF(LEN(A2224)=0,\"\",INDEX('Smelter Look-up'!$C:$C,MATCH($A2224,'Smelter Look-up'!$E:$E,0)))","v":""},null,{"$f":"IF(ISERROR($V2224),\"\",OFFSET('Smelter Look-up'!$D$4,$V2224-4,0)&\"\")","v":""},{"$f":"IF(ISERROR($V2224),\"\",OFFSET('Smelter Look-up'!$E$4,$V2224-4,0))","v":""},{"$f":"IF(C2224=$X$4,\"Enter smelter details\", IF(ISERROR($V2224),\"\",OFFSET('Smelter Look-up'!$F$4,$V2224-4,0)))","v":""},{"$f":"IF(ISERROR($V2224),\"\",OFFSET('Smelter Look-up'!$G$4,$V2224-4,0))","v":""},{"$f":"IF(ISERROR($V2224),\"\",OFFSET('Smelter Look-up'!$H$4,$V2224-4,0))","v":""},{"$f":"IF(ISERROR($V2224),\"\",OFFSET('Smelter Look-up'!$I$4,$V2224-4,0))","v":""},{"$nulls":7},{"$f":"IF(ISERROR($V2224),\"\",OFFSET('Smelter Look-up'!$C$4,$V2224-4,0)&\"\")","v":""},"",{"$f":"IF(B2224=\"\",\"\",IF(ISERROR(MATCH($J2224,SorP!$B$1:$B$6230,0)),\"\",INDIRECT(\"'SorP'!$A$\"&MATCH($J2224,SorP!$B$1:$B$6230,0))))","v":""},null,{"$f":"IF(C2224=\"\",NA(),MATCH($B2224&$C2224,'Smelter Look-up'!$J:$J,0))","v":{"$error":"#N/A"}},null,0,null,null,null,""]
[null,{"$f":"IF(LEN(A2225)=0,\"\",INDEX('Smelter Look-up'!$A:$A,MATCH($A2225,'Smelter Look-up'!$E:$E,0)))","v":""},{"$f":"IF(LEN(A2225)=0,\"\",INDEX('Smelter Look-up'!$C:$C,MATCH($A2225,'Smelter Look-up'!$E:$E,0)))","v":""},null,{"$f":"IF(ISERROR($V2225),\"\",OFFSET('Smelter Look-up'!$D$4,$V2225-4,0)&\"\")","v":""},{"$f":"IF(ISERROR($V2225),\"\",OFFSET('Smelter Look-up'!$E$4,$V2225-4,0))","v":""},{"$f":"IF(C2225=$X$4,\"Enter smelter details\", IF(ISERROR($V2225),\"\",OFFSET('Smelter Look-up'!$F$4,$V2225-4,0)))","v":""},{"$f":"IF(ISERROR($V2225),\"\",OFFSET('Smelter Look-up'!$G$4,$V2225-4,0))","v":""},{"$f":"IF(ISERROR($V2225),\"\",OFFSET('Smelter Look-up'!$H$4,$V2225-4,0))","v":""},{"$f":"IF(ISERROR($V2225),\"\",OFFSET('Smelter Look-up'!$I$4,$V2225-4,0))","v":""},{"$nulls":7},{"$f":"IF(ISERROR($V2225),\"\",OFFSET('Smelter Look-up'!$C$4,$V2225-4,0)&\"\")","v":""},"",{"$f":"IF(B2225=\"\",\"\",IF(ISERROR(MATCH($J2225,SorP!$B$1:$B$6230,0)),\"\",INDIRECT(\"'SorP'!$A$\"&MATCH($J2225,SorP!$B$1:$B$6230,0))))","v":""},null,{"$f":"IF(C2225=\"\",NA(),MATCH($B2225&$C2225,'Smelter Look-up'!$J:$J,0))","v":{"$error":"#N/A"}},null,0,null,null,null,""]
[null,{"$f":"IF(LEN(A2226)=0,\"\",INDEX('Smelter Look-up'!$A:$A,MATCH($A2226,'Smelter Look-up'!$E:$E,0)))","v":""},{"$f":"IF(LEN(A2226)=0,\"\",INDEX('Smelter Look-up'!$C:$C,MATCH($A2226,'Smelter Look-up'!$E:$E,0)))","v":""},null,{"$f":"IF(ISERROR($V2226),\"\",OFFSET('Smelter Look-up'!$D$4,$V2226-4,0)&\"\")","v":""},{"$f":"IF(ISERROR($V2226),\"\",OFFSET('Smelter Look-up'!$E$4,$V2226-4,0))","v":""},{"$f":"IF(C2226=$X$4,\"Enter smelter details\", IF(ISERROR($V2226),\"\",OFFSET('Smelter Look-up'!$F$4,$V2226-4,0)))","v":""},{"$f":"IF(ISERROR($V2226),\"\",OFFSET('Smelter Look-up'!$G$4,$V2226-4,0))","v":""},{"$f":"IF(ISERROR($V2226),\"\",OFFSET('Smelter Look-up'!$H$4,$V2226-4,0))","v":""},{"$f":"IF(ISERROR($V2226),\"\",OFFSET('Smelter Look-up'!$I$4,$V2226-4,0))","v":""},{"$nulls":7},{"$f":"IF(ISERROR($V2226),\"\",OFFSET('Smelter Look-up'!$C$4,$V2226-4,0)&\"\")","v":""},"",{"$f":"IF(B2226=\"\",\"\",IF(ISERROR(MATCH($J2226,SorP!$B$1:$B$6230,0)),\"\",INDIRECT(\"'SorP'!$A$\"&MATCH($J2226,SorP!$B$1:$B$6230,0))))","v":""},null,{"$f":"IF(C2226=\"\",NA(),MATCH($B2226&$C2226,'Smelter Look-up'!$J:$J,0))","v":{"$error":"#N/A"}},null,0,null,null,null,""]
[null,{"$f":"IF(LEN(A2227)=0,\"\",INDEX('Smelter Look-up'!$A:$A,MATCH($A2227,'Smelter Look-up'!$E:$E,0)))","v":""},{"$f":"IF(LEN(A2227)=0,\"\",INDEX('Smelter Look-up'!$C:$C,MATCH($A2227,'Smelter Look-up'!$E:$E,0)))","v":""},null,{"$f":"IF(ISERROR($V2227),\"\",OFFSET('Smelter Look-up'!$D$4,$V2227-4,0)&\"\")","v":""},{"$f":"IF(ISERROR($V2227),\"\",OFFSET('Smelter Look-up'!$E$4,$V2227-4,0))","v":""},{"$f":"IF(C2227=$X$4,\"Enter smelter details\", IF(ISERROR($V2227),\"\",OFFSET('Smelter Look-up'!$F$4,$V2227-4,0)))","v":""},{"$f":"IF(ISERROR($V2227),\"\",OFFSET('Smelter Look-up'!$G$4,$V2227-4,0))","v":""},{"$f":"IF(ISERROR($V2227),\"\",OFFSET('Smelter Look-up'!$H$4,$V2227-4,0))","v":""},{"$f":"IF(ISERROR($V2227),\"\",OFFSET('Smelter Look-up'!$I$4,$V2227-4,0))","v":""},{"$nulls":7},{"$f":"IF(ISERROR($V2227),\"\",OFFSET('Smelter Look-up'!$C$4,$V2227-4,0)&\"\")","v":""},"",{"$f":"IF(B2227=\"\",\"\",IF(ISERROR(MATCH($J2227,SorP!$B$1:$B$6230,0)),\"\",INDIRECT(\"'SorP'!$A$\"&MATCH($J2227,SorP!$B$1:$B$6230,0))))","v":""},null,{"$f":"IF(C2227=\"\",NA(),MATCH($B2227&$C2227,'Smelter Look-up'!$J:$J,0))","v":{"$error":"#N/A"}},null,0,null,null,null,""]
[null,{"$f":"IF(LEN(A2228)=0,\"\",INDEX('Smelter Look-up'!$A:$A,MATCH($A2228,'Smelter Look-up'!$E:$E,0)))","v":""},{"$f":"IF(LEN(A2228)=0,\"\",INDEX('Smelter Look-up'!$C:$C,MATCH($A2228,'Smelter Look-up'!$E:$E,0)))","v":""},null,{"$f":"IF(ISERROR($V2228),\"\",OFFSET('Smelter Look-up'!$D$4,$V2228-4,0)&\"\")","v":""},{"$f":"IF(ISERROR($V2228),\"\",OFFSET('Smelter Look-up'!$E$4,$V2228-4,0))","v":""},{"$f":"IF(C2228=$X$4,\"Enter smelter details\", IF(ISERROR($V2228),\"\",OFFSET('Smelter Look-up'!$F$4,$V2228-4,0)))","v":""},{"$f":"IF(ISERROR($V2228),\"\",OFFSET('Smelter Look-up'!$G$4,$V2228-4,0))","v":""},{"$f":"IF(ISERROR($V2228),\"\",OFFSET('Smelter Look-up'!$H$4,$V2228-4,0))","v":""},{"$f":"IF(ISERROR($V2228),\"\",OFFSET('Smelter Look-up'!$I$4,$V2228-4,0))","v":""},{"$nulls":7},{"$f":"IF(ISERROR($V2228),\"\",OFFSET('Smelter Look-up'!$C$4,$V2228-4,0)&\"\")","v":""},"",{"$f":"IF(B2228=\"\",\"\",IF(ISERROR(MATCH($J2228,SorP!$B$1:$B$6230,0)),\"\",INDIRECT(\"'SorP'!$A$\"&MATCH($J2228,SorP!$B$1:$B$6230,0))))","v":""},null,{"$f":"IF(C2228=\"\",NA(),MATCH($B2228&$C2228,'Smelter Look-up'!$J:$J,0))","v":{"$error":"#N/A"}},null,0,null,null,null,""]
[null,{"$f":"IF(LEN(A2229)=0,\"\",INDEX('Smelter Look-up'!$A:$A,MATCH($A2229,'Smelter Look-up'!$E:$E,0)))","v":""},{"$f":"IF(LEN(A2229)=0,\"\",INDEX('Smelter Look-up'!$C:$C,MATCH($A2229,'Smelter Look-up'!$E:$E,0)))","v":""},null,{"$f":"IF(ISERROR($V2229),\"\",OFFSET('Smelter Look-up'!$D$4,$V2229-4,0)&\"\")","v":""},{"$f":"IF(ISERROR($V2229),\"\",OFFSET('Smelter Look-up'!$E$4,$V2229-4,0))","v":""},{"$f":"IF(C2229=$X$4,\"Enter smelter details\", IF(ISERROR($V2229),\"\",OFFSET('Smelter Look-up'!$F$4,$V2229-4,0)))","v":""},{"$f":"IF(ISERROR($V2229),\"\",OFFSET('Smelter Look-up'!$G$4,$V2229-4,0))","v":""},{"$f":"IF(ISERROR($V2229),\"\",OFFSET('Smelter Look-up'!$H$4,$V2229-4,0))","v":""},{"$f":"IF(ISERROR($V2229),\"\",OFFSET('Smelter Look-up'!$I$4,$V2229-4,0))","v":""},{"$nulls":7},{"$f":"IF(ISERROR($V2229),\"\",OFFSET('Smelter Look-up'!$C$4,$V2229-4,0)&\"\")","v":""},"",{"$f":"IF(B2229=\"\",\"\",IF(ISERROR(MATCH($J2229,SorP!$B$1:$B$6230,0)),\"\",INDIRECT(\"'SorP'!$A$\"&MATCH($J2229,SorP!$B$1:$B$6230,0))))","v":""},null,{"$f":"IF(C2229=\"\",NA(),MATCH($B2229&$C2229,'Smelter Look-up'!$J:$J,0))","v":{"$error":"#N/A"}},null,0,null,null,null,""]
[null,{"$f":"IF(LEN(A2230)=0,\"\",INDEX('Smelter Look-up'!$A:$A,MATCH($A2230,'Smelter Look-up'!$E:$E,0)))","v":""},{"$f":"IF(LEN(A2230)=0,\"\",INDEX('Smelter Look-up'!$C:$C,MATCH($A2230,'Smelter Look-up'!$E:$E,0)))","v":""},null,{"$f":"IF(ISERROR($V2230),\"\",OFFSET('Smelter Look-up'!$D$4,$V2230-4,0)&\"\")","v":""},{"$f":"IF(ISERROR($V2230),\"\",OFFSET('Smelter Look-up'!$E$4,$V2230-4,0))","v":""},{"$f":"IF(C2230=$X$4,\"Enter smelter details\", IF(ISERROR($V2230),\"\",OFFSET('Smelter Look-up'!$F$4,$V2230-4,0)))","v":""},{"$f":"IF(ISERROR($V2230),\"\",OFFSET('Smelter Look-up'!$G$4,$V2230-4,0))","v":""},{"$f":"IF(ISERROR($V2230),\"\",OFFSET('Smelter Look-up'!$H$4,$V2230-4,0))","v":""},{"$f":"IF(ISERROR($V2230),\"\",OFFSET('Smelter Look-up'!$I$4,$V2230-4,0))","v":""},{"$nulls":7},{"$f":"IF(ISERROR($V2230),\"\",OFFSET('Smelter Look-up'!$C$4,$V2230-4,0)&\"\")","v":""},"",{"$f":"IF(B2230=\"\",\"\",IF(ISERROR(MATCH($J2230,SorP!$B$1:$B$6230,0)),\"\",INDIRECT(\"'SorP'!$A$\"&MATCH($J2230,SorP!$B$1:$B$6230,0))))","v":""},null,{"$f":"IF(C2230=\"\",NA(),MATCH($B2230&$C2230,'Smelter Look-up'!$J:$J,0))","v":{"$error":"#N/A"}},null,0,null,null,null,""]
[null,{"$f":"IF(LEN(A2231)=0,\"\",INDEX('Smelter Look-up'!$A:$A,MATCH($A2231,'Smelter Look-up'!$E:$E,0)))","v":""},{"$f":"IF(LEN(A2231)=0,\"\",INDEX('Smelter Look-up'!$C:$C,MATCH($A2231,'Smelter Look-up'!$E:$E,0)))","v":""},null,{"$f":"IF(ISERROR($V2231),\"\",OFFSET('Smelter Look-up'!$D$4,$V2231-4,0)&\"\")","v":""},{"$f":"IF(ISERROR($V2231),\"\",OFFSET('Smelter Look-up'!$E$4,$V2231-4,0))","v":""},{"$f":"IF(C2231=$X$4,\"Enter smelter details\", IF(ISERROR($V2231),\"\",OFFSET('Smelter Look-up'!$F$4,$V2231-4,0)))","v":""},{"$f":"IF(ISERROR($V2231),\"\",OFFSET('Smelter Look-up'!$G$4,$V2231-4,0))","v":""},{"$f":"IF(ISERROR($V2231),\"\",OFFSET('Smelter Look-up'!$H$4,$V2231-4,0))","v":""},{"$f":"IF(ISERROR($V2231),\"\",OFFSET('Smelter Look-up'!$I$4,$V2231-4,0))","v":""},{"$nulls":7},{"$f":"IF(ISERROR($V2231),\"\",OFFSET('Smelter Look-up'!$C$4,$V2231-4,0)&\"\")","v":""},"",{"$f":"IF(B2231=\"\",\"\",IF(ISERROR(MATCH($J2231,SorP!$B$1:$B$6230,0)),\"\",INDIRECT(\"'SorP'!$A$\"&MATCH($J2231,SorP!$B$1:$B$6230,0))))","v":""},null,{"$f":"IF(C2231=\"\",NA(),MATCH($B2231&$C2231,'Smelter Look-up'!$J:$J,0))","v":{"$error":"#N/A"}},null,0,null,null,null,""]
[null,{"$f":"IF(LEN(A2232)=0,\"\",INDEX('Smelter Look-up'!$A:$A,MATCH($A2232,'Smelter Look-up'!$E:$E,0)))","v":""},{"$f":"IF(LEN(A2232)=0,\"\",INDEX('Smelter Look-up'!$C:$C,MATCH($A2232,'Smelter Look-up'!$E:$E,0)))","v":""},null,{"$f":"IF(ISERROR($V2232),\"\",OFFSET('Smelter Look-up'!$D$4,$V2232-4,0)&\"\")","v":""},{"$f":"IF(ISERROR($V2232),\"\",OFFSET('Smelter Look-up'!$E$4,$V2232-4,0))","v":""},{"$f":"IF(C2232=$X$4,\"Enter smelter details\", IF(ISERROR($V2232),\"\",OFFSET('Smelter Look-up'!$F$4,$V2232-4,0)))","v":""},{"$f":"IF(ISERROR($V2232),\"\",OFFSET('Smelter Look-up'!$G$4,$V2232-4,0))","v":""},{"$f":"IF(ISERROR($V2232),\"\",OFFSET('Smelter Look-up'!$H$4,$V2232-4,0))","v":""},{"$f":"IF(ISERROR($V2232),\"\",OFFSET('Smelter Look-up'!$I$4,$V2232-4,0))","v":""},{"$nulls":7},{"$f":"IF(ISERROR($V2232),\"\",OFFSET('Smelter Look-up'!$C$4,$V2232-4,0)&\"\")","v":""},"",{"$f":"IF(B2232=\"\",\"\",IF(ISERROR(MATCH($J2232,SorP!$B$1:$B$6230,0)),\"\",INDIRECT(\"'SorP'!$A$\"&MATCH($J2232,SorP!$B$1:$B$6230,0))))","v":""},null,{"$f":"IF(C2232=\"\",NA(),MATCH($B2232&$C2232,'Smelter Look-up'!$J:$J,0))","v":{"$error":"#N/A"}},null,0,null,null,null,""]
[null,{"$f":"IF(LEN(A2233)=0,\"\",INDEX('Smelter Look-up'!$A:$A,MATCH($A2233,'Smelter Look-up'!$E:$E,0)))","v":""},{"$f":"IF(LEN(A2233)=0,\"\",INDEX('Smelter Look-up'!$C:$C,MATCH($A2233,'Smelter Look-up'!$E:$E,0)))","v":""},null,{"$f":"IF(ISERROR($V2233),\"\",OFFSET('Smelter Look-up'!$D$4,$V2233-4,0)&\"\")","v":""},{"$f":"IF(ISERROR($V2233),\"\",OFFSET('Smelter Look-up'!$E$4,$V2233-4,0))","v":""},{"$f":"IF(C2233=$X$4,\"Enter smelter details\", IF(ISERROR($V2233),\"\",OFFSET('Smelter Look-up'!$F$4,$V2233-4,0)))","v":""},{"$f":"IF(ISERROR($V2233),\"\",OFFSET('Smelter Look-up'!$G$4,$V2233-4,0))","v":""},{"$f":"IF(ISERROR($V2233),\"\",OFFSET('Smelter Look-up'!$H$4,$V2233-4,0))","v":""},{"$f":"IF(ISERROR($V2233),\"\",OFFSET('Smelter Look-up'!$I$4,$V2233-4,0))","v":""},{"$nulls":7},{"$f":"IF(ISERROR($V2233),\"\",OFFSET('Smelter Look-up'!$C$4,$V2233-4,0)&\"\")","v":""},"",{"$f":"IF(B2233=\"\",\"\",IF(ISERROR(MATCH($J2233,SorP!$B$1:$B$6230,0)),\"\",INDIRECT(\"'SorP'!$A$\"&MATCH($J2233,SorP!$B$1:$B$6230,0))))","v":""},null,{"$f":"IF(C2233=\"\",NA(),MATCH($B2233&$C2233,'Smelter Look-up'!$J:$J,0))","v":{"$error":"#N/A"}},null,0,null,null,null,""]
[null,{"$f":"IF(LEN(A2234)=0,\"\",INDEX('Smelter Look-up'!$A:$A,MATCH($A2234,'Smelter Look-up'!$E:$E,0)))","v":""},{"$f":"IF(LEN(A2234)=0,\"\",INDEX('Smelter Look-up'!$C:$C,MATCH($A2234,'Smelter Look-up'!$E:$E,0)))","v":""},null,{"$f":"IF(ISERROR($V2234),\"\",OFFSET('Smelter Look-up'!$D$4,$V2234-4,0)&\"\")","v":""},{"$f":"IF(ISERROR($V2234),\"\",OFFSET('Smelter Look-up'!$E$4,$V2234-4,0))","v":""},{"$f":"IF(C2234=$X$4,\"Enter smelter details\", IF(ISERROR($V2234),\"\",OFFSET('Smelter Look-up'!$F$4,$V2234-4,0)))","v":""},{"$f":"IF(ISERROR($V2234),\"\",OFFSET('Smelter Look-up'!$G$4,$V2234-4,0))","v":""},{"$f":"IF(ISERROR($V2234),\"\",OFFSET('Smelter Look-up'!$H$4,$V2234-4,0))","v":""},{"$f":"IF(ISERROR($V2234),\"\",OFFSET('Smelter Look-up'!$I$4,$V2234-4,0))","v":""},{"$nulls":7},{"$f":"IF(ISERROR($V2234),\"\",OFFSET('Smelter Look-up'!$C$4,$V2234-4,0)&\"\")","v":""},"",{"$f":"IF(B2234=\"\",\"\",IF(ISERROR(MATCH($J2234,SorP!$B$1:$B$6230,0)),\"\",INDIRECT(\"'SorP'!$A$\"&MATCH($J2234,SorP!$B$1:$B$6230,0))))","v":""},null,{"$f":"IF(C2234=\"\",NA(),MATCH($B2234&$C2234,'Smelter Look-up'!$J:$J,0))","v":{"$error":"#N/A"}},null,0,null,null,null,""]
[null,{"$f":"IF(LEN(A2235)=0,\"\",INDEX('Smelter Look-up'!$A:$A,MATCH($A2235,'Smelter Look-up'!$E:$E,0)))","v":""},{"$f":"IF(LEN(A2235)=0,\"\",INDEX('Smelter Look-up'!$C:$C,MATCH($A2235,'Smelter Look-up'!$E:$E,0)))","v":""},null,{"$f":"IF(ISERROR($V2235),\"\",OFFSET('Smelter Look-up'!$D$4,$V2235-4,0)&\"\")","v":""},{"$f":"IF(ISERROR($V2235),\"\",OFFSET('Smelter Look-up'!$E$4,$V2235-4,0))","v":""},{"$f":"IF(C2235=$X$4,\"Enter smelter details\", IF(ISERROR($V2235),\"\",OFFSET('Smelter Look-up'!$F$4,$V2235-4,0)))","v":""},{"$f":"IF(ISERROR($V2235),\"\",OFFSET('Smelter Look-up'!$G$4,$V2235-4,0))","v":""},{"$f":"IF(ISERROR($V2235),\"\",OFFSET('Smelter Look-up'!$H$4,$V2235-4,0))","v":""},{"$f":"IF(ISERROR($V2235),\"\",OFFSET('Smelter Look-up'!$I$4,$V2235-4,0))","v":""},{"$nulls":7},{"$f":"IF(ISERROR($V2235),\"\",OFFSET('Smelter Look-up'!$C$4,$V2235-4,0)&\"\")","v":""},{"$f":"IF(B2235=\"\",\"\",IF(ISERROR(MATCH($E2235,CL,0)),\"Unknown\",INDIRECT(\"'C'!$A$\"&MATCH($E2235,CL,0)+1)))","v":""},{"$f":"IF(B2235=\"\",\"\",IF(ISERROR(MATCH($J2235,SorP!$B$1:$B$6230,0)),\"\",INDIRECT(\"'SorP'!$A$\"&MATCH($J2235,SorP!$B$1:$B$6230,0))))","v":""},null,{"$f":"IF(C2235=\"\",NA(),MATCH($B2235&$C2235,'Smelter Look-up'!$J:$J,0))","v":{"$error":"#N/A"}},null,{"$f":"IF(AND(C2235=\"Smelter not listed\",OR(LEN(D2235)=0,LEN(E2235)=0)),1,0)","v":0},null,null,null,{"$f":"B2235&C2235","v":""}]
[null,{"$f":"IF(LEN(A2236)=0,\"\",INDEX('Smelter Look-up'!$A:$A,MATCH($A2236,'Smelter Look-up'!$E:$E,0)))","v":""},{"$f":"IF(LEN(A2236)=0,\"\",INDEX('Smelter Look-up'!$C:$C,MATCH($A2236,'Smelter Look-up'!$E:$E,0)))","v":""},null,{"$f":"IF(ISERROR($V2236),\"\",OFFSET('Smelter Look-up'!$D$4,$V2236-4,0)&\"\")","v":""},{"$f":"IF(ISERROR($V2236),\"\",OFFSET('Smelter Look-up'!$E$4,$V2236-4,0))","v":""},{"$f":"IF(C2236=$X$4,\"Enter smelter details\", IF(ISERROR($V2236),\"\",OFFSET('Smelter Look-up'!$F$4,$V2236-4,0)))","v":""},{"$f":"IF(ISERROR($V2236),\"\",OFFSET('Smelter Look-up'!$G$4,$V2236-4,0))","v":""},{"$f":"IF(ISERROR($V2236),\"\",OFFSET('Smelter Look-up'!$H$4,$V2236-4,0))","v":""},{"$f":"IF(ISERROR($V2236),\"\",OFFSET('Smelter Look-up'!$I$4,$V2236-4,0))","v":""},{"$nulls":7},{"$f":"IF(ISERROR($V2236),\"\",OFFSET('Smelter Look-up'!$C$4,$V2236-4,0)&\"\")","v":""},"",{"$f":"IF(B2236=\"\",\"\",IF(ISERROR(MATCH($J2236,SorP!$B$1:$B$6230,0)),\"\",INDIRECT(\"'SorP'!$A$\"&MATCH($J2236,SorP!$B$1:$B$6230,0))))","v":""},null,{"$f":"IF(C2236=\"\",NA(),MATCH($B2236&$C2236,'Smelter Look-up'!$J:$J,0))","v":{"$error":"#N/A"}},null,0,null,null,null,""]
[null,{"$f":"IF(LEN(A2237)=0,\"\",INDEX('Smelter Look-up'!$A:$A,MATCH($A2237,'Smelter Look-up'!$E:$E,0)))","v":""},{"$f":"IF(LEN(A2237)=0,\"\",INDEX('Smelter Look-up'!$C:$C,MATCH($A2237,'Smelter Look-up'!$E:$E,0)))","v":""},null,{"$f":"IF(ISERROR($V2237),\"\",OFFSET('Smelter Look-up'!$D$4,$V2237-4,0)&\"\")","v":""},{"$f":"IF(ISERROR($V2237),\"\",OFFSET('Smelter Look-up'!$E$4,$V2237-4,0))","v":""},{"$f":"IF(C2237=$X$4,\"Enter smelter details\", IF(ISERROR($V2237),\"\",OFFSET('Smelter Look-up'!$F$4,$V2237-4,0)))","v":""},{"$f":"IF(ISERROR($V2237),\"\",OFFSET('Smelter Look-up'!$G$4,$V2237-4,0))","v":""},{"$f":"IF(ISERROR($V2237),\"\",OFFSET('Smelter Look-up'!$H$4,$V2237-4,0))","v":""},{"$f":"IF(ISERROR($V2237),\"\",OFFSET('Smelter Look-up'!$I$4,$V2237-4,0))","v":""},{"$nulls":7},{"$f":"IF(ISERROR($V2237),\"\",OFFSET('Smelter Look-up'!$C$4,$V2237-4,0)&\"\")","v":""},"",{"$f":"IF(B2237=\"\",\"\",IF(ISERROR(MATCH($J2237,SorP!$B$1:$B$6230,0)),\"\",INDIRECT(\"'SorP'!$A$\"&MATCH($J2237,SorP!$B$1:$B$6230,0))))","v":""},null,{"$f":"IF(C2237=\"\",NA(),MATCH($B2237&$C2237,'Smelter Look-up'!$J:$J,0))","v":{"$error":"#N/A"}},null,0,null,null,null,""]
[null,{"$f":"IF(LEN(A2238)=0,\"\",INDEX('Smelter Look-up'!$A:$A,MATCH($A2238,'Smelter Look-up'!$E:$E,0)))","v":""},{"$f":"IF(LEN(A2238)=0,\"\",INDEX('Smelter Look-up'!$C:$C,MATCH($A2238,'Smelter Look-up'!$E:$E,0)))","v":""},null,{"$f":"IF(ISERROR($V2238),\"\",OFFSET('Smelter Look-up'!$D$4,$V2238-4,0)&\"\")","v":""},{"$f":"IF(ISERROR($V2238),\"\",OFFSET('Smelter Look-up'!$E$4,$V2238-4,0))","v":""},{"$f":"IF(C2238=$X$4,\"Enter smelter details\", IF(ISERROR($V2238),\"\",OFFSET('Smelter Look-up'!$F$4,$V2238-4,0)))","v":""},{"$f":"IF(ISERROR($V2238),\"\",OFFSET('Smelter Look-up'!$G$4,$V2238-4,0))","v":""},{"$f":"IF(ISERROR($V2238),\"\",OFFSET('Smelter Look-up'!$H$4,$V2238-4,0))","v":""},{"$f":"IF(ISERROR($V2238),\"\",OFFSET('Smelter Look-up'!$I$4,$V2238-4,0))","v":""},{"$nulls":7},{"$f":"IF(ISERROR($V2238),\"\",OFFSET('Smelter Look-up'!$C$4,$V2238-4,0)&\"\")","v":""},"",{"$f":"IF(B2238=\"\",\"\",IF(ISERROR(MATCH($J2238,SorP!$B$1:$B$6230,0)),\"\",INDIRECT(\"'SorP'!$A$\"&MATCH($J2238,SorP!$B$1:$B$6230,0))))","v":""},null,{"$f":"IF(C2238=\"\",NA(),MATCH($B2238&$C2238,'Smelter Look-up'!$J:$J,0))","v":{"$error":"#N/A"}},null,0,null,null,null,""]
[null,{"$f":"IF(LEN(A2239)=0,\"\",INDEX('Smelter Look-up'!$A:$A,MATCH($A2239,'Smelter Look-up'!$E:$E,0)))","v":""},{"$f":"IF(LEN(A2239)=0,\"\",INDEX('Smelter Look-up'!$C:$C,MATCH($A2239,'Smelter Look-up'!$E:$E,0)))","v":""},null,{"$f":"IF(ISERROR($V2239),\"\",OFFSET('Smelter Look-up'!$D$4,$V2239-4,0)&\"\")","v":""},{"$f":"IF(ISERROR($V2239),\"\",OFFSET('Smelter Look-up'!$E$4,$V2239-4,0))","v":""},{"$f":"IF(C2239=$X$4,\"Enter smelter details\", IF(ISERROR($V2239),\"\",OFFSET('Smelter Look-up'!$F$4,$V2239-4,0)))","v":""},{"$f":"IF(ISERROR($V2239),\"\",OFFSET('Smelter Look-up'!$G$4,$V2239-4,0))","v":""},{"$f":"IF(ISERROR($V2239),\"\",OFFSET('Smelter Look-up'!$H$4,$V2239-4,0))","v":""},{"$f":"IF(ISERROR($V2239),\"\",OFFSET('Smelter Look-up'!$I$4,$V2239-4,0))","v":""},{"$nulls":7},{"$f":"IF(ISERROR($V2239),\"\",OFFSET('Smelter Look-up'!$C$4,$V2239-4,0)&\"\")","v":""},"",{"$f":"IF(B2239=\"\",\"\",IF(ISERROR(MATCH($J2239,SorP!$B$1:$B$6230,0)),\"\",INDIRECT(\"'SorP'!$A$\"&MATCH($J2239,SorP!$B$1:$B$6230,0))))","v":""},null,{"$f":"IF(C2239=\"\",NA(),MATCH($B2239&$C2239,'Smelter Look-up'!$J:$J,0))","v":{"$error":"#N/A"}},null,0,null,null,null,""]
[null,{"$f":"IF(LEN(A2240)=0,\"\",INDEX('Smelter Look-up'!$A:$A,MATCH($A2240,'Smelter Look-up'!$E:$E,0)))","v":""},{"$f":"IF(LEN(A2240)=0,\"\",INDEX('Smelter Look-up'!$C:$C,MATCH($A2240,'Smelter Look-up'!$E:$E,0)))","v":""},null,{"$f":"IF(ISERROR($V2240),\"\",OFFSET('Smelter Look-up'!$D$4,$V2240-4,0)&\"\")","v":""},{"$f":"IF(ISERROR($V2240),\"\",OFFSET('Smelter Look-up'!$E$4,$V2240-4,0))","v":""},{"$f":"IF(C2240=$X$4,\"Enter smelter details\", IF(ISERROR($V2240),\"\",OFFSET('Smelter Look-up'!$F$4,$V2240-4,0)))","v":""},{"$f":"IF(ISERROR($V2240),\"\",OFFSET('Smelter Look-up'!$G$4,$V2240-4,0))","v":""},{"$f":"IF(ISERROR($V2240),\"\",OFFSET('Smelter Look-up'!$H$4,$V2240-4,0))","v":""},{"$f":"IF(ISERROR($V2240),\"\",OFFSET('Smelter Look-up'!$I$4,$V2240-4,0))","v":""},{"$nulls":7},{"$f":"IF(ISERROR($V2240),\"\",OFFSET('Smelter Look-up'!$C$4,$V2240-4,0)&\"\")","v":""},"",{"$f":"IF(B2240=\"\",\"\",IF(ISERROR(MATCH($J2240,SorP!$B$1:$B$6230,0)),\"\",INDIRECT(\"'SorP'!$A$\"&MATCH($J2240,SorP!$B$1:$B$6230,0))))","v":""},null,{"$f":"IF(C2240=\"\",NA(),MATCH($B2240&$C2240,'Smelter Look-up'!$J:$J,0))","v":{"$error":"#N/A"}},null,0,null,null,null,""]
[null,{"$f":"IF(LEN(A2241)=0,\"\",INDEX('Smelter Look-up'!$A:$A,MATCH($A2241,'Smelter Look-up'!$E:$E,0)))","v":""},{"$f":"IF(LEN(A2241)=0,\"\",INDEX('Smelter Look-up'!$C:$C,MATCH($A2241,'Smelter Look-up'!$E:$E,0)))","v":""},null,{"$f":"IF(ISERROR($V2241),\"\",OFFSET('Smelter Look-up'!$D$4,$V2241-4,0)&\"\")","v":""},{"$f":"IF(ISERROR($V2241),\"\",OFFSET('Smelter Look-up'!$E$4,$V2241-4,0))","v":""},{"$f":"IF(C2241=$X$4,\"Enter smelter details\", IF(ISERROR($V2241),\"\",OFFSET('Smelter Look-up'!$F$4,$V2241-4,0)))","v":""},{"$f":"IF(ISERROR($V2241),\"\",OFFSET('Smelter Look-up'!$G$4,$V2241-4,0))","v":""},{"$f":"IF(ISERROR($V2241),\"\",OFFSET('Smelter Look-up'!$H$4,$V2241-4,0))","v":""},{"$f":"IF(ISERROR($V2241),\"\",OFFSET('Smelter Look-up'!$I$4,$V2241-4,0))","v":""},{"$nulls":7},{"$f":"IF(ISERROR($V2241),\"\",OFFSET('Smelter Look-up'!$C$4,$V2241-4,0)&\"\")","v":""},"",{"$f":"IF(B2241=\"\",\"\",IF(ISERROR(MATCH($J2241,SorP!$B$1:$B$6230,0)),\"\",INDIRECT(\"'SorP'!$A$\"&MATCH($J2241,SorP!$B$1:$B$6230,0))))","v":""},null,{"$f":"IF(C2241=\"\",NA(),MATCH($B2241&$C2241,'Smelter Look-up'!$J:$J,0))","v":{"$error":"#N/A"}},null,0,null,null,null,""]
[null,{"$f":"IF(LEN(A2242)=0,\"\",INDEX('Smelter Look-up'!$A:$A,MATCH($A2242,'Smelter Look-up'!$E:$E,0)))","v":""},{"$f":"IF(LEN(A2242)=0,\"\",INDEX('Smelter Look-up'!$C:$C,MATCH($A2242,'Smelter Look-up'!$E:$E,0)))","v":""},null,{"$f":"IF(ISERROR($V2242),\"\",OFFSET('Smelter Look-up'!$D$4,$V2242-4,0)&\"\")","v":""},{"$f":"IF(ISERROR($V2242),\"\",OFFSET('Smelter Look-up'!$E$4,$V2242-4,0))","v":""},{"$f":"IF(C2242=$X$4,\"Enter smelter details\", IF(ISERROR($V2242),\"\",OFFSET('Smelter Look-up'!$F$4,$V2242-4,0)))","v":""},{"$f":"IF(ISERROR($V2242),\"\",OFFSET('Smelter Look-up'!$G$4,$V2242-4,0))","v":""},{"$f":"IF(ISERROR($V2242),\"\",OFFSET('Smelter Look-up'!$H$4,$V2242-4,0))","v":""},{"$f":"IF(ISERROR($V2242),\"\",OFFSET('Smelter Look-up'!$I$4,$V2242-4,0))","v":""},{"$nulls":7},{"$f":"IF(ISERROR($V2242),\"\",OFFSET('Smelter Look-up'!$C$4,$V2242-4,0)&\"\")","v":""},"",{"$f":"IF(B2242=\"\",\"\",IF(ISERROR(MATCH($J2242,SorP!$B$1:$B$6230,0)),\"\",INDIRECT(\"'SorP'!$A$\"&MATCH($J2242,SorP!$B$1:$B$6230,0))))","v":""},null,{"$f":"IF(C2242=\"\",NA(),MATCH($B2242&$C2242,'Smelter Look-up'!$J:$J,0))","v":{"$error":"#N/A"}},null,0,null,null,null,""]
[null,{"$f":"IF(LEN(A2243)=0,\"\",INDEX('Smelter Look-up'!$A:$A,MATCH($A2243,'Smelter Look-up'!$E:$E,0)))","v":""},{"$f":"IF(LEN(A2243)=0,\"\",INDEX('Smelter Look-up'!$C:$C,MATCH($A2243,'Smelter Look-up'!$E:$E,0)))","v":""},null,{"$f":"IF(ISERROR($V2243),\"\",OFFSET('Smelter Look-up'!$D$4,$V2243-4,0)&\"\")","v":""},{"$f":"IF(ISERROR($V2243),\"\",OFFSET('Smelter Look-up'!$E$4,$V2243-4,0))","v":""},{"$f":"IF(C2243=$X$4,\"Enter smelter details\", IF(ISERROR($V2243),\"\",OFFSET('Smelter Look-up'!$F$4,$V2243-4,0)))","v":""},{"$f":"IF(ISERROR($V2243),\"\",OFFSET('Smelter Look-up'!$G$4,$V2243-4,0))","v":""},{"$f":"IF(ISERROR($V2243),\"\",OFFSET('Smelter Look-up'!$H$4,$V2243-4,0))","v":""},{"$f":"IF(ISERROR($V2243),\"\",OFFSET('Smelter Look-up'!$I$4,$V2243-4,0))","v":""},{"$nulls":7},{"$f":"IF(ISERROR($V2243),\"\",OFFSET('Smelter Look-up'!$C$4,$V2243-4,0)&\"\")","v":""},"",{"$f":"IF(B2243=\"\",\"\",IF(ISERROR(MATCH($J2243,SorP!$B$1:$B$6230,0)),\"\",INDIRECT(\"'SorP'!$A$\"&MATCH($J2243,SorP!$B$1:$B$6230,0))))","v":""},null,{"$f":"IF(C2243=\"\",NA(),MATCH($B2243&$C2243,'Smelter Look-up'!$J:$J,0))","v":{"$error":"#N/A"}},null,0,null,null,null,""]
[null,{"$f":"IF(LEN(A2244)=0,\"\",INDEX('Smelter Look-up'!$A:$A,MATCH($A2244,'Smelter Look-up'!$E:$E,0)))","v":""},{"$f":"IF(LEN(A2244)=0,\"\",INDEX('Smelter Look-up'!$C:$C,MATCH($A2244,'Smelter Look-up'!$E:$E,0)))","v":""},null,{"$f":"IF(ISERROR($V2244),\"\",OFFSET('Smelter Look-up'!$D$4,$V2244-4,0)&\"\")","v":""},{"$f":"IF(ISERROR($V2244),\"\",OFFSET('Smelter Look-up'!$E$4,$V2244-4,0))","v":""},{"$f":"IF(C2244=$X$4,\"Enter smelter details\", IF(ISERROR($V2244),\"\",OFFSET('Smelter Look-up'!$F$4,$V2244-4,0)))","v":""},{"$f":"IF(ISERROR($V2244),\"\",OFFSET('Smelter Look-up'!$G$4,$V2244-4,0))","v":""},{"$f":"IF(ISERROR($V2244),\"\",OFFSET('Smelter Look-up'!$H$4,$V2244-4,0))","v":""},{"$f":"IF(ISERROR($V2244),\"\",OFFSET('Smelter Look-up'!$I$4,$V2244-4,0))","v":""},{"$nulls":7},{"$f":"IF(ISERROR($V2244),\"\",OFFSET('Smelter Look-up'!$C$4,$V2244-4,0)&\"\")","v":""},"",{"$f":"IF(B2244=\"\",\"\",IF(ISERROR(MATCH($J2244,SorP!$B$1:$B$6230,0)),\"\",INDIRECT(\"'SorP'!$A$\"&MATCH($J2244,SorP!$B$1:$B$6230,0))))","v":""},null,{"$f":"IF(C2244=\"\",NA(),MATCH($B2244&$C2244,'Smelter Look-up'!$J:$J,0))","v":{"$error":"#N/A"}},null,0,null,null,null,""]
[null,{"$f":"IF(LEN(A2245)=0,\"\",INDEX('Smelter Look-up'!$A:$A,MATCH($A2245,'Smelter Look-up'!$E:$E,0)))","v":""},{"$f":"IF(LEN(A2245)=0,\"\",INDEX('Smelter Look-up'!$C:$C,MATCH($A2245,'Smelter Look-up'!$E:$E,0)))","v":""},null,{"$f":"IF(ISERROR($V2245),\"\",OFFSET('Smelter Look-up'!$D$4,$V2245-4,0)&\"\")","v":""},{"$f":"IF(ISERROR($V2245),\"\",OFFSET('Smelter Look-up'!$E$4,$V2245-4,0))","v":""},{"$f":"IF(C2245=$X$4,\"Enter smelter details\", IF(ISERROR($V2245),\"\",OFFSET('Smelter Look-up'!$F$4,$V2245-4,0)))","v":""},{"$f":"IF(ISERROR($V2245),\"\",OFFSET('Smelter Look-up'!$G$4,$V2245-4,0))","v":""},{"$f":"IF(ISERROR($V2245),\"\",OFFSET('Smelter Look-up'!$H$4,$V2245-4,0))","v":""},{"$f":"IF(ISERROR($V2245),\"\",OFFSET('Smelter Look-up'!$I$4,$V2245-4,0))","v":""},{"$nulls":7},{"$f":"IF(ISERROR($V2245),\"\",OFFSET('Smelter Look-up'!$C$4,$V2245-4,0)&\"\")","v":""},"",{"$f":"IF(B2245=\"\",\"\",IF(ISERROR(MATCH($J2245,SorP!$B$1:$B$6230,0)),\"\",INDIRECT(\"'SorP'!$A$\"&MATCH($J2245,SorP!$B$1:$B$6230,0))))","v":""},null,{"$f":"IF(C2245=\"\",NA(),MATCH($B2245&$C2245,'Smelter Look-up'!$J:$J,0))","v":{"$error":"#N/A"}},null,0,null,null,null,""]
[null,{"$f":"IF(LEN(A2246)=0,\"\",INDEX('Smelter Look-up'!$A:$A,MATCH($A2246,'Smelter Look-up'!$E:$E,0)))","v":""},{"$f":"IF(LEN(A2246)=0,\"\",INDEX('Smelter Look-up'!$C:$C,MATCH($A2246,'Smelter Look-up'!$E:$E,0)))","v":""},null,{"$f":"IF(ISERROR($V2246),\"\",OFFSET('Smelter Look-up'!$D$4,$V2246-4,0)&\"\")","v":""},{"$f":"IF(ISERROR($V2246),\"\",OFFSET('Smelter Look-up'!$E$4,$V2246-4,0))","v":""},{"$f":"IF(C2246=$X$4,\"Enter smelter details\", IF(ISERROR($V2246),\"\",OFFSET('Smelter Look-up'!$F$4,$V2246-4,0)))","v":""},{"$f":"IF(ISERROR($V2246),\"\",OFFSET('Smelter Look-up'!$G$4,$V2246-4,0))","v":""},{"$f":"IF(ISERROR($V2246),\"\",OFFSET('Smelter Look-up'!$H$4,$V2246-4,0))","v":""},{"$f":"IF(ISERROR($V2246),\"\",OFFSET('Smelter Look-up'!$I$4,$V2246-4,0))","v":""},{"$nulls":7},{"$f":"IF(ISERROR($V2246),\"\",OFFSET('Smelter Look-up'!$C$4,$V2246-4,0)&\"\")","v":""},"",{"$f":"IF(B2246=\"\",\"\",IF(ISERROR(MATCH($J2246,SorP!$B$1:$B$6230,0)),\"\",INDIRECT(\"'SorP'!$A$\"&MATCH($J2246,SorP!$B$1:$B$6230,0))))","v":""},null,{"$f":"IF(C2246=\"\",NA(),MATCH($B2246&$C2246,'Smelter Look-up'!$J:$J,0))","v":{"$error":"#N/A"}},null,0,null,null,null,""]
[null,{"$f":"IF(LEN(A2247)=0,\"\",INDEX('Smelter Look-up'!$A:$A,MATCH($A2247,'Smelter Look-up'!$E:$E,0)))","v":""},{"$f":"IF(LEN(A2247)=0,\"\",INDEX('Smelter Look-up'!$C:$C,MATCH($A2247,'Smelter Look-up'!$E:$E,0)))","v":""},null,{"$f":"IF(ISERROR($V2247),\"\",OFFSET('Smelter Look-up'!$D$4,$V2247-4,0)&\"\")","v":""},{"$f":"IF(ISERROR($V2247),\"\",OFFSET('Smelter Look-up'!$E$4,$V2247-4,0))","v":""},{"$f":"IF(C2247=$X$4,\"Enter smelter details\", IF(ISERROR($V2247),\"\",OFFSET('Smelter Look-up'!$F$4,$V2247-4,0)))","v":""},{"$f":"IF(ISERROR($V2247),\"\",OFFSET('Smelter Look-up'!$G$4,$V2247-4,0))","v":""},{"$f":"IF(ISERROR($V2247),\"\",OFFSET('Smelter Look-up'!$H$4,$V2247-4,0))","v":""},{"$f":"IF(ISERROR($V2247),\"\",OFFSET('Smelter Look-up'!$I$4,$V2247-4,0))","v":""},{"$nulls":7},{"$f":"IF(ISERROR($V2247),\"\",OFFSET('Smelter Look-up'!$C$4,$V2247-4,0)&\"\")","v":""},"",{"$f":"IF(B2247=\"\",\"\",IF(ISERROR(MATCH($J2247,SorP!$B$1:$B$6230,0)),\"\",INDIRECT(\"'SorP'!$A$\"&MATCH($J2247,SorP!$B$1:$B$6230,0))))","v":""},null,{"$f":"IF(C2247=\"\",NA(),MATCH($B2247&$C2247,'Smelter Look-up'!$J:$J,0))","v":{"$error":"#N/A"}},null,0,null,null,null,""]
[null,{"$f":"IF(LEN(A2248)=0,\"\",INDEX('Smelter Look-up'!$A:$A,MATCH($A2248,'Smelter Look-up'!$E:$E,0)))","v":""},{"$f":"IF(LEN(A2248)=0,\"\",INDEX('Smelter Look-up'!$C:$C,MATCH($A2248,'Smelter Look-up'!$E:$E,0)))","v":""},null,{"$f":"IF(ISERROR($V2248),\"\",OFFSET('Smelter Look-up'!$D$4,$V2248-4,0)&\"\")","v":""},{"$f":"IF(ISERROR($V2248),\"\",OFFSET('Smelter Look-up'!$E$4,$V2248-4,0))","v":""},{"$f":"IF(C2248=$X$4,\"Enter smelter details\", IF(ISERROR($V2248),\"\",OFFSET('Smelter Look-up'!$F$4,$V2248-4,0)))","v":""},{"$f":"IF(ISERROR($V2248),\"\",OFFSET('Smelter Look-up'!$G$4,$V2248-4,0))","v":""},{"$f":"IF(ISERROR($V2248),\"\",OFFSET('Smelter Look-up'!$H$4,$V2248-4,0))","v":""},{"$f":"IF(ISERROR($V2248),\"\",OFFSET('Smelter Look-up'!$I$4,$V2248-4,0))","v":""},{"$nulls":7},{"$f":"IF(ISERROR($V2248),\"\",OFFSET('Smelter Look-up'!$C$4,$V2248-4,0)&\"\")","v":""},"",{"$f":"IF(B2248=\"\",\"\",IF(ISERROR(MATCH($J2248,SorP!$B$1:$B$6230,0)),\"\",INDIRECT(\"'SorP'!$A$\"&MATCH($J2248,SorP!$B$1:$B$6230,0))))","v":""},null,{"$f":"IF(C2248=\"\",NA(),MATCH($B2248&$C2248,'Smelter Look-up'!$J:$J,0))","v":{"$error":"#N/A"}},null,0,null,null,null,""]
[null,{"$f":"IF(LEN(A2249)=0,\"\",INDEX('Smelter Look-up'!$A:$A,MATCH($A2249,'Smelter Look-up'!$E:$E,0)))","v":""},{"$f":"IF(LEN(A2249)=0,\"\",INDEX('Smelter Look-up'!$C:$C,MATCH($A2249,'Smelter Look-up'!$E:$E,0)))","v":""},null,{"$f":"IF(ISERROR($V2249),\"\",OFFSET('Smelter Look-up'!$D$4,$V2249-4,0)&\"\")","v":""},{"$f":"IF(ISERROR($V2249),\"\",OFFSET('Smelter Look-up'!$E$4,$V2249-4,0))","v":""},{"$f":"IF(C2249=$X$4,\"Enter smelter details\", IF(ISERROR($V2249),\"\",OFFSET('Smelter Look-up'!$F$4,$V2249-4,0)))","v":""},{"$f":"IF(ISERROR($V2249),\"\",OFFSET('Smelter Look-up'!$G$4,$V2249-4,0))","v":""},{"$f":"IF(ISERROR($V2249),\"\",OFFSET('Smelter Look-up'!$H$4,$V2249-4,0))","v":""},{"$f":"IF(ISERROR($V2249),\"\",OFFSET('Smelter Look-up'!$I$4,$V2249-4,0))","v":""},{"$nulls":7},{"$f":"IF(ISERROR($V2249),\"\",OFFSET('Smelter Look-up'!$C$4,$V2249-4,0)&\"\")","v":""},"",{"$f":"IF(B2249=\"\",\"\",IF(ISERROR(MATCH($J2249,SorP!$B$1:$B$6230,0)),\"\",INDIRECT(\"'SorP'!$A$\"&MATCH($J2249,SorP!$B$1:$B$6230,0))))","v":""},null,{"$f":"IF(C2249=\"\",NA(),MATCH($B2249&$C2249,'Smelter Look-up'!$J:$J,0))","v":{"$error":"#N/A"}},null,0,null,null,null,""]
[null,{"$f":"IF(LEN(A2250)=0,\"\",INDEX('Smelter Look-up'!$A:$A,MATCH($A2250,'Smelter Look-up'!$E:$E,0)))","v":""},{"$f":"IF(LEN(A2250)=0,\"\",INDEX('Smelter Look-up'!$C:$C,MATCH($A2250,'Smelter Look-up'!$E:$E,0)))","v":""},null,{"$f":"IF(ISERROR($V2250),\"\",OFFSET('Smelter Look-up'!$D$4,$V2250-4,0)&\"\")","v":""},{"$f":"IF(ISERROR($V2250),\"\",OFFSET('Smelter Look-up'!$E$4,$V2250-4,0))","v":""},{"$f":"IF(C2250=$X$4,\"Enter smelter details\", IF(ISERROR($V2250),\"\",OFFSET('Smelter Look-up'!$F$4,$V2250-4,0)))","v":""},{"$f":"IF(ISERROR($V2250),\"\",OFFSET('Smelter Look-up'!$G$4,$V2250-4,0))","v":""},{"$f":"IF(ISERROR($V2250),\"\",OFFSET('Smelter Look-up'!$H$4,$V2250-4,0))","v":""},{"$f":"IF(ISERROR($V2250),\"\",OFFSET('Smelter Look-up'!$I$4,$V2250-4,0))","v":""},{"$nulls":7},{"$f":"IF(ISERROR($V2250),\"\",OFFSET('Smelter Look-up'!$C$4,$V2250-4,0)&\"\")","v":""},"",{"$f":"IF(B2250=\"\",\"\",IF(ISERROR(MATCH($J2250,SorP!$B$1:$B$6230,0)),\"\",INDIRECT(\"'SorP'!$A$\"&MATCH($J2250,SorP!$B$1:$B$6230,0))))","v":""},null,{"$f":"IF(C2250=\"\",NA(),MATCH($B2250&$C2250,'Smelter Look-up'!$J:$J,0))","v":{"$error":"#N/A"}},null,0,null,null,null,""]
[null,{"$f":"IF(LEN(A2251)=0,\"\",INDEX('Smelter Look-up'!$A:$A,MATCH($A2251,'Smelter Look-up'!$E:$E,0)))","v":""},{"$f":"IF(LEN(A2251)=0,\"\",INDEX('Smelter Look-up'!$C:$C,MATCH($A2251,'Smelter Look-up'!$E:$E,0)))","v":""},null,{"$f":"IF(ISERROR($V2251),\"\",OFFSET('Smelter Look-up'!$D$4,$V2251-4,0)&\"\")","v":""},{"$f":"IF(ISERROR($V2251),\"\",OFFSET('Smelter Look-up'!$E$4,$V2251-4,0))","v":""},{"$f":"IF(C2251=$X$4,\"Enter smelter details\", IF(ISERROR($V2251),\"\",OFFSET('Smelter Look-up'!$F$4,$V2251-4,0)))","v":""},{"$f":"IF(ISERROR($V2251),\"\",OFFSET('Smelter Look-up'!$G$4,$V2251-4,0))","v":""},{"$f":"IF(ISERROR($V2251),\"\",OFFSET('Smelter Look-up'!$H$4,$V2251-4,0))","v":""},{"$f":"IF(ISERROR($V2251),\"\",OFFSET('Smelter Look-up'!$I$4,$V2251-4,0))","v":""},{"$nulls":7},{"$f":"IF(ISERROR($V2251),\"\",OFFSET('Smelter Look-up'!$C$4,$V2251-4,0)&\"\")","v":""},"",{"$f":"IF(B2251=\"\",\"\",IF(ISERROR(MATCH($J2251,SorP!$B$1:$B$6230,0)),\"\",INDIRECT(\"'SorP'!$A$\"&MATCH($J2251,SorP!$B$1:$B$6230,0))))","v":""},null,{"$f":"IF(C2251=\"\",NA(),MATCH($B2251&$C2251,'Smelter Look-up'!$J:$J,0))","v":{"$error":"#N/A"}},null,0,null,null,null,""]
[null,{"$f":"IF(LEN(A2252)=0,\"\",INDEX('Smelter Look-up'!$A:$A,MATCH($A2252,'Smelter Look-up'!$E:$E,0)))","v":""},{"$f":"IF(LEN(A2252)=0,\"\",INDEX('Smelter Look-up'!$C:$C,MATCH($A2252,'Smelter Look-up'!$E:$E,0)))","v":""},null,{"$f":"IF(ISERROR($V2252),\"\",OFFSET('Smelter Look-up'!$D$4,$V2252-4,0)&\"\")","v":""},{"$f":"IF(ISERROR($V2252),\"\",OFFSET('Smelter Look-up'!$E$4,$V2252-4,0))","v":""},{"$f":"IF(C2252=$X$4,\"Enter smelter details\", IF(ISERROR($V2252),\"\",OFFSET('Smelter Look-up'!$F$4,$V2252-4,0)))","v":""},{"$f":"IF(ISERROR($V2252),\"\",OFFSET('Smelter Look-up'!$G$4,$V2252-4,0))","v":""},{"$f":"IF(ISERROR($V2252),\"\",OFFSET('Smelter Look-up'!$H$4,$V2252-4,0))","v":""},{"$f":"IF(ISERROR($V2252),\"\",OFFSET('Smelter Look-up'!$I$4,$V2252-4,0))","v":""},{"$nulls":7},{"$f":"IF(ISERROR($V2252),\"\",OFFSET('Smelter Look-up'!$C$4,$V2252-4,0)&\"\")","v":""},"",{"$f":"IF(B2252=\"\",\"\",IF(ISERROR(MATCH($J2252,SorP!$B$1:$B$6230,0)),\"\",INDIRECT(\"'SorP'!$A$\"&MATCH($J2252,SorP!$B$1:$B$6230,0))))","v":""},null,{"$f":"IF(C2252=\"\",NA(),MATCH($B2252&$C2252,'Smelter Look-up'!$J:$J,0))","v":{"$error":"#N/A"}},null,0,null,null,null,""]
[null,{"$f":"IF(LEN(A2253)=0,\"\",INDEX('Smelter Look-up'!$A:$A,MATCH($A2253,'Smelter Look-up'!$E:$E,0)))","v":""},{"$f":"IF(LEN(A2253)=0,\"\",INDEX('Smelter Look-up'!$C:$C,MATCH($A2253,'Smelter Look-up'!$E:$E,0)))","v":""},null,{"$f":"IF(ISERROR($V2253),\"\",OFFSET('Smelter Look-up'!$D$4,$V2253-4,0)&\"\")","v":""},{"$f":"IF(ISERROR($V2253),\"\",OFFSET('Smelter Look-up'!$E$4,$V2253-4,0))","v":""},{"$f":"IF(C2253=$X$4,\"Enter smelter details\", IF(ISERROR($V2253),\"\",OFFSET('Smelter Look-up'!$F$4,$V2253-4,0)))","v":""},{"$f":"IF(ISERROR($V2253),\"\",OFFSET('Smelter Look-up'!$G$4,$V2253-4,0))","v":""},{"$f":"IF(ISERROR($V2253),\"\",OFFSET('Smelter Look-up'!$H$4,$V2253-4,0))","v":""},{"$f":"IF(ISERROR($V2253),\"\",OFFSET('Smelter Look-up'!$I$4,$V2253-4,0))","v":""},{"$nulls":7},{"$f":"IF(ISERROR($V2253),\"\",OFFSET('Smelter Look-up'!$C$4,$V2253-4,0)&\"\")","v":""},"",{"$f":"IF(B2253=\"\",\"\",IF(ISERROR(MATCH($J2253,SorP!$B$1:$B$6230,0)),\"\",INDIRECT(\"'SorP'!$A$\"&MATCH($J2253,SorP!$B$1:$B$6230,0))))","v":""},null,{"$f":"IF(C2253=\"\",NA(),MATCH($B2253&$C2253,'Smelter Look-up'!$J:$J,0))","v":{"$error":"#N/A"}},null,0,null,null,null,""]
[null,{"$f":"IF(LEN(A2254)=0,\"\",INDEX('Smelter Look-up'!$A:$A,MATCH($A2254,'Smelter Look-up'!$E:$E,0)))","v":""},{"$f":"IF(LEN(A2254)=0,\"\",INDEX('Smelter Look-up'!$C:$C,MATCH($A2254,'Smelter Look-up'!$E:$E,0)))","v":""},null,{"$f":"IF(ISERROR($V2254),\"\",OFFSET('Smelter Look-up'!$D$4,$V2254-4,0)&\"\")","v":""},{"$f":"IF(ISERROR($V2254),\"\",OFFSET('Smelter Look-up'!$E$4,$V2254-4,0))","v":""},{"$f":"IF(C2254=$X$4,\"Enter smelter details\", IF(ISERROR($V2254),\"\",OFFSET('Smelter Look-up'!$F$4,$V2254-4,0)))","v":""},{"$f":"IF(ISERROR($V2254),\"\",OFFSET('Smelter Look-up'!$G$4,$V2254-4,0))","v":""},{"$f":"IF(ISERROR($V2254),\"\",OFFSET('Smelter Look-up'!$H$4,$V2254-4,0))","v":""},{"$f":"IF(ISERROR($V2254),\"\",OFFSET('Smelter Look-up'!$I$4,$V2254-4,0))","v":""},{"$nulls":7},{"$f":"IF(ISERROR($V2254),\"\",OFFSET('Smelter Look-up'!$C$4,$V2254-4,0)&\"\")","v":""},"",{"$f":"IF(B2254=\"\",\"\",IF(ISERROR(MATCH($J2254,SorP!$B$1:$B$6230,0)),\"\",INDIRECT(\"'SorP'!$A$\"&MATCH($J2254,SorP!$B$1:$B$6230,0))))","v":""},null,{"$f":"IF(C2254=\"\",NA(),MATCH($B2254&$C2254,'Smelter Look-up'!$J:$J,0))","v":{"$error":"#N/A"}},null,0,null,null,null,""]
[null,{"$f":"IF(LEN(A2255)=0,\"\",INDEX('Smelter Look-up'!$A:$A,MATCH($A2255,'Smelter Look-up'!$E:$E,0)))","v":""},{"$f":"IF(LEN(A2255)=0,\"\",INDEX('Smelter Look-up'!$C:$C,MATCH($A2255,'Smelter Look-up'!$E:$E,0)))","v":""},null,{"$f":"IF(ISERROR($V2255),\"\",OFFSET('Smelter Look-up'!$D$4,$V2255-4,0)&\"\")","v":""},{"$f":"IF(ISERROR($V2255),\"\",OFFSET('Smelter Look-up'!$E$4,$V2255-4,0))","v":""},{"$f":"IF(C2255=$X$4,\"Enter smelter details\", IF(ISERROR($V2255),\"\",OFFSET('Smelter Look-up'!$F$4,$V2255-4,0)))","v":""},{"$f":"IF(ISERROR($V2255),\"\",OFFSET('Smelter Look-up'!$G$4,$V2255-4,0))","v":""},{"$f":"IF(ISERROR($V2255),\"\",OFFSET('Smelter Look-up'!$H$4,$V2255-4,0))","v":""},{"$f":"IF(ISERROR($V2255),\"\",OFFSET('Smelter Look-up'!$I$4,$V2255-4,0))","v":""},{"$nulls":7},{"$f":"IF(ISERROR($V2255),\"\",OFFSET('Smelter Look-up'!$C$4,$V2255-4,0)&\"\")","v":""},"",{"$f":"IF(B2255=\"\",\"\",IF(ISERROR(MATCH($J2255,SorP!$B$1:$B$6230,0)),\"\",INDIRECT(\"'SorP'!$A$\"&MATCH($J2255,SorP!$B$1:$B$6230,0))))","v":""},null,{"$f":"IF(C2255=\"\",NA(),MATCH($B2255&$C2255,'Smelter Look-up'!$J:$J,0))","v":{"$error":"#N/A"}},null,0,null,null,null,""]
[null,{"$f":"IF(LEN(A2256)=0,\"\",INDEX('Smelter Look-up'!$A:$A,MATCH($A2256,'Smelter Look-up'!$E:$E,0)))","v":""},{"$f":"IF(LEN(A2256)=0,\"\",INDEX('Smelter Look-up'!$C:$C,MATCH($A2256,'Smelter Look-up'!$E:$E,0)))","v":""},null,{"$f":"IF(ISERROR($V2256),\"\",OFFSET('Smelter Look-up'!$D$4,$V2256-4,0)&\"\")","v":""},{"$f":"IF(ISERROR($V2256),\"\",OFFSET('Smelter Look-up'!$E$4,$V2256-4,0))","v":""},{"$f":"IF(C2256=$X$4,\"Enter smelter details\", IF(ISERROR($V2256),\"\",OFFSET('Smelter Look-up'!$F$4,$V2256-4,0)))","v":""},{"$f":"IF(ISERROR($V2256),\"\",OFFSET('Smelter Look-up'!$G$4,$V2256-4,0))","v":""},{"$f":"IF(ISERROR($V2256),\"\",OFFSET('Smelter Look-up'!$H$4,$V2256-4,0))","v":""},{"$f":"IF(ISERROR($V2256),\"\",OFFSET('Smelter Look-up'!$I$4,$V2256-4,0))","v":""},{"$nulls":7},{"$f":"IF(ISERROR($V2256),\"\",OFFSET('Smelter Look-up'!$C$4,$V2256-4,0)&\"\")","v":""},"",{"$f":"IF(B2256=\"\",\"\",IF(ISERROR(MATCH($J2256,SorP!$B$1:$B$6230,0)),\"\",INDIRECT(\"'SorP'!$A$\"&MATCH($J2256,SorP!$B$1:$B$6230,0))))","v":""},null,{"$f":"IF(C2256=\"\",NA(),MATCH($B2256&$C2256,'Smelter Look-up'!$J:$J,0))","v":{"$error":"#N/A"}},null,0,null,null,null,""]
[null,{"$f":"IF(LEN(A2257)=0,\"\",INDEX('Smelter Look-up'!$A:$A,MATCH($A2257,'Smelter Look-up'!$E:$E,0)))","v":""},{"$f":"IF(LEN(A2257)=0,\"\",INDEX('Smelter Look-up'!$C:$C,MATCH($A2257,'Smelter Look-up'!$E:$E,0)))","v":""},null,{"$f":"IF(ISERROR($V2257),\"\",OFFSET('Smelter Look-up'!$D$4,$V2257-4,0)&\"\")","v":""},{"$f":"IF(ISERROR($V2257),\"\",OFFSET('Smelter Look-up'!$E$4,$V2257-4,0))","v":""},{"$f":"IF(C2257=$X$4,\"Enter smelter details\", IF(ISERROR($V2257),\"\",OFFSET('Smelter Look-up'!$F$4,$V2257-4,0)))","v":""},{"$f":"IF(ISERROR($V2257),\"\",OFFSET('Smelter Look-up'!$G$4,$V2257-4,0))","v":""},{"$f":"IF(ISERROR($V2257),\"\",OFFSET('Smelter Look-up'!$H$4,$V2257-4,0))","v":""},{"$f":"IF(ISERROR($V2257),\"\",OFFSET('Smelter Look-up'!$I$4,$V2257-4,0))","v":""},{"$nulls":7},{"$f":"IF(ISERROR($V2257),\"\",OFFSET('Smelter Look-up'!$C$4,$V2257-4,0)&\"\")","v":""},"",{"$f":"IF(B2257=\"\",\"\",IF(ISERROR(MATCH($J2257,SorP!$B$1:$B$6230,0)),\"\",INDIRECT(\"'SorP'!$A$\"&MATCH($J2257,SorP!$B$1:$B$6230,0))))","v":""},null,{"$f":"IF(C2257=\"\",NA(),MATCH($B2257&$C2257,'Smelter Look-up'!$J:$J,0))","v":{"$error":"#N/A"}},null,0,null,null,null,""]
[null,{"$f":"IF(LEN(A2258)=0,\"\",INDEX('Smelter Look-up'!$A:$A,MATCH($A2258,'Smelter Look-up'!$E:$E,0)))","v":""},{"$f":"IF(LEN(A2258)=0,\"\",INDEX('Smelter Look-up'!$C:$C,MATCH($A2258,'Smelter Look-up'!$E:$E,0)))","v":""},null,{"$f":"IF(ISERROR($V2258),\"\",OFFSET('Smelter Look-up'!$D$4,$V2258-4,0)&\"\")","v":""},{"$f":"IF(ISERROR($V2258),\"\",OFFSET('Smelter Look-up'!$E$4,$V2258-4,0))","v":""},{"$f":"IF(C2258=$X$4,\"Enter smelter details\", IF(ISERROR($V2258),\"\",OFFSET('Smelter Look-up'!$F$4,$V2258-4,0)))","v":""},{"$f":"IF(ISERROR($V2258),\"\",OFFSET('Smelter Look-up'!$G$4,$V2258-4,0))","v":""},{"$f":"IF(ISERROR($V2258),\"\",OFFSET('Smelter Look-up'!$H$4,$V2258-4,0))","v":""},{"$f":"IF(ISERROR($V2258),\"\",OFFSET('Smelter Look-up'!$I$4,$V2258-4,0))","v":""},{"$nulls":7},{"$f":"IF(ISERROR($V2258),\"\",OFFSET('Smelter Look-up'!$C$4,$V2258-4,0)&\"\")","v":""},"",{"$f":"IF(B2258=\"\",\"\",IF(ISERROR(MATCH($J2258,SorP!$B$1:$B$6230,0)),\"\",INDIRECT(\"'SorP'!$A$\"&MATCH($J2258,SorP!$B$1:$B$6230,0))))","v":""},null,{"$f":"IF(C2258=\"\",NA(),MATCH($B2258&$C2258,'Smelter Look-up'!$J:$J,0))","v":{"$error":"#N/A"}},null,0,null,null,null,""]
[null,{"$f":"IF(LEN(A2259)=0,\"\",INDEX('Smelter Look-up'!$A:$A,MATCH($A2259,'Smelter Look-up'!$E:$E,0)))","v":""},{"$f":"IF(LEN(A2259)=0,\"\",INDEX('Smelter Look-up'!$C:$C,MATCH($A2259,'Smelter Look-up'!$E:$E,0)))","v":""},null,{"$f":"IF(ISERROR($V2259),\"\",OFFSET('Smelter Look-up'!$D$4,$V2259-4,0)&\"\")","v":""},{"$f":"IF(ISERROR($V2259),\"\",OFFSET('Smelter Look-up'!$E$4,$V2259-4,0))","v":""},{"$f":"IF(C2259=$X$4,\"Enter smelter details\", IF(ISERROR($V2259),\"\",OFFSET('Smelter Look-up'!$F$4,$V2259-4,0)))","v":""},{"$f":"IF(ISERROR($V2259),\"\",OFFSET('Smelter Look-up'!$G$4,$V2259-4,0))","v":""},{"$f":"IF(ISERROR($V2259),\"\",OFFSET('Smelter Look-up'!$H$4,$V2259-4,0))","v":""},{"$f":"IF(ISERROR($V2259),\"\",OFFSET('Smelter Look-up'!$I$4,$V2259-4,0))","v":""},{"$nulls":7},{"$f":"IF(ISERROR($V2259),\"\",OFFSET('Smelter Look-up'!$C$4,$V2259-4,0)&\"\")","v":""},"",{"$f":"IF(B2259=\"\",\"\",IF(ISERROR(MATCH($J2259,SorP!$B$1:$B$6230,0)),\"\",INDIRECT(\"'SorP'!$A$\"&MATCH($J2259,SorP!$B$1:$B$6230,0))))","v":""},null,{"$f":"IF(C2259=\"\",NA(),MATCH($B2259&$C2259,'Smelter Look-up'!$J:$J,0))","v":{"$error":"#N/A"}},null,0,null,null,null,""]
[null,{"$f":"IF(LEN(A2260)=0,\"\",INDEX('Smelter Look-up'!$A:$A,MATCH($A2260,'Smelter Look-up'!$E:$E,0)))","v":""},{"$f":"IF(LEN(A2260)=0,\"\",INDEX('Smelter Look-up'!$C:$C,MATCH($A2260,'Smelter Look-up'!$E:$E,0)))","v":""},null,{"$f":"IF(ISERROR($V2260),\"\",OFFSET('Smelter Look-up'!$D$4,$V2260-4,0)&\"\")","v":""},{"$f":"IF(ISERROR($V2260),\"\",OFFSET('Smelter Look-up'!$E$4,$V2260-4,0))","v":""},{"$f":"IF(C2260=$X$4,\"Enter smelter details\", IF(ISERROR($V2260),\"\",OFFSET('Smelter Look-up'!$F$4,$V2260-4,0)))","v":""},{"$f":"IF(ISERROR($V2260),\"\",OFFSET('Smelter Look-up'!$G$4,$V2260-4,0))","v":""},{"$f":"IF(ISERROR($V2260),\"\",OFFSET('Smelter Look-up'!$H$4,$V2260-4,0))","v":""},{"$f":"IF(ISERROR($V2260),\"\",OFFSET('Smelter Look-up'!$I$4,$V2260-4,0))","v":""},{"$nulls":7},{"$f":"IF(ISERROR($V2260),\"\",OFFSET('Smelter Look-up'!$C$4,$V2260-4,0)&\"\")","v":""},"",{"$f":"IF(B2260=\"\",\"\",IF(ISERROR(MATCH($J2260,SorP!$B$1:$B$6230,0)),\"\",INDIRECT(\"'SorP'!$A$\"&MATCH($J2260,SorP!$B$1:$B$6230,0))))","v":""},null,{"$f":"IF(C2260=\"\",NA(),MATCH($B2260&$C2260,'Smelter Look-up'!$J:$J,0))","v":{"$error":"#N/A"}},null,0,null,null,null,""]
[null,{"$f":"IF(LEN(A2261)=0,\"\",INDEX('Smelter Look-up'!$A:$A,MATCH($A2261,'Smelter Look-up'!$E:$E,0)))","v":""},{"$f":"IF(LEN(A2261)=0,\"\",INDEX('Smelter Look-up'!$C:$C,MATCH($A2261,'Smelter Look-up'!$E:$E,0)))","v":""},null,{"$f":"IF(ISERROR($V2261),\"\",OFFSET('Smelter Look-up'!$D$4,$V2261-4,0)&\"\")","v":""},{"$f":"IF(ISERROR($V2261),\"\",OFFSET('Smelter Look-up'!$E$4,$V2261-4,0))","v":""},{"$f":"IF(C2261=$X$4,\"Enter smelter details\", IF(ISERROR($V2261),\"\",OFFSET('Smelter Look-up'!$F$4,$V2261-4,0)))","v":""},{"$f":"IF(ISERROR($V2261),\"\",OFFSET('Smelter Look-up'!$G$4,$V2261-4,0))","v":""},{"$f":"IF(ISERROR($V2261),\"\",OFFSET('Smelter Look-up'!$H$4,$V2261-4,0))","v":""},{"$f":"IF(ISERROR($V2261),\"\",OFFSET('Smelter Look-up'!$I$4,$V2261-4,0))","v":""},{"$nulls":7},{"$f":"IF(ISERROR($V2261),\"\",OFFSET('Smelter Look-up'!$C$4,$V2261-4,0)&\"\")","v":""},"",{"$f":"IF(B2261=\"\",\"\",IF(ISERROR(MATCH($J2261,SorP!$B$1:$B$6230,0)),\"\",INDIRECT(\"'SorP'!$A$\"&MATCH($J2261,SorP!$B$1:$B$6230,0))))","v":""},null,{"$f":"IF(C2261=\"\",NA(),MATCH($B2261&$C2261,'Smelter Look-up'!$J:$J,0))","v":{"$error":"#N/A"}},null,0,null,null,null,""]
[null,{"$f":"IF(LEN(A2262)=0,\"\",INDEX('Smelter Look-up'!$A:$A,MATCH($A2262,'Smelter Look-up'!$E:$E,0)))","v":""},{"$f":"IF(LEN(A2262)=0,\"\",INDEX('Smelter Look-up'!$C:$C,MATCH($A2262,'Smelter Look-up'!$E:$E,0)))","v":""},null,{"$f":"IF(ISERROR($V2262),\"\",OFFSET('Smelter Look-up'!$D$4,$V2262-4,0)&\"\")","v":""},{"$f":"IF(ISERROR($V2262),\"\",OFFSET('Smelter Look-up'!$E$4,$V2262-4,0))","v":""},{"$f":"IF(C2262=$X$4,\"Enter smelter details\", IF(ISERROR($V2262),\"\",OFFSET('Smelter Look-up'!$F$4,$V2262-4,0)))","v":""},{"$f":"IF(ISERROR($V2262),\"\",OFFSET('Smelter Look-up'!$G$4,$V2262-4,0))","v":""},{"$f":"IF(ISERROR($V2262),\"\",OFFSET('Smelter Look-up'!$H$4,$V2262-4,0))","v":""},{"$f":"IF(ISERROR($V2262),\"\",OFFSET('Smelter Look-up'!$I$4,$V2262-4,0))","v":""},{"$nulls":7},{"$f":"IF(ISERROR($V2262),\"\",OFFSET('Smelter Look-up'!$C$4,$V2262-4,0)&\"\")","v":""},"",{"$f":"IF(B2262=\"\",\"\",IF(ISERROR(MATCH($J2262,SorP!$B$1:$B$6230,0)),\"\",INDIRECT(\"'SorP'!$A$\"&MATCH($J2262,SorP!$B$1:$B$6230,0))))","v":""},null,{"$f":"IF(C2262=\"\",NA(),MATCH($B2262&$C2262,'Smelter Look-up'!$J:$J,0))","v":{"$error":"#N/A"}},null,0,null,null,null,""]
[null,{"$f":"IF(LEN(A2263)=0,\"\",INDEX('Smelter Look-up'!$A:$A,MATCH($A2263,'Smelter Look-up'!$E:$E,0)))","v":""},{"$f":"IF(LEN(A2263)=0,\"\",INDEX('Smelter Look-up'!$C:$C,MATCH($A2263,'Smelter Look-up'!$E:$E,0)))","v":""},null,{"$f":"IF(ISERROR($V2263),\"\",OFFSET('Smelter Look-up'!$D$4,$V2263-4,0)&\"\")","v":""},{"$f":"IF(ISERROR($V2263),\"\",OFFSET('Smelter Look-up'!$E$4,$V2263-4,0))","v":""},{"$f":"IF(C2263=$X$4,\"Enter smelter details\", IF(ISERROR($V2263),\"\",OFFSET('Smelter Look-up'!$F$4,$V2263-4,0)))","v":""},{"$f":"IF(ISERROR($V2263),\"\",OFFSET('Smelter Look-up'!$G$4,$V2263-4,0))","v":""},{"$f":"IF(ISERROR($V2263),\"\",OFFSET('Smelter Look-up'!$H$4,$V2263-4,0))","v":""},{"$f":"IF(ISERROR($V2263),\"\",OFFSET('Smelter Look-up'!$I$4,$V2263-4,0))","v":""},{"$nulls":7},{"$f":"IF(ISERROR($V2263),\"\",OFFSET('Smelter Look-up'!$C$4,$V2263-4,0)&\"\")","v":""},"",{"$f":"IF(B2263=\"\",\"\",IF(ISERROR(MATCH($J2263,SorP!$B$1:$B$6230,0)),\"\",INDIRECT(\"'SorP'!$A$\"&MATCH($J2263,SorP!$B$1:$B$6230,0))))","v":""},null,{"$f":"IF(C2263=\"\",NA(),MATCH($B2263&$C2263,'Smelter Look-up'!$J:$J,0))","v":{"$error":"#N/A"}},null,0,null,null,null,""]
[null,{"$f":"IF(LEN(A2264)=0,\"\",INDEX('Smelter Look-up'!$A:$A,MATCH($A2264,'Smelter Look-up'!$E:$E,0)))","v":""},{"$f":"IF(LEN(A2264)=0,\"\",INDEX('Smelter Look-up'!$C:$C,MATCH($A2264,'Smelter Look-up'!$E:$E,0)))","v":""},null,{"$f":"IF(ISERROR($V2264),\"\",OFFSET('Smelter Look-up'!$D$4,$V2264-4,0)&\"\")","v":""},{"$f":"IF(ISERROR($V2264),\"\",OFFSET('Smelter Look-up'!$E$4,$V2264-4,0))","v":""},{"$f":"IF(C2264=$X$4,\"Enter smelter details\", IF(ISERROR($V2264),\"\",OFFSET('Smelter Look-up'!$F$4,$V2264-4,0)))","v":""},{"$f":"IF(ISERROR($V2264),\"\",OFFSET('Smelter Look-up'!$G$4,$V2264-4,0))","v":""},{"$f":"IF(ISERROR($V2264),\"\",OFFSET('Smelter Look-up'!$H$4,$V2264-4,0))","v":""},{"$f":"IF(ISERROR($V2264),\"\",OFFSET('Smelter Look-up'!$I$4,$V2264-4,0))","v":""},{"$nulls":7},{"$f":"IF(ISERROR($V2264),\"\",OFFSET('Smelter Look-up'!$C$4,$V2264-4,0)&\"\")","v":""},"",{"$f":"IF(B2264=\"\",\"\",IF(ISERROR(MATCH($J2264,SorP!$B$1:$B$6230,0)),\"\",INDIRECT(\"'SorP'!$A$\"&MATCH($J2264,SorP!$B$1:$B$6230,0))))","v":""},null,{"$f":"IF(C2264=\"\",NA(),MATCH($B2264&$C2264,'Smelter Look-up'!$J:$J,0))","v":{"$error":"#N/A"}},null,0,null,null,null,""]
[null,{"$f":"IF(LEN(A2265)=0,\"\",INDEX('Smelter Look-up'!$A:$A,MATCH($A2265,'Smelter Look-up'!$E:$E,0)))","v":""},{"$f":"IF(LEN(A2265)=0,\"\",INDEX('Smelter Look-up'!$C:$C,MATCH($A2265,'Smelter Look-up'!$E:$E,0)))","v":""},null,{"$f":"IF(ISERROR($V2265),\"\",OFFSET('Smelter Look-up'!$D$4,$V2265-4,0)&\"\")","v":""},{"$f":"IF(ISERROR($V2265),\"\",OFFSET('Smelter Look-up'!$E$4,$V2265-4,0))","v":""},{"$f":"IF(C2265=$X$4,\"Enter smelter details\", IF(ISERROR($V2265),\"\",OFFSET('Smelter Look-up'!$F$4,$V2265-4,0)))","v":""},{"$f":"IF(ISERROR($V2265),\"\",OFFSET('Smelter Look-up'!$G$4,$V2265-4,0))","v":""},{"$f":"IF(ISERROR($V2265),\"\",OFFSET('Smelter Look-up'!$H$4,$V2265-4,0))","v":""},{"$f":"IF(ISERROR($V2265),\"\",OFFSET('Smelter Look-up'!$I$4,$V2265-4,0))","v":""},{"$nulls":7},{"$f":"IF(ISERROR($V2265),\"\",OFFSET('Smelter Look-up'!$C$4,$V2265-4,0)&\"\")","v":""},"",{"$f":"IF(B2265=\"\",\"\",IF(ISERROR(MATCH($J2265,SorP!$B$1:$B$6230,0)),\"\",INDIRECT(\"'SorP'!$A$\"&MATCH($J2265,SorP!$B$1:$B$6230,0))))","v":""},null,{"$f":"IF(C2265=\"\",NA(),MATCH($B2265&$C2265,'Smelter Look-up'!$J:$J,0))","v":{"$error":"#N/A"}},null,0,null,null,null,""]
[null,{"$f":"IF(LEN(A2266)=0,\"\",INDEX('Smelter Look-up'!$A:$A,MATCH($A2266,'Smelter Look-up'!$E:$E,0)))","v":""},{"$f":"IF(LEN(A2266)=0,\"\",INDEX('Smelter Look-up'!$C:$C,MATCH($A2266,'Smelter Look-up'!$E:$E,0)))","v":""},null,{"$f":"IF(ISERROR($V2266),\"\",OFFSET('Smelter Look-up'!$D$4,$V2266-4,0)&\"\")","v":""},{"$f":"IF(ISERROR($V2266),\"\",OFFSET('Smelter Look-up'!$E$4,$V2266-4,0))","v":""},{"$f":"IF(C2266=$X$4,\"Enter smelter details\", IF(ISERROR($V2266),\"\",OFFSET('Smelter Look-up'!$F$4,$V2266-4,0)))","v":""},{"$f":"IF(ISERROR($V2266),\"\",OFFSET('Smelter Look-up'!$G$4,$V2266-4,0))","v":""},{"$f":"IF(ISERROR($V2266),\"\",OFFSET('Smelter Look-up'!$H$4,$V2266-4,0))","v":""},{"$f":"IF(ISERROR($V2266),\"\",OFFSET('Smelter Look-up'!$I$4,$V2266-4,0))","v":""},{"$nulls":7},{"$f":"IF(ISERROR($V2266),\"\",OFFSET('Smelter Look-up'!$C$4,$V2266-4,0)&\"\")","v":""},"",{"$f":"IF(B2266=\"\",\"\",IF(ISERROR(MATCH($J2266,SorP!$B$1:$B$6230,0)),\"\",INDIRECT(\"'SorP'!$A$\"&MATCH($J2266,SorP!$B$1:$B$6230,0))))","v":""},null,{"$f":"IF(C2266=\"\",NA(),MATCH($B2266&$C2266,'Smelter Look-up'!$J:$J,0))","v":{"$error":"#N/A"}},null,0,null,null,null,""]
[null,{"$f":"IF(LEN(A2267)=0,\"\",INDEX('Smelter Look-up'!$A:$A,MATCH($A2267,'Smelter Look-up'!$E:$E,0)))","v":""},{"$f":"IF(LEN(A2267)=0,\"\",INDEX('Smelter Look-up'!$C:$C,MATCH($A2267,'Smelter Look-up'!$E:$E,0)))","v":""},null,{"$f":"IF(ISERROR($V2267),\"\",OFFSET('Smelter Look-up'!$D$4,$V2267-4,0)&\"\")","v":""},{"$f":"IF(ISERROR($V2267),\"\",OFFSET('Smelter Look-up'!$E$4,$V2267-4,0))","v":""},{"$f":"IF(C2267=$X$4,\"Enter smelter details\", IF(ISERROR($V2267),\"\",OFFSET('Smelter Look-up'!$F$4,$V2267-4,0)))","v":""},{"$f":"IF(ISERROR($V2267),\"\",OFFSET('Smelter Look-up'!$G$4,$V2267-4,0))","v":""},{"$f":"IF(ISERROR($V2267),\"\",OFFSET('Smelter Look-up'!$H$4,$V2267-4,0))","v":""},{"$f":"IF(ISERROR($V2267),\"\",OFFSET('Smelter Look-up'!$I$4,$V2267-4,0))","v":""},{"$nulls":7},{"$f":"IF(ISERROR($V2267),\"\",OFFSET('Smelter Look-up'!$C$4,$V2267-4,0)&\"\")","v":""},"",{"$f":"IF(B2267=\"\",\"\",IF(ISERROR(MATCH($J2267,SorP!$B$1:$B$6230,0)),\"\",INDIRECT(\"'SorP'!$A$\"&MATCH($J2267,SorP!$B$1:$B$6230,0))))","v":""},null,{"$f":"IF(C2267=\"\",NA(),MATCH($B2267&$C2267,'Smelter Look-up'!$J:$J,0))","v":{"$error":"#N/A"}},null,0,null,null,null,""]
[null,{"$f":"IF(LEN(A2268)=0,\"\",INDEX('Smelter Look-up'!$A:$A,MATCH($A2268,'Smelter Look-up'!$E:$E,0)))","v":""},{"$f":"IF(LEN(A2268)=0,\"\",INDEX('Smelter Look-up'!$C:$C,MATCH($A2268,'Smelter Look-up'!$E:$E,0)))","v":""},null,{"$f":"IF(ISERROR($V2268),\"\",OFFSET('Smelter Look-up'!$D$4,$V2268-4,0)&\"\")","v":""},{"$f":"IF(ISERROR($V2268),\"\",OFFSET('Smelter Look-up'!$E$4,$V2268-4,0))","v":""},{"$f":"IF(C2268=$X$4,\"Enter smelter details\", IF(ISERROR($V2268),\"\",OFFSET('Smelter Look-up'!$F$4,$V2268-4,0)))","v":""},{"$f":"IF(ISERROR($V2268),\"\",OFFSET('Smelter Look-up'!$G$4,$V2268-4,0))","v":""},{"$f":"IF(ISERROR($V2268),\"\",OFFSET('Smelter Look-up'!$H$4,$V2268-4,0))","v":""},{"$f":"IF(ISERROR($V2268),\"\",OFFSET('Smelter Look-up'!$I$4,$V2268-4,0))","v":""},{"$nulls":7},{"$f":"IF(ISERROR($V2268),\"\",OFFSET('Smelter Look-up'!$C$4,$V2268-4,0)&\"\")","v":""},"",{"$f":"IF(B2268=\"\",\"\",IF(ISERROR(MATCH($J2268,SorP!$B$1:$B$6230,0)),\"\",INDIRECT(\"'SorP'!$A$\"&MATCH($J2268,SorP!$B$1:$B$6230,0))))","v":""},null,{"$f":"IF(C2268=\"\",NA(),MATCH($B2268&$C2268,'Smelter Look-up'!$J:$J,0))","v":{"$error":"#N/A"}},null,0,null,null,null,""]
[null,{"$f":"IF(LEN(A2269)=0,\"\",INDEX('Smelter Look-up'!$A:$A,MATCH($A2269,'Smelter Look-up'!$E:$E,0)))","v":""},{"$f":"IF(LEN(A2269)=0,\"\",INDEX('Smelter Look-up'!$C:$C,MATCH($A2269,'Smelter Look-up'!$E:$E,0)))","v":""},null,{"$f":"IF(ISERROR($V2269),\"\",OFFSET('Smelter Look-up'!$D$4,$V2269-4,0)&\"\")","v":""},{"$f":"IF(ISERROR($V2269),\"\",OFFSET('Smelter Look-up'!$E$4,$V2269-4,0))","v":""},{"$f":"IF(C2269=$X$4,\"Enter smelter details\", IF(ISERROR($V2269),\"\",OFFSET('Smelter Look-up'!$F$4,$V2269-4,0)))","v":""},{"$f":"IF(ISERROR($V2269),\"\",OFFSET('Smelter Look-up'!$G$4,$V2269-4,0))","v":""},{"$f":"IF(ISERROR($V2269),\"\",OFFSET('Smelter Look-up'!$H$4,$V2269-4,0))","v":""},{"$f":"IF(ISERROR($V2269),\"\",OFFSET('Smelter Look-up'!$I$4,$V2269-4,0))","v":""},{"$nulls":7},{"$f":"IF(ISERROR($V2269),\"\",OFFSET('Smelter Look-up'!$C$4,$V2269-4,0)&\"\")","v":""},"",{"$f":"IF(B2269=\"\",\"\",IF(ISERROR(MATCH($J2269,SorP!$B$1:$B$6230,0)),\"\",INDIRECT(\"'SorP'!$A$\"&MATCH($J2269,SorP!$B$1:$B$6230,0))))","v":""},null,{"$f":"IF(C2269=\"\",NA(),MATCH($B2269&$C2269,'Smelter Look-up'!$J:$J,0))","v":{"$error":"#N/A"}},null,0,null,null,null,""]
[null,{"$f":"IF(LEN(A2270)=0,\"\",INDEX('Smelter Look-up'!$A:$A,MATCH($A2270,'Smelter Look-up'!$E:$E,0)))","v":""},{"$f":"IF(LEN(A2270)=0,\"\",INDEX('Smelter Look-up'!$C:$C,MATCH($A2270,'Smelter Look-up'!$E:$E,0)))","v":""},null,{"$f":"IF(ISERROR($V2270),\"\",OFFSET('Smelter Look-up'!$D$4,$V2270-4,0)&\"\")","v":""},{"$f":"IF(ISERROR($V2270),\"\",OFFSET('Smelter Look-up'!$E$4,$V2270-4,0))","v":""},{"$f":"IF(C2270=$X$4,\"Enter smelter details\", IF(ISERROR($V2270),\"\",OFFSET('Smelter Look-up'!$F$4,$V2270-4,0)))","v":""},{"$f":"IF(ISERROR($V2270),\"\",OFFSET('Smelter Look-up'!$G$4,$V2270-4,0))","v":""},{"$f":"IF(ISERROR($V2270),\"\",OFFSET('Smelter Look-up'!$H$4,$V2270-4,0))","v":""},{"$f":"IF(ISERROR($V2270),\"\",OFFSET('Smelter Look-up'!$I$4,$V2270-4,0))","v":""},{"$nulls":7},{"$f":"IF(ISERROR($V2270),\"\",OFFSET('Smelter Look-up'!$C$4,$V2270-4,0)&\"\")","v":""},"",{"$f":"IF(B2270=\"\",\"\",IF(ISERROR(MATCH($J2270,SorP!$B$1:$B$6230,0)),\"\",INDIRECT(\"'SorP'!$A$\"&MATCH($J2270,SorP!$B$1:$B$6230,0))))","v":""},null,{"$f":"IF(C2270=\"\",NA(),MATCH($B2270&$C2270,'Smelter Look-up'!$J:$J,0))","v":{"$error":"#N/A"}},null,0,null,null,null,""]
[null,{"$f":"IF(LEN(A2271)=0,\"\",INDEX('Smelter Look-up'!$A:$A,MATCH($A2271,'Smelter Look-up'!$E:$E,0)))","v":""},{"$f":"IF(LEN(A2271)=0,\"\",INDEX('Smelter Look-up'!$C:$C,MATCH($A2271,'Smelter Look-up'!$E:$E,0)))","v":""},null,{"$f":"IF(ISERROR($V2271),\"\",OFFSET('Smelter Look-up'!$D$4,$V2271-4,0)&\"\")","v":""},{"$f":"IF(ISERROR($V2271),\"\",OFFSET('Smelter Look-up'!$E$4,$V2271-4,0))","v":""},{"$f":"IF(C2271=$X$4,\"Enter smelter details\", IF(ISERROR($V2271),\"\",OFFSET('Smelter Look-up'!$F$4,$V2271-4,0)))","v":""},{"$f":"IF(ISERROR($V2271),\"\",OFFSET('Smelter Look-up'!$G$4,$V2271-4,0))","v":""},{"$f":"IF(ISERROR($V2271),\"\",OFFSET('Smelter Look-up'!$H$4,$V2271-4,0))","v":""},{"$f":"IF(ISERROR($V2271),\"\",OFFSET('Smelter Look-up'!$I$4,$V2271-4,0))","v":""},{"$nulls":7},{"$f":"IF(ISERROR($V2271),\"\",OFFSET('Smelter Look-up'!$C$4,$V2271-4,0)&\"\")","v":""},"",{"$f":"IF(B2271=\"\",\"\",IF(ISERROR(MATCH($J2271,SorP!$B$1:$B$6230,0)),\"\",INDIRECT(\"'SorP'!$A$\"&MATCH($J2271,SorP!$B$1:$B$6230,0))))","v":""},null,{"$f":"IF(C2271=\"\",NA(),MATCH($B2271&$C2271,'Smelter Look-up'!$J:$J,0))","v":{"$error":"#N/A"}},null,0,null,null,null,""]
[null,{"$f":"IF(LEN(A2272)=0,\"\",INDEX('Smelter Look-up'!$A:$A,MATCH($A2272,'Smelter Look-up'!$E:$E,0)))","v":""},{"$f":"IF(LEN(A2272)=0,\"\",INDEX('Smelter Look-up'!$C:$C,MATCH($A2272,'Smelter Look-up'!$E:$E,0)))","v":""},null,{"$f":"IF(ISERROR($V2272),\"\",OFFSET('Smelter Look-up'!$D$4,$V2272-4,0)&\"\")","v":""},{"$f":"IF(ISERROR($V2272),\"\",OFFSET('Smelter Look-up'!$E$4,$V2272-4,0))","v":""},{"$f":"IF(C2272=$X$4,\"Enter smelter details\", IF(ISERROR($V2272),\"\",OFFSET('Smelter Look-up'!$F$4,$V2272-4,0)))","v":""},{"$f":"IF(ISERROR($V2272),\"\",OFFSET('Smelter Look-up'!$G$4,$V2272-4,0))","v":""},{"$f":"IF(ISERROR($V2272),\"\",OFFSET('Smelter Look-up'!$H$4,$V2272-4,0))","v":""},{"$f":"IF(ISERROR($V2272),\"\",OFFSET('Smelter Look-up'!$I$4,$V2272-4,0))","v":""},{"$nulls":7},{"$f":"IF(ISERROR($V2272),\"\",OFFSET('Smelter Look-up'!$C$4,$V2272-4,0)&\"\")","v":""},"",{"$f":"IF(B2272=\"\",\"\",IF(ISERROR(MATCH($J2272,SorP!$B$1:$B$6230,0)),\"\",INDIRECT(\"'SorP'!$A$\"&MATCH($J2272,SorP!$B$1:$B$6230,0))))","v":""},null,{"$f":"IF(C2272=\"\",NA(),MATCH($B2272&$C2272,'Smelter Look-up'!$J:$J,0))","v":{"$error":"#N/A"}},null,0,null,null,null,""]
[null,{"$f":"IF(LEN(A2273)=0,\"\",INDEX('Smelter Look-up'!$A:$A,MATCH($A2273,'Smelter Look-up'!$E:$E,0)))","v":""},{"$f":"IF(LEN(A2273)=0,\"\",INDEX('Smelter Look-up'!$C:$C,MATCH($A2273,'Smelter Look-up'!$E:$E,0)))","v":""},null,{"$f":"IF(ISERROR($V2273),\"\",OFFSET('Smelter Look-up'!$D$4,$V2273-4,0)&\"\")","v":""},{"$f":"IF(ISERROR($V2273),\"\",OFFSET('Smelter Look-up'!$E$4,$V2273-4,0))","v":""},{"$f":"IF(C2273=$X$4,\"Enter smelter details\", IF(ISERROR($V2273),\"\",OFFSET('Smelter Look-up'!$F$4,$V2273-4,0)))","v":""},{"$f":"IF(ISERROR($V2273),\"\",OFFSET('Smelter Look-up'!$G$4,$V2273-4,0))","v":""},{"$f":"IF(ISERROR($V2273),\"\",OFFSET('Smelter Look-up'!$H$4,$V2273-4,0))","v":""},{"$f":"IF(ISERROR($V2273),\"\",OFFSET('Smelter Look-up'!$I$4,$V2273-4,0))","v":""},{"$nulls":7},{"$f":"IF(ISERROR($V2273),\"\",OFFSET('Smelter Look-up'!$C$4,$V2273-4,0)&\"\")","v":""},"",{"$f":"IF(B2273=\"\",\"\",IF(ISERROR(MATCH($J2273,SorP!$B$1:$B$6230,0)),\"\",INDIRECT(\"'SorP'!$A$\"&MATCH($J2273,SorP!$B$1:$B$6230,0))))","v":""},null,{"$f":"IF(C2273=\"\",NA(),MATCH($B2273&$C2273,'Smelter Look-up'!$J:$J,0))","v":{"$error":"#N/A"}},null,0,null,null,null,""]
[null,{"$f":"IF(LEN(A2274)=0,\"\",INDEX('Smelter Look-up'!$A:$A,MATCH($A2274,'Smelter Look-up'!$E:$E,0)))","v":""},{"$f":"IF(LEN(A2274)=0,\"\",INDEX('Smelter Look-up'!$C:$C,MATCH($A2274,'Smelter Look-up'!$E:$E,0)))","v":""},null,{"$f":"IF(ISERROR($V2274),\"\",OFFSET('Smelter Look-up'!$D$4,$V2274-4,0)&\"\")","v":""},{"$f":"IF(ISERROR($V2274),\"\",OFFSET('Smelter Look-up'!$E$4,$V2274-4,0))","v":""},{"$f":"IF(C2274=$X$4,\"Enter smelter details\", IF(ISERROR($V2274),\"\",OFFSET('Smelter Look-up'!$F$4,$V2274-4,0)))","v":""},{"$f":"IF(ISERROR($V2274),\"\",OFFSET('Smelter Look-up'!$G$4,$V2274-4,0))","v":""},{"$f":"IF(ISERROR($V2274),\"\",OFFSET('Smelter Look-up'!$H$4,$V2274-4,0))","v":""},{"$f":"IF(ISERROR($V2274),\"\",OFFSET('Smelter Look-up'!$I$4,$V2274-4,0))","v":""},{"$nulls":7},{"$f":"IF(ISERROR($V2274),\"\",OFFSET('Smelter Look-up'!$C$4,$V2274-4,0)&\"\")","v":""},"",{"$f":"IF(B2274=\"\",\"\",IF(ISERROR(MATCH($J2274,SorP!$B$1:$B$6230,0)),\"\",INDIRECT(\"'SorP'!$A$\"&MATCH($J2274,SorP!$B$1:$B$6230,0))))","v":""},null,{"$f":"IF(C2274=\"\",NA(),MATCH($B2274&$C2274,'Smelter Look-up'!$J:$J,0))","v":{"$error":"#N/A"}},null,0,null,null,null,""]
[null,{"$f":"IF(LEN(A2275)=0,\"\",INDEX('Smelter Look-up'!$A:$A,MATCH($A2275,'Smelter Look-up'!$E:$E,0)))","v":""},{"$f":"IF(LEN(A2275)=0,\"\",INDEX('Smelter Look-up'!$C:$C,MATCH($A2275,'Smelter Look-up'!$E:$E,0)))","v":""},null,{"$f":"IF(ISERROR($V2275),\"\",OFFSET('Smelter Look-up'!$D$4,$V2275-4,0)&\"\")","v":""},{"$f":"IF(ISERROR($V2275),\"\",OFFSET('Smelter Look-up'!$E$4,$V2275-4,0))","v":""},{"$f":"IF(C2275=$X$4,\"Enter smelter details\", IF(ISERROR($V2275),\"\",OFFSET('Smelter Look-up'!$F$4,$V2275-4,0)))","v":""},{"$f":"IF(ISERROR($V2275),\"\",OFFSET('Smelter Look-up'!$G$4,$V2275-4,0))","v":""},{"$f":"IF(ISERROR($V2275),\"\",OFFSET('Smelter Look-up'!$H$4,$V2275-4,0))","v":""},{"$f":"IF(ISERROR($V2275),\"\",OFFSET('Smelter Look-up'!$I$4,$V2275-4,0))","v":""},{"$nulls":7},{"$f":"IF(ISERROR($V2275),\"\",OFFSET('Smelter Look-up'!$C$4,$V2275-4,0)&\"\")","v":""},"",{"$f":"IF(B2275=\"\",\"\",IF(ISERROR(MATCH($J2275,SorP!$B$1:$B$6230,0)),\"\",INDIRECT(\"'SorP'!$A$\"&MATCH($J2275,SorP!$B$1:$B$6230,0))))","v":""},null,{"$f":"IF(C2275=\"\",NA(),MATCH($B2275&$C2275,'Smelter Look-up'!$J:$J,0))","v":{"$error":"#N/A"}},null,0,null,null,null,""]
[null,{"$f":"IF(LEN(A2276)=0,\"\",INDEX('Smelter Look-up'!$A:$A,MATCH($A2276,'Smelter Look-up'!$E:$E,0)))","v":""},{"$f":"IF(LEN(A2276)=0,\"\",INDEX('Smelter Look-up'!$C:$C,MATCH($A2276,'Smelter Look-up'!$E:$E,0)))","v":""},null,{"$f":"IF(ISERROR($V2276),\"\",OFFSET('Smelter Look-up'!$D$4,$V2276-4,0)&\"\")","v":""},{"$f":"IF(ISERROR($V2276),\"\",OFFSET('Smelter Look-up'!$E$4,$V2276-4,0))","v":""},{"$f":"IF(C2276=$X$4,\"Enter smelter details\", IF(ISERROR($V2276),\"\",OFFSET('Smelter Look-up'!$F$4,$V2276-4,0)))","v":""},{"$f":"IF(ISERROR($V2276),\"\",OFFSET('Smelter Look-up'!$G$4,$V2276-4,0))","v":""},{"$f":"IF(ISERROR($V2276),\"\",OFFSET('Smelter Look-up'!$H$4,$V2276-4,0))","v":""},{"$f":"IF(ISERROR($V2276),\"\",OFFSET('Smelter Look-up'!$I$4,$V2276-4,0))","v":""},{"$nulls":7},{"$f":"IF(ISERROR($V2276),\"\",OFFSET('Smelter Look-up'!$C$4,$V2276-4,0)&\"\")","v":""},"",{"$f":"IF(B2276=\"\",\"\",IF(ISERROR(MATCH($J2276,SorP!$B$1:$B$6230,0)),\"\",INDIRECT(\"'SorP'!$A$\"&MATCH($J2276,SorP!$B$1:$B$6230,0))))","v":""},null,{"$f":"IF(C2276=\"\",NA(),MATCH($B2276&$C2276,'Smelter Look-up'!$J:$J,0))","v":{"$error":"#N/A"}},null,0,null,null,null,""]
[null,{"$f":"IF(LEN(A2277)=0,\"\",INDEX('Smelter Look-up'!$A:$A,MATCH($A2277,'Smelter Look-up'!$E:$E,0)))","v":""},{"$f":"IF(LEN(A2277)=0,\"\",INDEX('Smelter Look-up'!$C:$C,MATCH($A2277,'Smelter Look-up'!$E:$E,0)))","v":""},null,{"$f":"IF(ISERROR($V2277),\"\",OFFSET('Smelter Look-up'!$D$4,$V2277-4,0)&\"\")","v":""},{"$f":"IF(ISERROR($V2277),\"\",OFFSET('Smelter Look-up'!$E$4,$V2277-4,0))","v":""},{"$f":"IF(C2277=$X$4,\"Enter smelter details\", IF(ISERROR($V2277),\"\",OFFSET('Smelter Look-up'!$F$4,$V2277-4,0)))","v":""},{"$f":"IF(ISERROR($V2277),\"\",OFFSET('Smelter Look-up'!$G$4,$V2277-4,0))","v":""},{"$f":"IF(ISERROR($V2277),\"\",OFFSET('Smelter Look-up'!$H$4,$V2277-4,0))","v":""},{"$f":"IF(ISERROR($V2277),\"\",OFFSET('Smelter Look-up'!$I$4,$V2277-4,0))","v":""},{"$nulls":7},{"$f":"IF(ISERROR($V2277),\"\",OFFSET('Smelter Look-up'!$C$4,$V2277-4,0)&\"\")","v":""},"",{"$f":"IF(B2277=\"\",\"\",IF(ISERROR(MATCH($J2277,SorP!$B$1:$B$6230,0)),\"\",INDIRECT(\"'SorP'!$A$\"&MATCH($J2277,SorP!$B$1:$B$6230,0))))","v":""},null,{"$f":"IF(C2277=\"\",NA(),MATCH($B2277&$C2277,'Smelter Look-up'!$J:$J,0))","v":{"$error":"#N/A"}},null,0,null,null,null,""]
[null,{"$f":"IF(LEN(A2278)=0,\"\",INDEX('Smelter Look-up'!$A:$A,MATCH($A2278,'Smelter Look-up'!$E:$E,0)))","v":""},{"$f":"IF(LEN(A2278)=0,\"\",INDEX('Smelter Look-up'!$C:$C,MATCH($A2278,'Smelter Look-up'!$E:$E,0)))","v":""},null,{"$f":"IF(ISERROR($V2278),\"\",OFFSET('Smelter Look-up'!$D$4,$V2278-4,0)&\"\")","v":""},{"$f":"IF(ISERROR($V2278),\"\",OFFSET('Smelter Look-up'!$E$4,$V2278-4,0))","v":""},{"$f":"IF(C2278=$X$4,\"Enter smelter details\", IF(ISERROR($V2278),\"\",OFFSET('Smelter Look-up'!$F$4,$V2278-4,0)))","v":""},{"$f":"IF(ISERROR($V2278),\"\",OFFSET('Smelter Look-up'!$G$4,$V2278-4,0))","v":""},{"$f":"IF(ISERROR($V2278),\"\",OFFSET('Smelter Look-up'!$H$4,$V2278-4,0))","v":""},{"$f":"IF(ISERROR($V2278),\"\",OFFSET('Smelter Look-up'!$I$4,$V2278-4,0))","v":""},{"$nulls":7},{"$f":"IF(ISERROR($V2278),\"\",OFFSET('Smelter Look-up'!$C$4,$V2278-4,0)&\"\")","v":""},"",{"$f":"IF(B2278=\"\",\"\",IF(ISERROR(MATCH($J2278,SorP!$B$1:$B$6230,0)),\"\",INDIRECT(\"'SorP'!$A$\"&MATCH($J2278,SorP!$B$1:$B$6230,0))))","v":""},null,{"$f":"IF(C2278=\"\",NA(),MATCH($B2278&$C2278,'Smelter Look-up'!$J:$J,0))","v":{"$error":"#N/A"}},null,0,null,null,null,""]
[null,{"$f":"IF(LEN(A2279)=0,\"\",INDEX('Smelter Look-up'!$A:$A,MATCH($A2279,'Smelter Look-up'!$E:$E,0)))","v":""},{"$f":"IF(LEN(A2279)=0,\"\",INDEX('Smelter Look-up'!$C:$C,MATCH($A2279,'Smelter Look-up'!$E:$E,0)))","v":""},null,{"$f":"IF(ISERROR($V2279),\"\",OFFSET('Smelter Look-up'!$D$4,$V2279-4,0)&\"\")","v":""},{"$f":"IF(ISERROR($V2279),\"\",OFFSET('Smelter Look-up'!$E$4,$V2279-4,0))","v":""},{"$f":"IF(C2279=$X$4,\"Enter smelter details\", IF(ISERROR($V2279),\"\",OFFSET('Smelter Look-up'!$F$4,$V2279-4,0)))","v":""},{"$f":"IF(ISERROR($V2279),\"\",OFFSET('Smelter Look-up'!$G$4,$V2279-4,0))","v":""},{"$f":"IF(ISERROR($V2279),\"\",OFFSET('Smelter Look-up'!$H$4,$V2279-4,0))","v":""},{"$f":"IF(ISERROR($V2279),\"\",OFFSET('Smelter Look-up'!$I$4,$V2279-4,0))","v":""},{"$nulls":7},{"$f":"IF(ISERROR($V2279),\"\",OFFSET('Smelter Look-up'!$C$4,$V2279-4,0)&\"\")","v":""},"",{"$f":"IF(B2279=\"\",\"\",IF(ISERROR(MATCH($J2279,SorP!$B$1:$B$6230,0)),\"\",INDIRECT(\"'SorP'!$A$\"&MATCH($J2279,SorP!$B$1:$B$6230,0))))","v":""},null,{"$f":"IF(C2279=\"\",NA(),MATCH($B2279&$C2279,'Smelter Look-up'!$J:$J,0))","v":{"$error":"#N/A"}},null,0,null,null,null,""]
[null,{"$f":"IF(LEN(A2280)=0,\"\",INDEX('Smelter Look-up'!$A:$A,MATCH($A2280,'Smelter Look-up'!$E:$E,0)))","v":""},{"$f":"IF(LEN(A2280)=0,\"\",INDEX('Smelter Look-up'!$C:$C,MATCH($A2280,'Smelter Look-up'!$E:$E,0)))","v":""},null,{"$f":"IF(ISERROR($V2280),\"\",OFFSET('Smelter Look-up'!$D$4,$V2280-4,0)&\"\")","v":""},{"$f":"IF(ISERROR($V2280),\"\",OFFSET('Smelter Look-up'!$E$4,$V2280-4,0))","v":""},{"$f":"IF(C2280=$X$4,\"Enter smelter details\", IF(ISERROR($V2280),\"\",OFFSET('Smelter Look-up'!$F$4,$V2280-4,0)))","v":""},{"$f":"IF(ISERROR($V2280),\"\",OFFSET('Smelter Look-up'!$G$4,$V2280-4,0))","v":""},{"$f":"IF(ISERROR($V2280),\"\",OFFSET('Smelter Look-up'!$H$4,$V2280-4,0))","v":""},{"$f":"IF(ISERROR($V2280),\"\",OFFSET('Smelter Look-up'!$I$4,$V2280-4,0))","v":""},{"$nulls":7},{"$f":"IF(ISERROR($V2280),\"\",OFFSET('Smelter Look-up'!$C$4,$V2280-4,0)&\"\")","v":""},"",{"$f":"IF(B2280=\"\",\"\",IF(ISERROR(MATCH($J2280,SorP!$B$1:$B$6230,0)),\"\",INDIRECT(\"'SorP'!$A$\"&MATCH($J2280,SorP!$B$1:$B$6230,0))))","v":""},null,{"$f":"IF(C2280=\"\",NA(),MATCH($B2280&$C2280,'Smelter Look-up'!$J:$J,0))","v":{"$error":"#N/A"}},null,0,null,null,null,""]
[null,{"$f":"IF(LEN(A2281)=0,\"\",INDEX('Smelter Look-up'!$A:$A,MATCH($A2281,'Smelter Look-up'!$E:$E,0)))","v":""},{"$f":"IF(LEN(A2281)=0,\"\",INDEX('Smelter Look-up'!$C:$C,MATCH($A2281,'Smelter Look-up'!$E:$E,0)))","v":""},null,{"$f":"IF(ISERROR($V2281),\"\",OFFSET('Smelter Look-up'!$D$4,$V2281-4,0)&\"\")","v":""},{"$f":"IF(ISERROR($V2281),\"\",OFFSET('Smelter Look-up'!$E$4,$V2281-4,0))","v":""},{"$f":"IF(C2281=$X$4,\"Enter smelter details\", IF(ISERROR($V2281),\"\",OFFSET('Smelter Look-up'!$F$4,$V2281-4,0)))","v":""},{"$f":"IF(ISERROR($V2281),\"\",OFFSET('Smelter Look-up'!$G$4,$V2281-4,0))","v":""},{"$f":"IF(ISERROR($V2281),\"\",OFFSET('Smelter Look-up'!$H$4,$V2281-4,0))","v":""},{"$f":"IF(ISERROR($V2281),\"\",OFFSET('Smelter Look-up'!$I$4,$V2281-4,0))","v":""},{"$nulls":7},{"$f":"IF(ISERROR($V2281),\"\",OFFSET('Smelter Look-up'!$C$4,$V2281-4,0)&\"\")","v":""},"",{"$f":"IF(B2281=\"\",\"\",IF(ISERROR(MATCH($J2281,SorP!$B$1:$B$6230,0)),\"\",INDIRECT(\"'SorP'!$A$\"&MATCH($J2281,SorP!$B$1:$B$6230,0))))","v":""},null,{"$f":"IF(C2281=\"\",NA(),MATCH($B2281&$C2281,'Smelter Look-up'!$J:$J,0))","v":{"$error":"#N/A"}},null,0,null,null,null,""]
[null,{"$f":"IF(LEN(A2282)=0,\"\",INDEX('Smelter Look-up'!$A:$A,MATCH($A2282,'Smelter Look-up'!$E:$E,0)))","v":""},{"$f":"IF(LEN(A2282)=0,\"\",INDEX('Smelter Look-up'!$C:$C,MATCH($A2282,'Smelter Look-up'!$E:$E,0)))","v":""},null,{"$f":"IF(ISERROR($V2282),\"\",OFFSET('Smelter Look-up'!$D$4,$V2282-4,0)&\"\")","v":""},{"$f":"IF(ISERROR($V2282),\"\",OFFSET('Smelter Look-up'!$E$4,$V2282-4,0))","v":""},{"$f":"IF(C2282=$X$4,\"Enter smelter details\", IF(ISERROR($V2282),\"\",OFFSET('Smelter Look-up'!$F$4,$V2282-4,0)))","v":""},{"$f":"IF(ISERROR($V2282),\"\",OFFSET('Smelter Look-up'!$G$4,$V2282-4,0))","v":""},{"$f":"IF(ISERROR($V2282),\"\",OFFSET('Smelter Look-up'!$H$4,$V2282-4,0))","v":""},{"$f":"IF(ISERROR($V2282),\"\",OFFSET('Smelter Look-up'!$I$4,$V2282-4,0))","v":""},{"$nulls":7},{"$f":"IF(ISERROR($V2282),\"\",OFFSET('Smelter Look-up'!$C$4,$V2282-4,0)&\"\")","v":""},"",{"$f":"IF(B2282=\"\",\"\",IF(ISERROR(MATCH($J2282,SorP!$B$1:$B$6230,0)),\"\",INDIRECT(\"'SorP'!$A$\"&MATCH($J2282,SorP!$B$1:$B$6230,0))))","v":""},null,{"$f":"IF(C2282=\"\",NA(),MATCH($B2282&$C2282,'Smelter Look-up'!$J:$J,0))","v":{"$error":"#N/A"}},null,0,null,null,null,""]
[null,{"$f":"IF(LEN(A2283)=0,\"\",INDEX('Smelter Look-up'!$A:$A,MATCH($A2283,'Smelter Look-up'!$E:$E,0)))","v":""},{"$f":"IF(LEN(A2283)=0,\"\",INDEX('Smelter Look-up'!$C:$C,MATCH($A2283,'Smelter Look-up'!$E:$E,0)))","v":""},null,{"$f":"IF(ISERROR($V2283),\"\",OFFSET('Smelter Look-up'!$D$4,$V2283-4,0)&\"\")","v":""},{"$f":"IF(ISERROR($V2283),\"\",OFFSET('Smelter Look-up'!$E$4,$V2283-4,0))","v":""},{"$f":"IF(C2283=$X$4,\"Enter smelter details\", IF(ISERROR($V2283),\"\",OFFSET('Smelter Look-up'!$F$4,$V2283-4,0)))","v":""},{"$f":"IF(ISERROR($V2283),\"\",OFFSET('Smelter Look-up'!$G$4,$V2283-4,0))","v":""},{"$f":"IF(ISERROR($V2283),\"\",OFFSET('Smelter Look-up'!$H$4,$V2283-4,0))","v":""},{"$f":"IF(ISERROR($V2283),\"\",OFFSET('Smelter Look-up'!$I$4,$V2283-4,0))","v":""},{"$nulls":7},{"$f":"IF(ISERROR($V2283),\"\",OFFSET('Smelter Look-up'!$C$4,$V2283-4,0)&\"\")","v":""},"",{"$f":"IF(B2283=\"\",\"\",IF(ISERROR(MATCH($J2283,SorP!$B$1:$B$6230,0)),\"\",INDIRECT(\"'SorP'!$A$\"&MATCH($J2283,SorP!$B$1:$B$6230,0))))","v":""},null,{"$f":"IF(C2283=\"\",NA(),MATCH($B2283&$C2283,'Smelter Look-up'!$J:$J,0))","v":{"$error":"#N/A"}},null,0,null,null,null,""]
[null,{"$f":"IF(LEN(A2284)=0,\"\",INDEX('Smelter Look-up'!$A:$A,MATCH($A2284,'Smelter Look-up'!$E:$E,0)))","v":""},{"$f":"IF(LEN(A2284)=0,\"\",INDEX('Smelter Look-up'!$C:$C,MATCH($A2284,'Smelter Look-up'!$E:$E,0)))","v":""},null,{"$f":"IF(ISERROR($V2284),\"\",OFFSET('Smelter Look-up'!$D$4,$V2284-4,0)&\"\")","v":""},{"$f":"IF(ISERROR($V2284),\"\",OFFSET('Smelter Look-up'!$E$4,$V2284-4,0))","v":""},{"$f":"IF(C2284=$X$4,\"Enter smelter details\", IF(ISERROR($V2284),\"\",OFFSET('Smelter Look-up'!$F$4,$V2284-4,0)))","v":""},{"$f":"IF(ISERROR($V2284),\"\",OFFSET('Smelter Look-up'!$G$4,$V2284-4,0))","v":""},{"$f":"IF(ISERROR($V2284),\"\",OFFSET('Smelter Look-up'!$H$4,$V2284-4,0))","v":""},{"$f":"IF(ISERROR($V2284),\"\",OFFSET('Smelter Look-up'!$I$4,$V2284-4,0))","v":""},{"$nulls":7},{"$f":"IF(ISERROR($V2284),\"\",OFFSET('Smelter Look-up'!$C$4,$V2284-4,0)&\"\")","v":""},"",{"$f":"IF(B2284=\"\",\"\",IF(ISERROR(MATCH($J2284,SorP!$B$1:$B$6230,0)),\"\",INDIRECT(\"'SorP'!$A$\"&MATCH($J2284,SorP!$B$1:$B$6230,0))))","v":""},null,{"$f":"IF(C2284=\"\",NA(),MATCH($B2284&$C2284,'Smelter Look-up'!$J:$J,0))","v":{"$error":"#N/A"}},null,0,null,null,null,""]
[null,{"$f":"IF(LEN(A2285)=0,\"\",INDEX('Smelter Look-up'!$A:$A,MATCH($A2285,'Smelter Look-up'!$E:$E,0)))","v":""},{"$f":"IF(LEN(A2285)=0,\"\",INDEX('Smelter Look-up'!$C:$C,MATCH($A2285,'Smelter Look-up'!$E:$E,0)))","v":""},null,{"$f":"IF(ISERROR($V2285),\"\",OFFSET('Smelter Look-up'!$D$4,$V2285-4,0)&\"\")","v":""},{"$f":"IF(ISERROR($V2285),\"\",OFFSET('Smelter Look-up'!$E$4,$V2285-4,0))","v":""},{"$f":"IF(C2285=$X$4,\"Enter smelter details\", IF(ISERROR($V2285),\"\",OFFSET('Smelter Look-up'!$F$4,$V2285-4,0)))","v":""},{"$f":"IF(ISERROR($V2285),\"\",OFFSET('Smelter Look-up'!$G$4,$V2285-4,0))","v":""},{"$f":"IF(ISERROR($V2285),\"\",OFFSET('Smelter Look-up'!$H$4,$V2285-4,0))","v":""},{"$f":"IF(ISERROR($V2285),\"\",OFFSET('Smelter Look-up'!$I$4,$V2285-4,0))","v":""},{"$nulls":7},{"$f":"IF(ISERROR($V2285),\"\",OFFSET('Smelter Look-up'!$C$4,$V2285-4,0)&\"\")","v":""},"",{"$f":"IF(B2285=\"\",\"\",IF(ISERROR(MATCH($J2285,SorP!$B$1:$B$6230,0)),\"\",INDIRECT(\"'SorP'!$A$\"&MATCH($J2285,SorP!$B$1:$B$6230,0))))","v":""},null,{"$f":"IF(C2285=\"\",NA(),MATCH($B2285&$C2285,'Smelter Look-up'!$J:$J,0))","v":{"$error":"#N/A"}},null,0,null,null,null,""]
[null,{"$f":"IF(LEN(A2286)=0,\"\",INDEX('Smelter Look-up'!$A:$A,MATCH($A2286,'Smelter Look-up'!$E:$E,0)))","v":""},{"$f":"IF(LEN(A2286)=0,\"\",INDEX('Smelter Look-up'!$C:$C,MATCH($A2286,'Smelter Look-up'!$E:$E,0)))","v":""},null,{"$f":"IF(ISERROR($V2286),\"\",OFFSET('Smelter Look-up'!$D$4,$V2286-4,0)&\"\")","v":""},{"$f":"IF(ISERROR($V2286),\"\",OFFSET('Smelter Look-up'!$E$4,$V2286-4,0))","v":""},{"$f":"IF(C2286=$X$4,\"Enter smelter details\", IF(ISERROR($V2286),\"\",OFFSET('Smelter Look-up'!$F$4,$V2286-4,0)))","v":""},{"$f":"IF(ISERROR($V2286),\"\",OFFSET('Smelter Look-up'!$G$4,$V2286-4,0))","v":""},{"$f":"IF(ISERROR($V2286),\"\",OFFSET('Smelter Look-up'!$H$4,$V2286-4,0))","v":""},{"$f":"IF(ISERROR($V2286),\"\",OFFSET('Smelter Look-up'!$I$4,$V2286-4,0))","v":""},{"$nulls":7},{"$f":"IF(ISERROR($V2286),\"\",OFFSET('Smelter Look-up'!$C$4,$V2286-4,0)&\"\")","v":""},"",{"$f":"IF(B2286=\"\",\"\",IF(ISERROR(MATCH($J2286,SorP!$B$1:$B$6230,0)),\"\",INDIRECT(\"'SorP'!$A$\"&MATCH($J2286,SorP!$B$1:$B$6230,0))))","v":""},null,{"$f":"IF(C2286=\"\",NA(),MATCH($B2286&$C2286,'Smelter Look-up'!$J:$J,0))","v":{"$error":"#N/A"}},null,0,null,null,null,""]
[null,{"$f":"IF(LEN(A2287)=0,\"\",INDEX('Smelter Look-up'!$A:$A,MATCH($A2287,'Smelter Look-up'!$E:$E,0)))","v":""},{"$f":"IF(LEN(A2287)=0,\"\",INDEX('Smelter Look-up'!$C:$C,MATCH($A2287,'Smelter Look-up'!$E:$E,0)))","v":""},null,{"$f":"IF(ISERROR($V2287),\"\",OFFSET('Smelter Look-up'!$D$4,$V2287-4,0)&\"\")","v":""},{"$f":"IF(ISERROR($V2287),\"\",OFFSET('Smelter Look-up'!$E$4,$V2287-4,0))","v":""},{"$f":"IF(C2287=$X$4,\"Enter smelter details\", IF(ISERROR($V2287),\"\",OFFSET('Smelter Look-up'!$F$4,$V2287-4,0)))","v":""},{"$f":"IF(ISERROR($V2287),\"\",OFFSET('Smelter Look-up'!$G$4,$V2287-4,0))","v":""},{"$f":"IF(ISERROR($V2287),\"\",OFFSET('Smelter Look-up'!$H$4,$V2287-4,0))","v":""},{"$f":"IF(ISERROR($V2287),\"\",OFFSET('Smelter Look-up'!$I$4,$V2287-4,0))","v":""},{"$nulls":7},{"$f":"IF(ISERROR($V2287),\"\",OFFSET('Smelter Look-up'!$C$4,$V2287-4,0)&\"\")","v":""},"",{"$f":"IF(B2287=\"\",\"\",IF(ISERROR(MATCH($J2287,SorP!$B$1:$B$6230,0)),\"\",INDIRECT(\"'SorP'!$A$\"&MATCH($J2287,SorP!$B$1:$B$6230,0))))","v":""},null,{"$f":"IF(C2287=\"\",NA(),MATCH($B2287&$C2287,'Smelter Look-up'!$J:$J,0))","v":{"$error":"#N/A"}},null,0,null,null,null,""]
[null,{"$f":"IF(LEN(A2288)=0,\"\",INDEX('Smelter Look-up'!$A:$A,MATCH($A2288,'Smelter Look-up'!$E:$E,0)))","v":""},{"$f":"IF(LEN(A2288)=0,\"\",INDEX('Smelter Look-up'!$C:$C,MATCH($A2288,'Smelter Look-up'!$E:$E,0)))","v":""},null,{"$f":"IF(ISERROR($V2288),\"\",OFFSET('Smelter Look-up'!$D$4,$V2288-4,0)&\"\")","v":""},{"$f":"IF(ISERROR($V2288),\"\",OFFSET('Smelter Look-up'!$E$4,$V2288-4,0))","v":""},{"$f":"IF(C2288=$X$4,\"Enter smelter details\", IF(ISERROR($V2288),\"\",OFFSET('Smelter Look-up'!$F$4,$V2288-4,0)))","v":""},{"$f":"IF(ISERROR($V2288),\"\",OFFSET('Smelter Look-up'!$G$4,$V2288-4,0))","v":""},{"$f":"IF(ISERROR($V2288),\"\",OFFSET('Smelter Look-up'!$H$4,$V2288-4,0))","v":""},{"$f":"IF(ISERROR($V2288),\"\",OFFSET('Smelter Look-up'!$I$4,$V2288-4,0))","v":""},{"$nulls":7},{"$f":"IF(ISERROR($V2288),\"\",OFFSET('Smelter Look-up'!$C$4,$V2288-4,0)&\"\")","v":""},"",{"$f":"IF(B2288=\"\",\"\",IF(ISERROR(MATCH($J2288,SorP!$B$1:$B$6230,0)),\"\",INDIRECT(\"'SorP'!$A$\"&MATCH($J2288,SorP!$B$1:$B$6230,0))))","v":""},null,{"$f":"IF(C2288=\"\",NA(),MATCH($B2288&$C2288,'Smelter Look-up'!$J:$J,0))","v":{"$error":"#N/A"}},null,0,null,null,null,""]
[null,{"$f":"IF(LEN(A2289)=0,\"\",INDEX('Smelter Look-up'!$A:$A,MATCH($A2289,'Smelter Look-up'!$E:$E,0)))","v":""},{"$f":"IF(LEN(A2289)=0,\"\",INDEX('Smelter Look-up'!$C:$C,MATCH($A2289,'Smelter Look-up'!$E:$E,0)))","v":""},null,{"$f":"IF(ISERROR($V2289),\"\",OFFSET('Smelter Look-up'!$D$4,$V2289-4,0)&\"\")","v":""},{"$f":"IF(ISERROR($V2289),\"\",OFFSET('Smelter Look-up'!$E$4,$V2289-4,0))","v":""},{"$f":"IF(C2289=$X$4,\"Enter smelter details\", IF(ISERROR($V2289),\"\",OFFSET('Smelter Look-up'!$F$4,$V2289-4,0)))","v":""},{"$f":"IF(ISERROR($V2289),\"\",OFFSET('Smelter Look-up'!$G$4,$V2289-4,0))","v":""},{"$f":"IF(ISERROR($V2289),\"\",OFFSET('Smelter Look-up'!$H$4,$V2289-4,0))","v":""},{"$f":"IF(ISERROR($V2289),\"\",OFFSET('Smelter Look-up'!$I$4,$V2289-4,0))","v":""},{"$nulls":7},{"$f":"IF(ISERROR($V2289),\"\",OFFSET('Smelter Look-up'!$C$4,$V2289-4,0)&\"\")","v":""},"",{"$f":"IF(B2289=\"\",\"\",IF(ISERROR(MATCH($J2289,SorP!$B$1:$B$6230,0)),\"\",INDIRECT(\"'SorP'!$A$\"&MATCH($J2289,SorP!$B$1:$B$6230,0))))","v":""},null,{"$f":"IF(C2289=\"\",NA(),MATCH($B2289&$C2289,'Smelter Look-up'!$J:$J,0))","v":{"$error":"#N/A"}},null,0,null,null,null,""]
[null,{"$f":"IF(LEN(A2290)=0,\"\",INDEX('Smelter Look-up'!$A:$A,MATCH($A2290,'Smelter Look-up'!$E:$E,0)))","v":""},{"$f":"IF(LEN(A2290)=0,\"\",INDEX('Smelter Look-up'!$C:$C,MATCH($A2290,'Smelter Look-up'!$E:$E,0)))","v":""},null,{"$f":"IF(ISERROR($V2290),\"\",OFFSET('Smelter Look-up'!$D$4,$V2290-4,0)&\"\")","v":""},{"$f":"IF(ISERROR($V2290),\"\",OFFSET('Smelter Look-up'!$E$4,$V2290-4,0))","v":""},{"$f":"IF(C2290=$X$4,\"Enter smelter details\", IF(ISERROR($V2290),\"\",OFFSET('Smelter Look-up'!$F$4,$V2290-4,0)))","v":""},{"$f":"IF(ISERROR($V2290),\"\",OFFSET('Smelter Look-up'!$G$4,$V2290-4,0))","v":""},{"$f":"IF(ISERROR($V2290),\"\",OFFSET('Smelter Look-up'!$H$4,$V2290-4,0))","v":""},{"$f":"IF(ISERROR($V2290),\"\",OFFSET('Smelter Look-up'!$I$4,$V2290-4,0))","v":""},{"$nulls":7},{"$f":"IF(ISERROR($V2290),\"\",OFFSET('Smelter Look-up'!$C$4,$V2290-4,0)&\"\")","v":""},"",{"$f":"IF(B2290=\"\",\"\",IF(ISERROR(MATCH($J2290,SorP!$B$1:$B$6230,0)),\"\",INDIRECT(\"'SorP'!$A$\"&MATCH($J2290,SorP!$B$1:$B$6230,0))))","v":""},null,{"$f":"IF(C2290=\"\",NA(),MATCH($B2290&$C2290,'Smelter Look-up'!$J:$J,0))","v":{"$error":"#N/A"}},null,0,null,null,null,""]
[null,{"$f":"IF(LEN(A2291)=0,\"\",INDEX('Smelter Look-up'!$A:$A,MATCH($A2291,'Smelter Look-up'!$E:$E,0)))","v":""},{"$f":"IF(LEN(A2291)=0,\"\",INDEX('Smelter Look-up'!$C:$C,MATCH($A2291,'Smelter Look-up'!$E:$E,0)))","v":""},null,{"$f":"IF(ISERROR($V2291),\"\",OFFSET('Smelter Look-up'!$D$4,$V2291-4,0)&\"\")","v":""},{"$f":"IF(ISERROR($V2291),\"\",OFFSET('Smelter Look-up'!$E$4,$V2291-4,0))","v":""},{"$f":"IF(C2291=$X$4,\"Enter smelter details\", IF(ISERROR($V2291),\"\",OFFSET('Smelter Look-up'!$F$4,$V2291-4,0)))","v":""},{"$f":"IF(ISERROR($V2291),\"\",OFFSET('Smelter Look-up'!$G$4,$V2291-4,0))","v":""},{"$f":"IF(ISERROR($V2291),\"\",OFFSET('Smelter Look-up'!$H$4,$V2291-4,0))","v":""},{"$f":"IF(ISERROR($V2291),\"\",OFFSET('Smelter Look-up'!$I$4,$V2291-4,0))","v":""},{"$nulls":7},{"$f":"IF(ISERROR($V2291),\"\",OFFSET('Smelter Look-up'!$C$4,$V2291-4,0)&\"\")","v":""},"",{"$f":"IF(B2291=\"\",\"\",IF(ISERROR(MATCH($J2291,SorP!$B$1:$B$6230,0)),\"\",INDIRECT(\"'SorP'!$A$\"&MATCH($J2291,SorP!$B$1:$B$6230,0))))","v":""},null,{"$f":"IF(C2291=\"\",NA(),MATCH($B2291&$C2291,'Smelter Look-up'!$J:$J,0))","v":{"$error":"#N/A"}},null,0,null,null,null,""]
[null,{"$f":"IF(LEN(A2292)=0,\"\",INDEX('Smelter Look-up'!$A:$A,MATCH($A2292,'Smelter Look-up'!$E:$E,0)))","v":""},{"$f":"IF(LEN(A2292)=0,\"\",INDEX('Smelter Look-up'!$C:$C,MATCH($A2292,'Smelter Look-up'!$E:$E,0)))","v":""},null,{"$f":"IF(ISERROR($V2292),\"\",OFFSET('Smelter Look-up'!$D$4,$V2292-4,0)&\"\")","v":""},{"$f":"IF(ISERROR($V2292),\"\",OFFSET('Smelter Look-up'!$E$4,$V2292-4,0))","v":""},{"$f":"IF(C2292=$X$4,\"Enter smelter details\", IF(ISERROR($V2292),\"\",OFFSET('Smelter Look-up'!$F$4,$V2292-4,0)))","v":""},{"$f":"IF(ISERROR($V2292),\"\",OFFSET('Smelter Look-up'!$G$4,$V2292-4,0))","v":""},{"$f":"IF(ISERROR($V2292),\"\",OFFSET('Smelter Look-up'!$H$4,$V2292-4,0))","v":""},{"$f":"IF(ISERROR($V2292),\"\",OFFSET('Smelter Look-up'!$I$4,$V2292-4,0))","v":""},{"$nulls":7},{"$f":"IF(ISERROR($V2292),\"\",OFFSET('Smelter Look-up'!$C$4,$V2292-4,0)&\"\")","v":""},"",{"$f":"IF(B2292=\"\",\"\",IF(ISERROR(MATCH($J2292,SorP!$B$1:$B$6230,0)),\"\",INDIRECT(\"'SorP'!$A$\"&MATCH($J2292,SorP!$B$1:$B$6230,0))))","v":""},null,{"$f":"IF(C2292=\"\",NA(),MATCH($B2292&$C2292,'Smelter Look-up'!$J:$J,0))","v":{"$error":"#N/A"}},null,0,null,null,null,""]
[null,{"$f":"IF(LEN(A2293)=0,\"\",INDEX('Smelter Look-up'!$A:$A,MATCH($A2293,'Smelter Look-up'!$E:$E,0)))","v":""},{"$f":"IF(LEN(A2293)=0,\"\",INDEX('Smelter Look-up'!$C:$C,MATCH($A2293,'Smelter Look-up'!$E:$E,0)))","v":""},null,{"$f":"IF(ISERROR($V2293),\"\",OFFSET('Smelter Look-up'!$D$4,$V2293-4,0)&\"\")","v":""},{"$f":"IF(ISERROR($V2293),\"\",OFFSET('Smelter Look-up'!$E$4,$V2293-4,0))","v":""},{"$f":"IF(C2293=$X$4,\"Enter smelter details\", IF(ISERROR($V2293),\"\",OFFSET('Smelter Look-up'!$F$4,$V2293-4,0)))","v":""},{"$f":"IF(ISERROR($V2293),\"\",OFFSET('Smelter Look-up'!$G$4,$V2293-4,0))","v":""},{"$f":"IF(ISERROR($V2293),\"\",OFFSET('Smelter Look-up'!$H$4,$V2293-4,0))","v":""},{"$f":"IF(ISERROR($V2293),\"\",OFFSET('Smelter Look-up'!$I$4,$V2293-4,0))","v":""},{"$nulls":7},{"$f":"IF(ISERROR($V2293),\"\",OFFSET('Smelter Look-up'!$C$4,$V2293-4,0)&\"\")","v":""},"",{"$f":"IF(B2293=\"\",\"\",IF(ISERROR(MATCH($J2293,SorP!$B$1:$B$6230,0)),\"\",INDIRECT(\"'SorP'!$A$\"&MATCH($J2293,SorP!$B$1:$B$6230,0))))","v":""},null,{"$f":"IF(C2293=\"\",NA(),MATCH($B2293&$C2293,'Smelter Look-up'!$J:$J,0))","v":{"$error":"#N/A"}},null,0,null,null,null,""]
[null,{"$f":"IF(LEN(A2294)=0,\"\",INDEX('Smelter Look-up'!$A:$A,MATCH($A2294,'Smelter Look-up'!$E:$E,0)))","v":""},{"$f":"IF(LEN(A2294)=0,\"\",INDEX('Smelter Look-up'!$C:$C,MATCH($A2294,'Smelter Look-up'!$E:$E,0)))","v":""},null,{"$f":"IF(ISERROR($V2294),\"\",OFFSET('Smelter Look-up'!$D$4,$V2294-4,0)&\"\")","v":""},{"$f":"IF(ISERROR($V2294),\"\",OFFSET('Smelter Look-up'!$E$4,$V2294-4,0))","v":""},{"$f":"IF(C2294=$X$4,\"Enter smelter details\", IF(ISERROR($V2294),\"\",OFFSET('Smelter Look-up'!$F$4,$V2294-4,0)))","v":""},{"$f":"IF(ISERROR($V2294),\"\",OFFSET('Smelter Look-up'!$G$4,$V2294-4,0))","v":""},{"$f":"IF(ISERROR($V2294),\"\",OFFSET('Smelter Look-up'!$H$4,$V2294-4,0))","v":""},{"$f":"IF(ISERROR($V2294),\"\",OFFSET('Smelter Look-up'!$I$4,$V2294-4,0))","v":""},{"$nulls":7},{"$f":"IF(ISERROR($V2294),\"\",OFFSET('Smelter Look-up'!$C$4,$V2294-4,0)&\"\")","v":""},"",{"$f":"IF(B2294=\"\",\"\",IF(ISERROR(MATCH($J2294,SorP!$B$1:$B$6230,0)),\"\",INDIRECT(\"'SorP'!$A$\"&MATCH($J2294,SorP!$B$1:$B$6230,0))))","v":""},null,{"$f":"IF(C2294=\"\",NA(),MATCH($B2294&$C2294,'Smelter Look-up'!$J:$J,0))","v":{"$error":"#N/A"}},null,0,null,null,null,""]
[null,{"$f":"IF(LEN(A2295)=0,\"\",INDEX('Smelter Look-up'!$A:$A,MATCH($A2295,'Smelter Look-up'!$E:$E,0)))","v":""},{"$f":"IF(LEN(A2295)=0,\"\",INDEX('Smelter Look-up'!$C:$C,MATCH($A2295,'Smelter Look-up'!$E:$E,0)))","v":""},null,{"$f":"IF(ISERROR($V2295),\"\",OFFSET('Smelter Look-up'!$D$4,$V2295-4,0)&\"\")","v":""},{"$f":"IF(ISERROR($V2295),\"\",OFFSET('Smelter Look-up'!$E$4,$V2295-4,0))","v":""},{"$f":"IF(C2295=$X$4,\"Enter smelter details\", IF(ISERROR($V2295),\"\",OFFSET('Smelter Look-up'!$F$4,$V2295-4,0)))","v":""},{"$f":"IF(ISERROR($V2295),\"\",OFFSET('Smelter Look-up'!$G$4,$V2295-4,0))","v":""},{"$f":"IF(ISERROR($V2295),\"\",OFFSET('Smelter Look-up'!$H$4,$V2295-4,0))","v":""},{"$f":"IF(ISERROR($V2295),\"\",OFFSET('Smelter Look-up'!$I$4,$V2295-4,0))","v":""},{"$nulls":7},{"$f":"IF(ISERROR($V2295),\"\",OFFSET('Smelter Look-up'!$C$4,$V2295-4,0)&\"\")","v":""},"",{"$f":"IF(B2295=\"\",\"\",IF(ISERROR(MATCH($J2295,SorP!$B$1:$B$6230,0)),\"\",INDIRECT(\"'SorP'!$A$\"&MATCH($J2295,SorP!$B$1:$B$6230,0))))","v":""},null,{"$f":"IF(C2295=\"\",NA(),MATCH($B2295&$C2295,'Smelter Look-up'!$J:$J,0))","v":{"$error":"#N/A"}},null,0,null,null,null,""]
[null,{"$f":"IF(LEN(A2296)=0,\"\",INDEX('Smelter Look-up'!$A:$A,MATCH($A2296,'Smelter Look-up'!$E:$E,0)))","v":""},{"$f":"IF(LEN(A2296)=0,\"\",INDEX('Smelter Look-up'!$C:$C,MATCH($A2296,'Smelter Look-up'!$E:$E,0)))","v":""},null,{"$f":"IF(ISERROR($V2296),\"\",OFFSET('Smelter Look-up'!$D$4,$V2296-4,0)&\"\")","v":""},{"$f":"IF(ISERROR($V2296),\"\",OFFSET('Smelter Look-up'!$E$4,$V2296-4,0))","v":""},{"$f":"IF(C2296=$X$4,\"Enter smelter details\", IF(ISERROR($V2296),\"\",OFFSET('Smelter Look-up'!$F$4,$V2296-4,0)))","v":""},{"$f":"IF(ISERROR($V2296),\"\",OFFSET('Smelter Look-up'!$G$4,$V2296-4,0))","v":""},{"$f":"IF(ISERROR($V2296),\"\",OFFSET('Smelter Look-up'!$H$4,$V2296-4,0))","v":""},{"$f":"IF(ISERROR($V2296),\"\",OFFSET('Smelter Look-up'!$I$4,$V2296-4,0))","v":""},{"$nulls":7},{"$f":"IF(ISERROR($V2296),\"\",OFFSET('Smelter Look-up'!$C$4,$V2296-4,0)&\"\")","v":""},"",{"$f":"IF(B2296=\"\",\"\",IF(ISERROR(MATCH($J2296,SorP!$B$1:$B$6230,0)),\"\",INDIRECT(\"'SorP'!$A$\"&MATCH($J2296,SorP!$B$1:$B$6230,0))))","v":""},null,{"$f":"IF(C2296=\"\",NA(),MATCH($B2296&$C2296,'Smelter Look-up'!$J:$J,0))","v":{"$error":"#N/A"}},null,0,null,null,null,""]
[null,{"$f":"IF(LEN(A2297)=0,\"\",INDEX('Smelter Look-up'!$A:$A,MATCH($A2297,'Smelter Look-up'!$E:$E,0)))","v":""},{"$f":"IF(LEN(A2297)=0,\"\",INDEX('Smelter Look-up'!$C:$C,MATCH($A2297,'Smelter Look-up'!$E:$E,0)))","v":""},null,{"$f":"IF(ISERROR($V2297),\"\",OFFSET('Smelter Look-up'!$D$4,$V2297-4,0)&\"\")","v":""},{"$f":"IF(ISERROR($V2297),\"\",OFFSET('Smelter Look-up'!$E$4,$V2297-4,0))","v":""},{"$f":"IF(C2297=$X$4,\"Enter smelter details\", IF(ISERROR($V2297),\"\",OFFSET('Smelter Look-up'!$F$4,$V2297-4,0)))","v":""},{"$f":"IF(ISERROR($V2297),\"\",OFFSET('Smelter Look-up'!$G$4,$V2297-4,0))","v":""},{"$f":"IF(ISERROR($V2297),\"\",OFFSET('Smelter Look-up'!$H$4,$V2297-4,0))","v":""},{"$f":"IF(ISERROR($V2297),\"\",OFFSET('Smelter Look-up'!$I$4,$V2297-4,0))","v":""},{"$nulls":7},{"$f":"IF(ISERROR($V2297),\"\",OFFSET('Smelter Look-up'!$C$4,$V2297-4,0)&\"\")","v":""},"",{"$f":"IF(B2297=\"\",\"\",IF(ISERROR(MATCH($J2297,SorP!$B$1:$B$6230,0)),\"\",INDIRECT(\"'SorP'!$A$\"&MATCH($J2297,SorP!$B$1:$B$6230,0))))","v":""},null,{"$f":"IF(C2297=\"\",NA(),MATCH($B2297&$C2297,'Smelter Look-up'!$J:$J,0))","v":{"$error":"#N/A"}},null,0,null,null,null,""]
[null,{"$f":"IF(LEN(A2298)=0,\"\",INDEX('Smelter Look-up'!$A:$A,MATCH($A2298,'Smelter Look-up'!$E:$E,0)))","v":""},{"$f":"IF(LEN(A2298)=0,\"\",INDEX('Smelter Look-up'!$C:$C,MATCH($A2298,'Smelter Look-up'!$E:$E,0)))","v":""},null,{"$f":"IF(ISERROR($V2298),\"\",OFFSET('Smelter Look-up'!$D$4,$V2298-4,0)&\"\")","v":""},{"$f":"IF(ISERROR($V2298),\"\",OFFSET('Smelter Look-up'!$E$4,$V2298-4,0))","v":""},{"$f":"IF(C2298=$X$4,\"Enter smelter details\", IF(ISERROR($V2298),\"\",OFFSET('Smelter Look-up'!$F$4,$V2298-4,0)))","v":""},{"$f":"IF(ISERROR($V2298),\"\",OFFSET('Smelter Look-up'!$G$4,$V2298-4,0))","v":""},{"$f":"IF(ISERROR($V2298),\"\",OFFSET('Smelter Look-up'!$H$4,$V2298-4,0))","v":""},{"$f":"IF(ISERROR($V2298),\"\",OFFSET('Smelter Look-up'!$I$4,$V2298-4,0))","v":""},{"$nulls":7},{"$f":"IF(ISERROR($V2298),\"\",OFFSET('Smelter Look-up'!$C$4,$V2298-4,0)&\"\")","v":""},"",{"$f":"IF(B2298=\"\",\"\",IF(ISERROR(MATCH($J2298,SorP!$B$1:$B$6230,0)),\"\",INDIRECT(\"'SorP'!$A$\"&MATCH($J2298,SorP!$B$1:$B$6230,0))))","v":""},null,{"$f":"IF(C2298=\"\",NA(),MATCH($B2298&$C2298,'Smelter Look-up'!$J:$J,0))","v":{"$error":"#N/A"}},null,0,null,null,null,""]
[null,{"$f":"IF(LEN(A2299)=0,\"\",INDEX('Smelter Look-up'!$A:$A,MATCH($A2299,'Smelter Look-up'!$E:$E,0)))","v":""},{"$f":"IF(LEN(A2299)=0,\"\",INDEX('Smelter Look-up'!$C:$C,MATCH($A2299,'Smelter Look-up'!$E:$E,0)))","v":""},null,{"$f":"IF(ISERROR($V2299),\"\",OFFSET('Smelter Look-up'!$D$4,$V2299-4,0)&\"\")","v":""},{"$f":"IF(ISERROR($V2299),\"\",OFFSET('Smelter Look-up'!$E$4,$V2299-4,0))","v":""},{"$f":"IF(C2299=$X$4,\"Enter smelter details\", IF(ISERROR($V2299),\"\",OFFSET('Smelter Look-up'!$F$4,$V2299-4,0)))","v":""},{"$f":"IF(ISERROR($V2299),\"\",OFFSET('Smelter Look-up'!$G$4,$V2299-4,0))","v":""},{"$f":"IF(ISERROR($V2299),\"\",OFFSET('Smelter Look-up'!$H$4,$V2299-4,0))","v":""},{"$f":"IF(ISERROR($V2299),\"\",OFFSET('Smelter Look-up'!$I$4,$V2299-4,0))","v":""},{"$nulls":7},{"$f":"IF(ISERROR($V2299),\"\",OFFSET('Smelter Look-up'!$C$4,$V2299-4,0)&\"\")","v":""},{"$f":"IF(B2299=\"\",\"\",IF(ISERROR(MATCH($E2299,CL,0)),\"Unknown\",INDIRECT(\"'C'!$A$\"&MATCH($E2299,CL,0)+1)))","v":""},{"$f":"IF(B2299=\"\",\"\",IF(ISERROR(MATCH($J2299,SorP!$B$1:$B$6230,0)),\"\",INDIRECT(\"'SorP'!$A$\"&MATCH($J2299,SorP!$B$1:$B$6230,0))))","v":""},null,{"$f":"IF(C2299=\"\",NA(),MATCH($B2299&$C2299,'Smelter Look-up'!$J:$J,0))","v":{"$error":"#N/A"}},null,{"$f":"IF(AND(C2299=\"Smelter not listed\",OR(LEN(D2299)=0,LEN(E2299)=0)),1,0)","v":0},null,null,null,{"$f":"B2299&C2299","v":""}]
[null,{"$f":"IF(LEN(A2300)=0,\"\",INDEX('Smelter Look-up'!$A:$A,MATCH($A2300,'Smelter Look-up'!$E:$E,0)))","v":""},{"$f":"IF(LEN(A2300)=0,\"\",INDEX('Smelter Look-up'!$C:$C,MATCH($A2300,'Smelter Look-up'!$E:$E,0)))","v":""},null,{"$f":"IF(ISERROR($V2300),\"\",OFFSET('Smelter Look-up'!$D$4,$V2300-4,0)&\"\")","v":""},{"$f":"IF(ISERROR($V2300),\"\",OFFSET('Smelter Look-up'!$E$4,$V2300-4,0))","v":""},{"$f":"IF(C2300=$X$4,\"Enter smelter details\", IF(ISERROR($V2300),\"\",OFFSET('Smelter Look-up'!$F$4,$V2300-4,0)))","v":""},{"$f":"IF(ISERROR($V2300),\"\",OFFSET('Smelter Look-up'!$G$4,$V2300-4,0))","v":""},{"$f":"IF(ISERROR($V2300),\"\",OFFSET('Smelter Look-up'!$H$4,$V2300-4,0))","v":""},{"$f":"IF(ISERROR($V2300),\"\",OFFSET('Smelter Look-up'!$I$4,$V2300-4,0))","v":""},{"$nulls":7},{"$f":"IF(ISERROR($V2300),\"\",OFFSET('Smelter Look-up'!$C$4,$V2300-4,0)&\"\")","v":""},"",{"$f":"IF(B2300=\"\",\"\",IF(ISERROR(MATCH($J2300,SorP!$B$1:$B$6230,0)),\"\",INDIRECT(\"'SorP'!$A$\"&MATCH($J2300,SorP!$B$1:$B$6230,0))))","v":""},null,{"$f":"IF(C2300=\"\",NA(),MATCH($B2300&$C2300,'Smelter Look-up'!$J:$J,0))","v":{"$error":"#N/A"}},null,0,null,null,null,""]
[null,{"$f":"IF(LEN(A2301)=0,\"\",INDEX('Smelter Look-up'!$A:$A,MATCH($A2301,'Smelter Look-up'!$E:$E,0)))","v":""},{"$f":"IF(LEN(A2301)=0,\"\",INDEX('Smelter Look-up'!$C:$C,MATCH($A2301,'Smelter Look-up'!$E:$E,0)))","v":""},null,{"$f":"IF(ISERROR($V2301),\"\",OFFSET('Smelter Look-up'!$D$4,$V2301-4,0)&\"\")","v":""},{"$f":"IF(ISERROR($V2301),\"\",OFFSET('Smelter Look-up'!$E$4,$V2301-4,0))","v":""},{"$f":"IF(C2301=$X$4,\"Enter smelter details\", IF(ISERROR($V2301),\"\",OFFSET('Smelter Look-up'!$F$4,$V2301-4,0)))","v":""},{"$f":"IF(ISERROR($V2301),\"\",OFFSET('Smelter Look-up'!$G$4,$V2301-4,0))","v":""},{"$f":"IF(ISERROR($V2301),\"\",OFFSET('Smelter Look-up'!$H$4,$V2301-4,0))","v":""},{"$f":"IF(ISERROR($V2301),\"\",OFFSET('Smelter Look-up'!$I$4,$V2301-4,0))","v":""},{"$nulls":7},{"$f":"IF(ISERROR($V2301),\"\",OFFSET('Smelter Look-up'!$C$4,$V2301-4,0)&\"\")","v":""},"",{"$f":"IF(B2301=\"\",\"\",IF(ISERROR(MATCH($J2301,SorP!$B$1:$B$6230,0)),\"\",INDIRECT(\"'SorP'!$A$\"&MATCH($J2301,SorP!$B$1:$B$6230,0))))","v":""},null,{"$f":"IF(C2301=\"\",NA(),MATCH($B2301&$C2301,'Smelter Look-up'!$J:$J,0))","v":{"$error":"#N/A"}},null,0,null,null,null,""]
[null,{"$f":"IF(LEN(A2302)=0,\"\",INDEX('Smelter Look-up'!$A:$A,MATCH($A2302,'Smelter Look-up'!$E:$E,0)))","v":""},{"$f":"IF(LEN(A2302)=0,\"\",INDEX('Smelter Look-up'!$C:$C,MATCH($A2302,'Smelter Look-up'!$E:$E,0)))","v":""},null,{"$f":"IF(ISERROR($V2302),\"\",OFFSET('Smelter Look-up'!$D$4,$V2302-4,0)&\"\")","v":""},{"$f":"IF(ISERROR($V2302),\"\",OFFSET('Smelter Look-up'!$E$4,$V2302-4,0))","v":""},{"$f":"IF(C2302=$X$4,\"Enter smelter details\", IF(ISERROR($V2302),\"\",OFFSET('Smelter Look-up'!$F$4,$V2302-4,0)))","v":""},{"$f":"IF(ISERROR($V2302),\"\",OFFSET('Smelter Look-up'!$G$4,$V2302-4,0))","v":""},{"$f":"IF(ISERROR($V2302),\"\",OFFSET('Smelter Look-up'!$H$4,$V2302-4,0))","v":""},{"$f":"IF(ISERROR($V2302),\"\",OFFSET('Smelter Look-up'!$I$4,$V2302-4,0))","v":""},{"$nulls":7},{"$f":"IF(ISERROR($V2302),\"\",OFFSET('Smelter Look-up'!$C$4,$V2302-4,0)&\"\")","v":""},"",{"$f":"IF(B2302=\"\",\"\",IF(ISERROR(MATCH($J2302,SorP!$B$1:$B$6230,0)),\"\",INDIRECT(\"'SorP'!$A$\"&MATCH($J2302,SorP!$B$1:$B$6230,0))))","v":""},null,{"$f":"IF(C2302=\"\",NA(),MATCH($B2302&$C2302,'Smelter Look-up'!$J:$J,0))","v":{"$error":"#N/A"}},null,0,null,null,null,""]
[null,{"$f":"IF(LEN(A2303)=0,\"\",INDEX('Smelter Look-up'!$A:$A,MATCH($A2303,'Smelter Look-up'!$E:$E,0)))","v":""},{"$f":"IF(LEN(A2303)=0,\"\",INDEX('Smelter Look-up'!$C:$C,MATCH($A2303,'Smelter Look-up'!$E:$E,0)))","v":""},null,{"$f":"IF(ISERROR($V2303),\"\",OFFSET('Smelter Look-up'!$D$4,$V2303-4,0)&\"\")","v":""},{"$f":"IF(ISERROR($V2303),\"\",OFFSET('Smelter Look-up'!$E$4,$V2303-4,0))","v":""},{"$f":"IF(C2303=$X$4,\"Enter smelter details\", IF(ISERROR($V2303),\"\",OFFSET('Smelter Look-up'!$F$4,$V2303-4,0)))","v":""},{"$f":"IF(ISERROR($V2303),\"\",OFFSET('Smelter Look-up'!$G$4,$V2303-4,0))","v":""},{"$f":"IF(ISERROR($V2303),\"\",OFFSET('Smelter Look-up'!$H$4,$V2303-4,0))","v":""},{"$f":"IF(ISERROR($V2303),\"\",OFFSET('Smelter Look-up'!$I$4,$V2303-4,0))","v":""},{"$nulls":7},{"$f":"IF(ISERROR($V2303),\"\",OFFSET('Smelter Look-up'!$C$4,$V2303-4,0)&\"\")","v":""},"",{"$f":"IF(B2303=\"\",\"\",IF(ISERROR(MATCH($J2303,SorP!$B$1:$B$6230,0)),\"\",INDIRECT(\"'SorP'!$A$\"&MATCH($J2303,SorP!$B$1:$B$6230,0))))","v":""},null,{"$f":"IF(C2303=\"\",NA(),MATCH($B2303&$C2303,'Smelter Look-up'!$J:$J,0))","v":{"$error":"#N/A"}},null,0,null,null,null,""]
[null,{"$f":"IF(LEN(A2304)=0,\"\",INDEX('Smelter Look-up'!$A:$A,MATCH($A2304,'Smelter Look-up'!$E:$E,0)))","v":""},{"$f":"IF(LEN(A2304)=0,\"\",INDEX('Smelter Look-up'!$C:$C,MATCH($A2304,'Smelter Look-up'!$E:$E,0)))","v":""},null,{"$f":"IF(ISERROR($V2304),\"\",OFFSET('Smelter Look-up'!$D$4,$V2304-4,0)&\"\")","v":""},{"$f":"IF(ISERROR($V2304),\"\",OFFSET('Smelter Look-up'!$E$4,$V2304-4,0))","v":""},{"$f":"IF(C2304=$X$4,\"Enter smelter details\", IF(ISERROR($V2304),\"\",OFFSET('Smelter Look-up'!$F$4,$V2304-4,0)))","v":""},{"$f":"IF(ISERROR($V2304),\"\",OFFSET('Smelter Look-up'!$G$4,$V2304-4,0))","v":""},{"$f":"IF(ISERROR($V2304),\"\",OFFSET('Smelter Look-up'!$H$4,$V2304-4,0))","v":""},{"$f":"IF(ISERROR($V2304),\"\",OFFSET('Smelter Look-up'!$I$4,$V2304-4,0))","v":""},{"$nulls":7},{"$f":"IF(ISERROR($V2304),\"\",OFFSET('Smelter Look-up'!$C$4,$V2304-4,0)&\"\")","v":""},"",{"$f":"IF(B2304=\"\",\"\",IF(ISERROR(MATCH($J2304,SorP!$B$1:$B$6230,0)),\"\",INDIRECT(\"'SorP'!$A$\"&MATCH($J2304,SorP!$B$1:$B$6230,0))))","v":""},null,{"$f":"IF(C2304=\"\",NA(),MATCH($B2304&$C2304,'Smelter Look-up'!$J:$J,0))","v":{"$error":"#N/A"}},null,0,null,null,null,""]
[null,{"$f":"IF(LEN(A2305)=0,\"\",INDEX('Smelter Look-up'!$A:$A,MATCH($A2305,'Smelter Look-up'!$E:$E,0)))","v":""},{"$f":"IF(LEN(A2305)=0,\"\",INDEX('Smelter Look-up'!$C:$C,MATCH($A2305,'Smelter Look-up'!$E:$E,0)))","v":""},null,{"$f":"IF(ISERROR($V2305),\"\",OFFSET('Smelter Look-up'!$D$4,$V2305-4,0)&\"\")","v":""},{"$f":"IF(ISERROR($V2305),\"\",OFFSET('Smelter Look-up'!$E$4,$V2305-4,0))","v":""},{"$f":"IF(C2305=$X$4,\"Enter smelter details\", IF(ISERROR($V2305),\"\",OFFSET('Smelter Look-up'!$F$4,$V2305-4,0)))","v":""},{"$f":"IF(ISERROR($V2305),\"\",OFFSET('Smelter Look-up'!$G$4,$V2305-4,0))","v":""},{"$f":"IF(ISERROR($V2305),\"\",OFFSET('Smelter Look-up'!$H$4,$V2305-4,0))","v":""},{"$f":"IF(ISERROR($V2305),\"\",OFFSET('Smelter Look-up'!$I$4,$V2305-4,0))","v":""},{"$nulls":7},{"$f":"IF(ISERROR($V2305),\"\",OFFSET('Smelter Look-up'!$C$4,$V2305-4,0)&\"\")","v":""},"",{"$f":"IF(B2305=\"\",\"\",IF(ISERROR(MATCH($J2305,SorP!$B$1:$B$6230,0)),\"\",INDIRECT(\"'SorP'!$A$\"&MATCH($J2305,SorP!$B$1:$B$6230,0))))","v":""},null,{"$f":"IF(C2305=\"\",NA(),MATCH($B2305&$C2305,'Smelter Look-up'!$J:$J,0))","v":{"$error":"#N/A"}},null,0,null,null,null,""]
[null,{"$f":"IF(LEN(A2306)=0,\"\",INDEX('Smelter Look-up'!$A:$A,MATCH($A2306,'Smelter Look-up'!$E:$E,0)))","v":""},{"$f":"IF(LEN(A2306)=0,\"\",INDEX('Smelter Look-up'!$C:$C,MATCH($A2306,'Smelter Look-up'!$E:$E,0)))","v":""},null,{"$f":"IF(ISERROR($V2306),\"\",OFFSET('Smelter Look-up'!$D$4,$V2306-4,0)&\"\")","v":""},{"$f":"IF(ISERROR($V2306),\"\",OFFSET('Smelter Look-up'!$E$4,$V2306-4,0))","v":""},{"$f":"IF(C2306=$X$4,\"Enter smelter details\", IF(ISERROR($V2306),\"\",OFFSET('Smelter Look-up'!$F$4,$V2306-4,0)))","v":""},{"$f":"IF(ISERROR($V2306),\"\",OFFSET('Smelter Look-up'!$G$4,$V2306-4,0))","v":""},{"$f":"IF(ISERROR($V2306),\"\",OFFSET('Smelter Look-up'!$H$4,$V2306-4,0))","v":""},{"$f":"IF(ISERROR($V2306),\"\",OFFSET('Smelter Look-up'!$I$4,$V2306-4,0))","v":""},{"$nulls":7},{"$f":"IF(ISERROR($V2306),\"\",OFFSET('Smelter Look-up'!$C$4,$V2306-4,0)&\"\")","v":""},"",{"$f":"IF(B2306=\"\",\"\",IF(ISERROR(MATCH($J2306,SorP!$B$1:$B$6230,0)),\"\",INDIRECT(\"'SorP'!$A$\"&MATCH($J2306,SorP!$B$1:$B$6230,0))))","v":""},null,{"$f":"IF(C2306=\"\",NA(),MATCH($B2306&$C2306,'Smelter Look-up'!$J:$J,0))","v":{"$error":"#N/A"}},null,0,null,null,null,""]
[null,{"$f":"IF(LEN(A2307)=0,\"\",INDEX('Smelter Look-up'!$A:$A,MATCH($A2307,'Smelter Look-up'!$E:$E,0)))","v":""},{"$f":"IF(LEN(A2307)=0,\"\",INDEX('Smelter Look-up'!$C:$C,MATCH($A2307,'Smelter Look-up'!$E:$E,0)))","v":""},null,{"$f":"IF(ISERROR($V2307),\"\",OFFSET('Smelter Look-up'!$D$4,$V2307-4,0)&\"\")","v":""},{"$f":"IF(ISERROR($V2307),\"\",OFFSET('Smelter Look-up'!$E$4,$V2307-4,0))","v":""},{"$f":"IF(C2307=$X$4,\"Enter smelter details\", IF(ISERROR($V2307),\"\",OFFSET('Smelter Look-up'!$F$4,$V2307-4,0)))","v":""},{"$f":"IF(ISERROR($V2307),\"\",OFFSET('Smelter Look-up'!$G$4,$V2307-4,0))","v":""},{"$f":"IF(ISERROR($V2307),\"\",OFFSET('Smelter Look-up'!$H$4,$V2307-4,0))","v":""},{"$f":"IF(ISERROR($V2307),\"\",OFFSET('Smelter Look-up'!$I$4,$V2307-4,0))","v":""},{"$nulls":7},{"$f":"IF(ISERROR($V2307),\"\",OFFSET('Smelter Look-up'!$C$4,$V2307-4,0)&\"\")","v":""},"",{"$f":"IF(B2307=\"\",\"\",IF(ISERROR(MATCH($J2307,SorP!$B$1:$B$6230,0)),\"\",INDIRECT(\"'SorP'!$A$\"&MATCH($J2307,SorP!$B$1:$B$6230,0))))","v":""},null,{"$f":"IF(C2307=\"\",NA(),MATCH($B2307&$C2307,'Smelter Look-up'!$J:$J,0))","v":{"$error":"#N/A"}},null,0,null,null,null,""]
[null,{"$f":"IF(LEN(A2308)=0,\"\",INDEX('Smelter Look-up'!$A:$A,MATCH($A2308,'Smelter Look-up'!$E:$E,0)))","v":""},{"$f":"IF(LEN(A2308)=0,\"\",INDEX('Smelter Look-up'!$C:$C,MATCH($A2308,'Smelter Look-up'!$E:$E,0)))","v":""},null,{"$f":"IF(ISERROR($V2308),\"\",OFFSET('Smelter Look-up'!$D$4,$V2308-4,0)&\"\")","v":""},{"$f":"IF(ISERROR($V2308),\"\",OFFSET('Smelter Look-up'!$E$4,$V2308-4,0))","v":""},{"$f":"IF(C2308=$X$4,\"Enter smelter details\", IF(ISERROR($V2308),\"\",OFFSET('Smelter Look-up'!$F$4,$V2308-4,0)))","v":""},{"$f":"IF(ISERROR($V2308),\"\",OFFSET('Smelter Look-up'!$G$4,$V2308-4,0))","v":""},{"$f":"IF(ISERROR($V2308),\"\",OFFSET('Smelter Look-up'!$H$4,$V2308-4,0))","v":""},{"$f":"IF(ISERROR($V2308),\"\",OFFSET('Smelter Look-up'!$I$4,$V2308-4,0))","v":""},{"$nulls":7},{"$f":"IF(ISERROR($V2308),\"\",OFFSET('Smelter Look-up'!$C$4,$V2308-4,0)&\"\")","v":""},"",{"$f":"IF(B2308=\"\",\"\",IF(ISERROR(MATCH($J2308,SorP!$B$1:$B$6230,0)),\"\",INDIRECT(\"'SorP'!$A$\"&MATCH($J2308,SorP!$B$1:$B$6230,0))))","v":""},null,{"$f":"IF(C2308=\"\",NA(),MATCH($B2308&$C2308,'Smelter Look-up'!$J:$J,0))","v":{"$error":"#N/A"}},null,0,null,null,null,""]
[null,{"$f":"IF(LEN(A2309)=0,\"\",INDEX('Smelter Look-up'!$A:$A,MATCH($A2309,'Smelter Look-up'!$E:$E,0)))","v":""},{"$f":"IF(LEN(A2309)=0,\"\",INDEX('Smelter Look-up'!$C:$C,MATCH($A2309,'Smelter Look-up'!$E:$E,0)))","v":""},null,{"$f":"IF(ISERROR($V2309),\"\",OFFSET('Smelter Look-up'!$D$4,$V2309-4,0)&\"\")","v":""},{"$f":"IF(ISERROR($V2309),\"\",OFFSET('Smelter Look-up'!$E$4,$V2309-4,0))","v":""},{"$f":"IF(C2309=$X$4,\"Enter smelter details\", IF(ISERROR($V2309),\"\",OFFSET('Smelter Look-up'!$F$4,$V2309-4,0)))","v":""},{"$f":"IF(ISERROR($V2309),\"\",OFFSET('Smelter Look-up'!$G$4,$V2309-4,0))","v":""},{"$f":"IF(ISERROR($V2309),\"\",OFFSET('Smelter Look-up'!$H$4,$V2309-4,0))","v":""},{"$f":"IF(ISERROR($V2309),\"\",OFFSET('Smelter Look-up'!$I$4,$V2309-4,0))","v":""},{"$nulls":7},{"$f":"IF(ISERROR($V2309),\"\",OFFSET('Smelter Look-up'!$C$4,$V2309-4,0)&\"\")","v":""},"",{"$f":"IF(B2309=\"\",\"\",IF(ISERROR(MATCH($J2309,SorP!$B$1:$B$6230,0)),\"\",INDIRECT(\"'SorP'!$A$\"&MATCH($J2309,SorP!$B$1:$B$6230,0))))","v":""},null,{"$f":"IF(C2309=\"\",NA(),MATCH($B2309&$C2309,'Smelter Look-up'!$J:$J,0))","v":{"$error":"#N/A"}},null,0,null,null,null,""]
[null,{"$f":"IF(LEN(A2310)=0,\"\",INDEX('Smelter Look-up'!$A:$A,MATCH($A2310,'Smelter Look-up'!$E:$E,0)))","v":""},{"$f":"IF(LEN(A2310)=0,\"\",INDEX('Smelter Look-up'!$C:$C,MATCH($A2310,'Smelter Look-up'!$E:$E,0)))","v":""},null,{"$f":"IF(ISERROR($V2310),\"\",OFFSET('Smelter Look-up'!$D$4,$V2310-4,0)&\"\")","v":""},{"$f":"IF(ISERROR($V2310),\"\",OFFSET('Smelter Look-up'!$E$4,$V2310-4,0))","v":""},{"$f":"IF(C2310=$X$4,\"Enter smelter details\", IF(ISERROR($V2310),\"\",OFFSET('Smelter Look-up'!$F$4,$V2310-4,0)))","v":""},{"$f":"IF(ISERROR($V2310),\"\",OFFSET('Smelter Look-up'!$G$4,$V2310-4,0))","v":""},{"$f":"IF(ISERROR($V2310),\"\",OFFSET('Smelter Look-up'!$H$4,$V2310-4,0))","v":""},{"$f":"IF(ISERROR($V2310),\"\",OFFSET('Smelter Look-up'!$I$4,$V2310-4,0))","v":""},{"$nulls":7},{"$f":"IF(ISERROR($V2310),\"\",OFFSET('Smelter Look-up'!$C$4,$V2310-4,0)&\"\")","v":""},"",{"$f":"IF(B2310=\"\",\"\",IF(ISERROR(MATCH($J2310,SorP!$B$1:$B$6230,0)),\"\",INDIRECT(\"'SorP'!$A$\"&MATCH($J2310,SorP!$B$1:$B$6230,0))))","v":""},null,{"$f":"IF(C2310=\"\",NA(),MATCH($B2310&$C2310,'Smelter Look-up'!$J:$J,0))","v":{"$error":"#N/A"}},null,0,null,null,null,""]
[null,{"$f":"IF(LEN(A2311)=0,\"\",INDEX('Smelter Look-up'!$A:$A,MATCH($A2311,'Smelter Look-up'!$E:$E,0)))","v":""},{"$f":"IF(LEN(A2311)=0,\"\",INDEX('Smelter Look-up'!$C:$C,MATCH($A2311,'Smelter Look-up'!$E:$E,0)))","v":""},null,{"$f":"IF(ISERROR($V2311),\"\",OFFSET('Smelter Look-up'!$D$4,$V2311-4,0)&\"\")","v":""},{"$f":"IF(ISERROR($V2311),\"\",OFFSET('Smelter Look-up'!$E$4,$V2311-4,0))","v":""},{"$f":"IF(C2311=$X$4,\"Enter smelter details\", IF(ISERROR($V2311),\"\",OFFSET('Smelter Look-up'!$F$4,$V2311-4,0)))","v":""},{"$f":"IF(ISERROR($V2311),\"\",OFFSET('Smelter Look-up'!$G$4,$V2311-4,0))","v":""},{"$f":"IF(ISERROR($V2311),\"\",OFFSET('Smelter Look-up'!$H$4,$V2311-4,0))","v":""},{"$f":"IF(ISERROR($V2311),\"\",OFFSET('Smelter Look-up'!$I$4,$V2311-4,0))","v":""},{"$nulls":7},{"$f":"IF(ISERROR($V2311),\"\",OFFSET('Smelter Look-up'!$C$4,$V2311-4,0)&\"\")","v":""},"",{"$f":"IF(B2311=\"\",\"\",IF(ISERROR(MATCH($J2311,SorP!$B$1:$B$6230,0)),\"\",INDIRECT(\"'SorP'!$A$\"&MATCH($J2311,SorP!$B$1:$B$6230,0))))","v":""},null,{"$f":"IF(C2311=\"\",NA(),MATCH($B2311&$C2311,'Smelter Look-up'!$J:$J,0))","v":{"$error":"#N/A"}},null,0,null,null,null,""]
[null,{"$f":"IF(LEN(A2312)=0,\"\",INDEX('Smelter Look-up'!$A:$A,MATCH($A2312,'Smelter Look-up'!$E:$E,0)))","v":""},{"$f":"IF(LEN(A2312)=0,\"\",INDEX('Smelter Look-up'!$C:$C,MATCH($A2312,'Smelter Look-up'!$E:$E,0)))","v":""},null,{"$f":"IF(ISERROR($V2312),\"\",OFFSET('Smelter Look-up'!$D$4,$V2312-4,0)&\"\")","v":""},{"$f":"IF(ISERROR($V2312),\"\",OFFSET('Smelter Look-up'!$E$4,$V2312-4,0))","v":""},{"$f":"IF(C2312=$X$4,\"Enter smelter details\", IF(ISERROR($V2312),\"\",OFFSET('Smelter Look-up'!$F$4,$V2312-4,0)))","v":""},{"$f":"IF(ISERROR($V2312),\"\",OFFSET('Smelter Look-up'!$G$4,$V2312-4,0))","v":""},{"$f":"IF(ISERROR($V2312),\"\",OFFSET('Smelter Look-up'!$H$4,$V2312-4,0))","v":""},{"$f":"IF(ISERROR($V2312),\"\",OFFSET('Smelter Look-up'!$I$4,$V2312-4,0))","v":""},{"$nulls":7},{"$f":"IF(ISERROR($V2312),\"\",OFFSET('Smelter Look-up'!$C$4,$V2312-4,0)&\"\")","v":""},"",{"$f":"IF(B2312=\"\",\"\",IF(ISERROR(MATCH($J2312,SorP!$B$1:$B$6230,0)),\"\",INDIRECT(\"'SorP'!$A$\"&MATCH($J2312,SorP!$B$1:$B$6230,0))))","v":""},null,{"$f":"IF(C2312=\"\",NA(),MATCH($B2312&$C2312,'Smelter Look-up'!$J:$J,0))","v":{"$error":"#N/A"}},null,0,null,null,null,""]
[null,{"$f":"IF(LEN(A2313)=0,\"\",INDEX('Smelter Look-up'!$A:$A,MATCH($A2313,'Smelter Look-up'!$E:$E,0)))","v":""},{"$f":"IF(LEN(A2313)=0,\"\",INDEX('Smelter Look-up'!$C:$C,MATCH($A2313,'Smelter Look-up'!$E:$E,0)))","v":""},null,{"$f":"IF(ISERROR($V2313),\"\",OFFSET('Smelter Look-up'!$D$4,$V2313-4,0)&\"\")","v":""},{"$f":"IF(ISERROR($V2313),\"\",OFFSET('Smelter Look-up'!$E$4,$V2313-4,0))","v":""},{"$f":"IF(C2313=$X$4,\"Enter smelter details\", IF(ISERROR($V2313),\"\",OFFSET('Smelter Look-up'!$F$4,$V2313-4,0)))","v":""},{"$f":"IF(ISERROR($V2313),\"\",OFFSET('Smelter Look-up'!$G$4,$V2313-4,0))","v":""},{"$f":"IF(ISERROR($V2313),\"\",OFFSET('Smelter Look-up'!$H$4,$V2313-4,0))","v":""},{"$f":"IF(ISERROR($V2313),\"\",OFFSET('Smelter Look-up'!$I$4,$V2313-4,0))","v":""},{"$nulls":7},{"$f":"IF(ISERROR($V2313),\"\",OFFSET('Smelter Look-up'!$C$4,$V2313-4,0)&\"\")","v":""},"",{"$f":"IF(B2313=\"\",\"\",IF(ISERROR(MATCH($J2313,SorP!$B$1:$B$6230,0)),\"\",INDIRECT(\"'SorP'!$A$\"&MATCH($J2313,SorP!$B$1:$B$6230,0))))","v":""},null,{"$f":"IF(C2313=\"\",NA(),MATCH($B2313&$C2313,'Smelter Look-up'!$J:$J,0))","v":{"$error":"#N/A"}},null,0,null,null,null,""]
[null,{"$f":"IF(LEN(A2314)=0,\"\",INDEX('Smelter Look-up'!$A:$A,MATCH($A2314,'Smelter Look-up'!$E:$E,0)))","v":""},{"$f":"IF(LEN(A2314)=0,\"\",INDEX('Smelter Look-up'!$C:$C,MATCH($A2314,'Smelter Look-up'!$E:$E,0)))","v":""},null,{"$f":"IF(ISERROR($V2314),\"\",OFFSET('Smelter Look-up'!$D$4,$V2314-4,0)&\"\")","v":""},{"$f":"IF(ISERROR($V2314),\"\",OFFSET('Smelter Look-up'!$E$4,$V2314-4,0))","v":""},{"$f":"IF(C2314=$X$4,\"Enter smelter details\", IF(ISERROR($V2314),\"\",OFFSET('Smelter Look-up'!$F$4,$V2314-4,0)))","v":""},{"$f":"IF(ISERROR($V2314),\"\",OFFSET('Smelter Look-up'!$G$4,$V2314-4,0))","v":""},{"$f":"IF(ISERROR($V2314),\"\",OFFSET('Smelter Look-up'!$H$4,$V2314-4,0))","v":""},{"$f":"IF(ISERROR($V2314),\"\",OFFSET('Smelter Look-up'!$I$4,$V2314-4,0))","v":""},{"$nulls":7},{"$f":"IF(ISERROR($V2314),\"\",OFFSET('Smelter Look-up'!$C$4,$V2314-4,0)&\"\")","v":""},"",{"$f":"IF(B2314=\"\",\"\",IF(ISERROR(MATCH($J2314,SorP!$B$1:$B$6230,0)),\"\",INDIRECT(\"'SorP'!$A$\"&MATCH($J2314,SorP!$B$1:$B$6230,0))))","v":""},null,{"$f":"IF(C2314=\"\",NA(),MATCH($B2314&$C2314,'Smelter Look-up'!$J:$J,0))","v":{"$error":"#N/A"}},null,0,null,null,null,""]
[null,{"$f":"IF(LEN(A2315)=0,\"\",INDEX('Smelter Look-up'!$A:$A,MATCH($A2315,'Smelter Look-up'!$E:$E,0)))","v":""},{"$f":"IF(LEN(A2315)=0,\"\",INDEX('Smelter Look-up'!$C:$C,MATCH($A2315,'Smelter Look-up'!$E:$E,0)))","v":""},null,{"$f":"IF(ISERROR($V2315),\"\",OFFSET('Smelter Look-up'!$D$4,$V2315-4,0)&\"\")","v":""},{"$f":"IF(ISERROR($V2315),\"\",OFFSET('Smelter Look-up'!$E$4,$V2315-4,0))","v":""},{"$f":"IF(C2315=$X$4,\"Enter smelter details\", IF(ISERROR($V2315),\"\",OFFSET('Smelter Look-up'!$F$4,$V2315-4,0)))","v":""},{"$f":"IF(ISERROR($V2315),\"\",OFFSET('Smelter Look-up'!$G$4,$V2315-4,0))","v":""},{"$f":"IF(ISERROR($V2315),\"\",OFFSET('Smelter Look-up'!$H$4,$V2315-4,0))","v":""},{"$f":"IF(ISERROR($V2315),\"\",OFFSET('Smelter Look-up'!$I$4,$V2315-4,0))","v":""},{"$nulls":7},{"$f":"IF(ISERROR($V2315),\"\",OFFSET('Smelter Look-up'!$C$4,$V2315-4,0)&\"\")","v":""},"",{"$f":"IF(B2315=\"\",\"\",IF(ISERROR(MATCH($J2315,SorP!$B$1:$B$6230,0)),\"\",INDIRECT(\"'SorP'!$A$\"&MATCH($J2315,SorP!$B$1:$B$6230,0))))","v":""},null,{"$f":"IF(C2315=\"\",NA(),MATCH($B2315&$C2315,'Smelter Look-up'!$J:$J,0))","v":{"$error":"#N/A"}},null,0,null,null,null,""]
[null,{"$f":"IF(LEN(A2316)=0,\"\",INDEX('Smelter Look-up'!$A:$A,MATCH($A2316,'Smelter Look-up'!$E:$E,0)))","v":""},{"$f":"IF(LEN(A2316)=0,\"\",INDEX('Smelter Look-up'!$C:$C,MATCH($A2316,'Smelter Look-up'!$E:$E,0)))","v":""},null,{"$f":"IF(ISERROR($V2316),\"\",OFFSET('Smelter Look-up'!$D$4,$V2316-4,0)&\"\")","v":""},{"$f":"IF(ISERROR($V2316),\"\",OFFSET('Smelter Look-up'!$E$4,$V2316-4,0))","v":""},{"$f":"IF(C2316=$X$4,\"Enter smelter details\", IF(ISERROR($V2316),\"\",OFFSET('Smelter Look-up'!$F$4,$V2316-4,0)))","v":""},{"$f":"IF(ISERROR($V2316),\"\",OFFSET('Smelter Look-up'!$G$4,$V2316-4,0))","v":""},{"$f":"IF(ISERROR($V2316),\"\",OFFSET('Smelter Look-up'!$H$4,$V2316-4,0))","v":""},{"$f":"IF(ISERROR($V2316),\"\",OFFSET('Smelter Look-up'!$I$4,$V2316-4,0))","v":""},{"$nulls":7},{"$f":"IF(ISERROR($V2316),\"\",OFFSET('Smelter Look-up'!$C$4,$V2316-4,0)&\"\")","v":""},"",{"$f":"IF(B2316=\"\",\"\",IF(ISERROR(MATCH($J2316,SorP!$B$1:$B$6230,0)),\"\",INDIRECT(\"'SorP'!$A$\"&MATCH($J2316,SorP!$B$1:$B$6230,0))))","v":""},null,{"$f":"IF(C2316=\"\",NA(),MATCH($B2316&$C2316,'Smelter Look-up'!$J:$J,0))","v":{"$error":"#N/A"}},null,0,null,null,null,""]
[null,{"$f":"IF(LEN(A2317)=0,\"\",INDEX('Smelter Look-up'!$A:$A,MATCH($A2317,'Smelter Look-up'!$E:$E,0)))","v":""},{"$f":"IF(LEN(A2317)=0,\"\",INDEX('Smelter Look-up'!$C:$C,MATCH($A2317,'Smelter Look-up'!$E:$E,0)))","v":""},null,{"$f":"IF(ISERROR($V2317),\"\",OFFSET('Smelter Look-up'!$D$4,$V2317-4,0)&\"\")","v":""},{"$f":"IF(ISERROR($V2317),\"\",OFFSET('Smelter Look-up'!$E$4,$V2317-4,0))","v":""},{"$f":"IF(C2317=$X$4,\"Enter smelter details\", IF(ISERROR($V2317),\"\",OFFSET('Smelter Look-up'!$F$4,$V2317-4,0)))","v":""},{"$f":"IF(ISERROR($V2317),\"\",OFFSET('Smelter Look-up'!$G$4,$V2317-4,0))","v":""},{"$f":"IF(ISERROR($V2317),\"\",OFFSET('Smelter Look-up'!$H$4,$V2317-4,0))","v":""},{"$f":"IF(ISERROR($V2317),\"\",OFFSET('Smelter Look-up'!$I$4,$V2317-4,0))","v":""},{"$nulls":7},{"$f":"IF(ISERROR($V2317),\"\",OFFSET('Smelter Look-up'!$C$4,$V2317-4,0)&\"\")","v":""},"",{"$f":"IF(B2317=\"\",\"\",IF(ISERROR(MATCH($J2317,SorP!$B$1:$B$6230,0)),\"\",INDIRECT(\"'SorP'!$A$\"&MATCH($J2317,SorP!$B$1:$B$6230,0))))","v":""},null,{"$f":"IF(C2317=\"\",NA(),MATCH($B2317&$C2317,'Smelter Look-up'!$J:$J,0))","v":{"$error":"#N/A"}},null,0,null,null,null,""]
[null,{"$f":"IF(LEN(A2318)=0,\"\",INDEX('Smelter Look-up'!$A:$A,MATCH($A2318,'Smelter Look-up'!$E:$E,0)))","v":""},{"$f":"IF(LEN(A2318)=0,\"\",INDEX('Smelter Look-up'!$C:$C,MATCH($A2318,'Smelter Look-up'!$E:$E,0)))","v":""},null,{"$f":"IF(ISERROR($V2318),\"\",OFFSET('Smelter Look-up'!$D$4,$V2318-4,0)&\"\")","v":""},{"$f":"IF(ISERROR($V2318),\"\",OFFSET('Smelter Look-up'!$E$4,$V2318-4,0))","v":""},{"$f":"IF(C2318=$X$4,\"Enter smelter details\", IF(ISERROR($V2318),\"\",OFFSET('Smelter Look-up'!$F$4,$V2318-4,0)))","v":""},{"$f":"IF(ISERROR($V2318),\"\",OFFSET('Smelter Look-up'!$G$4,$V2318-4,0))","v":""},{"$f":"IF(ISERROR($V2318),\"\",OFFSET('Smelter Look-up'!$H$4,$V2318-4,0))","v":""},{"$f":"IF(ISERROR($V2318),\"\",OFFSET('Smelter Look-up'!$I$4,$V2318-4,0))","v":""},{"$nulls":7},{"$f":"IF(ISERROR($V2318),\"\",OFFSET('Smelter Look-up'!$C$4,$V2318-4,0)&\"\")","v":""},"",{"$f":"IF(B2318=\"\",\"\",IF(ISERROR(MATCH($J2318,SorP!$B$1:$B$6230,0)),\"\",INDIRECT(\"'SorP'!$A$\"&MATCH($J2318,SorP!$B$1:$B$6230,0))))","v":""},null,{"$f":"IF(C2318=\"\",NA(),MATCH($B2318&$C2318,'Smelter Look-up'!$J:$J,0))","v":{"$error":"#N/A"}},null,0,null,null,null,""]
[null,{"$f":"IF(LEN(A2319)=0,\"\",INDEX('Smelter Look-up'!$A:$A,MATCH($A2319,'Smelter Look-up'!$E:$E,0)))","v":""},{"$f":"IF(LEN(A2319)=0,\"\",INDEX('Smelter Look-up'!$C:$C,MATCH($A2319,'Smelter Look-up'!$E:$E,0)))","v":""},null,{"$f":"IF(ISERROR($V2319),\"\",OFFSET('Smelter Look-up'!$D$4,$V2319-4,0)&\"\")","v":""},{"$f":"IF(ISERROR($V2319),\"\",OFFSET('Smelter Look-up'!$E$4,$V2319-4,0))","v":""},{"$f":"IF(C2319=$X$4,\"Enter smelter details\", IF(ISERROR($V2319),\"\",OFFSET('Smelter Look-up'!$F$4,$V2319-4,0)))","v":""},{"$f":"IF(ISERROR($V2319),\"\",OFFSET('Smelter Look-up'!$G$4,$V2319-4,0))","v":""},{"$f":"IF(ISERROR($V2319),\"\",OFFSET('Smelter Look-up'!$H$4,$V2319-4,0))","v":""},{"$f":"IF(ISERROR($V2319),\"\",OFFSET('Smelter Look-up'!$I$4,$V2319-4,0))","v":""},{"$nulls":7},{"$f":"IF(ISERROR($V2319),\"\",OFFSET('Smelter Look-up'!$C$4,$V2319-4,0)&\"\")","v":""},"",{"$f":"IF(B2319=\"\",\"\",IF(ISERROR(MATCH($J2319,SorP!$B$1:$B$6230,0)),\"\",INDIRECT(\"'SorP'!$A$\"&MATCH($J2319,SorP!$B$1:$B$6230,0))))","v":""},null,{"$f":"IF(C2319=\"\",NA(),MATCH($B2319&$C2319,'Smelter Look-up'!$J:$J,0))","v":{"$error":"#N/A"}},null,0,null,null,null,""]
[null,{"$f":"IF(LEN(A2320)=0,\"\",INDEX('Smelter Look-up'!$A:$A,MATCH($A2320,'Smelter Look-up'!$E:$E,0)))","v":""},{"$f":"IF(LEN(A2320)=0,\"\",INDEX('Smelter Look-up'!$C:$C,MATCH($A2320,'Smelter Look-up'!$E:$E,0)))","v":""},null,{"$f":"IF(ISERROR($V2320),\"\",OFFSET('Smelter Look-up'!$D$4,$V2320-4,0)&\"\")","v":""},{"$f":"IF(ISERROR($V2320),\"\",OFFSET('Smelter Look-up'!$E$4,$V2320-4,0))","v":""},{"$f":"IF(C2320=$X$4,\"Enter smelter details\", IF(ISERROR($V2320),\"\",OFFSET('Smelter Look-up'!$F$4,$V2320-4,0)))","v":""},{"$f":"IF(ISERROR($V2320),\"\",OFFSET('Smelter Look-up'!$G$4,$V2320-4,0))","v":""},{"$f":"IF(ISERROR($V2320),\"\",OFFSET('Smelter Look-up'!$H$4,$V2320-4,0))","v":""},{"$f":"IF(ISERROR($V2320),\"\",OFFSET('Smelter Look-up'!$I$4,$V2320-4,0))","v":""},{"$nulls":7},{"$f":"IF(ISERROR($V2320),\"\",OFFSET('Smelter Look-up'!$C$4,$V2320-4,0)&\"\")","v":""},"",{"$f":"IF(B2320=\"\",\"\",IF(ISERROR(MATCH($J2320,SorP!$B$1:$B$6230,0)),\"\",INDIRECT(\"'SorP'!$A$\"&MATCH($J2320,SorP!$B$1:$B$6230,0))))","v":""},null,{"$f":"IF(C2320=\"\",NA(),MATCH($B2320&$C2320,'Smelter Look-up'!$J:$J,0))","v":{"$error":"#N/A"}},null,0,null,null,null,""]
[null,{"$f":"IF(LEN(A2321)=0,\"\",INDEX('Smelter Look-up'!$A:$A,MATCH($A2321,'Smelter Look-up'!$E:$E,0)))","v":""},{"$f":"IF(LEN(A2321)=0,\"\",INDEX('Smelter Look-up'!$C:$C,MATCH($A2321,'Smelter Look-up'!$E:$E,0)))","v":""},null,{"$f":"IF(ISERROR($V2321),\"\",OFFSET('Smelter Look-up'!$D$4,$V2321-4,0)&\"\")","v":""},{"$f":"IF(ISERROR($V2321),\"\",OFFSET('Smelter Look-up'!$E$4,$V2321-4,0))","v":""},{"$f":"IF(C2321=$X$4,\"Enter smelter details\", IF(ISERROR($V2321),\"\",OFFSET('Smelter Look-up'!$F$4,$V2321-4,0)))","v":""},{"$f":"IF(ISERROR($V2321),\"\",OFFSET('Smelter Look-up'!$G$4,$V2321-4,0))","v":""},{"$f":"IF(ISERROR($V2321),\"\",OFFSET('Smelter Look-up'!$H$4,$V2321-4,0))","v":""},{"$f":"IF(ISERROR($V2321),\"\",OFFSET('Smelter Look-up'!$I$4,$V2321-4,0))","v":""},{"$nulls":7},{"$f":"IF(ISERROR($V2321),\"\",OFFSET('Smelter Look-up'!$C$4,$V2321-4,0)&\"\")","v":""},"",{"$f":"IF(B2321=\"\",\"\",IF(ISERROR(MATCH($J2321,SorP!$B$1:$B$6230,0)),\"\",INDIRECT(\"'SorP'!$A$\"&MATCH($J2321,SorP!$B$1:$B$6230,0))))","v":""},null,{"$f":"IF(C2321=\"\",NA(),MATCH($B2321&$C2321,'Smelter Look-up'!$J:$J,0))","v":{"$error":"#N/A"}},null,0,null,null,null,""]
[null,{"$f":"IF(LEN(A2322)=0,\"\",INDEX('Smelter Look-up'!$A:$A,MATCH($A2322,'Smelter Look-up'!$E:$E,0)))","v":""},{"$f":"IF(LEN(A2322)=0,\"\",INDEX('Smelter Look-up'!$C:$C,MATCH($A2322,'Smelter Look-up'!$E:$E,0)))","v":""},null,{"$f":"IF(ISERROR($V2322),\"\",OFFSET('Smelter Look-up'!$D$4,$V2322-4,0)&\"\")","v":""},{"$f":"IF(ISERROR($V2322),\"\",OFFSET('Smelter Look-up'!$E$4,$V2322-4,0))","v":""},{"$f":"IF(C2322=$X$4,\"Enter smelter details\", IF(ISERROR($V2322),\"\",OFFSET('Smelter Look-up'!$F$4,$V2322-4,0)))","v":""},{"$f":"IF(ISERROR($V2322),\"\",OFFSET('Smelter Look-up'!$G$4,$V2322-4,0))","v":""},{"$f":"IF(ISERROR($V2322),\"\",OFFSET('Smelter Look-up'!$H$4,$V2322-4,0))","v":""},{"$f":"IF(ISERROR($V2322),\"\",OFFSET('Smelter Look-up'!$I$4,$V2322-4,0))","v":""},{"$nulls":7},{"$f":"IF(ISERROR($V2322),\"\",OFFSET('Smelter Look-up'!$C$4,$V2322-4,0)&\"\")","v":""},"",{"$f":"IF(B2322=\"\",\"\",IF(ISERROR(MATCH($J2322,SorP!$B$1:$B$6230,0)),\"\",INDIRECT(\"'SorP'!$A$\"&MATCH($J2322,SorP!$B$1:$B$6230,0))))","v":""},null,{"$f":"IF(C2322=\"\",NA(),MATCH($B2322&$C2322,'Smelter Look-up'!$J:$J,0))","v":{"$error":"#N/A"}},null,0,null,null,null,""]
[null,{"$f":"IF(LEN(A2323)=0,\"\",INDEX('Smelter Look-up'!$A:$A,MATCH($A2323,'Smelter Look-up'!$E:$E,0)))","v":""},{"$f":"IF(LEN(A2323)=0,\"\",INDEX('Smelter Look-up'!$C:$C,MATCH($A2323,'Smelter Look-up'!$E:$E,0)))","v":""},null,{"$f":"IF(ISERROR($V2323),\"\",OFFSET('Smelter Look-up'!$D$4,$V2323-4,0)&\"\")","v":""},{"$f":"IF(ISERROR($V2323),\"\",OFFSET('Smelter Look-up'!$E$4,$V2323-4,0))","v":""},{"$f":"IF(C2323=$X$4,\"Enter smelter details\", IF(ISERROR($V2323),\"\",OFFSET('Smelter Look-up'!$F$4,$V2323-4,0)))","v":""},{"$f":"IF(ISERROR($V2323),\"\",OFFSET('Smelter Look-up'!$G$4,$V2323-4,0))","v":""},{"$f":"IF(ISERROR($V2323),\"\",OFFSET('Smelter Look-up'!$H$4,$V2323-4,0))","v":""},{"$f":"IF(ISERROR($V2323),\"\",OFFSET('Smelter Look-up'!$I$4,$V2323-4,0))","v":""},{"$nulls":7},{"$f":"IF(ISERROR($V2323),\"\",OFFSET('Smelter Look-up'!$C$4,$V2323-4,0)&\"\")","v":""},"",{"$f":"IF(B2323=\"\",\"\",IF(ISERROR(MATCH($J2323,SorP!$B$1:$B$6230,0)),\"\",INDIRECT(\"'SorP'!$A$\"&MATCH($J2323,SorP!$B$1:$B$6230,0))))","v":""},null,{"$f":"IF(C2323=\"\",NA(),MATCH($B2323&$C2323,'Smelter Look-up'!$J:$J,0))","v":{"$error":"#N/A"}},null,0,null,null,null,""]
[null,{"$f":"IF(LEN(A2324)=0,\"\",INDEX('Smelter Look-up'!$A:$A,MATCH($A2324,'Smelter Look-up'!$E:$E,0)))","v":""},{"$f":"IF(LEN(A2324)=0,\"\",INDEX('Smelter Look-up'!$C:$C,MATCH($A2324,'Smelter Look-up'!$E:$E,0)))","v":""},null,{"$f":"IF(ISERROR($V2324),\"\",OFFSET('Smelter Look-up'!$D$4,$V2324-4,0)&\"\")","v":""},{"$f":"IF(ISERROR($V2324),\"\",OFFSET('Smelter Look-up'!$E$4,$V2324-4,0))","v":""},{"$f":"IF(C2324=$X$4,\"Enter smelter details\", IF(ISERROR($V2324),\"\",OFFSET('Smelter Look-up'!$F$4,$V2324-4,0)))","v":""},{"$f":"IF(ISERROR($V2324),\"\",OFFSET('Smelter Look-up'!$G$4,$V2324-4,0))","v":""},{"$f":"IF(ISERROR($V2324),\"\",OFFSET('Smelter Look-up'!$H$4,$V2324-4,0))","v":""},{"$f":"IF(ISERROR($V2324),\"\",OFFSET('Smelter Look-up'!$I$4,$V2324-4,0))","v":""},{"$nulls":7},{"$f":"IF(ISERROR($V2324),\"\",OFFSET('Smelter Look-up'!$C$4,$V2324-4,0)&\"\")","v":""},"",{"$f":"IF(B2324=\"\",\"\",IF(ISERROR(MATCH($J2324,SorP!$B$1:$B$6230,0)),\"\",INDIRECT(\"'SorP'!$A$\"&MATCH($J2324,SorP!$B$1:$B$6230,0))))","v":""},null,{"$f":"IF(C2324=\"\",NA(),MATCH($B2324&$C2324,'Smelter Look-up'!$J:$J,0))","v":{"$error":"#N/A"}},null,0,null,null,null,""]
[null,{"$f":"IF(LEN(A2325)=0,\"\",INDEX('Smelter Look-up'!$A:$A,MATCH($A2325,'Smelter Look-up'!$E:$E,0)))","v":""},{"$f":"IF(LEN(A2325)=0,\"\",INDEX('Smelter Look-up'!$C:$C,MATCH($A2325,'Smelter Look-up'!$E:$E,0)))","v":""},null,{"$f":"IF(ISERROR($V2325),\"\",OFFSET('Smelter Look-up'!$D$4,$V2325-4,0)&\"\")","v":""},{"$f":"IF(ISERROR($V2325),\"\",OFFSET('Smelter Look-up'!$E$4,$V2325-4,0))","v":""},{"$f":"IF(C2325=$X$4,\"Enter smelter details\", IF(ISERROR($V2325),\"\",OFFSET('Smelter Look-up'!$F$4,$V2325-4,0)))","v":""},{"$f":"IF(ISERROR($V2325),\"\",OFFSET('Smelter Look-up'!$G$4,$V2325-4,0))","v":""},{"$f":"IF(ISERROR($V2325),\"\",OFFSET('Smelter Look-up'!$H$4,$V2325-4,0))","v":""},{"$f":"IF(ISERROR($V2325),\"\",OFFSET('Smelter Look-up'!$I$4,$V2325-4,0))","v":""},{"$nulls":7},{"$f":"IF(ISERROR($V2325),\"\",OFFSET('Smelter Look-up'!$C$4,$V2325-4,0)&\"\")","v":""},"",{"$f":"IF(B2325=\"\",\"\",IF(ISERROR(MATCH($J2325,SorP!$B$1:$B$6230,0)),\"\",INDIRECT(\"'SorP'!$A$\"&MATCH($J2325,SorP!$B$1:$B$6230,0))))","v":""},null,{"$f":"IF(C2325=\"\",NA(),MATCH($B2325&$C2325,'Smelter Look-up'!$J:$J,0))","v":{"$error":"#N/A"}},null,0,null,null,null,""]
[null,{"$f":"IF(LEN(A2326)=0,\"\",INDEX('Smelter Look-up'!$A:$A,MATCH($A2326,'Smelter Look-up'!$E:$E,0)))","v":""},{"$f":"IF(LEN(A2326)=0,\"\",INDEX('Smelter Look-up'!$C:$C,MATCH($A2326,'Smelter Look-up'!$E:$E,0)))","v":""},null,{"$f":"IF(ISERROR($V2326),\"\",OFFSET('Smelter Look-up'!$D$4,$V2326-4,0)&\"\")","v":""},{"$f":"IF(ISERROR($V2326),\"\",OFFSET('Smelter Look-up'!$E$4,$V2326-4,0))","v":""},{"$f":"IF(C2326=$X$4,\"Enter smelter details\", IF(ISERROR($V2326),\"\",OFFSET('Smelter Look-up'!$F$4,$V2326-4,0)))","v":""},{"$f":"IF(ISERROR($V2326),\"\",OFFSET('Smelter Look-up'!$G$4,$V2326-4,0))","v":""},{"$f":"IF(ISERROR($V2326),\"\",OFFSET('Smelter Look-up'!$H$4,$V2326-4,0))","v":""},{"$f":"IF(ISERROR($V2326),\"\",OFFSET('Smelter Look-up'!$I$4,$V2326-4,0))","v":""},{"$nulls":7},{"$f":"IF(ISERROR($V2326),\"\",OFFSET('Smelter Look-up'!$C$4,$V2326-4,0)&\"\")","v":""},"",{"$f":"IF(B2326=\"\",\"\",IF(ISERROR(MATCH($J2326,SorP!$B$1:$B$6230,0)),\"\",INDIRECT(\"'SorP'!$A$\"&MATCH($J2326,SorP!$B$1:$B$6230,0))))","v":""},null,{"$f":"IF(C2326=\"\",NA(),MATCH($B2326&$C2326,'Smelter Look-up'!$J:$J,0))","v":{"$error":"#N/A"}},null,0,null,null,null,""]
[null,{"$f":"IF(LEN(A2327)=0,\"\",INDEX('Smelter Look-up'!$A:$A,MATCH($A2327,'Smelter Look-up'!$E:$E,0)))","v":""},{"$f":"IF(LEN(A2327)=0,\"\",INDEX('Smelter Look-up'!$C:$C,MATCH($A2327,'Smelter Look-up'!$E:$E,0)))","v":""},null,{"$f":"IF(ISERROR($V2327),\"\",OFFSET('Smelter Look-up'!$D$4,$V2327-4,0)&\"\")","v":""},{"$f":"IF(ISERROR($V2327),\"\",OFFSET('Smelter Look-up'!$E$4,$V2327-4,0))","v":""},{"$f":"IF(C2327=$X$4,\"Enter smelter details\", IF(ISERROR($V2327),\"\",OFFSET('Smelter Look-up'!$F$4,$V2327-4,0)))","v":""},{"$f":"IF(ISERROR($V2327),\"\",OFFSET('Smelter Look-up'!$G$4,$V2327-4,0))","v":""},{"$f":"IF(ISERROR($V2327),\"\",OFFSET('Smelter Look-up'!$H$4,$V2327-4,0))","v":""},{"$f":"IF(ISERROR($V2327),\"\",OFFSET('Smelter Look-up'!$I$4,$V2327-4,0))","v":""},{"$nulls":7},{"$f":"IF(ISERROR($V2327),\"\",OFFSET('Smelter Look-up'!$C$4,$V2327-4,0)&\"\")","v":""},"",{"$f":"IF(B2327=\"\",\"\",IF(ISERROR(MATCH($J2327,SorP!$B$1:$B$6230,0)),\"\",INDIRECT(\"'SorP'!$A$\"&MATCH($J2327,SorP!$B$1:$B$6230,0))))","v":""},null,{"$f":"IF(C2327=\"\",NA(),MATCH($B2327&$C2327,'Smelter Look-up'!$J:$J,0))","v":{"$error":"#N/A"}},null,0,null,null,null,""]
[null,{"$f":"IF(LEN(A2328)=0,\"\",INDEX('Smelter Look-up'!$A:$A,MATCH($A2328,'Smelter Look-up'!$E:$E,0)))","v":""},{"$f":"IF(LEN(A2328)=0,\"\",INDEX('Smelter Look-up'!$C:$C,MATCH($A2328,'Smelter Look-up'!$E:$E,0)))","v":""},null,{"$f":"IF(ISERROR($V2328),\"\",OFFSET('Smelter Look-up'!$D$4,$V2328-4,0)&\"\")","v":""},{"$f":"IF(ISERROR($V2328),\"\",OFFSET('Smelter Look-up'!$E$4,$V2328-4,0))","v":""},{"$f":"IF(C2328=$X$4,\"Enter smelter details\", IF(ISERROR($V2328),\"\",OFFSET('Smelter Look-up'!$F$4,$V2328-4,0)))","v":""},{"$f":"IF(ISERROR($V2328),\"\",OFFSET('Smelter Look-up'!$G$4,$V2328-4,0))","v":""},{"$f":"IF(ISERROR($V2328),\"\",OFFSET('Smelter Look-up'!$H$4,$V2328-4,0))","v":""},{"$f":"IF(ISERROR($V2328),\"\",OFFSET('Smelter Look-up'!$I$4,$V2328-4,0))","v":""},{"$nulls":7},{"$f":"IF(ISERROR($V2328),\"\",OFFSET('Smelter Look-up'!$C$4,$V2328-4,0)&\"\")","v":""},"",{"$f":"IF(B2328=\"\",\"\",IF(ISERROR(MATCH($J2328,SorP!$B$1:$B$6230,0)),\"\",INDIRECT(\"'SorP'!$A$\"&MATCH($J2328,SorP!$B$1:$B$6230,0))))","v":""},null,{"$f":"IF(C2328=\"\",NA(),MATCH($B2328&$C2328,'Smelter Look-up'!$J:$J,0))","v":{"$error":"#N/A"}},null,0,null,null,null,""]
[null,{"$f":"IF(LEN(A2329)=0,\"\",INDEX('Smelter Look-up'!$A:$A,MATCH($A2329,'Smelter Look-up'!$E:$E,0)))","v":""},{"$f":"IF(LEN(A2329)=0,\"\",INDEX('Smelter Look-up'!$C:$C,MATCH($A2329,'Smelter Look-up'!$E:$E,0)))","v":""},null,{"$f":"IF(ISERROR($V2329),\"\",OFFSET('Smelter Look-up'!$D$4,$V2329-4,0)&\"\")","v":""},{"$f":"IF(ISERROR($V2329),\"\",OFFSET('Smelter Look-up'!$E$4,$V2329-4,0))","v":""},{"$f":"IF(C2329=$X$4,\"Enter smelter details\", IF(ISERROR($V2329),\"\",OFFSET('Smelter Look-up'!$F$4,$V2329-4,0)))","v":""},{"$f":"IF(ISERROR($V2329),\"\",OFFSET('Smelter Look-up'!$G$4,$V2329-4,0))","v":""},{"$f":"IF(ISERROR($V2329),\"\",OFFSET('Smelter Look-up'!$H$4,$V2329-4,0))","v":""},{"$f":"IF(ISERROR($V2329),\"\",OFFSET('Smelter Look-up'!$I$4,$V2329-4,0))","v":""},{"$nulls":7},{"$f":"IF(ISERROR($V2329),\"\",OFFSET('Smelter Look-up'!$C$4,$V2329-4,0)&\"\")","v":""},"",{"$f":"IF(B2329=\"\",\"\",IF(ISERROR(MATCH($J2329,SorP!$B$1:$B$6230,0)),\"\",INDIRECT(\"'SorP'!$A$\"&MATCH($J2329,SorP!$B$1:$B$6230,0))))","v":""},null,{"$f":"IF(C2329=\"\",NA(),MATCH($B2329&$C2329,'Smelter Look-up'!$J:$J,0))","v":{"$error":"#N/A"}},null,0,null,null,null,""]
[null,{"$f":"IF(LEN(A2330)=0,\"\",INDEX('Smelter Look-up'!$A:$A,MATCH($A2330,'Smelter Look-up'!$E:$E,0)))","v":""},{"$f":"IF(LEN(A2330)=0,\"\",INDEX('Smelter Look-up'!$C:$C,MATCH($A2330,'Smelter Look-up'!$E:$E,0)))","v":""},null,{"$f":"IF(ISERROR($V2330),\"\",OFFSET('Smelter Look-up'!$D$4,$V2330-4,0)&\"\")","v":""},{"$f":"IF(ISERROR($V2330),\"\",OFFSET('Smelter Look-up'!$E$4,$V2330-4,0))","v":""},{"$f":"IF(C2330=$X$4,\"Enter smelter details\", IF(ISERROR($V2330),\"\",OFFSET('Smelter Look-up'!$F$4,$V2330-4,0)))","v":""},{"$f":"IF(ISERROR($V2330),\"\",OFFSET('Smelter Look-up'!$G$4,$V2330-4,0))","v":""},{"$f":"IF(ISERROR($V2330),\"\",OFFSET('Smelter Look-up'!$H$4,$V2330-4,0))","v":""},{"$f":"IF(ISERROR($V2330),\"\",OFFSET('Smelter Look-up'!$I$4,$V2330-4,0))","v":""},{"$nulls":7},{"$f":"IF(ISERROR($V2330),\"\",OFFSET('Smelter Look-up'!$C$4,$V2330-4,0)&\"\")","v":""},"",{"$f":"IF(B2330=\"\",\"\",IF(ISERROR(MATCH($J2330,SorP!$B$1:$B$6230,0)),\"\",INDIRECT(\"'SorP'!$A$\"&MATCH($J2330,SorP!$B$1:$B$6230,0))))","v":""},null,{"$f":"IF(C2330=\"\",NA(),MATCH($B2330&$C2330,'Smelter Look-up'!$J:$J,0))","v":{"$error":"#N/A"}},null,0,null,null,null,""]
[null,{"$f":"IF(LEN(A2331)=0,\"\",INDEX('Smelter Look-up'!$A:$A,MATCH($A2331,'Smelter Look-up'!$E:$E,0)))","v":""},{"$f":"IF(LEN(A2331)=0,\"\",INDEX('Smelter Look-up'!$C:$C,MATCH($A2331,'Smelter Look-up'!$E:$E,0)))","v":""},null,{"$f":"IF(ISERROR($V2331),\"\",OFFSET('Smelter Look-up'!$D$4,$V2331-4,0)&\"\")","v":""},{"$f":"IF(ISERROR($V2331),\"\",OFFSET('Smelter Look-up'!$E$4,$V2331-4,0))","v":""},{"$f":"IF(C2331=$X$4,\"Enter smelter details\", IF(ISERROR($V2331),\"\",OFFSET('Smelter Look-up'!$F$4,$V2331-4,0)))","v":""},{"$f":"IF(ISERROR($V2331),\"\",OFFSET('Smelter Look-up'!$G$4,$V2331-4,0))","v":""},{"$f":"IF(ISERROR($V2331),\"\",OFFSET('Smelter Look-up'!$H$4,$V2331-4,0))","v":""},{"$f":"IF(ISERROR($V2331),\"\",OFFSET('Smelter Look-up'!$I$4,$V2331-4,0))","v":""},{"$nulls":7},{"$f":"IF(ISERROR($V2331),\"\",OFFSET('Smelter Look-up'!$C$4,$V2331-4,0)&\"\")","v":""},"",{"$f":"IF(B2331=\"\",\"\",IF(ISERROR(MATCH($J2331,SorP!$B$1:$B$6230,0)),\"\",INDIRECT(\"'SorP'!$A$\"&MATCH($J2331,SorP!$B$1:$B$6230,0))))","v":""},null,{"$f":"IF(C2331=\"\",NA(),MATCH($B2331&$C2331,'Smelter Look-up'!$J:$J,0))","v":{"$error":"#N/A"}},null,0,null,null,null,""]
[null,{"$f":"IF(LEN(A2332)=0,\"\",INDEX('Smelter Look-up'!$A:$A,MATCH($A2332,'Smelter Look-up'!$E:$E,0)))","v":""},{"$f":"IF(LEN(A2332)=0,\"\",INDEX('Smelter Look-up'!$C:$C,MATCH($A2332,'Smelter Look-up'!$E:$E,0)))","v":""},null,{"$f":"IF(ISERROR($V2332),\"\",OFFSET('Smelter Look-up'!$D$4,$V2332-4,0)&\"\")","v":""},{"$f":"IF(ISERROR($V2332),\"\",OFFSET('Smelter Look-up'!$E$4,$V2332-4,0))","v":""},{"$f":"IF(C2332=$X$4,\"Enter smelter details\", IF(ISERROR($V2332),\"\",OFFSET('Smelter Look-up'!$F$4,$V2332-4,0)))","v":""},{"$f":"IF(ISERROR($V2332),\"\",OFFSET('Smelter Look-up'!$G$4,$V2332-4,0))","v":""},{"$f":"IF(ISERROR($V2332),\"\",OFFSET('Smelter Look-up'!$H$4,$V2332-4,0))","v":""},{"$f":"IF(ISERROR($V2332),\"\",OFFSET('Smelter Look-up'!$I$4,$V2332-4,0))","v":""},{"$nulls":7},{"$f":"IF(ISERROR($V2332),\"\",OFFSET('Smelter Look-up'!$C$4,$V2332-4,0)&\"\")","v":""},"",{"$f":"IF(B2332=\"\",\"\",IF(ISERROR(MATCH($J2332,SorP!$B$1:$B$6230,0)),\"\",INDIRECT(\"'SorP'!$A$\"&MATCH($J2332,SorP!$B$1:$B$6230,0))))","v":""},null,{"$f":"IF(C2332=\"\",NA(),MATCH($B2332&$C2332,'Smelter Look-up'!$J:$J,0))","v":{"$error":"#N/A"}},null,0,null,null,null,""]
[null,{"$f":"IF(LEN(A2333)=0,\"\",INDEX('Smelter Look-up'!$A:$A,MATCH($A2333,'Smelter Look-up'!$E:$E,0)))","v":""},{"$f":"IF(LEN(A2333)=0,\"\",INDEX('Smelter Look-up'!$C:$C,MATCH($A2333,'Smelter Look-up'!$E:$E,0)))","v":""},null,{"$f":"IF(ISERROR($V2333),\"\",OFFSET('Smelter Look-up'!$D$4,$V2333-4,0)&\"\")","v":""},{"$f":"IF(ISERROR($V2333),\"\",OFFSET('Smelter Look-up'!$E$4,$V2333-4,0))","v":""},{"$f":"IF(C2333=$X$4,\"Enter smelter details\", IF(ISERROR($V2333),\"\",OFFSET('Smelter Look-up'!$F$4,$V2333-4,0)))","v":""},{"$f":"IF(ISERROR($V2333),\"\",OFFSET('Smelter Look-up'!$G$4,$V2333-4,0))","v":""},{"$f":"IF(ISERROR($V2333),\"\",OFFSET('Smelter Look-up'!$H$4,$V2333-4,0))","v":""},{"$f":"IF(ISERROR($V2333),\"\",OFFSET('Smelter Look-up'!$I$4,$V2333-4,0))","v":""},{"$nulls":7},{"$f":"IF(ISERROR($V2333),\"\",OFFSET('Smelter Look-up'!$C$4,$V2333-4,0)&\"\")","v":""},"",{"$f":"IF(B2333=\"\",\"\",IF(ISERROR(MATCH($J2333,SorP!$B$1:$B$6230,0)),\"\",INDIRECT(\"'SorP'!$A$\"&MATCH($J2333,SorP!$B$1:$B$6230,0))))","v":""},null,{"$f":"IF(C2333=\"\",NA(),MATCH($B2333&$C2333,'Smelter Look-up'!$J:$J,0))","v":{"$error":"#N/A"}},null,0,null,null,null,""]
[null,{"$f":"IF(LEN(A2334)=0,\"\",INDEX('Smelter Look-up'!$A:$A,MATCH($A2334,'Smelter Look-up'!$E:$E,0)))","v":""},{"$f":"IF(LEN(A2334)=0,\"\",INDEX('Smelter Look-up'!$C:$C,MATCH($A2334,'Smelter Look-up'!$E:$E,0)))","v":""},null,{"$f":"IF(ISERROR($V2334),\"\",OFFSET('Smelter Look-up'!$D$4,$V2334-4,0)&\"\")","v":""},{"$f":"IF(ISERROR($V2334),\"\",OFFSET('Smelter Look-up'!$E$4,$V2334-4,0))","v":""},{"$f":"IF(C2334=$X$4,\"Enter smelter details\", IF(ISERROR($V2334),\"\",OFFSET('Smelter Look-up'!$F$4,$V2334-4,0)))","v":""},{"$f":"IF(ISERROR($V2334),\"\",OFFSET('Smelter Look-up'!$G$4,$V2334-4,0))","v":""},{"$f":"IF(ISERROR($V2334),\"\",OFFSET('Smelter Look-up'!$H$4,$V2334-4,0))","v":""},{"$f":"IF(ISERROR($V2334),\"\",OFFSET('Smelter Look-up'!$I$4,$V2334-4,0))","v":""},{"$nulls":7},{"$f":"IF(ISERROR($V2334),\"\",OFFSET('Smelter Look-up'!$C$4,$V2334-4,0)&\"\")","v":""},"",{"$f":"IF(B2334=\"\",\"\",IF(ISERROR(MATCH($J2334,SorP!$B$1:$B$6230,0)),\"\",INDIRECT(\"'SorP'!$A$\"&MATCH($J2334,SorP!$B$1:$B$6230,0))))","v":""},null,{"$f":"IF(C2334=\"\",NA(),MATCH($B2334&$C2334,'Smelter Look-up'!$J:$J,0))","v":{"$error":"#N/A"}},null,0,null,null,null,""]
[null,{"$f":"IF(LEN(A2335)=0,\"\",INDEX('Smelter Look-up'!$A:$A,MATCH($A2335,'Smelter Look-up'!$E:$E,0)))","v":""},{"$f":"IF(LEN(A2335)=0,\"\",INDEX('Smelter Look-up'!$C:$C,MATCH($A2335,'Smelter Look-up'!$E:$E,0)))","v":""},null,{"$f":"IF(ISERROR($V2335),\"\",OFFSET('Smelter Look-up'!$D$4,$V2335-4,0)&\"\")","v":""},{"$f":"IF(ISERROR($V2335),\"\",OFFSET('Smelter Look-up'!$E$4,$V2335-4,0))","v":""},{"$f":"IF(C2335=$X$4,\"Enter smelter details\", IF(ISERROR($V2335),\"\",OFFSET('Smelter Look-up'!$F$4,$V2335-4,0)))","v":""},{"$f":"IF(ISERROR($V2335),\"\",OFFSET('Smelter Look-up'!$G$4,$V2335-4,0))","v":""},{"$f":"IF(ISERROR($V2335),\"\",OFFSET('Smelter Look-up'!$H$4,$V2335-4,0))","v":""},{"$f":"IF(ISERROR($V2335),\"\",OFFSET('Smelter Look-up'!$I$4,$V2335-4,0))","v":""},{"$nulls":7},{"$f":"IF(ISERROR($V2335),\"\",OFFSET('Smelter Look-up'!$C$4,$V2335-4,0)&\"\")","v":""},"",{"$f":"IF(B2335=\"\",\"\",IF(ISERROR(MATCH($J2335,SorP!$B$1:$B$6230,0)),\"\",INDIRECT(\"'SorP'!$A$\"&MATCH($J2335,SorP!$B$1:$B$6230,0))))","v":""},null,{"$f":"IF(C2335=\"\",NA(),MATCH($B2335&$C2335,'Smelter Look-up'!$J:$J,0))","v":{"$error":"#N/A"}},null,0,null,null,null,""]
[null,{"$f":"IF(LEN(A2336)=0,\"\",INDEX('Smelter Look-up'!$A:$A,MATCH($A2336,'Smelter Look-up'!$E:$E,0)))","v":""},{"$f":"IF(LEN(A2336)=0,\"\",INDEX('Smelter Look-up'!$C:$C,MATCH($A2336,'Smelter Look-up'!$E:$E,0)))","v":""},null,{"$f":"IF(ISERROR($V2336),\"\",OFFSET('Smelter Look-up'!$D$4,$V2336-4,0)&\"\")","v":""},{"$f":"IF(ISERROR($V2336),\"\",OFFSET('Smelter Look-up'!$E$4,$V2336-4,0))","v":""},{"$f":"IF(C2336=$X$4,\"Enter smelter details\", IF(ISERROR($V2336),\"\",OFFSET('Smelter Look-up'!$F$4,$V2336-4,0)))","v":""},{"$f":"IF(ISERROR($V2336),\"\",OFFSET('Smelter Look-up'!$G$4,$V2336-4,0))","v":""},{"$f":"IF(ISERROR($V2336),\"\",OFFSET('Smelter Look-up'!$H$4,$V2336-4,0))","v":""},{"$f":"IF(ISERROR($V2336),\"\",OFFSET('Smelter Look-up'!$I$4,$V2336-4,0))","v":""},{"$nulls":7},{"$f":"IF(ISERROR($V2336),\"\",OFFSET('Smelter Look-up'!$C$4,$V2336-4,0)&\"\")","v":""},"",{"$f":"IF(B2336=\"\",\"\",IF(ISERROR(MATCH($J2336,SorP!$B$1:$B$6230,0)),\"\",INDIRECT(\"'SorP'!$A$\"&MATCH($J2336,SorP!$B$1:$B$6230,0))))","v":""},null,{"$f":"IF(C2336=\"\",NA(),MATCH($B2336&$C2336,'Smelter Look-up'!$J:$J,0))","v":{"$error":"#N/A"}},null,0,null,null,null,""]
[null,{"$f":"IF(LEN(A2337)=0,\"\",INDEX('Smelter Look-up'!$A:$A,MATCH($A2337,'Smelter Look-up'!$E:$E,0)))","v":""},{"$f":"IF(LEN(A2337)=0,\"\",INDEX('Smelter Look-up'!$C:$C,MATCH($A2337,'Smelter Look-up'!$E:$E,0)))","v":""},null,{"$f":"IF(ISERROR($V2337),\"\",OFFSET('Smelter Look-up'!$D$4,$V2337-4,0)&\"\")","v":""},{"$f":"IF(ISERROR($V2337),\"\",OFFSET('Smelter Look-up'!$E$4,$V2337-4,0))","v":""},{"$f":"IF(C2337=$X$4,\"Enter smelter details\", IF(ISERROR($V2337),\"\",OFFSET('Smelter Look-up'!$F$4,$V2337-4,0)))","v":""},{"$f":"IF(ISERROR($V2337),\"\",OFFSET('Smelter Look-up'!$G$4,$V2337-4,0))","v":""},{"$f":"IF(ISERROR($V2337),\"\",OFFSET('Smelter Look-up'!$H$4,$V2337-4,0))","v":""},{"$f":"IF(ISERROR($V2337),\"\",OFFSET('Smelter Look-up'!$I$4,$V2337-4,0))","v":""},{"$nulls":7},{"$f":"IF(ISERROR($V2337),\"\",OFFSET('Smelter Look-up'!$C$4,$V2337-4,0)&\"\")","v":""},"",{"$f":"IF(B2337=\"\",\"\",IF(ISERROR(MATCH($J2337,SorP!$B$1:$B$6230,0)),\"\",INDIRECT(\"'SorP'!$A$\"&MATCH($J2337,SorP!$B$1:$B$6230,0))))","v":""},null,{"$f":"IF(C2337=\"\",NA(),MATCH($B2337&$C2337,'Smelter Look-up'!$J:$J,0))","v":{"$error":"#N/A"}},null,0,null,null,null,""]
[null,{"$f":"IF(LEN(A2338)=0,\"\",INDEX('Smelter Look-up'!$A:$A,MATCH($A2338,'Smelter Look-up'!$E:$E,0)))","v":""},{"$f":"IF(LEN(A2338)=0,\"\",INDEX('Smelter Look-up'!$C:$C,MATCH($A2338,'Smelter Look-up'!$E:$E,0)))","v":""},null,{"$f":"IF(ISERROR($V2338),\"\",OFFSET('Smelter Look-up'!$D$4,$V2338-4,0)&\"\")","v":""},{"$f":"IF(ISERROR($V2338),\"\",OFFSET('Smelter Look-up'!$E$4,$V2338-4,0))","v":""},{"$f":"IF(C2338=$X$4,\"Enter smelter details\", IF(ISERROR($V2338),\"\",OFFSET('Smelter Look-up'!$F$4,$V2338-4,0)))","v":""},{"$f":"IF(ISERROR($V2338),\"\",OFFSET('Smelter Look-up'!$G$4,$V2338-4,0))","v":""},{"$f":"IF(ISERROR($V2338),\"\",OFFSET('Smelter Look-up'!$H$4,$V2338-4,0))","v":""},{"$f":"IF(ISERROR($V2338),\"\",OFFSET('Smelter Look-up'!$I$4,$V2338-4,0))","v":""},{"$nulls":7},{"$f":"IF(ISERROR($V2338),\"\",OFFSET('Smelter Look-up'!$C$4,$V2338-4,0)&\"\")","v":""},"",{"$f":"IF(B2338=\"\",\"\",IF(ISERROR(MATCH($J2338,SorP!$B$1:$B$6230,0)),\"\",INDIRECT(\"'SorP'!$A$\"&MATCH($J2338,SorP!$B$1:$B$6230,0))))","v":""},null,{"$f":"IF(C2338=\"\",NA(),MATCH($B2338&$C2338,'Smelter Look-up'!$J:$J,0))","v":{"$error":"#N/A"}},null,0,null,null,null,""]
[null,{"$f":"IF(LEN(A2339)=0,\"\",INDEX('Smelter Look-up'!$A:$A,MATCH($A2339,'Smelter Look-up'!$E:$E,0)))","v":""},{"$f":"IF(LEN(A2339)=0,\"\",INDEX('Smelter Look-up'!$C:$C,MATCH($A2339,'Smelter Look-up'!$E:$E,0)))","v":""},null,{"$f":"IF(ISERROR($V2339),\"\",OFFSET('Smelter Look-up'!$D$4,$V2339-4,0)&\"\")","v":""},{"$f":"IF(ISERROR($V2339),\"\",OFFSET('Smelter Look-up'!$E$4,$V2339-4,0))","v":""},{"$f":"IF(C2339=$X$4,\"Enter smelter details\", IF(ISERROR($V2339),\"\",OFFSET('Smelter Look-up'!$F$4,$V2339-4,0)))","v":""},{"$f":"IF(ISERROR($V2339),\"\",OFFSET('Smelter Look-up'!$G$4,$V2339-4,0))","v":""},{"$f":"IF(ISERROR($V2339),\"\",OFFSET('Smelter Look-up'!$H$4,$V2339-4,0))","v":""},{"$f":"IF(ISERROR($V2339),\"\",OFFSET('Smelter Look-up'!$I$4,$V2339-4,0))","v":""},{"$nulls":7},{"$f":"IF(ISERROR($V2339),\"\",OFFSET('Smelter Look-up'!$C$4,$V2339-4,0)&\"\")","v":""},"",{"$f":"IF(B2339=\"\",\"\",IF(ISERROR(MATCH($J2339,SorP!$B$1:$B$6230,0)),\"\",INDIRECT(\"'SorP'!$A$\"&MATCH($J2339,SorP!$B$1:$B$6230,0))))","v":""},null,{"$f":"IF(C2339=\"\",NA(),MATCH($B2339&$C2339,'Smelter Look-up'!$J:$J,0))","v":{"$error":"#N/A"}},null,0,null,null,null,""]
[null,{"$f":"IF(LEN(A2340)=0,\"\",INDEX('Smelter Look-up'!$A:$A,MATCH($A2340,'Smelter Look-up'!$E:$E,0)))","v":""},{"$f":"IF(LEN(A2340)=0,\"\",INDEX('Smelter Look-up'!$C:$C,MATCH($A2340,'Smelter Look-up'!$E:$E,0)))","v":""},null,{"$f":"IF(ISERROR($V2340),\"\",OFFSET('Smelter Look-up'!$D$4,$V2340-4,0)&\"\")","v":""},{"$f":"IF(ISERROR($V2340),\"\",OFFSET('Smelter Look-up'!$E$4,$V2340-4,0))","v":""},{"$f":"IF(C2340=$X$4,\"Enter smelter details\", IF(ISERROR($V2340),\"\",OFFSET('Smelter Look-up'!$F$4,$V2340-4,0)))","v":""},{"$f":"IF(ISERROR($V2340),\"\",OFFSET('Smelter Look-up'!$G$4,$V2340-4,0))","v":""},{"$f":"IF(ISERROR($V2340),\"\",OFFSET('Smelter Look-up'!$H$4,$V2340-4,0))","v":""},{"$f":"IF(ISERROR($V2340),\"\",OFFSET('Smelter Look-up'!$I$4,$V2340-4,0))","v":""},{"$nulls":7},{"$f":"IF(ISERROR($V2340),\"\",OFFSET('Smelter Look-up'!$C$4,$V2340-4,0)&\"\")","v":""},"",{"$f":"IF(B2340=\"\",\"\",IF(ISERROR(MATCH($J2340,SorP!$B$1:$B$6230,0)),\"\",INDIRECT(\"'SorP'!$A$\"&MATCH($J2340,SorP!$B$1:$B$6230,0))))","v":""},null,{"$f":"IF(C2340=\"\",NA(),MATCH($B2340&$C2340,'Smelter Look-up'!$J:$J,0))","v":{"$error":"#N/A"}},null,0,null,null,null,""]
[null,{"$f":"IF(LEN(A2341)=0,\"\",INDEX('Smelter Look-up'!$A:$A,MATCH($A2341,'Smelter Look-up'!$E:$E,0)))","v":""},{"$f":"IF(LEN(A2341)=0,\"\",INDEX('Smelter Look-up'!$C:$C,MATCH($A2341,'Smelter Look-up'!$E:$E,0)))","v":""},null,{"$f":"IF(ISERROR($V2341),\"\",OFFSET('Smelter Look-up'!$D$4,$V2341-4,0)&\"\")","v":""},{"$f":"IF(ISERROR($V2341),\"\",OFFSET('Smelter Look-up'!$E$4,$V2341-4,0))","v":""},{"$f":"IF(C2341=$X$4,\"Enter smelter details\", IF(ISERROR($V2341),\"\",OFFSET('Smelter Look-up'!$F$4,$V2341-4,0)))","v":""},{"$f":"IF(ISERROR($V2341),\"\",OFFSET('Smelter Look-up'!$G$4,$V2341-4,0))","v":""},{"$f":"IF(ISERROR($V2341),\"\",OFFSET('Smelter Look-up'!$H$4,$V2341-4,0))","v":""},{"$f":"IF(ISERROR($V2341),\"\",OFFSET('Smelter Look-up'!$I$4,$V2341-4,0))","v":""},{"$nulls":7},{"$f":"IF(ISERROR($V2341),\"\",OFFSET('Smelter Look-up'!$C$4,$V2341-4,0)&\"\")","v":""},"",{"$f":"IF(B2341=\"\",\"\",IF(ISERROR(MATCH($J2341,SorP!$B$1:$B$6230,0)),\"\",INDIRECT(\"'SorP'!$A$\"&MATCH($J2341,SorP!$B$1:$B$6230,0))))","v":""},null,{"$f":"IF(C2341=\"\",NA(),MATCH($B2341&$C2341,'Smelter Look-up'!$J:$J,0))","v":{"$error":"#N/A"}},null,0,null,null,null,""]
[null,{"$f":"IF(LEN(A2342)=0,\"\",INDEX('Smelter Look-up'!$A:$A,MATCH($A2342,'Smelter Look-up'!$E:$E,0)))","v":""},{"$f":"IF(LEN(A2342)=0,\"\",INDEX('Smelter Look-up'!$C:$C,MATCH($A2342,'Smelter Look-up'!$E:$E,0)))","v":""},null,{"$f":"IF(ISERROR($V2342),\"\",OFFSET('Smelter Look-up'!$D$4,$V2342-4,0)&\"\")","v":""},{"$f":"IF(ISERROR($V2342),\"\",OFFSET('Smelter Look-up'!$E$4,$V2342-4,0))","v":""},{"$f":"IF(C2342=$X$4,\"Enter smelter details\", IF(ISERROR($V2342),\"\",OFFSET('Smelter Look-up'!$F$4,$V2342-4,0)))","v":""},{"$f":"IF(ISERROR($V2342),\"\",OFFSET('Smelter Look-up'!$G$4,$V2342-4,0))","v":""},{"$f":"IF(ISERROR($V2342),\"\",OFFSET('Smelter Look-up'!$H$4,$V2342-4,0))","v":""},{"$f":"IF(ISERROR($V2342),\"\",OFFSET('Smelter Look-up'!$I$4,$V2342-4,0))","v":""},{"$nulls":7},{"$f":"IF(ISERROR($V2342),\"\",OFFSET('Smelter Look-up'!$C$4,$V2342-4,0)&\"\")","v":""},"",{"$f":"IF(B2342=\"\",\"\",IF(ISERROR(MATCH($J2342,SorP!$B$1:$B$6230,0)),\"\",INDIRECT(\"'SorP'!$A$\"&MATCH($J2342,SorP!$B$1:$B$6230,0))))","v":""},null,{"$f":"IF(C2342=\"\",NA(),MATCH($B2342&$C2342,'Smelter Look-up'!$J:$J,0))","v":{"$error":"#N/A"}},null,0,null,null,null,""]
[null,{"$f":"IF(LEN(A2343)=0,\"\",INDEX('Smelter Look-up'!$A:$A,MATCH($A2343,'Smelter Look-up'!$E:$E,0)))","v":""},{"$f":"IF(LEN(A2343)=0,\"\",INDEX('Smelter Look-up'!$C:$C,MATCH($A2343,'Smelter Look-up'!$E:$E,0)))","v":""},null,{"$f":"IF(ISERROR($V2343),\"\",OFFSET('Smelter Look-up'!$D$4,$V2343-4,0)&\"\")","v":""},{"$f":"IF(ISERROR($V2343),\"\",OFFSET('Smelter Look-up'!$E$4,$V2343-4,0))","v":""},{"$f":"IF(C2343=$X$4,\"Enter smelter details\", IF(ISERROR($V2343),\"\",OFFSET('Smelter Look-up'!$F$4,$V2343-4,0)))","v":""},{"$f":"IF(ISERROR($V2343),\"\",OFFSET('Smelter Look-up'!$G$4,$V2343-4,0))","v":""},{"$f":"IF(ISERROR($V2343),\"\",OFFSET('Smelter Look-up'!$H$4,$V2343-4,0))","v":""},{"$f":"IF(ISERROR($V2343),\"\",OFFSET('Smelter Look-up'!$I$4,$V2343-4,0))","v":""},{"$nulls":7},{"$f":"IF(ISERROR($V2343),\"\",OFFSET('Smelter Look-up'!$C$4,$V2343-4,0)&\"\")","v":""},"",{"$f":"IF(B2343=\"\",\"\",IF(ISERROR(MATCH($J2343,SorP!$B$1:$B$6230,0)),\"\",INDIRECT(\"'SorP'!$A$\"&MATCH($J2343,SorP!$B$1:$B$6230,0))))","v":""},null,{"$f":"IF(C2343=\"\",NA(),MATCH($B2343&$C2343,'Smelter Look-up'!$J:$J,0))","v":{"$error":"#N/A"}},null,0,null,null,null,""]
[null,{"$f":"IF(LEN(A2344)=0,\"\",INDEX('Smelter Look-up'!$A:$A,MATCH($A2344,'Smelter Look-up'!$E:$E,0)))","v":""},{"$f":"IF(LEN(A2344)=0,\"\",INDEX('Smelter Look-up'!$C:$C,MATCH($A2344,'Smelter Look-up'!$E:$E,0)))","v":""},null,{"$f":"IF(ISERROR($V2344),\"\",OFFSET('Smelter Look-up'!$D$4,$V2344-4,0)&\"\")","v":""},{"$f":"IF(ISERROR($V2344),\"\",OFFSET('Smelter Look-up'!$E$4,$V2344-4,0))","v":""},{"$f":"IF(C2344=$X$4,\"Enter smelter details\", IF(ISERROR($V2344),\"\",OFFSET('Smelter Look-up'!$F$4,$V2344-4,0)))","v":""},{"$f":"IF(ISERROR($V2344),\"\",OFFSET('Smelter Look-up'!$G$4,$V2344-4,0))","v":""},{"$f":"IF(ISERROR($V2344),\"\",OFFSET('Smelter Look-up'!$H$4,$V2344-4,0))","v":""},{"$f":"IF(ISERROR($V2344),\"\",OFFSET('Smelter Look-up'!$I$4,$V2344-4,0))","v":""},{"$nulls":7},{"$f":"IF(ISERROR($V2344),\"\",OFFSET('Smelter Look-up'!$C$4,$V2344-4,0)&\"\")","v":""},"",{"$f":"IF(B2344=\"\",\"\",IF(ISERROR(MATCH($J2344,SorP!$B$1:$B$6230,0)),\"\",INDIRECT(\"'SorP'!$A$\"&MATCH($J2344,SorP!$B$1:$B$6230,0))))","v":""},null,{"$f":"IF(C2344=\"\",NA(),MATCH($B2344&$C2344,'Smelter Look-up'!$J:$J,0))","v":{"$error":"#N/A"}},null,0,null,null,null,""]
[null,{"$f":"IF(LEN(A2345)=0,\"\",INDEX('Smelter Look-up'!$A:$A,MATCH($A2345,'Smelter Look-up'!$E:$E,0)))","v":""},{"$f":"IF(LEN(A2345)=0,\"\",INDEX('Smelter Look-up'!$C:$C,MATCH($A2345,'Smelter Look-up'!$E:$E,0)))","v":""},null,{"$f":"IF(ISERROR($V2345),\"\",OFFSET('Smelter Look-up'!$D$4,$V2345-4,0)&\"\")","v":""},{"$f":"IF(ISERROR($V2345),\"\",OFFSET('Smelter Look-up'!$E$4,$V2345-4,0))","v":""},{"$f":"IF(C2345=$X$4,\"Enter smelter details\", IF(ISERROR($V2345),\"\",OFFSET('Smelter Look-up'!$F$4,$V2345-4,0)))","v":""},{"$f":"IF(ISERROR($V2345),\"\",OFFSET('Smelter Look-up'!$G$4,$V2345-4,0))","v":""},{"$f":"IF(ISERROR($V2345),\"\",OFFSET('Smelter Look-up'!$H$4,$V2345-4,0))","v":""},{"$f":"IF(ISERROR($V2345),\"\",OFFSET('Smelter Look-up'!$I$4,$V2345-4,0))","v":""},{"$nulls":7},{"$f":"IF(ISERROR($V2345),\"\",OFFSET('Smelter Look-up'!$C$4,$V2345-4,0)&\"\")","v":""},"",{"$f":"IF(B2345=\"\",\"\",IF(ISERROR(MATCH($J2345,SorP!$B$1:$B$6230,0)),\"\",INDIRECT(\"'SorP'!$A$\"&MATCH($J2345,SorP!$B$1:$B$6230,0))))","v":""},null,{"$f":"IF(C2345=\"\",NA(),MATCH($B2345&$C2345,'Smelter Look-up'!$J:$J,0))","v":{"$error":"#N/A"}},null,0,null,null,null,""]
[null,{"$f":"IF(LEN(A2346)=0,\"\",INDEX('Smelter Look-up'!$A:$A,MATCH($A2346,'Smelter Look-up'!$E:$E,0)))","v":""},{"$f":"IF(LEN(A2346)=0,\"\",INDEX('Smelter Look-up'!$C:$C,MATCH($A2346,'Smelter Look-up'!$E:$E,0)))","v":""},null,{"$f":"IF(ISERROR($V2346),\"\",OFFSET('Smelter Look-up'!$D$4,$V2346-4,0)&\"\")","v":""},{"$f":"IF(ISERROR($V2346),\"\",OFFSET('Smelter Look-up'!$E$4,$V2346-4,0))","v":""},{"$f":"IF(C2346=$X$4,\"Enter smelter details\", IF(ISERROR($V2346),\"\",OFFSET('Smelter Look-up'!$F$4,$V2346-4,0)))","v":""},{"$f":"IF(ISERROR($V2346),\"\",OFFSET('Smelter Look-up'!$G$4,$V2346-4,0))","v":""},{"$f":"IF(ISERROR($V2346),\"\",OFFSET('Smelter Look-up'!$H$4,$V2346-4,0))","v":""},{"$f":"IF(ISERROR($V2346),\"\",OFFSET('Smelter Look-up'!$I$4,$V2346-4,0))","v":""},{"$nulls":7},{"$f":"IF(ISERROR($V2346),\"\",OFFSET('Smelter Look-up'!$C$4,$V2346-4,0)&\"\")","v":""},"",{"$f":"IF(B2346=\"\",\"\",IF(ISERROR(MATCH($J2346,SorP!$B$1:$B$6230,0)),\"\",INDIRECT(\"'SorP'!$A$\"&MATCH($J2346,SorP!$B$1:$B$6230,0))))","v":""},null,{"$f":"IF(C2346=\"\",NA(),MATCH($B2346&$C2346,'Smelter Look-up'!$J:$J,0))","v":{"$error":"#N/A"}},null,0,null,null,null,""]
[null,{"$f":"IF(LEN(A2347)=0,\"\",INDEX('Smelter Look-up'!$A:$A,MATCH($A2347,'Smelter Look-up'!$E:$E,0)))","v":""},{"$f":"IF(LEN(A2347)=0,\"\",INDEX('Smelter Look-up'!$C:$C,MATCH($A2347,'Smelter Look-up'!$E:$E,0)))","v":""},null,{"$f":"IF(ISERROR($V2347),\"\",OFFSET('Smelter Look-up'!$D$4,$V2347-4,0)&\"\")","v":""},{"$f":"IF(ISERROR($V2347),\"\",OFFSET('Smelter Look-up'!$E$4,$V2347-4,0))","v":""},{"$f":"IF(C2347=$X$4,\"Enter smelter details\", IF(ISERROR($V2347),\"\",OFFSET('Smelter Look-up'!$F$4,$V2347-4,0)))","v":""},{"$f":"IF(ISERROR($V2347),\"\",OFFSET('Smelter Look-up'!$G$4,$V2347-4,0))","v":""},{"$f":"IF(ISERROR($V2347),\"\",OFFSET('Smelter Look-up'!$H$4,$V2347-4,0))","v":""},{"$f":"IF(ISERROR($V2347),\"\",OFFSET('Smelter Look-up'!$I$4,$V2347-4,0))","v":""},{"$nulls":7},{"$f":"IF(ISERROR($V2347),\"\",OFFSET('Smelter Look-up'!$C$4,$V2347-4,0)&\"\")","v":""},"",{"$f":"IF(B2347=\"\",\"\",IF(ISERROR(MATCH($J2347,SorP!$B$1:$B$6230,0)),\"\",INDIRECT(\"'SorP'!$A$\"&MATCH($J2347,SorP!$B$1:$B$6230,0))))","v":""},null,{"$f":"IF(C2347=\"\",NA(),MATCH($B2347&$C2347,'Smelter Look-up'!$J:$J,0))","v":{"$error":"#N/A"}},null,0,null,null,null,""]
[null,{"$f":"IF(LEN(A2348)=0,\"\",INDEX('Smelter Look-up'!$A:$A,MATCH($A2348,'Smelter Look-up'!$E:$E,0)))","v":""},{"$f":"IF(LEN(A2348)=0,\"\",INDEX('Smelter Look-up'!$C:$C,MATCH($A2348,'Smelter Look-up'!$E:$E,0)))","v":""},null,{"$f":"IF(ISERROR($V2348),\"\",OFFSET('Smelter Look-up'!$D$4,$V2348-4,0)&\"\")","v":""},{"$f":"IF(ISERROR($V2348),\"\",OFFSET('Smelter Look-up'!$E$4,$V2348-4,0))","v":""},{"$f":"IF(C2348=$X$4,\"Enter smelter details\", IF(ISERROR($V2348),\"\",OFFSET('Smelter Look-up'!$F$4,$V2348-4,0)))","v":""},{"$f":"IF(ISERROR($V2348),\"\",OFFSET('Smelter Look-up'!$G$4,$V2348-4,0))","v":""},{"$f":"IF(ISERROR($V2348),\"\",OFFSET('Smelter Look-up'!$H$4,$V2348-4,0))","v":""},{"$f":"IF(ISERROR($V2348),\"\",OFFSET('Smelter Look-up'!$I$4,$V2348-4,0))","v":""},{"$nulls":7},{"$f":"IF(ISERROR($V2348),\"\",OFFSET('Smelter Look-up'!$C$4,$V2348-4,0)&\"\")","v":""},"",{"$f":"IF(B2348=\"\",\"\",IF(ISERROR(MATCH($J2348,SorP!$B$1:$B$6230,0)),\"\",INDIRECT(\"'SorP'!$A$\"&MATCH($J2348,SorP!$B$1:$B$6230,0))))","v":""},null,{"$f":"IF(C2348=\"\",NA(),MATCH($B2348&$C2348,'Smelter Look-up'!$J:$J,0))","v":{"$error":"#N/A"}},null,0,null,null,null,""]
[null,{"$f":"IF(LEN(A2349)=0,\"\",INDEX('Smelter Look-up'!$A:$A,MATCH($A2349,'Smelter Look-up'!$E:$E,0)))","v":""},{"$f":"IF(LEN(A2349)=0,\"\",INDEX('Smelter Look-up'!$C:$C,MATCH($A2349,'Smelter Look-up'!$E:$E,0)))","v":""},null,{"$f":"IF(ISERROR($V2349),\"\",OFFSET('Smelter Look-up'!$D$4,$V2349-4,0)&\"\")","v":""},{"$f":"IF(ISERROR($V2349),\"\",OFFSET('Smelter Look-up'!$E$4,$V2349-4,0))","v":""},{"$f":"IF(C2349=$X$4,\"Enter smelter details\", IF(ISERROR($V2349),\"\",OFFSET('Smelter Look-up'!$F$4,$V2349-4,0)))","v":""},{"$f":"IF(ISERROR($V2349),\"\",OFFSET('Smelter Look-up'!$G$4,$V2349-4,0))","v":""},{"$f":"IF(ISERROR($V2349),\"\",OFFSET('Smelter Look-up'!$H$4,$V2349-4,0))","v":""},{"$f":"IF(ISERROR($V2349),\"\",OFFSET('Smelter Look-up'!$I$4,$V2349-4,0))","v":""},{"$nulls":7},{"$f":"IF(ISERROR($V2349),\"\",OFFSET('Smelter Look-up'!$C$4,$V2349-4,0)&\"\")","v":""},"",{"$f":"IF(B2349=\"\",\"\",IF(ISERROR(MATCH($J2349,SorP!$B$1:$B$6230,0)),\"\",INDIRECT(\"'SorP'!$A$\"&MATCH($J2349,SorP!$B$1:$B$6230,0))))","v":""},null,{"$f":"IF(C2349=\"\",NA(),MATCH($B2349&$C2349,'Smelter Look-up'!$J:$J,0))","v":{"$error":"#N/A"}},null,0,null,null,null,""]
[null,{"$f":"IF(LEN(A2350)=0,\"\",INDEX('Smelter Look-up'!$A:$A,MATCH($A2350,'Smelter Look-up'!$E:$E,0)))","v":""},{"$f":"IF(LEN(A2350)=0,\"\",INDEX('Smelter Look-up'!$C:$C,MATCH($A2350,'Smelter Look-up'!$E:$E,0)))","v":""},null,{"$f":"IF(ISERROR($V2350),\"\",OFFSET('Smelter Look-up'!$D$4,$V2350-4,0)&\"\")","v":""},{"$f":"IF(ISERROR($V2350),\"\",OFFSET('Smelter Look-up'!$E$4,$V2350-4,0))","v":""},{"$f":"IF(C2350=$X$4,\"Enter smelter details\", IF(ISERROR($V2350),\"\",OFFSET('Smelter Look-up'!$F$4,$V2350-4,0)))","v":""},{"$f":"IF(ISERROR($V2350),\"\",OFFSET('Smelter Look-up'!$G$4,$V2350-4,0))","v":""},{"$f":"IF(ISERROR($V2350),\"\",OFFSET('Smelter Look-up'!$H$4,$V2350-4,0))","v":""},{"$f":"IF(ISERROR($V2350),\"\",OFFSET('Smelter Look-up'!$I$4,$V2350-4,0))","v":""},{"$nulls":7},{"$f":"IF(ISERROR($V2350),\"\",OFFSET('Smelter Look-up'!$C$4,$V2350-4,0)&\"\")","v":""},"",{"$f":"IF(B2350=\"\",\"\",IF(ISERROR(MATCH($J2350,SorP!$B$1:$B$6230,0)),\"\",INDIRECT(\"'SorP'!$A$\"&MATCH($J2350,SorP!$B$1:$B$6230,0))))","v":""},null,{"$f":"IF(C2350=\"\",NA(),MATCH($B2350&$C2350,'Smelter Look-up'!$J:$J,0))","v":{"$error":"#N/A"}},null,0,null,null,null,""]
[null,{"$f":"IF(LEN(A2351)=0,\"\",INDEX('Smelter Look-up'!$A:$A,MATCH($A2351,'Smelter Look-up'!$E:$E,0)))","v":""},{"$f":"IF(LEN(A2351)=0,\"\",INDEX('Smelter Look-up'!$C:$C,MATCH($A2351,'Smelter Look-up'!$E:$E,0)))","v":""},null,{"$f":"IF(ISERROR($V2351),\"\",OFFSET('Smelter Look-up'!$D$4,$V2351-4,0)&\"\")","v":""},{"$f":"IF(ISERROR($V2351),\"\",OFFSET('Smelter Look-up'!$E$4,$V2351-4,0))","v":""},{"$f":"IF(C2351=$X$4,\"Enter smelter details\", IF(ISERROR($V2351),\"\",OFFSET('Smelter Look-up'!$F$4,$V2351-4,0)))","v":""},{"$f":"IF(ISERROR($V2351),\"\",OFFSET('Smelter Look-up'!$G$4,$V2351-4,0))","v":""},{"$f":"IF(ISERROR($V2351),\"\",OFFSET('Smelter Look-up'!$H$4,$V2351-4,0))","v":""},{"$f":"IF(ISERROR($V2351),\"\",OFFSET('Smelter Look-up'!$I$4,$V2351-4,0))","v":""},{"$nulls":7},{"$f":"IF(ISERROR($V2351),\"\",OFFSET('Smelter Look-up'!$C$4,$V2351-4,0)&\"\")","v":""},"",{"$f":"IF(B2351=\"\",\"\",IF(ISERROR(MATCH($J2351,SorP!$B$1:$B$6230,0)),\"\",INDIRECT(\"'SorP'!$A$\"&MATCH($J2351,SorP!$B$1:$B$6230,0))))","v":""},null,{"$f":"IF(C2351=\"\",NA(),MATCH($B2351&$C2351,'Smelter Look-up'!$J:$J,0))","v":{"$error":"#N/A"}},null,0,null,null,null,""]
[null,{"$f":"IF(LEN(A2352)=0,\"\",INDEX('Smelter Look-up'!$A:$A,MATCH($A2352,'Smelter Look-up'!$E:$E,0)))","v":""},{"$f":"IF(LEN(A2352)=0,\"\",INDEX('Smelter Look-up'!$C:$C,MATCH($A2352,'Smelter Look-up'!$E:$E,0)))","v":""},null,{"$f":"IF(ISERROR($V2352),\"\",OFFSET('Smelter Look-up'!$D$4,$V2352-4,0)&\"\")","v":""},{"$f":"IF(ISERROR($V2352),\"\",OFFSET('Smelter Look-up'!$E$4,$V2352-4,0))","v":""},{"$f":"IF(C2352=$X$4,\"Enter smelter details\", IF(ISERROR($V2352),\"\",OFFSET('Smelter Look-up'!$F$4,$V2352-4,0)))","v":""},{"$f":"IF(ISERROR($V2352),\"\",OFFSET('Smelter Look-up'!$G$4,$V2352-4,0))","v":""},{"$f":"IF(ISERROR($V2352),\"\",OFFSET('Smelter Look-up'!$H$4,$V2352-4,0))","v":""},{"$f":"IF(ISERROR($V2352),\"\",OFFSET('Smelter Look-up'!$I$4,$V2352-4,0))","v":""},{"$nulls":7},{"$f":"IF(ISERROR($V2352),\"\",OFFSET('Smelter Look-up'!$C$4,$V2352-4,0)&\"\")","v":""},"",{"$f":"IF(B2352=\"\",\"\",IF(ISERROR(MATCH($J2352,SorP!$B$1:$B$6230,0)),\"\",INDIRECT(\"'SorP'!$A$\"&MATCH($J2352,SorP!$B$1:$B$6230,0))))","v":""},null,{"$f":"IF(C2352=\"\",NA(),MATCH($B2352&$C2352,'Smelter Look-up'!$J:$J,0))","v":{"$error":"#N/A"}},null,0,null,null,null,""]
[null,{"$f":"IF(LEN(A2353)=0,\"\",INDEX('Smelter Look-up'!$A:$A,MATCH($A2353,'Smelter Look-up'!$E:$E,0)))","v":""},{"$f":"IF(LEN(A2353)=0,\"\",INDEX('Smelter Look-up'!$C:$C,MATCH($A2353,'Smelter Look-up'!$E:$E,0)))","v":""},null,{"$f":"IF(ISERROR($V2353),\"\",OFFSET('Smelter Look-up'!$D$4,$V2353-4,0)&\"\")","v":""},{"$f":"IF(ISERROR($V2353),\"\",OFFSET('Smelter Look-up'!$E$4,$V2353-4,0))","v":""},{"$f":"IF(C2353=$X$4,\"Enter smelter details\", IF(ISERROR($V2353),\"\",OFFSET('Smelter Look-up'!$F$4,$V2353-4,0)))","v":""},{"$f":"IF(ISERROR($V2353),\"\",OFFSET('Smelter Look-up'!$G$4,$V2353-4,0))","v":""},{"$f":"IF(ISERROR($V2353),\"\",OFFSET('Smelter Look-up'!$H$4,$V2353-4,0))","v":""},{"$f":"IF(ISERROR($V2353),\"\",OFFSET('Smelter Look-up'!$I$4,$V2353-4,0))","v":""},{"$nulls":7},{"$f":"IF(ISERROR($V2353),\"\",OFFSET('Smelter Look-up'!$C$4,$V2353-4,0)&\"\")","v":""},"",{"$f":"IF(B2353=\"\",\"\",IF(ISERROR(MATCH($J2353,SorP!$B$1:$B$6230,0)),\"\",INDIRECT(\"'SorP'!$A$\"&MATCH($J2353,SorP!$B$1:$B$6230,0))))","v":""},null,{"$f":"IF(C2353=\"\",NA(),MATCH($B2353&$C2353,'Smelter Look-up'!$J:$J,0))","v":{"$error":"#N/A"}},null,0,null,null,null,""]
[null,{"$f":"IF(LEN(A2354)=0,\"\",INDEX('Smelter Look-up'!$A:$A,MATCH($A2354,'Smelter Look-up'!$E:$E,0)))","v":""},{"$f":"IF(LEN(A2354)=0,\"\",INDEX('Smelter Look-up'!$C:$C,MATCH($A2354,'Smelter Look-up'!$E:$E,0)))","v":""},null,{"$f":"IF(ISERROR($V2354),\"\",OFFSET('Smelter Look-up'!$D$4,$V2354-4,0)&\"\")","v":""},{"$f":"IF(ISERROR($V2354),\"\",OFFSET('Smelter Look-up'!$E$4,$V2354-4,0))","v":""},{"$f":"IF(C2354=$X$4,\"Enter smelter details\", IF(ISERROR($V2354),\"\",OFFSET('Smelter Look-up'!$F$4,$V2354-4,0)))","v":""},{"$f":"IF(ISERROR($V2354),\"\",OFFSET('Smelter Look-up'!$G$4,$V2354-4,0))","v":""},{"$f":"IF(ISERROR($V2354),\"\",OFFSET('Smelter Look-up'!$H$4,$V2354-4,0))","v":""},{"$f":"IF(ISERROR($V2354),\"\",OFFSET('Smelter Look-up'!$I$4,$V2354-4,0))","v":""},{"$nulls":7},{"$f":"IF(ISERROR($V2354),\"\",OFFSET('Smelter Look-up'!$C$4,$V2354-4,0)&\"\")","v":""},"",{"$f":"IF(B2354=\"\",\"\",IF(ISERROR(MATCH($J2354,SorP!$B$1:$B$6230,0)),\"\",INDIRECT(\"'SorP'!$A$\"&MATCH($J2354,SorP!$B$1:$B$6230,0))))","v":""},null,{"$f":"IF(C2354=\"\",NA(),MATCH($B2354&$C2354,'Smelter Look-up'!$J:$J,0))","v":{"$error":"#N/A"}},null,0,null,null,null,""]
[null,{"$f":"IF(LEN(A2355)=0,\"\",INDEX('Smelter Look-up'!$A:$A,MATCH($A2355,'Smelter Look-up'!$E:$E,0)))","v":""},{"$f":"IF(LEN(A2355)=0,\"\",INDEX('Smelter Look-up'!$C:$C,MATCH($A2355,'Smelter Look-up'!$E:$E,0)))","v":""},null,{"$f":"IF(ISERROR($V2355),\"\",OFFSET('Smelter Look-up'!$D$4,$V2355-4,0)&\"\")","v":""},{"$f":"IF(ISERROR($V2355),\"\",OFFSET('Smelter Look-up'!$E$4,$V2355-4,0))","v":""},{"$f":"IF(C2355=$X$4,\"Enter smelter details\", IF(ISERROR($V2355),\"\",OFFSET('Smelter Look-up'!$F$4,$V2355-4,0)))","v":""},{"$f":"IF(ISERROR($V2355),\"\",OFFSET('Smelter Look-up'!$G$4,$V2355-4,0))","v":""},{"$f":"IF(ISERROR($V2355),\"\",OFFSET('Smelter Look-up'!$H$4,$V2355-4,0))","v":""},{"$f":"IF(ISERROR($V2355),\"\",OFFSET('Smelter Look-up'!$I$4,$V2355-4,0))","v":""},{"$nulls":7},{"$f":"IF(ISERROR($V2355),\"\",OFFSET('Smelter Look-up'!$C$4,$V2355-4,0)&\"\")","v":""},"",{"$f":"IF(B2355=\"\",\"\",IF(ISERROR(MATCH($J2355,SorP!$B$1:$B$6230,0)),\"\",INDIRECT(\"'SorP'!$A$\"&MATCH($J2355,SorP!$B$1:$B$6230,0))))","v":""},null,{"$f":"IF(C2355=\"\",NA(),MATCH($B2355&$C2355,'Smelter Look-up'!$J:$J,0))","v":{"$error":"#N/A"}},null,0,null,null,null,""]
[null,{"$f":"IF(LEN(A2356)=0,\"\",INDEX('Smelter Look-up'!$A:$A,MATCH($A2356,'Smelter Look-up'!$E:$E,0)))","v":""},{"$f":"IF(LEN(A2356)=0,\"\",INDEX('Smelter Look-up'!$C:$C,MATCH($A2356,'Smelter Look-up'!$E:$E,0)))","v":""},null,{"$f":"IF(ISERROR($V2356),\"\",OFFSET('Smelter Look-up'!$D$4,$V2356-4,0)&\"\")","v":""},{"$f":"IF(ISERROR($V2356),\"\",OFFSET('Smelter Look-up'!$E$4,$V2356-4,0))","v":""},{"$f":"IF(C2356=$X$4,\"Enter smelter details\", IF(ISERROR($V2356),\"\",OFFSET('Smelter Look-up'!$F$4,$V2356-4,0)))","v":""},{"$f":"IF(ISERROR($V2356),\"\",OFFSET('Smelter Look-up'!$G$4,$V2356-4,0))","v":""},{"$f":"IF(ISERROR($V2356),\"\",OFFSET('Smelter Look-up'!$H$4,$V2356-4,0))","v":""},{"$f":"IF(ISERROR($V2356),\"\",OFFSET('Smelter Look-up'!$I$4,$V2356-4,0))","v":""},{"$nulls":7},{"$f":"IF(ISERROR($V2356),\"\",OFFSET('Smelter Look-up'!$C$4,$V2356-4,0)&\"\")","v":""},"",{"$f":"IF(B2356=\"\",\"\",IF(ISERROR(MATCH($J2356,SorP!$B$1:$B$6230,0)),\"\",INDIRECT(\"'SorP'!$A$\"&MATCH($J2356,SorP!$B$1:$B$6230,0))))","v":""},null,{"$f":"IF(C2356=\"\",NA(),MATCH($B2356&$C2356,'Smelter Look-up'!$J:$J,0))","v":{"$error":"#N/A"}},null,0,null,null,null,""]
[null,{"$f":"IF(LEN(A2357)=0,\"\",INDEX('Smelter Look-up'!$A:$A,MATCH($A2357,'Smelter Look-up'!$E:$E,0)))","v":""},{"$f":"IF(LEN(A2357)=0,\"\",INDEX('Smelter Look-up'!$C:$C,MATCH($A2357,'Smelter Look-up'!$E:$E,0)))","v":""},null,{"$f":"IF(ISERROR($V2357),\"\",OFFSET('Smelter Look-up'!$D$4,$V2357-4,0)&\"\")","v":""},{"$f":"IF(ISERROR($V2357),\"\",OFFSET('Smelter Look-up'!$E$4,$V2357-4,0))","v":""},{"$f":"IF(C2357=$X$4,\"Enter smelter details\", IF(ISERROR($V2357),\"\",OFFSET('Smelter Look-up'!$F$4,$V2357-4,0)))","v":""},{"$f":"IF(ISERROR($V2357),\"\",OFFSET('Smelter Look-up'!$G$4,$V2357-4,0))","v":""},{"$f":"IF(ISERROR($V2357),\"\",OFFSET('Smelter Look-up'!$H$4,$V2357-4,0))","v":""},{"$f":"IF(ISERROR($V2357),\"\",OFFSET('Smelter Look-up'!$I$4,$V2357-4,0))","v":""},{"$nulls":7},{"$f":"IF(ISERROR($V2357),\"\",OFFSET('Smelter Look-up'!$C$4,$V2357-4,0)&\"\")","v":""},"",{"$f":"IF(B2357=\"\",\"\",IF(ISERROR(MATCH($J2357,SorP!$B$1:$B$6230,0)),\"\",INDIRECT(\"'SorP'!$A$\"&MATCH($J2357,SorP!$B$1:$B$6230,0))))","v":""},null,{"$f":"IF(C2357=\"\",NA(),MATCH($B2357&$C2357,'Smelter Look-up'!$J:$J,0))","v":{"$error":"#N/A"}},null,0,null,null,null,""]
[null,{"$f":"IF(LEN(A2358)=0,\"\",INDEX('Smelter Look-up'!$A:$A,MATCH($A2358,'Smelter Look-up'!$E:$E,0)))","v":""},{"$f":"IF(LEN(A2358)=0,\"\",INDEX('Smelter Look-up'!$C:$C,MATCH($A2358,'Smelter Look-up'!$E:$E,0)))","v":""},null,{"$f":"IF(ISERROR($V2358),\"\",OFFSET('Smelter Look-up'!$D$4,$V2358-4,0)&\"\")","v":""},{"$f":"IF(ISERROR($V2358),\"\",OFFSET('Smelter Look-up'!$E$4,$V2358-4,0))","v":""},{"$f":"IF(C2358=$X$4,\"Enter smelter details\", IF(ISERROR($V2358),\"\",OFFSET('Smelter Look-up'!$F$4,$V2358-4,0)))","v":""},{"$f":"IF(ISERROR($V2358),\"\",OFFSET('Smelter Look-up'!$G$4,$V2358-4,0))","v":""},{"$f":"IF(ISERROR($V2358),\"\",OFFSET('Smelter Look-up'!$H$4,$V2358-4,0))","v":""},{"$f":"IF(ISERROR($V2358),\"\",OFFSET('Smelter Look-up'!$I$4,$V2358-4,0))","v":""},{"$nulls":7},{"$f":"IF(ISERROR($V2358),\"\",OFFSET('Smelter Look-up'!$C$4,$V2358-4,0)&\"\")","v":""},"",{"$f":"IF(B2358=\"\",\"\",IF(ISERROR(MATCH($J2358,SorP!$B$1:$B$6230,0)),\"\",INDIRECT(\"'SorP'!$A$\"&MATCH($J2358,SorP!$B$1:$B$6230,0))))","v":""},null,{"$f":"IF(C2358=\"\",NA(),MATCH($B2358&$C2358,'Smelter Look-up'!$J:$J,0))","v":{"$error":"#N/A"}},null,0,null,null,null,""]
[null,{"$f":"IF(LEN(A2359)=0,\"\",INDEX('Smelter Look-up'!$A:$A,MATCH($A2359,'Smelter Look-up'!$E:$E,0)))","v":""},{"$f":"IF(LEN(A2359)=0,\"\",INDEX('Smelter Look-up'!$C:$C,MATCH($A2359,'Smelter Look-up'!$E:$E,0)))","v":""},null,{"$f":"IF(ISERROR($V2359),\"\",OFFSET('Smelter Look-up'!$D$4,$V2359-4,0)&\"\")","v":""},{"$f":"IF(ISERROR($V2359),\"\",OFFSET('Smelter Look-up'!$E$4,$V2359-4,0))","v":""},{"$f":"IF(C2359=$X$4,\"Enter smelter details\", IF(ISERROR($V2359),\"\",OFFSET('Smelter Look-up'!$F$4,$V2359-4,0)))","v":""},{"$f":"IF(ISERROR($V2359),\"\",OFFSET('Smelter Look-up'!$G$4,$V2359-4,0))","v":""},{"$f":"IF(ISERROR($V2359),\"\",OFFSET('Smelter Look-up'!$H$4,$V2359-4,0))","v":""},{"$f":"IF(ISERROR($V2359),\"\",OFFSET('Smelter Look-up'!$I$4,$V2359-4,0))","v":""},{"$nulls":7},{"$f":"IF(ISERROR($V2359),\"\",OFFSET('Smelter Look-up'!$C$4,$V2359-4,0)&\"\")","v":""},"",{"$f":"IF(B2359=\"\",\"\",IF(ISERROR(MATCH($J2359,SorP!$B$1:$B$6230,0)),\"\",INDIRECT(\"'SorP'!$A$\"&MATCH($J2359,SorP!$B$1:$B$6230,0))))","v":""},null,{"$f":"IF(C2359=\"\",NA(),MATCH($B2359&$C2359,'Smelter Look-up'!$J:$J,0))","v":{"$error":"#N/A"}},null,0,null,null,null,""]
[null,{"$f":"IF(LEN(A2360)=0,\"\",INDEX('Smelter Look-up'!$A:$A,MATCH($A2360,'Smelter Look-up'!$E:$E,0)))","v":""},{"$f":"IF(LEN(A2360)=0,\"\",INDEX('Smelter Look-up'!$C:$C,MATCH($A2360,'Smelter Look-up'!$E:$E,0)))","v":""},null,{"$f":"IF(ISERROR($V2360),\"\",OFFSET('Smelter Look-up'!$D$4,$V2360-4,0)&\"\")","v":""},{"$f":"IF(ISERROR($V2360),\"\",OFFSET('Smelter Look-up'!$E$4,$V2360-4,0))","v":""},{"$f":"IF(C2360=$X$4,\"Enter smelter details\", IF(ISERROR($V2360),\"\",OFFSET('Smelter Look-up'!$F$4,$V2360-4,0)))","v":""},{"$f":"IF(ISERROR($V2360),\"\",OFFSET('Smelter Look-up'!$G$4,$V2360-4,0))","v":""},{"$f":"IF(ISERROR($V2360),\"\",OFFSET('Smelter Look-up'!$H$4,$V2360-4,0))","v":""},{"$f":"IF(ISERROR($V2360),\"\",OFFSET('Smelter Look-up'!$I$4,$V2360-4,0))","v":""},{"$nulls":7},{"$f":"IF(ISERROR($V2360),\"\",OFFSET('Smelter Look-up'!$C$4,$V2360-4,0)&\"\")","v":""},"",{"$f":"IF(B2360=\"\",\"\",IF(ISERROR(MATCH($J2360,SorP!$B$1:$B$6230,0)),\"\",INDIRECT(\"'SorP'!$A$\"&MATCH($J2360,SorP!$B$1:$B$6230,0))))","v":""},null,{"$f":"IF(C2360=\"\",NA(),MATCH($B2360&$C2360,'Smelter Look-up'!$J:$J,0))","v":{"$error":"#N/A"}},null,0,null,null,null,""]
[null,{"$f":"IF(LEN(A2361)=0,\"\",INDEX('Smelter Look-up'!$A:$A,MATCH($A2361,'Smelter Look-up'!$E:$E,0)))","v":""},{"$f":"IF(LEN(A2361)=0,\"\",INDEX('Smelter Look-up'!$C:$C,MATCH($A2361,'Smelter Look-up'!$E:$E,0)))","v":""},null,{"$f":"IF(ISERROR($V2361),\"\",OFFSET('Smelter Look-up'!$D$4,$V2361-4,0)&\"\")","v":""},{"$f":"IF(ISERROR($V2361),\"\",OFFSET('Smelter Look-up'!$E$4,$V2361-4,0))","v":""},{"$f":"IF(C2361=$X$4,\"Enter smelter details\", IF(ISERROR($V2361),\"\",OFFSET('Smelter Look-up'!$F$4,$V2361-4,0)))","v":""},{"$f":"IF(ISERROR($V2361),\"\",OFFSET('Smelter Look-up'!$G$4,$V2361-4,0))","v":""},{"$f":"IF(ISERROR($V2361),\"\",OFFSET('Smelter Look-up'!$H$4,$V2361-4,0))","v":""},{"$f":"IF(ISERROR($V2361),\"\",OFFSET('Smelter Look-up'!$I$4,$V2361-4,0))","v":""},{"$nulls":7},{"$f":"IF(ISERROR($V2361),\"\",OFFSET('Smelter Look-up'!$C$4,$V2361-4,0)&\"\")","v":""},"",{"$f":"IF(B2361=\"\",\"\",IF(ISERROR(MATCH($J2361,SorP!$B$1:$B$6230,0)),\"\",INDIRECT(\"'SorP'!$A$\"&MATCH($J2361,SorP!$B$1:$B$6230,0))))","v":""},null,{"$f":"IF(C2361=\"\",NA(),MATCH($B2361&$C2361,'Smelter Look-up'!$J:$J,0))","v":{"$error":"#N/A"}},null,0,null,null,null,""]
[null,{"$f":"IF(LEN(A2362)=0,\"\",INDEX('Smelter Look-up'!$A:$A,MATCH($A2362,'Smelter Look-up'!$E:$E,0)))","v":""},{"$f":"IF(LEN(A2362)=0,\"\",INDEX('Smelter Look-up'!$C:$C,MATCH($A2362,'Smelter Look-up'!$E:$E,0)))","v":""},null,{"$f":"IF(ISERROR($V2362),\"\",OFFSET('Smelter Look-up'!$D$4,$V2362-4,0)&\"\")","v":""},{"$f":"IF(ISERROR($V2362),\"\",OFFSET('Smelter Look-up'!$E$4,$V2362-4,0))","v":""},{"$f":"IF(C2362=$X$4,\"Enter smelter details\", IF(ISERROR($V2362),\"\",OFFSET('Smelter Look-up'!$F$4,$V2362-4,0)))","v":""},{"$f":"IF(ISERROR($V2362),\"\",OFFSET('Smelter Look-up'!$G$4,$V2362-4,0))","v":""},{"$f":"IF(ISERROR($V2362),\"\",OFFSET('Smelter Look-up'!$H$4,$V2362-4,0))","v":""},{"$f":"IF(ISERROR($V2362),\"\",OFFSET('Smelter Look-up'!$I$4,$V2362-4,0))","v":""},{"$nulls":7},{"$f":"IF(ISERROR($V2362),\"\",OFFSET('Smelter Look-up'!$C$4,$V2362-4,0)&\"\")","v":""},"",{"$f":"IF(B2362=\"\",\"\",IF(ISERROR(MATCH($J2362,SorP!$B$1:$B$6230,0)),\"\",INDIRECT(\"'SorP'!$A$\"&MATCH($J2362,SorP!$B$1:$B$6230,0))))","v":""},null,{"$f":"IF(C2362=\"\",NA(),MATCH($B2362&$C2362,'Smelter Look-up'!$J:$J,0))","v":{"$error":"#N/A"}},null,0,null,null,null,""]
[null,{"$f":"IF(LEN(A2363)=0,\"\",INDEX('Smelter Look-up'!$A:$A,MATCH($A2363,'Smelter Look-up'!$E:$E,0)))","v":""},{"$f":"IF(LEN(A2363)=0,\"\",INDEX('Smelter Look-up'!$C:$C,MATCH($A2363,'Smelter Look-up'!$E:$E,0)))","v":""},null,{"$f":"IF(ISERROR($V2363),\"\",OFFSET('Smelter Look-up'!$D$4,$V2363-4,0)&\"\")","v":""},{"$f":"IF(ISERROR($V2363),\"\",OFFSET('Smelter Look-up'!$E$4,$V2363-4,0))","v":""},{"$f":"IF(C2363=$X$4,\"Enter smelter details\", IF(ISERROR($V2363),\"\",OFFSET('Smelter Look-up'!$F$4,$V2363-4,0)))","v":""},{"$f":"IF(ISERROR($V2363),\"\",OFFSET('Smelter Look-up'!$G$4,$V2363-4,0))","v":""},{"$f":"IF(ISERROR($V2363),\"\",OFFSET('Smelter Look-up'!$H$4,$V2363-4,0))","v":""},{"$f":"IF(ISERROR($V2363),\"\",OFFSET('Smelter Look-up'!$I$4,$V2363-4,0))","v":""},{"$nulls":7},{"$f":"IF(ISERROR($V2363),\"\",OFFSET('Smelter Look-up'!$C$4,$V2363-4,0)&\"\")","v":""},{"$f":"IF(B2363=\"\",\"\",IF(ISERROR(MATCH($E2363,CL,0)),\"Unknown\",INDIRECT(\"'C'!$A$\"&MATCH($E2363,CL,0)+1)))","v":""},{"$f":"IF(B2363=\"\",\"\",IF(ISERROR(MATCH($J2363,SorP!$B$1:$B$6230,0)),\"\",INDIRECT(\"'SorP'!$A$\"&MATCH($J2363,SorP!$B$1:$B$6230,0))))","v":""},null,{"$f":"IF(C2363=\"\",NA(),MATCH($B2363&$C2363,'Smelter Look-up'!$J:$J,0))","v":{"$error":"#N/A"}},null,{"$f":"IF(AND(C2363=\"Smelter not listed\",OR(LEN(D2363)=0,LEN(E2363)=0)),1,0)","v":0},null,null,null,{"$f":"B2363&C2363","v":""}]
[null,{"$f":"IF(LEN(A2364)=0,\"\",INDEX('Smelter Look-up'!$A:$A,MATCH($A2364,'Smelter Look-up'!$E:$E,0)))","v":""},{"$f":"IF(LEN(A2364)=0,\"\",INDEX('Smelter Look-up'!$C:$C,MATCH($A2364,'Smelter Look-up'!$E:$E,0)))","v":""},null,{"$f":"IF(ISERROR($V2364),\"\",OFFSET('Smelter Look-up'!$D$4,$V2364-4,0)&\"\")","v":""},{"$f":"IF(ISERROR($V2364),\"\",OFFSET('Smelter Look-up'!$E$4,$V2364-4,0))","v":""},{"$f":"IF(C2364=$X$4,\"Enter smelter details\", IF(ISERROR($V2364),\"\",OFFSET('Smelter Look-up'!$F$4,$V2364-4,0)))","v":""},{"$f":"IF(ISERROR($V2364),\"\",OFFSET('Smelter Look-up'!$G$4,$V2364-4,0))","v":""},{"$f":"IF(ISERROR($V2364),\"\",OFFSET('Smelter Look-up'!$H$4,$V2364-4,0))","v":""},{"$f":"IF(ISERROR($V2364),\"\",OFFSET('Smelter Look-up'!$I$4,$V2364-4,0))","v":""},{"$nulls":7},{"$f":"IF(ISERROR($V2364),\"\",OFFSET('Smelter Look-up'!$C$4,$V2364-4,0)&\"\")","v":""},"",{"$f":"IF(B2364=\"\",\"\",IF(ISERROR(MATCH($J2364,SorP!$B$1:$B$6230,0)),\"\",INDIRECT(\"'SorP'!$A$\"&MATCH($J2364,SorP!$B$1:$B$6230,0))))","v":""},null,{"$f":"IF(C2364=\"\",NA(),MATCH($B2364&$C2364,'Smelter Look-up'!$J:$J,0))","v":{"$error":"#N/A"}},null,0,null,null,null,""]
[null,{"$f":"IF(LEN(A2365)=0,\"\",INDEX('Smelter Look-up'!$A:$A,MATCH($A2365,'Smelter Look-up'!$E:$E,0)))","v":""},{"$f":"IF(LEN(A2365)=0,\"\",INDEX('Smelter Look-up'!$C:$C,MATCH($A2365,'Smelter Look-up'!$E:$E,0)))","v":""},null,{"$f":"IF(ISERROR($V2365),\"\",OFFSET('Smelter Look-up'!$D$4,$V2365-4,0)&\"\")","v":""},{"$f":"IF(ISERROR($V2365),\"\",OFFSET('Smelter Look-up'!$E$4,$V2365-4,0))","v":""},{"$f":"IF(C2365=$X$4,\"Enter smelter details\", IF(ISERROR($V2365),\"\",OFFSET('Smelter Look-up'!$F$4,$V2365-4,0)))","v":""},{"$f":"IF(ISERROR($V2365),\"\",OFFSET('Smelter Look-up'!$G$4,$V2365-4,0))","v":""},{"$f":"IF(ISERROR($V2365),\"\",OFFSET('Smelter Look-up'!$H$4,$V2365-4,0))","v":""},{"$f":"IF(ISERROR($V2365),\"\",OFFSET('Smelter Look-up'!$I$4,$V2365-4,0))","v":""},{"$nulls":7},{"$f":"IF(ISERROR($V2365),\"\",OFFSET('Smelter Look-up'!$C$4,$V2365-4,0)&\"\")","v":""},"",{"$f":"IF(B2365=\"\",\"\",IF(ISERROR(MATCH($J2365,SorP!$B$1:$B$6230,0)),\"\",INDIRECT(\"'SorP'!$A$\"&MATCH($J2365,SorP!$B$1:$B$6230,0))))","v":""},null,{"$f":"IF(C2365=\"\",NA(),MATCH($B2365&$C2365,'Smelter Look-up'!$J:$J,0))","v":{"$error":"#N/A"}},null,0,null,null,null,""]
[null,{"$f":"IF(LEN(A2366)=0,\"\",INDEX('Smelter Look-up'!$A:$A,MATCH($A2366,'Smelter Look-up'!$E:$E,0)))","v":""},{"$f":"IF(LEN(A2366)=0,\"\",INDEX('Smelter Look-up'!$C:$C,MATCH($A2366,'Smelter Look-up'!$E:$E,0)))","v":""},null,{"$f":"IF(ISERROR($V2366),\"\",OFFSET('Smelter Look-up'!$D$4,$V2366-4,0)&\"\")","v":""},{"$f":"IF(ISERROR($V2366),\"\",OFFSET('Smelter Look-up'!$E$4,$V2366-4,0))","v":""},{"$f":"IF(C2366=$X$4,\"Enter smelter details\", IF(ISERROR($V2366),\"\",OFFSET('Smelter Look-up'!$F$4,$V2366-4,0)))","v":""},{"$f":"IF(ISERROR($V2366),\"\",OFFSET('Smelter Look-up'!$G$4,$V2366-4,0))","v":""},{"$f":"IF(ISERROR($V2366),\"\",OFFSET('Smelter Look-up'!$H$4,$V2366-4,0))","v":""},{"$f":"IF(ISERROR($V2366),\"\",OFFSET('Smelter Look-up'!$I$4,$V2366-4,0))","v":""},{"$nulls":7},{"$f":"IF(ISERROR($V2366),\"\",OFFSET('Smelter Look-up'!$C$4,$V2366-4,0)&\"\")","v":""},"",{"$f":"IF(B2366=\"\",\"\",IF(ISERROR(MATCH($J2366,SorP!$B$1:$B$6230,0)),\"\",INDIRECT(\"'SorP'!$A$\"&MATCH($J2366,SorP!$B$1:$B$6230,0))))","v":""},null,{"$f":"IF(C2366=\"\",NA(),MATCH($B2366&$C2366,'Smelter Look-up'!$J:$J,0))","v":{"$error":"#N/A"}},null,0,null,null,null,""]
[null,{"$f":"IF(LEN(A2367)=0,\"\",INDEX('Smelter Look-up'!$A:$A,MATCH($A2367,'Smelter Look-up'!$E:$E,0)))","v":""},{"$f":"IF(LEN(A2367)=0,\"\",INDEX('Smelter Look-up'!$C:$C,MATCH($A2367,'Smelter Look-up'!$E:$E,0)))","v":""},null,{"$f":"IF(ISERROR($V2367),\"\",OFFSET('Smelter Look-up'!$D$4,$V2367-4,0)&\"\")","v":""},{"$f":"IF(ISERROR($V2367),\"\",OFFSET('Smelter Look-up'!$E$4,$V2367-4,0))","v":""},{"$f":"IF(C2367=$X$4,\"Enter smelter details\", IF(ISERROR($V2367),\"\",OFFSET('Smelter Look-up'!$F$4,$V2367-4,0)))","v":""},{"$f":"IF(ISERROR($V2367),\"\",OFFSET('Smelter Look-up'!$G$4,$V2367-4,0))","v":""},{"$f":"IF(ISERROR($V2367),\"\",OFFSET('Smelter Look-up'!$H$4,$V2367-4,0))","v":""},{"$f":"IF(ISERROR($V2367),\"\",OFFSET('Smelter Look-up'!$I$4,$V2367-4,0))","v":""},{"$nulls":7},{"$f":"IF(ISERROR($V2367),\"\",OFFSET('Smelter Look-up'!$C$4,$V2367-4,0)&\"\")","v":""},"",{"$f":"IF(B2367=\"\",\"\",IF(ISERROR(MATCH($J2367,SorP!$B$1:$B$6230,0)),\"\",INDIRECT(\"'SorP'!$A$\"&MATCH($J2367,SorP!$B$1:$B$6230,0))))","v":""},null,{"$f":"IF(C2367=\"\",NA(),MATCH($B2367&$C2367,'Smelter Look-up'!$J:$J,0))","v":{"$error":"#N/A"}},null,0,null,null,null,""]
[null,{"$f":"IF(LEN(A2368)=0,\"\",INDEX('Smelter Look-up'!$A:$A,MATCH($A2368,'Smelter Look-up'!$E:$E,0)))","v":""},{"$f":"IF(LEN(A2368)=0,\"\",INDEX('Smelter Look-up'!$C:$C,MATCH($A2368,'Smelter Look-up'!$E:$E,0)))","v":""},null,{"$f":"IF(ISERROR($V2368),\"\",OFFSET('Smelter Look-up'!$D$4,$V2368-4,0)&\"\")","v":""},{"$f":"IF(ISERROR($V2368),\"\",OFFSET('Smelter Look-up'!$E$4,$V2368-4,0))","v":""},{"$f":"IF(C2368=$X$4,\"Enter smelter details\", IF(ISERROR($V2368),\"\",OFFSET('Smelter Look-up'!$F$4,$V2368-4,0)))","v":""},{"$f":"IF(ISERROR($V2368),\"\",OFFSET('Smelter Look-up'!$G$4,$V2368-4,0))","v":""},{"$f":"IF(ISERROR($V2368),\"\",OFFSET('Smelter Look-up'!$H$4,$V2368-4,0))","v":""},{"$f":"IF(ISERROR($V2368),\"\",OFFSET('Smelter Look-up'!$I$4,$V2368-4,0))","v":""},{"$nulls":7},{"$f":"IF(ISERROR($V2368),\"\",OFFSET('Smelter Look-up'!$C$4,$V2368-4,0)&\"\")","v":""},"",{"$f":"IF(B2368=\"\",\"\",IF(ISERROR(MATCH($J2368,SorP!$B$1:$B$6230,0)),\"\",INDIRECT(\"'SorP'!$A$\"&MATCH($J2368,SorP!$B$1:$B$6230,0))))","v":""},null,{"$f":"IF(C2368=\"\",NA(),MATCH($B2368&$C2368,'Smelter Look-up'!$J:$J,0))","v":{"$error":"#N/A"}},null,0,null,null,null,""]
[null,{"$f":"IF(LEN(A2369)=0,\"\",INDEX('Smelter Look-up'!$A:$A,MATCH($A2369,'Smelter Look-up'!$E:$E,0)))","v":""},{"$f":"IF(LEN(A2369)=0,\"\",INDEX('Smelter Look-up'!$C:$C,MATCH($A2369,'Smelter Look-up'!$E:$E,0)))","v":""},null,{"$f":"IF(ISERROR($V2369),\"\",OFFSET('Smelter Look-up'!$D$4,$V2369-4,0)&\"\")","v":""},{"$f":"IF(ISERROR($V2369),\"\",OFFSET('Smelter Look-up'!$E$4,$V2369-4,0))","v":""},{"$f":"IF(C2369=$X$4,\"Enter smelter details\", IF(ISERROR($V2369),\"\",OFFSET('Smelter Look-up'!$F$4,$V2369-4,0)))","v":""},{"$f":"IF(ISERROR($V2369),\"\",OFFSET('Smelter Look-up'!$G$4,$V2369-4,0))","v":""},{"$f":"IF(ISERROR($V2369),\"\",OFFSET('Smelter Look-up'!$H$4,$V2369-4,0))","v":""},{"$f":"IF(ISERROR($V2369),\"\",OFFSET('Smelter Look-up'!$I$4,$V2369-4,0))","v":""},{"$nulls":7},{"$f":"IF(ISERROR($V2369),\"\",OFFSET('Smelter Look-up'!$C$4,$V2369-4,0)&\"\")","v":""},"",{"$f":"IF(B2369=\"\",\"\",IF(ISERROR(MATCH($J2369,SorP!$B$1:$B$6230,0)),\"\",INDIRECT(\"'SorP'!$A$\"&MATCH($J2369,SorP!$B$1:$B$6230,0))))","v":""},null,{"$f":"IF(C2369=\"\",NA(),MATCH($B2369&$C2369,'Smelter Look-up'!$J:$J,0))","v":{"$error":"#N/A"}},null,0,null,null,null,""]
[null,{"$f":"IF(LEN(A2370)=0,\"\",INDEX('Smelter Look-up'!$A:$A,MATCH($A2370,'Smelter Look-up'!$E:$E,0)))","v":""},{"$f":"IF(LEN(A2370)=0,\"\",INDEX('Smelter Look-up'!$C:$C,MATCH($A2370,'Smelter Look-up'!$E:$E,0)))","v":""},null,{"$f":"IF(ISERROR($V2370),\"\",OFFSET('Smelter Look-up'!$D$4,$V2370-4,0)&\"\")","v":""},{"$f":"IF(ISERROR($V2370),\"\",OFFSET('Smelter Look-up'!$E$4,$V2370-4,0))","v":""},{"$f":"IF(C2370=$X$4,\"Enter smelter details\", IF(ISERROR($V2370),\"\",OFFSET('Smelter Look-up'!$F$4,$V2370-4,0)))","v":""},{"$f":"IF(ISERROR($V2370),\"\",OFFSET('Smelter Look-up'!$G$4,$V2370-4,0))","v":""},{"$f":"IF(ISERROR($V2370),\"\",OFFSET('Smelter Look-up'!$H$4,$V2370-4,0))","v":""},{"$f":"IF(ISERROR($V2370),\"\",OFFSET('Smelter Look-up'!$I$4,$V2370-4,0))","v":""},{"$nulls":7},{"$f":"IF(ISERROR($V2370),\"\",OFFSET('Smelter Look-up'!$C$4,$V2370-4,0)&\"\")","v":""},"",{"$f":"IF(B2370=\"\",\"\",IF(ISERROR(MATCH($J2370,SorP!$B$1:$B$6230,0)),\"\",INDIRECT(\"'SorP'!$A$\"&MATCH($J2370,SorP!$B$1:$B$6230,0))))","v":""},null,{"$f":"IF(C2370=\"\",NA(),MATCH($B2370&$C2370,'Smelter Look-up'!$J:$J,0))","v":{"$error":"#N/A"}},null,0,null,null,null,""]
[null,{"$f":"IF(LEN(A2371)=0,\"\",INDEX('Smelter Look-up'!$A:$A,MATCH($A2371,'Smelter Look-up'!$E:$E,0)))","v":""},{"$f":"IF(LEN(A2371)=0,\"\",INDEX('Smelter Look-up'!$C:$C,MATCH($A2371,'Smelter Look-up'!$E:$E,0)))","v":""},null,{"$f":"IF(ISERROR($V2371),\"\",OFFSET('Smelter Look-up'!$D$4,$V2371-4,0)&\"\")","v":""},{"$f":"IF(ISERROR($V2371),\"\",OFFSET('Smelter Look-up'!$E$4,$V2371-4,0))","v":""},{"$f":"IF(C2371=$X$4,\"Enter smelter details\", IF(ISERROR($V2371),\"\",OFFSET('Smelter Look-up'!$F$4,$V2371-4,0)))","v":""},{"$f":"IF(ISERROR($V2371),\"\",OFFSET('Smelter Look-up'!$G$4,$V2371-4,0))","v":""},{"$f":"IF(ISERROR($V2371),\"\",OFFSET('Smelter Look-up'!$H$4,$V2371-4,0))","v":""},{"$f":"IF(ISERROR($V2371),\"\",OFFSET('Smelter Look-up'!$I$4,$V2371-4,0))","v":""},{"$nulls":7},{"$f":"IF(ISERROR($V2371),\"\",OFFSET('Smelter Look-up'!$C$4,$V2371-4,0)&\"\")","v":""},"",{"$f":"IF(B2371=\"\",\"\",IF(ISERROR(MATCH($J2371,SorP!$B$1:$B$6230,0)),\"\",INDIRECT(\"'SorP'!$A$\"&MATCH($J2371,SorP!$B$1:$B$6230,0))))","v":""},null,{"$f":"IF(C2371=\"\",NA(),MATCH($B2371&$C2371,'Smelter Look-up'!$J:$J,0))","v":{"$error":"#N/A"}},null,0,null,null,null,""]
[null,{"$f":"IF(LEN(A2372)=0,\"\",INDEX('Smelter Look-up'!$A:$A,MATCH($A2372,'Smelter Look-up'!$E:$E,0)))","v":""},{"$f":"IF(LEN(A2372)=0,\"\",INDEX('Smelter Look-up'!$C:$C,MATCH($A2372,'Smelter Look-up'!$E:$E,0)))","v":""},null,{"$f":"IF(ISERROR($V2372),\"\",OFFSET('Smelter Look-up'!$D$4,$V2372-4,0)&\"\")","v":""},{"$f":"IF(ISERROR($V2372),\"\",OFFSET('Smelter Look-up'!$E$4,$V2372-4,0))","v":""},{"$f":"IF(C2372=$X$4,\"Enter smelter details\", IF(ISERROR($V2372),\"\",OFFSET('Smelter Look-up'!$F$4,$V2372-4,0)))","v":""},{"$f":"IF(ISERROR($V2372),\"\",OFFSET('Smelter Look-up'!$G$4,$V2372-4,0))","v":""},{"$f":"IF(ISERROR($V2372),\"\",OFFSET('Smelter Look-up'!$H$4,$V2372-4,0))","v":""},{"$f":"IF(ISERROR($V2372),\"\",OFFSET('Smelter Look-up'!$I$4,$V2372-4,0))","v":""},{"$nulls":7},{"$f":"IF(ISERROR($V2372),\"\",OFFSET('Smelter Look-up'!$C$4,$V2372-4,0)&\"\")","v":""},"",{"$f":"IF(B2372=\"\",\"\",IF(ISERROR(MATCH($J2372,SorP!$B$1:$B$6230,0)),\"\",INDIRECT(\"'SorP'!$A$\"&MATCH($J2372,SorP!$B$1:$B$6230,0))))","v":""},null,{"$f":"IF(C2372=\"\",NA(),MATCH($B2372&$C2372,'Smelter Look-up'!$J:$J,0))","v":{"$error":"#N/A"}},null,0,null,null,null,""]
[null,{"$f":"IF(LEN(A2373)=0,\"\",INDEX('Smelter Look-up'!$A:$A,MATCH($A2373,'Smelter Look-up'!$E:$E,0)))","v":""},{"$f":"IF(LEN(A2373)=0,\"\",INDEX('Smelter Look-up'!$C:$C,MATCH($A2373,'Smelter Look-up'!$E:$E,0)))","v":""},null,{"$f":"IF(ISERROR($V2373),\"\",OFFSET('Smelter Look-up'!$D$4,$V2373-4,0)&\"\")","v":""},{"$f":"IF(ISERROR($V2373),\"\",OFFSET('Smelter Look-up'!$E$4,$V2373-4,0))","v":""},{"$f":"IF(C2373=$X$4,\"Enter smelter details\", IF(ISERROR($V2373),\"\",OFFSET('Smelter Look-up'!$F$4,$V2373-4,0)))","v":""},{"$f":"IF(ISERROR($V2373),\"\",OFFSET('Smelter Look-up'!$G$4,$V2373-4,0))","v":""},{"$f":"IF(ISERROR($V2373),\"\",OFFSET('Smelter Look-up'!$H$4,$V2373-4,0))","v":""},{"$f":"IF(ISERROR($V2373),\"\",OFFSET('Smelter Look-up'!$I$4,$V2373-4,0))","v":""},{"$nulls":7},{"$f":"IF(ISERROR($V2373),\"\",OFFSET('Smelter Look-up'!$C$4,$V2373-4,0)&\"\")","v":""},"",{"$f":"IF(B2373=\"\",\"\",IF(ISERROR(MATCH($J2373,SorP!$B$1:$B$6230,0)),\"\",INDIRECT(\"'SorP'!$A$\"&MATCH($J2373,SorP!$B$1:$B$6230,0))))","v":""},null,{"$f":"IF(C2373=\"\",NA(),MATCH($B2373&$C2373,'Smelter Look-up'!$J:$J,0))","v":{"$error":"#N/A"}},null,0,null,null,null,""]
[null,{"$f":"IF(LEN(A2374)=0,\"\",INDEX('Smelter Look-up'!$A:$A,MATCH($A2374,'Smelter Look-up'!$E:$E,0)))","v":""},{"$f":"IF(LEN(A2374)=0,\"\",INDEX('Smelter Look-up'!$C:$C,MATCH($A2374,'Smelter Look-up'!$E:$E,0)))","v":""},null,{"$f":"IF(ISERROR($V2374),\"\",OFFSET('Smelter Look-up'!$D$4,$V2374-4,0)&\"\")","v":""},{"$f":"IF(ISERROR($V2374),\"\",OFFSET('Smelter Look-up'!$E$4,$V2374-4,0))","v":""},{"$f":"IF(C2374=$X$4,\"Enter smelter details\", IF(ISERROR($V2374),\"\",OFFSET('Smelter Look-up'!$F$4,$V2374-4,0)))","v":""},{"$f":"IF(ISERROR($V2374),\"\",OFFSET('Smelter Look-up'!$G$4,$V2374-4,0))","v":""},{"$f":"IF(ISERROR($V2374),\"\",OFFSET('Smelter Look-up'!$H$4,$V2374-4,0))","v":""},{"$f":"IF(ISERROR($V2374),\"\",OFFSET('Smelter Look-up'!$I$4,$V2374-4,0))","v":""},{"$nulls":7},{"$f":"IF(ISERROR($V2374),\"\",OFFSET('Smelter Look-up'!$C$4,$V2374-4,0)&\"\")","v":""},"",{"$f":"IF(B2374=\"\",\"\",IF(ISERROR(MATCH($J2374,SorP!$B$1:$B$6230,0)),\"\",INDIRECT(\"'SorP'!$A$\"&MATCH($J2374,SorP!$B$1:$B$6230,0))))","v":""},null,{"$f":"IF(C2374=\"\",NA(),MATCH($B2374&$C2374,'Smelter Look-up'!$J:$J,0))","v":{"$error":"#N/A"}},null,0,null,null,null,""]
[null,{"$f":"IF(LEN(A2375)=0,\"\",INDEX('Smelter Look-up'!$A:$A,MATCH($A2375,'Smelter Look-up'!$E:$E,0)))","v":""},{"$f":"IF(LEN(A2375)=0,\"\",INDEX('Smelter Look-up'!$C:$C,MATCH($A2375,'Smelter Look-up'!$E:$E,0)))","v":""},null,{"$f":"IF(ISERROR($V2375),\"\",OFFSET('Smelter Look-up'!$D$4,$V2375-4,0)&\"\")","v":""},{"$f":"IF(ISERROR($V2375),\"\",OFFSET('Smelter Look-up'!$E$4,$V2375-4,0))","v":""},{"$f":"IF(C2375=$X$4,\"Enter smelter details\", IF(ISERROR($V2375),\"\",OFFSET('Smelter Look-up'!$F$4,$V2375-4,0)))","v":""},{"$f":"IF(ISERROR($V2375),\"\",OFFSET('Smelter Look-up'!$G$4,$V2375-4,0))","v":""},{"$f":"IF(ISERROR($V2375),\"\",OFFSET('Smelter Look-up'!$H$4,$V2375-4,0))","v":""},{"$f":"IF(ISERROR($V2375),\"\",OFFSET('Smelter Look-up'!$I$4,$V2375-4,0))","v":""},{"$nulls":7},{"$f":"IF(ISERROR($V2375),\"\",OFFSET('Smelter Look-up'!$C$4,$V2375-4,0)&\"\")","v":""},"",{"$f":"IF(B2375=\"\",\"\",IF(ISERROR(MATCH($J2375,SorP!$B$1:$B$6230,0)),\"\",INDIRECT(\"'SorP'!$A$\"&MATCH($J2375,SorP!$B$1:$B$6230,0))))","v":""},null,{"$f":"IF(C2375=\"\",NA(),MATCH($B2375&$C2375,'Smelter Look-up'!$J:$J,0))","v":{"$error":"#N/A"}},null,0,null,null,null,""]
[null,{"$f":"IF(LEN(A2376)=0,\"\",INDEX('Smelter Look-up'!$A:$A,MATCH($A2376,'Smelter Look-up'!$E:$E,0)))","v":""},{"$f":"IF(LEN(A2376)=0,\"\",INDEX('Smelter Look-up'!$C:$C,MATCH($A2376,'Smelter Look-up'!$E:$E,0)))","v":""},null,{"$f":"IF(ISERROR($V2376),\"\",OFFSET('Smelter Look-up'!$D$4,$V2376-4,0)&\"\")","v":""},{"$f":"IF(ISERROR($V2376),\"\",OFFSET('Smelter Look-up'!$E$4,$V2376-4,0))","v":""},{"$f":"IF(C2376=$X$4,\"Enter smelter details\", IF(ISERROR($V2376),\"\",OFFSET('Smelter Look-up'!$F$4,$V2376-4,0)))","v":""},{"$f":"IF(ISERROR($V2376),\"\",OFFSET('Smelter Look-up'!$G$4,$V2376-4,0))","v":""},{"$f":"IF(ISERROR($V2376),\"\",OFFSET('Smelter Look-up'!$H$4,$V2376-4,0))","v":""},{"$f":"IF(ISERROR($V2376),\"\",OFFSET('Smelter Look-up'!$I$4,$V2376-4,0))","v":""},{"$nulls":7},{"$f":"IF(ISERROR($V2376),\"\",OFFSET('Smelter Look-up'!$C$4,$V2376-4,0)&\"\")","v":""},"",{"$f":"IF(B2376=\"\",\"\",IF(ISERROR(MATCH($J2376,SorP!$B$1:$B$6230,0)),\"\",INDIRECT(\"'SorP'!$A$\"&MATCH($J2376,SorP!$B$1:$B$6230,0))))","v":""},null,{"$f":"IF(C2376=\"\",NA(),MATCH($B2376&$C2376,'Smelter Look-up'!$J:$J,0))","v":{"$error":"#N/A"}},null,0,null,null,null,""]
[null,{"$f":"IF(LEN(A2377)=0,\"\",INDEX('Smelter Look-up'!$A:$A,MATCH($A2377,'Smelter Look-up'!$E:$E,0)))","v":""},{"$f":"IF(LEN(A2377)=0,\"\",INDEX('Smelter Look-up'!$C:$C,MATCH($A2377,'Smelter Look-up'!$E:$E,0)))","v":""},null,{"$f":"IF(ISERROR($V2377),\"\",OFFSET('Smelter Look-up'!$D$4,$V2377-4,0)&\"\")","v":""},{"$f":"IF(ISERROR($V2377),\"\",OFFSET('Smelter Look-up'!$E$4,$V2377-4,0))","v":""},{"$f":"IF(C2377=$X$4,\"Enter smelter details\", IF(ISERROR($V2377),\"\",OFFSET('Smelter Look-up'!$F$4,$V2377-4,0)))","v":""},{"$f":"IF(ISERROR($V2377),\"\",OFFSET('Smelter Look-up'!$G$4,$V2377-4,0))","v":""},{"$f":"IF(ISERROR($V2377),\"\",OFFSET('Smelter Look-up'!$H$4,$V2377-4,0))","v":""},{"$f":"IF(ISERROR($V2377),\"\",OFFSET('Smelter Look-up'!$I$4,$V2377-4,0))","v":""},{"$nulls":7},{"$f":"IF(ISERROR($V2377),\"\",OFFSET('Smelter Look-up'!$C$4,$V2377-4,0)&\"\")","v":""},"",{"$f":"IF(B2377=\"\",\"\",IF(ISERROR(MATCH($J2377,SorP!$B$1:$B$6230,0)),\"\",INDIRECT(\"'SorP'!$A$\"&MATCH($J2377,SorP!$B$1:$B$6230,0))))","v":""},null,{"$f":"IF(C2377=\"\",NA(),MATCH($B2377&$C2377,'Smelter Look-up'!$J:$J,0))","v":{"$error":"#N/A"}},null,0,null,null,null,""]
[null,{"$f":"IF(LEN(A2378)=0,\"\",INDEX('Smelter Look-up'!$A:$A,MATCH($A2378,'Smelter Look-up'!$E:$E,0)))","v":""},{"$f":"IF(LEN(A2378)=0,\"\",INDEX('Smelter Look-up'!$C:$C,MATCH($A2378,'Smelter Look-up'!$E:$E,0)))","v":""},null,{"$f":"IF(ISERROR($V2378),\"\",OFFSET('Smelter Look-up'!$D$4,$V2378-4,0)&\"\")","v":""},{"$f":"IF(ISERROR($V2378),\"\",OFFSET('Smelter Look-up'!$E$4,$V2378-4,0))","v":""},{"$f":"IF(C2378=$X$4,\"Enter smelter details\", IF(ISERROR($V2378),\"\",OFFSET('Smelter Look-up'!$F$4,$V2378-4,0)))","v":""},{"$f":"IF(ISERROR($V2378),\"\",OFFSET('Smelter Look-up'!$G$4,$V2378-4,0))","v":""},{"$f":"IF(ISERROR($V2378),\"\",OFFSET('Smelter Look-up'!$H$4,$V2378-4,0))","v":""},{"$f":"IF(ISERROR($V2378),\"\",OFFSET('Smelter Look-up'!$I$4,$V2378-4,0))","v":""},{"$nulls":7},{"$f":"IF(ISERROR($V2378),\"\",OFFSET('Smelter Look-up'!$C$4,$V2378-4,0)&\"\")","v":""},"",{"$f":"IF(B2378=\"\",\"\",IF(ISERROR(MATCH($J2378,SorP!$B$1:$B$6230,0)),\"\",INDIRECT(\"'SorP'!$A$\"&MATCH($J2378,SorP!$B$1:$B$6230,0))))","v":""},null,{"$f":"IF(C2378=\"\",NA(),MATCH($B2378&$C2378,'Smelter Look-up'!$J:$J,0))","v":{"$error":"#N/A"}},null,0,null,null,null,""]
[null,{"$f":"IF(LEN(A2379)=0,\"\",INDEX('Smelter Look-up'!$A:$A,MATCH($A2379,'Smelter Look-up'!$E:$E,0)))","v":""},{"$f":"IF(LEN(A2379)=0,\"\",INDEX('Smelter Look-up'!$C:$C,MATCH($A2379,'Smelter Look-up'!$E:$E,0)))","v":""},null,{"$f":"IF(ISERROR($V2379),\"\",OFFSET('Smelter Look-up'!$D$4,$V2379-4,0)&\"\")","v":""},{"$f":"IF(ISERROR($V2379),\"\",OFFSET('Smelter Look-up'!$E$4,$V2379-4,0))","v":""},{"$f":"IF(C2379=$X$4,\"Enter smelter details\", IF(ISERROR($V2379),\"\",OFFSET('Smelter Look-up'!$F$4,$V2379-4,0)))","v":""},{"$f":"IF(ISERROR($V2379),\"\",OFFSET('Smelter Look-up'!$G$4,$V2379-4,0))","v":""},{"$f":"IF(ISERROR($V2379),\"\",OFFSET('Smelter Look-up'!$H$4,$V2379-4,0))","v":""},{"$f":"IF(ISERROR($V2379),\"\",OFFSET('Smelter Look-up'!$I$4,$V2379-4,0))","v":""},{"$nulls":7},{"$f":"IF(ISERROR($V2379),\"\",OFFSET('Smelter Look-up'!$C$4,$V2379-4,0)&\"\")","v":""},"",{"$f":"IF(B2379=\"\",\"\",IF(ISERROR(MATCH($J2379,SorP!$B$1:$B$6230,0)),\"\",INDIRECT(\"'SorP'!$A$\"&MATCH($J2379,SorP!$B$1:$B$6230,0))))","v":""},null,{"$f":"IF(C2379=\"\",NA(),MATCH($B2379&$C2379,'Smelter Look-up'!$J:$J,0))","v":{"$error":"#N/A"}},null,0,null,null,null,""]
[null,{"$f":"IF(LEN(A2380)=0,\"\",INDEX('Smelter Look-up'!$A:$A,MATCH($A2380,'Smelter Look-up'!$E:$E,0)))","v":""},{"$f":"IF(LEN(A2380)=0,\"\",INDEX('Smelter Look-up'!$C:$C,MATCH($A2380,'Smelter Look-up'!$E:$E,0)))","v":""},null,{"$f":"IF(ISERROR($V2380),\"\",OFFSET('Smelter Look-up'!$D$4,$V2380-4,0)&\"\")","v":""},{"$f":"IF(ISERROR($V2380),\"\",OFFSET('Smelter Look-up'!$E$4,$V2380-4,0))","v":""},{"$f":"IF(C2380=$X$4,\"Enter smelter details\", IF(ISERROR($V2380),\"\",OFFSET('Smelter Look-up'!$F$4,$V2380-4,0)))","v":""},{"$f":"IF(ISERROR($V2380),\"\",OFFSET('Smelter Look-up'!$G$4,$V2380-4,0))","v":""},{"$f":"IF(ISERROR($V2380),\"\",OFFSET('Smelter Look-up'!$H$4,$V2380-4,0))","v":""},{"$f":"IF(ISERROR($V2380),\"\",OFFSET('Smelter Look-up'!$I$4,$V2380-4,0))","v":""},{"$nulls":7},{"$f":"IF(ISERROR($V2380),\"\",OFFSET('Smelter Look-up'!$C$4,$V2380-4,0)&\"\")","v":""},"",{"$f":"IF(B2380=\"\",\"\",IF(ISERROR(MATCH($J2380,SorP!$B$1:$B$6230,0)),\"\",INDIRECT(\"'SorP'!$A$\"&MATCH($J2380,SorP!$B$1:$B$6230,0))))","v":""},null,{"$f":"IF(C2380=\"\",NA(),MATCH($B2380&$C2380,'Smelter Look-up'!$J:$J,0))","v":{"$error":"#N/A"}},null,0,null,null,null,""]
[null,{"$f":"IF(LEN(A2381)=0,\"\",INDEX('Smelter Look-up'!$A:$A,MATCH($A2381,'Smelter Look-up'!$E:$E,0)))","v":""},{"$f":"IF(LEN(A2381)=0,\"\",INDEX('Smelter Look-up'!$C:$C,MATCH($A2381,'Smelter Look-up'!$E:$E,0)))","v":""},null,{"$f":"IF(ISERROR($V2381),\"\",OFFSET('Smelter Look-up'!$D$4,$V2381-4,0)&\"\")","v":""},{"$f":"IF(ISERROR($V2381),\"\",OFFSET('Smelter Look-up'!$E$4,$V2381-4,0))","v":""},{"$f":"IF(C2381=$X$4,\"Enter smelter details\", IF(ISERROR($V2381),\"\",OFFSET('Smelter Look-up'!$F$4,$V2381-4,0)))","v":""},{"$f":"IF(ISERROR($V2381),\"\",OFFSET('Smelter Look-up'!$G$4,$V2381-4,0))","v":""},{"$f":"IF(ISERROR($V2381),\"\",OFFSET('Smelter Look-up'!$H$4,$V2381-4,0))","v":""},{"$f":"IF(ISERROR($V2381),\"\",OFFSET('Smelter Look-up'!$I$4,$V2381-4,0))","v":""},{"$nulls":7},{"$f":"IF(ISERROR($V2381),\"\",OFFSET('Smelter Look-up'!$C$4,$V2381-4,0)&\"\")","v":""},"",{"$f":"IF(B2381=\"\",\"\",IF(ISERROR(MATCH($J2381,SorP!$B$1:$B$6230,0)),\"\",INDIRECT(\"'SorP'!$A$\"&MATCH($J2381,SorP!$B$1:$B$6230,0))))","v":""},null,{"$f":"IF(C2381=\"\",NA(),MATCH($B2381&$C2381,'Smelter Look-up'!$J:$J,0))","v":{"$error":"#N/A"}},null,0,null,null,null,""]
[null,{"$f":"IF(LEN(A2382)=0,\"\",INDEX('Smelter Look-up'!$A:$A,MATCH($A2382,'Smelter Look-up'!$E:$E,0)))","v":""},{"$f":"IF(LEN(A2382)=0,\"\",INDEX('Smelter Look-up'!$C:$C,MATCH($A2382,'Smelter Look-up'!$E:$E,0)))","v":""},null,{"$f":"IF(ISERROR($V2382),\"\",OFFSET('Smelter Look-up'!$D$4,$V2382-4,0)&\"\")","v":""},{"$f":"IF(ISERROR($V2382),\"\",OFFSET('Smelter Look-up'!$E$4,$V2382-4,0))","v":""},{"$f":"IF(C2382=$X$4,\"Enter smelter details\", IF(ISERROR($V2382),\"\",OFFSET('Smelter Look-up'!$F$4,$V2382-4,0)))","v":""},{"$f":"IF(ISERROR($V2382),\"\",OFFSET('Smelter Look-up'!$G$4,$V2382-4,0))","v":""},{"$f":"IF(ISERROR($V2382),\"\",OFFSET('Smelter Look-up'!$H$4,$V2382-4,0))","v":""},{"$f":"IF(ISERROR($V2382),\"\",OFFSET('Smelter Look-up'!$I$4,$V2382-4,0))","v":""},{"$nulls":7},{"$f":"IF(ISERROR($V2382),\"\",OFFSET('Smelter Look-up'!$C$4,$V2382-4,0)&\"\")","v":""},"",{"$f":"IF(B2382=\"\",\"\",IF(ISERROR(MATCH($J2382,SorP!$B$1:$B$6230,0)),\"\",INDIRECT(\"'SorP'!$A$\"&MATCH($J2382,SorP!$B$1:$B$6230,0))))","v":""},null,{"$f":"IF(C2382=\"\",NA(),MATCH($B2382&$C2382,'Smelter Look-up'!$J:$J,0))","v":{"$error":"#N/A"}},null,0,null,null,null,""]
[null,{"$f":"IF(LEN(A2383)=0,\"\",INDEX('Smelter Look-up'!$A:$A,MATCH($A2383,'Smelter Look-up'!$E:$E,0)))","v":""},{"$f":"IF(LEN(A2383)=0,\"\",INDEX('Smelter Look-up'!$C:$C,MATCH($A2383,'Smelter Look-up'!$E:$E,0)))","v":""},null,{"$f":"IF(ISERROR($V2383),\"\",OFFSET('Smelter Look-up'!$D$4,$V2383-4,0)&\"\")","v":""},{"$f":"IF(ISERROR($V2383),\"\",OFFSET('Smelter Look-up'!$E$4,$V2383-4,0))","v":""},{"$f":"IF(C2383=$X$4,\"Enter smelter details\", IF(ISERROR($V2383),\"\",OFFSET('Smelter Look-up'!$F$4,$V2383-4,0)))","v":""},{"$f":"IF(ISERROR($V2383),\"\",OFFSET('Smelter Look-up'!$G$4,$V2383-4,0))","v":""},{"$f":"IF(ISERROR($V2383),\"\",OFFSET('Smelter Look-up'!$H$4,$V2383-4,0))","v":""},{"$f":"IF(ISERROR($V2383),\"\",OFFSET('Smelter Look-up'!$I$4,$V2383-4,0))","v":""},{"$nulls":7},{"$f":"IF(ISERROR($V2383),\"\",OFFSET('Smelter Look-up'!$C$4,$V2383-4,0)&\"\")","v":""},"",{"$f":"IF(B2383=\"\",\"\",IF(ISERROR(MATCH($J2383,SorP!$B$1:$B$6230,0)),\"\",INDIRECT(\"'SorP'!$A$\"&MATCH($J2383,SorP!$B$1:$B$6230,0))))","v":""},null,{"$f":"IF(C2383=\"\",NA(),MATCH($B2383&$C2383,'Smelter Look-up'!$J:$J,0))","v":{"$error":"#N/A"}},null,0,null,null,null,""]
[null,{"$f":"IF(LEN(A2384)=0,\"\",INDEX('Smelter Look-up'!$A:$A,MATCH($A2384,'Smelter Look-up'!$E:$E,0)))","v":""},{"$f":"IF(LEN(A2384)=0,\"\",INDEX('Smelter Look-up'!$C:$C,MATCH($A2384,'Smelter Look-up'!$E:$E,0)))","v":""},null,{"$f":"IF(ISERROR($V2384),\"\",OFFSET('Smelter Look-up'!$D$4,$V2384-4,0)&\"\")","v":""},{"$f":"IF(ISERROR($V2384),\"\",OFFSET('Smelter Look-up'!$E$4,$V2384-4,0))","v":""},{"$f":"IF(C2384=$X$4,\"Enter smelter details\", IF(ISERROR($V2384),\"\",OFFSET('Smelter Look-up'!$F$4,$V2384-4,0)))","v":""},{"$f":"IF(ISERROR($V2384),\"\",OFFSET('Smelter Look-up'!$G$4,$V2384-4,0))","v":""},{"$f":"IF(ISERROR($V2384),\"\",OFFSET('Smelter Look-up'!$H$4,$V2384-4,0))","v":""},{"$f":"IF(ISERROR($V2384),\"\",OFFSET('Smelter Look-up'!$I$4,$V2384-4,0))","v":""},{"$nulls":7},{"$f":"IF(ISERROR($V2384),\"\",OFFSET('Smelter Look-up'!$C$4,$V2384-4,0)&\"\")","v":""},"",{"$f":"IF(B2384=\"\",\"\",IF(ISERROR(MATCH($J2384,SorP!$B$1:$B$6230,0)),\"\",INDIRECT(\"'SorP'!$A$\"&MATCH($J2384,SorP!$B$1:$B$6230,0))))","v":""},null,{"$f":"IF(C2384=\"\",NA(),MATCH($B2384&$C2384,'Smelter Look-up'!$J:$J,0))","v":{"$error":"#N/A"}},null,0,null,null,null,""]
[null,{"$f":"IF(LEN(A2385)=0,\"\",INDEX('Smelter Look-up'!$A:$A,MATCH($A2385,'Smelter Look-up'!$E:$E,0)))","v":""},{"$f":"IF(LEN(A2385)=0,\"\",INDEX('Smelter Look-up'!$C:$C,MATCH($A2385,'Smelter Look-up'!$E:$E,0)))","v":""},null,{"$f":"IF(ISERROR($V2385),\"\",OFFSET('Smelter Look-up'!$D$4,$V2385-4,0)&\"\")","v":""},{"$f":"IF(ISERROR($V2385),\"\",OFFSET('Smelter Look-up'!$E$4,$V2385-4,0))","v":""},{"$f":"IF(C2385=$X$4,\"Enter smelter details\", IF(ISERROR($V2385),\"\",OFFSET('Smelter Look-up'!$F$4,$V2385-4,0)))","v":""},{"$f":"IF(ISERROR($V2385),\"\",OFFSET('Smelter Look-up'!$G$4,$V2385-4,0))","v":""},{"$f":"IF(ISERROR($V2385),\"\",OFFSET('Smelter Look-up'!$H$4,$V2385-4,0))","v":""},{"$f":"IF(ISERROR($V2385),\"\",OFFSET('Smelter Look-up'!$I$4,$V2385-4,0))","v":""},{"$nulls":7},{"$f":"IF(ISERROR($V2385),\"\",OFFSET('Smelter Look-up'!$C$4,$V2385-4,0)&\"\")","v":""},"",{"$f":"IF(B2385=\"\",\"\",IF(ISERROR(MATCH($J2385,SorP!$B$1:$B$6230,0)),\"\",INDIRECT(\"'SorP'!$A$\"&MATCH($J2385,SorP!$B$1:$B$6230,0))))","v":""},null,{"$f":"IF(C2385=\"\",NA(),MATCH($B2385&$C2385,'Smelter Look-up'!$J:$J,0))","v":{"$error":"#N/A"}},null,0,null,null,null,""]
[null,{"$f":"IF(LEN(A2386)=0,\"\",INDEX('Smelter Look-up'!$A:$A,MATCH($A2386,'Smelter Look-up'!$E:$E,0)))","v":""},{"$f":"IF(LEN(A2386)=0,\"\",INDEX('Smelter Look-up'!$C:$C,MATCH($A2386,'Smelter Look-up'!$E:$E,0)))","v":""},null,{"$f":"IF(ISERROR($V2386),\"\",OFFSET('Smelter Look-up'!$D$4,$V2386-4,0)&\"\")","v":""},{"$f":"IF(ISERROR($V2386),\"\",OFFSET('Smelter Look-up'!$E$4,$V2386-4,0))","v":""},{"$f":"IF(C2386=$X$4,\"Enter smelter details\", IF(ISERROR($V2386),\"\",OFFSET('Smelter Look-up'!$F$4,$V2386-4,0)))","v":""},{"$f":"IF(ISERROR($V2386),\"\",OFFSET('Smelter Look-up'!$G$4,$V2386-4,0))","v":""},{"$f":"IF(ISERROR($V2386),\"\",OFFSET('Smelter Look-up'!$H$4,$V2386-4,0))","v":""},{"$f":"IF(ISERROR($V2386),\"\",OFFSET('Smelter Look-up'!$I$4,$V2386-4,0))","v":""},{"$nulls":7},{"$f":"IF(ISERROR($V2386),\"\",OFFSET('Smelter Look-up'!$C$4,$V2386-4,0)&\"\")","v":""},"",{"$f":"IF(B2386=\"\",\"\",IF(ISERROR(MATCH($J2386,SorP!$B$1:$B$6230,0)),\"\",INDIRECT(\"'SorP'!$A$\"&MATCH($J2386,SorP!$B$1:$B$6230,0))))","v":""},null,{"$f":"IF(C2386=\"\",NA(),MATCH($B2386&$C2386,'Smelter Look-up'!$J:$J,0))","v":{"$error":"#N/A"}},null,0,null,null,null,""]
[null,{"$f":"IF(LEN(A2387)=0,\"\",INDEX('Smelter Look-up'!$A:$A,MATCH($A2387,'Smelter Look-up'!$E:$E,0)))","v":""},{"$f":"IF(LEN(A2387)=0,\"\",INDEX('Smelter Look-up'!$C:$C,MATCH($A2387,'Smelter Look-up'!$E:$E,0)))","v":""},null,{"$f":"IF(ISERROR($V2387),\"\",OFFSET('Smelter Look-up'!$D$4,$V2387-4,0)&\"\")","v":""},{"$f":"IF(ISERROR($V2387),\"\",OFFSET('Smelter Look-up'!$E$4,$V2387-4,0))","v":""},{"$f":"IF(C2387=$X$4,\"Enter smelter details\", IF(ISERROR($V2387),\"\",OFFSET('Smelter Look-up'!$F$4,$V2387-4,0)))","v":""},{"$f":"IF(ISERROR($V2387),\"\",OFFSET('Smelter Look-up'!$G$4,$V2387-4,0))","v":""},{"$f":"IF(ISERROR($V2387),\"\",OFFSET('Smelter Look-up'!$H$4,$V2387-4,0))","v":""},{"$f":"IF(ISERROR($V2387),\"\",OFFSET('Smelter Look-up'!$I$4,$V2387-4,0))","v":""},{"$nulls":7},{"$f":"IF(ISERROR($V2387),\"\",OFFSET('Smelter Look-up'!$C$4,$V2387-4,0)&\"\")","v":""},"",{"$f":"IF(B2387=\"\",\"\",IF(ISERROR(MATCH($J2387,SorP!$B$1:$B$6230,0)),\"\",INDIRECT(\"'SorP'!$A$\"&MATCH($J2387,SorP!$B$1:$B$6230,0))))","v":""},null,{"$f":"IF(C2387=\"\",NA(),MATCH($B2387&$C2387,'Smelter Look-up'!$J:$J,0))","v":{"$error":"#N/A"}},null,0,null,null,null,""]
[null,{"$f":"IF(LEN(A2388)=0,\"\",INDEX('Smelter Look-up'!$A:$A,MATCH($A2388,'Smelter Look-up'!$E:$E,0)))","v":""},{"$f":"IF(LEN(A2388)=0,\"\",INDEX('Smelter Look-up'!$C:$C,MATCH($A2388,'Smelter Look-up'!$E:$E,0)))","v":""},null,{"$f":"IF(ISERROR($V2388),\"\",OFFSET('Smelter Look-up'!$D$4,$V2388-4,0)&\"\")","v":""},{"$f":"IF(ISERROR($V2388),\"\",OFFSET('Smelter Look-up'!$E$4,$V2388-4,0))","v":""},{"$f":"IF(C2388=$X$4,\"Enter smelter details\", IF(ISERROR($V2388),\"\",OFFSET('Smelter Look-up'!$F$4,$V2388-4,0)))","v":""},{"$f":"IF(ISERROR($V2388),\"\",OFFSET('Smelter Look-up'!$G$4,$V2388-4,0))","v":""},{"$f":"IF(ISERROR($V2388),\"\",OFFSET('Smelter Look-up'!$H$4,$V2388-4,0))","v":""},{"$f":"IF(ISERROR($V2388),\"\",OFFSET('Smelter Look-up'!$I$4,$V2388-4,0))","v":""},{"$nulls":7},{"$f":"IF(ISERROR($V2388),\"\",OFFSET('Smelter Look-up'!$C$4,$V2388-4,0)&\"\")","v":""},"",{"$f":"IF(B2388=\"\",\"\",IF(ISERROR(MATCH($J2388,SorP!$B$1:$B$6230,0)),\"\",INDIRECT(\"'SorP'!$A$\"&MATCH($J2388,SorP!$B$1:$B$6230,0))))","v":""},null,{"$f":"IF(C2388=\"\",NA(),MATCH($B2388&$C2388,'Smelter Look-up'!$J:$J,0))","v":{"$error":"#N/A"}},null,0,null,null,null,""]
[null,{"$f":"IF(LEN(A2389)=0,\"\",INDEX('Smelter Look-up'!$A:$A,MATCH($A2389,'Smelter Look-up'!$E:$E,0)))","v":""},{"$f":"IF(LEN(A2389)=0,\"\",INDEX('Smelter Look-up'!$C:$C,MATCH($A2389,'Smelter Look-up'!$E:$E,0)))","v":""},null,{"$f":"IF(ISERROR($V2389),\"\",OFFSET('Smelter Look-up'!$D$4,$V2389-4,0)&\"\")","v":""},{"$f":"IF(ISERROR($V2389),\"\",OFFSET('Smelter Look-up'!$E$4,$V2389-4,0))","v":""},{"$f":"IF(C2389=$X$4,\"Enter smelter details\", IF(ISERROR($V2389),\"\",OFFSET('Smelter Look-up'!$F$4,$V2389-4,0)))","v":""},{"$f":"IF(ISERROR($V2389),\"\",OFFSET('Smelter Look-up'!$G$4,$V2389-4,0))","v":""},{"$f":"IF(ISERROR($V2389),\"\",OFFSET('Smelter Look-up'!$H$4,$V2389-4,0))","v":""},{"$f":"IF(ISERROR($V2389),\"\",OFFSET('Smelter Look-up'!$I$4,$V2389-4,0))","v":""},{"$nulls":7},{"$f":"IF(ISERROR($V2389),\"\",OFFSET('Smelter Look-up'!$C$4,$V2389-4,0)&\"\")","v":""},"",{"$f":"IF(B2389=\"\",\"\",IF(ISERROR(MATCH($J2389,SorP!$B$1:$B$6230,0)),\"\",INDIRECT(\"'SorP'!$A$\"&MATCH($J2389,SorP!$B$1:$B$6230,0))))","v":""},null,{"$f":"IF(C2389=\"\",NA(),MATCH($B2389&$C2389,'Smelter Look-up'!$J:$J,0))","v":{"$error":"#N/A"}},null,0,null,null,null,""]
[null,{"$f":"IF(LEN(A2390)=0,\"\",INDEX('Smelter Look-up'!$A:$A,MATCH($A2390,'Smelter Look-up'!$E:$E,0)))","v":""},{"$f":"IF(LEN(A2390)=0,\"\",INDEX('Smelter Look-up'!$C:$C,MATCH($A2390,'Smelter Look-up'!$E:$E,0)))","v":""},null,{"$f":"IF(ISERROR($V2390),\"\",OFFSET('Smelter Look-up'!$D$4,$V2390-4,0)&\"\")","v":""},{"$f":"IF(ISERROR($V2390),\"\",OFFSET('Smelter Look-up'!$E$4,$V2390-4,0))","v":""},{"$f":"IF(C2390=$X$4,\"Enter smelter details\", IF(ISERROR($V2390),\"\",OFFSET('Smelter Look-up'!$F$4,$V2390-4,0)))","v":""},{"$f":"IF(ISERROR($V2390),\"\",OFFSET('Smelter Look-up'!$G$4,$V2390-4,0))","v":""},{"$f":"IF(ISERROR($V2390),\"\",OFFSET('Smelter Look-up'!$H$4,$V2390-4,0))","v":""},{"$f":"IF(ISERROR($V2390),\"\",OFFSET('Smelter Look-up'!$I$4,$V2390-4,0))","v":""},{"$nulls":7},{"$f":"IF(ISERROR($V2390),\"\",OFFSET('Smelter Look-up'!$C$4,$V2390-4,0)&\"\")","v":""},"",{"$f":"IF(B2390=\"\",\"\",IF(ISERROR(MATCH($J2390,SorP!$B$1:$B$6230,0)),\"\",INDIRECT(\"'SorP'!$A$\"&MATCH($J2390,SorP!$B$1:$B$6230,0))))","v":""},null,{"$f":"IF(C2390=\"\",NA(),MATCH($B2390&$C2390,'Smelter Look-up'!$J:$J,0))","v":{"$error":"#N/A"}},null,0,null,null,null,""]
[null,{"$f":"IF(LEN(A2391)=0,\"\",INDEX('Smelter Look-up'!$A:$A,MATCH($A2391,'Smelter Look-up'!$E:$E,0)))","v":""},{"$f":"IF(LEN(A2391)=0,\"\",INDEX('Smelter Look-up'!$C:$C,MATCH($A2391,'Smelter Look-up'!$E:$E,0)))","v":""},null,{"$f":"IF(ISERROR($V2391),\"\",OFFSET('Smelter Look-up'!$D$4,$V2391-4,0)&\"\")","v":""},{"$f":"IF(ISERROR($V2391),\"\",OFFSET('Smelter Look-up'!$E$4,$V2391-4,0))","v":""},{"$f":"IF(C2391=$X$4,\"Enter smelter details\", IF(ISERROR($V2391),\"\",OFFSET('Smelter Look-up'!$F$4,$V2391-4,0)))","v":""},{"$f":"IF(ISERROR($V2391),\"\",OFFSET('Smelter Look-up'!$G$4,$V2391-4,0))","v":""},{"$f":"IF(ISERROR($V2391),\"\",OFFSET('Smelter Look-up'!$H$4,$V2391-4,0))","v":""},{"$f":"IF(ISERROR($V2391),\"\",OFFSET('Smelter Look-up'!$I$4,$V2391-4,0))","v":""},{"$nulls":7},{"$f":"IF(ISERROR($V2391),\"\",OFFSET('Smelter Look-up'!$C$4,$V2391-4,0)&\"\")","v":""},"",{"$f":"IF(B2391=\"\",\"\",IF(ISERROR(MATCH($J2391,SorP!$B$1:$B$6230,0)),\"\",INDIRECT(\"'SorP'!$A$\"&MATCH($J2391,SorP!$B$1:$B$6230,0))))","v":""},null,{"$f":"IF(C2391=\"\",NA(),MATCH($B2391&$C2391,'Smelter Look-up'!$J:$J,0))","v":{"$error":"#N/A"}},null,0,null,null,null,""]
[null,{"$f":"IF(LEN(A2392)=0,\"\",INDEX('Smelter Look-up'!$A:$A,MATCH($A2392,'Smelter Look-up'!$E:$E,0)))","v":""},{"$f":"IF(LEN(A2392)=0,\"\",INDEX('Smelter Look-up'!$C:$C,MATCH($A2392,'Smelter Look-up'!$E:$E,0)))","v":""},null,{"$f":"IF(ISERROR($V2392),\"\",OFFSET('Smelter Look-up'!$D$4,$V2392-4,0)&\"\")","v":""},{"$f":"IF(ISERROR($V2392),\"\",OFFSET('Smelter Look-up'!$E$4,$V2392-4,0))","v":""},{"$f":"IF(C2392=$X$4,\"Enter smelter details\", IF(ISERROR($V2392),\"\",OFFSET('Smelter Look-up'!$F$4,$V2392-4,0)))","v":""},{"$f":"IF(ISERROR($V2392),\"\",OFFSET('Smelter Look-up'!$G$4,$V2392-4,0))","v":""},{"$f":"IF(ISERROR($V2392),\"\",OFFSET('Smelter Look-up'!$H$4,$V2392-4,0))","v":""},{"$f":"IF(ISERROR($V2392),\"\",OFFSET('Smelter Look-up'!$I$4,$V2392-4,0))","v":""},{"$nulls":7},{"$f":"IF(ISERROR($V2392),\"\",OFFSET('Smelter Look-up'!$C$4,$V2392-4,0)&\"\")","v":""},"",{"$f":"IF(B2392=\"\",\"\",IF(ISERROR(MATCH($J2392,SorP!$B$1:$B$6230,0)),\"\",INDIRECT(\"'SorP'!$A$\"&MATCH($J2392,SorP!$B$1:$B$6230,0))))","v":""},null,{"$f":"IF(C2392=\"\",NA(),MATCH($B2392&$C2392,'Smelter Look-up'!$J:$J,0))","v":{"$error":"#N/A"}},null,0,null,null,null,""]
[null,{"$f":"IF(LEN(A2393)=0,\"\",INDEX('Smelter Look-up'!$A:$A,MATCH($A2393,'Smelter Look-up'!$E:$E,0)))","v":""},{"$f":"IF(LEN(A2393)=0,\"\",INDEX('Smelter Look-up'!$C:$C,MATCH($A2393,'Smelter Look-up'!$E:$E,0)))","v":""},null,{"$f":"IF(ISERROR($V2393),\"\",OFFSET('Smelter Look-up'!$D$4,$V2393-4,0)&\"\")","v":""},{"$f":"IF(ISERROR($V2393),\"\",OFFSET('Smelter Look-up'!$E$4,$V2393-4,0))","v":""},{"$f":"IF(C2393=$X$4,\"Enter smelter details\", IF(ISERROR($V2393),\"\",OFFSET('Smelter Look-up'!$F$4,$V2393-4,0)))","v":""},{"$f":"IF(ISERROR($V2393),\"\",OFFSET('Smelter Look-up'!$G$4,$V2393-4,0))","v":""},{"$f":"IF(ISERROR($V2393),\"\",OFFSET('Smelter Look-up'!$H$4,$V2393-4,0))","v":""},{"$f":"IF(ISERROR($V2393),\"\",OFFSET('Smelter Look-up'!$I$4,$V2393-4,0))","v":""},{"$nulls":7},{"$f":"IF(ISERROR($V2393),\"\",OFFSET('Smelter Look-up'!$C$4,$V2393-4,0)&\"\")","v":""},"",{"$f":"IF(B2393=\"\",\"\",IF(ISERROR(MATCH($J2393,SorP!$B$1:$B$6230,0)),\"\",INDIRECT(\"'SorP'!$A$\"&MATCH($J2393,SorP!$B$1:$B$6230,0))))","v":""},null,{"$f":"IF(C2393=\"\",NA(),MATCH($B2393&$C2393,'Smelter Look-up'!$J:$J,0))","v":{"$error":"#N/A"}},null,0,null,null,null,""]
[null,{"$f":"IF(LEN(A2394)=0,\"\",INDEX('Smelter Look-up'!$A:$A,MATCH($A2394,'Smelter Look-up'!$E:$E,0)))","v":""},{"$f":"IF(LEN(A2394)=0,\"\",INDEX('Smelter Look-up'!$C:$C,MATCH($A2394,'Smelter Look-up'!$E:$E,0)))","v":""},null,{"$f":"IF(ISERROR($V2394),\"\",OFFSET('Smelter Look-up'!$D$4,$V2394-4,0)&\"\")","v":""},{"$f":"IF(ISERROR($V2394),\"\",OFFSET('Smelter Look-up'!$E$4,$V2394-4,0))","v":""},{"$f":"IF(C2394=$X$4,\"Enter smelter details\", IF(ISERROR($V2394),\"\",OFFSET('Smelter Look-up'!$F$4,$V2394-4,0)))","v":""},{"$f":"IF(ISERROR($V2394),\"\",OFFSET('Smelter Look-up'!$G$4,$V2394-4,0))","v":""},{"$f":"IF(ISERROR($V2394),\"\",OFFSET('Smelter Look-up'!$H$4,$V2394-4,0))","v":""},{"$f":"IF(ISERROR($V2394),\"\",OFFSET('Smelter Look-up'!$I$4,$V2394-4,0))","v":""},{"$nulls":7},{"$f":"IF(ISERROR($V2394),\"\",OFFSET('Smelter Look-up'!$C$4,$V2394-4,0)&\"\")","v":""},"",{"$f":"IF(B2394=\"\",\"\",IF(ISERROR(MATCH($J2394,SorP!$B$1:$B$6230,0)),\"\",INDIRECT(\"'SorP'!$A$\"&MATCH($J2394,SorP!$B$1:$B$6230,0))))","v":""},null,{"$f":"IF(C2394=\"\",NA(),MATCH($B2394&$C2394,'Smelter Look-up'!$J:$J,0))","v":{"$error":"#N/A"}},null,0,null,null,null,""]
[null,{"$f":"IF(LEN(A2395)=0,\"\",INDEX('Smelter Look-up'!$A:$A,MATCH($A2395,'Smelter Look-up'!$E:$E,0)))","v":""},{"$f":"IF(LEN(A2395)=0,\"\",INDEX('Smelter Look-up'!$C:$C,MATCH($A2395,'Smelter Look-up'!$E:$E,0)))","v":""},null,{"$f":"IF(ISERROR($V2395),\"\",OFFSET('Smelter Look-up'!$D$4,$V2395-4,0)&\"\")","v":""},{"$f":"IF(ISERROR($V2395),\"\",OFFSET('Smelter Look-up'!$E$4,$V2395-4,0))","v":""},{"$f":"IF(C2395=$X$4,\"Enter smelter details\", IF(ISERROR($V2395),\"\",OFFSET('Smelter Look-up'!$F$4,$V2395-4,0)))","v":""},{"$f":"IF(ISERROR($V2395),\"\",OFFSET('Smelter Look-up'!$G$4,$V2395-4,0))","v":""},{"$f":"IF(ISERROR($V2395),\"\",OFFSET('Smelter Look-up'!$H$4,$V2395-4,0))","v":""},{"$f":"IF(ISERROR($V2395),\"\",OFFSET('Smelter Look-up'!$I$4,$V2395-4,0))","v":""},{"$nulls":7},{"$f":"IF(ISERROR($V2395),\"\",OFFSET('Smelter Look-up'!$C$4,$V2395-4,0)&\"\")","v":""},"",{"$f":"IF(B2395=\"\",\"\",IF(ISERROR(MATCH($J2395,SorP!$B$1:$B$6230,0)),\"\",INDIRECT(\"'SorP'!$A$\"&MATCH($J2395,SorP!$B$1:$B$6230,0))))","v":""},null,{"$f":"IF(C2395=\"\",NA(),MATCH($B2395&$C2395,'Smelter Look-up'!$J:$J,0))","v":{"$error":"#N/A"}},null,0,null,null,null,""]
[null,{"$f":"IF(LEN(A2396)=0,\"\",INDEX('Smelter Look-up'!$A:$A,MATCH($A2396,'Smelter Look-up'!$E:$E,0)))","v":""},{"$f":"IF(LEN(A2396)=0,\"\",INDEX('Smelter Look-up'!$C:$C,MATCH($A2396,'Smelter Look-up'!$E:$E,0)))","v":""},null,{"$f":"IF(ISERROR($V2396),\"\",OFFSET('Smelter Look-up'!$D$4,$V2396-4,0)&\"\")","v":""},{"$f":"IF(ISERROR($V2396),\"\",OFFSET('Smelter Look-up'!$E$4,$V2396-4,0))","v":""},{"$f":"IF(C2396=$X$4,\"Enter smelter details\", IF(ISERROR($V2396),\"\",OFFSET('Smelter Look-up'!$F$4,$V2396-4,0)))","v":""},{"$f":"IF(ISERROR($V2396),\"\",OFFSET('Smelter Look-up'!$G$4,$V2396-4,0))","v":""},{"$f":"IF(ISERROR($V2396),\"\",OFFSET('Smelter Look-up'!$H$4,$V2396-4,0))","v":""},{"$f":"IF(ISERROR($V2396),\"\",OFFSET('Smelter Look-up'!$I$4,$V2396-4,0))","v":""},{"$nulls":7},{"$f":"IF(ISERROR($V2396),\"\",OFFSET('Smelter Look-up'!$C$4,$V2396-4,0)&\"\")","v":""},"",{"$f":"IF(B2396=\"\",\"\",IF(ISERROR(MATCH($J2396,SorP!$B$1:$B$6230,0)),\"\",INDIRECT(\"'SorP'!$A$\"&MATCH($J2396,SorP!$B$1:$B$6230,0))))","v":""},null,{"$f":"IF(C2396=\"\",NA(),MATCH($B2396&$C2396,'Smelter Look-up'!$J:$J,0))","v":{"$error":"#N/A"}},null,0,null,null,null,""]
[null,{"$f":"IF(LEN(A2397)=0,\"\",INDEX('Smelter Look-up'!$A:$A,MATCH($A2397,'Smelter Look-up'!$E:$E,0)))","v":""},{"$f":"IF(LEN(A2397)=0,\"\",INDEX('Smelter Look-up'!$C:$C,MATCH($A2397,'Smelter Look-up'!$E:$E,0)))","v":""},null,{"$f":"IF(ISERROR($V2397),\"\",OFFSET('Smelter Look-up'!$D$4,$V2397-4,0)&\"\")","v":""},{"$f":"IF(ISERROR($V2397),\"\",OFFSET('Smelter Look-up'!$E$4,$V2397-4,0))","v":""},{"$f":"IF(C2397=$X$4,\"Enter smelter details\", IF(ISERROR($V2397),\"\",OFFSET('Smelter Look-up'!$F$4,$V2397-4,0)))","v":""},{"$f":"IF(ISERROR($V2397),\"\",OFFSET('Smelter Look-up'!$G$4,$V2397-4,0))","v":""},{"$f":"IF(ISERROR($V2397),\"\",OFFSET('Smelter Look-up'!$H$4,$V2397-4,0))","v":""},{"$f":"IF(ISERROR($V2397),\"\",OFFSET('Smelter Look-up'!$I$4,$V2397-4,0))","v":""},{"$nulls":7},{"$f":"IF(ISERROR($V2397),\"\",OFFSET('Smelter Look-up'!$C$4,$V2397-4,0)&\"\")","v":""},"",{"$f":"IF(B2397=\"\",\"\",IF(ISERROR(MATCH($J2397,SorP!$B$1:$B$6230,0)),\"\",INDIRECT(\"'SorP'!$A$\"&MATCH($J2397,SorP!$B$1:$B$6230,0))))","v":""},null,{"$f":"IF(C2397=\"\",NA(),MATCH($B2397&$C2397,'Smelter Look-up'!$J:$J,0))","v":{"$error":"#N/A"}},null,0,null,null,null,""]
[null,{"$f":"IF(LEN(A2398)=0,\"\",INDEX('Smelter Look-up'!$A:$A,MATCH($A2398,'Smelter Look-up'!$E:$E,0)))","v":""},{"$f":"IF(LEN(A2398)=0,\"\",INDEX('Smelter Look-up'!$C:$C,MATCH($A2398,'Smelter Look-up'!$E:$E,0)))","v":""},null,{"$f":"IF(ISERROR($V2398),\"\",OFFSET('Smelter Look-up'!$D$4,$V2398-4,0)&\"\")","v":""},{"$f":"IF(ISERROR($V2398),\"\",OFFSET('Smelter Look-up'!$E$4,$V2398-4,0))","v":""},{"$f":"IF(C2398=$X$4,\"Enter smelter details\", IF(ISERROR($V2398),\"\",OFFSET('Smelter Look-up'!$F$4,$V2398-4,0)))","v":""},{"$f":"IF(ISERROR($V2398),\"\",OFFSET('Smelter Look-up'!$G$4,$V2398-4,0))","v":""},{"$f":"IF(ISERROR($V2398),\"\",OFFSET('Smelter Look-up'!$H$4,$V2398-4,0))","v":""},{"$f":"IF(ISERROR($V2398),\"\",OFFSET('Smelter Look-up'!$I$4,$V2398-4,0))","v":""},{"$nulls":7},{"$f":"IF(ISERROR($V2398),\"\",OFFSET('Smelter Look-up'!$C$4,$V2398-4,0)&\"\")","v":""},"",{"$f":"IF(B2398=\"\",\"\",IF(ISERROR(MATCH($J2398,SorP!$B$1:$B$6230,0)),\"\",INDIRECT(\"'SorP'!$A$\"&MATCH($J2398,SorP!$B$1:$B$6230,0))))","v":""},null,{"$f":"IF(C2398=\"\",NA(),MATCH($B2398&$C2398,'Smelter Look-up'!$J:$J,0))","v":{"$error":"#N/A"}},null,0,null,null,null,""]
[null,{"$f":"IF(LEN(A2399)=0,\"\",INDEX('Smelter Look-up'!$A:$A,MATCH($A2399,'Smelter Look-up'!$E:$E,0)))","v":""},{"$f":"IF(LEN(A2399)=0,\"\",INDEX('Smelter Look-up'!$C:$C,MATCH($A2399,'Smelter Look-up'!$E:$E,0)))","v":""},null,{"$f":"IF(ISERROR($V2399),\"\",OFFSET('Smelter Look-up'!$D$4,$V2399-4,0)&\"\")","v":""},{"$f":"IF(ISERROR($V2399),\"\",OFFSET('Smelter Look-up'!$E$4,$V2399-4,0))","v":""},{"$f":"IF(C2399=$X$4,\"Enter smelter details\", IF(ISERROR($V2399),\"\",OFFSET('Smelter Look-up'!$F$4,$V2399-4,0)))","v":""},{"$f":"IF(ISERROR($V2399),\"\",OFFSET('Smelter Look-up'!$G$4,$V2399-4,0))","v":""},{"$f":"IF(ISERROR($V2399),\"\",OFFSET('Smelter Look-up'!$H$4,$V2399-4,0))","v":""},{"$f":"IF(ISERROR($V2399),\"\",OFFSET('Smelter Look-up'!$I$4,$V2399-4,0))","v":""},{"$nulls":7},{"$f":"IF(ISERROR($V2399),\"\",OFFSET('Smelter Look-up'!$C$4,$V2399-4,0)&\"\")","v":""},"",{"$f":"IF(B2399=\"\",\"\",IF(ISERROR(MATCH($J2399,SorP!$B$1:$B$6230,0)),\"\",INDIRECT(\"'SorP'!$A$\"&MATCH($J2399,SorP!$B$1:$B$6230,0))))","v":""},null,{"$f":"IF(C2399=\"\",NA(),MATCH($B2399&$C2399,'Smelter Look-up'!$J:$J,0))","v":{"$error":"#N/A"}},null,0,null,null,null,""]
[null,{"$f":"IF(LEN(A2400)=0,\"\",INDEX('Smelter Look-up'!$A:$A,MATCH($A2400,'Smelter Look-up'!$E:$E,0)))","v":""},{"$f":"IF(LEN(A2400)=0,\"\",INDEX('Smelter Look-up'!$C:$C,MATCH($A2400,'Smelter Look-up'!$E:$E,0)))","v":""},null,{"$f":"IF(ISERROR($V2400),\"\",OFFSET('Smelter Look-up'!$D$4,$V2400-4,0)&\"\")","v":""},{"$f":"IF(ISERROR($V2400),\"\",OFFSET('Smelter Look-up'!$E$4,$V2400-4,0))","v":""},{"$f":"IF(C2400=$X$4,\"Enter smelter details\", IF(ISERROR($V2400),\"\",OFFSET('Smelter Look-up'!$F$4,$V2400-4,0)))","v":""},{"$f":"IF(ISERROR($V2400),\"\",OFFSET('Smelter Look-up'!$G$4,$V2400-4,0))","v":""},{"$f":"IF(ISERROR($V2400),\"\",OFFSET('Smelter Look-up'!$H$4,$V2400-4,0))","v":""},{"$f":"IF(ISERROR($V2400),\"\",OFFSET('Smelter Look-up'!$I$4,$V2400-4,0))","v":""},{"$nulls":7},{"$f":"IF(ISERROR($V2400),\"\",OFFSET('Smelter Look-up'!$C$4,$V2400-4,0)&\"\")","v":""},"",{"$f":"IF(B2400=\"\",\"\",IF(ISERROR(MATCH($J2400,SorP!$B$1:$B$6230,0)),\"\",INDIRECT(\"'SorP'!$A$\"&MATCH($J2400,SorP!$B$1:$B$6230,0))))","v":""},null,{"$f":"IF(C2400=\"\",NA(),MATCH($B2400&$C2400,'Smelter Look-up'!$J:$J,0))","v":{"$error":"#N/A"}},null,0,null,null,null,""]
[null,{"$f":"IF(LEN(A2401)=0,\"\",INDEX('Smelter Look-up'!$A:$A,MATCH($A2401,'Smelter Look-up'!$E:$E,0)))","v":""},{"$f":"IF(LEN(A2401)=0,\"\",INDEX('Smelter Look-up'!$C:$C,MATCH($A2401,'Smelter Look-up'!$E:$E,0)))","v":""},null,{"$f":"IF(ISERROR($V2401),\"\",OFFSET('Smelter Look-up'!$D$4,$V2401-4,0)&\"\")","v":""},{"$f":"IF(ISERROR($V2401),\"\",OFFSET('Smelter Look-up'!$E$4,$V2401-4,0))","v":""},{"$f":"IF(C2401=$X$4,\"Enter smelter details\", IF(ISERROR($V2401),\"\",OFFSET('Smelter Look-up'!$F$4,$V2401-4,0)))","v":""},{"$f":"IF(ISERROR($V2401),\"\",OFFSET('Smelter Look-up'!$G$4,$V2401-4,0))","v":""},{"$f":"IF(ISERROR($V2401),\"\",OFFSET('Smelter Look-up'!$H$4,$V2401-4,0))","v":""},{"$f":"IF(ISERROR($V2401),\"\",OFFSET('Smelter Look-up'!$I$4,$V2401-4,0))","v":""},{"$nulls":7},{"$f":"IF(ISERROR($V2401),\"\",OFFSET('Smelter Look-up'!$C$4,$V2401-4,0)&\"\")","v":""},"",{"$f":"IF(B2401=\"\",\"\",IF(ISERROR(MATCH($J2401,SorP!$B$1:$B$6230,0)),\"\",INDIRECT(\"'SorP'!$A$\"&MATCH($J2401,SorP!$B$1:$B$6230,0))))","v":""},null,{"$f":"IF(C2401=\"\",NA(),MATCH($B2401&$C2401,'Smelter Look-up'!$J:$J,0))","v":{"$error":"#N/A"}},null,0,null,null,null,""]
[null,{"$f":"IF(LEN(A2402)=0,\"\",INDEX('Smelter Look-up'!$A:$A,MATCH($A2402,'Smelter Look-up'!$E:$E,0)))","v":""},{"$f":"IF(LEN(A2402)=0,\"\",INDEX('Smelter Look-up'!$C:$C,MATCH($A2402,'Smelter Look-up'!$E:$E,0)))","v":""},null,{"$f":"IF(ISERROR($V2402),\"\",OFFSET('Smelter Look-up'!$D$4,$V2402-4,0)&\"\")","v":""},{"$f":"IF(ISERROR($V2402),\"\",OFFSET('Smelter Look-up'!$E$4,$V2402-4,0))","v":""},{"$f":"IF(C2402=$X$4,\"Enter smelter details\", IF(ISERROR($V2402),\"\",OFFSET('Smelter Look-up'!$F$4,$V2402-4,0)))","v":""},{"$f":"IF(ISERROR($V2402),\"\",OFFSET('Smelter Look-up'!$G$4,$V2402-4,0))","v":""},{"$f":"IF(ISERROR($V2402),\"\",OFFSET('Smelter Look-up'!$H$4,$V2402-4,0))","v":""},{"$f":"IF(ISERROR($V2402),\"\",OFFSET('Smelter Look-up'!$I$4,$V2402-4,0))","v":""},{"$nulls":7},{"$f":"IF(ISERROR($V2402),\"\",OFFSET('Smelter Look-up'!$C$4,$V2402-4,0)&\"\")","v":""},"",{"$f":"IF(B2402=\"\",\"\",IF(ISERROR(MATCH($J2402,SorP!$B$1:$B$6230,0)),\"\",INDIRECT(\"'SorP'!$A$\"&MATCH($J2402,SorP!$B$1:$B$6230,0))))","v":""},null,{"$f":"IF(C2402=\"\",NA(),MATCH($B2402&$C2402,'Smelter Look-up'!$J:$J,0))","v":{"$error":"#N/A"}},null,0,null,null,null,""]
[null,{"$f":"IF(LEN(A2403)=0,\"\",INDEX('Smelter Look-up'!$A:$A,MATCH($A2403,'Smelter Look-up'!$E:$E,0)))","v":""},{"$f":"IF(LEN(A2403)=0,\"\",INDEX('Smelter Look-up'!$C:$C,MATCH($A2403,'Smelter Look-up'!$E:$E,0)))","v":""},null,{"$f":"IF(ISERROR($V2403),\"\",OFFSET('Smelter Look-up'!$D$4,$V2403-4,0)&\"\")","v":""},{"$f":"IF(ISERROR($V2403),\"\",OFFSET('Smelter Look-up'!$E$4,$V2403-4,0))","v":""},{"$f":"IF(C2403=$X$4,\"Enter smelter details\", IF(ISERROR($V2403),\"\",OFFSET('Smelter Look-up'!$F$4,$V2403-4,0)))","v":""},{"$f":"IF(ISERROR($V2403),\"\",OFFSET('Smelter Look-up'!$G$4,$V2403-4,0))","v":""},{"$f":"IF(ISERROR($V2403),\"\",OFFSET('Smelter Look-up'!$H$4,$V2403-4,0))","v":""},{"$f":"IF(ISERROR($V2403),\"\",OFFSET('Smelter Look-up'!$I$4,$V2403-4,0))","v":""},{"$nulls":7},{"$f":"IF(ISERROR($V2403),\"\",OFFSET('Smelter Look-up'!$C$4,$V2403-4,0)&\"\")","v":""},"",{"$f":"IF(B2403=\"\",\"\",IF(ISERROR(MATCH($J2403,SorP!$B$1:$B$6230,0)),\"\",INDIRECT(\"'SorP'!$A$\"&MATCH($J2403,SorP!$B$1:$B$6230,0))))","v":""},null,{"$f":"IF(C2403=\"\",NA(),MATCH($B2403&$C2403,'Smelter Look-up'!$J:$J,0))","v":{"$error":"#N/A"}},null,0,null,null,null,""]
[null,{"$f":"IF(LEN(A2404)=0,\"\",INDEX('Smelter Look-up'!$A:$A,MATCH($A2404,'Smelter Look-up'!$E:$E,0)))","v":""},{"$f":"IF(LEN(A2404)=0,\"\",INDEX('Smelter Look-up'!$C:$C,MATCH($A2404,'Smelter Look-up'!$E:$E,0)))","v":""},null,{"$f":"IF(ISERROR($V2404),\"\",OFFSET('Smelter Look-up'!$D$4,$V2404-4,0)&\"\")","v":""},{"$f":"IF(ISERROR($V2404),\"\",OFFSET('Smelter Look-up'!$E$4,$V2404-4,0))","v":""},{"$f":"IF(C2404=$X$4,\"Enter smelter details\", IF(ISERROR($V2404),\"\",OFFSET('Smelter Look-up'!$F$4,$V2404-4,0)))","v":""},{"$f":"IF(ISERROR($V2404),\"\",OFFSET('Smelter Look-up'!$G$4,$V2404-4,0))","v":""},{"$f":"IF(ISERROR($V2404),\"\",OFFSET('Smelter Look-up'!$H$4,$V2404-4,0))","v":""},{"$f":"IF(ISERROR($V2404),\"\",OFFSET('Smelter Look-up'!$I$4,$V2404-4,0))","v":""},{"$nulls":7},{"$f":"IF(ISERROR($V2404),\"\",OFFSET('Smelter Look-up'!$C$4,$V2404-4,0)&\"\")","v":""},"",{"$f":"IF(B2404=\"\",\"\",IF(ISERROR(MATCH($J2404,SorP!$B$1:$B$6230,0)),\"\",INDIRECT(\"'SorP'!$A$\"&MATCH($J2404,SorP!$B$1:$B$6230,0))))","v":""},null,{"$f":"IF(C2404=\"\",NA(),MATCH($B2404&$C2404,'Smelter Look-up'!$J:$J,0))","v":{"$error":"#N/A"}},null,0,null,null,null,""]
[null,{"$f":"IF(LEN(A2405)=0,\"\",INDEX('Smelter Look-up'!$A:$A,MATCH($A2405,'Smelter Look-up'!$E:$E,0)))","v":""},{"$f":"IF(LEN(A2405)=0,\"\",INDEX('Smelter Look-up'!$C:$C,MATCH($A2405,'Smelter Look-up'!$E:$E,0)))","v":""},null,{"$f":"IF(ISERROR($V2405),\"\",OFFSET('Smelter Look-up'!$D$4,$V2405-4,0)&\"\")","v":""},{"$f":"IF(ISERROR($V2405),\"\",OFFSET('Smelter Look-up'!$E$4,$V2405-4,0))","v":""},{"$f":"IF(C2405=$X$4,\"Enter smelter details\", IF(ISERROR($V2405),\"\",OFFSET('Smelter Look-up'!$F$4,$V2405-4,0)))","v":""},{"$f":"IF(ISERROR($V2405),\"\",OFFSET('Smelter Look-up'!$G$4,$V2405-4,0))","v":""},{"$f":"IF(ISERROR($V2405),\"\",OFFSET('Smelter Look-up'!$H$4,$V2405-4,0))","v":""},{"$f":"IF(ISERROR($V2405),\"\",OFFSET('Smelter Look-up'!$I$4,$V2405-4,0))","v":""},{"$nulls":7},{"$f":"IF(ISERROR($V2405),\"\",OFFSET('Smelter Look-up'!$C$4,$V2405-4,0)&\"\")","v":""},"",{"$f":"IF(B2405=\"\",\"\",IF(ISERROR(MATCH($J2405,SorP!$B$1:$B$6230,0)),\"\",INDIRECT(\"'SorP'!$A$\"&MATCH($J2405,SorP!$B$1:$B$6230,0))))","v":""},null,{"$f":"IF(C2405=\"\",NA(),MATCH($B2405&$C2405,'Smelter Look-up'!$J:$J,0))","v":{"$error":"#N/A"}},null,0,null,null,null,""]
[null,{"$f":"IF(LEN(A2406)=0,\"\",INDEX('Smelter Look-up'!$A:$A,MATCH($A2406,'Smelter Look-up'!$E:$E,0)))","v":""},{"$f":"IF(LEN(A2406)=0,\"\",INDEX('Smelter Look-up'!$C:$C,MATCH($A2406,'Smelter Look-up'!$E:$E,0)))","v":""},null,{"$f":"IF(ISERROR($V2406),\"\",OFFSET('Smelter Look-up'!$D$4,$V2406-4,0)&\"\")","v":""},{"$f":"IF(ISERROR($V2406),\"\",OFFSET('Smelter Look-up'!$E$4,$V2406-4,0))","v":""},{"$f":"IF(C2406=$X$4,\"Enter smelter details\", IF(ISERROR($V2406),\"\",OFFSET('Smelter Look-up'!$F$4,$V2406-4,0)))","v":""},{"$f":"IF(ISERROR($V2406),\"\",OFFSET('Smelter Look-up'!$G$4,$V2406-4,0))","v":""},{"$f":"IF(ISERROR($V2406),\"\",OFFSET('Smelter Look-up'!$H$4,$V2406-4,0))","v":""},{"$f":"IF(ISERROR($V2406),\"\",OFFSET('Smelter Look-up'!$I$4,$V2406-4,0))","v":""},{"$nulls":7},{"$f":"IF(ISERROR($V2406),\"\",OFFSET('Smelter Look-up'!$C$4,$V2406-4,0)&\"\")","v":""},"",{"$f":"IF(B2406=\"\",\"\",IF(ISERROR(MATCH($J2406,SorP!$B$1:$B$6230,0)),\"\",INDIRECT(\"'SorP'!$A$\"&MATCH($J2406,SorP!$B$1:$B$6230,0))))","v":""},null,{"$f":"IF(C2406=\"\",NA(),MATCH($B2406&$C2406,'Smelter Look-up'!$J:$J,0))","v":{"$error":"#N/A"}},null,0,null,null,null,""]
[null,{"$f":"IF(LEN(A2407)=0,\"\",INDEX('Smelter Look-up'!$A:$A,MATCH($A2407,'Smelter Look-up'!$E:$E,0)))","v":""},{"$f":"IF(LEN(A2407)=0,\"\",INDEX('Smelter Look-up'!$C:$C,MATCH($A2407,'Smelter Look-up'!$E:$E,0)))","v":""},null,{"$f":"IF(ISERROR($V2407),\"\",OFFSET('Smelter Look-up'!$D$4,$V2407-4,0)&\"\")","v":""},{"$f":"IF(ISERROR($V2407),\"\",OFFSET('Smelter Look-up'!$E$4,$V2407-4,0))","v":""},{"$f":"IF(C2407=$X$4,\"Enter smelter details\", IF(ISERROR($V2407),\"\",OFFSET('Smelter Look-up'!$F$4,$V2407-4,0)))","v":""},{"$f":"IF(ISERROR($V2407),\"\",OFFSET('Smelter Look-up'!$G$4,$V2407-4,0))","v":""},{"$f":"IF(ISERROR($V2407),\"\",OFFSET('Smelter Look-up'!$H$4,$V2407-4,0))","v":""},{"$f":"IF(ISERROR($V2407),\"\",OFFSET('Smelter Look-up'!$I$4,$V2407-4,0))","v":""},{"$nulls":7},{"$f":"IF(ISERROR($V2407),\"\",OFFSET('Smelter Look-up'!$C$4,$V2407-4,0)&\"\")","v":""},"",{"$f":"IF(B2407=\"\",\"\",IF(ISERROR(MATCH($J2407,SorP!$B$1:$B$6230,0)),\"\",INDIRECT(\"'SorP'!$A$\"&MATCH($J2407,SorP!$B$1:$B$6230,0))))","v":""},null,{"$f":"IF(C2407=\"\",NA(),MATCH($B2407&$C2407,'Smelter Look-up'!$J:$J,0))","v":{"$error":"#N/A"}},null,0,null,null,null,""]
[null,{"$f":"IF(LEN(A2408)=0,\"\",INDEX('Smelter Look-up'!$A:$A,MATCH($A2408,'Smelter Look-up'!$E:$E,0)))","v":""},{"$f":"IF(LEN(A2408)=0,\"\",INDEX('Smelter Look-up'!$C:$C,MATCH($A2408,'Smelter Look-up'!$E:$E,0)))","v":""},null,{"$f":"IF(ISERROR($V2408),\"\",OFFSET('Smelter Look-up'!$D$4,$V2408-4,0)&\"\")","v":""},{"$f":"IF(ISERROR($V2408),\"\",OFFSET('Smelter Look-up'!$E$4,$V2408-4,0))","v":""},{"$f":"IF(C2408=$X$4,\"Enter smelter details\", IF(ISERROR($V2408),\"\",OFFSET('Smelter Look-up'!$F$4,$V2408-4,0)))","v":""},{"$f":"IF(ISERROR($V2408),\"\",OFFSET('Smelter Look-up'!$G$4,$V2408-4,0))","v":""},{"$f":"IF(ISERROR($V2408),\"\",OFFSET('Smelter Look-up'!$H$4,$V2408-4,0))","v":""},{"$f":"IF(ISERROR($V2408),\"\",OFFSET('Smelter Look-up'!$I$4,$V2408-4,0))","v":""},{"$nulls":7},{"$f":"IF(ISERROR($V2408),\"\",OFFSET('Smelter Look-up'!$C$4,$V2408-4,0)&\"\")","v":""},"",{"$f":"IF(B2408=\"\",\"\",IF(ISERROR(MATCH($J2408,SorP!$B$1:$B$6230,0)),\"\",INDIRECT(\"'SorP'!$A$\"&MATCH($J2408,SorP!$B$1:$B$6230,0))))","v":""},null,{"$f":"IF(C2408=\"\",NA(),MATCH($B2408&$C2408,'Smelter Look-up'!$J:$J,0))","v":{"$error":"#N/A"}},null,0,null,null,null,""]
[null,{"$f":"IF(LEN(A2409)=0,\"\",INDEX('Smelter Look-up'!$A:$A,MATCH($A2409,'Smelter Look-up'!$E:$E,0)))","v":""},{"$f":"IF(LEN(A2409)=0,\"\",INDEX('Smelter Look-up'!$C:$C,MATCH($A2409,'Smelter Look-up'!$E:$E,0)))","v":""},null,{"$f":"IF(ISERROR($V2409),\"\",OFFSET('Smelter Look-up'!$D$4,$V2409-4,0)&\"\")","v":""},{"$f":"IF(ISERROR($V2409),\"\",OFFSET('Smelter Look-up'!$E$4,$V2409-4,0))","v":""},{"$f":"IF(C2409=$X$4,\"Enter smelter details\", IF(ISERROR($V2409),\"\",OFFSET('Smelter Look-up'!$F$4,$V2409-4,0)))","v":""},{"$f":"IF(ISERROR($V2409),\"\",OFFSET('Smelter Look-up'!$G$4,$V2409-4,0))","v":""},{"$f":"IF(ISERROR($V2409),\"\",OFFSET('Smelter Look-up'!$H$4,$V2409-4,0))","v":""},{"$f":"IF(ISERROR($V2409),\"\",OFFSET('Smelter Look-up'!$I$4,$V2409-4,0))","v":""},{"$nulls":7},{"$f":"IF(ISERROR($V2409),\"\",OFFSET('Smelter Look-up'!$C$4,$V2409-4,0)&\"\")","v":""},"",{"$f":"IF(B2409=\"\",\"\",IF(ISERROR(MATCH($J2409,SorP!$B$1:$B$6230,0)),\"\",INDIRECT(\"'SorP'!$A$\"&MATCH($J2409,SorP!$B$1:$B$6230,0))))","v":""},null,{"$f":"IF(C2409=\"\",NA(),MATCH($B2409&$C2409,'Smelter Look-up'!$J:$J,0))","v":{"$error":"#N/A"}},null,0,null,null,null,""]
[null,{"$f":"IF(LEN(A2410)=0,\"\",INDEX('Smelter Look-up'!$A:$A,MATCH($A2410,'Smelter Look-up'!$E:$E,0)))","v":""},{"$f":"IF(LEN(A2410)=0,\"\",INDEX('Smelter Look-up'!$C:$C,MATCH($A2410,'Smelter Look-up'!$E:$E,0)))","v":""},null,{"$f":"IF(ISERROR($V2410),\"\",OFFSET('Smelter Look-up'!$D$4,$V2410-4,0)&\"\")","v":""},{"$f":"IF(ISERROR($V2410),\"\",OFFSET('Smelter Look-up'!$E$4,$V2410-4,0))","v":""},{"$f":"IF(C2410=$X$4,\"Enter smelter details\", IF(ISERROR($V2410),\"\",OFFSET('Smelter Look-up'!$F$4,$V2410-4,0)))","v":""},{"$f":"IF(ISERROR($V2410),\"\",OFFSET('Smelter Look-up'!$G$4,$V2410-4,0))","v":""},{"$f":"IF(ISERROR($V2410),\"\",OFFSET('Smelter Look-up'!$H$4,$V2410-4,0))","v":""},{"$f":"IF(ISERROR($V2410),\"\",OFFSET('Smelter Look-up'!$I$4,$V2410-4,0))","v":""},{"$nulls":7},{"$f":"IF(ISERROR($V2410),\"\",OFFSET('Smelter Look-up'!$C$4,$V2410-4,0)&\"\")","v":""},"",{"$f":"IF(B2410=\"\",\"\",IF(ISERROR(MATCH($J2410,SorP!$B$1:$B$6230,0)),\"\",INDIRECT(\"'SorP'!$A$\"&MATCH($J2410,SorP!$B$1:$B$6230,0))))","v":""},null,{"$f":"IF(C2410=\"\",NA(),MATCH($B2410&$C2410,'Smelter Look-up'!$J:$J,0))","v":{"$error":"#N/A"}},null,0,null,null,null,""]
[null,{"$f":"IF(LEN(A2411)=0,\"\",INDEX('Smelter Look-up'!$A:$A,MATCH($A2411,'Smelter Look-up'!$E:$E,0)))","v":""},{"$f":"IF(LEN(A2411)=0,\"\",INDEX('Smelter Look-up'!$C:$C,MATCH($A2411,'Smelter Look-up'!$E:$E,0)))","v":""},null,{"$f":"IF(ISERROR($V2411),\"\",OFFSET('Smelter Look-up'!$D$4,$V2411-4,0)&\"\")","v":""},{"$f":"IF(ISERROR($V2411),\"\",OFFSET('Smelter Look-up'!$E$4,$V2411-4,0))","v":""},{"$f":"IF(C2411=$X$4,\"Enter smelter details\", IF(ISERROR($V2411),\"\",OFFSET('Smelter Look-up'!$F$4,$V2411-4,0)))","v":""},{"$f":"IF(ISERROR($V2411),\"\",OFFSET('Smelter Look-up'!$G$4,$V2411-4,0))","v":""},{"$f":"IF(ISERROR($V2411),\"\",OFFSET('Smelter Look-up'!$H$4,$V2411-4,0))","v":""},{"$f":"IF(ISERROR($V2411),\"\",OFFSET('Smelter Look-up'!$I$4,$V2411-4,0))","v":""},{"$nulls":7},{"$f":"IF(ISERROR($V2411),\"\",OFFSET('Smelter Look-up'!$C$4,$V2411-4,0)&\"\")","v":""},"",{"$f":"IF(B2411=\"\",\"\",IF(ISERROR(MATCH($J2411,SorP!$B$1:$B$6230,0)),\"\",INDIRECT(\"'SorP'!$A$\"&MATCH($J2411,SorP!$B$1:$B$6230,0))))","v":""},null,{"$f":"IF(C2411=\"\",NA(),MATCH($B2411&$C2411,'Smelter Look-up'!$J:$J,0))","v":{"$error":"#N/A"}},null,0,null,null,null,""]
[null,{"$f":"IF(LEN(A2412)=0,\"\",INDEX('Smelter Look-up'!$A:$A,MATCH($A2412,'Smelter Look-up'!$E:$E,0)))","v":""},{"$f":"IF(LEN(A2412)=0,\"\",INDEX('Smelter Look-up'!$C:$C,MATCH($A2412,'Smelter Look-up'!$E:$E,0)))","v":""},null,{"$f":"IF(ISERROR($V2412),\"\",OFFSET('Smelter Look-up'!$D$4,$V2412-4,0)&\"\")","v":""},{"$f":"IF(ISERROR($V2412),\"\",OFFSET('Smelter Look-up'!$E$4,$V2412-4,0))","v":""},{"$f":"IF(C2412=$X$4,\"Enter smelter details\", IF(ISERROR($V2412),\"\",OFFSET('Smelter Look-up'!$F$4,$V2412-4,0)))","v":""},{"$f":"IF(ISERROR($V2412),\"\",OFFSET('Smelter Look-up'!$G$4,$V2412-4,0))","v":""},{"$f":"IF(ISERROR($V2412),\"\",OFFSET('Smelter Look-up'!$H$4,$V2412-4,0))","v":""},{"$f":"IF(ISERROR($V2412),\"\",OFFSET('Smelter Look-up'!$I$4,$V2412-4,0))","v":""},{"$nulls":7},{"$f":"IF(ISERROR($V2412),\"\",OFFSET('Smelter Look-up'!$C$4,$V2412-4,0)&\"\")","v":""},"",{"$f":"IF(B2412=\"\",\"\",IF(ISERROR(MATCH($J2412,SorP!$B$1:$B$6230,0)),\"\",INDIRECT(\"'SorP'!$A$\"&MATCH($J2412,SorP!$B$1:$B$6230,0))))","v":""},null,{"$f":"IF(C2412=\"\",NA(),MATCH($B2412&$C2412,'Smelter Look-up'!$J:$J,0))","v":{"$error":"#N/A"}},null,0,null,null,null,""]
[null,{"$f":"IF(LEN(A2413)=0,\"\",INDEX('Smelter Look-up'!$A:$A,MATCH($A2413,'Smelter Look-up'!$E:$E,0)))","v":""},{"$f":"IF(LEN(A2413)=0,\"\",INDEX('Smelter Look-up'!$C:$C,MATCH($A2413,'Smelter Look-up'!$E:$E,0)))","v":""},null,{"$f":"IF(ISERROR($V2413),\"\",OFFSET('Smelter Look-up'!$D$4,$V2413-4,0)&\"\")","v":""},{"$f":"IF(ISERROR($V2413),\"\",OFFSET('Smelter Look-up'!$E$4,$V2413-4,0))","v":""},{"$f":"IF(C2413=$X$4,\"Enter smelter details\", IF(ISERROR($V2413),\"\",OFFSET('Smelter Look-up'!$F$4,$V2413-4,0)))","v":""},{"$f":"IF(ISERROR($V2413),\"\",OFFSET('Smelter Look-up'!$G$4,$V2413-4,0))","v":""},{"$f":"IF(ISERROR($V2413),\"\",OFFSET('Smelter Look-up'!$H$4,$V2413-4,0))","v":""},{"$f":"IF(ISERROR($V2413),\"\",OFFSET('Smelter Look-up'!$I$4,$V2413-4,0))","v":""},{"$nulls":7},{"$f":"IF(ISERROR($V2413),\"\",OFFSET('Smelter Look-up'!$C$4,$V2413-4,0)&\"\")","v":""},"",{"$f":"IF(B2413=\"\",\"\",IF(ISERROR(MATCH($J2413,SorP!$B$1:$B$6230,0)),\"\",INDIRECT(\"'SorP'!$A$\"&MATCH($J2413,SorP!$B$1:$B$6230,0))))","v":""},null,{"$f":"IF(C2413=\"\",NA(),MATCH($B2413&$C2413,'Smelter Look-up'!$J:$J,0))","v":{"$error":"#N/A"}},null,0,null,null,null,""]
[null,{"$f":"IF(LEN(A2414)=0,\"\",INDEX('Smelter Look-up'!$A:$A,MATCH($A2414,'Smelter Look-up'!$E:$E,0)))","v":""},{"$f":"IF(LEN(A2414)=0,\"\",INDEX('Smelter Look-up'!$C:$C,MATCH($A2414,'Smelter Look-up'!$E:$E,0)))","v":""},null,{"$f":"IF(ISERROR($V2414),\"\",OFFSET('Smelter Look-up'!$D$4,$V2414-4,0)&\"\")","v":""},{"$f":"IF(ISERROR($V2414),\"\",OFFSET('Smelter Look-up'!$E$4,$V2414-4,0))","v":""},{"$f":"IF(C2414=$X$4,\"Enter smelter details\", IF(ISERROR($V2414),\"\",OFFSET('Smelter Look-up'!$F$4,$V2414-4,0)))","v":""},{"$f":"IF(ISERROR($V2414),\"\",OFFSET('Smelter Look-up'!$G$4,$V2414-4,0))","v":""},{"$f":"IF(ISERROR($V2414),\"\",OFFSET('Smelter Look-up'!$H$4,$V2414-4,0))","v":""},{"$f":"IF(ISERROR($V2414),\"\",OFFSET('Smelter Look-up'!$I$4,$V2414-4,0))","v":""},{"$nulls":7},{"$f":"IF(ISERROR($V2414),\"\",OFFSET('Smelter Look-up'!$C$4,$V2414-4,0)&\"\")","v":""},"",{"$f":"IF(B2414=\"\",\"\",IF(ISERROR(MATCH($J2414,SorP!$B$1:$B$6230,0)),\"\",INDIRECT(\"'SorP'!$A$\"&MATCH($J2414,SorP!$B$1:$B$6230,0))))","v":""},null,{"$f":"IF(C2414=\"\",NA(),MATCH($B2414&$C2414,'Smelter Look-up'!$J:$J,0))","v":{"$error":"#N/A"}},null,0,null,null,null,""]
[null,{"$f":"IF(LEN(A2415)=0,\"\",INDEX('Smelter Look-up'!$A:$A,MATCH($A2415,'Smelter Look-up'!$E:$E,0)))","v":""},{"$f":"IF(LEN(A2415)=0,\"\",INDEX('Smelter Look-up'!$C:$C,MATCH($A2415,'Smelter Look-up'!$E:$E,0)))","v":""},null,{"$f":"IF(ISERROR($V2415),\"\",OFFSET('Smelter Look-up'!$D$4,$V2415-4,0)&\"\")","v":""},{"$f":"IF(ISERROR($V2415),\"\",OFFSET('Smelter Look-up'!$E$4,$V2415-4,0))","v":""},{"$f":"IF(C2415=$X$4,\"Enter smelter details\", IF(ISERROR($V2415),\"\",OFFSET('Smelter Look-up'!$F$4,$V2415-4,0)))","v":""},{"$f":"IF(ISERROR($V2415),\"\",OFFSET('Smelter Look-up'!$G$4,$V2415-4,0))","v":""},{"$f":"IF(ISERROR($V2415),\"\",OFFSET('Smelter Look-up'!$H$4,$V2415-4,0))","v":""},{"$f":"IF(ISERROR($V2415),\"\",OFFSET('Smelter Look-up'!$I$4,$V2415-4,0))","v":""},{"$nulls":7},{"$f":"IF(ISERROR($V2415),\"\",OFFSET('Smelter Look-up'!$C$4,$V2415-4,0)&\"\")","v":""},"",{"$f":"IF(B2415=\"\",\"\",IF(ISERROR(MATCH($J2415,SorP!$B$1:$B$6230,0)),\"\",INDIRECT(\"'SorP'!$A$\"&MATCH($J2415,SorP!$B$1:$B$6230,0))))","v":""},null,{"$f":"IF(C2415=\"\",NA(),MATCH($B2415&$C2415,'Smelter Look-up'!$J:$J,0))","v":{"$error":"#N/A"}},null,0,null,null,null,""]
[null,{"$f":"IF(LEN(A2416)=0,\"\",INDEX('Smelter Look-up'!$A:$A,MATCH($A2416,'Smelter Look-up'!$E:$E,0)))","v":""},{"$f":"IF(LEN(A2416)=0,\"\",INDEX('Smelter Look-up'!$C:$C,MATCH($A2416,'Smelter Look-up'!$E:$E,0)))","v":""},null,{"$f":"IF(ISERROR($V2416),\"\",OFFSET('Smelter Look-up'!$D$4,$V2416-4,0)&\"\")","v":""},{"$f":"IF(ISERROR($V2416),\"\",OFFSET('Smelter Look-up'!$E$4,$V2416-4,0))","v":""},{"$f":"IF(C2416=$X$4,\"Enter smelter details\", IF(ISERROR($V2416),\"\",OFFSET('Smelter Look-up'!$F$4,$V2416-4,0)))","v":""},{"$f":"IF(ISERROR($V2416),\"\",OFFSET('Smelter Look-up'!$G$4,$V2416-4,0))","v":""},{"$f":"IF(ISERROR($V2416),\"\",OFFSET('Smelter Look-up'!$H$4,$V2416-4,0))","v":""},{"$f":"IF(ISERROR($V2416),\"\",OFFSET('Smelter Look-up'!$I$4,$V2416-4,0))","v":""},{"$nulls":7},{"$f":"IF(ISERROR($V2416),\"\",OFFSET('Smelter Look-up'!$C$4,$V2416-4,0)&\"\")","v":""},"",{"$f":"IF(B2416=\"\",\"\",IF(ISERROR(MATCH($J2416,SorP!$B$1:$B$6230,0)),\"\",INDIRECT(\"'SorP'!$A$\"&MATCH($J2416,SorP!$B$1:$B$6230,0))))","v":""},null,{"$f":"IF(C2416=\"\",NA(),MATCH($B2416&$C2416,'Smelter Look-up'!$J:$J,0))","v":{"$error":"#N/A"}},null,0,null,null,null,""]
[null,{"$f":"IF(LEN(A2417)=0,\"\",INDEX('Smelter Look-up'!$A:$A,MATCH($A2417,'Smelter Look-up'!$E:$E,0)))","v":""},{"$f":"IF(LEN(A2417)=0,\"\",INDEX('Smelter Look-up'!$C:$C,MATCH($A2417,'Smelter Look-up'!$E:$E,0)))","v":""},null,{"$f":"IF(ISERROR($V2417),\"\",OFFSET('Smelter Look-up'!$D$4,$V2417-4,0)&\"\")","v":""},{"$f":"IF(ISERROR($V2417),\"\",OFFSET('Smelter Look-up'!$E$4,$V2417-4,0))","v":""},{"$f":"IF(C2417=$X$4,\"Enter smelter details\", IF(ISERROR($V2417),\"\",OFFSET('Smelter Look-up'!$F$4,$V2417-4,0)))","v":""},{"$f":"IF(ISERROR($V2417),\"\",OFFSET('Smelter Look-up'!$G$4,$V2417-4,0))","v":""},{"$f":"IF(ISERROR($V2417),\"\",OFFSET('Smelter Look-up'!$H$4,$V2417-4,0))","v":""},{"$f":"IF(ISERROR($V2417),\"\",OFFSET('Smelter Look-up'!$I$4,$V2417-4,0))","v":""},{"$nulls":7},{"$f":"IF(ISERROR($V2417),\"\",OFFSET('Smelter Look-up'!$C$4,$V2417-4,0)&\"\")","v":""},"",{"$f":"IF(B2417=\"\",\"\",IF(ISERROR(MATCH($J2417,SorP!$B$1:$B$6230,0)),\"\",INDIRECT(\"'SorP'!$A$\"&MATCH($J2417,SorP!$B$1:$B$6230,0))))","v":""},null,{"$f":"IF(C2417=\"\",NA(),MATCH($B2417&$C2417,'Smelter Look-up'!$J:$J,0))","v":{"$error":"#N/A"}},null,0,null,null,null,""]
[null,{"$f":"IF(LEN(A2418)=0,\"\",INDEX('Smelter Look-up'!$A:$A,MATCH($A2418,'Smelter Look-up'!$E:$E,0)))","v":""},{"$f":"IF(LEN(A2418)=0,\"\",INDEX('Smelter Look-up'!$C:$C,MATCH($A2418,'Smelter Look-up'!$E:$E,0)))","v":""},null,{"$f":"IF(ISERROR($V2418),\"\",OFFSET('Smelter Look-up'!$D$4,$V2418-4,0)&\"\")","v":""},{"$f":"IF(ISERROR($V2418),\"\",OFFSET('Smelter Look-up'!$E$4,$V2418-4,0))","v":""},{"$f":"IF(C2418=$X$4,\"Enter smelter details\", IF(ISERROR($V2418),\"\",OFFSET('Smelter Look-up'!$F$4,$V2418-4,0)))","v":""},{"$f":"IF(ISERROR($V2418),\"\",OFFSET('Smelter Look-up'!$G$4,$V2418-4,0))","v":""},{"$f":"IF(ISERROR($V2418),\"\",OFFSET('Smelter Look-up'!$H$4,$V2418-4,0))","v":""},{"$f":"IF(ISERROR($V2418),\"\",OFFSET('Smelter Look-up'!$I$4,$V2418-4,0))","v":""},{"$nulls":7},{"$f":"IF(ISERROR($V2418),\"\",OFFSET('Smelter Look-up'!$C$4,$V2418-4,0)&\"\")","v":""},"",{"$f":"IF(B2418=\"\",\"\",IF(ISERROR(MATCH($J2418,SorP!$B$1:$B$6230,0)),\"\",INDIRECT(\"'SorP'!$A$\"&MATCH($J2418,SorP!$B$1:$B$6230,0))))","v":""},null,{"$f":"IF(C2418=\"\",NA(),MATCH($B2418&$C2418,'Smelter Look-up'!$J:$J,0))","v":{"$error":"#N/A"}},null,0,null,null,null,""]
[null,{"$f":"IF(LEN(A2419)=0,\"\",INDEX('Smelter Look-up'!$A:$A,MATCH($A2419,'Smelter Look-up'!$E:$E,0)))","v":""},{"$f":"IF(LEN(A2419)=0,\"\",INDEX('Smelter Look-up'!$C:$C,MATCH($A2419,'Smelter Look-up'!$E:$E,0)))","v":""},null,{"$f":"IF(ISERROR($V2419),\"\",OFFSET('Smelter Look-up'!$D$4,$V2419-4,0)&\"\")","v":""},{"$f":"IF(ISERROR($V2419),\"\",OFFSET('Smelter Look-up'!$E$4,$V2419-4,0))","v":""},{"$f":"IF(C2419=$X$4,\"Enter smelter details\", IF(ISERROR($V2419),\"\",OFFSET('Smelter Look-up'!$F$4,$V2419-4,0)))","v":""},{"$f":"IF(ISERROR($V2419),\"\",OFFSET('Smelter Look-up'!$G$4,$V2419-4,0))","v":""},{"$f":"IF(ISERROR($V2419),\"\",OFFSET('Smelter Look-up'!$H$4,$V2419-4,0))","v":""},{"$f":"IF(ISERROR($V2419),\"\",OFFSET('Smelter Look-up'!$I$4,$V2419-4,0))","v":""},{"$nulls":7},{"$f":"IF(ISERROR($V2419),\"\",OFFSET('Smelter Look-up'!$C$4,$V2419-4,0)&\"\")","v":""},"",{"$f":"IF(B2419=\"\",\"\",IF(ISERROR(MATCH($J2419,SorP!$B$1:$B$6230,0)),\"\",INDIRECT(\"'SorP'!$A$\"&MATCH($J2419,SorP!$B$1:$B$6230,0))))","v":""},null,{"$f":"IF(C2419=\"\",NA(),MATCH($B2419&$C2419,'Smelter Look-up'!$J:$J,0))","v":{"$error":"#N/A"}},null,0,null,null,null,""]
[null,{"$f":"IF(LEN(A2420)=0,\"\",INDEX('Smelter Look-up'!$A:$A,MATCH($A2420,'Smelter Look-up'!$E:$E,0)))","v":""},{"$f":"IF(LEN(A2420)=0,\"\",INDEX('Smelter Look-up'!$C:$C,MATCH($A2420,'Smelter Look-up'!$E:$E,0)))","v":""},null,{"$f":"IF(ISERROR($V2420),\"\",OFFSET('Smelter Look-up'!$D$4,$V2420-4,0)&\"\")","v":""},{"$f":"IF(ISERROR($V2420),\"\",OFFSET('Smelter Look-up'!$E$4,$V2420-4,0))","v":""},{"$f":"IF(C2420=$X$4,\"Enter smelter details\", IF(ISERROR($V2420),\"\",OFFSET('Smelter Look-up'!$F$4,$V2420-4,0)))","v":""},{"$f":"IF(ISERROR($V2420),\"\",OFFSET('Smelter Look-up'!$G$4,$V2420-4,0))","v":""},{"$f":"IF(ISERROR($V2420),\"\",OFFSET('Smelter Look-up'!$H$4,$V2420-4,0))","v":""},{"$f":"IF(ISERROR($V2420),\"\",OFFSET('Smelter Look-up'!$I$4,$V2420-4,0))","v":""},{"$nulls":7},{"$f":"IF(ISERROR($V2420),\"\",OFFSET('Smelter Look-up'!$C$4,$V2420-4,0)&\"\")","v":""},"",{"$f":"IF(B2420=\"\",\"\",IF(ISERROR(MATCH($J2420,SorP!$B$1:$B$6230,0)),\"\",INDIRECT(\"'SorP'!$A$\"&MATCH($J2420,SorP!$B$1:$B$6230,0))))","v":""},null,{"$f":"IF(C2420=\"\",NA(),MATCH($B2420&$C2420,'Smelter Look-up'!$J:$J,0))","v":{"$error":"#N/A"}},null,0,null,null,null,""]
[null,{"$f":"IF(LEN(A2421)=0,\"\",INDEX('Smelter Look-up'!$A:$A,MATCH($A2421,'Smelter Look-up'!$E:$E,0)))","v":""},{"$f":"IF(LEN(A2421)=0,\"\",INDEX('Smelter Look-up'!$C:$C,MATCH($A2421,'Smelter Look-up'!$E:$E,0)))","v":""},null,{"$f":"IF(ISERROR($V2421),\"\",OFFSET('Smelter Look-up'!$D$4,$V2421-4,0)&\"\")","v":""},{"$f":"IF(ISERROR($V2421),\"\",OFFSET('Smelter Look-up'!$E$4,$V2421-4,0))","v":""},{"$f":"IF(C2421=$X$4,\"Enter smelter details\", IF(ISERROR($V2421),\"\",OFFSET('Smelter Look-up'!$F$4,$V2421-4,0)))","v":""},{"$f":"IF(ISERROR($V2421),\"\",OFFSET('Smelter Look-up'!$G$4,$V2421-4,0))","v":""},{"$f":"IF(ISERROR($V2421),\"\",OFFSET('Smelter Look-up'!$H$4,$V2421-4,0))","v":""},{"$f":"IF(ISERROR($V2421),\"\",OFFSET('Smelter Look-up'!$I$4,$V2421-4,0))","v":""},{"$nulls":7},{"$f":"IF(ISERROR($V2421),\"\",OFFSET('Smelter Look-up'!$C$4,$V2421-4,0)&\"\")","v":""},"",{"$f":"IF(B2421=\"\",\"\",IF(ISERROR(MATCH($J2421,SorP!$B$1:$B$6230,0)),\"\",INDIRECT(\"'SorP'!$A$\"&MATCH($J2421,SorP!$B$1:$B$6230,0))))","v":""},null,{"$f":"IF(C2421=\"\",NA(),MATCH($B2421&$C2421,'Smelter Look-up'!$J:$J,0))","v":{"$error":"#N/A"}},null,0,null,null,null,""]
[null,{"$f":"IF(LEN(A2422)=0,\"\",INDEX('Smelter Look-up'!$A:$A,MATCH($A2422,'Smelter Look-up'!$E:$E,0)))","v":""},{"$f":"IF(LEN(A2422)=0,\"\",INDEX('Smelter Look-up'!$C:$C,MATCH($A2422,'Smelter Look-up'!$E:$E,0)))","v":""},null,{"$f":"IF(ISERROR($V2422),\"\",OFFSET('Smelter Look-up'!$D$4,$V2422-4,0)&\"\")","v":""},{"$f":"IF(ISERROR($V2422),\"\",OFFSET('Smelter Look-up'!$E$4,$V2422-4,0))","v":""},{"$f":"IF(C2422=$X$4,\"Enter smelter details\", IF(ISERROR($V2422),\"\",OFFSET('Smelter Look-up'!$F$4,$V2422-4,0)))","v":""},{"$f":"IF(ISERROR($V2422),\"\",OFFSET('Smelter Look-up'!$G$4,$V2422-4,0))","v":""},{"$f":"IF(ISERROR($V2422),\"\",OFFSET('Smelter Look-up'!$H$4,$V2422-4,0))","v":""},{"$f":"IF(ISERROR($V2422),\"\",OFFSET('Smelter Look-up'!$I$4,$V2422-4,0))","v":""},{"$nulls":7},{"$f":"IF(ISERROR($V2422),\"\",OFFSET('Smelter Look-up'!$C$4,$V2422-4,0)&\"\")","v":""},"",{"$f":"IF(B2422=\"\",\"\",IF(ISERROR(MATCH($J2422,SorP!$B$1:$B$6230,0)),\"\",INDIRECT(\"'SorP'!$A$\"&MATCH($J2422,SorP!$B$1:$B$6230,0))))","v":""},null,{"$f":"IF(C2422=\"\",NA(),MATCH($B2422&$C2422,'Smelter Look-up'!$J:$J,0))","v":{"$error":"#N/A"}},null,0,null,null,null,""]
[null,{"$f":"IF(LEN(A2423)=0,\"\",INDEX('Smelter Look-up'!$A:$A,MATCH($A2423,'Smelter Look-up'!$E:$E,0)))","v":""},{"$f":"IF(LEN(A2423)=0,\"\",INDEX('Smelter Look-up'!$C:$C,MATCH($A2423,'Smelter Look-up'!$E:$E,0)))","v":""},null,{"$f":"IF(ISERROR($V2423),\"\",OFFSET('Smelter Look-up'!$D$4,$V2423-4,0)&\"\")","v":""},{"$f":"IF(ISERROR($V2423),\"\",OFFSET('Smelter Look-up'!$E$4,$V2423-4,0))","v":""},{"$f":"IF(C2423=$X$4,\"Enter smelter details\", IF(ISERROR($V2423),\"\",OFFSET('Smelter Look-up'!$F$4,$V2423-4,0)))","v":""},{"$f":"IF(ISERROR($V2423),\"\",OFFSET('Smelter Look-up'!$G$4,$V2423-4,0))","v":""},{"$f":"IF(ISERROR($V2423),\"\",OFFSET('Smelter Look-up'!$H$4,$V2423-4,0))","v":""},{"$f":"IF(ISERROR($V2423),\"\",OFFSET('Smelter Look-up'!$I$4,$V2423-4,0))","v":""},{"$nulls":7},{"$f":"IF(ISERROR($V2423),\"\",OFFSET('Smelter Look-up'!$C$4,$V2423-4,0)&\"\")","v":""},"",{"$f":"IF(B2423=\"\",\"\",IF(ISERROR(MATCH($J2423,SorP!$B$1:$B$6230,0)),\"\",INDIRECT(\"'SorP'!$A$\"&MATCH($J2423,SorP!$B$1:$B$6230,0))))","v":""},null,{"$f":"IF(C2423=\"\",NA(),MATCH($B2423&$C2423,'Smelter Look-up'!$J:$J,0))","v":{"$error":"#N/A"}},null,0,null,null,null,""]
[null,{"$f":"IF(LEN(A2424)=0,\"\",INDEX('Smelter Look-up'!$A:$A,MATCH($A2424,'Smelter Look-up'!$E:$E,0)))","v":""},{"$f":"IF(LEN(A2424)=0,\"\",INDEX('Smelter Look-up'!$C:$C,MATCH($A2424,'Smelter Look-up'!$E:$E,0)))","v":""},null,{"$f":"IF(ISERROR($V2424),\"\",OFFSET('Smelter Look-up'!$D$4,$V2424-4,0)&\"\")","v":""},{"$f":"IF(ISERROR($V2424),\"\",OFFSET('Smelter Look-up'!$E$4,$V2424-4,0))","v":""},{"$f":"IF(C2424=$X$4,\"Enter smelter details\", IF(ISERROR($V2424),\"\",OFFSET('Smelter Look-up'!$F$4,$V2424-4,0)))","v":""},{"$f":"IF(ISERROR($V2424),\"\",OFFSET('Smelter Look-up'!$G$4,$V2424-4,0))","v":""},{"$f":"IF(ISERROR($V2424),\"\",OFFSET('Smelter Look-up'!$H$4,$V2424-4,0))","v":""},{"$f":"IF(ISERROR($V2424),\"\",OFFSET('Smelter Look-up'!$I$4,$V2424-4,0))","v":""},{"$nulls":7},{"$f":"IF(ISERROR($V2424),\"\",OFFSET('Smelter Look-up'!$C$4,$V2424-4,0)&\"\")","v":""},"",{"$f":"IF(B2424=\"\",\"\",IF(ISERROR(MATCH($J2424,SorP!$B$1:$B$6230,0)),\"\",INDIRECT(\"'SorP'!$A$\"&MATCH($J2424,SorP!$B$1:$B$6230,0))))","v":""},null,{"$f":"IF(C2424=\"\",NA(),MATCH($B2424&$C2424,'Smelter Look-up'!$J:$J,0))","v":{"$error":"#N/A"}},null,0,null,null,null,""]
[null,{"$f":"IF(LEN(A2425)=0,\"\",INDEX('Smelter Look-up'!$A:$A,MATCH($A2425,'Smelter Look-up'!$E:$E,0)))","v":""},{"$f":"IF(LEN(A2425)=0,\"\",INDEX('Smelter Look-up'!$C:$C,MATCH($A2425,'Smelter Look-up'!$E:$E,0)))","v":""},null,{"$f":"IF(ISERROR($V2425),\"\",OFFSET('Smelter Look-up'!$D$4,$V2425-4,0)&\"\")","v":""},{"$f":"IF(ISERROR($V2425),\"\",OFFSET('Smelter Look-up'!$E$4,$V2425-4,0))","v":""},{"$f":"IF(C2425=$X$4,\"Enter smelter details\", IF(ISERROR($V2425),\"\",OFFSET('Smelter Look-up'!$F$4,$V2425-4,0)))","v":""},{"$f":"IF(ISERROR($V2425),\"\",OFFSET('Smelter Look-up'!$G$4,$V2425-4,0))","v":""},{"$f":"IF(ISERROR($V2425),\"\",OFFSET('Smelter Look-up'!$H$4,$V2425-4,0))","v":""},{"$f":"IF(ISERROR($V2425),\"\",OFFSET('Smelter Look-up'!$I$4,$V2425-4,0))","v":""},{"$nulls":7},{"$f":"IF(ISERROR($V2425),\"\",OFFSET('Smelter Look-up'!$C$4,$V2425-4,0)&\"\")","v":""},"",{"$f":"IF(B2425=\"\",\"\",IF(ISERROR(MATCH($J2425,SorP!$B$1:$B$6230,0)),\"\",INDIRECT(\"'SorP'!$A$\"&MATCH($J2425,SorP!$B$1:$B$6230,0))))","v":""},null,{"$f":"IF(C2425=\"\",NA(),MATCH($B2425&$C2425,'Smelter Look-up'!$J:$J,0))","v":{"$error":"#N/A"}},null,0,null,null,null,""]
[null,{"$f":"IF(LEN(A2426)=0,\"\",INDEX('Smelter Look-up'!$A:$A,MATCH($A2426,'Smelter Look-up'!$E:$E,0)))","v":""},{"$f":"IF(LEN(A2426)=0,\"\",INDEX('Smelter Look-up'!$C:$C,MATCH($A2426,'Smelter Look-up'!$E:$E,0)))","v":""},null,{"$f":"IF(ISERROR($V2426),\"\",OFFSET('Smelter Look-up'!$D$4,$V2426-4,0)&\"\")","v":""},{"$f":"IF(ISERROR($V2426),\"\",OFFSET('Smelter Look-up'!$E$4,$V2426-4,0))","v":""},{"$f":"IF(C2426=$X$4,\"Enter smelter details\", IF(ISERROR($V2426),\"\",OFFSET('Smelter Look-up'!$F$4,$V2426-4,0)))","v":""},{"$f":"IF(ISERROR($V2426),\"\",OFFSET('Smelter Look-up'!$G$4,$V2426-4,0))","v":""},{"$f":"IF(ISERROR($V2426),\"\",OFFSET('Smelter Look-up'!$H$4,$V2426-4,0))","v":""},{"$f":"IF(ISERROR($V2426),\"\",OFFSET('Smelter Look-up'!$I$4,$V2426-4,0))","v":""},{"$nulls":7},{"$f":"IF(ISERROR($V2426),\"\",OFFSET('Smelter Look-up'!$C$4,$V2426-4,0)&\"\")","v":""},"",{"$f":"IF(B2426=\"\",\"\",IF(ISERROR(MATCH($J2426,SorP!$B$1:$B$6230,0)),\"\",INDIRECT(\"'SorP'!$A$\"&MATCH($J2426,SorP!$B$1:$B$6230,0))))","v":""},null,{"$f":"IF(C2426=\"\",NA(),MATCH($B2426&$C2426,'Smelter Look-up'!$J:$J,0))","v":{"$error":"#N/A"}},null,0,null,null,null,""]
[null,{"$f":"IF(LEN(A2427)=0,\"\",INDEX('Smelter Look-up'!$A:$A,MATCH($A2427,'Smelter Look-up'!$E:$E,0)))","v":""},{"$f":"IF(LEN(A2427)=0,\"\",INDEX('Smelter Look-up'!$C:$C,MATCH($A2427,'Smelter Look-up'!$E:$E,0)))","v":""},null,{"$f":"IF(ISERROR($V2427),\"\",OFFSET('Smelter Look-up'!$D$4,$V2427-4,0)&\"\")","v":""},{"$f":"IF(ISERROR($V2427),\"\",OFFSET('Smelter Look-up'!$E$4,$V2427-4,0))","v":""},{"$f":"IF(C2427=$X$4,\"Enter smelter details\", IF(ISERROR($V2427),\"\",OFFSET('Smelter Look-up'!$F$4,$V2427-4,0)))","v":""},{"$f":"IF(ISERROR($V2427),\"\",OFFSET('Smelter Look-up'!$G$4,$V2427-4,0))","v":""},{"$f":"IF(ISERROR($V2427),\"\",OFFSET('Smelter Look-up'!$H$4,$V2427-4,0))","v":""},{"$f":"IF(ISERROR($V2427),\"\",OFFSET('Smelter Look-up'!$I$4,$V2427-4,0))","v":""},{"$nulls":7},{"$f":"IF(ISERROR($V2427),\"\",OFFSET('Smelter Look-up'!$C$4,$V2427-4,0)&\"\")","v":""},{"$f":"IF(B2427=\"\",\"\",IF(ISERROR(MATCH($E2427,CL,0)),\"Unknown\",INDIRECT(\"'C'!$A$\"&MATCH($E2427,CL,0)+1)))","v":""},{"$f":"IF(B2427=\"\",\"\",IF(ISERROR(MATCH($J2427,SorP!$B$1:$B$6230,0)),\"\",INDIRECT(\"'SorP'!$A$\"&MATCH($J2427,SorP!$B$1:$B$6230,0))))","v":""},null,{"$f":"IF(C2427=\"\",NA(),MATCH($B2427&$C2427,'Smelter Look-up'!$J:$J,0))","v":{"$error":"#N/A"}},null,{"$f":"IF(AND(C2427=\"Smelter not listed\",OR(LEN(D2427)=0,LEN(E2427)=0)),1,0)","v":0},null,null,null,{"$f":"B2427&C2427","v":""}]
[null,{"$f":"IF(LEN(A2428)=0,\"\",INDEX('Smelter Look-up'!$A:$A,MATCH($A2428,'Smelter Look-up'!$E:$E,0)))","v":""},{"$f":"IF(LEN(A2428)=0,\"\",INDEX('Smelter Look-up'!$C:$C,MATCH($A2428,'Smelter Look-up'!$E:$E,0)))","v":""},null,{"$f":"IF(ISERROR($V2428),\"\",OFFSET('Smelter Look-up'!$D$4,$V2428-4,0)&\"\")","v":""},{"$f":"IF(ISERROR($V2428),\"\",OFFSET('Smelter Look-up'!$E$4,$V2428-4,0))","v":""},{"$f":"IF(C2428=$X$4,\"Enter smelter details\", IF(ISERROR($V2428),\"\",OFFSET('Smelter Look-up'!$F$4,$V2428-4,0)))","v":""},{"$f":"IF(ISERROR($V2428),\"\",OFFSET('Smelter Look-up'!$G$4,$V2428-4,0))","v":""},{"$f":"IF(ISERROR($V2428),\"\",OFFSET('Smelter Look-up'!$H$4,$V2428-4,0))","v":""},{"$f":"IF(ISERROR($V2428),\"\",OFFSET('Smelter Look-up'!$I$4,$V2428-4,0))","v":""},{"$nulls":7},{"$f":"IF(ISERROR($V2428),\"\",OFFSET('Smelter Look-up'!$C$4,$V2428-4,0)&\"\")","v":""},"",{"$f":"IF(B2428=\"\",\"\",IF(ISERROR(MATCH($J2428,SorP!$B$1:$B$6230,0)),\"\",INDIRECT(\"'SorP'!$A$\"&MATCH($J2428,SorP!$B$1:$B$6230,0))))","v":""},null,{"$f":"IF(C2428=\"\",NA(),MATCH($B2428&$C2428,'Smelter Look-up'!$J:$J,0))","v":{"$error":"#N/A"}},null,0,null,null,null,""]
[null,{"$f":"IF(LEN(A2429)=0,\"\",INDEX('Smelter Look-up'!$A:$A,MATCH($A2429,'Smelter Look-up'!$E:$E,0)))","v":""},{"$f":"IF(LEN(A2429)=0,\"\",INDEX('Smelter Look-up'!$C:$C,MATCH($A2429,'Smelter Look-up'!$E:$E,0)))","v":""},null,{"$f":"IF(ISERROR($V2429),\"\",OFFSET('Smelter Look-up'!$D$4,$V2429-4,0)&\"\")","v":""},{"$f":"IF(ISERROR($V2429),\"\",OFFSET('Smelter Look-up'!$E$4,$V2429-4,0))","v":""},{"$f":"IF(C2429=$X$4,\"Enter smelter details\", IF(ISERROR($V2429),\"\",OFFSET('Smelter Look-up'!$F$4,$V2429-4,0)))","v":""},{"$f":"IF(ISERROR($V2429),\"\",OFFSET('Smelter Look-up'!$G$4,$V2429-4,0))","v":""},{"$f":"IF(ISERROR($V2429),\"\",OFFSET('Smelter Look-up'!$H$4,$V2429-4,0))","v":""},{"$f":"IF(ISERROR($V2429),\"\",OFFSET('Smelter Look-up'!$I$4,$V2429-4,0))","v":""},{"$nulls":7},{"$f":"IF(ISERROR($V2429),\"\",OFFSET('Smelter Look-up'!$C$4,$V2429-4,0)&\"\")","v":""},"",{"$f":"IF(B2429=\"\",\"\",IF(ISERROR(MATCH($J2429,SorP!$B$1:$B$6230,0)),\"\",INDIRECT(\"'SorP'!$A$\"&MATCH($J2429,SorP!$B$1:$B$6230,0))))","v":""},null,{"$f":"IF(C2429=\"\",NA(),MATCH($B2429&$C2429,'Smelter Look-up'!$J:$J,0))","v":{"$error":"#N/A"}},null,0,null,null,null,""]
[null,{"$f":"IF(LEN(A2430)=0,\"\",INDEX('Smelter Look-up'!$A:$A,MATCH($A2430,'Smelter Look-up'!$E:$E,0)))","v":""},{"$f":"IF(LEN(A2430)=0,\"\",INDEX('Smelter Look-up'!$C:$C,MATCH($A2430,'Smelter Look-up'!$E:$E,0)))","v":""},null,{"$f":"IF(ISERROR($V2430),\"\",OFFSET('Smelter Look-up'!$D$4,$V2430-4,0)&\"\")","v":""},{"$f":"IF(ISERROR($V2430),\"\",OFFSET('Smelter Look-up'!$E$4,$V2430-4,0))","v":""},{"$f":"IF(C2430=$X$4,\"Enter smelter details\", IF(ISERROR($V2430),\"\",OFFSET('Smelter Look-up'!$F$4,$V2430-4,0)))","v":""},{"$f":"IF(ISERROR($V2430),\"\",OFFSET('Smelter Look-up'!$G$4,$V2430-4,0))","v":""},{"$f":"IF(ISERROR($V2430),\"\",OFFSET('Smelter Look-up'!$H$4,$V2430-4,0))","v":""},{"$f":"IF(ISERROR($V2430),\"\",OFFSET('Smelter Look-up'!$I$4,$V2430-4,0))","v":""},{"$nulls":7},{"$f":"IF(ISERROR($V2430),\"\",OFFSET('Smelter Look-up'!$C$4,$V2430-4,0)&\"\")","v":""},"",{"$f":"IF(B2430=\"\",\"\",IF(ISERROR(MATCH($J2430,SorP!$B$1:$B$6230,0)),\"\",INDIRECT(\"'SorP'!$A$\"&MATCH($J2430,SorP!$B$1:$B$6230,0))))","v":""},null,{"$f":"IF(C2430=\"\",NA(),MATCH($B2430&$C2430,'Smelter Look-up'!$J:$J,0))","v":{"$error":"#N/A"}},null,0,null,null,null,""]
[null,{"$f":"IF(LEN(A2431)=0,\"\",INDEX('Smelter Look-up'!$A:$A,MATCH($A2431,'Smelter Look-up'!$E:$E,0)))","v":""},{"$f":"IF(LEN(A2431)=0,\"\",INDEX('Smelter Look-up'!$C:$C,MATCH($A2431,'Smelter Look-up'!$E:$E,0)))","v":""},null,{"$f":"IF(ISERROR($V2431),\"\",OFFSET('Smelter Look-up'!$D$4,$V2431-4,0)&\"\")","v":""},{"$f":"IF(ISERROR($V2431),\"\",OFFSET('Smelter Look-up'!$E$4,$V2431-4,0))","v":""},{"$f":"IF(C2431=$X$4,\"Enter smelter details\", IF(ISERROR($V2431),\"\",OFFSET('Smelter Look-up'!$F$4,$V2431-4,0)))","v":""},{"$f":"IF(ISERROR($V2431),\"\",OFFSET('Smelter Look-up'!$G$4,$V2431-4,0))","v":""},{"$f":"IF(ISERROR($V2431),\"\",OFFSET('Smelter Look-up'!$H$4,$V2431-4,0))","v":""},{"$f":"IF(ISERROR($V2431),\"\",OFFSET('Smelter Look-up'!$I$4,$V2431-4,0))","v":""},{"$nulls":7},{"$f":"IF(ISERROR($V2431),\"\",OFFSET('Smelter Look-up'!$C$4,$V2431-4,0)&\"\")","v":""},"",{"$f":"IF(B2431=\"\",\"\",IF(ISERROR(MATCH($J2431,SorP!$B$1:$B$6230,0)),\"\",INDIRECT(\"'SorP'!$A$\"&MATCH($J2431,SorP!$B$1:$B$6230,0))))","v":""},null,{"$f":"IF(C2431=\"\",NA(),MATCH($B2431&$C2431,'Smelter Look-up'!$J:$J,0))","v":{"$error":"#N/A"}},null,0,null,null,null,""]
[null,{"$f":"IF(LEN(A2432)=0,\"\",INDEX('Smelter Look-up'!$A:$A,MATCH($A2432,'Smelter Look-up'!$E:$E,0)))","v":""},{"$f":"IF(LEN(A2432)=0,\"\",INDEX('Smelter Look-up'!$C:$C,MATCH($A2432,'Smelter Look-up'!$E:$E,0)))","v":""},null,{"$f":"IF(ISERROR($V2432),\"\",OFFSET('Smelter Look-up'!$D$4,$V2432-4,0)&\"\")","v":""},{"$f":"IF(ISERROR($V2432),\"\",OFFSET('Smelter Look-up'!$E$4,$V2432-4,0))","v":""},{"$f":"IF(C2432=$X$4,\"Enter smelter details\", IF(ISERROR($V2432),\"\",OFFSET('Smelter Look-up'!$F$4,$V2432-4,0)))","v":""},{"$f":"IF(ISERROR($V2432),\"\",OFFSET('Smelter Look-up'!$G$4,$V2432-4,0))","v":""},{"$f":"IF(ISERROR($V2432),\"\",OFFSET('Smelter Look-up'!$H$4,$V2432-4,0))","v":""},{"$f":"IF(ISERROR($V2432),\"\",OFFSET('Smelter Look-up'!$I$4,$V2432-4,0))","v":""},{"$nulls":7},{"$f":"IF(ISERROR($V2432),\"\",OFFSET('Smelter Look-up'!$C$4,$V2432-4,0)&\"\")","v":""},"",{"$f":"IF(B2432=\"\",\"\",IF(ISERROR(MATCH($J2432,SorP!$B$1:$B$6230,0)),\"\",INDIRECT(\"'SorP'!$A$\"&MATCH($J2432,SorP!$B$1:$B$6230,0))))","v":""},null,{"$f":"IF(C2432=\"\",NA(),MATCH($B2432&$C2432,'Smelter Look-up'!$J:$J,0))","v":{"$error":"#N/A"}},null,0,null,null,null,""]
[null,{"$f":"IF(LEN(A2433)=0,\"\",INDEX('Smelter Look-up'!$A:$A,MATCH($A2433,'Smelter Look-up'!$E:$E,0)))","v":""},{"$f":"IF(LEN(A2433)=0,\"\",INDEX('Smelter Look-up'!$C:$C,MATCH($A2433,'Smelter Look-up'!$E:$E,0)))","v":""},null,{"$f":"IF(ISERROR($V2433),\"\",OFFSET('Smelter Look-up'!$D$4,$V2433-4,0)&\"\")","v":""},{"$f":"IF(ISERROR($V2433),\"\",OFFSET('Smelter Look-up'!$E$4,$V2433-4,0))","v":""},{"$f":"IF(C2433=$X$4,\"Enter smelter details\", IF(ISERROR($V2433),\"\",OFFSET('Smelter Look-up'!$F$4,$V2433-4,0)))","v":""},{"$f":"IF(ISERROR($V2433),\"\",OFFSET('Smelter Look-up'!$G$4,$V2433-4,0))","v":""},{"$f":"IF(ISERROR($V2433),\"\",OFFSET('Smelter Look-up'!$H$4,$V2433-4,0))","v":""},{"$f":"IF(ISERROR($V2433),\"\",OFFSET('Smelter Look-up'!$I$4,$V2433-4,0))","v":""},{"$nulls":7},{"$f":"IF(ISERROR($V2433),\"\",OFFSET('Smelter Look-up'!$C$4,$V2433-4,0)&\"\")","v":""},"",{"$f":"IF(B2433=\"\",\"\",IF(ISERROR(MATCH($J2433,SorP!$B$1:$B$6230,0)),\"\",INDIRECT(\"'SorP'!$A$\"&MATCH($J2433,SorP!$B$1:$B$6230,0))))","v":""},null,{"$f":"IF(C2433=\"\",NA(),MATCH($B2433&$C2433,'Smelter Look-up'!$J:$J,0))","v":{"$error":"#N/A"}},null,0,null,null,null,""]
[null,{"$f":"IF(LEN(A2434)=0,\"\",INDEX('Smelter Look-up'!$A:$A,MATCH($A2434,'Smelter Look-up'!$E:$E,0)))","v":""},{"$f":"IF(LEN(A2434)=0,\"\",INDEX('Smelter Look-up'!$C:$C,MATCH($A2434,'Smelter Look-up'!$E:$E,0)))","v":""},null,{"$f":"IF(ISERROR($V2434),\"\",OFFSET('Smelter Look-up'!$D$4,$V2434-4,0)&\"\")","v":""},{"$f":"IF(ISERROR($V2434),\"\",OFFSET('Smelter Look-up'!$E$4,$V2434-4,0))","v":""},{"$f":"IF(C2434=$X$4,\"Enter smelter details\", IF(ISERROR($V2434),\"\",OFFSET('Smelter Look-up'!$F$4,$V2434-4,0)))","v":""},{"$f":"IF(ISERROR($V2434),\"\",OFFSET('Smelter Look-up'!$G$4,$V2434-4,0))","v":""},{"$f":"IF(ISERROR($V2434),\"\",OFFSET('Smelter Look-up'!$H$4,$V2434-4,0))","v":""},{"$f":"IF(ISERROR($V2434),\"\",OFFSET('Smelter Look-up'!$I$4,$V2434-4,0))","v":""},{"$nulls":7},{"$f":"IF(ISERROR($V2434),\"\",OFFSET('Smelter Look-up'!$C$4,$V2434-4,0)&\"\")","v":""},"",{"$f":"IF(B2434=\"\",\"\",IF(ISERROR(MATCH($J2434,SorP!$B$1:$B$6230,0)),\"\",INDIRECT(\"'SorP'!$A$\"&MATCH($J2434,SorP!$B$1:$B$6230,0))))","v":""},null,{"$f":"IF(C2434=\"\",NA(),MATCH($B2434&$C2434,'Smelter Look-up'!$J:$J,0))","v":{"$error":"#N/A"}},null,0,null,null,null,""]
[null,{"$f":"IF(LEN(A2435)=0,\"\",INDEX('Smelter Look-up'!$A:$A,MATCH($A2435,'Smelter Look-up'!$E:$E,0)))","v":""},{"$f":"IF(LEN(A2435)=0,\"\",INDEX('Smelter Look-up'!$C:$C,MATCH($A2435,'Smelter Look-up'!$E:$E,0)))","v":""},null,{"$f":"IF(ISERROR($V2435),\"\",OFFSET('Smelter Look-up'!$D$4,$V2435-4,0)&\"\")","v":""},{"$f":"IF(ISERROR($V2435),\"\",OFFSET('Smelter Look-up'!$E$4,$V2435-4,0))","v":""},{"$f":"IF(C2435=$X$4,\"Enter smelter details\", IF(ISERROR($V2435),\"\",OFFSET('Smelter Look-up'!$F$4,$V2435-4,0)))","v":""},{"$f":"IF(ISERROR($V2435),\"\",OFFSET('Smelter Look-up'!$G$4,$V2435-4,0))","v":""},{"$f":"IF(ISERROR($V2435),\"\",OFFSET('Smelter Look-up'!$H$4,$V2435-4,0))","v":""},{"$f":"IF(ISERROR($V2435),\"\",OFFSET('Smelter Look-up'!$I$4,$V2435-4,0))","v":""},{"$nulls":7},{"$f":"IF(ISERROR($V2435),\"\",OFFSET('Smelter Look-up'!$C$4,$V2435-4,0)&\"\")","v":""},"",{"$f":"IF(B2435=\"\",\"\",IF(ISERROR(MATCH($J2435,SorP!$B$1:$B$6230,0)),\"\",INDIRECT(\"'SorP'!$A$\"&MATCH($J2435,SorP!$B$1:$B$6230,0))))","v":""},null,{"$f":"IF(C2435=\"\",NA(),MATCH($B2435&$C2435,'Smelter Look-up'!$J:$J,0))","v":{"$error":"#N/A"}},null,0,null,null,null,""]
[null,{"$f":"IF(LEN(A2436)=0,\"\",INDEX('Smelter Look-up'!$A:$A,MATCH($A2436,'Smelter Look-up'!$E:$E,0)))","v":""},{"$f":"IF(LEN(A2436)=0,\"\",INDEX('Smelter Look-up'!$C:$C,MATCH($A2436,'Smelter Look-up'!$E:$E,0)))","v":""},null,{"$f":"IF(ISERROR($V2436),\"\",OFFSET('Smelter Look-up'!$D$4,$V2436-4,0)&\"\")","v":""},{"$f":"IF(ISERROR($V2436),\"\",OFFSET('Smelter Look-up'!$E$4,$V2436-4,0))","v":""},{"$f":"IF(C2436=$X$4,\"Enter smelter details\", IF(ISERROR($V2436),\"\",OFFSET('Smelter Look-up'!$F$4,$V2436-4,0)))","v":""},{"$f":"IF(ISERROR($V2436),\"\",OFFSET('Smelter Look-up'!$G$4,$V2436-4,0))","v":""},{"$f":"IF(ISERROR($V2436),\"\",OFFSET('Smelter Look-up'!$H$4,$V2436-4,0))","v":""},{"$f":"IF(ISERROR($V2436),\"\",OFFSET('Smelter Look-up'!$I$4,$V2436-4,0))","v":""},{"$nulls":7},{"$f":"IF(ISERROR($V2436),\"\",OFFSET('Smelter Look-up'!$C$4,$V2436-4,0)&\"\")","v":""},"",{"$f":"IF(B2436=\"\",\"\",IF(ISERROR(MATCH($J2436,SorP!$B$1:$B$6230,0)),\"\",INDIRECT(\"'SorP'!$A$\"&MATCH($J2436,SorP!$B$1:$B$6230,0))))","v":""},null,{"$f":"IF(C2436=\"\",NA(),MATCH($B2436&$C2436,'Smelter Look-up'!$J:$J,0))","v":{"$error":"#N/A"}},null,0,null,null,null,""]
[null,{"$f":"IF(LEN(A2437)=0,\"\",INDEX('Smelter Look-up'!$A:$A,MATCH($A2437,'Smelter Look-up'!$E:$E,0)))","v":""},{"$f":"IF(LEN(A2437)=0,\"\",INDEX('Smelter Look-up'!$C:$C,MATCH($A2437,'Smelter Look-up'!$E:$E,0)))","v":""},null,{"$f":"IF(ISERROR($V2437),\"\",OFFSET('Smelter Look-up'!$D$4,$V2437-4,0)&\"\")","v":""},{"$f":"IF(ISERROR($V2437),\"\",OFFSET('Smelter Look-up'!$E$4,$V2437-4,0))","v":""},{"$f":"IF(C2437=$X$4,\"Enter smelter details\", IF(ISERROR($V2437),\"\",OFFSET('Smelter Look-up'!$F$4,$V2437-4,0)))","v":""},{"$f":"IF(ISERROR($V2437),\"\",OFFSET('Smelter Look-up'!$G$4,$V2437-4,0))","v":""},{"$f":"IF(ISERROR($V2437),\"\",OFFSET('Smelter Look-up'!$H$4,$V2437-4,0))","v":""},{"$f":"IF(ISERROR($V2437),\"\",OFFSET('Smelter Look-up'!$I$4,$V2437-4,0))","v":""},{"$nulls":7},{"$f":"IF(ISERROR($V2437),\"\",OFFSET('Smelter Look-up'!$C$4,$V2437-4,0)&\"\")","v":""},"",{"$f":"IF(B2437=\"\",\"\",IF(ISERROR(MATCH($J2437,SorP!$B$1:$B$6230,0)),\"\",INDIRECT(\"'SorP'!$A$\"&MATCH($J2437,SorP!$B$1:$B$6230,0))))","v":""},null,{"$f":"IF(C2437=\"\",NA(),MATCH($B2437&$C2437,'Smelter Look-up'!$J:$J,0))","v":{"$error":"#N/A"}},null,0,null,null,null,""]
[null,{"$f":"IF(LEN(A2438)=0,\"\",INDEX('Smelter Look-up'!$A:$A,MATCH($A2438,'Smelter Look-up'!$E:$E,0)))","v":""},{"$f":"IF(LEN(A2438)=0,\"\",INDEX('Smelter Look-up'!$C:$C,MATCH($A2438,'Smelter Look-up'!$E:$E,0)))","v":""},null,{"$f":"IF(ISERROR($V2438),\"\",OFFSET('Smelter Look-up'!$D$4,$V2438-4,0)&\"\")","v":""},{"$f":"IF(ISERROR($V2438),\"\",OFFSET('Smelter Look-up'!$E$4,$V2438-4,0))","v":""},{"$f":"IF(C2438=$X$4,\"Enter smelter details\", IF(ISERROR($V2438),\"\",OFFSET('Smelter Look-up'!$F$4,$V2438-4,0)))","v":""},{"$f":"IF(ISERROR($V2438),\"\",OFFSET('Smelter Look-up'!$G$4,$V2438-4,0))","v":""},{"$f":"IF(ISERROR($V2438),\"\",OFFSET('Smelter Look-up'!$H$4,$V2438-4,0))","v":""},{"$f":"IF(ISERROR($V2438),\"\",OFFSET('Smelter Look-up'!$I$4,$V2438-4,0))","v":""},{"$nulls":7},{"$f":"IF(ISERROR($V2438),\"\",OFFSET('Smelter Look-up'!$C$4,$V2438-4,0)&\"\")","v":""},"",{"$f":"IF(B2438=\"\",\"\",IF(ISERROR(MATCH($J2438,SorP!$B$1:$B$6230,0)),\"\",INDIRECT(\"'SorP'!$A$\"&MATCH($J2438,SorP!$B$1:$B$6230,0))))","v":""},null,{"$f":"IF(C2438=\"\",NA(),MATCH($B2438&$C2438,'Smelter Look-up'!$J:$J,0))","v":{"$error":"#N/A"}},null,0,null,null,null,""]
[null,{"$f":"IF(LEN(A2439)=0,\"\",INDEX('Smelter Look-up'!$A:$A,MATCH($A2439,'Smelter Look-up'!$E:$E,0)))","v":""},{"$f":"IF(LEN(A2439)=0,\"\",INDEX('Smelter Look-up'!$C:$C,MATCH($A2439,'Smelter Look-up'!$E:$E,0)))","v":""},null,{"$f":"IF(ISERROR($V2439),\"\",OFFSET('Smelter Look-up'!$D$4,$V2439-4,0)&\"\")","v":""},{"$f":"IF(ISERROR($V2439),\"\",OFFSET('Smelter Look-up'!$E$4,$V2439-4,0))","v":""},{"$f":"IF(C2439=$X$4,\"Enter smelter details\", IF(ISERROR($V2439),\"\",OFFSET('Smelter Look-up'!$F$4,$V2439-4,0)))","v":""},{"$f":"IF(ISERROR($V2439),\"\",OFFSET('Smelter Look-up'!$G$4,$V2439-4,0))","v":""},{"$f":"IF(ISERROR($V2439),\"\",OFFSET('Smelter Look-up'!$H$4,$V2439-4,0))","v":""},{"$f":"IF(ISERROR($V2439),\"\",OFFSET('Smelter Look-up'!$I$4,$V2439-4,0))","v":""},{"$nulls":7},{"$f":"IF(ISERROR($V2439),\"\",OFFSET('Smelter Look-up'!$C$4,$V2439-4,0)&\"\")","v":""},"",{"$f":"IF(B2439=\"\",\"\",IF(ISERROR(MATCH($J2439,SorP!$B$1:$B$6230,0)),\"\",INDIRECT(\"'SorP'!$A$\"&MATCH($J2439,SorP!$B$1:$B$6230,0))))","v":""},null,{"$f":"IF(C2439=\"\",NA(),MATCH($B2439&$C2439,'Smelter Look-up'!$J:$J,0))","v":{"$error":"#N/A"}},null,0,null,null,null,""]
[null,{"$f":"IF(LEN(A2440)=0,\"\",INDEX('Smelter Look-up'!$A:$A,MATCH($A2440,'Smelter Look-up'!$E:$E,0)))","v":""},{"$f":"IF(LEN(A2440)=0,\"\",INDEX('Smelter Look-up'!$C:$C,MATCH($A2440,'Smelter Look-up'!$E:$E,0)))","v":""},null,{"$f":"IF(ISERROR($V2440),\"\",OFFSET('Smelter Look-up'!$D$4,$V2440-4,0)&\"\")","v":""},{"$f":"IF(ISERROR($V2440),\"\",OFFSET('Smelter Look-up'!$E$4,$V2440-4,0))","v":""},{"$f":"IF(C2440=$X$4,\"Enter smelter details\", IF(ISERROR($V2440),\"\",OFFSET('Smelter Look-up'!$F$4,$V2440-4,0)))","v":""},{"$f":"IF(ISERROR($V2440),\"\",OFFSET('Smelter Look-up'!$G$4,$V2440-4,0))","v":""},{"$f":"IF(ISERROR($V2440),\"\",OFFSET('Smelter Look-up'!$H$4,$V2440-4,0))","v":""},{"$f":"IF(ISERROR($V2440),\"\",OFFSET('Smelter Look-up'!$I$4,$V2440-4,0))","v":""},{"$nulls":7},{"$f":"IF(ISERROR($V2440),\"\",OFFSET('Smelter Look-up'!$C$4,$V2440-4,0)&\"\")","v":""},"",{"$f":"IF(B2440=\"\",\"\",IF(ISERROR(MATCH($J2440,SorP!$B$1:$B$6230,0)),\"\",INDIRECT(\"'SorP'!$A$\"&MATCH($J2440,SorP!$B$1:$B$6230,0))))","v":""},null,{"$f":"IF(C2440=\"\",NA(),MATCH($B2440&$C2440,'Smelter Look-up'!$J:$J,0))","v":{"$error":"#N/A"}},null,0,null,null,null,""]
[null,{"$f":"IF(LEN(A2441)=0,\"\",INDEX('Smelter Look-up'!$A:$A,MATCH($A2441,'Smelter Look-up'!$E:$E,0)))","v":""},{"$f":"IF(LEN(A2441)=0,\"\",INDEX('Smelter Look-up'!$C:$C,MATCH($A2441,'Smelter Look-up'!$E:$E,0)))","v":""},null,{"$f":"IF(ISERROR($V2441),\"\",OFFSET('Smelter Look-up'!$D$4,$V2441-4,0)&\"\")","v":""},{"$f":"IF(ISERROR($V2441),\"\",OFFSET('Smelter Look-up'!$E$4,$V2441-4,0))","v":""},{"$f":"IF(C2441=$X$4,\"Enter smelter details\", IF(ISERROR($V2441),\"\",OFFSET('Smelter Look-up'!$F$4,$V2441-4,0)))","v":""},{"$f":"IF(ISERROR($V2441),\"\",OFFSET('Smelter Look-up'!$G$4,$V2441-4,0))","v":""},{"$f":"IF(ISERROR($V2441),\"\",OFFSET('Smelter Look-up'!$H$4,$V2441-4,0))","v":""},{"$f":"IF(ISERROR($V2441),\"\",OFFSET('Smelter Look-up'!$I$4,$V2441-4,0))","v":""},{"$nulls":7},{"$f":"IF(ISERROR($V2441),\"\",OFFSET('Smelter Look-up'!$C$4,$V2441-4,0)&\"\")","v":""},"",{"$f":"IF(B2441=\"\",\"\",IF(ISERROR(MATCH($J2441,SorP!$B$1:$B$6230,0)),\"\",INDIRECT(\"'SorP'!$A$\"&MATCH($J2441,SorP!$B$1:$B$6230,0))))","v":""},null,{"$f":"IF(C2441=\"\",NA(),MATCH($B2441&$C2441,'Smelter Look-up'!$J:$J,0))","v":{"$error":"#N/A"}},null,0,null,null,null,""]
[null,{"$f":"IF(LEN(A2442)=0,\"\",INDEX('Smelter Look-up'!$A:$A,MATCH($A2442,'Smelter Look-up'!$E:$E,0)))","v":""},{"$f":"IF(LEN(A2442)=0,\"\",INDEX('Smelter Look-up'!$C:$C,MATCH($A2442,'Smelter Look-up'!$E:$E,0)))","v":""},null,{"$f":"IF(ISERROR($V2442),\"\",OFFSET('Smelter Look-up'!$D$4,$V2442-4,0)&\"\")","v":""},{"$f":"IF(ISERROR($V2442),\"\",OFFSET('Smelter Look-up'!$E$4,$V2442-4,0))","v":""},{"$f":"IF(C2442=$X$4,\"Enter smelter details\", IF(ISERROR($V2442),\"\",OFFSET('Smelter Look-up'!$F$4,$V2442-4,0)))","v":""},{"$f":"IF(ISERROR($V2442),\"\",OFFSET('Smelter Look-up'!$G$4,$V2442-4,0))","v":""},{"$f":"IF(ISERROR($V2442),\"\",OFFSET('Smelter Look-up'!$H$4,$V2442-4,0))","v":""},{"$f":"IF(ISERROR($V2442),\"\",OFFSET('Smelter Look-up'!$I$4,$V2442-4,0))","v":""},{"$nulls":7},{"$f":"IF(ISERROR($V2442),\"\",OFFSET('Smelter Look-up'!$C$4,$V2442-4,0)&\"\")","v":""},"",{"$f":"IF(B2442=\"\",\"\",IF(ISERROR(MATCH($J2442,SorP!$B$1:$B$6230,0)),\"\",INDIRECT(\"'SorP'!$A$\"&MATCH($J2442,SorP!$B$1:$B$6230,0))))","v":""},null,{"$f":"IF(C2442=\"\",NA(),MATCH($B2442&$C2442,'Smelter Look-up'!$J:$J,0))","v":{"$error":"#N/A"}},null,0,null,null,null,""]
[null,{"$f":"IF(LEN(A2443)=0,\"\",INDEX('Smelter Look-up'!$A:$A,MATCH($A2443,'Smelter Look-up'!$E:$E,0)))","v":""},{"$f":"IF(LEN(A2443)=0,\"\",INDEX('Smelter Look-up'!$C:$C,MATCH($A2443,'Smelter Look-up'!$E:$E,0)))","v":""},null,{"$f":"IF(ISERROR($V2443),\"\",OFFSET('Smelter Look-up'!$D$4,$V2443-4,0)&\"\")","v":""},{"$f":"IF(ISERROR($V2443),\"\",OFFSET('Smelter Look-up'!$E$4,$V2443-4,0))","v":""},{"$f":"IF(C2443=$X$4,\"Enter smelter details\", IF(ISERROR($V2443),\"\",OFFSET('Smelter Look-up'!$F$4,$V2443-4,0)))","v":""},{"$f":"IF(ISERROR($V2443),\"\",OFFSET('Smelter Look-up'!$G$4,$V2443-4,0))","v":""},{"$f":"IF(ISERROR($V2443),\"\",OFFSET('Smelter Look-up'!$H$4,$V2443-4,0))","v":""},{"$f":"IF(ISERROR($V2443),\"\",OFFSET('Smelter Look-up'!$I$4,$V2443-4,0))","v":""},{"$nulls":7},{"$f":"IF(ISERROR($V2443),\"\",OFFSET('Smelter Look-up'!$C$4,$V2443-4,0)&\"\")","v":""},"",{"$f":"IF(B2443=\"\",\"\",IF(ISERROR(MATCH($J2443,SorP!$B$1:$B$6230,0)),\"\",INDIRECT(\"'SorP'!$A$\"&MATCH($J2443,SorP!$B$1:$B$6230,0))))","v":""},null,{"$f":"IF(C2443=\"\",NA(),MATCH($B2443&$C2443,'Smelter Look-up'!$J:$J,0))","v":{"$error":"#N/A"}},null,0,null,null,null,""]
[null,{"$f":"IF(LEN(A2444)=0,\"\",INDEX('Smelter Look-up'!$A:$A,MATCH($A2444,'Smelter Look-up'!$E:$E,0)))","v":""},{"$f":"IF(LEN(A2444)=0,\"\",INDEX('Smelter Look-up'!$C:$C,MATCH($A2444,'Smelter Look-up'!$E:$E,0)))","v":""},null,{"$f":"IF(ISERROR($V2444),\"\",OFFSET('Smelter Look-up'!$D$4,$V2444-4,0)&\"\")","v":""},{"$f":"IF(ISERROR($V2444),\"\",OFFSET('Smelter Look-up'!$E$4,$V2444-4,0))","v":""},{"$f":"IF(C2444=$X$4,\"Enter smelter details\", IF(ISERROR($V2444),\"\",OFFSET('Smelter Look-up'!$F$4,$V2444-4,0)))","v":""},{"$f":"IF(ISERROR($V2444),\"\",OFFSET('Smelter Look-up'!$G$4,$V2444-4,0))","v":""},{"$f":"IF(ISERROR($V2444),\"\",OFFSET('Smelter Look-up'!$H$4,$V2444-4,0))","v":""},{"$f":"IF(ISERROR($V2444),\"\",OFFSET('Smelter Look-up'!$I$4,$V2444-4,0))","v":""},{"$nulls":7},{"$f":"IF(ISERROR($V2444),\"\",OFFSET('Smelter Look-up'!$C$4,$V2444-4,0)&\"\")","v":""},"",{"$f":"IF(B2444=\"\",\"\",IF(ISERROR(MATCH($J2444,SorP!$B$1:$B$6230,0)),\"\",INDIRECT(\"'SorP'!$A$\"&MATCH($J2444,SorP!$B$1:$B$6230,0))))","v":""},null,{"$f":"IF(C2444=\"\",NA(),MATCH($B2444&$C2444,'Smelter Look-up'!$J:$J,0))","v":{"$error":"#N/A"}},null,0,null,null,null,""]
[null,{"$f":"IF(LEN(A2445)=0,\"\",INDEX('Smelter Look-up'!$A:$A,MATCH($A2445,'Smelter Look-up'!$E:$E,0)))","v":""},{"$f":"IF(LEN(A2445)=0,\"\",INDEX('Smelter Look-up'!$C:$C,MATCH($A2445,'Smelter Look-up'!$E:$E,0)))","v":""},null,{"$f":"IF(ISERROR($V2445),\"\",OFFSET('Smelter Look-up'!$D$4,$V2445-4,0)&\"\")","v":""},{"$f":"IF(ISERROR($V2445),\"\",OFFSET('Smelter Look-up'!$E$4,$V2445-4,0))","v":""},{"$f":"IF(C2445=$X$4,\"Enter smelter details\", IF(ISERROR($V2445),\"\",OFFSET('Smelter Look-up'!$F$4,$V2445-4,0)))","v":""},{"$f":"IF(ISERROR($V2445),\"\",OFFSET('Smelter Look-up'!$G$4,$V2445-4,0))","v":""},{"$f":"IF(ISERROR($V2445),\"\",OFFSET('Smelter Look-up'!$H$4,$V2445-4,0))","v":""},{"$f":"IF(ISERROR($V2445),\"\",OFFSET('Smelter Look-up'!$I$4,$V2445-4,0))","v":""},{"$nulls":7},{"$f":"IF(ISERROR($V2445),\"\",OFFSET('Smelter Look-up'!$C$4,$V2445-4,0)&\"\")","v":""},"",{"$f":"IF(B2445=\"\",\"\",IF(ISERROR(MATCH($J2445,SorP!$B$1:$B$6230,0)),\"\",INDIRECT(\"'SorP'!$A$\"&MATCH($J2445,SorP!$B$1:$B$6230,0))))","v":""},null,{"$f":"IF(C2445=\"\",NA(),MATCH($B2445&$C2445,'Smelter Look-up'!$J:$J,0))","v":{"$error":"#N/A"}},null,0,null,null,null,""]
[null,{"$f":"IF(LEN(A2446)=0,\"\",INDEX('Smelter Look-up'!$A:$A,MATCH($A2446,'Smelter Look-up'!$E:$E,0)))","v":""},{"$f":"IF(LEN(A2446)=0,\"\",INDEX('Smelter Look-up'!$C:$C,MATCH($A2446,'Smelter Look-up'!$E:$E,0)))","v":""},null,{"$f":"IF(ISERROR($V2446),\"\",OFFSET('Smelter Look-up'!$D$4,$V2446-4,0)&\"\")","v":""},{"$f":"IF(ISERROR($V2446),\"\",OFFSET('Smelter Look-up'!$E$4,$V2446-4,0))","v":""},{"$f":"IF(C2446=$X$4,\"Enter smelter details\", IF(ISERROR($V2446),\"\",OFFSET('Smelter Look-up'!$F$4,$V2446-4,0)))","v":""},{"$f":"IF(ISERROR($V2446),\"\",OFFSET('Smelter Look-up'!$G$4,$V2446-4,0))","v":""},{"$f":"IF(ISERROR($V2446),\"\",OFFSET('Smelter Look-up'!$H$4,$V2446-4,0))","v":""},{"$f":"IF(ISERROR($V2446),\"\",OFFSET('Smelter Look-up'!$I$4,$V2446-4,0))","v":""},{"$nulls":7},{"$f":"IF(ISERROR($V2446),\"\",OFFSET('Smelter Look-up'!$C$4,$V2446-4,0)&\"\")","v":""},"",{"$f":"IF(B2446=\"\",\"\",IF(ISERROR(MATCH($J2446,SorP!$B$1:$B$6230,0)),\"\",INDIRECT(\"'SorP'!$A$\"&MATCH($J2446,SorP!$B$1:$B$6230,0))))","v":""},null,{"$f":"IF(C2446=\"\",NA(),MATCH($B2446&$C2446,'Smelter Look-up'!$J:$J,0))","v":{"$error":"#N/A"}},null,0,null,null,null,""]
[null,{"$f":"IF(LEN(A2447)=0,\"\",INDEX('Smelter Look-up'!$A:$A,MATCH($A2447,'Smelter Look-up'!$E:$E,0)))","v":""},{"$f":"IF(LEN(A2447)=0,\"\",INDEX('Smelter Look-up'!$C:$C,MATCH($A2447,'Smelter Look-up'!$E:$E,0)))","v":""},null,{"$f":"IF(ISERROR($V2447),\"\",OFFSET('Smelter Look-up'!$D$4,$V2447-4,0)&\"\")","v":""},{"$f":"IF(ISERROR($V2447),\"\",OFFSET('Smelter Look-up'!$E$4,$V2447-4,0))","v":""},{"$f":"IF(C2447=$X$4,\"Enter smelter details\", IF(ISERROR($V2447),\"\",OFFSET('Smelter Look-up'!$F$4,$V2447-4,0)))","v":""},{"$f":"IF(ISERROR($V2447),\"\",OFFSET('Smelter Look-up'!$G$4,$V2447-4,0))","v":""},{"$f":"IF(ISERROR($V2447),\"\",OFFSET('Smelter Look-up'!$H$4,$V2447-4,0))","v":""},{"$f":"IF(ISERROR($V2447),\"\",OFFSET('Smelter Look-up'!$I$4,$V2447-4,0))","v":""},{"$nulls":7},{"$f":"IF(ISERROR($V2447),\"\",OFFSET('Smelter Look-up'!$C$4,$V2447-4,0)&\"\")","v":""},"",{"$f":"IF(B2447=\"\",\"\",IF(ISERROR(MATCH($J2447,SorP!$B$1:$B$6230,0)),\"\",INDIRECT(\"'SorP'!$A$\"&MATCH($J2447,SorP!$B$1:$B$6230,0))))","v":""},null,{"$f":"IF(C2447=\"\",NA(),MATCH($B2447&$C2447,'Smelter Look-up'!$J:$J,0))","v":{"$error":"#N/A"}},null,0,null,null,null,""]
[null,{"$f":"IF(LEN(A2448)=0,\"\",INDEX('Smelter Look-up'!$A:$A,MATCH($A2448,'Smelter Look-up'!$E:$E,0)))","v":""},{"$f":"IF(LEN(A2448)=0,\"\",INDEX('Smelter Look-up'!$C:$C,MATCH($A2448,'Smelter Look-up'!$E:$E,0)))","v":""},null,{"$f":"IF(ISERROR($V2448),\"\",OFFSET('Smelter Look-up'!$D$4,$V2448-4,0)&\"\")","v":""},{"$f":"IF(ISERROR($V2448),\"\",OFFSET('Smelter Look-up'!$E$4,$V2448-4,0))","v":""},{"$f":"IF(C2448=$X$4,\"Enter smelter details\", IF(ISERROR($V2448),\"\",OFFSET('Smelter Look-up'!$F$4,$V2448-4,0)))","v":""},{"$f":"IF(ISERROR($V2448),\"\",OFFSET('Smelter Look-up'!$G$4,$V2448-4,0))","v":""},{"$f":"IF(ISERROR($V2448),\"\",OFFSET('Smelter Look-up'!$H$4,$V2448-4,0))","v":""},{"$f":"IF(ISERROR($V2448),\"\",OFFSET('Smelter Look-up'!$I$4,$V2448-4,0))","v":""},{"$nulls":7},{"$f":"IF(ISERROR($V2448),\"\",OFFSET('Smelter Look-up'!$C$4,$V2448-4,0)&\"\")","v":""},"",{"$f":"IF(B2448=\"\",\"\",IF(ISERROR(MATCH($J2448,SorP!$B$1:$B$6230,0)),\"\",INDIRECT(\"'SorP'!$A$\"&MATCH($J2448,SorP!$B$1:$B$6230,0))))","v":""},null,{"$f":"IF(C2448=\"\",NA(),MATCH($B2448&$C2448,'Smelter Look-up'!$J:$J,0))","v":{"$error":"#N/A"}},null,0,null,null,null,""]
[null,{"$f":"IF(LEN(A2449)=0,\"\",INDEX('Smelter Look-up'!$A:$A,MATCH($A2449,'Smelter Look-up'!$E:$E,0)))","v":""},{"$f":"IF(LEN(A2449)=0,\"\",INDEX('Smelter Look-up'!$C:$C,MATCH($A2449,'Smelter Look-up'!$E:$E,0)))","v":""},null,{"$f":"IF(ISERROR($V2449),\"\",OFFSET('Smelter Look-up'!$D$4,$V2449-4,0)&\"\")","v":""},{"$f":"IF(ISERROR($V2449),\"\",OFFSET('Smelter Look-up'!$E$4,$V2449-4,0))","v":""},{"$f":"IF(C2449=$X$4,\"Enter smelter details\", IF(ISERROR($V2449),\"\",OFFSET('Smelter Look-up'!$F$4,$V2449-4,0)))","v":""},{"$f":"IF(ISERROR($V2449),\"\",OFFSET('Smelter Look-up'!$G$4,$V2449-4,0))","v":""},{"$f":"IF(ISERROR($V2449),\"\",OFFSET('Smelter Look-up'!$H$4,$V2449-4,0))","v":""},{"$f":"IF(ISERROR($V2449),\"\",OFFSET('Smelter Look-up'!$I$4,$V2449-4,0))","v":""},{"$nulls":7},{"$f":"IF(ISERROR($V2449),\"\",OFFSET('Smelter Look-up'!$C$4,$V2449-4,0)&\"\")","v":""},"",{"$f":"IF(B2449=\"\",\"\",IF(ISERROR(MATCH($J2449,SorP!$B$1:$B$6230,0)),\"\",INDIRECT(\"'SorP'!$A$\"&MATCH($J2449,SorP!$B$1:$B$6230,0))))","v":""},null,{"$f":"IF(C2449=\"\",NA(),MATCH($B2449&$C2449,'Smelter Look-up'!$J:$J,0))","v":{"$error":"#N/A"}},null,0,null,null,null,""]
[null,{"$f":"IF(LEN(A2450)=0,\"\",INDEX('Smelter Look-up'!$A:$A,MATCH($A2450,'Smelter Look-up'!$E:$E,0)))","v":""},{"$f":"IF(LEN(A2450)=0,\"\",INDEX('Smelter Look-up'!$C:$C,MATCH($A2450,'Smelter Look-up'!$E:$E,0)))","v":""},null,{"$f":"IF(ISERROR($V2450),\"\",OFFSET('Smelter Look-up'!$D$4,$V2450-4,0)&\"\")","v":""},{"$f":"IF(ISERROR($V2450),\"\",OFFSET('Smelter Look-up'!$E$4,$V2450-4,0))","v":""},{"$f":"IF(C2450=$X$4,\"Enter smelter details\", IF(ISERROR($V2450),\"\",OFFSET('Smelter Look-up'!$F$4,$V2450-4,0)))","v":""},{"$f":"IF(ISERROR($V2450),\"\",OFFSET('Smelter Look-up'!$G$4,$V2450-4,0))","v":""},{"$f":"IF(ISERROR($V2450),\"\",OFFSET('Smelter Look-up'!$H$4,$V2450-4,0))","v":""},{"$f":"IF(ISERROR($V2450),\"\",OFFSET('Smelter Look-up'!$I$4,$V2450-4,0))","v":""},{"$nulls":7},{"$f":"IF(ISERROR($V2450),\"\",OFFSET('Smelter Look-up'!$C$4,$V2450-4,0)&\"\")","v":""},"",{"$f":"IF(B2450=\"\",\"\",IF(ISERROR(MATCH($J2450,SorP!$B$1:$B$6230,0)),\"\",INDIRECT(\"'SorP'!$A$\"&MATCH($J2450,SorP!$B$1:$B$6230,0))))","v":""},null,{"$f":"IF(C2450=\"\",NA(),MATCH($B2450&$C2450,'Smelter Look-up'!$J:$J,0))","v":{"$error":"#N/A"}},null,0,null,null,null,""]
[null,{"$f":"IF(LEN(A2451)=0,\"\",INDEX('Smelter Look-up'!$A:$A,MATCH($A2451,'Smelter Look-up'!$E:$E,0)))","v":""},{"$f":"IF(LEN(A2451)=0,\"\",INDEX('Smelter Look-up'!$C:$C,MATCH($A2451,'Smelter Look-up'!$E:$E,0)))","v":""},null,{"$f":"IF(ISERROR($V2451),\"\",OFFSET('Smelter Look-up'!$D$4,$V2451-4,0)&\"\")","v":""},{"$f":"IF(ISERROR($V2451),\"\",OFFSET('Smelter Look-up'!$E$4,$V2451-4,0))","v":""},{"$f":"IF(C2451=$X$4,\"Enter smelter details\", IF(ISERROR($V2451),\"\",OFFSET('Smelter Look-up'!$F$4,$V2451-4,0)))","v":""},{"$f":"IF(ISERROR($V2451),\"\",OFFSET('Smelter Look-up'!$G$4,$V2451-4,0))","v":""},{"$f":"IF(ISERROR($V2451),\"\",OFFSET('Smelter Look-up'!$H$4,$V2451-4,0))","v":""},{"$f":"IF(ISERROR($V2451),\"\",OFFSET('Smelter Look-up'!$I$4,$V2451-4,0))","v":""},{"$nulls":7},{"$f":"IF(ISERROR($V2451),\"\",OFFSET('Smelter Look-up'!$C$4,$V2451-4,0)&\"\")","v":""},"",{"$f":"IF(B2451=\"\",\"\",IF(ISERROR(MATCH($J2451,SorP!$B$1:$B$6230,0)),\"\",INDIRECT(\"'SorP'!$A$\"&MATCH($J2451,SorP!$B$1:$B$6230,0))))","v":""},null,{"$f":"IF(C2451=\"\",NA(),MATCH($B2451&$C2451,'Smelter Look-up'!$J:$J,0))","v":{"$error":"#N/A"}},null,0,null,null,null,""]
[null,{"$f":"IF(LEN(A2452)=0,\"\",INDEX('Smelter Look-up'!$A:$A,MATCH($A2452,'Smelter Look-up'!$E:$E,0)))","v":""},{"$f":"IF(LEN(A2452)=0,\"\",INDEX('Smelter Look-up'!$C:$C,MATCH($A2452,'Smelter Look-up'!$E:$E,0)))","v":""},null,{"$f":"IF(ISERROR($V2452),\"\",OFFSET('Smelter Look-up'!$D$4,$V2452-4,0)&\"\")","v":""},{"$f":"IF(ISERROR($V2452),\"\",OFFSET('Smelter Look-up'!$E$4,$V2452-4,0))","v":""},{"$f":"IF(C2452=$X$4,\"Enter smelter details\", IF(ISERROR($V2452),\"\",OFFSET('Smelter Look-up'!$F$4,$V2452-4,0)))","v":""},{"$f":"IF(ISERROR($V2452),\"\",OFFSET('Smelter Look-up'!$G$4,$V2452-4,0))","v":""},{"$f":"IF(ISERROR($V2452),\"\",OFFSET('Smelter Look-up'!$H$4,$V2452-4,0))","v":""},{"$f":"IF(ISERROR($V2452),\"\",OFFSET('Smelter Look-up'!$I$4,$V2452-4,0))","v":""},{"$nulls":7},{"$f":"IF(ISERROR($V2452),\"\",OFFSET('Smelter Look-up'!$C$4,$V2452-4,0)&\"\")","v":""},"",{"$f":"IF(B2452=\"\",\"\",IF(ISERROR(MATCH($J2452,SorP!$B$1:$B$6230,0)),\"\",INDIRECT(\"'SorP'!$A$\"&MATCH($J2452,SorP!$B$1:$B$6230,0))))","v":""},null,{"$f":"IF(C2452=\"\",NA(),MATCH($B2452&$C2452,'Smelter Look-up'!$J:$J,0))","v":{"$error":"#N/A"}},null,0,null,null,null,""]
[null,{"$f":"IF(LEN(A2453)=0,\"\",INDEX('Smelter Look-up'!$A:$A,MATCH($A2453,'Smelter Look-up'!$E:$E,0)))","v":""},{"$f":"IF(LEN(A2453)=0,\"\",INDEX('Smelter Look-up'!$C:$C,MATCH($A2453,'Smelter Look-up'!$E:$E,0)))","v":""},null,{"$f":"IF(ISERROR($V2453),\"\",OFFSET('Smelter Look-up'!$D$4,$V2453-4,0)&\"\")","v":""},{"$f":"IF(ISERROR($V2453),\"\",OFFSET('Smelter Look-up'!$E$4,$V2453-4,0))","v":""},{"$f":"IF(C2453=$X$4,\"Enter smelter details\", IF(ISERROR($V2453),\"\",OFFSET('Smelter Look-up'!$F$4,$V2453-4,0)))","v":""},{"$f":"IF(ISERROR($V2453),\"\",OFFSET('Smelter Look-up'!$G$4,$V2453-4,0))","v":""},{"$f":"IF(ISERROR($V2453),\"\",OFFSET('Smelter Look-up'!$H$4,$V2453-4,0))","v":""},{"$f":"IF(ISERROR($V2453),\"\",OFFSET('Smelter Look-up'!$I$4,$V2453-4,0))","v":""},{"$nulls":7},{"$f":"IF(ISERROR($V2453),\"\",OFFSET('Smelter Look-up'!$C$4,$V2453-4,0)&\"\")","v":""},"",{"$f":"IF(B2453=\"\",\"\",IF(ISERROR(MATCH($J2453,SorP!$B$1:$B$6230,0)),\"\",INDIRECT(\"'SorP'!$A$\"&MATCH($J2453,SorP!$B$1:$B$6230,0))))","v":""},null,{"$f":"IF(C2453=\"\",NA(),MATCH($B2453&$C2453,'Smelter Look-up'!$J:$J,0))","v":{"$error":"#N/A"}},null,0,null,null,null,""]
[null,{"$f":"IF(LEN(A2454)=0,\"\",INDEX('Smelter Look-up'!$A:$A,MATCH($A2454,'Smelter Look-up'!$E:$E,0)))","v":""},{"$f":"IF(LEN(A2454)=0,\"\",INDEX('Smelter Look-up'!$C:$C,MATCH($A2454,'Smelter Look-up'!$E:$E,0)))","v":""},null,{"$f":"IF(ISERROR($V2454),\"\",OFFSET('Smelter Look-up'!$D$4,$V2454-4,0)&\"\")","v":""},{"$f":"IF(ISERROR($V2454),\"\",OFFSET('Smelter Look-up'!$E$4,$V2454-4,0))","v":""},{"$f":"IF(C2454=$X$4,\"Enter smelter details\", IF(ISERROR($V2454),\"\",OFFSET('Smelter Look-up'!$F$4,$V2454-4,0)))","v":""},{"$f":"IF(ISERROR($V2454),\"\",OFFSET('Smelter Look-up'!$G$4,$V2454-4,0))","v":""},{"$f":"IF(ISERROR($V2454),\"\",OFFSET('Smelter Look-up'!$H$4,$V2454-4,0))","v":""},{"$f":"IF(ISERROR($V2454),\"\",OFFSET('Smelter Look-up'!$I$4,$V2454-4,0))","v":""},{"$nulls":7},{"$f":"IF(ISERROR($V2454),\"\",OFFSET('Smelter Look-up'!$C$4,$V2454-4,0)&\"\")","v":""},"",{"$f":"IF(B2454=\"\",\"\",IF(ISERROR(MATCH($J2454,SorP!$B$1:$B$6230,0)),\"\",INDIRECT(\"'SorP'!$A$\"&MATCH($J2454,SorP!$B$1:$B$6230,0))))","v":""},null,{"$f":"IF(C2454=\"\",NA(),MATCH($B2454&$C2454,'Smelter Look-up'!$J:$J,0))","v":{"$error":"#N/A"}},null,0,null,null,null,""]
[null,{"$f":"IF(LEN(A2455)=0,\"\",INDEX('Smelter Look-up'!$A:$A,MATCH($A2455,'Smelter Look-up'!$E:$E,0)))","v":""},{"$f":"IF(LEN(A2455)=0,\"\",INDEX('Smelter Look-up'!$C:$C,MATCH($A2455,'Smelter Look-up'!$E:$E,0)))","v":""},null,{"$f":"IF(ISERROR($V2455),\"\",OFFSET('Smelter Look-up'!$D$4,$V2455-4,0)&\"\")","v":""},{"$f":"IF(ISERROR($V2455),\"\",OFFSET('Smelter Look-up'!$E$4,$V2455-4,0))","v":""},{"$f":"IF(C2455=$X$4,\"Enter smelter details\", IF(ISERROR($V2455),\"\",OFFSET('Smelter Look-up'!$F$4,$V2455-4,0)))","v":""},{"$f":"IF(ISERROR($V2455),\"\",OFFSET('Smelter Look-up'!$G$4,$V2455-4,0))","v":""},{"$f":"IF(ISERROR($V2455),\"\",OFFSET('Smelter Look-up'!$H$4,$V2455-4,0))","v":""},{"$f":"IF(ISERROR($V2455),\"\",OFFSET('Smelter Look-up'!$I$4,$V2455-4,0))","v":""},{"$nulls":7},{"$f":"IF(ISERROR($V2455),\"\",OFFSET('Smelter Look-up'!$C$4,$V2455-4,0)&\"\")","v":""},"",{"$f":"IF(B2455=\"\",\"\",IF(ISERROR(MATCH($J2455,SorP!$B$1:$B$6230,0)),\"\",INDIRECT(\"'SorP'!$A$\"&MATCH($J2455,SorP!$B$1:$B$6230,0))))","v":""},null,{"$f":"IF(C2455=\"\",NA(),MATCH($B2455&$C2455,'Smelter Look-up'!$J:$J,0))","v":{"$error":"#N/A"}},null,0,null,null,null,""]
[null,{"$f":"IF(LEN(A2456)=0,\"\",INDEX('Smelter Look-up'!$A:$A,MATCH($A2456,'Smelter Look-up'!$E:$E,0)))","v":""},{"$f":"IF(LEN(A2456)=0,\"\",INDEX('Smelter Look-up'!$C:$C,MATCH($A2456,'Smelter Look-up'!$E:$E,0)))","v":""},null,{"$f":"IF(ISERROR($V2456),\"\",OFFSET('Smelter Look-up'!$D$4,$V2456-4,0)&\"\")","v":""},{"$f":"IF(ISERROR($V2456),\"\",OFFSET('Smelter Look-up'!$E$4,$V2456-4,0))","v":""},{"$f":"IF(C2456=$X$4,\"Enter smelter details\", IF(ISERROR($V2456),\"\",OFFSET('Smelter Look-up'!$F$4,$V2456-4,0)))","v":""},{"$f":"IF(ISERROR($V2456),\"\",OFFSET('Smelter Look-up'!$G$4,$V2456-4,0))","v":""},{"$f":"IF(ISERROR($V2456),\"\",OFFSET('Smelter Look-up'!$H$4,$V2456-4,0))","v":""},{"$f":"IF(ISERROR($V2456),\"\",OFFSET('Smelter Look-up'!$I$4,$V2456-4,0))","v":""},{"$nulls":7},{"$f":"IF(ISERROR($V2456),\"\",OFFSET('Smelter Look-up'!$C$4,$V2456-4,0)&\"\")","v":""},"",{"$f":"IF(B2456=\"\",\"\",IF(ISERROR(MATCH($J2456,SorP!$B$1:$B$6230,0)),\"\",INDIRECT(\"'SorP'!$A$\"&MATCH($J2456,SorP!$B$1:$B$6230,0))))","v":""},null,{"$f":"IF(C2456=\"\",NA(),MATCH($B2456&$C2456,'Smelter Look-up'!$J:$J,0))","v":{"$error":"#N/A"}},null,0,null,null,null,""]
[null,{"$f":"IF(LEN(A2457)=0,\"\",INDEX('Smelter Look-up'!$A:$A,MATCH($A2457,'Smelter Look-up'!$E:$E,0)))","v":""},{"$f":"IF(LEN(A2457)=0,\"\",INDEX('Smelter Look-up'!$C:$C,MATCH($A2457,'Smelter Look-up'!$E:$E,0)))","v":""},null,{"$f":"IF(ISERROR($V2457),\"\",OFFSET('Smelter Look-up'!$D$4,$V2457-4,0)&\"\")","v":""},{"$f":"IF(ISERROR($V2457),\"\",OFFSET('Smelter Look-up'!$E$4,$V2457-4,0))","v":""},{"$f":"IF(C2457=$X$4,\"Enter smelter details\", IF(ISERROR($V2457),\"\",OFFSET('Smelter Look-up'!$F$4,$V2457-4,0)))","v":""},{"$f":"IF(ISERROR($V2457),\"\",OFFSET('Smelter Look-up'!$G$4,$V2457-4,0))","v":""},{"$f":"IF(ISERROR($V2457),\"\",OFFSET('Smelter Look-up'!$H$4,$V2457-4,0))","v":""},{"$f":"IF(ISERROR($V2457),\"\",OFFSET('Smelter Look-up'!$I$4,$V2457-4,0))","v":""},{"$nulls":7},{"$f":"IF(ISERROR($V2457),\"\",OFFSET('Smelter Look-up'!$C$4,$V2457-4,0)&\"\")","v":""},"",{"$f":"IF(B2457=\"\",\"\",IF(ISERROR(MATCH($J2457,SorP!$B$1:$B$6230,0)),\"\",INDIRECT(\"'SorP'!$A$\"&MATCH($J2457,SorP!$B$1:$B$6230,0))))","v":""},null,{"$f":"IF(C2457=\"\",NA(),MATCH($B2457&$C2457,'Smelter Look-up'!$J:$J,0))","v":{"$error":"#N/A"}},null,0,null,null,null,""]
[null,{"$f":"IF(LEN(A2458)=0,\"\",INDEX('Smelter Look-up'!$A:$A,MATCH($A2458,'Smelter Look-up'!$E:$E,0)))","v":""},{"$f":"IF(LEN(A2458)=0,\"\",INDEX('Smelter Look-up'!$C:$C,MATCH($A2458,'Smelter Look-up'!$E:$E,0)))","v":""},null,{"$f":"IF(ISERROR($V2458),\"\",OFFSET('Smelter Look-up'!$D$4,$V2458-4,0)&\"\")","v":""},{"$f":"IF(ISERROR($V2458),\"\",OFFSET('Smelter Look-up'!$E$4,$V2458-4,0))","v":""},{"$f":"IF(C2458=$X$4,\"Enter smelter details\", IF(ISERROR($V2458),\"\",OFFSET('Smelter Look-up'!$F$4,$V2458-4,0)))","v":""},{"$f":"IF(ISERROR($V2458),\"\",OFFSET('Smelter Look-up'!$G$4,$V2458-4,0))","v":""},{"$f":"IF(ISERROR($V2458),\"\",OFFSET('Smelter Look-up'!$H$4,$V2458-4,0))","v":""},{"$f":"IF(ISERROR($V2458),\"\",OFFSET('Smelter Look-up'!$I$4,$V2458-4,0))","v":""},{"$nulls":7},{"$f":"IF(ISERROR($V2458),\"\",OFFSET('Smelter Look-up'!$C$4,$V2458-4,0)&\"\")","v":""},"",{"$f":"IF(B2458=\"\",\"\",IF(ISERROR(MATCH($J2458,SorP!$B$1:$B$6230,0)),\"\",INDIRECT(\"'SorP'!$A$\"&MATCH($J2458,SorP!$B$1:$B$6230,0))))","v":""},null,{"$f":"IF(C2458=\"\",NA(),MATCH($B2458&$C2458,'Smelter Look-up'!$J:$J,0))","v":{"$error":"#N/A"}},null,0,null,null,null,""]
[null,{"$f":"IF(LEN(A2459)=0,\"\",INDEX('Smelter Look-up'!$A:$A,MATCH($A2459,'Smelter Look-up'!$E:$E,0)))","v":""},{"$f":"IF(LEN(A2459)=0,\"\",INDEX('Smelter Look-up'!$C:$C,MATCH($A2459,'Smelter Look-up'!$E:$E,0)))","v":""},null,{"$f":"IF(ISERROR($V2459),\"\",OFFSET('Smelter Look-up'!$D$4,$V2459-4,0)&\"\")","v":""},{"$f":"IF(ISERROR($V2459),\"\",OFFSET('Smelter Look-up'!$E$4,$V2459-4,0))","v":""},{"$f":"IF(C2459=$X$4,\"Enter smelter details\", IF(ISERROR($V2459),\"\",OFFSET('Smelter Look-up'!$F$4,$V2459-4,0)))","v":""},{"$f":"IF(ISERROR($V2459),\"\",OFFSET('Smelter Look-up'!$G$4,$V2459-4,0))","v":""},{"$f":"IF(ISERROR($V2459),\"\",OFFSET('Smelter Look-up'!$H$4,$V2459-4,0))","v":""},{"$f":"IF(ISERROR($V2459),\"\",OFFSET('Smelter Look-up'!$I$4,$V2459-4,0))","v":""},{"$nulls":7},{"$f":"IF(ISERROR($V2459),\"\",OFFSET('Smelter Look-up'!$C$4,$V2459-4,0)&\"\")","v":""},"",{"$f":"IF(B2459=\"\",\"\",IF(ISERROR(MATCH($J2459,SorP!$B$1:$B$6230,0)),\"\",INDIRECT(\"'SorP'!$A$\"&MATCH($J2459,SorP!$B$1:$B$6230,0))))","v":""},null,{"$f":"IF(C2459=\"\",NA(),MATCH($B2459&$C2459,'Smelter Look-up'!$J:$J,0))","v":{"$error":"#N/A"}},null,0,null,null,null,""]
[null,{"$f":"IF(LEN(A2460)=0,\"\",INDEX('Smelter Look-up'!$A:$A,MATCH($A2460,'Smelter Look-up'!$E:$E,0)))","v":""},{"$f":"IF(LEN(A2460)=0,\"\",INDEX('Smelter Look-up'!$C:$C,MATCH($A2460,'Smelter Look-up'!$E:$E,0)))","v":""},null,{"$f":"IF(ISERROR($V2460),\"\",OFFSET('Smelter Look-up'!$D$4,$V2460-4,0)&\"\")","v":""},{"$f":"IF(ISERROR($V2460),\"\",OFFSET('Smelter Look-up'!$E$4,$V2460-4,0))","v":""},{"$f":"IF(C2460=$X$4,\"Enter smelter details\", IF(ISERROR($V2460),\"\",OFFSET('Smelter Look-up'!$F$4,$V2460-4,0)))","v":""},{"$f":"IF(ISERROR($V2460),\"\",OFFSET('Smelter Look-up'!$G$4,$V2460-4,0))","v":""},{"$f":"IF(ISERROR($V2460),\"\",OFFSET('Smelter Look-up'!$H$4,$V2460-4,0))","v":""},{"$f":"IF(ISERROR($V2460),\"\",OFFSET('Smelter Look-up'!$I$4,$V2460-4,0))","v":""},{"$nulls":7},{"$f":"IF(ISERROR($V2460),\"\",OFFSET('Smelter Look-up'!$C$4,$V2460-4,0)&\"\")","v":""},"",{"$f":"IF(B2460=\"\",\"\",IF(ISERROR(MATCH($J2460,SorP!$B$1:$B$6230,0)),\"\",INDIRECT(\"'SorP'!$A$\"&MATCH($J2460,SorP!$B$1:$B$6230,0))))","v":""},null,{"$f":"IF(C2460=\"\",NA(),MATCH($B2460&$C2460,'Smelter Look-up'!$J:$J,0))","v":{"$error":"#N/A"}},null,0,null,null,null,""]
[null,{"$f":"IF(LEN(A2461)=0,\"\",INDEX('Smelter Look-up'!$A:$A,MATCH($A2461,'Smelter Look-up'!$E:$E,0)))","v":""},{"$f":"IF(LEN(A2461)=0,\"\",INDEX('Smelter Look-up'!$C:$C,MATCH($A2461,'Smelter Look-up'!$E:$E,0)))","v":""},null,{"$f":"IF(ISERROR($V2461),\"\",OFFSET('Smelter Look-up'!$D$4,$V2461-4,0)&\"\")","v":""},{"$f":"IF(ISERROR($V2461),\"\",OFFSET('Smelter Look-up'!$E$4,$V2461-4,0))","v":""},{"$f":"IF(C2461=$X$4,\"Enter smelter details\", IF(ISERROR($V2461),\"\",OFFSET('Smelter Look-up'!$F$4,$V2461-4,0)))","v":""},{"$f":"IF(ISERROR($V2461),\"\",OFFSET('Smelter Look-up'!$G$4,$V2461-4,0))","v":""},{"$f":"IF(ISERROR($V2461),\"\",OFFSET('Smelter Look-up'!$H$4,$V2461-4,0))","v":""},{"$f":"IF(ISERROR($V2461),\"\",OFFSET('Smelter Look-up'!$I$4,$V2461-4,0))","v":""},{"$nulls":7},{"$f":"IF(ISERROR($V2461),\"\",OFFSET('Smelter Look-up'!$C$4,$V2461-4,0)&\"\")","v":""},"",{"$f":"IF(B2461=\"\",\"\",IF(ISERROR(MATCH($J2461,SorP!$B$1:$B$6230,0)),\"\",INDIRECT(\"'SorP'!$A$\"&MATCH($J2461,SorP!$B$1:$B$6230,0))))","v":""},null,{"$f":"IF(C2461=\"\",NA(),MATCH($B2461&$C2461,'Smelter Look-up'!$J:$J,0))","v":{"$error":"#N/A"}},null,0,null,null,null,""]
[null,{"$f":"IF(LEN(A2462)=0,\"\",INDEX('Smelter Look-up'!$A:$A,MATCH($A2462,'Smelter Look-up'!$E:$E,0)))","v":""},{"$f":"IF(LEN(A2462)=0,\"\",INDEX('Smelter Look-up'!$C:$C,MATCH($A2462,'Smelter Look-up'!$E:$E,0)))","v":""},null,{"$f":"IF(ISERROR($V2462),\"\",OFFSET('Smelter Look-up'!$D$4,$V2462-4,0)&\"\")","v":""},{"$f":"IF(ISERROR($V2462),\"\",OFFSET('Smelter Look-up'!$E$4,$V2462-4,0))","v":""},{"$f":"IF(C2462=$X$4,\"Enter smelter details\", IF(ISERROR($V2462),\"\",OFFSET('Smelter Look-up'!$F$4,$V2462-4,0)))","v":""},{"$f":"IF(ISERROR($V2462),\"\",OFFSET('Smelter Look-up'!$G$4,$V2462-4,0))","v":""},{"$f":"IF(ISERROR($V2462),\"\",OFFSET('Smelter Look-up'!$H$4,$V2462-4,0))","v":""},{"$f":"IF(ISERROR($V2462),\"\",OFFSET('Smelter Look-up'!$I$4,$V2462-4,0))","v":""},{"$nulls":7},{"$f":"IF(ISERROR($V2462),\"\",OFFSET('Smelter Look-up'!$C$4,$V2462-4,0)&\"\")","v":""},"",{"$f":"IF(B2462=\"\",\"\",IF(ISERROR(MATCH($J2462,SorP!$B$1:$B$6230,0)),\"\",INDIRECT(\"'SorP'!$A$\"&MATCH($J2462,SorP!$B$1:$B$6230,0))))","v":""},null,{"$f":"IF(C2462=\"\",NA(),MATCH($B2462&$C2462,'Smelter Look-up'!$J:$J,0))","v":{"$error":"#N/A"}},null,0,null,null,null,""]
[null,{"$f":"IF(LEN(A2463)=0,\"\",INDEX('Smelter Look-up'!$A:$A,MATCH($A2463,'Smelter Look-up'!$E:$E,0)))","v":""},{"$f":"IF(LEN(A2463)=0,\"\",INDEX('Smelter Look-up'!$C:$C,MATCH($A2463,'Smelter Look-up'!$E:$E,0)))","v":""},null,{"$f":"IF(ISERROR($V2463),\"\",OFFSET('Smelter Look-up'!$D$4,$V2463-4,0)&\"\")","v":""},{"$f":"IF(ISERROR($V2463),\"\",OFFSET('Smelter Look-up'!$E$4,$V2463-4,0))","v":""},{"$f":"IF(C2463=$X$4,\"Enter smelter details\", IF(ISERROR($V2463),\"\",OFFSET('Smelter Look-up'!$F$4,$V2463-4,0)))","v":""},{"$f":"IF(ISERROR($V2463),\"\",OFFSET('Smelter Look-up'!$G$4,$V2463-4,0))","v":""},{"$f":"IF(ISERROR($V2463),\"\",OFFSET('Smelter Look-up'!$H$4,$V2463-4,0))","v":""},{"$f":"IF(ISERROR($V2463),\"\",OFFSET('Smelter Look-up'!$I$4,$V2463-4,0))","v":""},{"$nulls":7},{"$f":"IF(ISERROR($V2463),\"\",OFFSET('Smelter Look-up'!$C$4,$V2463-4,0)&\"\")","v":""},"",{"$f":"IF(B2463=\"\",\"\",IF(ISERROR(MATCH($J2463,SorP!$B$1:$B$6230,0)),\"\",INDIRECT(\"'SorP'!$A$\"&MATCH($J2463,SorP!$B$1:$B$6230,0))))","v":""},null,{"$f":"IF(C2463=\"\",NA(),MATCH($B2463&$C2463,'Smelter Look-up'!$J:$J,0))","v":{"$error":"#N/A"}},null,0,null,null,null,""]
[null,{"$f":"IF(LEN(A2464)=0,\"\",INDEX('Smelter Look-up'!$A:$A,MATCH($A2464,'Smelter Look-up'!$E:$E,0)))","v":""},{"$f":"IF(LEN(A2464)=0,\"\",INDEX('Smelter Look-up'!$C:$C,MATCH($A2464,'Smelter Look-up'!$E:$E,0)))","v":""},null,{"$f":"IF(ISERROR($V2464),\"\",OFFSET('Smelter Look-up'!$D$4,$V2464-4,0)&\"\")","v":""},{"$f":"IF(ISERROR($V2464),\"\",OFFSET('Smelter Look-up'!$E$4,$V2464-4,0))","v":""},{"$f":"IF(C2464=$X$4,\"Enter smelter details\", IF(ISERROR($V2464),\"\",OFFSET('Smelter Look-up'!$F$4,$V2464-4,0)))","v":""},{"$f":"IF(ISERROR($V2464),\"\",OFFSET('Smelter Look-up'!$G$4,$V2464-4,0))","v":""},{"$f":"IF(ISERROR($V2464),\"\",OFFSET('Smelter Look-up'!$H$4,$V2464-4,0))","v":""},{"$f":"IF(ISERROR($V2464),\"\",OFFSET('Smelter Look-up'!$I$4,$V2464-4,0))","v":""},{"$nulls":7},{"$f":"IF(ISERROR($V2464),\"\",OFFSET('Smelter Look-up'!$C$4,$V2464-4,0)&\"\")","v":""},"",{"$f":"IF(B2464=\"\",\"\",IF(ISERROR(MATCH($J2464,SorP!$B$1:$B$6230,0)),\"\",INDIRECT(\"'SorP'!$A$\"&MATCH($J2464,SorP!$B$1:$B$6230,0))))","v":""},null,{"$f":"IF(C2464=\"\",NA(),MATCH($B2464&$C2464,'Smelter Look-up'!$J:$J,0))","v":{"$error":"#N/A"}},null,0,null,null,null,""]
[null,{"$f":"IF(LEN(A2465)=0,\"\",INDEX('Smelter Look-up'!$A:$A,MATCH($A2465,'Smelter Look-up'!$E:$E,0)))","v":""},{"$f":"IF(LEN(A2465)=0,\"\",INDEX('Smelter Look-up'!$C:$C,MATCH($A2465,'Smelter Look-up'!$E:$E,0)))","v":""},null,{"$f":"IF(ISERROR($V2465),\"\",OFFSET('Smelter Look-up'!$D$4,$V2465-4,0)&\"\")","v":""},{"$f":"IF(ISERROR($V2465),\"\",OFFSET('Smelter Look-up'!$E$4,$V2465-4,0))","v":""},{"$f":"IF(C2465=$X$4,\"Enter smelter details\", IF(ISERROR($V2465),\"\",OFFSET('Smelter Look-up'!$F$4,$V2465-4,0)))","v":""},{"$f":"IF(ISERROR($V2465),\"\",OFFSET('Smelter Look-up'!$G$4,$V2465-4,0))","v":""},{"$f":"IF(ISERROR($V2465),\"\",OFFSET('Smelter Look-up'!$H$4,$V2465-4,0))","v":""},{"$f":"IF(ISERROR($V2465),\"\",OFFSET('Smelter Look-up'!$I$4,$V2465-4,0))","v":""},{"$nulls":7},{"$f":"IF(ISERROR($V2465),\"\",OFFSET('Smelter Look-up'!$C$4,$V2465-4,0)&\"\")","v":""},"",{"$f":"IF(B2465=\"\",\"\",IF(ISERROR(MATCH($J2465,SorP!$B$1:$B$6230,0)),\"\",INDIRECT(\"'SorP'!$A$\"&MATCH($J2465,SorP!$B$1:$B$6230,0))))","v":""},null,{"$f":"IF(C2465=\"\",NA(),MATCH($B2465&$C2465,'Smelter Look-up'!$J:$J,0))","v":{"$error":"#N/A"}},null,0,null,null,null,""]
[null,{"$f":"IF(LEN(A2466)=0,\"\",INDEX('Smelter Look-up'!$A:$A,MATCH($A2466,'Smelter Look-up'!$E:$E,0)))","v":""},{"$f":"IF(LEN(A2466)=0,\"\",INDEX('Smelter Look-up'!$C:$C,MATCH($A2466,'Smelter Look-up'!$E:$E,0)))","v":""},null,{"$f":"IF(ISERROR($V2466),\"\",OFFSET('Smelter Look-up'!$D$4,$V2466-4,0)&\"\")","v":""},{"$f":"IF(ISERROR($V2466),\"\",OFFSET('Smelter Look-up'!$E$4,$V2466-4,0))","v":""},{"$f":"IF(C2466=$X$4,\"Enter smelter details\", IF(ISERROR($V2466),\"\",OFFSET('Smelter Look-up'!$F$4,$V2466-4,0)))","v":""},{"$f":"IF(ISERROR($V2466),\"\",OFFSET('Smelter Look-up'!$G$4,$V2466-4,0))","v":""},{"$f":"IF(ISERROR($V2466),\"\",OFFSET('Smelter Look-up'!$H$4,$V2466-4,0))","v":""},{"$f":"IF(ISERROR($V2466),\"\",OFFSET('Smelter Look-up'!$I$4,$V2466-4,0))","v":""},{"$nulls":7},{"$f":"IF(ISERROR($V2466),\"\",OFFSET('Smelter Look-up'!$C$4,$V2466-4,0)&\"\")","v":""},"",{"$f":"IF(B2466=\"\",\"\",IF(ISERROR(MATCH($J2466,SorP!$B$1:$B$6230,0)),\"\",INDIRECT(\"'SorP'!$A$\"&MATCH($J2466,SorP!$B$1:$B$6230,0))))","v":""},null,{"$f":"IF(C2466=\"\",NA(),MATCH($B2466&$C2466,'Smelter Look-up'!$J:$J,0))","v":{"$error":"#N/A"}},null,0,null,null,null,""]
[null,{"$f":"IF(LEN(A2467)=0,\"\",INDEX('Smelter Look-up'!$A:$A,MATCH($A2467,'Smelter Look-up'!$E:$E,0)))","v":""},{"$f":"IF(LEN(A2467)=0,\"\",INDEX('Smelter Look-up'!$C:$C,MATCH($A2467,'Smelter Look-up'!$E:$E,0)))","v":""},null,{"$f":"IF(ISERROR($V2467),\"\",OFFSET('Smelter Look-up'!$D$4,$V2467-4,0)&\"\")","v":""},{"$f":"IF(ISERROR($V2467),\"\",OFFSET('Smelter Look-up'!$E$4,$V2467-4,0))","v":""},{"$f":"IF(C2467=$X$4,\"Enter smelter details\", IF(ISERROR($V2467),\"\",OFFSET('Smelter Look-up'!$F$4,$V2467-4,0)))","v":""},{"$f":"IF(ISERROR($V2467),\"\",OFFSET('Smelter Look-up'!$G$4,$V2467-4,0))","v":""},{"$f":"IF(ISERROR($V2467),\"\",OFFSET('Smelter Look-up'!$H$4,$V2467-4,0))","v":""},{"$f":"IF(ISERROR($V2467),\"\",OFFSET('Smelter Look-up'!$I$4,$V2467-4,0))","v":""},{"$nulls":7},{"$f":"IF(ISERROR($V2467),\"\",OFFSET('Smelter Look-up'!$C$4,$V2467-4,0)&\"\")","v":""},"",{"$f":"IF(B2467=\"\",\"\",IF(ISERROR(MATCH($J2467,SorP!$B$1:$B$6230,0)),\"\",INDIRECT(\"'SorP'!$A$\"&MATCH($J2467,SorP!$B$1:$B$6230,0))))","v":""},null,{"$f":"IF(C2467=\"\",NA(),MATCH($B2467&$C2467,'Smelter Look-up'!$J:$J,0))","v":{"$error":"#N/A"}},null,0,null,null,null,""]
[null,{"$f":"IF(LEN(A2468)=0,\"\",INDEX('Smelter Look-up'!$A:$A,MATCH($A2468,'Smelter Look-up'!$E:$E,0)))","v":""},{"$f":"IF(LEN(A2468)=0,\"\",INDEX('Smelter Look-up'!$C:$C,MATCH($A2468,'Smelter Look-up'!$E:$E,0)))","v":""},null,{"$f":"IF(ISERROR($V2468),\"\",OFFSET('Smelter Look-up'!$D$4,$V2468-4,0)&\"\")","v":""},{"$f":"IF(ISERROR($V2468),\"\",OFFSET('Smelter Look-up'!$E$4,$V2468-4,0))","v":""},{"$f":"IF(C2468=$X$4,\"Enter smelter details\", IF(ISERROR($V2468),\"\",OFFSET('Smelter Look-up'!$F$4,$V2468-4,0)))","v":""},{"$f":"IF(ISERROR($V2468),\"\",OFFSET('Smelter Look-up'!$G$4,$V2468-4,0))","v":""},{"$f":"IF(ISERROR($V2468),\"\",OFFSET('Smelter Look-up'!$H$4,$V2468-4,0))","v":""},{"$f":"IF(ISERROR($V2468),\"\",OFFSET('Smelter Look-up'!$I$4,$V2468-4,0))","v":""},{"$nulls":7},{"$f":"IF(ISERROR($V2468),\"\",OFFSET('Smelter Look-up'!$C$4,$V2468-4,0)&\"\")","v":""},"",{"$f":"IF(B2468=\"\",\"\",IF(ISERROR(MATCH($J2468,SorP!$B$1:$B$6230,0)),\"\",INDIRECT(\"'SorP'!$A$\"&MATCH($J2468,SorP!$B$1:$B$6230,0))))","v":""},null,{"$f":"IF(C2468=\"\",NA(),MATCH($B2468&$C2468,'Smelter Look-up'!$J:$J,0))","v":{"$error":"#N/A"}},null,0,null,null,null,""]
[null,{"$f":"IF(LEN(A2469)=0,\"\",INDEX('Smelter Look-up'!$A:$A,MATCH($A2469,'Smelter Look-up'!$E:$E,0)))","v":""},{"$f":"IF(LEN(A2469)=0,\"\",INDEX('Smelter Look-up'!$C:$C,MATCH($A2469,'Smelter Look-up'!$E:$E,0)))","v":""},null,{"$f":"IF(ISERROR($V2469),\"\",OFFSET('Smelter Look-up'!$D$4,$V2469-4,0)&\"\")","v":""},{"$f":"IF(ISERROR($V2469),\"\",OFFSET('Smelter Look-up'!$E$4,$V2469-4,0))","v":""},{"$f":"IF(C2469=$X$4,\"Enter smelter details\", IF(ISERROR($V2469),\"\",OFFSET('Smelter Look-up'!$F$4,$V2469-4,0)))","v":""},{"$f":"IF(ISERROR($V2469),\"\",OFFSET('Smelter Look-up'!$G$4,$V2469-4,0))","v":""},{"$f":"IF(ISERROR($V2469),\"\",OFFSET('Smelter Look-up'!$H$4,$V2469-4,0))","v":""},{"$f":"IF(ISERROR($V2469),\"\",OFFSET('Smelter Look-up'!$I$4,$V2469-4,0))","v":""},{"$nulls":7},{"$f":"IF(ISERROR($V2469),\"\",OFFSET('Smelter Look-up'!$C$4,$V2469-4,0)&\"\")","v":""},"",{"$f":"IF(B2469=\"\",\"\",IF(ISERROR(MATCH($J2469,SorP!$B$1:$B$6230,0)),\"\",INDIRECT(\"'SorP'!$A$\"&MATCH($J2469,SorP!$B$1:$B$6230,0))))","v":""},null,{"$f":"IF(C2469=\"\",NA(),MATCH($B2469&$C2469,'Smelter Look-up'!$J:$J,0))","v":{"$error":"#N/A"}},null,0,null,null,null,""]
[null,{"$f":"IF(LEN(A2470)=0,\"\",INDEX('Smelter Look-up'!$A:$A,MATCH($A2470,'Smelter Look-up'!$E:$E,0)))","v":""},{"$f":"IF(LEN(A2470)=0,\"\",INDEX('Smelter Look-up'!$C:$C,MATCH($A2470,'Smelter Look-up'!$E:$E,0)))","v":""},null,{"$f":"IF(ISERROR($V2470),\"\",OFFSET('Smelter Look-up'!$D$4,$V2470-4,0)&\"\")","v":""},{"$f":"IF(ISERROR($V2470),\"\",OFFSET('Smelter Look-up'!$E$4,$V2470-4,0))","v":""},{"$f":"IF(C2470=$X$4,\"Enter smelter details\", IF(ISERROR($V2470),\"\",OFFSET('Smelter Look-up'!$F$4,$V2470-4,0)))","v":""},{"$f":"IF(ISERROR($V2470),\"\",OFFSET('Smelter Look-up'!$G$4,$V2470-4,0))","v":""},{"$f":"IF(ISERROR($V2470),\"\",OFFSET('Smelter Look-up'!$H$4,$V2470-4,0))","v":""},{"$f":"IF(ISERROR($V2470),\"\",OFFSET('Smelter Look-up'!$I$4,$V2470-4,0))","v":""},{"$nulls":7},{"$f":"IF(ISERROR($V2470),\"\",OFFSET('Smelter Look-up'!$C$4,$V2470-4,0)&\"\")","v":""},"",{"$f":"IF(B2470=\"\",\"\",IF(ISERROR(MATCH($J2470,SorP!$B$1:$B$6230,0)),\"\",INDIRECT(\"'SorP'!$A$\"&MATCH($J2470,SorP!$B$1:$B$6230,0))))","v":""},null,{"$f":"IF(C2470=\"\",NA(),MATCH($B2470&$C2470,'Smelter Look-up'!$J:$J,0))","v":{"$error":"#N/A"}},null,0,null,null,null,""]
[null,{"$f":"IF(LEN(A2471)=0,\"\",INDEX('Smelter Look-up'!$A:$A,MATCH($A2471,'Smelter Look-up'!$E:$E,0)))","v":""},{"$f":"IF(LEN(A2471)=0,\"\",INDEX('Smelter Look-up'!$C:$C,MATCH($A2471,'Smelter Look-up'!$E:$E,0)))","v":""},null,{"$f":"IF(ISERROR($V2471),\"\",OFFSET('Smelter Look-up'!$D$4,$V2471-4,0)&\"\")","v":""},{"$f":"IF(ISERROR($V2471),\"\",OFFSET('Smelter Look-up'!$E$4,$V2471-4,0))","v":""},{"$f":"IF(C2471=$X$4,\"Enter smelter details\", IF(ISERROR($V2471),\"\",OFFSET('Smelter Look-up'!$F$4,$V2471-4,0)))","v":""},{"$f":"IF(ISERROR($V2471),\"\",OFFSET('Smelter Look-up'!$G$4,$V2471-4,0))","v":""},{"$f":"IF(ISERROR($V2471),\"\",OFFSET('Smelter Look-up'!$H$4,$V2471-4,0))","v":""},{"$f":"IF(ISERROR($V2471),\"\",OFFSET('Smelter Look-up'!$I$4,$V2471-4,0))","v":""},{"$nulls":7},{"$f":"IF(ISERROR($V2471),\"\",OFFSET('Smelter Look-up'!$C$4,$V2471-4,0)&\"\")","v":""},"",{"$f":"IF(B2471=\"\",\"\",IF(ISERROR(MATCH($J2471,SorP!$B$1:$B$6230,0)),\"\",INDIRECT(\"'SorP'!$A$\"&MATCH($J2471,SorP!$B$1:$B$6230,0))))","v":""},null,{"$f":"IF(C2471=\"\",NA(),MATCH($B2471&$C2471,'Smelter Look-up'!$J:$J,0))","v":{"$error":"#N/A"}},null,0,null,null,null,""]
[null,{"$f":"IF(LEN(A2472)=0,\"\",INDEX('Smelter Look-up'!$A:$A,MATCH($A2472,'Smelter Look-up'!$E:$E,0)))","v":""},{"$f":"IF(LEN(A2472)=0,\"\",INDEX('Smelter Look-up'!$C:$C,MATCH($A2472,'Smelter Look-up'!$E:$E,0)))","v":""},null,{"$f":"IF(ISERROR($V2472),\"\",OFFSET('Smelter Look-up'!$D$4,$V2472-4,0)&\"\")","v":""},{"$f":"IF(ISERROR($V2472),\"\",OFFSET('Smelter Look-up'!$E$4,$V2472-4,0))","v":""},{"$f":"IF(C2472=$X$4,\"Enter smelter details\", IF(ISERROR($V2472),\"\",OFFSET('Smelter Look-up'!$F$4,$V2472-4,0)))","v":""},{"$f":"IF(ISERROR($V2472),\"\",OFFSET('Smelter Look-up'!$G$4,$V2472-4,0))","v":""},{"$f":"IF(ISERROR($V2472),\"\",OFFSET('Smelter Look-up'!$H$4,$V2472-4,0))","v":""},{"$f":"IF(ISERROR($V2472),\"\",OFFSET('Smelter Look-up'!$I$4,$V2472-4,0))","v":""},{"$nulls":7},{"$f":"IF(ISERROR($V2472),\"\",OFFSET('Smelter Look-up'!$C$4,$V2472-4,0)&\"\")","v":""},"",{"$f":"IF(B2472=\"\",\"\",IF(ISERROR(MATCH($J2472,SorP!$B$1:$B$6230,0)),\"\",INDIRECT(\"'SorP'!$A$\"&MATCH($J2472,SorP!$B$1:$B$6230,0))))","v":""},null,{"$f":"IF(C2472=\"\",NA(),MATCH($B2472&$C2472,'Smelter Look-up'!$J:$J,0))","v":{"$error":"#N/A"}},null,0,null,null,null,""]
[null,{"$f":"IF(LEN(A2473)=0,\"\",INDEX('Smelter Look-up'!$A:$A,MATCH($A2473,'Smelter Look-up'!$E:$E,0)))","v":""},{"$f":"IF(LEN(A2473)=0,\"\",INDEX('Smelter Look-up'!$C:$C,MATCH($A2473,'Smelter Look-up'!$E:$E,0)))","v":""},null,{"$f":"IF(ISERROR($V2473),\"\",OFFSET('Smelter Look-up'!$D$4,$V2473-4,0)&\"\")","v":""},{"$f":"IF(ISERROR($V2473),\"\",OFFSET('Smelter Look-up'!$E$4,$V2473-4,0))","v":""},{"$f":"IF(C2473=$X$4,\"Enter smelter details\", IF(ISERROR($V2473),\"\",OFFSET('Smelter Look-up'!$F$4,$V2473-4,0)))","v":""},{"$f":"IF(ISERROR($V2473),\"\",OFFSET('Smelter Look-up'!$G$4,$V2473-4,0))","v":""},{"$f":"IF(ISERROR($V2473),\"\",OFFSET('Smelter Look-up'!$H$4,$V2473-4,0))","v":""},{"$f":"IF(ISERROR($V2473),\"\",OFFSET('Smelter Look-up'!$I$4,$V2473-4,0))","v":""},{"$nulls":7},{"$f":"IF(ISERROR($V2473),\"\",OFFSET('Smelter Look-up'!$C$4,$V2473-4,0)&\"\")","v":""},"",{"$f":"IF(B2473=\"\",\"\",IF(ISERROR(MATCH($J2473,SorP!$B$1:$B$6230,0)),\"\",INDIRECT(\"'SorP'!$A$\"&MATCH($J2473,SorP!$B$1:$B$6230,0))))","v":""},null,{"$f":"IF(C2473=\"\",NA(),MATCH($B2473&$C2473,'Smelter Look-up'!$J:$J,0))","v":{"$error":"#N/A"}},null,0,null,null,null,""]
[null,{"$f":"IF(LEN(A2474)=0,\"\",INDEX('Smelter Look-up'!$A:$A,MATCH($A2474,'Smelter Look-up'!$E:$E,0)))","v":""},{"$f":"IF(LEN(A2474)=0,\"\",INDEX('Smelter Look-up'!$C:$C,MATCH($A2474,'Smelter Look-up'!$E:$E,0)))","v":""},null,{"$f":"IF(ISERROR($V2474),\"\",OFFSET('Smelter Look-up'!$D$4,$V2474-4,0)&\"\")","v":""},{"$f":"IF(ISERROR($V2474),\"\",OFFSET('Smelter Look-up'!$E$4,$V2474-4,0))","v":""},{"$f":"IF(C2474=$X$4,\"Enter smelter details\", IF(ISERROR($V2474),\"\",OFFSET('Smelter Look-up'!$F$4,$V2474-4,0)))","v":""},{"$f":"IF(ISERROR($V2474),\"\",OFFSET('Smelter Look-up'!$G$4,$V2474-4,0))","v":""},{"$f":"IF(ISERROR($V2474),\"\",OFFSET('Smelter Look-up'!$H$4,$V2474-4,0))","v":""},{"$f":"IF(ISERROR($V2474),\"\",OFFSET('Smelter Look-up'!$I$4,$V2474-4,0))","v":""},{"$nulls":7},{"$f":"IF(ISERROR($V2474),\"\",OFFSET('Smelter Look-up'!$C$4,$V2474-4,0)&\"\")","v":""},"",{"$f":"IF(B2474=\"\",\"\",IF(ISERROR(MATCH($J2474,SorP!$B$1:$B$6230,0)),\"\",INDIRECT(\"'SorP'!$A$\"&MATCH($J2474,SorP!$B$1:$B$6230,0))))","v":""},null,{"$f":"IF(C2474=\"\",NA(),MATCH($B2474&$C2474,'Smelter Look-up'!$J:$J,0))","v":{"$error":"#N/A"}},null,0,null,null,null,""]
[null,{"$f":"IF(LEN(A2475)=0,\"\",INDEX('Smelter Look-up'!$A:$A,MATCH($A2475,'Smelter Look-up'!$E:$E,0)))","v":""},{"$f":"IF(LEN(A2475)=0,\"\",INDEX('Smelter Look-up'!$C:$C,MATCH($A2475,'Smelter Look-up'!$E:$E,0)))","v":""},null,{"$f":"IF(ISERROR($V2475),\"\",OFFSET('Smelter Look-up'!$D$4,$V2475-4,0)&\"\")","v":""},{"$f":"IF(ISERROR($V2475),\"\",OFFSET('Smelter Look-up'!$E$4,$V2475-4,0))","v":""},{"$f":"IF(C2475=$X$4,\"Enter smelter details\", IF(ISERROR($V2475),\"\",OFFSET('Smelter Look-up'!$F$4,$V2475-4,0)))","v":""},{"$f":"IF(ISERROR($V2475),\"\",OFFSET('Smelter Look-up'!$G$4,$V2475-4,0))","v":""},{"$f":"IF(ISERROR($V2475),\"\",OFFSET('Smelter Look-up'!$H$4,$V2475-4,0))","v":""},{"$f":"IF(ISERROR($V2475),\"\",OFFSET('Smelter Look-up'!$I$4,$V2475-4,0))","v":""},{"$nulls":7},{"$f":"IF(ISERROR($V2475),\"\",OFFSET('Smelter Look-up'!$C$4,$V2475-4,0)&\"\")","v":""},"",{"$f":"IF(B2475=\"\",\"\",IF(ISERROR(MATCH($J2475,SorP!$B$1:$B$6230,0)),\"\",INDIRECT(\"'SorP'!$A$\"&MATCH($J2475,SorP!$B$1:$B$6230,0))))","v":""},null,{"$f":"IF(C2475=\"\",NA(),MATCH($B2475&$C2475,'Smelter Look-up'!$J:$J,0))","v":{"$error":"#N/A"}},null,0,null,null,null,""]
[null,{"$f":"IF(LEN(A2476)=0,\"\",INDEX('Smelter Look-up'!$A:$A,MATCH($A2476,'Smelter Look-up'!$E:$E,0)))","v":""},{"$f":"IF(LEN(A2476)=0,\"\",INDEX('Smelter Look-up'!$C:$C,MATCH($A2476,'Smelter Look-up'!$E:$E,0)))","v":""},null,{"$f":"IF(ISERROR($V2476),\"\",OFFSET('Smelter Look-up'!$D$4,$V2476-4,0)&\"\")","v":""},{"$f":"IF(ISERROR($V2476),\"\",OFFSET('Smelter Look-up'!$E$4,$V2476-4,0))","v":""},{"$f":"IF(C2476=$X$4,\"Enter smelter details\", IF(ISERROR($V2476),\"\",OFFSET('Smelter Look-up'!$F$4,$V2476-4,0)))","v":""},{"$f":"IF(ISERROR($V2476),\"\",OFFSET('Smelter Look-up'!$G$4,$V2476-4,0))","v":""},{"$f":"IF(ISERROR($V2476),\"\",OFFSET('Smelter Look-up'!$H$4,$V2476-4,0))","v":""},{"$f":"IF(ISERROR($V2476),\"\",OFFSET('Smelter Look-up'!$I$4,$V2476-4,0))","v":""},{"$nulls":7},{"$f":"IF(ISERROR($V2476),\"\",OFFSET('Smelter Look-up'!$C$4,$V2476-4,0)&\"\")","v":""},"",{"$f":"IF(B2476=\"\",\"\",IF(ISERROR(MATCH($J2476,SorP!$B$1:$B$6230,0)),\"\",INDIRECT(\"'SorP'!$A$\"&MATCH($J2476,SorP!$B$1:$B$6230,0))))","v":""},null,{"$f":"IF(C2476=\"\",NA(),MATCH($B2476&$C2476,'Smelter Look-up'!$J:$J,0))","v":{"$error":"#N/A"}},null,0,null,null,null,""]
[null,{"$f":"IF(LEN(A2477)=0,\"\",INDEX('Smelter Look-up'!$A:$A,MATCH($A2477,'Smelter Look-up'!$E:$E,0)))","v":""},{"$f":"IF(LEN(A2477)=0,\"\",INDEX('Smelter Look-up'!$C:$C,MATCH($A2477,'Smelter Look-up'!$E:$E,0)))","v":""},null,{"$f":"IF(ISERROR($V2477),\"\",OFFSET('Smelter Look-up'!$D$4,$V2477-4,0)&\"\")","v":""},{"$f":"IF(ISERROR($V2477),\"\",OFFSET('Smelter Look-up'!$E$4,$V2477-4,0))","v":""},{"$f":"IF(C2477=$X$4,\"Enter smelter details\", IF(ISERROR($V2477),\"\",OFFSET('Smelter Look-up'!$F$4,$V2477-4,0)))","v":""},{"$f":"IF(ISERROR($V2477),\"\",OFFSET('Smelter Look-up'!$G$4,$V2477-4,0))","v":""},{"$f":"IF(ISERROR($V2477),\"\",OFFSET('Smelter Look-up'!$H$4,$V2477-4,0))","v":""},{"$f":"IF(ISERROR($V2477),\"\",OFFSET('Smelter Look-up'!$I$4,$V2477-4,0))","v":""},{"$nulls":7},{"$f":"IF(ISERROR($V2477),\"\",OFFSET('Smelter Look-up'!$C$4,$V2477-4,0)&\"\")","v":""},"",{"$f":"IF(B2477=\"\",\"\",IF(ISERROR(MATCH($J2477,SorP!$B$1:$B$6230,0)),\"\",INDIRECT(\"'SorP'!$A$\"&MATCH($J2477,SorP!$B$1:$B$6230,0))))","v":""},null,{"$f":"IF(C2477=\"\",NA(),MATCH($B2477&$C2477,'Smelter Look-up'!$J:$J,0))","v":{"$error":"#N/A"}},null,0,null,null,null,""]
[null,{"$f":"IF(LEN(A2478)=0,\"\",INDEX('Smelter Look-up'!$A:$A,MATCH($A2478,'Smelter Look-up'!$E:$E,0)))","v":""},{"$f":"IF(LEN(A2478)=0,\"\",INDEX('Smelter Look-up'!$C:$C,MATCH($A2478,'Smelter Look-up'!$E:$E,0)))","v":""},null,{"$f":"IF(ISERROR($V2478),\"\",OFFSET('Smelter Look-up'!$D$4,$V2478-4,0)&\"\")","v":""},{"$f":"IF(ISERROR($V2478),\"\",OFFSET('Smelter Look-up'!$E$4,$V2478-4,0))","v":""},{"$f":"IF(C2478=$X$4,\"Enter smelter details\", IF(ISERROR($V2478),\"\",OFFSET('Smelter Look-up'!$F$4,$V2478-4,0)))","v":""},{"$f":"IF(ISERROR($V2478),\"\",OFFSET('Smelter Look-up'!$G$4,$V2478-4,0))","v":""},{"$f":"IF(ISERROR($V2478),\"\",OFFSET('Smelter Look-up'!$H$4,$V2478-4,0))","v":""},{"$f":"IF(ISERROR($V2478),\"\",OFFSET('Smelter Look-up'!$I$4,$V2478-4,0))","v":""},{"$nulls":7},{"$f":"IF(ISERROR($V2478),\"\",OFFSET('Smelter Look-up'!$C$4,$V2478-4,0)&\"\")","v":""},"",{"$f":"IF(B2478=\"\",\"\",IF(ISERROR(MATCH($J2478,SorP!$B$1:$B$6230,0)),\"\",INDIRECT(\"'SorP'!$A$\"&MATCH($J2478,SorP!$B$1:$B$6230,0))))","v":""},null,{"$f":"IF(C2478=\"\",NA(),MATCH($B2478&$C2478,'Smelter Look-up'!$J:$J,0))","v":{"$error":"#N/A"}},null,0,null,null,null,""]
[null,{"$f":"IF(LEN(A2479)=0,\"\",INDEX('Smelter Look-up'!$A:$A,MATCH($A2479,'Smelter Look-up'!$E:$E,0)))","v":""},{"$f":"IF(LEN(A2479)=0,\"\",INDEX('Smelter Look-up'!$C:$C,MATCH($A2479,'Smelter Look-up'!$E:$E,0)))","v":""},null,{"$f":"IF(ISERROR($V2479),\"\",OFFSET('Smelter Look-up'!$D$4,$V2479-4,0)&\"\")","v":""},{"$f":"IF(ISERROR($V2479),\"\",OFFSET('Smelter Look-up'!$E$4,$V2479-4,0))","v":""},{"$f":"IF(C2479=$X$4,\"Enter smelter details\", IF(ISERROR($V2479),\"\",OFFSET('Smelter Look-up'!$F$4,$V2479-4,0)))","v":""},{"$f":"IF(ISERROR($V2479),\"\",OFFSET('Smelter Look-up'!$G$4,$V2479-4,0))","v":""},{"$f":"IF(ISERROR($V2479),\"\",OFFSET('Smelter Look-up'!$H$4,$V2479-4,0))","v":""},{"$f":"IF(ISERROR($V2479),\"\",OFFSET('Smelter Look-up'!$I$4,$V2479-4,0))","v":""},{"$nulls":7},{"$f":"IF(ISERROR($V2479),\"\",OFFSET('Smelter Look-up'!$C$4,$V2479-4,0)&\"\")","v":""},"",{"$f":"IF(B2479=\"\",\"\",IF(ISERROR(MATCH($J2479,SorP!$B$1:$B$6230,0)),\"\",INDIRECT(\"'SorP'!$A$\"&MATCH($J2479,SorP!$B$1:$B$6230,0))))","v":""},null,{"$f":"IF(C2479=\"\",NA(),MATCH($B2479&$C2479,'Smelter Look-up'!$J:$J,0))","v":{"$error":"#N/A"}},null,0,null,null,null,""]
[null,{"$f":"IF(LEN(A2480)=0,\"\",INDEX('Smelter Look-up'!$A:$A,MATCH($A2480,'Smelter Look-up'!$E:$E,0)))","v":""},{"$f":"IF(LEN(A2480)=0,\"\",INDEX('Smelter Look-up'!$C:$C,MATCH($A2480,'Smelter Look-up'!$E:$E,0)))","v":""},null,{"$f":"IF(ISERROR($V2480),\"\",OFFSET('Smelter Look-up'!$D$4,$V2480-4,0)&\"\")","v":""},{"$f":"IF(ISERROR($V2480),\"\",OFFSET('Smelter Look-up'!$E$4,$V2480-4,0))","v":""},{"$f":"IF(C2480=$X$4,\"Enter smelter details\", IF(ISERROR($V2480),\"\",OFFSET('Smelter Look-up'!$F$4,$V2480-4,0)))","v":""},{"$f":"IF(ISERROR($V2480),\"\",OFFSET('Smelter Look-up'!$G$4,$V2480-4,0))","v":""},{"$f":"IF(ISERROR($V2480),\"\",OFFSET('Smelter Look-up'!$H$4,$V2480-4,0))","v":""},{"$f":"IF(ISERROR($V2480),\"\",OFFSET('Smelter Look-up'!$I$4,$V2480-4,0))","v":""},{"$nulls":7},{"$f":"IF(ISERROR($V2480),\"\",OFFSET('Smelter Look-up'!$C$4,$V2480-4,0)&\"\")","v":""},"",{"$f":"IF(B2480=\"\",\"\",IF(ISERROR(MATCH($J2480,SorP!$B$1:$B$6230,0)),\"\",INDIRECT(\"'SorP'!$A$\"&MATCH($J2480,SorP!$B$1:$B$6230,0))))","v":""},null,{"$f":"IF(C2480=\"\",NA(),MATCH($B2480&$C2480,'Smelter Look-up'!$J:$J,0))","v":{"$error":"#N/A"}},null,0,null,null,null,""]
[null,{"$f":"IF(LEN(A2481)=0,\"\",INDEX('Smelter Look-up'!$A:$A,MATCH($A2481,'Smelter Look-up'!$E:$E,0)))","v":""},{"$f":"IF(LEN(A2481)=0,\"\",INDEX('Smelter Look-up'!$C:$C,MATCH($A2481,'Smelter Look-up'!$E:$E,0)))","v":""},null,{"$f":"IF(ISERROR($V2481),\"\",OFFSET('Smelter Look-up'!$D$4,$V2481-4,0)&\"\")","v":""},{"$f":"IF(ISERROR($V2481),\"\",OFFSET('Smelter Look-up'!$E$4,$V2481-4,0))","v":""},{"$f":"IF(C2481=$X$4,\"Enter smelter details\", IF(ISERROR($V2481),\"\",OFFSET('Smelter Look-up'!$F$4,$V2481-4,0)))","v":""},{"$f":"IF(ISERROR($V2481),\"\",OFFSET('Smelter Look-up'!$G$4,$V2481-4,0))","v":""},{"$f":"IF(ISERROR($V2481),\"\",OFFSET('Smelter Look-up'!$H$4,$V2481-4,0))","v":""},{"$f":"IF(ISERROR($V2481),\"\",OFFSET('Smelter Look-up'!$I$4,$V2481-4,0))","v":""},{"$nulls":7},{"$f":"IF(ISERROR($V2481),\"\",OFFSET('Smelter Look-up'!$C$4,$V2481-4,0)&\"\")","v":""},"",{"$f":"IF(B2481=\"\",\"\",IF(ISERROR(MATCH($J2481,SorP!$B$1:$B$6230,0)),\"\",INDIRECT(\"'SorP'!$A$\"&MATCH($J2481,SorP!$B$1:$B$6230,0))))","v":""},null,{"$f":"IF(C2481=\"\",NA(),MATCH($B2481&$C2481,'Smelter Look-up'!$J:$J,0))","v":{"$error":"#N/A"}},null,0,null,null,null,""]
[null,{"$f":"IF(LEN(A2482)=0,\"\",INDEX('Smelter Look-up'!$A:$A,MATCH($A2482,'Smelter Look-up'!$E:$E,0)))","v":""},{"$f":"IF(LEN(A2482)=0,\"\",INDEX('Smelter Look-up'!$C:$C,MATCH($A2482,'Smelter Look-up'!$E:$E,0)))","v":""},null,{"$f":"IF(ISERROR($V2482),\"\",OFFSET('Smelter Look-up'!$D$4,$V2482-4,0)&\"\")","v":""},{"$f":"IF(ISERROR($V2482),\"\",OFFSET('Smelter Look-up'!$E$4,$V2482-4,0))","v":""},{"$f":"IF(C2482=$X$4,\"Enter smelter details\", IF(ISERROR($V2482),\"\",OFFSET('Smelter Look-up'!$F$4,$V2482-4,0)))","v":""},{"$f":"IF(ISERROR($V2482),\"\",OFFSET('Smelter Look-up'!$G$4,$V2482-4,0))","v":""},{"$f":"IF(ISERROR($V2482),\"\",OFFSET('Smelter Look-up'!$H$4,$V2482-4,0))","v":""},{"$f":"IF(ISERROR($V2482),\"\",OFFSET('Smelter Look-up'!$I$4,$V2482-4,0))","v":""},{"$nulls":7},{"$f":"IF(ISERROR($V2482),\"\",OFFSET('Smelter Look-up'!$C$4,$V2482-4,0)&\"\")","v":""},"",{"$f":"IF(B2482=\"\",\"\",IF(ISERROR(MATCH($J2482,SorP!$B$1:$B$6230,0)),\"\",INDIRECT(\"'SorP'!$A$\"&MATCH($J2482,SorP!$B$1:$B$6230,0))))","v":""},null,{"$f":"IF(C2482=\"\",NA(),MATCH($B2482&$C2482,'Smelter Look-up'!$J:$J,0))","v":{"$error":"#N/A"}},null,0,null,null,null,""]
[null,{"$f":"IF(LEN(A2483)=0,\"\",INDEX('Smelter Look-up'!$A:$A,MATCH($A2483,'Smelter Look-up'!$E:$E,0)))","v":""},{"$f":"IF(LEN(A2483)=0,\"\",INDEX('Smelter Look-up'!$C:$C,MATCH($A2483,'Smelter Look-up'!$E:$E,0)))","v":""},null,{"$f":"IF(ISERROR($V2483),\"\",OFFSET('Smelter Look-up'!$D$4,$V2483-4,0)&\"\")","v":""},{"$f":"IF(ISERROR($V2483),\"\",OFFSET('Smelter Look-up'!$E$4,$V2483-4,0))","v":""},{"$f":"IF(C2483=$X$4,\"Enter smelter details\", IF(ISERROR($V2483),\"\",OFFSET('Smelter Look-up'!$F$4,$V2483-4,0)))","v":""},{"$f":"IF(ISERROR($V2483),\"\",OFFSET('Smelter Look-up'!$G$4,$V2483-4,0))","v":""},{"$f":"IF(ISERROR($V2483),\"\",OFFSET('Smelter Look-up'!$H$4,$V2483-4,0))","v":""},{"$f":"IF(ISERROR($V2483),\"\",OFFSET('Smelter Look-up'!$I$4,$V2483-4,0))","v":""},{"$nulls":7},{"$f":"IF(ISERROR($V2483),\"\",OFFSET('Smelter Look-up'!$C$4,$V2483-4,0)&\"\")","v":""},"",{"$f":"IF(B2483=\"\",\"\",IF(ISERROR(MATCH($J2483,SorP!$B$1:$B$6230,0)),\"\",INDIRECT(\"'SorP'!$A$\"&MATCH($J2483,SorP!$B$1:$B$6230,0))))","v":""},null,{"$f":"IF(C2483=\"\",NA(),MATCH($B2483&$C2483,'Smelter Look-up'!$J:$J,0))","v":{"$error":"#N/A"}},null,0,null,null,null,""]
[null,{"$f":"IF(LEN(A2484)=0,\"\",INDEX('Smelter Look-up'!$A:$A,MATCH($A2484,'Smelter Look-up'!$E:$E,0)))","v":""},{"$f":"IF(LEN(A2484)=0,\"\",INDEX('Smelter Look-up'!$C:$C,MATCH($A2484,'Smelter Look-up'!$E:$E,0)))","v":""},null,{"$f":"IF(ISERROR($V2484),\"\",OFFSET('Smelter Look-up'!$D$4,$V2484-4,0)&\"\")","v":""},{"$f":"IF(ISERROR($V2484),\"\",OFFSET('Smelter Look-up'!$E$4,$V2484-4,0))","v":""},{"$f":"IF(C2484=$X$4,\"Enter smelter details\", IF(ISERROR($V2484),\"\",OFFSET('Smelter Look-up'!$F$4,$V2484-4,0)))","v":""},{"$f":"IF(ISERROR($V2484),\"\",OFFSET('Smelter Look-up'!$G$4,$V2484-4,0))","v":""},{"$f":"IF(ISERROR($V2484),\"\",OFFSET('Smelter Look-up'!$H$4,$V2484-4,0))","v":""},{"$f":"IF(ISERROR($V2484),\"\",OFFSET('Smelter Look-up'!$I$4,$V2484-4,0))","v":""},{"$nulls":7},{"$f":"IF(ISERROR($V2484),\"\",OFFSET('Smelter Look-up'!$C$4,$V2484-4,0)&\"\")","v":""},"",{"$f":"IF(B2484=\"\",\"\",IF(ISERROR(MATCH($J2484,SorP!$B$1:$B$6230,0)),\"\",INDIRECT(\"'SorP'!$A$\"&MATCH($J2484,SorP!$B$1:$B$6230,0))))","v":""},null,{"$f":"IF(C2484=\"\",NA(),MATCH($B2484&$C2484,'Smelter Look-up'!$J:$J,0))","v":{"$error":"#N/A"}},null,0,null,null,null,""]
[null,{"$f":"IF(LEN(A2485)=0,\"\",INDEX('Smelter Look-up'!$A:$A,MATCH($A2485,'Smelter Look-up'!$E:$E,0)))","v":""},{"$f":"IF(LEN(A2485)=0,\"\",INDEX('Smelter Look-up'!$C:$C,MATCH($A2485,'Smelter Look-up'!$E:$E,0)))","v":""},null,{"$f":"IF(ISERROR($V2485),\"\",OFFSET('Smelter Look-up'!$D$4,$V2485-4,0)&\"\")","v":""},{"$f":"IF(ISERROR($V2485),\"\",OFFSET('Smelter Look-up'!$E$4,$V2485-4,0))","v":""},{"$f":"IF(C2485=$X$4,\"Enter smelter details\", IF(ISERROR($V2485),\"\",OFFSET('Smelter Look-up'!$F$4,$V2485-4,0)))","v":""},{"$f":"IF(ISERROR($V2485),\"\",OFFSET('Smelter Look-up'!$G$4,$V2485-4,0))","v":""},{"$f":"IF(ISERROR($V2485),\"\",OFFSET('Smelter Look-up'!$H$4,$V2485-4,0))","v":""},{"$f":"IF(ISERROR($V2485),\"\",OFFSET('Smelter Look-up'!$I$4,$V2485-4,0))","v":""},{"$nulls":7},{"$f":"IF(ISERROR($V2485),\"\",OFFSET('Smelter Look-up'!$C$4,$V2485-4,0)&\"\")","v":""},"",{"$f":"IF(B2485=\"\",\"\",IF(ISERROR(MATCH($J2485,SorP!$B$1:$B$6230,0)),\"\",INDIRECT(\"'SorP'!$A$\"&MATCH($J2485,SorP!$B$1:$B$6230,0))))","v":""},null,{"$f":"IF(C2485=\"\",NA(),MATCH($B2485&$C2485,'Smelter Look-up'!$J:$J,0))","v":{"$error":"#N/A"}},null,0,null,null,null,""]
[null,{"$f":"IF(LEN(A2486)=0,\"\",INDEX('Smelter Look-up'!$A:$A,MATCH($A2486,'Smelter Look-up'!$E:$E,0)))","v":""},{"$f":"IF(LEN(A2486)=0,\"\",INDEX('Smelter Look-up'!$C:$C,MATCH($A2486,'Smelter Look-up'!$E:$E,0)))","v":""},null,{"$f":"IF(ISERROR($V2486),\"\",OFFSET('Smelter Look-up'!$D$4,$V2486-4,0)&\"\")","v":""},{"$f":"IF(ISERROR($V2486),\"\",OFFSET('Smelter Look-up'!$E$4,$V2486-4,0))","v":""},{"$f":"IF(C2486=$X$4,\"Enter smelter details\", IF(ISERROR($V2486),\"\",OFFSET('Smelter Look-up'!$F$4,$V2486-4,0)))","v":""},{"$f":"IF(ISERROR($V2486),\"\",OFFSET('Smelter Look-up'!$G$4,$V2486-4,0))","v":""},{"$f":"IF(ISERROR($V2486),\"\",OFFSET('Smelter Look-up'!$H$4,$V2486-4,0))","v":""},{"$f":"IF(ISERROR($V2486),\"\",OFFSET('Smelter Look-up'!$I$4,$V2486-4,0))","v":""},{"$nulls":7},{"$f":"IF(ISERROR($V2486),\"\",OFFSET('Smelter Look-up'!$C$4,$V2486-4,0)&\"\")","v":""},"",{"$f":"IF(B2486=\"\",\"\",IF(ISERROR(MATCH($J2486,SorP!$B$1:$B$6230,0)),\"\",INDIRECT(\"'SorP'!$A$\"&MATCH($J2486,SorP!$B$1:$B$6230,0))))","v":""},null,{"$f":"IF(C2486=\"\",NA(),MATCH($B2486&$C2486,'Smelter Look-up'!$J:$J,0))","v":{"$error":"#N/A"}},null,0,null,null,null,""]
[null,{"$f":"IF(LEN(A2487)=0,\"\",INDEX('Smelter Look-up'!$A:$A,MATCH($A2487,'Smelter Look-up'!$E:$E,0)))","v":""},{"$f":"IF(LEN(A2487)=0,\"\",INDEX('Smelter Look-up'!$C:$C,MATCH($A2487,'Smelter Look-up'!$E:$E,0)))","v":""},null,{"$f":"IF(ISERROR($V2487),\"\",OFFSET('Smelter Look-up'!$D$4,$V2487-4,0)&\"\")","v":""},{"$f":"IF(ISERROR($V2487),\"\",OFFSET('Smelter Look-up'!$E$4,$V2487-4,0))","v":""},{"$f":"IF(C2487=$X$4,\"Enter smelter details\", IF(ISERROR($V2487),\"\",OFFSET('Smelter Look-up'!$F$4,$V2487-4,0)))","v":""},{"$f":"IF(ISERROR($V2487),\"\",OFFSET('Smelter Look-up'!$G$4,$V2487-4,0))","v":""},{"$f":"IF(ISERROR($V2487),\"\",OFFSET('Smelter Look-up'!$H$4,$V2487-4,0))","v":""},{"$f":"IF(ISERROR($V2487),\"\",OFFSET('Smelter Look-up'!$I$4,$V2487-4,0))","v":""},{"$nulls":7},{"$f":"IF(ISERROR($V2487),\"\",OFFSET('Smelter Look-up'!$C$4,$V2487-4,0)&\"\")","v":""},"",{"$f":"IF(B2487=\"\",\"\",IF(ISERROR(MATCH($J2487,SorP!$B$1:$B$6230,0)),\"\",INDIRECT(\"'SorP'!$A$\"&MATCH($J2487,SorP!$B$1:$B$6230,0))))","v":""},null,{"$f":"IF(C2487=\"\",NA(),MATCH($B2487&$C2487,'Smelter Look-up'!$J:$J,0))","v":{"$error":"#N/A"}},null,0,null,null,null,""]
[null,{"$f":"IF(LEN(A2488)=0,\"\",INDEX('Smelter Look-up'!$A:$A,MATCH($A2488,'Smelter Look-up'!$E:$E,0)))","v":""},{"$f":"IF(LEN(A2488)=0,\"\",INDEX('Smelter Look-up'!$C:$C,MATCH($A2488,'Smelter Look-up'!$E:$E,0)))","v":""},null,{"$f":"IF(ISERROR($V2488),\"\",OFFSET('Smelter Look-up'!$D$4,$V2488-4,0)&\"\")","v":""},{"$f":"IF(ISERROR($V2488),\"\",OFFSET('Smelter Look-up'!$E$4,$V2488-4,0))","v":""},{"$f":"IF(C2488=$X$4,\"Enter smelter details\", IF(ISERROR($V2488),\"\",OFFSET('Smelter Look-up'!$F$4,$V2488-4,0)))","v":""},{"$f":"IF(ISERROR($V2488),\"\",OFFSET('Smelter Look-up'!$G$4,$V2488-4,0))","v":""},{"$f":"IF(ISERROR($V2488),\"\",OFFSET('Smelter Look-up'!$H$4,$V2488-4,0))","v":""},{"$f":"IF(ISERROR($V2488),\"\",OFFSET('Smelter Look-up'!$I$4,$V2488-4,0))","v":""},{"$nulls":7},{"$f":"IF(ISERROR($V2488),\"\",OFFSET('Smelter Look-up'!$C$4,$V2488-4,0)&\"\")","v":""},"",{"$f":"IF(B2488=\"\",\"\",IF(ISERROR(MATCH($J2488,SorP!$B$1:$B$6230,0)),\"\",INDIRECT(\"'SorP'!$A$\"&MATCH($J2488,SorP!$B$1:$B$6230,0))))","v":""},null,{"$f":"IF(C2488=\"\",NA(),MATCH($B2488&$C2488,'Smelter Look-up'!$J:$J,0))","v":{"$error":"#N/A"}},null,0,null,null,null,""]
[null,{"$f":"IF(LEN(A2489)=0,\"\",INDEX('Smelter Look-up'!$A:$A,MATCH($A2489,'Smelter Look-up'!$E:$E,0)))","v":""},{"$f":"IF(LEN(A2489)=0,\"\",INDEX('Smelter Look-up'!$C:$C,MATCH($A2489,'Smelter Look-up'!$E:$E,0)))","v":""},null,{"$f":"IF(ISERROR($V2489),\"\",OFFSET('Smelter Look-up'!$D$4,$V2489-4,0)&\"\")","v":""},{"$f":"IF(ISERROR($V2489),\"\",OFFSET('Smelter Look-up'!$E$4,$V2489-4,0))","v":""},{"$f":"IF(C2489=$X$4,\"Enter smelter details\", IF(ISERROR($V2489),\"\",OFFSET('Smelter Look-up'!$F$4,$V2489-4,0)))","v":""},{"$f":"IF(ISERROR($V2489),\"\",OFFSET('Smelter Look-up'!$G$4,$V2489-4,0))","v":""},{"$f":"IF(ISERROR($V2489),\"\",OFFSET('Smelter Look-up'!$H$4,$V2489-4,0))","v":""},{"$f":"IF(ISERROR($V2489),\"\",OFFSET('Smelter Look-up'!$I$4,$V2489-4,0))","v":""},{"$nulls":7},{"$f":"IF(ISERROR($V2489),\"\",OFFSET('Smelter Look-up'!$C$4,$V2489-4,0)&\"\")","v":""},"",{"$f":"IF(B2489=\"\",\"\",IF(ISERROR(MATCH($J2489,SorP!$B$1:$B$6230,0)),\"\",INDIRECT(\"'SorP'!$A$\"&MATCH($J2489,SorP!$B$1:$B$6230,0))))","v":""},null,{"$f":"IF(C2489=\"\",NA(),MATCH($B2489&$C2489,'Smelter Look-up'!$J:$J,0))","v":{"$error":"#N/A"}},null,0,null,null,null,""]
[null,{"$f":"IF(LEN(A2490)=0,\"\",INDEX('Smelter Look-up'!$A:$A,MATCH($A2490,'Smelter Look-up'!$E:$E,0)))","v":""},{"$f":"IF(LEN(A2490)=0,\"\",INDEX('Smelter Look-up'!$C:$C,MATCH($A2490,'Smelter Look-up'!$E:$E,0)))","v":""},null,{"$f":"IF(ISERROR($V2490),\"\",OFFSET('Smelter Look-up'!$D$4,$V2490-4,0)&\"\")","v":""},{"$f":"IF(ISERROR($V2490),\"\",OFFSET('Smelter Look-up'!$E$4,$V2490-4,0))","v":""},{"$f":"IF(C2490=$X$4,\"Enter smelter details\", IF(ISERROR($V2490),\"\",OFFSET('Smelter Look-up'!$F$4,$V2490-4,0)))","v":""},{"$f":"IF(ISERROR($V2490),\"\",OFFSET('Smelter Look-up'!$G$4,$V2490-4,0))","v":""},{"$f":"IF(ISERROR($V2490),\"\",OFFSET('Smelter Look-up'!$H$4,$V2490-4,0))","v":""},{"$f":"IF(ISERROR($V2490),\"\",OFFSET('Smelter Look-up'!$I$4,$V2490-4,0))","v":""},{"$nulls":7},{"$f":"IF(ISERROR($V2490),\"\",OFFSET('Smelter Look-up'!$C$4,$V2490-4,0)&\"\")","v":""},"",{"$f":"IF(B2490=\"\",\"\",IF(ISERROR(MATCH($J2490,SorP!$B$1:$B$6230,0)),\"\",INDIRECT(\"'SorP'!$A$\"&MATCH($J2490,SorP!$B$1:$B$6230,0))))","v":""},null,{"$f":"IF(C2490=\"\",NA(),MATCH($B2490&$C2490,'Smelter Look-up'!$J:$J,0))","v":{"$error":"#N/A"}},null,0,null,null,null,""]
[null,{"$f":"IF(LEN(A2491)=0,\"\",INDEX('Smelter Look-up'!$A:$A,MATCH($A2491,'Smelter Look-up'!$E:$E,0)))","v":""},{"$f":"IF(LEN(A2491)=0,\"\",INDEX('Smelter Look-up'!$C:$C,MATCH($A2491,'Smelter Look-up'!$E:$E,0)))","v":""},null,{"$f":"IF(ISERROR($V2491),\"\",OFFSET('Smelter Look-up'!$D$4,$V2491-4,0)&\"\")","v":""},{"$f":"IF(ISERROR($V2491),\"\",OFFSET('Smelter Look-up'!$E$4,$V2491-4,0))","v":""},{"$f":"IF(C2491=$X$4,\"Enter smelter details\", IF(ISERROR($V2491),\"\",OFFSET('Smelter Look-up'!$F$4,$V2491-4,0)))","v":""},{"$f":"IF(ISERROR($V2491),\"\",OFFSET('Smelter Look-up'!$G$4,$V2491-4,0))","v":""},{"$f":"IF(ISERROR($V2491),\"\",OFFSET('Smelter Look-up'!$H$4,$V2491-4,0))","v":""},{"$f":"IF(ISERROR($V2491),\"\",OFFSET('Smelter Look-up'!$I$4,$V2491-4,0))","v":""},{"$nulls":7},{"$f":"IF(ISERROR($V2491),\"\",OFFSET('Smelter Look-up'!$C$4,$V2491-4,0)&\"\")","v":""},{"$f":"IF(B2491=\"\",\"\",IF(ISERROR(MATCH($E2491,CL,0)),\"Unknown\",INDIRECT(\"'C'!$A$\"&MATCH($E2491,CL,0)+1)))","v":""},{"$f":"IF(B2491=\"\",\"\",IF(ISERROR(MATCH($J2491,SorP!$B$1:$B$6230,0)),\"\",INDIRECT(\"'SorP'!$A$\"&MATCH($J2491,SorP!$B$1:$B$6230,0))))","v":""},null,{"$f":"IF(C2491=\"\",NA(),MATCH($B2491&$C2491,'Smelter Look-up'!$J:$J,0))","v":{"$error":"#N/A"}},null,{"$f":"IF(AND(C2491=\"Smelter not listed\",OR(LEN(D2491)=0,LEN(E2491)=0)),1,0)","v":0},null,null,null,{"$f":"B2491&C2491","v":""}]
[null,{"$f":"IF(LEN(A2492)=0,\"\",INDEX('Smelter Look-up'!$A:$A,MATCH($A2492,'Smelter Look-up'!$E:$E,0)))","v":""},{"$f":"IF(LEN(A2492)=0,\"\",INDEX('Smelter Look-up'!$C:$C,MATCH($A2492,'Smelter Look-up'!$E:$E,0)))","v":""},null,{"$f":"IF(ISERROR($V2492),\"\",OFFSET('Smelter Look-up'!$D$4,$V2492-4,0)&\"\")","v":""},{"$f":"IF(ISERROR($V2492),\"\",OFFSET('Smelter Look-up'!$E$4,$V2492-4,0))","v":""},{"$f":"IF(C2492=$X$4,\"Enter smelter details\", IF(ISERROR($V2492),\"\",OFFSET('Smelter Look-up'!$F$4,$V2492-4,0)))","v":""},{"$f":"IF(ISERROR($V2492),\"\",OFFSET('Smelter Look-up'!$G$4,$V2492-4,0))","v":""},{"$f":"IF(ISERROR($V2492),\"\",OFFSET('Smelter Look-up'!$H$4,$V2492-4,0))","v":""},{"$f":"IF(ISERROR($V2492),\"\",OFFSET('Smelter Look-up'!$I$4,$V2492-4,0))","v":""},{"$nulls":7},{"$f":"IF(ISERROR($V2492),\"\",OFFSET('Smelter Look-up'!$C$4,$V2492-4,0)&\"\")","v":""},"",{"$f":"IF(B2492=\"\",\"\",IF(ISERROR(MATCH($J2492,SorP!$B$1:$B$6230,0)),\"\",INDIRECT(\"'SorP'!$A$\"&MATCH($J2492,SorP!$B$1:$B$6230,0))))","v":""},null,{"$f":"IF(C2492=\"\",NA(),MATCH($B2492&$C2492,'Smelter Look-up'!$J:$J,0))","v":{"$error":"#N/A"}},null,{"$f":"IF(AND(C2492=\"Smelter not listed\",OR(LEN(D2492)=0,LEN(E2492)=0)),1,0)","v":0},null,null,null,""]
[null,{"$f":"IF(LEN(A2493)=0,\"\",INDEX('Smelter Look-up'!$A:$A,MATCH($A2493,'Smelter Look-up'!$E:$E,0)))","v":""},{"$f":"IF(LEN(A2493)=0,\"\",INDEX('Smelter Look-up'!$C:$C,MATCH($A2493,'Smelter Look-up'!$E:$E,0)))","v":""},null,{"$f":"IF(ISERROR($V2493),\"\",OFFSET('Smelter Look-up'!$D$4,$V2493-4,0)&\"\")","v":""},{"$f":"IF(ISERROR($V2493),\"\",OFFSET('Smelter Look-up'!$E$4,$V2493-4,0))","v":""},{"$f":"IF(C2493=$X$4,\"Enter smelter details\", IF(ISERROR($V2493),\"\",OFFSET('Smelter Look-up'!$F$4,$V2493-4,0)))","v":""},{"$f":"IF(ISERROR($V2493),\"\",OFFSET('Smelter Look-up'!$G$4,$V2493-4,0))","v":""},{"$f":"IF(ISERROR($V2493),\"\",OFFSET('Smelter Look-up'!$H$4,$V2493-4,0))","v":""},{"$f":"IF(ISERROR($V2493),\"\",OFFSET('Smelter Look-up'!$I$4,$V2493-4,0))","v":""},{"$nulls":7},{"$f":"IF(ISERROR($V2493),\"\",OFFSET('Smelter Look-up'!$C$4,$V2493-4,0)&\"\")","v":""},"",{"$f":"IF(B2493=\"\",\"\",IF(ISERROR(MATCH($J2493,SorP!$B$1:$B$6230,0)),\"\",INDIRECT(\"'SorP'!$A$\"&MATCH($J2493,SorP!$B$1:$B$6230,0))))","v":""},null,{"$f":"IF(C2493=\"\",NA(),MATCH($B2493&$C2493,'Smelter Look-up'!$J:$J,0))","v":{"$error":"#N/A"}},null,{"$f":"IF(AND(C2493=\"Smelter not listed\",OR(LEN(D2493)=0,LEN(E2493)=0)),1,0)","v":0},null,null,null,""]
[{"$nulls":18},"",{"$f":"IF(B2494=\"\",\"\",IF(ISERROR(MATCH($J2494,SorP!$B$1:$B$6230,0)),\"\",INDIRECT(\"'SorP'!$A$\"&MATCH($J2494,SorP!$B$1:$B$6230,0))))","v":""},{"$nulls":7},{"$f":"B2494&C2494","v":""}]

{"sheet":"Checker","index":5,"n_rows":67,"n_cols":12,"rows_kept":67,"cut":false,"hidden":false,"merged":[[0,0,0,2]]}
[{"$f":"OFFSET(L!$C$1,MATCH(\"Checker\"&ADDRESS(ROW(),COLUMN(),4),L!$A:$A,0)-1,SL,,)","v":"To ensure all required fields have been populated before submitting to your customers review form for any line items highlighted in red"},null,null,{"$f":"OFFSET(L!$C$1,MATCH(\"Checker\"&ADDRESS(ROW(),COLUMN(),4),L!$A:$A,0)-1,SL,,)","v":"Required fields remaining to be completed"},"\n"]
["Click here to return to Declaration tab",{"$f":"IF(F62=1,\"Click here to return to Smelter List\",\"\")","v":""},{"$f":"IF(F61=1,\"Click here to return to Product List\",\"\")","v":""},{"$f":"IF(H67=0,\"0\",H67)","v":"0"}]
[{"$f":"OFFSET(L!$C$1,MATCH(\"Checker\"&ADDRESS(ROW(),COLUMN(),4),L!$A:$A,0)-1,SL,,)","v":"Required Fields"},{"$f":"OFFSET(L!$C$1,MATCH(\"Checker\"&ADDRESS(ROW(),COLUMN(),4),L!$A:$A,0)-1,SL,,)","v":"Answer provided"},{"$f":"OFFSET(L!$C$1,MATCH(\"Checker\"&ADDRESS(ROW(),COLUMN(),4),L!$A:$A,0)-1,SL,,)","v":"Notes"},{"$f":"OFFSET(L!$C$1,MATCH(\"Checker\"&ADDRESS(ROW(),COLUMN(),4),L!$A:$A,0)-1,SL,,)","v":"Hyperlink to source"},null,"necessary?","complete?","incomplete","comment1","comment for remaining"]
[{"$f":"Declaration!B8","v":"Company Name (*):"},{"$f":"Declaration!D8","v":"Samtec Incorporated"},{"$f":"IF(H4=1,J4,I4)","v":"Complete"},{"$f":"IF(H4=1,\"Click here to enter Company Name\",\"\")","v":""},"\n\n",1,{"$f":"IF(B4=0,1,0)","v":0},{"$f":"F4*G4","v":0},{"$f":"OFFSET(L!$C$1,MATCH(\"Checker\"&\"Comp\",L!$A:$A,0)-1,SL,,)","v":"Complete"},{"$f":"OFFSET(L!$C$1,MATCH(\"Checker\"&ADDRESS(ROW(),COLUMN(),4),L!$A:$A,0)-1,SL,,)","v":"Provide your company name on the Declaration tab cell D8"}]
[{"$f":"Declaration!B9","v":"Declaration Scope or Class (*):"},{"$f":"Declaration!D9","v":"A. Company"},"Complete",{"$f":"IF(H5=1,\"Click here to enter Declaration Scope\",\"\")","v":""},"\n\n",1,0,{"$f":"F5*G5","v":0},{"$f":"OFFSET(L!$C$1,MATCH(\"Checker\"&\"Comp\",L!$A:$A,0)-1,SL,,)","v":"Complete"},{"$f":"OFFSET(L!$C$1,MATCH(\"Checker\"&ADDRESS(ROW(),COLUMN(),4),L!$A:$A,0)-1,SL,,)","v":"Select the scope of declaration on the Declaration tab cell D9"}]
[{"$f":"Declaration!B10","v":"Description of Scope:"},{"$f":"Declaration!D10","v":0},"Complete",{"$f":"IF(H6=1,\"Click here to provide a Description of Scope\",\"\")","v":""},"\n\n",{"$f":"IF(OR(B5=Declaration!P9,B5=Declaration!Q9,B5=0),0,1)","v":0},1,0,{"$f":"OFFSET(L!$C$1,MATCH(\"Checker\"&\"Comp\",L!$A:$A,0)-1,SL,,)","v":"Complete"},{"$f":"OFFSET(L!$C$1,MATCH(\"Checker\"&ADDRESS(ROW(),COLUMN(),4),L!$A:$A,0)-1,SL,,)","v":"Provide description of scope on Declaration tab cell D10"}]
[{"$f":"Declaration!B15","v":"Contact Name (*):"},{"$f":"Declaration!D15","v":"Mark Bobo"},"Complete",{"$f":"IF(H7=1,\"Click here to enter Contact Name\",\"\")","v":""},"\n\n",1,0,0,{"$f":"OFFSET(L!$C$1,MATCH(\"Checker\"&\"Comp\",L!$A:$A,0)-1,SL,,)","v":"Complete"},{"$f":"OFFSET(L!$C$1,MATCH(\"Checker\"&ADDRESS(ROW(),COLUMN(),4),L!$A:$A,0)-1,SL,,)","v":"Provide contact name in Declaration tab cell D15"}]
[{"$f":"Declaration!B16","v":"Email – Contact (*):"},{"$f":"Declaration!D16","v":"mark.bobo@samtec.com"},"Complete",{"$f":"IF(H8=1,\"Click here to enter Email-Contact\",\"\")","v":""},"\n\n",1,{"$f":"IF(ISNUMBER(SEARCH(\"@\",B8)),0,1)","v":0},0,{"$f":"OFFSET(L!$C$1,MATCH(\"Checker\"&\"Comp\",L!$A:$A,0)-1,SL,,)","v":"Complete"},{"$f":"OFFSET(L!$C$1,MATCH(\"Checker\"&ADDRESS(ROW(),COLUMN(),4),L!$A:$A,0)-1,SL,,)","v":"Provide a valid email for contact in Declaration tab cell D16"}]
[{"$f":"Declaration!B17","v":"Phone – Contact (*):"},{"$f":"Declaration!D17","v":"812-944-6733"},"Complete",{"$f":"IF(H9=1,\"Click here to enter Phone-Contact\",\"\")","v":""},"\n\n",1,0,0,{"$f":"OFFSET(L!$C$1,MATCH(\"Checker\"&\"Comp\",L!$A:$A,0)-1,SL,,)","v":"Complete"},{"$f":"OFFSET(L!$C$1,MATCH(\"Checker\"&ADDRESS(ROW(),COLUMN(),4),L!$A:$A,0)-1,SL,,)","v":"Provide a phone number for contact in Declaration tab cell D17"}]
[{"$f":"Declaration!B18","v":"Authorizer (*):"},{"$f":"Declaration!D18","v":"Mark Bobo"},{"$f":"IF(H10=1,J10,I10)","v":"Complete"},{"$f":"IF(H10=1,\"Click here to enter an Authorized Company Representative's name\",\"\")","v":""},"\n\n",1,{"$f":"IF(B10=0,1,0)","v":0},0,{"$f":"OFFSET(L!$C$1,MATCH(\"Checker\"&\"Comp\",L!$A:$A,0)-1,SL,,)","v":"Complete"},{"$f":"OFFSET(L!$C$1,MATCH(\"Checker\"&ADDRESS(ROW(),COLUMN(),4),L!$A:$A,0)-1,SL,,)","v":"Provide authorized company representative contact name in Declaration tab cell D18"}]
[{"$f":"Declaration!B20","v":"Email - Authorizer (*):"},{"$f":"Declaration!D20","v":"mark.bobo@samtec.com"},"Complete",{"$f":"IF(H11=1,\"Click here to enter Representative's email\",\"\")","v":""},"\n\n",1,{"$f":"IF(ISNUMBER(SEARCH(\"@\",B11)),0,1)","v":0},0,{"$f":"OFFSET(L!$C$1,MATCH(\"Checker\"&\"Comp\",L!$A:$A,0)-1,SL,,)","v":"Complete"},{"$f":"OFFSET(L!$C$1,MATCH(\"Checker\"&ADDRESS(ROW(),COLUMN(),4),L!$A:$A,0)-1,SL,,)","v":"Provide an email for authorized company representative on Declaration tab cell D20"}]
[{"$f":"Declaration!B21","v":"Phone - Authorizer (*):"},{"$f":"Declaration!D21","v":"812-944-6733"},{"$f":"IF(H12=1,J12,I12)","v":"Complete"},{"$f":"IF(H12=1,\"Click here to enter Representative's phone\",\"\")","v":""},"\n\n",1,{"$f":"IF(B12=0,1,0)","v":0},{"$f":"F12*G12","v":0},{"$f":"OFFSET(L!$C$1,MATCH(\"Checker\"&\"Comp\",L!$A:$A,0)-1,SL,,)","v":"Complete"},{"$f":"OFFSET(L!$C$1,MATCH(\"Checker\"&ADDRESS(ROW(),COLUMN(),4),L!$A:$A,0)-1,SL,,)","v":"Provide a phone number for authorized company representative on Declaration tab cell D21"}]
[{"$f":"Declaration!B22","v":"Effective Date (*):"},{"$f":"Declaration!D22","v":"2018-05-09"},"Complete",{"$f":"IF(H13=1,\"Click here to enter Date of Completion\",\"\")","v":""},"\n\n",1,0,0,{"$f":"OFFSET(L!$C$1,MATCH(\"Checker\"&\"Comp\",L!$A:$A,0)-1,SL,,)","v":"Complete"},{"$f":"OFFSET(L!$C$1,MATCH(\"Checker\"&ADDRESS(ROW(),COLUMN(),4),L!$A:$A,0)-1,SL,,)","v":"Provide date the form was completed on Declaration tab cell D22"}]
[{"$f":"Declaration!B25","v":"1) Is any 3TG intentionally added or used in the product(s) or in the production process? (*)"},null,null,null,"\n\n\n\n",null,null,0]
[{"$f":"Declaration!B26","v":"Tantalum  "},{"$f":"Declaration!D26","v":"No"},"Complete",{"$f":"IF(H15=1,\"Click here to answer question 1 for Tantalum\",\"\")","v":""},"\n",1,0,0,{"$f":"OFFSET(L!$C$1,MATCH(\"Checker\"&\"Comp\",L!$A:$A,0)-1,SL,,)","v":"Complete"},{"$f":"OFFSET(L!$C$1,MATCH(\"Checker\"&ADDRESS(ROW(),COLUMN(),4),L!$A:$A,0)-1,SL,,)","v":"Declare if Tantalum is intentionally added to your products on Declaration tab cell D26"}]
[{"$f":"Declaration!B27","v":"Tin  (*)"},{"$f":"Declaration!D27","v":"Yes"},"Complete",{"$f":"IF(H16=1,\"Click here to answer question 1 for Tin\",\"\")","v":""},"\n\n",1,0,0,{"$f":"OFFSET(L!$C$1,MATCH(\"Checker\"&\"Comp\",L!$A:$A,0)-1,SL,,)","v":"Complete"},{"$f":"OFFSET(L!$C$1,MATCH(\"Checker\"&ADDRESS(ROW(),COLUMN(),4),L!$A:$A,0)-1,SL,,)","v":"Declare if Tin is intentionally added to your products on Declaration tab cell D27"}]
[{"$f":"Declaration!B28","v":"Gold  (*)"},{"$f":"Declaration!D28","v":"Yes"},"Complete",{"$f":"IF(H17=1,\"Click here to answer question 1 for Gold\",\"\")","v":""},"\n\n",1,0,0,{"$f":"OFFSET(L!$C$1,MATCH(\"Checker\"&\"Comp\",L!$A:$A,0)-1,SL,,)","v":"Complete"},{"$f":"OFFSET(L!$C$1,MATCH(\"Checker\"&ADDRESS(ROW(),COLUMN(),4),L!$A:$A,0)-1,SL,,)","v":"Declare if Gold is intentionally added to your products on Declaration tab cell D28"}]
[{"$f":"Declaration!B29","v":"Tungsten  "},{"$f":"Declaration!D29","v":"No"},"Complete",{"$f":"IF(H18=1,\"Click here to answer question 1 for Tungsten\",\"\")","v":""},"\n\n",1,0,0,{"$f":"OFFSET(L!$C$1,MATCH(\"Checker\"&\"Comp\",L!$A:$A,0)-1,SL,,)","v":"Complete"},{"$f":"OFFSET(L!$C$1,MATCH(\"Checker\"&ADDRESS(ROW(),COLUMN(),4),L!$A:$A,0)-1,SL,,)","v":"Declare if Tungsten is intentionally added to your products on Declaration tab cell D29"}]
[{"$f":"Declaration!B31","v":"2) Does any 3TG remain in the product(s)? (*)"},null,null,null,"\n\n\n"]
[{"$f":"Declaration!B32","v":"Tantalum  "},{"$f":"IF($B$15=\"Yes\",Declaration!D32,0)","v":0},"Complete",{"$f":"IF(H20=1,\"Click here to answer question 2 for Tantalum\",\"\")","v":""},"\n\n",{"$f":"IF(B$15=\"No\",0,1)","v":0},1,0,{"$f":"OFFSET(L!$C$1,MATCH(\"Checker\"&\"Comp\",L!$A:$A,0)-1,SL,,)","v":"Complete"},{"$f":"OFFSET(L!$C$1,MATCH(\"Checker\"&ADDRESS(ROW(),COLUMN(),4),L!$A:$A,0)-1,SL,,)","v":"Declare if Tantalum is necessary to the production of your products and contained within the finished products declared in Declaration tab cell D32"}]
[{"$f":"Declaration!B33","v":"Tin  (*)"},{"$f":"IF($B$16=\"Yes\",Declaration!D33,0)","v":"Yes"},"Complete",{"$f":"IF(H21=1,\"Click here to answer question 2 for Tin\",\"\")","v":""},"\n\n",{"$f":"IF(B$16=\"No\",0,1)","v":1},0,0,{"$f":"OFFSET(L!$C$1,MATCH(\"Checker\"&\"Comp\",L!$A:$A,0)-1,SL,,)","v":"Complete"},{"$f":"OFFSET(L!$C$1,MATCH(\"Checker\"&ADDRESS(ROW(),COLUMN(),4),L!$A:$A,0)-1,SL,,)","v":"Declare if Tin is necessary to the production of your products and contained within the finished products declared in Declaration tab cell D33"}]
[{"$f":"Declaration!B34","v":"Gold  (*)"},{"$f":"IF($B$17=\"Yes\",Declaration!D34,0)","v":"Yes"},"Complete",{"$f":"IF(H22=1,\"Click here to answer question 2 for Gold\",\"\")","v":""},"\n\n",{"$f":"IF(B$17=\"No\",0,1)","v":1},0,0,{"$f":"OFFSET(L!$C$1,MATCH(\"Checker\"&\"Comp\",L!$A:$A,0)-1,SL,,)","v":"Complete"},{"$f":"OFFSET(L!$C$1,MATCH(\"Checker\"&ADDRESS(ROW(),COLUMN(),4),L!$A:$A,0)-1,SL,,)","v":"Declare if Gold is necessary to the production of your products and contained within the finished products declared in Declaration tab cell D34"}]
[{"$f":"Declaration!B35","v":"Tungsten  "},{"$f":"IF($B$18=\"Yes\",Declaration!D35,0)","v":0},"Complete",{"$f":"IF(H23=1,\"Click here to answer question 2 for Tungsten\",\"\")","v":""},"\n\n",{"$f":"IF(B$18=\"No\",0,1)","v":0},1,0,{"$f":"OFFSET(L!$C$1,MATCH(\"Checker\"&\"Comp\",L!$A:$A,0)-1,SL,,)","v":"Complete"},{"$f":"OFFSET(L!$C$1,MATCH(\"Checker\"&ADDRESS(ROW(),COLUMN(),4),L!$A:$A,0)-1,SL,,)","v":"Declare if Tungsten is necessary to the production of your products and contained within the finished products declared in Declaration tab cell D35"}]
[{"$f":"Declaration!B37","v":"3) Do any of the smelters in your supply chain source the 3TG from the covered countries? (SEC term, see definitions tab) (*)"},null,null,null,"\n\n"]
[{"$f":"Declaration!B38","v":"Tantalum  "},{"$f":"IF(AND($B$15=\"Yes\",$B$20=\"Yes\"),Declaration!D38,0)","v":0},"Complete",{"$f":"IF(H25=1,\"Click here to answer question 3 for Tantalum\",\"\")","v":""},"\n\n",{"$f":"IF(OR(B15=\"No\",B20=\"No\"),0,1)","v":0},{"$f":"IF(B25=0,1,0)","v":1},{"$f":"F25*G25","v":0},{"$f":"OFFSET(L!$C$1,MATCH(\"Checker\"&\"Comp\",L!$A:$A,0)-1,SL,,)","v":"Complete"},{"$f":"OFFSET(L!$C$1,MATCH(\"Checker\"&ADDRESS(ROW(),COLUMN(),4),L!$A:$A,0)-1,SL,,)","v":"Declare if Tantalum used within the scope of products declared within this survey response originated from the DRC or an adjoining Country on the Declaration tab cell D38"}]
[{"$f":"Declaration!B39","v":"Tin  (*)"},{"$f":"IF(AND($B$16=\"Yes\",$B$21=\"Yes\"),Declaration!D39,0)","v":"No"},"Complete",{"$f":"IF(H26=1,\"Click here to answer question 3 for Tin\",\"\")","v":""},"\n\n",{"$f":"IF(OR(B16=\"No\",B21=\"No\"),0,1)","v":1},0,0,{"$f":"OFFSET(L!$C$1,MATCH(\"Checker\"&\"Comp\",L!$A:$A,0)-1,SL,,)","v":"Complete"},{"$f":"OFFSET(L!$C$1,MATCH(\"Checker\"&ADDRESS(ROW(),COLUMN(),4),L!$A:$A,0)-1,SL,,)","v":"Declare if Tin used within the scope of products declared within this survey response originated from the DRC or an adjoining Country on the Declaration tab cell D39"}]
[{"$f":"Declaration!B40","v":"Gold  (*)"},{"$f":"IF(AND($B$17=\"Yes\",$B$22=\"Yes\"),Declaration!D40,0)","v":"No"},"Complete",{"$f":"IF(H27=1,\"Click here to answer question 3 for Gold\",\"\")","v":""},"\n\n",{"$f":"IF(OR(B17=\"No\",B22=\"No\"),0,1)","v":1},0,0,{"$f":"OFFSET(L!$C$1,MATCH(\"Checker\"&\"Comp\",L!$A:$A,0)-1,SL,,)","v":"Complete"},{"$f":"OFFSET(L!$C$1,MATCH(\"Checker\"&ADDRESS(ROW(),COLUMN(),4),L!$A:$A,0)-1,SL,,)","v":"Declare if Gold used within the scope of products declared within this survey response originated from the DRC or an adjoining Country on the Declaration tab cell D40"}]
[{"$f":"Declaration!B41","v":"Tungsten  "},{"$f":"IF(AND($B$18=\"Yes\",$B$23=\"Yes\"),Declaration!D41,0)","v":0},"Complete",{"$f":"IF(H28=1,\"Click here to answer question 3 for Tungsten\",\"\")","v":""},"\n\n",{"$f":"IF(OR(B18=\"No\",B23=\"No\"),0,1)","v":0},1,0,{"$f":"OFFSET(L!$C$1,MATCH(\"Checker\"&\"Comp\",L!$A:$A,0)-1,SL,,)","v":"Complete"},{"$f":"OFFSET(L!$C$1,MATCH(\"Checker\"&ADDRESS(ROW(),COLUMN(),4),L!$A:$A,0)-1,SL,,)","v":"Declare if Tungsten used within the scope of products declared within this survey response originated from the DRC or an adjoining Country on the Declaration tab cell D41"}]
[{"$f":"Declaration!B43","v":"4) Does 100 percent of the 3TG (necessary to the functionality or production of your products) originate from recycled or scrap sources?  (*)"},null,null,null,"\n\n"]
[{"$f":"Declaration!B44","v":"Tantalum  "},{"$f":"IF(AND($B$15=\"Yes\",$B$20=\"Yes\"),Declaration!D44,0)","v":0},{"$f":"IF(H30=1,J30,I30)","v":"Complete"},{"$f":"IF(H30=1,\"Click here to answer question 4 for Tantalum\",\"\")","v":""},"\n\n",{"$f":"F25","v":0},{"$f":"IF(B30=0,1,0)","v":1},{"$f":"F30*G30","v":0},{"$f":"OFFSET(L!$C$1,MATCH(\"Checker\"&\"Comp\",L!$A:$A,0)-1,SL,,)","v":"Complete"},{"$f":"OFFSET(L!$C$1,MATCH(\"Checker\"&ADDRESS(ROW(),COLUMN(),4),L!$A:$A,0)-1,SL,,)","v":"Declare if Tantalum used within the scope of products declared within this survey response originated entirely from a recycled or scrap source on the Declaration tab cell D44"}]
[{"$f":"Declaration!B45","v":"Tin  (*)"},{"$f":"IF(AND($B$16=\"Yes\",$B$21=\"Yes\"),Declaration!D45,0)","v":"No"},{"$f":"IF(H31=1,J31,I31)","v":"Complete"},{"$f":"IF(H31=1,\"Click here to answer question 4 for Tin\",\"\")","v":""},"\n\n",{"$f":"F26","v":1},{"$f":"IF(B31=0,1,0)","v":0},{"$f":"F31*G31","v":0},{"$f":"OFFSET(L!$C$1,MATCH(\"Checker\"&\"Comp\",L!$A:$A,0)-1,SL,,)","v":"Complete"},{"$f":"OFFSET(L!$C$1,MATCH(\"Checker\"&ADDRESS(ROW(),COLUMN(),4),L!$A:$A,0)-1,SL,,)","v":"Declare if Tin used within the scope of products declared within this survey response originated entirely from a recycled or scrap source on the Declaration tab cell D45"}]
[{"$f":"Declaration!B46","v":"Gold  (*)"},{"$f":"IF(AND($B$17=\"Yes\",$B$22=\"Yes\"),Declaration!D46,0)","v":"Yes"},{"$f":"IF(H32=1,J32,I32)","v":"Complete"},{"$f":"IF(H32=1,\"Click here to answer question 4 for Gold\",\"\")","v":""},"\n\n",{"$f":"F27","v":1},{"$f":"IF(B32=0,1,0)","v":0},{"$f":"F32*G32","v":0},{"$f":"OFFSET(L!$C$1,MATCH(\"Checker\"&\"Comp\",L!$A:$A,0)-1,SL,,)","v":"Complete"},{"$f":"OFFSET(L!$C$1,MATCH(\"Checker\"&ADDRESS(ROW(),COLUMN(),4),L!$A:$A,0)-1,SL,,)","v":"Declare if Gold used within the scope of products declared within this survey response originated entirely from a recycled or scrap source on the Declaration tab cell D46"}]
[{"$f":"Declaration!B47","v":"Tungsten  "},{"$f":"IF(AND($B$18=\"Yes\",$B$23=\"Yes\"),Declaration!D47,0)","v":0},{"$f":"IF(H33=1,J33,I33)","v":"Complete"},{"$f":"IF(H33=1,\"Click here to answer question 4 for Tungsten\",\"\")","v":""},"\n\n",{"$f":"F28","v":0},{"$f":"IF(B33=0,1,0)","v":1},{"$f":"F33*G33","v":0},{"$f":"OFFSET(L!$C$1,MATCH(\"Checker\"&\"Comp\",L!$A:$A,0)-1,SL,,)","v":"Complete"},{"$f":"OFFSET(L!$C$1,MATCH(\"Checker\"&ADDRESS(ROW(),COLUMN(),4),L!$A:$A,0)-1,SL,,)","v":"Declare if Tungsten used within the scope of products declared within this survey response originated entirely from a recycled or scrap source on the Declaration tab cell D47"}]
[{"$f":"Declaration!B49","v":"5) What percentage of relevant suppliers have provided a response to your supply chain survey?  (*)"},null,null,null,"\n\n"]
[{"$f":"Declaration!B50","v":"Tantalum  "},{"$f":"IF(AND($B$15=\"Yes\",$B$20=\"Yes\"),Declaration!D50,0)","v":0},"Complete",{"$f":"IF(H35=1,\"Click here to answer question 5 for Tantalum\",\"\")","v":""},"\n",{"$f":"F25","v":0},1,0,{"$f":"OFFSET(L!$C$1,MATCH(\"Checker\"&\"Comp\",L!$A:$A,0)-1,SL,,)","v":"Complete"},{"$f":"OFFSET(L!$C$1,MATCH(\"Checker\"&ADDRESS(ROW(),COLUMN(),4),L!$A:$A,0)-1,SL,,)","v":"Provide % of completeness of supplier's smelter information on Declaration tab cell D50"}]
[{"$f":"Declaration!B51","v":"Tin  (*)"},{"$f":"IF(AND($B$16=\"Yes\",$B$21=\"Yes\"),Declaration!D51,0)","v":1},{"$f":"IF(H36=1,J36,I36)","v":"Complete"},{"$f":"IF(H36=1,\"Click here to answer question 5 for Tin\",\"\")","v":""},"\n",{"$f":"F26","v":1},0,0,{"$f":"OFFSET(L!$C$1,MATCH(\"Checker\"&\"Comp\",L!$A:$A,0)-1,SL,,)","v":"Complete"},{"$f":"OFFSET(L!$C$1,MATCH(\"Checker\"&ADDRESS(ROW(),COLUMN(),4),L!$A:$A,0)-1,SL,,)","v":"Provide % of completeness of supplier's smelter information on Declaration tab cell D51"}]
[{"$f":"Declaration!B52","v":"Gold  (*)"},{"$f":"IF(AND($B$17=\"Yes\",$B$22=\"Yes\"),Declaration!D52,0)","v":1},"Complete",{"$f":"IF(H37=1,\"Click here to answer question 5 for Gold\",\"\")","v":""},"\n",{"$f":"F27","v":1},0,0,{"$f":"OFFSET(L!$C$1,MATCH(\"Checker\"&\"Comp\",L!$A:$A,0)-1,SL,,)","v":"Complete"},{"$f":"OFFSET(L!$C$1,MATCH(\"Checker\"&ADDRESS(ROW(),COLUMN(),4),L!$A:$A,0)-1,SL,,)","v":"Provide % of completeness of supplier's smelter information on Declaration tab cell D52"}]
[{"$f":"Declaration!B53","v":"Tungsten  "},{"$f":"IF(AND($B$18=\"Yes\",$B$23=\"Yes\"),Declaration!D53,0)","v":0},"Complete",{"$f":"IF(H38=1,\"Click here to answer question 5 for Tungsten\",\"\")","v":""},"\n",{"$f":"F28","v":0},1,0,{"$f":"OFFSET(L!$C$1,MATCH(\"Checker\"&\"Comp\",L!$A:$A,0)-1,SL,,)","v":"Complete"},{"$f":"OFFSET(L!$C$1,MATCH(\"Checker\"&ADDRESS(ROW(),COLUMN(),4),L!$A:$A,0)-1,SL,,)","v":"Provide % of completeness of supplier's smelter information on Declaration tab cell D53"}]
[{"$f":"Declaration!B55","v":"6) Have you identified all of the smelters supplying the 3TG to your supply chain?  (*)"},null,null,null,"\n\n\n"]
[{"$f":"Declaration!B56","v":"Tantalum  "},{"$f":"IF(AND($B$15=\"Yes\",$B$20=\"Yes\"),Declaration!D56,0)","v":0},"Complete",{"$f":"IF(H40=1,\"Click here to answer question 6 for Tantalum\",\"\")","v":""},"\n\n\n",{"$f":"F25","v":0},1,0,{"$f":"OFFSET(L!$C$1,MATCH(\"Checker\"&\"Comp\",L!$A:$A,0)-1,SL,,)","v":"Complete"},{"$f":"OFFSET(L!$C$1,MATCH(\"Checker\"&ADDRESS(ROW(),COLUMN(),4),L!$A:$A,0)-1,SL,,)","v":"Declare if all smelter names have been provided in this survey response under the scope of products declared on the Declaration tab cell D56"}]
[{"$f":"Declaration!B57","v":"Tin  (*)"},{"$f":"IF(AND($B$16=\"Yes\",$B$21=\"Yes\"),Declaration!D57,0)","v":"Yes"},"Complete",{"$f":"IF(H41=1,\"Click here to answer question 6 for Tin\",\"\")","v":""},"\n\n\n",{"$f":"F26","v":1},0,0,{"$f":"OFFSET(L!$C$1,MATCH(\"Checker\"&\"Comp\",L!$A:$A,0)-1,SL,,)","v":"Complete"},{"$f":"OFFSET(L!$C$1,MATCH(\"Checker\"&ADDRESS(ROW(),COLUMN(),4),L!$A:$A,0)-1,SL,,)","v":"Declare if all smelter names have been provided in this survey response under the scope of products declared on the Declaration tab cell D57"}]
[{"$f":"Declaration!B58","v":"Gold  (*)"},{"$f":"IF(AND($B$17=\"Yes\",$B$22=\"Yes\"),Declaration!D58,0)","v":"Yes"},"Complete",{"$f":"IF(H42=1,\"Click here to answer question 6 for Gold\",\"\")","v":""},"\n\n\n",{"$f":"F27","v":1},0,0,{"$f":"OFFSET(L!$C$1,MATCH(\"Checker\"&\"Comp\",L!$A:$A,0)-1,SL,,)","v":"Complete"},{"$f":"OFFSET(L!$C$1,MATCH(\"Checker\"&ADDRESS(ROW(),COLUMN(),4),L!$A:$A,0)-1,SL,,)","v":"Declare if all smelter names have been provided in this survey response under the scope of products declared on the Declaration tab cell D58"}]
[{"$f":"Declaration!B59","v":"Tungsten  "},{"$f":"IF(AND($B$18=\"Yes\",$B$23=\"Yes\"),Declaration!D59,0)","v":0},"Complete",{"$f":"IF(H43=1,\"Click here to answer question 6 for Tungsten\",\"\")","v":""},"\n\n\n",{"$f":"F28","v":0},1,0,{"$f":"OFFSET(L!$C$1,MATCH(\"Checker\"&\"Comp\",L!$A:$A,0)-1,SL,,)","v":"Complete"},{"$f":"OFFSET(L!$C$1,MATCH(\"Checker\"&ADDRESS(ROW(),COLUMN(),4),L!$A:$A,0)-1,SL,,)","v":"Declare if all smelter names have been provided in this survey response which the scope of products declared on the Declaration tab cell D59"}]
[{"$f":"Declaration!B61","v":"7) Has all applicable smelter information received by your company been reported in this declaration?  (*)"},null,null,null,"\n\n\n\n"]
[{"$f":"Declaration!B62","v":"Tantalum  "},{"$f":"IF(AND($B$15=\"Yes\",$B$20=\"Yes\"),Declaration!D62,0)","v":0},"Complete",{"$f":"IF(H45=1,\"Click here to answer question 7 for Tantalum\",\"\")","v":""},"\n\n",{"$f":"F25","v":0},1,0,{"$f":"OFFSET(L!$C$1,MATCH(\"Checker\"&\"Comp\",L!$A:$A,0)-1,SL,,)","v":"Complete"},{"$f":"OFFSET(L!$C$1,MATCH(\"Checker\"&ADDRESS(ROW(),COLUMN(),4),L!$A:$A,0)-1,SL,,)","v":"Declare if all applicable Tantalum smelter information has been provided on Declaration tab cell D62"}]
[{"$f":"Declaration!B63","v":"Tin  (*)"},{"$f":"IF(AND($B$16=\"Yes\",$B$21=\"Yes\"),Declaration!D63,0)","v":"Yes"},"Complete",{"$f":"IF(H46=1,\"Click here to answer question 7 for Tin\",\"\")","v":""},"\n\n",{"$f":"F26","v":1},0,0,{"$f":"OFFSET(L!$C$1,MATCH(\"Checker\"&\"Comp\",L!$A:$A,0)-1,SL,,)","v":"Complete"},{"$f":"OFFSET(L!$C$1,MATCH(\"Checker\"&ADDRESS(ROW(),COLUMN(),4),L!$A:$A,0)-1,SL,,)","v":"Declare if all applicable Tin smelter information has been provided on Declaration tab cell D63"}]
[{"$f":"Declaration!B64","v":"Gold  (*)"},{"$f":"IF(AND($B$17=\"Yes\",$B$22=\"Yes\"),Declaration!D64,0)","v":"Yes"},"Complete",{"$f":"IF(H47=1,\"Click here to answer question 7 for Gold\",\"\")","v":""},"\n\n",{"$f":"F27","v":1},0,0,{"$f":"OFFSET(L!$C$1,MATCH(\"Checker\"&\"Comp\",L!$A:$A,0)-1,SL,,)","v":"Complete"},{"$f":"OFFSET(L!$C$1,MATCH(\"Checker\"&ADDRESS(ROW(),COLUMN(),4),L!$A:$A,0)-1,SL,,)","v":"Declare if all applicable Gold smelter information has been provided on Declaration tab cell D64"}]
[{"$f":"Declaration!B65","v":"Tungsten  "},{"$f":"IF(AND($B$18=\"Yes\",$B$23=\"Yes\"),Declaration!D65,0)","v":0},"Complete",{"$f":"IF(H48=1,\"Click here to answer question 7 for Tungsten\",\"\")","v":""},"\n\n",{"$f":"F28","v":0},1,0,{"$f":"OFFSET(L!$C$1,MATCH(\"Checker\"&\"Comp\",L!$A:$A,0)-1,SL,,)","v":"Complete"},{"$f":"OFFSET(L!$C$1,MATCH(\"Checker\"&ADDRESS(ROW(),COLUMN(),4),L!$A:$A,0)-1,SL,,)","v":"Declare if all applicable Tungsten smelter information has been provided on Declaration tab cell D65"}]
[{"$f":"Declaration!B68","v":"Question"},null,null,null,"\n"]
[{"$f":"Declaration!B69","v":"A. Have you established a conflict minerals sourcing policy? (*)"},{"$f":"Declaration!D69","v":"Yes"},"Complete",{"$f":"IF(H50=1,\"Click here to answer question (A)\",\"\")","v":""},"\n\n",{"$f":"IF(SUM(F$25:F$28)=0,0,1)","v":1},0,0,{"$f":"OFFSET(L!$C$1,MATCH(\"Checker\"&\"Comp\",L!$A:$A,0)-1,SL,,)","v":"Complete"},{"$f":"OFFSET(L!$C$1,MATCH(\"Checker\"&ADDRESS(ROW(),COLUMN(),4),L!$A:$A,0)-1,SL,,)","v":"Answer if your company has a DRC conflict-free sourcing policy on the Declaration tab cell D69"}]
[{"$f":"Declaration!B71","v":"B. Is your conflict minerals sourcing policy publicly available on your website? (Note – If yes, the user shall specify the URL in the comment field.) (*)"},{"$f":"Declaration!D71","v":"Yes"},"Complete",{"$f":"IF(H51=1,\"Click here to answer question (B)\",\"\")","v":""},"\n\n",{"$f":"F$50","v":1},0,0,{"$f":"OFFSET(L!$C$1,MATCH(\"Checker\"&\"Comp\",L!$A:$A,0)-1,SL,,)","v":"Complete"},{"$f":"OFFSET(L!$C$1,MATCH(\"Checker\"&ADDRESS(ROW(),COLUMN(),4),L!$A:$A,0)-1,SL,,)","v":"Answer if your company has made your DRC conflict-free sourcing policy publically available on your website on the Declaration tab cell D71"}]
["The URL in the comment field",{"$f":"Declaration!G71","v":"http://suddendocs.samtec.com/environmental_compliance/certifications/drc_coc_certification.pdf"},{"$f":"IF(H52=1,J52,I52)","v":"Complete"},{"$f":"IF(H52=1,\"Click here to specify URL for question (B)\",\"\")","v":""},null,{"$f":"IF(AND(F51=1,B51=\"Yes\"),1,0)","v":1},{"$f":"IF(LEN(B52)>1,0,1)","v":0},0,{"$f":"OFFSET(L!$C$1,MATCH(\"Checker\"&\"Comp\",L!$A:$A,0)-1,SL,,)","v":"Complete"},{"$f":"OFFSET(L!$C$1,MATCH(\"Checker\"&ADDRESS(ROW(),COLUMN(),4),L!$A:$A,0)-1,SL,,)","v":"Enter the URL in Declaration worksheet cell G71 if you answer \"Yes\" for question B. The format of the URL should be \"www.companyname.com\""}]
[{"$f":"Declaration!B73","v":"C. Do you require your direct suppliers to be DRC conflict-free? (*)"},{"$f":"Declaration!D73","v":"Yes"},"Complete",{"$f":"IF(H53=1,\"Click here to answer question (C)\",\"\")","v":""},"\n\n",1,0,0,{"$f":"OFFSET(L!$C$1,MATCH(\"Checker\"&\"Comp\",L!$A:$A,0)-1,SL,,)","v":"Complete"},{"$f":"OFFSET(L!$C$1,MATCH(\"Checker\"&ADDRESS(ROW(),COLUMN(),4),L!$A:$A,0)-1,SL,,)","v":"Answer if you require your direct suppliers to be DRC conflict-free on the Declaration tab cell D73"}]
[{"$f":"Declaration!B75","v":"D. Do you require your direct suppliers to source the 3TG from smelters whose due diligence practices have been validated by an independent third party audit program? (*)"},{"$f":"Declaration!D75","v":"Yes"},{"$f":"IF(H54=1,J54,I54)","v":"Complete"},{"$f":"IF(H54=1,\"Click here to answer question (D)\",\"\")","v":""},"\n\n",1,0,0,{"$f":"OFFSET(L!$C$1,MATCH(\"Checker\"&\"Comp\",L!$A:$A,0)-1,SL,,)","v":"Complete"},{"$f":"OFFSET(L!$C$1,MATCH(\"Checker\"&ADDRESS(ROW(),COLUMN(),4),L!$A:$A,0)-1,SL,,)","v":"Answer if you require your direct suppliers to source from smelters validated as DRC conflict-free using the Responsible Minerals Assurance Process conformant smelter list on Declaration tab cell D75"}]
[{"$f":"Declaration!B77","v":"E. Have you implemented due diligence measures for conflict-free sourcing? (*)"},{"$f":"Declaration!D77","v":"Yes"},"Complete",{"$f":"IF(H55=1,\"Click here to answer question (E)\",\"\")","v":""},"\n\n",1,0,0,{"$f":"OFFSET(L!$C$1,MATCH(\"Checker\"&\"Comp\",L!$A:$A,0)-1,SL,,)","v":"Complete"},{"$f":"OFFSET(L!$C$1,MATCH(\"Checker\"&ADDRESS(ROW(),COLUMN(),4),L!$A:$A,0)-1,SL,,)","v":"Answer if you have implemented conflict-free minerals sourcing due diligence measures on Declaration tab cell D77"}]
[{"$f":"Declaration!B79","v":"F. Does your company conduct Conflict Minerals survey(s) of your relevant supplier(s)? (*)"},{"$f":"Declaration!D79","v":"Yes, in conformance with IPC1755 (e.g., CMRT)"},"Complete",{"$f":"IF(H56=1,\"Click here to answer question (F)\",\"\")","v":""},"\n\n",1,0,0,{"$f":"OFFSET(L!$C$1,MATCH(\"Checker\"&\"Comp\",L!$A:$A,0)-1,SL,,)","v":"Complete"},{"$f":"OFFSET(L!$C$1,MATCH(\"Checker\"&ADDRESS(ROW(),COLUMN(),4),L!$A:$A,0)-1,SL,,)","v":"Answer if you request your suppliers to fill out this Conflict Minerals Reporting Template on Declaration tab cell D79"}]
[]
[{"$f":"Declaration!B81","v":"G. Do you review due diligence information received from your suppliers against your company’s expectations? (*)"},{"$f":"Declaration!D81","v":"Yes"},"Complete",{"$f":"IF(H58=1,\"Click here to answer question (G)\",\"\")","v":""},"\n\n",1,0,0,{"$f":"OFFSET(L!$C$1,MATCH(\"Checker\"&\"Comp\",L!$A:$A,0)-1,SL,,)","v":"Complete"},{"$f":"OFFSET(L!$C$1,MATCH(\"Checker\"&ADDRESS(ROW(),COLUMN(),4),L!$A:$A,0)-1,SL,,)","v":"Answer if you verify responses from your suppliers against your company's expectations on Declaration tab cell D83"}]
[{"$f":"Declaration!B83","v":"H. Does your review process include corrective action management? (*)"},{"$f":"Declaration!D83","v":"Yes"},"Complete",{"$f":"IF(H59=1,\"Click here to answer question (H)\",\"\")","v":""},"\n\n",1,0,0,{"$f":"OFFSET(L!$C$1,MATCH(\"Checker\"&\"Comp\",L!$A:$A,0)-1,SL,,)","v":"Complete"},{"$f":"OFFSET(L!$C$1,MATCH(\"Checker\"&ADDRESS(ROW(),COLUMN(),4),L!$A:$A,0)-1,SL,,)","v":"Answer if your verification process includes corrective action management on Declaration tab cell D85"}]
[{"$f":"Declaration!B85","v":"I. Is your company required to file an annual conflict minerals disclosure with the SEC? (*)"},{"$f":"Declaration!D85","v":"No"},"Complete",{"$f":"IF(H60=1,\"Click here to answer question (I)\",\"\")","v":""},"\n\n",1,0,0,{"$f":"OFFSET(L!$C$1,MATCH(\"Checker\"&\"Comp\",L!$A:$A,0)-1,SL,,)","v":"Complete"},{"$f":"OFFSET(L!$C$1,MATCH(\"Checker\"&ADDRESS(ROW(),COLUMN(),4),L!$A:$A,0)-1,SL,,)","v":"Answer if you are subject to the SEC Disclosure requirement on Declaration tab cell D87"}]
["Product List",{"$f":"IF(G61=1,\"No products or item numbers listed\",\"One or more product / item numbers have been provided\")","v":"No products or item numbers listed"},"Complete",{"$f":"IF(H61=1,\"Click here to enter detail on Product List tab\",\"\")","v":""},"\n\n",{"$f":"IF(B5=Declaration!Q9,1,0)","v":0},{"$f":"IF('Product List'!B6=\"\",1,0)","v":1},0,{"$f":"OFFSET(L!$C$1,MATCH(\"Checker\"&\"Comp\",L!$A:$A,0)-1,SL,,)","v":"Complete"},{"$f":"OFFSET(L!$C$1,MATCH(\"Checker\"&ADDRESS(ROW(),COLUMN(),4),L!$A:$A,0)-1,SL,,)","v":"If applicable, provide 1 or more Products or Item Numbers this declaration applies to. From Declaration tab select hyperlink in cell 6H1 to enter Product List tab"}]
["Smelter List - Tantalum",null,{"$f":"IF(K62=1,L62,IF(B15=\"No\",\"Not Required\",IF(G62=0,I62,J62)))","v":"Not Required"},{"$f":"IF(H62=0,\"\",\"Click here to provide smelter information\")","v":""},"\n\n",{"$f":"F25","v":0},{"$f":"IF(AND(COUNTIF(SmelterIdetifiedForMetal,\"Tantalum\")>0,COUNTIF('Smelter List'!AB$5:AB$2493,\"Tantalum?*\")>0),0,1)","v":1},0,{"$f":"OFFSET(L!$C$1,MATCH(\"Checker\"&\"Comp\",L!$A:$A,0)-1,SL,,)","v":"Complete"},{"$f":"OFFSET(L!$C$1,MATCH(\"Checker\"&ADDRESS(ROW(),COLUMN(),4),L!$A:$A,0)-1,SL,,)","v":"Provide list of tantalum smelters contributing material to supply chain on Smelter List tab"},{"$f":"IF(H15+H20>0,1,0)","v":0},{"$f":"OFFSET(L!$C$1,MATCH(\"Checker\"&ADDRESS(ROW(),COLUMN(),4),L!$A:$A,0)-1,SL,,)","v":"Please answer Question 1 / Question 2 on Declaration tab"}]
["Smelter List - Tin",null,{"$f":"IF(K63=1,L63,IF(B16=\"No\",\"Not Required\",IF(G63=0,I63,J63)))","v":"Complete"},{"$f":"IF(H63=0,\"\",\"Click here to provide smelter information\")","v":""},"\n\n",{"$f":"F26","v":1},{"$f":"IF(AND(COUNTIF(SmelterIdetifiedForMetal,\"Tin\")>0,COUNTIF('Smelter List'!AB$5:AB$2493,\"Tin?*\")>0),0,1)","v":0},0,{"$f":"OFFSET(L!$C$1,MATCH(\"Checker\"&\"Comp\",L!$A:$A,0)-1,SL,,)","v":"Complete"},{"$f":"OFFSET(L!$C$1,MATCH(\"Checker\"&ADDRESS(ROW(),COLUMN(),4),L!$A:$A,0)-1,SL,,)","v":"Provide list of tin smelters contributing material to supply chain on Smelter List tab"},{"$f":"IF(H16+H21>0,1,0)","v":0},{"$f":"OFFSET(L!$C$1,MATCH(\"Checker\"&ADDRESS(ROW(),COLUMN(),4),L!$A:$A,0)-1,SL,,)","v":"Please answer Question 1 / Question 2 on Declaration tab"}]
["Smelter List - Gold",null,{"$f":"IF(K64=1,L64,IF(B17=\"No\",\"Not Required\",IF(G64=0,I64,J64)))","v":"Complete"},{"$f":"IF(H64=0,\"\",\"Click here to provide smelter information\")","v":""},"\n\n",{"$f":"F27","v":1},{"$f":"IF(AND(COUNTIF(SmelterIdetifiedForMetal,\"Gold\")>0,COUNTIF('Smelter List'!AB$5:AB$2493,\"Gold?*\")>0),0,1)","v":0},0,{"$f":"OFFSET(L!$C$1,MATCH(\"Checker\"&\"Comp\",L!$A:$A,0)-1,SL,,)","v":"Complete"},{"$f":"OFFSET(L!$C$1,MATCH(\"Checker\"&ADDRESS(ROW(),COLUMN(),4),L!$A:$A,0)-1,SL,,)","v":"Provide list of gold smelters contributing material to supply chain on Smelter List tab"},{"$f":"IF(H17+H22>0,1,0)","v":0},{"$f":"OFFSET(L!$C$1,MATCH(\"Checker\"&ADDRESS(ROW(),COLUMN(),4),L!$A:$A,0)-1,SL,,)","v":"Please answer Question 1 / Question 2 on Declaration tab"}]
["Smelter List - Tungsten",null,{"$f":"IF(K65=1,L65,IF(B18=\"No\",\"Not Required\",IF(G65=0,I65,J65)))","v":"Not Required"},{"$f":"IF(H65=0,\"\",\"Click here to provide smelter information\")","v":""},"\n\n",{"$f":"F28","v":0},{"$f":"IF(AND(COUNTIF(SmelterIdetifiedForMetal,\"Tungsten\")>0,COUNTIF('Smelter List'!AB$5:AB$2493,\"Tungsten?*\")>0),0,1)","v":1},0,{"$f":"OFFSET(L!$C$1,MATCH(\"Checker\"&\"Comp\",L!$A:$A,0)-1,SL,,)","v":"Complete"},{"$f":"OFFSET(L!$C$1,MATCH(\"Checker\"&ADDRESS(ROW(),COLUMN(),4),L!$A:$A,0)-1,SL,,)","v":"Provide list of tungsten smelters contributing material to supply chain on Smelter List tab"},{"$f":"IF(H18+H23>0,1,0)","v":0},{"$f":"OFFSET(L!$C$1,MATCH(\"Checker\"&ADDRESS(ROW(),COLUMN(),4),L!$A:$A,0)-1,SL,,)","v":"Please answer Question 1 / Question 2 on Declaration tab"}]
["All rows with \"Smelter not listed\" selected, have a name and country listed",null,{"$f":"IF(F66=0,J66,IF(G66=0,I66,L66))","v":"N/A"},null,null,{"$f":"IF(COUNTIF('Smelter List'!C5:C2493,\"Smelter not listed\")=0,0,1)","v":0},{"$f":"IF(OR(SUMPRODUCT(('Smelter List'!C5:C2493=\"Smelter not listed\")*('Smelter List'!D5:D2493=\"\"))>0,SUMPRODUCT(('Smelter List'!C5:C2493=\"Smelter not listed\")*('Smelter List'!E5:E2493=\"\"))>0),1,0)","v":0},{"$f":"F66*G66","v":0},{"$f":"OFFSET(L!$C$1,MATCH(\"Checker\"&\"Comp\",L!$A:$A,0)-1,SL,,)","v":"Complete"},"N/A",null,"Please complete columns D & E on Smelter List for all rows \"Smelter Not Listed\" selected in column C"]
[{"$nulls":7},{"$f":"SUM(H4:H66)","v":0}]

{"sheet":"Product List","index":6,"n_rows":1001,"n_cols":4,"rows_kept":1001,"cut":false,"hidden":false,"merged":[[3,1,3,3],[0,0,0,3],[1000,1,1000,3]]}
[{"$f":"OFFSET(L!$C$1,MATCH(\"Product List\"&ADDRESS(ROW(),COLUMN(),4),L!$A:$A,0)-1,SL,,)","v":"Completion required only if reporting level \"Product (or List of Products)\" selected on the 'Declaration' worksheet."}]
[]
[]
[null,"Click here to return to Declaration tab"]
[null,{"$f":"OFFSET(L!$C$1,MATCH(\"Product List\"&ADDRESS(ROW(),COLUMN(),4),L!$A:$A,0)-1,SL,,)","v":"Manufacturer’s Product Number (*)"},{"$f":"OFFSET(L!$C$1,MATCH(\"Product List\"&ADDRESS(ROW(),COLUMN(),4),L!$A:$A,0)-1,SL,,)","v":"Manufacturer’s Product Name"},{"$f":"OFFSET(L!$C$1,MATCH(\"Product List\"&ADDRESS(ROW(),COLUMN(),4),L!$A:$A,0)-1,SL,,)","v":"Comments"}]
{"$rows_empty":995}
[null,{"$f":"OFFSET(L!$C$1,MATCH(\"General\"&\"Cpy\",L!$A:$A,0)-1,SL,,)","v":"© 2018 Responsible Minerals Initiative. All rights reserved."}]

{"sheet":"Smelter Look-up","index":7,"n_rows":576,"n_cols":11,"rows_kept":576,"cut":false,"hidden":false,"merged":[[0,0,0,6],[1,0,2,8]]}
[{"$f":"OFFSET(L!$C$1,MATCH(\"Smelter Look-up\"&ADDRESS(ROW(),COLUMN(),4),L!$A:$A,0)-1,SL,,)","v":"The following list represents the RMI's latest smelter name/alias information as of this templates release.  This list is updated frequently, and the most up-to-date version can be found on the RMI website http://www.responsiblemineralsinitiative.org/responsible-minerals-assurance-process/exports/cmrt-export/.  The presence of a smelter here is NOT a guarantee that it is currently Active or Conformant within the Responsible Minerals Assurance Process.\n\nPlease refer to the RMI web site www.responsiblemineralsinitiative.org for the most current and accurate list of standard smelter names that are Active or Conformant. \n\nNames included in column B represent company names that are commonly recognized and reported by the supply chain for a particular smelter. These names may include former company names, alternate names, abbreviations, or other variations. Although the names may not be the RMI Standard Smelter Name, the reference names are helpful to identify the smelter, which is listed under column C in the Smelter Look-up.\n\nColumn C is the list of the official standard smelter names, in the ASCII character set. The majority of smelters will have the same entry for both columns, however if the common name varies from the standard name, the variation is noted in Column B. "}]
[]
[]
[{"$f":"OFFSET(L!$C$1,MATCH(\"Smelter Look-up\"&ADDRESS(ROW(),COLUMN(),4),L!$A:$A,0)-1,SL,,)","v":"Metal"},{"$f":"OFFSET(L!$C$1,MATCH(\"Smelter Look-up\"&ADDRESS(ROW(),COLUMN(),4),L!$A:$A,0)-1,SL,,)","v":"Smelter Look-up (*)"},{"$f":"OFFSET(L!$C$1,MATCH(\"Smelter Look-up\"&ADDRESS(ROW(),COLUMN(),4),L!$A:$A,0)-1,SL,,)","v":"Standard Smelter Names"},{"$f":"OFFSET(L!$C$1,MATCH(\"Smelter Look-up\"&ADDRESS(ROW(),COLUMN(),4),L!$A:$A,0)-1,SL,,)","v":"Smelter Facility Location: Country"},{"$f":"OFFSET(L!$C$1,MATCH(\"Smelter Look-up\"&ADDRESS(ROW(),COLUMN(),4),L!$A:$A,0)-1,SL,,)","v":"Smelter ID"},{"$f":"OFFSET(L!$C$1,MATCH(\"Smelter Look-up\"&ADDRESS(ROW(),COLUMN(),4),L!$A:$A,0)-1,SL,,)","v":"Source of Smelter Identification Number"},{"$f":"OFFSET(L!$C$1,MATCH(\"Smelter Look-up\"&ADDRESS(ROW(),COLUMN(),4),L!$A:$A,0)-1,SL,,)","v":"Smelter Street "},{"$f":"OFFSET(L!$C$1,MATCH(\"Smelter Look-up\"&ADDRESS(ROW(),COLUMN(),4),L!$A:$A,0)-1,SL,,)","v":"Smelter City"},{"$f":"OFFSET(L!$C$1,MATCH(\"Smelter Look-up\"&ADDRESS(ROW(),COLUMN(),4),L!$A:$A,0)-1,SL,,)","v":"Smelter Facility Location: State / Province"},"METAL+Alias","METAL+Alias"]
["Gold","Abington Reldan Metals, LLC","Abington Reldan Metals, LLC","UNITED STATES OF AMERICA","CID002708","RMI",null,"Fairless Hills","Pennsylvania",{"$f":"A5&B5","v":"GoldAbington Reldan Metals, LLC"},{"$f":"A5&B5","v":"GoldAbington Reldan Metals, LLC"}]
["Gold","Advanced Chemical Company","Advanced Chemical Company","UNITED STATES OF AMERICA","CID000015","RMI",null,"Warwick","Rhode Island",{"$f":"A6&B6","v":"GoldAdvanced Chemical Company"},{"$f":"A6&B6","v":"GoldAdvanced Chemical Company"}]
["Gold","African Gold Refinery","African Gold Refinery","UGANDA","CID003185","RMI",null,"Entebbe","Wakiso","GoldAfrican Gold Refinery","GoldAfrican Gold Refinery"]
["Gold","AGR (Perth Mint Australia)","Western Australian Mint (T/a The Perth Mint)","AUSTRALIA","CID002030","RMI",null,"Newburn","Western Australia","GoldAGR (Perth Mint Australia)","GoldAGR (Perth Mint Australia)"]
["Gold","AGR Mathey","Western Australian Mint (T/a The Perth Mint)","AUSTRALIA","CID002030","RMI",null,"Newburn","Western Australia","GoldAGR Mathey","GoldAGR Mathey"]
["Gold","Aida Chemical Industries Co., Ltd.","Aida Chemical Industries Co., Ltd.","JAPAN","CID000019","RMI",null,"Fuchu","Tokyo","GoldAida Chemical Industries Co., Ltd.","GoldAida Chemical Industries Co., Ltd."]
["Gold","Al Etihad Gold LLC","Al Etihad Gold LLC","UNITED ARAB EMIRATES","CID002560","RMI",null,"Dubai","Dubayy","GoldAl Etihad Gold LLC","GoldAl Etihad Gold LLC"]
["Gold","Al Etihad Gold Refinery DMCC","Al Etihad Gold LLC","UNITED ARAB EMIRATES","CID002560","RMI",null,"Dubai","Dubayy","GoldAl Etihad Gold Refinery DMCC","GoldAl Etihad Gold Refinery DMCC"]
["Gold","Allgemeine Gold-und Silberscheideanstalt A.G.","Allgemeine Gold-und Silberscheideanstalt A.G.","GERMANY","CID000035","RMI",null,"Pforzheim","Baden-Württemberg","GoldAllgemeine Gold-und Silberscheideanstalt A.G.","GoldAllgemeine Gold-und Silberscheideanstalt A.G."]
["Gold","Almalyk Mining and Metallurgical Complex (AMMC)","Almalyk Mining and Metallurgical Complex (AMMC)","UZBEKISTAN","CID000041","RMI",null,"Almalyk","Toshkent","GoldAlmalyk Mining and Metallurgical Complex (AMMC)","GoldAlmalyk Mining and Metallurgical Complex (AMMC)"]
["Gold","Amagasaki Factory, Hyogo Prefecture, Japan","Asahi Pretec Corp.","JAPAN","CID000082","RMI",null,"Kobe","Hyogo","GoldAmagasaki Factory, Hyogo Prefecture, Japan","GoldAmagasaki Factory, Hyogo Prefecture, Japan"]
["Gold","AngloGold Ashanti Brazil","AngloGold Ashanti Corrego do Sitio Mineracao","BRAZIL","CID000058","RMI",null,"Nova Lima","Minas Gerais","GoldAngloGold Ashanti Brazil","GoldAngloGold Ashanti Brazil"]
["Gold","AngloGold Ashanti Corrego do Sitio Mineracao","AngloGold Ashanti Corrego do Sitio Mineracao","BRAZIL","CID000058","RMI",null,"Nova Lima","Minas Gerais","GoldAngloGold Ashanti Corrego do Sitio Mineracao","GoldAngloGold Ashanti Corrego do Sitio Mineracao"]
["Gold","AngloGold Ashanti Córrego do Sítio Mineração","AngloGold Ashanti Corrego do Sitio Mineracao","BRAZIL","CID000058","RMI",null,"Nova Lima","Minas Gerais","GoldAngloGold Ashanti Córrego do Sítio Mineração","GoldAngloGold Ashanti Córrego do Sítio Mineração"]
["Gold","Anhui Tongling Nonferrous Metal Mining Co., Ltd.","Tongling Nonferrous Metals Group Co., Ltd.","CHINA","CID001947","RMI",null,"Tongling","Anhui","GoldAnhui Tongling Nonferrous Metal Mining Co., Ltd.","GoldAnhui Tongling Nonferrous Metal Mining Co., Ltd."]
["Gold","ANZ (Perth Mint 4N)","Western Australian Mint (T/a The Perth Mint)","AUSTRALIA","CID002030","RMI",null,"Newburn","Western Australia","GoldANZ (Perth Mint 4N)","GoldANZ (Perth Mint 4N)"]
["Gold","Argor-Heraeus S.A.","Argor-Heraeus S.A.","SWITZERLAND","CID000077","RMI",null,"Mendrisio","Ticino","GoldArgor-Heraeus S.A.","GoldArgor-Heraeus S.A."]
["Gold","Asahi Pretec Corp.","Asahi Pretec Corp.","JAPAN","CID000082","RMI",null,"Kobe","Hyogo","GoldAsahi Pretec Corp.","GoldAsahi Pretec Corp."]
["Gold","Asahi Refining Canada Ltd.","Asahi Refining Canada Ltd.","CANADA","CID000924","RMI",null,"Brampton","Ontario","GoldAsahi Refining Canada Ltd.","GoldAsahi Refining Canada Ltd."]
["Gold","Asahi Refining USA Inc.","Asahi Refining USA Inc.","UNITED STATES OF AMERICA","CID000920","RMI",null,"Salt Lake City","Utah","GoldAsahi Refining USA Inc.","GoldAsahi Refining USA Inc."]
["Gold","Asaka Riken Co., Ltd.","Asaka Riken Co., Ltd.","JAPAN","CID000090","RMI",null,"Tamura","Fukushima","GoldAsaka Riken Co., Ltd.","GoldAsaka Riken Co., Ltd."]
["Gold","ATAkulche","Atasay Kuyumculuk Sanayi Ve Ticaret A.S.","TURKEY","CID000103","RMI",null,"Istanbul","İstanbul","GoldATAkulche","GoldATAkulche"]
["Gold","Atasay Kuyumculuk Sanayi Ve Ticaret A.S.","Atasay Kuyumculuk Sanayi Ve Ticaret A.S.","TURKEY","CID000103","RMI",null,"Istanbul","İstanbul","GoldAtasay Kuyumculuk Sanayi Ve Ticaret A.S.","GoldAtasay Kuyumculuk Sanayi Ve Ticaret A.S."]
["Gold","AU Traders and Refiners","AU Traders and Refiners","SOUTH AFRICA","CID002850","RMI",null,"Johannesburg","Gauteng","GoldAU Traders and Refiners","GoldAU Traders and Refiners"]
["Gold","Aurubis AG","Aurubis AG","GERMANY","CID000113","RMI",null,"Hamburg","Hamburg","GoldAurubis AG","GoldAurubis AG"]
["Gold","BALORE REFINERSGA","Bangalore Refinery","INDIA","CID002863","RMI",null,"Bangalore","Karnataka","GoldBALORE REFINERSGA","GoldBALORE REFINERSGA"]
["Gold","Bangalore Refinery","Bangalore Refinery","INDIA","CID002863","RMI",null,"Bangalore","Karnataka","GoldBangalore Refinery","GoldBangalore Refinery"]
["Gold","Bangalore Refinery Pvt Ltd","Bangalore Refinery","INDIA","CID002863","RMI",null,"Bangalore","Karnataka","GoldBangalore Refinery Pvt Ltd","GoldBangalore Refinery Pvt Ltd"]
["Gold","Bangko Sentral ng Pilipinas (Central Bank of the Philippines)","Bangko Sentral ng Pilipinas (Central Bank of the Philippines)","PHILIPPINES","CID000128","RMI",null,"Quezon City","Rizal","GoldBangko Sentral ng Pilipinas (Central Bank of the Philippines)","GoldBangko Sentral ng Pilipinas (Central Bank of the Philippines)"]
["Gold","Boliden AB","Boliden AB","SWEDEN","CID000157","RMI",null,"Skelleftehamn","Västerbottens län [SE-24]","GoldBoliden AB","GoldBoliden AB"]
["Gold","C. Hafner GmbH + Co. KG","C. Hafner GmbH + Co. KG","GERMANY","CID000176","RMI",null,"Pforzheim","Baden-Württemberg","GoldC. Hafner GmbH + Co. KG","GoldC. Hafner GmbH + Co. KG"]
["Gold","Caridad","Caridad","MEXICO","CID000180","RMI",null,"Nacozari","Sonora","GoldCaridad","GoldCaridad"]
["Gold","CCR","CCR Refinery - Glencore Canada Corporation","CANADA","CID000185","RMI",null,"Montréal","Quebec","GoldCCR","GoldCCR"]
["Gold","CCR Refinery - Glencore Canada Corporation","CCR Refinery - Glencore Canada Corporation","CANADA","CID000185","RMI",null,"Montréal","Quebec","GoldCCR Refinery - Glencore Canada Corporation","GoldCCR Refinery - Glencore Canada Corporation"]
["Gold","Cendres + M?taux SA","Cendres + Metaux S.A.","SWITZERLAND","CID000189","RMI",null,"Biel-Bienne","Bern","GoldCendres + M?taux SA","GoldCendres + M?taux SA"]
["Gold","Cendres + Metaux S.A.","Cendres + Metaux S.A.","SWITZERLAND","CID000189","RMI",null,"Biel-Bienne","Bern","GoldCendres + Metaux S.A.","GoldCendres + Metaux S.A."]
["Gold","Cendres + Métaux S.A.","Cendres + Metaux S.A.","SWITZERLAND","CID000189","RMI",null,"Biel-Bienne","Bern","GoldCendres + Métaux S.A.","GoldCendres + Métaux S.A."]
["Gold","Central Bank of the Philippines Gold Refinery & Mint","Bangko Sentral ng Pilipinas (Central Bank of the Philippines)","PHILIPPINES","CID000128","RMI",null,"Quezon City","Rizal","GoldCentral Bank of the Philippines Gold Refinery & Mint","GoldCentral Bank of the Philippines Gold Refinery & Mint"]
["Gold","CHALCO Yunnan Copper Co. Ltd.","Yunnan Copper Industry Co., Ltd.","CHINA","CID000197","RMI",null,"Kunming","Yunnan","GoldCHALCO Yunnan Copper Co. Ltd.","GoldCHALCO Yunnan Copper Co. Ltd."]
["Gold","Chimet S.p.A.","Chimet S.p.A.","ITALY","CID000233","RMI",null,"Arezzo","Toscana","GoldChimet S.p.A.","GoldChimet S.p.A."]
["Gold","China Henan Zhongyuan Gold Smelter","Zhongyuan Gold Smelter of Zhongjin Gold Corporation","CHINA","CID002224","RMI",null,"Sanmenxia","Henan","GoldChina Henan Zhongyuan Gold Smelter","GoldChina Henan Zhongyuan Gold Smelter"]
["Gold","China's Shandong Gold Mining Co., Ltd","The Refinery of Shandong Gold Mining Co., Ltd.","CHINA","CID001916","RMI",null,"Laizhou","Shandong","GoldChina's Shandong Gold Mining Co., Ltd","GoldChina's Shandong Gold Mining Co., Ltd"]
["Gold","Chugai Mining","Chugai Mining","JAPAN","CID000264","RMI",null,"Chiyoda","Tokyo","GoldChugai Mining","GoldChugai Mining"]
["Gold","Daejin Indus Co., Ltd.","Daejin Indus Co., Ltd.","KOREA, REPUBLIC OF","CID000328","RMI",null,"Namdong-gu","Incheon-gwangyeoksi","GoldDaejin Indus Co., Ltd.","GoldDaejin Indus Co., Ltd."]
["Gold","Daejin Industry","Daejin Indus Co., Ltd.","KOREA, REPUBLIC OF","CID000328","RMI",null,"Namdong-gu","Incheon-gwangyeoksi","GoldDaejin Industry","GoldDaejin Industry"]
["Gold","Daye Non-Ferrous Metals Mining Ltd.","Daye Non-Ferrous Metals Mining Ltd.","CHINA","CID000343","RMI",null,"Huangshi","Hubei","GoldDaye Non-Ferrous Metals Mining Ltd.","GoldDaye Non-Ferrous Metals Mining Ltd."]
["Gold","DEGUSSA","Degussa Sonne / Mond Goldhandel GmbH","GERMANY","CID002867","RMI",null,"Pforzheim","Baden-Württemberg","GoldDEGUSSA","GoldDEGUSSA"]
["Gold","Degussa Sonne / Mond Goldhandel GmbH","Degussa Sonne / Mond Goldhandel GmbH","GERMANY","CID002867","RMI",null,"Pforzheim","Baden-Württemberg","GoldDegussa Sonne / Mond Goldhandel GmbH","GoldDegussa Sonne / Mond Goldhandel GmbH"]
["Gold","Do Sung Corporation","DSC (Do Sung Corporation)","KOREA, REPUBLIC OF","CID000359","RMI",null,"Gimpo","Gyeonggi-do","GoldDo Sung Corporation","GoldDo Sung Corporation"]
["Gold","Doduco","DODUCO Contacts and Refining GmbH","GERMANY","CID000362","RMI",null,"Pforzheim","Baden-Württemberg","GoldDoduco","GoldDoduco"]
["Gold","DODUCO Contacts and Refining GmbH","DODUCO Contacts and Refining GmbH","GERMANY","CID000362","RMI",null,"Pforzheim","Baden-Württemberg","GoldDODUCO Contacts and Refining GmbH","GoldDODUCO Contacts and Refining GmbH"]
["Gold","Dosung metal","DSC (Do Sung Corporation)","KOREA, REPUBLIC OF","CID000359","RMI",null,"Gimpo","Gyeonggi-do","GoldDosung metal","GoldDosung metal"]
["Gold","Dowa","Dowa","JAPAN","CID000401","RMI",null,"Kosaka","Akita","GoldDowa","GoldDowa"]
["Gold","Dowa Kogyo k.k.","Dowa","JAPAN","CID000401","RMI",null,"Kosaka","Akita","GoldDowa Kogyo k.k.","GoldDowa Kogyo k.k."]
["Gold","Dowa Metalmine Co. Ltd","Dowa","JAPAN","CID000401","RMI",null,"Kosaka","Akita","GoldDowa Metalmine Co. Ltd","GoldDowa Metalmine Co. Ltd"]
["Gold","Dowa Metals & Mining Co. Ltd","Dowa","JAPAN","CID000401","RMI",null,"Kosaka","Akita","GoldDowa Metals & Mining Co. Ltd","GoldDowa Metals & Mining Co. Ltd"]
["Gold","DS PRETECH Co., Ltd.","DS PRETECH Co., Ltd.","KOREA, REPUBLIC OF","CID003195","RMI",null,"Chopyeong-myeon","Chungcheongbuk-do","GoldDS PRETECH Co., Ltd.","GoldDS PRETECH Co., Ltd."]
["Gold","DSC (Do Sung Corporation)","DSC (Do Sung Corporation)","KOREA, REPUBLIC OF","CID000359","RMI",null,"Gimpo","Gyeonggi-do","GoldDSC (Do Sung Corporation)","GoldDSC (Do Sung Corporation)"]
["Gold","Eco-System Recycling Co., Ltd.","Eco-System Recycling Co., Ltd.","JAPAN","CID000425","RMI",null,"Honjo","Saitama","GoldEco-System Recycling Co., Ltd.","GoldEco-System Recycling Co., Ltd."]
["Gold","Elemetal Refining, LLC","Elemetal Refining, LLC","UNITED STATES OF AMERICA","CID001322","RMI",null,"Jackson","Ohio","GoldElemetal Refining, LLC","GoldElemetal Refining, LLC"]
["Gold","Emirates Gold DMCC","Emirates Gold DMCC","UNITED ARAB EMIRATES","CID002561","RMI",null,"Dubai","Dubayy","GoldEmirates Gold DMCC","GoldEmirates Gold DMCC"]
["Gold","Federal State Unitary Enterprise Moscow Special Processing Plant (FSUE MZSS)","Moscow Special Alloys Processing Plant","RUSSIAN FEDERATION","CID001204","RMI",null,"Obrucheva","Moskva","GoldFederal State Unitary Enterprise Moscow Special Processing Plant (FSUE MZSS)","GoldFederal State Unitary Enterprise Moscow Special Processing Plant (FSUE MZSS)"]
["Gold","Fidelity Printers and Refiners Ltd.","Fidelity Printers and Refiners Ltd.","ZIMBABWE","CID002515","RMI",null,"Msasa","Harare","GoldFidelity Printers and Refiners Ltd.","GoldFidelity Printers and Refiners Ltd."]
["Gold","FSE Novosibirsk Refinery","OJSC Novosibirsk Refinery","RUSSIAN FEDERATION","CID000493","RMI",null,"Novosibirsk","Novosibirskaya oblast'","GoldFSE Novosibirsk Refinery","GoldFSE Novosibirsk Refinery"]
["Gold","Fujian Zijin mining stock company gold smelter","Gold Refinery of Zijin Mining Group Co., Ltd.","CHINA","CID002243","RMI",null,"Shanghang","Fujian","GoldFujian Zijin mining stock company gold smelter","GoldFujian Zijin mining stock company gold smelter"]
["Gold","GCC Gujrat Gold Centre Pvt. Ltd.","GCC Gujrat Gold Centre Pvt. Ltd.","INDIA","CID002852","RMI",null,"Ahmedabad","Gujarat",{"$f":"A70&B70","v":"GoldGCC Gujrat Gold Centre Pvt. Ltd."},{"$f":"A70&B70","v":"GoldGCC Gujrat Gold Centre Pvt. Ltd."}]
["Gold","Geib Refining Corporation","Geib Refining Corporation","UNITED STATES OF AMERICA","CID002459","RMI",null,"Warwick","Rhode Island","GoldGeib Refining Corporation","GoldGeib Refining Corporation"]
["Gold","Gold Mining in Shandong (Laizhou) Limited Company","The Refinery of Shandong Gold Mining Co., Ltd.","CHINA","CID001916","RMI",null,"Laizhou","Shandong","GoldGold Mining in Shandong (Laizhou) Limited Company","GoldGold Mining in Shandong (Laizhou) Limited Company"]
["Gold","Gold Refinery of Zijin Mining Group Co., Ltd.","Gold Refinery of Zijin Mining Group Co., Ltd.","CHINA","CID002243","RMI",null,"Shanghang","Fujian","GoldGold Refinery of Zijin Mining Group Co., Ltd.","GoldGold Refinery of Zijin Mining Group Co., Ltd."]
["Gold","Great Wall Precious Metals Co,. LTD.","Great Wall Precious Metals Co., Ltd. of CBPM","CHINA","CID001909","RMI",null,"Chengdu","Sichuan","GoldGreat Wall Precious Metals Co,. LTD.","GoldGreat Wall Precious Metals Co,. LTD."]
["Gold","Great Wall Precious Metals Co., Ltd. of CBPM","Great Wall Precious Metals Co., Ltd. of CBPM","CHINA","CID001909","RMI",null,"Chengdu","Sichuan","GoldGreat Wall Precious Metals Co., Ltd. of CBPM","GoldGreat Wall Precious Metals Co., Ltd. of CBPM"]
["Gold","Guangdong Gaoyao Co","Guangdong Jinding Gold Limited","CHINA","CID002312","RMI",null,"Guangzhou","Guangdong","GoldGuangdong Gaoyao Co","GoldGuangdong Gaoyao Co"]
["Gold","Guangdong Jinding Gold Limited","Guangdong Jinding Gold Limited","CHINA","CID002312","RMI",null,"Guangzhou","Guangdong","GoldGuangdong Jinding Gold Limited","GoldGuangdong Jinding Gold Limited"]
["Gold","Gujarat Gold Centre","GCC Gujrat Gold Centre Pvt. Ltd.","INDIA","CID002852","RMI",null,"Ahmedabad","Gujarat","GoldGujarat Gold Centre","GoldGujarat Gold Centre"]
["Gold","Guoda Safina High-Tech Environmental Refinery Co., Ltd.","Guoda Safina High-Tech Environmental Refinery Co., Ltd.","CHINA","CID000651","RMI",null,"Zhaoyuan","Shandong","GoldGuoda Safina High-Tech Environmental Refinery Co., Ltd.","GoldGuoda Safina High-Tech Environmental Refinery Co., Ltd."]
["Gold","Hangzhou Fuchunjiang Smelting Co., Ltd.","Hangzhou Fuchunjiang Smelting Co., Ltd.","CHINA","CID000671","RMI",null,"Fuyang","Zhejiang","GoldHangzhou Fuchunjiang Smelting Co., Ltd.","GoldHangzhou Fuchunjiang Smelting Co., Ltd."]
["Gold","HeeSung Metal Ltd.","HeeSung Metal Ltd.","KOREA, REPUBLIC OF","CID000689","RMI",null,"Seo-gu","Incheon-gwangyeoksi","GoldHeeSung Metal Ltd.","GoldHeeSung Metal Ltd."]
["Gold","Heimerle + Meule GmbH","Heimerle + Meule GmbH","GERMANY","CID000694","RMI",null,"Pforzheim","Baden-Württemberg","GoldHeimerle + Meule GmbH","GoldHeimerle + Meule GmbH"]
["Gold","Henan Zhongyuan Gold Refinery Co., Ltd.","Zhongyuan Gold Smelter of Zhongjin Gold Corporation","CHINA","CID002224","RMI",null,"Sanmenxia","Henan","GoldHenan Zhongyuan Gold Refinery Co., Ltd.","GoldHenan Zhongyuan Gold Refinery Co., Ltd."]
["Gold","Henan Zhongyuan Gold Smelter of Zhongjin Gold Co. Ltd.","Zhongyuan Gold Smelter of Zhongjin Gold Corporation","CHINA","CID002224","RMI",null,"Sanmenxia","Henan","GoldHenan Zhongyuan Gold Smelter of Zhongjin Gold Co. Ltd.","GoldHenan Zhongyuan Gold Smelter of Zhongjin Gold Co. Ltd."]
["Gold","Henan Zhongyuan Gold Smelter of Zhongjin Gold Corporation Limited","Zhongyuan Gold Smelter of Zhongjin Gold Corporation","CHINA","CID002224","RMI",null,"Sanmenxia","Henan","GoldHenan Zhongyuan Gold Smelter of Zhongjin Gold Corporation Limited","GoldHenan Zhongyuan Gold Smelter of Zhongjin Gold Corporation Limited"]
["Gold","Heraeus Ltd. Hong Kong","Heraeus Metals Hong Kong Ltd.","CHINA","CID000707","RMI",null,"Fanling","Hong Kong","GoldHeraeus Ltd. Hong Kong","GoldHeraeus Ltd. Hong Kong"]
["Gold","Heraeus Metals Hong Kong Ltd.","Heraeus Metals Hong Kong Ltd.","CHINA","CID000707","RMI",null,"Fanling","Hong Kong","GoldHeraeus Metals Hong Kong Ltd.","GoldHeraeus Metals Hong Kong Ltd."]
["Gold","Heraeus Precious Metals GmbH & Co. KG","Heraeus Precious Metals GmbH & Co. KG","GERMANY","CID000711","RMI",null,"Hanau","Hessen","GoldHeraeus Precious Metals GmbH & Co. KG","GoldHeraeus Precious Metals GmbH & Co. KG"]
["Gold","Hunan Chenzhou Mining Co., Ltd.","Hunan Chenzhou Mining Co., Ltd.","CHINA","CID000767","RMI",null,"Yuanling","Hunan","GoldHunan Chenzhou Mining Co., Ltd.","GoldHunan Chenzhou Mining Co., Ltd."]
["Gold","Hunan Chenzhou Mining Group Co., Ltd.","Hunan Chenzhou Mining Co., Ltd.","CHINA","CID000767","RMI",null,"Yuanling","Hunan","GoldHunan Chenzhou Mining Group Co., Ltd.","GoldHunan Chenzhou Mining Group Co., Ltd."]
["Gold","Hunan Chenzhou Mining Industry Co. Ltd.","Hunan Chenzhou Mining Co., Ltd.","CHINA","CID000767","RMI",null,"Yuanling","Hunan","GoldHunan Chenzhou Mining Industry Co. Ltd.","GoldHunan Chenzhou Mining Industry Co. Ltd."]
["Gold","Hunan Guiyang yinxing Nonferrous Smelting Co., Ltd.","Hunan Guiyang yinxing Nonferrous Smelting Co., Ltd.","CHINA","CID000773","RMI",null,"Chenzhou","Hunan","GoldHunan Guiyang yinxing Nonferrous Smelting Co., Ltd.","GoldHunan Guiyang yinxing Nonferrous Smelting Co., Ltd."]
["Gold","Hunan Yu Teng Non-Ferrous Metals Co., Ltd.","Hunan Guiyang yinxing Nonferrous Smelting Co., Ltd.","CHINA","CID000773","RMI",null,"Chenzhou","Hunan","GoldHunan Yu Teng Non-Ferrous Metals Co., Ltd.","GoldHunan Yu Teng Non-Ferrous Metals Co., Ltd."]
["Gold","HwaSeong CJ CO., LTD.","HwaSeong CJ CO., LTD.","KOREA, REPUBLIC OF","CID000778","RMI",null,"Danwon","Gyeonggi-do","GoldHwaSeong CJ CO., LTD.","GoldHwaSeong CJ CO., LTD."]
["Gold","Inner Mongolia Qiankun Gold and Silver Refinery Share Co., Ltd.","Inner Mongolia Qiankun Gold and Silver Refinery Share Co., Ltd.","CHINA","CID000801","RMI",null,"Hohhot","Nei Mongol","GoldInner Mongolia Qiankun Gold and Silver Refinery Share Co., Ltd.","GoldInner Mongolia Qiankun Gold and Silver Refinery Share Co., Ltd."]
["Gold","Ishifuku Metal Industry Co., Ltd.","Ishifuku Metal Industry Co., Ltd.","JAPAN","CID000807","RMI",null,"Soka","Saitama","GoldIshifuku Metal Industry Co., Ltd.","GoldIshifuku Metal Industry Co., Ltd."]
["Gold","Istanbul Gold Refinery","Istanbul Gold Refinery","TURKEY","CID000814","RMI",null,"Kuyumcukent","İstanbul","GoldIstanbul Gold Refinery","GoldIstanbul Gold Refinery"]
["Gold","Italpreziosi","Italpreziosi","ITALY","CID002765","RMI",null,"Arezzo","Toscana","GoldItalpreziosi","GoldItalpreziosi"]
["Gold","Japan Mint","Japan Mint","JAPAN","CID000823","RMI",null,"Osaka","Osaka","GoldJapan Mint","GoldJapan Mint"]
["Gold","JCC","Jiangxi Copper Co., Ltd.","CHINA","CID000855","RMI",null,"Guixi City","Jiangxi","GoldJCC","GoldJCC"]
["Gold","Jiangxi Copper Co., Ltd.","Jiangxi Copper Co., Ltd.","CHINA","CID000855","RMI",null,"Guixi City","Jiangxi","GoldJiangxi Copper Co., Ltd.","GoldJiangxi Copper Co., Ltd."]
["Gold","Johnson Matthey Canada","Asahi Refining Canada Ltd.","CANADA","CID000924","RMI",null,"Brampton","Ontario","GoldJohnson Matthey Canada","GoldJohnson Matthey Canada"]
["Gold","Johnson Matthey Inc.","Asahi Refining USA Inc.","UNITED STATES OF AMERICA","CID000920","RMI",null,"Salt Lake City","Utah","GoldJohnson Matthey Inc.","GoldJohnson Matthey Inc."]
["Gold","Johnson Matthey Inc. (USA)","Asahi Refining USA Inc.","UNITED STATES OF AMERICA","CID000920","RMI",null,"Salt Lake City","Utah","GoldJohnson Matthey Inc. (USA)","GoldJohnson Matthey Inc. (USA)"]
["Gold","Johnson Matthey Limited","Asahi Refining Canada Ltd.","CANADA","CID000924","RMI",null,"Brampton","Ontario","GoldJohnson Matthey Limited","GoldJohnson Matthey Limited"]
["Gold","JSC Ekaterinburg Non-Ferrous Metal Processing Plant","JSC Ekaterinburg Non-Ferrous Metal Processing Plant","RUSSIAN FEDERATION","CID000927","RMI",null,"Verkhnyaya Pyshma","Sverdlovskaya oblast'","GoldJSC Ekaterinburg Non-Ferrous Metal Processing Plant","GoldJSC Ekaterinburg Non-Ferrous Metal Processing Plant"]
["Gold","JSC Uralelectromed","JSC Uralelectromed","RUSSIAN FEDERATION","CID000929","RMI",null,"Verkhnyaya Pyshma","Sverdlovskaya oblast'","GoldJSC Uralelectromed","GoldJSC Uralelectromed"]
["Gold","JX Nippon Mining & Metals Co., Ltd.","JX Nippon Mining & Metals Co., Ltd.","JAPAN","CID000937","RMI",null,"Ōita","Ôita","GoldJX Nippon Mining & Metals Co., Ltd.","GoldJX Nippon Mining & Metals Co., Ltd."]
["Gold","Kaloti Precious Metals","Kaloti Precious Metals","UNITED ARAB EMIRATES","CID002563","RMI",null,"Dubai","Dubayy","GoldKaloti Precious Metals","GoldKaloti Precious Metals"]
["Gold","Kazakhmys Smelting LLC","Kazakhmys Smelting LLC","KAZAKHSTAN","CID000956","RMI",null,"Balkhash","Qaraghandy oblysy","GoldKazakhmys Smelting LLC","GoldKazakhmys Smelting LLC"]
["Gold","Kazzinc","Kazzinc","KAZAKHSTAN","CID000957","RMI",null,"Ust-Kamenogorsk","Qaraghandy oblysy","GoldKazzinc","GoldKazzinc"]
["Gold","Kennecott Utah Copper LLC","Kennecott Utah Copper LLC","UNITED STATES OF AMERICA","CID000969","RMI",null,"Magna","Utah","GoldKennecott Utah Copper LLC","GoldKennecott Utah Copper LLC"]
["Gold","KGHM Polska Miedz S.A.","KGHM Polska Miedz Spolka Akcyjna","POLAND","CID002511","RMI",null,"Lubin","Dolnośląskie","GoldKGHM Polska Miedz S.A.","GoldKGHM Polska Miedz S.A."]
["Gold","KGHM Polska Miedz Spolka Akcyjna","KGHM Polska Miedz Spolka Akcyjna","POLAND","CID002511","RMI",null,"Lubin","Dolnośląskie","GoldKGHM Polska Miedz Spolka Akcyjna","GoldKGHM Polska Miedz Spolka Akcyjna"]
["Gold","KGHM Polska Miedź Spółka Akcyjna","KGHM Polska Miedz Spolka Akcyjna","POLAND","CID002511","RMI",null,"Lubin","Dolnośląskie","GoldKGHM Polska Miedź Spółka Akcyjna","GoldKGHM Polska Miedź Spółka Akcyjna"]
["Gold","Kojima Chemicals Co., Ltd.","Kojima Chemicals Co., Ltd.","JAPAN","CID000981","RMI",null,"Sayama","Saitama","GoldKojima Chemicals Co., Ltd.","GoldKojima Chemicals Co., Ltd."]
["Gold","Kojima Kagaku Yakuhin Co., Ltd","Kojima Chemicals Co., Ltd.","JAPAN","CID000981","RMI",null,"Sayama","Saitama","GoldKojima Kagaku Yakuhin Co., Ltd","GoldKojima Kagaku Yakuhin Co., Ltd"]
["Gold","Kombinat Gorniczo Hutniczy Miedz Polska Miedz S.A.","KGHM Polska Miedz Spolka Akcyjna","POLAND","CID002511","RMI",null,"Lubin","Dolnośląskie","GoldKombinat Gorniczo Hutniczy Miedz Polska Miedz S.A.","GoldKombinat Gorniczo Hutniczy Miedz Polska Miedz S.A."]
["Gold","Korea Zinc Co., Ltd.","Korea Zinc Co., Ltd.","KOREA, REPUBLIC OF","CID002605","RMI",null,"Gangnam","Seoul-teukbyeolsi","GoldKorea Zinc Co., Ltd.","GoldKorea Zinc Co., Ltd."]
["Gold","KUC","Kennecott Utah Copper LLC","UNITED STATES OF AMERICA","CID000969","RMI",null,"Magna","Utah","GoldKUC","GoldKUC"]
["Gold","Kyrgyzaltyn JSC","Kyrgyzaltyn JSC","KYRGYZSTAN","CID001029","RMI",null,"Bishkek","Chüy","GoldKyrgyzaltyn JSC","GoldKyrgyzaltyn JSC"]
["Gold","Kyshtym Copper-Electrolytic Plant ZAO","Kyshtym Copper-Electrolytic Plant ZAO","RUSSIAN FEDERATION","CID002865","RMI",null,"Kyshtym","Chelyabinskaya oblast'","GoldKyshtym Copper-Electrolytic Plant ZAO","GoldKyshtym Copper-Electrolytic Plant ZAO"]
["Gold","La Caridad","Caridad","MEXICO","CID000180","RMI",null,"Nacozari","Sonora","GoldLa Caridad","GoldLa Caridad"]
["Gold","LAIZHOU SHANDONG","The Refinery of Shandong Gold Mining Co., Ltd.","CHINA","CID001916","RMI",null,"Laizhou","Shandong","GoldLAIZHOU SHANDONG","GoldLAIZHOU SHANDONG"]
["Gold","L'azurde Company For Jewelry","L'azurde Company For Jewelry","SAUDI ARABIA","CID001032","RMI",null,"Riyadh","Ar Riyāḑ","GoldL'azurde Company For Jewelry","GoldL'azurde Company For Jewelry"]
["Gold","LinBao Gold Mining","Lingbao Gold Co., Ltd.","CHINA","CID001056","RMI",null,"Lingbao","Henan","GoldLinBao Gold Mining","GoldLinBao Gold Mining"]
["Gold","Lingbao Gold Co., Ltd.","Lingbao Gold Co., Ltd.","CHINA","CID001056","RMI",null,"Lingbao","Henan","GoldLingbao Gold Co., Ltd.","GoldLingbao Gold Co., Ltd."]
["Gold","Lingbao Jinyuan Tonghui Refinery Co., Ltd.","Lingbao Jinyuan Tonghui Refinery Co., Ltd.","CHINA","CID001058","RMI",null,"Lingbao","Henan","GoldLingbao Jinyuan Tonghui Refinery Co., Ltd.","GoldLingbao Jinyuan Tonghui Refinery Co., Ltd."]
["Gold","L'Orfebre S.A.","L'Orfebre S.A.","ANDORRA","CID002762","RMI",null,"Andorra la Vella","Andorra la Vella","GoldL'Orfebre S.A.","GoldL'Orfebre S.A."]
["Gold","LS-NIKKO Copper Inc.","LS-NIKKO Copper Inc.","KOREA, REPUBLIC OF","CID001078","RMI",null,"Onsan-eup","Ulsan-gwangyeoksi","GoldLS-NIKKO Copper Inc.","GoldLS-NIKKO Copper Inc."]
["Gold","Luoyang Zijin Yinhui Gold Refinery Co., Ltd.","Luoyang Zijin Yinhui Gold Refinery Co., Ltd.","CHINA","CID001093","RMI",null,"Luoyang","Henan","GoldLuoyang Zijin Yinhui Gold Refinery Co., Ltd.","GoldLuoyang Zijin Yinhui Gold Refinery Co., Ltd."]
["Gold","Luoyang Zijin Yinhui Gold Smelting","Luoyang Zijin Yinhui Gold Refinery Co., Ltd.","CHINA","CID001093","RMI",null,"Luoyang","Henan","GoldLuoyang Zijin Yinhui Gold Smelting","GoldLuoyang Zijin Yinhui Gold Smelting"]
["Gold","Luoyang Zijin Yinhui Metal Smelt Co Ltd","Luoyang Zijin Yinhui Gold Refinery Co., Ltd.","CHINA","CID001093","RMI",null,"Luoyang","Henan","GoldLuoyang Zijin Yinhui Metal Smelt Co Ltd","GoldLuoyang Zijin Yinhui Metal Smelt Co Ltd"]
["Gold","Marsam Metals","Marsam Metals","BRAZIL","CID002606","RMI",null,"Sao Paulo","São Paulo",{"$f":"A134&B134","v":"GoldMarsam Metals"},{"$f":"A134&B134","v":"GoldMarsam Metals"}]
["Gold","Materion","Materion","UNITED STATES OF AMERICA","CID001113","RMI",null,"Buffalo","New York","GoldMaterion","GoldMaterion"]
["Gold","Matsuda Sangyo Co., Ltd.","Matsuda Sangyo Co., Ltd.","JAPAN","CID001119","RMI",null,"Iruma","Saitama","GoldMatsuda Sangyo Co., Ltd.","GoldMatsuda Sangyo Co., Ltd."]
["Gold","MEM(Sumitomo Group)","Sumitomo Metal Mining Co., Ltd.","JAPAN","CID001798","RMI",null,"Saijo","Ehime","GoldMEM(Sumitomo Group)","GoldMEM(Sumitomo Group)"]
["Gold","Metal?rgica Met-Mex Pe?oles, S.A. de C.V","Metalurgica Met-Mex Penoles S.A. De C.V.","MEXICO","CID001161","RMI",null,"Torreon","Coahuila de Zaragoza","GoldMetal?rgica Met-Mex Pe?oles, S.A. de C.V","GoldMetal?rgica Met-Mex Pe?oles, S.A. de C.V"]
["Gold","Metallurgie Hoboken Overpelt","Umicore S.A. Business Unit Precious Metals Refining","BELGIUM","CID001980","RMI",null,"Hoboken","Antwerpen","GoldMetallurgie Hoboken Overpelt","GoldMetallurgie Hoboken Overpelt"]
["Gold","Metalor Switzerland","Metalor Technologies S.A.","SWITZERLAND","CID001153","RMI",null,"Marin","Neuchâtel","GoldMetalor Switzerland","GoldMetalor Switzerland"]
["Gold","Metalor Technologies (Hong Kong) Ltd.","Metalor Technologies (Hong Kong) Ltd.","CHINA","CID001149","RMI",null,"Kwai Chung","Hong Kong","GoldMetalor Technologies (Hong Kong) Ltd.","GoldMetalor Technologies (Hong Kong) Ltd."]
["Gold","Metalor Technologies (Singapore) Pte., Ltd.","Metalor Technologies (Singapore) Pte., Ltd.","SINGAPORE","CID001152","RMI",null,"Singapore","South West","GoldMetalor Technologies (Singapore) Pte., Ltd.","GoldMetalor Technologies (Singapore) Pte., Ltd."]
["Gold","Metalor Technologies (Suzhou) Ltd.","Metalor Technologies (Suzhou) Ltd.","CHINA","CID001147","RMI",null,"Suzhou","Jiangsu","GoldMetalor Technologies (Suzhou) Ltd.","GoldMetalor Technologies (Suzhou) Ltd."]
["Gold","Metalor Technologies S.A.","Metalor Technologies S.A.","SWITZERLAND","CID001153","RMI",null,"Marin","Neuchâtel","GoldMetalor Technologies S.A.","GoldMetalor Technologies S.A."]
["Gold","Metalor USA Refining Corporation","Metalor USA Refining Corporation","UNITED STATES OF AMERICA","CID001157","RMI",null,"North Attleboro","Massachusetts","GoldMetalor USA Refining Corporation","GoldMetalor USA Refining Corporation"]
["Gold","Metalurgica Met-Mex Penoles S.A. De C.V.","Metalurgica Met-Mex Penoles S.A. De C.V.","MEXICO","CID001161","RMI",null,"Torreon","Coahuila de Zaragoza","GoldMetalurgica Met-Mex Penoles S.A. De C.V.","GoldMetalurgica Met-Mex Penoles S.A. De C.V."]
["Gold","Metalúrgica Met-Mex Peñoles S.A. De C.V.","Metalurgica Met-Mex Penoles S.A. De C.V.","MEXICO","CID001161","RMI",null,"Torreon","Coahuila de Zaragoza","GoldMetalúrgica Met-Mex Peñoles S.A. De C.V.","GoldMetalúrgica Met-Mex Peñoles S.A. De C.V."]
["Gold","Met-Mex Pe?oles, S.A.","Metalurgica Met-Mex Penoles S.A. De C.V.","MEXICO","CID001161","RMI",null,"Torreon","Coahuila de Zaragoza","GoldMet-Mex Pe?oles, S.A.","GoldMet-Mex Pe?oles, S.A."]
["Gold","Met-Mex Penoles, S.A.","Metalurgica Met-Mex Penoles S.A. De C.V.","MEXICO","CID001161","RMI",null,"Torreon","Coahuila de Zaragoza","GoldMet-Mex Penoles, S.A.","GoldMet-Mex Penoles, S.A."]
["Gold","Mitsubishi Materials Corporation","Mitsubishi Materials Corporation","JAPAN","CID001188","RMI",null,"Naoshima","Kagawa","GoldMitsubishi Materials Corporation","GoldMitsubishi Materials Corporation"]
["Gold","Mitsui Kinzoku Co., Ltd.","Mitsui Mining and Smelting Co., Ltd.","JAPAN","CID001193","RMI",null,"Takehara","Hiroshima","GoldMitsui Kinzoku Co., Ltd.","GoldMitsui Kinzoku Co., Ltd."]
["Gold","Mitsui Mining and Smelting Co., Ltd.","Mitsui Mining and Smelting Co., Ltd.","JAPAN","CID001193","RMI",null,"Takehara","Hiroshima","GoldMitsui Mining and Smelting Co., Ltd.","GoldMitsui Mining and Smelting Co., Ltd."]
["Gold","MMTC-PAMP India Pvt., Ltd.","MMTC-PAMP India Pvt., Ltd.","INDIA","CID002509","RMI",null,"Mewat","Haryana","GoldMMTC-PAMP India Pvt., Ltd.","GoldMMTC-PAMP India Pvt., Ltd."]
["Gold","Modeltech Sdn Bhd","Modeltech Sdn Bhd","MALAYSIA","CID002857","RMI",null,"Kawasan Perindustrian Bukit Rambai","Melaka","GoldModeltech Sdn Bhd","GoldModeltech Sdn Bhd"]
["Gold","Morris and Watson","Morris and Watson","NEW ZEALAND","CID002282","RMI",null,"Onehunga","Auckland","GoldMorris and Watson","GoldMorris and Watson"]
["Gold","Morris and Watson Gold Coast","Morris and Watson Gold Coast","AUSTRALIA","CID002866","RMI",null,"Gold Coast","Queensland","GoldMorris and Watson Gold Coast","GoldMorris and Watson Gold Coast"]
["Gold","Moscow Special Alloys Processing Plant","Moscow Special Alloys Processing Plant","RUSSIAN FEDERATION","CID001204","RMI",null,"Obrucheva","Moskva","GoldMoscow Special Alloys Processing Plant","GoldMoscow Special Alloys Processing Plant"]
["Gold","Nadir Metal Rafineri San. Ve Tic. A.S.","Nadir Metal Rafineri San. Ve Tic. A.S.","TURKEY","CID001220","RMI",null,"Bahçelievler","İstanbul","GoldNadir Metal Rafineri San. Ve Tic. A.S.","GoldNadir Metal Rafineri San. Ve Tic. A.S."]
["Gold","Nadir Metal Rafineri San. Ve Tic. A.Ş.","Nadir Metal Rafineri San. Ve Tic. A.S.","TURKEY","CID001220","RMI",null,"Bahçelievler","İstanbul","GoldNadir Metal Rafineri San. Ve Tic. A.Ş.","GoldNadir Metal Rafineri San. Ve Tic. A.Ş."]
["Gold","Navoi Mining and Metallurgical Combinat","Navoi Mining and Metallurgical Combinat","UZBEKISTAN","CID001236","RMI",null,"Navoi","Navoiy","GoldNavoi Mining and Metallurgical Combinat","GoldNavoi Mining and Metallurgical Combinat"]
["Gold","NH Recytech Company","NH Recytech Company","KOREA, REPUBLIC OF","CID003189","RMI",null,"Pyeongtaek-si","Gyeonggi-do","GoldNH Recytech Company","GoldNH Recytech Company"]
["Gold","Nihon Material Co., Ltd.","Nihon Material Co., Ltd.","JAPAN","CID001259","RMI",null,"Noda","Chiba","GoldNihon Material Co., Ltd.","GoldNihon Material Co., Ltd."]
["Gold","Niihama Toyo Smelter & Refinery","Sumitomo Metal Mining Co., Ltd.","JAPAN","CID001798","RMI",null,"Saijo","Ehime","GoldNiihama Toyo Smelter & Refinery","GoldNiihama Toyo Smelter & Refinery"]
["Gold","Norddeutsche Affinererie AG","Aurubis AG","GERMANY","CID000113","RMI",null,"Hamburg","Hamburg","GoldNorddeutsche Affinererie AG","GoldNorddeutsche Affinererie AG"]
["Gold","Ogussa Osterreichische Gold- und Silber-Scheideanstalt GmbH","Ogussa Osterreichische Gold- und Silber-Scheideanstalt GmbH","AUSTRIA","CID002779","RMI",null,"Vienna","Wien","GoldOgussa Osterreichische Gold- und Silber-Scheideanstalt GmbH","GoldOgussa Osterreichische Gold- und Silber-Scheideanstalt GmbH"]
["Gold","Ögussa Österreichische Gold- und Silber-Scheideanstalt GmbH","Ogussa Osterreichische Gold- und Silber-Scheideanstalt GmbH","AUSTRIA","CID002779","RMI",null,"Vienna","Wien","GoldÖgussa Österreichische Gold- und Silber-Scheideanstalt GmbH","GoldÖgussa Österreichische Gold- und Silber-Scheideanstalt GmbH"]
["Gold","Ohio Precious Metals, LLC","Elemetal Refining, LLC","UNITED STATES OF AMERICA","CID001322","RMI",null,"Jackson","Ohio","GoldOhio Precious Metals, LLC","GoldOhio Precious Metals, LLC"]
["Gold","Ohura Precious Metal Industry Co., Ltd.","Ohura Precious Metal Industry Co., Ltd.","JAPAN","CID001325","RMI",null,"Nara-shi","Nara","GoldOhura Precious Metal Industry Co., Ltd.","GoldOhura Precious Metal Industry Co., Ltd."]
["Gold","OJSC \"The Gulidov Krasnoyarsk Non-Ferrous Metals Plant\" (OJSC Krastsvetmet)","OJSC \"The Gulidov Krasnoyarsk Non-Ferrous Metals Plant\" (OJSC Krastsvetmet)","RUSSIAN FEDERATION","CID001326","RMI",null,"Krasnoyarsk","Krasnoyarskiy kray","GoldOJSC \"The Gulidov Krasnoyarsk Non-Ferrous Metals Plant\" (OJSC Krastsvetmet)","GoldOJSC \"The Gulidov Krasnoyarsk Non-Ferrous Metals Plant\" (OJSC Krastsvetmet)"]
["Gold","OJSC Krastsvetmet","OJSC \"The Gulidov Krasnoyarsk Non-Ferrous Metals Plant\" (OJSC Krastsvetmet)","RUSSIAN FEDERATION","CID001326","RMI",null,"Krasnoyarsk","Krasnoyarskiy kray","GoldOJSC Krastsvetmet","GoldOJSC Krastsvetmet"]
["Gold","OJSC Novosibirsk Refinery","OJSC Novosibirsk Refinery","RUSSIAN FEDERATION","CID000493","RMI",null,"Novosibirsk","Novosibirskaya oblast'","GoldOJSC Novosibirsk Refinery","GoldOJSC Novosibirsk Refinery"]
["Gold","OPM","Elemetal Refining, LLC","UNITED STATES OF AMERICA","CID001322","RMI",null,"Jackson","Ohio","GoldOPM","GoldOPM"]
["Gold","PAMP S.A.","PAMP S.A.","SWITZERLAND","CID001352","RMI",null,"Castel San Pietro","Ticino","GoldPAMP S.A.","GoldPAMP S.A."]
["Gold","Pan Pacific Copper Co Ltd.","JX Nippon Mining & Metals Co., Ltd.","JAPAN","CID000937","RMI",null,"Ōita","Ôita","GoldPan Pacific Copper Co Ltd.","GoldPan Pacific Copper Co Ltd."]
["Gold","Pease & Curren","Pease & Curren","UNITED STATES OF AMERICA","CID002872","RMI",null,"Warwick","Rhode Island","GoldPease & Curren","GoldPease & Curren"]
["Gold","Penglai Penggang Gold Industry Co., Ltd.","Penglai Penggang Gold Industry Co., Ltd.","CHINA","CID001362","RMI",null,"Penglai","Shandong","GoldPenglai Penggang Gold Industry Co., Ltd.","GoldPenglai Penggang Gold Industry Co., Ltd."]
["Gold","Perth Mint","Western Australian Mint (T/a The Perth Mint)","AUSTRALIA","CID002030","RMI",null,"Newburn","Western Australia","GoldPerth Mint","GoldPerth Mint"]
["Gold","Perth Mint (ANZ)","Western Australian Mint (T/a The Perth Mint)","AUSTRALIA","CID002030","RMI",null,"Newburn","Western Australia","GoldPerth Mint (ANZ)","GoldPerth Mint (ANZ)"]
["Gold","Planta Recuperadora de Metales SpA","Planta Recuperadora de Metales SpA","CHILE","CID002919","RMI",null,"Mejillones","Antofagasta","GoldPlanta Recuperadora de Metales SpA","GoldPlanta Recuperadora de Metales SpA"]
["Gold","Prioksky Plant of Non-Ferrous Metals","Prioksky Plant of Non-Ferrous Metals","RUSSIAN FEDERATION","CID001386","RMI",null,"Kasimov","Ryazanskaya oblast'","GoldPrioksky Plant of Non-Ferrous Metals","GoldPrioksky Plant of Non-Ferrous Metals"]
["Gold","Produits Artistiques de Métaux","PAMP S.A.","SWITZERLAND","CID001352","RMI",null,"Castel San Pietro","Ticino","GoldProduits Artistiques de Métaux","GoldProduits Artistiques de Métaux"]
["Gold","PT Aneka Tambang (Persero) Tbk","PT Aneka Tambang (Persero) Tbk","INDONESIA","CID001397","RMI",null,"Jakarta","Jakarta Raya","GoldPT Aneka Tambang (Persero) Tbk","GoldPT Aneka Tambang (Persero) Tbk"]
["Gold","PX Precinox S.A.","PX Precinox S.A.","SWITZERLAND","CID001498","RMI",null,"La Chaux-de-Fonds","Neuchâtel","GoldPX Precinox S.A.","GoldPX Precinox S.A."]
["Gold","PX Précinox S.A.","PX Precinox S.A.","SWITZERLAND","CID001498","RMI",null,"La Chaux-de-Fonds","Neuchâtel","GoldPX Précinox S.A.","GoldPX Précinox S.A."]
["Gold","QG Refining, LLC","QG Refining, LLC","UNITED STATES OF AMERICA","CID003324","RMI",null,"Fairfield","Ohio","GoldQG Refining, LLC","GoldQG Refining, LLC"]
["Gold","Rand Refinery (Pty) Ltd.","Rand Refinery (Pty) Ltd.","SOUTH AFRICA","CID001512","RMI",null,"Germiston","Gauteng","GoldRand Refinery (Pty) Ltd.","GoldRand Refinery (Pty) Ltd."]
["Gold","Refinery LS-Nikko Copper Inc.","LS-NIKKO Copper Inc.","KOREA, REPUBLIC OF","CID001078","RMI",null,"Onsan-eup","Ulsan-gwangyeoksi","GoldRefinery LS-Nikko Copper Inc.","GoldRefinery LS-Nikko Copper Inc."]
["Gold","Refinery of Seemine Gold Co., Ltd.","Refinery of Seemine Gold Co., Ltd.","CHINA","CID000522","RMI",null,"Lanzhou","Gansu","GoldRefinery of Seemine Gold Co., Ltd.","GoldRefinery of Seemine Gold Co., Ltd."]
["Gold","Remondis Argentia B.V.","Remondis Argentia B.V.","NETHERLANDS","CID002582","RMI",null,"Moerdijk","Noord-Brabant","GoldRemondis Argentia B.V.","GoldRemondis Argentia B.V."]
["Gold","Republic Metals Corporation","Republic Metals Corporation","UNITED STATES OF AMERICA","CID002510","RMI",null,"Miami","Florida","GoldRepublic Metals Corporation","GoldRepublic Metals Corporation"]
["Gold","Royal Canadian Mint","Royal Canadian Mint","CANADA","CID001534","RMI",null,"Ottawa","Ontario","GoldRoyal Canadian Mint","GoldRoyal Canadian Mint"]
["Gold","SAAMP","SAAMP","FRANCE","CID002761","RMI",null,"Paris","Île-de-France","GoldSAAMP","GoldSAAMP"]
["Gold","Sabin Metal Corp.","Sabin Metal Corp.","UNITED STATES OF AMERICA","CID001546","RMI",null,"Williston","North Dakota","GoldSabin Metal Corp.","GoldSabin Metal Corp."]
["Gold","Safimet S.p.A","Safimet S.p.A","ITALY","CID002973","RMI",null,"Arezzo","Toscana","GoldSafimet S.p.A","GoldSafimet S.p.A"]
["Gold","SAFINA A.S.","SAFINA A.S.","CZECH REPUBLIC","CID002290","RMI",null,"Vestec","Praha-západ","GoldSAFINA A.S.","GoldSAFINA A.S."]
["Gold","Saganoseki Smelter & Refinery","JX Nippon Mining & Metals Co., Ltd.","JAPAN","CID000937","RMI",null,"Ōita","Ôita","GoldSaganoseki Smelter & Refinery","GoldSaganoseki Smelter & Refinery"]
["Gold","Sai Refinery","Sai Refinery","INDIA","CID002853","RMI",null,"Parwanoo","Himachal Pradesh","GoldSai Refinery","GoldSai Refinery"]
["Gold","Samdok Metal","Samduck Precious Metals","KOREA, REPUBLIC OF","CID001555","RMI",null,"Namdong","Incheon-gwangyeoksi",{"$f":"A198&B198","v":"GoldSamdok Metal"},{"$f":"A198&B198","v":"GoldSamdok Metal"}]
["Gold","Samduck Precious Metals","Samduck Precious Metals","KOREA, REPUBLIC OF","CID001555","RMI",null,"Namdong","Incheon-gwangyeoksi","GoldSamduck Precious Metals","GoldSamduck Precious Metals"]
["Gold","Samwon Metals Corp.","Samwon Metals Corp.","KOREA, REPUBLIC OF","CID001562","RMI",null,"Changwon","Gyeongsangnam-do","GoldSamwon Metals Corp.","GoldSamwon Metals Corp."]
["Gold","SAXONIA Edelmetalle GmbH","SAXONIA Edelmetalle GmbH","GERMANY","CID002777","RMI",null,"Halsbrücke","Sachsen","GoldSAXONIA Edelmetalle GmbH","GoldSAXONIA Edelmetalle GmbH"]
["Gold","Schone Edelmetaal B.V.","Schone Edelmetaal B.V.","NETHERLANDS","CID001573","RMI",null,"Amsterdam","Noord-Holland","GoldSchone Edelmetaal B.V.","GoldSchone Edelmetaal B.V."]
["Gold","SD (Samdok) Metal","Samduck Precious Metals","KOREA, REPUBLIC OF","CID001555","RMI",null,"Namdong","Incheon-gwangyeoksi","GoldSD (Samdok) Metal","GoldSD (Samdok) Metal"]
["Gold","SEMPSA Joyeria Plateria S.A.","SEMPSA Joyeria Plateria S.A.","SPAIN","CID001585","RMI",null,"Madrid","Madrid, Comunidad de","GoldSEMPSA Joyeria Plateria S.A.","GoldSEMPSA Joyeria Plateria S.A."]
["Gold","SEMPSA Joyería Platería S.A.","SEMPSA Joyeria Plateria S.A.","SPAIN","CID001585","RMI",null,"Madrid","Madrid, Comunidad de","GoldSEMPSA Joyería Platería S.A.","GoldSEMPSA Joyería Platería S.A."]
["Gold","Sempsa JP (Cookson Sempsa)","SEMPSA Joyeria Plateria S.A.","SPAIN","CID001585","RMI",null,"Madrid","Madrid, Comunidad de","GoldSempsa JP (Cookson Sempsa)","GoldSempsa JP (Cookson Sempsa)"]
["Gold","Shandong Gold Mine(Laizhou) Smelter Co., Ltd.","The Refinery of Shandong Gold Mining Co., Ltd.","CHINA","CID001916","RMI",null,"Laizhou","Shandong","GoldShandong Gold Mine(Laizhou) Smelter Co., Ltd.","GoldShandong Gold Mine(Laizhou) Smelter Co., Ltd."]
["Gold","Shandong Guoda Gold Co., Ltd.","Guoda Safina High-Tech Environmental Refinery Co., Ltd.","CHINA","CID000651","RMI",null,"Zhaoyuan","Shandong","GoldShandong Guoda Gold Co., Ltd.","GoldShandong Guoda Gold Co., Ltd."]
["Gold","Shandong middlings JinYe group Co., LTD","The Refinery of Shandong Gold Mining Co., Ltd.","CHINA","CID001916","RMI",null,"Laizhou","Shandong","GoldShandong middlings JinYe group Co., LTD","GoldShandong middlings JinYe group Co., LTD"]
["Gold","Shandong Tarzan Bio-Gold Industry Co., Ltd.","Shandong Tiancheng Biological Gold Industrial Co., Ltd.","CHINA","CID001619","RMI",null,"Laizhou","Shandong","GoldShandong Tarzan Bio-Gold Industry Co., Ltd.","GoldShandong Tarzan Bio-Gold Industry Co., Ltd."]
["Gold","Shandong Tiancheng Biological Gold Industrial Co., Ltd.","Shandong Tiancheng Biological Gold Industrial Co., Ltd.","CHINA","CID001619","RMI",null,"Laizhou","Shandong","GoldShandong Tiancheng Biological Gold Industrial Co., Ltd.","GoldShandong Tiancheng Biological Gold Industrial Co., Ltd."]
["Gold","Shandong Zhaojin Gold & Silver Refinery Co., Ltd.","Shandong Zhaojin Gold & Silver Refinery Co., Ltd.","CHINA","CID001622","RMI",null,"Zhaoyuan","Shandong","GoldShandong Zhaojin Gold & Silver Refinery Co., Ltd.","GoldShandong Zhaojin Gold & Silver Refinery Co., Ltd."]
["Gold","Shangdong Gold (Laizhou)","The Refinery of Shandong Gold Mining Co., Ltd.","CHINA","CID001916","RMI",null,"Laizhou","Shandong","GoldShangdong Gold (Laizhou)","GoldShangdong Gold (Laizhou)"]
["Gold","Shonan Plant Tanaka Kikinzoku","Tanaka Kikinzoku Kogyo K.K.","JAPAN","CID001875","RMI",null,"Hiratsuka","Kanagawa","GoldShonan Plant Tanaka Kikinzoku","GoldShonan Plant Tanaka Kikinzoku"]
["Gold","Shyolkovsky","SOE Shyolkovsky Factory of Secondary Precious Metals","RUSSIAN FEDERATION","CID001756","RMI",null,"Shyolkovo","Moskovskaja oblast'","GoldShyolkovsky","GoldShyolkovsky"]
["Gold","Sichuan Tianze Precious Metals Co., Ltd.","Sichuan Tianze Precious Metals Co., Ltd.","CHINA","CID001736","RMI",null,"Chengdu","Sichuan","GoldSichuan Tianze Precious Metals Co., Ltd.","GoldSichuan Tianze Precious Metals Co., Ltd."]
["Gold","Singapore Tanaka","Tanaka Kikinzoku Kogyo K.K.","JAPAN","CID001875","RMI",null,"Hiratsuka","Kanagawa","GoldSingapore Tanaka","GoldSingapore Tanaka"]
["Gold","Singway Technology Co., Ltd.","Singway Technology Co., Ltd.","TAIWAN, PROVINCE OF CHINA","CID002516","RMI",null,"Dayuan","Taoyuan","GoldSingway Technology Co., Ltd.","GoldSingway Technology Co., Ltd."]
["Gold","SMM","Sumitomo Metal Mining Co., Ltd.","JAPAN","CID001798","RMI",null,"Saijo","Ehime","GoldSMM","GoldSMM"]
["Gold","SOE Shyolkovsky Factory of Secondary Precious Metals","SOE Shyolkovsky Factory of Secondary Precious Metals","RUSSIAN FEDERATION","CID001756","RMI",null,"Shyolkovo","Moskovskaja oblast'","GoldSOE Shyolkovsky Factory of Secondary Precious Metals","GoldSOE Shyolkovsky Factory of Secondary Precious Metals"]
["Gold","Solar Applied Materials Technology Corp.","Solar Applied Materials Technology Corp.","TAIWAN, PROVINCE OF CHINA","CID001761","RMI",null,"Tainan City","Tainan","GoldSolar Applied Materials Technology Corp.","GoldSolar Applied Materials Technology Corp."]
["Gold","SOLAR CHEMICALAPPLIED MATERIALS TECHNOLOGY (KUN SHAN)","Solar Applied Materials Technology Corp.","TAIWAN, PROVINCE OF CHINA","CID001761","RMI",null,"Tainan City","Tainan","GoldSOLAR CHEMICALAPPLIED MATERIALS TECHNOLOGY (KUN SHAN)","GoldSOLAR CHEMICALAPPLIED MATERIALS TECHNOLOGY (KUN SHAN)"]
["Gold","Solartech","Solar Applied Materials Technology Corp.","TAIWAN, PROVINCE OF CHINA","CID001761","RMI",null,"Tainan City","Tainan","GoldSolartech","GoldSolartech"]
["Gold","State Research Institute Center for Physical Sciences and Technology","State Research Institute Center for Physical Sciences and Technology","LITHUANIA","CID003153","RMI",null,"Vilnius","Vilnius","GoldState Research Institute Center for Physical Sciences and Technology","GoldState Research Institute Center for Physical Sciences and Technology"]
["Gold","Sudan Gold Refinery","Sudan Gold Refinery","SUDAN","CID002567","RMI",null,"Khartoum","Khartoum","GoldSudan Gold Refinery","GoldSudan Gold Refinery"]
["Gold","Sumitomo Kinzoku Kozan K.K.","Sumitomo Metal Mining Co., Ltd.","JAPAN","CID001798","RMI",null,"Saijo","Ehime","GoldSumitomo Kinzoku Kozan K.K.","GoldSumitomo Kinzoku Kozan K.K."]
["Gold","Sumitomo Metal Mining Co., Ltd.","Sumitomo Metal Mining Co., Ltd.","JAPAN","CID001798","RMI",null,"Saijo","Ehime","GoldSumitomo Metal Mining Co., Ltd.","GoldSumitomo Metal Mining Co., Ltd."]
["Gold","SungEel HiMetal Co., Ltd.","SungEel HiMetal Co., Ltd.","KOREA, REPUBLIC OF","CID002918","RMI",null,"Gunsan-si","Jeollabuk-do","GoldSungEel HiMetal Co., Ltd.","GoldSungEel HiMetal Co., Ltd."]
["Gold","SungEel HiTech","SungEel HiMetal Co., Ltd.","KOREA, REPUBLIC OF","CID002918","RMI",null,"Gunsan-si","Jeollabuk-do","GoldSungEel HiTech","GoldSungEel HiTech"]
["Gold","T.C.A S.p.A","T.C.A S.p.A","ITALY","CID002580","RMI",null,"Capolona","Toscana","GoldT.C.A S.p.A","GoldT.C.A S.p.A"]
["Gold","Takehara Refinery","Mitsui Mining and Smelting Co., Ltd.","JAPAN","CID001193","RMI",null,"Takehara","Hiroshima","GoldTakehara Refinery","GoldTakehara Refinery"]
["Gold","Tamano Smelter","JX Nippon Mining & Metals Co., Ltd.","JAPAN","CID000937","RMI",null,"Ōita","Ôita","GoldTamano Smelter","GoldTamano Smelter"]
["Gold","Tanaka Denshi Kogyo K.K","Tanaka Kikinzoku Kogyo K.K.","JAPAN","CID001875","RMI",null,"Hiratsuka","Kanagawa","GoldTanaka Denshi Kogyo K.K","GoldTanaka Denshi Kogyo K.K"]
["Gold","Tanaka Electronics (Hong Kong) Pte. Ltd.","Tanaka Kikinzoku Kogyo K.K.","JAPAN","CID001875","RMI",null,"Hiratsuka","Kanagawa","GoldTanaka Electronics (Hong Kong) Pte. Ltd.","GoldTanaka Electronics (Hong Kong) Pte. Ltd."]
["Gold","TANAKA Electronics (Malaysia) SDN. BHD.","Tanaka Kikinzoku Kogyo K.K.","JAPAN","CID001875","RMI",null,"Hiratsuka","Kanagawa","GoldTANAKA Electronics (Malaysia) SDN. BHD.","GoldTANAKA Electronics (Malaysia) SDN. BHD."]
["Gold","Tanaka Electronics (Singapore) Pte. Ltd.","Tanaka Kikinzoku Kogyo K.K.","JAPAN","CID001875","RMI",null,"Hiratsuka","Kanagawa","GoldTanaka Electronics (Singapore) Pte. Ltd.","GoldTanaka Electronics (Singapore) Pte. Ltd."]
["Gold","Tanaka Kikinzoku International","Tanaka Kikinzoku Kogyo K.K.","JAPAN","CID001875","RMI",null,"Hiratsuka","Kanagawa","GoldTanaka Kikinzoku International","GoldTanaka Kikinzoku International"]
["Gold","Tanaka Kikinzoku Kogyo K.K","Tanaka Kikinzoku Kogyo K.K.","JAPAN","CID001875","RMI",null,"Hiratsuka","Kanagawa","GoldTanaka Kikinzoku Kogyo K.K","GoldTanaka Kikinzoku Kogyo K.K"]
["Gold","Tanaka Kikinzoku Kogyo K.K.","Tanaka Kikinzoku Kogyo K.K.","JAPAN","CID001875","RMI",null,"Hiratsuka","Kanagawa","GoldTanaka Kikinzoku Kogyo K.K.","GoldTanaka Kikinzoku Kogyo K.K."]
["Gold","Tanaka Precious Metals","Tanaka Kikinzoku Kogyo K.K.","JAPAN","CID001875","RMI",null,"Hiratsuka","Kanagawa","GoldTanaka Precious Metals","GoldTanaka Precious Metals"]
["Gold","The Great Wall Gold and Silver Refinery of China","Great Wall Precious Metals Co., Ltd. of CBPM","CHINA","CID001909","RMI",null,"Chengdu","Sichuan","GoldThe Great Wall Gold and Silver Refinery of China","GoldThe Great Wall Gold and Silver Refinery of China"]
["Gold","The Perth Mint","Western Australian Mint (T/a The Perth Mint)","AUSTRALIA","CID002030","RMI",null,"Newburn","Western Australia","GoldThe Perth Mint","GoldThe Perth Mint"]
["Gold","The Refinery of Shandong Gold Mining Co., Ltd.","The Refinery of Shandong Gold Mining Co., Ltd.","CHINA","CID001916","RMI",null,"Laizhou","Shandong","GoldThe Refinery of Shandong Gold Mining Co., Ltd.","GoldThe Refinery of Shandong Gold Mining Co., Ltd."]
["Gold","Tokuriki Honten Co., Ltd.","Tokuriki Honten Co., Ltd.","JAPAN","CID001938","RMI",null,"Kuki","Saitama","GoldTokuriki Honten Co., Ltd.","GoldTokuriki Honten Co., Ltd."]
["Gold","Tongling Nonferrous Metals Group Co., Ltd.","Tongling Nonferrous Metals Group Co., Ltd.","CHINA","CID001947","RMI",null,"Tongling","Anhui","GoldTongling Nonferrous Metals Group Co., Ltd.","GoldTongling Nonferrous Metals Group Co., Ltd."]
["Gold","TongLing Nonferrous Metals Group Holdings Co., Ltd.","Tongling Nonferrous Metals Group Co., Ltd.","CHINA","CID001947","RMI",null,"Tongling","Anhui","GoldTongLing Nonferrous Metals Group Holdings Co., Ltd.","GoldTongLing Nonferrous Metals Group Holdings Co., Ltd."]
["Gold","Tony Goetz NV","Tony Goetz NV","BELGIUM","CID002587","RMI",null,"Antwerp","Antwerpen","GoldTony Goetz NV","GoldTony Goetz NV"]
["Gold","TOO Tau-Ken-Altyn","TOO Tau-Ken-Altyn","KAZAKHSTAN","CID002615","RMI",null,"Astana","Almaty","GoldTOO Tau-Ken-Altyn","GoldTOO Tau-Ken-Altyn"]
["Gold","Torecom","Torecom","KOREA, REPUBLIC OF","CID001955","RMI",null,"Asan","Chungcheongnam-do","GoldTorecom","GoldTorecom"]
["Gold","Toyo Smelter & Refinery","Sumitomo Metal Mining Co., Ltd.","JAPAN","CID001798","RMI",null,"Saijo","Ehime","GoldToyo Smelter & Refinery","GoldToyo Smelter & Refinery"]
["Gold","Umicore Brasil Ltda.","Umicore Brasil Ltda.","BRAZIL","CID001977","RMI",null,"Guarulhos","São Paulo","GoldUmicore Brasil Ltda.","GoldUmicore Brasil Ltda."]
["Gold","Umicore Precious Metals Refining Hoboken","Umicore S.A. Business Unit Precious Metals Refining","BELGIUM","CID001980","RMI",null,"Hoboken","Antwerpen","GoldUmicore Precious Metals Refining Hoboken","GoldUmicore Precious Metals Refining Hoboken"]
["Gold","Umicore Precious Metals Thailand","Umicore Precious Metals Thailand","THAILAND","CID002314","RMI",null,"Khwaeng Dok Mai","Krung Thep Maha Nakhon","GoldUmicore Precious Metals Thailand","GoldUmicore Precious Metals Thailand"]
["Gold","Umicore S.A. Business Unit Precious Metals Refining","Umicore S.A. Business Unit Precious Metals Refining","BELGIUM","CID001980","RMI",null,"Hoboken","Antwerpen","GoldUmicore S.A. Business Unit Precious Metals Refining","GoldUmicore S.A. Business Unit Precious Metals Refining"]
["Gold","United Precious Metal Refining, Inc.","United Precious Metal Refining, Inc.","UNITED STATES OF AMERICA","CID001993","RMI",null,"Alden","New York","GoldUnited Precious Metal Refining, Inc.","GoldUnited Precious Metal Refining, Inc."]
["Gold","Universal Precious Metals Refining Zambia","Universal Precious Metals Refining Zambia","ZAMBIA","CID002854","RMI",null,"Lusaka","Lusaka","GoldUniversal Precious Metals Refining Zambia","GoldUniversal Precious Metals Refining Zambia"]
["Gold","Valcambi S.A.","Valcambi S.A.","SWITZERLAND","CID002003","RMI",null,"Balerna","Ticino","GoldValcambi S.A.","GoldValcambi S.A."]
["Gold","Western Australian Mint (T/a The Perth Mint)","Western Australian Mint (T/a The Perth Mint)","AUSTRALIA","CID002030","RMI",null,"Newburn","Western Australia","GoldWestern Australian Mint (T/a The Perth Mint)","GoldWestern Australian Mint (T/a The Perth Mint)"]
["Gold","WIELAND Edelmetalle GmbH","WIELAND Edelmetalle GmbH","GERMANY","CID002778","RMI",null,"Pforzheim","Baden-Württemberg","GoldWIELAND Edelmetalle GmbH","GoldWIELAND Edelmetalle GmbH"]
["Gold","Williams Advanced Materials","Materion","UNITED STATES OF AMERICA","CID001113","RMI",null,"Buffalo","New York","GoldWilliams Advanced Materials","GoldWilliams Advanced Materials"]
["Gold","Xstrata","CCR Refinery - Glencore Canada Corporation","CANADA","CID000185","RMI",null,"Montréal","Quebec","GoldXstrata","GoldXstrata"]
["Gold","Yamakin Co., Ltd.","Yamakin Co., Ltd.","JAPAN","CID002100","RMI",null,"Konan","Kochi",{"$f":"A262&B262","v":"GoldYamakin Co., Ltd."},{"$f":"A262&B262","v":"GoldYamakin Co., Ltd."}]
["Gold","Yamamoto Precious Co., Ltd.","Yamakin Co., Ltd.","JAPAN","CID002100","RMI",null,"Konan","Kochi","GoldYamamoto Precious Co., Ltd.","GoldYamamoto Precious Co., Ltd."]
["Gold","Yamamoto Precious Metal Co., Ltd.","Yamakin Co., Ltd.","JAPAN","CID002100","RMI",null,"Konan","Kochi","GoldYamamoto Precious Metal Co., Ltd.","GoldYamamoto Precious Metal Co., Ltd."]
["Gold","Yamamoto Precision Metals","Yamakin Co., Ltd.","JAPAN","CID002100","RMI",null,"Konan","Kochi","GoldYamamoto Precision Metals","GoldYamamoto Precision Metals"]
["Gold","Yantai NUS Safina tech environmental Refinery Co. Ltd.","Guoda Safina High-Tech Environmental Refinery Co., Ltd.","CHINA","CID000651","RMI",null,"Zhaoyuan","Shandong","GoldYantai NUS Safina tech environmental Refinery Co. Ltd.","GoldYantai NUS Safina tech environmental Refinery Co. Ltd."]
["Gold","Yokohama Metal Co., Ltd.","Yokohama Metal Co., Ltd.","JAPAN","CID002129","RMI",null,"Sagamihara","Kanagawa","GoldYokohama Metal Co., Ltd.","GoldYokohama Metal Co., Ltd."]
["Gold","Yunnan Copper Industry Co., Ltd.","Yunnan Copper Industry Co., Ltd.","CHINA","CID000197","RMI",null,"Kunming","Yunnan","GoldYunnan Copper Industry Co., Ltd.","GoldYunnan Copper Industry Co., Ltd."]
["Gold","Zhao Jin Mining Industry Co Ltd","Shandong Zhaojin Gold & Silver Refinery Co., Ltd.","CHINA","CID001622","RMI",null,"Zhaoyuan","Shandong","GoldZhao Jin Mining Industry Co Ltd","GoldZhao Jin Mining Industry Co Ltd"]
["Gold","Zhao Yuan Gold Mine","Shandong Zhaojin Gold & Silver Refinery Co., Ltd.","CHINA","CID001622","RMI",null,"Zhaoyuan","Shandong","GoldZhao Yuan Gold Mine","GoldZhao Yuan Gold Mine"]
["Gold","Zhao Yuan Gold Smelter of ZhongJin","Shandong Zhaojin Gold & Silver Refinery Co., Ltd.","CHINA","CID001622","RMI",null,"Zhaoyuan","Shandong","GoldZhao Yuan Gold Smelter of ZhongJin","GoldZhao Yuan Gold Smelter of ZhongJin"]
["Gold","Zhao Yuan Jin Kuang","Shandong Zhaojin Gold & Silver Refinery Co., Ltd.","CHINA","CID001622","RMI",null,"Zhaoyuan","Shandong","GoldZhao Yuan Jin Kuang","GoldZhao Yuan Jin Kuang"]
["Gold","Zhaojin Mining Industry Co., Ltd.","Shandong Zhaojin Gold & Silver Refinery Co., Ltd.","CHINA","CID001622","RMI",null,"Zhaoyuan","Shandong","GoldZhaojin Mining Industry Co., Ltd.","GoldZhaojin Mining Industry Co., Ltd."]
["Gold","zhaojinjinyinyelian","Shandong Zhaojin Gold & Silver Refinery Co., Ltd.","CHINA","CID001622","RMI",null,"Zhaoyuan","Shandong","Goldzhaojinjinyinyelian","Goldzhaojinjinyinyelian"]
["Gold","Zhaoyuan Gold Group","Shandong Zhaojin Gold & Silver Refinery Co., Ltd.","CHINA","CID001622","RMI",null,"Zhaoyuan","Shandong","GoldZhaoyuan Gold Group","GoldZhaoyuan Gold Group"]
["Gold","Zhongjin Gold Corporation Limited","Zhongyuan Gold Smelter of Zhongjin Gold Corporation","CHINA","CID002224","RMI",null,"Sanmenxia","Henan","GoldZhongjin Gold Corporation Limited","GoldZhongjin Gold Corporation Limited"]
["Gold","Zhongyuan Gold Smelter of Zhongjin Gold Corporation","Zhongyuan Gold Smelter of Zhongjin Gold Corporation","CHINA","CID002224","RMI",null,"Sanmenxia","Henan","GoldZhongyuan Gold Smelter of Zhongjin Gold Corporation","GoldZhongyuan Gold Smelter of Zhongjin Gold Corporation"]
["Gold","Zijin Kuang Ye Refinery","Gold Refinery of Zijin Mining Group Co., Ltd.","CHINA","CID002243","RMI",null,"Shanghang","Fujian","GoldZijin Kuang Ye Refinery","GoldZijin Kuang Ye Refinery"]
["Gold","Zijin Mining Industry Corporation","Gold Refinery of Zijin Mining Group Co., Ltd.","CHINA","CID002243","RMI",null,"Shanghang","Fujian","GoldZijin Mining Industry Corporation","GoldZijin Mining Industry Corporation"]
["Gold","Smelter not listed",{"$nulls":7},"GoldSmelter not listed","GoldSmelter not listed"]
["Gold","Smelter not yet identified","Unknown","Unknown",{"$nulls":5},"GoldSmelter not yet identified","GoldSmelter not yet identified"]
["Tantalum","Asaka Riken Co., Ltd.","Asaka Riken Co., Ltd.","JAPAN","CID000092","RMI",null,"Tamura","Fukushima","TantalumAsaka Riken Co., Ltd.","TantalumAsaka Riken Co., Ltd."]
["Tantalum","Changsha South Tantalum Niobium Co., Ltd.","Changsha South Tantalum Niobium Co., Ltd.","CHINA","CID000211","RMI",null,"Changsha","Hunan","TantalumChangsha South Tantalum Niobium Co., Ltd.","TantalumChangsha South Tantalum Niobium Co., Ltd."]
["Tantalum","Changsha Southern","Changsha South Tantalum Niobium Co., Ltd.","CHINA","CID000211","RMI",null,"Changsha","Hunan","TantalumChangsha Southern","TantalumChangsha Southern"]
["Tantalum","Conghua Tantalum and Niobium Smeltry","Guangdong Rising Rare Metals-EO Materials Ltd.","CHINA","CID000291","RMI",null,"Conghua","Guangdong","TantalumConghua Tantalum and Niobium Smeltry","TantalumConghua Tantalum and Niobium Smeltry"]
["Tantalum","D Block Metals, LLC","D Block Metals, LLC","UNITED STATES OF AMERICA","CID002504","RMI",null,"Gastonia","North Carolina","TantalumD Block Metals, LLC","TantalumD Block Metals, LLC"]
["Tantalum","Douluoshan Sapphire Rare Metal Co Ltd","Duoluoshan","CHINA","CID000410","RMI",null,"Sihui City","Guangdong","TantalumDouluoshan Sapphire Rare Metal Co Ltd","TantalumDouluoshan Sapphire Rare Metal Co Ltd"]
["Tantalum","Duoluoshan","Duoluoshan","CHINA","CID000410","RMI",null,"Sihui City","Guangdong","TantalumDuoluoshan","TantalumDuoluoshan"]
["Tantalum","Exotech Inc.","Exotech Inc.","UNITED STATES OF AMERICA","CID000456","RMI",null,"Pompano Beach","Florida","TantalumExotech Inc.","TantalumExotech Inc."]
["Tantalum","F & X","F&X Electro-Materials Ltd.","CHINA","CID000460","RMI",null,"Jiangmen","Guangdong","TantalumF & X","TantalumF & X"]
["Tantalum","F&X Electro-Materials Ltd.","F&X Electro-Materials Ltd.","CHINA","CID000460","RMI",null,"Jiangmen","Guangdong","TantalumF&X Electro-Materials Ltd.","TantalumF&X Electro-Materials Ltd."]
["Tantalum","FIR Metals & Resource Ltd.","FIR Metals & Resource Ltd.","CHINA","CID002505","RMI",null,"Zhuzhou","Hunan","TantalumFIR Metals & Resource Ltd.","TantalumFIR Metals & Resource Ltd."]
["Tantalum","Global Advanced Metals Aizu","Global Advanced Metals Aizu","JAPAN","CID002558","RMI",null,"Aizuwakamatsu","Fukushima","TantalumGlobal Advanced Metals Aizu","TantalumGlobal Advanced Metals Aizu"]
["Tantalum","Global Advanced Metals Boyertown","Global Advanced Metals Boyertown","UNITED STATES OF AMERICA","CID002557","RMI",null,"Boyertown","Pennsylvania","TantalumGlobal Advanced Metals Boyertown","TantalumGlobal Advanced Metals Boyertown"]
["Tantalum","Guangdong Rising Rare Metals-EO Materials Ltd.","Guangdong Rising Rare Metals-EO Materials Ltd.","CHINA","CID000291","RMI",null,"Conghua","Guangdong","TantalumGuangdong Rising Rare Metals-EO Materials Ltd.","TantalumGuangdong Rising Rare Metals-EO Materials Ltd."]
["Tantalum","Guangdong Zhiyuan New Material Co., Ltd.","Guangdong Zhiyuan New Material Co., Ltd.","CHINA","CID000616","RMI",null,"Yingde","Guangdong","TantalumGuangdong Zhiyuan New Material Co., Ltd.","TantalumGuangdong Zhiyuan New Material Co., Ltd."]
["Tantalum","H.C. Starck Co., Ltd.","H.C. Starck Co., Ltd.","THAILAND","CID002544","RMI",null,"Map Ta Phut","Rayong","TantalumH.C. Starck Co., Ltd.","TantalumH.C. Starck Co., Ltd."]
["Tantalum","H.C. Starck Hermsdorf GmbH","H.C. Starck Hermsdorf GmbH","GERMANY","CID002547","RMI",null,"Hermsdorf","Thüringen","TantalumH.C. Starck Hermsdorf GmbH","TantalumH.C. Starck Hermsdorf GmbH"]
["Tantalum","H.C. Starck Inc.","H.C. Starck Inc.","UNITED STATES OF AMERICA","CID002548","RMI",null,"Newton","Massachusetts","TantalumH.C. Starck Inc.","TantalumH.C. Starck Inc."]
["Tantalum","H.C. Starck Ltd.","H.C. Starck Ltd.","JAPAN","CID002549","RMI",null,"Mito","Ibaraki","TantalumH.C. Starck Ltd.","TantalumH.C. Starck Ltd."]
["Tantalum","H.C. Starck Smelting GmbH & Co. KG","H.C. Starck Smelting GmbH & Co. KG","GERMANY","CID002550","RMI",null,"Laufenburg","Baden-Württemberg","TantalumH.C. Starck Smelting GmbH & Co. KG","TantalumH.C. Starck Smelting GmbH & Co. KG"]
["Tantalum","H.C. Starck Tantalum and Niobium GmbH","H.C. Starck Tantalum and Niobium GmbH","GERMANY","CID002545","RMI",null,"Goslar","Niedersachsen","TantalumH.C. Starck Tantalum and Niobium GmbH","TantalumH.C. Starck Tantalum and Niobium GmbH"]
["Tantalum","Hengyang King Xing Lifeng New Materials Co., Ltd.","Hengyang King Xing Lifeng New Materials Co., Ltd.","CHINA","CID002492","RMI",null,"Hengyang","Hunan","TantalumHengyang King Xing Lifeng New Materials Co., Ltd.","TantalumHengyang King Xing Lifeng New Materials Co., Ltd."]
["Tantalum","Jiangxi Dinghai Tantalum & Niobium Co., Ltd.","Jiangxi Dinghai Tantalum & Niobium Co., Ltd.","CHINA","CID002512","RMI",null,"Fengxin","Jiangxi","TantalumJiangxi Dinghai Tantalum & Niobium Co., Ltd.","TantalumJiangxi Dinghai Tantalum & Niobium Co., Ltd."]
["Tantalum","Jiangxi Tuohong New Raw Material","Jiangxi Tuohong New Raw Material","CHINA","CID002842","RMI",null,"Yichun","Jiangxi","TantalumJiangxi Tuohong New Raw Material","TantalumJiangxi Tuohong New Raw Material"]
["Tantalum","Jiujiang Janny New Material Co., Ltd.","Jiujiang Janny New Material Co., Ltd.","CHINA","CID003191","RMI",null,"Jiujiang","Jiangxi","TantalumJiujiang Janny New Material Co., Ltd.","TantalumJiujiang Janny New Material Co., Ltd."]
["Tantalum","JiuJiang JinXin Nonferrous Metals Co., Ltd.","JiuJiang JinXin Nonferrous Metals Co., Ltd.","CHINA","CID000914","RMI",null,"Jiujiang","Jiangxi","TantalumJiuJiang JinXin Nonferrous Metals Co., Ltd.","TantalumJiuJiang JinXin Nonferrous Metals Co., Ltd."]
["Tantalum","Jiujiang Nonferrous Metals Smelting Company Limited","Jiujiang Tanbre Co., Ltd.","CHINA","CID000917","RMI",null,"Jiujiang","Jiangxi","TantalumJiujiang Nonferrous Metals Smelting Company Limited","TantalumJiujiang Nonferrous Metals Smelting Company Limited"]
["Tantalum","Jiujiang Tanbre Co., Ltd.","Jiujiang Tanbre Co., Ltd.","CHINA","CID000917","RMI",null,"Jiujiang","Jiangxi","TantalumJiujiang Tanbre Co., Ltd.","TantalumJiujiang Tanbre Co., Ltd."]
["Tantalum","Jiujiang Zhongao Tantalum & Niobium Co., Ltd.","Jiujiang Zhongao Tantalum & Niobium Co., Ltd.","CHINA","CID002506","RMI",null,"Jiujiang","Jiangxi","TantalumJiujiang Zhongao Tantalum & Niobium Co., Ltd.","TantalumJiujiang Zhongao Tantalum & Niobium Co., Ltd."]
["Tantalum","KEMET Blue Metals","KEMET Blue Metals","MEXICO","CID002539","RMI",null,"Matamoros","Tamaulipas","TantalumKEMET Blue Metals","TantalumKEMET Blue Metals"]
["Tantalum","KEMET Blue Powder","KEMET Blue Powder","UNITED STATES OF AMERICA","CID002568","RMI",null,"Mound House","Nevada","TantalumKEMET Blue Powder","TantalumKEMET Blue Powder"]
["Tantalum","LSM Brasil S.A.","LSM Brasil S.A.","BRAZIL","CID001076","RMI",null,"São João del Rei","Minas Gerais","TantalumLSM Brasil S.A.","TantalumLSM Brasil S.A."]
["Tantalum","Metallurgical Products India Pvt. Ltd. (MPIL)","Metallurgical Products India Pvt., Ltd.","INDIA","CID001163","RMI",null,"District Raigad","Maharashtra","TantalumMetallurgical Products India Pvt. Ltd. (MPIL)","TantalumMetallurgical Products India Pvt. Ltd. (MPIL)"]
["Tantalum","Metallurgical Products India Pvt., Ltd.","Metallurgical Products India Pvt., Ltd.","INDIA","CID001163","RMI",null,"District Raigad","Maharashtra","TantalumMetallurgical Products India Pvt., Ltd.","TantalumMetallurgical Products India Pvt., Ltd."]
["Tantalum","Mineracao Taboca S.A.","Mineracao Taboca S.A.","BRAZIL","CID001175","RMI",null,"Presidente Figueiredo","Amazonas","TantalumMineracao Taboca S.A.","TantalumMineracao Taboca S.A."]
["Tantalum","Mineração Taboca S.A.","Mineracao Taboca S.A.","BRAZIL","CID001175","RMI",null,"Presidente Figueiredo","Amazonas","TantalumMineração Taboca S.A.","TantalumMineração Taboca S.A."]
["Tantalum","Mineracao Taboca SA","Mineracao Taboca S.A.","BRAZIL","CID001175","RMI",null,"Presidente Figueiredo","Amazonas","TantalumMineracao Taboca SA","TantalumMineracao Taboca SA"]
["Tantalum","Mitsui Mining & Smelting","Mitsui Mining and Smelting Co., Ltd.","JAPAN","CID001192","RMI",null,"Omuta","Fukuoka","TantalumMitsui Mining & Smelting","TantalumMitsui Mining & Smelting"]
["Tantalum","Mitsui Mining and Smelting Co., Ltd.","Mitsui Mining and Smelting Co., Ltd.","JAPAN","CID001192","RMI",null,"Omuta","Fukuoka","TantalumMitsui Mining and Smelting Co., Ltd.","TantalumMitsui Mining and Smelting Co., Ltd."]
["Tantalum","Molycorp Silmet A.S.","NPM Silmet AS","ESTONIA","CID001200","RMI",null,"Sillamäe","Ida-Virumaa","TantalumMolycorp Silmet A.S.","TantalumMolycorp Silmet A.S."]
["Tantalum","Ningxia Non-Ferrous Metal Smeltery","Ningxia Orient Tantalum Industry Co., Ltd.","CHINA","CID001277","RMI",null,"Shizuishan City","Ningxia","TantalumNingxia Non-Ferrous Metal Smeltery","TantalumNingxia Non-Ferrous Metal Smeltery"]
["Tantalum","Ningxia Orient Tantalum Industry Co., Ltd.","Ningxia Orient Tantalum Industry Co., Ltd.","CHINA","CID001277","RMI",null,"Shizuishan City","Ningxia","TantalumNingxia Orient Tantalum Industry Co., Ltd.","TantalumNingxia Orient Tantalum Industry Co., Ltd."]
["Tantalum","NPM Silmet AS","NPM Silmet AS","ESTONIA","CID001200","RMI",null,"Sillamäe","Ida-Virumaa","TantalumNPM Silmet AS","TantalumNPM Silmet AS"]
["Tantalum","Power Resources Ltd.","Power Resources Ltd.","MACEDONIA, THE FORMER YUGOSLAV REPUBLIC OF","CID002847","RMI",null,"Skopje","Skopje","TantalumPower Resources Ltd.","TantalumPower Resources Ltd."]
["Tantalum","QuantumClean","QuantumClean","UNITED STATES OF AMERICA","CID001508","RMI",null,"Fremont","California",{"$f":"A326&B326","v":"TantalumQuantumClean"},{"$f":"A326&B326","v":"TantalumQuantumClean"}]
["Tantalum","Resind Ind e Com Ltda.","Resind Industria e Comercio Ltda.","BRAZIL","CID002707","RMI",null,"São João del Rei","Minas gerais","TantalumResind Ind e Com Ltda.","TantalumResind Ind e Com Ltda."]
["Tantalum","Resind Industria e Comercio Ltda.","Resind Industria e Comercio Ltda.","BRAZIL","CID002707","RMI",null,"São João del Rei","Minas gerais","TantalumResind Industria e Comercio Ltda.","TantalumResind Industria e Comercio Ltda."]
["Tantalum","Resind Indústria e Comércio Ltda.","Resind Industria e Comercio Ltda.","BRAZIL","CID002707","RMI",null,"São João del Rei","Minas gerais","TantalumResind Indústria e Comércio Ltda.","TantalumResind Indústria e Comércio Ltda."]
["Tantalum","RFH","RFH Tantalum Smeltery Co., Ltd./Yanling Jincheng Tantalum & Niobium Co., Ltd.","CHINA","CID001522","RMI",null,"Zhuzhou","Hunan","TantalumRFH","TantalumRFH"]
["Tantalum","RFH Tantalum Smeltery Co., Ltd./Yanling Jincheng Tantalum & Niobium Co., Ltd.","RFH Tantalum Smeltery Co., Ltd./Yanling Jincheng Tantalum & Niobium Co., Ltd.","CHINA","CID001522","RMI",null,"Zhuzhou","Hunan","TantalumRFH Tantalum Smeltery Co., Ltd./Yanling Jincheng Tantalum & Niobium Co., Ltd.","TantalumRFH Tantalum Smeltery Co., Ltd./Yanling Jincheng Tantalum & Niobium Co., Ltd."]
["Tantalum","RFH Tantalum Smeltry Co., Ltd.","RFH Tantalum Smeltery Co., Ltd./Yanling Jincheng Tantalum & Niobium Co., Ltd.","CHINA","CID001522","RMI",null,"Zhuzhou","Hunan","TantalumRFH Tantalum Smeltry Co., Ltd.","TantalumRFH Tantalum Smeltry Co., Ltd."]
["Tantalum","Solikamsk","Solikamsk Magnesium Works OAO","RUSSIAN FEDERATION","CID001769","RMI",null,"Solikamsk","Permskiy kray","TantalumSolikamsk","TantalumSolikamsk"]
["Tantalum","Solikamsk Magnesium Works OAO","Solikamsk Magnesium Works OAO","RUSSIAN FEDERATION","CID001769","RMI",null,"Solikamsk","Permskiy kray","TantalumSolikamsk Magnesium Works OAO","TantalumSolikamsk Magnesium Works OAO"]
["Tantalum","Solikamsk Metal Works","Solikamsk Magnesium Works OAO","RUSSIAN FEDERATION","CID001769","RMI",null,"Solikamsk","Permskiy kray","TantalumSolikamsk Metal Works","TantalumSolikamsk Metal Works"]
["Tantalum","Taki Chemical Co., Ltd.","Taki Chemical Co., Ltd.","JAPAN","CID001869","RMI",null,"Harima","Hyogo","TantalumTaki Chemical Co., Ltd.","TantalumTaki Chemical Co., Ltd."]
["Tantalum","Taki Chemicals","Taki Chemical Co., Ltd.","JAPAN","CID001869","RMI",null,"Harima","Hyogo","TantalumTaki Chemicals","TantalumTaki Chemicals"]
["Tantalum","Telex Metals","Telex Metals","UNITED STATES OF AMERICA","CID001891","RMI",null,"Croydon","Pennsylvania","TantalumTelex Metals","TantalumTelex Metals"]
["Tantalum","ULBA","Ulba Metallurgical Plant JSC","KAZAKHSTAN","CID001969","RMI",null,"Ust-Kamenogorsk","Qaraghandy oblysy","TantalumULBA","TantalumULBA"]
["Tantalum","Ulba Metallurgical Plant JSC","Ulba Metallurgical Plant JSC","KAZAKHSTAN","CID001969","RMI",null,"Ust-Kamenogorsk","Qaraghandy oblysy","TantalumUlba Metallurgical Plant JSC","TantalumUlba Metallurgical Plant JSC"]
["Tantalum","XinXing HaoRong Electronic Material Co., Ltd.","XinXing HaoRong Electronic Material Co., Ltd.","CHINA","CID002508","RMI",null,"YunFu City","Guangdong","TantalumXinXing HaoRong Electronic Material Co., Ltd.","TantalumXinXing HaoRong Electronic Material Co., Ltd."]
["Tantalum","Yanling Jincheng Tantalum & Niobium Co., Ltd.","RFH Tantalum Smeltery Co., Ltd./Yanling Jincheng Tantalum & Niobium Co., Ltd.","CHINA","CID001522","RMI",null,"Zhuzhou","Hunan","TantalumYanling Jincheng Tantalum & Niobium Co., Ltd.","TantalumYanling Jincheng Tantalum & Niobium Co., Ltd."]
["Tantalum","Yanling Jincheng Tantalum Co., Ltd.","RFH Tantalum Smeltery Co., Ltd./Yanling Jincheng Tantalum & Niobium Co., Ltd.","CHINA","CID001522","RMI",null,"Zhuzhou","Hunan","TantalumYanling Jincheng Tantalum Co., Ltd.","TantalumYanling Jincheng Tantalum Co., Ltd."]
["Tantalum","Yichun Jin Yang Rare Metal Co., Ltd.","Yichun Jin Yang Rare Metal Co., Ltd.","CHINA","CID002307","RMI",null,"Yifeng","Jiangxi","TantalumYichun Jin Yang Rare Metal Co., Ltd.","TantalumYichun Jin Yang Rare Metal Co., Ltd."]
["Tantalum","Zhaoqing Duoluoshan Non-ferrous Metals Co.,Ltd","Duoluoshan","CHINA","CID000410","RMI",null,"Sihui City","Guangdong","TantalumZhaoqing Duoluoshan Non-ferrous Metals Co.,Ltd","TantalumZhaoqing Duoluoshan Non-ferrous Metals Co.,Ltd"]
["Tantalum","Smelter not listed",{"$nulls":7},"TantalumSmelter not listed","TantalumSmelter not listed"]
["Tantalum","Smelter not yet identified","Unknown","Unknown",{"$nulls":5},"TantalumSmelter not yet identified","TantalumSmelter not yet identified"]
["Tin","Alent plc","Alpha","UNITED STATES OF AMERICA","CID000292","RMI",null,"Altoona","Pennsylvania","TinAlent plc","TinAlent plc"]
["Tin","Alpha","Alpha","UNITED STATES OF AMERICA","CID000292","RMI",null,"Altoona","Pennsylvania","TinAlpha","TinAlpha"]
["Tin","Alpha Metals","Alpha","UNITED STATES OF AMERICA","CID000292","RMI",null,"Altoona","Pennsylvania","TinAlpha Metals","TinAlpha Metals"]
["Tin","Alpha Metals Korea Ltd.","Alpha","UNITED STATES OF AMERICA","CID000292","RMI",null,"Altoona","Pennsylvania","TinAlpha Metals Korea Ltd.","TinAlpha Metals Korea Ltd."]
["Tin","Alpha Metals Taiwan","Alpha","UNITED STATES OF AMERICA","CID000292","RMI",null,"Altoona","Pennsylvania","TinAlpha Metals Taiwan","TinAlpha Metals Taiwan"]
["Tin","An Vinh Joint Stock Mineral Processing Company","An Vinh Joint Stock Mineral Processing Company","VIET NAM","CID002703","RMI",null,"Quy Hop","Nghệ An","TinAn Vinh Joint Stock Mineral Processing Company","TinAn Vinh Joint Stock Mineral Processing Company"]
["Tin","Brand IMLI","PT Bukit Timah","INDONESIA","CID001428","RMI",null,"Pangkal Pinang","Kepulauan Bangka Belitung","TinBrand IMLI","TinBrand IMLI"]
["Tin","Brand RBT","PT Refined Bangka Tin","INDONESIA","CID001460","RMI",null,"Sungailiat","Kepulauan Bangka Belitung","TinBrand RBT","TinBrand RBT"]
["Tin","Chengfeng Metals Co Pte Ltd","Yunnan Chengfeng Non-ferrous Metals Co., Ltd.","CHINA","CID002158","RMI",null,"Gejiu","Yunnan","TinChengfeng Metals Co Pte Ltd","TinChengfeng Metals Co Pte Ltd"]
["Tin","Chenzhou Yun Xiang mining limited liability company","Chenzhou Yunxiang Mining and Metallurgy Co., Ltd.","CHINA","CID000228","RMI",null,"Chenzhou","Hunan","TinChenzhou Yun Xiang mining limited liability company","TinChenzhou Yun Xiang mining limited liability company"]
["Tin","Chenzhou Yunxiang Mining and Metallurgy Co., Ltd.","Chenzhou Yunxiang Mining and Metallurgy Co., Ltd.","CHINA","CID000228","RMI",null,"Chenzhou","Hunan","TinChenzhou Yunxiang Mining and Metallurgy Co., Ltd.","TinChenzhou Yunxiang Mining and Metallurgy Co., Ltd."]
["Tin","Chifeng Dajingzi Tin Industry Co., Ltd.","Chifeng Dajingzi Tin Industry Co., Ltd.","CHINA","CID003190","RMI",null,"Chifeng","Nei Mongol","TinChifeng Dajingzi Tin Industry Co., Ltd.","TinChifeng Dajingzi Tin Industry Co., Ltd."]
["Tin","China Rare Metal Material Co., Ltd.","Jiangxi Ketai Advanced Material Co., Ltd.","CHINA","CID000244","RMI",null,"Yichun","Jiangxi","TinChina Rare Metal Material Co., Ltd.","TinChina Rare Metal Material Co., Ltd."]
["Tin","China Tin (Hechi)","China Tin Group Co., Ltd.","CHINA","CID001070","RMI",null,"Laibin","Guangxi","TinChina Tin (Hechi)","TinChina Tin (Hechi)"]
["Tin","China Tin Group Co., Ltd.","China Tin Group Co., Ltd.","CHINA","CID001070","RMI",null,"Laibin","Guangxi","TinChina Tin Group Co., Ltd.","TinChina Tin Group Co., Ltd."]
["Tin","China Tin Lai Ben Smelter Co., Ltd.","China Tin Group Co., Ltd.","CHINA","CID001070","RMI",null,"Laibin","Guangxi","TinChina Tin Lai Ben Smelter Co., Ltd.","TinChina Tin Lai Ben Smelter Co., Ltd."]
["Tin","China Yunnan Tin Co Ltd.","Yunnan Tin Company Limited","CHINA","CID002180","RMI",null,"Gejiu","Yunnan","TinChina Yunnan Tin Co Ltd.","TinChina Yunnan Tin Co Ltd."]
["Tin","CNMC (Guangxi) PGMA Co., Ltd.","CNMC (Guangxi) PGMA Co., Ltd.","CHINA","CID000278","RMI",null,"Hezhou","Guangxi","TinCNMC (Guangxi) PGMA Co., Ltd.","TinCNMC (Guangxi) PGMA Co., Ltd."]
["Tin","Cookson","Alpha","UNITED STATES OF AMERICA","CID000292","RMI",null,"Altoona","Pennsylvania","TinCookson","TinCookson"]
["Tin","Cookson (Alpha Metals Taiwan)","Alpha","UNITED STATES OF AMERICA","CID000292","RMI",null,"Altoona","Pennsylvania","TinCookson (Alpha Metals Taiwan)","TinCookson (Alpha Metals Taiwan)"]
["Tin","Cookson Alpha Metals (Shenzhen) Co., Ltd.","Alpha","UNITED STATES OF AMERICA","CID000292","RMI",null,"Altoona","Pennsylvania","TinCookson Alpha Metals (Shenzhen) Co., Ltd.","TinCookson Alpha Metals (Shenzhen) Co., Ltd."]
["Tin","CV Ayi Jaya","CV Ayi Jaya","INDONESIA","CID002570","RMI",null,"Sungailiat","Kepulauan Bangka Belitung","TinCV Ayi Jaya","TinCV Ayi Jaya"]
["Tin","CV Dua Sekawan","CV Dua Sekawan","INDONESIA","CID002592","RMI",null,"Pangkal Pinang","Kepulauan Bangka Belitung","TinCV Dua Sekawan","TinCV Dua Sekawan"]
["Tin","CV Gita Pesona","CV Gita Pesona","INDONESIA","CID000306","RMI",null,"Sungailiat","Kepulauan Bangka Belitung","TinCV Gita Pesona","TinCV Gita Pesona"]
["Tin","CV Nurjanah","PT Aries Kencana Sejahtera","INDONESIA","CID000309","RMI",null,"Pemali","Kepulauan Bangka Belitung","TinCV Nurjanah","TinCV Nurjanah"]
["Tin","CV Serumpun Sebalai","PT Premium Tin Indonesia","INDONESIA","CID000313","RMI",null,"Pangkalan","Kepulauan Bangka Belitung","TinCV Serumpun Sebalai","TinCV Serumpun Sebalai"]
["Tin","CV Tiga Sekawan","CV Tiga Sekawan","INDONESIA","CID002593","RMI",null,"Pangkal Pinang","Kepulauan Bangka Belitung","TinCV Tiga Sekawan","TinCV Tiga Sekawan"]
["Tin","CV United Smelting","CV United Smelting","INDONESIA","CID000315","RMI",null,"Pangkal Pinang","Kepulauan Bangka Belitung","TinCV United Smelting","TinCV United Smelting"]
["Tin","CV Venus Inti Perkasa","CV Venus Inti Perkasa","INDONESIA","CID002455","RMI",null,"Pangkal Pinang","Kepulauan Bangka Belitung","TinCV Venus Inti Perkasa","TinCV Venus Inti Perkasa"]
["Tin","Dowa","Dowa","JAPAN","CID000402","RMI",null,"Kosaka","Akita","TinDowa","TinDowa"]
["Tin","Dowa Metaltech Co., Ltd.","Dowa","JAPAN","CID000402","RMI",null,"Kosaka","Akita","TinDowa Metaltech Co., Ltd.","TinDowa Metaltech Co., Ltd."]
["Tin","Electro-Mechanical Facility of the Cao Bang Minerals & Metallurgy Joint Stock Company","Electro-Mechanical Facility of the Cao Bang Minerals & Metallurgy Joint Stock Company","VIET NAM","CID002572","RMI",null,"Tinh Tuc","Cao Bằng","TinElectro-Mechanical Facility of the Cao Bang Minerals & Metallurgy Joint Stock Company","TinElectro-Mechanical Facility of the Cao Bang Minerals & Metallurgy Joint Stock Company"]
["Tin","EM Vinto","EM Vinto","BOLIVIA (PLURINATIONAL STATE OF)","CID000438","RMI",null,"Oruro","Oruro","TinEM Vinto","TinEM Vinto"]
["Tin","Empresa Metalúrgica Vinto","EM Vinto","BOLIVIA (PLURINATIONAL STATE OF)","CID000438","RMI",null,"Oruro","Oruro","TinEmpresa Metalúrgica Vinto","TinEmpresa Metalúrgica Vinto"]
["Tin","Empressa Nacional de Fundiciones (ENAF)","EM Vinto","BOLIVIA (PLURINATIONAL STATE OF)","CID000438","RMI",null,"Oruro","Oruro","TinEmpressa Nacional de Fundiciones (ENAF)","TinEmpressa Nacional de Fundiciones (ENAF)"]
["Tin","ENAF","EM Vinto","BOLIVIA (PLURINATIONAL STATE OF)","CID000438","RMI",null,"Oruro","Oruro","TinENAF","TinENAF"]
["Tin","Estanho de Rondonia S.A.","Estanho de Rondonia S.A.","BRAZIL","CID000448","RMI",null,"Ariquemes","Rondônia","TinEstanho de Rondonia S.A.","TinEstanho de Rondonia S.A."]
["Tin","Estanho de Rondônia S.A.","Estanho de Rondonia S.A.","BRAZIL","CID000448","RMI",null,"Ariquemes","Rondônia","TinEstanho de Rondônia S.A.","TinEstanho de Rondônia S.A."]
["Tin","Fenix Metals","Fenix Metals","POLAND","CID000468","RMI",null,"Chmielów","Podkarpackie","TinFenix Metals","TinFenix Metals"]
["Tin","Funsur Smelter","Minsur","PERU","CID001182","RMI",null,"Paracas","Ika","TinFunsur Smelter","TinFunsur Smelter"]
["Tin","Gejiu City Datun Chengfeng Smelter","Yunnan Chengfeng Non-ferrous Metals Co., Ltd.","CHINA","CID002158","RMI",null,"Gejiu","Yunnan","TinGejiu City Datun Chengfeng Smelter","TinGejiu City Datun Chengfeng Smelter"]
["Tin","Gejiu Fengming Metallurgy Chemical Plant","Gejiu Fengming Metallurgy Chemical Plant","CHINA","CID002848","RMI",null,"Gejiu","Yunnan","TinGejiu Fengming Metallurgy Chemical Plant","TinGejiu Fengming Metallurgy Chemical Plant"]
["Tin","Gejiu Jinye Mineral Company","Gejiu Jinye Mineral Company","CHINA","CID002859","RMI",null,"Jijie","Yunnan",{"$f":"A390&B390","v":"TinGejiu Jinye Mineral Company"},{"$f":"A390&B390","v":"TinGejiu Jinye Mineral Company"}]
["Tin","Gejiu Kai Meng Industry and Trade LLC","Gejiu Kai Meng Industry and Trade LLC","CHINA","CID000942","RMI",null,"Gejiu","Yunnan","TinGejiu Kai Meng Industry and Trade LLC","TinGejiu Kai Meng Industry and Trade LLC"]
["Tin","Gejiu Non-Ferrous Metal Processing Co., Ltd.","Gejiu Non-Ferrous Metal Processing Co., Ltd.","CHINA","CID000538","RMI",null,"Gejiu","Yunnan","TinGejiu Non-Ferrous Metal Processing Co., Ltd.","TinGejiu Non-Ferrous Metal Processing Co., Ltd."]
["Tin","Gejiu Yunxin Nonferrous Electrolysis Co., Ltd.","Gejiu Yunxin Nonferrous Electrolysis Co., Ltd.","CHINA","CID001908","RMI",null,"Gejiu","Yunnan","TinGejiu Yunxin Nonferrous Electrolysis Co., Ltd.","TinGejiu Yunxin Nonferrous Electrolysis Co., Ltd."]
["Tin","Gejiu Zi-Li","Gejiu Zili Mining And Metallurgy Co., Ltd.","CHINA","CID000555","RMI",null,"Gejiu","Yunnan","TinGejiu Zi-Li","TinGejiu Zi-Li"]
["Tin","Gejiu Zili Mining And Metallurgy Co., Ltd.","Gejiu Zili Mining And Metallurgy Co., Ltd.","CHINA","CID000555","RMI",null,"Gejiu","Yunnan","TinGejiu Zili Mining And Metallurgy Co., Ltd.","TinGejiu Zili Mining And Metallurgy Co., Ltd."]
["Tin","Guang Xi Liu Xhou","China Tin Group Co., Ltd.","CHINA","CID001070","RMI",null,"Laibin","Guangxi","TinGuang Xi Liu Xhou","TinGuang Xi Liu Xhou"]
["Tin","Guang Xi Liu Zhou","China Tin Group Co., Ltd.","CHINA","CID001070","RMI",null,"Laibin","Guangxi","TinGuang Xi Liu Zhou","TinGuang Xi Liu Zhou"]
["Tin","Guangdong Hanhe Non-Ferrous Metal Co., Ltd.","Guangdong Hanhe Non-Ferrous Metal Co., Ltd.","CHINA","CID003116","RMI",null,"Chaozhou","Guangdong","TinGuangdong Hanhe Non-Ferrous Metal Co., Ltd.","TinGuangdong Hanhe Non-Ferrous Metal Co., Ltd."]
["Tin","GuangXi China Tin","China Tin Group Co., Ltd.","CHINA","CID001070","RMI",null,"Laibin","Guangxi","TinGuangXi China Tin","TinGuangXi China Tin"]
["Tin","Guangxi Hua Shu Dan CO., LTD.","China Tin Group Co., Ltd.","CHINA","CID001070","RMI",null,"Laibin","Guangxi","TinGuangxi Hua Shu Dan CO., LTD.","TinGuangxi Hua Shu Dan CO., LTD."]
["Tin","Guangxi Pinggui PGMA Co. Ltd.","CNMC (Guangxi) PGMA Co., Ltd.","CHINA","CID000278","RMI",null,"Hezhou","Guangxi","TinGuangxi Pinggui PGMA Co. Ltd.","TinGuangxi Pinggui PGMA Co. Ltd."]
["Tin","Guanyang Guida Nonferrous Metal Smelting Plant","Guanyang Guida Nonferrous Metal Smelting Plant","CHINA","CID002849","RMI",null,"Guanyang","Guangxi","TinGuanyang Guida Nonferrous Metal Smelting Plant","TinGuanyang Guida Nonferrous Metal Smelting Plant"]
["Tin","HuiChang Hill Tin Industry Co., Ltd.","HuiChang Hill Tin Industry Co., Ltd.","CHINA","CID002844","RMI",null,"Ganzhou","Jiangxi","TinHuiChang Hill Tin Industry Co., Ltd.","TinHuiChang Hill Tin Industry Co., Ltd."]
["Tin","Huichang Jinshunda Tin Co., Ltd.","Huichang Jinshunda Tin Co., Ltd.","CHINA","CID000760","RMI",null,"Ganzhou","Jiangxi","TinHuichang Jinshunda Tin Co., Ltd.","TinHuichang Jinshunda Tin Co., Ltd."]
["Tin","Huichang Shun Tin Kam Industries, Ltd.","Huichang Jinshunda Tin Co., Ltd.","CHINA","CID000760","RMI",null,"Ganzhou","Jiangxi","TinHuichang Shun Tin Kam Industries, Ltd.","TinHuichang Shun Tin Kam Industries, Ltd."]
["Tin","INDONESIAN STATE TIN CORPORATION MENTOK SMELTER","PT Timah (Persero) Tbk Mentok","INDONESIA","CID001482","RMI",null,"Mentok","Kepulauan Bangka Belitung","TinINDONESIAN STATE TIN CORPORATION MENTOK SMELTER","TinINDONESIAN STATE TIN CORPORATION MENTOK SMELTER"]
["Tin","Indra Eramulti Logam","PT Bukit Timah","INDONESIA","CID001428","RMI",null,"Pangkal Pinang","Kepulauan Bangka Belitung","TinIndra Eramulti Logam","TinIndra Eramulti Logam"]
["Tin","Jiangxi Ketai Advanced Material Co., Ltd.","Jiangxi Ketai Advanced Material Co., Ltd.","CHINA","CID000244","RMI",null,"Yichun","Jiangxi","TinJiangxi Ketai Advanced Material Co., Ltd.","TinJiangxi Ketai Advanced Material Co., Ltd."]
["Tin","Jiangxi Nanshan","Jiangxi New Nanshan Technology Ltd.","CHINA","CID001231","RMI",null,"Ganzhou","Jiangxi","TinJiangxi Nanshan","TinJiangxi Nanshan"]
["Tin","Jiangxi New Nanshan Technology Ltd.","Jiangxi New Nanshan Technology Ltd.","CHINA","CID001231","RMI",null,"Ganzhou","Jiangxi","TinJiangxi New Nanshan Technology Ltd.","TinJiangxi New Nanshan Technology Ltd."]
["Tin","Jiangxi Shunda Huichang Kam Tin Co., Ltd.","Huichang Jinshunda Tin Co., Ltd.","CHINA","CID000760","RMI",null,"Ganzhou","Jiangxi","TinJiangxi Shunda Huichang Kam Tin Co., Ltd.","TinJiangxi Shunda Huichang Kam Tin Co., Ltd."]
["Tin","Kai Union Industry and Trade Co., Ltd. (China)","Gejiu Kai Meng Industry and Trade LLC","CHINA","CID000942","RMI",null,"Gejiu","Yunnan","TinKai Union Industry and Trade Co., Ltd. (China)","TinKai Union Industry and Trade Co., Ltd. (China)"]
["Tin","Kai Unita Trade Limited Liability Company","Gejiu Kai Meng Industry and Trade LLC","CHINA","CID000942","RMI",null,"Gejiu","Yunnan","TinKai Unita Trade Limited Liability Company","TinKai Unita Trade Limited Liability Company"]
["Tin","Kaimeng (Gejiu) Industry and Trade Co., Ltd.","Gejiu Kai Meng Industry and Trade LLC","CHINA","CID000942","RMI",null,"Gejiu","Yunnan","TinKaimeng (Gejiu) Industry and Trade Co., Ltd.","TinKaimeng (Gejiu) Industry and Trade Co., Ltd."]
["Tin","Kundur Smelter","PT Timah (Persero) Tbk Kundur","INDONESIA","CID001477","RMI",null,"Kundur","Riau","TinKundur Smelter","TinKundur Smelter"]
["Tin","Liuzhhou China Tin","China Tin Group Co., Ltd.","CHINA","CID001070","RMI",null,"Laibin","Guangxi","TinLiuzhhou China Tin","TinLiuzhhou China Tin"]
["Tin","Magnu's Minerais Metais e Ligas Ltda.","Magnu's Minerais Metais e Ligas Ltda.","BRAZIL","CID002468","RMI",null,"São João del Rei","Minas Gerais","TinMagnu's Minerais Metais e Ligas Ltda.","TinMagnu's Minerais Metais e Ligas Ltda."]
["Tin","Malaysia Smelting Corporation (MSC)","Malaysia Smelting Corporation (MSC)","MALAYSIA","CID001105","RMI",null,"Butterworth","Pulau Pinang","TinMalaysia Smelting Corporation (MSC)","TinMalaysia Smelting Corporation (MSC)"]
["Tin","Melt Metais e Ligas S.A.","Melt Metais e Ligas S.A.","BRAZIL","CID002500","RMI",null,"Ariquemes","Rondônia","TinMelt Metais e Ligas S.A.","TinMelt Metais e Ligas S.A."]
["Tin","Mentok Smelter","PT Timah (Persero) Tbk Mentok","INDONESIA","CID001482","RMI",null,"Mentok","Kepulauan Bangka Belitung","TinMentok Smelter","TinMentok Smelter"]
["Tin","Metallic Materials Branch of Guangxi China Tin Group Co.,Ltd.","China Tin Group Co., Ltd.","CHINA","CID001070","RMI",null,"Laibin","Guangxi","TinMetallic Materials Branch of Guangxi China Tin Group Co.,Ltd.","TinMetallic Materials Branch of Guangxi China Tin Group Co.,Ltd."]
["Tin","Metallic Resources, Inc.","Metallic Resources, Inc.","UNITED STATES OF AMERICA","CID001142","RMI",null,"Twinsburg","Ohio","TinMetallic Resources, Inc.","TinMetallic Resources, Inc."]
["Tin","Metallo Belgium N.V.","Metallo Belgium N.V.","BELGIUM","CID002773","RMI",null,"Beerse","Antwerpen","TinMetallo Belgium N.V.","TinMetallo Belgium N.V."]
["Tin","Metallo Spain S.L.U.","Metallo Spain S.L.U.","SPAIN","CID002774","RMI",null,"Berango","Bizkaia","TinMetallo Spain S.L.U.","TinMetallo Spain S.L.U."]
["Tin","Mineracao Taboca S.A.","Mineracao Taboca S.A.","BRAZIL","CID001173","RMI",null,"Bairro Guarapiranga","São Paulo","TinMineracao Taboca S.A.","TinMineracao Taboca S.A."]
["Tin","Mineração Taboca S.A.","Mineracao Taboca S.A.","BRAZIL","CID001173","RMI",null,"Bairro Guarapiranga","São Paulo","TinMineração Taboca S.A.","TinMineração Taboca S.A."]
["Tin","Mineracao Taboca SA","Mineracao Taboca S.A.","BRAZIL","CID001173","RMI",null,"Bairro Guarapiranga","São Paulo","TinMineracao Taboca SA","TinMineracao Taboca SA"]
["Tin","Minsur","Minsur","PERU","CID001182","RMI",null,"Paracas","Ika","TinMinsur","TinMinsur"]
["Tin","Mitsubishi Materials Corporation","Mitsubishi Materials Corporation","JAPAN","CID001191","RMI",null,"Asago","Hyogo","TinMitsubishi Materials Corporation","TinMitsubishi Materials Corporation"]
["Tin","Modeltech Sdn Bhd","Modeltech Sdn Bhd","MALAYSIA","CID002858","RMI",null,"Kawasan Perindustrian Bukit Rambai","Melaka","TinModeltech Sdn Bhd","TinModeltech Sdn Bhd"]
["Tin","MSC","Malaysia Smelting Corporation (MSC)","MALAYSIA","CID001105","RMI",null,"Butterworth","Pulau Pinang","TinMSC","TinMSC"]
["Tin","Nankang Nanshan Tin Manufactory Co., Ltd.","Jiangxi New Nanshan Technology Ltd.","CHINA","CID001231","RMI",null,"Ganzhou","Jiangxi","TinNankang Nanshan Tin Manufactory Co., Ltd.","TinNankang Nanshan Tin Manufactory Co., Ltd."]
["Tin","Nanshan Tin Co. Ltd.","Jiangxi New Nanshan Technology Ltd.","CHINA","CID001231","RMI",null,"Ganzhou","Jiangxi","TinNanshan Tin Co. Ltd.","TinNanshan Tin Co. Ltd."]
["Tin","Nghe Tinh Non-Ferrous Metals Joint Stock Company","Nghe Tinh Non-Ferrous Metals Joint Stock Company","VIET NAM","CID002573","RMI",null,"Quy Hop","Nghệ An","TinNghe Tinh Non-Ferrous Metals Joint Stock Company","TinNghe Tinh Non-Ferrous Metals Joint Stock Company"]
["Tin","O.M. Manufacturing (Thailand) Co., Ltd.","O.M. Manufacturing (Thailand) Co., Ltd.","THAILAND","CID001314","RMI",null,"Nongkham Sriracha","Chon Buri","TinO.M. Manufacturing (Thailand) Co., Ltd.","TinO.M. Manufacturing (Thailand) Co., Ltd."]
["Tin","O.M. Manufacturing Philippines, Inc.","O.M. Manufacturing Philippines, Inc.","PHILIPPINES","CID002517","RMI",null,"Rosario","Cavite","TinO.M. Manufacturing Philippines, Inc.","TinO.M. Manufacturing Philippines, Inc."]
["Tin","OMSA","Operaciones Metalurgical S.A.","BOLIVIA (PLURINATIONAL STATE OF)","CID001337","RMI",null,"Oruro","Oruro","TinOMSA","TinOMSA"]
["Tin","Operaciones Metalurgical S.A.","Operaciones Metalurgical S.A.","BOLIVIA (PLURINATIONAL STATE OF)","CID001337","RMI",null,"Oruro","Oruro","TinOperaciones Metalurgical S.A.","TinOperaciones Metalurgical S.A."]
["Tin","PGMA","CNMC (Guangxi) PGMA Co., Ltd.","CHINA","CID000278","RMI",null,"Hezhou","Guangxi","TinPGMA","TinPGMA"]
["Tin","Pongpipat Company Limited","Pongpipat Company Limited","MYANMAR","CID003208","RMI",null,"Yangon","Yangon","TinPongpipat Company Limited","TinPongpipat Company Limited"]
["Tin","PT Aries Kencana Sejahtera","PT Aries Kencana Sejahtera","INDONESIA","CID000309","RMI",null,"Pemali","Kepulauan Bangka Belitung","TinPT Aries Kencana Sejahtera","TinPT Aries Kencana Sejahtera"]
["Tin","PT Artha Cipta Langgeng","PT Artha Cipta Langgeng","INDONESIA","CID001399","RMI",null,"Sungailiat","Kepulauan Bangka Belitung","TinPT Artha Cipta Langgeng","TinPT Artha Cipta Langgeng"]
["Tin","PT ATD Makmur Mandiri Jaya","PT ATD Makmur Mandiri Jaya","INDONESIA","CID002503","RMI",null,"Sungailiat","Kepulauan Bangka Belitung","TinPT ATD Makmur Mandiri Jaya","TinPT ATD Makmur Mandiri Jaya"]
["Tin","PT Babel Inti Perkasa","PT Babel Inti Perkasa","INDONESIA","CID001402","RMI",null,"Lintang","Kepulauan Bangka Belitung","TinPT Babel Inti Perkasa","TinPT Babel Inti Perkasa"]
["Tin","PT Bangka Prima Tin","PT Bangka Prima Tin","INDONESIA","CID002776","RMI",null,"Air Mesu","Kepulauan Bangka Belitung","TinPT Bangka Prima Tin","TinPT Bangka Prima Tin"]
["Tin","PT Bangka Serumpun","PT Bangka Serumpun","INDONESIA","CID003205","RMI",null,"Pangkalpinang","Kepulauan Bangka Belitung","TinPT Bangka Serumpun","TinPT Bangka Serumpun"]
["Tin","PT Bangka Tin Industry","PT Bangka Tin Industry","INDONESIA","CID001419","RMI",null,"Sungailiat","Kepulauan Bangka Belitung","TinPT Bangka Tin Industry","TinPT Bangka Tin Industry"]
["Tin","PT Belitung Industri Sejahtera","PT Belitung Industri Sejahtera","INDONESIA","CID001421","RMI",null,"Pegantungan","Kepulauan Bangka Belitung","TinPT Belitung Industri Sejahtera","TinPT Belitung Industri Sejahtera"]
["Tin","PT Bukit Timah","PT Bukit Timah","INDONESIA","CID001428","RMI",null,"Pangkal Pinang","Kepulauan Bangka Belitung","TinPT Bukit Timah","TinPT Bukit Timah"]
["Tin","PT DS Jaya Abadi","PT DS Jaya Abadi","INDONESIA","CID001434","RMI",null,"Pangkal Pinang","Kepulauan Bangka Belitung","TinPT DS Jaya Abadi","TinPT DS Jaya Abadi"]
["Tin","PT Eunindo Usaha Mandiri","PT Eunindo Usaha Mandiri","INDONESIA","CID001438","RMI",null,"Karimun","Kepulauan Riau","TinPT Eunindo Usaha Mandiri","TinPT Eunindo Usaha Mandiri"]
["Tin","PT Indora Ermulti","PT Bukit Timah","INDONESIA","CID001428","RMI",null,"Pangkal Pinang","Kepulauan Bangka Belitung","TinPT Indora Ermulti","TinPT Indora Ermulti"]
["Tin","PT Indra Eramult Logam Industri","PT Bukit Timah","INDONESIA","CID001428","RMI",null,"Pangkal Pinang","Kepulauan Bangka Belitung","TinPT Indra Eramult Logam Industri","TinPT Indra Eramult Logam Industri"]
["Tin","PT Inti Stania Prima","PT Inti Stania Prima","INDONESIA","CID002530","RMI",null,"Sungailiat","Kepulauan Bangka Belitung",{"$f":"A454&B454","v":"TinPT Inti Stania Prima"},{"$f":"A454&B454","v":"TinPT Inti Stania Prima"}]
["Tin","PT Karimun Mining","PT Karimun Mining","INDONESIA","CID001448","RMI",null,"Karimun","Kepulauan Riau","TinPT Karimun Mining","TinPT Karimun Mining"]
["Tin","PT Kijang Jaya Mandiri","PT Kijang Jaya Mandiri","INDONESIA","CID002829","RMI",null,"Sungailiat","Kepulauan Bangka Belitung","TinPT Kijang Jaya Mandiri","TinPT Kijang Jaya Mandiri"]
["Tin","PT Lautan Harmonis Sejahtera","PT Lautan Harmonis Sejahtera","INDONESIA","CID002870","RMI",null,"Pasir Putih","Kepulauan Bangka Belitung","TinPT Lautan Harmonis Sejahtera","TinPT Lautan Harmonis Sejahtera"]
["Tin","PT Menara Cipta Mulia","PT Menara Cipta Mulia","INDONESIA","CID002835","RMI",null,"Mentawak","Kepulauan Bangka Belitung","TinPT Menara Cipta Mulia","TinPT Menara Cipta Mulia"]
["Tin","PT Mitra Stania Prima","PT Mitra Stania Prima","INDONESIA","CID001453","RMI",null,"Sungailiat","Kepulauan Bangka Belitung","TinPT Mitra Stania Prima","TinPT Mitra Stania Prima"]
["Tin","PT Panca Mega Persada","PT Panca Mega Persada","INDONESIA","CID001457","RMI",null,"Sungailiat","Kepulauan Bangka Belitung","TinPT Panca Mega Persada","TinPT Panca Mega Persada"]
["Tin","PT Premium Tin Indonesia","PT Premium Tin Indonesia","INDONESIA","CID000313","RMI",null,"Pangkalan","Kepulauan Bangka Belitung","TinPT Premium Tin Indonesia","TinPT Premium Tin Indonesia"]
["Tin","PT Prima Timah Utama","PT Prima Timah Utama","INDONESIA","CID001458","RMI",null,"Pangkal Pinang","Kepulauan Bangka Belitung","TinPT Prima Timah Utama","TinPT Prima Timah Utama"]
["Tin","PT Refined Bangka Tin","PT Refined Bangka Tin","INDONESIA","CID001460","RMI",null,"Sungailiat","Kepulauan Bangka Belitung","TinPT Refined Bangka Tin","TinPT Refined Bangka Tin"]
["Tin","PT Sariwiguna Binasentosa","PT Sariwiguna Binasentosa","INDONESIA","CID001463","RMI",null,"Pangkal Pinang","Kepulauan Bangka Belitung","TinPT Sariwiguna Binasentosa","TinPT Sariwiguna Binasentosa"]
["Tin","PT Stanindo Inti Perkasa","PT Stanindo Inti Perkasa","INDONESIA","CID001468","RMI",null,"Pangkal Pinang","Kepulauan Bangka Belitung","TinPT Stanindo Inti Perkasa","TinPT Stanindo Inti Perkasa"]
["Tin","PT Sukses Inti Makmur","PT Sukses Inti Makmur","INDONESIA","CID002816","RMI",null,"Sungai Samak","Kepulauan Bangka Belitung","TinPT Sukses Inti Makmur","TinPT Sukses Inti Makmur"]
["Tin","PT Sumber Jaya Indah","PT Sumber Jaya Indah","INDONESIA","CID001471","RMI",null,"Pangkal Pinang","Kepulauan Bangka Belitung","TinPT Sumber Jaya Indah","TinPT Sumber Jaya Indah"]
["Tin","PT Tambang Timah","PT Timah (Persero) Tbk Kundur","INDONESIA","CID001477","RMI",null,"Kundur","Riau","TinPT Tambang Timah","TinPT Tambang Timah"]
["Tin","PT Timah (Persero) Tbk Kundur","PT Timah (Persero) Tbk Kundur","INDONESIA","CID001477","RMI",null,"Kundur","Riau","TinPT Timah (Persero) Tbk Kundur","TinPT Timah (Persero) Tbk Kundur"]
["Tin","PT Timah (Persero) Tbk Mentok","PT Timah (Persero) Tbk Mentok","INDONESIA","CID001482","RMI",null,"Mentok","Kepulauan Bangka Belitung","TinPT Timah (Persero) Tbk Mentok","TinPT Timah (Persero) Tbk Mentok"]
["Tin","PT Tinindo Inter Nusa","PT Tinindo Inter Nusa","INDONESIA","CID001490","RMI",null,"Pangkal Pinang","Kepulauan Bangka Belitung","TinPT Tinindo Inter Nusa","TinPT Tinindo Inter Nusa"]
["Tin","PT Tommy Utama","PT Tommy Utama","INDONESIA","CID001493","RMI",null,"Sumping Desa Batu Peyu","Kepulauan Bangka Belitung","TinPT Tommy Utama","TinPT Tommy Utama"]
["Tin","Resind Ind e Com Ltda.","Resind Industria e Comercio Ltda.","BRAZIL","CID002706","RMI",null,"São João del Rei","Minas gerais","TinResind Ind e Com Ltda.","TinResind Ind e Com Ltda."]
["Tin","Resind Industria e Comercio Ltda.","Resind Industria e Comercio Ltda.","BRAZIL","CID002706","RMI",null,"São João del Rei","Minas gerais","TinResind Industria e Comercio Ltda.","TinResind Industria e Comercio Ltda."]
["Tin","Resind Indústria e Comércio Ltda.","Resind Industria e Comercio Ltda.","BRAZIL","CID002706","RMI",null,"São João del Rei","Minas gerais","TinResind Indústria e Comércio Ltda.","TinResind Indústria e Comércio Ltda."]
["Tin","Rui Da Hung","Rui Da Hung","TAIWAN, PROVINCE OF CHINA","CID001539","RMI",null,"Taoyuan","Taoyuan","TinRui Da Hung","TinRui Da Hung"]
["Tin","Shunda Huichang Kam Tin Co., Ltd.","Huichang Jinshunda Tin Co., Ltd.","CHINA","CID000760","RMI",null,"Ganzhou","Jiangxi","TinShunda Huichang Kam Tin Co., Ltd.","TinShunda Huichang Kam Tin Co., Ltd."]
["Tin","Smelting Branch of Yunnan Tin Company Ltd","Yunnan Tin Company Limited","CHINA","CID002180","RMI",null,"Gejiu","Yunnan","TinSmelting Branch of Yunnan Tin Company Ltd","TinSmelting Branch of Yunnan Tin Company Ltd"]
["Tin","Soft Metais Ltda.","Soft Metais Ltda.","BRAZIL","CID001758","RMI",null,"Bebedouro","São Paulo","TinSoft Metais Ltda.","TinSoft Metais Ltda."]
["Tin","Super Ligas","Super Ligas","BRAZIL","CID002756","RMI",null,"Piracicaba","São Paulo","TinSuper Ligas","TinSuper Ligas"]
["Tin","Thai Solder Industry Corp., Ltd.","Thaisarco","THAILAND","CID001898","RMI",null,"Amphur Muang","Phuket","TinThai Solder Industry Corp., Ltd.","TinThai Solder Industry Corp., Ltd."]
["Tin","Thailand Smelting & Refining Co Ltd","Thaisarco","THAILAND","CID001898","RMI",null,"Amphur Muang","Phuket","TinThailand Smelting & Refining Co Ltd","TinThailand Smelting & Refining Co Ltd"]
["Tin","Thaisarco","Thaisarco","THAILAND","CID001898","RMI",null,"Amphur Muang","Phuket","TinThaisarco","TinThaisarco"]
["Tin","The Gejiu cloud new colored electrolytic","Gejiu Yunxin Nonferrous Electrolysis Co., Ltd.","CHINA","CID001908","RMI",null,"Gejiu","Yunnan","TinThe Gejiu cloud new colored electrolytic","TinThe Gejiu cloud new colored electrolytic"]
["Tin","Tin Products Manufacturing Co.LTD. of YTCL","Yunnan Tin Company Limited","CHINA","CID002180","RMI",null,"Gejiu","Yunnan","TinTin Products Manufacturing Co.LTD. of YTCL","TinTin Products Manufacturing Co.LTD. of YTCL"]
["Tin","Tin Technology & Refining","Tin Technology & Refining","UNITED STATES OF AMERICA","CID003325","RMI",null,"West Chester","Pennsylvania","TinTin Technology & Refining","TinTin Technology & Refining"]
["Tin","Toboca/ Paranapenema","Mineracao Taboca S.A.","BRAZIL","CID001173","RMI",null,"Bairro Guarapiranga","São Paulo","TinToboca/ Paranapenema","TinToboca/ Paranapenema"]
["Tin","Tuyen Quang Non-Ferrous Metals Joint Stock Company","Tuyen Quang Non-Ferrous Metals Joint Stock Company","VIET NAM","CID002574","RMI",null,"Tan Quang","Tuyên Quang","TinTuyen Quang Non-Ferrous Metals Joint Stock Company","TinTuyen Quang Non-Ferrous Metals Joint Stock Company"]
["Tin","Unit Timah Kundur PT Tambang","PT Timah (Persero) Tbk Kundur","INDONESIA","CID001477","RMI",null,"Kundur","Riau","TinUnit Timah Kundur PT Tambang","TinUnit Timah Kundur PT Tambang"]
["Tin","White Solder Metalurgia e Mineracao Ltda.","White Solder Metalurgia e Mineracao Ltda.","BRAZIL","CID002036","RMI",null,"Ariquemes","Rondônia","TinWhite Solder Metalurgia e Mineracao Ltda.","TinWhite Solder Metalurgia e Mineracao Ltda."]
["Tin","White Solder Metalurgia e Mineração Ltda.","White Solder Metalurgia e Mineracao Ltda.","BRAZIL","CID002036","RMI",null,"Ariquemes","Rondônia","TinWhite Solder Metalurgia e Mineração Ltda.","TinWhite Solder Metalurgia e Mineração Ltda."]
["Tin","White Solder Metalurgica","White Solder Metalurgia e Mineracao Ltda.","BRAZIL","CID002036","RMI",null,"Ariquemes","Rondônia","TinWhite Solder Metalurgica","TinWhite Solder Metalurgica"]
["Tin","XiHai - Liuzhou China Tin Group Co ltd","China Tin Group Co., Ltd.","CHINA","CID001070","RMI",null,"Laibin","Guangxi","TinXiHai - Liuzhou China Tin Group Co ltd","TinXiHai - Liuzhou China Tin Group Co ltd"]
["Tin","YTCL","Yunnan Tin Company Limited","CHINA","CID002180","RMI",null,"Gejiu","Yunnan","TinYTCL","TinYTCL"]
["Tin","Yunan Gejiu Yunxin Electrolyze Limited","Gejiu Yunxin Nonferrous Electrolysis Co., Ltd.","CHINA","CID001908","RMI",null,"Gejiu","Yunnan","TinYunan Gejiu Yunxin Electrolyze Limited","TinYunan Gejiu Yunxin Electrolyze Limited"]
["Tin","Yunnan Adventure Co., Ltd.","Yunnan Chengfeng Non-ferrous Metals Co., Ltd.","CHINA","CID002158","RMI",null,"Gejiu","Yunnan","TinYunnan Adventure Co., Ltd.","TinYunnan Adventure Co., Ltd."]
["Tin","Yunnan Chengfeng","Yunnan Chengfeng Non-ferrous Metals Co., Ltd.","CHINA","CID002158","RMI",null,"Gejiu","Yunnan","TinYunnan Chengfeng","TinYunnan Chengfeng"]
["Tin","Yunnan Chengfeng Non-ferrous Metals Co., Ltd.","Yunnan Chengfeng Non-ferrous Metals Co., Ltd.","CHINA","CID002158","RMI",null,"Gejiu","Yunnan","TinYunnan Chengfeng Non-ferrous Metals Co., Ltd.","TinYunnan Chengfeng Non-ferrous Metals Co., Ltd."]
["Tin","Yunnan Gejiu Zili Metallurgy Co. Ltd.","Gejiu Zili Mining And Metallurgy Co., Ltd.","CHINA","CID000555","RMI",null,"Gejiu","Yunnan","TinYunnan Gejiu Zili Metallurgy Co. Ltd.","TinYunnan Gejiu Zili Metallurgy Co. Ltd."]
["Tin","YunNan Gejiu Yunxin Electrolyze Limited","Gejiu Yunxin Nonferrous Electrolysis Co., Ltd.","CHINA","CID001908","RMI",null,"Gejiu","Yunnan","TinYunNan Gejiu Yunxin Electrolyze Limited","TinYunNan Gejiu Yunxin Electrolyze Limited"]
["Tin","Yunnan ride non-ferrous metal co., LTD","Yunnan Chengfeng Non-ferrous Metals Co., Ltd.","CHINA","CID002158","RMI",null,"Gejiu","Yunnan","TinYunnan ride non-ferrous metal co., LTD","TinYunnan ride non-ferrous metal co., LTD"]
["Tin","Yunnan Tin Company Limited","Yunnan Tin Company Limited","CHINA","CID002180","RMI",null,"Gejiu","Yunnan","TinYunnan Tin Company Limited","TinYunnan Tin Company Limited"]
["Tin","Yunnan Tin Company, Ltd.","Yunnan Tin Company Limited","CHINA","CID002180","RMI",null,"Gejiu","Yunnan","TinYunnan Tin Company, Ltd.","TinYunnan Tin Company, Ltd."]
["Tin","Yunnan wind Nonferrous Metals Co., Ltd.","Yunnan Chengfeng Non-ferrous Metals Co., Ltd.","CHINA","CID002158","RMI",null,"Gejiu","Yunnan","TinYunnan wind Nonferrous Metals Co., Ltd.","TinYunnan wind Nonferrous Metals Co., Ltd."]
["Tin","Yunnan Xi YE","Yunnan Tin Company Limited","CHINA","CID002180","RMI",null,"Gejiu","Yunnan","TinYunnan Xi YE","TinYunnan Xi YE"]
["Tin","Yuntinic Resources","Yunnan Tin Company Limited","CHINA","CID002180","RMI",null,"Gejiu","Yunnan","TinYuntinic Resources","TinYuntinic Resources"]
["Tin","YUNXIN colored electrolysis Company Limited","Gejiu Yunxin Nonferrous Electrolysis Co., Ltd.","CHINA","CID001908","RMI",null,"Gejiu","Yunnan","TinYUNXIN colored electrolysis Company Limited","TinYUNXIN colored electrolysis Company Limited"]
["Tin","Smelter not listed",{"$nulls":7},"TinSmelter not listed","TinSmelter not listed"]
["Tin","Smelter not yet identified","Unknown","Unknown",{"$nulls":5},"TinSmelter not yet identified","TinSmelter not yet identified"]
["Tungsten","A.L.M.T. TUNGSTEN Corp.","A.L.M.T. TUNGSTEN Corp.","JAPAN","CID000004","RMI",null,"Toyama City","Toyama","TungstenA.L.M.T. TUNGSTEN Corp.","TungstenA.L.M.T. TUNGSTEN Corp."]
["Tungsten","ACL Metais Eireli","ACL Metais Eireli","BRAZIL","CID002833","RMI",null,"Araçariguama","São Paulo","TungstenACL Metais Eireli","TungstenACL Metais Eireli"]
["Tungsten","Allied Material Corporation","A.L.M.T. TUNGSTEN Corp.","JAPAN","CID000004","RMI",null,"Toyama City","Toyama","TungstenAllied Material Corporation","TungstenAllied Material Corporation"]
["Tungsten","ALMT Corp","A.L.M.T. TUNGSTEN Corp.","JAPAN","CID000004","RMI",null,"Toyama City","Toyama","TungstenALMT Corp","TungstenALMT Corp"]
["Tungsten","ALMT Sumitomo Group","A.L.M.T. TUNGSTEN Corp.","JAPAN","CID000004","RMI",null,"Toyama City","Toyama","TungstenALMT Sumitomo Group","TungstenALMT Sumitomo Group"]
["Tungsten","Asia Tungsten Products Vietnam Ltd.","Asia Tungsten Products Vietnam Ltd.","VIET NAM","CID002502","RMI",null,"Vinh Bao District","Hai Phong","TungstenAsia Tungsten Products Vietnam Ltd.","TungstenAsia Tungsten Products Vietnam Ltd."]
["Tungsten","ATI Metalworking Products","Kennametal Huntsville","UNITED STATES OF AMERICA","CID000105","RMI",null,"Huntsville","Alabama","TungstenATI Metalworking Products","TungstenATI Metalworking Products"]
["Tungsten","ATI Tungsten Materials","Kennametal Huntsville","UNITED STATES OF AMERICA","CID000105","RMI",null,"Huntsville","Alabama","TungstenATI Tungsten Materials","TungstenATI Tungsten Materials"]
["Tungsten","Chaozhou Xianglu Tungsten Industry Co., Ltd.","Guangdong Xianglu Tungsten Co., Ltd.","CHINA","CID000218","RMI",null,"Chaozhou","Guangdong",{"$f":"A518&B518","v":"TungstenChaozhou Xianglu Tungsten Industry Co., Ltd."},{"$f":"A518&B518","v":"TungstenChaozhou Xianglu Tungsten Industry Co., Ltd."}]
["Tungsten","Chenzhou Diamond Tungsten Products Co., Ltd.","Chenzhou Diamond Tungsten Products Co., Ltd.","CHINA","CID002513","RMI",null,"Chenzhou","Hunan","TungstenChenzhou Diamond Tungsten Products Co., Ltd.","TungstenChenzhou Diamond Tungsten Products Co., Ltd."]
["Tungsten","China National Non Ferrous","Ganzhou Huaxing Tungsten Products Co., Ltd.","CHINA","CID000875","RMI",null,"Ganzhou","Jiangxi","TungstenChina National Non Ferrous","TungstenChina National Non Ferrous"]
["Tungsten","Chongyi Zhangyuan Tungsten Co., Ltd.","Chongyi Zhangyuan Tungsten Co., Ltd.","CHINA","CID000258","RMI",null,"Ganzhou","Jiangxi","TungstenChongyi Zhangyuan Tungsten Co., Ltd.","TungstenChongyi Zhangyuan Tungsten Co., Ltd."]
["Tungsten","Fujian Jinxin Tungsten Co., Ltd.","Fujian Jinxin Tungsten Co., Ltd.","CHINA","CID000499","RMI",null,"Yanshi","Fujian","TungstenFujian Jinxin Tungsten Co., Ltd.","TungstenFujian Jinxin Tungsten Co., Ltd."]
["Tungsten","Ganzhou Haichuang Tungsten Co., Ltd.","Ganzhou Haichuang Tungsten Co., Ltd.","CHINA","CID002645","RMI",null,"Ganzhou","Jiangxi","TungstenGanzhou Haichuang Tungsten Co., Ltd.","TungstenGanzhou Haichuang Tungsten Co., Ltd."]
["Tungsten","Ganzhou Huaxing Tungsten Products Co., Ltd.","Ganzhou Huaxing Tungsten Products Co., Ltd.","CHINA","CID000875","RMI",null,"Ganzhou","Jiangxi","TungstenGanzhou Huaxing Tungsten Products Co., Ltd.","TungstenGanzhou Huaxing Tungsten Products Co., Ltd."]
["Tungsten","Ganzhou Jiangwu Ferrotungsten Co., Ltd.","Ganzhou Jiangwu Ferrotungsten Co., Ltd.","CHINA","CID002315","RMI",null,"Ganzhou","Jiangxi","TungstenGanzhou Jiangwu Ferrotungsten Co., Ltd.","TungstenGanzhou Jiangwu Ferrotungsten Co., Ltd."]
["Tungsten","Ganzhou Seadragon W & Mo Co., Ltd.","Ganzhou Seadragon W & Mo Co., Ltd.","CHINA","CID002494","RMI",null,"Ganzhou","Jiangxi","TungstenGanzhou Seadragon W & Mo Co., Ltd.","TungstenGanzhou Seadragon W & Mo Co., Ltd."]
["Tungsten","Ganzhou Yatai Tungsten Co., Ltd.","Ganzhou Yatai Tungsten Co., Ltd.","CHINA","CID002536","RMI",null,"Ganzhou","Jiangxi","TungstenGanzhou Yatai Tungsten Co., Ltd.","TungstenGanzhou Yatai Tungsten Co., Ltd."]
["Tungsten","Global Tungsten & Powders Corp.","Global Tungsten & Powders Corp.","UNITED STATES OF AMERICA","CID000568","RMI",null,"Towanda","Pennsylvania","TungstenGlobal Tungsten & Powders Corp.","TungstenGlobal Tungsten & Powders Corp."]
["Tungsten","GTP","Global Tungsten & Powders Corp.","UNITED STATES OF AMERICA","CID000568","RMI",null,"Towanda","Pennsylvania","TungstenGTP","TungstenGTP"]
["Tungsten","Guangdong Xianglu Tungsten Co., Ltd.","Guangdong Xianglu Tungsten Co., Ltd.","CHINA","CID000218","RMI",null,"Chaozhou","Guangdong","TungstenGuangdong Xianglu Tungsten Co., Ltd.","TungstenGuangdong Xianglu Tungsten Co., Ltd."]
["Tungsten","H.C. Starck Smelting GmbH & Co. KG","H.C. Starck Smelting GmbH & Co. KG","GERMANY","CID002542","RMI",null,"Laufenburg","Baden-Württemberg","TungstenH.C. Starck Smelting GmbH & Co. KG","TungstenH.C. Starck Smelting GmbH & Co. KG"]
["Tungsten","H.C. Starck Tungsten GmbH","H.C. Starck Tungsten GmbH","GERMANY","CID002541","RMI",null,"Goslar","Niedersachsen","TungstenH.C. Starck Tungsten GmbH","TungstenH.C. Starck Tungsten GmbH"]
["Tungsten","Han River Pelican State Alloy Co., Ltd.","Ganzhou Jiangwu Ferrotungsten Co., Ltd.","CHINA","CID002315","RMI",null,"Ganzhou","Jiangxi","TungstenHan River Pelican State Alloy Co., Ltd.","TungstenHan River Pelican State Alloy Co., Ltd."]
["Tungsten","Hunan Chun-Chang non-ferrous Smelting & Concentrating Co., Ltd.","Hunan Chunchang Nonferrous Metals Co., Ltd.","CHINA","CID000769","RMI",null,"Hengyang","Hunan","TungstenHunan Chun-Chang non-ferrous Smelting & Concentrating Co., Ltd.","TungstenHunan Chun-Chang non-ferrous Smelting & Concentrating Co., Ltd."]
["Tungsten","Hunan Chenzhou Mining Co., Ltd.","Hunan Chenzhou Mining Co., Ltd.","CHINA","CID000766","RMI",null,"Yuanling","Hunan","TungstenHunan Chenzhou Mining Co., Ltd.","TungstenHunan Chenzhou Mining Co., Ltd."]
["Tungsten","Hunan Chenzhou Mining Group Co., Ltd.","Hunan Chenzhou Mining Co., Ltd.","CHINA","CID000766","RMI",null,"Yuanling","Hunan","TungstenHunan Chenzhou Mining Group Co., Ltd.","TungstenHunan Chenzhou Mining Group Co., Ltd."]
["Tungsten","Hunan Chuangda Vanadium Tungsten Co., Ltd. Wuji","Hunan Chuangda Vanadium Tungsten Co., Ltd. Wuji","CHINA","CID002579","RMI",null,"Hengyang","Hunan","TungstenHunan Chuangda Vanadium Tungsten Co., Ltd. Wuji","TungstenHunan Chuangda Vanadium Tungsten Co., Ltd. Wuji"]
["Tungsten","Hunan Chunchang Nonferrous Metals Co., Ltd.","Hunan Chunchang Nonferrous Metals Co., Ltd.","CHINA","CID000769","RMI",null,"Hengyang","Hunan","TungstenHunan Chunchang Nonferrous Metals Co., Ltd.","TungstenHunan Chunchang Nonferrous Metals Co., Ltd."]
["Tungsten","Hunan Litian Tungsten Industry Co., Ltd.","Hunan Litian Tungsten Industry Co., Ltd.","CHINA","CID003182","RMI",null,"Yiyang","Hunan","TungstenHunan Litian Tungsten Industry Co., Ltd.","TungstenHunan Litian Tungsten Industry Co., Ltd."]
["Tungsten","Hydrometallurg, JSC","Hydrometallurg, JSC","RUSSIAN FEDERATION","CID002649","RMI",null,"Nalchik","Kabardino-Balkarskaya Respublika","TungstenHydrometallurg, JSC","TungstenHydrometallurg, JSC"]
["Tungsten","Japan New Metals Co., Ltd.","Japan New Metals Co., Ltd.","JAPAN","CID000825","RMI",null,"Akita City","Akita","TungstenJapan New Metals Co., Ltd.","TungstenJapan New Metals Co., Ltd."]
["Tungsten","Jiangwu H.C. Starck Tungsten Products Co., Ltd.","Jiangwu H.C. Starck Tungsten Products Co., Ltd.","CHINA","CID002551","RMI",null,"Ganzhou","Jiangxi","TungstenJiangwu H.C. Starck Tungsten Products Co., Ltd.","TungstenJiangwu H.C. Starck Tungsten Products Co., Ltd."]
["Tungsten","Jiangxi Dayu Longxintai Tungsten Co., Ltd.","Jiangxi Dayu Longxintai Tungsten Co., Ltd.","CHINA","CID002647","RMI",null,"Huanglong","Jiangxi","TungstenJiangxi Dayu Longxintai Tungsten Co., Ltd.","TungstenJiangxi Dayu Longxintai Tungsten Co., Ltd."]
["Tungsten","Jiangxi Gan Bei Tungsten Co., Ltd.","Jiangxi Gan Bei Tungsten Co., Ltd.","CHINA","CID002321","RMI",null,"Xiushui","Jiangxi","TungstenJiangxi Gan Bei Tungsten Co., Ltd.","TungstenJiangxi Gan Bei Tungsten Co., Ltd."]
["Tungsten","Jiangxi Minmetals Gao'an Non-ferrous Metals Co., Ltd.","Jiangxi Minmetals Gao'an Non-ferrous Metals Co., Ltd.","CHINA","CID002313","RMI",null,"Gao'an","Jiangxi","TungstenJiangxi Minmetals Gao'an Non-ferrous Metals Co., Ltd.","TungstenJiangxi Minmetals Gao'an Non-ferrous Metals Co., Ltd."]
["Tungsten","Jiangxi Tonggu Non-ferrous Metallurgical & Chemical Co., Ltd.","Jiangxi Tonggu Non-ferrous Metallurgical & Chemical Co., Ltd.","CHINA","CID002318","RMI",null,"Tonggu","Jiangxi","TungstenJiangxi Tonggu Non-ferrous Metallurgical & Chemical Co., Ltd.","TungstenJiangxi Tonggu Non-ferrous Metallurgical & Chemical Co., Ltd."]
["Tungsten","Jiangxi Tungsten Co Ltd","Ganzhou Huaxing Tungsten Products Co., Ltd.","CHINA","CID000875","RMI",null,"Ganzhou","Jiangxi","TungstenJiangxi Tungsten Co Ltd","TungstenJiangxi Tungsten Co Ltd"]
["Tungsten","Jiangxi Tungsten Industry Group Co. Ltd.","Ganzhou Huaxing Tungsten Products Co., Ltd.","CHINA","CID000875","RMI",null,"Ganzhou","Jiangxi","TungstenJiangxi Tungsten Industry Group Co. Ltd.","TungstenJiangxi Tungsten Industry Group Co. Ltd."]
["Tungsten","Jiangxi Xinsheng Tungsten Industry Co., Ltd.","Jiangxi Xinsheng Tungsten Industry Co., Ltd.","CHINA","CID002317","RMI",null,"Ganzhou","Jiangxi","TungstenJiangxi Xinsheng Tungsten Industry Co., Ltd.","TungstenJiangxi Xinsheng Tungsten Industry Co., Ltd."]
["Tungsten","Jiangxi Xiushui Xianggan Nonferrous Metals Co., Ltd.","Jiangxi Xiushui Xianggan Nonferrous Metals Co., Ltd.","CHINA","CID002535","RMI",null,"Xiushui","Jiangxi","TungstenJiangxi Xiushui Xianggan Nonferrous Metals Co., Ltd.","TungstenJiangxi Xiushui Xianggan Nonferrous Metals Co., Ltd."]
["Tungsten","Jiangxi Yaosheng Tungsten Co., Ltd.","Jiangxi Yaosheng Tungsten Co., Ltd.","CHINA","CID002316","RMI",null,"Ganzhou","Jiangxi","TungstenJiangxi Yaosheng Tungsten Co., Ltd.","TungstenJiangxi Yaosheng Tungsten Co., Ltd."]
["Tungsten","Kennametal Fallon","Kennametal Fallon","UNITED STATES OF AMERICA","CID000966","RMI",null,"Fallon","Nevada","TungstenKennametal Fallon","TungstenKennametal Fallon"]
["Tungsten","Kennametal Huntsville","Kennametal Huntsville","UNITED STATES OF AMERICA","CID000105","RMI",null,"Huntsville","Alabama","TungstenKennametal Huntsville","TungstenKennametal Huntsville"]
["Tungsten","Malipo Haiyu Tungsten Co., Ltd.","Malipo Haiyu Tungsten Co., Ltd.","CHINA","CID002319","RMI",null,"Nanfeng Xiaozhai","Yunnan","TungstenMalipo Haiyu Tungsten Co., Ltd.","TungstenMalipo Haiyu Tungsten Co., Ltd."]
["Tungsten","Moliren Ltd.","Moliren Ltd.","RUSSIAN FEDERATION","CID002845","RMI",null,"Roshal","Moskovskaja oblast'","TungstenMoliren Ltd.","TungstenMoliren Ltd."]
["Tungsten","Niagara Refining LLC","Niagara Refining LLC","UNITED STATES OF AMERICA","CID002589","RMI",null,"Depew","New York","TungstenNiagara Refining LLC","TungstenNiagara Refining LLC"]
["Tungsten","Nui Phao H.C. Starck Tungsten Chemicals Manufacturing LLC","Nui Phao H.C. Starck Tungsten Chemicals Manufacturing LLC","VIET NAM","CID002543","RMI",null,"Dai Tu","Thái Nguyên","TungstenNui Phao H.C. Starck Tungsten Chemicals Manufacturing LLC","TungstenNui Phao H.C. Starck Tungsten Chemicals Manufacturing LLC"]
["Tungsten","Philippine Chuangxin Industrial Co., Inc.","Philippine Chuangxin Industrial Co., Inc.","PHILIPPINES","CID002827","RMI",null,"Marilao","Bulacan","TungstenPhilippine Chuangxin Industrial Co., Inc.","TungstenPhilippine Chuangxin Industrial Co., Inc."]
["Tungsten","Shaoguan Xinhai Rendan Tungsten Industry Co. Ltd","Xinhai Rendan Shaoguan Tungsten Co., Ltd.","CHINA","CID002095","RMI",null,"Shaoguan","Guangdong","TungstenShaoguan Xinhai Rendan Tungsten Industry Co. Ltd","TungstenShaoguan Xinhai Rendan Tungsten Industry Co. Ltd"]
["Tungsten","South-East Nonferrous Metal Company Limited of Hengyang City","South-East Nonferrous Metal Company Limited of Hengyang City","CHINA","CID002815","RMI",null,"Hengyang","Hunan","TungstenSouth-East Nonferrous Metal Company Limited of Hengyang City","TungstenSouth-East Nonferrous Metal Company Limited of Hengyang City"]
["Tungsten","Tejing (Vietnam) Tungsten Co., Ltd.","Tejing (Vietnam) Tungsten Co., Ltd.","VIET NAM","CID001889","RMI",null,"Halong City","Tây Ninh","TungstenTejing (Vietnam) Tungsten Co., Ltd.","TungstenTejing (Vietnam) Tungsten Co., Ltd."]
["Tungsten","Unecha Refractory metals plant","Unecha Refractory metals plant","RUSSIAN FEDERATION","CID002724","RMI",null,"Unecha","Bryanskaya oblast'","TungstenUnecha Refractory metals plant","TungstenUnecha Refractory metals plant"]
["Tungsten","Vietnam Youngsun Tungsten Industry Co., Ltd.","Vietnam Youngsun Tungsten Industry Co., Ltd.","VIET NAM","CID002011","RMI",null,"Halong City","Quảng Ninh","TungstenVietnam Youngsun Tungsten Industry Co., Ltd.","TungstenVietnam Youngsun Tungsten Industry Co., Ltd."]
["Tungsten","WBH","Wolfram Bergbau und Hutten AG","AUSTRIA","CID002044","RMI",null,"St. Martin i-S","Steiermark","TungstenWBH","TungstenWBH"]
["Tungsten","WBH,Wolfram [Austria]","Wolfram Bergbau und Hutten AG","AUSTRIA","CID002044","RMI",null,"St. Martin i-S","Steiermark","TungstenWBH,Wolfram [Austria]","TungstenWBH,Wolfram [Austria]"]
["Tungsten","Wolfram Bergbau und Hutten AG","Wolfram Bergbau und Hutten AG","AUSTRIA","CID002044","RMI",null,"St. Martin i-S","Steiermark","TungstenWolfram Bergbau und Hutten AG","TungstenWolfram Bergbau und Hutten AG"]
["Tungsten","Wolfram Bergbau und Hütten AG","Wolfram Bergbau und Hutten AG","AUSTRIA","CID002044","RMI",null,"St. Martin i-S","Steiermark","TungstenWolfram Bergbau und Hütten AG","TungstenWolfram Bergbau und Hütten AG"]
["Tungsten","Woltech Korea Co., Ltd.","Woltech Korea Co., Ltd.","KOREA, REPUBLIC OF","CID002843","RMI",null,"Gyeongju-si","Gyeongsangbuk-do","TungstenWoltech Korea Co., Ltd.","TungstenWoltech Korea Co., Ltd."]
["Tungsten","Xiamen H.C.","Xiamen Tungsten (H.C.) Co., Ltd.","CHINA","CID002320","RMI",null,"Xiamen","Fujian","TungstenXiamen H.C.","TungstenXiamen H.C."]
["Tungsten","Xiamen Tungsten (H.C.) Co., Ltd.","Xiamen Tungsten (H.C.) Co., Ltd.","CHINA","CID002320","RMI",null,"Xiamen","Fujian","TungstenXiamen Tungsten (H.C.) Co., Ltd.","TungstenXiamen Tungsten (H.C.) Co., Ltd."]
["Tungsten","Xiamen Tungsten Co., Ltd.","Xiamen Tungsten Co., Ltd.","CHINA","CID002082","RMI",null,"Xiamen","Fujian","TungstenXiamen Tungsten Co., Ltd.","TungstenXiamen Tungsten Co., Ltd."]
["Tungsten","Xinfeng Huarui Tungsten & Molybdenum New Material Co., Ltd.","Xinfeng Huarui Tungsten & Molybdenum New Material Co., Ltd.","CHINA","CID002830","RMI",null,"Ganzhou","Jiangxi","TungstenXinfeng Huarui Tungsten & Molybdenum New Material Co., Ltd.","TungstenXinfeng Huarui Tungsten & Molybdenum New Material Co., Ltd."]
["Tungsten","Xinhai Rendan Shaoguan Tungsten Co., Ltd.","Xinhai Rendan Shaoguan Tungsten Co., Ltd.","CHINA","CID002095","RMI",null,"Shaoguan","Guangdong","TungstenXinhai Rendan Shaoguan Tungsten Co., Ltd.","TungstenXinhai Rendan Shaoguan Tungsten Co., Ltd."]
["Tungsten","Zhangyuan Tungsten Co Ltd","Chongyi Zhangyuan Tungsten Co., Ltd.","CHINA","CID000258","RMI",null,"Ganzhou","Jiangxi","TungstenZhangyuan Tungsten Co Ltd","TungstenZhangyuan Tungsten Co Ltd"]
["Tungsten","Smelter not listed"]
["Tungsten","Smelter not yet identified","Unknown","Unknown"]

{"sheet":"L","index":8,"n_rows":314,"n_cols":14,"rows_kept":314,"cut":false,"hidden":true,"merged":[]}
[null,"Sheets","Cells","English","中文 Chinese","日本語 Japanese","한국어 Korean","Français","Português","Deutsch","Español","italiano","Türkçe"]
[{"$f":"B2&C2","v":"InstructionsA1"},"Instructions","A1","RMI website: (www.responsiblemineralsinitiative.org)\nTraining and guidance, template, Responsible Minerals Assurance Process conformant smelter list.","RMI 网址：(www.responsiblemineralsinitiative.org) 培训和指导、模板、负责任矿物审验流程合规冶炼厂列表。","RMIウェブサイト： (www.responsiblemineralsinitiative.org)\nトレーニング、ガイダンス、報告テンプレート、責任ある鉱物保証プロセスプログラム適合製錬業者リスト","RMI 웹사이트:  (www.responsiblemineralsinitiative.org) 교육훈련과 가이던스, 템플릿, 책임 있는 광물 보증 프로세스(Responsible Minerals Assurance Process)를 준수하는 제련소 리스트를 확인할 수 있습니다.","Site Internet du RMI: (www.responsiblemineralsinitiative.org) \nFormations, recommandations, modèles, liste des fonderies conformes au programme fonderie sans conflit","Website do RMI: (www.responsiblemineralsinitiative.org)\nFormação e guias de orientação, modelos, lista de fundições cumpridoras com a lista do Responsible Minerals Assurance Process.\n","RMI Website: (www.responsiblemineralsinitiative.org)\nSchulung und Beratung, Vorlagen, Responsible Minerals Assurance Process, konforme Schmelzhütten Liste","Website  de RMI: (www.responsiblemineralsinitiative.org)  entrenamiento y guía, plantilla, proceso de aseguramiento de minerales responsables lista de fundidores en cumplimiento.","Estratti dal sito internet:\n(www.responsiblemineralsinitiative.org)\nFormazione, modelli, Domande  Frequenti (FAQs), lista delle fonderie conformi al Responsible Minerals Assurance Process (RMAP -  fonderie che certificano l'origine e la tracciabilità dei metalli provenienti da zone di conflitto o ad alto rischio)","RMI web sitesi: (www.responsiblemineralsinitiative.org)\nEğitim ve kılavuzluk, şablon, İhtilafsız İzabe Tesisi Programı uyumlu izabe tesislerinin listesi"]
[{"$f":"B3&C3","v":"InstructionsA2"},"Instructions","A2","Introduction","介绍","始めに","소개","Introduction","Introdução","Einführung","Introducción","Introduzione","Giriş"]
["InstructionsA3","Instructions","A3","This Conflict Minerals Reporting Template (Template) is a free, standardized reporting template created by the Responsible Minerals Initiative (RMI). The Template facilitates the transfer of information through the supply chain regarding mineral country of origin and smelters and refiners being utilized and supports compliance to legislation*. The template also facilitates the identification of new smelters and refiners to potentially undergo an audit via the Responsible Minerals Assurance Process**.\n\nThe CMRT was designed for downstream companies to disclose information about their supply chains up to but not including the smelter.  If you are a 3TG smelter or refiner, in accordance with the RMAP protocols, we recommend you enter your own name in the smelter list tab.\n\nWhen filling out the form, none of the cell entries should start will \"=\" or \"#.\"","此冲突矿产报告模板（CMRT 模板）是由负责任矿物计划 (RMI) 创建的免费标准报告模板。该模板促进了通过关于矿产原产国、所用冶炼厂和精炼厂的供应链来进行信息传输，并且支持法律合规性*。该模板还促进识别新的冶炼厂和精炼厂，以通过负责任矿物审验流程，对这些厂家进行潜在审核**。\n\nCMRT 旨在让下游企业披露其供应链有关的信息（准确来讲，不包括冶炼厂）。如果贵公司是 3TG 冶炼厂或精炼厂，根据 RMAP 协议，我们建议您在冶炼厂列表选项卡中输入贵公司的名称。\n\n填写表格时，单元格条目不应以“=”或“#”开头。\n","この紛争鉱物報告テンプレート（テンプレート）は、責任ある鉱物イニシアチブ（RMI）が作成した、無料の標準報告テンプレートです。このテンプレートは鉱物の原産国と、使用される製錬・精製業者に関しサプライチェーンを通して情報を収集することを円滑にし、法律のコンプライアンスを支援します*。このテンプレートは、責任ある鉱物保証プロセスの監査を受けることにつながる可能性のある、新たな製錬・精製業者の特定もサポートします**。\n\nCMRTは、下流企業が（精錬業者までの）サプライチェーンに関する情報を開示するために、こうした企業向けに考案されたものです。3TG精錬業者または精製業者の場合は、RMAPプロトコルに従い精製業者リストタブに貴社名を記入することをお勧めします。\n\n同書に記入する際、セルへの記入内容が「=」または「#」で始まることはできません。\n","본 분쟁 광물 보고 템플릿(템플릿)은 책임 있는 광물 이니셔티브(Responsible Minerals Initiative (RMI))가 만든 표준화된 무료 보고 템플릿입니다. 템플릿은 광물 원산국 및 사용하는 제련소 및 정제소와 관련된 공급망을 통해 정보의 빠른 전달을 촉진하고 법규 준수*에도 도움이 됩니다. 또한 템플릿은 책임 있는 광물 보증 프로세스**를 통해 잠재적으로 감사를 받게 될 신규 제련소 및 정제소를 식별하는 데 편리함을 제공합니다.\n\nCMRT는 다운스트림 회사가 제련소를 배제한 상태에서 최대한으로 회사의 공급망에 대한 정보를 공개하도록 설계되었습니다. 귀사가 RMAP 규약에 따라 3TG 제련소나 정제소에 해당하는 경우, 제련소 목록 탭에 귀사의 이름을 입력하길 권장합니다.\n\n양식에 기입할 때, 어떤 셀에도 \"=\" 또는 \"#\"으로 시작하는 내용이 없어야 합니다. \n","Ce modèle de rapport sur les minerais de conflit (le modèle) est un modèle de rapport standardisé gratuit créé par la Responsible Business Alliance® (RBA®). Ce modèle facilite le transfert d’informations à travers la chaîne d’approvisionnement sur le pays d’origine du minerai et les fonderies et affineries utilisées, et soutient la conformité à la législation*. Ce modèle facilite également l’identification de nouvelles fonderies et affineries susceptibles de faire l’objet d’un audit via le programme des fonderies hors conflits (Responsible Minerals Assurance Process)**.\n\nLe CMRT a été conçu pour que les sociétés en aval divulguent des informations sur leurs chaînes d’approvisionnement jusqu’à la fonderie, sans toutefois inclure cette dernière. Si vous exploitez une fonderie ou une affinerie 3TG, conformément aux protocoles RMAP, nous vous recommandons de saisir votre propre nom à l’onglet de la liste des fonderies.\n\nLorsque vous remplirez le formulaire, veillez à ce qu’aucune des entrées dans les cellules ne commence par « = » ou « #. »\n\n","Este Modelo de relatório de minerais de conflito (Modelo) é um modelo gratuito e padronizado de relatório, criado pela Responsible Minerals Initiative (RMI). O Modelo facilita a transferência de informações ao longo da cadeia de suprimentos sobre o país de origem de minerais, as fundições e refinarias que são utilizadas e cumprem com a legislação*. Além disso, o Modelo facilita a identificação de novas fundições e refinarias para que possam passar por uma auditoria no âmbito do Programa de fundições livres de conflito (Responsible Minerals Assurance Process, RMAP)**.\n\nO CMRT foi desenvolvido para que empresas de extração divulguem informações sobre suas cadeias de suprimento, mas sem incluir a fundição.  Se você for uma fundição ou refinaria de minerais de conflito, de acordo com os protocolos do RMAP, recomendamos que insira seu nome na guia da lista de fundições.\n\nAo preencher o formulário, nenhuma das células deve ser iniciada com “=” ou “#”.\n ","Diese Vorlage für den Konfliktmineralien-Bericht (Vorlage) ist eine kostenlose, standardisierte Berichtsvorlage, die durch die Responsible Minerals Initiative (RMI) erstellt wurde. Die Vorlage erleichtert die Übertragung von Informationen über die Versorgungskette in Bezug auf das Mineral, Ursprungsland und Schmelzöfen und Raffinerien, die verwendet werden, und unterstützt die Einhaltung der Gesetzgebung*. Die Vorlage vereinfacht die Feststellung von neuen Schmelzöfen und Raffinerien, die über den Responsible Minerals Assurance Process** möglicherweise einer Prüfung unterzogen werden.\n\nDas CMRT wurde für nachgelagerte Unternehmen konzipiert, um Informationen über ihre Versorgungsketten bis hin zur (aber nicht einschließlich) Schmelzerei offenzulegen. Wenn Sie ein 3TG-Schmelzofen oder eine Raffinerie in Übereinstimmung mit den RMAP-Protokollen sind, empfehlen wir Ihnen, Ihren eigenen Namen ins Schmelzofenliste-Tab einzutragen.\n\nBeim Ausfüllen des Formulars, sollte keine der Zeilen mit „=“ oder „#“ beginnen.\n","Esta plantilla de informe de minerales en conflicto (la Plantilla) es un formato de reporte estandarizado y gratuito creado por Iniciativa de minerales responsables (Responsible Minerals Initiative, RMI). La Plantilla facilita la transferencia de información a través de la cadena de suministro con respecto al país de origen del mineral y las fundidoras y refinerías que se utilizan y apoyen el cumplimiento con la legislación*. La plantilla también facilita la identificación de nuevas fundidoras y refinerías que se someterían potencialmente a una auditoría por medio del Responsible Minerals Assurance Process (Programa de aseguramiento de minerales responsables) **.\n\n El CMRT fue diseñado por empresas comercializadoras para revelar información sobre sus cadenas de suministro hacia arriba, pero sin incluir a la fundidora.   Si usted es una fundidora o refinadora de 3TG, de acuerdo con los protocolos de RMAP, le recomendamos que ingrese su propio nombre en la pestaña de la lista de fundidoras. \n\nAl llenar el formulario, ninguno de los datos de las celdas debe empezar con \"=\" o \"#\". \n","Il presente Modello per la segnalazione dei materiali di conflitto (Conflict Minerals Reporting, CMRT), in seguito “Modello”, è un documento standard e gratuito creato da Responsible Minerals Initiative ® (RMI®). Il Modello semplifica il trasferimento di informazioni della catena di fornitura relative al Paese d’origine del minerale e alle fonderie e raffinerie utilizzate, sostenendo la conformità alle normative*. Il Modello, inoltre, rende più semplice l’individuazione delle nuove fonderie e raffinerie potenzialmente soggette a verifica ai sensi del Responsible Minerals Assurance Process**.\n\nIl CMRT è stato concepito per guidare le aziende nella comunicazione delle informazioni relative alle proprie filiere, fino alla fase che precede la fonderia. Se la vostra azienda è una fonderia o raffineria di metalli di conflitto, in base ai protocolli RMAP, vi consigliamo di inserire il vostro nome nel foglio con l’elenco delle fonderie.\n\nNel compilare il Modulo, non inserire mai i caratteri “=” o “#” all’inizio del testo di qualsiasi cella.","Bu İhtilaf Konusu Madenler Raporlama Şablonu (Şablon), Sorumlu Maden Girişimi (RMI) tarafından geliştirilen ücretsiz, standardize bir raporlama şablonudur. Şablon, maden menşe ülkesi ve kullanılmakta olan izabe tesisleri ve rafinericilere ilişkin tedarik zinciri yoluyla bilginin transferini kolaylaştırır ve mevzuata* uyumu destekler. Şablon aynı zamanda Sorumlu Maden Güvence Prosesi** kapsamında denetime tâbi olma olasılığı bulunan yeni izabe tesisleri ve rafinerilerin tanımlanmasını da kolaylaştırmaktadır**.\n\nCMRT, izabe tesisini içermeyen satış şirketlerinin tedarik zincirleri hakkındaki bilgileri açıklamaları için satış şirketlerine yönelik olarak tasarlanmıştır.  RMAP protokolleri doğrultusunda bir 3TG izabe tesisi veya rafinerici iseniz, izabe tesisi listesi sekmesine kendi adınızı girmenizi öneriyoruz.\n\nForm doldurulduğunda, hücre girişlerinin hiçbiri \"=\" veya \"#\" ile başlamamalıdır.\n"]
["InstructionsA4","Instructions","A4","* In 2010, the U.S. Dodd-Frank Wall Street Reform and Consumer Protection Act was passed concerning “conflict minerals” originating from the Democratic Republic of the Congo (DRC) or adjoining countries. The SEC published final rules associated with the disclosure of the source of conflict minerals by U.S. publicly traded companies (see the rules at http://www.sec.gov/rules/final/2012/34-67716.pdf). The rules reference the OECD Due Diligence Guidance for Responsible Supply Chains of Minerals from Conflict-Affected and High-Risk Areas, (http://www.oecd.org/daf/inv/mne/GuidanceEdition2.pdf), which guides suppliers to establish policies, due diligence frameworks and management systems.\n** See information on the Responsible Minerals Initiative (www.responsiblemineralsinitiative.org).","* 在 2010年，关注来源于刚果民主共和国 (DRC) 或毗邻国家或地区“冲突矿产”的《多德-弗兰克华尔街金融改革与消费者保护法》(U.S. Dodd-Frank Wall Street Reform and Consumer Protection Act) 正式通过。SEC 公布了最终规则，要求所有美国上市公司披露冲突矿产来源（有关规则，请访问 http://www.sec.gov/rules/final/2012/34-67716.pdf）。该规则参考了“经济合作与发展组织关于来自冲突影响和高风险区域之矿石的负责任供应链尽职调查指南”(http://www.oecd.org/dataoecd/62/30/46740847.pdf)，明确了供应商如何制定政策、尽职框架和管理体系。\n** 有关信息，请参见“负责任矿物计划”(www.responsiblemineralsinitiative.org)。","*2010年に、コンゴ民主共和国(DRC)又は隣接国原産の「紛争鉱物」に関する条項が含まれる、ドッド・フランクウォール街改革及び消費者保護に関する法が可決されました。これを受けて、米国証券取引委員会(SEC)は、米国の株式公開企業を対象とした、紛争鉱物調達先に関する開示規則を発行しました。\n（http://www.sec.gov/rules/final/2012/34-67716.pdfの規則を参照してください）この規則は、サプライヤーに方針、デューデリジェンスの枠組み及び管理システムの構築に関して指導する「OECD紛争地域及び高リスク地域からの鉱物の責任あるサプライチェーンのためのデューデリジェンス・ガイダンス(OECD Due Diligence Guidance for Responsible Supply Chains of Minerals from Conflict-Affected and High-Risk Areas)」（http://www.oecd.org/dataoecd/62/30/46740847.pdf）を参照しています。\n**　責任ある鉱物イニシアチブ（www.responsiblemineralsinitiative.org）の情報を参照してください。","* 2010년 미국 연방법 (U.S. Dodd-Frank Wall Street Reform and Consumer Protection Act) 에서는 콩고민주공화국과 인접 국가들에서 발생한 \"분쟁광물질\"과 관련된 법안을 통과시켰습니다. 미국 증권거래위원회는 증권거래소에 상장된 기업들의 분쟁광물질 구매 원산지 정보 공개에 관한 최종 법안을 공표하였습니다. (법안은 http://sec.gov/rules/final/2012/34-67716.pdf 에서 확인 가능합니다).\n상정된 법안은 \"분쟁 및 고위험 지역의 책임있는 광물질 공급망을 위한 OECD 실사 안내서\"를 참조하였으며 (http://www.oecd.org/daf/inv/mne/GuidanceEdition2.pdf), 이 안내서는 협력사들이 분쟁지역광물질 정책, 실사 체계 및 경영시스템을 구축할 수 있도록 지원하고 있습니다.\n** 책임 있는 광물 이니셔티브(www.responsiblemineralsinitiative.org)에서 확인 가능합니다. ","* En 2010, la loi sur la réforme et la protection des consommateurs Wall Street Dodd-Frank US concernant les «minerais du conflit» provenant de la République démocratique du Congo (RDC) ou des pays voisins a été adoptée. La SEC a finalisé et publié les règles liées à la déclaration de la source des minerais issues de zones de conflit par les sociétés américaines cotées en bourse (voir les règles à http://www.sec.gov/rules/final/2012/34-67716.pdf). Les règles font référence au guide de l'OCDE sur le devoir de diligence pour des chaînes d’approvisionnement responsables en minerais provenant de zones de conflit ou à haut risque, (http://www.oecd.org/dataoecd/62/30/46740847.pdf), qui guide les fournisseurs pour établir des politiques, des cadres de vigilance et des systèmes de gestion.\n** Voir les informations sur l'initiative sur les approvisionnements sans conflit (www.conflictfreesourcing.org).","*Em 2010, foi aprovado o decreto dos EUA Dood-Frank da reforma de  e Defesa do Consumidor , relativamente aos \"minerais de conflito\" com origem na República Democrática do Congo (DRC) ou países vizinhos. A SEC publicou regras finais associadas com a divulgação da fonte de minerais de conflito pelas empresas americanas de capital aberto (ver regras em http://www.sec.gov/rules/final/2012/34-67716.pdf). As regras referem as medidas de diligência devidas pela OCDE, para cadeias responsáveis de fornecimento de Minerais de áreas afetadas por conflitos ou em alto risco de conflitos, (http://www.oecd.org/dataoecd/62/30/46740847.pdf), e orientam fornecedores a estabelecer políticas, e enquadramento de medidas de diligência e sistemas de gestão.\n** Ver informação sobre a Responsible Minerals Initiative (www.responsiblemineralsinitiative.org).","* Im Jahr 2010 wurde die US-Dodd-Frank Act  zum Thema \"Conflict Minerals\" verabschiedet, die aus der Demokratischen Republik Kongo (DRK) oder angrenzenden Ländern stammen. Die SEC veröffentlicht endgültige Vorschriften im Zusammenhang mit der Unterrichtung über die Ursache von Konfliktmineralien durch US-amerikanische börsennotierte Unternehmen (siehe die Regeln am http://www.sec.gov/rules/final/2012/34-67716.pdf).  Die Regeln der OECD-Due Diligence Guidance for Responsible Supply Chains für Mineralien aus Konflikt- und mit hohem Risiko verbundenen Bereichen, (http://www.oecd.org/dataoecd/62/30/46740847.pdf), schaffen Richtlinien für Lieferanten im Rahmen von Due Diligence und Managementsystemen.  ** Siehe Informationen über die Responsible Minerals Initiative (www.responsiblemineralsinitiative.org).","* En 2010, se aprobó la ley estadounidense Dodd-Frank relacionada con \"minerales en conflicto\" originarios de la Republica Democrática del Congo (RDC) y países limítrofes. La SEC ha publicado las reglas finales asociadas con el desglose de la fuente de minerales en conflicto de las empresas publicas de Estados Unidos ( ver reglas en http://www.sec.gov/rules/final/2012/34-67716.pdf). La reglas hacen referencia a la guía de diligencia de cuidado de la OECD para las  cadenas de suministros responsables de minerales de áreas afectadas y de alto riesgo, (http://www.oecd.org/dataoecd/62/30/46740847.pdf), las cuales guían a los proveedores para establecer políticas, marcos de diligencia de cuidado y manejo de sistemas.\n** ver información en la iniciativa de minerales responsables (www.responsiblemineralsinitiative.org/).\n\n  ","* Nel 2010 è stata votata una legge federale americana relativa ai metalli/minerali provenienti dalle zone di conflitto o ad alto rischio della Repubblica Democratica del Congo e Paesi confinanti. La SEC dovrebbe pubblicare la legislazione definitiva relativa alla divulgazione delle fonti di Conflict Minerals per le Aziende quotate in borsa negli StatiUniti (vedere la legislazione proposta al link http://www.sec.gov/rules/final/2012/34-67716.pdf). La proposta di legislazione fa riferimento alla guida OECD sul dovere di diligenza per le filiere di approvigionamento responsabile di metalli provenienti dalle zone di conflitto o ad alto rischio  (http://www.oecd.org/dataoecd/62/30/46740847.pdf), che supporta i Fornitori nell'elaborazione di politiche, accordi quadro e sistemi di gestionde della propria diligenza.\n** fare riferimento a Responsible Minerals Initiative (www.responsiblemineralsinitiative.org).","* 2010 yılında, Demokratik Kongo Cumhuriyeti (DKC) ve komşu ülkelerinden gelen “ihtilaf konusu madenler” ile ilgili olarak ABD Dodd-Frank Wall Street Reformu ve Tüketicinin Korunması Kanunu yürürlüğe girmiştir. SEC, ABD'de yer alan halka açık şirketlerin ihtilaf konusu madenlerin kaynağını açıklaması ile ilgili nihai kuralları yayınlamıştır (kuralları http://www.sec.gov/rules/final/2012/34-67716.pdf adresinde görebilirsiniz). Kurallar, tedarikçilerin politika, durum tespiti çerçevesi ve yönetim sistemi oluşturabilmesi için kılavuzluk sunan İhtilaftan Etkilenen ya da Yüksek Riskli Alanlardan elde edilen Madenlerin Sorumlu Tedarik Zinciri için OECD Durum Tespiti Kılavuzuna (http://www.oecd.org/daf/inv/mne/GuidanceEdition2.pdf) atıfta bulunmaktadır.\n** Sorumlu Maden Girişimi ile ilgili bilgileri inceleyin (www.responsiblemineralsinitiative.org)."]
["InstructionsA6","Instructions","A6","Instructions for completing Company Information questions (rows 8 - 22).\nProvide comments in ENGLISH only","公司信息的填写说明（第 8 至 22 行）。\n请仅以英文作答","会社情報の記入（8～22行）に関する解説。回答は英語(半角)で入力してください。","기업 정보 입력 안내서(8~18줄).\n답변은 반드시 영어로 기입해야 합니다.","Instructions pour compléter les informations relatives à votre entreprise (lignes 8 - 22). Merci de répondre en anglais uniquement.","Instruções para completar as questões relativas às informações da Empresa (linhas 8-22). Favor fornecer comentários apenas em Inglês.","Anleitung zum Ausfüllen von Informationen zu Unternehmen (Zeilen 8 - 22).  Die Kommentare nur in englischer Sprache.","Instrucciones para completar las preguntas de la información de la compañía (renglones 8-22).\nProvea comentarios en INGLES solamente.","Istruzioni per il completamento della sezione INFORMAZIONI SULL'AZIENDA (righe 8-22).\nSiete pregati di rispondere unicamente in Inglese.","Şirket Bilgi sorularının yanıtlanması için talimatlar (8 ila 22 arası satırlar).\nAçıklamaları yalnızca İNGİLİZCE olarak yapın"]
["InstructionsA7","Instructions","A7","Note:  Entries with (*) are mandatory fields. ","注：带星号 (*) 的字段为必填。","    注：(*)のある欄は回答必須項目です。","*표는 반드시 입력하여야 합니다.","Remarque : les astérisques (*) marquent des champs obligatoires","Nota: Campos sinalizados com *, são campos de preenchimento obrigatório.","Hinweis: Eingaben mit (*) sind Pflichtfelder","     Nota:  Datos con (*) son campos obligatorios. ","Note: i campi con asterisco (*) sono a risposta obbligatoria"," Not: (*) ile işaretlenmiş alanların doldurulması zorunludur. "]
["InstructionsA8","Instructions","A8","1. Insert your company's Legal Name.  Please do not use abbreviations. In this field you have the option to add other commercial names, DBAs, etc.","1. 插入贵公司的法定名称。请勿使用缩写。在此字段中，您可以选择添加其他商业名称、营业名称等。","1. 貴社の正式名称を記入してください。省略形は使わないでください。このフィールドでは、他の社名やDBAなどを追加することができます。","1. 귀사의 법적인 공식 명칭을 기입하십시오. 축약된 명칭을 기입하면 안됩니다. 이 필드에는 다른 상업명, DBA 등을 추가할 수 있는 옵션이 있습니다. ","1. Insérez la dénomination sociale de votre société. Merci de ne pas utiliser d’abréviations. Dans ce champ, vous avez la possibilité d’ajouter d’autres noms commerciaux, raisons sociales, etc.","1. Insira a razão/denominação social da empresa. Não use abreviaturas. Neste campo você tem a opção de adicionar outros nomes comerciais, DBAs, etc.","1. Geben Sie hier den rechtmäßigen Firmennamen Ihres Unternehmens ein. Bitte verwenden Sie keine Abkürzungen. In diesem Feld haben Sie die Möglichkeit, weitere Geschäftsnamen, DBAs usw. hinzuzufügen.","1. Ingrese la razón social de su compañía. No utilice abreviaturas. En este campo tiene la opción de agregar otros nombres comerciales, nombres alternos, etc.","1. Inserire la denominazione legale dell’Azienda. Si prega di non utilizzare abbreviazioni. In questo campo è possibile aggiungere altri nomi commerciali, DBA, ecc.","1. Şirketinizin Yasal Adını girin.  Lütfen kısaltma kullanmayın. Bu alanda diğer ticari adları, DBA’ları, vb. ekleme seçeneğine sahip olacaksınız."]
["InstructionsA9","Instructions","A9","2. Select your company's Declaration Scope.  The options for scope are:\n\nA.  Company-wide\nB.  Product (or List of Products)\nC.  User-Defined \n\nFor \"Company-wide\", the declaration encompasses the entirety of a company's products or product substances produced by the parent company. Therefore if the user is reporting 3TG data at the company level, they will be reporting conflict minerals data on all products they manufacture. \n\nFor Scope selection of Product (or List of Products), a link to the worksheet tab for Product List will be displayed.  If this scope is chosen, it is mandatory to list the Manufacturer's Product Number of the products covered under the Scope of this Declaration in Column B of the Product List worksheet. It is optional to list the Manufacturer's Product Name in Column C of the Product List worksheet.\n\nFor Scope selection of \"User Defined\", it is mandatory that the user describes the scope to which the 3TG disclosure is applicable. The scope of this class shall be defined in a text field by the supplier and should be easily understood by customers or the receivers of the document. As an example, companies may provide a link to clarifying information.\n\nThis field is mandatory.","2. 选择贵公司的申报范围。范围选项为：\n\nA. 全公司\nB. 产品（或产品列表）\nC. 用户自定义 \n\n对于“全公司”，申报涵盖公司产品或母公司生产的产品物质整体。如果用户在公司级别中报告冲突矿产数据，他们将报告关于其生产的所有产品的冲突矿产数据。\n\n如果选择范围为“产品（或产品列表）”，将显示产品列表的工作表选项卡。如果选择了此范围，则必须在“产品列表”工作表的 B 列中列出此申报范围涵盖的产品制造商产品序号。可选择是否在“产品列表”工作表的 C 列中列出制造商的产品名称。\n\n如果选择范围为“用户自定义”，用户必须描述 3TG 披露适用的范围。此类范围应由供应商在文本字段内予以定义，并确保客户或文档接收人可以清楚理解。例如，公司可提供链接来说明信息。\n\n此为必填字段。","2.  貴社の申告範囲を選択してください。範囲の選択肢は以下のとおりです:\n\nA.  Company-wide（全社）\nB. Product (or List of Products)（製品（又は製品リスト）\nC. User-Defined（ユーザー定義）\n\n「全社」の場合、申告には親会社が製造する製品又は製品素材全体が含まれます。ユーザーが企業レベルでの3TGデータを報告している場合は、このユーザーが製造する全製品に関する3TGデータを報告することになります。\n\n申告範囲に「製品（又は製品リスト）」を選択すると、製品リストのワークシートへのリンクが表示されます。この範囲を選択した場合は、本申告範囲に当てはまる製品のメーカー品目番号を製品リストシートB列に記入してください。製品リストシートC列へのメーカー品目説明の記入は任意です。\n\n申告範囲に「ユーザー定義」を選択した場合、ユーザーは3TGの開示が適用される範囲を記入する必要があります。ユーザー定義クラスでは、ユーザーは紛争金属の開示が適用される範囲を説明することが可能です。このクラスの範囲は、サプライヤーおよび調査の依頼主により合意された通り、テキストフィールドで定義されるべきです。本開示は、企業の特定の部門又は製品の種類に適用される場合があります。製品の種類とは、業界で認められる一般用語（例：コンデンサ）により説明できる製品群を意味します。このクラスを使用する場合、ユーザーは指定されたユーザー定義クラスの製品中に使用される3TGそれぞれに対する質問表に対する回答を提供するべきです。\n\nこの欄は必須です。","2. 귀사의 신고 범위를 선택하십시오. 신고 범위의 선택사항은 다음과 같습니다.\n\nA. 전사\nB. 제품(또는 제품 목록)\nC. 사용자 정의 \n\n\"전사\"를 선택할 경우, 이 신고는 회사의 제품 또는 모회사에 의해 생산된 제품의 구성물질 전체를 포함합니다. 사용자가 회사 수준에서 분쟁 광물 데이터를 보고하고 있는 경우, 회사가 제조하는 모든 제품에 대해 분쟁 광물 데이터를 보고하게 될 것입니다.\n\n“제품(또는 제품의 목록)”을 선택하면, 제품 목록을 위한 작업지 탭의 링크가 나타납니다. 이 범위가 선택된다면 제품 목록의 칼럼 B에 있는 신고의 범위에서 다루어지는 제조자의 제품 번호를 열거해야 합니다. 제품 목록의 칼럼 C 에서 제조자의 제품명을 열거하는 것은 선택사항입니다.\n\n\"사용자 정의\"를 선택하면, 사용자가 분쟁 광물 공개가 적용될 범위를 설명하는 것은 필수 사항입니다. 사용자 정의 등급을 통해 사용자는 분쟁 광물 공개가 적용되는 범위를 설명할 수 있습니다. 이 경우의 범위는 공급자에 의해 문서 영역(text field)에서 정의될 수 있고, 문서의 고객이나 수신인에 의해 쉽게 이해될 수 있어야 합니다.  예를들면, 보다 명확한 정보를 위해, 링크를 제공할수도 있습니다.\n\n이 필드는 필수 사항입니다.","2. Sélectionnez la portée de la déclaration de votre société. Les options de portée sont les suivantes :\n\nA. Pour l’ensemble de la société\nB. Produit (ou liste de produits)\nC. définie par l’utilisateur\n\npour l’option « pour l’ensemble de la société », la déclaration englobe la totalité des produits de la société ou substances du produit fabriqué par la société mère. Si l’utilisateur déclare des données concernant des minerais de conflit à l’échelle de la société, il déclarera les données des minerais de conflit sur tous les produits qu’il fabrique.\n\nPour la sélection de la portée du produit (ou de la liste de produits), un lien vers l’onglet de la feuille de travail de liste des produits sera affiché. Si cette portée est sélectionnée, il est obligatoire de mentionner le numéro de produit du fabricant pour les produits couverts par cette déclaration dans la colonne B de la feuille de travail de liste des produits. Il n’est pas obligatoire de mentionner le nom de produits du fabricant dans la colonne C de la feuille de travail de liste de produits.\n\nEn sélectionnant la portée « définie par l’utilisateur », l’utilisateur doit décrire la portée applicable à la déclaration de métaux de conflit. La catégorie définie par l’utilisateur permet à un utilisateur de décrire la portée applicable à la déclaration de minerais de conflit. La portée de cette catégorie doit être définie dans une case de saisie, comme convenu entre le fournisseur et le demandeur. Cette déclaration peut s’appliquer à une division particulière de la société ou à une catégorie de produits. Une catégorie de produits est un groupe de produits qui peut être décrit par un terme générique reconnu à l’échelle sectorielle (par ex. les condensateurs). En utilisant cette catégorie, l’utilisateur fournira des réponses à la liste de demandes pour chacun des 3TG utilisés dans les produits de la catégorie définie par l’utilisateur.\n\nCe champ est obligatoire.","2. Selecione o Âmbito da Declaração da sua empresa. As opções são:\n\nA. Toda a empresa\nB. Produto (ou Lista de produtos)\nC. Definido pelo utilizador \n\nPara “Toda a empresa”, a declaração engloba a totalidade dos produtos da empresa ou de substâncias contidas nos produtos produzidos pela empresa controladora. Se o utilizador está relatando dados de minerais de conflito no nível da empresa, ele estará relatando dados de minerais de conflito sobre todos os produtos por ela fabricados.\n\nPara a seleção do âmbito de Produto (ou Lista de produtos), será exibido um link para a aba da folha de cálculo Lista de produtos. Se esse âmbito for escolhido, é obrigatório listar o Número do produto do fabricante abrangido no âmbito desta Declaração na coluna B da folha de cálculo da Lista de produtos. É opcional listar o Nome do produto do fabricante na coluna C da folha de cálculo da Lista de produtos.\n\nPara a seleção do âmbito de “Definido pelo utilizador”, é obrigatório que o utilizador descreva o âmbito em que a divulgação dos minerais de conflito é aplicável. A classe definida pelo utilizador permite descrever o âmbito em que a divulgação dos minerais de conflito é aplicável. O âmbito dessa classe deverá ser definido em um campo de texto, conforme acordado pelo fornecedor e pelo requisitante. A divulgação pode se aplicar a uma divisão específica da empresa ou a uma categoria de produtos. Uma categoria de produtos é um grupo de produtos que podem ser descritos por um termo genérico reconhecido pelo setor (por ex.: capacitores). Quando utilizando essa classe, o utilizador deve fornecer respostas à lista de perguntas para cada mineral de conflito usado nos produtos da classe especificada definida pelo utilizador.\n\nEste campo é obrigatório.","2. Wählen Sie den Erklärungsumfang Ihres Unternehmens aus. Die Auswahlmöglichkeiten für den Umfang sind:\n\nA. Unternehmensweit\nB. Produkt (oder Produktliste)\nC. Nutzerdefiniert \n\n„Unternehmensweit“ bedeutet, dass die Erklärung die Gesamtheit der Produkte oder Produktsubstanzen umfasst, die von der Muttergesellschaft hergestellt werden. Falls der Nutzer Konfliktmineraliendaten auf Unternehmensebene anzeigt, zeigt er Konfliktmineraliendaten für alle Produkte an, die er herstellt.\n\nZur Auswahl des Umfangs des Produkts (oder der Produktliste) wird ein Link zum Arbeitsblattreiter für die Produktliste angezeigt. Wenn dieser Umfang ausgewählt wird, muss die Produktnummer des Herstellers der vom Umfang dieser Erklärung umfassten Produkte in Spalte B des Arbeitsblatts „Produktliste“ genannt werden. Die Produktnummer des Herstellers kann in Spalte C des Arbeitsblatts „Produktliste“ optional angegeben werden.\n\nFür eine „nutzerdefinierte“ Auswahl des Umfangs muss der Nutzer den Umfang der Anwendbarkeit der Offenlegung der Konfliktmetalle beschreiben. Die nutzerdefinierte Klasse erlaubt es einem Nutzer, den Umfang der Anwendbarkeit der Offenlegung der Konfliktmineralien zu beschreiben. Der Umfang dieser Klasse muss in einem zwischen dem Lieferanten und dem Antragsteller vereinbarten Textfeld definiert werden. Die Offenlegung kann in Hinsicht auf eine bestimmte Abteilung oder eine Produktkategorie eines Unternehmens erfolgen. Eine Produktkategorie ist eine Gruppe von Produkten, die durch einen in der Branche anerkannten Oberbegriff beschrieben werden kann (z. B. Kondensatoren). Bei Verwendung dieser Klasse muss der Nutzer Antworten auf die Fragenliste für alle in den Produkten der spezifizierten nutzerdefinierten Klasse verwendeten 3TG-Mineralien geben.\n\nDieses Feld muss ausgefüllt werden.","2. Seleccione el Enfoque de la declaración de su compañía.  Las opciones para el enfoque son: \n\nA. En toda la empresa\nB. Producto (o Lista de productos)\nC. Definido por el usuario \n\nPara \"En toda la empresa\", la declaración acompaña la totalidad de los productos de una compañía o materiales de productos fabricados por la compañía matriz.  Si el usuario informa datos de minerales en conflicto a nivel de la compañía, se informarán datos de minerales en conflicto en todos los productos que fabrican. \n\nPara la selección de enfoque de Producto (o Lista de productos), se mostrará un enlace hacia la pestaña de la hoja de trabajo para la Lista de productos.  Si se selecciona este enfoque, es obligatorio enlistar el Número de producto del fabricante de los productos cubiertos en el enfoque de esta Declaración, en la Columna B de la hoja de trabajo de la Lista de productos.  Es opcional incluir el Nombre del producto del fabricante en la Columna C de la hoja de trabajo de la Lista de productos. \n\nPara la selección del enfoque \"Definido por el usuario\", es obligatorio que el usuario describa el enfoque en el que aplica la divulgación de los metales en conflicto.  La clase definida por el usuario permite que éste describa el enfoque en el que corresponde la divulgación de minerales en conflicto.  El enfoque de esta clase debe definirse en un campo de texto como lo acuerden el proveedor y el solicitante.  Esta divulgación puede corresponder a una división específica o a una categoría de productos de la compañía.  Una categoría de productos es un grupo de productos que pueden describirse con un término genérico reconocido en la industria (por ejemplo, capacitores).  Cuando se utilice esta clase, el usuario debe proporcionar las respuestas a la lista de preguntas para cada 3TG utilizado en los productos de la clase especificada definida por el usuario. \n\nEste campo es obligatorio. ","2. Selezionare il perimetro di dichiarazione dell'Azienda.  Le opzioni per il perimetro sono:\n\nA. Perimetro aziendale\n B. Prodotto (o lista dei prodotti)\nC. Definito dall'utilizzatore/utente\n\nPer \"Perimetro aziendale\", la dichiarazione si riferisce a tutti i prodotti della società o le sostanze prodotte dalla società madre.  Se l'utilizzatore comunica dati relativi a minerali di conflitto a livello aziendale, allora verranno comunicati dati relativi a minerali di conflitto per tutti i prodotti fabbricati.\n\nPer Selezione del perimetro del prodotto (o Lista di prodotti) verrà visualizzato un link alla scheda del foglio di lavoro Lista prodotti. Se viene selezionato questo perimetro, è obbligatorio elencare il Codice del costruttore dei prodotti che rientrano nel Perimetro di questa dichiarazione alla Colonna B del foglio di lavoro Lista prodotti. È facoltativo indicare la Denominazione del costruttore del prodotto nella Colonna C del foglio di lavoro Lista prodotti.\n\nPer la selezione del Perimetro di \"Definito dall'utente/utilizzatore\", è obbligatorio che l'utilizzatore descriva l'ambito a cui è applicabile la comunicazione dei metalli di conflitto. La categoria definita dall'utilizzatore/utente consente a questo di descrivere l'ambito a cui è applicabile la comunicazione relativa ai minerali di conflitto. Il perimetro di questa categoria deve essere definito in un campo di testo come concordato tra fornitore e richiedente. Questa comunicazione può applicarsi a una specifica divisione della società o categoria di prodotti. Una categoria di prodotti è un gruppo di prodotti che può essere descritto da un termine generico riconosciuto da un'industria (ad es. condensatori). Quando l'utilizzatore si avvale di questa categoria, deve indicare le risposte alla lista di quesiti per ciascun metallo di conflitto usato nei prodotti della specifica categoria definita dall'utilizzatore.\n\nQuesto campo è obbligatorio.","2. Şirketinizin Beyan Kapsamını seçin. Kapsam seçenekleri aşağıdaki gibidir:\n\nA. Şirket geneli\nB. Ürün (veya Ürün Listesi)\nC. Kullanıcı Tanımlı \n\n“Şirket geneli” seçeneklerinde, beyan bir şirketin tüm ürünlerini veya ana şirket tarafından üretilen ürün maddelerinin tamamını kapsar. Bu nedenle bir kullanıcının şirket düzeyinde 3TG verilerini bildirmesi, ürettikleri tüm maden ürünleri ile ilgili ihtilaf içeren maden verilerini bildirmesi anlamına gelecektir. \n\nÜrün (veya Ürün Listesi) kapsamı seçildiğinde, Ürün Listesi için çalışma sayfasına yönlendiren bir bağlantı görüntülenecektir. Bu kapsamın seçilmesi durumunda, Ürün Listesi çalışma sayfasının B Sütununda bu Beyan Kapsamındaki ürünlerin İmalatçı Ürün Numarasının da girilmesi gerekmektedir. İmalatçı Ürün Numarası, Ürün Listesi çalışma sayfasının C Sütununda da verilebilir.\n\n“Kullanıcı Tanımlı” kapsamı seçildiğinde, kullanıcının 3TG açıklamasına karşılık gelen kapsamı açıklaması gerekmektedir. Bu tür bir kapsam tedarikçi tarafından bir metin alanında belirtilmeli ve müşteriler ya da belge alıcıları tarafından kolayca anlaşılabilecek biçimde olmalıdır. Örnek olarak, şirketler bilgileri netleştirmek adına bağlantı sunabilir.\n\nBu alanın doldurulması zorunludur."]
["InstructionsA10","Instructions","A10","3. Insert your company’s unique identifier number or code (DUNS number, VAT number, customer-specific identifier, etc.)","3. 插入贵公司的唯一识别序号或编号（DUNS 号码、VAT 号码、客户特定识别码等）","3.  貴社固有の識別番号又はコードを記入してください（DUNSナンバー、VATナンバー、顧客固有番号等）。","3.  귀사의 고유한 번호나 코드를 기입하십시오. (DUNS #, VAT # 등)","3. Indiquer un identifiant unique de votre entreprise (numéro DUNS, numéro TVA, etc…)","3. Inserir o número único de identificação ou código da Empresa (número DUNS, número VAT, identificação específica de cliente , etc.)","3.Geben sie ihre eindeutige Firmenidentifikationsnummer (DUNS Nummer, Steuernummer, Kunden-spezifische Kennung, etc.) ein","3. Inserte su único numero de identificador de la compañía o código ( Numero DUNS ,  Numero VAT, identificación especifica del cliente, etc)","3. Inserire il codice univoco di identificazione dell'Azienda (DUNS number, Partita IVA, etc..)","3. Şirketinizin benzersiz tanımlayıcı numarasını ya da kodunu girin (DUNS numarası, KDV numarası, müşteriye özgü tanımlayıcı, vs.)"]
[{"$f":"B11&C11","v":"InstructionsA11"},"Instructions","A11","4. Insert the source for the unique identifier number or code (\"DUNS\", \"VAT\", \"Customer\", etc).  ","4. 插入唯一识别序号或代码出处（例如“DUNS”、“VAT”、“客户”等）","4. 固有の識別番号又はコードの発行元を記入してください（「DUNS」「VAT」「顧客」等）。","4.  귀사의 고유한 번호나 코드의 출처를 기입하십시오. (DUNS #, VAT # 등)","4. Indiquer le type d'identifiant utilisé (numéro DUNS, numéro TVA, etc…)","4. Inserir a origem do número único de identificação ou código  (número DUNS, número VAT, identificação específica de cliente , etc.)","4. Geben Sie die Quelle für die eindeutige Kennung oder Code ( \"DUNS\",  \"MWST\",\"Kunde\", etc. ) an.","4. Inserte la fuente  de su único numero de identificador  o código ( \" DUNS\", \" VAT\",\" Cliente\",  etc)","4. Inserire la fonte per il codice univoco di identificazione dell'Azienda (DUNS number, Partita IVA, etc..)","4. Benzersiz tanımlayıcı numarası veya kod için kaynağı girin (\"DUNS\", \"VAT\", \"Müşteri\", vs.). "]
["InstructionsA12","Instructions","A12","5. Insert your full company address (street, city, state, country, postal code).  This field is optional.","5. 插入贵公司的完整地址（街道、城市、州、国家或地区、邮政编码）。此为必填字段。","5. 貴社の住所を省略せずに記入してください（番地、市、州/都道府県、国、郵便番号） 。この欄は任意です。","5.  귀사의 주소를 기입하십시오. (시, 구, 동, 우편번호 등).  이 필드는 선택 사항입니다.","5. Indiquer l’adresse complète de votre entreprise (rue, ville, pays, code postal,…). Ce champ est optionnel.","5. Inserir o endereço completo da Empresa (Rua, Cidade, Estado, País, Código Postal). Este campo é obrigatório.","5. Geben Sie Ihre vollständige Firmenanschrift an (Straße, Stadt, Postleitzahl,  Bundesland).  Dieses Feld ist optional.","5. Inserte la dirección completa de la compañía (Calle, ciudad, estado, país, código postal). Este campo es opcional","5. Inserire l'indirizzo completo dell'Azienda (via, città, stato, paese, codice di avviamento postale, ..). Questo campo è opzionale","5. Şirketinizin açık adresini girin (cadde, şehir, eyalet, ülke, posta kodu). Bu alanın doldurulması isteğe bağlıdır."]
["InstructionsA13","Instructions","A13","6. Insert the name of the person to contact regarding the contents of the declaration information. This field is mandatory.","6. 插入对此申报信息内容负责的联系人姓名。此为必填字段。","6. このテンプレートの回答データの内容に関して連絡先となる担当者の名前を記入してください。この欄は必須です。","6.  이 양식에 기입되는 내용에 관한 문의를 받을수 있는 담당직원 성명을 기입하십시오. 이 필드는 의무사항입니다.","6. Indiquer le nom de la personne à contacter concernant le contenu de votre déclaration. Ce champ est obligatoire.","6. Inserir o nome da pessoa de contacto relativamente ao conteúdo da informação prestada na declaração. Este campo é obrigatório.","6. Geben Sie den Namen der Kontaktperson zum Inhalt der Erklärung an. Dies ist ein obligatorisches Feld.","6. Inserte el nombre de la persona a contactar en relación al contenido de la información en la declaración. Este campo es obligatorio.","6. Indicare il nominativo di un Rappresentante Legale dell'Azienda, responsabile dell'esattezza delle informazioni trasmesse tramite questo questionario. Questo campo è obbligatorio","6. Beyan bilgilerinin içeriği ile ilgili olarak temasa geçilecek kişinin adını girin. Bu alanın doldurulması zorunludur."]
["InstructionsA14","Instructions","A14","7. Insert the email address of the contact person.  If an email address is not available, state ‘‘not available’’ or ‘‘n/a.’’ A blank field may cause an error in form implementation.  This field is mandatory.","7. 插入联系人的电子邮件地址。如果没有电子邮件地址，请说明“无”或“不适用”。如留空此字段，会导致此表格出错。此为必填字段。","7.連絡先の電子メール・アドレスを記入してください。電子メールが利用不可能な場合、「利用不可」又はn/aとしてください。空欄のままにするとフォームの実行時にエラーが発生する可能性があるため記入してください。この欄は必須です。","7.  담당직원 이메일 주소를 기입하십시오. 혹 이메일 주소가 없는 경우, \"not available\" (없음) 또는 \"N/A\"를 기입하십시오.","7. Indiquer l'adresse email de la personne à contacter. Si cette personne n'a pas d'adresse email, indiquer \"not available\" ou \"n/a\" (en anglais). Un champ vide peut provoquer une erreur dans l'exécution de ce formulaire. Ce champ est obligatoire.","7. inserir o endereço de email da pessoa de contacto. Caso não tenha, colocar \"não disponível\" ou \"n/a\". O Campo em branco poderá causar um erro na implementação do formulário. Este campo é obrigatório.","7. Geben Sie die E mail-Adresse der Kontaktperson an. Wenn eine E- mail-adresse nicht verfügbar ist, bitte \"Nicht verfügbar\" oder \"n/a.\" auswählen. Ein leeres Feld kann dazu führen, dass ein Fehler in der Anwendung auftritt. Dies ist ein obligatorisches Feld.","7. Inserte  la dirección de email de la persona contacto.   Si la dirección de email no esta disponible, mencione \"no disponible\". El campo en blanco puede causar un error en el formato. Este campo es obligatorio","7. Indicarel'indirizzo email di un Rappresentante Legale dell'Azienda. Se l'indirizzo email non è disponibile, scrivere \"non dispobile\" o \"n/a\". Il campo bianco può causare un errore nella compilazione. Questo campo è obbligatorio","7. İrtibata geçilecek kişinin e-posta adresini girin. Bir e-posta adresinin bulunmadığı durumlarda “uygun değil” veya “yok” yazın. Alanın boş bırakılması formun gönderimi sırasında hata oluşmasına neden olabilir. Bu alanın doldurulması zorunludur."]
["InstructionsA15","Instructions","A15","8. Insert the telephone number for the contact. This field is mandatory.","8. 插入联系人的电话号码。此为必填字段。","8. 連絡先電話番号を記入してください。この欄は必須です。","8.  담당직원 전화 번호를 기입하십시오. 이 필드는 필수입니다.","8. Indiquer le numéro de téléphone de la personne à contacter. Ce champ est obligatoire.","8. Inserir o número de telefone do contacto. Este campo é obrigatório.","8. Geben Sie die Telefonnummer des Kontakts an. Dies ist ein obligatorisches Feld.","8. Inserte el teléfono de la persona contacto. Este campo es obligatorio.","8. Inserire il numero di telefono della persona di contatto. Questo campo è obbligatorio","8. İrtibat kişisinin telefon numarasını girin. Bu alanın doldurulması zorunludur."]
["InstructionsA16","Instructions","A16","9. Insert the name of the person who  is responsible for the contents of the declaration information. The authorizer may be a different individual than the contact person. It is not correct to use the words ‘‘same’’ or similar identification to provide the name of the authorizer.  This field is mandatory.","9. 插入负责申报信息内容的人员姓名。授权人可能与联系人不同。请勿填写“相同”或相似信息，而需提供授权人的姓名。此为必填字段。 ","9.申告内容の回答責任者の名前を記入してください。連絡先と異なる人でもかまいません。「同上」又は同様の表記は避けてください。この欄は必須です。","9.  이 양식에 기입되는 정보를 책임질 수 있는 담당직원 성명을 기입하십시오.  이담당자는 앞서 기입한 수신 담당자와 다른 개인일 수 있읍니다.  동일할 경우, 다시 성명을 기입하십시오. \"Same\" (동일) 또는 비슷한 용어는사용하지 마십시오.  이 필드는 필수입니다.","9. Indiquer le nom de la personne responsable du contenu de votre déclaration. La personne responsable peut être différente de la personne à contacter. Il n'est pas autorisé d'utiliser le mot''identique'' ou équivalent au lieu de fournir le nom de la personne responsable. Ce champ est obligatoire.","9. inserir o nome da pessoa responsável pelos conteúdos da informação prestada na declaração. O autorizador pode ser outro indivíduo que não a pessoa de contacto. Não é Correto  usar palavras como \"o mesmo\" ou identificação similar. Este campo é obrigatório","9. Geben Sie den Namen der Person an, die für die Inhalte der Erklärung verantwortlich ist. Diese Person kann eine ander Person als der Ansprechpartner sein. Es ist nicht richtig, wenn sie die Worte \"gleich\", \"siehe oben\" oder ähnlich wie der Name des Bevollmächtigten angeben. Dies ist ein obligatorisches Feld.","9. Inserte el nombre de la persona quien es responsable del contenido de la información en  la declaración. La persona que autoriza puede ser un individuo diferente a la persona contacto.   No es correcto usar la palabra \"mismo\" o algo similar para proveer el nombre de la persona que autoriza. este campo es obligatorio. ","9. Indicare il nome della persona che è responsabile dei contenuti della dichiarazione. Il responsabile della dichiarazione può essere una persona diversa dalla persona di contatto. Non usare la parola \"stessa persona\" ma fornire il nominativo del responsabile della dichiarazione. Questo campo è obbligatorio.","9. Beyan bilgilerinin içeriğinden sorumlu kişinin adını girin. İzin yetkilisi, irtibat kişisinden farklı bir kişi olabilir. İzin yetkilisinin adı belirtilirken “aynı” gibi ifadelerin kullanılması doğru olmayacaktır. Bu alanın doldurulması zorunludur."]
["InstructionsA17","Instructions","A17","10. Insert the title for the Authorizing person. This field is optional.","10. 输入授权人的职位。 此为选填字段。","10. 回答責任者の役職を記入してください。この欄は任意です。","10.  이 양식에 기입되는 정보를 책임질 수 있는 담당직원 직함을 기입하십시오.   이 필드는 선택 사항입니다.","10. Indiquer le titre de la personne responsable. Ce champ est facultatif.","10. Inserir o título da pessoa que autoriza. Este campo é opcional.","10. Geben Sie den Titel für den Namen des Bevollmächtigten an. Dieses Feld ist optional.","10. Inserte el titulo de la persona que autoriza. Este campo es opcional.","10. Indicare il titolo della persona responsabile della dichiariazione. Questo campo è facoltativo.","10. İzin yetkilisinin unvanını girin. Bu alanın doldurulması isteğe bağlıdır."]
["InstructionsA18","Instructions","A18","11. Insert the email address of the Authorizing person.  If an email address is not available, state ‘‘not available’’ or ‘‘n/a.’’ A blank field may cause an error in form implementation.  This field is mandatory.","11.  输入授权人的电子邮件地址。如果没有电子邮件地址，请声明“无”或“不适用”。如留空此字段，会导致表格出错。此为必填字段。","11.回答責任者の電子メール・アドレスを記入してください。電子メールが不可能な場合、「利用不可」又はn/aとしてください。空欄のままにするとフォームの実行時にエラーが発生する可能性があるため記入してください。この欄は必須です。","11.  정보책임 담당직원 이메일 주소를 기입하십시오. 혹 이메일 주소가 없는 경우, \"not available\" (없음) 또는 \"N/A\"를 기입하십시오.   이 필드는 필수입니다.","11. Indiquer l'adresse email de la personne responsable. Si cette personne n'a pas d'adresse email, indiquer \"not available\" ou \"n/a\" (en anglais). Un champ vide peut provoquer une erreur dans l'exécution de ce formulaire. Ce champ est obligatoire.","11. Inserir o email da pessoa que autoriza.  Caso não tenha, colocar \"não disponível\" ou \"n/a\". O Campo em branco poderá causar um erro na implementação do formulário. Este campo é obrigatório.","11. Geben Sie die E-mail-Adresse der bevollmächtigten Person an. Wenn eine E-mail Adresse nicht verfügbar ist, bitte \"Nicht verfügbar\" oder \"n/a.\" auswählen. Ein leeres Feld kann dazu führen, dass ein Fehler in der Anwendung auftritt. Dies ist ein obligatorisches Feld.","11. Inserte la dirección de email de la persona que autoriza. Si la dirección de email no esta disponible, mencione \"no disponible\" o \"n/a\". El campo en blanco puede causar un error en el formato. Este campo es obligatorio.","11. Indicare l'indirizzo email della persona responsabile della dichiariazione. Se l'indirizzo email non è disponibile, scrivere \"non dispobile\" o \"n/a\". Il campo bianco può causare un errore nella compilazione. Questo campo è obbligatorio","11. İzin yetkilisinin e-posta adresini girin. Bir e-posta adresinin bulunmadığı durumlarda “uygun değil” veya “yok” yazın. Alanın boş bırakılması formun gönderimi sırasında hata oluşmasına neden olabilir. Bu alanın doldurulması zorunludur."]
["InstructionsA19","Instructions","A19","12. Insert the telephone number for the Authorizing person. This field is mandatory.","12. 插入授权人的电话号码。此为必填字段。","12. 回答責任者の電話番号を記入してください。この欄は必須です。","12.  이 양식에 기입되는 정보책임 담당직원 전화 번호를 기입하십시오.   이 필드는 필수입니다.","12. Indiquer le numéro de téléphone de la personne responsable. Ce champ est obligatoire.","12. inserir o número de telefone da pessoa que autoriza. Este campo é obrigatório.","12. Geben Sie die Telefonnummer des Bevollmächtigten an. Dies ist ein obligatorisches Feld.","12. Inserte el teléfono de la persona que autoriza. Este campo es obligatorio.","12. Indicare il numero di telefono della persona responsabile della dichiariazione. Questo campo è obbligatorio.","12. İzin yetkilisinin telefon numarasını girin. Bu alanın doldurulması zorunludur."]
["InstructionsA20","Instructions","A20","13. Please enter the Date of Completion for this form using the format DD-MMM-YYYY.  This field is mandatory.","13. 请使用“日-月-年”的格式输入申报日期。此为必填字段。","13. このテンプレートの作成日をDD-MMM-YYYY（例: 01-JAN-2012）の形式で記入してください。この欄は必須です。","13.  이 템플릿 작성을 완료한 날짜를 기입하십시오. 날짜는 DD-MMM-YYYY (예: 12-Jul-2012).  이 필드는 필수입니다.","13. Indiquer la date à laquelle vous avez complété ce rapport en utilisant le format suivant JJ-MM-AAAA. Ce champ est obligatoire.","13. Por favor inserir a data de finalização de preenchimento deste formulário usando o formato DD-MMM-YYYY. Este campo é obrigatório.","13. Bitte geben Sie das Datum der Fertigstellung für dieses Formblatt mit dem Format TT-MMM-JJJJ ein. Dies ist ein obligatorisches Feld.","13. Por favor introduzca la fecha de elaboración de esta forma usando el formato  DD-MMM-AAAA. Este campo es obligatorio.   ","13. Si prega di indicare la data di completamento del questionario nel formato GG-MM-YYY. Questo campo è obbligatorio","13. Lütfen GG-AAA-YYYY biçiminde bu formun Doldurulma Tarihini girin. Bu alanın doldurulması zorunludur."]
["InstructionsA21","Instructions","A21","14. As an example, the user may save the file name as:  companyname-date.xls (date as YYYY-MM-DD).  ","14. 例如，用户应将文件名保存为“公司名-日期.xls”（日期格式为年-月-日）。","14. 例えば、ファイル名を「会社名-日付.xls」として保存します（日付はYYYY-MM-DDで記述）。","14.  파일 저장 방법 : 기업명-날짜.xls (날짜는 YYYY-MM-DD, 예: 2012-08-01)","14. Le rapport peut par exemple être sauvegardé sous le nom suivant: nomdelentreprise-date.xls (date au format AAAA-MM-JJ).","14. Como exemplo, o utilizador poderá guardar o ficheiro como: Nomedaempresa-data.xls (data como AAAA-MM-DD).","14. Zum Beispiel kann der Benutzer die Datei unter dem Namen speichern: companyname-datum.xls (Datum im Format JJJJ-MM-TT).","14. Como ejemplo el usuario puede guardar el archivo como: compañianombre-fecha.xls (fecha como YYYY-MM-AA).","14. Si prega di salvare il questionario con la seguente denominazione: Denominazione dell'Azienda-data.xls (formato data AAAA-MM-GG)","14. Örnek olarak, kullanıcı dosyayı sirketadi-tarih.xls (tarih YYYY-AA-GG) şeklinde kaydedebilir. "]
["InstructionsA23","Instructions","A23","Instructions for completing the seven Due Diligence Questions (rows 24 - 65).\nProvide answers in ENGLISH only","七道尽职调查问题的填写指南（第 24 至 65 行）。\n请仅以英文作答","7つのデューデリジェンスに関する質問（24～65行）に対する解説。\n回答は英語（半角）で入力してください。","기업 정보 입력 안내서(24 - 65줄).\n답변은 반드시 영어로 기입해야 합니다.","Instructions pour répondre aux sept questions relatives au Devoir de Diligence (lignes 24 à 65).\nMerci de répondre en ANGLAIS uniquement.","Instruções para completar as sete questões relativas às diligências devidas (linhas 24-65). Fornecer comentários apenas em Inglês.","Anweisungen für das Ausfüllen der sieben Due Diligence Fragen (Zeilen 24 - 65).\nAntworten bitte nur in englischer Sprache eingeben.","Instrucciones para completar las siete preguntas de diligencia de cuidado ( renglones 24-65) \nProvea comentarios en INGLES solamente. ","Istruzioni per rispondere alle sei domande relative al dovere di diligenza (righe da 24 a 65). Si prega di rispondere unicamente in inglese.","Yedi Durum Tespiti Sorusunun cevaplanması için talimatlar (24 ila 65 arası satırlar).\nYanıtları yalnızca İNGİLİZCE olarak verin"]
["InstructionsA24","Instructions","A24","These seven questions define the usage, origination and sourcing identification for each of the metals. The questions are designed to collect information about the use of 3TG in the company’s product(s) to allow for the determination of regulatory applicability. Responses to these questions shall represent the ‘Declaration Scope’ selected in the company information section.The responses to the questions in this section can be used to determine applicability and completeness of 3TG reporting.","七道题明确了每种金属的用途、原产地和采购识别信息。这些问题旨在收集关于公司产品中 3TG 使用情况的信息，以确定法规适用情况。答案应与公司信息部分所选择的“申报范围”相对应。此部分中的答案可用于确定 3TG 报告的使用情况和完整性。","これらの7つの質問は各金属に関する使用法、原産地、調達先を明確にするものです。質問は、法規制の適用性を判定できるように貴社の製品中への3TGの使用に関する情報を収集するために作られています。これらの質問への回答は、企業情報に関するセクションで選択した「申告範囲」が対象となります。このセクションでの質問への回答は、3TGに関する報告の適用性や完全性を判定するために使用できます。","다음의 일곱 가지 질문은 각 광물의 사용처, 원산지, 구매 정보를 파악합니다.  질문은 규제 적용 가능성의 결정을 감안하기 위해 회사의 제품에서 3TG의 사용에 대한 정보를 수집하도록 설계되어 있습니다. 이에 대한 답변은 \"신고 범위\" 항목에서 선택한 신고 범위에 대한 것입니다. 이 섹션의 질문에 대한 답변은 3TG 보고의 적용 가능성과 완전성을 결정하는데 사용될 수 있습니다.","Ces sept questions définissent l’usage, l’origine et l’identification de la provenance de chacun des métaux. Les questions sont conçues pour recueillir des informations au sujet de l’utilisation des 3TG dans les produits de la société, afin de permettre de déterminer l’application de la réglementation. Les réponses à ces questions doivent représenter la « portée de la déclaration » sélectionnée dans la section des informations sur la société. Les réponses aux questions de cette section peuvent être utilisées pour déterminer l’application et l’exhaustivité de la déclaration 3TG.","Estas sete perguntas definem a utilização, origem e a identificação das fontes para cada um dos metais. As perguntas foram criadas para coletar informações sobre o uso dos minerais de conflito no(s) produto(s) da empresa, para permitir a determinação da aplicabilidade regulatória. As respostas a essas perguntas devem representar o “Âmbito da Declaração” selecionado na seção de informações da empresa. As respostas às perguntas nessa seção podem ser utilizadas para determinar a aplicabilidade e integridade dos relatórios sobre minerais de conflito.","Diese sieben Fragen definieren die Kennzeichnung der Verwendung, Herkunft und Beschaffung jedes der Metalle. Die Fragen sollen die Informationen über die Verwendung der 3TG-Mineralien im/in den Produkt(en) des Unternehmens erheben, damit die gesetzliche Anwendbarkeit bestimmt werden kann. Die Antworten auf diese Fragen sollen den „Erklärungsumfang“ widerspiegeln, der im Abschnitt über die Unternehmensinformationen ausgewählt worden ist. Die Antworten auf die Fragen in diesem Abschnitt können zur Bestimmung der Anwendbarkeit und Vollständigkeit des 3TG-Berichts verwendet werden.","Estas siete preguntas definen el uso, el origen y la identificación de la fuente para cada uno de los metales.  Las preguntas están diseñadas para recolectar información del uso de 3TG en los productos de la compañía para poder determinar la aplicación regulatoria.  Las respuestas a estas preguntas deben representar el 'Enfoque de la declaración' seleccionado en la sección de información de la compañía. Las respuestas a las preguntas de esta sección pueden utilizarse para determinar si los informes de 3TG están completos y son aplicables. ","Queste sette domande definiscono l'impiego, l'origine e l'identificazione dei fornitori per ciascuno dei metalli. Le domande hanno lo scopo di raccogliere informazioni sull'uso del metallo di conflitto nei prodotti della società per consentire la determinazione dell'applicabilità normativa. Le risposte alle domande devono essere rappresentative del \"Perimetro della dichiarazione\" selezionato nella sezione Informazioni sull'Azienda. Le risposte alle domande di questa sezione possono essere usate per determinare applicabilità e completezza del reporting del metallo di conflitto.","Bu yedi soru, metallerden her biri için kullanım, menşe ve kaynak tanımlaması sağlar. Sorular düzenleyici kurumlar açısından uygunluğun tanımlanabilmesi için şirket ürünlerinde 3TG kullanımı hakkında bilgi toplamayı amaçlamaktadır. Bu sorulara verilecek yanıtlar, şirket bilgileri bölümünde seçilen ‘Beyan Kapsamı’ bölümüne uygun olmalıdır. Bu bölümdeki sorulara verilen yanıtlar 3TG bildiriminin uygulanabilirliği ve eksiksizliğini belirlemek için kullanılabilir."]
["InstructionsA25","Instructions","A25","For each of the seven required questions, provide an answer for each metal using the pull down menu selections.The questions in this section must be completed for all 3TG. If the response for a given metal to questions 1 is positive, then  the subsequent questions shall be completed for that metal and the following due diligence questions (A to I) shall be completed about the company’s overall due diligence program.","对于七道必答题，请使用下拉菜单选项，为每种金属提供答复。所有 3TG 都必须完成此部分中的问题。如果给定金属之问题 1 的回答为肯定，则须完成该金属的后续问题，并应完成关于公司总体尽职调查项目的后续尽职调查问题（A 至 I）。","7つの各質問には、各金属それぞれについてドロップダウンメニューから回答を選択してください。このセクションでの質問では、3TG全てについて記入する必要があります。ある金属に関する質問1への回答が「はい」の場合は、その金属についてそれ以降の質問にも記入し、貴社のデューデリジェンスプログラム全体に関する下記のデューデリジェンス関連の質問（A～I）にも回答する必要があります。","필수 질문 일곱 개 각각에 대해, 풀다운 메뉴를 이용하여 각 광물에 대한 답변을 선택하십시오. 이 섹션의 질문은 모든 3TG에 대해서 작성되어야 합니다. 특정 광물에 대한 질문 1의 답변이 긍정적일 경우, 해당 광물에 대한 후속 질문에 답변해야 하며 회사의 전체 실사 프로그램과 관련하여 다음 실사 질문(A ~ J)에도 답변을 제공해야 합니다. ","Pour chacune des sept questions requises, donnez une réponse pour chaque métal en utilisant le menu déroulant. Des réponses doivent être apportées aux questions de cette section pour chacun des 3TG. Si la réponse à la question 1 est positive pour un métal donné, vous devez répondre aux questions suivantes pour ce métal, et répondre aux questions suivantes de diligence raisonnable (A à I) en prenant en compte le programme global de diligence raisonnable de votre société.","Para cada uma das sete perguntas exigidas, forneça uma resposta para cada metal usando o menu de seleção disponível. As perguntas nessa seção devem ser respondidas para todos os minerais de conflito. Se a resposta para determinado metal à pergunta 1 for positiva, as perguntas subsequentes devem ser respondidas para tal metal, e as seguintes perguntas de diligência devida (A a I) devem ser respondidas sobre o programa de diligência devida global da empresa.","Geben Sie bei jeder der sieben obligatorischen Fragen eine Antwort für jedes Metall an, indem Sie eine Auswahl aus dem Pull-down-Menü treffen. Die Fragen in diesem Abschnitt müssen für alle 3TG-Mineralien beantwortet werden. Falls die Antwort auf Frage 1 für ein bestimmtes Metall positiv lautet, müssen die nachfolgenden Fragen für dieses Metall beantwortet werden und auch die folgenden Due-Diligence-Fragen (A bis I) bezüglich des allgemeinen Due-Diligence-Programms des Unternehmens müssen beantwortet werden.","En cada una de las siete preguntas requeridas proporcione una respuesta para cada metal utilizando las selecciones del menú desplegable. Se deben completar las preguntas en esta sección para todo el 3TG. Si la respuesta para un metal determinado es afirmativa en la pregunta 1, entonces se deben responder las siguientes preguntas para ese metal, así como las siguientes preguntas de debida diligencia (de la A a la I) acerca del programa de debida diligencia de la compañía.","Per ciascuna delle sette domande, si prega di fornire una risposta per ciascuno dei metalli usando il menu a tendina. Le domande di questa sezione devono essere completate per tutti i metalli di conflitto. Se la risposta per un determinato metallo alle domande 1 e/o 2 è positiva, è necessario completare le domande successive per quel metallo e anche le seguenti domande sulla due diligence (dalla A alla I) sul programma di due diligence globale della società.","Zorunlu yedi sorunun her birinde, açılır menü seçimlerini kullanarak her bir metal için bir yanıt verin. Bu bölümdeki sorular tüm 3TG'ler için doldurulmalıdır. Bir metal ile ilgili olarak soru 1'e olumlu yanıt verilmişse, bu metal için daha sonraki soruların ve şirketin genel durum tespiti programı hakkındaki soruların (A ile I arası) da yanıtlanması gerekmektedir."]
["InstructionsA26","Instructions","A26","1. This is the first of two questions for which the response is used to determine whether the 3TG is within the scope of conflict minerals reporting requirements.  This question relies upon the guidance provided by the SEC in the final rules regarding the determination if a 3TG is “necessary to the functionality or production” of a product.   The SEC guidance is based upon the presumption that a company in the supply chain for a product would not intentionally add a 3TG to that product or any of a product’s sub-components if that 3TG was not necessary to the product’s generally expected function, use, or purpose.  Similarly, the guidance presumes that a 3TG would not be necessary to the production of a product unless it was intentionally included in the production process of that product. The response to this question serves to exclude any trace-level contaminants or naturally-occurring by-products such as tin in steel.  This question shall  be answered for each 3TG.\n\nThis question asks if any conflict minerals are used as raw material, component or additive in a product that you manufacture or contract to manufacture (including raw material and components). Impurities from raw materials, components, additives, abrasives, and cutting tools are outside the scope of the survey.\n\nThis question shall be answered for each 3TG. Valid responses to this question are either \"yes\" or \"no\". This question is mandatory.","1. 这是两个问题中的第一道问题，其回答用来确定 3TG 是否在冲突矿产报告要求的范围内。此问题以 SEC 在关于确定 3TG 是否对于产品“功能或生产有必要”的最终规则之准则为准。SEC 准则以此假设为依据：如果 3TG 对于产品的广泛预期功能、用法或用途没有必要，则产品供应链中的公司不会有意添加 3TG 到该产品或产品的任何子组件中。同样地，准则假设 3TG 对于产品的生产没有必要，除非其被有意添加到该商品的生产流程中。此问题的答复用于排除任何痕量级杂质或自然生成的副产品，如钢中的锡。必须为每个 3TG 回答此问题。\n\n此问题询问是否有任何冲突矿产在贵公司生产或外包生产的产品中用作原材料、组件或添加物（包括原材料和组件）。原材料、组件、添加物、磨具和切削工具中的杂质不在此调查范围。\n\n必须为每个 3TG 回答此问题。此问题的有效回答为“是”或“否”。此问题必须作答。","1. これは2つある質問の1つ目の質問であり、3TGが紛争鉱物報告要件の範囲内に当てはまるか否かを判定するために使用されます。この質問は、3TGが製品の「機能性又は生産にとって必要」か否かを判定する方法に関する最終規則においてSECが提供したガイダンスに基づくものです。SECガイダンスでは、その3TGが一般に予想される製品の機能、使用又は目的に必要ではない場合には、製品のサプライチェーン内に存在する企業は3TGをその製品又は製品の部品に意図的に付加しないという前提を、その根拠においています。同様に、このガイダンスでは、3TGがその製品の生産プロセスに意図的に含まれていない限り、製品の生産に必要ではないことを前提にしています。この質問に回答することにより、鋼中のスズといった微量の汚染物質や自然発生的な副産物は排除することができます。この質問には、3TGそれぞれについて回答する必要があります。\n\nこの質問では、貴社が製造する又は委託製造する製品（原材料および部品を含む）の原材料、部品、又は添加物に紛争鉱物が使用されているのか否かをお伺いします。原材料、部品、添加物、研磨剤および切削工具からの不純物は本調査の範囲外です。\n\nこの質問には、3TGそれぞれについて回答する必要があります。この質問には、「Yes（はい）」又は「No（いいえ）」で回答してください。この質問への回答は必須です。","1. 이것은 3TG가 분쟁광물 보고 요건 범위 내에 있는지 여부를 판단하기 위한 두 개의 질문 중 첫 번째 질문입니다. 이 질문은 3TG가 제품의 “기능 또는 생산에 필요”한지 여부를 판단하는 것과 관련된 SEC의 최종 규칙에 기술된 지침을 따릅니다. SEC 지침은 해당 3TG가 일반적으로 기대되는 제품의 기능, 용도 또는 목적에 반드시 필요하지 않았을 경우 제품의 공급망에 속한 업체가 의도적으로 3TG를 해당 제품 또는 제품의 하위 구성요소 중 일부로 추가하지 않을 것이라는 추정 내용에 바탕을 두고 있습니다. 또한 이 지침은 3TG를 제품의 생산 과정에 의도적으로 포함시키지 않는 한, 3TG가 해당 제품의 생산에 필요하지 않는 것으로 추정합니다. 이 질문에 대한 답변은 강철 내의 주석과 같은 모든 미소량 오염 물질 또는 자연 발생 부산물을 배제하기 위한 것입니다. 이 질문은 각 3TG에 대해 답해야 합니다. \n\n이 질문은 귀사가 제조하거나 계약 제조한 제품에서 원료, 구성요소 또는 첨가제로서 분쟁광물(원료 및 구성요소 포함)의 사용 여부를 묻습니다. 원료, 구성요소, 첨가제, 연마제, 절삭 공구에서 나온 불순물은 본 설문조사의 범위가 아닙니다. \n\n이 질문은 각 3TG에 대해 답해야 합니다. 이 질문에 대한 유효한 답변은 \"Yes\" 또는 \"No\"입니다. 이 질문의 답변은 필수입니다","1. Il s’agit de la première des deux questions pour lesquelles la réponse est utilisée pour déterminer si les 3TG sont concernés par les obligations de déclaration des minerais de conflit. Cette question est basée sur les instructions fournies par la SEC dans les règles définitives, pour déterminer si les 3TG sont ou non « indispensables au fonctionnement ou à la production » d’un produit.   Les instructions de la SEC sont basées sur la présomption qu’une société dans la chaîne d’approvisionnement d’un produit n’intégrerait pas volontairement de 3TG à ce produit ou à un quelconque de ses composants si les 3TG n’étaient pas indispensables pour la fonction, l’usage ou l’objet généralement attendu du produit. De même, les instructions supposent que les 3TG ne seraient pas nécessaires à la production d'un produit, à moins qu'ils n'aient été intégrés volontairement au processus de production de ce produit. La réponse à cette question sert à exclure la contamination en quantité infime ou la contamination naturelle par produit, par exemple dans le cas de l’étain dans l’acier. Vous devrez répondre à cette question pour chacun des 3TG.\n\nCette question a pour but de déterminer si des minerais de conflit sont utilisés comme matière première, composant ou additif dans un produit que vous fabriquez ou dont vous sous-traitez la fabrication (y compris les matières premières et les composants). Les impuretés provenant de matières premières, composants, additifs, abrasifs et outils de coupe ne relèvent pas de l’étude.\n\nVous devrez répondre à cette question pour chacun des 3TG. Les réponses valides à cette question sont « oui » ou « non ». Cette question est obligatoire.","1. Esta é a primeira de duas perguntas para as quais a resposta é usada para determinar se o mineral de conflito está dentro do âmbito dos requisitos de relatórios sobre minerais de conflito.  Esta pergunta depende da orientação fornecida pela SEC com relação às regras finais relativas à determinação de um mineral de conflito ser “necessário para a funcionalidade ou produção” de um produto.   A orientação da SEC baseia-se no pressuposto de que uma empresa na cadeia de fornecimento de um produto não adicionaria intencionalmente um mineral de conflito a esse produto ou a qualquer dos subcomponentes de um produto, se tal mineral de conflito não fosse necessário para a função, a utilização ou o propósito geral esperado do produto.  Da mesma forma, a orientação supõe que um mineral de conflito não seria necessário para a produção de um produto, a não ser que fosse intencionalmente incluído no processo de produção daquele produto. A resposta a esta pergunta serve para excluir quaisquer contaminantes no nível de elemento-traço ou derivados naturalmente ocorrentes, tais como estanho em aço.  Esta pergunta deve ser respondida para cada mineral de conflito.\n\nEsta pergunta questiona se algum mineral de conflito é utilizado como matéria-prima, componente ou aditivo de um produto que você fabrique ou cuja fabricação você contrate (incluindo matérias-primas e componentes). Impurezas de matérias-primas, componentes, aditivos, abrasivos e ferramentas de corte estão fora do escopo da pesquisa.\n\nEsta pergunta deve ser respondida para cada mineral de conflito. Respostas válidas a esta pergunta são “sim” ou “não”. Esta pergunta é obrigatória.","1. Dies ist die erste von zwei Fragen, bei denen die Antwort zur Bestimmung verwendet wird, ob das 3TG-Mineral in den Umfang der Meldepflichten für Konfliktmineralien fällt.  Diese Frage orientiert sich an der Anleitung der SEC in den endgültigen Regeln betreffend die Bestimmung, ob ein 3TG-Mineral „notwendig für die Funktionalität oder Herstellung“ eines Produktes ist.   Die SEC-Anleitung basiert auf der Annahme, dass ein Unternehmen in der Lieferkette für ein Produkt ein 3TG-Mineral nicht absichtlich diesem Produkt oder den Unterbestandteilen eines Produktes hinzufügen würde, wenn das 3TG-Mineral nicht für die allgemein erwartete Funktion, Verwendung oder Zwecksetzung des Produkts notwendig ist.  Genauso geht die Anleitung davon aus, dass ein 3TG-Mineral für die Herstellung eines Produktes nicht notwendig ist, sofern es nicht absichtlich in den Fertigungsprozess dieses Produktes aufgenommen wurde. Die Antwort auf diese Frage soll alle Kontaminantenrückstände oder natürlich vorkommenden Nebenprodukte, wie Zinn in Stahl, ausschließen.  Diese Frage muss für jedes 3TG-Mineral beantwortet werden.\n\nDiese Frage zielt darauf ab, ob irgendwelche Konfliktmaterialien als Rohmaterialien, Komponenten oder Zusatzstoffe in einem Produkt verwendet werden, das sie herstellen oder zu deren Herstellung Sie sich vertraglich verpflichten (einschließlich Rohmaterialien und Komponenten). Unreinheiten bei Rohmaterialien, Komponenten, Zusatzstoffen, Schleifmitteln und Schneidewerkzeugen liegen außerhalb des Umfangs der Umfrage.\n\nDiese Frage muss für jedes 3TG-Mineral beantwortet werden. Gültige Antworten auf diese Frage sind entweder „Ja“ oder „Nein“. Diese Frage muss beantwortet werden.","1. Esta es la primera de dos preguntas cuya respuesta se usa para determinar si el 3TG se encuentra dentro del alcance de los requerimientos del informe de minerales en conflicto.  Esta pregunta depende de la guía suministrada por la SEC en las reglas finales para determinar si un 3TG es \"necesario para la funcionalidad o fabricación\" de un producto.   La guía de la SEC se basa en el supuesto de que una compañía en la cadena de suministro de un producto no añadiría intencionalmente un 3TG a ese producto o a cualquier sub-componente del producto si ese 3TG no fuera necesario para la función, uso o propósito generalmente esperados del producto.  Asimismo, la guía supone que el 3TG no sería necesario para la fabricación de un producto a menos que fuera incluido en el proceso de fabricación de dicho producto. La respuesta a esta pregunta sirve para excluir cualquier contaminante a nivel de trazas, o subproductos producidos naturalmente, como el estaño en el acero.  Se debe responder esta pregunta para cada 3TG.\n\nEsta pregunta plantea si se usa algún mineral en conflicto como materia prima, componente o aditivo en algún producto que usted fabrique o cuya fabricación contrate (incluidas las materias primas y los componentes). Las impurezas de las materias primas, componentes, aditivos, abrasivos y herramientas de corte están fuera del alcance de la encuesta.\n\nSe debe responder esta pregunta para cada 3TG. Las respuestas válidas para esta pregunta son \"sí\" o \"no\". Esta pregunta es obligatoria.",{"$cut":{"chars":31236,"head":"1. Questa è la prima di due domande la cui risposta viene usata per determinare se il metallo di conflitto rientra nell’ambito degli obblighi di comunicazione dei minerali di conflitto.  Questa domanda si basa sulle istruzioni fornite dalla SEC nelle norme definitive sulla determinazione di un metallo di conflitto come “necessario alla funzionalità o realizzazione” di un prodotto.   Le istruzioni della SEC si fondano sul presupposto che una società non aggiungerebbe deliberatamente nella catena di fornitura di un prodotto un metallo di conflitto né alcuno dei sottocomponenti di un prodotto se tale metallo di conflitto non fosse necessario alla funzione, all’uso o allo scopo generalmente previsti del prodotto.  Allo stesso modo, nelle istruzioni si specifica che per la realizzazione di un prodotto non sarebbe necessario alcun metallo di conflitto, a meno che sia stato intenzionalmente incluso nel processo di produzione. La risposta a questa domanda serve ad escludere eventuali contaminanti in tracce o sottoprodotti naturali come la latta nell’acciaio.  Questa domanda deve ottenere risposta per ciascun metallo di conflitto.\n\nIn questa domanda si chiede se vi sono materiali di conflitto fra le materie prime, componenti o additivi di un prodotto realizzato direttamente dall’azienda o da aziende esterne (compresi materie prime e componenti). Non rientrano nell’ambito dell’indagine impurità delle materie prime, componenti, additivi, abrasivi e strumenti per il taglio.\n\nQuesta domanda deve ottenere risposta per ciascun metallo di conflitto. Le risposte valide a questa domanda sono “sì” o “no”. Questa domanda è obbligatoria.1. Questa è la prima di due domande la cui risposta viene usata per determinare se il metallo di conflitto rientra nell’ambito degli obblighi di comunicazione dei minerali di conflitto.  Questa domanda si basa sulle istruzioni fornite dalla SEC nelle norme definitive sulla determinazione di un metallo di conflitto come “necessario alla funzionalità o realizzazione” di un prodotto.   Le istruzioni della SEC si fondano sul presupposto che una società non aggiungerebbe deliberatamente nella catena di fornitura di un prodotto un metallo di conflitto né alcuno dei sottocomponenti di un prodotto se tale metallo di conflitto non fosse necessario alla funzione, all’uso o allo scopo generalmente previsti del prodotto.  Allo stesso modo, nelle istruzioni si specifica che per la realizzazione di un prodotto non sarebbe necessario alcun metallo di conflitto, a meno che sia stato intenzionalmente incluso nel processo di produzione. La risposta a questa domanda serve ad escludere eventuali contaminanti in tracce o sottoprodotti naturali come la latta nell’acciaio.  Questa domanda deve ottenere risposta per ciascun metallo di conflitto.\n\nIn questa domanda si chiede se vi sono materiali di conflitto fra le materie prime, componenti o additivi di un prodotto realizzato direttamente dall’azienda o da aziende esterne (compresi materie prime e componenti). Non rientrano nell’ambito dell’indagine impurità delle materie prime, componenti, additivi, abrasivi e strumenti per il taglio.\n\nQuesta domanda deve ottenere risposta per ciascun metallo di conflitto. Le risposte valide a questa domanda sono “sì” o “no”. Questa domanda è obbligatoria.1. Questa è la prima di due domande la cui risposta viene usata per determinare se il metallo di conflitto rientra nell’ambito degli obblighi di comunicazione dei minerali di conflitto.  Questa domanda si basa sulle istruzioni fornite dalla SEC nelle norme definitive sulla determinazione di un metallo di conflitto come “necessario alla funzionalità o realizzazione” di un prodotto.   Le istruzioni della SEC si fondano sul presupposto che una società non aggiungerebbe deliberatamente nella catena di fornitura di un prodotto un metallo di conflitto né alcuno dei sottocomponenti di un prodotto se tale metallo di conflitto non fosse necessario alla funzione, all’uso o allo scopo generalmente previsti del prodotto.  Allo stesso modo, nelle istruzioni si specifica che per la realizzazione di un prodotto "}},"1. Bu, yanıtın 3TG'nin ihtilaf konusu maden raporlama gereksinimleri kapsamında olup olmadığını tespit etmek için kullanıldığı iki sorunun birincisidir.  Bu soru, bir 3TG bir ürüne ait “işlevsellik veya üretim için gerekliyse” tespite ilişkin son kurallarda SEC tarafından sağlanan rehberliğe dayanır.   SEC rehberliği, 3TG'nin ürünün genel olarak beklenen işlevi, kullanımı veya amacı için gerekli olmaması halinde, bir ürün için tedarik zincirindeki bir şirketin kasıtlı olarak söz konusu ürüne veya bir ürünün alt bileşenlerine bir 3TG eklemeyeceğine dair varsayıma dayanır.  Benzer şekilde rehberlik, bir 3TG'nin bir ürünün üretim sürecine kasten dahil edilmedikçe o ürünün üretimi için gerekli olmadığını varsayar. Bu soruya yönelik yanıt, çelikteki kalay gibi eser düzeydeki kirleticileri veya doğal olarak oluşan yan ürünleri kapsam dışı bırakmaya yarar.  Bu soru, her bir 3TG için yanıtlanacaktır.\n\nBu soru, herhangi bir ihtilaf konusu madenin hammadde, bileşen veya ürettiğiniz veya fason ürettirdiğiniz (hammadde ve bileşenler dahil) bir ürüne katkı olarak kullanılıp kullanılmadığını sorar. Hammaddeler, bileşenler, katkılar, aşındırıcılar ve kesme araçlarından kaynaklanan safsızlıklar bu anketin kapsamı dışındadır.\n\nBu soru, her bir 3TG için yanıtlanacaktır. Bu soruya yönelik yanıtlar “evet” veya “hayır”dır. Bu sorunun cevaplaması zorunludur."]
["InstructionsA27","Instructions","A27","Some companies may require substantiation for a \"No\" answer that should be entered into the Comment Field.","如果回答为“否”，某些公司需要进一步求证，请在注释栏中详细说明。 ","「No（いいえ）」という回答に対して、コメント欄に具体的な内容の記入を要求する企業もあります。","몇몇 회사는 \"Comment Field\"(주석란)에 들어가야 하는 \"No\"란 답변의 입증을 요구할 수 있읍니다.","Dans le cas d'une réponse négative, certaines entreprises peuvent exiger des justifications qui devront être saisies dans le champ de commentaire.","Algumas empresas podem querer documentar a reposta \"Não\", o que deverá ser feito no campo para comentários.","Manche Unternehmen benötigen eine Begründung für eine \"Nein\" -Antwort im Kommentarfeld","Algunas compañías podrían requerir una justificación para una respuesta \"No\"  la cual deberá ser capturada en el campo de comentario. ","Alcune aziende potrebbero richiedere di sostanziare il NO, ciò può essere fatto nel campo Commenti","Bazı şirketler \"Hayır\" yanıtı için bir doğrulama gerektirebilir ve bu doğrulamanın Açıklama alanına girilmesi gerekmektedir."]
["InstructionsA28","Instructions","A28","2. This question shall be answered for each 3TG for each the answer to question 1 is \"yes.\" This is the second of two questions for which the response is used to determine whether the 3TG is within the scope of conflict minerals reporting requirements as described in the SECs final rules regarding the determination if a 3TG is necessary to the functionality or production of a product.  This question is dependent upon the question and response to Question 1.  This question is intended to identify 3TGs which are intentionally added or included in the manufacturing process of a product where some amount of the 3TG remains in the finished product.  This includes 3TGs which may not have been intended to become part of the final product and may not be necessary to the functionality of the product but are only present as residuals of the manufacturing process.  In many cases, the manufacturer may have attempted to remove or facilitate consumption of the 3TG during the manufacturing process, however, some amount of the 3TG remains.  Should the 3TG, which is added or included during the manufacturing process, be completely removed such that none of the 3TG remains upon the completion of that process, the response to this question would be no.\n\nThis question shall be answered for each 3TG. Valid answers to this question are either \"yes\" or \"no\". This question is mandatory. ","2. 对于对问题 1 回答“是”的每个情况，必须为每个 3GT 回答此问题。这是两个问题中的第二个问题，其答复用来确定 3TG 是否在 SEC 关于确定 3TG 是否对产品功能或生产有必要的最终规则中所述的冲突矿产报告要求范围内。此问题取决于问题和对问题 1 的答复。此问题旨在确定在产品生产过程中有意添加或纳入的 3TG（若一定数量的 3TG 仍保留在成品中）。这包括可能并非要成为成品中的一部分以及可能并非对产品的功能有必要，而只是作为生产过程的残留物存在的 3TG。在很多情况下，制造商可能已在生产过程中试图除去或促进消耗 3TG，但还是有一定数量的 3TG 残留。若在生产过程中添加的 3TG 被完全移除，因此在该过程完成后，将没有 3TG 残留，对此问题的答复将是否。\n\n必须为每个 3TG 回答此问题。此问题的有效回答为“是”或“否”。此问题必须作答。","2. この質問は、質問1の回答が「Yes（はい）」である場合には3TGそれぞれについて回答するものとします。これは2つある質問の2番目の質問で、3TGが製品の「機能性や生産にとって必要」か否かを判定する方法に関するSECの最終規則で規定されている紛争鉱物報告要件の範囲内に3TGが当てはまるか否かを判定するためにこの質問の回答は使用されます。この質問は、質問1の質問や回答と関連付けられています。この質問は、3TGがある程度完成品に残留している場合、3TGが意図的に製品の製造過程で追加又は使用されているのかを特定するためのものです。これには、完成品の一部として使用する意図がなく、製品の機能性にとって必要性が低いものの、製造過程の残留物として存在している3TGも含まれます。多くの場合、メーカーは製造過程中に3TGの削除又は消耗を促進しようと努めますが、ある程度の3TGが残留します。3TGが製造過程中に加えられた又は含まれたが、その製造過程の完了時に3TGが残留しないように完全に除去された場合、この質問の回答は「No（いいえ）」となります。\n\nこの質問には、3TGそれぞれについて回答する必要があります。「Yes（はい）」又は「No（いいえ）」で必ず回答してください。この質問への回答は必須です。","2. 이 질문은 각 3TG에 대해 답해야 하며 각각 질문 1에 대한 답변은 \"Yes\"여야 합니다. 이 질문은 3TG가 제품의 기능 또는 생산에 필요한지 여부를 판단하는 것과 관련된 SEC의 최종 규칙에 기술된 바와 같이 3TG가 분쟁광물 보고 요건의 범위에 속하는지 여부를 판단하기 위한 두 개의 질문 중 두 번째입니다. 이 질문은 질문 1의 질문 및 답변과 관련되어 있습니다. 이 질문은 완제품에 소량의 3TG가 남는 제품의 제조 공정에 의도적으로 추가되거나 포함되는 3TG를 파악하기 위한 것입니다. 또한 3TG가 완제품의 일부가 되는 것을 의도하지 않았고 제품의 기능에 필요하지 않을 수도 있지만, 단지 제조 공정의 잔여물로 남아 있는 경우도 이에 해당합니다. 많은 경우에 제조업체는 제조 공정 중에 사용된 3TG가 사라지게 하거나 촉매로 사용할 수도 있습니다. 그러나, 소량의 3TG가 남을 수 있습니다. 3TG가 제조 공정 중에는 추가 또는 포함되지만 공정 완료 시에 3TG 잔여물이 완전히 제거되는 경우에는 이 질문에 \"No\"라고 답해야 합니다. \n\n이 질문은 각 3TG에 대해 답해야 합니다. 이 질문에 대한 유효한 답변은 \"Yes\" 또는 \"No\"입니다. 이 질문은 필수 사항입니다. ","2. Vous devrez répondre à cette question pour chacun des 3TG dont la réponse à la question 1 est « oui ». Il s’agit de la deuxième des deux questions dont la réponse est utilisée pour déterminer si les 3TG sont concernés par l’obligation de déclaration des minerais de conflit, telle que décrite dans les règles définitives de la SEC servant à décider si un des 3TG est « indispensable au fonctionnement ou à la production » d’un produit. Cette question dépend de la question et de la réponse à la question 1. Cette question vise à identifier les 3TG ajoutés ou intégrés volontairement au processus de fabrication d’un produit, lorsqu’une certaine quantité de 3TG demeure dans le produit fini. Cela comprend les 3TG qui n’étaient probablement pas destinés à faire partie du produit final et n’étaient probablement pas « indispensables au fonctionnement » du produit, mais qui étaient présents uniquement en tant que résidus du processus de fabrication.  Dans de nombreux cas, le fabricant peut avoir tenté de supprimer ou de faciliter la consommation de 3TG lors du processus de fabrication, mais une certaine quantité de 3TG demeure. Si les 3TG ajoutés ou intégrés au cours du processus de fabrication sont totalement éliminés de manière à ce qu'il n'en reste aucun à la fin du processus, la réponse à cette question est « non ».\n\nVous devrez répondre à cette question pour chacun des 3TG. Les réponses valides à cette question sont « oui » ou « non ». Cette question est obligatoire. ","2. Esta pergunta deverá ser respondida para cada mineral de conflito sempre que a resposta à pergunta 1 for “sim”. Esta é a segunda de duas perguntas para as quais a resposta é utilizada para determinar se o mineral de conflito está dentro do âmbito dos requisitos de relatórios de minerais de conflito, conforme descrito nas regras finais da SEC relativas à determinação de que um mineral de conflito possa ser necessário para a funcionalidade ou produção de um produto.  Esta pergunta é dependente da pergunta e da resposta à pergunta 1. Esta pergunta destina-se a identificar minerais de conflito que são intencionalmente adicionados ou incluídos no processo de fabricação de um produto em que certa quantidade do mineral de conflito permanece no produto acabado.  Isto inclui minerais de conflito cuja intenção não era que fizesse fizessem parte do produto final, e podem não ser necessários à funcionalidade do produto, mas só estão presentes como resíduos do processo de fabricação.  Em muitos casos, o fabricante pode ter tentado remover ou facilitar o consumo do mineral de conflito durante o processo de fabricação; no entanto, certa quantidade do mineral de conflito ainda permanece.  Se o mineral de conflito, que foi adicionado ou incluído durante o processo de fabricação, tiver sido completamente removido de tal forma que nenhum dos minerais de conflito continue presente no término daquele processo, a resposta a esta pergunta seria não.\n\nEsta pergunta deve ser respondida para cada mineral de conflito. Respostas válidas a esta pergunta são “sim” ou “não”. Esta pergunta é obrigatória. ","2. Diese Frage muss für jedes 3TG-Mineral beantwortet werden. Die Antwort auf Frage 1 ist „Ja“. Dies ist die zweite von zwei Fragen, bei denen die Antwort zur Bestimmung verwendet wird, ob das 3TG-Mineral in den Umfang der Meldepflichten für Konfliktmineralien fällt, wie in den endgültigen Regeln der SEC hinsichtlich der Bestimmung, ob ein 3TG-Mineral „notwendig für die Funktionalität oder Herstellung“ eines Produktes ist, beschrieben wird.  Diese Frage ist abhängig von der Frage und der Antwort zu Frage 1. Diese Frage soll diejenigen 3TG-Mineralien identifizieren, die absichtlich im Herstellungsprozess eines Produktes enthalten sind oder verwendet werden, wobei eine bestimmte Menge von 3TG-Mineralien in dem Endprodukt zurückbleibt.  Dies beinhaltet 3TG-Mineralien, die möglicherweise nicht absichtlich Bestandteile des Endproduktes werden und die möglicherweise auch nicht für die Funktionalität des Produktes notwendig, sondern nur als Rückstände des Herstellungsprozesses vorhanden sind.  In vielen Fällen wird der Hersteller versucht haben, die 3TG-Mineralien zu entfernen oder den Verbrauch derselben während des Herstellungsprozesses zu ermöglichen, jedoch bleibt eine bestimmte Menge der 3TG-Mineralien zurück.  Sollte das 3TG-Mineral, welches in den Fertigungsprozess aufgenommen wurde, vollständig entfernt werden, sodass am Ende des Prozesses keine 3TG-Rückstände mehr vorliegen, wäre die Antwort auf diese Frage „Nein“.\n\nDiese Frage muss für jedes 3TG-Mineral beantwortet werden. Gültige Antworten auf diese Frage sind entweder „Ja“ oder „Nein“. Diese Frage muss beantwortet werden. ","2. Se debe responder esta pregunta para cada 3TG al cual la repuesta a la pregunta 1 sea \"sí\". Esta es la segunda de dos preguntas cuya respuesta se usa para determinar si el 3TG se encuentra dentro del enfoque de los requerimientos del informe de minerales en conflicto como se describe en las reglas finales de la SEC para determinar si un 3TG es necesario para la funcionalidad o fabricación de un producto.  Esta pregunta depende de la pregunta y respuesta de la Pregunta 1. Se pretende que este cuestionario identifique los 3TG que se utilizan intencionalmente en el proceso de fabricación de un producto y en donde cierta cantidad del 3TG permanece en el producto terminado.  Esto incluye 3TG que pudieran no haber sido diseñados para convertirse en parte del producto final y probablemente no sean necesarios para la funcionalidad del producto, sino que solo están presentes como residuos del proceso de fabricación.  En muchos casos, el fabricante pudo intentar eliminar o facilitar el consumo del 3TG durante el proceso de fabricación; sin embargo, cierta cantidad del 3TG sigue presente.  Si el 3TG, el cual se agrega o incluye durante el proceso de manufactura, se elimina completamente de manera que no quedan restos al concluir el proceso, entonces la respuesta a esta pregunta sería \"no\".\n\nSe debe responder esta pregunta para cada 3TG. Las respuestas válidas para esta pregunta son \"sí\" o \"no\". Esta pregunta es obligatoria. ","2. Questa domanda deve ottenere risposta per ciascun metallo di conflitto per cui è stata fornita la risposta \"sì\" alla domanda 1. Questa è la seconda di due domande la cui risposta viene usata per determinare se il metallo di conflitto rientra nell’ambito degli obblighi di comunicazione dei minerali di conflitto indicati nelle norme definitive della SEC sulla determinazione di un metallo di conflitto come necessario alla funzionalità o realizzazione di un prodotto.  Questa domanda dipende dalla risposta alla domanda 1. La domanda ha lo scopo di individuare i metalli di conflitto che vengono deliberatamente aggiunti o utilizzati nel processo di fabbricazione di un prodotto in cui rimangono residui dei metalli di conflitto nel prodotto finito.  È possibile che tra questi vi siano metalli di conflitto non destinati a diventare parte del prodotto finale e neanche probabilmente necessari alla funzionalità del prodotto, ma presenti unicamente come residui del processo di fabbricazione.  In molti casi, il fabbricante può aver tentato di rimuovere o di facilitare l’esaurimento del metallo di conflitto durante il processo di fabbricazione; tuttavia, sono rimasti residui del metallo di conflitto.  Qualora il metallo di conflitto aggiunto o utilizzato durante il processo di fabbricazione venisse completamente eliminato, non lasciandone traccia al termine del processo, la risposta a questa domanda dovrebbe essere no.\n\nQuesta domanda deve ottenere risposta per ciascun metallo di conflitto. Le risposte valide a questa domanda sono “sì” o “no”. Questa domanda è obbligatoria. ","2. Bu soru, 1. soruya verilen her \"evet\" yanıtının her birinde her bir 3TG için yanıtlanacaktır. Bu, bir ürünün “ işlevselliği veya üretimi için bir 3TG'nin gerekli olup olmadığının” tespit edilmesine ilişkin SEC nihai kurallarında açıklanan şekilde, yanıtın 3TG'nin ihtilaf konusu maden raporlama gereksinimleri kapsamında olup olmadığını tespit etmek için kullanıldığı iki sorunun ikincisidir.  Bu soru, soruya ve 1. soruya verilen yanıta bağımlıdır. Bu soru, bitmiş üründe bir miktar 3TG'nin bulunduğu bir ürünün üretim sürecinde kasten eklenen veya dahil edilen 3TG'leri belirlemeyi amaçlamaktadır.  Bu son ürünün bir parçası olması amaçlanmayan ya da bunların “ürünün işlevselliği için gerekli” olduğu düşünülmeyen ancak imalat sürecinin kalıntıları olarak üründe mevcut bulunan 3TG'leri içerir.  Pek çok durumda, üretici üretim süreci esnasında 3TG'nin tüketimini sona erdirmeye veya kolaylaştırmaya çalışmış olabilir, ancak bir kısım 3TG kalır.  Üretim süreci esnasında eklenen veya dahil edilen 3TG'nin söz konusu süreçte tamamen kaldırılarak bu sürecin bitiminde hiçbir 3TG'nin kalmaması halinde bu sorunun yanıtı “hayır” olmalıdır.\n\nBu soru, her bir 3TG için yanıtlanacaktır. Bu soruya yönelik geçerli yanıtlar “evet” veya “hayır”dır. Bu sorunun cevaplaması zorunludur."]
[{"$f":"B28&C28","v":"InstructionsA29"},"Instructions","A29","3. This is a declaration that any portion of the 3TGs contained in a product or multiple products originates from the DRC or an adjoining country (covered countries). The answer to this question should be \"yes\" if any smelter in the supply chain sources from the covered countries, even if those smelters are on the RMI compliant smelter and refiner list.  For more information, see RMI's due diligence guidance on conflict minerals here: http://www.responsiblemineralsinitiative.org/training-and-resources/publications-and-guidance/.\n\nThe answer to this question shall be \"yes\", \"no\", or \"unknown\". Substantiate a \"Yes\" answer in the comments section.\n\nThis question is mandatory for a specific metal if the response to Question 1 and 2 is “Yes” for that metal. ","3. 这是要申报存在于一种产品或多种产品中的 3TG 之任何部分的源产地是刚果民主共和国或其毗邻国家或地区（请指明）。如果供应链中的任何冶炼厂从所指明的国家或地区进行采购，则对此问题的回答应为“是”，即使该等冶炼厂位于 RMI 合规冶炼厂和精炼厂列表中。有关更多信息，请参见 RMI 的冲突矿产尽职调查指南：http://www.responsiblemineralsinitiative.org/additional-training-and-resources/guidance-documents/。\n\n以“是”、“否”或“未知”来回答此问题。如果回答“是”，请在注释部分提供证明。\n\n如果问题 1 和问题 2 就特定金属的回答为“是”，必须为该金属回答此问题。","3. これは、1つ又は複数の製品に含まれている3TGの一部がコンゴ民主共和国又は隣接国（対象国）から調達されていることの申告です。サプライチェーンのいずれかの製錬所がこのような対象国から調達している場合、この製錬所がRMI適合の製錬所および精製業者リストに記載されていても、この質問に対する回答は「Yes（はい）」となります。詳細については、RMIの紛争鉱物に関するデュー・ディリジェンス・ガイダンスを参照してください。http://www.responsiblemineralsinitiative.org/training-and-resources/publications-and-guidance/\n\nこの質問には、「Yes（はい）」「No（いいえ）」又は「Unknown（不明）」で回答してください。「Yes（はい）」と回答した場合は、コメント欄に具体的に記入してください。\n\nこの質問は、質問1と2の回答が「Yes（はい）」の金属については必須となります。","3. 이것은 한 제품이나 여러 제품들에 포함된 3TG의 일정 부분이 콩고공화국이나 그 인접국가(적용 국가들)로부터 유래된 것인지에 대한 신고입니다. 공급망에 있는 제련소가 적용 국가에서 조달하는 경우, 심지어 이러한 제련소가 RMI를 준수하는 제련소 및 정련소 목록에 있는 경우라도 이 질문에 \"Yes\"라고 답해야 합니다. 자세한 내용은 RMI의 분쟁광물에 대한 실사 지침(http://www.responsiblemineralsinitiative.org/training-and-resources/publications-and-guidance/)을 참조하십시오. \n\n이 질문에 대한 답변은 \"Yes\", \"No\" 또는 \"Unknown(모름)\"이어야 합니다. 답변이 \"Yes\"인 경우, 비고란에 구체적인 내용을 기재하십시오. \n\n이 질문은 만일 특정 광물에 대한 질문1 및 질문2의 답이 그 광물에 대해 \"Yes\"라면 필수 사항입니다. ","3. Il s’agit d’une déclaration selon laquelle une partie des 3TG contenue dans un ou plusieurs produits provient de la RDC ou d’un pays limitrophe (les pays couverts). La réponse à cette question doit être « oui » si une fonderie de la chaîne d'approvisionnement provient des pays concernés, même si elle figure sur la liste des affineurs et des fonderies conformes RMI.   Pour en savoir plus, consultez les instructions de diligence raisonnable sur les minerais de conflit à l'adresse : http://www.conflictfreesourcing.org/additional-training-and-resources/guidance-documents/.\n\nLa réponse à cette question doit être « oui », « non » ou « ne sais pas ». Justifiez la réponse « oui » dans la section des commentaires.\n\nCette question est obligatoire pour un métal donné si la réponse à la question 1 et 2 est « oui » pour ce métal. ","3. Esta é uma declaração de que qualquer parte dos minerais de conflito contidos em um produto ou em vários produtos tem origem na RDC ou em países vizinhos (países abrangidos). A resposta a esta questão deve ser “sim” se qualquer empresa de fundição da cadeia de suprimentos ter como fonte países cobertos, mesmo que tais empresas figurem na lista de fundições ou refinarias em conformidade com o CFSI.  Para mais informações, veja a orientação de diligência devida da CFSI sobre minerais de conflito aqui: http://www.conflictfreesourcing.org/additional-training-and-resources/guidance-documents/.\n\nA resposta a esta pergunta deverá ser “sim”, “não” ou “desconhecido”. Fundamente uma resposta “sim” na área de comentários.\n\nEsta pergunta é obrigatória para um metal específico se a resposta às perguntas 1 e 2 for “Sim” para esse metal. ","3. Dies ist eine Erklärung, dass jedwede Menge der in einem Produkt oder in mehreren Produkten enthaltenen 3TG-Mineralien aus der Demokratischen Republik Kongo oder benachbarten Ländern stammt (umfasste Länder). Die Antwort auf diese Frage sollte „Ja“ sein, wenn ein Schmelzofen in der Lieferkette aus den umfassten Ländern stammt, selbst wenn diese Schmelzöfen auf der RMI-Liste der konformen Schmelzöfen und Raffinerien stehen.  Wenden Sie sich für weitere Informationen an den Due-Diligence-Leitfaden der RMI: http://www.responsiblemineralsinitiative.org/training-and-resources/publications-and-guidance/.\n\nDie Antwort auf diese Frage muss „Ja“ oder „Nein“ oder „Unbekannt“ lauten. Begründen Sie eine „Ja“-Antwort im Kommentarabschnitt.\n\nDiese Frage muss für ein bestimmtes Metall beantwortet werden, wenn die Antwort auf Frage 1 und 2 „Ja“ für dieses Metall lautet. ","3. Ésta es una declaración que menciona que cualquier parte de los 3TG contenidos en un producto o múltiples productos se originan del DRC o de un país contiguo (países cubiertos). La respuesta a esta pregunta deberá ser \"sí\", si cualquier fundidora de la cadena de suministros obtiene materia prima de los países cubiertos, aun si dichas fundidoras están en la lista de fundidoras y refinerías que cumplen con los requisitos de la RMI.  Para mas información, consulte la guía de debida diligencia de RMI sobre minerales de conflicto aquí: http://www.responsiblemineralsinitiative.org/training-and-resources/publications-and-guidance/.\n\nLa respuesta a esta pregunta debe ser \"sí\", \"no\" o \"desconocido\". Fundamente la respuesta afirmativa en la sección de comentarios.\n\nEsta pregunta es obligatoria para un metal específico si la respuesta a la Pregunta 1 y 2 es \"sí\" para ese metal. ","3. Questa è una dichiarazione che qualsiasi parte dei metalli di conflitto contenuta in uno o più prodotti deriva dalla DRC o paesi limitrofi (paesi interessati). La risposta a questa domanda deve essere \"sì\" nel caso in cui qualsiasi fonderia della catena di fornitura si rifornisca di materie prime dai paesi interessati, anche se tali fonderie rientrano nell'elenco delle fonderie e raffinerie conformi di RMI. Per maggiori informazioni, consultare le linee guida di RMI sulla due diligence per i minerali di conflitto al seguente indirizzo: http://www.responsiblemineralsinitiative.org/training-and-resources/publications-and-guidance/. La risposta a questa domanda può essere \"sì\", \"no\" o \"sconosciuto\". Motivare le risposte affermative (“Sì”) nella sezione dei commenti. Questa domanda è obbligatoria per un metallo specifico se la risposta alla domanda 1 e 2 è \"Sì\" relativamente a quel metallo. ","3. Bu, bir ya da birden fazla ürün içinde bulunan 3TG'lerin herhangi bir kısmının DRC veya komşu ülkelerinden (kapsam dahilindeki ülkelerden) geldiğine dair bir beyandır.  Tedarik zincirindeki herhangi bir izabe tesisinin kapsam dahilindeki ülkelerden kaynak sağlaması halinde, izabe tesislerinin RMI uyumlu izabe tesisi veya rafinerisi listesinde olsa bile, bu sorunun yanıtı \"evet\" olacaktır.  Daha fazla bilgi için RMI'nin ihtilaf konusu madenler hakkındaki durum tespiti rehberine bakınız: http://www.responsiblemineralsinitiative.org/training-and-resources/publications-and-guidance/.\n\nBu soruya \"evet\", \"hayır\" ya da \"bilinmiyor\" şeklinde yanıt verilmelidir. Verilen bir “Evet” yanıtının gerekçelerini Yorumlar bölümünde belirtin.\n\n1. ve 2. soruya belirli bir metal için \"Evet\" yanıtı verilmişse, bu metal için bu soruya yanıt verilmesi zorunludur. "]
[{"$f":"B29&C29","v":"InstructionsA30"},"Instructions","A30","4. This is a declaration that identifies whether 3TGs contained in the product(s) necessary to the functionality of that product(s) originate from recycled or scrap sources. \n\nThe answer to this question shall be \"yes\", \"no\", or \"unknown\". This question is mandatory for a specific metal if the response to Question 1 and 2 is “Yes” for that metal. \n\nA \"Yes\" answer means that 100% of the 3TG comes from recycled or scrap sources.  A \"No\" answer means that some of the 3TG does not come from recycled or scrap sources. An \"Unknown\" answer means that the user does not know whether or not 100% of the 3TG comes from recycled or scrap sources.  ","4. 此申报确定存在于产品中且对于该产品的功能有必要的 3TG 是否来自回收料或报废料。\n\n请以“是”、“否”或“未知”来回答此问题。如果问题 1 和问题 2 就特定金属的回答为“是”，必须为该金属回答此问题。\n\n回答“是”表示 100% 的 3TG 来自回收料或报废料。回答“否”表示部分 3TG 不是来自回收料或报废料。回答“未知”表示使用者不知道 100% 的 3TG 是否来自回收料或报废料。","4.  これは、製品の機能性に必要であるためにその製品中に含まれる3TGが、再生利用品又はスクラップ起源から調達されているかどうかを示す申告です。\n\n「Yes（はい）」「No（いいえ）」又は「Unknown（不明）」で回答してください。この質問は、質問1と2の回答が「Yes（はい）」の金属については必須となります。\n\n「Yes（はい）」とは、紛争金属の全てを再生利用品又はスクラップ起源から調達していることを意味します。「No（いいえ）」とは、3TGの一部は再生利用品又はスクラップ起源から調達していないことを意味します。「Unknown（不明）」とは、3TGの全てが再生利用品又はスクラップ起源から調達されているかどうかをユーザーが把握していないことを意味します。","4. 이것은 해당 제품의 기능을 위해 필요한 제품에 포함된 3TG가 재활용이나 폐자원에서 나온 것인지 여부를 식별하는 신고입니다. \n\n이 질문에 대한 답은 \"Yes\", \"No\", 또는 \"Unknown\"이 되어야 합니다. 이 질문은 만일 특정 광물에 대한 질문1 및 질문2의 답이 그 광물에 대해 \"Yes\"라면 필수 사항입니다.\n\n\"Yes\"는 3TG의 100%가 재활용이나 폐자원에서 나온 것임을 의미합니다. \"No\"는 3TG의 일부가 재활용이나 폐자원에서 나온 것이 아님을 의미합니다. \"Unknown\"은 3TG의 100%가 재활용이나 폐자원에서 나온 것인지 여부를 사용자가 알지 못함을 의미합니다. ","4. Il s’agit d’une déclaration qui détermine si les 3TG contenues dans les produits, qui sont indispensables au fonctionnement de ce produit, proviennent de sources recyclées. \n\nLa réponse à cette demande doit être « oui », « non » ou « inconnu ». Cette question est obligatoire pour un métal donné si la réponse à la question 1 et 2 est « oui » pour ce métal.\n\nLa réponse « oui » signifie que 100 % des 3TG proviennent de sources recyclées. La réponse « non » signifie que certains des 3TG ne proviennent pas de sources recyclées. La réponse « inconnu » signifie que l’utilisateur ne sait pas si 100 % des 3TG proviennent de sources recyclées. ","4. Esta é uma declaração que identifica se os minerais de conflito contidos no(s) produto(s) necessário(s) para a funcionalidade de tal(is) produto(s) são originários de fontes recicladas ou de sucata. \n\nA resposta a esta pergunta deverá ser “Sim”, “Não” ou “Desconhecido”. Esta pergunta é obrigatória para um metal específico se a resposta às perguntas 1 e 2 for “Sim” para esse metal.\n\nUma resposta “Sim” significa que 100% do mineral de conflito é originário de fontes de recicladas ou de sucata. Uma resposta “Não” significa que parte do mineral de conflito não é originária de fontes de recicladas ou de sucata. Uma resposta “Desconhecido” significa que o utilizador não sabe se 100% do mineral de conflito é originário de fontes de recicladas ou de sucata. ","4. Dies ist eine Erklärung, die bestimmt, ob in dem/den Produkt(en) enthaltene, für die Funktionalität dieses/dieser Produkts/Produkte notwendige 3TG-Mineralien aus Recycling- oder Schrottquellen stammen. \n\nDie Antwort auf diese Frage muss „Ja“ oder „Nein“ oder „Unbekannt“ lauten. Diese Frage muss für ein bestimmtes Metall beantwortet werden, wenn die Antwort auf Frage 1 und 2 „Ja“ für dieses Metall lautet.\n\nEine Antwort mit „Ja“ bedeutet, dass 100 % des 3TG-Minerals aus Recycling- oder Schrottquellen stammen. Eine Antwort mit „Nein“ bedeutet, dass ein Teil des 3TG-Minerals nicht aus Recycling- oder Schrottquellen stammt. Eine Antwort mit „Unbekannt“ bedeutet, dass der Nutzer nicht weiß, ob 100 % des 3TG-Minerals aus Recycling- oder Schrottquellen stammt oder nicht. ","4.  Esta es una declaración que identifica si los 3TG contenidos en los productos necesarios para la funcionalidad del mismo se originan del reciclaje o de fuentes de residuos.  \n\nLa respuesta a esta pregunta debe ser \"sí\", \"no\" o \"desconocido\". Esta pregunta es obligatoria para un metal específico si la respuesta a la Pregunta 1 y 2 es \"sí\" para ese metal. \n\nUn \"sí\" como respuesta significa que el 100% de los 3TG provienen del reciclaje o de las fuentes de residuos.  Un \"no\" como respuesta significa que algunos de los 3TG no provienen del reciclaje o de las fuentes de residuos.  La respuesta de \"desconocido\" significa que el usuario no sabe si el 100% de los 3TG proviene del reciclaje o de las fuentes de residuos.  ","4. Questa è una dichiarazione che identifica se i metalli di conflitto contenuti nel prodotto/i necessari per la funzionalità del prodotto/i provengono da fonti riciclate o di scarto.\n\nLa risposta a questa domanda può essere \"sì\", \"no\" o \"sconosciuto\". Questa domanda è obbligatoria per un metallo specifico se la risposta alla domanda 1 e 2 è \"Sì\" relativamente a quel metallo.\n\nLa risposta \"sì\" indica che il 100% del minerale di conflitto proviene da fonti riciclate o di scarto. La risposta \"no\" indica che parte del minerale di conflitto proviene da fonti riciclate o di scarto. La risposta \"sconosciuto\" indica che l'utilizzatore non sa se il 100% del minerale di conflitto proviene o meno da fonti riciclate o di scarto. ","4. Bu, ürünler içinde bulunan ve ürünün işlevselliği için gerekli 3TG'lerin bu geri dönüşüm veya hurda kaynaklardan gelip gelmediğinin beyanıdır. \n\nBu soruya \"evet\", \"hayır\" ya da \"bilinmiyor\" şeklinde yanıt verilmelidir. 1. ve 2. soruya belirli bir metal için “Evet” yanıtı verilmişse, bu metal için bu soruya yanıt verilmesi zorunludur.\n\nBu soruya \"Evet\" yanıtı verilmesi, 3TG'lerin %100'ünün geri dönüşüm veya hurda kaynaklarından elde edildiği anlamına gelecektir. Bu soruya \"Hayır\" yanıtı verilmesi, 3TG'lerin bir kısmının geri dönüşüm veya hurda kaynaklarından elde edilmediği anlamına gelecektir. Bu soruya \"Bilinmiyor\"\tyanıtı verilmesi, kullanıcının 3TG'nin %100'ünün geri dönüşüm veya hurda kaynaklarından elde edilip edilmediğini bilmediği anlamına gelecektir. "]
[{"$f":"B30&C30","v":"InstructionsA31"},"Instructions","A31","5. This is a question to determine whether a company has received conflict minerals disclosures from all direct suppliers reasonably believed to be providing 3TGs contained in the products covered by the scope of this declaration. Permissible responses to this question are:\n\n­ 100%\n­ Greater than 90%\n­ Greater than 75%\n- Greater than 50%\n- 50% or less\n- None\n\nThis question is mandatory for a specific metal if the response to Question 1 and 2 is “Yes” for that metal. ","5. 此问题是要确定公司是否有理由相信已从提供本申报范围内产品中含有 3TG 的所有直接供应商得到冲突矿产披露。本问题允许的回答包括：\n\n­ 100%\n­ 大于 90%\n­ 大于 75%\n­ 大于 50%\n- 50% 或更少\n- 完全没有\n\n\n如果问题 1 和问题 2 就特定金属的回答为“是”，则必须为该金属回答此问题。","5. これは、企業が、この申告範囲内の製品に含まれる3TGを供給すると合理的に考えられる全ての直接サプライヤーから、紛争鉱物開示情報を受け取ったかどうかを判定する申告です。回答は、以下の中から選択してください。\n\n­ 100%\n­ 90%超\n­ 75%超\n- 50%超\n- 50%以下\n- なし\n\n\nこの質問は、質問1と2の回答が「Yes（はい）」の金属については必須となります。　","5. 이 질문은 다음 신고의 범위가 적용되는 제품에 포함된 3TG를 제공하고 있는 것으로 합리적으로 신뢰를 받고 있는 모든 직접 공급업체로부터 회사가 분쟁광물 공개를 받았는지 여부를 판단하기 위한 것입니다. 이 질문에 허용되는 답변은 다음과 같습니다. \n\n­ 100%\n- 90% 이상\n- 75% 이상\n- 50% 이상\n- 50% 미만\n- 없음\n\n\n이 질문은 특정 광물에 대한 질문1 및 질문2의 답이 해당 광물에 대해 \"Yes\"인 경우에 필수 사항입니다. ","5. Il s’agit d’une question visant à déterminer si une société a reçu des déclarations de minerai de conflit, en provenance de tous les fournisseurs directs raisonnablement susceptibles de fournir des 3TG contenus dans les produits couverts par le champ d'application de cette déclaration. Les réponses possibles à cette question sont :\n\n– 100 %\n– Supérieur à 90 %\n– Supérieur à 75 %\n– Supérieur à 50 %\n– 50 % ou moins\n– Aucun\n\n\nCette question est obligatoire pour un métal donné si la réponse à la question 1 et 2 est « oui » pour ce métal.","5. Esta é uma pergunta que determina se uma empresa recebeu ou não informações referentes a minerais de conflito de todos os fornecedores diretos que creiam estar fornecendo minerais de conflito contidos nos produtos abrangidos pelo âmbito desta declaração. As respostas aceitáveis a esta pergunta são:\n\n­ 100%\n- Acima de 90%\n- Acima de 75%\n- Acima de 50%\n- 50% ou menos\n- Nenhuma\n\n\nEsta pergunta é obrigatória para um metal específico se a resposta à pergunta 1 e 2 for “sim” para aquele metal.","5. Diese Frage dient der Bestimmung, ob ein Unternehmen Offenlegungen zu Konfliktmineralien von allen Lieferanten erhalten hat, von denen vernünftigerweise angenommen wird, dass sie 3TG-Mineralien liefern, die in den vom Umfang dieser Erklärung umfassten Produkten enthalten sind. Erlaubte Antworten auf diese Frage sind:\n\n- 100 %\n- Größer als 90 %\n- Größer als 75 %\n- Größer als 50 %\n- 50 % oder weniger\n- Keine\n\n\nDiese Frage muss für ein bestimmtes Metall beantwortet werden, wenn die Antwort auf Frage  1 und 2 „Ja“ für dieses Metall lautet.","5. Esta es una pregunta para determinar si una compañía ha recibido divulgaciones de minerales en conflicto de todos los proveedores directos que se piensa razonablemente que suministran 3TG contenido en los productos cubiertos en el alcance de esta declaración. Las respuestas permitidas para esta pregunta son:\n\n- 100 %\n- Más del 90% \n- Más del 75%\n- Más del 50%\n- 50% o menos\n- Ninguno\n\n\nEsta pregunta es obligatoria para un metal específico si la respuesta a la Pregunta 1 y 2 es \"sí\" para ese metal.","5. Questa domanda serve a stabilire se una società ha ricevuto le dichiarazioni sui metalli di conflitto da tutti i fornitori diretti, ragionevolmente ritenuti fornitori di minerali di conflitto contenuti nei prodotti che rientrano nel campo di applicazione della dichiarazione. Le risposte a questa domanda sono:\n\n- 100%\n- Oltre il 90%\n- Oltre il 75%\n- Oltre il 50%\n- 50% o meno\n- Nessuna\n\n\nQuesta domanda è obbligatoria per un metallo specifico se la risposta alla domanda 1 e 2 è \"Sì\" relativamente a quel metallo.","5. Bu bir şirketin bu beyan kapsamındaki ürünlerde makul düzeyde 3TG sağladığına inanılan tüm doğrudan tedarikçilerin ihtilaf konusu maden açıklaması yapıp yapmadığının belirlenmesi yönünde bir sorudur. Bu soruya aşağıdaki şekillerde yanıt verilebilir:\n\n­ %100\n- %90'dan fazla\n- %75'ten fazla\n- %50'den fazla\n- %50 veya daha az\n- Hiçbiri\n\n\n1. ve 2. soruya belirli bir metal için \"Evet\" yanıtı verilmişse, bu metal için bu soruya yanıt verilmesi zorunludur."]
[{"$f":"B31&C31","v":"InstructionsA32"},"Instructions","A32","6. This question verifies if the supplier has reason to believe they have identified all of the smelters providing 3TGs in the products covered by this declaration. The answer to this question shall be \"Yes\" or \"No\", along with a comment in certain cases, e.g. list of smelters. \n\nThis question is mandatory for a specific metal if the response to Question 1 and 2 is “Yes” for that metal. ","6. 此问题是要核实供应商是否有理由相信他们已识别出提供此申报涵盖之产品中 3TG 的所有冶炼厂。本问题的回答包括“是”或“否”，并请就情况说明，例如冶炼厂列表。\n\n如果问题 1 和问题 2 就特定金属的答复为“是”，必须为该金属回答此问题。","6. この質問は、サプライヤーがこの申告の対象となる3TGを供給する製錬業者を全て特定したと考えられる理由があるかどうかを検証します。この質問への回答は、「Yes（はい）」又は「No（いいえ）」で、コメントを伴う場合もあります（例：製錬業者のリスト）。この質問は、質問1と2の回答が「Yes（はい）」の金属については必須となります。","6. 이 질문은 이 신고에 포함된 제품에 있는 3TG를 제공하는 모든 제련소를 공급업체가 식별했음을 신뢰할 이유가 있는지 여부를 확인합니다. 이 질문에 대한 답변은 \"Yes\" 또는 \"No\"여야 합니다(어떤 경우에는 주석, 예를 들어 제련소 목록을 첨부함). 이 질문은 만일 특정 광물에 대한 질문1 및 질문2의 답이 그 광물에 대해 \"Yes\"라면 필수 사항입니다. ","6. Cette question vise à déterminer si le fournisseur a raison de croire qu’il a identifié toutes les fonderies qui fournissent des 3TG dans les produits couverts par cette déclaration. La réponse à cette question doit être « oui » ou « non », accompagnée d’un commentaire dans certains cas, par exemple une liste de fonderies. Cette question est obligatoire pour un métal donné si la réponse à la question 1 et 2 est « oui » pour ce métal.","6. Esta pergunta verifica se o fornecedor tem razões para crer que identificou todas as fundições que fornecem minerais de conflito nos produtos abrangidos por esta declaração. A resposta a esta pergunta deverá ser “sim” ou “não”, com a adição de comentários em determinados casos, por exemplo, lista de fundições. Esta pergunta é obrigatória para um metal específico se a resposta às perguntas 1 e 2 for “Sim” para esse metal.","6. Mit dieser Frage wird geprüft, ob ein Lieferant Grund zur Annahme hat, dass er alle diejenigen Schmelzöfen identifiziert hat, die in den vom Umfang dieser Erklärung umfassten Produkten 3TG-Mineralien bereitstellen. Die Antwort auf diese Frage muss „Ja“ oder „Nein“ lauten, zusammen mit einem Kommentar in bestimmten Fällen, z. B. einer Liste von Schmelzöfen. Diese Frage muss für ein bestimmtes Metall beantwortet werden, wenn die Antwort auf Frage 1 und 2 „Ja“ für dieses Metall lautet.","6. Esta pregunta confirma si el proveedor tiene razón para pensar que ha identificado a todas las fundidoras que suministran 3TG en los productos cubiertos en esta declaración. La respuesta a esta pregunta debe ser \"sí\" o \"no\", seguido de un comentario en algunos casos; por ejemplo, una lista de fundidoras. Esta pregunta es obligatoria para un metal específico si la respuesta a la Pregunta 1 y 2 es \"sí\" para ese metal.","6. Questa domanda verifica se il fornitore ha ragione di credere di aver identificato tutte le fonderie che forniscono metalli di conflitto nei prodotti inseriti nella presente dichiarazione. La risposta a questa domanda è \"sì\" o \"no\" con un commento in alcuni casi, ad esempio, elenco delle fonderie. \n\nQuesta domanda è obbligatoria per un metallo specifico se la risposta alla domanda 1 e 2 è \"Sì\" relativamente a quel metallo.","6. Bu soru, tedarikçinin bu beyan kapsamındaki ürünlerde 3TG sağlayan tüm izabe tesislerinin tanımlandığını düşünüp düşünmediğini doğrulama amacı taşır. Bu soruya belirli durumlarda açıklama girerek (ör. izabe tesislerinin listesi) \"evet\" ya da \"hayır\" cevabı verilebilir. 1. ve 2. soruya belirli bir metal için \"Evet\" yanıtı verilmişse, bu metal için bu soruya yanıt verilmesi zorunludur."]
[{"$f":"B32&C32","v":"InstructionsA33"},"Instructions","A33","7. This question verifies that all of the smelters identified to be providing any of the 3TGs contained in the products covered by the scope of this declaration have been reported in this declaration. The answer to this question shall be \"yes\" or \"no\" along with a comment in certain cases, e.g. list of smelters. This question is mandatory for a specific metal if the response to Question 1 and 2 is “Yes” for that metal. ","7. 此问题是要核实经确定为提供此申报范围涵盖之产品中含有任何 3TG 的所有冶炼厂是否已在此申报中报告。本问题的回答包括有“是”或“否”，并请就情况说明，例如冶炼厂列表。如果问题 1 和问题 2 就特定金属的答复为“是”，必须为该金属回答此问题。","7. この質問は、この申告の対象となる製品に含まれるあらゆる3TGを供給していると特定された全ての製錬業者が、この申告で報告されていることを検証します。この質問の回答は、「Yes（はい）」、「No（いいえ）」又は「Unknown（不明）」です（例：製錬業者のリスト）。この質問は、質問1と2の回答が「Yes（はい）」の金属については必須となります。","7. 이 질문은 이 신고에 포함된 제품에 있는 3TG를 공급하는 모든 제련소가 이 신고에 보고되었는지 여부를 확인합니다. 이 질문에 대한 답변은 \"Yes\" 또는 \"No\"여야 합니다(어떤 경우에는 주석, 예를 들어 제련소 목록을 첨부함). 이 질문은 만일 특정 광물에 대한 질문1 및 질문2의 답이 그 광물에 대해 \"Yes\"라면 필수 사항입니다. ","7. Cette question vise à vérifier que toutes les fonderies identifiées comme fournisseurs de quelconques 3TG contenus dans les produits couverts par le champ d'application de cette déclaration ont été mentionnées dans cette déclaration. La réponse à cette question doit être « oui » ou « non », accompagnée d’un commentaire dans certains cas, par exemple une liste de fonderies. Cette question est obligatoire pour un métal donné si la réponse à la question 1 et 2 est « oui » pour ce métal.","7. Esta pergunta verifica se todas as fundições identificadas como fornecendo quaisquer dos minerais de conflito contidos nos produtos abrangidos pelo âmbito desta declaração foram reportados nesta declaração. A resposta a esta pergunta deverá ser “sim” ou “não”, com a adição de comentários em determinados casos, por exemplo, lista de fundições. Esta pergunta é obrigatória para um metal específico se a resposta às perguntas 1 e 2 for “sim” para esse metal.","7. Diese Frage bestätigt, dass alle Schmelzöfen, von denen bekannt ist, dass sie in den vom Umfang dieser Erklärung umfassten Produkten 3TG-Mineralien bereitstellen, in dieser Erklärung genannt sind. Die Antwort auf diese Frage muss „Ja“ oder „Nein“ lauten, zusammen mit einem Kommentar in bestimmten Fällen, z. B. einer Liste von Schmelzöfen. Diese Frage muss für ein bestimmtes Metall beantwortet werden, wenn die Antwort auf Frage 1 und 2 „Ja“ für dieses Metall lautet.","7. Esta pregunta confirma que todas las fundidoras identificadas que suministran cualquiera de los 3TG contenidos en los productos cubiertos en el enfoque de esta declaración han sido reportadas en esta declaración. La respuesta a esta pregunta debe ser \"sí\" o \"no\", seguido de un comentario en algunos casos; por ejemplo, una lista de fundidoras. Esta pregunta es obligatoria para un metal específico si la respuesta a la Pregunta 1 y 2 es \"sí\" para ese metal.","7. Questa domanda verifica che siano state riportate in questa dichiarazione tutte le fonderie identificate quali fornitrici di qualsiasi metallo di conflitto contenuto nei prodotti inseriti nella presente dichiarazione. La risposta a questa domanda è \"sì\" o \"no\" con un commento in alcuni casi, ad esempio, elenco delle fonderie. Questa domanda è obbligatoria per un metallo specifico se la risposta alla domanda 1 e 2 è \"Sì\" relativamente a quel metallo.","7. Bu soru, bu beyan kapsamındaki ürünlerdeki 3TG'leri sağladığı belirlenen izabe tesislerinin beyanda bildirilip bildirilmediğini tespit etme amacı taşımaktadır. Bu soruya belirli durumlarda açıklama girerek (ör. izabe tesislerinin listesi) \"evet\" ya da \"hayır\" cevabı verilebilir. 1. ve 2. soruya belirli bir metal için \"Evet\" yanıtı verilmişse, bu metal için bu soruya yanıt verilmesi zorunludur."]
["InstructionsA34","Instructions","A34","Provide comments in the Comment sections as required to clarify your responses.","在注释部分提供您的意见，以进一步说明您的回答。","回答を補足する必要がある場合は、備考欄に記入してください。","귀사의 답변을 명확히 하기 위해 추가 답변이 필요한 경우, 코멘트 섹션을 활용하시오.","Si nécessaire, merci d'inscrire vos commentaires dans la section prévue à cet effet afin de clarifier vos réponses","Fornecer os comentários necessários no campo para comentários de forma a clarificar a suas respostas.","Geben Sie, falls notwendig, Anmerkungen im Kommentarbereich ein, die für eine Klarstellung ihrer Antwort hilfreich sind.","Proporcione comentarios en las secciones de comentario si se requiere para aclarar sus respuestas. ","Se necessario siete pregati di inserire i vostri commenti nella sezione prevista per chiarire le vostre risposte","Yanıtlarınızı açıklamak için Açıklama bölümlerine gereken açıklamaları girin."]
["InstructionsA36","Instructions","A36","Instructions for completing Questions A. – I. (rows 69 - 85).  Questions A. through I. are mandatory if the both of responses to Question 1 and 2 are “Yes” for any metal.\nProvide answers in ENGLISH only","完成问题 A 至 I 的说明（第 69 至 86 行）。如果问题 1 和 2 就任何金属的回答为“是”，必须回答问题 A 至 I。\n请仅以英文作答","質問A～Iの記入方法について（行69～85）。質問1と2の回答が「Yes（はい）」の金属については、AからIまでの質問は必須となります。　\n英語のみで回答してください。","질문 A. ~ I.(69 ~ 86행)의 답변 지침. 어떤 광물에 대한 질문 1의 답변이 “Yes”일 경우, 질문 A. ~ I.에 대한 답변은 필수입니다. \n답변은 영어로만 기입하십시오","Instructions pour les questions A à I (lignes 69 à 86). Les questions A à I sont obligatoires, si la réponse à la question 1 est « oui » pour un métal.\nRépondez en ANGLAIS uniquement","Instruções para completar a pergunta A - I. (fileiras 69 a 86).  As perguntas A. a I. são obrigatórias se a resposta à pergunta 1 for “sim” para qualquer metal.\nDê as respostas somente em INGLÊS","Instruktionen zur Beantwortung der Fragen A. – I. (Reihen 69–86).  Die Fragen A. bis I. müssen beantwortet werden, wenn die Antwort auf Frage 1 für irgendein Metall „Ja“ lautet.\nBitte geben Sie Ihre Antworten nur auf ENGLISCH","Instrucciones para llenar las Preguntas A-I (renglones 69 - 86).  Las preguntas A. a la I. son obligatorias si la respuesta a la Pregunta 1 es \"sí\" para ese metal.\nResponda a las preguntas en INGLÉS solamente","Istruzioni per il completamento delle domande A– I. (righe 69 - 86).  Le domande dalla A. alla I. sono obbligatorie se la risposta alla domanda 1 è \"Sì\" per qualsiasi metallo.\nLe risposte devono essere fornite unicamente in lingua INGLESE","A. - I. arası soruların yanıtlanması için talimatlar (69 ila 86 arası satırlar)  Herhangi bir metal için 1. soruya \"Evet\" yanıtı verilmişse, A. ile I. arası soruların yanıtlanması gerekmektedir.\nYanıtları yalnızca İNGİLİZCE olarak verin"]
["InstructionsA37","Instructions","A37","The OECD Due Diligence Guidance for Responsible Supply Chains of Minerals from Conflict-affected and High-risk Areas (OECD Guidance) defines “Due Diligence” as “an on-going, proactive and reactive process through which companies can ensure that they respect human rights and do not contribute to conflict”.   Due diligence should be an integral part of your company’s overall conflict free sourcing strategy.   Questions A. thru I. are designed to assess your company’s conflict-free minerals sourcing due diligence activities. Responses to these questions shall represent the full scope of your company’s activities and shall not be limited to the ‘Declaration Scope’ selected in the company information section.","根据经济合作与发展组织 (OECD) 针对“责任供应链中来自受冲突影响地区及高风险地区的矿产”所编写的尽职调查指南（OECD指南），“尽职调查”的定义是“通过持续、积极、有效的方法，确保所有企业尊重人权及不做有助于冲突活动的行为。“尽职调查”必须成为公司无冲突采购策略的一个组成部份。所列问题 A 至问题 J 的目的是对贵公司不使用冲突矿产采购策略中的尽职调查工作进行评估。对这部份问题的回答将体现出贵公司执行尽职调查工作的范围，并不应仅限于公司资料部分里所选择的”申报范围”。","「OECD紛争地域及び高リスク地域からの鉱物の責任あるサプライチェーンのためのデューデリジェンス・ガイダンス」では、「デューデリジェンス」を「企業が人権を尊重し、紛争に寄与しないことを確実とする、継続的、自主的、かつ状況に応じたプロセス」と定義しています。デューデリジェンスは御社のコンフリクトフリーの調達戦略全体の一部として不可欠なものであるはずです。次の質問A～Iはコンフリクトフリーの鉱物調達に関する御社のデューデリジェンス活動を分析評価するために設計されています。 これらの質問に対する回答は、御社全体の取組みを対象としており、企業情報に関するセクションで選定した「申告範囲」に限定するものではありません。","\"분쟁 및 고위험 지역의 책임있는 광물질 공급망을 위한 OECD 실사 안내서\"에서는 실사를 \"기업이 인권을 존중하고 분쟁에 기여하지 않는 것을 보장하는 지속적이고, 주도적인 프로세스\"라고 정의합니다. 실사는 귀사의 분쟁지역광물 구매 정책 중 필수적으로 반영되어야 합니다. 질문 A~J는 귀사의 광물질 구매 실사 활동을 평가하기 위해 제작되었습니다.   이질문에 대한 답변은 귀사의 활동 전체 범위를 표현하며, 회사의 정보 섹션에서 선택된 '선언 범위'의 제한을받지 않습니다.  ","Le Guide OCDE sur le devoir de diligence pour des chaînes d’approvisionnement responsables en métaux provenant de zones de conflit ou à haut risque (Guide OCDE) définit l’exercice du « devoir de diligence » comme étant « le processus continu, proactif et réactif qui permet aux entreprises de s’assurer qu’elles respectent les droits humains et qu’elles ne contribuent pas aux conflits ». Le devoir de diligence devrait faire partie intégrante de la stratégie globale d’approvisionnement hors zone de conflit ou à haut risque de votre entreprise. Les questions A à J ont pour but d’évaluer les activités en place dans votre entreprise dans le cadre du devoir de diligence de votre compagnie pour l’approvisionnement en métaux hors zone de conflit ou à haut risque. Les réponses à ces questions doivent représenter le périmètre complet des activités de votre entreprise et ne doivent pas être limitées au 'Périmetre de la Déclaration' sélectionné dans la section information sur la société .","As linhas de orientação das diligências devidas da OCDE para cadeias de Fornecimento responsáveis de Minerais de conflito afetados e de áreas de alto risco (Guia da OCDE) define \" Diligências devidas\" como um processo \"em curso, proactivo e reativo, através do qual as empresas conseguem garantir  os seu respeito pelos direitos humanos e não contribuir para o conflito\". As diligências devidas devem ser parte integrante da estratégia global da empresa sobre fontes livres de conflito. As questões de A a J foram formuladas para avaliar as atividades de diligência devidas da empresa face à origem dos minerais livres de conflito. As respostas a estas questões devem representar todo o âmbito das atividades da empresa e não se deverá limitar ao \"âmbito da Declaração\" selecionado no campo da informação da empresa.","Die OECD Due Diligence Richtlinie für verantwortliche Lieferketten von Mineralien aus mit Konflikten und hohem Risiko betroffen Gebieten (OECD Richtlinie) definiert \"Due Diligence\" als \"einen kontinuierlichen, pro-aktiven und re-aktiven Prozess, mit dem Firmen sicherstellen können, dass sie Menschenrechte respektieren und nicht zu Konflikten beitragen\". Due Diligence sollte ein fester Teil ihrer konfliktfreien Beschaffungsstrategie sein. \nFragen A. bis J. betreffen die Beurteilung ihrer konfliktfreien Mineralienbeschaffungs- Due Diligence- Aktivitäten. Die Antworten auf diese Fragen sollen den gesamten Bereich Ihrer Firmenaktivitäten abdecken und sich nicht nur auf den Bereich des \"Erklärungsbereiches\" (wie in der Firmeninformation ausgewählt) beschränken. ","La Guía de cuidado de la OCDE para las cadena de  Suministro Responsable de minerales de zonas afectadas por conflictos y de áreas de alto riesgo (OCDE Orientación) define  \" Diligencia de cuidados\", como \"un proceso continuo, proactivo y reactivo a través del cual las empresas pueden garantizar que se respeten los derechos humanos y no contribuyen a los conflictos \". La diligencia de cuidado debe ser una parte integral de la estrategia general de la empresa para abastecimiento libre de conflictos. Las preguntas a través de A. J. están diseñadas para evaluar las actividades diligentes de su empresa  para el abastecimiento de minerales sin conflicto. Las respuestas a estas preguntas deben de representar toda la gama de actividades de su empresa y no se limitará a la 'Declaración de Alcance' seleccionado en la sección de información de la compañía.","La guida OCDE sul dovere di diligenza per l'approvigionamento responsabile di minerali provenienti da zone di conflitto o ad alto rischio (Guida OCDE), definisce l'applicazione del \"dovere di diligenza\" come un \"processo continuo, proattivo e reattivo, che permette alle aziende di assicurarsi di rispettare i diritti umani e di non contribuire ai conflitti\". Il dovere di diligenza dovrebbe costituire parte integrante della strategia globale di approvigionamento conflict-free della vostra azienda.\nLe domande da A a J sono formulate per verificare le attività messe in atto dalla vostra azienda relative al dovere di diligenza per l'approvigionamento conflict-free. Le risposte alle domende devono essere rappresentative del perimetro completo delle attività della vostra azienda e non devono riferirsi unicamente al \"perimetro della dichiarazione\" indicato nella sezione Informazioni sull'Azienda."," İhtilaftan Etkilenen ya da Yüksek Riskli Alanlardan elde edilen Madenlerin Sorumlu Tedarik Zinciri için OECD Durum Tespiti Kılavuzu (OECD Kılavuzu), “Durum Tespiti” sürecini “şirketlerin insan haklarına saygı duyulmasını ve ihtilafa katkıda bulunulmamasını sağlayacak şekilde denetlendiği sürekli olarak, proaktif ve reaktif bir süreçtir”. Durum tespiti, şirketinizin genel ihtilaf içermeyen kaynak edinme stratejisinin ayrılmaz bir parçasını oluşturmalıdır. A. ile J. arası sorular, şirketinizin ihtilaf içermeye maden kaynağı belirleme konulu durum tespiti aktivitelerinin değerlendirilmesi için tasarlanmıştır. Bu sorulara verilecek yanıtlar, şirketinizin faaliyetlerinin kapsamını eksiksiz bir şekilde ifade etmeli ve şirket bilgileri bölümünde seçilen ‘Beyan Kapsamı’ ile sınırlı tutulmamalıdır."]
["InstructionsA38","Instructions","A38","A. This is a declaration to disclose whether a company has a conflict minerals sourcing policy. The answer to this question shall be \"yes\" or \"no.\" Comments shall be captured in a question comment field. \n\nThis question is mandatory.","A. 这是披露公司是否具有冲突矿产采购政策的申报。请以“是”或“否”来回答此问题。须在问题注释字段提供说明。\n\n此问题必须作答。","A. これは、会社が紛争鉱物の調達方針を持っているかどうかを明らかにする申告です。「Yes（はい）」又は「No（いいえ）」で回答してください。コメントは、質問コメントフィールドに記入してください。\n\nこの質問への回答は必須です。","A. 이 신고는 회사에 분쟁광물 조달 정책이 있는지 여부를 공개하기 위한 것입니다. 이 질문에 대한 답은 \"Yes\" 또는 \"No\"여야 합니다. 추가 설명은 질문에 대한 의견 기재란에 기입하십시오. \n\n이 질문의 답변은 필수입니다","A. Cette déclaration permet de déterminer si une société dispose d'une politique d'approvisionnement pour les minerais de conflit. La réponse à cette question doit être « oui » ou « non ». Les commentaires doivent être saisis dans le champ dédié à la question. \n\nCette question est obligatoire.","A. Esta é uma declaração para divulgar se a empresa tem uma política de aquisição de minerais de conflito. A resposta a esta pergunta deverá ser “sim” ou “não”. Os comentários serão capturados em um campo de comentário à pergunta. \n\nEsta pergunta é obrigatória.","A. Diese Erklärung dient der Bestimmung, ob ein Unternehmen über eine Beschaffungsrichtlinie für Konfliktmineralien verfügt. Die Antwort auf diese Frage muss „Ja“ oder „Nein“ lauten. Anmerkungen sollten in einem Frage/Kommentar-Feld festgehalten werden. \n\nDiese Frage muss beantwortet werden.","A. Esta es una declaración para revelar si una compañía cuenta con una política de compra de minerales en conflicto. La respuesta a esta pregunta debe ser \"sí\" o \"no\". Los comentarios deberán llenarse en el campo de comentarios de dicha pregunta. \n\nEsta pregunta es obligatoria.","A. Questa dichiarazione serve a comunicare se una società adotta una politica di approvvigionamento per i minerali di conflitto. La risposta a questa domanda può essere \"sì\" o \"no\". I commenti devono essere inseriti nel campo commenti.\n\nQuesta domanda è obbligatoria.","A. Bu beyan bir şirketin ihtilaf konusu maden kaynakları ile ilgili bir politikaya sahip olup olmadığını ifade eder. Bu soruya \"evet\" ya da \"hayır\" şeklinde yanıt verilmelidir. Yorumlar sorunun açıklama kısmında yansıtılmalıdır. \n\nBu sorunun cevaplaması zorunludur."]
["InstructionsA39","Instructions","A39","B. This is a declaration to disclose whether a company’s conflict minerals sourcing policy is available on the company website. The answer to this question shall be \"yes\" or \"no.\" If \"Yes\" the user shall specify the URL in a question comment field. \n\nThis question is mandatory.","B. 这是披露公司的冲突矿产采购政策是否可在公司网站上获取的申报。请以“是”或“否”来回答此问题。如果回答“是”，用户应当在问题注释字段指出 URL。\n\n此问题必须作答。","B.これは、会社のウェブサイト上で紛争鉱物の調達方針が入手可能かどうかを明らかにする申告です。「Yes（はい）」又は「No（いいえ）」で回答してください。「Yes（はい）」の場合は、ユーザーは、質問コメントフィールドにURLを記入してください。\n\nこの質問への回答は必須です。","B. 이 신고는 회사의 분쟁광물 조달 정책이 회사 웹사이트에서 게시되어 있는지 여부를 공개하기 위한 것입니다. 이 질문에 대한 답은 \"Yes\" 또는 \"No\"여야 합니다. 답변이 \"Yes\"인 경우, 사용자는 질문에 대한 의견 기재란에 URL을 기입해야 합니다. \n\n이 질문의 답변은 필수입니다","A. Cette déclaration permet de déterminer si la politique d'approvisionnement pour les minerais de conflit d'une société est accessible sur son site Internet. La réponse à cette question doit être « oui » ou « non ». Si la réponse est « oui », l'utilisateur doit indiquer l'URL dans le champ de commentaires de la question. \n\nCette question est obligatoire.","B. Esta é uma declaração para divulgar se a política de aquisição de minerais de conflito da empresa está disponível no website da empresa. A resposta a esta pergunta deverá ser “sim” ou “não”. Se for “sim”, o usuário especificará o link em um campo de comentário à questão. \n\nEsta pergunta é obrigatória.","B. Diese Erklärung dient der Bestimmung, ob die Beschaffungsrichtlinie für Konfliktmineralien eines Unternehmens auf dessen Website verfügbar ist. Die Antwort auf diese Frage muss „Ja“ oder „Nein“ lauten. Bei „Ja“ sollte der Benutzer die URL im Frage/Kommentar-Feld angeben. \n\nDiese Frage muss beantwortet werden.","B. Esta es una declaración para revelar si la política de compra de minerales en conflicto de una compañía está disponible en el sitio web de la compañía. La respuesta a esta pregunta debe ser \"sí\" o \"no\". Si la respuesta es afirmativa, el usuario deberá especificar el URL en el campo de comentarios de la pregunta. \n\nEsta pregunta es obligatoria.","B. Questa dichiarazione serve a comunicare se la politica di approvvigionamento per i minerali di conflitto è disponibile sul sito web della società. La risposta a questa domanda può essere \"sì\" o \"no\". Se \"sì\", l'utente dovrà indicare l'URL nel campo commenti della domanda.\n\nQuesta domanda è obbligatoria.","B. Bu beyan bir şirketin ihtilaf konusu maden kaynakları ile ilgili politikasının şirketin web sitesinde mevcut olup olmadığını ifade eder. Bu soruya \"evet\" ya da \"hayır\" şeklinde yanıt verilmelidir. Yanıt \"evet\" ise, kullanıcı, açıklama alanına ilgili URL'yi eklemelidir. \n\nBu sorunun cevaplaması zorunludur."]
["InstructionsA40","Instructions","A40","C. This is a question to determine whether a company requires their direct suppliers to be DRC conflict free. The answer to this question shall be \"yes\" or \"no.\"  See Definitions worksheet for definition of \"DRC conflict-free\".  Comments shall be captured in a question comment field. \n\nThis question is mandatory.","C. 这个问题是确定公司是否要求其直接供应商不采购来自刚果民主共和国的涉及到冲突的冲突矿产。请以“是”或“否”来回答此问题。请查看定义表，了解“刚果民主共和国无冲突的冲突矿产”的定义。须在问题注释字段提供说明。\n\n此问题必须作答。","C.これは、会社が自社の直接サプライヤーに対し、DRCコンフリクトフリーであることを要求するかどうかを判定するための質問です。「Yes（はい）」又は「No（いいえ）」で回答してください。「DRCコンフリクトフリー」の定義については、定義ワークシートを参照してください。コメントは、質問コメントフィールドに記入してください。\n\nこの質問への回答は必須です。","C. 이 질문은 회사가 직접 공급업체들에게 DRC 분쟁으로부터 자유로운(DRC conflict-free) 광물을 사용하도록 요구하는지 여부를 판단하기 위한 것입니다. 이 질문에 대한 답은 \"Yes\" 또는 \"No\"여야 합니다. \"DRC conflict-free\"의 정의는 정의(Definitions) 워크시트를 참조하십시오. 추가 설명은 질문에 대한 의견 기재란에 기입하십시오. \n\n이 질문의 답변은 필수입니다","C. Cette question permet d'indiquer si une société exige que ses fournisseurs directs ne participent à aucun conflit avec la RDC. La réponse à cette question doit être « oui » ou « non ». Consultez la feuille de calcul Définitions pour obtenir la définition de « Hors conflit avec la RDC ». Les commentaires doivent être saisis dans le champ dédié à la question. \n\nCette question est obligatoire.","C. Esta é uma pergunta para determinar se a empresa exige que seus fornecedores diretos estejam isentos de conflitos RDC. A resposta a esta pergunta deverá ser “sim” ou “não”.  Veja na planilha Definições a definição de “isento de conflitos RDC”.  Os comentários serão capturados em um campo de comentário à pergunta. \n\nEsta pergunta é obrigatória.","C. Diese Frage dient der Bestimmung, ob es für ein Unternehmen erforderlich ist, dass seine direkten Lieferanten DRC-konfliktfrei sind. Die Antwort auf diese Frage muss „Ja“ oder „Nein“ lauten.  Die Definition von „DRC-konfliktfrei“ finden Sie auf dem Definitionen-Arbeitsblatt.  Anmerkungen sollten in einem Frage/Kommentar-Feld festgehalten werden. \n\nDiese Frage muss beantwortet werden.","C. Esta es una pregunta para determinar si una compañía requiere que sus proveedores directos estén libres de conflicto DRC. La respuesta a esta pregunta debe ser \"sí\" o \"no\".  Consulte la hoja de trabajo de Definiciones para la definición de \"libre de conflicto DRC\".  Los comentarios deberán llenarse en el campo de comentarios de dicha pregunta. \n\nEsta pregunta es obligatoria.","C. Questa domanda ha lo scopo di stabilire se una società richiede ai propri fornitori diretti di escludere i minerali di conflitto provenienti dalla RDC.  La risposta a questa domanda può essere \"sì\" o \"no\".  Fare riferimento alla scheda delle Definizioni per la definizione di \"assenza di minerali di conflitto provenienti dalla RDC\".  I commenti devono essere inseriti nel campo commenti.\n\nQuesta domanda è obbligatoria.","C. Bu soru şirketin doğrudan tedarikçilerinin DKC ihtilafı içermeyen şirketler olmasını şart koyup koymadığını belirlemeyi amaçlamaktadır. Bu soruya \"evet\" ya da \"hayır\" şeklinde yanıt verilmelidir.  \"DKC ihtilafı içermeyen\" tanımı için Tanımlar çalışma sayfasını inceleyin.  Yorumlar sorunun açıklama kısmında yansıtılmalıdır. \n\nBu sorunun cevaplaması zorunludur."]
["InstructionsA41","Instructions","A41","D. This is a declaration to determine whether a company requires their direct suppliers to source 3TG from validated, conflict free smelters. The answer to this question shall be \"yes\" or \"no.\" Comments should be captured in a question comment field.\n\nThis question is mandatory.","D. 此申报是要确定公司要求直接供应商从经过验证的无冲突矿产的冶炼厂处采购 3TG。请以“是”或“否”来回答此问题。须在问题注释字段提供说明。\n\n此问题必须作答。","D.これは、会社が自社の直接サプライヤーに対し、認証されたコンフリクトフリー製錬業者から３TGを調達することを要求するかどうかを判定するための申告です。「Yes（はい）」又は「No（いいえ）」で回答してください。コメントは、質問コメントフィールドに記入してください。\n\nこの質問への回答は必須です。","D. 이 신고는 회사가 직접 공급업체에게 검증된 분쟁으로부터 자유로운 제련소에서 3TG를 조달하도록 요구하는지 여부를 판단하기 위한 것입니다. 이 질문에 대한 답은 \"Yes\" 또는 \"No\"여야 합니다. 추가 설명은 질문에 대한 의견 기재란에 기입하십시오. \n\n이 질문은 필수 사항입니다. ","D. Il s’agit d’une déclaration visant à indiquer si une société impose à ses fournisseurs directs de s’approvisionner en 3TG auprès de fonderies validées, n'alimentant pas les conflits. La réponse à cette question doit être « oui » ou « non ». Les commentaires doivent être saisis dans le champ dédié à la question.\n\nCette question est obligatoire.","D. Esta é uma declaração para determinar se uma empresa requer que seus fornecedores diretos tenham fontes de minerais de conflito validadas como fundições livres de conflitos. A resposta a esta pergunta deverá ser “sim” ou “não”. Os comentários serão capturados em um campo de comentário à pergunta.\n\nEsta pergunta é obrigatória.","D. Diese Erklärung dient der Bestimmung, ob ein Unternehmen verlangt, dass seine direkten Lieferanten 3TG-Mineralien aus bestätigt konfliktfreien Schmelzöfen beschaffen. Die Antwort auf diese Frage muss „Ja“ oder „Nein“ lauten. Anmerkungen sollten in einem Frage/Kommentar-Feld festgehalten werden.\n\nDiese Frage muss beantwortet werden.","D. Esta es una declaración para determinar si una compañía requiere que sus proveedores directos suministren minerales en conflicto de las fundidoras validadas sin conflicto. La respuesta a esta pregunta debe ser \"sí\" o \"no\". Los comentarios deberán llenarse en el campo de comentarios de dicha pregunta.\n\nEsta pregunta es obligatoria.","D. Questa è una dichiarazione volta a determinare se una società impone ai propri fornitori diretti di approvvigionare i minerali di conflitto da fonderie verificate e libere da conflitti. La risposta a questa domanda può essere \"sì\" o \"no\". I commenti devono essere inseriti nel campo commenti.\n\nQuesta domanda è obbligatoria.","D. Bu, bir şirketin doğrudan tedarikçilerinin 3TG'leri doğrulanmış, ihtilaf konusu olmayan izabe tesislerinden temin edip etmediğinin belirlenmesini amaçlamaktadır. Bu soruya \"evet\" ya da \"hayır\" şeklinde yanıt verilmelidir. Yorumlar, sorunun açıklama kısmında yansıtılmalıdır.\n\nBu sorunun cevaplaması zorunludur."]
["InstructionsA42","Instructions","A42","E. Please answer  \"yes\" or \"no\" to disclose whether your company has implemented conflict minerals sourcing due diligence measures. This declaration is not intended to provide the details of a company’s due diligence measures - just that a company has implemented due diligence measures. The aspects of acceptable due diligence measures shall be determined by the requestor and supplier.\n\nExamples of due diligence measures may include: communicating and incorporating into contracts (where possible) your expectations to suppliers on conflict-free mineral supply chain; identifying and assessing risks in the supply chain; designing and implementing a strategy to respond to identified risks; verifying your direct supplier’s compliance to its DRC conflict-free policy, etc.  These due diligence measure examples are consistent with the guidelines included in the internationally recognized OECD Guidance.\n\nThis question is mandatory.","E. 请答复“是”或“否”，以披露贵公司是否已实施冲突矿产采购尽职调查措施。该申报并非旨在提供公司的尽职调查措施详情，而仅说明公司已实施了尽职调查措施。可接受尽职调查措施的具体情况，应当由请求者和供应商决定。\n\n尽职调查措施的示例可能包括：向供应商传达贵公司对无冲突矿产供应链的预期以及将该等预期纳入到合同中（如可能）；确定和评估供应链中的风险；设计和实施战略以应对确定的风险；核实贵公司的直接供应商符合不使用刚果民主共和国涉及冲突的冲突矿产的政策等。这些尽职调查措施的示例与国际公认的经济合作与发展组织指南涵盖的指导方针保持一致性。\n\n此问题必须作答。","E.貴社が紛争鉱物調達に関するデューデリジェンス対策を実施しているかどうかを明らかにするために、「Yes（はい）」又は「No（いいえ）」で回答してください。この申告は、会社のデューデリジェンス対策の詳細を提供することを意図したものではなく、会社がデューデリジェンス対策を実施していることを明らかにするためのものです。許容できるデューデリジェンス対策に関する諸事項は、要請者とサプライヤによって決定されるものとします。\n\nデューデリジェンス対策の例として、紛争に係わらない鉱物サプライチェーンを利用するよう、サプライヤーに対して御社の要望を伝え、契約にこれを盛り込むこと（可能な場合） 、サプライチェーンにおけるリスクの特定と評価、 特定されたリスクに対応するための戦略の立案と実施、 直接サプライヤーのDRCコンフリクトフリーポリシーの順守状況を確認することなどがあります。これらのデューデリジェンス対策の例は、国際的に認められたOECDガイダンスに定めるガイドラインに沿ったものです。　  \n\nこの質問への回答は必須です。","E. 답변을 \"Yes\" 또는 \"No\"로 하여 귀사가 분쟁광물 조달 실사 방안을 마련했는지 여부를 공개하십시오. 이 신고는 회사의 실사 방안에 대한 세부사항을 제공하기 위한 것이 아니라 단지 회사가 실사 방안을 마련해 놓았는지 여부를 확인하기 위한 것입니다. 용인되는 실사 방안의 내용은 요청자와 공급자에 의해 결정됩니다. \n\n실사 방안의 예로는 분쟁으로부터 자유로운 광물 공급망에 있는 공급업체에 대한 기대치를 (가능한 경우) 논의하여 계약 내용에 추가했는지, 공급망에 대한 위험을 식별하고 평가했는지, 식별된 위험에 대한 대응 전략을 고안하고 시행했는지, 직접 공급업체가 DRC 분쟁으로부터 자유로운 조달 정책을 준수하는지 여부를 확인하는 것이 포함됩니다. 이러한 실사 방안의 예는 국제적으로 인정된 OECD 지침에 포함된 가이드라인을 따릅니다. \n\n이 질문의 답변은 필수입니다","E. Veuillez répondre « oui » ou « non » pour indiquer si votre société a mis en œuvre des mesures de diligence raisonnable concernant l'approvisionnement en minerais de conflit. Cette déclaration ne doit pas comporter le détail des mesures de diligence raisonnable de la société. Elle permet simplement de déclarer qu'une société a mis en œuvre des mesures de diligence raisonnable. Les différents aspects des mesures de diligence raisonnable acceptables doivent être déterminés par le fournisseur et le demandeur.\n\nLes mesures de diligence raisonnable peuvent inclure, par exemple : indiquer aux fournisseurs et intégrer aux contrats (si possible) vos attentes en faveur d'une chaîne d'approvisionnement dépourvue de minerais de conflit ; identifier et évaluer les risques de la chaîne d'approvisionnement ; concevoir et mettre en œuvre une stratégie pour répondre aux risques identifiés ; vérifier la conformité de votre fournisseur direct à la politique concernant l'absence de conflit avec la RDC, etc.  Ces exemples de mesures de diligence raisonnable correspondent aux directives figurant dans les instructions mondialement reconnues de l'OCDE.  \n\nCette question est obligatoire.","E. Responda “sim” ou “não” para divulgar se a sua empresa implementou medidas de diligência devida a fontes de minerais de conflito. Esta declaração não pretende prestar detalhes das medidas de diligência devida de uma empresa, mas que uma empresa implementou medidas de diligência devida. Os aspectos de medidas de diligência devida aceitáveis serão determinados pelo solicitante e pelo fornecedor.\n\nEntre os exemplos de medidas de diligência devida podem estar: comunicar e incorporar nos contratos (quando possível) suas expectativas aos fornecedores sobre a cadeia de suprimentos de minerais isentos de conflito; identificar e avaliar riscos na cadeia de suprimentos; projetar e implementar uma estratégia para responder a riscos identificados; verificar a conformidade do seu fornecedor direto à sua política livre de conflito RDC, etc. Esses exemplos de medidas de diligência devida são condizentes com as diretrizes incluídas na Orientação OECD internacionalmente reconhecida.  \n\n\nEsta pergunta é obrigatória.","E. Bitte antworten Sie mit „Ja“ oder „Nein“, um anzugeben, ob Ihr Unternehmen Due-Diligence-Maßnahmen für die Beschaffung von Konfliktmineralien verwendet. Diese Erklärung erfordert keine Details zu den Due-Diligence-Maßnahmen eines Unternehmens – es geht lediglich darum, ob solche Maßnahmen in Kraft sind. Die genaue Beschaffenheit angemessener Due-Diligence-Maßnahmen muss vom Antragsteller und vom Lieferanten bestimmt werden.\n\nBeispiele für Due-Diligence-Maßnahmen sind unter anderem: Erwartungen an Lieferanten innerhalb der Lieferkette für konfliktfreie Mineralien kommunizieren und (wenn möglich) in Verträge aufnehmen; Risiken in der Lieferkette identifizieren und auswerten; eine Strategie zur Handhabung identifizierter Risiken entwickeln und umsetzen; die DRC-Konfliktfreiheit Ihrer direkten Lieferanten entsprechend deren Richtlinie verifizieren, etc.  Diese Beispiele für Due-Diligence-Maßnahmen sind konsistent mit den Vorgaben der international anerkannten OECD-Anleitung.  \n\nDiese Frage muss beantwortet werden.","E. Responda \"sí\" o \"no\" y revele si su compañía ha implementado medidas de debida diligencia en cuanto al suministro de minerales en conflicto. Esta declaración no pretende proporcionar detalles de las medidas de debida diligencia de la compañía, solo si la compañía ha implementado medidas de debida diligencia. Los aspectos de las medidas de debida diligencia serán determinados por el solicitante y proveedor.\n\nAlgunos ejemplos de medidas de debida diligencia incluyen: comunicar e incorporar en sus contratos (de ser posible) sus expectativas a los proveedores respecto a la cadena de suministros de minerales sin conflictos; diseñar e implementar una estrategia para responder a los riesgos identificados; verificar el cumplimiento de su proveedor directo en cuanto a la política de estar libre de conflicto de DRC, etc. Estos ejemplos de medidas de debida diligencia con coherentes con las directrices incluidas en la Guía OECD, la cual es reconocida internacionalmente.  \n\nEsta pregunta es obligatoria.","E. Rispondere \"sì\" o \"no\" per comunicare se la società ha implementato misure di due diligence per l'approvvigionamento dei minerali di conflitto. Questa dichiarazione non intende fornire i dettagli delle misure di due diligence adottate dalla società, bensì comunicare unicamente l'eventuale implementazione delle stesse. Gli aspetti relativi all'ammissibilità delle misure di due diligence devono essere stabiliti dal richiedente e dal fornitore.\n\nAlcuni esempi di misure di due diligence includono: comunicazione e indicazione nei contratti (laddove possibile) delle aspettative nei confronti dei fornitori in relazione all'utilizzo di una catena di fornitura libera da minerali di conflitto; identificazione e valutazione dei rischi nella catena di fornitura; realizzazione e implementazione di una strategia per la gestione di determinati rischi; verifica della conformità del proprio fornitore diretto alla politica di esclusione dei minerali di conflitto provenienti dalla RDC, ecc. Questi esempi di misure di due diligence rispettano le indicazioni contenute nelle linee guida dell'OCSE riconosciute a livello internazionale.  \n\nQuesta domanda è obbligatoria.","E. Şirketinizin ihtilaf konusu maden kaynak belirleme durum tespiti tedbirlerini uygulayıp uygulamadığını ifade etmek için lütfen \"evet\" veya \"hayır\" biçiminde yanıt verin. Bu beyan, bir şirketin durum tespiti tedbirlerinin ayrıntılarını verme amacı taşımamaktadır, yalnızca durum tespiti tedbirlerinin uygulanıp uygulanmadığı ile ilgilidir. Kabul edilebilir durum tespiti tedbirlerinin özellikleri, talep eden kişi ve tedarikçi tarafından belirlenmelidir.\n\nDurum tespiti tedbirleri örnekleri şunları içerebilir: ihtilaf içermeyen maden tedarik zinciri ile ilgili beklentilerinizi iletme ve sözleşmelere dahil etme (mümkün olduğunda), tedarik zincirindeki riskleri tanımlama ve değerlendirme, tanımlanan risklere müdahale için bir strateji belirleme ve bu stratejiyi uygulamaya koyma, doğrudan tedarikçinizin DKC ihtilaf içermeyen politikasına uyumunu doğrulama, vs.  Bu durum tespiti tedbirleri, uluslararası kapsamda tanınan OECD Kılavuzuna dahil kılavuz ilkelere uygun olmalıdır.  \n\n\nBu sorunun cevaplaması zorunludur."]
["InstructionsA43","Instructions","A43","F. This is a question to disclose whether a company requests their supplier to fill out a conflict minerals declaration. Acceptable answers are listed below, in certain cases further explanation may be required, i.e., to provide the format used for collecting information. If the answer is \"Yes,\" using other format the user shall provide a comment in a question comment field.  Permissible responses to this question are:\n\n- Yes, in conformance with IPC-1755 [e.g., CMRT]\n- Yes, using other format (describe)\n- No\n\nThis question is mandatory.","F. 此问题是要披露公司是否要求供应商填写冲突矿产申报。接受的回答载列如下，在部分情况中，可能需要进一步解释，即提供用于收集信息的格式。如果回答为“是”，请使用其他格式，用户须在问题注释字段提供说明。本问题允许的回答包括：\n\n- 是，符合 IPC-1755 [例如 CMRT]\n- 是，使用其他格式（请描述）\n- 否\n\n此问题必须作答。","F.これは、会社がサプライヤーに対して紛争鉱物申告を記入するよう要求するかどうかを明らかにするための質問です。容認できる回答が以下に列挙されています。場合によっては、情報の収集に使用されるフォーマットを提供するための説明がさらに必要になることもあります。回答が「Yes（はい）」の場合、他のフォーマットを使用して、ユーザーは質問コメントフィールドにコメントを入力する必要があります。回答は、以下の中から選択してください。\n\n- はい、IPC-1755 [CMRTなど]に準拠する\n- はい、他のフォーマットを使用する（記述する）\n- いいえ\n\nこの質問への回答は必須です。","F. 이 질문은 회사가 공급업체들에게 분쟁광물 신고서를 작성하도록 요구하는지 여부를 공개하기 위한 것입니다. 용인되는 답변은 아래에 나열되어 있으며 특정 경우에는 추가 설명이 필요할 수 있는데, 이는 정보를 수집하기 위해 사용된 형식을 제공하기 위한 것입니다. 답변이 \"Yes\"인 경우, 사용자가 다른 형식으로 질문에 대한 의견 기재란에 설명을 기입해야 합니다. 이 질문에 허용되는 답변은 다음과 같습니다. \n\n- Yes, IPC-1755 준수[예: CMRT]\n- Yes, 다른 형식 사용(설명 필수)\n- No\n\n이 질문의 답변은 필수입니다","F. Il s’agit d’une question visant à indiquer si une société impose à ses fournisseurs de remplir une déclaration au sujet des minerais de conflit. Les réponses acceptables sont énumérées ci-dessous. Dans certains cas, une explication supplémentaire doit être fournie, par exemple pour indiquer le mode utilisé pour collecter les informations. Si la réponse est « oui, avec un autre mode », l'utilisateur doit saisir un commentaire dans le champ dédié à la question. Les réponses possibles à cette question sont :\n\n– Oui, conformément à IPC-1755 [par ex., CMRT]\n– Oui, avec un autre mode (donnez des explications)\n– Non\n\nCette question est obligatoire.","Esta é uma pergunta para divulgar se uma empresa solicita a seu fornecedor que preencha uma declaração de minerais de conflito. As respostas aceitáveis estão listadas abaixo; em determinados casos podem ser requeridas mais explicações, isto é, para fornecer o formato usado para colher informações. Se a resposta for “sim”, o usuário, usando outro formato, deverá fazer um comentário em um campo de comentário à pergunta.  As respostas aceitáveis a esta pergunta são:\n\n- Sim, em conformidade com o IPC-1755 [por exemplo, CMRT]\n- Sim,usando outro formato (descrever)\n- Não\n\nEsta pergunta é obrigatória.","F. Diese Frage dient der Bestimmung, ob ein Unternehmen von seinen Lieferanten verlangt, eine Erklärung zu Konfliktmineralien auszufüllen. Akzeptierte Antworten sind unten aufgeführt; in einigen Fällen können zusätzliche Erklärungen notwendig sein, um das Format der Informationserhebung anzugeben. Falls die Antwort „Ja“ lautet und ein anderes Format verwendet wird, sollte der Benutzer eine Beschreibung im Frage/Kommentar-Feld hinterlassen.  Erlaubte Antworten auf diese Frage sind:\n\n- Ja, konform mit IPC-1755 [z. B. CMRT]\n- Ja, unter Verwendung eines anderen Formats (bitte beschreiben)\n- Nein\n\nDiese Frage muss beantwortet werden.","F. Esta es una pregunta para revelar si una compañía solicita a su proveedor que llene una declaración de minerales en conflicto. Las respuestas aceptables se enumeran a continuación, en ciertos casos pudiera solicitarse más información, p. ej., proporcionar el formulario utilizado para recabar la información. Si la respuesta es afirmativa, el usuario, en otro formato, deberá indicar comentarios en el campo de comentarios de la pregunta.  Las respuestas permitidas para esta pregunta son:\n\n- Sí, de conformidad con IPC-1755 [p. ej. CMRT]\n- Sí, a través de otro formulario (describa)\n- No\n\nEsta pregunta es obligatoria.","F. Questa è una dichiarazione volta a comunicare se una società richiede al proprio fornitore di compilare una dichiarazione relativa ai minerali di conflitto. Le risposte accettate sono elencate in basso, ma in alcuni casi può essere necessario fornire ulteriori dettagli, ad esempio per indicare il formato utilizzato per la raccolta delle informazioni. Se la risposta è \"Sì\", l'utente dovrà inserire un commento nel campo commenti qualora utilizzi un formato diverso.  Le risposte a questa domanda sono:\n\n- Sì, in conformità con IPC-1755 [ad es., CMRT]\n- Sì, utilizzando un altro formato (descrivere)\n- No\n\nQuesta domanda è obbligatoria.","F. Bu soru bir şirketin tedarikçilerinden ihtilaf konusu maden beyanı doldurmalarını isteyip istemediğini tespit etmeyi amaçlamaktadır. Kabul edilebilir olan yanıtlar aşağıda listelenmiştir, belirli durumlarda bir açıklama (bilgi toplama biçimini açıklama gibi) gerekebilir. Yanıt, Evet ise kullanıcı diğer biçimi kullanarak açıklama kısmında bir yorumda bulunmalıdır.  Bu soruya aşağıdaki şekillerde yanıt verilebilir:\n\n- Evet, IPC-1755 [ör, CMRT] standardına uygun olarak\n- Evet, diğer biçimi kullanarak (açıklayın)\n- Hayır\n\nBu soru zorunludur."]
[{"$f":"B42&C42","v":"InstructionsA44"},"Instructions","A44","G. Please answer “Yes” or “No”.  In the comments section, you can provide additional information on your approach. Examples could be:\n\n “3rd party audit” - on-site audits of your suppliers conducted by independent third parties.  \n “Documentation review only” - a reviewof supplier submitted records and documentation conducted by independent third parties and, or your company personnel.   \n “Internal audit” - on-site audits of your suppliers conducted by your company personnel.\n\nThis question is mandatory.","G. 请答复“是”或“否”。在注释部分，贵公司可提供贵公司所采用方法的其他信息。示例：\n\n “第三方审核”- 由独立第三方进行的供应商现场审核。\n “仅审核文件编制情况”- 对供应商提交的记录以及由独立第三方或贵公司工作人员进行的文件编制予以审核。\n “内部审核”- 由贵公司工作人员进行的供应商现场审核。\n\n此问题必须作答。","G.「Yes（はい）」又は「No（いいえ）」で回答してください。コメント欄では、アプローチに関する追加の情報を記入することができます。例：\n\n 「第三者監査」 - 独立した第三者機関が実施するサプライヤーのオンサイト監査。\n 「書類審査のみ」 - 独立した第三者機関又は社内担当者がサプライヤーから提出された記録・書類を審査する。\n 「内部監査」 - 社内担当者が実施するサプライヤーのオンサイト監査。\n\nこの質問への回答は必須です。","G. 질문에 “Yes” 또는 “No”로 답변하십시오. 접근 방식에 대한 추가 정보는 의견란에 작성할 수 있습니다. 예를 들면, 다음과 같습니다. \n\n “제3자 감사” - 귀사의 공급업체에 대해 독립된 제3자가 현장 감사 시행. \n “문서만 검토” - 공급업체가 제출한 기록과 문서를 독립된 제3자 및/또는 귀사의 직원이 검토. \n “내부 감사” - 귀사 공급자에 대해 귀사의 직원이 현장 감사 시행. \n\n이 질문의 답변은 필수입니다","G. Veuillez répondre « oui » ou « non ». Vous pouvez détailler votre approche dans la section des commentaires. Exemples :\n\n « Audit d'un tiers » : audits sur site de vos fournisseurs menés par des tiers indépendants.  \n « Examen des documents uniquement » : examen des archives et documents du fournisseur par des tiers indépendants ou le personnel de votre société.   \n « Audit interne » : audits sur site de vos fournisseurs menés par le personnel de votre société.\n\nCette question est obligatoire.","G. Responda “sim” ou “não”.  Na seção “comentários”, você poderá prestar informações adicionais sobre sua abordagem. Os exemplos poderiam ser:\n\n “Auditoria de terceiros” - auditorias no local de seus fornecedores, realizadas por terceiros independentes.  \n “Somente revisão de documentação” - uma revisão de registros e documentação enviadas pelo fornecedor, realizada por terceiros independentes e/ou pessoal de sua empresa.   \n “Auditoria interna” - auditorias no local de seus fornecedores, realizadas por pessoal da sua empresa.\n\nEsta pergunta é obrigatória.","G. Bitte antworten Sie mit „Ja“ oder „Nein“.  Im Kommentarfeld können Sie weitere Informationen zu Ihrem Ansatz bereitstellen. Beispiele sind:\n\n „Drittpartei-Prüfung“ – von einer unabhängigen Drittpartei durchgeführte Prüfung Ihrer Lieferanten direkt vor Ort.  \n „Nur Dokumentenprüfung“ – eine Prüfung der vom Lieferanten eingereichten Aufzeichnungen und Dokumente, durchgeführt von einer unabhängigen Drittpartei oder Ihrem Unternehmenspersonal.   \n „Interne Prüfung“ – von Ihrem Unternehmenspersonal durchgeführte Prüfung Ihrer Lieferanten direkt vor Ort.\n\nDiese Frage muss beantwortet werden.","G. Responda la pregunta con “Sí” o “No”.  En la sección de comentarios, indique comentarios adicionales sobre su enfoque. Algunos ejemplos pudieran ser:\n\n “Auditoría por terceros” - auditorías in-situ de sus proveedores realizadas por terceros independientes.  \n “Revisión de documentación solamente” - una revisión de registros y documentos presentados por el proveedor realizada por terceros independientes, o por personal de su compañía.   \n “Auditoría interna” - auditorías in-situ de sus proveedores realizadas por personal de su compañía.\n\nEsta pregunta es obligatoria.","G. Si prega di rispondere “Sì” o “No”.  Nella sezione dei commenti, è possibile fornire ulteriori informazioni relative al proprio approccio. Alcuni esempi:\n\n \"Verifica di terze parti\" - verifiche dei fornitori in loco condotte da terze parti indipendenti.  \n \"Analisi della sola documentazione\" - verifica di registri e documenti presentati dal fornitore, condotta da terze parti indipendenti e dal personale della società.    \n \"Verifica interna\" - verifiche dei fornitori in loco condotte dal personale della società.\n\nQuesta domanda è obbligatoria.","G. Lütfen \"Evet\" veya \"Hayır\" şeklinde yanıt verin.  Açıklamalar bölümünde, yaklaşımınız ile ilgili ilave bilgiler girebilirsiniz. Örnekler şunları içerebilir:\n\n \"3. kişi denetimleri\" - bağımsız üçüncü kişiler tarafından gerçekleştirilen tesis içi denetimler.  \n \"Yalnızca belgelendirme değerlendirmesi\" - tedarikçinin verdiği kayıtların ve bağımsız üçüncü kişiler veya şirket personeliniz tarafından hazırlanan belgelerin değerlendirilmesi.   \n \"Kurum içi denetim\" - şirket personelinizin tedarikçileriniz üzerinde yerinde gerçekleştirdiği denetimler.\n\nBu soru zorunludur."]
[{"$f":"B43&C43","v":"InstructionsA45"},"Instructions","A45","H. This is a question to disclose whether a company’s review process includes corrective action management. The answer to this question shall be \"yes\" or \"no.\" Comments shall be captured in a question comment field. \n\nThis question is mandatory.","I. 此问题是要披露公司是否受 SEC 规则规限。请以“是”或“否”来回答此问题。须在问题注释字段提供说明。此问题必须作答。要了解更多信息，请参见 www.sec.gov。","H.これは、会社の審査プロセスに是正措置管理が含まれているかどうかを明らかにするための質問です。「Yes（はい）」又は「No（いいえ）」で回答してください。コメントは、質問コメントフィールドに記入してください。\n\nこの質問への回答は必須です。","H. 이 질문은 회사의 검토 프로세스에 시정 조치 관리가 포함되어 있는지 여부를 공개하기 위한 것입니다. 이 질문에 대한 답은 \"Yes\" 또는 \"No\"여야 합니다. 추가 설명은 질문에 대한 의견 기재란에 기입하십시오. \n\n이 질문의 답변은 필수입니다","H. Il s'agit d'une question qui permet d'indiquer si le processus d'examen de la société intègre la gestion des actions correctives. La réponse à cette question doit être « oui » ou « non ». Les commentaires doivent être saisis dans le champ dédié à la question. \n\nCette question est obligatoire.","H. Esta é uma pergunta para divulgar se o processo de revisão da empresa inclui gestão de ações corretivas. A resposta a esta pergunta deverá ser “sim” ou “não”. Os comentários serão capturados em um campo de comentário à pergunta. \n\nEsta pergunta é obrigatória.","H. Diese Frage dient der Bestimmung, ob das Prüfungsverfahren eines Unternehmens ein Abhilfemaßnahmen-Management umfasst. Die Antwort auf diese Frage muss „Ja“ oder „Nein“ lauten. Anmerkungen sollten in einem Frage/Kommentar-Feld festgehalten werden. \n\nDiese Frage muss beantwortet werden.","H. Esta pregunta revela si el proceso de revisión de la compañía incluye administración de acciones correctivas. La respuesta a esta pregunta debe ser \"sí\" o \"no\". Los comentarios deberán llenarse en el campo de comentarios de dicha pregunta. \n\nEsta pregunta es obligatoria.","H. Questa domanda è volta a comunicare se il processo di verifica della società prevede la gestione di azioni correttive.  La risposta a questa domanda può essere \"sì\" o \"no\". I commenti devono essere inseriti nel campo commenti.\n\nQuesta domanda è obbligatoria.","H. Bu soru şirketin değerlendirme sürecinin düzeltici eylem yönetimi içerip içermediğini açıklamak içindir. Bu soruya evet ya da hayır şeklinde yanıt verilmelidir. Yorumlar sorunun açıklama kısmında yansıtılmalıdır. \n\nBu sorunun cevaplaması zorunludur."]
["InstructionsA46","Instructions","A46","I. This is a question to disclose whether a company is subject to the SEC rule. The answer to this question shall be \"yes\" or \"no.\" Comments shall be captured in a question comment field. This question is mandatory. For more information please refer to www.sec.gov.","I. 此问题是要披露公司是否受 SEC 规则规限。请以“是”或“否”来回答此问题。须在问题注释字段提供说明。此问题必须作答。要了解更多信息，请参见 www.sec.gov。","I.これは、会社がSEC規則の対象となるかどうかを明らかにするための質問です。「Yes（はい）」又は「No（いいえ）」で回答してください。コメントは、質問コメントフィールドに記入してください。この質問への回答は必須です。詳細情報については、www.sec.govをご覧ください。","I. 이 질문은 회사가 SEC 규칙의 적용 대상인지 여부를 공개하기 위한 것입니다. 이 질문에 대한 답은 \"Yes\" 또는 \"No\"여야 합니다. 추가 설명은 질문에 대한 의견 기재란에 기입하십시오. 이 질문의 답변은 필수입니다.  자세한 내용은 www.sec.gov를 참조하십시오. ","I. Cette question permet d'indiquer si une société est assujettie à la règle SEC. La réponse à cette question doit être « oui » ou « non ». Les commentaires doivent être saisis dans le champ dédié à la question. Cette question est obligatoire. Pour en savoir plus, veuillez consulter le site www.sec.gov.","I. Esta é uma pergunta para divulgar se uma empresa está sujeita à regra da SEC. A resposta a esta pergunta deverá ser “sim” ou “não”. Os comentários serão capturados em um campo de comentário à pergunta. Esta pergunta é obrigatória. Para mais informações, consulte www.sec.gov.","I. Diese Frage dient der Bestimmung, ob ein Unternehmen in den Geltungsbereich der SEC-Regel fällt. Die Antwort auf diese Frage muss „Ja“ oder „Nein“ lauten. Anmerkungen sollten in einem Frage/Kommentar-Feld festgehalten werden. Diese Frage muss beantwortet werden. Wenden Sie sich für weitere Informationen an www.sec.gov.","I. Esta pregunta revela si la compañía está sujeta a una regla de la SEC.  La respuesta a esta pregunta debe ser \"sí\" o \"no\". Los comentarios deberán llenarse en el campo de comentarios de dicha pregunta. Esta pregunta es obligatoria. Para más información, consulte www.sec.gov.","I. Questa domanda serve a comunicare se la società è soggetta al regolamento della SEC. La risposta a questa domanda può essere \"sì\" o \"no\". I commenti devono essere inseriti nel campo commenti. Questa domanda è obbligatoria. Per maggiori informazioni, visitare il sito www.sec.gov.","I. Bu soru şirketin SEC kuralına tabi olup olmadığını ifade eder. Bu soruya \"evet\" ya da \"hayır\" şeklinde yanıt verilmelidir. Yorumlar sorunun açıklama kısmında yansıtılmalıdır. Bu soru zorunludur. Daha fazla bilgi için lütfen www.sec.gov adresine başvurun."]
["InstructionsA47","Instructions","A47","Instructions for completing the Smelter List Tab.\nProvide answers in ENGLISH only","冶炼厂列表选项卡的填写说明。请仅以英文作答","Smelter List（製錬業者リスト）シートの記入に関する解説\n回答は英語（半角）で入力してください。","제련소 리스트 답변 안내서. \n답변은 반드시 영어로 기입해야 합니다.","Instructions pour compléter la liste des fonderies\nMerci de répondre en ANGLAIS uniquement","Instruções para completar a aba da Lista de Fundições.\nFornecer respostas somente em INGLÊS.","Anleitung zum Ausfüllen des Reiters \"Smelter List\". Bitte machen Sie ihre Angaben nur in englischer Sprache.","Instrucciones para completar el Tab de Lista de fundidores. Proporcione las respuestas en INGLES solamente\n ","Istruzioni per il completamento della lista delle fonderie.\nSi prega di rispondere unicamente in IngleseIs","İzabe Tesisi Listesi Sekmesinin doldurulması ile ilgili talimatlar.\nYanıtları yalnızca İNGİLİZCE olarak verin"]
["InstructionsA48","Instructions","A48","Note:  Columns with (*) are mandatory fields","注：带星号 (*) 列表示必填字段。","注：(*)のある欄は必須項目です。","주의 : *별표가 있는 항목은 반드시 기입해야 합니다. ","Remarque: Les colonnes avec un astérisque (*) indiquent des champs obligatoires","Nota: Colunas com (*) são campos  de preenchimento obrigatórios.","Hinweis: Spalten mit (*) sind Pflichtfelder","Nota: Las columnas con (*) son campos obligatorios.","Note: le colonne con asterisco (*) identificano dei campi a risposta obbligatoria","Not: (*) ile işaretlenmiş sütunların doldurulması zorunludur"]
["InstructionsA49","Instructions","A49","This template allows for smelter identification using the Smelter Look-up.  Columns B, and C must be completed in order from left to right to utilize the Smelter Look-up feature.\nUse a separate line for each metal/smelter/country combination.","此模板允许使用冶炼厂查找来识别具体的冶炼厂。必须按从左到右的顺序填写 B 列和 C 列，以使用冶炼厂查找功能。\n对于各金属/冶炼厂/国家或地区组合，应使用分割线。","このテンプレートは、Smelter Look-up （製錬所検索）を使用して製錬所を識別することができます。Smelter Look-Up機能を利用するには、左から右へ順にB列とC列を記入する必要があります。\n金属/製錬所/国の組み合わせごとに別々の行を使用します。","이 템플릿에는 제련소를 식별할 수 있는 제련소 찾기 기능이 있습니다. 제련소 찾기 기능을 사용하려면 B 및 C열을 왼쪽에서 오른쪽으로 작성해야 합니다. \n각 광물/제련소/국가 조합에는 별도의 줄을 사용하십시오.","Ce modèle permet l'identification de la fonderie à l'aide de la Recherche de fonderie. L'utilisation de cette fonctionnalité implique de renseigner les colonnes B et C dans l'ordre, et de gauche à droite.\nUtilisez une ligne différente pour chaque combinaison métal/fonderie/pays.","Este modelo permite a identificação da fundição usando a Lista de Referência de Fundições. As colunas B e C devem ser completadas da esquerda para a direita, para que seja possível utilizar o recurso Exame da Fundição.\nUtilize uma linha separada para cada combinação metal/fundição/país.","Diese Vorlage ermöglicht die Identifikation eines Schmelzofens anhand der Schmelzofensuche. Spalten B und C müssen in der richtigen Reihenfolge von links nach rechts ausgefüllt werden, um die Schmelzofensuchfunktion nutzen zu können.\nVerwenden Sie eine separate Reihe für jede Metall/Schmelzofen/Land-Kombination.","Esta plantilla permite la identificación de las fundidoras utilizando la búsqueda de Fundidoras. Las columnas B y C deben llenarse de izquierda a derecha para utilizar la función de búsqueda de Fundidoras.\nUtilice un renglón separado para cada combinación metal/fundidora/país.","Questo modello consente di identificare le fonderie tramite la Ricerca fonderia. Le colonne B e C devono essere completate da sinistra a destra per utilizzare la funzionalità di Ricerca fonderia.\nUtilizzare una riga diversa per ciascuna combinazione di metallo/fonderia/paese.","Bu şablon, İzabe Tesisi Arama Listesi kullanılarak izabe tesisi tanımlanabilmesini sağlar. İzabe Tesisi Arama Listesi işlevinin kullanılabilmesi için B ve C sütunlarının soldan sağa doğru doldurulması gerekmektedir.\nHer bir metal/izabe tesisi/ülke kombinasyonu için ayrı bir satır kullanın."]
["InstructionsA50","Instructions","A50","1. Smelter Identification Input Column - If you know the Smelter Identification Number, input the number in Column A (columns B, C, E, F, G, I, and J will auto-populate).  Column A does not autopopulate.","1. 冶炼厂识别输入列 - 如果您知道冶炼厂识别号码，请在 A 列输入号码（B、C、E、F、G、I 和 J 列将自动填入）。A 列不会自动填入。","1. 製錬業者識別番号の入力列－製錬業者識別番号が分かる場合は、その番号をA列に入力してください（B列、C列、E列、F列、G列、I列、およびJ列は自動入力されます）。A列は自動入力されません。","1. 제련소 ID 입력 열 – 제련소 ID 번호를 아는 경우 A열에 번호를 입력합니다(B, C, E, F, G, I 및 J열은 자동으로 입력됨). A열은 자동으로 입력되지 않습니다. ","1. Colonne d’entrée de l’identification de la fonderie. Si vous connaissez le numéro d’identification de la fonderie, saisissez-le dans la colonne A (les colonnes B, C, E, F, G, I et J se rempliront automatiquement). La colonne A ne se remplit pas automatiquement.","1. Coluna de entrada de identificação de fundição - se souber o número de identificação de fundição, coloque-o na coluna A (as colunas B, C, E, F, G, I e J são de preenchimento automático).  A coluna A não preenche automaticamente.","1. Eingabespalte Schmelzofenidentifizierung – Wenn Sie die Schmelzofenidentifizierungsnummer kennen, geben Sie die Nummer in Spalte A ein (Spalten B, C, E, F, G, I und J füllen sich automatisch aus).  Spalte A füllt sich nicht automatisch aus.","1. Columna para ingresar la identificación del fundidor: si conoce el número de identificación del fundidor, ingréselo en la columna A (las columnas B, C, E, F, G, I y J se completarán automáticamente). La columna A no se completa en forma automática.","1. Colonna di immissione identificativo fonderia - Se si conosce il numero identificativo della fonderia, immetterlo nella colonna A (le colonne B, C, E, F, G, I e J verranno popolate automaticamente). La colonna A non viene popolata automaticamente.","1. İzabe Tesisi Tanımlaması Giriş Sütunu - İzabe Tesisi Tanımlama Numarasını biliyorsanız A sütununa girin (B, C, E, F, G, I ve J sütunları otomatik olarak doldurulur).  A sütunu otomatik olarak doldurulmaz."]
[{"$f":"B49&C49","v":"InstructionsA51"},"Instructions","A51","2. Metal (*)   -   Use the pull down menu to select the metal for which you are entering smelter information.  This field is mandatory.","21. 金属 (*) - 在下拉菜单中，选择正在输入信息的冶炼厂所提炼的金属。 此为必填字段。","2. 金属(*) － ドロップダウンメニューを使用して、製錬業者情報を入力する該当金属を選択してください。この欄は必須です。","2. 금속(*) - 드랍다운 메뉴를 이용하여 제련소 정보를 입력하려는 금속을 선택하시오.  이 필드는 필수입니다.","2. Métal (*) – Utiliser la liste déroulante pour sélectionner le métal pour lequel vous entrez l’information. Ce champ est obligatoire.","2. Metal (*) - Utilize a lista do menu para selecionar o metal para o qual está a inserir a informação sobre a fundição. \nEste campo é obrigatório","2.  Metall ( * ) - Verwenden Sie das Pull-down-Menü, um das Metall auszuwählen,  für welches Sie Informationen über den Schmelzer eingeben. Dies ist ein Pflichteingabefeld.","2.- Metal (*)   -   Use el menú de opciones para seleccionar el metal para el cual estas capturando la información del fundidor. Este campo es obligatorio.","2. Metallo (*) - Usare il menu a tendina per selezionare il metallo per il quale state inserendo l'informazione sulle fonderie. Questo campo è obbligatorio","2. Metal (*) - İzabe tesisi bilgilerini girdiğiniz metali seçmek için açılır menüyü kullanın. Bu alanın doldurulması zorunludur."]
["InstructionsA52","Instructions","A52","3. Smelter Look-up (*) - Select from dropdown.  This is the list of known smelters as of template release date.  If smelter is not listed select 'Smelter Not Listed'.  This will allow you to enter the name of the smelter in Column D.  If you do not know the name or location of the smelter, select 'Smelter Not Yet Identified.'  For this option,  columns D and E will autopopulate to say, 'unknown.'  This field is mandatory.","3. 冶炼厂查找 (*) - 从下拉菜单中选择。列表列出了模板发布时已知的冶炼厂。如果冶炼厂不在列表中，请选择“冶炼厂未列出”。此时，您可以将该冶炼厂的名称输入 D 列。如果您不知道冶炼厂的名称或地点，请选择“冶炼厂尚未被识别”。如选择此选项，D 和 E 列将会自动填入“未知”。此为必填字段。","3. Smelter Look-up（製錬所検索）（*） - ドロップダウンから選択します。ここに、テンプレート発行日時点の既知の製錬業者名が列記されています。製錬業者がここにない場合、「Smelter not listed（製錬業者が表に含まれていない）」を選択してください。これを選択すると、製錬業者名をＤ列に記入できるようになります。製錬業者の名前や所在地が分からない場合は、「Smelter not yet identified（製錬業者を特定していない）」を選択してください。これを選択すると、Ｄ列とE列には「Unknown（不明）」と自動入力されます。この欄は必須です。","3. 제련소 찾기 (*) - 드롭다운에서 선택합니다. 이것은 템플릿 발표일을 기준으로 알려진 제련소 목록입니다. 제련소가 목록에 없으면 '제련소명 없음(Smelter Not Listed)'을 선택합니다. 이렇게 하면 D열에서 제련소명을 입력할 수 있습니다. 제련소명이나 위치를 모르는 경우 '제련소가 아직 식별되지 않음(Smelter Not Yet Identified)'을 선택합니다. 이 옵션의 경우 D열과 E열이 '모름(unknown)'으로 자동으로 입력됩니다. 이 기재란은 필수 사항입니다. ","3. Recherche de fonderie (*) : sélectionner dans le menu déroulant. Il s’agit de la liste des fonderies identifiées à la date de publication du formulaire. Si la fonderie ne figure pas dans la liste, choisissez « La fonderie ne figure pas dans la liste ». Cela vous permettra de saisir le nom de la fonderie dans la colonne D. Si vous ne connaissez pas le nom ou l’emplacement de la fonderie, choisissez « La fonderie n’est pas encore identifiée ». Dans ce cas, les colonnes D et E indiqueront automatiquement « inconnu ». Ce champ est obligatoire.","3. Lista de Referência de Fundições (*) - Selecionar no menu suspenso.  Essa é a lista de fundições conhecidas na data de divulgação do modelo.  Se a fundição não estiver listada, selecione \"Fundição não listada\".  Isso permitirá inserir o nome da fundição na coluna D. Se não souber o nome ou local da fundição, selecione \"Fundição ainda não identificada\".  Nessa opção, as colunas D e E serão preenchidas automaticamente com \"desconhecida\".  Este campo é obrigatório.","3. Schmelzofensuche (*) – Aus Drop-down-Menü auswählen.  Das ist die Liste der bekannten Schmelzöfen zum Veröffentlichungsdatum der Vorlage.  Falls der Schmelzofen nicht auf der Liste ist, wählen Sie „Schmelzofen nicht aufgeführt“ aus.  Dies erlaubt Ihnen, den Namen des Schmelzofens in Spalte D einzugeben. Falls Sie den Namen oder den Standort des Schmelzofens nicht kennen, wählen Sie „Schmelzofen noch nicht identifiziert“ aus.  Für diese Option füllen sich die Spalten D und E automatisch z. B. zu „unbekannt“ aus.  Dieses Feld muss ausgefüllt werden.","3. Búsqueda de fundidoras(*): seleccione una opción de la lista desplegable.  Esta es la lista de fundidoras conocidas a la fecha de publicación de la plantilla.  Si la fundidora no aparece, seleccione la opción \"Smelter Not Listed\" (Fundidora no registrada).  Esto le permitirá ingresar el nombre de la fundidora en la columna D. Si no conoce el nombre ni la ubicación de la fundidora, seleccione la opción \"Smelter Not Yet Identified\" (Fundidora aún no identificada).  Si selecciona esta opción, las columnas D y E se llenarán automáticamente con la palabra \"unknown\" (desconocido).  Este campo es obligatorio.","3. Ricerca fonderia (*) - Selezionare un'opzione dal menu a tendina.  Questa è la lista di fonderie note alla data di pubblicazione del modello.  Se la fonderia non è inclusa nella lista, selezionare “Fonderia non presente”.  Ciò consentirà di individuare il nome della fonderia nella colonna D. Se non si conosce il nome o la sede della fonderia, selezionare “Fonderia non ancora identificata”.  Per questa opzione, le colonne D ed E verranno popolate automaticamente con “sconosciuto”.  Questo campo è obbligatorio.","3. İzabe Tesisi Arama Listesi (*) - Açılır menüden seçim yapın.  Bu, şablonun yayınlanma tarihi itibariyle bilinen izabe tesisi listesidir.  İzabe tesisi listelenmemişse, \"İzabe Tesisi Listelenmemiş\" ögesini seçin.  Bu, izabe tesisinin adını D sütununa girmenizi sağlayacaktır. İzabe tesisinin adını veya konumunu bilmiyorsanız, \"İzabe Tesisi Henüz Tanımlanmamış\" ögesini seçin.  Bu seçenek için, D ve E sütunları otomatik olarak \"bilinmiyor\" şeklinde doldurulur.  Bu alanın doldurulması zorunludur."]
["InstructionsA53","Instructions","A53","4. Smelter Name (1)- Fill in smelter name if you selected \"Smelter Not Listed\" in column C.  This field will auto-populate when a smelter name in selected in Column C.  This field is mandatory.","4. 冶炼厂名称 (1) - 如果选择 C 列中的冶炼厂名称，请填写冶炼厂的名称。如果选择 C 列中的“冶炼厂未列出”，此字段将自动填入。此为必填字段。","4. 製錬業者名(1)　－　C列で「Smelter not listed（製錬業者が表に含まれていない）」を選択した場合、製錬業者名を記入してください。C列で製錬業者名を選択した場合には、この欄は自動入力されます。この欄は必須です。","4. 표준 제련소 이름 (1) - 'C'열에 '나열되지 제련소'를 선택한 경우, 제련소 이름을 기입하시오.  'C'열에 제련소 이름을 선택한 경우에는 이필드가 자동으로 채워집니다.  이 필드는 필수입니다.","4. Nom de la fonderie (1) - Saisissez le nom de la fonderie si vous avez sélectionné 'fonderie non répertoriée' dans la colonne C. Ce champ est automatiquement renseigné lorsqu'un nom de fonderie est sélectionné dans la colonne C. Ce champ est obligatoire.","4. Nome da Fundição (1) - Preencher o nome da fundição se selecionou \"Fundição não listada\" na coluna C. Este campo irá replicar-se automaticamente quando o nome de uma fundição for selecionado na coluna C. Este campo é obrigatório.","4. Schmelzer Name ( 1 ) - Füllen Sie den Namen des Schmelzers in Spalte C ein, wenn Sie  \"Schmelzer nicht aufgelistet\" ausgewählt haben.  Dieses Feld wird automatisch ausgefüllt, wenn ein Schmelzer in Spalte C ausgewählt wurde. Dies ist ein Pflichteingabefeld.","4. Nombre del fundidor (1)- Proporcione el nombre del fundidor si seleccionaste \" Fundidor no listado\" en la columna C. Este campo se llenara automáticamente cuando un nombre de fundidor es seleccionado en la columna C. Este campo es obligatorio.","4. Nome della fonderia (1) -  Inserire il nome della fonderia se avete selezionato \" fonderia non presente\" nella colonna C. Questo campo verrà popolato automaticamente quando verrà inserito il nome dell fonderia nella colonna C.  Questo campo è obbligatorio.","4. İzabe Tesisi Adı (1) - C Sütununda \"İzabe Tesisi Listelenmemiş\" öğesini seçtiyseniz, bir izabe tesisi adı girin. Bu alan, C Sütununda bir izabe tesisi adı seçildiğinde otomatik olarak doldurulacaktır. Bu alanın doldurulması zorunludur."]
["InstructionsA54","Instructions","A54","5. Smelter Country (*) – This field will auto-populate when a smelter name is selected in column C. If you selected \"Smelter Not Listed\" in column C, use the pull down menu to select the country location of the smelter.  This field is mandatory.","5. 冶炼厂所在国家或地区 (*) - 如果选择 C 列中的冶炼厂名称，此字段会自动填入。如果选择 C 列中的“冶炼厂未列出”，请使用下拉菜单，选择冶炼厂所在国家或地区。此为必填字段。","5. 製錬業者所在地：国(*)　－　C列で製錬業者名を選択した場合には、この欄は自動入力されます。C列で「Smelter Not Listed（製錬業者が表に含まれていない）」を選択した場合、ドロップダウンメニューの中から、製錬業者の所在する国を選択してください。この欄は必須です。","5. 제련소 국가 (*) - 'C'열에 제련소 이름을 선택한 경우에는 이필드가 자동으로 채워집니다.  'C'열에 '나열되지 제련소'를 선택한 경우,  제련소 국가 위치를 풀다운 메뉴에서 선택하십시오.  이 필드는 필수입니다.","5. Pays de la fonderie (*) - Ce champ est automatiquement renseigné lorsque le nom de la fonderie est sélectionné dans la colonne \"C\". Si vous avez sélectionné \"fonderie non répertoriée\" dans la colonne \"C\", utilisez le menu déroulant pour sélectionner le pays de la fonderie. Ce champ est obligatoire.","5. País da Fundição (*) - Este campo irá replicar-se automaticamente quando o nome de uma fundição for selecionada na coluna C. Se selecionar \"Fundição não listada\" na coluna C, use a lista do menu para selecionar o país de origem da fundição. Este campo é obrigatório.","5. Schmelzer Land ( * ) -  Dieses Feld wird automatisch ausgefüllt, wenn ein Schmelzer in Spalte C ausgewählt ist. Wenn Sie \"Schmelzer nicht aufgelistet\" ausgewählt haben, benutzen Sie bitte das Pull-down Menü, um das Herkunftsland des Schmelzers auszuwählen. Dies ist ein Pflichteingabefeld.","5. País del fundidor (*)- Este campo se llenara automáticamente cuando el nombre del fundidor sea seleccionado en la columna C. Si usted selecciona \" Fundidor no listado\" en columna C, use el menú de opciones para seleccionar el país del proveedor. Este campo es mandatorio.","5. Localizzazione della fonderia (indirizzo) -  Indicare l'indirizzo della fonderia che tratta i minerali che entrano nella vostra filiera di fornitura. Si tratta della sede operativa della fonderia dove il minerale viene processato. Non inserire l'indirizzo della sede legale della fonderia.  \n","5. İzabe Tesisi Ülkesi (*) â Bu alan, C Sütununda bir izabe tesisi adı seçildiğinde otomatik olarak doldurulacaktır. C Sütununda \"İzabe Tesisi Listelenmemiş\" öğesini seçtiyseniz, izabe tesisinin bulunduğu ülkeyi seçmek için açılır menüyü kullanın. Bu alanın doldurulması zorunludur."]
[{"$f":"B53&C53","v":"InstructionsA55"},"Instructions","A55","6. Smelter Identification - This is a unique identifier assigned to a smelter or refiner according to an established smelter and refinery identification system. It is expected that multiple names or aliases could be used to describe a single smelter or refiner and therefore multiple names or aliases could be associated to a single ‘Smelter ID’.","6. 冶炼厂识别 - 依据冶炼厂和精炼厂识别系统每一冶炼厂或精炼厂均有一独一无二的标识。相信会有一间冶炼厂或一间精炼厂存在多个名称的情况出现。 因此，唯一的冶炼厂标识能将其他名称和别名进行统一。 ","6. 製錬業者識別番号　－　 これは確立された製錬・精製業者の識別システムに従い、製錬・精製業者に割り当てられた固有の識別番号です。一つの精錬・精製業者を表記するために、複数の名前や別名が使用されることが予想されるため、複数の名前や別名を単一の「製錬業者識別番号」に結びつけることができます。","6. 제련소 식별 - 이것은 제련소와 정제소 식별 시스템에 따라 제련소와 정제소에 할당된 고유한 식별자입니다. 다수의 이름이나 별칭이 한 제련소 또는 정제소를 묘사하기 위해 사용되어 질 것으로 보여,  다수의 이름이나 별칭을 하나의 \"Smelter ID\"로 연결합니다.","6. Identification  de la fonderie - Il s'agit d'un identifiant unique attribué à chaque fonderie ou affineur selon un système d'identification des fonderies et des affineries. Plusieurs noms ou désignations peuvent être utilisés pour décrire un unique fondeur ou affineur et donc ces noms ou désignations multiples pourraient être associés à un seul \"Smelter ID\".","6. Identificação da fundição - Esta é uma identificação única atribuída à fundição ou refinaria de acordo com um sistema estabelecido de identificação de fundições e refinarias. É expectável que múltiplos nomes ou pseudónimos possam ser usados para descrever uma única fundição ou refinaria e deste modo múltiplos nomes ou pseudónimos possam ser associados a uma só \"ID de Fundição\".","6. Schmelzer Identifikation - Dies ist eine eindeutige ID, welche nach einem festgelegten Suspensionsofen Identifikations System einem Stahlwerk oder Walzwerk zugewiesen ist. Es ist davon auszugehen, dass mehrere Namen oder Decknamen für die Bezeichnung einer einzigen Aluminiumhütte oder Walzwerk verwendet werden und daher mehrere Namen oder Decknamen mit einer einzigen \"Smelter-ID\" verbunden sein können.","6. Identificación del fundidor - Este es un identificador único asignado al fundidor o refinador de acuerdo a un sistema establecido del fundidor y refinador.  Se espera que nombre múltiples a alias pueden ser usados para describir al fundidor o refinador y por lo tanto múltiples nombres o alias pueden ser usados para a un solo \"ID del fundidor\".","6. Identificazione della fonderia -  Questo è un identificatore univoco assegnato a una fonderia o raffinatore secondo un sistema di identificazione stabilito di una fonderia e raffineria. Si prevede che più nomi o alias potrebbero essere utilizzati per descrivere una singola fonderia o raffinatore e quindi più nomi o alias potrebbero essere associati ad un unico  ID.","6. İzabe Tesisi Tanımlaması - Bu, mevcut izabe tesisi ve rafineri tanımlama sistemine göre bir izabe tesisi ya da rafineriye atanan benzersiz bir tanımlayıcıdır. Tek bir izabe tesisi veya rafinerinin tanımlanması için birden fazla ad ya da rumuz kullanılabilmekte, bu nedenle birden fazla ad ya da rumuz tek bir ‘İzabe Tesisi Kimliği’ ile ilişkilendirilebilmektedir."]
[{"$f":"B54&C54","v":"InstructionsA56"},"Instructions","A56","7. Source of Smelter Identification Number - This is the source of the Smelter Identification Number entered in Column F.  If a smelter name was selected in Column C using the dropdown box, this field will auto-populate. ","7. 冶炼厂识别号码 - F 列包括所有的冶炼厂识别号码。 如果在 C 列中使用下拉框选择冶炼厂名称，此字段会自动填入。 ","7.製錬業者識別番号の発行元　－　これはF列に入力された製錬業者識別番号の発行元です。ドロップダウンボックスを使ってC列に製錬業者名を選択すると、この欄は自動入力されます。","7. 제련소 식별 번호의 출처 - 이것은 F열에 들어간 제련소 식별 번호의 출처입니다. 제련소 이름이 드랍다운 박스를 사용하여 Column C에서 선택되면, 이 열은 자동으로 덧붙여 집니다.","7. Type de l'identifiant de la fonderie - C'est la source du numéro d'identification de la fonderie identifiée dans la colonne F. Si un nom de fonderie a été sélectionné dans la colonne C en utilisant la liste déroulante, ce champ est automatiquement renseigné.","7. Número de Identificação da fonte da Fundição - Este é o número de Identificação da fonte da Fundição preenchido na coluna F. Se o nome de uma fundição for selecionada na coluna C usando a lista do menu, este campo irá replicar-se automaticamente.","7. Quelle der Schmelzer Identifikationsnummer - das ist die Quelle des Schmelzers, welche  in der Spalte F eingegeben wurde. Wenn ein Schmelzofen aus der Drop-down Box in Spalte C ausgewählt wurde, dann wird dieses Feld automatisch aufgefüllt werden.","7. Fuente del numero de identificación del fundidor - esta es la fuente del numero de identificación del fundidor capturado en el columna F. Si un nombre del fundidor fue seleccionado en la columna C usando el menú de opciones, este campo se llenara automáticamente.","7. Fonte del numero di identificazone della fonderia - Questa è l'origine del numero di identificazione della fonderia inserito nella colonna F. Se un nome di fonderia è stato selezionato nella colonna C utilizzando la casella a discesa, questo campo si auto popola.","7. İzabe Tesisi Tanımlama Numarası Kaynağı - Bu, F Sütununa girilen İzabe Tesisi Tanımlama Numarasının kaynağını ifade eder. Bu alan, C Sütununda açılır kutu ile bir izabe tesisi adı seçildiğinde otomatik olarak doldurulacaktır. "]
["InstructionsA57","Instructions","A57","8. Smelter Street -  Provide the street name on which the smelter is located. This field is optional.","8. 冶炼厂所在街道 - 提供冶炼厂所在街道的名称。此为选填字段。","8.  製錬業者所在地：番地　－　製錬所の所在する番地を記入してください。この欄は任意記入欄です。","8. 제련소 주소 - 제련소가 위치하고 있는 주소를 기입하십시오. 이 필드는 선택사항입니다.","8. Rue de la fonderie – indique le nom de la rue où est située la fonderie. Ce champ est facultatif.","8. Endereço da fundição – Forneça o nome da rua em que se localiza a fundição. Este campo é opcional.","8. Straße des Schmelzofens – Geben Sie den Straßennamen des Schmelzofenstandortes an. Das Ausfüllen dieses Feldes ist freiwillig.","8. Calle del fundidor: informe el nombre de la calle en la que se encuentra ubicado el fundidor.  El campo es opcional. ","8. Sedi delle Fonderie: strada/via - Inserire la via/strada della fonderia che esegue il trattamento di trasformazione dei minerali che entrano nella vostra catena di fornitura. Questo campo è facoltativo.","8. İzabe Tesisinin Bulunduğu Cadde - İzabe tesisinin yer aldığı caddenin adını girin. Bu alanın doldurulması isteğe bağlıdır."]
["InstructionsA58","Instructions","A58","9. Smelter City – Provide the city name of where the smelter is located. This field is optional.","9. 冶炼厂所在城市 - 提供冶炼厂所在城市的名称。此为选填字段。","9.  製錬業者所在地：市　－　製錬所の所在する市を記入してください。この欄は任意記入欄です。","9. 제련소 시 – 제련소가 위치하고 있는 도시를 기입하십시오. 이 필드는 선택사항입니다.","9. Ville de la fonderie – indique le nom de la ville où est située la fonderie. Ce champ est facultatif.","9. Cidade da fundição – Forneça o nome da cidade em que se localiza a fundição. Este campo é opcional.","9. Ort des Schmelzofens – Geben Sie den Namen des Ortes an, in dem sich der Schmelzofen befindet. Das Ausfüllen dieses Feldes ist freiwillig.","9.  Ciudad del fundidor: informe el nombre de la ciudad en la que se ubica el fundidor.  El campo es opcional.","9. Sedi delle Fonderie: città - inserire la città della fonderia che esegue il trattamento di trasformazione dei minerali che entrano nella vostra catena di fornitura.  Questo campo è facoltativo.","9. İzabe Tesisinin Bulunduğu Şehir – İzabe tesisinin bulunduğu şehrin adını girin. Bu alanın doldurulması isteğe bağlıdır."]
["InstructionsA59","Instructions","A59","10.. Smelter Location: State/Province, if applicable – Provide the state or province where the smelter is located. This field is optional.","10. 冶炼厂地点：州/省（如适用）- 提供冶炼厂所在的州/省。此为选填字段。","10.  製錬業者所在地： 州／県／省（該当する場合のみ回答）　－　製錬所の所在する州又は県を記入してください。この欄は任意記入欄です。","10. 제련소 위치: 도/주, 해당할 경우 – 제련소가 위치하고 있는 도나 주를 기입하십시오. 이 필드는 선택사항입니다.","10. Emplacement de la fonderie : État/province, le cas échéant – indique l’État ou la province où est située la fonderie. Ce champ est facultatif.","10. Localização da fundição: Estado ou província, quando aplicável – Forneça o estado ou a província em que se localiza a fundição. Este campo é opcional.","10. Standort des Schmelzofens: Ggf. Bundesland/Region/Provinz – Geben Sie das Bundesland oder die Region/Provinz des Schmelzofenstandortes an. Das Ausfüllen dieses Feldes ist freiwillig.","10.  Ubicación del fundidor:  Estado/Provincia, si corresponde: informe el estado o provincia en el que se ubica el fundidor.  El campo es opcional.","10. Sedi delle Fonderie:  Stato (se applicabile) - inserire lo Stato della fonderia che esegue il trattamento di trasformazione dei minerali che entrano nella vostra catena di fornitura. Questo campo è facoltativo.","10. İzabe Tesisinin Bulunduğu Konum: Uygun olduğunda, Eyalet/İl – İzabe tesisinin bulunduğu eyalet ya da ilin adını girin. Bu alanın doldurulması isteğe bağlıdır."]
["InstructionsA60","Instructions","A60","11. Smelter Contact Name – The Conflict Minerals Reporting Template (CMRT) is circulated among companies in the requesting company's supply chain to ensure compliance with the OECD Due Diligence Guidance for Responsible Supply Chains of Minerals from Conflict-Affected and High-Risk Areas and the U.S. Securities and Exchange Commission Final Rule on conflict minerals.\n\nIf the template is circulated in a country where laws protecting personal information exist, sharing personal contact information in the CMRT may violate related regulations. Therefore, it is recommended that the requesting company take precautions such as obtaining the contact person's permission to share the information with other companies in the supply chain when completing \"Smelter Contact Name\" and the \"Smelter Contact Email\" columns.\n\nIf you have permission to share this information, please fill in the name of the Smelter Facility Contact person who you worked with.","11. 冶炼厂联系人名称 - 冲突矿产报告模板 (CMRT) 在所要求到的申报人的供应链中各间公司统一使用, 确保各公司都符合经济合作与发展组织来自受冲突影响和高风险区域的矿石的负责任供应链的尽职调查指南的要求，并符合美国证劵交易所就冲突矿产问题公布的最终规则。\n\n如果在统一使用此报告模板中，所在国家或地区有保护个人信息的法律法规，填写个人联系信息会有可能触犯法律法规，则建议申报公司在填写“冶炼厂联系人姓名”和“冶炼厂联系人电子邮件”列时，先确保联系人本人同意公开其联系信息。                                   。\n\n如果申报人已获得公开联系信息的授权信息，请输入与之合作的冶炼厂之联系人姓名。 ","11. 製錬業者連絡先担当者名　－　 紛争鉱物報告テンプレート(CMRT)は、OECD紛争地域および高リスク地域からの鉱物のサプライチェーンに関するデューディリジェンスガイダンスおよび紛争鉱物に関する米証券取引員会の最終規則のコンプライアンスを目的に、調査企業のサプライチェーンを構成する企業の間を流通します。個人情報保護法のある国で使用される可能性がある場合は、関連法規に抵触する可能性がありますので「製錬業者連絡先担当者名」及び「製錬業者連絡先電子メール」の記載については、これらの情報を上記の企業間で共有することについて担当者の同意を得るなどの対応を行うことを推奨します。\n\nこの情報を共有する許可を得た場合、貴社が連絡をとっている製錬業者担当者名を記入してください。\n\n","11. 제련소 담당자 이름 - CMRT는, OECD 분쟁 영향과 고위험지역으로부터의 책임 있는 광물질 공급망 실사 가이던스와 분쟁 광물에 대한 미국 증권거래소 규정에 부합하는지를 확인하기 위해, 요청회사의 공급망에 있는 회사들 간에, 회람됩니다.\n\n템플릿이 개인정보를 보호하는 법률이 있는 나라에서 회람된다면, CMRT에 있는 담당자 정보의 공유는 관련된 규정을 위반할 수 있읍니다. 그러므로, 요청회사는, \"제련소 담당자 이름\"과 \"제련소 담당 이메일\"을 완성할 때 공급망에 있는 회사와 관련 그 정보를 공유하기 위해, 담당자의 허락을 얻는 것과 같은 예방을 하도록 권고합니다.\n\n만일 이러한 정보를 공유하도록 허락을 얻는다면, 귀사가 일하고 있는 제련소 시설 담당자에 삽입하십시요. ","11 Nom du contact de la fonderie -  Le formulaire de déclaration des minerais de conflit (CMRT) est distribué aux entreprises de la chaîne d'approvisionnement de l'entreprise demandeuse pour assurer la conformité au guide de l'OCDE sur le devoir de diligence pour des chaînes d’approvisionnement responsables en minerais provenant de zones de conflit ou à haut risque et à la règle finale sur les minerais du conflit de la 'Securities and Exchange Commission' des Etats-Unis.\n\nSi le formulaire est utilisé dans un pays où existent des lois sur la protection des données personnelles, partager le nom d'un contact dans le CMRT peut les enfreindre. Par conséquent, il est recommandé que l'entreprise requérante prenne certaines précautions telles que obtenir une autorisation du contact pour partager le nom et l'email indiqués dans le formulaire avec avec d'autres entreprises de la chaîne d'approvisionnement.\n\nSi vous avez l'autorisation de partager cette information, merci de remplir le nom du contact avec lequel vous avez communiqué dans la fonderie.","11. Nome do Contacto na Fundição - O Modelo de relatório de Minerais de conflito (CMRT) irá circular entre companhias na requisitante cadeia de fornecimento da empresa de forma a assegurar o cumprimento com o Guia da OCDE para diligências devidas para Cadeias responsáveis de Minerais de áreas de Alto Risco afetadas por conflitos e com as regras finais sobre minerais de conflito da comissão \"U.S. Securities and Exchange Comission\"\n\nSe o modelo circula num país onde existem leis que protegem informação pessoal, a partilha de informação  de contactos pessoais no CMRT poderá violar essas regulações. Assim, é recomendado que a companhia que requisita a informação tome precauções tais como a obtenção de permissão da pessoa de contato para a partilha da informação com outras empresas na cadeia de fornecimento aquando do preenchimento das colunas de \"Nome de contacto na Fundição\" e \"E-mail de contacto na Fundição\".\n\nSe tiver permissão para a partilha desta informação, por favor preencha o nome da pessoa de contacto da unidade de fundição com quem trabalhou.","11. Schmelzhütten-Ansprechpartner - Das Konflikt Mineralien Berichtsformblatt (CMRT) zirkulierte zwischen den Unternehmen der Lieferkette des antragstellenden Unternehmen, zur Gewährleistung der Einhaltung der OECD-Due Diligence Guidance for Responsible Supply Chains von Konflikt Mineralien betroffenen Bereichen mit hohem Risiko und der US-amerikanischen Securities and Exchange Commission Final Rule von Konflikt Mineralien.\n\nWenn die Vorlage in einem Land zirkuliert, in dem Gesetze zum Schutz persönlicher Informationen existieren, können persönliche Kontaktinformationen in der CMRT gegen entsprechende Regelungen verstoßen. Es wird daher empfohlen, dass das antragstellende Unternehmen Vorsichtsmaßnahmen ergreift, wie z. B. die Erlaubnis der Ansprechpartner zur Weitergabe der Daten an andere Unternehmen in der Lieferkette zur Komplettierung der Eingaben für die Spalten \"Schmelzer Kontakt Name\" und die \"Schmelzer Kontakt-E-Mail\".\n\nWenn Sie über die entsprechende Berechtigung verfügen, dann geben Sie bitte den Namen des Ansprechpartners des Schmelzers ein, mit dem Sie gearbeitet haben.","11. Nombre del contacto del fundidor - El templete de reporte de minerales conflictivos (CMRT) circula entre las compañías para requerir a la cadena de suministros de la empresa para asegurar el cumplimiento con la guía de diligencia de cuidado del al OCDE para una cadena de suministro responsable de minerales de áreas afectadas y áreas de alto riesgo y las reglas finales de SEC de Estados Unidos en relación a minerales en conflicto.\n\nSi el templete circula en un país donde las leyes sobre protección a la información personal existen. Compartir información de contacto personal en el CMRT puede violar regulaciones relacionadas.  Por lo tanto, se recomienda que la compañía que requiera tome precauciones tales como obtener el permiso de la persona contacto para compartir la información con otras compañías en la cadena de suministro al momento de completar las columnas \" Nombre contacto del fundidor\" y \"Email del contacto del fundidor\".\n\nSi tienes el permiso para compartir la información, por favor captura el nombre  de la persona contacto  de la planta  del fundidor con quien haya trabajado.","11. Persona di riferimento per la Fonderia (Smelter Contact Name) – il modulo Conflict Minerals Report (CMRT) deve essere fatto circolare tra le aziende della catena di fornitura (Supply Chain) dell'azienda richiedente per assicurare (garantire) il rispetto della OECD Due Diligence Guidance for Responsible Supply Chains of Minerals from Conflict-Affected and High-Risk Areas per i minerali provenienti da zone di conflitto e ad alto rischio e il rispetto della U.S. Securities and Exchange Commission Final Rule sui minerali di conflitto.\n\nQualora il modello venisse fatto circolare in un paese in cui esistono leggi che proteggono le informazioni personali, la condivisione delle informazioni personali inserite nella CMRT potrebbe violare le relative norme (di tutela dell’informazione). In questi casi, si raccomanda alla società richiedente di prendere precauzioni, come l’ottenere il permesso della persona di riferimento per poter condividere le informazioni con altre aziende della filiera di fornitura quando si devono compilare le colonne relative a \"Nome riferimento per la Fonderia (Smelter Contact Name)\" e \"indirizzo e-mail di riferimento per la fonderia (Smelter Contact Email)\".\n\nSe avete l'autorizzazione to condividere questa informazione, per favore inserire il nome della persona di riferimento della fonderia con cui lavorate.","11. İzabe Tesisi İrtibat Kişisi Adı – İhtilaf Konusu Maden Raporlama Şablonu (CMRT), talep eden şirketin tedarik zincirindeki şirketler arasında gezdirilerek İhtilaftan Etkilenen ya da Yüksek Riskli Alanlardan elde edilen Madenlerin Sorumlu Tedarik Zinciri için OECD Durum Tespiti Kılavuzu ve ABD Menkul Kıymetler ve Döviz Komisyonu ihtilaf konusu madenler ile ilgili Nihai Kurallarına uyumluluğu sağlamayı amaçlar. \n\nŞablonun, kişisel bilgileri koruyan kanunların yürürlükte olduğu ülkelere iletilmesi durumunda, CMRT'de kişisel bilgilerin paylaşılması ilgili düzenlemeleri ihlal edebilir. Bu nedenle, talep edilen şirketin, \"İzabe Tesisi İrtibat Kişisi Adı\" ve \"İzabe Tesisi İrtibat Kişisi E-postası\" alanlarını doldururken, ilgili kişiden bu bilgilerin tedarik zincirindeki diğer şirketler ile paylaşılması yönünde izin alması önerilir.\n\nBu bilgiyi paylaşma izniniz varsa, lütfen birlikte çalıştığınız İzabe Tesisi İrtibat Kişisinin adını girin."]
["InstructionsA61","Instructions","A61","12. Smelter Contact Email – Fill in the email address of the Smelter Facility contact person who was identified as the Smelter Contact Name.  Example: John.Smith@SmelterXXX.com.  Please review the instructions for Smelter Contact Name before completing this field.","12. 冶炼厂联系人电子邮件 - 填写被确定为冶炼厂联系人的电子邮件。例如： John.Smith@SmelterXXX.com。填写此字段栏前，请阅读冶炼厂联系人姓名填写指引。 ","12. 製錬業者連絡先電子メール　－　上記製錬施設連絡先担当者のメールアドレスを記入してください。\n例：John.Smith@SmelterXXX.com 　この欄を記入する前に、「製錬業者連絡先担当者名」の説明を確認してください。","12.  제련소 담당자 이메일 - 귀사에 공급하는 제련소 담당자의 이메일 주소를 기입하시오.  예: John.Smith@SmelterXXX.com.  이 필드를 완료하기 전에 제련소 담당자 이름에 대한 설명을 읽어보십시요.","12. Adresse Email du contact de la fonderie- Indiquez l'adresse email du contact que vous avez identifié pour la fonderie . Exemple: John.Smith@SmelterXXX.com. Merci de lire les instructions sur le nom du contact de la fonderie avant de remplir ce champ.","12. E mail de Contacto na Fundição - Preencher o endereço de email da pessoa de contacto na unidade de fundição que foi identificada com o nome de contacto na fundição. Exemplo: John.Smith@SmelterXXX.com. Por favor reveja as instruções para o nome de contacto na fundição antes de completar este campo.","12. Schmelzer Kontakt-E-Mail - Tragen Sie die E-mail Adresse des Ansprechpartners des Schmelzers ein. Zum Beispiel:   John.Smith@SmelterXXX.com.  Lesen Sie bitte die Anweisungen für die Eingabe des Ansprechpartners  vor der Eingabe des Kontakt Namens.","12. Email del contacto  del fundidor –  Capture la dirección de email de la persona contacto de la planta del fundidor quien fue identificado como Persona contacto del fundidor.  Ejemplo: John.Smith@SmelterXXX.com. Por favor revise las instrucciones para el Nombre contacto del fundidor antes de completar este campo.","12. Nome del contatto della Fonderia: Inserire l'indirizzo e-mail della persona della fonderia identificata. Esempio: John.Smith@fonderiaXXX.com. Si prega di rivedere le istruzioni relative alla persona di contatto della fonderia prima di completare questo campo.","12. İzabe Tesisi İrtibat Kişisi E-postası – İzabe Tesisi İrtibat Kişisi Adı kısmında belirttiğiniz İzabe Tesisi irtibat kişisinin e-posta adresini girin. Örnek: John.Smith@SmelterXXX.com. Bu alanı doldurmadan önce lütfen İzabe Tesisi İrtibat Kişisi Adı kısmında verilen talimatları inceleyin."]
["InstructionsA62","Instructions","A62","13. Name of Mine(s) - This field allows a company to define the actual mines being used by the smelter.  Please enter the actual mine names if known.  If 100% of the smelter’s feedstock originates from recycled or scrap sources, enter \"Recycled\" or \"Scrap\" in place of the name of the mine and answer \"Yes\" in Column P.\n\n\"RCOI confirmed as per RMI\" may be an acceptable answer to this question.","13. 矿场名称 - 此字段可让公司为冶炼厂正在使用的实际矿场取名。如果已知实际矿场的名称，请输入该名称。如果冶炼厂的所有原料均来自回收料或报废料资源，则输入“回收料”或“报废料”以取代矿场名称，并在 P 列回答“是”。\n\n“根据 RMI 确认 RCOI”可能是该问题可接受的回答之一。\n","13. 鉱山名－この欄で企業は、精錬業者が使用している実際の鉱山を記載できます。判明している場合は実際の鉱山名を記入してください。精錬業者が原料の100%を再生利用品またはスクラップ起源から調達している場合は、鉱山名の代わりに「Recycled（再生利用品）」または「Scrap（スクラップ）」と記入し、P列に「Yes（はい）」と回答してください。\n\nこの質問では「RCOI confirmed as per RMI（RMIにより確認されたRCOI）」と回答することもできます。\n","13. 광산 이름 - 회사가 제련소에서 실제로 사용하는 광산을 이 열에 기입할 수 있습니다. 이름을 아는 경우 실제 광산의 이름을 기입하시오. 제련소 원료의 100%가 재활용 또는 폐자원에서 왔다면, 광산의 이름에 \"Recycled\" 또는 \"Scrap\"을 입력하고, P열에 \"Yes\"로 답하시오.\n\n\"RMI에 따라 확인된 RCOI\"는 이 질문의 대답으로 인정될 수 있습니다. \n","13. Nom de la/des mine(s) – Ce champ permet à la société de définir les mines effectivement exploitées par la fonderie. Veuillez saisir les noms des mines si vous les connaissez. Si 100 % de la matière de base de la fonderie provient de sources recyclées ou de débris, saisissez « Recyclé » ou « Débris » à la place du nom de la mine et répondez « Oui » à la colonne P.\n\n« Enquête à travers la chaîne d’approvisionnement (RCOI) confirmée conformément à la RMI » peut constituer une réponse acceptable à cette question.\n","13. Nome da(s) mina(s) – este campo permite que uma empresa defina as minas de fato utilizadas pela fundição.  Insira os nomes reais das minas, caso sejam do seu conhecimento.  Se 100% das matérias-primas da fundição forem provenientes de fontes recicladas ou sucata, insira “Reciclada” ou “Sucata” no local do nome da mina e responda “Sim” na coluna P.\n\n“RCOI confirmado segundo a CFSI” pode ser uma resposta aceitável para esta pergunta.\n","13. Name der Mine(n) – Dieses Feld ermöglicht es einem Unternehmen, die aktuellen Minen zu bestimmen, die durch die Schmelzöfen verwendet werden. Bitte geben Sie, falls bekannt, die Namen der aktuellen Minen an. Falls 100 % des Rohmaterials der Schmelzöfen aus wiederverwerteten oder Ausschussressourcen resultiert, tragen Sie anstelle des Namens der Mine „wiederverwertet“ oder „Ausschuss“ ein und geben Sie in Spalte P die Antwort „Ja“.\n\n„RCOI-bestätigt gemäß RMI“ kann eine akzeptable Antwort auf die Frage sein.\n","13. Nombre de la(s) mina(s) - Este campo permite que una compañía defina las minas que realmente está usando la fundidora.   Introduzca los nombres reales de las minas si los conoce.   Si el 100% de las materias primas de la fundidora provienen de fuentes recicladas o de sobrantes, ingrese \"Recycled\" (Reciclado) o \"Scrap\" (Sobrantes) en lugar del nombre de la mina y responda \"Yes\" (Sí) en la columna P.\n\n \"RCOI confirmed as per RMI\" (RCOI confirmado por RMI) puede ser una respuesta aceptable a esta pregunta. \n","13. Nome della/e miniera/e - Questo campo consente all’azienda di definire le miniere effettivamente utilizzate dalla fonderia. Se noti, inserire i nomi effettivi delle miniere. Se il 100% dei materiali utilizzati dalla fonderia deriva da attività di riciclaggio o materie di scarto, inserire “Riciclato” o “Scarto” al posto del nome della miniera e rispondere “Sì” nella colonna P.\n\n“Conferma RCOI come da RMI” costituisce una risposta accettabile a questa domanda.\n","13. Maden(ler)in Adı - Bu alan, şirketin izabe tesisi tarafından kullanılan gerçek madenleri sıralayabilmesi içindir.  Biliyorsanız, lütfen madenlerin gerçek adını girin.  İzabe tesisinin hammaddelerinin %100'ü geri dönüşüm veya hurda kaynaklarından geliyorsa, maden adı yerine \"Geri Dönüştürülmüş\" veya \"Hurda\" yazın ve P Sütununa \"Evet\" cevabı verin.\n\n”RMI uyarınca onaylanan RCOI” bu soruya kabul edilebilir bir yanıt olabilir.\n"]
["InstructionsA63","Instructions","A63","14. Location (Country) of Mine(s) - This is a free form text field that allows a company to define the location of the mines being used by the smelter.   Please enter the country of the mine(s).  If the country of origin is not known, enter \"Unknown\".   If 100% of the smelter’s feedstock originates from recycled or scrap sources, enter \"Recycled\" or \"Scrap\" in place of the country of origin.  This field is optional.\n\n\"RCOI confirmed as per RMI\" may be an acceptable answer to this question.","14. 矿场地点（国家或地区）- 无限制文本字段，公司可在此注明冶炼厂正在使用的矿场地点。请输入矿场所在国家或地区。如果原产国未知，则输入“未知”。如果冶炼厂的所有原料均来自回收料或报废料资源，则输入“回收料”或“报废料”以取代原产国。此为选填字段。\n\n“根据 RMI 确认 RCOI”可能是该问题可以接受的回答之一。\n","14. 鉱山の場所（国名）－自由形式のテキスト欄で、企業は精錬業者が使用している鉱山の場所を記載できます。鉱山が所在する国名を記入してください。原産国が不明の場合は「Unknown（不明）」とお答えください。精錬業者が原料の100%をリサイクル業者またはスクラップサプライヤーから調達している場合は、原産国の代わりに「Recycled（リサイクル業者）」または「Scrap（スクラップサプライヤー）」と記入してください。この欄は任意です。\n\nこの質問では「RCOI confirmed as per RMI（RMIにより確認されたRCOI）」と回答することもできます。\n","14. 광산(국가)의 위치 - 회사가 제련소에서 실제로 사용하는 광산을 기입할 수 있는 자유 형식의 문자열입니다. 광산이 위치한 국가를 기입하십시오. 원산국의 이름을 모르면 \"Unknown\"을 기입하십시오. 제련소 원료의 100%가 재활용 또는 폐자원에서 왔다면, 원산국에 \"Recycled\" 또는 \"Scrap\"을 기입하십시오. 이 영역은 선택사항입니다.\n\n\"RMI에 따라 확인된 RCOI\"는 이 질문의 대답으로 인정될 수 있습니다. \n","14. Emplacement (pays) de la/des mine(s) – Ce champ de texte libre permet à une société de définir l’emplacement des mines exploitées par la fonderie. Veuillez saisir le pays de la/des mine(s). Si vous ne connaissez pas le pays d’origine, saisissez « Inconnu ». Si 100 % de la matière de base de la fonderie provient de sources recyclées ou de débris, saisissez « Recyclé » ou « Débris » à la place du pays d’origine. Ce champ est facultatif.\n\n« Enquête à travers la chaîne d’approvisionnement (RCOI) confirmée conformément à la RMI » peut constituer une réponse acceptable à cette question.\n","14. Localização (país) da(s) mina(s) – este é um campo de texto de livre preenchimento e permite que a empresa defina a localização das minas utilizadas pela fundição.   Insira o país da(s) mina(s).  Se o país de origem não for conhecido, insira “Desconhecido”.   Se 100% das matérias-primas forem provenientes de fontes recicladas ou sucata, insira “Reciclado” ou “Sucata” no local do país de origem.  Este campo é opcional.\n\n“RCOI confirmado segundo a CFSI” pode ser uma resposta aceitável para esta pergunta.\n","14. Standort (Land) der Mine(n) – Dies ist ein Textfeld mit freier Texteingabe, das es einem Unternehmen ermöglicht, den Standort der Minen zu definieren, die durch die Schmelzöfen verwendet werden.  Bitte geben Sie das Land der Mine(n) ein. Falls das Ursprungsland nicht bekannt ist, geben Sie „Unbekannt“ ein.  Falls 100 % des Rohmaterials der Schmelzöfen aus wiederverwerteten oder Ausschussressourcen resultiert, tragen Sie anstelle des Ursprungslandes „wiederverwertet“ oder „Ausschuss“ ein. Dieses Feld ist optional.\n\n„RCOI-bestätigt gemäß RMI“ kann eine akzeptable Antwort auf die Frage sein.\n","14. Ubicación (país) de la(s) mina(s) - Este es un campo de texto de formato libre que permite que una empresa defina la ubicación de las minas que está utilizando la fundidora.    Introduzca el país donde está(n) la(s) mina(s).   Si se desconoce el país de origen, introduzca \"Unknown\" (Desconocido).    Si el 100% de las materias primas de la fundidora provienen de fuentes recicladas o de sobrantes, ingrese \"Recycled\" (Reciclado) o \"Scrap\" (Sobrantes) en lugar del país de origen.   Este campo es opcional.\n\n \"RCOI confirmed as per RMI\" (RCOI confirmado por RMI) puede ser una respuesta aceptable a esta pregunta. \n","14. Luogo (Paese) della/e miniera/e - Questo è un campo di testo libero che consente all’azienda di specificare il luogo in cui si trovano le miniere utilizzate dalla fonderia. Inserire il Paese in cui si trova/no la/e miniera/e. Se il Paese di origine non è noto, inserire il termine “Sconosciuto”. Se il 100% dei materiali utilizzati dalla fonderia deriva da attività di riciclaggio o materie di scarto, inserire “Riciclato” o “Scarto” al posto del Paese di origine. Questo campo è facoltativo.\n\n“Conferma RCOI come da RMI” costituisce una risposta accettabile a questa domanda.\n","14. Maden(ler)in Konumu (Ülkesi) - Bu, bir şirketin, izabe tesisi tarafından kullanılan madenlerin konumunu tanımlayabilmesini sağlayan serbest metin girişine uygun bir alandır.   Lütfen maden(ler)in ülkesini girin.  Menşei ülke bilinmiyorsa, bu alana \"Bilinmiyor\" yazın.   İzabe tesisinin hammaddelerinin %100'ü geri dönüşüm veya hurda kaynaklarından geliyorsa, menşei ülke yerine \"Geri Dönüştürülmüş\" veya \"Hurda\" yazın.  Bu alan isteğe bağlıdır.\n\n”RMI uyarınca onaylanan RCOI” bu soruya yönelik kabul edilebilir bir yanıt olabilir.\n"]
[{"$f":"B62&C62","v":"InstructionsA64"},"Instructions","A64","15. Indicates whether the smelter solely obtains inputs for its smelting process(es) from recycled or scrap sources. This question is optional.  Permissible responses to this question are:\n\n- Yes\n- No\n- Unknown","15. 表明冶炼厂是否仅从回收料或报废料资源中获取冶炼过程的来料。此为选答问题。本问题允许的回答包括：\n\n- 是\n- 否\n- 未知","15. 製錬所がリサイクル原料又はスクラップ原料からの製錬プロセスの投入量を単独で取得するかどうかを示します。この質問はオプションです。回答は、以下の中から選択してください。\n\n- はい\n- いいえ\n- わからない","15. 제련소가 제련 공정에 필요한 물질을 재활용 또는 폐기 자원만 사용하여 조달하는지 표시합니다. 이 질문은 선택 사항입니다. 이 질문에 허용되는 답변은 다음과 같습니다. \n\n- Yes\n- No\n- Unknown","15. Indique si la fonderie utilise uniquement des sources recyclées ou de débris pour ses procédés de fusion. Cette question est facultative. Les réponses possibles à cette question sont :\n\n– Oui\n– Non\n– Ne sais pas","15. Indica se a fundição obtém unicamente entradas para seu(s) processo(s) de fundição de fontes recicladas ou sucatas. Esta pergunta é opcional.  As respostas aceitáveis a esta pergunta são:\n\n- Sim\n- Não\n- Desconhecido","15. Zeigt an, ob der Schmelzofen seine Materialien für seine(n) Schmelzprozess(e) ausschließlich aus Recycling oder Schrott bezieht. Diese Frage ist optional.  Erlaubte Antworten auf diese Frage sind:\n\n- Ja\n- Nein\n- Unbekannt","15. Indica si la fundidora solamente obtiene insumos para sus procesos de fundido de fuentes de reciclado o desperdicios. Esta pregunta es opcional.  Las respuestas permitidas para esta pregunta son:\n\n- Sí\n- No\n- Desconocido","15. Indica se i materiali utilizzati per il/i processo/i della fonderia derivano esclusivamente da fonti riciclate o di scarto. Questa domanda è facoltativa.  Le risposte a questa domanda sono:\n\n- Sì\n- No\n- Sconosciuto","15. İzabe tesisinin, izabe süreçleri için girdileri yalnızca geri dönüşüm veya hurda kaynaklarından temin edip etmediğini belirtir. Bu soru isteğe bağlıdır.  Bu soruya aşağıdaki şekillerde yanıt verilebilir:\n\n- Evet\n- Hayır\n- Bilinmiyor"]
["InstructionsA65","Instructions","A65","16. Comments – free form text field to enter any comments concerning the smelter.  Example: smelter is being acquired by Company YYY","17. 注释 - 无格式限制的文字栏，可输入有关冶炼厂的任何意见。例如：冶炼厂正在被 YYY 公司收购","16. 備考　－　製錬業者に関するコメントがあれば備考欄に記述してください。例：製錬業者はYYY社に買収されている","16. 추가 내용 - 제련소에 대한 추가 정보를 기입하시오. (예:  제련소는 YYY 회사가 구입중 )  ","16. Commentaires - Zone de texte pour indiquer tout commentaire relatif à la fonderie. Exemple: La fonderie a été achetée par l'entreprise YYY.","16. Comentários - texto livre para inserir quaisquer comentários relativos à fundição. Exemplo: A fundição está a ser adquirida pela Empresa YYY.","16. Anmerkungen - geben Sie Ihre Anmerkungen zu den Schmelzhütten in das Textfeld ein. Beispiel: Smelter is being acquired by Company YYY ","16. Comentarios– campo libre para poner cualquier comentario sobre el fundidor.  Ejemplo: El fundidor esta siendo adquirido por la compañía YYY","16. Commenti – campo testo libero per inserire commenti relative alle fonderie.  Esempio: la fonderia è stata acquisita dalla Società YYY","16. Açıklamalar – İzabe tesisi ile ilgili açıklamaların girilmesi için serbest metin girişine uygun alan. Örnek: izabe tesisi YYY Şirketi tarafından alınıyor"]
[{"$f":"B64&C64","v":"InstructionsA66"},"Instructions","A66","The Checker worksheet is used to verify if all the required information in the Template has been completed. It is updated real-time and can be reviewed at any time while using the Template. It is used to verify completion.\n\nTo use this sheet, verify if all required fields have been completed (completed fields will be highlighted in green). If not, look for the red field(s) and review the \"Notes\" in Column C for required actions. You may use the URL in Column D to directly access the field for completion.","检查工作表用于确认是否所有此模板中需要的信息均已提供、是否实时更新和是否经得起任何在填申报时进行查阅。 此工作表用于确认申报完毕。\n\n用此表检查是否已填妥所有字段（已填字段将高亮显示为绿色）。如果不是，请检查显示红色的字段，并阅读 C 列中的备注信息，并按指示操作。填表人可用 D 列中的 URL 直接进入要填写的字段。 ","チェッカーシートは、テンプレートで要求されている情報がすべて記入されていることを確認するために使います。リアルタイムで更新され、テンプレート使用中いつでも確認できます。記入完了を確認するために使います。\n\nこのシートを使い、要求された項目がすべて記入されているかどうかを確認してください（記入済みの項目は緑色になります）。すべて記入されていない場合、赤の項目を探してC列の「注意」を確認し、必要な作業をしてください。D列のURLを使って該当項目に直接アクセスして記入することもできます。\n","확인지는 CMRT에 있는 모든 필요 정보가 완료되었는지를 확인하기 위해 사용됩니다. 이는 실시간으로 업데이트 되며 템플릿을 사용하는 동안 언제나 검토될 수 있읍니다. 이는 완료를 확인할 목적으로 사용됩니다.\n\n이 평가지를 사용하기 위해, 모든 필요 영역이 완료되었는지를 확인하시오 (완료된 영역은 녹색으로 강조됩니다).  그렇지 않으면, 적색 영역을 보고, 필요한 일을 위해 Column C의 \"Notes\"를 검토하시오.","La feuille \"Checker\" permet de vérifier si toutes les informations requises dans le formulaire ont été complétées. Il est mis à jour en temps réel et peut être revu à tout moment pendant l'utilisation du formulaire. Elle est utilisée pour vérifier si les données sont complètes.\n\nUtilisation de cette feuille: vérifier si tous les champs obligatoires ont été remplis (les champs remplis seront surlignés en vert). Sinon, chercher le(s) champ(s) rouge(s) et examiner les \"Notes\"  identifiant les actions requises dans la colonne \"C\". Vous pouvez utiliser l'URL dans la colonne \"D\" pour accéder directement au champ à compléter.","A Aba \"Verificação\" é utilizada para verificar se toda a informação requerida no modelo está preenchida. A atualização é feita é tempo real e pode ser revista em qualquer altura ao longo do preenchimento do modelo. É utilizado para verificar o seu completo preenchimento.\n\nPara usar esta folha de cálculo, verificar se todos os campos foram preenchidos (Os campos completos estarão destacados a verde). Caso contrário, procure os campos a vermelho e reveja as \"Notas\" na coluna C para ações requeridas. Podes  usar o URL na coluna D para aceder diretamente ao campo para preenchimento.","Der Checker für dieses Arbeitsblatt prüft, ob alle erforderlichen Informationen in der Vorlage eingetragen wurden. Es ist aktualisiert und kann jederzeit mit Hilfe der Vorlage überprüft werden. Es wird auf Vollständigkeit geprüft.\n\nDie Benutzung dieses Blattes stellt sicher, ob alle erforderlichen Felder ausgefüllt sind (ausgefüllte Felder werden grün hervorgehoben).  Wenn nicht schauen Sie das rote Feld an und lesen Sie die \"Bemerkungen\" in Spalte C, welche Maßnahmen erforderlich sind. Benutzen Sie die URL in der Spalte D für den direkten Zugriff zur Fertigstellung des Feldes.","El chequeo de la hoja de trabajo es usado para verificar si toda la información requerido en el templete esta completa. Se actualiza en tiempo real y puede ser revisada en cualquier instante mientras se usa el templete. Se usa para verificar si todo esta completo.\n\nPara usar esta hoja, verifique que todos los campos requeridos estén completos ( los campos completos se marcaran en verde). Si no, busque los campos en rojo y revise las notas en la columna (C) para acciones requeridas. Puedes usar el URL en la Columna D para accesar directamente a completar el campo."," Il foglio di lavoro \"controllore\" viene utilizzato per verificare se tutte le informazioni richieste nel modello sono state completate. E 'aggiornato in tempo reale e può essere rivisto in qualsiasi momento durante l'utilizzo del modello. Viene utilizzato per verificare il completamento.\n\nPer utilizzare questa scheda, verificare che tutti i campi obbligatori siano stati completati (i campi completati saranno evidenziati in verde). In caso contrario, cercare il campo rosso e rivedere le \"Note\" nella colonna C con le azioni richieste. È possibile utilizzare l'URL nella colonna D per accedere direttamente al campo per il completamento.","Kontrol çalışma sayfası, Şablondaki gerekli tüm bilgilerin doldurulduğunun doğrulanması için kullanılır. Bu sayfa gerçek zamanlı olarak güncellenir ve bu sayfayı Şablon kullanılırken dilediğiniz zaman inceleyebilirsiniz. Bu sayfa, tamamlama işlemini doğrulamak için kullanılır.\n\nBu sayfayı kullanmak için gerekli tüm alanların doldurulduğunu doğrulayın (doldurulan alanlar yeşil renkte vurgulanacaktır). Alanlar yeşil renkte vurgulanmadıysa, kırmızı renkli alan(lar)ı bulun ve gerekli eylemler için C Sütunundaki \"Notlar\" bölümünü inceleyin. Alanı doğrudan erişerek doldurmak için D Sütunundaki URL'yi kullanabilirsiniz."]
["InstructionsA67","Instructions","A67","TERMS AND CONDITIONS","条款及细则","利用規約","이용 약관","CONDITIONS GENERALES","TERMOS E CONDIÇÕES","Allgemeine Geschäftsbedingungen (AGB)",null,"Condizioni Generali In caso di conflitto, la versione inglese del presente modulo sui conflict mineral dovrà essere considerata prevalente.","ŞARTLAR VE KOŞULLAR"]
["InstructionsA68","Instructions","A68","The Responsible Minerals Assurance Process (“Process”) Conformant Smelter List (the \"List\") and Process templates and tools, including, without limitation, the Conflict Minerals Reporting Template  (collectively “Tools”), including, without limitation, all information provided therein, are provided for informational purposes only and are current as of the date set forth therein. Any inaccuracy or omission in the List or any Tool is not the responsibility of the Responsible Business Alliance, a Delaware non-stock corporation (\"RBA\"). Determination of whether and/or how to use all or any portion of the List or any Tool is to be made in the User’s sole and absolute discretion. Prior to using the List or any Tool, you should review it with your own legal counsel.  No part of the List or any Tool constitutes legal advice. Use of the List or any Tool is voluntary.","负责任矿物审验流程（“流程”）、合规冶炼厂列表（“列表”）及报告模板和工具表，包括但不限于冲突矿产报告模板（统称为“工具”），所提供的一切信息仅供参考之用，并以其上载日期为准。在列表或工具表中，如有任何不准确或遗漏的信息，均非特拉华州非股份公司责任商业联盟 (RBA) 的责任所在。是否使用和/或如何使用列表上的全部资料或部分资料或使用任何工具，用户拥有唯一及绝对的决定权​​。使用列表或任何工具之前，请向自己的法律顾问征询意见。列表或工具中没有任何一部份会构成法律咨询。使用列表或任何工具均属自愿。","責任ある鉱物保証プロセス（以下「プロセス」といいます）適合製錬業者リスト（以下「リスト」といいます）、紛争鉱物報告テンプレート等のプログラムテンプレートやツール（以下総称して「ツール」といいます）、ならびにここに提供されるあらゆる情報は、情報提供の目的のみに使用されるものであり、ここに明示される日付の時点の最新版です。リスト又はツールに不正確な点や脱落があった場合、それがいかなるものであれ、デラウェアの非株式会社であるレスポンシブル・ビジネス・アライアンス（以下「RBA」といいます）は、一切の責任を負わないものとします。リストの全部もしくは一部、あるいはツールを使用するかどうか、またどのように使用するかの決断は、ユーザー単独の自由裁量によって行われるものです。リスト又はツールの利用に際しては、事前にユーザー自身の法律顧問とともに当該リスト又はツールの精査を行うことが望まれます。リスト又はツールには法的助言は一切含まれていません。 リスト又はツールの利用は自由意思によるものです。","책임 있는 광물 보증 프로세스 (“프로세스”) 준수 제련소 리스트 (“리스트”)와 프로그램 템플릿과 도구는, 분쟁광물 보고서 템플릿 (집합적으로 “툴”)을 포함하나 이에 국한되지 않으며, 여기서 제공된 모든 정보를 포함하나 이에 국한 되지 않으며, 정보를 제공하는 목적으로만 제공되며 여기서 명시된 날짜의 현재시점입니다. 리스트 또는 툴에서 부정확하거나 생략누락된 것은 델라웨어 주의 비주식법인인 책임감있는 비지니스 연합(Responsible Business Alliance (\"RBA\"))의 책임이 아닙니다. 리스트 또는 툴의 모든 부분 또는 일 부분을 사용할 것인지 여부 및 어떻게 사용할 것인지 여부는 사용자만의 재량에 의해 결정됩니다. 리스트나 툴을 사용하기 전에, 변호사의 자문을 거쳐야 할 것입니다. 리스트나 툴의 어느 부분도 법적 조언 으로 간주될 수 없습니다. 리스트나 툴의 사용은 자발적입니다.","Le programme Responsible Minerals Assurance (\"Programme\"), la liste des fonderies conformes (la \"Liste\") et les modèles et outils du Programme, incluant, sans limitation, le modèle de rapport sur les les minerais de conflit (collectivement dénommés ci-après \"Outils\"), incluant, sans limitation, toutes les informations fournies ci-incluses, sont uniquement fournis à titre d’information et sont les dernières en date à ce jour. La Responsible Business Alliance, une entreprise non côtée du Delaware (\"RBA\") ne saurait être tenue responsable de toute inexactitude ou omission dans la Liste ou les Outils. La décision d'utiliser ou non et/ou de comment utiliser tout ou partie de cette Liste ou l'un des Outils est prise à la seule et absolue discrétion de l'Utilisateur.","A lista (\"A Lista\") de fundições cumpridoras do Programa de fundições Livres de Conflito -  Responsible Minerals Assurance Process( \"O Programa\"), assim como os modelos e ferramentas do programa, incluindo, sem limitações, Modelos de relatórios de Minerais de Conflito (Coletivamente - \"Ferramentas\"), e incluindo também, sem limitações, toda a informação neles fornecidos, são fornecidos apenas para fins informativos  e que são atuais à data apresentada. Qualquer imprecisão ou omissão na lista ou em qualquer ferramenta, não é da responsabilidade da Responsible Business Alliance, uma corporação não cotada de Delaware (\"RBA\").\nA determinação de como se deve usar ou se se deve usar parte ou totalidade da lista ou de qualquer outra ferramenta está apenas e absolutamente ao critério do utilizador. Antes de utilizar a lista ou  qualquer uma das ferramentas, deverá revê-la com o seu departamento de assessoria jurídica. Nenhuma parte da lista ou qualquer ferramenta constitui aconselhamento jurídico. A utilização da lista ou de qualquer outra ferramenta é voluntária.","Der Responsible Minerals Assurance Process (\"Programm\"), die konforme Schmelzer Liste (die \"Liste\"), Fragebögen und Werkzeuge (zusammengefasst unter \"Werkzeuge\"), beinhalten ohne Einschränkung alle Informationen, die hier nur zu Informationszwecken zur Verfügung gestellt sind und sind nur aktuell auf dem Stand des angegebenen Datums. Jegliche Ungenauigkeiten oder Irrtümer in der Liste oder der Werkzeuge sind nicht in der Verantwortung der Responsible Business Alliance Incorporated, einer Delaware Nichtaktiengesellschaft (\"RBA\"). Ob und in welchem Umfang die gesamte Liste oder Werkzeuge oder Teile davon benutzt werden, liegt in der alleinigen und uneingeschränkten Bestimmung des Benutzers. Vor Nutzung dieser Liste oder Werkzeuge sollten Sie diese mit ihren Juristen prüfen. Kein Teil der Liste oder Werkzeuge begründet eine Rechtsberatung. Die Nutzung der Liste oder eines der Werkzeuge ist freiwillig. \nIm Falle eines Konfliktes wird die englische Version des Konflikt Mineralien Fragebogens als die rechtsgültige Version betrachtet. ","El Proceso de aseguramiento de minerales responsables (\"Proceso\") la  Lista de Fundidores que cumplen (la \"Lista\") y las plantillas y herramientas del programa, incluyendo, sin limitación, el templete de reporte de los minerales conflictivos (en su conjunto \"Herramientas\"), incluyendo, sin limitación, toda la información del mismo, se proporcionan sólo con fines informativos y están al día a partir de la fecha establecida en el mismo. Cualquier inexactitud u omisión en la lista o en cualquier herramienta no es responsabilidad de la Responsible Business Alliance, una sociedad anónima de Delaware (\"RBA\"). La determinación de si y / o el uso de todo o parte de la lista o cualquier herramienta es a discreción única y absoluta  del usuario. Antes de utilizar la lista o cualquier herramienta, debe revisar con su propio asesor legal. Ninguna parte de la lista o cualquier herramienta constituye asesoramiento jurídico. El uso de la lista o cualquier otra herramienta es voluntaria","Il processo Responsible Minerals Assurance Process (\"Processo\") la lista delle fonderia conformi (\"Lista\") e i moduli e strumenti del Programma, incluso inva esemplificativa e non esaustiva, il Conflict Mineral modello di rapporto (tutti insieme denominati \"Strumenti\"), incluso, senza limitazione, tutte le informazioni incluse nei su indicati documenti, sono fornite solo a scopo informativo e sono aggiornate alla data di compilazione degli stessi. Qualsivoglia incompletezza o inaccuratezza nella Lista o negli Strumenti non dovrà attribuirsi alla responsabilità dell'Responsible Business Alliance, Incorporated, società non quotata del Delaware (\"RBA\"), o dell'iniziativa e-Sostenibilità Globale, un'associazione no-profit Belga. L'identificazione su se e/o come usare in tutto o in parte la Lista o gli Strumenti è a totale discrezione dell'utilizzatore. Prima di usare la Lista o gli Strumenti, è necessaria una revisione con il proprio ufficio legale. L'uso della Lista o degli Strumenti è a discrezione dell'Utilizzatore.","Sınırlama olmaksızın İhtilaf Konusu Maden Raporlama Şablonunu içeren şekilde Sorumlu Maden Güvence Prosesi (\"Proses) Uyumlu İzabe Tesisi Listesi (\"Liste\") ve Program şablonları ile araçları (birlikte “Araçlar”), sınırlama olmaksızın bunlarda verilen tüm bilgileri de içeren şekilde yalnızca bilgilendirme amaçlı olarak sunulmaktadır ve bunlarda belirtilen tarih itibariyle günceldir. Listede ya da herhangi bir Araçtaki herhangi bir yanlışlık veya eksiklik, Delaware merkezli sermayesi bölünmemiş bir şirket olan Responsible Business Alliance, Incorporated'ın (\"RBA\") veya Belçika merkezli uluslararası bir kar amacı gütmeyen topluluk olan Küresel e-Sürdürülebilirlik Girişiminin sorumluluğunda değildir. Listenin veya herhangi bir Aracın tamamının ya da herhangi bir kısmının kullanılıp kullanılmaması tamamen Kullanıcının takdirine bağlı olmalıdır. Listeyi ya da herhangi bir Aracı kullanmadan önce hukuk müşaviriniz ile birlikte incelemelisiniz. Liste ya da herhangi bir Aracın hiçbir bölümü yasal tavsiye niteliğinde değildir. Listenin ya da herhangi bir Aracın kullanılması tamamen gönüllülük esasına bağlıdır."]
["InstructionsA69","Instructions","A69","RBA makes no representations or warranties with respect to the List or any Tool. The List and Tools are provided on an \"AS IS\" and on an \"AS AVAILABLE\" basis. RBA hereby disclaims all warranties of any nature, express, implied or otherwise, or arising from trade or custom, including, without limitation, any implied warranties of merchantability, non-infringement, quality, title, fitness for a particular purpose, completeness or accuracy. ","RBA 皆不会为名单或任何工具作任何的申述或保证。列表和工具依据“原样”和“现有”来提供。RBA 特此声明，不做任何性质的保证、明示、暗示或其他方式，或说明贸易或关税，包括但不限于任何隐含的适销性、非侵权性、质量、标题、为某一特定用途的适用性而作完整性或准确性的保证。\n","RBAは、リスト又はツールに関していかなる表明も保証も行いません。リスト及びツールは「現状有姿のまま」かつ「提供可能な限度」で提供されています。  RBAは、市販性、権利不侵害、品質、タイトル、特定目的との適合、完全性、正確性を含めて（ただし必ずしもこれらに限定されない）、明示的であれ黙示的であれ、もしくはその他の方法であれ、取引もしくは慣習から生じるものであれ、いかなる性質のものであろうと、一切の保証を行わないものとします。","RBA는 리스트 또는 어떤 툴에 대해서도 진술 또는 보장을 하지 않읍니다. 리스트와 툴들은 “있는 그대로” 및 “사용 가능한” 경우에 제공됩니다. RBA는 어떠한 경우, 명시적, 묵시적 또는 다른 경우 또는 무역이나 관습으로 부터 생기는 모든 보장을 부인한며, 이 보장은 양도성, 비침해, 품질, 소유, 특정 목적에의 적합성, 완성도 및 정확성으로부터의 묵시적 보장을 포함하며 이에 제한되지 않읍니다.","RBA ne donne des déclarations ou garanties concernant la Liste ou les Outils. La Liste et les Outils sont fournis \"TEL QUEL\" et \"TEL QUE DISPONIBLE\". La RBA nie par la présente toute garantie, de toute sorte, expresse, tacite ou autre, ou émanant du commerce ou des douanes, incluant sans limitation, toute garantie implicite de qualité marchande, de non contrefaçon, de qualité, de titre, de modèle pour un but particulier, de complétude et d'exactitude.","O RBA não faz quaisquer representações ou garantias no que diz respeito à Lista ou qualquer uma das ferramentas. A Lista e as ferramentas são disponibilizadas \"Como São\" com base na \"Disponibilidade\". A RBA isentam-se assim de garantias de qualquer natureza, expressa, implícita ou não, ou de qualquer questão levantada pelo comércio ou alfândega, incluindo sem limitações quaisquer garantias implícitas de comercialização, não-infração, qualidade, título, adequação a uma finalidade específica, integridade ou precisão. ","RBA macht keine Zusicherungen oder geben Gewährleistungen in Bezug auf die Liste oder einem der Werkzeuge. Die Liste und Werkzeuge basieren auf einer \"wie vorgestellt\" und \"wie verfügbar\" Weise. RBA lehnt hiermit alle Gewährleistungsansprüche jeglicher Art ab, weder ausdrücklich, stillschweigend, noch anderweitig, oder seitens Handels-oder Benutzerdefinition ergebend, einschließlich ohne Einschränkung auf Vollständigkeit, stillschweigende Gewährleistungen der Marktgängigkeit, der Nichtverletzung, Qualität, Titel, Eignung für einen bestimmten Zweck  oder Genauigkeit.","RBA no  hace ninguna representación o garantía con respecto a la lista o de cualquier herramienta. La lista y las herramientas se proporciona \"TAL CUAL\" y \"TAL COMO ESTÁ DISPONIBLE\". RBA renuncia por la presente todas las garantías de cualquier naturaleza, ya sea expresa, implícita o de otro, o que se deriven del comercio o la costumbre, incluyendo, sin limitación, cualquier garantía implícita de comerciabilidad, no infracción,  calidad, propiedad, adecuación para un propósito particular, la integridad o exactitud.","RBA non garantisce il contenuto della Lista o degli Strumenti. La lista e gli Strumenti sono forniti nella forma e contenuto in cui sono disponibili. RBA con la presente nega qualsivoglia garanzia di qualsivoglia natura, espressa o implicita, risultante dagli usi commerciali come ad esempio garanzia implicite di commerciabilità, non-cntraffazione, qualità, proprietà, idoneità, completezza o accuratezza.","RBA  Liste veya herhangi bir Araç ile ilgili olarak herhangi bir beyan veya taahhütte bulunmamaktadır. Liste ve Araçlar \"OLDUĞU GİBİ\" ve \"UYGUNLUK KAPSAMINDA\" sunulmaktadır. RBA, işbu belge ile sınırlama olmaksızın zımni ticarete elverişlilik, ihlal içermeme, kalite, unvan veya belirli bir amaca uygunluk, eksiksizlik veya doğruluk garantilerini de içeren şekilde açık ya da zımni veya başka türden, ticari ilişkiler ya da geleneklerden doğan tüm garantilerden feragat etmektedir. "]
["InstructionsA70","Instructions","A70","To the fullest extent permitted by applicable laws, RBA renounces any liability for any losses, expenses or damages of any nature, including, without limitation, special, incidental, punitive, direct, indirect or consequential damages or lost income or profits, resulting from or arising out of the User’s use of the List or any Tool, whether arising in tort, contract, statute, or otherwise, even if shown that they were advised of the possibility of such damages. ","根据相关法律所允许的最大限度，RBA 声明拒绝任何损失、费用或任何性质的损害之责任，包括但不限于因用户使用名单或工具表而造成特殊、偶然、惩罚性、直接、间接的或后果性损害或失去收入或利润，无论是以侵权、合同、章程或其他方式造成的损害，即使他们已被告知有这种损害的可能性。\n","適用される法律において許諾されている最大限の範囲内で、RBAは、不法行為、契約、規則、もしくはその他の状況下で生じたものであるかどうかにかかわらず、損害が生じる可能性について報告を受けていたとしても、リスト又はツールを利用したことに起因する特別損害、付帯損害、懲罰的損害、直接損害、間接損害もしくは偶発的損害、又は収益や利益の損失に関し、何らの責任も負いません。","해당 법률이 허용하는 한도까지, RBA는 어떠한 경우의 손실, 비용, 손해배상의 책임을  부인하며, 이에는 특별한, 우발적, 징벌적, 직접, 간접 또는 결과적 손해, 또는 사용자로부터 또는 사용자의 리스트 또는 툴의 사용으로 인한 수입 또는 이익의 손실이 불법 행위, 계약, 법령 또는 기타 사유로 발생한 경우 및 심지어 그러한 손해배상의 발생가능성이 있다고 표시된 경우를 포함하며 이에 국한되지 않읍습니다. ","Dans les limites prévues par la loi, la RBA renonce à toute responsabilité pour toute perte, dépense ou dommages et interêts de quelque nature que ce soit, incluant, sans limitation, des dommages spéciaux, accessoires, punitifs, directs, indirects ou conséquentiels ou perte de revenus ou de bénéfices, résultant ou émanant de l'utilisation de la Liste ou d'un Outil par l'Utilisateur, que cela émane d'un délit, d’un contrat, de la loi, ou pour tout autre motif, même si elle était prévenue de la possibilité de tels dommages.","De acordo com a lei em vigor, o RBA não se responsabilizam por quaisquer perdas, despesas ou prejuízos de qualquer natureza, incluindo, sem limitações, danos especiais, acidentais, punitivos, diretos , indiretos ou consequenciais ou perda de lucros ou rendimentos, resultantes ou decorrentes do da utilização da Lista ou de qualquer ferramenta, seja ela decorrente ou não de ato ilícito, contrato, estatuto ou mesmo que seja demonstrado que houve aviso da possibilidade de tais danos.","Soweit dies nach geltendem Recht zulässig ist, verzichtet RBA auf jegliche Haftung für Verluste, Kosten oder Schäden jeglicher Art, einschließlich, ohne Einschränkung, auf spezielle, zufällige, strafbare, direkte, indirekte oder Folgeschäden oder entgangenen Einnahmen oder Gewinne, die sich aus oder die sich aus der Nutzung des Benutzers der Liste oder einem beliebigen Werkzeug, ob auf Vergehen, Vertrag, Satzung oder in anderer Weise, auch wenn angezeigt wurde, dass sie auf die Möglichkeit solcher Schäden hingewiesen wurden.","En la máxima medida permitida por las leyes aplicables, RBA renuncia a cualquier responsabilidad por cualquier pérdida, gastos o perjuicios de cualquier naturaleza, incluyendo, sin limitación, daños especiales, incidentales, punitivos, directos, indirectos o consecuentes, o la pérdida de ingresos o beneficios, como resultado  o que surja del uso del usuario de la lista o herramienta alguna, ya sea por agravio, contrato, decreto u otra forma, incluso si se demuestra que fueron advertidos de la posibilidad de tales daños.","Ad ogni fine di legge, è esclusa ogni responsabilità di RBA per ogni danno, costo, spesa di qualsivolgia natura, incluso, senza limitazione, danni o perdite speciali, incidentali, punitivi, diretti, indiretti o conseguenziali o lucro cessante conseguente e/o risultante dall'uso da parte dell'Utilizzatore della Lista o degli Strumenti, indipendentemente dal fatto che sia configurabile come resposabilità contrattuale, extra-contrattuale o di qualsiasi altro genere, anche se è dimostrato che tali danni erano prevedibili.","Yürürlükteki kanunların izin verdiği kapsamda, RBA, ister sözleşme, akit, tüzükten ister başka şekilde doğmuş olsun, hasar olasılığı ile bilgilendirilmiş olsalar dahi sınırlama olmaksızın özel, bağlı, cezai, doğrudan, dolaylı ya da arızi hasarlar veya kayıp kâr ya da kazançları da içeren şekilde Kullanıcının Listeyi veya herhangi bir Aracı kullanmasından doğan her türden kayıp, harcama veya hasar ile ilgili yükümlülüklerinden feragat etmektedir. "]
["InstructionsA71","Instructions","A71","In consideration for access and use of the List and/or any Tool, THE USER hereby agrees to and does (a) release and forever discharge RBA, as well as their respective officers, directors, agents, employees, volunteers, representatives, contractors, successors, and assigns, from any and all claims, actions, losses, suits, damages, judgments, levies, and executions, which the User has ever had, has, or ever can, shall, or may have or claim to have against RBA, as well as their respective officers, directors, agents, employees, volunteers, representatives, contractors, successors, and assigns, resulting from or arising out of the List or any Tool or use thereof, and agrees to (b) indemnify, defend and hold harmless RBA, as well as their respective officers, directors, agents, employees, volunteers, representatives, contractors, successors, and assigns, from any and all claims,  actions, losses, suits, damages, judgments, levies, and executions resulting from or arising out of the USER'S use of the List or any Tool.","鉴于对列表和/或工具表单的使用，用户在此同意：a) 让 RBA 及其相关管理人员、董事、代理、员工、志愿者、代表、承包商、继承人、指定人解除并永远免除责任，而不会因使用列表或任何工具导致或产生的任何及全部索赔、行动、损失、诉讼、损害、判决、征费和处决而受损，这包括用户有过或曾经可以、应当或者可能拥有或声称拥有对 RBA 及其相关管理人员、董事、代理、员工、志愿者、代表、承包商、继承人、指定人的索赔；b) 保障和捍卫 RBA 及其相关管理人员、董事、代理、员工、志愿者、代表、承包商、继承人、指定人的权利，确保其不会因用户使用列表或任何工具而导致或产生的任何及全部索赔、行动、损失、诉讼、损害、判决、征费和处决而受损。\n","リストやツールへのアクセス及びその利用を考慮して、ユーザーはここに、(a) RBAならびにその役員、理事、代理人、被雇用者、任意行為者、代表者、契約者、継承者、譲受人に対し、リストやツールによる、もしくはそれらを利用したことによる、又はそこから生じたり、生じた\n可能性がある、あるいはユーザーがRBAならびにその役員、理事、代理人、被雇用者、任意行為者、代表者、契約者、継承者、譲受人に対してそのように主張する、いかなる請求、訴訟、損失、請願、損害、判決、押収、強制執行についても一切の責任を問わず、(b) RBAならびにその役員、理事、代理人、被雇用者、任意行為者、代表者、契約者、継承者、譲受人に対し、ユーザーがリスト又はツールを利用したことによる、いかなる請求、訴訟、損失、請願、損害、判決、押収、強制執行に関しても免責の保証を与え、擁護し、責任を免除することに同意するものとします。","리스트 및 툴로의 접속 및 사용에 대하여, 사용자는 (a) RBA 뿐만 아니라 각각의 임원, 이사, 대리인, 직원, 자원 봉사자, 대표자, 계약자, 승계인, 양수인에 대해 사용자가 리스트나 툴로부터 또는 이의 사용으로부터 생기거나 발생하여 RBA 뿐만 아니라 각각의 임원, 이사, 대리인, 직원, 자원 봉사자, 대표자, 계약자, 승계인, 양수인에게 가졌거나 가지고 있거나 혹은 할 수 있고, 해야 하거나 가지고 있거나 가지고 있다고 주장할 수 있는 모든 청구, 조치, 손실, 소송, 손해 배상, 판결, 부가금, 그리고 이행에 대해, 영구히 면책하는데 동의하며, (b) 사용자의 리스트나 툴의 사용으로부터 또는 사용으로 인해 생기거나 발생한 모든 청구, 조치, 손실, 소송, 손해 배상, 판결, 부가금, 그리고 이행에 대해 RBA 뿐만 아니라 각각의 임원, 이사, 대리인, 직원, 자원 봉사자, 대표자, 계약자, 승계인, 양수인을 면책하고, 방어하며, 해가 미치지 않도록 하는 데 동의합니다.","Compte tenu de l'accès et de l'utilisation de la Liste et/ou d'un Outil, l'Utilisateur accepte par la présente de (a) libérer et pour toujours décharger la RBA, ainsi que ses officiers, directeurs, agents, employés, volontaires, représentants, sous-traitants, successeurs, et cède, pour chacun(e) et tou(te)s les revendications, actions, pertes, procès, dommages et interêts, jugements, impôts, exécution, que l'Utilisateur a eu, a, pourra, devra ou prétendra avoir contre la RBA, ainsi que ses respectifs officiers, directeurs, agents, employés, volontaires, représentants, sous-traitants, successeurs et assignés resultant de ou émanant de la Liste ou d'un Outil ou de l'utilisation de ceux-ci, et accepte(b) d’indemniser, défendre et décharger de la responsabilité la RBA, ainsi que ses officiers, directeurs, agents, employés, volontaires, représentants, sous-traitants, successeurs, et ayants-droits cède,de chacun(e) et tou(te)s les revendications, actions, pertes, procès, dommages et interêts, jugements, impôts, et exécutions, résultant ou émanant de la Liste ou d'un Outil ou de l'utilisation de ceux-ci par l’Utilisateur.","No que diz respeito ao acesso e utilização da lista e/ou qualquer ferramenta, o USUÁRIO concorda por este meio e libera e isenta para sempre o RBA, assim como os seus  respetivos administradores, diretores, agentes, funcionários, voluntários, representantes, empreiteiros, sucessores e cessionários de todas e quaisquer revindicações, ações, perdas, danos, processos, julgamentos, tributos e execuções, que o usuário já tenha tido, têm, ou possa vir a ter ou afirma ter contra o RBA, bem como os seus respetivos administradores, diretores, agentes, funcionários, voluntários, representantes, empreiteiros, sucessores e cessionários de quaisquer revindicações, ações, perdas, processos, danos, julgamentos, tributos e execuções resultantes ou decorrentes dos uso do usuário da lista ou qualquer ferramenta. ","Als Gegenleistung für den Zugang und die Nutzung der Liste und / oder einem beliebigen Werkzeug willigt der Nutzer hiermit ein und wird: (a) RBA und ihre Führungskräfte, Direktoren, Vertreter, Mitarbeiter, Freiwillige, Vertreter, Auftragnehmer, Nachfolgern und Bevollmächtigten, von allen Ansprüchen, Klagen, Verluste, Schäden, Urteile, Abgaben und Ausführungen, die der Anwender oder Nutzer je hatte, hat oder jemals haben wird, oder haben oder behaupten könnte, für immer entlasten; oder Forderungen oder Ansprüche gegen RBA sowie ihre Führungskräfte, Direktoren, Vertreter, Angestellten, Freiwilligen, Vertreter, Auftragnehmer, Nachfolgern und Bevollmächtigten, die sich aus der Nutzung der Liste oder eines Werkzeugs resultieren nicht erheben und stimmen zu (b) RBA und ihre Führungskräfte, Direktoren, Vertreter, Mitarbeiter, Freiwillige, Vertreter, Auftragnehmer, Nachfolgern und Bevollmächtigten, von jeglichen Ansprüchen, Klagen, Verluste, Schäden , Urteile, Abgaben und Ausführungen, die sich aus des Nutzers Nutzung der Liste oder eines Werkzeugs ergeben; zu entschädigen, zu verteidigen und schadlos zu halten.","En la consideración para el acceso y el uso de la lista y / o herramienta alguna, EL USUARIO se compromete a, y lo hace (a) la liberación y descargo para siempre de  RBA, así como sus respectivos funcionarios, directores, agentes, empleados, voluntarios, representantes, contratistas, sucesores y cesionarios, de cualquier y todo reclamo, acciones, pérdidas, demandas, daños, juicios, gravámenes y ejecuciones, que el usuario ha tenido, tiene o alguna vez se puede, o puede tener o pretender tener contra el RBA, así como sus respectivos funcionarios, directores, agentes, empleados, voluntarios, representantes, contratistas, sucesores y cesionarios, como consecuencia de o que surja de la lista o herramienta alguna o uso de los mismos, y se compromete a (b) indemnizar, defender y mantener indemne a RBA, así como sus respectivos funcionarios, directores, agentes, empleados, voluntarios, representantes, contratistas, sucesores y cesionarios, de cualquier y todo reclamo, acción, pérdidas, demandas, daños, juicios, impuestos, y las ejecuciones como resultado de o que surja de la lista o cualquier herramienta o el uso de los mismos.","In considerazione dell'accesso e dell'uso delle Liste e degli Strumenti, l'Utilizzatore con la presente accetta di (a) liberare e manlevare RBA, così come i suoi impiegati, direttori, agenti, volontarii, rappresentanti, consulenti, successori e cessionari da ogni contestazione, citazione, condanna, perdita, imposta, danno e esecuzione che l'Utilizzatore ha avuto, ha o potrà avere  contro e/o opporre  RBA così come i suoi impiegati, direttori, agenti, volontarii, rappresentanti, consulenti, successori e cessionari come risultato dell'utilizzo della Lista e degli Strumenti, e (b) tenere indenne e manlevare RBA così come i suoi impiegati, direttori, agenti, volontarii, rappresentanti, consulenti, successori e cessionari da ogni pretesa, azione, danno, perdita, esecuzione risultante dall'uso della Lista o qualsivoglia Strumento.","Liste ve/veya herhangi bir Aracın kullanımı kapsamında, KULLANICI işbu belge ile (a) RBA'yı, ilgili yetkilileri, yöneticileri, temsilcileri, çalışanları, gönüllüleri, acenteleri, yüklenicileri, halefleri ve devralanları, Kullanıcının geçmişte, şimdi veya gelecekte RBA'ya, ilgili yetkilileri, yöneticileri, temsilcileri, çalışanları, gönüllüleri, acenteleri, yüklenicileri, halefleri ve devralanlarına karşı Liste veya herhangi bir Aracın kullanımından doğan talepler, yasa işlemler, kayıplar, davalar, hasarlar, kararlar, hacizler ve icralara karşı beri tutmayı ve (b) RBA'yı, ilgili yetkilileri, yöneticileri, temsilcileri, çalışanları, gönüllüleri, acenteleri, yüklenicileri, halefleri ve devralanları KULLANICININ Listeyi veya herhangi bir Aracı kullanmasından doğan tüm talepler, yasa işlemler, kayıplar, davalar, hasarlar, kararlar, hacizler ve icralara karşı korumayı ve tazmin etmeyi kabul etmiş bulunmaktadır."]
["InstructionsA72","Instructions","A72","If any part of any provision of these Terms and Conditions shall be invalid or unenforceable under applicable law, said part shall be deemed ineffective to the extent of such invalidity or unenforceability only, without in any way affecting the remaining parts of said provision or the remaining provisions of these Terms and Conditions.","如果此条款及细则的某个条款部分在法律下无效或不可执行，被视为无效的部分应仅限于该无效或不能强制执行的部份，而不以任何方式影响到条款及细则的其余条款。","これらの利用規約の規定条項に、無効とすべき部分、もしくは適用される法律の下で執行不可能な部分が存在する場合、当該箇所は、当該規定条項のそれ以外の部分、もしくは本利用規約のそれ以外の規定条項にいかなる影響も与えることなく、そのような無効性や実行不可能性の範囲においてのみ無効とみなされるものとします。","이러한 계약사항과 조건들의 규정 중 일부가 관련 법에 의해 무효이거나 강행될 수 없는 경우 이러한 부분은 무효 또는 이행불가의 정도만큼만 효력이 없으며, 이러한 부분 또는 계약사항과 조건들의 나머지 부분에 영향을 미치지는 않읍니다.","Si toute ou partie des dispositions de ces Conditions Générales est invalide ou inapplicable en vertu du droit en vigueur, cette partie des dispositions sera jugée sans effet, sans affecter d'aucune façon les parties restantes de ladite disposition ou les autres dispositions de ces Conditions Générales ","Se qualquer parte da disposição deste termos e Condições deva ser considerado inválida ou inexequível sob a lei em vigor, somente a dita parte deverá ser considerada ineficaz na medida da sua invalidade ou inexequibilidade, sem de forma alguma afetar as partes restantes disposição ou restantes disposições destes termos e Condições.","Wenn ein Teil einer Bestimmung dieser AGB unwirksam ist oder nach geltendem Recht nicht durchsetzbar ist, gilt dies nur für diesen Teil in dem Umfang einer solchen Unwirksamkeit oder Undurchführbarkeit, ohne in irgendeiner Weise zum Nachteil der übrigen Teile der Bestimmung oder die verbleibende Bestimmungen dieser Allgemeinen Geschäftsbedingungen zu werden.","Si cualquier parte de cualquier disposición de estos Términos y Condiciones es inválida o inejecutable según la legislación aplicable, dicha parte se considerará ineficaz en la medida de dicha invalidez o inaplicabilidad sólo, sin incidir en modo alguno las partes restantes de dicha disposición o del resto las disposiciones de estos Términos y Condiciones.","Qualora una clausola delle presenti Termini e Condizioni risulti invalida perché in contrasto con la legge applicabile, la restante parte dei presenti Termini e Condizioni dovrà rimanere pienamente in vigore.","Bu Şartlar ve Koşulların herhangi bir kısmı ya da hükmünün yürürlükteki kanunlar kapsamında geçersiz veya uygulanamaz kılınması durumunda, bahsi geçen kısım işbu Şartlar ve Koşulların kalan hükmü veya bahsi geçen hükmün diğer kısımlarını etkilemeyecek şekilde geçersiz olacaktır."]
["InstructionsA73","Instructions","A73","By accessing and using the List or any Tool, and in consideration thereof, the User agrees to the foregoing. ","通过登入和使用该列表或任何工具，并经过考量，该用户同意上述条款。","リストもしくはツールへのアクセス、又はその利用によって、またそれを考慮して、ユーザーは前述の事項に同意するものとします。","리스트와 툴로의 접속 및 사용에 의해서, 그리고 이러한 점을 고려하여, 사용자는 전술한 내용에 동의합니다.","En accédant et en utilisant cette Liste ou l'un des Outils, et en contrepartie de ceux-ci, l'Utilisateur accepte les dispositions précitées.","Ao aceder e utilizar a lista ou qualquer ferramenta, e após análise das mesmas, o Utilizador concorda com o acima exposto.","Beim Bearbeiten und der Benutzung der Liste oder eines jeglichen Werkzeuges und der Beachtung dessen, stimmt der Anwender dem vorhergehenden zu. ","Al acceder y utilizar la lista o herramienta alguna, y en consideración de los mismos, el Usuario se compromete a lo anterior.","Con l'accesso e l'uso della Lista o degli Strumenti, l'Utilizzatore accetta quanto segue.","Listeye ya da herhangi bir Araca erişerek ya da bunları kullanarak, Kullanıcı yukarıdaki hususları kabul etmiş olacaktır. "]
["DefinitionsB2","Definitions","B2","ITEM",null,"項目","용어","ITEM","Item","Posten","Articulo","Articolo","ÖĞE"]
[{"$f":"B73&C73","v":"DefinitionsB3"},"Definitions","B3","3TG","3TG 是钽 (Tantalum)、锡 (Tin)、钨 (Tungsten)、金 (Gold) 的缩写","3TG","3TG","3TG","3TG","3TG","3TG","3TG","3TG"]
["DefinitionsB4","Definitions","B4","Authorizer",null,"回答責任者","정보책임 담당자","Personne responsable","Pessoa que autoriza","Bevollmächtigter","Autorizador","Autorizzatore","İzin Yetkilisi"]
["DefinitionsB5","Definitions","B5","Conflict Mineral","冲突矿产 ","紛争鉱物\nConflict Mineral","분쟁광물 Conflict Mineral","Minerai de conflit","Mineral de conflito","Konfliktmineral","Minerales en conflicto","Minerali di conflitto (conflict minerals)","İhtilaf Konusu Maden","2010 tarihli Amerika Birleşik Devletleri yasaları, Dodd-Frank Wall Street Reformu ve Tüketicinin Korunması Kanunu Bölüm 1502(e)(4) kapsamında tanımlanan şekliyle:\nİHTİLAF KONUSU MADEN—‘İhtilaf konusu maden’’ terimi —\n(A) kolumbit-tantalit (koltan), kasiterit, altın, volframit veya türevleri ya da \n(B) ABD Dışişleri Bakanlığı tarafından Demokratik Kongo Cumhuriyeti ya da komşu ülkelerindeki ihtilaflara finansman sağladığı belirlenen diğer madenler veya türevlerini kapsamaktadır. (http://www.sec.gov/about/laws/wallstreetreform-cpa.pdf adresinden ulaşılabilir)"]
["DefinitionsB6","Definitions","B6","Covered Country(ies)","指明国家或地区","対象国","적용 국가(들)  Covered Country(ies)","Pays concerné(s)","País(es) Abrangido(s)","umfassendes Land(er)","País (es) cubiertos","Stato/i coperti","Kapsam Dahilindeki Ülke(ler)","ABD Dodd-Frank Wall Street Reformu ve 2010 tarihli Tüketicinin Korunması Kanunu tarafından tanımlanan şekliyle Kapsam Dahilindeki Ülke(ler). Bu ülkeler, Demokratik Kongo Cumhuriyeti ile bu ülkenin sınırlarını paylaştığı uluslararası kapsamda kabul edilen dokuz ülkeyi içerir: Angola, Burundi, Orta Afrika Cumhuriyeti, Kongo Cumhuriyeti, Ruanda, Güney Sudan, Tanzanya, Uganda, Zambiya. "]
["DefinitionsB7","Definitions","B7","Declaration Scope or Class","申报范围或种类 ","申告範囲又はクラス","선언범위 Declaration Scope","Périmètre de la Déclaration","âmbito ou classe da declaração","Erklärung Anwendungsbereich oder Klasse","Alcance de la declaración o clase","Perimetro della dichiarazione","Beyan Kapsamı ya da Sınıfı","Bu şablonun amaçları çerçevesinde, “kapsam” ifadesi, bildirimi yapan şirketin sağladığı bilgilerin geçerlilik alanını ifade etmektedir. Kapsam, bir şirketin hizmet ve/veya ürünlerinin tamamını ya da şirketin takdirinde olmak üzere bir kısmını içerebilir, şablon belirli bir ürün (ya da ürünler) hakkında bildirim yapmak için kullanılabilir ya da ‘Kullanıcı tanımlı’ olabilir. ‘Kullanıcı tanımlı’ kapsam seçimi ya da sınıfı, bir şirketin işletim ya da ürün portföyünün herhangi bir alt kümesini açıklamak için kullanılabilir."]
["DefinitionsB8","Definitions","B8","Dodd-Frank","多德-弗兰克","ドッド・フランク・ウォール街改革及び消費者保護法（ドッド・フランク）\nDodd-Frank","Dodd-Frank","Dodd-Frank","Dodd-Frank","Dodd-Frank","Dodd-Frank","Dodd-Frank","Dodd-Frank","2010 Amerika Birleşik Devletleri yasaları, Dodd-Frank Wall Street Reformu ve Tüketicinin Korunması Kanunu, Bölüm 1502 (“Dodd-Frank”) (http://www.sec.gov/about/laws/wallstreetreform-cpa.pdf)"]
[{"$f":"B79&C79","v":"DefinitionsB9"},"Definitions","B9","DRC","刚果民主共和国","コンゴ民主共和国（DRC）","콩고민주공화국 DRC","RDC","RDC","DRK","DRC","RDC","DKC","Demokratik Kongo Cumhuriyeti"]
[{"$f":"B80&C80","v":"DefinitionsB10"},"Definitions","B10","DRC conflict-free","刚果民主共和国无冲突的冲突矿产","DRCコンフリクトフリー\nDRC Conflict-Free","DRC Conflict-Free","RDC Sans Conflit","RDC Livre de Conflito","DRK Konflikt-Frei","Libre de conflicto de DRC","DRC senza conflitti","DKC ihtilafı içermeyen","Demokratik Kongo Cumhuriyeti veya komşu ülkelerindeki silahlı gruplara doğrudan ya da dolaylı olarak finansman sağlayan ya da bunlara fayda sunan maden içermeyen ürünler. Kaynak: 2010 Amerika Birleşik Devletleri yasaları, Dodd-Frank Wall Street Reformu ve Tüketicinin Korunması Kanunu, Bölüm 1502 (http://www.sec.gov/about/laws/wallstreetreform-cpa.pdf)"]
["DefinitionsB11","Definitions","B11","Gold (Au) refiner (smelter)","金精炼厂（冶炼厂）","金精製業者（製錬業者）","금 (Au) 정련소 (제련소) Gold (Au) Refiner (Smelter)","Fonderie d'or","Refinaria (fundição) de Ouro (Au)","Gold (Au) Raffinerie (Schmelzhutte)","Oro (Au) Refinador  (fundidor)","Fonderie/raffinerie d'oro","Altın (Au) rafinerisi (izabe tesisi)","Bir altın rafinerisi, altın ya da daha düşük konsantrasyonlarda altın içeren maddelerden %99,5 ya da üzeri konsantrasyona sahip sarı altın üreten bir metalurjik işlemdir. Eksiksiz bir açıklama için bu metalin RMAP denetleme protokolüne başvurun: http://www.responsiblemineralsinitiative.org/smelter-introduction/."]
["DefinitionsB12","Definitions","B12","Independent Third-Party Audit Firm","独立的第三方审核机构","独立民間監査会社","독립적인 민간부분 감사 기관","Cabinet d'audit indépendant du secteur privé","Empresa de Auditoria do sector privado","Unabhängige Private Wirtschaftsprüfungsgesellschaft","Firma de auditoria independiente del sector privado","Società privata indipendente di revisione","Bağımsız Üçüncü Kişi Denetim Firması","İzabe tesisi denetimleri bağlamında, “Bağımsız Üçüncü Kişi Denetim Firmaları” izabe tesisinin ya da rafinerinin malzemelerinin izlenebilirliğini RMAP veya eşdeğer denetim protokollerine uygun şekilde değerlendirme konusunda yetkin özel sektör kuruluşlarıdır. Tarafsızlığı korumak için bu kuruluşun ve denetim ekibi üyelerinin denetlenen kurum ile herhangi bir çıkar çatışması içerisinde olmaması gerekmektedir."]
["DefinitionsB13","Definitions","B13","Intentionally added","有意添加","意図的な付加","의도적 추가","Ajouté intentionnellement","Adicionado intencionalmente","Absichtlich hinzugefügt","Intencionalmente agregado","Aggiunto intenzionalmente","Kasten eklenmiş","Kasten eklenmiş ifadesi, bir maddenin ya da bu durumda bir metalin, özel bir karakter, görünüm ya da özellik katmak amacıyla bir formülde kasti bir şekilde kullanılması olarak bilinir.\n\nSEC “kasten eklenmiş” ifadesini nihai kurallarda* tam olarak kullanmıyor olsa da önsöz kısmında şu ifade yer alır:\n“İhtilaf konusu bir maddenin bir ürünün “imalatı ya da işlevselliği için gerekli” olup olmadığının belirlenmesinde doğal olarak ortaya çıkan yan ürün olması yerine kasten eklenmiş olmasının önemli bir faktör olduğunu kabul ediyoruz. Bu, ihtilaf konusu madenin üründe yer aldığı sürece, bu ürünü kimin kasten eklediğinden bağımsız olarak doğru bir ifade olacaktır. Bir ihtilaf konusu madenin bir ürün için “gerekli” olup olmadığının tespiti, ihtilaf konusu madenin ürüne doğrudan hazırlayan tarafından eklenmiş olup olmaması ya da hazırlayanın üçüncü kişiden aldığı bir ürün bileşenine eklenmiş olup olmamasına bağlı olmamalıdır. Bunun yerine, hazırlayan kişi ‘ürünün toplamı ile ilgili bildirimde bulunmalı ve gerekliliklere uyacak tedarikçiler ile birlikte çalışmalıdır.’ Bu nedenle, ihtilaf konusu bir madenin bir ürün için gerekli olup olmadığının belirlenmesinde, bu ihtilaf konusu maden üründe yalnızca orijinal olarak üçüncü kişi tarafından imal edilen bir ürün bileşenine dahil olduğu halde üründe olsa dahi hazırlayan kişi ürününde herhangi bir ihtilaf konusu maden bulunup bulunmadığını göz önünde bulundurmalıdır.\n*(56296 Federal Sicil / Sayı. 77, No. 177 / 12 Eylül 2012 Çarşamba / Kurallar ve Düzenlemeler)"]
["DefinitionsB14","Definitions","B14","IPC","IPC","IPC","IPC","IPC","IPC","IPC","IPC","IPC","IPC","IPC (www.IPC.org) merkezi Bannockburn, Ill.'de bulunan bir sanayi birliğidir ve tasarım, baskılı devre imalatı, elektronik tertibatı ve testi de içeren şekilde elektronik sektörünün her yönünü temsil eden 3.400 üye şirketin rekabetçi mükemmellik ve mali başarısına adanmıştır. Üyelerin öncülüğünde ilerleyen bir kuruluş ve sektör standartları, eğitim, pazar araştırması ve kamu düzeni savunuculuğu açısından öncü bir kaynak olan IPC tahmini olarak 2,0 trilyon $ değerinde küresel elektronik sektörünün ihtiyaçlarını karşılayacak programları desteklemektedir. IPC'nin Taos, N.M.; Washington, D.C.; Stockholm, İsveç; Moskova, Rusya; Bangalore, Hindistan; Bangkok, Tayland ve Şangay, Shenzhen, Chengdu, Suzhou ve Pekin, Çin'de de ofisleri bulunmaktadır."]
["DefinitionsB15","Definitions","B15","IPC-1755 Conflict Minerals Data Exchange Standard","IPC-1755 冲突矿产数据交换标准","IPC-1755紛争鉱物データ交換規格","IPC-1755 분쟁광물 데이터 교환 기준","IPC-1755 norme d'échange de données sur les minerais de conflit","IPC-1755 Norma de Troca de dados sobre Minerais de Conflito","IPC-1755 Conflict Minerals Data Exchange Standard","IPC-1755  Estándar de intercambio de datos para minerales conflictivos","IPC-1755 Conflict Minerals Data Exchange Standard","IPC-1755 İhtilaf Konusu Maden Veri Alışverişi Standardı","Bu IPC standardı, tedarikçiler ile müşterileri arasında ihtilaf konusu maden alışverişi için gereklilikleri tanımlamaktadır. Bu standart, kapsamlı bir kullanıcı yelpazesinin ihtiyaçlarını karşılamak için tek bir beyana dahil edilen ürün kapsamı konusunda esneklik sağlamaktadır. Bu standart, bir uyumluluk kılavuzu değildir. "]
["DefinitionsB16","Definitions","B16","Necessary for the Functionality of a Product","产品功能需要","製品の機能に必要","제품의 기능성을 위해 필요한","Nécessaire aux fonctionnalités d'un produit","Necessário para a funcionalidade de um produto","Erforderlich für die Funktionalität des Produkts","Necesario para la funcionalidad del producto","Necessario per la funzionalità del prodotto","Bir Ürünün İşlevselliği için Gerekli","SEC, nihai kurallarda bu ifade için resmi bir tanım vermemekte, ancak bir miktar kılavuzluk sağlamaktaydı: İhtilaf konusu bir maden, aşağıdaki koşulları sağlaması durumuna işlevsellik için gerekli görülecektir: 1) kasten ürüne veya ürünün herhangi bir bileşenine eklenmesi ve doğal olarak ortaya çıkan bir yan ürün olmaması, 2) ürünün genel olarak beklenen işlevi, kullanım alanı veya amacı için gerekli olması ve 3) ürünün birincil amacının süsleme ya da dekorasyon olmasından bağımsız olarak süsleme, dekorasyon veya donatma amacıyla eklenmiş olması.\n\nNOT: Geçerli olması için ihtilaf konusu madenin ürünün içinde bulunması gerekmektedir.\n\n*(56296 Federal Sicil / Sayı. 77, No. 177 / 12 Eylül 2012 Çarşamba / Kurallar ve Düzenlemeler)"]
["DefinitionsB17","Definitions","B17","Necessary for the Production of a Product","产品生产需要","製品の生産に必要","제품의 생산을 위해 필요한","Nécessaire à la production d'un produit","Necessário para a produção de um produto","Erforderlich für die Herstellung eines Produkt","necesario para la producción del producto","Necessario per la produzione di un prodotto","Bir Ürünün İmalatı için Gerekli","SEC, nihai kurallarda bu ifade için resmi bir tanım vermemekte, ancak bir miktar kılavuzluk sağlamaktaydı: İhtilaf konusu maden aşağıdaki durumlarda ürün imalatı için gerekli görülecektir: 1) ürünün imalatında kullanılan araç, makine veya ekipmanda (bilgisayarlar veya enerji hatları gibi) bulunduğu durumlar haricinde ürünün imalat sürecine kasten dahil edilmiş olması; 2) ürüne dahil edilmiş olması (geçerli olması için ihtilaf konusu madenin ürünün içinde bulunması gerekmektedir) ve 3) ve ürün için gerekli olması.\n\n*(56296 Federal Sicil / Sayı. 77, No. 177 / 12 Eylül 2012 Çarşamba / Kurallar ve Düzenlemeler)\n"]
["DefinitionsB18","Definitions","B18","OECD","经济合作与发展组织（Organization for Economic Co-operation and Development，OECD）","経済協力開発機構（OECD）","OECD","OCDE","OCDE","OECD","OECD","OECD","OECD","Ekonomik Kalkınma ve İşbirliği Örgütü"]
["DefinitionsB19","Definitions","B19","Product","产品","製品","제품 Product","Produit","Produto","Produkt","Producto","Prodotto","Ürün","Bir şirketin ürünü ya da son ürünü, imalat ve/veya işleme almanın son aşamasında tamamlanan bir malzeme ya da öğedir ve müşterilere dağıtım ya da satış yoluyla ulaştırılır."]
["DefinitionsB20","Definitions","B20","RBA","责任商业联盟（Responsible Business Alliance，RBA）","RBA","RBA","RBA","RBA","RBA","RBA","RBA","RBA","Responsible Business Alliance (www.responsiblebusiness.org)"]
["DefinitionsB21","Definitions","B21","Recycled or Scrap Sources","回收或废料源","再生利用品及びスクラップ起源\nRecycled and Scrap Sources","재활용 및 스크랩 광물 소스 Recycled and Scrap Sources","Fournisseurs de produits recyclés, rebuts de production ou déchets de consommation","Fontes de reciclado ou desperdício","Recycling oder Schrott Quellen","Fuentes de reciclado o de deshecho","Materiale riciclato e scorie","Geri Dönüşüm veya Hurda Kaynakları","ABD Menkul Kıymetler ve Döviz Komisyonu (www.sec.gov)"]
["DefinitionsB22","Definitions","B22","Responsible Minerals Assurance Process (RMAP)","负责任矿物审验流程 (RMAP)","責任ある鉱物保証プロセス（RMAP）\nResponsible Minerals Assurance Process","책임 있는 광물 보증 프로세스(Responsible Minerals Assurance Process (RMAP))","Programme pour les fonderies sans conflit (RMAP)","Programa  de fundições livres de conflito (RMAP)","Responsible Minerals Assurance Process (RMAP)","Proceso de aseguramiento de minerales responsables (RMAP)","Responsible Minerals Assurance Process (RMAP)","Sorumlu Maden Güvence Prosesi (RMAP)","İhtilafsız İzabe Tesisi Programı (RMAP), RBA ve GeSI tarafından şirketlerin metalleri sorumlu bir şekilde elde etme kapasitesini iyileştirmek için geliştirilmiş bir programdır. RMAP ile ilgili daha fazla bilgi için şu adrese başvurabilirsiniz: http://www.responsiblemineralsinitiative.org/responsible-minerals-assurance-process/."]
["DefinitionsB23","Definitions","B23","Responsible Minerals Initiative","负责任矿物计划","責任ある鉱物イニシアチブ（RMI）\nResponsible Minerals Initiative (RMI)","책임 있는 광물 이니셔티브(Responsible Minerals Initiative)","Initiative pour des approvisionnements  sans conflit","Responsible Minerals Initiative","Responsible Minerals Initiative","Iniciativa minerales responsables","Responsible Minerals Initiative (Iniziativa di Sourcing libera dai conflitti)","Sorumlu Maden Girişimi","2008 yılında, Responsible Business Alliance ve Küresel e-Sürdürülebilirlik Girişimi üyeleri tarafından kurulan İhtilafsız Kaynak Edinme Girişimi, şirketlerin tedarik zincirlerinde ihtilaf konusu madenler ile ilgili sorunlarla baş edebilmesi için en sık başvurulan ve en saygı duyulan kaynaklardan biri haline gelmiştir. Günümüzde yedi farklı sektörden, 150'nin üzerinde şirket CFSI'ye katılmış durumdadır ve bu şirketler, İhtilafsız İzabe Tesisi Programı, İhtilaf Konusu Maden Raporlama Şablonu, Makul Menşei Ülke Sorgulama verileri ile ihtilaf konusu maden kaynakları ile ilgili bir dizi kılavuz belgeyi de içeren birçok araç ve kaynağın gelişimine katkıda bulunmuştur. CFSI aynı zamanda, ihtilaf konusu madenler ile ilgili sorunlar ile ilgili düzenli atölye çalışmaları yürütmekte ve politikaların geliştirilmesine katkıda bulunarak öncü sivil toplum kuruluşları ve hükümetler ile müzakere etmektedir. Daha fazla bilgi için http://www.conflictfreesourcing.org adresine bakılabilir."]
["DefinitionsB24","Definitions","B24","RMAP Conformant Smelter List","无冲突冶炼厂计划合规冶炼厂列表","RMAP適合製錬業者リスト\nRMAP Compliant Smelter List","RMAP 준수 제련소 리스트","Liste des fonderies conformes au RMAP","Lista de fundições cumpridoras do RMAP","RMAP Compliant Smelter Liste","Lista de fundidores que cumplen con RMAP","Lista delle fonderie conformi al programma CFS","RMAP Uyumlu İzabe Tesisi Listesi","İhtilafsız İzabe Tesisi Programı (RMAP) Uyumlu İzabe Tesisi Listesi, İhtilafsız Kaynak Edinme Girişiminin (CFSI) bir programı olan RMAP'nin ya da sektördeki eşdeğer bir programın (Sorumlu Mücevher Şirketleri Konseyi veya Londra Bulyon Pazarı Birliği gibi) denetiminden geçmiş ve protokollere uyumlu olduğu tespit edilmiş izabe tesisleri ve rafinerilerin yayınlanmış listesini oluşturur. Bir izabe tesisi ya da rafinerinin listede olmaması, bir RMAP denetiminden geçmediği ya da RMAP protokollerine uymadığı anlamına gelir. \n\nRMAP ile uyumlu olduğu doğrulanmış olan izabe tesisleri ve rafinerilerin listesine www.conflictfreesourcing.org adresinden ulaşılabilir. "]
["DefinitionsB25","Definitions","B25","SEC","证券交易委员会 (SEC)","米国証券取引委員会（SEC）","미국증권거래위원회 SEC","SEC","SEC","SEC","SEC","SEC","SEC","İzabe tesisleri ya da rafineriler, madeni cevher, cüruf ve/veya geri dönüştürülmüş ya da hurda kaynakları tedarik eden ya da işlemden geçmiş metallere ya da metal içeren ara ürünlere dönüştüren şirketlerdir. Çıktı olarak saf (%99,5 veya üzeri) metal, toz, külçe, çubuk, tanecik, oksit ya da tuz elde edilebilir. “İzabe tesisi” ve “rafineri” terimleri farklı yayınlarda birbiri yerine kullanılmaktadır. "]
["DefinitionsB26","Definitions","B26","Smelter","冶炼厂","製錬業者\nSmelter","제련소 Smelter","Fonderie","Fundição","Schmelzhütte","Fundidor","Fonderia","İzabe Tesisi","RMAP denetim protokollerinde tanımlanan izabe tesisi veya rafineri özelliklerini karşıladığı doğrulanmış olsun ya da olmasın CFSI'nin tedarik zincirinde izabe tesisi ya da rafineri olduğu belirtilen şirketlere atadığı benzersiz tanımlama numarası."]
[{"$f":"B97&C97","v":"DefinitionsB27"},"Definitions","B27","Smelter Identification Number","冶炼厂识别序号","製錬業者識別番号","제련소 ID 번호 ","Numéro d'identification d'une fonderie","Número de Identificação da fundição","Schmelzhütte Id-Nummer","Numero de identificación del fundidor","Numero di identificazione della fonderia","İzabe Tesisi Tanımlama Numarası","Tantal izabe tesisleri (işlemci olarak da bilinir) Ta içeren cevherleri, konsantratları, cürufları ya da ikincil maddeleri doğrudan satan ya da tantal ara ürünlerine ya da Ta tozları, Ta bileşenleri, Ta oksitler, alaşımlar, teller, toplaşık çubuklar gibi diğer Ta içeren ürünlere dönüştüren şirketlerdir. Eksiksiz bir açıklama için bu metalin RMAP denetleme protokolüne başvurun: http://www.responsiblemineralsinitiative.org/smelter-introduction/."]
["DefinitionsB28","Definitions","B28","Tantalum (Ta) smelter","钽 (Ta) 冶炼厂","タンタル製錬業者\nTantalum Smelter","탄탈륨 (Ta) 제련소 Tantalum (Ta) Smelter","Fonderie de tantale","Fundição de Tântalo (Ta)","Tantal (Ta) Schmelzhütte","Fundidor de Tantalio (Ta)","Fonderia di tantalio","Tantal (Ta) izabe tesisi","Birincil [kalay] izabe tesisleri, kalay metali üretmek için kalay içeren cevher konsantratlarını işleme alan bir veya daha fazla tesise sahip şirketlerdir. İkincil [kalay] izabe tesisleri, ham veya daha yüksek dereceli kalay veya lehim gibi kalay ürünleri üretmek için ikincil malzemeleri işleme alan bir veya daha fazla tesise sahip şirketlerdir. Bu denetim protokolü kapsamında atıfta bulunulan izabe tesisleri bir veya iki işletme türünden olabilir. Eksiksiz bir açıklama için bu metalin RMAP denetleme protokolüne başvurun: http://www.responsiblemineralsinitiative.org/smelter-introduction/."]
["DefinitionsB29","Definitions","B29","Tin (Sn) smelter","锡 (Sn) 冶炼厂","錫製錬業者\nTin Smelter","주석 (Sn) 제련소 Tin (Sn) Smelter","Fonderie d'étain","Fundição de Estanho (Sn)","Zinn (Sn) Schmelzhütte","Fundidor de Estaño (Sn)","Fonderia di stagno","Kalay (Sn) izabe tesisi","W içeren cevherleri (volframit ve şelit gibi), W konsantratlarını ya da W içeren hurdaları (ikincil malzeme) doğrudan satmak ya da W içeren diğer ürünlere (W tozu veya W karbür tozu gibi) dönüştürmek için, Amonyum Para Tungstat (APT), Amonyum Meta Tungstat (AMT), ferrotungsten ve tungsten oksitler gibi tungsten içeren ara ürünlere dönüştüren bir veya daha fazla tesis sahibi şirket.  Eksiksiz bir açıklama için bu metalin RMAP denetleme protokolüne başvurun: http://www.responsiblemineralsinitiative.org/smelter-introduction/."]
["DefinitionsB30","Definitions","B30","Tungsten (W) smelter","钨 (W) 冶炼厂","タングステン製錬業者\nTungsten Smelter","텅스텐 (W) 제련소 Tungsten (W) Smelter","Fonderie de tungstène","Fundição de Tungsténio (W)","Wolfram (W) Schmelzhütte","Fundidor de Tungsteno (W)","Fonderia di tungsteno","Tungsten (W) izabe tesisi"]
["DefinitionsC2","Definitions","C2","DEFINITION",null,"定義","정의","DEFINITION","Definição","Definition","DEFINICION","DEFINIZIONE","TANIM"]
[{"$f":"B102&C102","v":"DefinitionsC3"},"Definitions","C3","Tantalum, tin, tungsten, gold","钽、锡、钨、金","タンタル、錫、タングステン、金","탄탈륨,  주석, 텅스텐, 금","Tantale, étain, tungstène, or","Tântalo, estanho, tungsténio, ouro","Zinn, Tantal, Wolfram, gold","Tantalio, Estaño, Tungsteno, Oro","Tantalio, stagno, tungsteno, oro","Tantal, kalay, tungsten, altın"]
["DefinitionsC4","Definitions","C4","This field identifies the person responsible for the content of the declaration. The authorizer may be a different individual from the contact person. It is not correct to use the words ‘‘same’’ or similar identification to provide the name of the authorizer. ","此字段定义负责申报内容的人员。授权人可能与联络人不同。请勿填写“相同”或相似信息，需提供授权人的姓名。 ","この欄は、申告内容の回答責任者を特定します。回答責任者は連絡先と異なる人でもかまいません。「同上」又は同様の表記は避けてください。"," 이 양식에 기입되는 정보를 책임질 수 있는 담당직원 성명을 기입하십시오.  이담당자는 수신 담당자와 다른 개인일 수 있읍니다.  동일할 경우, \"Same\" (동일) 또는 비슷한 용어는사용하지 마십시오.  ","Ce champ indique la personne responsable du contenu de la déclaration. La personne responsable peut être différente du contact. Il n'est pas autorisé d'utiliser le mot''identique'' ou équivalent au lieu de fournir le nom de la personne responsable. ","Este campo identifica a pessoa responsável pelo conteúdo desta declaração. A pessoa que autoriza, ou responsável legal pode ser um indivíduo diferente da pessoa de contacto. Não é correto usar a palavra \"mesmo\" ou identificação similar para fornecer o nome da pessoa que autoriza.","Dieses Feld identifiziert die Person, welche  für den Inhalt der Erklärung verantwortlich ist. Der Bevollmächtigte kann eine andere Person sein als der Ansprechpartner. Es ist nicht richtig, wenn sie die Worten \"gleiche\" oder ähnliche Identifikation wie  der Name des Bevollmächtigten benutzen.","Este campo identifica la persona responsable del contenido de la declaración. El autorizador puede ser un individuo diferente de la persona contacto. No es correcto usar la palabra  \"mismo\" o algo similar para dar el nombre del autorizador.","Questo campo identifica la persona avente la responsabilità del contenuto della dichiarazione. Colui che autorizza può essere una persona diversa rispetto al riferimento come contatto. Non è corretto l'impiego della parola \"uguale\" o di simili identificazioni per indicare il nome della persona che autorizza.","Bu alan, beyanın içeriğinden sorumlu kişiyi tanımlama amacı taşır. İzin yetkilisi, irtibat kişisinden farklı bir kişi olabilir. İzin yetkilisinin adı belirtilirken “aynı” gibi ifadelerin kullanılması doğru olmayacaktır. "]
["DefinitionsC5","Definitions","C5","As defined in  2010 United States legislation, Dodd-Frank Wall Street Reform and Consumer Protection Act, Section 1502(e)(4):\nCONFLICT MINERAL.—The term ‘‘conflict mineral’’ means—\n(A) columbite-tantalite (coltan), cassiterite, gold, wolframite, or their derivatives; or\n(B) any other mineral or its derivatives determined by the Secretary of State to be financing conflict in the Democratic Republic of the Congo or an adjoining country.  (available at http://www.sec.gov/about/laws/wallstreetreform-cpa.pdf)","根据 2010 年通过的《多德-弗兰克华尔街金融改革与消费者保护法》(Dodd-Frank Wall Street Reform and Consumer Protection Act) 的法律定义，第 1502（e)(4）条：“冲突矿物”是指 (A) 钶-钽（钶钽）、锡石、金、黑钨或其衍生物质；或 (B) 任何由美国国务卿定性为引起刚果民主共和国或毗邻国家或地区财务冲突的矿产及其衍生物。（详细信息，请参见 http://www.sec.gov/about/laws/wallstreetreform-cpa.pdf）","2010年に制定された米国のドッド・フランク・ウォール街改革及び消費者保護に関する法(ドッドフランク法）の1502条(e)(4)に定義されているように、「紛争鉱物」とは\n(A) コロンバイト・タンタライト（コルタン）、錫石、金、鉄マンガン重石及びその派生物、もしくは、\n(B) コンゴ民主共和国や隣接国における紛争の資金源となっていると国務長官が判断したその他のあらゆる鉱物又はその派生物を意味する。\n（ http://www.sec.gov/about/laws/wallstreetreform-cpa.pdfを参照）","2010년 미국 제정법, 도드-프랭크 (“Dodd-Frank”) 금융 개혁 및 소비자 보호를 위한 법률, 1502(e)(4)조 정의에 의한바:\n\"분쟁광물 (Conflict Mineral)\"이란\n(A) columbite-tantalite (coltan), cassiterite, 금, wolframite 또는 그들의 유도체; 또는\n(B) 미국무장관에 의해 콩고 민주공화국 또는 인접국가의 무장단체에게 이익을 제공하는 것으로 결정된 광물 및 그의 유도체 (http://www.sec.gov/about/laws/wallstreetreform-cpa.pdf에 있음)","Comme défini dans le \"Dodd–Frank Wall Street Reform and Consumer Protection Act\", Section 1502(e)(4), loi des Etats-Unis d'Amérique de 2010:\nMINERAI DE CONFLIT. - le terme \"minerai de conflit\" signifie:\n(A)columbite-tantalite (coltan), cassiterite, or, wolframite ou leur dérivés; \nou\n(B) tout autre minerai ou ses dérivés déterminé par le Secrétaire d'Etat comme finançant un conflit en République Démocratique du Congo ou un pays frontalier.\n(disponible a http://www.sec.gov/about/laws/wallstreetreform-cpa.pdf)","Como definido em 2010 pela legislação do Estados Unidos da América, no decreto de Reforma e Proteção do Consumidor Dodd-Frank Wall Street, Section 1502(e)(4):\nMINERAL DE CONFLITO-O termo \"mineral de conflito\" significa-\n(A) Columbite-tantalita (coltan), cassiterita, ouro, volfrâmio, ou o seus derivados; ou\n(B) qualquer outro mineral os ou seus derivados determinados pela Secretaria de Estado como financiando conflitos na República Democrática do Congo ou país adjacente. ( Disponível em http://www.sec.gov/about/laws/wallstreetreform-cpa.pdf)","Wie in der 2010 US Gesetzgebung, Dodd-Frank-Walls Street Reform and Consumer Protection Art, Section 1502 (e)(4): Konflikt Mineral definiert - bedeutet der Begriff \"Konflikt Mineral\" -\n(A) Columbit-Tantalit (Coltan), Kassiterit, Gold, Wolframit, oder ihre Derivate; oder\n(B) jedes andere Mineral oder seine Derivate das durch das Secretary of State für die Finanzierung des Konflikts in der Demokratischen Republik Kongo oder einem angrenzenden Land bestimmt wurde.\n(Verfügbar unter: http://www.sec.gov/about/laws/wallstreetreform-cpa.pdf)","Como esta definido en la legislación de los Estados Unidos de 2010, en la reforma Dodd-Frank de Wall Street  y en la ley de protección al consumidor, Sección 1502(e)(4):\nMINERAL EN CONFLICTO.—El termino \" mineral en conflicto\" significa—\n(A) columbita-tantalita (coltan), cassiterita, oro, wolframio, o sus derivados,  or\n(B) Cualquier otro mineral o sus derivados determinados por la secretaria de estado que estén financiando un conflicto en la Republica Democrática del Congo o en países limítrofes.\n(disponible en  http://www.sec.gov/about/laws/wallstreetreform-cpa.pdf)","Come definito dalla legge 2010 degli Stati Uniti d'America, la Riforma Dodd-Frank Wall Street e la Consumer Protection Act, Sezione 1502 (e) (4):\nMINERALI DI CONFLITTO. - il termine \"minerale di confillo\" significa -\n(A) Columbite-tantalite (coltan), cassiterite, oro, wolframite, o loro derivati; o\n(B) tutti gli altri minerali o loro derivati definiti dalla Segreteria di stato come finanziatori di un conflitto nella Rerpubblica Democratica del Congo o paesi confinanti (disponibile su http://www.sec.gov/about/laws/wallstreetreform-cpa.pdf","2010 tarihli Amerika Birleşik Devletleri yasaları, Dodd-Frank Wall Street Reformu ve Tüketicinin Korunması Kanunu Bölüm 1502(e)(4) kapsamında tanımlanan şekliyle:\nİHTİLAF KONUSU MADEN—‘İhtilaf konusu maden’’ terimi —\n(A) kolumbit-tantalit (koltan), kasiterit, altın, volframit veya türevleri ya da \n(B) ABD Dışişleri Bakanlığı tarafından Demokratik Kongo Cumhuriyeti ya da komşu ülkelerindeki ihtilaflara finansman sağladığı belirlenen diğer madenler veya türevlerini kapsamaktadır. (http://www.sec.gov/about/laws/wallstreetreform-cpa.pdf adresinden ulaşılabilir)"]
["DefinitionsC6","Definitions","C6","Covered Country(ies) as defined by the United States Dodd-Frank Wall Street Reform and Consumer Protection Act of 2010. These countries include the Democratic Republic of the Congo and the nine countries with which it shares an internationally recognized border: Angola, Burundi, Central African Republic, Republic of the Congo, Rwanda, South Sudan, Tanzania, Uganda, Zambia.  ","2010 年，通过的《多德-弗兰克华尔街金融改革与消费者保护法》(Dodd-Frank Wall Street Reform and Consumer Protection Act) 定义了所禁止的源产地国家，即刚果民主共和国及与其分享国际公认国境线的 9 个国家，分别是安哥拉、布隆迪、中非共和国、刚果共和国、卢旺达、南苏单、坦桑尼亚、乌干达和赞比亚。","ドッドフランク法に制定された対象国はDRC及びDRCと国境を共有すると国際的に認められた9カ国と定義されている。9カ国とは、アンゴラ、ブルンディ、中央アフリカ共和国、コンゴ共和国、ルワンダ、南スーダン、タンザニア、ウガンダとザンビア。","미국 도드-프랭크 금융개혁 및 소비자 보호에 관한 2010년 법률에 의해 정의된 Covered Country(ies). 이 국가들은 콩고 민주 공화국와 국제적으로 국경을 공유하고 있는 아홉 나라 (앙골라, 부룬디, 중앙아프리카, 콩고 공화국, 르완다, 남수단, 탄자니아, 우간다, 잠비아)를 포함.","\nPays couvert (s) tel que défini dans le \"Dodd–Frank Wall Street Reform and Consumer Protection Act\", Section 1502(e)(4), loi des Etats-Unis d'Amérique de 2010: ces pays sont la République démocratique du Congo et les neuf pays avec lesquels elle partage une frontière internationalement reconnue: Angola, Burundi, République centrafricaine, République du Congo, Rwanda,  Sud Soudan, Tanzanie, Ouganda, Zambie.","País(es) abrangido(s) conforme definido pelo decreto dos EUA de Wall Street - Dood -Frank - Reforma e Proteção do Consumidor. Estes Países incluem a República Democrática do Congo e os nove países com os quais partilha fronteiras reconhecidas internacionalmente: Angola, Burundi, República Africana Central, República do Congo, Ruanda, Sudão do Sul, Tanzânia, Uganda, Zâmbia.","Betroffene Länder sind durch die Vereinigten Staaten Dodd-Frank Wall Street Reform und Consumer Protection Act von 2010 definiert. Diese Länder sind: die Demokratische Republik Kongo und die neun Länder, mit denen sie eine international anerkannte Grenze teilen: Angola, Burundi, Zentralafrikanische Republik, Republik Kongo, Ruanda, Südsudan, Tansania, Uganda, Sambia.","País (es) cubiertos como se define en la Ley Dodd-Frank de Reforma de Wall Street de Estados Unidos y la Ley de Protección al Consumidor de 2010. Estos países incluyen en la República Democrática del Congo y los nueve países con los que comparte una frontera reconocida internacionalmente: Angola, Burundi, República Centroafricana, República del Congo, Ruanda, Sudán del Sur, Tanzania, Uganda, Zambia.","I Paesi Coinvolti, come definiti dallo United States Dodd-Frank Wall Street Reform and Consumer Protection Act of 2010. Tali paesi includono la Repubblica Democratica del Congo e i nove Paesi con cui condivide confini internazionalmente riconosciuti: Angola, Burundi, Repubblica Centro Africana, Repubblica del Congo, Ruwanda, Sud Sudan, Tanzania, Uganda, Zambia.","ABD Dodd-Frank Wall Street Reformu ve 2010 tarihli Tüketicinin Korunması Kanunu tarafından tanımlanan şekliyle Kapsam Dahilindeki Ülke(ler). Bu ülkeler, Demokratik Kongo Cumhuriyeti ile bu ülkenin sınırlarını paylaştığı uluslararası kapsamda kabul edilen dokuz ülkeyi içerir: Angola, Burundi, Orta Afrika Cumhuriyeti, Kongo Cumhuriyeti, Ruanda, Güney Sudan, Tanzanya, Uganda, Zambiya. "]
[{"$f":"B106&C106","v":"DefinitionsC7"},"Definitions","C7","For the purposes of this template, “scope” describes the applicability of the information provided by the reporting company.  The scope may encompass the entirety of a company’s services and/or products, or at a company’s discretion, the template may be used to report on a specific product (or products), or, be ‘User defined’.  The ‘User defined’ scope selection or class may be used to describe any subset of a company’s operation or product portfolio.","为实现本模板的设计目的，“申报范围”明确了申报公司所申报信息的适用性。申报范围可能涵盖了整间申报公司所提供的产品和服务或其部份适用的产品和服务。此模板也可用于单一、多种或申报人自定义的产品。 “用户自定义”的申报范围可用于仅部分公司营运适用或部分产品系列适用的情况。","このテンプレートの目的に鑑み、範囲とは報告を行う企業が提供する情報の適用範囲を示す。範囲には企業のサービスや製品全体が含まれる場合がある。また、企業の判断において、このテンプレートは、企業の特定の製品又は「ユーザー定義」を報告範囲として使用してもよい。「ユーザー定義」は、企業の事業部門又は製品カテゴリーを選択範囲として説明するために使用できる。","이 템플릿 목적 상, \"선언 범위\"는 신고 회사에서 제공하는 정보의 적용성을 나타냄. 이 범위는 회사의 서비스 및/또는 제품의 전체를 포괄하거나, 또는 회사 재량에 따라, 템플릿을 회사의 특정 제품 (들) 또는 \"사용자 정의\"로 사용할 수 있다. \"사용자 정의\"된 범위 선택이나 급은 회사의 운영이나 생산 포트폴리오의 일부를 설명하는데 사용될 수 있다.","Dans ce formulaire, le \"Périmètre\" décrit le domaine dans lequel les informations fournies par l'entreprise le complétant sont applicables. Le périmètre peut englober l'ensemble des services et / ou produits de l'entreprise, ou, à la discrétion de l'entreprise, le formulaire peut être utilisé pour un (des) produit(s) spécifique(s), ou être \"défini par l'utilisateur\". Le périmètre  \"défini par l'utilisateur\" peut décrire n'importe quelle partie des opérations ou du portefeuille de produits de l'entreprise.","Para os fins deste modelo, o \"âmbito\" descreve a aplicabilidade da informação fornecida pela empresa . O âmbito pode envolver a totalidade dos serviços e/ou produtos  da empresa, ou conforme critério da empresa, o modelo pode ser usado para reportar um produto(ou produtos) específico , ou, ser \"Definido pelo utilizador\". A seleção  ou classe do âmbito \"definido pelo utilizador\" pode ser usada para descrever  qualquer derivado de uma operação ou produto do portfolio da empresa. ","Der Zwecke dieser Vorlage \"Anwendungsbereich\" beschreibt die Anwendbarkeit der Informationen durch das bilanzierende Unternehmen. Die Möglichkeiten umfassen die Gesamtheit der Dienstleistungen und/oder Produkte oder die Vorlage kann in einem Unternehmen nach eigenem Ermessen für einen Bericht über ein bestimmtes Produkt (oder Produkte) oder \"User defined\" verwendet werden.  Die Auswahl des \"User defined\" Anwendungsbereichs oder Klasse kann dazu verwendet werden, um einen Teil eines Unternehmens oder Produkt Portfolio zu beschreiben.","Para propósitos de este templete, el alcance describe la aplicabilidad de la información proveída por la compañía que reporta.  El alcance puede englobar todos los servicios de la compañía y/o productos, o a discreción de la compañía, el templete puede ser usado para reportar un producto en especifico  ( o productos), o, ser \"definido por el usuario\".  El alcance o clase  \"definido por el Usuario\"  puede ser usado para describir cualquier  parte de la operación de la compañía o portafolio de productos.","Seondo gli obiettivi del questionario, \"scopo\" descrive il perimetro di applicabilità delle informazioni fornite dalla società compilatrice. Il perimetro può comprendere la totalità dei servizi e/o prodotti della societa o, a discrezione dell'azienda, il questionario può essere utilizzato per uno specifico prodotto (o prodotti) o definito dall'utente. La selezione dello scopo \"definito dall'utente\"  può essere utilizzato per descrivere un sottogruppo delle attività della società o del suo portafoglio prodotti.","Bu şablonun amaçları çerçevesinde, “kapsam” ifadesi, bildirimi yapan şirketin sağladığı bilgilerin geçerlilik alanını ifade etmektedir. Kapsam, bir şirketin hizmet ve/veya ürünlerinin tamamını ya da şirketin takdirinde olmak üzere bir kısmını içerebilir, şablon belirli bir ürün (ya da ürünler) hakkında bildirim yapmak için kullanılabilir ya da ‘Kullanıcı tanımlı’ olabilir. ‘Kullanıcı tanımlı’ kapsam seçimi ya da sınıfı, bir şirketin işletim ya da ürün portföyünün herhangi bir alt kümesini açıklamak için kullanılabilir."]
["DefinitionsC8","Definitions","C8","2010 United States legislation, Dodd-Frank Wall Street Reform and Consumer Protection Act, Section 1502 (“Dodd-Frank”) (http://www.sec.gov/about/laws/wallstreetreform-cpa.pdf)","2010 年，美国通过立法《多德-弗兰克华尔街金融改革与消费者保护法》(Dodd-Frank Wall Street Reform and Consumer Protection Act) 第 1502 条（简称“多德-弗兰克”）                                  (http://www.sec.gov/about/laws/wallstreetreform-cpa.pdf)","2010年に制定された米国のドッド・フランク・ウォール街改革及び消費者保護に関する法「ドッド・フランク法」）の1502条 （http://www.sec.gov/about/laws/wallstreetreform-cpa.pdf）","2010년 미국 제정법, 도드프랭크 금융 개혁 및 소비자 보호를 위한 법률, 1502조(“Dodd-Frank”) \nhttp://www.sec.gov/about/laws/wallstreetreform-cpa.pdf","Loi Dodd-Frank des Etats-Unis d'Amérique de 2010 sur la Réforme  de Wall Street et la protection des consommateurs, Section 1502 (\"Dodd-Frank\")\n(http://www.sec.gov/about/laws/wallstreetreform-cpa.pdf)","Legislação de 2010 dos Estados unidos da América, decreto de Reforma e Proteção do Consumidor Dodd-Frank Wall Street, Secção 1502 (\"Dodd-Frank\")\n(http://www.sec.gov/about/laws/wallstreetreform-cpa.pdf)","2010 US Gesetzgebung, Dodd-Frank-Walls Street Reform and Consumer Protection Art, Section 1502 (\"Dodd-Frank\") (http://www.sec.gov/about/laws/wallstreetreform-cpa.pdf)","Legislación 2010 de los Estados Unidos, reforma Dodd-Frank  de Wall Street y Ley de protección al consumidor. Sección 1502 (“Dodd-Frank”) (http://www.sec.gov/about/laws/wallstreetreform-cpa.pdf)","La legge 2010 degli Stati Uniti d'America, Riforma Dodd-Frank Wall Street e Consumer Protection Act, Sezione 1502 (\"Dodd-Frank\") (http://www.sec.gov/about/laws/wallstreetreform-cpa.pdf)","2010 Amerika Birleşik Devletleri yasaları, Dodd-Frank Wall Street Reformu ve Tüketicinin Korunması Kanunu, Bölüm 1502 (“Dodd-Frank”) (http://www.sec.gov/about/laws/wallstreetreform-cpa.pdf)"]
[{"$f":"B108&C108","v":"DefinitionsC9"},"Definitions","C9","Democratic Republic of Congo","刚果民主共和国","コンゴ民主共和国","콩고민주공화국","République Démocratique du Congo","República Democrática do Congo","Demokratische Republik Kongo","Republica Democrática del Congo","Repubblica Democratica del Congo","Demokratik Kongo Cumhuriyeti"]
["DefinitionsC10","Definitions","C10","Products that do not contain minerals that directly or indirectly finance or benefit armed groups in the Democratic Republic of the Congo or an adjoining country.  Source: 2010 United States legislation, Dodd-Frank Wall Street Reform and Consumer Protection Act, Section 1502 (http://www.sec.gov/about/laws/wallstreetreform-cpa.pdf)","产品不含能直接或间直资助和受益于刚果民主共和国或毗邻国家内武装组织的物质成分。资料来源：2010 年，美国通过立法《多德-弗兰克华尔街金融改革与消费者保护法》第 1502 条 (http://www.sec.gov/about/laws/wallstreetreform-cpa.pdf)","コンゴ民主共和国またはその隣接国の武装グループに直接又は間接的に資金提供又は利益供与する鉱物を含まない製品と定義される。出典：2010年に制定された米国のドッド・フランクウォール街改革及び消費者保護に関する法「ドッド・フランク法」）1502条 （http://www.sec.gov/about/laws/wallstreetreform-cpa.pdf）","콩고민주공화국이나 인접국가의 무장단체에게 직접 또는 간접적인 이익을 제공한 광물을 사용하지 않은 제품\n참조: 2010년 미국 제정법, 도드-프랭크 금융 개혁 및 소비자 보호를 위한 법률 제1502조 (http://www.sec.gov/about/laws/wallstreetreform-cpa.pdf)","\nLes produits ne contenant pas de minerais qui  finançant ou bénéficiant directement ou indirectement à des groupes armés de la République Démocratique du Congo ou de pays frontaliers. Loi Dodd-Frank des Etats-Unis d'Amérique de 2010 sur la Réforme  de Wall Street et la protection des consommateurs, Section 1502 (\"Dodd-Frank\")\n(http://www.sec.gov/about/laws/wallstreetreform-cpa.pdf)","Produtos que não contêm minerais que diretamente ou indiretamente financiam ou beneficiam grupos armados na república Democrática do Congo ou países vizinhos. Fonte: Legislação de 2010 dos Estados unidos da América, decreto de Reforma e Proteção do Consumidor Dodd-Frank Wall Street, Secção 1502.\n(http://www.sec.gov/about/laws/wallstreetreform-cpa.pdf)","Produkte, die keine Mineralien enthalten, welche direkt oder indirekt bewaffnete Gruppen in der Demokratischen Republik Kongo oder ein angrenzendes Land finanzieren oder unterstützen. Quelle: 2010 Vereinigten Staaten geltende Dodd-Frank Wall Street Reform und Consumer Protection Act\" 1502 (http://www.sec.gov/about/laws/wallstreetreform-cpa.pdf)","Productos que no contienen minerales que directa o indirectamente financien o beneficien grupos armados en la Republica Democrática del Congo o países limítrofes.  Fuente: Legislación 2010 de los Estados Unidos, Reforma Dodd-Frank de Wall Street y Ley de Protección al Consumidor, Sección 1502 (http://www.sec.gov/about/laws/wallstreetreform-cpa.pdf)","E' definito per indicare i prodotti che non contengono minerali che direttamente o indirettamente finanaziano o avvantaggiano gruppi armati nella Repubblica Democratica del Congo o nei paesi confinanti. Fonte: 2010 United States legislation, Dodd-Frank Wall Street Reform and Consumer Protection Act, Section 1502 (http://www.sec.gov/about/laws/wallstreetreform-cpa.pdf)","Demokratik Kongo Cumhuriyeti veya komşu ülkelerindeki silahlı gruplara doğrudan ya da dolaylı olarak finansman sağlayan ya da bunlara fayda sunan maden içermeyen ürünler. Kaynak: 2010 Amerika Birleşik Devletleri yasaları, Dodd-Frank Wall Street Reformu ve Tüketicinin Korunması Kanunu, Bölüm 1502 (http://www.sec.gov/about/laws/wallstreetreform-cpa.pdf)"]
["DefinitionsC11","Definitions","C11","A gold refiner is a metallurgical operation that produces fine gold with a concentration of 99.5% or higher from gold and gold-bearing materials with lower concentrations.  Refer to the RMAP audit protocol for this metal for a complete description: http://www.responsiblemineralsinitiative.org/smelter-introduction/.","金精炼是指一种从黄金和含金量低的物料中提炼出纯度达 99.5% 或更高的黄金的冶金操作。请参考负责任矿物审验流程中的审核标准，了解对这类型金属的完整描述：http://www.responsiblemineralsinitiative.org/smelter-introduction/。","金精製業者とは、金及び純度の低い金含有物から純度99.5%以上の純金を生産する冶金業者である。この金属の詳しい説明は、次のRMAP監査手順を参照のこと。 http://www.responsiblemineralsinitiative.org/smelter-introduction/","금 제련소는 순도가 낮은 금원석 및 금을 함유하고 있는 물질을 순도 99.5% 이상의 순금으로 야금하는 곳을 말한다. 이 광물의 완전한 설명을 위해 RMAP 감사 절차를 참조하시오: http://www.responsiblemineralsinitiative.org/smelter-introduction/.","Fondre de l'or est une opération métallurgique produisant de l'or fin avec une concentration de 99,5% ou plus à partir d'or ou de matériaux comprenant de l'or en concentrations plus faibles. Reportez-vous au protocole de vérification de ce métal du RMAP pour une description complète: http://www.responsiblemineralsinitiative.org/smelter-introduction/.","A refinaria de ouro é uma operação metalúrgica que produz ouro fino com uma concentração de 99.5% ou superior a partir de ouro ou materiais com baixos conteúdos de ouro. Recorra ao protocolo de auditoria de RMAP para a descrição completa deste material:\nhttp://www.responsiblemineralsinitiative.org/smelter-introduction/.","Eine Gold-Raffinerie ist ein metallurgischer Verarbeiter, der Feingold mit einer Konzentration von 99,5% oder höher aus Gold und goldhaltigen Materialien mit niedrigeren Konzentrationen produziert. Hier finden Sie in der RMAP-Prüfprotokolle für dieses Metall für eine vollständige Beschreibung: http://www.responsiblemineralsinitiative.org/smelter-introduction/.","Una refinación de Oro es una operación metalúrgica que produce Oro fino con una concentración de 99.5% o mayor del Oro o de materiales que contengan Oro con menor concentración. Referirse a la auditoria del  programa RMAP para este metal para una completa descripción:  http://www.responsiblemineralsinitiative.org/smelter-introduction/.","La raffinazione dell'oro è un'operazione metallurgica, che produce un oro raffinato con una concentrazione del 99,5% o più, da oro o materiale aurifero con concentrazioni più basse. Fare riferimento al protocollo verifica RMAP per questo metallo per una descrizione completa: http://www.responsiblemineralsinitiative.org/smelter-introduction/.","Bir altın rafinerisi, altın ya da daha düşük konsantrasyonlarda altın içeren maddelerden %99,5 ya da üzeri konsantrasyona sahip sarı altın üreten bir metalurjik işlemdir. Eksiksiz bir açıklama için bu metalin RMAP denetleme protokolüne başvurun: http://www.responsiblemineralsinitiative.org/smelter-introduction/."]
["DefinitionsC12","Definitions","C12","With respect to smelter audits, an “Independent Third-Party Audit Firm” is a private sector organization competent in evaluating the smelter or refiner’s materials traceability against the standards of the RMAP or equivalent audit protocols.  To maintain neutrality and impartiality, such organization and its audit team members must have no conflicts of interest with the auditee.","冶炼厂审核中提到的“独立的第三方审核机构”是私营部门组织，它评估冶炼厂或精炼厂对物料的可追朔性是否达到负责任矿物审验流程 (RMAP) 中的标准或相关审核标准。为确保中立及公正，这类机构及其审核团队必须与被审核方无利益交往。","製錬所監査について、「独立第三者監査会社」とは、RMAP監査基準又は同等の監査手順を用い製錬業者の材料トレーサビリティを評価する能力がある民間組織である。中立性および公平性を保つために、こうした組織と監査チームのメンバーは、被監査者と利害の衝突があってはならない。","제련소 감사와 관련해서, \"Independent third-party audit firm\" 은 제련소 또는 정제소의 물질 추적성이 RMAP 또는 유사 감사 절차 기준에 준하는가를 평가하기에 적합한 민간부분 조직입니다. 중립성과 공정성을 유지하기 위하여 이 조직과 감사팀원들은 피감사인들과의 이해 관계가 없어야 한다.","En ce qui concerne les audits de fonderies, un \"cabinet d'audit indépendant du secteur privé\" est une entreprise privée compétente pour évaluer la traçabilité des matériaux utilisés par un fondeur ou un affineur par rapport aux normes du RMAP ou de protocoles d'audit équivalents. Pour être neutre et impartiale, cette organisation et ses auditeurs ne doivent avoir aucun conflit d'intérêt avec l'audité.","No que diz respeito às auditorias às fundições, uma \"Empresa de Auditoria do sector privado independente\", também conhecida como \" Empresa de auditoria independente de terceiros\", é uma organização do sector privado competente na avaliação da traceabilidade dos materiais das fundições ou refinarias face às normas do RMAP ou protocolos de auditorias equivalentes. Para manter a neutralidade e imparcialidade, tais organizações e membros das equipas de auditoria não podem ter conflitos ou interesses face aos auditados.","In Bezug auf Schmelzer Audits, welche eine \"unabhängige Prüfung im privaten Sektor\" auch bekannt als \"unabhängige Prüfungsgesellschaft\" ist,  welche kompetent bei der Bewertung der Hüttenwerke und Raffinerien Material Rückverfolgbarkeit gegen die Normen der RMAP oder eine gleichwertiger Prüfprotokolle sind. Aus Gründen der Neutralität und Objektivität dieser Organisation und ihrer Mitglieder des Prüfungsteams dürfen diese keine Interessenskonflikte mit der geprüften Stelle haben.","Con respecto a las auditorías al fundidor, una \"empresa de auditoría independiente del sector privado\", también conocida como una \"empresa de auditoría de terceros independiente\" es una organización del sector privado competente en la evaluación de la trazabilidad del fundidor o los materiales del refinador contra las normas del RMAP o  protocolos de auditoria equivalentes. Para mantener la neutralidad e imparcialidad, tal organización y sus miembros del equipo auditor no deben tener ningún conflicto de intereses con la entidad auditada","Per quanto riguarda le verifiche alle fonderie, una \"Società Indipendente di revisione del settore privato\", nota anche come \"società di revisione indipendente di terza parte\" è un'organizzazione del settore privato competente per la valutazione della tracciabilità dei  materiali  della  fonderia o raffineria rispetto alle norme RMAP o un protocollo di revisione equivalente. Al fine di mantenere neutralità ed imparzialità, tale organizzazione e i suoi valutatori non devono avere conflitti di interesse con i valutati","İzabe tesisi denetimleri bağlamında, “Bağımsız Üçüncü Kişi Denetim Firmaları” izabe tesisinin ya da rafinerinin malzemelerinin izlenebilirliğini RMAP veya eşdeğer denetim protokollerine uygun şekilde değerlendirme konusunda yetkin özel sektör kuruluşlarıdır. Tarafsızlığı korumak için bu kuruluşun ve denetim ekibi üyelerinin denetlenen kurum ile herhangi bir çıkar çatışması içerisinde olmaması gerekmektedir."]
["DefinitionsC13","Definitions","C13","Intentionally added is commonly known as the deliberate use of a substance, or in this case metal, in the formulation of a product where continued presence is desired to provide a specific characteristic, appearance or quality.\n\nWhile the SEC does not define the phrase “intentionally added” in the final rule*, the rule’s preamble states:\n“[W]e agree that being intentionally added, rather than being a naturally-occurring by-product, is a significant factor in determining whether a conflict mineral is ‘‘necessary to the functionality or production’’ of a product. This is true regardless of who intentionally added the conflict mineral to the product so long as it is contained in the product. [D]etermining whether a conflict mineral is considered ‘‘necessary’’ to a product should not depend on whether the conflict mineral is added directly to the product by the issuer or whether it is added to a component of the product that the issuer receives from a third party. Instead, the issuer should ‘report on the totality of the product and work with suppliers to comply with the requirements.’ Therefore, in determining whether a conflict mineral is ‘‘necessary’’ to a product, an issuer must consider any conflict mineral contained in its product, even if that conflict mineral is only in the product because it was included as part of a component of the product that was manufactured originally by a third party.”\n*(56296 Federal Register / Vol. 77, No. 177 / Wednesday, September 12, 2012 / Rules and Regulations)","针对性添加通常被认为有目的地在产品构成中使用某种物料，这里特指某种金属，从而持久地获得某种特性，观感或质量。\n\n而美国证券交易委员会没有在最终规则* 里为措辞“有针对性添加”进行定义。最终规则里对此的序文表示为：\n“我们认为有针对性地添加，而不是产品天然拥有，是一个判断冲突矿产是否必须在产品功能或生产制造中的重要因素。这与谁添加无关，只在乎冲突矿产有否存在于产品中。决定冲突矿产对产品是否需要，并非取决于冲突矿产是否直接添加进产品或直接添加进来自第三方的产品部件。所以，申报人必须报告含冲突矿产产品的总数，并与供应商合作共同遵守要求。 在判断产品中的冲突矿产是否需要时，申报人必须考虑其产品中有否冲突矿产，即使是原本就存在于由供应商提供的零部件中。”\n\n*(56296 Federal Register / Vol. 77, No. 177 / Wednesday, September 12, 2012 / Rules and Regulations)","意図的な付加とは、通常、製品の特性、外観又は品質を保持するために、製品の製造において継続的に使用されることが望まれる物質（この場合は金属）の計画的な使用として知られている。\n\nSECは最終規則*においては「意図的な付加」という表現を定義していないが、この規則の序文では次のように示されている。\n「我々は、製品による自然発生ではなく意図的に付加されるということは、紛争鉱物が製品の「機能又は製造に必要」であるかどうかを決定する上で重要な要素であると考える。これは製品に紛争鉱物が含まれている以上、意図的に付加したのが誰かにかかわらず、確かなことである。紛争鉱物が製品に「必要」であるとする判断は、SEC報告企業が紛争鉱物を製品に直接付加しているか、それとも第三者から調達した部品に紛争鉱物が使用されているかどうかによって決めるべきではない。SEC報告企業は「製品全体について報告し、要件を満たすためにサプライヤーと協力すべきである。したがって、紛争鉱物が製品に「必要」かどうかを判断する場合、その紛争鉱物が元来第三者が製造した製品の一部品として含まれている場合でも、SEC報告企業は自社製品に含まれるすべての紛争鉱物について検討する必要がある。」*(56296 Federal Register / Vol. 77, No. 177 / 2012年9月12日（水） / Rules and Regulations)","\"의도적 첨가\"는 보통 물질의 의도적 사용으로 알려집니다. 또는 이 경우 광물은, 지속된 출연이 특별한 성질, 모습 또는 품질을 공급하도록 요구하는 생산품의 배합이다.\n\nSEC는 \"intentionally added\"를 최종 규정*에 정의하지 않았지만, 그 규정의 전문은 아래와 같이 말한다:  \"부산물로 자연적으로 발생한 것이라기 보다 의도적으로 생겼다는 것은 분쟁 물질이 물품의 \"기능 또는 생산에 필요\"한지를 결정하는 중요한 요소라는데 동의한다. 이것은 분쟁 물질이 생산품에 포함되어 있는 한, 누가 고의적으로 분쟁 물질을 생산품에 넣었는지와 무관하게 진실이다. 분쟁물질이 생산품에 \"필요한\"지를 결정하는 것은 분쟁물질이 발행인에 의해 생산품에 직접적으로 더해졌는지 또는 발행인이 제3자로부터 받은 생산품의 구성품에 더해졌는지에 의해 의존해서는 않된다. 그 대신에 발행인은 생산품 전체에 대해 보고하고 필요조건을 준수하기 위해 공급자와 일해야만 한다. 그러므로 분쟁물질이 생산품에 \"필요한\"지를 결정하는데 있어, 발행인은, 분쟁물질이 제3자에 의해 제조된 생산품의 구성부부에 포함되었기 때문에, 그 분쟁 물질이 생산품에 유일할지라도, 그 생산품에 포함된 분쟁물질을 고려해야 한다.\"\n*(56296 Federal Register / Vol. 77, No. 177 / Wednesday, September 12, 2012 / Rules and Regulations)","\"Ajouté intentionnellement\" est communément admis comme l'utilisation délibérée d'une substance , ou dans ce cas d'un métal, dans la formulation d'un produit où la présence continue est souhaitable pour procurer/fournir une caractéristique, un aspect ou une qualité spécifique.\n\nBien que la SEC ne définisse pas l'expression \"ajouté intentionnellement\" dans la règle finale * , le préambule de la règle prévoit :\n\" [ N] ous convenir que le fait d'être intentionnellement ajoutée , plutôt que d'être un sous-produit naturel est un facteur important pour déterminer si un minerai de conflit est ''nécessaire à la fonctionnalité ou à la production d'un produit''. Cela est vrai quelle que soit la personne qui ajoute intentionnellement le minerai de conflit dans le produit tant qu'il y est contenu. [D]éterminer si un minerai de conflit est considéré comme ''nécessaire'' à un produit ne devrait pas dépendre du fait que le minerai de conflit est ajouté directement au produit par l'entreprise émettrice ou s'il est ajouté dans un élément du produit que l'émetteur reçoit d'un tiers . Au lieu de cela , l'émetteur doit \"rapporter sur la totalité du produit et  travailler avec ses fournisseurs pour se être conforme aux exigences\". Par conséquent , pour déterminer si un minerai de conflit est ''nécessaire'' à un produit , l'émetteur doit prendre en compte tout minéral de conflit contenue dans son produit , même si ce minerai de conflit est uniquement dans le produit parce qu'il fait partie d'un composant du produit fabriqué par un tiers.\"\n*(56296 Federal Register / Vol. 77, No. 177 / Wednesday, September 12, 2012 / Rules and Regulations)","Adição intencional é comumente conhecido como o uso deliberado  de uma substância, ou neste caso metal, na formulação de um produto onde a sua presença continuada é desejada para obter uma característica específica, especto ou qualidade. \n\nEnquanto o SEC não define a frase \"intencionalmente adicionado\" na lei final*, o preâmbulo da lei diz: \"Concordamos que ao ser adicionado intencionalmente, ao invés de ser um subproduto que ocorre naturalmente, é um fator significante para determinar se o mineral de conflito é \"necessário à funcionalidade ou produção\" de um produto. Isto é verdade independentemente de quem adicionou intencionalmente o mineral de conflito ao produto desde que esteja contido no próprio produto. Determinar se um mineral de conflito é considerado \"necessário\" a um produto não deveria depender do facto de um mineral de conflito ser adicionado diretamente ao produto pelo emissor ou se é adicionado a um componente do produto que o emissor recebe de um terceiro. Pelo contrário, o emissor deveria reportar  na totalidade do produto e trabalhar com os fornecedores para cumprir os requisitos'. Assim, ao determinar se um mineral de conflito é ou não \"necessário\" a um produto, o emissor deverá considerar qualquer mineral de conflito que esteja contido no seu produto, mesmo que o mineral de conflito esteja apenas no produto porque foi incluído como parte de um componente do produto que foi originalmente fabricado por terceiros.\"\n*(56296 Registo Federal/ Vol.77, Nº 177/ Quarta-Feira, 12 de Setembro, 2012/ Leis e Regulações\n\n\n\n","\"Absichtlich hinzugefügt\"  ist im Allgemeinen bekannt als die absichtliche Verwendung eines Stoffes oder in diesem Fall eines Metalles, welches im Erzeugnis enthalten ist, um eine bestimmte Eigenschaft, Aussehen oder eine bestimmte Qualität zu erzeugen.\n\nWährend die SEC den Begriff \"vorsätzlich\" in der letzten Fassung nicht definiert hat, steht in der Präambel:\n\"Wir sind uns darin einig, dass bewusst hinzugefügt anstatt natürlich vorkommend ein bedeutender Faktor bei der Feststellung ist, ob ein Konflikt Mineral \" für die Funktionsfähigkeit oder Produktion\" eines Produktes notwendig ist. Dies gilt unabhängig davon, wer absichtlich das Konfliktmineral zum Produkt dazugibt, so lange es im Produkt enthalten ist. Feststellen zu können, ob ein Konfliktmineral  \"erforderlich\" für ein Produkt ist,  sollte nicht davon abhängen, ob das Konfliktmineral von einem Bearbeiter direkt in das Produkt hinzugefügt wurde, oder ob es sich um eine Komponente des Produkts handelt, welches der Bearbeiter von Dritten bezieht. Statt dessen sollte der Bearbeiter \"über die Gesamtheit des Produkts und die Arbeit mit Lieferanten zur Einhaltung der Anforderungen\"  berichten. Aus diesem Grund sollte bei der Entscheidung der Frage, ob ein Konflikt Mineral für ein Produkt \"erforderlich\" ist,  jedes Konfliktmineral betrachten, welches in seinem Produkt enthalten ist, auch dann, wenn dieses Konfliktmineral nur in dem Produkt enthalten ist, welches als Teil einer Komponente des Produkts von Dritten hergestellt wurde. * (\n56296 Federal Register  Vol. 77  Nr. 177  Mittwoch, September 12 2012 Regeln und Vorschriften).","Intencionalmente añadido se conoce comúnmente como el uso deliberado de una sustancia, o en este caso del metal, en la formulación de un producto que se desea la presencia continua para proporcionar una característica , apariencia o cualidad determinada.\n\nMientras que la SEC no define la expresión \" intencionalmente añadido\" en la regla final * , el preámbulo de la norma establece :\n\" [ Nosotros)  acordamos que siendo agregado intencionalmente , en lugar de ser un  subproducto que naturalmente ocurre , es un factor importante en la determinación de si un mineral conflictivo es '' necesario para la funcionalidad o la producción '' de un producto. Esto es cierto independientemente de quien  intencionalmente añadió el mineral de conflicto al producto , siempre y cuando está contenido en el producto . determinar si un mineral conflictivo se considera \"necesario ''  a un producto de  no debe depender de si el mineral en conflicto se añade directamente al producto por parte del emisor o si se añade a un componente del producto que el emisor recibe de un tercero . En lugar de ello , el emisor debe \" informar sobre la totalidad del producto  trabajar con los proveedores para cumplir con los requisitos\".  Por lo tanto , para determinar si un mineral en conflicto es \"necesario '' para un producto, un emisor debe tener en cuenta cualquier mineral en conflicto contenido en su producto , incluso si ese mineral en conflicto es sólo en el producto porque se incluyó como parte de un componente del producto que fue fabricado originalmente por un tercero \".\n* (Registro Federal 56296 / Vol. . 77 , N º 177 / Miércoles, 12 de septiembre 2012 / Reglas y Regulaciones) \n","Intenzionalmente aggiunto è comunemente noto come l'impiego deliberato di una sostanza, o in questo caso metallo, nella formulazione di un prodotto dove la sua presenza continua è voluta per garantire una specifica caratteristica, apparenza o qualità.\n\nMentre la SEC non definisce la frase \"intenzionalmente aggiunto\" nella legislazione finale *, il preambolo alla legislazione definisce:\n\"[Noi] definiamo che essere intenzionalmente aggiunto, piuttosto che essere un sottoprodotto naturale è un fattore significativo nel determinare se un minerale di conflitto è \"necessario alla funzionalità o produzione\" di un prodotto. Ciò è corretto indipendentemente da chi ha intenzionalmente aggiunto il minerale di conflitto nel prodotto fin quando il minerale è contenuto nel prodotto.  Determinare se un minerale di conflitto è considerato \"necessario\" a un prodotto deve essere indipendente dal fatto che il minerale da conflitto sia stato aggiunto direttamente al prodotto dal dichiarante o sia stato aggiunto ad un componente del prodotto finito che il dicharante riceve da una parte terza. Invece, il dichiarante deve relazionare circa la totalità del prodotto e lavorare con i fornitori per ottemperare alle richieste. Tuttavia, nel determinare se un minerale di conflitto è necessario ad un prodotto, il dichiarante deve considerare ogni minerale di conflitto contenuto  nei propri prodotti, anche se tale minerale di conflitto è contenuto nel prodotto solo perchè è stato incluso nella parte di un componente del prodotto che è stato costruito originariamente da una parte terza.\n*(56296 Federal Register / Vol. 77, No. 177 / Wednesday, September 12, 2012 / Rules and Regulations)","Kasten eklenmiş ifadesi, bir maddenin ya da bu durumda bir metalin, özel bir karakter, görünüm ya da özellik katmak amacıyla bir formülde kasti bir şekilde kullanılması olarak bilinir.\n\nSEC “kasten eklenmiş” ifadesini nihai kurallarda* tam olarak kullanmıyor olsa da önsöz kısmında şu ifade yer alır:\n“İhtilaf konusu bir maddenin bir ürünün “imalatı ya da işlevselliği için gerekli” olup olmadığının belirlenmesinde doğal olarak ortaya çıkan yan ürün olması yerine kasten eklenmiş olmasının önemli bir faktör olduğunu kabul ediyoruz. Bu, ihtilaf konusu madenin üründe yer aldığı sürece, bu ürünü kimin kasten eklediğinden bağımsız olarak doğru bir ifade olacaktır. Bir ihtilaf konusu madenin bir ürün için “gerekli” olup olmadığının tespiti, ihtilaf konusu madenin ürüne doğrudan hazırlayan tarafından eklenmiş olup olmaması ya da hazırlayanın üçüncü kişiden aldığı bir ürün bileşenine eklenmiş olup olmamasına bağlı olmamalıdır. Bunun yerine, hazırlayan kişi ‘ürünün toplamı ile ilgili bildirimde bulunmalı ve gerekliliklere uyacak tedarikçiler ile birlikte çalışmalıdır.’ Bu nedenle, ihtilaf konusu bir madenin bir ürün için gerekli olup olmadığının belirlenmesinde, bu ihtilaf konusu maden üründe yalnızca orijinal olarak üçüncü kişi tarafından imal edilen bir ürün bileşenine dahil olduğu halde üründe olsa dahi hazırlayan kişi ürününde herhangi bir ihtilaf konusu maden bulunup bulunmadığını göz önünde bulundurmalıdır.\n*(56296 Federal Sicil / Sayı. 77, No. 177 / 12 Eylül 2012 Çarşamba / Kurallar ve Düzenlemeler)"]
["DefinitionsC14","Definitions","C14","IPC (www.IPC.org) is a global industry association based in Bannockburn, Ill., dedicated to the competitive excellence and financial success of its 3,400 member companies which represent all facets of the electronics industry, including design, printed board manufacturing, electronics assembly and test. As a member-driven organization and leading source for industry standards, training, market research and public policy advocacy, IPC supports programs to meet the needs of an estimated $2.0 trillion global electronics industry. IPC maintains additional offices in Taos, N.M.; Washington, D.C.; Stockholm, Sweden; Moscow, Russia; Bangalore, India; Bangkok, Thailand; and Shanghai, Shenzhen, Chengdu, Suzhou and Beijing, China.","位于伊利诺斯州班诺克本的 IPC (www.IPC.org) 是一个国际性组织。 它致力于提升其 3,400 个来自电子工业各层面会员的竞争优势和财务成就。会员有从事设计，线路板生产，电子装配，测试等。 IPC 作为一个会员至上和一个为行业制定标准，提供培训、调研市场、政策制定提供主要资源的机构，它支持多种计划项目以满足一个约值 2 万亿美元的行业的各种需要。IPC 在新墨西哥州的道斯、华盛顿特区、瑞典的斯德哥尔摩、俄罗斯的莫斯科、印度的班加罗尔、秦国曼谷，以及中国的上海、深圳、成都、苏州和北京均驻有办事处。","IPC (www.IPC.org)は、イリノイ州バノックバーン を本拠地とするグローバルな業界団体で、設計、プリント基板製造、電子アセンブリ、試験などエレクトロニクス業界のあらゆる面にわたる3,400社の競争力向上および財政的成功のために尽力している。加盟企業主導の団体として、また業界規格、訓練、市場調査および公共政策支援のための主要な供給源として、IPCは、およそ2兆ドルに上る全世界のエレクトロニクス業界のニーズを満たすプログラムをサポートしている。IPCは他に、ニューメキシコ州タオス、ワシントンD.C.、スウェーデンのストックホルム、ロシアのモスクワ、インドのバンガロール、タイのバンコク、中国の上海、深川、成都、蘇州および北京に各拠点を持つ。\n","IPC (www.IPC.org)는 일리노이주 배녹번에 위치한 글로벌 산업 연합이며 디자인, 프린트 배선 제조, 전기제품 조립과 테스트를 포함한 모든 전자산업을 대표하는 3천 4백 개 회시의 경쟁의 탁월함과 재무적 성공에 기여하기 위한 조직. 회원이 주도한 조직이고 산업 표준과 교육, 시장 조사와 공공정책 추진의 주요 자원으로서, IPC는 2천 조로 추정되는 국제 전자산업의 요구에 부응하는 프로그램들을 지원함. IPC는 뉴멕시코의 타오스, 와싱톤 DC, 스웨덴 스톡홀름, 러시아 모스코바 인도 방가로, 태국 방콕과 중국의 상해, 심천, 성도, 소주와 북경에 추가로 사무실을 유지하고 있다.","IPC (www.IPC.org) est une association professionnelle internationale basé à Bannockburn, Illinois, qui a pour vocation de soutenir l’excellence et la santé financière de ses 3 400 entreprises membres, qui représentent toutes les facettes de l'industrie de l'électronique, y compris la conception, la fabrication, l'assemblage et le test de circuits imprimés. En tant qu'organisation dirigée par ses membres et leader en matière de normes industrielles, de formation, d'études de marché et de promotion des politiques publiques, l'IPC soutient des projets pour répondre aux besoins d'une  industrie électronique mondiale estimée à 2000 milliards de dollars. L'IPC possède des représentations à Taos au Nouveau Mexique; Washington, DC; Stockholm en Suède; Moscou en Russie; Bangalore en Inde, Bangkok en Thaïlande, et Shanghai, Shenzhen, Chengdu, Suzhou et Pékin en Chine.","O IPC (www.IPC.org) é uma Associação global da Indústria sedeada em Bannockburn, Ill., dedicada ao sucesso financeiro  e competência de excelência dos seus 3,400  empresas membro que representam todas as faces do sector eletrónico, incluído design, produção de circuitos impressos, montagem e testes eletrónicos. Como organização movida por seus membros e fonte líder de normas para a indústria, formação, estudo de mercados e promoção de políticas públicas, o IPC apoia programas para ir de encontro às necessidades de uma indústria eletrónica global de $2.0 triliões. O IPC tem escritórios adicionais em Taos, N.M; Washington, D.C.; Estocolmo, Suécia; Moscovo, Rússia; Bangalore, Índia; Bangkok, Tailândia; e Xangai, Shenzen, Chengu, Suzhou e Bejing, China.","IPC (www.ipc.org) ist ein globaler Industrie Verband mit Sitz in Bannockburn,Illinois,USA, bestimmt durch die herausragenden Leistungen und finanziellen Erfolge seiner 3400 Mitglieder vertretenen Firmen, die alle Facetten der Elektronikindustrie, einschließlich Design, Leiterplattenfertigung, Elektronik Baugruppen und Test repräsentieren. Als mitgliedsorientierte Organisation und führende Quelle für Industrie Standards, Training, Markt Analysen and öffentlichen Anwaltschaften unterstützt IPC  Programme zur Erfüllung der Bedürfnisse einer geschätzten 2.0 Milliarden Dollar weltweiten Elektronikindustrie. IPC unterhält weitere Büros in Taos, N. M.  Washington, D.C., USA, Stockholm, Schweden, Moskau, Russland, Bangalor, Indien, Bangkok, Thailand und Shanghai, Shenzhen, Chengdu, Suzhou und Peking, China.","IPC (www.IPC.org) es una asociación de la industria mundial con sede en Bannockburn, Illinois, dedicada a la excelencia competitiva y el éxito financiero de sus 3.400 empresas miembros que representan a todas las facetas de la industria de la electrónica, incluyendo el diseño, la fabricación de tableros de circuitos impresos, ensamble de electrónicos y prueba. Como una organización dirigida por sus miembros y las principales fuentes de estándares de la industria, la formación, la investigación de mercado y la promoción de políticas públicas, IPC apoya programas para satisfacer las necesidades de un estimado de $ 2,0 billones de la industria electrónica global. IPC tiene oficinas adicionales en Taos, NM, Washington, DC; Estocolmo, Suecia; Moscú, Rusia; Bangalore, India; Bangkok, Tailandia, y Shanghái, Shenzhen, Chengdu, Suzhou y Beijing, China.","La IPC (www.IPC.org) è una associazione industriale globale avente sede a Bannockburn, Ill, dedicata all'eccellenza competitiva e successo finanziario delle 3.400 aziende membri che rappresentano tutte le sfaccettature dell'industria elettronica, incluse progettazione, costruzione di circuiti elettronici, montaggio e testing. In qualità di organizzazione condotta dai propri membri e fonte principale di standards industriali, formazione, ricerche di mercato e patrocinio di politica pubblica, IPC supporta programmi per soddisfare le esigenze di circa $2.0 trilioni dell'industria elettronica globale. IPC mantiene ulteriori uffici a Taos, N.M.; Washington, D.C.; Stoccolma, Svezia; Mosca, Russia; Bangalore, India; Bangkok, Thailandia; and Shanghai, Shenzhen, Chengdu, Suzhou and Beijing, Cina.","IPC (www.IPC.org) merkezi Bannockburn, Ill.'de bulunan bir sanayi birliğidir ve tasarım, baskılı devre imalatı, elektronik tertibatı ve testi de içeren şekilde elektronik sektörünün her yönünü temsil eden 3.400 üye şirketin rekabetçi mükemmellik ve mali başarısına adanmıştır. Üyelerin öncülüğünde ilerleyen bir kuruluş ve sektör standartları, eğitim, pazar araştırması ve kamu düzeni savunuculuğu açısından öncü bir kaynak olan IPC tahmini olarak 2,0 trilyon $ değerinde küresel elektronik sektörünün ihtiyaçlarını karşılayacak programları desteklemektedir. IPC'nin Taos, N.M.; Washington, D.C.; Stockholm, İsveç; Moskova, Rusya; Bangalore, Hindistan; Bangkok, Tayland ve Şangay, Shenzhen, Chengdu, Suzhou ve Pekin, Çin'de de ofisleri bulunmaktadır."]
["DefinitionsC15","Definitions","C15","This IPC standard establishes the requirements for exchanging conflict minerals data between suppliers and their customers. To meet the needs of a broad range of users, this standard provides flexibility in the scope of the products covered within a single declaration. This standard is not a compliance guide. ","此 IPC 标准要求供应商与其客户交换冲突矿产的信息。为迎合大范围成员的需要，此标准对单一申报中的产品范围的要求是相当灵活的。 故此标准不能作为合规的指引。 ","このIPC規格は、サプライヤーとその顧客間で紛争鉱物データを交換する際の要件を規定している。ユーザーの幅広いニーズを満たすため、本規格は一つの申告が対象とする製品の範囲について柔軟に対応している。本基準は準拠ガイドではない。","이 IPC 표준은 공급자와 그 고객들 사이의 분쟁 광물 데이타를 교환하기 위한 조건들을 만든다. 사용자의 넓은 범위의 수요에 부응하고자, 이 표준은 단일의 신고에 의해 포함되는 생산품의 범위에서 유연성을 제공합니다. 이 표준은 준법 가이드가 아니다.","Cette norme IPC définit les exigences relatives à l'échange de données sur les minerais de conflit entre les fournisseurs et leurs clients. Pour répondre aux besoins d'un large éventail d'utilisateurs,le périmètre des produits couverts dans une seule déclaration suivant cette norme est flexible. Cette norme n'est pas un guide de mise en conformité.","A norma do IPC estabelece os requisitos para a troca de dados sobre de minerais de conflito entre os fornecedores e os seus clientes. Para cumprir as necessidades de uma larga gama de utilizadores, esta norma fornece flexibilidade no âmbito dos produtos abrangidos numa só declaração. Esta norma não é um guia para cumprimento.","Dieser IPC-Norm legt die Anforderungen an den Austausch von Konfliktemineralien Daten zwischen Lieferanten und ihren Kunden fest. Um die speziellen Anforderungen einer Vielzahl von Benutzern zu erfüllen, ermöglicht dieser Standard eine größere Flexibilität in den Anwendungsbereichen der genannten Erzeugnisse innerhalb einer einzigen Erklärung. Dieser Standard ist nicht ein Leitfaden für Gesetzmäßigkeitsprüfungen.","Este estándar IPC establece los requerimientos para el intercambio de datos de minerales conflictivos entre proveedores y clientes. Para cumplir con las necesidades de una amplia gama de usuarios, este estándar provee flexibilidad en el alcance de lo productos cubiertos en una sola declaración. Este estándar no es una guía de cumplimiento.","Questo standard IPC stabilisce i requisiti per lo scambio di dati relativi ai minerali di conflitto tra i fornitori e i propri clienti. Al fine di soddisfare le necessità di un ampia gamma di utenti, tale standard garantisce flessibilità nella definizione dell'ambito dei prodotti coperti da una singola dichiarazione. Questo standard non è una guida di conformità.","Bu IPC standardı, tedarikçiler ile müşterileri arasında ihtilaf konusu maden alışverişi için gereklilikleri tanımlamaktadır. Bu standart, kapsamlı bir kullanıcı yelpazesinin ihtiyaçlarını karşılamak için tek bir beyana dahil edilen ürün kapsamı konusunda esneklik sağlamaktadır. Bu standart, bir uyumluluk kılavuzu değildir. "]
["DefinitionsC16","Definitions","C16","The SEC does not provide a formal definition of this phrase in the final rule*, however it provides some guidance: A conflict mineral will be considered to be necessary to its functionality of a product if it meets the following: 1) is intentionally added to the product or any component of the product and is not a naturally-occurring byproduct; 2) is necessary to the product’s generally expected function, use or purpose; and 3) is incorporated for the purpose of ornamentation, decoration, or embellishment, whether the primary purpose of the product is ornamentation or decoration.\n\nNOTE: The conflict mineral must be contained in the product to be applicable.\n\n*(56296 Federal Register / Vol. 77, No. 177 / Wednesday, September 12, 2012 / Rules and Regulations)","SEC 在最终规则* 中没有给出此词的正式定义。但是，规则给予了一些指引：一种冲突矿产被认为对某种功能或产品是需要的，必须满足以下几点： 1) 有针对性地添加到产品或组件，而且不是产品天然拥有；2) 对于满足产品所期望达到的功能、使用或用途是必要的；3) 与产品的装饰、美化或修饰无关，而无论是否产品的原旨就是装饰或美化。                         \n\n注：适用于冲突矿产必须存在于产品中。 \n\n*(56296 Federal Register / Vol. 77, No. 177 / Wednesday, September 12, 2012 / Rules and Regulations)","SECは、最終規則*においてこの表現の正式な定義をしていないが、ある程度の指導はしている。次の条件を満たす場合、紛争鉱物は製品の機能に必要であるとみなされる。1)製品又は製品内の部品に意図的に付加されており、自然発生的な副産物ではない、2)製品の一般的に期待される機能、用途又は目的に必要である、3)製品の主要目的が装飾であろうとなかろうと、飾りを目的として組み込まれている場合。\n\n注意：対象となるには、紛争鉱物が製品に含有されていなければならない。\n\n*(56296 Federal Register / Vol. 77, No. 177 / Wednesday, September 12, 2012/ Rules and Regulations)\n","SEC는 최종 규칙에서* 이 표현의 공식적 정의를 제공하지 않지만, 몇몇 가이드를 제공한다:  분쟁 광물은 다음의 조건에 맞으면, 제품의 기능성에 필요한 것으로 간주된다: 1) 의도적으로 제품 또는 제품의 구성물에 추가되고 자연적을 발생되는 부산물이 아님; 2) 제품의 일반적으로 예상되는 기능, 사용 또는 목적에 필요함; 및 3) 제품의 주 목적이 장식이나 치장이 아님에도 제품이 장식, 치장, 꾸밈의 목적에 포함됨.\n\nNOTE: 분쟁광물은 해당되는 제품에 포함되어 있어야 한다.\n\n*(56296 Federal Register / Vol. 77, No. 177 / Wednesday, September 12, 2012 / Rules and Regulations)","La SEC ne fournit pas une définition formelle de cette expression dans la règle finale *, mais elle fournit des indications: Un minerai de conflit sera considéré comme nécessaire à la fonctionnalité d'un produit si il répond aux conditions suivantes: 1) il est ajouté intentionnellement au produit ou à l'un des composants du produit et n'est pas un sous-produit naturel; 2) il est nécessaire à la fonction attendue, l'utilisation ou le but du produit et 3) il est incorporé dans le produit à des fins d'ornementation, de décoration, ou d'embellissement, si le but principal du produit estl' ornementation ou la décoration.\n\nNOTE: Le minerai de conflit doit être contenu dans le produit pour être nécessaire à la fonctionalité d'un produit.\n\n*(56296 Federal Register / Vol. 77, No. 177 / Wednesday, September 12, 2012 / Rules and Regulations)","O SEC não fornece uma defini9ção formal desta frase na lei final*, no entanto fornece alguma orientação: Um mineral de conflito é considerado necessário à sua funcionalidade de um produto se vai de encontro ao seguinte: 1) é adicionado intencionalmente ao produto ou qualquer componente do produto e não é um subproduto natural.; 2) É necessário à função geral esperada do produto, à sua utilização ou propósito; e 3) está incorporado com o objetivo de ornamentação, decoração, ou embelezamento, mesmo que o objetivo principal do produto seja mesmo0 esse, ornamentação ou decoração.\n\nNOTA: O Mineral de conflito deve estar contido no produto para ser aplicável.\n\n*(56296 Registo Federal/ Vol.77, Nº 177/ Quarta-Feira, 12 de Setembro, 2012/ Leis e Regulações","Die SEC bietet keine formale Definition dieser Formulierung in der letzten Fassung an, aber es gibt einige Anleitungen: ein Konfliktmineral wird als notwendig  für die Funktionalität eines Produktes betrachtet, wenn es die folgenden Punkte erfüllt:\n 1) es ist absichtlich dem Produkt oder eine beliebige Komponente des Produkts  hinzugefügt und ist nicht ein natürlich vorkommendes Nebenprodukt, \n2) es ist notwendig für die vom Produkt im allgemeinen erwartete Funktion oder Zweck und \n3) es ist für die Zwecke der Ornamente, Dekoration oder Verzierung enthalten,  ob der primäre Zweck des Produkts die Ornamente oder Dekoration ist .\n\n\n\nBEACHTEN SIE: Das Konflikmineral muss im Produkt enthalten sein.\n\n\n\n* (56296 Federal Register  Vol. 77  Nr. 177  Mittwoch, September 12  2012  Regeln und Vorschriften).","La SEC no proporciona una definición formal de esta frase en la regla final *, sin embargo, puede servir de orientación: Un mineral en conflicto se considera necesario para su funcionalidad de un producto si cumple con lo siguiente: 1) se añade intencionalmente a el producto o cualquier componente del producto y no es un subproducto natural, 2) es necesario para la función general esperada del producto, el uso o propósito, y 3) se incorpora con el objeto de ornamentación, la decoración o embellecimiento, si el propósito principal del producto es la ornamentación o decoración. \n\nNOTA: El mineral en conflicto debe estar contenida en el producto para que aplique\n\n * (Registro Federal 56296 / Vol.. 77, N º 177 / Miércoles, 12 de septiembre 2012 / Reglas y Regulaciones)","La SEC non fornisce una definzione formale della frase nella legislazione finale*, tuttavia fornisce alcune indicazioni. Un minerale di conflitto è considerato necessario alla funzionalità di un prodotto se soddisfa le seguenti condizioni: 1) è intenzionalmente aggiunto al prodotto o a sue parti, e non è un sottoprodotto formatosi spontaneamente; 2) è incorporato a scopo di ornamento, decorazione, abbellimento, qualora lo scopo principale del prodotto sia ornamento o decorazione.\n\nNOTA: il minerale di conflitto deve essere contenuto nel prodotto affinchè sia applicabile.\n\n\n*(56296 Federal Register / Vol. 77, No. 177 / Wednesday, September 12, 2012 / Rules and Regulations)","SEC, nihai kurallarda bu ifade için resmi bir tanım vermemekte, ancak bir miktar kılavuzluk sağlamaktaydı: İhtilaf konusu bir maden, aşağıdaki koşulları sağlaması durumuna işlevsellik için gerekli görülecektir: 1) kasten ürüne veya ürünün herhangi bir bileşenine eklenmesi ve doğal olarak ortaya çıkan bir yan ürün olmaması, 2) ürünün genel olarak beklenen işlevi, kullanım alanı veya amacı için gerekli olması ve 3) ürünün birincil amacının süsleme ya da dekorasyon olmasından bağımsız olarak süsleme, dekorasyon veya donatma amacıyla eklenmiş olması.\n\nNOT: Geçerli olması için ihtilaf konusu madenin ürünün içinde bulunması gerekmektedir.\n\n*(56296 Federal Sicil / Sayı. 77, No. 177 / 12 Eylül 2012 Çarşamba / Kurallar ve Düzenlemeler)"]
["DefinitionsC17","Definitions","C17","The SEC does not provide a formal definition of this phrase in the final rule*; however, it provides some guidance: A conflict mineral will be considered to be necessary to the production of a product when: 1) it is intentionally included in the product’s production process, other than if it is included in a tool, machine, or equipment used to produce the product (such as computers or power lines); 2) it is included in the product (MUST be contained in the product to be applicable); and 3) it is necessary to the product.\n\n*(56296 Federal Register / Vol. 77, No. 177 / Wednesday, September 12, 2012 / Rules and Regulations)\n","SEC 在最终规则* 中没有给出此词的正式定义；但是，规则给予了一些指引：一种冲突矿产被认为对某种功能或产品是需要的，必须满足以下几点： 1) 是添加于产品制造流程中，而非存在于制造产品的工具、机器或设备中（如计算机或电源线）；2) 存在于产品中（适用于必须含在产品中）；3) 为产品所需。\n\n*(56296 Federal Register / Vol. 77, No. 177 / Wednesday, September 12, 2012 / Rules and Regulations)","SECは、最終規則*においてこの表現の正式な定義をしていないが、ある程度の指導はしている。次の条件を満たす場合、紛争鉱物は製品の製造に必要であると判断される。1)製品の製造のために使用するツール、機械又は装置（コンピュータや電力線など）に含まれる場合を除き、製品の製造工程に意図的に含まれている、2)製品に含まれている（対象となるのは、製品に紛争鉱物が含まれていることが必須）、3)その製品にとって必要である。\n\n*(56296 Federal Register / Vol. 77, No. 177 / Wednesday, September 12, 2012/ Rules and Regulations)\n","SEC는 최종 규칙에서* 이 표현의 공식적 정의를 제공하지 않지만, 몇몇 가이드를 제공한다:  분쟁 광물은 다음의 조건에 맞으면, 제품의 제조에 필요한 것으로 간주된다: 1) 제품의 생산에 사용되는 도구나 기계 또는 장치 (컴퓨터나 전기선 등)에 포함되기 보다, 의도적으로 제품의 생산과정에 포함된 경우; 2) 제품에 포함된 경우 (해당 제품에 포함되어야 함); 및 3) 제품에 필요함.\n\n*(56296 Federal Register / Vol. 77, No. 177 / Wednesday, September 12, 2012 / Rules and Regulations)","La SEC ne fournit pas une définition formelle de cette expression dans la règle finale *, mais elle donne des indications: un minerai de conflit est considéré comme nécessaire à la production d'un produit lorsque: 1) il est intentionnellement inclus dans le le processus de production de produit, sans être inclus dans un outil, une machine ou  un équipement utilisé pour la fabrication du produit (tel qu'un ordinateur ou une ligne électrique); 2) il est inclus dans le produit (il DOIT être contenu dans le produit pour être nécessaire à la fabrication du produit ), et 3) il est nécessaire au produit.\n\n*(56296 Federal Register / Vol. 77, No. 177 / Wednesday, September 12, 2012 / Rules and Regulations)","O SEC não fornece uma definição formal desta frase na lei final*, no entanto fornece alguma orientação: Um mineral de conflito é considerado necessário à sua funcionalidade de um produto se vai de encontro ao seguinte: 1) está incluído intencionalmente  no processo de produção do produto, quer seja numa ferramenta, máquina, ou equipamento utilizado para produzir o produto (tais como computadores ou linhas de lata tensão); 2) Está incluído no produto (DEVE estar contido no produto para ser aplicável); e 3) é necessário ao produto.\n\n*(56296 Registo Federal/ Vol.77, Nº 177/ Quarta-Feira, 12 de Setembro, 2012/ Leis e Regulações","Die SEC bietet keine formale Definition dieser Formulierung in der letzten Fassung an, aber es gibt einige Anleitungen: ein Konfliktmineral wird als notwendig für die Erzeugung eines Produkts betrachtet bei: 1) Es ist absichtlich in das Produkt Herstellungsprozess integriert, anders als wenn es in einem Werkzeug, Maschine oder Anlage integriert wurde, die verwendet wird, um das Produkt herzustellen (wie z. B. Computer oder Stromleitungen) 2) Es ist im Lieferumfang enthalten (muss in dem Produkt enthalten sein) und 3) Es ist für das Produkt notwendig.\n\n* (56296 Federal Register, Vol. 77 ,Nr. 177  Mittwoch, September 12  2012 / Regeln und Vorschriften)\n\"","La SEC no proporciona una definición formal de esta frase en la regla final *, sin embargo, puede servir de orientación: Un mineral conflicto se considera necesario para la producción de un producto, cuando: 1) se intencionalmente incluido en el proceso de producción del producto, con excepción de si se incluye en una herramienta, máquina o equipo utilizado para producir el producto (por ejemplo, computadoras o cables eléctricos), 2) que se incluye en el producto (debe estar contenido en el producto para ser aplicable) , y 3) es necesario para el producto.\n\n\n * (Registro Federal 56296 / Vol.. 77, N º 177 / Miércoles, 12 de septiembre 2012 / Reglas y Regulaciones)","La SEC non fornisce una definzione formale della frase nella legislazione finale*, tuttavia fornisce alcune indicazioni. Un minerale di conflitto è considerato necessario alla funzionalità di un prodotto se soddisfa le seguenti condizioni: 1) è intenzionalmente incluso nel processo di produzione del prodotto, diverso se è incluso in un utensile, macchinario  o attrezzatura utilizzata per produrre il prodotto (ad esempio computer o cavi elettrici), 2) è incluso nel prodotto (deve essere contenuto nel prodotto affinchè sia applicabile )  3) è necessario al prodotto.\n\n\n*(56296 Federal Register / Vol. 77, No. 177 / Wednesday, September 12, 2012 / Rules and Regulations)","SEC, nihai kurallarda bu ifade için resmi bir tanım vermemekte, ancak bir miktar kılavuzluk sağlamaktaydı: İhtilaf konusu maden aşağıdaki durumlarda ürün imalatı için gerekli görülecektir: 1) ürünün imalatında kullanılan araç, makine veya ekipmanda (bilgisayarlar veya enerji hatları gibi) bulunduğu durumlar haricinde ürünün imalat sürecine kasten dahil edilmiş olması; 2) ürüne dahil edilmiş olması (geçerli olması için ihtilaf konusu madenin ürünün içinde bulunması gerekmektedir) ve 3) ve ürün için gerekli olması.\n\n*(56296 Federal Sicil / Sayı. 77, No. 177 / 12 Eylül 2012 Çarşamba / Kurallar ve Düzenlemeler)\n"]
["DefinitionsC18","Definitions","C18","Organisation for Economic Co-operation and Development","经济合作与发展组织","経済協力開発機構（Organization for Economic Co-operation and Development）","경제협력개발기구","Organisation pour la Coopération et le Développement Economique","Organização para a Cooperação e Desenvolvimentos Económicos ","Organisation für wirtschaftliche Zusammenarbeit und Entwicklung","Organización para la cooperación económica y desarrollo.","Organizzazione per la Cooperazione e lo Sviluppo Economico","Ekonomik Kalkınma ve İşbirliği Örgütü"]
["DefinitionsC19","Definitions","C19","A company’s Product or Finished good is a material or item which has completed the final stage of manufacturing and/or processing and is available for distribution or sale to customers.","公司的产品或成品是指在制造生产阶段或最后完成阶段的物料或物品，并且已可以交付或销售给客户。 ","企業の製品又は完成品とは、製造や生産の最終段階を終了し、流通又は顧客への販売が可能になっている材料や品目である。","회사의 제품 또는 완제품은 제조 및/또는 처리의 마지막 단계를 마치고 배포나 판매가 가능한 재료 또는 물품","Le produit fini d'une entreprise  est un matériel ou un élément qui aest arrivé au stade final de sa fabrication et est disponible pour la distribution ou la vente aux clients.","Um produto ou produto acabado de uma Empresa é um material ou item que completou o estágio final de produção e/ou de processamento e está disponível para distribuição ou venda a clientes.","Das Produkt einer Firma oder die Fertigware ist ein Material oder ein Element, das die letzte Stufe der Herstellung und / oder Verarbeitung abgeschlossen hat und für den Vertrieb oder den Verkauf an den Kunden bestimmt ist.","Un producto de la compañía o bien final es un material que ha completado la etapa final de manufactura y/o proceso y esta disponible para distribución o venta para los clientes.","La produzione dell'azienda o il prodotto finito è un materiale o un oggetto che ha completato lo stadio finale della produzione ed è pronto per la distribuzione o la vendita ai clienti","Bir şirketin ürünü ya da son ürünü, imalat ve/veya işleme almanın son aşamasında tamamlanan bir malzeme ya da öğedir ve müşterilere dağıtım ya da satış yoluyla ulaştırılır."]
["DefinitionsC20","Definitions","C20","Responsible Business Alliance (www.responsiblebusiness.org)","责任商业联盟 (www.responsiblebusiness.org)","レスポンシブル・ビジネス・アライアンス（Responsible Business Alliance）（www.responsiblebusiness.org）","책임감있는 비즈니스 연합(Responsible Business Alliance)\nwww.responsiblebusiness.org","Responsible Business Alliance (www.responsiblebusiness.org)","Responsible Business Alliance (www.responsiblebusiness.org)","Responsible Business Alliance (www.responsiblebusiness.org)","Responsible Business Alliance (www.responsiblebusiness.org)","Responsible Business Alliance (www.responsiblebusiness.org)","Responsible Business Alliance (www.responsiblebusiness.org)"]
["DefinitionsC21","Definitions","C21","Recycled or scrap sources are recycled metals, that are reclaimed end-user or post-consumer products, or scrap processed metals created during product manufacturing. Recycled metal includes excess, obsolete, defective, and scrap metal materials that contain refined or processed metals that are appropriate to recycle in the production of tin, tantalum, tungsten and/or gold. Minerals partially processed, unprocessed or byproducts from other ores are not included in the definition of recycled metal.","回收料或报废料是指循环使用的金属。它们是从最终用户使用过的产品中回收，或在产品制造过程产生的废料。回收金属包括多余的、废弃的、缺陷的、报废的金属材料。这些材料能用于循环再生钽、锡、钨、金。回收利用金属的定义中不包括经部份加工过的矿产、未经加工过的矿产及其他种类非金属矿石的副产品。","再生利用品又はスクラップ起源とは、再生された最終消費者製品又は使用済み製品、又は製品製造中に作り出されたスクラップ加工金属のことである。再生された金属には、錫、タンタル、タングステン又は金の生産上、再生に適切な精製又は加工がなされた、過剰分、廃品、不良品及びスクラップの金属素材がある。加工の過程か未加工な鉱物又はその他の鉱石の副産物は、「再生利用品」の定義に含まれない。","재활용 또는 폐자원은 재활용되는 금속이며 최종 소비자 또는 소비 후 제품 또는 생산제조 중에 생산되는 폐 활용 금속으로부터 회수된다. 재활용 금속은 과잉, 쓸모 없는, 결함 있는, 그리고 주석, 탄탈륨, 텅스텐 및/또는 금의 생산에서 재처리에 적합한 폐 금속 물질을 포함한다. 부분적으로 처리되거나 처리되지 않은 광물질 다른 원석의 부산물은 재활용 금속의 정의에 포함되지 않는다.","Les produits recyclés, rebuts de production ou déchets de consommation sont les métaux qui sont récupérés de l'utilisateur final ou de produits déjà utilisés, ou de déchets de fabrication. Les métaux recyclés incluent les métaux obsolètes, défectueux, et les débris qui contiennent des métaux affinés ou transformés qui peuvent être recyclés pour produire de l'étain, du tantale, du tungstène et / ou de l'or. Les minerais partiellement on non-traités ou sous-produits d'autres minerais ne répondent pas la définition du recyclage.","Fontes de reciclado ou desperdício são metais reciclados, que recuperados dos produtos finais ou de pós-consumo, ou metais processados de sucata originada durante a manufatura do produto. Metal reciclado inclui materiais de excessos, obsolescências, defeitos e metal sucatado que contêm metais processados ou refinados adequados à reciclagem de estanho, tântalo, tungsténio e/ou ouro. Minerais parcialmente processados, não processados ou subprodutos de outros minérios não estão incluídos na definição de metal reciclado.","Konflikt Mineralien gelten als \"recycelt\", wenn sie aus Endnutzer- oder Post-Consumer-Produkten zurück gewonnen werden oder als ein Abfallmetall während der Produktherstellung entstehen.  Recyceltes Metall enthält veralteten, defekte und Schrottmetalle,  welche veredelte  oder Produktionsmetalle enthalten , die für das Recycling in der Produktion von Zinn, Tantal, Wolfram und Gold geeignet sind. Mineralien welche nur teilweise bearbeitet, unbearbeitet oder als Nebenprodukte aus anderen Erze entstanden sind, gelten als nicht recyceltes Metall.","Fuentes recicladas o de desecho son metales reciclados, que son recuperados de los usuarios finales o los productos post-consumo, o metales procesados de chatarra creados durante la fabricación del producto. Metal reciclado incluye el exceso de materiales, metálicos, obsoletos, defectuosos, y de chatarra que contienen metales refinados o procesados ​​que sean apropiados para reciclar en la producción de estaño, tantalio, tungsteno y / o el oro. Minerales parcialmente procesados​​, no procesados ​​o derivados de otros minerales no están incluidos en la definición de metal reciclado","Materiali riciclati o  scarto di produzione sono metalli riciclati che sono riutilizzati alla fine del processo produttivo o da prodotti a fine vita, o rottami di metallo derivanti dalla trasformazione e generati durante il processo di fabbricazione. I metalli riciclati includono materiali eccedenti, obsoleti, difettati e rottami di metallo che contengono metalli raffinati o processati appropriati per essere riciclati nella produzione di stagno, tantalio, tungsteno e/o oro. I minerali parzialmento processati, non processati o sottoprodotti di altri minerali non sono inclusi nella definizione di metalli riciclati.","Geri dönüşüm veya hurda kaynakları, son kullanıcı ya da tüketici sonrası ürünler olarak bilinen ya da ürün imalatı sırasında oluşan hurda işleminden geçmiş metallerdir. Geri dönüştürülmüş metaller, kalay, tantal, tungsten ve/veya altın üretiminde geri dönüşüme uygun arıtılmış ya da işlemden geçmiş metaller içeren fazla, kusurlu ve hurda metal parçalarını içerir. Kısmen işlemden geçmiş, işlemden geçmemiş veya diğer cevherlerin yan ürünü niteliğindeki madenler geri dönüştürülmüş metal tanımına dahil değildir."]
["DefinitionsC22","Definitions","C22","The Responsible Minerals Assurance Process (RMAP) is a process developed by the RBA to enhance company capability to verify the responsible sourcing of metals. Further details of the RMAP can be found here: http://www.responsiblemineralsinitiative.org/responsible-minerals-assurance-process/.","负责任矿物审验流程 (RMAP) 是由责任商业联盟 (RBA) 所制定，用于提高公司对金属责任采购进行查证的能力。有关 RMAP 的更多信息，请访问 http://www.responsiblemineralsinitiative.org/responsible-minerals-assurance-process/。","責任ある鉱物保証プロセス（RMAP）とは、鉱物の責任ある調達の検証を強化するために、RBAによって開発されたプログラムである。RMAPに関する詳しい情報は以下のサイトに掲載されている。(http://www.responsiblemineralsinitiative.org/responsible-minerals-assurance-process/)","RBA가 개발한 책임 있는 광물 보증 프로세스(RMAP)는 회사의 책임감 있는 광물 구매 역량 강화를  위한 프로세스임.\n상세 내용은 아래 웹페이지에서 확인 가능하다.\nhttp://www.responsiblemineralsinitiative.org/responsible-minerals-assurance-process/","Le Programme pour les fonderies sans conflit (RMAP) est un programme développé par la RBA pour augmenter la capacité des entreprises à vérifier leur approvisionnement responsable en métaux. De plus amples détails sur le Processus RMA sont disponibles sur : http://www.responsiblemineralsinitiative.org/responsible-minerals-assurance-process/.","O Responsible Minerals Assurance Process (RMAP) é um programa desenvolvido pelo RBA para melhorar a captabilidade das Organizações de verificar as fontes responsáveis de metais. Mais detalhes podem ser encontrados em: http://www.responsiblemineralsinitiative.org/responsible-minerals-assurance-process/.","Der Responsible Minerals Assurance Process (RMAP) ist ein Programm, das die RBA entwickelt hat, damit Unternehmen die verantwortlichen Quellen für die Beschaffung von Metallen überprüfen können. Weitere Einzelheiten über den RMAP finden Sie hier: http://www.responsiblemineralsinitiative.org/responsible-minerals-assurance-process/.","El proceso de aseguramiento de minerales responsables es un proceso desarrollado por la RBA para mejorar la capacidad de la compañía para verificar el abastecimiento responsable de metales. Mas detalles del programa RMAP pueden ser encontrados en: http://www.responsiblemineralsinitiative.org/responsible-minerals-assurance-process/.","Il processo RMAP è un processo sviluppato da RBA per aumentare la capacità delle aziende di verificare un approvigionamento responsabile dei metalli. Maggiori dettagli sul programma CFS sono disponibili: http://www.responsiblemineralsinitiative.org/responsible-minerals-assurance-process/.\n","Sorumlu Maden Güvence Prosesi (RMAP), RBA tarafından şirketlerin metalleri sorumlu bir şekilde elde etme kapasitesini iyileştirmek için geliştirilmiş bir programdır. RMAP ile ilgili daha fazla bilgi için şu adrese başvurabilirsiniz: http://www.responsiblemineralsinitiative.org/responsible-minerals-assurance-process/."]
["DefinitionsC23","Definitions","C23","Founded in 2008 by members of the Responsible Business Alliance, the Responsible Minerals Initiative has grown into one of the most utilized and respected resources for companies addressing conflict minerals issues in their supply chains. Over 360 companies from ten different industries participate in the CFSI today, contributing to a range of tools and resources including the Responsible Minerals Assurance Process, the Conflict Minerals Reporting Template, Reasonable Country of Origin Inquiry data and a range of guidance documents on conflict minerals sourcing. The RMI also runs regular workshops on conflict minerals issues and contributes to policy development and debates with leading civil society organizations and governments. Additional information is available at http://www.responsiblemineralsinitiative.org.","负责任矿物计划由责任商业联盟 (RBA) 于 2008 年发起成立，并已成为公司供应链就冲突矿产问题而最广泛使用和认可的标准。 今天，来自 10 种不同行业的超过 360 家公司加入了负责任矿物计划，共同促成了一系列查证工具和资源的落实，例如负责任矿物审验流程、冲突矿产报告模板、合理的原产国信息查询和一系列无冲突矿产采购指引。另外，负责任矿物计划组织还会定期举办关于冲突矿产专题的工作坊、参与政策制度的修定、与前沿的社会团体和政府机构研讨等。有关更多信息，请造访http://www.responsiblemineralsinitiative.org","RBAのメンバーにより2008年に設立された責任ある鉱物イニシアチブは、サプライチェーンにおける紛争鉱物問題に取り組む企業が最も利用し尊重する組織のひとつに成長した。現在異なる7業界から150社以上の企業がCFSIに参加し、RMAP、CMRT、合理的な原産国調査(RCOI)データおよび紛争鉱物調達に関するさまざまなガイダンス文書を含む幅広いツールおよびリソースを提供している。RMIは紛争鉱物問題の定期的なワークショップを実施し、政策展開に貢献し、主要な市民社会団体および政府とも協議を重ねている。詳細については以下を参照のこと。http://www.responsiblemineralsinitiative.org","2008년에 책임감 있는 비니지스 연합의 회원에 의해 설립된 책임 있는 광물 이니셔티브는 공급망에서 분쟁물질 문제에 대해 설명하고자 하는 회사들에게 가장 활발하고 존경 받는 조직의 하나로 성장해 왔다.  열개의 다른 산업에서 360개 이상의 회사가 오늘날 RMI에 참가하고 있고, RMAP, CMRT, RCOI data와 분쟁 물질에 대한 여러 가이던스 문서들을 포함하는 다양한 방법과 자원에 기여하고 있다. 또한 RMI는 분쟁 물질에 대한 정기적인 워크샵을 운영하고 주요 민간 사회 조직과 정부의 정책개발과 토론에 기여함. 추가 정보는 http://www.responsiblemineralsinitiative.org.","Fondée en 2008 par des membres de la Responsible Business Alliance, l'Initiative pour des fonderies sans conflit est devenue l'une des ressources les plus utilisées pour les entreprises traitant des  minerais de conflit dans leurs chaînes d'approvisionnement. A ce jour, plus de 150 entreprises de sept secteurs industriels différents participent au RMI, contribuant à une gamme d'outils et de ressources, y compris le Programme de fonderie sans conflit, le formulaire de déclaration des minerais de conflit, les données sur la recherche raisonnable du pays d'origine et une série de lignes directrices sur l'approvisionnement des minerais de conflit. Le RMI organise également régulièrement des ateliers sur les questions des minerais de conflit et contribue à l'élaboration des politiques et aux débats avec les principales organisations de la société civile et les gouvernements. Des informations complémentaires sont disponibles à http://www.conflictfreesourcing.org.","Fundado em 2008 por membros da Responsible Business Alliance, a Responsible Minerals Initiative, a iniciativa de fontes livres de conflito tornou-se numa das mais utilizadas e respeitadas fontes para as empresas dirigirem questões relativas a minerais de conflito nas suas cadeias de fornecimento. Mais de 360 empresas de dez diferentes indústrias participam hoje no RMI, contribuindo para uma gama de ferramentas e recursos incluindo o programa de fundições Livre de Conflito, o modelo de relatório de Minérios de conflito, o Inquérito sobre o país de Origem e uma gama de documentos de apoio nas fontes de minerais de conflito. O RMI também Organiza workshops com alguma regularidade sobre questões de minerais de conflito e contribui nas políticas de desenvolvimento e debates Com as organizações Líder da sociedade civil e governos. Informação adicional encontra-se disponível em:  www.responsiblemineralsinitiative.org.","Die Responsible Minerals Initiative wurde im Jahr 2008 von den Mitgliedern der Responsible Business Alliance gegründet und ist zu einem der am meisten genutzten und respektierten Ressourcen für Unternehmen herangewachsen, die das Problem mit Konfliktmineralien in Ihren Supply Chains angehen. Mehr als 150 Unternehmen aus sieben verschiedenen Branchen nehmen an der RMI heute teil und tragen einen Beitrag zu einer Reihe von Tools und Ressourcen bei, darunter der Responsible Minerals Assurance Process, das Konfliktmineralien-Berichtsblatt (CMRT) und Daten und Anfragen aus betroffenen Herkunftsländer und eine Reihe von Leitfäden für Konfliktmineralien Sourcing. Die RMI veranstaltet auch regelmäßige Workshops bzgl.  Konfliktmineralien und leistet einen Beitrag für die Entwicklung der Politik und Diskussionsrunden mit führenden Organisationen der Zivilgesellschaft und Regierungen. Weitere Informationen finden Sie unter http://www.responsiblemineralsinitiative.org.","Fundada en 2008 por los miembros de la Alianza de negocios responsables, la Iniciativa de minerales responsables ha crecido hasta convertirse en uno de los recursos más utilizados y respetados para las empresas que abordan cuestiones de minerales de conflicto en sus cadenas de suministro. Más de 150 empresas de siete sectores diferentes participan en la RMI hoy, lo que contribuye a una serie de herramientas y recursos, incluyendo el Proceso de aseguramiento de minerales responsables, la plantilla de reporte para minerales conflictivos, Razonable  Encuesta de datos de país de origen y una serie de documentos de orientación sobre las fuentes de minerales conflictivos. La RMI también dirige talleres periódicos sobre temas de minerales de conflicto y contribuye al desarrollo de políticas y debates con las principales organizaciones de la sociedad civil y los gobiernos. Información adicional está disponible en http://www.responsiblemineralsinitiative.org.","Fondata nel 2008 dai membri della dell'Responsible Business Alliance®(RBA®) e della Global e-Sustainability Initiative, la Iniziativa Fornitura libera dai conflitti (RMI) è cresciuta divenendo uan delle risorse più utilizzate  e rispettate per le aziende che affrontano la questione dei minerali da conflitto nella propria filiera di fornitura. Più di 150 compagnie di sette diversi settori  partecipano al CFSI attualmente, contribuendo a una serie di strumenti e risorse che includono il Responsible Minerals Assurance Process, il Modello di Segnalazione sui Conflict Minerals, i dati sull'indagine raglionevole sui Paesi di origine, e una serie di documenti di riferimento sulla fornitura di minarali di conflitto. La RMI gestisce anche regolarmente workshops sulla questione minarli fonte di conflitto e contribuisce allo sviluppo delle strategie e dibattiti con le organizzazioni che guidano la società civile e i governi. Ulteriori informazioni sono disponibili al http://www.responsiblemineralsinitiative.org.","2008 yılında, Responsible Business Alliance üyeleri tarafından kurulan Sorumlu Maden Girişimi, şirketlerin tedarik zincirlerinde ihtilaf konusu madenler ile ilgili sorunlarla baş edebilmesi için en sık başvurulan ve en saygı duyulan kaynaklardan biri haline gelmiştir. Günümüzde yedi farklı sektörden, 150'nin üzerinde şirket CFSI'ye katılmış durumdadır ve bu şirketler, Sorumlu Maden Güvence Prosesi, İhtilaf Konusu Maden Raporlama Şablonu, Makul Menşei Ülke Sorgulama verileri ile ihtilaf konusu maden kaynakları ile ilgili bir dizi kılavuz belgeyi de içeren birçok araç ve kaynağın gelişimine katkıda bulunmuştur. RMI aynı zamanda, ihtilaf konusu madenler ile ilgili sorunlar ile ilgili düzenli atölye çalışmaları yürütmekte ve politikaların geliştirilmesine katkıda bulunarak öncü sivil toplum kuruluşları ve hükümetler ile müzakere etmektedir. Daha fazla bilgi için http://www.responsiblemineralsinitiative.org adresine bakılabilir."]
["DefinitionsC24","Definitions","C24","The Responsible Minerals Assurance Process (RMAP) Conformant Smelter List is a published list of smelters and refiners that have undergone assessment through the RMAP, a program of the Responsible Minerals Initiative (RMI) or industry equivalent program (such as Responsible Jewellery Council or London Bullion Market Association) and have been validated to be in conformance with the protocols. If a smelter or refiner is not on the list, it has either not completed a RMAP assessment or is not in conformance with the RMAP protocol. \n\nA list of smelters and refiners which have been validated to be conformant to the RMAP can be found at www.responsiblemineralsinitiative.org. ","负责任矿物审验流程 (RMAP) 中的合规冶炼厂列表包含所有被评估并且符合标准的冶炼厂和精炼厂。其中的标准有负责任矿物审验流程 (RMAP)、负责任矿物计划 (RMI) 或其他对等机构计划（例如责任珠宝委员会或伦敦金银市场协会）。如果冶炼厂或精炼厂不在列表内，则表示其未完成 RMAP 评估或不符合 RMAP 标准要求。\n\n要查看经验证符合 RMAP 的冶炼厂和精炼厂列表，请访问 www.responsiblemineralsinitiative.org。","責任ある鉱物保証プロセス(RMAP)適合リストとは、責任ある鉱物イニシアチブ（RMI）のプログラムであるRMAP、又は責任あるジュエリー協議会 (Responsible Jewellry Council) やロンドン貴金属市場協会 (London Bullion Market Association) といった業界の同等のプログラムによる監査を通過し、それらの基準に適合すると認証された製錬・精製業者のリストです。製錬・精製業者がこのリストにない場合は、RMAP監査を完了していないか、又はRMAP基準に準拠していないかのどちらかです。\n\nRMAPに適合していることが検証済みの製錬・精製業者のリストは、www.responsiblemineralsinitiative.orgに掲載されています。","책임 있는 광물 보증 프로세스(RMAP) 준수 제련소 리스트는 RMAP, 책임 있는 광물 이니셔티브(RMI)의 프로그램 또는 산업계에서의 유사 프로그램(예를 들어 Responsible Jewellery Council 또는 London Bullion Market Association)을 통해 평가되고 절차를 준수하는지 평가된 제련소와 정제소의 공개 목록입니다. 제련소 또는 정제소가 이 목록에 있지 않다면, RMAP 평가를 완료하지 못했거나 RMAP 절차를 준수하지 않고 있다는 것입니다. \n\nRMAP를 준수하는 것으로 확인된 제련소 및 정제소 목록은 www.responsiblemineralsinitiative.org에서 찾을 수 있습니다. ","La liste des fonderies conformes au Programme des fonderies hors conflits (Responsible Minerals Assurance Process, RMAP) est une liste publiée des fonderies et affineurs qui ont suivi une évaluation par l’intermédiaire du RMAP, un programme de l’Initiative d’approvisionnement hors conflits (Responsible Minerals Initiative, RMI) ou un programme sectoriel équivalent (notamment le Responsible Jewellery Council ou la London Bullion Market Association) et ont été validés pour leur conformité aux protocoles. Si une fonderie ou un affineur n’est pas sur la liste, c’est soit parce qu’il n’a pas rempli d’évaluation RMAP, soit parce qu’il n’est pas conforme au protocole RMAP. \n\nUne liste des fonderies et affineurs qui ont été validés pour leur conformité au RMAP est disponible sur www.conflictfreesourcing.org. ","A Lista de fundições em conformidade com o Programa de fundições livres de conflito (Responsible Minerals Assurance Process, RMAP) é uma lista publicada de fundições e refinarias que foram alvo de uma avaliação pelo RMAP, um programa da Iniciativa Livre de Conflitos (Responsible Minerals Initiative, RMI) ou de um programa equivalente do setor (tal como o Responsible Jewellery Council ou a London Bullion Market Association), e foi validada como em conformidade com os protocolos. Se uma fundição ou refinaria não fizer parte da lista, ainda não passou pela avaliação pelo RMAP ou não cumpre o protocolo RMAP. \n\nA lista de fundições e refinarias que foram validadas como em conformidade com o RMAP pode ser encontrada em www.responsiblemineralsinitiative.org. ","Die Liste mit Schmelzöfen, die den Responsible Minerals Assurance Process (RMAP) einhalten, ist eine veröffentlichte Liste mit Schmelzöfen und Raffinerien, die eine Beurteilung durch das RMAP durchlaufen haben, eines Programms der Initiative zur konfliktfreien Beschaffung (Responsible Minerals Initiative, RMI) oder eines branchenäquivalenten Programms (wie etwa des Responsible Jewellery Council oder der London Bullion Market Association) und die eine Bestätigung der Einhaltung der Protokolle erhalten haben. Falls ein Schmelzofen oder eine Raffinerie nicht auf der Liste steht, hat er/sie entweder keine Beurteilung durch das RMAP durchlaufen oder hält das RMAP-Protokoll nicht ein. \n\nEine Liste mit Schmelzöfen und Raffinerien, die eine Bestätigung ihrer Einhaltung des RMAP haben, kann auf www.responsiblemineralsinitiative.org eingesehen werden. ","El Proceso de aseguramiento de minerales responsables (Responsible Minerals Assurance Process, RMAP) es una lista publicada de los fundidores y las refinerías que se han sometido a evaluación por medio del RMAP, un programa de la Iniciativa de Minerales Responsables (Responsible Minerals Initiative, RMI) o el programa equivalente de la industria (como el Consejo de Joyería Responsable o la Asociación del Mercado de Lingote de Londres) y que se ha validado para cumplir con los protocolos.  Si un fundidor o una refinería no está en la lista, no ha completado la evaluación del RMAP o no cumple con el protocolo del RMAP.  \n\nEn www.responsiblemineralsinitiative.org se puede encontrar una lista de fundidores y refinerías que se han validado en cumplimiento con el RMAP.  ","La lista di fonderie conformi al Responsible Minerals Assurance Process (RMAP) è una lista pubblicata di fonderie e raffinerie che si sono sottoposte ad una valutazione attraverso il RMAP, un programma dell'iniziativa Responsible Minerals Initiative (RMI) o un programma equivalente dell'Industria (come il Consiglio per una gioielleria responsabile, o l'Associazione del mercato dei lingotti di Londra), ed è stato validato come conforme con i protocolli. Se una fonderia o raffineria non è indicata nella lista, o non ha completato la valutazione o non è conforme con il protocollo RMAP.\n\nAll'indirizzo www.responsiblemineralsinitiative.org. è possibile trovare una lista di fonderie e raffinerie che sono state validate in quanto conformi al RMAP.","Sorumlu Maden Güvence Prosesi (RMAP) Uyumlu İzabe Tesisi Listesi, Sorumlu Maden Girişiminin (RMI) bir programı olan RMAP'nin ya da sektördeki eşdeğer bir programın (Sorumlu Mücevher Şirketleri Konseyi veya Londra Bulyon Pazarı Birliği gibi) denetiminden geçmiş ve protokollere uyumlu olduğu tespit edilmiş izabe tesisleri ve rafinerilerin yayınlanmış listesini oluşturur. Bir izabe tesisi ya da rafinerinin listede olmaması, bir RMAP denetiminden geçmediği ya da RMAP protokollerine uymadığı anlamına gelir. \n\nRMAP ile uyumlu olduğu doğrulanmış olan izabe tesisleri ve rafinerilerin listesine www.responsiblemineralsinitiative.org adresinden ulaşılabilir. "]
["DefinitionsC25","Definitions","C25","U.S. Securities and Exchange Commission (www.sec.gov)","美国证券交易委员会 (www.sec.gov)","米国証券取引委員会（U.S. Securities and Exchange Commision）（www.sec.gov）","미국증권거래위원회 (www.sec.gov)","U.S. Securities and Exchange Commission (www.sec.gov)","Comissão \"U.S. Securities and Exchange\" (www.SEC.gov)","U.S. Securities and Exchange Commission (www.sec.gov)","U.S. Securities and Exchange Commission (www.sec.gov)","U.S. Securities and Exchange Commission (www.sec.gov)","ABD Menkul Kıymetler ve Döviz Komisyonu (www.sec.gov)"]
["DefinitionsC26","Definitions","C26","A smelter or refiner is a company that procures and processes mineral ore, slag and/or materials from recycled or scrap sources into refined metal or metal containing intermediate products.  The output can be pure (99.5% or greater) metals, powders, ingots, bars, grains, oxides or salts. The terms “smelter” and “refiner” are used interchangeably throughout various publications. ","冶炼厂或精炼厂是指购买并加工矿石、矿渣、回收料、报废料从而提炼成金属或含金属的介质。产品有纯度为 99.5% 或更高的金属、金属粉体、金属锭、金属条、金属粒子、金属氧化物、金属盐类等。术语“冶炼厂”和“精炼厂”在各类型的刊物经常互用。 ","製錬・精製業者とは、鉱石、スラグ及び/又は再生利用品、スクラップを調達し、製錬金属又は金属中間生成物に加工する企業である。生産物には、純金属（純度99.5%以上）、粉末、インゴット、バー、結晶粒、酸化物又は塩等がある。「製錬業者」と「精製業者」という用語は、様々な出版物の中で区別しないで使用される。","제련소 또는 정제소는 재활용 되거나 폐품으로부터 정제된 광물 또는 중간 생산품을 포함하는 광물로 광석, 슬래그 및/또는 재료를 구입하거나 처리하는 회사를 말한다. 산출물은 (99.5% 이상)의 순수한 금속, 분말, 잉곳, 막대, 낱알, 산화물 또는 소금이다. \"제련소\" 또는 \"정제소\"란 용어는  여러 출판물을 통해 융통성 있게 사용된다.","Un fondeur ou affineur est une entreprise qui achète et traite du minerai, scories et / ou des matériaux recyclés provenant de fournisseurs de produits recyclés, rebuts de production ou déchets de consommation en métaux affinés ou en métaux contenant des produits intermédiaires. Les résultats des traitements peuvent être des métaux,  des poudres, des lingots, des barres, des grains, des oxydes ou des sels pur (99,5% ou plus). Les termes \"fondeur\" et \"affineur\" sont utilisés indifféremment dans diverses publications.","Uma fundição ou refinaria é uma empresa que adquire e processa minério, escórias e/ou materiais de fontes de reciclado ou desperdício em metal refinado ou metal que contêm produtos intermédios. O produto final pode ser metal puro (99.5% ou superior), pós, lingotes, barras, grãos, óxidos ou sais. O termo \"fundição\" e \"refinaria\" são usados alternadamente ao longo de várias publicações.","Eine Schmelzhütte oder eine Raffinerie ist ein Unternehmen, welches  mineralische Erze sowie Schlacken und/oder Materialien aus recyceltem oder Schrott Quellen beschafft und in zerkleinerte Metall oder Metall mit Zwischenprodukten verarbeitet. Die Ausgabe kann rein sein (99,5 % oder mehr) Metalle, Pulver, Barren, Stangenmaterial,  Körnern, Oxide oder Salze sein. Die Begriffe \"Schmelzhütte\" und \"Raffinerie\" werden abwechselnd  in verschiedenen Publikationen verwendet.","Un fundidor o refinador  es una compañía que produce o procesa minerales, escoria y/o  materiales de fuentes recicladas o de deshecho  en metales refinados o metales conteniendo productos intermedios.  El producto puede ser metal puro (99.5% o mayor) , polvos, lingotes, barras, granos, óxidos o sales. El termino \"fundidor\" o \"refinador\" es usado indistintamente en varias publicaciones","Una fonderia è una società che fornisce e tratta minerali, scorie e/o materiali riciclati o rottami  in metallo raffinatoo metallo contenente prodotti intermedi. I risultati dei trattamenti possono essere metalli puri (99,5% o più), polveri, lingotti, barre, grani, ossidi o sali. I termini fonderia e raffineria vengono utilizzati in modo intercambiabile in molte pubblicazioni.","İzabe tesisleri ya da rafineriler, madeni cevher, cüruf ve/veya geri dönüştürülmüş ya da hurda kaynakları tedarik eden ya da işlemden geçmiş metallere ya da metal içeren ara ürünlere dönüştüren şirketlerdir. Çıktı olarak saf (%99,5 veya üzeri) metal, toz, külçe, çubuk, tanecik, oksit ya da tuz elde edilebilir. “İzabe tesisi” ve “rafineri” terimleri farklı yayınlarda birbiri yerine kullanılmaktadır. "]
[{"$f":"B126&C126","v":"DefinitionsC27"},"Definitions","C27","A unique identification number the RMI assigns to companies that have been reported by members of the supply chain as smelters or refiners, whether or not they have been verified to meet the characteristics of smelters or refiners as defined in the RMAP audit protocols.","负责任矿物计划 (RMI) 会编发独一无二的识别号码给由供应链成员申报上来的冶炼厂或精炼厂，无论其是否已确认过符合负责任矿物审验流程 (RMAP) 中审核标准所定义冶炼厂的物征。","RMIは、サプライチェーンを構成する企業が製錬・精製業者として報告した企業に対し、固有の識別番号を割り当てる。これは、これらの企業がRMAP監査手順の定義する製錬・精製業者の特性を満たしていると検証されているか否かとは無関係である。\n","공급망의 구성원에 의해 제련소 또는 정제소로 보고된 회사에 RMI가 부여한 독자 ID 번호. RMAP 감사 절차에 정의된 제련소 또는 정제소의 성격에 부합하는 것으로 증명되는 것과 무관함.","Un code d’identification unique est  attibué par le RMI aux entreprises qui ont été identifiés par les membres de la chaîne d'approvisionnement comme des fondeurs ou des affineurs, et ce qu'ils répondent ou non aux exigences définies par le protocole d'audit du RMAP pour les fondeurs et les affineurs.","Um número único de identificação é atribuído pelo CFSI às empresas que foram indicadas por membros da cadeia de fornecimento como fundições ou refinarias, quer tenha sido ou não verificado se cumprem os critérios  de fundições ou refinarias definidos na auditoria RMAP.","Eine eindeutige ID-Nummer der RMI bestimmt Unternehmen, die von Mitgliedern der Lieferkette als Schmelzhütten oder Raffinerien gemeldet  wurden, ungeachtet dessen ob sie überprüft wurden, die Eigenschaften der Schmelzhütten oder Raffinerien im Sinne der RMAP-Prüfprotokolle zu erfüllen.","Un único numero de identificación que el RMI asigna a las compañías que han sido reportadas por miembros de la cadena de suministro como fundidores o refinadores, sin que hayan sido verificados que cumplen con las características de fundidores o refinadores como lo define el protocolo de auditoria del RMAP.","La RMI assegna un numero di identificazione univoco alle aziende che sono state indicate dai membri della catena di fornitura in qualità di fonderie o raffinerie, anche qualora non ne sia stata valutata l'ottemperanza alle caratteristiche di fonderie o raffinerie come definito nei protocolli di audit RMAP.","RMAP denetim protokollerinde tanımlanan izabe tesisi veya rafineri özelliklerini karşıladığı doğrulanmış olsun ya da olmasın RMI'nin tedarik zincirinde izabe tesisi ya da rafineri olduğu belirtilen şirketlere atadığı benzersiz tanımlama numarası."]
["DefinitionsC28","Definitions","C28","A tantalum smelter (also known as a processor) is defined as a company that converts Ta-containing ores, concentrates, slags or secondary materials into tantalum intermediate products or other tantalum containing products for direct sales or further processing into Ta-containing products, such as Ta powders, Ta components, Ta oxides, alloys, wires, sintered bars, etc.  Refer to the RMAP audit protocol for this metal for a complete description at: http://www.responsiblemineralsinitiative.org/smelter-introduction/.","钽冶炼厂（或称钽加工厂）是指能转换含钽矿石、高钝度钽矿石、矿渣、二手金属成含钽介质或其它含钽产品，用于直接销售或进一步深加工成其它含钽产品，例如钽粉、钽部件、氧化钽、合金、焊条、热压结条等的工厂。请参考 RMAP 中的审核标准，以了解对这类型金属的完整描述。 http://www.responsiblemineralsinitiative.org/smelter-introduction/。","タンタル(Ta)製錬業者とは、Ta中間生成物を直接販売、あるいはTa含有品（Ta粉末、\nTa部品、Ta酸化物、合金、ワイヤー、焼結棒など）への更なる加工のために、Ta含有\n鉱石、スラグ又はスクラップ由来の二次材料を、Taの中間生成物又はその他のTa含有\n品に加工する企業と定義されている。この金属の詳しい説明は、RMAP監査手順書を参\n照：http://www.responsiblemineralsinitiative.org/smelter-introduction/\n","탄탈룸 제련소 (가공처리장으로도 알려진)는 Ta를  포함한 원석, 농축액, 폐자원 또는 이차 물질을 탄탈룸 매개 제품이나 직접 판매 또는 Ta 함유 제품, 즉, Ta 분말, Ta 구성물, Ta 산화물, 합금, 전선 소합금 막대 등으로 처리하는 것을 위해 다른 탄탈룸 함유물질로 전환하는 회사로 정의된다. 이 금속에 대한 완전한 설명을 위해 RMAP 감사절차를 참조하시오: http://www.responsiblemineralsinitiative.org/smelter-introduction/.","Une fonderie ou affinerie de tantale est définie comme une entreprise qui convertit des minerais,  concentrés,  scories ou matériaux secondaires contenant du tantale en produits intermédiaires à base de tantale comme les poudres de tantale, les composants de tantale, les oxydes de tantale,  les alliages, câbles, barres frittées ou produits finis similaires, ou produits intermédiaires (comme le kTaF, aussi appelé KSalt), les hydroxydes de tantale et les poudres de tantale non affinées, les minerais synthétiques et les autres matériaux de digestion de tantale. Reportez-vous au protocole de vérification du RMAP pour ce métal pour une description complète: http://www.responsiblemineralsinitiative.org/smelter-introduction/ .","Uma refinaria de tântalo ( também conhecida como um processador) é definida como uma empresa que converte minérios com conteúdo de Ta, concentrados, escórias ou materiais secundários em produto intermédios de tântalo ou outros produtos que contêm tântalo para venda direta ou processamento m produtos contendo Tântalo, tais como pó de Ta, Componentes de Ta, Óxidos de ta, ligas, fios, barras sintetizadas, etc. Para uma descrição completa, consulte o protocolo de auditoria do RMAP para este metal em: http://www.responsiblemineralsinitiative.org/smelter-introduction/.","Ein Tantal Schmelzer (auch bekannt als ein Verarbeiter) ist definiert als ein Unternehmen, das Ta-haltige Erze, Konzentrate, Schlacken oder sekundäre Materialien in Tantal Zwischenprodukte oder in ein anderes Tantal mit Produkten für den direkten Verkauf oder zur Weiterverarbeitung in Ta-Produkte wie zum Beispiel Ta-Pulver, Ta-Komponenten, Ta-Oxide, Legierungen, Kabel, gesinterte Stangen etc. umwandeln. Hier finden Sie  für das RMAP-Auditprotokoll eine vollständige Beschreibung für dieses Metall: http://www.responsiblemineralsinitiative.org/smelter-introduction/.","Un fundidor de tantalio ( también conocido como procesador)  es una compañía  la cual convierte minerales que contienen Tantalio (Ta), escoria, o materiales secundarios en productos intermedios de Tantalio u otros productos conteniendo Ta para venta directa  o procesos posteriores  para producir productos con contenido de Ta, tales como polvos de Ta, componentes con Ta, óxidos de Ta, aleaciones, alambres, barras sinterizadas, etc. Referirse al protocolo de auditoria de el  RMAP para este metal para una completa descripción en: http://www.responsiblemineralsinitiative.org/smelter-introduction/.","Una fonderia di tantalio è un'asienda che converte minerali contententi tantalio, concentrati, fanghi o materiali secondari in un prodotto intermedio di tantalio o altri prodotti contenenti tantalio per la vendita diretta per essere processati in prodotti contenenti tantalio come polveri di tantalio, componenti di tantalio, ossidi di tantalio, leghe, fili, barre sinterizzate, etc. Fare riferimento al protocollo di audit RMAP per questo metallo per una descrizione completa al: http://www.responsiblemineralsinitiative.org/smelter-introduction/.","Tantal izabe tesisleri (işlemci olarak da bilinir) Ta içeren cevherleri, konsantratları, cürufları ya da ikincil maddeleri doğrudan satan ya da tantal ara ürünlerine ya da Ta tozları, Ta bileşenleri, Ta oksitler, alaşımlar, teller, toplaşık çubuklar gibi diğer Ta içeren ürünlere dönüştüren şirketlerdir. Eksiksiz bir açıklama için bu metalin RMAP denetleme protokolüne başvurun: http://www.responsiblemineralsinitiative.org/smelter-introduction/."]
["DefinitionsC29","Definitions","C29","Primary [tin] smelters are companies with one or more facilities treating tin containing ore concentrates in order to produce tin metal.  Secondary [tin] smelters are companies with one or more facilities that treat secondary materials by reduction for the production of crude or higher grade tin or tin product such as solder.  A smelter as referred to within this audit protocol may operate as either one or both types of business operation. Refer to the RMAP audit protocol for this metal for a complete description: http://www.responsiblemineralsinitiative.org/smelter-introduction/.","一级锡冶炼厂指的是拥有一种以上处理锡精矿设备、生产锡金属的工厂。二级锡冶炼厂 是指拥有一种以上设备可将二次料件还原为粗锡、高纯度锡或是锡制品（例如焊锡）的工 厂。参与 RMAP 审计的冶炼厂属于上述其中一种，或是同时拥有上述两种类型的冶炼厂。请参考适用于这类金属的 RMAP 审计协议完整描述：\nhttp://www.responsiblemineralsinitiative.org/smelter-introduction/。","一次（錫）製錬業者とは、金属錫を生産するために、錫含有鉱石、錫精鉱を加工する\n施設を一箇所以上所有している企業である。二次（錫）製錬業者とは、粗製錫又はそ\nれ以上の品度の高い錫又はハンダのような錫製品を生産するために、スクラップ由来\nの二次材料を、金属錫に還元できる施設を一箇所以上所有する企業である。RMAP監査\n手順書に参照される製錬業者は、上記のどれか1つ、もしくは両方に該当する場合が\nある。この金属の詳細な説明については、RMAP監査手順書を参照：\nhttp://www.responsiblemineralsinitiative.org/smelter-introduction/\n","주요 [주석] 제련소는 주석 함유 원석 농축을 주석 금속으로 생산하기 위해 다루는 하나 이상의 시설을 가진 회사이다. 2차 [주석] 제련소는 원석 또는 고급 주석 또는 연납 같은 주석 재품의 생산을 위해 환원하여 2차 물질을 다루는 하나 이상의 시설을 갖고 있는 회사이다. 이러한 감사 절차 내에서  언급되는 제련소는 하나 또는 두 가지 형태의 사업 으로 운용될 수 있다. 이 금속에 대한 완전한 설명을 위해 RMAP 감사절차를 참조하시오: \nhttp://www.responsiblemineralsinitiative.org/smelter-introduction/.","Une fonderie ou affinerie d'étain primaire est une entreprise avec une ou plusieurs installations qui traite des minerais contenant de l'étain  pour produire de l'étain sous forme de métal. Une fonderie ou affinerie d'étain secondaire est une entreprise  avec une ou plusieurs installations qui traite les matières  secondaires pour produire de l'étain brut ou pur, ou des produits à base d'étain tels que de la soudure. Les fondeurs tels que mentionnés dans le protocole d'audit du RMAP peuvent être l'une ou une combinaison des définitions ci-dessus. Reportez-vous au protocole d'audit du RMAP de ce métal pour une description complète: http://www.responsiblemineralsinitiative.org/smelter-introduction/.","Fundições Primárias de [Estanho] são empresas com uma ou mais unidades de tratamento de minério com estanho que contêm concentrados no minério de forma a produzir estanho metálico. Fundições secundárias de [Estanho] são empresas com uma ou mais unidades de tratamento de materiais secundários por redução para a produção de crude ou estanho de grau superior ou produtos de estanho tais como solda. Um fundição tal como referido no protocolo de auditoria pode operar quer num ou nos dois tipos de negócios. \nPara uma descrição completa, consulte o protocolo de auditoria do RMAP para este metal em: http://www.responsiblemineralsinitiative.org/smelter-introduction/.","Primäre [Zinn] Schmelzhütten sind Unternehmen mit einer oder mehreren Einrichtungen zur Verarbeitung von Zinn aus Erzkonzentraten, um Zinn herzustellen. Sekundärschmelzhütten sind Unternehmen, die sekundäre Materialien zur Herstellung von rohem oder vollständig raffiniertem Zinn, Zinnprodukte oder Lötzinn verarbeiten. Ein Schmelzofen bezogen auf diesen Auditberichts kann entweder als eine oder als beide Arten von Unternehmen poduzieren. Hier finden Sie  für das RMAP-Auditprotokoll eine vollständige Beschreibung für dieses Metall: http://www.responsiblemineralsinitiative.org/smelter-introduction/.","Fundidores primarios de (Estaño) son compañías con una o mas instalaciones con tratamientos de concentrados de minerales de Estaño para producir el metal Estaño. Fundidores secundarios de (Estaño) son compañías con una o mas instalaciones que tratan materiales secundarios por reducción para la producción de crudo o Estaño de alto grado o productos de Estaño como soldadura. El fundidor como se refiere en este protocolo de auditoria puede operar como uno o ambos tipos de operación de negocios. Referirse al protocolo de auditoria del RMAP para una completa descripción.  http://www.responsiblemineralsinitiative.org/smelter-introduction/.","Fonderie di stagno primario sono aziende con uno o più impianti che trattano minerali concentrati contententi stagno, al fine di produrre stagno metallico. Fonderie di stagno secondario sono aziende con uno o più impianti che trattano materiali secondari tramite riduzione per la produzione di stagno grezzo o di grado superiore come saldatura. Una fonderia in riferimento alla quale questo protocollo di audit è operativo può operare sia in uno sia in entrambi i tipi di attività di impresa. Fare riferimento al protocollo di audit RMAP per questo metallo per una descrizione completa: http://www.responsiblemineralsinitiative.org/smelter-introduction/.","Birincil [kalay] izabe tesisleri, kalay metali üretmek için kalay içeren cevher konsantratlarını işleme alan bir veya daha fazla tesise sahip şirketlerdir. İkincil [kalay] izabe tesisleri, ham veya daha yüksek dereceli kalay veya lehim gibi kalay ürünleri üretmek için ikincil malzemeleri işleme alan bir veya daha fazla tesise sahip şirketlerdir. Bu denetim protokolü kapsamında atıfta bulunulan izabe tesisleri bir veya iki işletme türünden olabilir. Eksiksiz bir açıklama için bu metalin RMAP denetleme protokolüne başvurun: http://www.responsiblemineralsinitiative.org/smelter-introduction/."]
["DefinitionsC30","Definitions","C30","A company with one or more facilities that converts W-containing ores (such as wolframite and scheelite), W concentrates, or W-bearing scrap (secondary material) into tungsten containing intermediates such as Ammonium Para-Tungstate (APT), Ammonium Meta-Tungstate (AMT), ferrotungsten, and tungsten oxides for direct sales or further processed into W-containing products (such as W powder or W-carbide powder). Refer to the RMAP audit protocol for this metal for a complete description: http://www.responsiblemineralsinitiative.org/smelter-introduction/.","钨冶炼厂指拥有一种或多种设施能使含钨矿石（黑钨矿和白钨矿）、钨精矿、含钨轴承废料（次件）转换为含钨介体，例如仲钨酸铵 (APT)、铵元钨 (AMT)、钨铁、钨氧化物，并将含钨介体用直接销售或进一步制造含钨产品（钨粉或钨碳粉）的工厂。                  请参考负责任矿物审验流程 (RMAP) 中的审核标准，以了解对这类金属的完整描述：http://www.responsiblemineralsinitiative.org/smelter-introduction/。               ","タングステン（W）製錬業者は、W含有中間生成物を直接販売又はW粉末、W炭化物粉末などのW含有品への更なる加工のために、W鉱石（鉄マンガン重石、灰重石など）、W含有精鉱又はW含有スクラップ（二次材料）を、パラタングステン酸アンモニウム（APT）やメタタングステン酸アンモニウム（AMT）、フェロタングステン、酸化タングステン等のW含有中間生成物に加工する施設を一箇所以上所有する企業である。この金属に関する詳細な説明は、RMAP監査手順書を参照：http://www.responsiblemineralsinitiative.org/smelter-introduction/.","W 함유 원석 (중석과 회중석 같은), W 농축물, 또는 W 함유 폐물질 (2차 가공품)을 텅스텐 함유 매개 제품, 즉 Ammonium Para-Tungstate (APT), Ammonium Meta-Tungstate (AMT), 텅스텐철, 및 텅스텐 산화물로 직접판매 또는 W 함유 생산품 (W 분말 또는 W 산화 불말로) 처리하는 것을 위해 전환하는 하나 이상의 시설을 보유한 회사. 이 금속에 대한 완전한 설명을 위해 RMAP 감사절차를 참조하시오: \nhttp://www.responsiblemineralsinitiative.org/smelter-introduction/.","Une fonderie de tungstène est une entreprise avec une ou plusieurs installations qui traite des minerais contenant du tungstène (tels que la wolframite et scheelite), des concentrés de tungstène, ou des déchets contenant du tungstène (matières secondaire) en matières intermédiaires contenant du tungstène tels que le paratungstate d'ammonium (APT),  le metatungstate d'ammonium (AMT), le ferrotungstène et les oxydes de tungstène pour  vente directe ou traitements additionels pour obtenir des produits à base d'étain (tels que la poudre d'étain ou de la poudre de carbure de tungstène). Référez-vous au protocole d'audit du RMAP pour ce métal pour une description complète: http://www.responsiblemineralsinitiative.org/smelter-introduction/.","Uma empresa que tenha uma ou mais unidades que convertem minérios que contêm Tungsténio -W (tais como volframite e scheelita), Concentrados de W, ou desperdício contendo W (material secundário), em tungsténio que contêm produtos intermédios tais como Para-Tungstato de Amónia (PTA), Meta-Tungstato de Amónia (MTA), tungsténio ferroso, e óxidos de tungsténio para venda direta ou no processamento de produtos com conteúdo em tungsténio (tais como pó de W ou Pó de Carboneto de W). Consulte o protocolo de auditoria RMAP para este metal para uma descrição completa: http://www.responsiblemineralsinitiative.org/smelter-introduction/.","Ein Unternehmen mit ein oder mehr Standorten zur Umwandlung von Wolframerz (Wolframit und Scheelit), Wolframkonzentrate oder Wolfram Schrottlager (Altstoffe) in Wolfram mit Zwischenprodukten wie Ammonium Para-Wolframat (APT) Ammonium Meta-Wolfram (AMT), Ferrowolfram und Wolframoxide für direkte Verkäufe oder in wolframhaltige Produkte (wie z. B. Wolframpulver oder Wolfram-Siliciumcarbid Pulver).  Hier finden Sie  für das RMAP-Auditprotokoll eine vollständige Beschreibung für dieses Metall: http://www.responsiblemineralsinitiative.org/smelter-introduction/.","Una compañía con una o mas instalaciones que convierte minerales que contienen W (tales como wolframita y Scheelite) concentrados de W, o chatarra conteniendo W en intermediarios con contenido de W  tales como Amonio Para-Tungsteno (ATP), Amonio Meta-Tungsteno (AMT), ferrotungsteno, y óxidos de Tungsteno para venta directa o procesos posteriores en productos con contenido de W ( tales como polvo de W, o polvo de carburo de W). Referirse al protocolo de auditoria del RMAP para este metal para una completa descripción: http://www.responsiblemineralsinitiative.org/smelter-introduction/.","Una azienda con uno o più impianti che convertono minerali contenenti tungsteno (come volframite e scheelite), concentrati di tungsteno, o rottamicontenenti tungsteno (materiale secondario) in intermendi contenenti tungsteno come paratungstato di ammonio (PTA), metatungstato di ammonio (MTA), ferrotungsteno, e ossidi di tungsteno per la vendita diretta o ulterioriormente processati in prodotti contenenti tungsteno (come polvere di tungsteno o polvere di carburo di tungsteno). Fare riferimento al protocollo di audit RMAP per tale metallo per una descrizione completa: http://www.responsiblemineralsinitiative.org/smelter-introduction/.","W içeren cevherleri (volframit ve şelit gibi), W konsantratlarını ya da W içeren hurdaları (ikincil malzeme) doğrudan satmak ya da W içeren diğer ürünlere (W tozu veya W karbür tozu gibi) dönüştürmek için, Amonyum Para Tungstat (APT), Amonyum Meta Tungstat (AMT), ferrotungsten ve tungsten oksitler gibi tungsten içeren ara ürünlere dönüştüren bir veya daha fazla tesis sahibi şirket.  Eksiksiz bir açıklama için bu metalin RMAP denetleme protokolüne başvurun: http://www.responsiblemineralsinitiative.org/smelter-introduction/."]
["DeclarationD2","Declaration","D2","Conflict Minerals Reporting Template (CMRT)","Conflict Minerals Reporting Template (CMRT)","Conflict Minerals Reporting Template (CMRT)","Conflict Minerals Reporting Template (CMRT)","Conflict Minerals Reporting Template (CMRT)","Conflict Minerals Reporting Template (CMRT)","Conflict Minerals Reporting Template (CMRT)","Conflict Minerals Reporting Template (CMRT)","Conflict Minerals Reporting Template (CMRT)","Conflict Minerals Reporting Template (CMRT)"]
["DeclarationF3","Declaration","F3","Click here to check required fields completion","点击此处，检查必填字段填写情况","必須欄の記入状況を確認するにはこちらをクリック","필수 항목이 모두 작성되었는지 확인하려면 여기를 클릭하십시오. ","Cliquez ici pour vérifier le remplissage des champs obligatoires","Clique aqui para verificar a conclusão dos campos obrigatórios","Klicken Sie hier, um die Ausfüllung der Pflichtfelder zu bestätigen","Haga clic aquí para revisar la terminación de los campos requeridos","Fare clic qui per controllare il completamento dei campi richiesti","Zorunlu alanların doldurulma düzeyini kontrol etmek için buraya tıklayın"]
["DeclarationI3","Declaration","I3","One (1) or more required fields needs to be populated","需要填写一 (1) 个或多个必填字段","1つ以上の必須欄に記入する必要があります","하나(1) 이상의 필수 항목을 작성해야 합니다. ","Un (1) ou plusieurs champs obligatoires doivent être remplis","Um (1) ou mais campos obrigatórios precisam ser preenchidos","Eines (1) oder mehr Pflichtfelder müssen ausgefüllt werden","Se deben poblar uno (1) o más campos requeridos","Uno (1) o più dei campi richiesti deve essere popolato","Bir (1) veya daha fazla zorunlu alanın doldurulması gerekiyor"]
["DeclarationI4","Declaration","I4","Link to Terms & Conditions",null,"利用規約へのリンク","이용 약관으로 연결되는 링크","Lien vers les Conditions générales","Link para Termos e condições","Link zu den Bedingungen","Enlace a Términos y condiciones","Link a Termini e Condizioni","Şartlar ve Koşullara yönlendiren Bağlantı"]
["DeclarationB4","Declaration","B4","The purpose of this document is to collect sourcing information on tin, tantalum, tungsten and gold used in products","此填写此报告的目的是收集在产品中所用锡、钽、钨、黄金等金属的采购信息。","この文書は製品に使用された錫、タンタル、タングステン、金の調達先情報を収集することを目的としています。","이 문서는 제품에 사용되는 주석, 탄탈륨, 텅스텐, 금의 구매 정보를 수집하기 위해 제작되었습니다.","Le but de ce document est de collecter des informations sur la provenance de l'étain, du tantale, du tungstène et de l'or utilisé dans les produits.","O Objetivo deste documento é a recolha de informação da origem e fornecedores dos metais  Estanho, Tântalo, Tungsténio e ouro utilizados em produtos.","Der Zweck dieses Dokuments ist die Erfassung von Beschaffungsinformationen für Zinn, Tantal, Wolfram und Gold, welche in Produkten genutzt werden.","El propósito de este documento es recolectar información de la fuente del Estaño, Tantalio, tungsteno y Oro usado en productos","Lo scopo del presente documento è quello di raccogliere le informazioni su stagno, tantalio, tungsteno e oro usati nei prodotti","Bu belge, ürünlerde kullanılan kalay, tantal, tungsten ve altın hakkında kaynak bilgisi toplamayı amaçlamaktadır."]
["DeclarationB6","Declaration","B6","Mandatory fields are noted with an asterisk (*).  Consult the instructions tab for guidance on how to answer each question.","必填字段标记为星号 (*)。参考说明选项卡，获取关于如何答复每个问题的指南。","必須項目は（*）で表示。各質問の回答方法については、「指示」タブを参照してください。","필수 기재란은 별표(*)로 표시됩니다. 각 질문에 대한 답변 방법은 지침 탭을 참조하십시오. ","Les champs obligatoires sont indiqués par un astérisque (*). Consultez l'onglet Instructions pour savoir comment répondre à chaque question.","Campos obrigatórios estão marcados com um asterisco (*).  Consulte a guia “Instruções” para ver orientações sobre como responder a esta pergunta.","Pflichtfelder sind mit einem Sternchen (*) gekennzeichnet.  Im Tab „Instruktionen“ finden Sie eine Anleitung zur Beantwortung aller Fragen.","Los campos obligatorios están marcados con un asterisco (*).  Consulte la pestaña de instrucciones para orientación sobre cómo responder a cada pregunta.","I campi obbligatori sono contrassegnati con un asterisco (*).  Consultare la scheda Istruzioni per ottenere informazioni sulle modalità di risposta a ciascuna domanda.","Doldurulması zorunlu alanlar yıldız imi (*) ile gösterilmiştir.  Her bir soruya nasıl yanıt verileceği konusunda bilgi almak için talimatlar sekmesine başvurun."]
["DeclarationB7","Declaration","B7","Company Information","公司信息","会社情報","기업 정보","Informations sur l’entreprise","Informações sobre da Empresa","Firmenangaben","Información de la Empresa","I campi obbligatori sono contrassegnati con (*). Le informazioni raccolte nel presente modulo devono essere aggiornate su base annuale. Qualsiasi modifica occorsa durante l'anno in corso dovrà essere comunicata al vostro cliente","Şirket Bilgileri"]
["DeclarationB8","Declaration","B8","Company Name (*):","公司名称 (*)：","会社名(*):","기업명 (*):","Nom de l'entreprise (*):","Nome da Empresa (*):","Firmenname (*):","Nombre de la compañía (*):","Denominazione Sociale (*)","Şirket Adı (*):"]
["DeclarationB9","Declaration","B9","Declaration Scope or Class (*):","申报范围或种类 (*)：","申告範囲又はクラス(*)：","선언범위 또는 클래스(*):","Périmètre de la déclaration (*):","Declaração do âmbito ou classe (*):","Geltungsbereich der Erklärung (*):","Alcance de la declaración o clase (*):","Scopo della Dichiarazione (*)","Beyan Kapsamı ya da Sınıfı (*):"]
["DeclarationB10","Declaration","B10","Description of Scope:","范围描述：","申告範囲の説明：","선언범위 설명란:","Description du périmètre:","Descrição do âmbito:","Beschreibung des Geltungsbereichs","Descripción del alcance:","Descrizione dello scopo:","Kapsam Açıklaması:"]
[{"$f":"B140&C140","v":"DeclarationB10A"},"Declaration","B10A","Description of Scope:","范围描述：","申告範囲の説明：","선언범위 설명란:","Description du périmètre:","Descrição do âmbito:","Beschreibung des Geltungsbereichs","Descripción del alcance:","Descrizione dello scopo:","Kapsam Açıklaması:"]
[{"$f":"B141&C141","v":"DeclarationB10C"},"Declaration","B10C","Description of Scope: (*)","范围描述：(*)","申告範囲の説明 (*):","선언범위 설명란 (*):","Description du périmètre (*):","Descrição do âmbito(*):","Beschreibung des Geltungsbereichs (*):","Descripción del alcance (*):","Descrizione dello scopo (*):","Kapsam Açıklaması: (*)"]
[{"$f":"B142&C142","v":"DeclarationB10B"},"Declaration","B10B","Go to Product List tab to enter products this declaration applies to","转到产品列表选项卡，输入此申报所适用的产品","この申告に適用される製品は製品一覧表(Product List)のシートに移動して入力","적용 제품을 제품리스트 탭에 기입하시오.","Allez sur l'onglet \"Liste des produits\" pour saisir les produits auxquels cette déclaration s'applique","Ir para a aba da Lista de Produtos para inserir os produtos aos quais esta declaração se aplica.","Wechseln Sie zum Reiter „Product List“ und geben dort die Produkte ein, für die diese Erklärung gilt.","Ir al Tab de Lista de productos para capturar los productos que aplican a la declaración.","Andare alla tabella lista prodotto per inserire i prodotti per cui vale questa dichiarazione","Bu beyanın geçerli olduğu ürünleri girmek için Ürün Listesi sekmesine ilerleyin"]
[{"$f":"B143&C143","v":"DeclarationD11"},"Declaration","D11","Click here to enter the products this declaration applies to","点击此处，输入此申报所适用的产品","こちらをクリックして、この申告が該当する製品を入力してください","이 신고가 적용되는 제품을 입력하려면 여기를 클릭하십시오. ","Cliquez ici pour saisir les produits auxquels la présente déclaration s'applique","Clique aqui para inserir os produtos aos quais esta declaração se aplica","Klicken Sie hier, um die Produkte einzugeben, auf die diese Erklärung anzuwenden ist","Haga clic aquí para ingresar los productos a los que aplica esta declaración","Fare clic qui per inserire i prodotti ai quali questa dichiarazione si applica","Bu beyanın geçerli olduğu ürünleri girmek için buraya tıklayın"]
["DeclarationB12","Declaration","B12","Company Unique ID:","公司唯一识别信息： ","会社固有の識別番号:","사업등록번호:","Identifiant unique de l'entreprise:","Número único de Identificação da Empresa- Número de Identificação de Pessoa Coletiva (NIPC):","Eindeutige Unternehmenskennung:","Identificador único de la compañía:","Numero di identificazione della società","Şirket Benzersiz Kimlik Numarası:"]
["DeclarationB13","Declaration","B13","Company Unique ID Authority:","公司唯一授权识别信息：","会社固有の識別番号の発行元","사업등록번호 당국:","Autorité délivrant l'identifiant unique:","Autoridade que atribui o Número único de Identificação da Empresa:","Zuständige Stelle im Unternehmen:","ID único de autoridad de la compañía:","ID Unico Aziendale rilasciato dall’autorità","Şirket Benzersiz Kimlik Numarasını Belirleyen Kurum:"]
["DeclarationB14","Declaration","B14","Address:","地址：","住所:","주소:","Adresse:","Endereço","Adresse:","Dirección:","Indirizzo","Adres:"]
["DeclarationB15","Declaration","B15","Contact Name (*):","联系人姓名 (*)：","連絡先担当者名(*)","담당자 (*):","Nom du contact (*):","Nome de Contacto (*):","Name des Ansprechpartners (*):","Nombre del Contacto (*):","Nome persona di contatto (*):","İrtibat Kişisinin Adı (*):"]
["DeclarationB16","Declaration","B16","Email – Contact (*):","电子邮件 - 联系人 (*)：","連絡先担当者の電子メール(*)","담당자 이메일 (*):","Email du contact (*):","E-mail de Contacto(*):","E-Mail-Adresse des Ansprechpartners (*):","Email-contacto (*):","Email - contatto (*):","E-posta – İrtibat (*):"]
["DeclarationB17","Declaration","B17","Phone – Contact (*):","电话 - 联系人 (*)：","連絡先担当者の電話番号(*)","담당자 전화번호 (*):","Téléphone du contact (*):","Telefone de Contacto (*):","Telefonnummer des Ansprechpartners (*):","Teléfono-contacto (*):","Telefono - Contatto (*):","Telefon – İrtibat (*):"]
["DeclarationB18","Declaration","B18","Authorizer (*):","授权人 (*)：","回答責任者名(*)：","정보책임 담당자 (*):","Nom de la personne responsable de la déclaration (*):","Nome do autorizador ou representante legal (*):","Bevollmächtigter (*):","Autorizador (*):","Autorizzatore (*):","İzin Yetkilisi (*):"]
["DeclarationB19","Declaration","B19","Title - Authorizer:","职务 - 授权人：","回答責任者の役職:","정보책임 담당자 직위:","Titre du représentant légal:","Cargo do autorizador ou representante legal:","Titel des Bevollmächtigten:","Titulo-autorizador:","Titolo - Autorizzatore:","Unvan - İzin Yetkilisi:"]
["DeclarationB20","Declaration","B20","Email - Authorizer (*):","电子邮件 - 授权人 (*)：","回答責任者の電子メール(*):","정보책임 담당자 이메일 (*):","Email du représentant légal (*):","E-mail do autorizador ou representante legal  (*):","E-Mail-Adresse des Bevollmächtigten (*):","Email-autorizador (*):","Email - Autorizzatore (*):","E-posta - İzin Yetkilisi (*):"]
["DeclarationB21","Declaration","B21","Phone - Authorizer (*):","电话 - 授权人 (*)：","回答責任者の電話番号(*)","정보책임 담당자 전화번호 (*):","Téléphone du représentant légal:","Telefone do autorizador ou representante legal (*)","Telefonnummer des Bevollmächtigten (*):","Teléfono-autorizador (*):","Telefono - Autorizzatore (*):","Telefon - İzin Yetkilisi (*):"]
["DeclarationB22","Declaration","B22","Effective Date (*):","生效日期 (*)："," 記入日(*):","시행일 (*):","Date de la déclaration (*):","Data de finalização (*):","Datum (*):","Fecha efectiva (*):","Data di validità (*):","Yürürlük Tarihi (*):"]
["DeclarationB24","Declaration","B24","Answer the following questions 1 - 7 based on the declaration scope indicated above","根据上述申报范围，回答以下 1 至 7 题","上記の申告範囲にもとづいて、以下の1～7の質問にお答えください","위에 명시한 선언범위를 바탕으로 다음 1~7번 질문에 답하시오.","Répondre aux questions 1 à 7 suivantes pour le périmètre de la déclaration indiqué ci-dessus","Responder às seguintes perguntas de 1-7 com base no âmbito da declaração acima indicada.","Beantworten Sie die Fragen 1 - 7 entsprechend dem oben angegebenen Geltungsbereich","Responder a las siguientes preguntas 1-7 basado en el alcance de la declaración indicado arriba.","Rispondere alle seguenti domande 1- 6 basate sul perimetro della dichiarazione sopra indicato","Aşağıdaki 1 ile 7 arası soruları yukarıda gösterilen beyan kapsamına uygun şekilde yanıtlayın"]
[{"$f":"B156&C156","v":"DeclarationB25"},"Declaration","B25","1) Is any 3TG intentionally added or used in the product(s) or in the production process? (*)","1) 是否在产品或生产流程中有意添加或使用任何 3TG？(*)","1）製品自体や製造過程で、3TGが意図的に添加又は使用されていますか？ （*）","1) 3TG가 제품 또는 생산 공정에서 의도적으로 추가 또는 사용됩니까? (*)","1) Des 3TG sont-ils intentionnellement ajoutés ou utilisés dans le(s) produit(s) ou les processus de production ? (*)","1) Algum mineral de conflito foi intencionalmente acrescentado ou utilizado no(s) produto(s) ou no processo de produção? (*)","1) Wird absichtlich ein 3TG-Mineral im Herstellungsprozess verwendet oder in das/die Produkt(e) aufgenommen? (*)","1) ¿Se utiliza o añade, intencionalmente, el 3TG a su producto o procesos de fabricación? (*)","1) Vi sono metalli di conflitto aggiunti o utilizzati intenzionalmente nel/nei prodotto/i o nel processo di produzione? (*)","1) Ürün(ler)de veya üretim sürecinde kasten eklenen veya kullanılan herhangi bir 3TG var mı? (*)"]
["DeclarationB31","Declaration","B31","2) Does any 3TG remain in the product(s)?","2) 是否有任何 3TG 仍存在于产品中？","2）3TGは製品に残留していますか？","2) 제품에 3TG 잔여물이 있습니까?","2) Reste-t-il des 3TG dans le(s) produit(s) ? (*)","2) Algum mineral de conflito permanece no(s) produto(s)?","2) Liegen in dem/den Produkt(en) 3TG-Rückstände vor? ","2) El 3TG permanece en los productos?","2) Vi sono metalli di conflitto che restano nel/nei prodotto/i?","2) Ürün(ler)de hiç 3TG kalıyor mu?"]
["DeclarationB37","Declaration","B37","3) Do any of the smelters in your supply chain source the 3TG from the covered countries? (SEC term, see definitions tab)","3) 贵公司供应链中的冶炼厂是否从所指明的国家采购 3TG？（有关术语“SEC”，请参见定义选项卡）","3）貴社サプライチェーン内の製錬業者のいずれかが、対象国を3TGの原産地としていますか？（SEC用語。定義タブを参照）","3) 귀사 공급망의 제련소가 해당국가로부터 3TG를 공급받고 있습니까? (SEC 용어, 용어정의 탭 참조)","3) Est-ce qu’une des fonderies de votre chaîne d’approvisionnement s’approvisionne en 3TG à partir des pays couverts ? (terme SEC, consulter l’onglet des définitions)","3) Alguma das fundições da sua cadeia de suprimentos fornece minerais de conflito provenientes dos países abrangidos? (termo da SEC; consulte a guia de definições)","3) Beschaffen Schmelzöfen in Ihrer Lieferkette das 3TG-Mineral aus den umfassten Ländern? (SEC-Begriff, siehe Definitions-Tab)","3) ¿Alguna de las fundidoras de la cadena de suministro provee el 3TG de los países cubiertos?  (para el término SEC, véase la pestaña de definiciones)","3) Vi sono fonderie nella vostra catena di fornitura che ottengono metalli di conflitto da paesi coinvolti? (Termine SEC, vedere il foglio delle definizioni)","3) Tedarik zincirinizdeki izabe tesislerinden herhangi biri 3TG'yi kapsam dahilindeki ülkelerden ediniyor mu? (SEC terimi, tanımlar sekmesine bakın) "]
["DeclarationB43","Declaration","B43","4) Does 100 percent of the 3TG (necessary to the functionality or production of your products) originate from recycled or scrap sources? ","4) 是否 100% 的 3TG（因产品功能或生产而必须使用）来自于回收料或报废料？","4)3TG（貴社の製品の機能性又は生産に必要なもの）は全て、再生利用品又はスクラップ起源から調達していますか？","4) (귀사 제품의 기능이나 생산에 필요한) 3TG의 100%가 재활용이나 폐자원에서 온 것입니까?","4) Est-ce que 100 % des 3TG (nécessaires au fonctionnement ou à la production de vos produits) provient de sources recyclées ? ","4) Cem por cento do mineral de conflito (necessários à funcionalidade ou à produção dos seus produtos) têm origem de material reciclado ou sucata? ","4) Stammt das für die Funktionalität oder  Herstellung Ihrer Produkte benötigte 3TG-Mineral zu 100 % aus Recycling- oder Schrottquellen? ","4) ¿Se origina el 100 por ciento del 3TG (necesario para la funcionalidad o la producción de sus productos) del reciclaje o de las fuentes de residuos? ","4) Il 100% dei metalli di conflitto (necessari per la funzionalità o per la produzione dei prodotti della vostra società) derivano da materiale di recupero o da scarti di fornitura?","4) 3TG (ürünlerinizin imalatı veya işlevselliği için gerekli) yüzde 100 oranda geri dönüşüm ya da hurda kaynaklarından elde ediliyor mu? "]
["DeclarationB49","Declaration","B49","5) What percentage of relevant suppliers have provided a response to your supply chain survey? ","5) 已对贵公司供应链调查提供答复的相关供应商百分比是多少？","5）サプライチェーン調査に回答した関連するサプライヤーは何パーセントですか？","5) 관련 공급업체가 귀사의 공급망 설문조사에 응답한 비율은 몇 퍼센트입니까?","5) Combien de fournisseurs (%) concernés ont répondu à l'enquête sur la chaîne d'approvisionnement ?","5) Que percentagem de fornecedores relevantes responderam à pesquisa da sua cadeia de suprimentos?","5) Wie hoch ist der Prozentsatz an Lieferanten, die auf Ihre Lieferkettenumfrage geantwortet haben?","5) ¿Qué porcentaje de proveedores relevantes le han hecho llegar respuestas a su encuesta de la cadena de suministros?","3) In che percentuale i fornitori interessati hanno risposto all'indagine sulla catena di fornitura?","5) Tedarik zinciri anketinize ilgili tedarikçilerin yüzde kaçı yanıt verdi?"]
["DeclarationB55","Declaration","B55","6) Have you identified all of the smelters supplying the 3TG to your supply chain? ","6) 您是否识别出为贵公司供应链供应 3TG 的所有冶炼厂？","6)貴社のサプライチェーンに3TGを供給する製錬業者を全て特定しましたか？","6) 귀사의 공급망에 3TG를 공급하는 모든 제련소를 확인했습니까?","6) Avez-vous identifié toutes les fonderies qui fournissent les 3TG à votre chaîne d’approvisionnement ? ","6) Você identificou todas as fundições que fornecem mineral de conflito para sua cadeia de suprimentos? ","6) Haben Sie alle Schmelzhütten ermittelt, die das 3TG-Mineral für Ihre Lieferkette bereitstellen? ","6) ¿Ha identificado a todos los fundidores que suministran el 3TG a su cadena de suministro? ","6) Avete individuato tutte le fonderie che forniscono metalli di conflitto alla vostra catena di fornitura?","6) Tedarik zincirinize 3TG sağlayan tüm izabe tesislerini tanımladınız mı? "]
["DeclarationB61","Declaration","B61","7) Has all applicable smelter information received by your company been reported in this declaration? ","7) 贵公司收到的所有适用冶炼厂信息是否已在此申报中报告？","7)貴社は受領した該当する全ての製錬業者情報を、この申告で報告していますか？","7) 귀사에서 받은 해당하는 모든 제련소 정보가 이 신고에서 보고되었습니까?","7) Est-ce que toutes les informations pertinentes reçues des fonderies par votre société ont été mentionnées dans cette déclaration ? ","7) Todas as informações aplicáveis sobre fundições recebidas por sua empresa foram reportadas nesta declaração? ","7) Haben Sie alle relevanten Informationen, die Ihr Unternehmen zu den Schmelzhütten erhalten hat, in dieser Erklärung aufgeführt? ","7) ¿Se ha incluido en este declaración toda la información aplicable del fundidor recibida por su compañía? ","7) Tutte le informazioni applicabili relativamente alle fonderie ricevute dalla vostra azienda sono state incluse in questa dichiarazione?","7) Şirketinizin aldığı tüm uygulanabilir izabe tesisi bilgileri bu beyanda bildirildi mi? "]
["DeclarationB67","Declaration","B67","Answer the Following Questions at a Company Level","从公司层面，回答以下问题","会社レベルで以下の質問にお答えください","회사 차원에서 다음 질문들에 답하시오.","Répondre à la question suivante au niveau de l'entreprise","Responder às seguintes Perguntas ao nível da Organização","Beantworten Sie folgende Fragen auf Firmenebene","Responda a las siguientes preguntas a nivel de la compañía","Rispondere alle seguenti domande a livello aziendale","Aşağıdaki Soruları Şirket Düzeyinde Yanıtlayın"]
["DeclarationB69","Declaration","B69","A. Have you established a conflict minerals sourcing policy?","A. 贵公司是否已制定冲突矿产采购政策？","A.紛争鉱物の調達方針を確定しましたか？","A. 귀사에 분쟁광물 조달 정책이 있습니까?","A. Avez-vous mis en place une politique d'approvisionnement sur les minerais de conflit ?","A. Você estabeleceu uma política de aquisição de minerais de conflito?","A. Haben Sie eine Beschaffungsrichtlinie für Konfliktmineralien aufgestellt?","A. ¿Ha establecido una política de abastecimiento de minerales en conflicto?","A. È stata adottata una politica di approvvigionamento per i minerali di conflitto?","A. İhtilaf konusu maden kaynakları ile ilgili bir politika oluşturdunuz mu?"]
["DeclarationB71","Declaration","B71","B. Is your conflict minerals sourcing policy publicly available on your website? (Note – If yes, the user shall specify the URL in the comment field.)","B. 贵公司的冲突矿产采购政策是否公开发布于贵公司网页上？（备注 - 如果是，请在注释字段中注明 URL。）","B.その方針は貴社のホームページで閲覧できますか？（回答が「はい」の場合、その方針が掲載されているURLをコメント欄に記入する）","B. 관련 정책을 홈페이지에서 확인할 수 있습니까?  URL을 기입하시오.","B. Votre politique sur l'approvisionnement des minerais de conflit est-elle publiquement disponible sur le site internet de votre entreprise? (Note - Si oui, saisir l'URL dans le champ de commentaire) ","B. A sua política de fontes de minerais de conflito está publicamente disponível no website da Empresa? (Nota: Se sim, o utilizador deverá especificar o URL no Campo de Comentário).","B. Ist Ihre Richtlinie zur Beschaffung von Konfliktmineralien öffentlich auf ihrer Website verfügbar? (Hinweis: Wenn \"Ja\" geben Sie die URL im Feld \"Kommentar\" an.)","B. Esta política esta públicamente disponible en tu website?  ( Nota: si existe; el usuario debe especificar el URL en el campo de comentario.)","B. La vostra politica sulla fornitura di minerali di conflitto è  disponibile e accessibile a tutti sul vostro sito internet? (Nota: in caso di risposta affermativa, l'utente deve specificare l'URL nel campo commenti)","B. İhtilaf konusu maden kaynakları ile ilgili politikanız, web sitenizde genel erişime açık mı? (Not – Cevap evetse, kullanıcı açıklama alanına ilgili URL'yi eklemelidir.)"]
[{"$f":"B166&C166","v":"DeclarationB73"},"Declaration","B73","C. Do you require your direct suppliers to be DRC conflict-free?","C. 您是否要求你的直接供应商不使用来自刚果民主共和国的涉及冲突之冲突矿产？","C.一次サプライヤーに対してDRCコンフリクトフリーであることを要求していますか？","C. 귀사는 1차 협력사에게 DRC conflict-free (분쟁으로부터 자유로운 광물 사용)를 요구하고 있습니까? ","C. Exigez-vous que vous fournisseurs directs soient sans conflit ? ","C. Exige que os seus fornecedores diretos estejam em conformidade com o DRC Livre de Conflitos?","C. Verlangen Sie von Ihren direkten Lieferanten, \"DRC-konfliktfrei\" zu sein?","C. Requieres que tus proveedores directos sean libres de conflicto RDC? ","C. Richiedete ai vosti fornitori di essere DRC conflict - free?","C. Doğrudan tedarikçilerinizin DKC ihtilafı içermeyen şirketler olmasını şart koşuyor musunuz?"]
["DeclarationB75","Declaration","B75","D. Do you require your direct suppliers to source the 3TG from smelters whose due diligence practices have been validated by an independent third party audit program?","D. 您是否要求您的直接供应商从其尽职调查实践已被被独立第三方审核机构验证过的冶炼厂采购 3TG？ ","D.  貴社は直接サプライヤーに対し、独立民間監査会社の監査プログラムによりデューデリジェンス業務が認証された製錬業者から3TGを調達することを要求していますか？ ","D.  귀사는 1차 협력사에게 독립된 제3자 감사 회사에 의해 실사를 확인받은 제련소로부터만 3TG를 구매하기를 요구하고 있습니까?","D. Est-ce que vous imposez à vos fournisseurs directs de s’approvisionner en 3TG auprès de fonderie dont les pratiques de diligence raisonnable ont été validées par un programme d’audit externe indépendant ? ","D. Você exige que seus fornecedores diretos forneçam minerais de conflito de fundições cujas práticas de diligência devida tenham sido validadas por um programa de auditoria independente? ","D. Verlangen Sie von Ihren direkten Lieferanten, das 3TG-Mineral ausschließlich von Schmelzhütten zu beziehen, deren Due-Diligence-Praktiken von einer unabhängigen Instanz überprüft wurden?","D.  ¿Exige a sus proveedores directos que le suministren el 3TG de fundidores cuyas prácticas de debida diligencia hayan sido validadas por un programa de auditoría de un tercero independiente?  ","D. Richiedete ai vostri diretti fornitori di approvvigionarsi da fonderie che sono state certificate da parte di una società indipendente di certificazione del settore privato?  ","D. Doğrudan tedarikçilerinizin 3TG'yi durum tespiti uygulamaları bağımsız üçüncü kişi denetim programları tarafından onaylanmış şirketlerden edinmesini şart koşuyor musunuz?"]
["DeclarationB77","Declaration","B77","E. Have you implemented due diligence measures for conflict-free sourcing?","E. 贵公司是否已实施无冲突矿产采购的尽职调查措施？","E.コンフリクトフリーな鉱物調達のためのデューデリジェンス対策を実施していますか？","E. 귀사는 분쟁으로부터 자유로운 광물 구매에 대한 실사를 실시하고 있습니까? ","E. Avez-vous mis en place des mesures de devoir de diligence concernant les approvisionnements Sans Conflit ? ","E. Implementou medidas de diligências devidas para fontes Livres de conflito?","E. Haben Sie angemesse Prüfmaßnahmen für konfliktfreie Beschaffung eingeführt?","E. Has implementado medidas de diligencia sobre el cuidado para abastecimiento libre de conflicto? ","E. Avete adottato con la dovuta diligenza misure per l'acquisto di metalli da zone senza conflitti?","E. İhtilafsız kaynak edinimi için durum tespiti tedbirlerini uygulamaya koydunuz mu?"]
["DeclarationB79","Declaration","B79","F. Does your company conduct Conflict Minerals survey(s) of your relevant supplier(s)?","F. 贵公司是否开展了相关供应商的冲突矿产调查？","F.貴社は、関連するサプライヤーの紛争鉱物調査を行っていますか？","F. 귀사는 관련 공급업체에 대해 분쟁광물 설문조사를 실시하고 있습니까? ","F. Votre société mène-t-elle des enquêtes sur les minerais de conflit auprès du/des fournisseur(s) concerné(s) ?","F. Sua empresa faz pesquisa(s) de minerais de conflito de seu(s) fornecedor(es) relevante(s)?","F. Veranstaltet Ihr Unternehmen (eine) Konfliktmineralienumfrage(n) mit seinen entsprechenden Lieferanten?","F. ¿Su compañía realiza encuestas de minerales de conflicto con sus proveedores relevantes?","F. La società conduce indagini sui minerali di conflitto per i fornitori interessati?","F. Şirketiniz ilgili tedarikçi(leri)niz ile ilgili olarak İhtilaf Konusu Maden Kaynakları anket(ler)i yürütüyor mu?"]
["DeclarationB81","Declaration","B81","G. Do you review due diligence information received from your suppliers against your company’s expectations?","G. 贵公司是否根据公司期望来审查供应商提交的尽职调查信息？","G.サプライヤーからのデューデリジェンス情報を、貴社の期待を基に検証していますか？","G. 귀사는 협력사로부터 받은 실사 정보를 귀사의 기대에 준하여 검토 하십니까?","G. Vérifiez-vous les informations de devoir de diligence reçues de vos fournisseurs par rapport aux attentes de votre entreprise? ","G.  Verifica e revê a informação das diligências devidas recebidas dos seus fornecedores face as expectativas da Empresa? ","G. Überprüfen Sie die Due-Diligence-Informationen, die Sie von ihren Lieferanten erhalten, anhand der Erwartungen Ihres Unternehmens?","G. Revisas la información de diligencia recibida de tus proveedores contra las expectativas de la compañía?","G.Avete verificato le informazioni di dovuta diligenza ricevute dai vostri fornitori rispetto alle aspettative della vostra azienda?","G. Tedarikçilerinizden edindiğiniz durum tespiti bilgilerini şirketinizin beklentileri ile karşılaştırarak değerlendiriyor musunuz?"]
["DeclarationB83","Declaration","B83","H. Does your review process include corrective action management?","H. 贵公司的验证程序是否包括纠正措施管理？","H. 貴社の検証プロセスには是正措置管理が含まれていますか？","H. 귀사의 정보 검토 프로세스는 개선 조치 관리를 포함하고 있습니까? ","H. Votre processus de vérification inclut-il la gestion des actions correctives ? ","H. O processo de revisão inclui a gestão de ações corretivas?","H. Sieht Ihr Review-Prozess ein Korrekturmaßnahmen-Management vor?","H. Tu proceso de verificación incluye manejo de acciones correctivas? ","H. Il vostro processo di verifica include la gestione di azioni correttive?","H. Değerlendirme süreciniz düzeltici eylem yönetimini içeriyor mu?"]
["DeclarationB85","Declaration","B85","I. Is your company required to file an annual conflict minerals disclosure with the SEC?","I. 贵公司是否需要向 SEC 提交年度冲突矿产披露报告？","I.貴社は、SECに紛争鉱物の開示情報を年1回提出する必要がありますか？","I. 귀사는 매년 SEC에 분쟁광물을 공개해야 합니까? ","I. Votre société est-elle tenue de fournir une déclaration annuelle sur les minerais de conflit à la SEC ?","I. A sua empresa precisa registrar uma divulgação anual de minerais de conflito na SEC?","I. Ist Ihr Unternehmen zu einer jährlichen Offenlegung der Konfliktmineralien gegenüber der SEC verpflichtet?","I. ¿Su compañía está obligada a presentar una divulgación anual de minerales de conflicto con la SEC?","I. La società è tenuta a inviare una comunicazione annuale sui minerali di conflitto alla SEC?","I. Şirketinizin ihtilaf konusu madenleri yıllık olarak SEC'le paylaşması gerekiyor mu?"]
["DeclarationD25","Declaration","D25","Answer","回答","回答","답변","Réponse","Resposta","Antwort","Respuesta","Risposta","Yanıt"]
["DeclarationB68","Declaration","B68","Question","问题","質問","문제","Question","Pergunta","Frage","Pregunta","domanda","Soru"]
["DeclarationG25","Declaration","G25","Comments","注释","備考","추가 내용","Commentaires","Comentários","Kommentare","Comentarios","Commenti","Açıklamalar"]
["DeclarationB26","Declaration","B26","Tantalum  ","钽","タンタル","탄탈륨  ","Tantale  ","Tântalo","Tantal  ","Tantalio  ","Tantalio  ","Tantal "]
["DeclarationB27","Declaration","B27","Tin  ","锡","錫","주석  ","Étain  ","Estanho","Zinn  ","Estaño  ","Stagno  ","Kalay "]
["DeclarationB28","Declaration","B28","Gold  ","金","金","금  ","Or  ","Ouro","Gold  ","Oro  ","Oro  ","Altın "]
["DeclarationB29","Declaration","B29","Tungsten  ","钨","タングステン","텅스텐  ","Tungstène  ","Tungsténio","Wolfram  ","Tungsteno  ","Tungsteno  ","Tungsten "]
["DeclarationB38","Declaration","B38","Tantalum  ","钽","タンタル","탄탈륨  ","Tantale  ","Tântalo","Tantal  ","Tantalio  ","Tantalio  ","Tantal "]
["DeclarationB39","Declaration","B39","Tin  ","锡","錫","주석  ","Étain  ","Estanho","Zinn  ","Estaño  ","Stagno  ","Kalay "]
["DeclarationB40","Declaration","B40","Gold  ","金","金","금  ","Or  ","Ouro","Gold  ","Oro  ","Oro  ","Altın "]
["DeclarationB41","Declaration","B41","Tungsten  ","钨","タングステン","텅스텐  ","Tungstène  ","Tungsténio","Wolfram  ","Tungsteno  ","Tungsteno  ","Tungsten "]
["DeclarationAth","Declaration","Ath","Comments and Attachments","注释和附件","備考・添付書類","추가 내용 및 첨부 파일","Commentaires et pièces jointes","Comentários e Anexos","Kommentare und Anlagen","Comentarios y anexos","Commenti e Allegati","Açıklamalar ve Ekler"]
["DeclarationB92","Declaration","B92","Yes","是","はい","예","Oui","Sim","Ja","Si","sì","Evet"]
["DeclarationB93","Declaration","B93","No","否","いいえ","아니오","No","Não","Nein","No","no","Hayır"]
["DeclarationB94","Declaration","B94","Unknown","未知","不明","파악되지 않음","Inconnu","Desconhecido","Nicht bekannt","Desconocido","Ignoto","Bilinmiyor"]
["DeclarationB95","Declaration","B95",1,1,1,1,"100 %",1,1,1,1," %100"]
["DeclarationB96","Declaration","B96","Greater than 90%","大于 90%","90%超","90% 이상","– Supérieur à 90 %","Acima de 90%","Größer als 90 %","Más del 90%","Oltre il 90%","%90'dan fazla"]
["DeclarationB97","Declaration","B97","Greater than 75%","大于 75%","75%超","75% 이상","– Supérieur à 75 %","Acima de 75%","Größer als 75 %","Más del 75%","Oltre il 75%","%75'ten fazla"]
["DeclarationB98","Declaration","B98","Greater than 50%","大于 50%","50%超","50% 이상","– Supérieur à 50 %","Acima de 50%","Größer als 50 %","Más del 50%","Oltre il 50%","%50'den fazla"]
["DeclarationB99","Declaration","B99","50% or less","50% 或更小","50%以下","50% 미만","50 % ou moins","50% ou menos","50 % oder weniger","50% o menos","50% o meno","%50 veya daha az"]
["DeclarationB100","Declaration","B100","None","完全没有","ゼロ","없음","Aucun","Nenhum","Keine","Ninguno","nessuno","Hiçbiri"]
["DeclarationB101","Declaration","B101","Yes, in conformance with IPC-1755 [e.g., CMRT]","是，符合 IPC-1755 [例如 CMRT]","はい、IPC-1755 [CMRTなど]に準拠する","Yes, IPC-1755 준수[예: CMRT]","Oui, conformément à IPC-1755 [par ex., CMRT]","Sim, em conformidade com o IPC-1755 [por exemplo, CMRT]","Ja, konform mit IPC-1755 [z. B. CMRT]","Sí, de conformidad con IPC-1755 [p. ej. CMRT]","Sì, in conformità con IPC-1755 [e.g., CMRT]","Evet, IPC-1755 [ör, CMRT] standardına uygun olarak"]
["DeclarationB102","Declaration","B102","Yes, using other format (describe)","是，使用其他格式（请描述）","はい、他のフォーマットを使用する（記述する）","Yes, 다른 형식 사용(설명 필수)","Oui, par un autre mode (donnez des explications)","Sim, usando outro formato (descrever)","Ja, unter Verwendung eines anderen Formats (bitte beschreiben)","Sí, a través de otro formulario (describa)","Sì, utilizzando un altro formato (descrivere)","Evet, diğer biçimi kullanarak (açıklayın)"]
["DeclarationB103","Declaration","B103"," No","否"," いいえ"," No"," Non"," Não"," Nein"," No"," No "," Hayır"]
[{"$f":"B197&C197","v":"Smelter Look-upA1"},"Smelter Look-up","A1","The following list represents the RMI's latest smelter name/alias information as of this templates release.  This list is updated frequently, and the most up-to-date version can be found on the RMI website http://www.responsiblemineralsinitiative.org/responsible-minerals-assurance-process/exports/cmrt-export/.  The presence of a smelter here is NOT a guarantee that it is currently Active or Conformant within the Responsible Minerals Assurance Process.\n\nPlease refer to the RMI web site www.responsiblemineralsinitiative.org for the most current and accurate list of standard smelter names that are Active or Conformant. \n\nNames included in column B represent company names that are commonly recognized and reported by the supply chain for a particular smelter. These names may include former company names, alternate names, abbreviations, or other variations. Although the names may not be the RMI Standard Smelter Name, the reference names are helpful to identify the smelter, which is listed under column C in the Smelter Look-up.\n\nColumn C is the list of the official standard smelter names, in the ASCII character set. The majority of smelters will have the same entry for both columns, however if the common name varies from the standard name, the variation is noted in Column B. ","以下目录是截止此模板发布时 RMI 的最新冶炼厂名称/别名信息。此目录实时更新，可于下述 RMI 网站查询最新版本：http://www.responsiblemineralsinitiative.org/responsible-minerals-assurance-process/exports/cmrt-export/。冶炼厂存在于此目录中不保证它就是负责任矿物审验流程内的目前有效或合规的冶炼厂。\n\n有关有效或合规标准冶炼厂名称的最新准确列表，请访问 RMI 网站 www.responsiblemineralsinitiative.org。\n\nB 列包括的名称表示供应链对于特定冶炼厂通常认可和报告使用的公司名称。这些名称可能包括公司曾用名、备用名称、简称、或其他变体。虽然这些名称可能不是 RMI 标准冶炼厂名称，但参考名称有助于识别列在冶炼厂查找中的 C 列之冶炼厂。\n\n在 ASCII 字符集中，C 列是正式标准冶炼厂名称列表。大多数冶炼厂的这两列具有相同条目，然而，如果常用名称与标准名称不同，则应在 B 列中注明这种变化。","以下の製錬業者リストは、このテンプレート発表時点で最新のRMIの製錬業者／別名の情報を表すものです。  このリストは頻繁に更新されます。最新版については、RMIウェブサイト（http://www.responsiblemineralsinitiative.org/responsible-minerals-assurance-process/exports/cmrt-export/）にてご確認ください。  このリストに製錬業者の名前が掲載されている場合であっても、それはコンフリクトフリー製錬業者プログラム内で現在活発又は適合しているという保証ではありません。\n\n最新版かつ正確な標準製錬業者（活発又は適合）リストについては、RMIウエブサイトを参照してください（www.responsiblemineralsinitiative.org）。\n\nB列に記載されている名前は、特定の製錬業者のサプライチェーンによって一般的に認められており、また報告されている会社名です。これらの名前には、旧社名、別名、省略形その他の変化形が含まれている可能性があります。その名前はRMI標準製錬所名ではないかもしれませんが、参照名は製錬所を特定するのに役立ちます。製錬所は、Smelter Look-up（製錬所検索）のC列に記載されています。\n\nC列は、ASCII文字セットで表す公式の標準製錬業者名のリストです。大多数の製錬業者の名前は両列で同じですが、一般名称が正式名と違う場合は、B列にその違いが注記されています。","다음 목록은 이 템플릿의 발표 시점을 기준으로 한 RMI의 최신 제련소 명칭/별칭 정보를 나타냅니다.   이 목록은 자주 업데이트되며, 최신 버전은 RMI 웹사이트(http://www.responsiblemineralsinitiative.org/responsible-minerals-assurance-process/exports/cmrt-export/)에서 참조할 수 있습니다.   이 목록에 제련소가 포함되어 있다고 해서 해당 제련소가 현재 책임 있는 광물 보증 프로세스 내에서 활동 중이거나 준수한다고 보장하는 것은 아닙니다. \n\n프로그램 내에서 활동 중이거나 그 범위를 준수하고 있는 가장 최근의 정확한 표준 제련소 명칭 목록은 RMI 웹사이트인 www.responsiblemineralsinitiative.org를 참조하십시오. \n\nB열에 포함된 명칭은 특정 제련소에 대한 공급망에 의해 일반적으로 인식 및 보고되는 회사명을 나타냅니다. 이러한 이름에는 이전의 회사명, 대체 명칭, 약어 또는 기타 다른 명칭이 포함될 수 있습니다. 이름이 RMI 표준 제련소 명칭이 아닐 수 있지만, 참조 이름은 제련소를 식별하는 데 도움이 되며 제련소 찾기의 C열에 나열되어 있습니다. \n\nC열은 ASCII 문자열로 표시되는 공식 표준 제련소 명칭의 목록입니다. 대다수 제련소들의 명칭이 두 열 모두 동일하지만, 일반 명칭이 표준 명칭과 다를 경우, 다른 명칭이 B열에 표기됩니다. ","La liste suivante représente les dernières informations de la RMI relatives au nom/pseudonyme de la fonderie au moment de la publication de ce modèle.  Cette liste est mise à jour régulièrement et la version la plus à jour peut être consultée sur le site Web de la RMI à l’adresse http://www.responsiblemineralsinitiative.org/responsible-minerals-assurance-process/exports/cmrt-export/.  La présence d’une fonderie sur cette liste ne garantit PAS que celle-ci est actuellement active ou conforme au Programme des fonderies hors conflits (Responsible Minerals Assurance Process, RMAP).\n\nVeuillez consulter le site Web de la RMI, www.responsiblemineralsinitiative.org, pour obtenir la liste actualisée et précise de noms des fonderies standard qui sont actives ou conformes. \n\nLes noms figurant dans la colonne B représentent des noms de sociétés généralement reconnues et déclarées par la chaîne d’approvisionnement pour une fonderie particulière. Ces noms peuvent comprendre d’anciens noms de sociétés, d’autres noms, des abréviations ou d’autres variantes. Bien que les noms ne soient pas forcément des noms de fonderies standard de la RMI, les noms de référence peuvent permettre d'identifier la fonderie dans la colonne C de la Recherche de fonderie.\n\nLa colonne C correspond à la liste des noms standard officiels des fonderies, dans le jeu de caractères de la norme ASCII. La plupart des fonderies auront la même entrée pour les deux colonnes ; toutefois, si le nom courant est différent du nom standard, la variation est indiquée dans la colonne B. ","A lista a seguir representa as informações mais recentes da RMI sobre nomes/pseudônimos de fundições no momento da divulgação deste modelo.  Essa lista é atualizada frequentemente e a versão mais atual está disponível no site da RMII, http://www.responsiblemineralsinitiative.org/responsible-minerals-assurance-process/exports/cmrt-export/.  A presença de uma fundição aqui NÃO é uma garantia de que ela esteja atualmente Ativa ou Em conformidade com o Programa de fundições livres de conflito (Responsible Minerals Assurance Process, RMAP).\n\nConsulte o site da RMI, www.responsiblemineralsinitiative.org, para obter a versão mais recente e precisa da lista de nomes padrão de fundições que estão Ativas ou em Conformidade. \n\nOs nomes na coluna B representam nomes de empresas normalmente reconhecidas e relatadas pela cadeia de suprimentos de uma fundição específica. Estes nomes podem incluir nomes antigos da empresa, nomes alternativos, abreviaturas ou outras variações. Embora os nomes possam não seguir o Nome de Fundição Padrão RMI, os nomes de referência são úteis para identificar a fundição, que está listada na coluna C da Lista de Referência de Fundições.\n\nA coluna C é a lista dos nomes oficiais padrão de fundição, no conjunto de caracteres ASCII. A maioria das fundições terá a mesma entrada em ambas as colunas; no entanto, se o nome comum variar em relação ao nome padrão, a variação será indicada na coluna B. ","Die folgende Liste beruht auf den neuesten Informationen der RMI über Schmelzofennamen/Aliasnamen zum Zeitpunkt der Veröffentlichung dieser Vorlage.  Diese Liste wird regelmäßig aktualisiert. Die aktuellste Version ist auf der RMI-Website zu finden unter http://www.responsiblemineralsinitiative.org/responsible-minerals-assurance-process/exports/cmrt-export/.  Die Aufführung eines Schmelzofens in dieser Erklärung ist KEINE Garantie, dass dieser gegenwärtig aktiv ist oder den Responsible Minerals Assurance Process einhält.\n\nBitte entnehmen Sie der RMI-Website www.responsiblemineralsinitiative.org die aktuellste und genaueste Liste der Namen von aktiven oder mit dem RMAP konformen Standardschmelzöfen. \n\nNamen in Spalte B stellen allgemein bekannte Firmennamen dar, die der Lieferkette für den jeweiligen Schmelzofen gemeldet werden. Zu diesen Namen können frühere Firmennamen, alternative Namen, Abkürzungen oder sonstige Varianten zählen. Obwohl diese Namen vielleicht nicht den RMI Standard-Schmelzofennamen entsprechen, sind sie für die Identifizierung des Schmelzofens hilfreich, welcher in Spalte C der Schmelzofensuche aufgeführt ist.\n\nSpalte C beinhaltet die Liste der offiziellen Standard-Schmelzofennamen, im ASCII-Zeichensatz. Die Mehrheit von Schmelzöfen hat dieselbe Eintragung für beide Spalten. Wenn jedoch der übliche Name vom Standardnamen abweicht, wird die Abweichung in Spalte B vermerkt. ","La siguiente lista representa la información de RMI actualizada del nombre/alias de la última fundidora a partir de la publicación de la plantilla.  Esta lista se actualiza con frecuencia, y la versión más reciente se encuentra en el sitio de RMI http://www.responsiblemineralsinitiative.org/responsible-minerals-assurance-process/exports/cmrt-export/.  La presencia de la fundidora en esta parte NO es una garantía de que actualmente se encuentre activa o en cumplimiento con el Programa de Fundidoras Sin Conflictos.\n\nConsulte la página de Internet de la RMI, www.responsiblemineralsinitiative.org., para obtener la lista más actual y exacta de los nombres de fundidoras estándares que se encuentran activas o en cumplimiento. \n\nLos nombres incluidos en la columna B representan nombres de compañías que son comúnmente reconocidas y reportadas por la cadena de suministros de una fundidora en particular. Dichos nombres pueden incluir los nombres anteriores de compañías, nombres alternos, abreviaturas u otras variaciones. Aun cuando los nombres pueden no ser los nombres RMI estándar de la fundidora, los nombres de referencia son útiles para identificar a la fundidora, la cual está en la columna C en la Lista de Referencia de Fundidores.\n\nLa columna C es la lista de los nombres oficiales estándar de fundidoras, en el conjunto de caracteres ASCII. La mayoría de las fundidoras tendrán la misma entrada en ambas columnas; sin embargo, si el nombre común varía del nombre estándar, la variación se observa en la Columna B. ","La seguente lista riporta i dati più recenti relativamente a nomi/alias di RMI a partire dalla pubblicazione di questo modello.  La lista viene aggiornata spesso e la versione più aggiornata è disponibile sul sito web di RMI http://www.responsiblemineralsinitiative.org/responsible-minerals-assurance-process/exports/cmrt-export/. La presenza di una fonderia NON è garanzia del fatto che essa sia attualmente attiva o conforme ai sensi del Responsible Minerals Assurance Process.\n\nPrego fare riferimento al sito RMI (www.responsiblemineralsinitiative.org) per la versione più aggiornata e accurata dei nomi delle fonderie standard attive o conformi.\n\nI nomi compresi nella colonna B rappresentano i nomi delle aziende che sono comunemente conosciute e segnalate dalla catena logistica per una fonderia specifica. Questi nomi possono includere i nomi di ex aziende, nomi alternativi, abbreviazioni o altre variazioni. Sebbene i nomi possano non essere i Nomi delle fonderie standard di RMI, i nomi di riferimento sono utili all’identificazione della fonderia, che è elencata nella colonna C della Ricerca fonderia.\n\nLa colonna C è un elenco dei nomi delle fonderie standard ufficiali, in caratteri ASCII. La maggioranza delle fonderie avrà lo stesso nome su entrambe le colonne, tuttavia se il nome comune varia rispetto al nome standard, la variazione è annotata nella colonna B. ","Aşağıdaki liste, RMI'nın şablonun yayın tarihi itibariyle en güncel izabe tesisi adı/rumuz bilgilerini içermektedir.  Bu liste sık sık güncellenmektedir ve listenin en güncel sürümü http://www.responsiblemineralsinitiative.org/responsible-minerals-assurance-process/exports/cmrt-export/ adresindeki RMI web sitesinden bulunabilir.  Bir izabe tesisinin bu listede yer alması, mevcut durumda Aktif olduğu ya da İhtilafsız İzabe Tesisi Programına Uyumlu olduğu anlamına GELMEZ.\n\nAktif veya Uyumlu standart izabe tesisi adlarının en güncel ve en doğru listesi için lütfen RMI web sitesine başvurun: www.responsiblemineralsinitiative.org \n\nB sütununda bulunan adlar, belirli bir izabe tesisi için tedarik zinciri tarafından sıklıkla tanınan ve bildirilen şirket adlarının listesini içerir. Bu adlar, eski şirket adları, alternatif adlar, kısaltmalar veya diğer değişik biçimleri kapsayabilir. Her ne kadar adlar RMI Standart İzabe Tesisi adı aynı olmasa da, İzabe Tesisi Arama Listesinde verilen adlar izabe tesisinin tanımlanması için faydalı olacaktır.\n\nC sütunu, ASCII karakter kümesinde resmi standart izabe tesisi adlarının listesini içerir. İzabe tesislerinin büyük bir çoğunluğunda her iki sütunda da aynı değer görülecektir ancak genel adın standart addan farklı olduğu durumlar B sütununda belirtilmektedir."]
["Smelter Look-upA4","Smelter Look-up","A4","Metal","金属","金属","금속","Métal","Metal","Metall","Metal","Metallo","Metal"]
["Smelter Look-upB4","Smelter Look-up","B4","Smelter Look-up (*)","冶炼厂查找 (*)","Smelter Look-Up（製錬所検索）（*）","제련소 찾기(*)","Recherche de fonderie (*)","Lista de Referência de Fundições (*)","Schmelzofensuche (*)","Búsqueda de fundidora (*)","Ricerca fonderia (*)","İzabe Tesisi Arama (*)"]
["Smelter Look-up","Smelter Look-up",null,"Known alias","已知别名","既知の別名","알려진 별칭","Alias connus","Pseudônimos conhecidos","Bekannt als","Alias conocidos","alias noti/conosciuti","Bilinen rumuz"]
["Smelter Look-upC4","Smelter Look-up","C4","Standard Smelter Names","标准冶炼厂名称","標準的製錬業者名","제련소 표준이름들 ","Noms standard des fonderies","Nomes estandardizados de Fundições","Standard Schmelzhütten Namen","Nombres estándar del fundidor","Nomi delle fonderie comuni","Standart İzabe Tesisi Adları"]
["Smelter Look-upD4","Smelter Look-up","D4","Smelter Facility Location: Country","冶炼厂地址：国家或地区","製錬施設所在地：国","제련소 위치: 국가 ","Localisation de la fonderie : pays ","Localização da Unidade de Fundição: País","Schmelzhütte: Land","Localización de la fabrica de fundición: País ","Localizzazione della Fonderia: Paese","İzabe Tesisi Konumu: Ülke"]
["Smelter Look-upE4","Smelter Look-up","E4","Smelter ID","冶炼厂 ID","製錬所ID","제련소 ID","Identifiant fonderie","ID da Fundição","Schmelzofen-ID","Identificador de fundidora","ID fonderia","İzabe Tesisi Kimliği"]
["Smelter Look-upF4","Smelter Look-up","F4","Source of Smelter Identification Number","冶炼厂出处识别号","製錬業者識別番号の発行元","제련소 ID 번호 소스자료","Type de l'identifiant de la fonderie","Número de Identificação da Fundição","Quelle der Schmelzhütte Id-Nummer","Numero de identificación de la fuente del fundidor","Origine del codice identificativo della fonderia","İzabe Tesisi Tanımlama Numarası Kaynağı"]
["Smelter Look-upG4","Smelter Look-up","G4","Smelter Street ","冶炼厂所在街道","製錬業者所在地：番地","제련소 주소","Localisation de la fonderie : Rue et Numéro","Rua da Fundição","Schmelzhütten: Straße","Calle del fundidor (*)","Indirizzo Fonderia (*)","İzabe Tesisinin Bulunduğu Cadde "]
["Smelter Look-upH4","Smelter Look-up","H4","Smelter City","冶炼厂所在城市","製錬業者所在地：市","제련소 시","Localisation de la fonderie : Ville","Cidade da Fundição","Schmelzhütten: Stadt","Ciudad del fundidor(*)","Città Fonderia (*)","İzabe Tesisinin Bulunduğu Şehir"]
["Smelter Look-upI4","Smelter Look-up","I4","Smelter Facility Location: State / Province","冶炼厂地址：州/省","製錬施設所在地：州／県","제련소 위치: 도/주","Localisation de la fonderie : Etat / Province","Localização da Unidade de Fundição: Estado/ Província","Schmelzhütten: Bundesland/Provinz","Localización de la fabrica de fundición: Estado/Provincia","Localizzazione della Fonderia: Stato / Provincia","İzabe Tesisi Konumu: Eyalet/İl"]
["Smelter ListA4","Smelter List","A4","Smelter Identification Number Input Column","冶炼厂识别号码输入列","製錬業者識別番号の入力列","제련소 ID 번호 입력 열","Colonne de saisie du numéro d’identification de la fonderie","Coluna de entrada do número de identificação da fundição","Eingabespalte Schmelzofenidentifizierungsnummer ","Columna para ingresar el número de identificación del fundidor","Colonna di immissione numero di identificazione fonderia","İzabe Tesisi Tanımlama Numarası Giriş Sütunu"]
["Smelter ListB4","Smelter List","B4","Metal (*)","金属 (*)","金属 (*)","금속 (*)","Métal (*)","Metal (*)","Metall (1)","Metal (*)","Metalli (*)","Metal  (*)"]
["Smelter ListC4","Smelter List","C4","Smelter Look-up (*)","冶炼厂查找 (*)","Smelter Look-Up（製錬所検索）（*）","제련소 찾기(*)","Recherche de fonderie (*)","Lista de Referência de Fundições (*)","Schmelzofensuche (*)","Búsqueda de fundidora (*)","Ricerca fonderia (*)","İzabe Tesisi Arama (*)"]
["Smelter ListD4","Smelter List","D4","Smelter Name (1)","冶炼厂名称 (1)","\n製錬所名(1)\n","제련소 이름 (1)","Nom de la fonderie (1)","Nome de Fundição (1)","Schmelzofenname (1)","Nombre de la fundidora (1)","Nome della fonderia (1)","İzabe Tesisi Adı (1)"]
["Smelter ListE4","Smelter List","E4","Smelter Country (*)","冶炼厂所在国家或地区 (*)","製錬業者所在地：国(*)","제련소 국가 (*)","Localisation de la fonderie : Pays (*)","País da Fundição (*)","Schmelzhütten: Land (*)","País del fundidor (*)","Paese Fonderia (*)","İzabe Tesisinin Bulunduğu Ülke (*)"]
["Smelter ListH4","Smelter List","H4","Smelter Street ","冶炼厂所在街道","製錬業者所在地：番地","제련소 주소","Localisation de la fonderie : Rue et Numéro","Rua da Fundição","Schmelzhütten: Straße","Calle del fundidor (*)","Indirizzo Fonderia (*)","İzabe Tesisinin Bulunduğu Cadde "]
["Smelter ListI4","Smelter List","I4","Smelter City","冶炼厂所在城市","製錬業者所在地：市","제련소 시","Localisation de la fonderie : Ville","Cidade da Fundição","Schmelzhütten: Stadt","Ciudad del fundidor(*)","Città Fonderia (*)","İzabe Tesisinin Bulunduğu Şehir"]
["Smelter ListJ4","Smelter List","J4","Smelter Facility Location: State / Province","冶炼厂地址：州/省","製錬施設所在地：州／県","제련소 위치: 도/주","Localisation de la fonderie : Etat / Province","Localização da Unidade de Fundição: Estado/ Província","Schmelzhütten: Bundesland/Provinz","Localización de la fabrica de fundición: Estado/Provincia","Localizzazione della Fonderia: Stato / Provincia","İzabe Tesisi Konumu: Eyalet/İl"]
["Smelter ListK4","Smelter List","K4","Smelter Contact Name","冶炼厂联系人","製錬業者連絡先担当者名","제련소 연락처 이름","Nom du contact de la fonderie","Nome de Contacto na fundição","Schmelzhütten-Ansprechpartner: Name ","Nombre del contacto en la fabrica del fundidor","Nome del riferimento della fonderia (*)","İzabe Tesisi İrtibat Kişisinin Adı"]
["Smelter ListL4","Smelter List","L4","Smelter Contact Email","冶炼厂联系人电子邮件","製錬業者連絡先電子メール","제련소 연락처 이메일","Email du contact de la fonderie","Email de Contacto na fundição","Schmelzhütten-Ansprechpartner: E-mail","Email de contacto en la fabrica del fundidor","Email del riferimento della fonderia (*)","İzabe Tesisi İrtibat Kişisinin E-posta Adresi"]
["Smelter ListM4","Smelter List","M4","Proposed next steps","建议的后续步骤","今後の対策案","다음 단계 제안","Prochaines étapes proposées, si applicable","Próximos passos propostos","Vorgeschlagenen nächsten Schritte","Siguientes pasos propuestos","Prossimi passi proposti","Sonrası için önerilen adımlar"]
["Smelter ListN4","Smelter List","N4","Name of Mine(s) or if recycled or scrap sourced, enter \"recycled\" or \"scrap\"","填写矿井名称，或如果所用矿产来自于回收料和报废料，请填写“回收”或“报废”。","鉱山名を記入。再生利用品又はスクラップを調達した場合は「再生利用品」 又は「スクラップ」と記入","광산 이름.  혹 재활용 또는 스크랩된 광물일 경우 \"재활용\" 또는 \"스크랩\" 이라고 명시하시오.","Nom des Mine(s), ou si provenant de produits recyclés, rebuts de production ou déchets de consommation, saisir \"recycled\" ou \"scrap\"","Nome da(s) Mina(s) ou caso seja de fonte de material reciclado ou desperdício, inserir \"reciclado\" ou \"desperdício\"","Name der Mine(n) oder falls aus Recycling oder Schrott, tragen Sie \"recycled\" oder \"Schrott\" ein","Nombre de la mina(s) o si es reciclado o proviene de desecho, mencione \" reciclado\" o \"desecho\"","Nome della miniera(e) o se riciclato o provenienti da scorie, dichiarare/scrivere riciclato o scorie","Maden(ler)in Adları veya geri dönüşüm ya da hurda kaynaklı ise “geri dönüştürülmüş” ya da “hurda” girdisi"]
["Smelter ListO4","Smelter List","O4","Location (Country) of Mine(s) or if recycled or scrap sourced, enter \"recycled\" or \"scrap\"","填写矿井所在国家或地区，或如果所用矿产来自于回收料和报废料，请填写“回收”或“报废”。","鉱山の所在地（国）を記入。再生利用品又はスクラップを調達した場合は「再生利用品」 又は「スクラップ」と記入","광산 위치(국가). 혹 재활용 또는 스크랩된 광물일 경우 \"재활용\" 또는 \"스크랩\" 이라고 명시하시오.","Localisation (Pays) des Mine(s) ou si provenant de produits recyclés, rebuts de production ou déchets de consommations, saisir \"recycled\" ou \"scrap\"","Localização (País) da(s) mina(s), ou caso seja de fonte de material reciclado ou desperdício, inserir \"reciclado\" ou \"desperdício\"","Standort (Land) von Minen, falls aus Recycling oder Schrott gekauft, geben Sie \"recycled\" oder \"Schrott\" ein","Localización (país) de la mina(s) o si es reciclado o proviene de desecho, mencione \"reciclado\" o \"desecho\"","Localizzazione (Paese) della miniera (e) o se riciclato o preveniente da scorie, dichiarare/scrivere riciclato o scorie","Maden(ler)in Konumu (Ülke) veya geri dönüşüm ya da hurda kaynaklı ise “geri dönüştürülmüş” ya da “hurda” girdisi"]
["Smelter ListP4","Smelter List","P4","Does 100% of the smelter’s feedstock originate from recycled or scrap sources?","冶炼厂的被冶炼物料是否 100% 来自于回收料或报废料？","製錬業者の材料はすべて再生利用品又はスクラップ起源から調達されていますか？","제련소의 원료는 재활용 또는 스크랩 소스가 100% 입니까?","\n100% des produits utilisés par la fonderie proviennent-ils de produits recyclés, rebuts de production ou déchets de consommation?","Tem 100% da matéria prima origem em fontes de reciclagem ou desperdício?","Stammen 100% der Ausgangsstoffe der Schmelzhütte aus Recycling oder Schrott?","El 100 % de la materia prima del fundidor proviene de alguna fuente de reciclado o deshecho?","Il 100% delle materie prime della fonderia provengono da riciclato o da scorie?","İzabe tesisinin hammaddeleri %100 oranda geri dönüşüm veya hurda kaynaklarından mı geliyor?"]
["Smelter ListQ4","Smelter List","Q4","Comments","注释","備考","추가 내용","Commentaires","Comentários","Kommentare","Comentarios","Commenti","Açıklamalar"]
["Smelter ListJ2","Smelter List","J2","Link to \"RMAP Conformant Smelter List\"","链接到“RMAP 合规冶炼厂列表”","「RMAP適合製錬業者リスト」へのリンク","책임 있는 광물 보증 프로세스 준수 제련소 리스트 링크","Lien vers la liste des fonderies conformes au  programme RMAP (\"RMAP Compliant Smelter List\")","Link para a \"Lista de Fundições cumpridoras do CFS\"","Link zur \"RMAP Compliant Smelter\"- Liste","Liga a \" lista de fundidores que cumplen con RMAP\"","Riferimento a \"CFS Compliant Smelter List\"","\"RMAP Uyumlu İzabe Tesisi Listesi\" bağlantısı"]
["Smelter ListB2","Smelter List","B2","TO BEGIN:","首先：","開始するには\n","시작하려면:\n","POUR COMMENCER :","PARA INICIAR:","UM ZU BEGINNEN:","PARA COMENZAR:","PER INIZIARE:\n\n","BAŞLAMAK İÇİN:\n"]
[{"$f":"B225&C225","v":"Smelter ListB3"},"Smelter List","B3","\nOption A: If you know the Smelter Identification Number, input the number in Column A (columns B, C, E, F, G, I and J will auto-populate); D will grey out.\n\nOption B:  If you have a Metal and Smelter Look-up name combination, complete the following steps:\nStep 1. Select Metal in column B\nStep 2. Select from dropdown in column C (wrong combination will trigger RED color)\n\nOption C: If you have a Metal and Smelter Name combination, complete the following steps:\nStep 1. Select Metal in column B\nStep 2: Select \"Smelter Not Listed\" in the Smelter Look-up drop down and complete columns D & E\nStep 3. Enter all available smelter information in columns H through Q\n\n(*) Mandatory fields are noted with an asterisk.\n(1) Entry required when Smelter Look-up = \"Smelter not listed\"\n\nNOTE: A combination of Options A, B and C may be used to complete the Smelter List.  Do not alter autopopulated cells.  All errors in the Smelter Look-up should be reported to RMI by contacting RMI@responsiblebusiness.org.","\n选项 A：如果您知道冶炼厂识别号码，请在 A 列输入号码（B、C、E、F、G、I 和 J 列将自动填入）。D 列将变为灰色。\n\n选项 B：如果您有金属和冶炼厂查找名称组合，请完成以下步骤：\n步骤 1. 选择 B 列中的金属\n步骤 2. 从 C 列的下拉菜单中选择（错误组合将触发红色）\n\n选项 C：如果您有金属和冶炼厂名称组合，请完成以下步骤：\n步骤 1. 选择 B 列中的金属\n步骤 2：在冶炼厂查找下拉菜单中，选择“冶炼厂未列出”，然后填写 D 和 E 列\n步骤 3. 在 H 至 Q 列中，输入所有现有的冶炼厂信息\n\n(*) 必填字段以星号表示。\n(1) 如果冶炼厂查找 =“冶炼厂未列出”，需要输入\n\n注：选项 A、B 和 C 的组合可用于填写冶炼厂列表选项卡。切勿更改自动填写的单元格。请联系 RMI@responsiblebusiness.org，向 RMI 报告冶炼厂查找选项卡中的所有错误。","\nオプションA：製錬業者識別番号が分かる場合は、その番号をA列に入力してください（B列、C列、E列、F列、G列、I列およびJ列は自動入力されます）。D列はグレー表示されます。\n\nオプションB：金属と製錬業者検索名の組み合わせが分かる場合は、以下のステップを行ってください。\nステップ1. B列で金属を選択\nステップ2. C列のドロップダウンメニューで製錬業者名を選択（組み合わせが間違っている場合は赤色で表示）\n\nオプションC：金属と製錬業者名の組み合わせが分かる場合は、以下のステップを行ってください。\nステップ1. B列で金属を選択\nステップ2. Smelter Look-Up（製錬所検索）ドロップダウンで［Smelter Not Listed（製錬業者が表に含まれていない）］を選択し、D列とE列を記入します　\nステップ3. 入手可能なすべての製錬業者情報をH列～Q列に記入します\n\n必須項目は（*）で表示。\n（1）Smelter Look-up（製錬所検索）が 「Smelter Not Listed（製錬業者が表に含まれていない）」である場合に必要とされる入力情報\n\n注：オプションA、B、Cの組み合わせを使用して、「Smelter List（製錬業者リスト）」を入力することができます。自動入力されたセルは変更しないでください。製錬業者検索タブのエラーはすべて、RMI@responsiblebusiness.orgを使用してRMIに報告してください。","\n옵션 A: 제련소 ID 번호를 아는 경우, A열에 번호를 입력하십시오(B, C, E, F, G, I 및 J열은 자동으로 입력됨). D열은 회색으로 비활성화됩니다. \n\n옵션 B:  금속 및 제련소 찾기 이름 조합이 있는 경우, 다음 단계를 수행합니다. \n단계 1. B열에서 금속을 선택합니다. \n단계 2. C열의 드롭다운 메뉴에서 선택합니다(조합이 바르지 않을 경우 적색이 나타남). \n\n옵션 C: 금속 및 제련소 이름 조합이 있는 경우, 다음 단계를 수행합니다. \n단계 1. B열에서 금속을 선택합니다. \n단계 2: 제련소 찾기 드롭다운에서 \"제련소명 없음(Smelter Not Listed)\"을 선택하고 D 및 E열을 작성합니다\n단계 3. H ~ Q열에 사용 가능한 모든 제련소 정보를 입력합니다. \n\n필수 기재란은 별표(*)로 표시됩니다. \n(1) 제련소 찾기 = \"제련소명 없음(Smelter Not Listed)\"인 경우에는 직접 입력해야 합니다\n\n참고: 옵션 A, B 및 C의 조합은 제련소 목록(Smelter List)을 작성하는 데 사용할 수도 있습니다. 자동으로 입력된 셀을 변경하지 마십시오. 제련소 찾기(Smelter Look-up) 탭의 모든 오류는 RMI(RMI@responsiblebusiness.org)에 보고해야 합니다. ","\nOption A : Si vous connaissez le numéro d’identification de la fonderie, saisissez-le dans la colonne A (les colonnes B, C, E, F, G, I et J seront remplies automatiquement) ; la colonne D sera grisée.\n\nOption B : Si vous connaissez une combinaison de noms métal/fonderie figurant dans la Recherche de fonderie, effectuez les étapes suivantes :\nÉtape 1. Sélectionnez le métal dans la colonne B \nÉtape 2. Sélectionnez dans la liste déroulante de la colonne C (une mauvaise combinaison déclenche la couleur ROUGE)\n\nOption C : Si vous connaissez une combinaison métal/fonderie, effectuez les étapes suivantes :\nÉtape 1. Sélectionnez le métal dans la colonne B \nÉtape 2 : Sélectionnez « La fonderie ne figure pas dans la liste » dans la liste déroulante Recherche de fonderie, puis renseignez les colonnes D et E\nÉtape 3. Saisissez toutes les informations disponibles sur la fonderie dans les colonnes H à Q\n\n(*) Les champs obligatoires sont indiqués par un astérisque.\n(1) Entrée obligatoire lorsque Recherche de fonderie = « La fonderie ne figure pas dans la liste »\n\nREMARQUE : Une combinaison des options A, B et C peut être utilisée pour remplir l’onglet Liste des fonderies. Ne modifiez pas les cellules remplies automatiquement. Toutes les erreurs figurant dans l'onglet Recherche de fonderie doivent être signalées à la RMI en contactant info@conflictfreesmelter.org.","\nOpção A: Se souber o número de identificação de fundição, coloque-o na coluna A (as colunas B, C, E, F, G, I e J são de preenchimento automático); D estará bloqueada.\n\nOpção B:  Se tiver uma combinação de nomes da Lista de Referência de Fundições e Metal, execute as seguintes etapas:\nEtapa 1. Selecione Metal na coluna B\nEtapa 2. Selecione da lista suspensa na coluna C (a combinação errada acionará a cor VERMELHA)\n\nOpção C: Se tiver uma combinação de nomes de fundições e metal, conclua as seguintes etapas:\nEtapa 1. Selecione Metal na coluna B\nEtapa 2: Selecione “Fundição não faz parte da lista” no menu suspenso Lista de Referência de Fundições e complete as colunas D e E\nEtapa 3. Digite todas as informações disponíveis da fundição nas colunas H até Q\n\n(*) Os campos obrigatórios estão marcados com um asterisco.\n(1) Entrada requerida quando a Lista de Referência de Fundições = “Fundição não faz parte da lista”\n\nOBSERVAÇÃO: É possível usar uma combinação das Opções A, B e C para preencher a guia Lista de fundições.  Não altere as células de preenchimento automático.  Todos os erros na Lista de Referência de Fundições devem ser relatados à CFSI pelo e-mail info@conflictfreesmelter.org.","\nOption A: Wenn Sie die Schmelzofenidentifizierungsnummer kennen, geben Sie die Nummer in Spalte A ein (Spalten B, C, E, F, G, I und J füllen sich automatisch aus); D graut aus.\n\nOption B:  Falls Sie eine Metall- und Schmelzofen-Suchnamenkombination haben, führen Sie die folgenden Schritte aus:\nSchritt 1. Wählen Sie das Metall in Spalte Baus.\nSchritt 2. Wählen Sie aus dem Dropdown-Menü in Spalte C (die falsche Kombination löst die Farbe ROT aus)\n\nOption C: Falls Sie eine Metall- und Schmelzofen-Namenkombination haben, führen Sie die folgenden Schritte aus:\nSchritt 1. Wählen Sie das Metall in Spalte Baus.\nSchritt 2: Wählen Sie „Schmelzofen nicht aufgeführt“ aus dem Drop-down-Menü der Schmelzofensuche aus und vervollständigen Sie die Spalten D und E\nSchritt 3. Geben Sie alle verfügbaren Schmelzofeninformationen in die Spalten H bis Q ein\n\n(*) Pflichtfelder sind mit einem Sternchen gekennzeichnet.\n(1) Eingabe erforderlich falls Schmelzofensuche = „Schmelzofen nicht aufgeführt“\n\nHINWEIS: Eine Kombination der Optionen A, B und C kann zur Vervollständigung der Schmelzofenliste verwendet werden.  Ändern Sie keine automatisch ausgefüllten Felder.  Alle Fehler in der Schmelzofensuche sollten über RMI@responsiblebusiness.org an RMI gemeldet werden.","\nOpción A: Si conoce el número de identificación de la fundidora, ingréselo en la columna A (las columnas B, C, E, F, G, I y J se llenarán automáticamente); la columna D cambiará a color gris.\n\nOpción B:  Si tiene un nombre combinado de metales y fundidoras, siga los pasos a continuación:\nPaso 1. Seleccione Metal en la columna B.\nPaso 2. Seleccione una opción de la lista desplegable de la columna C (una combinación errónea activará el color ROJO).\n\nOpción C: Si tiene un nombre combinado de metales y fundidoras, siga los pasos a continuación:\nPaso 1. Seleccione Metal en la columna B.\nPaso 2: Seleccione \"Fundidora no está en la lista\" en el menú desplegable y llene las columnas D y E\nPaso 3. Ingrese toda la información disponible sobre la fundidora en las columnas H a Q\n\nLos campos obligatorios están marcados con un asterisco (*).\n(1) Campo requerido para la búsqueda de fundidoras = \"Fundidora no está en la lista\"\n\nNOTA: Se puede usar una combinación de las Opciones A, B y C para completar la pestaña Lista de fundidoras.  No haga cambios en las celdas que se llenan automáticamente.  Todos los errores en la pestaña de búsqueda de fundidoras deberán reportarse a RMI enviando un correo electrónico a RMI@responsiblebusiness.org.","Opzione A: Se si dispone del numero di identificazione della fonderia, immetterlo nella colonna A (le colonne B, C, E, F, G, I e J verranno popolate automaticamente); la colonna D sarà disabilitata. \n\nOpzione B: Se si dispone della combinazione di nomi per la ricerca del metallo e della fonderia, procedere come indicato di seguito: Fase 1. Selezionare il metallo nella colonna B Fase 2. Selezionare dal menu a tendina nella colonna C (una combinazione errata verrà visualizzata con il colore ROSSO) \n\nOpzione C: Se si dispone della combinazione di nomi per la ricerca del metallo e della fonderia, procedere come indicato di seguito: Fase 1. Selezionare il metallo nella colonna B Fase 2. Selezionare \"Fonderia non elencata\" nel menu a tendina della Ricerca fonderia e completare le colonne D & E Fase 3. Inserire tutti i dati disponibili sulla fonderia nelle colonne da H a Q \n\n(*) I campi obbligatori sono contrassegnati con un asterisco. \n(1) Voce richiesta se la Ricerca fonderia = \"Fonderia non elencata\" \n\nNOTA: Per completare la scheda della lista delle fonderie è possibile utilizzare una combinazione delle Opzioni A e B. Non modificare le celle popolate automaticamente. Tutti gli errori presenti nella scheda Ricerca fonderia devono essere segnalati alla RMI tramite l’indirizzo e-mail RMI@responsiblebusiness.org. \n","\nA Seçeneği: İzabe Tesisi Tanımlama Numarasını biliyorsanız, numarayı A sütununa (B, C, E, F, G, I ve J sütunları otomatik olarak doldurulur) girin; D sütunu açık gri olur.\n\nB Seçeneği:  Metal ve İzabe Tesisi Arama Listesi ad kombinasyonuna sahipseniz, aşağıdaki adımları tamamlayın:\n1. Adım: B sütununda Metal ögesini seçin\n2. Adım: C sütunundaki açılır menüden seçim yapın (yanlış kombinasyonlar KIRMIZI renkle gösterilecektir)\n\nC Seçeneği: Metal ve İzabe Tesisi Adı kombinasyonuna sahipseniz, aşağıdaki adımları tamamlayın:\n1. Adım: B sütununda Metal ögesini seçin\n2. Adım: İzabe Tesisi Arama açılır menüsünden \"İzabe Tesisi Listelenmemiş\"i seçin ve D ve E sütunlarını doldurun\n3. Adım: Elinizdeki tüm izabe tesisi bilgilerini H ila Q sütunlarına girin\n\nDoldurulması zorunlu alanlar yıldız imi (*) ile gösterilmiştir.\n(1) İzabe Tesisi Arama = \"İzabe Tesisi Listelenmemiş\" olduğunda giriş gerekir\n\nNOT: İzabe Tesisi Listesi sekmesini doldurmak için, A, B ve C seçeneklerinin bir kombinasyonu kullanılabilir.  Otomatik doldurulan hücreleri değiştirmeyin.  İzabe Tesisi Arama sekmesinde görülen tüm hatalar info@conflictfreesmelter.org adresi yoluyla iletişim kurularak CFSI'ya bildirilmelidir."]
["Smelter ListF4","Smelter List","F4","Smelter Identification","冶炼厂识别","製錬業者識別番号","제련소 ID","Identifiant de la fonderie","Identificação da Fundição","Schmelzhütte Identifizierung","Identificación del fundidor","Identificazione della fonderia","İzabe Tesisi Tanımlaması"]
["Smelter ListG4","Smelter List","G4","Source of Smelter Identification Number","冶炼厂出处识别号","製錬業者識別番号の発行元","제련소 ID 번호 소스자료","Type de l'identifiant de la fonderie","Número de Identificação da Fundição","Quelle der Schmelzhütte Id-Nummer","Numero de identificación de la fuente del fundidor","Origine del codice identificativo della fonderia","İzabe Tesisi Tanımlama Numarası Kaynağı"]
["Smelter ListAH5","Smelter List","AH5","Yes","是","はい","예","Oui","Sim","Ja","Si","sì","Evet"]
["Smelter ListAH6","Smelter List","AH6","No","否","いいえ","아니오","No","Não","Nein","No","no","Hayır"]
["Smelter ListAH7","Smelter List","AH7","Unknown","未知","不明","파악되지 않음","Inconnu","Desconhecido","Nicht bekannt","Desconocido","Ignoto","Bilinmiyor"]
["CheckerA1","Checker","A1","To ensure all required fields have been populated before submitting to your customers review form for any line items highlighted in red","将报告提交给客户以检查表格高亮显示为红色的任何行之前， 请确保已填妥所有必填字段。","顧客に書式を提出する前に、赤で表示されている必須項目について、すべて記入されているかを確認ください。","제출 전, 필수 항목이 모두 작성되었는 지 확인하기 위해, 붉게 표시된 부분을 검토하여 주십시오.","Afin de s'assurer que tous les champs obligatoires ont été complétés avant de soumettre le document à vos clients, merci de vérifier tous les champs surlignés en rouge","Para garantir que todos os campos obrigatórios foram replicados antes de submeter o relatório aos clientes, rever todas as linhas  que aparecem a vermelho.","Um sicherzustellen, dass alle erforderlichen Felder vor dem Versand an ihren Kunden ausgefüllt sind, alle rot markierten Felder beachten.","Para asegurase que todos los campos requeridos han sido llenados antes de enviarlos al cliente revise la forma si contiene cualquier cosa marcada en rojo","Al fine di assicurarsi che tutti campi siano stati compilati, prima di inviare il questionario al cliente, verificare tutti i campi evidenziati in rosso","Müşterilerinize göndermeden önce tüm zorunlu alanların doldurulduğundan emin olun. Kırmızı renkle vurgulanmış olan satır öğelerinin bulunup bulunmadığını inceleyin."]
["CheckerD1","Checker","D1","Required fields remaining to be completed","待完成的必填字段","未記入の必須項目があります","미기입 된 필수 항목","Champs obligatoires non complétés","Campos obrigatórios por completar","Erforderliche Felder bitte vervollständigen.","Los restantes campos requeridos debe ser completados","Campi obbligatori ancora da completare","Doldurulması gereken zorunlu alanlar"]
["CheckerA3","Checker","A3","Required Fields","必填字段","必須項目","필수 항목","Champs obligatoires","Campos Obrigatórios","Erforderliche Felder","Campos requeridos","Campi obbligatori","Zorunlu Alanlar"]
["CheckerB3","Checker","B3","Answer provided","已提供的答案","回答","기입된 답변","Réponse fournie","Resposta fornecida","Antwort ist vorhanden","Respuestas requeridos","Risposta fornita","Yanıt verildi"]
["CheckerC3","Checker","C3","Notes","备注","注","노트","Remarques","Notas","Notizen","Notas","Note","Notlar"]
["CheckerD3","Checker","D3","Hyperlink to source","信息源超链接","該当箇所へのリンク","소스자료와 연결 ","Lien au document d'origine","Link para a fonte","Hyperlink zum Ursprung","Origen de Hipervínculo","Collegamento ipertestuale alla fonte","Kaynağa giden köprü bağlantı"]
["CheckerB62","Checker","B62","No smelter names provided on Smelter List tab","在“冶炼厂目录”选项卡中，未提供冶炼厂名称","「精錬業者が表に含まれていない」タブ","제련소 목록(Smelter List) 탭에 제련소 명칭이 없습니다. ","Aucun nom de fonderie indiqué sur l'onglet Liste de fonderies","Nenhum nome de fundição fornecido na guia Lista de fundições","Keine Schmelzofennamen auf dem Reiter „Schmelzofenliste“ bereitgestellt","No hay nombres de fundidores en la pestaña Smelter List (Lista de fundidores)","Non ci sono nomi di fonderie forniti nella scheda della Lista delle Fonderie","İzabe Listesi sekmesinde herhangi bir izabe listesi adı verilmedi"]
["CheckerB63","Checker","B63","No smelter names provided on Smelter List tab","在“冶炼厂目录”选项卡中，未提供冶炼厂名称","「精錬業者が表に含まれていない」タブ","제련소 목록(Smelter List) 탭에 제련소 명칭이 없습니다. ","Aucun nom de fonderie indiqué sur l'onglet Liste de fonderies","Nenhum nome de fundição fornecido na guia Lista de fundições","Keine Schmelzofennamen auf dem Reiter „Schmelzofenliste“ bereitgestellt","No hay nombres de fundidores en la pestaña Smelter List (Lista de fundidores)","Non ci sono nomi di fonderie forniti nella scheda della Lista delle Fonderie","İzabe Listesi sekmesinde herhangi bir izabe listesi adı verilmedi"]
["CheckerB64","Checker","B64","No smelter names provided on Smelter List tab","在“冶炼厂目录”选项卡中，未提供冶炼厂名称","「精錬業者が表に含まれていない」タブ","제련소 목록(Smelter List) 탭에 제련소 명칭이 없습니다. ","Aucun nom de fonderie indiqué sur l'onglet Liste de fonderies","Nenhum nome de fundição fornecido na guia Lista de fundições","Keine Schmelzofennamen auf dem Reiter „Schmelzofenliste“ bereitgestellt","No hay nombres de fundidores en la pestaña Smelter List (Lista de fundidores)","Non ci sono nomi di fonderie forniti nella scheda della Lista delle Fonderie","İzabe Listesi sekmesinde herhangi bir izabe listesi adı verilmedi"]
["CheckerB65","Checker","B65","No smelter names provided on Smelter List tab","在“冶炼厂目录”选项卡中，未提供冶炼厂名称","「精錬業者が表に含まれていない」タブ","제련소 목록(Smelter List) 탭에 제련소 명칭이 없습니다. ","Aucun nom de fonderie indiqué sur l'onglet Liste de fonderies","Nenhum nome de fundição fornecido na guia Lista de fundições","Keine Schmelzofennamen auf dem Reiter „Schmelzofenliste“ bereitgestellt","No hay nombres de fundidores en la pestaña Smelter List (Lista de fundidores)","Non ci sono nomi di fonderie forniti nella scheda della Lista delle Fonderie","İzabe Listesi sekmesinde herhangi bir izabe listesi adı verilmedi"]
["CheckerCOMP","Checker","COMP","Complete","填写","記入","완료","Complétez","Concluído","Vollständig","Complete","Completare","Doldurun"]
["CheckerJ4","Checker","J4","Provide your company name on the Declaration tab cell D8","在“申报”选项卡 D8 单元格中，提供贵公司的名称","「申告」タブのD8セルに御社名を記入してください","신고(Declaration) 탭의 D8 셀에 회사 명칭을 제공하십시오. ","Indiquez le nom de votre entreprise dans la cellule D8 de l'onglet Déclaration ","Forneça o nome de sua empresa na célula D8 da guia Declaração","Geben Sie den Namen Ihres Unternehmens in der Reiterzelle D8 der Erklärung an","Proporcione el nombre de su compañía en la pestaña Declaration (Declaración), celda D8","Fornire il nome della propria società nella cella D8 della scheda della Dichiarazione","Şirketinizin adını Beyan sekmesi hücre D8'de belirtin."]
["CheckerJ5","Checker","J5","Select the scope of declaration on the Declaration tab cell D9","在“申报”选项卡 D9 单元格中，选择申报范围","「申告」タブのD9セルで申告範囲を選択してください","신고(Declaration) 탭의 D9 셀에서 신고 범위를 선택하십시오. ","Sélectionnez le champ d'application de la déclaration dans la cellule D9 de l'onglet Déclaration ","Selecione o âmbito da declaração na célula D9 da guia Declaração","Wählen Sie den Umfang der Erklärung in der Reiterzelle D9 der Erklärung aus","Seleccione el enfoque de la declaración en la pestaña Declaration (Declaración), celda D9","Selezionare l'ambito della dichiarazione nella cella D9 della scheda della Dichiarazione","Beyan kapsamını Beyan sekmesi hücre D9'da belirtin."]
["CheckerJ6","Checker","J6","Provide description of scope on Declaration tab cell D10","在“申报”选项卡 D10 单元格中，提供范围说明","「申告」タブのD10セルに範囲内容を記入してください","신고(Declaration) 탭의 D10 셀에 범위 설명을 제공하십시오. ","Saisissez une description du champ d'application dans la cellule D10 de l'onglet Déclaration ","Forneça a descrição do âmbito na célula D10 da guia Declaração","Geben Sie eine Beschreibung des Umfangs in der Reiterzelle D10 der Erklärung an","Proporcione una descripción del enfoque en la pestaña Declaration (Declaración), celda D10","Fornire la descrizione dell'ambito nella cella D10 della scheda della Dichiarazione","Kapsam açıklamasını Beyan sekmesi hücre D10'da belirtin."]
["CheckerJ7","Checker","J7","Provide contact name in Declaration tab cell D15","在“申报”选项卡 D15 单元格中，提供联系人姓名","「申告」タブのD15セルに連絡先担当者名を記入してください","신고(Declaration) 탭의 D15 셀에 담당자 이름을 제공하십시오. ","Saisissez le nom de contact dans la cellule D15 de l'onglet Déclaration","Forneça o nome do contato na célula D15 da guia Declaração","Geben Sie einen Kontaktnamen in der Reiterzelle D15 der Erklärung an","Proporcione el nombre del contacto en la pestaña Declaration (Declaración), celda D15","Fornire il nome di contatto nella cella D15 della scheda della Dichiarazione","İrtibat kişisi adını Beyan sekmesi hücre D15'te belirtin."]
["CheckerJ8","Checker","J8","Provide a valid email for contact in Declaration tab cell D16","在“申报”选项卡 D16 单元格中，提供联系人的有效电子邮件","「申告」タブのD16セルに連絡先担当者の有効な電子メールを記入してください","신고(Declaration) 탭의 D16 셀에 올바른 담당자 이메일을 입력하십시오. ","Saisissez une adresse e-mail de contact valide dans la cellule D16 de l’onglet Déclaration","Forneça um e-mail válido para contato na célula D16 da guia Declaração","Geben Sie eine gültige Kontakt-E-Mail-Adresse in der Reiterzelle D16 der Erklärung an","Proporcione un correo electrónico válido del contacto en la pestaña Declaration (Declaración), celda D16","Fornire un’email di contatto valida nella cella D16 della scheda della Dichiarazione","İrtibat kişisi için geçerli bir e-posta adresini Beyan sekmesi hücre D16’da belirtin."]
["CheckerJ9","Checker","J9","Provide a phone number for contact in Declaration tab cell D17","在“申报”选项卡 D17 单元格中，提供联系人的电话号码","「申告」タブのD17セルに連絡先担当者の電話番号を記入してください","신고(Declaration) 탭의 D17 셀에 담당자 전화 번호를 제공하십시오. ","Saisissez un numéro de téléphone de contact dans la cellule D17 de l'onglet Déclaration","Forneça um número de telefone para contato na célula D17 da guia Declaração","Geben Sie eine Kontakttelefonnummer in der Reiterzelle D17 der Erklärung an","Proporcione el teléfono del contacto en la pestaña Declaration (Declaración), celda D17","Fornire un numero di telefono di contatto nella cella D17 della scheda della Dichiarazione","İrtibat kişisi telefon numarasını Beyan sekmesi hücre D17'de belirtin."]
["CheckerJ10","Checker","J10","Provide authorized company representative contact name in Declaration tab cell D18","在“申报”选项卡 D18 单元格中，提供授权公司代表联系人姓名","「申告」タブのD18セルに会社から正式に認められた代表者の連絡先担当者名を記入してください","신고(Declaration) 탭의 D18 셀에 회사 대표 정보책임 담당자 이름을 제공하십시오. ","Saisissez le nom de contact du représentant agréé de l'entreprise dans la cellule D18 de l'onglet Déclaration","Forneça o nome de contato do representante autorizado pela empresa na célula D18 da guia Declaração","Geben Sie den Kontaktnamen eines bevollmächtigten Unternehmensvertreters in der Reiterzelle D18 der Erklärung an","Proporcione el nombre de contacto del representante autorizado de la compañía en la pestaña Declaration (Declaración), celda D18","Fornire il nome di contatto del rappresentante della società autorizzata nella cella D18 della scheda della Dichiarazione","Beyan sekmesinde, hücre D18'e yetkili şirket temsilcisinin adını ekleyin."]
["CheckerJ11","Checker","J11","Provide an email for authorized company representative on Declaration tab cell D20","在“申报”选项卡 D20 单元格中，提供授权公司代表的有效电子邮件","「申告」タブのD20セルに会社から正式に認められた代表者の有効な電子メールを記入してください","신고(Declaration) 탭의 D20 셀에 인가된 회사 대표의 올바른 이메일을 입력하십시오. ","Saisissez une adresse e-mail valide du représentant agréé de la société dans la cellule D20 de l’onglet Déclaration","Forneça um e-mail válido do representante autorizado da empresa na célula D20 da guia Declaração\n","Geben Sie eine gültige E-Mail-Adresse eines bevollmächtigten Unternehmensvertreters in der Reiterzelle D20 der Erklärung an","Proporcione un correo electrónico válido del representante autorizado de la compañía en la pestaña Declaration (Declaración), celda D20","Fornire un’email valida del rappresentante della società autorizzata nella cella D20 della scheda della Dichiarazione","Beyan sekmesinde, hücre D20’e yetkili şirket temsilcisi için geçerli bir e-posta adresi ekleyin."]
["CheckerJ12","Checker","J12","Provide a phone number for authorized company representative on Declaration tab cell D21","在“申报”选项卡 D21 单元格中，提供授权公司代表的电话号码","「申告」タブのD21セルに会社から正式に認められた代表者の電話番号を記入してください","신고(Declaration) 탭의 D21 셀에 회사 대표 정보책임 담당자 전화 번호를 제공하십시오. ","Saisissez le numéro de téléphone du représentant agréé de l'entreprise dans la cellule D21 de l'onglet Déclaration","Forneça um número de telefone para o representante autorizado pela empresa na célula D21 da guia Declaração","Geben Sie eine Telefonnummer eines bevollmächtigten Unternehmensvertreters in der Reiterzelle D21 der Erklärung an","Proporcione un teléfono del representante autorizado de la compañía en la pestaña Declaration (Declaración), celda D21","Fornire un numero di telefono del rappresentante della società autorizzata nella cella D21 della scheda della Dichiarazione","Beyan sekmesinde, hücre D21'e yetkili şirket temsilcisi için bir telefon numarası ekleyin."]
["CheckerJ13","Checker","J13","Provide date the form was completed on Declaration tab cell D22","在“申报”选项卡 D22 单元格中，提供表格填写日期","「申告」タブのD22セルに書式への記入日を記入してください","신고(Declaration) 탭의 D22 셀에 양식이 작성된 날짜를 제공하십시오. ","Saisissez la date de remplissage du formulaire dans la cellule D22 de l'onglet Déclaration ","Forneça a data em que o formulário foi preenchido na célula D22 da guia Declaração","Geben Sie das Datum der Vervollständigung des Formulars in der Reiterzelle D22 der Erklärung an","Proporcione la fecha en la que se completó el formato en la pestaña Declaration (Declaración), celda D22","Fornire la data in cui il modulo è stato completato nella cella D22 della scheda della Dichiarazione","Beyan sekmesi hücre D22'ye formun doldurulduğu tarihi girin."]
["CheckerJ15","Checker","J15","Declare if Tantalum is intentionally added to your products on Declaration tab cell D26","在“申报”选项卡 D26 单元格中，申报是否有意将钽添加至贵公司的产品中","タンタルが御社製品に意図的に付加された場合は「申告」タブのD26セルに申告してください","신고(Declaration) 탭의 D26 셀에 탄탈륨이 의도적으로 귀사 제품에 추가되어 있는지 여부를 신고하십시오. ","Déclarez si du tantale est intentionnellement ajouté à vos produits dans la cellule D26 de l'onglet Déclaration ","Declare se o tântalo é intencionalmente adicionado aos seus produtos na célula D26 da guia Declaração","Erklären Sie in der Reiterzelle D26 der Erklärung, ob Tantalum Ihren Produkten absichtlich hinzugefügt wird","Declare si se agrega tantalio intencionalmente a sus productos en la pestaña Declaration (Declaración), celda D26","Dichiarare se il Tantalio è aggiunto intenzionalmente ai propri prodotti nella cella D26 della scheda della Dichiarazione","Tantalın ürünlerinize kasti olarak eklenip eklenmediğini Beyan sekmesi hücre D26'da belirtin."]
["CheckerJ16","Checker","J16","Declare if Tin is intentionally added to your products on Declaration tab cell D27","在“申报”选项卡 D27 单元格中，申报是否有意将锡添加至贵公司的产品中","錫が御社製品に意図的に付加された場合は「申告」タブのD27セルに申告してください","신고(Declaration) 탭의 D27 셀에 주석이 의도적으로 귀사 제품에 추가되어 있는지 여부를 신고하십시오. ","Déclarez si de l'étain est intentionnellement ajouté à vos produits dans la cellule D27 de l'onglet Déclaration","Declare se o estanho é intencionalmente adicionado aos seus produtos na célula D27 da guia Declaração","Erklären Sie in der Reiterzelle D27 der Erklärung, ob Zinn Ihren Produkten absichtlich hinzugefügt wird","Declare si se agrega estaño intencionalmente a sus productos en la pestaña Declaration (Declaración), celda D27","Dichiarare se lo Stagno è aggiunto intenzionalmente ai propri prodotti nella cella D27 della scheda della Dichiarazione","Kalayın ürünlerinize kasti olarak eklenip eklenmediğini Beyan sekmesi hücre D27'de belirtin."]
["CheckerJ17","Checker","J17","Declare if Gold is intentionally added to your products on Declaration tab cell D28","在“申报”选项卡 D28 单元格中，申报是否有意将金添加至贵公司的产品中","金が御社製品に意図的に付加された場合は「申告」タブのD28セルに申告してください","신고(Declaration) 탭의 D28 셀에 금이 의도적으로 귀사 제품에 추가되어 있는지 여부를 신고하십시오. ","Déclarez si de l'or est intentionnellement ajouté à vos produits dans la cellule D28 de l'onglet Déclaration ","Declare se o ouro é intencionalmente adicionado aos seus produtos na célula D28 da guia Declaração","Erklären Sie in der Reiterzelle D28 der Erklärung, ob Gold Ihren Produkten absichtlich hinzugefügt wird","Declare si se agrega oro intencionalmente a sus productos en la pestaña Declaration (Declaración), celda D28","Dichiarare se l'Oro è aggiunto intenzionalmente ai propri prodotti nella cella D28 della scheda della Dichiarazione","Altının ürünlerinize kasti olarak eklenip eklenmediğini Beyan sekmesi hücre D28'de belirtin."]
["CheckerJ18","Checker","J18","Declare if Tungsten is intentionally added to your products on Declaration tab cell D29","在“申报”选项卡 D29 单元格中，申报是否有意将钨添加至贵公司的产品中","タングステンが御社製品に意図的に付加された場合は「申告」タブのD29セルに申告してください","신고(Declaration) 탭의 D29 셀에 텅스텐이 의도적으로 귀사 제품에 추가되어 있는지 여부를 신고하십시오. ","Déclarez si du tungstène est intentionnellement ajouté à vos produits dans la cellule D29 de l'onglet Déclaration","Declare se o tungstênio é intencionalmente adicionado aos seus produtos na célula D29 da guia Declaração","Erklären Sie in der Reiterzelle D29 der Erklärung, ob Tungsten Ihren Produkten absichtlich hinzugefügt wird","Declare si se agrega tungsteno intencionalmente a sus productos en la pestaña Declaration (Declaración), celda D29","Dichiarare se il Tungsteno è aggiunto intenzionalmente ai propri prodotti nella cella D29 della scheda della Dichiarazione","Tungstenin ürünlerinize kasti olarak eklenip eklenmediğini Beyan sekmesi hücre D29'da belirtin."]
["CheckerJ20","Checker","J20","Declare if Tantalum is necessary to the production of your products and contained within the finished products declared in Declaration tab cell D32","在“申报”选项卡 D32 单元格中，申报钽是否必须用于贵公司产品的生产中，并且包含在申报的成品内","タンタルが御社製品の生産に必要であり申告された完成品に含有されている場合は、「申告」タブのD32セルに申告してください","신고(Declaration) 탭의 D32 셀에 탄탈륨이 귀사의 제품 생산에 필요하고 신고된 완제품 내에 포함되어 있는지 여부를 신고하십시오. ","Déclarez si du tantale est nécessaire à la fabrication de vos produits et est contenu dans les produits finis déclarés dans la cellule D32 de l'onglet Déclaration","Declare se o tântalo é necessário para a fabricação de seus produtos e está contido nos produtos acabados declarados na célula D32 da guia Declaração","Erklären Sie in der Reiterzelle D32 der Erklärung, ob Tantalum für die Herstellung Ihrer Produkte erforderlich ist und ob es in den angegebenen Endprodukten enthalten ist","Declare si el tántalo es necesario para la fabricación de sus productos y si está presente en los productos terminados declarados en la pestaña Declaration (Declaración), celda D32","Dichiarare se il Tantalio è necessario alla produzione dei propri prodotti ed è contenuto nei prodotti finiti dichiarati nella cella D32 della scheda della Dichiarazione","Tantalın ürünlerinizin imalat için gerekli olup olmadığını ve son üründe bulunup bulunmadığını Beyan sekmesinde hücre D32'de belirtin."]
["CheckerJ21","Checker","J21","Declare if Tin is necessary to the production of your products and contained within the finished products declared in Declaration tab cell D33","在“申报”选项卡 D33 单元格中，申报锡是否必须用于贵公司产品的生产中，并且包含在申报的成品内","錫が御社製品の生産に必要であり申告された完成品に含有されている場合は、「申告」タブのD33セルに申告してください","신고(Declaration) 탭의 D33 셀에 주석이 귀사의 제품 생산에 필요하고 신고된 완제품 내에 포함되어 있는지 여부를 신고하십시오. ","Déclarez si de l'étain est nécessaire à la fabrication de vos produits et est contenu dans les produits finis déclarés dans la cellule D33 de l'onglet Déclaration","Declare se o estanho é necessário para a fabricação de seus produtos e está contido nos produtos acabados declarados na célula D33 da guia Declaração","Erklären Sie in der Reiterzelle D33 der Erklärung, ob Zinn für die Herstellung Ihrer Produkte erforderlich ist und ob es in den angegebenen Endprodukten enthalten ist","Declare si el estaño es necesario para la fabricación de sus productos y si está presente en los productos terminados declarados en la pestaña Declaration (Declaración), celda D33","Dichiarare se lo Stagno è necessario alla produzione dei propri prodotti ed è contenuto nei prodotti finiti dichiarati nella cella D33 della scheda della Dichiarazione","Kalayın ürünlerinizin imalat için gerekli olup olmadığını ve son üründe bulunup bulunmadığını Beyan sekmesinde hücre D33'te belirtin."]
["CheckerJ22","Checker","J22","Declare if Gold is necessary to the production of your products and contained within the finished products declared in Declaration tab cell D34","在“申报”选项卡 D34 单元格中，申报金是否必须用于贵公司产品的生产中，并且包含在申报的成品内","金が御社製品の生産に必要であり申告された完成品に含有されている場合は、「申告」タブのD34セルに申告してください","신고(Declaration) 탭의 D34 셀에 금이 귀사의 제품 생산에 필요하고 신고된 완제품 내에 포함되어 있는지 여부를 신고하십시오. ","Déclarez si de l'or est nécessaire à la fabrication de vos produits et est contenu dans les produits finis déclarés dans la cellule D34 de l'onglet Déclaration","Declare se o ouro é necessário para a fabricação de seus produtos e está contido nos produtos acabados declarados na célula D34 da guia Declaração","Erklären Sie in der Reiterzelle D34 der Erklärung, ob Gold für die Herstellung Ihrer Produkte erforderlich ist und ob es in den angegebenen Endprodukten enthalten ist","Declare si el oro es necesario para la fabricación de sus productos y si está presente en los productos terminados declarados en la pestaña Declaration (Declaración), celda D34","Dichiarare se l'Oro è necessario alla produzione dei propri prodotti ed è contenuto nei prodotti finiti dichiarati nella cella D34 della scheda della Dichiarazione","Altının ürünlerinizin imalat için gerekli olup olmadığını ve son üründe bulunup bulunmadığını Beyan sekmesinde hücre D34'te belirtin."]
["CheckerJ23","Checker","J23","Declare if Tungsten is necessary to the production of your products and contained within the finished products declared in Declaration tab cell D35","在“申报”选项卡 D35 单元格中，申报钨是否必须用于贵公司产品的生产中，并且包含在申报的成品内","タングステンが御社製品の生産に必要であり申告された完成品に含有されている場合は、「申告」タブのD35セルに申告してください","신고(Declaration) 탭의 D35 셀에 텅스텐이 귀사의 제품 생산에 필요하고 신고된 완제품 내에 포함되어 있는지 여부를 신고하십시오. ","Déclarez si du tungstène est nécessaire à la fabrication de vos produits et est contenu dans les produits finis déclarés dans la cellule D35 de l'onglet Déclaration","Declare se o tungstênio é necessário para a fabricação de seus produtos e está contido nos produtos acabados declarados na célula D35 da guia Declaração","Erklären Sie in der Reiterzelle D35 der Erklärung, ob Tungsten für die Herstellung Ihrer Produkte erforderlich ist und ob es in den angegebenen Endprodukten enthalten ist","Declare si el tungsteno es necesario para la fabricación de sus productos y si está presente en los productos terminados declarados en la pestaña Declaration (Declaración), celda D35","Dichiarare se il Tungsteno è necessario alla produzione dei propri prodotti ed è contenuto nei prodotti finiti dichiarati nella cella D35 della scheda della Dichiarazione","Tungstenin ürünlerinizin imalat için gerekli olup olmadığını ve son üründe bulunup bulunmadığını Beyan sekmesinde hücre D35'te belirtin."]
["CheckerJ25","Checker","J25","Declare if Tantalum used within the scope of products declared within this survey response originated from the DRC or an adjoining Country on the Declaration tab cell D38","在“申报”选项卡 D38 单元格中，申报在此调查回答里申报的产品范围内所用钽的原产地是否为刚果民主共和国或毗邻国家或地区","本調査回答で申告された製品範囲内で使用されるタンタルがDRCまたは隣接国を原産とする場合は、「申告」タブのD38セルに申告してください","신고(Declaration) 탭의 D38 셀에 이 설문조사의 응답내용 내에서 신고된 제품 범위 내에 사용된 탄탈륨이 콩고공화국이나 그 인접국가로부터 유래된 것인지 여부를 신고하십시오. ","Déclarez si le tantale utilisé dans le cadre des produits déclarés dans les réponses à cette enquête provient de la RDC ou d'un pays voisin dans la cellule D38 de l'onglet Déclaration","Declare se o tântalo utilizado no âmbito dos produtos declarados nesta resposta da pesquisa é originário da República Democrática do Congo ou de um país vizinho na célula D38 da guia Declaração","Erklären Sie in der Reiterzelle D38 der Erklärung, ob innerhalb des Umfangs der in dieser Umfrage angegebenen Produkte verwendetes Tantalum aus der Demokratischen Republik Kongo oder einem benachbarten Land stammt","Declare si el tántalo utilizado en el enfoque de los productos declarados en la respuesta de esta encuesta proviene del DRC o un país contiguo en la pestaña Declaration (Declaración), celda D38","Dichiarare se il Tantalio usato nell'ambito dei prodotti dichiarati nella risposta a questo sondaggio proviene dalla Repubblica Democratica del Congo oppure da un Paese confinante nella cella D38 della scheda della Dichiarazione","Bu anket yanıtlarında bildirilen ürünler kapsamında kullanılan Tantalın DKC veya komşu ülkelerinden edinilip edinilmediğini Beyan sekmesi hücre D38'de belirtin."]
["CheckerJ26","Checker","J26","Declare if Tin used within the scope of products declared within this survey response originated from the DRC or an adjoining Country on the Declaration tab cell D39","在“申报”选项卡 D39 单元格中，申报在此调查回答里申报的产品范围内所用锡的原产地是否为刚果民主共和国或毗邻国家或地区","本調査回答で申告された製品範囲内で使用される錫がDRCまたは隣接国を原産とする場合は、「申告」タブのD39セルに申告してください","신고(Declaration) 탭의 D39 셀에 이 설문조사의 응답내용 내에서 신고된 제품 범위 내에 사용된 주석이 콩고공화국이나 그 인접국가로부터 유래된 것인지 여부를 신고하십시오. ","Déclarez si l'étain utilisé dans le cadre de produits déclarés dans les réponses à cette enquête est originaire de la RDC ou d'un pays voisin  dans la cellule D39 de l'onglet Déclaration","Declare se o estanho utilizado no âmbito dos produtos declarados nesta resposta da pesquisa é originário da República Democrática do Congo ou de um país vizinho na célula D39 da guia Declaração","Erklären Sie in der Reiterzelle D39 der Erklärung, ob innerhalb des Umfangs der in dieser Umfrage angegebenen Produkte verwendetes Zinn aus der Demokratischen Republik Kongo oder einem benachbarten Land stammt","Declare si el estaño utilizado en el enfoque de los productos declarados en la respuesta de esta encuesta proviene del DRC o un país contiguo en la pestaña Declaration (Declaración), celda D39","Dichiarare se lo Stagno usato nell'ambito dei prodotti dichiarati nella risposta a questo sondaggio proviene dalla Repubblica Democratica del Congo oppure da un Paese confinante nella cella D39 della scheda della Dichiarazione","Bu anket yanıtlarında bildirilen ürünler kapsamında kullanılan Kalayın DKC veya komşu ülkelerinden edinilip edinilmediğini Beyan sekmesi hücre D39'da belirtin."]
["CheckerJ27","Checker","J27","Declare if Gold used within the scope of products declared within this survey response originated from the DRC or an adjoining Country on the Declaration tab cell D40","在“申报”选项卡 D40 单元格中，申报在此调查回答里申报的产品范围内所用金的原产地是否为刚果民主共和国或毗邻国家或地区","本調査回答で申告された製品範囲内で使用される金がDRCまたは隣接国を原産とする場合は、「申告」タブのD40セルに申告してください","신고(Declaration) 탭의 D40 셀에 이 설문조사의 응답내용 내에서 신고된 제품 범위 내에 사용된 금이 콩고공화국이나 그 인접국가로부터 유래된 것인지 여부를 신고하십시오. ","Déclarez si l'or utilisé dans le cadre des produits déclarés dans les réponses à cette enquête est originaire de la RDC ou d'un pays voisin dans la cellule D40 de l'onglet Déclaration ","Declare se o ouro utilizado no âmbito dos produtos declarados nesta resposta da pesquisa é originário da República Democrática do Congo ou de um país vizinho na célula D40 da guia Declaração","Erklären Sie in der Reiterzelle D40 der Erklärung, ob innerhalb des Umfangs der in dieser Umfrage angegebenen Produkte verwendetes Gold aus der Demokratischen Republik Kongo oder einem benachbarten Land stammt","Declare si el oro utilizado en el enfoque de los productos declarados en la respuesta de esta encuesta proviene del DRC o un país contiguo en la pestaña Declaration (Declaración), celda D40","Dichiarare se l'Oro usato nell'ambito dei prodotti dichiarati nella risposta a questo sondaggio proviene dalla Repubblica Democratica del Congo oppure da un Paese confinante nella cella D40 della scheda della Dichiarazione","Bu anket yanıtlarında bildirilen ürünler kapsamında kullanılan Altının DKC veya komşu ülkelerinden edinilip edinilmediğini Beyan sekmesi hücre D40'da belirtin."]
["CheckerJ28","Checker","J28","Declare if Tungsten used within the scope of products declared within this survey response originated from the DRC or an adjoining Country on the Declaration tab cell D41","在“申报”选项卡 D41 单元格中，申报在此调查回答里申报的产品范围内所用钨的原产地是否为刚果民主共和国或毗邻国家或地区","本調査回答で申告された製品範囲内で使用されるタングステンがDRCまたは隣接国を原産とする場合は、「申告」タブのD41セルに申告してください","신고(Declaration) 탭의 D41 셀에 이 설문조사의 응답내용 내에서 신고된 제품 범위 내에 사용된 텅스텐이 콩고공화국이나 그 인접국가로부터 유래된 것인지 여부를 신고하십시오. ","Déclarez si le tungstène utilisé dans le cadre des produits déclarés dans les réponses à cette enquête est originaire de la RDC ou d'un pays voisin dans la cellule D41 de l'onglet Déclaration.","Declare se o tungstênio utilizado no âmbito dos produtos declarados nesta resposta da pesquisa é originário da República Democrática do Congo ou de um país vizinho na célula D41 da guia Declaração","Erklären Sie in der Reiterzelle D41 der Erklärung, ob innerhalb des Umfangs der in dieser Umfrage angegebenen Produkte verwendetes Tungsten aus der Demokratischen Republik Kongo oder einem benachbarten Land stammt","Declare si el tungsteno utilizado en el enfoque de los productos declarados en la respuesta de esta encuesta proviene del DRC o un país contiguo en la pestaña Declaration (Declaración), celda D41","Dichiarare se il Tungsteno usato nell'ambito dei prodotti dichiarati nella risposta a questo sondaggio proviene dalla Repubblica Democratica del Congo oppure da un Paese confinante nella cella D41 della scheda della Dichiarazione","Bu anket yanıtlarında bildirilen ürünler kapsamında kullanılan Tungstenin DKC veya komşu ülkelerinden edinilip edinilmediğini Beyan sekmesi hücre D41'de belirtin."]
["CheckerJ30","Checker","J30","Declare if Tantalum used within the scope of products declared within this survey response originated entirely from a recycled or scrap source on the Declaration tab cell D44","在“申报”选项卡 D44 单元格中，申报在此调查回答里申报的产品范围内所用钽是否完全来自回收料或报废料","本調査回答で申告された製品範囲内で使用されるタンタルが100％リサイクル業者又はスクラップサプライヤーから調達されている場合は、「申告」タブのD44セルに申告してください","신고(Declaration) 탭의 D44 셀에 이 설문조사의 응답내용 내에서 신고된 제품 범위 내에 사용된 탄탈륨이 전적으로 재활용이나 폐자원에서 나온 것인지 여부를 신고하십시오. ","Déclarez si le tantale utilisé dans le cadre des produits déclarés dans cette réponse à l'enquête provient d'une source entièrement recyclée ou de débris dans la cellule D44 de l'onglet Déclaration","Declare se o tântalo utilizado no âmbito dos produtos declarados nesta resposta da pesquisa é originado inteiramente a partir uma fonte reciclada ou de sucata na célula D44 da guia Declaração","Erklären Sie in der Reiterzelle D44 der Erklärung, ob innerhalb des Umfangs der in dieser Umfrage angegebenen Produkte verwendetes Tantalum vollständig aus Recycling oder Schrott stammt","Declare si el tántalo utilizado en el enfoque de los productos declarados en la respuesta de esta encuesta proviene completamente de una fuente reciclada o de residuos en la pestaña Declaration (Declaración), celda D44","Dichiarare se il Tantalio usato nell'ambito dei prodotti dichiarati nella risposta a questo sondaggio proviene interamente da una fonte riciclata o di scarti nella cella D44 della scheda della Dichiarazione","Bu anket yanıtlarında bildirilen ürünler kapsamında kullanılan Tantalın geri dönüşüm veya hurda kaynaklarından edinilip edinilmediğini Beyan sekmesi hücre D44'te belirtin."]
["CheckerJ31","Checker","J31","Declare if Tin used within the scope of products declared within this survey response originated entirely from a recycled or scrap source on the Declaration tab cell D45","在“申报”选项卡 D45 单元格中，申报在此调查回答里申报的产品范围内所用锡是否完全来自回收料或报废料","本調査回答で申告された製品範囲内で使用される錫が100％リサイクル業者又はスクラップサプライヤーから調達されている場合は、「申告」タブのD45セルに申告してください","신고(Declaration) 탭의 D45 셀에 이 설문조사의 응답내용 내에서 신고된 제품 범위 내에 사용된 주석이 전적으로 재활용이나 폐자원에서 나온 것인지 여부를 신고하십시오. ","Déclarez si l'étain utilisé dans le cadre des produits déclarés dans cette réponse à l'enquête provient d'une source entièrement recyclée ou de débris dans la cellule D45 de l'onglet Déclaration","Declare se o estanho utilizado no âmbito dos produtos declarados nesta resposta da pesquisa é originado inteiramente a partir uma fonte reciclada ou de sucata na célula D45 da guia Declaração","Erklären Sie in der Reiterzelle D45 der Erklärung, ob innerhalb des Umfangs der in dieser Umfrage angegebenen Produkte verwendetes Zinn vollständig aus Recycling oder Schrott stammt","Declare si el estaño utilizado en el enfoque de los productos declarados en la respuesta de esta encuesta proviene completamente de una fuente reciclada o de residuos en la pestaña Declaration (Declaración), celda D45","Dichiarare se lo Stagno usato nell'ambito dei prodotti dichiarati nella risposta a questo sondaggio proviene interamente da una fonte riciclata o di scarti nella cella D45 della scheda della Dichiarazione","Bu anket yanıtlarında bildirilen ürünler kapsamında kullanılan Kalayın geri dönüşüm veya hurda kaynaklarından edinilip edinilmediğini Beyan sekmesi hücre D45'te belirtin."]
["CheckerJ32","Checker","J32","Declare if Gold used within the scope of products declared within this survey response originated entirely from a recycled or scrap source on the Declaration tab cell D46","在“申报”选项卡 D46 单元格中，申报在此调查回答里申报的产品范围内所用金是否完全来自回收料或报废料","本調査回答で申告された製品範囲内で使用される金が100％リサイクル業者又はスクラップサプライヤーから調達されている場合は、「申告」タブのD46セルに申告してください","신고(Declaration) 탭의 D46 셀에 이 설문조사의 응답내용 내에서 신고된 제품 범위 내에 사용된 금이 전적으로 재활용이나 폐자원에서 나온 것인지 여부를 신고하십시오. ","Déclarez si l'or utilisé dans le cadre des produits déclarés dans cette réponse à l'enquête provient d'une source entièrement recyclée ou de débris dans la cellule D46 de l'onglet Déclaration","Declare se o ouro utilizado no âmbito dos produtos declarados nesta resposta da pesquisa é originado inteiramente a partir uma fonte reciclada ou de sucata na célula D46 da guia Declaração","Erklären Sie in der Reiterzelle D46 der Erklärung, ob innerhalb des Umfangs der in dieser Umfrage angegebenen Produkte verwendetes Gold vollständig aus Recycling oder Schrott stammt","Declare si el oro utilizado en el enfoque de los productos declarados en la respuesta de esta encuesta proviene completamente de una fuente reciclada o de residuos en la pestaña Declaration (Declaración), celda D46","Dichiarare se l'Oro usato nell'ambito dei prodotti dichiarati nella risposta a questo sondaggio proviene interamente da una fonte riciclata o di scarti nella cella D46 della scheda della Dichiarazione","Bu anket yanıtlarında bildirilen ürünler kapsamında kullanılan Altının geri dönüşüm veya hurda kaynaklarından edinilip edinilmediğini Beyan sekmesi hücre D46'da belirtin."]
["CheckerJ33","Checker","J33","Declare if Tungsten used within the scope of products declared within this survey response originated entirely from a recycled or scrap source on the Declaration tab cell D47","在“申报”选项卡 D46 单元格中，申报在此调查回答里申报的产品范围内所用钨是否完全来自回收料或报废料","本調査回答で申告された製品範囲内で使用されるタングステンが100％リサイクル業者又はスクラップサプライヤーから調達されている場合は、「申告」タブのD47セルに申告してください","신고(Declaration) 탭의 D47 셀에 이 설문조사의 응답내용 내에서 신고된 제품 범위 내에 사용된 텅스텐이 전적으로 재활용이나 폐자원에서 나온 것인지 여부를 신고하십시오. ","Déclarez si le tungstène utilisé dans le cadre de produits déclarés dans de cette réponse à l'enquête provient d'une source entièrement recyclée ou de débris dans la cellule D47 de l'onglet Déclaration","Declare se o tungstênio utilizado no âmbito dos produtos declarados nesta resposta da pesquisa é originado inteiramente a partir uma fonte reciclada ou de sucata na célula D47 da guia Declaração","Erklären Sie in der Reiterzelle D47 der Erklärung, ob innerhalb des Umfangs der in dieser Umfrage angegebenen Produkte verwendetes Tungsten vollständig aus Recycling oder Schrott stammt","Declare si el tungsteno utilizado en el enfoque de los productos declarados en la respuesta de esta encuesta proviene completamente de una fuente reciclada o de residuos en la pestaña Declaration (Declaración), celda D47","Dichiarare se il Tungsteno usato nell'ambito dei prodotti dichiarati nella risposta a questo sondaggio proviene interamente da una fonte riciclata o di scarti nella cella D47 della scheda della Dichiarazione","Bu anket yanıtlarında bildirilen ürünler kapsamında kullanılan Tungstenin geri dönüşüm veya hurda kaynaklarından edinilip edinilmediğini Beyan sekmesi hücre D47'de belirtin."]
["CheckerJ35","Checker","J35","Provide % of completeness of supplier's smelter information on Declaration tab cell D50","在“申报”选项卡 D50 单元格中，提供供应商的冶炼厂信息填写百分比","サプライヤーの精錬業者情報の完全性を割合（%）で「申告」タブのD50セルに記入してください","신고(Declaration) 탭의 D50 셀에 공급업체의 제련소 정보에 대한 완전성 비율(%)을 제공하십시오. ","Indiquez le pourcentage d'exhaustivité des informations sur la fonderie données par le fournisseur dans la cellule D50 de l'onglet Déclaration","Forneça a porcentagem de conclusão das informações da fundição do fornecedor na célula D50 da guia Declaração","Geben Sie den Vollständigkeitsgrad der Schmelzofeninformationen des Anbieters in Prozent in der Reiterzelle D50 der Erklärung an","Escriba el porcentaje de información completada del fundidor del proveedor en la pestaña Declaration (Declaración), celda D50","Fornire la percentuale (%) di completezza delle informazioni della fonderia del fornitore nella cella D50 della scheda della Dichiarazione","Tedarikçinin izabe tesisi bilgilerinin eksiksizliğini Beyan sekmesi, hücre D50'de belirtin."]
["CheckerJ36","Checker","J36","Provide % of completeness of supplier's smelter information on Declaration tab cell D51","在“申报”选项卡 D51 单元格中，提供供应商的冶炼厂信息填写百分比","サプライヤーの精錬業者情報の完全性を割合（%）で「申告」タブのD51セルに記入してください","신고(Declaration) 탭의 D51 셀에 공급업체의 제련소 정보에 대한 완전성 비율(%)을 제공하십시오. ","Indiquez le pourcentage d'exhaustivité des informations sur la fonderie données par le fournisseur dans la cellule D51 de l'onglet Déclaration ","Forneça a porcentagem de conclusão das informações da fundição do fornecedor na célula D51 da guia Declaração","Geben Sie den Vollständigkeitsgrad der Schmelzofeninformationen des Anbieters in Prozent in der Reiterzelle D51 der Erklärung an","Escriba el porcentaje de información completada del fundidor del proveedor en la pestaña Declaration (Declaración), celda D51","Fornire la percentuale (%) di completezza delle informazioni della fonderia del fornitore nella cella D51 della scheda della Dichiarazione","Tedarikçinin izabe tesisi bilgilerinin eksiksizliğini Beyan sekmesi, hücre D51'de belirtin."]
["CheckerJ37","Checker","J37","Provide % of completeness of supplier's smelter information on Declaration tab cell D52","在“申报”选项卡 D52 单元格中，提供供应商的冶炼厂信息填写百分比","サプライヤーの精錬業者情報の完全性を割合（%）で「申告」タブのD52セルに記入してください","신고(Declaration) 탭의 D52 셀에 공급업체의 제련소 정보에 대한 완전성 비율(%)을 제공하십시오. ","Indiquez le pourcentage d'exhaustivité des informations sur la fonderie données par le fournisseur dans la cellule D52 de l'onglet Déclaration ","Forneça a porcentagem de conclusão das informações da fundição do fornecedor na célula D52 da guia Declaração","Geben Sie den Vollständigkeitsgrad der Schmelzofeninformationen des Anbieters in Prozent in der Reiterzelle D52 der Erklärung an","Escriba el porcentaje de información completada del fundidor del proveedor en la pestaña Declaration (Declaración), celda D52","Fornire la percentuale (%) di completezza delle informazioni della fonderia del fornitore nella cella D52 della scheda della Dichiarazione","Tedarikçinin izabe tesisi bilgilerinin eksiksizliğini Beyan sekmesi, hücre D52'de belirtin."]
["CheckerJ38","Checker","J38","Provide % of completeness of supplier's smelter information on Declaration tab cell D53","在“申报”选项卡 D53 单元格中，提供供应商的冶炼厂信息填写百分比","サプライヤーの精錬業者情報の完全性を割合（%）で「申告」タブのD53セルに記入してください","신고(Declaration) 탭의 D53 셀에 공급업체의 제련소 정보에 대한 완전성 비율(%)을 제공하십시오. ","Indiquez le pourcentage d'exhaustivité des informations sur la fonderie données par le fournisseur dans la cellule D53 de l'onglet Déclaration ","Forneça a porcentagem de conclusão das informações da fundição do fornecedor na célula D53 da guia Declaração","Geben Sie den Vollständigkeitsgrad der Schmelzofeninformationen des Anbieters in Prozent in der Reiterzelle D53 der Erklärung an","Escriba el porcentaje de información completada del fundidor del proveedor en la pestaña Declaration (Declaración), celda D53","Fornire la percentuale (%) di completezza delle informazioni della fonderia del fornitore nella cella D53 della scheda della Dichiarazione","Tedarikçinin izabe tesisi bilgilerinin eksiksizliğini Beyan sekmesi, hücre D53'te belirtin."]
["CheckerJ40","Checker","J40","Declare if all smelter names have been provided in this survey response under the scope of products declared on the Declaration tab cell D56","在“申报”选项卡 D56 单元格中，申报是否在此调查回答里的申报产品范围下方提供了所有冶炼厂名称","全ての精錬業者名が申告された製品範囲に基づき本調査回答で提供された場合は、「申告」タブのD56セルに申告してください","신고(Declaration) 탭의 D56 셀에 이 설문조사 응답내용에 신고된 제품 범위에 해당하는 모든 제련소 명칭이 제공되었는지 여부를 신고하십시오. ","Déclarez si tous les noms de la fonderie ont été fournis dans cette réponse à l'enquête dans le cadre du champ d'application des produits déclarés dans la cellule D56 de l'onglet Déclaration","Declare se todos os nomes de fundições foram fornecidos nesta resposta à pesquisa no âmbito dos produtos declarados na célula D56 da guia Declaração","Geben Sie in der Reiterzelle D56 der Erklärung an, ob alle Schmelzofennamen in der Antwort auf diese Umfrage im Umfang der angegebenen Produkte zur Verfügung gestellt worden sind ","Declare si se han suministrado todos los nombres de los fundidores en la respuesta de esta encuesta bajo el enfoque de los productos declarados en la pestaña Declaration (Declaración), celda D56","Dichiarare se tutti i nomi delle fonderie sono stati forniti nella risposta a questo sondaggio nell'ambito dei prodotti dichiarati nella cella D56 della scheda della Dichiarazione","Bildirilen ürünler kapsamında, bu anket yanıtında tüm izabe tesisi adlarının verilip verilmediğini Beyan sekmesi hücre D56'da belirtin."]
["CheckerJ41","Checker","J41","Declare if all smelter names have been provided in this survey response under the scope of products declared on the Declaration tab cell D57","在“申报”选项卡 D57 单元格中，申报是否在此调查回答里的申报产品范围下方提供了所有冶炼厂名称","全ての精錬業者名が申告された製品範囲に基づき本調査回答で提供された場合は、「申告」タブのD57セルに申告してください","신고(Declaration) 탭의 D57 셀에 이 설문조사 응답내용에 신고된 제품 범위에 해당하는 모든 제련소 명칭이 제공되었는지 여부를 신고하십시오. ","Déclarez si tous les noms de la fonderie ont été fournis dans cette réponse à l'enquête dans le cadre du champ d'application des produits déclarés dans la cellule D57 de l'onglet Déclaration","Declare se todos os nomes de fundições foram fornecidos nesta resposta à pesquisa no âmbito dos produtos declarados na célula D57 da guia Declaração","Geben Sie in der Reiterzelle D57 der Erklärung an, ob alle Schmelzofennamen in der Antwort auf diese Umfrage im Umfang der angegebenen Produkte zur Verfügung gestellt worden sind ","Declare si se han suministrado todos los nombres de los fundidores en la respuesta de esta encuesta bajo el enfoque de los productos declarados en la pestaña Declaration (Declaración), celda D57","Dichiarare se tutti i nomi delle fonderie sono stati forniti nella risposta a questo sondaggio nell'ambito dei prodotti dichiarati nella cella D57 della scheda della Dichiarazione","Bildirilen ürünler kapsamında, bu anket yanıtında tüm izabe tesisi adlarının verilip verilmediğini Beyan sekmesi hücre D57'de belirtin."]
["CheckerJ42","Checker","J42","Declare if all smelter names have been provided in this survey response under the scope of products declared on the Declaration tab cell D58","在“申报”选项卡 D58 单元格中，申报是否在此调查回答里的申报产品范围下方提供了所有冶炼厂名称","全ての精錬業者名が申告された製品範囲に基づき本調査回答で提供された場合は、「申告」タブのD58セルに申告してください","신고(Declaration) 탭의 D58 셀에 이 설문조사 응답내용에 신고된 제품 범위에 해당하는 모든 제련소 명칭이 제공되었는지 여부를 신고하십시오. ","Déclarez si tous les noms de la fonderie ont été fournis dans cette réponse à l'enquête dans le cadre du champ d'application des produits déclarés dans la cellule D58 de l'onglet Déclaration","Declare se todos os nomes de fundições foram fornecidos nesta resposta à pesquisa no âmbito dos produtos declarados na célula D58 da guia Declaração","Geben Sie in der Reiterzelle D58 der Erklärung an, ob alle Schmelzofennamen in der Antwort auf diese Umfrage im Umfang der angegebenen Produkte zur Verfügung gestellt worden sind ","Declare si se han suministrado todos los nombres de los fundidores en la respuesta de esta encuesta bajo el enfoque de los productos declarados en la pestaña Declaration (Declaración), celda D58","Dichiarare se tutti i nomi delle fonderie sono stati forniti nella risposta a questo sondaggio nell'ambito dei prodotti dichiarati nella cella D58 della scheda della Dichiarazione","Bildirilen ürünler kapsamında, bu anket yanıtında tüm izabe tesisi adlarının verilip verilmediğini Beyan sekmesi hücre D58'de belirtin."]
["CheckerJ43","Checker","J43","Declare if all smelter names have been provided in this survey response which the scope of products declared on the Declaration tab cell D59","在“申报”选项卡 D59 单元格中，申报是否在此调查回答里的申报产品范围下方提供了所有冶炼厂名称","全ての精錬業者名が申告された製品範囲に基づき本調査回答で提供された場合は、「申告」タブのD59セルに申告してください","신고(Declaration) 탭의 D59 셀에 이 설문조사 응답내용에 신고된 제품 범위에 해당하는 모든 제련소 명칭이 제공되었는지 여부를 신고하십시오. ","Déclarez si tous les noms de fonderie ont été fournis dans cette réponse à l'enquête avec le champ d'application des produits déclarés dans la cellule D59 de l'onglet Déclaration","Declare se todos os nomes de fundições foram fornecidos nesta resposta à pesquisa no âmbito dos produtos declarados na célula D59 da guia Declaração","Geben Sie in der Reiterzelle D59 der Erklärung an, ob alle Schmelzofennamen in der Antwort auf diese Umfrage im Umfang der angegebenen Produkte zur Verfügung gestellt worden sind ","Declare si se han suministrado todos los nombres de los fundidores en la respuesta de esta encuesta bajo el enfoque de los productos declarados en la pestaña Declaration (Declaración), celda D59","Dichiarare se tutti i nomi delle fonderie sono stati forniti nella risposta a questo sondaggio nell'ambito dei prodotti dichiarati nella cella D59 della scheda della Dichiarazione","Bildirilen ürünler kapsamında, bu anket yanıtında tüm izabe tesisi adlarının verilip verilmediğini Beyan sekmesi hücre D59'da belirtin."]
["CheckerJ45","Checker","J45","Declare if all applicable Tantalum smelter information has been provided on Declaration tab cell D62","在“申报”选项卡 D62 单元格中，申报是否已提供所有适用钽冶炼厂信息","全ての該当するタンタル精錬業者情報が提供された場合は、「申告」タブのD62セルに申告してください","신고(Declaration) 탭의 D62 셀에 탄탈륨 제련소에 대한 모든 해당 정보가 제공되었는지 여부를 신고하십시오. ","Déclarez si toutes les informations applicables sur la fonderie de tantale ont été fournies dans la cellule D62 de l'onglet Déclaration","Declare se todas as informações aplicáveis sobre o tântalo na fundição foram fornecidas na célula D62 da guia Declaração","Geben Sie in der Reiterzelle D62 der Erklärung an, ob alle Informationen über Tantalum-Schmelzöfen zur Verfügung gestellt worden sind ","Declare si se ha suministrado toda la información aplicable del fundidor de tántalo en la pestaña Declaration (Declaración), celda D62","Dichiarare se tutte le informazioni sulla fonderia del Tantalio pertinenti sono state fornite nella cella D62 della scheda della Dichiarazione","Tüm uygulanabilir Tantal izabe tesisi bilgilerinin verilip verilmediğini hücre D62'de belirtin"]
["CheckerJ46","Checker","J46","Declare if all applicable Tin smelter information has been provided on Declaration tab cell D63","在“申报”选项卡 D63 单元格中，申报是否已提供所有适用锡冶炼厂信息","全ての該当する錫精錬業者情報が提供された場合は、「申告」タブのD63セルに申告してください","신고(Declaration) 탭의 D63 셀에 주석 제련소에 대한 모든 해당 정보가 제공되었는지 여부를 신고하십시오. ","Déclarez si toutes les informations applicables sur la fonderie d'étain ont été fournies dans la cellule D63 de l'onglet Déclaration","Declare se todas as informações aplicáveis sobre o estanho na fundição foram fornecidas na célula D63 da guia Declaração","Geben Sie in der Reiterzelle D63 der Erklärung an, ob alle Informationen über Zinn-Schmelzöfen zur Verfügung gestellt worden sind ","Declare si se ha suministrado toda la información aplicable del fundidor de estaño en la pestaña Declaration (Declaración), celda D63","Dichiarare se tutte le informazioni sulla fonderia dello Stagno pertinenti sono state fornite nella cella D63 della scheda della Dichiarazione","Tüm uygulanabilir Kalay izabe tesisi bilgilerinin verilip verilmediğini hücre D63'te belirtin"]
["CheckerJ47","Checker","J47","Declare if all applicable Gold smelter information has been provided on Declaration tab cell D64","在“申报”选项卡 D64 单元格中，申报是否已提供所有适用金冶炼厂信息","全ての該当する金精錬業者情報が提供された場合は、「申告」タブのD64セルに申告してください","신고(Declaration) 탭의 D64 셀에 금 제련소에 대한 모든 해당 정보가 제공되었는지 여부를 신고하십시오. ","Déclarez si toutes les informations applicables sur la fonderie d'or ont été fournies dans la cellule D64 de l'onglet Déclaration","Declare se todas as informações aplicáveis sobre o ouro na fundição foram fornecidas na célula D64 da guia Declaração","Geben Sie in der Reiterzelle D64 der Erklärung an, ob alle Informationen über Gold-Schmelzöfen zur Verfügung gestellt worden sind ","Declare si se ha suministrado toda la información aplicable del fundidor de oro en la pestaña Declaration (Declaración), celda D64","Dichiarare se tutte le informazioni sulla fonderia dell'Oro pertinenti sono state fornite nella cella D64 della scheda della Dichiarazione","Tüm uygulanabilir Altın izabe tesisi bilgilerinin verilip verilmediğini hücre D64'te belirtin"]
["CheckerJ48","Checker","J48","Declare if all applicable Tungsten smelter information has been provided on Declaration tab cell D65","在“申报”选项卡 D65 单元格中，申报是否已提供所有适用钨冶炼厂信息","全ての該当するタングステン精錬業者情報が提供された場合は、「申告」タブのD65セルに申告してください","신고(Declaration) 탭의 D65 셀에 텅스텐 제련소에 대한 모든 해당 정보가 제공되었는지 여부를 신고하십시오. ","Déclarez si toutes les informations applicables sur la fonderie de tungstène ont été fournies dans la cellule D65 de l'onglet Déclaration","Declare se todas as informações aplicáveis sobre o tungstênio na fundição foram fornecidas na célula D65 da guia Declaração","Geben Sie in der Reiterzelle D65 der Erklärung an, ob alle Informationen über Tungsten-Schmelzöfen zur Verfügung gestellt worden sind ","Declare si se ha suministrado toda la información aplicable del fundidor de tungsteno en la pestaña Declaration (Declaración), celda D65","Dichiarare se tutte le informazioni sulla fonderia del Tungsteno pertinenti sono state fornite nella cella D65 della scheda della Dichiarazione","Tüm uygulanabilir Tungsten izabe tesisi bilgilerinin verilip verilmediğini hücre D65'te belirtin"]
["CheckerJ50","Checker","J50","Answer if your company has a DRC conflict-free sourcing policy on the Declaration tab cell D69","在“申报”选项卡 D69 单元格中，回答贵公司是否制定了不使用刚果民主共和国涉及冲突之冲突矿产的采购政策","御社にDRCコンフリクトフリーの調達方針がある場合は、「申告」タブのD69セルに回答してください","신고(Declaration) 탭의 D69 셀에 귀사가 콩고공화국 분쟁으로부터 자유로운 광물 구매 정책(DRC conflict-free sourcing policy)을 보유하고 있는지 여부를 답변하십시오. ","Répondez dans la cellule D69 de l'onglet Déclaration si votre entreprise a une politique d'approvisionnement hors conflit avec la RDC","Responda se a sua empresa tem uma Política de fornecimento livre de conflitos da República Democrática do Congo na célula D69 da guia Declaração","Geben Sie in der Reiterzelle D69 der Erklärung an, ob Ihr Unternehmen eine Richtlinie zur DRC-konfliktfreien Beschaffung hat","Responda si su compañía cuenta con una política de abastecimiento libre de conflictos DRC en la pestaña Declaration (Declaración), celda D69","Rispondere se la propria società ha una linea di condotta in tema di fonti in aree senza conflitto (conflict-free sourcing) per la Repubblica Democratica del Congo nella cella D69 della scheda della Dichiarazione","Şirketinizin bir DKC ihtilafı içermeyen kaynak politikası olup olmadığını Beyan sekmesinde hücre D69'da belirtin"]
["CheckerJ51","Checker","J51","Answer if your company has made your DRC conflict-free sourcing policy publically available on your website on the Declaration tab cell D71","在“申报”选项卡 D71 单元格中，回答贵公司是否在贵公司的网站上公开发布不使用刚果民主共和国涉及冲突之冲突矿产的采购政策","御社のDRCコンフリクトフリーの調達方針を御社ウェブサイトから入手できる場合は、「申告」タブのD71セルに回答してください","신고(Declaration) 탭의 D71 셀에서 귀사가 귀사의 웹사이트에서 콩고공화국 분쟁으로부터 자유로운 광물 구매 정책(DRC conflict-free sourcing policy)을 공개하고 있는지 여부를 답변하십시오. ","Répondez dans la cellule D65 de l'onglet Déclaration si votre entreprise a rendu publiquement disponible sur son site Web sa politique d'approvisionnement hors  conflit avec la RDC","Responda se a sua empresa colocou sua Política de fornecimento livre de conflitos da República Democrática do Congo à disposição do público em seu site na célula D71 da guia Declaração","Geben Sie in der Reiterzelle D71 der Erklärung an, ob Ihr Unternehmen Ihre Richtlinie zur DRC-konfliktfreien Beschaffung auf Ihrer Website öffentlich verfügbar gemacht hat","Responda si su compañía tiene la política de abastecimiento libre de conflictos DRC públicamente disponible en la pestaña Declaration (Declaración), celda D71","Rispondere se la propria società ha reso pubblicamente disponibile sul suo sito web la linea di condotta in tema di fonti in aree senza conflitto (conflict-free sourcing) per la Repubblica Democratica del Congo nella cella D71 della scheda della Dichiarazione","Şirketinizin DKC ihtilafı içermeyen kaynak edinme politikasını web sitesinde genel erişime açık bir şekilde sunup sunmadığını Beyan sekmesinde hücre D71'de belirtin."]
["CheckerJ52","Checker","J52","Enter the URL in Declaration worksheet cell G71 if you answer \"Yes\" for question B. The format of the URL should be \"www.companyname.com\"","如果问题 B 的答案为“是”，则请在“申报”工作表 G71 单元格中输入 URL。URL 的格式应为“www.companyname.com” ","質問Bの回答が「Yes」の場合は、申告ワークシートのG71セルにURLを記入します。URLの形式は「www.companyname.com」にしてください。","질문 B에 \"예(Yes)\"라고 답할 경우, 신고(Declaration) 워크시트의 G71 셀에 URL을 입력하십시오. URL 형식은 \"www.companyname.com\"이 되어야 합니다. ","Saisissez l'URL dans la cellule D71 de l'onglet Déclaration si vous répondez par « Oui » à la question B. Le format de l'URL doit être : www.nomdelentreprise.com","Digite o URL na célula G71 da planilha Declaração se você responder “Sim” à pergunta B. O formato do URL deve ser “www.nomedaempresa.com”","Geben Sie in der Arbeitsblattzelle D71 der Erklärung den URL an, falls Sie Frage B mit „Ja“ beantworten. Das Format des URL sollte „www.companyname.com“ entsprechen ","Ingrese la URL en la hoja de trabajo de Declaration (Declaración), celda G71 si responde \"Sí\" en la pregunta B. El formato de la URL debe ser \"www.nombredelacompañía.com\"","Inserire l'URL nella cella G71 del foglio di lavoro della Dichiarazione se si risponde \"Sì\" per la domanda B. Il formato dell'URL deve essere \"www.nomeazienda.com\"","B sorusuna \"Evet\" yanıtı verdiyseniz, Beyan çalışma sayfasında hücre G71'e URL'yi girin. URL \"www.sirketadi.com\" biçiminde olmalıdır"]
["CheckerJ53","Checker","J53","Answer if you require your direct suppliers to be DRC conflict-free on the Declaration tab cell D73","在“申报”选项卡 D73 单元格中，回答贵公司是否要求直接供应不使用来自刚果民主共和国的涉及冲突之冲突矿产","御社が直接サプライヤーに対しDRCコンフリクトフリーであることを要求する場合は、「申告」タブのD73セルに回答してください","신고(Declaration) 탭의 D73 셀에 귀사의 직접 공급업체가 콩고공화국 분쟁으로부터 자유로울 것을 귀사에서 요구하는지 여부를 답변하십시오. ","Répondez dans la cellule D73 de l'onglet Déclaration si vous voulez que vos fournisseurs directs soient hors conflit avec la RDC ","Responda se você precisa que seus fornecedores diretos sejam livres de conflito na República Democrática do Congo na célula D73 da guia Declaração","Geben Sie in der Reiterzelle D73 der Erklärung an, ob Sie Ihre Lieferanten zur DRC-konfliktfreien Beschaffung verpflichtet haben","Responda si requiere que sus proveedores directos estén libres de conflictos en la pestaña Declaration (Declaración), celda D73","Rispondere se si richiede ai propri fornitori diretti di essere conflict-free per la Repubblica Democratica del Congo nella cella D73 della scheda della Dichiarazione","Doğrudan tedarikçilerinizin DKC ihtilafı içermemesini şart koşup koşmadığınızı Beyan sekmesi hücre D73'te belirtin."]
["CheckerJ54","Checker","J54","Answer if you require your direct suppliers to source from smelters validated as DRC conflict-free using the Responsible Minerals Assurance Process conformant smelter list on Declaration tab cell D75","在“申报”选项卡 D75 单元格中，回答贵公司是否要求直接供应商从使用负责任矿物审验流程合规冶炼厂列表验证为刚果民主共和国无冲突的冲突矿产","御社が直接サプライヤーに対し、責任ある鉱物保証プロセスに適合する精錬業者リストを使用しDRCコンフリクトフリーと認定された精錬業者から調達することを要求する場合は、「申告」タブのD75に回答してください","신고(Declaration) 탭의 D75 셀에 책임 있는 광물 보증 프로세스 준수 제련소 목록을 사용해 콩고공화국 분쟁으로부터 자유롭다고 확인된 제련소에서 귀사의 직접 공급업체가 광물을 구매하도록 귀사에서 요구하는지 여부를 답변하십시오. ","Répondez dans la cellule D75 de l'onglet Déclaration si vous voulez que vos fournisseurs directs s'approvisionnent auprès de fondeurs agrées comme n'ayant pas de conflits avec la RDC et adhérant à la liste de fondeurs respectant l'Initiative d'approvisionnement hors conflit","Responda se você exige que seus fornecedores diretos busquem seus suprimentos em fundições validadas como livres de conflito na República Democrática do Congo utilizando a lista do Responsible Minerals Assurance Process na célula D75 da guia Declaração","Geben Sie in der Reiterzelle D75 der Erklärung an, ob Sie Ihre Lieferanten zur Beschaffung aus Schmelzöfen verpflichtet haben, die als DRC-konfliktfrei in der Liste der konformen Schmelzöfen des Responsible Minerals Assurance Process bestätigt worden sind","Responda si requiere que sus proveedores directos se abastezcan de los fundidores validados como libres de conflicto DRC utilizando la lista de fundidores que cumplen con el proceso de aseguramiento de minerales responsables en la pestaña Declaration (Declaración), celda D75","Rispondere se si richiede ai propri fornitori diretti di approvvigionarsi da fonderie convalidate come conflict-free per la Repubblica Democratica del Congo utilizzando la lista di fonderie conforme al Responsible Minerals Assurance Process nella cella D75 della scheda della Dichiarazione","Doğrudan tedarikçilerinizin Sorumlu Maden Güvence Prosesi uyumlu izabe tesisi listesini kullanarak DKC ihtilafı içermediği onaylanmış izabe tesislerini kullanmasını şart koşup koşmadığınızı Beyan sekmesi hücre D75'te belirtin."]
["CheckerJ55","Checker","J55","Answer if you have implemented conflict-free minerals sourcing due diligence measures on Declaration tab cell D77","在“申报”选项卡 D77 单元格中，回答贵公司是否已实施无冲突矿产采购尽职调查措施","御社がコンフリクトフリーの調達に関するデューデリジェンス対策を実施している場合は、「申告」タブのD77セルに回答してください","신고(Declaration) 탭의 D77 셀에 분쟁으로부터 자유로운 광물 구매 실사 조치를 수행했는지 여부를 답변하십시오. ","Répondez dans la cellule D77 de l'onglet Déclaration si vous avez mis en œuvre des mesures de vigilance relatives à l'approvisionnement en minéraux hors conflits ","Responda se você tiver implementado medidas de diligência devida para o fornecimento de minerais livres de conflito na célula D77 da guia Declaração","Geben Sie in der Reiterzelle D77 der Erklärung an, ob Sie Due-Diligence-Maßnahmen zur Beschaffung konfliktfreier Mineralien getroffen haben","Responda si ha implementado las medidas de debida diligencia del abastecimiento de minerales libre de conflictos en la pestaña Declaration (Declaración), celda D77","Rispondere se sono state implementate le misure della dovuta diligenza per il conflict-free minerals sourcing nella cella D77 della scheda della Dichiarazione","İhtilafsız maden kaynak edinimi durum tespiti tedbirlerini uygulamaya koyup koymadığınızı Beyan sekmesi hücre D77'de belirtin."]
["CheckerJ56","Checker","J56","Answer if you request your suppliers to fill out this Conflict Minerals Reporting Template on Declaration tab cell D79","在“申报”选项卡 D79 单元格中，回答贵公司是否要求供应商填写此“冲突矿产报告模板”","御社がサプライヤーに対し、この紛争鉱物報告テンプレートに記入するよう要請する場合は、「申告」タブのD79セルに回答してください","신고(Declaration) 탭의 D79 셀에 귀사의 공급업체가 이 분쟁광물 보고 템플릿(Conflict Minerals Reporting Template)을 작성하도록 귀사에서 요청하는지 여부를 답변하십시오. ","Répondez dans la cellule D79 de l'onglet Déclaration si vous demandez à vos fournisseurs de remplir ce modèle de rapport sur les minéraux en conflit","Responda se você solicita a seus fornecedores que preencham este Modelo de relatório de minerais de conflito na célula D79 da guia Declaração","Geben Sie in der Reiterzelle D79 der Erklärung an, ob Sie von Ihren Lieferanten verlangen, diese Vorlage zur Berichterstattung über Konfliktmineralien auszufüllen","Responda si solicita que sus proveedores llenen esta plantilla de reporte de minerales en conflicto en la pestaña Declaration (Declaración), D79","Rispondere se si richiede ai propri fornitori di completare il Modello del Rapporto sui Minerali del Conflitto nella cella D79 della scheda della Dichiarazione","Tedarikçilerinizin bu İhtilaf Konusu Maden Raporlama Şablonunu doldurmasını şart koşup koşmadığınızı Beyan sekmesi hücre D79'da belirtin."]
["CheckerJ57","Checker","J57","Answer if you request smelter names from your suppliers on the declaration tab cell D81","在“申报”选项卡 D81 单元格中，回答贵公司是否要求供应商提供冶炼厂名称","御社がサプライヤーに精錬業者名を要請する場合は、「申告」タブのD81セルに回答してください","신고(Declaration) 탭의 D81 셀에 귀사의 공급업체로부터 제련소 명칭을 요청하는지 여부를 답변하십시오. ","Répondez dans la cellule D81 de l'onglet Déclaration si vous demandez à vos fournisseurs de vous fournir les noms des fondeurs","Responda se você solicita nomes de fundições aos seus fornecedores na célula D81 da guia Declaração","Geben Sie in der Reiterzelle D81 der Erklärung an, ob Sie von Ihren Lieferanten Namen von Schmelzöfen verlangen","Responda si solicita los nombres de los fundidores de sus proveedores en la pestaña Declaration (Declaración), celda D81","Rispondere se si richiede ai propri fornitori i nomi delle fonderie nella cella D81 della scheda della Dichiarazione","Tedarikçilerinizin izabe tesisi adı vermelerini şart koşup koşmadığınızı Beyan sekmesi hücre D81'de belirtin."]
["CheckerJ58","Checker","J58","Answer if you verify responses from your suppliers against your company's expectations on Declaration tab cell D83","在“申报”选项卡 D83 单元格中，回答贵公司是否根据贵公司的期望来验证供应商的回答","サプライヤーからの回答を御社の期待と照合させて検証する場合には、「申告」タブのD83セルに回答してください","신고(Declaration) 탭의 D83 셀에 귀사의 기대사항과 비교해 귀사의 공급업체로부터의 응답내용을 확인하는지 여부를 답변하십시오. ","Répondez dans la cellule D83 de l'onglet Déclaration si vous validez les réponses de vos fournisseurs par rapport aux attentes de votre entreprise","Responda se você verifica as respostas de seus fornecedores com relação às expectativas da sua empresa na célula D83 da guia Declaração","Geben Sie in der Reiterzelle D83 der Erklärung an, ob Sie Antworten der Lieferanten auf die Anforderungen Ihres Unternehmens überprüfen","Responda si verifica las respuestas de sus proveedores frente a las expectativas de su compañía en la pestaña Declaration (Declaración), celda D83","Rispondere se si verificano le risposte dei propri fornitori rispetto alle aspettative della propria società nella cella D83 della scheda della Dichiarazione","Tedarikçi yanıtlarını şirket beklentileri ile karşılaştırarak doğrulayıp doğrulamadığınızı Beyan sekmesi hücre D83'te belirtin."]
["CheckerJ59","Checker","J59 ","Answer if your verification process includes corrective action management on Declaration tab cell D85","在“申报”选项卡 D85 单元格中，回答贵公司的验证流程是否包括纠正措施管理","御社の検証プロセスが是正措置の管理を含む場合は、「申告」タブのD85セルに回答してください","신고(Declaration) 탭의 D85 셀에 귀사의 확인 프로세스에 시정 조치 관리가 포함되어 있는지 여부를 답변하십시오. ","Répondez dans la cellule D85 de l'onglet Déclaration si votre processus de validation comprend des actions correctives de la part de la direction","Responda se o seu processo de verificação inclui a gestão de ações corretivas na célula D85 da guia Declaração","Geben Sie in der Reiterzelle D85 der Erklärung an, ob Ihr Prüfungsverfahren ein Abhilfemaßnahmen-Management umfasst","Responda si su proceso de verificación incluye la gestión de medidas correctivas en la pestaña Declaration (Declaración), celda D85","Rispondere se il proprio processo di verifica include la gestione di azioni correttive nella cella D85 della scheda della Dichiarazione","Doğrulama sürecinizin düzeltici eylem yönetimini içerip içermediğini Beyan sekmesi hücre D85'te belirtin."]
["CheckerJ60","Checker","J60","Answer if you are subject to the SEC Disclosure requirement on Declaration tab cell D87","在“申报”选项卡 D87 单元格中，回答贵公司是否需要遵守 SEC 披露要求","御社がSECの開示要件の対象となっている場合は、「申告」タブのD87セルに回答してください","신고(Declaration) 탭의 D87 셀에 귀사가 SEC 공개 요건을 따라야 하는지 답변하십시오. ","Répondez dans la cellule D87 de l'onglet Déclaration si vous êtes soumis aux exigences de divulgation de la SEC","Responda se você está sujeito à obrigação de divulgação na SEC na célula D87 da guia Declaração","Geben Sie in der Reiterzelle D87 der Erklärung an, ob Sie der Offenlegungspflicht gegenüber der SEC unterliegen","Responda si está sujeto al requerimiento de divulgación de la SEC en la pestaña Declaration (Declaración), celda D87","Rispondere se si è soggetti alla richiesta di Divulgazione della SEC (Security and Exchange Commission) nella cella D87 della scheda della Dichiarazione","SEC Açıklama gerekliliğine tâbi olup olmadığınızı Beyan sekmesi hücre D87'de belirtin."]
["CheckerJ61","Checker","J61","If applicable, provide 1 or more Products or Item Numbers this declaration applies to. From Declaration tab select hyperlink in cell 6H1 to enter Product List tab","如果合适，提供此申报所适用的一个或多个产品或项目编号。从“申报”选项卡 6H1 单元格中，选择超链接进入“产品列表”选项卡","該当する場合は、この申告が該当する1つ以上の製品または項目を記入してください。「申告」タブから6H1セルのハイパーリンクを選択し、「製品リスト」タブに進んでください","해당할 경우, 이 신고가 적용되는 1개 이상의 제품이나 항목 번호를 제공하십시오. 신고(Declaration) 탭에서 6H1 셀의 하이퍼링크를 선택하여 제품 목록(Product List) 탭으로 갑니다. ","Le cas échéant, fournissez un ou plusieurs numéros de produits ou d'articles auxquels cette déclaration s'applique. Dans l'onglet Déclaration, sélectionnez le lien hypertexte de la cellule 6H1 pour ouvrir l'onglet Liste de produits","Se aplicável, forneça um ou mais Produtos ou Números de itens aos quais esta declaração se aplica. Na guia Declaração, selecione o hiperlink na célula 6H1 para inserir a guia Lista de produtos","Nennen Sie ggf. ein oder mehr Produkte oder Gegenstandsnummern, auf die diese Erklärung anwendbar ist. Wählen Sie im Erklärungsreiter Hyperlink in Zelle 6H1, um den Reiter „Produktliste“ einzugeben","Si corresponde, proporcione uno o más productos o números de artículo a los que se aplica esta declaración. De la pestaña Declaration (Declaración), seleccione el hipervínculo en la celda 6H1 para ingresar a la pestaña Product List (Lista de productos)","Fornire, se pertinente, 1 o più Prodotti oppure Numeri di Articoli ai quali questa dichiarazione si applica. Dalla scheda della Dichiarazione selezionare l'hyperlink nella cella 6H1 per inserire la scheda della Lista dei Prodotti","Uygulanabilir ise, bu beyanın geçerli olduğu 1 veya daha fazla Ürün ya da Öğe Numarası sağlayın. Ürün Listesi sekmesine girmek için Beyan sekmesi hücre 6H1'den köprü bağlantı seçin"]
[null,null,null,"Provide list of smelters contributing material to supply chain on Smelter List tab","在“冶炼厂目录”选项卡中，提供向供应链提供材料的冶炼厂列表","サプライチェーンに鉱物を寄与している精錬業者のリストを、「精錬業者リスト」タブに記入してください","제련소 목록(Smelter List) 탭에서 공급망에 재료를 공급하는 제련소 목록을 제공하십시오. ","Saisissez la liste des fondeurs qui contribuent de manière importante à la chaîne d'approvisionnement sur l'onglet Liste de fondeurs.","Forneça a lista de fundições que contribuem com materiais para a cadeia de suprimentos na guia Lista de fundições","Geben Sie im Reiter „Schmelzöfenliste“ eine Liste von Schmelzöfen ein, die Material für die Lieferkette beitragen  ","Proporcione una lista del material de contribución de los fundidores a la cadena de suministro de la pestaña Smelter List (Lista de fundidores)","Fornire la lista delle fonderie che contribuiscono a fornire il materiale alla catena di fornitura nella scheda della Lista delle Fonderie","İzabe Tesisi Listesi sekmesinde tedarik zincirine materyal katkısı sunan izabe tesislerinin listesini sağlayın"]
["CheckerJ62","Checker","J62","Provide list of tantalum smelters contributing material to supply chain on Smelter List tab","在“冶炼厂目录”选项卡中，提供向供应链提供材料的钽冶炼厂列表","サプライチェーンに鉱物を寄与しているタンタル精錬業者のリストを、「精錬業者リスト」タブに記入してください","제련소 목록 (Smelter List) 탭에 공급망에 기여한  탄탈륨 제련소를 기입하십시오.","Saisissez la liste de fondeurs de tantale qui contribuent de manière importante à la chaîne d'approvisionnement sur l'onglet Liste de fondeurs.","Forneça a lista de fundições de tântalo que contribuem com materiais para a cadeia de suprimentos na guia Lista de fundições","Geben Sie im Reiter „Schmelzöfenliste“ eine Liste von Tantalum-Schmelzöfen ein, die Material für die Lieferkette beitragen  ","Proporcione una lista del material de contribución de los fundidores de tántalo a la cadena de suministro de la pestaña Smelter List (Lista de fundidores)","Fornire la lista delle fonderie di tantalio che contribuiscono a fornire il materiale alla catena di fornitura nella scheda della Lista delle Fonderie","İzabe Tesisi Listesi sekmesinde tedarik zincirine materyal katkısı sunan tantal izabe tesislerinin listesini sağlayın"]
["CheckerJ63","Checker","J63","Provide list of tin smelters contributing material to supply chain on Smelter List tab","在“冶炼厂目录”选项卡中，提供向供应链提供材料的锡冶炼厂列表","サプライチェーンに鉱物を寄与している錫精錬業者のリストを、「精錬業者リスト」タブに記入してください","제련소 목록 (Smelter List) 탭에 공급망에 기여한  주석 제련소를 기입하십시오.","Saisissez la liste de fondeurs d'étain qui contribuent de manière importante à la chaîne d'approvisionnement sur l'onglet Liste de fondeurs.","Forneça a lista de fundições de estanho que contribuem com materiais para a cadeia de suprimentos na guia Lista de fundições","Geben Sie im Reiter „Schmelzöfenliste“ eine Liste von Zinn-Schmelzöfen ein, die Material für die Lieferkette beitragen  ","Proporcione una lista del material de contribución de los fundidores de estaño a la cadena de suministro de la pestaña Smelter List (Lista de fundidores)","Fornire la lista delle fonderie di stagno che contribuiscono a fornire il materiale alla catena di fornitura nella scheda della Lista delle Fonderie","İzabe Tesisi Listesi sekmesinde tedarik zincirine materyal katkısı sunan kalay izabe tesislerinin listesini sağlayın"]
["CheckerJ64","Checker","J64","Provide list of gold smelters contributing material to supply chain on Smelter List tab","在“冶炼厂目录”选项卡中，提供向供应链提供材料的金冶炼厂列表","サプライチェーンに鉱物を寄与している金精錬業者のリストを、「精錬業者リスト」タブに記入してください","제련소 목록 (Smelter List) 탭에 공급망에 기여한  금 제련소를 기입하십시오.","Saisissez la liste de fondeurs d'or qui contribuent de manière importante à la chaîne d'approvisionnement sur l'onglet Liste de fondeurs.","Forneça a lista de fundições de ouro que contribuem com materiais para a cadeia de suprimentos na guia Lista de fundições","Geben Sie im Reiter „Schmelzöfenliste“ eine Liste von Gold-Schmelzöfen ein, die Material für die Lieferkette beitragen  ","Proporcione una lista del material de contribución de los fundidores de oro a la cadena de suministro de la pestaña Smelter List (Lista de fundidores)","Fornire la lista delle fonderie di oro che contribuiscono a fornire il materiale alla catena di fornitura nella scheda della Lista delle Fonderie","İzabe Tesisi Listesi sekmesinde tedarik zincirine materyal katkısı sunan altın izabe tesislerinin listesini sağlayın"]
["CheckerJ65","Checker","J65","Provide list of tungsten smelters contributing material to supply chain on Smelter List tab","在“冶炼厂目录”选项卡中，提供向供应链提供材料的钨冶炼厂列表","サプライチェーンに鉱物を寄与しているタングステン精錬業者のリストを、「精錬業者リスト」タブに記入してください","제련소 목록 (Smelter List) 탭에 공급망에 기여한  텅스텐 제련소를 기입하십시오.","Saisissez une liste de fondeurs de tungstène qui contribuent de manière importante à la chaîne d'approvisionnement sur l'onglet Liste de fondeurs.","Forneça a lista de fundições de tungstênio que contribuem com materiais para a cadeia de suprimentos na guia Lista de fundições","Geben Sie im Reiter „Schmelzöfenliste“ eine Liste von Tungsten-Schmelzöfen ein, die Material für die Lieferkette beitragen  ","Proporcione una lista del material de contribución de los fundidores de tungsteno a la cadena de suministro de la pestaña Smelter List (Lista de fundidores)","Fornire la lista delle fonderie di tungsteno che contribuiscono a fornire il materiale alla catena di fornitura nella scheda della Lista delle Fonderie","İzabe Tesisi Listesi sekmesinde tedarik zincirine materyal katkısı sunan tungsten izabe tesislerinin listesini sağlayın"]
[{"$f":"B297&C297","v":"CheckerL62"},"Checker","L62","Please answer Question 1 / Question 2 on Declaration tab","请回答“申报”选项卡中的问题 1/问题 2","宣言]タブの[質問1と2をお答えください","선언 (Declaration) 탭의 1번과 2번 질문에  답변하십시오.","S'il vous plaît répondre aux questions 1 et 2 sur l'onglet Déclaration","Por favor, responda às questões 1 e 2 na guia Declaração","Bitte beantworten Sie die Fragen 1 und 2 auf Erklärung Registerkarte","Por favor conteste las preguntas 1 y 2 de la pestaña Declaración","Si prega di rispondere a domande 1 e 2 nella scheda Dichiarazione","Lütfen Beyan sekmesindeki 1. ve 2. Soruları yanıtlayın"]
["CheckerL63","Checker","L63","Please answer Question 1 / Question 2 on Declaration tab","请回答“申报”选项卡中的问题 1/问题 2","宣言]タブの[質問1と2をお答えください","선언 (Declaration) 탭의 1번과 2번 질문에  답변하십시오.","S'il vous plaît répondre aux questions 1 et 2 sur l'onglet Déclaration","Por favor, responda às questões 1 e 2 na guia Declaração","Bitte beantworten Sie die Fragen 1 und 2 auf Erklärung Registerkarte","Por favor conteste las preguntas 1 y 2 de la pestaña Declaración","Si prega di rispondere a domande 1 e 2 nella scheda Dichiarazione","Lütfen Beyan sekmesindeki 1. ve 2. Soruları yanıtlayın"]
["CheckerL64","Checker","L64","Please answer Question 1 / Question 2 on Declaration tab","请回答“申报”选项卡中的问题 1/问题 2","宣言]タブの[質問1と2をお答えください","선언 (Declaration) 탭의 1번과 2번 질문에  답변하십시오.","S'il vous plaît répondre aux questions 1 et 2 sur l'onglet Déclaration","Por favor, responda às questões 1 e 2 na guia Declaração","Bitte beantworten Sie die Fragen 1 und 2 auf Erklärung Registerkarte","Por favor conteste las preguntas 1 y 2 de la pestaña Declaración","Si prega di rispondere a domande 1 e 2 nella scheda Dichiarazione","Lütfen Beyan sekmesindeki 1. ve 2. Soruları yanıtlayın"]
["CheckerL65","Checker","L65","Please answer Question 1 / Question 2 on Declaration tab","请回答“申报”选项卡中的问题 1/问题 2","宣言]タブの[質問1と2をお答えください","선언 (Declaration) 탭의 1번과 2번 질문에  답변하십시오.","S'il vous plaît répondre aux questions 1 et 2 sur l'onglet Déclaration","Por favor, responda às questões 1 e 2 na guia Declaração","Bitte beantworten Sie die Fragen 1 und 2 auf Erklärung Registerkarte","Por favor conteste las preguntas 1 y 2 de la pestaña Declaración","Si prega di rispondere a domande 1 e 2 nella scheda Dichiarazione","Lütfen Beyan sekmesindeki 1. ve 2. Soruları yanıtlayın"]
["Product ListA1","Product List","A1","Completion required only if reporting level \"Product (or List of Products)\" selected on the 'Declaration' worksheet.","如果“申报”工作表上选择的报告层面为“产品（或产品列表）”，才需要填写此项。 ","「Declaration（申告）」シートの申告範囲で「製品（又は製品リスト）」レベルを選択した場合のみ記入が必須となります","선언 워크시트에 선언범위가 \"제품 (또는  제품 목록)\" 적용시 완성 필요","Champ à compléter uniquement si le périmètre \"Produit (ou liste de produits)\" a été sélectionné dans la feuille 'Déclaration'","Completar somente se o nível do relatório \"Produto (ou lista de produtos)\" for selecionado na folha de cálculo da 'declaração'.","Abschluss nur erforderlich, wenn die Ebene \"Produkt (oder eine Liste von Produkten)\" auf der \"Erklärung\" Arbeitsblatt ausgewählt wurde-","Se requiere completar solamente si el nivel de reporte  \"Producto ( o Lista de productos)\" se selecciona en la pestaña de \"Declaración\".","Campo da compilare solo se  è stato selezionato il livello  \"Prodotto (o lista di prodotti)\" nel foglio \"Dichiarazione\"","Yalnızca 'Beyan' çalışma sayfasında bildirim düzeyi olarak \"Ürün (veya Ürün Listesi)\" seçili olduğunda doldurulması gerekmektedir."]
["Product ListB5","Product List","B5","Manufacturer’s Product Number (*)","制造商的产品序号 (*)","製造者の製品番号(*)","제조업체의 제품 번호 (*)","Référence du produit (*)","Número do produto do fabricante (*)","Produkt- oder Artikelnummer (*)","Numero de producto del manufacturador (*)","Codice del costruttore del prodotto (*)","İmalatçının Ürün Numarası (*)"]
["Product ListC5","Product List","C5","Manufacturer’s Product Name","制造商的产品名称","製造者の製品名","제조업체의 제품명","Nom du produit","Nome do produto do fabricante","Produkt- oder Artikelbeschreibung","Nombre del producto del manufacturador","Denominazione del costruttore del prodotto","İmalatçının Ürün Adı"]
["Product ListD5","Product List","D5","Comments",null,"備考","추가 내용","Commentaires","Comentários","Kommentare","Comentarios","Commenti","Açıklamalar"]
["GeneralCpy","General","Cpy","© 2018 Responsible Minerals Initiative. All rights reserved.","© 2018 Responsible Minerals Initiative。保留所有权利。","© 2018 Responsible Minerals Initiative. All rights reserved.","© 2018 Responsible Minerals Initiative. All rights reserved.","© 2018 Responsible Minerals Initiative. All rights reserved.","© 2018 Responsible Minerals Initiative. All rights reserved.","© 2018 Responsible Minerals Initiative. All rights reserved.","© 2018 Responsible Minerals Initiative. All rights reserved.","© 2018 Responsible Minerals Initiative. All rights reserved.","© 2018 Sorumlu Mineral Girişimi. Tüm hakları saklıdır."]
["GeneralCpy","General"]
[]
["Comments",null,null,"Select your company's Declaration Scope.  The options for scope are:\nA.  Company\nB.  Product (or List of Products)\nC.  User-Defined\n","选择贵公司的申报范围。范围的选项为：\nA. 公司\nB. 产品（或产品列表）\nC. 用户自定义\n\n","御社の申告範囲を選択してください。範囲の選択肢は以下のとおりです。\nA. Company（会社）\nB. Product (or List of Products)（製品（又は製品リスト））\nC. User-Defined（ユーザー定義）","귀사의 신고 범위를 선택하십시오. 신고 범위의 선택사항은 다음과 같습니다. \nA. 회사\nB. 제품(또는 제품 목록)\nC. 사용자 정의\n","Sélectionnez la portée de la déclaration de votre société. Les options de portée sont les suivantes :\nA. Société\nB. Produit (ou liste de produits)\nC. Définie par l’utilisateur","Selecione o Escopo da Declaração da sua empresa. As opções são:\nA. Empresa\nB. Produto (ou Lista de produtos)\nC. Definido pelo usuário","Wählen Sie den Erklärungsumfang Ihres Unternehmens aus. Die Auswahlmöglichkeiten für den Umfang sind:\nA. Unternehmen\nB. Produkt (oder Produktliste)\nC. Nutzerdefiniert","Seleccione el Enfoque de la declaración de su compañía. Las opciones para el enfoque son:\nA. Compañía\nB. Producto (o lista de productos)\nC. Definido por el usuario","Selezionare il perimetro di dichiarazione dell’Azienda. Le opzioni per il perimetro sono:\nA. Azienda\nB. Prodotto (o lista dei prodotti)\nC. Definito dall’utilizzatore/utente campi","Şirketinizin Beyan Kapsamını seçin. Kapsam seçenekleri aşağıdaki gibidir:\nA. Şirket\nB. Ürün (veya Ürün Listesi)\nC. Kullanıcı Tanımlı\n"]
["Comments",null,null,"Enter a valid email address for contact person here","在此处输入联系人的有效电子邮件地址。","連絡先担当者の有効な電子メールアドレスを入力してください","문의담당자 이메일 주소를 기입하시오.","Indiquer l' adresse email valide du contact","Adicione aqui um endereço de email válido para a pessoa de contacto.","Geben Sie hier eine gültige E-mail Adresse für den Ansprechpartner ein","Capture una dirección de email valida del contacto de la compañía aquí","Inserire un indizzo email valido della persona di riferimento","İrtibat kişisi için geçerli e-posta adresini buraya girin"]
["Comments",null,null,"Enter a valid email address for authorizing person here","在此处输入授权代表的有效电子邮件地址。","回答責任者の有効な電子メールアドレスを入力してください","정보책임 담당자 이메일 주소를 기입하시오.","Indiquer l' adresse email valide de la personne responsible","Adicione aqui um endereço de email válido para o representante legal da empresa.","Geben Sie eine gültige E-Mail Adresse für die bevollmächtigte Person hier ein","Capture una dirección de email valida del representante legal de la compañía aquí","Inserire un indirizzo email del rappresentante legale della società","İzin yetkilisi için geçerli e-posta adresini buraya girin"]
["Comments",null,null,"Please note the date this form was completed by your company\nDate must be displayed in international format DD-MMM-YYYY\n","请注意贵公司完成此表格的日期\n日期必须以“日-月-年”的格式显示\n","この書類が作成された日付を記入してください\n日付はDD-MMM-YYYYという形式で記述します（例: 01-JAN-2012)\n","문서 작성 완료 날짜를 기입하시오.  날짜는 DD-MMM-YYYY (예: 12-Jul-2012)로 표기하시오.","Merci d'indiquer la date à laquelle ce formulaire a été complété par votre entreprise. La date doit être indiquée au format international : JJ-MMM-AAAA.","Por favor, registe a data em que este formulário  foi preenchido pela sua empresa. A data deve ser apresentada em formato internacional DD-MMM-AAAA.","Bitte geben Sie das Datum an, an dem dieser Fragebogen von ihrer Firma ausgefüllt wurde.\nDas Datum muss im internationalen Format TT-MM-JJJJ  eingegeben werden.\n","Por favor anote la fecha en la cual esta forma se completo\nLa fecha debe ser escrita en el formato internacional  DD-MMM-AAAA\n","Indicare cortesemente la data di compilazione del presente modulo da parte della vostra società. La data deve essere indicata secondo il formato internazionale GG-MM-AAAA","Lütfen şirketinizin bu formu doldurduğu tarihi not edin\nTarih, uluslararası biçimde, GG-AAA-YYYY şeklinde yazılmalıdır\n"]
["Comments",null,null,"From the dropdown choose a response of \"Yes\" or \"No\"","从下拉列表中选择“是”或“不是”","ドロップダウンメニューから「Yes（はい）」又は「No（いいえ）」を選択してください","Yes = 예, No = 아니오","Sélectionner \"Yes\" (Oui) ou  \"No\" (Non) dans la liste déroulante","A partir da lista selecione a resposta: \"Sim\" ou \"Não\".","Wählen Sie aus der Drop-down Liste eine Antwort: \"Ja\" oder \"Nein\"","De las opciones elija la respuesta \"Si\" o \"No\" ","Dalle presente lista, scegliete la risposta: \"Si\" o \"No\"","Açılır menüden \"Evet\" veya \"Hayır\" yanıtını seçin"]
["Comments",null,null,"From the dropdown choose a response of \"Yes\", \"No\", or \"Unknown\"","从下拉菜单中选择一个回应: “是”、“不是”或“未知”","ドロップダウンメニューから、「Yes（はい）」、「No（いいえ）」又は「Unknown（不明）」を選択してください","Yes=예, No=아니오, Unknown= 파악되지 않음","Sélectionner \"Yes\" (Oui) ou  \"No\" (Non) ou \"Unknown\" (Inconnu) dans la liste déroulante","A partir da lista seleccione a resposta \"Sim\", \"Não\", ou \"desconhecido\".","Wählen Sie aus der Drop-down Liste eine Antwort:  \"Ja\", \"Nein\" oder \"Unbekannt\"","Del menú elija una respuesta de \"Si\", \"No\", o \"Desconocido\"","Dalle presente lista, scegliete la risposta: \"Si\", \"No\" o \"Non conosciuto\"","Açılır menüden \"Evet\", \"Hayır\" veya \"Bilinmiyor\" yanıtını seçin"]
["Comments",null,null,"From the dropdown choose a response of: “Yes, 100%”; “No, but greater than 75%”; “No, but greater than 50%”; “No, but greater than 25%”; “ No, but greater than 25%”; or “No, but less than 25%”; or “None”","从下拉菜单中选择一个回应: “是，100%”；“不是，但大于75%”；“不是，但大于 50%”；“不是，但大于 25%”；“不是，但小于 25%”；或“不是，完全没有”。","ドロップダウンメニューから、「Yes, 100%（はい、100%）」、「No, but greater than 75%（いいえ/75%超」、「No, but greater than 50%（いいえ/50%超）」、「No, but greater than 25%（いいえ/25%超）」、「No, but less than 25%（いいえ/25%未満）」又は「None（ゼロ）」を選択してください","드랍다운 메뉴에서 하나를 선택하시오: 예 100%; 아니오 하지만 75% 이상;  아니오 하지만 50% 이상; 아니오 하지만 25% 이상; 아니오 하지만 25% 미만; None = 없음","Dans le menu déroulant, choisir la réponse : Oui, Non mais > 75%, Non mais > 50%, Non mais > 25%, Non mais , 25 % ou Non - Aucun","A partir da lista seleccione a resposta: \"Sim, 100%\"; \"Não, mas superior a 75%\"; \"Não, mas superior a 50%\"; \"Não, mas superior a 25%\"; \"Não, mas inferior a 25%\"; ou \"Nenhum\".","Wählen Sie aus der Drop-down Liste eine Antwort:  \"Ja 100 %\",  \"Nein, aber mehr als 75 %\",  \"Nein, aber mehr als 50 %\",  \"Nein, aber mehr als 25 %\", \" Nein, aber mehr als 25 %\" oder \"Nein, aber weniger als 25 %\" oder \"Nein\"","Del menú elija una respuesta de \"Si, 100%\"; \" No, pero  > 75%\",\" No, pero  > 50%\", \"No, pero  >25%\", \"No, pero < 25%\", o No-ninguno","Dalla presente lista, scegliete la risposta: Si, ma non > 75%, No ma non  > 50%, No ma non  > 25%, No ma non < 25%, or No - niente","Açılır menüden aşağıdaki yanıtlardan birini seçin: “Evet, %100”; “Hayır, ancak %75'ten fazla”; “Hayır, ancak %50'den fazla”; “Hayır, ancak %25'ten fazla”; “Hayır, ancak %25'ten fazla” veya “Hayır, ancak %25'ten az” veya “Hiçbiri”"]

{"sheet":"C","index":9,"n_rows":250,"n_cols":2,"rows_kept":250,"cut":false,"hidden":true,"merged":[]}
["COUNTRY CODE LIST","FULL NAME"]
["AF","AFGHANISTAN"]
["AX","ÅLAND ISLANDS"]
["AL","ALBANIA"]
["DZ","ALGERIA"]
["AS","AMERICAN SAMOA"]
["AD","ANDORRA"]
["AO","ANGOLA"]
["AI","ANGUILLA"]
["AQ","ANTARCTICA"]
["AG","ANTIGUA AND BARBUDA"]
["AR","ARGENTINA"]
["AM","ARMENIA"]
["AW","ARUBA"]
["AU","AUSTRALIA"]
["AT","AUSTRIA"]
["AZ","AZERBAIJAN"]
["BS","BAHAMAS"]
["BH","BAHRAIN"]
["BD","BANGLADESH"]
["BB","BARBADOS"]
["BY","BELARUS"]
["BE","BELGIUM"]
["BZ","BELIZE"]
["BJ","BENIN"]
["BM","BERMUDA"]
["BT","BHUTAN"]
["BO","BOLIVIA (PLURINATIONAL STATE OF)"]
["BQ","BONAIRE, SINT EUSTATIUS AND SABA"]
["BA","BOSNIA AND HERZEGOVINA"]
["BW","BOTSWANA"]
["BV","BOUVET ISLAND"]
["BR","BRAZIL"]
["IO","BRITISH INDIAN OCEAN TERRITORY"]
["BN","BRUNEI DARUSSALAM"]
["BG","BULGARIA"]
["BF","BURKINA FASO"]
["BI","BURUNDI"]
["CV","CABO VERDE"]
["KH","CAMBODIA"]
["CM","CAMEROON"]
["CA","CANADA"]
["KY","CAYMAN ISLANDS"]
["CF","CENTRAL AFRICAN REPUBLIC"]
["TD","CHAD"]
["CL","CHILE"]
["CN","CHINA"]
["CX","CHRISTMAS ISLAND"]
["CC","COCOS (KEELING) ISLANDS"]
["CO","COLOMBIA"]
["KM","COMOROS"]
["CG","CONGO"]
["CD","CONGO, DEMOCRATIC REPUBLIC OF THE"]
["CK","COOK ISLANDS"]
["CR","COSTA RICA"]
["CI","CÔTE D'IVOIRE"]
["HR","CROATIA"]
["CU","CUBA"]
["CW","CURAÇAO"]
["CY","CYPRUS"]
["CZ","CZECH REPUBLIC"]
["DK","DENMARK"]
["DJ","DJIBOUTI"]
["DM","DOMINICA"]
["DO","DOMINICAN REPUBLIC"]
["EC","ECUADOR"]
["EG","EGYPT"]
["SV","EL SALVADOR"]
["GQ","EQUATORIAL GUINEA"]
["ER","ERITREA"]
["EE","ESTONIA"]
["ET","ETHIOPIA"]
["FK","FALKLAND ISLANDS (MALVINAS)"]
["FO","FAROE ISLANDS"]
["FJ","FIJI"]
["FI","FINLAND"]
["FR","FRANCE"]
["GF","FRENCH GUIANA"]
["PF","FRENCH POLYNESIA"]
["TF","FRENCH SOUTHERN TERRITORIES"]
["GA","GABON"]
["GM","GAMBIA"]
["GE","GEORGIA"]
["DE","GERMANY"]
["GH","GHANA"]
["GI","GIBRALTAR"]
["GR","GREECE"]
["GL","GREENLAND"]
["GD","GRENADA"]
["GP","GUADELOUPE"]
["GU","GUAM"]
["GT","GUATEMALA"]
["GG","GUERNSEY"]
["GN","GUINEA"]
["GW","GUINEA-BISSAU"]
["GY","GUYANA"]
["HT","HAITI"]
["HM","HEARD ISLAND AND MCDONALD ISLANDS"]
["VA","HOLY SEE"]
["HN","HONDURAS"]
["HK","HONG KONG"]
["HU","HUNGARY"]
["IS","ICELAND"]
["IN","INDIA"]
["ID","INDONESIA"]
["IR","IRAN (ISLAMIC REPUBLIC OF)"]
["IQ","IRAQ"]
["IE","IRELAND"]
["IM","ISLE OF MAN"]
["IL","ISRAEL"]
["IT","ITALY"]
["JM","JAMAICA"]
["JP","JAPAN"]
["JE","JERSEY"]
["JO","JORDAN"]
["KZ","KAZAKHSTAN"]
["KE","KENYA"]
["KI","KIRIBATI"]
["KP","KOREA (DEMOCRATIC PEOPLE'S REPUBLIC OF)"]
["KR","KOREA, REPUBLIC OF"]
["KW","KUWAIT"]
["KG","KYRGYZSTAN"]
["LA","LAO PEOPLE'S DEMOCRATIC REPUBLIC"]
["LV","LATVIA"]
["LB","LEBANON"]
["LS","LESOTHO"]
["LR","LIBERIA"]
["LY","LIBYA"]
["LI","LIECHTENSTEIN"]
["LT","LITHUANIA"]
["LU","LUXEMBOURG"]
["MO","MACAO"]
["MK","MACEDONIA, THE FORMER YUGOSLAV REPUBLIC OF"]
["MG","MADAGASCAR"]
["MW","MALAWI"]
["MY","MALAYSIA"]
["MV","MALDIVES"]
["ML","MALI"]
["MT","MALTA"]
["MH","MARSHALL ISLANDS"]
["MQ","MARTINIQUE"]
["MR","MAURITANIA"]
["MU","MAURITIUS"]
["YT","MAYOTTE"]
["MX","MEXICO"]
["FM","MICRONESIA (FEDERATED STATES OF)"]
["MD","MOLDOVA, REPUBLIC OF"]
["MC","MONACO"]
["MN","MONGOLIA"]
["ME","MONTENEGRO"]
["MS","MONTSERRAT"]
["MA","MOROCCO"]
["MZ","MOZAMBIQUE"]
["MM","MYANMAR"]
["NA","NAMIBIA"]
["NR","NAURU"]
["NP","NEPAL"]
["NL","NETHERLANDS"]
["NC","NEW CALEDONIA"]
["NZ","NEW ZEALAND"]
["NI","NICARAGUA"]
["NE","NIGER"]
["NG","NIGERIA"]
["NU","NIUE"]
["NF","NORFOLK ISLAND"]
["MP","NORTHERN MARIANA ISLANDS"]
["NO","NORWAY"]
["OM","OMAN"]
["PK","PAKISTAN"]
["PW","PALAU"]
["PS","PALESTINE, STATE OF"]
["PA","PANAMA"]
["PG","PAPUA NEW GUINEA"]
["PY","PARAGUAY"]
["PE","PERU"]
["PH","PHILIPPINES"]
["PN","PITCAIRN"]
["PL","POLAND"]
["PT","PORTUGAL"]
["PR","PUERTO RICO"]
["QA","QATAR"]
["RE","RÉUNION"]
["RO","ROMANIA"]
["RU","RUSSIAN FEDERATION"]
["RW","RWANDA"]
["BL","SAINT BARTHÉLEMY"]
["SH","SAINT HELENA, ASCENSION AND TRISTAN DA CUNHA"]
["KN","SAINT KITTS AND NEVIS"]
["LC","SAINT LUCIA"]
["MF","SAINT MARTIN (FRENCH PART)"]
["PM","SAINT PIERRE AND MIQUELON"]
["VC","SAINT VINCENT AND THE GRENADINES"]
["WS","SAMOA"]
["SM","SAN MARINO"]
["ST","SAO TOME AND PRINCIPE"]
["SA","SAUDI ARABIA"]
["SN","SENEGAL"]
["RS","SERBIA"]
["SC","SEYCHELLES"]
["SL","SIERRA LEONE"]
["SG","SINGAPORE"]
["SX","SINT MAARTEN (DUTCH PART)"]
["SK","SLOVAKIA"]
["SI","SLOVENIA"]
["SB","SOLOMON ISLANDS"]
["SO","SOMALIA"]
["ZA","SOUTH AFRICA"]
["GS","SOUTH GEORGIA AND THE SOUTH SANDWICH ISLANDS"]
["SS","SOUTH SUDAN"]
["ES","SPAIN"]
["LK","SRI LANKA"]
["SD","SUDAN"]
["SR","SURINAME"]
["SJ","SVALBARD AND JAN MAYEN"]
["SZ","SWAZILAND"]
["SE","SWEDEN"]
["CH","SWITZERLAND"]
["SY","SYRIAN ARAB REPUBLIC"]
["TW","TAIWAN, PROVINCE OF CHINA"]
["TJ","TAJIKISTAN"]
["TZ","TANZANIA, UNITED REPUBLIC OF"]
["TH","THAILAND"]
["TL","TIMOR-LESTE"]
["TG","TOGO"]
["TK","TOKELAU"]
["TO","TONGA"]
["TT","TRINIDAD AND TOBAGO"]
["TN","TUNISIA"]
["TR","TURKEY"]
["TM","TURKMENISTAN"]
["TC","TURKS AND CAICOS ISLANDS"]
["TV","TUVALU"]
["UG","UGANDA"]
["UA","UKRAINE"]
["AE","UNITED ARAB EMIRATES"]
["GB","UNITED KINGDOM OF GREAT BRITAIN AND NORTHERN  IRELAND"]
["UM","UNITED STATES MINOR OUTLYING ISLANDS"]
["US","UNITED STATES OF AMERICA"]
["UY","URUGUAY"]
["UZ","UZBEKISTAN"]
["VU","VANUATU"]
["VE","VENEZUELA (BOLIVARIAN REPUBLIC OF)"]
["VN","VIET NAM"]
["VG","VIRGIN ISLANDS (BRITISH)"]
["VI","VIRGIN ISLANDS (U.S.)"]
["WF","WALLIS AND FUTUNA"]
["EH","WESTERN SAHARA *"]
["YE","YEMEN"]
["ZM","ZAMBIA"]
["ZW","ZIMBABWE"]

{"sheet":"SorP","index":10,"n_rows":6230,"n_cols":2,"rows_kept":6230,"cut":false,"hidden":true,"merged":[]}
["Code","State / Province Name"]
["YE-AD","‘Adan"]
["JO-AJ","‘Ajlūn"]
["AE-AJ","‘Ajmān"]
["LB-AK","‘Akkār"]
["DJ-AS","‘Alī Şabīḩ"]
["YE-AM","‘Amrān"]
["ER-AN","‘Anseba"]
["DJ-AR","‘Artā"]
["ES-C","A Coruña [La Coruña]"]
["LB-AK","Aakkâr"]
["WS-AA","A'ana"]
["WS-AA","A'ana"]
["CH-AG","Aargau"]
["GB-ABE","Aberdeen City"]
["GB-ABD","Aberdeenshire"]
["NG-AB","Abia"]
["CI-AB","Abidjan"]
["UG-314","Abim"]
["GE-AB","Abkhazia"]
["PH-ABR","Abra"]
["PH-ABR","Abra"]
["IT-65","Abruzzo"]
["AZ-ABS","Abşeron"]
["AE-AZ","Abū Z̧aby"]
["NG-FC","Abuja Federal Capital Territory"]
["YE-AB","Abyan"]
["ID-AC","Aceh"]
["BS-AK","Acklins"]
["SM-01","Acquaviva"]
["BR-AC","Acre"]
["OM-DA","Ad Dākhilīyah"]
["YE-DA","Aḑ Ḑāli‘"]
["EG-DK","Ad Daqahlīyah"]
["QA-DA","Ad Dawḩah"]
["CM-AD","Adamaoua"]
["CM-AD","Adamaoua"]
["NG-AD","Adamawa"]
["TR-01","Adana"]
["LV-011","Ādažu novads"]
["ET-AA","Addis Ababa"]
["MV-01","Addu Atholhu"]
["ET-AA","Ādīs Ābeba"]
["TR-02","Adıyaman"]
["UG-301","Adjumani"]
["DZ-01","Adrar"]
["MR-07","Adrar"]
["RU-AD","Adygeja, Respublika"]
["RU-AD","Adygeya, Respublika"]
["ET-AF","Afar"]
["ET-AF","Āfar"]
["TR-03","Afyonkarahisar"]
["NE-1","Agadez"]
["MA-AGD","Agadir-Ida-Outanane"]
["UG-322","Agago"]
["MU-AG","Agalega Islands"]
["AZ-AGC","Ağcabədi"]
["AZ-AGM","Ağdam"]
["AZ-AGS","Ağdaş"]
["GR-69","Ágion Óros"]
["LV-001","Aglonas novads"]
["TR-04","Ağrı"]
["IT-AG","Agrigento"]
["AZ-AGA","Ağstafa"]
["AZ-AGU","Ağsu"]
["MX-AGU","Aguascalientes"]
["PH-AGN","Agusan del Norte"]
["PH-AGS","Agusan del Sur"]
["TM-A","Ahal"]
["SV-AH","Ahuachapán"]
["FI-01","Ahvenanmaan maakunta"]
["JP-23","Aichi"]
["WS-AL","Aiga-i-le-Tai"]
["WS-AL","Aiga-i-le-Tai"]
["TL-AL","Aileu"]
["TL-AL","Aileu"]
["MH-ALL","Ailinglaplap"]
["MH-ALL","Ailinglaplap"]
["MH-ALK","Ailuk"]
["MH-ALK","Ailuk"]
["PW-002","Aimeliik"]
["PW-002","Aimeliik"]
["FR-01","Ain"]
["DZ-44","Aïn Defla"]
["DZ-46","Aïn Témouchent"]
["TL-AN","Ainaro"]
["TL-AN","Ainaru"]
["PW-004","Airai"]
["PW-004","Airai"]
["CL-AI","Aisén del General Carlos Ibañez del Campo"]
["FR-02","Aisne"]
["JP-23","Aiti"]
["NR-01","Aiwo"]
["NR-01","Aiwo"]
["LV-002","Aizkraukles novads"]
["LV-003","Aizputes novads"]
["GE-AJ","Ajaria"]
["SI-001","Ajdovščina"]
["NO-02","Akershus"]
["NO-02","Akershus"]
["JP-05","Akita"]
["PH-AKL","Aklan"]
["PH-AKL","Aklan"]
["LT-01","Akmenė"]
["KZ-AKM","Akmolinskaja oblast'"]
["KZ-AKM","Akmolinskaya oblast'"]
["LV-004","Aknīstes novads"]
["TR-68","Aksaray"]
["KZ-AKT","Aktjubinskaja oblast'"]
["KZ-AKT","Aktyubinskaya oblast'"]
["NG-AK","Akwa Ibom"]
["JO-AQ","Al ‘Aqabah"]
["BH-13","Al ‘Āşimah"]
["KW-KU","Al ‘Āşimah"]
["JO-AM","Al ‘A̅şimah"]
["KW-AH","Al Aḩmadī"]
["IQ-AN","Al Anbār"]
["ER-MA","Al Awsaţ"]
["IL-M","Al Awsaţ"]
["SA-11","Al Bāḩah"]
["EG-BA","Al Baḩr al Aḩmar"]
["SD-RS","Al Baḩr al Aḩmar"]
["JO-BA","Al Balqā’"]
["IQ-BA","Al Başrah"]
["TD-BA","Al Baţḩah"]
["YE-BA","Al Bayḑā’"]
["LB-BI","Al Biqā‘"]
["EG-BH","Al Buḩayrah"]
["TD-LC","Al Buḩayrah"]
["OM-BU","Al Buraymī"]
["LY-BU","Al Buţnān"]
["KW-FA","Al Farwānīyah"]
["EG-FYM","Al Fayyūm"]
["AE-FU","Al Fujayrah"]
["EG-GH","Al Gharbīyah"]
["MA-HAO","Al Haouz"]
["SY-HA","Al Ḩasakah"]
["MA-HOC","Al Hoceïma"]
["YE-HU","Al Ḩudaydah"]
["SA-08","Al Ḩudūd ash Shamālīyah"]
["EG-ALX","Al Iskandarīyah"]
["EG-IS","Al Ismā'īlīyah"]
["LY-JA","Al Jabal al Akhḑar"]
["LY-JG","Al Jabal al Gharbī"]
["LY-JI","Al Jafārah"]
["KW-JA","Al Jahrā’"]
["LB-JA","Al Janūb"]
["ER-DU","Al Janūbī"]
["IL-D","Al Janūbī"]
["BH-14","Al Janūbīyah"]
["SA-12","Al Jawf"]
["YE-JA","Al Jawf"]
["SD-GZ","Al Jazīrah"]
["EG-GZ","Al Jīzah"]
["LY-JU","Al Jufrah"]
["JO-KA","Al Karak"]
["PS-HBN","Al Khalīl"]
["SD-KH","Al Kharţūm"]
["QA-KH","Al Khawr wa adh Dhakhīrah"]
["LY-KF","Al Kufrah"]
["SY-LA","Al Lādhiqīyah"]
["SA-03","Al Madīnah al Munawwarah"]
["JO-MA","Al Mafraq"]
["YE-MR","Al Mahrah"]
["YE-MW","Al Maḩwīt"]
["LY-MJ","Al Marj"]
["LY-MB","Al Marqab"]
["EG-MNF","Al Minūfīyah"]
["EG-MN","Al Minyā"]
["BH-15","Al Muḩarraq"]
["IQ-MU","Al Muthanná"]
["SD-GD","Al Qaḑārif"]
["IQ-QA","Al Qādisīyah"]
["EG-C","Al Qāhirah"]
["EG-KB","Al Qalyūbīyah"]
["SA-05","Al Qaşīm"]
["IL-JM","Al Quds"]
["PS-JEM","Al Quds"]
["SY-QU","Al Qunayţirah"]
["EG-LX","Al Uqşur"]
["EG-WAD","Al Wādī al Jadīd"]
["LY-WA","Al Wāḩāt"]
["QA-WA","Al Wakrah"]
["OM-WU","Al Wusţá"]
["US-AL","Alabama"]
["ES-A","Alacant*"]
["BR-AL","Alagoas"]
["CR-A","Alajuela"]
["US-AK","Alaska"]
["ES-VI","Álava"]
["RO-AB","Alba"]
["ES-AB","Albacete"]
["PH-ALB","Albay"]
["PH-ALB","Albay"]
["CA-AB","Alberta"]
["CA-AB","Alberta"]
["IR-32","Alborz"]
["UG-323","Alebtong"]
["IT-AL","Alessandria"]
["DZ-16","Alger"]
["DJ-AS","Ali Sabieh"]
["BJ-AL","Alibori"]
["ES-A","Alicante"]
["MV-02","Alifu Alifu"]
["MV-00","Alifu Dhaalu"]
["FR-03","Allier"]
["KZ-ALM","Almatinskaja oblast'"]
["KZ-ALM","Almatinskaya oblast'"]
["KZ-ALA","Almaty"]
["KZ-ALA","Almaty"]
["KZ-ALA","Almaty"]
["KZ-ALM","Almaty oblysy"]
["ES-AL","Almería"]
["WF-AL","Alo"]
["LV-005","Alojas novads"]
["FR-04","Alpes-de-Haute-Provence"]
["FR-06","Alpes-Maritimes"]
["LV-006","Alsungas novads"]
["GT-AV","Alta Verapaz"]
["RU-AL","Altaj, Respublika"]
["RU-ALT","Altajskij kraj"]
["RU-AL","Altay, Respublika"]
["RU-ALT","Altayskiy kray"]
["PY-16","Alto Paraguay"]
["PY-10","Alto Paraná"]
["LV-007","Alūksnes novads"]
["LT-AL","Alytaus apskritis"]
["LT-02","Alytaus miestas"]
["LT-03","Alytus"]
["RW-03","Amajyaruguru"]
["RW-05","Amajyepfo"]
["PY-13","Amambay"]
["YE-SA","Amānat al ‘Āşimah [city]"]
["BR-AP","Amapá"]
["ET-AM","Amara"]
["ET-AM","Āmara"]
["PE-AMA","Amarumayu"]
["PE-AMA","Amasunu"]
["TR-05","Amasya"]
["LV-008","Amatas novads"]
["BR-AM","Amazonas"]
["CO-AMA","Amazonas"]
["PE-AMA","Amazonas"]
["VE-Z","Amazonas"]
["US-AS","American Samoa (see also separate country code entry under AS)"]
["CY-04","Ammochostos"]
["TH-37","Amnat Charoen"]
["UG-315","Amolatar"]
["LK-33","Ampāntōṭṭai"]
["LK-52","Ampara"]
["LK-52","Ampāra"]
["LK-52","Ampāṟai"]
["UG-324","Amudat"]
["UG-216","Amuria"]
["RU-AMU","Amurskaja oblast'"]
["RU-AMU","Amurskaya oblast'"]
["UG-316","Amuru"]
["IE-CN","An Cabhán"]
["IE-CE","An Clár"]
["VN-44","An Giang"]
["IE-WH","An Iarmhí"]
["IE-LD","An Longfort"]
["IE-MH","An Mhí"]
["IE-M","An Mhumhain"]
["LB-NA","An Nabaţīyah"]
["IQ-NA","An Najaf"]
["SD-NW","An Nīl al Abyaḑ"]
["SD-NB","An Nīl al Azraq"]
["LY-NQ","An Nuqāţ al Khams"]
["NR-02","Anabar"]
["NR-02","Anabar"]
["NG-AN","Anambra"]
["GR-A","Anatolikí Makedonía kai Thráki"]
["PE-ANC","Ancash"]
["IT-AN","Ancona"]
["ES-AN","Andalucía"]
["IN-AN","Andaman and Nicobar Islands"]
["IN-AP","Andhra Pradesh"]
["UZ-AN","Andijon"]
["KM-G","Andjazîdja"]
["KM-A","Andjouân"]
["AD-07","Andorra la Vella"]
["ME-01","Andrijevica"]
["MD-AN","Anenii Noi"]
["NR-03","Anetan"]
["NR-03","Anetan"]
["TH-15","Ang Thong"]
["PW-010","Angaur"]
["PW-010","Angaur"]
["GB-ANS","Angus"]
["CN-34","Anhui"]
["NR-04","Anibare"]
["NR-04","Anibare"]
["KM-G","Anjazījah"]
["KM-A","Anjouan"]
["KM-A","Anjwān"]
["TR-06","Ankara"]
["SI-213","Ankaran"]
["PE-ANC","Ankashu"]
["DZ-23","Annaba"]
["GQ-AN","Annobon"]
["GQ-AN","Annobón"]
["GQ-AN","Ano Bom"]
["PE-ANC","Anqash"]
["SC-02","Ans Bwalo"]
["SC-03","Ans Etwal"]
["SC-01","Ans o Pen"]
["SC-05","Ans Royal"]
["ER-AN","Ansabā"]
["SC-01","Anse aux Pins"]
["SC-01","Anse aux Pins"]
["SC-02","Anse Boileau"]
["SC-02","Anse Boileau"]
["SC-03","Anse Etoile"]
["SC-03","Anse Étoile"]
["LC-01","Anse la Raye"]
["SC-05","Anse Royale"]
["SC-05","Anse Royale"]
["TR-07","Antalya"]
["MG-T","Antananarivo"]
["PH-ANT","Antike"]
["CO-ANT","Antioquia"]
["PH-ANT","Antique"]
["CL-AN","Antofagasta"]
["GB-ANN","Antrim and Newtownabbey"]
["MG-D","Antsiranana"]
["BE-VAN","Antwerpen"]
["LK-71","Anuradhapura"]
["LK-71","Anurādhapura"]
["LK-71","Anurātapuram"]
["LT-04","Anykščiai"]
["VE-B","Anzoátegui"]
["CN-92","Aomen (see also separate country code entry under MO)"]
["JP-02","Aomori"]
["IT-AO","Aosta"]
["IT-AO","Aoste"]
["MA-AOU","Aousserd (EH)"]
["UG-302","Apac"]
["SI-195","Apače"]
["PH-APA","Apayao"]
["PH-APA","Apayaw"]
["LV-009","Apes novads"]
["CH-AR","Appenzell Ausserrhoden"]
["CH-AI","Appenzell Innerrhoden"]
["VE-C","Apure"]
["PE-APU","Apurímac"]
["PE-APU","Apurimaq"]
["PE-APU","Apurimaq"]
["KZ-AKM","Aqmola oblysy"]
["KZ-AKT","Aqtöbe oblysy"]
["SY-RA","Ar Raqqah"]
["QA-RA","Ar Rayyān"]
["SA-01","Ar Riyāḑ"]
["ES-VI","Araba*"]
["MK-02","Aračinovo"]
["RO-AR","Arad"]
["AM-AG","Aragac̣otn"]
["ES-AR","Aragón"]
["VE-D","Aragua"]
["AM-AR","Ararat"]
["CO-ARA","Arauca"]
["IQ-AR","Arbīl"]
["IR-03","Ardabīl"]
["TR-75","Ardahan"]
["FR-07","Ardèche"]
["FR-08","Ardennes"]
["GB-AND","Ards and North Down"]
["PE-ARE","Arequipa"]
["IT-AR","Arezzo"]
["RO-AG","Argeș"]
["GB-AGB","Argyll and Bute"]
["MN-073","Arhangay"]
["RU-ARK","Arhangel'skaja oblast'"]
["MV-00","Ari Atholhu Dhekunuburi"]
["MV-02","Ari Atholhu Uthuruburi"]
["CL-AP","Arica y Parinacota"]
["FR-09","Ariège"]
["PS-JRH","Arīḩā wal Aghwār"]
["PE-ARE","Arikipa"]
["TT-ARI","Arima"]
["PE-ARE","Ariqipa"]
["US-AZ","Arizona"]
["US-AR","Arkansas"]
["YE-SU","Arkhabīl Suquţrá"]
["RU-ARK","Arkhangel'skaya oblast'"]
["GB-ABC","Armagh, Banbridge and Craigavon"]
["AM-AV","Armavir"]
["MH-ARN","Arno"]
["MH-ARN","Arno"]
["DJ-AR","Arta"]
["CU-15","Artemisa"]
["HT-AR","Artibonite"]
["UY-AR","Artigas"]
["TR-08","Artvin"]
["UG-303","Arua"]
["NL-AW","Aruba (see also separate country code entry under AW)"]
["IN-AR","Arunachal Pradesh"]
["TZ-01","Arusha"]
["IQ-SU","As Sulaymānīyah"]
["SY-SU","As Suwaydā'"]
["EG-SUZ","As Suways"]
["SH-AC","Ascension"]
["IT-AP","Ascoli Piceno"]
["TM-S","Aşgabat"]
["QA-MS","Ash Shamāl"]
["IL-Z","Ash Shamālī"]
["BH-17","Ash Shamālīyah"]
["SD-NO","Ash Shamālīyah"]
["AE-SH","Ash Shāriqah"]
["EG-SHR","Ash Sharqīyah"]
["SA-04","Ash Sharqīyah"]
["LB-AS","Ash Shimāl"]
["GH-AH","Ashanti"]
["SA-14","'Asīr"]
["MR-03","Assaba"]
["IN-AS","Assam"]
["MA-ASZ","Assa-Zag"]
["KZ-AST","Astana"]
["KZ-AST","Astana"]
["KZ-AST","Astana"]
["AZ-AST","Astara"]
["IT-AT","Asti"]
["RU-AST","Astrahanskaja oblast'"]
["RU-AST","Astrakhanskaya oblast'"]
["ES-O","Asturias"]
["ES-AS","Asturias, Principado de"]
["PY-ASU","Asunción"]
["EG-ASN","Aswān"]
["EG-AST","Asyūţ"]
["JO-AT","Aţ Ţafīlah"]
["CL-AT","Atacama"]
["BJ-AK","Atacora"]
["CO-ATL","Atlántico"]
["NI-AN","Atlántico Norte"]
["NI-AS","Atlántico Sur"]
["HN-AT","Atlántida"]
["BJ-AQ","Atlantique"]
["LA-AT","Attapu"]
["MT-01","Attard"]
["MT-01","Attard"]
["GR-I","Attikí"]
["WS-AT","Atua"]
["WS-AT","Atua"]
["KZ-ATY","Atyraū oblysy"]
["KZ-ATY","Atyrauskaja oblast'"]
["KZ-ATY","Atyrauskaya oblast'"]
["SC-04","Au Cap"]
["SC-04","Au Cap"]
["FR-10","Aube"]
["LV-010","Auces novads"]
["NZ-AUK","Auckland"]
["FR-11","Aude"]
["MH-AUR","Aur"]
["MH-AUR","Aur"]
["PH-AUR","Aurora"]
["PH-AUR","Aurora"]
["NO-09","Aust-Agder"]
["NO-09","Aust-Agder"]
["AU-ACT","Australian Capital Territory"]
["IS-7","Austurland"]
["PH-14","Autonomous Region in Muslim Mindanao (ARMM)"]
["FR-ARA","Auvergne-Rhône-Alpes"]
["PT-01","Aveiro"]
["IT-AV","Avellino"]
["FR-12","Aveyron"]
["ES-AV","Ávila"]
["UA-43","Avtonomna Respublika Krym"]
["DJ-OB","Awbūk"]
["SO-AW","Awdal"]
["PE-AYA","Ayacucho"]
["PE-AYA","Ayakuchu"]
["PE-AYA","Ayaquchu"]
["TR-09","Aydın"]
["MM-07","Ayeyarwady"]
["QA-ZA","Az̧ Z̧a‘āyin"]
["OM-ZA","Az̧ Z̧āhirah"]
["JO-AZ","Az Zarqā’"]
["LY-ZA","Az Zāwiyah"]
["PK-JK","Azad Kashmir"]
["PK-JK","Āzād Kashmīr"]
["IR-02","Āz̄ārbāyjān-e Ghārbī"]
["IR-01","Āz̄ārbāyjān-e Shārqī"]
["MA-AZI","Azilal"]
["DO-02","Azua"]
["EC-A","Azuay"]
["LB-BH","B‘alabak-Al Hirmil"]
["FJ-01","Ba"]
["VN-43","Bà Rịa - Vũng Tàu"]
["MV-20","Baa"]
["LB-BH","Baalbek-Hermel"]
["KH-2","Baat Dambang"]
["AZ-BAB","Babək"]
["IQ-BB","Bābil"]
["LV-012","Babītes novads"]
["VN-54","Bắc Giang"]
["VN-53","Bắc Kạn"]
["VN-55","Bạc Liêu"]
["VN-56","Bắc Ninh"]
["RO-BC","Bacău"]
["HU-BK","Bács-Kiskun"]
["ES-BA","Badajoz"]
["AF-BDS","Badakhshān"]
["AF-BDS","Badakhshān"]
["DE-BW","Baden-Württemberg"]
["AF-BDG","Bādghīs"]
["AF-BDG","Bādghīs"]
["LK-81","Badulla"]
["LK-81","Badulla"]
["CY-05","Baf"]
["GW-BA","Bafatá"]
["BD-05","Bagerhat"]
["IQ-BG","Baghdād"]
["AF-BGL","Baghlān"]
["AF-BGL","Baghlān"]
["NP-BA","Bagmati"]
["MM-02","Bago"]
["BR-BA","Bahia"]
["TD-BG","Baḩr al Ghazāl"]
["TD-BG","Bahr el Ghazal"]
["SC-06","Baie Lazare"]
["SC-06","Baie Lazare"]
["SC-07","Baie Sainte Anne"]
["SC-07","Baie Sainte-Anne"]
["IE-D","Baile Átha Cliath"]
["NR-05","Baiti"]
["NR-05","Baiti"]
["MX-BCN","Baja California"]
["MX-BCS","Baja California Sur"]
["GT-BV","Baja Verapaz"]
["KZ-BAY","Bajkonyr"]
["UM-81","Baker Island"]
["AZ-BA","Bakı"]
["SO-BK","Bakool"]
["MW-BA","Balaka"]
["MW-BA","Balaka"]
["AZ-BAL","Balakən"]
["LV-013","Baldones novads"]
["BF-BAL","Balé"]
["ES-PM","Balears [Baleares]"]
["ID-BA","Bali"]
["TR-10","Balıkesir"]
["TM-B","Balkan"]
["AF-BAL","Balkh"]
["AF-BAL","Balkh"]
["PK-BA","Balochistan"]
["PK-BA","Balōchistān"]
["MD-BA","Bălți"]
["LV-014","Baltinavas novads"]
["LV-015","Balvu novads"]
["MT-02","Balzan"]
["MT-02","Balzan"]
["LI-01","Balzers"]
["BF-BAM","Bam"]
["ML-BKO","Bamako"]
["CF-BB","Bamïngï-Bangoran"]
["CF-BB","Bamingui-Bangoran"]
["AF-BAM","Bāmyān"]
["AF-BAM","Bāmyān"]
["SO-BN","Banaadir"]
["BD-01","Bandarban"]
["LY-BA","Banghāzī"]
["CF-BGF","Bangî"]
["CF-BGF","Bangui"]
["EG-BNS","Banī Suwayf"]
["GM-B","Banjul"]
["SK-BC","Banskobystrický kraj"]
["KH-1","Banteay Mean Chey"]
["KH-1","Bântéay Méanchey"]
["ID-BT","Banten"]
["BF-BAN","Banwa"]
["DO-03","Baoruco"]
["ME-02","Bar"]
["DO-04","Barahona"]
["HU-BA","Baranya"]
["AG-10","Barbuda"]
["ES-B","Barcelona [Barcelona]"]
["BD-02","Barguna"]
["IT-BA","Bari"]
["SO-BR","Bari"]
["GY-BA","Barima-Waini"]
["VE-E","Barinas"]
["KE-01","Baringo"]
["BD-A","Barisal"]
["BD-06","Barisal"]
["GB-BDG","Barking and Dagenham"]
["IT-BT","Barletta-Andria-Trani"]
["GB-BNE","Barnet"]
["GB-BNS","Barnsley"]
["TR-74","Bartın"]
["MD-BS","Basarabeasca"]
["CH-BL","Basel-Landschaft"]
["CH-BS","Basel-Stadt"]
["RU-BA","Bashkortostan, Respublika"]
["PH-BAS","Basilan"]
["PH-BAS","Basilan"]
["IT-77","Basilicata"]
["RU-BA","Baškortostan, Respublika"]
["LK-1","Basnāhira paḷāta"]
["FR-67","Bas-Rhin"]
["CI-BS","Bas-Sassandra"]
["CF-BK","Basse-Kotto"]
["CD-BU","Bas-Uélé"]
["PH-BAN","Bataan"]
["PH-BAN","Bataan"]
["PH-BTN","Batanes"]
["PH-BTN","Batanes"]
["PH-BTG","Batangas"]
["PH-BTG","Batangas"]
["KH-2","Bătdâmbâng"]
["GB-BAS","Bath and North East Somerset"]
["TD-BA","Batha"]
["KG-B","Batken"]
["KG-B","Batkenskaja oblast'"]
["KG-B","Batkenskaya oblast'"]
["TR-72","Batman"]
["DZ-05","Batna"]
["LK-51","Batticaloa"]
["KZ-ZAP","Batys Qazaqstan oblysy"]
["TL-BA","Baucau"]
["NG-BA","Bauchi"]
["TL-BA","Baukau"]
["LV-016","Bauskas novads"]
["SO-BY","Bay"]
["NZ-BOP","Bay of Plenty"]
["MN-069","Bayanhongor"]
["MN-071","Bayan-Ölgiy"]
["TR-69","Bayburt"]
["NG-BY","Bayelsa"]
["DE-BY","Bayern"]
["KZ-BAY","Baykonyr"]
["KZ-BAY","Bayqongyr"]
["LB-BA","Bayrūt"]
["PS-BTH","Bayt Laḩm"]
["BF-BAZ","Bazèga"]
["SC-06","Be Lazar"]
["SC-07","Be Sent Ann"]
["MU-BR","Beau Bassin-Rose Hill"]
["SC-08","Beau Vallon"]
["SC-08","Beau Vallon"]
["DZ-08","Béchar"]
["GB-BDF","Bedford"]
["CN-11","Beijing"]
["PT-02","Beja"]
["TN-31","Béja"]
["DZ-06","Béjaïa"]
["HU-BE","Békés"]
["HU-BC","Békéscsaba"]
["SC-09","Bel Air"]
["SC-09","Bel Air"]
["SC-10","Bel Ombre"]
["SC-10","Bel Ombre"]
["BN-BE","Belait"]
["BN-BE","Belait"]
["SC-09","Beler"]
["GB-BFS","Belfast"]
["RU-BEL","Belgorodskaja oblast'"]
["RU-BEL","Belgorodskaya oblast'"]
["BZ-BZ","Belize"]
["IT-BL","Belluno"]
["SC-10","Belonm"]
["SI-002","Beltinci"]
["TN-13","Ben Arous"]
["MA-BES","Ben Slimane"]
["VN-50","Bến Tre"]
["MD-BD","Bender [Tighina]"]
["SI-148","Benedikt"]
["CZ-201","Benešov"]
["IT-BN","Benevento"]
["PH-BEN","Benget"]
["ID-BE","Bengkulu"]
["AO-BGO","Bengo"]
["AO-BGU","Benguela"]
["PH-BEN","Benguet"]
["MA-BEM","Beni Mellal"]
["ET-BE","Benshangul-Gumaz"]
["NG-BE","Benue"]
["RS-00","Beograd"]
["LB-BI","Béqaa"]
["ME-03","Berane"]
["AL-01","Berat"]
["AZ-BAR","Bərdə"]
["LS-D","Berea"]
["LS-D","Berea"]
["IT-BG","Bergamo"]
["MA-BER","Berkane"]
["DE-BE","Berlin"]
["CH-BE","Bern"]
["CH-BE","Berne"]
["CZ-202","Beroun"]
["MK-03","Berovo"]
["BS-BY","Berry Islands"]
["PS-BTH","Bethlehem"]
["LV-017","Beverīnas novads"]
["GB-BEX","Bexley"]
["GN-BE","Beyla"]
["AZ-BEY","Beyləqan"]
["LB-BA","Beyrouth"]
["NP-BH","Bheri"]
["BD-07","Bhola"]
["PH-05","Bicol (Region V)"]
["AO-BIE","Bié"]
["IT-BI","Biella"]
["IN-BR","Bihar"]
["RO-BH","Bihor"]
["ME-04","Bijelo Polje"]
["MH-KIL","Bikini and Kili"]
["MH-KIL","Bikini and Kili"]
["TR-11","Bilecik"]
["AZ-BIL","Biləsuvar"]
["PH-BIL","Biliran"]
["PH-BIL","Biliran"]
["BS-BI","Bimini"]
["TR-12","Bingöl"]
["VN-31","Bình Định"]
["VN-57","Bình Dương"]
["VN-58","Bình Phước"]
["VN-40","Bình Thuận"]
["ET-BE","Bīnshangul Gumuz"]
["CL-BI","Biobío"]
["GQ-BN","Bioko Nord"]
["GQ-BN","Bioko Norte"]
["GQ-BN","Bioko Norte"]
["GQ-BS","Bioko Sud"]
["GQ-BS","Bioko Sul"]
["GQ-BS","Bioko Sur"]
["GW-BM","Biombo"]
["MT-03","Birgu"]
["MT-03","Birgu"]
["FI-11","Birkaland"]
["MT-04","Birkirkara"]
["MT-04","Birkirkara"]
["GB-BIR","Birmingham"]
["LT-05","Birštono"]
["LT-06","Biržai"]
["MT-05","Birżebbuġa"]
["MT-05","Birżebbuġa"]
["KG-GB","Bishkek"]
["DZ-07","Biskra"]
["GW-BS","Bissau"]
["SI-149","Bistrica ob Sotli"]
["RO-BN","Bistrița-Năsăud"]
["TR-13","Bitlis"]
["MK-04","Bitola"]
["TN-23","Bizerte"]
["ES-BI","Bizkaia"]
["HR-07","Bjelovarsko-bilogorska županija"]
["BS-BP","Black Point"]
["MU-BL","Black River"]
["GB-BBD","Blackburn with Darwen"]
["GB-BPL","Blackpool"]
["GB-BGW","Blaenau Gwent"]
["BG-01","Blagoevgrad"]
["CZ-641","Blansko"]
["MW-BL","Blantyre"]
["MW-BL","Blantyre"]
["SI-003","Bled"]
["SE-K","Blekinge län [SE-10]"]
["DZ-09","Blida"]
["SI-150","Bloke"]
["SD-NB","Blue Nile"]
["CV-BV","Boa Vista"]
["NI-BO","Boaco"]
["TL-BO","Bobonaro"]
["TL-BO","Bobonaru"]
["PA-1","Bocas del Toro"]
["NR-06","Boe"]
["NR-06","Boe"]
["GN-BF","Boffa"]
["MK-05","Bogdanci"]
["MK-06","Bogovinje"]
["BD-03","Bogra"]
["SI-004","Bohinj"]
["PH-BOH","Bohol"]
["PH-BOH","Bohol"]
["GN-B","Boké"]
["GN-BK","Boké"]
["LA-BK","Bokèo"]
["ZA-NW","Bokone Bophirima"]
["GW-BL","Bolama"]
["LA-BL","Bolikhamxai"]
["CO-BOL","Bolívar"]
["EC-B","Bolívar"]
["VE-F","Bolívar"]
["IT-BO","Bologna"]
["GB-BOL","Bolton"]
["TR-14","Bolu"]
["IT-BZ","Bolzano"]
["KE-02","Bomet"]
["LR-BM","Bomi"]
["BQ-BO","Bonaire"]
["BQ-BO","Bonaire"]
["NL-BQ1","Bonaire (see also separate country code entry under BQ)"]
["BQ-BO","Boneiru"]
["LR-BG","Bong"]
["PY-19","Boquerón"]
["DZ-34","Bordj Bou Arréridj"]
["SM-06","Borgo Maggiore"]
["BJ-BO","Borgou"]
["TD-BO","Borkou"]
["MT-06","Bormla"]
["MT-06","Bormla"]
["NG-BO","Borno"]
["SI-005","Borovnica"]
["RS-14","Borski okrug"]
["HU-BZ","Borsod-Abaúj-Zemplén"]
["MK-07","Bosilovo"]
["RO-BT","Botoșani"]
["FR-13","Bouches-du-Rhône"]
["BF-01","Boucle du Mouhoun"]
["CG-11","Bouenza"]
["PG-NSB","Bougainville"]
["BF-BGR","Bougouriba"]
["DZ-10","Bouira"]
["MA-BOD","Boujdour (EH)"]
["MA-BOM","Boulemane"]
["BF-BLG","Boulgou"]
["BF-BLK","Boulkiemdé"]
["DZ-35","Boumerdès"]
["FR-BFC","Bourgogne-Franche-Comté"]
["GB-BMH","Bournemouth"]
["SC-08","Bovalon"]
["SI-006","Bovec"]
["CO-BOY","Boyacá"]
["IT-BZ","Bozen"]
["BE-WBR","Brabant wallon"]
["GB-BRC","Bracknell Forest"]
["GB-BRD","Bradford"]
["PT-03","Braga"]
["PT-04","Bragança"]
["BD-04","Brahmanbaria"]
["RO-BR","Brăila"]
["MR-05","Brakna"]
["DE-BB","Brandenburg"]
["RS-11","Braničevski okrug"]
["SI-151","Braslovče"]
["RO-BV","Brașov"]
["SK-BL","Bratislavský kraj"]
["CV-BR","Brava"]
["CG-BZV","Brazzaville"]
["BA-BRC","Brčko distrikt"]
["BA-BRC","Brčko distrikt"]
["BA-BRC","Brčko distrikt"]
["SI-007","Brda"]
["CZ-644","Břeclav"]
["DE-HB","Bremen"]
["GB-BEN","Brent"]
["IT-BS","Brescia"]
["BY-BR","Bresckaja voblasć"]
["BY-BR","Brestskaja oblast'"]
["BY-BR","Brestskaya oblast'"]
["BY-BR","Brestskaya voblasts'"]
["FR-BRE","Bretagne"]
["SI-009","Brežice"]
["SI-008","Brezovica"]
["MD-BR","Briceni"]
["GB-BGE","Bridgend [Pen-y-bont ar Ogwr GB-POG]"]
["GB-BNH","Brighton and Hove"]
["IT-BR","Brindisi"]
["GB-BST","Bristol, City of"]
["CA-BC","British Columbia"]
["RU-BRY","Brjanskaja oblast'"]
["CZ-642","Brno-město"]
["CZ-643","Brno-venkov"]
["LV-018","Brocēnu novads"]
["HR-12","Brodsko-posavska županija"]
["SR-BR","Brokopondo"]
["GB-BRY","Bromley"]
["GH-BA","Brong-Ahafo"]
["BN-BM","Brunei-Muara"]
["BN-BM","Brunei-Muara"]
["CZ-801","Bruntál"]
["BE-BRU","Brussels Hoofdstedelijk Gewest"]
["BE-BRU","Bruxelles-Capitale, Région de"]
["MK-08","Brvenica"]
["RU-BRY","Bryanskaya oblast'"]
["FJ-02","Bua"]
["NR-07","Buada"]
["NR-07","Buada"]
["BI-BB","Bubanza"]
["BI-BB","Bubanza"]
["GB-BKM","Buckinghamshire"]
["RO-B","București"]
["UG-217","Budaka"]
["HU-BU","Budapest"]
["UG-218","Bududa"]
["ME-05","Budva"]
["TH-38","Bueng Kan"]
["AR-B","Buenos Aires"]
["UG-201","Bugiri"]
["UG-420","Buhweju"]
["UG-117","Buikwe"]
["BI-BM","Bujumbura Mairie"]
["BI-BM","Bujumbura Mairie"]
["BI-BL","Bujumbura Rural"]
["BI-BL","Bujumbura Rural"]
["UG-219","Bukedea"]
["PH-BUK","Bukidnon"]
["PH-BUK","Bukidnon"]
["UG-118","Bukomansibi"]
["UG-220","Bukwa"]
["PH-BUL","Bulacan"]
["PH-BUL","Bulakan"]
["UG-225","Bulambuli"]
["ZW-BU","Bulawayo"]
["MN-067","Bulgan"]
["UG-416","Buliisa"]
["BT-33","Bumthang"]
["UG-401","Bundibugyo"]
["KE-03","Bungoma"]
["EG-PTS","Būr Sa‘īd"]
["TR-15","Burdur"]
["BG-02","Burgas"]
["AT-1","Burgenland"]
["ES-BU","Burgos"]
["TH-31","Buri Ram"]
["RU-BU","Burjatija, Respublika"]
["TD-BO","Būrkū"]
["TR-16","Bursa"]
["LV-019","Burtnieku novads"]
["BI-BR","Bururi"]
["BI-BR","Bururi"]
["GB-BUR","Bury"]
["RU-BU","Buryatiya, Respublika"]
["KR-26","Busan-gwangyeoksi"]
["IR-06","Būshehr"]
["UG-402","Bushenyi"]
["KE-04","Busia"]
["UG-202","Busia"]
["NO-06","Buskerud"]
["NO-06","Buskerud"]
["UG-221","Butaleja"]
["UG-119","Butambala"]
["LS-B","Butha-Buthe"]
["LS-B","Butha-Buthe"]
["UG-120","Buvuma"]
["UZ-BU","Buxoro"]
["UG-226","Buyende"]
["RO-BZ","Buzău"]
["VN-59","Cà Mau"]
["PY-5","Caaguazú"]
["PY-6","Caazapá"]
["SV-CA","Cabañas"]
["AO-CAB","Cabinda"]
["MZ-P","Cabo Delgado"]
["ES-CC","Cáceres"]
["GW-CA","Cacheu"]
["ES-CA","Cádiz"]
["GB-CAY","Caerphilly [Caerffili GB-CAF]"]
["PH-CAG","Cagayan"]
["PH-02","Cagayan Valley (Region II)"]
["IT-CA","Cagliari"]
["MD-CA","Cahul"]
["PE-CAJ","Cajamarca"]
["FJ-03","Cakaudrove"]
["PH-40","Calabarzon (Region IV-A)"]
["IT-78","Calabria"]
["MD-CL","Călărași"]
["RO-CL","Călărași"]
["CO-CAL","Caldas"]
["GB-CLD","Calderdale"]
["US-CA","California"]
["IT-CL","Caltanissetta"]
["FR-14","Calvados"]
["CU-09","Camagüey"]
["PH-CAN","Camarines Norte"]
["PH-CAS","Camarines Sur"]
["GB-CAM","Cambridgeshire"]
["GB-CMD","Camden"]
["PH-CAM","Camiguin"]
["IT-72","Campania"]
["MX-CAM","Campeche"]
["IT-CB","Campobasso"]
["VN-CT","Can Tho"]
["TR-17","Çanakkale"]
["EC-F","Cañar"]
["ES-CN","Canarias"]
["LC-12","Canaries"]
["UY-CA","Canelones"]
["AD-02","Canillo"]
["PY-14","Canindeyú"]
["TR-18","Çankırı"]
["SI-152","Cankova"]
["BI-CA","Cankuzo"]
["BI-CA","Cankuzo"]
["ES-CB","Cantabria"]
["ES-S","Cantabria"]
["FR-15","Cantal"]
["MD-CT","Cantemir"]
["NZ-CAN","Canterbury"]
["VN-04","Cao Bằng"]
["LU-CA","Capellen"]
["LU-CA","Capellen"]
["SB-CT","Capital Territory (Honiara)"]
["PH-CAP","Capiz"]
["CO-CAQ","Caquetá"]
["VE-G","Carabobo"]
["PH-13","Caraga (Region XIII)"]
["RO-CS","Caraș-Severin"]
["NI-CA","Carazo"]
["IT-CI","Carbonia-Iglesias"]
["EC-C","Carchi"]
["GB-CRF","Cardiff [Caerdydd GB-CRD]"]
["MU-CC","Cargados Carajos Shoals"]
["IE-CW","Carlow"]
["GB-CMN","Carmarthenshire [Sir Gaerfyrddin GB-GFY]"]
["LV-020","Carnikavas novads"]
["CR-C","Cartago"]
["MA-CAS","Casablanca"]
["CO-CAS","Casanare"]
["SC-11","Cascade"]
["SC-11","Cascade"]
["BF-02","Cascades"]
["IT-CE","Caserta"]
["MK-80","Čaška"]
["ES-CS","Castelló*"]
["ES-CS","Castellón"]
["PT-05","Castelo Branco"]
["ES-CL","Castilla y León"]
["ES-CM","Castilla-La Mancha"]
["LC-02","Castries"]
["BS-CI","Cat Island"]
["ES-CT","Catalunya [Cataluña]"]
["AR-K","Catamarca"]
["PH-CAT","Catanduanes"]
["IT-CT","Catania"]
["IT-CZ","Catanzaro"]
["CO-CAU","Cauca"]
["MD-CS","Căușeni"]
["GB-CCG","Causeway Coast and Glens"]
["IE-CN","Cavan"]
["PH-CAV","Cavite"]
["BZ-CY","Cayo"]
["BR-CE","Ceará"]
["IE-CW","Ceatharlach"]
["AZ-CAB","Cəbrayıl"]
["PH-CEB","Cebu"]
["RU-CE","Čečenskaja Respublika"]
["AZ-CAL","Cəlilabad"]
["RU-CHE","Čeljabinskaja oblast'"]
["SI-011","Celje"]
["MK-78","Centar Župa"]
["BW-CE","Central"]
["FJ-C","Central"]
["GH-CP","Central"]
["MV-CE","Central"]
["NP-1","Central"]
["PG-CPM","Central"]
["PY-11","Central"]
["SB-CE","Central"]
["UG-C","Central"]
["ZM-02","Central"]
["BS-CO","Central Abaco"]
["BS-CS","Central Andros"]
["GB-CBF","Central Bedfordshire"]
["SD-DC","Central Darfur"]
["BS-CE","Central Eleuthera"]
["SS-EC","Central Equatoria"]
["PH-03","Central Luzon (Region III)"]
["LK-2","Central Province"]
["MW-C","Central Region"]
["GM-M","Central River"]
["SG-01","Central Singapore"]
["PH-07","Central Visayas (Region VII)"]
["TG-C","Centrale"]
["BF-03","Centre"]
["CM-CE","Centre"]
["CM-CE","Centre"]
["HT-CE","Centre"]
["BF-04","Centre-Est"]
["BF-05","Centre-Nord"]
["BF-06","Centre-Ouest"]
["BF-07","Centre-Sud"]
["FR-CVL","Centre-Val de Loire"]
["GQ-CS","Centro Sud"]
["GQ-CS","Centro Sul"]
["GQ-CS","Centro Sur"]
["GB-CGN","Ceredigion [Sir Ceredigion]"]
["SI-012","Cerklje na Gorenjskem"]
["SI-013","Cerknica"]
["SI-014","Cerkno"]
["SI-153","Cerkvenjak"]
["UY-CL","Cerro Largo"]
["CO-CES","Cesar"]
["MK-81","Češinovo-Obleševo"]
["CZ-511","Česká Lípa"]
["CZ-311","České Budějovice"]
["CZ-312","Český Krumlov"]
["LV-022","Cēsu novads"]
["LV-021","Cesvaines novads"]
["ME-06","Cetinje"]
["ES-CE","Ceuta"]
["TH-24","Chachoengsao"]
["AR-H","Chaco"]
["KP-04","Chagang-do"]
["TT-CHA","Chaguanas"]
["IR-08","Chahār Maḩāl va Bakhtīārī"]
["TH-18","Chai Nat"]
["TH-36","Chaiyaphum"]
["MW-N","Chakumpoto"]
["MW-S","Chakumwera"]
["SV-CH","Chalatenango"]
["LA-CH","Champasak"]
["IN-CH","Chandigarh"]
["BD-09","Chandpur"]
["TW-CHA","Changhua"]
["TH-22","Chanthaburi"]
["MA-09","Chaouia-Ouardigha"]
["BD-45","Chapai Nawabganj"]
["MW-C","Chapakati"]
["LK-9","Chappirakamuva mākāṇam"]
["FR-16","Charente"]
["FR-17","Charente-Maritime"]
["TD-CB","Chari-Baguirmi"]
["VC-01","Charlotte"]
["NZ-CIT","Chatham Islands Territory"]
["CZ-411","Cheb"]
["RU-CE","Chechenskaya Respublika"]
["MA-CHE","Chefchaouen"]
["RU-CHE","Chelyabinskaya oblast'"]
["FR-18","Cher"]
["UA-71","Cherkaska oblast"]
["UA-74","Chernihivska oblast"]
["UA-77","Chernivetska oblast"]
["GB-CHE","Cheshire East"]
["GB-CHW","Cheshire West and Chester"]
["IN-CT","Chhattisgarh"]
["BT-12","Chhukha"]
["TH-50","Chiang Mai"]
["TH-57","Chiang Rai"]
["MX-CHP","Chiapas"]
["TW-CYI","Chiayi"]
["TW-CYQ","Chiayi"]
["JP-12","Chiba"]
["MA-CHI","Chichaoua"]
["SM-02","Chiesanuova"]
["IT-CH","Chieti"]
["MX-CHH","Chihuahua"]
["MW-CK","Chikwawa"]
["MW-CK","Chikwawa"]
["GT-CM","Chimaltenango"]
["EC-H","Chimborazo"]
["PG-CPK","Chimbu"]
["MM-14","Chin"]
["NI-CI","Chinandega"]
["GT-CQ","Chiquimula"]
["MW-CR","Chiradzulu"]
["MW-CR","Chiradzulu"]
["PA-4","Chiriquí"]
["MD-CU","Chișinău"]
["MW-CT","Chitipa"]
["MW-CT","Chitipa"]
["BD-B","Chittagong"]
["BD-10","Chittagong"]
["DZ-02","Chlef"]
["BW-CH","Chobe"]
["CO-CHO","Chocó"]
["LC-03","Choiseul"]
["SB-CH","Choiseul"]
["HN-CH","Choluteca"]
["CZ-422","Chomutov"]
["TH-20","Chon Buri"]
["CN-50","Chongqing"]
["NI-CO","Chontales"]
["BB-01","Christ Church"]
["KN-01","Christ Church Nichola Town"]
["CZ-531","Chrudim"]
["MA-CHT","Chtouka-Ait Baha"]
["BD-12","Chuadanga"]
["AR-U","Chubut"]
["RU-CHU","Chukotskiy avtonomnyy okrug"]
["TH-86","Chumphon"]
["KR-43","Chungcheongbuk-do"]
["KR-44","Chungcheongnam-do"]
["BO-H","Chuquisaca"]
["FM-TRK","Chuuk"]
["RU-CU","Chuvashskaya Respublika"]
["KG-C","Chüy"]
["KG-C","Chuyskaya oblast'"]
["IE-KY","Ciarraí"]
["DO-33","Cibao Nordeste"]
["DO-34","Cibao Noroeste"]
["DO-35","Cibao Norte"]
["DO-36","Cibao Sur"]
["BI-CI","Cibitoke"]
["BI-CI","Cibitoke"]
["LV-023","Ciblas novads"]
["CU-08","Ciego de Ávila"]
["CU-06","Cienfuegos"]
["IE-KK","Cill Chainnigh"]
["IE-KE","Cill Dara"]
["IE-WW","Cill Mhantáin"]
["MD-CM","Cimișlia"]
["SI-196","Cirkulane"]
["BS-FP","City of Freeport"]
["RW-01","City of Kigali"]
["AR-C","Ciudad Autónoma de Buenos Aires"]
["MX-CMX","Ciudad de Mexico"]
["ES-CR","Ciudad Real"]
["GB-CLK","Clackmannanshire"]
["IE-CE","Clare"]
["JM-13","Clarendon"]
["LU-CL","Clerf"]
["LU-CL","Clervaux"]
["FR-CP","Clipperton"]
["RO-CJ","Cluj"]
["MX-COA","Coahuila de Zaragoza"]
["TZ-19","Coast"]
["BO-C","Cochabamba"]
["PA-2","Coclé"]
["PT-06","Coimbra"]
["VE-H","Cojedes"]
["MX-COL","Colima"]
["BJ-CO","Collines"]
["CA-BC","Colombie-Britannique"]
["LK-11","Colombo"]
["HN-CL","Colón"]
["PA-3","Colón"]
["UY-CO","Colonia"]
["US-CO","Colorado"]
["HN-CM","Comayagua"]
["BD-08","Comilla"]
["SR-CM","Commewijne"]
["IT-CO","Como"]
["BF-COM","Comoé"]
["CI-CM","Comoé"]
["PH-COM","Compostela Valley"]
["GN-C","Conakry"]
["PY-1","Concepción"]
["IE-C","Connacht"]
["IE-C","Connaught"]
["US-CT","Connecticut"]
["RO-CT","Constanța"]
["DZ-25","Constantine"]
["GB-CWY","Conwy"]
["HN-CP","Copán"]
["ZM-08","Copperbelt"]
["CL-CO","Coquimbo"]
["IE-CO","Corcaigh"]
["PY-3","Cordillera"]
["PH-15","Cordillera Administrative Region (CAR)"]
["AR-X","Córdoba"]
["CO-COR","Córdoba"]
["ES-CO","Córdoba"]
["IE-CO","Cork"]
["GB-CON","Cornwall"]
["SR-CR","Coronie"]
["BZ-CZL","Corozal"]
["FR-19","Corrèze"]
["AR-W","Corrientes"]
["FR-COR","Corse"]
["FR-2A","Corse-du-Sud"]
["HN-CR","Cortés"]
["TR-19","Çorum"]
["IT-CS","Cosenza"]
["PH-NCO","Cotabato"]
["FR-21","Côte-d'Or"]
["FR-22","Côtes-d'Armor"]
["EC-X","Cotopaxi"]
["BJ-KO","Couffo"]
["TT-CTT","Couva-Tabaquite-Talparo"]
["TL-CO","Cova Lima"]
["RO-CV","Covasna"]
["GB-COV","Coventry"]
["BD-11","Cox's Bazar"]
["GN-CO","Coyah"]
["IT-CR","Cremona"]
["SI-015","Črenšovci"]
["FR-23","Creuse"]
["MD-CR","Criuleni"]
["SI-016","Črna na Koroškem"]
["SI-017","Črnomelj"]
["BS-CK","Crooked Island and Long Cay"]
["NG-CR","Cross River"]
["IT-KR","Crotone"]
["GB-CRY","Croydon"]
["HU-CS","Csongrád"]
["MK-82","Čučer Sandevo"]
["ES-CU","Cuenca"]
["KG-C","Čujskaja oblast'"]
["RU-CHU","Čukotskij avtonomnyj okrug"]
["AZ-CUL","Culfa"]
["GB-CMA","Cumbria"]
["CO-CUN","Cundinamarca"]
["AO-CNN","Cunene"]
["IT-CN","Cuneo"]
["NL-CW","Curaçao (see also separate country code entry under CW)"]
["MU-CU","Curepipe"]
["SV-CU","Cuscatlán"]
["PE-CUS","Cusco"]
["RU-CU","Čuvašskaja Respublika"]
["CG-8","Cuvette"]
["CG-15","Cuvette-Ouest"]
["GY-CU","Cuyuni-Mazaruni"]
["VN-DN","Da Nang"]
["GN-DB","Dabola"]
["IN-DN","Dadra and Nagar Haveli"]
["KR-27","Daegu-gwangyeoksi"]
["KR-30","Daejeon-gwangyeoksi"]
["BT-22","Dagana"]
["LV-024","Dagdas novads"]
["RU-DA","Dagestan, Respublika"]
["RU-DA","Dagestan, Respublika"]
["IQ-DA","Dahūk"]
["DO-05","Dajabón"]
["VN-33","Đắk Lắk"]
["VN-72","Đắk Nông"]
["SN-DK","Dakar"]
["MR-08","Dakhlet Nouâdhibou"]
["LK-3","Dakuṇu paḷāta"]
["GN-DL","Dalaba"]
["SE-W","Dalarnas län [SE-20]"]
["IN-DD","Daman and Diu"]
["RO-DB","Dâmbovița"]
["ME-07","Danilovgrad"]
["TZ-02","Dar es Salaam"]
["SY-DR","Dar'ā"]
["MN-037","Darhan uul"]
["PA-5","Darién"]
["GB-DAL","Darlington"]
["LY-DR","Darnah"]
["AZ-DAS","Daşkəsən"]
["TM-D","Daşoguz"]
["LV-DGV","Daugavpils"]
["LV-025","Daugavpils novads"]
["PH-11","Davao (Region XI)"]
["PH-DAV","Davao del Norte"]
["PH-DAS","Davao del Sur"]
["PH-DVO","Davao Occidental"]
["PH-DAO","Davao Oriental"]
["AF-DAY","Dāykundī"]
["AF-DAY","Dāykundī"]
["PS-DEB","Dayr al Balaḩ"]
["SY-DY","Dayr az Zawr"]
["MK-21","Debar"]
["MK-22","Debarca"]
["HU-DE","Debrecen"]
["ER-DU","Debub"]
["ER-DK","Debubawi K’eyyĭḥ Baḥri"]
["CZ-421","Děčín"]
["MW-DE","Dedza"]
["MW-DE","Dedza"]
["PS-DEB","Deir El Balah"]
["US-DE","Delaware"]
["MK-23","Delčevo"]
["IN-DL","Delhi"]
["NG-DE","Delta"]
["VE-Y","Delta Amacuro"]
["GY-DE","Demerara-Mahaica"]
["MK-25","Demir Hisar"]
["MK-24","Demir Kapija"]
["GB-DEN","Denbighshire [Sir Ddinbych GB-DDB]"]
["CI-DN","Denguélé"]
["NR-08","Denigomodu"]
["NR-08","Denigomodu"]
["TR-20","Denizli"]
["LC-05","Dennery"]
["VE-W","Dependencias Federales"]
["GB-DER","Derby"]
["GB-DBY","Derbyshire"]
["GB-DRS","Derry and Strabane"]
["SI-018","Destrnik"]
["FR-79","Deux-Sèvres"]
["GB-DEV","Devon"]
["MV-17","Dhaalu"]
["BD-C","Dhaka"]
["BD-13","Dhaka"]
["YE-DH","Dhamār"]
["NP-DH","Dhawalagiri"]
["MV-SU","Dhekunu"]
["IQ-DQ","Dhī Qār"]
["AL-09","Dibër"]
["TT-DMN","Diego Martin"]
["LU-DI","Diekirch"]
["LU-DI","Diekirch"]
["LU-DI","Diekrech"]
["VN-71","Điện Biên"]
["NE-2","Diffa"]
["IQ-DA","Dihok"]
["DJ-DI","Dikhil"]
["DJ-DI","Dikhīl"]
["TL-DI","Díli"]
["TL-DI","Díli"]
["SY-DI","Dimashq"]
["PH-DIN","Dinagat Islands"]
["BD-14","Dinajpur"]
["MT-07","Dingli"]
["MT-07","Dingli"]
["GN-DI","Dinguiraye"]
["SN-DB","Diourbel"]
["ET-DD","Dire Dawa"]
["ET-DD","Dirē Dawa"]
["US-DC","District of Columbia"]
["VE-A","Distrito Capital"]
["CO-DC","Distrito Capital de Bogotá"]
["BR-DF","Distrito Federal"]
["DO-01","Distrito Nacional (Santo Domingo)"]
["SI-019","Divača"]
["IQ-DI","Diyālá"]
["TR-21","Diyarbakır"]
["DZ-17","Djelfa"]
["DJ-DJ","Djibouti"]
["UA-12","Dnipropetrovska oblast"]
["LV-026","Dobeles novads"]
["SI-154","Dobje"]
["SI-020","Dobrepolje"]
["BG-08","Dobrich"]
["SI-155","Dobrna"]
["SI-021","Dobrova-Polhov Gradec"]
["SI-156","Dobrovnik"]
["TZ-03","Dodoma"]
["MK-26","Dojran"]
["UG-317","Dokolo"]
["CF-BK","Do-Kötö"]
["SI-022","Dol pri Ljubljani"]
["SI-157","Dolenjske Toplice"]
["RO-DJ","Dolj"]
["MK-27","Dolneni"]
["PL-DS","Dolnośląskie"]
["SM-03","Domagnano"]
["CZ-321","Domažlice"]
["SI-023","Domžale"]
["GB-DNC","Doncaster"]
["MD-DO","Dondușeni"]
["IE-DL","Donegal"]
["UA-14","Donetska oblast"]
["VN-39","Đồng Nai"]
["VN-45","Đồng Tháp"]
["BJ-DO","Donga"]
["FR-24","Dordogne"]
["SI-024","Dornava"]
["MN-061","Dornod"]
["MN-063","Dornogovĭ"]
["GB-DOR","Dorset"]
["NE-3","Dosso"]
["FR-25","Doubs"]
["MA-10","Doukkala-Abda"]
["MW-DO","Dowa"]
["MW-DO","Dowa"]
["SI-025","Dravograd"]
["NL-DR","Drenthe"]
["MD-DR","Drochia"]
["FR-26","Drôme"]
["LT-07","Druskininkai"]
["DO-06","Duarte"]
["MD-DU","Dubăsari"]
["AE-DU","Dubayy"]
["IE-D","Dublin"]
["GN-DU","Dubréka"]
["HR-19","Dubrovačko-neretvanska županija"]
["GB-DUD","Dudley"]
["GB-DGY","Dumfries and Galloway"]
["EG-DT","Dumyāţ"]
["IE-DL","Dún na nGall"]
["HU-DU","Dunaújváros"]
["LV-027","Dundagas novads"]
["GB-DND","Dundee City"]
["MN-059","Dundgovĭ"]
["SI-026","Duplek"]
["MX-DUR","Durango"]
["UY-DU","Durazno"]
["LV-028","Durbes novads"]
["GB-DUR","Durham County"]
["AL-02","Durrës"]
["TJ-DU","Dushanbe"]
["TR-81","Düzce"]
["GR-G","Dytikí Elláda"]
["GR-C","Dytikí Makedonía"]
["KG-J","Džalal-Abadskaja oblast'"]
["MN-057","Dzavhan"]
["KG-J","Dzhalal-Abadskaya oblast'"]
["GB-EAL","Ealing"]
["CM-ES","East"]
["GB-EAY","East Ayrshire"]
["GY-EB","East Berbice-Corentyne"]
["SD-DE","East Darfur"]
["GB-EDU","East Dunbartonshire"]
["BS-EG","East Grand Bahama"]
["GB-ELN","East Lothian"]
["PG-EBR","East New Britain"]
["GB-ERW","East Renfrewshire"]
["GB-ERY","East Riding of Yorkshire"]
["PG-ESW","East Sepik"]
["GB-ESX","East Sussex"]
["FJ-E","Eastern"]
["GH-EP","Eastern"]
["NP-4","Eastern"]
["RW-02","Eastern"]
["SL-E","Eastern"]
["UG-E","Eastern"]
["ZM-03","Eastern"]
["ZA-EC","Eastern Cape"]
["SS-EE","Eastern Equatoria"]
["PG-EHG","Eastern Highlands"]
["LK-5","Eastern Province"]
["PH-EAS","Eastern Samar"]
["PH-08","Eastern Visayas (Region VIII)"]
["MH-EBO","Ebon"]
["MH-EBO","Ebon"]
["NG-EB","Ebonyi"]
["LU-EC","Echternach"]
["LU-EC","Echternach"]
["GB-EDH","Edinburgh, City of"]
["MD-ED","Edineț"]
["TR-22","Edirne"]
["NG-ED","Edo"]
["FI-19","Egentliga Finland"]
["FI-06","Egentliga Tavastland"]
["HU-EG","Eger"]
["JP-38","Ehime"]
["GB-ELS","Eilean Siar"]
["NG-EK","Ekiti"]
["DZ-32","El Bayadh"]
["BO-B","El Beni"]
["PE-CAL","El Callao"]
["MA-HAJ","El Hajeb"]
["MA-JDI","El Jadida"]
["EC-O","El Oro"]
["DZ-39","El Oued"]
["HN-EP","El Paraíso"]
["GT-PR","El Progreso"]
["DO-08","El Seibo"]
["DZ-36","El Tarf"]
["DO-37","El Valle"]
["TR-23","Elazığ"]
["AL-03","Elbasan"]
["LT-08","Elektrėnai"]
["KE-05","Elgeyo/Marakwet"]
["DO-07","Elías Piña"]
["PA-EM","Emberá"]
["KE-06","Embu"]
["IT-45","Emilia-Romagna"]
["AD-03","Encamp"]
["MH-ENI","Enewetak and Ujelang"]
["MH-ENI","Enewetak and Ujelang"]
["GB-ENF","Enfield"]
["PG-EPW","Enga"]
["GB-ENG","England"]
["GB-EAW","England and Wales"]
["SC-16","English River"]
["LV-029","Engures novads"]
["IT-EN","Enna"]
["TD-EE","Ennedi-Est"]
["TD-EO","Ennedi-Ouest"]
["DO-38","Enriquillo"]
["AR-E","Entre Ríos"]
["NG-EN","Enugu"]
["CD-EQ","Équateur"]
["HU-ER","Érd"]
["AM-ER","Erevan"]
["LV-030","Ērgļu novads"]
["TL-ER","Ermera"]
["TL-ER","Ermera"]
["NA-ER","Erongo"]
["MA-ERR","Errachidia"]
["TR-24","Erzincan"]
["TR-25","Erzurum"]
["MA-ESM","Es Smara (EH)"]
["AD-08","Escaldes-Engordany"]
["LU-ES","Esch an der Alzette"]
["LI-02","Eschen"]
["LU-ES","Esch-sur-Alzette"]
["LU-ES","Esch-Uelzecht"]
["GT-ES","Escuintla"]
["IR-04","Eşfahān"]
["TR-26","Eskişehir"]
["EC-E","Esmeraldas"]
["DO-09","Espaillat"]
["BR-ES","Espírito Santo"]
["MA-ESI","Essaouira"]
["GY-ES","Essequibo Islands-West Demerara"]
["GB-ESS","Essex"]
["FR-91","Essonne"]
["BF-08","Est"]
["CM-ES","Est"]
["RW-02","Est"]
["NI-ES","Estelí"]
["GA-1","Estuaire"]
["FI-02","Etelä-Karjala"]
["FI-03","Etelä-Pohjanmaa"]
["FI-04","Etelä-Savo"]
["TO-01","'Eua"]
["TO-01","'Eua"]
["FR-27","Eure"]
["FR-28","Eure-et-Loir"]
["ES-PV","Euskal Herria"]
["PT-07","Évora"]
["RU-YEV","Evrejskaja avtonomnaja oblast'"]
["NR-09","Ewa"]
["NR-09","Ewa"]
["ES-EX","Extremadura"]
["CM-EN","Extrême-Nord"]
["BS-EX","Exuma"]
["MV-03","Faadhippolhu"]
["MV-14","Faafu"]
["WS-FA","Fa'asaleleaga"]
["WS-FA","Fa'asaleleaga"]
["SM-04","Faetano"]
["MA-FAH","Fahs-Beni Makada"]
["VE-I","Falcón"]
["MD-FA","Fălești"]
["GB-FAL","Falkirk"]
["CM-EN","Far North"]
["NP-5","Far Western"]
["AF-FRA","Farāh"]
["AF-FRA","Farāh"]
["GN-F","Faranah"]
["GN-FA","Faranah"]
["UZ-FA","Farg‘ona"]
["BD-15","Faridpur"]
["PT-08","Faro"]
["IR-14","Fārs"]
["AF-FYB","Fāryāb"]
["AF-FYB","Fāryāb"]
["SN-FK","Fatick"]
["BA-BIH","Federacija Bosne i Hercegovine"]
["BA-BIH","Federacija Bosne i Hercegovine"]
["BA-BIH","Federacija Bosne i Hercegovine"]
["PK-TA","Federally Administered Tribal Areas"]
["HU-FE","Fejér"]
["MV-04","Felidhu Atholhu"]
["BD-16","Feni"]
["GB-FMO","Fermanagh and Omagh"]
["IT-FM","Fermo"]
["IT-FE","Ferrara"]
["MA-05","Fès-Boulemane"]
["MA-FES","Fès-Dar-Dbibegh"]
["MT-08","Fgura"]
["MT-08","Fgura"]
["MG-F","Fianarantsoa"]
["AL-04","Fier"]
["GB-FIF","Fife"]
["MA-FIG","Figuig"]
["FR-29","Finistère"]
["NO-20","Finnmark"]
["NO-20","Finnmark"]
["NO-20","Finnmárku"]
["SM-05","Fiorentino"]
["IT-FI","Firenze"]
["MU-FL","Flacq"]
["NL-FL","Flevoland"]
["GB-FLN","Flintshire [Sir y Fflint GB-FFL]"]
["UY-FS","Flores"]
["MD-FL","Florești"]
["MT-09","Floriana"]
["MT-09","Floriana"]
["US-FL","Florida"]
["UY-FD","Florida"]
["IT-FG","Foggia"]
["MT-10","Fontana"]
["MT-10","Fontana"]
["MC-FO","Fontvieille"]
["GN-FO","Forécariah"]
["ZA-FS","Foreisetata"]
["IT-FC","Forlì-Cesena"]
["AR-P","Formosa"]
["HN-FM","Francisco Morazán"]
["BW-FR","Francistown"]
["ZA-FS","Free State"]
["ZA-FS","Free State"]
["CH-FR","Freiburg"]
["ZA-FS","Freistata"]
["ZA-FS","Freistata"]
["ZA-FS","Freyistata"]
["GN-FR","Fria"]
["CH-FR","Fribourg"]
["IT-36","Friuli-Venezia Giulia"]
["IT-FR","Frosinone"]
["CZ-802","Frýdek Místek"]
["NL-FR","Fryslân"]
["CN-35","Fujian"]
["JP-18","Fukui"]
["JP-40","Fukuoka"]
["JP-07","Fukushima"]
["ZA-FS","Fuleyisitata"]
["TV-FUN","Funafuti"]
["ZA-FS","Fureisitata"]
["MV-29","Fuvammulah"]
["AZ-FUZ","Füzuli"]
["MV-27","Gaafu Alifu"]
["MV-28","Gaafu Dhaalu"]
["TN-81","Gabès"]
["BW-GA","Gaborone"]
["BG-07","Gabrovo"]
["GW-GA","Gabú"]
["TN-71","Gafsa"]
["WS-GE","Gaga'emauga"]
["WS-GE","Gaga'emauga"]
["WS-GI","Gagaifomauga"]
["WS-GI","Gagaifomauga"]
["MD-GA","Găgăuzia, Unitatea teritorială autonomă (UTAG)"]
["BD-19","Gaibandha"]
["IE-G","Gaillimh"]
["EC-W","Galápagos"]
["RO-GL","Galați"]
["SO-GA","Galguduud"]
["ES-GA","Galicia [Galicia]"]
["LK-31","Gālla"]
["LK-31","Galle"]
["IE-G","Galway"]
["ET-GA","Gambēla Hizboch"]
["ET-GA","Gambela Peoples"]
["LK-12","Gampaha"]
["LK-12","Gampaha"]
["LI-03","Gamprin"]
["NP-GA","Gandaki"]
["KR-42","Gangwon-do"]
["CN-62","Gansu"]
["BF-GAN","Ganzourgou"]
["ML-7","Gao"]
["GN-GA","Gaoual"]
["FR-30","Gard"]
["KE-07","Garissa"]
["LV-031","Garkalnes novads"]
["BT-GA","Gasa"]
["ER-GB","Gash-Barka"]
["GB-GAT","Gateshead"]
["ZA-GT","Gauteng"]
["ZA-GT","Gauteng"]
["ZA-GT","Gauteng"]
["ZA-GT","Gauteng"]
["ZA-GT","Gauteng"]
["ZA-GT","Gauteng"]
["ZA-GT","Gauteng"]
["ZA-GT","Gauteng"]
["SE-X","Gävleborgs län [SE-21]"]
["MZ-G","Gaza"]
["PS-GZA","Gaza"]
["TR-27","Gaziantep"]
["CY-04","Gazimağusa"]
["BD-18","Gazipur"]
["ZA-NL","GaZulu-Natala"]
["LR-GP","Gbarpolu"]
["SD-GD","Gedaref"]
["AZ-GAD","Gədəbəy"]
["SO-GE","Gedo"]
["AM-GR","Geġark'unik'"]
["TZ-27","Geita"]
["NL-GE","Gelderland"]
["AZ-GA","Gəncə"]
["CH-GE","Genève"]
["IT-GE","Genova"]
["US-GA","Georgia"]
["FR-32","Gers"]
["MK-18","Gevgelija"]
["SD-GZ","Gezira"]
["MT-13","Għajnsielem"]
["MT-13","Għajnsielem"]
["BW-GH","Ghanzi"]
["MT-14","Għarb"]
["MT-14","Għarb"]
["SD-DW","Gharb Dārfūr"]
["SD-GK","Gharb Kurdufān"]
["MA-02","Gharb-Chrarda-Beni Hssen"]
["DZ-47","Ghardaïa"]
["MT-15","Għargħur"]
["MT-15","Għargħur"]
["MT-16","Għasri"]
["MT-16","Għasri"]
["LY-GT","Ghāt"]
["MT-17","Għaxaq"]
["MT-17","Għaxaq"]
["AF-GHA","Ghaznī"]
["AF-GHA","Ghaznī"]
["PS-GZA","Ghazzah"]
["AF-GHO","Ghōr"]
["AF-GHO","Ghōr"]
["VN-30","Gia Lai"]
["JP-21","Gifu"]
["JP-21","Gihu"]
["IR-19","Gīlān"]
["KI-G","Gilbert Islands"]
["PK-GB","Gilgit-Baltistan"]
["PK-GB","Gilgit-Baltistān"]
["PH-GUI","Gimaras"]
["ES-SS","Gipuzkoa"]
["TR-28","Giresun"]
["CF-KB","Gïrïbïngï"]
["CY-06","Girne"]
["ES-GI","Girona [Gerona]"]
["FR-33","Gironde"]
["NZ-GIS","Gisborne"]
["BI-GI","Gitega"]
["BI-GI","Gitega"]
["RO-GR","Giurgiu"]
["AL-05","Gjirokastër"]
["SC-12","Glacis"]
["SC-12","Glacis"]
["CH-GL","Glarus"]
["GB-GLG","Glasgow City"]
["SC-12","Glasi"]
["MD-GL","Glodeni"]
["GB-GLS","Gloucestershire"]
["BF-GNA","Gnagna"]
["MV-29","Gnaviyani"]
["IN-GA","Goa"]
["CI-GD","Gôh-Djiboua"]
["BR-GO","Goiás"]
["IR-27","Golestān"]
["UG-121","Gomba"]
["NG-GO","Gombe"]
["BY-HO","Gomel'skaja oblast'"]
["BY-HO","Gomel'skaya oblast'"]
["BD-17","Gopalganj"]
["AZ-GOR","Goranboy"]
["SI-027","Gorenja vas-Poljane"]
["MR-04","Gorgol"]
["SI-028","Gorišnica"]
["IT-GO","Gorizia"]
["RO-GJ","Gorj"]
["SI-207","Gorje"]
["SI-029","Gornja Radgona"]
["SI-030","Gornji Grad"]
["SI-031","Gornji Petrovci"]
["KG-GB","Gorod Bishkek"]
["KG-GB","Gorod Biškek"]
["BY-HM","Gorod Minsk"]
["BY-HM","Gorod Minsk"]
["KG-GO","Gorod Oš"]
["KG-GO","Gorod Osh"]
["ID-GO","Gorontalo"]
["MK-19","Gostivar"]
["SE-I","Gotlands län [SE-09]"]
["BF-GOU","Gourma"]
["MN-065","Govĭ-Altay"]
["MN-064","Govĭ-Sümber"]
["AZ-GOY","Göyçay"]
["AZ-GYG","Göygöl"]
["HN-GD","Gracias a Dios"]
["SI-158","Grad"]
["HR-21","Grad Zagreb"]
["MK-20","Gradsko"]
["ES-GR","Granada"]
["NI-GR","Granada"]
["SC-13","Grand Ans Mae"]
["SC-14","Grand Ans Pralen"]
["SC-13","Grand Anse Mahe"]
["SC-14","Grand Anse Praslin"]
["LR-GB","Grand Bassa"]
["LR-CM","Grand Cape Mount"]
["MA-08","Grand Casablanca"]
["BS-GC","Grand Cay"]
["LR-GG","Grand Gedeh"]
["LR-GK","Grand Kru"]
["MU-GP","Grand Port"]
["HT-GA","Grandans"]
["SC-13","Grand'Anse Mahé"]
["SC-14","Grand'Anse Praslin"]
["KM-G","Grande Comore"]
["HT-GA","Grande’Anse"]
["FR-GES","Grand-Est"]
["CU-12","Granma"]
["CH-GR","Graubünden"]
["GB-GBN","Great Britain"]
["GH-AA","Greater Accra"]
["GB-GRE","Greenwich"]
["LU-GR","Gréivemaacher"]
["VC-06","Grenadines"]
["LU-GR","Grevenmacher"]
["LU-GR","Grevenmacher"]
["CF-KB","Gribingui"]
["CH-GR","Grigioni"]
["CH-GR","Grischun"]
["CH-GR","Grisons"]
["LV-032","Grobiņas novads"]
["BY-HR","Grodnenskaja oblast'"]
["BY-HR","Grodnenskaya oblast'"]
["NL-GR","Groningen"]
["LC-06","Gros Islet"]
["IT-GR","Grosseto"]
["SI-032","Grosuplje"]
["ES-GU","Guadalajara"]
["SB-GU","Guadalcanal"]
["FR-GUA","Guadeloupe"]
["FR-GP","Guadeloupe (see also separate country code entry under GP)"]
["CO-GUA","Guainía"]
["PY-4","Guairá"]
["US-GU","Guam (see also separate country code entry under GU)"]
["CR-G","Guanacaste"]
["MX-GUA","Guanajuato"]
["CN-44","Guangdong"]
["CN-45","Guangxi"]
["CU-14","Guantánamo"]
["PT-09","Guarda"]
["VE-J","Guárico"]
["GT-GU","Guatemala"]
["CO-GUV","Guaviare"]
["EC-G","Guayas"]
["MT-11","Gudja"]
["MT-11","Gudja"]
["GN-GU","Guékédou"]
["DZ-24","Guelma"]
["MA-GUE","Guelmim"]
["MA-14","Guelmim-Es Semara"]
["TD-GR","Guéra"]
["MX-GRO","Guerrero"]
["MR-10","Guidimaka"]
["PH-GUI","Guimaras"]
["CN-52","Guizhou"]
["IN-GJ","Gujarat"]
["LV-033","Gulbenes novads"]
["PG-GPK","Gulf"]
["UG-304","Gulu"]
["TR-29","Gümüşhane"]
["JP-10","Gunma"]
["GE-GU","Guria"]
["ME-22","Gusinje"]
["FR-GF","Guyane (française) (see also separate country code entry under GF)"]
["KR-29","Gwangju-gwangyeoksi"]
["GB-GWN","Gwynedd"]
["KR-41","Gyeonggi-do"]
["KR-47","Gyeongsangbuk-do"]
["KR-48","Gyeongsangnam-do"]
["HU-GY","Győr"]
["HU-GS","Győr-Moson-Sopron"]
["MT-12","Gżira"]
["MT-12","Gżira"]
["VN-03","Hà Giang"]
["VN-63","Hà Nam"]
["VN-HN","Ha Noi"]
["VN-23","Hà Tĩnh"]
["BT-13","Haa"]
["MV-07","Haa Alifu"]
["MV-23","Haa Dhaalu"]
["TO-02","Ha'apai"]
["TO-02","Ha'apai"]
["RU-KHA","Habarovskij kraj"]
["BD-20","Habiganj"]
["AZ-HAC","Hacıqabul"]
["GB-HCK","Hackney"]
["IL-D","HaDarom"]
["TD-HL","Hadjer Lamis"]
["YE-HD","Ḩaḑramawt"]
["MV-05","Hahdhunmathi"]
["VN-61","Hải Dương"]
["VN-HP","Hai Phong"]
["SA-06","Ḩā'il"]
["CN-46","Hainan"]
["BE-WHT","Hainaut"]
["SI-159","Hajdina"]
["HU-HB","Hajdú-Bihar"]
["YE-HJ","Ḩajjah"]
["TD-HL","Ḩajjar Lamīs"]
["RU-KK","Hakasija, Respublika"]
["TR-30","Hakkâri"]
["SY-HL","Ḩalab"]
["SE-N","Hallands län [SE-13]"]
["GB-HAL","Halton"]
["IR-24","Hamadān"]
["SY-HM","Ḩamāh"]
["LK-33","Hambantota"]
["LK-33","Hambantŏṭa"]
["DE-HH","Hamburg"]
["IL-M","HaMerkaz"]
["KP-09","Hamgyǒng-bukto"]
["KP-08","Hamgyǒng-namdo"]
["KP-08","Hamkyeongnamto"]
["KP-09","Hamkyeongpukto"]
["GB-HMF","Hammersmith and Fulham"]
["GB-HAM","Hampshire"]
["MT-18","Ħamrun"]
["MT-18","Ħamrun"]
["JM-09","Hanover"]
["RU-KHM","Hanty-Mansijskij avtonomnyj okrug"]
["ZW-HA","Harare"]
["ET-HA","Harari People"]
["BS-HI","Harbour Island"]
["NA-HA","Hardap"]
["ET-HA","Hārerī Hizb"]
["RO-HR","Harghita"]
["GB-HRY","Haringey"]
["EE-37","Harjumaa"]
["GB-HRW","Harrow"]
["GB-HPL","Hartlepool"]
["IN-HR","Haryana"]
["BG-26","Haskovo"]
["TR-31","Hatay"]
["DO-30","Hato Mayor"]
["PW-050","Hatohobei"]
["PW-050","Hatohobei"]
["IL-Z","HaTsafon"]
["VN-73","Hậu Giang"]
["FR-2B","Haute-Corse"]
["FR-31","Haute-Garonne"]
["CF-HK","Haute-Kotto"]
["FR-43","Haute-Loire"]
["FR-52","Haute-Marne"]
["FR-05","Hautes-Alpes"]
["CF-HS","Haute-Sangha / Mambéré-Kadéï"]
["FR-70","Haute-Saône"]
["FR-74","Haute-Savoie"]
["FR-65","Hautes-Pyrénées"]
["FR-87","Haute-Vienne"]
["CD-HK","Haut-Katanga"]
["CD-HL","Haut-Lomami"]
["CF-HM","Haut-Mbomou"]
["GA-2","Haut-Ogooué"]
["FR-68","Haut-Rhin"]
["BF-09","Hauts-Bassins"]
["FR-HDF","Hauts-de-France"]
["FR-92","Hauts-de-Seine"]
["CD-HU","Haut-Uélé"]
["GB-HAV","Havering"]
["CZ-631","Havlíčkův Brod"]
["US-HI","Hawaii"]
["KW-HA","Ḩawallī"]
["NZ-HKB","Hawke's Bay"]
["IL-HA","Ḩayfā"]
["ZA-NL","Hazolo-Natala"]
["ZA-NL","HaZulu-Natal"]
["CN-13","Hebei"]
["PS-HBN","Hebron"]
["NO-04","Hedmark"]
["NO-04","Hedmark"]
["IL-HA","H̱efa"]
["CN-23","Heilongjiang"]
["PG-HLA","Hela"]
["AF-HEL","Helmand"]
["AF-HEL","Helmand"]
["CN-41","Henan"]
["MN-039","Hentiy"]
["AF-HER","Herāt"]
["AF-HER","Herāt"]
["FR-34","Hérault"]
["ME-08","Herceg-Novi"]
["CR-H","Heredia"]
["GB-HEF","Herefordshire"]
["DO-19","Hermanas Mirabal"]
["PA-6","Herrera"]
["GB-HRT","Hertfordshire"]
["DE-HE","Hessen"]
["HU-HE","Heves"]
["IQ-AR","Hewlêr"]
["SZ-HH","Hhohho"]
["SZ-HH","Hhohho"]
["MX-HID","Hidalgo"]
["GB-HLD","Highland"]
["DO-39","Higuamo"]
["SO-HI","Hiiraan"]
["EE-39","Hiiumaa"]
["PH-AGN","Hilagang Agusan"]
["PH-DAV","Hilagang Dabaw"]
["PH-ILN","Hilagang Iloko"]
["PH-CAN","Hilagang Kamarines"]
["PH-LAN","Hilagang Lanaw"]
["PH-NSA","Hilagang Samar"]
["PH-ZAN","Hilagang Sambuwangga"]
["PH-SUN","Hilagang Surigaw"]
["GB-HIL","Hillingdon"]
["IN-HP","Himachal Pradesh"]
["SY-HI","Ḩimş"]
["MD-HI","Hîncești"]
["JP-34","Hiroshima"]
["JP-34","Hirosima"]
["VN-SG","Ho Chi Minh"]
["VN-14","Hòa Bình"]
["SI-160","Hoče-Slivnica"]
["MR-01","Hodh ech Chargui"]
["MR-02","Hodh el Gharbi"]
["HU-HV","Hódmezővásárhely"]
["CZ-645","Hodonín"]
["SI-161","Hodoš"]
["IS-1","Höfuðborgarsvæði utan Reykjavíkur"]
["UG-403","Hoima"]
["JP-01","Hokkaido"]
["JP-01","Hokkaidô"]
["CU-11","Holguín"]
["KE-08","Homa Bay"]
["BY-HO","Homieĺskaja voblasć"]
["BY-HO","Homyel'skaya voblasts'"]
["CN-91","Hong Kong"]
["BS-HT","Hope Town"]
["BY-HM","Horad Minsk"]
["BY-HM","Horad Minsk"]
["NO-12","Hordaland"]
["NO-12","Hordaland"]
["SI-162","Horjul"]
["IR-23","Hormozgān"]
["LA-HO","Houaphan"]
["BF-HOU","Houet"]
["GB-HNS","Hounslow"]
["MN-043","Hovd"]
["DK-84","Hovedstaden"]
["MN-041","Hövsgöl"]
["UM-84","Howland Island"]
["CZ-521","Hradec Králové"]
["SI-034","Hrastnik"]
["BY-HR","Hrodzenskaya voblasts'"]
["BY-HR","Hrodzienskaja voblasć"]
["SI-035","Hrpelje-Kozina"]
["TW-HSZ","Hsinchu"]
["TW-HSQ","Hsinchu"]
["TW-HUA","Hualien"]
["AO-HUA","Huambo"]
["PE-HUV","Huancavelica"]
["PE-HUC","Huánuco"]
["CN-42","Hubei"]
["GT-HU","Huehuetenango"]
["ES-H","Huelva"]
["ES-HU","Huesca"]
["CO-HUI","Huila"]
["AO-HUI","Huíla"]
["JP-18","Hukui"]
["JP-40","Hukuoka"]
["JP-07","Hukusima"]
["CN-43","Hunan"]
["RO-HD","Hunedoara"]
["VN-66","Hưng Yên"]
["PE-JUN","Hunin"]
["MV-28","Huvadhu Atholhu Dhekunuburi"]
["MV-27","Huvadhu Atholhu Uthuruburi"]
["KP-06","Hwanghae-bukto"]
["KP-05","Hwanghae-namdo"]
["KP-05","Hwanghainamto"]
["KP-06","Hwanghaipukto"]
["JP-28","Hyogo"]
["JP-28","Hyôgo"]
["RO-IL","Ialomița"]
["MD-IA","Ialoveni"]
["RO-IS","Iași"]
["UG-417","Ibanda"]
["JP-08","Ibaraki"]
["YE-IB","Ibb"]
["RW-02","Iburasirazuba"]
["RW-04","Iburengerazuba"]
["PE-ICA","Ica"]
["US-ID","Idaho"]
["EE-44","Ida-Virumaa"]
["SY-ID","Idlib"]
["SI-036","Idrija"]
["LV-034","Iecavas novads"]
["LU-EC","Iechternach"]
["MA-IFR","Ifrane"]
["ZA-FS","iFreyistata"]
["PH-IFU","Ifugao"]
["SI-037","Ig"]
["UG-203","Iganga"]
["ZA-GT","iGauteng"]
["TR-76","Iğdır"]
["LT-09","Ignalina"]
["NR-10","Ijuw"]
["NR-10","Ijuw"]
["PE-ICA","Ika"]
["PE-ICA","Ika"]
["MT-19","Iklin"]
["MT-19","Iklin"]
["LV-035","Ikšķiles novads"]
["ZA-NL","iKwaZulu-Natal"]
["IR-05","Īlām"]
["FR-IDF","Île-de-France"]
["CA-PE","Île-du-Prince-Édouard"]
["RO-IF","Ilfov"]
["CV-B","Ilhas de Barlavento"]
["CV-S","Ilhas de Sotavento"]
["MK-34","Ilinden"]
["SI-038","Ilirska Bistrica"]
["FR-35","Ille-et-Vilaine"]
["ES-IB","Illes Balears [Islas Baleares]"]
["US-IL","Illinois"]
["DZ-33","Illizi"]
["PH-01","Ilocos (Region I)"]
["PH-ILN","Ilocos Norte"]
["PH-ILS","Ilocos Sur"]
["PH-ILI","Iloilo"]
["PH-ILI","Iloilo"]
["LV-036","Ilūkstes novads"]
["EC-I","Imbabura"]
["GE-IM","Imereti"]
["AZ-IMI","İmişli"]
["NG-IM","Imo"]
["IT-IM","Imperia"]
["ZA-MP","iMpumalanga"]
["BS-IN","Inagua"]
["KR-28","Incheon-gwangyeoksi"]
["MR-12","Inchiri"]
["LV-037","Inčukalna novads"]
["DO-10","Independencia"]
["US-IN","Indiana"]
["FR-36","Indre"]
["FR-37","Indre-et-Loire"]
["MA-INE","Inezgane-Ait Melloul"]
["RU-IN","Ingušetija, Respublika"]
["RU-IN","Ingushetiya, Respublika"]
["MZ-I","Inhambane"]
["HN-IN","Intibucá"]
["GB-IVC","Inverclyde"]
["BF-IOB","Ioba"]
["GR-F","Ionía Nísia"]
["US-IA","Iowa"]
["GR-D","Ípeiros"]
["PH-IFU","Ipugaw"]
["ZA-EC","iPumalanga-Kapa"]
["LK-91","Irattiṉapuri"]
["JO-IR","Irbid"]
["TZ-04","Iringa"]
["RU-IRK","Irkutskaja oblast'"]
["RU-IRK","Irkutskaya oblast'"]
["SB-IS","Isabel"]
["PH-ISA","Isabela"]
["PH-ISA","Isabela"]
["FR-38","Isère"]
["IT-IS","Isernia"]
["JP-17","Ishikawa"]
["JP-17","Isikawa"]
["UG-418","Isingiro"]
["KE-09","Isiolo"]
["MT-20","Isla"]
["MT-20","Isla"]
["CU-99","Isla de la Juventud"]
["PK-IS","Islamabad"]
["PK-IS","Islāmābād"]
["HN-IB","Islas de la Bahía"]
["GB-AGY","Isle of Anglesey [Sir Ynys Môn GB-YNM]"]
["GB-IOW","Isle of Wight"]
["GB-IOS","Isles of Scilly"]
["GB-ISL","Islington"]
["AZ-ISM","İsmayıllı"]
["TR-32","Isparta"]
["KG-Y","Issyk-Kul'skaja oblast'"]
["KG-Y","Issyk-Kul'skaya oblast'"]
["TR-34","İstanbul"]
["HR-18","Istarska županija"]
["PY-7","Itapúa"]
["ZA-WC","iTjhingalanga-Kapa"]
["ZA-NC","iTlhagwini-Kapa"]
["ZA-NW","iTlhagwini-Tjhingalanga"]
["CD-IT","Ituri"]
["SI-039","Ivančna Gorica"]
["UA-26","Ivano-Frankivska oblast"]
["RU-IVA","Ivanovskaja oblast'"]
["RU-IVA","Ivanovskaya oblast'"]
["JP-03","Iwate"]
["GT-IZ","Izabal"]
["TR-35","İzmir"]
["SI-040","Izola"]
["LB-JL","Jabal Lubnān"]
["MH-JAB","Jabat"]
["MH-JAB","Jabat"]
["RS-23","Jablanički okrug"]
["CZ-512","Jablonec nad Nisou"]
["ES-J","Jaén"]
["LK-41","Jaffna"]
["KP-04","Jakangto"]
["ID-JK","Jakarta Raya"]
["KG-J","Jalal-Abad"]
["GT-JA","Jalapa"]
["MX-JAL","Jalisco"]
["MH-JAL","Jaluit"]
["MH-JAL","Jaluit"]
["RU-YAN","Jamalo-Neneckij avtonomnyj okrug"]
["BD-21","Jamalpur"]
["ID-JA","Jambi"]
["IN-JK","Jammu and Kashmir"]
["SE-Z","Jämtlands län [SE-23]"]
["NO-22","Jan Mayen (Arctic Region) (see also separate country code entry under SJ)"]
["NO-22","Jan Mayen (Arctic Region) (see also separate country code entry under SJ)"]
["NP-JA","Janakpur"]
["PS-JEN","Janīn"]
["OM-BJ","Janūb al Bāţinah"]
["OM-SJ","Janūb ash Sharqīyah"]
["SD-DS","Janūb Dārfūr"]
["SD-KS","Janūb Kurdufān"]
["EG-JS","Janūb Sīnā'"]
["ER-DK","Janūbī al Baḩrī al Aḩmar"]
["JO-JA","Jarash"]
["MC-JE","Jardin Exotique"]
["RU-YAR","Jaroslavskaja oblast'"]
["EE-51","Järvamaa"]
["UM-86","Jarvis Island"]
["HU-JN","Jász-Nagykun-Szolnok"]
["LV-038","Jaunjelgavas novads"]
["LV-039","Jaunpiebalgas novads"]
["LV-040","Jaunpils novads"]
["ID-JW","Jawa"]
["ID-JB","Jawa Barat"]
["ID-JT","Jawa Tengah"]
["ID-JI","Jawa Timur"]
["SA-09","Jāzān"]
["MK-35","Jegunovce"]
["KR-49","Jeju-teukbyeoljachido"]
["LV-JKB","Jēkabpils"]
["LV-042","Jēkabpils novads"]
["LV-JEL","Jelgava"]
["LV-041","Jelgavas novads"]
["TN-32","Jendouba"]
["PS-JEN","Jenin"]
["KR-45","Jeollabuk-do"]
["KR-46","Jeollanam-do"]
["PS-JRH","Jericho and Al Aghwar"]
["PS-JEM","Jerusalem"]
["SI-041","Jesenice"]
["CZ-711","Jeseník"]
["BD-22","Jessore"]
["SI-163","Jezersko"]
["BD-25","Jhalakathi"]
["IN-JH","Jharkhand"]
["BD-23","Jhenaidah"]
["CN-32","Jiangsu"]
["CN-36","Jiangxi"]
["DJ-DJ","Jībūtī"]
["CZ-522","Jičín"]
["NG-JI","Jigawa"]
["CZ-632","Jihlava"]
["CZ-31","Jihočeský kraj"]
["CZ-64","Jihomoravský kraj"]
["DZ-18","Jijel"]
["CN-22","Jilin"]
["CZ-313","Jindřichův Hradec"]
["UG-204","Jinja"]
["NI-JI","Jinotega"]
["PG-JWK","Jiwaka"]
["UZ-JI","Jizzax"]
["EE-49","Jõgevamaa"]
["UM-67","Johnston Atoll"]
["MY-01","Johor"]
["LT-10","Jonava"]
["SS-JG","Jonglei"]
["LT-11","Joniškis"]
["SE-F","Jönköpings län [SE-06]"]
["AF-JOW","Jowzjān"]
["AF-JOW","Jowzjān"]
["BD-24","Joypurhat"]
["MA-JRA","Jrada"]
["SO-JD","Jubbada Dhexe"]
["SO-JH","Jubbada Hoose"]
["AR-Y","Jujuy"]
["PE-JUN","Junin"]
["PE-JUN","Junín"]
["CH-JU","Jura"]
["FR-39","Jura"]
["LT-12","Jurbarkas"]
["LV-JUR","Jūrmala"]
["SI-042","Juršinci"]
["GT-JU","Jutiapa"]
["RS-06","Južnobački okrug"]
["RS-04","Južnobanatski okrug"]
["KZ-YUZ","Južno-Kazahstanskaja oblast'"]
["BW-JW","Jwaneng"]
["UG-318","Kaabong"]
["MV-26","Kaafu"]
["UG-404","Kabale"]
["RU-KB","Kabardino-Balkarskaja Respublika"]
["RU-KB","Kabardino-Balkarskaya Respublika"]
["UG-405","Kabarole"]
["UG-213","Kaberamaido"]
["PH-CAV","Kabite"]
["AF-KAB","Kābul"]
["AF-KAB","Kābul"]
["MM-11","Kachin"]
["FJ-04","Kadavu"]
["BF-KAD","Kadiogo"]
["NG-KD","Kaduna"]
["LK-92","Kægalla"]
["SN-KA","Kaffrine"]
["EG-KFS","Kafr ash Shaykh"]
["JP-37","Kagawa"]
["PH-CAG","Kagayan"]
["TZ-05","Kagera"]
["JP-46","Kagoshima"]
["JP-46","Kagosima"]
["TR-46","Kahramanmaraş"]
["FI-05","Kainuu"]
["TN-41","Kairouan"]
["LT-13","Kaišiadorys"]
["FI-05","Kajanaland"]
["KE-10","Kajiado"]
["KE-11","Kakamega"]
["GE-KA","K'akheti"]
["UG-101","Kalangala"]
["TH-46","Kalasin"]
["LK-31","Kāli"]
["ID-KA","Kalimantan"]
["ID-KB","Kalimantan Barat"]
["ID-KS","Kalimantan Selatan"]
["ID-KT","Kalimantan Tengah"]
["ID-KI","Kalimantan Timur"]
["ID-KU","Kalimantan Utara"]
["PH-KAL","Kalinga"]
["PH-KAL","Kalinga"]
["RU-KGD","Kaliningradskaja oblast'"]
["RU-KGD","Kaliningradskaya oblast'"]
["UG-222","Kaliro"]
["MT-21","Kalkara"]
["MT-21","Kalkara"]
["PE-CAL","Kallao"]
["SE-H","Kalmar län [SE-08]"]
["RU-KL","Kalmykija, Respublika"]
["RU-KL","Kalmykiya, Respublika"]
["UG-122","Kalungu"]
["LK-13","Kalutara"]
["LK-13","Kaḷutara"]
["LK-13","Kaḷuttuṟai"]
["RU-KLU","Kaluzhskaya oblast'"]
["RU-KLU","Kalužskaja oblast'"]
["LT-14","Kalvarijos"]
["RU-KAM","Kamčatskij kraj"]
["RU-KAM","Kamchatskiy kray"]
["PH-CAM","Kamigin"]
["SI-043","Kamnik"]
["LK-12","Kampahā"]
["UG-102","Kampala"]
["TH-62","Kamphaeng Phet"]
["KH-3","Kampong Chaam"]
["KH-3","Kâmpóng Cham"]
["KH-4","Kampong Chhnang"]
["KH-4","Kâmpóng Chhnăng"]
["KH-5","Kâmpóng Spœ"]
["KH-5","Kampong Spueu"]
["KH-6","Kampong Thum"]
["KH-6","Kâmpóng Thum"]
["KH-7","Kampot"]
["KH-7","Kâmpôt"]
["UG-205","Kamuli"]
["UG-413","Kamwenge"]
["JP-14","Kanagawa"]
["SI-044","Kanal"]
["TH-71","Kanchanaburi"]
["KH-8","Kandaal"]
["AF-KAN","Kandahār"]
["AF-KAN","Kandahār"]
["KH-8","Kândal"]
["LV-043","Kandavas novads"]
["LK-21","Kandy"]
["TD-KA","Kanem"]
["KP-07","Kangweonto"]
["KP-07","Kangwǒn-do"]
["TD-KA","Kānim"]
["GN-K","Kankan"]
["GN-KA","Kankan"]
["PH-DVO","Kanlurang Dabaw"]
["PH-MDC","Kanlurang Mindoro"]
["PH-MSC","Kanlurang Misamis"]
["PH-NEC","Kanlurang Negros"]
["NG-KN","Kano"]
["US-KS","Kansas"]
["FI-06","Kanta-Häme"]
["LK-21","Kaṇṭi"]
["UG-414","Kanungu"]
["KH-9","Kaoh Kong"]
["KH-9","Kaôh Kŏng"]
["TW-KHH","Kaohsiung"]
["SN-KL","Kaolack"]
["ZA-WC","Kapa Bodikela"]
["ZA-EC","Kapa Bohlabela"]
["ZA-NC","Kapa Bokone"]
["ZA-WC","Kapa Bophirima"]
["ZA-WC","Kapa Bophirimela"]
["ZA-EC","Kapa Botjhabela"]
["ZA-EC","Kapa Botlhaba"]
["ZA-NC","Kapa Devhula"]
["ZA-NC","Kapa Leboya"]
["ZA-NC","Kapa Leboya"]
["ZA-EC","Kapa Vhubvaḓuvha"]
["ZA-WC","Kapa Vhukovhela"]
["ZA-NC","Kapa-N'walungu"]
["ZA-WC","Kapa-Vupeladyambu"]
["ZA-EC","Kapa-Vuxa"]
["UG-206","Kapchorwa"]
["LU-CA","Kapellen"]
["PH-CAP","Kapis"]
["AF-KAP","Kāpīsā"]
["AF-KAP","Kāpīsā"]
["HU-KV","Kaposvár"]
["TG-K","Kara"]
["TR-78","Karabük"]
["RU-KC","Karačaevo-Čerkesskaja Respublika"]
["RU-KC","Karachayevo-Cherkesskaya Respublika"]
["KZ-KAR","Karagandinskaja oblast'"]
["KZ-KAR","Karagandinskaya oblast'"]
["TR-70","Karaman"]
["NA-KA","Karas"]
["IQ-KA","Karbalā’"]
["MK-37","Karbinci"]
["BG-09","Kardzhali"]
["RU-KR","Karelija, Respublika"]
["RU-KR","Kareliya, Respublika"]
["HR-04","Karlovačka županija"]
["CZ-41","Karlovarský kraj"]
["CZ-412","Karlovy Vary"]
["NP-KA","Karnali"]
["IN-KA","Karnataka"]
["AT-2","Kärnten"]
["MW-KR","Karonga"]
["MW-KR","Karonga"]
["TR-36","Kars"]
["LV-044","Kārsavas novads"]
["BI-KR","Karuzi"]
["BI-KR","Karuzi"]
["CZ-803","Karviná"]
["CD-KS","Kasaï"]
["CD-KC","Kasaï Central"]
["CD-KE","Kasaï Oriental"]
["UG-406","Kasese"]
["PE-CAJ","Kashamarka"]
["SC-11","Kaskad"]
["TZ-06","Kaskazini Pemba"]
["TZ-07","Kaskazini Unguja"]
["SD-KA","Kassala"]
["SD-KA","Kassalā"]
["TN-42","Kasserine"]
["TR-37","Kastamonu"]
["MW-KS","Kasungu"]
["MW-KS","Kasungu"]
["UG-207","Katakwi"]
["PH-CAT","Katanduwanes"]
["TZ-28","Katavi"]
["PH-SLE","Katimogang Leyte"]
["NG-KT","Katsina"]
["LT-16","Kaunas"]
["LT-KU","Kauno apskritis"]
["LT-15","Kauno miestas"]
["MK-36","Kavadarci"]
["NA-KE","Kavango East"]
["NA-KW","Kavango West"]
["MM-12","Kayah"]
["PW-100","Kayangel"]
["PW-100","Kayangel"]
["BI-KY","Kayanza"]
["BI-KY","Kayanza"]
["ML-1","Kayes"]
["MM-13","Kayin"]
["TR-38","Kayseri"]
["UG-112","Kayunga"]
["LT-17","Kazlų Rūdos"]
["NG-KE","Kebbi"]
["TN-73","Kébili"]
["HU-KM","Kecskemét"]
["MY-02","Kedah"]
["LT-18","Kėdainiai"]
["SN-KE","Kédougou"]
["TW-KEE","Keelung"]
["LK-92","Kegalla"]
["LV-051","Ķeguma novads"]
["LK-92","Kekālai"]
["LV-052","Ķekavas novads"]
["MA-KES","Kelaat es Sraghna"]
["MY-03","Kelantan"]
["AZ-KAL","Kəlbəcər"]
["LT-19","Kelmė"]
["RU-KEM","Kemerovskaja oblast'"]
["RU-KEM","Kemerovskaya oblast'"]
["CF-KG","Kemö-Gïrïbïngï"]
["CF-KG","Kémo-Gribingui"]
["BF-KEN","Kénédougou"]
["AZ-KAN","Kǝngǝrli"]
["MA-KEN","Kénitra"]
["GB-KEC","Kensington and Chelsea"]
["GB-KEN","Kent"]
["GR-B","Kentrikí Makedonía"]
["US-KY","Kentucky"]
["ID-BB","Kepulauan Bangka Belitung"]
["ID-KR","Kepulauan Riau"]
["IN-KL","Kerala"]
["MT-22","Kerċem"]
["MT-22","Kerċem"]
["KE-12","Kericho"]
["IR-15","Kermān"]
["IR-17","Kermānshāh"]
["GN-KE","Kérouané"]
["IE-KY","Kerry"]
["CY-06","Keryneia"]
["FI-07","Keski-Pohjanmaa"]
["FI-08","Keski-Suomi"]
["PH-QUE","Keson"]
["BW-KG","Kgalagadi"]
["BW-KL","Kgatleng"]
["ZA-GT","Kgauteng"]
["RU-KHA","Khabarovskiy kray"]
["BD-29","Khagrachhari"]
["PK-KP","Khaībar Pakhtūnkhwā"]
["RU-KK","Khakasiya, Respublika"]
["LA-KH","Khammouan"]
["PS-KYS","Khan Yunis"]
["PS-KYS","Khān Yūnis"]
["VN-34","Khánh Hòa"]
["RU-KHM","Khanty-Mansiyskiy avtonomnyy okrug"]
["UA-63","Kharkivska oblast"]
["SD-KH","Khartoum"]
["TJ-KT","Khatlon"]
["MA-KHE","Khemisset"]
["DZ-40","Khenchela"]
["MA-KHN","Khenifra"]
["UA-65","Khersonska oblast"]
["UA-68","Khmelnytska oblast"]
["NA-KH","Khomas"]
["TH-40","Khon Kaen"]
["IR-29","Khorāsān-e Jonūbī"]
["IR-30","Khorāsān-e Raẕavī"]
["IR-31","Khorāsān-e Shomālī"]
["AF-KHO","Khōst"]
["AF-KHO","Khōst"]
["MA-KHO","Khouribga"]
["BD-D","Khulna"]
["BD-27","Khulna"]
["IR-10","Khūzestān"]
["PK-KP","Khyber Pakhtunkhwa"]
["KE-13","Kiambu"]
["UG-407","Kibaale"]
["UG-103","Kiboga"]
["UG-227","Kibuku"]
["MK-40","Kičevo"]
["ML-8","Kidal"]
["SI-045","Kidričevo"]
["VN-47","Kiến Giang"]
["GQ-KN","Kié-Ntem"]
["GQ-KN","Kié-Ntem"]
["GQ-KN","Kié-Ntem"]
["TZ-08","Kigoma"]
["LK-5","Kil̮akku mākāṇam"]
["IE-KE","Kildare"]
["KE-14","Kilifi"]
["TZ-09","Kilimanjaro"]
["LK-42","Kilinochchi"]
["LK-42","Kilinŏchchi"]
["LK-42","Kiḷinochchi"]
["TR-79","Kilis"]
["IE-KK","Kilkenny"]
["GN-D","Kindia"]
["GN-KD","Kindia"]
["UM-89","Kingman Reef"]
["JM-01","Kingston"]
["GB-KHL","Kingston upon Hull"]
["GB-KTT","Kingston upon Thames"]
["TW-KIN","Kinmen"]
["CD-KN","Kinshasa"]
["TR-71","Kırıkkale"]
["PH-QUI","Kirino"]
["KE-15","Kirinyaga"]
["TR-39","Kırklareli"]
["GB-KIR","Kirklees"]
["MT-23","Kirkop"]
["MT-23","Kirkop"]
["IQ-KI","Kirkūk"]
["UA-35","Kirovohradska oblast"]
["RU-KIR","Kirovskaja oblast'"]
["RU-KIR","Kirovskaya oblast'"]
["TR-40","Kırşehir"]
["UG-419","Kiruhura"]
["BI-KI","Kirundo"]
["BI-KI","Kirundo"]
["UG-421","Kiryandongo"]
["BD-26","Kishoreganj"]
["KE-16","Kisii"]
["UG-408","Kisoro"]
["GN-KS","Kissidougou"]
["KE-17","Kisumu"]
["UG-305","Kitgum"]
["KE-18","Kitui"]
["CZ-203","Kladno"]
["LT-21","Klaipėda"]
["LT-KL","Klaipėdos apskritis"]
["LT-20","Klaipėdos miestas"]
["CZ-322","Klatovy"]
["LU-CL","Klierf"]
["GB-KWL","Knowsley"]
["SI-046","Kobarid"]
["SI-047","Kobilje"]
["UG-319","Koboko"]
["TR-41","Kocaeli"]
["MK-42","Kočani"]
["LV-045","Kocēnu novads"]
["SI-048","Kočevje"]
["JP-39","Kochi"]
["NG-KO","Kogi"]
["IR-18","Kohgīlūyeh va Bowyer Aḩmad"]
["LV-046","Kokneses novads"]
["LK-11","Kŏḷamba"]
["ME-09","Kolašin"]
["SN-KD","Kolda"]
["UG-325","Kole"]
["MV-08","Kolhumadulu"]
["CZ-204","Kolín"]
["RS-09","Kolubarski okrug"]
["LK-11","Kŏl̮umpu"]
["HU-KE","Komárom-Esztergom"]
["SI-049","Komen"]
["SI-164","Komenda"]
["RU-KO","Komi, Respublika"]
["RU-KO","Komi, Respublika"]
["GL-KU","Kommune Kujalleq"]
["GL-SM","Kommuneqarfik Sermersooq"]
["BF-KMD","Komondjari"]
["BF-KMP","Kompienga"]
["VN-28","Kon Tum"]
["MK-41","Konče"]
["CD-BC","Kongo Central"]
["TR-42","Konya"]
["SI-050","Koper"]
["HR-06","Koprivničko-križevačka županija"]
["AL-06","Korçë"]
["IR-16","Kordestān"]
["PW-150","Koror"]
["PW-150","Koror"]
["SI-197","Kosanjevica na Krki"]
["NP-KO","Kosi"]
["SK-KI","Košický kraj"]
["RS-KM","Kosovo-Metohija"]
["RS-25","Kosovski okrug"]
["RS-28","Kosovsko-Mitrovački okrug"]
["RS-29","Kosovsko-Pomoravski okrug"]
["FM-KSA","Kosrae"]
["BF-KOS","Kossi"]
["KZ-KUS","Kostanajskaja oblast'"]
["KZ-KUS","Kostanayskaya oblast'"]
["SI-165","Kostel"]
["RU-KOS","Kostromskaja oblast'"]
["RU-KOS","Kostromskaya oblast'"]
["PH-NCO","Kotabato"]
["AM-KT","Kotayk'"]
["JP-39","Kôti"]
["UG-306","Kotido"]
["ME-10","Kotor"]
["GN-KB","Koubia"]
["CG-5","Kouilou"]
["ML-2","Koulikoro"]
["BF-KOP","Koulpélogo"]
["GN-KN","Koundara"]
["BF-KOT","Kouritenga"]
["GN-KO","Kouroussa"]
["BF-KOW","Kourwéogo"]
["TL-CO","Kovalima"]
["SI-051","Kozje"]
["TH-81","Krabi"]
["KH-10","Kracheh"]
["KH-10","Krâchéh"]
["CZ-63","Kraj Vysočina"]
["CZ-52","Královéhradecký kraj"]
["SI-052","Kranj"]
["SI-053","Kranjska Gora"]
["HR-02","Krapinsko-zagorska županija"]
["LV-047","Krāslavas novads"]
["RU-KDA","Krasnodarskij kraj"]
["RU-KDA","Krasnodarskiy kray"]
["RU-KYA","Krasnojarskij kraj"]
["RU-KYA","Krasnoyarskiy kray"]
["MK-43","Kratovo"]
["LT-22","Kretinga"]
["LV-048","Krimuldas novads"]
["GR-M","Kríti"]
["MK-44","Kriva Palanka"]
["MK-45","Krivogaštani"]
["SI-166","Križevci"]
["CZ-721","Kroměříž"]
["KH-23","Krong Kaeb"]
["KH-23","Krŏng Kêb"]
["KH-24","Krong Pailin"]
["KH-24","Krŏng Pailĭn"]
["KH-18","Krong Preah Sihanouk"]
["KH-18","Krŏng Preăh Sihanouk"]
["SE-G","Kronobergs län [SE-07]"]
["SI-054","Krško"]
["TH-10","Krung Thep Maha Nakhon"]
["MK-46","Kruševo"]
["LV-049","Krustpils novads"]
["AO-CCU","Kuando Kubango"]
["TJ-GB","Kŭhistoni Badakhshon"]
["PL-KP","Kujawsko-pomorskie"]
["AL-07","Kukës"]
["LV-050","Kuldīgas novads"]
["JP-43","Kumamoto"]
["MK-47","Kumanovo"]
["UG-208","Kumi"]
["PA-KY","Kuna Yala"]
["AF-KNR","Kunaṟ"]
["AF-KNR","Kunaṟ"]
["AF-KDZ","Kunduz"]
["AF-KDZ","Kunduz"]
["NA-KU","Kunene"]
["SI-055","Kungota"]
["LT-23","Kupiškis"]
["AZ-KUR","Kürdəmir"]
["RU-KGN","Kurganskaja oblast'"]
["RU-KGN","Kurganskaya oblast'"]
["BD-28","Kurigram"]
["RU-KRS","Kurskaja oblast'"]
["RU-KRS","Kurskaya oblast'"]
["LK-61","Kuruṇægala"]
["LK-61","Kurunākal"]
["LK-61","Kurunegala"]
["BD-30","Kushtia"]
["TZ-10","Kusini Pemba"]
["TZ-11","Kusini Unguja"]
["PE-CUS","Kusku"]
["TR-43","Kütahya"]
["CZ-205","Kutná Hora"]
["SI-056","Kuzma"]
["GE-KK","Kvemo Kartli"]
["MH-KWA","Kwajalein"]
["MH-KWA","Kwajalein"]
["KE-19","Kwale"]
["CD-KG","Kwango"]
["AO-CNO","Kwanza Norte"]
["AO-CUS","Kwanza Sul"]
["NG-KW","Kwara"]
["ZA-NL","Kwazulu-Natal"]
["ZA-NL","Kwazulu-Natal"]
["ZA-NL","KwaZulu-Natal"]
["ZA-NL","KwaZulu-Natal"]
["ZA-NL","KwaZulu-Natala"]
["ZA-NL","KwaZulu-Natali"]
["ZA-NL","KwaZulu-Natali"]
["UG-228","Kween"]
["BW-KW","Kweneng"]
["CD-KL","Kwilu"]
["UG-123","Kyankwanzi"]
["UG-422","Kyegegwa"]
["UG-415","Kyenjojo"]
["UA-30","Kyiv"]
["UA-32","Kyivska oblast"]
["FI-09","Kymenlaakso"]
["FI-09","Kymmenedalen"]
["JP-26","Kyoto"]
["JP-26","Kyôto"]
["BG-10","Kyustendil"]
["KZ-KZY","Kyzylordinskaja oblast'"]
["KZ-KZY","Kyzylordinskaya oblast'"]
["DO-11","La Altagracia"]
["CL-AR","La Araucanía"]
["MC-CL","La Colle"]
["MC-CO","La Condamine"]
["SC-15","La Digue"]
["SC-15","La Digue"]
["MC-GA","La Gare"]
["CO-LAG","La Guajira"]
["CU-03","La Habana"]
["PE-LAL","La Libertad"]
["PE-LAL","La Libertad"]
["SV-LI","La Libertad"]
["TN-14","La Manouba"]
["AD-04","La Massana"]
["AR-L","La Pampa"]
["BO-L","La Paz"]
["HN-LP","La Paz"]
["SV-PA","La Paz"]
["FR-LRE","La Réunion"]
["FR-RE","La Réunion (see also separate country code entry under RE)"]
["AR-F","La Rioja"]
["ES-RI","La Rioja"]
["ES-LO","La Rioja"]
["SC-16","La Rivière Anglaise"]
["DO-12","La Romana"]
["MC-SO","La Source"]
["IT-SP","La Spezia"]
["PH-LUN","La Union"]
["SV-UN","La Unión"]
["PH-LUN","La Unyon"]
["DO-13","La Vega"]
["MV-05","Laamu"]
["EE-57","Läänemaa"]
["EE-59","Lääne-Virumaa"]
["MA-LAA","Laâyoune"]
["MA-15","Laâyoune-Boujdour-Sakia el Hamra"]
["GN-L","Labé"]
["GN-LA","Labé"]
["LC-07","Laborie"]
["TD-LC","Lac"]
["AZ-LAC","Laçın"]
["CI-LC","Lacs"]
["SC-15","Ladig"]
["MH-LAE","Lae"]
["MH-LAE","Lae"]
["AF-LAG","Laghmān"]
["AF-LAG","Laghmān"]
["DZ-03","Laghouat"]
["NG-LA","Lagos"]
["PH-LAG","Laguna"]
["PH-LAG","Laguna"]
["CI-LG","Lagunes"]
["YE-LA","Laḩij"]
["VN-01","Lai Châu"]
["IE-L","Laighin"]
["KE-20","Laikipia"]
["SS-LK","Lakes"]
["IN-LD","Lakshadweep"]
["BD-31","Lakshmipur"]
["PH-MOU","Lalawigang Bulubundukin"]
["BD-32","Lalmonirhat"]
["VN-35","Lâm Đồng"]
["PH-COM","Lambak ng Kompostela"]
["PE-LAM","Lambayeque"]
["PE-LAM","Lambayeque"]
["GB-LBH","Lambeth"]
["PE-LAM","Lampalliqi"]
["TH-52","Lampang"]
["TH-51","Lamphun"]
["ID-LA","Lampung"]
["KE-21","Lamu"]
["UG-326","Lamwo"]
["PH-LAN","Lanao del Norte"]
["PH-LAS","Lanao del Sur"]
["GB-LAN","Lancashire"]
["FR-40","Landes"]
["FI-01","Landskapet Åland"]
["VN-09","Lạng Sơn"]
["VN-02","Lào Cai"]
["IE-LS","Laois"]
["IE-LS","Laois"]
["FI-10","Lappi"]
["FI-10","Lappland"]
["IT-AQ","L'Aquila"]
["VE-K","Lara"]
["MA-LAR","Larache"]
["TN-12","L'Ariana"]
["SC-16","Larivyer Anglez"]
["CY-03","Larnaka"]
["CY-03","Larnaka"]
["MC-LA","Larvotto"]
["ES-GC","Las Palmas"]
["CU-10","Las Tunas"]
["SI-057","Laško"]
["HT-AR","Latibonit"]
["IT-LT","Latina"]
["FJ-05","Lau"]
["TL-LA","Lautem"]
["TL-LA","Lautém"]
["UY-LA","Lavalleja"]
["LT-24","Lazdijai"]
["IT-62","Lazio"]
["TN-33","Le Kef"]
["TM-L","Lebap"]
["ZA-NW","Lebowa Bodikela"]
["ZA-NW","Leboya (le) Bophirima"]
["IT-LE","Lecce"]
["IT-LC","Lecco"]
["GB-LDS","Leeds"]
["CY-01","Lefkoşa"]
["CY-01","Lefkosia"]
["GB-LCE","Leicester"]
["GB-LEC","Leicestershire"]
["IE-L","Leinster"]
["PT-10","Leiria"]
["IE-LM","Leitrim"]
["CG-2","Lékoumou"]
["GN-LE","Lélouma"]
["SC-24","Lemamel"]
["CY-02","Lemesos"]
["HN-LE","Lempira"]
["SI-058","Lenart"]
["SI-059","Lendava"]
["RU-LEN","Leningradskaja oblast'"]
["RU-LEN","Leningradskaya oblast'"]
["AZ-LA","Lənkəran"]
["AZ-LAN","Lənkəran"]
["ES-LE","León"]
["NI-LE","León"]
["MD-LE","Leova"]
["BF-LER","Léraba"]
["LS-C","Leribe"]
["LS-C","Leribe"]
["AZ-LER","Lerik"]
["SC-24","Les Mamelles"]
["SC-24","Les Mamelles"]
["GW-L","Leste"]
["LU-LU","Lëtzebuerg"]
["GB-LEW","Lewisham"]
["CY-02","Leymosun"]
["PH-LEY","Leyte"]
["PH-LEY","Leyte"]
["AL-08","Lezhë"]
["MV-03","Lhaviyani"]
["BT-44","Lhuentse"]
["CN-21","Liaoning"]
["IE-LM","Liatroim"]
["MH-LIB","Lib"]
["MH-LIB","Lib"]
["LB-AS","Liban-Nord"]
["LB-JA","Liban-Sud"]
["CZ-513","Liberec"]
["CZ-51","Liberecký kraj"]
["CL-LI","Libertador General Bernardo O'Higgins"]
["HR-09","Ličko-senjska županija"]
["BE-WLG","Liège"]
["LV-053","Lielvārdes novads"]
["TW-LIE","Lienchiang"]
["LV-LPX","Liepāja"]
["LV-055","Līgatnes novads"]
["IT-42","Liguria"]
["MT-24","Lija"]
["MT-24","Lija"]
["MH-LIK","Likiep"]
["MH-LIK","Likiep"]
["TL-LI","Likisá"]
["MW-LK","Likoma"]
["MW-LK","Likoma"]
["CG-7","Likouala"]
["MW-LI","Lilongwe"]
["MW-LI","Lilongwe"]
["PE-LIM","Lima"]
["PE-LIM","Lima"]
["PE-LIM","Lima"]
["PE-LMA","Lima hatun llaqta"]
["PE-LMA","Lima llaqta suyu"]
["LV-054","Limbažu novads"]
["BE-VLI","Limburg"]
["NL-LI","Limburg"]
["IE-LK","Limerick"]
["CR-L","Limón"]
["ZA-LP","Limpopo"]
["ZA-LP","Limpopo"]
["ZA-LP","Limpopo"]
["ZA-LP","Limpopo"]
["ZA-LP","Limpopo"]
["ZA-LP","Limpopo"]
["ZA-LP","Limpopo"]
["ZA-LP","Limpopo"]
["ZA-LP","Limpopo"]
["ZA-LP","Limpopo"]
["GB-LIN","Lincolnshire"]
["TZ-12","Lindi"]
["KI-L","Line Islands"]
["RU-LIP","Lipeckaja oblast'"]
["RU-LIP","Lipetskaya oblast'"]
["MK-48","Lipkovo"]
["TL-LI","Liquiça"]
["UG-307","Lira"]
["PT-11","Lisboa"]
["GB-LBC","Lisburn and Castlereagh"]
["SI-060","Litija"]
["CZ-423","Litoměřice"]
["GQ-LI","Litoral"]
["GQ-LI","Litoral"]
["BJ-LI","Littoral"]
["CM-LT","Littoral"]
["CM-LT","Littoral"]
["GQ-LI","Littoral"]
["LV-056","Līvānu novads"]
["GB-LIV","Liverpool"]
["IT-LI","Livorno"]
["SI-061","Ljubljana"]
["SI-062","Ljubno"]
["SI-063","Ljutomer"]
["ES-L","Lleida [Lérida]"]
["BW-LO","Lobatse"]
["CF-LB","Lobaye"]
["CF-LB","Lobâye"]
["IE-WX","Loch Garman"]
["IT-LO","Lodi"]
["PL-LD","Łódzkie"]
["TH-42","Loei"]
["LR-LO","Lofa"]
["AF-LOG","Lōgar"]
["AF-LOG","Lōgar"]
["SI-064","Logatec"]
["SI-208","Log-Dragomer"]
["TD-LO","Logone-Occidental"]
["TD-LR","Logone-Oriental"]
["FR-42","Loire"]
["FR-44","Loire-Atlantique"]
["FR-45","Loiret"]
["FR-41","Loir-et-Cher"]
["EC-L","Loja"]
["GN-LO","Lola"]
["FJ-06","Lomaiviti"]
["CD-LO","Lomami"]
["IT-25","Lombardia"]
["GB-LND","London, City of"]
["VN-41","Long An"]
["BS-LI","Long Island"]
["IE-LD","Longford"]
["TH-16","Lop Buri"]
["IR-20","Lorestān"]
["PE-LOR","Loreto"]
["AM-LO","Loṙi"]
["MA-04","L'Oriental"]
["BF-LOR","Loroum"]
["CL-LL","Los Lagos"]
["CL-LR","Los Ríos"]
["EC-R","Los Ríos"]
["PA-7","Los Santos"]
["SI-065","Loška Dolina"]
["SI-066","Loški Potok"]
["FR-46","Lot"]
["FR-47","Lot-et-Garonne"]
["LA-LM","Louang Namtha"]
["LA-LP","Louangphabang"]
["SN-LG","Louga"]
["US-LA","Louisiana"]
["CZ-424","Louny"]
["IE-LH","Louth"]
["BG-11","Lovech"]
["SI-167","Lovrenc na Pohorju"]
["GM-L","Lower River"]
["FR-48","Lozère"]
["MK-49","Lozovo"]
["IE-LH","Lú"]
["CD-LU","Lualaba"]
["AO-LUA","Luanda"]
["ZM-04","Luapula"]
["LV-057","Lubānas novads"]
["PL-LU","Lubelskie"]
["SZ-LU","Lubombo"]
["SZ-LU","Lubombo"]
["PL-LB","Lubuskie"]
["IT-LU","Lucca"]
["SI-067","Luče"]
["LV-058","Ludzas novads"]
["ES-LU","Lugo [Lugo]"]
["UA-09","Luhanska oblast"]
["IE-LK","Luimneach"]
["SI-068","Lukovica"]
["NP-LU","Lumbini"]
["AO-LNO","Lunda Norte"]
["AO-LSU","Lunda Sul"]
["MT-25","Luqa"]
["MT-25","Luqa"]
["TD-LO","Lūqūn al Gharbī"]
["TD-LR","Lūqūn ash Sharqī"]
["PE-LOR","Luritu"]
["PE-LOR","Luritu"]
["ZM-09","Lusaka"]
["GB-LUT","Luton"]
["UG-229","Luuka"]
["UG-104","Luwero"]
["BE-WLX","Luxembourg"]
["LU-LU","Luxembourg"]
["LU-LU","Luxemburg"]
["CH-LU","Luzern"]
["UA-46","Lvivska oblast"]
["UG-124","Lwengo"]
["HT-OU","Lwès"]
["UG-114","Lyantonde"]
["JO-MN","Ma‘ān"]
["ER-MA","Ma’ĭkel"]
["YE-MA","Ma’rib"]
["MV-MLE","Maale"]
["MV-26","Maale Atholhu"]
["MV-20","Maalhosmadulu Dhekunuburi"]
["MV-13","Maalhosmadulu Uthuruburi"]
["CN-92","Macao"]
["GN-MC","Macenta"]
["IT-MC","Macerata"]
["KE-22","Machakos"]
["MW-MH","Machinga"]
["MW-MH","Machinga"]
["FJ-07","Macuata"]
["RS-08","Mačvanski okrug"]
["JO-MD","Mādabā"]
["LK-51","Maḍakalapuva"]
["PG-MPM","Madang"]
["BD-36","Madaripur"]
["NP-2","Madhya Pashchimanchal"]
["IN-MP","Madhya Pradesh"]
["LK-2","Madhyama paḷāta"]
["NP-1","Madhyamanchal"]
["TD-ND","Madīnat Injamīnā"]
["LV-059","Madonas novads"]
["PE-MDD","Madre de Dios"]
["PE-MDD","Madre de Dios"]
["ES-M","Madrid"]
["ES-MD","Madrid, Comunidad de"]
["NI-MD","Madriz"]
["TH-58","Mae Hong Son"]
["LS-E","Mafeteng"]
["LS-E","Mafeteng"]
["RU-MAG","Magadanskaja oblast'"]
["RU-MAG","Magadanskaya oblast'"]
["CL-MA","Magallanes"]
["CO-MAG","Magdalena"]
["PH-MAG","Magindanaw"]
["PH-MAG","Maguindanao"]
["BD-37","Magura"]
["MM-03","Magway"]
["TH-44","Maha Sarakham"]
["GY-MA","Mahaica-Berbice"]
["MG-M","Mahajanga"]
["NP-MA","Mahakali"]
["LK-21","Mahanuvara"]
["IN-MH","Maharashtra"]
["TN-53","Mahdia"]
["BY-MA","Mahilioŭskaja voblasć"]
["BY-MA","Mahilyowskaya voblasts'"]
["IE-MO","Maigh Eo"]
["CD-MN","Mai-Ndombe"]
["US-ME","Maine"]
["FR-49","Maine-et-Loire"]
["CV-MA","Maio"]
["SI-069","Majšperk"]
["MH-MAJ","Majuro"]
["MH-MAJ","Majuro"]
["BI-MA","Makamba"]
["BI-MA","Makamba"]
["MK-51","Makedonska Kamenica"]
["MK-52","Makedonski Brod"]
["SB-MK","Makira-Ulawa"]
["SA-02","Makkah al Mukarramah"]
["SI-198","Makole"]
["KE-23","Makueni"]
["ES-MA","Málaga"]
["SB-ML","Malaita"]
["VU-MAP","Malampa"]
["VU-MAP","Malampa"]
["AO-MAL","Malange"]
["TR-44","Malatya"]
["MC-MA","Malbousquet"]
["UY-MA","Maldonado"]
["MV-MLE","Male"]
["GN-ML","Mali"]
["MH-MAL","Maloelap"]
["MH-MAL","Maloelap"]
["PL-MA","Małopolskie"]
["LV-061","Mālpils novads"]
["ID-ML","Maluku"]
["ID-MA","Maluku"]
["ID-MU","Maluku Utara"]
["GN-M","Mamou"]
["GN-MM","Mamou"]
["EC-M","Manabí"]
["UG-223","Manafwa"]
["NI-MN","Managua"]
["TL-MT","Manatuto"]
["TL-MT","Manatutu"]
["NZ-MWT","Manawatu Whanganui"]
["NZ-MWT","Manawatu-Wanganui"]
["FR-50","Manche"]
["GB-MAN","Manchester"]
["JM-12","Manchester"]
["MM-04","Mandalay"]
["KE-24","Mandera"]
["GN-MD","Mandiana"]
["TD-MA","Mandoul"]
["TD-MA","Māndūl"]
["KZ-MAN","Mangghystaū oblysy"]
["KZ-MAN","Mangistauskaya oblast'"]
["MW-MG","Mangochi"]
["MW-MG","Mangochi"]
["BS-MC","Mangrove Cay"]
["KZ-MAN","Mangystauskaja oblast'"]
["MZ-B","Manica"]
["ZW-MA","Manicaland"]
["CD-MA","Maniema"]
["BD-33","Manikganj"]
["IN-MN","Manipur"]
["TR-45","Manisa"]
["CA-MB","Manitoba"]
["CA-MB","Manitoba"]
["LK-43","Mannar"]
["LK-43","Maṉṉār"]
["LK-43","Mannārama"]
["IT-MN","Mantova"]
["TL-MF","Manufahi"]
["TL-MF","Manufahi"]
["PG-MRL","Manus"]
["TZ-26","Manyara"]
["SZ-MA","Manzini"]
["SZ-MA","Manzini"]
["MZ-MPM","Maputo"]
["MZ-L","Maputo"]
["TZ-13","Mara"]
["UG-320","Maracha"]
["NE-4","Maradi"]
["RO-MM","Maramureș"]
["BR-MA","Maranhão"]
["IT-57","Marche"]
["TR-47","Mardin"]
["LR-MG","Margibi"]
["DO-14","María Trinidad Sánchez"]
["SI-070","Maribor"]
["RU-ME","Marij Èl, Respublika"]
["LT-25","Marijampolė"]
["LT-MR","Marijampolės apskritis"]
["PH-MAD","Marinduke"]
["PH-MAD","Marinduque"]
["TG-M","Maritime (Région)"]
["RU-ME","Mariy El, Respublika"]
["IR-22","Markazī"]
["SI-168","Markovci"]
["NZ-MBH","Marlborough"]
["FR-51","Marne"]
["SR-MA","Marowijne"]
["MA-MMD","Marrakech-Medina"]
["MA-MMN","Marrakech-Menara"]
["MA-11","Marrakech-Tensift-Al Haouz"]
["MT-26","Marsa"]
["MT-26","Marsa"]
["KE-25","Marsabit"]
["MT-27","Marsaskala"]
["MT-27","Marsaskala"]
["MT-28","Marsaxlokk"]
["MT-28","Marsaxlokk"]
["FR-MQ","Martinique (see also separate country code entry under MQ)"]
["LV-062","Mārupes novads"]
["TM-M","Mary"]
["LR-MY","Maryland"]
["US-MD","Maryland"]
["UG-105","Masaka"]
["AZ-MAS","Masallı"]
["NI-MS","Masaya"]
["PH-MAS","Masbate"]
["PH-MAS","Masbate"]
["DZ-29","Mascara"]
["LS-A","Maseru"]
["LS-A","Maseru"]
["ZW-MC","Mashonaland Central"]
["ZW-ME","Mashonaland East"]
["ZW-MW","Mashonaland West"]
["UG-409","Masindi"]
["OM-MA","Masqaţ"]
["IT-MS","Massa-Carrara"]
["US-MA","Massachusetts"]
["ZW-MV","Masvingo"]
["ZW-MN","Matabeleland North"]
["ZW-MS","Matabeleland South"]
["NI-MT","Matagalpa"]
["LK-22","Matale"]
["LK-22","Mātale"]
["SN-MT","Matam"]
["CU-04","Matanzas"]
["LK-32","Matara"]
["LK-32","Mātara"]
["IT-MT","Matera"]
["MV-US","Mathi-Dhekunu"]
["MV-UN","Mathi-Uthuru"]
["BR-MT","Mato Grosso"]
["BR-MS","Mato Grosso do Sul"]
["EG-MT","Maţrūḩ"]
["LK-51","Maṭṭakkaḷappu"]
["LK-22","Māttaḷai"]
["LK-32","Māttaṛai"]
["LK-2","Mattiya mākāṇam"]
["CL-ML","Maule"]
["LI-04","Mauren"]
["MK-50","Mavrovo i Rostuša"]
["CU-16","Mayabeque"]
["BS-MG","Mayaguana"]
["TT-MRC","Mayaro-Rio Claro"]
["FR-53","Mayenne"]
["IE-MO","Mayo"]
["TD-ME","Mayo-Kebbi-Est"]
["TD-MO","Mayo-Kebbi-Ouest"]
["FR-MAY","Mayotte"]
["FR-YT","Mayotte (see also separate country code entry under YT)"]
["IQ-MA","Maysān"]
["TD-MO","Māyū Kībbī al Gharbī"]
["TD-ME","Māyū Kībbī ash Sharqī"]
["UG-214","Mayuge"]
["PE-MDD","Mayutata"]
["IR-21","Māzandarān"]
["LT-26","Mažeikiai"]
["PL-MZ","Mazowieckie"]
["LV-060","Mazsalacas novads"]
["UG-209","Mbale"]
["UG-410","Mbarara"]
["TZ-14","Mbeya"]
["CF-MB","Mbomou"]
["CF-MB","Mbömü"]
["MW-MC","Mchinji"]
["MW-MC","Mchinji"]
["MT-29","Mdina"]
["MT-29","Mdina"]
["IE-MH","Meath"]
["NP-ME","Mechi"]
["DE-MV","Mecklenburg-Vorpommern"]
["DZ-26","Médéa"]
["TN-82","Médenine"]
["MV-CE","Medhu"]
["MV-SC","Medhu-Dhekunu"]
["MV-NC","Medhu-Uthuru"]
["HR-20","Međimurska županija"]
["IT-VS","Medio Campidano"]
["MA-MED","Médiouna"]
["SI-071","Medvode"]
["GB-MDW","Medway"]
["MV-12","Meemu"]
["IN-ML","Meghalaya"]
["RO-MH","Mehedinți"]
["BD-39","Meherpur"]
["MH-MEJ","Mejit"]
["MH-MEJ","Mejit"]
["MA-MEK","Meknès"]
["MA-06","Meknès-Tafilalet"]
["LK-1","Mel mākāṇam"]
["MY-04","Melaka"]
["PW-212","Melekeok"]
["PW-212","Melekeok"]
["ES-ML","Melilla"]
["FI-08","Mellersta Finland"]
["FI-07","Mellersta Österbotten"]
["MT-30","Mellieħa"]
["MT-30","Mellieħa"]
["CZ-206","Mělník"]
["AR-M","Mendoza"]
["NR-11","Meneng"]
["NR-11","Meneng"]
["SI-072","Mengeš"]
["VE-L","Mérida"]
["LU-ME","Mersch"]
["LU-ME","Mersch"]
["TR-33","Mersin"]
["LV-063","Mērsraga novads"]
["GB-MTY","Merthyr Tydfil [Merthyr Tudful GB-MTU]"]
["GB-MRT","Merton"]
["KE-26","Meru"]
["IT-ME","Messina"]
["CO-MET","Meta"]
["SI-073","Metlika"]
["FR-54","Meurthe-et-Moselle"]
["FR-55","Meuse"]
["MX-MEX","México"]
["SI-074","Mežica"]
["MT-31","Mġarr"]
["MT-31","Mġarr"]
["TW-MIA","Miaoli"]
["US-MI","Michigan"]
["MX-MIC","Michoacán de Ocampo"]
["LC-08","Micoud"]
["GB-MEA","Mid and East Antrim"]
["GB-MUL","Mid Ulster"]
["NP-2","Mid Western"]
["GB-MDB","Middlesbrough"]
["ZW-MI","Midlands"]
["GB-MLN","Midlothian"]
["DK-82","Midtjylland"]
["UM-71","Midway Islands"]
["JP-24","Mie"]
["LU-ME","Miersch"]
["KE-27","Migori"]
["SI-169","Miklavž na Dravskem Polju"]
["DZ-43","Mila"]
["MV-25","Miladhunmadulu Dhekunuburi"]
["MV-24","Miladhunmadulu Uthuruburi"]
["IT-MI","Milano"]
["MH-MIL","Mili"]
["MH-MIL","Mili"]
["PG-MBA","Milne Bay"]
["GB-MIK","Milton Keynes"]
["PH-41","Mimaropa (Region IV-B)"]
["BR-MG","Minas Gerais"]
["PH-MDC","Mindoro Occidental"]
["PH-MDR","Mindoro Oriental"]
["AZ-MI","Mingəçevir"]
["US-MN","Minnesota"]
["BY-MI","Minskaja  voblasć"]
["BY-MI","Minskaja oblast'"]
["BY-MI","Minskaya oblast'"]
["BY-MI","Minskaya voblasts'"]
["VE-M","Miranda"]
["SI-075","Miren-Kostanjevica"]
["SI-212","Mirna"]
["SI-170","Mirna Peč"]
["PH-MSC","Misamis Occidental"]
["PH-MSR","Misamis Oriental"]
["AR-N","Misiones"]
["PY-8","Misiones"]
["HU-MI","Miskolc"]
["SI-076","Mislinja"]
["LY-MI","Mişrātah"]
["US-MS","Mississippi"]
["US-MO","Missouri"]
["UG-423","Mitooma"]
["UG-115","Mityana"]
["JP-04","Miyagi"]
["JP-45","Miyazaki"]
["IN-MZ","Mizoram"]
["TZ-15","Mjini Magharibi"]
["CZ-207","Mladá Boleslav"]
["ZA-NC","Mntla-Koloni"]
["ZA-NW","Mntla-Ntshona"]
["IT-MO","Modena"]
["MK-53","Mogila"]
["BY-MA","Mogilevskaja oblast'"]
["BY-MA","Mogilevskaya oblast'"]
["LS-F","Mohale's Hoek"]
["LS-F","Mohale's Hoek"]
["MA-MOH","Mohammadia"]
["KM-M","Mohéli"]
["ME-11","Mojkovac"]
["MU-MO","Moka"]
["LS-J","Mokhotlong"]
["LS-J","Mokhotlong"]
["SI-199","Mokronog-Trebelno"]
["LT-27","Molėtai"]
["IT-67","Molise"]
["KE-28","Mombasa"]
["MM-15","Mon"]
["SC-17","Mon Bikston"]
["SC-18","Mon Fleri"]
["MC-MO","Monaco-Ville"]
["VE-N","Monagas"]
["IE-MN","Monaghan"]
["LK-82","Monaragala"]
["LK-82","Mŏṇarāgala"]
["LK-82","Mŏṉarākalai"]
["TN-52","Monastir"]
["KH-11","Mondol Kiri"]
["KH-11","Môndól Kiri"]
["MC-MG","Moneghetti"]
["CD-MO","Mongala"]
["BT-42","Monggar"]
["GB-MON","Monmouthshire [Sir Fynwy GB-FYN]"]
["BJ-MO","Mono"]
["DO-28","Monseñor Nouel"]
["SC-17","Mont Buxton"]
["SC-17","Mont Buxton"]
["SC-18","Mont Fleuri"]
["SC-18","Mont Fleuri"]
["CI-MG","Montagnes"]
["BG-12","Montana"]
["US-MT","Montana"]
["DO-15","Monte Cristi"]
["DO-29","Monte Plata"]
["MC-MC","Monte-Carlo"]
["SM-08","Montegiardino"]
["UY-MO","Montevideo"]
["LB-JL","Mont-Liban"]
["LR-MO","Montserrado"]
["IT-MB","Monza e Brianza"]
["BS-MI","Moore's Island"]
["ML-5","Mopti"]
["PE-MOQ","Moquegua"]
["PE-MOQ","Moqwegwa"]
["SI-077","Moravče"]
["RS-17","Moravički okrug"]
["SI-078","Moravske Toplice"]
["CZ-80","Moravskoslezský kraj"]
["GB-MRY","Moray"]
["SV-MO","Morazán"]
["FR-56","Morbihan"]
["RU-MO","Mordovija, Respublika"]
["RU-MO","Mordoviya, Respublika"]
["NO-15","Møre og Romsdal"]
["NO-15","Møre og Romsdal"]
["MX-MOR","Morelos"]
["PG-MPL","Morobe"]
["TZ-16","Morogoro"]
["EC-S","Morona-Santiago"]
["UG-308","Moroto"]
["FR-57","Moselle"]
["RU-MOS","Moskovskaja oblast'"]
["RU-MOS","Moskovskaya oblast'"]
["RU-MOW","Moskva"]
["RU-MOW","Moskva"]
["CZ-425","Most"]
["MT-32","Mosta"]
["MT-32","Mosta"]
["DZ-27","Mostaganem"]
["CV-MO","Mosteiros"]
["KM-M","Moûhîlî"]
["BF-MOU","Mouhoun"]
["MA-MOU","Moulay Yacoub"]
["MC-MU","Moulins"]
["BD-38","Moulvibazar"]
["PH-MOU","Mountain Province"]
["AO-MOX","Moxico"]
["TD-MC","Moyen-Chari"]
["GA-3","Moyen-Ogooué"]
["UG-309","Moyo"]
["SI-079","Mozirje"]
["UG-106","Mpigi"]
["ZA-EC","Mpuma-Koloni"]
["ZA-MP","Mpumalanga"]
["ZA-MP","Mpumalanga"]
["ZA-MP","Mpumalanga"]
["ZA-MP","Mpumalanga"]
["ZA-MP","Mpumalanga"]
["ZA-MP","Mpumalanga"]
["ZA-MP","Mpumalanga"]
["ZA-MP","Mpumalanga"]
["ZA-MP","Mpumalanga"]
["ZA-MP","Mpumalanga"]
["ZA-EC","Mpumalanga-Kapa"]
["MT-33","Mqabba"]
["MT-33","Mqabba"]
["MT-34","Msida"]
["MT-34","Msida"]
["DZ-28","M'sila"]
["MT-35","Mtarfa"]
["MT-35","Mtarfa"]
["GE-MM","Mtskheta-Mtianeti"]
["TZ-17","Mtwara"]
["KW-MU","Mubārak al Kabīr"]
["UG-107","Mubende"]
["ZM-10","Muchinga"]
["SO-MU","Mudug"]
["TR-48","Muğla"]
["KM-M","Mūhīlī"]
["IE-MN","Muineachán"]
["TH-49","Mukdahan"]
["UG-108","Mukono"]
["MV-12","Mulakatholhu"]
["MW-MU","Mulanje"]
["MW-MU","Mulanje"]
["LK-45","Mulativ"]
["LK-45","Mullaittivu"]
["LK-45","Mullaittīvu"]
["PE-LMA","Municipalidad Metropolitana de Lima"]
["BD-35","Munshiganj"]
["IE-M","Munster"]
["MT-36","Munxar"]
["MT-36","Munxar"]
["PE-MOQ","Muqiwa"]
["BI-MU","Muramvya"]
["BI-MU","Muramvya"]
["KE-29","Murang'a"]
["ES-MU","Murcia"]
["ES-MC","Murcia, Región de"]
["RO-MS","Mureș"]
["NZ-STL","Murihiku"]
["RU-MUR","Murmanskaja oblast'"]
["RU-MUR","Murmanskaya oblast'"]
["SI-080","Murska Sobota"]
["LY-MQ","Murzuq"]
["TR-49","Muş"]
["OM-MU","Musandam"]
["SI-081","Muta"]
["BI-MY","Muyinga"]
["BI-MY","Muyinga"]
["KM-M","Mwali"]
["MW-MW","Mwanza"]
["MW-MW","Mwanza"]
["TZ-18","Mwanza"]
["BI-MW","Mwaro"]
["BI-MW","Mwaro"]
["UA-48","Mykolaivska oblast"]
["BD-H","Mymensingh"]
["BD-34","Mymensingh"]
["MW-MZ","Mzimba"]
["MW-MZ","Mzimba"]
["DZ-45","Naama"]
["LB-NA","Nabatîyé"]
["TN-21","Nabeul"]
["PS-NBS","Nablus"]
["PS-NBS","Nāblus"]
["CZ-523","Náchod"]
["MA-NAD","Nador"]
["FJ-08","Nadroga and Navosa"]
["MT-37","Nadur"]
["MT-37","Nadur"]
["LK-5","Næ̆gĕnahira paḷāta"]
["ES-NA","Nafarroa*"]
["ES-NC","Nafarroako Foru Komunitatea*"]
["AZ-NA","Naftalan"]
["IN-NL","Nagaland"]
["JP-20","Nagano"]
["JP-42","Nagasaki"]
["PH-14","Nagsasariling Rehiyon ng Muslim sa Mindanaw"]
["HU-NK","Nagykanizsa"]
["BF-NAO","Nahouri"]
["SD-NR","Nahr an Nīl"]
["KE-30","Nairobi City"]
["FJ-09","Naitasiri"]
["SA-10","Najrān"]
["UG-311","Nakapiripirit"]
["UG-116","Nakaseke"]
["UG-109","Nakasongola"]
["TH-26","Nakhon Nayok"]
["TH-73","Nakhon Pathom"]
["TH-48","Nakhon Phanom"]
["TH-30","Nakhon Ratchasima"]
["TH-60","Nakhon Sawan"]
["TH-80","Nakhon Si Thammarat"]
["SI-082","Naklo"]
["KE-31","Nakuru"]
["LY-NL","Nālūt"]
["VN-67","Nam Định"]
["UZ-NG","Namangan"]
["UG-230","Namayingo"]
["MH-NMK","Namdrik"]
["MH-NMK","Namdrik"]
["BF-NAM","Namentenga"]
["AO-NAM","Namibe"]
["FJ-10","Namosi"]
["MZ-N","Nampula"]
["MH-NMU","Namu"]
["MH-NMU","Namu"]
["BE-WNA","Namur"]
["UG-224","Namutumba"]
["TH-55","Nan"]
["CF-NM","Nana-Mambéré"]
["CF-NM","Nanä-Mbaere"]
["KE-32","Nandi"]
["AF-NAN","Nangarhār"]
["AF-NAN","Nangarhār"]
["TW-NAN","Nantou"]
["TV-NMG","Nanumaga"]
["TV-NMA","Nanumea"]
["BD-48","Naogaon"]
["UG-327","Napak"]
["EC-N","Napo"]
["IT-NA","Napoli"]
["JP-29","Nara"]
["BD-43","Narail"]
["TH-96","Narathiwat"]
["BD-40","Narayanganj"]
["NP-NA","Narayani"]
["CO-NAR","Nariño"]
["KE-33","Narok"]
["BD-42","Narsingdi"]
["KG-N","Naryn"]
["KG-N","Narynskaja oblast'"]
["KG-N","Narynskaya oblast'"]
["NG-NA","Nasarawa"]
["KP-13","Nasǒn"]
["PG-NCD","National Capital District (Port Moresby)"]
["PH-00","National Capital Region"]
["BD-44","Natore"]
["LV-064","Naukšēnu novads"]
["ES-NA","Navarra"]
["ES-NC","Navarra, Comunidad Foral de"]
["UM-76","Navassa Island"]
["UZ-NW","Navoiy"]
["AZ-NX","Naxçıvan"]
["AZ-NV","Naxçıvan"]
["MT-38","Naxxar"]
["MT-38","Naxxar"]
["MM-18","Nay Pyi Taw"]
["BF-NAY","Nayala"]
["MX-NAY","Nayarit"]
["SI-083","Nazarje"]
["KM-A","Ndzuwani"]
["RO-NT","Neamț"]
["GB-NTL","Neath Port Talbot [Castell-nedd Port Talbot GB-CTL]"]
["UG-310","Nebbi"]
["US-NE","Nebraska"]
["PY-12","Ñeembucú"]
["AZ-NEF","Neftçala"]
["MY-05","Negeri Sembilan"]
["MK-54","Negotino"]
["PH-NEC","Negros Occidental"]
["PH-NER","Negros Oriental"]
["CN-15","Nei Mongol"]
["NZ-NSN","Nelson"]
["RU-NEN","Neneckij avtonomnyj okrug"]
["RU-NEN","Nenetskiy avtonomnyy okrug"]
["MW-NE","Neno"]
["MW-NE","Neno"]
["LV-065","Neretas novads"]
["LT-28","Neringa"]
["BD-41","Netrakona"]
["CH-NE","Neuchâtel"]
["AR-Q","Neuquén"]
["US-NV","Nevada"]
["KN-N","Nevis"]
["TR-50","Nevşehir"]
["CA-NB","New Brunswick"]
["US-NH","New Hampshire"]
["PG-NIK","New Ireland"]
["US-NJ","New Jersey"]
["US-NM","New Mexico"]
["AU-NSW","New South Wales"]
["TW-NWT","New Taipei"]
["US-NY","New York"]
["GB-NET","Newcastle upon Tyne"]
["CA-NL","Newfoundland and Labrador"]
["GB-NWM","Newham"]
["GB-NWP","Newport [Casnewydd GB-CNW]"]
["GB-NMD","Newry, Mourne and Down"]
["PW-214","Ngaraard"]
["PW-214","Ngaraard"]
["PW-218","Ngarchelong"]
["PW-218","Ngarchelong"]
["PW-222","Ngardmau"]
["PW-222","Ngardmau"]
["PW-224","Ngatpang"]
["PW-224","Ngatpang"]
["KM-G","Ngazidja"]
["PW-226","Ngchesar"]
["PW-226","Ngchesar"]
["PW-227","Ngeremlengui"]
["PW-227","Ngeremlengui"]
["VN-22","Nghệ An"]
["PW-228","Ngiwal"]
["PW-228","Ngiwal"]
["PA-NB","Ngöbe-Buglé"]
["UG-231","Ngora"]
["GA-4","Ngounié"]
["BI-NG","Ngozi"]
["BI-NG","Ngozi"]
["NE-8","Niamey"]
["CG-9","Niari"]
["MZ-A","Niassa"]
["NR-12","Nibok"]
["NR-12","Nibok"]
["LV-066","Nīcas novads"]
["SR-NI","Nickerie"]
["CH-NW","Nidwalden"]
["AT-3","Niederösterreich"]
["DE-NI","Niedersachsen"]
["FR-58","Nièvre"]
["TR-51","Niğde"]
["NG-NI","Niger"]
["JP-15","Niigata"]
["ME-12","Nikšić"]
["MV-17","Nilandhe Atholhu Dhekunuburi"]
["MV-14","Nilandhe Atholhu Uthuruburi"]
["BD-46","Nilphamari"]
["LR-NI","Nimba"]
["AF-NIM","Nīmrōz"]
["AF-NIM","Nīmrōz"]
["IQ-NI","Nīnawá"]
["CN-64","Ningxia"]
["VN-18","Ninh Bình"]
["VN-36","Ninh Thuận"]
["HT-NI","Nip"]
["HT-NI","Nippes"]
["RS-20","Nišavski okrug"]
["MD-NI","Nisporeni"]
["SK-NI","Nitriansky kraj"]
["TO-03","Niuas"]
["TO-03","Niuas"]
["TV-NIT","Niutao"]
["RU-NIZ","Nižegorodskaja oblast'"]
["RU-NIZ","Nizhegorodskaya oblast'"]
["TZ-29","Njombe"]
["MW-NB","Nkhata Bay"]
["MW-NB","Nkhata Bay"]
["MW-NK","Nkhotakota"]
["MW-NK","Nkhotakota"]
["HT-ND","Nò"]
["BD-47","Noakhali"]
["HT-NE","Nòdès"]
["HT-NO","Nòdwès"]
["HU-NO","Nógrád"]
["TJ-RA","Nohiyahoi Tobei Jumhurí"]
["TH-39","Nong Bua Lam Phu"]
["TH-43","Nong Khai"]
["TH-12","Nonthaburi"]
["MV-25","Noonu"]
["NL-NB","Noord-Brabant"]
["NL-NH","Noord-Holland"]
["ZA-NC","Noord-Kaap"]
["ZA-NW","Noordwes"]
["BF-10","Nord"]
["CM-NO","Nord"]
["FR-59","Nord"]
["HT-ND","Nord"]
["RW-03","Nord"]
["HT-NE","Nord-Est"]
["DK-81","Nordjylland"]
["CD-NK","Nord-Kivu"]
["NO-18","Nordland"]
["NO-18","Nordland"]
["CM-NW","Nord-Ouest"]
["HT-NO","Nord-Ouest"]
["DE-NW","Nordrhein-Westfalen"]
["NO-17","Nord-Trøndelag"]
["NO-17","Nord-Trøndelag"]
["CD-NU","Nord-Ubangi"]
["IS-6","Norðurland eystra"]
["IS-5","Norðurland vestra"]
["GB-NFK","Norfolk"]
["FR-NOR","Normandie"]
["FI-13","Norra Karelen"]
["FI-14","Norra Österbotten"]
["FI-15","Norra Savolax"]
["SE-BD","Norrbottens län [SE-25]"]
["GW-N","Norte"]
["CO-NSA","Norte de Santander"]
["CM-NO","North"]
["MV-NO","North"]
["BS-NO","North Abaco"]
["BS-NS","North Andros"]
["GB-NAY","North Ayrshire"]
["GM-N","North Bank"]
["US-NC","North Carolina"]
["MV-NC","North Central"]
["LK-7","North Central Province"]
["US-ND","North Dakota"]
["SD-DN","North Darfur"]
["BW-NE","North East"]
["SG-02","North East"]
["GB-NEL","North East Lincolnshire"]
["BS-NE","North Eleuthera"]
["PS-NGZ","North Gaza"]
["SD-KN","North Kordofan"]
["GB-NLK","North Lanarkshire"]
["GB-NLN","North Lincolnshire"]
["GB-NSM","North Somerset"]
["GB-NTY","North Tyneside"]
["BW-NW","North West"]
["SG-03","North West"]
["LK-6","North Western Province"]
["GB-NYK","North Yorkshire"]
["GB-NTH","Northamptonshire"]
["FJ-N","Northern"]
["GH-NP","Northern"]
["PG-NPP","Northern"]
["RW-03","Northern"]
["SD-NO","Northern"]
["SL-N","Northern"]
["UG-N","Northern"]
["ZM-05","Northern"]
["SS-BN","Northern Bahr el Ghazal"]
["ZA-NC","Northern Cape"]
["GB-NIR","Northern Ireland"]
["US-MP","Northern Mariana Islands (see also separate country code entry under MP)"]
["PH-10","Northern Mindanao (Region X)"]
["LK-4","Northern Province"]
["MW-N","Northern Region"]
["PH-NSA","Northern Samar"]
["AU-NT","Northern Territory"]
["NZ-NTL","Northland"]
["GB-NBL","Northumberland"]
["CM-NW","North-West"]
["ZA-NW","North-West"]
["CA-NT","Northwest Territories"]
["ZM-06","North-Western"]
["GR-L","Notío Aigaío"]
["GB-NGM","Nottingham"]
["GB-NTT","Nottinghamshire"]
["MA-NOU","Nouaceur"]
["MR-14","Nouakchott Nord"]
["MR-13","Nouakchott Ouest"]
["MR-15","Nouakchott Sud"]
["BF-NOU","Noumbiel"]
["CA-NB","Nouveau-Brunswick"]
["FR-NAQ","Nouvelle-Aquitaine"]
["FR-NC","Nouvelle-Calédonie (see also separate country code entry under NC)"]
["CA-NS","Nouvelle-Écosse"]
["SI-084","Nova Gorica"]
["CA-NS","Nova Scotia"]
["MK-55","Novaci"]
["IT-NO","Novara"]
["RU-NGR","Novgorodskaja oblast'"]
["RU-NGR","Novgorodskaya oblast'"]
["SI-085","Novo Mesto"]
["MK-56","Novo Selo"]
["RU-NVS","Novosibirskaja oblast'"]
["RU-NVS","Novosibirskaya oblast'"]
["CZ-804","Nový Jičín"]
["MW-NS","Nsanje"]
["MW-NS","Nsanje"]
["MW-NU","Ntcheu"]
["MW-NU","Ntcheu"]
["MW-NI","Ntchisi"]
["MW-NI","Ntchisi"]
["UG-424","Ntoroko"]
["ZA-WC","Ntshona-Koloni"]
["ZA-WC","Ntshonalanga-Kapa"]
["UG-411","Ntungamo"]
["PH-NUE","Nueva Ecija"]
["VE-O","Nueva Esparta"]
["NI-NS","Nueva Segovia"]
["PH-NUV","Nueva Vizcaya"]
["MX-NLE","Nuevo León"]
["SO-NU","Nugaal"]
["TV-NUI","Nui"]
["TV-NKF","Nukufetau"]
["TV-NKL","Nukulaelae"]
["CA-NU","Nunavut"]
["CA-NU","Nunavut"]
["IT-NU","Nuoro"]
["AF-NUR","Nūristān"]
["AF-NUR","Nūristān"]
["ID-NU","Nusa Tenggara"]
["ID-NB","Nusa Tenggara Barat"]
["ID-NT","Nusa Tenggara Timur"]
["LK-23","Nuvara Ĕliya"]
["LK-23","Nuvarĕliyā"]
["MR-13","Nuwākshūţ al Gharbīyah"]
["MR-15","Nuwākshūţ al Janūbīyah"]
["MR-14","Nuwākshūţ ash Shamālīyah"]
["LK-23","Nuwara Eliya"]
["PH-NUV","Nuweva Biskaya"]
["PH-NUE","Nuweva Esiha"]
["ZA-NW","N'walungu-Vupeladyambu"]
["UG-328","Nwoya"]
["ZA-NC","Nyakatho-Kapa"]
["ZA-NW","Nyakatho-Ntshonalanga"]
["KE-34","Nyamira"]
["KE-35","Nyandarua"]
["GA-5","Nyanga"]
["KE-36","Nyeri"]
["HU-NY","Nyíregyháza"]
["FI-18","Nyland"]
["CZ-208","Nymburk"]
["GN-N","Nzérékoré"]
["GN-NZ","Nzérékoré"]
["SC-04","O Kap"]
["NZ-OTA","Ō Tākou"]
["MX-OAX","Oaxaca"]
["AT-4","Oberösterreich"]
["DJ-OB","Obock"]
["CH-OW","Obwalden"]
["FR-OCC","Occitanie"]
["MD-OC","Ocnița"]
["HN-OC","Ocotepeque"]
["UA-51","Odeska oblast"]
["IN-OR","Odisha"]
["SI-086","Odranci"]
["TL-OE","Oecussi"]
["TL-OE","Oekusi-Ambenu"]
["IE-OY","Offaly"]
["IT-OG","Ogliastra"]
["GA-6","Ogooué-Ivindo"]
["GA-7","Ogooué-Lolo"]
["GA-8","Ogooué-Maritime"]
["LV-067","Ogres novads"]
["NG-OG","Ogun"]
["AZ-OGU","Oğuz"]
["NA-OW","Ohangwena"]
["US-OH","Ohio"]
["MK-58","Ohrid"]
["GW-OI","Oio"]
["FR-60","Oise"]
["JP-44","Oita"]
["JP-44","Ôita"]
["JP-33","Okayama"]
["JP-47","Okinawa"]
["US-OK","Oklahoma"]
["LV-068","Olaines novads"]
["HN-OL","Olancho"]
["IT-OT","Olbia-Tempio"]
["GB-OLD","Oldham"]
["CZ-712","Olomouc"]
["CZ-71","Olomoucký kraj"]
["RO-OT","Olt"]
["NA-OH","Omaheke"]
["CF-MP","Ömbëlä-Pökö"]
["CF-MP","Ombella-Mpoko"]
["MN-053","Ömnögovĭ"]
["RU-OMS","Omskaja oblast'"]
["RU-OMS","Omskaya oblast'"]
["NA-OS","Omusati"]
["NG-ON","Ondo"]
["KZ-YUZ","Ongtüstik Qazaqstan oblysy"]
["CA-ON","Ontario"]
["CA-ON","Ontario"]
["ZA-EC","Oos-Kaap"]
["BE-VOV","Oost-Vlaanderen"]
["CZ-805","Opava"]
["SI-171","Oplotnica"]
["PL-OP","Opolskie"]
["NO-05","Oppland"]
["NO-05","Oppland"]
["DZ-31","Oran"]
["BZ-OW","Orange Walk"]
["AD-05","Ordino"]
["TR-52","Ordu"]
["AZ-ORD","Ordubad"]
["SE-T","Örebro län [SE-18]"]
["US-OR","Oregon"]
["EC-D","Orellana"]
["RU-ORE","Orenburgskaja oblast'"]
["RU-ORE","Orenburgskaya oblast'"]
["MD-OR","Orhei"]
["MN-035","Orhon"]
["IT-OR","Oristano"]
["GB-ORK","Orkney Islands"]
["RU-ORL","Orlovskaja oblast'"]
["RU-ORL","Orlovskaya oblast'"]
["SI-087","Ormož"]
["FR-61","Orne"]
["ET-OR","Oromia"]
["ET-OR","Oromīya"]
["BO-O","Oruro"]
["JP-27","Osaka"]
["JP-27","Ôsaka"]
["KG-O","Osh"]
["KG-GO","Osh"]
["NA-ON","Oshana"]
["NA-OT","Oshikoto"]
["KG-O","Oshskaya oblast'"]
["SI-088","Osilnica"]
["HR-14","Osječko-baranjska županija"]
["NO-03","Oslo"]
["NO-03","Oslo"]
["TR-80","Osmaniye"]
["KG-O","Ošskaja oblast'"]
["FI-12","Österbotten"]
["SE-E","Östergötlands län [SE-05]"]
["NO-01","Østfold"]
["NO-01","Østfold"]
["CZ-806","Ostrava-město"]
["NG-OS","Osun"]
["NZ-OTA","Otago"]
["KH-22","Otdar Mean Chey"]
["KH-22","Ŏtdâr Méanchey"]
["NA-OD","Otjozondjupa"]
["UG-329","Otuke"]
["TD-OD","Ouaddaï"]
["CF-UK","Ouaka"]
["DZ-30","Ouargla"]
["MA-OUA","Ouarzazate"]
["BF-OUB","Oubritenga"]
["BF-OUD","Oudalan"]
["LA-OU","Oudômxai"]
["MA-OUD","Oued ed Dahab (EH)"]
["MA-16","Oued ed Dahab-Lagouira (EH)"]
["BJ-OU","Ouémé"]
["CM-OU","Ouest"]
["HT-OU","Ouest"]
["RW-04","Ouest"]
["CF-AC","Ouham"]
["CF-OP","Ouham-Pendé"]
["MA-OUJ","Oujda-Angad"]
["DZ-04","Oum el Bouaghi"]
["ES-OR","Ourense [Orense]"]
["NL-OV","Overijssel"]
["MN-055","Övörhangay"]
["GB-OXF","Oxfordshire"]
["UG-321","Oyam"]
["NG-OY","Oyo"]
["DO-40","Ozama"]
["LV-069","Ozolnieku novads"]
["BD-49","Pabna"]
["UG-312","Pader"]
["IT-PD","Padova"]
["CY-05","Pafos"]
["LT-29","Pagėgiai"]
["MY-06","Pahang"]
["FI-16","Päijänne-Tavastland"]
["FI-16","Päijät-Häme"]
["ES-PV","País Vasco"]
["LT-30","Pakruojis"]
["AF-PKA","Paktīkā"]
["AF-PKA","Paktīkā"]
["AF-PIA","Paktiyā"]
["AF-PIA","Paktiyā"]
["LT-31","Palangos miestas"]
["WS-PA","Palauli"]
["WS-PA","Palauli"]
["PH-PLW","Palawan"]
["PH-PLW","Palawan"]
["ES-P","Palencia"]
["IT-PA","Palermo"]
["UG-210","Pallisa"]
["UM-95","Palmyra Atoll"]
["PH-00","Pambansang Punong Rehiyon"]
["PH-PAM","Pampanga"]
["PH-PAM","Pampanga"]
["MU-PA","Pamplemousses"]
["PA-8","Panamá"]
["PA-10","Panamá Oeste"]
["BD-52","Panchagarh"]
["BO-N","Pando"]
["LT-PN","Panevėžio apskritis"]
["LT-32","Panevėžio miestas"]
["LT-33","Panevėžys"]
["PH-PAN","Pangasinan"]
["PH-PAN","Pangasinan"]
["PK-PB","Panjāb"]
["AF-PAN","Panjshayr"]
["AF-PAN","Panjshayr"]
["MT-39","Paola"]
["MT-39","Paola"]
["ID-PP","Papua"]
["ID-PA","Papua"]
["ID-PB","Papua Barat"]
["SR-PR","Para"]
["BR-PA","Pará"]
["PY-9","Paraguarí"]
["BR-PB","Paraíba"]
["SR-PM","Paramaribo"]
["BR-PR","Paraná"]
["CZ-532","Pardubice"]
["CZ-53","Pardubický kraj"]
["LV-070","Pārgaujas novads"]
["FR-75","Paris"]
["IT-PR","Parma"]
["EE-67","Pärnumaa"]
["BT-11","Paro"]
["AF-PAR","Parwān"]
["AF-PAR","Parwān"]
["PE-PAS","Pasco"]
["FR-62","Pas-de-Calais"]
["NP-3","Pashchimanchal"]
["PE-PAS","Pasqu"]
["PE-PAS","Pasqu"]
["BF-PAS","Passoré"]
["EC-Y","Pastaza"]
["LT-34","Pasvalys"]
["TH-13","Pathum Thani"]
["TH-94","Pattani"]
["BD-51","Patuakhali"]
["LK-81","Patuḷai"]
["CV-PA","Paul"]
["IT-PV","Pavia"]
["LV-071","Pāvilostas novads"]
["KZ-PAV","Pavlodar oblysy"]
["KZ-PAV","Pavlodarskaja oblast'"]
["KZ-PAV","Pavlodarskaya oblast'"]
["UY-PA","Paysandú"]
["FR-PDL","Pays-de-la-Loire"]
["BG-13","Pazardzhik"]
["RS-24","Pčinjski okrug"]
["RS-26","Pećki okrug"]
["HU-PS","Pécs"]
["DO-16","Pedernales"]
["MK-60","Pehčevo"]
["PW-350","Peleliu"]
["PW-350","Peleliu"]
["CZ-633","Pelhřimov"]
["GR-J","Peloponnísos"]
["BT-43","Pemagatshel"]
["TZ-06","Pemba North"]
["TZ-10","Pemba South"]
["MT-40","Pembroke"]
["MT-40","Pembroke"]
["GB-PEM","Pembrokeshire [Sir Benfro GB-BNF]"]
["TT-PED","Penal-Debe"]
["VU-PAM","Pénama"]
["VU-PAM","Pénama"]
["TW-PEN","Penghu"]
["US-PA","Pennsylvania"]
["RU-PNZ","Penzenskaja oblast'"]
["RU-PNZ","Penzenskaya oblast'"]
["MY-08","Perak"]
["DO-17","Peravia"]
["MY-09","Perlis"]
["RU-PER","Permskij kraj"]
["RU-PER","Permskiy kray"]
["BR-PE","Pernambuco"]
["BG-14","Pernik"]
["GB-PKN","Perth and Kinross"]
["IT-PG","Perugia"]
["IT-PU","Pesaro e Urbino"]
["IT-PE","Pescara"]
["SI-089","Pesnica"]
["HU-PE","Pest"]
["GT-PE","Petén"]
["GB-PTE","Peterborough"]
["ME-23","Petnjica"]
["MK-59","Petrovec"]
["MW-PH","Phalombe"]
["MW-PH","Phalombe"]
["TH-82","Phangnga"]
["TH-93","Phatthalung"]
["TH-S","Phatthaya"]
["TH-56","Phayao"]
["TH-67","Phetchabun"]
["TH-76","Phetchaburi"]
["TH-66","Phichit"]
["TH-65","Phitsanulok"]
["KH-12","Phnom Penh"]
["KH-12","Phnum Pénh"]
["KI-P","Phoenix Islands"]
["LA-PH","Phôngsali"]
["TH-14","Phra Nakhon Si Ayutthaya"]
["TH-54","Phrae"]
["VN-68","Phú Thọ"]
["VN-32","Phú Yên"]
["TH-83","Phuket"]
["KP-02","Phyeongannamto"]
["KP-03","Phyeonganpukto"]
["KP-01","Phyeongyang"]
["IT-PC","Piacenza"]
["BR-PI","Piauí"]
["EC-P","Pichincha"]
["IT-21","Piemonte"]
["MT-41","Pietà"]
["MT-41","Pietà"]
["CU-01","Pinar del Río"]
["TW-PIF","Pingtung"]
["SI-090","Piran"]
["FI-11","Pirkanmaa"]
["BD-50","Pirojpur"]
["RS-22","Pirotski okrug"]
["IT-PI","Pisa"]
["CZ-314","Písek"]
["IT-PT","Pistoia"]
["GN-PI","Pita"]
["PE-PIU","Piura"]
["PE-PIU","Piura"]
["SI-091","Pivka"]
["PE-PIU","Piwra"]
["MU-PW","Plaines Wilhems"]
["SC-19","Plaisance"]
["SC-19","Plaisance"]
["LI-05","Planken"]
["MK-61","Plasnica"]
["BJ-PL","Plateau"]
["NG-PL","Plateau"]
["BF-11","Plateau-Central"]
["CG-14","Plateaux"]
["TG-P","Plateaux"]
["ME-13","Plav"]
["LV-072","Pļaviņu novads"]
["BG-15","Pleven"]
["SC-19","Plezans"]
["ME-14","Pljevlja"]
["BG-16","Plovdiv"]
["LT-35","Plungė"]
["ME-15","Plužine"]
["GB-PLY","Plymouth"]
["CZ-324","Plzeň-jih"]
["CZ-323","Plzeň-město"]
["CZ-325","Plzeň-sever"]
["CZ-32","Plzeňský kraj"]
["SI-092","Podčetrtek"]
["ME-16","Podgorica"]
["PL-PK","Podkarpackie"]
["PL-PD","Podlaskie"]
["SI-172","Podlehnik"]
["RS-10","Podunavski okrug"]
["SI-093","Podvelka"]
["FI-12","Pohjanmaa"]
["FI-13","Pohjois-Karjala"]
["FI-14","Pohjois-Pohjanmaa"]
["FI-15","Pohjois-Savo"]
["FM-PNI","Pohnpei"]
["TT-PTF","Point Fortin"]
["SC-20","Pointe La Rue"]
["SC-20","Pointe Larue"]
["CG-16","Pointe-Noire"]
["LK-72","Pŏlaṉṉaṛuvai"]
["SI-200","Poljčane"]
["LK-72","Pŏḷŏnnaruva"]
["LK-72","Polonnaruwa"]
["UA-53","Poltavska oblast"]
["EE-65","Põlvamaa"]
["FR-PF","Polynésie française (see also separate country code entry under PF)"]
["SI-173","Polzela"]
["GY-PM","Pomeroon-Supenaam"]
["RS-13","Pomoravski okrug"]
["PL-PM","Pomorskie"]
["BF-PON","Poni"]
["ES-PO","Pontevedra [Pontevedra]"]
["CG-12","Pool"]
["GB-POL","Poole"]
["IT-PN","Pordenone"]
["SC-21","Porglo"]
["SC-21","Port Glaud"]
["SC-21","Port Glaud"]
["IE-WD","Port Láirge"]
["MU-PL","Port Louis"]
["MU-PU","Port Louis"]
["TT-POS","Port of Spain"]
["PT-12","Portalegre"]
["MC-PH","Port-Hercule"]
["JM-04","Portland"]
["PT-13","Porto"]
["CV-PN","Porto Novo"]
["GB-POR","Portsmouth"]
["VE-P","Portuguesa"]
["SI-094","Postojna"]
["GY-PT","Potaro-Siparuni"]
["IT-PZ","Potenza"]
["BO-P","Potosí"]
["KH-15","Pousaat"]
["KH-15","Poŭthĭsăt"]
["GB-POW","Powys"]
["HR-11","Požeško-slavonska županija"]
["CZ-315","Prachatice"]
["TH-25","Prachin Buri"]
["TH-77","Prachuap Khiri Khan"]
["CZ-101","Praha 1"]
["CZ-110","Praha 10"]
["CZ-111","Praha 11"]
["CZ-112","Praha 12"]
["CZ-113","Praha 13"]
["CZ-114","Praha 14"]
["CZ-115","Praha 15"]
["CZ-116","Praha 16"]
["CZ-117","Praha 17"]
["CZ-118","Praha 18"]
["CZ-119","Praha 19"]
["CZ-102","Praha 2"]
["CZ-120","Praha 20"]
["CZ-121","Praha 21"]
["CZ-122","Praha 22"]
["CZ-103","Praha 3"]
["CZ-104","Praha 4"]
["CZ-105","Praha 5"]
["CZ-106","Praha 6"]
["CZ-107","Praha 7"]
["CZ-108","Praha 8"]
["CZ-109","Praha 9"]
["CZ-10","Praha, Hlavní mešto"]
["CZ-209","Praha-východ"]
["CZ-20A","Praha-západ"]
["RO-PH","Prahova"]
["CV-PR","Praia"]
["IT-PO","Prato"]
["KH-13","Preah Vihear"]
["KH-13","Preăh Vihéar"]
["SI-174","Prebold"]
["SI-095","Preddvor"]
["LV-073","Preiļu novads"]
["CZ-714","Přerov"]
["PY-15","Presidente Hayes"]
["SK-PV","Prešovský kraj"]
["SI-175","Prevalje"]
["KH-14","Prey Veaeng"]
["KH-14","Prey Vêng"]
["CZ-20B","Příbram"]
["LV-074","Priekules novads"]
["LV-075","Priekuļu novads"]
["LT-36","Prienai"]
["MK-62","Prilep"]
["RU-PRI","Primorskij kraj"]
["RU-PRI","Primorskiy kray"]
["HR-08","Primorsko-goranska županija"]
["CA-PE","Prince Edward Island"]
["TT-PRT","Princes Town"]
["ST-P","Príncipe"]
["RS-27","Prizrenski okrug"]
["MK-63","Probištip"]
["CZ-713","Prostějov"]
["FR-PAC","Provence-Alpes-Côte-d’Azur"]
["RU-PSK","Pskovskaja oblast'"]
["RU-PSK","Pskovskaya oblast'"]
["SI-096","Ptuj"]
["SI-097","Puconci"]
["IN-PY","Puducherry"]
["MX-PUE","Puebla"]
["DO-18","Puerto Plata"]
["US-PR","Puerto Rico (see also separate country code entry under PR)"]
["IT-75","Puglia"]
["MY-07","Pulau Pinang"]
["PH-DIN","Pulo ng Dinagat"]
["BT-23","Punakha"]
["IN-PB","Punjab"]
["PK-PB","Punjab"]
["PE-PUN","Puno"]
["PE-PUN","Puno"]
["CR-P","Puntarenas"]
["PE-PUN","Punu"]
["NP-4","Purwanchal"]
["LK-62","Puttalam"]
["LK-62","Puttaḷam"]
["LK-62","Puttalama"]
["CO-PUT","Putumayo"]
["FR-63","Puy-de-Dôme"]
["TZ-19","Pwani"]
["SC-20","Pwent Lari"]
["KP-03","P'yǒngan-bukto"]
["KP-02","P'yǒngan-namdo"]
["KP-01","P'yǒngyang"]
["FR-64","Pyrénées-Atlantiques"]
["FR-66","Pyrénées-Orientales"]
["GL-QA","Qaasuitsup Kommunia"]
["LS-H","Qacha's Nek"]
["LS-H","Qacha's Nek"]
["PE-CAJ","Qajamarka"]
["MT-42","Qala"]
["MT-42","Qala"]
["PE-CAL","Qallaw"]
["PS-QQA","Qalqilya"]
["PS-QQA","Qalqīlyah"]
["KZ-KAR","Qaraghandy oblysy"]
["ER-GB","Qāsh-Barkah"]
["UZ-QA","Qashqadaryo"]
["AZ-QAX","Qax"]
["AZ-QAZ","Qazax"]
["IR-28","Qazvīn"]
["AZ-QAB","Qəbələ"]
["GL-QE","Qeqqata Kommunia"]
["EG-KN","Qinā"]
["CN-63","Qinghai"]
["TD-GR","Qīrā"]
["PE-LAL","Qispi kay"]
["AZ-QOB","Qobustan"]
["IR-26","Qom"]
["UZ-QR","Qoraqalpog‘iston Respublikasi"]
["MT-43","Qormi"]
["MT-43","Qormi"]
["KZ-KUS","Qostanay oblysy"]
["MT-44","Qrendi"]
["MT-44","Qrendi"]
["VN-24","Quảng Bình"]
["VN-27","Quảng Nam"]
["VN-29","Quảng Ngãi"]
["VN-13","Quảng Ninh"]
["VN-25","Quảng Trị"]
["MU-QB","Quatre Bornes"]
["AZ-QBA","Quba"]
["AZ-QBI","Qubadlı"]
["CA-QC","Quebec"]
["CA-QC","Québec"]
["AU-QLD","Queensland"]
["MX-QUE","Querétaro"]
["GT-QZ","Quetzaltenango"]
["PH-QUE","Quezon"]
["GT-QC","Quiché"]
["GW-QU","Quinara"]
["CO-QUI","Quindío"]
["MX-ROO","Quintana Roo"]
["PH-QUI","Quirino"]
["AZ-QUS","Qusar"]
["PE-CUS","Qusqu"]
["LS-G","Quthing"]
["LS-G","Quthing"]
["KZ-KZY","Qyzylorda oblysy"]
["FJ-11","Ra"]
["AE-RK","Ra’s al Khaymah"]
["MV-13","Raa"]
["MA-RAB","Rabat"]
["MT-45","Rabat Għawdex"]
["MT-45","Rabat Gozo"]
["MT-46","Rabat Malta"]
["MT-46","Rabat Malta"]
["MA-07","Rabat-Salé-Zemmour-Zaer"]
["SI-098","Rače-Fram"]
["GE-RL","Rach'a-Lechkhumi-Kvemo Svaneti"]
["SI-099","Radeče"]
["SI-100","Radenci"]
["SI-101","Radlje ob Dravi"]
["MK-64","Radoviš"]
["SI-102","Radovljica"]
["LT-37","Radviliškis"]
["PS-RFH","Rafah"]
["PS-RFH","Rafaḩ"]
["BS-RI","Ragged Island"]
["IT-RG","Ragusa"]
["IN-RJ","Rajasthan"]
["BD-53","Rajbari"]
["BD-E","Rajshahi"]
["BD-54","Rajshahi"]
["UG-110","Rakai"]
["MM-16","Rakhine"]
["CZ-20C","Rakovník"]
["MH-L","Ralik chain"]
["MH-L","Ralik chain"]
["PS-RBH","Rām Allāh wal Bīrah"]
["PS-RBH","Ramallah"]
["BD-56","Rangamati"]
["BD-F","Rangpur"]
["BD-55","Rangpur"]
["MK-65","Rankovce"]
["TH-85","Ranong"]
["EE-70","Raplamaa"]
["NP-RA","Rapti"]
["LT-38","Raseiniai"]
["KP-13","Raseon"]
["RS-19","Rasinski okrug"]
["RS-18","Raški okrug"]
["MH-T","Ratak chain"]
["MH-T","Ratak chain"]
["TH-70","Ratchaburi"]
["LK-91","Ratnapura"]
["LK-91","Ratnapura"]
["LV-076","Raunas novads"]
["IT-RA","Ravenna"]
["SI-103","Ravne na Koroškem"]
["YE-RA","Raymah"]
["TH-21","Rayong"]
["BG-17","Razgrad"]
["SI-176","Razkrižje"]
["GB-RDG","Reading"]
["SI-209","Rečica ob Savinji"]
["SD-RS","Red Sea"]
["LU-RD","Redange"]
["GB-RDB","Redbridge"]
["GB-RCC","Redcar and Cleveland"]
["LU-RD","Redingen"]
["AG-11","Redonda"]
["IT-RC","Reggio Calabria"]
["IT-RE","Reggio Emilia"]
["PT-30","Região Autónoma da Madeira"]
["PT-20","Região Autónoma dos Açores"]
["GQ-C","Região Continental"]
["GQ-I","Região Insular"]
["GQ-C","Región Continental"]
["GQ-C","Région Continentale"]
["GQ-I","Région Insulaire"]
["GQ-I","Región Insular"]
["CL-RM","Región Metropolitana de Santiago"]
["PH-15","Rehiyon ng Administratibo ng Kordilyera"]
["PH-05","Rehiyon ng Bikol"]
["PH-40","Rehiyon ng Calabarzon"]
["PH-11","Rehiyon ng Dabaw"]
["PH-07","Rehiyon ng Gitnang Bisaya"]
["PH-03","Rehiyon ng Gitnang Luson"]
["PH-10","Rehiyon ng Hilagang Mindanaw"]
["PH-01","Rehiyon ng Iloko"]
["PH-06","Rehiyon ng Kanlurang Bisaya"]
["PH-13","Rehiyon ng Karaga"]
["PH-02","Rehiyon ng Lambak ng Kagayan"]
["PH-41","Rehiyon ng Mimaropa"]
["PH-08","Rehiyon ng Silangang Bisaya"]
["PH-12","Rehiyon ng Soccsksargen"]
["PH-09","Rehiyon ng Tangway ng Sambuwangga"]
["LU-RD","Réiden-Atert"]
["LU-RM","Réimech"]
["DZ-48","Relizane"]
["LU-RM","Remich"]
["LU-RM","Remich"]
["SI-201","Renče-Vogrsko"]
["GB-RFW","Renfrewshire"]
["SB-RB","Rennell and Bellona"]
["BA-SRP","Republika Srpska"]
["BA-SRP","Republika Srpska"]
["BA-SRP","Republika Srpska"]
["MK-66","Resen"]
["GT-RE","Retalhuleu"]
["FJ-12","Rewa"]
["LV-REZ","Rēzekne"]
["LV-077","Rēzeknes novads"]
["MD-RE","Rezina"]
["ZA-GT","Rhawuti"]
["DE-RP","Rheinland-Pfalz"]
["US-RI","Rhode Island"]
["GB-RCT","Rhondda, Cynon, Taff [Rhondda, Cynon,Taf]"]
["FR-69","Rhône"]
["ID-RI","Riau"]
["CV-RB","Ribeira Brava"]
["CV-RG","Ribeira Grande"]
["CV-RS","Ribeira Grande de Santiago"]
["SI-104","Ribnica"]
["SI-177","Ribnica na Pohorju"]
["GB-RIC","Richmond upon Thames"]
["LV-078","Riebiņu novads"]
["LT-39","Rietavo"]
["IT-RI","Rieti"]
["SY-RD","Rīf Dimashq"]
["LV-RIX","Rīga"]
["IT-RN","Rimini"]
["BR-RJ","Rio de Janeiro"]
["BR-RN","Rio Grande do Norte"]
["BR-RS","Rio Grande do Sul"]
["AR-R","Río Negro"]
["UY-RN","Río Negro"]
["NI-SJ","Río San Juan"]
["PH-RIZ","Risal"]
["CO-RIS","Risaralda"]
["MD-RI","Rîșcani"]
["NI-RI","Rivas"]
["LR-RI","River Cess"]
["LR-RG","River Gee"]
["SD-NR","River Nile"]
["UY-RV","Rivera"]
["NG-RI","Rivers"]
["MU-RR","Rivière du Rempart"]
["UA-56","Rivnenska oblast"]
["PH-RIZ","Rizal"]
["TR-53","Rize"]
["RU-RYA","Rjazanskaja oblast'"]
["UY-RO","Rocha"]
["GB-RCH","Rochdale"]
["SC-25","Roche Caiman"]
["SC-25","Roche Caïman"]
["MU-RO","Rodrigues Island"]
["NO-11","Rogaland"]
["NO-11","Rogaland"]
["SI-106","Rogaška Slatina"]
["SI-105","Rogašovci"]
["SI-107","Rogatec"]
["TH-45","Roi Et"]
["LV-079","Rojas novads"]
["LT-40","Rokiškis"]
["CZ-326","Rokycany"]
["IT-RM","Roma"]
["PH-ROM","Romblon"]
["PH-ROM","Romblon"]
["NO-19","Romsa"]
["BR-RO","Rondônia"]
["MH-RON","Rongelap"]
["MH-RON","Rongelap"]
["LV-080","Ropažu novads"]
["BR-RR","Roraima"]
["IE-RN","Ros Comáin"]
["SC-25","Ros Kaiman"]
["IE-RN","Roscommon"]
["MK-67","Rosoman"]
["RU-ROS","Rostovskaja oblast'"]
["RU-ROS","Rostovskaya oblast'"]
["KH-16","Rotanak Kiri"]
["KH-16","Rôtânôkiri"]
["GB-ROT","Rotherham"]
["FJ-R","Rotuma"]
["IT-RO","Rovigo"]
["ME-17","Rožaje"]
["UG-425","Rubirizi"]
["LV-081","Rucavas novads"]
["LV-082","Rugāju novads"]
["LI-06","Ruggell"]
["LV-084","Rūjienas novads"]
["UG-412","Rukungiri"]
["TZ-20","Rukwa"]
["BS-RC","Rum Cay"]
["BI-RM","Rumonge"]
["BI-RM","Rumonge"]
["MW-RU","Rumphi"]
["MW-RU","Rumphi"]
["LV-083","Rundāles novads"]
["BG-18","Ruse"]
["SI-108","Ruše"]
["BI-RT","Rutana"]
["BI-RT","Rutana"]
["GB-RUT","Rutland"]
["TZ-21","Ruvuma"]
["BI-RY","Ruyigi"]
["BI-RY","Ruyigi"]
["KP-10","Ryangkangto"]
["RU-RYA","Ryazanskaya oblast'"]
["CZ-524","Rychnov nad Kněžnou"]
["TH-27","Sa Kaeo"]
["EE-74","Saaremaa"]
["DE-SL","Saarland"]
["AZ-SAT","Saatlı"]
["BQ-SA","Saba"]
["BQ-SA","Saba"]
["BQ-SA","Saba"]
["NL-BQ2","Saba (see also separate country code entry under BQ)"]
["MY-12","Sabah"]
["LK-9","Sabaragamuva paḷāta"]
["LK-9","Sabaragamuwa Province"]
["LY-SB","Sabhā"]
["AZ-SAB","Sabirabad"]
["AZ-SBN","Şabran"]
["GT-SA","Sacatepéquez"]
["DE-SN","Sachsen"]
["DE-ST","Sachsen-Anhalt"]
["YE-SD","Şāʻdah"]
["MA-SAF","Safi"]
["MT-47","Safi"]
["MT-47","Safi"]
["JP-41","Saga"]
["MM-01","Sagaing"]
["NP-SA","Sagarmatha"]
["RU-SA","Saha, Respublika"]
["RU-SAK","Sahalinskaja oblast'"]
["AZ-SAH","Şahbuz"]
["BF-12","Sahel"]
["DZ-20","Saïda"]
["BB-02","Saint Andrew"]
["DM-02","Saint Andrew"]
["GD-01","Saint Andrew"]
["JM-02","Saint Andrew"]
["VC-02","Saint Andrew"]
["JM-06","Saint Ann"]
["KN-02","Saint Anne Sandy Point"]
["JM-14","Saint Catherine"]
["DM-03","Saint David"]
["GD-02","Saint David"]
["VC-03","Saint David"]
["JM-11","Saint Elizabeth"]
["AG-03","Saint George"]
["BB-03","Saint George"]
["DM-04","Saint George"]
["GD-03","Saint George"]
["VC-04","Saint George"]
["KN-03","Saint George Basseterre"]
["KN-04","Saint George Gingerland"]
["SH-HL","Saint Helena"]
["BB-04","Saint James"]
["JM-08","Saint James"]
["KN-05","Saint James Windward"]
["AG-04","Saint John"]
["BB-05","Saint John"]
["DM-05","Saint John"]
["GD-04","Saint John"]
["MT-49","Saint John"]
["KN-06","Saint John Capisterre"]
["KN-07","Saint John Figtree"]
["BB-06","Saint Joseph"]
["DM-06","Saint Joseph"]
["MT-48","Saint Julian's"]
["KN-K","Saint Kitts"]
["MT-50","Saint Lawrence"]
["SC-22","Saint Louis"]
["MT-53","Saint Lucia's"]
["BB-07","Saint Lucy"]
["DM-07","Saint Luke"]
["DM-08","Saint Mark"]
["GD-05","Saint Mark"]
["AG-05","Saint Mary"]
["JM-05","Saint Mary"]
["KN-08","Saint Mary Cayon"]
["BB-08","Saint Michael"]
["DM-09","Saint Patrick"]
["GD-06","Saint Patrick"]
["VC-05","Saint Patrick"]
["AG-06","Saint Paul"]
["DM-10","Saint Paul"]
["KN-09","Saint Paul Capisterre"]
["KN-10","Saint Paul Charlestown"]
["MT-51","Saint Paul's Bay"]
["AG-07","Saint Peter"]
["BB-09","Saint Peter"]
["DM-11","Saint Peter"]
["KN-11","Saint Peter Basseterre"]
["AG-08","Saint Philip"]
["BB-10","Saint Philip"]
["BB-11","Saint Thomas"]
["JM-03","Saint Thomas"]
["KN-12","Saint Thomas Lowland"]
["KN-13","Saint Thomas Middle Island"]
["FR-BL","Saint-Barthélemy (see also separate country code entry under BL)"]
["MC-SD","Sainte-Dévote"]
["SC-22","Saint-Louis"]
["SN-SL","Saint-Louis"]
["FR-MF","Saint-Martin (see also separate country code entry under MF)"]
["FR-PM","Saint-Pierre-et-Miquelon (see also separate country code entry under PM)"]
["MC-SR","Saint-Roman"]
["JP-11","Saitama"]
["TR-54","Sakarya"]
["RU-SA","Sakha, Respublika"]
["RU-SAK","Sakhalinskaya oblast'"]
["LT-41","Šakiai"]
["TH-47","Sakon Nakhon"]
["CV-SL","Sal"]
["LV-086","Salacgrīvas novads"]
["IQ-SD","Şalāḩ ad Dīn"]
["RO-SJ","Sălaj"]
["ES-SA","Salamanca"]
["TD-SA","Salamat"]
["TD-SA","Salāmāt"]
["LV-085","Salas novads"]
["LV-087","Salaspils novads"]
["LA-SL","Salavan"]
["LT-42","Šalčininkai"]
["LV-088","Saldus novads"]
["MA-SAL","Salé"]
["IT-SA","Salerno"]
["PS-SLT","Salfit"]
["PS-SLT","Salfīt"]
["GB-SLF","Salford"]
["HU-ST","Salgótarján"]
["MW-SA","Salima"]
["MW-SA","Salima"]
["SI-033","Šalovci"]
["AR-A","Salta"]
["UY-SA","Salto"]
["AZ-SAL","Salyan"]
["AT-5","Salzburg"]
["DO-20","Samaná"]
["AF-SAM","Samangān"]
["AF-SAM","Samangān"]
["PH-WSA","Samar"]
["PH-WSA","Samar"]
["UZ-SA","Samarqand"]
["RU-SAM","Samarskaja oblast'"]
["RU-SAM","Samarskaya oblast'"]
["AZ-SMI","Şamaxı"]
["PH-ZMB","Sambales"]
["KE-37","Samburu"]
["PH-ZSI","Sambuwangga Sibugay"]
["BT-45","Samdrup Jongkhar"]
["GE-SZ","Samegrelo-Zemo Svaneti"]
["TR-55","Samsun"]
["BT-14","Samtse"]
["GE-SJ","Samtskhe-Javakheti"]
["TH-11","Samut Prakan"]
["TH-74","Samut Sakhon"]
["TH-75","Samut Songkhram"]
["AZ-SMX","Samux"]
["CO-SAP","San Andrés, Providencia y Santa Catalina"]
["DO-21","San Cristóbal"]
["TT-SFO","San Fernando"]
["MT-48","San Ġiljan"]
["MT-49","San Ġwann"]
["CR-SJ","San José"]
["UY-SJ","San José"]
["DO-31","San José de Ocoa"]
["AR-J","San Juan"]
["DO-22","San Juan"]
["TT-SJL","San Juan-Laventille"]
["MT-50","San Lawrenz"]
["AR-D","San Luis"]
["MX-SLP","San Luis Potosí"]
["GT-SM","San Marcos"]
["SM-07","San Marino"]
["PE-SAM","San Martin"]
["PE-SAM","San Martín"]
["PE-SAM","San Martín"]
["SV-SM","San Miguel"]
["MT-51","San Pawl il-Baħar"]
["PY-2","San Pedro"]
["DO-23","San Pedro de Macorís"]
["BS-SS","San Salvador"]
["SV-SS","San Salvador"]
["SV-SV","San Vicente"]
["YE-SN","Şanʻā’"]
["SO-SA","Sanaag"]
["DO-24","Sánchez Ramírez"]
["CU-07","Sancti Spíritus"]
["GB-SAW","Sandwell"]
["CF-SE","Sangä"]
["CF-SE","Sangha"]
["CG-13","Sangha"]
["TT-SGE","Sangre Grande"]
["BF-SNG","Sanguié"]
["CH-SG","Sankt Gallen"]
["RU-SPE","Sankt-Peterburg"]
["RU-SPE","Sankt-Peterburg"]
["CD-SA","Sankuru"]
["TR-63","Şanlıurfa"]
["VU-SAM","Sanma"]
["VU-SAM","Sanma"]
["BF-SMT","Sanmatenga"]
["MT-52","Sannat"]
["MT-52","Sannat"]
["HT-CE","Sant"]
["AD-06","Sant Julià de Lòria"]
["SV-SA","Santa Ana"]
["HN-SB","Santa Bárbara"]
["BR-SC","Santa Catarina"]
["CV-CA","Santa Catarina"]
["CV-CF","Santa Catarina do Fogo"]
["AR-Z","Santa Cruz"]
["BO-S","Santa Cruz"]
["CV-CR","Santa Cruz"]
["ES-TF","Santa Cruz de Tenerife"]
["EC-SE","Santa Elena"]
["AR-S","Santa Fe"]
["MT-53","Santa Luċija"]
["GT-SR","Santa Rosa"]
["MT-54","Santa Venera"]
["MT-54","Santa Venera"]
["CO-SAN","Santander"]
["PT-14","Santarém"]
["DO-25","Santiago"]
["CU-13","Santiago de Cuba"]
["AR-G","Santiago del Estero"]
["DO-26","Santiago Rodríguez"]
["DO-32","Santo Domingo"]
["EC-SD","Santo Domingo de los Tsáchilas"]
["CV-SD","São Domingos"]
["CV-SF","São Filipe"]
["CV-SO","São Lourenço dos Órgãos"]
["CV-SM","São Miguel"]
["BR-SP","São Paulo"]
["CV-SS","São Salvador do Mundo"]
["ST-S","São Tomé"]
["CV-SV","São Vicente"]
["FR-71","Saône-et-Loire"]
["TH-19","Saraburi"]
["SR-SA","Saramacca"]
["PH-SAR","Sarangani"]
["PH-SAR","Sarangani"]
["RU-SAR","Saratovskaja oblast'"]
["RU-SAR","Saratovskaya oblast'"]
["MY-13","Sarawak"]
["IT-88","Sardegna"]
["AF-SAR","Sar-e Pul"]
["AF-SAR","Sar-e Pul"]
["BT-31","Sarpang"]
["FR-72","Sarthe"]
["CA-SK","Saskatchewan"]
["CA-SK","Saskatchewan"]
["CI-SM","Sassandra-Marahoué"]
["IT-SS","Sassari"]
["FI-17","Satakunda"]
["FI-17","Satakunta"]
["BD-58","Satkhira"]
["RO-SM","Satu Mare"]
["TH-91","Satun"]
["WS-SA","Satupa'itea"]
["WS-SA","Satupa'itea"]
["LV-089","Saulkrastu novads"]
["CI-SV","Savanes"]
["LA-SV","Savannakhét"]
["MU-SA","Savanne"]
["TG-S","Savannes"]
["ME-18","Šavnik"]
["FR-73","Savoie"]
["IT-SV","Savona"]
["LI-07","Schaan"]
["CH-SH","Schaffhausen"]
["LI-08","Schellenberg"]
["DE-SH","Schleswig-Holstein"]
["CH-SZ","Schwyz"]
["GB-SCT","Scotland"]
["GB-SCB","Scottish Borders, The"]
["PH-CEB","Sebu"]
["AZ-SAD","Sədərək"]
["SN-SE","Sédhiou"]
["MV-01","Seenu"]
["MA-SEF","Sefrou"]
["GB-SFT","Sefton"]
["ML-4","Ségou"]
["ES-SG","Segovia"]
["FR-77","Seine-et-Marne"]
["FR-76","Seine-Maritime"]
["FR-93","Seine-Saint-Denis"]
["LV-090","Sējas novads"]
["KR-50","Sejong"]
["AZ-SA","Şəki"]
["AZ-SAK","Şəki"]
["MY-10","Selangor"]
["MN-049","Selenge"]
["BW-SP","Selibe Phikwe"]
["SI-178","Selnica ob Dravi"]
["UG-111","Sembabule"]
["SI-109","Semič"]
["ER-SK","Semienawi K’eyyĭḥ Baḥri"]
["CZ-514","Semily"]
["AZ-SKR","Şəmkir"]
["IR-12","Semnān"]
["SI-183","Šempeter-Vrtojba"]
["SC-22","Sen Lwi"]
["SI-117","Šenčur"]
["SD-SI","Sennar"]
["BF-SEN","Séno"]
["SI-118","Šentilj"]
["SI-119","Šentjernej"]
["SI-120","Šentjur"]
["SI-211","Šentrupert"]
["KR-11","Seoul-teukbyeolsi"]
["UG-232","Serere"]
["BR-SE","Sergipe"]
["SM-09","Serravalle"]
["FJ-13","Serua"]
["AZ-SAR","Şərur"]
["NP-SE","Seti"]
["DZ-19","Sétif"]
["MA-SET","Settat"]
["PT-15","Setúbal"]
["UA-40","Sevastopol"]
["RU-SE","Severnaja Osetija, Respublika"]
["RU-SE","Severnaya Osetiya, Respublika"]
["RS-01","Severnobački okrug"]
["RS-03","Severnobanatski okrug"]
["KZ-SEV","Severo-Kazahstanskaja oblast'"]
["KZ-SEV","Severo-Kazakhstanskaya oblast'"]
["ES-SE","Sevilla"]
["SI-110","Sevnica"]
["SI-111","Sežana"]
["TN-61","Sfax"]
["CN-61","Shaanxi"]
["SO-SD","Shabeellaha Dhexe"]
["SO-SH","Shabeellaha Hoose"]
["YE-SH","Shabwah"]
["OM-BS","Shamāl al Bāţinah"]
["OM-SS","Shamāl ash Sharqīyah"]
["SD-DN","Shamāl Dārfūr"]
["PS-NGZ","Shamāl Ghazzah"]
["EG-SIN","Shamāl Sīnā'"]
["MM-17","Shan"]
["CN-37","Shandong"]
["CN-31","Shanghai"]
["CN-14","Shanxi"]
["TD-MC","Shārī al Awsaţ"]
["TD-CB","Shārī Bāqirmī"]
["BD-62","Shariatpur"]
["SD-DE","Sharq Dārfūr"]
["MV-24","Shaviyani"]
["UG-426","Sheema"]
["VU-SEE","Shéfa"]
["VU-SEE","Shéfa"]
["GB-SHF","Sheffield"]
["BD-57","Sherpur"]
["GB-ZET","Shetland Islands"]
["SD-KN","Shiamāl Kurdufān"]
["GE-SK","Shida Kartli"]
["JP-25","Shiga"]
["ER-SK","Shimālī al Baḩrī al Aḩmar"]
["JP-32","Shimane"]
["TZ-22","Shinyanga"]
["SZ-SH","Shiselweni"]
["SZ-SH","Shiselweni"]
["JP-22","Shizuoka"]
["AL-10","Shkodër"]
["GB-SHR","Shropshire"]
["BG-27","Shumen"]
["KZ-VOS","Shyghys Qazaqstan oblysy"]
["TH-33","Si Sa Ket"]
["LT-44","Šiauliai"]
["LT-SA","Šiaulių apskritis"]
["LT-43","Šiaulių miestas"]
["KE-38","Siaya"]
["HR-15","Šibensko-kninska županija"]
["RO-SB","Sibiu"]
["CN-51","Sichuan"]
["IT-82","Sicilia"]
["HT-SD","Sid"]
["HT-SE","Sidès"]
["DZ-22","Sidi Bel Abbès"]
["TN-43","Sidi Bouzid"]
["MA-SIK","Sidi Kacem"]
["MA-SYB","Sidi Youssef Ben Ali"]
["KH-17","Siem Reab"]
["KH-17","Siĕmréab"]
["IT-SI","Siena"]
["JP-25","Siga"]
["WF-SG","Sigave"]
["MT-55","Siġġiewi"]
["MT-55","Siġġiewi"]
["GN-SI","Siguiri"]
["LV-091","Siguldas novads"]
["TR-56","Siirt"]
["ML-3","Sikasso"]
["PH-SIG","Sikihor"]
["IN-SK","Sikkim"]
["TD-SI","Sila"]
["TD-SI","Sīlā"]
["LT-45","Šilalė"]
["PH-DAO","Silangang Dabaw"]
["PH-MDR","Silangang Mindoro"]
["PH-MSR","Silangang Misamis"]
["PH-NER","Silangang Negros"]
["PH-EAS","Silangang Samar"]
["TN-34","Siliana"]
["BG-19","Silistra"]
["LT-46","Šilutė"]
["JP-32","Simane"]
["TZ-30","Simiyu"]
["MX-SIN","Sinaloa"]
["PK-SD","Sindh"]
["PK-SD","Sindh"]
["TH-17","Sing Buri"]
["MD-SI","Sîngerei"]
["TZ-23","Singida"]
["SD-SI","Sinnār"]
["LR-SI","Sinoe"]
["TR-57","Sinop"]
["BQ-SE","Sint Eustatius"]
["BQ-SE","Sint Eustatius"]
["BQ-SE","Sint Eustatius"]
["NL-BQ3","Sint Eustatius (see also separate country code entry under BQ)"]
["NL-SX","Sint Maarten (see also separate country code entry under SX)"]
["SR-SI","Sipaliwini"]
["TT-SIP","Siparia"]
["PH-SIG","Siquijor"]
["IT-SR","Siracusa"]
["BD-59","Sirajganj"]
["AM-SH","Širak"]
["UZ-SI","Sirdaryo"]
["TR-73","Şırnak"]
["UG-215","Sironko"]
["AZ-SR","Şirvan"]
["LT-47","Širvintos"]
["HR-03","Sisačko-moslavačka županija"]
["BF-SIS","Sissili"]
["IR-13","Sīstān va Balūchestān"]
["TR-58","Sivas"]
["AZ-SIY","Siyəzən"]
["JP-22","Sizuoka"]
["DK-85","Sjælland"]
["SE-M","Skåne län [SE-12]"]
["MA-SKH","Skhirate-Témara"]
["DZ-21","Skikda"]
["SI-121","Škocjan"]
["SI-122","Škofja Loka"]
["SI-123","Škofljica"]
["MK-85","Skopje"]
["LV-092","Skrīveru novads"]
["LV-093","Skrundas novads"]
["LT-48","Skuodas"]
["PL-SL","Śląskie"]
["IQ-SU","Slêmanî"]
["MT-56","Sliema"]
["MT-56","Sliema"]
["IE-SO","Sligeach"]
["IE-SO","Sligo"]
["BG-20","Sliven"]
["GB-SLG","Slough"]
["SI-112","Slovenj Gradec"]
["SI-113","Slovenska Bistrica"]
["SI-114","Slovenske Konjice"]
["SI-124","Šmarje pri Jelšah"]
["SI-206","Šmarješke Toplice"]
["SI-125","Šmartno ob Paki"]
["SI-194","Šmartno pri Litiji"]
["LV-094","Smiltenes novads"]
["RU-SMO","Smolenskaja oblast'"]
["RU-SMO","Smolenskaya oblast'"]
["BG-21","Smolyan"]
["VN-52","Sóc Trăng"]
["PH-12","Soccsksargen (Region XII)"]
["SE-D","Södermanlands län [SE-04]"]
["FI-02","Södra Karelen"]
["FI-03","Södra Österbotten"]
["FI-04","Södra Savolax"]
["SI-179","Sodražica"]
["MZ-S","Sofala"]
["BG-23","Sofia"]
["BG-22","Sofia (stolitsa)"]
["NO-14","Sogn og Fjordane"]
["NO-14","Sogn og Fjordane"]
["CZ-413","Sokolov"]
["NG-SO","Sokoto"]
["SI-180","Solčava"]
["MD-SD","Șoldănești"]
["GB-SOL","Solihull"]
["GT-SO","Sololá"]
["CH-SO","Solothurn"]
["KZ-SEV","Soltüstik Qazaqstan oblysy"]
["ET-SO","Somali"]
["GB-SOM","Somerset"]
["FR-80","Somme"]
["HU-SO","Somogy"]
["VN-05","Sơn La"]
["IT-SO","Sondrio"]
["TH-90","Songkhla"]
["MX-SON","Sonora"]
["SV-SO","Sonsonate"]
["PW-370","Sonsorol"]
["PW-370","Sonsorol"]
["SO-SO","Sool"]
["MK-70","Sopište"]
["HU-SN","Sopron"]
["ES-SO","Soria"]
["UY-SO","Soriano"]
["MD-SO","Soroca"]
["UG-211","Soroti"]
["PH-SOR","Sorsogon"]
["PH-SOR","Sorsogon"]
["NO-16","Sør-Trøndelag"]
["NO-16","Sør-Trøndelag"]
["SI-126","Šoštanj"]
["LC-10","Soufrière"]
["DZ-41","Souk Ahras"]
["BF-SOM","Soum"]
["BF-SOR","Sourou"]
["MA-13","Sous-Massa-Draa"]
["TN-51","Sousse"]
["CM-SU","South"]
["MV-SU","South"]
["BS-SO","South Abaco"]
["BS-SA","South Andros"]
["AU-SA","South Australia"]
["GB-SAY","South Ayrshire"]
["US-SC","South Carolina"]
["MV-SC","South Central"]
["PH-SCO","South Cotabato"]
["US-SD","South Dakota"]
["SD-DS","South Darfur"]
["BW-SE","South East"]
["SG-04","South East"]
["BS-SE","South Eleuthera"]
["GB-SGC","South Gloucestershire"]
["SD-KS","South Kordofan"]
["GB-SLK","South Lanarkshire"]
["GB-STY","South Tyneside"]
["SG-05","South West"]
["GB-STH","Southampton"]
["GB-SOS","Southend-on-Sea"]
["BW-SO","Southern"]
["RW-05","Southern"]
["SL-S","Southern"]
["ZM-07","Southern"]
["GD-10","Southern Grenadine Islands"]
["PG-SHM","Southern Highlands"]
["PH-SLE","Southern Leyte"]
["ET-SN","Southern Nations, Nationalities and Peoples"]
["LK-3","Southern Province"]
["MW-S","Southern Region"]
["NZ-STL","Southland"]
["GB-SWK","Southwark"]
["CM-SW","South-West"]
["BW-ST","Sowa Town"]
["BS-SW","Spanish Wells"]
["MC-SP","Spélugues"]
["HR-17","Splitsko-dalmatinska županija"]
["SI-202","Središče ob Dravi"]
["RS-02","Srednjebanatski okrug"]
["RS-07","Sremski okrug"]
["GB-SHN","St. Helens"]
["GB-STS","Staffordshire"]
["BZ-SC","Stann Creek"]
["BG-24","Stara Zagora"]
["MK-71","Staro Nagoričane"]
["SI-115","Starše"]
["RU-STA","Stavropol'skij kraj"]
["RU-STA","Stavropol'skiy kray"]
["MD-SV","Ștefan Vodă"]
["AT-6","Steiermark"]
["GR-H","Stereá Elláda"]
["MD-SN","Stînga Nistrului, unitatea teritorială din"]
["MK-83","Štip"]
["GB-STG","Stirling"]
["SE-AB","Stockholms län [SE-01]"]
["GB-SKP","Stockport"]
["GB-STT","Stockton-on-Tees"]
["KH-19","Stoĕng Trêng"]
["GB-STE","Stoke-on-Trent"]
["LV-095","Stopiņu novads"]
["SI-127","Štore"]
["CZ-316","Strakonice"]
["MD-ST","Strășeni"]
["SI-203","Straža"]
["CZ-20","Středočeský kraj"]
["LV-096","Strenču novads"]
["MK-72","Struga"]
["MK-73","Strumica"]
["MK-74","Studeničani"]
["KH-19","Stueng Traeng"]
["RO-SV","Suceava"]
["GT-SU","Suchitepéquez"]
["CO-SUC","Sucre"]
["VE-R","Sucre"]
["EC-U","Sucumbíos"]
["CM-SU","Sud"]
["HT-SD","Sud"]
["RW-05","Sud"]
["HT-SE","Sud-Est"]
["CD-SK","Sud-Kivu"]
["BF-13","Sud-Ouest"]
["CM-SW","Sud-Ouest"]
["CD-SU","Sud-Ubangi"]
["NP-5","Sudur Pashchimanchal"]
["IS-8","Suðurland"]
["IS-2","Suðurnes"]
["GB-SFK","Suffolk"]
["TJ-SU","Sughd"]
["EG-SHG","Sūhāj"]
["MN-051","Sühbaatar"]
["TH-64","Sukhothai"]
["GW-S","Sul"]
["ID-SL","Sulawesi"]
["ID-SR","Sulawesi Barat"]
["ID-SN","Sulawesi Selatan"]
["ID-ST","Sulawesi Tengah"]
["ID-SG","Sulawesi Tenggara"]
["ID-SA","Sulawesi Utara"]
["PH-SUK","Sultan Kudarat"]
["PH-SUK","Sultan Kudarat"]
["PH-SLU","Sulu"]
["PH-SLU","Sulu"]
["RS-12","Šumadijski okrug"]
["ET-SO","Sumalē"]
["ID-SM","Sumatera"]
["ID-SB","Sumatera Barat"]
["ID-SS","Sumatera Selatan"]
["ID-SU","Sumatera Utara"]
["CZ-715","Šumperk"]
["AZ-SM","Sumqayıt"]
["UA-59","Sumska oblast"]
["BD-61","Sunamganj"]
["GB-SND","Sunderland"]
["TH-72","Suphan Buri"]
["TH-84","Surat Thani"]
["PH-SUN","Surigao del Norte"]
["PH-SUR","Surigao del Sur"]
["TH-32","Surin"]
["GB-SRY","Surrey"]
["LY-SR","Surt"]
["UZ-SU","Surxondaryo"]
["AZ-SUS","Şuşa"]
["GB-STN","Sutton"]
["KH-20","Svaay Rieng"]
["NO-21","Svalbard (Arctic Region) (see also separate country code entry under SJ)"]
["NO-21","Svalbard (Arctic Region) (see also separate country code entry under SJ)"]
["KH-20","Svay Riĕng"]
["LT-49","Švenčionys"]
["RU-SVE","Sverdlovskaja oblast'"]
["RU-SVE","Sverdlovskaya oblast'"]
["SI-181","Sveta Ana"]
["SI-204","Sveta Trojica v Slovenskih Goricah"]
["SI-182","Sveti Andraž v Slovenskih Goricah"]
["SI-116","Sveti Jurij"]
["SI-210","Sveti Jurij v Slovenskih Goricah"]
["MK-69","Sveti Nikole"]
["SI-205","Sveti Tomaž"]
["CZ-533","Svitavy"]
["GB-SWA","Swansea [Abertawe GB-ATA]"]
["MT-57","Swieqi"]
["MT-57","Swieqi"]
["PL-SK","Świętokrzyskie"]
["GB-SWD","Swindon"]
["DK-83","Syddanmark"]
["BD-G","Sylhet"]
["BD-60","Sylhet"]
["AM-SU","Syunik'"]
["HU-SZ","Szabolcs-Szatmár-Bereg"]
["HU-SD","Szeged"]
["HU-SF","Székesfehérvár"]
["HU-SS","Szekszárd"]
["HU-SK","Szolnok"]
["HU-SH","Szombathely"]
["MT-58","Ta' Xbiex"]
["MT-58","Ta' Xbiex"]
["KH-21","Taakaev"]
["MX-TAB","Tabasco"]
["SI-184","Tabor"]
["CZ-317","Tábor"]
["TZ-24","Tabora"]
["SA-07","Tabūk"]
["VE-S","Táchira"]
["CZ-327","Tachov"]
["PE-TAC","Tacna"]
["UY-TA","Tacuarembó"]
["DJ-TA","Tadjourah"]
["MA-12","Tadla-Azilal"]
["VU-TAE","Taféa"]
["VU-TAE","Taféa"]
["MR-09","Tagant"]
["NE-5","Tahoua"]
["TW-TXG","Taichung"]
["FJ-14","Tailevu"]
["TW-TNN","Tainan"]
["TW-TPE","Taipei"]
["KE-39","Taita/Taveta"]
["TW-TTT","Taitung"]
["CN-71","Taiwan (see also separate country code entry under TW)"]
["YE-TA","Tāʻizz"]
["DJ-TA","Tājūrah"]
["TH-63","Tak"]
["SC-23","Takamaka"]
["SC-23","Takamaka"]
["SC-23","Takamaka"]
["KH-21","Takêv"]
["AF-TAK","Takhār"]
["AF-TAK","Takhār"]
["PE-TAC","Takna"]
["KG-T","Talas"]
["KG-T","Talasskaja oblast'"]
["KG-T","Talasskaya oblast'"]
["IL-TA","Tall Abīb"]
["LV-097","Talsu novads"]
["NZ-AUK","Tāmaki-makau-rau"]
["DZ-11","Tamanrasset"]
["MX-TAM","Tamaulipas"]
["SN-TC","Tambacounda"]
["RU-TAM","Tambovskaja oblast'"]
["RU-TAM","Tambovskaya oblast'"]
["GB-TAM","Tameside"]
["IN-TN","Tamil Nadu"]
["KE-40","Tana River"]
["TD-TA","Tandjilé"]
["TZ-25","Tanga"]
["BD-63","Tangail"]
["CD-TA","Tanganyika"]
["MA-TNG","Tanger-Assilah"]
["MA-01","Tanger-Tétouan"]
["MM-05","Tanintharyi"]
["TD-TA","Tānjilī"]
["MA-TNT","Tan-Tan"]
["MA-TAO","Taounate"]
["MA-TAI","Taourirt"]
["TW-TAO","Taoyuan"]
["BF-TAP","Tapoa"]
["PE-TAC","Taqna"]
["NG-TA","Taraba"]
["LY-TB","Ţarābulus"]
["MD-TA","Taraclia"]
["NZ-TKI","Taranaki"]
["NZ-TKI","Taranaki"]
["IT-TA","Taranto"]
["CL-TA","Tarapacá"]
["BG-25","Targovishte"]
["BO-T","Tarija"]
["PH-TAR","Tarlac"]
["PH-TAR","Tarlak"]
["FR-81","Tarn"]
["FR-82","Tarn-et-Garonne"]
["MA-TAR","Taroudant"]
["CV-TA","Tarrafal"]
["CV-TS","Tarrafal de São Nicolau"]
["ES-T","Tarragona [Tarragona]"]
["EE-78","Tartumaa"]
["SY-TA","Ţarţūs"]
["MT-59","Tarxien"]
["MT-59","Tarxien"]
["NZ-TAS","Tasman"]
["AU-TAS","Tasmania"]
["MA-TAT","Tata"]
["HU-TB","Tatabánya"]
["TN-83","Tataouine"]
["RU-TA","Tatarstan, Respublika"]
["RU-TA","Tatarstan, Respublika"]
["LT-50","Tauragė"]
["LT-TA","Tauragės apskritis"]
["AM-TV","Tavuš"]
["PH-TAW","Tawi-Tawi"]
["PH-TAW","Tawi-Tawi"]
["VN-37","Tây Ninh"]
["MA-TAZ","Taza"]
["MA-03","Taza-Al Hoceima-Taounate"]
["GE-TB","Tbilisi"]
["KH-25","Tbong Khmum"]
["KH-25","Tbong Khmŭm"]
["NZ-HKB","Te Matau a Māui"]
["NZ-BOP","Te Moana a Toi Te Huatahi"]
["NZ-NTL","Te Tai tokerau"]
["NZ-WTC","Te Taihau ā uru"]
["NZ-WGN","Te Whanga-nui-a-Tara"]
["MK-75","Tearce"]
["DZ-12","Tébessa"]
["IR-07","Tehrān"]
["TR-59","Tekirdağ"]
["IL-TA","Tel Aviv"]
["IN-TG","Telangana"]
["NO-08","Telemark"]
["NO-08","Telemark"]
["MD-TE","Telenești"]
["RO-TR","Teleorman"]
["GB-TFW","Telford and Wrekin"]
["GN-TE","Télimélé"]
["LT-51","Telšiai"]
["LT-TE","Telšių apskritis"]
["BN-TE","Temburong"]
["BN-TE","Temburong"]
["SB-TE","Temotu"]
["LK-3","Tĕṉ mākāṇam"]
["US-TN","Tennessee"]
["CZ-426","Teplice"]
["IT-TE","Teramo"]
["MY-11","Terengganu"]
["IT-TR","Terni"]
["UA-61","Ternopilska oblast"]
["CA-NL","Terre-Neuve-et-Labrador"]
["FR-TF","Terres australes françaises (see also separate country code entry under TF)"]
["FR-90","Territoire de Belfort"]
["CA-NT","Territoires du Nord-Ouest"]
["AZ-TAR","Tərtər"]
["ES-TE","Teruel"]
["LV-098","Tērvetes novads"]
["MZ-T","Tete"]
["MA-TET","Tétouan"]
["MK-76","Tetovo"]
["US-TX","Texas"]
["MV-08","Thaa"]
["LS-K","Thaba-Tseka"]
["LS-K","Thaba-Tseka"]
["VN-20","Thái Bình"]
["VN-69","Thái Nguyên"]
["BD-64","Thakurgaon"]
["VN-21","Thanh Hóa"]
["KE-41","Tharaka-Nithi"]
["GR-E","Thessalía"]
["SN-TH","Thiès"]
["MV-23","Thiladhunmathee Dhekunuburi"]
["MV-07","Thiladhunmathee Uthuruburi"]
["BT-15","Thimphu"]
["VN-26","Thừa Thiên-Huế"]
["CH-TG","Thurgau"]
["DE-TH","Thüringen"]
["GB-THR","Thurrock"]
["MW-TH","Thyolo"]
["MW-TH","Thyolo"]
["CN-12","Tianjin"]
["DZ-14","Tiaret"]
["JP-12","Tiba"]
["TD-TI","Tibastī"]
["TD-TI","Tibesti"]
["CH-TI","Ticino"]
["VN-46","Tiền Giang"]
["AR-V","Tierra del Fuego"]
["ET-TI","Tigrai"]
["ET-TI","Tigray"]
["NE-6","Tillabéri"]
["RO-TM","Timiș"]
["PH-AGS","Timog Agusan"]
["PH-DAS","Timog Dabaw"]
["PH-ILS","Timog Iloko"]
["PH-CAS","Timog Kamarines"]
["PH-SCO","Timog Kotabato"]
["PH-LAS","Timog Lanaw"]
["PH-ZAS","Timog Sambuwangga"]
["PH-SUR","Timog Surigaw"]
["DZ-37","Tindouf"]
["IE-TA","Tiobraid Árann"]
["DZ-42","Tipaza"]
["IE-TA","Tipperary"]
["AL-11","Tiranë"]
["MR-11","Tiris Zemmour"]
["AT-7","Tirol"]
["LK-53","Tirukŏṇamalai"]
["SI-010","Tišina"]
["DZ-38","Tissemsilt"]
["ME-19","Tivat"]
["DZ-15","Tizi Ouzou"]
["MA-TIZ","Tiznit"]
["RU-TYU","Tjumenskaja oblast'"]
["MX-TLA","Tlaxcala"]
["DZ-13","Tlemcen"]
["MG-A","Toamasina"]
["TT-TOB","Tobago"]
["BR-TO","Tocantins"]
["JP-09","Tochigi"]
["SO-TO","Togdheer"]
["TR-60","Tokat"]
["CF-HK","Tö-Kötö"]
["JP-36","Tokushima"]
["JP-36","Tokusima"]
["JP-13","Tokyo"]
["JP-13","Tôkyô"]
["BZ-TOL","Toledo"]
["ES-TO","Toledo"]
["MG-U","Toliara"]
["CO-TOL","Tolima"]
["SI-128","Tolmin"]
["HU-TO","Tolna"]
["GW-TO","Tombali"]
["CF-HM","Tö-Mbömü"]
["ML-6","Tombouctou"]
["RU-TOM","Tomskaja oblast'"]
["RU-TOM","Tomskaya oblast'"]
["TO-04","Tongatapu"]
["TO-04","Tongatapu"]
["RS-21","Toplički okrug"]
["VU-TOB","Torba"]
["VU-TOB","Torba"]
["GB-TOB","Torbay"]
["GB-TOF","Torfaen [Tor-faen]"]
["IT-TO","Torino"]
["UG-212","Tororo"]
["CF-HS","Tö-Sangä / Mbaere-Kadeï"]
["IT-52","Toscana"]
["UZ-TK","Toshkent"]
["UZ-TO","Toshkent"]
["JP-09","Totigi"]
["GT-TO","Totonicapán"]
["JP-31","Tottori"]
["GN-TO","Tougué"]
["MN-047","Töv"]
["AZ-TOV","Tovuz"]
["GB-TWH","Tower Hamlets"]
["JP-16","Toyama"]
["TN-72","Tozeur"]
["VN-51","Trà Vinh"]
["TR-61","Trabzon"]
["GB-TRF","Trafford"]
["LT-52","Trakai"]
["TH-92","Trang"]
["KE-42","Trans Nzoia"]
["IT-TP","Trapani"]
["MR-06","Trarza"]
["BT-TY","Trashi Yangtse"]
["BT-41","Trashigang"]
["TH-23","Trat"]
["SI-129","Trbovlje"]
["CZ-634","Třebíč"]
["SI-130","Trebnje"]
["UY-TT","Treinta y Tres"]
["JM-07","Trelawny"]
["SK-TC","Trenčiansky kraj"]
["IT-32","Trentino-Alto Adige"]
["IT-32","Trentino-Südtirol"]
["IT-TN","Trento"]
["IT-TV","Treviso"]
["LI-09","Triesen"]
["LI-10","Triesenberg"]
["IT-TS","Trieste"]
["LK-53","Trikuṇāmalaya"]
["LK-53","Trincomalee"]
["KN-15","Trinity Palmetto Point"]
["IN-TR","Tripura"]
["SH-TA","Tristan da Cunha"]
["SK-TA","Trnavský kraj"]
["SI-185","Trnovska Vas"]
["NO-19","Troms"]
["NO-19","Troms"]
["BT-32","Trongsa"]
["VE-T","Trujillo"]
["CZ-525","Trutnov"]
["SI-131","Tržič"]
["SI-186","Trzin"]
["CD-TO","Tshopo"]
["CD-TU","Tshuapa"]
["BT-21","Tsirang"]
["WS-TU","Tuamasaga"]
["WS-TU","Tuamasaga"]
["PS-TBS","Tubas"]
["PS-TBS","Ţūbās"]
["AR-T","Tucumán"]
["LV-099","Tukuma novads"]
["RO-TL","Tulcea"]
["PS-TKM","Tulkarm"]
["PS-TKM","Ţūlkarm"]
["RU-TUL","Tul'skaja oblast'"]
["RU-TUL","Tul'skaya oblast'"]
["PE-TUM","Tumbes"]
["PE-TUM","Tumbes"]
["PE-TUM","Tumpis"]
["TT-TUP","Tunapuna-Piarco"]
["TR-62","Tunceli"]
["EC-T","Tungurahua"]
["TN-11","Tunis"]
["NZ-GIS","Tūranga nui a Kiwa"]
["KE-43","Turkana"]
["SI-132","Turnišče"]
["BN-TU","Tutong"]
["BN-TU","Tutong"]
["BF-TUI","Tuy"]
["VN-07","Tuyên Quang"]
["RU-TVE","Tverskaja oblast'"]
["RU-TVE","Tverskaya oblast'"]
["RU-TYU","Tyumenskaya oblast'"]
["RU-TY","Tyva, Respublika"]
["RU-TY","Tyva, Respublika"]
["NR-13","Uaboe"]
["NR-13","Uaboe"]
["KE-44","Uasin Gishu"]
["TH-34","Ubon Ratchathani"]
["AZ-UCA","Ucar"]
["PE-UCA","Ucayali"]
["IT-UD","Udine"]
["RU-UD","Udmurtskaja Respublika"]
["RU-UD","Udmurtskaya Respublika"]
["TH-41","Udon Thani"]
["CZ-722","Uherské Hradiště"]
["IE-OY","Uíbh Fhailí"]
["AO-UIG","Uíge"]
["MH-UJA","Ujae"]
["MH-UJA","Ujae"]
["PE-UCA","Ukayali"]
["PE-UCA","Ukayali"]
["LT-53","Ukmergė"]
["MN-1","Ulaanbaatar"]
["IE-U","Ulaidh"]
["ME-20","Ulcinj"]
["RU-ULY","Ul'janovskaja oblast'"]
["KR-31","Ulsan-gwangyeoksi"]
["IE-U","Ulster"]
["RU-ULY","Ul'yanovskaya oblast'"]
["IT-55","Umbria"]
["AE-UQ","Umm al Qaywayn"]
["QA-US","Umm Şalāl"]
["RW-01","Umujyi wa Kigali"]
["MD-UN","Ungheni"]
["GB-UKM","United Kingdom"]
["US-UM","United States Minor Outlying Islands (see also separate country code entry under UM)"]
["SS-UY","Unity"]
["GY-UD","Upper Demerara-Berbice"]
["GH-UE","Upper East"]
["SS-NU","Upper Nile"]
["MV-UN","Upper North"]
["GM-U","Upper River"]
["MV-US","Upper South"]
["GY-UT","Upper Takutu-Upper Essequibo"]
["GH-UW","Upper West"]
["SE-C","Uppsala län [SE-03]"]
["CH-UR","Uri"]
["AF-URU","Uruzgān"]
["AF-URU","Uruzgān"]
["TR-64","Uşak"]
["CZ-42","Ústecký kraj"]
["CZ-427","Ústí nad Labem"]
["CZ-534","Ústí nad Orlicí"]
["SV-US","Usulután"]
["US-UT","Utah"]
["LT-54","Utena"]
["LT-UT","Utenos apskritis"]
["TH-61","Uthai Thani"]
["MV-NO","Uthuru"]
["NL-UT","Utrecht"]
["MH-UTI","Utrik"]
["MH-UTI","Utrik"]
["IN-UP","Uttar Pradesh"]
["TH-53","Uttaradit"]
["IN-UT","Uttarakhand"]
["LK-4","Uturu paḷāta"]
["LK-7","Uturumæ̆da paḷāta"]
["FI-18","Uusimaa"]
["LK-8","Ūvā mākāṇam"]
["LK-8","Ūva paḷāta"]
["LK-8","Uva Province"]
["WF-UV","Uvea"]
["MN-046","Uvs"]
["WS-VF","Va'a-o-Fonoti"]
["WS-VF","Va'a-o-Fonoti"]
["MV-04","Vaavu"]
["MU-VP","Vacoas-Phoenix"]
["LI-11","Vaduz"]
["LV-100","Vaiņodes novads"]
["WS-VS","Vaisigano"]
["WS-VS","Vaisigano"]
["TV-VAI","Vaitupu"]
["CF-VK","Vakaga"]
["CF-VK","Vakaga"]
["IT-23","Val d'Aoste"]
["CH-VS","Valais"]
["MK-10","Valandovo"]
["RO-VL","Vâlcea"]
["FR-94","Val-de-Marne"]
["DO-41","Valdesia"]
["FR-95","Val-d'Oise"]
["GB-VGL","Vale of Glamorgan, The [Bro Morgannwg GB-BMG]"]
["ES-V","Valencia"]
["ES-V","València*"]
["ES-VC","Valenciana, Comunidad"]
["ES-VC","Valenciana, Comunitat*"]
["EE-82","Valgamaa"]
["LV-101","Valkas novads"]
["ES-VA","Valladolid"]
["HN-VA","Valle"]
["IT-23","Valle d'Aosta"]
["CO-VAC","Valle del Cauca"]
["CI-VB","Vallée du Bandama"]
["MT-60","Valletta"]
["MT-60","Valletta"]
["MC-VR","Vallon de la Rousse"]
["LV-VMR","Valmiera"]
["CL-VS","Valparaíso"]
["DO-27","Valverde"]
["TR-65","Van"]
["FR-83","Var"]
["LV-102","Varakļānu novads"]
["HR-05","Varaždinska županija"]
["LT-55","Varėna"]
["IT-VA","Varese"]
["VE-X","Vargas"]
["LV-103","Vārkavas novads"]
["SE-S","Värmlands län [SE-17]"]
["BG-03","Varna"]
["FI-19","Varsinais-Suomi"]
["HU-VA","Vas"]
["MK-11","Vasilevo"]
["RO-VS","Vaslui"]
["SE-AC","Västerbottens län [SE-24]"]
["SE-Y","Västernorrlands län [SE-22]"]
["SE-U","Västmanlands län [SE-19]"]
["SE-O","Västra Götalands län [SE-14]"]
["LK-4","Vaṭakku mākāṇam"]
["LK-7","Vaṭamattiya mākāṇam"]
["LK-6","Vaṭamel mākāṇam"]
["FR-84","Vaucluse"]
["CH-VD","Vaud"]
["CO-VAU","Vaupés"]
["TO-05","Vava'u"]
["TO-05","Vava'u"]
["LK-44","Vavuniya"]
["LK-44","Vavuṉiyā"]
["LK-44","Vavuniyāva"]
["LK-6","Vayamba paḷāta"]
["AM-VD","Vayoć Jor"]
["LV-104","Vecpiebalgas novads"]
["LV-105","Vecumnieku novads"]
["LU-VD","Veianen"]
["SI-133","Velenje"]
["MK-13","Veles"]
["SI-187","Velika Polana"]
["SI-134","Velike Lašče"]
["BG-04","Veliko Tarnovo"]
["FR-85","Vendée"]
["IT-34","Veneto"]
["IT-VE","Venezia"]
["LV-VEN","Ventspils"]
["LV-106","Ventspils novads"]
["MX-VER","Veracruz de Ignacio de la Llave"]
["PA-9","Veraguas"]
["IT-VB","Verbano-Cusio-Ossola"]
["IT-VC","Vercelli"]
["US-VT","Vermont"]
["IT-VR","Verona"]
["SI-188","Veržej"]
["NO-10","Vest-Agder"]
["NO-10","Vest-Agder"]
["IS-4","Vestfirðir"]
["NO-07","Vestfold"]
["NO-07","Vestfold"]
["IS-3","Vesturland"]
["HU-VE","Veszprém"]
["HU-VM","Veszprém"]
["MK-12","Vevčani"]
["ZA-LP","Vhembe"]
["PT-16","Viana do Castelo"]
["LU-VD","Vianden"]
["LU-VD","Vianden"]
["LA-VI","Viangchan"]
["LA-VT","Viangchan"]
["IT-VV","Vibo Valentia"]
["IT-VI","Vicenza"]
["CO-VID","Vichada"]
["BY-VI","Viciebskaja voblasć"]
["AU-VIC","Victoria"]
["SI-135","Videm"]
["BG-05","Vidin"]
["FR-86","Vienne"]
["LV-107","Viesītes novads"]
["LC-11","Vieux Fort"]
["KE-45","Vihiga"]
["TL-VI","Vikeke"]
["PT-17","Vila Real"]
["LV-108","Viļakas novads"]
["LV-109","Viļānu novads"]
["EE-84","Viljandimaa"]
["LT-56","Vilkaviškis"]
["CU-05","Villa Clara"]
["RW-01","Ville de Kigali"]
["TD-ND","Ville de Ndjamena"]
["LT-VL","Vilniaus apskritis"]
["LT-57","Vilniaus miestas"]
["LT-58","Vilnius"]
["VN-49","Vĩnh Long"]
["VN-70","Vĩnh Phúc"]
["MK-14","Vinica"]
["UA-05","Vinnytska oblast"]
["SI-136","Vipava"]
["TL-VI","Viqueque"]
["US-VI","Virgin Islands, U.S. (see also separate country code entry under VI)"]
["US-VA","Virginia"]
["HR-10","Virovitičko-podravska županija"]
["LT-59","Visaginas"]
["PT-18","Viseu"]
["SI-137","Vitanje"]
["BY-VI","Vitebskaja oblast'"]
["BY-VI","Vitebskaya oblast'"]
["IT-VT","Viterbo"]
["BY-VI","Vitsyebskaya voblasts'"]
["BE-VLG","Vlaams Gewest"]
["BE-VBR","Vlaams-Brabant"]
["RU-VLA","Vladimirskaja oblast'"]
["RU-VLA","Vladimirskaya oblast'"]
["AL-12","Vlorë"]
["SI-138","Vodice"]
["SI-139","Vojnik"]
["RS-VO","Vojvodina"]
["RU-VGG","Volgogradskaja oblast'"]
["RU-VGG","Volgogradskaya oblast'"]
["RU-VLG","Vologodskaja oblast'"]
["RU-VLG","Vologodskaya oblast'"]
["GH-TV","Volta"]
["UA-07","Volynska oblast"]
["AT-8","Vorarlberg"]
["GR-K","Voreío Aigaío"]
["RU-VOR","Voronezhskaya oblast'"]
["RU-VOR","Voronežskaja oblast'"]
["EE-86","Võrumaa"]
["FR-88","Vosges"]
["KZ-VOS","Vostochno-Kazakhstanskaya oblast'"]
["KZ-VOS","Vostočno-Kazahstanskaja oblast'"]
["RO-VN","Vrancea"]
["SI-189","Vransko"]
["MK-16","Vrapčište"]
["BG-06","Vratsa"]
["SI-140","Vrhnika"]
["ZA-FS","Vrystaat"]
["CZ-723","Vsetín"]
["HR-16","Vukovarsko-srijemska županija"]
["SI-141","Vuzenica"]
["CZ-646","Vyškov"]
["TD-OD","Waddāy"]
["LY-WD","Wādī al Ḩayāt"]
["LY-WS","Wādī ash Shāţi’"]
["TD-WF","Wadi Fira"]
["TD-WF","Wādī Fīrā"]
["NZ-WKO","Waikato"]
["NZ-CAN","Waitaha"]
["KE-46","Wajir"]
["CF-UK","Wäkä"]
["JP-30","Wakayama"]
["UM-79","Wake Island"]
["GB-WKF","Wakefield"]
["UG-113","Wakiso"]
["GB-WLS","Wales [Cymru GB-CYM]"]
["CH-VS","Wallis"]
["FR-WF","Wallis-et-Futuna (see also separate country code entry under WF)"]
["BE-WAL","wallonne, Région"]
["GB-WLL","Walsall"]
["GB-WFT","Waltham Forest"]
["CF-AC","Wâmo"]
["CF-OP","Wâmo-Pendë"]
["GB-WND","Wandsworth"]
["BT-24","Wangdue Phodrang"]
["SR-WA","Wanica"]
["PE-HUV","Wankawelika"]
["PE-HUV","Wankawillka"]
["PE-HUC","Wanuku"]
["PE-HUC","Wanuku"]
["AF-WAR","Wardak"]
["AF-WAR","Wardak"]
["PL-WN","Warmińsko-mazurskie"]
["SS-WR","Warrap"]
["GB-WRT","Warrington"]
["GB-WAR","Warwickshire"]
["SD-DC","Wasaţ Dārfūr Zālinjay"]
["US-WA","Washington"]
["IQ-WA","Wāsiţ"]
["IE-WD","Waterford"]
["GQ-WN","Wele-Nzas"]
["GQ-WN","Wele-Nzas"]
["GQ-WN","Wele-Nzas"]
["NZ-WGN","Wellington"]
["ZA-WC","Wes-Kaap"]
["CM-OU","West"]
["IN-WB","West Bengal"]
["GB-WBK","West Berkshire"]
["NZ-WTC","West Coast"]
["SD-DW","West Darfur"]
["GB-WDU","West Dunbartonshire"]
["BS-WG","West Grand Bahama"]
["SD-GK","West Kordofan"]
["GB-WLN","West Lothian"]
["PG-WBK","West New Britain"]
["KE-47","West Pokot"]
["PG-SAN","West Sepik"]
["GB-WSX","West Sussex"]
["US-WV","West Virginia"]
["FJ-W","Western"]
["GH-WP","Western"]
["GM-W","Western"]
["NP-3","Western"]
["PG-WPD","Western"]
["RW-04","Western"]
["SB-WE","Western"]
["UG-W","Western"]
["ZM-01","Western"]
["SL-W","Western Area (Freetown)"]
["AU-WA","Western Australia"]
["SS-BW","Western Bahr el  Ghazal"]
["ZA-WC","Western Cape"]
["SS-EW","Western Equatoria"]
["PG-WHM","Western Highlands"]
["LK-1","Western Province"]
["PH-06","Western Visayas (Region VI)"]
["IE-WH","Westmeath"]
["GB-WSM","Westminster"]
["JM-10","Westmoreland"]
["BE-VWV","West-Vlaanderen"]
["IE-WX","Wexford"]
["NZ-NSN","Whakatū"]
["NZ-CIT","Wharekauri"]
["SD-NW","White Nile"]
["IE-WW","Wicklow"]
["PL-WP","Wielkopolskie"]
["AT-9","Wien"]
["GB-WGN","Wigan"]
["MY-14","Wilayah Persekutuan Kuala Lumpur"]
["MY-15","Wilayah Persekutuan Labuan"]
["MY-16","Wilayah Persekutuan Putrajaya"]
["GB-WIL","Wiltshire"]
["LU-WI","Wiltz"]
["LU-WI","Wiltz"]
["GB-WNM","Windsor and Maidenhead"]
["GB-WRL","Wirral"]
["US-WI","Wisconsin"]
["GB-WOK","Wokingham"]
["GA-9","Woleu-Ntem"]
["GB-WLV","Wolverhampton"]
["LU-WI","Wolz"]
["SO-WO","Woqooyi Galbeed"]
["GB-WOR","Worcestershire"]
["CI-WR","Woroba"]
["MH-WTH","Wotho"]
["MH-WTH","Wotho"]
["MH-WTJ","Wotje"]
["MH-WTJ","Wotje"]
["GB-WRX","Wrexham [Wrecsam GB-WRC]"]
["US-WY","Wyoming"]
["AZ-XAC","Xaçmaz"]
["MT-61","Xagħra"]
["MT-61","Xagħra"]
["LA-XA","Xaignabouli"]
["LA-XS","Xaisômboun"]
["AZ-XA","Xankəndi"]
["LA-XE","Xékong"]
["MT-62","Xewkija"]
["MT-62","Xewkija"]
["MT-63","Xgħajra"]
["MT-63","Xgħajra"]
["CN-91","Xianggang (see also separate country code entry under HK)"]
["LA-XI","Xiangkhouang"]
["CN-65","Xinjiang"]
["CN-54","Xizang"]
["AZ-XIZ","Xızı"]
["AZ-XCI","Xocalı"]
["AZ-XVD","Xocavənd"]
["UZ-XO","Xorazm"]
["BF-YAG","Yagha"]
["TH-95","Yala"]
["TR-77","Yalova"]
["LK-41","Yāl̮ppāṇam"]
["JP-06","Yamagata"]
["JP-35","Yamaguchi"]
["JP-35","Yamaguti"]
["RU-YAN","Yamalo-Nenetskiy avtonomnyy okrug"]
["JP-19","Yamanashi"]
["JP-19","Yamanasi"]
["BG-28","Yambol"]
["CI-YM","Yamoussoukro"]
["KP-10","Yanggang-do"]
["MM-06","Yangon"]
["FM-YAP","Yap"]
["LK-41","Yāpanaya"]
["VE-U","Yaracuy"]
["AZ-YAR","Yardımlı"]
["NR-14","Yaren"]
["NR-14","Yaren"]
["RU-YAR","Yaroslavskaya oblast'"]
["TH-35","Yasothon"]
["BF-YAT","Yatenga"]
["IR-25","Yazd"]
["ET-SN","YeDebub Bihēroch Bihēreseboch na Hizboch"]
["VN-06","Yên Bái"]
["IL-JM","Yerushalayim"]
["AZ-YE","Yevlax"]
["AZ-YEV","Yevlax"]
["RU-YEV","Yevreyskaya avtonomnaya oblast'"]
["TW-ILA","Yilan"]
["NG-YO","Yobe"]
["ID-YO","Yogyakarta"]
["GN-YO","Yomou"]
["FR-89","Yonne"]
["GB-YOR","York"]
["HN-YO","Yoro"]
["TR-66","Yozgat"]
["KG-Y","Ysyk-Köl"]
["MX-YUC","Yucatán"]
["CA-YT","Yukon"]
["CA-YT","Yukon"]
["DO-42","Yuma"]
["UG-313","Yumbe"]
["TW-YUN","Yunlin"]
["CN-53","Yunnan"]
["KZ-YUZ","Yuzhno-Kazakhstankaya oblast'"]
["FR-78","Yvelines"]
["RU-ZAB","Zabajkal'skij kraj"]
["RU-ZAB","Zabaykal'skiy kray"]
["MT-64","Żabbar"]
["MT-64","Żabbar"]
["ME-21","Žabljak"]
["AF-ZAB","Zābul"]
["AF-ZAB","Zābul"]
["GT-ZA","Zacapa"]
["MX-ZAC","Zacatecas"]
["PL-ZP","Zachodniopomorskie"]
["HR-13","Zadarska županija"]
["TN-22","Zaghouan"]
["MA-ZAG","Zagora"]
["SI-142","Zagorje ob Savi"]
["HR-01","Zagrebačka županija"]
["AO-ZAI","Zaire"]
["RS-15","Zaječarski okrug"]
["UA-21","Zakarpatska oblast"]
["HU-ZA","Zala"]
["HU-ZE","Zalaegerszeg"]
["SI-190","Žalec"]
["PH-ZMB","Zambales"]
["NA-CA","Zambezi"]
["MZ-Q","Zambézia"]
["PH-ZAN","Zamboanga del Norte"]
["PH-ZAN","Zamboanga del Norte"]
["PH-ZAS","Zamboanga del Sur"]
["PH-ZAS","Zamboanga del Sur"]
["PH-09","Zamboanga Peninsula (Region IX)"]
["PH-09","Zamboanga Peninsula (Region IX)"]
["PH-ZSI","Zamboanga Sibugay"]
["PH-ZSI","Zamboanga Sibugay"]
["KZ-ZHA","Žambylskaja oblast'"]
["KZ-ZHA","Žambylskaja oblast'"]
["NG-ZA","Zamfara"]
["NG-ZA","Zamfara"]
["ES-ZA","Zamora"]
["ES-ZA","Zamora"]
["EC-Z","Zamora-Chinchipe"]
["EC-Z","Zamora-Chinchipe"]
["IR-11","Zanjān"]
["IR-11","Zanjān"]
["CI-ZZ","Zanzan"]
["CI-ZZ","Zanzan"]
["TZ-07","Zanzibar North"]
["TZ-07","Zanzibar North"]
["TZ-11","Zanzibar South"]
["TZ-11","Zanzibar South"]
["TZ-15","Zanzibar West"]
["TZ-15","Zanzibar West"]
["RS-05","Zapadnobački okrug"]
["RS-05","Zapadnobački okrug"]
["KZ-ZAP","Zapadno-Kazahstanskaja oblast'"]
["KZ-ZAP","Zapadno-Kazahstanskaja oblast'"]
["KZ-ZAP","Zapadno-Kazakhstanskaya oblast'"]
["KZ-ZAP","Zapadno-Kazakhstanskaya oblast'"]
["UA-23","Zaporizka oblast"]
["UA-23","Zaporizka oblast"]
["AZ-ZAQ","Zaqatala"]
["AZ-ZAQ","Zaqatala"]
["ES-Z","Zaragoza"]
["ES-Z","Zaragoza"]
["LT-60","Zarasai"]
["LT-60","Zarasai"]
["SI-143","Zavrč"]
["SI-143","Zavrč"]
["CZ-615","Žd'ár nad Sázavou"]
["CZ-635","Žďár nad Sázavou"]
["MT-65","Żebbuġ Għawdex"]
["MT-65","Żebbuġ Għawdex"]
["MT-65","Żebbuġ Gozo"]
["MT-65","Żebbuġ Gozo"]
["MT-66","Żebbuġ Malta"]
["MT-66","Żebbuġ Malta"]
["MT-66","Żebbuġ Malta"]
["MT-66","Żebbuġ Malta"]
["NL-ZE","Zeeland"]
["NL-ZE","Zeeland"]
["MT-67","Żejtun"]
["MT-67","Żejtun"]
["MT-67","Żejtun"]
["MT-67","Żejtun"]
["MK-32","Zelenikovo"]
["MK-32","Zelenikovo"]
["SI-146","Železniki"]
["SI-146","Železniki"]
["MK-30","Želino"]
["MK-30","Želino"]
["AZ-ZAN","Zəngilan"]
["AZ-ZAN","Zəngilan"]
["AZ-ZAR","Zərdab"]
["AZ-ZAR","Zərdab"]
["SI-191","Žetale"]
["SI-191","Žetale"]
["KZ-ZHA","Zhambyl oblysy"]
["KZ-ZHA","Zhambyl oblysy"]
["KZ-ZHA","Zhambylskaya oblast'"]
["KZ-ZHA","Zhambylskaya oblast'"]
["CN-33","Zhejiang"]
["CN-33","Zhejiang"]
["BT-34","Zhemgang"]
["BT-34","Zhemgang"]
["UA-18","Zhytomyrska oblast"]
["UA-18","Zhytomyrska oblast"]
["SN-ZG","Ziguinchor"]
["SN-ZG","Ziguinchor"]
["SK-ZI","Žilinský kraj"]
["SK-ZI","Žilinský kraj"]
["LV-110","Zilupes novads"]
["LV-110","Zilupes novads"]
["NE-7","Zinder"]
["NE-7","Zinder"]
["SI-147","Žiri"]
["SI-147","Žiri"]
["BF-ZIR","Ziro"]
["BF-ZIR","Ziro"]
["SI-192","Žirovnica"]
["SI-192","Žirovnica"]
["RS-16","Zlatiborski okrug"]
["RS-16","Zlatiborski okrug"]
["CZ-724","Zlín"]
["CZ-724","Zlín"]
["CZ-72","Zlínský kraj"]
["CZ-ZL","Zlínský kraj"]
["CZ-647","Znojmo"]
["CZ-627","Znojmo"]
["MW-ZO","Zomba"]
["MW-ZO","Zomba"]
["MW-ZO","Zomba"]
["MW-ZO","Zomba"]
["UG-330","Zombo"]
["UG-331","Zombo"]
["BF-ZON","Zondoma"]
["BF-ZON","Zondoma"]
["TR-67","Zonguldak"]
["TR-67","Zonguldak"]
["BJ-ZO","Zou"]
["BJ-ZO","Zou"]
["BF-ZOU","Zoundwéogo"]
["BF-ZOU","Zoundwéogo"]
["SI-144","Zreče"]
["SI-144","Zreče"]
["MK-33","Zrnovci"]
["MK-33","Zrnovci"]
["OM-ZU","Z̧ufār"]
["OM-ZU","Z̧ufār"]
["CH-ZG","Zug"]
["CH-ZG","Zug"]
["NL-ZH","Zuid-Holland"]
["NL-ZH","Zuid-Holland"]
["VE-V","Zulia"]
["VE-V","Zulia"]
["CH-ZH","Zürich"]
["CH-ZH","Zürich"]
["MT-68","Żurrieq"]
["MT-68","Żurrieq"]
["MT-68","Żurrieq"]
["MT-68","Żurrieq"]
["SI-193","Žužemberk"]
["SI-193","Žužemberk"]